{"text_format":"1","workbook":"xlsx","n_sheets":32,"sheets":["Cover Sheet","Introduction","Inputs>>","I-Scheme Details","I-Supporting Evidence","I-Area Lookup","I-Costs","Input Checklist","I-TAG Values","I-NRTP","I-Validation","Calculations>>","C-Values and Rates","C-Diversion","C-Daily Impacts","C-Annual Impacts","C-Scheme Costs","C-Carbon","Outputs>>","O-Results","O-Summary","Data Book Inputs>>","TAG - Annual Parameters","TAG - A1.1.1","TAG - A1.3.4","TAG - A1.3.6","TAG - A1.3.12","TAG - A1.3.13","TAG - A1.3.14","TAG - A1.3.15","TAG - A3.4","TAG - A5.4.2"],"not_rendered":{"charts":0,"images":0,"macros":1,"external_links":1,"defined_names":41,"comments":0,"pivot_tables":0},"unopened":[],"bounds":{"document_bytes":16777216,"sheet_cells":100000,"rows_first":2000,"rows_last":500,"rows_between":2000,"halvings":0,"cell_chars":16384,"cell_head_chars":4096},"cells_cut":0,"cells_raw":0,"read":"whole","date_system":"1900"}

{"sheet":"Cover Sheet","index":0,"n_rows":57,"n_cols":13,"rows_kept":57,"cut":false,"hidden":false,"merged":[[9,7,9,8],[10,7,10,8],[11,7,11,8]]}
[]
[null,"File Name",null,null,null,null,{"$f":"IFERROR(MID(CELL(\"filename\",G2),FIND(\"[\",CELL(\"filename\",G2))+1,FIND(\"]\",CELL(\"filename\",G2))-FIND(\"[\",CELL(\"filename\",G2))-1),\"Please save the file to show here\")","v":"structures-fund-economic-tool Final 03082026.xlsm"}]
[null,"Sheet Name",null,null,null,null,{"$f":"IFERROR(MID(CELL(\"filename\",G2),FIND(\"]\",CELL(\"filename\",G2))+1,255),\"Please save the file to show here\")","v":"Cover Sheet"}]
[null,"Description and Purpose of Model:",null,null,null,null,"Tool to monetise the benefits and costs of schemes seeking funding from the Structures Fund"]
[null,"Version number",null,null,null,null,{"$f":"Version_Number","v":1}]
[]
[]
[null,"Workbook Properties"]
[]
[null,null,null,null,null,null,"File Name",{"$f":"IFERROR(MID(CELL(\"filename\",G2),FIND(\"[\",CELL(\"filename\",G2))+1,FIND(\"]\",CELL(\"filename\",G2))-FIND(\"[\",CELL(\"filename\",G2))-1),\"Please save the file to show here\")","v":"structures-fund-economic-tool Final 03082026.xlsm"}]
[null,null,null,null,null,null,"Description and Purpose of Model:","Tool to monetise the costs and benefits of Structures Fund schemes"]
[null,null,null,null,null,null,"Version number",{"$f":"MAX(G19:G29)","v":1}]
[]
[]
[null,"Version Control"]
[]
[]
[null,null,null,null,null,null,"Version","Filename","Description","Changes since last version","Date Created","Analyst","QA status"]
[null,null,null,null,null,null,1,{"$f":"IF(G19=\"\",0,IFERROR(MID(CELL(\"filename\",G2),FIND(\"[\",CELL(\"filename\",G2))+1,FIND(\"]\",CELL(\"filename\",G2))-FIND(\"[\",CELL(\"filename\",G2))-1),\"Please save the file to show here\"))","v":"structures-fund-economic-tool Final 03082026.xlsm"},"Final issue to DfT","N/A","2026-04-09","WSP","WSP"]
[]
[]
[]
[]
[]
[]
[]
[]
[]
[]
[]
[null,"Legend"]
[]
[]
[null,null,null,null,null,null,"Banner 1: Properties and Section Breaks"]
[null,null,null,null,null,null,"Banner 2: Headers, Timeline and Key Labels"]
[null,null,null,null,null,null,"Input (Raw Data)"]
[null,null,null,null,null,null,"Input (Assumption)"]
[null,null,null,null,null,null,"Input (Drop down)"]
[null,null,null,null,null,null,"Calculation"]
[null,null,null,null,null,null,"Carried through data"]
[null,null,null,null,null,null,"Output"]
[null,null,null,null,null,null,"ERROR/OK, FALSE/TRUE (manual or with Conditional Formatting)"]
[null,null,null,null,null,null,"Table heading"]
[]
[]
[null,"Table of Contents"]
[]
[null,"Table of Contents"]
[]
[null,"Introduction",null,null,null,null,{"$f":"Introduction!G4","v":"This sheet introduces the Tool and provides guidance for users."}]
[null,"I-Scheme Details",null,null,null,null,{"$f":"'I-Scheme Details'!G4","v":"Users should complete all blue input cells within this sheet, and select from the drop down in green cells. User instructions/notes are shown in green text."}]
[null,"I-Supporting Evidence",null,null,null,null,{"$f":"'I-Supporting Evidence'!G4","v":"This sheet provides space for users to include any supporting evidence for the inputs included in I-Scheme Details."}]
[null,"I-Area Lookup",null,null,null,null,{"$f":"'I-Area Lookup'!G4","v":"This sheet can be used to look-up the area type requested on I-Scheme Details."}]
[null,"I-Costs",null,null,null,null,{"$f":"'I-Costs'!G4","v":"Users should complete all blue input cells within this sheet, and select from the drop down in green cells. User instructions/notes are shown in green text."}]
[null,"Input Checklist",null,null,null,null,{"$f":"'Input Checklist'!G4","v":"This sheet includes a checklist to confirm that all inputs have been provided."}]
[null,"O-Results",null,null,null,null,{"$f":"'O-Results'!G4","v":"This sheet provides a summary of the benefits and costs of the scheme over the appraisal period."}]
[null,"O-Summary",null,null,null,null,{"$f":"'O-Summary'!G4","v":"This sheet provides a description of the appraised scheme and headline results of the economic appraisal."}]

{"sheet":"Introduction","index":1,"n_rows":45,"n_cols":8,"rows_kept":45,"cut":false,"hidden":false,"merged":[[34,6,34,7],[36,6,36,7],[38,6,38,7],[40,6,40,7],[42,6,42,7],[15,6,15,7],[17,6,17,7],[19,6,19,7],[9,6,9,7],[11,6,11,7],[13,6,13,7]]}
[]
[null,"File Name",null,null,null,null,{"$f":"IFERROR(MID(CELL(\"filename\",G2),FIND(\"[\",CELL(\"filename\",G2))+1,FIND(\"]\",CELL(\"filename\",G2))-FIND(\"[\",CELL(\"filename\",G2))-1),\"Please save the file to show here\")","v":"structures-fund-economic-tool Final 03082026.xlsm"}]
[null,"Sheet Name",null,null,null,null,{"$f":"IFERROR(MID(CELL(\"filename\",G2),FIND(\"]\",CELL(\"filename\",G2))+1,255),\"Please save the file to show here\")","v":"Introduction"}]
[null,"Description and Purpose of Sheet",null,null,null,null,"This sheet introduces the Tool and provides guidance for users."]
[null,"Version number",null,null,null,null,{"$f":"Version_Number","v":1}]
[]
[]
[null,"Introduction"]
[]
[null,null,null,null,null,null,"The Structures Fund Economic Tool (the Tool) has been developed to assess the Value for Money (VfM) of schemes seeking funding from the Structures Fund. "]
[]
[null,null,null,null,null,null,"The Tool can be used to estimate the key impacts of schemes including the costs and the benefits related to removing the need for diversion routes, leading to reduced journey times and vehicle operating costs, changes in vehicle kms and the resulting external impacts on decongestion, infrastructure maintenance, noise, air quality, greenhouse gas user emissions and indirect tax revenues. The Tool also monetises the impacts of capital carbon from the infrastructure."]
[]
[null,null,null,null,null,null,"The Tool provides a proportionate method for assessing and monetising these impacts, culminating in the calculation of the Present Value of Benefits (PVB), Present Value of Costs (PVC), Net Present Value (NPV) and Benefit Cost Ratio (BCR)."]
[]
[null,null,null,null,null,null,"The Structures Fund Economic Tool User Guide sets out how the Tool has been structured and provides details of what data are required for each input sheet in the Tool. It also details what is included in the output sheets of the Tool and provides some use case examples."]
[]
[null,null,null,null,null,null,"The Tool is structured such that input, calculation and output sheets are separated. There are divider pages (Inputs> >, Calculations> >, Outputs> >) to group the sheets and to ensure the integrity of the model flow. The Tool is structured on each sheet such that it follows the format of how a book should be read, from left to right and from top to bottom."]
[]
[null,null,null,null,null,null,"Users of the Tool should only need to input to the necessary visible input sheets, and then review the output sheets. The calculation sheets should not be edited, and have been protected to avoid user error."]
[]
[null,null,null,null,null,null,"Tab","Description"]
[]
[null,null,null,null,null,null,"Introduction",{"$f":"'Cover Sheet'!G50","v":"This sheet introduces the Tool and provides guidance for users."}]
[null,null,null,null,null,null,"I-Scheme Details",{"$f":"'Cover Sheet'!G51","v":"Users should complete all blue input cells within this sheet, and select from the drop down in green cells. User instructions/notes are shown in green text."}]
[null,null,null,null,null,null,"I-Supporting Evidence",{"$f":"'Cover Sheet'!G52","v":"This sheet provides space for users to include any supporting evidence for the inputs included in I-Scheme Details."}]
[null,null,null,null,null,null,"I-Area Lookup",{"$f":"'Cover Sheet'!G53","v":"This sheet can be used to look-up the area type requested on I-Scheme Details."}]
[null,null,null,null,null,null,"I-Costs",{"$f":"'Cover Sheet'!G54","v":"Users should complete all blue input cells within this sheet, and select from the drop down in green cells. User instructions/notes are shown in green text."}]
[null,null,null,null,null,null,"Input Checklist",{"$f":"'Cover Sheet'!G55","v":"This sheet includes a checklist to confirm that all inputs have been provided."}]
[null,null,null,null,null,null,"O-Results",{"$f":"'Cover Sheet'!G56","v":"This sheet provides a summary of the benefits and costs of the scheme over the appraisal period."}]
[null,null,null,null,null,null,"O-Summary",{"$f":"'Cover Sheet'!G57","v":"This sheet provides a description of the appraised scheme and headline results of the economic appraisal."}]
[]
[null,null,"Uses and Limitations"]
[]
[null,null,null,null,null,null,"The Structures Fund Economic Tool provides a proportionate approach to the economic appraisal of schemes where impacts arise primarily from the introduction or removal of diversion routes due to asset condition or restrictions. The Tool is intended for use where affected traffic can reasonably be represented as diverting onto a clearly defined alternative route. It is less suited to complex urban networks with multiple diversion options or schemes where impacts are driven by wider network reconfiguration. In such cases, the results should be treated as indicative and, where appropriate, supported by additional analysis."]
[]
[null,null,null,null,null,null,"The Tool is based on a number of simplifying assumptions. All traffic affected by a restriction is assumed to divert to the specified route, with no allowance for demand suppression, re‑timing or wider rerouting. Journey times, speeds and diversion route characteristics are assumed to remain constant in real terms over the appraisal period, while traffic volumes are forecast in line with National Road Traffic Projections. These assumptions are consistent with a proportionate appraisal approach and are intended to avoid introducing additional uncertainty. Users should consider whether the assumptions are appropriate for their scheme and provide qualitative justification where necessary."]
[]
[null,null,null,null,null,null,"Where restrictions represent partial closures (for example, lane reductions or restrictions applying to only some traffic), it may be necessary to run the Tool more than once and aggregate results externally. In doing so, users should ensure that costs and benefits are not double‑counted, particularly capital costs, infrastructure carbon emissions and impacts affecting traffic that is not subject to restriction. The approach used should be clearly documented in supporting evidence."]
[]
[null,null,null,null,null,null,"Decongestion impacts within the Tool are sensitive to the congestion band selected for the diversion route. Users should select congestion bands in accordance with TAG and recognise that appraisal results may vary where congestion levels are uncertain. Infrastructure carbon emissions are input by the user and monetised using central TAG carbon values. Estimates may be subject to uncertainty, particularly at early stages of scheme development, and this should be reflected proportionately in supporting evidence."]
[]
[null,null,null,null,null,null,"The Tool generates monetised economic outputs to inform decision‑making. These results should be interpreted alongside professional judgement and wider evidence. In particular, schemes driven primarily by asset resilience, safety or risk reduction may deliver benefits that are not fully reflected in monetised impacts alone. The Tool will produce outputs even where some input checks are not passed; users are responsible for reviewing any failed checks, confirming the validity of inputs used, and interpreting results in line with the assumptions and limitations set out above."]
[]
[null,"END"]

{"sheet":"Inputs>>","index":2,"n_rows":11,"n_cols":3,"rows_kept":11,"cut":false,"hidden":false,"merged":[]}
[]
[]
[]
[]
[]
[]
[]
[]
[]
[]
[null,null,"Inputs"]

{"sheet":"I-Scheme Details","index":3,"n_rows":112,"n_cols":12,"rows_kept":112,"cut":false,"hidden":false,"merged":[]}
[]
[null,"File Name",null,null,null,null,{"$f":"IFERROR(MID(CELL(\"filename\",G2),FIND(\"[\",CELL(\"filename\",G2))+1,FIND(\"]\",CELL(\"filename\",G2))-FIND(\"[\",CELL(\"filename\",G2))-1),\"Please save the file to show here\")","v":"structures-fund-economic-tool Final 03082026.xlsm"}]
[null,"Sheet Name",null,null,null,null,{"$f":"IFERROR(MID(CELL(\"filename\",G2),FIND(\"]\",CELL(\"filename\",G2))+1,255),\"Please save the file to show here\")","v":"I-Scheme Details"}]
[null,"Description and Purpose of Sheet",null,null,null,null,"Users should complete all blue input cells within this sheet, and select from the drop down in green cells. User instructions/notes are shown in green text."]
[null,"Version number",null,null,null,null,{"$f":"Version_Number","v":1}]
[]
[]
[null,"I-Scheme Details"]
[]
[null,null,null,null,"Constant",null,null,null,null,"Unit",null,"Notes"]
[]
[null,null,"Scheme Information"]
[]
[null,null,null,"Scheme name","Upminster Bridge",null,null,null,null,"text"]
[]
[null,null,null,"Scheme promoter","LB Havering",null,null,null,null,"text"]
[]
[null,null,null,"Region","London",null,null,null,null,"selection"]
[]
[null,null,null,"Route length (without diversion)",1.9,null,null,null,null,"km"]
[]
[null,null,null,"Journey time (without diversion)",7,null,null,null,null,"min"]
[]
[null,null,null,"Average speed (without diversion)",{"$f":"(IF(OR(E20=\"\",E22=\"\"),0,E20*MinutesToHours/E22))","v":16.285714285714285},null,null,null,null,"km/h",null,"This is calculated based on the route length and journey time inputs"]
[]
[null,null,null,"Average speed check",{"$f":"IF(OR(E20=\"\",E22=\"\"),\"\",IF(OR(E24<'I-Validation'!B50,E24>'I-Validation'!B51),(\"Average speed calculated at \"&TEXT(E24,\"0\")&\"km/h. Please check.\"),\"Average speed check passed\"))","v":"Average speed check passed"},null,null,null,null,"check",null,"This checks if the speed calculated is between 12km/h (7mph) and 112km/h (70mph)"]
[]
[null,null,null,"Scheme description","Replacement of the whole structure deck at Upminster Bridge. ",null,null,null,null,"text",null,"Add a short description of the scheme, including what would be delivered with the funding from the Structures Fund and what this would mean for the transport network. Where required, provide additional evidence in 'I-Supporting Evidence'."]
[]
[null,null,null,"Scheme opening year",2028,null,null,null,null,"yyyy"]
[]
[null,null,null,"Appraisal period",60,null,null,null,null,"years",null,"The default (and maximum) appraisal period is set to 60-years. Justification should be provided for use of an alternative value"]
[]
[null,null,null,"Reason for different appraisal period duration","Not Applicable",null,null,null,null,"text",null,"Provide a short justification for choice of a different appraisal period length."]
[]
[null,null,null,"Traffic flow year",2025,null,null,null,null,"selection",null,"The year for which AADT data is provided."]
[]
[null,null,null,"Daily number of vehicles on affected section",14187,null,null,null,null,"24h Average Annual Daily Traffic (AADT)",null,"Enter AADT for all vehicles. This should be split by vehicle type if the data is available."]
[null,null,null,"Cars",11990,null,null,null,null,"24h AADT",null,"Optional"]
[null,null,null,"LGV",1615,null,null,null,null,"24h AADT",null,"Optional"]
[null,null,null,"HGV",142,null,null,null,null,"24h AADT",null,"Optional"]
[null,null,null,"PSV",440,null,null,null,null,"24h AADT",null,"Optional"]
[]
[null,null,null,"Input check",{"$f":"IF(SUM(E39:E42)=0, \"Demand by vehicle type not provided\", IF(SUM(E39:E42)<>E38, \"Total demand does not equal the sum of all vehicle types\", \"Demand inputs match\"))","v":"Demand inputs match"},null,null,null,null,"check"]
[]
[null,null,null,"Is HGV split between articulated and rigid vehicles known (OGV2/OGV1)?","No",null,null,null,null,"selection",null,"If 'yes', provide the percentage of articulated vehicles below (percentage of rigid vehicles will then be calculated)"]
[null,null,null,"Articulated vehicles",null,null,null,null,null,"%"]
[null,null,null,"Rigid vehicles",{"$f":"IF(E46='I-Validation'!B11,1-E47,\"\")","v":""},null,null,null,null,"%"]
[]
[null,null,null,"Infrastructure carbon emissions",160,null,null,null,null,"tCO2e",null,"Enter the emissions associated with the infrastructure delivered as part of the scheme (this should not include user emissions)."]
[null,null,null,null,null,null,null,null,null,null,null,"These emissions in tonnes of CO2 equivalent (tCO2e) are assumed to follow the same time profile as the year in which the capital costs are incurred."]
[]
[null,null,"Diversion"]
[]
[null,null,null,"Diversion description","The proposed diversion route would be significant given the need to avoid quiter residential roads and roads that already have height, weight or width restrictions in the area.  The diversion would be approximately 7km in length. The diversion westbound would start at the Bell Corner Junction (Station Road/Upminster Road, Corbets Tey Road). Vehicles would travel north along Station Road, then Hall Lane up to the junction with the A127. The diversion route would then continue westbound along the A127 untill the junction with Adleigh Green Road. Traffic would then continue southbound down Ardleigh Green Road into Butts Green Road then into North Street heading southbound, untill the road meets the A124 at Hornchurch Town Centre. At this point vehicles will then have the opportunity  to continue there journey east or westbound along the A124. This diversion is proposed to avoid larger vehicles having to use quieter residential roads. It is also a route that avoids any weight restrictions. The diversion roads would be the same in the eastbound direction.   ",null,null,null,null,"text",null,"Add a short description of the diversion route which would be implemented in the absence of the scheme. Where required, provide additional evidence in 'I-Supporting Evidence'."]
[]
[null,null,null,"Area type ","Inner and Outer Conurbations",null,null,null,null,"selection",null,"The area type can be found by looking up the scheme area in the 'I- Area Lookup' sheet"]
[]
[null,null,null,"Road type","A roads",null,null,null,null,"selection",null,"Select road type of the diversion route"]
[]
[null,null,null,"Congestion band",4,null,null,null,null,"selection",null,"Select the congestion band, refer to Appendix A of TAG Unit A5-4 for guidance on congestion bands. Provide justification for the selected congestion band on I-Supporting Evidence."]
[]
[null,null,null,"Route length (with diversion)",7.9,null,null,null,null,"kms"]
[]
[null,null,null,"Journey time (with diversion)",20,null,null,null,null,"mins"]
[]
[null,null,null,"Average speed (with diversion)",{"$f":"(IF(OR(E63=\"\",E65=\"\"),0,E63*MinutesToHours/E65))","v":23.7},null,null,null,null,"km/h",null,"This is calculated based on the route length and journey time inputs"]
[]
[null,null,null,"Average speed check (with diversion)",{"$f":"IF(OR(E63=\"\",E65=\"\"),\"\",IF(OR(E67<'I-Validation'!B50,E67>'I-Validation'!B51),(\"Average speed calculated at \"&TEXT(E67,\"0\")&\"km/h. Please check.\"),\"Average speed check passed\"))","v":"Average speed check passed"},null,null,null,null,"check",null,"This checks if the speed calculated is between 12km/h (7mph) and 112km/h (70mph)"]
[]
[null,null,null,"Diversion route check",{"$f":"IF(OR(E65=\"\",E22=\"\"),\"\",IF(AND(E20>E63,E22>E65), \"Diversion route shorter than current route\",\"Diversion route check passed\"))","v":"Diversion route check passed"},null,null,null,null,"check",null,"This check highlights if the route length with diversion is shorter than the route length with diversion"]
[]
[null,null,"Specify restrictions - Restriction #1 defines the initial diversion requirement. Optional Restrictions #2 and #3 apply only if diversion requirements change in later years and override earlier restrictions from their stated start year onward."]
[null,null,"Where required, further evidence regarding restrictions can be provided in 'I-Supporting Evidence'."]
[]
[null,null,"Restriction #1 (Required)"]
[]
[null,null,null,"Diversion starts in ",2028,null,null,null,null,"yyyy",null,"This is the year in which the requirement for a diversion route would come in, if a diversion is already in place then select the current year"]
[]
[null,null,null,"Days of year diversion in place",365,null,null,null,null,"days",null,"This is the number of days per year that the diversion route would be in place"]
[]
[null,null,null,"Diversion applies to:"]
[null,null,null,"Cars",0,null,null,null,null,"0 or 1",null,"Set to 1 if diversion route would apply to cars, set to 0 if it would not"]
[null,null,null,"LGV",0,null,null,null,null,"0 or 1",null,"Set to 1 if diversion route would apply to LGVs, set to 0 if it would not"]
[null,null,null,"HGV",1,null,null,null,null,"0 or 1",null,"Set to 1 if diversion route would apply to HGVs, set to 0 if it would not"]
[null,null,null,"PSV",1,null,null,null,null,"0 or 1",null,"Set to 1 if diversion route would apply to PSVs, set to 0 if it would not"]
[]
[null,null,"Restriction #2 (Optional)"]
[]
[null,null,null,"Replaces the previous restriction and starts in ",2038,null,null,null,null,"yyyy",null,"This is the year in which the requirement for a diversion route would change from that specified as Restriction #1"]
[]
[null,null,null,"Days of year diversion in place",365,null,null,null,null,"days",null,"This is the number of days per year that the diversion route would be in place"]
[]
[null,null,null,"Diversion applies to:"]
[null,null,null,"Cars",0,null,null,null,null,"0 or 1",null,"Set to 1 if diversion route would apply to cars, set to 0 if it would not"]
[null,null,null,"LGV",0,null,null,null,null,"0 or 1",null,"Set to 1 if diversion route would apply to LGVs, set to 0 if it would not"]
[null,null,null,"HGV",1,null,null,null,null,"0 or 1",null,"Set to 1 if diversion route would apply to HGVs, set to 0 if it would not"]
[null,null,null,"PSV",1,null,null,null,null,"0 or 1",null,"Set to 1 if diversion route would apply to PSVs, set to 0 if it would not"]
[]
[null,null,"Restriction #3 (Optional)"]
[]
[null,null,null,"Replaces the previous restriction and starts in ",null,null,null,null,null,"yyyy",null,"This is the year in which the requirement for a diversion route would change from that specified as Restriction #2"]
[]
[null,null,null,"Days of year diversion in place",null,null,null,null,null,"days",null,"This is the number of days per year that the diversion route would be in place"]
[]
[null,null,null,"Diversion applies to:"]
[null,null,null,"Cars",null,null,null,null,null,"0 or 1",null,"Set to 1 if diversion route would apply to cars, set to 0 if it would not"]
[null,null,null,"LGV",null,null,null,null,null,"0 or 1",null,"Set to 1 if diversion route would apply to LGVs, set to 0 if it would not"]
[null,null,null,"HGV",null,null,null,null,null,"0 or 1",null,"Set to 1 if diversion route would apply to HGVs, set to 0 if it would not"]
[null,null,null,"PSV",null,null,null,null,null,"0 or 1",null,"Set to 1 if diversion route would apply to PSVs, set to 0 if it would not"]
[]
[null,"END"]

{"sheet":"I-Supporting Evidence","index":4,"n_rows":70,"n_cols":7,"rows_kept":70,"cut":false,"hidden":false,"merged":[]}
[]
[null,"File Name",null,null,null,null,{"$f":"IFERROR(MID(CELL(\"filename\",G2),FIND(\"[\",CELL(\"filename\",G2))+1,FIND(\"]\",CELL(\"filename\",G2))-FIND(\"[\",CELL(\"filename\",G2))-1),\"Please save the file to show here\")","v":"structures-fund-economic-tool Final 03082026.xlsm"}]
[null,"Sheet Name",null,null,null,null,{"$f":"IFERROR(MID(CELL(\"filename\",G2),FIND(\"]\",CELL(\"filename\",G2))+1,255),\"Please save the file to show here\")","v":"I-Supporting Evidence"}]
[null,"Description and Purpose of Sheet",null,null,null,null,"This sheet provides space for users to include any supporting evidence for the inputs included in I-Scheme Details."]
[null,"Version number",null,null,null,null,{"$f":"Version_Number","v":1}]
[]
[]
[null,"I-Supporting Evidence"]
[]
[null,null,"Scheme Information"]
[]
[null,null,"Provide any additional evidence to supporting the scheme information inputs included on I-Scheme Details. This can include a map with scheme location and any relevant evidence on the current journey times and demand."]
[]
[null,null,"Please find attached an Earthlight map showing the location of Upminster Bridge in the context of the wider Road Network. As the map shows, the structure is located on a key east/west corridor in the borough connecting the Major centres of Upminster and Hornchurch. A visual image of the struture can be found from google maps here  https://www.google.co.uk/maps/@51.5583117,0.2397162,3a,75y,272.58h,82.35t/data=!3m7!1e1!3m5!1sO4eMWtYBO_gprFOy9B1lrA!2e0!6shttps:%2F%2Fstreetviewpixels-pa.googleapis.com%2Fv1%2Fthumbnail%3Fcb_client%3Dmaps_sv.tactile%26w%3D900%26h%3D600%26pitch%3D7.6478970108873625%26panoid%3DO4eMWtYBO_gprFOy9B1lrA%26yaw%3D272.5840162893183!7i16384!8i8192?entry=ttu&g_ep=EgoyMDI2MDcyOC4wIKXMDSoASAFQAw%3D%3D"]
[null,null,"Please also find attached a screen shot from Google Maps giving an aerial view of the Upminster Bridge location and a screen shot showing the bridge at road level. "]
[]
[]
[]
[]
[]
[]
[]
[]
[]
[]
[]
[]
[null,null,"Diversion"]
[]
[null,null,"Provide any additional evidence to supporting the scheme information inputs included on I-Scheme Details. This can include a map with the diversion route and any relevant evidence on the journey times and restriction scenarios assumed."]
[]
[null,null,"Please find attached a map from Earthlight showing the diversion route that would have to be used should the Council be unsuccessful with its application and has to impose a weight restriction of 7.5 tonnes on the Structure. This specific route has been identified as the diversion route because it avoids largers vehicles using quieter residential streets and keeps diverted traffic on more strategic routes. This route has also been identfied as it avoids roads which already have either weight, height or width restrictions on them. For exmaple, Wingletye Lane cannot be used as there is a 38th weight restriction in place   The diversion route has been measured using the Councils Earthlight GIS system. The start point has been identified as the Bell Corner Junction in Upminster and the end point the junction of North Street and High Street. Whether vehicles are using the diversion eastbound or westbound, at both ends drivers will have the opportunity to contiue their journey on the A124. in either an eastbound or westbound direction. "]
[]
[]
[]
[]
[]
[]
[]
[]
[]
[]
[]
[]
[]
[null,null,"Congestion band"]
[]
[null,null,"Provide evidence to support the choice of congestion band selected in I-Scheme Details."]
[]
[null,null," DfT Annual Average Daily Flow data for North Street, Hornchurch indicates an AADF of 14,426 vehicles in 2025 link can be found here https://roadtraffic.dft.gov.uk/count-points/803527). The route is classified as a minor urban road within Greater London. Applying the congestion band definitions contained within WebTAG Unit A5.4 Appendix A, and having regard to the observed traffic flows relative to the likely operational capacity of an urban single carriageway road, North Street is considered to operate within Congestion Band 4 (v/c 0.75-1.0), representing conditions approaching capacity and where decongestion benefits may be material.The diversion route comprises predominantly urban A-road links within Outer London which experience high peak-period traffic demand. In accordance with TAG Unit A5.4 Appendix A, a Congestion Band 4 classification (v/c ratio 0.75-1.0) is considered appropriate. "]
[]
[]
[]
[]
[]
[]
[]
[]
[]
[]
[]
[]
[]
[null,null,"Other"]
[]
[null,null,"Provide any further information to support the inputs provided."]
[]
[null,null,"Please find word document attached containing several maps of the corridor where Upminster Bridge is located together with the diversion route proposed. Please also find attached the last Principal Inspection Report that was undertaken for the structure in question. "]
[]
[null,null,"The AADF data taken from the DfT website for Upminster Road can be found on this link https://roadtraffic.dft.gov.uk/count-points/56520. "]

{"sheet":"I-Area Lookup","index":5,"n_rows":7719,"n_cols":7,"rows_kept":7719,"cut":false,"hidden":false,"merged":[]}
[]
[null,"File Name",null,null,null,null,{"$f":"IFERROR(MID(CELL(\"filename\",G2),FIND(\"[\",CELL(\"filename\",G2))+1,FIND(\"]\",CELL(\"filename\",G2))-FIND(\"[\",CELL(\"filename\",G2))-1),\"Please save the file to show here\")","v":"structures-fund-economic-tool Final 03082026.xlsm"}]
[null,"Sheet Name",null,null,null,null,{"$f":"IFERROR(MID(CELL(\"filename\",G2),FIND(\"]\",CELL(\"filename\",G2))+1,255),\"Please save the file to show here\")","v":"I-Area Lookup"}]
[null,"Description and Purpose of Sheet",null,null,null,null,"This sheet can be used to look-up the area type requested on I-Scheme Details."]
[null,"Version number",null,null,null,null,{"$f":"Version_Number","v":1}]
[]
[]
[null,"I-Area Lookup"]
[]
[null,"Area Lookup Table"]
[]
[null,"For users to determine which area type their scheme is located based on Middle Layer Super Output Areas (MSOAs). Users may use a different area type if they have evidence that the mapping does not represent the area of the intervention."]
[null,"The area type identified should be entered onto I-Scheme Details."]
[]
[null,"Search Bar - Enter MSOA Zone Code or Use Below Table to Filter"]
[null,"Zone Code",null,"E02001485"]
[null,"Area Type",null,{"$f":"IF(D16=0,\" \",IF(ISNA(INDEX($F$20:$F$7719,MATCH($D$16,$B$20:$B$7719,0))),\"Not Found\",INDEX($F$20:$F$7719,MATCH($D$16,$B$20:$B$7719,0))))","v":"Inner and Outer Conurbation"}]
[]
[null,"MSOA Zone Code","MSOA Zone Name","LAD Code","Control Area Name","MECs Area Type"]
[null,"E02000001","City of London 001","E09000001","City of London","London"]
[null,"E02000002","Barking and Dagenham 001","E09000002","Barking and Dagenham","London"]
[null,"E02000003","Barking and Dagenham 002","E09000002","Barking and Dagenham","London"]
[null,"E02000004","Barking and Dagenham 003","E09000002","Barking and Dagenham","London"]
[null,"E02000005","Barking and Dagenham 004","E09000002","Barking and Dagenham","London"]
[null,"E02000007","Barking and Dagenham 006","E09000002","Barking and Dagenham","London"]
[null,"E02000008","Barking and Dagenham 007","E09000002","Barking and Dagenham","London"]
[null,"E02000009","Barking and Dagenham 008","E09000002","Barking and Dagenham","London"]
[null,"E02000010","Barking and Dagenham 009","E09000002","Barking and Dagenham","London"]
[null,"E02000011","Barking and Dagenham 010","E09000002","Barking and Dagenham","London"]
[null,"E02000012","Barking and Dagenham 011","E09000002","Barking and Dagenham","London"]
[null,"E02000013","Barking and Dagenham 012","E09000002","Barking and Dagenham","London"]
[null,"E02000014","Barking and Dagenham 013","E09000002","Barking and Dagenham","London"]
[null,"E02000015","Barking and Dagenham 014","E09000002","Barking and Dagenham","London"]
[null,"E02000016","Barking and Dagenham 015","E09000002","Barking and Dagenham","London"]
[null,"E02000017","Barking and Dagenham 016","E09000002","Barking and Dagenham","London"]
[null,"E02000018","Barking and Dagenham 017","E09000002","Barking and Dagenham","London"]
[null,"E02000019","Barking and Dagenham 018","E09000002","Barking and Dagenham","London"]
[null,"E02000020","Barking and Dagenham 019","E09000002","Barking and Dagenham","London"]
[null,"E02000021","Barking and Dagenham 020","E09000002","Barking and Dagenham","London"]
[null,"E02000022","Barking and Dagenham 021","E09000002","Barking and Dagenham","London"]
[null,"E02000023","Barking and Dagenham 022","E09000002","Barking and Dagenham","London"]
[null,"E02000024","Barnet 001","E09000003","Barnet","London"]
[null,"E02000025","Barnet 002","E09000003","Barnet","London"]
[null,"E02000026","Barnet 003","E09000003","Barnet","London"]
[null,"E02000027","Barnet 004","E09000003","Barnet","London"]
[null,"E02000028","Barnet 005","E09000003","Barnet","London"]
[null,"E02000029","Barnet 006","E09000003","Barnet","London"]
[null,"E02000030","Barnet 007","E09000003","Barnet","London"]
[null,"E02000031","Barnet 008","E09000003","Barnet","London"]
[null,"E02000032","Barnet 009","E09000003","Barnet","London"]
[null,"E02000033","Barnet 010","E09000003","Barnet","London"]
[null,"E02000034","Barnet 011","E09000003","Barnet","London"]
[null,"E02000035","Barnet 012","E09000003","Barnet","London"]
[null,"E02000036","Barnet 013","E09000003","Barnet","London"]
[null,"E02000037","Barnet 014","E09000003","Barnet","London"]
[null,"E02000038","Barnet 015","E09000003","Barnet","London"]
[null,"E02000039","Barnet 016","E09000003","Barnet","London"]
[null,"E02000040","Barnet 017","E09000003","Barnet","London"]
[null,"E02000041","Barnet 018","E09000003","Barnet","London"]
[null,"E02000042","Barnet 019","E09000003","Barnet","London"]
[null,"E02000043","Barnet 020","E09000003","Barnet","London"]
[null,"E02000044","Barnet 021","E09000003","Barnet","London"]
[null,"E02000045","Barnet 022","E09000003","Barnet","London"]
[null,"E02000046","Barnet 023","E09000003","Barnet","London"]
[null,"E02000047","Barnet 024","E09000003","Barnet","London"]
[null,"E02000048","Barnet 025","E09000003","Barnet","London"]
[null,"E02000049","Barnet 026","E09000003","Barnet","London"]
[null,"E02000050","Barnet 027","E09000003","Barnet","London"]
[null,"E02000051","Barnet 028","E09000003","Barnet","London"]
[null,"E02000052","Barnet 029","E09000003","Barnet","London"]
[null,"E02000053","Barnet 030","E09000003","Barnet","London"]
[null,"E02000054","Barnet 031","E09000003","Barnet","London"]
[null,"E02000055","Barnet 032","E09000003","Barnet","London"]
[null,"E02000056","Barnet 033","E09000003","Barnet","London"]
[null,"E02000057","Barnet 034","E09000003","Barnet","London"]
[null,"E02000058","Barnet 035","E09000003","Barnet","London"]
[null,"E02000059","Barnet 036","E09000003","Barnet","London"]
[null,"E02000060","Barnet 037","E09000003","Barnet","London"]
[null,"E02000061","Barnet 038","E09000003","Barnet","London"]
[null,"E02000062","Barnet 039","E09000003","Barnet","London"]
[null,"E02000063","Barnet 040","E09000003","Barnet","London"]
[null,"E02000064","Barnet 041","E09000003","Barnet","London"]
[null,"E02000065","Bexley 001","E09000004","Bexley","London"]
[null,"E02000066","Bexley 002","E09000004","Bexley","London"]
[null,"E02000067","Bexley 003","E09000004","Bexley","London"]
[null,"E02000068","Bexley 004","E09000004","Bexley","London"]
[null,"E02000069","Bexley 005","E09000004","Bexley","London"]
[null,"E02000070","Bexley 006","E09000004","Bexley","London"]
[null,"E02000071","Bexley 007","E09000004","Bexley","London"]
[null,"E02000072","Bexley 008","E09000004","Bexley","London"]
[null,"E02000073","Bexley 009","E09000004","Bexley","London"]
[null,"E02000074","Bexley 010","E09000004","Bexley","London"]
[null,"E02000075","Bexley 011","E09000004","Bexley","London"]
[null,"E02000077","Bexley 013","E09000004","Bexley","London"]
[null,"E02000078","Bexley 014","E09000004","Bexley","London"]
[null,"E02000079","Bexley 015","E09000004","Bexley","London"]
[null,"E02000080","Bexley 016","E09000004","Bexley","London"]
[null,"E02000081","Bexley 017","E09000004","Bexley","London"]
[null,"E02000082","Bexley 018","E09000004","Bexley","London"]
[null,"E02000083","Bexley 019","E09000004","Bexley","London"]
[null,"E02000084","Bexley 020","E09000004","Bexley","London"]
[null,"E02000085","Bexley 021","E09000004","Bexley","London"]
[null,"E02000086","Bexley 022","E09000004","Bexley","London"]
[null,"E02000087","Bexley 023","E09000004","Bexley","London"]
[null,"E02000088","Bexley 024","E09000004","Bexley","London"]
[null,"E02000089","Bexley 025","E09000004","Bexley","London"]
[null,"E02000090","Bexley 026","E09000004","Bexley","London"]
[null,"E02000091","Bexley 027","E09000004","Bexley","London"]
[null,"E02000092","Bexley 028","E09000004","Bexley","London"]
[null,"E02000093","Brent 001","E09000005","Brent","London"]
[null,"E02000094","Brent 002","E09000005","Brent","London"]
[null,"E02000095","Brent 003","E09000005","Brent","London"]
[null,"E02000096","Brent 004","E09000005","Brent","London"]
[null,"E02000097","Brent 005","E09000005","Brent","London"]
[null,"E02000098","Brent 006","E09000005","Brent","London"]
[null,"E02000099","Brent 007","E09000005","Brent","London"]
[null,"E02000100","Brent 008","E09000005","Brent","London"]
[null,"E02000101","Brent 009","E09000005","Brent","London"]
[null,"E02000102","Brent 010","E09000005","Brent","London"]
[null,"E02000103","Brent 011","E09000005","Brent","London"]
[null,"E02000104","Brent 012","E09000005","Brent","London"]
[null,"E02000105","Brent 013","E09000005","Brent","London"]
[null,"E02000106","Brent 014","E09000005","Brent","London"]
[null,"E02000107","Brent 015","E09000005","Brent","London"]
[null,"E02000108","Brent 016","E09000005","Brent","London"]
[null,"E02000109","Brent 017","E09000005","Brent","London"]
[null,"E02000110","Brent 018","E09000005","Brent","London"]
[null,"E02000111","Brent 019","E09000005","Brent","London"]
[null,"E02000112","Brent 020","E09000005","Brent","London"]
[null,"E02000113","Brent 021","E09000005","Brent","London"]
[null,"E02000114","Brent 022","E09000005","Brent","London"]
[null,"E02000115","Brent 023","E09000005","Brent","London"]
[null,"E02000116","Brent 024","E09000005","Brent","London"]
[null,"E02000117","Brent 025","E09000005","Brent","London"]
[null,"E02000118","Brent 026","E09000005","Brent","London"]
[null,"E02000119","Brent 027","E09000005","Brent","London"]
[null,"E02000120","Brent 028","E09000005","Brent","London"]
[null,"E02000121","Brent 029","E09000005","Brent","London"]
[null,"E02000122","Brent 030","E09000005","Brent","London"]
[null,"E02000123","Brent 031","E09000005","Brent","London"]
[null,"E02000124","Brent 032","E09000005","Brent","London"]
[null,"E02000125","Brent 033","E09000005","Brent","London"]
[null,"E02000126","Brent 034","E09000005","Brent","London"]
[null,"E02000127","Bromley 001","E09000006","Bromley","London"]
[null,"E02000128","Bromley 002","E09000006","Bromley","London"]
[null,"E02000130","Bromley 004","E09000006","Bromley","London"]
[null,"E02000131","Bromley 005","E09000006","Bromley","London"]
[null,"E02000132","Bromley 006","E09000006","Bromley","London"]
[null,"E02000133","Bromley 007","E09000006","Bromley","London"]
[null,"E02000134","Bromley 008","E09000006","Bromley","London"]
[null,"E02000135","Bromley 009","E09000006","Bromley","London"]
[null,"E02000136","Bromley 010","E09000006","Bromley","London"]
[null,"E02000137","Bromley 011","E09000006","Bromley","London"]
[null,"E02000138","Bromley 012","E09000006","Bromley","London"]
[null,"E02000139","Bromley 013","E09000006","Bromley","London"]
[null,"E02000140","Bromley 014","E09000006","Bromley","London"]
[null,"E02000141","Bromley 015","E09000006","Bromley","London"]
[null,"E02000142","Bromley 016","E09000006","Bromley","London"]
[null,"E02000144","Bromley 018","E09000006","Bromley","London"]
[null,"E02000145","Bromley 019","E09000006","Bromley","London"]
[null,"E02000146","Bromley 020","E09000006","Bromley","London"]
[null,"E02000147","Bromley 021","E09000006","Bromley","London"]
[null,"E02000148","Bromley 022","E09000006","Bromley","London"]
[null,"E02000149","Bromley 023","E09000006","Bromley","London"]
[null,"E02000150","Bromley 024","E09000006","Bromley","London"]
[null,"E02000151","Bromley 025","E09000006","Bromley","London"]
[null,"E02000152","Bromley 026","E09000006","Bromley","London"]
[null,"E02000153","Bromley 027","E09000006","Bromley","London"]
[null,"E02000154","Bromley 028","E09000006","Bromley","London"]
[null,"E02000155","Bromley 029","E09000006","Bromley","London"]
[null,"E02000156","Bromley 030","E09000006","Bromley","London"]
[null,"E02000157","Bromley 031","E09000006","Bromley","London"]
[null,"E02000158","Bromley 032","E09000006","Bromley","London"]
[null,"E02000159","Bromley 033","E09000006","Bromley","London"]
[null,"E02000160","Bromley 034","E09000006","Bromley","London"]
[null,"E02000161","Bromley 035","E09000006","Bromley","London"]
[null,"E02000162","Bromley 036","E09000006","Bromley","London"]
[null,"E02000163","Bromley 037","E09000006","Bromley","London"]
[null,"E02000165","Bromley 039","E09000006","Bromley","London"]
[null,"E02000166","Camden 001","E09000007","Camden","London"]
[null,"E02000167","Camden 002","E09000007","Camden","London"]
[null,"E02000168","Camden 003","E09000007","Camden","London"]
[null,"E02000169","Camden 004","E09000007","Camden","London"]
[null,"E02000170","Camden 005","E09000007","Camden","London"]
[null,"E02000171","Camden 006","E09000007","Camden","London"]
[null,"E02000172","Camden 007","E09000007","Camden","London"]
[null,"E02000173","Camden 008","E09000007","Camden","London"]
[null,"E02000174","Camden 009","E09000007","Camden","London"]
[null,"E02000175","Camden 010","E09000007","Camden","London"]
[null,"E02000176","Camden 011","E09000007","Camden","London"]
[null,"E02000177","Camden 012","E09000007","Camden","London"]
[null,"E02000178","Camden 013","E09000007","Camden","London"]
[null,"E02000179","Camden 014","E09000007","Camden","London"]
[null,"E02000180","Camden 015","E09000007","Camden","London"]
[null,"E02000181","Camden 016","E09000007","Camden","London"]
[null,"E02000182","Camden 017","E09000007","Camden","London"]
[null,"E02000183","Camden 018","E09000007","Camden","London"]
[null,"E02000184","Camden 019","E09000007","Camden","London"]
[null,"E02000185","Camden 020","E09000007","Camden","London"]
[null,"E02000186","Camden 021","E09000007","Camden","London"]
[null,"E02000187","Camden 022","E09000007","Camden","London"]
[null,"E02000188","Camden 023","E09000007","Camden","London"]
[null,"E02000189","Camden 024","E09000007","Camden","London"]
[null,"E02000190","Camden 025","E09000007","Camden","London"]
[null,"E02000191","Camden 026","E09000007","Camden","London"]
[null,"E02000192","Camden 027","E09000007","Camden","London"]
[null,"E02000193","Camden 028","E09000007","Camden","London"]
[null,"E02000194","Croydon 001","E09000008","Croydon","London"]
[null,"E02000195","Croydon 002","E09000008","Croydon","London"]
[null,"E02000196","Croydon 003","E09000008","Croydon","London"]
[null,"E02000197","Croydon 004","E09000008","Croydon","London"]
[null,"E02000198","Croydon 005","E09000008","Croydon","London"]
[null,"E02000199","Croydon 006","E09000008","Croydon","London"]
[null,"E02000200","Croydon 007","E09000008","Croydon","London"]
[null,"E02000201","Croydon 008","E09000008","Croydon","London"]
[null,"E02000202","Croydon 009","E09000008","Croydon","London"]
[null,"E02000203","Croydon 010","E09000008","Croydon","London"]
[null,"E02000204","Croydon 011","E09000008","Croydon","London"]
[null,"E02000206","Croydon 013","E09000008","Croydon","London"]
[null,"E02000207","Croydon 014","E09000008","Croydon","London"]
[null,"E02000208","Croydon 015","E09000008","Croydon","London"]
[null,"E02000209","Croydon 016","E09000008","Croydon","London"]
[null,"E02000210","Croydon 017","E09000008","Croydon","London"]
[null,"E02000211","Croydon 018","E09000008","Croydon","London"]
[null,"E02000212","Croydon 019","E09000008","Croydon","London"]
[null,"E02000213","Croydon 020","E09000008","Croydon","London"]
[null,"E02000214","Croydon 021","E09000008","Croydon","London"]
[null,"E02000215","Croydon 022","E09000008","Croydon","London"]
[null,"E02000216","Croydon 023","E09000008","Croydon","London"]
[null,"E02000217","Croydon 024","E09000008","Croydon","London"]
[null,"E02000218","Croydon 025","E09000008","Croydon","London"]
[null,"E02000219","Croydon 026","E09000008","Croydon","London"]
[null,"E02000220","Croydon 027","E09000008","Croydon","London"]
[null,"E02000221","Croydon 028","E09000008","Croydon","London"]
[null,"E02000222","Croydon 029","E09000008","Croydon","London"]
[null,"E02000223","Croydon 030","E09000008","Croydon","London"]
[null,"E02000224","Croydon 031","E09000008","Croydon","London"]
[null,"E02000225","Croydon 032","E09000008","Croydon","London"]
[null,"E02000226","Croydon 033","E09000008","Croydon","London"]
[null,"E02000227","Croydon 034","E09000008","Croydon","London"]
[null,"E02000228","Croydon 035","E09000008","Croydon","London"]
[null,"E02000229","Croydon 036","E09000008","Croydon","London"]
[null,"E02000230","Croydon 037","E09000008","Croydon","London"]
[null,"E02000231","Croydon 038","E09000008","Croydon","London"]
[null,"E02000232","Croydon 039","E09000008","Croydon","London"]
[null,"E02000233","Croydon 040","E09000008","Croydon","London"]
[null,"E02000234","Croydon 041","E09000008","Croydon","London"]
[null,"E02000235","Croydon 042","E09000008","Croydon","London"]
[null,"E02000236","Croydon 043","E09000008","Croydon","London"]
[null,"E02000237","Croydon 044","E09000008","Croydon","London"]
[null,"E02000238","Ealing 001","E09000009","Ealing","London"]
[null,"E02000239","Ealing 002","E09000009","Ealing","London"]
[null,"E02000240","Ealing 003","E09000009","Ealing","London"]
[null,"E02000241","Ealing 004","E09000009","Ealing","London"]
[null,"E02000242","Ealing 005","E09000009","Ealing","London"]
[null,"E02000243","Ealing 006","E09000009","Ealing","London"]
[null,"E02000244","Ealing 007","E09000009","Ealing","London"]
[null,"E02000245","Ealing 008","E09000009","Ealing","London"]
[null,"E02000246","Ealing 009","E09000009","Ealing","London"]
[null,"E02000247","Ealing 010","E09000009","Ealing","London"]
[null,"E02000248","Ealing 011","E09000009","Ealing","London"]
[null,"E02000249","Ealing 012","E09000009","Ealing","London"]
[null,"E02000250","Ealing 013","E09000009","Ealing","London"]
[null,"E02000251","Ealing 014","E09000009","Ealing","London"]
[null,"E02000252","Ealing 015","E09000009","Ealing","London"]
[null,"E02000253","Ealing 016","E09000009","Ealing","London"]
[null,"E02000254","Ealing 017","E09000009","Ealing","London"]
[null,"E02000255","Ealing 018","E09000009","Ealing","London"]
[null,"E02000256","Ealing 019","E09000009","Ealing","London"]
[null,"E02000257","Ealing 020","E09000009","Ealing","London"]
[null,"E02000258","Ealing 021","E09000009","Ealing","London"]
[null,"E02000259","Ealing 022","E09000009","Ealing","London"]
[null,"E02000260","Ealing 023","E09000009","Ealing","London"]
[null,"E02000261","Ealing 024","E09000009","Ealing","London"]
[null,"E02000262","Ealing 025","E09000009","Ealing","London"]
[null,"E02000263","Ealing 026","E09000009","Ealing","London"]
[null,"E02000264","Ealing 027","E09000009","Ealing","London"]
[null,"E02000265","Ealing 028","E09000009","Ealing","London"]
[null,"E02000266","Ealing 029","E09000009","Ealing","London"]
[null,"E02000267","Ealing 030","E09000009","Ealing","London"]
[null,"E02000268","Ealing 031","E09000009","Ealing","London"]
[null,"E02000269","Ealing 032","E09000009","Ealing","London"]
[null,"E02000270","Ealing 033","E09000009","Ealing","London"]
[null,"E02000271","Ealing 034","E09000009","Ealing","London"]
[null,"E02000272","Ealing 035","E09000009","Ealing","London"]
[null,"E02000274","Ealing 037","E09000009","Ealing","London"]
[null,"E02000275","Ealing 038","E09000009","Ealing","London"]
[null,"E02000276","Ealing 039","E09000009","Ealing","London"]
[null,"E02000277","Enfield 001","E09000010","Enfield","London"]
[null,"E02000278","Enfield 002","E09000010","Enfield","London"]
[null,"E02000279","Enfield 003","E09000010","Enfield","London"]
[null,"E02000280","Enfield 004","E09000010","Enfield","London"]
[null,"E02000281","Enfield 005","E09000010","Enfield","London"]
[null,"E02000282","Enfield 006","E09000010","Enfield","London"]
[null,"E02000283","Enfield 007","E09000010","Enfield","London"]
[null,"E02000284","Enfield 008","E09000010","Enfield","London"]
[null,"E02000285","Enfield 009","E09000010","Enfield","London"]
[null,"E02000286","Enfield 010","E09000010","Enfield","London"]
[null,"E02000287","Enfield 011","E09000010","Enfield","London"]
[null,"E02000288","Enfield 012","E09000010","Enfield","London"]
[null,"E02000289","Enfield 013","E09000010","Enfield","London"]
[null,"E02000290","Enfield 014","E09000010","Enfield","London"]
[null,"E02000291","Enfield 015","E09000010","Enfield","London"]
[null,"E02000292","Enfield 016","E09000010","Enfield","London"]
[null,"E02000293","Enfield 017","E09000010","Enfield","London"]
[null,"E02000294","Enfield 018","E09000010","Enfield","London"]
[null,"E02000295","Enfield 019","E09000010","Enfield","London"]
[null,"E02000296","Enfield 020","E09000010","Enfield","London"]
[null,"E02000297","Enfield 021","E09000010","Enfield","London"]
[null,"E02000298","Enfield 022","E09000010","Enfield","London"]
[null,"E02000299","Enfield 023","E09000010","Enfield","London"]
[null,"E02000300","Enfield 024","E09000010","Enfield","London"]
[null,"E02000301","Enfield 025","E09000010","Enfield","London"]
[null,"E02000302","Enfield 026","E09000010","Enfield","London"]
[null,"E02000303","Enfield 027","E09000010","Enfield","London"]
[null,"E02000304","Enfield 028","E09000010","Enfield","London"]
[null,"E02000305","Enfield 029","E09000010","Enfield","London"]
[null,"E02000306","Enfield 030","E09000010","Enfield","London"]
[null,"E02000307","Enfield 031","E09000010","Enfield","London"]
[null,"E02000308","Enfield 032","E09000010","Enfield","London"]
[null,"E02000309","Enfield 033","E09000010","Enfield","London"]
[null,"E02000311","Enfield 035","E09000010","Enfield","London"]
[null,"E02000312","Enfield 036","E09000010","Enfield","London"]
[null,"E02000313","Greenwich 001","E09000011","Greenwich","London"]
[null,"E02000314","Greenwich 002","E09000011","Greenwich","London"]
[null,"E02000315","Greenwich 003","E09000011","Greenwich","London"]
[null,"E02000316","Greenwich 004","E09000011","Greenwich","London"]
[null,"E02000317","Greenwich 005","E09000011","Greenwich","London"]
[null,"E02000318","Greenwich 006","E09000011","Greenwich","London"]
[null,"E02000319","Greenwich 007","E09000011","Greenwich","London"]
[null,"E02000320","Greenwich 008","E09000011","Greenwich","London"]
[null,"E02000321","Greenwich 009","E09000011","Greenwich","London"]
[null,"E02000323","Greenwich 011","E09000011","Greenwich","London"]
[null,"E02000324","Greenwich 012","E09000011","Greenwich","London"]
[null,"E02000326","Greenwich 014","E09000011","Greenwich","London"]
[null,"E02000327","Greenwich 015","E09000011","Greenwich","London"]
[null,"E02000328","Greenwich 016","E09000011","Greenwich","London"]
[null,"E02000329","Greenwich 017","E09000011","Greenwich","London"]
[null,"E02000331","Greenwich 019","E09000011","Greenwich","London"]
[null,"E02000332","Greenwich 020","E09000011","Greenwich","London"]
[null,"E02000333","Greenwich 021","E09000011","Greenwich","London"]
[null,"E02000334","Greenwich 022","E09000011","Greenwich","London"]
[null,"E02000335","Greenwich 023","E09000011","Greenwich","London"]
[null,"E02000337","Greenwich 025","E09000011","Greenwich","London"]
[null,"E02000339","Greenwich 027","E09000011","Greenwich","London"]
[null,"E02000340","Greenwich 028","E09000011","Greenwich","London"]
[null,"E02000341","Greenwich 029","E09000011","Greenwich","London"]
[null,"E02000342","Greenwich 030","E09000011","Greenwich","London"]
[null,"E02000343","Greenwich 031","E09000011","Greenwich","London"]
[null,"E02000344","Greenwich 032","E09000011","Greenwich","London"]
[null,"E02000345","Hackney 001","E09000012","Hackney","London"]
[null,"E02000346","Hackney 002","E09000012","Hackney","London"]
[null,"E02000347","Hackney 003","E09000012","Hackney","London"]
[null,"E02000348","Hackney 004","E09000012","Hackney","London"]
[null,"E02000350","Hackney 006","E09000012","Hackney","London"]
[null,"E02000351","Hackney 007","E09000012","Hackney","London"]
[null,"E02000352","Hackney 008","E09000012","Hackney","London"]
[null,"E02000353","Hackney 009","E09000012","Hackney","London"]
[null,"E02000354","Hackney 010","E09000012","Hackney","London"]
[null,"E02000355","Hackney 011","E09000012","Hackney","London"]
[null,"E02000356","Hackney 012","E09000012","Hackney","London"]
[null,"E02000357","Hackney 013","E09000012","Hackney","London"]
[null,"E02000358","Hackney 014","E09000012","Hackney","London"]
[null,"E02000359","Hackney 015","E09000012","Hackney","London"]
[null,"E02000360","Hackney 016","E09000012","Hackney","London"]
[null,"E02000361","Hackney 017","E09000012","Hackney","London"]
[null,"E02000362","Hackney 018","E09000012","Hackney","London"]
[null,"E02000363","Hackney 019","E09000012","Hackney","London"]
[null,"E02000364","Hackney 020","E09000012","Hackney","London"]
[null,"E02000365","Hackney 021","E09000012","Hackney","London"]
[null,"E02000366","Hackney 022","E09000012","Hackney","London"]
[null,"E02000367","Hackney 023","E09000012","Hackney","London"]
[null,"E02000368","Hackney 024","E09000012","Hackney","London"]
[null,"E02000369","Hackney 025","E09000012","Hackney","London"]
[null,"E02000370","Hackney 026","E09000012","Hackney","London"]
[null,"E02000371","Hackney 027","E09000012","Hackney","London"]
[null,"E02000372","Hammersmith and Fulham 001","E09000013","Hammersmith and Fulham","London"]
[null,"E02000373","Hammersmith and Fulham 002","E09000013","Hammersmith and Fulham","London"]
[null,"E02000374","Hammersmith and Fulham 003","E09000013","Hammersmith and Fulham","London"]
[null,"E02000375","Hammersmith and Fulham 004","E09000013","Hammersmith and Fulham","London"]
[null,"E02000376","Hammersmith and Fulham 005","E09000013","Hammersmith and Fulham","London"]
[null,"E02000377","Hammersmith and Fulham 006","E09000013","Hammersmith and Fulham","London"]
[null,"E02000378","Hammersmith and Fulham 007","E09000013","Hammersmith and Fulham","London"]
[null,"E02000379","Hammersmith and Fulham 008","E09000013","Hammersmith and Fulham","London"]
[null,"E02000380","Hammersmith and Fulham 009","E09000013","Hammersmith and Fulham","London"]
[null,"E02000381","Hammersmith and Fulham 010","E09000013","Hammersmith and Fulham","London"]
[null,"E02000382","Hammersmith and Fulham 011","E09000013","Hammersmith and Fulham","London"]
[null,"E02000383","Hammersmith and Fulham 012","E09000013","Hammersmith and Fulham","London"]
[null,"E02000384","Hammersmith and Fulham 013","E09000013","Hammersmith and Fulham","London"]
[null,"E02000385","Hammersmith and Fulham 014","E09000013","Hammersmith and Fulham","London"]
[null,"E02000386","Hammersmith and Fulham 015","E09000013","Hammersmith and Fulham","London"]
[null,"E02000387","Hammersmith and Fulham 016","E09000013","Hammersmith and Fulham","London"]
[null,"E02000388","Hammersmith and Fulham 017","E09000013","Hammersmith and Fulham","London"]
[null,"E02000389","Hammersmith and Fulham 018","E09000013","Hammersmith and Fulham","London"]
[null,"E02000390","Hammersmith and Fulham 019","E09000013","Hammersmith and Fulham","London"]
[null,"E02000391","Hammersmith and Fulham 020","E09000013","Hammersmith and Fulham","London"]
[null,"E02000392","Hammersmith and Fulham 021","E09000013","Hammersmith and Fulham","London"]
[null,"E02000393","Hammersmith and Fulham 022","E09000013","Hammersmith and Fulham","London"]
[null,"E02000394","Hammersmith and Fulham 023","E09000013","Hammersmith and Fulham","London"]
[null,"E02000395","Hammersmith and Fulham 024","E09000013","Hammersmith and Fulham","London"]
[null,"E02000396","Hammersmith and Fulham 025","E09000013","Hammersmith and Fulham","London"]
[null,"E02000397","Haringey 001","E09000014","Haringey","London"]
[null,"E02000398","Haringey 002","E09000014","Haringey","London"]
[null,"E02000400","Haringey 004","E09000014","Haringey","London"]
[null,"E02000401","Haringey 005","E09000014","Haringey","London"]
[null,"E02000402","Haringey 006","E09000014","Haringey","London"]
[null,"E02000403","Haringey 007","E09000014","Haringey","London"]
[null,"E02000404","Haringey 008","E09000014","Haringey","London"]
[null,"E02000405","Haringey 009","E09000014","Haringey","London"]
[null,"E02000406","Haringey 010","E09000014","Haringey","London"]
[null,"E02000407","Haringey 011","E09000014","Haringey","London"]
[null,"E02000408","Haringey 012","E09000014","Haringey","London"]
[null,"E02000409","Haringey 013","E09000014","Haringey","London"]
[null,"E02000410","Haringey 014","E09000014","Haringey","London"]
[null,"E02000411","Haringey 015","E09000014","Haringey","London"]
[null,"E02000412","Haringey 016","E09000014","Haringey","London"]
[null,"E02000413","Haringey 017","E09000014","Haringey","London"]
[null,"E02000414","Haringey 018","E09000014","Haringey","London"]
[null,"E02000415","Haringey 019","E09000014","Haringey","London"]
[null,"E02000416","Haringey 020","E09000014","Haringey","London"]
[null,"E02000417","Haringey 021","E09000014","Haringey","London"]
[null,"E02000418","Haringey 022","E09000014","Haringey","London"]
[null,"E02000419","Haringey 023","E09000014","Haringey","London"]
[null,"E02000420","Haringey 024","E09000014","Haringey","London"]
[null,"E02000421","Haringey 025","E09000014","Haringey","London"]
[null,"E02000422","Haringey 026","E09000014","Haringey","London"]
[null,"E02000423","Haringey 027","E09000014","Haringey","London"]
[null,"E02000424","Haringey 028","E09000014","Haringey","London"]
[null,"E02000425","Haringey 029","E09000014","Haringey","London"]
[null,"E02000426","Haringey 030","E09000014","Haringey","London"]
[null,"E02000427","Haringey 031","E09000014","Haringey","London"]
[null,"E02000428","Haringey 032","E09000014","Haringey","London"]
[null,"E02000429","Haringey 033","E09000014","Haringey","London"]
[null,"E02000430","Haringey 034","E09000014","Haringey","London"]
[null,"E02000431","Haringey 035","E09000014","Haringey","London"]
[null,"E02000432","Haringey 036","E09000014","Haringey","London"]
[null,"E02000433","Harrow 001","E09000015","Harrow","London"]
[null,"E02000434","Harrow 002","E09000015","Harrow","London"]
[null,"E02000435","Harrow 003","E09000015","Harrow","London"]
[null,"E02000436","Harrow 004","E09000015","Harrow","London"]
[null,"E02000437","Harrow 005","E09000015","Harrow","London"]
[null,"E02000438","Harrow 006","E09000015","Harrow","London"]
[null,"E02000439","Harrow 007","E09000015","Harrow","London"]
[null,"E02000440","Harrow 008","E09000015","Harrow","London"]
[null,"E02000441","Harrow 009","E09000015","Harrow","London"]
[null,"E02000442","Harrow 010","E09000015","Harrow","London"]
[null,"E02000443","Harrow 011","E09000015","Harrow","London"]
[null,"E02000444","Harrow 012","E09000015","Harrow","London"]
[null,"E02000445","Harrow 013","E09000015","Harrow","London"]
[null,"E02000447","Harrow 015","E09000015","Harrow","London"]
[null,"E02000448","Harrow 016","E09000015","Harrow","London"]
[null,"E02000449","Harrow 017","E09000015","Harrow","London"]
[null,"E02000451","Harrow 019","E09000015","Harrow","London"]
[null,"E02000452","Harrow 020","E09000015","Harrow","London"]
[null,"E02000453","Harrow 021","E09000015","Harrow","London"]
[null,"E02000454","Harrow 022","E09000015","Harrow","London"]
[null,"E02000455","Harrow 023","E09000015","Harrow","London"]
[null,"E02000456","Harrow 024","E09000015","Harrow","London"]
[null,"E02000457","Harrow 025","E09000015","Harrow","London"]
[null,"E02000459","Harrow 027","E09000015","Harrow","London"]
[null,"E02000460","Harrow 028","E09000015","Harrow","London"]
[null,"E02000461","Harrow 029","E09000015","Harrow","London"]
[null,"E02000462","Harrow 030","E09000015","Harrow","London"]
[null,"E02000463","Harrow 031","E09000015","Harrow","London"]
[null,"E02000464","Havering 001","E09000016","Havering","London"]
[null,"E02000465","Havering 002","E09000016","Havering","London"]
[null,"E02000466","Havering 003","E09000016","Havering","London"]
[null,"E02000467","Havering 004","E09000016","Havering","London"]
[null,"E02000468","Havering 005","E09000016","Havering","London"]
[null,"E02000469","Havering 006","E09000016","Havering","London"]
[null,"E02000470","Havering 007","E09000016","Havering","London"]
[null,"E02000471","Havering 008","E09000016","Havering","London"]
[null,"E02000472","Havering 009","E09000016","Havering","London"]
[null,"E02000473","Havering 010","E09000016","Havering","London"]
[null,"E02000474","Havering 011","E09000016","Havering","London"]
[null,"E02000475","Havering 012","E09000016","Havering","London"]
[null,"E02000476","Havering 013","E09000016","Havering","London"]
[null,"E02000477","Havering 014","E09000016","Havering","London"]
[null,"E02000478","Havering 015","E09000016","Havering","London"]
[null,"E02000479","Havering 016","E09000016","Havering","London"]
[null,"E02000480","Havering 017","E09000016","Havering","London"]
[null,"E02000481","Havering 018","E09000016","Havering","London"]
[null,"E02000482","Havering 019","E09000016","Havering","London"]
[null,"E02000483","Havering 020","E09000016","Havering","London"]
[null,"E02000484","Havering 021","E09000016","Havering","London"]
[null,"E02000485","Havering 022","E09000016","Havering","London"]
[null,"E02000486","Havering 023","E09000016","Havering","London"]
[null,"E02000487","Havering 024","E09000016","Havering","London"]
[null,"E02000488","Havering 025","E09000016","Havering","London"]
[null,"E02000489","Havering 026","E09000016","Havering","London"]
[null,"E02000490","Havering 027","E09000016","Havering","London"]
[null,"E02000491","Havering 028","E09000016","Havering","London"]
[null,"E02000492","Havering 029","E09000016","Havering","London"]
[null,"E02000493","Havering 030","E09000016","Havering","London"]
[null,"E02000494","Hillingdon 001","E09000017","Hillingdon","London"]
[null,"E02000495","Hillingdon 002","E09000017","Hillingdon","London"]
[null,"E02000496","Hillingdon 003","E09000017","Hillingdon","London"]
[null,"E02000497","Hillingdon 004","E09000017","Hillingdon","London"]
[null,"E02000498","Hillingdon 005","E09000017","Hillingdon","London"]
[null,"E02000499","Hillingdon 006","E09000017","Hillingdon","London"]
[null,"E02000500","Hillingdon 007","E09000017","Hillingdon","London"]
[null,"E02000501","Hillingdon 008","E09000017","Hillingdon","London"]
[null,"E02000502","Hillingdon 009","E09000017","Hillingdon","London"]
[null,"E02000503","Hillingdon 010","E09000017","Hillingdon","London"]
[null,"E02000504","Hillingdon 011","E09000017","Hillingdon","London"]
[null,"E02000506","Hillingdon 013","E09000017","Hillingdon","London"]
[null,"E02000507","Hillingdon 014","E09000017","Hillingdon","London"]
[null,"E02000508","Hillingdon 015","E09000017","Hillingdon","London"]
[null,"E02000509","Hillingdon 016","E09000017","Hillingdon","London"]
[null,"E02000510","Hillingdon 017","E09000017","Hillingdon","London"]
[null,"E02000511","Hillingdon 018","E09000017","Hillingdon","London"]
[null,"E02000512","Hillingdon 019","E09000017","Hillingdon","London"]
[null,"E02000513","Hillingdon 020","E09000017","Hillingdon","London"]
[null,"E02000514","Hillingdon 021","E09000017","Hillingdon","London"]
[null,"E02000515","Hillingdon 022","E09000017","Hillingdon","London"]
[null,"E02000516","Hillingdon 023","E09000017","Hillingdon","London"]
[null,"E02000517","Hillingdon 024","E09000017","Hillingdon","London"]
[null,"E02000518","Hillingdon 025","E09000017","Hillingdon","London"]
[null,"E02000519","Hillingdon 026","E09000017","Hillingdon","London"]
[null,"E02000520","Hillingdon 027","E09000017","Hillingdon","London"]
[null,"E02000521","Hillingdon 028","E09000017","Hillingdon","London"]
[null,"E02000522","Hillingdon 029","E09000017","Hillingdon","London"]
[null,"E02000523","Hillingdon 030","E09000017","Hillingdon","London"]
[null,"E02000524","Hillingdon 031","E09000017","Hillingdon","London"]
[null,"E02000525","Hillingdon 032","E09000017","Hillingdon","London"]
[null,"E02000526","Hounslow 001","E09000018","Hounslow","London"]
[null,"E02000528","Hounslow 003","E09000018","Hounslow","London"]
[null,"E02000529","Hounslow 004","E09000018","Hounslow","London"]
[null,"E02000530","Hounslow 005","E09000018","Hounslow","London"]
[null,"E02000531","Hounslow 006","E09000018","Hounslow","London"]
[null,"E02000532","Hounslow 007","E09000018","Hounslow","London"]
[null,"E02000533","Hounslow 008","E09000018","Hounslow","London"]
[null,"E02000534","Hounslow 009","E09000018","Hounslow","London"]
[null,"E02000535","Hounslow 010","E09000018","Hounslow","London"]
[null,"E02000536","Hounslow 011","E09000018","Hounslow","London"]
[null,"E02000537","Hounslow 012","E09000018","Hounslow","London"]
[null,"E02000538","Hounslow 013","E09000018","Hounslow","London"]
[null,"E02000539","Hounslow 014","E09000018","Hounslow","London"]
[null,"E02000540","Hounslow 015","E09000018","Hounslow","London"]
[null,"E02000541","Hounslow 016","E09000018","Hounslow","London"]
[null,"E02000542","Hounslow 017","E09000018","Hounslow","London"]
[null,"E02000543","Hounslow 018","E09000018","Hounslow","London"]
[null,"E02000544","Hounslow 019","E09000018","Hounslow","London"]
[null,"E02000545","Hounslow 020","E09000018","Hounslow","London"]
[null,"E02000546","Hounslow 021","E09000018","Hounslow","London"]
[null,"E02000547","Hounslow 022","E09000018","Hounslow","London"]
[null,"E02000548","Hounslow 023","E09000018","Hounslow","London"]
[null,"E02000549","Hounslow 024","E09000018","Hounslow","London"]
[null,"E02000550","Hounslow 025","E09000018","Hounslow","London"]
[null,"E02000551","Hounslow 026","E09000018","Hounslow","London"]
[null,"E02000552","Hounslow 027","E09000018","Hounslow","London"]
[null,"E02000553","Hounslow 028","E09000018","Hounslow","London"]
[null,"E02000554","Islington 001","E09000019","Islington","London"]
[null,"E02000555","Islington 002","E09000019","Islington","London"]
[null,"E02000556","Islington 003","E09000019","Islington","London"]
[null,"E02000557","Islington 004","E09000019","Islington","London"]
[null,"E02000558","Islington 005","E09000019","Islington","London"]
[null,"E02000559","Islington 006","E09000019","Islington","London"]
[null,"E02000560","Islington 007","E09000019","Islington","London"]
[null,"E02000561","Islington 008","E09000019","Islington","London"]
[null,"E02000562","Islington 009","E09000019","Islington","London"]
[null,"E02000563","Islington 010","E09000019","Islington","London"]
[null,"E02000564","Islington 011","E09000019","Islington","London"]
[null,"E02000565","Islington 012","E09000019","Islington","London"]
[null,"E02000566","Islington 013","E09000019","Islington","London"]
[null,"E02000567","Islington 014","E09000019","Islington","London"]
[null,"E02000568","Islington 015","E09000019","Islington","London"]
[null,"E02000569","Islington 016","E09000019","Islington","London"]
[null,"E02000570","Islington 017","E09000019","Islington","London"]
[null,"E02000571","Islington 018","E09000019","Islington","London"]
[null,"E02000572","Islington 019","E09000019","Islington","London"]
[null,"E02000573","Islington 020","E09000019","Islington","London"]
[null,"E02000574","Islington 021","E09000019","Islington","London"]
[null,"E02000575","Islington 022","E09000019","Islington","London"]
[null,"E02000576","Islington 023","E09000019","Islington","London"]
[null,"E02000577","Kensington and Chelsea 001","E09000020","Kensington and Chelsea","London"]
[null,"E02000578","Kensington and Chelsea 002","E09000020","Kensington and Chelsea","London"]
[null,"E02000579","Kensington and Chelsea 003","E09000020","Kensington and Chelsea","London"]
[null,"E02000580","Kensington and Chelsea 004","E09000020","Kensington and Chelsea","London"]
[null,"E02000581","Kensington and Chelsea 005","E09000020","Kensington and Chelsea","London"]
[null,"E02000582","Kensington and Chelsea 006","E09000020","Kensington and Chelsea","London"]
[null,"E02000583","Kensington and Chelsea 007","E09000020","Kensington and Chelsea","London"]
[null,"E02000584","Kensington and Chelsea 008","E09000020","Kensington and Chelsea","London"]
[null,"E02000585","Kensington and Chelsea 009","E09000020","Kensington and Chelsea","London"]
[null,"E02000586","Kensington and Chelsea 010","E09000020","Kensington and Chelsea","London"]
[null,"E02000587","Kensington and Chelsea 011","E09000020","Kensington and Chelsea","London"]
[null,"E02000588","Kensington and Chelsea 012","E09000020","Kensington and Chelsea","London"]
[null,"E02000589","Kensington and Chelsea 013","E09000020","Kensington and Chelsea","London"]
[null,"E02000590","Kensington and Chelsea 014","E09000020","Kensington and Chelsea","London"]
[null,"E02000591","Kensington and Chelsea 015","E09000020","Kensington and Chelsea","London"]
[null,"E02000592","Kensington and Chelsea 016","E09000020","Kensington and Chelsea","London"]
[null,"E02000593","Kensington and Chelsea 017","E09000020","Kensington and Chelsea","London"]
[null,"E02000594","Kensington and Chelsea 018","E09000020","Kensington and Chelsea","London"]
[null,"E02000595","Kensington and Chelsea 019","E09000020","Kensington and Chelsea","London"]
[null,"E02000596","Kensington and Chelsea 020","E09000020","Kensington and Chelsea","London"]
[null,"E02000597","Kensington and Chelsea 021","E09000020","Kensington and Chelsea","London"]
[null,"E02000598","Kingston upon Thames 001","E09000021","Kingston upon Thames","London"]
[null,"E02000599","Kingston upon Thames 002","E09000021","Kingston upon Thames","London"]
[null,"E02000600","Kingston upon Thames 003","E09000021","Kingston upon Thames","London"]
[null,"E02000601","Kingston upon Thames 004","E09000021","Kingston upon Thames","London"]
[null,"E02000602","Kingston upon Thames 005","E09000021","Kingston upon Thames","London"]
[null,"E02000603","Kingston upon Thames 006","E09000021","Kingston upon Thames","London"]
[null,"E02000604","Kingston upon Thames 007","E09000021","Kingston upon Thames","London"]
[null,"E02000605","Kingston upon Thames 008","E09000021","Kingston upon Thames","London"]
[null,"E02000606","Kingston upon Thames 009","E09000021","Kingston upon Thames","London"]
[null,"E02000607","Kingston upon Thames 010","E09000021","Kingston upon Thames","London"]
[null,"E02000608","Kingston upon Thames 011","E09000021","Kingston upon Thames","London"]
[null,"E02000609","Kingston upon Thames 012","E09000021","Kingston upon Thames","London"]
[null,"E02000610","Kingston upon Thames 013","E09000021","Kingston upon Thames","London"]
[null,"E02000611","Kingston upon Thames 014","E09000021","Kingston upon Thames","London"]
[null,"E02000612","Kingston upon Thames 015","E09000021","Kingston upon Thames","London"]
[null,"E02000613","Kingston upon Thames 016","E09000021","Kingston upon Thames","London"]
[null,"E02000614","Kingston upon Thames 017","E09000021","Kingston upon Thames","London"]
[null,"E02000615","Kingston upon Thames 018","E09000021","Kingston upon Thames","London"]
[null,"E02000616","Kingston upon Thames 019","E09000021","Kingston upon Thames","London"]
[null,"E02000617","Kingston upon Thames 020","E09000021","Kingston upon Thames","London"]
[null,"E02000619","Lambeth 002","E09000022","Lambeth","London"]
[null,"E02000620","Lambeth 003","E09000022","Lambeth","London"]
[null,"E02000621","Lambeth 004","E09000022","Lambeth","London"]
[null,"E02000622","Lambeth 005","E09000022","Lambeth","London"]
[null,"E02000623","Lambeth 006","E09000022","Lambeth","London"]
[null,"E02000624","Lambeth 007","E09000022","Lambeth","London"]
[null,"E02000625","Lambeth 008","E09000022","Lambeth","London"]
[null,"E02000626","Lambeth 009","E09000022","Lambeth","London"]
[null,"E02000627","Lambeth 010","E09000022","Lambeth","London"]
[null,"E02000628","Lambeth 011","E09000022","Lambeth","London"]
[null,"E02000629","Lambeth 012","E09000022","Lambeth","London"]
[null,"E02000630","Lambeth 013","E09000022","Lambeth","London"]
[null,"E02000631","Lambeth 014","E09000022","Lambeth","London"]
[null,"E02000632","Lambeth 015","E09000022","Lambeth","London"]
[null,"E02000633","Lambeth 016","E09000022","Lambeth","London"]
[null,"E02000634","Lambeth 017","E09000022","Lambeth","London"]
[null,"E02000635","Lambeth 018","E09000022","Lambeth","London"]
[null,"E02000636","Lambeth 019","E09000022","Lambeth","London"]
[null,"E02000637","Lambeth 020","E09000022","Lambeth","London"]
[null,"E02000638","Lambeth 021","E09000022","Lambeth","London"]
[null,"E02000639","Lambeth 022","E09000022","Lambeth","London"]
[null,"E02000640","Lambeth 023","E09000022","Lambeth","London"]
[null,"E02000641","Lambeth 024","E09000022","Lambeth","London"]
[null,"E02000642","Lambeth 025","E09000022","Lambeth","London"]
[null,"E02000643","Lambeth 026","E09000022","Lambeth","London"]
[null,"E02000644","Lambeth 027","E09000022","Lambeth","London"]
[null,"E02000645","Lambeth 028","E09000022","Lambeth","London"]
[null,"E02000646","Lambeth 029","E09000022","Lambeth","London"]
[null,"E02000647","Lambeth 030","E09000022","Lambeth","London"]
[null,"E02000648","Lambeth 031","E09000022","Lambeth","London"]
[null,"E02000649","Lambeth 032","E09000022","Lambeth","London"]
[null,"E02000650","Lambeth 033","E09000022","Lambeth","London"]
[null,"E02000651","Lambeth 034","E09000022","Lambeth","London"]
[null,"E02000652","Lambeth 035","E09000022","Lambeth","London"]
[null,"E02000653","Lewisham 001","E09000023","Lewisham","London"]
[null,"E02000654","Lewisham 002","E09000023","Lewisham","London"]
[null,"E02000655","Lewisham 003","E09000023","Lewisham","London"]
[null,"E02000657","Lewisham 005","E09000023","Lewisham","London"]
[null,"E02000658","Lewisham 006","E09000023","Lewisham","London"]
[null,"E02000659","Lewisham 007","E09000023","Lewisham","London"]
[null,"E02000660","Lewisham 008","E09000023","Lewisham","London"]
[null,"E02000661","Lewisham 009","E09000023","Lewisham","London"]
[null,"E02000662","Lewisham 010","E09000023","Lewisham","London"]
[null,"E02000663","Lewisham 011","E09000023","Lewisham","London"]
[null,"E02000664","Lewisham 012","E09000023","Lewisham","London"]
[null,"E02000665","Lewisham 013","E09000023","Lewisham","London"]
[null,"E02000666","Lewisham 014","E09000023","Lewisham","London"]
[null,"E02000667","Lewisham 015","E09000023","Lewisham","London"]
[null,"E02000668","Lewisham 016","E09000023","Lewisham","London"]
[null,"E02000669","Lewisham 017","E09000023","Lewisham","London"]
[null,"E02000670","Lewisham 018","E09000023","Lewisham","London"]
[null,"E02000671","Lewisham 019","E09000023","Lewisham","London"]
[null,"E02000672","Lewisham 020","E09000023","Lewisham","London"]
[null,"E02000673","Lewisham 021","E09000023","Lewisham","London"]
[null,"E02000674","Lewisham 022","E09000023","Lewisham","London"]
[null,"E02000675","Lewisham 023","E09000023","Lewisham","London"]
[null,"E02000676","Lewisham 024","E09000023","Lewisham","London"]
[null,"E02000677","Lewisham 025","E09000023","Lewisham","London"]
[null,"E02000678","Lewisham 026","E09000023","Lewisham","London"]
[null,"E02000679","Lewisham 027","E09000023","Lewisham","London"]
[null,"E02000680","Lewisham 028","E09000023","Lewisham","London"]
[null,"E02000681","Lewisham 029","E09000023","Lewisham","London"]
[null,"E02000682","Lewisham 030","E09000023","Lewisham","London"]
[null,"E02000683","Lewisham 031","E09000023","Lewisham","London"]
[null,"E02000685","Lewisham 033","E09000023","Lewisham","London"]
[null,"E02000686","Lewisham 034","E09000023","Lewisham","London"]
[null,"E02000687","Lewisham 035","E09000023","Lewisham","London"]
[null,"E02000689","Merton 001","E09000024","Merton","London"]
[null,"E02000690","Merton 002","E09000024","Merton","London"]
[null,"E02000691","Merton 003","E09000024","Merton","London"]
[null,"E02000692","Merton 004","E09000024","Merton","London"]
[null,"E02000693","Merton 005","E09000024","Merton","London"]
[null,"E02000694","Merton 006","E09000024","Merton","London"]
[null,"E02000695","Merton 007","E09000024","Merton","London"]
[null,"E02000696","Merton 008","E09000024","Merton","London"]
[null,"E02000697","Merton 009","E09000024","Merton","London"]
[null,"E02000698","Merton 010","E09000024","Merton","London"]
[null,"E02000699","Merton 011","E09000024","Merton","London"]
[null,"E02000700","Merton 012","E09000024","Merton","London"]
[null,"E02000701","Merton 013","E09000024","Merton","London"]
[null,"E02000702","Merton 014","E09000024","Merton","London"]
[null,"E02000703","Merton 015","E09000024","Merton","London"]
[null,"E02000704","Merton 016","E09000024","Merton","London"]
[null,"E02000705","Merton 017","E09000024","Merton","London"]
[null,"E02000706","Merton 018","E09000024","Merton","London"]
[null,"E02000707","Merton 019","E09000024","Merton","London"]
[null,"E02000708","Merton 020","E09000024","Merton","London"]
[null,"E02000709","Merton 021","E09000024","Merton","London"]
[null,"E02000710","Merton 022","E09000024","Merton","London"]
[null,"E02000711","Merton 023","E09000024","Merton","London"]
[null,"E02000712","Merton 024","E09000024","Merton","London"]
[null,"E02000713","Merton 025","E09000024","Merton","London"]
[null,"E02000714","Newham 001","E09000025","Newham","London"]
[null,"E02000715","Newham 002","E09000025","Newham","London"]
[null,"E02000716","Newham 003","E09000025","Newham","London"]
[null,"E02000717","Newham 004","E09000025","Newham","London"]
[null,"E02000718","Newham 005","E09000025","Newham","London"]
[null,"E02000719","Newham 006","E09000025","Newham","London"]
[null,"E02000720","Newham 007","E09000025","Newham","London"]
[null,"E02000721","Newham 008","E09000025","Newham","London"]
[null,"E02000722","Newham 009","E09000025","Newham","London"]
[null,"E02000723","Newham 010","E09000025","Newham","London"]
[null,"E02000724","Newham 011","E09000025","Newham","London"]
[null,"E02000725","Newham 012","E09000025","Newham","London"]
[null,"E02000726","Newham 013","E09000025","Newham","London"]
[null,"E02000727","Newham 014","E09000025","Newham","London"]
[null,"E02000728","Newham 015","E09000025","Newham","London"]
[null,"E02000729","Newham 016","E09000025","Newham","London"]
[null,"E02000730","Newham 017","E09000025","Newham","London"]
[null,"E02000731","Newham 018","E09000025","Newham","London"]
[null,"E02000732","Newham 019","E09000025","Newham","London"]
[null,"E02000733","Newham 020","E09000025","Newham","London"]
[null,"E02000734","Newham 021","E09000025","Newham","London"]
[null,"E02000735","Newham 022","E09000025","Newham","London"]
[null,"E02000736","Newham 023","E09000025","Newham","London"]
[null,"E02000737","Newham 024","E09000025","Newham","London"]
[null,"E02000738","Newham 025","E09000025","Newham","London"]
[null,"E02000739","Newham 026","E09000025","Newham","London"]
[null,"E02000740","Newham 027","E09000025","Newham","London"]
[null,"E02000741","Newham 028","E09000025","Newham","London"]
[null,"E02000742","Newham 029","E09000025","Newham","London"]
[null,"E02000743","Newham 030","E09000025","Newham","London"]
[null,"E02000744","Newham 031","E09000025","Newham","London"]
[null,"E02000745","Newham 032","E09000025","Newham","London"]
[null,"E02000746","Newham 033","E09000025","Newham","London"]
[null,"E02000747","Newham 034","E09000025","Newham","London"]
[null,"E02000748","Newham 035","E09000025","Newham","London"]
[null,"E02000749","Newham 036","E09000025","Newham","London"]
[null,"E02000750","Newham 037","E09000025","Newham","London"]
[null,"E02000751","Redbridge 001","E09000026","Redbridge","London"]
[null,"E02000752","Redbridge 002","E09000026","Redbridge","London"]
[null,"E02000753","Redbridge 003","E09000026","Redbridge","London"]
[null,"E02000754","Redbridge 004","E09000026","Redbridge","London"]
[null,"E02000755","Redbridge 005","E09000026","Redbridge","London"]
[null,"E02000756","Redbridge 006","E09000026","Redbridge","London"]
[null,"E02000757","Redbridge 007","E09000026","Redbridge","London"]
[null,"E02000758","Redbridge 008","E09000026","Redbridge","London"]
[null,"E02000759","Redbridge 009","E09000026","Redbridge","London"]
[null,"E02000760","Redbridge 010","E09000026","Redbridge","London"]
[null,"E02000762","Redbridge 012","E09000026","Redbridge","London"]
[null,"E02000763","Redbridge 013","E09000026","Redbridge","London"]
[null,"E02000764","Redbridge 014","E09000026","Redbridge","London"]
[null,"E02000765","Redbridge 015","E09000026","Redbridge","London"]
[null,"E02000767","Redbridge 017","E09000026","Redbridge","London"]
[null,"E02000768","Redbridge 018","E09000026","Redbridge","London"]
[null,"E02000769","Redbridge 019","E09000026","Redbridge","London"]
[null,"E02000770","Redbridge 020","E09000026","Redbridge","London"]
[null,"E02000772","Redbridge 022","E09000026","Redbridge","London"]
[null,"E02000773","Redbridge 023","E09000026","Redbridge","London"]
[null,"E02000774","Redbridge 024","E09000026","Redbridge","London"]
[null,"E02000776","Redbridge 026","E09000026","Redbridge","London"]
[null,"E02000777","Redbridge 027","E09000026","Redbridge","London"]
[null,"E02000779","Redbridge 029","E09000026","Redbridge","London"]
[null,"E02000780","Redbridge 030","E09000026","Redbridge","London"]
[null,"E02000781","Redbridge 031","E09000026","Redbridge","London"]
[null,"E02000782","Redbridge 032","E09000026","Redbridge","London"]
[null,"E02000783","Redbridge 033","E09000026","Redbridge","London"]
[null,"E02000784","Richmond upon Thames 001","E09000027","Richmond upon Thames","London"]
[null,"E02000785","Richmond upon Thames 002","E09000027","Richmond upon Thames","London"]
[null,"E02000786","Richmond upon Thames 003","E09000027","Richmond upon Thames","London"]
[null,"E02000787","Richmond upon Thames 004","E09000027","Richmond upon Thames","London"]
[null,"E02000788","Richmond upon Thames 005","E09000027","Richmond upon Thames","London"]
[null,"E02000789","Richmond upon Thames 006","E09000027","Richmond upon Thames","London"]
[null,"E02000790","Richmond upon Thames 007","E09000027","Richmond upon Thames","London"]
[null,"E02000791","Richmond upon Thames 008","E09000027","Richmond upon Thames","London"]
[null,"E02000792","Richmond upon Thames 009","E09000027","Richmond upon Thames","London"]
[null,"E02000793","Richmond upon Thames 010","E09000027","Richmond upon Thames","London"]
[null,"E02000794","Richmond upon Thames 011","E09000027","Richmond upon Thames","London"]
[null,"E02000795","Richmond upon Thames 012","E09000027","Richmond upon Thames","London"]
[null,"E02000796","Richmond upon Thames 013","E09000027","Richmond upon Thames","London"]
[null,"E02000797","Richmond upon Thames 014","E09000027","Richmond upon Thames","London"]
[null,"E02000798","Richmond upon Thames 015","E09000027","Richmond upon Thames","London"]
[null,"E02000799","Richmond upon Thames 016","E09000027","Richmond upon Thames","London"]
[null,"E02000800","Richmond upon Thames 017","E09000027","Richmond upon Thames","London"]
[null,"E02000801","Richmond upon Thames 018","E09000027","Richmond upon Thames","London"]
[null,"E02000802","Richmond upon Thames 019","E09000027","Richmond upon Thames","London"]
[null,"E02000803","Richmond upon Thames 020","E09000027","Richmond upon Thames","London"]
[null,"E02000804","Richmond upon Thames 021","E09000027","Richmond upon Thames","London"]
[null,"E02000805","Richmond upon Thames 022","E09000027","Richmond upon Thames","London"]
[null,"E02000806","Richmond upon Thames 023","E09000027","Richmond upon Thames","London"]
[null,"E02000807","Southwark 001","E09000028","Southwark","London"]
[null,"E02000808","Southwark 002","E09000028","Southwark","London"]
[null,"E02000809","Southwark 003","E09000028","Southwark","London"]
[null,"E02000810","Southwark 004","E09000028","Southwark","London"]
[null,"E02000812","Southwark 006","E09000028","Southwark","London"]
[null,"E02000813","Southwark 007","E09000028","Southwark","London"]
[null,"E02000814","Southwark 008","E09000028","Southwark","London"]
[null,"E02000815","Southwark 009","E09000028","Southwark","London"]
[null,"E02000816","Southwark 010","E09000028","Southwark","London"]
[null,"E02000817","Southwark 011","E09000028","Southwark","London"]
[null,"E02000818","Southwark 012","E09000028","Southwark","London"]
[null,"E02000819","Southwark 013","E09000028","Southwark","London"]
[null,"E02000820","Southwark 014","E09000028","Southwark","London"]
[null,"E02000821","Southwark 015","E09000028","Southwark","London"]
[null,"E02000822","Southwark 016","E09000028","Southwark","London"]
[null,"E02000823","Southwark 017","E09000028","Southwark","London"]
[null,"E02000824","Southwark 018","E09000028","Southwark","London"]
[null,"E02000825","Southwark 019","E09000028","Southwark","London"]
[null,"E02000826","Southwark 020","E09000028","Southwark","London"]
[null,"E02000827","Southwark 021","E09000028","Southwark","London"]
[null,"E02000828","Southwark 022","E09000028","Southwark","London"]
[null,"E02000829","Southwark 023","E09000028","Southwark","London"]
[null,"E02000830","Southwark 024","E09000028","Southwark","London"]
[null,"E02000831","Southwark 025","E09000028","Southwark","London"]
[null,"E02000832","Southwark 026","E09000028","Southwark","London"]
[null,"E02000833","Southwark 027","E09000028","Southwark","London"]
[null,"E02000834","Southwark 028","E09000028","Southwark","London"]
[null,"E02000835","Southwark 029","E09000028","Southwark","London"]
[null,"E02000836","Southwark 030","E09000028","Southwark","London"]
[null,"E02000837","Southwark 031","E09000028","Southwark","London"]
[null,"E02000838","Southwark 032","E09000028","Southwark","London"]
[null,"E02000839","Southwark 033","E09000028","Southwark","London"]
[null,"E02000840","Sutton 001","E09000029","Sutton","London"]
[null,"E02000841","Sutton 002","E09000029","Sutton","London"]
[null,"E02000842","Sutton 003","E09000029","Sutton","London"]
[null,"E02000843","Sutton 004","E09000029","Sutton","London"]
[null,"E02000844","Sutton 005","E09000029","Sutton","London"]
[null,"E02000845","Sutton 006","E09000029","Sutton","London"]
[null,"E02000846","Sutton 007","E09000029","Sutton","London"]
[null,"E02000847","Sutton 008","E09000029","Sutton","London"]
[null,"E02000848","Sutton 009","E09000029","Sutton","London"]
[null,"E02000849","Sutton 010","E09000029","Sutton","London"]
[null,"E02000850","Sutton 011","E09000029","Sutton","London"]
[null,"E02000851","Sutton 012","E09000029","Sutton","London"]
[null,"E02000852","Sutton 013","E09000029","Sutton","London"]
[null,"E02000853","Sutton 014","E09000029","Sutton","London"]
[null,"E02000854","Sutton 015","E09000029","Sutton","London"]
[null,"E02000855","Sutton 016","E09000029","Sutton","London"]
[null,"E02000856","Sutton 017","E09000029","Sutton","London"]
[null,"E02000857","Sutton 018","E09000029","Sutton","London"]
[null,"E02000858","Sutton 019","E09000029","Sutton","London"]
[null,"E02000859","Sutton 020","E09000029","Sutton","London"]
[null,"E02000860","Sutton 021","E09000029","Sutton","London"]
[null,"E02000861","Sutton 022","E09000029","Sutton","London"]
[null,"E02000863","Sutton 024","E09000029","Sutton","London"]
[null,"E02000864","Tower Hamlets 001","E09000030","Tower Hamlets","London"]
[null,"E02000865","Tower Hamlets 002","E09000030","Tower Hamlets","London"]
[null,"E02000866","Tower Hamlets 003","E09000030","Tower Hamlets","London"]
[null,"E02000867","Tower Hamlets 004","E09000030","Tower Hamlets","London"]
[null,"E02000868","Tower Hamlets 005","E09000030","Tower Hamlets","London"]
[null,"E02000869","Tower Hamlets 006","E09000030","Tower Hamlets","London"]
[null,"E02000870","Tower Hamlets 007","E09000030","Tower Hamlets","London"]
[null,"E02000871","Tower Hamlets 008","E09000030","Tower Hamlets","London"]
[null,"E02000872","Tower Hamlets 009","E09000030","Tower Hamlets","London"]
[null,"E02000873","Tower Hamlets 010","E09000030","Tower Hamlets","London"]
[null,"E02000874","Tower Hamlets 011","E09000030","Tower Hamlets","London"]
[null,"E02000875","Tower Hamlets 012","E09000030","Tower Hamlets","London"]
[null,"E02000876","Tower Hamlets 013","E09000030","Tower Hamlets","London"]
[null,"E02000877","Tower Hamlets 014","E09000030","Tower Hamlets","London"]
[null,"E02000878","Tower Hamlets 015","E09000030","Tower Hamlets","London"]
[null,"E02000879","Tower Hamlets 016","E09000030","Tower Hamlets","London"]
[null,"E02000880","Tower Hamlets 017","E09000030","Tower Hamlets","London"]
[null,"E02000881","Tower Hamlets 018","E09000030","Tower Hamlets","London"]
[null,"E02000882","Tower Hamlets 019","E09000030","Tower Hamlets","London"]
[null,"E02000883","Tower Hamlets 020","E09000030","Tower Hamlets","London"]
[null,"E02000884","Tower Hamlets 021","E09000030","Tower Hamlets","London"]
[null,"E02000885","Tower Hamlets 022","E09000030","Tower Hamlets","London"]
[null,"E02000886","Tower Hamlets 023","E09000030","Tower Hamlets","London"]
[null,"E02000887","Tower Hamlets 024","E09000030","Tower Hamlets","London"]
[null,"E02000888","Tower Hamlets 025","E09000030","Tower Hamlets","London"]
[null,"E02000889","Tower Hamlets 026","E09000030","Tower Hamlets","London"]
[null,"E02000890","Tower Hamlets 027","E09000030","Tower Hamlets","London"]
[null,"E02000891","Tower Hamlets 028","E09000030","Tower Hamlets","London"]
[null,"E02000893","Tower Hamlets 030","E09000030","Tower Hamlets","London"]
[null,"E02000894","Tower Hamlets 031","E09000030","Tower Hamlets","London"]
[null,"E02000895","Waltham Forest 001","E09000031","Waltham Forest","London"]
[null,"E02000896","Waltham Forest 002","E09000031","Waltham Forest","London"]
[null,"E02000897","Waltham Forest 003","E09000031","Waltham Forest","London"]
[null,"E02000898","Waltham Forest 004","E09000031","Waltham Forest","London"]
[null,"E02000899","Waltham Forest 005","E09000031","Waltham Forest","London"]
[null,"E02000900","Waltham Forest 006","E09000031","Waltham Forest","London"]
[null,"E02000901","Waltham Forest 007","E09000031","Waltham Forest","London"]
[null,"E02000902","Waltham Forest 008","E09000031","Waltham Forest","London"]
[null,"E02000903","Waltham Forest 009","E09000031","Waltham Forest","London"]
[null,"E02000904","Waltham Forest 010","E09000031","Waltham Forest","London"]
[null,"E02000905","Waltham Forest 011","E09000031","Waltham Forest","London"]
[null,"E02000906","Waltham Forest 012","E09000031","Waltham Forest","London"]
[null,"E02000907","Waltham Forest 013","E09000031","Waltham Forest","London"]
[null,"E02000908","Waltham Forest 014","E09000031","Waltham Forest","London"]
[null,"E02000909","Waltham Forest 015","E09000031","Waltham Forest","London"]
[null,"E02000910","Waltham Forest 016","E09000031","Waltham Forest","London"]
[null,"E02000911","Waltham Forest 017","E09000031","Waltham Forest","London"]
[null,"E02000912","Waltham Forest 018","E09000031","Waltham Forest","London"]
[null,"E02000913","Waltham Forest 019","E09000031","Waltham Forest","London"]
[null,"E02000914","Waltham Forest 020","E09000031","Waltham Forest","London"]
[null,"E02000915","Waltham Forest 021","E09000031","Waltham Forest","London"]
[null,"E02000916","Waltham Forest 022","E09000031","Waltham Forest","London"]
[null,"E02000917","Waltham Forest 023","E09000031","Waltham Forest","London"]
[null,"E02000918","Waltham Forest 024","E09000031","Waltham Forest","London"]
[null,"E02000919","Waltham Forest 025","E09000031","Waltham Forest","London"]
[null,"E02000920","Waltham Forest 026","E09000031","Waltham Forest","London"]
[null,"E02000921","Waltham Forest 027","E09000031","Waltham Forest","London"]
[null,"E02000922","Waltham Forest 028","E09000031","Waltham Forest","London"]
[null,"E02000923","Wandsworth 001","E09000032","Wandsworth","London"]
[null,"E02000924","Wandsworth 002","E09000032","Wandsworth","London"]
[null,"E02000925","Wandsworth 003","E09000032","Wandsworth","London"]
[null,"E02000926","Wandsworth 004","E09000032","Wandsworth","London"]
[null,"E02000927","Wandsworth 005","E09000032","Wandsworth","London"]
[null,"E02000928","Wandsworth 006","E09000032","Wandsworth","London"]
[null,"E02000929","Wandsworth 007","E09000032","Wandsworth","London"]
[null,"E02000930","Wandsworth 008","E09000032","Wandsworth","London"]
[null,"E02000931","Wandsworth 009","E09000032","Wandsworth","London"]
[null,"E02000932","Wandsworth 010","E09000032","Wandsworth","London"]
[null,"E02000933","Wandsworth 011","E09000032","Wandsworth","London"]
[null,"E02000934","Wandsworth 012","E09000032","Wandsworth","London"]
[null,"E02000935","Wandsworth 013","E09000032","Wandsworth","London"]
[null,"E02000936","Wandsworth 014","E09000032","Wandsworth","London"]
[null,"E02000937","Wandsworth 015","E09000032","Wandsworth","London"]
[null,"E02000938","Wandsworth 016","E09000032","Wandsworth","London"]
[null,"E02000939","Wandsworth 017","E09000032","Wandsworth","London"]
[null,"E02000940","Wandsworth 018","E09000032","Wandsworth","London"]
[null,"E02000941","Wandsworth 019","E09000032","Wandsworth","London"]
[null,"E02000942","Wandsworth 020","E09000032","Wandsworth","London"]
[null,"E02000943","Wandsworth 021","E09000032","Wandsworth","London"]
[null,"E02000944","Wandsworth 022","E09000032","Wandsworth","London"]
[null,"E02000945","Wandsworth 023","E09000032","Wandsworth","London"]
[null,"E02000946","Wandsworth 024","E09000032","Wandsworth","London"]
[null,"E02000947","Wandsworth 025","E09000032","Wandsworth","London"]
[null,"E02000948","Wandsworth 026","E09000032","Wandsworth","London"]
[null,"E02000949","Wandsworth 027","E09000032","Wandsworth","London"]
[null,"E02000950","Wandsworth 028","E09000032","Wandsworth","London"]
[null,"E02000951","Wandsworth 029","E09000032","Wandsworth","London"]
[null,"E02000952","Wandsworth 030","E09000032","Wandsworth","London"]
[null,"E02000953","Wandsworth 031","E09000032","Wandsworth","London"]
[null,"E02000954","Wandsworth 032","E09000032","Wandsworth","London"]
[null,"E02000955","Wandsworth 033","E09000032","Wandsworth","London"]
[null,"E02000956","Wandsworth 034","E09000032","Wandsworth","London"]
[null,"E02000957","Wandsworth 035","E09000032","Wandsworth","London"]
[null,"E02000958","Wandsworth 036","E09000032","Wandsworth","London"]
[null,"E02000959","Wandsworth 037","E09000032","Wandsworth","London"]
[null,"E02000960","Westminster 001","E09000033","Westminster","London"]
[null,"E02000961","Westminster 002","E09000033","Westminster","London"]
[null,"E02000962","Westminster 003","E09000033","Westminster","London"]
[null,"E02000963","Westminster 004","E09000033","Westminster","London"]
[null,"E02000964","Westminster 005","E09000033","Westminster","London"]
[null,"E02000965","Westminster 006","E09000033","Westminster","London"]
[null,"E02000966","Westminster 007","E09000033","Westminster","London"]
[null,"E02000967","Westminster 008","E09000033","Westminster","London"]
[null,"E02000968","Westminster 009","E09000033","Westminster","London"]
[null,"E02000969","Westminster 010","E09000033","Westminster","London"]
[null,"E02000970","Westminster 011","E09000033","Westminster","London"]
[null,"E02000971","Westminster 012","E09000033","Westminster","London"]
[null,"E02000972","Westminster 013","E09000033","Westminster","London"]
[null,"E02000973","Westminster 014","E09000033","Westminster","London"]
[null,"E02000974","Westminster 015","E09000033","Westminster","London"]
[null,"E02000975","Westminster 016","E09000033","Westminster","London"]
[null,"E02000976","Westminster 017","E09000033","Westminster","London"]
[null,"E02000977","Westminster 018","E09000033","Westminster","London"]
[null,"E02000978","Westminster 019","E09000033","Westminster","London"]
[null,"E02000979","Westminster 020","E09000033","Westminster","London"]
[null,"E02000980","Westminster 021","E09000033","Westminster","London"]
[null,"E02000981","Westminster 022","E09000033","Westminster","London"]
[null,"E02000982","Westminster 023","E09000033","Westminster","London"]
[null,"E02000983","Westminster 024","E09000033","Westminster","London"]
[null,"E02000984","Bolton 001","E08000001","Bolton","Inner and Outer Conurbation"]
[null,"E02000985","Bolton 002","E08000001","Bolton","Inner and Outer Conurbation"]
[null,"E02000986","Bolton 003","E08000001","Bolton","Inner and Outer Conurbation"]
[null,"E02000987","Bolton 004","E08000001","Bolton","Inner and Outer Conurbation"]
[null,"E02000988","Bolton 005","E08000001","Bolton","Inner and Outer Conurbation"]
[null,"E02000989","Bolton 006","E08000001","Bolton","Inner and Outer Conurbation"]
[null,"E02000990","Bolton 007","E08000001","Bolton","Inner and Outer Conurbation"]
[null,"E02000991","Bolton 008","E08000001","Bolton","Inner and Outer Conurbation"]
[null,"E02000992","Bolton 009","E08000001","Bolton","Inner and Outer Conurbation"]
[null,"E02000993","Bolton 010","E08000001","Bolton","Inner and Outer Conurbation"]
[null,"E02000994","Bolton 011","E08000001","Bolton","Inner and Outer Conurbation"]
[null,"E02000995","Bolton 012","E08000001","Bolton","Inner and Outer Conurbation"]
[null,"E02000996","Bolton 013","E08000001","Bolton","Inner and Outer Conurbation"]
[null,"E02000997","Bolton 014","E08000001","Bolton","Inner and Outer Conurbation"]
[null,"E02000998","Bolton 015","E08000001","Bolton","Inner and Outer Conurbation"]
[null,"E02000999","Bolton 016","E08000001","Bolton","Inner and Outer Conurbation"]
[null,"E02001000","Bolton 017","E08000001","Bolton","Inner and Outer Conurbation"]
[null,"E02001001","Bolton 018","E08000001","Bolton","Inner and Outer Conurbation"]
[null,"E02001002","Bolton 019","E08000001","Bolton","Inner and Outer Conurbation"]
[null,"E02001003","Bolton 020","E08000001","Bolton","Inner and Outer Conurbation"]
[null,"E02001004","Bolton 021","E08000001","Bolton","Inner and Outer Conurbation"]
[null,"E02001005","Bolton 022","E08000001","Bolton","Inner and Outer Conurbation"]
[null,"E02001006","Bolton 023","E08000001","Bolton","Inner and Outer Conurbation"]
[null,"E02001007","Bolton 024","E08000001","Bolton","Inner and Outer Conurbation"]
[null,"E02001008","Bolton 025","E08000001","Bolton","Inner and Outer Conurbation"]
[null,"E02001009","Bolton 026","E08000001","Bolton","Inner and Outer Conurbation"]
[null,"E02001010","Bolton 027","E08000001","Bolton","Inner and Outer Conurbation"]
[null,"E02001011","Bolton 028","E08000001","Bolton","Inner and Outer Conurbation"]
[null,"E02001012","Bolton 029","E08000001","Bolton","Inner and Outer Conurbation"]
[null,"E02001013","Bolton 030","E08000001","Bolton","Inner and Outer Conurbation"]
[null,"E02001014","Bolton 031","E08000001","Bolton","Inner and Outer Conurbation"]
[null,"E02001015","Bolton 032","E08000001","Bolton","Inner and Outer Conurbation"]
[null,"E02001016","Bolton 033","E08000001","Bolton","Inner and Outer Conurbation"]
[null,"E02001017","Bolton 034","E08000001","Bolton","Inner and Outer Conurbation"]
[null,"E02001018","Bolton 035","E08000001","Bolton","Inner and Outer Conurbation"]
[null,"E02001019","Bury 001","E08000002","Bury","Inner and Outer Conurbation"]
[null,"E02001020","Bury 002","E08000002","Bury","Inner and Outer Conurbation"]
[null,"E02001021","Bury 003","E08000002","Bury","Inner and Outer Conurbation"]
[null,"E02001022","Bury 004","E08000002","Bury","Inner and Outer Conurbation"]
[null,"E02001023","Bury 005","E08000002","Bury","Inner and Outer Conurbation"]
[null,"E02001024","Bury 006","E08000002","Bury","Inner and Outer Conurbation"]
[null,"E02001025","Bury 007","E08000002","Bury","Inner and Outer Conurbation"]
[null,"E02001026","Bury 008","E08000002","Bury","Inner and Outer Conurbation"]
[null,"E02001027","Bury 009","E08000002","Bury","Inner and Outer Conurbation"]
[null,"E02001028","Bury 010","E08000002","Bury","Inner and Outer Conurbation"]
[null,"E02001029","Bury 011","E08000002","Bury","Inner and Outer Conurbation"]
[null,"E02001030","Bury 012","E08000002","Bury","Inner and Outer Conurbation"]
[null,"E02001031","Bury 013","E08000002","Bury","Inner and Outer Conurbation"]
[null,"E02001032","Bury 014","E08000002","Bury","Inner and Outer Conurbation"]
[null,"E02001033","Bury 015","E08000002","Bury","Inner and Outer Conurbation"]
[null,"E02001034","Bury 016","E08000002","Bury","Inner and Outer Conurbation"]
[null,"E02001035","Bury 017","E08000002","Bury","Inner and Outer Conurbation"]
[null,"E02001036","Bury 018","E08000002","Bury","Inner and Outer Conurbation"]
[null,"E02001037","Bury 019","E08000002","Bury","Inner and Outer Conurbation"]
[null,"E02001038","Bury 020","E08000002","Bury","Inner and Outer Conurbation"]
[null,"E02001039","Bury 021","E08000002","Bury","Inner and Outer Conurbation"]
[null,"E02001040","Bury 022","E08000002","Bury","Inner and Outer Conurbation"]
[null,"E02001041","Bury 023","E08000002","Bury","Inner and Outer Conurbation"]
[null,"E02001042","Bury 024","E08000002","Bury","Inner and Outer Conurbation"]
[null,"E02001043","Bury 025","E08000002","Bury","Inner and Outer Conurbation"]
[null,"E02001044","Bury 026","E08000002","Bury","Inner and Outer Conurbation"]
[null,"E02001045","Manchester 001","E08000003","Manchester","Inner and Outer Conurbation"]
[null,"E02001046","Manchester 002","E08000003","Manchester","Inner and Outer Conurbation"]
[null,"E02001047","Manchester 003","E08000003","Manchester","Inner and Outer Conurbation"]
[null,"E02001048","Manchester 004","E08000003","Manchester","Inner and Outer Conurbation"]
[null,"E02001049","Manchester 005","E08000003","Manchester","Inner and Outer Conurbation"]
[null,"E02001050","Manchester 006","E08000003","Manchester","Inner and Outer Conurbation"]
[null,"E02001051","Manchester 007","E08000003","Manchester","Inner and Outer Conurbation"]
[null,"E02001052","Manchester 008","E08000003","Manchester","Inner and Outer Conurbation"]
[null,"E02001053","Manchester 009","E08000003","Manchester","Inner and Outer Conurbation"]
[null,"E02001055","Manchester 011","E08000003","Manchester","Inner and Outer Conurbation"]
[null,"E02001056","Manchester 012","E08000003","Manchester","Inner and Outer Conurbation"]
[null,"E02001057","Manchester 013","E08000003","Manchester","Inner and Outer Conurbation"]
[null,"E02001059","Manchester 015","E08000003","Manchester","Inner and Outer Conurbation"]
[null,"E02001061","Manchester 017","E08000003","Manchester","Inner and Outer Conurbation"]
[null,"E02001062","Manchester 018","E08000003","Manchester","Inner and Outer Conurbation"]
[null,"E02001063","Manchester 019","E08000003","Manchester","Inner and Outer Conurbation"]
[null,"E02001064","Manchester 020","E08000003","Manchester","Inner and Outer Conurbation"]
[null,"E02001065","Manchester 021","E08000003","Manchester","Inner and Outer Conurbation"]
[null,"E02001066","Manchester 022","E08000003","Manchester","Inner and Outer Conurbation"]
[null,"E02001067","Manchester 023","E08000003","Manchester","Inner and Outer Conurbation"]
[null,"E02001068","Manchester 024","E08000003","Manchester","Inner and Outer Conurbation"]
[null,"E02001069","Manchester 025","E08000003","Manchester","Inner and Outer Conurbation"]
[null,"E02001070","Manchester 026","E08000003","Manchester","Inner and Outer Conurbation"]
[null,"E02001071","Manchester 027","E08000003","Manchester","Inner and Outer Conurbation"]
[null,"E02001072","Manchester 028","E08000003","Manchester","Inner and Outer Conurbation"]
[null,"E02001073","Manchester 029","E08000003","Manchester","Inner and Outer Conurbation"]
[null,"E02001074","Manchester 030","E08000003","Manchester","Inner and Outer Conurbation"]
[null,"E02001075","Manchester 031","E08000003","Manchester","Inner and Outer Conurbation"]
[null,"E02001076","Manchester 032","E08000003","Manchester","Inner and Outer Conurbation"]
[null,"E02001077","Manchester 033","E08000003","Manchester","Inner and Outer Conurbation"]
[null,"E02001078","Manchester 034","E08000003","Manchester","Inner and Outer Conurbation"]
[null,"E02001079","Manchester 035","E08000003","Manchester","Inner and Outer Conurbation"]
[null,"E02001080","Manchester 036","E08000003","Manchester","Inner and Outer Conurbation"]
[null,"E02001081","Manchester 037","E08000003","Manchester","Inner and Outer Conurbation"]
[null,"E02001082","Manchester 038","E08000003","Manchester","Inner and Outer Conurbation"]
[null,"E02001083","Manchester 039","E08000003","Manchester","Inner and Outer Conurbation"]
[null,"E02001084","Manchester 040","E08000003","Manchester","Inner and Outer Conurbation"]
[null,"E02001085","Manchester 041","E08000003","Manchester","Inner and Outer Conurbation"]
[null,"E02001086","Manchester 042","E08000003","Manchester","Inner and Outer Conurbation"]
[null,"E02001087","Manchester 043","E08000003","Manchester","Inner and Outer Conurbation"]
[null,"E02001088","Manchester 044","E08000003","Manchester","Inner and Outer Conurbation"]
[null,"E02001089","Manchester 045","E08000003","Manchester","Inner and Outer Conurbation"]
[null,"E02001090","Manchester 046","E08000003","Manchester","Inner and Outer Conurbation"]
[null,"E02001091","Manchester 047","E08000003","Manchester","Inner and Outer Conurbation"]
[null,"E02001092","Manchester 048","E08000003","Manchester","Inner and Outer Conurbation"]
[null,"E02001093","Manchester 049","E08000003","Manchester","Inner and Outer Conurbation"]
[null,"E02001094","Manchester 050","E08000003","Manchester","Inner and Outer Conurbation"]
[null,"E02001095","Manchester 051","E08000003","Manchester","Inner and Outer Conurbation"]
[null,"E02001096","Manchester 052","E08000003","Manchester","Inner and Outer Conurbation"]
[null,"E02001097","Manchester 053","E08000003","Manchester","Inner and Outer Conurbation"]
[null,"E02001098","Oldham 001","E08000004","Oldham","Inner and Outer Conurbation"]
[null,"E02001099","Oldham 002","E08000004","Oldham","Inner and Outer Conurbation"]
[null,"E02001100","Oldham 003","E08000004","Oldham","Inner and Outer Conurbation"]
[null,"E02001101","Oldham 004","E08000004","Oldham","Inner and Outer Conurbation"]
[null,"E02001102","Oldham 005","E08000004","Oldham","Inner and Outer Conurbation"]
[null,"E02001103","Oldham 006","E08000004","Oldham","Inner and Outer Conurbation"]
[null,"E02001104","Oldham 007","E08000004","Oldham","Inner and Outer Conurbation"]
[null,"E02001105","Oldham 008","E08000004","Oldham","Inner and Outer Conurbation"]
[null,"E02001106","Oldham 009","E08000004","Oldham","Inner and Outer Conurbation"]
[null,"E02001107","Oldham 010","E08000004","Oldham","Inner and Outer Conurbation"]
[null,"E02001108","Oldham 011","E08000004","Oldham","Inner and Outer Conurbation"]
[null,"E02001109","Oldham 012","E08000004","Oldham","Inner and Outer Conurbation"]
[null,"E02001110","Oldham 013","E08000004","Oldham","Inner and Outer Conurbation"]
[null,"E02001111","Oldham 014","E08000004","Oldham","Inner and Outer Conurbation"]
[null,"E02001112","Oldham 015","E08000004","Oldham","Inner and Outer Conurbation"]
[null,"E02001113","Oldham 016","E08000004","Oldham","Inner and Outer Conurbation"]
[null,"E02001114","Oldham 017","E08000004","Oldham","Inner and Outer Conurbation"]
[null,"E02001115","Oldham 018","E08000004","Oldham","Inner and Outer Conurbation"]
[null,"E02001116","Oldham 019","E08000004","Oldham","Inner and Outer Conurbation"]
[null,"E02001117","Oldham 020","E08000004","Oldham","Inner and Outer Conurbation"]
[null,"E02001118","Oldham 021","E08000004","Oldham","Inner and Outer Conurbation"]
[null,"E02001119","Oldham 022","E08000004","Oldham","Inner and Outer Conurbation"]
[null,"E02001121","Oldham 024","E08000004","Oldham","Inner and Outer Conurbation"]
[null,"E02001123","Oldham 026","E08000004","Oldham","Inner and Outer Conurbation"]
[null,"E02001124","Oldham 027","E08000004","Oldham","Inner and Outer Conurbation"]
[null,"E02001125","Oldham 028","E08000004","Oldham","Inner and Outer Conurbation"]
[null,"E02001126","Oldham 029","E08000004","Oldham","Inner and Outer Conurbation"]
[null,"E02001127","Oldham 030","E08000004","Oldham","Inner and Outer Conurbation"]
[null,"E02001128","Oldham 031","E08000004","Oldham","Inner and Outer Conurbation"]
[null,"E02001129","Oldham 032","E08000004","Oldham","Inner and Outer Conurbation"]
[null,"E02001130","Oldham 033","E08000004","Oldham","Inner and Outer Conurbation"]
[null,"E02001131","Oldham 034","E08000004","Oldham","Inner and Outer Conurbation"]
[null,"E02001132","Rochdale 001","E08000005","Rochdale","Inner and Outer Conurbation"]
[null,"E02001133","Rochdale 002","E08000005","Rochdale","Inner and Outer Conurbation"]
[null,"E02001134","Rochdale 003","E08000005","Rochdale","Inner and Outer Conurbation"]
[null,"E02001135","Rochdale 004","E08000005","Rochdale","Inner and Outer Conurbation"]
[null,"E02001136","Rochdale 005","E08000005","Rochdale","Inner and Outer Conurbation"]
[null,"E02001137","Rochdale 006","E08000005","Rochdale","Inner and Outer Conurbation"]
[null,"E02001138","Rochdale 007","E08000005","Rochdale","Inner and Outer Conurbation"]
[null,"E02001139","Rochdale 008","E08000005","Rochdale","Inner and Outer Conurbation"]
[null,"E02001140","Rochdale 009","E08000005","Rochdale","Inner and Outer Conurbation"]
[null,"E02001141","Rochdale 010","E08000005","Rochdale","Inner and Outer Conurbation"]
[null,"E02001142","Rochdale 011","E08000005","Rochdale","Inner and Outer Conurbation"]
[null,"E02001143","Rochdale 012","E08000005","Rochdale","Inner and Outer Conurbation"]
[null,"E02001144","Rochdale 013","E08000005","Rochdale","Inner and Outer Conurbation"]
[null,"E02001145","Rochdale 014","E08000005","Rochdale","Inner and Outer Conurbation"]
[null,"E02001146","Rochdale 015","E08000005","Rochdale","Inner and Outer Conurbation"]
[null,"E02001147","Rochdale 016","E08000005","Rochdale","Inner and Outer Conurbation"]
[null,"E02001148","Rochdale 017","E08000005","Rochdale","Inner and Outer Conurbation"]
[null,"E02001149","Rochdale 018","E08000005","Rochdale","Inner and Outer Conurbation"]
[null,"E02001150","Rochdale 019","E08000005","Rochdale","Inner and Outer Conurbation"]
[null,"E02001151","Rochdale 020","E08000005","Rochdale","Inner and Outer Conurbation"]
[null,"E02001152","Rochdale 021","E08000005","Rochdale","Inner and Outer Conurbation"]
[null,"E02001153","Rochdale 022","E08000005","Rochdale","Inner and Outer Conurbation"]
[null,"E02001154","Rochdale 023","E08000005","Rochdale","Inner and Outer Conurbation"]
[null,"E02001155","Rochdale 024","E08000005","Rochdale","Inner and Outer Conurbation"]
[null,"E02001156","Rochdale 025","E08000005","Rochdale","Inner and Outer Conurbation"]
[null,"E02001157","Salford 001","E08000006","Salford","Inner and Outer Conurbation"]
[null,"E02001158","Salford 002","E08000006","Salford","Inner and Outer Conurbation"]
[null,"E02001159","Salford 003","E08000006","Salford","Inner and Outer Conurbation"]
[null,"E02001160","Salford 004","E08000006","Salford","Inner and Outer Conurbation"]
[null,"E02001161","Salford 005","E08000006","Salford","Inner and Outer Conurbation"]
[null,"E02001162","Salford 006","E08000006","Salford","Inner and Outer Conurbation"]
[null,"E02001163","Salford 007","E08000006","Salford","Inner and Outer Conurbation"]
[null,"E02001164","Salford 008","E08000006","Salford","Inner and Outer Conurbation"]
[null,"E02001165","Salford 009","E08000006","Salford","Inner and Outer Conurbation"]
[null,"E02001166","Salford 010","E08000006","Salford","Inner and Outer Conurbation"]
[null,"E02001167","Salford 011","E08000006","Salford","Inner and Outer Conurbation"]
[null,"E02001168","Salford 012","E08000006","Salford","Inner and Outer Conurbation"]
[null,"E02001169","Salford 013","E08000006","Salford","Inner and Outer Conurbation"]
[null,"E02001170","Salford 014","E08000006","Salford","Inner and Outer Conurbation"]
[null,"E02001171","Salford 015","E08000006","Salford","Inner and Outer Conurbation"]
[null,"E02001172","Salford 016","E08000006","Salford","Inner and Outer Conurbation"]
[null,"E02001173","Salford 017","E08000006","Salford","Inner and Outer Conurbation"]
[null,"E02001174","Salford 018","E08000006","Salford","Inner and Outer Conurbation"]
[null,"E02001175","Salford 019","E08000006","Salford","Inner and Outer Conurbation"]
[null,"E02001176","Salford 020","E08000006","Salford","Inner and Outer Conurbation"]
[null,"E02001177","Salford 021","E08000006","Salford","Inner and Outer Conurbation"]
[null,"E02001178","Salford 022","E08000006","Salford","Inner and Outer Conurbation"]
[null,"E02001179","Salford 023","E08000006","Salford","Inner and Outer Conurbation"]
[null,"E02001180","Salford 024","E08000006","Salford","Inner and Outer Conurbation"]
[null,"E02001181","Salford 025","E08000006","Salford","Inner and Outer Conurbation"]
[null,"E02001182","Salford 026","E08000006","Salford","Inner and Outer Conurbation"]
[null,"E02001183","Salford 027","E08000006","Salford","Inner and Outer Conurbation"]
[null,"E02001184","Salford 028","E08000006","Salford","Inner and Outer Conurbation"]
[null,"E02001185","Salford 029","E08000006","Salford","Inner and Outer Conurbation"]
[null,"E02001186","Salford 030","E08000006","Salford","Inner and Outer Conurbation"]
[null,"E02001187","Stockport 001","E08000007","Stockport","Inner and Outer Conurbation"]
[null,"E02001188","Stockport 002","E08000007","Stockport","Inner and Outer Conurbation"]
[null,"E02001189","Stockport 003","E08000007","Stockport","Inner and Outer Conurbation"]
[null,"E02001190","Stockport 004","E08000007","Stockport","Inner and Outer Conurbation"]
[null,"E02001191","Stockport 005","E08000007","Stockport","Inner and Outer Conurbation"]
[null,"E02001192","Stockport 006","E08000007","Stockport","Inner and Outer Conurbation"]
[null,"E02001193","Stockport 007","E08000007","Stockport","Inner and Outer Conurbation"]
[null,"E02001194","Stockport 008","E08000007","Stockport","Inner and Outer Conurbation"]
[null,"E02001195","Stockport 009","E08000007","Stockport","Inner and Outer Conurbation"]
[null,"E02001196","Stockport 010","E08000007","Stockport","Inner and Outer Conurbation"]
[null,"E02001197","Stockport 011","E08000007","Stockport","Inner and Outer Conurbation"]
[null,"E02001198","Stockport 012","E08000007","Stockport","Inner and Outer Conurbation"]
[null,"E02001199","Stockport 013","E08000007","Stockport","Inner and Outer Conurbation"]
[null,"E02001200","Stockport 014","E08000007","Stockport","Inner and Outer Conurbation"]
[null,"E02001201","Stockport 015","E08000007","Stockport","Inner and Outer Conurbation"]
[null,"E02001202","Stockport 016","E08000007","Stockport","Inner and Outer Conurbation"]
[null,"E02001203","Stockport 017","E08000007","Stockport","Inner and Outer Conurbation"]
[null,"E02001204","Stockport 018","E08000007","Stockport","Inner and Outer Conurbation"]
[null,"E02001205","Stockport 019","E08000007","Stockport","Inner and Outer Conurbation"]
[null,"E02001206","Stockport 020","E08000007","Stockport","Inner and Outer Conurbation"]
[null,"E02001207","Stockport 021","E08000007","Stockport","Inner and Outer Conurbation"]
[null,"E02001208","Stockport 022","E08000007","Stockport","Inner and Outer Conurbation"]
[null,"E02001209","Stockport 023","E08000007","Stockport","Inner and Outer Conurbation"]
[null,"E02001210","Stockport 024","E08000007","Stockport","Inner and Outer Conurbation"]
[null,"E02001211","Stockport 025","E08000007","Stockport","Inner and Outer Conurbation"]
[null,"E02001212","Stockport 026","E08000007","Stockport","Inner and Outer Conurbation"]
[null,"E02001213","Stockport 027","E08000007","Stockport","Inner and Outer Conurbation"]
[null,"E02001214","Stockport 028","E08000007","Stockport","Inner and Outer Conurbation"]
[null,"E02001215","Stockport 029","E08000007","Stockport","Inner and Outer Conurbation"]
[null,"E02001216","Stockport 030","E08000007","Stockport","Inner and Outer Conurbation"]
[null,"E02001217","Stockport 031","E08000007","Stockport","Inner and Outer Conurbation"]
[null,"E02001218","Stockport 032","E08000007","Stockport","Inner and Outer Conurbation"]
[null,"E02001219","Stockport 033","E08000007","Stockport","Inner and Outer Conurbation"]
[null,"E02001220","Stockport 034","E08000007","Stockport","Inner and Outer Conurbation"]
[null,"E02001221","Stockport 035","E08000007","Stockport","Inner and Outer Conurbation"]
[null,"E02001222","Stockport 036","E08000007","Stockport","Inner and Outer Conurbation"]
[null,"E02001223","Stockport 037","E08000007","Stockport","Inner and Outer Conurbation"]
[null,"E02001224","Stockport 038","E08000007","Stockport","Inner and Outer Conurbation"]
[null,"E02001225","Stockport 039","E08000007","Stockport","Inner and Outer Conurbation"]
[null,"E02001226","Stockport 040","E08000007","Stockport","Inner and Outer Conurbation"]
[null,"E02001227","Stockport 041","E08000007","Stockport","Inner and Outer Conurbation"]
[null,"E02001228","Stockport 042","E08000007","Stockport","Inner and Outer Conurbation"]
[null,"E02001229","Tameside 001","E08000008","Tameside","Inner and Outer Conurbation"]
[null,"E02001230","Tameside 002","E08000008","Tameside","Inner and Outer Conurbation"]
[null,"E02001231","Tameside 003","E08000008","Tameside","Inner and Outer Conurbation"]
[null,"E02001232","Tameside 004","E08000008","Tameside","Inner and Outer Conurbation"]
[null,"E02001233","Tameside 005","E08000008","Tameside","Inner and Outer Conurbation"]
[null,"E02001234","Tameside 006","E08000008","Tameside","Inner and Outer Conurbation"]
[null,"E02001235","Tameside 007","E08000008","Tameside","Inner and Outer Conurbation"]
[null,"E02001236","Tameside 008","E08000008","Tameside","Inner and Outer Conurbation"]
[null,"E02001237","Tameside 009","E08000008","Tameside","Inner and Outer Conurbation"]
[null,"E02001238","Tameside 010","E08000008","Tameside","Inner and Outer Conurbation"]
[null,"E02001239","Tameside 011","E08000008","Tameside","Inner and Outer Conurbation"]
[null,"E02001240","Tameside 012","E08000008","Tameside","Inner and Outer Conurbation"]
[null,"E02001241","Tameside 013","E08000008","Tameside","Inner and Outer Conurbation"]
[null,"E02001242","Tameside 014","E08000008","Tameside","Inner and Outer Conurbation"]
[null,"E02001243","Tameside 015","E08000008","Tameside","Inner and Outer Conurbation"]
[null,"E02001244","Tameside 016","E08000008","Tameside","Inner and Outer Conurbation"]
[null,"E02001245","Tameside 017","E08000008","Tameside","Inner and Outer Conurbation"]
[null,"E02001246","Tameside 018","E08000008","Tameside","Inner and Outer Conurbation"]
[null,"E02001247","Tameside 019","E08000008","Tameside","Inner and Outer Conurbation"]
[null,"E02001248","Tameside 020","E08000008","Tameside","Inner and Outer Conurbation"]
[null,"E02001249","Tameside 021","E08000008","Tameside","Inner and Outer Conurbation"]
[null,"E02001250","Tameside 022","E08000008","Tameside","Inner and Outer Conurbation"]
[null,"E02001251","Tameside 023","E08000008","Tameside","Inner and Outer Conurbation"]
[null,"E02001252","Tameside 024","E08000008","Tameside","Inner and Outer Conurbation"]
[null,"E02001253","Tameside 025","E08000008","Tameside","Inner and Outer Conurbation"]
[null,"E02001254","Tameside 026","E08000008","Tameside","Inner and Outer Conurbation"]
[null,"E02001255","Tameside 027","E08000008","Tameside","Inner and Outer Conurbation"]
[null,"E02001256","Tameside 028","E08000008","Tameside","Inner and Outer Conurbation"]
[null,"E02001257","Tameside 029","E08000008","Tameside","Inner and Outer Conurbation"]
[null,"E02001258","Tameside 030","E08000008","Tameside","Inner and Outer Conurbation"]
[null,"E02001259","Trafford 001","E08000009","Trafford","Inner and Outer Conurbation"]
[null,"E02001260","Trafford 002","E08000009","Trafford","Inner and Outer Conurbation"]
[null,"E02001261","Trafford 003","E08000009","Trafford","Inner and Outer Conurbation"]
[null,"E02001262","Trafford 004","E08000009","Trafford","Inner and Outer Conurbation"]
[null,"E02001263","Trafford 005","E08000009","Trafford","Inner and Outer Conurbation"]
[null,"E02001264","Trafford 006","E08000009","Trafford","Inner and Outer Conurbation"]
[null,"E02001265","Trafford 007","E08000009","Trafford","Inner and Outer Conurbation"]
[null,"E02001266","Trafford 008","E08000009","Trafford","Inner and Outer Conurbation"]
[null,"E02001267","Trafford 009","E08000009","Trafford","Inner and Outer Conurbation"]
[null,"E02001268","Trafford 010","E08000009","Trafford","Inner and Outer Conurbation"]
[null,"E02001269","Trafford 011","E08000009","Trafford","Inner and Outer Conurbation"]
[null,"E02001270","Trafford 012","E08000009","Trafford","Inner and Outer Conurbation"]
[null,"E02001271","Trafford 013","E08000009","Trafford","Inner and Outer Conurbation"]
[null,"E02001272","Trafford 014","E08000009","Trafford","Inner and Outer Conurbation"]
[null,"E02001273","Trafford 015","E08000009","Trafford","Inner and Outer Conurbation"]
[null,"E02001274","Trafford 016","E08000009","Trafford","Inner and Outer Conurbation"]
[null,"E02001275","Trafford 017","E08000009","Trafford","Inner and Outer Conurbation"]
[null,"E02001276","Trafford 018","E08000009","Trafford","Inner and Outer Conurbation"]
[null,"E02001277","Trafford 019","E08000009","Trafford","Inner and Outer Conurbation"]
[null,"E02001278","Trafford 020","E08000009","Trafford","Inner and Outer Conurbation"]
[null,"E02001279","Trafford 021","E08000009","Trafford","Inner and Outer Conurbation"]
[null,"E02001280","Trafford 022","E08000009","Trafford","Inner and Outer Conurbation"]
[null,"E02001281","Trafford 023","E08000009","Trafford","Inner and Outer Conurbation"]
[null,"E02001282","Trafford 024","E08000009","Trafford","Inner and Outer Conurbation"]
[null,"E02001283","Trafford 025","E08000009","Trafford","Inner and Outer Conurbation"]
[null,"E02001284","Trafford 026","E08000009","Trafford","Inner and Outer Conurbation"]
[null,"E02001285","Trafford 027","E08000009","Trafford","Inner and Outer Conurbation"]
[null,"E02001286","Trafford 028","E08000009","Trafford","Inner and Outer Conurbation"]
[null,"E02001287","Wigan 001","E08000010","Wigan","Inner and Outer Conurbation"]
[null,"E02001288","Wigan 002","E08000010","Wigan","Inner and Outer Conurbation"]
[null,"E02001289","Wigan 003","E08000010","Wigan","Inner and Outer Conurbation"]
[null,"E02001290","Wigan 004","E08000010","Wigan","Inner and Outer Conurbation"]
[null,"E02001291","Wigan 005","E08000010","Wigan","Inner and Outer Conurbation"]
[null,"E02001292","Wigan 006","E08000010","Wigan","Inner and Outer Conurbation"]
[null,"E02001293","Wigan 007","E08000010","Wigan","Inner and Outer Conurbation"]
[null,"E02001294","Wigan 008","E08000010","Wigan","Inner and Outer Conurbation"]
[null,"E02001295","Wigan 009","E08000010","Wigan","Inner and Outer Conurbation"]
[null,"E02001296","Wigan 010","E08000010","Wigan","Inner and Outer Conurbation"]
[null,"E02001297","Wigan 011","E08000010","Wigan","Inner and Outer Conurbation"]
[null,"E02001298","Wigan 012","E08000010","Wigan","Inner and Outer Conurbation"]
[null,"E02001299","Wigan 013","E08000010","Wigan","Inner and Outer Conurbation"]
[null,"E02001300","Wigan 014","E08000010","Wigan","Inner and Outer Conurbation"]
[null,"E02001301","Wigan 015","E08000010","Wigan","Inner and Outer Conurbation"]
[null,"E02001302","Wigan 016","E08000010","Wigan","Inner and Outer Conurbation"]
[null,"E02001303","Wigan 017","E08000010","Wigan","Inner and Outer Conurbation"]
[null,"E02001304","Wigan 018","E08000010","Wigan","Inner and Outer Conurbation"]
[null,"E02001305","Wigan 019","E08000010","Wigan","Inner and Outer Conurbation"]
[null,"E02001306","Wigan 020","E08000010","Wigan","Inner and Outer Conurbation"]
[null,"E02001307","Wigan 021","E08000010","Wigan","Inner and Outer Conurbation"]
[null,"E02001308","Wigan 022","E08000010","Wigan","Inner and Outer Conurbation"]
[null,"E02001309","Wigan 023","E08000010","Wigan","Inner and Outer Conurbation"]
[null,"E02001310","Wigan 024","E08000010","Wigan","Inner and Outer Conurbation"]
[null,"E02001311","Wigan 025","E08000010","Wigan","Inner and Outer Conurbation"]
[null,"E02001312","Wigan 026","E08000010","Wigan","Inner and Outer Conurbation"]
[null,"E02001313","Wigan 027","E08000010","Wigan","Inner and Outer Conurbation"]
[null,"E02001314","Wigan 028","E08000010","Wigan","Inner and Outer Conurbation"]
[null,"E02001315","Wigan 029","E08000010","Wigan","Inner and Outer Conurbation"]
[null,"E02001316","Wigan 030","E08000010","Wigan","Inner and Outer Conurbation"]
[null,"E02001317","Wigan 031","E08000010","Wigan","Inner and Outer Conurbation"]
[null,"E02001318","Wigan 032","E08000010","Wigan","Inner and Outer Conurbation"]
[null,"E02001319","Wigan 033","E08000010","Wigan","Inner and Outer Conurbation"]
[null,"E02001320","Wigan 034","E08000010","Wigan","Inner and Outer Conurbation"]
[null,"E02001321","Wigan 035","E08000010","Wigan","Inner and Outer Conurbation"]
[null,"E02001322","Wigan 036","E08000010","Wigan","Inner and Outer Conurbation"]
[null,"E02001323","Wigan 037","E08000010","Wigan","Inner and Outer Conurbation"]
[null,"E02001324","Wigan 038","E08000010","Wigan","Inner and Outer Conurbation"]
[null,"E02001325","Wigan 039","E08000010","Wigan","Inner and Outer Conurbation"]
[null,"E02001326","Wigan 040","E08000010","Wigan","Inner and Outer Conurbation"]
[null,"E02001327","Knowsley 001","E08000011","Knowsley","Inner and Outer Conurbation"]
[null,"E02001328","Knowsley 002","E08000011","Knowsley","Inner and Outer Conurbation"]
[null,"E02001329","Knowsley 003","E08000011","Knowsley","Inner and Outer Conurbation"]
[null,"E02001330","Knowsley 004","E08000011","Knowsley","Inner and Outer Conurbation"]
[null,"E02001331","Knowsley 005","E08000011","Knowsley","Inner and Outer Conurbation"]
[null,"E02001332","Knowsley 006","E08000011","Knowsley","Inner and Outer Conurbation"]
[null,"E02001333","Knowsley 007","E08000011","Knowsley","Inner and Outer Conurbation"]
[null,"E02001334","Knowsley 008","E08000011","Knowsley","Inner and Outer Conurbation"]
[null,"E02001335","Knowsley 009","E08000011","Knowsley","Inner and Outer Conurbation"]
[null,"E02001336","Knowsley 010","E08000011","Knowsley","Inner and Outer Conurbation"]
[null,"E02001337","Knowsley 011","E08000011","Knowsley","Inner and Outer Conurbation"]
[null,"E02001338","Knowsley 012","E08000011","Knowsley","Inner and Outer Conurbation"]
[null,"E02001339","Knowsley 013","E08000011","Knowsley","Inner and Outer Conurbation"]
[null,"E02001340","Knowsley 014","E08000011","Knowsley","Inner and Outer Conurbation"]
[null,"E02001341","Knowsley 015","E08000011","Knowsley","Inner and Outer Conurbation"]
[null,"E02001342","Knowsley 016","E08000011","Knowsley","Inner and Outer Conurbation"]
[null,"E02001343","Knowsley 017","E08000011","Knowsley","Inner and Outer Conurbation"]
[null,"E02001344","Knowsley 018","E08000011","Knowsley","Inner and Outer Conurbation"]
[null,"E02001345","Knowsley 019","E08000011","Knowsley","Inner and Outer Conurbation"]
[null,"E02001346","Knowsley 020","E08000011","Knowsley","Inner and Outer Conurbation"]
[null,"E02001347","Liverpool 001","E08000012","Liverpool","Inner and Outer Conurbation"]
[null,"E02001348","Liverpool 002","E08000012","Liverpool","Inner and Outer Conurbation"]
[null,"E02001349","Liverpool 003","E08000012","Liverpool","Inner and Outer Conurbation"]
[null,"E02001350","Liverpool 004","E08000012","Liverpool","Inner and Outer Conurbation"]
[null,"E02001351","Liverpool 005","E08000012","Liverpool","Inner and Outer Conurbation"]
[null,"E02001352","Liverpool 006","E08000012","Liverpool","Inner and Outer Conurbation"]
[null,"E02001353","Liverpool 007","E08000012","Liverpool","Inner and Outer Conurbation"]
[null,"E02001354","Liverpool 008","E08000012","Liverpool","Inner and Outer Conurbation"]
[null,"E02001355","Liverpool 009","E08000012","Liverpool","Inner and Outer Conurbation"]
[null,"E02001356","Liverpool 010","E08000012","Liverpool","Inner and Outer Conurbation"]
[null,"E02001357","Liverpool 011","E08000012","Liverpool","Inner and Outer Conurbation"]
[null,"E02001358","Liverpool 012","E08000012","Liverpool","Inner and Outer Conurbation"]
[null,"E02001359","Liverpool 013","E08000012","Liverpool","Inner and Outer Conurbation"]
[null,"E02001360","Liverpool 014","E08000012","Liverpool","Inner and Outer Conurbation"]
[null,"E02001361","Liverpool 015","E08000012","Liverpool","Inner and Outer Conurbation"]
[null,"E02001362","Liverpool 016","E08000012","Liverpool","Inner and Outer Conurbation"]
[null,"E02001363","Liverpool 017","E08000012","Liverpool","Inner and Outer Conurbation"]
[null,"E02001364","Liverpool 018","E08000012","Liverpool","Inner and Outer Conurbation"]
[null,"E02001365","Liverpool 019","E08000012","Liverpool","Inner and Outer Conurbation"]
[null,"E02001366","Liverpool 020","E08000012","Liverpool","Inner and Outer Conurbation"]
[null,"E02001367","Liverpool 021","E08000012","Liverpool","Inner and Outer Conurbation"]
[null,"E02001368","Liverpool 022","E08000012","Liverpool","Inner and Outer Conurbation"]
[null,"E02001369","Liverpool 023","E08000012","Liverpool","Inner and Outer Conurbation"]
[null,"E02001370","Liverpool 024","E08000012","Liverpool","Inner and Outer Conurbation"]
[null,"E02001371","Liverpool 025","E08000012","Liverpool","Inner and Outer Conurbation"]
[null,"E02001372","Liverpool 026","E08000012","Liverpool","Inner and Outer Conurbation"]
[null,"E02001373","Liverpool 027","E08000012","Liverpool","Inner and Outer Conurbation"]
[null,"E02001374","Liverpool 028","E08000012","Liverpool","Inner and Outer Conurbation"]
[null,"E02001375","Liverpool 029","E08000012","Liverpool","Inner and Outer Conurbation"]
[null,"E02001376","Liverpool 030","E08000012","Liverpool","Inner and Outer Conurbation"]
[null,"E02001377","Liverpool 031","E08000012","Liverpool","Inner and Outer Conurbation"]
[null,"E02001378","Liverpool 032","E08000012","Liverpool","Inner and Outer Conurbation"]
[null,"E02001380","Liverpool 034","E08000012","Liverpool","Inner and Outer Conurbation"]
[null,"E02001381","Liverpool 035","E08000012","Liverpool","Inner and Outer Conurbation"]
[null,"E02001382","Liverpool 036","E08000012","Liverpool","Inner and Outer Conurbation"]
[null,"E02001383","Liverpool 037","E08000012","Liverpool","Inner and Outer Conurbation"]
[null,"E02001384","Liverpool 038","E08000012","Liverpool","Inner and Outer Conurbation"]
[null,"E02001385","Liverpool 039","E08000012","Liverpool","Inner and Outer Conurbation"]
[null,"E02001386","Liverpool 040","E08000012","Liverpool","Inner and Outer Conurbation"]
[null,"E02001387","Liverpool 041","E08000012","Liverpool","Inner and Outer Conurbation"]
[null,"E02001388","Liverpool 042","E08000012","Liverpool","Inner and Outer Conurbation"]
[null,"E02001389","Liverpool 043","E08000012","Liverpool","Inner and Outer Conurbation"]
[null,"E02001390","Liverpool 044","E08000012","Liverpool","Inner and Outer Conurbation"]
[null,"E02001391","Liverpool 045","E08000012","Liverpool","Inner and Outer Conurbation"]
[null,"E02001392","Liverpool 046","E08000012","Liverpool","Inner and Outer Conurbation"]
[null,"E02001393","Liverpool 047","E08000012","Liverpool","Inner and Outer Conurbation"]
[null,"E02001394","Liverpool 048","E08000012","Liverpool","Inner and Outer Conurbation"]
[null,"E02001395","Liverpool 049","E08000012","Liverpool","Inner and Outer Conurbation"]
[null,"E02001396","Liverpool 050","E08000012","Liverpool","Inner and Outer Conurbation"]
[null,"E02001397","Liverpool 051","E08000012","Liverpool","Inner and Outer Conurbation"]
[null,"E02001398","Liverpool 052","E08000012","Liverpool","Inner and Outer Conurbation"]
[null,"E02001399","Liverpool 053","E08000012","Liverpool","Inner and Outer Conurbation"]
[null,"E02001400","Liverpool 054","E08000012","Liverpool","Inner and Outer Conurbation"]
[null,"E02001401","Liverpool 055","E08000012","Liverpool","Inner and Outer Conurbation"]
[null,"E02001402","Liverpool 056","E08000012","Liverpool","Inner and Outer Conurbation"]
[null,"E02001403","Liverpool 057","E08000012","Liverpool","Inner and Outer Conurbation"]
[null,"E02001404","Liverpool 058","E08000012","Liverpool","Inner and Outer Conurbation"]
[null,"E02001405","Liverpool 059","E08000012","Liverpool","Inner and Outer Conurbation"]
[null,"E02001406","St. Helens 001","E08000013","St. Helens","Inner and Outer Conurbation"]
[null,"E02001407","St. Helens 002","E08000013","St. Helens","Inner and Outer Conurbation"]
[null,"E02001408","St. Helens 003","E08000013","St. Helens","Inner and Outer Conurbation"]
[null,"E02001409","St. Helens 004","E08000013","St. Helens","Inner and Outer Conurbation"]
[null,"E02001410","St. Helens 005","E08000013","St. Helens","Inner and Outer Conurbation"]
[null,"E02001411","St. Helens 006","E08000013","St. Helens","Inner and Outer Conurbation"]
[null,"E02001412","St. Helens 007","E08000013","St. Helens","Inner and Outer Conurbation"]
[null,"E02001413","St. Helens 008","E08000013","St. Helens","Inner and Outer Conurbation"]
[null,"E02001414","St. Helens 009","E08000013","St. Helens","Inner and Outer Conurbation"]
[null,"E02001415","St. Helens 010","E08000013","St. Helens","Inner and Outer Conurbation"]
[null,"E02001416","St. Helens 011","E08000013","St. Helens","Inner and Outer Conurbation"]
[null,"E02001417","St. Helens 012","E08000013","St. Helens","Inner and Outer Conurbation"]
[null,"E02001418","St. Helens 013","E08000013","St. Helens","Inner and Outer Conurbation"]
[null,"E02001419","St. Helens 014","E08000013","St. Helens","Inner and Outer Conurbation"]
[null,"E02001420","St. Helens 015","E08000013","St. Helens","Inner and Outer Conurbation"]
[null,"E02001421","St. Helens 016","E08000013","St. Helens","Inner and Outer Conurbation"]
[null,"E02001422","St. Helens 017","E08000013","St. Helens","Inner and Outer Conurbation"]
[null,"E02001423","St. Helens 018","E08000013","St. Helens","Inner and Outer Conurbation"]
[null,"E02001424","St. Helens 019","E08000013","St. Helens","Inner and Outer Conurbation"]
[null,"E02001425","St. Helens 020","E08000013","St. Helens","Inner and Outer Conurbation"]
[null,"E02001426","St. Helens 021","E08000013","St. Helens","Inner and Outer Conurbation"]
[null,"E02001427","St. Helens 022","E08000013","St. Helens","Inner and Outer Conurbation"]
[null,"E02001428","St. Helens 023","E08000013","St. Helens","Inner and Outer Conurbation"]
[null,"E02001429","Sefton 001","E08000014","Sefton","Inner and Outer Conurbation"]
[null,"E02001430","Sefton 002","E08000014","Sefton","Inner and Outer Conurbation"]
[null,"E02001431","Sefton 003","E08000014","Sefton","Inner and Outer Conurbation"]
[null,"E02001432","Sefton 004","E08000014","Sefton","Inner and Outer Conurbation"]
[null,"E02001433","Sefton 005","E08000014","Sefton","Inner and Outer Conurbation"]
[null,"E02001434","Sefton 006","E08000014","Sefton","Inner and Outer Conurbation"]
[null,"E02001435","Sefton 007","E08000014","Sefton","Inner and Outer Conurbation"]
[null,"E02001436","Sefton 008","E08000014","Sefton","Inner and Outer Conurbation"]
[null,"E02001437","Sefton 009","E08000014","Sefton","Inner and Outer Conurbation"]
[null,"E02001438","Sefton 010","E08000014","Sefton","Inner and Outer Conurbation"]
[null,"E02001439","Sefton 011","E08000014","Sefton","Inner and Outer Conurbation"]
[null,"E02001440","Sefton 012","E08000014","Sefton","Inner and Outer Conurbation"]
[null,"E02001441","Sefton 013","E08000014","Sefton","Inner and Outer Conurbation"]
[null,"E02001442","Sefton 014","E08000014","Sefton","Inner and Outer Conurbation"]
[null,"E02001443","Sefton 015","E08000014","Sefton","Inner and Outer Conurbation"]
[null,"E02001444","Sefton 016","E08000014","Sefton","Inner and Outer Conurbation"]
[null,"E02001445","Sefton 017","E08000014","Sefton","Inner and Outer Conurbation"]
[null,"E02001446","Sefton 018","E08000014","Sefton","Inner and Outer Conurbation"]
[null,"E02001447","Sefton 019","E08000014","Sefton","Inner and Outer Conurbation"]
[null,"E02001448","Sefton 020","E08000014","Sefton","Inner and Outer Conurbation"]
[null,"E02001449","Sefton 021","E08000014","Sefton","Inner and Outer Conurbation"]
[null,"E02001450","Sefton 022","E08000014","Sefton","Inner and Outer Conurbation"]
[null,"E02001451","Sefton 023","E08000014","Sefton","Inner and Outer Conurbation"]
[null,"E02001452","Sefton 024","E08000014","Sefton","Inner and Outer Conurbation"]
[null,"E02001453","Sefton 025","E08000014","Sefton","Inner and Outer Conurbation"]
[null,"E02001454","Sefton 026","E08000014","Sefton","Inner and Outer Conurbation"]
[null,"E02001455","Sefton 027","E08000014","Sefton","Inner and Outer Conurbation"]
[null,"E02001456","Sefton 028","E08000014","Sefton","Inner and Outer Conurbation"]
[null,"E02001457","Sefton 029","E08000014","Sefton","Inner and Outer Conurbation"]
[null,"E02001458","Sefton 030","E08000014","Sefton","Inner and Outer Conurbation"]
[null,"E02001459","Sefton 031","E08000014","Sefton","Inner and Outer Conurbation"]
[null,"E02001460","Sefton 032","E08000014","Sefton","Inner and Outer Conurbation"]
[null,"E02001461","Sefton 033","E08000014","Sefton","Inner and Outer Conurbation"]
[null,"E02001462","Sefton 034","E08000014","Sefton","Inner and Outer Conurbation"]
[null,"E02001463","Sefton 035","E08000014","Sefton","Inner and Outer Conurbation"]
[null,"E02001464","Sefton 036","E08000014","Sefton","Inner and Outer Conurbation"]
[null,"E02001465","Sefton 037","E08000014","Sefton","Inner and Outer Conurbation"]
[null,"E02001466","Sefton 038","E08000014","Sefton","Inner and Outer Conurbation"]
[null,"E02001467","Wirral 001","E08000015","Wirral","Inner and Outer Conurbation"]
[null,"E02001468","Wirral 002","E08000015","Wirral","Inner and Outer Conurbation"]
[null,"E02001469","Wirral 003","E08000015","Wirral","Inner and Outer Conurbation"]
[null,"E02001470","Wirral 004","E08000015","Wirral","Inner and Outer Conurbation"]
[null,"E02001471","Wirral 005","E08000015","Wirral","Inner and Outer Conurbation"]
[null,"E02001472","Wirral 006","E08000015","Wirral","Inner and Outer Conurbation"]
[null,"E02001473","Wirral 007","E08000015","Wirral","Inner and Outer Conurbation"]
[null,"E02001474","Wirral 008","E08000015","Wirral","Inner and Outer Conurbation"]
[null,"E02001475","Wirral 009","E08000015","Wirral","Inner and Outer Conurbation"]
[null,"E02001476","Wirral 010","E08000015","Wirral","Inner and Outer Conurbation"]
[null,"E02001477","Wirral 011","E08000015","Wirral","Inner and Outer Conurbation"]
[null,"E02001478","Wirral 012","E08000015","Wirral","Inner and Outer Conurbation"]
[null,"E02001479","Wirral 013","E08000015","Wirral","Inner and Outer Conurbation"]
[null,"E02001480","Wirral 014","E08000015","Wirral","Inner and Outer Conurbation"]
[null,"E02001481","Wirral 015","E08000015","Wirral","Inner and Outer Conurbation"]
[null,"E02001482","Wirral 016","E08000015","Wirral","Inner and Outer Conurbation"]
[null,"E02001483","Wirral 017","E08000015","Wirral","Inner and Outer Conurbation"]
[null,"E02001484","Wirral 018","E08000015","Wirral","Inner and Outer Conurbation"]
[null,"E02001485","Wirral 019","E08000015","Wirral","Inner and Outer Conurbation"]
[null,"E02001486","Wirral 020","E08000015","Wirral","Inner and Outer Conurbation"]
[null,"E02001487","Wirral 021","E08000015","Wirral","Inner and Outer Conurbation"]
[null,"E02001488","Wirral 022","E08000015","Wirral","Inner and Outer Conurbation"]
[null,"E02001489","Wirral 023","E08000015","Wirral","Inner and Outer Conurbation"]
[null,"E02001490","Wirral 024","E08000015","Wirral","Inner and Outer Conurbation"]
[null,"E02001491","Wirral 025","E08000015","Wirral","Inner and Outer Conurbation"]
[null,"E02001492","Wirral 026","E08000015","Wirral","Inner and Outer Conurbation"]
[null,"E02001493","Wirral 027","E08000015","Wirral","Inner and Outer Conurbation"]
[null,"E02001494","Wirral 028","E08000015","Wirral","Inner and Outer Conurbation"]
[null,"E02001495","Wirral 029","E08000015","Wirral","Inner and Outer Conurbation"]
[null,"E02001496","Wirral 030","E08000015","Wirral","Inner and Outer Conurbation"]
[null,"E02001497","Wirral 031","E08000015","Wirral","Inner and Outer Conurbation"]
[null,"E02001498","Wirral 032","E08000015","Wirral","Inner and Outer Conurbation"]
[null,"E02001499","Wirral 033","E08000015","Wirral","Inner and Outer Conurbation"]
[null,"E02001500","Wirral 034","E08000015","Wirral","Inner and Outer Conurbation"]
[null,"E02001501","Wirral 035","E08000015","Wirral","Inner and Outer Conurbation"]
[null,"E02001502","Wirral 036","E08000015","Wirral","Inner and Outer Conurbation"]
[null,"E02001503","Wirral 037","E08000015","Wirral","Inner and Outer Conurbation"]
[null,"E02001504","Wirral 038","E08000015","Wirral","Inner and Outer Conurbation"]
[null,"E02001505","Wirral 039","E08000015","Wirral","Inner and Outer Conurbation"]
[null,"E02001506","Wirral 040","E08000015","Wirral","Inner and Outer Conurbation"]
[null,"E02001507","Wirral 041","E08000015","Wirral","Inner and Outer Conurbation"]
[null,"E02001508","Wirral 042","E08000015","Wirral","Inner and Outer Conurbation"]
[null,"E02001509","Barnsley 001","E08000016","Barnsley","Inner and Outer Conurbation"]
[null,"E02001510","Barnsley 002","E08000016","Barnsley","Inner and Outer Conurbation"]
[null,"E02001511","Barnsley 003","E08000016","Barnsley","Inner and Outer Conurbation"]
[null,"E02001512","Barnsley 004","E08000016","Barnsley","Inner and Outer Conurbation"]
[null,"E02001513","Barnsley 005","E08000016","Barnsley","Inner and Outer Conurbation"]
[null,"E02001514","Barnsley 006","E08000016","Barnsley","Inner and Outer Conurbation"]
[null,"E02001515","Barnsley 007","E08000016","Barnsley","Inner and Outer Conurbation"]
[null,"E02001516","Barnsley 008","E08000016","Barnsley","Inner and Outer Conurbation"]
[null,"E02001517","Barnsley 009","E08000016","Barnsley","Inner and Outer Conurbation"]
[null,"E02001518","Barnsley 010","E08000016","Barnsley","Inner and Outer Conurbation"]
[null,"E02001519","Barnsley 011","E08000016","Barnsley","Inner and Outer Conurbation"]
[null,"E02001520","Barnsley 012","E08000016","Barnsley","Inner and Outer Conurbation"]
[null,"E02001521","Barnsley 013","E08000016","Barnsley","Inner and Outer Conurbation"]
[null,"E02001522","Barnsley 014","E08000016","Barnsley","Inner and Outer Conurbation"]
[null,"E02001523","Barnsley 015","E08000016","Barnsley","Inner and Outer Conurbation"]
[null,"E02001524","Barnsley 016","E08000016","Barnsley","Inner and Outer Conurbation"]
[null,"E02001525","Barnsley 017","E08000016","Barnsley","Inner and Outer Conurbation"]
[null,"E02001526","Barnsley 018","E08000016","Barnsley","Inner and Outer Conurbation"]
[null,"E02001527","Barnsley 019","E08000016","Barnsley","Inner and Outer Conurbation"]
[null,"E02001528","Barnsley 020","E08000016","Barnsley","Inner and Outer Conurbation"]
[null,"E02001529","Barnsley 021","E08000016","Barnsley","Inner and Outer Conurbation"]
[null,"E02001530","Barnsley 022","E08000016","Barnsley","Inner and Outer Conurbation"]
[null,"E02001531","Barnsley 023","E08000016","Barnsley","Inner and Outer Conurbation"]
[null,"E02001532","Barnsley 024","E08000016","Barnsley","Inner and Outer Conurbation"]
[null,"E02001533","Barnsley 025","E08000016","Barnsley","Inner and Outer Conurbation"]
[null,"E02001534","Barnsley 026","E08000016","Barnsley","Inner and Outer Conurbation"]
[null,"E02001535","Barnsley 027","E08000016","Barnsley","Inner and Outer Conurbation"]
[null,"E02001536","Barnsley 028","E08000016","Barnsley","Inner and Outer Conurbation"]
[null,"E02001537","Barnsley 029","E08000016","Barnsley","Inner and Outer Conurbation"]
[null,"E02001538","Barnsley 030","E08000016","Barnsley","Inner and Outer Conurbation"]
[null,"E02001539","Doncaster 001","E08000017","Doncaster","Inner and Outer Conurbation"]
[null,"E02001540","Doncaster 002","E08000017","Doncaster","Inner and Outer Conurbation"]
[null,"E02001541","Doncaster 003","E08000017","Doncaster","Inner and Outer Conurbation"]
[null,"E02001542","Doncaster 004","E08000017","Doncaster","Inner and Outer Conurbation"]
[null,"E02001543","Doncaster 005","E08000017","Doncaster","Inner and Outer Conurbation"]
[null,"E02001544","Doncaster 006","E08000017","Doncaster","Inner and Outer Conurbation"]
[null,"E02001545","Doncaster 007","E08000017","Doncaster","Inner and Outer Conurbation"]
[null,"E02001546","Doncaster 008","E08000017","Doncaster","Inner and Outer Conurbation"]
[null,"E02001547","Doncaster 009","E08000017","Doncaster","Inner and Outer Conurbation"]
[null,"E02001548","Doncaster 010","E08000017","Doncaster","Inner and Outer Conurbation"]
[null,"E02001549","Doncaster 011","E08000017","Doncaster","Inner and Outer Conurbation"]
[null,"E02001550","Doncaster 012","E08000017","Doncaster","Inner and Outer Conurbation"]
[null,"E02001551","Doncaster 013","E08000017","Doncaster","Inner and Outer Conurbation"]
[null,"E02001552","Doncaster 014","E08000017","Doncaster","Inner and Outer Conurbation"]
[null,"E02001553","Doncaster 015","E08000017","Doncaster","Inner and Outer Conurbation"]
[null,"E02001554","Doncaster 016","E08000017","Doncaster","Inner and Outer Conurbation"]
[null,"E02001555","Doncaster 017","E08000017","Doncaster","Inner and Outer Conurbation"]
[null,"E02001556","Doncaster 018","E08000017","Doncaster","Inner and Outer Conurbation"]
[null,"E02001557","Doncaster 019","E08000017","Doncaster","Inner and Outer Conurbation"]
[null,"E02001558","Doncaster 020","E08000017","Doncaster","Inner and Outer Conurbation"]
[null,"E02001559","Doncaster 021","E08000017","Doncaster","Inner and Outer Conurbation"]
[null,"E02001560","Doncaster 022","E08000017","Doncaster","Inner and Outer Conurbation"]
[null,"E02001561","Doncaster 023","E08000017","Doncaster","Inner and Outer Conurbation"]
[null,"E02001562","Doncaster 024","E08000017","Doncaster","Inner and Outer Conurbation"]
[null,"E02001563","Doncaster 025","E08000017","Doncaster","Inner and Outer Conurbation"]
[null,"E02001564","Doncaster 026","E08000017","Doncaster","Inner and Outer Conurbation"]
[null,"E02001565","Doncaster 027","E08000017","Doncaster","Inner and Outer Conurbation"]
[null,"E02001566","Doncaster 028","E08000017","Doncaster","Inner and Outer Conurbation"]
[null,"E02001567","Doncaster 029","E08000017","Doncaster","Inner and Outer Conurbation"]
[null,"E02001568","Doncaster 030","E08000017","Doncaster","Inner and Outer Conurbation"]
[null,"E02001569","Doncaster 031","E08000017","Doncaster","Inner and Outer Conurbation"]
[null,"E02001570","Doncaster 032","E08000017","Doncaster","Inner and Outer Conurbation"]
[null,"E02001571","Doncaster 033","E08000017","Doncaster","Inner and Outer Conurbation"]
[null,"E02001572","Doncaster 034","E08000017","Doncaster","Inner and Outer Conurbation"]
[null,"E02001573","Doncaster 035","E08000017","Doncaster","Inner and Outer Conurbation"]
[null,"E02001574","Doncaster 036","E08000017","Doncaster","Inner and Outer Conurbation"]
[null,"E02001575","Doncaster 037","E08000017","Doncaster","Inner and Outer Conurbation"]
[null,"E02001576","Doncaster 038","E08000017","Doncaster","Inner and Outer Conurbation"]
[null,"E02001577","Doncaster 039","E08000017","Doncaster","Inner and Outer Conurbation"]
[null,"E02001578","Rotherham 001","E08000018","Rotherham","Inner and Outer Conurbation"]
[null,"E02001579","Rotherham 002","E08000018","Rotherham","Inner and Outer Conurbation"]
[null,"E02001580","Rotherham 003","E08000018","Rotherham","Inner and Outer Conurbation"]
[null,"E02001581","Rotherham 004","E08000018","Rotherham","Inner and Outer Conurbation"]
[null,"E02001582","Rotherham 005","E08000018","Rotherham","Inner and Outer Conurbation"]
[null,"E02001583","Rotherham 006","E08000018","Rotherham","Inner and Outer Conurbation"]
[null,"E02001584","Rotherham 007","E08000018","Rotherham","Inner and Outer Conurbation"]
[null,"E02001585","Rotherham 008","E08000018","Rotherham","Inner and Outer Conurbation"]
[null,"E02001586","Rotherham 009","E08000018","Rotherham","Inner and Outer Conurbation"]
[null,"E02001587","Rotherham 010","E08000018","Rotherham","Inner and Outer Conurbation"]
[null,"E02001588","Rotherham 011","E08000018","Rotherham","Inner and Outer Conurbation"]
[null,"E02001589","Rotherham 012","E08000018","Rotherham","Inner and Outer Conurbation"]
[null,"E02001590","Rotherham 013","E08000018","Rotherham","Inner and Outer Conurbation"]
[null,"E02001591","Rotherham 014","E08000018","Rotherham","Inner and Outer Conurbation"]
[null,"E02001592","Rotherham 015","E08000018","Rotherham","Inner and Outer Conurbation"]
[null,"E02001593","Rotherham 016","E08000018","Rotherham","Inner and Outer Conurbation"]
[null,"E02001594","Rotherham 017","E08000018","Rotherham","Inner and Outer Conurbation"]
[null,"E02001595","Rotherham 018","E08000018","Rotherham","Inner and Outer Conurbation"]
[null,"E02001596","Rotherham 019","E08000018","Rotherham","Inner and Outer Conurbation"]
[null,"E02001597","Rotherham 020","E08000018","Rotherham","Inner and Outer Conurbation"]
[null,"E02001598","Rotherham 021","E08000018","Rotherham","Inner and Outer Conurbation"]
[null,"E02001599","Rotherham 022","E08000018","Rotherham","Inner and Outer Conurbation"]
[null,"E02001600","Rotherham 023","E08000018","Rotherham","Inner and Outer Conurbation"]
[null,"E02001601","Rotherham 024","E08000018","Rotherham","Inner and Outer Conurbation"]
[null,"E02001602","Rotherham 025","E08000018","Rotherham","Inner and Outer Conurbation"]
[null,"E02001603","Rotherham 026","E08000018","Rotherham","Inner and Outer Conurbation"]
[null,"E02001604","Rotherham 027","E08000018","Rotherham","Inner and Outer Conurbation"]
[null,"E02001605","Rotherham 028","E08000018","Rotherham","Inner and Outer Conurbation"]
[null,"E02001606","Rotherham 029","E08000018","Rotherham","Inner and Outer Conurbation"]
[null,"E02001607","Rotherham 030","E08000018","Rotherham","Inner and Outer Conurbation"]
[null,"E02001608","Rotherham 031","E08000018","Rotherham","Inner and Outer Conurbation"]
[null,"E02001609","Rotherham 032","E08000018","Rotherham","Inner and Outer Conurbation"]
[null,"E02001610","Rotherham 033","E08000018","Rotherham","Inner and Outer Conurbation"]
[null,"E02001611","Sheffield 001","E08000019","Sheffield","Inner and Outer Conurbation"]
[null,"E02001612","Sheffield 002","E08000019","Sheffield","Inner and Outer Conurbation"]
[null,"E02001613","Sheffield 003","E08000019","Sheffield","Inner and Outer Conurbation"]
[null,"E02001614","Sheffield 004","E08000019","Sheffield","Inner and Outer Conurbation"]
[null,"E02001615","Sheffield 005","E08000019","Sheffield","Inner and Outer Conurbation"]
[null,"E02001616","Sheffield 006","E08000019","Sheffield","Inner and Outer Conurbation"]
[null,"E02001617","Sheffield 007","E08000019","Sheffield","Inner and Outer Conurbation"]
[null,"E02001618","Sheffield 008","E08000019","Sheffield","Inner and Outer Conurbation"]
[null,"E02001619","Sheffield 009","E08000019","Sheffield","Inner and Outer Conurbation"]
[null,"E02001620","Sheffield 010","E08000019","Sheffield","Inner and Outer Conurbation"]
[null,"E02001621","Sheffield 011","E08000019","Sheffield","Inner and Outer Conurbation"]
[null,"E02001622","Sheffield 012","E08000019","Sheffield","Inner and Outer Conurbation"]
[null,"E02001623","Sheffield 013","E08000019","Sheffield","Inner and Outer Conurbation"]
[null,"E02001624","Sheffield 014","E08000019","Sheffield","Inner and Outer Conurbation"]
[null,"E02001625","Sheffield 015","E08000019","Sheffield","Inner and Outer Conurbation"]
[null,"E02001626","Sheffield 016","E08000019","Sheffield","Inner and Outer Conurbation"]
[null,"E02001627","Sheffield 017","E08000019","Sheffield","Inner and Outer Conurbation"]
[null,"E02001628","Sheffield 018","E08000019","Sheffield","Inner and Outer Conurbation"]
[null,"E02001629","Sheffield 019","E08000019","Sheffield","Inner and Outer Conurbation"]
[null,"E02001630","Sheffield 020","E08000019","Sheffield","Inner and Outer Conurbation"]
[null,"E02001631","Sheffield 021","E08000019","Sheffield","Inner and Outer Conurbation"]
[null,"E02001632","Sheffield 022","E08000019","Sheffield","Inner and Outer Conurbation"]
[null,"E02001633","Sheffield 023","E08000019","Sheffield","Inner and Outer Conurbation"]
[null,"E02001634","Sheffield 024","E08000019","Sheffield","Inner and Outer Conurbation"]
[null,"E02001635","Sheffield 025","E08000019","Sheffield","Inner and Outer Conurbation"]
[null,"E02001636","Sheffield 026","E08000019","Sheffield","Inner and Outer Conurbation"]
[null,"E02001637","Sheffield 027","E08000019","Sheffield","Inner and Outer Conurbation"]
[null,"E02001638","Sheffield 028","E08000019","Sheffield","Inner and Outer Conurbation"]
[null,"E02001639","Sheffield 029","E08000019","Sheffield","Inner and Outer Conurbation"]
[null,"E02001640","Sheffield 030","E08000019","Sheffield","Inner and Outer Conurbation"]
[null,"E02001642","Sheffield 032","E08000019","Sheffield","Inner and Outer Conurbation"]
[null,"E02001643","Sheffield 033","E08000019","Sheffield","Inner and Outer Conurbation"]
[null,"E02001646","Sheffield 036","E08000019","Sheffield","Inner and Outer Conurbation"]
[null,"E02001647","Sheffield 037","E08000019","Sheffield","Inner and Outer Conurbation"]
[null,"E02001648","Sheffield 038","E08000019","Sheffield","Inner and Outer Conurbation"]
[null,"E02001649","Sheffield 039","E08000019","Sheffield","Inner and Outer Conurbation"]
[null,"E02001650","Sheffield 040","E08000019","Sheffield","Inner and Outer Conurbation"]
[null,"E02001651","Sheffield 041","E08000019","Sheffield","Inner and Outer Conurbation"]
[null,"E02001652","Sheffield 042","E08000019","Sheffield","Inner and Outer Conurbation"]
[null,"E02001653","Sheffield 043","E08000019","Sheffield","Inner and Outer Conurbation"]
[null,"E02001654","Sheffield 044","E08000019","Sheffield","Inner and Outer Conurbation"]
[null,"E02001655","Sheffield 045","E08000019","Sheffield","Inner and Outer Conurbation"]
[null,"E02001656","Sheffield 046","E08000019","Sheffield","Inner and Outer Conurbation"]
[null,"E02001657","Sheffield 047","E08000019","Sheffield","Inner and Outer Conurbation"]
[null,"E02001658","Sheffield 048","E08000019","Sheffield","Inner and Outer Conurbation"]
[null,"E02001659","Sheffield 049","E08000019","Sheffield","Inner and Outer Conurbation"]
[null,"E02001660","Sheffield 050","E08000019","Sheffield","Inner and Outer Conurbation"]
[null,"E02001661","Sheffield 051","E08000019","Sheffield","Inner and Outer Conurbation"]
[null,"E02001662","Sheffield 052","E08000019","Sheffield","Inner and Outer Conurbation"]
[null,"E02001663","Sheffield 053","E08000019","Sheffield","Inner and Outer Conurbation"]
[null,"E02001664","Sheffield 054","E08000019","Sheffield","Inner and Outer Conurbation"]
[null,"E02001665","Sheffield 055","E08000019","Sheffield","Inner and Outer Conurbation"]
[null,"E02001666","Sheffield 056","E08000019","Sheffield","Inner and Outer Conurbation"]
[null,"E02001669","Sheffield 059","E08000019","Sheffield","Inner and Outer Conurbation"]
[null,"E02001670","Sheffield 060","E08000019","Sheffield","Inner and Outer Conurbation"]
[null,"E02001671","Sheffield 061","E08000019","Sheffield","Inner and Outer Conurbation"]
[null,"E02001672","Sheffield 062","E08000019","Sheffield","Inner and Outer Conurbation"]
[null,"E02001673","Sheffield 063","E08000019","Sheffield","Inner and Outer Conurbation"]
[null,"E02001674","Sheffield 064","E08000019","Sheffield","Inner and Outer Conurbation"]
[null,"E02001675","Sheffield 065","E08000019","Sheffield","Inner and Outer Conurbation"]
[null,"E02001676","Sheffield 066","E08000019","Sheffield","Inner and Outer Conurbation"]
[null,"E02001678","Sheffield 068","E08000019","Sheffield","Inner and Outer Conurbation"]
[null,"E02001679","Sheffield 069","E08000019","Sheffield","Inner and Outer Conurbation"]
[null,"E02001680","Sheffield 070","E08000019","Sheffield","Inner and Outer Conurbation"]
[null,"E02001681","Sheffield 071","E08000019","Sheffield","Inner and Outer Conurbation"]
[null,"E02001682","Gateshead 001","E08000020","Gateshead","Inner and Outer Conurbation"]
[null,"E02001683","Gateshead 002","E08000020","Gateshead","Inner and Outer Conurbation"]
[null,"E02001684","Gateshead 003","E08000020","Gateshead","Inner and Outer Conurbation"]
[null,"E02001685","Gateshead 004","E08000020","Gateshead","Inner and Outer Conurbation"]
[null,"E02001686","Gateshead 005","E08000020","Gateshead","Inner and Outer Conurbation"]
[null,"E02001688","Gateshead 007","E08000020","Gateshead","Inner and Outer Conurbation"]
[null,"E02001689","Gateshead 008","E08000020","Gateshead","Inner and Outer Conurbation"]
[null,"E02001690","Gateshead 009","E08000020","Gateshead","Inner and Outer Conurbation"]
[null,"E02001691","Gateshead 010","E08000020","Gateshead","Inner and Outer Conurbation"]
[null,"E02001692","Gateshead 011","E08000020","Gateshead","Inner and Outer Conurbation"]
[null,"E02001693","Gateshead 012","E08000020","Gateshead","Inner and Outer Conurbation"]
[null,"E02001694","Gateshead 013","E08000020","Gateshead","Inner and Outer Conurbation"]
[null,"E02001695","Gateshead 014","E08000020","Gateshead","Inner and Outer Conurbation"]
[null,"E02001696","Gateshead 015","E08000020","Gateshead","Inner and Outer Conurbation"]
[null,"E02001697","Gateshead 016","E08000020","Gateshead","Inner and Outer Conurbation"]
[null,"E02001698","Gateshead 017","E08000020","Gateshead","Inner and Outer Conurbation"]
[null,"E02001699","Gateshead 018","E08000020","Gateshead","Inner and Outer Conurbation"]
[null,"E02001700","Gateshead 019","E08000020","Gateshead","Inner and Outer Conurbation"]
[null,"E02001701","Gateshead 020","E08000020","Gateshead","Inner and Outer Conurbation"]
[null,"E02001702","Gateshead 021","E08000020","Gateshead","Inner and Outer Conurbation"]
[null,"E02001703","Gateshead 022","E08000020","Gateshead","Inner and Outer Conurbation"]
[null,"E02001704","Gateshead 023","E08000020","Gateshead","Inner and Outer Conurbation"]
[null,"E02001705","Gateshead 024","E08000020","Gateshead","Inner and Outer Conurbation"]
[null,"E02001706","Gateshead 025","E08000020","Gateshead","Inner and Outer Conurbation"]
[null,"E02001707","Gateshead 026","E08000020","Gateshead","Inner and Outer Conurbation"]
[null,"E02001708","Newcastle upon Tyne 001","E08000021","Newcastle upon Tyne","Inner and Outer Conurbation"]
[null,"E02001709","Newcastle upon Tyne 002","E08000021","Newcastle upon Tyne","Inner and Outer Conurbation"]
[null,"E02001710","Newcastle upon Tyne 003","E08000021","Newcastle upon Tyne","Inner and Outer Conurbation"]
[null,"E02001711","Newcastle upon Tyne 004","E08000021","Newcastle upon Tyne","Inner and Outer Conurbation"]
[null,"E02001712","Newcastle upon Tyne 005","E08000021","Newcastle upon Tyne","Inner and Outer Conurbation"]
[null,"E02001713","Newcastle upon Tyne 006","E08000021","Newcastle upon Tyne","Inner and Outer Conurbation"]
[null,"E02001714","Newcastle upon Tyne 007","E08000021","Newcastle upon Tyne","Inner and Outer Conurbation"]
[null,"E02001715","Newcastle upon Tyne 008","E08000021","Newcastle upon Tyne","Inner and Outer Conurbation"]
[null,"E02001718","Newcastle upon Tyne 011","E08000021","Newcastle upon Tyne","Inner and Outer Conurbation"]
[null,"E02001719","Newcastle upon Tyne 012","E08000021","Newcastle upon Tyne","Inner and Outer Conurbation"]
[null,"E02001720","Newcastle upon Tyne 013","E08000021","Newcastle upon Tyne","Inner and Outer Conurbation"]
[null,"E02001721","Newcastle upon Tyne 014","E08000021","Newcastle upon Tyne","Inner and Outer Conurbation"]
[null,"E02001722","Newcastle upon Tyne 015","E08000021","Newcastle upon Tyne","Inner and Outer Conurbation"]
[null,"E02001723","Newcastle upon Tyne 016","E08000021","Newcastle upon Tyne","Inner and Outer Conurbation"]
[null,"E02001724","Newcastle upon Tyne 017","E08000021","Newcastle upon Tyne","Inner and Outer Conurbation"]
[null,"E02001725","Newcastle upon Tyne 018","E08000021","Newcastle upon Tyne","Inner and Outer Conurbation"]
[null,"E02001726","Newcastle upon Tyne 019","E08000021","Newcastle upon Tyne","Inner and Outer Conurbation"]
[null,"E02001727","Newcastle upon Tyne 020","E08000021","Newcastle upon Tyne","Inner and Outer Conurbation"]
[null,"E02001728","Newcastle upon Tyne 021","E08000021","Newcastle upon Tyne","Inner and Outer Conurbation"]
[null,"E02001729","Newcastle upon Tyne 022","E08000021","Newcastle upon Tyne","Inner and Outer Conurbation"]
[null,"E02001730","Newcastle upon Tyne 023","E08000021","Newcastle upon Tyne","Inner and Outer Conurbation"]
[null,"E02001731","Newcastle upon Tyne 024","E08000021","Newcastle upon Tyne","Inner and Outer Conurbation"]
[null,"E02001732","Newcastle upon Tyne 025","E08000021","Newcastle upon Tyne","Inner and Outer Conurbation"]
[null,"E02001733","Newcastle upon Tyne 026","E08000021","Newcastle upon Tyne","Inner and Outer Conurbation"]
[null,"E02001734","Newcastle upon Tyne 027","E08000021","Newcastle upon Tyne","Inner and Outer Conurbation"]
[null,"E02001735","Newcastle upon Tyne 028","E08000021","Newcastle upon Tyne","Inner and Outer Conurbation"]
[null,"E02001736","Newcastle upon Tyne 029","E08000021","Newcastle upon Tyne","Inner and Outer Conurbation"]
[null,"E02001737","Newcastle upon Tyne 030","E08000021","Newcastle upon Tyne","Inner and Outer Conurbation"]
[null,"E02001738","North Tyneside 001","E08000022","North Tyneside","Inner and Outer Conurbation"]
[null,"E02001739","North Tyneside 002","E08000022","North Tyneside","Inner and Outer Conurbation"]
[null,"E02001740","North Tyneside 003","E08000022","North Tyneside","Inner and Outer Conurbation"]
[null,"E02001741","North Tyneside 004","E08000022","North Tyneside","Inner and Outer Conurbation"]
[null,"E02001742","North Tyneside 005","E08000022","North Tyneside","Inner and Outer Conurbation"]
[null,"E02001743","North Tyneside 006","E08000022","North Tyneside","Inner and Outer Conurbation"]
[null,"E02001744","North Tyneside 007","E08000022","North Tyneside","Inner and Outer Conurbation"]
[null,"E02001745","North Tyneside 008","E08000022","North Tyneside","Inner and Outer Conurbation"]
[null,"E02001746","North Tyneside 009","E08000022","North Tyneside","Inner and Outer Conurbation"]
[null,"E02001747","North Tyneside 010","E08000022","North Tyneside","Inner and Outer Conurbation"]
[null,"E02001748","North Tyneside 011","E08000022","North Tyneside","Inner and Outer Conurbation"]
[null,"E02001749","North Tyneside 012","E08000022","North Tyneside","Inner and Outer Conurbation"]
[null,"E02001750","North Tyneside 013","E08000022","North Tyneside","Inner and Outer Conurbation"]
[null,"E02001751","North Tyneside 014","E08000022","North Tyneside","Inner and Outer Conurbation"]
[null,"E02001752","North Tyneside 015","E08000022","North Tyneside","Inner and Outer Conurbation"]
[null,"E02001753","North Tyneside 016","E08000022","North Tyneside","Inner and Outer Conurbation"]
[null,"E02001754","North Tyneside 017","E08000022","North Tyneside","Inner and Outer Conurbation"]
[null,"E02001755","North Tyneside 018","E08000022","North Tyneside","Inner and Outer Conurbation"]
[null,"E02001756","North Tyneside 019","E08000022","North Tyneside","Inner and Outer Conurbation"]
[null,"E02001757","North Tyneside 020","E08000022","North Tyneside","Inner and Outer Conurbation"]
[null,"E02001758","North Tyneside 021","E08000022","North Tyneside","Inner and Outer Conurbation"]
[null,"E02001759","North Tyneside 022","E08000022","North Tyneside","Inner and Outer Conurbation"]
[null,"E02001760","North Tyneside 023","E08000022","North Tyneside","Inner and Outer Conurbation"]
[null,"E02001761","North Tyneside 024","E08000022","North Tyneside","Inner and Outer Conurbation"]
[null,"E02001762","North Tyneside 025","E08000022","North Tyneside","Inner and Outer Conurbation"]
[null,"E02001763","North Tyneside 026","E08000022","North Tyneside","Inner and Outer Conurbation"]
[null,"E02001764","North Tyneside 027","E08000022","North Tyneside","Inner and Outer Conurbation"]
[null,"E02001765","North Tyneside 028","E08000022","North Tyneside","Inner and Outer Conurbation"]
[null,"E02001766","North Tyneside 029","E08000022","North Tyneside","Inner and Outer Conurbation"]
[null,"E02001767","North Tyneside 030","E08000022","North Tyneside","Inner and Outer Conurbation"]
[null,"E02001768","South Tyneside 001","E08000023","South Tyneside","Inner and Outer Conurbation"]
[null,"E02001769","South Tyneside 002","E08000023","South Tyneside","Inner and Outer Conurbation"]
[null,"E02001770","South Tyneside 003","E08000023","South Tyneside","Inner and Outer Conurbation"]
[null,"E02001771","South Tyneside 004","E08000023","South Tyneside","Inner and Outer Conurbation"]
[null,"E02001772","South Tyneside 005","E08000023","South Tyneside","Inner and Outer Conurbation"]
[null,"E02001773","South Tyneside 006","E08000023","South Tyneside","Inner and Outer Conurbation"]
[null,"E02001774","South Tyneside 007","E08000023","South Tyneside","Inner and Outer Conurbation"]
[null,"E02001775","South Tyneside 008","E08000023","South Tyneside","Inner and Outer Conurbation"]
[null,"E02001776","South Tyneside 009","E08000023","South Tyneside","Inner and Outer Conurbation"]
[null,"E02001777","South Tyneside 010","E08000023","South Tyneside","Inner and Outer Conurbation"]
[null,"E02001778","South Tyneside 011","E08000023","South Tyneside","Inner and Outer Conurbation"]
[null,"E02001779","South Tyneside 012","E08000023","South Tyneside","Inner and Outer Conurbation"]
[null,"E02001780","South Tyneside 013","E08000023","South Tyneside","Inner and Outer Conurbation"]
[null,"E02001781","South Tyneside 014","E08000023","South Tyneside","Inner and Outer Conurbation"]
[null,"E02001782","South Tyneside 015","E08000023","South Tyneside","Inner and Outer Conurbation"]
[null,"E02001783","South Tyneside 016","E08000023","South Tyneside","Inner and Outer Conurbation"]
[null,"E02001784","South Tyneside 017","E08000023","South Tyneside","Inner and Outer Conurbation"]
[null,"E02001785","South Tyneside 018","E08000023","South Tyneside","Inner and Outer Conurbation"]
[null,"E02001786","South Tyneside 019","E08000023","South Tyneside","Inner and Outer Conurbation"]
[null,"E02001787","South Tyneside 020","E08000023","South Tyneside","Inner and Outer Conurbation"]
[null,"E02001788","South Tyneside 021","E08000023","South Tyneside","Inner and Outer Conurbation"]
[null,"E02001789","South Tyneside 022","E08000023","South Tyneside","Inner and Outer Conurbation"]
[null,"E02001790","South Tyneside 023","E08000023","South Tyneside","Inner and Outer Conurbation"]
[null,"E02001791","Sunderland 001","E08000024","Sunderland","Inner and Outer Conurbation"]
[null,"E02001792","Sunderland 002","E08000024","Sunderland","Inner and Outer Conurbation"]
[null,"E02001793","Sunderland 003","E08000024","Sunderland","Inner and Outer Conurbation"]
[null,"E02001794","Sunderland 004","E08000024","Sunderland","Inner and Outer Conurbation"]
[null,"E02001795","Sunderland 005","E08000024","Sunderland","Inner and Outer Conurbation"]
[null,"E02001796","Sunderland 006","E08000024","Sunderland","Inner and Outer Conurbation"]
[null,"E02001797","Sunderland 007","E08000024","Sunderland","Inner and Outer Conurbation"]
[null,"E02001798","Sunderland 008","E08000024","Sunderland","Inner and Outer Conurbation"]
[null,"E02001799","Sunderland 009","E08000024","Sunderland","Inner and Outer Conurbation"]
[null,"E02001800","Sunderland 010","E08000024","Sunderland","Inner and Outer Conurbation"]
[null,"E02001801","Sunderland 011","E08000024","Sunderland","Inner and Outer Conurbation"]
[null,"E02001802","Sunderland 012","E08000024","Sunderland","Inner and Outer Conurbation"]
[null,"E02001803","Sunderland 013","E08000024","Sunderland","Inner and Outer Conurbation"]
[null,"E02001804","Sunderland 014","E08000024","Sunderland","Inner and Outer Conurbation"]
[null,"E02001805","Sunderland 015","E08000024","Sunderland","Inner and Outer Conurbation"]
[null,"E02001806","Sunderland 016","E08000024","Sunderland","Inner and Outer Conurbation"]
[null,"E02001807","Sunderland 017","E08000024","Sunderland","Inner and Outer Conurbation"]
[null,"E02001808","Sunderland 018","E08000024","Sunderland","Inner and Outer Conurbation"]
[null,"E02001809","Sunderland 019","E08000024","Sunderland","Inner and Outer Conurbation"]
[null,"E02001810","Sunderland 020","E08000024","Sunderland","Inner and Outer Conurbation"]
[null,"E02001811","Sunderland 021","E08000024","Sunderland","Inner and Outer Conurbation"]
[null,"E02001812","Sunderland 022","E08000024","Sunderland","Inner and Outer Conurbation"]
[null,"E02001813","Sunderland 023","E08000024","Sunderland","Inner and Outer Conurbation"]
[null,"E02001814","Sunderland 024","E08000024","Sunderland","Inner and Outer Conurbation"]
[null,"E02001815","Sunderland 025","E08000024","Sunderland","Inner and Outer Conurbation"]
[null,"E02001816","Sunderland 026","E08000024","Sunderland","Inner and Outer Conurbation"]
[null,"E02001817","Sunderland 027","E08000024","Sunderland","Inner and Outer Conurbation"]
[null,"E02001818","Sunderland 028","E08000024","Sunderland","Inner and Outer Conurbation"]
[null,"E02001819","Sunderland 029","E08000024","Sunderland","Inner and Outer Conurbation"]
[null,"E02001820","Sunderland 030","E08000024","Sunderland","Inner and Outer Conurbation"]
[null,"E02001821","Sunderland 031","E08000024","Sunderland","Inner and Outer Conurbation"]
[null,"E02001822","Sunderland 032","E08000024","Sunderland","Inner and Outer Conurbation"]
[null,"E02001823","Sunderland 033","E08000024","Sunderland","Inner and Outer Conurbation"]
[null,"E02001824","Sunderland 034","E08000024","Sunderland","Inner and Outer Conurbation"]
[null,"E02001825","Sunderland 035","E08000024","Sunderland","Inner and Outer Conurbation"]
[null,"E02001826","Sunderland 036","E08000024","Sunderland","Inner and Outer Conurbation"]
[null,"E02001827","Birmingham 001","E08000025","Birmingham","Inner and Outer Conurbation"]
[null,"E02001828","Birmingham 002","E08000025","Birmingham","Inner and Outer Conurbation"]
[null,"E02001829","Birmingham 003","E08000025","Birmingham","Inner and Outer Conurbation"]
[null,"E02001830","Birmingham 004","E08000025","Birmingham","Inner and Outer Conurbation"]
[null,"E02001831","Birmingham 005","E08000025","Birmingham","Inner and Outer Conurbation"]
[null,"E02001832","Birmingham 006","E08000025","Birmingham","Inner and Outer Conurbation"]
[null,"E02001833","Birmingham 007","E08000025","Birmingham","Inner and Outer Conurbation"]
[null,"E02001834","Birmingham 008","E08000025","Birmingham","Inner and Outer Conurbation"]
[null,"E02001835","Birmingham 009","E08000025","Birmingham","Inner and Outer Conurbation"]
[null,"E02001836","Birmingham 010","E08000025","Birmingham","Inner and Outer Conurbation"]
[null,"E02001837","Birmingham 011","E08000025","Birmingham","Inner and Outer Conurbation"]
[null,"E02001838","Birmingham 012","E08000025","Birmingham","Inner and Outer Conurbation"]
[null,"E02001839","Birmingham 013","E08000025","Birmingham","Inner and Outer Conurbation"]
[null,"E02001840","Birmingham 014","E08000025","Birmingham","Inner and Outer Conurbation"]
[null,"E02001841","Birmingham 015","E08000025","Birmingham","Inner and Outer Conurbation"]
[null,"E02001842","Birmingham 016","E08000025","Birmingham","Inner and Outer Conurbation"]
[null,"E02001843","Birmingham 017","E08000025","Birmingham","Inner and Outer Conurbation"]
[null,"E02001844","Birmingham 018","E08000025","Birmingham","Inner and Outer Conurbation"]
[null,"E02001845","Birmingham 019","E08000025","Birmingham","Inner and Outer Conurbation"]
[null,"E02001846","Birmingham 020","E08000025","Birmingham","Inner and Outer Conurbation"]
[null,"E02001847","Birmingham 021","E08000025","Birmingham","Inner and Outer Conurbation"]
[null,"E02001848","Birmingham 022","E08000025","Birmingham","Inner and Outer Conurbation"]
[null,"E02001849","Birmingham 023","E08000025","Birmingham","Inner and Outer Conurbation"]
[null,"E02001850","Birmingham 024","E08000025","Birmingham","Inner and Outer Conurbation"]
[null,"E02001851","Birmingham 025","E08000025","Birmingham","Inner and Outer Conurbation"]
[null,"E02001852","Birmingham 026","E08000025","Birmingham","Inner and Outer Conurbation"]
[null,"E02001854","Birmingham 028","E08000025","Birmingham","Inner and Outer Conurbation"]
[null,"E02001855","Birmingham 029","E08000025","Birmingham","Inner and Outer Conurbation"]
[null,"E02001856","Birmingham 030","E08000025","Birmingham","Inner and Outer Conurbation"]
[null,"E02001857","Birmingham 031","E08000025","Birmingham","Inner and Outer Conurbation"]
[null,"E02001858","Birmingham 032","E08000025","Birmingham","Inner and Outer Conurbation"]
[null,"E02001859","Birmingham 033","E08000025","Birmingham","Inner and Outer Conurbation"]
[null,"E02001860","Birmingham 034","E08000025","Birmingham","Inner and Outer Conurbation"]
[null,"E02001861","Birmingham 035","E08000025","Birmingham","Inner and Outer Conurbation"]
[null,"E02001862","Birmingham 036","E08000025","Birmingham","Inner and Outer Conurbation"]
[null,"E02001863","Birmingham 037","E08000025","Birmingham","Inner and Outer Conurbation"]
[null,"E02001864","Birmingham 038","E08000025","Birmingham","Inner and Outer Conurbation"]
[null,"E02001865","Birmingham 039","E08000025","Birmingham","Inner and Outer Conurbation"]
[null,"E02001866","Birmingham 040","E08000025","Birmingham","Inner and Outer Conurbation"]
[null,"E02001867","Birmingham 041","E08000025","Birmingham","Inner and Outer Conurbation"]
[null,"E02001868","Birmingham 042","E08000025","Birmingham","Inner and Outer Conurbation"]
[null,"E02001869","Birmingham 043","E08000025","Birmingham","Inner and Outer Conurbation"]
[null,"E02001870","Birmingham 044","E08000025","Birmingham","Inner and Outer Conurbation"]
[null,"E02001871","Birmingham 045","E08000025","Birmingham","Inner and Outer Conurbation"]
[null,"E02001872","Birmingham 046","E08000025","Birmingham","Inner and Outer Conurbation"]
[null,"E02001873","Birmingham 047","E08000025","Birmingham","Inner and Outer Conurbation"]
[null,"E02001874","Birmingham 048","E08000025","Birmingham","Inner and Outer Conurbation"]
[null,"E02001875","Birmingham 049","E08000025","Birmingham","Inner and Outer Conurbation"]
[null,"E02001876","Birmingham 050","E08000025","Birmingham","Inner and Outer Conurbation"]
[null,"E02001877","Birmingham 051","E08000025","Birmingham","Inner and Outer Conurbation"]
[null,"E02001878","Birmingham 052","E08000025","Birmingham","Inner and Outer Conurbation"]
[null,"E02001879","Birmingham 053","E08000025","Birmingham","Inner and Outer Conurbation"]
[null,"E02001880","Birmingham 054","E08000025","Birmingham","Inner and Outer Conurbation"]
[null,"E02001881","Birmingham 055","E08000025","Birmingham","Inner and Outer Conurbation"]
[null,"E02001882","Birmingham 056","E08000025","Birmingham","Inner and Outer Conurbation"]
[null,"E02001883","Birmingham 057","E08000025","Birmingham","Inner and Outer Conurbation"]
[null,"E02001884","Birmingham 058","E08000025","Birmingham","Inner and Outer Conurbation"]
[null,"E02001886","Birmingham 060","E08000025","Birmingham","Inner and Outer Conurbation"]
[null,"E02001888","Birmingham 062","E08000025","Birmingham","Inner and Outer Conurbation"]
[null,"E02001889","Birmingham 063","E08000025","Birmingham","Inner and Outer Conurbation"]
[null,"E02001890","Birmingham 064","E08000025","Birmingham","Inner and Outer Conurbation"]
[null,"E02001892","Birmingham 066","E08000025","Birmingham","Inner and Outer Conurbation"]
[null,"E02001893","Birmingham 067","E08000025","Birmingham","Inner and Outer Conurbation"]
[null,"E02001895","Birmingham 069","E08000025","Birmingham","Inner and Outer Conurbation"]
[null,"E02001896","Birmingham 070","E08000025","Birmingham","Inner and Outer Conurbation"]
[null,"E02001897","Birmingham 071","E08000025","Birmingham","Inner and Outer Conurbation"]
[null,"E02001898","Birmingham 072","E08000025","Birmingham","Inner and Outer Conurbation"]
[null,"E02001899","Birmingham 073","E08000025","Birmingham","Inner and Outer Conurbation"]
[null,"E02001900","Birmingham 074","E08000025","Birmingham","Inner and Outer Conurbation"]
[null,"E02001901","Birmingham 075","E08000025","Birmingham","Inner and Outer Conurbation"]
[null,"E02001902","Birmingham 076","E08000025","Birmingham","Inner and Outer Conurbation"]
[null,"E02001903","Birmingham 077","E08000025","Birmingham","Inner and Outer Conurbation"]
[null,"E02001904","Birmingham 078","E08000025","Birmingham","Inner and Outer Conurbation"]
[null,"E02001905","Birmingham 079","E08000025","Birmingham","Inner and Outer Conurbation"]
[null,"E02001906","Birmingham 080","E08000025","Birmingham","Inner and Outer Conurbation"]
[null,"E02001907","Birmingham 081","E08000025","Birmingham","Inner and Outer Conurbation"]
[null,"E02001908","Birmingham 082","E08000025","Birmingham","Inner and Outer Conurbation"]
[null,"E02001909","Birmingham 083","E08000025","Birmingham","Inner and Outer Conurbation"]
[null,"E02001910","Birmingham 084","E08000025","Birmingham","Inner and Outer Conurbation"]
[null,"E02001911","Birmingham 085","E08000025","Birmingham","Inner and Outer Conurbation"]
[null,"E02001913","Birmingham 087","E08000025","Birmingham","Inner and Outer Conurbation"]
[null,"E02001914","Birmingham 088","E08000025","Birmingham","Inner and Outer Conurbation"]
[null,"E02001915","Birmingham 089","E08000025","Birmingham","Inner and Outer Conurbation"]
[null,"E02001916","Birmingham 090","E08000025","Birmingham","Inner and Outer Conurbation"]
[null,"E02001918","Birmingham 092","E08000025","Birmingham","Inner and Outer Conurbation"]
[null,"E02001919","Birmingham 093","E08000025","Birmingham","Inner and Outer Conurbation"]
[null,"E02001920","Birmingham 094","E08000025","Birmingham","Inner and Outer Conurbation"]
[null,"E02001921","Birmingham 095","E08000025","Birmingham","Inner and Outer Conurbation"]
[null,"E02001922","Birmingham 096","E08000025","Birmingham","Inner and Outer Conurbation"]
[null,"E02001923","Birmingham 097","E08000025","Birmingham","Inner and Outer Conurbation"]
[null,"E02001924","Birmingham 098","E08000025","Birmingham","Inner and Outer Conurbation"]
[null,"E02001925","Birmingham 099","E08000025","Birmingham","Inner and Outer Conurbation"]
[null,"E02001926","Birmingham 100","E08000025","Birmingham","Inner and Outer Conurbation"]
[null,"E02001927","Birmingham 101","E08000025","Birmingham","Inner and Outer Conurbation"]
[null,"E02001928","Birmingham 102","E08000025","Birmingham","Inner and Outer Conurbation"]
[null,"E02001929","Birmingham 103","E08000025","Birmingham","Inner and Outer Conurbation"]
[null,"E02001930","Birmingham 104","E08000025","Birmingham","Inner and Outer Conurbation"]
[null,"E02001931","Birmingham 105","E08000025","Birmingham","Inner and Outer Conurbation"]
[null,"E02001932","Birmingham 106","E08000025","Birmingham","Inner and Outer Conurbation"]
[null,"E02001933","Birmingham 107","E08000025","Birmingham","Inner and Outer Conurbation"]
[null,"E02001934","Birmingham 108","E08000025","Birmingham","Inner and Outer Conurbation"]
[null,"E02001935","Birmingham 109","E08000025","Birmingham","Inner and Outer Conurbation"]
[null,"E02001936","Birmingham 110","E08000025","Birmingham","Inner and Outer Conurbation"]
[null,"E02001937","Birmingham 111","E08000025","Birmingham","Inner and Outer Conurbation"]
[null,"E02001938","Birmingham 112","E08000025","Birmingham","Inner and Outer Conurbation"]
[null,"E02001939","Birmingham 113","E08000025","Birmingham","Inner and Outer Conurbation"]
[null,"E02001941","Birmingham 115","E08000025","Birmingham","Inner and Outer Conurbation"]
[null,"E02001942","Birmingham 116","E08000025","Birmingham","Inner and Outer Conurbation"]
[null,"E02001943","Birmingham 117","E08000025","Birmingham","Inner and Outer Conurbation"]
[null,"E02001944","Birmingham 118","E08000025","Birmingham","Inner and Outer Conurbation"]
[null,"E02001945","Birmingham 119","E08000025","Birmingham","Inner and Outer Conurbation"]
[null,"E02001946","Birmingham 120","E08000025","Birmingham","Inner and Outer Conurbation"]
[null,"E02001947","Birmingham 121","E08000025","Birmingham","Inner and Outer Conurbation"]
[null,"E02001948","Birmingham 122","E08000025","Birmingham","Inner and Outer Conurbation"]
[null,"E02001949","Birmingham 123","E08000025","Birmingham","Inner and Outer Conurbation"]
[null,"E02001950","Birmingham 124","E08000025","Birmingham","Inner and Outer Conurbation"]
[null,"E02001951","Birmingham 125","E08000025","Birmingham","Inner and Outer Conurbation"]
[null,"E02001952","Birmingham 126","E08000025","Birmingham","Inner and Outer Conurbation"]
[null,"E02001953","Birmingham 127","E08000025","Birmingham","Inner and Outer Conurbation"]
[null,"E02001954","Birmingham 128","E08000025","Birmingham","Inner and Outer Conurbation"]
[null,"E02001955","Birmingham 129","E08000025","Birmingham","Inner and Outer Conurbation"]
[null,"E02001956","Birmingham 130","E08000025","Birmingham","Inner and Outer Conurbation"]
[null,"E02001957","Birmingham 131","E08000025","Birmingham","Inner and Outer Conurbation"]
[null,"E02001958","Coventry 001","E08000026","Coventry","Inner and Outer Conurbation"]
[null,"E02001959","Coventry 002","E08000026","Coventry","Inner and Outer Conurbation"]
[null,"E02001961","Coventry 004","E08000026","Coventry","Inner and Outer Conurbation"]
[null,"E02001962","Coventry 005","E08000026","Coventry","Inner and Outer Conurbation"]
[null,"E02001963","Coventry 006","E08000026","Coventry","Inner and Outer Conurbation"]
[null,"E02001964","Coventry 007","E08000026","Coventry","Inner and Outer Conurbation"]
[null,"E02001965","Coventry 008","E08000026","Coventry","Inner and Outer Conurbation"]
[null,"E02001966","Coventry 009","E08000026","Coventry","Inner and Outer Conurbation"]
[null,"E02001967","Coventry 010","E08000026","Coventry","Inner and Outer Conurbation"]
[null,"E02001968","Coventry 011","E08000026","Coventry","Inner and Outer Conurbation"]
[null,"E02001969","Coventry 012","E08000026","Coventry","Inner and Outer Conurbation"]
[null,"E02001970","Coventry 013","E08000026","Coventry","Inner and Outer Conurbation"]
[null,"E02001971","Coventry 014","E08000026","Coventry","Inner and Outer Conurbation"]
[null,"E02001972","Coventry 015","E08000026","Coventry","Inner and Outer Conurbation"]
[null,"E02001973","Coventry 016","E08000026","Coventry","Inner and Outer Conurbation"]
[null,"E02001974","Coventry 017","E08000026","Coventry","Inner and Outer Conurbation"]
[null,"E02001975","Coventry 018","E08000026","Coventry","Inner and Outer Conurbation"]
[null,"E02001976","Coventry 019","E08000026","Coventry","Inner and Outer Conurbation"]
[null,"E02001977","Coventry 020","E08000026","Coventry","Inner and Outer Conurbation"]
[null,"E02001978","Coventry 021","E08000026","Coventry","Inner and Outer Conurbation"]
[null,"E02001979","Coventry 022","E08000026","Coventry","Inner and Outer Conurbation"]
[null,"E02001980","Coventry 023","E08000026","Coventry","Inner and Outer Conurbation"]
[null,"E02001981","Coventry 024","E08000026","Coventry","Inner and Outer Conurbation"]
[null,"E02001982","Coventry 025","E08000026","Coventry","Inner and Outer Conurbation"]
[null,"E02001983","Coventry 026","E08000026","Coventry","Inner and Outer Conurbation"]
[null,"E02001984","Coventry 027","E08000026","Coventry","Inner and Outer Conurbation"]
[null,"E02001985","Coventry 028","E08000026","Coventry","Inner and Outer Conurbation"]
[null,"E02001986","Coventry 029","E08000026","Coventry","Inner and Outer Conurbation"]
[null,"E02001987","Coventry 030","E08000026","Coventry","Inner and Outer Conurbation"]
[null,"E02001988","Coventry 031","E08000026","Coventry","Inner and Outer Conurbation"]
[null,"E02001989","Coventry 032","E08000026","Coventry","Inner and Outer Conurbation"]
[null,"E02001990","Coventry 033","E08000026","Coventry","Inner and Outer Conurbation"]
[null,"E02001991","Coventry 034","E08000026","Coventry","Inner and Outer Conurbation"]
[null,"E02001992","Coventry 035","E08000026","Coventry","Inner and Outer Conurbation"]
[null,"E02001993","Coventry 036","E08000026","Coventry","Inner and Outer Conurbation"]
[null,"E02001994","Coventry 037","E08000026","Coventry","Inner and Outer Conurbation"]
[null,"E02001995","Coventry 038","E08000026","Coventry","Inner and Outer Conurbation"]
[null,"E02001996","Coventry 039","E08000026","Coventry","Inner and Outer Conurbation"]
[null,"E02001997","Coventry 040","E08000026","Coventry","Inner and Outer Conurbation"]
[null,"E02001998","Coventry 041","E08000026","Coventry","Inner and Outer Conurbation"]
[null,"E02001999","Coventry 042","E08000026","Coventry","Inner and Outer Conurbation"]
[null,"E02002000","Dudley 001","E08000027","Dudley","Inner and Outer Conurbation"]
[null,"E02002001","Dudley 002","E08000027","Dudley","Inner and Outer Conurbation"]
[null,"E02002002","Dudley 003","E08000027","Dudley","Inner and Outer Conurbation"]
[null,"E02002003","Dudley 004","E08000027","Dudley","Inner and Outer Conurbation"]
[null,"E02002004","Dudley 005","E08000027","Dudley","Inner and Outer Conurbation"]
[null,"E02002005","Dudley 006","E08000027","Dudley","Inner and Outer Conurbation"]
[null,"E02002006","Dudley 007","E08000027","Dudley","Inner and Outer Conurbation"]
[null,"E02002007","Dudley 008","E08000027","Dudley","Inner and Outer Conurbation"]
[null,"E02002008","Dudley 009","E08000027","Dudley","Inner and Outer Conurbation"]
[null,"E02002009","Dudley 010","E08000027","Dudley","Inner and Outer Conurbation"]
[null,"E02002010","Dudley 011","E08000027","Dudley","Inner and Outer Conurbation"]
[null,"E02002011","Dudley 012","E08000027","Dudley","Inner and Outer Conurbation"]
[null,"E02002012","Dudley 013","E08000027","Dudley","Inner and Outer Conurbation"]
[null,"E02002013","Dudley 014","E08000027","Dudley","Inner and Outer Conurbation"]
[null,"E02002014","Dudley 015","E08000027","Dudley","Inner and Outer Conurbation"]
[null,"E02002015","Dudley 016","E08000027","Dudley","Inner and Outer Conurbation"]
[null,"E02002016","Dudley 017","E08000027","Dudley","Inner and Outer Conurbation"]
[null,"E02002017","Dudley 018","E08000027","Dudley","Inner and Outer Conurbation"]
[null,"E02002018","Dudley 019","E08000027","Dudley","Inner and Outer Conurbation"]
[null,"E02002019","Dudley 020","E08000027","Dudley","Inner and Outer Conurbation"]
[null,"E02002020","Dudley 021","E08000027","Dudley","Inner and Outer Conurbation"]
[null,"E02002021","Dudley 022","E08000027","Dudley","Inner and Outer Conurbation"]
[null,"E02002022","Dudley 023","E08000027","Dudley","Inner and Outer Conurbation"]
[null,"E02002023","Dudley 024","E08000027","Dudley","Inner and Outer Conurbation"]
[null,"E02002024","Dudley 025","E08000027","Dudley","Inner and Outer Conurbation"]
[null,"E02002025","Dudley 026","E08000027","Dudley","Inner and Outer Conurbation"]
[null,"E02002026","Dudley 027","E08000027","Dudley","Inner and Outer Conurbation"]
[null,"E02002027","Dudley 028","E08000027","Dudley","Inner and Outer Conurbation"]
[null,"E02002028","Dudley 029","E08000027","Dudley","Inner and Outer Conurbation"]
[null,"E02002029","Dudley 030","E08000027","Dudley","Inner and Outer Conurbation"]
[null,"E02002030","Dudley 031","E08000027","Dudley","Inner and Outer Conurbation"]
[null,"E02002031","Dudley 032","E08000027","Dudley","Inner and Outer Conurbation"]
[null,"E02002032","Dudley 033","E08000027","Dudley","Inner and Outer Conurbation"]
[null,"E02002033","Dudley 034","E08000027","Dudley","Inner and Outer Conurbation"]
[null,"E02002034","Dudley 035","E08000027","Dudley","Inner and Outer Conurbation"]
[null,"E02002035","Dudley 036","E08000027","Dudley","Inner and Outer Conurbation"]
[null,"E02002036","Dudley 037","E08000027","Dudley","Inner and Outer Conurbation"]
[null,"E02002037","Dudley 038","E08000027","Dudley","Inner and Outer Conurbation"]
[null,"E02002038","Dudley 039","E08000027","Dudley","Inner and Outer Conurbation"]
[null,"E02002039","Dudley 040","E08000027","Dudley","Inner and Outer Conurbation"]
[null,"E02002040","Dudley 041","E08000027","Dudley","Inner and Outer Conurbation"]
[null,"E02002041","Dudley 042","E08000027","Dudley","Inner and Outer Conurbation"]
[null,"E02002042","Dudley 043","E08000027","Dudley","Inner and Outer Conurbation"]
[null,"E02002043","Sandwell 001","E08000028","Sandwell","Inner and Outer Conurbation"]
[null,"E02002044","Sandwell 002","E08000028","Sandwell","Inner and Outer Conurbation"]
[null,"E02002045","Sandwell 003","E08000028","Sandwell","Inner and Outer Conurbation"]
[null,"E02002046","Sandwell 004","E08000028","Sandwell","Inner and Outer Conurbation"]
[null,"E02002047","Sandwell 005","E08000028","Sandwell","Inner and Outer Conurbation"]
[null,"E02002048","Sandwell 006","E08000028","Sandwell","Inner and Outer Conurbation"]
[null,"E02002049","Sandwell 007","E08000028","Sandwell","Inner and Outer Conurbation"]
[null,"E02002051","Sandwell 009","E08000028","Sandwell","Inner and Outer Conurbation"]
[null,"E02002052","Sandwell 010","E08000028","Sandwell","Inner and Outer Conurbation"]
[null,"E02002053","Sandwell 011","E08000028","Sandwell","Inner and Outer Conurbation"]
[null,"E02002054","Sandwell 012","E08000028","Sandwell","Inner and Outer Conurbation"]
[null,"E02002055","Sandwell 013","E08000028","Sandwell","Inner and Outer Conurbation"]
[null,"E02002056","Sandwell 014","E08000028","Sandwell","Inner and Outer Conurbation"]
[null,"E02002057","Sandwell 015","E08000028","Sandwell","Inner and Outer Conurbation"]
[null,"E02002058","Sandwell 016","E08000028","Sandwell","Inner and Outer Conurbation"]
[null,"E02002059","Sandwell 017","E08000028","Sandwell","Inner and Outer Conurbation"]
[null,"E02002060","Sandwell 018","E08000028","Sandwell","Inner and Outer Conurbation"]
[null,"E02002061","Sandwell 019","E08000028","Sandwell","Inner and Outer Conurbation"]
[null,"E02002062","Sandwell 020","E08000028","Sandwell","Inner and Outer Conurbation"]
[null,"E02002063","Sandwell 021","E08000028","Sandwell","Inner and Outer Conurbation"]
[null,"E02002064","Sandwell 022","E08000028","Sandwell","Inner and Outer Conurbation"]
[null,"E02002065","Sandwell 023","E08000028","Sandwell","Inner and Outer Conurbation"]
[null,"E02002066","Sandwell 024","E08000028","Sandwell","Inner and Outer Conurbation"]
[null,"E02002067","Sandwell 025","E08000028","Sandwell","Inner and Outer Conurbation"]
[null,"E02002068","Sandwell 026","E08000028","Sandwell","Inner and Outer Conurbation"]
[null,"E02002069","Sandwell 027","E08000028","Sandwell","Inner and Outer Conurbation"]
[null,"E02002070","Sandwell 028","E08000028","Sandwell","Inner and Outer Conurbation"]
[null,"E02002071","Sandwell 029","E08000028","Sandwell","Inner and Outer Conurbation"]
[null,"E02002072","Sandwell 030","E08000028","Sandwell","Inner and Outer Conurbation"]
[null,"E02002073","Sandwell 031","E08000028","Sandwell","Inner and Outer Conurbation"]
[null,"E02002074","Sandwell 032","E08000028","Sandwell","Inner and Outer Conurbation"]
[null,"E02002075","Sandwell 033","E08000028","Sandwell","Inner and Outer Conurbation"]
[null,"E02002076","Sandwell 034","E08000028","Sandwell","Inner and Outer Conurbation"]
[null,"E02002077","Sandwell 035","E08000028","Sandwell","Inner and Outer Conurbation"]
[null,"E02002078","Sandwell 036","E08000028","Sandwell","Inner and Outer Conurbation"]
[null,"E02002079","Sandwell 037","E08000028","Sandwell","Inner and Outer Conurbation"]
[null,"E02002080","Sandwell 038","E08000028","Sandwell","Inner and Outer Conurbation"]
[null,"E02002081","Solihull 001","E08000029","Solihull","Inner and Outer Conurbation"]
[null,"E02002082","Solihull 002","E08000029","Solihull","Inner and Outer Conurbation"]
[null,"E02002083","Solihull 003","E08000029","Solihull","Inner and Outer Conurbation"]
[null,"E02002084","Solihull 004","E08000029","Solihull","Inner and Outer Conurbation"]
[null,"E02002085","Solihull 005","E08000029","Solihull","Inner and Outer Conurbation"]
[null,"E02002086","Solihull 006","E08000029","Solihull","Inner and Outer Conurbation"]
[null,"E02002087","Solihull 007","E08000029","Solihull","Inner and Outer Conurbation"]
[null,"E02002088","Solihull 008","E08000029","Solihull","Inner and Outer Conurbation"]
[null,"E02002089","Solihull 009","E08000029","Solihull","Inner and Outer Conurbation"]
[null,"E02002090","Solihull 010","E08000029","Solihull","Inner and Outer Conurbation"]
[null,"E02002091","Solihull 011","E08000029","Solihull","Inner and Outer Conurbation"]
[null,"E02002092","Solihull 012","E08000029","Solihull","Inner and Outer Conurbation"]
[null,"E02002093","Solihull 013","E08000029","Solihull","Inner and Outer Conurbation"]
[null,"E02002094","Solihull 014","E08000029","Solihull","Inner and Outer Conurbation"]
[null,"E02002095","Solihull 015","E08000029","Solihull","Inner and Outer Conurbation"]
[null,"E02002096","Solihull 016","E08000029","Solihull","Inner and Outer Conurbation"]
[null,"E02002097","Solihull 017","E08000029","Solihull","Inner and Outer Conurbation"]
[null,"E02002098","Solihull 018","E08000029","Solihull","Inner and Outer Conurbation"]
[null,"E02002099","Solihull 019","E08000029","Solihull","Inner and Outer Conurbation"]
[null,"E02002101","Solihull 021","E08000029","Solihull","Inner and Outer Conurbation"]
[null,"E02002102","Solihull 022","E08000029","Solihull","Inner and Outer Conurbation"]
[null,"E02002103","Solihull 023","E08000029","Solihull","Inner and Outer Conurbation"]
[null,"E02002104","Solihull 024","E08000029","Solihull","Inner and Outer Conurbation"]
[null,"E02002105","Solihull 025","E08000029","Solihull","Inner and Outer Conurbation"]
[null,"E02002106","Solihull 026","E08000029","Solihull","Inner and Outer Conurbation"]
[null,"E02002107","Solihull 027","E08000029","Solihull","Inner and Outer Conurbation"]
[null,"E02002108","Solihull 028","E08000029","Solihull","Inner and Outer Conurbation"]
[null,"E02002109","Solihull 029","E08000029","Solihull","Inner and Outer Conurbation"]
[null,"E02002110","Walsall 001","E08000030","Walsall","Inner and Outer Conurbation"]
[null,"E02002111","Walsall 002","E08000030","Walsall","Inner and Outer Conurbation"]
[null,"E02002112","Walsall 003","E08000030","Walsall","Inner and Outer Conurbation"]
[null,"E02002113","Walsall 004","E08000030","Walsall","Inner and Outer Conurbation"]
[null,"E02002114","Walsall 005","E08000030","Walsall","Inner and Outer Conurbation"]
[null,"E02002115","Walsall 006","E08000030","Walsall","Inner and Outer Conurbation"]
[null,"E02002116","Walsall 007","E08000030","Walsall","Inner and Outer Conurbation"]
[null,"E02002117","Walsall 008","E08000030","Walsall","Inner and Outer Conurbation"]
[null,"E02002118","Walsall 009","E08000030","Walsall","Inner and Outer Conurbation"]
[null,"E02002119","Walsall 010","E08000030","Walsall","Inner and Outer Conurbation"]
[null,"E02002120","Walsall 011","E08000030","Walsall","Inner and Outer Conurbation"]
[null,"E02002121","Walsall 012","E08000030","Walsall","Inner and Outer Conurbation"]
[null,"E02002122","Walsall 013","E08000030","Walsall","Inner and Outer Conurbation"]
[null,"E02002123","Walsall 014","E08000030","Walsall","Inner and Outer Conurbation"]
[null,"E02002124","Walsall 015","E08000030","Walsall","Inner and Outer Conurbation"]
[null,"E02002125","Walsall 016","E08000030","Walsall","Inner and Outer Conurbation"]
[null,"E02002126","Walsall 017","E08000030","Walsall","Inner and Outer Conurbation"]
[null,"E02002127","Walsall 018","E08000030","Walsall","Inner and Outer Conurbation"]
[null,"E02002128","Walsall 019","E08000030","Walsall","Inner and Outer Conurbation"]
[null,"E02002129","Walsall 020","E08000030","Walsall","Inner and Outer Conurbation"]
[null,"E02002130","Walsall 021","E08000030","Walsall","Inner and Outer Conurbation"]
[null,"E02002131","Walsall 022","E08000030","Walsall","Inner and Outer Conurbation"]
[null,"E02002132","Walsall 023","E08000030","Walsall","Inner and Outer Conurbation"]
[null,"E02002133","Walsall 024","E08000030","Walsall","Inner and Outer Conurbation"]
[null,"E02002134","Walsall 025","E08000030","Walsall","Inner and Outer Conurbation"]
[null,"E02002135","Walsall 026","E08000030","Walsall","Inner and Outer Conurbation"]
[null,"E02002136","Walsall 027","E08000030","Walsall","Inner and Outer Conurbation"]
[null,"E02002137","Walsall 028","E08000030","Walsall","Inner and Outer Conurbation"]
[null,"E02002138","Walsall 029","E08000030","Walsall","Inner and Outer Conurbation"]
[null,"E02002139","Walsall 030","E08000030","Walsall","Inner and Outer Conurbation"]
[null,"E02002140","Walsall 031","E08000030","Walsall","Inner and Outer Conurbation"]
[null,"E02002141","Walsall 032","E08000030","Walsall","Inner and Outer Conurbation"]
[null,"E02002142","Walsall 033","E08000030","Walsall","Inner and Outer Conurbation"]
[null,"E02002143","Walsall 034","E08000030","Walsall","Inner and Outer Conurbation"]
[null,"E02002144","Walsall 035","E08000030","Walsall","Inner and Outer Conurbation"]
[null,"E02002145","Walsall 036","E08000030","Walsall","Inner and Outer Conurbation"]
[null,"E02002146","Walsall 037","E08000030","Walsall","Inner and Outer Conurbation"]
[null,"E02002147","Walsall 038","E08000030","Walsall","Inner and Outer Conurbation"]
[null,"E02002148","Walsall 039","E08000030","Walsall","Inner and Outer Conurbation"]
[null,"E02002149","Wolverhampton 001","E08000031","Wolverhampton","Inner and Outer Conurbation"]
[null,"E02002150","Wolverhampton 002","E08000031","Wolverhampton","Inner and Outer Conurbation"]
[null,"E02002151","Wolverhampton 003","E08000031","Wolverhampton","Inner and Outer Conurbation"]
[null,"E02002152","Wolverhampton 004","E08000031","Wolverhampton","Inner and Outer Conurbation"]
[null,"E02002153","Wolverhampton 005","E08000031","Wolverhampton","Inner and Outer Conurbation"]
[null,"E02002154","Wolverhampton 006","E08000031","Wolverhampton","Inner and Outer Conurbation"]
[null,"E02002155","Wolverhampton 007","E08000031","Wolverhampton","Inner and Outer Conurbation"]
[null,"E02002156","Wolverhampton 008","E08000031","Wolverhampton","Inner and Outer Conurbation"]
[null,"E02002157","Wolverhampton 009","E08000031","Wolverhampton","Inner and Outer Conurbation"]
[null,"E02002158","Wolverhampton 010","E08000031","Wolverhampton","Inner and Outer Conurbation"]
[null,"E02002159","Wolverhampton 011","E08000031","Wolverhampton","Inner and Outer Conurbation"]
[null,"E02002160","Wolverhampton 012","E08000031","Wolverhampton","Inner and Outer Conurbation"]
[null,"E02002161","Wolverhampton 013","E08000031","Wolverhampton","Inner and Outer Conurbation"]
[null,"E02002162","Wolverhampton 014","E08000031","Wolverhampton","Inner and Outer Conurbation"]
[null,"E02002163","Wolverhampton 015","E08000031","Wolverhampton","Inner and Outer Conurbation"]
[null,"E02002164","Wolverhampton 016","E08000031","Wolverhampton","Inner and Outer Conurbation"]
[null,"E02002165","Wolverhampton 017","E08000031","Wolverhampton","Inner and Outer Conurbation"]
[null,"E02002166","Wolverhampton 018","E08000031","Wolverhampton","Inner and Outer Conurbation"]
[null,"E02002167","Wolverhampton 019","E08000031","Wolverhampton","Inner and Outer Conurbation"]
[null,"E02002168","Wolverhampton 020","E08000031","Wolverhampton","Inner and Outer Conurbation"]
[null,"E02002169","Wolverhampton 021","E08000031","Wolverhampton","Inner and Outer Conurbation"]
[null,"E02002170","Wolverhampton 022","E08000031","Wolverhampton","Inner and Outer Conurbation"]
[null,"E02002171","Wolverhampton 023","E08000031","Wolverhampton","Inner and Outer Conurbation"]
[null,"E02002174","Wolverhampton 026","E08000031","Wolverhampton","Inner and Outer Conurbation"]
[null,"E02002175","Wolverhampton 027","E08000031","Wolverhampton","Inner and Outer Conurbation"]
[null,"E02002176","Wolverhampton 028","E08000031","Wolverhampton","Inner and Outer Conurbation"]
[null,"E02002177","Wolverhampton 029","E08000031","Wolverhampton","Inner and Outer Conurbation"]
[null,"E02002178","Wolverhampton 030","E08000031","Wolverhampton","Inner and Outer Conurbation"]
[null,"E02002179","Wolverhampton 031","E08000031","Wolverhampton","Inner and Outer Conurbation"]
[null,"E02002180","Wolverhampton 032","E08000031","Wolverhampton","Inner and Outer Conurbation"]
[null,"E02002181","Wolverhampton 033","E08000031","Wolverhampton","Inner and Outer Conurbation"]
[null,"E02002182","Wolverhampton 034","E08000031","Wolverhampton","Inner and Outer Conurbation"]
[null,"E02002183","Bradford 001","E08000032","Bradford","Inner and Outer Conurbation"]
[null,"E02002184","Bradford 002","E08000032","Bradford","Inner and Outer Conurbation"]
[null,"E02002185","Bradford 003","E08000032","Bradford","Inner and Outer Conurbation"]
[null,"E02002186","Bradford 004","E08000032","Bradford","Inner and Outer Conurbation"]
[null,"E02002187","Bradford 005","E08000032","Bradford","Inner and Outer Conurbation"]
[null,"E02002188","Bradford 006","E08000032","Bradford","Inner and Outer Conurbation"]
[null,"E02002189","Bradford 007","E08000032","Bradford","Inner and Outer Conurbation"]
[null,"E02002190","Bradford 008","E08000032","Bradford","Inner and Outer Conurbation"]
[null,"E02002191","Bradford 009","E08000032","Bradford","Inner and Outer Conurbation"]
[null,"E02002192","Bradford 010","E08000032","Bradford","Inner and Outer Conurbation"]
[null,"E02002193","Bradford 011","E08000032","Bradford","Inner and Outer Conurbation"]
[null,"E02002194","Bradford 012","E08000032","Bradford","Inner and Outer Conurbation"]
[null,"E02002195","Bradford 013","E08000032","Bradford","Inner and Outer Conurbation"]
[null,"E02002196","Bradford 014","E08000032","Bradford","Inner and Outer Conurbation"]
[null,"E02002197","Bradford 015","E08000032","Bradford","Inner and Outer Conurbation"]
[null,"E02002198","Bradford 016","E08000032","Bradford","Inner and Outer Conurbation"]
[null,"E02002199","Bradford 017","E08000032","Bradford","Inner and Outer Conurbation"]
[null,"E02002200","Bradford 018","E08000032","Bradford","Inner and Outer Conurbation"]
[null,"E02002201","Bradford 019","E08000032","Bradford","Inner and Outer Conurbation"]
[null,"E02002202","Bradford 020","E08000032","Bradford","Inner and Outer Conurbation"]
[null,"E02002203","Bradford 021","E08000032","Bradford","Inner and Outer Conurbation"]
[null,"E02002204","Bradford 022","E08000032","Bradford","Inner and Outer Conurbation"]
[null,"E02002205","Bradford 023","E08000032","Bradford","Inner and Outer Conurbation"]
[null,"E02002206","Bradford 024","E08000032","Bradford","Inner and Outer Conurbation"]
[null,"E02002207","Bradford 025","E08000032","Bradford","Inner and Outer Conurbation"]
[null,"E02002208","Bradford 026","E08000032","Bradford","Inner and Outer Conurbation"]
[null,"E02002209","Bradford 027","E08000032","Bradford","Inner and Outer Conurbation"]
[null,"E02002210","Bradford 028","E08000032","Bradford","Inner and Outer Conurbation"]
[null,"E02002211","Bradford 029","E08000032","Bradford","Inner and Outer Conurbation"]
[null,"E02002212","Bradford 030","E08000032","Bradford","Inner and Outer Conurbation"]
[null,"E02002213","Bradford 031","E08000032","Bradford","Inner and Outer Conurbation"]
[null,"E02002214","Bradford 032","E08000032","Bradford","Inner and Outer Conurbation"]
[null,"E02002215","Bradford 033","E08000032","Bradford","Inner and Outer Conurbation"]
[null,"E02002216","Bradford 034","E08000032","Bradford","Inner and Outer Conurbation"]
[null,"E02002217","Bradford 035","E08000032","Bradford","Inner and Outer Conurbation"]
[null,"E02002218","Bradford 036","E08000032","Bradford","Inner and Outer Conurbation"]
[null,"E02002219","Bradford 037","E08000032","Bradford","Inner and Outer Conurbation"]
[null,"E02002220","Bradford 038","E08000032","Bradford","Inner and Outer Conurbation"]
[null,"E02002221","Bradford 039","E08000032","Bradford","Inner and Outer Conurbation"]
[null,"E02002222","Bradford 040","E08000032","Bradford","Inner and Outer Conurbation"]
[null,"E02002223","Bradford 041","E08000032","Bradford","Inner and Outer Conurbation"]
[null,"E02002224","Bradford 042","E08000032","Bradford","Inner and Outer Conurbation"]
[null,"E02002225","Bradford 043","E08000032","Bradford","Inner and Outer Conurbation"]
[null,"E02002226","Bradford 044","E08000032","Bradford","Inner and Outer Conurbation"]
[null,"E02002227","Bradford 045","E08000032","Bradford","Inner and Outer Conurbation"]
[null,"E02002228","Bradford 046","E08000032","Bradford","Inner and Outer Conurbation"]
[null,"E02002229","Bradford 047","E08000032","Bradford","Inner and Outer Conurbation"]
[null,"E02002230","Bradford 048","E08000032","Bradford","Inner and Outer Conurbation"]
[null,"E02002231","Bradford 049","E08000032","Bradford","Inner and Outer Conurbation"]
[null,"E02002232","Bradford 050","E08000032","Bradford","Inner and Outer Conurbation"]
[null,"E02002233","Bradford 051","E08000032","Bradford","Inner and Outer Conurbation"]
[null,"E02002234","Bradford 052","E08000032","Bradford","Inner and Outer Conurbation"]
[null,"E02002235","Bradford 053","E08000032","Bradford","Inner and Outer Conurbation"]
[null,"E02002236","Bradford 054","E08000032","Bradford","Inner and Outer Conurbation"]
[null,"E02002237","Bradford 055","E08000032","Bradford","Inner and Outer Conurbation"]
[null,"E02002238","Bradford 056","E08000032","Bradford","Inner and Outer Conurbation"]
[null,"E02002239","Bradford 057","E08000032","Bradford","Inner and Outer Conurbation"]
[null,"E02002240","Bradford 058","E08000032","Bradford","Inner and Outer Conurbation"]
[null,"E02002241","Bradford 059","E08000032","Bradford","Inner and Outer Conurbation"]
[null,"E02002242","Bradford 060","E08000032","Bradford","Inner and Outer Conurbation"]
[null,"E02002243","Bradford 061","E08000032","Bradford","Inner and Outer Conurbation"]
[null,"E02002244","Calderdale 001","E08000033","Calderdale","Inner and Outer Conurbation"]
[null,"E02002245","Calderdale 002","E08000033","Calderdale","Inner and Outer Conurbation"]
[null,"E02002246","Calderdale 003","E08000033","Calderdale","Inner and Outer Conurbation"]
[null,"E02002247","Calderdale 004","E08000033","Calderdale","Inner and Outer Conurbation"]
[null,"E02002248","Calderdale 005","E08000033","Calderdale","Inner and Outer Conurbation"]
[null,"E02002249","Calderdale 006","E08000033","Calderdale","Inner and Outer Conurbation"]
[null,"E02002250","Calderdale 007","E08000033","Calderdale","Inner and Outer Conurbation"]
[null,"E02002251","Calderdale 008","E08000033","Calderdale","Inner and Outer Conurbation"]
[null,"E02002252","Calderdale 009","E08000033","Calderdale","Inner and Outer Conurbation"]
[null,"E02002253","Calderdale 010","E08000033","Calderdale","Inner and Outer Conurbation"]
[null,"E02002254","Calderdale 011","E08000033","Calderdale","Inner and Outer Conurbation"]
[null,"E02002255","Calderdale 012","E08000033","Calderdale","Inner and Outer Conurbation"]
[null,"E02002256","Calderdale 013","E08000033","Calderdale","Inner and Outer Conurbation"]
[null,"E02002257","Calderdale 014","E08000033","Calderdale","Inner and Outer Conurbation"]
[null,"E02002258","Calderdale 015","E08000033","Calderdale","Inner and Outer Conurbation"]
[null,"E02002259","Calderdale 016","E08000033","Calderdale","Inner and Outer Conurbation"]
[null,"E02002260","Calderdale 017","E08000033","Calderdale","Inner and Outer Conurbation"]
[null,"E02002261","Calderdale 018","E08000033","Calderdale","Inner and Outer Conurbation"]
[null,"E02002262","Calderdale 019","E08000033","Calderdale","Inner and Outer Conurbation"]
[null,"E02002263","Calderdale 020","E08000033","Calderdale","Inner and Outer Conurbation"]
[null,"E02002264","Calderdale 021","E08000033","Calderdale","Inner and Outer Conurbation"]
[null,"E02002265","Calderdale 022","E08000033","Calderdale","Inner and Outer Conurbation"]
[null,"E02002266","Calderdale 023","E08000033","Calderdale","Inner and Outer Conurbation"]
[null,"E02002267","Calderdale 024","E08000033","Calderdale","Inner and Outer Conurbation"]
[null,"E02002268","Calderdale 025","E08000033","Calderdale","Inner and Outer Conurbation"]
[null,"E02002269","Calderdale 026","E08000033","Calderdale","Inner and Outer Conurbation"]
[null,"E02002270","Calderdale 027","E08000033","Calderdale","Inner and Outer Conurbation"]
[null,"E02002271","Kirklees 001","E08000034","Kirklees","Inner and Outer Conurbation"]
[null,"E02002272","Kirklees 002","E08000034","Kirklees","Inner and Outer Conurbation"]
[null,"E02002273","Kirklees 003","E08000034","Kirklees","Inner and Outer Conurbation"]
[null,"E02002274","Kirklees 004","E08000034","Kirklees","Inner and Outer Conurbation"]
[null,"E02002275","Kirklees 005","E08000034","Kirklees","Inner and Outer Conurbation"]
[null,"E02002276","Kirklees 006","E08000034","Kirklees","Inner and Outer Conurbation"]
[null,"E02002277","Kirklees 007","E08000034","Kirklees","Inner and Outer Conurbation"]
[null,"E02002278","Kirklees 008","E08000034","Kirklees","Inner and Outer Conurbation"]
[null,"E02002279","Kirklees 009","E08000034","Kirklees","Inner and Outer Conurbation"]
[null,"E02002280","Kirklees 010","E08000034","Kirklees","Inner and Outer Conurbation"]
[null,"E02002281","Kirklees 011","E08000034","Kirklees","Inner and Outer Conurbation"]
[null,"E02002282","Kirklees 012","E08000034","Kirklees","Inner and Outer Conurbation"]
[null,"E02002283","Kirklees 013","E08000034","Kirklees","Inner and Outer Conurbation"]
[null,"E02002284","Kirklees 014","E08000034","Kirklees","Inner and Outer Conurbation"]
[null,"E02002285","Kirklees 015","E08000034","Kirklees","Inner and Outer Conurbation"]
[null,"E02002286","Kirklees 016","E08000034","Kirklees","Inner and Outer Conurbation"]
[null,"E02002287","Kirklees 017","E08000034","Kirklees","Inner and Outer Conurbation"]
[null,"E02002288","Kirklees 018","E08000034","Kirklees","Inner and Outer Conurbation"]
[null,"E02002289","Kirklees 019","E08000034","Kirklees","Inner and Outer Conurbation"]
[null,"E02002290","Kirklees 020","E08000034","Kirklees","Inner and Outer Conurbation"]
[null,"E02002291","Kirklees 021","E08000034","Kirklees","Inner and Outer Conurbation"]
[null,"E02002292","Kirklees 022","E08000034","Kirklees","Inner and Outer Conurbation"]
[null,"E02002293","Kirklees 023","E08000034","Kirklees","Inner and Outer Conurbation"]
[null,"E02002294","Kirklees 024","E08000034","Kirklees","Inner and Outer Conurbation"]
[null,"E02002295","Kirklees 025","E08000034","Kirklees","Inner and Outer Conurbation"]
[null,"E02002296","Kirklees 026","E08000034","Kirklees","Inner and Outer Conurbation"]
[null,"E02002297","Kirklees 027","E08000034","Kirklees","Inner and Outer Conurbation"]
[null,"E02002298","Kirklees 028","E08000034","Kirklees","Inner and Outer Conurbation"]
[null,"E02002299","Kirklees 029","E08000034","Kirklees","Inner and Outer Conurbation"]
[null,"E02002300","Kirklees 030","E08000034","Kirklees","Inner and Outer Conurbation"]
[null,"E02002301","Kirklees 031","E08000034","Kirklees","Inner and Outer Conurbation"]
[null,"E02002302","Kirklees 032","E08000034","Kirklees","Inner and Outer Conurbation"]
[null,"E02002303","Kirklees 033","E08000034","Kirklees","Inner and Outer Conurbation"]
[null,"E02002304","Kirklees 034","E08000034","Kirklees","Inner and Outer Conurbation"]
[null,"E02002305","Kirklees 035","E08000034","Kirklees","Inner and Outer Conurbation"]
[null,"E02002306","Kirklees 036","E08000034","Kirklees","Inner and Outer Conurbation"]
[null,"E02002307","Kirklees 037","E08000034","Kirklees","Inner and Outer Conurbation"]
[null,"E02002308","Kirklees 038","E08000034","Kirklees","Inner and Outer Conurbation"]
[null,"E02002309","Kirklees 039","E08000034","Kirklees","Inner and Outer Conurbation"]
[null,"E02002310","Kirklees 040","E08000034","Kirklees","Inner and Outer Conurbation"]
[null,"E02002311","Kirklees 041","E08000034","Kirklees","Inner and Outer Conurbation"]
[null,"E02002312","Kirklees 042","E08000034","Kirklees","Inner and Outer Conurbation"]
[null,"E02002313","Kirklees 043","E08000034","Kirklees","Inner and Outer Conurbation"]
[null,"E02002314","Kirklees 044","E08000034","Kirklees","Inner and Outer Conurbation"]
[null,"E02002315","Kirklees 045","E08000034","Kirklees","Inner and Outer Conurbation"]
[null,"E02002316","Kirklees 046","E08000034","Kirklees","Inner and Outer Conurbation"]
[null,"E02002317","Kirklees 047","E08000034","Kirklees","Inner and Outer Conurbation"]
[null,"E02002318","Kirklees 048","E08000034","Kirklees","Inner and Outer Conurbation"]
[null,"E02002319","Kirklees 049","E08000034","Kirklees","Inner and Outer Conurbation"]
[null,"E02002320","Kirklees 050","E08000034","Kirklees","Inner and Outer Conurbation"]
[null,"E02002321","Kirklees 051","E08000034","Kirklees","Inner and Outer Conurbation"]
[null,"E02002322","Kirklees 052","E08000034","Kirklees","Inner and Outer Conurbation"]
[null,"E02002323","Kirklees 053","E08000034","Kirklees","Inner and Outer Conurbation"]
[null,"E02002324","Kirklees 054","E08000034","Kirklees","Inner and Outer Conurbation"]
[null,"E02002325","Kirklees 055","E08000034","Kirklees","Inner and Outer Conurbation"]
[null,"E02002326","Kirklees 056","E08000034","Kirklees","Inner and Outer Conurbation"]
[null,"E02002327","Kirklees 057","E08000034","Kirklees","Inner and Outer Conurbation"]
[null,"E02002328","Kirklees 058","E08000034","Kirklees","Inner and Outer Conurbation"]
[null,"E02002329","Kirklees 059","E08000034","Kirklees","Inner and Outer Conurbation"]
[null,"E02002330","Leeds 001","E08000035","Leeds","Inner and Outer Conurbation"]
[null,"E02002331","Leeds 002","E08000035","Leeds","Inner and Outer Conurbation"]
[null,"E02002332","Leeds 003","E08000035","Leeds","Inner and Outer Conurbation"]
[null,"E02002333","Leeds 004","E08000035","Leeds","Inner and Outer Conurbation"]
[null,"E02002334","Leeds 005","E08000035","Leeds","Inner and Outer Conurbation"]
[null,"E02002335","Leeds 006","E08000035","Leeds","Inner and Outer Conurbation"]
[null,"E02002336","Leeds 007","E08000035","Leeds","Inner and Outer Conurbation"]
[null,"E02002337","Leeds 008","E08000035","Leeds","Inner and Outer Conurbation"]
[null,"E02002338","Leeds 009","E08000035","Leeds","Inner and Outer Conurbation"]
[null,"E02002339","Leeds 010","E08000035","Leeds","Inner and Outer Conurbation"]
[null,"E02002340","Leeds 011","E08000035","Leeds","Inner and Outer Conurbation"]
[null,"E02002341","Leeds 012","E08000035","Leeds","Inner and Outer Conurbation"]
[null,"E02002342","Leeds 013","E08000035","Leeds","Inner and Outer Conurbation"]
[null,"E02002343","Leeds 014","E08000035","Leeds","Inner and Outer Conurbation"]
[null,"E02002344","Leeds 015","E08000035","Leeds","Inner and Outer Conurbation"]
[null,"E02002345","Leeds 016","E08000035","Leeds","Inner and Outer Conurbation"]
[null,"E02002346","Leeds 017","E08000035","Leeds","Inner and Outer Conurbation"]
[null,"E02002347","Leeds 018","E08000035","Leeds","Inner and Outer Conurbation"]
[null,"E02002348","Leeds 019","E08000035","Leeds","Inner and Outer Conurbation"]
[null,"E02002349","Leeds 020","E08000035","Leeds","Inner and Outer Conurbation"]
[null,"E02002350","Leeds 021","E08000035","Leeds","Inner and Outer Conurbation"]
[null,"E02002351","Leeds 022","E08000035","Leeds","Inner and Outer Conurbation"]
[null,"E02002352","Leeds 023","E08000035","Leeds","Inner and Outer Conurbation"]
[null,"E02002353","Leeds 024","E08000035","Leeds","Inner and Outer Conurbation"]
[null,"E02002354","Leeds 025","E08000035","Leeds","Inner and Outer Conurbation"]
[null,"E02002356","Leeds 027","E08000035","Leeds","Inner and Outer Conurbation"]
[null,"E02002357","Leeds 028","E08000035","Leeds","Inner and Outer Conurbation"]
[null,"E02002358","Leeds 029","E08000035","Leeds","Inner and Outer Conurbation"]
[null,"E02002359","Leeds 030","E08000035","Leeds","Inner and Outer Conurbation"]
[null,"E02002360","Leeds 031","E08000035","Leeds","Inner and Outer Conurbation"]
[null,"E02002361","Leeds 032","E08000035","Leeds","Inner and Outer Conurbation"]
[null,"E02002362","Leeds 033","E08000035","Leeds","Inner and Outer Conurbation"]
[null,"E02002363","Leeds 034","E08000035","Leeds","Inner and Outer Conurbation"]
[null,"E02002364","Leeds 035","E08000035","Leeds","Inner and Outer Conurbation"]
[null,"E02002366","Leeds 037","E08000035","Leeds","Inner and Outer Conurbation"]
[null,"E02002367","Leeds 038","E08000035","Leeds","Inner and Outer Conurbation"]
[null,"E02002368","Leeds 039","E08000035","Leeds","Inner and Outer Conurbation"]
[null,"E02002369","Leeds 040","E08000035","Leeds","Inner and Outer Conurbation"]
[null,"E02002370","Leeds 041","E08000035","Leeds","Inner and Outer Conurbation"]
[null,"E02002371","Leeds 042","E08000035","Leeds","Inner and Outer Conurbation"]
[null,"E02002373","Leeds 044","E08000035","Leeds","Inner and Outer Conurbation"]
[null,"E02002374","Leeds 045","E08000035","Leeds","Inner and Outer Conurbation"]
[null,"E02002375","Leeds 046","E08000035","Leeds","Inner and Outer Conurbation"]
[null,"E02002376","Leeds 047","E08000035","Leeds","Inner and Outer Conurbation"]
[null,"E02002377","Leeds 048","E08000035","Leeds","Inner and Outer Conurbation"]
[null,"E02002379","Leeds 050","E08000035","Leeds","Inner and Outer Conurbation"]
[null,"E02002380","Leeds 051","E08000035","Leeds","Inner and Outer Conurbation"]
[null,"E02002381","Leeds 052","E08000035","Leeds","Inner and Outer Conurbation"]
[null,"E02002382","Leeds 053","E08000035","Leeds","Inner and Outer Conurbation"]
[null,"E02002383","Leeds 054","E08000035","Leeds","Inner and Outer Conurbation"]
[null,"E02002384","Leeds 055","E08000035","Leeds","Inner and Outer Conurbation"]
[null,"E02002385","Leeds 056","E08000035","Leeds","Inner and Outer Conurbation"]
[null,"E02002386","Leeds 057","E08000035","Leeds","Inner and Outer Conurbation"]
[null,"E02002387","Leeds 058","E08000035","Leeds","Inner and Outer Conurbation"]
[null,"E02002388","Leeds 059","E08000035","Leeds","Inner and Outer Conurbation"]
[null,"E02002389","Leeds 060","E08000035","Leeds","Inner and Outer Conurbation"]
[null,"E02002390","Leeds 061","E08000035","Leeds","Inner and Outer Conurbation"]
[null,"E02002391","Leeds 062","E08000035","Leeds","Inner and Outer Conurbation"]
[null,"E02002392","Leeds 063","E08000035","Leeds","Inner and Outer Conurbation"]
[null,"E02002393","Leeds 064","E08000035","Leeds","Inner and Outer Conurbation"]
[null,"E02002394","Leeds 065","E08000035","Leeds","Inner and Outer Conurbation"]
[null,"E02002395","Leeds 066","E08000035","Leeds","Inner and Outer Conurbation"]
[null,"E02002396","Leeds 067","E08000035","Leeds","Inner and Outer Conurbation"]
[null,"E02002397","Leeds 068","E08000035","Leeds","Inner and Outer Conurbation"]
[null,"E02002398","Leeds 069","E08000035","Leeds","Inner and Outer Conurbation"]
[null,"E02002399","Leeds 070","E08000035","Leeds","Inner and Outer Conurbation"]
[null,"E02002400","Leeds 071","E08000035","Leeds","Inner and Outer Conurbation"]
[null,"E02002401","Leeds 072","E08000035","Leeds","Inner and Outer Conurbation"]
[null,"E02002402","Leeds 073","E08000035","Leeds","Inner and Outer Conurbation"]
[null,"E02002403","Leeds 074","E08000035","Leeds","Inner and Outer Conurbation"]
[null,"E02002404","Leeds 075","E08000035","Leeds","Inner and Outer Conurbation"]
[null,"E02002405","Leeds 076","E08000035","Leeds","Inner and Outer Conurbation"]
[null,"E02002406","Leeds 077","E08000035","Leeds","Inner and Outer Conurbation"]
[null,"E02002407","Leeds 078","E08000035","Leeds","Inner and Outer Conurbation"]
[null,"E02002408","Leeds 079","E08000035","Leeds","Inner and Outer Conurbation"]
[null,"E02002409","Leeds 080","E08000035","Leeds","Inner and Outer Conurbation"]
[null,"E02002410","Leeds 081","E08000035","Leeds","Inner and Outer Conurbation"]
[null,"E02002411","Leeds 082","E08000035","Leeds","Inner and Outer Conurbation"]
[null,"E02002412","Leeds 083","E08000035","Leeds","Inner and Outer Conurbation"]
[null,"E02002414","Leeds 085","E08000035","Leeds","Inner and Outer Conurbation"]
[null,"E02002415","Leeds 086","E08000035","Leeds","Inner and Outer Conurbation"]
[null,"E02002416","Leeds 087","E08000035","Leeds","Inner and Outer Conurbation"]
[null,"E02002417","Leeds 088","E08000035","Leeds","Inner and Outer Conurbation"]
[null,"E02002418","Leeds 089","E08000035","Leeds","Inner and Outer Conurbation"]
[null,"E02002419","Leeds 090","E08000035","Leeds","Inner and Outer Conurbation"]
[null,"E02002420","Leeds 091","E08000035","Leeds","Inner and Outer Conurbation"]
[null,"E02002421","Leeds 092","E08000035","Leeds","Inner and Outer Conurbation"]
[null,"E02002422","Leeds 093","E08000035","Leeds","Inner and Outer Conurbation"]
[null,"E02002423","Leeds 094","E08000035","Leeds","Inner and Outer Conurbation"]
[null,"E02002424","Leeds 095","E08000035","Leeds","Inner and Outer Conurbation"]
[null,"E02002425","Leeds 096","E08000035","Leeds","Inner and Outer Conurbation"]
[null,"E02002426","Leeds 097","E08000035","Leeds","Inner and Outer Conurbation"]
[null,"E02002427","Leeds 098","E08000035","Leeds","Inner and Outer Conurbation"]
[null,"E02002428","Leeds 099","E08000035","Leeds","Inner and Outer Conurbation"]
[null,"E02002429","Leeds 100","E08000035","Leeds","Inner and Outer Conurbation"]
[null,"E02002430","Leeds 101","E08000035","Leeds","Inner and Outer Conurbation"]
[null,"E02002431","Leeds 102","E08000035","Leeds","Inner and Outer Conurbation"]
[null,"E02002432","Leeds 103","E08000035","Leeds","Inner and Outer Conurbation"]
[null,"E02002433","Leeds 104","E08000035","Leeds","Inner and Outer Conurbation"]
[null,"E02002434","Leeds 105","E08000035","Leeds","Inner and Outer Conurbation"]
[null,"E02002435","Leeds 106","E08000035","Leeds","Inner and Outer Conurbation"]
[null,"E02002436","Leeds 107","E08000035","Leeds","Inner and Outer Conurbation"]
[null,"E02002437","Leeds 108","E08000035","Leeds","Inner and Outer Conurbation"]
[null,"E02002438","Wakefield 001","E08000036","Wakefield","Inner and Outer Conurbation"]
[null,"E02002439","Wakefield 002","E08000036","Wakefield","Inner and Outer Conurbation"]
[null,"E02002440","Wakefield 003","E08000036","Wakefield","Inner and Outer Conurbation"]
[null,"E02002441","Wakefield 004","E08000036","Wakefield","Inner and Outer Conurbation"]
[null,"E02002442","Wakefield 005","E08000036","Wakefield","Inner and Outer Conurbation"]
[null,"E02002443","Wakefield 006","E08000036","Wakefield","Inner and Outer Conurbation"]
[null,"E02002444","Wakefield 007","E08000036","Wakefield","Inner and Outer Conurbation"]
[null,"E02002445","Wakefield 008","E08000036","Wakefield","Inner and Outer Conurbation"]
[null,"E02002446","Wakefield 009","E08000036","Wakefield","Inner and Outer Conurbation"]
[null,"E02002447","Wakefield 010","E08000036","Wakefield","Inner and Outer Conurbation"]
[null,"E02002448","Wakefield 011","E08000036","Wakefield","Inner and Outer Conurbation"]
[null,"E02002449","Wakefield 012","E08000036","Wakefield","Inner and Outer Conurbation"]
[null,"E02002450","Wakefield 013","E08000036","Wakefield","Inner and Outer Conurbation"]
[null,"E02002451","Wakefield 014","E08000036","Wakefield","Inner and Outer Conurbation"]
[null,"E02002452","Wakefield 015","E08000036","Wakefield","Inner and Outer Conurbation"]
[null,"E02002453","Wakefield 016","E08000036","Wakefield","Inner and Outer Conurbation"]
[null,"E02002454","Wakefield 017","E08000036","Wakefield","Inner and Outer Conurbation"]
[null,"E02002455","Wakefield 018","E08000036","Wakefield","Inner and Outer Conurbation"]
[null,"E02002456","Wakefield 019","E08000036","Wakefield","Inner and Outer Conurbation"]
[null,"E02002457","Wakefield 020","E08000036","Wakefield","Inner and Outer Conurbation"]
[null,"E02002458","Wakefield 021","E08000036","Wakefield","Inner and Outer Conurbation"]
[null,"E02002459","Wakefield 022","E08000036","Wakefield","Inner and Outer Conurbation"]
[null,"E02002460","Wakefield 023","E08000036","Wakefield","Inner and Outer Conurbation"]
[null,"E02002461","Wakefield 024","E08000036","Wakefield","Inner and Outer Conurbation"]
[null,"E02002462","Wakefield 025","E08000036","Wakefield","Inner and Outer Conurbation"]
[null,"E02002463","Wakefield 026","E08000036","Wakefield","Inner and Outer Conurbation"]
[null,"E02002464","Wakefield 027","E08000036","Wakefield","Inner and Outer Conurbation"]
[null,"E02002465","Wakefield 028","E08000036","Wakefield","Inner and Outer Conurbation"]
[null,"E02002466","Wakefield 029","E08000036","Wakefield","Inner and Outer Conurbation"]
[null,"E02002467","Wakefield 030","E08000036","Wakefield","Inner and Outer Conurbation"]
[null,"E02002468","Wakefield 031","E08000036","Wakefield","Inner and Outer Conurbation"]
[null,"E02002469","Wakefield 032","E08000036","Wakefield","Inner and Outer Conurbation"]
[null,"E02002470","Wakefield 033","E08000036","Wakefield","Inner and Outer Conurbation"]
[null,"E02002471","Wakefield 034","E08000036","Wakefield","Inner and Outer Conurbation"]
[null,"E02002472","Wakefield 035","E08000036","Wakefield","Inner and Outer Conurbation"]
[null,"E02002473","Wakefield 036","E08000036","Wakefield","Inner and Outer Conurbation"]
[null,"E02002474","Wakefield 037","E08000036","Wakefield","Inner and Outer Conurbation"]
[null,"E02002475","Wakefield 038","E08000036","Wakefield","Inner and Outer Conurbation"]
[null,"E02002476","Wakefield 039","E08000036","Wakefield","Inner and Outer Conurbation"]
[null,"E02002477","Wakefield 040","E08000036","Wakefield","Inner and Outer Conurbation"]
[null,"E02002478","Wakefield 041","E08000036","Wakefield","Inner and Outer Conurbation"]
[null,"E02002479","Wakefield 042","E08000036","Wakefield","Inner and Outer Conurbation"]
[null,"E02002480","Wakefield 043","E08000036","Wakefield","Inner and Outer Conurbation"]
[null,"E02002481","Wakefield 044","E08000036","Wakefield","Inner and Outer Conurbation"]
[null,"E02002482","Wakefield 045","E08000036","Wakefield","Inner and Outer Conurbation"]
[null,"E02002483","Hartlepool 001","E06000001","Hartlepool","Other Urban"]
[null,"E02002484","Hartlepool 002","E06000001","Hartlepool","Other Urban"]
[null,"E02002485","Hartlepool 003","E06000001","Hartlepool","Other Urban"]
[null,"E02002487","Hartlepool 005","E06000001","Hartlepool","Other Urban"]
[null,"E02002488","Hartlepool 006","E06000001","Hartlepool","Other Urban"]
[null,"E02002489","Hartlepool 007","E06000001","Hartlepool","Other Urban"]
[null,"E02002490","Hartlepool 008","E06000001","Hartlepool","Other Urban"]
[null,"E02002491","Hartlepool 009","E06000001","Hartlepool","Other Urban"]
[null,"E02002492","Hartlepool 010","E06000001","Hartlepool","Other Urban"]
[null,"E02002493","Hartlepool 011","E06000001","Hartlepool","Other Urban"]
[null,"E02002494","Hartlepool 012","E06000001","Hartlepool","Other Urban"]
[null,"E02002496","Middlesbrough 001","E06000002","Middlesbrough","Other Urban"]
[null,"E02002497","Middlesbrough 002","E06000002","Middlesbrough","Other Urban"]
[null,"E02002498","Middlesbrough 003","E06000002","Middlesbrough","Other Urban"]
[null,"E02002499","Middlesbrough 004","E06000002","Middlesbrough","Other Urban"]
[null,"E02002500","Middlesbrough 005","E06000002","Middlesbrough","Other Urban"]
[null,"E02002501","Middlesbrough 006","E06000002","Middlesbrough","Other Urban"]
[null,"E02002502","Middlesbrough 007","E06000002","Middlesbrough","Other Urban"]
[null,"E02002503","Middlesbrough 008","E06000002","Middlesbrough","Other Urban"]
[null,"E02002504","Middlesbrough 009","E06000002","Middlesbrough","Other Urban"]
[null,"E02002505","Middlesbrough 010","E06000002","Middlesbrough","Other Urban"]
[null,"E02002506","Middlesbrough 011","E06000002","Middlesbrough","Other Urban"]
[null,"E02002507","Middlesbrough 012","E06000002","Middlesbrough","Other Urban"]
[null,"E02002508","Middlesbrough 013","E06000002","Middlesbrough","Other Urban"]
[null,"E02002509","Middlesbrough 014","E06000002","Middlesbrough","Other Urban"]
[null,"E02002510","Middlesbrough 015","E06000002","Middlesbrough","Other Urban"]
[null,"E02002512","Middlesbrough 017","E06000002","Middlesbrough","Other Urban"]
[null,"E02002513","Middlesbrough 018","E06000002","Middlesbrough","Other Urban"]
[null,"E02002514","Middlesbrough 019","E06000002","Middlesbrough","Other Urban"]
[null,"E02002515","Redcar and Cleveland 001","E06000003","Redcar and Cleveland","Other Urban"]
[null,"E02002516","Redcar and Cleveland 002","E06000003","Redcar and Cleveland","Other Urban"]
[null,"E02002517","Redcar and Cleveland 003","E06000003","Redcar and Cleveland","Other Urban"]
[null,"E02002518","Redcar and Cleveland 004","E06000003","Redcar and Cleveland","Other Urban"]
[null,"E02002519","Redcar and Cleveland 005","E06000003","Redcar and Cleveland","Other Urban"]
[null,"E02002520","Redcar and Cleveland 006","E06000003","Redcar and Cleveland","Other Urban"]
[null,"E02002521","Redcar and Cleveland 007","E06000003","Redcar and Cleveland","Rural"]
[null,"E02002523","Redcar and Cleveland 009","E06000003","Redcar and Cleveland","Other Urban"]
[null,"E02002524","Redcar and Cleveland 010","E06000003","Redcar and Cleveland","Rural"]
[null,"E02002525","Redcar and Cleveland 011","E06000003","Redcar and Cleveland","Other Urban"]
[null,"E02002526","Redcar and Cleveland 012","E06000003","Redcar and Cleveland","Rural"]
[null,"E02002527","Redcar and Cleveland 013","E06000003","Redcar and Cleveland","Rural"]
[null,"E02002529","Redcar and Cleveland 015","E06000003","Redcar and Cleveland","Other Urban"]
[null,"E02002530","Redcar and Cleveland 016","E06000003","Redcar and Cleveland","Rural"]
[null,"E02002532","Redcar and Cleveland 018","E06000003","Redcar and Cleveland","Rural"]
[null,"E02002533","Redcar and Cleveland 019","E06000003","Redcar and Cleveland","Rural"]
[null,"E02002534","Redcar and Cleveland 020","E06000003","Redcar and Cleveland","Rural"]
[null,"E02002535","Stockton-on-Tees 001","E06000004","Stockton-on-Tees","Other Urban"]
[null,"E02002536","Stockton-on-Tees 002","E06000004","Stockton-on-Tees","Other Urban"]
[null,"E02002537","Stockton-on-Tees 003","E06000004","Stockton-on-Tees","Other Urban"]
[null,"E02002538","Stockton-on-Tees 004","E06000004","Stockton-on-Tees","Other Urban"]
[null,"E02002539","Stockton-on-Tees 005","E06000004","Stockton-on-Tees","Rural"]
[null,"E02002540","Stockton-on-Tees 006","E06000004","Stockton-on-Tees","Other Urban"]
[null,"E02002541","Stockton-on-Tees 007","E06000004","Stockton-on-Tees","Other Urban"]
[null,"E02002542","Stockton-on-Tees 008","E06000004","Stockton-on-Tees","Other Urban"]
[null,"E02002543","Stockton-on-Tees 009","E06000004","Stockton-on-Tees","Other Urban"]
[null,"E02002544","Stockton-on-Tees 010","E06000004","Stockton-on-Tees","Other Urban"]
[null,"E02002545","Stockton-on-Tees 011","E06000004","Stockton-on-Tees","Other Urban"]
[null,"E02002546","Stockton-on-Tees 012","E06000004","Stockton-on-Tees","Other Urban"]
[null,"E02002547","Stockton-on-Tees 013","E06000004","Stockton-on-Tees","Other Urban"]
[null,"E02002548","Stockton-on-Tees 014","E06000004","Stockton-on-Tees","Other Urban"]
[null,"E02002549","Stockton-on-Tees 015","E06000004","Stockton-on-Tees","Other Urban"]
[null,"E02002550","Stockton-on-Tees 016","E06000004","Stockton-on-Tees","Other Urban"]
[null,"E02002551","Stockton-on-Tees 017","E06000004","Stockton-on-Tees","Other Urban"]
[null,"E02002552","Stockton-on-Tees 018","E06000004","Stockton-on-Tees","Other Urban"]
[null,"E02002553","Stockton-on-Tees 019","E06000004","Stockton-on-Tees","Other Urban"]
[null,"E02002554","Stockton-on-Tees 020","E06000004","Stockton-on-Tees","Other Urban"]
[null,"E02002555","Stockton-on-Tees 021","E06000004","Stockton-on-Tees","Other Urban"]
[null,"E02002556","Stockton-on-Tees 022","E06000004","Stockton-on-Tees","Rural"]
[null,"E02002557","Stockton-on-Tees 023","E06000004","Stockton-on-Tees","Other Urban"]
[null,"E02002558","Stockton-on-Tees 024","E06000004","Stockton-on-Tees","Rural"]
[null,"E02002559","Darlington 001","E06000005","Darlington","Rural"]
[null,"E02002560","Darlington 002","E06000005","Darlington","Other Urban"]
[null,"E02002561","Darlington 003","E06000005","Darlington","Other Urban"]
[null,"E02002562","Darlington 004","E06000005","Darlington","Other Urban"]
[null,"E02002563","Darlington 005","E06000005","Darlington","Other Urban"]
[null,"E02002564","Darlington 006","E06000005","Darlington","Other Urban"]
[null,"E02002565","Darlington 007","E06000005","Darlington","Other Urban"]
[null,"E02002566","Darlington 008","E06000005","Darlington","Other Urban"]
[null,"E02002567","Darlington 009","E06000005","Darlington","Other Urban"]
[null,"E02002568","Darlington 010","E06000005","Darlington","Other Urban"]
[null,"E02002569","Darlington 011","E06000005","Darlington","Other Urban"]
[null,"E02002570","Darlington 012","E06000005","Darlington","Other Urban"]
[null,"E02002571","Darlington 013","E06000005","Darlington","Other Urban"]
[null,"E02002572","Darlington 014","E06000005","Darlington","Other Urban"]
[null,"E02002573","Darlington 015","E06000005","Darlington","Rural"]
[null,"E02002574","Halton 001","E06000006","Halton","Other Urban"]
[null,"E02002575","Halton 002","E06000006","Halton","Other Urban"]
[null,"E02002576","Halton 003","E06000006","Halton","Other Urban"]
[null,"E02002577","Halton 004","E06000006","Halton","Other Urban"]
[null,"E02002578","Halton 005","E06000006","Halton","Other Urban"]
[null,"E02002579","Halton 006","E06000006","Halton","Other Urban"]
[null,"E02002580","Halton 007","E06000006","Halton","Other Urban"]
[null,"E02002581","Halton 008","E06000006","Halton","Other Urban"]
[null,"E02002582","Halton 009","E06000006","Halton","Other Urban"]
[null,"E02002583","Halton 010","E06000006","Halton","Other Urban"]
[null,"E02002584","Halton 011","E06000006","Halton","Other Urban"]
[null,"E02002585","Halton 012","E06000006","Halton","Other Urban"]
[null,"E02002586","Halton 013","E06000006","Halton","Other Urban"]
[null,"E02002587","Halton 014","E06000006","Halton","Other Urban"]
[null,"E02002588","Halton 015","E06000006","Halton","Other Urban"]
[null,"E02002589","Halton 016","E06000006","Halton","Other Urban"]
[null,"E02002590","Warrington 001","E06000007","Warrington","Rural"]
[null,"E02002591","Warrington 002","E06000007","Warrington","Rural"]
[null,"E02002592","Warrington 003","E06000007","Warrington","Rural"]
[null,"E02002593","Warrington 004","E06000007","Warrington","Other Urban"]
[null,"E02002594","Warrington 005","E06000007","Warrington","Other Urban"]
[null,"E02002595","Warrington 006","E06000007","Warrington","Other Urban"]
[null,"E02002596","Warrington 007","E06000007","Warrington","Other Urban"]
[null,"E02002597","Warrington 008","E06000007","Warrington","Other Urban"]
[null,"E02002598","Warrington 009","E06000007","Warrington","Other Urban"]
[null,"E02002599","Warrington 010","E06000007","Warrington","Other Urban"]
[null,"E02002600","Warrington 011","E06000007","Warrington","Other Urban"]
[null,"E02002601","Warrington 012","E06000007","Warrington","Other Urban"]
[null,"E02002602","Warrington 013","E06000007","Warrington","Other Urban"]
[null,"E02002603","Warrington 014","E06000007","Warrington","Other Urban"]
[null,"E02002604","Warrington 015","E06000007","Warrington","Other Urban"]
[null,"E02002605","Warrington 016","E06000007","Warrington","Other Urban"]
[null,"E02002606","Warrington 017","E06000007","Warrington","Other Urban"]
[null,"E02002607","Warrington 018","E06000007","Warrington","Other Urban"]
[null,"E02002608","Warrington 019","E06000007","Warrington","Other Urban"]
[null,"E02002609","Warrington 020","E06000007","Warrington","Other Urban"]
[null,"E02002610","Warrington 021","E06000007","Warrington","Other Urban"]
[null,"E02002611","Warrington 022","E06000007","Warrington","Other Urban"]
[null,"E02002612","Warrington 023","E06000007","Warrington","Other Urban"]
[null,"E02002613","Warrington 024","E06000007","Warrington","Rural"]
[null,"E02002614","Warrington 025","E06000007","Warrington","Other Urban"]
[null,"E02002615","Blackburn with Darwen 001","E06000008","Blackburn with Darwen","Other Urban"]
[null,"E02002616","Blackburn with Darwen 002","E06000008","Blackburn with Darwen","Other Urban"]
[null,"E02002617","Blackburn with Darwen 003","E06000008","Blackburn with Darwen","Other Urban"]
[null,"E02002618","Blackburn with Darwen 004","E06000008","Blackburn with Darwen","Other Urban"]
[null,"E02002619","Blackburn with Darwen 005","E06000008","Blackburn with Darwen","Other Urban"]
[null,"E02002620","Blackburn with Darwen 006","E06000008","Blackburn with Darwen","Other Urban"]
[null,"E02002621","Blackburn with Darwen 007","E06000008","Blackburn with Darwen","Other Urban"]
[null,"E02002622","Blackburn with Darwen 008","E06000008","Blackburn with Darwen","Other Urban"]
[null,"E02002623","Blackburn with Darwen 009","E06000008","Blackburn with Darwen","Other Urban"]
[null,"E02002624","Blackburn with Darwen 010","E06000008","Blackburn with Darwen","Other Urban"]
[null,"E02002625","Blackburn with Darwen 011","E06000008","Blackburn with Darwen","Other Urban"]
[null,"E02002626","Blackburn with Darwen 012","E06000008","Blackburn with Darwen","Other Urban"]
[null,"E02002627","Blackburn with Darwen 013","E06000008","Blackburn with Darwen","Other Urban"]
[null,"E02002628","Blackburn with Darwen 014","E06000008","Blackburn with Darwen","Other Urban"]
[null,"E02002629","Blackburn with Darwen 015","E06000008","Blackburn with Darwen","Other Urban"]
[null,"E02002630","Blackburn with Darwen 016","E06000008","Blackburn with Darwen","Other Urban"]
[null,"E02002631","Blackburn with Darwen 017","E06000008","Blackburn with Darwen","Other Urban"]
[null,"E02002632","Blackburn with Darwen 018","E06000008","Blackburn with Darwen","Rural"]
[null,"E02002633","Blackpool 001","E06000009","Blackpool","Other Urban"]
[null,"E02002634","Blackpool 002","E06000009","Blackpool","Other Urban"]
[null,"E02002635","Blackpool 003","E06000009","Blackpool","Other Urban"]
[null,"E02002636","Blackpool 004","E06000009","Blackpool","Other Urban"]
[null,"E02002637","Blackpool 005","E06000009","Blackpool","Other Urban"]
[null,"E02002638","Blackpool 006","E06000009","Blackpool","Other Urban"]
[null,"E02002639","Blackpool 007","E06000009","Blackpool","Other Urban"]
[null,"E02002640","Blackpool 008","E06000009","Blackpool","Other Urban"]
[null,"E02002641","Blackpool 009","E06000009","Blackpool","Other Urban"]
[null,"E02002642","Blackpool 010","E06000009","Blackpool","Other Urban"]
[null,"E02002643","Blackpool 011","E06000009","Blackpool","Other Urban"]
[null,"E02002644","Blackpool 012","E06000009","Blackpool","Other Urban"]
[null,"E02002645","Blackpool 013","E06000009","Blackpool","Other Urban"]
[null,"E02002646","Blackpool 014","E06000009","Blackpool","Other Urban"]
[null,"E02002647","Blackpool 015","E06000009","Blackpool","Other Urban"]
[null,"E02002648","Blackpool 016","E06000009","Blackpool","Other Urban"]
[null,"E02002649","Blackpool 017","E06000009","Blackpool","Other Urban"]
[null,"E02002650","Blackpool 018","E06000009","Blackpool","Other Urban"]
[null,"E02002651","Blackpool 019","E06000009","Blackpool","Other Urban"]
[null,"E02002652","Kingston upon Hull 001","E06000010","Kingston upon Hull, City of","Other Urban"]
[null,"E02002653","Kingston upon Hull 002","E06000010","Kingston upon Hull, City of","Other Urban"]
[null,"E02002654","Kingston upon Hull 003","E06000010","Kingston upon Hull, City of","Other Urban"]
[null,"E02002655","Kingston upon Hull 004","E06000010","Kingston upon Hull, City of","Other Urban"]
[null,"E02002656","Kingston upon Hull 005","E06000010","Kingston upon Hull, City of","Other Urban"]
[null,"E02002657","Kingston upon Hull 006","E06000010","Kingston upon Hull, City of","Other Urban"]
[null,"E02002658","Kingston upon Hull 007","E06000010","Kingston upon Hull, City of","Other Urban"]
[null,"E02002659","Kingston upon Hull 008","E06000010","Kingston upon Hull, City of","Other Urban"]
[null,"E02002660","Kingston upon Hull 009","E06000010","Kingston upon Hull, City of","Other Urban"]
[null,"E02002661","Kingston upon Hull 010","E06000010","Kingston upon Hull, City of","Other Urban"]
[null,"E02002662","Kingston upon Hull 011","E06000010","Kingston upon Hull, City of","Other Urban"]
[null,"E02002663","Kingston upon Hull 012","E06000010","Kingston upon Hull, City of","Other Urban"]
[null,"E02002664","Kingston upon Hull 013","E06000010","Kingston upon Hull, City of","Other Urban"]
[null,"E02002665","Kingston upon Hull 014","E06000010","Kingston upon Hull, City of","Other Urban"]
[null,"E02002666","Kingston upon Hull 015","E06000010","Kingston upon Hull, City of","Other Urban"]
[null,"E02002667","Kingston upon Hull 016","E06000010","Kingston upon Hull, City of","Other Urban"]
[null,"E02002668","Kingston upon Hull 017","E06000010","Kingston upon Hull, City of","Other Urban"]
[null,"E02002669","Kingston upon Hull 018","E06000010","Kingston upon Hull, City of","Other Urban"]
[null,"E02002670","Kingston upon Hull 019","E06000010","Kingston upon Hull, City of","Other Urban"]
[null,"E02002671","Kingston upon Hull 020","E06000010","Kingston upon Hull, City of","Other Urban"]
[null,"E02002672","Kingston upon Hull 021","E06000010","Kingston upon Hull, City of","Other Urban"]
[null,"E02002673","Kingston upon Hull 022","E06000010","Kingston upon Hull, City of","Other Urban"]
[null,"E02002674","Kingston upon Hull 023","E06000010","Kingston upon Hull, City of","Other Urban"]
[null,"E02002675","Kingston upon Hull 024","E06000010","Kingston upon Hull, City of","Other Urban"]
[null,"E02002676","Kingston upon Hull 025","E06000010","Kingston upon Hull, City of","Other Urban"]
[null,"E02002677","Kingston upon Hull 026","E06000010","Kingston upon Hull, City of","Other Urban"]
[null,"E02002678","Kingston upon Hull 027","E06000010","Kingston upon Hull, City of","Other Urban"]
[null,"E02002679","Kingston upon Hull 028","E06000010","Kingston upon Hull, City of","Other Urban"]
[null,"E02002680","Kingston upon Hull 029","E06000010","Kingston upon Hull, City of","Other Urban"]
[null,"E02002681","Kingston upon Hull 030","E06000010","Kingston upon Hull, City of","Other Urban"]
[null,"E02002682","Kingston upon Hull 031","E06000010","Kingston upon Hull, City of","Other Urban"]
[null,"E02002684","East Riding of Yorkshire 001","E06000011","East Riding of Yorkshire","Other Urban"]
[null,"E02002685","East Riding of Yorkshire 002","E06000011","East Riding of Yorkshire","Rural"]
[null,"E02002686","East Riding of Yorkshire 003","E06000011","East Riding of Yorkshire","Other Urban"]
[null,"E02002687","East Riding of Yorkshire 004","E06000011","East Riding of Yorkshire","Other Urban"]
[null,"E02002688","East Riding of Yorkshire 005","E06000011","East Riding of Yorkshire","Other Urban"]
[null,"E02002689","East Riding of Yorkshire 006","E06000011","East Riding of Yorkshire","Rural"]
[null,"E02002691","East Riding of Yorkshire 008","E06000011","East Riding of Yorkshire","Rural"]
[null,"E02002692","East Riding of Yorkshire 009","E06000011","East Riding of Yorkshire","Rural"]
[null,"E02002693","East Riding of Yorkshire 010","E06000011","East Riding of Yorkshire","Rural"]
[null,"E02002694","East Riding of Yorkshire 011","E06000011","East Riding of Yorkshire","Rural"]
[null,"E02002695","East Riding of Yorkshire 012","E06000011","East Riding of Yorkshire","Rural"]
[null,"E02002696","East Riding of Yorkshire 013","E06000011","East Riding of Yorkshire","Rural"]
[null,"E02002697","East Riding of Yorkshire 014","E06000011","East Riding of Yorkshire","Rural"]
[null,"E02002698","East Riding of Yorkshire 015","E06000011","East Riding of Yorkshire","Rural"]
[null,"E02002699","East Riding of Yorkshire 016","E06000011","East Riding of Yorkshire","Other Urban"]
[null,"E02002700","East Riding of Yorkshire 017","E06000011","East Riding of Yorkshire","Other Urban"]
[null,"E02002701","East Riding of Yorkshire 018","E06000011","East Riding of Yorkshire","Rural"]
[null,"E02002702","East Riding of Yorkshire 019","E06000011","East Riding of Yorkshire","Other Urban"]
[null,"E02002703","East Riding of Yorkshire 020","E06000011","East Riding of Yorkshire","Rural"]
[null,"E02002704","East Riding of Yorkshire 021","E06000011","East Riding of Yorkshire","Rural"]
[null,"E02002705","East Riding of Yorkshire 022","E06000011","East Riding of Yorkshire","Other Urban"]
[null,"E02002706","East Riding of Yorkshire 023","E06000011","East Riding of Yorkshire","Other Urban"]
[null,"E02002707","East Riding of Yorkshire 024","E06000011","East Riding of Yorkshire","Rural"]
[null,"E02002708","East Riding of Yorkshire 025","E06000011","East Riding of Yorkshire","Other Urban"]
[null,"E02002709","East Riding of Yorkshire 026","E06000011","East Riding of Yorkshire","Rural"]
[null,"E02002710","East Riding of Yorkshire 027","E06000011","East Riding of Yorkshire","Other Urban"]
[null,"E02002711","East Riding of Yorkshire 028","E06000011","East Riding of Yorkshire","Other Urban"]
[null,"E02002712","East Riding of Yorkshire 029","E06000011","East Riding of Yorkshire","Rural"]
[null,"E02002714","East Riding of Yorkshire 031","E06000011","East Riding of Yorkshire","Rural"]
[null,"E02002715","East Riding of Yorkshire 032","E06000011","East Riding of Yorkshire","Rural"]
[null,"E02002716","East Riding of Yorkshire 033","E06000011","East Riding of Yorkshire","Rural"]
[null,"E02002717","East Riding of Yorkshire 034","E06000011","East Riding of Yorkshire","Other Urban"]
[null,"E02002718","East Riding of Yorkshire 035","E06000011","East Riding of Yorkshire","Rural"]
[null,"E02002719","East Riding of Yorkshire 036","E06000011","East Riding of Yorkshire","Other Urban"]
[null,"E02002720","East Riding of Yorkshire 037","E06000011","East Riding of Yorkshire","Rural"]
[null,"E02002721","East Riding of Yorkshire 038","E06000011","East Riding of Yorkshire","Rural"]
[null,"E02002722","East Riding of Yorkshire 039","E06000011","East Riding of Yorkshire","Rural"]
[null,"E02002723","East Riding of Yorkshire 040","E06000011","East Riding of Yorkshire","Rural"]
[null,"E02002724","East Riding of Yorkshire 041","E06000011","East Riding of Yorkshire","Other Urban"]
[null,"E02002725","East Riding of Yorkshire 042","E06000011","East Riding of Yorkshire","Rural"]
[null,"E02002726","North East Lincolnshire 001","E06000012","North East Lincolnshire","Rural"]
[null,"E02002727","North East Lincolnshire 002","E06000012","North East Lincolnshire","Other Urban"]
[null,"E02002728","North East Lincolnshire 003","E06000012","North East Lincolnshire","Other Urban"]
[null,"E02002729","North East Lincolnshire 004","E06000012","North East Lincolnshire","Other Urban"]
[null,"E02002730","North East Lincolnshire 005","E06000012","North East Lincolnshire","Other Urban"]
[null,"E02002731","North East Lincolnshire 006","E06000012","North East Lincolnshire","Other Urban"]
[null,"E02002732","North East Lincolnshire 007","E06000012","North East Lincolnshire","Rural"]
[null,"E02002733","North East Lincolnshire 008","E06000012","North East Lincolnshire","Other Urban"]
[null,"E02002734","North East Lincolnshire 009","E06000012","North East Lincolnshire","Other Urban"]
[null,"E02002735","North East Lincolnshire 010","E06000012","North East Lincolnshire","Other Urban"]
[null,"E02002736","North East Lincolnshire 011","E06000012","North East Lincolnshire","Other Urban"]
[null,"E02002737","North East Lincolnshire 012","E06000012","North East Lincolnshire","Other Urban"]
[null,"E02002738","North East Lincolnshire 013","E06000012","North East Lincolnshire","Other Urban"]
[null,"E02002739","North East Lincolnshire 014","E06000012","North East Lincolnshire","Other Urban"]
[null,"E02002740","North East Lincolnshire 015","E06000012","North East Lincolnshire","Other Urban"]
[null,"E02002741","North East Lincolnshire 016","E06000012","North East Lincolnshire","Other Urban"]
[null,"E02002742","North East Lincolnshire 017","E06000012","North East Lincolnshire","Other Urban"]
[null,"E02002743","North East Lincolnshire 018","E06000012","North East Lincolnshire","Other Urban"]
[null,"E02002744","North East Lincolnshire 019","E06000012","North East Lincolnshire","Other Urban"]
[null,"E02002745","North East Lincolnshire 020","E06000012","North East Lincolnshire","Other Urban"]
[null,"E02002746","North East Lincolnshire 021","E06000012","North East Lincolnshire","Other Urban"]
[null,"E02002747","North East Lincolnshire 022","E06000012","North East Lincolnshire","Other Urban"]
[null,"E02002748","North East Lincolnshire 023","E06000012","North East Lincolnshire","Rural"]
[null,"E02002749","North Lincolnshire 001","E06000013","North Lincolnshire","Rural"]
[null,"E02002750","North Lincolnshire 002","E06000013","North Lincolnshire","Rural"]
[null,"E02002751","North Lincolnshire 003","E06000013","North Lincolnshire","Rural"]
[null,"E02002752","North Lincolnshire 004","E06000013","North Lincolnshire","Rural"]
[null,"E02002753","North Lincolnshire 005","E06000013","North Lincolnshire","Rural"]
[null,"E02002754","North Lincolnshire 006","E06000013","North Lincolnshire","Rural"]
[null,"E02002755","North Lincolnshire 007","E06000013","North Lincolnshire","Other Urban"]
[null,"E02002756","North Lincolnshire 008","E06000013","North Lincolnshire","Other Urban"]
[null,"E02002757","North Lincolnshire 009","E06000013","North Lincolnshire","Other Urban"]
[null,"E02002758","North Lincolnshire 010","E06000013","North Lincolnshire","Other Urban"]
[null,"E02002759","North Lincolnshire 011","E06000013","North Lincolnshire","Rural"]
[null,"E02002760","North Lincolnshire 012","E06000013","North Lincolnshire","Other Urban"]
[null,"E02002761","North Lincolnshire 013","E06000013","North Lincolnshire","Rural"]
[null,"E02002762","North Lincolnshire 014","E06000013","North Lincolnshire","Other Urban"]
[null,"E02002763","North Lincolnshire 015","E06000013","North Lincolnshire","Other Urban"]
[null,"E02002764","North Lincolnshire 016","E06000013","North Lincolnshire","Other Urban"]
[null,"E02002765","North Lincolnshire 017","E06000013","North Lincolnshire","Other Urban"]
[null,"E02002766","North Lincolnshire 018","E06000013","North Lincolnshire","Other Urban"]
[null,"E02002767","North Lincolnshire 019","E06000013","North Lincolnshire","Other Urban"]
[null,"E02002768","North Lincolnshire 020","E06000013","North Lincolnshire","Rural"]
[null,"E02002769","North Lincolnshire 021","E06000013","North Lincolnshire","Rural"]
[null,"E02002770","North Lincolnshire 022","E06000013","North Lincolnshire","Rural"]
[null,"E02002771","North Lincolnshire 023","E06000013","North Lincolnshire","Rural"]
[null,"E02002772","York 001","E06000014","York","Rural"]
[null,"E02002773","York 002","E06000014","York","Rural"]
[null,"E02002774","York 003","E06000014","York","Rural"]
[null,"E02002775","York 004","E06000014","York","Other Urban"]
[null,"E02002776","York 005","E06000014","York","Other Urban"]
[null,"E02002777","York 006","E06000014","York","Other Urban"]
[null,"E02002778","York 007","E06000014","York","Other Urban"]
[null,"E02002779","York 008","E06000014","York","Rural"]
[null,"E02002780","York 009","E06000014","York","Other Urban"]
[null,"E02002781","York 010","E06000014","York","Other Urban"]
[null,"E02002782","York 011","E06000014","York","Rural"]
[null,"E02002783","York 012","E06000014","York","Other Urban"]
[null,"E02002784","York 013","E06000014","York","Other Urban"]
[null,"E02002785","York 014","E06000014","York","Other Urban"]
[null,"E02002786","York 015","E06000014","York","Other Urban"]
[null,"E02002787","York 016","E06000014","York","Other Urban"]
[null,"E02002788","York 017","E06000014","York","Other Urban"]
[null,"E02002789","York 018","E06000014","York","Other Urban"]
[null,"E02002790","York 019","E06000014","York","Other Urban"]
[null,"E02002791","York 020","E06000014","York","Rural"]
[null,"E02002792","York 021","E06000014","York","Other Urban"]
[null,"E02002793","York 022","E06000014","York","Other Urban"]
[null,"E02002794","York 023","E06000014","York","Rural"]
[null,"E02002795","York 024","E06000014","York","Rural"]
[null,"E02002796","Derby 001","E06000015","Derby","Other Urban"]
[null,"E02002797","Derby 002","E06000015","Derby","Other Urban"]
[null,"E02002798","Derby 003","E06000015","Derby","Other Urban"]
[null,"E02002799","Derby 004","E06000015","Derby","Other Urban"]
[null,"E02002800","Derby 005","E06000015","Derby","Other Urban"]
[null,"E02002801","Derby 006","E06000015","Derby","Other Urban"]
[null,"E02002802","Derby 007","E06000015","Derby","Other Urban"]
[null,"E02002803","Derby 008","E06000015","Derby","Other Urban"]
[null,"E02002804","Derby 009","E06000015","Derby","Other Urban"]
[null,"E02002805","Derby 010","E06000015","Derby","Other Urban"]
[null,"E02002806","Derby 011","E06000015","Derby","Other Urban"]
[null,"E02002807","Derby 012","E06000015","Derby","Other Urban"]
[null,"E02002808","Derby 013","E06000015","Derby","Other Urban"]
[null,"E02002809","Derby 014","E06000015","Derby","Other Urban"]
[null,"E02002810","Derby 015","E06000015","Derby","Other Urban"]
[null,"E02002811","Derby 016","E06000015","Derby","Other Urban"]
[null,"E02002812","Derby 017","E06000015","Derby","Other Urban"]
[null,"E02002813","Derby 018","E06000015","Derby","Other Urban"]
[null,"E02002814","Derby 019","E06000015","Derby","Other Urban"]
[null,"E02002815","Derby 020","E06000015","Derby","Other Urban"]
[null,"E02002816","Derby 021","E06000015","Derby","Other Urban"]
[null,"E02002817","Derby 022","E06000015","Derby","Other Urban"]
[null,"E02002818","Derby 023","E06000015","Derby","Other Urban"]
[null,"E02002819","Derby 024","E06000015","Derby","Other Urban"]
[null,"E02002820","Derby 025","E06000015","Derby","Other Urban"]
[null,"E02002821","Derby 026","E06000015","Derby","Other Urban"]
[null,"E02002822","Derby 027","E06000015","Derby","Other Urban"]
[null,"E02002823","Derby 028","E06000015","Derby","Other Urban"]
[null,"E02002824","Derby 029","E06000015","Derby","Other Urban"]
[null,"E02002825","Derby 030","E06000015","Derby","Other Urban"]
[null,"E02002826","Derby 031","E06000015","Derby","Other Urban"]
[null,"E02002827","Leicester 001","E06000016","Leicester","Other Urban"]
[null,"E02002828","Leicester 002","E06000016","Leicester","Other Urban"]
[null,"E02002829","Leicester 003","E06000016","Leicester","Other Urban"]
[null,"E02002830","Leicester 004","E06000016","Leicester","Other Urban"]
[null,"E02002831","Leicester 005","E06000016","Leicester","Other Urban"]
[null,"E02002832","Leicester 006","E06000016","Leicester","Other Urban"]
[null,"E02002833","Leicester 007","E06000016","Leicester","Other Urban"]
[null,"E02002834","Leicester 008","E06000016","Leicester","Other Urban"]
[null,"E02002835","Leicester 009","E06000016","Leicester","Other Urban"]
[null,"E02002836","Leicester 010","E06000016","Leicester","Other Urban"]
[null,"E02002837","Leicester 011","E06000016","Leicester","Other Urban"]
[null,"E02002838","Leicester 012","E06000016","Leicester","Other Urban"]
[null,"E02002839","Leicester 013","E06000016","Leicester","Other Urban"]
[null,"E02002842","Leicester 016","E06000016","Leicester","Other Urban"]
[null,"E02002843","Leicester 017","E06000016","Leicester","Other Urban"]
[null,"E02002844","Leicester 018","E06000016","Leicester","Other Urban"]
[null,"E02002845","Leicester 019","E06000016","Leicester","Other Urban"]
[null,"E02002846","Leicester 020","E06000016","Leicester","Other Urban"]
[null,"E02002847","Leicester 021","E06000016","Leicester","Other Urban"]
[null,"E02002848","Leicester 022","E06000016","Leicester","Other Urban"]
[null,"E02002849","Leicester 023","E06000016","Leicester","Other Urban"]
[null,"E02002851","Leicester 025","E06000016","Leicester","Other Urban"]
[null,"E02002852","Leicester 026","E06000016","Leicester","Other Urban"]
[null,"E02002853","Leicester 027","E06000016","Leicester","Other Urban"]
[null,"E02002854","Leicester 028","E06000016","Leicester","Other Urban"]
[null,"E02002855","Leicester 029","E06000016","Leicester","Other Urban"]
[null,"E02002856","Leicester 030","E06000016","Leicester","Other Urban"]
[null,"E02002857","Leicester 031","E06000016","Leicester","Other Urban"]
[null,"E02002858","Leicester 032","E06000016","Leicester","Other Urban"]
[null,"E02002860","Leicester 034","E06000016","Leicester","Other Urban"]
[null,"E02002861","Leicester 035","E06000016","Leicester","Other Urban"]
[null,"E02002862","Leicester 036","E06000016","Leicester","Other Urban"]
[null,"E02002863","Rutland 001","E06000017","Rutland","Rural"]
[null,"E02002864","Rutland 002","E06000017","Rutland","Rural"]
[null,"E02002865","Rutland 003","E06000017","Rutland","Rural"]
[null,"E02002866","Rutland 004","E06000017","Rutland","Rural"]
[null,"E02002867","Rutland 005","E06000017","Rutland","Rural"]
[null,"E02002868","Nottingham 001","E06000018","Nottingham","Other Urban"]
[null,"E02002869","Nottingham 002","E06000018","Nottingham","Other Urban"]
[null,"E02002871","Nottingham 004","E06000018","Nottingham","Other Urban"]
[null,"E02002872","Nottingham 005","E06000018","Nottingham","Other Urban"]
[null,"E02002873","Nottingham 006","E06000018","Nottingham","Other Urban"]
[null,"E02002874","Nottingham 007","E06000018","Nottingham","Other Urban"]
[null,"E02002875","Nottingham 008","E06000018","Nottingham","Other Urban"]
[null,"E02002876","Nottingham 009","E06000018","Nottingham","Other Urban"]
[null,"E02002877","Nottingham 010","E06000018","Nottingham","Other Urban"]
[null,"E02002878","Nottingham 011","E06000018","Nottingham","Other Urban"]
[null,"E02002879","Nottingham 012","E06000018","Nottingham","Other Urban"]
[null,"E02002880","Nottingham 013","E06000018","Nottingham","Other Urban"]
[null,"E02002881","Nottingham 014","E06000018","Nottingham","Other Urban"]
[null,"E02002882","Nottingham 015","E06000018","Nottingham","Other Urban"]
[null,"E02002883","Nottingham 016","E06000018","Nottingham","Other Urban"]
[null,"E02002884","Nottingham 017","E06000018","Nottingham","Other Urban"]
[null,"E02002885","Nottingham 018","E06000018","Nottingham","Other Urban"]
[null,"E02002886","Nottingham 019","E06000018","Nottingham","Other Urban"]
[null,"E02002887","Nottingham 020","E06000018","Nottingham","Other Urban"]
[null,"E02002888","Nottingham 021","E06000018","Nottingham","Other Urban"]
[null,"E02002889","Nottingham 022","E06000018","Nottingham","Other Urban"]
[null,"E02002890","Nottingham 023","E06000018","Nottingham","Other Urban"]
[null,"E02002891","Nottingham 024","E06000018","Nottingham","Other Urban"]
[null,"E02002892","Nottingham 025","E06000018","Nottingham","Other Urban"]
[null,"E02002893","Nottingham 026","E06000018","Nottingham","Other Urban"]
[null,"E02002894","Nottingham 027","E06000018","Nottingham","Other Urban"]
[null,"E02002895","Nottingham 028","E06000018","Nottingham","Other Urban"]
[null,"E02002896","Nottingham 029","E06000018","Nottingham","Other Urban"]
[null,"E02002897","Nottingham 030","E06000018","Nottingham","Other Urban"]
[null,"E02002898","Nottingham 031","E06000018","Nottingham","Other Urban"]
[null,"E02002899","Nottingham 032","E06000018","Nottingham","Other Urban"]
[null,"E02002901","Nottingham 034","E06000018","Nottingham","Other Urban"]
[null,"E02002902","Nottingham 035","E06000018","Nottingham","Other Urban"]
[null,"E02002903","Nottingham 036","E06000018","Nottingham","Other Urban"]
[null,"E02002904","Nottingham 037","E06000018","Nottingham","Other Urban"]
[null,"E02002905","Herefordshire 001","E06000019","Herefordshire, County of","Rural"]
[null,"E02002906","Herefordshire 002","E06000019","Herefordshire, County of","Rural"]
[null,"E02002907","Herefordshire 003","E06000019","Herefordshire, County of","Rural"]
[null,"E02002908","Herefordshire 004","E06000019","Herefordshire, County of","Rural"]
[null,"E02002909","Herefordshire 005","E06000019","Herefordshire, County of","Rural"]
[null,"E02002910","Herefordshire 006","E06000019","Herefordshire, County of","Rural"]
[null,"E02002911","Herefordshire 007","E06000019","Herefordshire, County of","Rural"]
[null,"E02002912","Herefordshire 008","E06000019","Herefordshire, County of","Rural"]
[null,"E02002913","Herefordshire 009","E06000019","Herefordshire, County of","Rural"]
[null,"E02002914","Herefordshire 010","E06000019","Herefordshire, County of","Other Urban"]
[null,"E02002915","Herefordshire 011","E06000019","Herefordshire, County of","Other Urban"]
[null,"E02002916","Herefordshire 012","E06000019","Herefordshire, County of","Other Urban"]
[null,"E02002917","Herefordshire 013","E06000019","Herefordshire, County of","Other Urban"]
[null,"E02002918","Herefordshire 014","E06000019","Herefordshire, County of","Other Urban"]
[null,"E02002919","Herefordshire 015","E06000019","Herefordshire, County of","Other Urban"]
[null,"E02002920","Herefordshire 016","E06000019","Herefordshire, County of","Rural"]
[null,"E02002921","Herefordshire 017","E06000019","Herefordshire, County of","Other Urban"]
[null,"E02002922","Herefordshire 018","E06000019","Herefordshire, County of","Rural"]
[null,"E02002923","Herefordshire 019","E06000019","Herefordshire, County of","Rural"]
[null,"E02002924","Herefordshire 020","E06000019","Herefordshire, County of","Rural"]
[null,"E02002925","Herefordshire 021","E06000019","Herefordshire, County of","Rural"]
[null,"E02002926","Herefordshire 022","E06000019","Herefordshire, County of","Rural"]
[null,"E02002927","Herefordshire 023","E06000019","Herefordshire, County of","Rural"]
[null,"E02002928","Telford and Wrekin 001","E06000020","Telford and Wrekin","Other Urban"]
[null,"E02002929","Telford and Wrekin 002","E06000020","Telford and Wrekin","Rural"]
[null,"E02002930","Telford and Wrekin 003","E06000020","Telford and Wrekin","Other Urban"]
[null,"E02002931","Telford and Wrekin 004","E06000020","Telford and Wrekin","Rural"]
[null,"E02002932","Telford and Wrekin 005","E06000020","Telford and Wrekin","Other Urban"]
[null,"E02002933","Telford and Wrekin 006","E06000020","Telford and Wrekin","Other Urban"]
[null,"E02002934","Telford and Wrekin 007","E06000020","Telford and Wrekin","Other Urban"]
[null,"E02002935","Telford and Wrekin 008","E06000020","Telford and Wrekin","Other Urban"]
[null,"E02002936","Telford and Wrekin 009","E06000020","Telford and Wrekin","Other Urban"]
[null,"E02002937","Telford and Wrekin 010","E06000020","Telford and Wrekin","Rural"]
[null,"E02002938","Telford and Wrekin 011","E06000020","Telford and Wrekin","Other Urban"]
[null,"E02002939","Telford and Wrekin 012","E06000020","Telford and Wrekin","Other Urban"]
[null,"E02002940","Telford and Wrekin 013","E06000020","Telford and Wrekin","Other Urban"]
[null,"E02002941","Telford and Wrekin 014","E06000020","Telford and Wrekin","Other Urban"]
[null,"E02002942","Telford and Wrekin 015","E06000020","Telford and Wrekin","Other Urban"]
[null,"E02002943","Telford and Wrekin 016","E06000020","Telford and Wrekin","Other Urban"]
[null,"E02002944","Telford and Wrekin 017","E06000020","Telford and Wrekin","Other Urban"]
[null,"E02002945","Telford and Wrekin 018","E06000020","Telford and Wrekin","Other Urban"]
[null,"E02002946","Telford and Wrekin 019","E06000020","Telford and Wrekin","Other Urban"]
[null,"E02002947","Telford and Wrekin 020","E06000020","Telford and Wrekin","Other Urban"]
[null,"E02002948","Telford and Wrekin 021","E06000020","Telford and Wrekin","Other Urban"]
[null,"E02002949","Telford and Wrekin 022","E06000020","Telford and Wrekin","Other Urban"]
[null,"E02002950","Telford and Wrekin 023","E06000020","Telford and Wrekin","Other Urban"]
[null,"E02002951","Stoke-on-Trent 001","E06000021","Stoke-on-Trent","Other Urban"]
[null,"E02002952","Stoke-on-Trent 002","E06000021","Stoke-on-Trent","Other Urban"]
[null,"E02002953","Stoke-on-Trent 003","E06000021","Stoke-on-Trent","Other Urban"]
[null,"E02002954","Stoke-on-Trent 004","E06000021","Stoke-on-Trent","Other Urban"]
[null,"E02002955","Stoke-on-Trent 005","E06000021","Stoke-on-Trent","Other Urban"]
[null,"E02002956","Stoke-on-Trent 006","E06000021","Stoke-on-Trent","Other Urban"]
[null,"E02002957","Stoke-on-Trent 007","E06000021","Stoke-on-Trent","Other Urban"]
[null,"E02002958","Stoke-on-Trent 008","E06000021","Stoke-on-Trent","Other Urban"]
[null,"E02002959","Stoke-on-Trent 009","E06000021","Stoke-on-Trent","Other Urban"]
[null,"E02002960","Stoke-on-Trent 010","E06000021","Stoke-on-Trent","Other Urban"]
[null,"E02002961","Stoke-on-Trent 011","E06000021","Stoke-on-Trent","Other Urban"]
[null,"E02002962","Stoke-on-Trent 012","E06000021","Stoke-on-Trent","Other Urban"]
[null,"E02002963","Stoke-on-Trent 013","E06000021","Stoke-on-Trent","Other Urban"]
[null,"E02002964","Stoke-on-Trent 014","E06000021","Stoke-on-Trent","Other Urban"]
[null,"E02002965","Stoke-on-Trent 015","E06000021","Stoke-on-Trent","Other Urban"]
[null,"E02002966","Stoke-on-Trent 016","E06000021","Stoke-on-Trent","Other Urban"]
[null,"E02002967","Stoke-on-Trent 017","E06000021","Stoke-on-Trent","Other Urban"]
[null,"E02002968","Stoke-on-Trent 018","E06000021","Stoke-on-Trent","Other Urban"]
[null,"E02002969","Stoke-on-Trent 019","E06000021","Stoke-on-Trent","Other Urban"]
[null,"E02002970","Stoke-on-Trent 020","E06000021","Stoke-on-Trent","Other Urban"]
[null,"E02002971","Stoke-on-Trent 021","E06000021","Stoke-on-Trent","Other Urban"]
[null,"E02002972","Stoke-on-Trent 022","E06000021","Stoke-on-Trent","Other Urban"]
[null,"E02002973","Stoke-on-Trent 023","E06000021","Stoke-on-Trent","Other Urban"]
[null,"E02002974","Stoke-on-Trent 024","E06000021","Stoke-on-Trent","Other Urban"]
[null,"E02002975","Stoke-on-Trent 025","E06000021","Stoke-on-Trent","Other Urban"]
[null,"E02002976","Stoke-on-Trent 026","E06000021","Stoke-on-Trent","Other Urban"]
[null,"E02002977","Stoke-on-Trent 027","E06000021","Stoke-on-Trent","Other Urban"]
[null,"E02002978","Stoke-on-Trent 028","E06000021","Stoke-on-Trent","Other Urban"]
[null,"E02002979","Stoke-on-Trent 029","E06000021","Stoke-on-Trent","Other Urban"]
[null,"E02002980","Stoke-on-Trent 030","E06000021","Stoke-on-Trent","Other Urban"]
[null,"E02002981","Stoke-on-Trent 031","E06000021","Stoke-on-Trent","Other Urban"]
[null,"E02002982","Stoke-on-Trent 032","E06000021","Stoke-on-Trent","Other Urban"]
[null,"E02002983","Stoke-on-Trent 033","E06000021","Stoke-on-Trent","Other Urban"]
[null,"E02002984","Stoke-on-Trent 034","E06000021","Stoke-on-Trent","Other Urban"]
[null,"E02002985","Bath and North East Somerset 001","E06000022","Bath and North East Somerset","Other Urban"]
[null,"E02002986","Bath and North East Somerset 002","E06000022","Bath and North East Somerset","Other Urban"]
[null,"E02002987","Bath and North East Somerset 003","E06000022","Bath and North East Somerset","Other Urban"]
[null,"E02002988","Bath and North East Somerset 004","E06000022","Bath and North East Somerset","Other Urban"]
[null,"E02002989","Bath and North East Somerset 005","E06000022","Bath and North East Somerset","Other Urban"]
[null,"E02002990","Bath and North East Somerset 006","E06000022","Bath and North East Somerset","Other Urban"]
[null,"E02002991","Bath and North East Somerset 007","E06000022","Bath and North East Somerset","Other Urban"]
[null,"E02002992","Bath and North East Somerset 008","E06000022","Bath and North East Somerset","Other Urban"]
[null,"E02002993","Bath and North East Somerset 009","E06000022","Bath and North East Somerset","Other Urban"]
[null,"E02002994","Bath and North East Somerset 010","E06000022","Bath and North East Somerset","Rural"]
[null,"E02002995","Bath and North East Somerset 011","E06000022","Bath and North East Somerset","Other Urban"]
[null,"E02002996","Bath and North East Somerset 012","E06000022","Bath and North East Somerset","Other Urban"]
[null,"E02002997","Bath and North East Somerset 013","E06000022","Bath and North East Somerset","Other Urban"]
[null,"E02002998","Bath and North East Somerset 014","E06000022","Bath and North East Somerset","Other Urban"]
[null,"E02002999","Bath and North East Somerset 015","E06000022","Bath and North East Somerset","Other Urban"]
[null,"E02003000","Bath and North East Somerset 016","E06000022","Bath and North East Somerset","Rural"]
[null,"E02003001","Bath and North East Somerset 017","E06000022","Bath and North East Somerset","Other Urban"]
[null,"E02003002","Bath and North East Somerset 018","E06000022","Bath and North East Somerset","Other Urban"]
[null,"E02003003","Bath and North East Somerset 019","E06000022","Bath and North East Somerset","Other Urban"]
[null,"E02003004","Bath and North East Somerset 020","E06000022","Bath and North East Somerset","Rural"]
[null,"E02003005","Bath and North East Somerset 021","E06000022","Bath and North East Somerset","Rural"]
[null,"E02003006","Bath and North East Somerset 022","E06000022","Bath and North East Somerset","Rural"]
[null,"E02003007","Bath and North East Somerset 023","E06000022","Bath and North East Somerset","Rural"]
[null,"E02003008","Bath and North East Somerset 024","E06000022","Bath and North East Somerset","Other Urban"]
[null,"E02003009","Bath and North East Somerset 025","E06000022","Bath and North East Somerset","Other Urban"]
[null,"E02003010","Bath and North East Somerset 026","E06000022","Bath and North East Somerset","Other Urban"]
[null,"E02003011","Bath and North East Somerset 027","E06000022","Bath and North East Somerset","Other Urban"]
[null,"E02003012","Bristol 001","E06000023","Bristol, City of","Other Urban"]
[null,"E02003013","Bristol 002","E06000023","Bristol, City of","Other Urban"]
[null,"E02003014","Bristol 003","E06000023","Bristol, City of","Other Urban"]
[null,"E02003015","Bristol 004","E06000023","Bristol, City of","Other Urban"]
[null,"E02003016","Bristol 005","E06000023","Bristol, City of","Other Urban"]
[null,"E02003017","Bristol 006","E06000023","Bristol, City of","Other Urban"]
[null,"E02003018","Bristol 007","E06000023","Bristol, City of","Other Urban"]
[null,"E02003019","Bristol 008","E06000023","Bristol, City of","Rural"]
[null,"E02003020","Bristol 009","E06000023","Bristol, City of","Other Urban"]
[null,"E02003021","Bristol 010","E06000023","Bristol, City of","Other Urban"]
[null,"E02003022","Bristol 011","E06000023","Bristol, City of","Other Urban"]
[null,"E02003023","Bristol 012","E06000023","Bristol, City of","Other Urban"]
[null,"E02003024","Bristol 013","E06000023","Bristol, City of","Other Urban"]
[null,"E02003025","Bristol 014","E06000023","Bristol, City of","Other Urban"]
[null,"E02003026","Bristol 015","E06000023","Bristol, City of","Other Urban"]
[null,"E02003027","Bristol 016","E06000023","Bristol, City of","Other Urban"]
[null,"E02003028","Bristol 017","E06000023","Bristol, City of","Other Urban"]
[null,"E02003029","Bristol 018","E06000023","Bristol, City of","Other Urban"]
[null,"E02003030","Bristol 019","E06000023","Bristol, City of","Other Urban"]
[null,"E02003031","Bristol 020","E06000023","Bristol, City of","Other Urban"]
[null,"E02003032","Bristol 021","E06000023","Bristol, City of","Other Urban"]
[null,"E02003033","Bristol 022","E06000023","Bristol, City of","Other Urban"]
[null,"E02003034","Bristol 023","E06000023","Bristol, City of","Other Urban"]
[null,"E02003036","Bristol 025","E06000023","Bristol, City of","Other Urban"]
[null,"E02003037","Bristol 026","E06000023","Bristol, City of","Other Urban"]
[null,"E02003038","Bristol 027","E06000023","Bristol, City of","Other Urban"]
[null,"E02003039","Bristol 028","E06000023","Bristol, City of","Other Urban"]
[null,"E02003040","Bristol 029","E06000023","Bristol, City of","Other Urban"]
[null,"E02003041","Bristol 030","E06000023","Bristol, City of","Other Urban"]
[null,"E02003043","Bristol 032","E06000023","Bristol, City of","Other Urban"]
[null,"E02003044","Bristol 033","E06000023","Bristol, City of","Other Urban"]
[null,"E02003045","Bristol 034","E06000023","Bristol, City of","Other Urban"]
[null,"E02003046","Bristol 035","E06000023","Bristol, City of","Other Urban"]
[null,"E02003047","Bristol 036","E06000023","Bristol, City of","Other Urban"]
[null,"E02003048","Bristol 037","E06000023","Bristol, City of","Other Urban"]
[null,"E02003049","Bristol 038","E06000023","Bristol, City of","Other Urban"]
[null,"E02003050","Bristol 039","E06000023","Bristol, City of","Other Urban"]
[null,"E02003051","Bristol 040","E06000023","Bristol, City of","Other Urban"]
[null,"E02003052","Bristol 041","E06000023","Bristol, City of","Other Urban"]
[null,"E02003053","Bristol 042","E06000023","Bristol, City of","Other Urban"]
[null,"E02003054","Bristol 043","E06000023","Bristol, City of","Other Urban"]
[null,"E02003055","Bristol 044","E06000023","Bristol, City of","Other Urban"]
[null,"E02003056","Bristol 045","E06000023","Bristol, City of","Other Urban"]
[null,"E02003057","Bristol 046","E06000023","Bristol, City of","Other Urban"]
[null,"E02003058","Bristol 047","E06000023","Bristol, City of","Other Urban"]
[null,"E02003059","Bristol 048","E06000023","Bristol, City of","Other Urban"]
[null,"E02003060","Bristol 049","E06000023","Bristol, City of","Other Urban"]
[null,"E02003061","Bristol 050","E06000023","Bristol, City of","Other Urban"]
[null,"E02003062","Bristol 051","E06000023","Bristol, City of","Other Urban"]
[null,"E02003063","Bristol 052","E06000023","Bristol, City of","Other Urban"]
[null,"E02003064","Bristol 053","E06000023","Bristol, City of","Other Urban"]
[null,"E02003065","North Somerset 001","E06000024","North Somerset","Other Urban"]
[null,"E02003066","North Somerset 002","E06000024","North Somerset","Other Urban"]
[null,"E02003067","North Somerset 003","E06000024","North Somerset","Other Urban"]
[null,"E02003068","North Somerset 004","E06000024","North Somerset","Other Urban"]
[null,"E02003069","North Somerset 005","E06000024","North Somerset","Rural"]
[null,"E02003070","North Somerset 006","E06000024","North Somerset","Rural"]
[null,"E02003071","North Somerset 007","E06000024","North Somerset","Rural"]
[null,"E02003072","North Somerset 008","E06000024","North Somerset","Rural"]
[null,"E02003073","North Somerset 009","E06000024","North Somerset","Rural"]
[null,"E02003074","North Somerset 010","E06000024","North Somerset","Rural"]
[null,"E02003075","North Somerset 011","E06000024","North Somerset","Rural"]
[null,"E02003076","North Somerset 012","E06000024","North Somerset","Rural"]
[null,"E02003077","North Somerset 013","E06000024","North Somerset","Rural"]
[null,"E02003078","North Somerset 014","E06000024","North Somerset","Rural"]
[null,"E02003079","North Somerset 015","E06000024","North Somerset","Other Urban"]
[null,"E02003080","North Somerset 016","E06000024","North Somerset","Other Urban"]
[null,"E02003081","North Somerset 017","E06000024","North Somerset","Other Urban"]
[null,"E02003082","North Somerset 018","E06000024","North Somerset","Other Urban"]
[null,"E02003084","North Somerset 020","E06000024","North Somerset","Other Urban"]
[null,"E02003085","North Somerset 021","E06000024","North Somerset","Other Urban"]
[null,"E02003086","North Somerset 022","E06000024","North Somerset","Other Urban"]
[null,"E02003087","North Somerset 023","E06000024","North Somerset","Rural"]
[null,"E02003088","North Somerset 024","E06000024","North Somerset","Rural"]
[null,"E02003089","North Somerset 025","E06000024","North Somerset","Other Urban"]
[null,"E02003090","South Gloucestershire 001","E06000025","South Gloucestershire","Other Urban"]
[null,"E02003091","South Gloucestershire 002","E06000025","South Gloucestershire","Rural"]
[null,"E02003092","South Gloucestershire 003","E06000025","South Gloucestershire","Rural"]
[null,"E02003093","South Gloucestershire 004","E06000025","South Gloucestershire","Rural"]
[null,"E02003094","South Gloucestershire 005","E06000025","South Gloucestershire","Rural"]
[null,"E02003095","South Gloucestershire 006","E06000025","South Gloucestershire","Other Urban"]
[null,"E02003096","South Gloucestershire 007","E06000025","South Gloucestershire","Other Urban"]
[null,"E02003097","South Gloucestershire 008","E06000025","South Gloucestershire","Other Urban"]
[null,"E02003098","South Gloucestershire 009","E06000025","South Gloucestershire","Other Urban"]
[null,"E02003099","South Gloucestershire 010","E06000025","South Gloucestershire","Other Urban"]
[null,"E02003100","South Gloucestershire 011","E06000025","South Gloucestershire","Other Urban"]
[null,"E02003101","South Gloucestershire 012","E06000025","South Gloucestershire","Other Urban"]
[null,"E02003102","South Gloucestershire 013","E06000025","South Gloucestershire","Other Urban"]
[null,"E02003103","South Gloucestershire 014","E06000025","South Gloucestershire","Other Urban"]
[null,"E02003104","South Gloucestershire 015","E06000025","South Gloucestershire","Other Urban"]
[null,"E02003105","South Gloucestershire 016","E06000025","South Gloucestershire","Other Urban"]
[null,"E02003106","South Gloucestershire 017","E06000025","South Gloucestershire","Other Urban"]
[null,"E02003107","South Gloucestershire 018","E06000025","South Gloucestershire","Other Urban"]
[null,"E02003108","South Gloucestershire 019","E06000025","South Gloucestershire","Rural"]
[null,"E02003109","South Gloucestershire 020","E06000025","South Gloucestershire","Other Urban"]
[null,"E02003110","South Gloucestershire 021","E06000025","South Gloucestershire","Other Urban"]
[null,"E02003111","South Gloucestershire 022","E06000025","South Gloucestershire","Other Urban"]
[null,"E02003112","South Gloucestershire 023","E06000025","South Gloucestershire","Other Urban"]
[null,"E02003113","South Gloucestershire 024","E06000025","South Gloucestershire","Rural"]
[null,"E02003114","South Gloucestershire 025","E06000025","South Gloucestershire","Other Urban"]
[null,"E02003115","South Gloucestershire 026","E06000025","South Gloucestershire","Other Urban"]
[null,"E02003116","South Gloucestershire 027","E06000025","South Gloucestershire","Other Urban"]
[null,"E02003117","South Gloucestershire 028","E06000025","South Gloucestershire","Other Urban"]
[null,"E02003118","South Gloucestershire 029","E06000025","South Gloucestershire","Other Urban"]
[null,"E02003119","South Gloucestershire 030","E06000025","South Gloucestershire","Other Urban"]
[null,"E02003120","South Gloucestershire 031","E06000025","South Gloucestershire","Other Urban"]
[null,"E02003121","South Gloucestershire 032","E06000025","South Gloucestershire","Other Urban"]
[null,"E02003122","Plymouth 001","E06000026","Plymouth","Other Urban"]
[null,"E02003123","Plymouth 002","E06000026","Plymouth","Other Urban"]
[null,"E02003124","Plymouth 003","E06000026","Plymouth","Other Urban"]
[null,"E02003125","Plymouth 004","E06000026","Plymouth","Other Urban"]
[null,"E02003126","Plymouth 005","E06000026","Plymouth","Other Urban"]
[null,"E02003127","Plymouth 006","E06000026","Plymouth","Other Urban"]
[null,"E02003128","Plymouth 007","E06000026","Plymouth","Other Urban"]
[null,"E02003129","Plymouth 008","E06000026","Plymouth","Other Urban"]
[null,"E02003130","Plymouth 009","E06000026","Plymouth","Other Urban"]
[null,"E02003131","Plymouth 010","E06000026","Plymouth","Other Urban"]
[null,"E02003132","Plymouth 011","E06000026","Plymouth","Other Urban"]
[null,"E02003133","Plymouth 012","E06000026","Plymouth","Other Urban"]
[null,"E02003134","Plymouth 013","E06000026","Plymouth","Other Urban"]
[null,"E02003135","Plymouth 014","E06000026","Plymouth","Other Urban"]
[null,"E02003136","Plymouth 015","E06000026","Plymouth","Other Urban"]
[null,"E02003137","Plymouth 016","E06000026","Plymouth","Other Urban"]
[null,"E02003138","Plymouth 017","E06000026","Plymouth","Other Urban"]
[null,"E02003139","Plymouth 018","E06000026","Plymouth","Other Urban"]
[null,"E02003140","Plymouth 019","E06000026","Plymouth","Other Urban"]
[null,"E02003141","Plymouth 020","E06000026","Plymouth","Other Urban"]
[null,"E02003142","Plymouth 021","E06000026","Plymouth","Other Urban"]
[null,"E02003143","Plymouth 022","E06000026","Plymouth","Other Urban"]
[null,"E02003144","Plymouth 023","E06000026","Plymouth","Other Urban"]
[null,"E02003145","Plymouth 024","E06000026","Plymouth","Other Urban"]
[null,"E02003146","Plymouth 025","E06000026","Plymouth","Other Urban"]
[null,"E02003147","Plymouth 026","E06000026","Plymouth","Other Urban"]
[null,"E02003148","Plymouth 027","E06000026","Plymouth","Other Urban"]
[null,"E02003149","Plymouth 028","E06000026","Plymouth","Other Urban"]
[null,"E02003150","Plymouth 029","E06000026","Plymouth","Other Urban"]
[null,"E02003151","Plymouth 030","E06000026","Plymouth","Other Urban"]
[null,"E02003152","Plymouth 031","E06000026","Plymouth","Other Urban"]
[null,"E02003153","Plymouth 032","E06000026","Plymouth","Other Urban"]
[null,"E02003154","Torbay 001","E06000027","Torbay","Other Urban"]
[null,"E02003155","Torbay 002","E06000027","Torbay","Other Urban"]
[null,"E02003156","Torbay 003","E06000027","Torbay","Other Urban"]
[null,"E02003157","Torbay 004","E06000027","Torbay","Other Urban"]
[null,"E02003158","Torbay 005","E06000027","Torbay","Other Urban"]
[null,"E02003159","Torbay 006","E06000027","Torbay","Other Urban"]
[null,"E02003161","Torbay 008","E06000027","Torbay","Other Urban"]
[null,"E02003163","Torbay 010","E06000027","Torbay","Rural"]
[null,"E02003164","Torbay 011","E06000027","Torbay","Other Urban"]
[null,"E02003165","Torbay 012","E06000027","Torbay","Other Urban"]
[null,"E02003166","Torbay 013","E06000027","Torbay","Other Urban"]
[null,"E02003167","Torbay 014","E06000027","Torbay","Other Urban"]
[null,"E02003168","Torbay 015","E06000027","Torbay","Other Urban"]
[null,"E02003169","Torbay 016","E06000027","Torbay","Other Urban"]
[null,"E02003170","Torbay 017","E06000027","Torbay","Rural"]
[null,"E02003171","Torbay 018","E06000027","Torbay","Rural"]
[null,"E02003172","Bournemouth 001","E06000028","Bournemouth","Other Urban"]
[null,"E02003173","Bournemouth 002","E06000028","Bournemouth","Other Urban"]
[null,"E02003174","Bournemouth 003","E06000028","Bournemouth","Other Urban"]
[null,"E02003175","Bournemouth 004","E06000028","Bournemouth","Other Urban"]
[null,"E02003176","Bournemouth 005","E06000028","Bournemouth","Other Urban"]
[null,"E02003177","Bournemouth 006","E06000028","Bournemouth","Other Urban"]
[null,"E02003178","Bournemouth 007","E06000028","Bournemouth","Other Urban"]
[null,"E02003179","Bournemouth 008","E06000028","Bournemouth","Other Urban"]
[null,"E02003180","Bournemouth 009","E06000028","Bournemouth","Other Urban"]
[null,"E02003181","Bournemouth 010","E06000028","Bournemouth","Other Urban"]
[null,"E02003182","Bournemouth 011","E06000028","Bournemouth","Other Urban"]
[null,"E02003183","Bournemouth 012","E06000028","Bournemouth","Other Urban"]
[null,"E02003184","Bournemouth 013","E06000028","Bournemouth","Other Urban"]
[null,"E02003185","Bournemouth 014","E06000028","Bournemouth","Other Urban"]
[null,"E02003186","Bournemouth 015","E06000028","Bournemouth","Other Urban"]
[null,"E02003187","Bournemouth 016","E06000028","Bournemouth","Other Urban"]
[null,"E02003188","Bournemouth 017","E06000028","Bournemouth","Other Urban"]
[null,"E02003189","Bournemouth 018","E06000028","Bournemouth","Other Urban"]
[null,"E02003190","Bournemouth 019","E06000028","Bournemouth","Other Urban"]
[null,"E02003191","Bournemouth 020","E06000028","Bournemouth","Other Urban"]
[null,"E02003192","Bournemouth 021","E06000028","Bournemouth","Other Urban"]
[null,"E02003194","Poole 001","E06000029","Poole","Rural"]
[null,"E02003195","Poole 002","E06000029","Poole","Other Urban"]
[null,"E02003196","Poole 003","E06000029","Poole","Other Urban"]
[null,"E02003197","Poole 004","E06000029","Poole","Other Urban"]
[null,"E02003198","Poole 005","E06000029","Poole","Other Urban"]
[null,"E02003199","Poole 006","E06000029","Poole","Other Urban"]
[null,"E02003200","Poole 007","E06000029","Poole","Other Urban"]
[null,"E02003201","Poole 008","E06000029","Poole","Other Urban"]
[null,"E02003202","Poole 009","E06000029","Poole","Other Urban"]
[null,"E02003203","Poole 010","E06000029","Poole","Other Urban"]
[null,"E02003204","Poole 011","E06000029","Poole","Other Urban"]
[null,"E02003205","Poole 012","E06000029","Poole","Other Urban"]
[null,"E02003206","Poole 013","E06000029","Poole","Other Urban"]
[null,"E02003207","Poole 014","E06000029","Poole","Other Urban"]
[null,"E02003208","Poole 015","E06000029","Poole","Other Urban"]
[null,"E02003209","Poole 016","E06000029","Poole","Other Urban"]
[null,"E02003210","Poole 017","E06000029","Poole","Other Urban"]
[null,"E02003211","Poole 018","E06000029","Poole","Other Urban"]
[null,"E02003212","Swindon 001","E06000030","Swindon","Rural"]
[null,"E02003214","Swindon 003","E06000030","Swindon","Other Urban"]
[null,"E02003215","Swindon 004","E06000030","Swindon","Other Urban"]
[null,"E02003216","Swindon 005","E06000030","Swindon","Other Urban"]
[null,"E02003217","Swindon 006","E06000030","Swindon","Other Urban"]
[null,"E02003218","Swindon 007","E06000030","Swindon","Other Urban"]
[null,"E02003219","Swindon 008","E06000030","Swindon","Rural"]
[null,"E02003220","Swindon 009","E06000030","Swindon","Other Urban"]
[null,"E02003221","Swindon 010","E06000030","Swindon","Other Urban"]
[null,"E02003222","Swindon 011","E06000030","Swindon","Other Urban"]
[null,"E02003223","Swindon 012","E06000030","Swindon","Other Urban"]
[null,"E02003224","Swindon 013","E06000030","Swindon","Other Urban"]
[null,"E02003225","Swindon 014","E06000030","Swindon","Other Urban"]
[null,"E02003226","Swindon 015","E06000030","Swindon","Other Urban"]
[null,"E02003227","Swindon 016","E06000030","Swindon","Other Urban"]
[null,"E02003228","Swindon 017","E06000030","Swindon","Other Urban"]
[null,"E02003229","Swindon 018","E06000030","Swindon","Other Urban"]
[null,"E02003230","Swindon 019","E06000030","Swindon","Other Urban"]
[null,"E02003231","Swindon 020","E06000030","Swindon","Other Urban"]
[null,"E02003232","Swindon 021","E06000030","Swindon","Other Urban"]
[null,"E02003233","Swindon 022","E06000030","Swindon","Other Urban"]
[null,"E02003234","Swindon 023","E06000030","Swindon","Other Urban"]
[null,"E02003235","Swindon 024","E06000030","Swindon","Other Urban"]
[null,"E02003236","Swindon 025","E06000030","Swindon","Rural"]
[null,"E02003237","Peterborough 001","E06000031","Peterborough","Rural"]
[null,"E02003238","Peterborough 002","E06000031","Peterborough","Other Urban"]
[null,"E02003239","Peterborough 003","E06000031","Peterborough","Rural"]
[null,"E02003240","Peterborough 004","E06000031","Peterborough","Rural"]
[null,"E02003241","Peterborough 005","E06000031","Peterborough","Rural"]
[null,"E02003242","Peterborough 006","E06000031","Peterborough","Other Urban"]
[null,"E02003243","Peterborough 007","E06000031","Peterborough","Other Urban"]
[null,"E02003244","Peterborough 008","E06000031","Peterborough","Other Urban"]
[null,"E02003245","Peterborough 009","E06000031","Peterborough","Other Urban"]
[null,"E02003246","Peterborough 010","E06000031","Peterborough","Other Urban"]
[null,"E02003247","Peterborough 011","E06000031","Peterborough","Other Urban"]
[null,"E02003248","Peterborough 012","E06000031","Peterborough","Other Urban"]
[null,"E02003249","Peterborough 013","E06000031","Peterborough","Other Urban"]
[null,"E02003250","Peterborough 014","E06000031","Peterborough","Other Urban"]
[null,"E02003251","Peterborough 015","E06000031","Peterborough","Other Urban"]
[null,"E02003252","Peterborough 016","E06000031","Peterborough","Other Urban"]
[null,"E02003253","Peterborough 017","E06000031","Peterborough","Other Urban"]
[null,"E02003254","Peterborough 018","E06000031","Peterborough","Other Urban"]
[null,"E02003255","Peterborough 019","E06000031","Peterborough","Other Urban"]
[null,"E02003257","Peterborough 021","E06000031","Peterborough","Other Urban"]
[null,"E02003258","Luton 001","E06000032","Luton","Other Urban"]
[null,"E02003259","Luton 002","E06000032","Luton","Other Urban"]
[null,"E02003260","Luton 003","E06000032","Luton","Other Urban"]
[null,"E02003261","Luton 004","E06000032","Luton","Other Urban"]
[null,"E02003262","Luton 005","E06000032","Luton","Other Urban"]
[null,"E02003263","Luton 006","E06000032","Luton","Other Urban"]
[null,"E02003264","Luton 007","E06000032","Luton","Other Urban"]
[null,"E02003265","Luton 008","E06000032","Luton","Other Urban"]
[null,"E02003266","Luton 009","E06000032","Luton","Other Urban"]
[null,"E02003267","Luton 010","E06000032","Luton","Other Urban"]
[null,"E02003268","Luton 011","E06000032","Luton","Other Urban"]
[null,"E02003269","Luton 012","E06000032","Luton","Other Urban"]
[null,"E02003270","Luton 013","E06000032","Luton","Other Urban"]
[null,"E02003271","Luton 014","E06000032","Luton","Other Urban"]
[null,"E02003272","Luton 015","E06000032","Luton","Other Urban"]
[null,"E02003273","Luton 016","E06000032","Luton","Other Urban"]
[null,"E02003274","Luton 017","E06000032","Luton","Other Urban"]
[null,"E02003275","Luton 018","E06000032","Luton","Other Urban"]
[null,"E02003276","Luton 019","E06000032","Luton","Other Urban"]
[null,"E02003277","Luton 020","E06000032","Luton","Other Urban"]
[null,"E02003278","Luton 021","E06000032","Luton","Other Urban"]
[null,"E02003279","Southend-on-Sea 001","E06000033","Southend-on-Sea","Other Urban"]
[null,"E02003280","Southend-on-Sea 002","E06000033","Southend-on-Sea","Other Urban"]
[null,"E02003281","Southend-on-Sea 003","E06000033","Southend-on-Sea","Other Urban"]
[null,"E02003282","Southend-on-Sea 004","E06000033","Southend-on-Sea","Other Urban"]
[null,"E02003283","Southend-on-Sea 005","E06000033","Southend-on-Sea","Other Urban"]
[null,"E02003284","Southend-on-Sea 006","E06000033","Southend-on-Sea","Other Urban"]
[null,"E02003285","Southend-on-Sea 007","E06000033","Southend-on-Sea","Other Urban"]
[null,"E02003286","Southend-on-Sea 008","E06000033","Southend-on-Sea","Other Urban"]
[null,"E02003287","Southend-on-Sea 009","E06000033","Southend-on-Sea","Other Urban"]
[null,"E02003288","Southend-on-Sea 010","E06000033","Southend-on-Sea","Other Urban"]
[null,"E02003289","Southend-on-Sea 011","E06000033","Southend-on-Sea","Other Urban"]
[null,"E02003290","Southend-on-Sea 012","E06000033","Southend-on-Sea","Other Urban"]
[null,"E02003291","Southend-on-Sea 013","E06000033","Southend-on-Sea","Other Urban"]
[null,"E02003292","Southend-on-Sea 014","E06000033","Southend-on-Sea","Other Urban"]
[null,"E02003293","Southend-on-Sea 015","E06000033","Southend-on-Sea","Other Urban"]
[null,"E02003294","Southend-on-Sea 016","E06000033","Southend-on-Sea","Other Urban"]
[null,"E02003295","Southend-on-Sea 017","E06000033","Southend-on-Sea","Other Urban"]
[null,"E02003296","Thurrock 001","E06000034","Thurrock","Rural"]
[null,"E02003297","Thurrock 002","E06000034","Thurrock","Other Urban"]
[null,"E02003298","Thurrock 003","E06000034","Thurrock","Other Urban"]
[null,"E02003299","Thurrock 004","E06000034","Thurrock","Rural"]
[null,"E02003300","Thurrock 005","E06000034","Thurrock","Other Urban"]
[null,"E02003301","Thurrock 006","E06000034","Thurrock","Other Urban"]
[null,"E02003302","Thurrock 007","E06000034","Thurrock","Other Urban"]
[null,"E02003303","Thurrock 008","E06000034","Thurrock","Rural"]
[null,"E02003304","Thurrock 009","E06000034","Thurrock","Other Urban"]
[null,"E02003305","Thurrock 010","E06000034","Thurrock","Other Urban"]
[null,"E02003307","Thurrock 012","E06000034","Thurrock","Other Urban"]
[null,"E02003308","Thurrock 013","E06000034","Thurrock","Rural"]
[null,"E02003309","Thurrock 014","E06000034","Thurrock","Other Urban"]
[null,"E02003310","Thurrock 015","E06000034","Thurrock","Other Urban"]
[null,"E02003311","Thurrock 016","E06000034","Thurrock","Other Urban"]
[null,"E02003312","Thurrock 017","E06000034","Thurrock","Other Urban"]
[null,"E02003313","Thurrock 018","E06000034","Thurrock","Other Urban"]
[null,"E02003314","Medway 001","E06000035","Medway","Rural"]
[null,"E02003315","Medway 002","E06000035","Medway","Rural"]
[null,"E02003316","Medway 003","E06000035","Medway","Rural"]
[null,"E02003317","Medway 004","E06000035","Medway","Other Urban"]
[null,"E02003318","Medway 005","E06000035","Medway","Other Urban"]
[null,"E02003319","Medway 006","E06000035","Medway","Other Urban"]
[null,"E02003320","Medway 007","E06000035","Medway","Other Urban"]
[null,"E02003321","Medway 008","E06000035","Medway","Other Urban"]
[null,"E02003322","Medway 009","E06000035","Medway","Other Urban"]
[null,"E02003323","Medway 010","E06000035","Medway","Other Urban"]
[null,"E02003324","Medway 011","E06000035","Medway","Other Urban"]
[null,"E02003325","Medway 012","E06000035","Medway","Other Urban"]
[null,"E02003326","Medway 013","E06000035","Medway","Other Urban"]
[null,"E02003327","Medway 014","E06000035","Medway","Other Urban"]
[null,"E02003328","Medway 015","E06000035","Medway","Other Urban"]
[null,"E02003329","Medway 016","E06000035","Medway","Other Urban"]
[null,"E02003330","Medway 017","E06000035","Medway","Other Urban"]
[null,"E02003331","Medway 018","E06000035","Medway","Other Urban"]
[null,"E02003332","Medway 019","E06000035","Medway","Other Urban"]
[null,"E02003333","Medway 020","E06000035","Medway","Other Urban"]
[null,"E02003334","Medway 021","E06000035","Medway","Other Urban"]
[null,"E02003335","Medway 022","E06000035","Medway","Other Urban"]
[null,"E02003336","Medway 023","E06000035","Medway","Other Urban"]
[null,"E02003337","Medway 024","E06000035","Medway","Other Urban"]
[null,"E02003338","Medway 025","E06000035","Medway","Other Urban"]
[null,"E02003339","Medway 026","E06000035","Medway","Other Urban"]
[null,"E02003340","Medway 027","E06000035","Medway","Other Urban"]
[null,"E02003341","Medway 028","E06000035","Medway","Rural"]
[null,"E02003342","Medway 029","E06000035","Medway","Other Urban"]
[null,"E02003343","Medway 030","E06000035","Medway","Other Urban"]
[null,"E02003344","Medway 031","E06000035","Medway","Other Urban"]
[null,"E02003345","Medway 032","E06000035","Medway","Other Urban"]
[null,"E02003346","Medway 033","E06000035","Medway","Other Urban"]
[null,"E02003347","Medway 034","E06000035","Medway","Other Urban"]
[null,"E02003348","Medway 035","E06000035","Medway","Other Urban"]
[null,"E02003349","Medway 036","E06000035","Medway","Other Urban"]
[null,"E02003350","Medway 037","E06000035","Medway","Other Urban"]
[null,"E02003351","Medway 038","E06000035","Medway","Other Urban"]
[null,"E02003352","Bracknell Forest 001","E06000036","Bracknell Forest","Rural"]
[null,"E02003353","Bracknell Forest 002","E06000036","Bracknell Forest","Other Urban"]
[null,"E02003354","Bracknell Forest 003","E06000036","Bracknell Forest","Other Urban"]
[null,"E02003355","Bracknell Forest 004","E06000036","Bracknell Forest","Other Urban"]
[null,"E02003356","Bracknell Forest 005","E06000036","Bracknell Forest","Rural"]
[null,"E02003357","Bracknell Forest 006","E06000036","Bracknell Forest","Other Urban"]
[null,"E02003358","Bracknell Forest 007","E06000036","Bracknell Forest","Other Urban"]
[null,"E02003359","Bracknell Forest 008","E06000036","Bracknell Forest","Other Urban"]
[null,"E02003360","Bracknell Forest 009","E06000036","Bracknell Forest","Other Urban"]
[null,"E02003361","Bracknell Forest 010","E06000036","Bracknell Forest","Other Urban"]
[null,"E02003362","Bracknell Forest 011","E06000036","Bracknell Forest","Other Urban"]
[null,"E02003363","Bracknell Forest 012","E06000036","Bracknell Forest","Other Urban"]
[null,"E02003364","Bracknell Forest 013","E06000036","Bracknell Forest","Rural"]
[null,"E02003365","Bracknell Forest 014","E06000036","Bracknell Forest","Other Urban"]
[null,"E02003366","Bracknell Forest 015","E06000036","Bracknell Forest","Other Urban"]
[null,"E02003367","West Berkshire 001","E06000037","West Berkshire","Rural"]
[null,"E02003368","West Berkshire 002","E06000037","West Berkshire","Rural"]
[null,"E02003369","West Berkshire 003","E06000037","West Berkshire","Rural"]
[null,"E02003370","West Berkshire 004","E06000037","West Berkshire","Other Urban"]
[null,"E02003371","West Berkshire 005","E06000037","West Berkshire","Other Urban"]
[null,"E02003372","West Berkshire 006","E06000037","West Berkshire","Other Urban"]
[null,"E02003373","West Berkshire 007","E06000037","West Berkshire","Rural"]
[null,"E02003374","West Berkshire 008","E06000037","West Berkshire","Other Urban"]
[null,"E02003375","West Berkshire 009","E06000037","West Berkshire","Rural"]
[null,"E02003376","West Berkshire 010","E06000037","West Berkshire","Rural"]
[null,"E02003377","West Berkshire 011","E06000037","West Berkshire","Rural"]
[null,"E02003378","West Berkshire 012","E06000037","West Berkshire","Other Urban"]
[null,"E02003379","West Berkshire 013","E06000037","West Berkshire","Other Urban"]
[null,"E02003380","West Berkshire 014","E06000037","West Berkshire","Other Urban"]
[null,"E02003381","West Berkshire 015","E06000037","West Berkshire","Rural"]
[null,"E02003382","West Berkshire 016","E06000037","West Berkshire","Other Urban"]
[null,"E02003383","West Berkshire 017","E06000037","West Berkshire","Other Urban"]
[null,"E02003384","West Berkshire 018","E06000037","West Berkshire","Rural"]
[null,"E02003385","West Berkshire 019","E06000037","West Berkshire","Other Urban"]
[null,"E02003386","West Berkshire 020","E06000037","West Berkshire","Other Urban"]
[null,"E02003387","West Berkshire 021","E06000037","West Berkshire","Other Urban"]
[null,"E02003388","West Berkshire 022","E06000037","West Berkshire","Rural"]
[null,"E02003389","Reading 001","E06000038","Reading","Other Urban"]
[null,"E02003390","Reading 002","E06000038","Reading","Other Urban"]
[null,"E02003391","Reading 003","E06000038","Reading","Other Urban"]
[null,"E02003392","Reading 004","E06000038","Reading","Other Urban"]
[null,"E02003393","Reading 005","E06000038","Reading","Other Urban"]
[null,"E02003394","Reading 006","E06000038","Reading","Other Urban"]
[null,"E02003395","Reading 007","E06000038","Reading","Other Urban"]
[null,"E02003396","Reading 008","E06000038","Reading","Other Urban"]
[null,"E02003397","Reading 009","E06000038","Reading","Other Urban"]
[null,"E02003398","Reading 010","E06000038","Reading","Other Urban"]
[null,"E02003399","Reading 011","E06000038","Reading","Other Urban"]
[null,"E02003400","Reading 012","E06000038","Reading","Other Urban"]
[null,"E02003401","Reading 013","E06000038","Reading","Other Urban"]
[null,"E02003402","Reading 014","E06000038","Reading","Other Urban"]
[null,"E02003403","Reading 015","E06000038","Reading","Other Urban"]
[null,"E02003404","Reading 016","E06000038","Reading","Other Urban"]
[null,"E02003405","Reading 017","E06000038","Reading","Other Urban"]
[null,"E02003406","Reading 018","E06000038","Reading","Other Urban"]
[null,"E02003407","Slough 001","E06000039","Slough","Other Urban"]
[null,"E02003408","Slough 002","E06000039","Slough","Other Urban"]
[null,"E02003409","Slough 003","E06000039","Slough","Other Urban"]
[null,"E02003410","Slough 004","E06000039","Slough","Other Urban"]
[null,"E02003411","Slough 005","E06000039","Slough","Other Urban"]
[null,"E02003412","Slough 006","E06000039","Slough","Other Urban"]
[null,"E02003413","Slough 007","E06000039","Slough","Other Urban"]
[null,"E02003414","Slough 008","E06000039","Slough","Other Urban"]
[null,"E02003415","Slough 009","E06000039","Slough","Other Urban"]
[null,"E02003416","Slough 010","E06000039","Slough","Other Urban"]
[null,"E02003417","Slough 011","E06000039","Slough","Other Urban"]
[null,"E02003418","Slough 012","E06000039","Slough","Other Urban"]
[null,"E02003419","Slough 013","E06000039","Slough","Other Urban"]
[null,"E02003420","Slough 014","E06000039","Slough","Other Urban"]
[null,"E02003421","Windsor and Maidenhead 001","E06000040","Windsor and Maidenhead","Other Urban"]
[null,"E02003422","Windsor and Maidenhead 002","E06000040","Windsor and Maidenhead","Rural"]
[null,"E02003423","Windsor and Maidenhead 003","E06000040","Windsor and Maidenhead","Other Urban"]
[null,"E02003424","Windsor and Maidenhead 004","E06000040","Windsor and Maidenhead","Other Urban"]
[null,"E02003425","Windsor and Maidenhead 005","E06000040","Windsor and Maidenhead","Other Urban"]
[null,"E02003426","Windsor and Maidenhead 006","E06000040","Windsor and Maidenhead","Other Urban"]
[null,"E02003427","Windsor and Maidenhead 007","E06000040","Windsor and Maidenhead","Other Urban"]
[null,"E02003428","Windsor and Maidenhead 008","E06000040","Windsor and Maidenhead","Other Urban"]
[null,"E02003429","Windsor and Maidenhead 009","E06000040","Windsor and Maidenhead","Rural"]
[null,"E02003430","Windsor and Maidenhead 010","E06000040","Windsor and Maidenhead","Rural"]
[null,"E02003431","Windsor and Maidenhead 011","E06000040","Windsor and Maidenhead","Rural"]
[null,"E02003432","Windsor and Maidenhead 012","E06000040","Windsor and Maidenhead","Other Urban"]
[null,"E02003433","Windsor and Maidenhead 013","E06000040","Windsor and Maidenhead","Other Urban"]
[null,"E02003434","Windsor and Maidenhead 014","E06000040","Windsor and Maidenhead","Other Urban"]
[null,"E02003435","Windsor and Maidenhead 015","E06000040","Windsor and Maidenhead","Other Urban"]
[null,"E02003436","Windsor and Maidenhead 016","E06000040","Windsor and Maidenhead","Rural"]
[null,"E02003437","Windsor and Maidenhead 017","E06000040","Windsor and Maidenhead","Other Urban"]
[null,"E02003438","Windsor and Maidenhead 018","E06000040","Windsor and Maidenhead","Other Urban"]
[null,"E02003439","Wokingham 001","E06000041","Wokingham","Rural"]
[null,"E02003440","Wokingham 002","E06000041","Wokingham","Rural"]
[null,"E02003441","Wokingham 003","E06000041","Wokingham","Other Urban"]
[null,"E02003442","Wokingham 004","E06000041","Wokingham","Other Urban"]
[null,"E02003443","Wokingham 005","E06000041","Wokingham","Other Urban"]
[null,"E02003444","Wokingham 006","E06000041","Wokingham","Other Urban"]
[null,"E02003445","Wokingham 007","E06000041","Wokingham","Other Urban"]
[null,"E02003446","Wokingham 008","E06000041","Wokingham","Other Urban"]
[null,"E02003447","Wokingham 009","E06000041","Wokingham","Other Urban"]
[null,"E02003448","Wokingham 010","E06000041","Wokingham","Rural"]
[null,"E02003449","Wokingham 011","E06000041","Wokingham","Other Urban"]
[null,"E02003450","Wokingham 012","E06000041","Wokingham","Other Urban"]
[null,"E02003451","Wokingham 013","E06000041","Wokingham","Other Urban"]
[null,"E02003452","Wokingham 014","E06000041","Wokingham","Other Urban"]
[null,"E02003453","Wokingham 015","E06000041","Wokingham","Other Urban"]
[null,"E02003454","Wokingham 016","E06000041","Wokingham","Other Urban"]
[null,"E02003455","Wokingham 017","E06000041","Wokingham","Rural"]
[null,"E02003456","Wokingham 018","E06000041","Wokingham","Rural"]
[null,"E02003457","Wokingham 019","E06000041","Wokingham","Other Urban"]
[null,"E02003458","Wokingham 020","E06000041","Wokingham","Other Urban"]
[null,"E02003459","Milton Keynes 001","E06000042","Milton Keynes","Rural"]
[null,"E02003460","Milton Keynes 002","E06000042","Milton Keynes","Rural"]
[null,"E02003461","Milton Keynes 003","E06000042","Milton Keynes","Other Urban"]
[null,"E02003462","Milton Keynes 004","E06000042","Milton Keynes","Other Urban"]
[null,"E02003463","Milton Keynes 005","E06000042","Milton Keynes","Other Urban"]
[null,"E02003464","Milton Keynes 006","E06000042","Milton Keynes","Other Urban"]
[null,"E02003465","Milton Keynes 007","E06000042","Milton Keynes","Other Urban"]
[null,"E02003466","Milton Keynes 008","E06000042","Milton Keynes","Other Urban"]
[null,"E02003467","Milton Keynes 009","E06000042","Milton Keynes","Other Urban"]
[null,"E02003468","Milton Keynes 010","E06000042","Milton Keynes","Other Urban"]
[null,"E02003469","Milton Keynes 011","E06000042","Milton Keynes","Other Urban"]
[null,"E02003470","Milton Keynes 012","E06000042","Milton Keynes","Other Urban"]
[null,"E02003471","Milton Keynes 013","E06000042","Milton Keynes","Other Urban"]
[null,"E02003472","Milton Keynes 014","E06000042","Milton Keynes","Other Urban"]
[null,"E02003473","Milton Keynes 015","E06000042","Milton Keynes","Other Urban"]
[null,"E02003474","Milton Keynes 016","E06000042","Milton Keynes","Other Urban"]
[null,"E02003475","Milton Keynes 017","E06000042","Milton Keynes","Other Urban"]
[null,"E02003476","Milton Keynes 018","E06000042","Milton Keynes","Other Urban"]
[null,"E02003477","Milton Keynes 019","E06000042","Milton Keynes","Other Urban"]
[null,"E02003478","Milton Keynes 020","E06000042","Milton Keynes","Other Urban"]
[null,"E02003479","Milton Keynes 021","E06000042","Milton Keynes","Other Urban"]
[null,"E02003480","Milton Keynes 022","E06000042","Milton Keynes","Other Urban"]
[null,"E02003481","Milton Keynes 023","E06000042","Milton Keynes","Other Urban"]
[null,"E02003482","Milton Keynes 024","E06000042","Milton Keynes","Rural"]
[null,"E02003483","Milton Keynes 025","E06000042","Milton Keynes","Other Urban"]
[null,"E02003484","Milton Keynes 026","E06000042","Milton Keynes","Other Urban"]
[null,"E02003485","Milton Keynes 027","E06000042","Milton Keynes","Other Urban"]
[null,"E02003486","Milton Keynes 028","E06000042","Milton Keynes","Other Urban"]
[null,"E02003487","Milton Keynes 029","E06000042","Milton Keynes","Other Urban"]
[null,"E02003488","Milton Keynes 030","E06000042","Milton Keynes","Other Urban"]
[null,"E02003489","Milton Keynes 031","E06000042","Milton Keynes","Other Urban"]
[null,"E02003490","Milton Keynes 032","E06000042","Milton Keynes","Other Urban"]
[null,"E02003491","Brighton and Hove 001","E06000043","Brighton and Hove","Other Urban"]
[null,"E02003492","Brighton and Hove 002","E06000043","Brighton and Hove","Other Urban"]
[null,"E02003493","Brighton and Hove 003","E06000043","Brighton and Hove","Other Urban"]
[null,"E02003494","Brighton and Hove 004","E06000043","Brighton and Hove","Other Urban"]
[null,"E02003495","Brighton and Hove 005","E06000043","Brighton and Hove","Other Urban"]
[null,"E02003496","Brighton and Hove 006","E06000043","Brighton and Hove","Other Urban"]
[null,"E02003497","Brighton and Hove 007","E06000043","Brighton and Hove","Other Urban"]
[null,"E02003498","Brighton and Hove 008","E06000043","Brighton and Hove","Other Urban"]
[null,"E02003499","Brighton and Hove 009","E06000043","Brighton and Hove","Other Urban"]
[null,"E02003500","Brighton and Hove 010","E06000043","Brighton and Hove","Other Urban"]
[null,"E02003501","Brighton and Hove 011","E06000043","Brighton and Hove","Other Urban"]
[null,"E02003502","Brighton and Hove 012","E06000043","Brighton and Hove","Other Urban"]
[null,"E02003503","Brighton and Hove 013","E06000043","Brighton and Hove","Other Urban"]
[null,"E02003504","Brighton and Hove 014","E06000043","Brighton and Hove","Other Urban"]
[null,"E02003505","Brighton and Hove 015","E06000043","Brighton and Hove","Other Urban"]
[null,"E02003506","Brighton and Hove 016","E06000043","Brighton and Hove","Other Urban"]
[null,"E02003507","Brighton and Hove 017","E06000043","Brighton and Hove","Other Urban"]
[null,"E02003508","Brighton and Hove 018","E06000043","Brighton and Hove","Other Urban"]
[null,"E02003509","Brighton and Hove 019","E06000043","Brighton and Hove","Other Urban"]
[null,"E02003510","Brighton and Hove 020","E06000043","Brighton and Hove","Other Urban"]
[null,"E02003511","Brighton and Hove 021","E06000043","Brighton and Hove","Other Urban"]
[null,"E02003512","Brighton and Hove 022","E06000043","Brighton and Hove","Other Urban"]
[null,"E02003513","Brighton and Hove 023","E06000043","Brighton and Hove","Other Urban"]
[null,"E02003514","Brighton and Hove 024","E06000043","Brighton and Hove","Other Urban"]
[null,"E02003515","Brighton and Hove 025","E06000043","Brighton and Hove","Other Urban"]
[null,"E02003516","Brighton and Hove 026","E06000043","Brighton and Hove","Other Urban"]
[null,"E02003517","Brighton and Hove 027","E06000043","Brighton and Hove","Other Urban"]
[null,"E02003518","Brighton and Hove 028","E06000043","Brighton and Hove","Other Urban"]
[null,"E02003519","Brighton and Hove 029","E06000043","Brighton and Hove","Other Urban"]
[null,"E02003520","Brighton and Hove 030","E06000043","Brighton and Hove","Other Urban"]
[null,"E02003521","Brighton and Hove 031","E06000043","Brighton and Hove","Other Urban"]
[null,"E02003522","Brighton and Hove 032","E06000043","Brighton and Hove","Other Urban"]
[null,"E02003523","Brighton and Hove 033","E06000043","Brighton and Hove","Other Urban"]
[null,"E02003524","Portsmouth 001","E06000044","Portsmouth","Other Urban"]
[null,"E02003525","Portsmouth 002","E06000044","Portsmouth","Other Urban"]
[null,"E02003526","Portsmouth 003","E06000044","Portsmouth","Other Urban"]
[null,"E02003527","Portsmouth 004","E06000044","Portsmouth","Other Urban"]
[null,"E02003529","Portsmouth 006","E06000044","Portsmouth","Other Urban"]
[null,"E02003530","Portsmouth 007","E06000044","Portsmouth","Other Urban"]
[null,"E02003531","Portsmouth 008","E06000044","Portsmouth","Other Urban"]
[null,"E02003532","Portsmouth 009","E06000044","Portsmouth","Other Urban"]
[null,"E02003533","Portsmouth 010","E06000044","Portsmouth","Other Urban"]
[null,"E02003534","Portsmouth 011","E06000044","Portsmouth","Other Urban"]
[null,"E02003535","Portsmouth 012","E06000044","Portsmouth","Other Urban"]
[null,"E02003536","Portsmouth 013","E06000044","Portsmouth","Other Urban"]
[null,"E02003537","Portsmouth 014","E06000044","Portsmouth","Other Urban"]
[null,"E02003538","Portsmouth 015","E06000044","Portsmouth","Other Urban"]
[null,"E02003539","Portsmouth 016","E06000044","Portsmouth","Other Urban"]
[null,"E02003540","Portsmouth 017","E06000044","Portsmouth","Other Urban"]
[null,"E02003541","Portsmouth 018","E06000044","Portsmouth","Other Urban"]
[null,"E02003542","Portsmouth 019","E06000044","Portsmouth","Other Urban"]
[null,"E02003543","Portsmouth 020","E06000044","Portsmouth","Other Urban"]
[null,"E02003544","Portsmouth 021","E06000044","Portsmouth","Other Urban"]
[null,"E02003545","Portsmouth 022","E06000044","Portsmouth","Other Urban"]
[null,"E02003546","Portsmouth 023","E06000044","Portsmouth","Other Urban"]
[null,"E02003547","Portsmouth 024","E06000044","Portsmouth","Other Urban"]
[null,"E02003548","Portsmouth 025","E06000044","Portsmouth","Other Urban"]
[null,"E02003549","Southampton 001","E06000045","Southampton","Other Urban"]
[null,"E02003550","Southampton 002","E06000045","Southampton","Other Urban"]
[null,"E02003551","Southampton 003","E06000045","Southampton","Other Urban"]
[null,"E02003552","Southampton 004","E06000045","Southampton","Other Urban"]
[null,"E02003553","Southampton 005","E06000045","Southampton","Other Urban"]
[null,"E02003554","Southampton 006","E06000045","Southampton","Other Urban"]
[null,"E02003555","Southampton 007","E06000045","Southampton","Other Urban"]
[null,"E02003556","Southampton 008","E06000045","Southampton","Other Urban"]
[null,"E02003557","Southampton 009","E06000045","Southampton","Other Urban"]
[null,"E02003558","Southampton 010","E06000045","Southampton","Other Urban"]
[null,"E02003559","Southampton 011","E06000045","Southampton","Other Urban"]
[null,"E02003560","Southampton 012","E06000045","Southampton","Other Urban"]
[null,"E02003561","Southampton 013","E06000045","Southampton","Other Urban"]
[null,"E02003562","Southampton 014","E06000045","Southampton","Other Urban"]
[null,"E02003563","Southampton 015","E06000045","Southampton","Other Urban"]
[null,"E02003564","Southampton 016","E06000045","Southampton","Other Urban"]
[null,"E02003565","Southampton 017","E06000045","Southampton","Other Urban"]
[null,"E02003566","Southampton 018","E06000045","Southampton","Other Urban"]
[null,"E02003567","Southampton 019","E06000045","Southampton","Other Urban"]
[null,"E02003568","Southampton 020","E06000045","Southampton","Other Urban"]
[null,"E02003569","Southampton 021","E06000045","Southampton","Other Urban"]
[null,"E02003570","Southampton 022","E06000045","Southampton","Other Urban"]
[null,"E02003571","Southampton 023","E06000045","Southampton","Other Urban"]
[null,"E02003572","Southampton 024","E06000045","Southampton","Other Urban"]
[null,"E02003573","Southampton 025","E06000045","Southampton","Other Urban"]
[null,"E02003574","Southampton 026","E06000045","Southampton","Other Urban"]
[null,"E02003575","Southampton 027","E06000045","Southampton","Other Urban"]
[null,"E02003576","Southampton 028","E06000045","Southampton","Other Urban"]
[null,"E02003577","Southampton 029","E06000045","Southampton","Other Urban"]
[null,"E02003578","Southampton 030","E06000045","Southampton","Other Urban"]
[null,"E02003579","Southampton 031","E06000045","Southampton","Other Urban"]
[null,"E02003580","Southampton 032","E06000045","Southampton","Other Urban"]
[null,"E02003581","Isle of Wight 001","E06000046","Isle of Wight","Other Urban"]
[null,"E02003582","Isle of Wight 002","E06000046","Isle of Wight","Rural"]
[null,"E02003583","Isle of Wight 003","E06000046","Isle of Wight","Rural"]
[null,"E02003584","Isle of Wight 004","E06000046","Isle of Wight","Other Urban"]
[null,"E02003585","Isle of Wight 005","E06000046","Isle of Wight","Rural"]
[null,"E02003586","Isle of Wight 006","E06000046","Isle of Wight","Rural"]
[null,"E02003587","Isle of Wight 007","E06000046","Isle of Wight","Other Urban"]
[null,"E02003588","Isle of Wight 008","E06000046","Isle of Wight","Rural"]
[null,"E02003589","Isle of Wight 009","E06000046","Isle of Wight","Rural"]
[null,"E02003590","Isle of Wight 010","E06000046","Isle of Wight","Other Urban"]
[null,"E02003591","Isle of Wight 011","E06000046","Isle of Wight","Rural"]
[null,"E02003592","Isle of Wight 012","E06000046","Isle of Wight","Rural"]
[null,"E02003593","Isle of Wight 013","E06000046","Isle of Wight","Rural"]
[null,"E02003594","Isle of Wight 014","E06000046","Isle of Wight","Rural"]
[null,"E02003595","Isle of Wight 015","E06000046","Isle of Wight","Rural"]
[null,"E02003596","Isle of Wight 016","E06000046","Isle of Wight","Rural"]
[null,"E02003597","Isle of Wight 017","E06000046","Isle of Wight","Rural"]
[null,"E02003598","Isle of Wight 018","E06000046","Isle of Wight","Rural"]
[null,"E02003599","Central Bedfordshire 001","E06000056","Central Bedfordshire","Rural"]
[null,"E02003600","Central Bedfordshire 002","E06000056","Central Bedfordshire","Rural"]
[null,"E02003601","Central Bedfordshire 003","E06000056","Central Bedfordshire","Rural"]
[null,"E02003602","Central Bedfordshire 004","E06000056","Central Bedfordshire","Rural"]
[null,"E02003603","Central Bedfordshire 005","E06000056","Central Bedfordshire","Other Urban"]
[null,"E02003604","Central Bedfordshire 006","E06000056","Central Bedfordshire","Other Urban"]
[null,"E02003605","Central Bedfordshire 007","E06000056","Central Bedfordshire","Rural"]
[null,"E02003606","Central Bedfordshire 008","E06000056","Central Bedfordshire","Rural"]
[null,"E02003607","Central Bedfordshire 009","E06000056","Central Bedfordshire","Rural"]
[null,"E02003608","Central Bedfordshire 010","E06000056","Central Bedfordshire","Rural"]
[null,"E02003609","Central Bedfordshire 011","E06000056","Central Bedfordshire","Rural"]
[null,"E02003610","Central Bedfordshire 012","E06000056","Central Bedfordshire","Other Urban"]
[null,"E02003611","Central Bedfordshire 013","E06000056","Central Bedfordshire","Rural"]
[null,"E02003612","Central Bedfordshire 014","E06000056","Central Bedfordshire","Rural"]
[null,"E02003613","Central Bedfordshire 015","E06000056","Central Bedfordshire","Other Urban"]
[null,"E02003614","Central Bedfordshire 016","E06000056","Central Bedfordshire","Other Urban"]
[null,"E02003615","Central Bedfordshire 017","E06000056","Central Bedfordshire","Rural"]
[null,"E02003616","Bedford 001","E06000055","Bedford","Rural"]
[null,"E02003617","Bedford 002","E06000055","Bedford","Rural"]
[null,"E02003618","Bedford 003","E06000055","Bedford","Rural"]
[null,"E02003619","Bedford 004","E06000055","Bedford","Rural"]
[null,"E02003620","Bedford 005","E06000055","Bedford","Other Urban"]
[null,"E02003621","Bedford 006","E06000055","Bedford","Other Urban"]
[null,"E02003622","Bedford 007","E06000055","Bedford","Other Urban"]
[null,"E02003623","Bedford 008","E06000055","Bedford","Rural"]
[null,"E02003624","Bedford 009","E06000055","Bedford","Other Urban"]
[null,"E02003625","Bedford 010","E06000055","Bedford","Other Urban"]
[null,"E02003626","Bedford 011","E06000055","Bedford","Other Urban"]
[null,"E02003627","Bedford 012","E06000055","Bedford","Other Urban"]
[null,"E02003628","Bedford 013","E06000055","Bedford","Other Urban"]
[null,"E02003629","Bedford 014","E06000055","Bedford","Other Urban"]
[null,"E02003630","Bedford 015","E06000055","Bedford","Other Urban"]
[null,"E02003631","Bedford 016","E06000055","Bedford","Other Urban"]
[null,"E02003632","Bedford 017","E06000055","Bedford","Other Urban"]
[null,"E02003633","Bedford 018","E06000055","Bedford","Other Urban"]
[null,"E02003634","Bedford 019","E06000055","Bedford","Rural"]
[null,"E02003635","Bedford 020","E06000055","Bedford","Rural"]
[null,"E02003636","Central Bedfordshire 018","E06000056","Central Bedfordshire","Rural"]
[null,"E02003637","Central Bedfordshire 019","E06000056","Central Bedfordshire","Rural"]
[null,"E02003638","Central Bedfordshire 020","E06000056","Central Bedfordshire","Other Urban"]
[null,"E02003639","Central Bedfordshire 021","E06000056","Central Bedfordshire","Other Urban"]
[null,"E02003640","Central Bedfordshire 022","E06000056","Central Bedfordshire","Other Urban"]
[null,"E02003641","Central Bedfordshire 023","E06000056","Central Bedfordshire","Other Urban"]
[null,"E02003642","Central Bedfordshire 025","E06000056","Central Bedfordshire","Other Urban"]
[null,"E02003643","Central Bedfordshire 024","E06000056","Central Bedfordshire","Other Urban"]
[null,"E02003644","Central Bedfordshire 026","E06000056","Central Bedfordshire","Other Urban"]
[null,"E02003645","Central Bedfordshire 027","E06000056","Central Bedfordshire","Other Urban"]
[null,"E02003646","Central Bedfordshire 028","E06000056","Central Bedfordshire","Other Urban"]
[null,"E02003647","Central Bedfordshire 029","E06000056","Central Bedfordshire","Other Urban"]
[null,"E02003648","Central Bedfordshire 030","E06000056","Central Bedfordshire","Other Urban"]
[null,"E02003649","Central Bedfordshire 031","E06000056","Central Bedfordshire","Other Urban"]
[null,"E02003650","Central Bedfordshire 032","E06000056","Central Bedfordshire","Rural"]
[null,"E02003651","Central Bedfordshire 033","E06000056","Central Bedfordshire","Rural"]
[null,"E02003652","Aylesbury Vale 001","E07000004","Aylesbury Vale","Rural"]
[null,"E02003653","Aylesbury Vale 002","E07000004","Aylesbury Vale","Rural"]
[null,"E02003654","Aylesbury Vale 003","E07000004","Aylesbury Vale","Rural"]
[null,"E02003655","Aylesbury Vale 004","E07000004","Aylesbury Vale","Rural"]
[null,"E02003656","Aylesbury Vale 005","E07000004","Aylesbury Vale","Rural"]
[null,"E02003657","Aylesbury Vale 006","E07000004","Aylesbury Vale","Rural"]
[null,"E02003658","Aylesbury Vale 007","E07000004","Aylesbury Vale","Rural"]
[null,"E02003659","Aylesbury Vale 008","E07000004","Aylesbury Vale","Rural"]
[null,"E02003660","Aylesbury Vale 009","E07000004","Aylesbury Vale","Rural"]
[null,"E02003661","Aylesbury Vale 010","E07000004","Aylesbury Vale","Rural"]
[null,"E02003662","Aylesbury Vale 011","E07000004","Aylesbury Vale","Other Urban"]
[null,"E02003663","Aylesbury Vale 012","E07000004","Aylesbury Vale","Other Urban"]
[null,"E02003664","Aylesbury Vale 013","E07000004","Aylesbury Vale","Other Urban"]
[null,"E02003665","Aylesbury Vale 014","E07000004","Aylesbury Vale","Other Urban"]
[null,"E02003666","Aylesbury Vale 015","E07000004","Aylesbury Vale","Other Urban"]
[null,"E02003667","Aylesbury Vale 016","E07000004","Aylesbury Vale","Other Urban"]
[null,"E02003668","Aylesbury Vale 017","E07000004","Aylesbury Vale","Other Urban"]
[null,"E02003669","Aylesbury Vale 018","E07000004","Aylesbury Vale","Other Urban"]
[null,"E02003670","Aylesbury Vale 019","E07000004","Aylesbury Vale","Other Urban"]
[null,"E02003671","Aylesbury Vale 020","E07000004","Aylesbury Vale","Other Urban"]
[null,"E02003672","Aylesbury Vale 021","E07000004","Aylesbury Vale","Rural"]
[null,"E02003673","Aylesbury Vale 022","E07000004","Aylesbury Vale","Rural"]
[null,"E02003674","Aylesbury Vale 023","E07000004","Aylesbury Vale","Rural"]
[null,"E02003675","Aylesbury Vale 024","E07000004","Aylesbury Vale","Rural"]
[null,"E02003676","Chiltern 001","E07000005","Chiltern","Rural"]
[null,"E02003677","Chiltern 002","E07000005","Chiltern","Other Urban"]
[null,"E02003678","Chiltern 003","E07000005","Chiltern","Other Urban"]
[null,"E02003679","Chiltern 004","E07000005","Chiltern","Other Urban"]
[null,"E02003680","Chiltern 005","E07000005","Chiltern","Rural"]
[null,"E02003681","Chiltern 006","E07000005","Chiltern","Other Urban"]
[null,"E02003682","Chiltern 007","E07000005","Chiltern","Other Urban"]
[null,"E02003683","Chiltern 008","E07000005","Chiltern","Other Urban"]
[null,"E02003685","Chiltern 010","E07000005","Chiltern","Rural"]
[null,"E02003686","Chiltern 011","E07000005","Chiltern","Other Urban"]
[null,"E02003687","Chiltern 012","E07000005","Chiltern","Other Urban"]
[null,"E02003688","South Bucks 001","E07000006","South Bucks","Other Urban"]
[null,"E02003689","South Bucks 002","E07000006","South Bucks","Other Urban"]
[null,"E02003690","South Bucks 003","E07000006","South Bucks","Rural"]
[null,"E02003691","South Bucks 004","E07000006","South Bucks","Other Urban"]
[null,"E02003692","South Bucks 005","E07000006","South Bucks","Other Urban"]
[null,"E02003693","South Bucks 006","E07000006","South Bucks","Rural"]
[null,"E02003694","South Bucks 007","E07000006","South Bucks","Other Urban"]
[null,"E02003695","South Bucks 008","E07000006","South Bucks","Rural"]
[null,"E02003696","Wycombe 001","E07000007","Wycombe","Rural"]
[null,"E02003697","Wycombe 002","E07000007","Wycombe","Rural"]
[null,"E02003698","Wycombe 003","E07000007","Wycombe","Rural"]
[null,"E02003699","Wycombe 004","E07000007","Wycombe","Rural"]
[null,"E02003701","Wycombe 006","E07000007","Wycombe","Other Urban"]
[null,"E02003702","Wycombe 007","E07000007","Wycombe","Rural"]
[null,"E02003703","Wycombe 008","E07000007","Wycombe","Other Urban"]
[null,"E02003704","Wycombe 009","E07000007","Wycombe","Other Urban"]
[null,"E02003705","Wycombe 010","E07000007","Wycombe","Other Urban"]
[null,"E02003706","Wycombe 011","E07000007","Wycombe","Other Urban"]
[null,"E02003707","Wycombe 012","E07000007","Wycombe","Other Urban"]
[null,"E02003708","Wycombe 013","E07000007","Wycombe","Other Urban"]
[null,"E02003709","Wycombe 014","E07000007","Wycombe","Other Urban"]
[null,"E02003710","Wycombe 015","E07000007","Wycombe","Other Urban"]
[null,"E02003711","Wycombe 016","E07000007","Wycombe","Other Urban"]
[null,"E02003712","Wycombe 017","E07000007","Wycombe","Other Urban"]
[null,"E02003713","Wycombe 018","E07000007","Wycombe","Other Urban"]
[null,"E02003714","Wycombe 019","E07000007","Wycombe","Other Urban"]
[null,"E02003715","Wycombe 020","E07000007","Wycombe","Rural"]
[null,"E02003716","Wycombe 021","E07000007","Wycombe","Other Urban"]
[null,"E02003717","Wycombe 022","E07000007","Wycombe","Other Urban"]
[null,"E02003718","Wycombe 023","E07000007","Wycombe","Other Urban"]
[null,"E02003719","Cambridge 001","E07000008","Cambridge","Other Urban"]
[null,"E02003720","Cambridge 002","E07000008","Cambridge","Other Urban"]
[null,"E02003721","Cambridge 003","E07000008","Cambridge","Other Urban"]
[null,"E02003722","Cambridge 004","E07000008","Cambridge","Other Urban"]
[null,"E02003723","Cambridge 005","E07000008","Cambridge","Other Urban"]
[null,"E02003724","Cambridge 006","E07000008","Cambridge","Other Urban"]
[null,"E02003725","Cambridge 007","E07000008","Cambridge","Other Urban"]
[null,"E02003726","Cambridge 008","E07000008","Cambridge","Other Urban"]
[null,"E02003727","Cambridge 009","E07000008","Cambridge","Other Urban"]
[null,"E02003728","Cambridge 010","E07000008","Cambridge","Other Urban"]
[null,"E02003729","Cambridge 011","E07000008","Cambridge","Other Urban"]
[null,"E02003730","Cambridge 012","E07000008","Cambridge","Other Urban"]
[null,"E02003731","Cambridge 013","E07000008","Cambridge","Other Urban"]
[null,"E02003732","East Cambridgeshire 001","E07000009","East Cambridgeshire","Rural"]
[null,"E02003733","East Cambridgeshire 002","E07000009","East Cambridgeshire","Rural"]
[null,"E02003734","East Cambridgeshire 003","E07000009","East Cambridgeshire","Rural"]
[null,"E02003735","East Cambridgeshire 004","E07000009","East Cambridgeshire","Rural"]
[null,"E02003736","East Cambridgeshire 005","E07000009","East Cambridgeshire","Rural"]
[null,"E02003737","East Cambridgeshire 006","E07000009","East Cambridgeshire","Rural"]
[null,"E02003738","East Cambridgeshire 007","E07000009","East Cambridgeshire","Rural"]
[null,"E02003739","East Cambridgeshire 008","E07000009","East Cambridgeshire","Rural"]
[null,"E02003740","East Cambridgeshire 009","E07000009","East Cambridgeshire","Rural"]
[null,"E02003742","Fenland 001","E07000010","Fenland","Rural"]
[null,"E02003743","Fenland 002","E07000010","Fenland","Other Urban"]
[null,"E02003744","Fenland 003","E07000010","Fenland","Other Urban"]
[null,"E02003745","Fenland 004","E07000010","Fenland","Rural"]
[null,"E02003746","Fenland 005","E07000010","Fenland","Rural"]
[null,"E02003747","Fenland 006","E07000010","Fenland","Rural"]
[null,"E02003748","Fenland 007","E07000010","Fenland","Other Urban"]
[null,"E02003749","Fenland 008","E07000010","Fenland","Rural"]
[null,"E02003750","Fenland 009","E07000010","Fenland","Rural"]
[null,"E02003751","Fenland 010","E07000010","Fenland","Rural"]
[null,"E02003752","Fenland 011","E07000010","Fenland","Rural"]
[null,"E02003753","Huntingdonshire 001","E07000011","Huntingdonshire","Rural"]
[null,"E02003754","Huntingdonshire 002","E07000011","Huntingdonshire","Rural"]
[null,"E02003755","Huntingdonshire 003","E07000011","Huntingdonshire","Rural"]
[null,"E02003756","Huntingdonshire 004","E07000011","Huntingdonshire","Rural"]
[null,"E02003757","Huntingdonshire 005","E07000011","Huntingdonshire","Rural"]
[null,"E02003758","Huntingdonshire 006","E07000011","Huntingdonshire","Rural"]
[null,"E02003759","Huntingdonshire 007","E07000011","Huntingdonshire","Rural"]
[null,"E02003760","Huntingdonshire 008","E07000011","Huntingdonshire","Other Urban"]
[null,"E02003761","Huntingdonshire 009","E07000011","Huntingdonshire","Other Urban"]
[null,"E02003762","Huntingdonshire 010","E07000011","Huntingdonshire","Rural"]
[null,"E02003763","Huntingdonshire 011","E07000011","Huntingdonshire","Other Urban"]
[null,"E02003764","Huntingdonshire 012","E07000011","Huntingdonshire","Other Urban"]
[null,"E02003765","Huntingdonshire 013","E07000011","Huntingdonshire","Other Urban"]
[null,"E02003766","Huntingdonshire 014","E07000011","Huntingdonshire","Rural"]
[null,"E02003767","Huntingdonshire 015","E07000011","Huntingdonshire","Rural"]
[null,"E02003768","Huntingdonshire 016","E07000011","Huntingdonshire","Rural"]
[null,"E02003769","Huntingdonshire 017","E07000011","Huntingdonshire","Rural"]
[null,"E02003770","Huntingdonshire 018","E07000011","Huntingdonshire","Rural"]
[null,"E02003771","Huntingdonshire 019","E07000011","Huntingdonshire","Other Urban"]
[null,"E02003772","Huntingdonshire 020","E07000011","Huntingdonshire","Other Urban"]
[null,"E02003773","Huntingdonshire 021","E07000011","Huntingdonshire","Other Urban"]
[null,"E02003774","Huntingdonshire 022","E07000011","Huntingdonshire","Other Urban"]
[null,"E02003775","South Cambridgeshire 001","E07000012","South Cambridgeshire","Rural"]
[null,"E02003776","South Cambridgeshire 002","E07000012","South Cambridgeshire","Rural"]
[null,"E02003777","South Cambridgeshire 003","E07000012","South Cambridgeshire","Rural"]
[null,"E02003778","South Cambridgeshire 004","E07000012","South Cambridgeshire","Rural"]
[null,"E02003779","South Cambridgeshire 005","E07000012","South Cambridgeshire","Rural"]
[null,"E02003780","South Cambridgeshire 006","E07000012","South Cambridgeshire","Rural"]
[null,"E02003781","South Cambridgeshire 007","E07000012","South Cambridgeshire","Rural"]
[null,"E02003783","South Cambridgeshire 009","E07000012","South Cambridgeshire","Rural"]
[null,"E02003784","South Cambridgeshire 010","E07000012","South Cambridgeshire","Rural"]
[null,"E02003785","South Cambridgeshire 011","E07000012","South Cambridgeshire","Rural"]
[null,"E02003786","South Cambridgeshire 012","E07000012","South Cambridgeshire","Other Urban"]
[null,"E02003787","South Cambridgeshire 013","E07000012","South Cambridgeshire","Rural"]
[null,"E02003788","South Cambridgeshire 014","E07000012","South Cambridgeshire","Rural"]
[null,"E02003789","South Cambridgeshire 015","E07000012","South Cambridgeshire","Rural"]
[null,"E02003790","South Cambridgeshire 016","E07000012","South Cambridgeshire","Rural"]
[null,"E02003791","South Cambridgeshire 017","E07000012","South Cambridgeshire","Rural"]
[null,"E02003792","South Cambridgeshire 018","E07000012","South Cambridgeshire","Rural"]
[null,"E02003793","South Cambridgeshire 019","E07000012","South Cambridgeshire","Rural"]
[null,"E02003794","Cheshire West and Chester 022","E06000050","Cheshire West and Chester","Rural"]
[null,"E02003795","Cheshire West and Chester 025","E06000050","Cheshire West and Chester","Rural"]
[null,"E02003796","Cheshire West and Chester 027","E06000050","Cheshire West and Chester","Other Urban"]
[null,"E02003797","Cheshire West and Chester 028","E06000050","Cheshire West and Chester","Other Urban"]
[null,"E02003798","Cheshire West and Chester 029","E06000050","Cheshire West and Chester","Other Urban"]
[null,"E02003799","Cheshire West and Chester 031","E06000050","Cheshire West and Chester","Other Urban"]
[null,"E02003800","Cheshire West and Chester 030","E06000050","Cheshire West and Chester","Rural"]
[null,"E02003801","Cheshire West and Chester 032","E06000050","Cheshire West and Chester","Other Urban"]
[null,"E02003802","Cheshire West and Chester 033","E06000050","Cheshire West and Chester","Other Urban"]
[null,"E02003803","Cheshire West and Chester 034","E06000050","Cheshire West and Chester","Other Urban"]
[null,"E02003804","Cheshire West and Chester 036","E06000050","Cheshire West and Chester","Other Urban"]
[null,"E02003805","Cheshire West and Chester 039","E06000050","Cheshire West and Chester","Rural"]
[null,"E02003806","Cheshire West and Chester 041","E06000050","Cheshire West and Chester","Other Urban"]
[null,"E02003807","Cheshire West and Chester 043","E06000050","Cheshire West and Chester","Other Urban"]
[null,"E02003808","Cheshire West and Chester 044","E06000050","Cheshire West and Chester","Other Urban"]
[null,"E02003809","Cheshire West and Chester 046","E06000050","Cheshire West and Chester","Rural"]
[null,"E02003810","Cheshire West and Chester 047","E06000050","Cheshire West and Chester","Rural"]
[null,"E02003811","Cheshire East 022","E06000049","Cheshire East","Rural"]
[null,"E02003812","Cheshire East 023","E06000049","Cheshire East","Rural"]
[null,"E02003813","Cheshire East 024","E06000049","Cheshire East","Other Urban"]
[null,"E02003814","Cheshire East 025","E06000049","Cheshire East","Other Urban"]
[null,"E02003815","Cheshire East 026","E06000049","Cheshire East","Other Urban"]
[null,"E02003816","Cheshire East 027","E06000049","Cheshire East","Other Urban"]
[null,"E02003817","Cheshire East 028","E06000049","Cheshire East","Other Urban"]
[null,"E02003818","Cheshire East 029","E06000049","Cheshire East","Other Urban"]
[null,"E02003819","Cheshire East 030","E06000049","Cheshire East","Other Urban"]
[null,"E02003820","Cheshire East 031","E06000049","Cheshire East","Other Urban"]
[null,"E02003821","Cheshire East 032","E06000049","Cheshire East","Other Urban"]
[null,"E02003822","Cheshire East 033","E06000049","Cheshire East","Rural"]
[null,"E02003823","Cheshire East 040","E06000049","Cheshire East","Rural"]
[null,"E02003824","Cheshire East 042","E06000049","Cheshire East","Rural"]
[null,"E02003825","Cheshire East 034","E06000049","Cheshire East","Other Urban"]
[null,"E02003826","Cheshire East 035","E06000049","Cheshire East","Other Urban"]
[null,"E02003827","Cheshire East 036","E06000049","Cheshire East","Other Urban"]
[null,"E02003828","Cheshire East 037","E06000049","Cheshire East","Other Urban"]
[null,"E02003829","Cheshire East 038","E06000049","Cheshire East","Other Urban"]
[null,"E02003830","Cheshire East 039","E06000049","Cheshire East","Other Urban"]
[null,"E02003831","Cheshire East 041","E06000049","Cheshire East","Rural"]
[null,"E02003832","Cheshire East 043","E06000049","Cheshire East","Other Urban"]
[null,"E02003833","Cheshire East 044","E06000049","Cheshire East","Other Urban"]
[null,"E02003834","Cheshire East 045","E06000049","Cheshire East","Other Urban"]
[null,"E02003835","Cheshire East 046","E06000049","Cheshire East","Other Urban"]
[null,"E02003836","Cheshire East 047","E06000049","Cheshire East","Rural"]
[null,"E02003837","Cheshire East 049","E06000049","Cheshire East","Rural"]
[null,"E02003838","Cheshire East 048","E06000049","Cheshire East","Rural"]
[null,"E02003839","Cheshire East 050","E06000049","Cheshire East","Rural"]
[null,"E02003840","Cheshire East 051","E06000049","Cheshire East","Rural"]
[null,"E02003841","Cheshire West and Chester 001","E06000050","Cheshire West and Chester","Other Urban"]
[null,"E02003842","Cheshire West and Chester 004","E06000050","Cheshire West and Chester","Rural"]
[null,"E02003843","Cheshire West and Chester 005","E06000050","Cheshire West and Chester","Other Urban"]
[null,"E02003844","Cheshire West and Chester 006","E06000050","Cheshire West and Chester","Rural"]
[null,"E02003845","Cheshire West and Chester 007","E06000050","Cheshire West and Chester","Other Urban"]
[null,"E02003846","Cheshire West and Chester 008","E06000050","Cheshire West and Chester","Other Urban"]
[null,"E02003847","Cheshire West and Chester 009","E06000050","Cheshire West and Chester","Other Urban"]
[null,"E02003848","Cheshire West and Chester 010","E06000050","Cheshire West and Chester","Other Urban"]
[null,"E02003849","Cheshire West and Chester 011","E06000050","Cheshire West and Chester","Other Urban"]
[null,"E02003850","Cheshire West and Chester 013","E06000050","Cheshire West and Chester","Other Urban"]
[null,"E02003851","Cheshire West and Chester 014","E06000050","Cheshire West and Chester","Other Urban"]
[null,"E02003852","Cheshire West and Chester 016","E06000050","Cheshire West and Chester","Other Urban"]
[null,"E02003853","Cheshire East 001","E06000049","Cheshire East","Rural"]
[null,"E02003854","Cheshire East 002","E06000049","Cheshire East","Other Urban"]
[null,"E02003855","Cheshire East 003","E06000049","Cheshire East","Other Urban"]
[null,"E02003856","Cheshire East 004","E06000049","Cheshire East","Other Urban"]
[null,"E02003857","Cheshire East 005","E06000049","Cheshire East","Rural"]
[null,"E02003858","Cheshire East 006","E06000049","Cheshire East","Rural"]
[null,"E02003859","Cheshire East 007","E06000049","Cheshire East","Rural"]
[null,"E02003860","Cheshire East 008","E06000049","Cheshire East","Rural"]
[null,"E02003861","Cheshire East 009","E06000049","Cheshire East","Other Urban"]
[null,"E02003862","Cheshire East 011","E06000049","Cheshire East","Rural"]
[null,"E02003863","Cheshire East 010","E06000049","Cheshire East","Other Urban"]
[null,"E02003864","Cheshire East 012","E06000049","Cheshire East","Rural"]
[null,"E02003865","Cheshire East 013","E06000049","Cheshire East","Rural"]
[null,"E02003866","Cheshire East 014","E06000049","Cheshire East","Other Urban"]
[null,"E02003867","Cheshire East 015","E06000049","Cheshire East","Other Urban"]
[null,"E02003868","Cheshire East 016","E06000049","Cheshire East","Other Urban"]
[null,"E02003869","Cheshire East 017","E06000049","Cheshire East","Other Urban"]
[null,"E02003870","Cheshire East 018","E06000049","Cheshire East","Other Urban"]
[null,"E02003871","Cheshire East 019","E06000049","Cheshire East","Other Urban"]
[null,"E02003872","Cheshire East 020","E06000049","Cheshire East","Rural"]
[null,"E02003873","Cheshire East 021","E06000049","Cheshire East","Other Urban"]
[null,"E02003874","Cheshire West and Chester 002","E06000050","Cheshire West and Chester","Rural"]
[null,"E02003875","Cheshire West and Chester 003","E06000050","Cheshire West and Chester","Rural"]
[null,"E02003876","Cheshire West and Chester 012","E06000050","Cheshire West and Chester","Other Urban"]
[null,"E02003877","Cheshire West and Chester 015","E06000050","Cheshire West and Chester","Rural"]
[null,"E02003878","Cheshire West and Chester 017","E06000050","Cheshire West and Chester","Rural"]
[null,"E02003879","Cheshire West and Chester 018","E06000050","Cheshire West and Chester","Other Urban"]
[null,"E02003880","Cheshire West and Chester 019","E06000050","Cheshire West and Chester","Rural"]
[null,"E02003881","Cheshire West and Chester 020","E06000050","Cheshire West and Chester","Other Urban"]
[null,"E02003882","Cheshire West and Chester 021","E06000050","Cheshire West and Chester","Other Urban"]
[null,"E02003883","Cheshire West and Chester 023","E06000050","Cheshire West and Chester","Other Urban"]
[null,"E02003884","Cheshire West and Chester 024","E06000050","Cheshire West and Chester","Rural"]
[null,"E02003885","Cheshire West and Chester 026","E06000050","Cheshire West and Chester","Rural"]
[null,"E02003886","Cheshire West and Chester 035","E06000050","Cheshire West and Chester","Other Urban"]
[null,"E02003887","Cheshire West and Chester 037","E06000050","Cheshire West and Chester","Other Urban"]
[null,"E02003888","Cheshire West and Chester 038","E06000050","Cheshire West and Chester","Other Urban"]
[null,"E02003889","Cheshire West and Chester 040","E06000050","Cheshire West and Chester","Other Urban"]
[null,"E02003890","Cheshire West and Chester 042","E06000050","Cheshire West and Chester","Other Urban"]
[null,"E02003891","Cheshire West and Chester 045","E06000050","Cheshire West and Chester","Rural"]
[null,"E02003892","Cornwall 010","E06000052","Cornwall","Rural"]
[null,"E02003893","Cornwall 012","E06000052","Cornwall","Rural"]
[null,"E02003894","Cornwall 013","E06000052","Cornwall","Rural"]
[null,"E02003895","Cornwall 016","E06000052","Cornwall","Rural"]
[null,"E02003896","Cornwall 017","E06000052","Cornwall","Rural"]
[null,"E02003897","Cornwall 022","E06000052","Cornwall","Rural"]
[null,"E02003898","Cornwall 023","E06000052","Cornwall","Rural"]
[null,"E02003899","Cornwall 025","E06000052","Cornwall","Rural"]
[null,"E02003900","Cornwall 026","E06000052","Cornwall","Rural"]
[null,"E02003901","Cornwall 028","E06000052","Cornwall","Rural"]
[null,"E02003902","Cornwall 029","E06000052","Cornwall","Rural"]
[null,"E02003903","Cornwall 034","E06000052","Cornwall","Rural"]
[null,"E02003904","Cornwall 037","E06000052","Cornwall","Rural"]
[null,"E02003905","Cornwall 032","E06000052","Cornwall","Rural"]
[null,"E02003906","Cornwall 033","E06000052","Cornwall","Rural"]
[null,"E02003907","Cornwall 040","E06000052","Cornwall","Rural"]
[null,"E02003908","Cornwall 042","E06000052","Cornwall","Other Urban"]
[null,"E02003909","Cornwall 043","E06000052","Cornwall","Rural"]
[null,"E02003910","Cornwall 044","E06000052","Cornwall","Other Urban"]
[null,"E02003911","Cornwall 047","E06000052","Cornwall","Rural"]
[null,"E02003912","Cornwall 048","E06000052","Cornwall","Rural"]
[null,"E02003913","Cornwall 056","E06000052","Cornwall","Rural"]
[null,"E02003914","Cornwall 060","E06000052","Cornwall","Other Urban"]
[null,"E02003915","Cornwall 062","E06000052","Cornwall","Other Urban"]
[null,"E02003916","Cornwall 063","E06000052","Cornwall","Other Urban"]
[null,"E02003917","Cornwall 064","E06000052","Cornwall","Other Urban"]
[null,"E02003918","Cornwall 045","E06000052","Cornwall","Rural"]
[null,"E02003919","Cornwall 046","E06000052","Cornwall","Other Urban"]
[null,"E02003920","Cornwall 049","E06000052","Cornwall","Other Urban"]
[null,"E02003921","Cornwall 050","E06000052","Cornwall","Rural"]
[null,"E02003922","Cornwall 051","E06000052","Cornwall","Other Urban"]
[null,"E02003923","Cornwall 052","E06000052","Cornwall","Other Urban"]
[null,"E02003924","Cornwall 053","E06000052","Cornwall","Rural"]
[null,"E02003925","Cornwall 055","E06000052","Cornwall","Rural"]
[null,"E02003926","Cornwall 059","E06000052","Cornwall","Rural"]
[null,"E02003927","Cornwall 066","E06000052","Cornwall","Rural"]
[null,"E02003928","Cornwall 071","E06000052","Cornwall","Other Urban"]
[null,"E02003929","Cornwall 072","E06000052","Cornwall","Rural"]
[null,"E02003930","Cornwall 073","E06000052","Cornwall","Rural"]
[null,"E02003931","Cornwall 001","E06000052","Cornwall","Rural"]
[null,"E02003932","Cornwall 002","E06000052","Cornwall","Rural"]
[null,"E02003933","Cornwall 003","E06000052","Cornwall","Rural"]
[null,"E02003934","Cornwall 004","E06000052","Cornwall","Rural"]
[null,"E02003935","Cornwall 005","E06000052","Cornwall","Rural"]
[null,"E02003936","Cornwall 006","E06000052","Cornwall","Rural"]
[null,"E02003937","Cornwall 007","E06000052","Cornwall","Rural"]
[null,"E02003938","Cornwall 008","E06000052","Cornwall","Rural"]
[null,"E02003939","Cornwall 009","E06000052","Cornwall","Rural"]
[null,"E02003940","Cornwall 011","E06000052","Cornwall","Rural"]
[null,"E02003941","Cornwall 014","E06000052","Cornwall","Other Urban"]
[null,"E02003942","Cornwall 015","E06000052","Cornwall","Other Urban"]
[null,"E02003943","Cornwall 054","E06000052","Cornwall","Other Urban"]
[null,"E02003944","Cornwall 057","E06000052","Cornwall","Rural"]
[null,"E02003945","Cornwall 058","E06000052","Cornwall","Rural"]
[null,"E02003946","Cornwall 061","E06000052","Cornwall","Rural"]
[null,"E02003947","Cornwall 065","E06000052","Cornwall","Rural"]
[null,"E02003948","Cornwall 067","E06000052","Cornwall","Other Urban"]
[null,"E02003949","Cornwall 068","E06000052","Cornwall","Other Urban"]
[null,"E02003950","Cornwall 069","E06000052","Cornwall","Rural"]
[null,"E02003951","Cornwall 070","E06000052","Cornwall","Other Urban"]
[null,"E02003952","Cornwall 018","E06000052","Cornwall","Rural"]
[null,"E02003953","Cornwall 019","E06000052","Cornwall","Rural"]
[null,"E02003954","Cornwall 020","E06000052","Cornwall","Other Urban"]
[null,"E02003955","Cornwall 021","E06000052","Cornwall","Other Urban"]
[null,"E02003956","Cornwall 024","E06000052","Cornwall","Rural"]
[null,"E02003957","Cornwall 027","E06000052","Cornwall","Rural"]
[null,"E02003958","Cornwall 030","E06000052","Cornwall","Rural"]
[null,"E02003959","Cornwall 031","E06000052","Cornwall","Other Urban"]
[null,"E02003960","Cornwall 035","E06000052","Cornwall","Rural"]
[null,"E02003961","Cornwall 036","E06000052","Cornwall","Other Urban"]
[null,"E02003962","Cornwall 038","E06000052","Cornwall","Rural"]
[null,"E02003963","Cornwall 039","E06000052","Cornwall","Other Urban"]
[null,"E02003964","Cornwall 041","E06000052","Cornwall","Rural"]
[null,"E02003965","Allerdale 001","E07000026","Allerdale","Rural"]
[null,"E02003966","Allerdale 002","E07000026","Allerdale","Rural"]
[null,"E02003967","Allerdale 003","E07000026","Allerdale","Rural"]
[null,"E02003968","Allerdale 004","E07000026","Allerdale","Rural"]
[null,"E02003969","Allerdale 005","E07000026","Allerdale","Rural"]
[null,"E02003970","Allerdale 006","E07000026","Allerdale","Rural"]
[null,"E02003971","Allerdale 007","E07000026","Allerdale","Rural"]
[null,"E02003972","Allerdale 008","E07000026","Allerdale","Other Urban"]
[null,"E02003973","Allerdale 009","E07000026","Allerdale","Other Urban"]
[null,"E02003974","Allerdale 010","E07000026","Allerdale","Other Urban"]
[null,"E02003975","Allerdale 011","E07000026","Allerdale","Rural"]
[null,"E02003976","Allerdale 012","E07000026","Allerdale","Rural"]
[null,"E02003977","Barrow-in-Furness 001","E07000027","Barrow-in-Furness","Rural"]
[null,"E02003978","Barrow-in-Furness 002","E07000027","Barrow-in-Furness","Rural"]
[null,"E02003979","Barrow-in-Furness 003","E07000027","Barrow-in-Furness","Other Urban"]
[null,"E02003980","Barrow-in-Furness 004","E07000027","Barrow-in-Furness","Other Urban"]
[null,"E02003981","Barrow-in-Furness 005","E07000027","Barrow-in-Furness","Other Urban"]
[null,"E02003982","Barrow-in-Furness 006","E07000027","Barrow-in-Furness","Rural"]
[null,"E02003983","Barrow-in-Furness 007","E07000027","Barrow-in-Furness","Other Urban"]
[null,"E02003984","Barrow-in-Furness 008","E07000027","Barrow-in-Furness","Other Urban"]
[null,"E02003985","Barrow-in-Furness 009","E07000027","Barrow-in-Furness","Rural"]
[null,"E02003986","Barrow-in-Furness 010","E07000027","Barrow-in-Furness","Rural"]
[null,"E02003987","Carlisle 001","E07000028","Carlisle","Rural"]
[null,"E02003988","Carlisle 002","E07000028","Carlisle","Rural"]
[null,"E02003989","Carlisle 003","E07000028","Carlisle","Other Urban"]
[null,"E02003990","Carlisle 004","E07000028","Carlisle","Rural"]
[null,"E02003991","Carlisle 005","E07000028","Carlisle","Rural"]
[null,"E02003992","Carlisle 006","E07000028","Carlisle","Other Urban"]
[null,"E02003993","Carlisle 007","E07000028","Carlisle","Rural"]
[null,"E02003994","Carlisle 008","E07000028","Carlisle","Other Urban"]
[null,"E02003995","Carlisle 009","E07000028","Carlisle","Other Urban"]
[null,"E02003996","Carlisle 010","E07000028","Carlisle","Other Urban"]
[null,"E02003997","Carlisle 011","E07000028","Carlisle","Other Urban"]
[null,"E02003998","Carlisle 012","E07000028","Carlisle","Other Urban"]
[null,"E02003999","Carlisle 013","E07000028","Carlisle","Rural"]
[null,"E02004000","Copeland 001","E07000029","Copeland","Rural"]
[null,"E02004001","Copeland 002","E07000029","Copeland","Rural"]
[null,"E02004002","Copeland 003","E07000029","Copeland","Other Urban"]
[null,"E02004003","Copeland 004","E07000029","Copeland","Rural"]
[null,"E02004004","Copeland 005","E07000029","Copeland","Rural"]
[null,"E02004005","Copeland 006","E07000029","Copeland","Rural"]
[null,"E02004006","Copeland 007","E07000029","Copeland","Rural"]
[null,"E02004007","Copeland 008","E07000029","Copeland","Rural"]
[null,"E02004008","Eden 001","E07000030","Eden","Rural"]
[null,"E02004009","Eden 002","E07000030","Eden","Rural"]
[null,"E02004010","Eden 003","E07000030","Eden","Other Urban"]
[null,"E02004011","Eden 004","E07000030","Eden","Other Urban"]
[null,"E02004012","Eden 005","E07000030","Eden","Rural"]
[null,"E02004013","Eden 006","E07000030","Eden","Rural"]
[null,"E02004014","Eden 007","E07000030","Eden","Rural"]
[null,"E02004015","South Lakeland 001","E07000031","South Lakeland","Rural"]
[null,"E02004016","South Lakeland 002","E07000031","South Lakeland","Rural"]
[null,"E02004017","South Lakeland 003","E07000031","South Lakeland","Rural"]
[null,"E02004018","South Lakeland 004","E07000031","South Lakeland","Other Urban"]
[null,"E02004019","South Lakeland 005","E07000031","South Lakeland","Rural"]
[null,"E02004020","South Lakeland 006","E07000031","South Lakeland","Other Urban"]
[null,"E02004021","South Lakeland 007","E07000031","South Lakeland","Rural"]
[null,"E02004022","South Lakeland 008","E07000031","South Lakeland","Rural"]
[null,"E02004023","South Lakeland 009","E07000031","South Lakeland","Rural"]
[null,"E02004024","South Lakeland 010","E07000031","South Lakeland","Rural"]
[null,"E02004025","South Lakeland 011","E07000031","South Lakeland","Rural"]
[null,"E02004026","South Lakeland 012","E07000031","South Lakeland","Other Urban"]
[null,"E02004027","South Lakeland 013","E07000031","South Lakeland","Rural"]
[null,"E02004028","South Lakeland 014","E07000031","South Lakeland","Rural"]
[null,"E02004029","Amber Valley 001","E07000032","Amber Valley","Other Urban"]
[null,"E02004030","Amber Valley 002","E07000032","Amber Valley","Rural"]
[null,"E02004031","Amber Valley 003","E07000032","Amber Valley","Other Urban"]
[null,"E02004032","Amber Valley 004","E07000032","Amber Valley","Other Urban"]
[null,"E02004033","Amber Valley 005","E07000032","Amber Valley","Other Urban"]
[null,"E02004034","Amber Valley 006","E07000032","Amber Valley","Other Urban"]
[null,"E02004035","Amber Valley 007","E07000032","Amber Valley","Rural"]
[null,"E02004036","Amber Valley 008","E07000032","Amber Valley","Other Urban"]
[null,"E02004037","Amber Valley 009","E07000032","Amber Valley","Rural"]
[null,"E02004038","Amber Valley 010","E07000032","Amber Valley","Rural"]
[null,"E02004039","Amber Valley 011","E07000032","Amber Valley","Rural"]
[null,"E02004040","Amber Valley 012","E07000032","Amber Valley","Other Urban"]
[null,"E02004041","Amber Valley 013","E07000032","Amber Valley","Other Urban"]
[null,"E02004043","Amber Valley 015","E07000032","Amber Valley","Rural"]
[null,"E02004044","Amber Valley 016","E07000032","Amber Valley","Rural"]
[null,"E02004045","Bolsover 001","E07000033","Bolsover","Rural"]
[null,"E02004046","Bolsover 002","E07000033","Bolsover","Rural"]
[null,"E02004047","Bolsover 003","E07000033","Bolsover","Rural"]
[null,"E02004048","Bolsover 004","E07000033","Bolsover","Other Urban"]
[null,"E02004049","Bolsover 005","E07000033","Bolsover","Rural"]
[null,"E02004050","Bolsover 006","E07000033","Bolsover","Other Urban"]
[null,"E02004051","Bolsover 007","E07000033","Bolsover","Rural"]
[null,"E02004052","Bolsover 008","E07000033","Bolsover","Rural"]
[null,"E02004053","Bolsover 009","E07000033","Bolsover","Other Urban"]
[null,"E02004054","Bolsover 010","E07000033","Bolsover","Other Urban"]
[null,"E02004055","Chesterfield 001","E07000034","Chesterfield","Other Urban"]
[null,"E02004056","Chesterfield 002","E07000034","Chesterfield","Other Urban"]
[null,"E02004057","Chesterfield 003","E07000034","Chesterfield","Other Urban"]
[null,"E02004058","Chesterfield 004","E07000034","Chesterfield","Other Urban"]
[null,"E02004059","Chesterfield 005","E07000034","Chesterfield","Other Urban"]
[null,"E02004060","Chesterfield 006","E07000034","Chesterfield","Other Urban"]
[null,"E02004061","Chesterfield 007","E07000034","Chesterfield","Other Urban"]
[null,"E02004062","Chesterfield 008","E07000034","Chesterfield","Other Urban"]
[null,"E02004063","Chesterfield 009","E07000034","Chesterfield","Other Urban"]
[null,"E02004064","Chesterfield 010","E07000034","Chesterfield","Other Urban"]
[null,"E02004065","Chesterfield 011","E07000034","Chesterfield","Other Urban"]
[null,"E02004066","Chesterfield 012","E07000034","Chesterfield","Other Urban"]
[null,"E02004067","Chesterfield 013","E07000034","Chesterfield","Other Urban"]
[null,"E02004068","Derbyshire Dales 001","E07000035","Derbyshire Dales","Rural"]
[null,"E02004069","Derbyshire Dales 002","E07000035","Derbyshire Dales","Rural"]
[null,"E02004070","Derbyshire Dales 003","E07000035","Derbyshire Dales","Rural"]
[null,"E02004071","Derbyshire Dales 004","E07000035","Derbyshire Dales","Rural"]
[null,"E02004072","Derbyshire Dales 005","E07000035","Derbyshire Dales","Other Urban"]
[null,"E02004073","Derbyshire Dales 006","E07000035","Derbyshire Dales","Rural"]
[null,"E02004074","Derbyshire Dales 007","E07000035","Derbyshire Dales","Rural"]
[null,"E02004075","Derbyshire Dales 008","E07000035","Derbyshire Dales","Rural"]
[null,"E02004076","Derbyshire Dales 009","E07000035","Derbyshire Dales","Rural"]
[null,"E02004077","Derbyshire Dales 010","E07000035","Derbyshire Dales","Rural"]
[null,"E02004078","Erewash 001","E07000036","Erewash","Other Urban"]
[null,"E02004080","Erewash 003","E07000036","Erewash","Other Urban"]
[null,"E02004081","Erewash 004","E07000036","Erewash","Rural"]
[null,"E02004082","Erewash 005","E07000036","Erewash","Rural"]
[null,"E02004083","Erewash 006","E07000036","Erewash","Other Urban"]
[null,"E02004084","Erewash 007","E07000036","Erewash","Other Urban"]
[null,"E02004085","Erewash 008","E07000036","Erewash","Other Urban"]
[null,"E02004086","Erewash 009","E07000036","Erewash","Other Urban"]
[null,"E02004087","Erewash 010","E07000036","Erewash","Other Urban"]
[null,"E02004088","Erewash 011","E07000036","Erewash","Other Urban"]
[null,"E02004089","Erewash 012","E07000036","Erewash","Other Urban"]
[null,"E02004090","Erewash 013","E07000036","Erewash","Other Urban"]
[null,"E02004091","Erewash 014","E07000036","Erewash","Other Urban"]
[null,"E02004092","Erewash 015","E07000036","Erewash","Other Urban"]
[null,"E02004093","High Peak 001","E07000037","High Peak","Rural"]
[null,"E02004094","High Peak 002","E07000037","High Peak","Other Urban"]
[null,"E02004095","High Peak 003","E07000037","High Peak","Other Urban"]
[null,"E02004096","High Peak 004","E07000037","High Peak","Rural"]
[null,"E02004097","High Peak 005","E07000037","High Peak","Rural"]
[null,"E02004098","High Peak 006","E07000037","High Peak","Rural"]
[null,"E02004100","High Peak 008","E07000037","High Peak","Rural"]
[null,"E02004102","High Peak 010","E07000037","High Peak","Other Urban"]
[null,"E02004103","High Peak 011","E07000037","High Peak","Other Urban"]
[null,"E02004104","High Peak 012","E07000037","High Peak","Rural"]
[null,"E02004105","North East Derbyshire 001","E07000038","North East Derbyshire","Rural"]
[null,"E02004106","North East Derbyshire 002","E07000038","North East Derbyshire","Rural"]
[null,"E02004108","North East Derbyshire 004","E07000038","North East Derbyshire","Rural"]
[null,"E02004109","North East Derbyshire 005","E07000038","North East Derbyshire","Rural"]
[null,"E02004110","North East Derbyshire 006","E07000038","North East Derbyshire","Other Urban"]
[null,"E02004111","North East Derbyshire 007","E07000038","North East Derbyshire","Rural"]
[null,"E02004112","North East Derbyshire 008","E07000038","North East Derbyshire","Rural"]
[null,"E02004113","North East Derbyshire 009","E07000038","North East Derbyshire","Rural"]
[null,"E02004114","North East Derbyshire 010","E07000038","North East Derbyshire","Rural"]
[null,"E02004115","North East Derbyshire 011","E07000038","North East Derbyshire","Rural"]
[null,"E02004116","North East Derbyshire 012","E07000038","North East Derbyshire","Other Urban"]
[null,"E02004117","North East Derbyshire 013","E07000038","North East Derbyshire","Rural"]
[null,"E02004118","South Derbyshire 001","E07000039","South Derbyshire","Rural"]
[null,"E02004119","South Derbyshire 002","E07000039","South Derbyshire","Rural"]
[null,"E02004120","South Derbyshire 003","E07000039","South Derbyshire","Rural"]
[null,"E02004121","South Derbyshire 004","E07000039","South Derbyshire","Rural"]
[null,"E02004122","South Derbyshire 005","E07000039","South Derbyshire","Rural"]
[null,"E02004123","South Derbyshire 006","E07000039","South Derbyshire","Rural"]
[null,"E02004124","South Derbyshire 007","E07000039","South Derbyshire","Other Urban"]
[null,"E02004125","South Derbyshire 008","E07000039","South Derbyshire","Other Urban"]
[null,"E02004126","South Derbyshire 009","E07000039","South Derbyshire","Other Urban"]
[null,"E02004128","South Derbyshire 011","E07000039","South Derbyshire","Rural"]
[null,"E02004129","East Devon 001","E07000040","East Devon","Rural"]
[null,"E02004130","East Devon 002","E07000040","East Devon","Rural"]
[null,"E02004131","East Devon 003","E07000040","East Devon","Rural"]
[null,"E02004132","East Devon 004","E07000040","East Devon","Rural"]
[null,"E02004133","East Devon 005","E07000040","East Devon","Rural"]
[null,"E02004134","East Devon 006","E07000040","East Devon","Rural"]
[null,"E02004135","East Devon 007","E07000040","East Devon","Rural"]
[null,"E02004136","East Devon 008","E07000040","East Devon","Rural"]
[null,"E02004137","East Devon 009","E07000040","East Devon","Rural"]
[null,"E02004138","East Devon 010","E07000040","East Devon","Rural"]
[null,"E02004139","East Devon 011","E07000040","East Devon","Other Urban"]
[null,"E02004140","East Devon 012","E07000040","East Devon","Other Urban"]
[null,"E02004141","East Devon 013","E07000040","East Devon","Rural"]
[null,"E02004142","East Devon 014","E07000040","East Devon","Rural"]
[null,"E02004143","East Devon 015","E07000040","East Devon","Other Urban"]
[null,"E02004144","East Devon 016","E07000040","East Devon","Other Urban"]
[null,"E02004145","East Devon 017","E07000040","East Devon","Rural"]
[null,"E02004146","East Devon 018","E07000040","East Devon","Other Urban"]
[null,"E02004147","East Devon 019","E07000040","East Devon","Other Urban"]
[null,"E02004148","East Devon 020","E07000040","East Devon","Other Urban"]
[null,"E02004149","Exeter 001","E07000041","Exeter","Other Urban"]
[null,"E02004150","Exeter 002","E07000041","Exeter","Other Urban"]
[null,"E02004151","Exeter 003","E07000041","Exeter","Other Urban"]
[null,"E02004152","Exeter 004","E07000041","Exeter","Other Urban"]
[null,"E02004153","Exeter 005","E07000041","Exeter","Other Urban"]
[null,"E02004154","Exeter 006","E07000041","Exeter","Other Urban"]
[null,"E02004155","Exeter 007","E07000041","Exeter","Other Urban"]
[null,"E02004156","Exeter 008","E07000041","Exeter","Other Urban"]
[null,"E02004157","Exeter 009","E07000041","Exeter","Other Urban"]
[null,"E02004158","Exeter 010","E07000041","Exeter","Other Urban"]
[null,"E02004159","Exeter 011","E07000041","Exeter","Other Urban"]
[null,"E02004160","Exeter 012","E07000041","Exeter","Other Urban"]
[null,"E02004161","Exeter 013","E07000041","Exeter","Other Urban"]
[null,"E02004162","Exeter 014","E07000041","Exeter","Other Urban"]
[null,"E02004163","Exeter 015","E07000041","Exeter","Rural"]
[null,"E02004164","Mid Devon 001","E07000042","Mid Devon","Rural"]
[null,"E02004165","Mid Devon 002","E07000042","Mid Devon","Rural"]
[null,"E02004166","Mid Devon 003","E07000042","Mid Devon","Rural"]
[null,"E02004167","Mid Devon 004","E07000042","Mid Devon","Other Urban"]
[null,"E02004168","Mid Devon 005","E07000042","Mid Devon","Rural"]
[null,"E02004169","Mid Devon 006","E07000042","Mid Devon","Rural"]
[null,"E02004170","Mid Devon 007","E07000042","Mid Devon","Rural"]
[null,"E02004171","Mid Devon 008","E07000042","Mid Devon","Rural"]
[null,"E02004172","Mid Devon 009","E07000042","Mid Devon","Rural"]
[null,"E02004173","Mid Devon 010","E07000042","Mid Devon","Rural"]
[null,"E02004174","Mid Devon 011","E07000042","Mid Devon","Rural"]
[null,"E02004175","North Devon 001","E07000043","North Devon","Rural"]
[null,"E02004176","North Devon 002","E07000043","North Devon","Rural"]
[null,"E02004177","North Devon 003","E07000043","North Devon","Rural"]
[null,"E02004178","North Devon 004","E07000043","North Devon","Rural"]
[null,"E02004179","North Devon 005","E07000043","North Devon","Rural"]
[null,"E02004180","North Devon 006","E07000043","North Devon","Rural"]
[null,"E02004181","North Devon 007","E07000043","North Devon","Other Urban"]
[null,"E02004182","North Devon 008","E07000043","North Devon","Other Urban"]
[null,"E02004183","North Devon 009","E07000043","North Devon","Other Urban"]
[null,"E02004184","North Devon 010","E07000043","North Devon","Other Urban"]
[null,"E02004185","North Devon 011","E07000043","North Devon","Rural"]
[null,"E02004186","North Devon 012","E07000043","North Devon","Rural"]
[null,"E02004187","North Devon 013","E07000043","North Devon","Rural"]
[null,"E02004188","North Devon 014","E07000043","North Devon","Rural"]
[null,"E02004189","South Hams 001","E07000044","South Hams","Rural"]
[null,"E02004190","South Hams 002","E07000044","South Hams","Rural"]
[null,"E02004191","South Hams 003","E07000044","South Hams","Rural"]
[null,"E02004192","South Hams 004","E07000044","South Hams","Rural"]
[null,"E02004193","South Hams 005","E07000044","South Hams","Rural"]
[null,"E02004194","South Hams 006","E07000044","South Hams","Rural"]
[null,"E02004195","South Hams 007","E07000044","South Hams","Rural"]
[null,"E02004196","South Hams 008","E07000044","South Hams","Rural"]
[null,"E02004197","South Hams 009","E07000044","South Hams","Rural"]
[null,"E02004198","South Hams 010","E07000044","South Hams","Rural"]
[null,"E02004199","South Hams 011","E07000044","South Hams","Rural"]
[null,"E02004200","South Hams 012","E07000044","South Hams","Rural"]
[null,"E02004201","Teignbridge 001","E07000045","Teignbridge","Rural"]
[null,"E02004202","Teignbridge 002","E07000045","Teignbridge","Rural"]
[null,"E02004203","Teignbridge 003","E07000045","Teignbridge","Rural"]
[null,"E02004204","Teignbridge 004","E07000045","Teignbridge","Rural"]
[null,"E02004205","Teignbridge 005","E07000045","Teignbridge","Rural"]
[null,"E02004206","Teignbridge 006","E07000045","Teignbridge","Rural"]
[null,"E02004207","Teignbridge 007","E07000045","Teignbridge","Rural"]
[null,"E02004208","Teignbridge 008","E07000045","Teignbridge","Other Urban"]
[null,"E02004209","Teignbridge 009","E07000045","Teignbridge","Rural"]
[null,"E02004210","Teignbridge 010","E07000045","Teignbridge","Other Urban"]
[null,"E02004211","Teignbridge 011","E07000045","Teignbridge","Rural"]
[null,"E02004212","Teignbridge 012","E07000045","Teignbridge","Rural"]
[null,"E02004213","Teignbridge 013","E07000045","Teignbridge","Rural"]
[null,"E02004214","Teignbridge 014","E07000045","Teignbridge","Rural"]
[null,"E02004215","Teignbridge 015","E07000045","Teignbridge","Rural"]
[null,"E02004216","Teignbridge 016","E07000045","Teignbridge","Rural"]
[null,"E02004217","Teignbridge 017","E07000045","Teignbridge","Rural"]
[null,"E02004218","Teignbridge 018","E07000045","Teignbridge","Rural"]
[null,"E02004219","Teignbridge 019","E07000045","Teignbridge","Rural"]
[null,"E02004220","Torridge 001","E07000046","Torridge","Other Urban"]
[null,"E02004221","Torridge 002","E07000046","Torridge","Other Urban"]
[null,"E02004222","Torridge 003","E07000046","Torridge","Other Urban"]
[null,"E02004223","Torridge 004","E07000046","Torridge","Other Urban"]
[null,"E02004224","Torridge 005","E07000046","Torridge","Rural"]
[null,"E02004225","Torridge 006","E07000046","Torridge","Rural"]
[null,"E02004226","Torridge 007","E07000046","Torridge","Rural"]
[null,"E02004227","Torridge 008","E07000046","Torridge","Rural"]
[null,"E02004228","Torridge 009","E07000046","Torridge","Rural"]
[null,"E02004229","West Devon 001","E07000047","West Devon","Rural"]
[null,"E02004230","West Devon 002","E07000047","West Devon","Rural"]
[null,"E02004231","West Devon 003","E07000047","West Devon","Rural"]
[null,"E02004232","West Devon 004","E07000047","West Devon","Rural"]
[null,"E02004233","West Devon 005","E07000047","West Devon","Other Urban"]
[null,"E02004234","West Devon 006","E07000047","West Devon","Rural"]
[null,"E02004235","West Devon 007","E07000047","West Devon","Rural"]
[null,"E02004236","Christchurch 001","E07000048","Christchurch","Rural"]
[null,"E02004237","Christchurch 002","E07000048","Christchurch","Other Urban"]
[null,"E02004238","Christchurch 003","E07000048","Christchurch","Other Urban"]
[null,"E02004239","Christchurch 004","E07000048","Christchurch","Other Urban"]
[null,"E02004240","Christchurch 005","E07000048","Christchurch","Other Urban"]
[null,"E02004241","Christchurch 006","E07000048","Christchurch","Other Urban"]
[null,"E02004242","Christchurch 007","E07000048","Christchurch","Other Urban"]
[null,"E02004243","East Dorset 001","E07000049","East Dorset","Rural"]
[null,"E02004244","East Dorset 002","E07000049","East Dorset","Rural"]
[null,"E02004245","East Dorset 003","E07000049","East Dorset","Rural"]
[null,"E02004246","East Dorset 004","E07000049","East Dorset","Rural"]
[null,"E02004247","East Dorset 005","E07000049","East Dorset","Rural"]
[null,"E02004248","East Dorset 006","E07000049","East Dorset","Other Urban"]
[null,"E02004249","East Dorset 007","E07000049","East Dorset","Rural"]
[null,"E02004250","East Dorset 008","E07000049","East Dorset","Other Urban"]
[null,"E02004251","East Dorset 009","E07000049","East Dorset","Other Urban"]
[null,"E02004252","East Dorset 010","E07000049","East Dorset","Rural"]
[null,"E02004253","East Dorset 011","E07000049","East Dorset","Other Urban"]
[null,"E02004254","East Dorset 012","E07000049","East Dorset","Other Urban"]
[null,"E02004255","North Dorset 001","E07000050","North Dorset","Rural"]
[null,"E02004256","North Dorset 002","E07000050","North Dorset","Rural"]
[null,"E02004257","North Dorset 003","E07000050","North Dorset","Rural"]
[null,"E02004258","North Dorset 004","E07000050","North Dorset","Rural"]
[null,"E02004259","North Dorset 005","E07000050","North Dorset","Rural"]
[null,"E02004260","North Dorset 006","E07000050","North Dorset","Rural"]
[null,"E02004261","North Dorset 007","E07000050","North Dorset","Rural"]
[null,"E02004262","North Dorset 008","E07000050","North Dorset","Rural"]
[null,"E02004263","Purbeck 001","E07000051","Purbeck","Rural"]
[null,"E02004264","Purbeck 002","E07000051","Purbeck","Other Urban"]
[null,"E02004265","Purbeck 003","E07000051","Purbeck","Rural"]
[null,"E02004266","Purbeck 004","E07000051","Purbeck","Rural"]
[null,"E02004267","Purbeck 005","E07000051","Purbeck","Rural"]
[null,"E02004268","Purbeck 006","E07000051","Purbeck","Other Urban"]
[null,"E02004269","West Dorset 001","E07000052","West Dorset","Rural"]
[null,"E02004270","West Dorset 002","E07000052","West Dorset","Rural"]
[null,"E02004271","West Dorset 003","E07000052","West Dorset","Rural"]
[null,"E02004272","West Dorset 004","E07000052","West Dorset","Rural"]
[null,"E02004273","West Dorset 005","E07000052","West Dorset","Rural"]
[null,"E02004274","West Dorset 006","E07000052","West Dorset","Rural"]
[null,"E02004275","West Dorset 007","E07000052","West Dorset","Rural"]
[null,"E02004276","West Dorset 008","E07000052","West Dorset","Rural"]
[null,"E02004277","West Dorset 009","E07000052","West Dorset","Other Urban"]
[null,"E02004278","West Dorset 010","E07000052","West Dorset","Other Urban"]
[null,"E02004279","West Dorset 011","E07000052","West Dorset","Rural"]
[null,"E02004280","West Dorset 012","E07000052","West Dorset","Rural"]
[null,"E02004281","Weymouth and Portland 001","E07000053","Weymouth and Portland","Other Urban"]
[null,"E02004282","Weymouth and Portland 002","E07000053","Weymouth and Portland","Other Urban"]
[null,"E02004283","Weymouth and Portland 003","E07000053","Weymouth and Portland","Other Urban"]
[null,"E02004284","Weymouth and Portland 004","E07000053","Weymouth and Portland","Other Urban"]
[null,"E02004285","Weymouth and Portland 005","E07000053","Weymouth and Portland","Other Urban"]
[null,"E02004286","Weymouth and Portland 006","E07000053","Weymouth and Portland","Other Urban"]
[null,"E02004287","Weymouth and Portland 007","E07000053","Weymouth and Portland","Other Urban"]
[null,"E02004288","Weymouth and Portland 008","E07000053","Weymouth and Portland","Rural"]
[null,"E02004289","Weymouth and Portland 009","E07000053","Weymouth and Portland","Rural"]
[null,"E02004290","County Durham 002","E06000047","County Durham","Rural"]
[null,"E02004291","County Durham 005","E06000047","County Durham","Rural"]
[null,"E02004292","County Durham 007","E06000047","County Durham","Other Urban"]
[null,"E02004293","County Durham 011","E06000047","County Durham","Other Urban"]
[null,"E02004294","County Durham 013","E06000047","County Durham","Other Urban"]
[null,"E02004295","County Durham 015","E06000047","County Durham","Rural"]
[null,"E02004296","County Durham 019","E06000047","County Durham","Rural"]
[null,"E02004297","County Durham 001","E06000047","County Durham","Rural"]
[null,"E02004298","County Durham 003","E06000047","County Durham","Rural"]
[null,"E02004299","County Durham 004","E06000047","County Durham","Other Urban"]
[null,"E02004300","County Durham 006","E06000047","County Durham","Other Urban"]
[null,"E02004301","County Durham 008","E06000047","County Durham","Other Urban"]
[null,"E02004302","County Durham 009","E06000047","County Durham","Other Urban"]
[null,"E02004303","County Durham 010","E06000047","County Durham","Other Urban"]
[null,"E02004304","County Durham 012","E06000047","County Durham","Rural"]
[null,"E02004305","County Durham 014","E06000047","County Durham","Rural"]
[null,"E02004306","County Durham 020","E06000047","County Durham","Rural"]
[null,"E02004307","County Durham 024","E06000047","County Durham","Rural"]
[null,"E02004308","County Durham 022","E06000047","County Durham","Other Urban"]
[null,"E02004309","County Durham 023","E06000047","County Durham","Other Urban"]
[null,"E02004310","County Durham 026","E06000047","County Durham","Rural"]
[null,"E02004311","County Durham 027","E06000047","County Durham","Rural"]
[null,"E02004312","County Durham 028","E06000047","County Durham","Other Urban"]
[null,"E02004313","County Durham 029","E06000047","County Durham","Other Urban"]
[null,"E02004314","County Durham 030","E06000047","County Durham","Other Urban"]
[null,"E02004315","County Durham 033","E06000047","County Durham","Other Urban"]
[null,"E02004316","County Durham 031","E06000047","County Durham","Rural"]
[null,"E02004317","County Durham 038","E06000047","County Durham","Rural"]
[null,"E02004318","County Durham 041","E06000047","County Durham","Rural"]
[null,"E02004319","County Durham 044","E06000047","County Durham","Rural"]
[null,"E02004320","County Durham 016","E06000047","County Durham","Rural"]
[null,"E02004321","County Durham 017","E06000047","County Durham","Rural"]
[null,"E02004322","County Durham 018","E06000047","County Durham","Rural"]
[null,"E02004323","County Durham 021","E06000047","County Durham","Rural"]
[null,"E02004324","County Durham 025","E06000047","County Durham","Rural"]
[null,"E02004325","County Durham 032","E06000047","County Durham","Other Urban"]
[null,"E02004326","County Durham 034","E06000047","County Durham","Rural"]
[null,"E02004327","County Durham 036","E06000047","County Durham","Other Urban"]
[null,"E02004328","County Durham 035","E06000047","County Durham","Other Urban"]
[null,"E02004329","County Durham 037","E06000047","County Durham","Other Urban"]
[null,"E02004330","County Durham 039","E06000047","County Durham","Rural"]
[null,"E02004331","County Durham 040","E06000047","County Durham","Rural"]
[null,"E02004332","County Durham 043","E06000047","County Durham","Rural"]
[null,"E02004333","County Durham 047","E06000047","County Durham","Rural"]
[null,"E02004334","County Durham 048","E06000047","County Durham","Rural"]
[null,"E02004335","County Durham 049","E06000047","County Durham","Rural"]
[null,"E02004336","County Durham 050","E06000047","County Durham","Rural"]
[null,"E02004337","County Durham 052","E06000047","County Durham","Rural"]
[null,"E02004338","County Durham 053","E06000047","County Durham","Rural"]
[null,"E02004339","County Durham 054","E06000047","County Durham","Rural"]
[null,"E02004340","County Durham 059","E06000047","County Durham","Other Urban"]
[null,"E02004341","County Durham 060","E06000047","County Durham","Other Urban"]
[null,"E02004342","County Durham 061","E06000047","County Durham","Other Urban"]
[null,"E02004343","County Durham 062","E06000047","County Durham","Other Urban"]
[null,"E02004344","County Durham 063","E06000047","County Durham","Other Urban"]
[null,"E02004345","County Durham 064","E06000047","County Durham","Rural"]
[null,"E02004346","County Durham 065","E06000047","County Durham","Rural"]
[null,"E02004347","County Durham 066","E06000047","County Durham","Rural"]
[null,"E02004348","County Durham 042","E06000047","County Durham","Rural"]
[null,"E02004349","County Durham 045","E06000047","County Durham","Rural"]
[null,"E02004350","County Durham 046","E06000047","County Durham","Rural"]
[null,"E02004351","County Durham 051","E06000047","County Durham","Rural"]
[null,"E02004352","County Durham 055","E06000047","County Durham","Rural"]
[null,"E02004353","County Durham 056","E06000047","County Durham","Rural"]
[null,"E02004354","County Durham 057","E06000047","County Durham","Rural"]
[null,"E02004355","County Durham 058","E06000047","County Durham","Rural"]
[null,"E02004356","Eastbourne 001","E07000061","Eastbourne","Other Urban"]
[null,"E02004357","Eastbourne 002","E07000061","Eastbourne","Other Urban"]
[null,"E02004358","Eastbourne 003","E07000061","Eastbourne","Other Urban"]
[null,"E02004359","Eastbourne 004","E07000061","Eastbourne","Other Urban"]
[null,"E02004361","Eastbourne 006","E07000061","Eastbourne","Other Urban"]
[null,"E02004362","Eastbourne 007","E07000061","Eastbourne","Other Urban"]
[null,"E02004363","Eastbourne 008","E07000061","Eastbourne","Other Urban"]
[null,"E02004364","Eastbourne 009","E07000061","Eastbourne","Other Urban"]
[null,"E02004365","Eastbourne 010","E07000061","Eastbourne","Other Urban"]
[null,"E02004366","Eastbourne 011","E07000061","Eastbourne","Other Urban"]
[null,"E02004367","Eastbourne 012","E07000061","Eastbourne","Other Urban"]
[null,"E02004368","Hastings 001","E07000062","Hastings","Other Urban"]
[null,"E02004369","Hastings 002","E07000062","Hastings","Other Urban"]
[null,"E02004370","Hastings 003","E07000062","Hastings","Other Urban"]
[null,"E02004371","Hastings 004","E07000062","Hastings","Other Urban"]
[null,"E02004372","Hastings 005","E07000062","Hastings","Other Urban"]
[null,"E02004373","Hastings 006","E07000062","Hastings","Other Urban"]
[null,"E02004374","Hastings 007","E07000062","Hastings","Other Urban"]
[null,"E02004375","Hastings 008","E07000062","Hastings","Other Urban"]
[null,"E02004376","Hastings 009","E07000062","Hastings","Other Urban"]
[null,"E02004377","Hastings 010","E07000062","Hastings","Other Urban"]
[null,"E02004378","Hastings 011","E07000062","Hastings","Other Urban"]
[null,"E02004379","Lewes 001","E07000063","Lewes","Rural"]
[null,"E02004380","Lewes 002","E07000063","Lewes","Rural"]
[null,"E02004381","Lewes 003","E07000063","Lewes","Other Urban"]
[null,"E02004382","Lewes 004","E07000063","Lewes","Rural"]
[null,"E02004383","Lewes 005","E07000063","Lewes","Other Urban"]
[null,"E02004384","Lewes 006","E07000063","Lewes","Rural"]
[null,"E02004385","Lewes 007","E07000063","Lewes","Rural"]
[null,"E02004386","Lewes 008","E07000063","Lewes","Rural"]
[null,"E02004387","Lewes 009","E07000063","Lewes","Rural"]
[null,"E02004388","Lewes 010","E07000063","Lewes","Rural"]
[null,"E02004389","Lewes 011","E07000063","Lewes","Rural"]
[null,"E02004390","Lewes 012","E07000063","Lewes","Rural"]
[null,"E02004391","Lewes 013","E07000063","Lewes","Rural"]
[null,"E02004392","Rother 001","E07000064","Rother","Rural"]
[null,"E02004393","Rother 002","E07000064","Rother","Rural"]
[null,"E02004394","Rother 003","E07000064","Rother","Rural"]
[null,"E02004395","Rother 004","E07000064","Rother","Rural"]
[null,"E02004396","Rother 005","E07000064","Rother","Rural"]
[null,"E02004397","Rother 006","E07000064","Rother","Rural"]
[null,"E02004398","Rother 007","E07000064","Rother","Other Urban"]
[null,"E02004399","Rother 008","E07000064","Rother","Other Urban"]
[null,"E02004400","Rother 009","E07000064","Rother","Other Urban"]
[null,"E02004401","Rother 010","E07000064","Rother","Other Urban"]
[null,"E02004402","Rother 011","E07000064","Rother","Other Urban"]
[null,"E02004403","Wealden 001","E07000065","Wealden","Rural"]
[null,"E02004404","Wealden 002","E07000065","Wealden","Rural"]
[null,"E02004405","Wealden 003","E07000065","Wealden","Other Urban"]
[null,"E02004406","Wealden 004","E07000065","Wealden","Other Urban"]
[null,"E02004407","Wealden 005","E07000065","Wealden","Rural"]
[null,"E02004408","Wealden 006","E07000065","Wealden","Other Urban"]
[null,"E02004409","Wealden 007","E07000065","Wealden","Rural"]
[null,"E02004410","Wealden 008","E07000065","Wealden","Rural"]
[null,"E02004411","Wealden 009","E07000065","Wealden","Other Urban"]
[null,"E02004412","Wealden 010","E07000065","Wealden","Rural"]
[null,"E02004413","Wealden 011","E07000065","Wealden","Rural"]
[null,"E02004414","Wealden 012","E07000065","Wealden","Other Urban"]
[null,"E02004415","Wealden 013","E07000065","Wealden","Rural"]
[null,"E02004416","Wealden 014","E07000065","Wealden","Rural"]
[null,"E02004417","Wealden 015","E07000065","Wealden","Rural"]
[null,"E02004418","Wealden 016","E07000065","Wealden","Rural"]
[null,"E02004419","Wealden 017","E07000065","Wealden","Rural"]
[null,"E02004420","Wealden 018","E07000065","Wealden","Rural"]
[null,"E02004421","Wealden 019","E07000065","Wealden","Other Urban"]
[null,"E02004422","Wealden 020","E07000065","Wealden","Rural"]
[null,"E02004423","Wealden 021","E07000065","Wealden","Other Urban"]
[null,"E02004424","Basildon 001","E07000066","Basildon","Other Urban"]
[null,"E02004425","Basildon 002","E07000066","Basildon","Other Urban"]
[null,"E02004426","Basildon 003","E07000066","Basildon","Other Urban"]
[null,"E02004427","Basildon 004","E07000066","Basildon","Other Urban"]
[null,"E02004428","Basildon 005","E07000066","Basildon","Other Urban"]
[null,"E02004429","Basildon 006","E07000066","Basildon","Other Urban"]
[null,"E02004430","Basildon 007","E07000066","Basildon","Other Urban"]
[null,"E02004431","Basildon 008","E07000066","Basildon","Other Urban"]
[null,"E02004432","Basildon 009","E07000066","Basildon","Rural"]
[null,"E02004433","Basildon 010","E07000066","Basildon","Other Urban"]
[null,"E02004434","Basildon 011","E07000066","Basildon","Other Urban"]
[null,"E02004435","Basildon 012","E07000066","Basildon","Other Urban"]
[null,"E02004436","Basildon 013","E07000066","Basildon","Other Urban"]
[null,"E02004437","Basildon 014","E07000066","Basildon","Other Urban"]
[null,"E02004438","Basildon 015","E07000066","Basildon","Other Urban"]
[null,"E02004439","Basildon 016","E07000066","Basildon","Other Urban"]
[null,"E02004440","Basildon 017","E07000066","Basildon","Other Urban"]
[null,"E02004441","Basildon 018","E07000066","Basildon","Other Urban"]
[null,"E02004442","Basildon 019","E07000066","Basildon","Other Urban"]
[null,"E02004443","Basildon 020","E07000066","Basildon","Other Urban"]
[null,"E02004444","Basildon 021","E07000066","Basildon","Other Urban"]
[null,"E02004445","Basildon 022","E07000066","Basildon","Other Urban"]
[null,"E02004446","Braintree 001","E07000067","Braintree","Rural"]
[null,"E02004447","Braintree 002","E07000067","Braintree","Rural"]
[null,"E02004448","Braintree 003","E07000067","Braintree","Rural"]
[null,"E02004449","Braintree 004","E07000067","Braintree","Rural"]
[null,"E02004450","Braintree 005","E07000067","Braintree","Rural"]
[null,"E02004451","Braintree 006","E07000067","Braintree","Rural"]
[null,"E02004452","Braintree 007","E07000067","Braintree","Rural"]
[null,"E02004453","Braintree 008","E07000067","Braintree","Other Urban"]
[null,"E02004454","Braintree 009","E07000067","Braintree","Other Urban"]
[null,"E02004455","Braintree 010","E07000067","Braintree","Other Urban"]
[null,"E02004456","Braintree 011","E07000067","Braintree","Other Urban"]
[null,"E02004457","Braintree 012","E07000067","Braintree","Rural"]
[null,"E02004458","Braintree 013","E07000067","Braintree","Other Urban"]
[null,"E02004459","Braintree 014","E07000067","Braintree","Rural"]
[null,"E02004460","Braintree 015","E07000067","Braintree","Rural"]
[null,"E02004461","Braintree 016","E07000067","Braintree","Rural"]
[null,"E02004462","Braintree 017","E07000067","Braintree","Other Urban"]
[null,"E02004463","Braintree 018","E07000067","Braintree","Rural"]
[null,"E02004464","Brentwood 001","E07000068","Brentwood","Rural"]
[null,"E02004465","Brentwood 002","E07000068","Brentwood","Rural"]
[null,"E02004466","Brentwood 003","E07000068","Brentwood","Other Urban"]
[null,"E02004467","Brentwood 004","E07000068","Brentwood","Other Urban"]
[null,"E02004468","Brentwood 005","E07000068","Brentwood","Other Urban"]
[null,"E02004469","Brentwood 006","E07000068","Brentwood","Other Urban"]
[null,"E02004470","Brentwood 007","E07000068","Brentwood","Other Urban"]
[null,"E02004471","Brentwood 008","E07000068","Brentwood","Rural"]
[null,"E02004472","Brentwood 009","E07000068","Brentwood","Rural"]
[null,"E02004473","Castle Point 001","E07000069","Castle Point","Other Urban"]
[null,"E02004474","Castle Point 002","E07000069","Castle Point","Other Urban"]
[null,"E02004475","Castle Point 003","E07000069","Castle Point","Other Urban"]
[null,"E02004476","Castle Point 004","E07000069","Castle Point","Other Urban"]
[null,"E02004477","Castle Point 005","E07000069","Castle Point","Other Urban"]
[null,"E02004478","Castle Point 006","E07000069","Castle Point","Other Urban"]
[null,"E02004479","Castle Point 007","E07000069","Castle Point","Other Urban"]
[null,"E02004480","Castle Point 008","E07000069","Castle Point","Other Urban"]
[null,"E02004481","Castle Point 009","E07000069","Castle Point","Other Urban"]
[null,"E02004482","Castle Point 010","E07000069","Castle Point","Other Urban"]
[null,"E02004483","Castle Point 011","E07000069","Castle Point","Other Urban"]
[null,"E02004484","Castle Point 012","E07000069","Castle Point","Rural"]
[null,"E02004485","Chelmsford 001","E07000070","Chelmsford","Rural"]
[null,"E02004486","Chelmsford 002","E07000070","Chelmsford","Other Urban"]
[null,"E02004487","Chelmsford 003","E07000070","Chelmsford","Rural"]
[null,"E02004488","Chelmsford 004","E07000070","Chelmsford","Other Urban"]
[null,"E02004489","Chelmsford 005","E07000070","Chelmsford","Rural"]
[null,"E02004490","Chelmsford 006","E07000070","Chelmsford","Other Urban"]
[null,"E02004491","Chelmsford 007","E07000070","Chelmsford","Other Urban"]
[null,"E02004492","Chelmsford 008","E07000070","Chelmsford","Other Urban"]
[null,"E02004493","Chelmsford 009","E07000070","Chelmsford","Other Urban"]
[null,"E02004494","Chelmsford 010","E07000070","Chelmsford","Other Urban"]
[null,"E02004495","Chelmsford 011","E07000070","Chelmsford","Rural"]
[null,"E02004496","Chelmsford 012","E07000070","Chelmsford","Other Urban"]
[null,"E02004497","Chelmsford 013","E07000070","Chelmsford","Rural"]
[null,"E02004498","Chelmsford 014","E07000070","Chelmsford","Other Urban"]
[null,"E02004499","Chelmsford 015","E07000070","Chelmsford","Other Urban"]
[null,"E02004500","Chelmsford 016","E07000070","Chelmsford","Rural"]
[null,"E02004501","Chelmsford 017","E07000070","Chelmsford","Other Urban"]
[null,"E02004502","Chelmsford 018","E07000070","Chelmsford","Rural"]
[null,"E02004503","Chelmsford 019","E07000070","Chelmsford","Rural"]
[null,"E02004504","Chelmsford 020","E07000070","Chelmsford","Rural"]
[null,"E02004505","Chelmsford 021","E07000070","Chelmsford","Rural"]
[null,"E02004506","Colchester 001","E07000071","Colchester","Rural"]
[null,"E02004507","Colchester 002","E07000071","Colchester","Other Urban"]
[null,"E02004508","Colchester 003","E07000071","Colchester","Rural"]
[null,"E02004509","Colchester 004","E07000071","Colchester","Other Urban"]
[null,"E02004512","Colchester 007","E07000071","Colchester","Other Urban"]
[null,"E02004513","Colchester 008","E07000071","Colchester","Other Urban"]
[null,"E02004514","Colchester 009","E07000071","Colchester","Other Urban"]
[null,"E02004515","Colchester 010","E07000071","Colchester","Rural"]
[null,"E02004516","Colchester 011","E07000071","Colchester","Other Urban"]
[null,"E02004517","Colchester 012","E07000071","Colchester","Other Urban"]
[null,"E02004518","Colchester 013","E07000071","Colchester","Other Urban"]
[null,"E02004519","Colchester 014","E07000071","Colchester","Other Urban"]
[null,"E02004520","Colchester 015","E07000071","Colchester","Other Urban"]
[null,"E02004521","Colchester 016","E07000071","Colchester","Other Urban"]
[null,"E02004522","Colchester 017","E07000071","Colchester","Other Urban"]
[null,"E02004523","Colchester 018","E07000071","Colchester","Other Urban"]
[null,"E02004524","Colchester 019","E07000071","Colchester","Rural"]
[null,"E02004525","Colchester 020","E07000071","Colchester","Rural"]
[null,"E02004526","Colchester 021","E07000071","Colchester","Rural"]
[null,"E02004527","Epping Forest 001","E07000072","Epping Forest","Rural"]
[null,"E02004528","Epping Forest 002","E07000072","Epping Forest","Rural"]
[null,"E02004529","Epping Forest 003","E07000072","Epping Forest","Rural"]
[null,"E02004530","Epping Forest 004","E07000072","Epping Forest","Rural"]
[null,"E02004531","Epping Forest 005","E07000072","Epping Forest","Rural"]
[null,"E02004532","Epping Forest 006","E07000072","Epping Forest","Rural"]
[null,"E02004533","Epping Forest 007","E07000072","Epping Forest","Other Urban"]
[null,"E02004534","Epping Forest 008","E07000072","Epping Forest","Other Urban"]
[null,"E02004535","Epping Forest 009","E07000072","Epping Forest","Rural"]
[null,"E02004536","Epping Forest 010","E07000072","Epping Forest","Rural"]
[null,"E02004537","Epping Forest 011","E07000072","Epping Forest","Other Urban"]
[null,"E02004538","Epping Forest 012","E07000072","Epping Forest","Other Urban"]
[null,"E02004539","Epping Forest 013","E07000072","Epping Forest","Other Urban"]
[null,"E02004540","Epping Forest 014","E07000072","Epping Forest","Other Urban"]
[null,"E02004541","Epping Forest 015","E07000072","Epping Forest","Other Urban"]
[null,"E02004542","Epping Forest 016","E07000072","Epping Forest","Other Urban"]
[null,"E02004543","Epping Forest 017","E07000072","Epping Forest","Other Urban"]
[null,"E02004544","Harlow 001","E07000073","Harlow","Other Urban"]
[null,"E02004545","Harlow 002","E07000073","Harlow","Other Urban"]
[null,"E02004546","Harlow 003","E07000073","Harlow","Other Urban"]
[null,"E02004547","Harlow 004","E07000073","Harlow","Other Urban"]
[null,"E02004548","Harlow 005","E07000073","Harlow","Other Urban"]
[null,"E02004549","Harlow 006","E07000073","Harlow","Other Urban"]
[null,"E02004550","Harlow 007","E07000073","Harlow","Other Urban"]
[null,"E02004551","Harlow 008","E07000073","Harlow","Other Urban"]
[null,"E02004552","Harlow 009","E07000073","Harlow","Other Urban"]
[null,"E02004553","Harlow 010","E07000073","Harlow","Other Urban"]
[null,"E02004554","Harlow 011","E07000073","Harlow","Other Urban"]
[null,"E02004555","Maldon 001","E07000074","Maldon","Rural"]
[null,"E02004556","Maldon 002","E07000074","Maldon","Rural"]
[null,"E02004557","Maldon 003","E07000074","Maldon","Other Urban"]
[null,"E02004558","Maldon 004","E07000074","Maldon","Other Urban"]
[null,"E02004559","Maldon 005","E07000074","Maldon","Other Urban"]
[null,"E02004560","Maldon 006","E07000074","Maldon","Rural"]
[null,"E02004561","Maldon 007","E07000074","Maldon","Rural"]
[null,"E02004562","Maldon 008","E07000074","Maldon","Rural"]
[null,"E02004563","Rochford 001","E07000075","Rochford","Rural"]
[null,"E02004564","Rochford 002","E07000075","Rochford","Other Urban"]
[null,"E02004565","Rochford 003","E07000075","Rochford","Other Urban"]
[null,"E02004566","Rochford 004","E07000075","Rochford","Rural"]
[null,"E02004567","Rochford 005","E07000075","Rochford","Other Urban"]
[null,"E02004568","Rochford 006","E07000075","Rochford","Other Urban"]
[null,"E02004569","Rochford 007","E07000075","Rochford","Other Urban"]
[null,"E02004570","Rochford 008","E07000075","Rochford","Other Urban"]
[null,"E02004571","Rochford 009","E07000075","Rochford","Other Urban"]
[null,"E02004572","Rochford 010","E07000075","Rochford","Rural"]
[null,"E02004573","Tendring 001","E07000076","Tendring","Other Urban"]
[null,"E02004574","Tendring 002","E07000076","Tendring","Other Urban"]
[null,"E02004575","Tendring 003","E07000076","Tendring","Rural"]
[null,"E02004576","Tendring 004","E07000076","Tendring","Rural"]
[null,"E02004577","Tendring 005","E07000076","Tendring","Rural"]
[null,"E02004578","Tendring 006","E07000076","Tendring","Rural"]
[null,"E02004579","Tendring 007","E07000076","Tendring","Rural"]
[null,"E02004580","Tendring 008","E07000076","Tendring","Other Urban"]
[null,"E02004581","Tendring 009","E07000076","Tendring","Rural"]
[null,"E02004582","Tendring 010","E07000076","Tendring","Other Urban"]
[null,"E02004583","Tendring 011","E07000076","Tendring","Rural"]
[null,"E02004584","Tendring 012","E07000076","Tendring","Other Urban"]
[null,"E02004585","Tendring 013","E07000076","Tendring","Other Urban"]
[null,"E02004586","Tendring 014","E07000076","Tendring","Other Urban"]
[null,"E02004587","Tendring 015","E07000076","Tendring","Other Urban"]
[null,"E02004588","Tendring 016","E07000076","Tendring","Other Urban"]
[null,"E02004589","Tendring 017","E07000076","Tendring","Other Urban"]
[null,"E02004590","Tendring 018","E07000076","Tendring","Rural"]
[null,"E02004591","Uttlesford 001","E07000077","Uttlesford","Rural"]
[null,"E02004592","Uttlesford 002","E07000077","Uttlesford","Other Urban"]
[null,"E02004593","Uttlesford 003","E07000077","Uttlesford","Rural"]
[null,"E02004594","Uttlesford 004","E07000077","Uttlesford","Rural"]
[null,"E02004595","Uttlesford 005","E07000077","Uttlesford","Rural"]
[null,"E02004596","Uttlesford 006","E07000077","Uttlesford","Rural"]
[null,"E02004597","Uttlesford 007","E07000077","Uttlesford","Rural"]
[null,"E02004598","Uttlesford 008","E07000077","Uttlesford","Rural"]
[null,"E02004599","Uttlesford 009","E07000077","Uttlesford","Rural"]
[null,"E02004600","Cheltenham 001","E07000078","Cheltenham","Other Urban"]
[null,"E02004601","Cheltenham 002","E07000078","Cheltenham","Other Urban"]
[null,"E02004602","Cheltenham 003","E07000078","Cheltenham","Other Urban"]
[null,"E02004603","Cheltenham 004","E07000078","Cheltenham","Other Urban"]
[null,"E02004604","Cheltenham 005","E07000078","Cheltenham","Other Urban"]
[null,"E02004605","Cheltenham 006","E07000078","Cheltenham","Other Urban"]
[null,"E02004606","Cheltenham 007","E07000078","Cheltenham","Other Urban"]
[null,"E02004607","Cheltenham 008","E07000078","Cheltenham","Other Urban"]
[null,"E02004608","Cheltenham 009","E07000078","Cheltenham","Other Urban"]
[null,"E02004609","Cheltenham 010","E07000078","Cheltenham","Other Urban"]
[null,"E02004610","Cheltenham 011","E07000078","Cheltenham","Other Urban"]
[null,"E02004611","Cheltenham 012","E07000078","Cheltenham","Other Urban"]
[null,"E02004612","Cheltenham 013","E07000078","Cheltenham","Other Urban"]
[null,"E02004613","Cheltenham 014","E07000078","Cheltenham","Other Urban"]
[null,"E02004614","Cheltenham 015","E07000078","Cheltenham","Other Urban"]
[null,"E02004615","Cotswold 001","E07000079","Cotswold","Rural"]
[null,"E02004616","Cotswold 002","E07000079","Cotswold","Rural"]
[null,"E02004617","Cotswold 003","E07000079","Cotswold","Rural"]
[null,"E02004618","Cotswold 004","E07000079","Cotswold","Rural"]
[null,"E02004619","Cotswold 005","E07000079","Cotswold","Rural"]
[null,"E02004620","Cotswold 006","E07000079","Cotswold","Other Urban"]
[null,"E02004621","Cotswold 007","E07000079","Cotswold","Other Urban"]
[null,"E02004622","Cotswold 008","E07000079","Cotswold","Other Urban"]
[null,"E02004623","Cotswold 009","E07000079","Cotswold","Rural"]
[null,"E02004624","Cotswold 010","E07000079","Cotswold","Rural"]
[null,"E02004625","Cotswold 011","E07000079","Cotswold","Rural"]
[null,"E02004626","Forest of Dean 001","E07000080","Forest of Dean","Rural"]
[null,"E02004627","Forest of Dean 002","E07000080","Forest of Dean","Rural"]
[null,"E02004628","Forest of Dean 003","E07000080","Forest of Dean","Rural"]
[null,"E02004629","Forest of Dean 004","E07000080","Forest of Dean","Rural"]
[null,"E02004630","Forest of Dean 005","E07000080","Forest of Dean","Rural"]
[null,"E02004631","Forest of Dean 006","E07000080","Forest of Dean","Rural"]
[null,"E02004632","Forest of Dean 007","E07000080","Forest of Dean","Rural"]
[null,"E02004633","Forest of Dean 008","E07000080","Forest of Dean","Rural"]
[null,"E02004634","Forest of Dean 009","E07000080","Forest of Dean","Rural"]
[null,"E02004635","Forest of Dean 010","E07000080","Forest of Dean","Rural"]
[null,"E02004636","Gloucester 001","E07000081","Gloucester","Other Urban"]
[null,"E02004637","Gloucester 002","E07000081","Gloucester","Other Urban"]
[null,"E02004638","Gloucester 003","E07000081","Gloucester","Other Urban"]
[null,"E02004639","Gloucester 004","E07000081","Gloucester","Other Urban"]
[null,"E02004640","Gloucester 005","E07000081","Gloucester","Other Urban"]
[null,"E02004641","Gloucester 006","E07000081","Gloucester","Other Urban"]
[null,"E02004642","Gloucester 007","E07000081","Gloucester","Other Urban"]
[null,"E02004643","Gloucester 008","E07000081","Gloucester","Other Urban"]
[null,"E02004644","Gloucester 009","E07000081","Gloucester","Other Urban"]
[null,"E02004645","Gloucester 010","E07000081","Gloucester","Other Urban"]
[null,"E02004646","Gloucester 011","E07000081","Gloucester","Other Urban"]
[null,"E02004647","Gloucester 012","E07000081","Gloucester","Other Urban"]
[null,"E02004648","Gloucester 013","E07000081","Gloucester","Other Urban"]
[null,"E02004649","Gloucester 014","E07000081","Gloucester","Other Urban"]
[null,"E02004650","Gloucester 015","E07000081","Gloucester","Other Urban"]
[null,"E02004651","Stroud 001","E07000082","Stroud","Rural"]
[null,"E02004652","Stroud 002","E07000082","Stroud","Rural"]
[null,"E02004653","Stroud 003","E07000082","Stroud","Rural"]
[null,"E02004654","Stroud 004","E07000082","Stroud","Other Urban"]
[null,"E02004655","Stroud 005","E07000082","Stroud","Other Urban"]
[null,"E02004656","Stroud 006","E07000082","Stroud","Other Urban"]
[null,"E02004657","Stroud 007","E07000082","Stroud","Other Urban"]
[null,"E02004658","Stroud 008","E07000082","Stroud","Rural"]
[null,"E02004659","Stroud 009","E07000082","Stroud","Rural"]
[null,"E02004660","Stroud 010","E07000082","Stroud","Rural"]
[null,"E02004661","Stroud 011","E07000082","Stroud","Rural"]
[null,"E02004662","Stroud 012","E07000082","Stroud","Rural"]
[null,"E02004663","Stroud 013","E07000082","Stroud","Rural"]
[null,"E02004664","Stroud 014","E07000082","Stroud","Rural"]
[null,"E02004665","Stroud 015","E07000082","Stroud","Rural"]
[null,"E02004666","Tewkesbury 001","E07000083","Tewkesbury","Rural"]
[null,"E02004667","Tewkesbury 002","E07000083","Tewkesbury","Other Urban"]
[null,"E02004668","Tewkesbury 003","E07000083","Tewkesbury","Rural"]
[null,"E02004669","Tewkesbury 004","E07000083","Tewkesbury","Rural"]
[null,"E02004670","Tewkesbury 005","E07000083","Tewkesbury","Rural"]
[null,"E02004671","Tewkesbury 006","E07000083","Tewkesbury","Rural"]
[null,"E02004672","Tewkesbury 007","E07000083","Tewkesbury","Other Urban"]
[null,"E02004673","Tewkesbury 008","E07000083","Tewkesbury","Rural"]
[null,"E02004674","Tewkesbury 009","E07000083","Tewkesbury","Other Urban"]
[null,"E02004675","Basingstoke and Deane 001","E07000084","Basingstoke and Deane","Rural"]
[null,"E02004676","Basingstoke and Deane 002","E07000084","Basingstoke and Deane","Rural"]
[null,"E02004677","Basingstoke and Deane 003","E07000084","Basingstoke and Deane","Rural"]
[null,"E02004678","Basingstoke and Deane 004","E07000084","Basingstoke and Deane","Rural"]
[null,"E02004679","Basingstoke and Deane 005","E07000084","Basingstoke and Deane","Rural"]
[null,"E02004680","Basingstoke and Deane 006","E07000084","Basingstoke and Deane","Other Urban"]
[null,"E02004681","Basingstoke and Deane 007","E07000084","Basingstoke and Deane","Other Urban"]
[null,"E02004682","Basingstoke and Deane 008","E07000084","Basingstoke and Deane","Other Urban"]
[null,"E02004683","Basingstoke and Deane 009","E07000084","Basingstoke and Deane","Other Urban"]
[null,"E02004684","Basingstoke and Deane 010","E07000084","Basingstoke and Deane","Other Urban"]
[null,"E02004685","Basingstoke and Deane 011","E07000084","Basingstoke and Deane","Other Urban"]
[null,"E02004686","Basingstoke and Deane 012","E07000084","Basingstoke and Deane","Other Urban"]
[null,"E02004687","Basingstoke and Deane 013","E07000084","Basingstoke and Deane","Other Urban"]
[null,"E02004688","Basingstoke and Deane 014","E07000084","Basingstoke and Deane","Other Urban"]
[null,"E02004689","Basingstoke and Deane 015","E07000084","Basingstoke and Deane","Rural"]
[null,"E02004690","Basingstoke and Deane 016","E07000084","Basingstoke and Deane","Other Urban"]
[null,"E02004691","Basingstoke and Deane 017","E07000084","Basingstoke and Deane","Rural"]
[null,"E02004692","Basingstoke and Deane 018","E07000084","Basingstoke and Deane","Other Urban"]
[null,"E02004693","Basingstoke and Deane 019","E07000084","Basingstoke and Deane","Other Urban"]
[null,"E02004694","Basingstoke and Deane 020","E07000084","Basingstoke and Deane","Rural"]
[null,"E02004695","Basingstoke and Deane 021","E07000084","Basingstoke and Deane","Other Urban"]
[null,"E02004696","Basingstoke and Deane 022","E07000084","Basingstoke and Deane","Rural"]
[null,"E02004697","East Hampshire 001","E07000085","East Hampshire","Rural"]
[null,"E02004698","East Hampshire 002","E07000085","East Hampshire","Other Urban"]
[null,"E02004699","East Hampshire 003","E07000085","East Hampshire","Other Urban"]
[null,"E02004700","East Hampshire 004","E07000085","East Hampshire","Rural"]
[null,"E02004702","East Hampshire 006","E07000085","East Hampshire","Rural"]
[null,"E02004703","East Hampshire 007","E07000085","East Hampshire","Rural"]
[null,"E02004704","East Hampshire 008","E07000085","East Hampshire","Rural"]
[null,"E02004705","East Hampshire 009","E07000085","East Hampshire","Rural"]
[null,"E02004706","East Hampshire 010","E07000085","East Hampshire","Rural"]
[null,"E02004707","East Hampshire 011","E07000085","East Hampshire","Rural"]
[null,"E02004708","East Hampshire 012","E07000085","East Hampshire","Other Urban"]
[null,"E02004709","East Hampshire 013","E07000085","East Hampshire","Rural"]
[null,"E02004710","East Hampshire 014","E07000085","East Hampshire","Other Urban"]
[null,"E02004712","Eastleigh 001","E07000086","Eastleigh","Other Urban"]
[null,"E02004713","Eastleigh 002","E07000086","Eastleigh","Other Urban"]
[null,"E02004714","Eastleigh 003","E07000086","Eastleigh","Other Urban"]
[null,"E02004715","Eastleigh 004","E07000086","Eastleigh","Other Urban"]
[null,"E02004716","Eastleigh 005","E07000086","Eastleigh","Other Urban"]
[null,"E02004717","Eastleigh 006","E07000086","Eastleigh","Other Urban"]
[null,"E02004718","Eastleigh 007","E07000086","Eastleigh","Other Urban"]
[null,"E02004719","Eastleigh 008","E07000086","Eastleigh","Other Urban"]
[null,"E02004720","Eastleigh 009","E07000086","Eastleigh","Other Urban"]
[null,"E02004721","Eastleigh 010","E07000086","Eastleigh","Rural"]
[null,"E02004722","Eastleigh 011","E07000086","Eastleigh","Rural"]
[null,"E02004723","Eastleigh 012","E07000086","Eastleigh","Rural"]
[null,"E02004724","Eastleigh 013","E07000086","Eastleigh","Other Urban"]
[null,"E02004725","Eastleigh 014","E07000086","Eastleigh","Rural"]
[null,"E02004726","Eastleigh 015","E07000086","Eastleigh","Rural"]
[null,"E02004727","Fareham 001","E07000087","Fareham","Other Urban"]
[null,"E02004728","Fareham 002","E07000087","Fareham","Other Urban"]
[null,"E02004729","Fareham 003","E07000087","Fareham","Other Urban"]
[null,"E02004730","Fareham 004","E07000087","Fareham","Other Urban"]
[null,"E02004731","Fareham 005","E07000087","Fareham","Other Urban"]
[null,"E02004732","Fareham 006","E07000087","Fareham","Other Urban"]
[null,"E02004733","Fareham 007","E07000087","Fareham","Other Urban"]
[null,"E02004734","Fareham 008","E07000087","Fareham","Other Urban"]
[null,"E02004735","Fareham 009","E07000087","Fareham","Other Urban"]
[null,"E02004736","Fareham 010","E07000087","Fareham","Other Urban"]
[null,"E02004737","Fareham 011","E07000087","Fareham","Other Urban"]
[null,"E02004738","Fareham 012","E07000087","Fareham","Other Urban"]
[null,"E02004739","Fareham 013","E07000087","Fareham","Other Urban"]
[null,"E02004740","Fareham 014","E07000087","Fareham","Other Urban"]
[null,"E02004741","Gosport 001","E07000088","Gosport","Other Urban"]
[null,"E02004742","Gosport 002","E07000088","Gosport","Other Urban"]
[null,"E02004743","Gosport 003","E07000088","Gosport","Other Urban"]
[null,"E02004744","Gosport 004","E07000088","Gosport","Other Urban"]
[null,"E02004745","Gosport 005","E07000088","Gosport","Other Urban"]
[null,"E02004746","Gosport 006","E07000088","Gosport","Other Urban"]
[null,"E02004747","Gosport 007","E07000088","Gosport","Other Urban"]
[null,"E02004748","Gosport 008","E07000088","Gosport","Other Urban"]
[null,"E02004749","Gosport 009","E07000088","Gosport","Other Urban"]
[null,"E02004750","Gosport 010","E07000088","Gosport","Other Urban"]
[null,"E02004751","Hart 001","E07000089","Hart","Other Urban"]
[null,"E02004752","Hart 002","E07000089","Hart","Other Urban"]
[null,"E02004753","Hart 003","E07000089","Hart","Other Urban"]
[null,"E02004754","Hart 004","E07000089","Hart","Rural"]
[null,"E02004755","Hart 005","E07000089","Hart","Other Urban"]
[null,"E02004756","Hart 006","E07000089","Hart","Rural"]
[null,"E02004757","Hart 007","E07000089","Hart","Other Urban"]
[null,"E02004758","Hart 008","E07000089","Hart","Rural"]
[null,"E02004759","Hart 009","E07000089","Hart","Other Urban"]
[null,"E02004760","Hart 010","E07000089","Hart","Rural"]
[null,"E02004761","Hart 011","E07000089","Hart","Rural"]
[null,"E02004764","Havant 003","E07000090","Havant","Other Urban"]
[null,"E02004765","Havant 004","E07000090","Havant","Other Urban"]
[null,"E02004766","Havant 005","E07000090","Havant","Other Urban"]
[null,"E02004767","Havant 006","E07000090","Havant","Other Urban"]
[null,"E02004768","Havant 007","E07000090","Havant","Other Urban"]
[null,"E02004769","Havant 008","E07000090","Havant","Other Urban"]
[null,"E02004770","Havant 009","E07000090","Havant","Other Urban"]
[null,"E02004771","Havant 010","E07000090","Havant","Other Urban"]
[null,"E02004772","Havant 011","E07000090","Havant","Other Urban"]
[null,"E02004774","Havant 013","E07000090","Havant","Rural"]
[null,"E02004775","Havant 014","E07000090","Havant","Other Urban"]
[null,"E02004776","Havant 015","E07000090","Havant","Rural"]
[null,"E02004777","Havant 016","E07000090","Havant","Rural"]
[null,"E02004778","Havant 017","E07000090","Havant","Rural"]
[null,"E02004779","New Forest 001","E07000091","New Forest","Rural"]
[null,"E02004780","New Forest 002","E07000091","New Forest","Other Urban"]
[null,"E02004781","New Forest 003","E07000091","New Forest","Other Urban"]
[null,"E02004782","New Forest 004","E07000091","New Forest","Other Urban"]
[null,"E02004783","New Forest 005","E07000091","New Forest","Other Urban"]
[null,"E02004784","New Forest 006","E07000091","New Forest","Rural"]
[null,"E02004785","New Forest 007","E07000091","New Forest","Rural"]
[null,"E02004786","New Forest 008","E07000091","New Forest","Rural"]
[null,"E02004787","New Forest 009","E07000091","New Forest","Rural"]
[null,"E02004788","New Forest 010","E07000091","New Forest","Rural"]
[null,"E02004789","New Forest 011","E07000091","New Forest","Rural"]
[null,"E02004790","New Forest 012","E07000091","New Forest","Rural"]
[null,"E02004791","New Forest 013","E07000091","New Forest","Rural"]
[null,"E02004792","New Forest 014","E07000091","New Forest","Rural"]
[null,"E02004793","New Forest 015","E07000091","New Forest","Rural"]
[null,"E02004794","New Forest 016","E07000091","New Forest","Rural"]
[null,"E02004795","New Forest 017","E07000091","New Forest","Rural"]
[null,"E02004796","New Forest 018","E07000091","New Forest","Other Urban"]
[null,"E02004797","New Forest 019","E07000091","New Forest","Rural"]
[null,"E02004798","New Forest 020","E07000091","New Forest","Other Urban"]
[null,"E02004799","New Forest 021","E07000091","New Forest","Other Urban"]
[null,"E02004800","New Forest 022","E07000091","New Forest","Other Urban"]
[null,"E02004801","New Forest 023","E07000091","New Forest","Rural"]
[null,"E02004802","Rushmoor 001","E07000092","Rushmoor","Other Urban"]
[null,"E02004803","Rushmoor 002","E07000092","Rushmoor","Other Urban"]
[null,"E02004804","Rushmoor 003","E07000092","Rushmoor","Other Urban"]
[null,"E02004805","Rushmoor 004","E07000092","Rushmoor","Other Urban"]
[null,"E02004806","Rushmoor 005","E07000092","Rushmoor","Other Urban"]
[null,"E02004807","Rushmoor 006","E07000092","Rushmoor","Other Urban"]
[null,"E02004808","Rushmoor 007","E07000092","Rushmoor","Other Urban"]
[null,"E02004809","Rushmoor 008","E07000092","Rushmoor","Other Urban"]
[null,"E02004810","Rushmoor 009","E07000092","Rushmoor","Other Urban"]
[null,"E02004811","Rushmoor 010","E07000092","Rushmoor","Other Urban"]
[null,"E02004812","Rushmoor 011","E07000092","Rushmoor","Other Urban"]
[null,"E02004813","Rushmoor 012","E07000092","Rushmoor","Other Urban"]
[null,"E02004814","Test Valley 001","E07000093","Test Valley","Rural"]
[null,"E02004815","Test Valley 002","E07000093","Test Valley","Other Urban"]
[null,"E02004816","Test Valley 003","E07000093","Test Valley","Other Urban"]
[null,"E02004817","Test Valley 004","E07000093","Test Valley","Other Urban"]
[null,"E02004818","Test Valley 005","E07000093","Test Valley","Rural"]
[null,"E02004819","Test Valley 006","E07000093","Test Valley","Other Urban"]
[null,"E02004820","Test Valley 007","E07000093","Test Valley","Rural"]
[null,"E02004821","Test Valley 008","E07000093","Test Valley","Rural"]
[null,"E02004822","Test Valley 009","E07000093","Test Valley","Rural"]
[null,"E02004823","Test Valley 010","E07000093","Test Valley","Rural"]
[null,"E02004824","Test Valley 011","E07000093","Test Valley","Rural"]
[null,"E02004825","Test Valley 012","E07000093","Test Valley","Rural"]
[null,"E02004826","Test Valley 013","E07000093","Test Valley","Rural"]
[null,"E02004827","Test Valley 014","E07000093","Test Valley","Other Urban"]
[null,"E02004828","Test Valley 015","E07000093","Test Valley","Other Urban"]
[null,"E02004829","Winchester 001","E07000094","Winchester","Rural"]
[null,"E02004830","Winchester 002","E07000094","Winchester","Rural"]
[null,"E02004831","Winchester 003","E07000094","Winchester","Rural"]
[null,"E02004832","Winchester 004","E07000094","Winchester","Rural"]
[null,"E02004833","Winchester 005","E07000094","Winchester","Other Urban"]
[null,"E02004834","Winchester 006","E07000094","Winchester","Other Urban"]
[null,"E02004835","Winchester 007","E07000094","Winchester","Other Urban"]
[null,"E02004836","Winchester 008","E07000094","Winchester","Other Urban"]
[null,"E02004837","Winchester 009","E07000094","Winchester","Rural"]
[null,"E02004838","Winchester 010","E07000094","Winchester","Rural"]
[null,"E02004839","Winchester 011","E07000094","Winchester","Rural"]
[null,"E02004840","Winchester 012","E07000094","Winchester","Rural"]
[null,"E02004841","Winchester 013","E07000094","Winchester","Rural"]
[null,"E02004842","Winchester 014","E07000094","Winchester","Rural"]
[null,"E02004843","Broxbourne 001","E07000095","Broxbourne","Other Urban"]
[null,"E02004844","Broxbourne 002","E07000095","Broxbourne","Other Urban"]
[null,"E02004845","Broxbourne 003","E07000095","Broxbourne","Other Urban"]
[null,"E02004846","Broxbourne 004","E07000095","Broxbourne","Other Urban"]
[null,"E02004847","Broxbourne 005","E07000095","Broxbourne","Other Urban"]
[null,"E02004848","Broxbourne 006","E07000095","Broxbourne","Other Urban"]
[null,"E02004849","Broxbourne 007","E07000095","Broxbourne","Other Urban"]
[null,"E02004850","Broxbourne 008","E07000095","Broxbourne","Other Urban"]
[null,"E02004851","Broxbourne 009","E07000095","Broxbourne","Other Urban"]
[null,"E02004852","Broxbourne 010","E07000095","Broxbourne","Other Urban"]
[null,"E02004853","Broxbourne 011","E07000095","Broxbourne","Other Urban"]
[null,"E02004854","Broxbourne 012","E07000095","Broxbourne","Other Urban"]
[null,"E02004855","Broxbourne 013","E07000095","Broxbourne","Other Urban"]
[null,"E02004856","Dacorum 001","E07000096","Dacorum","Rural"]
[null,"E02004857","Dacorum 002","E07000096","Dacorum","Rural"]
[null,"E02004858","Dacorum 003","E07000096","Dacorum","Rural"]
[null,"E02004859","Dacorum 004","E07000096","Dacorum","Rural"]
[null,"E02004860","Dacorum 005","E07000096","Dacorum","Other Urban"]
[null,"E02004861","Dacorum 006","E07000096","Dacorum","Rural"]
[null,"E02004862","Dacorum 007","E07000096","Dacorum","Other Urban"]
[null,"E02004863","Dacorum 008","E07000096","Dacorum","Other Urban"]
[null,"E02004864","Dacorum 009","E07000096","Dacorum","Other Urban"]
[null,"E02004865","Dacorum 010","E07000096","Dacorum","Other Urban"]
[null,"E02004866","Dacorum 011","E07000096","Dacorum","Other Urban"]
[null,"E02004867","Dacorum 012","E07000096","Dacorum","Other Urban"]
[null,"E02004868","Dacorum 013","E07000096","Dacorum","Other Urban"]
[null,"E02004869","Dacorum 014","E07000096","Dacorum","Other Urban"]
[null,"E02004870","Dacorum 015","E07000096","Dacorum","Other Urban"]
[null,"E02004871","Dacorum 016","E07000096","Dacorum","Other Urban"]
[null,"E02004872","Dacorum 017","E07000096","Dacorum","Other Urban"]
[null,"E02004873","Dacorum 018","E07000096","Dacorum","Other Urban"]
[null,"E02004874","Dacorum 019","E07000096","Dacorum","Other Urban"]
[null,"E02004875","Dacorum 020","E07000096","Dacorum","Other Urban"]
[null,"E02004876","Dacorum 021","E07000096","Dacorum","Rural"]
[null,"E02004877","Dacorum 022","E07000096","Dacorum","Other Urban"]
[null,"E02004878","East Hertfordshire 001","E07000097","East Hertfordshire","Rural"]
[null,"E02004879","East Hertfordshire 002","E07000097","East Hertfordshire","Rural"]
[null,"E02004880","East Hertfordshire 003","E07000097","East Hertfordshire","Rural"]
[null,"E02004881","East Hertfordshire 004","E07000097","East Hertfordshire","Other Urban"]
[null,"E02004882","East Hertfordshire 005","E07000097","East Hertfordshire","Other Urban"]
[null,"E02004883","East Hertfordshire 006","E07000097","East Hertfordshire","Rural"]
[null,"E02004884","East Hertfordshire 007","E07000097","East Hertfordshire","Other Urban"]
[null,"E02004885","East Hertfordshire 008","E07000097","East Hertfordshire","Other Urban"]
[null,"E02004886","East Hertfordshire 009","E07000097","East Hertfordshire","Rural"]
[null,"E02004887","East Hertfordshire 010","E07000097","East Hertfordshire","Rural"]
[null,"E02004888","East Hertfordshire 011","E07000097","East Hertfordshire","Other Urban"]
[null,"E02004889","East Hertfordshire 012","E07000097","East Hertfordshire","Other Urban"]
[null,"E02004890","East Hertfordshire 013","E07000097","East Hertfordshire","Other Urban"]
[null,"E02004891","East Hertfordshire 014","E07000097","East Hertfordshire","Other Urban"]
[null,"E02004892","East Hertfordshire 015","E07000097","East Hertfordshire","Other Urban"]
[null,"E02004893","East Hertfordshire 016","E07000097","East Hertfordshire","Other Urban"]
[null,"E02004894","East Hertfordshire 017","E07000097","East Hertfordshire","Other Urban"]
[null,"E02004895","East Hertfordshire 018","E07000097","East Hertfordshire","Rural"]
[null,"E02004896","Hertsmere 001","E07000098","Hertsmere","Other Urban"]
[null,"E02004897","Hertsmere 002","E07000098","Hertsmere","Rural"]
[null,"E02004898","Hertsmere 003","E07000098","Hertsmere","Other Urban"]
[null,"E02004899","Hertsmere 004","E07000098","Hertsmere","Rural"]
[null,"E02004900","Hertsmere 005","E07000098","Hertsmere","Rural"]
[null,"E02004901","Hertsmere 006","E07000098","Hertsmere","Other Urban"]
[null,"E02004902","Hertsmere 007","E07000098","Hertsmere","Other Urban"]
[null,"E02004903","Hertsmere 008","E07000098","Hertsmere","Other Urban"]
[null,"E02004904","Hertsmere 009","E07000098","Hertsmere","Other Urban"]
[null,"E02004905","Hertsmere 010","E07000098","Hertsmere","Rural"]
[null,"E02004906","Hertsmere 011","E07000098","Hertsmere","Other Urban"]
[null,"E02004907","Hertsmere 012","E07000098","Hertsmere","Other Urban"]
[null,"E02004908","Hertsmere 013","E07000098","Hertsmere","Other Urban"]
[null,"E02004909","North Hertfordshire 001","E07000099","North Hertfordshire","Other Urban"]
[null,"E02004910","North Hertfordshire 002","E07000099","North Hertfordshire","Rural"]
[null,"E02004911","North Hertfordshire 003","E07000099","North Hertfordshire","Other Urban"]
[null,"E02004912","North Hertfordshire 004","E07000099","North Hertfordshire","Other Urban"]
[null,"E02004913","North Hertfordshire 005","E07000099","North Hertfordshire","Rural"]
[null,"E02004914","North Hertfordshire 006","E07000099","North Hertfordshire","Other Urban"]
[null,"E02004915","North Hertfordshire 007","E07000099","North Hertfordshire","Other Urban"]
[null,"E02004916","North Hertfordshire 008","E07000099","North Hertfordshire","Other Urban"]
[null,"E02004917","North Hertfordshire 009","E07000099","North Hertfordshire","Other Urban"]
[null,"E02004918","North Hertfordshire 010","E07000099","North Hertfordshire","Other Urban"]
[null,"E02004919","North Hertfordshire 011","E07000099","North Hertfordshire","Other Urban"]
[null,"E02004920","North Hertfordshire 012","E07000099","North Hertfordshire","Other Urban"]
[null,"E02004921","North Hertfordshire 013","E07000099","North Hertfordshire","Other Urban"]
[null,"E02004922","North Hertfordshire 014","E07000099","North Hertfordshire","Rural"]
[null,"E02004923","North Hertfordshire 015","E07000099","North Hertfordshire","Rural"]
[null,"E02004924","St Albans 001","E07000100","St Albans","Other Urban"]
[null,"E02004925","St Albans 002","E07000100","St Albans","Other Urban"]
[null,"E02004926","St Albans 003","E07000100","St Albans","Other Urban"]
[null,"E02004927","St Albans 004","E07000100","St Albans","Rural"]
[null,"E02004928","St Albans 005","E07000100","St Albans","Other Urban"]
[null,"E02004929","St Albans 006","E07000100","St Albans","Rural"]
[null,"E02004930","St Albans 007","E07000100","St Albans","Other Urban"]
[null,"E02004931","St Albans 008","E07000100","St Albans","Other Urban"]
[null,"E02004932","St Albans 009","E07000100","St Albans","Other Urban"]
[null,"E02004933","St Albans 010","E07000100","St Albans","Other Urban"]
[null,"E02004934","St Albans 011","E07000100","St Albans","Other Urban"]
[null,"E02004935","St Albans 012","E07000100","St Albans","Other Urban"]
[null,"E02004936","St Albans 013","E07000100","St Albans","Other Urban"]
[null,"E02004937","St Albans 014","E07000100","St Albans","Other Urban"]
[null,"E02004938","St Albans 015","E07000100","St Albans","Other Urban"]
[null,"E02004939","St Albans 016","E07000100","St Albans","Other Urban"]
[null,"E02004940","St Albans 017","E07000100","St Albans","Other Urban"]
[null,"E02004941","St Albans 018","E07000100","St Albans","Other Urban"]
[null,"E02004942","St Albans 019","E07000100","St Albans","Other Urban"]
[null,"E02004943","St Albans 020","E07000100","St Albans","Rural"]
[null,"E02004944","Stevenage 001","E07000101","Stevenage","Other Urban"]
[null,"E02004945","Stevenage 002","E07000101","Stevenage","Other Urban"]
[null,"E02004946","Stevenage 003","E07000101","Stevenage","Other Urban"]
[null,"E02004947","Stevenage 004","E07000101","Stevenage","Other Urban"]
[null,"E02004948","Stevenage 005","E07000101","Stevenage","Other Urban"]
[null,"E02004949","Stevenage 006","E07000101","Stevenage","Other Urban"]
[null,"E02004950","Stevenage 007","E07000101","Stevenage","Other Urban"]
[null,"E02004951","Stevenage 008","E07000101","Stevenage","Other Urban"]
[null,"E02004952","Stevenage 009","E07000101","Stevenage","Other Urban"]
[null,"E02004953","Stevenage 010","E07000101","Stevenage","Other Urban"]
[null,"E02004954","Stevenage 011","E07000101","Stevenage","Other Urban"]
[null,"E02004955","Stevenage 012","E07000101","Stevenage","Other Urban"]
[null,"E02004956","Three Rivers 001","E07000102","Three Rivers","Other Urban"]
[null,"E02004957","Three Rivers 002","E07000102","Three Rivers","Other Urban"]
[null,"E02004958","Three Rivers 003","E07000102","Three Rivers","Rural"]
[null,"E02004959","Three Rivers 004","E07000102","Three Rivers","Other Urban"]
[null,"E02004960","Three Rivers 005","E07000102","Three Rivers","Other Urban"]
[null,"E02004961","Three Rivers 006","E07000102","Three Rivers","Other Urban"]
[null,"E02004962","Three Rivers 007","E07000102","Three Rivers","Other Urban"]
[null,"E02004963","Three Rivers 008","E07000102","Three Rivers","Other Urban"]
[null,"E02004964","Three Rivers 009","E07000102","Three Rivers","Rural"]
[null,"E02004965","Three Rivers 010","E07000102","Three Rivers","Other Urban"]
[null,"E02004966","Three Rivers 011","E07000102","Three Rivers","Other Urban"]
[null,"E02004967","Three Rivers 012","E07000102","Three Rivers","Other Urban"]
[null,"E02004968","Watford 001","E07000103","Watford","Other Urban"]
[null,"E02004969","Watford 002","E07000103","Watford","Other Urban"]
[null,"E02004970","Watford 003","E07000103","Watford","Other Urban"]
[null,"E02004971","Watford 004","E07000103","Watford","Other Urban"]
[null,"E02004972","Watford 005","E07000103","Watford","Other Urban"]
[null,"E02004973","Watford 006","E07000103","Watford","Other Urban"]
[null,"E02004974","Watford 007","E07000103","Watford","Other Urban"]
[null,"E02004975","Watford 008","E07000103","Watford","Other Urban"]
[null,"E02004976","Watford 009","E07000103","Watford","Other Urban"]
[null,"E02004977","Watford 010","E07000103","Watford","Other Urban"]
[null,"E02004978","Watford 011","E07000103","Watford","Other Urban"]
[null,"E02004979","Watford 012","E07000103","Watford","Other Urban"]
[null,"E02004980","Welwyn Hatfield 001","E07000104","Welwyn Hatfield","Other Urban"]
[null,"E02004981","Welwyn Hatfield 002","E07000104","Welwyn Hatfield","Rural"]
[null,"E02004982","Welwyn Hatfield 003","E07000104","Welwyn Hatfield","Other Urban"]
[null,"E02004983","Welwyn Hatfield 004","E07000104","Welwyn Hatfield","Other Urban"]
[null,"E02004984","Welwyn Hatfield 005","E07000104","Welwyn Hatfield","Other Urban"]
[null,"E02004985","Welwyn Hatfield 006","E07000104","Welwyn Hatfield","Other Urban"]
[null,"E02004986","Welwyn Hatfield 007","E07000104","Welwyn Hatfield","Other Urban"]
[null,"E02004987","Welwyn Hatfield 008","E07000104","Welwyn Hatfield","Other Urban"]
[null,"E02004988","Welwyn Hatfield 009","E07000104","Welwyn Hatfield","Other Urban"]
[null,"E02004989","Welwyn Hatfield 010","E07000104","Welwyn Hatfield","Other Urban"]
[null,"E02004990","Welwyn Hatfield 011","E07000104","Welwyn Hatfield","Rural"]
[null,"E02004991","Welwyn Hatfield 012","E07000104","Welwyn Hatfield","Other Urban"]
[null,"E02004992","Welwyn Hatfield 013","E07000104","Welwyn Hatfield","Other Urban"]
[null,"E02004993","Welwyn Hatfield 014","E07000104","Welwyn Hatfield","Other Urban"]
[null,"E02004994","Welwyn Hatfield 015","E07000104","Welwyn Hatfield","Rural"]
[null,"E02004995","Welwyn Hatfield 016","E07000104","Welwyn Hatfield","Rural"]
[null,"E02004996","Ashford 001","E07000105","Ashford","Rural"]
[null,"E02004997","Ashford 002","E07000105","Ashford","Rural"]
[null,"E02004998","Ashford 003","E07000105","Ashford","Other Urban"]
[null,"E02004999","Ashford 004","E07000105","Ashford","Other Urban"]
[null,"E02005000","Ashford 005","E07000105","Ashford","Other Urban"]
[null,"E02005001","Ashford 006","E07000105","Ashford","Other Urban"]
[null,"E02005002","Ashford 007","E07000105","Ashford","Other Urban"]
[null,"E02005003","Ashford 008","E07000105","Ashford","Other Urban"]
[null,"E02005004","Ashford 009","E07000105","Ashford","Other Urban"]
[null,"E02005005","Ashford 010","E07000105","Ashford","Rural"]
[null,"E02005006","Ashford 011","E07000105","Ashford","Rural"]
[null,"E02005007","Ashford 012","E07000105","Ashford","Rural"]
[null,"E02005008","Ashford 013","E07000105","Ashford","Rural"]
[null,"E02005009","Ashford 014","E07000105","Ashford","Rural"]
[null,"E02005010","Canterbury 001","E07000106","Canterbury","Other Urban"]
[null,"E02005011","Canterbury 002","E07000106","Canterbury","Other Urban"]
[null,"E02005012","Canterbury 003","E07000106","Canterbury","Other Urban"]
[null,"E02005013","Canterbury 004","E07000106","Canterbury","Other Urban"]
[null,"E02005014","Canterbury 005","E07000106","Canterbury","Other Urban"]
[null,"E02005015","Canterbury 006","E07000106","Canterbury","Other Urban"]
[null,"E02005016","Canterbury 007","E07000106","Canterbury","Other Urban"]
[null,"E02005017","Canterbury 008","E07000106","Canterbury","Other Urban"]
[null,"E02005018","Canterbury 009","E07000106","Canterbury","Rural"]
[null,"E02005019","Canterbury 010","E07000106","Canterbury","Rural"]
[null,"E02005020","Canterbury 011","E07000106","Canterbury","Rural"]
[null,"E02005021","Canterbury 012","E07000106","Canterbury","Other Urban"]
[null,"E02005022","Canterbury 013","E07000106","Canterbury","Other Urban"]
[null,"E02005023","Canterbury 014","E07000106","Canterbury","Other Urban"]
[null,"E02005025","Canterbury 016","E07000106","Canterbury","Other Urban"]
[null,"E02005026","Canterbury 017","E07000106","Canterbury","Rural"]
[null,"E02005027","Canterbury 018","E07000106","Canterbury","Rural"]
[null,"E02005028","Dartford 001","E07000107","Dartford","Other Urban"]
[null,"E02005029","Dartford 002","E07000107","Dartford","Other Urban"]
[null,"E02005030","Dartford 003","E07000107","Dartford","Other Urban"]
[null,"E02005031","Dartford 004","E07000107","Dartford","Other Urban"]
[null,"E02005032","Dartford 005","E07000107","Dartford","Other Urban"]
[null,"E02005033","Dartford 006","E07000107","Dartford","Other Urban"]
[null,"E02005034","Dartford 007","E07000107","Dartford","Other Urban"]
[null,"E02005035","Dartford 008","E07000107","Dartford","Other Urban"]
[null,"E02005036","Dartford 009","E07000107","Dartford","Other Urban"]
[null,"E02005037","Dartford 010","E07000107","Dartford","Other Urban"]
[null,"E02005038","Dartford 011","E07000107","Dartford","Other Urban"]
[null,"E02005039","Dartford 012","E07000107","Dartford","Rural"]
[null,"E02005040","Dartford 013","E07000107","Dartford","Rural"]
[null,"E02005041","Dover 001","E07000108","Dover","Rural"]
[null,"E02005042","Dover 002","E07000108","Dover","Rural"]
[null,"E02005043","Dover 003","E07000108","Dover","Other Urban"]
[null,"E02005044","Dover 004","E07000108","Dover","Other Urban"]
[null,"E02005045","Dover 005","E07000108","Dover","Rural"]
[null,"E02005046","Dover 006","E07000108","Dover","Rural"]
[null,"E02005047","Dover 007","E07000108","Dover","Other Urban"]
[null,"E02005048","Dover 008","E07000108","Dover","Rural"]
[null,"E02005049","Dover 009","E07000108","Dover","Rural"]
[null,"E02005050","Dover 010","E07000108","Dover","Other Urban"]
[null,"E02005051","Dover 011","E07000108","Dover","Other Urban"]
[null,"E02005052","Dover 012","E07000108","Dover","Other Urban"]
[null,"E02005053","Dover 013","E07000108","Dover","Other Urban"]
[null,"E02005054","Dover 014","E07000108","Dover","Rural"]
[null,"E02005055","Gravesham 001","E07000109","Gravesham","Other Urban"]
[null,"E02005056","Gravesham 002","E07000109","Gravesham","Other Urban"]
[null,"E02005057","Gravesham 003","E07000109","Gravesham","Other Urban"]
[null,"E02005058","Gravesham 004","E07000109","Gravesham","Other Urban"]
[null,"E02005059","Gravesham 005","E07000109","Gravesham","Other Urban"]
[null,"E02005060","Gravesham 006","E07000109","Gravesham","Other Urban"]
[null,"E02005061","Gravesham 007","E07000109","Gravesham","Other Urban"]
[null,"E02005062","Gravesham 008","E07000109","Gravesham","Other Urban"]
[null,"E02005063","Gravesham 009","E07000109","Gravesham","Other Urban"]
[null,"E02005064","Gravesham 010","E07000109","Gravesham","Rural"]
[null,"E02005065","Gravesham 011","E07000109","Gravesham","Other Urban"]
[null,"E02005066","Gravesham 012","E07000109","Gravesham","Rural"]
[null,"E02005067","Gravesham 013","E07000109","Gravesham","Rural"]
[null,"E02005068","Maidstone 001","E07000110","Maidstone","Rural"]
[null,"E02005069","Maidstone 002","E07000110","Maidstone","Other Urban"]
[null,"E02005070","Maidstone 003","E07000110","Maidstone","Other Urban"]
[null,"E02005071","Maidstone 004","E07000110","Maidstone","Other Urban"]
[null,"E02005072","Maidstone 005","E07000110","Maidstone","Other Urban"]
[null,"E02005073","Maidstone 006","E07000110","Maidstone","Other Urban"]
[null,"E02005074","Maidstone 007","E07000110","Maidstone","Other Urban"]
[null,"E02005075","Maidstone 008","E07000110","Maidstone","Other Urban"]
[null,"E02005076","Maidstone 009","E07000110","Maidstone","Other Urban"]
[null,"E02005077","Maidstone 010","E07000110","Maidstone","Other Urban"]
[null,"E02005078","Maidstone 011","E07000110","Maidstone","Rural"]
[null,"E02005079","Maidstone 012","E07000110","Maidstone","Other Urban"]
[null,"E02005080","Maidstone 013","E07000110","Maidstone","Other Urban"]
[null,"E02005081","Maidstone 014","E07000110","Maidstone","Rural"]
[null,"E02005082","Maidstone 015","E07000110","Maidstone","Rural"]
[null,"E02005083","Maidstone 016","E07000110","Maidstone","Other Urban"]
[null,"E02005084","Maidstone 017","E07000110","Maidstone","Rural"]
[null,"E02005085","Maidstone 018","E07000110","Maidstone","Rural"]
[null,"E02005086","Maidstone 019","E07000110","Maidstone","Rural"]
[null,"E02005087","Sevenoaks 001","E07000111","Sevenoaks","Other Urban"]
[null,"E02005088","Sevenoaks 002","E07000111","Sevenoaks","Other Urban"]
[null,"E02005089","Sevenoaks 003","E07000111","Sevenoaks","Rural"]
[null,"E02005090","Sevenoaks 004","E07000111","Sevenoaks","Rural"]
[null,"E02005091","Sevenoaks 005","E07000111","Sevenoaks","Rural"]
[null,"E02005093","Sevenoaks 007","E07000111","Sevenoaks","Rural"]
[null,"E02005094","Sevenoaks 008","E07000111","Sevenoaks","Rural"]
[null,"E02005095","Sevenoaks 009","E07000111","Sevenoaks","Rural"]
[null,"E02005096","Sevenoaks 010","E07000111","Sevenoaks","Other Urban"]
[null,"E02005097","Sevenoaks 011","E07000111","Sevenoaks","Other Urban"]
[null,"E02005098","Sevenoaks 012","E07000111","Sevenoaks","Other Urban"]
[null,"E02005099","Sevenoaks 013","E07000111","Sevenoaks","Rural"]
[null,"E02005100","Sevenoaks 014","E07000111","Sevenoaks","Rural"]
[null,"E02005101","Sevenoaks 015","E07000111","Sevenoaks","Rural"]
[null,"E02005102","Shepway 001","E07000112","Shepway","Rural"]
[null,"E02005103","Shepway 002","E07000112","Shepway","Rural"]
[null,"E02005104","Shepway 003","E07000112","Shepway","Other Urban"]
[null,"E02005105","Shepway 004","E07000112","Shepway","Other Urban"]
[null,"E02005106","Shepway 005","E07000112","Shepway","Other Urban"]
[null,"E02005107","Shepway 006","E07000112","Shepway","Other Urban"]
[null,"E02005109","Shepway 008","E07000112","Shepway","Rural"]
[null,"E02005110","Shepway 009","E07000112","Shepway","Rural"]
[null,"E02005111","Shepway 010","E07000112","Shepway","Other Urban"]
[null,"E02005112","Shepway 011","E07000112","Shepway","Rural"]
[null,"E02005113","Shepway 012","E07000112","Shepway","Rural"]
[null,"E02005114","Shepway 013","E07000112","Shepway","Rural"]
[null,"E02005115","Swale 001","E07000113","Swale","Rural"]
[null,"E02005116","Swale 002","E07000113","Swale","Rural"]
[null,"E02005117","Swale 003","E07000113","Swale","Rural"]
[null,"E02005118","Swale 004","E07000113","Swale","Rural"]
[null,"E02005119","Swale 005","E07000113","Swale","Rural"]
[null,"E02005120","Swale 006","E07000113","Swale","Rural"]
[null,"E02005121","Swale 007","E07000113","Swale","Rural"]
[null,"E02005122","Swale 008","E07000113","Swale","Rural"]
[null,"E02005123","Swale 009","E07000113","Swale","Other Urban"]
[null,"E02005124","Swale 010","E07000113","Swale","Other Urban"]
[null,"E02005125","Swale 011","E07000113","Swale","Other Urban"]
[null,"E02005126","Swale 012","E07000113","Swale","Other Urban"]
[null,"E02005127","Swale 013","E07000113","Swale","Rural"]
[null,"E02005128","Swale 014","E07000113","Swale","Other Urban"]
[null,"E02005129","Swale 015","E07000113","Swale","Other Urban"]
[null,"E02005130","Swale 016","E07000113","Swale","Rural"]
[null,"E02005131","Swale 017","E07000113","Swale","Rural"]
[null,"E02005132","Thanet 001","E07000114","Thanet","Other Urban"]
[null,"E02005133","Thanet 002","E07000114","Thanet","Other Urban"]
[null,"E02005134","Thanet 003","E07000114","Thanet","Other Urban"]
[null,"E02005135","Thanet 004","E07000114","Thanet","Other Urban"]
[null,"E02005136","Thanet 005","E07000114","Thanet","Other Urban"]
[null,"E02005137","Thanet 006","E07000114","Thanet","Other Urban"]
[null,"E02005138","Thanet 007","E07000114","Thanet","Other Urban"]
[null,"E02005139","Thanet 008","E07000114","Thanet","Other Urban"]
[null,"E02005140","Thanet 009","E07000114","Thanet","Other Urban"]
[null,"E02005141","Thanet 010","E07000114","Thanet","Other Urban"]
[null,"E02005142","Thanet 011","E07000114","Thanet","Other Urban"]
[null,"E02005143","Thanet 012","E07000114","Thanet","Other Urban"]
[null,"E02005144","Thanet 013","E07000114","Thanet","Other Urban"]
[null,"E02005145","Thanet 014","E07000114","Thanet","Rural"]
[null,"E02005146","Thanet 015","E07000114","Thanet","Other Urban"]
[null,"E02005147","Thanet 016","E07000114","Thanet","Other Urban"]
[null,"E02005148","Thanet 017","E07000114","Thanet","Other Urban"]
[null,"E02005149","Tonbridge and Malling 001","E07000115","Tonbridge and Malling","Rural"]
[null,"E02005150","Tonbridge and Malling 002","E07000115","Tonbridge and Malling","Rural"]
[null,"E02005151","Tonbridge and Malling 003","E07000115","Tonbridge and Malling","Other Urban"]
[null,"E02005153","Tonbridge and Malling 005","E07000115","Tonbridge and Malling","Other Urban"]
[null,"E02005154","Tonbridge and Malling 006","E07000115","Tonbridge and Malling","Rural"]
[null,"E02005155","Tonbridge and Malling 007","E07000115","Tonbridge and Malling","Rural"]
[null,"E02005156","Tonbridge and Malling 008","E07000115","Tonbridge and Malling","Rural"]
[null,"E02005157","Tonbridge and Malling 009","E07000115","Tonbridge and Malling","Other Urban"]
[null,"E02005158","Tonbridge and Malling 010","E07000115","Tonbridge and Malling","Other Urban"]
[null,"E02005159","Tonbridge and Malling 011","E07000115","Tonbridge and Malling","Other Urban"]
[null,"E02005160","Tonbridge and Malling 012","E07000115","Tonbridge and Malling","Other Urban"]
[null,"E02005161","Tonbridge and Malling 013","E07000115","Tonbridge and Malling","Other Urban"]
[null,"E02005162","Tunbridge Wells 001","E07000116","Tunbridge Wells","Rural"]
[null,"E02005163","Tunbridge Wells 002","E07000116","Tunbridge Wells","Other Urban"]
[null,"E02005164","Tunbridge Wells 003","E07000116","Tunbridge Wells","Other Urban"]
[null,"E02005165","Tunbridge Wells 004","E07000116","Tunbridge Wells","Rural"]
[null,"E02005166","Tunbridge Wells 005","E07000116","Tunbridge Wells","Other Urban"]
[null,"E02005167","Tunbridge Wells 006","E07000116","Tunbridge Wells","Rural"]
[null,"E02005168","Tunbridge Wells 007","E07000116","Tunbridge Wells","Other Urban"]
[null,"E02005169","Tunbridge Wells 008","E07000116","Tunbridge Wells","Other Urban"]
[null,"E02005170","Tunbridge Wells 009","E07000116","Tunbridge Wells","Other Urban"]
[null,"E02005171","Tunbridge Wells 010","E07000116","Tunbridge Wells","Other Urban"]
[null,"E02005172","Tunbridge Wells 011","E07000116","Tunbridge Wells","Rural"]
[null,"E02005173","Tunbridge Wells 012","E07000116","Tunbridge Wells","Other Urban"]
[null,"E02005174","Tunbridge Wells 013","E07000116","Tunbridge Wells","Rural"]
[null,"E02005175","Tunbridge Wells 014","E07000116","Tunbridge Wells","Rural"]
[null,"E02005176","Burnley 001","E07000117","Burnley","Other Urban"]
[null,"E02005177","Burnley 002","E07000117","Burnley","Other Urban"]
[null,"E02005178","Burnley 003","E07000117","Burnley","Other Urban"]
[null,"E02005179","Burnley 004","E07000117","Burnley","Other Urban"]
[null,"E02005180","Burnley 005","E07000117","Burnley","Other Urban"]
[null,"E02005181","Burnley 006","E07000117","Burnley","Other Urban"]
[null,"E02005182","Burnley 007","E07000117","Burnley","Other Urban"]
[null,"E02005183","Burnley 008","E07000117","Burnley","Other Urban"]
[null,"E02005184","Burnley 009","E07000117","Burnley","Rural"]
[null,"E02005185","Burnley 010","E07000117","Burnley","Other Urban"]
[null,"E02005186","Burnley 011","E07000117","Burnley","Rural"]
[null,"E02005189","Chorley 001","E07000118","Chorley","Other Urban"]
[null,"E02005190","Chorley 002","E07000118","Chorley","Rural"]
[null,"E02005191","Chorley 003","E07000118","Chorley","Other Urban"]
[null,"E02005192","Chorley 004","E07000118","Chorley","Rural"]
[null,"E02005193","Chorley 005","E07000118","Chorley","Other Urban"]
[null,"E02005194","Chorley 006","E07000118","Chorley","Other Urban"]
[null,"E02005195","Chorley 007","E07000118","Chorley","Rural"]
[null,"E02005196","Chorley 008","E07000118","Chorley","Other Urban"]
[null,"E02005197","Chorley 009","E07000118","Chorley","Other Urban"]
[null,"E02005198","Chorley 010","E07000118","Chorley","Other Urban"]
[null,"E02005199","Chorley 011","E07000118","Chorley","Rural"]
[null,"E02005200","Chorley 012","E07000118","Chorley","Other Urban"]
[null,"E02005201","Chorley 013","E07000118","Chorley","Rural"]
[null,"E02005202","Chorley 014","E07000118","Chorley","Rural"]
[null,"E02005203","Fylde 001","E07000119","Fylde","Rural"]
[null,"E02005204","Fylde 002","E07000119","Fylde","Rural"]
[null,"E02005205","Fylde 003","E07000119","Fylde","Rural"]
[null,"E02005206","Fylde 004","E07000119","Fylde","Other Urban"]
[null,"E02005207","Fylde 005","E07000119","Fylde","Other Urban"]
[null,"E02005208","Fylde 006","E07000119","Fylde","Other Urban"]
[null,"E02005209","Fylde 007","E07000119","Fylde","Rural"]
[null,"E02005210","Fylde 008","E07000119","Fylde","Other Urban"]
[null,"E02005211","Fylde 009","E07000119","Fylde","Other Urban"]
[null,"E02005212","Hyndburn 001","E07000120","Hyndburn","Other Urban"]
[null,"E02005213","Hyndburn 002","E07000120","Hyndburn","Other Urban"]
[null,"E02005214","Hyndburn 003","E07000120","Hyndburn","Other Urban"]
[null,"E02005215","Hyndburn 004","E07000120","Hyndburn","Other Urban"]
[null,"E02005216","Hyndburn 005","E07000120","Hyndburn","Other Urban"]
[null,"E02005217","Hyndburn 006","E07000120","Hyndburn","Other Urban"]
[null,"E02005218","Hyndburn 007","E07000120","Hyndburn","Other Urban"]
[null,"E02005219","Hyndburn 008","E07000120","Hyndburn","Other Urban"]
[null,"E02005220","Hyndburn 009","E07000120","Hyndburn","Rural"]
[null,"E02005221","Lancaster 001","E07000121","Lancaster","Rural"]
[null,"E02005222","Lancaster 002","E07000121","Lancaster","Rural"]
[null,"E02005223","Lancaster 003","E07000121","Lancaster","Rural"]
[null,"E02005224","Lancaster 004","E07000121","Lancaster","Other Urban"]
[null,"E02005225","Lancaster 005","E07000121","Lancaster","Rural"]
[null,"E02005226","Lancaster 006","E07000121","Lancaster","Other Urban"]
[null,"E02005228","Lancaster 008","E07000121","Lancaster","Other Urban"]
[null,"E02005229","Lancaster 009","E07000121","Lancaster","Other Urban"]
[null,"E02005230","Lancaster 010","E07000121","Lancaster","Other Urban"]
[null,"E02005231","Lancaster 011","E07000121","Lancaster","Other Urban"]
[null,"E02005233","Lancaster 013","E07000121","Lancaster","Other Urban"]
[null,"E02005234","Lancaster 014","E07000121","Lancaster","Other Urban"]
[null,"E02005235","Lancaster 015","E07000121","Lancaster","Other Urban"]
[null,"E02005236","Lancaster 016","E07000121","Lancaster","Other Urban"]
[null,"E02005237","Lancaster 017","E07000121","Lancaster","Other Urban"]
[null,"E02005238","Lancaster 018","E07000121","Lancaster","Other Urban"]
[null,"E02005239","Lancaster 019","E07000121","Lancaster","Rural"]
[null,"E02005240","Pendle 001","E07000122","Pendle","Rural"]
[null,"E02005241","Pendle 002","E07000122","Pendle","Rural"]
[null,"E02005242","Pendle 003","E07000122","Pendle","Rural"]
[null,"E02005243","Pendle 004","E07000122","Pendle","Other Urban"]
[null,"E02005244","Pendle 005","E07000122","Pendle","Other Urban"]
[null,"E02005245","Pendle 006","E07000122","Pendle","Rural"]
[null,"E02005246","Pendle 007","E07000122","Pendle","Other Urban"]
[null,"E02005247","Pendle 008","E07000122","Pendle","Rural"]
[null,"E02005248","Pendle 009","E07000122","Pendle","Other Urban"]
[null,"E02005249","Pendle 010","E07000122","Pendle","Other Urban"]
[null,"E02005250","Pendle 011","E07000122","Pendle","Other Urban"]
[null,"E02005251","Pendle 012","E07000122","Pendle","Other Urban"]
[null,"E02005252","Pendle 013","E07000122","Pendle","Other Urban"]
[null,"E02005253","Preston 001","E07000123","Preston","Rural"]
[null,"E02005254","Preston 002","E07000123","Preston","Rural"]
[null,"E02005255","Preston 003","E07000123","Preston","Other Urban"]
[null,"E02005256","Preston 004","E07000123","Preston","Other Urban"]
[null,"E02005257","Preston 005","E07000123","Preston","Other Urban"]
[null,"E02005258","Preston 006","E07000123","Preston","Other Urban"]
[null,"E02005259","Preston 007","E07000123","Preston","Other Urban"]
[null,"E02005260","Preston 008","E07000123","Preston","Other Urban"]
[null,"E02005261","Preston 009","E07000123","Preston","Other Urban"]
[null,"E02005262","Preston 010","E07000123","Preston","Other Urban"]
[null,"E02005263","Preston 011","E07000123","Preston","Other Urban"]
[null,"E02005264","Preston 012","E07000123","Preston","Other Urban"]
[null,"E02005265","Preston 013","E07000123","Preston","Other Urban"]
[null,"E02005266","Preston 014","E07000123","Preston","Other Urban"]
[null,"E02005267","Preston 015","E07000123","Preston","Other Urban"]
[null,"E02005268","Preston 016","E07000123","Preston","Other Urban"]
[null,"E02005269","Preston 017","E07000123","Preston","Other Urban"]
[null,"E02005270","Ribble Valley 001","E07000124","Ribble Valley","Rural"]
[null,"E02005271","Ribble Valley 002","E07000124","Ribble Valley","Other Urban"]
[null,"E02005272","Ribble Valley 003","E07000124","Ribble Valley","Other Urban"]
[null,"E02005273","Ribble Valley 004","E07000124","Ribble Valley","Rural"]
[null,"E02005274","Ribble Valley 005","E07000124","Ribble Valley","Rural"]
[null,"E02005275","Ribble Valley 006","E07000124","Ribble Valley","Rural"]
[null,"E02005276","Ribble Valley 007","E07000124","Ribble Valley","Rural"]
[null,"E02005277","Ribble Valley 008","E07000124","Ribble Valley","Rural"]
[null,"E02005278","Rossendale 001","E07000125","Rossendale","Rural"]
[null,"E02005279","Rossendale 002","E07000125","Rossendale","Other Urban"]
[null,"E02005280","Rossendale 003","E07000125","Rossendale","Other Urban"]
[null,"E02005281","Rossendale 004","E07000125","Rossendale","Other Urban"]
[null,"E02005284","Rossendale 007","E07000125","Rossendale","Rural"]
[null,"E02005285","Rossendale 008","E07000125","Rossendale","Rural"]
[null,"E02005286","Rossendale 009","E07000125","Rossendale","Rural"]
[null,"E02005287","South Ribble 001","E07000126","South Ribble","Other Urban"]
[null,"E02005288","South Ribble 002","E07000126","South Ribble","Rural"]
[null,"E02005289","South Ribble 003","E07000126","South Ribble","Other Urban"]
[null,"E02005290","South Ribble 004","E07000126","South Ribble","Other Urban"]
[null,"E02005291","South Ribble 005","E07000126","South Ribble","Other Urban"]
[null,"E02005292","South Ribble 006","E07000126","South Ribble","Other Urban"]
[null,"E02005293","South Ribble 007","E07000126","South Ribble","Other Urban"]
[null,"E02005294","South Ribble 008","E07000126","South Ribble","Other Urban"]
[null,"E02005295","South Ribble 009","E07000126","South Ribble","Other Urban"]
[null,"E02005296","South Ribble 010","E07000126","South Ribble","Rural"]
[null,"E02005297","South Ribble 011","E07000126","South Ribble","Rural"]
[null,"E02005298","South Ribble 012","E07000126","South Ribble","Other Urban"]
[null,"E02005299","South Ribble 013","E07000126","South Ribble","Other Urban"]
[null,"E02005300","South Ribble 014","E07000126","South Ribble","Other Urban"]
[null,"E02005301","South Ribble 015","E07000126","South Ribble","Other Urban"]
[null,"E02005302","South Ribble 016","E07000126","South Ribble","Other Urban"]
[null,"E02005303","South Ribble 017","E07000126","South Ribble","Other Urban"]
[null,"E02005304","West Lancashire 001","E07000127","West Lancashire","Rural"]
[null,"E02005305","West Lancashire 002","E07000127","West Lancashire","Rural"]
[null,"E02005306","West Lancashire 003","E07000127","West Lancashire","Rural"]
[null,"E02005307","West Lancashire 004","E07000127","West Lancashire","Rural"]
[null,"E02005308","West Lancashire 005","E07000127","West Lancashire","Rural"]
[null,"E02005309","West Lancashire 006","E07000127","West Lancashire","Rural"]
[null,"E02005310","West Lancashire 007","E07000127","West Lancashire","Rural"]
[null,"E02005311","West Lancashire 008","E07000127","West Lancashire","Rural"]
[null,"E02005312","West Lancashire 009","E07000127","West Lancashire","Other Urban"]
[null,"E02005313","West Lancashire 010","E07000127","West Lancashire","Other Urban"]
[null,"E02005314","West Lancashire 011","E07000127","West Lancashire","Other Urban"]
[null,"E02005315","West Lancashire 012","E07000127","West Lancashire","Rural"]
[null,"E02005316","West Lancashire 013","E07000127","West Lancashire","Other Urban"]
[null,"E02005317","West Lancashire 014","E07000127","West Lancashire","Other Urban"]
[null,"E02005318","West Lancashire 015","E07000127","West Lancashire","Other Urban"]
[null,"E02005319","Wyre 001","E07000128","Wyre","Other Urban"]
[null,"E02005320","Wyre 002","E07000128","Wyre","Other Urban"]
[null,"E02005321","Wyre 003","E07000128","Wyre","Other Urban"]
[null,"E02005322","Wyre 004","E07000128","Wyre","Rural"]
[null,"E02005323","Wyre 005","E07000128","Wyre","Other Urban"]
[null,"E02005324","Wyre 006","E07000128","Wyre","Rural"]
[null,"E02005325","Wyre 007","E07000128","Wyre","Rural"]
[null,"E02005326","Wyre 008","E07000128","Wyre","Other Urban"]
[null,"E02005327","Wyre 009","E07000128","Wyre","Rural"]
[null,"E02005328","Wyre 010","E07000128","Wyre","Other Urban"]
[null,"E02005329","Wyre 011","E07000128","Wyre","Other Urban"]
[null,"E02005330","Wyre 012","E07000128","Wyre","Other Urban"]
[null,"E02005331","Wyre 013","E07000128","Wyre","Other Urban"]
[null,"E02005332","Wyre 014","E07000128","Wyre","Other Urban"]
[null,"E02005334","Blaby 002","E07000129","Blaby","Other Urban"]
[null,"E02005335","Blaby 003","E07000129","Blaby","Rural"]
[null,"E02005336","Blaby 004","E07000129","Blaby","Other Urban"]
[null,"E02005337","Blaby 005","E07000129","Blaby","Other Urban"]
[null,"E02005338","Blaby 006","E07000129","Blaby","Rural"]
[null,"E02005339","Blaby 007","E07000129","Blaby","Rural"]
[null,"E02005340","Blaby 008","E07000129","Blaby","Other Urban"]
[null,"E02005341","Blaby 009","E07000129","Blaby","Other Urban"]
[null,"E02005342","Blaby 010","E07000129","Blaby","Rural"]
[null,"E02005343","Blaby 011","E07000129","Blaby","Rural"]
[null,"E02005344","Blaby 012","E07000129","Blaby","Rural"]
[null,"E02005345","Charnwood 001","E07000130","Charnwood","Other Urban"]
[null,"E02005346","Charnwood 002","E07000130","Charnwood","Other Urban"]
[null,"E02005347","Charnwood 003","E07000130","Charnwood","Other Urban"]
[null,"E02005348","Charnwood 004","E07000130","Charnwood","Other Urban"]
[null,"E02005349","Charnwood 005","E07000130","Charnwood","Rural"]
[null,"E02005350","Charnwood 006","E07000130","Charnwood","Rural"]
[null,"E02005351","Charnwood 007","E07000130","Charnwood","Other Urban"]
[null,"E02005352","Charnwood 008","E07000130","Charnwood","Rural"]
[null,"E02005353","Charnwood 009","E07000130","Charnwood","Other Urban"]
[null,"E02005354","Charnwood 010","E07000130","Charnwood","Other Urban"]
[null,"E02005355","Charnwood 011","E07000130","Charnwood","Rural"]
[null,"E02005356","Charnwood 012","E07000130","Charnwood","Rural"]
[null,"E02005357","Charnwood 013","E07000130","Charnwood","Rural"]
[null,"E02005358","Charnwood 014","E07000130","Charnwood","Rural"]
[null,"E02005359","Charnwood 015","E07000130","Charnwood","Rural"]
[null,"E02005360","Charnwood 016","E07000130","Charnwood","Rural"]
[null,"E02005361","Charnwood 017","E07000130","Charnwood","Other Urban"]
[null,"E02005362","Charnwood 018","E07000130","Charnwood","Other Urban"]
[null,"E02005363","Charnwood 019","E07000130","Charnwood","Other Urban"]
[null,"E02005364","Charnwood 020","E07000130","Charnwood","Other Urban"]
[null,"E02005365","Charnwood 021","E07000130","Charnwood","Other Urban"]
[null,"E02005366","Charnwood 022","E07000130","Charnwood","Rural"]
[null,"E02005368","Harborough 002","E07000131","Harborough","Rural"]
[null,"E02005369","Harborough 003","E07000131","Harborough","Rural"]
[null,"E02005370","Harborough 004","E07000131","Harborough","Rural"]
[null,"E02005371","Harborough 005","E07000131","Harborough","Rural"]
[null,"E02005372","Harborough 006","E07000131","Harborough","Rural"]
[null,"E02005373","Harborough 007","E07000131","Harborough","Rural"]
[null,"E02005374","Harborough 008","E07000131","Harborough","Other Urban"]
[null,"E02005375","Harborough 009","E07000131","Harborough","Rural"]
[null,"E02005376","Harborough 010","E07000131","Harborough","Rural"]
[null,"E02005377","Hinckley and Bosworth 001","E07000132","Hinckley and Bosworth","Rural"]
[null,"E02005378","Hinckley and Bosworth 002","E07000132","Hinckley and Bosworth","Other Urban"]
[null,"E02005379","Hinckley and Bosworth 003","E07000132","Hinckley and Bosworth","Other Urban"]
[null,"E02005380","Hinckley and Bosworth 004","E07000132","Hinckley and Bosworth","Rural"]
[null,"E02005381","Hinckley and Bosworth 005","E07000132","Hinckley and Bosworth","Rural"]
[null,"E02005382","Hinckley and Bosworth 006","E07000132","Hinckley and Bosworth","Other Urban"]
[null,"E02005383","Hinckley and Bosworth 007","E07000132","Hinckley and Bosworth","Rural"]
[null,"E02005384","Hinckley and Bosworth 008","E07000132","Hinckley and Bosworth","Rural"]
[null,"E02005385","Hinckley and Bosworth 009","E07000132","Hinckley and Bosworth","Other Urban"]
[null,"E02005386","Hinckley and Bosworth 010","E07000132","Hinckley and Bosworth","Other Urban"]
[null,"E02005387","Hinckley and Bosworth 011","E07000132","Hinckley and Bosworth","Other Urban"]
[null,"E02005388","Hinckley and Bosworth 012","E07000132","Hinckley and Bosworth","Other Urban"]
[null,"E02005389","Hinckley and Bosworth 013","E07000132","Hinckley and Bosworth","Other Urban"]
[null,"E02005390","Hinckley and Bosworth 014","E07000132","Hinckley and Bosworth","Other Urban"]
[null,"E02005391","Melton 001","E07000133","Melton","Rural"]
[null,"E02005392","Melton 002","E07000133","Melton","Other Urban"]
[null,"E02005393","Melton 003","E07000133","Melton","Rural"]
[null,"E02005394","Melton 004","E07000133","Melton","Other Urban"]
[null,"E02005395","Melton 005","E07000133","Melton","Other Urban"]
[null,"E02005396","Melton 006","E07000133","Melton","Rural"]
[null,"E02005397","North West Leicestershire 001","E07000134","North West Leicestershire","Rural"]
[null,"E02005398","North West Leicestershire 002","E07000134","North West Leicestershire","Rural"]
[null,"E02005399","North West Leicestershire 003","E07000134","North West Leicestershire","Other Urban"]
[null,"E02005400","North West Leicestershire 004","E07000134","North West Leicestershire","Other Urban"]
[null,"E02005401","North West Leicestershire 005","E07000134","North West Leicestershire","Rural"]
[null,"E02005402","North West Leicestershire 006","E07000134","North West Leicestershire","Other Urban"]
[null,"E02005403","North West Leicestershire 007","E07000134","North West Leicestershire","Other Urban"]
[null,"E02005404","North West Leicestershire 008","E07000134","North West Leicestershire","Rural"]
[null,"E02005405","North West Leicestershire 009","E07000134","North West Leicestershire","Rural"]
[null,"E02005406","North West Leicestershire 010","E07000134","North West Leicestershire","Other Urban"]
[null,"E02005407","North West Leicestershire 011","E07000134","North West Leicestershire","Other Urban"]
[null,"E02005408","North West Leicestershire 012","E07000134","North West Leicestershire","Rural"]
[null,"E02005409","North West Leicestershire 013","E07000134","North West Leicestershire","Rural"]
[null,"E02005412","Oadby and Wigston 003","E07000135","Oadby and Wigston","Other Urban"]
[null,"E02005414","Oadby and Wigston 005","E07000135","Oadby and Wigston","Other Urban"]
[null,"E02005415","Oadby and Wigston 006","E07000135","Oadby and Wigston","Other Urban"]
[null,"E02005416","Oadby and Wigston 007","E07000135","Oadby and Wigston","Other Urban"]
[null,"E02005417","Boston 001","E07000136","Boston","Rural"]
[null,"E02005418","Boston 002","E07000136","Boston","Other Urban"]
[null,"E02005419","Boston 003","E07000136","Boston","Other Urban"]
[null,"E02005420","Boston 004","E07000136","Boston","Other Urban"]
[null,"E02005422","Boston 006","E07000136","Boston","Rural"]
[null,"E02005423","Boston 007","E07000136","Boston","Rural"]
[null,"E02005424","East Lindsey 001","E07000137","East Lindsey","Rural"]
[null,"E02005425","East Lindsey 002","E07000137","East Lindsey","Rural"]
[null,"E02005426","East Lindsey 003","E07000137","East Lindsey","Other Urban"]
[null,"E02005427","East Lindsey 004","E07000137","East Lindsey","Other Urban"]
[null,"E02005428","East Lindsey 005","E07000137","East Lindsey","Rural"]
[null,"E02005429","East Lindsey 006","E07000137","East Lindsey","Rural"]
[null,"E02005430","East Lindsey 007","E07000137","East Lindsey","Rural"]
[null,"E02005431","East Lindsey 008","E07000137","East Lindsey","Rural"]
[null,"E02005432","East Lindsey 009","E07000137","East Lindsey","Rural"]
[null,"E02005433","East Lindsey 010","E07000137","East Lindsey","Rural"]
[null,"E02005434","East Lindsey 011","E07000137","East Lindsey","Rural"]
[null,"E02005435","East Lindsey 012","E07000137","East Lindsey","Other Urban"]
[null,"E02005436","East Lindsey 013","E07000137","East Lindsey","Rural"]
[null,"E02005437","East Lindsey 014","E07000137","East Lindsey","Other Urban"]
[null,"E02005438","East Lindsey 015","E07000137","East Lindsey","Other Urban"]
[null,"E02005439","East Lindsey 016","E07000137","East Lindsey","Rural"]
[null,"E02005440","East Lindsey 017","E07000137","East Lindsey","Rural"]
[null,"E02005441","East Lindsey 018","E07000137","East Lindsey","Rural"]
[null,"E02005442","Lincoln 001","E07000138","Lincoln","Other Urban"]
[null,"E02005443","Lincoln 002","E07000138","Lincoln","Other Urban"]
[null,"E02005444","Lincoln 003","E07000138","Lincoln","Other Urban"]
[null,"E02005445","Lincoln 004","E07000138","Lincoln","Other Urban"]
[null,"E02005446","Lincoln 005","E07000138","Lincoln","Other Urban"]
[null,"E02005447","Lincoln 006","E07000138","Lincoln","Other Urban"]
[null,"E02005448","Lincoln 007","E07000138","Lincoln","Other Urban"]
[null,"E02005449","Lincoln 008","E07000138","Lincoln","Other Urban"]
[null,"E02005450","Lincoln 009","E07000138","Lincoln","Other Urban"]
[null,"E02005451","Lincoln 010","E07000138","Lincoln","Other Urban"]
[null,"E02005452","Lincoln 011","E07000138","Lincoln","Other Urban"]
[null,"E02005453","North Kesteven 001","E07000139","North Kesteven","Rural"]
[null,"E02005455","North Kesteven 003","E07000139","North Kesteven","Rural"]
[null,"E02005456","North Kesteven 004","E07000139","North Kesteven","Other Urban"]
[null,"E02005457","North Kesteven 005","E07000139","North Kesteven","Rural"]
[null,"E02005458","North Kesteven 006","E07000139","North Kesteven","Rural"]
[null,"E02005459","North Kesteven 007","E07000139","North Kesteven","Rural"]
[null,"E02005460","North Kesteven 008","E07000139","North Kesteven","Rural"]
[null,"E02005461","North Kesteven 009","E07000139","North Kesteven","Rural"]
[null,"E02005462","North Kesteven 010","E07000139","North Kesteven","Rural"]
[null,"E02005463","North Kesteven 011","E07000139","North Kesteven","Rural"]
[null,"E02005464","North Kesteven 012","E07000139","North Kesteven","Rural"]
[null,"E02005465","South Holland 001","E07000140","South Holland","Rural"]
[null,"E02005466","South Holland 002","E07000140","South Holland","Rural"]
[null,"E02005467","South Holland 003","E07000140","South Holland","Rural"]
[null,"E02005468","South Holland 004","E07000140","South Holland","Rural"]
[null,"E02005469","South Holland 005","E07000140","South Holland","Rural"]
[null,"E02005470","South Holland 006","E07000140","South Holland","Other Urban"]
[null,"E02005471","South Holland 007","E07000140","South Holland","Other Urban"]
[null,"E02005472","South Holland 008","E07000140","South Holland","Rural"]
[null,"E02005473","South Holland 009","E07000140","South Holland","Other Urban"]
[null,"E02005474","South Holland 010","E07000140","South Holland","Rural"]
[null,"E02005475","South Holland 011","E07000140","South Holland","Rural"]
[null,"E02005476","South Kesteven 001","E07000141","South Kesteven","Rural"]
[null,"E02005477","South Kesteven 002","E07000141","South Kesteven","Rural"]
[null,"E02005478","South Kesteven 003","E07000141","South Kesteven","Other Urban"]
[null,"E02005479","South Kesteven 004","E07000141","South Kesteven","Other Urban"]
[null,"E02005480","South Kesteven 005","E07000141","South Kesteven","Other Urban"]
[null,"E02005481","South Kesteven 006","E07000141","South Kesteven","Other Urban"]
[null,"E02005482","South Kesteven 007","E07000141","South Kesteven","Rural"]
[null,"E02005483","South Kesteven 008","E07000141","South Kesteven","Rural"]
[null,"E02005484","South Kesteven 009","E07000141","South Kesteven","Rural"]
[null,"E02005485","South Kesteven 010","E07000141","South Kesteven","Rural"]
[null,"E02005486","South Kesteven 011","E07000141","South Kesteven","Rural"]
[null,"E02005487","South Kesteven 012","E07000141","South Kesteven","Rural"]
[null,"E02005488","South Kesteven 013","E07000141","South Kesteven","Rural"]
[null,"E02005489","South Kesteven 014","E07000141","South Kesteven","Rural"]
[null,"E02005490","South Kesteven 015","E07000141","South Kesteven","Other Urban"]
[null,"E02005491","South Kesteven 016","E07000141","South Kesteven","Other Urban"]
[null,"E02005492","West Lindsey 001","E07000142","West Lindsey","Rural"]
[null,"E02005493","West Lindsey 002","E07000142","West Lindsey","Rural"]
[null,"E02005494","West Lindsey 003","E07000142","West Lindsey","Rural"]
[null,"E02005495","West Lindsey 004","E07000142","West Lindsey","Other Urban"]
[null,"E02005496","West Lindsey 005","E07000142","West Lindsey","Rural"]
[null,"E02005497","West Lindsey 006","E07000142","West Lindsey","Other Urban"]
[null,"E02005498","West Lindsey 007","E07000142","West Lindsey","Rural"]
[null,"E02005499","West Lindsey 008","E07000142","West Lindsey","Rural"]
[null,"E02005500","West Lindsey 009","E07000142","West Lindsey","Rural"]
[null,"E02005501","West Lindsey 010","E07000142","West Lindsey","Rural"]
[null,"E02005502","West Lindsey 011","E07000142","West Lindsey","Rural"]
[null,"E02005503","Breckland 001","E07000143","Breckland","Rural"]
[null,"E02005504","Breckland 002","E07000143","Breckland","Rural"]
[null,"E02005505","Breckland 003","E07000143","Breckland","Other Urban"]
[null,"E02005506","Breckland 004","E07000143","Breckland","Rural"]
[null,"E02005507","Breckland 005","E07000143","Breckland","Other Urban"]
[null,"E02005508","Breckland 006","E07000143","Breckland","Rural"]
[null,"E02005509","Breckland 007","E07000143","Breckland","Rural"]
[null,"E02005510","Breckland 008","E07000143","Breckland","Rural"]
[null,"E02005511","Breckland 009","E07000143","Breckland","Rural"]
[null,"E02005512","Breckland 010","E07000143","Breckland","Rural"]
[null,"E02005513","Breckland 011","E07000143","Breckland","Rural"]
[null,"E02005514","Breckland 012","E07000143","Breckland","Rural"]
[null,"E02005515","Breckland 013","E07000143","Breckland","Rural"]
[null,"E02005516","Breckland 014","E07000143","Breckland","Rural"]
[null,"E02005517","Breckland 015","E07000143","Breckland","Other Urban"]
[null,"E02005518","Breckland 016","E07000143","Breckland","Other Urban"]
[null,"E02005519","Breckland 017","E07000143","Breckland","Other Urban"]
[null,"E02005520","Broadland 001","E07000144","Broadland","Rural"]
[null,"E02005521","Broadland 002","E07000144","Broadland","Rural"]
[null,"E02005522","Broadland 003","E07000144","Broadland","Rural"]
[null,"E02005523","Broadland 004","E07000144","Broadland","Rural"]
[null,"E02005524","Broadland 005","E07000144","Broadland","Other Urban"]
[null,"E02005525","Broadland 006","E07000144","Broadland","Other Urban"]
[null,"E02005526","Broadland 007","E07000144","Broadland","Other Urban"]
[null,"E02005527","Broadland 008","E07000144","Broadland","Rural"]
[null,"E02005528","Broadland 009","E07000144","Broadland","Other Urban"]
[null,"E02005529","Broadland 010","E07000144","Broadland","Other Urban"]
[null,"E02005530","Broadland 011","E07000144","Broadland","Other Urban"]
[null,"E02005531","Broadland 012","E07000144","Broadland","Other Urban"]
[null,"E02005532","Broadland 013","E07000144","Broadland","Other Urban"]
[null,"E02005533","Broadland 014","E07000144","Broadland","Rural"]
[null,"E02005534","Broadland 015","E07000144","Broadland","Other Urban"]
[null,"E02005535","Broadland 016","E07000144","Broadland","Other Urban"]
[null,"E02005536","Broadland 017","E07000144","Broadland","Rural"]
[null,"E02005537","Broadland 018","E07000144","Broadland","Rural"]
[null,"E02005538","Great Yarmouth 001","E07000145","Great Yarmouth","Rural"]
[null,"E02005539","Great Yarmouth 002","E07000145","Great Yarmouth","Rural"]
[null,"E02005540","Great Yarmouth 003","E07000145","Great Yarmouth","Other Urban"]
[null,"E02005541","Great Yarmouth 004","E07000145","Great Yarmouth","Other Urban"]
[null,"E02005542","Great Yarmouth 005","E07000145","Great Yarmouth","Other Urban"]
[null,"E02005543","Great Yarmouth 006","E07000145","Great Yarmouth","Other Urban"]
[null,"E02005544","Great Yarmouth 007","E07000145","Great Yarmouth","Other Urban"]
[null,"E02005545","Great Yarmouth 008","E07000145","Great Yarmouth","Other Urban"]
[null,"E02005546","Great Yarmouth 009","E07000145","Great Yarmouth","Other Urban"]
[null,"E02005547","Great Yarmouth 010","E07000145","Great Yarmouth","Other Urban"]
[null,"E02005548","Great Yarmouth 011","E07000145","Great Yarmouth","Other Urban"]
[null,"E02005549","Great Yarmouth 012","E07000145","Great Yarmouth","Rural"]
[null,"E02005550","Great Yarmouth 013","E07000145","Great Yarmouth","Other Urban"]
[null,"E02005551","King's Lynn and West Norfolk 001","E07000146","King's Lynn and West Norfolk","Rural"]
[null,"E02005552","King's Lynn and West Norfolk 002","E07000146","King's Lynn and West Norfolk","Rural"]
[null,"E02005553","King's Lynn and West Norfolk 003","E07000146","King's Lynn and West Norfolk","Rural"]
[null,"E02005554","King's Lynn and West Norfolk 004","E07000146","King's Lynn and West Norfolk","Rural"]
[null,"E02005555","King's Lynn and West Norfolk 005","E07000146","King's Lynn and West Norfolk","Rural"]
[null,"E02005556","King's Lynn and West Norfolk 006","E07000146","King's Lynn and West Norfolk","Other Urban"]
[null,"E02005557","King's Lynn and West Norfolk 007","E07000146","King's Lynn and West Norfolk","Other Urban"]
[null,"E02005558","King's Lynn and West Norfolk 008","E07000146","King's Lynn and West Norfolk","Rural"]
[null,"E02005559","King's Lynn and West Norfolk 009","E07000146","King's Lynn and West Norfolk","Other Urban"]
[null,"E02005560","King's Lynn and West Norfolk 010","E07000146","King's Lynn and West Norfolk","Other Urban"]
[null,"E02005561","King's Lynn and West Norfolk 011","E07000146","King's Lynn and West Norfolk","Other Urban"]
[null,"E02005562","King's Lynn and West Norfolk 012","E07000146","King's Lynn and West Norfolk","Rural"]
[null,"E02005563","King's Lynn and West Norfolk 013","E07000146","King's Lynn and West Norfolk","Rural"]
[null,"E02005564","King's Lynn and West Norfolk 014","E07000146","King's Lynn and West Norfolk","Rural"]
[null,"E02005565","King's Lynn and West Norfolk 015","E07000146","King's Lynn and West Norfolk","Rural"]
[null,"E02005566","King's Lynn and West Norfolk 016","E07000146","King's Lynn and West Norfolk","Rural"]
[null,"E02005567","King's Lynn and West Norfolk 017","E07000146","King's Lynn and West Norfolk","Rural"]
[null,"E02005568","King's Lynn and West Norfolk 018","E07000146","King's Lynn and West Norfolk","Rural"]
[null,"E02005569","King's Lynn and West Norfolk 019","E07000146","King's Lynn and West Norfolk","Rural"]
[null,"E02005570","North Norfolk 001","E07000147","North Norfolk","Rural"]
[null,"E02005571","North Norfolk 002","E07000147","North Norfolk","Rural"]
[null,"E02005572","North Norfolk 003","E07000147","North Norfolk","Rural"]
[null,"E02005573","North Norfolk 004","E07000147","North Norfolk","Rural"]
[null,"E02005574","North Norfolk 005","E07000147","North Norfolk","Rural"]
[null,"E02005575","North Norfolk 006","E07000147","North Norfolk","Rural"]
[null,"E02005576","North Norfolk 007","E07000147","North Norfolk","Rural"]
[null,"E02005577","North Norfolk 008","E07000147","North Norfolk","Rural"]
[null,"E02005578","North Norfolk 009","E07000147","North Norfolk","Rural"]
[null,"E02005579","North Norfolk 010","E07000147","North Norfolk","Rural"]
[null,"E02005580","North Norfolk 011","E07000147","North Norfolk","Rural"]
[null,"E02005581","North Norfolk 012","E07000147","North Norfolk","Rural"]
[null,"E02005582","North Norfolk 013","E07000147","North Norfolk","Rural"]
[null,"E02005583","North Norfolk 014","E07000147","North Norfolk","Rural"]
[null,"E02005584","Norwich 001","E07000148","Norwich","Other Urban"]
[null,"E02005585","Norwich 002","E07000148","Norwich","Other Urban"]
[null,"E02005586","Norwich 003","E07000148","Norwich","Other Urban"]
[null,"E02005587","Norwich 004","E07000148","Norwich","Other Urban"]
[null,"E02005588","Norwich 005","E07000148","Norwich","Other Urban"]
[null,"E02005589","Norwich 006","E07000148","Norwich","Other Urban"]
[null,"E02005590","Norwich 007","E07000148","Norwich","Other Urban"]
[null,"E02005592","Norwich 009","E07000148","Norwich","Other Urban"]
[null,"E02005593","Norwich 010","E07000148","Norwich","Other Urban"]
[null,"E02005594","Norwich 011","E07000148","Norwich","Other Urban"]
[null,"E02005595","Norwich 012","E07000148","Norwich","Other Urban"]
[null,"E02005596","Norwich 013","E07000148","Norwich","Other Urban"]
[null,"E02005597","South Norfolk 001","E07000149","South Norfolk","Other Urban"]
[null,"E02005598","South Norfolk 002","E07000149","South Norfolk","Rural"]
[null,"E02005599","South Norfolk 003","E07000149","South Norfolk","Rural"]
[null,"E02005600","South Norfolk 004","E07000149","South Norfolk","Rural"]
[null,"E02005601","South Norfolk 005","E07000149","South Norfolk","Rural"]
[null,"E02005602","South Norfolk 006","E07000149","South Norfolk","Rural"]
[null,"E02005603","South Norfolk 007","E07000149","South Norfolk","Rural"]
[null,"E02005604","South Norfolk 008","E07000149","South Norfolk","Rural"]
[null,"E02005605","South Norfolk 009","E07000149","South Norfolk","Rural"]
[null,"E02005606","South Norfolk 010","E07000149","South Norfolk","Rural"]
[null,"E02005607","South Norfolk 011","E07000149","South Norfolk","Rural"]
[null,"E02005608","South Norfolk 012","E07000149","South Norfolk","Rural"]
[null,"E02005609","South Norfolk 013","E07000149","South Norfolk","Rural"]
[null,"E02005610","South Norfolk 014","E07000149","South Norfolk","Rural"]
[null,"E02005611","South Norfolk 015","E07000149","South Norfolk","Rural"]
[null,"E02005612","Corby 001","E07000150","Corby","Rural"]
[null,"E02005613","Corby 002","E07000150","Corby","Other Urban"]
[null,"E02005614","Corby 003","E07000150","Corby","Other Urban"]
[null,"E02005615","Corby 004","E07000150","Corby","Other Urban"]
[null,"E02005616","Corby 005","E07000150","Corby","Other Urban"]
[null,"E02005617","Corby 006","E07000150","Corby","Other Urban"]
[null,"E02005619","Daventry 001","E07000151","Daventry","Rural"]
[null,"E02005620","Daventry 002","E07000151","Daventry","Rural"]
[null,"E02005621","Daventry 003","E07000151","Daventry","Rural"]
[null,"E02005622","Daventry 004","E07000151","Daventry","Rural"]
[null,"E02005623","Daventry 005","E07000151","Daventry","Rural"]
[null,"E02005624","Daventry 006","E07000151","Daventry","Other Urban"]
[null,"E02005625","Daventry 007","E07000151","Daventry","Other Urban"]
[null,"E02005626","Daventry 008","E07000151","Daventry","Other Urban"]
[null,"E02005627","Daventry 009","E07000151","Daventry","Rural"]
[null,"E02005628","Daventry 010","E07000151","Daventry","Rural"]
[null,"E02005629","East Northamptonshire 001","E07000152","East Northamptonshire","Rural"]
[null,"E02005630","East Northamptonshire 002","E07000152","East Northamptonshire","Rural"]
[null,"E02005631","East Northamptonshire 003","E07000152","East Northamptonshire","Rural"]
[null,"E02005632","East Northamptonshire 004","E07000152","East Northamptonshire","Rural"]
[null,"E02005633","East Northamptonshire 005","E07000152","East Northamptonshire","Rural"]
[null,"E02005634","East Northamptonshire 006","E07000152","East Northamptonshire","Rural"]
[null,"E02005635","East Northamptonshire 007","E07000152","East Northamptonshire","Rural"]
[null,"E02005636","East Northamptonshire 008","E07000152","East Northamptonshire","Other Urban"]
[null,"E02005637","East Northamptonshire 009","E07000152","East Northamptonshire","Other Urban"]
[null,"E02005638","East Northamptonshire 010","E07000152","East Northamptonshire","Other Urban"]
[null,"E02005639","Kettering 001","E07000153","Kettering","Rural"]
[null,"E02005640","Kettering 002","E07000153","Kettering","Other Urban"]
[null,"E02005641","Kettering 003","E07000153","Kettering","Rural"]
[null,"E02005642","Kettering 004","E07000153","Kettering","Other Urban"]
[null,"E02005643","Kettering 005","E07000153","Kettering","Other Urban"]
[null,"E02005644","Kettering 006","E07000153","Kettering","Other Urban"]
[null,"E02005645","Kettering 007","E07000153","Kettering","Other Urban"]
[null,"E02005646","Kettering 008","E07000153","Kettering","Other Urban"]
[null,"E02005647","Kettering 009","E07000153","Kettering","Other Urban"]
[null,"E02005648","Kettering 010","E07000153","Kettering","Other Urban"]
[null,"E02005649","Kettering 011","E07000153","Kettering","Rural"]
[null,"E02005650","Northampton 001","E07000154","Northampton","Other Urban"]
[null,"E02005651","Northampton 002","E07000154","Northampton","Other Urban"]
[null,"E02005652","Northampton 003","E07000154","Northampton","Other Urban"]
[null,"E02005653","Northampton 004","E07000154","Northampton","Other Urban"]
[null,"E02005654","Northampton 005","E07000154","Northampton","Other Urban"]
[null,"E02005655","Northampton 006","E07000154","Northampton","Other Urban"]
[null,"E02005656","Northampton 007","E07000154","Northampton","Other Urban"]
[null,"E02005657","Northampton 008","E07000154","Northampton","Other Urban"]
[null,"E02005658","Northampton 009","E07000154","Northampton","Other Urban"]
[null,"E02005659","Northampton 010","E07000154","Northampton","Other Urban"]
[null,"E02005660","Northampton 011","E07000154","Northampton","Other Urban"]
[null,"E02005661","Northampton 012","E07000154","Northampton","Other Urban"]
[null,"E02005662","Northampton 013","E07000154","Northampton","Other Urban"]
[null,"E02005663","Northampton 014","E07000154","Northampton","Other Urban"]
[null,"E02005664","Northampton 015","E07000154","Northampton","Other Urban"]
[null,"E02005665","Northampton 016","E07000154","Northampton","Other Urban"]
[null,"E02005666","Northampton 017","E07000154","Northampton","Other Urban"]
[null,"E02005667","Northampton 018","E07000154","Northampton","Other Urban"]
[null,"E02005668","Northampton 019","E07000154","Northampton","Other Urban"]
[null,"E02005669","Northampton 020","E07000154","Northampton","Other Urban"]
[null,"E02005670","Northampton 021","E07000154","Northampton","Other Urban"]
[null,"E02005671","Northampton 022","E07000154","Northampton","Other Urban"]
[null,"E02005672","Northampton 023","E07000154","Northampton","Other Urban"]
[null,"E02005673","Northampton 024","E07000154","Northampton","Other Urban"]
[null,"E02005674","Northampton 025","E07000154","Northampton","Other Urban"]
[null,"E02005675","Northampton 026","E07000154","Northampton","Other Urban"]
[null,"E02005676","Northampton 027","E07000154","Northampton","Other Urban"]
[null,"E02005677","Northampton 028","E07000154","Northampton","Other Urban"]
[null,"E02005678","Northampton 029","E07000154","Northampton","Other Urban"]
[null,"E02005679","Northampton 030","E07000154","Northampton","Other Urban"]
[null,"E02005680","Northampton 031","E07000154","Northampton","Other Urban"]
[null,"E02005681","South Northamptonshire 001","E07000155","South Northamptonshire","Rural"]
[null,"E02005682","South Northamptonshire 002","E07000155","South Northamptonshire","Rural"]
[null,"E02005683","South Northamptonshire 003","E07000155","South Northamptonshire","Rural"]
[null,"E02005684","South Northamptonshire 004","E07000155","South Northamptonshire","Rural"]
[null,"E02005685","South Northamptonshire 005","E07000155","South Northamptonshire","Rural"]
[null,"E02005686","South Northamptonshire 006","E07000155","South Northamptonshire","Rural"]
[null,"E02005687","South Northamptonshire 007","E07000155","South Northamptonshire","Rural"]
[null,"E02005688","South Northamptonshire 008","E07000155","South Northamptonshire","Rural"]
[null,"E02005689","South Northamptonshire 009","E07000155","South Northamptonshire","Rural"]
[null,"E02005690","South Northamptonshire 010","E07000155","South Northamptonshire","Rural"]
[null,"E02005691","South Northamptonshire 011","E07000155","South Northamptonshire","Rural"]
[null,"E02005692","Wellingborough 001","E07000156","Wellingborough","Rural"]
[null,"E02005693","Wellingborough 002","E07000156","Wellingborough","Other Urban"]
[null,"E02005694","Wellingborough 003","E07000156","Wellingborough","Other Urban"]
[null,"E02005695","Wellingborough 004","E07000156","Wellingborough","Other Urban"]
[null,"E02005696","Wellingborough 005","E07000156","Wellingborough","Other Urban"]
[null,"E02005697","Wellingborough 006","E07000156","Wellingborough","Other Urban"]
[null,"E02005698","Wellingborough 007","E07000156","Wellingborough","Other Urban"]
[null,"E02005699","Wellingborough 008","E07000156","Wellingborough","Other Urban"]
[null,"E02005700","Wellingborough 009","E07000156","Wellingborough","Rural"]
[null,"E02005701","Wellingborough 010","E07000156","Wellingborough","Rural"]
[null,"E02005702","Northumberland 004","E06000048","Northumberland","Rural"]
[null,"E02005703","Northumberland 005","E06000048","Northumberland","Rural"]
[null,"E02005704","Northumberland 006","E06000048","Northumberland","Rural"]
[null,"E02005705","Northumberland 007","E06000048","Northumberland","Rural"]
[null,"E02005706","Northumberland 001","E06000048","Northumberland","Other Urban"]
[null,"E02005707","Northumberland 002","E06000048","Northumberland","Rural"]
[null,"E02005708","Northumberland 003","E06000048","Northumberland","Rural"]
[null,"E02005709","Northumberland 022","E06000048","Northumberland","Other Urban"]
[null,"E02005710","Northumberland 023","E06000048","Northumberland","Other Urban"]
[null,"E02005711","Northumberland 024","E06000048","Northumberland","Other Urban"]
[null,"E02005712","Northumberland 025","E06000048","Northumberland","Other Urban"]
[null,"E02005713","Northumberland 026","E06000048","Northumberland","Other Urban"]
[null,"E02005714","Northumberland 027","E06000048","Northumberland","Other Urban"]
[null,"E02005715","Northumberland 029","E06000048","Northumberland","Other Urban"]
[null,"E02005716","Northumberland 028","E06000048","Northumberland","Other Urban"]
[null,"E02005717","Northumberland 030","E06000048","Northumberland","Rural"]
[null,"E02005718","Northumberland 031","E06000048","Northumberland","Other Urban"]
[null,"E02005719","Northumberland 032","E06000048","Northumberland","Rural"]
[null,"E02005720","Northumberland 008","E06000048","Northumberland","Rural"]
[null,"E02005721","Northumberland 011","E06000048","Northumberland","Rural"]
[null,"E02005722","Northumberland 015","E06000048","Northumberland","Rural"]
[null,"E02005723","Northumberland 016","E06000048","Northumberland","Other Urban"]
[null,"E02005724","Northumberland 018","E06000048","Northumberland","Other Urban"]
[null,"E02005725","Northumberland 033","E06000048","Northumberland","Rural"]
[null,"E02005726","Northumberland 034","E06000048","Northumberland","Rural"]
[null,"E02005727","Northumberland 019","E06000048","Northumberland","Rural"]
[null,"E02005728","Northumberland 037","E06000048","Northumberland","Rural"]
[null,"E02005729","Northumberland 036","E06000048","Northumberland","Rural"]
[null,"E02005730","Northumberland 035","E06000048","Northumberland","Rural"]
[null,"E02005731","Northumberland 038","E06000048","Northumberland","Other Urban"]
[null,"E02005732","Northumberland 039","E06000048","Northumberland","Rural"]
[null,"E02005733","Northumberland 040","E06000048","Northumberland","Rural"]
[null,"E02005734","Northumberland 009","E06000048","Northumberland","Rural"]
[null,"E02005735","Northumberland 010","E06000048","Northumberland","Other Urban"]
[null,"E02005736","Northumberland 013","E06000048","Northumberland","Other Urban"]
[null,"E02005737","Northumberland 012","E06000048","Northumberland","Other Urban"]
[null,"E02005738","Northumberland 014","E06000048","Northumberland","Other Urban"]
[null,"E02005739","Northumberland 017","E06000048","Northumberland","Rural"]
[null,"E02005740","Northumberland 020","E06000048","Northumberland","Other Urban"]
[null,"E02005741","Northumberland 021","E06000048","Northumberland","Rural"]
[null,"E02005742","Craven 001","E07000163","Craven","Rural"]
[null,"E02005743","Craven 002","E07000163","Craven","Rural"]
[null,"E02005744","Craven 003","E07000163","Craven","Rural"]
[null,"E02005745","Craven 004","E07000163","Craven","Rural"]
[null,"E02005746","Craven 005","E07000163","Craven","Other Urban"]
[null,"E02005747","Craven 006","E07000163","Craven","Other Urban"]
[null,"E02005748","Craven 007","E07000163","Craven","Rural"]
[null,"E02005749","Craven 008","E07000163","Craven","Rural"]
[null,"E02005750","Hambleton 001","E07000164","Hambleton","Rural"]
[null,"E02005751","Hambleton 002","E07000164","Hambleton","Rural"]
[null,"E02005752","Hambleton 003","E07000164","Hambleton","Rural"]
[null,"E02005753","Hambleton 004","E07000164","Hambleton","Other Urban"]
[null,"E02005754","Hambleton 005","E07000164","Hambleton","Rural"]
[null,"E02005755","Hambleton 006","E07000164","Hambleton","Rural"]
[null,"E02005756","Hambleton 007","E07000164","Hambleton","Rural"]
[null,"E02005757","Hambleton 008","E07000164","Hambleton","Rural"]
[null,"E02005758","Hambleton 009","E07000164","Hambleton","Rural"]
[null,"E02005759","Hambleton 010","E07000164","Hambleton","Rural"]
[null,"E02005760","Hambleton 011","E07000164","Hambleton","Rural"]
[null,"E02005761","Harrogate 001","E07000165","Harrogate","Rural"]
[null,"E02005762","Harrogate 002","E07000165","Harrogate","Other Urban"]
[null,"E02005763","Harrogate 003","E07000165","Harrogate","Rural"]
[null,"E02005764","Harrogate 004","E07000165","Harrogate","Other Urban"]
[null,"E02005765","Harrogate 005","E07000165","Harrogate","Rural"]
[null,"E02005766","Harrogate 006","E07000165","Harrogate","Rural"]
[null,"E02005767","Harrogate 007","E07000165","Harrogate","Rural"]
[null,"E02005768","Harrogate 008","E07000165","Harrogate","Rural"]
[null,"E02005769","Harrogate 009","E07000165","Harrogate","Other Urban"]
[null,"E02005770","Harrogate 010","E07000165","Harrogate","Other Urban"]
[null,"E02005771","Harrogate 011","E07000165","Harrogate","Other Urban"]
[null,"E02005772","Harrogate 012","E07000165","Harrogate","Rural"]
[null,"E02005773","Harrogate 013","E07000165","Harrogate","Other Urban"]
[null,"E02005774","Harrogate 014","E07000165","Harrogate","Other Urban"]
[null,"E02005775","Harrogate 015","E07000165","Harrogate","Other Urban"]
[null,"E02005776","Harrogate 016","E07000165","Harrogate","Rural"]
[null,"E02005777","Harrogate 017","E07000165","Harrogate","Other Urban"]
[null,"E02005778","Harrogate 018","E07000165","Harrogate","Rural"]
[null,"E02005779","Harrogate 019","E07000165","Harrogate","Other Urban"]
[null,"E02005780","Harrogate 020","E07000165","Harrogate","Other Urban"]
[null,"E02005781","Harrogate 021","E07000165","Harrogate","Rural"]
[null,"E02005782","Richmondshire 001","E07000166","Richmondshire","Rural"]
[null,"E02005783","Richmondshire 002","E07000166","Richmondshire","Other Urban"]
[null,"E02005784","Richmondshire 003","E07000166","Richmondshire","Rural"]
[null,"E02005785","Richmondshire 004","E07000166","Richmondshire","Other Urban"]
[null,"E02005786","Richmondshire 005","E07000166","Richmondshire","Rural"]
[null,"E02005787","Richmondshire 006","E07000166","Richmondshire","Rural"]
[null,"E02005788","Ryedale 001","E07000167","Ryedale","Rural"]
[null,"E02005789","Ryedale 002","E07000167","Ryedale","Rural"]
[null,"E02005790","Ryedale 003","E07000167","Ryedale","Rural"]
[null,"E02005791","Ryedale 004","E07000167","Ryedale","Rural"]
[null,"E02005794","Ryedale 007","E07000167","Ryedale","Rural"]
[null,"E02005795","Scarborough 001","E07000168","Scarborough","Other Urban"]
[null,"E02005796","Scarborough 002","E07000168","Scarborough","Rural"]
[null,"E02005797","Scarborough 003","E07000168","Scarborough","Other Urban"]
[null,"E02005798","Scarborough 004","E07000168","Scarborough","Rural"]
[null,"E02005799","Scarborough 005","E07000168","Scarborough","Other Urban"]
[null,"E02005800","Scarborough 006","E07000168","Scarborough","Other Urban"]
[null,"E02005801","Scarborough 007","E07000168","Scarborough","Other Urban"]
[null,"E02005802","Scarborough 008","E07000168","Scarborough","Other Urban"]
[null,"E02005803","Scarborough 009","E07000168","Scarborough","Other Urban"]
[null,"E02005804","Scarborough 010","E07000168","Scarborough","Other Urban"]
[null,"E02005805","Scarborough 011","E07000168","Scarborough","Rural"]
[null,"E02005806","Scarborough 012","E07000168","Scarborough","Other Urban"]
[null,"E02005807","Scarborough 013","E07000168","Scarborough","Rural"]
[null,"E02005808","Scarborough 014","E07000168","Scarborough","Rural"]
[null,"E02005809","Selby 001","E07000169","Selby","Rural"]
[null,"E02005810","Selby 002","E07000169","Selby","Rural"]
[null,"E02005811","Selby 003","E07000169","Selby","Rural"]
[null,"E02005812","Selby 004","E07000169","Selby","Rural"]
[null,"E02005813","Selby 005","E07000169","Selby","Rural"]
[null,"E02005814","Selby 006","E07000169","Selby","Rural"]
[null,"E02005815","Selby 007","E07000169","Selby","Rural"]
[null,"E02005816","Selby 008","E07000169","Selby","Rural"]
[null,"E02005817","Selby 009","E07000169","Selby","Rural"]
[null,"E02005818","Selby 010","E07000169","Selby","Rural"]
[null,"E02005819","Ashfield 001","E07000170","Ashfield","Other Urban"]
[null,"E02005820","Ashfield 002","E07000170","Ashfield","Other Urban"]
[null,"E02005821","Ashfield 003","E07000170","Ashfield","Other Urban"]
[null,"E02005822","Ashfield 004","E07000170","Ashfield","Other Urban"]
[null,"E02005823","Ashfield 005","E07000170","Ashfield","Other Urban"]
[null,"E02005824","Ashfield 006","E07000170","Ashfield","Other Urban"]
[null,"E02005825","Ashfield 007","E07000170","Ashfield","Other Urban"]
[null,"E02005826","Ashfield 008","E07000170","Ashfield","Other Urban"]
[null,"E02005827","Ashfield 009","E07000170","Ashfield","Other Urban"]
[null,"E02005828","Ashfield 010","E07000170","Ashfield","Other Urban"]
[null,"E02005829","Ashfield 011","E07000170","Ashfield","Rural"]
[null,"E02005830","Ashfield 012","E07000170","Ashfield","Rural"]
[null,"E02005831","Ashfield 013","E07000170","Ashfield","Other Urban"]
[null,"E02005832","Ashfield 014","E07000170","Ashfield","Other Urban"]
[null,"E02005833","Ashfield 015","E07000170","Ashfield","Other Urban"]
[null,"E02005834","Ashfield 016","E07000170","Ashfield","Other Urban"]
[null,"E02005835","Bassetlaw 001","E07000171","Bassetlaw","Rural"]
[null,"E02005836","Bassetlaw 002","E07000171","Bassetlaw","Rural"]
[null,"E02005837","Bassetlaw 003","E07000171","Bassetlaw","Rural"]
[null,"E02005838","Bassetlaw 004","E07000171","Bassetlaw","Rural"]
[null,"E02005839","Bassetlaw 005","E07000171","Bassetlaw","Other Urban"]
[null,"E02005840","Bassetlaw 006","E07000171","Bassetlaw","Other Urban"]
[null,"E02005842","Bassetlaw 008","E07000171","Bassetlaw","Other Urban"]
[null,"E02005843","Bassetlaw 009","E07000171","Bassetlaw","Other Urban"]
[null,"E02005844","Bassetlaw 010","E07000171","Bassetlaw","Other Urban"]
[null,"E02005846","Bassetlaw 012","E07000171","Bassetlaw","Other Urban"]
[null,"E02005847","Bassetlaw 013","E07000171","Bassetlaw","Other Urban"]
[null,"E02005848","Bassetlaw 014","E07000171","Bassetlaw","Rural"]
[null,"E02005849","Bassetlaw 015","E07000171","Bassetlaw","Rural"]
[null,"E02005850","Broxtowe 001","E07000172","Broxtowe","Rural"]
[null,"E02005851","Broxtowe 002","E07000172","Broxtowe","Other Urban"]
[null,"E02005852","Broxtowe 003","E07000172","Broxtowe","Other Urban"]
[null,"E02005853","Broxtowe 004","E07000172","Broxtowe","Other Urban"]
[null,"E02005856","Broxtowe 007","E07000172","Broxtowe","Other Urban"]
[null,"E02005857","Broxtowe 008","E07000172","Broxtowe","Other Urban"]
[null,"E02005858","Broxtowe 009","E07000172","Broxtowe","Other Urban"]
[null,"E02005859","Broxtowe 010","E07000172","Broxtowe","Other Urban"]
[null,"E02005860","Broxtowe 011","E07000172","Broxtowe","Other Urban"]
[null,"E02005861","Broxtowe 012","E07000172","Broxtowe","Other Urban"]
[null,"E02005862","Broxtowe 013","E07000172","Broxtowe","Other Urban"]
[null,"E02005863","Broxtowe 014","E07000172","Broxtowe","Other Urban"]
[null,"E02005864","Broxtowe 015","E07000172","Broxtowe","Other Urban"]
[null,"E02005865","Gedling 001","E07000173","Gedling","Rural"]
[null,"E02005866","Gedling 002","E07000173","Gedling","Rural"]
[null,"E02005868","Gedling 004","E07000173","Gedling","Other Urban"]
[null,"E02005869","Gedling 005","E07000173","Gedling","Other Urban"]
[null,"E02005870","Gedling 006","E07000173","Gedling","Other Urban"]
[null,"E02005871","Gedling 007","E07000173","Gedling","Other Urban"]
[null,"E02005872","Gedling 008","E07000173","Gedling","Rural"]
[null,"E02005873","Gedling 009","E07000173","Gedling","Other Urban"]
[null,"E02005874","Gedling 010","E07000173","Gedling","Other Urban"]
[null,"E02005875","Gedling 011","E07000173","Gedling","Other Urban"]
[null,"E02005876","Gedling 012","E07000173","Gedling","Other Urban"]
[null,"E02005877","Gedling 013","E07000173","Gedling","Other Urban"]
[null,"E02005878","Gedling 014","E07000173","Gedling","Other Urban"]
[null,"E02005879","Gedling 015","E07000173","Gedling","Other Urban"]
[null,"E02005880","Mansfield 001","E07000174","Mansfield","Rural"]
[null,"E02005881","Mansfield 002","E07000174","Mansfield","Rural"]
[null,"E02005882","Mansfield 003","E07000174","Mansfield","Other Urban"]
[null,"E02005883","Mansfield 004","E07000174","Mansfield","Other Urban"]
[null,"E02005884","Mansfield 005","E07000174","Mansfield","Other Urban"]
[null,"E02005885","Mansfield 006","E07000174","Mansfield","Other Urban"]
[null,"E02005886","Mansfield 007","E07000174","Mansfield","Other Urban"]
[null,"E02005887","Mansfield 008","E07000174","Mansfield","Other Urban"]
[null,"E02005888","Mansfield 009","E07000174","Mansfield","Other Urban"]
[null,"E02005889","Mansfield 010","E07000174","Mansfield","Other Urban"]
[null,"E02005890","Mansfield 011","E07000174","Mansfield","Other Urban"]
[null,"E02005891","Mansfield 012","E07000174","Mansfield","Other Urban"]
[null,"E02005892","Mansfield 013","E07000174","Mansfield","Other Urban"]
[null,"E02005893","Newark and Sherwood 001","E07000175","Newark and Sherwood","Rural"]
[null,"E02005894","Newark and Sherwood 002","E07000175","Newark and Sherwood","Rural"]
[null,"E02005895","Newark and Sherwood 003","E07000175","Newark and Sherwood","Rural"]
[null,"E02005896","Newark and Sherwood 004","E07000175","Newark and Sherwood","Rural"]
[null,"E02005897","Newark and Sherwood 005","E07000175","Newark and Sherwood","Rural"]
[null,"E02005898","Newark and Sherwood 006","E07000175","Newark and Sherwood","Rural"]
[null,"E02005899","Newark and Sherwood 007","E07000175","Newark and Sherwood","Other Urban"]
[null,"E02005900","Newark and Sherwood 008","E07000175","Newark and Sherwood","Rural"]
[null,"E02005901","Newark and Sherwood 009","E07000175","Newark and Sherwood","Other Urban"]
[null,"E02005902","Newark and Sherwood 010","E07000175","Newark and Sherwood","Other Urban"]
[null,"E02005903","Newark and Sherwood 011","E07000175","Newark and Sherwood","Other Urban"]
[null,"E02005904","Newark and Sherwood 012","E07000175","Newark and Sherwood","Rural"]
[null,"E02005905","Newark and Sherwood 013","E07000175","Newark and Sherwood","Rural"]
[null,"E02005906","Rushcliffe 001","E07000176","Rushcliffe","Rural"]
[null,"E02005907","Rushcliffe 002","E07000176","Rushcliffe","Rural"]
[null,"E02005908","Rushcliffe 003","E07000176","Rushcliffe","Rural"]
[null,"E02005909","Rushcliffe 004","E07000176","Rushcliffe","Other Urban"]
[null,"E02005910","Rushcliffe 005","E07000176","Rushcliffe","Other Urban"]
[null,"E02005911","Rushcliffe 006","E07000176","Rushcliffe","Other Urban"]
[null,"E02005912","Rushcliffe 007","E07000176","Rushcliffe","Other Urban"]
[null,"E02005913","Rushcliffe 008","E07000176","Rushcliffe","Other Urban"]
[null,"E02005914","Rushcliffe 009","E07000176","Rushcliffe","Rural"]
[null,"E02005915","Rushcliffe 010","E07000176","Rushcliffe","Rural"]
[null,"E02005916","Rushcliffe 011","E07000176","Rushcliffe","Other Urban"]
[null,"E02005917","Rushcliffe 012","E07000176","Rushcliffe","Rural"]
[null,"E02005918","Rushcliffe 013","E07000176","Rushcliffe","Rural"]
[null,"E02005919","Rushcliffe 014","E07000176","Rushcliffe","Rural"]
[null,"E02005920","Rushcliffe 015","E07000176","Rushcliffe","Rural"]
[null,"E02005921","Cherwell 001","E07000177","Cherwell","Rural"]
[null,"E02005922","Cherwell 002","E07000177","Cherwell","Other Urban"]
[null,"E02005923","Cherwell 003","E07000177","Cherwell","Other Urban"]
[null,"E02005924","Cherwell 004","E07000177","Cherwell","Other Urban"]
[null,"E02005925","Cherwell 005","E07000177","Cherwell","Other Urban"]
[null,"E02005926","Cherwell 006","E07000177","Cherwell","Other Urban"]
[null,"E02005927","Cherwell 007","E07000177","Cherwell","Other Urban"]
[null,"E02005928","Cherwell 008","E07000177","Cherwell","Rural"]
[null,"E02005929","Cherwell 009","E07000177","Cherwell","Rural"]
[null,"E02005930","Cherwell 010","E07000177","Cherwell","Rural"]
[null,"E02005931","Cherwell 011","E07000177","Cherwell","Rural"]
[null,"E02005932","Cherwell 012","E07000177","Cherwell","Other Urban"]
[null,"E02005933","Cherwell 013","E07000177","Cherwell","Other Urban"]
[null,"E02005934","Cherwell 014","E07000177","Cherwell","Other Urban"]
[null,"E02005935","Cherwell 015","E07000177","Cherwell","Other Urban"]
[null,"E02005936","Cherwell 016","E07000177","Cherwell","Rural"]
[null,"E02005937","Cherwell 017","E07000177","Cherwell","Other Urban"]
[null,"E02005938","Cherwell 018","E07000177","Cherwell","Other Urban"]
[null,"E02005939","Cherwell 019","E07000177","Cherwell","Rural"]
[null,"E02005940","Oxford 001","E07000178","Oxford","Other Urban"]
[null,"E02005941","Oxford 002","E07000178","Oxford","Other Urban"]
[null,"E02005942","Oxford 003","E07000178","Oxford","Other Urban"]
[null,"E02005943","Oxford 004","E07000178","Oxford","Other Urban"]
[null,"E02005944","Oxford 005","E07000178","Oxford","Other Urban"]
[null,"E02005945","Oxford 006","E07000178","Oxford","Other Urban"]
[null,"E02005946","Oxford 007","E07000178","Oxford","Other Urban"]
[null,"E02005947","Oxford 008","E07000178","Oxford","Other Urban"]
[null,"E02005948","Oxford 009","E07000178","Oxford","Other Urban"]
[null,"E02005949","Oxford 010","E07000178","Oxford","Other Urban"]
[null,"E02005950","Oxford 011","E07000178","Oxford","Other Urban"]
[null,"E02005951","Oxford 012","E07000178","Oxford","Other Urban"]
[null,"E02005952","Oxford 013","E07000178","Oxford","Other Urban"]
[null,"E02005953","Oxford 014","E07000178","Oxford","Other Urban"]
[null,"E02005954","Oxford 015","E07000178","Oxford","Other Urban"]
[null,"E02005955","Oxford 016","E07000178","Oxford","Other Urban"]
[null,"E02005956","Oxford 017","E07000178","Oxford","Other Urban"]
[null,"E02005957","Oxford 018","E07000178","Oxford","Other Urban"]
[null,"E02005958","South Oxfordshire 001","E07000179","South Oxfordshire","Other Urban"]
[null,"E02005959","South Oxfordshire 002","E07000179","South Oxfordshire","Rural"]
[null,"E02005960","South Oxfordshire 003","E07000179","South Oxfordshire","Other Urban"]
[null,"E02005961","South Oxfordshire 004","E07000179","South Oxfordshire","Rural"]
[null,"E02005962","South Oxfordshire 005","E07000179","South Oxfordshire","Rural"]
[null,"E02005963","South Oxfordshire 006","E07000179","South Oxfordshire","Rural"]
[null,"E02005964","South Oxfordshire 007","E07000179","South Oxfordshire","Rural"]
[null,"E02005965","South Oxfordshire 008","E07000179","South Oxfordshire","Rural"]
[null,"E02005966","South Oxfordshire 009","E07000179","South Oxfordshire","Other Urban"]
[null,"E02005967","South Oxfordshire 010","E07000179","South Oxfordshire","Other Urban"]
[null,"E02005968","South Oxfordshire 011","E07000179","South Oxfordshire","Rural"]
[null,"E02005969","South Oxfordshire 012","E07000179","South Oxfordshire","Rural"]
[null,"E02005970","South Oxfordshire 013","E07000179","South Oxfordshire","Other Urban"]
[null,"E02005971","South Oxfordshire 014","E07000179","South Oxfordshire","Other Urban"]
[null,"E02005972","South Oxfordshire 015","E07000179","South Oxfordshire","Rural"]
[null,"E02005973","South Oxfordshire 016","E07000179","South Oxfordshire","Other Urban"]
[null,"E02005974","South Oxfordshire 017","E07000179","South Oxfordshire","Other Urban"]
[null,"E02005975","South Oxfordshire 018","E07000179","South Oxfordshire","Rural"]
[null,"E02005976","South Oxfordshire 019","E07000179","South Oxfordshire","Rural"]
[null,"E02005977","South Oxfordshire 020","E07000179","South Oxfordshire","Rural"]
[null,"E02005978","Vale of White Horse 001","E07000180","Vale of White Horse","Rural"]
[null,"E02005979","Vale of White Horse 002","E07000180","Vale of White Horse","Rural"]
[null,"E02005980","Vale of White Horse 003","E07000180","Vale of White Horse","Other Urban"]
[null,"E02005981","Vale of White Horse 004","E07000180","Vale of White Horse","Other Urban"]
[null,"E02005982","Vale of White Horse 005","E07000180","Vale of White Horse","Other Urban"]
[null,"E02005983","Vale of White Horse 006","E07000180","Vale of White Horse","Other Urban"]
[null,"E02005984","Vale of White Horse 007","E07000180","Vale of White Horse","Rural"]
[null,"E02005985","Vale of White Horse 008","E07000180","Vale of White Horse","Other Urban"]
[null,"E02005986","Vale of White Horse 009","E07000180","Vale of White Horse","Rural"]
[null,"E02005987","Vale of White Horse 010","E07000180","Vale of White Horse","Rural"]
[null,"E02005988","Vale of White Horse 011","E07000180","Vale of White Horse","Other Urban"]
[null,"E02005991","Vale of White Horse 014","E07000180","Vale of White Horse","Other Urban"]
[null,"E02005992","Vale of White Horse 015","E07000180","Vale of White Horse","Rural"]
[null,"E02005993","West Oxfordshire 001","E07000181","West Oxfordshire","Rural"]
[null,"E02005994","West Oxfordshire 002","E07000181","West Oxfordshire","Rural"]
[null,"E02005995","West Oxfordshire 003","E07000181","West Oxfordshire","Rural"]
[null,"E02005996","West Oxfordshire 004","E07000181","West Oxfordshire","Rural"]
[null,"E02005997","West Oxfordshire 005","E07000181","West Oxfordshire","Rural"]
[null,"E02005998","West Oxfordshire 006","E07000181","West Oxfordshire","Rural"]
[null,"E02005999","West Oxfordshire 007","E07000181","West Oxfordshire","Rural"]
[null,"E02006000","West Oxfordshire 008","E07000181","West Oxfordshire","Other Urban"]
[null,"E02006001","West Oxfordshire 009","E07000181","West Oxfordshire","Rural"]
[null,"E02006002","West Oxfordshire 010","E07000181","West Oxfordshire","Other Urban"]
[null,"E02006003","West Oxfordshire 011","E07000181","West Oxfordshire","Rural"]
[null,"E02006004","West Oxfordshire 012","E07000181","West Oxfordshire","Rural"]
[null,"E02006005","West Oxfordshire 013","E07000181","West Oxfordshire","Other Urban"]
[null,"E02006006","West Oxfordshire 014","E07000181","West Oxfordshire","Other Urban"]
[null,"E02006007","West Oxfordshire 015","E07000181","West Oxfordshire","Rural"]
[null,"E02006008","Shropshire 025","E06000051","Shropshire","Rural"]
[null,"E02006009","Shropshire 027","E06000051","Shropshire","Rural"]
[null,"E02006010","Shropshire 029","E06000051","Shropshire","Rural"]
[null,"E02006011","Shropshire 031","E06000051","Shropshire","Other Urban"]
[null,"E02006012","Shropshire 033","E06000051","Shropshire","Other Urban"]
[null,"E02006013","Shropshire 034","E06000051","Shropshire","Rural"]
[null,"E02006014","Shropshire 035","E06000051","Shropshire","Rural"]
[null,"E02006015","Shropshire 001","E06000051","Shropshire","Rural"]
[null,"E02006016","Shropshire 002","E06000051","Shropshire","Rural"]
[null,"E02006017","Shropshire 004","E06000051","Shropshire","Rural"]
[null,"E02006018","Shropshire 005","E06000051","Shropshire","Rural"]
[null,"E02006019","Shropshire 008","E06000051","Shropshire","Rural"]
[null,"E02006020","Shropshire 009","E06000051","Shropshire","Rural"]
[null,"E02006021","Shropshire 010","E06000051","Shropshire","Rural"]
[null,"E02006022","Shropshire 013","E06000051","Shropshire","Rural"]
[null,"E02006023","Shropshire 003","E06000051","Shropshire","Rural"]
[null,"E02006024","Shropshire 006","E06000051","Shropshire","Other Urban"]
[null,"E02006025","Shropshire 007","E06000051","Shropshire","Other Urban"]
[null,"E02006026","Shropshire 011","E06000051","Shropshire","Rural"]
[null,"E02006027","Shropshire 012","E06000051","Shropshire","Rural"]
[null,"E02006028","Shropshire 014","E06000051","Shropshire","Rural"]
[null,"E02006029","Shropshire 015","E06000051","Shropshire","Other Urban"]
[null,"E02006030","Shropshire 016","E06000051","Shropshire","Other Urban"]
[null,"E02006031","Shropshire 017","E06000051","Shropshire","Other Urban"]
[null,"E02006032","Shropshire 018","E06000051","Shropshire","Other Urban"]
[null,"E02006033","Shropshire 019","E06000051","Shropshire","Other Urban"]
[null,"E02006034","Shropshire 020","E06000051","Shropshire","Other Urban"]
[null,"E02006035","Shropshire 021","E06000051","Shropshire","Other Urban"]
[null,"E02006036","Shropshire 022","E06000051","Shropshire","Other Urban"]
[null,"E02006037","Shropshire 023","E06000051","Shropshire","Other Urban"]
[null,"E02006038","Shropshire 024","E06000051","Shropshire","Rural"]
[null,"E02006039","Shropshire 026","E06000051","Shropshire","Rural"]
[null,"E02006040","Shropshire 028","E06000051","Shropshire","Rural"]
[null,"E02006041","Shropshire 030","E06000051","Shropshire","Rural"]
[null,"E02006042","Shropshire 032","E06000051","Shropshire","Rural"]
[null,"E02006043","Shropshire 036","E06000051","Shropshire","Rural"]
[null,"E02006044","Shropshire 037","E06000051","Shropshire","Rural"]
[null,"E02006045","Shropshire 038","E06000051","Shropshire","Rural"]
[null,"E02006046","Shropshire 039","E06000051","Shropshire","Rural"]
[null,"E02006047","Mendip 001","E07000187","Mendip","Rural"]
[null,"E02006048","Mendip 002","E07000187","Mendip","Rural"]
[null,"E02006049","Mendip 003","E07000187","Mendip","Other Urban"]
[null,"E02006050","Mendip 004","E07000187","Mendip","Other Urban"]
[null,"E02006051","Mendip 005","E07000187","Mendip","Rural"]
[null,"E02006052","Mendip 006","E07000187","Mendip","Rural"]
[null,"E02006053","Mendip 007","E07000187","Mendip","Other Urban"]
[null,"E02006054","Mendip 008","E07000187","Mendip","Other Urban"]
[null,"E02006055","Mendip 009","E07000187","Mendip","Rural"]
[null,"E02006056","Mendip 010","E07000187","Mendip","Rural"]
[null,"E02006057","Mendip 011","E07000187","Mendip","Rural"]
[null,"E02006058","Mendip 012","E07000187","Mendip","Rural"]
[null,"E02006059","Mendip 013","E07000187","Mendip","Rural"]
[null,"E02006060","Mendip 014","E07000187","Mendip","Other Urban"]
[null,"E02006061","Sedgemoor 001","E07000188","Sedgemoor","Rural"]
[null,"E02006062","Sedgemoor 002","E07000188","Sedgemoor","Rural"]
[null,"E02006063","Sedgemoor 003","E07000188","Sedgemoor","Rural"]
[null,"E02006064","Sedgemoor 004","E07000188","Sedgemoor","Other Urban"]
[null,"E02006065","Sedgemoor 005","E07000188","Sedgemoor","Other Urban"]
[null,"E02006066","Sedgemoor 006","E07000188","Sedgemoor","Rural"]
[null,"E02006067","Sedgemoor 007","E07000188","Sedgemoor","Rural"]
[null,"E02006068","Sedgemoor 008","E07000188","Sedgemoor","Other Urban"]
[null,"E02006069","Sedgemoor 009","E07000188","Sedgemoor","Other Urban"]
[null,"E02006070","Sedgemoor 010","E07000188","Sedgemoor","Other Urban"]
[null,"E02006071","Sedgemoor 011","E07000188","Sedgemoor","Other Urban"]
[null,"E02006072","Sedgemoor 012","E07000188","Sedgemoor","Rural"]
[null,"E02006073","Sedgemoor 013","E07000188","Sedgemoor","Other Urban"]
[null,"E02006074","Sedgemoor 014","E07000188","Sedgemoor","Rural"]
[null,"E02006075","South Somerset 001","E07000189","South Somerset","Rural"]
[null,"E02006076","South Somerset 002","E07000189","South Somerset","Rural"]
[null,"E02006077","South Somerset 003","E07000189","South Somerset","Rural"]
[null,"E02006078","South Somerset 004","E07000189","South Somerset","Rural"]
[null,"E02006079","South Somerset 005","E07000189","South Somerset","Rural"]
[null,"E02006080","South Somerset 006","E07000189","South Somerset","Rural"]
[null,"E02006081","South Somerset 007","E07000189","South Somerset","Rural"]
[null,"E02006082","South Somerset 008","E07000189","South Somerset","Rural"]
[null,"E02006083","South Somerset 009","E07000189","South Somerset","Rural"]
[null,"E02006084","South Somerset 010","E07000189","South Somerset","Rural"]
[null,"E02006085","South Somerset 011","E07000189","South Somerset","Other Urban"]
[null,"E02006086","South Somerset 012","E07000189","South Somerset","Other Urban"]
[null,"E02006087","South Somerset 013","E07000189","South Somerset","Other Urban"]
[null,"E02006088","South Somerset 014","E07000189","South Somerset","Other Urban"]
[null,"E02006089","South Somerset 015","E07000189","South Somerset","Other Urban"]
[null,"E02006090","South Somerset 016","E07000189","South Somerset","Other Urban"]
[null,"E02006091","South Somerset 017","E07000189","South Somerset","Rural"]
[null,"E02006092","South Somerset 018","E07000189","South Somerset","Other Urban"]
[null,"E02006093","South Somerset 019","E07000189","South Somerset","Rural"]
[null,"E02006094","South Somerset 020","E07000189","South Somerset","Rural"]
[null,"E02006095","South Somerset 021","E07000189","South Somerset","Rural"]
[null,"E02006096","South Somerset 022","E07000189","South Somerset","Rural"]
[null,"E02006097","South Somerset 023","E07000189","South Somerset","Rural"]
[null,"E02006098","South Somerset 024","E07000189","South Somerset","Rural"]
[null,"E02006099","Taunton Deane 001","E07000190","Taunton Deane","Rural"]
[null,"E02006100","Taunton Deane 002","E07000190","Taunton Deane","Rural"]
[null,"E02006101","Taunton Deane 003","E07000190","Taunton Deane","Rural"]
[null,"E02006102","Taunton Deane 004","E07000190","Taunton Deane","Other Urban"]
[null,"E02006103","Taunton Deane 005","E07000190","Taunton Deane","Rural"]
[null,"E02006104","Taunton Deane 006","E07000190","Taunton Deane","Rural"]
[null,"E02006105","Taunton Deane 007","E07000190","Taunton Deane","Other Urban"]
[null,"E02006106","Taunton Deane 008","E07000190","Taunton Deane","Other Urban"]
[null,"E02006107","Taunton Deane 009","E07000190","Taunton Deane","Other Urban"]
[null,"E02006108","Taunton Deane 010","E07000190","Taunton Deane","Other Urban"]
[null,"E02006109","Taunton Deane 011","E07000190","Taunton Deane","Other Urban"]
[null,"E02006110","Taunton Deane 012","E07000190","Taunton Deane","Other Urban"]
[null,"E02006111","Taunton Deane 013","E07000190","Taunton Deane","Rural"]
[null,"E02006112","Taunton Deane 014","E07000190","Taunton Deane","Rural"]
[null,"E02006113","West Somerset 001","E07000191","West Somerset","Other Urban"]
[null,"E02006114","West Somerset 002","E07000191","West Somerset","Rural"]
[null,"E02006115","West Somerset 003","E07000191","West Somerset","Rural"]
[null,"E02006116","West Somerset 004","E07000191","West Somerset","Rural"]
[null,"E02006117","West Somerset 005","E07000191","West Somerset","Rural"]
[null,"E02006118","Cannock Chase 001","E07000192","Cannock Chase","Rural"]
[null,"E02006119","Cannock Chase 002","E07000192","Cannock Chase","Other Urban"]
[null,"E02006120","Cannock Chase 003","E07000192","Cannock Chase","Other Urban"]
[null,"E02006121","Cannock Chase 004","E07000192","Cannock Chase","Other Urban"]
[null,"E02006122","Cannock Chase 005","E07000192","Cannock Chase","Other Urban"]
[null,"E02006123","Cannock Chase 006","E07000192","Cannock Chase","Rural"]
[null,"E02006124","Cannock Chase 007","E07000192","Cannock Chase","Other Urban"]
[null,"E02006125","Cannock Chase 008","E07000192","Cannock Chase","Other Urban"]
[null,"E02006126","Cannock Chase 009","E07000192","Cannock Chase","Other Urban"]
[null,"E02006127","Cannock Chase 010","E07000192","Cannock Chase","Other Urban"]
[null,"E02006128","Cannock Chase 011","E07000192","Cannock Chase","Other Urban"]
[null,"E02006129","Cannock Chase 012","E07000192","Cannock Chase","Other Urban"]
[null,"E02006130","Cannock Chase 013","E07000192","Cannock Chase","Rural"]
[null,"E02006131","East Staffordshire 001","E07000193","East Staffordshire","Rural"]
[null,"E02006132","East Staffordshire 002","E07000193","East Staffordshire","Other Urban"]
[null,"E02006133","East Staffordshire 003","E07000193","East Staffordshire","Other Urban"]
[null,"E02006134","East Staffordshire 004","E07000193","East Staffordshire","Rural"]
[null,"E02006135","East Staffordshire 005","E07000193","East Staffordshire","Other Urban"]
[null,"E02006136","East Staffordshire 006","E07000193","East Staffordshire","Rural"]
[null,"E02006137","East Staffordshire 007","E07000193","East Staffordshire","Other Urban"]
[null,"E02006138","East Staffordshire 008","E07000193","East Staffordshire","Other Urban"]
[null,"E02006139","East Staffordshire 009","E07000193","East Staffordshire","Other Urban"]
[null,"E02006140","East Staffordshire 010","E07000193","East Staffordshire","Rural"]
[null,"E02006141","East Staffordshire 011","E07000193","East Staffordshire","Other Urban"]
[null,"E02006142","East Staffordshire 012","E07000193","East Staffordshire","Rural"]
[null,"E02006143","East Staffordshire 013","E07000193","East Staffordshire","Other Urban"]
[null,"E02006144","East Staffordshire 014","E07000193","East Staffordshire","Rural"]
[null,"E02006145","East Staffordshire 015","E07000193","East Staffordshire","Rural"]
[null,"E02006146","Lichfield 001","E07000194","Lichfield","Rural"]
[null,"E02006147","Lichfield 002","E07000194","Lichfield","Rural"]
[null,"E02006148","Lichfield 003","E07000194","Lichfield","Rural"]
[null,"E02006149","Lichfield 004","E07000194","Lichfield","Other Urban"]
[null,"E02006150","Lichfield 005","E07000194","Lichfield","Other Urban"]
[null,"E02006151","Lichfield 006","E07000194","Lichfield","Other Urban"]
[null,"E02006152","Lichfield 007","E07000194","Lichfield","Other Urban"]
[null,"E02006153","Lichfield 008","E07000194","Lichfield","Rural"]
[null,"E02006154","Lichfield 009","E07000194","Lichfield","Other Urban"]
[null,"E02006155","Lichfield 010","E07000194","Lichfield","Other Urban"]
[null,"E02006156","Lichfield 011","E07000194","Lichfield","Rural"]
[null,"E02006157","Lichfield 012","E07000194","Lichfield","Rural"]
[null,"E02006158","Newcastle-under-Lyme 001","E07000195","Newcastle-under-Lyme","Other Urban"]
[null,"E02006159","Newcastle-under-Lyme 002","E07000195","Newcastle-under-Lyme","Other Urban"]
[null,"E02006160","Newcastle-under-Lyme 003","E07000195","Newcastle-under-Lyme","Other Urban"]
[null,"E02006161","Newcastle-under-Lyme 004","E07000195","Newcastle-under-Lyme","Other Urban"]
[null,"E02006162","Newcastle-under-Lyme 005","E07000195","Newcastle-under-Lyme","Rural"]
[null,"E02006163","Newcastle-under-Lyme 006","E07000195","Newcastle-under-Lyme","Other Urban"]
[null,"E02006164","Newcastle-under-Lyme 007","E07000195","Newcastle-under-Lyme","Other Urban"]
[null,"E02006165","Newcastle-under-Lyme 008","E07000195","Newcastle-under-Lyme","Other Urban"]
[null,"E02006166","Newcastle-under-Lyme 009","E07000195","Newcastle-under-Lyme","Other Urban"]
[null,"E02006167","Newcastle-under-Lyme 010","E07000195","Newcastle-under-Lyme","Other Urban"]
[null,"E02006168","Newcastle-under-Lyme 011","E07000195","Newcastle-under-Lyme","Other Urban"]
[null,"E02006169","Newcastle-under-Lyme 012","E07000195","Newcastle-under-Lyme","Rural"]
[null,"E02006170","Newcastle-under-Lyme 013","E07000195","Newcastle-under-Lyme","Rural"]
[null,"E02006171","Newcastle-under-Lyme 014","E07000195","Newcastle-under-Lyme","Other Urban"]
[null,"E02006172","Newcastle-under-Lyme 015","E07000195","Newcastle-under-Lyme","Other Urban"]
[null,"E02006173","Newcastle-under-Lyme 016","E07000195","Newcastle-under-Lyme","Rural"]
[null,"E02006174","South Staffordshire 001","E07000196","South Staffordshire","Rural"]
[null,"E02006175","South Staffordshire 002","E07000196","South Staffordshire","Rural"]
[null,"E02006176","South Staffordshire 003","E07000196","South Staffordshire","Rural"]
[null,"E02006177","South Staffordshire 004","E07000196","South Staffordshire","Other Urban"]
[null,"E02006178","South Staffordshire 005","E07000196","South Staffordshire","Other Urban"]
[null,"E02006179","South Staffordshire 006","E07000196","South Staffordshire","Rural"]
[null,"E02006180","South Staffordshire 007","E07000196","South Staffordshire","Rural"]
[null,"E02006181","South Staffordshire 008","E07000196","South Staffordshire","Rural"]
[null,"E02006182","South Staffordshire 009","E07000196","South Staffordshire","Rural"]
[null,"E02006183","South Staffordshire 010","E07000196","South Staffordshire","Rural"]
[null,"E02006184","South Staffordshire 011","E07000196","South Staffordshire","Other Urban"]
[null,"E02006185","South Staffordshire 012","E07000196","South Staffordshire","Rural"]
[null,"E02006186","South Staffordshire 013","E07000196","South Staffordshire","Rural"]
[null,"E02006187","South Staffordshire 014","E07000196","South Staffordshire","Rural"]
[null,"E02006188","Stafford 001","E07000197","Stafford","Other Urban"]
[null,"E02006189","Stafford 002","E07000197","Stafford","Rural"]
[null,"E02006190","Stafford 003","E07000197","Stafford","Other Urban"]
[null,"E02006191","Stafford 004","E07000197","Stafford","Rural"]
[null,"E02006192","Stafford 005","E07000197","Stafford","Rural"]
[null,"E02006193","Stafford 006","E07000197","Stafford","Rural"]
[null,"E02006194","Stafford 007","E07000197","Stafford","Other Urban"]
[null,"E02006195","Stafford 008","E07000197","Stafford","Rural"]
[null,"E02006196","Stafford 009","E07000197","Stafford","Other Urban"]
[null,"E02006197","Stafford 010","E07000197","Stafford","Other Urban"]
[null,"E02006198","Stafford 011","E07000197","Stafford","Other Urban"]
[null,"E02006199","Stafford 012","E07000197","Stafford","Rural"]
[null,"E02006200","Stafford 013","E07000197","Stafford","Other Urban"]
[null,"E02006201","Stafford 014","E07000197","Stafford","Other Urban"]
[null,"E02006202","Stafford 015","E07000197","Stafford","Rural"]
[null,"E02006203","Stafford 016","E07000197","Stafford","Other Urban"]
[null,"E02006204","Staffordshire Moorlands 001","E07000198","Staffordshire Moorlands","Rural"]
[null,"E02006205","Staffordshire Moorlands 002","E07000198","Staffordshire Moorlands","Rural"]
[null,"E02006206","Staffordshire Moorlands 003","E07000198","Staffordshire Moorlands","Rural"]
[null,"E02006207","Staffordshire Moorlands 004","E07000198","Staffordshire Moorlands","Rural"]
[null,"E02006208","Staffordshire Moorlands 005","E07000198","Staffordshire Moorlands","Other Urban"]
[null,"E02006209","Staffordshire Moorlands 006","E07000198","Staffordshire Moorlands","Other Urban"]
[null,"E02006210","Staffordshire Moorlands 007","E07000198","Staffordshire Moorlands","Rural"]
[null,"E02006211","Staffordshire Moorlands 008","E07000198","Staffordshire Moorlands","Rural"]
[null,"E02006212","Staffordshire Moorlands 009","E07000198","Staffordshire Moorlands","Rural"]
[null,"E02006213","Staffordshire Moorlands 010","E07000198","Staffordshire Moorlands","Rural"]
[null,"E02006214","Staffordshire Moorlands 011","E07000198","Staffordshire Moorlands","Rural"]
[null,"E02006215","Staffordshire Moorlands 012","E07000198","Staffordshire Moorlands","Rural"]
[null,"E02006216","Staffordshire Moorlands 013","E07000198","Staffordshire Moorlands","Rural"]
[null,"E02006217","Tamworth 001","E07000199","Tamworth","Other Urban"]
[null,"E02006218","Tamworth 002","E07000199","Tamworth","Other Urban"]
[null,"E02006219","Tamworth 003","E07000199","Tamworth","Other Urban"]
[null,"E02006220","Tamworth 004","E07000199","Tamworth","Other Urban"]
[null,"E02006221","Tamworth 005","E07000199","Tamworth","Other Urban"]
[null,"E02006222","Tamworth 006","E07000199","Tamworth","Other Urban"]
[null,"E02006223","Tamworth 007","E07000199","Tamworth","Other Urban"]
[null,"E02006224","Tamworth 008","E07000199","Tamworth","Other Urban"]
[null,"E02006225","Tamworth 009","E07000199","Tamworth","Other Urban"]
[null,"E02006226","Tamworth 010","E07000199","Tamworth","Other Urban"]
[null,"E02006227","Babergh 001","E07000200","Babergh","Rural"]
[null,"E02006228","Babergh 002","E07000200","Babergh","Rural"]
[null,"E02006229","Babergh 003","E07000200","Babergh","Rural"]
[null,"E02006230","Babergh 004","E07000200","Babergh","Rural"]
[null,"E02006231","Babergh 005","E07000200","Babergh","Rural"]
[null,"E02006232","Babergh 006","E07000200","Babergh","Rural"]
[null,"E02006233","Babergh 007","E07000200","Babergh","Other Urban"]
[null,"E02006234","Babergh 008","E07000200","Babergh","Other Urban"]
[null,"E02006235","Babergh 009","E07000200","Babergh","Rural"]
[null,"E02006236","Babergh 010","E07000200","Babergh","Rural"]
[null,"E02006237","Babergh 011","E07000200","Babergh","Rural"]
[null,"E02006238","Forest Heath 001","E07000201","Forest Heath","Rural"]
[null,"E02006239","Forest Heath 002","E07000201","Forest Heath","Rural"]
[null,"E02006240","Forest Heath 003","E07000201","Forest Heath","Rural"]
[null,"E02006241","Forest Heath 004","E07000201","Forest Heath","Rural"]
[null,"E02006242","Forest Heath 005","E07000201","Forest Heath","Rural"]
[null,"E02006243","Forest Heath 006","E07000201","Forest Heath","Rural"]
[null,"E02006245","Ipswich 001","E07000202","Ipswich","Other Urban"]
[null,"E02006246","Ipswich 002","E07000202","Ipswich","Other Urban"]
[null,"E02006247","Ipswich 003","E07000202","Ipswich","Other Urban"]
[null,"E02006248","Ipswich 004","E07000202","Ipswich","Other Urban"]
[null,"E02006249","Ipswich 005","E07000202","Ipswich","Other Urban"]
[null,"E02006250","Ipswich 006","E07000202","Ipswich","Other Urban"]
[null,"E02006251","Ipswich 007","E07000202","Ipswich","Other Urban"]
[null,"E02006252","Ipswich 008","E07000202","Ipswich","Other Urban"]
[null,"E02006253","Ipswich 009","E07000202","Ipswich","Other Urban"]
[null,"E02006254","Ipswich 010","E07000202","Ipswich","Other Urban"]
[null,"E02006255","Ipswich 011","E07000202","Ipswich","Other Urban"]
[null,"E02006256","Ipswich 012","E07000202","Ipswich","Other Urban"]
[null,"E02006257","Ipswich 013","E07000202","Ipswich","Other Urban"]
[null,"E02006258","Ipswich 014","E07000202","Ipswich","Other Urban"]
[null,"E02006259","Ipswich 015","E07000202","Ipswich","Other Urban"]
[null,"E02006260","Ipswich 016","E07000202","Ipswich","Other Urban"]
[null,"E02006261","Mid Suffolk 001","E07000203","Mid Suffolk","Rural"]
[null,"E02006262","Mid Suffolk 002","E07000203","Mid Suffolk","Rural"]
[null,"E02006263","Mid Suffolk 003","E07000203","Mid Suffolk","Rural"]
[null,"E02006264","Mid Suffolk 004","E07000203","Mid Suffolk","Rural"]
[null,"E02006265","Mid Suffolk 005","E07000203","Mid Suffolk","Rural"]
[null,"E02006266","Mid Suffolk 006","E07000203","Mid Suffolk","Rural"]
[null,"E02006267","Mid Suffolk 007","E07000203","Mid Suffolk","Rural"]
[null,"E02006268","Mid Suffolk 008","E07000203","Mid Suffolk","Other Urban"]
[null,"E02006269","Mid Suffolk 009","E07000203","Mid Suffolk","Rural"]
[null,"E02006270","Mid Suffolk 010","E07000203","Mid Suffolk","Other Urban"]
[null,"E02006271","Mid Suffolk 011","E07000203","Mid Suffolk","Rural"]
[null,"E02006272","Mid Suffolk 012","E07000203","Mid Suffolk","Rural"]
[null,"E02006273","St Edmundsbury 001","E07000204","St Edmundsbury","Rural"]
[null,"E02006274","St Edmundsbury 002","E07000204","St Edmundsbury","Rural"]
[null,"E02006275","St Edmundsbury 003","E07000204","St Edmundsbury","Other Urban"]
[null,"E02006276","St Edmundsbury 004","E07000204","St Edmundsbury","Rural"]
[null,"E02006277","St Edmundsbury 005","E07000204","St Edmundsbury","Other Urban"]
[null,"E02006278","St Edmundsbury 006","E07000204","St Edmundsbury","Other Urban"]
[null,"E02006279","St Edmundsbury 007","E07000204","St Edmundsbury","Other Urban"]
[null,"E02006280","St Edmundsbury 008","E07000204","St Edmundsbury","Rural"]
[null,"E02006281","St Edmundsbury 009","E07000204","St Edmundsbury","Other Urban"]
[null,"E02006282","St Edmundsbury 010","E07000204","St Edmundsbury","Rural"]
[null,"E02006283","St Edmundsbury 011","E07000204","St Edmundsbury","Rural"]
[null,"E02006284","St Edmundsbury 012","E07000204","St Edmundsbury","Other Urban"]
[null,"E02006285","St Edmundsbury 013","E07000204","St Edmundsbury","Other Urban"]
[null,"E02006286","St Edmundsbury 014","E07000204","St Edmundsbury","Other Urban"]
[null,"E02006287","Suffolk Coastal 001","E07000205","Suffolk Coastal","Rural"]
[null,"E02006288","Suffolk Coastal 002","E07000205","Suffolk Coastal","Rural"]
[null,"E02006289","Suffolk Coastal 003","E07000205","Suffolk Coastal","Rural"]
[null,"E02006290","Suffolk Coastal 004","E07000205","Suffolk Coastal","Rural"]
[null,"E02006291","Suffolk Coastal 005","E07000205","Suffolk Coastal","Rural"]
[null,"E02006292","Suffolk Coastal 006","E07000205","Suffolk Coastal","Rural"]
[null,"E02006293","Suffolk Coastal 007","E07000205","Suffolk Coastal","Rural"]
[null,"E02006294","Suffolk Coastal 008","E07000205","Suffolk Coastal","Other Urban"]
[null,"E02006295","Suffolk Coastal 009","E07000205","Suffolk Coastal","Other Urban"]
[null,"E02006296","Suffolk Coastal 010","E07000205","Suffolk Coastal","Rural"]
[null,"E02006297","Suffolk Coastal 011","E07000205","Suffolk Coastal","Rural"]
[null,"E02006298","Suffolk Coastal 012","E07000205","Suffolk Coastal","Other Urban"]
[null,"E02006299","Suffolk Coastal 013","E07000205","Suffolk Coastal","Other Urban"]
[null,"E02006300","Suffolk Coastal 014","E07000205","Suffolk Coastal","Other Urban"]
[null,"E02006301","Suffolk Coastal 015","E07000205","Suffolk Coastal","Other Urban"]
[null,"E02006302","Waveney 001","E07000206","Waveney","Rural"]
[null,"E02006303","Waveney 002","E07000206","Waveney","Other Urban"]
[null,"E02006304","Waveney 003","E07000206","Waveney","Other Urban"]
[null,"E02006305","Waveney 004","E07000206","Waveney","Other Urban"]
[null,"E02006306","Waveney 005","E07000206","Waveney","Other Urban"]
[null,"E02006307","Waveney 006","E07000206","Waveney","Other Urban"]
[null,"E02006308","Waveney 007","E07000206","Waveney","Other Urban"]
[null,"E02006309","Waveney 008","E07000206","Waveney","Other Urban"]
[null,"E02006310","Waveney 009","E07000206","Waveney","Other Urban"]
[null,"E02006311","Waveney 010","E07000206","Waveney","Other Urban"]
[null,"E02006312","Waveney 011","E07000206","Waveney","Rural"]
[null,"E02006313","Waveney 012","E07000206","Waveney","Other Urban"]
[null,"E02006314","Waveney 013","E07000206","Waveney","Rural"]
[null,"E02006315","Waveney 014","E07000206","Waveney","Rural"]
[null,"E02006316","Waveney 015","E07000206","Waveney","Rural"]
[null,"E02006317","Elmbridge 001","E07000207","Elmbridge","Other Urban"]
[null,"E02006318","Elmbridge 002","E07000207","Elmbridge","Other Urban"]
[null,"E02006319","Elmbridge 003","E07000207","Elmbridge","Other Urban"]
[null,"E02006320","Elmbridge 004","E07000207","Elmbridge","Other Urban"]
[null,"E02006321","Elmbridge 005","E07000207","Elmbridge","Other Urban"]
[null,"E02006322","Elmbridge 006","E07000207","Elmbridge","Other Urban"]
[null,"E02006323","Elmbridge 007","E07000207","Elmbridge","Other Urban"]
[null,"E02006324","Elmbridge 008","E07000207","Elmbridge","Other Urban"]
[null,"E02006325","Elmbridge 009","E07000207","Elmbridge","Other Urban"]
[null,"E02006326","Elmbridge 010","E07000207","Elmbridge","Other Urban"]
[null,"E02006327","Elmbridge 011","E07000207","Elmbridge","Other Urban"]
[null,"E02006328","Elmbridge 012","E07000207","Elmbridge","Other Urban"]
[null,"E02006329","Elmbridge 013","E07000207","Elmbridge","Other Urban"]
[null,"E02006330","Elmbridge 014","E07000207","Elmbridge","Other Urban"]
[null,"E02006331","Elmbridge 015","E07000207","Elmbridge","Other Urban"]
[null,"E02006332","Elmbridge 016","E07000207","Elmbridge","Other Urban"]
[null,"E02006333","Elmbridge 017","E07000207","Elmbridge","Rural"]
[null,"E02006334","Elmbridge 018","E07000207","Elmbridge","Rural"]
[null,"E02006335","Epsom and Ewell 001","E07000208","Epsom and Ewell","Other Urban"]
[null,"E02006336","Epsom and Ewell 002","E07000208","Epsom and Ewell","Other Urban"]
[null,"E02006337","Epsom and Ewell 003","E07000208","Epsom and Ewell","Other Urban"]
[null,"E02006338","Epsom and Ewell 004","E07000208","Epsom and Ewell","Other Urban"]
[null,"E02006339","Epsom and Ewell 005","E07000208","Epsom and Ewell","Other Urban"]
[null,"E02006341","Epsom and Ewell 007","E07000208","Epsom and Ewell","Other Urban"]
[null,"E02006342","Epsom and Ewell 008","E07000208","Epsom and Ewell","Other Urban"]
[null,"E02006343","Epsom and Ewell 009","E07000208","Epsom and Ewell","Other Urban"]
[null,"E02006344","Guildford 001","E07000209","Guildford","Rural"]
[null,"E02006345","Guildford 002","E07000209","Guildford","Rural"]
[null,"E02006346","Guildford 003","E07000209","Guildford","Rural"]
[null,"E02006347","Guildford 004","E07000209","Guildford","Other Urban"]
[null,"E02006348","Guildford 005","E07000209","Guildford","Rural"]
[null,"E02006349","Guildford 006","E07000209","Guildford","Other Urban"]
[null,"E02006350","Guildford 007","E07000209","Guildford","Other Urban"]
[null,"E02006351","Guildford 008","E07000209","Guildford","Other Urban"]
[null,"E02006352","Guildford 009","E07000209","Guildford","Other Urban"]
[null,"E02006353","Guildford 010","E07000209","Guildford","Other Urban"]
[null,"E02006354","Guildford 011","E07000209","Guildford","Other Urban"]
[null,"E02006355","Guildford 012","E07000209","Guildford","Other Urban"]
[null,"E02006356","Guildford 013","E07000209","Guildford","Other Urban"]
[null,"E02006357","Guildford 014","E07000209","Guildford","Other Urban"]
[null,"E02006358","Guildford 015","E07000209","Guildford","Other Urban"]
[null,"E02006359","Guildford 016","E07000209","Guildford","Other Urban"]
[null,"E02006360","Guildford 017","E07000209","Guildford","Rural"]
[null,"E02006361","Guildford 018","E07000209","Guildford","Rural"]
[null,"E02006362","Mole Valley 001","E07000210","Mole Valley","Other Urban"]
[null,"E02006363","Mole Valley 002","E07000210","Mole Valley","Other Urban"]
[null,"E02006364","Mole Valley 003","E07000210","Mole Valley","Other Urban"]
[null,"E02006365","Mole Valley 004","E07000210","Mole Valley","Other Urban"]
[null,"E02006366","Mole Valley 005","E07000210","Mole Valley","Other Urban"]
[null,"E02006367","Mole Valley 006","E07000210","Mole Valley","Other Urban"]
[null,"E02006368","Mole Valley 007","E07000210","Mole Valley","Other Urban"]
[null,"E02006369","Mole Valley 008","E07000210","Mole Valley","Rural"]
[null,"E02006370","Mole Valley 009","E07000210","Mole Valley","Rural"]
[null,"E02006371","Mole Valley 010","E07000210","Mole Valley","Other Urban"]
[null,"E02006372","Mole Valley 011","E07000210","Mole Valley","Rural"]
[null,"E02006373","Mole Valley 012","E07000210","Mole Valley","Rural"]
[null,"E02006374","Mole Valley 013","E07000210","Mole Valley","Rural"]
[null,"E02006375","Reigate and Banstead 001","E07000211","Reigate and Banstead","Other Urban"]
[null,"E02006376","Reigate and Banstead 002","E07000211","Reigate and Banstead","Other Urban"]
[null,"E02006377","Reigate and Banstead 003","E07000211","Reigate and Banstead","Other Urban"]
[null,"E02006378","Reigate and Banstead 004","E07000211","Reigate and Banstead","Other Urban"]
[null,"E02006379","Reigate and Banstead 005","E07000211","Reigate and Banstead","Other Urban"]
[null,"E02006380","Reigate and Banstead 006","E07000211","Reigate and Banstead","Other Urban"]
[null,"E02006381","Reigate and Banstead 007","E07000211","Reigate and Banstead","Other Urban"]
[null,"E02006382","Reigate and Banstead 008","E07000211","Reigate and Banstead","Other Urban"]
[null,"E02006383","Reigate and Banstead 009","E07000211","Reigate and Banstead","Other Urban"]
[null,"E02006384","Reigate and Banstead 010","E07000211","Reigate and Banstead","Other Urban"]
[null,"E02006385","Reigate and Banstead 011","E07000211","Reigate and Banstead","Other Urban"]
[null,"E02006386","Reigate and Banstead 012","E07000211","Reigate and Banstead","Other Urban"]
[null,"E02006387","Reigate and Banstead 013","E07000211","Reigate and Banstead","Other Urban"]
[null,"E02006388","Reigate and Banstead 014","E07000211","Reigate and Banstead","Other Urban"]
[null,"E02006389","Reigate and Banstead 015","E07000211","Reigate and Banstead","Rural"]
[null,"E02006390","Reigate and Banstead 016","E07000211","Reigate and Banstead","Other Urban"]
[null,"E02006391","Reigate and Banstead 017","E07000211","Reigate and Banstead","Other Urban"]
[null,"E02006392","Reigate and Banstead 018","E07000211","Reigate and Banstead","Other Urban"]
[null,"E02006393","Runnymede 001","E07000212","Runnymede","Other Urban"]
[null,"E02006394","Runnymede 002","E07000212","Runnymede","Other Urban"]
[null,"E02006395","Runnymede 003","E07000212","Runnymede","Other Urban"]
[null,"E02006396","Runnymede 004","E07000212","Runnymede","Other Urban"]
[null,"E02006397","Runnymede 005","E07000212","Runnymede","Other Urban"]
[null,"E02006398","Runnymede 006","E07000212","Runnymede","Other Urban"]
[null,"E02006399","Runnymede 007","E07000212","Runnymede","Other Urban"]
[null,"E02006400","Runnymede 008","E07000212","Runnymede","Rural"]
[null,"E02006401","Runnymede 009","E07000212","Runnymede","Other Urban"]
[null,"E02006402","Runnymede 010","E07000212","Runnymede","Other Urban"]
[null,"E02006403","Spelthorne 001","E07000213","Spelthorne","Other Urban"]
[null,"E02006404","Spelthorne 002","E07000213","Spelthorne","Other Urban"]
[null,"E02006405","Spelthorne 003","E07000213","Spelthorne","Other Urban"]
[null,"E02006406","Spelthorne 004","E07000213","Spelthorne","Other Urban"]
[null,"E02006407","Spelthorne 005","E07000213","Spelthorne","Other Urban"]
[null,"E02006408","Spelthorne 006","E07000213","Spelthorne","Other Urban"]
[null,"E02006409","Spelthorne 007","E07000213","Spelthorne","Other Urban"]
[null,"E02006410","Spelthorne 008","E07000213","Spelthorne","Other Urban"]
[null,"E02006411","Spelthorne 009","E07000213","Spelthorne","Other Urban"]
[null,"E02006412","Spelthorne 010","E07000213","Spelthorne","Other Urban"]
[null,"E02006413","Spelthorne 011","E07000213","Spelthorne","Other Urban"]
[null,"E02006414","Spelthorne 012","E07000213","Spelthorne","Other Urban"]
[null,"E02006415","Spelthorne 013","E07000213","Spelthorne","Other Urban"]
[null,"E02006416","Surrey Heath 001","E07000214","Surrey Heath","Rural"]
[null,"E02006417","Surrey Heath 002","E07000214","Surrey Heath","Rural"]
[null,"E02006418","Surrey Heath 003","E07000214","Surrey Heath","Rural"]
[null,"E02006419","Surrey Heath 004","E07000214","Surrey Heath","Other Urban"]
[null,"E02006420","Surrey Heath 005","E07000214","Surrey Heath","Other Urban"]
[null,"E02006421","Surrey Heath 006","E07000214","Surrey Heath","Other Urban"]
[null,"E02006422","Surrey Heath 007","E07000214","Surrey Heath","Other Urban"]
[null,"E02006423","Surrey Heath 008","E07000214","Surrey Heath","Other Urban"]
[null,"E02006424","Surrey Heath 009","E07000214","Surrey Heath","Other Urban"]
[null,"E02006425","Surrey Heath 010","E07000214","Surrey Heath","Other Urban"]
[null,"E02006426","Surrey Heath 011","E07000214","Surrey Heath","Other Urban"]
[null,"E02006427","Surrey Heath 012","E07000214","Surrey Heath","Other Urban"]
[null,"E02006429","Tandridge 002","E07000215","Tandridge","Other Urban"]
[null,"E02006430","Tandridge 003","E07000215","Tandridge","Other Urban"]
[null,"E02006431","Tandridge 004","E07000215","Tandridge","Other Urban"]
[null,"E02006432","Tandridge 005","E07000215","Tandridge","Other Urban"]
[null,"E02006433","Tandridge 006","E07000215","Tandridge","Other Urban"]
[null,"E02006434","Tandridge 007","E07000215","Tandridge","Other Urban"]
[null,"E02006435","Tandridge 008","E07000215","Tandridge","Rural"]
[null,"E02006436","Tandridge 009","E07000215","Tandridge","Rural"]
[null,"E02006437","Tandridge 010","E07000215","Tandridge","Rural"]
[null,"E02006438","Tandridge 011","E07000215","Tandridge","Rural"]
[null,"E02006439","Waverley 001","E07000216","Waverley","Other Urban"]
[null,"E02006440","Waverley 002","E07000216","Waverley","Other Urban"]
[null,"E02006441","Waverley 003","E07000216","Waverley","Other Urban"]
[null,"E02006442","Waverley 004","E07000216","Waverley","Other Urban"]
[null,"E02006443","Waverley 005","E07000216","Waverley","Other Urban"]
[null,"E02006444","Waverley 006","E07000216","Waverley","Other Urban"]
[null,"E02006445","Waverley 007","E07000216","Waverley","Other Urban"]
[null,"E02006446","Waverley 008","E07000216","Waverley","Rural"]
[null,"E02006447","Waverley 009","E07000216","Waverley","Other Urban"]
[null,"E02006448","Waverley 010","E07000216","Waverley","Other Urban"]
[null,"E02006449","Waverley 011","E07000216","Waverley","Rural"]
[null,"E02006450","Waverley 012","E07000216","Waverley","Rural"]
[null,"E02006451","Waverley 013","E07000216","Waverley","Rural"]
[null,"E02006453","Waverley 015","E07000216","Waverley","Rural"]
[null,"E02006454","Waverley 016","E07000216","Waverley","Rural"]
[null,"E02006455","Waverley 017","E07000216","Waverley","Rural"]
[null,"E02006456","Woking 001","E07000217","Woking","Other Urban"]
[null,"E02006457","Woking 002","E07000217","Woking","Other Urban"]
[null,"E02006458","Woking 003","E07000217","Woking","Other Urban"]
[null,"E02006459","Woking 004","E07000217","Woking","Other Urban"]
[null,"E02006460","Woking 005","E07000217","Woking","Other Urban"]
[null,"E02006461","Woking 006","E07000217","Woking","Other Urban"]
[null,"E02006462","Woking 007","E07000217","Woking","Other Urban"]
[null,"E02006463","Woking 008","E07000217","Woking","Other Urban"]
[null,"E02006464","Woking 009","E07000217","Woking","Other Urban"]
[null,"E02006465","Woking 010","E07000217","Woking","Other Urban"]
[null,"E02006466","Woking 011","E07000217","Woking","Other Urban"]
[null,"E02006467","Woking 012","E07000217","Woking","Other Urban"]
[null,"E02006468","North Warwickshire 001","E07000218","North Warwickshire","Rural"]
[null,"E02006469","North Warwickshire 002","E07000218","North Warwickshire","Rural"]
[null,"E02006470","North Warwickshire 003","E07000218","North Warwickshire","Rural"]
[null,"E02006471","North Warwickshire 004","E07000218","North Warwickshire","Rural"]
[null,"E02006472","North Warwickshire 005","E07000218","North Warwickshire","Rural"]
[null,"E02006473","North Warwickshire 006","E07000218","North Warwickshire","Other Urban"]
[null,"E02006474","North Warwickshire 007","E07000218","North Warwickshire","Rural"]
[null,"E02006475","Nuneaton and Bedworth 001","E07000219","Nuneaton and Bedworth","Other Urban"]
[null,"E02006476","Nuneaton and Bedworth 002","E07000219","Nuneaton and Bedworth","Other Urban"]
[null,"E02006477","Nuneaton and Bedworth 003","E07000219","Nuneaton and Bedworth","Other Urban"]
[null,"E02006478","Nuneaton and Bedworth 004","E07000219","Nuneaton and Bedworth","Other Urban"]
[null,"E02006479","Nuneaton and Bedworth 005","E07000219","Nuneaton and Bedworth","Other Urban"]
[null,"E02006480","Nuneaton and Bedworth 006","E07000219","Nuneaton and Bedworth","Other Urban"]
[null,"E02006481","Nuneaton and Bedworth 007","E07000219","Nuneaton and Bedworth","Other Urban"]
[null,"E02006482","Nuneaton and Bedworth 008","E07000219","Nuneaton and Bedworth","Other Urban"]
[null,"E02006483","Nuneaton and Bedworth 009","E07000219","Nuneaton and Bedworth","Other Urban"]
[null,"E02006484","Nuneaton and Bedworth 010","E07000219","Nuneaton and Bedworth","Other Urban"]
[null,"E02006485","Nuneaton and Bedworth 011","E07000219","Nuneaton and Bedworth","Other Urban"]
[null,"E02006486","Nuneaton and Bedworth 012","E07000219","Nuneaton and Bedworth","Other Urban"]
[null,"E02006487","Nuneaton and Bedworth 013","E07000219","Nuneaton and Bedworth","Other Urban"]
[null,"E02006488","Nuneaton and Bedworth 014","E07000219","Nuneaton and Bedworth","Other Urban"]
[null,"E02006489","Nuneaton and Bedworth 015","E07000219","Nuneaton and Bedworth","Other Urban"]
[null,"E02006490","Nuneaton and Bedworth 016","E07000219","Nuneaton and Bedworth","Other Urban"]
[null,"E02006492","Rugby 001","E07000220","Rugby","Rural"]
[null,"E02006493","Rugby 002","E07000220","Rugby","Other Urban"]
[null,"E02006494","Rugby 003","E07000220","Rugby","Other Urban"]
[null,"E02006495","Rugby 004","E07000220","Rugby","Rural"]
[null,"E02006496","Rugby 005","E07000220","Rugby","Other Urban"]
[null,"E02006497","Rugby 006","E07000220","Rugby","Other Urban"]
[null,"E02006498","Rugby 007","E07000220","Rugby","Rural"]
[null,"E02006499","Rugby 008","E07000220","Rugby","Other Urban"]
[null,"E02006500","Rugby 009","E07000220","Rugby","Other Urban"]
[null,"E02006501","Rugby 010","E07000220","Rugby","Other Urban"]
[null,"E02006502","Rugby 011","E07000220","Rugby","Other Urban"]
[null,"E02006503","Rugby 012","E07000220","Rugby","Rural"]
[null,"E02006504","Stratford-on-Avon 001","E07000221","Stratford-on-Avon","Rural"]
[null,"E02006505","Stratford-on-Avon 002","E07000221","Stratford-on-Avon","Rural"]
[null,"E02006506","Stratford-on-Avon 003","E07000221","Stratford-on-Avon","Rural"]
[null,"E02006507","Stratford-on-Avon 004","E07000221","Stratford-on-Avon","Rural"]
[null,"E02006508","Stratford-on-Avon 005","E07000221","Stratford-on-Avon","Rural"]
[null,"E02006509","Stratford-on-Avon 006","E07000221","Stratford-on-Avon","Rural"]
[null,"E02006510","Stratford-on-Avon 007","E07000221","Stratford-on-Avon","Rural"]
[null,"E02006511","Stratford-on-Avon 008","E07000221","Stratford-on-Avon","Rural"]
[null,"E02006512","Stratford-on-Avon 009","E07000221","Stratford-on-Avon","Other Urban"]
[null,"E02006513","Stratford-on-Avon 010","E07000221","Stratford-on-Avon","Rural"]
[null,"E02006514","Stratford-on-Avon 011","E07000221","Stratford-on-Avon","Other Urban"]
[null,"E02006515","Stratford-on-Avon 012","E07000221","Stratford-on-Avon","Rural"]
[null,"E02006516","Stratford-on-Avon 013","E07000221","Stratford-on-Avon","Rural"]
[null,"E02006517","Stratford-on-Avon 014","E07000221","Stratford-on-Avon","Rural"]
[null,"E02006518","Stratford-on-Avon 015","E07000221","Stratford-on-Avon","Rural"]
[null,"E02006519","Warwick 001","E07000222","Warwick","Other Urban"]
[null,"E02006520","Warwick 002","E07000222","Warwick","Other Urban"]
[null,"E02006521","Warwick 003","E07000222","Warwick","Other Urban"]
[null,"E02006522","Warwick 004","E07000222","Warwick","Rural"]
[null,"E02006523","Warwick 005","E07000222","Warwick","Rural"]
[null,"E02006524","Warwick 006","E07000222","Warwick","Other Urban"]
[null,"E02006525","Warwick 007","E07000222","Warwick","Other Urban"]
[null,"E02006526","Warwick 008","E07000222","Warwick","Other Urban"]
[null,"E02006527","Warwick 009","E07000222","Warwick","Other Urban"]
[null,"E02006528","Warwick 010","E07000222","Warwick","Other Urban"]
[null,"E02006529","Warwick 011","E07000222","Warwick","Other Urban"]
[null,"E02006530","Warwick 012","E07000222","Warwick","Other Urban"]
[null,"E02006531","Warwick 013","E07000222","Warwick","Other Urban"]
[null,"E02006532","Warwick 014","E07000222","Warwick","Rural"]
[null,"E02006533","Warwick 015","E07000222","Warwick","Other Urban"]
[null,"E02006534","Adur 001","E07000223","Adur","Other Urban"]
[null,"E02006535","Adur 002","E07000223","Adur","Other Urban"]
[null,"E02006536","Adur 003","E07000223","Adur","Other Urban"]
[null,"E02006537","Adur 004","E07000223","Adur","Other Urban"]
[null,"E02006538","Adur 005","E07000223","Adur","Other Urban"]
[null,"E02006539","Adur 006","E07000223","Adur","Other Urban"]
[null,"E02006540","Adur 007","E07000223","Adur","Other Urban"]
[null,"E02006541","Adur 008","E07000223","Adur","Other Urban"]
[null,"E02006542","Arun 001","E07000224","Arun","Rural"]
[null,"E02006543","Arun 002","E07000224","Arun","Rural"]
[null,"E02006544","Arun 003","E07000224","Arun","Rural"]
[null,"E02006545","Arun 004","E07000224","Arun","Other Urban"]
[null,"E02006546","Arun 005","E07000224","Arun","Other Urban"]
[null,"E02006547","Arun 006","E07000224","Arun","Rural"]
[null,"E02006548","Arun 007","E07000224","Arun","Other Urban"]
[null,"E02006549","Arun 008","E07000224","Arun","Other Urban"]
[null,"E02006550","Arun 009","E07000224","Arun","Other Urban"]
[null,"E02006551","Arun 010","E07000224","Arun","Other Urban"]
[null,"E02006552","Arun 011","E07000224","Arun","Other Urban"]
[null,"E02006553","Arun 012","E07000224","Arun","Other Urban"]
[null,"E02006554","Arun 013","E07000224","Arun","Other Urban"]
[null,"E02006555","Arun 014","E07000224","Arun","Other Urban"]
[null,"E02006556","Arun 015","E07000224","Arun","Other Urban"]
[null,"E02006557","Arun 016","E07000224","Arun","Other Urban"]
[null,"E02006558","Arun 017","E07000224","Arun","Other Urban"]
[null,"E02006559","Arun 018","E07000224","Arun","Other Urban"]
[null,"E02006560","Arun 019","E07000224","Arun","Other Urban"]
[null,"E02006561","Chichester 001","E07000225","Chichester","Rural"]
[null,"E02006562","Chichester 002","E07000225","Chichester","Rural"]
[null,"E02006563","Chichester 003","E07000225","Chichester","Rural"]
[null,"E02006564","Chichester 004","E07000225","Chichester","Rural"]
[null,"E02006565","Chichester 005","E07000225","Chichester","Rural"]
[null,"E02006566","Chichester 006","E07000225","Chichester","Rural"]
[null,"E02006567","Chichester 007","E07000225","Chichester","Rural"]
[null,"E02006568","Chichester 008","E07000225","Chichester","Other Urban"]
[null,"E02006569","Chichester 009","E07000225","Chichester","Rural"]
[null,"E02006570","Chichester 010","E07000225","Chichester","Other Urban"]
[null,"E02006571","Chichester 011","E07000225","Chichester","Rural"]
[null,"E02006572","Chichester 012","E07000225","Chichester","Rural"]
[null,"E02006573","Chichester 013","E07000225","Chichester","Rural"]
[null,"E02006574","Chichester 014","E07000225","Chichester","Rural"]
[null,"E02006575","Crawley 001","E07000226","Crawley","Other Urban"]
[null,"E02006576","Crawley 002","E07000226","Crawley","Other Urban"]
[null,"E02006577","Crawley 003","E07000226","Crawley","Other Urban"]
[null,"E02006578","Crawley 004","E07000226","Crawley","Other Urban"]
[null,"E02006579","Crawley 005","E07000226","Crawley","Other Urban"]
[null,"E02006580","Crawley 006","E07000226","Crawley","Other Urban"]
[null,"E02006581","Crawley 007","E07000226","Crawley","Other Urban"]
[null,"E02006582","Crawley 008","E07000226","Crawley","Other Urban"]
[null,"E02006583","Crawley 009","E07000226","Crawley","Other Urban"]
[null,"E02006584","Crawley 010","E07000226","Crawley","Other Urban"]
[null,"E02006585","Crawley 011","E07000226","Crawley","Other Urban"]
[null,"E02006586","Crawley 012","E07000226","Crawley","Other Urban"]
[null,"E02006587","Crawley 013","E07000226","Crawley","Other Urban"]
[null,"E02006588","Horsham 001","E07000227","Horsham","Rural"]
[null,"E02006589","Horsham 002","E07000227","Horsham","Other Urban"]
[null,"E02006590","Horsham 003","E07000227","Horsham","Rural"]
[null,"E02006591","Horsham 004","E07000227","Horsham","Other Urban"]
[null,"E02006592","Horsham 005","E07000227","Horsham","Rural"]
[null,"E02006593","Horsham 006","E07000227","Horsham","Other Urban"]
[null,"E02006594","Horsham 007","E07000227","Horsham","Other Urban"]
[null,"E02006595","Horsham 008","E07000227","Horsham","Rural"]
[null,"E02006596","Horsham 009","E07000227","Horsham","Rural"]
[null,"E02006597","Horsham 010","E07000227","Horsham","Rural"]
[null,"E02006598","Horsham 011","E07000227","Horsham","Rural"]
[null,"E02006599","Horsham 012","E07000227","Horsham","Rural"]
[null,"E02006600","Horsham 013","E07000227","Horsham","Rural"]
[null,"E02006601","Horsham 014","E07000227","Horsham","Rural"]
[null,"E02006602","Horsham 015","E07000227","Horsham","Rural"]
[null,"E02006603","Horsham 016","E07000227","Horsham","Rural"]
[null,"E02006604","Mid Sussex 001","E07000228","Mid Sussex","Other Urban"]
[null,"E02006605","Mid Sussex 002","E07000228","Mid Sussex","Rural"]
[null,"E02006606","Mid Sussex 003","E07000228","Mid Sussex","Other Urban"]
[null,"E02006607","Mid Sussex 004","E07000228","Mid Sussex","Other Urban"]
[null,"E02006608","Mid Sussex 005","E07000228","Mid Sussex","Rural"]
[null,"E02006609","Mid Sussex 006","E07000228","Mid Sussex","Rural"]
[null,"E02006610","Mid Sussex 007","E07000228","Mid Sussex","Rural"]
[null,"E02006611","Mid Sussex 008","E07000228","Mid Sussex","Other Urban"]
[null,"E02006612","Mid Sussex 009","E07000228","Mid Sussex","Other Urban"]
[null,"E02006613","Mid Sussex 010","E07000228","Mid Sussex","Other Urban"]
[null,"E02006614","Mid Sussex 011","E07000228","Mid Sussex","Rural"]
[null,"E02006615","Mid Sussex 012","E07000228","Mid Sussex","Other Urban"]
[null,"E02006616","Mid Sussex 013","E07000228","Mid Sussex","Other Urban"]
[null,"E02006617","Mid Sussex 014","E07000228","Mid Sussex","Other Urban"]
[null,"E02006618","Mid Sussex 015","E07000228","Mid Sussex","Other Urban"]
[null,"E02006619","Mid Sussex 016","E07000228","Mid Sussex","Rural"]
[null,"E02006620","Mid Sussex 017","E07000228","Mid Sussex","Rural"]
[null,"E02006621","Worthing 001","E07000229","Worthing","Other Urban"]
[null,"E02006622","Worthing 002","E07000229","Worthing","Other Urban"]
[null,"E02006623","Worthing 003","E07000229","Worthing","Other Urban"]
[null,"E02006624","Worthing 004","E07000229","Worthing","Other Urban"]
[null,"E02006625","Worthing 005","E07000229","Worthing","Other Urban"]
[null,"E02006626","Worthing 006","E07000229","Worthing","Other Urban"]
[null,"E02006627","Worthing 007","E07000229","Worthing","Other Urban"]
[null,"E02006628","Worthing 008","E07000229","Worthing","Other Urban"]
[null,"E02006629","Worthing 009","E07000229","Worthing","Other Urban"]
[null,"E02006630","Worthing 010","E07000229","Worthing","Other Urban"]
[null,"E02006631","Worthing 011","E07000229","Worthing","Other Urban"]
[null,"E02006632","Worthing 012","E07000229","Worthing","Other Urban"]
[null,"E02006633","Worthing 013","E07000229","Worthing","Other Urban"]
[null,"E02006634","Wiltshire 012","E06000054","Wiltshire","Rural"]
[null,"E02006635","Wiltshire 019","E06000054","Wiltshire","Rural"]
[null,"E02006636","Wiltshire 024","E06000054","Wiltshire","Rural"]
[null,"E02006637","Wiltshire 025","E06000054","Wiltshire","Other Urban"]
[null,"E02006638","Wiltshire 026","E06000054","Wiltshire","Other Urban"]
[null,"E02006639","Wiltshire 028","E06000054","Wiltshire","Rural"]
[null,"E02006640","Wiltshire 029","E06000054","Wiltshire","Rural"]
[null,"E02006641","Wiltshire 034","E06000054","Wiltshire","Rural"]
[null,"E02006642","Wiltshire 038","E06000054","Wiltshire","Rural"]
[null,"E02006643","Wiltshire 041","E06000054","Wiltshire","Rural"]
[null,"E02006644","Wiltshire 001","E06000054","Wiltshire","Rural"]
[null,"E02006645","Wiltshire 002","E06000054","Wiltshire","Rural"]
[null,"E02006646","Wiltshire 003","E06000054","Wiltshire","Rural"]
[null,"E02006647","Wiltshire 004","E06000054","Wiltshire","Rural"]
[null,"E02006648","Wiltshire 005","E06000054","Wiltshire","Rural"]
[null,"E02006649","Wiltshire 006","E06000054","Wiltshire","Rural"]
[null,"E02006650","Wiltshire 007","E06000054","Wiltshire","Rural"]
[null,"E02006651","Wiltshire 008","E06000054","Wiltshire","Rural"]
[null,"E02006652","Wiltshire 009","E06000054","Wiltshire","Other Urban"]
[null,"E02006653","Wiltshire 010","E06000054","Wiltshire","Other Urban"]
[null,"E02006654","Wiltshire 011","E06000054","Wiltshire","Other Urban"]
[null,"E02006655","Wiltshire 013","E06000054","Wiltshire","Rural"]
[null,"E02006656","Wiltshire 014","E06000054","Wiltshire","Other Urban"]
[null,"E02006657","Wiltshire 015","E06000054","Wiltshire","Other Urban"]
[null,"E02006658","Wiltshire 016","E06000054","Wiltshire","Other Urban"]
[null,"E02006659","Wiltshire 017","E06000054","Wiltshire","Rural"]
[null,"E02006660","Wiltshire 018","E06000054","Wiltshire","Rural"]
[null,"E02006661","Wiltshire 045","E06000054","Wiltshire","Rural"]
[null,"E02006662","Wiltshire 046","E06000054","Wiltshire","Rural"]
[null,"E02006663","Wiltshire 048","E06000054","Wiltshire","Rural"]
[null,"E02006664","Wiltshire 049","E06000054","Wiltshire","Rural"]
[null,"E02006665","Wiltshire 050","E06000054","Wiltshire","Rural"]
[null,"E02006666","Wiltshire 051","E06000054","Wiltshire","Other Urban"]
[null,"E02006667","Wiltshire 052","E06000054","Wiltshire","Other Urban"]
[null,"E02006668","Wiltshire 053","E06000054","Wiltshire","Other Urban"]
[null,"E02006669","Wiltshire 054","E06000054","Wiltshire","Rural"]
[null,"E02006670","Wiltshire 055","E06000054","Wiltshire","Other Urban"]
[null,"E02006671","Wiltshire 056","E06000054","Wiltshire","Other Urban"]
[null,"E02006672","Wiltshire 057","E06000054","Wiltshire","Rural"]
[null,"E02006673","Wiltshire 058","E06000054","Wiltshire","Other Urban"]
[null,"E02006674","Wiltshire 059","E06000054","Wiltshire","Other Urban"]
[null,"E02006675","Wiltshire 060","E06000054","Wiltshire","Rural"]
[null,"E02006676","Wiltshire 061","E06000054","Wiltshire","Rural"]
[null,"E02006677","Wiltshire 062","E06000054","Wiltshire","Rural"]
[null,"E02006678","Wiltshire 020","E06000054","Wiltshire","Other Urban"]
[null,"E02006679","Wiltshire 021","E06000054","Wiltshire","Other Urban"]
[null,"E02006680","Wiltshire 022","E06000054","Wiltshire","Other Urban"]
[null,"E02006681","Wiltshire 023","E06000054","Wiltshire","Rural"]
[null,"E02006682","Wiltshire 027","E06000054","Wiltshire","Rural"]
[null,"E02006683","Wiltshire 030","E06000054","Wiltshire","Other Urban"]
[null,"E02006684","Wiltshire 031","E06000054","Wiltshire","Other Urban"]
[null,"E02006685","Wiltshire 032","E06000054","Wiltshire","Other Urban"]
[null,"E02006686","Wiltshire 033","E06000054","Wiltshire","Other Urban"]
[null,"E02006687","Wiltshire 035","E06000054","Wiltshire","Other Urban"]
[null,"E02006688","Wiltshire 036","E06000054","Wiltshire","Other Urban"]
[null,"E02006689","Wiltshire 037","E06000054","Wiltshire","Rural"]
[null,"E02006690","Wiltshire 039","E06000054","Wiltshire","Rural"]
[null,"E02006691","Wiltshire 040","E06000054","Wiltshire","Rural"]
[null,"E02006692","Wiltshire 042","E06000054","Wiltshire","Rural"]
[null,"E02006693","Wiltshire 043","E06000054","Wiltshire","Rural"]
[null,"E02006694","Wiltshire 044","E06000054","Wiltshire","Rural"]
[null,"E02006695","Wiltshire 047","E06000054","Wiltshire","Rural"]
[null,"E02006696","Bromsgrove 001","E07000234","Bromsgrove","Other Urban"]
[null,"E02006697","Bromsgrove 002","E07000234","Bromsgrove","Rural"]
[null,"E02006698","Bromsgrove 003","E07000234","Bromsgrove","Other Urban"]
[null,"E02006699","Bromsgrove 004","E07000234","Bromsgrove","Other Urban"]
[null,"E02006700","Bromsgrove 005","E07000234","Bromsgrove","Rural"]
[null,"E02006701","Bromsgrove 006","E07000234","Bromsgrove","Rural"]
[null,"E02006702","Bromsgrove 007","E07000234","Bromsgrove","Other Urban"]
[null,"E02006703","Bromsgrove 008","E07000234","Bromsgrove","Other Urban"]
[null,"E02006704","Bromsgrove 009","E07000234","Bromsgrove","Rural"]
[null,"E02006705","Bromsgrove 010","E07000234","Bromsgrove","Other Urban"]
[null,"E02006706","Bromsgrove 011","E07000234","Bromsgrove","Other Urban"]
[null,"E02006707","Bromsgrove 012","E07000234","Bromsgrove","Other Urban"]
[null,"E02006708","Bromsgrove 013","E07000234","Bromsgrove","Other Urban"]
[null,"E02006709","Bromsgrove 014","E07000234","Bromsgrove","Rural"]
[null,"E02006710","Malvern Hills 001","E07000235","Malvern Hills","Rural"]
[null,"E02006711","Malvern Hills 002","E07000235","Malvern Hills","Rural"]
[null,"E02006712","Malvern Hills 003","E07000235","Malvern Hills","Rural"]
[null,"E02006713","Malvern Hills 004","E07000235","Malvern Hills","Other Urban"]
[null,"E02006714","Malvern Hills 005","E07000235","Malvern Hills","Rural"]
[null,"E02006715","Malvern Hills 006","E07000235","Malvern Hills","Other Urban"]
[null,"E02006716","Malvern Hills 007","E07000235","Malvern Hills","Other Urban"]
[null,"E02006717","Malvern Hills 008","E07000235","Malvern Hills","Rural"]
[null,"E02006718","Malvern Hills 009","E07000235","Malvern Hills","Other Urban"]
[null,"E02006719","Malvern Hills 010","E07000235","Malvern Hills","Other Urban"]
[null,"E02006720","Malvern Hills 011","E07000235","Malvern Hills","Rural"]
[null,"E02006721","Redditch 001","E07000236","Redditch","Other Urban"]
[null,"E02006722","Redditch 002","E07000236","Redditch","Other Urban"]
[null,"E02006723","Redditch 003","E07000236","Redditch","Other Urban"]
[null,"E02006724","Redditch 004","E07000236","Redditch","Other Urban"]
[null,"E02006725","Redditch 005","E07000236","Redditch","Other Urban"]
[null,"E02006726","Redditch 006","E07000236","Redditch","Other Urban"]
[null,"E02006727","Redditch 007","E07000236","Redditch","Other Urban"]
[null,"E02006728","Redditch 008","E07000236","Redditch","Other Urban"]
[null,"E02006729","Redditch 009","E07000236","Redditch","Other Urban"]
[null,"E02006730","Redditch 010","E07000236","Redditch","Other Urban"]
[null,"E02006731","Redditch 011","E07000236","Redditch","Other Urban"]
[null,"E02006732","Redditch 012","E07000236","Redditch","Other Urban"]
[null,"E02006733","Redditch 013","E07000236","Redditch","Rural"]
[null,"E02006734","Worcester 001","E07000237","Worcester","Other Urban"]
[null,"E02006735","Worcester 002","E07000237","Worcester","Other Urban"]
[null,"E02006736","Worcester 003","E07000237","Worcester","Other Urban"]
[null,"E02006737","Worcester 004","E07000237","Worcester","Other Urban"]
[null,"E02006738","Worcester 005","E07000237","Worcester","Other Urban"]
[null,"E02006739","Worcester 006","E07000237","Worcester","Other Urban"]
[null,"E02006740","Worcester 007","E07000237","Worcester","Other Urban"]
[null,"E02006741","Worcester 008","E07000237","Worcester","Other Urban"]
[null,"E02006742","Worcester 009","E07000237","Worcester","Other Urban"]
[null,"E02006743","Worcester 010","E07000237","Worcester","Other Urban"]
[null,"E02006744","Worcester 011","E07000237","Worcester","Other Urban"]
[null,"E02006745","Worcester 012","E07000237","Worcester","Other Urban"]
[null,"E02006746","Worcester 013","E07000237","Worcester","Other Urban"]
[null,"E02006747","Worcester 014","E07000237","Worcester","Other Urban"]
[null,"E02006748","Wychavon 001","E07000238","Wychavon","Rural"]
[null,"E02006749","Wychavon 002","E07000238","Wychavon","Other Urban"]
[null,"E02006750","Wychavon 003","E07000238","Wychavon","Other Urban"]
[null,"E02006751","Wychavon 004","E07000238","Wychavon","Other Urban"]
[null,"E02006752","Wychavon 005","E07000238","Wychavon","Other Urban"]
[null,"E02006753","Wychavon 006","E07000238","Wychavon","Rural"]
[null,"E02006754","Wychavon 007","E07000238","Wychavon","Rural"]
[null,"E02006755","Wychavon 008","E07000238","Wychavon","Rural"]
[null,"E02006756","Wychavon 009","E07000238","Wychavon","Rural"]
[null,"E02006757","Wychavon 010","E07000238","Wychavon","Rural"]
[null,"E02006758","Wychavon 011","E07000238","Wychavon","Rural"]
[null,"E02006759","Wychavon 012","E07000238","Wychavon","Rural"]
[null,"E02006760","Wychavon 013","E07000238","Wychavon","Rural"]
[null,"E02006761","Wychavon 014","E07000238","Wychavon","Other Urban"]
[null,"E02006762","Wychavon 015","E07000238","Wychavon","Other Urban"]
[null,"E02006763","Wychavon 016","E07000238","Wychavon","Other Urban"]
[null,"E02006764","Wychavon 017","E07000238","Wychavon","Other Urban"]
[null,"E02006765","Wychavon 018","E07000238","Wychavon","Rural"]
[null,"E02006766","Wychavon 019","E07000238","Wychavon","Rural"]
[null,"E02006767","Wyre Forest 001","E07000239","Wyre Forest","Rural"]
[null,"E02006768","Wyre Forest 002","E07000239","Wyre Forest","Other Urban"]
[null,"E02006769","Wyre Forest 003","E07000239","Wyre Forest","Other Urban"]
[null,"E02006770","Wyre Forest 004","E07000239","Wyre Forest","Other Urban"]
[null,"E02006771","Wyre Forest 005","E07000239","Wyre Forest","Rural"]
[null,"E02006772","Wyre Forest 006","E07000239","Wyre Forest","Other Urban"]
[null,"E02006773","Wyre Forest 007","E07000239","Wyre Forest","Other Urban"]
[null,"E02006774","Wyre Forest 008","E07000239","Wyre Forest","Other Urban"]
[null,"E02006775","Wyre Forest 009","E07000239","Wyre Forest","Other Urban"]
[null,"E02006776","Wyre Forest 010","E07000239","Wyre Forest","Other Urban"]
[null,"E02006777","Wyre Forest 011","E07000239","Wyre Forest","Rural"]
[null,"E02006778","Wyre Forest 012","E07000239","Wyre Forest","Rural"]
[null,"E02006779","Wyre Forest 013","E07000239","Wyre Forest","Rural"]
[null,"E02006780","Wyre Forest 014","E07000239","Wyre Forest","Rural"]
[null,"E02006781","Isles of Scilly 001","E06000053","Isles of Scilly","Rural"]
[null,"E02006782","Bromley 040","E09000006","Bromley","London"]
[null,"E02006783","Lewisham 037","E09000023","Lewisham","London"]
[null,"E02006784","Lewisham 038","E09000023","Lewisham","London"]
[null,"E02006785","Bexley 029","E09000004","Bexley","London"]
[null,"E02006786","Greenwich 033","E09000011","Greenwich","London"]
[null,"E02006787","Bromley 041","E09000006","Bromley","London"]
[null,"E02006788","Croydon 045","E09000008","Croydon","London"]
[null,"E02006789","Bromley 042","E09000006","Bromley","London"]
[null,"E02006790","Tandridge 012","E07000215","Tandridge","Rural"]
[null,"E02006791","Ealing 040","E09000009","Ealing","London"]
[null,"E02006792","Hounslow 029","E09000018","Hounslow","London"]
[null,"E02006793","Enfield 037","E09000010","Enfield","London"]
[null,"E02006794","Haringey 037","E09000014","Haringey","London"]
[null,"E02006795","Harrow 032","E09000015","Harrow","London"]
[null,"E02006796","Hillingdon 033","E09000017","Hillingdon","London"]
[null,"E02006798","Lewisham 039","E09000023","Lewisham","London"]
[null,"E02006799","Barking and Dagenham 023","E09000002","Barking and Dagenham","London"]
[null,"E02006800","Redbridge 034","E09000026","Redbridge","London"]
[null,"E02006801","Lambeth 036","E09000022","Lambeth","London"]
[null,"E02006802","Southwark 034","E09000028","Southwark","London"]
[null,"E02006803","Sheffield 072","E08000019","Sheffield","Inner and Outer Conurbation"]
[null,"E02006804","North East Derbyshire 014","E07000038","North East Derbyshire","Rural"]
[null,"E02006805","Coventry 043","E08000026","Coventry","Inner and Outer Conurbation"]
[null,"E02006806","Nuneaton and Bedworth 018","E07000219","Nuneaton and Bedworth","Other Urban"]
[null,"E02006807","Birmingham 132","E08000025","Birmingham","Inner and Outer Conurbation"]
[null,"E02006808","Solihull 030","E08000029","Solihull","Inner and Outer Conurbation"]
[null,"E02006809","Birmingham 133","E08000025","Birmingham","Inner and Outer Conurbation"]
[null,"E02006810","Sandwell 039","E08000028","Sandwell","Inner and Outer Conurbation"]
[null,"E02006811","Middlesbrough 020","E06000002","Middlesbrough","Other Urban"]
[null,"E02006812","Redcar and Cleveland 021","E06000003","Redcar and Cleveland","Other Urban"]
[null,"E02006813","Kingston upon Hull 033","E06000010","Kingston upon Hull, City of","Other Urban"]
[null,"E02006814","East Riding of Yorkshire 043","E06000011","East Riding of Yorkshire","Other Urban"]
[null,"E02006815","Leicester 037","E06000016","Leicester","Other Urban"]
[null,"E02006816","Harborough 011","E07000131","Harborough","Rural"]
[null,"E02006817","Leicester 038","E06000016","Leicester","Other Urban"]
[null,"E02006818","Oadby and Wigston 008","E07000135","Oadby and Wigston","Other Urban"]
[null,"E02006819","Leicester 039","E06000016","Leicester","Other Urban"]
[null,"E02006820","Blaby 013","E07000129","Blaby","Other Urban"]
[null,"E02006821","Portsmouth 026","E06000044","Portsmouth","Other Urban"]
[null,"E02006822","Havant 018","E07000090","Havant","Other Urban"]
[null,"E02006823","Chiltern 013","E07000005","Chiltern","Rural"]
[null,"E02006824","Wycombe 024","E07000007","Wycombe","Other Urban"]
[null,"E02006825","East Cambridgeshire 011","E07000009","East Cambridgeshire","Rural"]
[null,"E02006826","Forest Heath 008","E07000201","Forest Heath","Other Urban"]
[null,"E02006827","Amber Valley 017","E07000032","Amber Valley","Other Urban"]
[null,"E02006828","Erewash 016","E07000036","Erewash","Other Urban"]
[null,"E02006829","East Hampshire 016","E07000085","East Hampshire","Other Urban"]
[null,"E02006830","Havant 019","E07000090","Havant","Other Urban"]
[null,"E02006831","Havant 020","E07000090","Havant","Other Urban"]
[null,"E02006832","Sevenoaks 016","E07000111","Sevenoaks","Rural"]
[null,"E02006833","Tonbridge and Malling 014","E07000115","Tonbridge and Malling","Rural"]
[null,"E02006834","Nottingham 038","E06000018","Nottingham","Other Urban"]
[null,"E02006835","Gedling 016","E07000173","Gedling","Other Urban"]
[null,"E02006836","Sutton 025","E09000029","Sutton","London"]
[null,"E02006837","Epsom and Ewell 010","E07000208","Epsom and Ewell","Other Urban"]
[null,"E02006838","East Hampshire 017","E07000085","East Hampshire","Rural"]
[null,"E02006839","Waverley 018","E07000216","Waverley","Rural"]
[null,"E02006840","Torbay 019","E06000027","Torbay","Other Urban"]
[null,"E02006841","Gateshead 027","E08000020","Gateshead","Inner and Outer Conurbation"]
[null,"E02006842","Gateshead 028","E08000020","Gateshead","Inner and Outer Conurbation"]
[null,"E02006843","Sheffield 073","E08000019","Sheffield","Inner and Outer Conurbation"]
[null,"E02006844","Sheffield 074","E08000019","Sheffield","Inner and Outer Conurbation"]
[null,"E02006845","North Somerset 026","E06000024","North Somerset","Rural"]
[null,"E02006846","North Somerset 027","E06000024","North Somerset","Other Urban"]
[null,"E02006847","Swindon 026","E06000030","Swindon","Other Urban"]
[null,"E02006848","Swindon 027","E06000030","Swindon","Rural"]
[null,"E02006849","Swindon 028","E06000030","Swindon","Other Urban"]
[null,"E02006850","Leicester 040","E06000016","Leicester","Other Urban"]
[null,"E02006851","Leicester 041","E06000016","Leicester","Other Urban"]
[null,"E02006852","Leeds 109","E08000035","Leeds","Inner and Outer Conurbation"]
[null,"E02006853","Tower Hamlets 032","E09000030","Tower Hamlets","London"]
[null,"E02006854","Tower Hamlets 033","E09000030","Tower Hamlets","London"]
[null,"E02006855","Canterbury 019","E07000106","Canterbury","Other Urban"]
[null,"E02006856","Canterbury 020","E07000106","Canterbury","Other Urban"]
[null,"E02006857","Eastbourne 013","E07000061","Eastbourne","Other Urban"]
[null,"E02006858","Eastbourne 014","E07000061","Eastbourne","Other Urban"]
[null,"E02006859","Thurrock 019","E06000034","Thurrock","Other Urban"]
[null,"E02006860","Oldham 035","E08000004","Oldham","Inner and Outer Conurbation"]
[null,"E02006861","Leeds 110","E08000035","Leeds","Inner and Outer Conurbation"]
[null,"E02006862","Corby 008","E07000150","Corby","Other Urban"]
[null,"E02006863","Corby 009","E07000150","Corby","Other Urban"]
[null,"E02006864","Boston 008","E07000136","Boston","Rural"]
[null,"E02006865","Boston 009","E07000136","Boston","Other Urban"]
[null,"E02006866","North Kesteven 013","E07000139","North Kesteven","Other Urban"]
[null,"E02006867","North Kesteven 014","E07000139","North Kesteven","Other Urban"]
[null,"E02006868","Sheffield 075","E08000019","Sheffield","Inner and Outer Conurbation"]
[null,"E02006869","Sheffield 076","E08000019","Sheffield","Inner and Outer Conurbation"]
[null,"E02006870","Ryedale 008","E07000167","Ryedale","Rural"]
[null,"E02006871","Lancaster 020","E07000121","Lancaster","Other Urban"]
[null,"E02006872","High Peak 013","E07000037","High Peak","Rural"]
[null,"E02006873","South Cambridgeshire 020","E07000012","South Cambridgeshire","Rural"]
[null,"E02006874","South Cambridgeshire 021","E07000012","South Cambridgeshire","Rural"]
[null,"E02006875","Leeds 111","E08000035","Leeds","Inner and Outer Conurbation"]
[null,"E02006876","Leeds 112","E08000035","Leeds","Inner and Outer Conurbation"]
[null,"E02006877","Peterborough 022","E06000031","Peterborough","Other Urban"]
[null,"E02006878","Peterborough 023","E06000031","Peterborough","Rural"]
[null,"E02006879","Shepway 014","E07000112","Shepway","Other Urban"]
[null,"E02006880","Shepway 015","E07000112","Shepway","Other Urban"]
[null,"E02006881","Burnley 014","E07000117","Burnley","Other Urban"]
[null,"E02006882","Harrow 033","E09000015","Harrow","London"]
[null,"E02006883","Bournemouth 023","E06000028","Bournemouth","Other Urban"]
[null,"E02006884","Rossendale 010","E07000125","Rossendale","Other Urban"]
[null,"E02006885","Bournemouth 024","E06000028","Bournemouth","Other Urban"]
[null,"E02006886","Vale of White Horse 016","E07000180","Vale of White Horse","Rural"]
[null,"E02006887","Bristol 054","E06000023","Bristol, City of","Other Urban"]
[null,"E02006888","Bristol 055","E06000023","Bristol, City of","Other Urban"]
[null,"E02006889","Bristol 056","E06000023","Bristol, City of","Other Urban"]
[null,"E02006890","Bristol 057","E06000023","Bristol, City of","Other Urban"]
[null,"E02006891","East Riding of Yorkshire 044","E06000011","East Riding of Yorkshire","Rural"]
[null,"E02006892","East Riding of Yorkshire 045","E06000011","East Riding of Yorkshire","Rural"]
[null,"E02006893","Newcastle upon Tyne 031","E08000021","Newcastle upon Tyne","Inner and Outer Conurbation"]
[null,"E02006894","Wolverhampton 035","E08000031","Wolverhampton","Inner and Outer Conurbation"]
[null,"E02006895","Birmingham 134","E08000025","Birmingham","Inner and Outer Conurbation"]
[null,"E02006896","Birmingham 135","E08000025","Birmingham","Inner and Outer Conurbation"]
[null,"E02006897","Birmingham 136","E08000025","Birmingham","Inner and Outer Conurbation"]
[null,"E02006898","Birmingham 137","E08000025","Birmingham","Inner and Outer Conurbation"]
[null,"E02006899","Birmingham 138","E08000025","Birmingham","Inner and Outer Conurbation"]
[null,"E02006900","Birmingham 139","E08000025","Birmingham","Inner and Outer Conurbation"]
[null,"E02006901","Birmingham 140","E08000025","Birmingham","Inner and Outer Conurbation"]
[null,"E02006902","Manchester 054","E08000003","Manchester","Inner and Outer Conurbation"]
[null,"E02006903","Bassetlaw 016","E07000171","Bassetlaw","Other Urban"]
[null,"E02006904","Nottingham 039","E06000018","Nottingham","Other Urban"]
[null,"E02006905","Nottingham 040","E06000018","Nottingham","Other Urban"]
[null,"E02006906","Broxtowe 016","E07000172","Broxtowe","Other Urban"]
[null,"E02006907","Norwich 014","E07000148","Norwich","Other Urban"]
[null,"E02006908","Norwich 015","E07000148","Norwich","Other Urban"]
[null,"E02006909","Hartlepool 014","E06000001","Hartlepool","Rural"]
[null,"E02006910","Redcar and Cleveland 022","E06000003","Redcar and Cleveland","Other Urban"]
[null,"E02006911","Oadby and Wigston 009","E07000135","Oadby and Wigston","Other Urban"]
[null,"E02006912","Manchester 055","E08000003","Manchester","Inner and Outer Conurbation"]
[null,"E02006913","Manchester 056","E08000003","Manchester","Inner and Outer Conurbation"]
[null,"E02006914","Manchester 057","E08000003","Manchester","Inner and Outer Conurbation"]
[null,"E02006915","Manchester 058","E08000003","Manchester","Inner and Outer Conurbation"]
[null,"E02006916","Manchester 059","E08000003","Manchester","Inner and Outer Conurbation"]
[null,"E02006917","Manchester 060","E08000003","Manchester","Inner and Outer Conurbation"]
[null,"E02006918","Hackney 028","E09000012","Hackney","London"]
[null,"E02006919","South Derbyshire 012","E07000039","South Derbyshire","Other Urban"]
[null,"E02006920","South Derbyshire 013","E07000039","South Derbyshire","Other Urban"]
[null,"E02006921","Hackney 029","E09000012","Hackney","London"]
[null,"E02006922","Colchester 022","E07000071","Colchester","Other Urban"]
[null,"E02006924","Redbridge 035","E09000026","Redbridge","London"]
[null,"E02006925","Redbridge 036","E09000026","Redbridge","London"]
[null,"E02006926","Thurrock 020","E06000034","Thurrock","Other Urban"]
[null,"E02006927","Greenwich 034","E09000011","Greenwich","London"]
[null,"E02006928","Greenwich 035","E09000011","Greenwich","London"]
[null,"E02006929","Greenwich 036","E09000011","Greenwich","London"]
[null,"E02006930","Greenwich 037","E09000011","Greenwich","London"]
[null,"E02006931","Greenwich 038","E09000011","Greenwich","London"]
[null,"E02006932","Liverpool 060","E08000012","Liverpool","Inner and Outer Conurbation"]
[null,"E02006933","Liverpool 061","E08000012","Liverpool","Inner and Outer Conurbation"]
[null,"E02006934","Liverpool 062","E08000012","Liverpool","Inner and Outer Conurbation"]
[null,"S99900001","Aberdeen City 1","S12000033","Aberdeen City","Rural"]
[null,"S99900002","Aberdeen City 2","S12000033","Aberdeen City","Other Urban"]
[null,"S99900003","Aberdeen City 3","S12000033","Aberdeen City","Other Urban"]
[null,"S99900004","Aberdeen City 4","S12000033","Aberdeen City","Rural"]
[null,"S99900005","Aberdeen City 5","S12000033","Aberdeen City","Rural"]
[null,"S99900006","Aberdeenshire 1","S12000034","Aberdeenshire","Rural"]
[null,"S99900007","Aberdeenshire 2","S12000034","Aberdeenshire","Other Urban"]
[null,"S99900008","Aberdeenshire 3","S12000034","Aberdeenshire","Rural"]
[null,"S99900009","Aberdeenshire 4","S12000034","Aberdeenshire","Rural"]
[null,"S99900010","Aberdeenshire 5","S12000034","Aberdeenshire","Rural"]
[null,"S99900011","Aberdeenshire 6","S12000034","Aberdeenshire","Rural"]
[null,"S99900012","Aberdeenshire 7","S12000034","Aberdeenshire","Other Urban"]
[null,"S99900013","Aberdeenshire 8","S12000034","Aberdeenshire","Rural"]
[null,"S99900014","Aberdeenshire 9","S12000034","Aberdeenshire","Rural"]
[null,"S99900015","Aberdeenshire 10","S12000034","Aberdeenshire","Rural"]
[null,"S99900016","Aberdeenshire 11","S12000034","Aberdeenshire","Rural"]
[null,"S99900017","Aberdeenshire 12","S12000034","Aberdeenshire","Rural"]
[null,"S99900018","Aberdeenshire 13","S12000034","Aberdeenshire","Rural"]
[null,"S99900019","Angus 1","S12000041","Angus","Rural"]
[null,"S99900020","Angus 2","S12000041","Angus","Rural"]
[null,"S99900021","Angus 3","S12000041","Angus","Rural"]
[null,"S99900022","Angus 4","S12000041","Angus","Rural"]
[null,"S99900023","Angus 5","S12000041","Angus","Other Urban"]
[null,"S99900024","Angus 6","S12000041","Angus","Rural"]
[null,"S99900025","Argyll and Bute 1","S12000035","Argyll and Bute","Rural"]
[null,"S99900026","Argyll and Bute 2","S12000035","Argyll and Bute","Rural"]
[null,"S99900027","Argyll and Bute 3","S12000035","Argyll and Bute","Rural"]
[null,"S99900028","Argyll and Bute 4","S12000035","Argyll and Bute","Rural"]
[null,"S99900029","Argyll and Bute 5","S12000035","Argyll and Bute","Rural"]
[null,"S99900030","Argyll and Bute 6","S12000035","Argyll and Bute","Rural"]
[null,"S99900031","Scottish Borders 1","S12000026","Scottish Borders","Rural"]
[null,"S99900032","Scottish Borders 2","S12000026","Scottish Borders","Rural"]
[null,"S99900033","Scottish Borders 3","S12000026","Scottish Borders","Rural"]
[null,"S99900034","Scottish Borders 4","S12000026","Scottish Borders","Rural"]
[null,"S99900035","Scottish Borders 5","S12000026","Scottish Borders","Rural"]
[null,"S99900036","Scottish Borders 6","S12000026","Scottish Borders","Rural"]
[null,"S99900037","Scottish Borders 7","S12000026","Scottish Borders","Rural"]
[null,"S99900038","Clackmannanshire 1","S12000005","Clackmannanshire","Rural"]
[null,"S99900039","Clackmannanshire 2","S12000005","Clackmannanshire","Other Urban"]
[null,"S99900040","Clackmannanshire 3","S12000005","Clackmannanshire","Rural"]
[null,"S99900041","Clackmannanshire 4","S12000005","Clackmannanshire","Rural"]
[null,"S99900042","Clackmannanshire 5","S12000005","Clackmannanshire","Rural"]
[null,"S99900043","Clackmannanshire 6","S12000005","Clackmannanshire","Other Urban"]
[null,"S99900044","West Dunbartonshire 1","S12000039","West Dunbartonshire","Rural"]
[null,"S99900045","West Dunbartonshire 2","S12000039","West Dunbartonshire","Other Urban"]
[null,"S99900046","West Dunbartonshire 3","S12000039","West Dunbartonshire","Other Urban"]
[null,"S99900047","West Dunbartonshire 4","S12000039","West Dunbartonshire","Other Urban"]
[null,"S99900048","West Dunbartonshire 5","S12000039","West Dunbartonshire","Inner and Outer Conurbation"]
[null,"S99900049","West Dunbartonshire 6","S12000039","West Dunbartonshire","Inner and Outer Conurbation"]
[null,"S99900050","West Dunbartonshire 7","S12000039","West Dunbartonshire","Inner and Outer Conurbation"]
[null,"S99900051","Dumfries and Galloway 1","S12000006","Dumfries and Galloway","Rural"]
[null,"S99900052","Dumfries and Galloway 2","S12000006","Dumfries and Galloway","Rural"]
[null,"S99900053","Dumfries and Galloway 3","S12000006","Dumfries and Galloway","Rural"]
[null,"S99900054","Dumfries and Galloway 4","S12000006","Dumfries and Galloway","Rural"]
[null,"S99900055","Dumfries and Galloway 5","S12000006","Dumfries and Galloway","Rural"]
[null,"S99900056","Dumfries and Galloway 6","S12000006","Dumfries and Galloway","Rural"]
[null,"S99900057","Dumfries and Galloway 7","S12000006","Dumfries and Galloway","Rural"]
[null,"S99900058","Dumfries and Galloway 8","S12000006","Dumfries and Galloway","Rural"]
[null,"S99900059","East Ayrshire 1","S12000008","East Ayrshire","Rural"]
[null,"S99900060","East Ayrshire 2","S12000008","East Ayrshire","Rural"]
[null,"S99900061","East Ayrshire 3","S12000008","East Ayrshire","Rural"]
[null,"S99900062","East Ayrshire 4","S12000008","East Ayrshire","Rural"]
[null,"S99900063","East Ayrshire 5","S12000008","East Ayrshire","Rural"]
[null,"S99900064","East Ayrshire 6","S12000008","East Ayrshire","Rural"]
[null,"S99900065","East Ayrshire 7","S12000008","East Ayrshire","Rural"]
[null,"S99900066","East Ayrshire 8","S12000008","East Ayrshire","Rural"]
[null,"S99900067","East Ayrshire 9","S12000008","East Ayrshire","Rural"]
[null,"S99900068","East Ayrshire 10","S12000008","East Ayrshire","Rural"]
[null,"S99900069","East Dunbartonshire 1","S12000045","East Dunbartonshire","Other Urban"]
[null,"S99900070","East Dunbartonshire 2","S12000045","East Dunbartonshire","Other Urban"]
[null,"S99900071","East Dunbartonshire 3","S12000045","East Dunbartonshire","Other Urban"]
[null,"S99900072","East Dunbartonshire 4","S12000045","East Dunbartonshire","Other Urban"]
[null,"S99900073","East Dunbartonshire 5","S12000045","East Dunbartonshire","Inner and Outer Conurbation"]
[null,"S99900074","East Dunbartonshire 6","S12000045","East Dunbartonshire","Other Urban"]
[null,"S99900075","East Lothian 1","S12000010","East Lothian","Rural"]
[null,"S99900076","East Lothian 2","S12000010","East Lothian","Rural"]
[null,"S99900077","East Lothian 3","S12000010","East Lothian","Rural"]
[null,"S99900078","East Lothian 4","S12000010","East Lothian","Rural"]
[null,"S99900079","East Lothian 5","S12000010","East Lothian","Rural"]
[null,"S99900080","East Lothian 6","S12000010","East Lothian","Rural"]
[null,"S99900081","East Renfrewshire 1","S12000011","East Renfrewshire","Other Urban"]
[null,"S99900082","East Renfrewshire 2","S12000011","East Renfrewshire","Inner and Outer Conurbation"]
[null,"S99900083","East Renfrewshire 3","S12000011","East Renfrewshire","Other Urban"]
[null,"S99900084","East Renfrewshire 4","S12000011","East Renfrewshire","Inner and Outer Conurbation"]
[null,"S99900085","East Renfrewshire 5","S12000011","East Renfrewshire","Other Urban"]
[null,"S99900086","City of Edinburgh 1","S12000036","City of Edinburgh","Rural"]
[null,"S99900087","City of Edinburgh 2","S12000036","City of Edinburgh","Rural"]
[null,"S99900088","City of Edinburgh 3","S12000036","City of Edinburgh","Rural"]
[null,"S99900089","City of Edinburgh 4","S12000036","City of Edinburgh","Other Urban"]
[null,"S99900090","Falkirk 1","S12000014","Falkirk","Other Urban"]
[null,"S99900091","Falkirk 2","S12000014","Falkirk","Other Urban"]
[null,"S99900092","Falkirk 3","S12000014","Falkirk","Other Urban"]
[null,"S99900093","Falkirk 4","S12000014","Falkirk","Other Urban"]
[null,"S99900094","Falkirk 5","S12000014","Falkirk","Rural"]
[null,"S99900095","Falkirk 6","S12000014","Falkirk","Other Urban"]
[null,"S99900096","Falkirk 7","S12000014","Falkirk","Other Urban"]
[null,"S99900097","Fife 1","S12000015","Fife","Rural"]
[null,"S99900098","Fife 2","S12000015","Fife","Rural"]
[null,"S99900099","Fife 3","S12000015","Fife","Rural"]
[null,"S99900100","Fife 4","S12000015","Fife","Other Urban"]
[null,"S99900101","Fife 5","S12000015","Fife","Rural"]
[null,"S99900102","Fife 6","S12000015","Fife","Other Urban"]
[null,"S99900103","Fife 7","S12000015","Fife","Rural"]
[null,"S99900104","Fife 8","S12000015","Fife","Rural"]
[null,"S99900105","Fife 9","S12000015","Fife","Rural"]
[null,"S99900106","Fife 10","S12000015","Fife","Rural"]
[null,"S99900107","Fife 11","S12000015","Fife","Other Urban"]
[null,"S99900108","Fife 12","S12000015","Fife","Other Urban"]
[null,"S99900109","Fife 13","S12000015","Fife","Rural"]
[null,"S99900110","Fife 14","S12000015","Fife","Rural"]
[null,"S99900111","Fife 15","S12000015","Fife","Other Urban"]
[null,"S99900112","Fife 16","S12000015","Fife","Rural"]
[null,"S99900113","Fife 17","S12000015","Fife","Rural"]
[null,"S99900114","Fife 18","S12000015","Fife","Other Urban"]
[null,"S99900115","Fife 19","S12000015","Fife","Other Urban"]
[null,"S99900116","Highland 1","S12000017","Highland","Rural"]
[null,"S99900117","Highland 2","S12000017","Highland","Rural"]
[null,"S99900118","Highland 3","S12000017","Highland","Rural"]
[null,"S99900119","Highland 4","S12000017","Highland","Rural"]
[null,"S99900120","Highland 5","S12000017","Highland","Rural"]
[null,"S99900121","Highland 6","S12000017","Highland","Rural"]
[null,"S99900122","Highland 7","S12000017","Highland","Rural"]
[null,"S99900123","Highland 8","S12000017","Highland","Rural"]
[null,"S99900124","Highland 9","S12000017","Highland","Other Urban"]
[null,"S99900125","Highland 10","S12000017","Highland","Rural"]
[null,"S99900126","Inverclyde 1","S12000018","Inverclyde","Rural"]
[null,"S99900127","Inverclyde 2","S12000018","Inverclyde","Other Urban"]
[null,"S99900128","Inverclyde 3","S12000018","Inverclyde","Rural"]
[null,"S99900129","Inverclyde 4","S12000018","Inverclyde","Other Urban"]
[null,"S99900130","Midlothian 1","S12000019","Midlothian","Other Urban"]
[null,"S99900131","Midlothian 2","S12000019","Midlothian","Other Urban"]
[null,"S99900132","Midlothian 3","S12000019","Midlothian","Rural"]
[null,"S99900133","Midlothian 4","S12000019","Midlothian","Other Urban"]
[null,"S99900134","Midlothian 5","S12000019","Midlothian","Other Urban"]
[null,"S99900135","Midlothian 6","S12000019","Midlothian","Rural"]
[null,"S99900136","Moray 1","S12000020","Moray","Rural"]
[null,"S99900137","Moray 2","S12000020","Moray","Rural"]
[null,"S99900138","Moray 3","S12000020","Moray","Rural"]
[null,"S99900139","Moray 4","S12000020","Moray","Rural"]
[null,"S99900140","North Ayrshire 1","S12000021","North Ayrshire","Rural"]
[null,"S99900141","North Ayrshire 2","S12000021","North Ayrshire","Rural"]
[null,"S99900142","North Ayrshire 3","S12000021","North Ayrshire","Other Urban"]
[null,"S99900143","North Ayrshire 4","S12000021","North Ayrshire","Other Urban"]
[null,"S99900144","North Ayrshire 5","S12000021","North Ayrshire","Rural"]
[null,"S99900145","North Ayrshire 6","S12000021","North Ayrshire","Other Urban"]
[null,"S99900146","North Ayrshire 7","S12000021","North Ayrshire","Other Urban"]
[null,"S99900147","North Ayrshire 8","S12000021","North Ayrshire","Rural"]
[null,"S99900148","North Ayrshire 9","S12000021","North Ayrshire","Rural"]
[null,"S99900149","North Ayrshire 10","S12000021","North Ayrshire","Rural"]
[null,"S99900150","North Ayrshire 11","S12000021","North Ayrshire","Other Urban"]
[null,"S99900151","North Ayrshire 12","S12000021","North Ayrshire","Rural"]
[null,"S99900152","North Lanarkshire 1","S12000044","North Lanarkshire","Other Urban"]
[null,"S99900153","North Lanarkshire 2","S12000044","North Lanarkshire","Inner and Outer Conurbation"]
[null,"S99900154","North Lanarkshire 3","S12000044","North Lanarkshire","Inner and Outer Conurbation"]
[null,"S99900155","North Lanarkshire 4","S12000044","North Lanarkshire","Rural"]
[null,"S99900156","North Lanarkshire 5","S12000044","North Lanarkshire","Other Urban"]
[null,"S99900157","North Lanarkshire 6","S12000044","North Lanarkshire","Inner and Outer Conurbation"]
[null,"S99900158","North Lanarkshire 7","S12000044","North Lanarkshire","Inner and Outer Conurbation"]
[null,"S99900159","North Lanarkshire 8","S12000044","North Lanarkshire","Inner and Outer Conurbation"]
[null,"S99900160","North Lanarkshire 9","S12000044","North Lanarkshire","Other Urban"]
[null,"S99900161","North Lanarkshire 10","S12000044","North Lanarkshire","Inner and Outer Conurbation"]
[null,"S99900162","North Lanarkshire 11","S12000044","North Lanarkshire","Inner and Outer Conurbation"]
[null,"S99900163","Orkney Islands 1","S12000023","Orkney Islands","Rural"]
[null,"S99900164","Orkney Islands 2","S12000023","Orkney Islands","Rural"]
[null,"S99900165","Perth and Kinross 1","S12000024","Perth and Kinross","Rural"]
[null,"S99900166","Perth and Kinross 2","S12000024","Perth and Kinross","Rural"]
[null,"S99900167","Perth and Kinross 3","S12000024","Perth and Kinross","Rural"]
[null,"S99900168","Perth and Kinross 4","S12000024","Perth and Kinross","Rural"]
[null,"S99900169","Perth and Kinross 5","S12000024","Perth and Kinross","Rural"]
[null,"S99900170","Renfrewshire 1","S12000038","Renfrewshire","Other Urban"]
[null,"S99900171","Renfrewshire 2","S12000038","Renfrewshire","Other Urban"]
[null,"S99900172","Renfrewshire 3","S12000038","Renfrewshire","Inner and Outer Conurbation"]
[null,"S99900173","Renfrewshire 4","S12000038","Renfrewshire","Inner and Outer Conurbation"]
[null,"S99900174","Renfrewshire 5","S12000038","Renfrewshire","Other Urban"]
[null,"S99900175","Renfrewshire 6","S12000038","Renfrewshire","Inner and Outer Conurbation"]
[null,"S99900176","Renfrewshire 7","S12000038","Renfrewshire","Other Urban"]
[null,"S99900177","Renfrewshire 8","S12000038","Renfrewshire","Other Urban"]
[null,"S99900178","Renfrewshire 9","S12000038","Renfrewshire","Inner and Outer Conurbation"]
[null,"S99900179","Shetland Islands 1","S12000027","Shetland Islands","Rural"]
[null,"S99900180","Shetland Islands 2","S12000027","Shetland Islands","Rural"]
[null,"S99900181","South Ayrshire 1","S12000028","South Ayrshire","Other Urban"]
[null,"S99900182","South Ayrshire 2","S12000028","South Ayrshire","Other Urban"]
[null,"S99900183","South Ayrshire 3","S12000028","South Ayrshire","Rural"]
[null,"S99900184","South Ayrshire 4","S12000028","South Ayrshire","Rural"]
[null,"S99900185","South Lanarkshire 1","S12000029","South Lanarkshire","Other Urban"]
[null,"S99900186","South Lanarkshire 2","S12000029","South Lanarkshire","Rural"]
[null,"S99900187","South Lanarkshire 3","S12000029","South Lanarkshire","Rural"]
[null,"S99900188","South Lanarkshire 4","S12000029","South Lanarkshire","Other Urban"]
[null,"S99900189","South Lanarkshire 5","S12000029","South Lanarkshire","Rural"]
[null,"S99900190","South Lanarkshire 6","S12000029","South Lanarkshire","Other Urban"]
[null,"S99900191","South Lanarkshire 7","S12000029","South Lanarkshire","Other Urban"]
[null,"S99900192","South Lanarkshire 8","S12000029","South Lanarkshire","Inner and Outer Conurbation"]
[null,"S99900193","South Lanarkshire 9","S12000029","South Lanarkshire","Other Urban"]
[null,"S99900194","South Lanarkshire 10","S12000029","South Lanarkshire","Inner and Outer Conurbation"]
[null,"S99900195","South Lanarkshire 11","S12000029","South Lanarkshire","Rural"]
[null,"S99900196","Stirling 1","S12000030","Stirling","Rural"]
[null,"S99900197","Stirling 2","S12000030","Stirling","Other Urban"]
[null,"S99900198","Stirling 3","S12000030","Stirling","Other Urban"]
[null,"S99900199","West Lothian 1","S12000040","West Lothian","Other Urban"]
[null,"S99900200","West Lothian 2","S12000040","West Lothian","Rural"]
[null,"S99900201","West Lothian 3","S12000040","West Lothian","Other Urban"]
[null,"S99900202","West Lothian 4","S12000040","West Lothian","Other Urban"]
[null,"S99900203","West Lothian 5","S12000040","West Lothian","Other Urban"]
[null,"S99900204","West Lothian 6","S12000040","West Lothian","Other Urban"]
[null,"S99900205","West Lothian 7","S12000040","West Lothian","Rural"]
[null,"S99900206","West Lothian 8","S12000040","West Lothian","Other Urban"]
[null,"S99900207","Comhairle nan Eilean Siar 1","S12000013","Comhairle nan Eilean Siar","Rural"]
[null,"S99900208","Glasgow City 1","S12000046","Glasgow City","Inner and Outer Conurbation"]
[null,"S99900209","Glasgow City 2","S12000046","Glasgow City","Inner and Outer Conurbation"]
[null,"S99900210","Glasgow City 3","S12000046","Glasgow City","Inner and Outer Conurbation"]
[null,"S99900211","Glasgow City 4","S12000046","Glasgow City","Inner and Outer Conurbation"]
[null,"S99900212","Glasgow City 5","S12000046","Glasgow City","Inner and Outer Conurbation"]
[null,"S99900213","Glasgow City 6","S12000046","Glasgow City","Inner and Outer Conurbation"]
[null,"S99900214","Glasgow City 7","S12000046","Glasgow City","Inner and Outer Conurbation"]
[null,"S99900215","Glasgow City 8","S12000046","Glasgow City","Inner and Outer Conurbation"]
[null,"S99900216","Glasgow City 9","S12000046","Glasgow City","Inner and Outer Conurbation"]
[null,"S99900217","Glasgow City 10","S12000046","Glasgow City","Inner and Outer Conurbation"]
[null,"S99900218","Glasgow City 11","S12000046","Glasgow City","Inner and Outer Conurbation"]
[null,"S99900219","Glasgow City 12","S12000046","Glasgow City","Inner and Outer Conurbation"]
[null,"S99900220","Glasgow City 13","S12000046","Glasgow City","Inner and Outer Conurbation"]
[null,"S99900221","Glasgow City 14","S12000046","Glasgow City","Inner and Outer Conurbation"]
[null,"S99900222","Glasgow City 15","S12000046","Glasgow City","Inner and Outer Conurbation"]
[null,"S99900223","Glasgow City 16","S12000046","Glasgow City","Inner and Outer Conurbation"]
[null,"S99900224","Glasgow City 17","S12000046","Glasgow City","Inner and Outer Conurbation"]
[null,"S99900225","Glasgow City 18","S12000046","Glasgow City","Inner and Outer Conurbation"]
[null,"S99900226","Glasgow City 19","S12000046","Glasgow City","Inner and Outer Conurbation"]
[null,"S99900227","Glasgow City 20","S12000046","Glasgow City","Inner and Outer Conurbation"]
[null,"S99900228","Glasgow City 21","S12000046","Glasgow City","Inner and Outer Conurbation"]
[null,"S99900229","Glasgow City 22","S12000046","Glasgow City","Inner and Outer Conurbation"]
[null,"S99900230","Glasgow City 23","S12000046","Glasgow City","Inner and Outer Conurbation"]
[null,"S99900231","Glasgow City 24","S12000046","Glasgow City","Inner and Outer Conurbation"]
[null,"S99900232","Glasgow City 25","S12000046","Glasgow City","Inner and Outer Conurbation"]
[null,"S99900233","Glasgow City 26","S12000046","Glasgow City","Inner and Outer Conurbation"]
[null,"S99900234","Glasgow City 27","S12000046","Glasgow City","Inner and Outer Conurbation"]
[null,"S99900235","Glasgow City 28","S12000046","Glasgow City","Inner and Outer Conurbation"]
[null,"S99900236","Glasgow City 29","S12000046","Glasgow City","Inner and Outer Conurbation"]
[null,"S99900237","Glasgow City 30","S12000046","Glasgow City","Inner and Outer Conurbation"]
[null,"S99900238","Glasgow City 31","S12000046","Glasgow City","Inner and Outer Conurbation"]
[null,"S99900239","Glasgow City 32","S12000046","Glasgow City","Inner and Outer Conurbation"]
[null,"S99900240","Glasgow City 33","S12000046","Glasgow City","Inner and Outer Conurbation"]
[null,"S99900241","Glasgow City 34","S12000046","Glasgow City","Inner and Outer Conurbation"]
[null,"S99900242","Glasgow City 35","S12000046","Glasgow City","Inner and Outer Conurbation"]
[null,"S99900243","Glasgow City 36","S12000046","Glasgow City","Inner and Outer Conurbation"]
[null,"S99900244","Glasgow City 37","S12000046","Glasgow City","Inner and Outer Conurbation"]
[null,"S99900245","Glasgow City 38","S12000046","Glasgow City","Inner and Outer Conurbation"]
[null,"S99900246","Glasgow City 39","S12000046","Glasgow City","Inner and Outer Conurbation"]
[null,"S99900247","Glasgow City 40","S12000046","Glasgow City","Inner and Outer Conurbation"]
[null,"S99900248","Glasgow City 41","S12000046","Glasgow City","Inner and Outer Conurbation"]
[null,"S99900249","Glasgow City 42","S12000046","Glasgow City","Inner and Outer Conurbation"]
[null,"S99900250","Glasgow City 43","S12000046","Glasgow City","Inner and Outer Conurbation"]
[null,"S99900251","Glasgow City 44","S12000046","Glasgow City","Inner and Outer Conurbation"]
[null,"S99900252","City of Edinburgh 5","S12000036","City of Edinburgh","Other Urban"]
[null,"S99900253","City of Edinburgh 6","S12000036","City of Edinburgh","Other Urban"]
[null,"S99900254","City of Edinburgh 7","S12000036","City of Edinburgh","Other Urban"]
[null,"S99900255","City of Edinburgh 8","S12000036","City of Edinburgh","Other Urban"]
[null,"S99900256","City of Edinburgh 9","S12000036","City of Edinburgh","Other Urban"]
[null,"S99900257","City of Edinburgh 10","S12000036","City of Edinburgh","Other Urban"]
[null,"S99900258","City of Edinburgh 11","S12000036","City of Edinburgh","Other Urban"]
[null,"S99900259","City of Edinburgh 12","S12000036","City of Edinburgh","Other Urban"]
[null,"S99900260","City of Edinburgh 13","S12000036","City of Edinburgh","Other Urban"]
[null,"S99900261","City of Edinburgh 14","S12000036","City of Edinburgh","Other Urban"]
[null,"S99900262","City of Edinburgh 15","S12000036","City of Edinburgh","Other Urban"]
[null,"S99900263","City of Edinburgh 16","S12000036","City of Edinburgh","Other Urban"]
[null,"S99900264","City of Edinburgh 17","S12000036","City of Edinburgh","Other Urban"]
[null,"S99900265","City of Edinburgh 18","S12000036","City of Edinburgh","Other Urban"]
[null,"S99900266","City of Edinburgh 19","S12000036","City of Edinburgh","Other Urban"]
[null,"S99900267","City of Edinburgh 20","S12000036","City of Edinburgh","Other Urban"]
[null,"S99900268","City of Edinburgh 21","S12000036","City of Edinburgh","Other Urban"]
[null,"S99900269","City of Edinburgh 22","S12000036","City of Edinburgh","Other Urban"]
[null,"S99900270","City of Edinburgh 23","S12000036","City of Edinburgh","Other Urban"]
[null,"S99900271","City of Edinburgh 24","S12000036","City of Edinburgh","Other Urban"]
[null,"S99900272","City of Edinburgh 25","S12000036","City of Edinburgh","Other Urban"]
[null,"S99900273","City of Edinburgh 26","S12000036","City of Edinburgh","Other Urban"]
[null,"S99900274","City of Edinburgh 27","S12000036","City of Edinburgh","Other Urban"]
[null,"S99900275","City of Edinburgh 28","S12000036","City of Edinburgh","Other Urban"]
[null,"S99900276","City of Edinburgh 29","S12000036","City of Edinburgh","Other Urban"]
[null,"S99900277","City of Edinburgh 30","S12000036","City of Edinburgh","Other Urban"]
[null,"S99900278","City of Edinburgh 31","S12000036","City of Edinburgh","Other Urban"]
[null,"S99900279","City of Edinburgh 32","S12000036","City of Edinburgh","Other Urban"]
[null,"S99900280","City of Edinburgh 33","S12000036","City of Edinburgh","Other Urban"]
[null,"S99900281","City of Edinburgh 34","S12000036","City of Edinburgh","Other Urban"]
[null,"S99900282","City of Edinburgh 35","S12000036","City of Edinburgh","Other Urban"]
[null,"S99900283","City of Edinburgh 36","S12000036","City of Edinburgh","Other Urban"]
[null,"S99900284","City of Edinburgh 37","S12000036","City of Edinburgh","Other Urban"]
[null,"S99900285","Aberdeen City 6","S12000033","Aberdeen City","Other Urban"]
[null,"S99900286","Aberdeen City 7","S12000033","Aberdeen City","Other Urban"]
[null,"S99900287","Aberdeen City 8","S12000033","Aberdeen City","Other Urban"]
[null,"S99900288","Aberdeen City 9","S12000033","Aberdeen City","Other Urban"]
[null,"S99900289","Aberdeen City 10","S12000033","Aberdeen City","Other Urban"]
[null,"S99900290","Aberdeen City 11","S12000033","Aberdeen City","Other Urban"]
[null,"S99900291","Aberdeen City 12","S12000033","Aberdeen City","Other Urban"]
[null,"S99900292","Aberdeen City 13","S12000033","Aberdeen City","Other Urban"]
[null,"S99900293","Aberdeen City 14","S12000033","Aberdeen City","Other Urban"]
[null,"S99900294","Aberdeen City 15","S12000033","Aberdeen City","Other Urban"]
[null,"S99900295","Aberdeen City 16","S12000033","Aberdeen City","Other Urban"]
[null,"S99900296","Aberdeen City 17","S12000033","Aberdeen City","Other Urban"]
[null,"S99900297","Aberdeen City 18","S12000033","Aberdeen City","Other Urban"]
[null,"S99900298","Aberdeenshire 14","S12000034","Aberdeenshire","Rural"]
[null,"S99900299","Aberdeenshire 15","S12000034","Aberdeenshire","Rural"]
[null,"S99900300","Aberdeenshire 16","S12000034","Aberdeenshire","Rural"]
[null,"S99900301","Aberdeenshire 17","S12000034","Aberdeenshire","Rural"]
[null,"S99900302","Aberdeenshire 18","S12000034","Aberdeenshire","Rural"]
[null,"S99900303","Aberdeenshire 19","S12000034","Aberdeenshire","Rural"]
[null,"S99900304","Aberdeenshire 20","S12000034","Aberdeenshire","Rural"]
[null,"S99900305","Aberdeenshire 21","S12000034","Aberdeenshire","Rural"]
[null,"S99900306","Aberdeenshire 22","S12000034","Aberdeenshire","Rural"]
[null,"S99900307","Dundee City 1","S12000042","Dundee City","Other Urban"]
[null,"S99900308","Dundee City 2","S12000042","Dundee City","Other Urban"]
[null,"S99900309","Dundee City 3","S12000042","Dundee City","Other Urban"]
[null,"S99900310","Dundee City 4","S12000042","Dundee City","Other Urban"]
[null,"S99900311","Dundee City 5","S12000042","Dundee City","Other Urban"]
[null,"S99900312","Dundee City 6","S12000042","Dundee City","Other Urban"]
[null,"S99900313","Dundee City 7","S12000042","Dundee City","Other Urban"]
[null,"S99900314","Dundee City 8","S12000042","Dundee City","Other Urban"]
[null,"S99900315","Dundee City 9","S12000042","Dundee City","Other Urban"]
[null,"S99900316","Dundee City 10","S12000042","Dundee City","Other Urban"]
[null,"S99900317","Dundee City 11","S12000042","Dundee City","Other Urban"]
[null,"S99900318","Dundee City 12","S12000042","Dundee City","Other Urban"]
[null,"S99900319","Dundee City 13","S12000042","Dundee City","Other Urban"]
[null,"S99900320","Highland 11","S12000017","Highland","Rural"]
[null,"S99900321","Highland 12","S12000017","Highland","Rural"]
[null,"S99900322","Highland 13","S12000017","Highland","Rural"]
[null,"S99900323","Highland 14","S12000017","Highland","Rural"]
[null,"S99900324","Highland 15","S12000017","Highland","Rural"]
[null,"S99900325","Highland 16","S12000017","Highland","Rural"]
[null,"S99900326","Highland 17","S12000017","Highland","Rural"]
[null,"S99900327","Highland 18","S12000017","Highland","Rural"]
[null,"S99900328","Highland 19","S12000017","Highland","Rural"]
[null,"S99900329","Fife 20","S12000015","Fife","Rural"]
[null,"S99900330","Fife 21","S12000015","Fife","Rural"]
[null,"S99900331","Fife 22","S12000015","Fife","Rural"]
[null,"S99900332","Fife 23","S12000015","Fife","Rural"]
[null,"S99900333","Fife 24","S12000015","Fife","Rural"]
[null,"S99900334","Fife 25","S12000015","Fife","Other Urban"]
[null,"S99900335","Fife 26","S12000015","Fife","Rural"]
[null,"S99900336","Fife 27","S12000015","Fife","Other Urban"]
[null,"S99900337","Fife 28","S12000015","Fife","Rural"]
[null,"S99900338","Fife 29","S12000015","Fife","Rural"]
[null,"S99900339","Fife 30","S12000015","Fife","Other Urban"]
[null,"S99900340","Dumfries and Galloway 9","S12000006","Dumfries and Galloway","Rural"]
[null,"S99900341","Dumfries and Galloway 10","S12000006","Dumfries and Galloway","Rural"]
[null,"S99900342","Dumfries and Galloway 11","S12000006","Dumfries and Galloway","Rural"]
[null,"S99900343","Dumfries and Galloway 12","S12000006","Dumfries and Galloway","Rural"]
[null,"S99900344","Dumfries and Galloway 13","S12000006","Dumfries and Galloway","Rural"]
[null,"S99900345","Dumfries and Galloway 14","S12000006","Dumfries and Galloway","Rural"]
[null,"S99900346","Renfrewshire 10","S12000038","Renfrewshire","Inner and Outer Conurbation"]
[null,"S99900347","Renfrewshire 11","S12000038","Renfrewshire","Inner and Outer Conurbation"]
[null,"S99900348","Renfrewshire 12","S12000038","Renfrewshire","Inner and Outer Conurbation"]
[null,"S99900349","Renfrewshire 13","S12000038","Renfrewshire","Inner and Outer Conurbation"]
[null,"S99900350","Renfrewshire 14","S12000038","Renfrewshire","Inner and Outer Conurbation"]
[null,"S99900351","Perth and Kinross 6","S12000024","Perth and Kinross","Rural"]
[null,"S99900352","Perth and Kinross 7","S12000024","Perth and Kinross","Rural"]
[null,"S99900353","Perth and Kinross 8","S12000024","Perth and Kinross","Rural"]
[null,"S99900354","Perth and Kinross 9","S12000024","Perth and Kinross","Rural"]
[null,"S99900355","Perth and Kinross 10","S12000024","Perth and Kinross","Rural"]
[null,"S99900356","South Lanarkshire 12","S12000029","South Lanarkshire","Other Urban"]
[null,"S99900357","South Lanarkshire 13","S12000029","South Lanarkshire","Other Urban"]
[null,"S99900358","South Lanarkshire 14","S12000029","South Lanarkshire","Other Urban"]
[null,"S99900359","South Lanarkshire 15","S12000029","South Lanarkshire","Other Urban"]
[null,"S99900360","Scottish Borders 8","S12000026","Scottish Borders","Rural"]
[null,"S99900361","Scottish Borders 9","S12000026","Scottish Borders","Rural"]
[null,"S99900362","Scottish Borders 10","S12000026","Scottish Borders","Rural"]
[null,"S99900363","South Lanarkshire 16","S12000029","South Lanarkshire","Inner and Outer Conurbation"]
[null,"S99900364","South Lanarkshire 17","S12000029","South Lanarkshire","Inner and Outer Conurbation"]
[null,"S99900365","South Lanarkshire 18","S12000029","South Lanarkshire","Inner and Outer Conurbation"]
[null,"S99900366","South Lanarkshire 19","S12000029","South Lanarkshire","Inner and Outer Conurbation"]
[null,"S99900367","North Lanarkshire 12","S12000044","North Lanarkshire","Other Urban"]
[null,"S99900368","North Lanarkshire 13","S12000044","North Lanarkshire","Other Urban"]
[null,"S99900369","North Lanarkshire 14","S12000044","North Lanarkshire","Other Urban"]
[null,"S99900370","North Lanarkshire 15","S12000044","North Lanarkshire","Rural"]
[null,"S99900371","South Lanarkshire 20","S12000029","South Lanarkshire","Other Urban"]
[null,"S99900372","South Lanarkshire 21","S12000029","South Lanarkshire","Other Urban"]
[null,"S99900373","South Lanarkshire 22","S12000029","South Lanarkshire","Other Urban"]
[null,"S99900374","South Lanarkshire 23","S12000029","South Lanarkshire","Other Urban"]
[null,"S99900375","West Lothian 9","S12000040","West Lothian","Other Urban"]
[null,"S99900376","West Lothian 10","S12000040","West Lothian","Other Urban"]
[null,"S99900377","West Lothian 11","S12000040","West Lothian","Other Urban"]
[null,"S99900378","West Lothian 12","S12000040","West Lothian","Other Urban"]
[null,"S99900379","West Lothian 13","S12000040","West Lothian","Rural"]
[null,"S99900380","West Lothian 14","S12000040","West Lothian","Rural"]
[null,"S99900381","West Lothian 15","S12000040","West Lothian","Other Urban"]
[null,"S99900382","West Lothian 16","S12000040","West Lothian","Rural"]
[null,"S99900383","North Lanarkshire 16","S12000044","North Lanarkshire","Inner and Outer Conurbation"]
[null,"S99900384","North Lanarkshire 17","S12000044","North Lanarkshire","Inner and Outer Conurbation"]
[null,"S99900385","North Lanarkshire 18","S12000044","North Lanarkshire","Inner and Outer Conurbation"]
[null,"S99900386","Fife 31","S12000015","Fife","Other Urban"]
[null,"S99900387","Fife 32","S12000015","Fife","Other Urban"]
[null,"S99900388","Fife 33","S12000015","Fife","Other Urban"]
[null,"S99900389","Highland 20","S12000017","Highland","Other Urban"]
[null,"S99900390","Highland 21","S12000017","Highland","Other Urban"]
[null,"S99900391","Highland 22","S12000017","Highland","Other Urban"]
[null,"S99900392","Moray 5","S12000020","Moray","Rural"]
[null,"S99900393","Moray 6","S12000020","Moray","Rural"]
[null,"S99900394","Moray 7","S12000020","Moray","Rural"]
[null,"S99900395","East Ayrshire 11","S12000008","East Ayrshire","Other Urban"]
[null,"S99900396","East Ayrshire 12","S12000008","East Ayrshire","Other Urban"]
[null,"S99900397","Inverclyde 5","S12000018","Inverclyde","Other Urban"]
[null,"S99900398","Inverclyde 6","S12000018","Inverclyde","Other Urban"]
[null,"S99900399","South Lanarkshire 24","S12000029","South Lanarkshire","Rural"]
[null,"S99900400","South Lanarkshire 25","S12000029","South Lanarkshire","Rural"]
[null,"S99900401","South Lanarkshire 26","S12000029","South Lanarkshire","Rural"]
[null,"S99900402","Argyll and Bute 7","S12000035","Argyll and Bute","Rural"]
[null,"S99900403","Argyll and Bute 8","S12000035","Argyll and Bute","Rural"]
[null,"S99900404","Argyll and Bute 9","S12000035","Argyll and Bute","Rural"]
[null,"S99900405","Fife 34","S12000015","Fife","Other Urban"]
[null,"S99900406","Fife 35","S12000015","Fife","Other Urban"]
[null,"S99900407","Fife 36","S12000015","Fife","Other Urban"]
[null,"S99900408","Stirling 4","S12000030","Stirling","Rural"]
[null,"S99900409","Angus 7","S12000041","Angus","Rural"]
[null,"S99900410","Angus 8","S12000041","Angus","Rural"]
[null,"S99900411","Angus 9","S12000041","Angus","Rural"]
[null,"S99900412","Fife 37","S12000015","Fife","Other Urban"]
[null,"S99900413","Fife 38","S12000015","Fife","Other Urban"]
[null,"S99900414","Fife 39","S12000015","Fife","Other Urban"]
[null,"S99900415","East Ayrshire 13","S12000008","East Ayrshire","Rural"]
[null,"S99900416","East Ayrshire 14","S12000008","East Ayrshire","Rural"]
[null,"S99900417","North Lanarkshire 19","S12000044","North Lanarkshire","Inner and Outer Conurbation"]
[null,"S99900418","East Lothian 7","S12000010","East Lothian","Rural"]
[null,"S99900419","East Lothian 8","S12000010","East Lothian","Rural"]
[null,"S99900420","Falkirk 8","S12000014","Falkirk","Other Urban"]
[null,"S99900421","Falkirk 9","S12000014","Falkirk","Other Urban"]
[null,"S99900422","Stirling 5","S12000030","Stirling","Other Urban"]
[null,"S99900423","North Lanarkshire 20","S12000044","North Lanarkshire","Inner and Outer Conurbation"]
[null,"S99900424","North Lanarkshire 21","S12000044","North Lanarkshire","Inner and Outer Conurbation"]
[null,"S99900425","Falkirk 10","S12000014","Falkirk","Rural"]
[null,"S99900426","Falkirk 11","S12000014","Falkirk","Other Urban"]
[null,"S99900427","North Ayrshire 13","S12000021","North Ayrshire","Other Urban"]
[null,"S99900428","North Ayrshire 14","S12000021","North Ayrshire","Other Urban"]
[null,"S99900429","South Ayrshire 5","S12000028","South Ayrshire","Rural"]
[null,"S99900430","South Ayrshire 6","S12000028","South Ayrshire","Rural"]
[null,"S99900431","West Dunbartonshire 8","S12000039","West Dunbartonshire","Inner and Outer Conurbation"]
[null,"S99900432","West Dunbartonshire 9","S12000039","West Dunbartonshire","Inner and Outer Conurbation"]
[null,"S99900433","Dumfries and Galloway 15","S12000006","Dumfries and Galloway","Other Urban"]
[null,"S99900434","Dumfries and Galloway 16","S12000006","Dumfries and Galloway","Other Urban"]
[null,"S99900435","North Lanarkshire 22","S12000044","North Lanarkshire","Inner and Outer Conurbation"]
[null,"S99900436","North Lanarkshire 23","S12000044","North Lanarkshire","Inner and Outer Conurbation"]
[null,"S99900437","East Dunbartonshire 7","S12000045","East Dunbartonshire","Inner and Outer Conurbation"]
[null,"S99900438","East Dunbartonshire 8","S12000045","East Dunbartonshire","Inner and Outer Conurbation"]
[null,"S99900439","South Ayrshire 7","S12000028","South Ayrshire","Other Urban"]
[null,"S99900440","South Ayrshire 8","S12000028","South Ayrshire","Other Urban"]
[null,"S99900441","South Ayrshire 9","S12000028","South Ayrshire","Other Urban"]
[null,"S99900442","South Ayrshire 10","S12000028","South Ayrshire","Other Urban"]
[null,"S99900443","North Lanarkshire 24","S12000044","North Lanarkshire","Other Urban"]
[null,"S99900444","North Lanarkshire 25","S12000044","North Lanarkshire","Other Urban"]
[null,"S99900445","North Lanarkshire 26","S12000044","North Lanarkshire","Other Urban"]
[null,"S99900446","North Lanarkshire 27","S12000044","North Lanarkshire","Other Urban"]
[null,"S99900447","Perth and Kinross 11","S12000024","Perth and Kinross","Other Urban"]
[null,"S99900448","Perth and Kinross 12","S12000024","Perth and Kinross","Other Urban"]
[null,"S99900449","Perth and Kinross 13","S12000024","Perth and Kinross","Other Urban"]
[null,"S99900450","Glasgow City 45","S12000046","Glasgow City","Inner and Outer Conurbation"]
[null,"S99900451","Glasgow City 46","S12000046","Glasgow City","Inner and Outer Conurbation"]
[null,"S99900452","Highland 23","S12000017","Highland","Rural"]
[null,"S99900453","Highland 24","S12000017","Highland","Rural"]
[null,"S99900454","Angus 10","S12000041","Angus","Rural"]
[null,"S99900455","Angus 11","S12000041","Angus","Rural"]
[null,"S99900456","East Renfrewshire 6","S12000011","East Renfrewshire","Inner and Outer Conurbation"]
[null,"S99900457","East Renfrewshire 7","S12000011","East Renfrewshire","Inner and Outer Conurbation"]
[null,"S99900458","North Lanarkshire 28","S12000044","North Lanarkshire","Inner and Outer Conurbation"]
[null,"S99900459","North Lanarkshire 29","S12000044","North Lanarkshire","Inner and Outer Conurbation"]
[null,"S99900460","East Dunbartonshire 9","S12000045","East Dunbartonshire","Inner and Outer Conurbation"]
[null,"S99900461","East Dunbartonshire 10","S12000045","East Dunbartonshire","Inner and Outer Conurbation"]
[null,"S99900462","Moray 8","S12000020","Moray","Rural"]
[null,"S99900463","Moray 9","S12000020","Moray","Rural"]
[null,"S99900464","East Lothian 9","S12000010","East Lothian","Other Urban"]
[null,"S99900465","East Lothian 10","S12000010","East Lothian","Other Urban"]
[null,"S99900466","Midlothian 7","S12000019","Midlothian","Rural"]
[null,"S99900467","Midlothian 8","S12000019","Midlothian","Rural"]
[null,"S99900468","Aberdeen City 19","S12000033","Aberdeen City","Other Urban"]
[null,"S99900469","Aberdeen City 20","S12000033","Aberdeen City","Other Urban"]
[null,"S99900470","City of Edinburgh 38","S12000036","City of Edinburgh","Other Urban"]
[null,"S99900471","City of Edinburgh 39","S12000036","City of Edinburgh","Other Urban"]
[null,"S99900472","East Ayrshire 15","S12000008","East Ayrshire","Other Urban"]
[null,"S99900473","East Ayrshire 16","S12000008","East Ayrshire","Other Urban"]
[null,"S99900474","East Renfrewshire 8","S12000011","East Renfrewshire","Inner and Outer Conurbation"]
[null,"S99900475","East Renfrewshire 9","S12000011","East Renfrewshire","Inner and Outer Conurbation"]
[null,"S99900476","Inverclyde 7","S12000018","Inverclyde","Other Urban"]
[null,"S99900477","Inverclyde 8","S12000018","Inverclyde","Other Urban"]
[null,"S99900478","Aberdeenshire 23","S12000034","Aberdeenshire","Rural"]
[null,"S99900479","Aberdeenshire 24","S12000034","Aberdeenshire","Rural"]
[null,"S99900480","Renfrewshire 15","S12000038","Renfrewshire","Inner and Outer Conurbation"]
[null,"S99900481","Renfrewshire 16","S12000038","Renfrewshire","Inner and Outer Conurbation"]
[null,"S99900482","Falkirk 12","S12000014","Falkirk","Other Urban"]
[null,"S99900483","Falkirk 13","S12000014","Falkirk","Other Urban"]
[null,"S99900484","North Lanarkshire 30","S12000044","North Lanarkshire","Inner and Outer Conurbation"]
[null,"S99900485","North Lanarkshire 31","S12000044","North Lanarkshire","Inner and Outer Conurbation"]
[null,"S99900486","Stirling 6","S12000030","Stirling","Rural"]
[null,"S99900487","Stirling 7","S12000030","Stirling","Rural"]
[null,"S99900488","Aberdeenshire 25","S12000034","Aberdeenshire","Rural"]
[null,"S99900489","Aberdeenshire 26","S12000034","Aberdeenshire","Rural"]
[null,"S99900490","Stirling 8","S12000030","Stirling","Other Urban"]
[null,"S99900491","Stirling 9","S12000030","Stirling","Other Urban"]
[null,"S99900492","Scottish Borders 11","S12000026","Scottish Borders","Rural"]
[null,"S99900493","Scottish Borders 12","S12000026","Scottish Borders","Rural"]
[null,"S99900494","South Lanarkshire 27","S12000029","South Lanarkshire","Other Urban"]
[null,"S99900495","South Lanarkshire 28","S12000029","South Lanarkshire","Other Urban"]
[null,"S99900496","City of Edinburgh 40","S12000036","City of Edinburgh","Other Urban"]
[null,"S99900497","City of Edinburgh 41","S12000036","City of Edinburgh","Other Urban"]
[null,"S99900498","Comhairle nan Eilean Siar 2","S12000013","Comhairle nan Eilean Siar","Rural"]
[null,"S99900499","Comhairle nan Eilean Siar 3","S12000013","Comhairle nan Eilean Siar","Rural"]
[null,"W02000001","Isle of Anglesey 001","W06000001","Isle of Anglesey","Rural"]
[null,"W02000002","Isle of Anglesey 002","W06000001","Isle of Anglesey","Rural"]
[null,"W02000003","Isle of Anglesey 003","W06000001","Isle of Anglesey","Other Urban"]
[null,"W02000004","Isle of Anglesey 004","W06000001","Isle of Anglesey","Rural"]
[null,"W02000005","Isle of Anglesey 005","W06000001","Isle of Anglesey","Rural"]
[null,"W02000006","Isle of Anglesey 006","W06000001","Isle of Anglesey","Rural"]
[null,"W02000007","Isle of Anglesey 007","W06000001","Isle of Anglesey","Rural"]
[null,"W02000008","Isle of Anglesey 008","W06000001","Isle of Anglesey","Rural"]
[null,"W02000009","Isle of Anglesey 009","W06000001","Isle of Anglesey","Rural"]
[null,"W02000010","Gwynedd 001","W06000002","Gwynedd","Other Urban"]
[null,"W02000011","Gwynedd 002","W06000002","Gwynedd","Rural"]
[null,"W02000012","Gwynedd 003","W06000002","Gwynedd","Rural"]
[null,"W02000013","Gwynedd 004","W06000002","Gwynedd","Rural"]
[null,"W02000014","Gwynedd 005","W06000002","Gwynedd","Rural"]
[null,"W02000015","Gwynedd 006","W06000002","Gwynedd","Other Urban"]
[null,"W02000016","Gwynedd 007","W06000002","Gwynedd","Rural"]
[null,"W02000017","Gwynedd 008","W06000002","Gwynedd","Rural"]
[null,"W02000018","Gwynedd 009","W06000002","Gwynedd","Rural"]
[null,"W02000019","Gwynedd 010","W06000002","Gwynedd","Rural"]
[null,"W02000020","Gwynedd 011","W06000002","Gwynedd","Rural"]
[null,"W02000021","Gwynedd 012","W06000002","Gwynedd","Rural"]
[null,"W02000022","Gwynedd 013","W06000002","Gwynedd","Rural"]
[null,"W02000023","Gwynedd 014","W06000002","Gwynedd","Rural"]
[null,"W02000024","Gwynedd 015","W06000002","Gwynedd","Rural"]
[null,"W02000025","Gwynedd 016","W06000002","Gwynedd","Rural"]
[null,"W02000026","Gwynedd 017","W06000002","Gwynedd","Rural"]
[null,"W02000027","Conwy 001","W06000003","Conwy","Rural"]
[null,"W02000028","Conwy 002","W06000003","Conwy","Rural"]
[null,"W02000029","Conwy 003","W06000003","Conwy","Rural"]
[null,"W02000030","Conwy 004","W06000003","Conwy","Other Urban"]
[null,"W02000031","Conwy 005","W06000003","Conwy","Other Urban"]
[null,"W02000032","Conwy 006","W06000003","Conwy","Rural"]
[null,"W02000033","Conwy 007","W06000003","Conwy","Other Urban"]
[null,"W02000034","Conwy 008","W06000003","Conwy","Other Urban"]
[null,"W02000035","Conwy 009","W06000003","Conwy","Other Urban"]
[null,"W02000036","Conwy 010","W06000003","Conwy","Other Urban"]
[null,"W02000037","Conwy 011","W06000003","Conwy","Rural"]
[null,"W02000038","Conwy 012","W06000003","Conwy","Rural"]
[null,"W02000039","Conwy 013","W06000003","Conwy","Rural"]
[null,"W02000040","Conwy 014","W06000003","Conwy","Rural"]
[null,"W02000041","Conwy 015","W06000003","Conwy","Rural"]
[null,"W02000042","Denbighshire 001","W06000004","Denbighshire","Other Urban"]
[null,"W02000043","Denbighshire 002","W06000004","Denbighshire","Other Urban"]
[null,"W02000044","Denbighshire 003","W06000004","Denbighshire","Other Urban"]
[null,"W02000045","Denbighshire 004","W06000004","Denbighshire","Other Urban"]
[null,"W02000047","Denbighshire 006","W06000004","Denbighshire","Other Urban"]
[null,"W02000049","Denbighshire 008","W06000004","Denbighshire","Rural"]
[null,"W02000050","Denbighshire 009","W06000004","Denbighshire","Rural"]
[null,"W02000051","Denbighshire 010","W06000004","Denbighshire","Rural"]
[null,"W02000052","Denbighshire 011","W06000004","Denbighshire","Rural"]
[null,"W02000053","Denbighshire 012","W06000004","Denbighshire","Rural"]
[null,"W02000054","Denbighshire 013","W06000004","Denbighshire","Rural"]
[null,"W02000055","Denbighshire 014","W06000004","Denbighshire","Rural"]
[null,"W02000056","Denbighshire 015","W06000004","Denbighshire","Rural"]
[null,"W02000057","Denbighshire 016","W06000004","Denbighshire","Rural"]
[null,"W02000058","Flintshire 001","W06000005","Flintshire","Rural"]
[null,"W02000059","Flintshire 002","W06000005","Flintshire","Rural"]
[null,"W02000060","Flintshire 003","W06000005","Flintshire","Rural"]
[null,"W02000061","Flintshire 004","W06000005","Flintshire","Rural"]
[null,"W02000062","Flintshire 005","W06000005","Flintshire","Rural"]
[null,"W02000063","Flintshire 006","W06000005","Flintshire","Rural"]
[null,"W02000064","Flintshire 007","W06000005","Flintshire","Other Urban"]
[null,"W02000065","Flintshire 008","W06000005","Flintshire","Other Urban"]
[null,"W02000066","Flintshire 009","W06000005","Flintshire","Other Urban"]
[null,"W02000067","Flintshire 010","W06000005","Flintshire","Other Urban"]
[null,"W02000068","Flintshire 011","W06000005","Flintshire","Other Urban"]
[null,"W02000069","Flintshire 012","W06000005","Flintshire","Rural"]
[null,"W02000070","Flintshire 013","W06000005","Flintshire","Other Urban"]
[null,"W02000071","Flintshire 014","W06000005","Flintshire","Rural"]
[null,"W02000072","Flintshire 015","W06000005","Flintshire","Other Urban"]
[null,"W02000073","Flintshire 016","W06000005","Flintshire","Other Urban"]
[null,"W02000074","Flintshire 017","W06000005","Flintshire","Rural"]
[null,"W02000075","Flintshire 018","W06000005","Flintshire","Rural"]
[null,"W02000076","Flintshire 019","W06000005","Flintshire","Rural"]
[null,"W02000077","Flintshire 020","W06000005","Flintshire","Rural"]
[null,"W02000080","Wrexham 003","W06000006","Wrexham","Other Urban"]
[null,"W02000081","Wrexham 004","W06000006","Wrexham","Other Urban"]
[null,"W02000082","Wrexham 005","W06000006","Wrexham","Other Urban"]
[null,"W02000083","Wrexham 006","W06000006","Wrexham","Rural"]
[null,"W02000084","Wrexham 007","W06000006","Wrexham","Other Urban"]
[null,"W02000085","Wrexham 008","W06000006","Wrexham","Other Urban"]
[null,"W02000086","Wrexham 009","W06000006","Wrexham","Other Urban"]
[null,"W02000087","Wrexham 010","W06000006","Wrexham","Other Urban"]
[null,"W02000088","Wrexham 011","W06000006","Wrexham","Other Urban"]
[null,"W02000089","Wrexham 012","W06000006","Wrexham","Other Urban"]
[null,"W02000090","Wrexham 013","W06000006","Wrexham","Rural"]
[null,"W02000091","Wrexham 014","W06000006","Wrexham","Rural"]
[null,"W02000092","Wrexham 015","W06000006","Wrexham","Rural"]
[null,"W02000093","Wrexham 016","W06000006","Wrexham","Rural"]
[null,"W02000094","Wrexham 017","W06000006","Wrexham","Rural"]
[null,"W02000095","Wrexham 018","W06000006","Wrexham","Rural"]
[null,"W02000096","Wrexham 019","W06000006","Wrexham","Rural"]
[null,"W02000097","Powys 001","W06000023","Powys","Rural"]
[null,"W02000098","Powys 002","W06000023","Powys","Rural"]
[null,"W02000099","Powys 003","W06000023","Powys","Rural"]
[null,"W02000100","Powys 004","W06000023","Powys","Rural"]
[null,"W02000101","Powys 005","W06000023","Powys","Rural"]
[null,"W02000102","Powys 006","W06000023","Powys","Rural"]
[null,"W02000103","Powys 007","W06000023","Powys","Rural"]
[null,"W02000104","Powys 008","W06000023","Powys","Other Urban"]
[null,"W02000105","Powys 009","W06000023","Powys","Other Urban"]
[null,"W02000106","Powys 010","W06000023","Powys","Rural"]
[null,"W02000107","Powys 011","W06000023","Powys","Rural"]
[null,"W02000108","Powys 012","W06000023","Powys","Rural"]
[null,"W02000109","Powys 013","W06000023","Powys","Rural"]
[null,"W02000110","Powys 014","W06000023","Powys","Rural"]
[null,"W02000111","Powys 015","W06000023","Powys","Rural"]
[null,"W02000113","Powys 017","W06000023","Powys","Other Urban"]
[null,"W02000114","Powys 018","W06000023","Powys","Rural"]
[null,"W02000116","Ceredigion 001","W06000008","Ceredigion","Rural"]
[null,"W02000117","Ceredigion 002","W06000008","Ceredigion","Other Urban"]
[null,"W02000118","Ceredigion 003","W06000008","Ceredigion","Other Urban"]
[null,"W02000120","Ceredigion 005","W06000008","Ceredigion","Rural"]
[null,"W02000122","Ceredigion 007","W06000008","Ceredigion","Rural"]
[null,"W02000123","Ceredigion 008","W06000008","Ceredigion","Rural"]
[null,"W02000124","Ceredigion 009","W06000008","Ceredigion","Rural"]
[null,"W02000125","Ceredigion 010","W06000008","Ceredigion","Rural"]
[null,"W02000126","Pembrokeshire 001","W06000009","Pembrokeshire","Rural"]
[null,"W02000127","Pembrokeshire 002","W06000009","Pembrokeshire","Rural"]
[null,"W02000128","Pembrokeshire 003","W06000009","Pembrokeshire","Rural"]
[null,"W02000129","Pembrokeshire 004","W06000009","Pembrokeshire","Rural"]
[null,"W02000130","Pembrokeshire 005","W06000009","Pembrokeshire","Other Urban"]
[null,"W02000131","Pembrokeshire 006","W06000009","Pembrokeshire","Rural"]
[null,"W02000132","Pembrokeshire 007","W06000009","Pembrokeshire","Rural"]
[null,"W02000133","Pembrokeshire 008","W06000009","Pembrokeshire","Rural"]
[null,"W02000134","Pembrokeshire 009","W06000009","Pembrokeshire","Rural"]
[null,"W02000135","Pembrokeshire 010","W06000009","Pembrokeshire","Other Urban"]
[null,"W02000136","Pembrokeshire 011","W06000009","Pembrokeshire","Rural"]
[null,"W02000137","Pembrokeshire 012","W06000009","Pembrokeshire","Other Urban"]
[null,"W02000138","Pembrokeshire 013","W06000009","Pembrokeshire","Other Urban"]
[null,"W02000139","Pembrokeshire 014","W06000009","Pembrokeshire","Rural"]
[null,"W02000140","Pembrokeshire 015","W06000009","Pembrokeshire","Rural"]
[null,"W02000141","Pembrokeshire 016","W06000009","Pembrokeshire","Rural"]
[null,"W02000142","Carmarthenshire 001","W06000010","Carmarthenshire","Rural"]
[null,"W02000143","Carmarthenshire 002","W06000010","Carmarthenshire","Rural"]
[null,"W02000144","Carmarthenshire 003","W06000010","Carmarthenshire","Rural"]
[null,"W02000145","Carmarthenshire 004","W06000010","Carmarthenshire","Rural"]
[null,"W02000146","Carmarthenshire 005","W06000010","Carmarthenshire","Rural"]
[null,"W02000147","Carmarthenshire 006","W06000010","Carmarthenshire","Rural"]
[null,"W02000148","Carmarthenshire 007","W06000010","Carmarthenshire","Rural"]
[null,"W02000149","Carmarthenshire 008","W06000010","Carmarthenshire","Rural"]
[null,"W02000151","Carmarthenshire 010","W06000010","Carmarthenshire","Rural"]
[null,"W02000152","Carmarthenshire 011","W06000010","Carmarthenshire","Rural"]
[null,"W02000153","Carmarthenshire 012","W06000010","Carmarthenshire","Rural"]
[null,"W02000154","Carmarthenshire 013","W06000010","Carmarthenshire","Rural"]
[null,"W02000156","Carmarthenshire 015","W06000010","Carmarthenshire","Rural"]
[null,"W02000157","Carmarthenshire 016","W06000010","Carmarthenshire","Rural"]
[null,"W02000158","Carmarthenshire 017","W06000010","Carmarthenshire","Rural"]
[null,"W02000159","Carmarthenshire 018","W06000010","Carmarthenshire","Rural"]
[null,"W02000160","Carmarthenshire 019","W06000010","Carmarthenshire","Rural"]
[null,"W02000161","Carmarthenshire 020","W06000010","Carmarthenshire","Other Urban"]
[null,"W02000162","Carmarthenshire 021","W06000010","Carmarthenshire","Rural"]
[null,"W02000163","Carmarthenshire 022","W06000010","Carmarthenshire","Other Urban"]
[null,"W02000164","Carmarthenshire 023","W06000010","Carmarthenshire","Other Urban"]
[null,"W02000165","Carmarthenshire 024","W06000010","Carmarthenshire","Other Urban"]
[null,"W02000166","Carmarthenshire 025","W06000010","Carmarthenshire","Other Urban"]
[null,"W02000167","Carmarthenshire 026","W06000010","Carmarthenshire","Other Urban"]
[null,"W02000168","Swansea 001","W06000011","Swansea","Rural"]
[null,"W02000169","Swansea 002","W06000011","Swansea","Rural"]
[null,"W02000170","Swansea 003","W06000011","Swansea","Other Urban"]
[null,"W02000171","Swansea 004","W06000011","Swansea","Rural"]
[null,"W02000172","Swansea 005","W06000011","Swansea","Rural"]
[null,"W02000173","Swansea 006","W06000011","Swansea","Other Urban"]
[null,"W02000174","Swansea 007","W06000011","Swansea","Rural"]
[null,"W02000175","Swansea 008","W06000011","Swansea","Other Urban"]
[null,"W02000176","Swansea 009","W06000011","Swansea","Other Urban"]
[null,"W02000177","Swansea 010","W06000011","Swansea","Other Urban"]
[null,"W02000178","Swansea 011","W06000011","Swansea","Other Urban"]
[null,"W02000179","Swansea 012","W06000011","Swansea","Other Urban"]
[null,"W02000180","Swansea 013","W06000011","Swansea","Other Urban"]
[null,"W02000181","Swansea 014","W06000011","Swansea","Other Urban"]
[null,"W02000182","Swansea 015","W06000011","Swansea","Other Urban"]
[null,"W02000183","Swansea 016","W06000011","Swansea","Other Urban"]
[null,"W02000184","Swansea 017","W06000011","Swansea","Other Urban"]
[null,"W02000185","Swansea 018","W06000011","Swansea","Rural"]
[null,"W02000186","Swansea 019","W06000011","Swansea","Other Urban"]
[null,"W02000187","Swansea 020","W06000011","Swansea","Other Urban"]
[null,"W02000188","Swansea 021","W06000011","Swansea","Other Urban"]
[null,"W02000189","Swansea 022","W06000011","Swansea","Other Urban"]
[null,"W02000190","Swansea 023","W06000011","Swansea","Other Urban"]
[null,"W02000191","Swansea 024","W06000011","Swansea","Other Urban"]
[null,"W02000192","Swansea 025","W06000011","Swansea","Other Urban"]
[null,"W02000193","Swansea 026","W06000011","Swansea","Other Urban"]
[null,"W02000194","Swansea 027","W06000011","Swansea","Other Urban"]
[null,"W02000195","Swansea 028","W06000011","Swansea","Rural"]
[null,"W02000196","Swansea 029","W06000011","Swansea","Other Urban"]
[null,"W02000197","Swansea 030","W06000011","Swansea","Rural"]
[null,"W02000198","Swansea 031","W06000011","Swansea","Other Urban"]
[null,"W02000200","Neath Port Talbot 002","W06000012","Neath Port Talbot","Rural"]
[null,"W02000201","Neath Port Talbot 003","W06000012","Neath Port Talbot","Rural"]
[null,"W02000202","Neath Port Talbot 004","W06000012","Neath Port Talbot","Rural"]
[null,"W02000203","Neath Port Talbot 005","W06000012","Neath Port Talbot","Rural"]
[null,"W02000204","Neath Port Talbot 006","W06000012","Neath Port Talbot","Other Urban"]
[null,"W02000205","Neath Port Talbot 007","W06000012","Neath Port Talbot","Other Urban"]
[null,"W02000206","Neath Port Talbot 008","W06000012","Neath Port Talbot","Other Urban"]
[null,"W02000207","Neath Port Talbot 009","W06000012","Neath Port Talbot","Rural"]
[null,"W02000208","Neath Port Talbot 010","W06000012","Neath Port Talbot","Other Urban"]
[null,"W02000209","Neath Port Talbot 011","W06000012","Neath Port Talbot","Rural"]
[null,"W02000210","Neath Port Talbot 012","W06000012","Neath Port Talbot","Other Urban"]
[null,"W02000211","Neath Port Talbot 013","W06000012","Neath Port Talbot","Other Urban"]
[null,"W02000212","Neath Port Talbot 014","W06000012","Neath Port Talbot","Rural"]
[null,"W02000213","Neath Port Talbot 015","W06000012","Neath Port Talbot","Other Urban"]
[null,"W02000214","Neath Port Talbot 016","W06000012","Neath Port Talbot","Other Urban"]
[null,"W02000215","Neath Port Talbot 017","W06000012","Neath Port Talbot","Other Urban"]
[null,"W02000216","Neath Port Talbot 018","W06000012","Neath Port Talbot","Other Urban"]
[null,"W02000217","Neath Port Talbot 019","W06000012","Neath Port Talbot","Rural"]
[null,"W02000218","Bridgend 001","W06000013","Bridgend","Rural"]
[null,"W02000219","Bridgend 002","W06000013","Bridgend","Rural"]
[null,"W02000220","Bridgend 003","W06000013","Bridgend","Rural"]
[null,"W02000221","Bridgend 004","W06000013","Bridgend","Rural"]
[null,"W02000222","Bridgend 005","W06000013","Bridgend","Rural"]
[null,"W02000223","Bridgend 006","W06000013","Bridgend","Rural"]
[null,"W02000224","Bridgend 007","W06000013","Bridgend","Rural"]
[null,"W02000225","Bridgend 008","W06000013","Bridgend","Rural"]
[null,"W02000226","Bridgend 009","W06000013","Bridgend","Rural"]
[null,"W02000227","Bridgend 010","W06000013","Bridgend","Rural"]
[null,"W02000228","Bridgend 011","W06000013","Bridgend","Other Urban"]
[null,"W02000229","Bridgend 012","W06000013","Bridgend","Other Urban"]
[null,"W02000230","Bridgend 013","W06000013","Bridgend","Rural"]
[null,"W02000231","Bridgend 014","W06000013","Bridgend","Other Urban"]
[null,"W02000232","Bridgend 015","W06000013","Bridgend","Other Urban"]
[null,"W02000233","Bridgend 016","W06000013","Bridgend","Other Urban"]
[null,"W02000234","Bridgend 017","W06000013","Bridgend","Other Urban"]
[null,"W02000235","Bridgend 018","W06000013","Bridgend","Other Urban"]
[null,"W02000236","Bridgend 019","W06000013","Bridgend","Other Urban"]
[null,"W02000237","The Vale of Glamorgan 001","W06000014","The Vale of Glamorgan","Rural"]
[null,"W02000238","The Vale of Glamorgan 002","W06000014","The Vale of Glamorgan","Rural"]
[null,"W02000239","The Vale of Glamorgan 003","W06000014","The Vale of Glamorgan","Rural"]
[null,"W02000240","The Vale of Glamorgan 004","W06000014","The Vale of Glamorgan","Other Urban"]
[null,"W02000241","The Vale of Glamorgan 005","W06000014","The Vale of Glamorgan","Other Urban"]
[null,"W02000242","The Vale of Glamorgan 006","W06000014","The Vale of Glamorgan","Rural"]
[null,"W02000243","The Vale of Glamorgan 007","W06000014","The Vale of Glamorgan","Other Urban"]
[null,"W02000244","The Vale of Glamorgan 008","W06000014","The Vale of Glamorgan","Other Urban"]
[null,"W02000245","The Vale of Glamorgan 009","W06000014","The Vale of Glamorgan","Other Urban"]
[null,"W02000246","The Vale of Glamorgan 010","W06000014","The Vale of Glamorgan","Other Urban"]
[null,"W02000247","The Vale of Glamorgan 011","W06000014","The Vale of Glamorgan","Rural"]
[null,"W02000248","The Vale of Glamorgan 012","W06000014","The Vale of Glamorgan","Other Urban"]
[null,"W02000249","The Vale of Glamorgan 013","W06000014","The Vale of Glamorgan","Other Urban"]
[null,"W02000250","The Vale of Glamorgan 014","W06000014","The Vale of Glamorgan","Rural"]
[null,"W02000251","The Vale of Glamorgan 015","W06000014","The Vale of Glamorgan","Other Urban"]
[null,"W02000252","Rhondda Cynon Taf 001","W06000016","Rhondda Cynon Taf","Rural"]
[null,"W02000253","Rhondda Cynon Taf 002","W06000016","Rhondda Cynon Taf","Other Urban"]
[null,"W02000254","Rhondda Cynon Taf 003","W06000016","Rhondda Cynon Taf","Rural"]
[null,"W02000255","Rhondda Cynon Taf 004","W06000016","Rhondda Cynon Taf","Other Urban"]
[null,"W02000256","Rhondda Cynon Taf 005","W06000016","Rhondda Cynon Taf","Rural"]
[null,"W02000257","Rhondda Cynon Taf 006","W06000016","Rhondda Cynon Taf","Rural"]
[null,"W02000258","Rhondda Cynon Taf 007","W06000016","Rhondda Cynon Taf","Rural"]
[null,"W02000259","Rhondda Cynon Taf 008","W06000016","Rhondda Cynon Taf","Rural"]
[null,"W02000260","Rhondda Cynon Taf 009","W06000016","Rhondda Cynon Taf","Rural"]
[null,"W02000261","Rhondda Cynon Taf 010","W06000016","Rhondda Cynon Taf","Other Urban"]
[null,"W02000262","Rhondda Cynon Taf 011","W06000016","Rhondda Cynon Taf","Other Urban"]
[null,"W02000263","Rhondda Cynon Taf 012","W06000016","Rhondda Cynon Taf","Rural"]
[null,"W02000264","Rhondda Cynon Taf 013","W06000016","Rhondda Cynon Taf","Rural"]
[null,"W02000265","Rhondda Cynon Taf 014","W06000016","Rhondda Cynon Taf","Other Urban"]
[null,"W02000266","Rhondda Cynon Taf 015","W06000016","Rhondda Cynon Taf","Rural"]
[null,"W02000267","Rhondda Cynon Taf 016","W06000016","Rhondda Cynon Taf","Other Urban"]
[null,"W02000268","Rhondda Cynon Taf 017","W06000016","Rhondda Cynon Taf","Other Urban"]
[null,"W02000269","Rhondda Cynon Taf 018","W06000016","Rhondda Cynon Taf","Other Urban"]
[null,"W02000270","Rhondda Cynon Taf 019","W06000016","Rhondda Cynon Taf","Other Urban"]
[null,"W02000271","Rhondda Cynon Taf 020","W06000016","Rhondda Cynon Taf","Other Urban"]
[null,"W02000272","Rhondda Cynon Taf 021","W06000016","Rhondda Cynon Taf","Other Urban"]
[null,"W02000273","Rhondda Cynon Taf 022","W06000016","Rhondda Cynon Taf","Other Urban"]
[null,"W02000274","Rhondda Cynon Taf 023","W06000016","Rhondda Cynon Taf","Rural"]
[null,"W02000275","Rhondda Cynon Taf 024","W06000016","Rhondda Cynon Taf","Rural"]
[null,"W02000276","Rhondda Cynon Taf 025","W06000016","Rhondda Cynon Taf","Other Urban"]
[null,"W02000277","Rhondda Cynon Taf 026","W06000016","Rhondda Cynon Taf","Other Urban"]
[null,"W02000278","Rhondda Cynon Taf 027","W06000016","Rhondda Cynon Taf","Other Urban"]
[null,"W02000279","Rhondda Cynon Taf 028","W06000016","Rhondda Cynon Taf","Rural"]
[null,"W02000280","Rhondda Cynon Taf 029","W06000016","Rhondda Cynon Taf","Rural"]
[null,"W02000281","Rhondda Cynon Taf 030","W06000016","Rhondda Cynon Taf","Rural"]
[null,"W02000282","Rhondda Cynon Taf 031","W06000016","Rhondda Cynon Taf","Rural"]
[null,"W02000284","Merthyr Tydfil 002","W06000024","Merthyr Tydfil","Other Urban"]
[null,"W02000285","Merthyr Tydfil 003","W06000024","Merthyr Tydfil","Other Urban"]
[null,"W02000286","Merthyr Tydfil 004","W06000024","Merthyr Tydfil","Other Urban"]
[null,"W02000287","Merthyr Tydfil 005","W06000024","Merthyr Tydfil","Other Urban"]
[null,"W02000288","Merthyr Tydfil 006","W06000024","Merthyr Tydfil","Rural"]
[null,"W02000289","Merthyr Tydfil 007","W06000024","Merthyr Tydfil","Rural"]
[null,"W02000290","Caerphilly 001","W06000018","Caerphilly","Rural"]
[null,"W02000291","Caerphilly 002","W06000018","Caerphilly","Rural"]
[null,"W02000292","Caerphilly 003","W06000018","Caerphilly","Other Urban"]
[null,"W02000293","Caerphilly 004","W06000018","Caerphilly","Other Urban"]
[null,"W02000294","Caerphilly 005","W06000018","Caerphilly","Rural"]
[null,"W02000295","Caerphilly 006","W06000018","Caerphilly","Other Urban"]
[null,"W02000296","Caerphilly 007","W06000018","Caerphilly","Other Urban"]
[null,"W02000297","Caerphilly 008","W06000018","Caerphilly","Other Urban"]
[null,"W02000298","Caerphilly 009","W06000018","Caerphilly","Other Urban"]
[null,"W02000299","Caerphilly 010","W06000018","Caerphilly","Other Urban"]
[null,"W02000300","Caerphilly 011","W06000018","Caerphilly","Other Urban"]
[null,"W02000301","Caerphilly 012","W06000018","Caerphilly","Other Urban"]
[null,"W02000302","Caerphilly 013","W06000018","Caerphilly","Rural"]
[null,"W02000303","Caerphilly 014","W06000018","Caerphilly","Rural"]
[null,"W02000304","Caerphilly 015","W06000018","Caerphilly","Rural"]
[null,"W02000305","Caerphilly 016","W06000018","Caerphilly","Other Urban"]
[null,"W02000306","Caerphilly 017","W06000018","Caerphilly","Other Urban"]
[null,"W02000307","Caerphilly 018","W06000018","Caerphilly","Rural"]
[null,"W02000308","Caerphilly 019","W06000018","Caerphilly","Other Urban"]
[null,"W02000309","Caerphilly 020","W06000018","Caerphilly","Other Urban"]
[null,"W02000310","Caerphilly 021","W06000018","Caerphilly","Rural"]
[null,"W02000311","Caerphilly 022","W06000018","Caerphilly","Other Urban"]
[null,"W02000312","Caerphilly 023","W06000018","Caerphilly","Other Urban"]
[null,"W02000313","Caerphilly 024","W06000018","Caerphilly","Other Urban"]
[null,"W02000314","Blaenau Gwent 001","W06000019","Blaenau Gwent","Other Urban"]
[null,"W02000315","Blaenau Gwent 002","W06000019","Blaenau Gwent","Other Urban"]
[null,"W02000316","Blaenau Gwent 003","W06000019","Blaenau Gwent","Rural"]
[null,"W02000317","Blaenau Gwent 004","W06000019","Blaenau Gwent","Other Urban"]
[null,"W02000318","Blaenau Gwent 005","W06000019","Blaenau Gwent","Other Urban"]
[null,"W02000319","Blaenau Gwent 006","W06000019","Blaenau Gwent","Rural"]
[null,"W02000320","Blaenau Gwent 007","W06000019","Blaenau Gwent","Rural"]
[null,"W02000321","Blaenau Gwent 008","W06000019","Blaenau Gwent","Rural"]
[null,"W02000322","Blaenau Gwent 009","W06000019","Blaenau Gwent","Rural"]
[null,"W02000323","Torfaen 001","W06000020","Torfaen","Rural"]
[null,"W02000324","Torfaen 002","W06000020","Torfaen","Rural"]
[null,"W02000325","Torfaen 003","W06000020","Torfaen","Other Urban"]
[null,"W02000326","Torfaen 004","W06000020","Torfaen","Other Urban"]
[null,"W02000327","Torfaen 005","W06000020","Torfaen","Other Urban"]
[null,"W02000328","Torfaen 006","W06000020","Torfaen","Other Urban"]
[null,"W02000329","Torfaen 007","W06000020","Torfaen","Other Urban"]
[null,"W02000330","Torfaen 008","W06000020","Torfaen","Other Urban"]
[null,"W02000331","Torfaen 009","W06000020","Torfaen","Other Urban"]
[null,"W02000332","Torfaen 010","W06000020","Torfaen","Other Urban"]
[null,"W02000333","Torfaen 011","W06000020","Torfaen","Other Urban"]
[null,"W02000334","Torfaen 012","W06000020","Torfaen","Other Urban"]
[null,"W02000335","Torfaen 013","W06000020","Torfaen","Other Urban"]
[null,"W02000336","Monmouthshire 001","W06000021","Monmouthshire","Rural"]
[null,"W02000337","Monmouthshire 002","W06000021","Monmouthshire","Other Urban"]
[null,"W02000338","Monmouthshire 003","W06000021","Monmouthshire","Rural"]
[null,"W02000339","Monmouthshire 004","W06000021","Monmouthshire","Rural"]
[null,"W02000340","Monmouthshire 005","W06000021","Monmouthshire","Rural"]
[null,"W02000341","Monmouthshire 006","W06000021","Monmouthshire","Rural"]
[null,"W02000342","Monmouthshire 007","W06000021","Monmouthshire","Rural"]
[null,"W02000343","Monmouthshire 008","W06000021","Monmouthshire","Rural"]
[null,"W02000344","Monmouthshire 009","W06000021","Monmouthshire","Rural"]
[null,"W02000345","Monmouthshire 010","W06000021","Monmouthshire","Rural"]
[null,"W02000346","Monmouthshire 011","W06000021","Monmouthshire","Rural"]
[null,"W02000347","Newport 001","W06000022","Newport","Rural"]
[null,"W02000348","Newport 002","W06000022","Newport","Other Urban"]
[null,"W02000349","Newport 003","W06000022","Newport","Other Urban"]
[null,"W02000350","Newport 004","W06000022","Newport","Rural"]
[null,"W02000351","Newport 005","W06000022","Newport","Other Urban"]
[null,"W02000352","Newport 006","W06000022","Newport","Other Urban"]
[null,"W02000353","Newport 007","W06000022","Newport","Other Urban"]
[null,"W02000354","Newport 008","W06000022","Newport","Other Urban"]
[null,"W02000355","Newport 009","W06000022","Newport","Other Urban"]
[null,"W02000356","Newport 010","W06000022","Newport","Other Urban"]
[null,"W02000357","Newport 011","W06000022","Newport","Other Urban"]
[null,"W02000358","Newport 012","W06000022","Newport","Other Urban"]
[null,"W02000359","Newport 013","W06000022","Newport","Other Urban"]
[null,"W02000360","Newport 014","W06000022","Newport","Other Urban"]
[null,"W02000361","Newport 015","W06000022","Newport","Other Urban"]
[null,"W02000362","Newport 016","W06000022","Newport","Other Urban"]
[null,"W02000363","Newport 017","W06000022","Newport","Other Urban"]
[null,"W02000364","Newport 018","W06000022","Newport","Other Urban"]
[null,"W02000365","Newport 019","W06000022","Newport","Other Urban"]
[null,"W02000366","Newport 020","W06000022","Newport","Rural"]
[null,"W02000367","Cardiff 001","W06000015","Cardiff","Other Urban"]
[null,"W02000368","Cardiff 002","W06000015","Cardiff","Other Urban"]
[null,"W02000369","Cardiff 003","W06000015","Cardiff","Other Urban"]
[null,"W02000370","Cardiff 004","W06000015","Cardiff","Other Urban"]
[null,"W02000371","Cardiff 005","W06000015","Cardiff","Other Urban"]
[null,"W02000372","Cardiff 006","W06000015","Cardiff","Other Urban"]
[null,"W02000373","Cardiff 007","W06000015","Cardiff","Other Urban"]
[null,"W02000374","Cardiff 008","W06000015","Cardiff","Other Urban"]
[null,"W02000375","Cardiff 009","W06000015","Cardiff","Other Urban"]
[null,"W02000376","Cardiff 010","W06000015","Cardiff","Other Urban"]
[null,"W02000377","Cardiff 011","W06000015","Cardiff","Other Urban"]
[null,"W02000378","Cardiff 012","W06000015","Cardiff","Other Urban"]
[null,"W02000379","Cardiff 013","W06000015","Cardiff","Other Urban"]
[null,"W02000380","Cardiff 014","W06000015","Cardiff","Rural"]
[null,"W02000381","Cardiff 015","W06000015","Cardiff","Other Urban"]
[null,"W02000382","Cardiff 016","W06000015","Cardiff","Other Urban"]
[null,"W02000383","Cardiff 017","W06000015","Cardiff","Other Urban"]
[null,"W02000384","Cardiff 018","W06000015","Cardiff","Other Urban"]
[null,"W02000385","Cardiff 019","W06000015","Cardiff","Other Urban"]
[null,"W02000386","Cardiff 020","W06000015","Cardiff","Other Urban"]
[null,"W02000387","Cardiff 021","W06000015","Cardiff","Other Urban"]
[null,"W02000388","Cardiff 022","W06000015","Cardiff","Other Urban"]
[null,"W02000389","Cardiff 023","W06000015","Cardiff","Other Urban"]
[null,"W02000390","Cardiff 024","W06000015","Cardiff","Other Urban"]
[null,"W02000391","Cardiff 025","W06000015","Cardiff","Other Urban"]
[null,"W02000392","Cardiff 026","W06000015","Cardiff","Other Urban"]
[null,"W02000393","Cardiff 027","W06000015","Cardiff","Other Urban"]
[null,"W02000394","Cardiff 028","W06000015","Cardiff","Other Urban"]
[null,"W02000395","Cardiff 029","W06000015","Cardiff","Other Urban"]
[null,"W02000396","Cardiff 030","W06000015","Cardiff","Other Urban"]
[null,"W02000397","Cardiff 031","W06000015","Cardiff","Other Urban"]
[null,"W02000398","Cardiff 032","W06000015","Cardiff","Other Urban"]
[null,"W02000399","Cardiff 033","W06000015","Cardiff","Other Urban"]
[null,"W02000400","Cardiff 034","W06000015","Cardiff","Other Urban"]
[null,"W02000401","Cardiff 035","W06000015","Cardiff","Other Urban"]
[null,"W02000402","Cardiff 036","W06000015","Cardiff","Other Urban"]
[null,"W02000403","Cardiff 037","W06000015","Cardiff","Other Urban"]
[null,"W02000404","Cardiff 038","W06000015","Cardiff","Other Urban"]
[null,"W02000405","Cardiff 039","W06000015","Cardiff","Other Urban"]
[null,"W02000406","Cardiff 040","W06000015","Cardiff","Other Urban"]
[null,"W02000407","Cardiff 041","W06000015","Cardiff","Other Urban"]
[null,"W02000408","Cardiff 042","W06000015","Cardiff","Other Urban"]
[null,"W02000409","Cardiff 043","W06000015","Cardiff","Other Urban"]
[null,"W02000410","Cardiff 044","W06000015","Cardiff","Other Urban"]
[null,"W02000411","Cardiff 045","W06000015","Cardiff","Other Urban"]
[null,"W02000412","Cardiff 046","W06000015","Cardiff","Other Urban"]
[null,"W02000414","Powys 020","W06000023","Powys","Rural"]
[null,"W02000415","Merthyr Tydfil 008","W06000024","Merthyr Tydfil","Rural"]
[null,"W02000416","Powys 021","W06000023","Powys","Rural"]
[null,"W02000417","Neath Port Talbot 020","W06000012","Neath Port Talbot","Rural"]
[null,"W02000418","Carmarthenshire 027","W06000010","Carmarthenshire","Rural"]
[null,"W02000419","Denbighshire 017","W06000004","Denbighshire","Other Urban"]
[null,"W02000420","Wrexham 020","W06000006","Wrexham","Rural"]
[null,"W02000421","Ceredigion 011","W06000008","Ceredigion","Rural"]
[null,"W02000422","Cardiff 048","W06000015","Cardiff","Other Urban"]
[null,"W02000423","Cardiff 049","W06000015","Cardiff","Other Urban"]

{"sheet":"I-Costs","index":6,"n_rows":46,"n_cols":83,"rows_kept":46,"cut":false,"hidden":false,"merged":[]}
[]
[null,"File Name",null,null,null,null,{"$f":"IFERROR(MID(CELL(\"filename\",G2),FIND(\"[\",CELL(\"filename\",G2))+1,FIND(\"]\",CELL(\"filename\",G2))-FIND(\"[\",CELL(\"filename\",G2))-1),\"Please save the file to show here\")","v":"structures-fund-economic-tool Final 03082026.xlsm"}]
[null,"Sheet Name",null,null,null,null,{"$f":"IFERROR(MID(CELL(\"filename\",G2),FIND(\"]\",CELL(\"filename\",G2))+1,255),\"Please save the file to show here\")","v":"I-Costs"}]
[null,"Description and Purpose of Sheet",null,null,null,null,"Users should complete all blue input cells within this sheet, and select from the drop down in green cells. User instructions/notes are shown in green text."]
[null,"Version number",null,null,null,null,{"$f":"Version_Number","v":1}]
[]
[]
[null,"I-Costs"]
[]
[null,null,null,null,"Constant",null,null,null,null,"Unit",2023,2024,2025,2026,2027,2028,2029,2030,2031,2032,2033,2034,2035,2036,2037,2038,2039,2040,2041,2042,2043,2044,2045,2046,2047,2048,2049,2050,2051,2052,2053,2054,2055,2056,2057,2058,2059,2060,2061,2062,2063,2064,2065,2066,2067,2068,2069,2070,2071,2072,2073,2074,2075,2076,2077,2078,2079,2080,2081,2082,2083,2084,2085,2086,2087,2088,2089,2090,2091,2092,2093,2094,2095]
[null,null,null,"Appraisal period",null,null,null,null,null,"flag",{"$f":"IF(AND(K10>='I-Scheme Details'!$E$30,K10<'I-Scheme Details'!$E$30+'I-Scheme Details'!$E$32),1,0)","v":0},{"$f":"IF(AND(L10>='I-Scheme Details'!$E$30,L10<'I-Scheme Details'!$E$30+'I-Scheme Details'!$E$32),1,0)","v":0},{"$f":"IF(AND(M10>='I-Scheme Details'!$E$30,M10<'I-Scheme Details'!$E$30+'I-Scheme Details'!$E$32),1,0)","v":0},{"$f":"IF(AND(N10>='I-Scheme Details'!$E$30,N10<'I-Scheme Details'!$E$30+'I-Scheme Details'!$E$32),1,0)","v":0},{"$f":"IF(AND(O10>='I-Scheme Details'!$E$30,O10<'I-Scheme Details'!$E$30+'I-Scheme Details'!$E$32),1,0)","v":0},{"$f":"IF(AND(P10>='I-Scheme Details'!$E$30,P10<'I-Scheme Details'!$E$30+'I-Scheme Details'!$E$32),1,0)","v":1},{"$f":"IF(AND(Q10>='I-Scheme Details'!$E$30,Q10<'I-Scheme Details'!$E$30+'I-Scheme Details'!$E$32),1,0)","v":1},{"$f":"IF(AND(R10>='I-Scheme Details'!$E$30,R10<'I-Scheme Details'!$E$30+'I-Scheme Details'!$E$32),1,0)","v":1},{"$f":"IF(AND(S10>='I-Scheme Details'!$E$30,S10<'I-Scheme Details'!$E$30+'I-Scheme Details'!$E$32),1,0)","v":1},{"$f":"IF(AND(T10>='I-Scheme Details'!$E$30,T10<'I-Scheme Details'!$E$30+'I-Scheme Details'!$E$32),1,0)","v":1},{"$f":"IF(AND(U10>='I-Scheme Details'!$E$30,U10<'I-Scheme Details'!$E$30+'I-Scheme Details'!$E$32),1,0)","v":1},{"$f":"IF(AND(V10>='I-Scheme Details'!$E$30,V10<'I-Scheme Details'!$E$30+'I-Scheme Details'!$E$32),1,0)","v":1},{"$f":"IF(AND(W10>='I-Scheme Details'!$E$30,W10<'I-Scheme Details'!$E$30+'I-Scheme Details'!$E$32),1,0)","v":1},{"$f":"IF(AND(X10>='I-Scheme Details'!$E$30,X10<'I-Scheme Details'!$E$30+'I-Scheme Details'!$E$32),1,0)","v":1},{"$f":"IF(AND(Y10>='I-Scheme Details'!$E$30,Y10<'I-Scheme Details'!$E$30+'I-Scheme Details'!$E$32),1,0)","v":1},{"$f":"IF(AND(Z10>='I-Scheme Details'!$E$30,Z10<'I-Scheme Details'!$E$30+'I-Scheme Details'!$E$32),1,0)","v":1},{"$f":"IF(AND(AA10>='I-Scheme Details'!$E$30,AA10<'I-Scheme Details'!$E$30+'I-Scheme Details'!$E$32),1,0)","v":1},{"$f":"IF(AND(AB10>='I-Scheme Details'!$E$30,AB10<'I-Scheme Details'!$E$30+'I-Scheme Details'!$E$32),1,0)","v":1},{"$f":"IF(AND(AC10>='I-Scheme Details'!$E$30,AC10<'I-Scheme Details'!$E$30+'I-Scheme Details'!$E$32),1,0)","v":1},{"$f":"IF(AND(AD10>='I-Scheme Details'!$E$30,AD10<'I-Scheme Details'!$E$30+'I-Scheme Details'!$E$32),1,0)","v":1},{"$f":"IF(AND(AE10>='I-Scheme Details'!$E$30,AE10<'I-Scheme Details'!$E$30+'I-Scheme Details'!$E$32),1,0)","v":1},{"$f":"IF(AND(AF10>='I-Scheme Details'!$E$30,AF10<'I-Scheme Details'!$E$30+'I-Scheme Details'!$E$32),1,0)","v":1},{"$f":"IF(AND(AG10>='I-Scheme Details'!$E$30,AG10<'I-Scheme Details'!$E$30+'I-Scheme Details'!$E$32),1,0)","v":1},{"$f":"IF(AND(AH10>='I-Scheme Details'!$E$30,AH10<'I-Scheme Details'!$E$30+'I-Scheme Details'!$E$32),1,0)","v":1},{"$f":"IF(AND(AI10>='I-Scheme Details'!$E$30,AI10<'I-Scheme Details'!$E$30+'I-Scheme Details'!$E$32),1,0)","v":1},{"$f":"IF(AND(AJ10>='I-Scheme Details'!$E$30,AJ10<'I-Scheme Details'!$E$30+'I-Scheme Details'!$E$32),1,0)","v":1},{"$f":"IF(AND(AK10>='I-Scheme Details'!$E$30,AK10<'I-Scheme Details'!$E$30+'I-Scheme Details'!$E$32),1,0)","v":1},{"$f":"IF(AND(AL10>='I-Scheme Details'!$E$30,AL10<'I-Scheme Details'!$E$30+'I-Scheme Details'!$E$32),1,0)","v":1},{"$f":"IF(AND(AM10>='I-Scheme Details'!$E$30,AM10<'I-Scheme Details'!$E$30+'I-Scheme Details'!$E$32),1,0)","v":1},{"$f":"IF(AND(AN10>='I-Scheme Details'!$E$30,AN10<'I-Scheme Details'!$E$30+'I-Scheme Details'!$E$32),1,0)","v":1},{"$f":"IF(AND(AO10>='I-Scheme Details'!$E$30,AO10<'I-Scheme Details'!$E$30+'I-Scheme Details'!$E$32),1,0)","v":1},{"$f":"IF(AND(AP10>='I-Scheme Details'!$E$30,AP10<'I-Scheme Details'!$E$30+'I-Scheme Details'!$E$32),1,0)","v":1},{"$f":"IF(AND(AQ10>='I-Scheme Details'!$E$30,AQ10<'I-Scheme Details'!$E$30+'I-Scheme Details'!$E$32),1,0)","v":1},{"$f":"IF(AND(AR10>='I-Scheme Details'!$E$30,AR10<'I-Scheme Details'!$E$30+'I-Scheme Details'!$E$32),1,0)","v":1},{"$f":"IF(AND(AS10>='I-Scheme Details'!$E$30,AS10<'I-Scheme Details'!$E$30+'I-Scheme Details'!$E$32),1,0)","v":1},{"$f":"IF(AND(AT10>='I-Scheme Details'!$E$30,AT10<'I-Scheme Details'!$E$30+'I-Scheme Details'!$E$32),1,0)","v":1},{"$f":"IF(AND(AU10>='I-Scheme Details'!$E$30,AU10<'I-Scheme Details'!$E$30+'I-Scheme Details'!$E$32),1,0)","v":1},{"$f":"IF(AND(AV10>='I-Scheme Details'!$E$30,AV10<'I-Scheme Details'!$E$30+'I-Scheme Details'!$E$32),1,0)","v":1},{"$f":"IF(AND(AW10>='I-Scheme Details'!$E$30,AW10<'I-Scheme Details'!$E$30+'I-Scheme Details'!$E$32),1,0)","v":1},{"$f":"IF(AND(AX10>='I-Scheme Details'!$E$30,AX10<'I-Scheme Details'!$E$30+'I-Scheme Details'!$E$32),1,0)","v":1},{"$f":"IF(AND(AY10>='I-Scheme Details'!$E$30,AY10<'I-Scheme Details'!$E$30+'I-Scheme Details'!$E$32),1,0)","v":1},{"$f":"IF(AND(AZ10>='I-Scheme Details'!$E$30,AZ10<'I-Scheme Details'!$E$30+'I-Scheme Details'!$E$32),1,0)","v":1},{"$f":"IF(AND(BA10>='I-Scheme Details'!$E$30,BA10<'I-Scheme Details'!$E$30+'I-Scheme Details'!$E$32),1,0)","v":1},{"$f":"IF(AND(BB10>='I-Scheme Details'!$E$30,BB10<'I-Scheme Details'!$E$30+'I-Scheme Details'!$E$32),1,0)","v":1},{"$f":"IF(AND(BC10>='I-Scheme Details'!$E$30,BC10<'I-Scheme Details'!$E$30+'I-Scheme Details'!$E$32),1,0)","v":1},{"$f":"IF(AND(BD10>='I-Scheme Details'!$E$30,BD10<'I-Scheme Details'!$E$30+'I-Scheme Details'!$E$32),1,0)","v":1},{"$f":"IF(AND(BE10>='I-Scheme Details'!$E$30,BE10<'I-Scheme Details'!$E$30+'I-Scheme Details'!$E$32),1,0)","v":1},{"$f":"IF(AND(BF10>='I-Scheme Details'!$E$30,BF10<'I-Scheme Details'!$E$30+'I-Scheme Details'!$E$32),1,0)","v":1},{"$f":"IF(AND(BG10>='I-Scheme Details'!$E$30,BG10<'I-Scheme Details'!$E$30+'I-Scheme Details'!$E$32),1,0)","v":1},{"$f":"IF(AND(BH10>='I-Scheme Details'!$E$30,BH10<'I-Scheme Details'!$E$30+'I-Scheme Details'!$E$32),1,0)","v":1},{"$f":"IF(AND(BI10>='I-Scheme Details'!$E$30,BI10<'I-Scheme Details'!$E$30+'I-Scheme Details'!$E$32),1,0)","v":1},{"$f":"IF(AND(BJ10>='I-Scheme Details'!$E$30,BJ10<'I-Scheme Details'!$E$30+'I-Scheme Details'!$E$32),1,0)","v":1},{"$f":"IF(AND(BK10>='I-Scheme Details'!$E$30,BK10<'I-Scheme Details'!$E$30+'I-Scheme Details'!$E$32),1,0)","v":1},{"$f":"IF(AND(BL10>='I-Scheme Details'!$E$30,BL10<'I-Scheme Details'!$E$30+'I-Scheme Details'!$E$32),1,0)","v":1},{"$f":"IF(AND(BM10>='I-Scheme Details'!$E$30,BM10<'I-Scheme Details'!$E$30+'I-Scheme Details'!$E$32),1,0)","v":1},{"$f":"IF(AND(BN10>='I-Scheme Details'!$E$30,BN10<'I-Scheme Details'!$E$30+'I-Scheme Details'!$E$32),1,0)","v":1},{"$f":"IF(AND(BO10>='I-Scheme Details'!$E$30,BO10<'I-Scheme Details'!$E$30+'I-Scheme Details'!$E$32),1,0)","v":1},{"$f":"IF(AND(BP10>='I-Scheme Details'!$E$30,BP10<'I-Scheme Details'!$E$30+'I-Scheme Details'!$E$32),1,0)","v":1},{"$f":"IF(AND(BQ10>='I-Scheme Details'!$E$30,BQ10<'I-Scheme Details'!$E$30+'I-Scheme Details'!$E$32),1,0)","v":1},{"$f":"IF(AND(BR10>='I-Scheme Details'!$E$30,BR10<'I-Scheme Details'!$E$30+'I-Scheme Details'!$E$32),1,0)","v":1},{"$f":"IF(AND(BS10>='I-Scheme Details'!$E$30,BS10<'I-Scheme Details'!$E$30+'I-Scheme Details'!$E$32),1,0)","v":1},{"$f":"IF(AND(BT10>='I-Scheme Details'!$E$30,BT10<'I-Scheme Details'!$E$30+'I-Scheme Details'!$E$32),1,0)","v":1},{"$f":"IF(AND(BU10>='I-Scheme Details'!$E$30,BU10<'I-Scheme Details'!$E$30+'I-Scheme Details'!$E$32),1,0)","v":1},{"$f":"IF(AND(BV10>='I-Scheme Details'!$E$30,BV10<'I-Scheme Details'!$E$30+'I-Scheme Details'!$E$32),1,0)","v":1},{"$f":"IF(AND(BW10>='I-Scheme Details'!$E$30,BW10<'I-Scheme Details'!$E$30+'I-Scheme Details'!$E$32),1,0)","v":1},{"$f":"IF(AND(BX10>='I-Scheme Details'!$E$30,BX10<'I-Scheme Details'!$E$30+'I-Scheme Details'!$E$32),1,0)","v":0},{"$f":"IF(AND(BY10>='I-Scheme Details'!$E$30,BY10<'I-Scheme Details'!$E$30+'I-Scheme Details'!$E$32),1,0)","v":0},{"$f":"IF(AND(BZ10>='I-Scheme Details'!$E$30,BZ10<'I-Scheme Details'!$E$30+'I-Scheme Details'!$E$32),1,0)","v":0},{"$f":"IF(AND(CA10>='I-Scheme Details'!$E$30,CA10<'I-Scheme Details'!$E$30+'I-Scheme Details'!$E$32),1,0)","v":0},{"$f":"IF(AND(CB10>='I-Scheme Details'!$E$30,CB10<'I-Scheme Details'!$E$30+'I-Scheme Details'!$E$32),1,0)","v":0},{"$f":"IF(AND(CC10>='I-Scheme Details'!$E$30,CC10<'I-Scheme Details'!$E$30+'I-Scheme Details'!$E$32),1,0)","v":0},{"$f":"IF(AND(CD10>='I-Scheme Details'!$E$30,CD10<'I-Scheme Details'!$E$30+'I-Scheme Details'!$E$32),1,0)","v":0},{"$f":"IF(AND(CE10>='I-Scheme Details'!$E$30,CE10<'I-Scheme Details'!$E$30+'I-Scheme Details'!$E$32),1,0)","v":0}]
[]
[null,null,"Scheme Costs"]
[]
[null,null,null,"Note - The capital costs should be reflective of the scheme described in I-Scheme Details."]
[null,null,null,"All costs entered should be inclusive of inflation. Costs should not include optimism bias or a risk adjustment."]
[null,null,null,"Operating, Maintenance and Renewal Costs (OMR) should only be input for years included in the appraisal period. OMR Costs in years outside of the appraisal period will not be used in the economic appraisal. "]
[null,null,null,"Costs should be entered as positive numbers."]
[]
[null,null,"Capital costs"]
[]
[null,null,null,"Capital Costs (CapEx)","Funding Source"]
[null,null,null,"Capital costs (exclusive of risk or optimism bias)","Central Government",null,null,null,null,"£, nominal prices - with inflation",null,null,null,null,100000,500000]
[null,null,null,"Capital costs (exclusive of risk or optimism bias)","Local Authority",null,null,null,null,"£, nominal prices - with inflation",null,null,null,null,null,50000]
[null,null,null,"Capital costs (exclusive of risk or optimism bias)","Private",null,null,null,null,"£, nominal prices - with inflation"]
[]
[null,null,"Operating, maintenance and renewal (OMR) costs"]
[]
[null,null,null,"Operating, Maintenance and Renewal Costs (OMR)","Funding source"]
[null,null,null,null,"Public"]
[]
[null,null,null,"Operating, Maintenance and Renewal Costs without scheme (exclusive of optimism bias)",null,null,null,null,null,"£, nominal prices - with inflation",null,null,null,null,null,30000,30000,30000,30000,30000,30000,30000,30000,30000,36570,36570,36570,36570,36570,36570,36570,36570,36570,36570,44577,44577,44577,44577,44577,44577,44577,44577,44577,44577,54342,54342,54342,54342,54342,54342,54342,54342,54342,54342,66241,66241,66241,66241,66241,66241,66241,66241,66241,66241,80748,80748,80748,80748,80748,80748,80748,80748,80748,80748,98431]
[null,null,null,"Operating, Maintenance and Renewal Costs with scheme (exclusive of optimism bias)",null,null,null,null,null,"£, nominal prices - with inflation",null,null,null,null,null,10000,10000,10000,10000,10000,10000,10000,10000,10000,12190,12190,12190,12190,12190,12190,12190,12190,12190,12190,14859,14859,14859,14859,14859,14859,14859,14859,14859,14859,18114,18114,18114,18114,18114,18114,18114,18114,18114,18114,22080,22080,22080,22080,22080,22080,22080,22080,22080,22080,26916,26916,26916,26916,26916,26916,26916,26916,26916,26916,32810]
[]
[null,null,"Optimism Bias"]
[]
[null,null,null,"Enter the level of optimism bias and risk adjustment to be applied to the scheme costs. The larger of the two values will be used in the Present Value of Cost calculation."]
[null,null,null,"Please refer to TAG Unit A2-1 Scheme Costs to identify the appropriate level of optimism bias to be applied to scheme costs."]
[]
[null,null,null,"Optimism Bias (Capital costs)",0.66,null,null,null,null,"%"]
[null,null,null,"Risk (Capital costs)",0.66,null,null,null,null,"%"]
[]
[null,null,null,"Optimism Bias (OMR costs) without scheme",0.66,null,null,null,null,"%"]
[null,null,null,"Optimism Bias (OMR costs) with scheme",0.66,null,null,null,null,"%"]
[]
[null,"END"]

{"sheet":"Input Checklist","index":7,"n_rows":50,"n_cols":10,"rows_kept":50,"cut":false,"hidden":false,"merged":[]}
[]
[null,"File Name",null,null,null,null,{"$f":"IFERROR(MID(CELL(\"filename\",G2),FIND(\"[\",CELL(\"filename\",G2))+1,FIND(\"]\",CELL(\"filename\",G2))-FIND(\"[\",CELL(\"filename\",G2))-1),\"Please save the file to show here\")","v":"structures-fund-economic-tool Final 03082026.xlsm"}]
[null,"Sheet Name",null,null,null,null,{"$f":"IFERROR(MID(CELL(\"filename\",G2),FIND(\"]\",CELL(\"filename\",G2))+1,255),\"Please save the file to show here\")","v":"Input Checklist"}]
[null,"Description and Purpose of Sheet",null,null,null,null,"This sheet includes a checklist to confirm that all inputs have been provided."]
[null,"Version number",null,null,null,null,{"$f":"Version_Number","v":1}]
[]
[]
[null,"Input Checklist"]
[]
[null,null,null,null,"Constant",null,null,null,null,"Unit"]
[]
[null,null,"Scheme Information (Inputs)"]
[]
[null,null,null,null,"Check",null,"Description"]
[null,null,null,"Route length and journey time without diversion",{"$f":"IF(OR('I-Scheme Details'!E20=\"\",'I-Scheme Details'!E22=\"\"),0,1)","v":1},null,"Checks if the route length and journey time without diversion have been provided"]
[null,null,null,"Average speed",{"$f":"'I-Scheme Details'!E26","v":"Average speed check passed"},null,"Checks if the speed calculated is between 12km/h (7mph) and 112km/h (70mph). If not, please check if the inputs are correct and average speed beyond this range is expected"]
[null,null,null,"Scheme opening year",{"$f":"IF('I-Scheme Details'!E30=\"\",0,1)","v":1},null,"Checks if scheme opening year has been provided"]
[null,null,null,"Appraisal period",{"$f":"IF('I-Scheme Details'!E32=\"\",0,1)","v":1},null,"Checks if appraisal period has been provided"]
[null,null,null,"Traffic flow  year",{"$f":"IF('I-Scheme Details'!E36=\"\",0,1)","v":1},null,"Checks if traffic flow input year has been provided"]
[null,null,null,"Traffic flow",{"$f":"IF('I-Scheme Details'!E38=\"\",0,1)","v":1},null,"Checks if traffic flow data has been provided"]
[null,null,null,"Infrastructure carbon",{"$f":"IF('I-Scheme Details'!E50=\"\",0,1)","v":1},null,"Checks if infrastructure carbon emissions have been provided"]
[null,null,null,"Diversion route length and journey time",{"$f":"IF(OR('I-Scheme Details'!E63=\"\",'I-Scheme Details'!E65=\"\"),0,1)","v":1},null,"Checks if the route length and journey time with diversion have been provided"]
[null,null,null,"Average speed",{"$f":"'I-Scheme Details'!E69","v":"Average speed check passed"},null,"Checks if the speed calculated is between 12km/h (7mph) and 112km/h (70mph). If not, please check if the inputs are correct and average speed beyond this range is expected"]
[null,null,null,"Diversion route check - distance",{"$f":"IF('I-Scheme Details'!E20>'I-Scheme Details'!E63,0,1)","v":1},null,"Checks if route with diversion is shorter than the route without diversion"]
[null,null,null,"Diversion route check - journey time",{"$f":"IF('I-Scheme Details'!E22>'I-Scheme Details'!E65,0,1)","v":1},null,"Checks if route with diversion is quicker than the route without diversion"]
[]
[null,null,null,"Restriction #1",{"$f":"IF(AVERAGE(E28:E30)=1,1,0)","v":1},null,"Checks if all inputs for restriction #1 have been provided"]
[null,null,null,"Diversion start date",{"$f":"IF('I-Scheme Details'!E78=\"\",0,1)","v":1},null,"Checks if diversion start year has been provided"]
[null,null,null,"Diversion in place",{"$f":"IF('I-Scheme Details'!E80=\"\",0,1)","v":1},null,"Checks if number of days diversion is in place for has been provided"]
[null,null,null,"Vehicle type selection",{"$f":"IF(SUM('I-Scheme Details'!E83:E86)=0,0,1)","v":1},null,"Checks if vehicle types affected by the restrictions have been selected"]
[]
[null,null,null,"Restriction #2 (Optional)",{"$f":"IF(OR(AVERAGE(E33:E35)=1,AVERAGE(E33:E35)=0),1,0)","v":1},null,"Checks if all inputs for restriction #2 have been provided if restriction scenario #2 is used"]
[null,null,null,"Diversion start date",{"$f":"IF(OR('I-Scheme Details'!E90=\"\",'I-Scheme Details'!E90<='I-Scheme Details'!E78),0,1)","v":1},null,"Checks if diversion start year has been provided"]
[null,null,null,"Diversion in place",{"$f":"IF('I-Scheme Details'!E92=\"\",0,1)","v":1},null,"Checks if number of days diversion is in place for has been provied"]
[null,null,null,"Vehicle type selection",{"$f":"IF(SUM('I-Scheme Details'!E95:E98)=0,0,1)","v":1},null,"Checks if vehicle types affected by the restrictions have been selected"]
[]
[null,null,null,"Restriction #3 (Optional)",{"$f":"IF(OR(AVERAGE(E38:E40)=1,AVERAGE(E38:E40)=0),1,0)","v":1},null,"Checks if all inputs for restriction #3 have been provided if restriction scenario #3 is used"]
[null,null,null,"Diversion start date",{"$f":"IF(OR('I-Scheme Details'!E102=\"\",'I-Scheme Details'!E102<='I-Scheme Details'!E90),0,1)","v":0},null,"Checks if diversion start year has been provided"]
[null,null,null,"Diversion in place",{"$f":"IF('I-Scheme Details'!E104=\"\",0,1)","v":0},null,"Checks if number of days diversion is in place for has been provied"]
[null,null,null,"Vehicle type selection",{"$f":"IF(SUM('I-Scheme Details'!E107:E110)=0,0,1)","v":0},null,"Checks if vehicle types affected by the restrictions have been selected"]
[]
[null,null,null,"Capital costs",{"$f":"IF(SUM('I-Costs'!K23:CE25)=0,0,1)","v":1},null,"Checks if capital costs has been provided"]
[null,null,null,"OMR costs",{"$f":"IF(SUM('I-Costs'!N32:CE33)=0,0,1)","v":1},null,"Checks if operational, maintenance and renewal (OMR) costs have been provided"]
[null,null,null,"OMR costs provided over the whole appraisal period",{"$f":"IF(SUM('I-Costs'!N32:CE33)=0,0,IF((SUMPRODUCT('I-Costs'!N32:CE32,'I-Costs'!N11:CE11)+SUMPRODUCT('I-Costs'!N33:CE33,'I-Costs'!N11:CE11))=SUM('I-Costs'!N32:CE33),1,0))","v":1},null,"Checks if the OMR costs have been provided for the whole appraisal period"]
[null,null,null,"Optimism bias (Capital costs)",{"$f":"IF(AND('I-Costs'!E40=\"\",'I-Costs'!E41=\"\"),0,1)","v":1},null,"Checks if optimism bias for capital costs has been provided"]
[null,null,null,"Optimism bias (OMR costs)",{"$f":"IF(OR('I-Costs'!E43=\"\",'I-Costs'!E44=\"\"),0,1)","v":1},null,"Checks if optimism bias for OMR costs has been provided"]
[]
[null,null,null,"Inputs check",{"$f":"IF(AVERAGE(E15,E17:E22,E24:E25,E27,E32,E37,E42:E46, IF(AND(E16=\"Average speed check passed\",E23=\"Average speed check passed\"),1,0))<>1,0,1)","v":1},null,"Final check - if not passed, please review your inputs and confirm their validity"]
[]
[null,"END"]

{"sheet":"I-TAG Values","index":8,"n_rows":38,"n_cols":12,"rows_kept":38,"cut":false,"hidden":true,"merged":[]}
[]
[null,"File Name",null,null,null,null,{"$f":"IFERROR(MID(CELL(\"filename\",G2),FIND(\"[\",CELL(\"filename\",G2))+1,FIND(\"]\",CELL(\"filename\",G2))-FIND(\"[\",CELL(\"filename\",G2))-1),\"Please save the file to show here\")","v":"structures-fund-economic-tool Final 03082026.xlsm"}]
[null,"Sheet Name",null,null,null,null,{"$f":"IFERROR(MID(CELL(\"filename\",G2),FIND(\"]\",CELL(\"filename\",G2))+1,255),\"Please save the file to show here\")","v":"I-TAG Values"}]
[null,"Description and Purpose of Sheet",null,null,null,null,"This sheet includes values used in data validation/formulas throughout the Tool."]
[null,"Version number",null,null,null,null,{"$f":"Version_Number","v":1}]
[]
[]
[null,"I-TAG Values"]
[]
[null,null,null,null,"Constant",null,null,null,null,"Unit",null,"Notes"]
[]
[null,null,"Market price adjustment"]
[]
[null,null,null,"Market Price Adjustment",1.19,null,null,null,null,"factor",null,"TAG Data Book Table A1.3.1"]
[]
[null,null,"Discounting"]
[]
[null,null,null,"Period 1 Discount Rate",{"$f":"'TAG - A1.1.1'!E12","v":3.5000000000000003E-2},null,null,null,null,"%",null,"TAG Data Book Table A1.1.1"]
[null,null,null,"Period 1 Length",{"$f":"'TAG - A1.1.1'!A12","v":30},null,null,null,null,"years",null,"TAG Data Book Table A1.1.1"]
[]
[null,null,null,"Period 2 Discount Rate",{"$f":"'TAG - A1.1.1'!E13","v":0.03},null,null,null,null,"%",null,"TAG Data Book Table A1.1.1"]
[]
[null,null,"Vehicle kilometres (millions) by type and weight of vehicle"]
[]
[null,null,null,"Rigid Vehicles"]
[null,null,null,"Over 3.5t to 7.5t",1768,null,null,null,null,"km (millions)",null,"Domestic road freight activity (DfT Table RFS0110, 2024 values)"]
[null,null,null,"Over 7.5t to 17t",857,null,null,null,null,"km (millions)",null,"Domestic road freight activity (DfT Table RFS0110, 2024 values)"]
[null,null,null,"Over 17t to 25t",2136,null,null,null,null,"km (millions)",null,"Domestic road freight activity (DfT Table RFS0110, 2024 values)"]
[null,null,null,"Over 25t",3245,null,null,null,null,"km (millions)",null,"Domestic road freight activity (DfT Table RFS0110, 2024 values)"]
[null,null,null,"All Rigids",8006,null,null,null,null,"km (millions)",null,"Domestic road freight activity (DfT Table RFS0110, 2024 values)"]
[null,null,null,"Articulated Vehicles"]
[null,null,null,"Over 3.5t to 33t",428,null,null,null,null,"km (millions)",null,"Domestic road freight activity (DfT Table RFS0110, 2024 values)"]
[null,null,null,"Over 33t",10960,null,null,null,null,"km (millions)",null,"Domestic road freight activity (DfT Table RFS0110, 2024 values)"]
[null,null,null,"All Articulated vehicles",11388,null,null,null,null,"km (millions)",null,"Domestic road freight activity (DfT Table RFS0110, 2024 values)"]
[]
[null,null,null,"All vehicles",19394,null,null,null,null,"km (millions)",null,"Domestic road freight activity (DfT Table RFS0110, 2024 values)"]
[]
[null,"END"]

{"sheet":"I-NRTP","index":9,"n_rows":176,"n_cols":29,"rows_kept":176,"cut":false,"hidden":true,"merged":[]}
[]
[null,"File Name",null,null,null,null,{"$f":"IFERROR(MID(CELL(\"filename\",G2),FIND(\"[\",CELL(\"filename\",G2))+1,FIND(\"]\",CELL(\"filename\",G2))-FIND(\"[\",CELL(\"filename\",G2))-1),\"Please save the file to show here\")","v":"structures-fund-economic-tool Final 03082026.xlsm"}]
[null,"Sheet Name",null,null,null,null,{"$f":"IFERROR(MID(CELL(\"filename\",G2),FIND(\"]\",CELL(\"filename\",G2))+1,255),\"Please save the file to show here\")","v":"I-NRTP"}]
[null,"Description and Purpose of Sheet",null,null,null,null,"This sheet includes the National Road Traffic Projections data inputs."]
[null,"Version number",null,null,null,null,{"$f":"Version_Number","v":1}]
[]
[]
[null,"I-NRTP"]
[]
[null,null,"National Road Traffic Projections"]
[]
[null,null,"Worksheet 2: Road traffic projections from 2015 to 2060 and change relative to 2025"]
[null,null,"The data are broken down by scenario, region, road type and vehicle type"]
[]
[null,null,"Table 2a: Road traffic projections (billion vehicle miles, bvm) from 2015 to 2060",null,null,null,null,null,null,null,null,null,null,null,null,null,"Table 2b: Change in road traffic (%) relative to 2025"]
[null,null,"Scenario","Region","Road type","Vehicle type","Traffic in 2015\n(bvm)","Traffic in 2025\n(bvm)","Traffic in 2030\n(bvm)","Traffic in 2035\n(bvm)","Traffic in 2040\n(bvm)","Traffic in 2045\n(bvm)","Traffic in 2050\n(bvm)","Traffic in 2055\n(bvm)","Traffic in 2060\n(bvm)",null,"Scenario","Region","Road type","Vehicle type","Traffic change 2025 to 2030\n(%)","Traffic change 2025 to 2035\n(%)","Traffic change 2025 to 2040\n(%)","Traffic change 2025 to 2045\n(%)","Traffic change 2025 to 2050\n(%)","Traffic change 2025 to 2055\n(%)","Traffic change 2025 to 2060\n(%)","Lookup (region_roadtype_vehicletype)","Lookup (region_roadtype)"]
[null,null,"core","east midlands","a road","car",6.7497259029999999,7.0863384070000004,7.4475968290000001,7.7349715379999999,7.9448526360000002,8.0838640300000009,8.164249216,8.2054746519999995,8.2339071530000005,null,"core","East Midlands","A roads","Cars",{"$f":"IF(OR($H17=0,$H29=0),0,((I17-$H17)/$H17*H17+(I29-$H29)/$H29*H29)/($H17+$H29))","v":5.7663528436170244E-2},{"$f":"IF(OR($H17=0,$H29=0),0,((J17-$H17)/$H17*I17+(J29-$H29)/$H29*I29)/($H17+$H29))","v":0.11139349064426908},0.15512202521814814,0.18574554657825271,0.20465166876891863,0.21431651423625819,0.22003460137572317,{"$f":"R17&\"-\"&S17&\"-\"&T17","v":"East Midlands-A roads-Cars"},{"$f":"R17&\"-\"&S17","v":"East Midlands-A roads"}]
[null,null,"core","east midlands","a road","hgv",0.47262569799999998,0.48448500799999999,0.48634097799999998,0.48977655799999997,0.49407862400000002,0.499762019,0.50423692099999995,0.50707231900000005,0.50857738900000005,null,"core","East Midlands","A roads","HGV",{"$f":"IF(OR($H18=0,$H30=0),0,((I18-$H18)/$H18*H18+(I30-$H30)/$H30*H30)/($H18+$H30))","v":1.5093578557648686E-2},{"$f":"IF(OR($H18=0,$H30=0),0,((J18-$H18)/$H18*I18+(J30-$H30)/$H30*I30)/($H18+$H30))","v":2.9778492284994674E-2},{"$f":"IF(OR($H18=0,$H30=0),0,((K18-$H18)/$H18*J18+(K30-$H30)/$H30*J30)/($H18+$H30))","v":4.7061185865782909E-2},{"$f":"IF(OR($H18=0,$H30=0),0,((L18-$H18)/$H18*K18+(L30-$H30)/$H30*K30)/($H18+$H30))","v":6.1955415104126325E-2},{"$f":"IF(OR($H18=0,$H30=0),0,((M18-$H18)/$H18*L18+(M30-$H30)/$H30*L30)/($H18+$H30))","v":7.6634861188757883E-2},{"$f":"IF(OR($H18=0,$H30=0),0,((N18-$H18)/$H18*M18+(N30-$H30)/$H30*M30)/($H18+$H30))","v":8.8393703504145382E-2},{"$f":"IF(OR($H18=0,$H30=0),0,((O18-$H18)/$H18*N18+(O30-$H30)/$H30*N30)/($H18+$H30))","v":9.7344090268454239E-2},{"$f":"R18&\"-\"&S18&\"-\"&T18","v":"East Midlands-A roads-HGV"},{"$f":"R18&\"-\"&S18","v":"East Midlands-A roads"}]
[null,null,"core","east midlands","a road","lgv",1.269533018,1.593138663,1.6212451050000001,1.7178861860000001,1.8458093069999999,1.9578821179999999,2.0321552230000002,2.1066307520000001,2.2048500610000001,null,"core","East Midlands","A roads","LGV",1.6094196995157146E-2,7.7147673696729951E-2,0.16771511932315736,0.26112931929067801,0.33391831865363542,0.4058883383744693,0.50198400690017053,"East Midlands-A roads-LGV","East Midlands-A roads"]
[null,null,"core","east midlands","a road","psv",6.5186506000000005E-2,5.8663311000000003E-2,5.8663311000000003E-2,5.8663311000000003E-2,5.8663311000000003E-2,5.8663311000000003E-2,5.8663311000000003E-2,5.8663311000000003E-2,5.8663311000000003E-2,null,"core","East Midlands","A roads","PSV",0,0,0,0,0,0,0,"East Midlands-A roads-PSV","East Midlands-A roads"]
[null,null,"core","east midlands","minor road","car",7.9239693239999998,8.3123571910000003,8.7217566160000004,9.0398840719999995,9.2745926920000006,9.4287497729999998,9.5244836799999995,9.586795017,9.6460928320000008,null,"core","East Midlands","Other Rds","Cars",{"$f":"IF($H21=0,0,(I21-$H21)/$H21)","v":4.9251904795822213E-2},{"$f":"IF($H21=0,0,(J21-$H21)/$H21)","v":8.7523534453946603E-2},0.11575964300978754,0.13430517437445375,0.14582223323035243,0.15331846270752969,0.16045215699393547,"East Midlands-Other Rds-Cars","East Midlands-Other Rds"]
[null,null,"core","east midlands","minor road","hgv",0.19178162700000001,0.19481335499999999,0.194121234,0.19442021100000001,0.196958621,0.198398561,0.199389708,0.20003768899999999,0.20034632099999999,null,"core","East Midlands","Other Rds","HGV",{"$f":"IF($H22=0,0,(I22-$H22)/$H22)","v":-3.5527389793168444E-3},{"$f":"IF($H22=0,0,(J22-$H22)/$H22)","v":-2.0180546657080269E-3},{"$f":"IF($H22=0,0,(K22-$H22)/$H22)","v":1.1011904189012128E-2},{"$f":"IF($H22=0,0,(L22-$H22)/$H22)","v":1.8403286571395516E-2},{"$f":"IF($H22=0,0,(M22-$H22)/$H22)","v":2.3490961387118484E-2},{"$f":"IF($H22=0,0,(N22-$H22)/$H22)","v":2.681712452413746E-2},{"$f":"IF($H22=0,0,(O22-$H22)/$H22)","v":2.8401369095049981E-2},"East Midlands-Other Rds-HGV","East Midlands-Other Rds"]
[null,null,"core","east midlands","minor road","lgv",1.502015498,1.888534803,1.887240292,1.9906005280000001,2.138558814,2.270407697,2.3592134339999999,2.448659138,2.5671472180000001,null,"core","East Midlands","Other Rds","LGV",-6.8545784697407995E-4,5.4044926700776354E-2,0.1323904704339198,0.20220590766629362,0.24922952452467986,0.29659201096544474,0.35933275570140505,"East Midlands-Other Rds-LGV","East Midlands-Other Rds"]
[null,null,"core","east midlands","minor road","psv",9.0469462E-2,8.1416208000000004E-2,8.1416208000000004E-2,8.1416208000000004E-2,8.1416208000000004E-2,8.1416208000000004E-2,8.1416208000000004E-2,8.1416208000000004E-2,8.1416208000000004E-2,null,"core","East Midlands","Other Rds","PSV",0,0,0,0,0,0,0,"East Midlands-Other Rds-PSV","East Midlands-Other Rds"]
[null,null,"core","east midlands","motorway","car",2.9035013059999999,3.2026410749999998,3.4989150410000001,3.7496150450000001,3.9264621370000001,4.034456219,4.0957917999999998,4.1192875989999997,4.1282308859999999,null,"core","East Midlands","Motorways","Cars",9.2509263155566138E-2,0.17078840781432253,0.22600754972206816,0.25972786975512085,0.27887943234475626,0.28621581455236905,0.28900828701199371,"East Midlands-Motorways-Cars","East Midlands-Motorways"]
[null,null,"core","east midlands","motorway","hgv",0.63713450699999996,0.68053435600000001,0.70255141099999996,0.72546317199999999,0.74510640500000003,0.76060502399999996,0.77411848100000002,0.78412398900000002,0.79268936599999995,null,"core","East Midlands","Motorways","HGV",3.2352598815745828E-2,6.6019908626038543E-2,9.4884333804302487E-2,0.11765852420829134,0.13751565100998372,0.15221807993482112,0.1648043320828316,"East Midlands-Motorways-HGV","East Midlands-Motorways"]
[null,null,"core","east midlands","motorway","lgv",0.58812995599999995,0.80218069299999994,0.81758523400000005,0.86563684600000002,0.92882460600000005,0.98390851999999995,1.020184464,1.056970148,1.1058972650000001,null,"core","East Midlands","Motorways","LGV",1.92033305393952E-2,7.9104562792064195E-2,0.15787454635236417,0.22654225984967707,0.27176392164801205,0.31762102631408018,0.37861366478936204,"East Midlands-Motorways-LGV","East Midlands-Motorways"]
[null,null,"core","east midlands","motorway","psv",1.2659971000000001E-2,1.1393090999999999E-2,1.1393090999999999E-2,1.1393090999999999E-2,1.1393090999999999E-2,1.1393090999999999E-2,1.1393090999999999E-2,1.1393090999999999E-2,1.1393090999999999E-2,null,"core","East Midlands","Motorways","PSV",0,0,0,0,0,0,0,"East Midlands-Motorways-PSV","East Midlands-Motorways"]
[null,null,"core","east midlands","trunk","car",3.6023580040000001,3.923246147,4.196839217,4.4324331670000001,4.6054388140000002,4.7125952209999999,4.7752991439999999,4.8024636369999998,4.8167047299999997,null,"core","East Midlands","trunk","Cars",null,null,null,null,null,null,null,"East Midlands-trunk-Cars","East Midlands-trunk"]
[null,null,"core","east midlands","trunk","hgv",0.60071669000000005,0.63444851300000005,0.64948125400000001,0.66180857100000001,0.675632432,0.68491692900000001,0.69500593300000002,0.70327737999999995,0.70996228299999997,null,"core","East Midlands","trunk","HGV",null,null,null,null,null,null,null,"East Midlands-trunk-HGV","East Midlands-trunk"]
[null,null,"core","east midlands","trunk","lgv",0.71225192500000001,0.89400971799999995,0.905931932,0.95808460699999998,1.029010878,1.0911205820000001,1.13242138,1.1738845200000001,1.2288269839999999,null,"core","East Midlands","trunk","LGV",null,null,null,null,null,null,null,"East Midlands-trunk-LGV","East Midlands-trunk"]
[null,null,"core","east midlands","trunk","psv",1.2945516000000001E-2,1.1650061999999999E-2,1.1650061999999999E-2,1.1650061999999999E-2,1.1650061999999999E-2,1.1650061999999999E-2,1.1650061999999999E-2,1.1650061999999999E-2,1.1650061999999999E-2,null,"core","East Midlands","trunk","PSV",null,null,null,null,null,null,null,"East Midlands-trunk-PSV","East Midlands-trunk"]
[null,null,"core","eastern england","a road","car",8.3180679039999994,8.660078382,9.0905898010000001,9.4158473459999996,9.6514237810000001,9.8059426550000008,9.895411782,9.9386647490000009,9.9710178420000002,null,"core","Eastern England","A roads","Cars",{"$f":"IF(OR($H33=0,$H45=0),0,((I33-$H33)/$H33*H33+(I45-$H45)/$H45*H45)/($H33+$H45))","v":5.1733212620319997E-2},{"$f":"IF(OR($H33=0,$H45=0),0,((J33-$H33)/$H33*I33+(J45-$H45)/$H45*I45)/($H33+$H45))","v":0.10011199488513989},{"$f":"IF(OR($H33=0,$H45=0),0,((K33-$H33)/$H33*J33+(K45-$H45)/$H45*J45)/($H33+$H45))","v":0.13881736323537311},{"$f":"IF(OR($H33=0,$H45=0),0,((L33-$H33)/$H33*K33+(L45-$H45)/$H45*K45)/($H33+$H45))","v":0.16590315494494107},{"$f":"IF(OR($H33=0,$H45=0),0,((M33-$H33)/$H33*L33+(M45-$H45)/$H45*L45)/($H33+$H45))","v":0.18249502103543566},{"$f":"IF(OR($H33=0,$H45=0),0,((N33-$H33)/$H33*M33+(N45-$H45)/$H45*M45)/($H33+$H45))","v":0.19107057957741366},{"$f":"IF(OR($H33=0,$H45=0),0,((O33-$H33)/$H33*N33+(O45-$H45)/$H45*N45)/($H33+$H45))","v":0.19684277932432248},"Eastern England-A roads-Cars","Eastern England-A roads"]
[null,null,"core","eastern england","a road","hgv",0.47724971900000002,0.48832954499999998,0.49081746399999998,0.49665909000000003,0.50209548100000001,0.50886193400000002,0.51546394600000001,0.52041366899999997,0.52447053300000002,null,"core","Eastern England","A roads","HGV",{"$f":"IF(OR($H34=0,$H46=0),0,((I34-$H34)/$H34*H34+(I46-$H46)/$H46*H46)/($H34+$H46))","v":8.1797287100248799E-3},3.1939895018321188E-2,5.4871507990651096E-2,7.927530384050771E-2,0.10352002570721291,0.12622664759574256,0.14751078983483354,"Eastern England-A roads-HGV","Eastern England-A roads"]
[null,null,"core","eastern england","a road","lgv",1.579288713,1.9810155979999999,2.004903755,2.1191904190000002,2.2742167979999999,2.4101528430000001,2.4998939080000002,2.5895322749999998,2.7084025399999998,null,"core","Eastern England","A roads","LGV",8.2006908246053736E-3,6.5443916971658272E-2,0.15202787920659883,0.24143631514171482,0.31069882034955359,0.3793506414744563,0.4714201486516571,"Eastern England-A roads-LGV","Eastern England-A roads"]
[null,null,"core","eastern england","a road","psv",7.4567822000000006E-2,6.7105840999999999E-2,6.7105840999999999E-2,6.7105840999999999E-2,6.7105840999999999E-2,6.7105840999999999E-2,6.7105840999999999E-2,6.7105840999999999E-2,6.7105840999999999E-2,null,"core","Eastern England","A roads","PSV",0,0,0,0,0,0,0,"Eastern England-A roads-PSV","Eastern England-A roads"]
[null,null,"core","eastern england","minor road","car",11.31846339,11.82945104,12.38532071,12.81083821,13.13373503,13.358517490000001,13.504516049999999,13.60866422,13.705894069999999,null,"core","Eastern England","Other Rds","Cars",{"$f":"IF($H37=0,0,(I37-$H37)/$H37)","v":4.6990318326724304E-2},{"$f":"IF($H37=0,0,(J37-$H37)/$H37)","v":8.296134509382945E-2},{"$f":"IF($H37=0,0,(K37-$H37)/$H37)","v":0.11025735561098363},{"$f":"IF($H37=0,0,(L37-$H37)/$H37)","v":0.12925929063230648},{"$f":"IF($H37=0,0,(M37-$H37)/$H37)","v":0.14160124627389295},{"$f":"IF($H37=0,0,(N37-$H37)/$H37)","v":0.15040538854962784},{"$f":"IF($H37=0,0,(O37-$H37)/$H37)","v":0.15862469219028097},"Eastern England-Other Rds-Cars","Eastern England-Other Rds"]
[null,null,"core","eastern england","minor road","hgv",0.18052992500000001,0.178715387,0.17839303200000001,0.17947090499999999,0.181059039,0.182881711,0.18466861300000001,0.185715462,0.18665167899999999,null,"core","Eastern England","Other Rds","HGV",{"$f":"IF($H38=0,0,(I38-$H38)/$H38)","v":-1.8037338889012192E-3},4.2274927340194991E-3,1.3113879220707513E-2,2.3312620529982675E-2,3.3311211194143042E-2,3.9168843363218603E-2,4.4407435382158689E-2,"Eastern England-Other Rds-HGV","Eastern England-Other Rds"]
[null,null,"core","eastern england","minor road","lgv",2.1981223910000001,2.9264852079999999,2.9474256140000001,3.115539842,3.3490250430000001,3.5562529270000001,3.6957800239999998,3.836480726,4.0222512630000002,null,"core","Eastern England","Other Rds","LGV",7.1554798714705296E-3,6.4601260748966036E-2,0.14438474995360381,0.21519593445353241,0.26287329725672748,0.31095168891077485,0.37443075126590575,"Eastern England-Other Rds-LGV","Eastern England-Other Rds"]
[null,null,"core","eastern england","minor road","psv",0.12516602600000001,0.112640696,0.112640696,0.112640696,0.112640696,0.112640696,0.112640696,0.112640696,0.112640696,null,"core","Eastern England","Other Rds","PSV",0,0,0,0,0,0,0,"Eastern England-Other Rds-PSV","Eastern England-Other Rds"]
[null,null,"core","eastern england","motorway","car",4.3522326749999998,4.6208506629999997,5.0694001220000002,5.4020317289999999,5.6421573260000004,5.7921360059999998,5.8808969309999997,5.9211990380000001,5.9413867460000001,null,"core","Eastern England","Motorways","Cars",9.7070754220996244E-2,0.16905568324357689,0.22102135244875815,0.25347829402466887,0.27268707861291036,0.28140887248578034,0.28577770183610895,"Eastern England-Motorways-Cars","Eastern England-Motorways"]
[null,null,"core","eastern england","motorway","hgv",0.70368018899999996,0.74878151299999995,0.81537527700000001,0.84852401600000005,0.88045046000000005,0.90455901000000005,0.92540852900000004,0.94523870499999996,0.96218748700000001,null,"core","Eastern England","Motorways","HGV",8.8936175431457348E-2,0.13320641771774097,0.17584428129437552,0.20804132353091376,0.23588591990251245,0.2623691805809848,0.28500433076263737,"Eastern England-Motorways-HGV","Eastern England-Motorways"]
[null,null,"core","eastern england","motorway","lgv",0.91017815800000001,1.0912027,1.0851008719999999,1.1384441000000001,1.218062156,1.288865964,1.335891422,1.383672896,1.4470485239999999,null,"core","Eastern England","Motorways","LGV",-5.5918373369127769E-3,4.3292964725985469E-2,0.11625654518633434,0.18114257231951497,0.22423764347357281,0.26802554282536145,0.32610423709545439,"Eastern England-Motorways-LGV","Eastern England-Motorways"]
[null,null,"core","eastern england","motorway","psv",2.0135971999999999E-2,1.8120971E-2,1.8120971E-2,1.8120971E-2,1.8120971E-2,1.8120971E-2,1.8120971E-2,1.8120971E-2,1.8120971E-2,null,"core","Eastern England","Motorways","PSV",0,0,0,0,0,0,0,"Eastern England-Motorways-PSV","Eastern England-Motorways"]
[null,null,"core","eastern england","trunk","car",4.876953168,5.328714433,5.6218882069999996,5.9041607469999997,6.1085292329999996,6.2392193459999996,6.3143917160000003,6.3514147540000003,6.3766889400000002,null,"core","Eastern England","trunk","Cars",null,null,null,null,null,null,null,"Eastern England-trunk-Cars","Eastern England-trunk"]
[null,null,"core","eastern england","trunk","hgv",0.69475543299999998,0.74457491399999998,0.75217181899999996,0.775268603,0.79610141400000001,0.81624298100000003,0.83520631199999995,0.85312093300000003,0.86968695799999995,null,"core","Eastern England","trunk","HGV",null,null,null,null,null,null,null,"Eastern England-trunk-HGV","Eastern England-trunk"]
[null,null,"core","eastern england","trunk","lgv",1.0124460710000001,1.2855348150000001,1.2884346280000001,1.3593032599999999,1.4585608779999999,1.5464315040000001,1.6044456170000001,1.66312817,1.740883857,null,"core","Eastern England","trunk","LGV",null,null,null,null,null,null,null,"Eastern England-trunk-LGV","Eastern England-trunk"]
[null,null,"core","eastern england","trunk","psv",2.1148956E-2,1.9032585000000001E-2,1.9032585000000001E-2,1.9032585000000001E-2,1.9032585000000001E-2,1.9032585000000001E-2,1.9032585000000001E-2,1.9032585000000001E-2,1.9032585000000001E-2,null,"core","Eastern England","trunk","PSV",null,null,null,null,null,null,null,"Eastern England-trunk-PSV","Eastern England-trunk"]
[null,null,"core","london","a road","car",7.533534178,7.7335368840000003,8.2180697210000009,8.5697989539999995,8.7901381409999999,8.9408700240000005,9.0394095330000006,9.103178583,9.1462393320000004,null,"core","London","A roads","Cars",{"$f":"IF($H49=0,0,(I49-$H49)/$H49)","v":6.265345911809847E-2},{"$f":"IF($H49=0,0,(J49-$H49)/$H49)","v":0.10813449040763626},{"$f":"IF($H49=0,0,(K49-$H49)/$H49)","v":0.13662587672996215},{"$f":"IF($H49=0,0,(L49-$H49)/$H49)","v":0.15611655547901571},{"$f":"IF($H49=0,0,(M49-$H49)/$H49)","v":0.16885839798627386},{"$f":"IF($H49=0,0,(N49-$H49)/$H49)","v":0.17710417879219875},{"$f":"IF($H49=0,0,(O49-$H49)/$H49)","v":0.18267223253602835},"London-A roads-Cars","London-A roads"]
[null,null,"core","london","a road","hgv",0.42789707199999999,0.436035903,0.43873318300000003,0.440004114,0.44410337,0.44808323700000002,0.45247145599999999,0.45528047500000002,0.45685247299999998,null,"core","London","A roads","HGV",{"$f":"IF($H50=0,0,(I50-$H50)/$H50)","v":6.1859126311441014E-3},{"$f":"IF($H50=0,0,(J50-$H50)/$H50)","v":9.100651970853876E-3},{"$f":"IF($H50=0,0,(K50-$H50)/$H50)","v":1.8501841120179489E-2},{"$f":"IF($H50=0,0,(L50-$H50)/$H50)","v":2.762922483472656E-2},{"$f":"IF($H50=0,0,(M50-$H50)/$H50)","v":3.7693118587071923E-2},{"$f":"IF($H50=0,0,(N50-$H50)/$H50)","v":4.4135292226154171E-2},{"$f":"IF($H50=0,0,(O50-$H50)/$H50)","v":4.7740495350906867E-2},"London-A roads-HGV","London-A roads"]
[null,null,"core","london","a road","lgv",1.4053603160000001,1.9381031639999999,2.0159264530000001,2.1433194200000001,2.3015345219999999,2.4369906710000002,2.525748004,2.6146525390000002,2.732739703,null,"core","London","A roads","LGV",4.0154358367272207E-2,0.10588510447321067,0.18751909844155229,0.25741019171051738,0.30320617133051647,0.34907810253180116,0.41000734829820445,"London-A roads-LGV","London-A roads"]
[null,null,"core","london","a road","psv",0.24502390399999999,0.24936972099999999,0.24936972099999999,0.24936972099999999,0.24936972099999999,0.24936972099999999,0.24936972099999999,0.24936972099999999,0.24936972099999999,null,"core","London","A roads","PSV",0,0,0,0,0,0,0,"London-A roads-PSV","London-A roads"]
[null,null,"core","london","minor road","car",6.89475734,7.1560696669999997,7.6390552129999998,7.9805110040000002,8.1990302489999998,8.3497327689999992,8.4523094850000007,8.5241670440000004,8.5789695580000007,null,"core","London","Other Rds","Cars",{"$f":"IF($H53=0,0,(I53-$H53)/$H53)","v":6.7493130793188541E-2},0.11520867953562372,0.14574488937825486,0.16680428748542528,0.18113851294343486,0.19117999693448215,0.19883818313866636,"London-Other Rds-Cars","London-Other Rds"]
[null,null,"core","london","minor road","hgv",8.0415977999999999E-2,8.2011186999999999E-2,8.2290198999999994E-2,8.2757281000000002E-2,8.3207236000000004E-2,8.3696186000000006E-2,8.4163447000000002E-2,8.4292475000000006E-2,8.4343544000000006E-2,null,"core","London","Other Rds","HGV",3.4021212252420534E-3,9.0974661786080799E-3,1.4583973769334719E-2,2.0545965271786721E-2,2.6243492854212718E-2,2.781679040933777E-2,2.8439498138223596E-2,"London-Other Rds-HGV","London-Other Rds"]
[null,null,"core","london","minor road","lgv",1.2812586880000001,1.564217424,1.455401277,1.49984889,1.598528446,1.691900521,1.7556194629999999,1.820559203,1.9069729719999999,null,"core","London","Other Rds","LGV",-6.9565870658655937E-2,-4.1150630987984688E-2,2.19349442561893E-2,8.1627461145069066E-2,0.12236280971129239,0.16387861116166674,0.2191227017044147,"London-Other Rds-LGV","London-Other Rds"]
[null,null,"core","london","minor road","psv",9.6067225000000006E-2,9.7771101999999999E-2,9.7771101999999999E-2,9.7771101999999999E-2,9.7771101999999999E-2,9.7771101999999999E-2,9.7771101999999999E-2,9.7771101999999999E-2,9.7771101999999999E-2,null,"core","London","Other Rds","PSV",0,0,0,0,0,0,0,"London-Other Rds-PSV","London-Other Rds"]
[null,null,"core","london","motorway","car",1.094156828,1.1693108539999999,1.2723696090000001,1.3569531370000001,1.412523033,1.4458987910000001,1.4642104970000001,1.467949403,1.465161956,null,"core","London","Motorways","Cars",8.8136319480363073E-2,0.1604725401787814,0.20799616985339311,0.23653927101920172,0.25219952589271027,0.25539705543518382,0.25301321798899518,"London-Motorways-Cars","London-Motorways"]
[null,null,"core","london","motorway","hgv",0.16064325199999999,0.175456627,0.183886987,0.19235649699999999,0.19940249299999999,0.20643171699999999,0.21226689000000001,0.217619219,0.22273289499999999,null,"core","London","Motorways","HGV",4.804811390794602E-2,9.6319359883739145E-2,0.13647740988432419,{"$f":"IF($H58=0,0,(L58-$H58)/$H58)","v":0.17653986930912552},0.20979693745053021,0.24030207761830505,0.26944703547732046,"London-Motorways-HGV","London-Motorways"]
[null,null,"core","london","motorway","lgv",0.225513517,0.27412680099999998,0.27313207,0.28736529799999999,0.30810610999999999,0.32654445300000001,0.33882114499999999,0.35123619900000003,0.36767772100000001,null,"core","London","Motorways","LGV",-3.6287258172905575E-3,4.8293333419814052E-2,0.12395471320587882,0.19121680845792252,0.23600152835840382,0.28129098548083981,0.34126878385743847,"London-Motorways-LGV","London-Motorways"]
[null,null,"core","london","motorway","psv",6.7838229999999996E-3,6.9041429999999997E-3,6.9041429999999997E-3,6.9041429999999997E-3,6.9041429999999997E-3,6.9041429999999997E-3,6.9041429999999997E-3,6.9041429999999997E-3,6.9041429999999997E-3,null,"core","London","Motorways","PSV",0,0,0,0,0,0,0,"London-Motorways-PSV","London-Motorways"]
[null,null,"core","london","trunk","car",null,null,null,null,null,null,null,null,null,null,"core","London","trunk","Cars",null,null,null,null,null,null,null,"London-trunk-Cars","London-trunk"]
[null,null,"core","london","trunk","hgv",null,null,null,null,null,null,null,null,null,null,"core","London","trunk","HGV",null,null,null,null,null,null,null,"London-trunk-HGV","London-trunk"]
[null,null,"core","london","trunk","lgv",null,null,null,null,null,null,null,null,null,null,"core","London","trunk","LGV",null,null,null,null,null,null,null,"London-trunk-LGV","London-trunk"]
[null,null,"core","london","trunk","psv",null,null,null,null,null,null,null,null,null,null,"core","London","trunk","PSV",null,null,null,null,null,null,null,"London-trunk-PSV","London-trunk"]
[null,null,"core","north east","a road","car",3.2996077939999999,3.4331571460000001,3.5914587340000002,3.711258086,3.803978877,3.8653897110000002,3.9042578680000002,3.9258354959999999,3.9446498509999999,null,"core","North East","A roads","Cars",{"$f":"IF(OR($H65=0,$H77=0),0,((I65-$H65)/$H65*H65+(I77-$H77)/$H77*H77)/($H65+$H77))","v":4.9660107087841736E-2},{"$f":"IF(OR($H65=0,$H77=0),0,((J65-$H65)/$H65*I65+(J77-$H77)/$H77*I77)/($H65+$H77))","v":9.3799624692688918E-2},{"$f":"IF(OR($H65=0,$H77=0),0,((K65-$H65)/$H65*J65+(K77-$H77)/$H77*J77)/($H65+$H77))","v":0.12952554315992193},{"$f":"IF(OR($H65=0,$H77=0),0,((L65-$H65)/$H65*K65+(L77-$H77)/$H77*K77)/($H65+$H77))","v":0.15445428123573862},{"$f":"IF(OR($H65=0,$H77=0),0,((M65-$H65)/$H65*L65+(M77-$H77)/$H77*L77)/($H65+$H77))","v":0.17058940791276561},{"$f":"IF(OR($H65=0,$H77=0),0,((N65-$H65)/$H65*M65+(N77-$H77)/$H77*M77)/($H65+$H77))","v":0.17973377764877257},{"$f":"IF(OR($H65=0,$H77=0),0,((O65-$H65)/$H65*N65+(O77-$H77)/$H77*N77)/($H65+$H77))","v":0.18723424798734947},"North East-A roads-Cars","North East-A roads"]
[null,null,"core","north east","a road","hgv",0.13514232100000001,0.13989347699999999,0.14183744300000001,0.14359872100000001,0.145439072,0.14724826499999999,0.14884718999999999,0.14986543899999999,0.150536062,null,"core","North East","A roads","HGV",{"$f":"IF(OR($H66=0,$H78=0),0,((I66-$H66)/$H66*H66+(I78-$H78)/$H78*H78)/($H66+$H78))","v":1.687510637606655E-2},3.4229254451915832E-2,5.2112280810415759E-2,6.8019879623212293E-2,8.3248514070073998E-2,9.4311799033195143E-2,0.10276542459121911,"North East-A roads-HGV","North East-A roads"]
[null,null,"core","north east","a road","lgv",0.57645634400000001,0.71746447300000005,0.73928209300000003,0.78565617499999996,0.84463684900000002,0.89571510099999996,0.92968662700000004,0.96336403199999998,1.0078656749999999,null,"core","North East","A roads","LGV",2.7734607413521635E-2,9.4300305191987219E-2,0.18935360642516855,0.28662396600948092,0.36250064510509589,0.43657495601185048,0.53519103792113043,"North East-A roads-LGV","North East-A roads"]
[null,null,"core","north east","a road","psv",4.6127436000000001E-2,4.1025428000000003E-2,4.1025428000000003E-2,4.1025428000000003E-2,4.1025428000000003E-2,4.1025428000000003E-2,4.1025428000000003E-2,4.1025428000000003E-2,4.1025428000000003E-2,null,"core","North East","A roads","PSV",0,0,0,0,0,0,0,"North East-A roads-PSV","North East-A roads"]
[null,null,"core","north east","minor road","car",4.0329411049999999,4.2046981030000001,4.4016480439999999,4.5524903950000004,4.6645498559999998,4.7428836590000003,4.7904059600000002,4.8265070410000002,4.8620622789999999,null,"core","North East","Other Rds","Cars",{"$f":"IF($H69=0,0,(I69-$H69)/$H69)","v":4.6840447560189492E-2},{"$f":"IF($H69=0,0,(J69-$H69)/$H69)","v":8.2715163724086341E-2},{"$f":"IF($H69=0,0,(K69-$H69)/$H69)","v":0.1093661760571826},{"$f":"IF($H69=0,0,(L69-$H69)/$H69)","v":0.12799624201699794},{"$f":"IF($H69=0,0,(M69-$H69)/$H69)","v":0.13929843300333614},{"$f":"IF($H69=0,0,(N69-$H69)/$H69)","v":0.14788432433623405},{"$f":"IF($H69=0,0,(O69-$H69)/$H69)","v":0.15634039826330898},"North East-Other Rds-Cars","North East-Other Rds"]
[null,null,"core","north east","minor road","hgv",5.7827019E-2,5.9825916999999999E-2,6.0406062000000003E-2,6.0953537000000002E-2,6.1595677000000001E-2,6.2234671999999998E-2,6.2640225999999993E-2,6.2820575000000003E-2,6.3001345E-2,null,"core","North East","Other Rds","HGV",{"$f":"IF($H70=0,0,(I70-$H70)/$H70)","v":9.6972186819970375E-3},1.8848352963816716E-2,2.958182822337687E-2,4.0262734292898485E-2,4.7041635818135377E-2,5.0056198887849963E-2,5.3077799041509069E-2,"North East-Other Rds-HGV","North East-Other Rds"]
[null,null,"core","north east","minor road","lgv",0.71681595099999995,0.93290495799999995,0.94799291399999996,1.0047644229999999,1.0806846569999999,1.147664985,1.1921919240000001,1.2372719489999999,1.2967706539999999,null,"core","North East","Other Rds","LGV",1.6173090163810678E-2,7.7027637578489488E-2,0.15840809691569888,0.23020568725501411,0.27793502840404044,0.3262572338049467,0.39003511866854068,"North East-Other Rds-LGV","North East-Other Rds"]
[null,null,"core","north east","minor road","psv",9.1997414999999999E-2,8.1726252999999999E-2,8.1726252999999999E-2,8.1726252999999999E-2,8.1726252999999999E-2,8.1726252999999999E-2,8.1726252999999999E-2,8.1726252999999999E-2,8.1726252999999999E-2,null,"core","North East","Other Rds","PSV",0,0,0,0,0,0,0,"North East-Other Rds-PSV","North East-Other Rds"]
[null,null,"core","north east","motorway","car",0.56762927900000004,0.60441054900000002,0.64818876000000003,0.68068914400000002,0.70709963499999995,0.72368325300000003,0.73356110799999996,0.73988311699999998,0.743545609,null,"core","North East","Motorways","Cars",7.2431249044926926E-2,0.1262032820674677,0.16989955944663687,0.19733723079012641,0.21368018677648848,0.22413997939668648,0.23019958905449212,"North East-Motorways-Cars","North East-Motorways"]
[null,null,"core","north east","motorway","hgv",7.5248289999999995E-2,7.8936179999999995E-2,8.0853870999999994E-2,8.2480973999999999E-2,8.3732325999999996E-2,8.5304229999999995E-2,8.6288523000000006E-2,8.7296109999999996E-2,8.7970044999999997E-2,null,"core","North East","Motorways","HGV",2.429419564007277E-2,4.490708823254437E-2,6.0759793544607824E-2,8.0673399700872284E-2,9.3142878208699889E-2,0.10590745587131277,0.11444517583698632,"North East-Motorways-HGV","North East-Motorways"]
[null,null,"core","north east","motorway","lgv",0.109900705,0.14259995,0.144921668,0.15320996200000001,0.164699284,0.174685532,0.18129847599999999,0.18803413199999999,0.19686506500000001,null,"core","North East","Motorways","LGV",1.628133810706105E-2,7.4404037308568496E-2,0.1549743460639362,0.2250041602398879,0.27137825784651387,0.31861288871419652,0.38054091183061428,"North East-Motorways-LGV","North East-Motorways"]
[null,null,"core","north east","motorway","psv",2.3982130000000002E-3,2.1455459999999999E-3,2.1455459999999999E-3,2.1455459999999999E-3,2.1455459999999999E-3,2.1455459999999999E-3,2.1455459999999999E-3,2.1455459999999999E-3,2.1455459999999999E-3,null,"core","North East","Motorways","PSV",0,0,0,0,0,0,0,"North East-Motorways-PSV","North East-Motorways"]
[null,null,"core","north east","trunk","car",1.949889904,2.0596602480000001,2.1741325599999999,2.272150549,2.3412133040000001,2.3846982909999999,2.4108438670000001,2.4244263190000002,2.4364749259999998,null,"core","North East","trunk","Cars",null,null,null,null,null,null,null,"North East-trunk-Cars","North East-trunk"]
[null,null,"core","north east","trunk","hgv",0.180028362,0.18977419300000001,0.19339340399999999,0.19716086699999999,0.200831078,0.203738214,0.20655902300000001,0.20859124000000001,0.21022374199999999,null,"core","North East","trunk","HGV",null,null,null,null,null,null,null,"North East-trunk-HGV","North East-trunk"]
[null,null,"core","north east","trunk","lgv",0.35890527100000003,0.45125652300000002,0.46185292100000003,0.490285427,0.52676762300000002,0.55845576500000005,0.57950463699999999,0.60045341600000002,0.62828409900000004,null,"core","North East","trunk","LGV",null,null,null,null,null,null,null,"North East-trunk-LGV","North East-trunk"]
[null,null,"core","north east","trunk","psv",9.8369430000000008E-3,8.7914129999999997E-3,8.7914129999999997E-3,8.7914129999999997E-3,8.7914129999999997E-3,8.7914129999999997E-3,8.7914129999999997E-3,8.7914129999999997E-3,8.7914129999999997E-3,null,"core","North East","trunk","PSV",null,null,null,null,null,null,null,"North East-trunk-PSV","North East-trunk"]
[null,null,"core","north west","a road","car",8.8351458100000002,9.2978993009999993,9.7660483370000009,10.13714468,10.413238679999999,10.600169940000001,10.71287139,10.782377260000001,10.84475679,null,"core","North West","A roads","Cars",{"$f":"IF(OR($H81=0,$H93=0),0,((I81-$H81)/$H81*H81+(I93-$H93)/$H93*H93)/($H81+$H93))","v":5.1794954790567463E-2},{"$f":"IF(OR($H81=0,$H93=0),0,((J81-$H81)/$H81*I81+(J93-$H93)/$H93*I93)/($H81+$H93))","v":9.8633634175574261E-2},{"$f":"IF(OR($H81=0,$H93=0),0,((K81-$H81)/$H81*J81+(K93-$H93)/$H93*J93)/($H81+$H93))","v":0.13663316852264151},{"$f":"IF(OR($H81=0,$H93=0),0,((L81-$H81)/$H81*K81+(L93-$H93)/$H93*K93)/($H81+$H93))","v":0.16399665521899506},{"$f":"IF(OR($H81=0,$H93=0),0,((M81-$H81)/$H81*L81+(M93-$H93)/$H93*L93)/($H81+$H93))","v":0.18140893955571646},{"$f":"IF(OR($H81=0,$H93=0),0,((N81-$H81)/$H81*M81+(N93-$H93)/$H93*M93)/($H81+$H93))","v":0.19200835165598687},{"$f":"IF(OR($H81=0,$H93=0),0,((O81-$H81)/$H81*N81+(O93-$H93)/$H93*N93)/($H81+$H93))","v":0.20080103130703908},"North West-A roads-Cars","North West-A roads"]
[null,null,"core","north west","a road","hgv",0.38496750099999999,0.39610150599999999,0.39901034000000002,0.397852123,0.40126971299999997,0.40316065200000001,0.40716445600000001,0.41011131899999997,0.41256350400000003,null,"core","North West","A roads","HGV",{"$f":"IF(OR($H82=0,$H94=0),0,((I82-$H82)/$H82*H82+(I94-$H94)/$H94*H94)/($H82+$H94))","v":7.6662391408936518E-3},5.5500522596008788E-3,1.5549060938563425E-2,2.0459867303762733E-2,3.1079385669964776E-2,3.9026638994553817E-2,4.5634078888214219E-2,{"$f":"R82&\"-\"&S82&\"-\"&T82","v":"North West-A roads-HGV"},{"$f":"R82&\"-\"&S82","v":"North West-A roads"}]
[null,null,"core","north west","a road","lgv",1.4919279240000001,1.8671258909999999,1.9243818109999999,2.0450860739999999,2.1976830299999999,2.3306468790000001,2.4182935310000002,2.506042388,2.6223282710000002,null,"core","North West","A roads","LGV",2.8389759615485E-2,9.510154439643323E-2,0.19010676505783747,0.2878101460005687,0.36369232669097468,0.43813166926323793,0.53745697319317498,"North West-A roads-LGV","North West-A roads"]
[null,null,"core","north west","a road","psv",0.125147062,0.110797622,0.110797622,0.110797622,0.110797622,0.110797622,0.110797622,0.110797622,0.110797622,null,"core","North West","A roads","PSV",0,0,0,0,0,0,0,"North West-A roads-PSV","North West-A roads"]
[null,null,"core","north west","minor road","car",10.576886869999999,11.14006038,11.71357506,12.164991540000001,12.50911631,12.74371122,12.894463529999999,12.99582281,13.09202846,null,"core","North West","Other Rds","Cars",{"$f":"IF($H85=0,0,(I85-$H85)/$H85)","v":5.1482187747352283E-2},{"$f":"IF($H85=0,0,(J85-$H85)/$H85)","v":9.2004093787506139E-2},{"$f":"IF($H85=0,0,(K85-$H85)/$H85)","v":0.12289483928272928},{"$f":"IF($H85=0,0,(L85-$H85)/$H85)","v":0.14395351419091681},{"$f":"IF($H85=0,0,(M85-$H85)/$H85)","v":0.1574859641828979},{"$f":"IF($H85=0,0,(N85-$H85)/$H85)","v":0.16658459350289451},{"$f":"IF($H85=0,0,(O85-$H85)/$H85)","v":0.17522060145243129},"North West-Other Rds-Cars","North West-Other Rds"]
[null,null,"core","north west","minor road","hgv",0.16564858900000001,0.168672982,0.168816667,0.16995558099999999,0.17145290999999999,0.17283243100000001,0.17438582399999999,0.175055499,0.175516215,null,"core","North West","Other Rds","HGV",{"$f":"IF($H86=0,0,(I86-$H86)/$H86)","v":8.5185545602083741E-4},7.6040571808945398E-3,1.6481169461982876E-2,2.4659841491389591E-2,3.3869336584089062E-2,3.783959306535533E-2,4.0571008580378355E-2,"North West-Other Rds-HGV","North West-Other Rds"]
[null,null,"core","north west","minor road","lgv",1.8399516920000001,2.2779539249999998,2.22699903,2.3317947170000002,2.4984770730000001,2.6496962270000002,2.7518796540000001,2.8548796830000001,2.9911701850000001,null,"core","North West","Other Rds","LGV",-2.2368711869358744E-2,2.3635593068459609E-2,9.6807554173862539E-2,0.16319131740120704,0.20804886516745519,0.25326489340648112,0.31309512109644638,"North West-Other Rds-LGV","North West-Other Rds"]
[null,null,"core","north west","minor road","psv",0.138202457,0.12226366299999999,0.12226366299999999,0.12226366299999999,0.12226366299999999,0.12226366299999999,0.12226366299999999,0.12226366299999999,0.12226366299999999,null,"core","North West","Other Rds","PSV",0,0,0,0,0,0,0,"North West-Other Rds-PSV","North West-Other Rds"]
[null,null,"core","north west","motorway","car",8.7424502529999994,9.5360704219999999,10.28905013,10.924945790000001,11.38673869,11.673265089999999,11.84128664,11.92012697,11.965563769999999,null,"core","North West","Motorways","Cars",7.8961215120942591E-2,0.14564441185289737,0.19407032311028793,0.22411691330104141,0.24173649270477252,0.25000408370516125,0.2547688136189814,"North West-Motorways-Cars","North West-Motorways"]
[null,null,"core","north west","motorway","hgv",1.2592161630000001,1.3343165969999999,1.381299461,1.431503242,1.466669073,1.5022632490000001,1.5288555829999999,1.5428225280000001,1.562805615,null,"core","North West","Motorways","HGV",3.5211181593359189E-2,7.2836270805975795E-2,9.9191208666349312E-2,0.1258671685397616,0.14579672203537761,0.15626421155878056,0.17124048259140415,"North West-Motorways-HGV","North West-Motorways"]
[null,null,"core","north west","motorway","lgv",1.7158973900000001,2.1069207350000001,2.1015278570000002,2.2111038930000002,2.3696371530000002,2.5103625530000002,2.6038657249999999,2.6985245340000001,2.8238664080000002,null,"core","North West","Motorways","LGV",-2.5596017498018871E-3,4.9448067157590578E-2,0.12469212231659968,0.19148409871242741,0.23586316359452403,0.28079072419399775,0.34028127451125972,"North West-Motorways-LGV","North West-Motorways"]
[null,null,"core","north west","motorway","psv",3.2745837E-2,2.9220065999999999E-2,2.9220065999999999E-2,2.9220065999999999E-2,2.9220065999999999E-2,2.9220065999999999E-2,2.9220065999999999E-2,2.9220065999999999E-2,2.9220065999999999E-2,null,"core","North West","Motorways","PSV",0,0,0,0,0,0,0,"North West-Motorways-PSV","North West-Motorways"]
[null,null,"core","north west","trunk","car",1.0355600739999999,1.1236853529999999,1.195321823,1.261327858,1.308918011,1.338837901,1.3565190709999999,1.3644419210000001,1.369795101,null,"core","North West","trunk","Cars",null,null,null,null,null,null,null,"North West-trunk-Cars","North West-trunk"]
[null,null,"core","north west","trunk","hgv",0.106074031,0.110728757,0.11170540499999999,0.111769043,0.113393409,0.113871555,0.115096648,0.115903414,0.116541593,null,"core","North West","trunk","HGV",null,null,null,null,null,null,null,"North West-trunk-HGV","North West-trunk"]
[null,null,"core","north west","trunk","lgv",0.201844725,0.25572033300000002,0.25873150700000003,0.27397396600000001,0.294459211,0.31251083099999999,0.32450942999999999,0.336543123,0.352457256,null,"core","North West","trunk","LGV",null,null,null,null,null,null,null,"North West-trunk-LGV","North West-trunk"]
[null,null,"core","north west","trunk","psv",8.3683869999999997E-3,7.5016789999999998E-3,7.5016789999999998E-3,7.5016789999999998E-3,7.5016789999999998E-3,7.5016789999999998E-3,7.5016789999999998E-3,7.5016789999999998E-3,7.5016789999999998E-3,null,"core","North West","trunk","PSV",null,null,null,null,null,null,null,"North West-trunk-PSV","North West-trunk"]
[null,null,"core","south east","a road","car",12.533459430000001,13.08096548,13.72322975,14.21693814,14.58485465,14.829789160000001,14.971133610000001,15.04794113,15.10717408,null,"core","South East","A roads","Cars",{"$f":"IF(OR($H97=0,$H109=0),0,((I97-$H97)/$H97*H97+(I109-$H109)/$H109*H109)/($H97+$H109))","v":5.3152755261931306E-2},{"$f":"IF(OR($H97=0,$H109=0),0,((J97-$H97)/$H97*I97+(J109-$H109)/$H109*I109)/($H97+$H109))","v":0.10011256115072203},{"$f":"IF(OR($H97=0,$H109=0),0,((K97-$H97)/$H97*J97+(K109-$H109)/$H109*J109)/($H97+$H109))","v":0.1386998484322832},{"$f":"IF(OR($H97=0,$H109=0),0,((L97-$H97)/$H97*K97+(L109-$H109)/$H109*K109)/($H97+$H109))","v":0.16602618574064495},{"$f":"IF(OR($H97=0,$H109=0),0,((M97-$H97)/$H97*L97+(M109-$H109)/$H109*L109)/($H97+$H109))","v":0.18287709282959894},{"$f":"IF(OR($H97=0,$H109=0),0,((N97-$H97)/$H97*M97+(N109-$H109)/$H109*M109)/($H97+$H109))","v":0.19205485803735681},{"$f":"IF(OR($H97=0,$H109=0),0,((O97-$H97)/$H97*N97+(O109-$H109)/$H109*N109)/($H97+$H109))","v":0.19836124395154053},"South East-A roads-Cars","South East-A roads"]
[null,null,"core","south east","a road","hgv",0.49981381000000003,0.513268159,0.51747757500000002,0.52260830700000005,0.52810201700000003,0.53533405300000003,0.54062079399999996,0.54281747400000002,0.54767633400000004,null,"core","South East","A roads","HGV",{"$f":"IF(OR($H98=0,$H110=0),0,((I98-$H98)/$H98*H98+(I110-$H110)/$H110*H110)/($H98+$H110))","v":1.7720623221971661E-2},3.37753363402667E-2,5.6129683473207875E-2,7.8093047865756271E-2,9.491450855501056E-2,0.10750693010886381,0.12145907529026731,"South East-A roads-HGV","South East-A roads"]
[null,null,"core","south east","a road","lgv",2.252735092,2.8195059470000001,2.8682623340000002,3.0374237530000001,3.2625167199999998,3.459303148,3.5890424360000002,3.7195353799999999,3.8921409580000002,null,"core","South East","A roads","LGV",1.636486652599798E-2,7.6721987560972121E-2,0.16668302257768969,0.25927920751874645,0.33116235269516664,0.40229901265885698,0.49745656520489662,"South East-A roads-LGV","South East-A roads"]
[null,null,"core","south east","a road","psv",0.10755843299999999,9.679509E-2,9.679509E-2,9.679509E-2,9.679509E-2,9.679509E-2,9.679509E-2,9.679509E-2,9.679509E-2,null,"core","South East","A roads","PSV",0,0,0,0,0,0,0,"South East-A roads-PSV","South East-A roads"]
[null,null,"core","south east","minor road","car",15.466055819999999,16.173702039999998,16.96346522,17.57157947,18.02650912,18.341498390000002,18.543079280000001,18.67699326,18.800768250000001,null,"core","South East","Other Rds","Cars",{"$f":"IF($H101=0,0,(I101-$H101)/$H101)","v":4.8830080957767009E-2},{"$f":"IF($H101=0,0,(J101-$H101)/$H101)","v":8.6429033164011557E-2},{"$f":"IF($H101=0,0,(K101-$H101)/$H101)","v":0.11455677094939247},{"$f":"IF($H101=0,0,(L101-$H101)/$H101)","v":0.13403216806138241},{"$f":"IF($H101=0,0,(M101-$H101)/$H101)","v":0.1464956652558688},{"$f":"IF($H101=0,0,(N101-$H101)/$H101)","v":0.15477540106828885},{"$f":"IF($H101=0,0,(O101-$H101)/$H101)","v":0.16242825566483618},"South East-Other Rds-Cars","South East-Other Rds"]
[null,null,"core","south east","minor road","hgv",0.20606743299999999,0.208928738,0.210111941,0.211416774,0.211088528,0.21195070899999999,0.21338311900000001,0.21438584999999999,0.21875678800000001,null,"core","South East","Other Rds","HGV",{"$f":"IF($H102=0,0,(I102-$H102)/$H102)","v":5.6631893310914163E-3},1.1908538881807628E-2,1.0337448168571213E-2,1.4464123169116086E-2,2.1320097190267846E-2,2.61194896031966E-2,4.7040201812734848E-2,"South East-Other Rds-HGV","South East-Other Rds"]
[null,null,"core","south east","minor road","lgv",2.7984967589999998,3.6323926379999998,3.6850843229999999,3.9043858189999998,4.2002085400000002,4.4614632350000001,4.6370887520000004,4.813309705,5.0459520180000004,null,"core","South East","Other Rds","LGV",1.4506054342465635E-2,7.4879895459142823E-2,0.15632007841328535,0.22824366185712999,0.27659347821858477,0.32510721848897223,0.38915379499786351,"South East-Other Rds-LGV","South East-Other Rds"]
[null,null,"core","south east","minor road","psv",0.12686391499999999,0.114168678,0.114168678,0.114168678,0.114168678,0.114168678,0.114168678,0.114168678,0.114168678,null,"core","South East","Other Rds","PSV",0,0,0,0,0,0,0,"South East-Other Rds-PSV","South East-Other Rds"]
[null,null,"core","south east","motorway","car",11.19505977,12.025924679999999,13.0137596,13.82449226,14.398675259999999,14.75605316,14.96358996,15.057751359999999,15.109206929999999,null,"core","South East","Motorways","Cars",8.2142117657101527E-2,0.14955752907642528,0.1973029636503594,0.22702025437930826,0.24427770488913467,0.25210757265444639,0.25638629311621469,"South East-Motorways-Cars","South East-Motorways"]
[null,null,"core","south east","motorway","hgv",1.28916367,1.3802887619999999,1.4395009050000001,1.5057101639999999,1.5662499999999999,1.619113472,1.6654849169999999,1.7124398300000001,1.752996429,null,"core","South East","Motorways","HGV",4.2898373608579815E-2,9.0866060387442299E-2,0.13472632909837454,0.17302517891542471,0.20662064551388412,0.24063882655881549,0.27002151814954795,"South East-Motorways-HGV","South East-Motorways"]
[null,null,"core","south east","motorway","lgv",2.0038735230000002,2.5584443239999999,2.5953667619999998,2.7465733559999999,2.9488473220000002,3.125909987,3.242717195,3.3604519989999999,3.5166414019999999,null,"core","South East","Motorways","LGV",1.4431597222437718E-2,7.3532587844581124E-2,0.15259390026108707,0.22180105999445629,0.26745661986115599,0.3134747422394954,0.37452332615231848,"South East-Motorways-LGV","South East-Motorways"]
[null,null,"core","south east","motorway","psv",5.7312356000000002E-2,5.1577124000000002E-2,5.1577124000000002E-2,5.1577124000000002E-2,5.1577124000000002E-2,5.1577124000000002E-2,5.1577124000000002E-2,5.1577124000000002E-2,5.1577124000000002E-2,null,"core","South East","Motorways","PSV",0,0,0,0,0,0,0,"South East-Motorways-PSV","South East-Motorways"]
[null,null,"core","south east","trunk","car",5.1693882020000004,5.6228789040000002,5.9747754970000004,6.2635270399999996,6.4844463729999999,6.6248044679999998,6.7072869080000004,6.7470421319999998,6.7723072369999997,null,"core","South East","trunk","Cars",null,null,null,null,null,null,null,"South East-trunk-Cars","South East-trunk"]
[null,null,"core","south east","trunk","hgv",0.45542701499999999,0.48112085199999999,0.494532629,0.50463445900000004,0.51993485699999997,0.53196990200000005,0.54067956100000003,0.54855299899999999,0.55513568700000004,null,"core","South East","trunk","HGV",null,null,null,null,null,null,null,"South East-trunk-HGV","South East-trunk"]
[null,null,"core","south east","trunk","lgv",0.99166720100000005,1.2433915959999999,1.261123985,1.332153159,1.430033133,1.515627573,1.572627094,1.6298771700000001,1.7057534089999999,null,"core","South East","trunk","LGV",null,null,null,null,null,null,null,"South East-trunk-LGV","South East-trunk"]
[null,null,"core","south east","trunk","psv",2.5555702999999999E-2,2.2998351E-2,2.2998351E-2,2.2998351E-2,2.2998351E-2,2.2998351E-2,2.2998351E-2,2.2998351E-2,2.2998351E-2,null,"core","South East","trunk","PSV",null,null,null,null,null,null,null,"South East-trunk-PSV","South East-trunk"]
[null,null,"core","south west","a road","car",7.9030886990000004,8.2813846309999999,8.6997504709999998,9.0248824180000007,9.2644934550000002,9.4209518299999999,9.5106885430000005,9.5580472410000006,9.5932814270000009,null,"core","South West","A roads","Cars",{"$f":"IF(OR($H113=0,$H125=0),0,((I113-$H113)/$H113*H113+(I125-$H125)/$H125*H125)/($H113+$H125))","v":5.7871784202190607E-2},{"$f":"IF(OR($H113=0,$H125=0),0,((J113-$H113)/$H113*I113+(J125-$H125)/$H125*I125)/($H113+$H125))","v":0.11121439585685672},{"$f":"IF(OR($H113=0,$H125=0),0,((K113-$H113)/$H113*J113+(K125-$H125)/$H125*J125)/($H113+$H125))","v":0.15499018971668629},{"$f":"IF(OR($H113=0,$H125=0),0,((L113-$H113)/$H113*K113+(L125-$H125)/$H125*K125)/($H113+$H125))","v":0.18557832368626523},{"$f":"IF(OR($H113=0,$H125=0),0,((M113-$H113)/$H113*L113+(M125-$H125)/$H125*L125)/($H113+$H125))","v":0.20451090292673274},{"$f":"IF(OR($H113=0,$H125=0),0,((N113-$H113)/$H113*M113+(N125-$H125)/$H125*M125)/($H113+$H125))","v":0.21434646731652462},{"$f":"IF(OR($H113=0,$H125=0),0,((O113-$H113)/$H113*N113+(O125-$H125)/$H125*N125)/($H113+$H125))","v":0.22016423362546483},"South West-A roads-Cars","South West-A roads"]
[null,null,"core","south west","a road","hgv",0.37656104600000001,0.384255815,0.38628385500000001,0.38917395900000001,0.39124237699999997,0.39529967700000002,0.39623184900000002,0.39819668400000002,0.399806736,null,"core","South West","A roads","HGV",{"$f":"IF(OR($H114=0,$H126=0),0,((I114-$H114)/$H114*H114+(I126-$H126)/$H126*H126)/($H114+$H126))","v":1.0625075214834143E-2},2.0964641422863941E-2,2.7125178036345281E-2,3.7985946596726911E-2,3.7655769744248779E-2,4.4159083764704204E-2,5.0249387305521781E-2,"South West-A roads-HGV","South West-A roads"]
[null,null,"core","south west","a road","lgv",1.5572623059999999,1.9416218890000001,1.955320543,2.0645810180000002,2.2161300759999998,2.3495073870000001,2.4378772930000001,2.5265789330000001,2.6440991519999999,null,"core","South West","A roads","LGV",5.0465547615148989E-3,6.0614426836665271E-2,0.14622057159482046,0.23490435533842563,0.30401353150428734,0.3727971308667008,0.46501766249611748,"South West-A roads-LGV","South West-A roads"]
[null,null,"core","south west","a road","psv",9.4314569000000001E-2,8.4876537000000002E-2,8.4876537000000002E-2,8.4876537000000002E-2,8.4876537000000002E-2,8.4876537000000002E-2,8.4876537000000002E-2,8.4876537000000002E-2,8.4876537000000002E-2,null,"core","South West","A roads","PSV",0,0,0,0,0,0,0,"South West-A roads-PSV","South West-A roads"]
[null,null,"core","south west","minor road","car",10.63718276,11.135828119999999,11.67542585,12.091343009999999,12.403804149999999,12.618637700000001,12.755304219999999,12.84528313,12.92672761,null,"core","South West","Other Rds","Cars",{"$f":"IF($H117=0,0,(I117-$H117)/$H117)","v":4.8456003827041877E-2},{"$f":"IF($H117=0,0,(J117-$H117)/$H117)","v":8.5805463204293775E-2},{"$f":"IF($H117=0,0,(K117-$H117)/$H117)","v":0.11386454750704252},{"$f":"IF($H117=0,0,(L117-$H117)/$H117)","v":0.1331566511283403},{"$f":"IF($H117=0,0,(M117-$H117)/$H117)","v":0.14542933696070734},{"$f":"IF($H117=0,0,(N117-$H117)/$H117)","v":0.15350946436842106},{"$f":"IF($H117=0,0,(O117-$H117)/$H117)","v":0.16082319794282179},"South West-Other Rds-Cars","South West-Other Rds"]
[null,null,"core","south west","minor road","hgv",0.19172064899999999,0.19485169299999999,0.19486930399999999,0.194143537,0.195973914,0.19872856899999999,0.19999742300000001,0.200500074,0.20071049099999999,null,"core","South West","Other Rds","HGV",{"$f":"IF($H118=0,0,(I118-$H118)/$H118)","v":9.0381560092478691E-5},-3.6343333183150098E-3,5.7593597608618504E-3,1.989654767844384E-2,2.6408443882496906E-2,2.8988103275038046E-2,3.0067986117010535E-2,"South West-Other Rds-HGV","South West-Other Rds"]
[null,null,"core","south west","minor road","lgv",2.0500035560000001,2.5770762469999999,2.5561522249999999,2.6891227419999999,2.8860244759999998,3.0628534780000001,3.1824545460000002,3.303008722,3.462377649,null,"core","South West","Other Rds","LGV",-8.1192871279450306E-3,4.3478145099678137E-2,0.1198832317668713,0.18849936301477235,0.23490895921481841,0.28168839623781611,0.34352937870215838,"South West-Other Rds-LGV","South West-Other Rds"]
[null,null,"core","south west","minor road","psv",0.11616038200000001,0.104536245,0.104536245,0.104536245,0.104536245,0.104536245,0.104536245,0.104536245,0.104536245,null,"core","South West","Other Rds","PSV",0,0,0,0,0,0,0,"South West-Other Rds-PSV","South West-Other Rds"]
[null,null,"core","south west","motorway","car",4.3437808599999999,4.8105512539999999,5.2869966259999996,5.6912491779999996,5.9760256759999999,6.1495527900000004,6.2482253759999997,6.285151731,6.2969806090000002,null,"core","South West","Motorways","Cars",9.9041741131815769E-2,0.18307629988718954,0.24227460855570379,0.27834679754978464,0.29885849793296887,0.30653461508675572,0.30899355947284129,"South West-Motorways-Cars","South West-Motorways"]
[null,null,"core","south west","motorway","hgv",0.56207686499999998,0.59051449700000003,0.60771413299999999,0.62938679099999995,0.64300747000000003,0.65210118100000003,0.66839599000000005,0.67719905400000002,0.68642464599999997,null,"core","South West","Motorways","HGV",2.912652625359672E-2,6.5827840294325438E-2,8.8893622877475265E-2,0.10429326343871284,0.13188752079019667,0.14679496852386334,0.16241794145148639,"South West-Motorways-HGV","South West-Motorways"]
[null,null,"core","south west","motorway","lgv",0.74063711099999996,0.92041959900000003,0.91926711500000002,0.968826623,1.038999207,1.1010820189999999,1.142207352,1.1839307779999999,1.2393536249999999,null,"core","South West","Motorways","LGV",-1.2521289216919523E-3,5.2592343809923545E-2,0.12883211975150477,0.19628267389816834,0.2409637444063161,0.28629461963466935,0.34650938153262845,"South West-Motorways-LGV","South West-Motorways"]
[null,null,"core","south west","motorway","psv",2.0049013000000001E-2,1.8042712999999998E-2,1.8042712999999998E-2,1.8042712999999998E-2,1.8042712999999998E-2,1.8042712999999998E-2,1.8042712999999998E-2,1.8042712999999998E-2,1.8042712999999998E-2,null,"core","South West","Motorways","PSV",0,0,0,0,0,0,0,"South West-Motorways-PSV","South West-Motorways"]
[null,null,"core","south west","trunk","car",3.0667321940000001,3.4160717950000001,3.6746586290000001,3.899355715,4.0657751710000003,4.1688469430000001,4.2304148899999996,4.2567917810000004,4.2677015770000004,null,"core","South West","trunk","Cars",null,null,null,null,null,null,null,"South West-trunk-Cars","South West-trunk"]
[null,null,"core","south west","trunk","hgv",0.26680279600000001,0.27799719099999998,0.28300563899999998,0.28677877600000001,0.28855153900000002,0.29139999,0.29003426999999998,0.29224921300000001,0.29432291999999999,null,"core","South West","trunk","HGV",null,null,null,null,null,null,null,"South West-trunk-HGV","South West-trunk"]
[null,null,"core","south west","trunk","lgv",0.63961487100000003,0.80179330299999996,0.80193944399999995,0.84424946599999995,0.90555067600000005,0.96018397300000002,0.99679989300000005,1.033670071,1.0822950950000001,null,"core","South West","trunk","LGV",null,null,null,null,null,null,null,"South West-trunk-LGV","South West-trunk"]
[null,null,"core","south west","trunk","psv",1.6149014E-2,1.4532987000000001E-2,1.4532987000000001E-2,1.4532987000000001E-2,1.4532987000000001E-2,1.4532987000000001E-2,1.4532987000000001E-2,1.4532987000000001E-2,1.4532987000000001E-2,null,"core","South West","trunk","PSV",null,null,null,null,null,null,null,"South West-trunk-PSV","South West-trunk"]
[null,null,"core","wales","a road","car",3.9580553100000002,4.1404133160000001,4.3409917709999997,4.4956110220000003,4.6097507960000002,4.6851947340000004,4.7282387689999998,4.7521018740000001,4.770442171,null,"core","Wales","A roads","Cars",{"$f":"IF(OR($H129=0,$H141=0),0,((I129-$H129)/$H129*H129+(I141-$H141)/$H141*H141)/($H129+$H141))","v":5.6262255909083132E-2},{"$f":"IF(OR($H129=0,$H141=0),0,((J129-$H129)/$H129*I129+(J141-$H141)/$H141*I141)/($H129+$H141))","v":0.10710601732663912},{"$f":"IF(OR($H129=0,$H141=0),0,((K129-$H129)/$H129*J129+(K141-$H141)/$H141*J141)/($H129+$H141))","v":0.1483872453699086},{"$f":"IF(OR($H129=0,$H141=0),0,((L129-$H129)/$H129*K129+(L141-$H141)/$H141*K141)/($H129+$H141))","v":0.17738283661878296},{"$f":"IF(OR($H129=0,$H141=0),0,((M129-$H129)/$H129*L129+(M141-$H141)/$H141*L141)/($H129+$H141))","v":0.19539765044916638},{"$f":"IF(OR($H129=0,$H141=0),0,((N129-$H129)/$H129*M129+(N141-$H141)/$H141*M141)/($H129+$H141))","v":0.2051817914545602},{"$f":"IF(OR($H129=0,$H141=0),0,((O129-$H129)/$H129*N129+(O141-$H141)/$H141*N141)/($H129+$H141))","v":0.21185636267794855},"Wales-A roads-Cars","Wales-A roads"]
[null,null,"core","wales","a road","hgv",0.14125259600000001,0.144867204,0.14692174899999999,0.14950530000000001,0.15054326300000001,0.15122245200000001,0.15120604800000001,0.15098909699999999,0.15010812300000001,null,"core","Wales","A roads","HGV",{"$f":"IF(OR($H130=0,$H142=0),0,((I130-$H130)/$H130*H130+(I142-$H142)/$H142*H142)/($H130+$H142))","v":1.8119531595149032E-2},3.8274127928468446E-2,5.1595009337787913E-2,5.8359058759942302E-2,5.9089810349269238E-2,5.9035648883800723E-2,5.2808674746661413E-2,"Wales-A roads-HGV","Wales-A roads"]
[null,null,"core","wales","a road","lgv",0.682174787,0.86136056299999997,0.865006885,0.91235689399999997,0.978798155,1.0375436739999999,1.0764376149999999,1.1156143110000001,1.167599193,null,"core","Wales","A roads","LGV",3.317854166166259E-3,5.8407246958602645E-2,0.14349140583490014,0.23180890669461213,0.30067278362222805,0.36936439186878872,0.46170513052936601,"Wales-A roads-LGV","Wales-A roads"]
[null,null,"core","wales","a road","psv",4.9363463000000003E-2,4.4423675000000003E-2,4.4423675000000003E-2,4.4423675000000003E-2,4.4423675000000003E-2,4.4423675000000003E-2,4.4423675000000003E-2,4.4423675000000003E-2,4.4423675000000003E-2,null,"core","Wales","A roads","PSV",0,0,0,0,0,0,0,"Wales-A roads-PSV","Wales-A roads"]
[null,null,"core","wales","minor road","car",5.6003537229999996,5.8764330490000001,6.1745360700000003,6.4076903740000004,6.5818721460000003,6.7004568789999999,6.7760424700000002,6.8243859990000004,6.8667260030000001,null,"core","Wales","Other Rds","Cars",{"$f":"IF($H133=0,0,(I133-$H133)/$H133)","v":5.0728565868835819E-2},{"$f":"IF($H133=0,0,(J133-$H133)/$H133)","v":9.0404726910043684E-2},{"$f":"IF($H133=0,0,(K133-$H133)/$H133)","v":0.12004545803853676},{"$f":"IF($H133=0,0,(L133-$H133)/$H133)","v":0.1402251711419098},{"$f":"IF($H133=0,0,(M133-$H133)/$H133)","v":0.15308766619115788},{"$f":"IF($H133=0,0,(N133-$H133)/$H133)","v":0.16131434530021824},{"$f":"IF($H133=0,0,(O133-$H133)/$H133)","v":0.16851939701219254},"Wales-Other Rds-Cars","Wales-Other Rds"]
[null,null,"core","wales","minor road","hgv",0.11275853399999999,0.1148189,0.115863695,0.117072675,0.118147577,0.119072738,0.11971348499999999,0.12001732399999999,0.119969623,null,"core","Wales","Other Rds","HGV",{"$f":"IF($H134=0,0,(I134-$H134)/$H134)","v":9.0995036531442228E-3},1.962895481493029E-2,2.8990671396433881E-2,3.7048238573962958E-2,4.2628739693552131E-2,4.5274985215848551E-2,4.4859539675088302E-2,"Wales-Other Rds-HGV","Wales-Other Rds"]
[null,null,"core","wales","minor road","lgv",1.1644054559999999,1.500962082,1.4897904580000001,1.567854493,1.683028473,1.7862946049999999,1.8559439200000001,1.9260408609999999,2.0186732979999999,null,"core","Wales","Other Rds","LGV",-7.4429754981644733E-3,4.4566356340506132E-2,0.12129979376787481,0.19009975429878972,0.23650286856480365,0.28320420888553793,0.34491958338491852,"Wales-Other Rds-LGV","Wales-Other Rds"]
[null,null,"core","wales","minor road","psv",6.7104801000000006E-2,6.0389642E-2,6.0389642E-2,6.0389642E-2,6.0389642E-2,6.0389642E-2,6.0389642E-2,6.0389642E-2,6.0389642E-2,null,"core","Wales","Other Rds","PSV",0,0,0,0,0,0,0,"Wales-Other Rds-PSV","Wales-Other Rds"]
[null,null,"core","wales","motorway","car",1.7573988270000001,1.8904252909999999,2.0250238970000001,2.1361837100000001,2.2163444189999999,2.2675685259999998,2.2975285479999998,2.3122250599999998,2.32092337,null,"core","Wales","Motorways","Cars",7.1200172067524561E-2,0.13000165633099339,0.17240518816144002,0.19950179295395384,0.21535009023533,0.22312427315066002,0.22772551819399045,"Wales-Motorways-Cars","Wales-Motorways"]
[null,null,"core","wales","motorway","hgv",0.185464039,0.19584931799999999,0.20106500299999999,0.20602211200000001,0.21119406700000001,0.21586893600000001,0.220169592,0.22406563900000001,0.22770525699999999,null,"core","Wales","Motorways","HGV",2.6631111373081207E-2,5.1941942427392127E-2,7.8349769898101038E-2,0.10221949304924319,0.12417849726696523,0.14407158160234196,0.16265534812840146,"Wales-Motorways-HGV","Wales-Motorways"]
[null,null,"core","wales","motorway","lgv",0.32765429499999998,0.40090787900000002,0.40284714999999999,0.42485546899999999,0.455521752,0.482623303,0.50056626900000001,0.51870140799999997,0.54275466100000003,null,"core","Wales","Motorways","LGV",4.8371985226061485E-3,5.9733398255313312E-2,0.13622549184173049,0.20382593678085328,0.24858176957904082,0.29381694691014026,0.35381390446556926,"Wales-Motorways-LGV","Wales-Motorways"]
[null,null,"core","wales","motorway","psv",8.1997719999999993E-3,7.3792229999999999E-3,7.3792229999999999E-3,7.3792229999999999E-3,7.3792229999999999E-3,7.3792229999999999E-3,7.3792229999999999E-3,7.3792229999999999E-3,7.3792229999999999E-3,null,"core","Wales","Motorways","PSV",0,0,0,0,0,0,0,"Wales-Motorways-PSV","Wales-Motorways"]
[null,null,"core","wales","trunk","car",3.3089426569999998,3.5430849549999999,3.774797446,3.9659726970000002,4.1063840840000001,4.1957121720000004,4.2491901690000002,4.2751693949999998,4.2928558370000003,null,"core","Wales","trunk","Cars",null,null,null,null,null,null,null,"Wales-trunk-Cars","Wales-trunk"]
[null,null,"core","wales","trunk","hgv",0.25360137999999999,0.26332370100000002,0.26866538400000001,0.27402587699999997,0.27793277799999999,0.27963608099999998,0.27980567299999998,0.279988658,0.27845943400000001,null,"core","Wales","trunk","HGV",null,null,null,null,null,null,null,"Wales-trunk-HGV","Wales-trunk"]
[null,null,"core","wales","trunk","lgv",0.67466097800000002,0.84790323099999998,0.84992799699999999,0.89640858499999998,0.96223688399999996,1.0206308690000001,1.0596317770000001,1.098843097,1.150801972,null,"core","Wales","trunk","LGV",null,null,null,null,null,null,null,"Wales-trunk-LGV","Wales-trunk"]
[null,null,"core","wales","trunk","psv",2.7130459999999999E-2,2.4415523000000001E-2,2.4415523000000001E-2,2.4415523000000001E-2,2.4415523000000001E-2,2.4415523000000001E-2,2.4415523000000001E-2,2.4415523000000001E-2,2.4415523000000001E-2,null,"core","Wales","trunk","PSV",null,null,null,null,null,null,null,"Wales-trunk-PSV","Wales-trunk"]
[null,null,"core","west midlands","a road","car",7.1232965239999997,7.4538953250000004,7.8137851190000003,8.0930688980000003,8.3051030780000001,8.4447922549999994,8.5305275779999992,8.5847353989999995,8.6391101799999994,null,"core","West Midlands","A roads","Cars",{"$f":"IF(OR($H145=0,$H157=0),0,((I145-$H145)/$H145*H145+(I157-$H157)/$H157*H157)/($H145+$H157))","v":5.0031283576546154E-2},{"$f":"IF(OR($H145=0,$H157=0),0,((J145-$H145)/$H145*I145+(J157-$H157)/$H157*I157)/($H145+$H157))","v":9.4275614473990452E-2},{"$f":"IF(OR($H145=0,$H157=0),0,((K145-$H145)/$H145*J145+(K157-$H157)/$H157*J157)/($H145+$H157))","v":0.13018767625589758},{"$f":"IF(OR($H145=0,$H157=0),0,((L145-$H145)/$H145*K145+(L157-$H157)/$H157*K157)/($H145+$H157))","v":0.15554665517767571},{"$f":"IF(OR($H145=0,$H157=0),0,((M145-$H145)/$H145*L145+(M157-$H157)/$H157*L157)/($H145+$H157))","v":0.17184963421732208},{"$f":"IF(OR($H145=0,$H157=0),0,((N145-$H145)/$H145*M145+(N157-$H157)/$H157*M157)/($H145+$H157))","v":0.18193945829233227},{"$f":"IF(OR($H145=0,$H157=0),0,((O145-$H145)/$H145*N145+(O157-$H157)/$H157*N157)/($H145+$H157))","v":0.19107391464618001},"West Midlands-A roads-Cars","West Midlands-A roads"]
[null,null,"core","west midlands","a road","hgv",0.37250033599999999,0.37851994500000002,0.380335533,0.37668135699999999,0.376001741,0.37824390200000002,0.37961708599999999,0.38046102399999998,0.38033699599999998,null,"core","West Midlands","A roads","HGV",{"$f":"IF(OR($H146=0,$H158=0),0,((I146-$H146)/$H146*H146+(I158-$H158)/$H158*H158)/($H146+$H158))","v":8.6329466726922967E-3},2.5784344391886461E-3,2.3646766093697591E-3,8.5266974419006998E-3,1.1935035504915599E-2,1.4199025404957656E-2,1.347820827285303E-2,{"$f":"R146&\"-\"&S146&\"-\"&T146","v":"West Midlands-A roads-HGV"},{"$f":"R146&\"-\"&S146","v":"West Midlands-A roads"}]
[null,null,"core","west midlands","a road","lgv",1.261844293,1.6069372310000001,1.6626019169999999,1.768867397,1.9024099350000001,2.0176612860000001,2.0937491330000002,2.1700451570000001,2.2718867299999999,null,"core","West Midlands","A roads","LGV",3.2381145075766914E-2,0.10109627531388736,0.19843978886785962,0.29792497015149555,0.37526360836991179,0.45111847353286338,0.5527695974779242,"West Midlands-A roads-LGV","West Midlands-A roads"]
[null,null,"core","west midlands","a road","psv",7.7428272000000006E-2,6.8754344999999994E-2,6.8754344999999994E-2,6.8754344999999994E-2,6.8754344999999994E-2,6.8754344999999994E-2,6.8754344999999994E-2,6.8754344999999994E-2,6.8754344999999994E-2,null,"core","West Midlands","A roads","PSV",0,0,0,0,0,0,0,"West Midlands-A roads-PSV","West Midlands-A roads"]
[null,null,"core","west midlands","minor road","car",10.14082168,10.64560605,11.17094105,11.579693069999999,11.890471209999999,12.104685509999999,12.240805679999999,12.334384350000001,12.42364515,null,"core","West Midlands","Other Rds","Cars",{"$f":"IF($H149=0,0,(I149-$H149)/$H149)","v":4.9347589750421035E-2},{"$f":"IF($H149=0,0,(J149-$H149)/$H149)","v":8.774390256532176E-2},{"$f":"IF($H149=0,0,(K149-$H149)/$H149)","v":0.11693699298594652},{"$f":"IF($H149=0,0,(L149-$H149)/$H149)","v":0.13705931378138869},{"$f":"IF($H149=0,0,(M149-$H149)/$H149)","v":0.14984582582783063},{"$f":"IF($H149=0,0,(N149-$H149)/$H149)","v":0.15863618210820427},{"$f":"IF($H149=0,0,(O149-$H149)/$H149)","v":0.16702093724386888},"West Midlands-Other Rds-Cars","West Midlands-Other Rds"]
[null,null,"core","west midlands","minor road","hgv",0.15275566700000001,0.15278186799999999,0.153272189,0.15275934499999999,0.15302270800000001,0.15379485700000001,0.153860512,0.154734228,0.15470584200000001,null,"core","West Midlands","Other Rds","HGV",{"$f":"IF($H150=0,0,(I150-$H150)/$H150)","v":3.2092878979593036E-3},-1.4741932596344822E-4,1.5763650697085334E-3,6.6302959458515052E-3,7.060026259137096E-3,1.2778741519248961E-2,1.2592947220674267E-2,"West Midlands-Other Rds-HGV","West Midlands-Other Rds"]
[null,null,"core","west midlands","minor road","lgv",1.873634233,2.3373915319999998,2.337789533,2.464108956,2.6450949480000001,2.8064101090000002,2.9147029999999998,3.0238469440000002,3.168080571,null,"core","West Midlands","Other Rds","LGV",1.7027570886237096E-4,5.4213178350814781E-2,0.13164393375581046,0.2006589698725752,0.24698962929245352,0.29368439245291167,0.35539148132757081,"West Midlands-Other Rds-LGV","West Midlands-Other Rds"]
[null,null,"core","west midlands","minor road","psv",0.15576975300000001,0.13792100099999999,0.13792100099999999,0.13792100099999999,0.13792100099999999,0.13792100099999999,0.13792100099999999,0.13792100099999999,0.13792100099999999,null,"core","West Midlands","Other Rds","PSV",0,0,0,0,0,0,0,"West Midlands-Other Rds-PSV","West Midlands-Other Rds"]
[null,null,"core","west midlands","motorway","car",5.9691864179999996,6.5447473479999996,7.092819532,7.5577053100000002,7.8927193620000002,8.0983998249999996,8.2171605850000002,8.2677446230000005,8.2916356740000001,null,"core","West Midlands","Motorways","Cars",8.3742298190851494E-2,0.1547741888477252,0.20596242182090124,0.23738922136922191,0.25553518693293348,0.26326413891691774,0.26691455500323169,"West Midlands-Motorways-Cars","West Midlands-Motorways"]
[null,null,"core","west midlands","motorway","hgv",1.1681711779999999,1.2367964629999999,1.2792327109999999,1.3352855260000001,1.3790699340000001,1.4112905490000001,1.437398672,1.457682148,1.4743874459999999,null,"core","West Midlands","Motorways","HGV",3.4311424126380295E-2,7.9632393806417415E-2,0.11503385985993091,0.14108553122535908,0.16219500540405424,0.1785950167291189,0.19210192631348111,"West Midlands-Motorways-HGV","West Midlands-Motorways"]
[null,null,"core","west midlands","motorway","lgv",1.063386977,1.4469540510000001,1.486287006,1.577572824,1.694616085,1.7960645150000001,1.8628102689999999,1.9300758389999999,2.019310784,null,"core","West Midlands","Motorways","LGV",2.7183278537985786E-2,9.0271541732599159E-2,0.17116095278135404,0.24127266775246065,0.28740112217979463,0.33388882505709905,0.39555971566922954,"West Midlands-Motorways-LGV","West Midlands-Motorways"]
[null,null,"core","west midlands","motorway","psv",2.1429589999999998E-2,1.9169441999999998E-2,1.9169441999999998E-2,1.9169441999999998E-2,1.9169441999999998E-2,1.9169441999999998E-2,1.9169441999999998E-2,1.9169441999999998E-2,1.9169441999999998E-2,null,"core","West Midlands","Motorways","PSV",0,0,0,0,0,0,0,"West Midlands-Motorways-PSV","West Midlands-Motorways"]
[null,null,"core","west midlands","trunk","car",2.0782358009999999,2.2087898080000001,2.3323365539999998,2.4369492629999998,2.5113046639999999,2.5596770449999999,2.5891401580000002,2.6044961209999999,2.6169324920000001,null,"core","West Midlands","trunk","Cars",null,null,null,null,null,null,null,"West Midlands-trunk-Cars","West Midlands-trunk"]
[null,null,"core","west midlands","trunk","hgv",0.25316671499999999,0.26136261300000002,0.26507109699999998,0.26481098600000003,0.26532936400000001,0.26700723500000001,0.26776502099999999,0.268330919,0.26798417400000002,null,"core","West Midlands","trunk","HGV",null,null,null,null,null,null,null,"West Midlands-trunk-HGV","West Midlands-trunk"]
[null,null,"core","west midlands","trunk","lgv",0.38534659500000001,0.49174775500000001,0.50404089200000002,0.53528904200000005,0.57554343699999999,0.61051484899999997,0.63376865100000002,0.65706131199999995,0.68792414599999996,null,"core","West Midlands","trunk","LGV",null,null,null,null,null,null,null,"West Midlands-trunk-LGV","West Midlands-trunk"]
[null,null,"core","west midlands","trunk","psv",1.0346061E-2,9.2963669999999998E-3,9.2963669999999998E-3,9.2963669999999998E-3,9.2963669999999998E-3,9.2963669999999998E-3,9.2963669999999998E-3,9.2963669999999998E-3,9.2963669999999998E-3,null,"core","West Midlands","trunk","PSV",null,null,null,null,null,null,null,"West Midlands-trunk-PSV","West Midlands-trunk"]
[null,null,"core","yorks & humber","a road","car",6.9157957919999999,7.2030173770000001,7.5573077809999996,7.8360109739999997,8.0483729999999998,8.1875661569999991,8.2708601300000009,8.3246226019999998,8.3736637120000008,null,"core","Yorkshire & Humber","A roads","Cars",{"$f":"IF(OR($H161=0,$H173=0),0,((I161-$H161)/$H161*H161+(I173-$H173)/$H173*H173)/($H161+$H173))","v":5.3570413028355385E-2},{"$f":"IF(OR($H161=0,$H173=0),0,((J161-$H161)/$H161*I161+(J173-$H173)/$H173*I173)/($H161+$H173))","v":0.10170864425939848},{"$f":"IF(OR($H161=0,$H173=0),0,((K161-$H161)/$H161*J161+(K173-$H173)/$H173*J173)/($H161+$H173))","v":0.14140646670157683},{"$f":"IF(OR($H161=0,$H173=0),0,((L161-$H161)/$H161*K161+(L173-$H173)/$H173*K173)/($H161+$H173))","v":0.16931130403632713},{"$f":"IF(OR($H161=0,$H173=0),0,((M161-$H161)/$H161*L161+(M173-$H173)/$H173*L173)/($H161+$H173))","v":0.18682848307696898},{"$f":"IF(OR($H161=0,$H173=0),0,((N161-$H161)/$H161*M161+(N173-$H173)/$H173*M173)/($H161+$H173))","v":0.19761262069128177},{"$f":"IF(OR($H161=0,$H173=0),0,((O161-$H161)/$H161*N161+(O173-$H173)/$H173*N173)/($H161+$H173))","v":0.20643349329796409},"Yorkshire & Humber-A roads-Cars","Yorkshire & Humber-A roads"]
[null,null,"core","yorks & humber","a road","hgv",0.34318981100000001,0.35378057099999999,0.35808741700000002,0.359302658,0.36316076200000003,0.366635771,0.37040410000000001,0.37271742000000002,0.37409655800000002,null,"core","Yorkshire & Humber","A roads","HGV",{"$f":"IF(OR($H162=0,$H174=0),0,((I162-$H162)/$H162*H162+(I174-$H174)/$H174*H174)/($H162+$H174))","v":1.6968819432638532E-2},2.6524423898178263E-2,4.1833470640560665E-2,5.6274956569368151E-2,7.0189523729836695E-2,8.0382477261562002E-2,8.8115500191299392E-2,"Yorkshire & Humber-A roads-HGV","Yorkshire & Humber-A roads"]
[null,null,"core","yorks & humber","a road","lgv",1.2818354810000001,1.630171292,1.6982270349999999,1.810734574,1.948677212,2.0672475010000002,2.1453189109999999,2.2234228570000001,2.326642229,null,"core","Yorkshire & Humber","A roads","LGV",3.9550142915388692E-2,0.11217552593210697,0.21295961171250186,0.31571449633703225,0.3954632895077731,0.47326828341011568,0.57665390739085587,"Yorkshire & Humber-A roads-LGV","Yorkshire & Humber-A roads"]
[null,null,"core","yorks & humber","a road","psv",9.5551321999999994E-2,8.4550044000000005E-2,8.4550044000000005E-2,8.4550044000000005E-2,8.4550044000000005E-2,8.4550044000000005E-2,8.4550044000000005E-2,8.4550044000000005E-2,8.4550044000000005E-2,null,"core","Yorkshire & Humber","A roads","PSV",0,0,0,0,0,0,0,"Yorkshire & Humber-A roads-PSV","Yorkshire & Humber-A roads"]
[null,null,"core","yorks & humber","minor road","car",8.7503129659999992,9.1335047419999995,9.5892756909999992,9.9437739149999995,10.207986399999999,10.38834861,10.50320984,10.582233349999999,10.657755269999999,null,"core","Yorkshire & Humber","Other Rds","Cars",{"$f":"IF($H165=0,0,(I165-$H165)/$H165)","v":4.9900992212130582E-2},{"$f":"IF($H165=0,0,(J165-$H165)/$H165)","v":8.8713937955713168E-2},{"$f":"IF($H165=0,0,(K165-$H165)/$H165)","v":0.11764176932640606},{"$f":"IF($H165=0,0,(L165-$H165)/$H165)","v":0.13738908594744123},{"$f":"IF($H165=0,0,(M165-$H165)/$H165)","v":0.14996489701280552},{"$f":"IF($H165=0,0,(N165-$H165)/$H165)","v":0.15861694376071084},{"$f":"IF($H165=0,0,(O165-$H165)/$H165)","v":0.16688561193720128},"Yorkshire & Humber-Other Rds-Cars","Yorkshire & Humber-Other Rds"]
[null,null,"core","yorks & humber","minor road","hgv",0.161595444,0.16409131199999999,0.16463135500000001,0.16582427799999999,0.16679560500000001,0.16751112700000001,0.16873528099999999,0.16922053300000001,0.169186533,null,"core","Yorkshire & Humber","Other Rds","HGV",{"$f":"IF($H166=0,0,(I166-$H166)/$H166)","v":3.2911126946197971E-3},1.0560985702887198E-2,1.6480415489639234E-2,2.0840926666489332E-2,2.8301126631250277E-2,3.1258333774551193E-2,3.1051132067248088E-2,"Yorkshire & Humber-Other Rds-HGV","Yorkshire & Humber-Other Rds"]
[null,null,"core","yorks & humber","minor road","lgv",1.7457364259999999,2.1258832970000001,2.0580686890000002,2.1487457820000002,2.299672975,2.437735998,2.5311439120000001,2.6256190840000002,2.750802593,null,"core","Yorkshire & Humber","Other Rds","LGV",-3.1899497068206155E-2,1.0754346220351388E-2,8.1749397177751038E-2,0.14669323637853476,0.19063163795110244,0.23507206990393889,0.29395747964240193,"Yorkshire & Humber-Other Rds-LGV","Yorkshire & Humber-Other Rds"]
[null,null,"core","yorks & humber","minor road","psv",0.11412313,0.100825394,0.100825394,0.100825394,0.100825394,0.100825394,0.100825394,0.100825394,0.100825394,null,"core","Yorkshire & Humber","Other Rds","PSV",0,0,0,0,0,0,0,"Yorkshire & Humber-Other Rds-PSV","Yorkshire & Humber-Other Rds"]
[null,null,"core","yorks & humber","motorway","car",4.6924771459999999,5.0614491619999997,5.4472506120000004,5.7749971169999998,6.009840906,6.1527610389999996,6.2341517980000001,6.2719489900000003,6.2934136000000001,null,"core","Yorkshire & Humber","Motorways","Cars",7.6223515766293631E-2,0.14097700720914605,0.18737553488045885,0.21561253349994627,0.2316930583447003,0.23916072042926126,0.2434015236682131,"Yorkshire & Humber-Motorways-Cars","Yorkshire & Humber-Motorways"]
[null,null,"core","yorks & humber","motorway","hgv",1.0637567080000001,1.126470047,1.1595391390000001,1.201749599,1.2322200160000001,1.2584305039999999,1.28114219,1.298808543,1.3188684209999999,null,"core","Yorkshire & Humber","Motorways","HGV",2.9356388204079854E-2,6.682783283983762E-2,9.3877302180943048E-2,0.11714510949619589,0.13730692920945459,0.15298986107883619,0.1707975942302174,"Yorkshire & Humber-Motorways-HGV","Yorkshire & Humber-Motorways"]
[null,null,"core","yorks & humber","motorway","lgv",1.045887381,1.290846782,1.282815531,1.3490584320000001,1.4458260270000001,1.5318311,1.589008814,1.6467437899999999,1.7229991529999999,null,"core","Yorkshire & Humber","Motorways","LGV",-6.2216919250142402E-3,4.5095708345655586E-2,0.12006013971687621,0.18668700372528022,0.23098173707187505,0.27570817308664902,0.33478208027945483,"Yorkshire & Humber-Motorways-LGV","Yorkshire & Humber-Motorways"]
[null,null,"core","yorks & humber","motorway","psv",1.7011676999999999E-2,1.4998399000000001E-2,1.4998399000000001E-2,1.4998399000000001E-2,1.4998399000000001E-2,1.4998399000000001E-2,1.4998399000000001E-2,1.4998399000000001E-2,1.4998399000000001E-2,null,"core","Yorkshire & Humber","Motorways","PSV",0,0,0,0,0,0,0,"Yorkshire & Humber-Motorways-PSV","Yorkshire & Humber-Motorways"]
[null,null,"core","yorks & humber","trunk","car",1.3401445649999999,1.4462077980000001,1.555259959,1.646664911,1.7126836830000001,1.753839038,1.777794256,1.7889397890000001,1.795894901,null,"core","Yorkshire & Humber","trunk","Cars",null,null,null,null,null,null,null,"Yorkshire & Humber-trunk-Cars","Yorkshire & Humber-trunk"]
[null,null,"core","yorks & humber","trunk","hgv",0.233778981,0.24613676800000001,0.25200981099999997,0.25621933899999999,0.26109408699999997,0.26552297800000002,0.26920055900000001,0.27210010499999998,0.27459361700000001,null,"core","Yorkshire & Humber","trunk","HGV",null,null,null,null,null,null,null,"Yorkshire & Humber-trunk-HGV","Yorkshire & Humber-trunk"]
[null,null,"core","yorks & humber","trunk","lgv",0.27558455799999998,0.35672425899999999,0.367250519,0.39050707899999998,0.420069111,0.44573673400000002,0.46274588999999999,0.47976587199999998,0.50232435900000005,null,"core","Yorkshire & Humber","trunk","LGV",null,null,null,null,null,null,null,"Yorkshire & Humber-trunk-LGV","Yorkshire & Humber-trunk"]
[null,null,"core","yorks & humber","trunk","psv",8.5628890000000006E-3,7.6806660000000001E-3,7.6806660000000001E-3,7.6806660000000001E-3,7.6806660000000001E-3,7.6806660000000001E-3,7.6806660000000001E-3,7.6806660000000001E-3,7.6806660000000001E-3,null,"core","Yorkshire & Humber","trunk","PSV",null,null,null,null,null,null,null,"Yorkshire & Humber-trunk-PSV","Yorkshire & Humber-trunk"]

{"sheet":"I-Validation","index":10,"n_rows":64,"n_cols":7,"rows_kept":64,"cut":false,"hidden":true,"merged":[]}
[]
[null,"File Name",null,null,null,null,{"$f":"IFERROR(MID(CELL(\"filename\",G2),FIND(\"[\",CELL(\"filename\",G2))+1,FIND(\"]\",CELL(\"filename\",G2))-FIND(\"[\",CELL(\"filename\",G2))-1),\"Please save the file to show here\")","v":"structures-fund-economic-tool Final 03082026.xlsm"}]
[null,"Sheet Name",null,null,null,null,{"$f":"IFERROR(MID(CELL(\"filename\",G2),FIND(\"]\",CELL(\"filename\",G2))+1,255),\"Please save the file to show here\")","v":"I-Validation"}]
[null,"Description and Purpose of Sheet",null,null,null,null,"This sheet includes values used in data validation/formulas throughout the Tool."]
[null,"Version number",null,null,null,null,{"$f":"Version_Number","v":1}]
[]
[]
[null,"I-Validation"]
[]
[null,"Yes/No"]
[null,"Yes"]
[null,"No"]
[]
[null,"Area Type"]
[null,"London"]
[null,"Inner and Outer Conurbations"]
[null,"Other Urban"]
[null,"Rural"]
[]
[null,"Road Type"]
[null,"Motorways",{"$f":"IF('I-Scheme Details'!E57=B17,_xlfn._xlws.FILTER(B21:B23,B21:B23<>B21),B21:B23)","v":"Motorways"}]
[null,"A roads","A roads"]
[null,"Other Rds","Other Rds"]
[]
[null,"Congestion Band"]
[null,1]
[null,2]
[null,3]
[null,4]
[null,5]
[null,"Not provided","Average"]
[]
[null,"Region"]
[null,"east midlands","East Midlands"]
[null,"eastern england","Eastern England"]
[null,"london","London"]
[null,"north east","North East"]
[null,"north west","North West"]
[null,"south east","South East"]
[null,"south west","South West"]
[null,"wales","Wales"]
[null,"west midlands","West Midlands"]
[null,"yorks & humber","Yorkshire & Humber"]
[]
[null,"Funding Source"]
[null,"Private"]
[null,"Public"]
[]
[null,"Speed upper and lower bands (kph)"]
[null,12]
[null,112]
[]
[null,"Demand year selection"]
[null,2023]
[null,2024]
[null,2025]
[null,2026]
[]
[null,"Names"]
[null,100,"Hundred"]
[null,2026,"Current year"]
[null,60,"MinutesToHours"]
[]
[null,"END"]

{"sheet":"Calculations>>","index":11,"n_rows":11,"n_cols":3,"rows_kept":11,"cut":false,"hidden":true,"merged":[]}
[]
[]
[]
[]
[]
[]
[]
[]
[]
[]
[null,null,"Calculations"]

{"sheet":"C-Values and Rates","index":12,"n_rows":274,"n_cols":83,"rows_kept":274,"cut":false,"hidden":true,"merged":[]}
[null,{"$f":"SUM(A:A)","v":0}]
[null,"File Name",null,null,null,null,{"$f":"IFERROR(MID(CELL(\"filename\",G2),FIND(\"[\",CELL(\"filename\",G2))+1,FIND(\"]\",CELL(\"filename\",G2))-FIND(\"[\",CELL(\"filename\",G2))-1),\"Please save the file to show here\")","v":"structures-fund-economic-tool Final 03082026.xlsm"}]
[null,"Sheet Name",null,null,null,null,{"$f":"IFERROR(MID(CELL(\"filename\",G2),FIND(\"]\",CELL(\"filename\",G2))+1,255),\"Please save the file to show here\")","v":"C-Values and Rates"}]
[null,"Description and Purpose of Sheet",null,null,null,null,"This sheet calculates time series rates which are used to calculate and monetise the benefits and costs."]
[null,"Version number",null,null,null,null,{"$f":"Version_Number","v":1}]
[]
[]
[null,"C-Values and Rates"]
[]
[null,null,null,null,"Constant",null,null,null,null,"Unit",2023,2024,2025,2026,2027,2028,2029,2030,2031,2032,2033,2034,2035,2036,2037,2038,2039,2040,2041,2042,2043,2044,2045,2046,2047,2048,2049,2050,2051,2052,2053,2054,2055,2056,2057,2058,2059,2060,2061,2062,2063,2064,2065,2066,2067,2068,2069,2070,2071,2072,2073,2074,2075,2076,2077,2078,2079,2080,2081,2082,2083,2084,2085,2086,2087,2088,2089,2090,2091,2092,2093,2094,2095]
[]
[null,null,"Appraisal Period"]
[]
[null,null,null,"Scheme opening year flag",null,null,null,null,null,"flag",{"$f":"_xlfn.IFNA(MATCH('I-Scheme Details'!$E$30,K10,0),0)","v":0},{"$f":"_xlfn.IFNA(MATCH('I-Scheme Details'!$E$30,L10,0),0)","v":0},{"$f":"_xlfn.IFNA(MATCH('I-Scheme Details'!$E$30,M10,0),0)","v":0},{"$f":"_xlfn.IFNA(MATCH('I-Scheme Details'!$E$30,N10,0),0)","v":0},{"$f":"_xlfn.IFNA(MATCH('I-Scheme Details'!$E$30,O10,0),0)","v":0},{"$f":"_xlfn.IFNA(MATCH('I-Scheme Details'!$E$30,P10,0),0)","v":1},{"$f":"_xlfn.IFNA(MATCH('I-Scheme Details'!$E$30,Q10,0),0)","v":0},{"$f":"_xlfn.IFNA(MATCH('I-Scheme Details'!$E$30,R10,0),0)","v":0},{"$f":"_xlfn.IFNA(MATCH('I-Scheme Details'!$E$30,S10,0),0)","v":0},{"$f":"_xlfn.IFNA(MATCH('I-Scheme Details'!$E$30,T10,0),0)","v":0},{"$f":"_xlfn.IFNA(MATCH('I-Scheme Details'!$E$30,U10,0),0)","v":0},{"$f":"_xlfn.IFNA(MATCH('I-Scheme Details'!$E$30,V10,0),0)","v":0},{"$f":"_xlfn.IFNA(MATCH('I-Scheme Details'!$E$30,W10,0),0)","v":0},{"$f":"_xlfn.IFNA(MATCH('I-Scheme Details'!$E$30,X10,0),0)","v":0},{"$f":"_xlfn.IFNA(MATCH('I-Scheme Details'!$E$30,Y10,0),0)","v":0},{"$f":"_xlfn.IFNA(MATCH('I-Scheme Details'!$E$30,Z10,0),0)","v":0},{"$f":"_xlfn.IFNA(MATCH('I-Scheme Details'!$E$30,AA10,0),0)","v":0},{"$f":"_xlfn.IFNA(MATCH('I-Scheme Details'!$E$30,AB10,0),0)","v":0},{"$f":"_xlfn.IFNA(MATCH('I-Scheme Details'!$E$30,AC10,0),0)","v":0},{"$f":"_xlfn.IFNA(MATCH('I-Scheme Details'!$E$30,AD10,0),0)","v":0},{"$f":"_xlfn.IFNA(MATCH('I-Scheme Details'!$E$30,AE10,0),0)","v":0},{"$f":"_xlfn.IFNA(MATCH('I-Scheme Details'!$E$30,AF10,0),0)","v":0},{"$f":"_xlfn.IFNA(MATCH('I-Scheme Details'!$E$30,AG10,0),0)","v":0},{"$f":"_xlfn.IFNA(MATCH('I-Scheme Details'!$E$30,AH10,0),0)","v":0},{"$f":"_xlfn.IFNA(MATCH('I-Scheme Details'!$E$30,AI10,0),0)","v":0},{"$f":"_xlfn.IFNA(MATCH('I-Scheme Details'!$E$30,AJ10,0),0)","v":0},{"$f":"_xlfn.IFNA(MATCH('I-Scheme Details'!$E$30,AK10,0),0)","v":0},{"$f":"_xlfn.IFNA(MATCH('I-Scheme Details'!$E$30,AL10,0),0)","v":0},{"$f":"_xlfn.IFNA(MATCH('I-Scheme Details'!$E$30,AM10,0),0)","v":0},{"$f":"_xlfn.IFNA(MATCH('I-Scheme Details'!$E$30,AN10,0),0)","v":0},{"$f":"_xlfn.IFNA(MATCH('I-Scheme Details'!$E$30,AO10,0),0)","v":0},{"$f":"_xlfn.IFNA(MATCH('I-Scheme Details'!$E$30,AP10,0),0)","v":0},{"$f":"_xlfn.IFNA(MATCH('I-Scheme Details'!$E$30,AQ10,0),0)","v":0},{"$f":"_xlfn.IFNA(MATCH('I-Scheme Details'!$E$30,AR10,0),0)","v":0},{"$f":"_xlfn.IFNA(MATCH('I-Scheme Details'!$E$30,AS10,0),0)","v":0},{"$f":"_xlfn.IFNA(MATCH('I-Scheme Details'!$E$30,AT10,0),0)","v":0},{"$f":"_xlfn.IFNA(MATCH('I-Scheme Details'!$E$30,AU10,0),0)","v":0},{"$f":"_xlfn.IFNA(MATCH('I-Scheme Details'!$E$30,AV10,0),0)","v":0},{"$f":"_xlfn.IFNA(MATCH('I-Scheme Details'!$E$30,AW10,0),0)","v":0},{"$f":"_xlfn.IFNA(MATCH('I-Scheme Details'!$E$30,AX10,0),0)","v":0},{"$f":"_xlfn.IFNA(MATCH('I-Scheme Details'!$E$30,AY10,0),0)","v":0},{"$f":"_xlfn.IFNA(MATCH('I-Scheme Details'!$E$30,AZ10,0),0)","v":0},{"$f":"_xlfn.IFNA(MATCH('I-Scheme Details'!$E$30,BA10,0),0)","v":0},{"$f":"_xlfn.IFNA(MATCH('I-Scheme Details'!$E$30,BB10,0),0)","v":0},{"$f":"_xlfn.IFNA(MATCH('I-Scheme Details'!$E$30,BC10,0),0)","v":0},{"$f":"_xlfn.IFNA(MATCH('I-Scheme Details'!$E$30,BD10,0),0)","v":0},{"$f":"_xlfn.IFNA(MATCH('I-Scheme Details'!$E$30,BE10,0),0)","v":0},{"$f":"_xlfn.IFNA(MATCH('I-Scheme Details'!$E$30,BF10,0),0)","v":0},{"$f":"_xlfn.IFNA(MATCH('I-Scheme Details'!$E$30,BG10,0),0)","v":0},{"$f":"_xlfn.IFNA(MATCH('I-Scheme Details'!$E$30,BH10,0),0)","v":0},{"$f":"_xlfn.IFNA(MATCH('I-Scheme Details'!$E$30,BI10,0),0)","v":0},{"$f":"_xlfn.IFNA(MATCH('I-Scheme Details'!$E$30,BJ10,0),0)","v":0},{"$f":"_xlfn.IFNA(MATCH('I-Scheme Details'!$E$30,BK10,0),0)","v":0},{"$f":"_xlfn.IFNA(MATCH('I-Scheme Details'!$E$30,BL10,0),0)","v":0},{"$f":"_xlfn.IFNA(MATCH('I-Scheme Details'!$E$30,BM10,0),0)","v":0},{"$f":"_xlfn.IFNA(MATCH('I-Scheme Details'!$E$30,BN10,0),0)","v":0},{"$f":"_xlfn.IFNA(MATCH('I-Scheme Details'!$E$30,BO10,0),0)","v":0},{"$f":"_xlfn.IFNA(MATCH('I-Scheme Details'!$E$30,BP10,0),0)","v":0},{"$f":"_xlfn.IFNA(MATCH('I-Scheme Details'!$E$30,BQ10,0),0)","v":0},{"$f":"_xlfn.IFNA(MATCH('I-Scheme Details'!$E$30,BR10,0),0)","v":0},{"$f":"_xlfn.IFNA(MATCH('I-Scheme Details'!$E$30,BS10,0),0)","v":0},{"$f":"_xlfn.IFNA(MATCH('I-Scheme Details'!$E$30,BT10,0),0)","v":0},{"$f":"_xlfn.IFNA(MATCH('I-Scheme Details'!$E$30,BU10,0),0)","v":0},{"$f":"_xlfn.IFNA(MATCH('I-Scheme Details'!$E$30,BV10,0),0)","v":0},{"$f":"_xlfn.IFNA(MATCH('I-Scheme Details'!$E$30,BW10,0),0)","v":0},{"$f":"_xlfn.IFNA(MATCH('I-Scheme Details'!$E$30,BX10,0),0)","v":0},{"$f":"_xlfn.IFNA(MATCH('I-Scheme Details'!$E$30,BY10,0),0)","v":0},{"$f":"_xlfn.IFNA(MATCH('I-Scheme Details'!$E$30,BZ10,0),0)","v":0},{"$f":"_xlfn.IFNA(MATCH('I-Scheme Details'!$E$30,CA10,0),0)","v":0},{"$f":"_xlfn.IFNA(MATCH('I-Scheme Details'!$E$30,CB10,0),0)","v":0},{"$f":"_xlfn.IFNA(MATCH('I-Scheme Details'!$E$30,CC10,0),0)","v":0},{"$f":"_xlfn.IFNA(MATCH('I-Scheme Details'!$E$30,CD10,0),0)","v":0},{"$f":"_xlfn.IFNA(MATCH('I-Scheme Details'!$E$30,CE10,0),0)","v":0}]
[{"$f":"--NOT(SUM(K15:CE15)='I-Scheme Details'!$E$32)","v":0},null,null,"Appraisal period",null,null,null,null,null,"flag",{"$f":"IF(AND(K10>='I-Scheme Details'!$E$30,K10<'I-Scheme Details'!$E$30+'I-Scheme Details'!$E$32),1,0)","v":0},{"$f":"IF(AND(L10>='I-Scheme Details'!$E$30,L10<'I-Scheme Details'!$E$30+'I-Scheme Details'!$E$32),1,0)","v":0},{"$f":"IF(AND(M10>='I-Scheme Details'!$E$30,M10<'I-Scheme Details'!$E$30+'I-Scheme Details'!$E$32),1,0)","v":0},{"$f":"IF(AND(N10>='I-Scheme Details'!$E$30,N10<'I-Scheme Details'!$E$30+'I-Scheme Details'!$E$32),1,0)","v":0},{"$f":"IF(AND(O10>='I-Scheme Details'!$E$30,O10<'I-Scheme Details'!$E$30+'I-Scheme Details'!$E$32),1,0)","v":0},{"$f":"IF(AND(P10>='I-Scheme Details'!$E$30,P10<'I-Scheme Details'!$E$30+'I-Scheme Details'!$E$32),1,0)","v":1},{"$f":"IF(AND(Q10>='I-Scheme Details'!$E$30,Q10<'I-Scheme Details'!$E$30+'I-Scheme Details'!$E$32),1,0)","v":1},{"$f":"IF(AND(R10>='I-Scheme Details'!$E$30,R10<'I-Scheme Details'!$E$30+'I-Scheme Details'!$E$32),1,0)","v":1},{"$f":"IF(AND(S10>='I-Scheme Details'!$E$30,S10<'I-Scheme Details'!$E$30+'I-Scheme Details'!$E$32),1,0)","v":1},{"$f":"IF(AND(T10>='I-Scheme Details'!$E$30,T10<'I-Scheme Details'!$E$30+'I-Scheme Details'!$E$32),1,0)","v":1},{"$f":"IF(AND(U10>='I-Scheme Details'!$E$30,U10<'I-Scheme Details'!$E$30+'I-Scheme Details'!$E$32),1,0)","v":1},{"$f":"IF(AND(V10>='I-Scheme Details'!$E$30,V10<'I-Scheme Details'!$E$30+'I-Scheme Details'!$E$32),1,0)","v":1},{"$f":"IF(AND(W10>='I-Scheme Details'!$E$30,W10<'I-Scheme Details'!$E$30+'I-Scheme Details'!$E$32),1,0)","v":1},{"$f":"IF(AND(X10>='I-Scheme Details'!$E$30,X10<'I-Scheme Details'!$E$30+'I-Scheme Details'!$E$32),1,0)","v":1},{"$f":"IF(AND(Y10>='I-Scheme Details'!$E$30,Y10<'I-Scheme Details'!$E$30+'I-Scheme Details'!$E$32),1,0)","v":1},{"$f":"IF(AND(Z10>='I-Scheme Details'!$E$30,Z10<'I-Scheme Details'!$E$30+'I-Scheme Details'!$E$32),1,0)","v":1},{"$f":"IF(AND(AA10>='I-Scheme Details'!$E$30,AA10<'I-Scheme Details'!$E$30+'I-Scheme Details'!$E$32),1,0)","v":1},{"$f":"IF(AND(AB10>='I-Scheme Details'!$E$30,AB10<'I-Scheme Details'!$E$30+'I-Scheme Details'!$E$32),1,0)","v":1},{"$f":"IF(AND(AC10>='I-Scheme Details'!$E$30,AC10<'I-Scheme Details'!$E$30+'I-Scheme Details'!$E$32),1,0)","v":1},{"$f":"IF(AND(AD10>='I-Scheme Details'!$E$30,AD10<'I-Scheme Details'!$E$30+'I-Scheme Details'!$E$32),1,0)","v":1},{"$f":"IF(AND(AE10>='I-Scheme Details'!$E$30,AE10<'I-Scheme Details'!$E$30+'I-Scheme Details'!$E$32),1,0)","v":1},{"$f":"IF(AND(AF10>='I-Scheme Details'!$E$30,AF10<'I-Scheme Details'!$E$30+'I-Scheme Details'!$E$32),1,0)","v":1},{"$f":"IF(AND(AG10>='I-Scheme Details'!$E$30,AG10<'I-Scheme Details'!$E$30+'I-Scheme Details'!$E$32),1,0)","v":1},{"$f":"IF(AND(AH10>='I-Scheme Details'!$E$30,AH10<'I-Scheme Details'!$E$30+'I-Scheme Details'!$E$32),1,0)","v":1},{"$f":"IF(AND(AI10>='I-Scheme Details'!$E$30,AI10<'I-Scheme Details'!$E$30+'I-Scheme Details'!$E$32),1,0)","v":1},{"$f":"IF(AND(AJ10>='I-Scheme Details'!$E$30,AJ10<'I-Scheme Details'!$E$30+'I-Scheme Details'!$E$32),1,0)","v":1},{"$f":"IF(AND(AK10>='I-Scheme Details'!$E$30,AK10<'I-Scheme Details'!$E$30+'I-Scheme Details'!$E$32),1,0)","v":1},{"$f":"IF(AND(AL10>='I-Scheme Details'!$E$30,AL10<'I-Scheme Details'!$E$30+'I-Scheme Details'!$E$32),1,0)","v":1},{"$f":"IF(AND(AM10>='I-Scheme Details'!$E$30,AM10<'I-Scheme Details'!$E$30+'I-Scheme Details'!$E$32),1,0)","v":1},{"$f":"IF(AND(AN10>='I-Scheme Details'!$E$30,AN10<'I-Scheme Details'!$E$30+'I-Scheme Details'!$E$32),1,0)","v":1},{"$f":"IF(AND(AO10>='I-Scheme Details'!$E$30,AO10<'I-Scheme Details'!$E$30+'I-Scheme Details'!$E$32),1,0)","v":1},{"$f":"IF(AND(AP10>='I-Scheme Details'!$E$30,AP10<'I-Scheme Details'!$E$30+'I-Scheme Details'!$E$32),1,0)","v":1},{"$f":"IF(AND(AQ10>='I-Scheme Details'!$E$30,AQ10<'I-Scheme Details'!$E$30+'I-Scheme Details'!$E$32),1,0)","v":1},{"$f":"IF(AND(AR10>='I-Scheme Details'!$E$30,AR10<'I-Scheme Details'!$E$30+'I-Scheme Details'!$E$32),1,0)","v":1},{"$f":"IF(AND(AS10>='I-Scheme Details'!$E$30,AS10<'I-Scheme Details'!$E$30+'I-Scheme Details'!$E$32),1,0)","v":1},{"$f":"IF(AND(AT10>='I-Scheme Details'!$E$30,AT10<'I-Scheme Details'!$E$30+'I-Scheme Details'!$E$32),1,0)","v":1},{"$f":"IF(AND(AU10>='I-Scheme Details'!$E$30,AU10<'I-Scheme Details'!$E$30+'I-Scheme Details'!$E$32),1,0)","v":1},{"$f":"IF(AND(AV10>='I-Scheme Details'!$E$30,AV10<'I-Scheme Details'!$E$30+'I-Scheme Details'!$E$32),1,0)","v":1},{"$f":"IF(AND(AW10>='I-Scheme Details'!$E$30,AW10<'I-Scheme Details'!$E$30+'I-Scheme Details'!$E$32),1,0)","v":1},{"$f":"IF(AND(AX10>='I-Scheme Details'!$E$30,AX10<'I-Scheme Details'!$E$30+'I-Scheme Details'!$E$32),1,0)","v":1},{"$f":"IF(AND(AY10>='I-Scheme Details'!$E$30,AY10<'I-Scheme Details'!$E$30+'I-Scheme Details'!$E$32),1,0)","v":1},{"$f":"IF(AND(AZ10>='I-Scheme Details'!$E$30,AZ10<'I-Scheme Details'!$E$30+'I-Scheme Details'!$E$32),1,0)","v":1},{"$f":"IF(AND(BA10>='I-Scheme Details'!$E$30,BA10<'I-Scheme Details'!$E$30+'I-Scheme Details'!$E$32),1,0)","v":1},{"$f":"IF(AND(BB10>='I-Scheme Details'!$E$30,BB10<'I-Scheme Details'!$E$30+'I-Scheme Details'!$E$32),1,0)","v":1},{"$f":"IF(AND(BC10>='I-Scheme Details'!$E$30,BC10<'I-Scheme Details'!$E$30+'I-Scheme Details'!$E$32),1,0)","v":1},{"$f":"IF(AND(BD10>='I-Scheme Details'!$E$30,BD10<'I-Scheme Details'!$E$30+'I-Scheme Details'!$E$32),1,0)","v":1},{"$f":"IF(AND(BE10>='I-Scheme Details'!$E$30,BE10<'I-Scheme Details'!$E$30+'I-Scheme Details'!$E$32),1,0)","v":1},{"$f":"IF(AND(BF10>='I-Scheme Details'!$E$30,BF10<'I-Scheme Details'!$E$30+'I-Scheme Details'!$E$32),1,0)","v":1},{"$f":"IF(AND(BG10>='I-Scheme Details'!$E$30,BG10<'I-Scheme Details'!$E$30+'I-Scheme Details'!$E$32),1,0)","v":1},{"$f":"IF(AND(BH10>='I-Scheme Details'!$E$30,BH10<'I-Scheme Details'!$E$30+'I-Scheme Details'!$E$32),1,0)","v":1},{"$f":"IF(AND(BI10>='I-Scheme Details'!$E$30,BI10<'I-Scheme Details'!$E$30+'I-Scheme Details'!$E$32),1,0)","v":1},{"$f":"IF(AND(BJ10>='I-Scheme Details'!$E$30,BJ10<'I-Scheme Details'!$E$30+'I-Scheme Details'!$E$32),1,0)","v":1},{"$f":"IF(AND(BK10>='I-Scheme Details'!$E$30,BK10<'I-Scheme Details'!$E$30+'I-Scheme Details'!$E$32),1,0)","v":1},{"$f":"IF(AND(BL10>='I-Scheme Details'!$E$30,BL10<'I-Scheme Details'!$E$30+'I-Scheme Details'!$E$32),1,0)","v":1},{"$f":"IF(AND(BM10>='I-Scheme Details'!$E$30,BM10<'I-Scheme Details'!$E$30+'I-Scheme Details'!$E$32),1,0)","v":1},{"$f":"IF(AND(BN10>='I-Scheme Details'!$E$30,BN10<'I-Scheme Details'!$E$30+'I-Scheme Details'!$E$32),1,0)","v":1},{"$f":"IF(AND(BO10>='I-Scheme Details'!$E$30,BO10<'I-Scheme Details'!$E$30+'I-Scheme Details'!$E$32),1,0)","v":1},{"$f":"IF(AND(BP10>='I-Scheme Details'!$E$30,BP10<'I-Scheme Details'!$E$30+'I-Scheme Details'!$E$32),1,0)","v":1},{"$f":"IF(AND(BQ10>='I-Scheme Details'!$E$30,BQ10<'I-Scheme Details'!$E$30+'I-Scheme Details'!$E$32),1,0)","v":1},{"$f":"IF(AND(BR10>='I-Scheme Details'!$E$30,BR10<'I-Scheme Details'!$E$30+'I-Scheme Details'!$E$32),1,0)","v":1},{"$f":"IF(AND(BS10>='I-Scheme Details'!$E$30,BS10<'I-Scheme Details'!$E$30+'I-Scheme Details'!$E$32),1,0)","v":1},{"$f":"IF(AND(BT10>='I-Scheme Details'!$E$30,BT10<'I-Scheme Details'!$E$30+'I-Scheme Details'!$E$32),1,0)","v":1},{"$f":"IF(AND(BU10>='I-Scheme Details'!$E$30,BU10<'I-Scheme Details'!$E$30+'I-Scheme Details'!$E$32),1,0)","v":1},{"$f":"IF(AND(BV10>='I-Scheme Details'!$E$30,BV10<'I-Scheme Details'!$E$30+'I-Scheme Details'!$E$32),1,0)","v":1},{"$f":"IF(AND(BW10>='I-Scheme Details'!$E$30,BW10<'I-Scheme Details'!$E$30+'I-Scheme Details'!$E$32),1,0)","v":1},{"$f":"IF(AND(BX10>='I-Scheme Details'!$E$30,BX10<'I-Scheme Details'!$E$30+'I-Scheme Details'!$E$32),1,0)","v":0},{"$f":"IF(AND(BY10>='I-Scheme Details'!$E$30,BY10<'I-Scheme Details'!$E$30+'I-Scheme Details'!$E$32),1,0)","v":0},{"$f":"IF(AND(BZ10>='I-Scheme Details'!$E$30,BZ10<'I-Scheme Details'!$E$30+'I-Scheme Details'!$E$32),1,0)","v":0},{"$f":"IF(AND(CA10>='I-Scheme Details'!$E$30,CA10<'I-Scheme Details'!$E$30+'I-Scheme Details'!$E$32),1,0)","v":0},{"$f":"IF(AND(CB10>='I-Scheme Details'!$E$30,CB10<'I-Scheme Details'!$E$30+'I-Scheme Details'!$E$32),1,0)","v":0},{"$f":"IF(AND(CC10>='I-Scheme Details'!$E$30,CC10<'I-Scheme Details'!$E$30+'I-Scheme Details'!$E$32),1,0)","v":0},{"$f":"IF(AND(CD10>='I-Scheme Details'!$E$30,CD10<'I-Scheme Details'!$E$30+'I-Scheme Details'!$E$32),1,0)","v":0},{"$f":"IF(AND(CE10>='I-Scheme Details'!$E$30,CE10<'I-Scheme Details'!$E$30+'I-Scheme Details'!$E$32),1,0)","v":0}]
[null,null,null,"Restriction #1 flag",null,null,null,null,null,"flag",{"$f":"IF(K15=0,0,IF(K10>='I-Scheme Details'!$E$78,1,0))","v":0},{"$f":"IF(L15=0,0,IF(L10>='I-Scheme Details'!$E$78,1,0))","v":0},{"$f":"IF(M15=0,0,IF(M10>='I-Scheme Details'!$E$78,1,0))","v":0},{"$f":"IF(N15=0,0,IF(N10>='I-Scheme Details'!$E$78,1,0))","v":0},{"$f":"IF(O15=0,0,IF(O10>='I-Scheme Details'!$E$78,1,0))","v":0},{"$f":"IF(P15=0,0,IF(P10>='I-Scheme Details'!$E$78,1,0))","v":1},{"$f":"IF(Q15=0,0,IF(Q10>='I-Scheme Details'!$E$78,1,0))","v":1},{"$f":"IF(R15=0,0,IF(R10>='I-Scheme Details'!$E$78,1,0))","v":1},{"$f":"IF(S15=0,0,IF(S10>='I-Scheme Details'!$E$78,1,0))","v":1},{"$f":"IF(T15=0,0,IF(T10>='I-Scheme Details'!$E$78,1,0))","v":1},{"$f":"IF(U15=0,0,IF(U10>='I-Scheme Details'!$E$78,1,0))","v":1},{"$f":"IF(V15=0,0,IF(V10>='I-Scheme Details'!$E$78,1,0))","v":1},{"$f":"IF(W15=0,0,IF(W10>='I-Scheme Details'!$E$78,1,0))","v":1},{"$f":"IF(X15=0,0,IF(X10>='I-Scheme Details'!$E$78,1,0))","v":1},{"$f":"IF(Y15=0,0,IF(Y10>='I-Scheme Details'!$E$78,1,0))","v":1},{"$f":"IF(Z15=0,0,IF(Z10>='I-Scheme Details'!$E$78,1,0))","v":1},{"$f":"IF(AA15=0,0,IF(AA10>='I-Scheme Details'!$E$78,1,0))","v":1},{"$f":"IF(AB15=0,0,IF(AB10>='I-Scheme Details'!$E$78,1,0))","v":1},{"$f":"IF(AC15=0,0,IF(AC10>='I-Scheme Details'!$E$78,1,0))","v":1},{"$f":"IF(AD15=0,0,IF(AD10>='I-Scheme Details'!$E$78,1,0))","v":1},{"$f":"IF(AE15=0,0,IF(AE10>='I-Scheme Details'!$E$78,1,0))","v":1},{"$f":"IF(AF15=0,0,IF(AF10>='I-Scheme Details'!$E$78,1,0))","v":1},{"$f":"IF(AG15=0,0,IF(AG10>='I-Scheme Details'!$E$78,1,0))","v":1},{"$f":"IF(AH15=0,0,IF(AH10>='I-Scheme Details'!$E$78,1,0))","v":1},{"$f":"IF(AI15=0,0,IF(AI10>='I-Scheme Details'!$E$78,1,0))","v":1},{"$f":"IF(AJ15=0,0,IF(AJ10>='I-Scheme Details'!$E$78,1,0))","v":1},{"$f":"IF(AK15=0,0,IF(AK10>='I-Scheme Details'!$E$78,1,0))","v":1},{"$f":"IF(AL15=0,0,IF(AL10>='I-Scheme Details'!$E$78,1,0))","v":1},{"$f":"IF(AM15=0,0,IF(AM10>='I-Scheme Details'!$E$78,1,0))","v":1},{"$f":"IF(AN15=0,0,IF(AN10>='I-Scheme Details'!$E$78,1,0))","v":1},{"$f":"IF(AO15=0,0,IF(AO10>='I-Scheme Details'!$E$78,1,0))","v":1},{"$f":"IF(AP15=0,0,IF(AP10>='I-Scheme Details'!$E$78,1,0))","v":1},{"$f":"IF(AQ15=0,0,IF(AQ10>='I-Scheme Details'!$E$78,1,0))","v":1},{"$f":"IF(AR15=0,0,IF(AR10>='I-Scheme Details'!$E$78,1,0))","v":1},{"$f":"IF(AS15=0,0,IF(AS10>='I-Scheme Details'!$E$78,1,0))","v":1},{"$f":"IF(AT15=0,0,IF(AT10>='I-Scheme Details'!$E$78,1,0))","v":1},{"$f":"IF(AU15=0,0,IF(AU10>='I-Scheme Details'!$E$78,1,0))","v":1},{"$f":"IF(AV15=0,0,IF(AV10>='I-Scheme Details'!$E$78,1,0))","v":1},{"$f":"IF(AW15=0,0,IF(AW10>='I-Scheme Details'!$E$78,1,0))","v":1},{"$f":"IF(AX15=0,0,IF(AX10>='I-Scheme Details'!$E$78,1,0))","v":1},{"$f":"IF(AY15=0,0,IF(AY10>='I-Scheme Details'!$E$78,1,0))","v":1},{"$f":"IF(AZ15=0,0,IF(AZ10>='I-Scheme Details'!$E$78,1,0))","v":1},{"$f":"IF(BA15=0,0,IF(BA10>='I-Scheme Details'!$E$78,1,0))","v":1},{"$f":"IF(BB15=0,0,IF(BB10>='I-Scheme Details'!$E$78,1,0))","v":1},{"$f":"IF(BC15=0,0,IF(BC10>='I-Scheme Details'!$E$78,1,0))","v":1},{"$f":"IF(BD15=0,0,IF(BD10>='I-Scheme Details'!$E$78,1,0))","v":1},{"$f":"IF(BE15=0,0,IF(BE10>='I-Scheme Details'!$E$78,1,0))","v":1},{"$f":"IF(BF15=0,0,IF(BF10>='I-Scheme Details'!$E$78,1,0))","v":1},{"$f":"IF(BG15=0,0,IF(BG10>='I-Scheme Details'!$E$78,1,0))","v":1},{"$f":"IF(BH15=0,0,IF(BH10>='I-Scheme Details'!$E$78,1,0))","v":1},{"$f":"IF(BI15=0,0,IF(BI10>='I-Scheme Details'!$E$78,1,0))","v":1},{"$f":"IF(BJ15=0,0,IF(BJ10>='I-Scheme Details'!$E$78,1,0))","v":1},{"$f":"IF(BK15=0,0,IF(BK10>='I-Scheme Details'!$E$78,1,0))","v":1},{"$f":"IF(BL15=0,0,IF(BL10>='I-Scheme Details'!$E$78,1,0))","v":1},{"$f":"IF(BM15=0,0,IF(BM10>='I-Scheme Details'!$E$78,1,0))","v":1},{"$f":"IF(BN15=0,0,IF(BN10>='I-Scheme Details'!$E$78,1,0))","v":1},{"$f":"IF(BO15=0,0,IF(BO10>='I-Scheme Details'!$E$78,1,0))","v":1},{"$f":"IF(BP15=0,0,IF(BP10>='I-Scheme Details'!$E$78,1,0))","v":1},{"$f":"IF(BQ15=0,0,IF(BQ10>='I-Scheme Details'!$E$78,1,0))","v":1},{"$f":"IF(BR15=0,0,IF(BR10>='I-Scheme Details'!$E$78,1,0))","v":1},{"$f":"IF(BS15=0,0,IF(BS10>='I-Scheme Details'!$E$78,1,0))","v":1},{"$f":"IF(BT15=0,0,IF(BT10>='I-Scheme Details'!$E$78,1,0))","v":1},{"$f":"IF(BU15=0,0,IF(BU10>='I-Scheme Details'!$E$78,1,0))","v":1},{"$f":"IF(BV15=0,0,IF(BV10>='I-Scheme Details'!$E$78,1,0))","v":1},{"$f":"IF(BW15=0,0,IF(BW10>='I-Scheme Details'!$E$78,1,0))","v":1},{"$f":"IF(BX15=0,0,IF(BX10>='I-Scheme Details'!$E$78,1,0))","v":0},{"$f":"IF(BY15=0,0,IF(BY10>='I-Scheme Details'!$E$78,1,0))","v":0},{"$f":"IF(BZ15=0,0,IF(BZ10>='I-Scheme Details'!$E$78,1,0))","v":0},{"$f":"IF(CA15=0,0,IF(CA10>='I-Scheme Details'!$E$78,1,0))","v":0},{"$f":"IF(CB15=0,0,IF(CB10>='I-Scheme Details'!$E$78,1,0))","v":0},{"$f":"IF(CC15=0,0,IF(CC10>='I-Scheme Details'!$E$78,1,0))","v":0},{"$f":"IF(CD15=0,0,IF(CD10>='I-Scheme Details'!$E$78,1,0))","v":0},{"$f":"IF(CE15=0,0,IF(CE10>='I-Scheme Details'!$E$78,1,0))","v":0}]
[null,null,null,"Restriction #2 flag",null,null,null,null,null,"flag",{"$f":"IF(K15=0,0,IF(AND('I-Scheme Details'!$E$90<>\"\",K10>='I-Scheme Details'!$E$90),2,0))","v":0},{"$f":"IF(L15=0,0,IF(AND('I-Scheme Details'!$E$90<>\"\",L10>='I-Scheme Details'!$E$90),2,0))","v":0},{"$f":"IF(M15=0,0,IF(AND('I-Scheme Details'!$E$90<>\"\",M10>='I-Scheme Details'!$E$90),2,0))","v":0},{"$f":"IF(N15=0,0,IF(AND('I-Scheme Details'!$E$90<>\"\",N10>='I-Scheme Details'!$E$90),2,0))","v":0},{"$f":"IF(O15=0,0,IF(AND('I-Scheme Details'!$E$90<>\"\",O10>='I-Scheme Details'!$E$90),2,0))","v":0},{"$f":"IF(P15=0,0,IF(AND('I-Scheme Details'!$E$90<>\"\",P10>='I-Scheme Details'!$E$90),2,0))","v":0},{"$f":"IF(Q15=0,0,IF(AND('I-Scheme Details'!$E$90<>\"\",Q10>='I-Scheme Details'!$E$90),2,0))","v":0},{"$f":"IF(R15=0,0,IF(AND('I-Scheme Details'!$E$90<>\"\",R10>='I-Scheme Details'!$E$90),2,0))","v":0},{"$f":"IF(S15=0,0,IF(AND('I-Scheme Details'!$E$90<>\"\",S10>='I-Scheme Details'!$E$90),2,0))","v":0},{"$f":"IF(T15=0,0,IF(AND('I-Scheme Details'!$E$90<>\"\",T10>='I-Scheme Details'!$E$90),2,0))","v":0},{"$f":"IF(U15=0,0,IF(AND('I-Scheme Details'!$E$90<>\"\",U10>='I-Scheme Details'!$E$90),2,0))","v":0},{"$f":"IF(V15=0,0,IF(AND('I-Scheme Details'!$E$90<>\"\",V10>='I-Scheme Details'!$E$90),2,0))","v":0},{"$f":"IF(W15=0,0,IF(AND('I-Scheme Details'!$E$90<>\"\",W10>='I-Scheme Details'!$E$90),2,0))","v":0},{"$f":"IF(X15=0,0,IF(AND('I-Scheme Details'!$E$90<>\"\",X10>='I-Scheme Details'!$E$90),2,0))","v":0},{"$f":"IF(Y15=0,0,IF(AND('I-Scheme Details'!$E$90<>\"\",Y10>='I-Scheme Details'!$E$90),2,0))","v":0},{"$f":"IF(Z15=0,0,IF(AND('I-Scheme Details'!$E$90<>\"\",Z10>='I-Scheme Details'!$E$90),2,0))","v":2},{"$f":"IF(AA15=0,0,IF(AND('I-Scheme Details'!$E$90<>\"\",AA10>='I-Scheme Details'!$E$90),2,0))","v":2},{"$f":"IF(AB15=0,0,IF(AND('I-Scheme Details'!$E$90<>\"\",AB10>='I-Scheme Details'!$E$90),2,0))","v":2},{"$f":"IF(AC15=0,0,IF(AND('I-Scheme Details'!$E$90<>\"\",AC10>='I-Scheme Details'!$E$90),2,0))","v":2},{"$f":"IF(AD15=0,0,IF(AND('I-Scheme Details'!$E$90<>\"\",AD10>='I-Scheme Details'!$E$90),2,0))","v":2},{"$f":"IF(AE15=0,0,IF(AND('I-Scheme Details'!$E$90<>\"\",AE10>='I-Scheme Details'!$E$90),2,0))","v":2},{"$f":"IF(AF15=0,0,IF(AND('I-Scheme Details'!$E$90<>\"\",AF10>='I-Scheme Details'!$E$90),2,0))","v":2},{"$f":"IF(AG15=0,0,IF(AND('I-Scheme Details'!$E$90<>\"\",AG10>='I-Scheme Details'!$E$90),2,0))","v":2},{"$f":"IF(AH15=0,0,IF(AND('I-Scheme Details'!$E$90<>\"\",AH10>='I-Scheme Details'!$E$90),2,0))","v":2},{"$f":"IF(AI15=0,0,IF(AND('I-Scheme Details'!$E$90<>\"\",AI10>='I-Scheme Details'!$E$90),2,0))","v":2},{"$f":"IF(AJ15=0,0,IF(AND('I-Scheme Details'!$E$90<>\"\",AJ10>='I-Scheme Details'!$E$90),2,0))","v":2},{"$f":"IF(AK15=0,0,IF(AND('I-Scheme Details'!$E$90<>\"\",AK10>='I-Scheme Details'!$E$90),2,0))","v":2},{"$f":"IF(AL15=0,0,IF(AND('I-Scheme Details'!$E$90<>\"\",AL10>='I-Scheme Details'!$E$90),2,0))","v":2},{"$f":"IF(AM15=0,0,IF(AND('I-Scheme Details'!$E$90<>\"\",AM10>='I-Scheme Details'!$E$90),2,0))","v":2},{"$f":"IF(AN15=0,0,IF(AND('I-Scheme Details'!$E$90<>\"\",AN10>='I-Scheme Details'!$E$90),2,0))","v":2},{"$f":"IF(AO15=0,0,IF(AND('I-Scheme Details'!$E$90<>\"\",AO10>='I-Scheme Details'!$E$90),2,0))","v":2},{"$f":"IF(AP15=0,0,IF(AND('I-Scheme Details'!$E$90<>\"\",AP10>='I-Scheme Details'!$E$90),2,0))","v":2},{"$f":"IF(AQ15=0,0,IF(AND('I-Scheme Details'!$E$90<>\"\",AQ10>='I-Scheme Details'!$E$90),2,0))","v":2},{"$f":"IF(AR15=0,0,IF(AND('I-Scheme Details'!$E$90<>\"\",AR10>='I-Scheme Details'!$E$90),2,0))","v":2},{"$f":"IF(AS15=0,0,IF(AND('I-Scheme Details'!$E$90<>\"\",AS10>='I-Scheme Details'!$E$90),2,0))","v":2},{"$f":"IF(AT15=0,0,IF(AND('I-Scheme Details'!$E$90<>\"\",AT10>='I-Scheme Details'!$E$90),2,0))","v":2},{"$f":"IF(AU15=0,0,IF(AND('I-Scheme Details'!$E$90<>\"\",AU10>='I-Scheme Details'!$E$90),2,0))","v":2},{"$f":"IF(AV15=0,0,IF(AND('I-Scheme Details'!$E$90<>\"\",AV10>='I-Scheme Details'!$E$90),2,0))","v":2},{"$f":"IF(AW15=0,0,IF(AND('I-Scheme Details'!$E$90<>\"\",AW10>='I-Scheme Details'!$E$90),2,0))","v":2},{"$f":"IF(AX15=0,0,IF(AND('I-Scheme Details'!$E$90<>\"\",AX10>='I-Scheme Details'!$E$90),2,0))","v":2},{"$f":"IF(AY15=0,0,IF(AND('I-Scheme Details'!$E$90<>\"\",AY10>='I-Scheme Details'!$E$90),2,0))","v":2},{"$f":"IF(AZ15=0,0,IF(AND('I-Scheme Details'!$E$90<>\"\",AZ10>='I-Scheme Details'!$E$90),2,0))","v":2},{"$f":"IF(BA15=0,0,IF(AND('I-Scheme Details'!$E$90<>\"\",BA10>='I-Scheme Details'!$E$90),2,0))","v":2},{"$f":"IF(BB15=0,0,IF(AND('I-Scheme Details'!$E$90<>\"\",BB10>='I-Scheme Details'!$E$90),2,0))","v":2},{"$f":"IF(BC15=0,0,IF(AND('I-Scheme Details'!$E$90<>\"\",BC10>='I-Scheme Details'!$E$90),2,0))","v":2},{"$f":"IF(BD15=0,0,IF(AND('I-Scheme Details'!$E$90<>\"\",BD10>='I-Scheme Details'!$E$90),2,0))","v":2},{"$f":"IF(BE15=0,0,IF(AND('I-Scheme Details'!$E$90<>\"\",BE10>='I-Scheme Details'!$E$90),2,0))","v":2},{"$f":"IF(BF15=0,0,IF(AND('I-Scheme Details'!$E$90<>\"\",BF10>='I-Scheme Details'!$E$90),2,0))","v":2},{"$f":"IF(BG15=0,0,IF(AND('I-Scheme Details'!$E$90<>\"\",BG10>='I-Scheme Details'!$E$90),2,0))","v":2},{"$f":"IF(BH15=0,0,IF(AND('I-Scheme Details'!$E$90<>\"\",BH10>='I-Scheme Details'!$E$90),2,0))","v":2},{"$f":"IF(BI15=0,0,IF(AND('I-Scheme Details'!$E$90<>\"\",BI10>='I-Scheme Details'!$E$90),2,0))","v":2},{"$f":"IF(BJ15=0,0,IF(AND('I-Scheme Details'!$E$90<>\"\",BJ10>='I-Scheme Details'!$E$90),2,0))","v":2},{"$f":"IF(BK15=0,0,IF(AND('I-Scheme Details'!$E$90<>\"\",BK10>='I-Scheme Details'!$E$90),2,0))","v":2},{"$f":"IF(BL15=0,0,IF(AND('I-Scheme Details'!$E$90<>\"\",BL10>='I-Scheme Details'!$E$90),2,0))","v":2},{"$f":"IF(BM15=0,0,IF(AND('I-Scheme Details'!$E$90<>\"\",BM10>='I-Scheme Details'!$E$90),2,0))","v":2},{"$f":"IF(BN15=0,0,IF(AND('I-Scheme Details'!$E$90<>\"\",BN10>='I-Scheme Details'!$E$90),2,0))","v":2},{"$f":"IF(BO15=0,0,IF(AND('I-Scheme Details'!$E$90<>\"\",BO10>='I-Scheme Details'!$E$90),2,0))","v":2},{"$f":"IF(BP15=0,0,IF(AND('I-Scheme Details'!$E$90<>\"\",BP10>='I-Scheme Details'!$E$90),2,0))","v":2},{"$f":"IF(BQ15=0,0,IF(AND('I-Scheme Details'!$E$90<>\"\",BQ10>='I-Scheme Details'!$E$90),2,0))","v":2},{"$f":"IF(BR15=0,0,IF(AND('I-Scheme Details'!$E$90<>\"\",BR10>='I-Scheme Details'!$E$90),2,0))","v":2},{"$f":"IF(BS15=0,0,IF(AND('I-Scheme Details'!$E$90<>\"\",BS10>='I-Scheme Details'!$E$90),2,0))","v":2},{"$f":"IF(BT15=0,0,IF(AND('I-Scheme Details'!$E$90<>\"\",BT10>='I-Scheme Details'!$E$90),2,0))","v":2},{"$f":"IF(BU15=0,0,IF(AND('I-Scheme Details'!$E$90<>\"\",BU10>='I-Scheme Details'!$E$90),2,0))","v":2},{"$f":"IF(BV15=0,0,IF(AND('I-Scheme Details'!$E$90<>\"\",BV10>='I-Scheme Details'!$E$90),2,0))","v":2},{"$f":"IF(BW15=0,0,IF(AND('I-Scheme Details'!$E$90<>\"\",BW10>='I-Scheme Details'!$E$90),2,0))","v":2},{"$f":"IF(BX15=0,0,IF(AND('I-Scheme Details'!$E$90<>\"\",BX10>='I-Scheme Details'!$E$90),2,0))","v":0},{"$f":"IF(BY15=0,0,IF(AND('I-Scheme Details'!$E$90<>\"\",BY10>='I-Scheme Details'!$E$90),2,0))","v":0},{"$f":"IF(BZ15=0,0,IF(AND('I-Scheme Details'!$E$90<>\"\",BZ10>='I-Scheme Details'!$E$90),2,0))","v":0},{"$f":"IF(CA15=0,0,IF(AND('I-Scheme Details'!$E$90<>\"\",CA10>='I-Scheme Details'!$E$90),2,0))","v":0},{"$f":"IF(CB15=0,0,IF(AND('I-Scheme Details'!$E$90<>\"\",CB10>='I-Scheme Details'!$E$90),2,0))","v":0},{"$f":"IF(CC15=0,0,IF(AND('I-Scheme Details'!$E$90<>\"\",CC10>='I-Scheme Details'!$E$90),2,0))","v":0},{"$f":"IF(CD15=0,0,IF(AND('I-Scheme Details'!$E$90<>\"\",CD10>='I-Scheme Details'!$E$90),2,0))","v":0},{"$f":"IF(CE15=0,0,IF(AND('I-Scheme Details'!$E$90<>\"\",CE10>='I-Scheme Details'!$E$90),2,0))","v":0}]
[null,null,null,"Restriction #3 flag",null,null,null,null,null,"flag",{"$f":"IF(K15=0,0,IF(AND('I-Scheme Details'!$E$102<>\"\",K10>='I-Scheme Details'!$E$102),3,0))","v":0},{"$f":"IF(L15=0,0,IF(AND('I-Scheme Details'!$E$102<>\"\",L10>='I-Scheme Details'!$E$102),3,0))","v":0},{"$f":"IF(M15=0,0,IF(AND('I-Scheme Details'!$E$102<>\"\",M10>='I-Scheme Details'!$E$102),3,0))","v":0},{"$f":"IF(N15=0,0,IF(AND('I-Scheme Details'!$E$102<>\"\",N10>='I-Scheme Details'!$E$102),3,0))","v":0},{"$f":"IF(O15=0,0,IF(AND('I-Scheme Details'!$E$102<>\"\",O10>='I-Scheme Details'!$E$102),3,0))","v":0},{"$f":"IF(P15=0,0,IF(AND('I-Scheme Details'!$E$102<>\"\",P10>='I-Scheme Details'!$E$102),3,0))","v":0},{"$f":"IF(Q15=0,0,IF(AND('I-Scheme Details'!$E$102<>\"\",Q10>='I-Scheme Details'!$E$102),3,0))","v":0},{"$f":"IF(R15=0,0,IF(AND('I-Scheme Details'!$E$102<>\"\",R10>='I-Scheme Details'!$E$102),3,0))","v":0},{"$f":"IF(S15=0,0,IF(AND('I-Scheme Details'!$E$102<>\"\",S10>='I-Scheme Details'!$E$102),3,0))","v":0},{"$f":"IF(T15=0,0,IF(AND('I-Scheme Details'!$E$102<>\"\",T10>='I-Scheme Details'!$E$102),3,0))","v":0},{"$f":"IF(U15=0,0,IF(AND('I-Scheme Details'!$E$102<>\"\",U10>='I-Scheme Details'!$E$102),3,0))","v":0},{"$f":"IF(V15=0,0,IF(AND('I-Scheme Details'!$E$102<>\"\",V10>='I-Scheme Details'!$E$102),3,0))","v":0},{"$f":"IF(W15=0,0,IF(AND('I-Scheme Details'!$E$102<>\"\",W10>='I-Scheme Details'!$E$102),3,0))","v":0},{"$f":"IF(X15=0,0,IF(AND('I-Scheme Details'!$E$102<>\"\",X10>='I-Scheme Details'!$E$102),3,0))","v":0},{"$f":"IF(Y15=0,0,IF(AND('I-Scheme Details'!$E$102<>\"\",Y10>='I-Scheme Details'!$E$102),3,0))","v":0},{"$f":"IF(Z15=0,0,IF(AND('I-Scheme Details'!$E$102<>\"\",Z10>='I-Scheme Details'!$E$102),3,0))","v":0},{"$f":"IF(AA15=0,0,IF(AND('I-Scheme Details'!$E$102<>\"\",AA10>='I-Scheme Details'!$E$102),3,0))","v":0},{"$f":"IF(AB15=0,0,IF(AND('I-Scheme Details'!$E$102<>\"\",AB10>='I-Scheme Details'!$E$102),3,0))","v":0},{"$f":"IF(AC15=0,0,IF(AND('I-Scheme Details'!$E$102<>\"\",AC10>='I-Scheme Details'!$E$102),3,0))","v":0},{"$f":"IF(AD15=0,0,IF(AND('I-Scheme Details'!$E$102<>\"\",AD10>='I-Scheme Details'!$E$102),3,0))","v":0},{"$f":"IF(AE15=0,0,IF(AND('I-Scheme Details'!$E$102<>\"\",AE10>='I-Scheme Details'!$E$102),3,0))","v":0},{"$f":"IF(AF15=0,0,IF(AND('I-Scheme Details'!$E$102<>\"\",AF10>='I-Scheme Details'!$E$102),3,0))","v":0},{"$f":"IF(AG15=0,0,IF(AND('I-Scheme Details'!$E$102<>\"\",AG10>='I-Scheme Details'!$E$102),3,0))","v":0},{"$f":"IF(AH15=0,0,IF(AND('I-Scheme Details'!$E$102<>\"\",AH10>='I-Scheme Details'!$E$102),3,0))","v":0},{"$f":"IF(AI15=0,0,IF(AND('I-Scheme Details'!$E$102<>\"\",AI10>='I-Scheme Details'!$E$102),3,0))","v":0},{"$f":"IF(AJ15=0,0,IF(AND('I-Scheme Details'!$E$102<>\"\",AJ10>='I-Scheme Details'!$E$102),3,0))","v":0},{"$f":"IF(AK15=0,0,IF(AND('I-Scheme Details'!$E$102<>\"\",AK10>='I-Scheme Details'!$E$102),3,0))","v":0},{"$f":"IF(AL15=0,0,IF(AND('I-Scheme Details'!$E$102<>\"\",AL10>='I-Scheme Details'!$E$102),3,0))","v":0},{"$f":"IF(AM15=0,0,IF(AND('I-Scheme Details'!$E$102<>\"\",AM10>='I-Scheme Details'!$E$102),3,0))","v":0},{"$f":"IF(AN15=0,0,IF(AND('I-Scheme Details'!$E$102<>\"\",AN10>='I-Scheme Details'!$E$102),3,0))","v":0},{"$f":"IF(AO15=0,0,IF(AND('I-Scheme Details'!$E$102<>\"\",AO10>='I-Scheme Details'!$E$102),3,0))","v":0},{"$f":"IF(AP15=0,0,IF(AND('I-Scheme Details'!$E$102<>\"\",AP10>='I-Scheme Details'!$E$102),3,0))","v":0},{"$f":"IF(AQ15=0,0,IF(AND('I-Scheme Details'!$E$102<>\"\",AQ10>='I-Scheme Details'!$E$102),3,0))","v":0},{"$f":"IF(AR15=0,0,IF(AND('I-Scheme Details'!$E$102<>\"\",AR10>='I-Scheme Details'!$E$102),3,0))","v":0},{"$f":"IF(AS15=0,0,IF(AND('I-Scheme Details'!$E$102<>\"\",AS10>='I-Scheme Details'!$E$102),3,0))","v":0},{"$f":"IF(AT15=0,0,IF(AND('I-Scheme Details'!$E$102<>\"\",AT10>='I-Scheme Details'!$E$102),3,0))","v":0},{"$f":"IF(AU15=0,0,IF(AND('I-Scheme Details'!$E$102<>\"\",AU10>='I-Scheme Details'!$E$102),3,0))","v":0},{"$f":"IF(AV15=0,0,IF(AND('I-Scheme Details'!$E$102<>\"\",AV10>='I-Scheme Details'!$E$102),3,0))","v":0},{"$f":"IF(AW15=0,0,IF(AND('I-Scheme Details'!$E$102<>\"\",AW10>='I-Scheme Details'!$E$102),3,0))","v":0},{"$f":"IF(AX15=0,0,IF(AND('I-Scheme Details'!$E$102<>\"\",AX10>='I-Scheme Details'!$E$102),3,0))","v":0},{"$f":"IF(AY15=0,0,IF(AND('I-Scheme Details'!$E$102<>\"\",AY10>='I-Scheme Details'!$E$102),3,0))","v":0},{"$f":"IF(AZ15=0,0,IF(AND('I-Scheme Details'!$E$102<>\"\",AZ10>='I-Scheme Details'!$E$102),3,0))","v":0},{"$f":"IF(BA15=0,0,IF(AND('I-Scheme Details'!$E$102<>\"\",BA10>='I-Scheme Details'!$E$102),3,0))","v":0},{"$f":"IF(BB15=0,0,IF(AND('I-Scheme Details'!$E$102<>\"\",BB10>='I-Scheme Details'!$E$102),3,0))","v":0},{"$f":"IF(BC15=0,0,IF(AND('I-Scheme Details'!$E$102<>\"\",BC10>='I-Scheme Details'!$E$102),3,0))","v":0},{"$f":"IF(BD15=0,0,IF(AND('I-Scheme Details'!$E$102<>\"\",BD10>='I-Scheme Details'!$E$102),3,0))","v":0},{"$f":"IF(BE15=0,0,IF(AND('I-Scheme Details'!$E$102<>\"\",BE10>='I-Scheme Details'!$E$102),3,0))","v":0},{"$f":"IF(BF15=0,0,IF(AND('I-Scheme Details'!$E$102<>\"\",BF10>='I-Scheme Details'!$E$102),3,0))","v":0},{"$f":"IF(BG15=0,0,IF(AND('I-Scheme Details'!$E$102<>\"\",BG10>='I-Scheme Details'!$E$102),3,0))","v":0},{"$f":"IF(BH15=0,0,IF(AND('I-Scheme Details'!$E$102<>\"\",BH10>='I-Scheme Details'!$E$102),3,0))","v":0},{"$f":"IF(BI15=0,0,IF(AND('I-Scheme Details'!$E$102<>\"\",BI10>='I-Scheme Details'!$E$102),3,0))","v":0},{"$f":"IF(BJ15=0,0,IF(AND('I-Scheme Details'!$E$102<>\"\",BJ10>='I-Scheme Details'!$E$102),3,0))","v":0},{"$f":"IF(BK15=0,0,IF(AND('I-Scheme Details'!$E$102<>\"\",BK10>='I-Scheme Details'!$E$102),3,0))","v":0},{"$f":"IF(BL15=0,0,IF(AND('I-Scheme Details'!$E$102<>\"\",BL10>='I-Scheme Details'!$E$102),3,0))","v":0},{"$f":"IF(BM15=0,0,IF(AND('I-Scheme Details'!$E$102<>\"\",BM10>='I-Scheme Details'!$E$102),3,0))","v":0},{"$f":"IF(BN15=0,0,IF(AND('I-Scheme Details'!$E$102<>\"\",BN10>='I-Scheme Details'!$E$102),3,0))","v":0},{"$f":"IF(BO15=0,0,IF(AND('I-Scheme Details'!$E$102<>\"\",BO10>='I-Scheme Details'!$E$102),3,0))","v":0},{"$f":"IF(BP15=0,0,IF(AND('I-Scheme Details'!$E$102<>\"\",BP10>='I-Scheme Details'!$E$102),3,0))","v":0},{"$f":"IF(BQ15=0,0,IF(AND('I-Scheme Details'!$E$102<>\"\",BQ10>='I-Scheme Details'!$E$102),3,0))","v":0},{"$f":"IF(BR15=0,0,IF(AND('I-Scheme Details'!$E$102<>\"\",BR10>='I-Scheme Details'!$E$102),3,0))","v":0},{"$f":"IF(BS15=0,0,IF(AND('I-Scheme Details'!$E$102<>\"\",BS10>='I-Scheme Details'!$E$102),3,0))","v":0},{"$f":"IF(BT15=0,0,IF(AND('I-Scheme Details'!$E$102<>\"\",BT10>='I-Scheme Details'!$E$102),3,0))","v":0},{"$f":"IF(BU15=0,0,IF(AND('I-Scheme Details'!$E$102<>\"\",BU10>='I-Scheme Details'!$E$102),3,0))","v":0},{"$f":"IF(BV15=0,0,IF(AND('I-Scheme Details'!$E$102<>\"\",BV10>='I-Scheme Details'!$E$102),3,0))","v":0},{"$f":"IF(BW15=0,0,IF(AND('I-Scheme Details'!$E$102<>\"\",BW10>='I-Scheme Details'!$E$102),3,0))","v":0},{"$f":"IF(BX15=0,0,IF(AND('I-Scheme Details'!$E$102<>\"\",BX10>='I-Scheme Details'!$E$102),3,0))","v":0},{"$f":"IF(BY15=0,0,IF(AND('I-Scheme Details'!$E$102<>\"\",BY10>='I-Scheme Details'!$E$102),3,0))","v":0},{"$f":"IF(BZ15=0,0,IF(AND('I-Scheme Details'!$E$102<>\"\",BZ10>='I-Scheme Details'!$E$102),3,0))","v":0},{"$f":"IF(CA15=0,0,IF(AND('I-Scheme Details'!$E$102<>\"\",CA10>='I-Scheme Details'!$E$102),3,0))","v":0},{"$f":"IF(CB15=0,0,IF(AND('I-Scheme Details'!$E$102<>\"\",CB10>='I-Scheme Details'!$E$102),3,0))","v":0},{"$f":"IF(CC15=0,0,IF(AND('I-Scheme Details'!$E$102<>\"\",CC10>='I-Scheme Details'!$E$102),3,0))","v":0},{"$f":"IF(CD15=0,0,IF(AND('I-Scheme Details'!$E$102<>\"\",CD10>='I-Scheme Details'!$E$102),3,0))","v":0},{"$f":"IF(CE15=0,0,IF(AND('I-Scheme Details'!$E$102<>\"\",CE10>='I-Scheme Details'!$E$102),3,0))","v":0}]
[]
[null,null,"GDP Deflator"]
[]
[null,null,null,"GDP Deflator",null,null,null,null,null,"index (2023=100)",{"$f":"TRANSPOSE('TAG - Annual Parameters'!E49:E121)","v":100},103.83644513853338,107.35218079199443,109.76846895421627,112.02379237117708,114.18299879546288,116.26899816682132,118.51378524529244,121.07411999722073,123.8588247571568,126.7075777265714,129.62185201428252,132.603154610611,135.65302716665505,138.7730467914881,141.96482686769235,145.23001788564923,148.57030829701912,151.98742538785055,155.48313617177109,159.05924830372183,162.71761101470739,166.46011606804564,170.2886987376107,174.20533880857573,178.21206160117296,182.31093901799991,186.50409061541387,190.79368469956839,195.18193944765844,199.67112405495456,204.2635599082185,208.96162178610754,213.76773908718798,218.68439708619331,223.71413821917571,228.85956339821672,234.1233333563757,239.50817002357229,245.01685793411446,250.65224566659907,256.41724731693085,262.31484400522021,268.34808541734026,274.52009138193904,280.83405348372361,287.29323671384918,293.90098115826771,300.66070372490782,307.57589991058069,314.65014560852399,321.88709895752004,329.29050223354295,336.86418378491442,344.61206001196734,352.53813739224262,360.64651455226414,368.94138438696615,377.42703622786632,386.10785806110727,394.98833879651272,404.07307058883248,413.36675121237556,422.87418649026023,432.60029277953612,442.5500995134654,452.72875180227504,463.14151309372738,473.7937678948831,484.69102455646532,495.83891812126399,507.24321323805299,518.90980714252817]
[null,null,null,"GDP Deflator nominal to 2023 adjustment factor",null,null,null,null,null,"factor",{"$f":"Hundred/K22","v":1},0.96305300000000016,0.93151344725599927,0.91100842484839029,0.8926675118144749,0.87578712290724625,0.8600744960107185,0.84378369818351717,0.82594034135697625,0.80737081266566602,0.78921878070935103,0.77147485895342238,0.7541298718997288,0.73717485034186581,0.72060102672714166,0.70439983062281675,0.68856288428427859,0.67308199832285309,0.65794916747101972,0.64315656644283459,0.62869654588742385,0.61456162843345463,0.60074450482253638,0.58723803012955644,0.57403522006799268,0.56112924737829206,0.5485134382974507,0.5361812691079676,0.52412636276438673,0.51234248559568596,0.50082354408180452,0.4895635817026438,{"$f":"Hundred/AQ22","v":0.47855677585791179},0.46779743485621883,0.45727999497186589,0.44699901756780641,0.43694918628329082,0.42712530428474177,0.41752229157843779,0.40813518238361463,0.39895912256462823,0.3899893671208487,0.38122127773298997,0.3726503203646041,0.36427206291750164,0.35608217293988437,0.34807641538600631,0.34025065042620362,0.33260083130616191,0.32512300225431273,0.31781329643627843,0.31066793395530634,0.30368321989766023,0.29685554242195528,0.29018137089145196,0.28365725404834014,0.27727981822907155,0.2710457656198158,0.26495187255113961,0.25899498783102604,0.25317203111537245,0.24747999131512463,0.24191592503922255,0.23647695507255378,{"$f":"Hundred/BW22","v":0.23116026888812691},0.22596311719269496,0.22088281250507819,0.21591672776644985,{"$f":"Hundred/CA22","v":0.2110622949818669},0.20631700389234306,0.2016784006767772,0.19714408668306668,0.19271171718774849]
[]
[null,null,"Discounting"]
[]
[null,null,null,"Period 1 Discount Rate",{"$f":"'I-TAG Values'!E18","v":3.5000000000000003E-2},null,null,null,null,"%"]
[null,null,null,"Period 1 Length",{"$f":"'I-TAG Values'!E19","v":30},null,null,null,null,"years"]
[]
[null,null,null,"Period 2 Discount Rate",{"$f":"'I-TAG Values'!E21","v":0.03},null,null,null,null,"%"]
[]
[null,null,null,"Annual discount rate",null,null,null,null,null,"%",{"$f":"IF(K10<=(CurrentYear+$E$28),$E$27,$E$30)","v":3.5000000000000003E-2},3.5000000000000003E-2,3.5000000000000003E-2,3.5000000000000003E-2,3.5000000000000003E-2,3.5000000000000003E-2,3.5000000000000003E-2,3.5000000000000003E-2,3.5000000000000003E-2,3.5000000000000003E-2,3.5000000000000003E-2,3.5000000000000003E-2,3.5000000000000003E-2,3.5000000000000003E-2,3.5000000000000003E-2,3.5000000000000003E-2,3.5000000000000003E-2,3.5000000000000003E-2,3.5000000000000003E-2,3.5000000000000003E-2,3.5000000000000003E-2,3.5000000000000003E-2,3.5000000000000003E-2,3.5000000000000003E-2,3.5000000000000003E-2,3.5000000000000003E-2,3.5000000000000003E-2,3.5000000000000003E-2,3.5000000000000003E-2,3.5000000000000003E-2,3.5000000000000003E-2,3.5000000000000003E-2,{"$f":"IF(AQ10<=(CurrentYear+$E$28),$E$27,$E$30)","v":3.5000000000000003E-2},3.5000000000000003E-2,0.03,0.03,0.03,0.03,0.03,0.03,0.03,0.03,0.03,0.03,0.03,0.03,0.03,0.03,0.03,0.03,0.03,0.03,0.03,0.03,0.03,0.03,0.03,0.03,0.03,0.03,0.03,0.03,0.03,0.03,0.03,0.03,0.03,0.03,{"$f":"IF(CA10<=(CurrentYear+$E$28),$E$27,$E$30)","v":0.03},0.03,0.03,0.03,0.03]
[null,null,null,"Discounting factor",null,null,null,null,null,"factor",1,{"$f":"K33*(1-L32)","v":0.96499999999999997},{"$f":"L33*(1-M32)","v":0.93122499999999997},0.89863212499999989,0.86718000062499989,0.83682870060312486,0.80753969608201548,0.77927580671914487,0.75200115348397478,0.72568111311203565,0.70028227415311439,0.6757723945577554,0.65212036074823398,0.62929614812204582,0.60727078293777415,0.58601630553495199,0.56550573484122868,0.54571303412178562,0.5266130779275231,0.50818162020005975,0.49039526349305762,0.47323142927080059,0.45666832924632256,0.44068493772270123,0.42526096490240667,0.41037683113082241,0.39601364204124362,0.38215316456980009,0.36877780380985709,0.35587058067651206,0.34341511035283412,0.33139558149048493,0.31979673613831794,0.30860385037347682,0.29934573486227251,0.29036536281640435,0.28165440193191221,0.27320476987395481,0.26500862677773618,0.25705836797440407,0.24934661693517193,0.24186621842711678,0.23461023187430327,0.22757192491807415,0.22074476717053193,0.21412242415541596,0.20769875143075348,0.20146778888783087,0.19542375522119595,0.18956104256456008,0.18387421128762327,0.17835798494899457,0.17300724540052473,0.16781702803850898,0.1627825171973537,0.15789904168143309,0.15316207043099009,0.14856720831806039,0.14411019206851858,0.13978688630646302,0.13559327971726912,0.13152548132575104,0.12757971688597849,0.12375232537939913,0.12003975561801715,0.11643856294947663,{"$f":"BX33*(1-BY32)","v":0.11294540606099233},0.10955704387916256,{"$f":"BZ33*(1-CA32)","v":0.10627033256278767},{"$f":"CA33*(1-CB32)","v":0.10308222258590403},{"$f":"CB33*(1-CC32)","v":9.9989755908326913E-2},{"$f":"CC33*(1-CD32)","v":9.6990063231077103E-2},{"$f":"CD33*(1-CE32)","v":9.4080361334144783E-2}]
[]
[null,null,"Marginal External Cost Rates"]
[]
[null,null,null,"Area Type-Road Type",{"$f":"'I-Scheme Details'!E57&\"-\"&'I-Scheme Details'!E59","v":"Inner and Outer Conurbations-A roads"},null,null,null,null,null,"Different formula for each block of cells, and different in years with specific inputs"]
[null,null,null,null,null,null,null,null,null,null,"Values beyond 2060 assumed to grow based on 2059-2060 growth rate"]
[null,null,null,"Cars"]
[null,null,null,"Congestion",null,null,null,null,null,"pence per vehicle km, 2023 prices",null,null,{"$f":"INDEX('TAG - A5.4.2'!$D$13:$S$1000,MATCH(IF('I-Scheme Details'!$E$61='I-Validation'!$B$31,'I-Validation'!$C$31,'I-Scheme Details'!$E$61),'TAG - A5.4.2'!$D$13:$D$18,0)+ 18 * MAX(0,QUOTIENT(M$10-2025,5)),MATCH($E$37,'TAG - A5.4.2'!$D$9:$S$9,0))","v":116.32950031877868},{"$f":"IF(M40=0,0,$M40*($R40/$M40)^((N$10-$M$10)/($R$10-$M$10)))","v":117.22967739983899},118.13682020133172,119.05098262516373,119.97221899034375,{"$f":"INDEX('TAG - A5.4.2'!$D$13:$S$1000,MATCH(IF('I-Scheme Details'!$E$61='I-Validation'!$B$31,'I-Validation'!$C$31,'I-Scheme Details'!$E$61),'TAG - A5.4.2'!$D$13:$D$18,0)+ 18 * MAX(0,QUOTIENT(R$10-2025,5)),MATCH($E$37,'TAG - A5.4.2'!$D$9:$S$9,0))","v":120.90058403621011},{"$f":"IF(R40=0,0,($R40*($W40/$R40)^((S$10-$R$10)/($W$10-$R$10))))","v":120.73494510667099},120.56953310949284,120.4043477337687,120.23938866901757,{"$f":"INDEX('TAG - A5.4.2'!$D$13:$S$1000,MATCH(IF('I-Scheme Details'!$E$61='I-Validation'!$B$31,'I-Validation'!$C$31,'I-Scheme Details'!$E$61),'TAG - A5.4.2'!$D$13:$D$18,0)+ 18 * MAX(0,QUOTIENT(W$10-2025,5)),MATCH($E$37,'TAG - A5.4.2'!$D$9:$S$9,0))","v":120.07465560518382},{"$f":"IF(W40=0,0,($W40*($AB40/$W40)^((X$10-$W$10)/($AB$10-$W$10))))","v":122.09533464435157},124.15001872612183,126.23928010511786,128.36370066616274,{"$f":"INDEX('TAG - A5.4.2'!$D$13:$S$1000,MATCH(IF('I-Scheme Details'!$E$61='I-Validation'!$B$31,'I-Validation'!$C$31,'I-Scheme Details'!$E$61),'TAG - A5.4.2'!$D$13:$D$18,0)+ 18 * MAX(0,QUOTIENT(AB$10-2025,5)),MATCH($E$37,'TAG - A5.4.2'!$D$9:$S$9,0))","v":130.52387208634147},{"$f":"IF(AB40=0,0,($AB40*($AG40/$AB40)^((AC$10-$AB$10)/($AG$10-$AB$10))))","v":131.21373723354708},131.90724856373609,132.60442534828411,133.30528696042271,{"$f":"INDEX('TAG - A5.4.2'!$D$13:$S$1000,MATCH(IF('I-Scheme Details'!$E$61='I-Validation'!$B$31,'I-Validation'!$C$31,'I-Scheme Details'!$E$61),'TAG - A5.4.2'!$D$13:$D$18,0)+ 18 * MAX(0,QUOTIENT(AG$10-2025,5)),MATCH($E$37,'TAG - A5.4.2'!$D$9:$S$9,0))","v":134.00985287577808},{"$f":"IF(AG40=0,0,($AG40*($AL40/$AG40)^((AH$10-$AG$10)/($AL$10-$AG$10))))","v":135.11491414397122},136.22908787949609,137.35244922484773,138.4850739421552,{"$f":"INDEX('TAG - A5.4.2'!$D$13:$S$1000,MATCH(IF('I-Scheme Details'!$E$61='I-Validation'!$B$31,'I-Validation'!$C$31,'I-Scheme Details'!$E$61),'TAG - A5.4.2'!$D$13:$D$18,0)+ 18 * MAX(0,QUOTIENT(AL$10-2025,5)),MATCH($E$37,'TAG - A5.4.2'!$D$9:$S$9,0))","v":139.62703841829111},{"$f":"IF(AL40=0,0,($AL40*($AQ40/$AL40)^((AM$10-$AL$10)/($AQ$10-$AL$10))))","v":141.78012246307321},143.96640760526751,146.18640581414519,148.44063695367245,{"$f":"INDEX('TAG - A5.4.2'!$D$13:$S$1000,MATCH(IF('I-Scheme Details'!$E$61='I-Validation'!$B$31,'I-Validation'!$C$31,'I-Scheme Details'!$E$61),'TAG - A5.4.2'!$D$13:$D$18,0)+ 18 * MAX(0,QUOTIENT(AQ$10-2025,5)),MATCH($E$37,'TAG - A5.4.2'!$D$9:$S$9,0))","v":150.72962890424856},{"$f":"IF(AQ40=0,0,($AQ40*($AV40/$AQ40)^((AR$10-$AQ$10)/($AV$10-$AQ$10))))","v":153.04763961558956},155.40129808707533,157.79115253135959,160.2177595918393,{"$f":"INDEX('TAG - A5.4.2'!$D$13:$S$1000,MATCH(IF('I-Scheme Details'!$E$61='I-Validation'!$B$31,'I-Validation'!$C$31,'I-Scheme Details'!$E$61),'TAG - A5.4.2'!$D$13:$D$18,0)+ 18 * MAX(0,QUOTIENT(AV$10-2025,5)),MATCH($E$37,'TAG - A5.4.2'!$D$9:$S$9,0))","v":162.68168447230767},{"$f":"AV40","v":162.68168447230767},{"$f":"AW40","v":162.68168447230767},162.68168447230767,162.68168447230767,162.68168447230767,162.68168447230767,162.68168447230767,162.68168447230767,162.68168447230767,162.68168447230767,162.68168447230767,162.68168447230767,162.68168447230767,162.68168447230767,162.68168447230767,162.68168447230767,162.68168447230767,162.68168447230767,162.68168447230767,162.68168447230767,162.68168447230767,162.68168447230767,162.68168447230767,162.68168447230767,162.68168447230767,162.68168447230767,162.68168447230767,162.68168447230767,162.68168447230767,162.68168447230767,162.68168447230767,162.68168447230767,162.68168447230767,162.68168447230767,162.68168447230767]
[null,null,null,"Infrastructure",null,null,null,null,null,"pence per vehicle km, 2023 prices",null,null,{"$f":"INDEX('TAG - A5.4.2'!$D19:$S$1000,1+18*MAX(0,QUOTIENT(M$10-2025,5)),MATCH($E$37,'TAG - A5.4.2'!$D$9:$S$9,0))","v":0.15612568280054256},0.15833610488613495,0.16057782205213197,0.16285127737321339,0.16515692019709496,{"$f":"INDEX('TAG - A5.4.2'!$D19:$S$1000,1+18*MAX(0,QUOTIENT(R$10-2025,5)),MATCH($E$37,'TAG - A5.4.2'!$D$9:$S$9,0))","v":0.16749520623334221},0.17003529327899333,0.17261390108201166,0.17523161381479818,0.17788902450880587,{"$f":"INDEX('TAG - A5.4.2'!$D19:$S$1000,1+18*MAX(0,QUOTIENT(W$10-2025,5)),MATCH($E$37,'TAG - A5.4.2'!$D$9:$S$9,0))","v":0.18058673518888854},0.18341152628420818,0.18628050359688117,0.18919435830078141,0.19215379238132865,{"$f":"INDEX('TAG - A5.4.2'!$D19:$S$1000,1+18*MAX(0,QUOTIENT(AB$10-2025,5)),MATCH($E$37,'TAG - A5.4.2'!$D$9:$S$9,0))","v":0.19515951880460627},0.1978884245310539,0.200655488408892,0.20346124400163049,0.20630623233357087,{"$f":"INDEX('TAG - A5.4.2'!$D19:$S$1000,1+18*MAX(0,QUOTIENT(AG$10-2025,5)),MATCH($E$37,'TAG - A5.4.2'!$D$9:$S$9,0))","v":0.20919100199413035},0.21193635437347624,0.2147177358344505,0.21753561921060741,0.22039048354080973,{"$f":"INDEX('TAG - A5.4.2'!$D19:$S$1000,1+18*MAX(0,QUOTIENT(AL$10-2025,5)),MATCH($E$37,'TAG - A5.4.2'!$D$9:$S$9,0))","v":0.22328281415066514},0.22620077890095047,0.22915687698593196,0.23215160674994872,0.23518547304993792,{"$f":"INDEX('TAG - A5.4.2'!$D19:$S$1000,1+18*MAX(0,QUOTIENT(AQ$10-2025,5)),MATCH($E$37,'TAG - A5.4.2'!$D$9:$S$9,0))","v":0.23825898734054438},0.24149486890051461,0.24477469813938266,0.24809907192648528,0.25146859523745768,{"$f":"INDEX('TAG - A5.4.2'!$D19:$S$1000,1+18*MAX(0,QUOTIENT(AV$10-2025,5)),MATCH($E$37,'TAG - A5.4.2'!$D$9:$S$9,0))","v":0.25488388126432832},{"$f":"AV41","v":0.25488388126432832},0.25488388126432832,0.25488388126432832,0.25488388126432832,0.25488388126432832,0.25488388126432832,0.25488388126432832,0.25488388126432832,0.25488388126432832,0.25488388126432832,0.25488388126432832,0.25488388126432832,0.25488388126432832,0.25488388126432832,0.25488388126432832,0.25488388126432832,0.25488388126432832,0.25488388126432832,0.25488388126432832,0.25488388126432832,0.25488388126432832,0.25488388126432832,0.25488388126432832,0.25488388126432832,0.25488388126432832,0.25488388126432832,0.25488388126432832,0.25488388126432832,0.25488388126432832,0.25488388126432832,0.25488388126432832,0.25488388126432832,0.25488388126432832,0.25488388126432832,0.25488388126432832]
[null,null,null,"Accident",null,null,null,null,null,"pence per vehicle km, 2023 prices",null,null,{"$f":"INDEX('TAG - A5.4.2'!$D20:$S$1000,1+18*MAX(0,QUOTIENT(M$10-2025,5)),MATCH($E$37,'TAG - A5.4.2'!$D$9:$S$9,0))","v":4.9527418771045202},5.0517967146466107,5.1528326489395431,5.2558893019183337,5.3610070879566996,{"$f":"INDEX('TAG - A5.4.2'!$D20:$S$1000,1+18*MAX(0,QUOTIENT(R$10-2025,5)),MATCH($E$37,'TAG - A5.4.2'!$D$9:$S$9,0))","v":5.4682272297158336},5.5775917743101502,5.6891436097963535,5.8029264819922801,5.9189850116321256,{"$f":"INDEX('TAG - A5.4.2'!$D20:$S$1000,1+18*MAX(0,QUOTIENT(W$10-2025,5)),MATCH($E$37,'TAG - A5.4.2'!$D$9:$S$9,0))","v":6.0373647118647691},6.1581120061020647,6.2812742462241058,6.4068997311485871,6.5350377257715593,{"$f":"INDEX('TAG - A5.4.2'!$D20:$S$1000,1+18*MAX(0,QUOTIENT(AB$10-2025,5)),MATCH($E$37,'TAG - A5.4.2'!$D$9:$S$9,0))","v":6.6657384802869908},6.7990532498927303,6.9350343148905855,7.0737350011883979,7.2152097012121663,{"$f":"INDEX('TAG - A5.4.2'!$D20:$S$1000,1+18*MAX(0,QUOTIENT(AG$10-2025,5)),MATCH($E$37,'TAG - A5.4.2'!$D$9:$S$9,0))","v":7.3595138952364092},7.5067041731411379,7.6568382566039617,7.8099750217360402,7.9661745221707632,{"$f":"INDEX('TAG - A5.4.2'!$D20:$S$1000,1+18*MAX(0,QUOTIENT(AL$10-2025,5)),MATCH($E$37,'TAG - A5.4.2'!$D$9:$S$9,0))","v":8.1254980126141785},8.2880079728664615,8.4537681323237912,8.622843494970267,8.7953003648696697,{"$f":"INDEX('TAG - A5.4.2'!$D20:$S$1000,1+18*MAX(0,QUOTIENT(AQ$10-2025,5)),MATCH($E$37,'TAG - A5.4.2'!$D$9:$S$9,0))","v":8.9712063721670638},9.150630499610406,9.3336431096026153,9.5203159717946662,9.710722291230562,{"$f":"INDEX('TAG - A5.4.2'!$D20:$S$1000,1+18*MAX(0,QUOTIENT(AV$10-2025,5)),MATCH($E$37,'TAG - A5.4.2'!$D$9:$S$9,0))","v":9.9049367370551735},9.9049367370551735,9.9049367370551735,9.9049367370551735,9.9049367370551735,9.9049367370551735,9.9049367370551735,9.9049367370551735,9.9049367370551735,9.9049367370551735,9.9049367370551735,9.9049367370551735,9.9049367370551735,9.9049367370551735,9.9049367370551735,9.9049367370551735,9.9049367370551735,9.9049367370551735,9.9049367370551735,9.9049367370551735,9.9049367370551735,9.9049367370551735,9.9049367370551735,9.9049367370551735,9.9049367370551735,9.9049367370551735,9.9049367370551735,9.9049367370551735,9.9049367370551735,9.9049367370551735,9.9049367370551735,9.9049367370551735,9.9049367370551735,9.9049367370551735,9.9049367370551735,9.9049367370551735]
[null,null,null,"Local Air Quality",null,null,null,null,null,"pence per vehicle km, 2023 prices",null,null,{"$f":"INDEX('TAG - A5.4.2'!$D21:$S$1000,1+18*MAX(0,QUOTIENT(M$10-2025,5)),MATCH($E$37,'TAG - A5.4.2'!$D$9:$S$9,0))","v":0.4436360704302133},0.41758390611043256,0.39306163376964864,0.36997941175637072,0.34825267429639445,{"$f":"INDEX('TAG - A5.4.2'!$D21:$S$1000,1+18*MAX(0,QUOTIENT(R$10-2025,5)),MATCH($E$37,'TAG - A5.4.2'!$D$9:$S$9,0))","v":0.32780182167123589},0.32019142976714637,0.31275772408352548,0.30549660259502459,0.29840405851072782,{"$f":"INDEX('TAG - A5.4.2'!$D21:$S$1000,1+18*MAX(0,QUOTIENT(W$10-2025,5)),MATCH($E$37,'TAG - A5.4.2'!$D$9:$S$9,0))","v":0.29147617806314707},0.29251218729271888,0.29355187886480971,0.29459526586776486,0.2956423614364499,{"$f":"INDEX('TAG - A5.4.2'!$D21:$S$1000,1+18*MAX(0,QUOTIENT(AB$10-2025,5)),MATCH($E$37,'TAG - A5.4.2'!$D$9:$S$9,0))","v":0.29669317875241663},0.30084005505550043,0.30504489218918168,0.30930850027115803,0.31363170074213081,{"$f":"INDEX('TAG - A5.4.2'!$D21:$S$1000,1+18*MAX(0,QUOTIENT(AG$10-2025,5)),MATCH($E$37,'TAG - A5.4.2'!$D$9:$S$9,0))","v":0.31801532652406606},0.32384804437283965,0.32978774007665956,0.33583637571594305,0.34199594935761646,{"$f":"INDEX('TAG - A5.4.2'!$D21:$S$1000,1+18*MAX(0,QUOTIENT(AL$10-2025,5)),MATCH($E$37,'TAG - A5.4.2'!$D$9:$S$9,0))","v":0.3482684957151439},0.3552455915600557,0.36236246423528085,0.36962191398360339,0.37702679714694487,{"$f":"INDEX('TAG - A5.4.2'!$D21:$S$1000,1+18*MAX(0,QUOTIENT(AQ$10-2025,5)),MATCH($E$37,'TAG - A5.4.2'!$D$9:$S$9,0))","v":0.38458002729023616},0.39228532700014163,0.40014500717550644,0.40816216092484214,0.41633994332901031,{"$f":"INDEX('TAG - A5.4.2'!$D21:$S$1000,1+18*MAX(0,QUOTIENT(AV$10-2025,5)),MATCH($E$37,'TAG - A5.4.2'!$D$9:$S$9,0))","v":0.42468157268287693},0.42468157268287693,0.42468157268287693,0.42468157268287693,0.42468157268287693,0.42468157268287693,0.42468157268287693,0.42468157268287693,0.42468157268287693,0.42468157268287693,0.42468157268287693,0.42468157268287693,0.42468157268287693,0.42468157268287693,0.42468157268287693,0.42468157268287693,0.42468157268287693,0.42468157268287693,0.42468157268287693,0.42468157268287693,0.42468157268287693,0.42468157268287693,0.42468157268287693,0.42468157268287693,0.42468157268287693,0.42468157268287693,0.42468157268287693,0.42468157268287693,0.42468157268287693,0.42468157268287693,0.42468157268287693,0.42468157268287693,0.42468157268287693,0.42468157268287693,0.42468157268287693,0.42468157268287693]
[null,null,null,"Noise",null,null,null,null,null,"pence per vehicle km, 2023 prices",null,null,{"$f":"INDEX('TAG - A5.4.2'!$D22:$S$1000,1+18*MAX(0,QUOTIENT(M$10-2025,5)),MATCH($E$37,'TAG - A5.4.2'!$D$9:$S$9,0))","v":0.33018279180696802},0.33678644764310739,0.34352217659596951,0.35039262012788891,0.35740047253044671,{"$f":"INDEX('TAG - A5.4.2'!$D22:$S$1000,1+18*MAX(0,QUOTIENT(R$10-2025,5)),MATCH($E$37,'TAG - A5.4.2'!$D$9:$S$9,0))","v":0.36454848198105561},0.37183945162067672,0.37927624065309024,0.38686176546615209,0.39459900077547516,{"$f":"INDEX('TAG - A5.4.2'!$D22:$S$1000,1+18*MAX(0,QUOTIENT(W$10-2025,5)),MATCH($E$37,'TAG - A5.4.2'!$D$9:$S$9,0))","v":0.40249098079098466},0.41054080040680435,0.41875161641494046,0.42712664874323925,0.43566918171810404,{"$f":"INDEX('TAG - A5.4.2'!$D22:$S$1000,1+18*MAX(0,QUOTIENT(AB$10-2025,5)),MATCH($E$37,'TAG - A5.4.2'!$D$9:$S$9,0))","v":0.44438256535246612},0.45327021665951545,0.46233562099270575,0.47158233341255984,0.48101398008081103,{"$f":"INDEX('TAG - A5.4.2'!$D22:$S$1000,1+18*MAX(0,QUOTIENT(AG$10-2025,5)),MATCH($E$37,'TAG - A5.4.2'!$D$9:$S$9,0))","v":0.4906342596824273},0.50044694487607588,0.51045588377359741,0.52066500144906935,0.5310783014780508,{"$f":"INDEX('TAG - A5.4.2'!$D22:$S$1000,1+18*MAX(0,QUOTIENT(AL$10-2025,5)),MATCH($E$37,'TAG - A5.4.2'!$D$9:$S$9,0))","v":0.54169986750761179},0.55253386485776401,0.56358454215491927,0.5748562329980178,0.58635335765797814,{"$f":"INDEX('TAG - A5.4.2'!$D22:$S$1000,1+18*MAX(0,QUOTIENT(AQ$10-2025,5)),MATCH($E$37,'TAG - A5.4.2'!$D$9:$S$9,0))","v":0.59808042481113777},0.61004203330736051,0.62224287397350775,0.63468773145297785,0.64738148608203738,{"$f":"INDEX('TAG - A5.4.2'!$D22:$S$1000,1+18*MAX(0,QUOTIENT(AV$10-2025,5)),MATCH($E$37,'TAG - A5.4.2'!$D$9:$S$9,0))","v":0.66032911580367815},0.66032911580367815,0.66032911580367815,0.66032911580367815,0.66032911580367815,0.66032911580367815,0.66032911580367815,0.66032911580367815,0.66032911580367815,0.66032911580367815,0.66032911580367815,0.66032911580367815,0.66032911580367815,0.66032911580367815,0.66032911580367815,0.66032911580367815,0.66032911580367815,0.66032911580367815,0.66032911580367815,0.66032911580367815,0.66032911580367815,0.66032911580367815,0.66032911580367815,0.66032911580367815,0.66032911580367815,0.66032911580367815,0.66032911580367815,0.66032911580367815,0.66032911580367815,0.66032911580367815,0.66032911580367815,0.66032911580367815,0.66032911580367815,0.66032911580367815,0.66032911580367815,0.66032911580367815]
[null,null,null,"Greenhouse Gases",null,null,null,null,null,"pence per vehicle km, 2023 prices",null,null,{"$f":"INDEX('TAG - A5.4.2'!$D23:$S$1000,1+18*MAX(0,QUOTIENT(M$10-2025,5)),MATCH($E$37,'TAG - A5.4.2'!$D$9:$S$9,0))","v":4.4689874547784694},4.2988436791729123,4.1351776358658343,3.9777427039298368,3.826301651816248,{"$f":"INDEX('TAG - A5.4.2'!$D23:$S$1000,1+18*MAX(0,QUOTIENT(R$10-2025,5)),MATCH($E$37,'TAG - A5.4.2'!$D$9:$S$9,0))","v":3.6806262798816749},3.514237274136649,3.3553701679618535,3.2036849210229437,3.0588568650904415,{"$f":"INDEX('TAG - A5.4.2'!$D23:$S$1000,1+18*MAX(0,QUOTIENT(W$10-2025,5)),MATCH($E$37,'TAG - A5.4.2'!$D$9:$S$9,0))","v":2.9205760091174451},2.8422370725017463,2.7659994299358925,2.6918067181748024,2.6196040858110137,{"$f":"INDEX('TAG - A5.4.2'!$D23:$S$1000,1+18*MAX(0,QUOTIENT(AB$10-2025,5)),MATCH($E$37,'TAG - A5.4.2'!$D$9:$S$9,0))","v":2.5493381527224965},2.5316443419445203,2.5140733359578631,2.4966242824296407,2.4792963349426289,{"$f":"INDEX('TAG - A5.4.2'!$D23:$S$1000,1+18*MAX(0,QUOTIENT(AG$10-2025,5)),MATCH($E$37,'TAG - A5.4.2'!$D$9:$S$9,0))","v":2.462088652954205},2.4740578554906598,2.486085245131461,2.4981711047475095,2.5103157185848564,{"$f":"INDEX('TAG - A5.4.2'!$D23:$S$1000,1+18*MAX(0,QUOTIENT(AL$10-2025,5)),MATCH($E$37,'TAG - A5.4.2'!$D$9:$S$9,0))","v":2.5225193722713866},2.5628918955976561,2.6039105747701989,2.6455857514110703,2.6879279326583503,{"$f":"INDEX('TAG - A5.4.2'!$D23:$S$1000,1+18*MAX(0,QUOTIENT(AQ$10-2025,5)),MATCH($E$37,'TAG - A5.4.2'!$D$9:$S$9,0))","v":2.7309477938152011},2.7739105099527239,2.8175491068163794,2.861874217224504,2.9068966412687738,{"$f":"INDEX('TAG - A5.4.2'!$D23:$S$1000,1+18*MAX(0,QUOTIENT(AV$10-2025,5)),MATCH($E$37,'TAG - A5.4.2'!$D$9:$S$9,0))","v":2.9526273489457147},2.9526273489457147,2.9526273489457147,2.9526273489457147,2.9526273489457147,2.9526273489457147,2.9526273489457147,2.9526273489457147,2.9526273489457147,2.9526273489457147,2.9526273489457147,2.9526273489457147,2.9526273489457147,2.9526273489457147,2.9526273489457147,2.9526273489457147,2.9526273489457147,2.9526273489457147,2.9526273489457147,2.9526273489457147,2.9526273489457147,2.9526273489457147,2.9526273489457147,2.9526273489457147,2.9526273489457147,2.9526273489457147,2.9526273489457147,2.9526273489457147,2.9526273489457147,2.9526273489457147,2.9526273489457147,2.9526273489457147,2.9526273489457147,2.9526273489457147,2.9526273489457147,2.9526273489457147]
[null,null,null,"Indirect Taxation",null,null,null,null,null,"pence per vehicle km, 2023 prices",null,null,{"$f":"INDEX('TAG - A5.4.2'!$D24:$S$1000,1+18*MAX(0,QUOTIENT(M$10-2025,5)),MATCH($E$37,'TAG - A5.4.2'!$D$9:$S$9,0))","v":-3.1991489889865394},{"$f":"$M46+($R46-$M46)*(N$10-$M$10)/($R$10-$M$10)","v":-2.7803938914095743},{"$f":"$M46+($R46-$M46)*(O$10-$M$10)/($R$10-$M$10)","v":-2.3616387938326091},{"$f":"$M46+($R46-$M46)*(P$10-$M$10)/($R$10-$M$10)","v":-1.9428836962556439},{"$f":"$M46+($R46-$M46)*(Q$10-$M$10)/($R$10-$M$10)","v":-1.5241285986786788},{"$f":"INDEX('TAG - A5.4.2'!$D24:$S$1000,1+18*MAX(0,QUOTIENT(R$10-2025,5)),MATCH($E$37,'TAG - A5.4.2'!$D$9:$S$9,0))","v":-1.1053735011017134},{"$f":"$R46+($W46-$R46)*(S$10-$R$10)/($W$10-$R$10)","v":-0.75896460762010609},{"$f":"$R46+($W46-$R46)*(T$10-$R$10)/($W$10-$R$10)","v":-0.41255571413849879},{"$f":"$R46+($W46-$R46)*(U$10-$R$10)/($W$10-$R$10)","v":-6.614682065689137E-2},{"$f":"$R46+($W46-$R46)*(V$10-$R$10)/($W$10-$R$10)","v":0.28026207282471582},{"$f":"INDEX('TAG - A5.4.2'!$D24:$S$1000,1+18*MAX(0,QUOTIENT(W$10-2025,5)),MATCH($E$37,'TAG - A5.4.2'!$D$9:$S$9,0))","v":0.62667096630632324},{"$f":"$W46+($AB46-$W46)*(X$10-$W$10)/($AB$10-$W$10)","v":0.78709609477143649},{"$f":"$W46+($AB46-$W46)*(Y$10-$W$10)/($AB$10-$W$10)","v":0.94752122323654986},{"$f":"$W46+($AB46-$W46)*(Z$10-$W$10)/($AB$10-$W$10)","v":1.1079463517016632},{"$f":"$W46+($AB46-$W46)*(AA$10-$W$10)/($AB$10-$W$10)","v":1.2683714801667765},{"$f":"INDEX('TAG - A5.4.2'!$D24:$S$1000,1+18*MAX(0,QUOTIENT(AB$10-2025,5)),MATCH($E$37,'TAG - A5.4.2'!$D$9:$S$9,0))","v":1.4287966086318897},{"$f":"$AB46+($AG46-$AB46)*(AC$10-$AB$10)/($AG$10-$AB$10)","v":1.490638965665199},{"$f":"$AB46+($AG46-$AB46)*(AD$10-$AB$10)/($AG$10-$AB$10)","v":1.5524813226985084},{"$f":"$AB46+($AG46-$AB46)*(AE$10-$AB$10)/($AG$10-$AB$10)","v":1.6143236797318177},{"$f":"$AB46+($AG46-$AB46)*(AF$10-$AB$10)/($AG$10-$AB$10)","v":1.676166036765127},{"$f":"INDEX('TAG - A5.4.2'!$D24:$S$1000,1+18*MAX(0,QUOTIENT(AG$10-2025,5)),MATCH($E$37,'TAG - A5.4.2'!$D$9:$S$9,0))","v":1.7380083937984363},{"$f":"$AG46+($AL46-$AG46)*(AH$10-$AG$10)/($AL$10-$AG$10)","v":1.7507848727675279},{"$f":"$AG46+($AL46-$AG46)*(AI$10-$AG$10)/($AL$10-$AG$10)","v":1.7635613517366193},{"$f":"$AG46+($AL46-$AG46)*(AJ$10-$AG$10)/($AL$10-$AG$10)","v":1.7763378307057109},{"$f":"$AG46+($AL46-$AG46)*(AK$10-$AG$10)/($AL$10-$AG$10)","v":1.7891143096748023},{"$f":"INDEX('TAG - A5.4.2'!$D24:$S$1000,1+18*MAX(0,QUOTIENT(AL$10-2025,5)),MATCH($E$37,'TAG - A5.4.2'!$D$9:$S$9,0))","v":1.801890788643894},{"$f":"$AL46+($AQ46-$AL46)*(AM$10-$AL$10)/($AQ$10-$AL$10)","v":1.8025667672175121},{"$f":"$AL46+($AQ46-$AL46)*(AN$10-$AL$10)/($AQ$10-$AL$10)","v":1.80324274579113},{"$f":"$AL46+($AQ46-$AL46)*(AO$10-$AL$10)/($AQ$10-$AL$10)","v":1.8039187243647481},{"$f":"$AL46+($AQ46-$AL46)*(AP$10-$AL$10)/($AQ$10-$AL$10)","v":1.804594702938366},{"$f":"INDEX('TAG - A5.4.2'!$D24:$S$1000,1+18*MAX(0,QUOTIENT(AQ$10-2025,5)),MATCH($E$37,'TAG - A5.4.2'!$D$9:$S$9,0))","v":1.8052706815119841},{"$f":"$AQ46+($AV46-$AQ46)*(AR$10-$AQ$10)/($AV$10-$AQ$10)","v":1.80590828670943},{"$f":"$AQ46+($AV46-$AQ46)*(AS$10-$AQ$10)/($AV$10-$AQ$10)","v":1.8065458919068758},{"$f":"$AQ46+($AV46-$AQ46)*(AT$10-$AQ$10)/($AV$10-$AQ$10)","v":1.8071834971043217},{"$f":"$AQ46+($AV46-$AQ46)*(AU$10-$AQ$10)/($AV$10-$AQ$10)","v":1.8078211023017674},{"$f":"INDEX('TAG - A5.4.2'!$D24:$S$1000,1+18*MAX(0,QUOTIENT(AV$10-2025,5)),MATCH($E$37,'TAG - A5.4.2'!$D$9:$S$9,0))","v":1.8084587074992133},1.8084587074992133,1.8084587074992133,1.8084587074992133,1.8084587074992133,1.8084587074992133,1.8084587074992133,1.8084587074992133,1.8084587074992133,1.8084587074992133,1.8084587074992133,1.8084587074992133,1.8084587074992133,1.8084587074992133,1.8084587074992133,1.8084587074992133,1.8084587074992133,1.8084587074992133,1.8084587074992133,1.8084587074992133,1.8084587074992133,1.8084587074992133,1.8084587074992133,1.8084587074992133,1.8084587074992133,1.8084587074992133,1.8084587074992133,1.8084587074992133,1.8084587074992133,1.8084587074992133,1.8084587074992133,1.8084587074992133,1.8084587074992133,1.8084587074992133,1.8084587074992133,1.8084587074992133]
[]
[null,null,null,"LGVs"]
[null,null,null,"Congestion",null,null,null,null,null,"pence per vehicle km, 2023 prices",null,null,{"$f":"INDEX('TAG - A5.4.2'!$T$13:$AI$1000,MATCH(IF('I-Scheme Details'!$E$61='I-Validation'!$B$31,'I-Validation'!$C$31,'I-Scheme Details'!$E$61),'TAG - A5.4.2'!$T$13:$T$18,0)+ 18 * MAX(0,QUOTIENT(M$10-2025,5)),MATCH($E$37,'TAG - A5.4.2'!$T$9:$AI$9,0))","v":116.32950031877868},{"$f":"IF(M49=0,0,$M49*($R49/$M49)^((N$10-$M$10)/($R$10-$M$10)))","v":117.22967739983899},118.13682020133172,119.05098262516373,119.97221899034375,{"$f":"INDEX('TAG - A5.4.2'!$T$13:$AI$1000,MATCH(IF('I-Scheme Details'!$E$61='I-Validation'!$B$31,'I-Validation'!$C$31,'I-Scheme Details'!$E$61),'TAG - A5.4.2'!$T$13:$T$18,0)+ 18 * MAX(0,QUOTIENT(R$10-2025,5)),MATCH($E$37,'TAG - A5.4.2'!$T$9:$AI$9,0))","v":120.90058403621011},{"$f":"IF(R49=0,0,($R49*($W49/$R49)^((S$10-$R$10)/($W$10-$R$10))))","v":120.73494510667099},120.56953310949284,120.4043477337687,120.23938866901757,{"$f":"INDEX('TAG - A5.4.2'!$T$13:$AI$1000,MATCH(IF('I-Scheme Details'!$E$61='I-Validation'!$B$31,'I-Validation'!$C$31,'I-Scheme Details'!$E$61),'TAG - A5.4.2'!$T$13:$T$18,0)+ 18 * MAX(0,QUOTIENT(W$10-2025,5)),MATCH($E$37,'TAG - A5.4.2'!$T$9:$AI$9,0))","v":120.07465560518382},{"$f":"IF(W49=0,0,($W49*($AB49/$W49)^((X$10-$W$10)/($AB$10-$W$10))))","v":122.09533464435157},124.15001872612183,126.23928010511786,128.36370066616274,{"$f":"INDEX('TAG - A5.4.2'!$T$13:$AI$1000,MATCH(IF('I-Scheme Details'!$E$61='I-Validation'!$B$31,'I-Validation'!$C$31,'I-Scheme Details'!$E$61),'TAG - A5.4.2'!$T$13:$T$18,0)+ 18 * MAX(0,QUOTIENT(AB$10-2025,5)),MATCH($E$37,'TAG - A5.4.2'!$T$9:$AI$9,0))","v":130.52387208634147},{"$f":"IF(AB49=0,0,($AB49*($AG49/$AB49)^((AC$10-$AB$10)/($AG$10-$AB$10))))","v":131.21373723354708},131.90724856373609,132.60442534828411,133.30528696042271,{"$f":"INDEX('TAG - A5.4.2'!$T$13:$AI$1000,MATCH(IF('I-Scheme Details'!$E$61='I-Validation'!$B$31,'I-Validation'!$C$31,'I-Scheme Details'!$E$61),'TAG - A5.4.2'!$T$13:$T$18,0)+ 18 * MAX(0,QUOTIENT(AG$10-2025,5)),MATCH($E$37,'TAG - A5.4.2'!$T$9:$AI$9,0))","v":134.00985287577808},{"$f":"IF(AG49=0,0,($AG49*($AL49/$AG49)^((AH$10-$AG$10)/($AL$10-$AG$10))))","v":135.11491414397122},136.22908787949609,137.35244922484773,138.4850739421552,{"$f":"INDEX('TAG - A5.4.2'!$T$13:$AI$1000,MATCH(IF('I-Scheme Details'!$E$61='I-Validation'!$B$31,'I-Validation'!$C$31,'I-Scheme Details'!$E$61),'TAG - A5.4.2'!$T$13:$T$18,0)+ 18 * MAX(0,QUOTIENT(AL$10-2025,5)),MATCH($E$37,'TAG - A5.4.2'!$T$9:$AI$9,0))","v":139.62703841829111},{"$f":"IF(AL49=0,0,($AL49*($AQ49/$AL49)^((AM$10-$AL$10)/($AQ$10-$AL$10))))","v":141.78012246307321},143.96640760526751,146.18640581414519,148.44063695367245,{"$f":"INDEX('TAG - A5.4.2'!$T$13:$AI$1000,MATCH(IF('I-Scheme Details'!$E$61='I-Validation'!$B$31,'I-Validation'!$C$31,'I-Scheme Details'!$E$61),'TAG - A5.4.2'!$T$13:$T$18,0)+ 18 * MAX(0,QUOTIENT(AQ$10-2025,5)),MATCH($E$37,'TAG - A5.4.2'!$T$9:$AI$9,0))","v":150.72962890424856},{"$f":"IF(AQ49=0,0,($AQ49*($AV49/$AQ49)^((AR$10-$AQ$10)/($AV$10-$AQ$10))))","v":153.04763961558956},155.40129808707533,157.79115253135959,160.2177595918393,{"$f":"INDEX('TAG - A5.4.2'!$T$13:$AI$1000,MATCH(IF('I-Scheme Details'!$E$61='I-Validation'!$B$31,'I-Validation'!$C$31,'I-Scheme Details'!$E$61),'TAG - A5.4.2'!$T$13:$T$18,0)+ 18 * MAX(0,QUOTIENT(AV$10-2025,5)),MATCH($E$37,'TAG - A5.4.2'!$T$9:$AI$9,0))","v":162.68168447230767},{"$f":"AV49","v":162.68168447230767},{"$f":"AW49","v":162.68168447230767},162.68168447230767,162.68168447230767,162.68168447230767,162.68168447230767,162.68168447230767,162.68168447230767,162.68168447230767,162.68168447230767,162.68168447230767,162.68168447230767,162.68168447230767,162.68168447230767,162.68168447230767,162.68168447230767,162.68168447230767,162.68168447230767,162.68168447230767,162.68168447230767,162.68168447230767,162.68168447230767,162.68168447230767,162.68168447230767,162.68168447230767,162.68168447230767,162.68168447230767,162.68168447230767,162.68168447230767,162.68168447230767,162.68168447230767,162.68168447230767,162.68168447230767,162.68168447230767,162.68168447230767]
[null,null,null,"Infrastructure",null,null,null,null,null,"pence per vehicle km, 2023 prices",null,null,{"$f":"INDEX('TAG - A5.4.2'!$T19:$AI$1000,1+18*MAX(0,QUOTIENT(M$10-2025,5)),MATCH($E$37,'TAG - A5.4.2'!$T$9:$AI$9,0))","v":0.15612568280054256},0.15833610488613495,0.16057782205213197,0.16285127737321339,0.16515692019709496,{"$f":"INDEX('TAG - A5.4.2'!$T19:$AI$1000,1+18*MAX(0,QUOTIENT(R$10-2025,5)),MATCH($E$37,'TAG - A5.4.2'!$T$9:$AI$9,0))","v":0.16749520623334221},0.17003529327899333,0.17261390108201166,0.17523161381479818,0.17788902450880587,{"$f":"INDEX('TAG - A5.4.2'!$T19:$AI$1000,1+18*MAX(0,QUOTIENT(W$10-2025,5)),MATCH($E$37,'TAG - A5.4.2'!$T$9:$AI$9,0))","v":0.18058673518888854},0.18341152628420818,0.18628050359688117,0.18919435830078141,0.19215379238132865,{"$f":"INDEX('TAG - A5.4.2'!$T19:$AI$1000,1+18*MAX(0,QUOTIENT(AB$10-2025,5)),MATCH($E$37,'TAG - A5.4.2'!$T$9:$AI$9,0))","v":0.19515951880460627},0.1978884245310539,0.200655488408892,0.20346124400163049,0.20630623233357087,{"$f":"INDEX('TAG - A5.4.2'!$T19:$AI$1000,1+18*MAX(0,QUOTIENT(AG$10-2025,5)),MATCH($E$37,'TAG - A5.4.2'!$T$9:$AI$9,0))","v":0.20919100199413035},0.21193635437347624,0.2147177358344505,0.21753561921060741,0.22039048354080973,{"$f":"INDEX('TAG - A5.4.2'!$T19:$AI$1000,1+18*MAX(0,QUOTIENT(AL$10-2025,5)),MATCH($E$37,'TAG - A5.4.2'!$T$9:$AI$9,0))","v":0.22328281415066514},0.22620077890095047,0.22915687698593196,0.23215160674994872,0.23518547304993792,{"$f":"INDEX('TAG - A5.4.2'!$T19:$AI$1000,1+18*MAX(0,QUOTIENT(AQ$10-2025,5)),MATCH($E$37,'TAG - A5.4.2'!$T$9:$AI$9,0))","v":0.23825898734054438},0.24149486890051461,0.24477469813938266,0.24809907192648528,0.25146859523745768,{"$f":"INDEX('TAG - A5.4.2'!$T19:$AI$1000,1+18*MAX(0,QUOTIENT(AV$10-2025,5)),MATCH($E$37,'TAG - A5.4.2'!$T$9:$AI$9,0))","v":0.25488388126432832},{"$f":"AV50","v":0.25488388126432832},0.25488388126432832,0.25488388126432832,0.25488388126432832,0.25488388126432832,0.25488388126432832,0.25488388126432832,0.25488388126432832,0.25488388126432832,0.25488388126432832,0.25488388126432832,0.25488388126432832,0.25488388126432832,0.25488388126432832,0.25488388126432832,0.25488388126432832,0.25488388126432832,0.25488388126432832,0.25488388126432832,0.25488388126432832,0.25488388126432832,0.25488388126432832,0.25488388126432832,0.25488388126432832,0.25488388126432832,0.25488388126432832,0.25488388126432832,0.25488388126432832,0.25488388126432832,0.25488388126432832,0.25488388126432832,0.25488388126432832,0.25488388126432832,0.25488388126432832,0.25488388126432832]
[null,null,null,"Accident",null,null,null,null,null,"pence per vehicle km, 2023 prices",null,null,{"$f":"INDEX('TAG - A5.4.2'!$T20:$AI$1000,1+18*MAX(0,QUOTIENT(M$10-2025,5)),MATCH($E$37,'TAG - A5.4.2'!$T$9:$AI$9,0))","v":4.9527418771045202},5.0517967146466107,5.1528326489395431,5.2558893019183337,5.3610070879566996,{"$f":"INDEX('TAG - A5.4.2'!$T20:$AI$1000,1+18*MAX(0,QUOTIENT(R$10-2025,5)),MATCH($E$37,'TAG - A5.4.2'!$T$9:$AI$9,0))","v":5.4682272297158336},5.5775917743101502,5.6891436097963535,5.8029264819922801,5.9189850116321256,{"$f":"INDEX('TAG - A5.4.2'!$T20:$AI$1000,1+18*MAX(0,QUOTIENT(W$10-2025,5)),MATCH($E$37,'TAG - A5.4.2'!$T$9:$AI$9,0))","v":6.0373647118647691},6.1581120061020647,6.2812742462241058,6.4068997311485871,6.5350377257715593,{"$f":"INDEX('TAG - A5.4.2'!$T20:$AI$1000,1+18*MAX(0,QUOTIENT(AB$10-2025,5)),MATCH($E$37,'TAG - A5.4.2'!$T$9:$AI$9,0))","v":6.6657384802869908},6.7990532498927303,6.9350343148905855,7.0737350011883979,7.2152097012121663,{"$f":"INDEX('TAG - A5.4.2'!$T20:$AI$1000,1+18*MAX(0,QUOTIENT(AG$10-2025,5)),MATCH($E$37,'TAG - A5.4.2'!$T$9:$AI$9,0))","v":7.3595138952364092},7.5067041731411379,7.6568382566039617,7.8099750217360402,7.9661745221707632,{"$f":"INDEX('TAG - A5.4.2'!$T20:$AI$1000,1+18*MAX(0,QUOTIENT(AL$10-2025,5)),MATCH($E$37,'TAG - A5.4.2'!$T$9:$AI$9,0))","v":8.1254980126141785},8.2880079728664615,8.4537681323237912,8.622843494970267,8.7953003648696697,{"$f":"INDEX('TAG - A5.4.2'!$T20:$AI$1000,1+18*MAX(0,QUOTIENT(AQ$10-2025,5)),MATCH($E$37,'TAG - A5.4.2'!$T$9:$AI$9,0))","v":8.9712063721670638},9.150630499610406,9.3336431096026153,9.5203159717946662,9.710722291230562,{"$f":"INDEX('TAG - A5.4.2'!$T20:$AI$1000,1+18*MAX(0,QUOTIENT(AV$10-2025,5)),MATCH($E$37,'TAG - A5.4.2'!$T$9:$AI$9,0))","v":9.9049367370551735},{"$f":"AV51","v":9.9049367370551735},9.9049367370551735,9.9049367370551735,9.9049367370551735,9.9049367370551735,9.9049367370551735,9.9049367370551735,9.9049367370551735,9.9049367370551735,9.9049367370551735,9.9049367370551735,9.9049367370551735,9.9049367370551735,9.9049367370551735,9.9049367370551735,9.9049367370551735,9.9049367370551735,9.9049367370551735,9.9049367370551735,9.9049367370551735,9.9049367370551735,9.9049367370551735,9.9049367370551735,9.9049367370551735,9.9049367370551735,9.9049367370551735,9.9049367370551735,9.9049367370551735,9.9049367370551735,9.9049367370551735,9.9049367370551735,9.9049367370551735,9.9049367370551735,9.9049367370551735,9.9049367370551735]
[null,null,null,"Local Air Quality",null,null,null,null,null,"pence per vehicle km, 2023 prices",null,null,{"$f":"INDEX('TAG - A5.4.2'!$T21:$AI$1000,1+18*MAX(0,QUOTIENT(M$10-2025,5)),MATCH($E$37,'TAG - A5.4.2'!$T$9:$AI$9,0))","v":1.0554971222475487},0.98804519487118758,0.92490380743935785,0.86579749332959033,0.8104683897140843,{"$f":"INDEX('TAG - A5.4.2'!$T21:$AI$1000,1+18*MAX(0,QUOTIENT(R$10-2025,5)),MATCH($E$37,'TAG - A5.4.2'!$T$9:$AI$9,0))","v":0.75867511258280906},0.72663127014882312,0.69594085004397932,0.66654668833717967,0.63839403550630081,{"$f":"INDEX('TAG - A5.4.2'!$T21:$AI$1000,1+18*MAX(0,QUOTIENT(W$10-2025,5)),MATCH($E$37,'TAG - A5.4.2'!$T$9:$AI$9,0))","v":0.61143045446181576},0.60394860779711801,0.59655831370247225,0.58925845188318937,0.58204791575320902,{"$f":"INDEX('TAG - A5.4.2'!$T21:$AI$1000,1+18*MAX(0,QUOTIENT(AB$10-2025,5)),MATCH($E$37,'TAG - A5.4.2'!$T$9:$AI$9,0))","v":0.57492561226735217},0.57683254334812406,0.57874579939697723,0.58066540139276213,0.58259137038391184,{"$f":"INDEX('TAG - A5.4.2'!$T21:$AI$1000,1+18*MAX(0,QUOTIENT(AG$10-2025,5)),MATCH($E$37,'TAG - A5.4.2'!$T$9:$AI$9,0))","v":0.58452372748867409},0.59128440039285979,0.59812326806650984,0.60504123491988893,0.61203921582378173,{"$f":"INDEX('TAG - A5.4.2'!$T21:$AI$1000,1+18*MAX(0,QUOTIENT(AL$10-2025,5)),MATCH($E$37,'TAG - A5.4.2'!$T$9:$AI$9,0))","v":0.61911813623048007},0.6315470714498973,0.64422552032696467,0.65715849190423159,0.67035109578189767,{"$f":"INDEX('TAG - A5.4.2'!$T21:$AI$1000,1+18*MAX(0,QUOTIENT(AQ$10-2025,5)),MATCH($E$37,'TAG - A5.4.2'!$T$9:$AI$9,0))","v":0.68380854413653103},0.69753668726798246,0.71154043665714106,0.72582532537636479,0.74039699757999489,{"$f":"INDEX('TAG - A5.4.2'!$T21:$AI$1000,1+18*MAX(0,QUOTIENT(AV$10-2025,5)),MATCH($E$37,'TAG - A5.4.2'!$T$9:$AI$9,0))","v":0.7552612107344383},{"$f":"AV52","v":0.7552612107344383},0.7552612107344383,0.7552612107344383,0.7552612107344383,0.7552612107344383,0.7552612107344383,0.7552612107344383,0.7552612107344383,0.7552612107344383,0.7552612107344383,0.7552612107344383,0.7552612107344383,0.7552612107344383,0.7552612107344383,0.7552612107344383,0.7552612107344383,0.7552612107344383,0.7552612107344383,0.7552612107344383,0.7552612107344383,0.7552612107344383,0.7552612107344383,0.7552612107344383,0.7552612107344383,0.7552612107344383,0.7552612107344383,0.7552612107344383,0.7552612107344383,0.7552612107344383,0.7552612107344383,0.7552612107344383,0.7552612107344383,0.7552612107344383,0.7552612107344383,0.7552612107344383]
[null,null,null,"Noise",null,null,null,null,null,"pence per vehicle km, 2023 prices",null,null,{"$f":"INDEX('TAG - A5.4.2'!$T22:$AI$1000,1+18*MAX(0,QUOTIENT(M$10-2025,5)),MATCH($E$37,'TAG - A5.4.2'!$T$9:$AI$9,0))","v":0.33018279180696802},0.33678644764310739,0.34352217659596951,0.35039262012788891,0.35740047253044671,{"$f":"INDEX('TAG - A5.4.2'!$T22:$AI$1000,1+18*MAX(0,QUOTIENT(R$10-2025,5)),MATCH($E$37,'TAG - A5.4.2'!$T$9:$AI$9,0))","v":0.36454848198105561},0.37183945162067672,0.37927624065309024,0.38686176546615209,0.39459900077547516,{"$f":"INDEX('TAG - A5.4.2'!$T22:$AI$1000,1+18*MAX(0,QUOTIENT(W$10-2025,5)),MATCH($E$37,'TAG - A5.4.2'!$T$9:$AI$9,0))","v":0.40249098079098466},0.41054080040680435,0.41875161641494046,0.42712664874323925,0.43566918171810404,{"$f":"INDEX('TAG - A5.4.2'!$T22:$AI$1000,1+18*MAX(0,QUOTIENT(AB$10-2025,5)),MATCH($E$37,'TAG - A5.4.2'!$T$9:$AI$9,0))","v":0.44438256535246612},0.45327021665951545,0.46233562099270575,0.47158233341255984,0.48101398008081103,{"$f":"INDEX('TAG - A5.4.2'!$T22:$AI$1000,1+18*MAX(0,QUOTIENT(AG$10-2025,5)),MATCH($E$37,'TAG - A5.4.2'!$T$9:$AI$9,0))","v":0.4906342596824273},0.50044694487607588,0.51045588377359741,0.52066500144906935,0.5310783014780508,{"$f":"INDEX('TAG - A5.4.2'!$T22:$AI$1000,1+18*MAX(0,QUOTIENT(AL$10-2025,5)),MATCH($E$37,'TAG - A5.4.2'!$T$9:$AI$9,0))","v":0.54169986750761179},0.55253386485776401,0.56358454215491927,0.5748562329980178,0.58635335765797814,{"$f":"INDEX('TAG - A5.4.2'!$T22:$AI$1000,1+18*MAX(0,QUOTIENT(AQ$10-2025,5)),MATCH($E$37,'TAG - A5.4.2'!$T$9:$AI$9,0))","v":0.59808042481113777},0.61004203330736051,0.62224287397350775,0.63468773145297785,0.64738148608203738,{"$f":"INDEX('TAG - A5.4.2'!$T22:$AI$1000,1+18*MAX(0,QUOTIENT(AV$10-2025,5)),MATCH($E$37,'TAG - A5.4.2'!$T$9:$AI$9,0))","v":0.66032911580367815},{"$f":"AV53","v":0.66032911580367815},0.66032911580367815,0.66032911580367815,0.66032911580367815,0.66032911580367815,0.66032911580367815,0.66032911580367815,0.66032911580367815,0.66032911580367815,0.66032911580367815,0.66032911580367815,0.66032911580367815,0.66032911580367815,0.66032911580367815,0.66032911580367815,0.66032911580367815,0.66032911580367815,0.66032911580367815,0.66032911580367815,0.66032911580367815,0.66032911580367815,0.66032911580367815,0.66032911580367815,0.66032911580367815,0.66032911580367815,0.66032911580367815,0.66032911580367815,0.66032911580367815,0.66032911580367815,0.66032911580367815,0.66032911580367815,0.66032911580367815,0.66032911580367815,0.66032911580367815,0.66032911580367815]
[null,null,null,"Greenhouse Gases",null,null,null,null,null,"pence per vehicle km, 2023 prices",null,null,{"$f":"INDEX('TAG - A5.4.2'!$T23:$AI$1000,1+18*MAX(0,QUOTIENT(M$10-2025,5)),MATCH($E$37,'TAG - A5.4.2'!$T$9:$AI$9,0))","v":6.4904656220361963},6.4823778245062504,6.474300105216094,6.4662324516071887,6.4581748511366444,{"$f":"INDEX('TAG - A5.4.2'!$T23:$AI$1000,1+18*MAX(0,QUOTIENT(R$10-2025,5)),MATCH($E$37,'TAG - A5.4.2'!$T$9:$AI$9,0))","v":6.4501272912772034},6.2848557325642123,6.1238189256454012,5.9669083635102593,5.8140183194225168,{"$f":"INDEX('TAG - A5.4.2'!$T23:$AI$1000,1+18*MAX(0,QUOTIENT(W$10-2025,5)),MATCH($E$37,'TAG - A5.4.2'!$T$9:$AI$9,0))","v":5.665045775681202},5.4981474852692944,5.3361661964925711,5.1789570492387993,5.0263794511291513,{"$f":"INDEX('TAG - A5.4.2'!$T23:$AI$1000,1+18*MAX(0,QUOTIENT(AB$10-2025,5)),MATCH($E$37,'TAG - A5.4.2'!$T$9:$AI$9,0))","v":4.8782969517862176},4.7892757694726491,4.7018790825472916,4.6160772465457871,4.5318411579682349,{"$f":"INDEX('TAG - A5.4.2'!$T23:$AI$1000,1+18*MAX(0,QUOTIENT(AG$10-2025,5)),MATCH($E$37,'TAG - A5.4.2'!$T$9:$AI$9,0))","v":4.4491422444074464},4.4112515058721549,4.3736834605635302,4.3364353602923709,4.29950448027419,{"$f":"INDEX('TAG - A5.4.2'!$T23:$AI$1000,1+18*MAX(0,QUOTIENT(AL$10-2025,5)),MATCH($E$37,'TAG - A5.4.2'!$T$9:$AI$9,0))","v":4.2628881189298964},4.3310995810567112,4.4004025106196103,4.4708143724423461,4.5423529108073701,{"$f":"INDEX('TAG - A5.4.2'!$T23:$AI$1000,1+18*MAX(0,QUOTIENT(AQ$10-2025,5)),MATCH($E$37,'TAG - A5.4.2'!$T$9:$AI$9,0))","v":4.6150361539275169},4.6878210665872366,4.7617538886747885,4.8368527241626369,4.9131359625456126,{"$f":"INDEX('TAG - A5.4.2'!$T23:$AI$1000,1+18*MAX(0,QUOTIENT(AV$10-2025,5)),MATCH($E$37,'TAG - A5.4.2'!$T$9:$AI$9,0))","v":4.9906222833439626},{"$f":"AV54","v":4.9906222833439626},4.9906222833439626,4.9906222833439626,4.9906222833439626,4.9906222833439626,4.9906222833439626,4.9906222833439626,4.9906222833439626,4.9906222833439626,4.9906222833439626,4.9906222833439626,4.9906222833439626,4.9906222833439626,4.9906222833439626,4.9906222833439626,4.9906222833439626,4.9906222833439626,4.9906222833439626,4.9906222833439626,4.9906222833439626,4.9906222833439626,4.9906222833439626,4.9906222833439626,4.9906222833439626,4.9906222833439626,4.9906222833439626,4.9906222833439626,4.9906222833439626,4.9906222833439626,4.9906222833439626,4.9906222833439626,4.9906222833439626,4.9906222833439626,4.9906222833439626,4.9906222833439626]
[null,null,null,"Indirect Taxation",null,null,null,null,null,"pence per vehicle km, 2023 prices",null,null,{"$f":"INDEX('TAG - A5.4.2'!$T24:$AI$1000,1+18*MAX(0,QUOTIENT(M$10-2025,5)),MATCH($E$37,'TAG - A5.4.2'!$T$9:$AI$9,0))","v":-5.0747367469764288},{"$f":"$M55+($R55-$M55)*(N$10-$M$10)/($R$10-$M$10)","v":-4.7878624882147252},{"$f":"$M55+($R55-$M55)*(O$10-$M$10)/($R$10-$M$10)","v":-4.5009882294530206},{"$f":"$M55+($R55-$M55)*(P$10-$M$10)/($R$10-$M$10)","v":-4.2141139706913169},{"$f":"$M55+($R55-$M55)*(Q$10-$M$10)/($R$10-$M$10)","v":-3.9272397119296127},{"$f":"INDEX('TAG - A5.4.2'!$T24:$AI$1000,1+18*MAX(0,QUOTIENT(R$10-2025,5)),MATCH($E$37,'TAG - A5.4.2'!$T$9:$AI$9,0))","v":-3.6403654531679086},{"$f":"$R55+($W55-$R55)*(S$10-$R$10)/($W$10-$R$10)","v":-3.3066759796054366},{"$f":"$R55+($W55-$R55)*(T$10-$R$10)/($W$10-$R$10)","v":-2.9729865060429645},{"$f":"$R55+($W55-$R55)*(U$10-$R$10)/($W$10-$R$10)","v":-2.6392970324804925},{"$f":"$R55+($W55-$R55)*(V$10-$R$10)/($W$10-$R$10)","v":-2.3056075589180205},{"$f":"INDEX('TAG - A5.4.2'!$T24:$AI$1000,1+18*MAX(0,QUOTIENT(W$10-2025,5)),MATCH($E$37,'TAG - A5.4.2'!$T$9:$AI$9,0))","v":-1.9719180853555485},{"$f":"$W55+($AB55-$W55)*(X$10-$W$10)/($AB$10-$W$10)","v":-1.8016807087041522},{"$f":"$W55+($AB55-$W55)*(Y$10-$W$10)/($AB$10-$W$10)","v":-1.6314433320527559},{"$f":"$W55+($AB55-$W55)*(Z$10-$W$10)/($AB$10-$W$10)","v":-1.4612059554013597},{"$f":"$W55+($AB55-$W55)*(AA$10-$W$10)/($AB$10-$W$10)","v":-1.2909685787499634},{"$f":"INDEX('TAG - A5.4.2'!$T24:$AI$1000,1+18*MAX(0,QUOTIENT(AB$10-2025,5)),MATCH($E$37,'TAG - A5.4.2'!$D$9:$S$9,0))","v":-1.1207312020985671},{"$f":"$AB55+($AG55-$AB55)*(AC$10-$AB$10)/($AG$10-$AB$10)","v":-1.0475270122639524},{"$f":"$AB55+($AG55-$AB55)*(AD$10-$AB$10)/($AG$10-$AB$10)","v":-0.97432282242933765},{"$f":"$AB55+($AG55-$AB55)*(AE$10-$AB$10)/($AG$10-$AB$10)","v":-0.9011186325947228},{"$f":"$AB55+($AG55-$AB55)*(AF$10-$AB$10)/($AG$10-$AB$10)","v":-0.82791444276010806},{"$f":"INDEX('TAG - A5.4.2'!$T24:$AI$1000,1+18*MAX(0,QUOTIENT(AG$10-2025,5)),MATCH($E$37,'TAG - A5.4.2'!$D$9:$S$9,0))","v":-0.75471025292549332},{"$f":"$AG55+($AL55-$AG55)*(AH$10-$AG$10)/($AL$10-$AG$10)","v":-0.72054147492785114},{"$f":"$AG55+($AL55-$AG55)*(AI$10-$AG$10)/($AL$10-$AG$10)","v":-0.68637269693020886},{"$f":"$AG55+($AL55-$AG55)*(AJ$10-$AG$10)/($AL$10-$AG$10)","v":-0.65220391893256668},{"$f":"$AG55+($AL55-$AG55)*(AK$10-$AG$10)/($AL$10-$AG$10)","v":-0.61803514093492451},{"$f":"INDEX('TAG - A5.4.2'!$T24:$AI$1000,1+18*MAX(0,QUOTIENT(AL$10-2025,5)),MATCH($E$37,'TAG - A5.4.2'!$D$9:$S$9,0))","v":-0.58386636293728222},{"$f":"$AL55+($AQ55-$AL55)*(AM$10-$AL$10)/($AQ$10-$AL$10)","v":-0.58203028965123094},{"$f":"$AL55+($AQ55-$AL55)*(AN$10-$AL$10)/($AQ$10-$AL$10)","v":-0.58019421636517965},{"$f":"$AL55+($AQ55-$AL55)*(AO$10-$AL$10)/($AQ$10-$AL$10)","v":-0.57835814307912825},{"$f":"$AL55+($AQ55-$AL55)*(AP$10-$AL$10)/($AQ$10-$AL$10)","v":-0.57652206979307696},{"$f":"INDEX('TAG - A5.4.2'!$T24:$AI$1000,1+18*MAX(0,QUOTIENT(AQ$10-2025,5)),MATCH($E$37,'TAG - A5.4.2'!$D$9:$S$9,0))","v":-0.57468599650702568},{"$f":"$AQ55+($AV55-$AQ55)*(AR$10-$AQ$10)/($AV$10-$AQ$10)","v":-0.57294857411767619},{"$f":"$AQ55+($AV55-$AQ55)*(AS$10-$AQ$10)/($AV$10-$AQ$10)","v":-0.57121115172832682},{"$f":"$AQ55+($AV55-$AQ55)*(AT$10-$AQ$10)/($AV$10-$AQ$10)","v":-0.56947372933897733},{"$f":"$AQ55+($AV55-$AQ55)*(AU$10-$AQ$10)/($AV$10-$AQ$10)","v":-0.56773630694962796},{"$f":"INDEX('TAG - A5.4.2'!$T24:$AI$1000,1+18*MAX(0,QUOTIENT(AV$10-2025,5)),MATCH($E$37,'TAG - A5.4.2'!$D$9:$S$9,0))","v":-0.56599888456027847},{"$f":"AV55","v":-0.56599888456027847},-0.56599888456027847,-0.56599888456027847,-0.56599888456027847,-0.56599888456027847,-0.56599888456027847,-0.56599888456027847,-0.56599888456027847,-0.56599888456027847,-0.56599888456027847,-0.56599888456027847,-0.56599888456027847,-0.56599888456027847,-0.56599888456027847,-0.56599888456027847,-0.56599888456027847,-0.56599888456027847,-0.56599888456027847,-0.56599888456027847,-0.56599888456027847,-0.56599888456027847,-0.56599888456027847,-0.56599888456027847,-0.56599888456027847,-0.56599888456027847,-0.56599888456027847,-0.56599888456027847,-0.56599888456027847,-0.56599888456027847,-0.56599888456027847,-0.56599888456027847,-0.56599888456027847,-0.56599888456027847,-0.56599888456027847,-0.56599888456027847]
[]
[null,null,null,"HGVs - Rigids"]
[null,null,null,"Congestion",null,null,null,null,null,"pence per vehicle km, 2023 prices",null,null,{"$f":"INDEX('TAG - A5.4.2'!$AJ$13:$AY$1000,MATCH(IF('I-Scheme Details'!$E$61='I-Validation'!$B$31,'I-Validation'!$C$31,'I-Scheme Details'!$E$61),'TAG - A5.4.2'!$AJ$13:$AJ$18,0)+ 18 * MAX(0,QUOTIENT(M$10-2025,5)),MATCH($E$37,'TAG - A5.4.2'!$AJ$9:$AY$9,0))","v":221.02605060567947},{"$f":"IF(M58=0,0,$M58*($R58/$M58)^((N$10-$M$10)/($R$10-$M$10)))","v":222.73638705969407},224.45995838253023,226.19686698781106,227.9472160816531,{"$f":"INDEX('TAG - A5.4.2'!$AJ$13:$AY$1000,MATCH(IF('I-Scheme Details'!$E$61='I-Validation'!$B$31,'I-Validation'!$C$31,'I-Scheme Details'!$E$61),'TAG - A5.4.2'!$AJ$13:$AJ$18,0)+ 18 * MAX(0,QUOTIENT(R$10-2025,5)),MATCH($E$37,'TAG - A5.4.2'!$AJ$9:$AY$9,0))","v":229.7111096687992},{"$f":"IF(R58=0,0,($R58*($W58/$R58)^((S$10-$R$10)/($W$10-$R$10))))","v":229.39639570267488},229.08211290803638,228.76826069416052,228.4548384711334,{"$f":"INDEX('TAG - A5.4.2'!$AJ$13:$AY$1000,MATCH(IF('I-Scheme Details'!$E$61='I-Validation'!$B$31,'I-Validation'!$C$31,'I-Scheme Details'!$E$61),'TAG - A5.4.2'!$AJ$13:$AJ$18,0)+ 18 * MAX(0,QUOTIENT(W$10-2025,5)),MATCH($E$37,'TAG - A5.4.2'!$AJ$9:$AY$9,0))","v":228.14184564984927},{"$f":"IF(W58=0,0,($W58*($AB58/$W58)^((X$10-$W$10)/($AB$10-$W$10))))","v":231.98113582426799},235.88503557963145,239.85463219972388,243.89103126570919,{"$f":"INDEX('TAG - A5.4.2'!$AJ$13:$AY$1000,MATCH(IF('I-Scheme Details'!$E$61='I-Validation'!$B$31,'I-Validation'!$C$31,'I-Scheme Details'!$E$61),'TAG - A5.4.2'!$AJ$13:$AJ$18,0)+ 18 * MAX(0,QUOTIENT(AB$10-2025,5)),MATCH($E$37,'TAG - A5.4.2'!$AJ$9:$AY$9,0))","v":247.99535696404877},{"$f":"IF(AB58=0,0,($AB58*($AG58/$AB58)^((AC$10-$AB$10)/($AG$10-$AB$10))))","v":249.30610074373945},250.62377227109855,251.94840816173976,253.28004522480313,{"$f":"INDEX('TAG - A5.4.2'!$AJ$13:$AY$1000,MATCH(IF('I-Scheme Details'!$E$61='I-Validation'!$B$31,'I-Validation'!$C$31,'I-Scheme Details'!$E$61),'TAG - A5.4.2'!$AJ$13:$AJ$18,0)+ 18 * MAX(0,QUOTIENT(AG$10-2025,5)),MATCH($E$37,'TAG - A5.4.2'!$AJ$9:$AY$9,0))","v":254.61872046397835},{"$f":"IF(AG58=0,0,($AG58*($AL58/$AG58)^((AH$10-$AG$10)/($AL$10-$AG$10))))","v":256.7183368735453},258.83526697104259,260.96965352721065,263.12164049009488,{"$f":"INDEX('TAG - A5.4.2'!$AJ$13:$AY$1000,MATCH(IF('I-Scheme Details'!$E$61='I-Validation'!$B$31,'I-Validation'!$C$31,'I-Scheme Details'!$E$61),'TAG - A5.4.2'!$AJ$13:$AJ$18,0)+ 18 * MAX(0,QUOTIENT(AL$10-2025,5)),MATCH($E$37,'TAG - A5.4.2'!$AJ$9:$AY$9,0))","v":265.29137299475309},{"$f":"IF(AL58=0,0,($AL58*($AQ58/$AL58)^((AM$10-$AL$10)/($AQ$10-$AL$10))))","v":269.38223267983909},273.53617445000828,277.75417104687585,282.03721021197765,{"$f":"INDEX('TAG - A5.4.2'!$AJ$13:$AY$1000,MATCH(IF('I-Scheme Details'!$E$61='I-Validation'!$B$31,'I-Validation'!$C$31,'I-Scheme Details'!$E$61),'TAG - A5.4.2'!$AJ$13:$AJ$18,0)+ 18 * MAX(0,QUOTIENT(AQ$10-2025,5)),MATCH($E$37,'TAG - A5.4.2'!$AJ$9:$AY$9,0))","v":286.38629491807222},{"$f":"IF(AQ58=0,0,($AQ58*($AV58/$AQ58)^((AR$10-$AQ$10)/($AV$10-$AQ$10))))","v":290.79051526962013},295.26246636544317,299.80318980958327,304.41374322449468,{"$f":"INDEX('TAG - A5.4.2'!$AJ$13:$AY$1000,MATCH(IF('I-Scheme Details'!$E$61='I-Validation'!$B$31,'I-Validation'!$C$31,'I-Scheme Details'!$E$61),'TAG - A5.4.2'!$AJ$13:$AJ$18,0)+ 18 * MAX(0,QUOTIENT(AV$10-2025,5)),MATCH($E$37,'TAG - A5.4.2'!$AJ$9:$AY$9,0))","v":309.09520049738455},{"$f":"AV58","v":309.09520049738455},{"$f":"AW58","v":309.09520049738455},309.09520049738455,309.09520049738455,309.09520049738455,309.09520049738455,309.09520049738455,309.09520049738455,309.09520049738455,309.09520049738455,309.09520049738455,309.09520049738455,309.09520049738455,309.09520049738455,309.09520049738455,309.09520049738455,309.09520049738455,309.09520049738455,309.09520049738455,309.09520049738455,309.09520049738455,309.09520049738455,309.09520049738455,309.09520049738455,309.09520049738455,309.09520049738455,309.09520049738455,309.09520049738455,309.09520049738455,309.09520049738455,309.09520049738455,309.09520049738455,309.09520049738455,309.09520049738455,309.09520049738455]
[null,null,null,"Infrastructure",null,null,null,null,null,"pence per vehicle km, 2023 prices",null,null,{"$f":"INDEX('TAG - A5.4.2'!$AJ19:$AY$1000,1+18*MAX(0,QUOTIENT(M$10-2025,5)),MATCH($E$37,'TAG - A5.4.2'!$AJ$9:$AY$9,0))","v":5.6205245808195317},5.7000997759008571,5.7808015938767507,5.8626459854356812,5.9456491270954182,{"$f":"INDEX('TAG - A5.4.2'!$AJ19:$AY$1000,1+18*MAX(0,QUOTIENT(R$10-2025,5)),MATCH($E$37,'TAG - A5.4.2'!$AJ$9:$AY$9,0))","v":6.0298274244003194},6.1212705580437596,6.2141004389524195,6.3083380973327348,6.404004882317011,{"$f":"INDEX('TAG - A5.4.2'!$AJ19:$AY$1000,1+18*MAX(0,QUOTIENT(W$10-2025,5)),MATCH($E$37,'TAG - A5.4.2'!$AJ$9:$AY$9,0))","v":6.5011224667999867},6.6028149462314936,6.7060981294877218,6.8109968988281295,6.9175365257278312,{"$f":"INDEX('TAG - A5.4.2'!$AJ19:$AY$1000,1+18*MAX(0,QUOTIENT(AB$10-2025,5)),MATCH($E$37,'TAG - A5.4.2'!$AJ$9:$AY$9,0))","v":7.025742676965824},7.1239832831179379,7.223597582720112,7.3246047840586952,7.4270243640085498,{"$f":"INDEX('TAG - A5.4.2'!$AJ19:$AY$1000,1+18*MAX(0,QUOTIENT(AG$10-2025,5)),MATCH($E$37,'TAG - A5.4.2'!$AJ$9:$AY$9,0))","v":7.5308760717886916},7.6297087574451421,7.7298384900402173,7.8312822915818661,7.9340574074691466,{"$f":"INDEX('TAG - A5.4.2'!$AJ19:$AY$1000,1+18*MAX(0,QUOTIENT(AL$10-2025,5)),MATCH($E$37,'TAG - A5.4.2'!$AJ$9:$AY$9,0))","v":8.0381813094239423},8.1432280404342148,8.2496475714935489,8.3574578429981532,8.4666770297977632,{"$f":"INDEX('TAG - A5.4.2'!$AJ19:$AY$1000,1+18*MAX(0,QUOTIENT(AQ$10-2025,5)),MATCH($E$37,'TAG - A5.4.2'!$AJ$9:$AY$9,0))","v":8.5773235442595972},8.6938152804185265,8.8118891330177753,8.9315665893534693,9.0528694285484761,{"$f":"INDEX('TAG - A5.4.2'!$AJ19:$AY$1000,1+18*MAX(0,QUOTIENT(AV$10-2025,5)),MATCH($E$37,'TAG - A5.4.2'!$AJ$9:$AY$9,0))","v":9.1758197255158187},{"$f":"AV59","v":9.1758197255158187},9.1758197255158187,9.1758197255158187,9.1758197255158187,9.1758197255158187,9.1758197255158187,9.1758197255158187,9.1758197255158187,9.1758197255158187,9.1758197255158187,9.1758197255158187,9.1758197255158187,9.1758197255158187,9.1758197255158187,9.1758197255158187,9.1758197255158187,9.1758197255158187,9.1758197255158187,9.1758197255158187,9.1758197255158187,9.1758197255158187,9.1758197255158187,9.1758197255158187,9.1758197255158187,9.1758197255158187,9.1758197255158187,9.1758197255158187,9.1758197255158187,9.1758197255158187,9.1758197255158187,9.1758197255158187,9.1758197255158187,9.1758197255158187,9.1758197255158187,9.1758197255158187]
[null,null,null,"Accident",null,null,null,null,null,"pence per vehicle km, 2023 prices",null,null,{"$f":"INDEX('TAG - A5.4.2'!$AJ20:$AY$1000,1+18*MAX(0,QUOTIENT(M$10-2025,5)),MATCH($E$37,'TAG - A5.4.2'!$AJ$9:$AY$9,0))","v":5.2829246689114884},5.3885831622897182,5.4963548255355121,5.6062819220462226,5.7184075604871474,{"$f":"INDEX('TAG - A5.4.2'!$AJ20:$AY$1000,1+18*MAX(0,QUOTIENT(R$10-2025,5)),MATCH($E$37,'TAG - A5.4.2'!$AJ$9:$AY$9,0))","v":5.8327757116968897},5.9494312259308275,6.0684198504494438,6.1897882474584334,6.3135840124076026,{"$f":"INDEX('TAG - A5.4.2'!$AJ20:$AY$1000,1+18*MAX(0,QUOTIENT(W$10-2025,5)),MATCH($E$37,'TAG - A5.4.2'!$AJ$9:$AY$9,0))","v":6.4398556926557546},6.5686528065088696,6.7000258626390474,6.8340263798918279,6.9707069074896646,{"$f":"INDEX('TAG - A5.4.2'!$AJ20:$AY$1000,1+18*MAX(0,QUOTIENT(AB$10-2025,5)),MATCH($E$37,'TAG - A5.4.2'!$AJ$9:$AY$9,0))","v":7.1101210456394579},7.2523234665522471,7.3973699358832921,7.5453173346009574,7.6962236812929765,{"$f":"INDEX('TAG - A5.4.2'!$AJ20:$AY$1000,1+18*MAX(0,QUOTIENT(AG$10-2025,5)),MATCH($E$37,'TAG - A5.4.2'!$AJ$9:$AY$9,0))","v":7.8501481549188368},8.0071511180172141,8.1672941403775585,8.3306400231851097,8.4972528236488127,{"$f":"INDEX('TAG - A5.4.2'!$AJ20:$AY$1000,1+18*MAX(0,QUOTIENT(AL$10-2025,5)),MATCH($E$37,'TAG - A5.4.2'!$AJ$9:$AY$9,0))","v":8.6671978801217886},8.8405418377242242,9.0173526744787083,9.1976997279682848,9.3816537225276502,{"$f":"INDEX('TAG - A5.4.2'!$AJ20:$AY$1000,1+18*MAX(0,QUOTIENT(AQ$10-2025,5)),MATCH($E$37,'TAG - A5.4.2'!$AJ$9:$AY$9,0))","v":9.5692867969782043},9.7606725329177682,9.955885983576124,10.155003703247646,10.358103777312598,{"$f":"INDEX('TAG - A5.4.2'!$AJ20:$AY$1000,1+18*MAX(0,QUOTIENT(AV$10-2025,5)),MATCH($E$37,'TAG - A5.4.2'!$AJ$9:$AY$9,0))","v":10.56526585285885},{"$f":"AV60","v":10.56526585285885},10.56526585285885,10.56526585285885,10.56526585285885,10.56526585285885,10.56526585285885,10.56526585285885,10.56526585285885,10.56526585285885,10.56526585285885,10.56526585285885,10.56526585285885,10.56526585285885,10.56526585285885,10.56526585285885,10.56526585285885,10.56526585285885,10.56526585285885,10.56526585285885,10.56526585285885,10.56526585285885,10.56526585285885,10.56526585285885,10.56526585285885,10.56526585285885,10.56526585285885,10.56526585285885,10.56526585285885,10.56526585285885,10.56526585285885,10.56526585285885,10.56526585285885,10.56526585285885,10.56526585285885,10.56526585285885]
[null,null,null,"Local Air Quality",null,null,null,null,null,"pence per vehicle km, 2023 prices",null,null,{"$f":"INDEX('TAG - A5.4.2'!$AJ21:$AY$1000,1+18*MAX(0,QUOTIENT(M$10-2025,5)),MATCH($E$37,'TAG - A5.4.2'!$AJ$9:$AY$9,0))","v":1.6589183743005187},1.6384561550685899,1.6182463306635448,1.5982857878771863,1.5785714519017298,{"$f":"INDEX('TAG - A5.4.2'!$AJ21:$AY$1000,1+18*MAX(0,QUOTIENT(R$10-2025,5)),MATCH($E$37,'TAG - A5.4.2'!$AJ$9:$AY$9,0))","v":1.5591002858561449},1.5876025581029458,1.6166258869684906,1.6461797980091133,1.6762739909200426,{"$f":"INDEX('TAG - A5.4.2'!$AJ21:$AY$1000,1+18*MAX(0,QUOTIENT(W$10-2025,5)),MATCH($E$37,'TAG - A5.4.2'!$AJ$9:$AY$9,0))","v":1.7069183427188739},1.7462727105419098,1.7865344247962252,1.8277244050796149,1.8698640533079365,{"$f":"INDEX('TAG - A5.4.2'!$AJ21:$AY$1000,1+18*MAX(0,QUOTIENT(AB$10-2025,5)),MATCH($E$37,'TAG - A5.4.2'!$AJ$9:$AY$9,0))","v":1.9129752648353371},1.9556350050937934,1.9992460662984068,2.0438296631011452,2.08940748324506,{"$f":"INDEX('TAG - A5.4.2'!$AJ21:$AY$1000,1+18*MAX(0,QUOTIENT(AG$10-2025,5)),MATCH($E$37,'TAG - A5.4.2'!$AJ$9:$AY$9,0))","v":2.1360016981143155},2.1819314861644017,2.2288488883311746,2.2767751409774597,2.325731937105064,{"$f":"INDEX('TAG - A5.4.2'!$AJ21:$AY$1000,1+18*MAX(0,QUOTIENT(AL$10-2025,5)),MATCH($E$37,'TAG - A5.4.2'!$AJ$9:$AY$9,0))","v":2.3757414361737461},2.4259495296077542,2.4772187034303501,2.5295713821455128,2.583030464168893,{"$f":"INDEX('TAG - A5.4.2'!$AJ21:$AY$1000,1+18*MAX(0,QUOTIENT(AQ$10-2025,5)),MATCH($E$37,'TAG - A5.4.2'!$AJ$9:$AY$9,0))","v":2.6376193318432946},2.693771829924906,2.7511197632244579,2.8096885814620709,2.8695042761590823,{"$f":"INDEX('TAG - A5.4.2'!$AJ21:$AY$1000,1+18*MAX(0,QUOTIENT(AV$10-2025,5)),MATCH($E$37,'TAG - A5.4.2'!$AJ$9:$AY$9,0))","v":2.9305933921724967},{"$f":"AV61","v":2.9305933921724967},2.9305933921724967,2.9305933921724967,2.9305933921724967,2.9305933921724967,2.9305933921724967,2.9305933921724967,2.9305933921724967,2.9305933921724967,2.9305933921724967,2.9305933921724967,2.9305933921724967,2.9305933921724967,2.9305933921724967,2.9305933921724967,2.9305933921724967,2.9305933921724967,2.9305933921724967,2.9305933921724967,2.9305933921724967,2.9305933921724967,2.9305933921724967,2.9305933921724967,2.9305933921724967,2.9305933921724967,2.9305933921724967,2.9305933921724967,2.9305933921724967,2.9305933921724967,2.9305933921724967,2.9305933921724967,2.9305933921724967,2.9305933921724967,2.9305933921724967,2.9305933921724967]
[null,null,null,"Noise",null,null,null,null,null,"pence per vehicle km, 2023 prices",null,null,{"$f":"INDEX('TAG - A5.4.2'!$AJ22:$AY$1000,1+18*MAX(0,QUOTIENT(M$10-2025,5)),MATCH($E$37,'TAG - A5.4.2'!$AJ$9:$AY$9,0))","v":8.2545697951741985},8.4196611910776831,8.5880544148992364,8.7598155031972222,8.9350118132611662,{"$f":"INDEX('TAG - A5.4.2'!$AJ22:$AY$1000,1+18*MAX(0,QUOTIENT(R$10-2025,5)),MATCH($E$37,'TAG - A5.4.2'!$AJ$9:$AY$9,0))","v":9.1137120495263897},9.2959862905169182,9.4819060163272564,9.6715441366538002,9.8649750193868773,{"$f":"INDEX('TAG - A5.4.2'!$AJ22:$AY$1000,1+18*MAX(0,QUOTIENT(W$10-2025,5)),MATCH($E$37,'TAG - A5.4.2'!$AJ$9:$AY$9,0))","v":10.062274519774615},10.263520010170108,10.46879041037351,10.678166218580978,10.891729542952598,{"$f":"INDEX('TAG - A5.4.2'!$AJ22:$AY$1000,1+18*MAX(0,QUOTIENT(AB$10-2025,5)),MATCH($E$37,'TAG - A5.4.2'!$AJ$9:$AY$9,0))","v":11.109564133811652},11.331755416487885,11.558390524817643,11.789558335313995,12.025349502020276,{"$f":"INDEX('TAG - A5.4.2'!$AJ22:$AY$1000,1+18*MAX(0,QUOTIENT(AG$10-2025,5)),MATCH($E$37,'TAG - A5.4.2'!$AJ$9:$AY$9,0))","v":12.265856492060681},12.511173621901895,12.761397094339932,13.016625036226733,13.276957536951269,{"$f":"INDEX('TAG - A5.4.2'!$AJ22:$AY$1000,1+18*MAX(0,QUOTIENT(AL$10-2025,5)),MATCH($E$37,'TAG - A5.4.2'!$AJ$9:$AY$9,0))","v":13.542496687690296},13.813346621444103,14.089613553872983,14.371405824950441,14.658833941449451,{"$f":"INDEX('TAG - A5.4.2'!$AJ22:$AY$1000,1+18*MAX(0,QUOTIENT(AQ$10-2025,5)),MATCH($E$37,'TAG - A5.4.2'!$AJ$9:$AY$9,0))","v":14.952010620278442},15.25105083268401,15.556071849337691,15.867193286324444,16.184537152050932,{"$f":"INDEX('TAG - A5.4.2'!$AJ22:$AY$1000,1+18*MAX(0,QUOTIENT(AV$10-2025,5)),MATCH($E$37,'TAG - A5.4.2'!$AJ$9:$AY$9,0))","v":16.508227895091952},{"$f":"AV62","v":16.508227895091952},16.508227895091952,16.508227895091952,16.508227895091952,16.508227895091952,16.508227895091952,16.508227895091952,16.508227895091952,16.508227895091952,16.508227895091952,16.508227895091952,16.508227895091952,16.508227895091952,16.508227895091952,16.508227895091952,16.508227895091952,16.508227895091952,16.508227895091952,16.508227895091952,16.508227895091952,16.508227895091952,16.508227895091952,16.508227895091952,16.508227895091952,16.508227895091952,16.508227895091952,16.508227895091952,16.508227895091952,16.508227895091952,16.508227895091952,16.508227895091952,16.508227895091952,16.508227895091952,16.508227895091952,16.508227895091952]
[null,null,null,"Greenhouse Gases",null,null,null,null,null,"pence per vehicle km, 2023 prices",null,null,{"$f":"INDEX('TAG - A5.4.2'!$AJ23:$AY$1000,1+18*MAX(0,QUOTIENT(M$10-2025,5)),MATCH($E$37,'TAG - A5.4.2'!$AJ$9:$AY$9,0))","v":21.728676365949898},21.81805606060329,21.907803413630425,21.99791993737346,22.088407150395479,{"$f":"INDEX('TAG - A5.4.2'!$AJ23:$AY$1000,1+18*MAX(0,QUOTIENT(R$10-2025,5)),MATCH($E$37,'TAG - A5.4.2'!$AJ$9:$AY$9,0))","v":22.179266577506091},22.184250853290362,22.189236249175018,22.194222765411784,22.199210402252422,{"$f":"INDEX('TAG - A5.4.2'!$AJ23:$AY$1000,1+18*MAX(0,QUOTIENT(W$10-2025,5)),MATCH($E$37,'TAG - A5.4.2'!$AJ$9:$AY$9,0))","v":22.204199159948772},22.351111690804427,22.49899625814593,22.647859293384695,22.797707270485148,{"$f":"INDEX('TAG - A5.4.2'!$AJ23:$AY$1000,1+18*MAX(0,QUOTIENT(AB$10-2025,5)),MATCH($E$37,'TAG - A5.4.2'!$AJ$9:$AY$9,0))","v":22.948546706246233},23.215612679295248,23.485786658915377,23.759104814839279,24.035603737728437,{"$f":"INDEX('TAG - A5.4.2'!$AJ23:$AY$1000,1+18*MAX(0,QUOTIENT(AG$10-2025,5)),MATCH($E$37,'TAG - A5.4.2'!$AJ$9:$AY$9,0))","v":24.315320444071752},24.632441492069603,24.953698441106255,25.279145231711695,25.608836507909739,{"$f":"INDEX('TAG - A5.4.2'!$AJ23:$AY$1000,1+18*MAX(0,QUOTIENT(AL$10-2025,5)),MATCH($E$37,'TAG - A5.4.2'!$AJ$9:$AY$9,0))","v":25.94282762639298},26.353537270294233,26.770748996929985,27.19456574296245,27.625092074678832,{"$f":"INDEX('TAG - A5.4.2'!$AJ23:$AY$1000,1+18*MAX(0,QUOTIENT(AQ$10-2025,5)),MATCH($E$37,'TAG - A5.4.2'!$AJ$9:$AY$9,0))","v":28.062434213790453},28.508202323752393,28.961051402041782,29.421093928917607,29.888444171373106,{"$f":"INDEX('TAG - A5.4.2'!$AJ23:$AY$1000,1+18*MAX(0,QUOTIENT(AV$10-2025,5)),MATCH($E$37,'TAG - A5.4.2'!$AJ$9:$AY$9,0))","v":30.363218211517797},{"$f":"AV63","v":30.363218211517797},30.363218211517797,30.363218211517797,30.363218211517797,30.363218211517797,30.363218211517797,30.363218211517797,30.363218211517797,30.363218211517797,30.363218211517797,30.363218211517797,30.363218211517797,30.363218211517797,30.363218211517797,30.363218211517797,30.363218211517797,30.363218211517797,30.363218211517797,30.363218211517797,30.363218211517797,30.363218211517797,30.363218211517797,30.363218211517797,30.363218211517797,30.363218211517797,30.363218211517797,30.363218211517797,30.363218211517797,30.363218211517797,30.363218211517797,30.363218211517797,30.363218211517797,30.363218211517797,30.363218211517797,30.363218211517797]
[null,null,null,"Indirect Taxation",null,null,null,null,null,"pence per vehicle km, 2023 prices",null,null,{"$f":"INDEX('TAG - A5.4.2'!$AJ24:$AY$1000,1+18*MAX(0,QUOTIENT(M$10-2025,5)),MATCH($E$37,'TAG - A5.4.2'!$AJ$9:$AY$9,0))","v":-17.976027768344196},{"$f":"$M64+($R64-$M64)*(N$10-$M$10)/($R$10-$M$10)","v":-17.912023621622442},{"$f":"$M64+($R64-$M64)*(O$10-$M$10)/($R$10-$M$10)","v":-17.848019474900688},{"$f":"$M64+($R64-$M64)*(P$10-$M$10)/($R$10-$M$10)","v":-17.784015328178931},{"$f":"$M64+($R64-$M64)*(Q$10-$M$10)/($R$10-$M$10)","v":-17.720011181457178},{"$f":"INDEX('TAG - A5.4.2'!$AJ24:$AY$1000,1+18*MAX(0,QUOTIENT(R$10-2025,5)),MATCH($E$37,'TAG - A5.4.2'!$AJ$9:$AY$9,0))","v":-17.656007034735424},{"$f":"$R64+($W64-$R64)*(S$10-$R$10)/($W$10-$R$10)","v":-17.35665107943797},{"$f":"$R64+($W64-$R64)*(T$10-$R$10)/($W$10-$R$10)","v":-17.057295124140516},{"$f":"$R64+($W64-$R64)*(U$10-$R$10)/($W$10-$R$10)","v":-16.757939168843063},{"$f":"$R64+($W64-$R64)*(V$10-$R$10)/($W$10-$R$10)","v":-16.458583213545609},{"$f":"INDEX('TAG - A5.4.2'!$AJ24:$AY$1000,1+18*MAX(0,QUOTIENT(W$10-2025,5)),MATCH($E$37,'TAG - A5.4.2'!$AJ$9:$AY$9,0))","v":-16.159227258248155},{"$f":"$W64+($AB64-$W64)*(X$10-$W$10)/($AB$10-$W$10)","v":-15.979311331584436},{"$f":"$W64+($AB64-$W64)*(Y$10-$W$10)/($AB$10-$W$10)","v":-15.799395404920716},{"$f":"$W64+($AB64-$W64)*(Z$10-$W$10)/($AB$10-$W$10)","v":-15.619479478256995},{"$f":"$W64+($AB64-$W64)*(AA$10-$W$10)/($AB$10-$W$10)","v":-15.439563551593276},{"$f":"INDEX('TAG - A5.4.2'!$AJ24:$AY$1000,1+18*MAX(0,QUOTIENT(AB$10-2025,5)),MATCH($E$37,'TAG - A5.4.2'!$AJ$9:$AY$9,0))","v":-15.259647624929556},{"$f":"$AB64+($AG64-$AB64)*(AC$10-$AB$10)/($AG$10-$AB$10)","v":-15.165674644549116},{"$f":"$AB64+($AG64-$AB64)*(AD$10-$AB$10)/($AG$10-$AB$10)","v":-15.071701664168677},{"$f":"$AB64+($AG64-$AB64)*(AE$10-$AB$10)/($AG$10-$AB$10)","v":-14.977728683788236},{"$f":"$AB64+($AG64-$AB64)*(AF$10-$AB$10)/($AG$10-$AB$10)","v":-14.883755703407797},{"$f":"INDEX('TAG - A5.4.2'!$AJ24:$AY$1000,1+18*MAX(0,QUOTIENT(AG$10-2025,5)),MATCH($E$37,'TAG - A5.4.2'!$AJ$9:$AY$9,0))","v":-14.789782723027356},{"$f":"$AG64+($AL64-$AG64)*(AH$10-$AG$10)/($AL$10-$AG$10)","v":-14.718658646605975},{"$f":"$AG64+($AL64-$AG64)*(AI$10-$AG$10)/($AL$10-$AG$10)","v":-14.647534570184597},{"$f":"$AG64+($AL64-$AG64)*(AJ$10-$AG$10)/($AL$10-$AG$10)","v":-14.576410493763216},{"$f":"$AG64+($AL64-$AG64)*(AK$10-$AG$10)/($AL$10-$AG$10)","v":-14.505286417341837},{"$f":"INDEX('TAG - A5.4.2'!$AJ24:$AY$1000,1+18*MAX(0,QUOTIENT(AL$10-2025,5)),MATCH($E$37,'TAG - A5.4.2'!$AJ$9:$AY$9,0))","v":-14.434162340920457},{"$f":"$AL64+($AQ64-$AL64)*(AM$10-$AL$10)/($AQ$10-$AL$10)","v":-14.403750037868642},{"$f":"$AL64+($AQ64-$AL64)*(AN$10-$AL$10)/($AQ$10-$AL$10)","v":-14.373337734816829},{"$f":"$AL64+($AQ64-$AL64)*(AO$10-$AL$10)/($AQ$10-$AL$10)","v":-14.342925431765014},{"$f":"$AL64+($AQ64-$AL64)*(AP$10-$AL$10)/($AQ$10-$AL$10)","v":-14.312513128713201},{"$f":"INDEX('TAG - A5.4.2'!$AJ24:$AY$1000,1+18*MAX(0,QUOTIENT(AQ$10-2025,5)),MATCH($E$37,'TAG - A5.4.2'!$AJ$9:$AY$9,0))","v":-14.282100825661386},{"$f":"$AQ64+($AV64-$AQ64)*(AR$10-$AQ$10)/($AV$10-$AQ$10)","v":-14.252753705878991},{"$f":"$AQ64+($AV64-$AQ64)*(AS$10-$AQ$10)/($AV$10-$AQ$10)","v":-14.223406586096594},{"$f":"$AQ64+($AV64-$AQ64)*(AT$10-$AQ$10)/($AV$10-$AQ$10)","v":-14.194059466314199},{"$f":"$AQ64+($AV64-$AQ64)*(AU$10-$AQ$10)/($AV$10-$AQ$10)","v":-14.164712346531802},{"$f":"INDEX('TAG - A5.4.2'!$AJ24:$AY$1000,1+18*MAX(0,QUOTIENT(AV$10-2025,5)),MATCH($E$37,'TAG - A5.4.2'!$AJ$9:$AY$9,0))","v":-14.135365226749407},{"$f":"AV64","v":-14.135365226749407},-14.135365226749407,-14.135365226749407,-14.135365226749407,-14.135365226749407,-14.135365226749407,-14.135365226749407,-14.135365226749407,-14.135365226749407,-14.135365226749407,-14.135365226749407,-14.135365226749407,-14.135365226749407,-14.135365226749407,-14.135365226749407,-14.135365226749407,-14.135365226749407,-14.135365226749407,-14.135365226749407,-14.135365226749407,-14.135365226749407,-14.135365226749407,-14.135365226749407,-14.135365226749407,-14.135365226749407,-14.135365226749407,-14.135365226749407,-14.135365226749407,-14.135365226749407,-14.135365226749407,-14.135365226749407,-14.135365226749407,-14.135365226749407,-14.135365226749407,-14.135365226749407]
[]
[null,null,null,"HGVs - Artics"]
[null,null,null,"Congestion",null,null,null,null,null,"pence per vehicle km, 2023 prices",null,null,{"$f":"INDEX('TAG - A5.4.2'!$AZ$13:$BO$1000,MATCH(IF('I-Scheme Details'!$E$61='I-Validation'!$B$31,'I-Validation'!$C$31,'I-Scheme Details'!$E$61),'TAG - A5.4.2'!$AZ$13:$AZ$18,0)+ 18 * MAX(0,QUOTIENT(M$10-2025,5)),MATCH($E$37,'TAG - A5.4.2'!$AZ$9:$BO$9,0))","v":337.35555092445816},{"$f":"IF(M67=0,0,$M67*($R67/$M67)^((N$10-$M$10)/($R$10-$M$10)))","v":339.96606445953307},342.59677858386192,345.24784961297479,347.91943507199682,{"$f":"INDEX('TAG - A5.4.2'!$AZ$13:$BO$1000,MATCH(IF('I-Scheme Details'!$E$61='I-Validation'!$B$31,'I-Validation'!$C$31,'I-Scheme Details'!$E$61),'TAG - A5.4.2'!$AZ$13:$AZ$18,0)+ 18 * MAX(0,QUOTIENT(R$10-2025,5)),MATCH($E$37,'TAG - A5.4.2'!$AZ$9:$BO$9,0))","v":350.61169370500932},{"$f":"IF(R67=0,0,($R67*($W67/$R67)^((S$10-$R$10)/($W$10-$R$10))))","v":350.13134080934583},349.65164601752923,349.17260842792922,348.69422714015093,{"$f":"INDEX('TAG - A5.4.2'!$AZ$13:$BO$1000,MATCH(IF('I-Scheme Details'!$E$61='I-Validation'!$B$31,'I-Validation'!$C$31,'I-Scheme Details'!$E$61),'TAG - A5.4.2'!$AZ$13:$AZ$18,0)+ 18 * MAX(0,QUOTIENT(W$10-2025,5)),MATCH($E$37,'TAG - A5.4.2'!$AZ$9:$BO$9,0))","v":348.21650125503305},{"$f":"IF(W67=0,0,($W67*($AB67/$W67)^((X$10-$W$10)/($AB$10-$W$10))))","v":354.07647046861962},360.03505430575325,366.09391230484175,372.25473193187202,{"$f":"INDEX('TAG - A5.4.2'!$AZ$13:$BO$1000,MATCH(IF('I-Scheme Details'!$E$61='I-Validation'!$B$31,'I-Validation'!$C$31,'I-Scheme Details'!$E$61),'TAG - A5.4.2'!$AZ$13:$AZ$18,0)+ 18 * MAX(0,QUOTIENT(AB$10-2025,5)),MATCH($E$37,'TAG - A5.4.2'!$AZ$9:$BO$9,0))","v":378.51922905039027},{"$f":"IF(AB67=0,0,($AB67*($AG67/$AB67)^((AC$10-$AB$10)/($AG$10-$AB$10))))","v":380.51983797728656},382.53102083483475,384.5528335100239,386.58533218522598,{"$f":"INDEX('TAG - A5.4.2'!$AZ$13:$BO$1000,MATCH(IF('I-Scheme Details'!$E$61='I-Validation'!$B$31,'I-Validation'!$C$31,'I-Scheme Details'!$E$61),'TAG - A5.4.2'!$AZ$13:$AZ$18,0)+ 18 * MAX(0,QUOTIENT(AG$10-2025,5)),MATCH($E$37,'TAG - A5.4.2'!$AZ$9:$BO$9,0))","v":388.62857333975649},{"$f":"IF(AG67=0,0,($AG67*($AL67/$AG67)^((AH$10-$AG$10)/($AL$10-$AG$10))))","v":391.83325101751655},395.06435485053862,398.32210275205847,401.6067144322501,{"$f":"INDEX('TAG - A5.4.2'!$AZ$13:$BO$1000,MATCH(IF('I-Scheme Details'!$E$61='I-Validation'!$B$31,'I-Validation'!$C$31,'I-Scheme Details'!$E$61),'TAG - A5.4.2'!$AZ$13:$AZ$18,0)+ 18 * MAX(0,QUOTIENT(AL$10-2025,5)),MATCH($E$37,'TAG - A5.4.2'!$AZ$9:$BO$9,0))","v":404.91841141304417},{"$f":"IF(AL67=0,0,($AL67*($AQ67/$AL67)^((AM$10-$AL$10)/($AQ$10-$AL$10))))","v":411.1623551429123},417.50258205527575,423.94057686102104,430.47784716565008,{"$f":"INDEX('TAG - A5.4.2'!$AZ$13:$BO$1000,MATCH(IF('I-Scheme Details'!$E$61='I-Validation'!$B$31,'I-Validation'!$C$31,'I-Scheme Details'!$E$61),'TAG - A5.4.2'!$AZ$13:$AZ$18,0)+ 18 * MAX(0,QUOTIENT(AQ$10-2025,5)),MATCH($E$37,'TAG - A5.4.2'!$AZ$9:$BO$9,0))","v":437.11592382232078},{"$f":"IF(AQ67=0,0,($AQ67*($AV67/$AQ67)^((AR$10-$AQ$10)/($AV$10-$AQ$10))))","v":443.83815488520969},450.66376445251842,457.59434234094277,464.63150281633392,{"$f":"INDEX('TAG - A5.4.2'!$AZ$13:$BO$1000,MATCH(IF('I-Scheme Details'!$E$61='I-Validation'!$B$31,'I-Validation'!$C$31,'I-Scheme Details'!$E$61),'TAG - A5.4.2'!$AZ$13:$AZ$18,0)+ 18 * MAX(0,QUOTIENT(AV$10-2025,5)),MATCH($E$37,'TAG - A5.4.2'!$AZ$9:$BO$9,0))","v":471.77688496969216},{"$f":"AV67","v":471.77688496969216},{"$f":"AW67","v":471.77688496969216},471.77688496969216,471.77688496969216,471.77688496969216,471.77688496969216,471.77688496969216,471.77688496969216,471.77688496969216,471.77688496969216,471.77688496969216,471.77688496969216,471.77688496969216,471.77688496969216,471.77688496969216,471.77688496969216,471.77688496969216,471.77688496969216,471.77688496969216,471.77688496969216,471.77688496969216,471.77688496969216,471.77688496969216,471.77688496969216,471.77688496969216,471.77688496969216,471.77688496969216,471.77688496969216,471.77688496969216,471.77688496969216,471.77688496969216,471.77688496969216,471.77688496969216,471.77688496969216,471.77688496969216]
[null,null,null,"Infrastructure",null,null,null,null,null,"pence per vehicle km, 2023 prices",null,null,{"$f":"INDEX('TAG - A5.4.2'!$AZ19:$BO$1000,1+18*MAX(0,QUOTIENT(M$10-2025,5)),MATCH($E$37,'TAG - A5.4.2'!$AZ$9:$BO$9,0))","v":19.827961715668906},20.108685320539138,20.393383400620763,20.682112226398097,20.974928865031057,{"$f":"INDEX('TAG - A5.4.2'!$AZ19:$BO$1000,1+18*MAX(0,QUOTIENT(R$10-2025,5)),MATCH($E$37,'TAG - A5.4.2'!$AZ$9:$BO$9,0))","v":21.271891191634456},21.59448224643215,21.921965437415476,22.254414954479365,22.591906112618343,{"$f":"INDEX('TAG - A5.4.2'!$AZ19:$BO$1000,1+18*MAX(0,QUOTIENT(W$10-2025,5)),MATCH($E$37,'TAG - A5.4.2'!$AZ$9:$BO$9,0))","v":22.934515368988844},23.293263838094436,23.65762395680391,24.027683504199238,24.403531632428734,{"$f":"INDEX('TAG - A5.4.2'!$AZ19:$BO$1000,1+18*MAX(0,QUOTIENT(AB$10-2025,5)),MATCH($E$37,'TAG - A5.4.2'!$AZ$9:$BO$9,0))","v":24.785258888184988},25.131829915443834,25.483247027929281,25.839577988207061,26.200891506363494,{"$f":"INDEX('TAG - A5.4.2'!$AZ19:$BO$1000,1+18*MAX(0,QUOTIENT(AG$10-2025,5)),MATCH($E$37,'TAG - A5.4.2'!$AZ$9:$BO$9,0))","v":26.567257253254549},26.915917005431478,27.269152450975216,27.627023639747144,27.989591409682834,{"$f":"INDEX('TAG - A5.4.2'!$AZ19:$BO$1000,1+18*MAX(0,QUOTIENT(AL$10-2025,5)),MATCH($E$37,'TAG - A5.4.2'!$AZ$9:$BO$9,0))","v":28.35691739713447},28.727498920420707,29.102923377213354,29.483254057243485,29.868555077342112,{"$f":"INDEX('TAG - A5.4.2'!$AZ19:$BO$1000,1+18*MAX(0,QUOTIENT(AQ$10-2025,5)),MATCH($E$37,'TAG - A5.4.2'!$AZ$9:$BO$9,0))","v":30.258891392249133},30.669848350365353,31.086386663701592,31.508582134663627,31.936511595157125,{"$f":"INDEX('TAG - A5.4.2'!$AZ19:$BO$1000,1+18*MAX(0,QUOTIENT(AV$10-2025,5)),MATCH($E$37,'TAG - A5.4.2'!$AZ$9:$BO$9,0))","v":32.370252920569691},{"$f":"AV68","v":32.370252920569691},32.370252920569691,32.370252920569691,32.370252920569691,32.370252920569691,32.370252920569691,32.370252920569691,32.370252920569691,32.370252920569691,32.370252920569691,32.370252920569691,32.370252920569691,32.370252920569691,32.370252920569691,32.370252920569691,32.370252920569691,32.370252920569691,32.370252920569691,32.370252920569691,32.370252920569691,32.370252920569691,32.370252920569691,32.370252920569691,32.370252920569691,32.370252920569691,32.370252920569691,32.370252920569691,32.370252920569691,32.370252920569691,32.370252920569691,32.370252920569691,32.370252920569691,32.370252920569691,32.370252920569691,32.370252920569691]
[null,null,null,"Accident",null,null,null,null,null,"pence per vehicle km, 2023 prices",null,null,{"$f":"INDEX('TAG - A5.4.2'!$AZ20:$BO$1000,1+18*MAX(0,QUOTIENT(M$10-2025,5)),MATCH($E$37,'TAG - A5.4.2'!$AZ$9:$BO$9,0))","v":5.2829246689114884},5.3885831622897182,5.4963548255355121,5.6062819220462226,5.7184075604871474,{"$f":"INDEX('TAG - A5.4.2'!$AZ20:$BO$1000,1+18*MAX(0,QUOTIENT(R$10-2025,5)),MATCH($E$37,'TAG - A5.4.2'!$AZ$9:$BO$9,0))","v":5.8327757116968897},5.9494312259308275,6.0684198504494438,6.1897882474584334,6.3135840124076026,{"$f":"INDEX('TAG - A5.4.2'!$AZ20:$BO$1000,1+18*MAX(0,QUOTIENT(W$10-2025,5)),MATCH($E$37,'TAG - A5.4.2'!$AZ$9:$BO$9,0))","v":6.4398556926557546},6.5686528065088696,6.7000258626390474,6.8340263798918279,6.9707069074896646,{"$f":"INDEX('TAG - A5.4.2'!$AZ20:$BO$1000,1+18*MAX(0,QUOTIENT(AB$10-2025,5)),MATCH($E$37,'TAG - A5.4.2'!$AZ$9:$BO$9,0))","v":7.1101210456394579},7.2523234665522471,7.3973699358832921,7.5453173346009574,7.6962236812929765,{"$f":"INDEX('TAG - A5.4.2'!$AZ20:$BO$1000,1+18*MAX(0,QUOTIENT(AG$10-2025,5)),MATCH($E$37,'TAG - A5.4.2'!$AZ$9:$BO$9,0))","v":7.8501481549188368},8.0071511180172141,8.1672941403775585,8.3306400231851097,8.4972528236488127,{"$f":"INDEX('TAG - A5.4.2'!$AZ20:$BO$1000,1+18*MAX(0,QUOTIENT(AL$10-2025,5)),MATCH($E$37,'TAG - A5.4.2'!$AZ$9:$BO$9,0))","v":8.6671978801217886},8.8405418377242242,9.0173526744787083,9.1976997279682848,9.3816537225276502,{"$f":"INDEX('TAG - A5.4.2'!$AZ20:$BO$1000,1+18*MAX(0,QUOTIENT(AQ$10-2025,5)),MATCH($E$37,'TAG - A5.4.2'!$AZ$9:$BO$9,0))","v":9.5692867969782043},9.7606725329177682,9.955885983576124,10.155003703247646,10.358103777312598,{"$f":"INDEX('TAG - A5.4.2'!$AZ20:$BO$1000,1+18*MAX(0,QUOTIENT(AV$10-2025,5)),MATCH($E$37,'TAG - A5.4.2'!$AZ$9:$BO$9,0))","v":10.56526585285885},{"$f":"AV69","v":10.56526585285885},10.56526585285885,10.56526585285885,10.56526585285885,10.56526585285885,10.56526585285885,10.56526585285885,10.56526585285885,10.56526585285885,10.56526585285885,10.56526585285885,10.56526585285885,10.56526585285885,10.56526585285885,10.56526585285885,10.56526585285885,10.56526585285885,10.56526585285885,10.56526585285885,10.56526585285885,10.56526585285885,10.56526585285885,10.56526585285885,10.56526585285885,10.56526585285885,10.56526585285885,10.56526585285885,10.56526585285885,10.56526585285885,10.56526585285885,10.56526585285885,10.56526585285885,10.56526585285885,10.56526585285885,10.56526585285885]
[null,null,null,"Local Air Quality",null,null,null,null,null,"pence per vehicle km, 2023 prices",null,null,{"$f":"INDEX('TAG - A5.4.2'!$AZ21:$BO$1000,1+18*MAX(0,QUOTIENT(M$10-2025,5)),MATCH($E$37,'TAG - A5.4.2'!$AZ$9:$BO$9,0))","v":1.6258311717987548},1.648415449990652,1.6713134444098525,1.6945295128609514,1.7180680736824245,{"$f":"INDEX('TAG - A5.4.2'!$AZ21:$BO$1000,1+18*MAX(0,QUOTIENT(R$10-2025,5)),MATCH($E$37,'TAG - A5.4.2'!$AZ$9:$BO$9,0))","v":1.7419336065875002},1.7793401856156585,1.8175500398945486,1.8565804190937527,1.8964489433051965,{"$f":"INDEX('TAG - A5.4.2'!$AZ21:$BO$1000,1+18*MAX(0,QUOTIENT(W$10-2025,5)),MATCH($E$37,'TAG - A5.4.2'!$AZ$9:$BO$9,0))","v":1.9371736109976618},1.9800405627405577,2.0238561003723459,2.0686412147764934,2.1144173613354589,{"$f":"INDEX('TAG - A5.4.2'!$AZ21:$BO$1000,1+18*MAX(0,QUOTIENT(AB$10-2025,5)),MATCH($E$37,'TAG - A5.4.2'!$AZ$9:$BO$9,0))","v":2.1612064702094065},2.207535209763607,2.2548570761376037,2.3031933585114963,2.3525658024312599,{"$f":"INDEX('TAG - A5.4.2'!$AZ21:$BO$1000,1+18*MAX(0,QUOTIENT(AG$10-2025,5)),MATCH($E$37,'TAG - A5.4.2'!$AZ$9:$BO$9,0))","v":2.4029966195916379},2.4536644616049963,2.5054006489474161,2.5582277079728284,2.6121686400095077,{"$f":"INDEX('TAG - A5.4.2'!$AZ21:$BO$1000,1+18*MAX(0,QUOTIENT(AL$10-2025,5)),MATCH($E$37,'TAG - A5.4.2'!$AZ$9:$BO$9,0))","v":2.6672469313750375},2.7228651844320053,2.7796432064015248,2.8376051811415324,2.8967757967992025,{"$f":"INDEX('TAG - A5.4.2'!$AZ21:$BO$1000,1+18*MAX(0,QUOTIENT(AQ$10-2025,5)),MATCH($E$37,'TAG - A5.4.2'!$AZ$9:$BO$9,0))","v":2.9571802563265468},3.0191344354908431,3.0823865809552022,3.1469638856634865,3.2128941122632533,{"$f":"INDEX('TAG - A5.4.2'!$AZ21:$BO$1000,1+18*MAX(0,QUOTIENT(AV$10-2025,5)),MATCH($E$37,'TAG - A5.4.2'!$AZ$9:$BO$9,0))","v":3.2802056050412878},{"$f":"AV70","v":3.2802056050412878},3.2802056050412878,3.2802056050412878,3.2802056050412878,3.2802056050412878,3.2802056050412878,3.2802056050412878,3.2802056050412878,3.2802056050412878,3.2802056050412878,3.2802056050412878,3.2802056050412878,3.2802056050412878,3.2802056050412878,3.2802056050412878,3.2802056050412878,3.2802056050412878,3.2802056050412878,3.2802056050412878,3.2802056050412878,3.2802056050412878,3.2802056050412878,3.2802056050412878,3.2802056050412878,3.2802056050412878,3.2802056050412878,3.2802056050412878,3.2802056050412878,3.2802056050412878,3.2802056050412878,3.2802056050412878,3.2802056050412878,3.2802056050412878,3.2802056050412878,3.2802056050412878]
[null,null,null,"Noise",null,null,null,null,null,"pence per vehicle km, 2023 prices",null,null,{"$f":"INDEX('TAG - A5.4.2'!$AZ22:$BO$1000,1+18*MAX(0,QUOTIENT(M$10-2025,5)),MATCH($E$37,'TAG - A5.4.2'!$AZ$9:$BO$9,0))","v":16.509139590348397},16.839322382155366,17.176108829798473,17.519631006394444,17.870023626522332,{"$f":"INDEX('TAG - A5.4.2'!$AZ22:$BO$1000,1+18*MAX(0,QUOTIENT(R$10-2025,5)),MATCH($E$37,'TAG - A5.4.2'!$AZ$9:$BO$9,0))","v":18.227424099052779},18.591972581033836,18.963812032654513,19.3430882733076,19.729950038773755,{"$f":"INDEX('TAG - A5.4.2'!$AZ22:$BO$1000,1+18*MAX(0,QUOTIENT(W$10-2025,5)),MATCH($E$37,'TAG - A5.4.2'!$AZ$9:$BO$9,0))","v":20.12454903954923},20.527040020340216,20.937580820747019,21.356332437161957,21.783459085905196,{"$f":"INDEX('TAG - A5.4.2'!$AZ22:$BO$1000,1+18*MAX(0,QUOTIENT(AB$10-2025,5)),MATCH($E$37,'TAG - A5.4.2'!$AZ$9:$BO$9,0))","v":22.219128267623304},22.663510832975771,23.116781049635286,23.57911667062799,24.050699004040553,{"$f":"INDEX('TAG - A5.4.2'!$AZ22:$BO$1000,1+18*MAX(0,QUOTIENT(AG$10-2025,5)),MATCH($E$37,'TAG - A5.4.2'!$AZ$9:$BO$9,0))","v":24.531712984121363},25.022347243803789,25.522794188679864,26.033250072453466,26.553915073902537,{"$f":"INDEX('TAG - A5.4.2'!$AZ22:$BO$1000,1+18*MAX(0,QUOTIENT(AL$10-2025,5)),MATCH($E$37,'TAG - A5.4.2'!$AZ$9:$BO$9,0))","v":27.084993375380591},27.626693242888205,28.179227107745966,28.742811649900883,29.317667882898903,{"$f":"INDEX('TAG - A5.4.2'!$AZ22:$BO$1000,1+18*MAX(0,QUOTIENT(AQ$10-2025,5)),MATCH($E$37,'TAG - A5.4.2'!$AZ$9:$BO$9,0))","v":29.904021240556883},30.50210166536802,31.112143698675382,31.734386572648887,32.369074304101865,{"$f":"INDEX('TAG - A5.4.2'!$AZ22:$BO$1000,1+18*MAX(0,QUOTIENT(AV$10-2025,5)),MATCH($E$37,'TAG - A5.4.2'!$AZ$9:$BO$9,0))","v":33.016455790183905},{"$f":"AV71","v":33.016455790183905},33.016455790183905,33.016455790183905,33.016455790183905,33.016455790183905,33.016455790183905,33.016455790183905,33.016455790183905,33.016455790183905,33.016455790183905,33.016455790183905,33.016455790183905,33.016455790183905,33.016455790183905,33.016455790183905,33.016455790183905,33.016455790183905,33.016455790183905,33.016455790183905,33.016455790183905,33.016455790183905,33.016455790183905,33.016455790183905,33.016455790183905,33.016455790183905,33.016455790183905,33.016455790183905,33.016455790183905,33.016455790183905,33.016455790183905,33.016455790183905,33.016455790183905,33.016455790183905,33.016455790183905,33.016455790183905]
[null,null,null,"Greenhouse Gases",null,null,null,null,null,"pence per vehicle km, 2023 prices",null,null,{"$f":"INDEX('TAG - A5.4.2'!$AZ23:$BO$1000,1+18*MAX(0,QUOTIENT(M$10-2025,5)),MATCH($E$37,'TAG - A5.4.2'!$AZ$9:$BO$9,0))","v":32.186376979626608},31.998982960361122,31.812679977793508,31.627461679740918,31.443321751003886,{"$f":"INDEX('TAG - A5.4.2'!$AZ23:$BO$1000,1+18*MAX(0,QUOTIENT(R$10-2025,5)),MATCH($E$37,'TAG - A5.4.2'!$AZ$9:$BO$9,0))","v":31.260253913150983},30.841017233969204,30.427403010499386,30.019335839014225,29.616741327038866,{"$f":"INDEX('TAG - A5.4.2'!$AZ23:$BO$1000,1+18*MAX(0,QUOTIENT(W$10-2025,5)),MATCH($E$37,'TAG - A5.4.2'!$AZ$9:$BO$9,0))","v":29.21954607978881},29.362424985507019,29.506002546216092,29.650282178227148,29.795267314556547,{"$f":"INDEX('TAG - A5.4.2'!$AZ23:$BO$1000,1+18*MAX(0,QUOTIENT(AB$10-2025,5)),MATCH($E$37,'TAG - A5.4.2'!$AZ$9:$BO$9,0))","v":29.940961405007531},30.370647282086313,30.806499626248883,31.248606933111045,31.697058968298478,{"$f":"INDEX('TAG - A5.4.2'!$AZ23:$BO$1000,1+18*MAX(0,QUOTIENT(AG$10-2025,5)),MATCH($E$37,'TAG - A5.4.2'!$AZ$9:$BO$9,0))","v":32.151946785672749},32.648830673342161,33.153393523640851,33.665754009096787,34.186032636231623,{"$f":"INDEX('TAG - A5.4.2'!$AZ23:$BO$1000,1+18*MAX(0,QUOTIENT(AL$10-2025,5)),MATCH($E$37,'TAG - A5.4.2'!$AZ$9:$BO$9,0))","v":34.714351773903672},35.26447461167303,35.82331531744714,36.391012044411674,36.967705135083769,{"$f":"INDEX('TAG - A5.4.2'!$AZ23:$BO$1000,1+18*MAX(0,QUOTIENT(AQ$10-2025,5)),MATCH($E$37,'TAG - A5.4.2'!$AZ$9:$BO$9,0))","v":37.553537156006627},38.151187320061638,38.758348857628839,39.375173138575654,40.001813941762961,{"$f":"INDEX('TAG - A5.4.2'!$AZ23:$BO$1000,1+18*MAX(0,QUOTIENT(AV$10-2025,5)),MATCH($E$37,'TAG - A5.4.2'!$AZ$9:$BO$9,0))","v":40.638427493383318},{"$f":"AV72","v":40.638427493383318},40.638427493383318,40.638427493383318,40.638427493383318,40.638427493383318,40.638427493383318,40.638427493383318,40.638427493383318,40.638427493383318,40.638427493383318,40.638427493383318,40.638427493383318,40.638427493383318,40.638427493383318,40.638427493383318,40.638427493383318,40.638427493383318,40.638427493383318,40.638427493383318,40.638427493383318,40.638427493383318,40.638427493383318,40.638427493383318,40.638427493383318,40.638427493383318,40.638427493383318,40.638427493383318,40.638427493383318,40.638427493383318,40.638427493383318,40.638427493383318,40.638427493383318,40.638427493383318,40.638427493383318,40.638427493383318]
[null,null,null,"Indirect Taxation",null,null,null,null,null,"pence per vehicle km, 2023 prices",null,null,{"$f":"INDEX('TAG - A5.4.2'!$AZ24:$BO$1000,1+18*MAX(0,QUOTIENT(M$10-2025,5)),MATCH($E$37,'TAG - A5.4.2'!$AZ$9:$BO$9,0))","v":-26.627632378695463},{"$f":"$M73+($R73-$M73)*(N$10-$M$10)/($R$10-$M$10)","v":-26.27910783464306},{"$f":"$M73+($R73-$M73)*(O$10-$M$10)/($R$10-$M$10)","v":-25.930583290590661},{"$f":"$M73+($R73-$M73)*(P$10-$M$10)/($R$10-$M$10)","v":-25.582058746538259},{"$f":"$M73+($R73-$M73)*(Q$10-$M$10)/($R$10-$M$10)","v":-25.23353420248586},{"$f":"INDEX('TAG - A5.4.2'!$AZ24:$BO$1000,1+18*MAX(0,QUOTIENT(R$10-2025,5)),MATCH($E$37,'TAG - A5.4.2'!$AZ$9:$BO$9,0))","v":-24.885009658433457},{"$f":"$R73+($W73-$R73)*(S$10-$R$10)/($W$10-$R$10)","v":-24.160944588688071},{"$f":"$R73+($W73-$R73)*(T$10-$R$10)/($W$10-$R$10)","v":-23.436879518942686},{"$f":"$R73+($W73-$R73)*(U$10-$R$10)/($W$10-$R$10)","v":-22.7128144491973},{"$f":"$R73+($W73-$R73)*(V$10-$R$10)/($W$10-$R$10)","v":-21.988749379451914},{"$f":"INDEX('TAG - A5.4.2'!$AZ24:$BO$1000,1+18*MAX(0,QUOTIENT(W$10-2025,5)),MATCH($E$37,'TAG - A5.4.2'!$AZ$9:$BO$9,0))","v":-21.264684309706528},{"$f":"$W73+($AB73-$W73)*(X$10-$W$10)/($AB$10-$W$10)","v":-20.99359890389837},{"$f":"$W73+($AB73-$W73)*(Y$10-$W$10)/($AB$10-$W$10)","v":-20.722513498090215},{"$f":"$W73+($AB73-$W73)*(Z$10-$W$10)/($AB$10-$W$10)","v":-20.451428092282057},{"$f":"$W73+($AB73-$W73)*(AA$10-$W$10)/($AB$10-$W$10)","v":-20.180342686473903},{"$f":"INDEX('TAG - A5.4.2'!$AZ24:$BO$1000,1+18*MAX(0,QUOTIENT(AB$10-2025,5)),MATCH($E$37,'TAG - A5.4.2'!$AZ$9:$BO$9,0))","v":-19.909257280665745},{"$f":"$AB73+($AG73-$AB73)*(AC$10-$AB$10)/($AG$10-$AB$10)","v":-19.838687258607816},{"$f":"$AB73+($AG73-$AB73)*(AD$10-$AB$10)/($AG$10-$AB$10)","v":-19.768117236549891},{"$f":"$AB73+($AG73-$AB73)*(AE$10-$AB$10)/($AG$10-$AB$10)","v":-19.697547214491962},{"$f":"$AB73+($AG73-$AB73)*(AF$10-$AB$10)/($AG$10-$AB$10)","v":-19.626977192434037},{"$f":"INDEX('TAG - A5.4.2'!$AZ24:$BO$1000,1+18*MAX(0,QUOTIENT(AG$10-2025,5)),MATCH($E$37,'TAG - A5.4.2'!$AZ$9:$BO$9,0))","v":-19.556407170376108},{"$f":"$AG73+($AL73-$AG73)*(AH$10-$AG$10)/($AL$10-$AG$10)","v":-19.508024540397159},{"$f":"$AG73+($AL73-$AG73)*(AI$10-$AG$10)/($AL$10-$AG$10)","v":-19.459641910418206},{"$f":"$AG73+($AL73-$AG73)*(AJ$10-$AG$10)/($AL$10-$AG$10)","v":-19.411259280439257},{"$f":"$AG73+($AL73-$AG73)*(AK$10-$AG$10)/($AL$10-$AG$10)","v":-19.362876650460304},{"$f":"INDEX('TAG - A5.4.2'!$AZ24:$BO$1000,1+18*MAX(0,QUOTIENT(AL$10-2025,5)),MATCH($E$37,'TAG - A5.4.2'!$AZ$9:$BO$9,0))","v":-19.314494020481355},{"$f":"$AL73+($AQ73-$AL73)*(AM$10-$AL$10)/($AQ$10-$AL$10)","v":-19.274096143683384},{"$f":"$AL73+($AQ73-$AL73)*(AN$10-$AL$10)/($AQ$10-$AL$10)","v":-19.233698266885412},{"$f":"$AL73+($AQ73-$AL73)*(AO$10-$AL$10)/($AQ$10-$AL$10)","v":-19.193300390087444},{"$f":"$AL73+($AQ73-$AL73)*(AP$10-$AL$10)/($AQ$10-$AL$10)","v":-19.152902513289472},{"$f":"INDEX('TAG - A5.4.2'!$AZ24:$BO$1000,1+18*MAX(0,QUOTIENT(AQ$10-2025,5)),MATCH($E$37,'TAG - A5.4.2'!$AZ$9:$BO$9,0))","v":-19.112504636491501},{"$f":"$AQ73+($AV73-$AQ73)*(AR$10-$AQ$10)/($AV$10-$AQ$10)","v":-19.073785855460184},{"$f":"$AQ73+($AV73-$AQ73)*(AS$10-$AQ$10)/($AV$10-$AQ$10)","v":-19.035067074428866},{"$f":"$AQ73+($AV73-$AQ73)*(AT$10-$AQ$10)/($AV$10-$AQ$10)","v":-18.996348293397549},{"$f":"$AQ73+($AV73-$AQ73)*(AU$10-$AQ$10)/($AV$10-$AQ$10)","v":-18.957629512366232},{"$f":"INDEX('TAG - A5.4.2'!$AZ24:$BO$1000,1+18*MAX(0,QUOTIENT(AV$10-2025,5)),MATCH($E$37,'TAG - A5.4.2'!$AZ$9:$BO$9,0))","v":-18.918910731334915},{"$f":"AV73","v":-18.918910731334915},-18.918910731334915,-18.918910731334915,-18.918910731334915,-18.918910731334915,-18.918910731334915,-18.918910731334915,-18.918910731334915,-18.918910731334915,-18.918910731334915,-18.918910731334915,-18.918910731334915,-18.918910731334915,-18.918910731334915,-18.918910731334915,-18.918910731334915,-18.918910731334915,-18.918910731334915,-18.918910731334915,-18.918910731334915,-18.918910731334915,-18.918910731334915,-18.918910731334915,-18.918910731334915,-18.918910731334915,-18.918910731334915,-18.918910731334915,-18.918910731334915,-18.918910731334915,-18.918910731334915,-18.918910731334915,-18.918910731334915,-18.918910731334915,-18.918910731334915,-18.918910731334915]
[]
[null,null,null,"PSV"]
[null,null,null,"Congestion",null,null,null,null,null,"pence per vehicle km, 2023 prices",null,null,{"$f":"INDEX('TAG - A5.4.2'!$BP$13:$CE$1000,MATCH(IF('I-Scheme Details'!$E$61='I-Validation'!$B$31,'I-Validation'!$C$31,'I-Scheme Details'!$E$61),'TAG - A5.4.2'!$BP$13:$BP$18,0)+ 18 * MAX(0,QUOTIENT(M$10-2025,5)),MATCH($E$37,'TAG - A5.4.2'!$BP$9:$CE$9,0))","v":290.82375079694674},{"$f":"IF(M76=0,0,$M76*($R76/$M76)^((N$10-$M$10)/($R$10-$M$10)))","v":293.07419349959753},295.34205050332929,297.62745656290934,299.93054747585938,{"$f":"INDEX('TAG - A5.4.2'!$BP$13:$CE$1000,MATCH(IF('I-Scheme Details'!$E$61='I-Validation'!$B$31,'I-Validation'!$C$31,'I-Scheme Details'!$E$61),'TAG - A5.4.2'!$BP$13:$BP$18,0)+ 18 * MAX(0,QUOTIENT(R$10-2025,5)),MATCH($E$37,'TAG - A5.4.2'!$BP$9:$CE$9,0))","v":302.25146009052531},{"$f":"IF(R76=0,0,($R76*($W76/$R76)^((S$10-$R$10)/($W$10-$R$10))))","v":301.83736276667747},301.42383277373216,301.01086933442178,300.59847167254395,{"$f":"INDEX('TAG - A5.4.2'!$BP$13:$CE$1000,MATCH(IF('I-Scheme Details'!$E$61='I-Validation'!$B$31,'I-Validation'!$C$31,'I-Scheme Details'!$E$61),'TAG - A5.4.2'!$BP$13:$BP$18,0)+ 18 * MAX(0,QUOTIENT(W$10-2025,5)),MATCH($E$37,'TAG - A5.4.2'!$BP$9:$CE$9,0))","v":300.18663901295957},{"$f":"IF(W76=0,0,($W76*($AB76/$W76)^((X$10-$W$10)/($AB$10-$W$10))))","v":305.23833661087895},310.37504681530459,315.59820026279465,320.90925166540688,{"$f":"INDEX('TAG - A5.4.2'!$BP$13:$CE$1000,MATCH(IF('I-Scheme Details'!$E$61='I-Validation'!$B$31,'I-Validation'!$C$31,'I-Scheme Details'!$E$61),'TAG - A5.4.2'!$BP$13:$BP$18,0)+ 18 * MAX(0,QUOTIENT(AB$10-2025,5)),MATCH($E$37,'TAG - A5.4.2'!$BP$9:$CE$9,0))","v":326.30968021585369},{"$f":"IF(AB76=0,0,($AB76*($AG76/$AB76)^((AC$10-$AB$10)/($AG$10-$AB$10))))","v":328.03434308386772},329.76812140934021,331.51106337071025,333.26321740105681,{"$f":"INDEX('TAG - A5.4.2'!$BP$13:$CE$1000,MATCH(IF('I-Scheme Details'!$E$61='I-Validation'!$B$31,'I-Validation'!$C$31,'I-Scheme Details'!$E$61),'TAG - A5.4.2'!$BP$13:$BP$18,0)+ 18 * MAX(0,QUOTIENT(AG$10-2025,5)),MATCH($E$37,'TAG - A5.4.2'!$BP$9:$CE$9,0))","v":335.02463218944524},{"$f":"IF(AG76=0,0,($AG76*($AL76/$AG76)^((AH$10-$AG$10)/($AL$10-$AG$10))))","v":337.78728535992809},340.57271969874023,343.38112306211934,346.21268485538798,{"$f":"INDEX('TAG - A5.4.2'!$BP$13:$CE$1000,MATCH(IF('I-Scheme Details'!$E$61='I-Validation'!$B$31,'I-Validation'!$C$31,'I-Scheme Details'!$E$61),'TAG - A5.4.2'!$BP$13:$BP$18,0)+ 18 * MAX(0,QUOTIENT(AL$10-2025,5)),MATCH($E$37,'TAG - A5.4.2'!$BP$9:$CE$9,0))","v":349.06759604572778},{"$f":"IF(AL76=0,0,($AL76*($AQ76/$AL76)^((AM$10-$AL$10)/($AQ$10-$AL$10))))","v":354.45030615768309},359.91601901316881,365.466014535363,371.10159238418112,{"$f":"INDEX('TAG - A5.4.2'!$BP$13:$CE$1000,MATCH(IF('I-Scheme Details'!$E$61='I-Validation'!$B$31,'I-Validation'!$C$31,'I-Scheme Details'!$E$61),'TAG - A5.4.2'!$BP$13:$BP$18,0)+ 18 * MAX(0,QUOTIENT(AQ$10-2025,5)),MATCH($E$37,'TAG - A5.4.2'!$BP$9:$CE$9,0))","v":376.82407226062139},{"$f":"IF(AQ76=0,0,($AQ76*($AV76/$AQ76)^((AR$10-$AQ$10)/($AV$10-$AQ$10))))","v":382.6190990389739},388.50324521768835,394.47788132839901,400.54439897959827,{"$f":"INDEX('TAG - A5.4.2'!$BP$13:$CE$1000,MATCH(IF('I-Scheme Details'!$E$61='I-Validation'!$B$31,'I-Validation'!$C$31,'I-Scheme Details'!$E$61),'TAG - A5.4.2'!$BP$13:$BP$18,0)+ 18 * MAX(0,QUOTIENT(AV$10-2025,5)),MATCH($E$37,'TAG - A5.4.2'!$BP$9:$CE$9,0))","v":406.70421118076916},{"$f":"AV76","v":406.70421118076916},{"$f":"AW76","v":406.70421118076916},406.70421118076916,406.70421118076916,406.70421118076916,406.70421118076916,406.70421118076916,406.70421118076916,406.70421118076916,406.70421118076916,406.70421118076916,406.70421118076916,406.70421118076916,406.70421118076916,406.70421118076916,406.70421118076916,406.70421118076916,406.70421118076916,406.70421118076916,406.70421118076916,406.70421118076916,406.70421118076916,406.70421118076916,406.70421118076916,406.70421118076916,406.70421118076916,406.70421118076916,406.70421118076916,406.70421118076916,406.70421118076916,406.70421118076916,406.70421118076916,406.70421118076916,406.70421118076916,406.70421118076916]
[null,null,null,"Infrastructure",null,null,null,null,null,"pence per vehicle km, 2023 prices",null,null,{"$f":"INDEX('TAG - A5.4.2'!$BP19:$CE$1000,1+18*MAX(0,QUOTIENT(M$10-2025,5)),MATCH($E$37,'TAG - A5.4.2'!$BP$9:$CE$9,0))","v":0},0,0,0,0,{"$f":"INDEX('TAG - A5.4.2'!$BP19:$CE$1000,1+18*MAX(0,QUOTIENT(R$10-2025,5)),MATCH($E$37,'TAG - A5.4.2'!$BP$9:$CE$9,0))","v":0},0,0,0,0,{"$f":"INDEX('TAG - A5.4.2'!$BP19:$CE$1000,1+18*MAX(0,QUOTIENT(W$10-2025,5)),MATCH($E$37,'TAG - A5.4.2'!$BP$9:$CE$9,0))","v":0},0,0,0,0,{"$f":"INDEX('TAG - A5.4.2'!$BP19:$CE$1000,1+18*MAX(0,QUOTIENT(AB$10-2025,5)),MATCH($E$37,'TAG - A5.4.2'!$BP$9:$CE$9,0))","v":0},0,0,0,0,{"$f":"INDEX('TAG - A5.4.2'!$BP19:$CE$1000,1+18*MAX(0,QUOTIENT(AG$10-2025,5)),MATCH($E$37,'TAG - A5.4.2'!$BP$9:$CE$9,0))","v":0},0,0,0,0,{"$f":"INDEX('TAG - A5.4.2'!$BP19:$CE$1000,1+18*MAX(0,QUOTIENT(AL$10-2025,5)),MATCH($E$37,'TAG - A5.4.2'!$BP$9:$CE$9,0))","v":0},0,0,0,0,{"$f":"INDEX('TAG - A5.4.2'!$BP19:$CE$1000,1+18*MAX(0,QUOTIENT(AQ$10-2025,5)),MATCH($E$37,'TAG - A5.4.2'!$BP$9:$CE$9,0))","v":0},0,0,0,0,{"$f":"INDEX('TAG - A5.4.2'!$BP19:$CE$1000,1+18*MAX(0,QUOTIENT(AV$10-2025,5)),MATCH($E$37,'TAG - A5.4.2'!$BP$9:$CE$9,0))","v":0},{"$f":"AV77","v":0},0,0,0,0,0,0,0,0,0,0,0,0,0,0,0,0,0,0,0,0,0,0,0,0,0,0,0,0,0,0,0,0,0,0]
[null,null,null,"Accident",null,null,null,null,null,"pence per vehicle km, 2023 prices",null,null,{"$f":"INDEX('TAG - A5.4.2'!$BP20:$CE$1000,1+18*MAX(0,QUOTIENT(M$10-2025,5)),MATCH($E$37,'TAG - A5.4.2'!$BP$9:$CE$9,0))","v":0},0,0,0,0,{"$f":"INDEX('TAG - A5.4.2'!$BP20:$CE$1000,1+18*MAX(0,QUOTIENT(R$10-2025,5)),MATCH($E$37,'TAG - A5.4.2'!$BP$9:$CE$9,0))","v":0},0,0,0,0,{"$f":"INDEX('TAG - A5.4.2'!$BP20:$CE$1000,1+18*MAX(0,QUOTIENT(W$10-2025,5)),MATCH($E$37,'TAG - A5.4.2'!$BP$9:$CE$9,0))","v":0},0,0,0,0,{"$f":"INDEX('TAG - A5.4.2'!$BP20:$CE$1000,1+18*MAX(0,QUOTIENT(AB$10-2025,5)),MATCH($E$37,'TAG - A5.4.2'!$BP$9:$CE$9,0))","v":0},0,0,0,0,{"$f":"INDEX('TAG - A5.4.2'!$BP20:$CE$1000,1+18*MAX(0,QUOTIENT(AG$10-2025,5)),MATCH($E$37,'TAG - A5.4.2'!$BP$9:$CE$9,0))","v":0},0,0,0,0,{"$f":"INDEX('TAG - A5.4.2'!$BP20:$CE$1000,1+18*MAX(0,QUOTIENT(AL$10-2025,5)),MATCH($E$37,'TAG - A5.4.2'!$BP$9:$CE$9,0))","v":0},0,0,0,0,{"$f":"INDEX('TAG - A5.4.2'!$BP20:$CE$1000,1+18*MAX(0,QUOTIENT(AQ$10-2025,5)),MATCH($E$37,'TAG - A5.4.2'!$BP$9:$CE$9,0))","v":0},0,0,0,0,{"$f":"INDEX('TAG - A5.4.2'!$BP20:$CE$1000,1+18*MAX(0,QUOTIENT(AV$10-2025,5)),MATCH($E$37,'TAG - A5.4.2'!$BP$9:$CE$9,0))","v":0},{"$f":"AV78","v":0},0,0,0,0,0,0,0,0,0,0,0,0,0,0,0,0,0,0,0,0,0,0,0,0,0,0,0,0,0,0,0,0,0,0]
[null,null,null,"Local Air Quality",null,null,null,null,null,"pence per vehicle km, 2023 prices",null,null,{"$f":"INDEX('TAG - A5.4.2'!$BP21:$CE$1000,1+18*MAX(0,QUOTIENT(M$10-2025,5)),MATCH($E$37,'TAG - A5.4.2'!$BP$9:$CE$9,0))","v":2.3291072525887198},2.2204041063213671,2.1167743090787483,2.0179810795788988,1.9237986874995288,{"$f":"INDEX('TAG - A5.4.2'!$BP21:$CE$1000,1+18*MAX(0,QUOTIENT(R$10-2025,5)),MATCH($E$37,'TAG - A5.4.2'!$BP$9:$CE$9,0))","v":1.8340119377121287},1.8399029082802019,1.8458128010447561,1.8517416767851682,1.8576895964760423,{"$f":"INDEX('TAG - A5.4.2'!$BP21:$CE$1000,1+18*MAX(0,QUOTIENT(W$10-2025,5)),MATCH($E$37,'TAG - A5.4.2'!$BP$9:$CE$9,0))","v":1.8636566212878372},1.9088461045565985,1.9551313312014582,2.0025388705358806,2.0510959361194492,{"$f":"INDEX('TAG - A5.4.2'!$BP21:$CE$1000,1+18*MAX(0,QUOTIENT(AB$10-2025,5)),MATCH($E$37,'TAG - A5.4.2'!$BP$9:$CE$9,0))","v":2.1008304013793881},2.1505297549738547,2.2014048463842277,2.2534834900449368,2.3067941583966034,{"$f":"INDEX('TAG - A5.4.2'!$BP21:$CE$1000,1+18*MAX(0,QUOTIENT(AG$10-2025,5)),MATCH($E$37,'TAG - A5.4.2'!$BP$9:$CE$9,0))","v":2.3613659974524959},2.4128006282884882,2.4653555942407168,2.5190552981434662,2.5739246743669062,{"$f":"INDEX('TAG - A5.4.2'!$BP21:$CE$1000,1+18*MAX(0,QUOTIENT(AL$10-2025,5)),MATCH($E$37,'TAG - A5.4.2'!$BP$9:$CE$9,0))","v":2.6299892003948653},2.6857348714809284,2.7426621367136024,2.8007960413511124,2.8601621615149768,{"$f":"INDEX('TAG - A5.4.2'!$BP21:$CE$1000,1+18*MAX(0,QUOTIENT(AQ$10-2025,5)),MATCH($E$37,'TAG - A5.4.2'!$BP$9:$CE$9,0))","v":2.9207866154422701},2.9830193885471652,3.0465781462439683,3.1114911410923862,3.1777872276252856,{"$f":"INDEX('TAG - A5.4.2'!$BP21:$CE$1000,1+18*MAX(0,QUOTIENT(AV$10-2025,5)),MATCH($E$37,'TAG - A5.4.2'!$BP$9:$CE$9,0))","v":3.2454958751748415},{"$f":"AV79","v":3.2454958751748415},3.2454958751748415,3.2454958751748415,3.2454958751748415,3.2454958751748415,3.2454958751748415,3.2454958751748415,3.2454958751748415,3.2454958751748415,3.2454958751748415,3.2454958751748415,3.2454958751748415,3.2454958751748415,3.2454958751748415,3.2454958751748415,3.2454958751748415,3.2454958751748415,3.2454958751748415,3.2454958751748415,3.2454958751748415,3.2454958751748415,3.2454958751748415,3.2454958751748415,3.2454958751748415,3.2454958751748415,3.2454958751748415,3.2454958751748415,3.2454958751748415,3.2454958751748415,3.2454958751748415,3.2454958751748415,3.2454958751748415,3.2454958751748415,3.2454958751748415,3.2454958751748415]
[null,null,null,"Noise",null,null,null,null,null,"pence per vehicle km, 2023 prices",null,null,{"$f":"INDEX('TAG - A5.4.2'!$BP22:$CE$1000,1+18*MAX(0,QUOTIENT(M$10-2025,5)),MATCH($E$37,'TAG - A5.4.2'!$BP$9:$CE$9,0))","v":0},0,0,0,0,{"$f":"INDEX('TAG - A5.4.2'!$BP22:$CE$1000,1+18*MAX(0,QUOTIENT(R$10-2025,5)),MATCH($E$37,'TAG - A5.4.2'!$BP$9:$CE$9,0))","v":0},0,0,0,0,{"$f":"INDEX('TAG - A5.4.2'!$BP22:$CE$1000,1+18*MAX(0,QUOTIENT(W$10-2025,5)),MATCH($E$37,'TAG - A5.4.2'!$BP$9:$CE$9,0))","v":0},0,0,0,0,{"$f":"INDEX('TAG - A5.4.2'!$BP22:$CE$1000,1+18*MAX(0,QUOTIENT(AB$10-2025,5)),MATCH($E$37,'TAG - A5.4.2'!$BP$9:$CE$9,0))","v":0},0,0,0,0,{"$f":"INDEX('TAG - A5.4.2'!$BP22:$CE$1000,1+18*MAX(0,QUOTIENT(AG$10-2025,5)),MATCH($E$37,'TAG - A5.4.2'!$BP$9:$CE$9,0))","v":0},0,0,0,0,{"$f":"INDEX('TAG - A5.4.2'!$BP22:$CE$1000,1+18*MAX(0,QUOTIENT(AL$10-2025,5)),MATCH($E$37,'TAG - A5.4.2'!$BP$9:$CE$9,0))","v":0},0,0,0,0,{"$f":"INDEX('TAG - A5.4.2'!$BP22:$CE$1000,1+18*MAX(0,QUOTIENT(AQ$10-2025,5)),MATCH($E$37,'TAG - A5.4.2'!$BP$9:$CE$9,0))","v":0},0,0,0,0,{"$f":"INDEX('TAG - A5.4.2'!$BP22:$CE$1000,1+18*MAX(0,QUOTIENT(AV$10-2025,5)),MATCH($E$37,'TAG - A5.4.2'!$BP$9:$CE$9,0))","v":0},{"$f":"AV80","v":0},0,0,0,0,0,0,0,0,0,0,0,0,0,0,0,0,0,0,0,0,0,0,0,0,0,0,0,0,0,0,0,0,0,0]
[null,null,null,"Greenhouse Gases",null,null,null,null,null,"pence per vehicle km, 2023 prices",null,null,{"$f":"INDEX('TAG - A5.4.2'!$BP23:$CE$1000,1+18*MAX(0,QUOTIENT(M$10-2025,5)),MATCH($E$37,'TAG - A5.4.2'!$BP$9:$CE$9,0))","v":28.533232221548051},28.913987692419507,29.299824071316841,29.690809159304884,30.087011662204937,{"$f":"INDEX('TAG - A5.4.2'!$BP23:$CE$1000,1+18*MAX(0,QUOTIENT(R$10-2025,5)),MATCH($E$37,'TAG - A5.4.2'!$BP$9:$CE$9,0))","v":30.488501202668093},30.914167454140305,31.345776659529395,31.783411791589593,32.227156981502027,{"$f":"INDEX('TAG - A5.4.2'!$BP23:$CE$1000,1+18*MAX(0,QUOTIENT(W$10-2025,5)),MATCH($E$37,'TAG - A5.4.2'!$BP$9:$CE$9,0))","v":32.677097535048226},33.165021084093482,33.66023014524572,34.162833503347912,34.672941567582107,{"$f":"INDEX('TAG - A5.4.2'!$BP23:$CE$1000,1+18*MAX(0,QUOTIENT(AB$10-2025,5)),MATCH($E$37,'TAG - A5.4.2'!$BP$9:$CE$9,0))","v":35.190666395723532},35.681317457237263,36.178809493612256,36.683237886150479,37.194699346021771,{"$f":"INDEX('TAG - A5.4.2'!$BP23:$CE$1000,1+18*MAX(0,QUOTIENT(AG$10-2025,5)),MATCH($E$37,'TAG - A5.4.2'!$BP$9:$CE$9,0))","v":37.713291932805724},38.232978380412469,38.759826069851606,39.293933682519985,39.835401259637024,{"$f":"INDEX('TAG - A5.4.2'!$BP23:$CE$1000,1+18*MAX(0,QUOTIENT(AL$10-2025,5)),MATCH($E$37,'TAG - A5.4.2'!$BP$9:$CE$9,0))","v":40.384330220982939},41.035090655679326,41.696337562258471,42.368239921633602,43.050969437707082,{"$f":"INDEX('TAG - A5.4.2'!$BP23:$CE$1000,1+18*MAX(0,QUOTIENT(AQ$10-2025,5)),MATCH($E$37,'TAG - A5.4.2'!$BP$9:$CE$9,0))","v":43.744700581249155},44.45261446195552,45.171984406044139,45.902995805257994,46.645837051506625,{"$f":"INDEX('TAG - A5.4.2'!$BP23:$CE$1000,1+18*MAX(0,QUOTIENT(AV$10-2025,5)),MATCH($E$37,'TAG - A5.4.2'!$BP$9:$CE$9,0))","v":47.400699585417371},{"$f":"AV81","v":47.400699585417371},47.400699585417371,47.400699585417371,47.400699585417371,47.400699585417371,47.400699585417371,47.400699585417371,47.400699585417371,47.400699585417371,47.400699585417371,47.400699585417371,47.400699585417371,47.400699585417371,47.400699585417371,47.400699585417371,47.400699585417371,47.400699585417371,47.400699585417371,47.400699585417371,47.400699585417371,47.400699585417371,47.400699585417371,47.400699585417371,47.400699585417371,47.400699585417371,47.400699585417371,47.400699585417371,47.400699585417371,47.400699585417371,47.400699585417371,47.400699585417371,47.400699585417371,47.400699585417371,47.400699585417371,47.400699585417371]
[null,null,null,"Indirect Taxation",null,null,null,null,null,"pence per vehicle km, 2023 prices",null,null,{"$f":"INDEX('TAG - A5.4.2'!$BP24:$CE$1000,1+18*MAX(0,QUOTIENT(M$10-2025,5)),MATCH($E$37,'TAG - A5.4.2'!$BP$9:$CE$9,0))","v":-20.573548767554616},{"$f":"$M82+($R82-$M82)*(N$10-$M$10)/($R$10-$M$10)","v":-20.54546455453097},{"$f":"$M82+($R82-$M82)*(O$10-$M$10)/($R$10-$M$10)","v":-20.517380341507319},{"$f":"$M82+($R82-$M82)*(P$10-$M$10)/($R$10-$M$10)","v":-20.489296128483673},{"$f":"$M82+($R82-$M82)*(Q$10-$M$10)/($R$10-$M$10)","v":-20.461211915460023},{"$f":"INDEX('TAG - A5.4.2'!$BP24:$CE$1000,1+18*MAX(0,QUOTIENT(R$10-2025,5)),MATCH($E$37,'TAG - A5.4.2'!$BP$9:$CE$9,0))","v":-20.433127702436376},{"$f":"$R82+($W82-$R82)*(S$10-$R$10)/($W$10-$R$10)","v":-20.312495120019928},{"$f":"$R82+($W82-$R82)*(T$10-$R$10)/($W$10-$R$10)","v":-20.191862537603477},{"$f":"$R82+($W82-$R82)*(U$10-$R$10)/($W$10-$R$10)","v":-20.071229955187029},{"$f":"$R82+($W82-$R82)*(V$10-$R$10)/($W$10-$R$10)","v":-19.950597372770577},{"$f":"INDEX('TAG - A5.4.2'!$BP24:$CE$1000,1+18*MAX(0,QUOTIENT(W$10-2025,5)),MATCH($E$37,'TAG - A5.4.2'!$BP$9:$CE$9,0))","v":-19.829964790354129},{"$f":"$W82+($AB82-$W82)*(X$10-$W$10)/($AB$10-$W$10)","v":-19.818852368029788},{"$f":"$W82+($AB82-$W82)*(Y$10-$W$10)/($AB$10-$W$10)","v":-19.80773994570545},{"$f":"$W82+($AB82-$W82)*(Z$10-$W$10)/($AB$10-$W$10)","v":-19.796627523381108},{"$f":"$W82+($AB82-$W82)*(AA$10-$W$10)/($AB$10-$W$10)","v":-19.78551510105677},{"$f":"INDEX('TAG - A5.4.2'!$BP24:$CE$1000,1+18*MAX(0,QUOTIENT(AB$10-2025,5)),MATCH($E$37,'TAG - A5.4.2'!$BP$9:$CE$9,0))","v":-19.774402678732429},{"$f":"$AB82+($AG82-$AB82)*(AC$10-$AB$10)/($AG$10-$AB$10)","v":-19.750407734461465},{"$f":"$AB82+($AG82-$AB82)*(AD$10-$AB$10)/($AG$10-$AB$10)","v":-19.726412790190501},{"$f":"$AB82+($AG82-$AB82)*(AE$10-$AB$10)/($AG$10-$AB$10)","v":-19.702417845919541},{"$f":"$AB82+($AG82-$AB82)*(AF$10-$AB$10)/($AG$10-$AB$10)","v":-19.678422901648577},{"$f":"INDEX('TAG - A5.4.2'!$BP24:$CE$1000,1+18*MAX(0,QUOTIENT(AG$10-2025,5)),MATCH($E$37,'TAG - A5.4.2'!$BP$9:$CE$9,0))","v":-19.654427957377614},{"$f":"$AG82+($AL82-$AG82)*(AH$10-$AG$10)/($AL$10-$AG$10)","v":-19.584370136875403},{"$f":"$AG82+($AL82-$AG82)*(AI$10-$AG$10)/($AL$10-$AG$10)","v":-19.514312316373193},{"$f":"$AG82+($AL82-$AG82)*(AJ$10-$AG$10)/($AL$10-$AG$10)","v":-19.444254495870986},{"$f":"$AG82+($AL82-$AG82)*(AK$10-$AG$10)/($AL$10-$AG$10)","v":-19.374196675368776},{"$f":"INDEX('TAG - A5.4.2'!$BP24:$CE$1000,1+18*MAX(0,QUOTIENT(AL$10-2025,5)),MATCH($E$37,'TAG - A5.4.2'!$BP$9:$CE$9,0))","v":-19.304138854866565},{"$f":"$AL82+($AQ82-$AL82)*(AM$10-$AL$10)/($AQ$10-$AL$10)","v":-19.268348782902958},{"$f":"$AL82+($AQ82-$AL82)*(AN$10-$AL$10)/($AQ$10-$AL$10)","v":-19.232558710939351},{"$f":"$AL82+($AQ82-$AL82)*(AO$10-$AL$10)/($AQ$10-$AL$10)","v":-19.196768638975747},{"$f":"$AL82+($AQ82-$AL82)*(AP$10-$AL$10)/($AQ$10-$AL$10)","v":-19.16097856701214},{"$f":"INDEX('TAG - A5.4.2'!$BP24:$CE$1000,1+18*MAX(0,QUOTIENT(AQ$10-2025,5)),MATCH($E$37,'TAG - A5.4.2'!$BP$9:$CE$9,0))","v":-19.125188495048533},{"$f":"$AQ82+($AV82-$AQ82)*(AR$10-$AQ$10)/($AV$10-$AQ$10)","v":-19.091450955864456},{"$f":"$AQ82+($AV82-$AQ82)*(AS$10-$AQ$10)/($AV$10-$AQ$10)","v":-19.057713416680382},{"$f":"$AQ82+($AV82-$AQ82)*(AT$10-$AQ$10)/($AV$10-$AQ$10)","v":-19.023975877496305},{"$f":"$AQ82+($AV82-$AQ82)*(AU$10-$AQ$10)/($AV$10-$AQ$10)","v":-18.990238338312231},{"$f":"INDEX('TAG - A5.4.2'!$BP24:$CE$1000,1+18*MAX(0,QUOTIENT(AV$10-2025,5)),MATCH($E$37,'TAG - A5.4.2'!$BP$9:$CE$9,0))","v":-18.956500799128154},{"$f":"AV82","v":-18.956500799128154},-18.956500799128154,-18.956500799128154,-18.956500799128154,-18.956500799128154,-18.956500799128154,-18.956500799128154,-18.956500799128154,-18.956500799128154,-18.956500799128154,-18.956500799128154,-18.956500799128154,-18.956500799128154,-18.956500799128154,-18.956500799128154,-18.956500799128154,-18.956500799128154,-18.956500799128154,-18.956500799128154,-18.956500799128154,-18.956500799128154,-18.956500799128154,-18.956500799128154,-18.956500799128154,-18.956500799128154,-18.956500799128154,-18.956500799128154,-18.956500799128154,-18.956500799128154,-18.956500799128154,-18.956500799128154,-18.956500799128154,-18.956500799128154,-18.956500799128154,-18.956500799128154]
[]
[null,null,null,"Cars"]
[null,null,null,"Congestion",null,null,null,null,null,"£ per vehicle km, 2023 prices",null,null,{"$f":"M40/Hundred","v":1.1632950031877869},1.1722967739983898,1.1813682020133172,1.1905098262516374,1.1997221899034374,1.2090058403621011,1.20734945106671,1.2056953310949283,1.2040434773376871,1.2023938866901758,1.2007465560518382,1.2209533464435156,1.2415001872612184,1.2623928010511785,1.2836370066616274,1.3052387208634146,1.3121373723354708,1.3190724856373608,1.3260442534828412,1.333052869604227,1.3400985287577809,1.3511491414397121,1.362290878794961,1.3735244922484773,1.3848507394215519,1.3962703841829112,1.4178012246307321,1.4396640760526751,1.4618640581414519,1.4844063695367244,1.5072962890424855,1.5304763961558956,{"$f":"AS40/Hundred","v":1.5540129808707532},1.5779115253135958,1.602177595918393,1.6268168447230766,1.6268168447230766,1.6268168447230766,1.6268168447230766,1.6268168447230766,1.6268168447230766,1.6268168447230766,1.6268168447230766,1.6268168447230766,1.6268168447230766,1.6268168447230766,1.6268168447230766,1.6268168447230766,1.6268168447230766,1.6268168447230766,1.6268168447230766,1.6268168447230766,1.6268168447230766,1.6268168447230766,1.6268168447230766,1.6268168447230766,1.6268168447230766,1.6268168447230766,1.6268168447230766,1.6268168447230766,1.6268168447230766,1.6268168447230766,1.6268168447230766,1.6268168447230766,1.6268168447230766,1.6268168447230766,{"$f":"CA40/Hundred","v":1.6268168447230766},1.6268168447230766,1.6268168447230766,1.6268168447230766,1.6268168447230766]
[null,null,null,"Infrastructure",null,null,null,null,null,"£ per vehicle km, 2023 prices",null,null,{"$f":"M41/Hundred","v":1.5612568280054257E-3},1.5833610488613496E-3,1.6057782205213197E-3,1.6285127737321338E-3,1.6515692019709496E-3,1.6749520623334222E-3,1.7003529327899334E-3,1.7261390108201165E-3,1.7523161381479818E-3,1.7788902450880586E-3,1.8058673518888855E-3,1.8341152628420817E-3,1.8628050359688116E-3,1.891943583007814E-3,1.9215379238132866E-3,1.9515951880460626E-3,1.978884245310539E-3,2.0065548840889199E-3,2.034612440016305E-3,2.0630623233357085E-3,2.0919100199413036E-3,2.1193635437347625E-3,2.1471773583445052E-3,2.1753561921060739E-3,2.2039048354080973E-3,2.2328281415066515E-3,2.2620077890095048E-3,2.2915687698593194E-3,2.3215160674994874E-3,2.3518547304993793E-3,2.3825898734054439E-3,2.414948689005146E-3,{"$f":"AS41/Hundred","v":2.4477469813938267E-3},2.4809907192648527E-3,2.5146859523745768E-3,2.5488388126432833E-3,2.5488388126432833E-3,2.5488388126432833E-3,2.5488388126432833E-3,2.5488388126432833E-3,2.5488388126432833E-3,2.5488388126432833E-3,2.5488388126432833E-3,2.5488388126432833E-3,2.5488388126432833E-3,2.5488388126432833E-3,2.5488388126432833E-3,2.5488388126432833E-3,2.5488388126432833E-3,2.5488388126432833E-3,2.5488388126432833E-3,2.5488388126432833E-3,2.5488388126432833E-3,2.5488388126432833E-3,2.5488388126432833E-3,2.5488388126432833E-3,2.5488388126432833E-3,2.5488388126432833E-3,2.5488388126432833E-3,2.5488388126432833E-3,2.5488388126432833E-3,2.5488388126432833E-3,2.5488388126432833E-3,2.5488388126432833E-3,2.5488388126432833E-3,2.5488388126432833E-3,{"$f":"CA41/Hundred","v":2.5488388126432833E-3},2.5488388126432833E-3,2.5488388126432833E-3,2.5488388126432833E-3,2.5488388126432833E-3]
[null,null,null,"Accident",null,null,null,null,null,"£ per vehicle km, 2023 prices",null,null,{"$f":"M42/Hundred","v":4.9527418771045204E-2},5.0517967146466107E-2,5.1528326489395433E-2,5.2558893019183338E-2,5.3610070879566998E-2,5.4682272297158337E-2,5.5775917743101505E-2,5.6891436097963537E-2,5.80292648199228E-2,5.9189850116321253E-2,6.0373647118647691E-2,6.158112006102065E-2,6.2812742462241056E-2,6.4068997311485867E-2,6.5350377257715586E-2,6.665738480286991E-2,6.7990532498927309E-2,6.9350343148905855E-2,7.0737350011883984E-2,7.2152097012121663E-2,7.3595138952364095E-2,7.5067041731411377E-2,7.6568382566039622E-2,7.8099750217360403E-2,7.9661745221707631E-2,8.1254980126141782E-2,8.288007972866461E-2,8.4537681323237912E-2,8.622843494970267E-2,8.7953003648696695E-2,8.9712063721670635E-2,9.1506304996104057E-2,{"$f":"AS42/Hundred","v":9.3336431096026157E-2},9.5203159717946656E-2,9.7107222912305613E-2,9.9049367370551741E-2,9.9049367370551741E-2,9.9049367370551741E-2,9.9049367370551741E-2,9.9049367370551741E-2,9.9049367370551741E-2,9.9049367370551741E-2,9.9049367370551741E-2,9.9049367370551741E-2,9.9049367370551741E-2,9.9049367370551741E-2,9.9049367370551741E-2,9.9049367370551741E-2,9.9049367370551741E-2,9.9049367370551741E-2,9.9049367370551741E-2,9.9049367370551741E-2,9.9049367370551741E-2,9.9049367370551741E-2,9.9049367370551741E-2,9.9049367370551741E-2,9.9049367370551741E-2,9.9049367370551741E-2,9.9049367370551741E-2,9.9049367370551741E-2,9.9049367370551741E-2,9.9049367370551741E-2,9.9049367370551741E-2,9.9049367370551741E-2,9.9049367370551741E-2,9.9049367370551741E-2,{"$f":"CA42/Hundred","v":9.9049367370551741E-2},9.9049367370551741E-2,9.9049367370551741E-2,9.9049367370551741E-2,9.9049367370551741E-2]
[null,null,null,"Local Air Quality",null,null,null,null,null,"£ per vehicle km, 2023 prices",null,null,{"$f":"M43/Hundred","v":4.4363607043021334E-3},4.1758390611043254E-3,3.9306163376964867E-3,3.6997941175637072E-3,3.4825267429639444E-3,3.2780182167123587E-3,3.2019142976714636E-3,3.1275772408352548E-3,3.054966025950246E-3,2.984040585107278E-3,2.9147617806314706E-3,2.925121872927189E-3,2.9355187886480972E-3,2.9459526586776484E-3,2.9564236143644991E-3,2.9669317875241664E-3,3.0084005505550044E-3,3.0504489218918167E-3,3.0930850027115803E-3,3.1363170074213079E-3,3.1801532652406604E-3,3.2384804437283967E-3,3.2978774007665955E-3,3.3583637571594303E-3,3.4199594935761645E-3,3.4826849571514391E-3,3.5524559156005571E-3,3.6236246423528083E-3,3.696219139836034E-3,3.7702679714694486E-3,3.8458002729023616E-3,3.9228532700014166E-3,{"$f":"AS43/Hundred","v":4.0014500717550647E-3},4.0816216092484214E-3,4.1633994332901034E-3,4.2468157268287692E-3,4.2468157268287692E-3,4.2468157268287692E-3,4.2468157268287692E-3,4.2468157268287692E-3,4.2468157268287692E-3,4.2468157268287692E-3,4.2468157268287692E-3,4.2468157268287692E-3,4.2468157268287692E-3,4.2468157268287692E-3,4.2468157268287692E-3,4.2468157268287692E-3,4.2468157268287692E-3,4.2468157268287692E-3,4.2468157268287692E-3,4.2468157268287692E-3,4.2468157268287692E-3,4.2468157268287692E-3,4.2468157268287692E-3,4.2468157268287692E-3,4.2468157268287692E-3,4.2468157268287692E-3,4.2468157268287692E-3,4.2468157268287692E-3,4.2468157268287692E-3,4.2468157268287692E-3,4.2468157268287692E-3,4.2468157268287692E-3,4.2468157268287692E-3,4.2468157268287692E-3,{"$f":"CA43/Hundred","v":4.2468157268287692E-3},4.2468157268287692E-3,4.2468157268287692E-3,4.2468157268287692E-3,4.2468157268287692E-3]
[null,null,null,"Noise",null,null,null,null,null,"£ per vehicle km, 2023 prices",null,null,{"$f":"M44/Hundred","v":3.3018279180696804E-3},3.3678644764310738E-3,3.435221765959695E-3,3.503926201278889E-3,3.5740047253044671E-3,3.6454848198105559E-3,3.7183945162067673E-3,3.7927624065309026E-3,3.8686176546615207E-3,3.9459900077547516E-3,4.0249098079098468E-3,4.1054080040680433E-3,4.1875161641494046E-3,4.2712664874323923E-3,4.3566918171810401E-3,4.4438256535246608E-3,4.5327021665951548E-3,4.6233562099270578E-3,4.7158233341255988E-3,4.8101398008081105E-3,4.9063425968242733E-3,5.0044694487607587E-3,5.1045588377359738E-3,5.2066500144906935E-3,5.3107830147805079E-3,5.4169986750761175E-3,5.5253386485776398E-3,5.6358454215491927E-3,5.7485623299801782E-3,5.8635335765797811E-3,5.980804248111378E-3,6.1004203330736048E-3,{"$f":"AS44/Hundred","v":6.2224287397350773E-3},6.3468773145297789E-3,6.4738148608203738E-3,6.6032911580367814E-3,6.6032911580367814E-3,6.6032911580367814E-3,6.6032911580367814E-3,6.6032911580367814E-3,6.6032911580367814E-3,6.6032911580367814E-3,6.6032911580367814E-3,6.6032911580367814E-3,6.6032911580367814E-3,6.6032911580367814E-3,6.6032911580367814E-3,6.6032911580367814E-3,6.6032911580367814E-3,6.6032911580367814E-3,6.6032911580367814E-3,6.6032911580367814E-3,6.6032911580367814E-3,6.6032911580367814E-3,6.6032911580367814E-3,6.6032911580367814E-3,6.6032911580367814E-3,6.6032911580367814E-3,6.6032911580367814E-3,6.6032911580367814E-3,6.6032911580367814E-3,6.6032911580367814E-3,6.6032911580367814E-3,6.6032911580367814E-3,6.6032911580367814E-3,6.6032911580367814E-3,{"$f":"CA44/Hundred","v":6.6032911580367814E-3},6.6032911580367814E-3,6.6032911580367814E-3,6.6032911580367814E-3,6.6032911580367814E-3]
[null,null,null,"Greenhouse Gases",null,null,null,null,null,"£ per vehicle km, 2023 prices",null,null,{"$f":"M45/Hundred","v":4.4689874547784697E-2},4.2988436791729125E-2,4.1351776358658346E-2,3.9777427039298367E-2,3.8263016518162482E-2,3.6806262798816748E-2,3.5142372741366487E-2,3.3553701679618533E-2,3.2036849210229437E-2,3.0588568650904414E-2,2.9205760091174451E-2,2.8422370725017462E-2,2.7659994299358927E-2,2.6918067181748023E-2,2.6196040858110135E-2,2.5493381527224964E-2,2.5316443419445202E-2,2.5140733359578629E-2,2.4966242824296409E-2,2.4792963349426288E-2,2.4620886529542051E-2,2.4740578554906599E-2,2.486085245131461E-2,2.4981711047475093E-2,2.5103157185848563E-2,2.5225193722713864E-2,2.5628918955976562E-2,2.603910574770199E-2,2.6455857514110705E-2,2.6879279326583502E-2,2.7309477938152013E-2,2.7739105099527241E-2,{"$f":"AS45/Hundred","v":2.8175491068163794E-2},2.861874217224504E-2,2.9068966412687736E-2,2.9526273489457147E-2,2.9526273489457147E-2,2.9526273489457147E-2,2.9526273489457147E-2,2.9526273489457147E-2,2.9526273489457147E-2,2.9526273489457147E-2,2.9526273489457147E-2,2.9526273489457147E-2,2.9526273489457147E-2,2.9526273489457147E-2,2.9526273489457147E-2,2.9526273489457147E-2,2.9526273489457147E-2,2.9526273489457147E-2,2.9526273489457147E-2,2.9526273489457147E-2,2.9526273489457147E-2,2.9526273489457147E-2,2.9526273489457147E-2,2.9526273489457147E-2,2.9526273489457147E-2,2.9526273489457147E-2,2.9526273489457147E-2,2.9526273489457147E-2,2.9526273489457147E-2,2.9526273489457147E-2,2.9526273489457147E-2,2.9526273489457147E-2,2.9526273489457147E-2,2.9526273489457147E-2,{"$f":"CA45/Hundred","v":2.9526273489457147E-2},2.9526273489457147E-2,2.9526273489457147E-2,2.9526273489457147E-2,2.9526273489457147E-2]
[null,null,null,"Indirect Taxation",null,null,null,null,null,"£ per vehicle km, 2023 prices",null,null,{"$f":"M46/Hundred","v":-3.1991489889865395E-2},-2.7803938914095744E-2,-2.361638793832609E-2,-1.9428836962556439E-2,-1.5241285986786788E-2,-1.1053735011017134E-2,-7.5896460762010613E-3,-4.1255571413849881E-3,-6.6146820656891368E-4,2.8026207282471583E-3,6.2667096630632324E-3,7.8709609477143651E-3,9.4752122323654986E-3,1.1079463517016632E-2,1.2683714801667766E-2,1.4287966086318897E-2,1.4906389656651991E-2,1.5524813226985084E-2,1.6143236797318175E-2,1.6761660367651268E-2,1.7380083937984361E-2,1.7507848727675281E-2,1.7635613517366193E-2,1.7763378307057109E-2,1.7891143096748024E-2,1.801890788643894E-2,1.802566767217512E-2,1.8032427457911299E-2,1.8039187243647482E-2,1.8045947029383658E-2,1.8052706815119841E-2,1.80590828670943E-2,{"$f":"AS46/Hundred","v":1.8065458919068758E-2},1.8071834971043216E-2,1.8078211023017675E-2,1.8084587074992133E-2,1.8084587074992133E-2,1.8084587074992133E-2,1.8084587074992133E-2,1.8084587074992133E-2,1.8084587074992133E-2,1.8084587074992133E-2,1.8084587074992133E-2,1.8084587074992133E-2,1.8084587074992133E-2,1.8084587074992133E-2,1.8084587074992133E-2,1.8084587074992133E-2,1.8084587074992133E-2,1.8084587074992133E-2,1.8084587074992133E-2,1.8084587074992133E-2,1.8084587074992133E-2,1.8084587074992133E-2,1.8084587074992133E-2,1.8084587074992133E-2,1.8084587074992133E-2,1.8084587074992133E-2,1.8084587074992133E-2,1.8084587074992133E-2,1.8084587074992133E-2,1.8084587074992133E-2,1.8084587074992133E-2,1.8084587074992133E-2,1.8084587074992133E-2,1.8084587074992133E-2,{"$f":"CA46/Hundred","v":1.8084587074992133E-2},1.8084587074992133E-2,1.8084587074992133E-2,1.8084587074992133E-2,1.8084587074992133E-2]
[]
[null,null,null,"LGV"]
[null,null,null,"Congestion",null,null,null,null,null,"£ per vehicle km, 2023 prices",null,null,{"$f":"M49/Hundred","v":1.1632950031877869},1.1722967739983898,1.1813682020133172,1.1905098262516374,1.1997221899034374,1.2090058403621011,1.20734945106671,1.2056953310949283,1.2040434773376871,1.2023938866901758,1.2007465560518382,1.2209533464435156,1.2415001872612184,1.2623928010511785,1.2836370066616274,1.3052387208634146,1.3121373723354708,1.3190724856373608,1.3260442534828412,1.333052869604227,1.3400985287577809,1.3511491414397121,1.362290878794961,1.3735244922484773,1.3848507394215519,1.3962703841829112,1.4178012246307321,1.4396640760526751,1.4618640581414519,1.4844063695367244,1.5072962890424855,1.5304763961558956,{"$f":"AS49/Hundred","v":1.5540129808707532},1.5779115253135958,1.602177595918393,1.6268168447230766,1.6268168447230766,1.6268168447230766,1.6268168447230766,1.6268168447230766,1.6268168447230766,1.6268168447230766,1.6268168447230766,1.6268168447230766,1.6268168447230766,1.6268168447230766,1.6268168447230766,1.6268168447230766,1.6268168447230766,1.6268168447230766,1.6268168447230766,1.6268168447230766,1.6268168447230766,1.6268168447230766,1.6268168447230766,1.6268168447230766,1.6268168447230766,1.6268168447230766,1.6268168447230766,1.6268168447230766,1.6268168447230766,1.6268168447230766,1.6268168447230766,1.6268168447230766,1.6268168447230766,1.6268168447230766,{"$f":"CA49/Hundred","v":1.6268168447230766},1.6268168447230766,1.6268168447230766,1.6268168447230766,1.6268168447230766]
[null,null,null,"Infrastructure",null,null,null,null,null,"£ per vehicle km, 2023 prices",null,null,{"$f":"M50/Hundred","v":1.5612568280054257E-3},1.5833610488613496E-3,1.6057782205213197E-3,1.6285127737321338E-3,1.6515692019709496E-3,1.6749520623334222E-3,1.7003529327899334E-3,1.7261390108201165E-3,1.7523161381479818E-3,1.7788902450880586E-3,1.8058673518888855E-3,1.8341152628420817E-3,1.8628050359688116E-3,1.891943583007814E-3,1.9215379238132866E-3,1.9515951880460626E-3,1.978884245310539E-3,2.0065548840889199E-3,2.034612440016305E-3,2.0630623233357085E-3,2.0919100199413036E-3,2.1193635437347625E-3,2.1471773583445052E-3,2.1753561921060739E-3,2.2039048354080973E-3,2.2328281415066515E-3,2.2620077890095048E-3,2.2915687698593194E-3,2.3215160674994874E-3,2.3518547304993793E-3,2.3825898734054439E-3,2.414948689005146E-3,{"$f":"AS50/Hundred","v":2.4477469813938267E-3},2.4809907192648527E-3,2.5146859523745768E-3,2.5488388126432833E-3,2.5488388126432833E-3,2.5488388126432833E-3,2.5488388126432833E-3,2.5488388126432833E-3,2.5488388126432833E-3,2.5488388126432833E-3,2.5488388126432833E-3,2.5488388126432833E-3,2.5488388126432833E-3,2.5488388126432833E-3,2.5488388126432833E-3,2.5488388126432833E-3,2.5488388126432833E-3,2.5488388126432833E-3,2.5488388126432833E-3,2.5488388126432833E-3,2.5488388126432833E-3,2.5488388126432833E-3,2.5488388126432833E-3,2.5488388126432833E-3,2.5488388126432833E-3,2.5488388126432833E-3,2.5488388126432833E-3,2.5488388126432833E-3,2.5488388126432833E-3,2.5488388126432833E-3,2.5488388126432833E-3,2.5488388126432833E-3,2.5488388126432833E-3,2.5488388126432833E-3,{"$f":"CA50/Hundred","v":2.5488388126432833E-3},2.5488388126432833E-3,2.5488388126432833E-3,2.5488388126432833E-3,2.5488388126432833E-3]
[null,null,null,"Accident",null,null,null,null,null,"£ per vehicle km, 2023 prices",null,null,{"$f":"M51/Hundred","v":4.9527418771045204E-2},5.0517967146466107E-2,5.1528326489395433E-2,5.2558893019183338E-2,5.3610070879566998E-2,5.4682272297158337E-2,5.5775917743101505E-2,5.6891436097963537E-2,5.80292648199228E-2,5.9189850116321253E-2,6.0373647118647691E-2,6.158112006102065E-2,6.2812742462241056E-2,6.4068997311485867E-2,6.5350377257715586E-2,6.665738480286991E-2,6.7990532498927309E-2,6.9350343148905855E-2,7.0737350011883984E-2,7.2152097012121663E-2,7.3595138952364095E-2,7.5067041731411377E-2,7.6568382566039622E-2,7.8099750217360403E-2,7.9661745221707631E-2,8.1254980126141782E-2,8.288007972866461E-2,8.4537681323237912E-2,8.622843494970267E-2,8.7953003648696695E-2,8.9712063721670635E-2,9.1506304996104057E-2,{"$f":"AS51/Hundred","v":9.3336431096026157E-2},9.5203159717946656E-2,9.7107222912305613E-2,9.9049367370551741E-2,9.9049367370551741E-2,9.9049367370551741E-2,9.9049367370551741E-2,9.9049367370551741E-2,9.9049367370551741E-2,9.9049367370551741E-2,9.9049367370551741E-2,9.9049367370551741E-2,9.9049367370551741E-2,9.9049367370551741E-2,9.9049367370551741E-2,9.9049367370551741E-2,9.9049367370551741E-2,9.9049367370551741E-2,9.9049367370551741E-2,9.9049367370551741E-2,9.9049367370551741E-2,9.9049367370551741E-2,9.9049367370551741E-2,9.9049367370551741E-2,9.9049367370551741E-2,9.9049367370551741E-2,9.9049367370551741E-2,9.9049367370551741E-2,9.9049367370551741E-2,9.9049367370551741E-2,9.9049367370551741E-2,9.9049367370551741E-2,9.9049367370551741E-2,9.9049367370551741E-2,{"$f":"CA51/Hundred","v":9.9049367370551741E-2},9.9049367370551741E-2,9.9049367370551741E-2,9.9049367370551741E-2,9.9049367370551741E-2]
[null,null,null,"Local Air Quality",null,null,null,null,null,"£ per vehicle km, 2023 prices",null,null,{"$f":"M52/Hundred","v":1.0554971222475486E-2},9.8804519487118766E-3,9.2490380743935792E-3,8.6579749332959029E-3,8.1046838971408422E-3,7.5867511258280902E-3,7.2663127014882308E-3,6.9594085004397932E-3,6.6654668833717968E-3,6.3839403550630079E-3,6.114304544618158E-3,6.03948607797118E-3,5.9655831370247223E-3,5.8925845188318934E-3,5.8204791575320906E-3,5.7492561226735218E-3,5.7683254334812408E-3,5.7874579939697721E-3,5.8066540139276208E-3,5.8259137038391183E-3,5.8452372748867406E-3,5.9128440039285975E-3,5.9812326806650985E-3,6.0504123491988892E-3,6.1203921582378175E-3,6.1911813623048003E-3,6.3154707144989731E-3,6.4422552032696468E-3,6.5715849190423163E-3,6.7035109578189762E-3,6.8380854413653104E-3,6.9753668726798244E-3,{"$f":"AS52/Hundred","v":7.1154043665714109E-3},7.2582532537636482E-3,7.4039699757999485E-3,7.5526121073443827E-3,7.5526121073443827E-3,7.5526121073443827E-3,7.5526121073443827E-3,7.5526121073443827E-3,7.5526121073443827E-3,7.5526121073443827E-3,7.5526121073443827E-3,7.5526121073443827E-3,7.5526121073443827E-3,7.5526121073443827E-3,7.5526121073443827E-3,7.5526121073443827E-3,7.5526121073443827E-3,7.5526121073443827E-3,7.5526121073443827E-3,7.5526121073443827E-3,7.5526121073443827E-3,7.5526121073443827E-3,7.5526121073443827E-3,7.5526121073443827E-3,7.5526121073443827E-3,7.5526121073443827E-3,7.5526121073443827E-3,7.5526121073443827E-3,7.5526121073443827E-3,7.5526121073443827E-3,7.5526121073443827E-3,7.5526121073443827E-3,7.5526121073443827E-3,7.5526121073443827E-3,{"$f":"CA52/Hundred","v":7.5526121073443827E-3},7.5526121073443827E-3,7.5526121073443827E-3,7.5526121073443827E-3,7.5526121073443827E-3]
[null,null,null,"Noise",null,null,null,null,null,"£ per vehicle km, 2023 prices",null,null,{"$f":"M53/Hundred","v":3.3018279180696804E-3},3.3678644764310738E-3,3.435221765959695E-3,3.503926201278889E-3,3.5740047253044671E-3,3.6454848198105559E-3,3.7183945162067673E-3,3.7927624065309026E-3,3.8686176546615207E-3,3.9459900077547516E-3,4.0249098079098468E-3,4.1054080040680433E-3,4.1875161641494046E-3,4.2712664874323923E-3,4.3566918171810401E-3,4.4438256535246608E-3,4.5327021665951548E-3,4.6233562099270578E-3,4.7158233341255988E-3,4.8101398008081105E-3,4.9063425968242733E-3,5.0044694487607587E-3,5.1045588377359738E-3,5.2066500144906935E-3,5.3107830147805079E-3,5.4169986750761175E-3,5.5253386485776398E-3,5.6358454215491927E-3,5.7485623299801782E-3,5.8635335765797811E-3,5.980804248111378E-3,6.1004203330736048E-3,{"$f":"AS53/Hundred","v":6.2224287397350773E-3},6.3468773145297789E-3,6.4738148608203738E-3,6.6032911580367814E-3,6.6032911580367814E-3,6.6032911580367814E-3,6.6032911580367814E-3,6.6032911580367814E-3,6.6032911580367814E-3,6.6032911580367814E-3,6.6032911580367814E-3,6.6032911580367814E-3,6.6032911580367814E-3,6.6032911580367814E-3,6.6032911580367814E-3,6.6032911580367814E-3,6.6032911580367814E-3,6.6032911580367814E-3,6.6032911580367814E-3,6.6032911580367814E-3,6.6032911580367814E-3,6.6032911580367814E-3,6.6032911580367814E-3,6.6032911580367814E-3,6.6032911580367814E-3,6.6032911580367814E-3,6.6032911580367814E-3,6.6032911580367814E-3,6.6032911580367814E-3,6.6032911580367814E-3,6.6032911580367814E-3,6.6032911580367814E-3,6.6032911580367814E-3,6.6032911580367814E-3,{"$f":"CA53/Hundred","v":6.6032911580367814E-3},6.6032911580367814E-3,6.6032911580367814E-3,6.6032911580367814E-3,6.6032911580367814E-3]
[null,null,null,"Greenhouse Gases",null,null,null,null,null,"£ per vehicle km, 2023 prices",null,null,{"$f":"M54/Hundred","v":6.4904656220361956E-2},6.4823778245062511E-2,6.4743001052160937E-2,6.4662324516071887E-2,6.4581748511366444E-2,6.4501272912772037E-2,6.2848557325642124E-2,6.1238189256454009E-2,5.9669083635102593E-2,5.8140183194225169E-2,5.6650457756812017E-2,5.4981474852692946E-2,5.3361661964925713E-2,5.1789570492387992E-2,5.026379451129151E-2,4.8782969517862179E-2,4.7892757694726493E-2,4.7018790825472917E-2,4.6160772465457869E-2,4.5318411579682347E-2,4.4491422444074467E-2,4.4112515058721546E-2,4.3736834605635301E-2,4.3364353602923705E-2,4.2995044802741897E-2,4.2628881189298966E-2,4.3310995810567111E-2,4.4004025106196103E-2,4.4708143724423464E-2,4.54235291080737E-2,4.6150361539275167E-2,4.6878210665872368E-2,{"$f":"AS54/Hundred","v":4.7617538886747884E-2},4.8368527241626366E-2,4.9131359625456124E-2,4.9906222833439623E-2,4.9906222833439623E-2,4.9906222833439623E-2,4.9906222833439623E-2,4.9906222833439623E-2,4.9906222833439623E-2,4.9906222833439623E-2,4.9906222833439623E-2,4.9906222833439623E-2,4.9906222833439623E-2,4.9906222833439623E-2,4.9906222833439623E-2,4.9906222833439623E-2,4.9906222833439623E-2,4.9906222833439623E-2,4.9906222833439623E-2,4.9906222833439623E-2,4.9906222833439623E-2,4.9906222833439623E-2,4.9906222833439623E-2,4.9906222833439623E-2,4.9906222833439623E-2,4.9906222833439623E-2,4.9906222833439623E-2,4.9906222833439623E-2,4.9906222833439623E-2,4.9906222833439623E-2,4.9906222833439623E-2,4.9906222833439623E-2,4.9906222833439623E-2,4.9906222833439623E-2,{"$f":"CA54/Hundred","v":4.9906222833439623E-2},4.9906222833439623E-2,4.9906222833439623E-2,4.9906222833439623E-2,4.9906222833439623E-2]
[null,null,null,"Indirect Taxation",null,null,null,null,null,"£ per vehicle km, 2023 prices",null,null,{"$f":"M55/Hundred","v":-5.0747367469764292E-2},-4.7878624882147253E-2,-4.5009882294530207E-2,-4.2141139706913168E-2,-3.9272397119296129E-2,-3.6403654531679083E-2,-3.3066759796054362E-2,-2.9729865060429645E-2,-2.6392970324804924E-2,-2.3056075589180203E-2,-1.9719180853555486E-2,-1.8016807087041523E-2,-1.6314433320527559E-2,-1.4612059554013597E-2,-1.2909685787499634E-2,-1.1207312020985672E-2,-1.0475270122639524E-2,-9.7432282242933769E-3,-9.0111863259472284E-3,-8.27914442760108E-3,-7.5471025292549333E-3,-7.205414749278511E-3,-6.8637269693020888E-3,-6.5220391893256666E-3,-6.1803514093492452E-3,-5.8386636293728221E-3,-5.8203028965123091E-3,-5.8019421636517961E-3,-5.7835814307912823E-3,-5.7652206979307693E-3,-5.7468599650702563E-3,-5.7294857411767618E-3,{"$f":"AS55/Hundred","v":-5.7121115172832681E-3},-5.6947372933897735E-3,-5.6773630694962798E-3,-5.6599888456027843E-3,-5.6599888456027843E-3,-5.6599888456027843E-3,-5.6599888456027843E-3,-5.6599888456027843E-3,-5.6599888456027843E-3,-5.6599888456027843E-3,-5.6599888456027843E-3,-5.6599888456027843E-3,-5.6599888456027843E-3,-5.6599888456027843E-3,-5.6599888456027843E-3,-5.6599888456027843E-3,-5.6599888456027843E-3,-5.6599888456027843E-3,-5.6599888456027843E-3,-5.6599888456027843E-3,-5.6599888456027843E-3,-5.6599888456027843E-3,-5.6599888456027843E-3,-5.6599888456027843E-3,-5.6599888456027843E-3,-5.6599888456027843E-3,-5.6599888456027843E-3,-5.6599888456027843E-3,-5.6599888456027843E-3,-5.6599888456027843E-3,-5.6599888456027843E-3,-5.6599888456027843E-3,-5.6599888456027843E-3,-5.6599888456027843E-3,{"$f":"CA55/Hundred","v":-5.6599888456027843E-3},-5.6599888456027843E-3,-5.6599888456027843E-3,-5.6599888456027843E-3,-5.6599888456027843E-3]
[]
[null,null,null,"HGV - Rigids"]
[null,null,null,"Congestion",null,null,null,null,null,"£ per vehicle km, 2023 prices",null,null,{"$f":"M58/Hundred","v":2.2102605060567946},2.2273638705969407,2.2445995838253023,2.2619686698781107,2.2794721608165309,2.297111096687992,2.2939639570267487,2.2908211290803639,2.2876826069416052,2.2845483847113339,2.2814184564984927,2.31981135824268,2.3588503557963145,2.3985463219972387,2.4389103126570917,2.4799535696404877,2.4930610074373947,2.5062377227109853,2.5194840816173976,2.5328004522480314,2.5461872046397835,2.5671833687354528,2.5883526697104258,2.6096965352721067,2.6312164049009485,2.6529137299475307,2.693822326798391,2.7353617445000826,2.7775417104687588,2.8203721021197765,2.8638629491807222,2.9079051526962014,{"$f":"AS58/Hundred","v":2.9526246636544315},2.9980318980958329,3.0441374322449466,3.0909520049738455,3.0909520049738455,3.0909520049738455,3.0909520049738455,3.0909520049738455,3.0909520049738455,3.0909520049738455,3.0909520049738455,3.0909520049738455,3.0909520049738455,3.0909520049738455,3.0909520049738455,3.0909520049738455,3.0909520049738455,3.0909520049738455,3.0909520049738455,3.0909520049738455,3.0909520049738455,3.0909520049738455,3.0909520049738455,3.0909520049738455,3.0909520049738455,3.0909520049738455,3.0909520049738455,3.0909520049738455,3.0909520049738455,3.0909520049738455,3.0909520049738455,3.0909520049738455,3.0909520049738455,3.0909520049738455,{"$f":"CA58/Hundred","v":3.0909520049738455},3.0909520049738455,3.0909520049738455,3.0909520049738455,3.0909520049738455]
[null,null,null,"Infrastructure",null,null,null,null,null,"£ per vehicle km, 2023 prices",null,null,{"$f":"M59/Hundred","v":5.6205245808195317E-2},5.7000997759008569E-2,5.7808015938767505E-2,5.8626459854356813E-2,5.9456491270954183E-2,6.0298274244003192E-2,6.1212705580437593E-2,6.2141004389524197E-2,6.3083380973327344E-2,6.4040048823170104E-2,6.501122466799987E-2,6.6028149462314931E-2,6.7060981294877212E-2,6.8109968988281297E-2,6.9175365257278312E-2,7.0257426769658238E-2,7.1239832831179378E-2,7.2235975827201121E-2,7.3246047840586956E-2,7.4270243640085498E-2,7.5308760717886919E-2,7.6297087574451417E-2,7.7298384900402167E-2,7.8312822915818661E-2,7.9340574074691472E-2,8.0381813094239418E-2,8.1432280404342153E-2,8.2496475714935485E-2,8.3574578429981533E-2,8.4666770297977631E-2,8.5773235442595977E-2,8.6938152804185265E-2,{"$f":"AS59/Hundred","v":8.8118891330177751E-2},8.9315665893534693E-2,9.0528694285484768E-2,9.1758197255158186E-2,9.1758197255158186E-2,9.1758197255158186E-2,9.1758197255158186E-2,9.1758197255158186E-2,9.1758197255158186E-2,9.1758197255158186E-2,9.1758197255158186E-2,9.1758197255158186E-2,9.1758197255158186E-2,9.1758197255158186E-2,9.1758197255158186E-2,9.1758197255158186E-2,9.1758197255158186E-2,9.1758197255158186E-2,9.1758197255158186E-2,9.1758197255158186E-2,9.1758197255158186E-2,9.1758197255158186E-2,9.1758197255158186E-2,9.1758197255158186E-2,9.1758197255158186E-2,9.1758197255158186E-2,9.1758197255158186E-2,9.1758197255158186E-2,9.1758197255158186E-2,9.1758197255158186E-2,9.1758197255158186E-2,9.1758197255158186E-2,9.1758197255158186E-2,9.1758197255158186E-2,{"$f":"CA59/Hundred","v":9.1758197255158186E-2},9.1758197255158186E-2,9.1758197255158186E-2,9.1758197255158186E-2,9.1758197255158186E-2]
[null,null,null,"Accident",null,null,null,null,null,"£ per vehicle km, 2023 prices",null,null,{"$f":"M60/Hundred","v":5.2829246689114887E-2},5.388583162289718E-2,5.496354825535512E-2,5.6062819220462225E-2,5.7184075604871473E-2,5.8327757116968894E-2,5.9494312259308277E-2,6.0684198504494441E-2,6.1897882474584331E-2,6.3135840124076026E-2,6.4398556926557549E-2,6.5686528065088692E-2,6.7000258626390474E-2,6.8340263798918277E-2,6.9707069074896641E-2,7.1101210456394573E-2,7.2523234665522476E-2,7.3973699358832926E-2,7.545317334600958E-2,7.6962236812929768E-2,7.8501481549188373E-2,8.0071511180172139E-2,8.1672941403775581E-2,8.3306400231851097E-2,8.4972528236488126E-2,8.667197880121788E-2,8.8405418377242237E-2,9.0173526744787083E-2,9.1976997279682851E-2,9.3816537225276497E-2,9.5692867969782047E-2,9.7606725329177677E-2,{"$f":"AS60/Hundred","v":9.9558859835761238E-2},0.10155003703247646,0.10358103777312598,0.1056526585285885,0.1056526585285885,0.1056526585285885,0.1056526585285885,0.1056526585285885,0.1056526585285885,0.1056526585285885,0.1056526585285885,0.1056526585285885,0.1056526585285885,0.1056526585285885,0.1056526585285885,0.1056526585285885,0.1056526585285885,0.1056526585285885,0.1056526585285885,0.1056526585285885,0.1056526585285885,0.1056526585285885,0.1056526585285885,0.1056526585285885,0.1056526585285885,0.1056526585285885,0.1056526585285885,0.1056526585285885,0.1056526585285885,0.1056526585285885,0.1056526585285885,0.1056526585285885,0.1056526585285885,0.1056526585285885,{"$f":"CA60/Hundred","v":0.1056526585285885},0.1056526585285885,0.1056526585285885,0.1056526585285885,0.1056526585285885]
[null,null,null,"Local Air Quality",null,null,null,null,null,"£ per vehicle km, 2023 prices",null,null,{"$f":"M61/Hundred","v":1.6589183743005186E-2},1.6384561550685899E-2,1.6182463306635447E-2,1.5982857878771864E-2,1.5785714519017297E-2,1.5591002858561449E-2,1.5876025581029459E-2,1.6166258869684907E-2,1.6461797980091133E-2,1.6762739909200425E-2,1.7069183427188737E-2,1.7462727105419098E-2,1.7865344247962253E-2,1.827724405079615E-2,1.8698640533079364E-2,1.9129752648353371E-2,1.9556350050937935E-2,1.9992460662984067E-2,2.0438296631011453E-2,2.08940748324506E-2,2.1360016981143155E-2,2.1819314861644016E-2,2.2288488883311745E-2,2.2767751409774595E-2,2.325731937105064E-2,2.375741436173746E-2,2.4259495296077543E-2,2.4772187034303502E-2,2.5295713821455127E-2,2.583030464168893E-2,2.6376193318432946E-2,2.6937718299249059E-2,{"$f":"AS61/Hundred","v":2.7511197632244581E-2},2.809688581462071E-2,2.8695042761590822E-2,2.9305933921724966E-2,2.9305933921724966E-2,2.9305933921724966E-2,2.9305933921724966E-2,2.9305933921724966E-2,2.9305933921724966E-2,2.9305933921724966E-2,2.9305933921724966E-2,2.9305933921724966E-2,2.9305933921724966E-2,2.9305933921724966E-2,2.9305933921724966E-2,2.9305933921724966E-2,2.9305933921724966E-2,2.9305933921724966E-2,2.9305933921724966E-2,2.9305933921724966E-2,2.9305933921724966E-2,2.9305933921724966E-2,2.9305933921724966E-2,2.9305933921724966E-2,2.9305933921724966E-2,2.9305933921724966E-2,2.9305933921724966E-2,2.9305933921724966E-2,2.9305933921724966E-2,2.9305933921724966E-2,2.9305933921724966E-2,2.9305933921724966E-2,2.9305933921724966E-2,2.9305933921724966E-2,{"$f":"CA61/Hundred","v":2.9305933921724966E-2},2.9305933921724966E-2,2.9305933921724966E-2,2.9305933921724966E-2,2.9305933921724966E-2]
[null,null,null,"Noise",null,null,null,null,null,"£ per vehicle km, 2023 prices",null,null,{"$f":"M62/Hundred","v":8.2545697951741992E-2},8.4196611910776833E-2,8.5880544148992363E-2,8.7598155031972227E-2,8.9350118132611664E-2,9.1137120495263901E-2,9.295986290516918E-2,9.4819060163272559E-2,9.6715441366538007E-2,9.8649750193868777E-2,0.10062274519774615,0.10263520010170107,0.1046879041037351,0.10678166218580978,0.10891729542952598,0.11109564133811652,0.11331755416487885,0.11558390524817642,0.11789558335313995,0.12025349502020276,0.12265856492060681,0.12511173621901894,0.12761397094339932,0.13016625036226734,0.1327695753695127,0.13542496687690295,0.13813346621444103,0.14089613553872982,0.14371405824950442,0.14658833941449451,0.14952010620278441,0.1525105083268401,{"$f":"AS62/Hundred","v":0.15556071849337691},0.15867193286324444,0.16184537152050932,0.16508227895091954,0.16508227895091954,0.16508227895091954,0.16508227895091954,0.16508227895091954,0.16508227895091954,0.16508227895091954,0.16508227895091954,0.16508227895091954,0.16508227895091954,0.16508227895091954,0.16508227895091954,0.16508227895091954,0.16508227895091954,0.16508227895091954,0.16508227895091954,0.16508227895091954,0.16508227895091954,0.16508227895091954,0.16508227895091954,0.16508227895091954,0.16508227895091954,0.16508227895091954,0.16508227895091954,0.16508227895091954,0.16508227895091954,0.16508227895091954,0.16508227895091954,0.16508227895091954,0.16508227895091954,0.16508227895091954,{"$f":"CA62/Hundred","v":0.16508227895091954},0.16508227895091954,0.16508227895091954,0.16508227895091954,0.16508227895091954]
[null,null,null,"Greenhouse Gases",null,null,null,null,null,"£ per vehicle km, 2023 prices",null,null,{"$f":"M63/Hundred","v":0.21728676365949898},0.21818056060603289,0.21907803413630425,0.21997919937373461,0.22088407150395478,0.2217926657750609,0.2218425085329036,0.22189236249175018,0.22194222765411784,0.22199210402252423,0.2220419915994877,0.22351111690804426,0.22498996258145929,0.22647859293384695,0.22797707270485149,0.22948546706246234,0.23215612679295247,0.23485786658915375,0.2375910481483928,0.24035603737728437,0.24315320444071753,0.24632441492069604,0.24953698441106253,0.25279145231711697,0.25608836507909738,0.25942827626392978,0.26353537270294231,0.26770748996929983,0.27194565742962451,0.27625092074678831,0.28062434213790455,0.28508202323752391,{"$f":"AS63/Hundred","v":0.28961051402041782},0.29421093928917608,0.29888444171373107,0.30363218211517795,0.30363218211517795,0.30363218211517795,0.30363218211517795,0.30363218211517795,0.30363218211517795,0.30363218211517795,0.30363218211517795,0.30363218211517795,0.30363218211517795,0.30363218211517795,0.30363218211517795,0.30363218211517795,0.30363218211517795,0.30363218211517795,0.30363218211517795,0.30363218211517795,0.30363218211517795,0.30363218211517795,0.30363218211517795,0.30363218211517795,0.30363218211517795,0.30363218211517795,0.30363218211517795,0.30363218211517795,0.30363218211517795,0.30363218211517795,0.30363218211517795,0.30363218211517795,0.30363218211517795,0.30363218211517795,{"$f":"CA63/Hundred","v":0.30363218211517795},0.30363218211517795,0.30363218211517795,0.30363218211517795,0.30363218211517795]
[null,null,null,"Indirect Taxation",null,null,null,null,null,"£ per vehicle km, 2023 prices",null,null,{"$f":"M64/Hundred","v":-0.17976027768344197},-0.17912023621622442,-0.17848019474900689,-0.17784015328178931,-0.17720011181457176,-0.17656007034735424,-0.17356651079437971,-0.17057295124140517,-0.16757939168843061,-0.16458583213545608,-0.16159227258248154,-0.15979311331584437,-0.15799395404920716,-0.15619479478256995,-0.15439563551593274,-0.15259647624929557,-0.15165674644549115,-0.15071701664168677,-0.14977728683788236,-0.14883755703407797,-0.14789782723027356,-0.14718658646605975,-0.14647534570184598,-0.14576410493763217,-0.14505286417341837,-0.14434162340920456,-0.14403750037868643,-0.1437333773481683,-0.14342925431765013,-0.143125131287132,-0.14282100825661387,-0.1425275370587899,{"$f":"AS64/Hundred","v":-0.14223406586096593},-0.14194059466314199,-0.14164712346531802,-0.14135365226749408,-0.14135365226749408,-0.14135365226749408,-0.14135365226749408,-0.14135365226749408,-0.14135365226749408,-0.14135365226749408,-0.14135365226749408,-0.14135365226749408,-0.14135365226749408,-0.14135365226749408,-0.14135365226749408,-0.14135365226749408,-0.14135365226749408,-0.14135365226749408,-0.14135365226749408,-0.14135365226749408,-0.14135365226749408,-0.14135365226749408,-0.14135365226749408,-0.14135365226749408,-0.14135365226749408,-0.14135365226749408,-0.14135365226749408,-0.14135365226749408,-0.14135365226749408,-0.14135365226749408,-0.14135365226749408,-0.14135365226749408,-0.14135365226749408,-0.14135365226749408,{"$f":"CA64/Hundred","v":-0.14135365226749408},-0.14135365226749408,-0.14135365226749408,-0.14135365226749408,-0.14135365226749408]
[]
[null,null,null,"HGV - Artics"]
[null,null,null,"Congestion",null,null,null,null,null,"£ per vehicle km, 2023 prices",null,null,{"$f":"M67/Hundred","v":3.3735555092445817},3.3996606445953308,3.4259677858386191,3.4524784961297481,3.4791943507199683,3.5061169370500931,3.5013134080934583,3.4965164601752923,3.4917260842792923,3.4869422714015093,3.4821650125503307,3.5407647046861963,3.6003505430575324,3.6609391230484176,3.72254731931872,3.7851922905039026,3.8051983797728655,3.8253102083483475,3.8455283351002389,3.8658533218522599,3.8862857333975649,3.9183325101751656,3.9506435485053863,3.9832210275205848,4.0160671443225011,4.0491841141304414,4.1116235514291226,4.1750258205527579,4.2394057686102107,4.3047784716565012,4.3711592382232078,4.4383815488520968,{"$f":"AS67/Hundred","v":4.5066376445251839},4.5759434234094281,4.6463150281633396,4.7177688496969212,4.7177688496969212,4.7177688496969212,4.7177688496969212,4.7177688496969212,4.7177688496969212,4.7177688496969212,4.7177688496969212,4.7177688496969212,4.7177688496969212,4.7177688496969212,4.7177688496969212,4.7177688496969212,4.7177688496969212,4.7177688496969212,4.7177688496969212,4.7177688496969212,4.7177688496969212,4.7177688496969212,4.7177688496969212,4.7177688496969212,4.7177688496969212,4.7177688496969212,4.7177688496969212,4.7177688496969212,4.7177688496969212,4.7177688496969212,4.7177688496969212,4.7177688496969212,4.7177688496969212,4.7177688496969212,{"$f":"CA67/Hundred","v":4.7177688496969212},4.7177688496969212,4.7177688496969212,4.7177688496969212,4.7177688496969212]
[null,null,null,"Infrastructure",null,null,null,null,null,"£ per vehicle km, 2023 prices",null,null,{"$f":"M68/Hundred","v":0.19827961715668907},0.20108685320539138,0.20393383400620763,0.20682112226398097,0.20974928865031056,0.21271891191634457,0.21594482246432151,0.21921965437415478,0.22254414954479365,0.22591906112618343,0.22934515368988845,0.23293263838094436,0.23657623956803911,0.24027683504199238,0.24403531632428735,0.24785258888184988,0.25131829915443832,0.25483247027929279,0.25839577988207063,0.26200891506363494,0.2656725725325455,0.26915917005431478,0.27269152450975215,0.27627023639747145,0.27989591409682835,0.28356917397134468,0.28727498920420708,0.29102923377213352,0.29483254057243485,0.29868555077342113,0.30258891392249132,0.30669848350365353,{"$f":"AS68/Hundred","v":0.31086386663701593},0.31508582134663626,0.31936511595157124,0.32370252920569692,0.32370252920569692,0.32370252920569692,0.32370252920569692,0.32370252920569692,0.32370252920569692,0.32370252920569692,0.32370252920569692,0.32370252920569692,0.32370252920569692,0.32370252920569692,0.32370252920569692,0.32370252920569692,0.32370252920569692,0.32370252920569692,0.32370252920569692,0.32370252920569692,0.32370252920569692,0.32370252920569692,0.32370252920569692,0.32370252920569692,0.32370252920569692,0.32370252920569692,0.32370252920569692,0.32370252920569692,0.32370252920569692,0.32370252920569692,0.32370252920569692,0.32370252920569692,0.32370252920569692,0.32370252920569692,{"$f":"CA68/Hundred","v":0.32370252920569692},0.32370252920569692,0.32370252920569692,0.32370252920569692,0.32370252920569692]
[null,null,null,"Accident",null,null,null,null,null,"£ per vehicle km, 2023 prices",null,null,{"$f":"M69/Hundred","v":5.2829246689114887E-2},5.388583162289718E-2,5.496354825535512E-2,5.6062819220462225E-2,5.7184075604871473E-2,5.8327757116968894E-2,5.9494312259308277E-2,6.0684198504494441E-2,6.1897882474584331E-2,6.3135840124076026E-2,6.4398556926557549E-2,6.5686528065088692E-2,6.7000258626390474E-2,6.8340263798918277E-2,6.9707069074896641E-2,7.1101210456394573E-2,7.2523234665522476E-2,7.3973699358832926E-2,7.545317334600958E-2,7.6962236812929768E-2,7.8501481549188373E-2,8.0071511180172139E-2,8.1672941403775581E-2,8.3306400231851097E-2,8.4972528236488126E-2,8.667197880121788E-2,8.8405418377242237E-2,9.0173526744787083E-2,9.1976997279682851E-2,9.3816537225276497E-2,9.5692867969782047E-2,9.7606725329177677E-2,{"$f":"AS69/Hundred","v":9.9558859835761238E-2},0.10155003703247646,0.10358103777312598,0.1056526585285885,0.1056526585285885,0.1056526585285885,0.1056526585285885,0.1056526585285885,0.1056526585285885,0.1056526585285885,0.1056526585285885,0.1056526585285885,0.1056526585285885,0.1056526585285885,0.1056526585285885,0.1056526585285885,0.1056526585285885,0.1056526585285885,0.1056526585285885,0.1056526585285885,0.1056526585285885,0.1056526585285885,0.1056526585285885,0.1056526585285885,0.1056526585285885,0.1056526585285885,0.1056526585285885,0.1056526585285885,0.1056526585285885,0.1056526585285885,0.1056526585285885,0.1056526585285885,0.1056526585285885,0.1056526585285885,{"$f":"CA69/Hundred","v":0.1056526585285885},0.1056526585285885,0.1056526585285885,0.1056526585285885,0.1056526585285885]
[null,null,null,"Local Air Quality",null,null,null,null,null,"£ per vehicle km, 2023 prices",null,null,{"$f":"M70/Hundred","v":1.6258311717987549E-2},1.648415449990652E-2,1.6713134444098526E-2,1.6945295128609515E-2,1.7180680736824244E-2,1.7419336065875E-2,1.7793401856156587E-2,1.8175500398945485E-2,1.8565804190937528E-2,1.8964489433051967E-2,1.9371736109976619E-2,1.9800405627405579E-2,2.0238561003723458E-2,2.0686412147764933E-2,2.1144173613354588E-2,2.1612064702094064E-2,2.2075352097636069E-2,2.2548570761376036E-2,2.3031933585114964E-2,2.3525658024312598E-2,2.402996619591638E-2,2.4536644616049964E-2,2.5054006489474159E-2,2.5582277079728283E-2,2.6121686400095077E-2,2.6672469313750377E-2,2.7228651844320054E-2,2.7796432064015247E-2,2.8376051811415323E-2,2.8967757967992024E-2,2.9571802563265467E-2,3.0191344354908431E-2,{"$f":"AS70/Hundred","v":3.0823865809552022E-2},3.1469638856634868E-2,3.212894112263253E-2,3.2802056050412878E-2,3.2802056050412878E-2,3.2802056050412878E-2,3.2802056050412878E-2,3.2802056050412878E-2,3.2802056050412878E-2,3.2802056050412878E-2,3.2802056050412878E-2,3.2802056050412878E-2,3.2802056050412878E-2,3.2802056050412878E-2,3.2802056050412878E-2,3.2802056050412878E-2,3.2802056050412878E-2,3.2802056050412878E-2,3.2802056050412878E-2,3.2802056050412878E-2,3.2802056050412878E-2,3.2802056050412878E-2,3.2802056050412878E-2,3.2802056050412878E-2,3.2802056050412878E-2,3.2802056050412878E-2,3.2802056050412878E-2,3.2802056050412878E-2,3.2802056050412878E-2,3.2802056050412878E-2,3.2802056050412878E-2,3.2802056050412878E-2,3.2802056050412878E-2,3.2802056050412878E-2,{"$f":"CA70/Hundred","v":3.2802056050412878E-2},3.2802056050412878E-2,3.2802056050412878E-2,3.2802056050412878E-2,3.2802056050412878E-2]
[null,null,null,"Noise",null,null,null,null,null,"£ per vehicle km, 2023 prices",null,null,{"$f":"M71/Hundred","v":0.16509139590348398},0.16839322382155367,0.17176108829798473,0.17519631006394445,0.17870023626522333,0.1822742409905278,0.18591972581033836,0.18963812032654512,0.19343088273307601,0.19729950038773755,0.2012454903954923,0.20527040020340215,0.2093758082074702,0.21356332437161957,0.21783459085905196,0.22219128267623303,0.2266351083297577,0.23116781049635285,0.23579116670627989,0.24050699004040552,0.24531712984121362,0.25022347243803789,0.25522794188679865,0.26033250072453468,0.2655391507390254,0.27084993375380589,0.27626693242888206,0.28179227107745963,0.28742811649900885,0.29317667882898901,0.29904021240556883,0.3050210166536802,{"$f":"AS71/Hundred","v":0.31112143698675382},0.31734386572648887,0.32369074304101864,0.33016455790183907,0.33016455790183907,0.33016455790183907,0.33016455790183907,0.33016455790183907,0.33016455790183907,0.33016455790183907,0.33016455790183907,0.33016455790183907,0.33016455790183907,0.33016455790183907,0.33016455790183907,0.33016455790183907,0.33016455790183907,0.33016455790183907,0.33016455790183907,0.33016455790183907,0.33016455790183907,0.33016455790183907,0.33016455790183907,0.33016455790183907,0.33016455790183907,0.33016455790183907,0.33016455790183907,0.33016455790183907,0.33016455790183907,0.33016455790183907,0.33016455790183907,0.33016455790183907,0.33016455790183907,0.33016455790183907,{"$f":"CA71/Hundred","v":0.33016455790183907},0.33016455790183907,0.33016455790183907,0.33016455790183907,0.33016455790183907]
[null,null,null,"Greenhouse Gases",null,null,null,null,null,"£ per vehicle km, 2023 prices",null,null,{"$f":"M72/Hundred","v":0.32186376979626607},0.31998982960361122,0.31812679977793507,0.3162746167974092,0.31443321751003883,0.31260253913150982,0.30841017233969203,0.30427403010499388,0.30019335839014227,0.29616741327038865,0.29219546079788811,0.29362424985507019,0.29506002546216092,0.2965028217822715,0.29795267314556545,0.29940961405007532,0.30370647282086316,0.30806499626248884,0.31248606933111045,0.3169705896829848,0.32151946785672747,0.32648830673342161,0.33153393523640851,0.33665754009096788,0.34186032636231622,0.34714351773903673,0.3526447461167303,0.35823315317447141,0.36391012044411675,0.36967705135083767,0.37553537156006628,0.38151187320061636,{"$f":"AS72/Hundred","v":0.38758348857628838},0.39375173138575653,0.40001813941762959,0.40638427493383317,0.40638427493383317,0.40638427493383317,0.40638427493383317,0.40638427493383317,0.40638427493383317,0.40638427493383317,0.40638427493383317,0.40638427493383317,0.40638427493383317,0.40638427493383317,0.40638427493383317,0.40638427493383317,0.40638427493383317,0.40638427493383317,0.40638427493383317,0.40638427493383317,0.40638427493383317,0.40638427493383317,0.40638427493383317,0.40638427493383317,0.40638427493383317,0.40638427493383317,0.40638427493383317,0.40638427493383317,0.40638427493383317,0.40638427493383317,0.40638427493383317,0.40638427493383317,0.40638427493383317,0.40638427493383317,{"$f":"CA72/Hundred","v":0.40638427493383317},0.40638427493383317,0.40638427493383317,0.40638427493383317,0.40638427493383317]
[null,null,null,"Indirect Taxation",null,null,null,null,null,"£ per vehicle km, 2023 prices",null,null,{"$f":"M73/Hundred","v":-0.26627632378695465},-0.26279107834643062,-0.25930583290590659,-0.25582058746538261,-0.25233534202485858,-0.24885009658433457,-0.24160944588688071,-0.23436879518942685,-0.22712814449197299,-0.21988749379451913,-0.21264684309706527,-0.20993598903898369,-0.20722513498090214,-0.20451428092282056,-0.20180342686473904,-0.19909257280665746,-0.19838687258607815,-0.1976811723654989,-0.19697547214491962,-0.19626977192434036,-0.19556407170376108,-0.19508024540397159,-0.19459641910418207,-0.19411259280439258,-0.19362876650460303,-0.19314494020481354,-0.19274096143683384,-0.19233698266885413,-0.19193300390087445,-0.19152902513289471,-0.19112504636491501,-0.19073785855460185,{"$f":"AS73/Hundred","v":-0.19035067074428866},-0.1899634829339755,-0.18957629512366231,-0.18918910731334915,-0.18918910731334915,-0.18918910731334915,-0.18918910731334915,-0.18918910731334915,-0.18918910731334915,-0.18918910731334915,-0.18918910731334915,-0.18918910731334915,-0.18918910731334915,-0.18918910731334915,-0.18918910731334915,-0.18918910731334915,-0.18918910731334915,-0.18918910731334915,-0.18918910731334915,-0.18918910731334915,-0.18918910731334915,-0.18918910731334915,-0.18918910731334915,-0.18918910731334915,-0.18918910731334915,-0.18918910731334915,-0.18918910731334915,-0.18918910731334915,-0.18918910731334915,-0.18918910731334915,-0.18918910731334915,-0.18918910731334915,-0.18918910731334915,-0.18918910731334915,{"$f":"CA73/Hundred","v":-0.18918910731334915},-0.18918910731334915,-0.18918910731334915,-0.18918910731334915,-0.18918910731334915]
[]
[null,null,null,"PSV"]
[null,null,null,"Congestion",null,null,null,null,null,"£ per vehicle km, 2023 prices",null,null,{"$f":"M76/Hundred","v":2.9082375079694676},2.9307419349959751,2.9534205050332929,2.9762745656290934,2.9993054747585939,3.0225146009052533,3.0183736276667745,3.0142383277373215,3.0101086933442178,3.0059847167254397,3.0018663901295959,3.0523833661087894,3.1037504681530459,3.1559820026279466,3.2090925166540689,3.2630968021585369,3.2803434308386774,3.297681214093402,3.3151106337071026,3.332632174010568,3.3502463218944523,3.377872853599281,3.4057271969874021,3.4338112306211936,3.4621268485538796,3.4906759604572777,3.5445030615768309,3.5991601901316881,3.6546601453536298,3.7110159238418112,3.768240722606214,3.8261909903897391,{"$f":"AS76/Hundred","v":3.8850324521768833},3.9447788132839903,4.0054439897959826,4.0670421118076918,4.0670421118076918,4.0670421118076918,4.0670421118076918,4.0670421118076918,4.0670421118076918,4.0670421118076918,4.0670421118076918,4.0670421118076918,4.0670421118076918,4.0670421118076918,4.0670421118076918,4.0670421118076918,4.0670421118076918,4.0670421118076918,4.0670421118076918,4.0670421118076918,4.0670421118076918,4.0670421118076918,4.0670421118076918,4.0670421118076918,4.0670421118076918,4.0670421118076918,4.0670421118076918,4.0670421118076918,4.0670421118076918,4.0670421118076918,4.0670421118076918,4.0670421118076918,4.0670421118076918,4.0670421118076918,{"$f":"CA76/Hundred","v":4.0670421118076918},4.0670421118076918,4.0670421118076918,4.0670421118076918,4.0670421118076918]
[null,null,null,"Infrastructure",null,null,null,null,null,"£ per vehicle km, 2023 prices",null,null,{"$f":"M77/Hundred","v":0},0,0,0,0,0,0,0,0,0,0,0,0,0,0,0,0,0,0,0,0,0,0,0,0,0,0,0,0,0,0,0,{"$f":"AS77/Hundred","v":0},0,0,0,0,0,0,0,0,0,0,0,0,0,0,0,0,0,0,0,0,0,0,0,0,0,0,0,0,0,0,0,0,0,{"$f":"CA77/Hundred","v":0},0,0,0,0]
[null,null,null,"Accident",null,null,null,null,null,"£ per vehicle km, 2023 prices",null,null,{"$f":"M78/Hundred","v":0},0,0,0,0,0,0,0,0,0,0,0,0,0,0,0,0,0,0,0,0,0,0,0,0,0,0,0,0,0,0,0,{"$f":"AS78/Hundred","v":0},0,0,0,0,0,0,0,0,0,0,0,0,0,0,0,0,0,0,0,0,0,0,0,0,0,0,0,0,0,0,0,0,0,{"$f":"CA78/Hundred","v":0},0,0,0,0]
[null,null,null,"Local Air Quality",null,null,null,null,null,"£ per vehicle km, 2023 prices",null,null,{"$f":"M79/Hundred","v":2.3291072525887198E-2},2.2204041063213671E-2,2.1167743090787484E-2,2.017981079578899E-2,1.9237986874995287E-2,1.8340119377121288E-2,1.8399029082802019E-2,1.845812801044756E-2,1.8517416767851683E-2,1.8576895964760424E-2,1.8636566212878371E-2,1.9088461045565986E-2,1.9551313312014582E-2,2.0025388705358808E-2,2.0510959361194493E-2,2.1008304013793881E-2,2.1505297549738546E-2,2.2014048463842278E-2,2.2534834900449368E-2,2.3067941583966033E-2,2.3613659974524959E-2,2.4128006282884883E-2,2.4653555942407167E-2,2.5190552981434661E-2,2.5739246743669061E-2,2.6299892003948652E-2,2.6857348714809284E-2,2.7426621367136025E-2,2.8007960413511123E-2,2.8601621615149769E-2,2.9207866154422703E-2,2.9830193885471652E-2,{"$f":"AS79/Hundred","v":3.0465781462439681E-2},3.1114911410923863E-2,3.177787227625286E-2,3.2454958751748413E-2,3.2454958751748413E-2,3.2454958751748413E-2,3.2454958751748413E-2,3.2454958751748413E-2,3.2454958751748413E-2,3.2454958751748413E-2,3.2454958751748413E-2,3.2454958751748413E-2,3.2454958751748413E-2,3.2454958751748413E-2,3.2454958751748413E-2,3.2454958751748413E-2,3.2454958751748413E-2,3.2454958751748413E-2,3.2454958751748413E-2,3.2454958751748413E-2,3.2454958751748413E-2,3.2454958751748413E-2,3.2454958751748413E-2,3.2454958751748413E-2,3.2454958751748413E-2,3.2454958751748413E-2,3.2454958751748413E-2,3.2454958751748413E-2,3.2454958751748413E-2,3.2454958751748413E-2,3.2454958751748413E-2,3.2454958751748413E-2,3.2454958751748413E-2,3.2454958751748413E-2,{"$f":"CA79/Hundred","v":3.2454958751748413E-2},3.2454958751748413E-2,3.2454958751748413E-2,3.2454958751748413E-2,3.2454958751748413E-2]
[null,null,null,"Noise",null,null,null,null,null,"£ per vehicle km, 2023 prices",null,null,{"$f":"M80/Hundred","v":0},0,0,0,0,0,0,0,0,0,0,0,0,0,0,0,0,0,0,0,0,0,0,0,0,0,0,0,0,0,0,0,{"$f":"AS80/Hundred","v":0},0,0,0,0,0,0,0,0,0,0,0,0,0,0,0,0,0,0,0,0,0,0,0,0,0,0,0,0,0,0,0,0,0,{"$f":"CA80/Hundred","v":0},0,0,0,0]
[null,null,null,"Greenhouse Gases",null,null,null,null,null,"£ per vehicle km, 2023 prices",null,null,{"$f":"M81/Hundred","v":0.28533232221548049},0.28913987692419507,0.29299824071316843,0.29690809159304882,0.30087011662204938,0.30488501202668095,0.30914167454140307,0.31345776659529395,0.31783411791589594,0.32227156981502025,0.32677097535048227,0.33165021084093482,0.33660230145245718,0.34162833503347911,0.34672941567582105,0.3519066639572353,0.3568131745723726,0.36178809493612257,0.36683237886150477,0.3719469934602177,0.37713291932805726,0.38232978380412469,0.38759826069851605,0.39293933682519983,0.39835401259637027,0.40384330220982939,0.41035090655679324,0.41696337562258473,0.42368239921633605,0.43050969437707082,0.43744700581249157,0.4445261446195552,{"$f":"AS81/Hundred","v":0.45171984406044141},0.45902995805257996,0.46645837051506622,0.47400699585417372,0.47400699585417372,0.47400699585417372,0.47400699585417372,0.47400699585417372,0.47400699585417372,0.47400699585417372,0.47400699585417372,0.47400699585417372,0.47400699585417372,0.47400699585417372,0.47400699585417372,0.47400699585417372,0.47400699585417372,0.47400699585417372,0.47400699585417372,0.47400699585417372,0.47400699585417372,0.47400699585417372,0.47400699585417372,0.47400699585417372,0.47400699585417372,0.47400699585417372,0.47400699585417372,0.47400699585417372,0.47400699585417372,0.47400699585417372,0.47400699585417372,0.47400699585417372,0.47400699585417372,0.47400699585417372,{"$f":"CA81/Hundred","v":0.47400699585417372},0.47400699585417372,0.47400699585417372,0.47400699585417372,0.47400699585417372]
[null,null,null,"Indirect Taxation",null,null,null,null,null,"£ per vehicle km, 2023 prices",null,null,{"$f":"M82/Hundred","v":-0.20573548767554617},-0.20545464554530971,-0.20517380341507319,-0.20489296128483672,-0.20461211915460023,-0.20433127702436377,-0.20312495120019927,-0.20191862537603478,-0.20071229955187028,-0.19950597372770576,-0.19829964790354129,-0.19818852368029788,-0.19807739945705449,-0.19796627523381108,-0.19785515101056769,-0.19774402678732428,-0.19750407734461464,-0.19726412790190501,-0.1970241784591954,-0.19678422901648576,-0.19654427957377613,-0.19584370136875404,-0.19514312316373192,-0.19444254495870986,-0.19374196675368777,-0.19304138854866565,-0.19268348782902958,-0.19232558710939351,-0.19196768638975747,-0.19160978567012141,-0.19125188495048534,-0.19091450955864456,{"$f":"AS82/Hundred","v":-0.19057713416680383},-0.19023975877496305,-0.18990238338312232,-0.18956500799128154,-0.18956500799128154,-0.18956500799128154,-0.18956500799128154,-0.18956500799128154,-0.18956500799128154,-0.18956500799128154,-0.18956500799128154,-0.18956500799128154,-0.18956500799128154,-0.18956500799128154,-0.18956500799128154,-0.18956500799128154,-0.18956500799128154,-0.18956500799128154,-0.18956500799128154,-0.18956500799128154,-0.18956500799128154,-0.18956500799128154,-0.18956500799128154,-0.18956500799128154,-0.18956500799128154,-0.18956500799128154,-0.18956500799128154,-0.18956500799128154,-0.18956500799128154,-0.18956500799128154,-0.18956500799128154,-0.18956500799128154,-0.18956500799128154,-0.18956500799128154,{"$f":"CA82/Hundred","v":-0.18956500799128154},-0.18956500799128154,-0.18956500799128154,-0.18956500799128154,-0.18956500799128154]
[]
[null,null,"Value of Time"]
[]
[null,null,null,"Value of Time per vehicle"]
[null,null,null,"Cars",null,null,null,null,null,"£ per hour, 2023 prices",{"$f":"INDEX('TAG - A1.3.6'!$CH$16:$CH$95, MATCH(K$10, 'TAG - A1.3.6'!$C$16:$C$95,0))","v":16.783358262975618},{"$f":"INDEX('TAG - A1.3.6'!$CH$16:$CH$95, MATCH(L$10, 'TAG - A1.3.6'!$C$16:$C$95,0))","v":16.774345336627285},{"$f":"INDEX('TAG - A1.3.6'!$CH$16:$CH$95, MATCH(M$10, 'TAG - A1.3.6'!$C$16:$C$95,0))","v":16.943910223411546},{"$f":"INDEX('TAG - A1.3.6'!$CH$16:$CH$95, MATCH(N$10, 'TAG - A1.3.6'!$C$16:$C$95,0))","v":17.110853997168366},{"$f":"INDEX('TAG - A1.3.6'!$CH$16:$CH$95, MATCH(O$10, 'TAG - A1.3.6'!$C$16:$C$95,0))","v":17.310078930734974},{"$f":"INDEX('TAG - A1.3.6'!$CH$16:$CH$95, MATCH(P$10, 'TAG - A1.3.6'!$C$16:$C$95,0))","v":17.493145014454203},{"$f":"INDEX('TAG - A1.3.6'!$CH$16:$CH$95, MATCH(Q$10, 'TAG - A1.3.6'!$C$16:$C$95,0))","v":17.682074301990234},{"$f":"INDEX('TAG - A1.3.6'!$CH$16:$CH$95, MATCH(R$10, 'TAG - A1.3.6'!$C$16:$C$95,0))","v":17.876893201567409},{"$f":"INDEX('TAG - A1.3.6'!$CH$16:$CH$95, MATCH(S$10, 'TAG - A1.3.6'!$C$16:$C$95,0))","v":18.152785695463407},{"$f":"INDEX('TAG - A1.3.6'!$CH$16:$CH$95, MATCH(T$10, 'TAG - A1.3.6'!$C$16:$C$95,0))","v":18.440771870925985},{"$f":"INDEX('TAG - A1.3.6'!$CH$16:$CH$95, MATCH(U$10, 'TAG - A1.3.6'!$C$16:$C$95,0))","v":18.742356833667777},{"$f":"INDEX('TAG - A1.3.6'!$CH$16:$CH$95, MATCH(V$10, 'TAG - A1.3.6'!$C$16:$C$95,0))","v":19.05526473626788},{"$f":"INDEX('TAG - A1.3.6'!$CH$16:$CH$95, MATCH(W$10, 'TAG - A1.3.6'!$C$16:$C$95,0))","v":19.37652705856793},{"$f":"INDEX('TAG - A1.3.6'!$CH$16:$CH$95, MATCH(X$10, 'TAG - A1.3.6'!$C$16:$C$95,0))","v":19.708507123798771},{"$f":"INDEX('TAG - A1.3.6'!$CH$16:$CH$95, MATCH(Y$10, 'TAG - A1.3.6'!$C$16:$C$95,0))","v":20.060496920095815},{"$f":"INDEX('TAG - A1.3.6'!$CH$16:$CH$95, MATCH(Z$10, 'TAG - A1.3.6'!$C$16:$C$95,0))","v":20.407053319224651},{"$f":"INDEX('TAG - A1.3.6'!$CH$16:$CH$95, MATCH(AA$10, 'TAG - A1.3.6'!$C$16:$C$95,0))","v":20.749413477838075},{"$f":"INDEX('TAG - A1.3.6'!$CH$16:$CH$95, MATCH(AB$10, 'TAG - A1.3.6'!$C$16:$C$95,0))","v":21.084552134247243},{"$f":"INDEX('TAG - A1.3.6'!$CH$16:$CH$95, MATCH(AC$10, 'TAG - A1.3.6'!$C$16:$C$95,0))","v":21.415787187225078},{"$f":"INDEX('TAG - A1.3.6'!$CH$16:$CH$95, MATCH(AD$10, 'TAG - A1.3.6'!$C$16:$C$95,0))","v":21.743072581555008},{"$f":"INDEX('TAG - A1.3.6'!$CH$16:$CH$95, MATCH(AE$10, 'TAG - A1.3.6'!$C$16:$C$95,0))","v":22.069677732704267},{"$f":"INDEX('TAG - A1.3.6'!$CH$16:$CH$95, MATCH(AF$10, 'TAG - A1.3.6'!$C$16:$C$95,0))","v":22.39761051225285},{"$f":"INDEX('TAG - A1.3.6'!$CH$16:$CH$95, MATCH(AG$10, 'TAG - A1.3.6'!$C$16:$C$95,0))","v":22.724887096317808},{"$f":"INDEX('TAG - A1.3.6'!$CH$16:$CH$95, MATCH(AH$10, 'TAG - A1.3.6'!$C$16:$C$95,0))","v":23.055678844247922},{"$f":"INDEX('TAG - A1.3.6'!$CH$16:$CH$95, MATCH(AI$10, 'TAG - A1.3.6'!$C$16:$C$95,0))","v":23.389273792563653},{"$f":"INDEX('TAG - A1.3.6'!$CH$16:$CH$95, MATCH(AJ$10, 'TAG - A1.3.6'!$C$16:$C$95,0))","v":23.726394837376855},{"$f":"INDEX('TAG - A1.3.6'!$CH$16:$CH$95, MATCH(AK$10, 'TAG - A1.3.6'!$C$16:$C$95,0))","v":24.066838352778223},{"$f":"INDEX('TAG - A1.3.6'!$CH$16:$CH$95, MATCH(AL$10, 'TAG - A1.3.6'!$C$16:$C$95,0))","v":24.411988764660773},{"$f":"INDEX('TAG - A1.3.6'!$CH$16:$CH$95, MATCH(AM$10, 'TAG - A1.3.6'!$C$16:$C$95,0))","v":24.763550008870194},{"$f":"INDEX('TAG - A1.3.6'!$CH$16:$CH$95, MATCH(AN$10, 'TAG - A1.3.6'!$C$16:$C$95,0))","v":25.120988800213112},{"$f":"INDEX('TAG - A1.3.6'!$CH$16:$CH$95, MATCH(AO$10, 'TAG - A1.3.6'!$C$16:$C$95,0))","v":25.482438427898799},{"$f":"INDEX('TAG - A1.3.6'!$CH$16:$CH$95, MATCH(AP$10, 'TAG - A1.3.6'!$C$16:$C$95,0))","v":25.847936747553991},{"$f":"INDEX('TAG - A1.3.6'!$CH$16:$CH$95, MATCH(AQ$10, 'TAG - A1.3.6'!$C$16:$C$95,0))","v":26.216982202052677},{"$f":"INDEX('TAG - A1.3.6'!$CH$16:$CH$95, MATCH(AR$10, 'TAG - A1.3.6'!$C$16:$C$95,0))","v":26.587781445701122},{"$f":"INDEX('TAG - A1.3.6'!$CH$16:$CH$95, MATCH(AS$10, 'TAG - A1.3.6'!$C$16:$C$95,0))","v":26.960753525345453},{"$f":"INDEX('TAG - A1.3.6'!$CH$16:$CH$95, MATCH(AT$10, 'TAG - A1.3.6'!$C$16:$C$95,0))","v":27.335783638171591},{"$f":"INDEX('TAG - A1.3.6'!$CH$16:$CH$95, MATCH(AU$10, 'TAG - A1.3.6'!$C$16:$C$95,0))","v":27.714921030884206},{"$f":"INDEX('TAG - A1.3.6'!$CH$16:$CH$95, MATCH(AV$10, 'TAG - A1.3.6'!$C$16:$C$95,0))","v":28.095019672974367},{"$f":"INDEX('TAG - A1.3.6'!$CH$16:$CH$95, MATCH(AW$10, 'TAG - A1.3.6'!$C$16:$C$95,0))","v":28.483704918759013},{"$f":"INDEX('TAG - A1.3.6'!$CH$16:$CH$95, MATCH(AX$10, 'TAG - A1.3.6'!$C$16:$C$95,0))","v":28.871505524221803},{"$f":"INDEX('TAG - A1.3.6'!$CH$16:$CH$95, MATCH(AY$10, 'TAG - A1.3.6'!$C$16:$C$95,0))","v":29.260100048220689},{"$f":"INDEX('TAG - A1.3.6'!$CH$16:$CH$95, MATCH(AZ$10, 'TAG - A1.3.6'!$C$16:$C$95,0))","v":29.650387630007927},{"$f":"INDEX('TAG - A1.3.6'!$CH$16:$CH$95, MATCH(BA$10, 'TAG - A1.3.6'!$C$16:$C$95,0))","v":30.04645027058994},{"$f":"INDEX('TAG - A1.3.6'!$CH$16:$CH$95, MATCH(BB$10, 'TAG - A1.3.6'!$C$16:$C$95,0))","v":30.446997338352435},{"$f":"INDEX('TAG - A1.3.6'!$CH$16:$CH$95, MATCH(BC$10, 'TAG - A1.3.6'!$C$16:$C$95,0))","v":30.852264296677468},{"$f":"INDEX('TAG - A1.3.6'!$CH$16:$CH$95, MATCH(BD$10, 'TAG - A1.3.6'!$C$16:$C$95,0))","v":31.269328361156742},{"$f":"INDEX('TAG - A1.3.6'!$CH$16:$CH$95, MATCH(BE$10, 'TAG - A1.3.6'!$C$16:$C$95,0))","v":31.708844603361811},{"$f":"INDEX('TAG - A1.3.6'!$CH$16:$CH$95, MATCH(BF$10, 'TAG - A1.3.6'!$C$16:$C$95,0))","v":32.166442842542182},{"$f":"INDEX('TAG - A1.3.6'!$CH$16:$CH$95, MATCH(BG$10, 'TAG - A1.3.6'!$C$16:$C$95,0))","v":32.633010956369105},{"$f":"INDEX('TAG - A1.3.6'!$CH$16:$CH$95, MATCH(BH$10, 'TAG - A1.3.6'!$C$16:$C$95,0))","v":33.105831440112595},{"$f":"INDEX('TAG - A1.3.6'!$CH$16:$CH$95, MATCH(BI$10, 'TAG - A1.3.6'!$C$16:$C$95,0))","v":33.587181126843106},{"$f":"INDEX('TAG - A1.3.6'!$CH$16:$CH$95, MATCH(BJ$10, 'TAG - A1.3.6'!$C$16:$C$95,0))","v":33.997543903684338},{"$f":"INDEX('TAG - A1.3.6'!$CH$16:$CH$95, MATCH(BK$10, 'TAG - A1.3.6'!$C$16:$C$95,0))","v":34.403347953904188},{"$f":"INDEX('TAG - A1.3.6'!$CH$16:$CH$95, MATCH(BL$10, 'TAG - A1.3.6'!$C$16:$C$95,0))","v":34.792568975330553},{"$f":"INDEX('TAG - A1.3.6'!$CH$16:$CH$95, MATCH(BM$10, 'TAG - A1.3.6'!$C$16:$C$95,0))","v":35.190815195739695},{"$f":"INDEX('TAG - A1.3.6'!$CH$16:$CH$95, MATCH(BN$10, 'TAG - A1.3.6'!$C$16:$C$95,0))","v":35.590584913477358},{"$f":"INDEX('TAG - A1.3.6'!$CH$16:$CH$95, MATCH(BO$10, 'TAG - A1.3.6'!$C$16:$C$95,0))","v":35.989408121969703},{"$f":"INDEX('TAG - A1.3.6'!$CH$16:$CH$95, MATCH(BP$10, 'TAG - A1.3.6'!$C$16:$C$95,0))","v":36.395197985878319},{"$f":"INDEX('TAG - A1.3.6'!$CH$16:$CH$95, MATCH(BQ$10, 'TAG - A1.3.6'!$C$16:$C$95,0))","v":36.822215004492406},{"$f":"INDEX('TAG - A1.3.6'!$CH$16:$CH$95, MATCH(BR$10, 'TAG - A1.3.6'!$C$16:$C$95,0))","v":37.270099967633435},{"$f":"INDEX('TAG - A1.3.6'!$CH$16:$CH$95, MATCH(BS$10, 'TAG - A1.3.6'!$C$16:$C$95,0))","v":37.728545025217414},{"$f":"INDEX('TAG - A1.3.6'!$CH$16:$CH$95, MATCH(BT$10, 'TAG - A1.3.6'!$C$16:$C$95,0))","v":38.190341796558528},{"$f":"INDEX('TAG - A1.3.6'!$CH$16:$CH$95, MATCH(BU$10, 'TAG - A1.3.6'!$C$16:$C$95,0))","v":38.676572341437847},{"$f":"INDEX('TAG - A1.3.6'!$CH$16:$CH$95, MATCH(BV$10, 'TAG - A1.3.6'!$C$16:$C$95,0))","v":39.184293789229066},{"$f":"INDEX('TAG - A1.3.6'!$CH$16:$CH$95, MATCH(BW$10, 'TAG - A1.3.6'!$C$16:$C$95,0))","v":39.707354987782082},{"$f":"INDEX('TAG - A1.3.6'!$CH$16:$CH$95, MATCH(BX$10, 'TAG - A1.3.6'!$C$16:$C$95,0))","v":40.249967148945522},{"$f":"INDEX('TAG - A1.3.6'!$CH$16:$CH$95, MATCH(BY$10, 'TAG - A1.3.6'!$C$16:$C$95,0))","v":40.818571760368023},{"$f":"BY132*BY132/BX132","v":41.395208954846666},{"$f":"BZ132*BZ132/BY132","v":41.979992207350271},42.573036595889732,43.174458824163921,43.784377244525501,44.402911881271201]
[null,null,null,"LGV",null,null,null,null,null,"£ per hour, 2023 prices",{"$f":"INDEX('TAG - A1.3.6'!$CK$16:$CK$95, MATCH(K$10, 'TAG - A1.3.6'!$C$16:$C$95,0))","v":22.932947979934003},{"$f":"INDEX('TAG - A1.3.6'!$CK$16:$CK$95, MATCH(L$10, 'TAG - A1.3.6'!$C$16:$C$95,0))","v":22.920632627556092},{"$f":"INDEX('TAG - A1.3.6'!$CK$16:$CK$95, MATCH(M$10, 'TAG - A1.3.6'!$C$16:$C$95,0))","v":23.152327778604928},{"$f":"INDEX('TAG - A1.3.6'!$CK$16:$CK$95, MATCH(N$10, 'TAG - A1.3.6'!$C$16:$C$95,0))","v":23.38044141469317},{"$f":"INDEX('TAG - A1.3.6'!$CK$16:$CK$95, MATCH(O$10, 'TAG - A1.3.6'!$C$16:$C$95,0))","v":23.6526643492335},{"$f":"INDEX('TAG - A1.3.6'!$CK$16:$CK$95, MATCH(P$10, 'TAG - A1.3.6'!$C$16:$C$95,0))","v":23.902807670316307},{"$f":"INDEX('TAG - A1.3.6'!$CK$16:$CK$95, MATCH(Q$10, 'TAG - A1.3.6'!$C$16:$C$95,0))","v":24.160962531522344},{"$f":"INDEX('TAG - A1.3.6'!$CK$16:$CK$95, MATCH(R$10, 'TAG - A1.3.6'!$C$16:$C$95,0))","v":24.427165017312536},{"$f":"INDEX('TAG - A1.3.6'!$CK$16:$CK$95, MATCH(S$10, 'TAG - A1.3.6'!$C$16:$C$95,0))","v":24.804147270293971},{"$f":"INDEX('TAG - A1.3.6'!$CK$16:$CK$95, MATCH(T$10, 'TAG - A1.3.6'!$C$16:$C$95,0))","v":25.197654450283853},{"$f":"INDEX('TAG - A1.3.6'!$CK$16:$CK$95, MATCH(U$10, 'TAG - A1.3.6'!$C$16:$C$95,0))","v":25.609743148726594},{"$f":"INDEX('TAG - A1.3.6'!$CK$16:$CK$95, MATCH(V$10, 'TAG - A1.3.6'!$C$16:$C$95,0))","v":26.037303625027022},{"$f":"INDEX('TAG - A1.3.6'!$CK$16:$CK$95, MATCH(W$10, 'TAG - A1.3.6'!$C$16:$C$95,0))","v":26.476279663658847},{"$f":"INDEX('TAG - A1.3.6'!$CK$16:$CK$95, MATCH(X$10, 'TAG - A1.3.6'!$C$16:$C$95,0))","v":26.929900533035685},{"$f":"INDEX('TAG - A1.3.6'!$CK$16:$CK$95, MATCH(Y$10, 'TAG - A1.3.6'!$C$16:$C$95,0))","v":27.41086289834222},{"$f":"INDEX('TAG - A1.3.6'!$CK$16:$CK$95, MATCH(Z$10, 'TAG - A1.3.6'!$C$16:$C$95,0))","v":27.88440101561326},{"$f":"INDEX('TAG - A1.3.6'!$CK$16:$CK$95, MATCH(AA$10, 'TAG - A1.3.6'!$C$16:$C$95,0))","v":28.352205348027692},{"$f":"INDEX('TAG - A1.3.6'!$CK$16:$CK$95, MATCH(AB$10, 'TAG - A1.3.6'!$C$16:$C$95,0))","v":28.810142147866564},{"$f":"INDEX('TAG - A1.3.6'!$CK$16:$CK$95, MATCH(AC$10, 'TAG - A1.3.6'!$C$16:$C$95,0))","v":29.262745025076715},{"$f":"INDEX('TAG - A1.3.6'!$CK$16:$CK$95, MATCH(AD$10, 'TAG - A1.3.6'!$C$16:$C$95,0))","v":29.709951049351247},{"$f":"INDEX('TAG - A1.3.6'!$CK$16:$CK$95, MATCH(AE$10, 'TAG - A1.3.6'!$C$16:$C$95,0))","v":30.156227582564963},{"$f":"INDEX('TAG - A1.3.6'!$CK$16:$CK$95, MATCH(AF$10, 'TAG - A1.3.6'!$C$16:$C$95,0))","v":30.604318200453573},{"$f":"INDEX('TAG - A1.3.6'!$CK$16:$CK$95, MATCH(AG$10, 'TAG - A1.3.6'!$C$16:$C$95,0))","v":31.05151218629425},{"$f":"INDEX('TAG - A1.3.6'!$CK$16:$CK$95, MATCH(AH$10, 'TAG - A1.3.6'!$C$16:$C$95,0))","v":31.503509327069573},{"$f":"INDEX('TAG - A1.3.6'!$CK$16:$CK$95, MATCH(AI$10, 'TAG - A1.3.6'!$C$16:$C$95,0))","v":31.959336788786214},{"$f":"INDEX('TAG - A1.3.6'!$CK$16:$CK$95, MATCH(AJ$10, 'TAG - A1.3.6'!$C$16:$C$95,0))","v":32.419982343895263},{"$f":"INDEX('TAG - A1.3.6'!$CK$16:$CK$95, MATCH(AK$10, 'TAG - A1.3.6'!$C$16:$C$95,0))","v":32.885167755925032},{"$f":"INDEX('TAG - A1.3.6'!$CK$16:$CK$95, MATCH(AL$10, 'TAG - A1.3.6'!$C$16:$C$95,0))","v":33.356784718211799},{"$f":"INDEX('TAG - A1.3.6'!$CK$16:$CK$95, MATCH(AM$10, 'TAG - A1.3.6'!$C$16:$C$95,0))","v":33.837161505675198},{"$f":"INDEX('TAG - A1.3.6'!$CK$16:$CK$95, MATCH(AN$10, 'TAG - A1.3.6'!$C$16:$C$95,0))","v":34.325569432112701},{"$f":"INDEX('TAG - A1.3.6'!$CK$16:$CK$95, MATCH(AO$10, 'TAG - A1.3.6'!$C$16:$C$95,0))","v":34.819457805297723},{"$f":"INDEX('TAG - A1.3.6'!$CK$16:$CK$95, MATCH(AP$10, 'TAG - A1.3.6'!$C$16:$C$95,0))","v":35.318878351535858},{"$f":"INDEX('TAG - A1.3.6'!$CK$16:$CK$95, MATCH(AQ$10, 'TAG - A1.3.6'!$C$16:$C$95,0))","v":35.823145738172052},{"$f":"INDEX('TAG - A1.3.6'!$CK$16:$CK$95, MATCH(AR$10, 'TAG - A1.3.6'!$C$16:$C$95,0))","v":36.329809519779303},{"$f":"INDEX('TAG - A1.3.6'!$CK$16:$CK$95, MATCH(AS$10, 'TAG - A1.3.6'!$C$16:$C$95,0))","v":36.839442286144077},{"$f":"INDEX('TAG - A1.3.6'!$CK$16:$CK$95, MATCH(AT$10, 'TAG - A1.3.6'!$C$16:$C$95,0))","v":37.351887169557159},{"$f":"INDEX('TAG - A1.3.6'!$CK$16:$CK$95, MATCH(AU$10, 'TAG - A1.3.6'!$C$16:$C$95,0))","v":37.869944281136966},{"$f":"INDEX('TAG - A1.3.6'!$CK$16:$CK$95, MATCH(AV$10, 'TAG - A1.3.6'!$C$16:$C$95,0))","v":38.389314853445299},{"$f":"INDEX('TAG - A1.3.6'!$CK$16:$CK$95, MATCH(AW$10, 'TAG - A1.3.6'!$C$16:$C$95,0))","v":38.920418246608918},{"$f":"INDEX('TAG - A1.3.6'!$CK$16:$CK$95, MATCH(AX$10, 'TAG - A1.3.6'!$C$16:$C$95,0))","v":39.45031285842115},{"$f":"INDEX('TAG - A1.3.6'!$CK$16:$CK$95, MATCH(AY$10, 'TAG - A1.3.6'!$C$16:$C$95,0))","v":39.981292288432648},{"$f":"INDEX('TAG - A1.3.6'!$CK$16:$CK$95, MATCH(AZ$10, 'TAG - A1.3.6'!$C$16:$C$95,0))","v":40.514585129477808},{"$f":"INDEX('TAG - A1.3.6'!$CK$16:$CK$95, MATCH(BA$10, 'TAG - A1.3.6'!$C$16:$C$95,0))","v":41.055769068409724},{"$f":"INDEX('TAG - A1.3.6'!$CK$16:$CK$95, MATCH(BB$10, 'TAG - A1.3.6'!$C$16:$C$95,0))","v":41.603080573329215},{"$f":"INDEX('TAG - A1.3.6'!$CK$16:$CK$95, MATCH(BC$10, 'TAG - A1.3.6'!$C$16:$C$95,0))","v":42.156841383748002},{"$f":"INDEX('TAG - A1.3.6'!$CK$16:$CK$95, MATCH(BD$10, 'TAG - A1.3.6'!$C$16:$C$95,0))","v":42.726721877576374},{"$f":"INDEX('TAG - A1.3.6'!$CK$16:$CK$95, MATCH(BE$10, 'TAG - A1.3.6'!$C$16:$C$95,0))","v":43.327281250789568},{"$f":"INDEX('TAG - A1.3.6'!$CK$16:$CK$95, MATCH(BF$10, 'TAG - A1.3.6'!$C$16:$C$95,0))","v":43.952548044860386},{"$f":"INDEX('TAG - A1.3.6'!$CK$16:$CK$95, MATCH(BG$10, 'TAG - A1.3.6'!$C$16:$C$95,0))","v":44.590071365034802},{"$f":"INDEX('TAG - A1.3.6'!$CK$16:$CK$95, MATCH(BH$10, 'TAG - A1.3.6'!$C$16:$C$95,0))","v":45.236137985769254},{"$f":"INDEX('TAG - A1.3.6'!$CK$16:$CK$95, MATCH(BI$10, 'TAG - A1.3.6'!$C$16:$C$95,0))","v":45.893858994460352},{"$f":"INDEX('TAG - A1.3.6'!$CK$16:$CK$95, MATCH(BJ$10, 'TAG - A1.3.6'!$C$16:$C$95,0))","v":46.454582782080479},{"$f":"INDEX('TAG - A1.3.6'!$CK$16:$CK$95, MATCH(BK$10, 'TAG - A1.3.6'!$C$16:$C$95,0))","v":47.009077480216568},{"$f":"INDEX('TAG - A1.3.6'!$CK$16:$CK$95, MATCH(BL$10, 'TAG - A1.3.6'!$C$16:$C$95,0))","v":47.540912962556142},{"$f":"INDEX('TAG - A1.3.6'!$CK$16:$CK$95, MATCH(BM$10, 'TAG - A1.3.6'!$C$16:$C$95,0))","v":48.085080566723633},{"$f":"INDEX('TAG - A1.3.6'!$CK$16:$CK$95, MATCH(BN$10, 'TAG - A1.3.6'!$C$16:$C$95,0))","v":48.631329892822777},{"$f":"INDEX('TAG - A1.3.6'!$CK$16:$CK$95, MATCH(BO$10, 'TAG - A1.3.6'!$C$16:$C$95,0))","v":49.176285899256953},{"$f":"INDEX('TAG - A1.3.6'!$CK$16:$CK$95, MATCH(BP$10, 'TAG - A1.3.6'!$C$16:$C$95,0))","v":49.730761213076001},{"$f":"INDEX('TAG - A1.3.6'!$CK$16:$CK$95, MATCH(BQ$10, 'TAG - A1.3.6'!$C$16:$C$95,0))","v":50.314241522617287},{"$f":"INDEX('TAG - A1.3.6'!$CK$16:$CK$95, MATCH(BR$10, 'TAG - A1.3.6'!$C$16:$C$95,0))","v":50.926235999513267},{"$f":"INDEX('TAG - A1.3.6'!$CK$16:$CK$95, MATCH(BS$10, 'TAG - A1.3.6'!$C$16:$C$95,0))","v":51.552659894689505},{"$f":"INDEX('TAG - A1.3.6'!$CK$16:$CK$95, MATCH(BT$10, 'TAG - A1.3.6'!$C$16:$C$95,0))","v":52.183663604943952},{"$f":"INDEX('TAG - A1.3.6'!$CK$16:$CK$95, MATCH(BU$10, 'TAG - A1.3.6'!$C$16:$C$95,0))","v":52.848053866848275},{"$f":"INDEX('TAG - A1.3.6'!$CK$16:$CK$95, MATCH(BV$10, 'TAG - A1.3.6'!$C$16:$C$95,0))","v":53.541809512652414},{"$f":"INDEX('TAG - A1.3.6'!$CK$16:$CK$95, MATCH(BW$10, 'TAG - A1.3.6'!$C$16:$C$95,0))","v":54.256525546761026},{"$f":"INDEX('TAG - A1.3.6'!$CK$16:$CK$95, MATCH(BX$10, 'TAG - A1.3.6'!$C$16:$C$95,0))","v":54.997956211009665},{"$f":"INDEX('TAG - A1.3.6'!$CK$16:$CK$95, MATCH(BY$10, 'TAG - A1.3.6'!$C$16:$C$95,0))","v":55.774903218312048},{"$f":"BY133*BY133/BX133","v":56.562826027148589},57.361879690847481,58.172221453149582,58.994010779151999,59.827409386688821,60.672581278155164]
[null,null,null,"HGV",null,null,null,null,null,"£ per hour, 2023 prices",{"$f":"INDEX('TAG - A1.3.6'!$CM$16:$CM$95, MATCH(K$10, 'TAG - A1.3.6'!$C$16:$C$95,0))","v":24.126603111814237},{"$f":"INDEX('TAG - A1.3.6'!$CM$16:$CM$95, MATCH(L$10, 'TAG - A1.3.6'!$C$16:$C$95,0))","v":24.113646747928357},{"$f":"INDEX('TAG - A1.3.6'!$CM$16:$CM$95, MATCH(M$10, 'TAG - A1.3.6'!$C$16:$C$95,0))","v":24.357401582988295},{"$f":"INDEX('TAG - A1.3.6'!$CM$16:$CM$95, MATCH(N$10, 'TAG - A1.3.6'!$C$16:$C$95,0))","v":24.597388485985221},{"$f":"INDEX('TAG - A1.3.6'!$CM$16:$CM$95, MATCH(O$10, 'TAG - A1.3.6'!$C$16:$C$95,0))","v":24.883780567166177},{"$f":"INDEX('TAG - A1.3.6'!$CM$16:$CM$95, MATCH(P$10, 'TAG - A1.3.6'!$C$16:$C$95,0))","v":25.14694379564062},{"$f":"INDEX('TAG - A1.3.6'!$CM$16:$CM$95, MATCH(Q$10, 'TAG - A1.3.6'!$C$16:$C$95,0))","v":25.418535563221198},{"$f":"INDEX('TAG - A1.3.6'!$CM$16:$CM$95, MATCH(R$10, 'TAG - A1.3.6'!$C$16:$C$95,0))","v":25.698593832557439},{"$f":"INDEX('TAG - A1.3.6'!$CM$16:$CM$95, MATCH(S$10, 'TAG - A1.3.6'!$C$16:$C$95,0))","v":26.095197932729779},{"$f":"INDEX('TAG - A1.3.6'!$CM$16:$CM$95, MATCH(T$10, 'TAG - A1.3.6'!$C$16:$C$95,0))","v":26.509187078895028},{"$f":"INDEX('TAG - A1.3.6'!$CM$16:$CM$95, MATCH(U$10, 'TAG - A1.3.6'!$C$16:$C$95,0))","v":26.942724907650906},{"$f":"INDEX('TAG - A1.3.6'!$CM$16:$CM$95, MATCH(V$10, 'TAG - A1.3.6'!$C$16:$C$95,0))","v":27.392539817056559},{"$f":"INDEX('TAG - A1.3.6'!$CM$16:$CM$95, MATCH(W$10, 'TAG - A1.3.6'!$C$16:$C$95,0))","v":27.854364466418406},{"$f":"INDEX('TAG - A1.3.6'!$CM$16:$CM$95, MATCH(X$10, 'TAG - A1.3.6'!$C$16:$C$95,0))","v":28.331596206893607},{"$f":"INDEX('TAG - A1.3.6'!$CM$16:$CM$95, MATCH(Y$10, 'TAG - A1.3.6'!$C$16:$C$95,0))","v":28.837592562426423},{"$f":"INDEX('TAG - A1.3.6'!$CM$16:$CM$95, MATCH(Z$10, 'TAG - A1.3.6'!$C$16:$C$95,0))","v":29.335778239370818},{"$f":"INDEX('TAG - A1.3.6'!$CM$16:$CM$95, MATCH(AA$10, 'TAG - A1.3.6'!$C$16:$C$95,0))","v":29.827931689159563},{"$f":"INDEX('TAG - A1.3.6'!$CM$16:$CM$95, MATCH(AB$10, 'TAG - A1.3.6'!$C$16:$C$95,0))","v":30.309704003372019},{"$f":"INDEX('TAG - A1.3.6'!$CM$16:$CM$95, MATCH(AC$10, 'TAG - A1.3.6'!$C$16:$C$95,0))","v":30.785864765401787},{"$f":"INDEX('TAG - A1.3.6'!$CM$16:$CM$95, MATCH(AD$10, 'TAG - A1.3.6'!$C$16:$C$95,0))","v":31.256347769432708},{"$f":"INDEX('TAG - A1.3.6'!$CM$16:$CM$95, MATCH(AE$10, 'TAG - A1.3.6'!$C$16:$C$95,0))","v":31.725852902588063},{"$f":"INDEX('TAG - A1.3.6'!$CM$16:$CM$95, MATCH(AF$10, 'TAG - A1.3.6'!$C$16:$C$95,0))","v":32.197266543145105},{"$f":"INDEX('TAG - A1.3.6'!$CM$16:$CM$95, MATCH(AG$10, 'TAG - A1.3.6'!$C$16:$C$95,0))","v":32.667736882144212},{"$f":"INDEX('TAG - A1.3.6'!$CM$16:$CM$95, MATCH(AH$10, 'TAG - A1.3.6'!$C$16:$C$95,0))","v":33.14326037928479},{"$f":"INDEX('TAG - A1.3.6'!$CM$16:$CM$95, MATCH(AI$10, 'TAG - A1.3.6'!$C$16:$C$95,0))","v":33.622813564768215},{"$f":"INDEX('TAG - A1.3.6'!$CM$16:$CM$95, MATCH(AJ$10, 'TAG - A1.3.6'!$C$16:$C$95,0))","v":34.107435624394462},{"$f":"INDEX('TAG - A1.3.6'!$CM$16:$CM$95, MATCH(AK$10, 'TAG - A1.3.6'!$C$16:$C$95,0))","v":34.596833839541858},{"$f":"INDEX('TAG - A1.3.6'!$CM$16:$CM$95, MATCH(AL$10, 'TAG - A1.3.6'!$C$16:$C$95,0))","v":35.092998365788056},{"$f":"INDEX('TAG - A1.3.6'!$CM$16:$CM$95, MATCH(AM$10, 'TAG - A1.3.6'!$C$16:$C$95,0))","v":35.598378664273831},{"$f":"INDEX('TAG - A1.3.6'!$CM$16:$CM$95, MATCH(AN$10, 'TAG - A1.3.6'!$C$16:$C$95,0))","v":36.112208120832683},{"$f":"INDEX('TAG - A1.3.6'!$CM$16:$CM$95, MATCH(AO$10, 'TAG - A1.3.6'!$C$16:$C$95,0))","v":36.631803280242657},{"$f":"INDEX('TAG - A1.3.6'!$CM$16:$CM$95, MATCH(AP$10, 'TAG - A1.3.6'!$C$16:$C$95,0))","v":37.157218561152739},{"$f":"INDEX('TAG - A1.3.6'!$CM$16:$CM$95, MATCH(AQ$10, 'TAG - A1.3.6'!$C$16:$C$95,0))","v":37.687732959486887},{"$f":"INDEX('TAG - A1.3.6'!$CM$16:$CM$95, MATCH(AR$10, 'TAG - A1.3.6'!$C$16:$C$95,0))","v":38.220768484647664},{"$f":"INDEX('TAG - A1.3.6'!$CM$16:$CM$95, MATCH(AS$10, 'TAG - A1.3.6'!$C$16:$C$95,0))","v":38.756927529599821},{"$f":"INDEX('TAG - A1.3.6'!$CM$16:$CM$95, MATCH(AT$10, 'TAG - A1.3.6'!$C$16:$C$95,0))","v":39.296045061702777},{"$f":"INDEX('TAG - A1.3.6'!$CM$16:$CM$95, MATCH(AU$10, 'TAG - A1.3.6'!$C$16:$C$95,0))","v":39.841066937271293},{"$f":"INDEX('TAG - A1.3.6'!$CM$16:$CM$95, MATCH(AV$10, 'TAG - A1.3.6'!$C$16:$C$95,0))","v":40.387470638923723},{"$f":"INDEX('TAG - A1.3.6'!$CM$16:$CM$95, MATCH(AW$10, 'TAG - A1.3.6'!$C$16:$C$95,0))","v":40.946217852295874},{"$f":"INDEX('TAG - A1.3.6'!$CM$16:$CM$95, MATCH(AX$10, 'TAG - A1.3.6'!$C$16:$C$95,0))","v":41.503693367500858},{"$f":"INDEX('TAG - A1.3.6'!$CM$16:$CM$95, MATCH(AY$10, 'TAG - A1.3.6'!$C$16:$C$95,0))","v":42.062310165464815},{"$f":"INDEX('TAG - A1.3.6'!$CM$16:$CM$95, MATCH(AZ$10, 'TAG - A1.3.6'!$C$16:$C$95,0))","v":42.623360787021461},{"$f":"INDEX('TAG - A1.3.6'!$CM$16:$CM$95, MATCH(BA$10, 'TAG - A1.3.6'!$C$16:$C$95,0))","v":43.192713236454622},{"$f":"INDEX('TAG - A1.3.6'!$CM$16:$CM$95, MATCH(BB$10, 'TAG - A1.3.6'!$C$16:$C$95,0))","v":43.768512190399683},{"$f":"INDEX('TAG - A1.3.6'!$CM$16:$CM$95, MATCH(BC$10, 'TAG - A1.3.6'!$C$16:$C$95,0))","v":44.35109613484245},{"$f":"INDEX('TAG - A1.3.6'!$CM$16:$CM$95, MATCH(BD$10, 'TAG - A1.3.6'!$C$16:$C$95,0))","v":44.950638788834965},{"$f":"INDEX('TAG - A1.3.6'!$CM$16:$CM$95, MATCH(BE$10, 'TAG - A1.3.6'!$C$16:$C$95,0))","v":45.582457151448985},{"$f":"INDEX('TAG - A1.3.6'!$CM$16:$CM$95, MATCH(BF$10, 'TAG - A1.3.6'!$C$16:$C$95,0))","v":46.240268950993588},{"$f":"INDEX('TAG - A1.3.6'!$CM$16:$CM$95, MATCH(BG$10, 'TAG - A1.3.6'!$C$16:$C$95,0))","v":46.9109752262545},{"$f":"INDEX('TAG - A1.3.6'!$CM$16:$CM$95, MATCH(BH$10, 'TAG - A1.3.6'!$C$16:$C$95,0))","v":47.590669479077576},{"$f":"INDEX('TAG - A1.3.6'!$CM$16:$CM$95, MATCH(BI$10, 'TAG - A1.3.6'!$C$16:$C$95,0))","v":48.282624728305748},{"$f":"INDEX('TAG - A1.3.6'!$CM$16:$CM$95, MATCH(BJ$10, 'TAG - A1.3.6'!$C$16:$C$95,0))","v":48.872534071452606},{"$f":"INDEX('TAG - A1.3.6'!$CM$16:$CM$95, MATCH(BK$10, 'TAG - A1.3.6'!$C$16:$C$95,0))","v":49.455890102314427},{"$f":"INDEX('TAG - A1.3.6'!$CM$16:$CM$95, MATCH(BL$10, 'TAG - A1.3.6'!$C$16:$C$95,0))","v":50.015407509950563},{"$f":"INDEX('TAG - A1.3.6'!$CM$16:$CM$95, MATCH(BM$10, 'TAG - A1.3.6'!$C$16:$C$95,0))","v":50.587898923768954},{"$f":"INDEX('TAG - A1.3.6'!$CM$16:$CM$95, MATCH(BN$10, 'TAG - A1.3.6'!$C$16:$C$95,0))","v":51.162580412708863},{"$f":"INDEX('TAG - A1.3.6'!$CM$16:$CM$95, MATCH(BO$10, 'TAG - A1.3.6'!$C$16:$C$95,0))","v":51.735901264966543},{"$f":"INDEX('TAG - A1.3.6'!$CM$16:$CM$95, MATCH(BP$10, 'TAG - A1.3.6'!$C$16:$C$95,0))","v":52.31923690256167},{"$f":"INDEX('TAG - A1.3.6'!$CM$16:$CM$95, MATCH(BQ$10, 'TAG - A1.3.6'!$C$16:$C$95,0))","v":52.933087239822228},{"$f":"INDEX('TAG - A1.3.6'!$CM$16:$CM$95, MATCH(BR$10, 'TAG - A1.3.6'!$C$16:$C$95,0))","v":53.576935900867078},{"$f":"INDEX('TAG - A1.3.6'!$CM$16:$CM$95, MATCH(BS$10, 'TAG - A1.3.6'!$C$16:$C$95,0))","v":54.235965028386914},{"$f":"INDEX('TAG - A1.3.6'!$CM$16:$CM$95, MATCH(BT$10, 'TAG - A1.3.6'!$C$16:$C$95,0))","v":54.89981234939912},{"$f":"INDEX('TAG - A1.3.6'!$CM$16:$CM$95, MATCH(BU$10, 'TAG - A1.3.6'!$C$16:$C$95,0))","v":55.598783985071307},{"$f":"INDEX('TAG - A1.3.6'!$CM$16:$CM$95, MATCH(BV$10, 'TAG - A1.3.6'!$C$16:$C$95,0))","v":56.328649466715547},{"$f":"INDEX('TAG - A1.3.6'!$CM$16:$CM$95, MATCH(BW$10, 'TAG - A1.3.6'!$C$16:$C$95,0))","v":57.080566320478802},{"$f":"INDEX('TAG - A1.3.6'!$CM$16:$CM$95, MATCH(BX$10, 'TAG - A1.3.6'!$C$16:$C$95,0))","v":57.860588295277132},{"$f":"INDEX('TAG - A1.3.6'!$CM$16:$CM$95, MATCH(BY$10, 'TAG - A1.3.6'!$C$16:$C$95,0))","v":58.677975231335182},59.506909257094925,60.34755349637777,61.200073377428303,62.064636665468484,62.941413495711743,63.830576406843463]
[null,null,null,"PSV",null,null,null,null,null,"£ per hour, 2023 prices",{"$f":"INDEX('TAG - A1.3.6'!$CQ$16:$CQ$95, MATCH(K$10, 'TAG - A1.3.6'!$C$16:$C$95,0))","v":124.19345207062686},{"$f":"INDEX('TAG - A1.3.6'!$CQ$16:$CQ$95, MATCH(L$10, 'TAG - A1.3.6'!$C$16:$C$95,0))","v":124.12675824100594},{"$f":"INDEX('TAG - A1.3.6'!$CQ$16:$CQ$95, MATCH(M$10, 'TAG - A1.3.6'!$C$16:$C$95,0))","v":125.38150406182049},{"$f":"INDEX('TAG - A1.3.6'!$CQ$16:$CQ$95, MATCH(N$10, 'TAG - A1.3.6'!$C$16:$C$95,0))","v":126.61685417707693},{"$f":"INDEX('TAG - A1.3.6'!$CQ$16:$CQ$95, MATCH(O$10, 'TAG - A1.3.6'!$C$16:$C$95,0))","v":128.09107833713441},{"$f":"INDEX('TAG - A1.3.6'!$CQ$16:$CQ$95, MATCH(P$10, 'TAG - A1.3.6'!$C$16:$C$95,0))","v":129.4457302809171},{"$f":"INDEX('TAG - A1.3.6'!$CQ$16:$CQ$95, MATCH(Q$10, 'TAG - A1.3.6'!$C$16:$C$95,0))","v":130.8437687454898},{"$f":"INDEX('TAG - A1.3.6'!$CQ$16:$CQ$95, MATCH(R$10, 'TAG - A1.3.6'!$C$16:$C$95,0))","v":132.28538914636425},{"$f":"INDEX('TAG - A1.3.6'!$CQ$16:$CQ$95, MATCH(S$10, 'TAG - A1.3.6'!$C$16:$C$95,0))","v":134.32693772564386},{"$f":"INDEX('TAG - A1.3.6'!$CQ$16:$CQ$95, MATCH(T$10, 'TAG - A1.3.6'!$C$16:$C$95,0))","v":136.45797709922471},{"$f":"INDEX('TAG - A1.3.6'!$CQ$16:$CQ$95, MATCH(U$10, 'TAG - A1.3.6'!$C$16:$C$95,0))","v":138.68964474455646},{"$f":"INDEX('TAG - A1.3.6'!$CQ$16:$CQ$95, MATCH(V$10, 'TAG - A1.3.6'!$C$16:$C$95,0))","v":141.00509985164399},{"$f":"INDEX('TAG - A1.3.6'!$CQ$16:$CQ$95, MATCH(W$10, 'TAG - A1.3.6'!$C$16:$C$95,0))","v":143.38237597251941},{"$f":"INDEX('TAG - A1.3.6'!$CQ$16:$CQ$95, MATCH(X$10, 'TAG - A1.3.6'!$C$16:$C$95,0))","v":145.83896122045539},{"$f":"INDEX('TAG - A1.3.6'!$CQ$16:$CQ$95, MATCH(Y$10, 'TAG - A1.3.6'!$C$16:$C$95,0))","v":148.44361442577977},{"$f":"INDEX('TAG - A1.3.6'!$CQ$16:$CQ$95, MATCH(Z$10, 'TAG - A1.3.6'!$C$16:$C$95,0))","v":151.0080615924665},{"$f":"INDEX('TAG - A1.3.6'!$CQ$16:$CQ$95, MATCH(AA$10, 'TAG - A1.3.6'!$C$16:$C$95,0))","v":153.54145742918922},{"$f":"INDEX('TAG - A1.3.6'!$CQ$16:$CQ$95, MATCH(AB$10, 'TAG - A1.3.6'!$C$16:$C$95,0))","v":156.02141561214623},{"$f":"INDEX('TAG - A1.3.6'!$CQ$16:$CQ$95, MATCH(AC$10, 'TAG - A1.3.6'!$C$16:$C$95,0))","v":158.47248792029472},{"$f":"INDEX('TAG - A1.3.6'!$CQ$16:$CQ$95, MATCH(AD$10, 'TAG - A1.3.6'!$C$16:$C$95,0))","v":160.89433355435941},{"$f":"INDEX('TAG - A1.3.6'!$CQ$16:$CQ$95, MATCH(AE$10, 'TAG - A1.3.6'!$C$16:$C$95,0))","v":163.3111455266544},{"$f":"INDEX('TAG - A1.3.6'!$CQ$16:$CQ$95, MATCH(AF$10, 'TAG - A1.3.6'!$C$16:$C$95,0))","v":165.73778168022437},{"$f":"INDEX('TAG - A1.3.6'!$CQ$16:$CQ$95, MATCH(AG$10, 'TAG - A1.3.6'!$C$16:$C$95,0))","v":168.1595621201125},{"$f":"INDEX('TAG - A1.3.6'!$CQ$16:$CQ$95, MATCH(AH$10, 'TAG - A1.3.6'!$C$16:$C$95,0))","v":170.60735406068892},{"$f":"INDEX('TAG - A1.3.6'!$CQ$16:$CQ$95, MATCH(AI$10, 'TAG - A1.3.6'!$C$16:$C$95,0))","v":173.07588911639635},{"$f":"INDEX('TAG - A1.3.6'!$CQ$16:$CQ$95, MATCH(AJ$10, 'TAG - A1.3.6'!$C$16:$C$95,0))","v":175.57051657205704},{"$f":"INDEX('TAG - A1.3.6'!$CQ$16:$CQ$95, MATCH(AK$10, 'TAG - A1.3.6'!$C$16:$C$95,0))","v":178.08972963718168},{"$f":"INDEX('TAG - A1.3.6'!$CQ$16:$CQ$95, MATCH(AL$10, 'TAG - A1.3.6'!$C$16:$C$95,0))","v":180.6437727829956},{"$f":"INDEX('TAG - A1.3.6'!$CQ$16:$CQ$95, MATCH(AM$10, 'TAG - A1.3.6'!$C$16:$C$95,0))","v":183.24525478966473},{"$f":"INDEX('TAG - A1.3.6'!$CQ$16:$CQ$95, MATCH(AN$10, 'TAG - A1.3.6'!$C$16:$C$95,0))","v":185.89022945476248},{"$f":"INDEX('TAG - A1.3.6'!$CQ$16:$CQ$95, MATCH(AO$10, 'TAG - A1.3.6'!$C$16:$C$95,0))","v":188.56488349649595},{"$f":"INDEX('TAG - A1.3.6'!$CQ$16:$CQ$95, MATCH(AP$10, 'TAG - A1.3.6'!$C$16:$C$95,0))","v":191.26949703883616},{"$f":"INDEX('TAG - A1.3.6'!$CQ$16:$CQ$95, MATCH(AQ$10, 'TAG - A1.3.6'!$C$16:$C$95,0))","v":194.0003586606293},{"$f":"INDEX('TAG - A1.3.6'!$CQ$16:$CQ$95, MATCH(AR$10, 'TAG - A1.3.6'!$C$16:$C$95,0))","v":196.74419796694178},{"$f":"INDEX('TAG - A1.3.6'!$CQ$16:$CQ$95, MATCH(AS$10, 'TAG - A1.3.6'!$C$16:$C$95,0))","v":199.50411581956698},{"$f":"INDEX('TAG - A1.3.6'!$CQ$16:$CQ$95, MATCH(AT$10, 'TAG - A1.3.6'!$C$16:$C$95,0))","v":202.27926270093124},{"$f":"INDEX('TAG - A1.3.6'!$CQ$16:$CQ$95, MATCH(AU$10, 'TAG - A1.3.6'!$C$16:$C$95,0))","v":205.08480262162215},{"$f":"INDEX('TAG - A1.3.6'!$CQ$16:$CQ$95, MATCH(AV$10, 'TAG - A1.3.6'!$C$16:$C$95,0))","v":207.89745559302847},{"$f":"INDEX('TAG - A1.3.6'!$CQ$16:$CQ$95, MATCH(AW$10, 'TAG - A1.3.6'!$C$16:$C$95,0))","v":210.77364769275886},{"$f":"INDEX('TAG - A1.3.6'!$CQ$16:$CQ$95, MATCH(AX$10, 'TAG - A1.3.6'!$C$16:$C$95,0))","v":213.64329363327067},{"$f":"INDEX('TAG - A1.3.6'!$CQ$16:$CQ$95, MATCH(AY$10, 'TAG - A1.3.6'!$C$16:$C$95,0))","v":216.51881441015996},{"$f":"INDEX('TAG - A1.3.6'!$CQ$16:$CQ$95, MATCH(AZ$10, 'TAG - A1.3.6'!$C$16:$C$95,0))","v":219.406863471794},{"$f":"INDEX('TAG - A1.3.6'!$CQ$16:$CQ$95, MATCH(BA$10, 'TAG - A1.3.6'!$C$16:$C$95,0))","v":222.33764679890669},{"$f":"INDEX('TAG - A1.3.6'!$CQ$16:$CQ$95, MATCH(BB$10, 'TAG - A1.3.6'!$C$16:$C$95,0))","v":225.30161397893946},{"$f":"INDEX('TAG - A1.3.6'!$CQ$16:$CQ$95, MATCH(BC$10, 'TAG - A1.3.6'!$C$16:$C$95,0))","v":228.3005073932319},{"$f":"INDEX('TAG - A1.3.6'!$CQ$16:$CQ$95, MATCH(BD$10, 'TAG - A1.3.6'!$C$16:$C$95,0))","v":231.38669700383878},{"$f":"INDEX('TAG - A1.3.6'!$CQ$16:$CQ$95, MATCH(BE$10, 'TAG - A1.3.6'!$C$16:$C$95,0))","v":234.63902818245475},{"$f":"INDEX('TAG - A1.3.6'!$CQ$16:$CQ$95, MATCH(BF$10, 'TAG - A1.3.6'!$C$16:$C$95,0))","v":238.02516247660373},{"$f":"INDEX('TAG - A1.3.6'!$CQ$16:$CQ$95, MATCH(BG$10, 'TAG - A1.3.6'!$C$16:$C$95,0))","v":241.47767202649956},{"$f":"INDEX('TAG - A1.3.6'!$CQ$16:$CQ$95, MATCH(BH$10, 'TAG - A1.3.6'!$C$16:$C$95,0))","v":244.97644784750719},{"$f":"INDEX('TAG - A1.3.6'!$CQ$16:$CQ$95, MATCH(BI$10, 'TAG - A1.3.6'!$C$16:$C$95,0))","v":248.5383380432288},{"$f":"INDEX('TAG - A1.3.6'!$CQ$16:$CQ$95, MATCH(BJ$10, 'TAG - A1.3.6'!$C$16:$C$95,0))","v":251.57493948250269},{"$f":"INDEX('TAG - A1.3.6'!$CQ$16:$CQ$95, MATCH(BK$10, 'TAG - A1.3.6'!$C$16:$C$95,0))","v":254.57780726804151},{"$f":"INDEX('TAG - A1.3.6'!$CQ$16:$CQ$95, MATCH(BL$10, 'TAG - A1.3.6'!$C$16:$C$95,0))","v":257.45796399901178},{"$f":"INDEX('TAG - A1.3.6'!$CQ$16:$CQ$95, MATCH(BM$10, 'TAG - A1.3.6'!$C$16:$C$95,0))","v":260.40490537461238},{"$f":"INDEX('TAG - A1.3.6'!$CQ$16:$CQ$95, MATCH(BN$10, 'TAG - A1.3.6'!$C$16:$C$95,0))","v":263.36312032189545},{"$f":"INDEX('TAG - A1.3.6'!$CQ$16:$CQ$95, MATCH(BO$10, 'TAG - A1.3.6'!$C$16:$C$95,0))","v":266.31433129245636},{"$f":"INDEX('TAG - A1.3.6'!$CQ$16:$CQ$95, MATCH(BP$10, 'TAG - A1.3.6'!$C$16:$C$95,0))","v":269.31709410216513},{"$f":"INDEX('TAG - A1.3.6'!$CQ$16:$CQ$95, MATCH(BQ$10, 'TAG - A1.3.6'!$C$16:$C$95,0))","v":272.47693355763226},{"$f":"INDEX('TAG - A1.3.6'!$CQ$16:$CQ$95, MATCH(BR$10, 'TAG - A1.3.6'!$C$16:$C$95,0))","v":275.79119157628617},{"$f":"INDEX('TAG - A1.3.6'!$CQ$16:$CQ$95, MATCH(BS$10, 'TAG - A1.3.6'!$C$16:$C$95,0))","v":279.18359215511867},{"$f":"INDEX('TAG - A1.3.6'!$CQ$16:$CQ$95, MATCH(BT$10, 'TAG - A1.3.6'!$C$16:$C$95,0))","v":282.60079473694304},{"$f":"INDEX('TAG - A1.3.6'!$CQ$16:$CQ$95, MATCH(BU$10, 'TAG - A1.3.6'!$C$16:$C$95,0))","v":286.19880229446255},{"$f":"INDEX('TAG - A1.3.6'!$CQ$16:$CQ$95, MATCH(BV$10, 'TAG - A1.3.6'!$C$16:$C$95,0))","v":289.95583818105212},{"$f":"INDEX('TAG - A1.3.6'!$CQ$16:$CQ$95, MATCH(BW$10, 'TAG - A1.3.6'!$C$16:$C$95,0))","v":293.82638511657234},{"$f":"INDEX('TAG - A1.3.6'!$CQ$16:$CQ$95, MATCH(BX$10, 'TAG - A1.3.6'!$C$16:$C$95,0))","v":297.84160521582095},{"$f":"INDEX('TAG - A1.3.6'!$CQ$16:$CQ$95, MATCH(BY$10, 'TAG - A1.3.6'!$C$16:$C$95,0))","v":302.04916418282585},306.31616263763499,310.64344027203595,315.03184864000298,319.48225132527216,323.99552411128371,328.57255515352534]
[]
[null,null,"HGV split"]
[]
[null,null,null,"Proportion of artics and rigids"]
[null,null,null,"HGVs - Artics",{"$f":"'I-TAG Values'!E34/'I-TAG Values'!E36","v":0.58719191502526558},null,null,null,null,"%"]
[{"$f":"--NOT(SUM(E140:E141)=1)","v":0},null,null,"HGV - Rigids",{"$f":"'I-TAG Values'!E30/'I-TAG Values'!E36","v":0.41280808497473448},null,null,null,null,"%"]
[]
[null,null,"Vehicle Operating Costs"]
[]
[null,null,null,"Average speeds"]
[null,null,null,"Average speed - scheme",{"$f":"IF('I-Scheme Details'!E24=0,\"\",'I-Scheme Details'!E24)","v":16.285714285714285},null,null,null,null,"km/h"]
[null,null,null,"Average speed - diversion",{"$f":"IF('I-Scheme Details'!E67=0,\"\",'I-Scheme Details'!E67)","v":23.7},null,null,null,null,"km/h"]
[]
[]
[null,null,null,"Proportion of travel distance for work"]
[null,null,null,"Car",{"$f":"'TAG - A1.3.4'!K14/Hundred","v":0.1205924519584583},null,null,null,null,"%"]
[null,null,null,"LGV",{"$f":"'TAG - A1.3.4'!K17/Hundred","v":0.88},null,null,null,null,"%"]
[]
[null,null,"Fuel costs"]
[]
[null,null,null,"Fuel costs are estimated using a function of the form:",null,null,"L = a/v + b + c.v + d.v2"]
[null,null,null,"Where:"]
[null,null,null,"L = costs, expressed in pence per kilometre;"]
[null,null,null,"v = average speed in kilometres per hour; and"]
[null,null,null,"a, b, c, d are parameters defined for each vehicle category."]
[]
[null,null,null,"Non-Work"]
[null,null,null,"Car",null,null,null,null,null,"a",{"$f":"INDEX('TAG - A1.3.13'!$Q$14:$Q$93, MATCH(K$10,'TAG - A1.3.13'!$C$14:$C$93,0))","v":65.290765408841395},{"$f":"INDEX('TAG - A1.3.13'!$Q$14:$Q$93, MATCH(L$10,'TAG - A1.3.13'!$C$14:$C$93,0))","v":59.485974632956768},{"$f":"INDEX('TAG - A1.3.13'!$Q$14:$Q$93, MATCH(M$10,'TAG - A1.3.13'!$C$14:$C$93,0))","v":55.51215813585101},{"$f":"INDEX('TAG - A1.3.13'!$Q$14:$Q$93, MATCH(N$10,'TAG - A1.3.13'!$C$14:$C$93,0))","v":53.57647845751589},{"$f":"INDEX('TAG - A1.3.13'!$Q$14:$Q$93, MATCH(O$10,'TAG - A1.3.13'!$C$14:$C$93,0))","v":52.098438809866444},{"$f":"INDEX('TAG - A1.3.13'!$Q$14:$Q$93, MATCH(P$10,'TAG - A1.3.13'!$C$14:$C$93,0))","v":49.402177491613948},{"$f":"INDEX('TAG - A1.3.13'!$Q$14:$Q$93, MATCH(Q$10,'TAG - A1.3.13'!$C$14:$C$93,0))","v":45.803984815723254},{"$f":"INDEX('TAG - A1.3.13'!$Q$14:$Q$93, MATCH(R$10,'TAG - A1.3.13'!$C$14:$C$93,0))","v":41.219646924827011},{"$f":"INDEX('TAG - A1.3.13'!$Q$14:$Q$93, MATCH(S$10,'TAG - A1.3.13'!$C$14:$C$93,0))","v":37.468287793175143},{"$f":"INDEX('TAG - A1.3.13'!$Q$14:$Q$93, MATCH(T$10,'TAG - A1.3.13'!$C$14:$C$93,0))","v":34.050272422592265},{"$f":"INDEX('TAG - A1.3.13'!$Q$14:$Q$93, MATCH(U$10,'TAG - A1.3.13'!$C$14:$C$93,0))","v":30.967474957262528},{"$f":"INDEX('TAG - A1.3.13'!$Q$14:$Q$93, MATCH(V$10,'TAG - A1.3.13'!$C$14:$C$93,0))","v":28.18455064666496},{"$f":"INDEX('TAG - A1.3.13'!$Q$14:$Q$93, MATCH(W$10,'TAG - A1.3.13'!$C$14:$C$93,0))","v":25.700097819443521},{"$f":"INDEX('TAG - A1.3.13'!$Q$14:$Q$93, MATCH(X$10,'TAG - A1.3.13'!$C$14:$C$93,0))","v":23.470353205843477},{"$f":"INDEX('TAG - A1.3.13'!$Q$14:$Q$93, MATCH(Y$10,'TAG - A1.3.13'!$C$14:$C$93,0))","v":21.454491352735488},{"$f":"INDEX('TAG - A1.3.13'!$Q$14:$Q$93, MATCH(Z$10,'TAG - A1.3.13'!$C$14:$C$93,0))","v":19.663657237987167},{"$f":"INDEX('TAG - A1.3.13'!$Q$14:$Q$93, MATCH(AA$10,'TAG - A1.3.13'!$C$14:$C$93,0))","v":18.082952431466893},{"$f":"INDEX('TAG - A1.3.13'!$Q$14:$Q$93, MATCH(AB$10,'TAG - A1.3.13'!$C$14:$C$93,0))","v":16.661995498022325},{"$f":"INDEX('TAG - A1.3.13'!$Q$14:$Q$93, MATCH(AC$10,'TAG - A1.3.13'!$C$14:$C$93,0))","v":15.401655365384599},{"$f":"INDEX('TAG - A1.3.13'!$Q$14:$Q$93, MATCH(AD$10,'TAG - A1.3.13'!$C$14:$C$93,0))","v":14.37710435880685},{"$f":"INDEX('TAG - A1.3.13'!$Q$14:$Q$93, MATCH(AE$10,'TAG - A1.3.13'!$C$14:$C$93,0))","v":13.551030735586044},{"$f":"INDEX('TAG - A1.3.13'!$Q$14:$Q$93, MATCH(AF$10,'TAG - A1.3.13'!$C$14:$C$93,0))","v":12.887771454859207},{"$f":"INDEX('TAG - A1.3.13'!$Q$14:$Q$93, MATCH(AG$10,'TAG - A1.3.13'!$C$14:$C$93,0))","v":12.369637389381769},{"$f":"INDEX('TAG - A1.3.13'!$Q$14:$Q$93, MATCH(AH$10,'TAG - A1.3.13'!$C$14:$C$93,0))","v":11.996701560893307},{"$f":"INDEX('TAG - A1.3.13'!$Q$14:$Q$93, MATCH(AI$10,'TAG - A1.3.13'!$C$14:$C$93,0))","v":11.716169256537103},{"$f":"INDEX('TAG - A1.3.13'!$Q$14:$Q$93, MATCH(AJ$10,'TAG - A1.3.13'!$C$14:$C$93,0))","v":11.507359838693382},{"$f":"INDEX('TAG - A1.3.13'!$Q$14:$Q$93, MATCH(AK$10,'TAG - A1.3.13'!$C$14:$C$93,0))","v":11.362307093516515},{"$f":"INDEX('TAG - A1.3.13'!$Q$14:$Q$93, MATCH(AL$10,'TAG - A1.3.13'!$C$14:$C$93,0))","v":11.264971590950154},{"$f":"INDEX('TAG - A1.3.13'!$Q$14:$Q$93, MATCH(AM$10,'TAG - A1.3.13'!$C$14:$C$93,0))","v":11.26996970684964},{"$f":"INDEX('TAG - A1.3.13'!$Q$14:$Q$93, MATCH(AN$10,'TAG - A1.3.13'!$C$14:$C$93,0))","v":11.274972303476369},{"$f":"INDEX('TAG - A1.3.13'!$Q$14:$Q$93, MATCH(AO$10,'TAG - A1.3.13'!$C$14:$C$93,0))","v":11.279979384847232},{"$f":"INDEX('TAG - A1.3.13'!$Q$14:$Q$93, MATCH(AP$10,'TAG - A1.3.13'!$C$14:$C$93,0))","v":11.284990954982723},{"$f":"INDEX('TAG - A1.3.13'!$Q$14:$Q$93, MATCH(AQ$10,'TAG - A1.3.13'!$C$14:$C$93,0))","v":11.290007017906944},{"$f":"INDEX('TAG - A1.3.13'!$Q$14:$Q$93, MATCH(AR$10,'TAG - A1.3.13'!$C$14:$C$93,0))","v":11.295027577647607},{"$f":"INDEX('TAG - A1.3.13'!$Q$14:$Q$93, MATCH(AS$10,'TAG - A1.3.13'!$C$14:$C$93,0))","v":11.300052638236039},{"$f":"INDEX('TAG - A1.3.13'!$Q$14:$Q$93, MATCH(AT$10,'TAG - A1.3.13'!$C$14:$C$93,0))","v":11.305082203707167},{"$f":"INDEX('TAG - A1.3.13'!$Q$14:$Q$93, MATCH(AU$10,'TAG - A1.3.13'!$C$14:$C$93,0))","v":11.310116278099542},{"$f":"INDEX('TAG - A1.3.13'!$Q$14:$Q$93, MATCH(AV$10,'TAG - A1.3.13'!$C$14:$C$93,0))","v":11.315154865455344},{"$f":"INDEX('TAG - A1.3.13'!$Q$14:$Q$93, MATCH(AW$10,'TAG - A1.3.13'!$C$14:$C$93,0))","v":11.320197969820365},{"$f":"INDEX('TAG - A1.3.13'!$Q$14:$Q$93, MATCH(AX$10,'TAG - A1.3.13'!$C$14:$C$93,0))","v":11.325245595244025},{"$f":"INDEX('TAG - A1.3.13'!$Q$14:$Q$93, MATCH(AY$10,'TAG - A1.3.13'!$C$14:$C$93,0))","v":11.330297745779379},{"$f":"INDEX('TAG - A1.3.13'!$Q$14:$Q$93, MATCH(AZ$10,'TAG - A1.3.13'!$C$14:$C$93,0))","v":11.335354425483121},{"$f":"INDEX('TAG - A1.3.13'!$Q$14:$Q$93, MATCH(BA$10,'TAG - A1.3.13'!$C$14:$C$93,0))","v":11.340415638415564},{"$f":"INDEX('TAG - A1.3.13'!$Q$14:$Q$93, MATCH(BB$10,'TAG - A1.3.13'!$C$14:$C$93,0))","v":11.34548138864068},{"$f":"INDEX('TAG - A1.3.13'!$Q$14:$Q$93, MATCH(BC$10,'TAG - A1.3.13'!$C$14:$C$93,0))","v":11.350551680226067},{"$f":"INDEX('TAG - A1.3.13'!$Q$14:$Q$93, MATCH(BD$10,'TAG - A1.3.13'!$C$14:$C$93,0))","v":11.355626517242985},{"$f":"INDEX('TAG - A1.3.13'!$Q$14:$Q$93, MATCH(BE$10,'TAG - A1.3.13'!$C$14:$C$93,0))","v":11.360705903766336},{"$f":"INDEX('TAG - A1.3.13'!$Q$14:$Q$93, MATCH(BF$10,'TAG - A1.3.13'!$C$14:$C$93,0))","v":11.365789843874682},{"$f":"INDEX('TAG - A1.3.13'!$Q$14:$Q$93, MATCH(BG$10,'TAG - A1.3.13'!$C$14:$C$93,0))","v":11.37087834165022},{"$f":"INDEX('TAG - A1.3.13'!$Q$14:$Q$93, MATCH(BH$10,'TAG - A1.3.13'!$C$14:$C$93,0))","v":11.375971401178841},{"$f":"INDEX('TAG - A1.3.13'!$Q$14:$Q$93, MATCH(BI$10,'TAG - A1.3.13'!$C$14:$C$93,0))","v":11.381069026550067},{"$f":"INDEX('TAG - A1.3.13'!$Q$14:$Q$93, MATCH(BJ$10,'TAG - A1.3.13'!$C$14:$C$93,0))","v":11.386171221857106},{"$f":"INDEX('TAG - A1.3.13'!$Q$14:$Q$93, MATCH(BK$10,'TAG - A1.3.13'!$C$14:$C$93,0))","v":11.39127799119683},{"$f":"INDEX('TAG - A1.3.13'!$Q$14:$Q$93, MATCH(BL$10,'TAG - A1.3.13'!$C$14:$C$93,0))","v":11.396389338669774},{"$f":"INDEX('TAG - A1.3.13'!$Q$14:$Q$93, MATCH(BM$10,'TAG - A1.3.13'!$C$14:$C$93,0))","v":11.401505268380168},{"$f":"INDEX('TAG - A1.3.13'!$Q$14:$Q$93, MATCH(BN$10,'TAG - A1.3.13'!$C$14:$C$93,0))","v":11.406625784435903},{"$f":"INDEX('TAG - A1.3.13'!$Q$14:$Q$93, MATCH(BO$10,'TAG - A1.3.13'!$C$14:$C$93,0))","v":11.411750890948568},{"$f":"INDEX('TAG - A1.3.13'!$Q$14:$Q$93, MATCH(BP$10,'TAG - A1.3.13'!$C$14:$C$93,0))","v":11.416880592033426},{"$f":"INDEX('TAG - A1.3.13'!$Q$14:$Q$93, MATCH(BQ$10,'TAG - A1.3.13'!$C$14:$C$93,0))","v":11.42201489180944},{"$f":"INDEX('TAG - A1.3.13'!$Q$14:$Q$93, MATCH(BR$10,'TAG - A1.3.13'!$C$14:$C$93,0))","v":11.427153794399249},{"$f":"INDEX('TAG - A1.3.13'!$Q$14:$Q$93, MATCH(BS$10,'TAG - A1.3.13'!$C$14:$C$93,0))","v":11.432297303929207},{"$f":"INDEX('TAG - A1.3.13'!$Q$14:$Q$93, MATCH(BT$10,'TAG - A1.3.13'!$C$14:$C$93,0))","v":11.437445424529354},{"$f":"INDEX('TAG - A1.3.13'!$Q$14:$Q$93, MATCH(BU$10,'TAG - A1.3.13'!$C$14:$C$93,0))","v":11.442598160333441},{"$f":"INDEX('TAG - A1.3.13'!$Q$14:$Q$93, MATCH(BV$10,'TAG - A1.3.13'!$C$14:$C$93,0))","v":11.447755515478921},{"$f":"INDEX('TAG - A1.3.13'!$Q$14:$Q$93, MATCH(BW$10,'TAG - A1.3.13'!$C$14:$C$93,0))","v":11.452917494106948},{"$f":"INDEX('TAG - A1.3.13'!$Q$14:$Q$93, MATCH(BX$10,'TAG - A1.3.13'!$C$14:$C$93,0))","v":11.458084100362411},{"$f":"INDEX('TAG - A1.3.13'!$Q$14:$Q$93, MATCH(BY$10,'TAG - A1.3.13'!$C$14:$C$93,0))","v":11.463255338393893},{"$f":"IF(BY163=0,0,BY163*BY163/BX163)","v":11.468428910297472},{"$f":"IF(BZ163=0,0,BZ163*BZ163/BY163)","v":11.473604817126468},11.478783059934672,11.483963639776357,11.489146557706267,11.494331814779622]
[null,null,null,"Car",null,null,null,null,null,"b",{"$f":"INDEX('TAG - A1.3.13'!$R$14:$R$93, MATCH(K$10,'TAG - A1.3.13'!$C$14:$C$93,0))","v":12.293148209160528},{"$f":"INDEX('TAG - A1.3.13'!$R$14:$R$93, MATCH(L$10,'TAG - A1.3.13'!$C$14:$C$93,0))","v":11.433321055160803},{"$f":"INDEX('TAG - A1.3.13'!$R$14:$R$93, MATCH(M$10,'TAG - A1.3.13'!$C$14:$C$93,0))","v":10.886648967774001},{"$f":"INDEX('TAG - A1.3.13'!$R$14:$R$93, MATCH(N$10,'TAG - A1.3.13'!$C$14:$C$93,0))","v":10.733771124331689},{"$f":"INDEX('TAG - A1.3.13'!$R$14:$R$93, MATCH(O$10,'TAG - A1.3.13'!$C$14:$C$93,0))","v":10.636737846016695},{"$f":"INDEX('TAG - A1.3.13'!$R$14:$R$93, MATCH(P$10,'TAG - A1.3.13'!$C$14:$C$93,0))","v":10.365478453837673},{"$f":"INDEX('TAG - A1.3.13'!$R$14:$R$93, MATCH(Q$10,'TAG - A1.3.13'!$C$14:$C$93,0))","v":9.9536172636261924},{"$f":"INDEX('TAG - A1.3.13'!$R$14:$R$93, MATCH(R$10,'TAG - A1.3.13'!$C$14:$C$93,0))","v":9.381106053498204},{"$f":"INDEX('TAG - A1.3.13'!$R$14:$R$93, MATCH(S$10,'TAG - A1.3.13'!$C$14:$C$93,0))","v":8.8935338060497759},{"$f":"INDEX('TAG - A1.3.13'!$R$14:$R$93, MATCH(T$10,'TAG - A1.3.13'!$C$14:$C$93,0))","v":8.4560327771836068},{"$f":"INDEX('TAG - A1.3.13'!$R$14:$R$93, MATCH(U$10,'TAG - A1.3.13'!$C$14:$C$93,0))","v":8.035305489739045},{"$f":"INDEX('TAG - A1.3.13'!$R$14:$R$93, MATCH(V$10,'TAG - A1.3.13'!$C$14:$C$93,0))","v":7.6414342633186294},{"$f":"INDEX('TAG - A1.3.13'!$R$14:$R$93, MATCH(W$10,'TAG - A1.3.13'!$C$14:$C$93,0))","v":7.3510433638696835},{"$f":"INDEX('TAG - A1.3.13'!$R$14:$R$93, MATCH(X$10,'TAG - A1.3.13'!$C$14:$C$93,0))","v":7.0065246784377706},{"$f":"INDEX('TAG - A1.3.13'!$R$14:$R$93, MATCH(Y$10,'TAG - A1.3.13'!$C$14:$C$93,0))","v":6.6901047535552092},{"$f":"INDEX('TAG - A1.3.13'!$R$14:$R$93, MATCH(Z$10,'TAG - A1.3.13'!$C$14:$C$93,0))","v":6.4487321912942992},{"$f":"INDEX('TAG - A1.3.13'!$R$14:$R$93, MATCH(AA$10,'TAG - A1.3.13'!$C$14:$C$93,0))","v":6.2406695226700961},{"$f":"INDEX('TAG - A1.3.13'!$R$14:$R$93, MATCH(AB$10,'TAG - A1.3.13'!$C$14:$C$93,0))","v":6.0020689425912206},{"$f":"INDEX('TAG - A1.3.13'!$R$14:$R$93, MATCH(AC$10,'TAG - A1.3.13'!$C$14:$C$93,0))","v":5.8306850764908678},{"$f":"INDEX('TAG - A1.3.13'!$R$14:$R$93, MATCH(AD$10,'TAG - A1.3.13'!$C$14:$C$93,0))","v":5.6462758366285248},{"$f":"INDEX('TAG - A1.3.13'!$R$14:$R$93, MATCH(AE$10,'TAG - A1.3.13'!$C$14:$C$93,0))","v":5.4928166894156956},{"$f":"INDEX('TAG - A1.3.13'!$R$14:$R$93, MATCH(AF$10,'TAG - A1.3.13'!$C$14:$C$93,0))","v":5.3734059642998062},{"$f":"INDEX('TAG - A1.3.13'!$R$14:$R$93, MATCH(AG$10,'TAG - A1.3.13'!$C$14:$C$93,0))","v":5.255818200747429},{"$f":"INDEX('TAG - A1.3.13'!$R$14:$R$93, MATCH(AH$10,'TAG - A1.3.13'!$C$14:$C$93,0))","v":5.134735371002078},{"$f":"INDEX('TAG - A1.3.13'!$R$14:$R$93, MATCH(AI$10,'TAG - A1.3.13'!$C$14:$C$93,0))","v":5.0762362794788078},{"$f":"INDEX('TAG - A1.3.13'!$R$14:$R$93, MATCH(AJ$10,'TAG - A1.3.13'!$C$14:$C$93,0))","v":5.0249898261170518},{"$f":"INDEX('TAG - A1.3.13'!$R$14:$R$93, MATCH(AK$10,'TAG - A1.3.13'!$C$14:$C$93,0))","v":4.9822008857986582},{"$f":"INDEX('TAG - A1.3.13'!$R$14:$R$93, MATCH(AL$10,'TAG - A1.3.13'!$C$14:$C$93,0))","v":4.9848726756742305},{"$f":"INDEX('TAG - A1.3.13'!$R$14:$R$93, MATCH(AM$10,'TAG - A1.3.13'!$C$14:$C$93,0))","v":4.9858656651613504},{"$f":"INDEX('TAG - A1.3.13'!$R$14:$R$93, MATCH(AN$10,'TAG - A1.3.13'!$C$14:$C$93,0))","v":4.986859544846924},{"$f":"INDEX('TAG - A1.3.13'!$R$14:$R$93, MATCH(AO$10,'TAG - A1.3.13'!$C$14:$C$93,0))","v":4.9878543155289989},{"$f":"INDEX('TAG - A1.3.13'!$R$14:$R$93, MATCH(AP$10,'TAG - A1.3.13'!$C$14:$C$93,0))","v":4.9888499780063364},{"$f":"INDEX('TAG - A1.3.13'!$R$14:$R$93, MATCH(AQ$10,'TAG - A1.3.13'!$C$14:$C$93,0))","v":4.989846533078417},{"$f":"INDEX('TAG - A1.3.13'!$R$14:$R$93, MATCH(AR$10,'TAG - A1.3.13'!$C$14:$C$93,0))","v":4.9908439815454386},{"$f":"INDEX('TAG - A1.3.13'!$R$14:$R$93, MATCH(AS$10,'TAG - A1.3.13'!$C$14:$C$93,0))","v":4.9918423242083136},{"$f":"INDEX('TAG - A1.3.13'!$R$14:$R$93, MATCH(AT$10,'TAG - A1.3.13'!$C$14:$C$93,0))","v":4.9928415618686728},{"$f":"INDEX('TAG - A1.3.13'!$R$14:$R$93, MATCH(AU$10,'TAG - A1.3.13'!$C$14:$C$93,0))","v":4.993841695328868},{"$f":"INDEX('TAG - A1.3.13'!$R$14:$R$93, MATCH(AV$10,'TAG - A1.3.13'!$C$14:$C$93,0))","v":4.9948427253919672},{"$f":"INDEX('TAG - A1.3.13'!$R$14:$R$93, MATCH(AW$10,'TAG - A1.3.13'!$C$14:$C$93,0))","v":4.9958446528617628},{"$f":"INDEX('TAG - A1.3.13'!$R$14:$R$93, MATCH(AX$10,'TAG - A1.3.13'!$C$14:$C$93,0))","v":4.9968474785427617},{"$f":"INDEX('TAG - A1.3.13'!$R$14:$R$93, MATCH(AY$10,'TAG - A1.3.13'!$C$14:$C$93,0))","v":4.9978512032401952},{"$f":"INDEX('TAG - A1.3.13'!$R$14:$R$93, MATCH(AZ$10,'TAG - A1.3.13'!$C$14:$C$93,0))","v":4.9988558277600195},{"$f":"INDEX('TAG - A1.3.13'!$R$14:$R$93, MATCH(BA$10,'TAG - A1.3.13'!$C$14:$C$93,0))","v":4.9998613529089067},{"$f":"INDEX('TAG - A1.3.13'!$R$14:$R$93, MATCH(BB$10,'TAG - A1.3.13'!$C$14:$C$93,0))","v":5.0008677794942589},{"$f":"INDEX('TAG - A1.3.13'!$R$14:$R$93, MATCH(BC$10,'TAG - A1.3.13'!$C$14:$C$93,0))","v":5.0018751083241959},{"$f":"INDEX('TAG - A1.3.13'!$R$14:$R$93, MATCH(BD$10,'TAG - A1.3.13'!$C$14:$C$93,0))","v":5.0028833402075676},{"$f":"INDEX('TAG - A1.3.13'!$R$14:$R$93, MATCH(BE$10,'TAG - A1.3.13'!$C$14:$C$93,0))","v":5.0038924759539434},{"$f":"INDEX('TAG - A1.3.13'!$R$14:$R$93, MATCH(BF$10,'TAG - A1.3.13'!$C$14:$C$93,0))","v":5.0049025163736243},{"$f":"INDEX('TAG - A1.3.13'!$R$14:$R$93, MATCH(BG$10,'TAG - A1.3.13'!$C$14:$C$93,0))","v":5.0059134622776327},{"$f":"INDEX('TAG - A1.3.13'!$R$14:$R$93, MATCH(BH$10,'TAG - A1.3.13'!$C$14:$C$93,0))","v":5.006925314477721},{"$f":"INDEX('TAG - A1.3.13'!$R$14:$R$93, MATCH(BI$10,'TAG - A1.3.13'!$C$14:$C$93,0))","v":5.0079380737863683},{"$f":"INDEX('TAG - A1.3.13'!$R$14:$R$93, MATCH(BJ$10,'TAG - A1.3.13'!$C$14:$C$93,0))","v":5.0089517410167828},{"$f":"INDEX('TAG - A1.3.13'!$R$14:$R$93, MATCH(BK$10,'TAG - A1.3.13'!$C$14:$C$93,0))","v":5.0099663169829007},{"$f":"INDEX('TAG - A1.3.13'!$R$14:$R$93, MATCH(BL$10,'TAG - A1.3.13'!$C$14:$C$93,0))","v":5.0109818024993871},{"$f":"INDEX('TAG - A1.3.13'!$R$14:$R$93, MATCH(BM$10,'TAG - A1.3.13'!$C$14:$C$93,0))","v":5.0119981983816402},{"$f":"INDEX('TAG - A1.3.13'!$R$14:$R$93, MATCH(BN$10,'TAG - A1.3.13'!$C$14:$C$93,0))","v":5.0130155054457877},{"$f":"INDEX('TAG - A1.3.13'!$R$14:$R$93, MATCH(BO$10,'TAG - A1.3.13'!$C$14:$C$93,0))","v":5.0140337245086881},{"$f":"INDEX('TAG - A1.3.13'!$R$14:$R$93, MATCH(BP$10,'TAG - A1.3.13'!$C$14:$C$93,0))","v":5.0150528563879337},{"$f":"INDEX('TAG - A1.3.13'!$R$14:$R$93, MATCH(BQ$10,'TAG - A1.3.13'!$C$14:$C$93,0))","v":5.0160729019018486},{"$f":"INDEX('TAG - A1.3.13'!$R$14:$R$93, MATCH(BR$10,'TAG - A1.3.13'!$C$14:$C$93,0))","v":5.0170938618694922},{"$f":"INDEX('TAG - A1.3.13'!$R$14:$R$93, MATCH(BS$10,'TAG - A1.3.13'!$C$14:$C$93,0))","v":5.0181157371106542},{"$f":"INDEX('TAG - A1.3.13'!$R$14:$R$93, MATCH(BT$10,'TAG - A1.3.13'!$C$14:$C$93,0))","v":5.0191385284458647},{"$f":"INDEX('TAG - A1.3.13'!$R$14:$R$93, MATCH(BU$10,'TAG - A1.3.13'!$C$14:$C$93,0))","v":5.0201622366963852},{"$f":"INDEX('TAG - A1.3.13'!$R$14:$R$93, MATCH(BV$10,'TAG - A1.3.13'!$C$14:$C$93,0))","v":5.0211868626842158},{"$f":"INDEX('TAG - A1.3.13'!$R$14:$R$93, MATCH(BW$10,'TAG - A1.3.13'!$C$14:$C$93,0))","v":5.0222124072320913},{"$f":"INDEX('TAG - A1.3.13'!$R$14:$R$93, MATCH(BX$10,'TAG - A1.3.13'!$C$14:$C$93,0))","v":5.0232388711634872},{"$f":"INDEX('TAG - A1.3.13'!$R$14:$R$93, MATCH(BY$10,'TAG - A1.3.13'!$C$14:$C$93,0))","v":5.0242662553026154},{"$f":"IF(BY164=0,0,BY164*BY164/BX164)","v":5.0252938495687545},5.0263216540048807,5.0273496686539794,5.0283778935590444,5.0294063287630797,5.0304349743090961]
[null,null,null,"Car",null,null,null,null,null,"c",{"$f":"INDEX('TAG - A1.3.13'!$S$14:$S$93, MATCH(K$10,'TAG - A1.3.13'!$C$14:$C$93,0))","v":-0.12712750247003571},{"$f":"INDEX('TAG - A1.3.13'!$S$14:$S$93, MATCH(L$10,'TAG - A1.3.13'!$C$14:$C$93,0))","v":-0.11699826800773608},{"$f":"INDEX('TAG - A1.3.13'!$S$14:$S$93, MATCH(M$10,'TAG - A1.3.13'!$C$14:$C$93,0))","v":-0.11029578866794582},{"$f":"INDEX('TAG - A1.3.13'!$S$14:$S$93, MATCH(N$10,'TAG - A1.3.13'!$C$14:$C$93,0))","v":-0.10754420219710137},{"$f":"INDEX('TAG - A1.3.13'!$S$14:$S$93, MATCH(O$10,'TAG - A1.3.13'!$C$14:$C$93,0))","v":-0.10565928048558509},{"$f":"INDEX('TAG - A1.3.13'!$S$14:$S$93, MATCH(P$10,'TAG - A1.3.13'!$C$14:$C$93,0))","v":-0.1011818482388767},{"$f":"INDEX('TAG - A1.3.13'!$S$14:$S$93, MATCH(Q$10,'TAG - A1.3.13'!$C$14:$C$93,0))","v":-9.4693910322718178E-2},{"$f":"INDEX('TAG - A1.3.13'!$S$14:$S$93, MATCH(R$10,'TAG - A1.3.13'!$C$14:$C$93,0))","v":-8.5945750896051165E-2},{"$f":"INDEX('TAG - A1.3.13'!$S$14:$S$93, MATCH(S$10,'TAG - A1.3.13'!$C$14:$C$93,0))","v":-7.8785706479092027E-2},{"$f":"INDEX('TAG - A1.3.13'!$S$14:$S$93, MATCH(T$10,'TAG - A1.3.13'!$C$14:$C$93,0))","v":-7.2184659323988626E-2},{"$f":"INDEX('TAG - A1.3.13'!$S$14:$S$93, MATCH(U$10,'TAG - A1.3.13'!$C$14:$C$93,0))","v":-6.6137991029833434E-2},{"$f":"INDEX('TAG - A1.3.13'!$S$14:$S$93, MATCH(V$10,'TAG - A1.3.13'!$C$14:$C$93,0))","v":-6.058388147230015E-2},{"$f":"INDEX('TAG - A1.3.13'!$S$14:$S$93, MATCH(W$10,'TAG - A1.3.13'!$C$14:$C$93,0))","v":-5.5564340102861855E-2},{"$f":"INDEX('TAG - A1.3.13'!$S$14:$S$93, MATCH(X$10,'TAG - A1.3.13'!$C$14:$C$93,0))","v":-5.100999902395658E-2},{"$f":"INDEX('TAG - A1.3.13'!$S$14:$S$93, MATCH(Y$10,'TAG - A1.3.13'!$C$14:$C$93,0))","v":-4.6829693947043997E-2},{"$f":"INDEX('TAG - A1.3.13'!$S$14:$S$93, MATCH(Z$10,'TAG - A1.3.13'!$C$14:$C$93,0))","v":-4.3055127513212305E-2},{"$f":"INDEX('TAG - A1.3.13'!$S$14:$S$93, MATCH(AA$10,'TAG - A1.3.13'!$C$14:$C$93,0))","v":-3.9662814961204995E-2},{"$f":"INDEX('TAG - A1.3.13'!$S$14:$S$93, MATCH(AB$10,'TAG - A1.3.13'!$C$14:$C$93,0))","v":-3.659134489132837E-2},{"$f":"INDEX('TAG - A1.3.13'!$S$14:$S$93, MATCH(AC$10,'TAG - A1.3.13'!$C$14:$C$93,0))","v":-3.3859616632427224E-2},{"$f":"INDEX('TAG - A1.3.13'!$S$14:$S$93, MATCH(AD$10,'TAG - A1.3.13'!$C$14:$C$93,0))","v":-3.1626775041743639E-2},{"$f":"INDEX('TAG - A1.3.13'!$S$14:$S$93, MATCH(AE$10,'TAG - A1.3.13'!$C$14:$C$93,0))","v":-2.9821019282952582E-2},{"$f":"INDEX('TAG - A1.3.13'!$S$14:$S$93, MATCH(AF$10,'TAG - A1.3.13'!$C$14:$C$93,0))","v":-2.8378017977353693E-2},{"$f":"INDEX('TAG - A1.3.13'!$S$14:$S$93, MATCH(AG$10,'TAG - A1.3.13'!$C$14:$C$93,0))","v":-2.7260552736212078E-2},{"$f":"INDEX('TAG - A1.3.13'!$S$14:$S$93, MATCH(AH$10,'TAG - A1.3.13'!$C$14:$C$93,0))","v":-2.6460108634494609E-2},{"$f":"INDEX('TAG - A1.3.13'!$S$14:$S$93, MATCH(AI$10,'TAG - A1.3.13'!$C$14:$C$93,0))","v":-2.585986105766189E-2},{"$f":"INDEX('TAG - A1.3.13'!$S$14:$S$93, MATCH(AJ$10,'TAG - A1.3.13'!$C$14:$C$93,0))","v":-2.5414939116244251E-2},{"$f":"INDEX('TAG - A1.3.13'!$S$14:$S$93, MATCH(AK$10,'TAG - A1.3.13'!$C$14:$C$93,0))","v":-2.5108704735371776E-2},{"$f":"INDEX('TAG - A1.3.13'!$S$14:$S$93, MATCH(AL$10,'TAG - A1.3.13'!$C$14:$C$93,0))","v":-2.4906206789918943E-2},{"$f":"INDEX('TAG - A1.3.13'!$S$14:$S$93, MATCH(AM$10,'TAG - A1.3.13'!$C$14:$C$93,0))","v":-2.4917264028850895E-2},{"$f":"INDEX('TAG - A1.3.13'!$S$14:$S$93, MATCH(AN$10,'TAG - A1.3.13'!$C$14:$C$93,0))","v":-2.4928331180412475E-2},{"$f":"INDEX('TAG - A1.3.13'!$S$14:$S$93, MATCH(AO$10,'TAG - A1.3.13'!$C$14:$C$93,0))","v":-2.4939408253490163E-2},{"$f":"INDEX('TAG - A1.3.13'!$S$14:$S$93, MATCH(AP$10,'TAG - A1.3.13'!$C$14:$C$93,0))","v":-2.4950495256978435E-2},{"$f":"INDEX('TAG - A1.3.13'!$S$14:$S$93, MATCH(AQ$10,'TAG - A1.3.13'!$C$14:$C$93,0))","v":-2.4961592199779725E-2},{"$f":"INDEX('TAG - A1.3.13'!$S$14:$S$93, MATCH(AR$10,'TAG - A1.3.13'!$C$14:$C$93,0))","v":-2.4972699090804476E-2},{"$f":"INDEX('TAG - A1.3.13'!$S$14:$S$93, MATCH(AS$10,'TAG - A1.3.13'!$C$14:$C$93,0))","v":-2.4983815938971116E-2},{"$f":"INDEX('TAG - A1.3.13'!$S$14:$S$93, MATCH(AT$10,'TAG - A1.3.13'!$C$14:$C$93,0))","v":-2.4994942753206031E-2},{"$f":"INDEX('TAG - A1.3.13'!$S$14:$S$93, MATCH(AU$10,'TAG - A1.3.13'!$C$14:$C$93,0))","v":-2.5006079542443646E-2},{"$f":"INDEX('TAG - A1.3.13'!$S$14:$S$93, MATCH(AV$10,'TAG - A1.3.13'!$C$14:$C$93,0))","v":-2.5017226315626379E-2},{"$f":"INDEX('TAG - A1.3.13'!$S$14:$S$93, MATCH(AW$10,'TAG - A1.3.13'!$C$14:$C$93,0))","v":-2.5028383081704686E-2},{"$f":"INDEX('TAG - A1.3.13'!$S$14:$S$93, MATCH(AX$10,'TAG - A1.3.13'!$C$14:$C$93,0))","v":-2.5039549849637011E-2},{"$f":"INDEX('TAG - A1.3.13'!$S$14:$S$93, MATCH(AY$10,'TAG - A1.3.13'!$C$14:$C$93,0))","v":-2.5050726628389856E-2},{"$f":"INDEX('TAG - A1.3.13'!$S$14:$S$93, MATCH(AZ$10,'TAG - A1.3.13'!$C$14:$C$93,0))","v":-2.5061913426937758E-2},{"$f":"INDEX('TAG - A1.3.13'!$S$14:$S$93, MATCH(BA$10,'TAG - A1.3.13'!$C$14:$C$93,0))","v":-2.5073110254263283E-2},{"$f":"INDEX('TAG - A1.3.13'!$S$14:$S$93, MATCH(BB$10,'TAG - A1.3.13'!$C$14:$C$93,0))","v":-2.5084317119357085E-2},{"$f":"INDEX('TAG - A1.3.13'!$S$14:$S$93, MATCH(BC$10,'TAG - A1.3.13'!$C$14:$C$93,0))","v":-2.5095534031217823E-2},{"$f":"INDEX('TAG - A1.3.13'!$S$14:$S$93, MATCH(BD$10,'TAG - A1.3.13'!$C$14:$C$93,0))","v":-2.5106760998852284E-2},{"$f":"INDEX('TAG - A1.3.13'!$S$14:$S$93, MATCH(BE$10,'TAG - A1.3.13'!$C$14:$C$93,0))","v":-2.5117998031275287E-2},{"$f":"INDEX('TAG - A1.3.13'!$S$14:$S$93, MATCH(BF$10,'TAG - A1.3.13'!$C$14:$C$93,0))","v":-2.5129245137509752E-2},{"$f":"INDEX('TAG - A1.3.13'!$S$14:$S$93, MATCH(BG$10,'TAG - A1.3.13'!$C$14:$C$93,0))","v":-2.5140502326586673E-2},{"$f":"INDEX('TAG - A1.3.13'!$S$14:$S$93, MATCH(BH$10,'TAG - A1.3.13'!$C$14:$C$93,0))","v":-2.5151769607545164E-2},{"$f":"INDEX('TAG - A1.3.13'!$S$14:$S$93, MATCH(BI$10,'TAG - A1.3.13'!$C$14:$C$93,0))","v":-2.5163046989432416E-2},{"$f":"INDEX('TAG - A1.3.13'!$S$14:$S$93, MATCH(BJ$10,'TAG - A1.3.13'!$C$14:$C$93,0))","v":-2.5174334481303746E-2},{"$f":"INDEX('TAG - A1.3.13'!$S$14:$S$93, MATCH(BK$10,'TAG - A1.3.13'!$C$14:$C$93,0))","v":-2.5185632092222594E-2},{"$f":"INDEX('TAG - A1.3.13'!$S$14:$S$93, MATCH(BL$10,'TAG - A1.3.13'!$C$14:$C$93,0))","v":-2.5196939831260503E-2},{"$f":"INDEX('TAG - A1.3.13'!$S$14:$S$93, MATCH(BM$10,'TAG - A1.3.13'!$C$14:$C$93,0))","v":-2.520825770749717E-2},{"$f":"INDEX('TAG - A1.3.13'!$S$14:$S$93, MATCH(BN$10,'TAG - A1.3.13'!$C$14:$C$93,0))","v":-2.5219585730020418E-2},{"$f":"INDEX('TAG - A1.3.13'!$S$14:$S$93, MATCH(BO$10,'TAG - A1.3.13'!$C$14:$C$93,0))","v":-2.5230923907926233E-2},{"$f":"INDEX('TAG - A1.3.13'!$S$14:$S$93, MATCH(BP$10,'TAG - A1.3.13'!$C$14:$C$93,0))","v":-2.5242272250318738E-2},{"$f":"INDEX('TAG - A1.3.13'!$S$14:$S$93, MATCH(BQ$10,'TAG - A1.3.13'!$C$14:$C$93,0))","v":-2.5253630766310226E-2},{"$f":"INDEX('TAG - A1.3.13'!$S$14:$S$93, MATCH(BR$10,'TAG - A1.3.13'!$C$14:$C$93,0))","v":-2.526499946502116E-2},{"$f":"INDEX('TAG - A1.3.13'!$S$14:$S$93, MATCH(BS$10,'TAG - A1.3.13'!$C$14:$C$93,0))","v":-2.5276378355580179E-2},{"$f":"INDEX('TAG - A1.3.13'!$S$14:$S$93, MATCH(BT$10,'TAG - A1.3.13'!$C$14:$C$93,0))","v":-2.528776744712409E-2},{"$f":"INDEX('TAG - A1.3.13'!$S$14:$S$93, MATCH(BU$10,'TAG - A1.3.13'!$C$14:$C$93,0))","v":-2.5299166748797931E-2},{"$f":"INDEX('TAG - A1.3.13'!$S$14:$S$93, MATCH(BV$10,'TAG - A1.3.13'!$C$14:$C$93,0))","v":-2.5310576269754886E-2},{"$f":"INDEX('TAG - A1.3.13'!$S$14:$S$93, MATCH(BW$10,'TAG - A1.3.13'!$C$14:$C$93,0))","v":-2.5321996019156381E-2},{"$f":"INDEX('TAG - A1.3.13'!$S$14:$S$93, MATCH(BX$10,'TAG - A1.3.13'!$C$14:$C$93,0))","v":-2.5333426006172062E-2},{"$f":"INDEX('TAG - A1.3.13'!$S$14:$S$93, MATCH(BY$10,'TAG - A1.3.13'!$C$14:$C$93,0))","v":-2.5344866239979766E-2},-2.5356311640042897E-2,-2.5367762208694467E-2,-2.5379217948268539E-2,-2.5390678861100233E-2,-2.5402144949525723E-2,-2.5413616215882236E-2]
[null,null,null,"Car",null,null,null,null,null,"d",{"$f":"INDEX('TAG - A1.3.13'!$T$14:$T$93, MATCH(K$10,'TAG - A1.3.13'!$C$14:$C$93,0))","v":8.9344847088460738E-4},{"$f":"INDEX('TAG - A1.3.13'!$T$14:$T$93, MATCH(L$10,'TAG - A1.3.13'!$C$14:$C$93,0))","v":8.1983193238579621E-4},{"$f":"INDEX('TAG - A1.3.13'!$T$14:$T$93, MATCH(M$10,'TAG - A1.3.13'!$C$14:$C$93,0))","v":7.7058486637602143E-4},{"$f":"INDEX('TAG - A1.3.13'!$T$14:$T$93, MATCH(N$10,'TAG - A1.3.13'!$C$14:$C$93,0))","v":7.4914090842495183E-4},{"$f":"INDEX('TAG - A1.3.13'!$T$14:$T$93, MATCH(O$10,'TAG - A1.3.13'!$C$14:$C$93,0))","v":7.3383836261802849E-4},{"$f":"INDEX('TAG - A1.3.13'!$T$14:$T$93, MATCH(P$10,'TAG - A1.3.13'!$C$14:$C$93,0))","v":7.0077217468836545E-4},{"$f":"INDEX('TAG - A1.3.13'!$T$14:$T$93, MATCH(Q$10,'TAG - A1.3.13'!$C$14:$C$93,0))","v":6.5410271150609422E-4},{"$f":"INDEX('TAG - A1.3.13'!$T$14:$T$93, MATCH(R$10,'TAG - A1.3.13'!$C$14:$C$93,0))","v":5.9225245969168081E-4},{"$f":"INDEX('TAG - A1.3.13'!$T$14:$T$93, MATCH(S$10,'TAG - A1.3.13'!$C$14:$C$93,0))","v":5.4163334905142917E-4},{"$f":"INDEX('TAG - A1.3.13'!$T$14:$T$93, MATCH(T$10,'TAG - A1.3.13'!$C$14:$C$93,0))","v":4.9512926407063089E-4},{"$f":"INDEX('TAG - A1.3.13'!$T$14:$T$93, MATCH(U$10,'TAG - A1.3.13'!$C$14:$C$93,0))","v":4.5272485999074978E-4},{"$f":"INDEX('TAG - A1.3.13'!$T$14:$T$93, MATCH(V$10,'TAG - A1.3.13'!$C$14:$C$93,0))","v":4.1397117814038039E-4},{"$f":"INDEX('TAG - A1.3.13'!$T$14:$T$93, MATCH(W$10,'TAG - A1.3.13'!$C$14:$C$93,0))","v":3.7907085390862552E-4},{"$f":"INDEX('TAG - A1.3.13'!$T$14:$T$93, MATCH(X$10,'TAG - A1.3.13'!$C$14:$C$93,0))","v":3.4750357682435302E-4},{"$f":"INDEX('TAG - A1.3.13'!$T$14:$T$93, MATCH(Y$10,'TAG - A1.3.13'!$C$14:$C$93,0))","v":3.1865280944036272E-4},{"$f":"INDEX('TAG - A1.3.13'!$T$14:$T$93, MATCH(Z$10,'TAG - A1.3.13'!$C$14:$C$93,0))","v":2.9272065300139883E-4},{"$f":"INDEX('TAG - A1.3.13'!$T$14:$T$93, MATCH(AA$10,'TAG - A1.3.13'!$C$14:$C$93,0))","v":2.6953062310951931E-4},{"$f":"INDEX('TAG - A1.3.13'!$T$14:$T$93, MATCH(AB$10,'TAG - A1.3.13'!$C$14:$C$93,0))","v":2.4857518438596419E-4},{"$f":"INDEX('TAG - A1.3.13'!$T$14:$T$93, MATCH(AC$10,'TAG - A1.3.13'!$C$14:$C$93,0))","v":2.2995154258341425E-4},{"$f":"INDEX('TAG - A1.3.13'!$T$14:$T$93, MATCH(AD$10,'TAG - A1.3.13'!$C$14:$C$93,0))","v":2.1475171575764904E-4},{"$f":"INDEX('TAG - A1.3.13'!$T$14:$T$93, MATCH(AE$10,'TAG - A1.3.13'!$C$14:$C$93,0))","v":2.0246933277117727E-4},{"$f":"INDEX('TAG - A1.3.13'!$T$14:$T$93, MATCH(AF$10,'TAG - A1.3.13'!$C$14:$C$93,0))","v":1.9264170122490398E-4},{"$f":"INDEX('TAG - A1.3.13'!$T$14:$T$93, MATCH(AG$10,'TAG - A1.3.13'!$C$14:$C$93,0))","v":1.8501299731890983E-4},{"$f":"INDEX('TAG - A1.3.13'!$T$14:$T$93, MATCH(AH$10,'TAG - A1.3.13'!$C$14:$C$93,0))","v":1.7954129800124347E-4},{"$f":"INDEX('TAG - A1.3.13'!$T$14:$T$93, MATCH(AI$10,'TAG - A1.3.13'!$C$14:$C$93,0))","v":1.7543460048289857E-4},{"$f":"INDEX('TAG - A1.3.13'!$T$14:$T$93, MATCH(AJ$10,'TAG - A1.3.13'!$C$14:$C$93,0))","v":1.7238708269467796E-4},{"$f":"INDEX('TAG - A1.3.13'!$T$14:$T$93, MATCH(AK$10,'TAG - A1.3.13'!$C$14:$C$93,0))","v":1.7028414569143273E-4},{"$f":"INDEX('TAG - A1.3.13'!$T$14:$T$93, MATCH(AL$10,'TAG - A1.3.13'!$C$14:$C$93,0))","v":1.6888785572709302E-4},{"$f":"INDEX('TAG - A1.3.13'!$T$14:$T$93, MATCH(AM$10,'TAG - A1.3.13'!$C$14:$C$93,0))","v":1.6896282216433744E-4},{"$f":"INDEX('TAG - A1.3.13'!$T$14:$T$93, MATCH(AN$10,'TAG - A1.3.13'!$C$14:$C$93,0))","v":1.6903785580773794E-4},{"$f":"INDEX('TAG - A1.3.13'!$T$14:$T$93, MATCH(AO$10,'TAG - A1.3.13'!$C$14:$C$93,0))","v":1.6911295671754375E-4},{"$f":"INDEX('TAG - A1.3.13'!$T$14:$T$93, MATCH(AP$10,'TAG - A1.3.13'!$C$14:$C$93,0))","v":1.6918812495405797E-4},{"$f":"INDEX('TAG - A1.3.13'!$T$14:$T$93, MATCH(AQ$10,'TAG - A1.3.13'!$C$14:$C$93,0))","v":1.6926336057763783E-4},{"$f":"INDEX('TAG - A1.3.13'!$T$14:$T$93, MATCH(AR$10,'TAG - A1.3.13'!$C$14:$C$93,0))","v":1.6933866364869483E-4},{"$f":"INDEX('TAG - A1.3.13'!$T$14:$T$93, MATCH(AS$10,'TAG - A1.3.13'!$C$14:$C$93,0))","v":1.6941403422769455E-4},{"$f":"INDEX('TAG - A1.3.13'!$T$14:$T$93, MATCH(AT$10,'TAG - A1.3.13'!$C$14:$C$93,0))","v":1.6948947237515656E-4},{"$f":"INDEX('TAG - A1.3.13'!$T$14:$T$93, MATCH(AU$10,'TAG - A1.3.13'!$C$14:$C$93,0))","v":1.6956497815165495E-4},{"$f":"INDEX('TAG - A1.3.13'!$T$14:$T$93, MATCH(AV$10,'TAG - A1.3.13'!$C$14:$C$93,0))","v":1.69640551617818E-4},{"$f":"INDEX('TAG - A1.3.13'!$T$14:$T$93, MATCH(AW$10,'TAG - A1.3.13'!$C$14:$C$93,0))","v":1.6971619283432841E-4},{"$f":"INDEX('TAG - A1.3.13'!$T$14:$T$93, MATCH(AX$10,'TAG - A1.3.13'!$C$14:$C$93,0))","v":1.6979190186192314E-4},{"$f":"INDEX('TAG - A1.3.13'!$T$14:$T$93, MATCH(AY$10,'TAG - A1.3.13'!$C$14:$C$93,0))","v":1.6986767876139372E-4},{"$f":"INDEX('TAG - A1.3.13'!$T$14:$T$93, MATCH(AZ$10,'TAG - A1.3.13'!$C$14:$C$93,0))","v":1.6994352359358628E-4},{"$f":"INDEX('TAG - A1.3.13'!$T$14:$T$93, MATCH(BA$10,'TAG - A1.3.13'!$C$14:$C$93,0))","v":1.7001943641940115E-4},{"$f":"INDEX('TAG - A1.3.13'!$T$14:$T$93, MATCH(BB$10,'TAG - A1.3.13'!$C$14:$C$93,0))","v":1.700954172997937E-4},{"$f":"INDEX('TAG - A1.3.13'!$T$14:$T$93, MATCH(BC$10,'TAG - A1.3.13'!$C$14:$C$93,0))","v":1.7017146629577344E-4},{"$f":"INDEX('TAG - A1.3.13'!$T$14:$T$93, MATCH(BD$10,'TAG - A1.3.13'!$C$14:$C$93,0))","v":1.7024758346840515E-4},{"$f":"INDEX('TAG - A1.3.13'!$T$14:$T$93, MATCH(BE$10,'TAG - A1.3.13'!$C$14:$C$93,0))","v":1.7032376887880785E-4},{"$f":"INDEX('TAG - A1.3.13'!$T$14:$T$93, MATCH(BF$10,'TAG - A1.3.13'!$C$14:$C$93,0))","v":1.7040002258815573E-4},{"$f":"INDEX('TAG - A1.3.13'!$T$14:$T$93, MATCH(BG$10,'TAG - A1.3.13'!$C$14:$C$93,0))","v":1.704763446576774E-4},{"$f":"INDEX('TAG - A1.3.13'!$T$14:$T$93, MATCH(BH$10,'TAG - A1.3.13'!$C$14:$C$93,0))","v":1.705527351486569E-4},{"$f":"INDEX('TAG - A1.3.13'!$T$14:$T$93, MATCH(BI$10,'TAG - A1.3.13'!$C$14:$C$93,0))","v":1.7062919412243272E-4},{"$f":"INDEX('TAG - A1.3.13'!$T$14:$T$93, MATCH(BJ$10,'TAG - A1.3.13'!$C$14:$C$93,0))","v":1.7070572164039861E-4},{"$f":"INDEX('TAG - A1.3.13'!$T$14:$T$93, MATCH(BK$10,'TAG - A1.3.13'!$C$14:$C$93,0))","v":1.7078231776400333E-4},{"$f":"INDEX('TAG - A1.3.13'!$T$14:$T$93, MATCH(BL$10,'TAG - A1.3.13'!$C$14:$C$93,0))","v":1.7085898255475064E-4},{"$f":"INDEX('TAG - A1.3.13'!$T$14:$T$93, MATCH(BM$10,'TAG - A1.3.13'!$C$14:$C$93,0))","v":1.7093571607419949E-4},{"$f":"INDEX('TAG - A1.3.13'!$T$14:$T$93, MATCH(BN$10,'TAG - A1.3.13'!$C$14:$C$93,0))","v":1.7101251838396396E-4},{"$f":"INDEX('TAG - A1.3.13'!$T$14:$T$93, MATCH(BO$10,'TAG - A1.3.13'!$C$14:$C$93,0))","v":1.710893895457135E-4},{"$f":"INDEX('TAG - A1.3.13'!$T$14:$T$93, MATCH(BP$10,'TAG - A1.3.13'!$C$14:$C$93,0))","v":1.7116632962117272E-4},{"$f":"INDEX('TAG - A1.3.13'!$T$14:$T$93, MATCH(BQ$10,'TAG - A1.3.13'!$C$14:$C$93,0))","v":1.7124333867212169E-4},{"$f":"INDEX('TAG - A1.3.13'!$T$14:$T$93, MATCH(BR$10,'TAG - A1.3.13'!$C$14:$C$93,0))","v":1.713204167603956E-4},{"$f":"INDEX('TAG - A1.3.13'!$T$14:$T$93, MATCH(BS$10,'TAG - A1.3.13'!$C$14:$C$93,0))","v":1.7139756394788538E-4},{"$f":"INDEX('TAG - A1.3.13'!$T$14:$T$93, MATCH(BT$10,'TAG - A1.3.13'!$C$14:$C$93,0))","v":1.7147478029653731E-4},{"$f":"INDEX('TAG - A1.3.13'!$T$14:$T$93, MATCH(BU$10,'TAG - A1.3.13'!$C$14:$C$93,0))","v":1.7155206586835323E-4},{"$f":"INDEX('TAG - A1.3.13'!$T$14:$T$93, MATCH(BV$10,'TAG - A1.3.13'!$C$14:$C$93,0))","v":1.7162942072539047E-4},{"$f":"INDEX('TAG - A1.3.13'!$T$14:$T$93, MATCH(BW$10,'TAG - A1.3.13'!$C$14:$C$93,0))","v":1.717068449297621E-4},{"$f":"INDEX('TAG - A1.3.13'!$T$14:$T$93, MATCH(BX$10,'TAG - A1.3.13'!$C$14:$C$93,0))","v":1.7178433854363694E-4},{"$f":"INDEX('TAG - A1.3.13'!$T$14:$T$93, MATCH(BY$10,'TAG - A1.3.13'!$C$14:$C$93,0))","v":1.7186190162923938E-4},1.7193949973568425E-4,1.7201713287878393E-4,1.7209480107435799E-4,1.7217250433823313E-4,1.7225024268624316E-4,1.7232801613422909E-4]
[]
[null,null,null,"Car - Scheme",null,null,null,null,null,"pence per km, 2023 prices",{"$f":"IF($E$146=\"\",0,K163/$E$146+K164+K165*$E$146+K166*($E$146)^2)","v":14.468832527434207},{"$f":"IF($E$146=\"\",0,L163/$E$146+L164+L165*$E$146+L166*($E$146)^2)","v":13.398007761630369},12.703422533682831,12.470811254422054,12.309659842177831,11.936988763972472,11.397468736868287,10.669528918310512,10.054791067369175,9.502580647454911,8.979786404587804,8.4952080767190612,8.1247534522002915,7.709118906439846,7.3293453146270497,7.0326029216251191,6.7765751006913231,6.4951859675363792,6.2859614950814429,6.0709732823756957,5.892940749789557,5.7536973560256266,5.6204697433788482,5.4880719204999506,5.4210334249482752,5.3634029359331388,5.3161367433414775,5.3157592852210866,5.3168989844627186,5.3180397054256447,5.3191814490258178,5.3203242161800146,5.3214680078058354,5.3226128248217011,5.3237586681468594,5.3249055387013753,5.3260534374061468,5.3272023651828881,5.328352322954153,5.3295033116433066,5.3306553321745511,5.3318083854729208,5.332962472464267,5.3341175940752841,5.3352737512334869,5.3364309448672289,5.3375891759056913,5.3387484452788918,5.3399087539176788,5.3410701027537382,5.3422324927195861,5.3433959247485809,5.3445603997749158,5.3457259187336152,5.3468924825605519,5.3480600921924308,5.3492287485667998,5.3503984526220441,5.3515692052973929,5.3527410075329183,5.3539138602695306,5.3550877644489887,5.3562627210138904,5.3574387309076865,5.3586157950746633,{"$f":"IF($E$146=\"\",0,BX163/$E$146+BX164+BX165*$E$146+BX166*($E$146)^2)","v":5.3597939144599636},5.3609730900095709,5.3621525441463511,{"$f":"IF($E$146=\"\",0,CA163/$E$146+CA164+CA165*$E$146+CA166*($E$146)^2)","v":5.3633322769441554},5.3645122884768606,5.365692578818364,5.3668731480425897,5.3680539962234795]
[null,null,null,"Car - Diversion",null,null,null,null,null,"pence per km, 2023 prices",{"$f":"IF($E$147=\"\",0,K163/$E$147+K164+K165*$E$147+K166*($E$147)^2)","v":12.536952088638667},{"$f":"IF($E$147=\"\",0,L163/$E$147+L164+L165*$E$147+L166*($E$147)^2)","v":11.630910237047033},11.047753743349867,10.866369394494015,10.743048931692753,10.4455654363143,10.009432128164947,9.416079649988502,8.9114830115381345,8.460085862924549,8.0287706419048597,7.6273412897475694,7.3314811244204821,6.9830872474864059,6.6644779032383035,6.4224341116335468,6.2150472372635406,5.9775140487111704,5.8072325204325859,5.6239740352621377,5.471556980692867,5.3528396804970839,5.2355886796072184,5.1146672873170722,5.05625056634468,5.0050264787684045,4.9621937255965323,4.9647734514386181,4.9657573832274098,4.9667421970945806,4.9677278938308973,4.968714474227836,4.9697019390775852,4.970690289173044,4.9716795253078168,4.9726696482762254,4.9736606588733006,4.9746525578947853,4.9756453461371404,4.9766390243975351,4.9776335934738549,4.9786290541647036,4.9796254072693973,4.9806226535879707,4.9816207939211736,4.9826198290704786,4.9836197598380672,4.9846205870268552,4.9856223114404612,4.9866249338832356,4.9876284551602454,4.9886328760772827,4.9896381974408577,4.9906444200582047,4.9916515447372847,4.9926595722867813,4.9936685035161013,4.994678339235378,4.9956890802554721,4.9967007273879718,4.9977132814451917,4.998726743240173,4.9997411135866869,5.0007563932992367,5.0017725831930528,{"$f":"IF($E$147=\"\",0,BX163/$E$147+BX164+BX165*$E$147+BX166*($E$147)^2)","v":5.0027896840840969},5.0038076967890666,5.004825915327265,{"$f":"IF($E$147=\"\",0,CA163/$E$147+CA164+CA165*$E$147+CA166*($E$147)^2)","v":5.0058443397397028},5.0068629700673988,5.0078818063513761,5.0089008486326705,5.0099200969523219]
[]
[null,null,null,"LGV",null,null,null,null,null,"a",{"$f":"INDEX('TAG - A1.3.13'!$AG$14:$AG$93, MATCH(K$10,'TAG - A1.3.13'!$C$14:$C$93,0))","v":65.345893715175876},{"$f":"INDEX('TAG - A1.3.13'!$AG$14:$AG$93, MATCH(L$10,'TAG - A1.3.13'!$C$14:$C$93,0))","v":60.709429329152826},{"$f":"INDEX('TAG - A1.3.13'!$AG$14:$AG$93, MATCH(M$10,'TAG - A1.3.13'!$C$14:$C$93,0))","v":57.598124299658096},{"$f":"INDEX('TAG - A1.3.13'!$AG$14:$AG$93, MATCH(N$10,'TAG - A1.3.13'!$C$14:$C$93,0))","v":56.276620692374145},{"$f":"INDEX('TAG - A1.3.13'!$AG$14:$AG$93, MATCH(O$10,'TAG - A1.3.13'!$C$14:$C$93,0))","v":55.108493539458294},{"$f":"INDEX('TAG - A1.3.13'!$AG$14:$AG$93, MATCH(P$10,'TAG - A1.3.13'!$C$14:$C$93,0))","v":52.74212163577738},{"$f":"INDEX('TAG - A1.3.13'!$AG$14:$AG$93, MATCH(Q$10,'TAG - A1.3.13'!$C$14:$C$93,0))","v":49.476467344643197},{"$f":"INDEX('TAG - A1.3.13'!$AG$14:$AG$93, MATCH(R$10,'TAG - A1.3.13'!$C$14:$C$93,0))","v":45.293717301350426},{"$f":"INDEX('TAG - A1.3.13'!$AG$14:$AG$93, MATCH(S$10,'TAG - A1.3.13'!$C$14:$C$93,0))","v":41.941250502575969},{"$f":"INDEX('TAG - A1.3.13'!$AG$14:$AG$93, MATCH(T$10,'TAG - A1.3.13'!$C$14:$C$93,0))","v":39.058329784313102},{"$f":"INDEX('TAG - A1.3.13'!$AG$14:$AG$93, MATCH(U$10,'TAG - A1.3.13'!$C$14:$C$93,0))","v":36.434775926294265},{"$f":"INDEX('TAG - A1.3.13'!$AG$14:$AG$93, MATCH(V$10,'TAG - A1.3.13'!$C$14:$C$93,0))","v":34.186411912219143},{"$f":"INDEX('TAG - A1.3.13'!$AG$14:$AG$93, MATCH(W$10,'TAG - A1.3.13'!$C$14:$C$93,0))","v":32.214499790858127},{"$f":"INDEX('TAG - A1.3.13'!$AG$14:$AG$93, MATCH(X$10,'TAG - A1.3.13'!$C$14:$C$93,0))","v":30.412771553699674},{"$f":"INDEX('TAG - A1.3.13'!$AG$14:$AG$93, MATCH(Y$10,'TAG - A1.3.13'!$C$14:$C$93,0))","v":28.786025451958078},{"$f":"INDEX('TAG - A1.3.13'!$AG$14:$AG$93, MATCH(Z$10,'TAG - A1.3.13'!$C$14:$C$93,0))","v":27.285840000163677},{"$f":"INDEX('TAG - A1.3.13'!$AG$14:$AG$93, MATCH(AA$10,'TAG - A1.3.13'!$C$14:$C$93,0))","v":26.162821367118482},{"$f":"INDEX('TAG - A1.3.13'!$AG$14:$AG$93, MATCH(AB$10,'TAG - A1.3.13'!$C$14:$C$93,0))","v":25.155385640396815},{"$f":"INDEX('TAG - A1.3.13'!$AG$14:$AG$93, MATCH(AC$10,'TAG - A1.3.13'!$C$14:$C$93,0))","v":24.349053499080615},{"$f":"INDEX('TAG - A1.3.13'!$AG$14:$AG$93, MATCH(AD$10,'TAG - A1.3.13'!$C$14:$C$93,0))","v":23.635379594936261},{"$f":"INDEX('TAG - A1.3.13'!$AG$14:$AG$93, MATCH(AE$10,'TAG - A1.3.13'!$C$14:$C$93,0))","v":23.08850201185345},{"$f":"INDEX('TAG - A1.3.13'!$AG$14:$AG$93, MATCH(AF$10,'TAG - A1.3.13'!$C$14:$C$93,0))","v":22.380696169643112},{"$f":"INDEX('TAG - A1.3.13'!$AG$14:$AG$93, MATCH(AG$10,'TAG - A1.3.13'!$C$14:$C$93,0))","v":22.31561527325837},{"$f":"INDEX('TAG - A1.3.13'!$AG$14:$AG$93, MATCH(AH$10,'TAG - A1.3.13'!$C$14:$C$93,0))","v":22.003655546024724},{"$f":"INDEX('TAG - A1.3.13'!$AG$14:$AG$93, MATCH(AI$10,'TAG - A1.3.13'!$C$14:$C$93,0))","v":21.74503306274163},{"$f":"INDEX('TAG - A1.3.13'!$AG$14:$AG$93, MATCH(AJ$10,'TAG - A1.3.13'!$C$14:$C$93,0))","v":21.527522460378389},{"$f":"INDEX('TAG - A1.3.13'!$AG$14:$AG$93, MATCH(AK$10,'TAG - A1.3.13'!$C$14:$C$93,0))","v":21.340705185101559},{"$f":"INDEX('TAG - A1.3.13'!$AG$14:$AG$93, MATCH(AL$10,'TAG - A1.3.13'!$C$14:$C$93,0))","v":21.176550274730978},{"$f":"INDEX('TAG - A1.3.13'!$AG$14:$AG$93, MATCH(AM$10,'TAG - A1.3.13'!$C$14:$C$93,0))","v":21.185886834274317},{"$f":"INDEX('TAG - A1.3.13'!$AG$14:$AG$93, MATCH(AN$10,'TAG - A1.3.13'!$C$14:$C$93,0))","v":21.195231763887001},{"$f":"INDEX('TAG - A1.3.13'!$AG$14:$AG$93, MATCH(AO$10,'TAG - A1.3.13'!$C$14:$C$93,0))","v":21.204585071072653},{"$f":"INDEX('TAG - A1.3.13'!$AG$14:$AG$93, MATCH(AP$10,'TAG - A1.3.13'!$C$14:$C$93,0))","v":21.213946763341625},{"$f":"INDEX('TAG - A1.3.13'!$AG$14:$AG$93, MATCH(AQ$10,'TAG - A1.3.13'!$C$14:$C$93,0))","v":21.223316848210988},{"$f":"INDEX('TAG - A1.3.13'!$AG$14:$AG$93, MATCH(AR$10,'TAG - A1.3.13'!$C$14:$C$93,0))","v":21.232695333204589},{"$f":"INDEX('TAG - A1.3.13'!$AG$14:$AG$93, MATCH(AS$10,'TAG - A1.3.13'!$C$14:$C$93,0))","v":21.242082225852997},{"$f":"INDEX('TAG - A1.3.13'!$AG$14:$AG$93, MATCH(AT$10,'TAG - A1.3.13'!$C$14:$C$93,0))","v":21.251477533693524},{"$f":"INDEX('TAG - A1.3.13'!$AG$14:$AG$93, MATCH(AU$10,'TAG - A1.3.13'!$C$14:$C$93,0))","v":21.26088126427025},{"$f":"INDEX('TAG - A1.3.13'!$AG$14:$AG$93, MATCH(AV$10,'TAG - A1.3.13'!$C$14:$C$93,0))","v":21.270293425134017},{"$f":"INDEX('TAG - A1.3.13'!$AG$14:$AG$93, MATCH(AW$10,'TAG - A1.3.13'!$C$14:$C$93,0))","v":21.279714023842441},{"$f":"INDEX('TAG - A1.3.13'!$AG$14:$AG$93, MATCH(AX$10,'TAG - A1.3.13'!$C$14:$C$93,0))","v":21.289143067959913},{"$f":"INDEX('TAG - A1.3.13'!$AG$14:$AG$93, MATCH(AY$10,'TAG - A1.3.13'!$C$14:$C$93,0))","v":21.298580565057588},{"$f":"INDEX('TAG - A1.3.13'!$AG$14:$AG$93, MATCH(AZ$10,'TAG - A1.3.13'!$C$14:$C$93,0))","v":21.308026522713433},{"$f":"INDEX('TAG - A1.3.13'!$AG$14:$AG$93, MATCH(BA$10,'TAG - A1.3.13'!$C$14:$C$93,0))","v":21.317480948512191},{"$f":"INDEX('TAG - A1.3.13'!$AG$14:$AG$93, MATCH(BB$10,'TAG - A1.3.13'!$C$14:$C$93,0))","v":21.326943850045406},{"$f":"INDEX('TAG - A1.3.13'!$AG$14:$AG$93, MATCH(BC$10,'TAG - A1.3.13'!$C$14:$C$93,0))","v":21.336415234911431},{"$f":"INDEX('TAG - A1.3.13'!$AG$14:$AG$93, MATCH(BD$10,'TAG - A1.3.13'!$C$14:$C$93,0))","v":21.345895110715453},{"$f":"INDEX('TAG - A1.3.13'!$AG$14:$AG$93, MATCH(BE$10,'TAG - A1.3.13'!$C$14:$C$93,0))","v":21.355383485069428},{"$f":"INDEX('TAG - A1.3.13'!$AG$14:$AG$93, MATCH(BF$10,'TAG - A1.3.13'!$C$14:$C$93,0))","v":21.364880365592192},{"$f":"INDEX('TAG - A1.3.13'!$AG$14:$AG$93, MATCH(BG$10,'TAG - A1.3.13'!$C$14:$C$93,0))","v":21.374385759909341},{"$f":"INDEX('TAG - A1.3.13'!$AG$14:$AG$93, MATCH(BH$10,'TAG - A1.3.13'!$C$14:$C$93,0))","v":21.383899675653392},{"$f":"INDEX('TAG - A1.3.13'!$AG$14:$AG$93, MATCH(BI$10,'TAG - A1.3.13'!$C$14:$C$93,0))","v":21.393422120463647},{"$f":"INDEX('TAG - A1.3.13'!$AG$14:$AG$93, MATCH(BJ$10,'TAG - A1.3.13'!$C$14:$C$93,0))","v":21.402953101986263},{"$f":"INDEX('TAG - A1.3.13'!$AG$14:$AG$93, MATCH(BK$10,'TAG - A1.3.13'!$C$14:$C$93,0))","v":21.412492627874272},{"$f":"INDEX('TAG - A1.3.13'!$AG$14:$AG$93, MATCH(BL$10,'TAG - A1.3.13'!$C$14:$C$93,0))","v":21.422040705787541},{"$f":"INDEX('TAG - A1.3.13'!$AG$14:$AG$93, MATCH(BM$10,'TAG - A1.3.13'!$C$14:$C$93,0))","v":21.431597343392831},{"$f":"INDEX('TAG - A1.3.13'!$AG$14:$AG$93, MATCH(BN$10,'TAG - A1.3.13'!$C$14:$C$93,0))","v":21.441162548363749},{"$f":"INDEX('TAG - A1.3.13'!$AG$14:$AG$93, MATCH(BO$10,'TAG - A1.3.13'!$C$14:$C$93,0))","v":21.450736328380806},{"$f":"INDEX('TAG - A1.3.13'!$AG$14:$AG$93, MATCH(BP$10,'TAG - A1.3.13'!$C$14:$C$93,0))","v":21.460318691131381},{"$f":"INDEX('TAG - A1.3.13'!$AG$14:$AG$93, MATCH(BQ$10,'TAG - A1.3.13'!$C$14:$C$93,0))","v":21.469909644309762},{"$f":"INDEX('TAG - A1.3.13'!$AG$14:$AG$93, MATCH(BR$10,'TAG - A1.3.13'!$C$14:$C$93,0))","v":21.479509195617105},{"$f":"INDEX('TAG - A1.3.13'!$AG$14:$AG$93, MATCH(BS$10,'TAG - A1.3.13'!$C$14:$C$93,0))","v":21.489117352761504},{"$f":"INDEX('TAG - A1.3.13'!$AG$14:$AG$93, MATCH(BT$10,'TAG - A1.3.13'!$C$14:$C$93,0))","v":21.49873412345794},{"$f":"INDEX('TAG - A1.3.13'!$AG$14:$AG$93, MATCH(BU$10,'TAG - A1.3.13'!$C$14:$C$93,0))","v":21.508359515428321},{"$f":"INDEX('TAG - A1.3.13'!$AG$14:$AG$93, MATCH(BV$10,'TAG - A1.3.13'!$C$14:$C$93,0))","v":21.517993536401473},{"$f":"INDEX('TAG - A1.3.13'!$AG$14:$AG$93, MATCH(BW$10,'TAG - A1.3.13'!$C$14:$C$93,0))","v":21.52763619411315},{"$f":"INDEX('TAG - A1.3.13'!$AG$14:$AG$93, MATCH(BX$10,'TAG - A1.3.13'!$C$14:$C$93,0))","v":21.53728749630606},{"$f":"INDEX('TAG - A1.3.13'!$AG$14:$AG$93, MATCH(BY$10,'TAG - A1.3.13'!$C$14:$C$93,0))","v":21.546947450729817},{"$f":"IF(BY171=0,0,BY171*BY171/BX171)","v":21.556611737858866},{"$f":"IF(BZ171=0,0,BZ171*BZ171/BY171)","v":21.566280359636519},21.575953318006963,21.585630614915257,21.595312252307334,21.604998232129997]
[null,null,null,"LGV",null,null,null,null,null,"b",{"$f":"INDEX('TAG - A1.3.13'!$AH$14:$AH$93, MATCH(K$10,'TAG - A1.3.13'!$C$14:$C$93,0))","v":16.484996097676927},{"$f":"INDEX('TAG - A1.3.13'!$AH$14:$AH$93, MATCH(L$10,'TAG - A1.3.13'!$C$14:$C$93,0))","v":15.392961763472652},{"$f":"INDEX('TAG - A1.3.13'!$AH$14:$AH$93, MATCH(M$10,'TAG - A1.3.13'!$C$14:$C$93,0))","v":14.7168999627081},{"$f":"INDEX('TAG - A1.3.13'!$AH$14:$AH$93, MATCH(N$10,'TAG - A1.3.13'!$C$14:$C$93,0))","v":14.544593806358224},{"$f":"INDEX('TAG - A1.3.13'!$AH$14:$AH$93, MATCH(O$10,'TAG - A1.3.13'!$C$14:$C$93,0))","v":14.434657669216016},{"$f":"INDEX('TAG - A1.3.13'!$AH$14:$AH$93, MATCH(P$10,'TAG - A1.3.13'!$C$14:$C$93,0))","v":14.102805877896095},{"$f":"INDEX('TAG - A1.3.13'!$AH$14:$AH$93, MATCH(Q$10,'TAG - A1.3.13'!$C$14:$C$93,0))","v":13.603240170672805},{"$f":"INDEX('TAG - A1.3.13'!$AH$14:$AH$93, MATCH(R$10,'TAG - A1.3.13'!$C$14:$C$93,0))","v":12.935139545686724},{"$f":"INDEX('TAG - A1.3.13'!$AH$14:$AH$93, MATCH(S$10,'TAG - A1.3.13'!$C$14:$C$93,0))","v":12.412643415490873},{"$f":"INDEX('TAG - A1.3.13'!$AH$14:$AH$93, MATCH(T$10,'TAG - A1.3.13'!$C$14:$C$93,0))","v":11.991442399006111},{"$f":"INDEX('TAG - A1.3.13'!$AH$14:$AH$93, MATCH(U$10,'TAG - A1.3.13'!$C$14:$C$93,0))","v":11.590219501601146},{"$f":"INDEX('TAG - A1.3.13'!$AH$14:$AH$93, MATCH(V$10,'TAG - A1.3.13'!$C$14:$C$93,0))","v":11.250931700087021},{"$f":"INDEX('TAG - A1.3.13'!$AH$14:$AH$93, MATCH(W$10,'TAG - A1.3.13'!$C$14:$C$93,0))","v":11.05923859709344},{"$f":"INDEX('TAG - A1.3.13'!$AH$14:$AH$93, MATCH(X$10,'TAG - A1.3.13'!$C$14:$C$93,0))","v":10.765740301494626},{"$f":"INDEX('TAG - A1.3.13'!$AH$14:$AH$93, MATCH(Y$10,'TAG - A1.3.13'!$C$14:$C$93,0))","v":10.495169747069165},{"$f":"INDEX('TAG - A1.3.13'!$AH$14:$AH$93, MATCH(Z$10,'TAG - A1.3.13'!$C$14:$C$93,0))","v":10.291540322866062},{"$f":"INDEX('TAG - A1.3.13'!$AH$14:$AH$93, MATCH(AA$10,'TAG - A1.3.13'!$C$14:$C$93,0))","v":10.180247576901206},{"$f":"INDEX('TAG - A1.3.13'!$AH$14:$AH$93, MATCH(AB$10,'TAG - A1.3.13'!$C$14:$C$93,0))","v":10.005541310644922},{"$f":"INDEX('TAG - A1.3.13'!$AH$14:$AH$93, MATCH(AC$10,'TAG - A1.3.13'!$C$14:$C$93,0))","v":9.9249044666267352},{"$f":"INDEX('TAG - A1.3.13'!$AH$14:$AH$93, MATCH(AD$10,'TAG - A1.3.13'!$C$14:$C$93,0))","v":9.7914602905820427},{"$f":"INDEX('TAG - A1.3.13'!$AH$14:$AH$93, MATCH(AE$10,'TAG - A1.3.13'!$C$14:$C$93,0))","v":9.6908098631573267},{"$f":"INDEX('TAG - A1.3.13'!$AH$14:$AH$93, MATCH(AF$10,'TAG - A1.3.13'!$C$14:$C$93,0))","v":9.5509640600438619},{"$f":"INDEX('TAG - A1.3.13'!$AH$14:$AH$93, MATCH(AG$10,'TAG - A1.3.13'!$C$14:$C$93,0))","v":9.5322440986619981},{"$f":"INDEX('TAG - A1.3.13'!$AH$14:$AH$93, MATCH(AH$10,'TAG - A1.3.13'!$C$14:$C$93,0))","v":9.4066570794513265},{"$f":"INDEX('TAG - A1.3.13'!$AH$14:$AH$93, MATCH(AI$10,'TAG - A1.3.13'!$C$14:$C$93,0))","v":9.3565006884580555},{"$f":"INDEX('TAG - A1.3.13'!$AH$14:$AH$93, MATCH(AJ$10,'TAG - A1.3.13'!$C$14:$C$93,0))","v":9.3057893809824321},{"$f":"INDEX('TAG - A1.3.13'!$AH$14:$AH$93, MATCH(AK$10,'TAG - A1.3.13'!$C$14:$C$93,0))","v":9.2559596914186031},{"$f":"INDEX('TAG - A1.3.13'!$AH$14:$AH$93, MATCH(AL$10,'TAG - A1.3.13'!$C$14:$C$93,0))","v":9.2638853919940001},{"$f":"INDEX('TAG - A1.3.13'!$AH$14:$AH$93, MATCH(AM$10,'TAG - A1.3.13'!$C$14:$C$93,0))","v":9.2661967720933696},{"$f":"INDEX('TAG - A1.3.13'!$AH$14:$AH$93, MATCH(AN$10,'TAG - A1.3.13'!$C$14:$C$93,0))","v":9.2685102243063042},{"$f":"INDEX('TAG - A1.3.13'!$AH$14:$AH$93, MATCH(AO$10,'TAG - A1.3.13'!$C$14:$C$93,0))","v":9.2708257504904239},{"$f":"INDEX('TAG - A1.3.13'!$AH$14:$AH$93, MATCH(AP$10,'TAG - A1.3.13'!$C$14:$C$93,0))","v":9.2731433525050058},{"$f":"INDEX('TAG - A1.3.13'!$AH$14:$AH$93, MATCH(AQ$10,'TAG - A1.3.13'!$C$14:$C$93,0))","v":9.2754630322109968},{"$f":"INDEX('TAG - A1.3.13'!$AH$14:$AH$93, MATCH(AR$10,'TAG - A1.3.13'!$C$14:$C$93,0))","v":9.2777847914710101},{"$f":"INDEX('TAG - A1.3.13'!$AH$14:$AH$93, MATCH(AS$10,'TAG - A1.3.13'!$C$14:$C$93,0))","v":9.2801086321493358},{"$f":"INDEX('TAG - A1.3.13'!$AH$14:$AH$93, MATCH(AT$10,'TAG - A1.3.13'!$C$14:$C$93,0))","v":9.2824345561119301},{"$f":"INDEX('TAG - A1.3.13'!$AH$14:$AH$93, MATCH(AU$10,'TAG - A1.3.13'!$C$14:$C$93,0))","v":9.2847625652264192},{"$f":"INDEX('TAG - A1.3.13'!$AH$14:$AH$93, MATCH(AV$10,'TAG - A1.3.13'!$C$14:$C$93,0))","v":9.2870926613621076},{"$f":"INDEX('TAG - A1.3.13'!$AH$14:$AH$93, MATCH(AW$10,'TAG - A1.3.13'!$C$14:$C$93,0))","v":9.2894248463899771},{"$f":"INDEX('TAG - A1.3.13'!$AH$14:$AH$93, MATCH(AX$10,'TAG - A1.3.13'!$C$14:$C$93,0))","v":9.2917591221826843},{"$f":"INDEX('TAG - A1.3.13'!$AH$14:$AH$93, MATCH(AY$10,'TAG - A1.3.13'!$C$14:$C$93,0))","v":9.2940954906145627},{"$f":"INDEX('TAG - A1.3.13'!$AH$14:$AH$93, MATCH(AZ$10,'TAG - A1.3.13'!$C$14:$C$93,0))","v":9.29643395356163},{"$f":"INDEX('TAG - A1.3.13'!$AH$14:$AH$93, MATCH(BA$10,'TAG - A1.3.13'!$C$14:$C$93,0))","v":9.2987745129015842},{"$f":"INDEX('TAG - A1.3.13'!$AH$14:$AH$93, MATCH(BB$10,'TAG - A1.3.13'!$C$14:$C$93,0))","v":9.3011171705138054},{"$f":"INDEX('TAG - A1.3.13'!$AH$14:$AH$93, MATCH(BC$10,'TAG - A1.3.13'!$C$14:$C$93,0))","v":9.3034619282793578},{"$f":"INDEX('TAG - A1.3.13'!$AH$14:$AH$93, MATCH(BD$10,'TAG - A1.3.13'!$C$14:$C$93,0))","v":9.3058087880809985},{"$f":"INDEX('TAG - A1.3.13'!$AH$14:$AH$93, MATCH(BE$10,'TAG - A1.3.13'!$C$14:$C$93,0))","v":9.3081577518031633},{"$f":"INDEX('TAG - A1.3.13'!$AH$14:$AH$93, MATCH(BF$10,'TAG - A1.3.13'!$C$14:$C$93,0))","v":9.3105088213319842},{"$f":"INDEX('TAG - A1.3.13'!$AH$14:$AH$93, MATCH(BG$10,'TAG - A1.3.13'!$C$14:$C$93,0))","v":9.3128619985552774},{"$f":"INDEX('TAG - A1.3.13'!$AH$14:$AH$93, MATCH(BH$10,'TAG - A1.3.13'!$C$14:$C$93,0))","v":9.3152172853625643},{"$f":"INDEX('TAG - A1.3.13'!$AH$14:$AH$93, MATCH(BI$10,'TAG - A1.3.13'!$C$14:$C$93,0))","v":9.317574683645045},{"$f":"INDEX('TAG - A1.3.13'!$AH$14:$AH$93, MATCH(BJ$10,'TAG - A1.3.13'!$C$14:$C$93,0))","v":9.3199341952956232},{"$f":"INDEX('TAG - A1.3.13'!$AH$14:$AH$93, MATCH(BK$10,'TAG - A1.3.13'!$C$14:$C$93,0))","v":9.3222958222088987},{"$f":"INDEX('TAG - A1.3.13'!$AH$14:$AH$93, MATCH(BL$10,'TAG - A1.3.13'!$C$14:$C$93,0))","v":9.3246595662811664},{"$f":"INDEX('TAG - A1.3.13'!$AH$14:$AH$93, MATCH(BM$10,'TAG - A1.3.13'!$C$14:$C$93,0))","v":9.3270254294104262},{"$f":"INDEX('TAG - A1.3.13'!$AH$14:$AH$93, MATCH(BN$10,'TAG - A1.3.13'!$C$14:$C$93,0))","v":9.3293934134963781},{"$f":"INDEX('TAG - A1.3.13'!$AH$14:$AH$93, MATCH(BO$10,'TAG - A1.3.13'!$C$14:$C$93,0))","v":9.3317635204404219},{"$f":"INDEX('TAG - A1.3.13'!$AH$14:$AH$93, MATCH(BP$10,'TAG - A1.3.13'!$C$14:$C$93,0))","v":9.3341357521456665},{"$f":"INDEX('TAG - A1.3.13'!$AH$14:$AH$93, MATCH(BQ$10,'TAG - A1.3.13'!$C$14:$C$93,0))","v":9.3365101105169241},{"$f":"INDEX('TAG - A1.3.13'!$AH$14:$AH$93, MATCH(BR$10,'TAG - A1.3.13'!$C$14:$C$93,0))","v":9.3388865974607143},{"$f":"INDEX('TAG - A1.3.13'!$AH$14:$AH$93, MATCH(BS$10,'TAG - A1.3.13'!$C$14:$C$93,0))","v":9.3412652148852651},{"$f":"INDEX('TAG - A1.3.13'!$AH$14:$AH$93, MATCH(BT$10,'TAG - A1.3.13'!$C$14:$C$93,0))","v":9.3436459647005208},{"$f":"INDEX('TAG - A1.3.13'!$AH$14:$AH$93, MATCH(BU$10,'TAG - A1.3.13'!$C$14:$C$93,0))","v":9.3460288488181327},{"$f":"INDEX('TAG - A1.3.13'!$AH$14:$AH$93, MATCH(BV$10,'TAG - A1.3.13'!$C$14:$C$93,0))","v":9.3484138691514644},{"$f":"INDEX('TAG - A1.3.13'!$AH$14:$AH$93, MATCH(BW$10,'TAG - A1.3.13'!$C$14:$C$93,0))","v":9.3508010276155993},{"$f":"INDEX('TAG - A1.3.13'!$AH$14:$AH$93, MATCH(BX$10,'TAG - A1.3.13'!$C$14:$C$93,0))","v":9.3531903261273417},{"$f":"INDEX('TAG - A1.3.13'!$AH$14:$AH$93, MATCH(BY$10,'TAG - A1.3.13'!$C$14:$C$93,0))","v":9.3555817666051979},{"$f":"IF(BY172=0,0,BY172*BY172/BX172)","v":9.3579738185308443},9.3603664820606163,9.3627597573508901,9.365153644558081,9.3675481438386452,9.3699432553490798]
[null,null,null,"LGV",null,null,null,null,null,"c",{"$f":"INDEX('TAG - A1.3.13'!$AI$14:$AI$93, MATCH(K$10,'TAG - A1.3.13'!$C$14:$C$93,0))","v":-0.23542344962201925},{"$f":"INDEX('TAG - A1.3.13'!$AI$14:$AI$93, MATCH(L$10,'TAG - A1.3.13'!$C$14:$C$93,0))","v":-0.21861190148766452},{"$f":"INDEX('TAG - A1.3.13'!$AI$14:$AI$93, MATCH(M$10,'TAG - A1.3.13'!$C$14:$C$93,0))","v":-0.20732776225330174},{"$f":"INDEX('TAG - A1.3.13'!$AI$14:$AI$93, MATCH(N$10,'TAG - A1.3.13'!$C$14:$C$93,0))","v":-0.2025101525491565},{"$f":"INDEX('TAG - A1.3.13'!$AI$14:$AI$93, MATCH(O$10,'TAG - A1.3.13'!$C$14:$C$93,0))","v":-0.19817480841419854},{"$f":"INDEX('TAG - A1.3.13'!$AI$14:$AI$93, MATCH(P$10,'TAG - A1.3.13'!$C$14:$C$93,0))","v":-0.1896432042822718},{"$f":"INDEX('TAG - A1.3.13'!$AI$14:$AI$93, MATCH(Q$10,'TAG - A1.3.13'!$C$14:$C$93,0))","v":-0.17789259405624239},{"$f":"INDEX('TAG - A1.3.13'!$AI$14:$AI$93, MATCH(R$10,'TAG - A1.3.13'!$C$14:$C$93,0))","v":-0.16285922642649941},{"$f":"INDEX('TAG - A1.3.13'!$AI$14:$AI$93, MATCH(S$10,'TAG - A1.3.13'!$C$14:$C$93,0))","v":-0.15089448102818068},{"$f":"INDEX('TAG - A1.3.13'!$AI$14:$AI$93, MATCH(T$10,'TAG - A1.3.13'!$C$14:$C$93,0))","v":-0.14050470930756376},{"$f":"INDEX('TAG - A1.3.13'!$AI$14:$AI$93, MATCH(U$10,'TAG - A1.3.13'!$C$14:$C$93,0))","v":-0.13102524583357611},{"$f":"INDEX('TAG - A1.3.13'!$AI$14:$AI$93, MATCH(V$10,'TAG - A1.3.13'!$C$14:$C$93,0))","v":-0.12282670275004648},{"$f":"INDEX('TAG - A1.3.13'!$AI$14:$AI$93, MATCH(W$10,'TAG - A1.3.13'!$C$14:$C$93,0))","v":-0.1158464903838773},{"$f":"INDEX('TAG - A1.3.13'!$AI$14:$AI$93, MATCH(X$10,'TAG - A1.3.13'!$C$14:$C$93,0))","v":-0.109319655760012},{"$f":"INDEX('TAG - A1.3.13'!$AI$14:$AI$93, MATCH(Y$10,'TAG - A1.3.13'!$C$14:$C$93,0))","v":-0.10343816225807459},{"$f":"INDEX('TAG - A1.3.13'!$AI$14:$AI$93, MATCH(Z$10,'TAG - A1.3.13'!$C$14:$C$93,0))","v":-9.7905304919923594E-2},{"$f":"INDEX('TAG - A1.3.13'!$AI$14:$AI$93, MATCH(AA$10,'TAG - A1.3.13'!$C$14:$C$93,0))","v":-9.3883363123610897E-2},{"$f":"INDEX('TAG - A1.3.13'!$AI$14:$AI$93, MATCH(AB$10,'TAG - A1.3.13'!$C$14:$C$93,0))","v":-9.0243302934696859E-2},{"$f":"INDEX('TAG - A1.3.13'!$AI$14:$AI$93, MATCH(AC$10,'TAG - A1.3.13'!$C$14:$C$93,0))","v":-8.725585130893676E-2},{"$f":"INDEX('TAG - A1.3.13'!$AI$14:$AI$93, MATCH(AD$10,'TAG - A1.3.13'!$C$14:$C$93,0))","v":-8.4677558149299503E-2},{"$f":"INDEX('TAG - A1.3.13'!$AI$14:$AI$93, MATCH(AE$10,'TAG - A1.3.13'!$C$14:$C$93,0))","v":-8.2734937306154027E-2},{"$f":"INDEX('TAG - A1.3.13'!$AI$14:$AI$93, MATCH(AF$10,'TAG - A1.3.13'!$C$14:$C$93,0))","v":-8.0167273903600983E-2},{"$f":"INDEX('TAG - A1.3.13'!$AI$14:$AI$93, MATCH(AG$10,'TAG - A1.3.13'!$C$14:$C$93,0))","v":-7.9909515384711097E-2},{"$f":"INDEX('TAG - A1.3.13'!$AI$14:$AI$93, MATCH(AH$10,'TAG - A1.3.13'!$C$14:$C$93,0))","v":-7.8779618176198885E-2},{"$f":"INDEX('TAG - A1.3.13'!$AI$14:$AI$93, MATCH(AI$10,'TAG - A1.3.13'!$C$14:$C$93,0))","v":-7.7841478022715099E-2},{"$f":"INDEX('TAG - A1.3.13'!$AI$14:$AI$93, MATCH(AJ$10,'TAG - A1.3.13'!$C$14:$C$93,0))","v":-7.7051367117739605E-2},{"$f":"INDEX('TAG - A1.3.13'!$AI$14:$AI$93, MATCH(AK$10,'TAG - A1.3.13'!$C$14:$C$93,0))","v":-7.6371984762661341E-2},{"$f":"INDEX('TAG - A1.3.13'!$AI$14:$AI$93, MATCH(AL$10,'TAG - A1.3.13'!$C$14:$C$93,0))","v":-7.5774553334958195E-2},{"$f":"INDEX('TAG - A1.3.13'!$AI$14:$AI$93, MATCH(AM$10,'TAG - A1.3.13'!$C$14:$C$93,0))","v":-7.5807965569591906E-2},{"$f":"INDEX('TAG - A1.3.13'!$AI$14:$AI$93, MATCH(AN$10,'TAG - A1.3.13'!$C$14:$C$93,0))","v":-7.5841407757734638E-2},{"$f":"INDEX('TAG - A1.3.13'!$AI$14:$AI$93, MATCH(AO$10,'TAG - A1.3.13'!$C$14:$C$93,0))","v":-7.5874879926239272E-2},{"$f":"INDEX('TAG - A1.3.13'!$AI$14:$AI$93, MATCH(AP$10,'TAG - A1.3.13'!$C$14:$C$93,0))","v":-7.5908382101982599E-2},{"$f":"INDEX('TAG - A1.3.13'!$AI$14:$AI$93, MATCH(AQ$10,'TAG - A1.3.13'!$C$14:$C$93,0))","v":-7.5941914311865658E-2},{"$f":"INDEX('TAG - A1.3.13'!$AI$14:$AI$93, MATCH(AR$10,'TAG - A1.3.13'!$C$14:$C$93,0))","v":-7.5975476582813548E-2},{"$f":"INDEX('TAG - A1.3.13'!$AI$14:$AI$93, MATCH(AS$10,'TAG - A1.3.13'!$C$14:$C$93,0))","v":-7.6009068941775546E-2},{"$f":"INDEX('TAG - A1.3.13'!$AI$14:$AI$93, MATCH(AT$10,'TAG - A1.3.13'!$C$14:$C$93,0))","v":-7.6042691415724992E-2},{"$f":"INDEX('TAG - A1.3.13'!$AI$14:$AI$93, MATCH(AU$10,'TAG - A1.3.13'!$C$14:$C$93,0))","v":-7.6076344031659485E-2},{"$f":"INDEX('TAG - A1.3.13'!$AI$14:$AI$93, MATCH(AV$10,'TAG - A1.3.13'!$C$14:$C$93,0))","v":-7.6110026816600812E-2},{"$f":"INDEX('TAG - A1.3.13'!$AI$14:$AI$93, MATCH(AW$10,'TAG - A1.3.13'!$C$14:$C$93,0))","v":-7.6143739797595006E-2},{"$f":"INDEX('TAG - A1.3.13'!$AI$14:$AI$93, MATCH(AX$10,'TAG - A1.3.13'!$C$14:$C$93,0))","v":-7.6177483001712343E-2},{"$f":"INDEX('TAG - A1.3.13'!$AI$14:$AI$93, MATCH(AY$10,'TAG - A1.3.13'!$C$14:$C$93,0))","v":-7.6211256456047247E-2},{"$f":"INDEX('TAG - A1.3.13'!$AI$14:$AI$93, MATCH(AZ$10,'TAG - A1.3.13'!$C$14:$C$93,0))","v":-7.6245060187718636E-2},{"$f":"INDEX('TAG - A1.3.13'!$AI$14:$AI$93, MATCH(BA$10,'TAG - A1.3.13'!$C$14:$C$93,0))","v":-7.6278894223869603E-2},{"$f":"INDEX('TAG - A1.3.13'!$AI$14:$AI$93, MATCH(BB$10,'TAG - A1.3.13'!$C$14:$C$93,0))","v":-7.6312758591667584E-2},{"$f":"INDEX('TAG - A1.3.13'!$AI$14:$AI$93, MATCH(BC$10,'TAG - A1.3.13'!$C$14:$C$93,0))","v":-7.6346653318304369E-2},{"$f":"INDEX('TAG - A1.3.13'!$AI$14:$AI$93, MATCH(BD$10,'TAG - A1.3.13'!$C$14:$C$93,0))","v":-7.6380578430996257E-2},{"$f":"INDEX('TAG - A1.3.13'!$AI$14:$AI$93, MATCH(BE$10,'TAG - A1.3.13'!$C$14:$C$93,0))","v":-7.6414533956983693E-2},{"$f":"INDEX('TAG - A1.3.13'!$AI$14:$AI$93, MATCH(BF$10,'TAG - A1.3.13'!$C$14:$C$93,0))","v":-7.6448519923531841E-2},{"$f":"INDEX('TAG - A1.3.13'!$AI$14:$AI$93, MATCH(BG$10,'TAG - A1.3.13'!$C$14:$C$93,0))","v":-7.6482536357929981E-2},{"$f":"INDEX('TAG - A1.3.13'!$AI$14:$AI$93, MATCH(BH$10,'TAG - A1.3.13'!$C$14:$C$93,0))","v":-7.6516583287492196E-2},{"$f":"INDEX('TAG - A1.3.13'!$AI$14:$AI$93, MATCH(BI$10,'TAG - A1.3.13'!$C$14:$C$93,0))","v":-7.6550660739556825E-2},{"$f":"INDEX('TAG - A1.3.13'!$AI$14:$AI$93, MATCH(BJ$10,'TAG - A1.3.13'!$C$14:$C$93,0))","v":-7.6584768741486731E-2},{"$f":"INDEX('TAG - A1.3.13'!$AI$14:$AI$93, MATCH(BK$10,'TAG - A1.3.13'!$C$14:$C$93,0))","v":-7.6618907320669422E-2},{"$f":"INDEX('TAG - A1.3.13'!$AI$14:$AI$93, MATCH(BL$10,'TAG - A1.3.13'!$C$14:$C$93,0))","v":-7.6653076504516873E-2},{"$f":"INDEX('TAG - A1.3.13'!$AI$14:$AI$93, MATCH(BM$10,'TAG - A1.3.13'!$C$14:$C$93,0))","v":-7.6687276320465639E-2},{"$f":"INDEX('TAG - A1.3.13'!$AI$14:$AI$93, MATCH(BN$10,'TAG - A1.3.13'!$C$14:$C$93,0))","v":-7.6721506795976904E-2},{"$f":"INDEX('TAG - A1.3.13'!$AI$14:$AI$93, MATCH(BO$10,'TAG - A1.3.13'!$C$14:$C$93,0))","v":-7.6755767958536447E-2},{"$f":"INDEX('TAG - A1.3.13'!$AI$14:$AI$93, MATCH(BP$10,'TAG - A1.3.13'!$C$14:$C$93,0))","v":-7.6790059835654706E-2},{"$f":"INDEX('TAG - A1.3.13'!$AI$14:$AI$93, MATCH(BQ$10,'TAG - A1.3.13'!$C$14:$C$93,0))","v":-7.6824382454866766E-2},{"$f":"INDEX('TAG - A1.3.13'!$AI$14:$AI$93, MATCH(BR$10,'TAG - A1.3.13'!$C$14:$C$93,0))","v":-7.6858735843732345E-2},{"$f":"INDEX('TAG - A1.3.13'!$AI$14:$AI$93, MATCH(BS$10,'TAG - A1.3.13'!$C$14:$C$93,0))","v":-7.6893120029836004E-2},{"$f":"INDEX('TAG - A1.3.13'!$AI$14:$AI$93, MATCH(BT$10,'TAG - A1.3.13'!$C$14:$C$93,0))","v":-7.6927535040786907E-2},{"$f":"INDEX('TAG - A1.3.13'!$AI$14:$AI$93, MATCH(BU$10,'TAG - A1.3.13'!$C$14:$C$93,0))","v":-7.6961980904219005E-2},{"$f":"INDEX('TAG - A1.3.13'!$AI$14:$AI$93, MATCH(BV$10,'TAG - A1.3.13'!$C$14:$C$93,0))","v":-7.6996457647791061E-2},{"$f":"INDEX('TAG - A1.3.13'!$AI$14:$AI$93, MATCH(BW$10,'TAG - A1.3.13'!$C$14:$C$93,0))","v":-7.7030965299186543E-2},{"$f":"INDEX('TAG - A1.3.13'!$AI$14:$AI$93, MATCH(BX$10,'TAG - A1.3.13'!$C$14:$C$93,0))","v":-7.7065503886113912E-2},{"$f":"INDEX('TAG - A1.3.13'!$AI$14:$AI$93, MATCH(BY$10,'TAG - A1.3.13'!$C$14:$C$93,0))","v":-7.710007343630626E-2},-7.7134658493486039E-2,-7.716925906460928E-2,-7.7203875156635127E-2,-7.7238506776525842E-2,-7.7273153931246827E-2,-7.730781662776659E-2]
[null,null,null,"LGV",null,null,null,null,null,"d",{"$f":"INDEX('TAG - A1.3.13'!$AJ$14:$AJ$93, MATCH(K$10,'TAG - A1.3.13'!$C$14:$C$93,0))","v":1.9763009327399498E-3},{"$f":"INDEX('TAG - A1.3.13'!$AJ$14:$AJ$93, MATCH(L$10,'TAG - A1.3.13'!$C$14:$C$93,0))","v":1.8355265013371958E-3},{"$f":"INDEX('TAG - A1.3.13'!$AJ$14:$AJ$93, MATCH(M$10,'TAG - A1.3.13'!$C$14:$C$93,0))","v":1.7410456845632211E-3},{"$f":"INDEX('TAG - A1.3.13'!$AJ$14:$AJ$93, MATCH(N$10,'TAG - A1.3.13'!$C$14:$C$93,0))","v":1.7007890109418475E-3},{"$f":"INDEX('TAG - A1.3.13'!$AJ$14:$AJ$93, MATCH(O$10,'TAG - A1.3.13'!$C$14:$C$93,0))","v":1.6648113084491035E-3},{"$f":"INDEX('TAG - A1.3.13'!$AJ$14:$AJ$93, MATCH(P$10,'TAG - A1.3.13'!$C$14:$C$93,0))","v":1.5932117153836321E-3},{"$f":"INDEX('TAG - A1.3.13'!$AJ$14:$AJ$93, MATCH(Q$10,'TAG - A1.3.13'!$C$14:$C$93,0))","v":1.4945212424361716E-3},{"$f":"INDEX('TAG - A1.3.13'!$AJ$14:$AJ$93, MATCH(R$10,'TAG - A1.3.13'!$C$14:$C$93,0))","v":1.3682033240437026E-3},{"$f":"INDEX('TAG - A1.3.13'!$AJ$14:$AJ$93, MATCH(S$10,'TAG - A1.3.13'!$C$14:$C$93,0))","v":1.2673918986651337E-3},{"$f":"INDEX('TAG - A1.3.13'!$AJ$14:$AJ$93, MATCH(T$10,'TAG - A1.3.13'!$C$14:$C$93,0))","v":1.1801843756395417E-3},{"$f":"INDEX('TAG - A1.3.13'!$AJ$14:$AJ$93, MATCH(U$10,'TAG - A1.3.13'!$C$14:$C$93,0))","v":1.1006976651199813E-3},{"$f":"INDEX('TAG - A1.3.13'!$AJ$14:$AJ$93, MATCH(V$10,'TAG - A1.3.13'!$C$14:$C$93,0))","v":1.0321959336334937E-3},{"$f":"INDEX('TAG - A1.3.13'!$AJ$14:$AJ$93, MATCH(W$10,'TAG - A1.3.13'!$C$14:$C$93,0))","v":9.731926789103831E-4},{"$f":"INDEX('TAG - A1.3.13'!$AJ$14:$AJ$93, MATCH(X$10,'TAG - A1.3.13'!$C$14:$C$93,0))","v":9.1851913299814659E-4},{"$f":"INDEX('TAG - A1.3.13'!$AJ$14:$AJ$93, MATCH(Y$10,'TAG - A1.3.13'!$C$14:$C$93,0))","v":8.6921406563608315E-4},{"$f":"INDEX('TAG - A1.3.13'!$AJ$14:$AJ$93, MATCH(Z$10,'TAG - A1.3.13'!$C$14:$C$93,0))","v":8.2318756785535352E-4},{"$f":"INDEX('TAG - A1.3.13'!$AJ$14:$AJ$93, MATCH(AA$10,'TAG - A1.3.13'!$C$14:$C$93,0))","v":7.8934606615938246E-4},{"$f":"INDEX('TAG - A1.3.13'!$AJ$14:$AJ$93, MATCH(AB$10,'TAG - A1.3.13'!$C$14:$C$93,0))","v":7.5882355026016366E-4},{"$f":"INDEX('TAG - A1.3.13'!$AJ$14:$AJ$93, MATCH(AC$10,'TAG - A1.3.13'!$C$14:$C$93,0))","v":7.3401523952658029E-4},{"$f":"INDEX('TAG - A1.3.13'!$AJ$14:$AJ$93, MATCH(AD$10,'TAG - A1.3.13'!$C$14:$C$93,0))","v":7.1239467840990354E-4},{"$f":"INDEX('TAG - A1.3.13'!$AJ$14:$AJ$93, MATCH(AE$10,'TAG - A1.3.13'!$C$14:$C$93,0))","v":6.9599643913524753E-4},{"$f":"INDEX('TAG - A1.3.13'!$AJ$14:$AJ$93, MATCH(AF$10,'TAG - A1.3.13'!$C$14:$C$93,0))","v":6.744995737487221E-4},{"$f":"INDEX('TAG - A1.3.13'!$AJ$14:$AJ$93, MATCH(AG$10,'TAG - A1.3.13'!$C$14:$C$93,0))","v":6.7241213578676979E-4},{"$f":"INDEX('TAG - A1.3.13'!$AJ$14:$AJ$93, MATCH(AH$10,'TAG - A1.3.13'!$C$14:$C$93,0))","v":6.6294667077768565E-4},{"$f":"INDEX('TAG - A1.3.13'!$AJ$14:$AJ$93, MATCH(AI$10,'TAG - A1.3.13'!$C$14:$C$93,0))","v":6.5509226160865089E-4},{"$f":"INDEX('TAG - A1.3.13'!$AJ$14:$AJ$93, MATCH(AJ$10,'TAG - A1.3.13'!$C$14:$C$93,0))","v":6.4848078918791402E-4},{"$f":"INDEX('TAG - A1.3.13'!$AJ$14:$AJ$93, MATCH(AK$10,'TAG - A1.3.13'!$C$14:$C$93,0))","v":6.4279835777968899E-4},{"$f":"INDEX('TAG - A1.3.13'!$AJ$14:$AJ$93, MATCH(AL$10,'TAG - A1.3.13'!$C$14:$C$93,0))","v":6.3780287825870364E-4},{"$f":"INDEX('TAG - A1.3.13'!$AJ$14:$AJ$93, MATCH(AM$10,'TAG - A1.3.13'!$C$14:$C$93,0))","v":6.3808409994980703E-4},{"$f":"INDEX('TAG - A1.3.13'!$AJ$14:$AJ$93, MATCH(AN$10,'TAG - A1.3.13'!$C$14:$C$93,0))","v":6.3836557375144902E-4},{"$f":"INDEX('TAG - A1.3.13'!$AJ$14:$AJ$93, MATCH(AO$10,'TAG - A1.3.13'!$C$14:$C$93,0))","v":6.3864729988964242E-4},{"$f":"INDEX('TAG - A1.3.13'!$AJ$14:$AJ$93, MATCH(AP$10,'TAG - A1.3.13'!$C$14:$C$93,0))","v":6.3892927859060251E-4},{"$f":"INDEX('TAG - A1.3.13'!$AJ$14:$AJ$93, MATCH(AQ$10,'TAG - A1.3.13'!$C$14:$C$93,0))","v":6.392115100807477E-4},{"$f":"INDEX('TAG - A1.3.13'!$AJ$14:$AJ$93, MATCH(AR$10,'TAG - A1.3.13'!$C$14:$C$93,0))","v":6.3949399458669922E-4},{"$f":"INDEX('TAG - A1.3.13'!$AJ$14:$AJ$93, MATCH(AS$10,'TAG - A1.3.13'!$C$14:$C$93,0))","v":6.397767323352816E-4},{"$f":"INDEX('TAG - A1.3.13'!$AJ$14:$AJ$93, MATCH(AT$10,'TAG - A1.3.13'!$C$14:$C$93,0))","v":6.4005972355352277E-4},{"$f":"INDEX('TAG - A1.3.13'!$AJ$14:$AJ$93, MATCH(AU$10,'TAG - A1.3.13'!$C$14:$C$93,0))","v":6.403429684686536E-4},{"$f":"INDEX('TAG - A1.3.13'!$AJ$14:$AJ$93, MATCH(AV$10,'TAG - A1.3.13'!$C$14:$C$93,0))","v":6.4062646730810914E-4},{"$f":"INDEX('TAG - A1.3.13'!$AJ$14:$AJ$93, MATCH(AW$10,'TAG - A1.3.13'!$C$14:$C$93,0))","v":6.409102202995288E-4},{"$f":"INDEX('TAG - A1.3.13'!$AJ$14:$AJ$93, MATCH(AX$10,'TAG - A1.3.13'!$C$14:$C$93,0))","v":6.4119422767075517E-4},{"$f":"INDEX('TAG - A1.3.13'!$AJ$14:$AJ$93, MATCH(AY$10,'TAG - A1.3.13'!$C$14:$C$93,0))","v":6.4147848964983545E-4},{"$f":"INDEX('TAG - A1.3.13'!$AJ$14:$AJ$93, MATCH(AZ$10,'TAG - A1.3.13'!$C$14:$C$93,0))","v":6.4176300646502172E-4},{"$f":"INDEX('TAG - A1.3.13'!$AJ$14:$AJ$93, MATCH(BA$10,'TAG - A1.3.13'!$C$14:$C$93,0))","v":6.4204777834476979E-4},{"$f":"INDEX('TAG - A1.3.13'!$AJ$14:$AJ$93, MATCH(BB$10,'TAG - A1.3.13'!$C$14:$C$93,0))","v":6.4233280551774107E-4},{"$f":"INDEX('TAG - A1.3.13'!$AJ$14:$AJ$93, MATCH(BC$10,'TAG - A1.3.13'!$C$14:$C$93,0))","v":6.4261808821280129E-4},{"$f":"INDEX('TAG - A1.3.13'!$AJ$14:$AJ$93, MATCH(BD$10,'TAG - A1.3.13'!$C$14:$C$93,0))","v":6.4290362665902232E-4},{"$f":"INDEX('TAG - A1.3.13'!$AJ$14:$AJ$93, MATCH(BE$10,'TAG - A1.3.13'!$C$14:$C$93,0))","v":6.4318942108568039E-4},{"$f":"INDEX('TAG - A1.3.13'!$AJ$14:$AJ$93, MATCH(BF$10,'TAG - A1.3.13'!$C$14:$C$93,0))","v":6.4347547172225784E-4},{"$f":"INDEX('TAG - A1.3.13'!$AJ$14:$AJ$93, MATCH(BG$10,'TAG - A1.3.13'!$C$14:$C$93,0))","v":6.4376177879844215E-4},{"$f":"INDEX('TAG - A1.3.13'!$AJ$14:$AJ$93, MATCH(BH$10,'TAG - A1.3.13'!$C$14:$C$93,0))","v":6.4404834254412787E-4},{"$f":"INDEX('TAG - A1.3.13'!$AJ$14:$AJ$93, MATCH(BI$10,'TAG - A1.3.13'!$C$14:$C$93,0))","v":6.4433516318941435E-4},{"$f":"INDEX('TAG - A1.3.13'!$AJ$14:$AJ$93, MATCH(BJ$10,'TAG - A1.3.13'!$C$14:$C$93,0))","v":6.4462224096460815E-4},{"$f":"INDEX('TAG - A1.3.13'!$AJ$14:$AJ$93, MATCH(BK$10,'TAG - A1.3.13'!$C$14:$C$93,0))","v":6.4490957610022161E-4},{"$f":"INDEX('TAG - A1.3.13'!$AJ$14:$AJ$93, MATCH(BL$10,'TAG - A1.3.13'!$C$14:$C$93,0))","v":6.4519716882697402E-4},{"$f":"INDEX('TAG - A1.3.13'!$AJ$14:$AJ$93, MATCH(BM$10,'TAG - A1.3.13'!$C$14:$C$93,0))","v":6.4548501937579188E-4},{"$f":"INDEX('TAG - A1.3.13'!$AJ$14:$AJ$93, MATCH(BN$10,'TAG - A1.3.13'!$C$14:$C$93,0))","v":6.4577312797780802E-4},{"$f":"INDEX('TAG - A1.3.13'!$AJ$14:$AJ$93, MATCH(BO$10,'TAG - A1.3.13'!$C$14:$C$93,0))","v":6.46061494864363E-4},{"$f":"INDEX('TAG - A1.3.13'!$AJ$14:$AJ$93, MATCH(BP$10,'TAG - A1.3.13'!$C$14:$C$93,0))","v":6.4635012026700454E-4},{"$f":"INDEX('TAG - A1.3.13'!$AJ$14:$AJ$93, MATCH(BQ$10,'TAG - A1.3.13'!$C$14:$C$93,0))","v":6.4663900441748804E-4},{"$f":"INDEX('TAG - A1.3.13'!$AJ$14:$AJ$93, MATCH(BR$10,'TAG - A1.3.13'!$C$14:$C$93,0))","v":6.4692814754777636E-4},{"$f":"INDEX('TAG - A1.3.13'!$AJ$14:$AJ$93, MATCH(BS$10,'TAG - A1.3.13'!$C$14:$C$93,0))","v":6.4721754989004079E-4},{"$f":"INDEX('TAG - A1.3.13'!$AJ$14:$AJ$93, MATCH(BT$10,'TAG - A1.3.13'!$C$14:$C$93,0))","v":6.4750721167666054E-4},{"$f":"INDEX('TAG - A1.3.13'!$AJ$14:$AJ$93, MATCH(BU$10,'TAG - A1.3.13'!$C$14:$C$93,0))","v":6.4779713314022289E-4},{"$f":"INDEX('TAG - A1.3.13'!$AJ$14:$AJ$93, MATCH(BV$10,'TAG - A1.3.13'!$C$14:$C$93,0))","v":6.4808731451352426E-4},{"$f":"INDEX('TAG - A1.3.13'!$AJ$14:$AJ$93, MATCH(BW$10,'TAG - A1.3.13'!$C$14:$C$93,0))","v":6.483777560295687E-4},{"$f":"INDEX('TAG - A1.3.13'!$AJ$14:$AJ$93, MATCH(BX$10,'TAG - A1.3.13'!$C$14:$C$93,0))","v":6.4866845792157081E-4},{"$f":"INDEX('TAG - A1.3.13'!$AJ$14:$AJ$93, MATCH(BY$10,'TAG - A1.3.13'!$C$14:$C$93,0))","v":6.4895942042295248E-4},6.4925051343657991E-4,6.4954173702099481E-4,6.4983309123476513E-4,6.5012457613648517E-4,6.5041619178477547E-4,6.5070793823828279E-4]
[]
[null,null,null,"LGV - Scheme",null,null,null,null,null,"pence per km, 2023 prices",{"$f":"IF($E$146=\"\",0,K171/$E$146+K172+K173*$E$146+K174*($E$146)^2)","v":17.187587625494018},{"$f":"IF($E$146=\"\",0,L171/$E$146+L172+L173*$E$146+L174*($E$146)^2)","v":16.047309352563364},15.338914147234757,15.153244192002568,15.032642957104066,14.675440929589818,14.140544540943479,13.426934911495657,12.866702323010358,12.414555141847895,11.985534843584562,11.623540396043527,11.408793605927285,11.096456275267951,10.808705213724876,10.590858318374753,10.467132887871944,10.281752194645552,10.193676739977473,10.052665525550747,9.9457226490278039,9.7985298210748635,9.7794578062258637,9.6506060751498524,9.5977644570707792,9.5448112314678255,9.493067412657302,9.4993180997834408,9.501733222171282,9.5041505096759114,9.5065699642383272,9.5089915878012548,9.5114153823091705,9.5138413497082848,9.5162694919465629,9.5186998109737146,9.521132308741187,9.5235669872021873,9.5260038483116727,9.5284428940263481,9.5308841263046808,9.5333275471068823,9.5357731583949317,9.5382209621325611,9.5406709602852615,9.5431231548202966,9.5455775477066833,9.5480341409152043,9.5504929364184097,9.5529539361906295,9.5554171422079452,9.5578825564482237,9.5603501808910991,9.5628200175179732,9.5652920683120417,9.5677663352582663,9.5702428203433882,9.5727215255559326,9.5752024528862076,9.5776856043262999,9.5801709818700918,9.5826585875132473,9.5851484232532211,9.5876404910892514,9.590134793022381,{"$f":"IF($E$146=\"\",0,BX171/$E$146+BX172+BX173*$E$146+BX174*($E$146)^2)","v":9.5926313310554434},9.5951301071930555,9.5976295428944436,{"$f":"IF($E$146=\"\",0,CA171/$E$146+CA172+CA173*$E$146+CA174*($E$146)^2)","v":9.6001296383375081},9.602630393700208,9.6051318091605467,9.6076338848965772,9.6101366210864061]
[null,null,null,"LGV - Diversion",null,null,null,null,null,"pence per km, 2023 prices",{"$f":"IF($E$147=\"\",0,K171/$E$147+K172+K173*$E$147+K174*($E$147)^2)","v":14.772739517827455},{"$f":"IF($E$147=\"\",0,L171/$E$147+L172+L173*$E$147+L174*($E$147)^2)","v":13.80443587533982},13.211460551228267,13.07496032798328,12.998275465602552,12.728559001013224,12.314257984095951,11.755009316754062,11.317998587670539,10.972409342956874,10.640504364431793,10.362177616519894,10.219570965363696,9.9740267778593488,9.7465143801203524,9.5848620870822376,9.502496176153219,9.3544073078482306,9.2966160340845185,9.1820205299899254,9.0951244860239733,8.9741925058223373,8.9576628989259905,8.8403749288269236,8.7971283753182661,8.7522514357995878,8.7074487576987103,8.7198013046923428,8.7218727219026242,8.72394599610376,8.7260211289605145,8.7280981221391354,8.730176977307373,8.7322576961344645,8.7343402802911569,8.7364247314496843,8.7385110512837816,8.7405992414686828,8.7426893036811304,8.7447812395993623,8.7468750509031263,8.7489707392736751,8.7510683063937655,8.7531677539476664,8.7552690836211529,8.7573722971015187,8.7594773960775587,8.7615843822395902,8.7636932572794457,8.7658040228904746,8.7679166807675397,8.7700312326070247,8.772147680106837,8.7742660249664031,8.7763862688866734,8.7785084135701261,8.7806324607207653,8.7827584120441156,8.7848862692472398,8.7870160340387269,8.7891477081286951,8.7912812932288009,8.7934167910522376,8.7955542033137188,8.7976935317295126,{"$f":"IF($E$147=\"\",0,BX171/$E$147+BX172+BX173*$E$147+BX174*($E$147)^2)","v":8.7998347780174253},8.8019779438967838,8.8041216098303234,{"$f":"IF($E$147=\"\",0,CA171/$E$147+CA172+CA173*$E$147+CA174*($E$147)^2)","v":8.8062657759244019},8.8084104422853891,8.8105556090196799,8.8127012762336836,8.8148474440338287]
[]
[null,null,null,"Work"]
[null,null,null,"Car",null,null,null,null,null,"a",{"$f":"INDEX('TAG - A1.3.12'!$Q$14:$Q$93, MATCH(K$10,'TAG - A1.3.12'!$C$14:$C$93,0))","v":54.408971174034491},{"$f":"INDEX('TAG - A1.3.12'!$Q$14:$Q$93, MATCH(L$10,'TAG - A1.3.12'!$C$14:$C$93,0))","v":49.571645527463971},{"$f":"INDEX('TAG - A1.3.12'!$Q$14:$Q$93, MATCH(M$10,'TAG - A1.3.12'!$C$14:$C$93,0))","v":46.260131779875849},{"$f":"INDEX('TAG - A1.3.12'!$Q$14:$Q$93, MATCH(N$10,'TAG - A1.3.12'!$C$14:$C$93,0))","v":44.647065381263239},{"$f":"INDEX('TAG - A1.3.12'!$Q$14:$Q$93, MATCH(O$10,'TAG - A1.3.12'!$C$14:$C$93,0))","v":43.415365674888704},{"$f":"INDEX('TAG - A1.3.12'!$Q$14:$Q$93, MATCH(P$10,'TAG - A1.3.12'!$C$14:$C$93,0))","v":41.168481243011627},{"$f":"INDEX('TAG - A1.3.12'!$Q$14:$Q$93, MATCH(Q$10,'TAG - A1.3.12'!$C$14:$C$93,0))","v":38.169987346436045},{"$f":"INDEX('TAG - A1.3.12'!$Q$14:$Q$93, MATCH(R$10,'TAG - A1.3.12'!$C$14:$C$93,0))","v":34.349705770689177},{"$f":"INDEX('TAG - A1.3.12'!$Q$14:$Q$93, MATCH(S$10,'TAG - A1.3.12'!$C$14:$C$93,0))","v":31.223573160979285},{"$f":"INDEX('TAG - A1.3.12'!$Q$14:$Q$93, MATCH(T$10,'TAG - A1.3.12'!$C$14:$C$93,0))","v":28.375227018826891},{"$f":"INDEX('TAG - A1.3.12'!$Q$14:$Q$93, MATCH(U$10,'TAG - A1.3.12'!$C$14:$C$93,0))","v":25.806229131052106},{"$f":"INDEX('TAG - A1.3.12'!$Q$14:$Q$93, MATCH(V$10,'TAG - A1.3.12'!$C$14:$C$93,0))","v":23.487125538887469},{"$f":"INDEX('TAG - A1.3.12'!$Q$14:$Q$93, MATCH(W$10,'TAG - A1.3.12'!$C$14:$C$93,0))","v":21.4167481828696},{"$f":"INDEX('TAG - A1.3.12'!$Q$14:$Q$93, MATCH(X$10,'TAG - A1.3.12'!$C$14:$C$93,0))","v":19.558627671536232},{"$f":"INDEX('TAG - A1.3.12'!$Q$14:$Q$93, MATCH(Y$10,'TAG - A1.3.12'!$C$14:$C$93,0))","v":17.878742793946245},{"$f":"INDEX('TAG - A1.3.12'!$Q$14:$Q$93, MATCH(Z$10,'TAG - A1.3.12'!$C$14:$C$93,0))","v":16.386381031655972},{"$f":"INDEX('TAG - A1.3.12'!$Q$14:$Q$93, MATCH(AA$10,'TAG - A1.3.12'!$C$14:$C$93,0))","v":15.069127026222413},{"$f":"INDEX('TAG - A1.3.12'!$Q$14:$Q$93, MATCH(AB$10,'TAG - A1.3.12'!$C$14:$C$93,0))","v":13.884996248351937},{"$f":"INDEX('TAG - A1.3.12'!$Q$14:$Q$93, MATCH(AC$10,'TAG - A1.3.12'!$C$14:$C$93,0))","v":12.834712804487165},{"$f":"INDEX('TAG - A1.3.12'!$Q$14:$Q$93, MATCH(AD$10,'TAG - A1.3.12'!$C$14:$C$93,0))","v":11.980920299005708},{"$f":"INDEX('TAG - A1.3.12'!$Q$14:$Q$93, MATCH(AE$10,'TAG - A1.3.12'!$C$14:$C$93,0))","v":11.292525612988371},{"$f":"INDEX('TAG - A1.3.12'!$Q$14:$Q$93, MATCH(AF$10,'TAG - A1.3.12'!$C$14:$C$93,0))","v":10.739809545716007},{"$f":"INDEX('TAG - A1.3.12'!$Q$14:$Q$93, MATCH(AG$10,'TAG - A1.3.12'!$C$14:$C$93,0))","v":10.308031157818142},{"$f":"INDEX('TAG - A1.3.12'!$Q$14:$Q$93, MATCH(AH$10,'TAG - A1.3.12'!$C$14:$C$93,0))","v":9.9972513007444217},{"$f":"INDEX('TAG - A1.3.12'!$Q$14:$Q$93, MATCH(AI$10,'TAG - A1.3.12'!$C$14:$C$93,0))","v":9.7634743804475868},{"$f":"INDEX('TAG - A1.3.12'!$Q$14:$Q$93, MATCH(AJ$10,'TAG - A1.3.12'!$C$14:$C$93,0))","v":9.5894665322444865},{"$f":"INDEX('TAG - A1.3.12'!$Q$14:$Q$93, MATCH(AK$10,'TAG - A1.3.12'!$C$14:$C$93,0))","v":9.4685892445970961},{"$f":"INDEX('TAG - A1.3.12'!$Q$14:$Q$93, MATCH(AL$10,'TAG - A1.3.12'!$C$14:$C$93,0))","v":9.3874763257917948},{"$f":"INDEX('TAG - A1.3.12'!$Q$14:$Q$93, MATCH(AM$10,'TAG - A1.3.12'!$C$14:$C$93,0))","v":9.3916414223747005},{"$f":"INDEX('TAG - A1.3.12'!$Q$14:$Q$93, MATCH(AN$10,'TAG - A1.3.12'!$C$14:$C$93,0))","v":9.3958102528969754},{"$f":"INDEX('TAG - A1.3.12'!$Q$14:$Q$93, MATCH(AO$10,'TAG - A1.3.12'!$C$14:$C$93,0))","v":9.3999828207060272},{"$f":"INDEX('TAG - A1.3.12'!$Q$14:$Q$93, MATCH(AP$10,'TAG - A1.3.12'!$C$14:$C$93,0))","v":9.4041591291522693},{"$f":"INDEX('TAG - A1.3.12'!$Q$14:$Q$93, MATCH(AQ$10,'TAG - A1.3.12'!$C$14:$C$93,0))","v":9.4083391815891204},{"$f":"INDEX('TAG - A1.3.12'!$Q$14:$Q$93, MATCH(AR$10,'TAG - A1.3.12'!$C$14:$C$93,0))","v":9.4125229813730069},{"$f":"INDEX('TAG - A1.3.12'!$Q$14:$Q$93, MATCH(AS$10,'TAG - A1.3.12'!$C$14:$C$93,0))","v":9.4167105318633677},{"$f":"INDEX('TAG - A1.3.12'!$Q$14:$Q$93, MATCH(AT$10,'TAG - A1.3.12'!$C$14:$C$93,0))","v":9.4209018364226402},{"$f":"INDEX('TAG - A1.3.12'!$Q$14:$Q$93, MATCH(AU$10,'TAG - A1.3.12'!$C$14:$C$93,0))","v":9.4250968984162888},{"$f":"INDEX('TAG - A1.3.12'!$Q$14:$Q$93, MATCH(AV$10,'TAG - A1.3.12'!$C$14:$C$93,0))","v":9.429295721212787},{"$f":"INDEX('TAG - A1.3.12'!$Q$14:$Q$93, MATCH(AW$10,'TAG - A1.3.12'!$C$14:$C$93,0))","v":9.4334983081836388},{"$f":"INDEX('TAG - A1.3.12'!$Q$14:$Q$93, MATCH(AX$10,'TAG - A1.3.12'!$C$14:$C$93,0))","v":9.4377046627033554},{"$f":"INDEX('TAG - A1.3.12'!$Q$14:$Q$93, MATCH(AY$10,'TAG - A1.3.12'!$C$14:$C$93,0))","v":9.441914788149484},{"$f":"INDEX('TAG - A1.3.12'!$Q$14:$Q$93, MATCH(AZ$10,'TAG - A1.3.12'!$C$14:$C$93,0))","v":9.4461286879026023},{"$f":"INDEX('TAG - A1.3.12'!$Q$14:$Q$93, MATCH(BA$10,'TAG - A1.3.12'!$C$14:$C$93,0))","v":9.450346365346304},{"$f":"INDEX('TAG - A1.3.12'!$Q$14:$Q$93, MATCH(BB$10,'TAG - A1.3.12'!$C$14:$C$93,0))","v":9.454567823867233},{"$f":"INDEX('TAG - A1.3.12'!$Q$14:$Q$93, MATCH(BC$10,'TAG - A1.3.12'!$C$14:$C$93,0))","v":9.4587930668550548},{"$f":"INDEX('TAG - A1.3.12'!$Q$14:$Q$93, MATCH(BD$10,'TAG - A1.3.12'!$C$14:$C$93,0))","v":9.4630220977024884},{"$f":"INDEX('TAG - A1.3.12'!$Q$14:$Q$93, MATCH(BE$10,'TAG - A1.3.12'!$C$14:$C$93,0))","v":9.4672549198052796},{"$f":"INDEX('TAG - A1.3.12'!$Q$14:$Q$93, MATCH(BF$10,'TAG - A1.3.12'!$C$14:$C$93,0))","v":9.471491536562235},{"$f":"INDEX('TAG - A1.3.12'!$Q$14:$Q$93, MATCH(BG$10,'TAG - A1.3.12'!$C$14:$C$93,0))","v":9.4757319513751845},{"$f":"INDEX('TAG - A1.3.12'!$Q$14:$Q$93, MATCH(BH$10,'TAG - A1.3.12'!$C$14:$C$93,0))","v":9.4799761676490348},{"$f":"INDEX('TAG - A1.3.12'!$Q$14:$Q$93, MATCH(BI$10,'TAG - A1.3.12'!$C$14:$C$93,0))","v":9.4842241887917229},{"$f":"INDEX('TAG - A1.3.12'!$Q$14:$Q$93, MATCH(BJ$10,'TAG - A1.3.12'!$C$14:$C$93,0))","v":9.4884760182142553},{"$f":"INDEX('TAG - A1.3.12'!$Q$14:$Q$93, MATCH(BK$10,'TAG - A1.3.12'!$C$14:$C$93,0))","v":9.4927316593306905},{"$f":"INDEX('TAG - A1.3.12'!$Q$14:$Q$93, MATCH(BL$10,'TAG - A1.3.12'!$C$14:$C$93,0))","v":9.4969911155581457},{"$f":"INDEX('TAG - A1.3.12'!$Q$14:$Q$93, MATCH(BM$10,'TAG - A1.3.12'!$C$14:$C$93,0))","v":9.5012543903168076},{"$f":"INDEX('TAG - A1.3.12'!$Q$14:$Q$93, MATCH(BN$10,'TAG - A1.3.12'!$C$14:$C$93,0))","v":9.5055214870299203},{"$f":"INDEX('TAG - A1.3.12'!$Q$14:$Q$93, MATCH(BO$10,'TAG - A1.3.12'!$C$14:$C$93,0))","v":9.5097924091238077},{"$f":"INDEX('TAG - A1.3.12'!$Q$14:$Q$93, MATCH(BP$10,'TAG - A1.3.12'!$C$14:$C$93,0))","v":9.5140671600278548},{"$f":"INDEX('TAG - A1.3.12'!$Q$14:$Q$93, MATCH(BQ$10,'TAG - A1.3.12'!$C$14:$C$93,0))","v":9.5183457431745317},{"$f":"INDEX('TAG - A1.3.12'!$Q$14:$Q$93, MATCH(BR$10,'TAG - A1.3.12'!$C$14:$C$93,0))","v":9.5226281619993749},{"$f":"INDEX('TAG - A1.3.12'!$Q$14:$Q$93, MATCH(BS$10,'TAG - A1.3.12'!$C$14:$C$93,0))","v":9.5269144199410061},{"$f":"INDEX('TAG - A1.3.12'!$Q$14:$Q$93, MATCH(BT$10,'TAG - A1.3.12'!$C$14:$C$93,0))","v":9.5312045204411291},{"$f":"INDEX('TAG - A1.3.12'!$Q$14:$Q$93, MATCH(BU$10,'TAG - A1.3.12'!$C$14:$C$93,0))","v":9.5354984669445351},{"$f":"INDEX('TAG - A1.3.12'!$Q$14:$Q$93, MATCH(BV$10,'TAG - A1.3.12'!$C$14:$C$93,0))","v":9.5397962628991024},{"$f":"INDEX('TAG - A1.3.12'!$Q$14:$Q$93, MATCH(BW$10,'TAG - A1.3.12'!$C$14:$C$93,0))","v":9.5440979117557916},{"$f":"INDEX('TAG - A1.3.12'!$Q$14:$Q$93, MATCH(BX$10,'TAG - A1.3.12'!$C$14:$C$93,0))","v":9.5484034169686769},{"$f":"INDEX('TAG - A1.3.12'!$Q$14:$Q$93, MATCH(BY$10,'TAG - A1.3.12'!$C$14:$C$93,0))","v":9.5527127819949129},{"$f":"IF(BY180=0,0,BY180*BY180/BX180)","v":9.557024091914565},{"$f":"IF(BZ180=0,0,BZ180*BZ180/BY180)","v":9.5613373476053987},9.5656525499455736,9.5699696998136474,9.574288798088574,9.5786098456497051]
[null,null,null,"Car",null,null,null,null,null,"b",{"$f":"INDEX('TAG - A1.3.12'!$R$14:$R$93, MATCH(K$10,'TAG - A1.3.12'!$C$14:$C$93,0))","v":10.300368588057569},{"$f":"INDEX('TAG - A1.3.12'!$R$14:$R$93, MATCH(L$10,'TAG - A1.3.12'!$C$14:$C$93,0))","v":9.5973398546552176},{"$f":"INDEX('TAG - A1.3.12'!$R$14:$R$93, MATCH(M$10,'TAG - A1.3.12'!$C$14:$C$93,0))","v":9.1541792509745754},{"$f":"INDEX('TAG - A1.3.12'!$R$14:$R$93, MATCH(N$10,'TAG - A1.3.12'!$C$14:$C$93,0))","v":9.0422659786534556},{"$f":"INDEX('TAG - A1.3.12'!$R$14:$R$93, MATCH(O$10,'TAG - A1.3.12'!$C$14:$C$93,0))","v":8.9738661064344889},{"$f":"INDEX('TAG - A1.3.12'!$R$14:$R$93, MATCH(P$10,'TAG - A1.3.12'!$C$14:$C$93,0))","v":8.7675390247901124},{"$f":"INDEX('TAG - A1.3.12'!$R$14:$R$93, MATCH(Q$10,'TAG - A1.3.12'!$C$14:$C$93,0))","v":8.4487574818423834},{"$f":"INDEX('TAG - A1.3.12'!$R$14:$R$93, MATCH(R$10,'TAG - A1.3.12'!$C$14:$C$93,0))","v":8.0009208611524159},{"$f":"INDEX('TAG - A1.3.12'!$R$14:$R$93, MATCH(S$10,'TAG - A1.3.12'!$C$14:$C$93,0))","v":7.616289940961539},{"$f":"INDEX('TAG - A1.3.12'!$R$14:$R$93, MATCH(T$10,'TAG - A1.3.12'!$C$14:$C$93,0))","v":7.2728721361365487},{"$f":"INDEX('TAG - A1.3.12'!$R$14:$R$93, MATCH(U$10,'TAG - A1.3.12'!$C$14:$C$93,0))","v":6.9389805040832737},{"$f":"INDEX('TAG - A1.3.12'!$R$14:$R$93, MATCH(V$10,'TAG - A1.3.12'!$C$14:$C$93,0))","v":6.6249238186165567},{"$f":"INDEX('TAG - A1.3.12'!$R$14:$R$93, MATCH(W$10,'TAG - A1.3.12'!$C$14:$C$93,0))","v":6.4033542123808669},{"$f":"INDEX('TAG - A1.3.12'!$R$14:$R$93, MATCH(X$10,'TAG - A1.3.12'!$C$14:$C$93,0))","v":6.1249868587973912},{"$f":"INDEX('TAG - A1.3.12'!$R$14:$R$93, MATCH(Y$10,'TAG - A1.3.12'!$C$14:$C$93,0))","v":5.8691050316435955},{"$f":"INDEX('TAG - A1.3.12'!$R$14:$R$93, MATCH(Z$10,'TAG - A1.3.12'!$C$14:$C$93,0))","v":5.6801023981243937},{"$f":"INDEX('TAG - A1.3.12'!$R$14:$R$93, MATCH(AA$10,'TAG - A1.3.12'!$C$14:$C$93,0))","v":5.5185064785610916},{"$f":"INDEX('TAG - A1.3.12'!$R$14:$R$93, MATCH(AB$10,'TAG - A1.3.12'!$C$14:$C$93,0))","v":5.3243059157040182},{"$f":"INDEX('TAG - A1.3.12'!$R$14:$R$93, MATCH(AC$10,'TAG - A1.3.12'!$C$14:$C$93,0))","v":5.1904456307422402},{"$f":"INDEX('TAG - A1.3.12'!$R$14:$R$93, MATCH(AD$10,'TAG - A1.3.12'!$C$14:$C$93,0))","v":5.0387832141428177},{"$f":"INDEX('TAG - A1.3.12'!$R$14:$R$93, MATCH(AE$10,'TAG - A1.3.12'!$C$14:$C$93,0))","v":4.911997637273454},{"$f":"INDEX('TAG - A1.3.12'!$R$14:$R$93, MATCH(AF$10,'TAG - A1.3.12'!$C$14:$C$93,0))","v":4.8137680645011853},{"$f":"INDEX('TAG - A1.3.12'!$R$14:$R$93, MATCH(AG$10,'TAG - A1.3.12'!$C$14:$C$93,0))","v":4.7138068218616116},{"$f":"INDEX('TAG - A1.3.12'!$R$14:$R$93, MATCH(AH$10,'TAG - A1.3.12'!$C$14:$C$93,0))","v":4.6071159647243753},{"$f":"INDEX('TAG - A1.3.12'!$R$14:$R$93, MATCH(AI$10,'TAG - A1.3.12'!$C$14:$C$93,0))","v":4.5578765830542105},{"$f":"INDEX('TAG - A1.3.12'!$R$14:$R$93, MATCH(AJ$10,'TAG - A1.3.12'!$C$14:$C$93,0))","v":4.513874560913278},{"$f":"INDEX('TAG - A1.3.12'!$R$14:$R$93, MATCH(AK$10,'TAG - A1.3.12'!$C$14:$C$93,0))","v":4.4764380233065495},{"$f":"INDEX('TAG - A1.3.12'!$R$14:$R$93, MATCH(AL$10,'TAG - A1.3.12'!$C$14:$C$93,0))","v":4.4811832770728746},{"$f":"INDEX('TAG - A1.3.12'!$R$14:$R$93, MATCH(AM$10,'TAG - A1.3.12'!$C$14:$C$93,0))","v":4.4820107683121408},{"$f":"INDEX('TAG - A1.3.12'!$R$14:$R$93, MATCH(AN$10,'TAG - A1.3.12'!$C$14:$C$93,0))","v":4.4828390013834518},{"$f":"INDEX('TAG - A1.3.12'!$R$14:$R$93, MATCH(AO$10,'TAG - A1.3.12'!$C$14:$C$93,0))","v":4.483667976951847},{"$f":"INDEX('TAG - A1.3.12'!$R$14:$R$93, MATCH(AP$10,'TAG - A1.3.12'!$C$14:$C$93,0))","v":4.4844976956829621},{"$f":"INDEX('TAG - A1.3.12'!$R$14:$R$93, MATCH(AQ$10,'TAG - A1.3.12'!$C$14:$C$93,0))","v":4.4853281582430302},{"$f":"INDEX('TAG - A1.3.12'!$R$14:$R$93, MATCH(AR$10,'TAG - A1.3.12'!$C$14:$C$93,0))","v":4.4861593652988798},{"$f":"INDEX('TAG - A1.3.12'!$R$14:$R$93, MATCH(AS$10,'TAG - A1.3.12'!$C$14:$C$93,0))","v":4.4869913175179432},{"$f":"INDEX('TAG - A1.3.12'!$R$14:$R$93, MATCH(AT$10,'TAG - A1.3.12'!$C$14:$C$93,0))","v":4.4878240155682425},{"$f":"INDEX('TAG - A1.3.12'!$R$14:$R$93, MATCH(AU$10,'TAG - A1.3.12'!$C$14:$C$93,0))","v":4.4886574601184055},{"$f":"INDEX('TAG - A1.3.12'!$R$14:$R$93, MATCH(AV$10,'TAG - A1.3.12'!$C$14:$C$93,0))","v":4.4894916518376551},{"$f":"INDEX('TAG - A1.3.12'!$R$14:$R$93, MATCH(AW$10,'TAG - A1.3.12'!$C$14:$C$93,0))","v":4.4903265913958172},{"$f":"INDEX('TAG - A1.3.12'!$R$14:$R$93, MATCH(AX$10,'TAG - A1.3.12'!$C$14:$C$93,0))","v":4.4911622794633157},{"$f":"INDEX('TAG - A1.3.12'!$R$14:$R$93, MATCH(AY$10,'TAG - A1.3.12'!$C$14:$C$93,0))","v":4.4919987167111781},{"$f":"INDEX('TAG - A1.3.12'!$R$14:$R$93, MATCH(AZ$10,'TAG - A1.3.12'!$C$14:$C$93,0))","v":4.4928359038110308},{"$f":"INDEX('TAG - A1.3.12'!$R$14:$R$93, MATCH(BA$10,'TAG - A1.3.12'!$C$14:$C$93,0))","v":4.4936738414351041},{"$f":"INDEX('TAG - A1.3.12'!$R$14:$R$93, MATCH(BB$10,'TAG - A1.3.12'!$C$14:$C$93,0))","v":4.4945125302562303},{"$f":"INDEX('TAG - A1.3.12'!$R$14:$R$93, MATCH(BC$10,'TAG - A1.3.12'!$C$14:$C$93,0))","v":4.4953519709478451},{"$f":"INDEX('TAG - A1.3.12'!$R$14:$R$93, MATCH(BD$10,'TAG - A1.3.12'!$C$14:$C$93,0))","v":4.4961921641839879},{"$f":"INDEX('TAG - A1.3.12'!$R$14:$R$93, MATCH(BE$10,'TAG - A1.3.12'!$C$14:$C$93,0))","v":4.4970331106393013},{"$f":"INDEX('TAG - A1.3.12'!$R$14:$R$93, MATCH(BF$10,'TAG - A1.3.12'!$C$14:$C$93,0))","v":4.4978748109890354},{"$f":"INDEX('TAG - A1.3.12'!$R$14:$R$93, MATCH(BG$10,'TAG - A1.3.12'!$C$14:$C$93,0))","v":4.4987172659090415},{"$f":"INDEX('TAG - A1.3.12'!$R$14:$R$93, MATCH(BH$10,'TAG - A1.3.12'!$C$14:$C$93,0))","v":4.4995604760757821},{"$f":"INDEX('TAG - A1.3.12'!$R$14:$R$93, MATCH(BI$10,'TAG - A1.3.12'!$C$14:$C$93,0))","v":4.5004044421663219},{"$f":"INDEX('TAG - A1.3.12'!$R$14:$R$93, MATCH(BJ$10,'TAG - A1.3.12'!$C$14:$C$93,0))","v":4.5012491648583337},{"$f":"INDEX('TAG - A1.3.12'!$R$14:$R$93, MATCH(BK$10,'TAG - A1.3.12'!$C$14:$C$93,0))","v":4.5020946448300982},{"$f":"INDEX('TAG - A1.3.12'!$R$14:$R$93, MATCH(BL$10,'TAG - A1.3.12'!$C$14:$C$93,0))","v":4.5029408827605044},{"$f":"INDEX('TAG - A1.3.12'!$R$14:$R$93, MATCH(BM$10,'TAG - A1.3.12'!$C$14:$C$93,0))","v":4.5037878793290487},{"$f":"INDEX('TAG - A1.3.12'!$R$14:$R$93, MATCH(BN$10,'TAG - A1.3.12'!$C$14:$C$93,0))","v":4.5046356352158377},{"$f":"INDEX('TAG - A1.3.12'!$R$14:$R$93, MATCH(BO$10,'TAG - A1.3.12'!$C$14:$C$93,0))","v":4.5054841511015882},{"$f":"INDEX('TAG - A1.3.12'!$R$14:$R$93, MATCH(BP$10,'TAG - A1.3.12'!$C$14:$C$93,0))","v":4.5063334276676263},{"$f":"INDEX('TAG - A1.3.12'!$R$14:$R$93, MATCH(BQ$10,'TAG - A1.3.12'!$C$14:$C$93,0))","v":4.5071834655958893},{"$f":"INDEX('TAG - A1.3.12'!$R$14:$R$93, MATCH(BR$10,'TAG - A1.3.12'!$C$14:$C$93,0))","v":4.5080342655689245},{"$f":"INDEX('TAG - A1.3.12'!$R$14:$R$93, MATCH(BS$10,'TAG - A1.3.12'!$C$14:$C$93,0))","v":4.5088858282698938},{"$f":"INDEX('TAG - A1.3.12'!$R$14:$R$93, MATCH(BT$10,'TAG - A1.3.12'!$C$14:$C$93,0))","v":4.5097381543825685},{"$f":"INDEX('TAG - A1.3.12'!$R$14:$R$93, MATCH(BU$10,'TAG - A1.3.12'!$C$14:$C$93,0))","v":4.5105912445913363},{"$f":"INDEX('TAG - A1.3.12'!$R$14:$R$93, MATCH(BV$10,'TAG - A1.3.12'!$C$14:$C$93,0))","v":4.511445099581195},{"$f":"INDEX('TAG - A1.3.12'!$R$14:$R$93, MATCH(BW$10,'TAG - A1.3.12'!$C$14:$C$93,0))","v":4.5122997200377579},{"$f":"INDEX('TAG - A1.3.12'!$R$14:$R$93, MATCH(BX$10,'TAG - A1.3.12'!$C$14:$C$93,0))","v":4.5131551066472548},{"$f":"INDEX('TAG - A1.3.12'!$R$14:$R$93, MATCH(BY$10,'TAG - A1.3.12'!$C$14:$C$93,0))","v":4.5140112600965274},{"$f":"IF(BY181=0,0,BY181*BY181/BX181)","v":4.5148675759596131},4.5157240542673218,4.5165806950504699,4.5174374983398788,4.5182944641663765,4.5191515925607959]
[null,null,null,"Car",null,null,null,null,null,"c",{"$f":"INDEX('TAG - A1.3.12'!$S$14:$S$93, MATCH(K$10,'TAG - A1.3.12'!$C$14:$C$93,0))","v":-0.10593958539169643},{"$f":"INDEX('TAG - A1.3.12'!$S$14:$S$93, MATCH(L$10,'TAG - A1.3.12'!$C$14:$C$93,0))","v":-9.7498556673113412E-2},{"$f":"INDEX('TAG - A1.3.12'!$S$14:$S$93, MATCH(M$10,'TAG - A1.3.12'!$C$14:$C$93,0))","v":-9.1913157223288161E-2},{"$f":"INDEX('TAG - A1.3.12'!$S$14:$S$93, MATCH(N$10,'TAG - A1.3.12'!$C$14:$C$93,0))","v":-8.9620168497584488E-2},{"$f":"INDEX('TAG - A1.3.12'!$S$14:$S$93, MATCH(O$10,'TAG - A1.3.12'!$C$14:$C$93,0))","v":-8.8049400404654241E-2},{"$f":"INDEX('TAG - A1.3.12'!$S$14:$S$93, MATCH(P$10,'TAG - A1.3.12'!$C$14:$C$93,0))","v":-8.4318206865730577E-2},{"$f":"INDEX('TAG - A1.3.12'!$S$14:$S$93, MATCH(Q$10,'TAG - A1.3.12'!$C$14:$C$93,0))","v":-7.8911591935598491E-2},{"$f":"INDEX('TAG - A1.3.12'!$S$14:$S$93, MATCH(R$10,'TAG - A1.3.12'!$C$14:$C$93,0))","v":-7.1621459080042638E-2},{"$f":"INDEX('TAG - A1.3.12'!$S$14:$S$93, MATCH(S$10,'TAG - A1.3.12'!$C$14:$C$93,0))","v":-6.5654755399243356E-2},{"$f":"INDEX('TAG - A1.3.12'!$S$14:$S$93, MATCH(T$10,'TAG - A1.3.12'!$C$14:$C$93,0))","v":-6.0153882769990522E-2},{"$f":"INDEX('TAG - A1.3.12'!$S$14:$S$93, MATCH(U$10,'TAG - A1.3.12'!$C$14:$C$93,0))","v":-5.5114992524861198E-2},{"$f":"INDEX('TAG - A1.3.12'!$S$14:$S$93, MATCH(V$10,'TAG - A1.3.12'!$C$14:$C$93,0))","v":-5.048656789358346E-2},{"$f":"INDEX('TAG - A1.3.12'!$S$14:$S$93, MATCH(W$10,'TAG - A1.3.12'!$C$14:$C$93,0))","v":-4.6303616752384882E-2},{"$f":"INDEX('TAG - A1.3.12'!$S$14:$S$93, MATCH(X$10,'TAG - A1.3.12'!$C$14:$C$93,0))","v":-4.2508332519963825E-2},{"$f":"INDEX('TAG - A1.3.12'!$S$14:$S$93, MATCH(Y$10,'TAG - A1.3.12'!$C$14:$C$93,0))","v":-3.9024744955870001E-2},{"$f":"INDEX('TAG - A1.3.12'!$S$14:$S$93, MATCH(Z$10,'TAG - A1.3.12'!$C$14:$C$93,0))","v":-3.5879272927676925E-2},{"$f":"INDEX('TAG - A1.3.12'!$S$14:$S$93, MATCH(AA$10,'TAG - A1.3.12'!$C$14:$C$93,0))","v":-3.3052345801004163E-2},{"$f":"INDEX('TAG - A1.3.12'!$S$14:$S$93, MATCH(AB$10,'TAG - A1.3.12'!$C$14:$C$93,0))","v":-3.0492787409440305E-2},{"$f":"INDEX('TAG - A1.3.12'!$S$14:$S$93, MATCH(AC$10,'TAG - A1.3.12'!$C$14:$C$93,0))","v":-2.8216347193689352E-2},{"$f":"INDEX('TAG - A1.3.12'!$S$14:$S$93, MATCH(AD$10,'TAG - A1.3.12'!$C$14:$C$93,0))","v":-2.6355645868119705E-2},{"$f":"INDEX('TAG - A1.3.12'!$S$14:$S$93, MATCH(AE$10,'TAG - A1.3.12'!$C$14:$C$93,0))","v":-2.4850849402460486E-2},{"$f":"INDEX('TAG - A1.3.12'!$S$14:$S$93, MATCH(AF$10,'TAG - A1.3.12'!$C$14:$C$93,0))","v":-2.3648348314461408E-2},{"$f":"INDEX('TAG - A1.3.12'!$S$14:$S$93, MATCH(AG$10,'TAG - A1.3.12'!$C$14:$C$93,0))","v":-2.2717127280176729E-2},{"$f":"INDEX('TAG - A1.3.12'!$S$14:$S$93, MATCH(AH$10,'TAG - A1.3.12'!$C$14:$C$93,0))","v":-2.2050090528745507E-2},{"$f":"INDEX('TAG - A1.3.12'!$S$14:$S$93, MATCH(AI$10,'TAG - A1.3.12'!$C$14:$C$93,0))","v":-2.1549884214718242E-2},{"$f":"INDEX('TAG - A1.3.12'!$S$14:$S$93, MATCH(AJ$10,'TAG - A1.3.12'!$C$14:$C$93,0))","v":-2.1179115930203544E-2},{"$f":"INDEX('TAG - A1.3.12'!$S$14:$S$93, MATCH(AK$10,'TAG - A1.3.12'!$C$14:$C$93,0))","v":-2.0923920612809812E-2},{"$f":"INDEX('TAG - A1.3.12'!$S$14:$S$93, MATCH(AL$10,'TAG - A1.3.12'!$C$14:$C$93,0))","v":-2.0755172324932451E-2},{"$f":"INDEX('TAG - A1.3.12'!$S$14:$S$93, MATCH(AM$10,'TAG - A1.3.12'!$C$14:$C$93,0))","v":-2.0764386690709083E-2},{"$f":"INDEX('TAG - A1.3.12'!$S$14:$S$93, MATCH(AN$10,'TAG - A1.3.12'!$C$14:$C$93,0))","v":-2.0773609317010396E-2},{"$f":"INDEX('TAG - A1.3.12'!$S$14:$S$93, MATCH(AO$10,'TAG - A1.3.12'!$C$14:$C$93,0))","v":-2.0782840211241806E-2},{"$f":"INDEX('TAG - A1.3.12'!$S$14:$S$93, MATCH(AP$10,'TAG - A1.3.12'!$C$14:$C$93,0))","v":-2.0792079380815363E-2},{"$f":"INDEX('TAG - A1.3.12'!$S$14:$S$93, MATCH(AQ$10,'TAG - A1.3.12'!$C$14:$C$93,0))","v":-2.0801326833149773E-2},{"$f":"INDEX('TAG - A1.3.12'!$S$14:$S$93, MATCH(AR$10,'TAG - A1.3.12'!$C$14:$C$93,0))","v":-2.0810582575670398E-2},{"$f":"INDEX('TAG - A1.3.12'!$S$14:$S$93, MATCH(AS$10,'TAG - A1.3.12'!$C$14:$C$93,0))","v":-2.0819846615809264E-2},{"$f":"INDEX('TAG - A1.3.12'!$S$14:$S$93, MATCH(AT$10,'TAG - A1.3.12'!$C$14:$C$93,0))","v":-2.0829118961005026E-2},{"$f":"INDEX('TAG - A1.3.12'!$S$14:$S$93, MATCH(AU$10,'TAG - A1.3.12'!$C$14:$C$93,0))","v":-2.0838399618703041E-2},{"$f":"INDEX('TAG - A1.3.12'!$S$14:$S$93, MATCH(AV$10,'TAG - A1.3.12'!$C$14:$C$93,0))","v":-2.0847688596355319E-2},{"$f":"INDEX('TAG - A1.3.12'!$S$14:$S$93, MATCH(AW$10,'TAG - A1.3.12'!$C$14:$C$93,0))","v":-2.0856985901420572E-2},{"$f":"INDEX('TAG - A1.3.12'!$S$14:$S$93, MATCH(AX$10,'TAG - A1.3.12'!$C$14:$C$93,0))","v":-2.0866291541364178E-2},{"$f":"INDEX('TAG - A1.3.12'!$S$14:$S$93, MATCH(AY$10,'TAG - A1.3.12'!$C$14:$C$93,0))","v":-2.0875605523658216E-2},{"$f":"INDEX('TAG - A1.3.12'!$S$14:$S$93, MATCH(AZ$10,'TAG - A1.3.12'!$C$14:$C$93,0))","v":-2.0884927855781464E-2},{"$f":"INDEX('TAG - A1.3.12'!$S$14:$S$93, MATCH(BA$10,'TAG - A1.3.12'!$C$14:$C$93,0))","v":-2.0894258545219403E-2},{"$f":"INDEX('TAG - A1.3.12'!$S$14:$S$93, MATCH(BB$10,'TAG - A1.3.12'!$C$14:$C$93,0))","v":-2.0903597599464238E-2},{"$f":"INDEX('TAG - A1.3.12'!$S$14:$S$93, MATCH(BC$10,'TAG - A1.3.12'!$C$14:$C$93,0))","v":-2.0912945026014852E-2},{"$f":"INDEX('TAG - A1.3.12'!$S$14:$S$93, MATCH(BD$10,'TAG - A1.3.12'!$C$14:$C$93,0))","v":-2.0922300832376901E-2},{"$f":"INDEX('TAG - A1.3.12'!$S$14:$S$93, MATCH(BE$10,'TAG - A1.3.12'!$C$14:$C$93,0))","v":-2.0931665026062737E-2},{"$f":"INDEX('TAG - A1.3.12'!$S$14:$S$93, MATCH(BF$10,'TAG - A1.3.12'!$C$14:$C$93,0))","v":-2.0941037614591464E-2},{"$f":"INDEX('TAG - A1.3.12'!$S$14:$S$93, MATCH(BG$10,'TAG - A1.3.12'!$C$14:$C$93,0))","v":-2.0950418605488894E-2},{"$f":"INDEX('TAG - A1.3.12'!$S$14:$S$93, MATCH(BH$10,'TAG - A1.3.12'!$C$14:$C$93,0))","v":-2.0959808006287637E-2},{"$f":"INDEX('TAG - A1.3.12'!$S$14:$S$93, MATCH(BI$10,'TAG - A1.3.12'!$C$14:$C$93,0))","v":-2.0969205824527017E-2},{"$f":"INDEX('TAG - A1.3.12'!$S$14:$S$93, MATCH(BJ$10,'TAG - A1.3.12'!$C$14:$C$93,0))","v":-2.0978612067753123E-2},{"$f":"INDEX('TAG - A1.3.12'!$S$14:$S$93, MATCH(BK$10,'TAG - A1.3.12'!$C$14:$C$93,0))","v":-2.098802674351883E-2},{"$f":"INDEX('TAG - A1.3.12'!$S$14:$S$93, MATCH(BL$10,'TAG - A1.3.12'!$C$14:$C$93,0))","v":-2.0997449859383756E-2},{"$f":"INDEX('TAG - A1.3.12'!$S$14:$S$93, MATCH(BM$10,'TAG - A1.3.12'!$C$14:$C$93,0))","v":-2.1006881422914309E-2},{"$f":"INDEX('TAG - A1.3.12'!$S$14:$S$93, MATCH(BN$10,'TAG - A1.3.12'!$C$14:$C$93,0))","v":-2.1016321441683684E-2},{"$f":"INDEX('TAG - A1.3.12'!$S$14:$S$93, MATCH(BO$10,'TAG - A1.3.12'!$C$14:$C$93,0))","v":-2.1025769923271861E-2},{"$f":"INDEX('TAG - A1.3.12'!$S$14:$S$93, MATCH(BP$10,'TAG - A1.3.12'!$C$14:$C$93,0))","v":-2.1035226875265618E-2},{"$f":"INDEX('TAG - A1.3.12'!$S$14:$S$93, MATCH(BQ$10,'TAG - A1.3.12'!$C$14:$C$93,0))","v":-2.1044692305258524E-2},{"$f":"INDEX('TAG - A1.3.12'!$S$14:$S$93, MATCH(BR$10,'TAG - A1.3.12'!$C$14:$C$93,0))","v":-2.1054166220850969E-2},{"$f":"INDEX('TAG - A1.3.12'!$S$14:$S$93, MATCH(BS$10,'TAG - A1.3.12'!$C$14:$C$93,0))","v":-2.1063648629650145E-2},{"$f":"INDEX('TAG - A1.3.12'!$S$14:$S$93, MATCH(BT$10,'TAG - A1.3.12'!$C$14:$C$93,0))","v":-2.1073139539270078E-2},{"$f":"INDEX('TAG - A1.3.12'!$S$14:$S$93, MATCH(BU$10,'TAG - A1.3.12'!$C$14:$C$93,0))","v":-2.1082638957331607E-2},{"$f":"INDEX('TAG - A1.3.12'!$S$14:$S$93, MATCH(BV$10,'TAG - A1.3.12'!$C$14:$C$93,0))","v":-2.1092146891462406E-2},{"$f":"INDEX('TAG - A1.3.12'!$S$14:$S$93, MATCH(BW$10,'TAG - A1.3.12'!$C$14:$C$93,0))","v":-2.1101663349296987E-2},{"$f":"INDEX('TAG - A1.3.12'!$S$14:$S$93, MATCH(BX$10,'TAG - A1.3.12'!$C$14:$C$93,0))","v":-2.1111188338476718E-2},{"$f":"INDEX('TAG - A1.3.12'!$S$14:$S$93, MATCH(BY$10,'TAG - A1.3.12'!$C$14:$C$93,0))","v":-2.1120721866649803E-2},-2.1130259700035743E-2,-2.1139801840578714E-2,-2.114934829022377E-2,-2.1158899050916846E-2,-2.116845412460475E-2,-2.1178013513235176E-2]
[null,null,null,"Car",null,null,null,null,null,"d",{"$f":"INDEX('TAG - A1.3.12'!$T$14:$T$93, MATCH(K$10,'TAG - A1.3.12'!$C$14:$C$93,0))","v":7.4454039240383937E-4},{"$f":"INDEX('TAG - A1.3.12'!$T$14:$T$93, MATCH(L$10,'TAG - A1.3.12'!$C$14:$C$93,0))","v":6.8319327698816343E-4},{"$f":"INDEX('TAG - A1.3.12'!$T$14:$T$93, MATCH(M$10,'TAG - A1.3.12'!$C$14:$C$93,0))","v":6.4215405531335115E-4},{"$f":"INDEX('TAG - A1.3.12'!$T$14:$T$93, MATCH(N$10,'TAG - A1.3.12'!$C$14:$C$93,0))","v":6.2428409035412665E-4},{"$f":"INDEX('TAG - A1.3.12'!$T$14:$T$93, MATCH(O$10,'TAG - A1.3.12'!$C$14:$C$93,0))","v":6.1153196884835713E-4},{"$f":"INDEX('TAG - A1.3.12'!$T$14:$T$93, MATCH(P$10,'TAG - A1.3.12'!$C$14:$C$93,0))","v":5.8397681224030458E-4},{"$f":"INDEX('TAG - A1.3.12'!$T$14:$T$93, MATCH(Q$10,'TAG - A1.3.12'!$C$14:$C$93,0))","v":5.4508559292174529E-4},{"$f":"INDEX('TAG - A1.3.12'!$T$14:$T$93, MATCH(R$10,'TAG - A1.3.12'!$C$14:$C$93,0))","v":4.9354371640973399E-4},{"$f":"INDEX('TAG - A1.3.12'!$T$14:$T$93, MATCH(S$10,'TAG - A1.3.12'!$C$14:$C$93,0))","v":4.5136112420952429E-4},{"$f":"INDEX('TAG - A1.3.12'!$T$14:$T$93, MATCH(T$10,'TAG - A1.3.12'!$C$14:$C$93,0))","v":4.1260772005885906E-4},{"$f":"INDEX('TAG - A1.3.12'!$T$14:$T$93, MATCH(U$10,'TAG - A1.3.12'!$C$14:$C$93,0))","v":3.7727071665895822E-4},{"$f":"INDEX('TAG - A1.3.12'!$T$14:$T$93, MATCH(V$10,'TAG - A1.3.12'!$C$14:$C$93,0))","v":3.4497598178365039E-4},{"$f":"INDEX('TAG - A1.3.12'!$T$14:$T$93, MATCH(W$10,'TAG - A1.3.12'!$C$14:$C$93,0))","v":3.1589237825718796E-4},{"$f":"INDEX('TAG - A1.3.12'!$T$14:$T$93, MATCH(X$10,'TAG - A1.3.12'!$C$14:$C$93,0))","v":2.8958631402029419E-4},{"$f":"INDEX('TAG - A1.3.12'!$T$14:$T$93, MATCH(Y$10,'TAG - A1.3.12'!$C$14:$C$93,0))","v":2.6554400786696895E-4},{"$f":"INDEX('TAG - A1.3.12'!$T$14:$T$93, MATCH(Z$10,'TAG - A1.3.12'!$C$14:$C$93,0))","v":2.4393387750116569E-4},{"$f":"INDEX('TAG - A1.3.12'!$T$14:$T$93, MATCH(AA$10,'TAG - A1.3.12'!$C$14:$C$93,0))","v":2.2460885259126609E-4},{"$f":"INDEX('TAG - A1.3.12'!$T$14:$T$93, MATCH(AB$10,'TAG - A1.3.12'!$C$14:$C$93,0))","v":2.0714598698830353E-4},{"$f":"INDEX('TAG - A1.3.12'!$T$14:$T$93, MATCH(AC$10,'TAG - A1.3.12'!$C$14:$C$93,0))","v":1.9162628548617856E-4},{"$f":"INDEX('TAG - A1.3.12'!$T$14:$T$93, MATCH(AD$10,'TAG - A1.3.12'!$C$14:$C$93,0))","v":1.7895976313137422E-4},{"$f":"INDEX('TAG - A1.3.12'!$T$14:$T$93, MATCH(AE$10,'TAG - A1.3.12'!$C$14:$C$93,0))","v":1.6872444397598107E-4},{"$f":"INDEX('TAG - A1.3.12'!$T$14:$T$93, MATCH(AF$10,'TAG - A1.3.12'!$C$14:$C$93,0))","v":1.6053475102075334E-4},{"$f":"INDEX('TAG - A1.3.12'!$T$14:$T$93, MATCH(AG$10,'TAG - A1.3.12'!$C$14:$C$93,0))","v":1.5417749776575819E-4},{"$f":"INDEX('TAG - A1.3.12'!$T$14:$T$93, MATCH(AH$10,'TAG - A1.3.12'!$C$14:$C$93,0))","v":1.4961774833436954E-4},{"$f":"INDEX('TAG - A1.3.12'!$T$14:$T$93, MATCH(AI$10,'TAG - A1.3.12'!$C$14:$C$93,0))","v":1.4619550040241547E-4},{"$f":"INDEX('TAG - A1.3.12'!$T$14:$T$93, MATCH(AJ$10,'TAG - A1.3.12'!$C$14:$C$93,0))","v":1.4365590224556498E-4},{"$f":"INDEX('TAG - A1.3.12'!$T$14:$T$93, MATCH(AK$10,'TAG - A1.3.12'!$C$14:$C$93,0))","v":1.4190345474286061E-4},{"$f":"INDEX('TAG - A1.3.12'!$T$14:$T$93, MATCH(AL$10,'TAG - A1.3.12'!$C$14:$C$93,0))","v":1.4073987977257754E-4},{"$f":"INDEX('TAG - A1.3.12'!$T$14:$T$93, MATCH(AM$10,'TAG - A1.3.12'!$C$14:$C$93,0))","v":1.4080235180361452E-4},{"$f":"INDEX('TAG - A1.3.12'!$T$14:$T$93, MATCH(AN$10,'TAG - A1.3.12'!$C$14:$C$93,0))","v":1.4086487983978164E-4},{"$f":"INDEX('TAG - A1.3.12'!$T$14:$T$93, MATCH(AO$10,'TAG - A1.3.12'!$C$14:$C$93,0))","v":1.4092746393128648E-4},{"$f":"INDEX('TAG - A1.3.12'!$T$14:$T$93, MATCH(AP$10,'TAG - A1.3.12'!$C$14:$C$93,0))","v":1.4099010412838166E-4},{"$f":"INDEX('TAG - A1.3.12'!$T$14:$T$93, MATCH(AQ$10,'TAG - A1.3.12'!$C$14:$C$93,0))","v":1.4105280048136489E-4},{"$f":"INDEX('TAG - A1.3.12'!$T$14:$T$93, MATCH(AR$10,'TAG - A1.3.12'!$C$14:$C$93,0))","v":1.4111555304057905E-4},{"$f":"INDEX('TAG - A1.3.12'!$T$14:$T$93, MATCH(AS$10,'TAG - A1.3.12'!$C$14:$C$93,0))","v":1.4117836185641213E-4},{"$f":"INDEX('TAG - A1.3.12'!$T$14:$T$93, MATCH(AT$10,'TAG - A1.3.12'!$C$14:$C$93,0))","v":1.4124122697929713E-4},{"$f":"INDEX('TAG - A1.3.12'!$T$14:$T$93, MATCH(AU$10,'TAG - A1.3.12'!$C$14:$C$93,0))","v":1.4130414845971243E-4},{"$f":"INDEX('TAG - A1.3.12'!$T$14:$T$93, MATCH(AV$10,'TAG - A1.3.12'!$C$14:$C$93,0))","v":1.4136712634818166E-4},{"$f":"INDEX('TAG - A1.3.12'!$T$14:$T$93, MATCH(AW$10,'TAG - A1.3.12'!$C$14:$C$93,0))","v":1.4143016069527366E-4},{"$f":"INDEX('TAG - A1.3.12'!$T$14:$T$93, MATCH(AX$10,'TAG - A1.3.12'!$C$14:$C$93,0))","v":1.4149325155160262E-4},{"$f":"INDEX('TAG - A1.3.12'!$T$14:$T$93, MATCH(AY$10,'TAG - A1.3.12'!$C$14:$C$93,0))","v":1.4155639896782813E-4},{"$f":"INDEX('TAG - A1.3.12'!$T$14:$T$93, MATCH(AZ$10,'TAG - A1.3.12'!$C$14:$C$93,0))","v":1.4161960299465524E-4},{"$f":"INDEX('TAG - A1.3.12'!$T$14:$T$93, MATCH(BA$10,'TAG - A1.3.12'!$C$14:$C$93,0))","v":1.4168286368283431E-4},{"$f":"INDEX('TAG - A1.3.12'!$T$14:$T$93, MATCH(BB$10,'TAG - A1.3.12'!$C$14:$C$93,0))","v":1.4174618108316143E-4},{"$f":"INDEX('TAG - A1.3.12'!$T$14:$T$93, MATCH(BC$10,'TAG - A1.3.12'!$C$14:$C$93,0))","v":1.4180955524647788E-4},{"$f":"INDEX('TAG - A1.3.12'!$T$14:$T$93, MATCH(BD$10,'TAG - A1.3.12'!$C$14:$C$93,0))","v":1.4187298622367095E-4},{"$f":"INDEX('TAG - A1.3.12'!$T$14:$T$93, MATCH(BE$10,'TAG - A1.3.12'!$C$14:$C$93,0))","v":1.4193647406567322E-4},{"$f":"INDEX('TAG - A1.3.12'!$T$14:$T$93, MATCH(BF$10,'TAG - A1.3.12'!$C$14:$C$93,0))","v":1.4200001882346309E-4},{"$f":"INDEX('TAG - A1.3.12'!$T$14:$T$93, MATCH(BG$10,'TAG - A1.3.12'!$C$14:$C$93,0))","v":1.4206362054806451E-4},{"$f":"INDEX('TAG - A1.3.12'!$T$14:$T$93, MATCH(BH$10,'TAG - A1.3.12'!$C$14:$C$93,0))","v":1.4212727929054743E-4},{"$f":"INDEX('TAG - A1.3.12'!$T$14:$T$93, MATCH(BI$10,'TAG - A1.3.12'!$C$14:$C$93,0))","v":1.4219099510202727E-4},{"$f":"INDEX('TAG - A1.3.12'!$T$14:$T$93, MATCH(BJ$10,'TAG - A1.3.12'!$C$14:$C$93,0))","v":1.4225476803366553E-4},{"$f":"INDEX('TAG - A1.3.12'!$T$14:$T$93, MATCH(BK$10,'TAG - A1.3.12'!$C$14:$C$93,0))","v":1.4231859813666948E-4},{"$f":"INDEX('TAG - A1.3.12'!$T$14:$T$93, MATCH(BL$10,'TAG - A1.3.12'!$C$14:$C$93,0))","v":1.4238248546229223E-4},{"$f":"INDEX('TAG - A1.3.12'!$T$14:$T$93, MATCH(BM$10,'TAG - A1.3.12'!$C$14:$C$93,0))","v":1.4244643006183289E-4},{"$f":"INDEX('TAG - A1.3.12'!$T$14:$T$93, MATCH(BN$10,'TAG - A1.3.12'!$C$14:$C$93,0))","v":1.4251043198663664E-4},{"$f":"INDEX('TAG - A1.3.12'!$T$14:$T$93, MATCH(BO$10,'TAG - A1.3.12'!$C$14:$C$93,0))","v":1.4257449128809459E-4},{"$f":"INDEX('TAG - A1.3.12'!$T$14:$T$93, MATCH(BP$10,'TAG - A1.3.12'!$C$14:$C$93,0))","v":1.4263860801764394E-4},{"$f":"INDEX('TAG - A1.3.12'!$T$14:$T$93, MATCH(BQ$10,'TAG - A1.3.12'!$C$14:$C$93,0))","v":1.4270278222676806E-4},{"$f":"INDEX('TAG - A1.3.12'!$T$14:$T$93, MATCH(BR$10,'TAG - A1.3.12'!$C$14:$C$93,0))","v":1.4276701396699634E-4},{"$f":"INDEX('TAG - A1.3.12'!$T$14:$T$93, MATCH(BS$10,'TAG - A1.3.12'!$C$14:$C$93,0))","v":1.4283130328990448E-4},{"$f":"INDEX('TAG - A1.3.12'!$T$14:$T$93, MATCH(BT$10,'TAG - A1.3.12'!$C$14:$C$93,0))","v":1.4289565024711443E-4},{"$f":"INDEX('TAG - A1.3.12'!$T$14:$T$93, MATCH(BU$10,'TAG - A1.3.12'!$C$14:$C$93,0))","v":1.4296005489029435E-4},{"$f":"INDEX('TAG - A1.3.12'!$T$14:$T$93, MATCH(BV$10,'TAG - A1.3.12'!$C$14:$C$93,0))","v":1.4302451727115875E-4},{"$f":"INDEX('TAG - A1.3.12'!$T$14:$T$93, MATCH(BW$10,'TAG - A1.3.12'!$C$14:$C$93,0))","v":1.4308903744146841E-4},{"$f":"INDEX('TAG - A1.3.12'!$T$14:$T$93, MATCH(BX$10,'TAG - A1.3.12'!$C$14:$C$93,0))","v":1.431536154530308E-4},{"$f":"INDEX('TAG - A1.3.12'!$T$14:$T$93, MATCH(BY$10,'TAG - A1.3.12'!$C$14:$C$93,0))","v":1.4321825135769949E-4},1.4328291644640352E-4,1.4334761073231991E-4,1.434123342286316E-4,1.4347708694852752E-4,1.4354186890520252E-4,1.4360668011185744E-4]
[]
[null,null,null,"Car - Scheme",null,null,null,null,null,"pence per km, 2023 prices",{"$f":"IF($E$146=\"\",0,K180/$E$146+K181+K182*$E$146+K183*($E$146)^2)","v":12.113438853285636},{"$f":"IF($E$146=\"\",0,L180/$E$146+L181+L182*$E$146+L183*($E$146)^2)","v":11.234578776713187},10.668157222565267,10.489799420395427,10.367967769902103,10.077130949902445,9.6519670428774642,9.0746065818293395,8.5840043253943712,8.1449953613626374,7.7260479331239065,7.3364019964502489,7.0481126193230406,6.710482048799121,6.401805499203463,6.1666613400667432,5.9650944602454468,5.7352367698249829,5.5698426462343855,5.3926977522654607,5.2454343542516719,5.1306775576060373,5.0176831073877945,4.9015630893059363,4.8452075376121009,4.7958854857600173,4.7547179045922334,4.7569221183619215,4.7578718677299472,4.7588224685323857,4.7597739215325294,4.7607262274943611,4.7616793871825447,4.7626334013624332,4.7635882708000654,4.7645439962621614,4.7655005785161366,4.7664580183300904,4.7674163164728087,4.7683754737137694,4.769335490823142,4.7702963685717812,4.7712581077312377,4.7722207090737516,4.773184173372254,4.7741485014003722,4.7751136939324246,4.776079751743425,4.7770466756090793,4.7780144663057955,4.7789831246106704,4.7799526513014987,4.7809230471567767,4.7818943129556946,4.7828664494781412,4.7838394575047074,4.7848133378166811,4.7857880911960518,4.7867637184255107,4.7877402202884465,4.7887175975689571,4.7896958510518379,4.7906749815225904,4.7916549897674203,4.7926358765732351,{"$f":"IF($E$146=\"\",0,BX180/$E$146+BX181+BX182*$E$146+BX183*($E$146)^2)","v":4.7936176427276518},4.7946002890189909,4.7955831547742775,{"$f":"IF($E$146=\"\",0,CA180/$E$146+CA181+CA182*$E$146+CA183*($E$146)^2)","v":4.7965662400500522},4.7975495449028722,4.7985330693893138,4.7995168135659698,4.8005007774894501]
[null,null,null,"Car - Diversion",null,null,null,null,null,"pence per km, 2023 prices",{"$f":"IF($E$147=\"\",0,K180/$E$147+K181+K182*$E$147+K183*($E$147)^2)","v":10.503538487622686},{"$f":"IF($E$147=\"\",0,L180/$E$147+L181+L182*$E$147+L183*($E$147)^2)","v":9.7619975062270736},9.2884332306211306,9.1527645371220601,9.062458677831204,8.8342781768539691,8.4952698689580117,8.0300655248943293,7.6312476122018369,7.2762497075873345,6.9335347975547865,6.613179673974007,6.3870523461731992,6.1054556663379209,5.8477493230461759,5.6581873317404332,5.497154574055628,5.3038435041373102,5.1709018340270054,5.0201983796708278,4.8942812133377629,4.7966294946655843,4.6969488875781025,4.5903925616535375,4.5412218221091036,4.4972384381227393,4.4597653898047778,4.464433923543198,4.4652538667005235,4.4660745449231651,4.4668959588700954,4.4677181092008791,4.4685409965756717,4.4693646216552185,4.4701889851008625,4.4710140875745363,4.4718399297387661,4.4726665122566702,4.4734938357919658,4.4743219010089605,4.4751507085725608,4.475980259148268,4.4768105534021787,4.4776415920009898,4.4784733756119941,4.4793059049030806,4.4801391805427384,4.4809732032000609,4.4818079735447309,4.4826434922470444,4.4834797599778859,4.4843167774087496,4.4851545452117287,4.4859930640595191,4.4868323346254195,4.4876723575833326,4.4885131336077642,4.4893546633738293,4.4901969475572434,4.4910399868343243,4.4918837818820077,4.4927283333778245,4.4935736419999213,4.4944197084270447,4.4952665333385582,{"$f":"IF($E$147=\"\",0,BX180/$E$147+BX181+BX182*$E$147+BX183*($E$147)^2)","v":4.4961141174144306},4.4969624613352366,4.4978109640917046,{"$f":"IF($E$147=\"\",0,CA180/$E$147+CA181+CA182*$E$147+CA183*($E$147)^2)","v":4.4986596257130067},4.4995084462283197,4.5003574256668237,4.5012065640577035,4.5020558614301516]
[]
[null,null,null,"LGV",null,null,null,null,null,"a",{"$f":"INDEX('TAG - A1.3.12'!$AG$14:$AG$93, MATCH(K$10,'TAG - A1.3.12'!$C$14:$C$93,0))","v":54.454911429313235},{"$f":"INDEX('TAG - A1.3.12'!$AG$14:$AG$93, MATCH(L$10,'TAG - A1.3.12'!$C$14:$C$93,0))","v":50.591191107627367},{"$f":"INDEX('TAG - A1.3.12'!$AG$14:$AG$93, MATCH(M$10,'TAG - A1.3.12'!$C$14:$C$93,0))","v":47.998436916381742},{"$f":"INDEX('TAG - A1.3.12'!$AG$14:$AG$93, MATCH(N$10,'TAG - A1.3.12'!$C$14:$C$93,0))","v":46.897183910311789},{"$f":"INDEX('TAG - A1.3.12'!$AG$14:$AG$93, MATCH(O$10,'TAG - A1.3.12'!$C$14:$C$93,0))","v":45.923744616215252},{"$f":"INDEX('TAG - A1.3.12'!$AG$14:$AG$93, MATCH(P$10,'TAG - A1.3.12'!$C$14:$C$93,0))","v":43.951768029814481},{"$f":"INDEX('TAG - A1.3.12'!$AG$14:$AG$93, MATCH(Q$10,'TAG - A1.3.12'!$C$14:$C$93,0))","v":41.230389453869329},{"$f":"INDEX('TAG - A1.3.12'!$AG$14:$AG$93, MATCH(R$10,'TAG - A1.3.12'!$C$14:$C$93,0))","v":37.74476441779202},{"$f":"INDEX('TAG - A1.3.12'!$AG$14:$AG$93, MATCH(S$10,'TAG - A1.3.12'!$C$14:$C$93,0))","v":34.951042085479976},{"$f":"INDEX('TAG - A1.3.12'!$AG$14:$AG$93, MATCH(T$10,'TAG - A1.3.12'!$C$14:$C$93,0))","v":32.548608153594252},{"$f":"INDEX('TAG - A1.3.12'!$AG$14:$AG$93, MATCH(U$10,'TAG - A1.3.12'!$C$14:$C$93,0))","v":30.362313271911887},{"$f":"INDEX('TAG - A1.3.12'!$AG$14:$AG$93, MATCH(V$10,'TAG - A1.3.12'!$C$14:$C$93,0))","v":28.488676593515951},{"$f":"INDEX('TAG - A1.3.12'!$AG$14:$AG$93, MATCH(W$10,'TAG - A1.3.12'!$C$14:$C$93,0))","v":26.845416492381773},{"$f":"INDEX('TAG - A1.3.12'!$AG$14:$AG$93, MATCH(X$10,'TAG - A1.3.12'!$C$14:$C$93,0))","v":25.34397629474973},{"$f":"INDEX('TAG - A1.3.12'!$AG$14:$AG$93, MATCH(Y$10,'TAG - A1.3.12'!$C$14:$C$93,0))","v":23.988354543298399},{"$f":"INDEX('TAG - A1.3.12'!$AG$14:$AG$93, MATCH(Z$10,'TAG - A1.3.12'!$C$14:$C$93,0))","v":22.738200000136402},{"$f":"INDEX('TAG - A1.3.12'!$AG$14:$AG$93, MATCH(AA$10,'TAG - A1.3.12'!$C$14:$C$93,0))","v":21.802351139265408},{"$f":"INDEX('TAG - A1.3.12'!$AG$14:$AG$93, MATCH(AB$10,'TAG - A1.3.12'!$C$14:$C$93,0))","v":20.962821366997346},{"$f":"INDEX('TAG - A1.3.12'!$AG$14:$AG$93, MATCH(AC$10,'TAG - A1.3.12'!$C$14:$C$93,0))","v":20.290877915900516},{"$f":"INDEX('TAG - A1.3.12'!$AG$14:$AG$93, MATCH(AD$10,'TAG - A1.3.12'!$C$14:$C$93,0))","v":19.696149662446885},{"$f":"INDEX('TAG - A1.3.12'!$AG$14:$AG$93, MATCH(AE$10,'TAG - A1.3.12'!$C$14:$C$93,0))","v":19.240418343211207},{"$f":"INDEX('TAG - A1.3.12'!$AG$14:$AG$93, MATCH(AF$10,'TAG - A1.3.12'!$C$14:$C$93,0))","v":18.650580141369261},{"$f":"INDEX('TAG - A1.3.12'!$AG$14:$AG$93, MATCH(AG$10,'TAG - A1.3.12'!$C$14:$C$93,0))","v":18.596346061048639},{"$f":"INDEX('TAG - A1.3.12'!$AG$14:$AG$93, MATCH(AH$10,'TAG - A1.3.12'!$C$14:$C$93,0))","v":18.336379621687271},{"$f":"INDEX('TAG - A1.3.12'!$AG$14:$AG$93, MATCH(AI$10,'TAG - A1.3.12'!$C$14:$C$93,0))","v":18.120860885618029},{"$f":"INDEX('TAG - A1.3.12'!$AG$14:$AG$93, MATCH(AJ$10,'TAG - A1.3.12'!$C$14:$C$93,0))","v":17.939602050315326},{"$f":"INDEX('TAG - A1.3.12'!$AG$14:$AG$93, MATCH(AK$10,'TAG - A1.3.12'!$C$14:$C$93,0))","v":17.783920987584636},{"$f":"INDEX('TAG - A1.3.12'!$AG$14:$AG$93, MATCH(AL$10,'TAG - A1.3.12'!$C$14:$C$93,0))","v":17.647125228942482},{"$f":"INDEX('TAG - A1.3.12'!$AG$14:$AG$93, MATCH(AM$10,'TAG - A1.3.12'!$C$14:$C$93,0))","v":17.654905695228599},{"$f":"INDEX('TAG - A1.3.12'!$AG$14:$AG$93, MATCH(AN$10,'TAG - A1.3.12'!$C$14:$C$93,0))","v":17.6626931365725},{"$f":"INDEX('TAG - A1.3.12'!$AG$14:$AG$93, MATCH(AO$10,'TAG - A1.3.12'!$C$14:$C$93,0))","v":17.670487559227212},{"$f":"INDEX('TAG - A1.3.12'!$AG$14:$AG$93, MATCH(AP$10,'TAG - A1.3.12'!$C$14:$C$93,0))","v":17.678288969451355},{"$f":"INDEX('TAG - A1.3.12'!$AG$14:$AG$93, MATCH(AQ$10,'TAG - A1.3.12'!$C$14:$C$93,0))","v":17.686097373509156},{"$f":"INDEX('TAG - A1.3.12'!$AG$14:$AG$93, MATCH(AR$10,'TAG - A1.3.12'!$C$14:$C$93,0))","v":17.693912777670491},{"$f":"INDEX('TAG - A1.3.12'!$AG$14:$AG$93, MATCH(AS$10,'TAG - A1.3.12'!$C$14:$C$93,0))","v":17.701735188210833},{"$f":"INDEX('TAG - A1.3.12'!$AG$14:$AG$93, MATCH(AT$10,'TAG - A1.3.12'!$C$14:$C$93,0))","v":17.70956461141127},{"$f":"INDEX('TAG - A1.3.12'!$AG$14:$AG$93, MATCH(AU$10,'TAG - A1.3.12'!$C$14:$C$93,0))","v":17.717401053558543},{"$f":"INDEX('TAG - A1.3.12'!$AG$14:$AG$93, MATCH(AV$10,'TAG - A1.3.12'!$C$14:$C$93,0))","v":17.725244520945012},{"$f":"INDEX('TAG - A1.3.12'!$AG$14:$AG$93, MATCH(AW$10,'TAG - A1.3.12'!$C$14:$C$93,0))","v":17.733095019868699},{"$f":"INDEX('TAG - A1.3.12'!$AG$14:$AG$93, MATCH(AX$10,'TAG - A1.3.12'!$C$14:$C$93,0))","v":17.74095255663326},{"$f":"INDEX('TAG - A1.3.12'!$AG$14:$AG$93, MATCH(AY$10,'TAG - A1.3.12'!$C$14:$C$93,0))","v":17.748817137547992},{"$f":"INDEX('TAG - A1.3.12'!$AG$14:$AG$93, MATCH(AZ$10,'TAG - A1.3.12'!$C$14:$C$93,0))","v":17.756688768927859},{"$f":"INDEX('TAG - A1.3.12'!$AG$14:$AG$93, MATCH(BA$10,'TAG - A1.3.12'!$C$14:$C$93,0))","v":17.764567457093491},{"$f":"INDEX('TAG - A1.3.12'!$AG$14:$AG$93, MATCH(BB$10,'TAG - A1.3.12'!$C$14:$C$93,0))","v":17.772453208371175},{"$f":"INDEX('TAG - A1.3.12'!$AG$14:$AG$93, MATCH(BC$10,'TAG - A1.3.12'!$C$14:$C$93,0))","v":17.780346029092861},{"$f":"INDEX('TAG - A1.3.12'!$AG$14:$AG$93, MATCH(BD$10,'TAG - A1.3.12'!$C$14:$C$93,0))","v":17.788245925596215},{"$f":"INDEX('TAG - A1.3.12'!$AG$14:$AG$93, MATCH(BE$10,'TAG - A1.3.12'!$C$14:$C$93,0))","v":17.796152904224527},{"$f":"INDEX('TAG - A1.3.12'!$AG$14:$AG$93, MATCH(BF$10,'TAG - A1.3.12'!$C$14:$C$93,0))","v":17.804066971326826},{"$f":"INDEX('TAG - A1.3.12'!$AG$14:$AG$93, MATCH(BG$10,'TAG - A1.3.12'!$C$14:$C$93,0))","v":17.811988133257785},{"$f":"INDEX('TAG - A1.3.12'!$AG$14:$AG$93, MATCH(BH$10,'TAG - A1.3.12'!$C$14:$C$93,0))","v":17.819916396377828},{"$f":"INDEX('TAG - A1.3.12'!$AG$14:$AG$93, MATCH(BI$10,'TAG - A1.3.12'!$C$14:$C$93,0))","v":17.827851767053041},{"$f":"INDEX('TAG - A1.3.12'!$AG$14:$AG$93, MATCH(BJ$10,'TAG - A1.3.12'!$C$14:$C$93,0))","v":17.835794251655223},{"$f":"INDEX('TAG - A1.3.12'!$AG$14:$AG$93, MATCH(BK$10,'TAG - A1.3.12'!$C$14:$C$93,0))","v":17.843743856561897},{"$f":"INDEX('TAG - A1.3.12'!$AG$14:$AG$93, MATCH(BL$10,'TAG - A1.3.12'!$C$14:$C$93,0))","v":17.851700588156287},{"$f":"INDEX('TAG - A1.3.12'!$AG$14:$AG$93, MATCH(BM$10,'TAG - A1.3.12'!$C$14:$C$93,0))","v":17.859664452827356},{"$f":"INDEX('TAG - A1.3.12'!$AG$14:$AG$93, MATCH(BN$10,'TAG - A1.3.12'!$C$14:$C$93,0))","v":17.86763545696979},{"$f":"INDEX('TAG - A1.3.12'!$AG$14:$AG$93, MATCH(BO$10,'TAG - A1.3.12'!$C$14:$C$93,0))","v":17.875613606984007},{"$f":"INDEX('TAG - A1.3.12'!$AG$14:$AG$93, MATCH(BP$10,'TAG - A1.3.12'!$C$14:$C$93,0))","v":17.883598909276152},{"$f":"INDEX('TAG - A1.3.12'!$AG$14:$AG$93, MATCH(BQ$10,'TAG - A1.3.12'!$C$14:$C$93,0))","v":17.891591370258137},{"$f":"INDEX('TAG - A1.3.12'!$AG$14:$AG$93, MATCH(BR$10,'TAG - A1.3.12'!$C$14:$C$93,0))","v":17.899590996347587},{"$f":"INDEX('TAG - A1.3.12'!$AG$14:$AG$93, MATCH(BS$10,'TAG - A1.3.12'!$C$14:$C$93,0))","v":17.90759779396792},{"$f":"INDEX('TAG - A1.3.12'!$AG$14:$AG$93, MATCH(BT$10,'TAG - A1.3.12'!$C$14:$C$93,0))","v":17.915611769548285},{"$f":"INDEX('TAG - A1.3.12'!$AG$14:$AG$93, MATCH(BU$10,'TAG - A1.3.12'!$C$14:$C$93,0))","v":17.923632929523599},{"$f":"INDEX('TAG - A1.3.12'!$AG$14:$AG$93, MATCH(BV$10,'TAG - A1.3.12'!$C$14:$C$93,0))","v":17.931661280334563},{"$f":"INDEX('TAG - A1.3.12'!$AG$14:$AG$93, MATCH(BW$10,'TAG - A1.3.12'!$C$14:$C$93,0))","v":17.939696828427625},{"$f":"INDEX('TAG - A1.3.12'!$AG$14:$AG$93, MATCH(BX$10,'TAG - A1.3.12'!$C$14:$C$93,0))","v":17.94773958025505},{"$f":"INDEX('TAG - A1.3.12'!$AG$14:$AG$93, MATCH(BY$10,'TAG - A1.3.12'!$C$14:$C$93,0))","v":17.955789542274847},{"$f":"IF(BY188=0,0,BY188*BY188/BX188)","v":17.963843114882383},{"$f":"IF(BZ188=0,0,BZ188*BZ188/BY188)","v":17.97190029969709},17.979961098339125,17.988025512429367,17.996093543589428,18.004165193441644]
[null,null,null,"LGV",null,null,null,null,null,"b",{"$f":"INDEX('TAG - A1.3.12'!$AH$14:$AH$93, MATCH(K$10,'TAG - A1.3.12'!$C$14:$C$93,0))","v":13.76290858923301},{"$f":"INDEX('TAG - A1.3.12'!$AH$14:$AH$93, MATCH(L$10,'TAG - A1.3.12'!$C$14:$C$93,0))","v":12.86108566937992},{"$f":"INDEX('TAG - A1.3.12'!$AH$14:$AH$93, MATCH(M$10,'TAG - A1.3.12'!$C$14:$C$93,0))","v":12.30998261084334},{"$f":"INDEX('TAG - A1.3.12'!$AH$14:$AH$93, MATCH(N$10,'TAG - A1.3.12'!$C$14:$C$93,0))","v":12.185459596754789},{"$f":"INDEX('TAG - A1.3.12'!$AH$14:$AH$93, MATCH(O$10,'TAG - A1.3.12'!$C$14:$C$93,0))","v":12.11629183366899},{"$f":"INDEX('TAG - A1.3.12'!$AH$14:$AH$93, MATCH(P$10,'TAG - A1.3.12'!$C$14:$C$93,0))","v":11.870434630732879},{"$f":"INDEX('TAG - A1.3.12'!$AH$14:$AH$93, MATCH(Q$10,'TAG - A1.3.12'!$C$14:$C$93,0))","v":11.491358934667501},{"$f":"INDEX('TAG - A1.3.12'!$AH$14:$AH$93, MATCH(R$10,'TAG - A1.3.12'!$C$14:$C$93,0))","v":10.978807854781101},{"$f":"INDEX('TAG - A1.3.12'!$AH$14:$AH$93, MATCH(S$10,'TAG - A1.3.12'!$C$14:$C$93,0))","v":10.579763092413517},{"$f":"INDEX('TAG - A1.3.12'!$AH$14:$AH$93, MATCH(T$10,'TAG - A1.3.12'!$C$14:$C$93,0))","v":10.264103648787239},{"$f":"INDEX('TAG - A1.3.12'!$AH$14:$AH$93, MATCH(U$10,'TAG - A1.3.12'!$C$14:$C$93,0))","v":9.9599545864913637},{"$f":"INDEX('TAG - A1.3.12'!$AH$14:$AH$93, MATCH(V$10,'TAG - A1.3.12'!$C$14:$C$93,0))","v":9.7041746293008835},{"$f":"INDEX('TAG - A1.3.12'!$AH$14:$AH$93, MATCH(W$10,'TAG - A1.3.12'!$C$14:$C$93,0))","v":9.5791788730160974},{"$f":"INDEX('TAG - A1.3.12'!$AH$14:$AH$93, MATCH(X$10,'TAG - A1.3.12'!$C$14:$C$93,0))","v":9.3533212222026698},{"$f":"INDEX('TAG - A1.3.12'!$AH$14:$AH$93, MATCH(Y$10,'TAG - A1.3.12'!$C$14:$C$93,0))","v":9.1440058562286879},{"$f":"INDEX('TAG - A1.3.12'!$AH$14:$AH$93, MATCH(Z$10,'TAG - A1.3.12'!$C$14:$C$93,0))","v":8.9954583441540947},{"$f":"INDEX('TAG - A1.3.12'!$AH$14:$AH$93, MATCH(AA$10,'TAG - A1.3.12'!$C$14:$C$93,0))","v":8.922584340243553},{"$f":"INDEX('TAG - A1.3.12'!$AH$14:$AH$93, MATCH(AB$10,'TAG - A1.3.12'!$C$14:$C$93,0))","v":8.7861367063267135},{"$f":"INDEX('TAG - A1.3.12'!$AH$14:$AH$93, MATCH(AC$10,'TAG - A1.3.12'!$C$14:$C$93,0))","v":8.7338308825238649},{"$f":"INDEX('TAG - A1.3.12'!$AH$14:$AH$93, MATCH(AD$10,'TAG - A1.3.12'!$C$14:$C$93,0))","v":8.6279478834734604},{"$f":"INDEX('TAG - A1.3.12'!$AH$14:$AH$93, MATCH(AE$10,'TAG - A1.3.12'!$C$14:$C$93,0))","v":8.5481045298286595},{"$f":"INDEX('TAG - A1.3.12'!$AH$14:$AH$93, MATCH(AF$10,'TAG - A1.3.12'!$C$14:$C$93,0))","v":8.4360258227717964},{"$f":"INDEX('TAG - A1.3.12'!$AH$14:$AH$93, MATCH(AG$10,'TAG - A1.3.12'!$C$14:$C$93,0))","v":8.4202927644030385},{"$f":"INDEX('TAG - A1.3.12'!$AH$14:$AH$93, MATCH(AH$10,'TAG - A1.3.12'!$C$14:$C$93,0))","v":8.309976455980987},{"$f":"INDEX('TAG - A1.3.12'!$AH$14:$AH$93, MATCH(AI$10,'TAG - A1.3.12'!$C$14:$C$93,0))","v":8.2699206061285135},{"$f":"INDEX('TAG - A1.3.12'!$AH$14:$AH$93, MATCH(AJ$10,'TAG - A1.3.12'!$C$14:$C$93,0))","v":8.2281181715550744},{"$f":"INDEX('TAG - A1.3.12'!$AH$14:$AH$93, MATCH(AK$10,'TAG - A1.3.12'!$C$14:$C$93,0))","v":8.186244449760153},{"$f":"INDEX('TAG - A1.3.12'!$AH$14:$AH$93, MATCH(AL$10,'TAG - A1.3.12'!$C$14:$C$93,0))","v":8.1987018930281099},{"$f":"INDEX('TAG - A1.3.12'!$AH$14:$AH$93, MATCH(AM$10,'TAG - A1.3.12'!$C$14:$C$93,0))","v":8.2006280431109175},{"$f":"INDEX('TAG - A1.3.12'!$AH$14:$AH$93, MATCH(AN$10,'TAG - A1.3.12'!$C$14:$C$93,0))","v":8.2025559199550315},{"$f":"INDEX('TAG - A1.3.12'!$AH$14:$AH$93, MATCH(AO$10,'TAG - A1.3.12'!$C$14:$C$93,0))","v":8.2044855251084634},{"$f":"INDEX('TAG - A1.3.12'!$AH$14:$AH$93, MATCH(AP$10,'TAG - A1.3.12'!$C$14:$C$93,0))","v":8.2064168601206138},{"$f":"INDEX('TAG - A1.3.12'!$AH$14:$AH$93, MATCH(AQ$10,'TAG - A1.3.12'!$C$14:$C$93,0))","v":8.2083499265422724},{"$f":"INDEX('TAG - A1.3.12'!$AH$14:$AH$93, MATCH(AR$10,'TAG - A1.3.12'!$C$14:$C$93,0))","v":8.210284725925618},{"$f":"INDEX('TAG - A1.3.12'!$AH$14:$AH$93, MATCH(AS$10,'TAG - A1.3.12'!$C$14:$C$93,0))","v":8.2122212598242239},{"$f":"INDEX('TAG - A1.3.12'!$AH$14:$AH$93, MATCH(AT$10,'TAG - A1.3.12'!$C$14:$C$93,0))","v":8.2141595297930508},{"$f":"INDEX('TAG - A1.3.12'!$AH$14:$AH$93, MATCH(AU$10,'TAG - A1.3.12'!$C$14:$C$93,0))","v":8.2160995373884589},{"$f":"INDEX('TAG - A1.3.12'!$AH$14:$AH$93, MATCH(AV$10,'TAG - A1.3.12'!$C$14:$C$93,0))","v":8.2180412841681996},{"$f":"INDEX('TAG - A1.3.12'!$AH$14:$AH$93, MATCH(AW$10,'TAG - A1.3.12'!$C$14:$C$93,0))","v":8.2199847716914238},{"$f":"INDEX('TAG - A1.3.12'!$AH$14:$AH$93, MATCH(AX$10,'TAG - A1.3.12'!$C$14:$C$93,0))","v":8.2219300015186789},{"$f":"INDEX('TAG - A1.3.12'!$AH$14:$AH$93, MATCH(AY$10,'TAG - A1.3.12'!$C$14:$C$93,0))","v":8.2238769752119119},{"$f":"INDEX('TAG - A1.3.12'!$AH$14:$AH$93, MATCH(AZ$10,'TAG - A1.3.12'!$C$14:$C$93,0))","v":8.2258256943344676},{"$f":"INDEX('TAG - A1.3.12'!$AH$14:$AH$93, MATCH(BA$10,'TAG - A1.3.12'!$C$14:$C$93,0))","v":8.2277761604510964},{"$f":"INDEX('TAG - A1.3.12'!$AH$14:$AH$93, MATCH(BB$10,'TAG - A1.3.12'!$C$14:$C$93,0))","v":8.2297283751279462},{"$f":"INDEX('TAG - A1.3.12'!$AH$14:$AH$93, MATCH(BC$10,'TAG - A1.3.12'!$C$14:$C$93,0))","v":8.2316823399325738},{"$f":"INDEX('TAG - A1.3.12'!$AH$14:$AH$93, MATCH(BD$10,'TAG - A1.3.12'!$C$14:$C$93,0))","v":8.2336380564339411},{"$f":"INDEX('TAG - A1.3.12'!$AH$14:$AH$93, MATCH(BE$10,'TAG - A1.3.12'!$C$14:$C$93,0))","v":8.2355955262024132},{"$f":"INDEX('TAG - A1.3.12'!$AH$14:$AH$93, MATCH(BF$10,'TAG - A1.3.12'!$C$14:$C$93,0))","v":8.237554750809764},{"$f":"INDEX('TAG - A1.3.12'!$AH$14:$AH$93, MATCH(BG$10,'TAG - A1.3.12'!$C$14:$C$93,0))","v":8.2395157318291758},{"$f":"INDEX('TAG - A1.3.12'!$AH$14:$AH$93, MATCH(BH$10,'TAG - A1.3.12'!$C$14:$C$93,0))","v":8.2414784708352471},{"$f":"INDEX('TAG - A1.3.12'!$AH$14:$AH$93, MATCH(BI$10,'TAG - A1.3.12'!$C$14:$C$93,0))","v":8.243442969403981},{"$f":"INDEX('TAG - A1.3.12'!$AH$14:$AH$93, MATCH(BJ$10,'TAG - A1.3.12'!$C$14:$C$93,0))","v":8.2454092291127967},{"$f":"INDEX('TAG - A1.3.12'!$AH$14:$AH$93, MATCH(BK$10,'TAG - A1.3.12'!$C$14:$C$93,0))","v":8.2473772515405237},{"$f":"INDEX('TAG - A1.3.12'!$AH$14:$AH$93, MATCH(BL$10,'TAG - A1.3.12'!$C$14:$C$93,0))","v":8.2493470382674161},{"$f":"INDEX('TAG - A1.3.12'!$AH$14:$AH$93, MATCH(BM$10,'TAG - A1.3.12'!$C$14:$C$93,0))","v":8.2513185908751314},{"$f":"INDEX('TAG - A1.3.12'!$AH$14:$AH$93, MATCH(BN$10,'TAG - A1.3.12'!$C$14:$C$93,0))","v":8.2532919109467571},{"$f":"INDEX('TAG - A1.3.12'!$AH$14:$AH$93, MATCH(BO$10,'TAG - A1.3.12'!$C$14:$C$93,0))","v":8.2552670000667945},{"$f":"INDEX('TAG - A1.3.12'!$AH$14:$AH$93, MATCH(BP$10,'TAG - A1.3.12'!$C$14:$C$93,0))","v":8.2572438598211644},{"$f":"INDEX('TAG - A1.3.12'!$AH$14:$AH$93, MATCH(BQ$10,'TAG - A1.3.12'!$C$14:$C$93,0))","v":8.2592224917972139},{"$f":"INDEX('TAG - A1.3.12'!$AH$14:$AH$93, MATCH(BR$10,'TAG - A1.3.12'!$C$14:$C$93,0))","v":8.2612028975837042},{"$f":"INDEX('TAG - A1.3.12'!$AH$14:$AH$93, MATCH(BS$10,'TAG - A1.3.12'!$C$14:$C$93,0))","v":8.2631850787708316},{"$f":"INDEX('TAG - A1.3.12'!$AH$14:$AH$93, MATCH(BT$10,'TAG - A1.3.12'!$C$14:$C$93,0))","v":8.265169036950212},{"$f":"INDEX('TAG - A1.3.12'!$AH$14:$AH$93, MATCH(BU$10,'TAG - A1.3.12'!$C$14:$C$93,0))","v":8.2671547737148856},{"$f":"INDEX('TAG - A1.3.12'!$AH$14:$AH$93, MATCH(BV$10,'TAG - A1.3.12'!$C$14:$C$93,0))","v":8.2691422906593299},{"$f":"INDEX('TAG - A1.3.12'!$AH$14:$AH$93, MATCH(BW$10,'TAG - A1.3.12'!$C$14:$C$93,0))","v":8.2711315893794435},{"$f":"INDEX('TAG - A1.3.12'!$AH$14:$AH$93, MATCH(BX$10,'TAG - A1.3.12'!$C$14:$C$93,0))","v":8.2731226714725601},{"$f":"INDEX('TAG - A1.3.12'!$AH$14:$AH$93, MATCH(BY$10,'TAG - A1.3.12'!$C$14:$C$93,0))","v":8.2751155385374418},{"$f":"IF(BY189=0,0,BY189*BY189/BX189)","v":8.2771088856531208},8.2791027129352326,8.281097020499443,8.2830918084614442,8.2850870769369571,8.2870828260417309]
[null,null,null,"LGV",null,null,null,null,null,"c",{"$f":"INDEX('TAG - A1.3.12'!$AI$14:$AI$93, MATCH(K$10,'TAG - A1.3.12'!$C$14:$C$93,0))","v":-0.19618620801834938},{"$f":"INDEX('TAG - A1.3.12'!$AI$14:$AI$93, MATCH(L$10,'TAG - A1.3.12'!$C$14:$C$93,0))","v":-0.18217658457305377},{"$f":"INDEX('TAG - A1.3.12'!$AI$14:$AI$93, MATCH(M$10,'TAG - A1.3.12'!$C$14:$C$93,0))","v":-0.17277313521108476},{"$f":"INDEX('TAG - A1.3.12'!$AI$14:$AI$93, MATCH(N$10,'TAG - A1.3.12'!$C$14:$C$93,0))","v":-0.1687584604576304},{"$f":"INDEX('TAG - A1.3.12'!$AI$14:$AI$93, MATCH(O$10,'TAG - A1.3.12'!$C$14:$C$93,0))","v":-0.16514567367849881},{"$f":"INDEX('TAG - A1.3.12'!$AI$14:$AI$93, MATCH(P$10,'TAG - A1.3.12'!$C$14:$C$93,0))","v":-0.15803600356855985},{"$f":"INDEX('TAG - A1.3.12'!$AI$14:$AI$93, MATCH(Q$10,'TAG - A1.3.12'!$C$14:$C$93,0))","v":-0.14824382838020198},{"$f":"INDEX('TAG - A1.3.12'!$AI$14:$AI$93, MATCH(R$10,'TAG - A1.3.12'!$C$14:$C$93,0))","v":-0.13571602202208283},{"$f":"INDEX('TAG - A1.3.12'!$AI$14:$AI$93, MATCH(S$10,'TAG - A1.3.12'!$C$14:$C$93,0))","v":-0.12574540085681724},{"$f":"INDEX('TAG - A1.3.12'!$AI$14:$AI$93, MATCH(T$10,'TAG - A1.3.12'!$C$14:$C$93,0))","v":-0.11708725775630313},{"$f":"INDEX('TAG - A1.3.12'!$AI$14:$AI$93, MATCH(U$10,'TAG - A1.3.12'!$C$14:$C$93,0))","v":-0.10918770486131343},{"$f":"INDEX('TAG - A1.3.12'!$AI$14:$AI$93, MATCH(V$10,'TAG - A1.3.12'!$C$14:$C$93,0))","v":-0.10235558562503874},{"$f":"INDEX('TAG - A1.3.12'!$AI$14:$AI$93, MATCH(W$10,'TAG - A1.3.12'!$C$14:$C$93,0))","v":-9.6538741986564425E-2},{"$f":"INDEX('TAG - A1.3.12'!$AI$14:$AI$93, MATCH(X$10,'TAG - A1.3.12'!$C$14:$C$93,0))","v":-9.1099713133343335E-2},{"$f":"INDEX('TAG - A1.3.12'!$AI$14:$AI$93, MATCH(Y$10,'TAG - A1.3.12'!$C$14:$C$93,0))","v":-8.619846854839551E-2},{"$f":"INDEX('TAG - A1.3.12'!$AI$14:$AI$93, MATCH(Z$10,'TAG - A1.3.12'!$C$14:$C$93,0))","v":-8.1587754099936335E-2},{"$f":"INDEX('TAG - A1.3.12'!$AI$14:$AI$93, MATCH(AA$10,'TAG - A1.3.12'!$C$14:$C$93,0))","v":-7.8236135936342419E-2},{"$f":"INDEX('TAG - A1.3.12'!$AI$14:$AI$93, MATCH(AB$10,'TAG - A1.3.12'!$C$14:$C$93,0))","v":-7.5202752445580709E-2},{"$f":"INDEX('TAG - A1.3.12'!$AI$14:$AI$93, MATCH(AC$10,'TAG - A1.3.12'!$C$14:$C$93,0))","v":-7.2713209424113981E-2},{"$f":"INDEX('TAG - A1.3.12'!$AI$14:$AI$93, MATCH(AD$10,'TAG - A1.3.12'!$C$14:$C$93,0))","v":-7.056463179108291E-2},{"$f":"INDEX('TAG - A1.3.12'!$AI$14:$AI$93, MATCH(AE$10,'TAG - A1.3.12'!$C$14:$C$93,0))","v":-6.8945781088461694E-2},{"$f":"INDEX('TAG - A1.3.12'!$AI$14:$AI$93, MATCH(AF$10,'TAG - A1.3.12'!$C$14:$C$93,0))","v":-6.6806061586334162E-2},{"$f":"INDEX('TAG - A1.3.12'!$AI$14:$AI$93, MATCH(AG$10,'TAG - A1.3.12'!$C$14:$C$93,0))","v":-6.6591262820592578E-2},{"$f":"INDEX('TAG - A1.3.12'!$AI$14:$AI$93, MATCH(AH$10,'TAG - A1.3.12'!$C$14:$C$93,0))","v":-6.5649681813499075E-2},{"$f":"INDEX('TAG - A1.3.12'!$AI$14:$AI$93, MATCH(AI$10,'TAG - A1.3.12'!$C$14:$C$93,0))","v":-6.4867898352262587E-2},{"$f":"INDEX('TAG - A1.3.12'!$AI$14:$AI$93, MATCH(AJ$10,'TAG - A1.3.12'!$C$14:$C$93,0))","v":-6.4209472598116338E-2},{"$f":"INDEX('TAG - A1.3.12'!$AI$14:$AI$93, MATCH(AK$10,'TAG - A1.3.12'!$C$14:$C$93,0))","v":-6.3643320635551115E-2},{"$f":"INDEX('TAG - A1.3.12'!$AI$14:$AI$93, MATCH(AL$10,'TAG - A1.3.12'!$C$14:$C$93,0))","v":-6.3145461112465162E-2},{"$f":"INDEX('TAG - A1.3.12'!$AI$14:$AI$93, MATCH(AM$10,'TAG - A1.3.12'!$C$14:$C$93,0))","v":-6.3173304641326589E-2},{"$f":"INDEX('TAG - A1.3.12'!$AI$14:$AI$93, MATCH(AN$10,'TAG - A1.3.12'!$C$14:$C$93,0))","v":-6.3201173131445534E-2},{"$f":"INDEX('TAG - A1.3.12'!$AI$14:$AI$93, MATCH(AO$10,'TAG - A1.3.12'!$C$14:$C$93,0))","v":-6.3229066605199377E-2},{"$f":"INDEX('TAG - A1.3.12'!$AI$14:$AI$93, MATCH(AP$10,'TAG - A1.3.12'!$C$14:$C$93,0))","v":-6.3256985084985506E-2},{"$f":"INDEX('TAG - A1.3.12'!$AI$14:$AI$93, MATCH(AQ$10,'TAG - A1.3.12'!$C$14:$C$93,0))","v":-6.3284928593221379E-2},{"$f":"INDEX('TAG - A1.3.12'!$AI$14:$AI$93, MATCH(AR$10,'TAG - A1.3.12'!$C$14:$C$93,0))","v":-6.331289715234463E-2},{"$f":"INDEX('TAG - A1.3.12'!$AI$14:$AI$93, MATCH(AS$10,'TAG - A1.3.12'!$C$14:$C$93,0))","v":-6.3340890784812948E-2},{"$f":"INDEX('TAG - A1.3.12'!$AI$14:$AI$93, MATCH(AT$10,'TAG - A1.3.12'!$C$14:$C$93,0))","v":-6.3368909513104157E-2},{"$f":"INDEX('TAG - A1.3.12'!$AI$14:$AI$93, MATCH(AU$10,'TAG - A1.3.12'!$C$14:$C$93,0))","v":-6.3396953359716249E-2},{"$f":"INDEX('TAG - A1.3.12'!$AI$14:$AI$93, MATCH(AV$10,'TAG - A1.3.12'!$C$14:$C$93,0))","v":-6.3425022347167362E-2},{"$f":"INDEX('TAG - A1.3.12'!$AI$14:$AI$93, MATCH(AW$10,'TAG - A1.3.12'!$C$14:$C$93,0))","v":-6.3453116497995843E-2},{"$f":"INDEX('TAG - A1.3.12'!$AI$14:$AI$93, MATCH(AX$10,'TAG - A1.3.12'!$C$14:$C$93,0))","v":-6.3481235834760286E-2},{"$f":"INDEX('TAG - A1.3.12'!$AI$14:$AI$93, MATCH(AY$10,'TAG - A1.3.12'!$C$14:$C$93,0))","v":-6.3509380380039379E-2},{"$f":"INDEX('TAG - A1.3.12'!$AI$14:$AI$93, MATCH(AZ$10,'TAG - A1.3.12'!$C$14:$C$93,0))","v":-6.3537550156432213E-2},{"$f":"INDEX('TAG - A1.3.12'!$AI$14:$AI$93, MATCH(BA$10,'TAG - A1.3.12'!$C$14:$C$93,0))","v":-6.3565745186557998E-2},{"$f":"INDEX('TAG - A1.3.12'!$AI$14:$AI$93, MATCH(BB$10,'TAG - A1.3.12'!$C$14:$C$93,0))","v":-6.359396549305632E-2},{"$f":"INDEX('TAG - A1.3.12'!$AI$14:$AI$93, MATCH(BC$10,'TAG - A1.3.12'!$C$14:$C$93,0))","v":-6.362221109858697E-2},{"$f":"INDEX('TAG - A1.3.12'!$AI$14:$AI$93, MATCH(BD$10,'TAG - A1.3.12'!$C$14:$C$93,0))","v":-6.3650482025830207E-2},{"$f":"INDEX('TAG - A1.3.12'!$AI$14:$AI$93, MATCH(BE$10,'TAG - A1.3.12'!$C$14:$C$93,0))","v":-6.367877829748643E-2},{"$f":"INDEX('TAG - A1.3.12'!$AI$14:$AI$93, MATCH(BF$10,'TAG - A1.3.12'!$C$14:$C$93,0))","v":-6.3707099936276532E-2},{"$f":"INDEX('TAG - A1.3.12'!$AI$14:$AI$93, MATCH(BG$10,'TAG - A1.3.12'!$C$14:$C$93,0))","v":-6.3735446964941656E-2},{"$f":"INDEX('TAG - A1.3.12'!$AI$14:$AI$93, MATCH(BH$10,'TAG - A1.3.12'!$C$14:$C$93,0))","v":-6.3763819406243497E-2},{"$f":"INDEX('TAG - A1.3.12'!$AI$14:$AI$93, MATCH(BI$10,'TAG - A1.3.12'!$C$14:$C$93,0))","v":-6.3792217282964012E-2},{"$f":"INDEX('TAG - A1.3.12'!$AI$14:$AI$93, MATCH(BJ$10,'TAG - A1.3.12'!$C$14:$C$93,0))","v":-6.3820640617905613E-2},{"$f":"INDEX('TAG - A1.3.12'!$AI$14:$AI$93, MATCH(BK$10,'TAG - A1.3.12'!$C$14:$C$93,0))","v":-6.3849089433891185E-2},{"$f":"INDEX('TAG - A1.3.12'!$AI$14:$AI$93, MATCH(BL$10,'TAG - A1.3.12'!$C$14:$C$93,0))","v":-6.3877563753764063E-2},{"$f":"INDEX('TAG - A1.3.12'!$AI$14:$AI$93, MATCH(BM$10,'TAG - A1.3.12'!$C$14:$C$93,0))","v":-6.390606360038803E-2},{"$f":"INDEX('TAG - A1.3.12'!$AI$14:$AI$93, MATCH(BN$10,'TAG - A1.3.12'!$C$14:$C$93,0))","v":-6.3934588996647418E-2},{"$f":"INDEX('TAG - A1.3.12'!$AI$14:$AI$93, MATCH(BO$10,'TAG - A1.3.12'!$C$14:$C$93,0))","v":-6.396313996544703E-2},{"$f":"INDEX('TAG - A1.3.12'!$AI$14:$AI$93, MATCH(BP$10,'TAG - A1.3.12'!$C$14:$C$93,0))","v":-6.399171652971225E-2},{"$f":"INDEX('TAG - A1.3.12'!$AI$14:$AI$93, MATCH(BQ$10,'TAG - A1.3.12'!$C$14:$C$93,0))","v":-6.4020318712388974E-2},{"$f":"INDEX('TAG - A1.3.12'!$AI$14:$AI$93, MATCH(BR$10,'TAG - A1.3.12'!$C$14:$C$93,0))","v":-6.4048946536443635E-2},{"$f":"INDEX('TAG - A1.3.12'!$AI$14:$AI$93, MATCH(BS$10,'TAG - A1.3.12'!$C$14:$C$93,0))","v":-6.4077600024863332E-2},{"$f":"INDEX('TAG - A1.3.12'!$AI$14:$AI$93, MATCH(BT$10,'TAG - A1.3.12'!$C$14:$C$93,0))","v":-6.4106279200655758E-2},{"$f":"INDEX('TAG - A1.3.12'!$AI$14:$AI$93, MATCH(BU$10,'TAG - A1.3.12'!$C$14:$C$93,0))","v":-6.4134984086849173E-2},{"$f":"INDEX('TAG - A1.3.12'!$AI$14:$AI$93, MATCH(BV$10,'TAG - A1.3.12'!$C$14:$C$93,0))","v":-6.4163714706492542E-2},{"$f":"INDEX('TAG - A1.3.12'!$AI$14:$AI$93, MATCH(BW$10,'TAG - A1.3.12'!$C$14:$C$93,0))","v":-6.4192471082655467E-2},{"$f":"INDEX('TAG - A1.3.12'!$AI$14:$AI$93, MATCH(BX$10,'TAG - A1.3.12'!$C$14:$C$93,0))","v":-6.4221253238428269E-2},{"$f":"INDEX('TAG - A1.3.12'!$AI$14:$AI$93, MATCH(BY$10,'TAG - A1.3.12'!$C$14:$C$93,0))","v":-6.4250061196921879E-2},-6.4278882077905025E-2,-6.4307715887174391E-2,-6.4336562630529268E-2,-6.4365422313771542E-2,-6.4394294942705696E-2,-6.4423180523138834E-2]
[null,null,null,"LGV",null,null,null,null,null,"d",{"$f":"INDEX('TAG - A1.3.12'!$AJ$14:$AJ$93, MATCH(K$10,'TAG - A1.3.12'!$C$14:$C$93,0))","v":1.6469174439499583E-3},{"$f":"INDEX('TAG - A1.3.12'!$AJ$14:$AJ$93, MATCH(L$10,'TAG - A1.3.12'!$C$14:$C$93,0))","v":1.5296054177809967E-3},{"$f":"INDEX('TAG - A1.3.12'!$AJ$14:$AJ$93, MATCH(M$10,'TAG - A1.3.12'!$C$14:$C$93,0))","v":1.4508714038026845E-3},{"$f":"INDEX('TAG - A1.3.12'!$AJ$14:$AJ$93, MATCH(N$10,'TAG - A1.3.12'!$C$14:$C$93,0))","v":1.4173241757848732E-3},{"$f":"INDEX('TAG - A1.3.12'!$AJ$14:$AJ$93, MATCH(O$10,'TAG - A1.3.12'!$C$14:$C$93,0))","v":1.3873427570409197E-3},{"$f":"INDEX('TAG - A1.3.12'!$AJ$14:$AJ$93, MATCH(P$10,'TAG - A1.3.12'!$C$14:$C$93,0))","v":1.3276764294863602E-3},{"$f":"INDEX('TAG - A1.3.12'!$AJ$14:$AJ$93, MATCH(Q$10,'TAG - A1.3.12'!$C$14:$C$93,0))","v":1.2454343686968098E-3},{"$f":"INDEX('TAG - A1.3.12'!$AJ$14:$AJ$93, MATCH(R$10,'TAG - A1.3.12'!$C$14:$C$93,0))","v":1.1401694367030855E-3},{"$f":"INDEX('TAG - A1.3.12'!$AJ$14:$AJ$93, MATCH(S$10,'TAG - A1.3.12'!$C$14:$C$93,0))","v":1.0561599155542783E-3},{"$f":"INDEX('TAG - A1.3.12'!$AJ$14:$AJ$93, MATCH(T$10,'TAG - A1.3.12'!$C$14:$C$93,0))","v":9.8348697969961808E-4},{"$f":"INDEX('TAG - A1.3.12'!$AJ$14:$AJ$93, MATCH(U$10,'TAG - A1.3.12'!$C$14:$C$93,0))","v":9.1724805426665113E-4},{"$f":"INDEX('TAG - A1.3.12'!$AJ$14:$AJ$93, MATCH(V$10,'TAG - A1.3.12'!$C$14:$C$93,0))","v":8.601632780279114E-4},{"$f":"INDEX('TAG - A1.3.12'!$AJ$14:$AJ$93, MATCH(W$10,'TAG - A1.3.12'!$C$14:$C$93,0))","v":8.1099389909198595E-4},{"$f":"INDEX('TAG - A1.3.12'!$AJ$14:$AJ$93, MATCH(X$10,'TAG - A1.3.12'!$C$14:$C$93,0))","v":7.6543261083178882E-4},{"$f":"INDEX('TAG - A1.3.12'!$AJ$14:$AJ$93, MATCH(Y$10,'TAG - A1.3.12'!$C$14:$C$93,0))","v":7.243450546967359E-4},{"$f":"INDEX('TAG - A1.3.12'!$AJ$14:$AJ$93, MATCH(Z$10,'TAG - A1.3.12'!$C$14:$C$93,0))","v":6.8598963987946129E-4},{"$f":"INDEX('TAG - A1.3.12'!$AJ$14:$AJ$93, MATCH(AA$10,'TAG - A1.3.12'!$C$14:$C$93,0))","v":6.5778838846615201E-4},{"$f":"INDEX('TAG - A1.3.12'!$AJ$14:$AJ$93, MATCH(AB$10,'TAG - A1.3.12'!$C$14:$C$93,0))","v":6.3235295855013638E-4},{"$f":"INDEX('TAG - A1.3.12'!$AJ$14:$AJ$93, MATCH(AC$10,'TAG - A1.3.12'!$C$14:$C$93,0))","v":6.1167936627215015E-4},{"$f":"INDEX('TAG - A1.3.12'!$AJ$14:$AJ$93, MATCH(AD$10,'TAG - A1.3.12'!$C$14:$C$93,0))","v":5.93662232008253E-4},{"$f":"INDEX('TAG - A1.3.12'!$AJ$14:$AJ$93, MATCH(AE$10,'TAG - A1.3.12'!$C$14:$C$93,0))","v":5.7999703261270633E-4},{"$f":"INDEX('TAG - A1.3.12'!$AJ$14:$AJ$93, MATCH(AF$10,'TAG - A1.3.12'!$C$14:$C$93,0))","v":5.6208297812393514E-4},{"$f":"INDEX('TAG - A1.3.12'!$AJ$14:$AJ$93, MATCH(AG$10,'TAG - A1.3.12'!$C$14:$C$93,0))","v":5.6034344648897485E-4},{"$f":"INDEX('TAG - A1.3.12'!$AJ$14:$AJ$93, MATCH(AH$10,'TAG - A1.3.12'!$C$14:$C$93,0))","v":5.5245555898140476E-4},{"$f":"INDEX('TAG - A1.3.12'!$AJ$14:$AJ$93, MATCH(AI$10,'TAG - A1.3.12'!$C$14:$C$93,0))","v":5.4591021800720911E-4},{"$f":"INDEX('TAG - A1.3.12'!$AJ$14:$AJ$93, MATCH(AJ$10,'TAG - A1.3.12'!$C$14:$C$93,0))","v":5.40400657656595E-4},{"$f":"INDEX('TAG - A1.3.12'!$AJ$14:$AJ$93, MATCH(AK$10,'TAG - A1.3.12'!$C$14:$C$93,0))","v":5.3566529814974074E-4},{"$f":"INDEX('TAG - A1.3.12'!$AJ$14:$AJ$93, MATCH(AL$10,'TAG - A1.3.12'!$C$14:$C$93,0))","v":5.3150239854891966E-4},{"$f":"INDEX('TAG - A1.3.12'!$AJ$14:$AJ$93, MATCH(AM$10,'TAG - A1.3.12'!$C$14:$C$93,0))","v":5.3173674995817249E-4},{"$f":"INDEX('TAG - A1.3.12'!$AJ$14:$AJ$93, MATCH(AN$10,'TAG - A1.3.12'!$C$14:$C$93,0))","v":5.3197131145954089E-4},{"$f":"INDEX('TAG - A1.3.12'!$AJ$14:$AJ$93, MATCH(AO$10,'TAG - A1.3.12'!$C$14:$C$93,0))","v":5.3220608324136868E-4},{"$f":"INDEX('TAG - A1.3.12'!$AJ$14:$AJ$93, MATCH(AP$10,'TAG - A1.3.12'!$C$14:$C$93,0))","v":5.3244106549216891E-4},{"$f":"INDEX('TAG - A1.3.12'!$AJ$14:$AJ$93, MATCH(AQ$10,'TAG - A1.3.12'!$C$14:$C$93,0))","v":5.326762584006231E-4},{"$f":"INDEX('TAG - A1.3.12'!$AJ$14:$AJ$93, MATCH(AR$10,'TAG - A1.3.12'!$C$14:$C$93,0))","v":5.3291166215558271E-4},{"$f":"INDEX('TAG - A1.3.12'!$AJ$14:$AJ$93, MATCH(AS$10,'TAG - A1.3.12'!$C$14:$C$93,0))","v":5.3314727694606806E-4},{"$f":"INDEX('TAG - A1.3.12'!$AJ$14:$AJ$93, MATCH(AT$10,'TAG - A1.3.12'!$C$14:$C$93,0))","v":5.3338310296126897E-4},{"$f":"INDEX('TAG - A1.3.12'!$AJ$14:$AJ$93, MATCH(AU$10,'TAG - A1.3.12'!$C$14:$C$93,0))","v":5.3361914039054461E-4},{"$f":"INDEX('TAG - A1.3.12'!$AJ$14:$AJ$93, MATCH(AV$10,'TAG - A1.3.12'!$C$14:$C$93,0))","v":5.3385538942342424E-4},{"$f":"INDEX('TAG - A1.3.12'!$AJ$14:$AJ$93, MATCH(AW$10,'TAG - A1.3.12'!$C$14:$C$93,0))","v":5.3409185024960726E-4},{"$f":"INDEX('TAG - A1.3.12'!$AJ$14:$AJ$93, MATCH(AX$10,'TAG - A1.3.12'!$C$14:$C$93,0))","v":5.3432852305896272E-4},{"$f":"INDEX('TAG - A1.3.12'!$AJ$14:$AJ$93, MATCH(AY$10,'TAG - A1.3.12'!$C$14:$C$93,0))","v":5.3456540804152958E-4},{"$f":"INDEX('TAG - A1.3.12'!$AJ$14:$AJ$93, MATCH(AZ$10,'TAG - A1.3.12'!$C$14:$C$93,0))","v":5.348025053875181E-4},{"$f":"INDEX('TAG - A1.3.12'!$AJ$14:$AJ$93, MATCH(BA$10,'TAG - A1.3.12'!$C$14:$C$93,0))","v":5.3503981528730811E-4},{"$f":"INDEX('TAG - A1.3.12'!$AJ$14:$AJ$93, MATCH(BB$10,'TAG - A1.3.12'!$C$14:$C$93,0))","v":5.3527733793145085E-4},{"$f":"INDEX('TAG - A1.3.12'!$AJ$14:$AJ$93, MATCH(BC$10,'TAG - A1.3.12'!$C$14:$C$93,0))","v":5.3551507351066779E-4},{"$f":"INDEX('TAG - A1.3.12'!$AJ$14:$AJ$93, MATCH(BD$10,'TAG - A1.3.12'!$C$14:$C$93,0))","v":5.3575302221585202E-4},{"$f":"INDEX('TAG - A1.3.12'!$AJ$14:$AJ$93, MATCH(BE$10,'TAG - A1.3.12'!$C$14:$C$93,0))","v":5.3599118423806695E-4},{"$f":"INDEX('TAG - A1.3.12'!$AJ$14:$AJ$93, MATCH(BF$10,'TAG - A1.3.12'!$C$14:$C$93,0))","v":5.3622955976854818E-4},{"$f":"INDEX('TAG - A1.3.12'!$AJ$14:$AJ$93, MATCH(BG$10,'TAG - A1.3.12'!$C$14:$C$93,0))","v":5.3646814899870185E-4},{"$f":"INDEX('TAG - A1.3.12'!$AJ$14:$AJ$93, MATCH(BH$10,'TAG - A1.3.12'!$C$14:$C$93,0))","v":5.3670695212010657E-4},{"$f":"INDEX('TAG - A1.3.12'!$AJ$14:$AJ$93, MATCH(BI$10,'TAG - A1.3.12'!$C$14:$C$93,0))","v":5.3694596932451209E-4},{"$f":"INDEX('TAG - A1.3.12'!$AJ$14:$AJ$93, MATCH(BJ$10,'TAG - A1.3.12'!$C$14:$C$93,0))","v":5.3718520080384016E-4},{"$f":"INDEX('TAG - A1.3.12'!$AJ$14:$AJ$93, MATCH(BK$10,'TAG - A1.3.12'!$C$14:$C$93,0))","v":5.3742464675018476E-4},{"$f":"INDEX('TAG - A1.3.12'!$AJ$14:$AJ$93, MATCH(BL$10,'TAG - A1.3.12'!$C$14:$C$93,0))","v":5.3766430735581179E-4},{"$f":"INDEX('TAG - A1.3.12'!$AJ$14:$AJ$93, MATCH(BM$10,'TAG - A1.3.12'!$C$14:$C$93,0))","v":5.3790418281315997E-4},{"$f":"INDEX('TAG - A1.3.12'!$AJ$14:$AJ$93, MATCH(BN$10,'TAG - A1.3.12'!$C$14:$C$93,0))","v":5.3814427331484E-4},{"$f":"INDEX('TAG - A1.3.12'!$AJ$14:$AJ$93, MATCH(BO$10,'TAG - A1.3.12'!$C$14:$C$93,0))","v":5.3838457905363581E-4},{"$f":"INDEX('TAG - A1.3.12'!$AJ$14:$AJ$93, MATCH(BP$10,'TAG - A1.3.12'!$C$14:$C$93,0))","v":5.3862510022250384E-4},{"$f":"INDEX('TAG - A1.3.12'!$AJ$14:$AJ$93, MATCH(BQ$10,'TAG - A1.3.12'!$C$14:$C$93,0))","v":5.3886583701457345E-4},{"$f":"INDEX('TAG - A1.3.12'!$AJ$14:$AJ$93, MATCH(BR$10,'TAG - A1.3.12'!$C$14:$C$93,0))","v":5.3910678962314706E-4},{"$f":"INDEX('TAG - A1.3.12'!$AJ$14:$AJ$93, MATCH(BS$10,'TAG - A1.3.12'!$C$14:$C$93,0))","v":5.3934795824170064E-4},{"$f":"INDEX('TAG - A1.3.12'!$AJ$14:$AJ$93, MATCH(BT$10,'TAG - A1.3.12'!$C$14:$C$93,0))","v":5.3958934306388377E-4},{"$f":"INDEX('TAG - A1.3.12'!$AJ$14:$AJ$93, MATCH(BU$10,'TAG - A1.3.12'!$C$14:$C$93,0))","v":5.3983094428351915E-4},{"$f":"INDEX('TAG - A1.3.12'!$AJ$14:$AJ$93, MATCH(BV$10,'TAG - A1.3.12'!$C$14:$C$93,0))","v":5.4007276209460352E-4},{"$f":"INDEX('TAG - A1.3.12'!$AJ$14:$AJ$93, MATCH(BW$10,'TAG - A1.3.12'!$C$14:$C$93,0))","v":5.4031479669130718E-4},{"$f":"INDEX('TAG - A1.3.12'!$AJ$14:$AJ$93, MATCH(BX$10,'TAG - A1.3.12'!$C$14:$C$93,0))","v":5.4055704826797577E-4},{"$f":"INDEX('TAG - A1.3.12'!$AJ$14:$AJ$93, MATCH(BY$10,'TAG - A1.3.12'!$C$14:$C$93,0))","v":5.4079951701912717E-4},5.4104209453048342E-4,5.4128478085082926E-4,5.4152757602897136E-4,5.4177048011373827E-4,5.4201349315398037E-4,5.4225661519857E-4]
[]
[null,null,null,"LGV - Scheme",null,null,null,null,null,"pence per km, 2023 prices",{"$f":"IF($E$146=\"\",0,K188/$E$146+K189+K190*$E$146+K191*($E$146)^2)","v":14.348401529080588},{"$f":"IF($E$146=\"\",0,L188/$E$146+L189+L190*$E$146+L191*($E$146)^2)","v":13.406375326955514},12.828327764615553,12.692668251458409,12.614612906909032,12.347630507144315,11.939112576559729,11.388637326288544,10.95814551534642,10.616697601155394,10.289384038144211,10.014681875931304,9.8704747137109674,9.6289178670137723,9.4052854117751146,9.2448900070780038,9.1616554327191686,9.0163124429939039,8.9578077769828131,8.8456189126140483,8.7605318513873893,8.6423306236309649,8.6263041873729271,8.5132672857297589,8.4709737466391157,8.4273030469595689,8.3838342174590679,8.3948958161859792,8.396908418175844,8.3989228244297038,8.4009390365650489,8.4029570562008224,8.4049768849574171,8.4069985244566805,8.4090219763219132,8.4110472421778706,8.4130743236507648,8.4151032223682662,8.4171339399595038,8.4191664780550663,8.4212008382870085,8.4232370222888449,8.4252750316955538,8.4273148681435739,8.4293565332708287,8.4314000287166913,8.4334453561220126,8.4354925171291111,8.4375415133817864,8.4395923465253002,8.4416450182064011,8.4436995300732978,8.445755883775691,8.4478140809647577,8.449874123293144,8.4519360124149969,8.4539997499859343,8.4560653376630537,8.4581327771049502,8.4602020699716949,8.4622732179248548,8.4643462226274853,8.4664210857441251,8.4684978089408212,8.4705763938850964,{"$f":"IF($E$146=\"\",0,BX188/$E$146+BX189+BX190*$E$146+BX191*($E$146)^2)","v":8.4726568422459803},8.4747391556939906,8.4768219892894532,{"$f":"IF($E$146=\"\",0,CA188/$E$146+CA189+CA190*$E$146+CA191*($E$146)^2)","v":8.4789053431659767},8.4809892174572088,8.4830736122968329,8.4851585278185677,8.4872439641561677]
[null,null,null,"LGV - Diversion",null,null,null,null,null,"pence per km, 2023 prices",{"$f":"IF($E$147=\"\",0,K188/$E$147+K189+K190*$E$147+K191*($E$147)^2)","v":12.33602810602512},{"$f":"IF($E$147=\"\",0,L188/$E$147+L189+L190*$E$147+L191*($E$147)^2)","v":11.537314095935894},11.055449767943479,10.960765031442339,10.919306663991106,10.725228899997152,10.417207112520122,9.9953659973372169,9.6675590692299043,9.4149094354128753,9.1685253055169031,8.9635462263282779,8.8794558465746434,8.6935599525066056,8.5201263837713448,8.4065598143342406,8.3577915062868957,8.2435250373294693,8.2102571887386837,8.1200814163133632,8.0517000488841965,7.9553828609205262,7.9414750979563671,7.8380746637939858,7.8037770118453578,7.7668365505693693,7.7291520049935754,7.745298486943395,7.7470246679519654,7.7487523964529119,7.750481673833538,7.7522125014823891,7.7539448807892528,7.7556788131451651,7.7574142999424094,7.7591513425745138,7.7608899424362594,7.762630100923678,7.764371819434051,7.7661150993659112,7.7678599421190491,7.7696063490945049,7.7713543216945808,7.7731038613228316,7.7748549693840685,7.776607647284373,7.7783618964310755,7.7801177182327699,7.781875114099317,7.7836340854418395,7.7853946336727269,7.7871567602056313,7.7889204664554734,7.7906857538384466,7.7924526237720029,7.7942210776748801,7.7959911169670795,7.7977627430698728,7.7995359574058103,7.8013107613987156,7.8030871564736906,7.8048651440571124,7.8066447255766374,7.8084259024612086,7.8102086761410376,{"$f":"IF($E$147=\"\",0,BX188/$E$147+BX189+BX190*$E$147+BX191*($E$147)^2)","v":7.8119930480476292},7.8137790196137624,7.8155653784026882,{"$f":"IF($E$147=\"\",0,CA188/$E$147+CA189+CA190*$E$147+CA191*($E$147)^2)","v":7.8173521244883863},7.8191392579448591,7.8209267788461094,7.8227146872661546,7.8245029832790216]
[]
[null,null,null,"HGV - Rigids",null,null,null,null,null,"a",{"$f":"INDEX('TAG - A1.3.12'!$AS14:$AS$93, MATCH(K$10,'TAG - A1.3.12'!$C$14:$C$93,0))","v":347.16551930077787},{"$f":"INDEX('TAG - A1.3.12'!$AS14:$AS$93, MATCH(L$10,'TAG - A1.3.12'!$C$14:$C$93,0))","v":323.54649337640086},{"$f":"INDEX('TAG - A1.3.12'!$AS14:$AS$93, MATCH(M$10,'TAG - A1.3.12'!$C$14:$C$93,0))","v":308.45873848548183},{"$f":"INDEX('TAG - A1.3.12'!$AS14:$AS$93, MATCH(N$10,'TAG - A1.3.12'!$C$14:$C$93,0))","v":305.51710437238592},{"$f":"INDEX('TAG - A1.3.12'!$AS14:$AS$93, MATCH(O$10,'TAG - A1.3.12'!$C$14:$C$93,0))","v":306.72686472826831},{"$f":"INDEX('TAG - A1.3.12'!$AS14:$AS$93, MATCH(P$10,'TAG - A1.3.12'!$C$14:$C$93,0))","v":305.20613451644812},{"$f":"INDEX('TAG - A1.3.12'!$AS14:$AS$93, MATCH(Q$10,'TAG - A1.3.12'!$C$14:$C$93,0))","v":302.20914292666293},{"$f":"INDEX('TAG - A1.3.12'!$AS14:$AS$93, MATCH(R$10,'TAG - A1.3.12'!$C$14:$C$93,0))","v":294.5087492911822},{"$f":"INDEX('TAG - A1.3.12'!$AS14:$AS$93, MATCH(S$10,'TAG - A1.3.12'!$C$14:$C$93,0))","v":290.49971427362141},{"$f":"INDEX('TAG - A1.3.12'!$AS14:$AS$93, MATCH(T$10,'TAG - A1.3.12'!$C$14:$C$93,0))","v":286.43616416052521},{"$f":"INDEX('TAG - A1.3.12'!$AS14:$AS$93, MATCH(U$10,'TAG - A1.3.12'!$C$14:$C$93,0))","v":282.5891197841234},{"$f":"INDEX('TAG - A1.3.12'!$AS14:$AS$93, MATCH(V$10,'TAG - A1.3.12'!$C$14:$C$93,0))","v":278.98246809458703},{"$f":"INDEX('TAG - A1.3.12'!$AS14:$AS$93, MATCH(W$10,'TAG - A1.3.12'!$C$14:$C$93,0))","v":275.64990707971322},{"$f":"INDEX('TAG - A1.3.12'!$AS14:$AS$93, MATCH(X$10,'TAG - A1.3.12'!$C$14:$C$93,0))","v":272.60124257862185},{"$f":"INDEX('TAG - A1.3.12'!$AS14:$AS$93, MATCH(Y$10,'TAG - A1.3.12'!$C$14:$C$93,0))","v":269.84008597030169},{"$f":"INDEX('TAG - A1.3.12'!$AS14:$AS$93, MATCH(Z$10,'TAG - A1.3.12'!$C$14:$C$93,0))","v":267.38367756857571},{"$f":"INDEX('TAG - A1.3.12'!$AS14:$AS$93, MATCH(AA$10,'TAG - A1.3.12'!$C$14:$C$93,0))","v":265.2364996444926},{"$f":"INDEX('TAG - A1.3.12'!$AS14:$AS$93, MATCH(AB$10,'TAG - A1.3.12'!$C$14:$C$93,0))","v":263.37600725763389},{"$f":"INDEX('TAG - A1.3.12'!$AS14:$AS$93, MATCH(AC$10,'TAG - A1.3.12'!$C$14:$C$93,0))","v":261.75435237372113},{"$f":"INDEX('TAG - A1.3.12'!$AS14:$AS$93, MATCH(AD$10,'TAG - A1.3.12'!$C$14:$C$93,0))","v":260.34463048809346},{"$f":"INDEX('TAG - A1.3.12'!$AS14:$AS$93, MATCH(AE$10,'TAG - A1.3.12'!$C$14:$C$93,0))","v":259.10329027574033},{"$f":"INDEX('TAG - A1.3.12'!$AS14:$AS$93, MATCH(AF$10,'TAG - A1.3.12'!$C$14:$C$93,0))","v":257.99213512022675},{"$f":"INDEX('TAG - A1.3.12'!$AS14:$AS$93, MATCH(AG$10,'TAG - A1.3.12'!$C$14:$C$93,0))","v":256.98085127091662},{"$f":"INDEX('TAG - A1.3.12'!$AS14:$AS$93, MATCH(AH$10,'TAG - A1.3.12'!$C$14:$C$93,0))","v":255.93515615159342},{"$f":"INDEX('TAG - A1.3.12'!$AS14:$AS$93, MATCH(AI$10,'TAG - A1.3.12'!$C$14:$C$93,0))","v":255.08813665056542},{"$f":"INDEX('TAG - A1.3.12'!$AS14:$AS$93, MATCH(AJ$10,'TAG - A1.3.12'!$C$14:$C$93,0))","v":254.28195896864185},{"$f":"INDEX('TAG - A1.3.12'!$AS14:$AS$93, MATCH(AK$10,'TAG - A1.3.12'!$C$14:$C$93,0))","v":253.50937134812122},{"$f":"INDEX('TAG - A1.3.12'!$AS14:$AS$93, MATCH(AL$10,'TAG - A1.3.12'!$C$14:$C$93,0))","v":252.76101290127556},{"$f":"INDEX('TAG - A1.3.12'!$AS14:$AS$93, MATCH(AM$10,'TAG - A1.3.12'!$C$14:$C$93,0))","v":252.87244419220409},{"$f":"INDEX('TAG - A1.3.12'!$AS14:$AS$93, MATCH(AN$10,'TAG - A1.3.12'!$C$14:$C$93,0))","v":252.98397537941963},{"$f":"INDEX('TAG - A1.3.12'!$AS14:$AS$93, MATCH(AO$10,'TAG - A1.3.12'!$C$14:$C$93,0))","v":253.09560655247756},{"$f":"INDEX('TAG - A1.3.12'!$AS14:$AS$93, MATCH(AP$10,'TAG - A1.3.12'!$C$14:$C$93,0))","v":253.20733780101338},{"$f":"INDEX('TAG - A1.3.12'!$AS14:$AS$93, MATCH(AQ$10,'TAG - A1.3.12'!$C$14:$C$93,0))","v":253.31916921474308},{"$f":"INDEX('TAG - A1.3.12'!$AS14:$AS$93, MATCH(AR$10,'TAG - A1.3.12'!$C$14:$C$93,0))","v":253.43110088346316},{"$f":"INDEX('TAG - A1.3.12'!$AS14:$AS$93, MATCH(AS$10,'TAG - A1.3.12'!$C$14:$C$93,0))","v":253.54313289705058},{"$f":"INDEX('TAG - A1.3.12'!$AS14:$AS$93, MATCH(AT$10,'TAG - A1.3.12'!$C$14:$C$93,0))","v":253.65526534546277},{"$f":"INDEX('TAG - A1.3.12'!$AS14:$AS$93, MATCH(AU$10,'TAG - A1.3.12'!$C$14:$C$93,0))","v":253.76749831873778},{"$f":"INDEX('TAG - A1.3.12'!$AS14:$AS$93, MATCH(AV$10,'TAG - A1.3.12'!$C$14:$C$93,0))","v":253.87983190699453},{"$f":"INDEX('TAG - A1.3.12'!$AS14:$AS$93, MATCH(AW$10,'TAG - A1.3.12'!$C$14:$C$93,0))","v":253.99226620043277},{"$f":"INDEX('TAG - A1.3.12'!$AS14:$AS$93, MATCH(AX$10,'TAG - A1.3.12'!$C$14:$C$93,0))","v":254.10480128933295},{"$f":"INDEX('TAG - A1.3.12'!$AS14:$AS$93, MATCH(AY$10,'TAG - A1.3.12'!$C$14:$C$93,0))","v":254.21743726405646},{"$f":"INDEX('TAG - A1.3.12'!$AS14:$AS$93, MATCH(AZ$10,'TAG - A1.3.12'!$C$14:$C$93,0))","v":254.33017421504582},{"$f":"INDEX('TAG - A1.3.12'!$AS14:$AS$93, MATCH(BA$10,'TAG - A1.3.12'!$C$14:$C$93,0))","v":254.44301223282449},{"$f":"INDEX('TAG - A1.3.12'!$AS14:$AS$93, MATCH(BB$10,'TAG - A1.3.12'!$C$14:$C$93,0))","v":254.55595140799721},{"$f":"INDEX('TAG - A1.3.12'!$AS14:$AS$93, MATCH(BC$10,'TAG - A1.3.12'!$C$14:$C$93,0))","v":254.66899183124977},{"$f":"INDEX('TAG - A1.3.12'!$AS14:$AS$93, MATCH(BD$10,'TAG - A1.3.12'!$C$14:$C$93,0))","v":254.78213359334964},{"$f":"INDEX('TAG - A1.3.12'!$AS14:$AS$93, MATCH(BE$10,'TAG - A1.3.12'!$C$14:$C$93,0))","v":254.89537678514515},{"$f":"INDEX('TAG - A1.3.12'!$AS14:$AS$93, MATCH(BF$10,'TAG - A1.3.12'!$C$14:$C$93,0))","v":255.00872149756648},{"$f":"INDEX('TAG - A1.3.12'!$AS14:$AS$93, MATCH(BG$10,'TAG - A1.3.12'!$C$14:$C$93,0))","v":255.12216782162494},{"$f":"INDEX('TAG - A1.3.12'!$AS14:$AS$93, MATCH(BH$10,'TAG - A1.3.12'!$C$14:$C$93,0))","v":255.235715848414},{"$f":"INDEX('TAG - A1.3.12'!$AS14:$AS$93, MATCH(BI$10,'TAG - A1.3.12'!$C$14:$C$93,0))","v":255.34936566910827},{"$f":"INDEX('TAG - A1.3.12'!$AS14:$AS$93, MATCH(BJ$10,'TAG - A1.3.12'!$C$14:$C$93,0))","v":255.46311737496427},{"$f":"INDEX('TAG - A1.3.12'!$AS14:$AS$93, MATCH(BK$10,'TAG - A1.3.12'!$C$14:$C$93,0))","v":255.57697105732041},{"$f":"INDEX('TAG - A1.3.12'!$AS14:$AS$93, MATCH(BL$10,'TAG - A1.3.12'!$C$14:$C$93,0))","v":255.69092680759681},{"$f":"INDEX('TAG - A1.3.12'!$AS14:$AS$93, MATCH(BM$10,'TAG - A1.3.12'!$C$14:$C$93,0))","v":255.80498471729572},{"$f":"INDEX('TAG - A1.3.12'!$AS14:$AS$93, MATCH(BN$10,'TAG - A1.3.12'!$C$14:$C$93,0))","v":255.91914487800133},{"$f":"INDEX('TAG - A1.3.12'!$AS14:$AS$93, MATCH(BO$10,'TAG - A1.3.12'!$C$14:$C$93,0))","v":256.03340738138002},{"$f":"INDEX('TAG - A1.3.12'!$AS14:$AS$93, MATCH(BP$10,'TAG - A1.3.12'!$C$14:$C$93,0))","v":256.14777231918026},{"$f":"INDEX('TAG - A1.3.12'!$AS14:$AS$93, MATCH(BQ$10,'TAG - A1.3.12'!$C$14:$C$93,0))","v":256.26223978323281},{"$f":"INDEX('TAG - A1.3.12'!$AS14:$AS$93, MATCH(BR$10,'TAG - A1.3.12'!$C$14:$C$93,0))","v":256.37680986545058},{"$f":"INDEX('TAG - A1.3.12'!$AS14:$AS$93, MATCH(BS$10,'TAG - A1.3.12'!$C$14:$C$93,0))","v":256.49148265782918},{"$f":"INDEX('TAG - A1.3.12'!$AS14:$AS$93, MATCH(BT$10,'TAG - A1.3.12'!$C$14:$C$93,0))","v":256.60625825244659},{"$f":"INDEX('TAG - A1.3.12'!$AS14:$AS$93, MATCH(BU$10,'TAG - A1.3.12'!$C$14:$C$93,0))","v":256.72113674146317},{"$f":"INDEX('TAG - A1.3.12'!$AS14:$AS$93, MATCH(BV$10,'TAG - A1.3.12'!$C$14:$C$93,0))","v":256.83611821712213},{"$f":"INDEX('TAG - A1.3.12'!$AS14:$AS$93, MATCH(BW$10,'TAG - A1.3.12'!$C$14:$C$93,0))","v":256.95120277174908},{"$f":"INDEX('TAG - A1.3.12'!$AS14:$AS$93, MATCH(BX$10,'TAG - A1.3.12'!$C$14:$C$93,0))","v":257.06639049775293},{"$f":"INDEX('TAG - A1.3.12'!$AS14:$AS$93, MATCH(BY$10,'TAG - A1.3.12'!$C$14:$C$93,0))","v":257.18168148762487},{"$f":"IF(BY196=0,0,BY196*BY196/BX196)","v":257.2970241840319},{"$f":"IF(BZ196=0,0,BZ196*BZ196/BY196)","v":257.41241861016374},257.52786478922053,257.64336274441274,257.75891249896137,257.87451407609774]
[null,null,null,"HGV - Rigids",null,null,null,null,null,"b",{"$f":"INDEX('TAG - A1.3.12'!$AT$14:$AT$93, MATCH(K$10,'TAG - A1.3.12'!$C$14:$C$93,0))","v":18.419632223919219},{"$f":"INDEX('TAG - A1.3.12'!$AT$14:$AT$93, MATCH(L$10,'TAG - A1.3.12'!$C$14:$C$93,0))","v":17.166472716919575},{"$f":"INDEX('TAG - A1.3.12'!$AT$14:$AT$93, MATCH(M$10,'TAG - A1.3.12'!$C$14:$C$93,0))","v":16.365958608447325},{"$f":"INDEX('TAG - A1.3.12'!$AT$14:$AT$93, MATCH(N$10,'TAG - A1.3.12'!$C$14:$C$93,0))","v":16.209883723448115},{"$f":"INDEX('TAG - A1.3.12'!$AT$14:$AT$93, MATCH(O$10,'TAG - A1.3.12'!$C$14:$C$93,0))","v":16.274070226990609},{"$f":"INDEX('TAG - A1.3.12'!$AT$14:$AT$93, MATCH(P$10,'TAG - A1.3.12'!$C$14:$C$93,0))","v":16.193384531965513},{"$f":"INDEX('TAG - A1.3.12'!$AT$14:$AT$93, MATCH(Q$10,'TAG - A1.3.12'!$C$14:$C$93,0))","v":16.034372533961779},{"$f":"INDEX('TAG - A1.3.12'!$AT$14:$AT$93, MATCH(R$10,'TAG - A1.3.12'!$C$14:$C$93,0))","v":15.625811168101945},{"$f":"INDEX('TAG - A1.3.12'!$AT$14:$AT$93, MATCH(S$10,'TAG - A1.3.12'!$C$14:$C$93,0))","v":15.41310297419774},{"$f":"INDEX('TAG - A1.3.12'!$AT$14:$AT$93, MATCH(T$10,'TAG - A1.3.12'!$C$14:$C$93,0))","v":15.197502361678819},{"$f":"INDEX('TAG - A1.3.12'!$AT$14:$AT$93, MATCH(U$10,'TAG - A1.3.12'!$C$14:$C$93,0))","v":14.993388938476139},{"$f":"INDEX('TAG - A1.3.12'!$AT$14:$AT$93, MATCH(V$10,'TAG - A1.3.12'!$C$14:$C$93,0))","v":14.802030079408455},{"$f":"INDEX('TAG - A1.3.12'!$AT$14:$AT$93, MATCH(W$10,'TAG - A1.3.12'!$C$14:$C$93,0))","v":14.625213705531866},{"$f":"INDEX('TAG - A1.3.12'!$AT$14:$AT$93, MATCH(X$10,'TAG - A1.3.12'!$C$14:$C$93,0))","v":14.463460087265505},{"$f":"INDEX('TAG - A1.3.12'!$AT$14:$AT$93, MATCH(Y$10,'TAG - A1.3.12'!$C$14:$C$93,0))","v":14.316960834285721},{"$f":"INDEX('TAG - A1.3.12'!$AT$14:$AT$93, MATCH(Z$10,'TAG - A1.3.12'!$C$14:$C$93,0))","v":14.186630669462133},{"$f":"INDEX('TAG - A1.3.12'!$AT$14:$AT$93, MATCH(AA$10,'TAG - A1.3.12'!$C$14:$C$93,0))","v":14.072707409569887},{"$f":"INDEX('TAG - A1.3.12'!$AT$14:$AT$93, MATCH(AB$10,'TAG - A1.3.12'!$C$14:$C$93,0))","v":13.973994883077163},{"$f":"INDEX('TAG - A1.3.12'!$AT$14:$AT$93, MATCH(AC$10,'TAG - A1.3.12'!$C$14:$C$93,0))","v":13.887954407006964},{"$f":"INDEX('TAG - A1.3.12'!$AT$14:$AT$93, MATCH(AD$10,'TAG - A1.3.12'!$C$14:$C$93,0))","v":13.813158503532536},{"$f":"INDEX('TAG - A1.3.12'!$AT$14:$AT$93, MATCH(AE$10,'TAG - A1.3.12'!$C$14:$C$93,0))","v":13.747296461062536},{"$f":"INDEX('TAG - A1.3.12'!$AT$14:$AT$93, MATCH(AF$10,'TAG - A1.3.12'!$C$14:$C$93,0))","v":13.688341673877753},{"$f":"INDEX('TAG - A1.3.12'!$AT$14:$AT$93, MATCH(AG$10,'TAG - A1.3.12'!$C$14:$C$93,0))","v":13.63468577908786},{"$f":"INDEX('TAG - A1.3.12'!$AT$14:$AT$93, MATCH(AH$10,'TAG - A1.3.12'!$C$14:$C$93,0))","v":13.579204118480911},{"$f":"INDEX('TAG - A1.3.12'!$AT$14:$AT$93, MATCH(AI$10,'TAG - A1.3.12'!$C$14:$C$93,0))","v":13.534263630938121},{"$f":"INDEX('TAG - A1.3.12'!$AT$14:$AT$93, MATCH(AJ$10,'TAG - A1.3.12'!$C$14:$C$93,0))","v":13.491490096175591},{"$f":"INDEX('TAG - A1.3.12'!$AT$14:$AT$93, MATCH(AK$10,'TAG - A1.3.12'!$C$14:$C$93,0))","v":13.450498756196305},{"$f":"INDEX('TAG - A1.3.12'!$AT$14:$AT$93, MATCH(AL$10,'TAG - A1.3.12'!$C$14:$C$93,0))","v":13.410792948458475},{"$f":"INDEX('TAG - A1.3.12'!$AT$14:$AT$93, MATCH(AM$10,'TAG - A1.3.12'!$C$14:$C$93,0))","v":13.416705181335963},{"$f":"INDEX('TAG - A1.3.12'!$AT$14:$AT$93, MATCH(AN$10,'TAG - A1.3.12'!$C$14:$C$93,0))","v":13.422622714431258},{"$f":"INDEX('TAG - A1.3.12'!$AT$14:$AT$93, MATCH(AO$10,'TAG - A1.3.12'!$C$14:$C$93,0))","v":13.428545552495917},{"$f":"INDEX('TAG - A1.3.12'!$AT$14:$AT$93, MATCH(AP$10,'TAG - A1.3.12'!$C$14:$C$93,0))","v":13.43447370028575},{"$f":"INDEX('TAG - A1.3.12'!$AT$14:$AT$93, MATCH(AQ$10,'TAG - A1.3.12'!$C$14:$C$93,0))","v":13.440407162560836},{"$f":"INDEX('TAG - A1.3.12'!$AT$14:$AT$93, MATCH(AR$10,'TAG - A1.3.12'!$C$14:$C$93,0))","v":13.446345944085529},{"$f":"INDEX('TAG - A1.3.12'!$AT$14:$AT$93, MATCH(AS$10,'TAG - A1.3.12'!$C$14:$C$93,0))","v":13.452290049628445},{"$f":"INDEX('TAG - A1.3.12'!$AT$14:$AT$93, MATCH(AT$10,'TAG - A1.3.12'!$C$14:$C$93,0))","v":13.458239483962476},{"$f":"INDEX('TAG - A1.3.12'!$AT$14:$AT$93, MATCH(AU$10,'TAG - A1.3.12'!$C$14:$C$93,0))","v":13.464194251864791},{"$f":"INDEX('TAG - A1.3.12'!$AT$14:$AT$93, MATCH(AV$10,'TAG - A1.3.12'!$C$14:$C$93,0))","v":13.470154358116847},{"$f":"INDEX('TAG - A1.3.12'!$AT$14:$AT$93, MATCH(AW$10,'TAG - A1.3.12'!$C$14:$C$93,0))","v":13.476119807504388},{"$f":"INDEX('TAG - A1.3.12'!$AT$14:$AT$93, MATCH(AX$10,'TAG - A1.3.12'!$C$14:$C$93,0))","v":13.482090604817447},{"$f":"INDEX('TAG - A1.3.12'!$AT$14:$AT$93, MATCH(AY$10,'TAG - A1.3.12'!$C$14:$C$93,0))","v":13.488066754850342},{"$f":"INDEX('TAG - A1.3.12'!$AT$14:$AT$93, MATCH(AZ$10,'TAG - A1.3.12'!$C$14:$C$93,0))","v":13.494048262401703},{"$f":"INDEX('TAG - A1.3.12'!$AT$14:$AT$93, MATCH(BA$10,'TAG - A1.3.12'!$C$14:$C$93,0))","v":13.500035132274453},{"$f":"INDEX('TAG - A1.3.12'!$AT$14:$AT$93, MATCH(BB$10,'TAG - A1.3.12'!$C$14:$C$93,0))","v":13.506027369275824},{"$f":"INDEX('TAG - A1.3.12'!$AT$14:$AT$93, MATCH(BC$10,'TAG - A1.3.12'!$C$14:$C$93,0))","v":13.512024978217353},{"$f":"INDEX('TAG - A1.3.12'!$AT$14:$AT$93, MATCH(BD$10,'TAG - A1.3.12'!$C$14:$C$93,0))","v":13.518027963914905},{"$f":"INDEX('TAG - A1.3.12'!$AT$14:$AT$93, MATCH(BE$10,'TAG - A1.3.12'!$C$14:$C$93,0))","v":13.524036331188638},{"$f":"INDEX('TAG - A1.3.12'!$AT$14:$AT$93, MATCH(BF$10,'TAG - A1.3.12'!$C$14:$C$93,0))","v":13.53005008486306},{"$f":"INDEX('TAG - A1.3.12'!$AT$14:$AT$93, MATCH(BG$10,'TAG - A1.3.12'!$C$14:$C$93,0))","v":13.536069229766968},{"$f":"INDEX('TAG - A1.3.12'!$AT$14:$AT$93, MATCH(BH$10,'TAG - A1.3.12'!$C$14:$C$93,0))","v":13.542093770733533},{"$f":"INDEX('TAG - A1.3.12'!$AT$14:$AT$93, MATCH(BI$10,'TAG - A1.3.12'!$C$14:$C$93,0))","v":13.548123712600223},{"$f":"INDEX('TAG - A1.3.12'!$AT$14:$AT$93, MATCH(BJ$10,'TAG - A1.3.12'!$C$14:$C$93,0))","v":13.554159060208853},{"$f":"INDEX('TAG - A1.3.12'!$AT$14:$AT$93, MATCH(BK$10,'TAG - A1.3.12'!$C$14:$C$93,0))","v":13.560199818405584},{"$f":"INDEX('TAG - A1.3.12'!$AT$14:$AT$93, MATCH(BL$10,'TAG - A1.3.12'!$C$14:$C$93,0))","v":13.566245992040916},{"$f":"INDEX('TAG - A1.3.12'!$AT$14:$AT$93, MATCH(BM$10,'TAG - A1.3.12'!$C$14:$C$93,0))","v":13.572297585969697},{"$f":"INDEX('TAG - A1.3.12'!$AT$14:$AT$93, MATCH(BN$10,'TAG - A1.3.12'!$C$14:$C$93,0))","v":13.578354605051132},{"$f":"INDEX('TAG - A1.3.12'!$AT$14:$AT$93, MATCH(BO$10,'TAG - A1.3.12'!$C$14:$C$93,0))","v":13.58441705414878},{"$f":"INDEX('TAG - A1.3.12'!$AT$14:$AT$93, MATCH(BP$10,'TAG - A1.3.12'!$C$14:$C$93,0))","v":13.59048493813056},{"$f":"INDEX('TAG - A1.3.12'!$AT$14:$AT$93, MATCH(BQ$10,'TAG - A1.3.12'!$C$14:$C$93,0))","v":13.596558261868756},{"$f":"INDEX('TAG - A1.3.12'!$AT$14:$AT$93, MATCH(BR$10,'TAG - A1.3.12'!$C$14:$C$93,0))","v":13.602637030240011},{"$f":"INDEX('TAG - A1.3.12'!$AT$14:$AT$93, MATCH(BS$10,'TAG - A1.3.12'!$C$14:$C$93,0))","v":13.608721248125352},{"$f":"INDEX('TAG - A1.3.12'!$AT$14:$AT$93, MATCH(BT$10,'TAG - A1.3.12'!$C$14:$C$93,0))","v":13.614810920410182},{"$f":"INDEX('TAG - A1.3.12'!$AT$14:$AT$93, MATCH(BU$10,'TAG - A1.3.12'!$C$14:$C$93,0))","v":13.620906051984271},{"$f":"INDEX('TAG - A1.3.12'!$AT$14:$AT$93, MATCH(BV$10,'TAG - A1.3.12'!$C$14:$C$93,0))","v":13.627006647741783},{"$f":"INDEX('TAG - A1.3.12'!$AT$14:$AT$93, MATCH(BW$10,'TAG - A1.3.12'!$C$14:$C$93,0))","v":13.633112712581264},{"$f":"INDEX('TAG - A1.3.12'!$AT$14:$AT$93, MATCH(BX$10,'TAG - A1.3.12'!$C$14:$C$93,0))","v":13.639224251405667},{"$f":"INDEX('TAG - A1.3.12'!$AT$14:$AT$93, MATCH(BY$10,'TAG - A1.3.12'!$C$14:$C$93,0))","v":13.645341269122316},{"$f":"IF(BY197=0,0,BY197*BY197/BX197)","v":13.651461030243214},13.657583535998741,13.66370878761983,13.669836786337967,13.675967533385192,13.682101029994094]
[null,null,null,"HGV - Rigids",null,null,null,null,null,"c",{"$f":"INDEX('TAG - A1.3.12'!$AU$14:$AU$93, MATCH(K$10,'TAG - A1.3.12'!$C$14:$C$93,0))","v":-0.13313721866543402},{"$f":"INDEX('TAG - A1.3.12'!$AU$14:$AU$93, MATCH(L$10,'TAG - A1.3.12'!$C$14:$C$93,0))","v":-0.12407937379221107},{"$f":"INDEX('TAG - A1.3.12'!$AU$14:$AU$93, MATCH(M$10,'TAG - A1.3.12'!$C$14:$C$93,0))","v":-0.11829325273350529},{"$f":"INDEX('TAG - A1.3.12'!$AU$14:$AU$93, MATCH(N$10,'TAG - A1.3.12'!$C$14:$C$93,0))","v":-0.1171651424737717},{"$f":"INDEX('TAG - A1.3.12'!$AU$14:$AU$93, MATCH(O$10,'TAG - A1.3.12'!$C$14:$C$93,0))","v":-0.11762908292891334},{"$f":"INDEX('TAG - A1.3.12'!$AU$14:$AU$93, MATCH(P$10,'TAG - A1.3.12'!$C$14:$C$93,0))","v":-0.1170458862129779},{"$f":"INDEX('TAG - A1.3.12'!$AU$14:$AU$93, MATCH(Q$10,'TAG - A1.3.12'!$C$14:$C$93,0))","v":-0.11589654648179913},{"$f":"INDEX('TAG - A1.3.12'!$AU$14:$AU$93, MATCH(R$10,'TAG - A1.3.12'!$C$14:$C$93,0))","v":-0.11294346233530389},{"$f":"INDEX('TAG - A1.3.12'!$AU$14:$AU$93, MATCH(S$10,'TAG - A1.3.12'!$C$14:$C$93,0))","v":-0.11140600615922568},{"$f":"INDEX('TAG - A1.3.12'!$AU$14:$AU$93, MATCH(T$10,'TAG - A1.3.12'!$C$14:$C$93,0))","v":-0.10984764356303561},{"$f":"INDEX('TAG - A1.3.12'!$AU$14:$AU$93, MATCH(U$10,'TAG - A1.3.12'!$C$14:$C$93,0))","v":-0.1083723104441584},{"$f":"INDEX('TAG - A1.3.12'!$AU$14:$AU$93, MATCH(V$10,'TAG - A1.3.12'!$C$14:$C$93,0))","v":-0.10698916739583096},{"$f":"INDEX('TAG - A1.3.12'!$AU$14:$AU$93, MATCH(W$10,'TAG - A1.3.12'!$C$14:$C$93,0))","v":-0.10571113752279868},{"$f":"INDEX('TAG - A1.3.12'!$AU$14:$AU$93, MATCH(X$10,'TAG - A1.3.12'!$C$14:$C$93,0))","v":-0.10454198134295442},{"$f":"INDEX('TAG - A1.3.12'!$AU$14:$AU$93, MATCH(Y$10,'TAG - A1.3.12'!$C$14:$C$93,0))","v":-0.10348308381225541},{"$f":"INDEX('TAG - A1.3.12'!$AU$14:$AU$93, MATCH(Z$10,'TAG - A1.3.12'!$C$14:$C$93,0))","v":-0.10254105655341103},{"$f":"INDEX('TAG - A1.3.12'!$AU$14:$AU$93, MATCH(AA$10,'TAG - A1.3.12'!$C$14:$C$93,0))","v":-0.10171761850758201},{"$f":"INDEX('TAG - A1.3.12'!$AU$14:$AU$93, MATCH(AB$10,'TAG - A1.3.12'!$C$14:$C$93,0))","v":-0.10100412373934159},{"$f":"INDEX('TAG - A1.3.12'!$AU$14:$AU$93, MATCH(AC$10,'TAG - A1.3.12'!$C$14:$C$93,0))","v":-0.10038222263201325},{"$f":"INDEX('TAG - A1.3.12'!$AU$14:$AU$93, MATCH(AD$10,'TAG - A1.3.12'!$C$14:$C$93,0))","v":-9.9841597366801815E-2},{"$f":"INDEX('TAG - A1.3.12'!$AU$14:$AU$93, MATCH(AE$10,'TAG - A1.3.12'!$C$14:$C$93,0))","v":-9.9365546105653735E-2},{"$f":"INDEX('TAG - A1.3.12'!$AU$14:$AU$93, MATCH(AF$10,'TAG - A1.3.12'!$C$14:$C$93,0))","v":-9.893942052956313E-2},{"$f":"INDEX('TAG - A1.3.12'!$AU$14:$AU$93, MATCH(AG$10,'TAG - A1.3.12'!$C$14:$C$93,0))","v":-9.8551595381346821E-2},{"$f":"INDEX('TAG - A1.3.12'!$AU$14:$AU$93, MATCH(AH$10,'TAG - A1.3.12'!$C$14:$C$93,0))","v":-9.8150573586212569E-2},{"$f":"INDEX('TAG - A1.3.12'!$AU$14:$AU$93, MATCH(AI$10,'TAG - A1.3.12'!$C$14:$C$93,0))","v":-9.7825743456914652E-2},{"$f":"INDEX('TAG - A1.3.12'!$AU$14:$AU$93, MATCH(AJ$10,'TAG - A1.3.12'!$C$14:$C$93,0))","v":-9.751657607607099E-2},{"$f":"INDEX('TAG - A1.3.12'!$AU$14:$AU$93, MATCH(AK$10,'TAG - A1.3.12'!$C$14:$C$93,0))","v":-9.7220290410436228E-2},{"$f":"INDEX('TAG - A1.3.12'!$AU$14:$AU$93, MATCH(AL$10,'TAG - A1.3.12'!$C$14:$C$93,0))","v":-9.6933296580004907E-2},{"$f":"INDEX('TAG - A1.3.12'!$AU$14:$AU$93, MATCH(AM$10,'TAG - A1.3.12'!$C$14:$C$93,0))","v":-9.6976030236781655E-2},{"$f":"INDEX('TAG - A1.3.12'!$AU$14:$AU$93, MATCH(AN$10,'TAG - A1.3.12'!$C$14:$C$93,0))","v":-9.7018802203566373E-2},{"$f":"INDEX('TAG - A1.3.12'!$AU$14:$AU$93, MATCH(AO$10,'TAG - A1.3.12'!$C$14:$C$93,0))","v":-9.7061612514703341E-2},{"$f":"INDEX('TAG - A1.3.12'!$AU$14:$AU$93, MATCH(AP$10,'TAG - A1.3.12'!$C$14:$C$93,0))","v":-9.7104461204567574E-2},{"$f":"INDEX('TAG - A1.3.12'!$AU$14:$AU$93, MATCH(AQ$10,'TAG - A1.3.12'!$C$14:$C$93,0))","v":-9.7147348307564968E-2},{"$f":"INDEX('TAG - A1.3.12'!$AU$14:$AU$93, MATCH(AR$10,'TAG - A1.3.12'!$C$14:$C$93,0))","v":-9.7190273858132281E-2},{"$f":"INDEX('TAG - A1.3.12'!$AU$14:$AU$93, MATCH(AS$10,'TAG - A1.3.12'!$C$14:$C$93,0))","v":-9.7233237890737123E-2},{"$f":"INDEX('TAG - A1.3.12'!$AU$14:$AU$93, MATCH(AT$10,'TAG - A1.3.12'!$C$14:$C$93,0))","v":-9.7276240439877981E-2},{"$f":"INDEX('TAG - A1.3.12'!$AU$14:$AU$93, MATCH(AU$10,'TAG - A1.3.12'!$C$14:$C$93,0))","v":-9.7319281540084263E-2},{"$f":"INDEX('TAG - A1.3.12'!$AU$14:$AU$93, MATCH(AV$10,'TAG - A1.3.12'!$C$14:$C$93,0))","v":-9.736236122591635E-2},{"$f":"INDEX('TAG - A1.3.12'!$AU$14:$AU$93, MATCH(AW$10,'TAG - A1.3.12'!$C$14:$C$93,0))","v":-9.7405479531965655E-2},{"$f":"INDEX('TAG - A1.3.12'!$AU$14:$AU$93, MATCH(AX$10,'TAG - A1.3.12'!$C$14:$C$93,0))","v":-9.7448636492854568E-2},{"$f":"INDEX('TAG - A1.3.12'!$AU$14:$AU$93, MATCH(AY$10,'TAG - A1.3.12'!$C$14:$C$93,0))","v":-9.7491832143236423E-2},{"$f":"INDEX('TAG - A1.3.12'!$AU$14:$AU$93, MATCH(AZ$10,'TAG - A1.3.12'!$C$14:$C$93,0))","v":-9.7535066517795796E-2},{"$f":"INDEX('TAG - A1.3.12'!$AU$14:$AU$93, MATCH(BA$10,'TAG - A1.3.12'!$C$14:$C$93,0))","v":-9.757833965124818E-2},{"$f":"INDEX('TAG - A1.3.12'!$AU$14:$AU$93, MATCH(BB$10,'TAG - A1.3.12'!$C$14:$C$93,0))","v":-9.7621651578340338E-2},{"$f":"INDEX('TAG - A1.3.12'!$AU$14:$AU$93, MATCH(BC$10,'TAG - A1.3.12'!$C$14:$C$93,0))","v":-9.7665002333850046E-2},{"$f":"INDEX('TAG - A1.3.12'!$AU$14:$AU$93, MATCH(BD$10,'TAG - A1.3.12'!$C$14:$C$93,0))","v":-9.7708391952586446E-2},{"$f":"INDEX('TAG - A1.3.12'!$AU$14:$AU$93, MATCH(BE$10,'TAG - A1.3.12'!$C$14:$C$93,0))","v":-9.7751820469389655E-2},{"$f":"INDEX('TAG - A1.3.12'!$AU$14:$AU$93, MATCH(BF$10,'TAG - A1.3.12'!$C$14:$C$93,0))","v":-9.7795287919131224E-2},{"$f":"INDEX('TAG - A1.3.12'!$AU$14:$AU$93, MATCH(BG$10,'TAG - A1.3.12'!$C$14:$C$93,0))","v":-9.7838794336713761E-2},{"$f":"INDEX('TAG - A1.3.12'!$AU$14:$AU$93, MATCH(BH$10,'TAG - A1.3.12'!$C$14:$C$93,0))","v":-9.7882339757071446E-2},{"$f":"INDEX('TAG - A1.3.12'!$AU$14:$AU$93, MATCH(BI$10,'TAG - A1.3.12'!$C$14:$C$93,0))","v":-9.7925924215169519E-2},{"$f":"INDEX('TAG - A1.3.12'!$AU$14:$AU$93, MATCH(BJ$10,'TAG - A1.3.12'!$C$14:$C$93,0))","v":-9.7969547746004665E-2},{"$f":"INDEX('TAG - A1.3.12'!$AU$14:$AU$93, MATCH(BK$10,'TAG - A1.3.12'!$C$14:$C$93,0))","v":-9.8013210384604948E-2},{"$f":"INDEX('TAG - A1.3.12'!$AU$14:$AU$93, MATCH(BL$10,'TAG - A1.3.12'!$C$14:$C$93,0))","v":-9.8056912166029825E-2},{"$f":"INDEX('TAG - A1.3.12'!$AU$14:$AU$93, MATCH(BM$10,'TAG - A1.3.12'!$C$14:$C$93,0))","v":-9.8100653125370169E-2},{"$f":"INDEX('TAG - A1.3.12'!$AU$14:$AU$93, MATCH(BN$10,'TAG - A1.3.12'!$C$14:$C$93,0))","v":-9.8144433297748343E-2},{"$f":"INDEX('TAG - A1.3.12'!$AU$14:$AU$93, MATCH(BO$10,'TAG - A1.3.12'!$C$14:$C$93,0))","v":-9.8188252718318186E-2},{"$f":"INDEX('TAG - A1.3.12'!$AU$14:$AU$93, MATCH(BP$10,'TAG - A1.3.12'!$C$14:$C$93,0))","v":-9.8232111422265025E-2},{"$f":"INDEX('TAG - A1.3.12'!$AU$14:$AU$93, MATCH(BQ$10,'TAG - A1.3.12'!$C$14:$C$93,0))","v":-9.8276009444805787E-2},{"$f":"INDEX('TAG - A1.3.12'!$AU$14:$AU$93, MATCH(BR$10,'TAG - A1.3.12'!$C$14:$C$93,0))","v":-9.8319946821188872E-2},{"$f":"INDEX('TAG - A1.3.12'!$AU$14:$AU$93, MATCH(BS$10,'TAG - A1.3.12'!$C$14:$C$93,0))","v":-9.8363923586694366E-2},{"$f":"INDEX('TAG - A1.3.12'!$AU$14:$AU$93, MATCH(BT$10,'TAG - A1.3.12'!$C$14:$C$93,0))","v":-9.8407939776634007E-2},{"$f":"INDEX('TAG - A1.3.12'!$AU$14:$AU$93, MATCH(BU$10,'TAG - A1.3.12'!$C$14:$C$93,0))","v":-9.8451995426351052E-2},{"$f":"INDEX('TAG - A1.3.12'!$AU$14:$AU$93, MATCH(BV$10,'TAG - A1.3.12'!$C$14:$C$93,0))","v":-9.8496090571220607E-2},{"$f":"INDEX('TAG - A1.3.12'!$AU$14:$AU$93, MATCH(BW$10,'TAG - A1.3.12'!$C$14:$C$93,0))","v":-9.8540225246649335E-2},{"$f":"INDEX('TAG - A1.3.12'!$AU$14:$AU$93, MATCH(BX$10,'TAG - A1.3.12'!$C$14:$C$93,0))","v":-9.8584399488075833E-2},{"$f":"INDEX('TAG - A1.3.12'!$AU$14:$AU$93, MATCH(BY$10,'TAG - A1.3.12'!$C$14:$C$93,0))","v":-9.8628613330970283E-2},-9.8672847003208053E-2,-9.8717100513682349E-2,-9.8761373871290359E-2,-9.8805667084933269E-2,-9.884998016351626E-2,-9.8894313115948512E-2]
[null,null,null,"HGV - Rigids",null,null,null,null,null,"d",{"$f":"INDEX('TAG - A1.3.12'!$AV$14:$AV$93, MATCH(K$10,'TAG - A1.3.12'!$C$14:$C$93,0))","v":1.4540720469639837E-3},{"$f":"INDEX('TAG - A1.3.12'!$AV$14:$AV$93, MATCH(L$10,'TAG - A1.3.12'!$C$14:$C$93,0))","v":1.3551458476043074E-3},{"$f":"INDEX('TAG - A1.3.12'!$AV$14:$AV$93, MATCH(M$10,'TAG - A1.3.12'!$C$14:$C$93,0))","v":1.2919521217915713E-3},{"$f":"INDEX('TAG - A1.3.12'!$AV$14:$AV$93, MATCH(N$10,'TAG - A1.3.12'!$C$14:$C$93,0))","v":1.2796313476983855E-3},{"$f":"INDEX('TAG - A1.3.12'!$AV$14:$AV$93, MATCH(O$10,'TAG - A1.3.12'!$C$14:$C$93,0))","v":1.2846983218626306E-3},{"$f":"INDEX('TAG - A1.3.12'!$AV$14:$AV$93, MATCH(P$10,'TAG - A1.3.12'!$C$14:$C$93,0))","v":1.2783288779834256E-3},{"$f":"INDEX('TAG - A1.3.12'!$AV$14:$AV$93, MATCH(Q$10,'TAG - A1.3.12'!$C$14:$C$93,0))","v":1.2657762439992966E-3},{"$f":"INDEX('TAG - A1.3.12'!$AV$14:$AV$93, MATCH(R$10,'TAG - A1.3.12'!$C$14:$C$93,0))","v":1.2335238268856284E-3},{"$f":"INDEX('TAG - A1.3.12'!$AV$14:$AV$93, MATCH(S$10,'TAG - A1.3.12'!$C$14:$C$93,0))","v":1.2167323385889911E-3},{"$f":"INDEX('TAG - A1.3.12'!$AV$14:$AV$93, MATCH(T$10,'TAG - A1.3.12'!$C$14:$C$93,0))","v":1.1997125186403077E-3},{"$f":"INDEX('TAG - A1.3.12'!$AV$14:$AV$93, MATCH(U$10,'TAG - A1.3.12'!$C$14:$C$93,0))","v":1.1835995138049702E-3},{"$f":"INDEX('TAG - A1.3.12'!$AV$14:$AV$93, MATCH(V$10,'TAG - A1.3.12'!$C$14:$C$93,0))","v":1.1684933724593295E-3},{"$f":"INDEX('TAG - A1.3.12'!$AV$14:$AV$93, MATCH(W$10,'TAG - A1.3.12'!$C$14:$C$93,0))","v":1.1545352356423732E-3},{"$f":"INDEX('TAG - A1.3.12'!$AV$14:$AV$93, MATCH(X$10,'TAG - A1.3.12'!$C$14:$C$93,0))","v":1.1417661742432552E-3},{"$f":"INDEX('TAG - A1.3.12'!$AV$14:$AV$93, MATCH(Y$10,'TAG - A1.3.12'!$C$14:$C$93,0))","v":1.1302013142031951E-3},{"$f":"INDEX('TAG - A1.3.12'!$AV$14:$AV$93, MATCH(Z$10,'TAG - A1.3.12'!$C$14:$C$93,0))","v":1.1199128650505514E-3},{"$f":"INDEX('TAG - A1.3.12'!$AV$14:$AV$93, MATCH(AA$10,'TAG - A1.3.12'!$C$14:$C$93,0))","v":1.1109196003808465E-3},{"$f":"INDEX('TAG - A1.3.12'!$AV$14:$AV$93, MATCH(AB$10,'TAG - A1.3.12'!$C$14:$C$93,0))","v":1.1031270927067862E-3},{"$f":"INDEX('TAG - A1.3.12'!$AV$14:$AV$93, MATCH(AC$10,'TAG - A1.3.12'!$C$14:$C$93,0))","v":1.0963349347722382E-3},{"$f":"INDEX('TAG - A1.3.12'!$AV$14:$AV$93, MATCH(AD$10,'TAG - A1.3.12'!$C$14:$C$93,0))","v":1.0904304394409822E-3},{"$f":"INDEX('TAG - A1.3.12'!$AV$14:$AV$93, MATCH(AE$10,'TAG - A1.3.12'!$C$14:$C$93,0))","v":1.0852311958433158E-3},{"$f":"INDEX('TAG - A1.3.12'!$AV$14:$AV$93, MATCH(AF$10,'TAG - A1.3.12'!$C$14:$C$93,0))","v":1.0805772208324152E-3},{"$f":"INDEX('TAG - A1.3.12'!$AV$14:$AV$93, MATCH(AG$10,'TAG - A1.3.12'!$C$14:$C$93,0))","v":1.0763415479470731E-3},{"$f":"INDEX('TAG - A1.3.12'!$AV$14:$AV$93, MATCH(AH$10,'TAG - A1.3.12'!$C$14:$C$93,0))","v":1.0719617465033209E-3},{"$f":"INDEX('TAG - A1.3.12'!$AV$14:$AV$93, MATCH(AI$10,'TAG - A1.3.12'!$C$14:$C$93,0))","v":1.0684140803002983E-3},{"$f":"INDEX('TAG - A1.3.12'!$AV$14:$AV$93, MATCH(AJ$10,'TAG - A1.3.12'!$C$14:$C$93,0))","v":1.0650374764413313E-3},{"$f":"INDEX('TAG - A1.3.12'!$AV$14:$AV$93, MATCH(AK$10,'TAG - A1.3.12'!$C$14:$C$93,0))","v":1.061801561581203E-3},{"$f":"INDEX('TAG - A1.3.12'!$AV$14:$AV$93, MATCH(AL$10,'TAG - A1.3.12'!$C$14:$C$93,0))","v":1.0586671284702788E-3},{"$f":"INDEX('TAG - A1.3.12'!$AV$14:$AV$93, MATCH(AM$10,'TAG - A1.3.12'!$C$14:$C$93,0))","v":1.0591338485685842E-3},{"$f":"INDEX('TAG - A1.3.12'!$AV$14:$AV$93, MATCH(AN$10,'TAG - A1.3.12'!$C$14:$C$93,0))","v":1.059600987073645E-3},{"$f":"INDEX('TAG - A1.3.12'!$AV$14:$AV$93, MATCH(AO$10,'TAG - A1.3.12'!$C$14:$C$93,0))","v":1.0600685443605561E-3},{"$f":"INDEX('TAG - A1.3.12'!$AV$14:$AV$93, MATCH(AP$10,'TAG - A1.3.12'!$C$14:$C$93,0))","v":1.0605365208047478E-3},{"$f":"INDEX('TAG - A1.3.12'!$AV$14:$AV$93, MATCH(AQ$10,'TAG - A1.3.12'!$C$14:$C$93,0))","v":1.0610049167819873E-3},{"$f":"INDEX('TAG - A1.3.12'!$AV$14:$AV$93, MATCH(AR$10,'TAG - A1.3.12'!$C$14:$C$93,0))","v":1.0614737326683798E-3},{"$f":"INDEX('TAG - A1.3.12'!$AV$14:$AV$93, MATCH(AS$10,'TAG - A1.3.12'!$C$14:$C$93,0))","v":1.0619429688403668E-3},{"$f":"INDEX('TAG - A1.3.12'!$AV$14:$AV$93, MATCH(AT$10,'TAG - A1.3.12'!$C$14:$C$93,0))","v":1.0624126256747269E-3},{"$f":"INDEX('TAG - A1.3.12'!$AV$14:$AV$93, MATCH(AU$10,'TAG - A1.3.12'!$C$14:$C$93,0))","v":1.0628827035485766E-3},{"$f":"INDEX('TAG - A1.3.12'!$AV$14:$AV$93, MATCH(AV$10,'TAG - A1.3.12'!$C$14:$C$93,0))","v":1.0633532028393711E-3},{"$f":"INDEX('TAG - A1.3.12'!$AV$14:$AV$93, MATCH(AW$10,'TAG - A1.3.12'!$C$14:$C$93,0))","v":1.0638241239249039E-3},{"$f":"INDEX('TAG - A1.3.12'!$AV$14:$AV$93, MATCH(AX$10,'TAG - A1.3.12'!$C$14:$C$93,0))","v":1.0642954671833068E-3},{"$f":"INDEX('TAG - A1.3.12'!$AV$14:$AV$93, MATCH(AY$10,'TAG - A1.3.12'!$C$14:$C$93,0))","v":1.0647672329930503E-3},{"$f":"INDEX('TAG - A1.3.12'!$AV$14:$AV$93, MATCH(AZ$10,'TAG - A1.3.12'!$C$14:$C$93,0))","v":1.0652394217329454E-3},{"$f":"INDEX('TAG - A1.3.12'!$AV$14:$AV$93, MATCH(BA$10,'TAG - A1.3.12'!$C$14:$C$93,0))","v":1.0657120337821408E-3},{"$f":"INDEX('TAG - A1.3.12'!$AV$14:$AV$93, MATCH(BB$10,'TAG - A1.3.12'!$C$14:$C$93,0))","v":1.0661850695201272E-3},{"$f":"INDEX('TAG - A1.3.12'!$AV$14:$AV$93, MATCH(BC$10,'TAG - A1.3.12'!$C$14:$C$93,0))","v":1.0666585293267335E-3},{"$f":"INDEX('TAG - A1.3.12'!$AV$14:$AV$93, MATCH(BD$10,'TAG - A1.3.12'!$C$14:$C$93,0))","v":1.0671324135821314E-3},{"$f":"INDEX('TAG - A1.3.12'!$AV$14:$AV$93, MATCH(BE$10,'TAG - A1.3.12'!$C$14:$C$93,0))","v":1.0676067226668309E-3},{"$f":"INDEX('TAG - A1.3.12'!$AV$14:$AV$93, MATCH(BF$10,'TAG - A1.3.12'!$C$14:$C$93,0))","v":1.0680814569616855E-3},{"$f":"INDEX('TAG - A1.3.12'!$AV$14:$AV$93, MATCH(BG$10,'TAG - A1.3.12'!$C$14:$C$93,0))","v":1.0685566168478875E-3},{"$f":"INDEX('TAG - A1.3.12'!$AV$14:$AV$93, MATCH(BH$10,'TAG - A1.3.12'!$C$14:$C$93,0))","v":1.069032202706974E-3},{"$f":"INDEX('TAG - A1.3.12'!$AV$14:$AV$93, MATCH(BI$10,'TAG - A1.3.12'!$C$14:$C$93,0))","v":1.0695082149208219E-3},{"$f":"INDEX('TAG - A1.3.12'!$AV$14:$AV$93, MATCH(BJ$10,'TAG - A1.3.12'!$C$14:$C$93,0))","v":1.069984653871651E-3},{"$f":"INDEX('TAG - A1.3.12'!$AV$14:$AV$93, MATCH(BK$10,'TAG - A1.3.12'!$C$14:$C$93,0))","v":1.0704615199420239E-3},{"$f":"INDEX('TAG - A1.3.12'!$AV$14:$AV$93, MATCH(BL$10,'TAG - A1.3.12'!$C$14:$C$93,0))","v":1.070938813514846E-3},{"$f":"INDEX('TAG - A1.3.12'!$AV$14:$AV$93, MATCH(BM$10,'TAG - A1.3.12'!$C$14:$C$93,0))","v":1.0714165349733663E-3},{"$f":"INDEX('TAG - A1.3.12'!$AV$14:$AV$93, MATCH(BN$10,'TAG - A1.3.12'!$C$14:$C$93,0))","v":1.0718946847011772E-3},{"$f":"INDEX('TAG - A1.3.12'!$AV$14:$AV$93, MATCH(BO$10,'TAG - A1.3.12'!$C$14:$C$93,0))","v":1.0723732630822148E-3},{"$f":"INDEX('TAG - A1.3.12'!$AV$14:$AV$93, MATCH(BP$10,'TAG - A1.3.12'!$C$14:$C$93,0))","v":1.0728522705007598E-3},{"$f":"INDEX('TAG - A1.3.12'!$AV$14:$AV$93, MATCH(BQ$10,'TAG - A1.3.12'!$C$14:$C$93,0))","v":1.073331707341437E-3},{"$f":"INDEX('TAG - A1.3.12'!$AV$14:$AV$93, MATCH(BR$10,'TAG - A1.3.12'!$C$14:$C$93,0))","v":1.0738115739892158E-3},{"$f":"INDEX('TAG - A1.3.12'!$AV$14:$AV$93, MATCH(BS$10,'TAG - A1.3.12'!$C$14:$C$93,0))","v":1.0742918708294114E-3},{"$f":"INDEX('TAG - A1.3.12'!$AV$14:$AV$93, MATCH(BT$10,'TAG - A1.3.12'!$C$14:$C$93,0))","v":1.0747725982476843E-3},{"$f":"INDEX('TAG - A1.3.12'!$AV$14:$AV$93, MATCH(BU$10,'TAG - A1.3.12'!$C$14:$C$93,0))","v":1.0752537566300403E-3},{"$f":"INDEX('TAG - A1.3.12'!$AV$14:$AV$93, MATCH(BV$10,'TAG - A1.3.12'!$C$14:$C$93,0))","v":1.0757353463628312E-3},{"$f":"INDEX('TAG - A1.3.12'!$AV$14:$AV$93, MATCH(BW$10,'TAG - A1.3.12'!$C$14:$C$93,0))","v":1.0762173678327555E-3},{"$f":"INDEX('TAG - A1.3.12'!$AV$14:$AV$93, MATCH(BX$10,'TAG - A1.3.12'!$C$14:$C$93,0))","v":1.0766998214268592E-3},{"$f":"INDEX('TAG - A1.3.12'!$AV$14:$AV$93, MATCH(BY$10,'TAG - A1.3.12'!$C$14:$C$93,0))","v":1.0771827075325337E-3},1.0776658102064536E-3,1.0781491295457468E-3,1.0786326656475852E-3,1.079116418609184E-3,1.0796003885278017E-3,1.0800845755007411E-3]
[]
[null,null,null,"HGV - Rigids - Scheme",null,null,null,null,null,"pence per km, 2023 prices",{"$f":"IF($E$146=\"\",0,K196/$E$146+K197+K198*$E$146+K199*($E$146)^2)","v":37.954234046418705},{"$f":"IF($E$146=\"\",0,L196/$E$146+L197+L198*$E$146+L199*($E$146)^2)","v":35.372059296784151},33.722574689216287,33.400977458499831,33.533235776606176,33.366980353264793,33.039331108423447,32.197477508217894,31.759185555539947,31.314933682939134,30.894351526787815,30.500050552934539,30.135714829193187,29.802416389196956,29.500550050736646,29.232000629179819,28.997258153503982,28.793857874482502,28.616568755648039,28.462449433846629,28.326738614852346,28.205260413563273,28.094700747438058,27.980379033173563,27.887777738987875,27.79964151945676,27.715177568573431,27.633362497481695,27.645544840084476,27.657738103953481,27.669942298879437,27.682157434661839,27.694383521108978,27.706620568037962,27.718868585274677,27.731127582653812,27.743397570018871,27.755678557222204,27.767970554124986,27.780273570597231,27.792587616517785,27.80491270177437,27.817248836263566,27.829596029890826,27.84195429257047,27.854323634225743,27.866704064788742,27.8790955942005,27.891498232410925,27.903911989378898,27.91633687507219,27.928772899467507,27.941220072550522,27.953678404315834,27.96614790476702,27.97862858391662,27.991120451786156,28.003623518406126,28.016137793816025,28.02866328806433,28.041200011208552,28.053747973315211,28.066307184459845,28.07887765472703,28.091459394210368,{"$f":"IF($E$146=\"\",0,BX196/$E$146+BX197+BX198*$E$146+BX199*($E$146)^2)","v":28.10405241301255},28.116656721245281,28.129266682349122,{"$f":"IF($E$146=\"\",0,CA196/$E$146+CA197+CA198*$E$146+CA199*($E$146)^2)","v":28.141882298859318},28.15450357331224,28.16713050824541,28.17976310619747,28.192401369708225]
[null,null,null,"HGV - Rigids - Diversion",null,null,null,null,null,"pence per km, 2023 prices",{"$f":"IF($E$147=\"\",0,K196/$E$147+K197+K198*$E$147+K199*($E$147)^2)","v":30.729352017319776},{"$f":"IF($E$147=\"\",0,L196/$E$147+L197+L198*$E$147+L199*($E$147)^2)","v":28.6387142045606},27.303221750909398,27.042843040634423,27.149924964862905,27.015317547350595,26.750038870652109,26.068438615035689,25.713578925765525,25.353893833430167,25.01337274393142,24.694130010393689,24.399148409826008,24.129295905967247,23.884892159987771,23.667463198070788,23.477405768387506,23.312724305791583,23.169183542069629,23.044402025295668,22.934524810428584,22.836170924396331,22.746657145903956,22.654097454235277,22.579123532674618,22.507764724270391,22.439379139771621,22.373138200306862,22.383001539764031,22.392873721539914,22.402754753561506,22.412644643762892,22.422543400085281,22.432451030477011,22.442367542893543,22.452292945297451,22.46222724565845,22.472170451953431,22.482122572166407,22.492083614288561,22.502053586318226,22.512032496260922,22.522020352129328,22.53201716194333,22.542022933729974,22.55203767552354,22.562061395365465,22.572094101304447,22.582135801396337,22.592186503704276,22.602246216298582,22.612314947256831,22.622392704663827,22.632479496611644,22.642575331199584,22.652680216534229,22.662794160729426,22.672917171906285,22.683049258193208,22.69319042772587,22.703340688647256,22.713500049107648,22.723668517264617,22.733846101283078,22.74403280933522,{"$f":"IF($E$147=\"\",0,BX196/$E$147+BX197+BX198*$E$147+BX199*($E$147)^2)","v":22.754228649600623},22.764433630266144,22.774643187735037,{"$f":"IF($E$147=\"\",0,CA196/$E$147+CA197+CA198*$E$147+CA199*($E$147)^2)","v":22.784857324059939},22.795076041294408,22.805299341492915,22.815527226710874,22.8257596990046]
[]
[null,null,null,"HGV - Artics",null,null,null,null,null,"a",{"$f":"INDEX('TAG - A1.3.12'!$BE$14:$BE$93, MATCH(K$10,'TAG - A1.3.12'!$C$14:$C$93,0))","v":705.09515488979218},{"$f":"INDEX('TAG - A1.3.12'!$BE$14:$BE$93, MATCH(L$10,'TAG - A1.3.12'!$C$14:$C$93,0))","v":656.74041904452997},{"$f":"INDEX('TAG - A1.3.12'!$BE$14:$BE$93, MATCH(M$10,'TAG - A1.3.12'!$C$14:$C$93,0))","v":620.46507827856124},{"$f":"INDEX('TAG - A1.3.12'!$BE$14:$BE$93, MATCH(N$10,'TAG - A1.3.12'!$C$14:$C$93,0))","v":609.23939571545122},{"$f":"INDEX('TAG - A1.3.12'!$BE$14:$BE$93, MATCH(O$10,'TAG - A1.3.12'!$C$14:$C$93,0))","v":606.45754831514023},{"$f":"INDEX('TAG - A1.3.12'!$BE$14:$BE$93, MATCH(P$10,'TAG - A1.3.12'!$C$14:$C$93,0))","v":598.73820511709209},{"$f":"INDEX('TAG - A1.3.12'!$BE$14:$BE$93, MATCH(Q$10,'TAG - A1.3.12'!$C$14:$C$93,0))","v":588.47172797240944},{"$f":"INDEX('TAG - A1.3.12'!$BE$14:$BE$93, MATCH(R$10,'TAG - A1.3.12'!$C$14:$C$93,0))","v":563.03262777374994},{"$f":"INDEX('TAG - A1.3.12'!$BE$14:$BE$93, MATCH(S$10,'TAG - A1.3.12'!$C$14:$C$93,0))","v":545.01587130978942},{"$f":"INDEX('TAG - A1.3.12'!$BE$14:$BE$93, MATCH(T$10,'TAG - A1.3.12'!$C$14:$C$93,0))","v":528.5488768964442},{"$f":"INDEX('TAG - A1.3.12'!$BE$14:$BE$93, MATCH(U$10,'TAG - A1.3.12'!$C$14:$C$93,0))","v":514.09414824652413},{"$f":"INDEX('TAG - A1.3.12'!$BE$14:$BE$93, MATCH(V$10,'TAG - A1.3.12'!$C$14:$C$93,0))","v":501.23757699593159},{"$f":"INDEX('TAG - A1.3.12'!$BE$14:$BE$93, MATCH(W$10,'TAG - A1.3.12'!$C$14:$C$93,0))","v":490.25732698255683},{"$f":"INDEX('TAG - A1.3.12'!$BE$14:$BE$93, MATCH(X$10,'TAG - A1.3.12'!$C$14:$C$93,0))","v":481.25348620432442},{"$f":"INDEX('TAG - A1.3.12'!$BE$14:$BE$93, MATCH(Y$10,'TAG - A1.3.12'!$C$14:$C$93,0))","v":474.11562733128972},{"$f":"INDEX('TAG - A1.3.12'!$BE$14:$BE$93, MATCH(Z$10,'TAG - A1.3.12'!$C$14:$C$93,0))","v":468.64845179675041},{"$f":"INDEX('TAG - A1.3.12'!$BE$14:$BE$93, MATCH(AA$10,'TAG - A1.3.12'!$C$14:$C$93,0))","v":464.62279647623387},{"$f":"INDEX('TAG - A1.3.12'!$BE$14:$BE$93, MATCH(AB$10,'TAG - A1.3.12'!$C$14:$C$93,0))","v":461.64616019547225},{"$f":"INDEX('TAG - A1.3.12'!$BE$14:$BE$93, MATCH(AC$10,'TAG - A1.3.12'!$C$14:$C$93,0))","v":459.4464614872328},{"$f":"INDEX('TAG - A1.3.12'!$BE$14:$BE$93, MATCH(AD$10,'TAG - A1.3.12'!$C$14:$C$93,0))","v":457.79727173870975},{"$f":"INDEX('TAG - A1.3.12'!$BE$14:$BE$93, MATCH(AE$10,'TAG - A1.3.12'!$C$14:$C$93,0))","v":456.52823329265954},{"$f":"INDEX('TAG - A1.3.12'!$BE$14:$BE$93, MATCH(AF$10,'TAG - A1.3.12'!$C$14:$C$93,0))","v":455.53641502915031},{"$f":"INDEX('TAG - A1.3.12'!$BE$14:$BE$93, MATCH(AG$10,'TAG - A1.3.12'!$C$14:$C$93,0))","v":454.73336156270454},{"$f":"INDEX('TAG - A1.3.12'!$BE$14:$BE$93, MATCH(AH$10,'TAG - A1.3.12'!$C$14:$C$93,0))","v":453.8458743247665},{"$f":"INDEX('TAG - A1.3.12'!$BE$14:$BE$93, MATCH(AI$10,'TAG - A1.3.12'!$C$14:$C$93,0))","v":453.3604645771178},{"$f":"INDEX('TAG - A1.3.12'!$BE$14:$BE$93, MATCH(AJ$10,'TAG - A1.3.12'!$C$14:$C$93,0))","v":452.94506169666215},{"$f":"INDEX('TAG - A1.3.12'!$BE$14:$BE$93, MATCH(AK$10,'TAG - A1.3.12'!$C$14:$C$93,0))","v":452.5818911159206},{"$f":"INDEX('TAG - A1.3.12'!$BE$14:$BE$93, MATCH(AL$10,'TAG - A1.3.12'!$C$14:$C$93,0))","v":452.25687064393941},{"$f":"INDEX('TAG - A1.3.12'!$BE$14:$BE$93, MATCH(AM$10,'TAG - A1.3.12'!$C$14:$C$93,0))","v":452.45625094531061},{"$f":"INDEX('TAG - A1.3.12'!$BE$14:$BE$93, MATCH(AN$10,'TAG - A1.3.12'!$C$14:$C$93,0))","v":452.65580998778449},{"$f":"INDEX('TAG - A1.3.12'!$BE$14:$BE$93, MATCH(AO$10,'TAG - A1.3.12'!$C$14:$C$93,0))","v":452.85554793159952},{"$f":"INDEX('TAG - A1.3.12'!$BE$14:$BE$93, MATCH(AP$10,'TAG - A1.3.12'!$C$14:$C$93,0))","v":453.0554649371374},{"$f":"INDEX('TAG - A1.3.12'!$BE$14:$BE$93, MATCH(AQ$10,'TAG - A1.3.12'!$C$14:$C$93,0))","v":453.25556116492407},{"$f":"INDEX('TAG - A1.3.12'!$BE$14:$BE$93, MATCH(AR$10,'TAG - A1.3.12'!$C$14:$C$93,0))","v":453.45583677562939},{"$f":"INDEX('TAG - A1.3.12'!$BE$14:$BE$93, MATCH(AS$10,'TAG - A1.3.12'!$C$14:$C$93,0))","v":453.6562919300672},{"$f":"INDEX('TAG - A1.3.12'!$BE$14:$BE$93, MATCH(AT$10,'TAG - A1.3.12'!$C$14:$C$93,0))","v":453.85692678919531},{"$f":"INDEX('TAG - A1.3.12'!$BE$14:$BE$93, MATCH(AU$10,'TAG - A1.3.12'!$C$14:$C$93,0))","v":454.05774151411595},{"$f":"INDEX('TAG - A1.3.12'!$BE$14:$BE$93, MATCH(AV$10,'TAG - A1.3.12'!$C$14:$C$93,0))","v":454.2587362660758},{"$f":"INDEX('TAG - A1.3.12'!$BE$14:$BE$93, MATCH(AW$10,'TAG - A1.3.12'!$C$14:$C$93,0))","v":454.45991120646619},{"$f":"INDEX('TAG - A1.3.12'!$BE$14:$BE$93, MATCH(AX$10,'TAG - A1.3.12'!$C$14:$C$93,0))","v":454.66126649682309},{"$f":"INDEX('TAG - A1.3.12'!$BE$14:$BE$93, MATCH(AY$10,'TAG - A1.3.12'!$C$14:$C$93,0))","v":454.86280229882698},{"$f":"INDEX('TAG - A1.3.12'!$BE$14:$BE$93, MATCH(AZ$10,'TAG - A1.3.12'!$C$14:$C$93,0))","v":455.06451877430379},{"$f":"INDEX('TAG - A1.3.12'!$BE$14:$BE$93, MATCH(BA$10,'TAG - A1.3.12'!$C$14:$C$93,0))","v":455.26641608522402},{"$f":"INDEX('TAG - A1.3.12'!$BE$14:$BE$93, MATCH(BB$10,'TAG - A1.3.12'!$C$14:$C$93,0))","v":455.46849439370379},{"$f":"INDEX('TAG - A1.3.12'!$BE$14:$BE$93, MATCH(BC$10,'TAG - A1.3.12'!$C$14:$C$93,0))","v":455.67075386200418},{"$f":"INDEX('TAG - A1.3.12'!$BE$14:$BE$93, MATCH(BD$10,'TAG - A1.3.12'!$C$14:$C$93,0))","v":455.87319465253233},{"$f":"INDEX('TAG - A1.3.12'!$BE$14:$BE$93, MATCH(BE$10,'TAG - A1.3.12'!$C$14:$C$93,0))","v":456.07581692784009},{"$f":"INDEX('TAG - A1.3.12'!$BE$14:$BE$93, MATCH(BF$10,'TAG - A1.3.12'!$C$14:$C$93,0))","v":456.278620850626},{"$f":"INDEX('TAG - A1.3.12'!$BE$14:$BE$93, MATCH(BG$10,'TAG - A1.3.12'!$C$14:$C$93,0))","v":456.48160658373342},{"$f":"INDEX('TAG - A1.3.12'!$BE$14:$BE$93, MATCH(BH$10,'TAG - A1.3.12'!$C$14:$C$93,0))","v":456.68477429015292},{"$f":"INDEX('TAG - A1.3.12'!$BE$14:$BE$93, MATCH(BI$10,'TAG - A1.3.12'!$C$14:$C$93,0))","v":456.88812413302009},{"$f":"INDEX('TAG - A1.3.12'!$BE$14:$BE$93, MATCH(BJ$10,'TAG - A1.3.12'!$C$14:$C$93,0))","v":457.09165627561737},{"$f":"INDEX('TAG - A1.3.12'!$BE$14:$BE$93, MATCH(BK$10,'TAG - A1.3.12'!$C$14:$C$93,0))","v":457.29537088137334},{"$f":"INDEX('TAG - A1.3.12'!$BE$14:$BE$93, MATCH(BL$10,'TAG - A1.3.12'!$C$14:$C$93,0))","v":457.49926811386314},{"$f":"INDEX('TAG - A1.3.12'!$BE$14:$BE$93, MATCH(BM$10,'TAG - A1.3.12'!$C$14:$C$93,0))","v":457.70334813680864},{"$f":"INDEX('TAG - A1.3.12'!$BE$14:$BE$93, MATCH(BN$10,'TAG - A1.3.12'!$C$14:$C$93,0))","v":457.90761111407841},{"$f":"INDEX('TAG - A1.3.12'!$BE$14:$BE$93, MATCH(BO$10,'TAG - A1.3.12'!$C$14:$C$93,0))","v":458.11205720968798},{"$f":"INDEX('TAG - A1.3.12'!$BE$14:$BE$93, MATCH(BP$10,'TAG - A1.3.12'!$C$14:$C$93,0))","v":458.31668658779984},{"$f":"INDEX('TAG - A1.3.12'!$BE$14:$BE$93, MATCH(BQ$10,'TAG - A1.3.12'!$C$14:$C$93,0))","v":458.52149941272381},{"$f":"INDEX('TAG - A1.3.12'!$BE$14:$BE$93, MATCH(BR$10,'TAG - A1.3.12'!$C$14:$C$93,0))","v":458.72649584891656},{"$f":"INDEX('TAG - A1.3.12'!$BE$14:$BE$93, MATCH(BS$10,'TAG - A1.3.12'!$C$14:$C$93,0))","v":458.93167606098274},{"$f":"INDEX('TAG - A1.3.12'!$BE$14:$BE$93, MATCH(BT$10,'TAG - A1.3.12'!$C$14:$C$93,0))","v":459.13704021367448},{"$f":"INDEX('TAG - A1.3.12'!$BE$14:$BE$93, MATCH(BU$10,'TAG - A1.3.12'!$C$14:$C$93,0))","v":459.34258847189113},{"$f":"INDEX('TAG - A1.3.12'!$BE$14:$BE$93, MATCH(BV$10,'TAG - A1.3.12'!$C$14:$C$93,0))","v":459.54832100068052},{"$f":"INDEX('TAG - A1.3.12'!$BE$14:$BE$93, MATCH(BW$10,'TAG - A1.3.12'!$C$14:$C$93,0))","v":459.75423796523773},{"$f":"INDEX('TAG - A1.3.12'!$BE$14:$BE$93, MATCH(BX$10,'TAG - A1.3.12'!$C$14:$C$93,0))","v":459.96033953090699},{"$f":"INDEX('TAG - A1.3.12'!$BE$14:$BE$93, MATCH(BY$10,'TAG - A1.3.12'!$C$14:$C$93,0))","v":460.1666258631796},{"$f":"IF(BY204=0,0,BY204*BY204/BX204)","v":460.37300471223517},{"$f":"IF(BZ204=0,0,BZ204*BZ204/BY204)","v":460.57947611956627},460.7860401266841,460.99269677511847,461.19944610641784,461.40628816214922]
[null,null,null,"HGV - Artics",null,null,null,null,null,"b",{"$f":"INDEX('TAG - A1.3.12'!$BF$14:$BF$93, MATCH(K$10,'TAG - A1.3.12'!$C$14:$C$93,0))","v":36.616840752690365},{"$f":"INDEX('TAG - A1.3.12'!$BF$14:$BF$93, MATCH(L$10,'TAG - A1.3.12'!$C$14:$C$93,0))","v":34.105693640409996},{"$f":"INDEX('TAG - A1.3.12'!$BF$14:$BF$93, MATCH(M$10,'TAG - A1.3.12'!$C$14:$C$93,0))","v":32.221850918097338},{"$f":"INDEX('TAG - A1.3.12'!$BF$14:$BF$93, MATCH(N$10,'TAG - A1.3.12'!$C$14:$C$93,0))","v":31.638881331789655},{"$f":"INDEX('TAG - A1.3.12'!$BF$14:$BF$93, MATCH(O$10,'TAG - A1.3.12'!$C$14:$C$93,0))","v":31.494415067131531},{"$f":"INDEX('TAG - A1.3.12'!$BF$14:$BF$93, MATCH(P$10,'TAG - A1.3.12'!$C$14:$C$93,0))","v":31.09353589693999},{"$f":"INDEX('TAG - A1.3.12'!$BF$14:$BF$93, MATCH(Q$10,'TAG - A1.3.12'!$C$14:$C$93,0))","v":30.560379547628894},{"$f":"INDEX('TAG - A1.3.12'!$BF$14:$BF$93, MATCH(R$10,'TAG - A1.3.12'!$C$14:$C$93,0))","v":29.239281998729069},{"$f":"INDEX('TAG - A1.3.12'!$BF$14:$BF$93, MATCH(S$10,'TAG - A1.3.12'!$C$14:$C$93,0))","v":28.303639911635219},{"$f":"INDEX('TAG - A1.3.12'!$BF$14:$BF$93, MATCH(T$10,'TAG - A1.3.12'!$C$14:$C$93,0))","v":27.44847971385575},{"$f":"INDEX('TAG - A1.3.12'!$BF$14:$BF$93, MATCH(U$10,'TAG - A1.3.12'!$C$14:$C$93,0))","v":26.697820042707949},{"$f":"INDEX('TAG - A1.3.12'!$BF$14:$BF$93, MATCH(V$10,'TAG - A1.3.12'!$C$14:$C$93,0))","v":26.030155517084957},{"$f":"INDEX('TAG - A1.3.12'!$BF$14:$BF$93, MATCH(W$10,'TAG - A1.3.12'!$C$14:$C$93,0))","v":25.459931677967369},{"$f":"INDEX('TAG - A1.3.12'!$BF$14:$BF$93, MATCH(X$10,'TAG - A1.3.12'!$C$14:$C$93,0))","v":24.992346272433487},{"$f":"INDEX('TAG - A1.3.12'!$BF$14:$BF$93, MATCH(Y$10,'TAG - A1.3.12'!$C$14:$C$93,0))","v":24.621664613572928},{"$f":"INDEX('TAG - A1.3.12'!$BF$14:$BF$93, MATCH(Z$10,'TAG - A1.3.12'!$C$14:$C$93,0))","v":24.337744500766991},{"$f":"INDEX('TAG - A1.3.12'!$BF$14:$BF$93, MATCH(AA$10,'TAG - A1.3.12'!$C$14:$C$93,0))","v":24.128685086907296},{"$f":"INDEX('TAG - A1.3.12'!$BF$14:$BF$93, MATCH(AB$10,'TAG - A1.3.12'!$C$14:$C$93,0))","v":23.974103090540627},{"$f":"INDEX('TAG - A1.3.12'!$BF$14:$BF$93, MATCH(AC$10,'TAG - A1.3.12'!$C$14:$C$93,0))","v":23.859868838971995},{"$f":"INDEX('TAG - A1.3.12'!$BF$14:$BF$93, MATCH(AD$10,'TAG - A1.3.12'!$C$14:$C$93,0))","v":23.77422349312917},{"$f":"INDEX('TAG - A1.3.12'!$BF$14:$BF$93, MATCH(AE$10,'TAG - A1.3.12'!$C$14:$C$93,0))","v":23.708320078014474},{"$f":"INDEX('TAG - A1.3.12'!$BF$14:$BF$93, MATCH(AF$10,'TAG - A1.3.12'!$C$14:$C$93,0))","v":23.656813198186029},{"$f":"INDEX('TAG - A1.3.12'!$BF$14:$BF$93, MATCH(AG$10,'TAG - A1.3.12'!$C$14:$C$93,0))","v":23.615109208741742},{"$f":"INDEX('TAG - A1.3.12'!$BF$14:$BF$93, MATCH(AH$10,'TAG - A1.3.12'!$C$14:$C$93,0))","v":23.569020423935527},{"$f":"INDEX('TAG - A1.3.12'!$BF$14:$BF$93, MATCH(AI$10,'TAG - A1.3.12'!$C$14:$C$93,0))","v":23.543812235641798},{"$f":"INDEX('TAG - A1.3.12'!$BF$14:$BF$93, MATCH(AJ$10,'TAG - A1.3.12'!$C$14:$C$93,0))","v":23.522239628006691},{"$f":"INDEX('TAG - A1.3.12'!$BF$14:$BF$93, MATCH(AK$10,'TAG - A1.3.12'!$C$14:$C$93,0))","v":23.503379536246236},{"$f":"INDEX('TAG - A1.3.12'!$BF$14:$BF$93, MATCH(AL$10,'TAG - A1.3.12'!$C$14:$C$93,0))","v":23.486500647231942},{"$f":"INDEX('TAG - A1.3.12'!$BF$14:$BF$93, MATCH(AM$10,'TAG - A1.3.12'!$C$14:$C$93,0))","v":23.496854819564433},{"$f":"INDEX('TAG - A1.3.12'!$BF$14:$BF$93, MATCH(AN$10,'TAG - A1.3.12'!$C$14:$C$93,0))","v":23.507218274239097},{"$f":"INDEX('TAG - A1.3.12'!$BF$14:$BF$93, MATCH(AO$10,'TAG - A1.3.12'!$C$14:$C$93,0))","v":23.517591019577402},{"$f":"INDEX('TAG - A1.3.12'!$BF$14:$BF$93, MATCH(AP$10,'TAG - A1.3.12'!$C$14:$C$93,0))","v":23.527973063908256},{"$f":"INDEX('TAG - A1.3.12'!$BF$14:$BF$93, MATCH(AQ$10,'TAG - A1.3.12'!$C$14:$C$93,0))","v":23.538364415568051},{"$f":"INDEX('TAG - A1.3.12'!$BF$14:$BF$93, MATCH(AR$10,'TAG - A1.3.12'!$C$14:$C$93,0))","v":23.548765082900662},{"$f":"INDEX('TAG - A1.3.12'!$BF$14:$BF$93, MATCH(AS$10,'TAG - A1.3.12'!$C$14:$C$93,0))","v":23.559175074257436},{"$f":"INDEX('TAG - A1.3.12'!$BF$14:$BF$93, MATCH(AT$10,'TAG - A1.3.12'!$C$14:$C$93,0))","v":23.569594397997196},{"$f":"INDEX('TAG - A1.3.12'!$BF$14:$BF$93, MATCH(AU$10,'TAG - A1.3.12'!$C$14:$C$93,0))","v":23.580023062486266},{"$f":"INDEX('TAG - A1.3.12'!$BF$14:$BF$93, MATCH(AV$10,'TAG - A1.3.12'!$C$14:$C$93,0))","v":23.590461076098471},{"$f":"INDEX('TAG - A1.3.12'!$BF$14:$BF$93, MATCH(AW$10,'TAG - A1.3.12'!$C$14:$C$93,0))","v":23.600908447215151},{"$f":"INDEX('TAG - A1.3.12'!$BF$14:$BF$93, MATCH(AX$10,'TAG - A1.3.12'!$C$14:$C$93,0))","v":23.611365184225154},{"$f":"INDEX('TAG - A1.3.12'!$BF$14:$BF$93, MATCH(AY$10,'TAG - A1.3.12'!$C$14:$C$93,0))","v":23.621831295524835},{"$f":"INDEX('TAG - A1.3.12'!$BF$14:$BF$93, MATCH(AZ$10,'TAG - A1.3.12'!$C$14:$C$93,0))","v":23.6323067895181},{"$f":"INDEX('TAG - A1.3.12'!$BF$14:$BF$93, MATCH(BA$10,'TAG - A1.3.12'!$C$14:$C$93,0))","v":23.642791674616365},{"$f":"INDEX('TAG - A1.3.12'!$BF$14:$BF$93, MATCH(BB$10,'TAG - A1.3.12'!$C$14:$C$93,0))","v":23.653285959238605},{"$f":"INDEX('TAG - A1.3.12'!$BF$14:$BF$93, MATCH(BC$10,'TAG - A1.3.12'!$C$14:$C$93,0))","v":23.663789651811328},{"$f":"INDEX('TAG - A1.3.12'!$BF$14:$BF$93, MATCH(BD$10,'TAG - A1.3.12'!$C$14:$C$93,0))","v":23.674302760768626},{"$f":"INDEX('TAG - A1.3.12'!$BF$14:$BF$93, MATCH(BE$10,'TAG - A1.3.12'!$C$14:$C$93,0))","v":23.684825294552102},{"$f":"INDEX('TAG - A1.3.12'!$BF$14:$BF$93, MATCH(BF$10,'TAG - A1.3.12'!$C$14:$C$93,0))","v":23.69535726161098},{"$f":"INDEX('TAG - A1.3.12'!$BF$14:$BF$93, MATCH(BG$10,'TAG - A1.3.12'!$C$14:$C$93,0))","v":23.705898670402},{"$f":"INDEX('TAG - A1.3.12'!$BF$14:$BF$93, MATCH(BH$10,'TAG - A1.3.12'!$C$14:$C$93,0))","v":23.716449529389557},{"$f":"INDEX('TAG - A1.3.12'!$BF$14:$BF$93, MATCH(BI$10,'TAG - A1.3.12'!$C$14:$C$93,0))","v":23.727009847045569},{"$f":"INDEX('TAG - A1.3.12'!$BF$14:$BF$93, MATCH(BJ$10,'TAG - A1.3.12'!$C$14:$C$93,0))","v":23.737579631849584},{"$f":"INDEX('TAG - A1.3.12'!$BF$14:$BF$93, MATCH(BK$10,'TAG - A1.3.12'!$C$14:$C$93,0))","v":23.748158892288735},{"$f":"INDEX('TAG - A1.3.12'!$BF$14:$BF$93, MATCH(BL$10,'TAG - A1.3.12'!$C$14:$C$93,0))","v":23.758747636857773},{"$f":"INDEX('TAG - A1.3.12'!$BF$14:$BF$93, MATCH(BM$10,'TAG - A1.3.12'!$C$14:$C$93,0))","v":23.769345874059063},{"$f":"INDEX('TAG - A1.3.12'!$BF$14:$BF$93, MATCH(BN$10,'TAG - A1.3.12'!$C$14:$C$93,0))","v":23.779953612402583},{"$f":"INDEX('TAG - A1.3.12'!$BF$14:$BF$93, MATCH(BO$10,'TAG - A1.3.12'!$C$14:$C$93,0))","v":23.790570860405964},{"$f":"INDEX('TAG - A1.3.12'!$BF$14:$BF$93, MATCH(BP$10,'TAG - A1.3.12'!$C$14:$C$93,0))","v":23.801197626594444},{"$f":"INDEX('TAG - A1.3.12'!$BF$14:$BF$93, MATCH(BQ$10,'TAG - A1.3.12'!$C$14:$C$93,0))","v":23.811833919500927},{"$f":"INDEX('TAG - A1.3.12'!$BF$14:$BF$93, MATCH(BR$10,'TAG - A1.3.12'!$C$14:$C$93,0))","v":23.822479747665938},{"$f":"INDEX('TAG - A1.3.12'!$BF$14:$BF$93, MATCH(BS$10,'TAG - A1.3.12'!$C$14:$C$93,0))","v":23.833135119637689},{"$f":"INDEX('TAG - A1.3.12'!$BF$14:$BF$93, MATCH(BT$10,'TAG - A1.3.12'!$C$14:$C$93,0))","v":23.843800043972049},{"$f":"INDEX('TAG - A1.3.12'!$BF$14:$BF$93, MATCH(BU$10,'TAG - A1.3.12'!$C$14:$C$93,0))","v":23.854474529232537},{"$f":"INDEX('TAG - A1.3.12'!$BF$14:$BF$93, MATCH(BV$10,'TAG - A1.3.12'!$C$14:$C$93,0))","v":23.865158583990375},{"$f":"INDEX('TAG - A1.3.12'!$BF$14:$BF$93, MATCH(BW$10,'TAG - A1.3.12'!$C$14:$C$93,0))","v":23.875852216824441},{"$f":"INDEX('TAG - A1.3.12'!$BF$14:$BF$93, MATCH(BX$10,'TAG - A1.3.12'!$C$14:$C$93,0))","v":23.886555436321348},{"$f":"INDEX('TAG - A1.3.12'!$BF$14:$BF$93, MATCH(BY$10,'TAG - A1.3.12'!$C$14:$C$93,0))","v":23.897268251075356},{"$f":"IF(BY205=0,0,BY205*BY205/BX205)","v":23.907985870389833},23.918708296419563,23.929435531320298,23.940167577248754,23.950904436362613,23.961646110820528]
[null,null,null,"HGV - Artics",null,null,null,null,null,"c",{"$f":"INDEX('TAG - A1.3.12'!$BG$14:$BG$93, MATCH(K$10,'TAG - A1.3.12'!$C$14:$C$93,0))","v":-0.24260583276246958},{"$f":"INDEX('TAG - A1.3.12'!$BG$14:$BG$93, MATCH(L$10,'TAG - A1.3.12'!$C$14:$C$93,0))","v":-0.22596816212128823},{"$f":"INDEX('TAG - A1.3.12'!$BG$14:$BG$93, MATCH(M$10,'TAG - A1.3.12'!$C$14:$C$93,0))","v":-0.21348671306545727},{"$f":"INDEX('TAG - A1.3.12'!$BG$14:$BG$93, MATCH(N$10,'TAG - A1.3.12'!$C$14:$C$93,0))","v":-0.20962423287726747},{"$f":"INDEX('TAG - A1.3.12'!$BG$14:$BG$93, MATCH(O$10,'TAG - A1.3.12'!$C$14:$C$93,0))","v":-0.20866706787550821},{"$f":"INDEX('TAG - A1.3.12'!$BG$14:$BG$93, MATCH(P$10,'TAG - A1.3.12'!$C$14:$C$93,0))","v":-0.20601103248517211},{"$f":"INDEX('TAG - A1.3.12'!$BG$14:$BG$93, MATCH(Q$10,'TAG - A1.3.12'!$C$14:$C$93,0))","v":-0.20247859119700029},{"$f":"INDEX('TAG - A1.3.12'!$BG$14:$BG$93, MATCH(R$10,'TAG - A1.3.12'!$C$14:$C$93,0))","v":-0.19372562495460946},{"$f":"INDEX('TAG - A1.3.12'!$BG$14:$BG$93, MATCH(S$10,'TAG - A1.3.12'!$C$14:$C$93,0))","v":-0.18752650392065351},{"$f":"INDEX('TAG - A1.3.12'!$BG$14:$BG$93, MATCH(T$10,'TAG - A1.3.12'!$C$14:$C$93,0))","v":-0.18186061774197318},{"$f":"INDEX('TAG - A1.3.12'!$BG$14:$BG$93, MATCH(U$10,'TAG - A1.3.12'!$C$14:$C$93,0))","v":-0.17688710252611906},{"$f":"INDEX('TAG - A1.3.12'!$BG$14:$BG$93, MATCH(V$10,'TAG - A1.3.12'!$C$14:$C$93,0))","v":-0.17246347381006646},{"$f":"INDEX('TAG - A1.3.12'!$BG$14:$BG$93, MATCH(W$10,'TAG - A1.3.12'!$C$14:$C$93,0))","v":-0.16868544090208079},{"$f":"INDEX('TAG - A1.3.12'!$BG$14:$BG$93, MATCH(X$10,'TAG - A1.3.12'!$C$14:$C$93,0))","v":-0.16558744161089975},{"$f":"INDEX('TAG - A1.3.12'!$BG$14:$BG$93, MATCH(Y$10,'TAG - A1.3.12'!$C$14:$C$93,0))","v":-0.16313148061893371},{"$f":"INDEX('TAG - A1.3.12'!$BG$14:$BG$93, MATCH(Z$10,'TAG - A1.3.12'!$C$14:$C$93,0))","v":-0.16125036051164435},{"$f":"INDEX('TAG - A1.3.12'!$BG$14:$BG$93, MATCH(AA$10,'TAG - A1.3.12'!$C$14:$C$93,0))","v":-0.15986523191633975},{"$f":"INDEX('TAG - A1.3.12'!$BG$14:$BG$93, MATCH(AB$10,'TAG - A1.3.12'!$C$14:$C$93,0))","v":-0.15884104487049625},{"$f":"INDEX('TAG - A1.3.12'!$BG$14:$BG$93, MATCH(AC$10,'TAG - A1.3.12'!$C$14:$C$93,0))","v":-0.15808418285940729},{"$f":"INDEX('TAG - A1.3.12'!$BG$14:$BG$93, MATCH(AD$10,'TAG - A1.3.12'!$C$14:$C$93,0))","v":-0.15751673738832575},{"$f":"INDEX('TAG - A1.3.12'!$BG$14:$BG$93, MATCH(AE$10,'TAG - A1.3.12'!$C$14:$C$93,0))","v":-0.15708009259382316},{"$f":"INDEX('TAG - A1.3.12'!$BG$14:$BG$93, MATCH(AF$10,'TAG - A1.3.12'!$C$14:$C$93,0))","v":-0.15673883241908082},{"$f":"INDEX('TAG - A1.3.12'!$BG$14:$BG$93, MATCH(AG$10,'TAG - A1.3.12'!$C$14:$C$93,0))","v":-0.15646252155007434},{"$f":"INDEX('TAG - A1.3.12'!$BG$14:$BG$93, MATCH(AH$10,'TAG - A1.3.12'!$C$14:$C$93,0))","v":-0.15615715910511516},{"$f":"INDEX('TAG - A1.3.12'!$BG$14:$BG$93, MATCH(AI$10,'TAG - A1.3.12'!$C$14:$C$93,0))","v":-0.1559901415965666},{"$f":"INDEX('TAG - A1.3.12'!$BG$14:$BG$93, MATCH(AJ$10,'TAG - A1.3.12'!$C$14:$C$93,0))","v":-0.15584721172242696},{"$f":"INDEX('TAG - A1.3.12'!$BG$14:$BG$93, MATCH(AK$10,'TAG - A1.3.12'!$C$14:$C$93,0))","v":-0.15572225369291193},{"$f":"INDEX('TAG - A1.3.12'!$BG$14:$BG$93, MATCH(AL$10,'TAG - A1.3.12'!$C$14:$C$93,0))","v":-0.15561042217382826},{"$f":"INDEX('TAG - A1.3.12'!$BG$14:$BG$93, MATCH(AM$10,'TAG - A1.3.12'!$C$14:$C$93,0))","v":-0.15567902401248104},{"$f":"INDEX('TAG - A1.3.12'!$BG$14:$BG$93, MATCH(AN$10,'TAG - A1.3.12'!$C$14:$C$93,0))","v":-0.1557476873515338},{"$f":"INDEX('TAG - A1.3.12'!$BG$14:$BG$93, MATCH(AO$10,'TAG - A1.3.12'!$C$14:$C$93,0))","v":-0.15581641224612064},{"$f":"INDEX('TAG - A1.3.12'!$BG$14:$BG$93, MATCH(AP$10,'TAG - A1.3.12'!$C$14:$C$93,0))","v":-0.15588519875142501},{"$f":"INDEX('TAG - A1.3.12'!$BG$14:$BG$93, MATCH(AQ$10,'TAG - A1.3.12'!$C$14:$C$93,0))","v":-0.15595404692267983},{"$f":"INDEX('TAG - A1.3.12'!$BG$14:$BG$93, MATCH(AR$10,'TAG - A1.3.12'!$C$14:$C$93,0))","v":-0.1560229568151677},{"$f":"INDEX('TAG - A1.3.12'!$BG$14:$BG$93, MATCH(AS$10,'TAG - A1.3.12'!$C$14:$C$93,0))","v":-0.15609192848422068},{"$f":"INDEX('TAG - A1.3.12'!$BG$14:$BG$93, MATCH(AT$10,'TAG - A1.3.12'!$C$14:$C$93,0))","v":-0.15616096198522039},{"$f":"INDEX('TAG - A1.3.12'!$BG$14:$BG$93, MATCH(AU$10,'TAG - A1.3.12'!$C$14:$C$93,0))","v":-0.15623005737359807},{"$f":"INDEX('TAG - A1.3.12'!$BG$14:$BG$93, MATCH(AV$10,'TAG - A1.3.12'!$C$14:$C$93,0))","v":-0.15629921470483477},{"$f":"INDEX('TAG - A1.3.12'!$BG$14:$BG$93, MATCH(AW$10,'TAG - A1.3.12'!$C$14:$C$93,0))","v":-0.15636843403446124},{"$f":"INDEX('TAG - A1.3.12'!$BG$14:$BG$93, MATCH(AX$10,'TAG - A1.3.12'!$C$14:$C$93,0))","v":-0.15643771541805804},{"$f":"INDEX('TAG - A1.3.12'!$BG$14:$BG$93, MATCH(AY$10,'TAG - A1.3.12'!$C$14:$C$93,0))","v":-0.15650705891125544},{"$f":"INDEX('TAG - A1.3.12'!$BG$14:$BG$93, MATCH(AZ$10,'TAG - A1.3.12'!$C$14:$C$93,0))","v":-0.15657646456973368},{"$f":"INDEX('TAG - A1.3.12'!$BG$14:$BG$93, MATCH(BA$10,'TAG - A1.3.12'!$C$14:$C$93,0))","v":-0.1566459324492229},{"$f":"INDEX('TAG - A1.3.12'!$BG$14:$BG$93, MATCH(BB$10,'TAG - A1.3.12'!$C$14:$C$93,0))","v":-0.1567154626055032},{"$f":"INDEX('TAG - A1.3.12'!$BG$14:$BG$93, MATCH(BC$10,'TAG - A1.3.12'!$C$14:$C$93,0))","v":-0.1567850550944046},{"$f":"INDEX('TAG - A1.3.12'!$BG$14:$BG$93, MATCH(BD$10,'TAG - A1.3.12'!$C$14:$C$93,0))","v":-0.15685470997180742},{"$f":"INDEX('TAG - A1.3.12'!$BG$14:$BG$93, MATCH(BE$10,'TAG - A1.3.12'!$C$14:$C$93,0))","v":-0.15692442729364176},{"$f":"INDEX('TAG - A1.3.12'!$BG$14:$BG$93, MATCH(BF$10,'TAG - A1.3.12'!$C$14:$C$93,0))","v":-0.1569942071158881},{"$f":"INDEX('TAG - A1.3.12'!$BG$14:$BG$93, MATCH(BG$10,'TAG - A1.3.12'!$C$14:$C$93,0))","v":-0.15706404949457686},{"$f":"INDEX('TAG - A1.3.12'!$BG$14:$BG$93, MATCH(BH$10,'TAG - A1.3.12'!$C$14:$C$93,0))","v":-0.15713395448578907},{"$f":"INDEX('TAG - A1.3.12'!$BG$14:$BG$93, MATCH(BI$10,'TAG - A1.3.12'!$C$14:$C$93,0))","v":-0.15720392214565565},{"$f":"INDEX('TAG - A1.3.12'!$BG$14:$BG$93, MATCH(BJ$10,'TAG - A1.3.12'!$C$14:$C$93,0))","v":-0.15727395253035806},{"$f":"INDEX('TAG - A1.3.12'!$BG$14:$BG$93, MATCH(BK$10,'TAG - A1.3.12'!$C$14:$C$93,0))","v":-0.15734404569612806},{"$f":"INDEX('TAG - A1.3.12'!$BG$14:$BG$93, MATCH(BL$10,'TAG - A1.3.12'!$C$14:$C$93,0))","v":-0.1574142016992478},{"$f":"INDEX('TAG - A1.3.12'!$BG$14:$BG$93, MATCH(BM$10,'TAG - A1.3.12'!$C$14:$C$93,0))","v":-0.15748442059604992},{"$f":"INDEX('TAG - A1.3.12'!$BG$14:$BG$93, MATCH(BN$10,'TAG - A1.3.12'!$C$14:$C$93,0))","v":-0.15755470244291753},{"$f":"INDEX('TAG - A1.3.12'!$BG$14:$BG$93, MATCH(BO$10,'TAG - A1.3.12'!$C$14:$C$93,0))","v":-0.15762504729628438},{"$f":"INDEX('TAG - A1.3.12'!$BG$14:$BG$93, MATCH(BP$10,'TAG - A1.3.12'!$C$14:$C$93,0))","v":-0.1576954552126347},{"$f":"INDEX('TAG - A1.3.12'!$BG$14:$BG$93, MATCH(BQ$10,'TAG - A1.3.12'!$C$14:$C$93,0))","v":-0.15776592624850344},{"$f":"INDEX('TAG - A1.3.12'!$BG$14:$BG$93, MATCH(BR$10,'TAG - A1.3.12'!$C$14:$C$93,0))","v":-0.15783646046047609},{"$f":"INDEX('TAG - A1.3.12'!$BG$14:$BG$93, MATCH(BS$10,'TAG - A1.3.12'!$C$14:$C$93,0))","v":-0.15790705790518902},{"$f":"INDEX('TAG - A1.3.12'!$BG$14:$BG$93, MATCH(BT$10,'TAG - A1.3.12'!$C$14:$C$93,0))","v":-0.15797771863932941},{"$f":"INDEX('TAG - A1.3.12'!$BG$14:$BG$93, MATCH(BU$10,'TAG - A1.3.12'!$C$14:$C$93,0))","v":-0.15804844271963503},{"$f":"INDEX('TAG - A1.3.12'!$BG$14:$BG$93, MATCH(BV$10,'TAG - A1.3.12'!$C$14:$C$93,0))","v":-0.15811923020289473},{"$f":"INDEX('TAG - A1.3.12'!$BG$14:$BG$93, MATCH(BW$10,'TAG - A1.3.12'!$C$14:$C$93,0))","v":-0.15819008114594815},{"$f":"INDEX('TAG - A1.3.12'!$BG$14:$BG$93, MATCH(BX$10,'TAG - A1.3.12'!$C$14:$C$93,0))","v":-0.15826099560568607},{"$f":"INDEX('TAG - A1.3.12'!$BG$14:$BG$93, MATCH(BY$10,'TAG - A1.3.12'!$C$14:$C$93,0))","v":-0.15833197363904999},-0.15840298350515453,-0.15847402521827625,-0.15854509879269812,-0.15861620424270953,-0.15868734158260628,-0.15875851082669057]
[null,null,null,"HGV - Artics",null,null,null,null,null,"d",{"$f":"INDEX('TAG - A1.3.12'!$BH$14:$BH$93, MATCH(K$10,'TAG - A1.3.12'!$C$14:$C$93,0))","v":1.4460316465965903E-3},{"$f":"INDEX('TAG - A1.3.12'!$BH$14:$BH$93, MATCH(L$10,'TAG - A1.3.12'!$C$14:$C$93,0))","v":1.3468642110949283E-3},{"$f":"INDEX('TAG - A1.3.12'!$BH$14:$BH$93, MATCH(M$10,'TAG - A1.3.12'!$C$14:$C$93,0))","v":1.2724695845329787E-3},{"$f":"INDEX('TAG - A1.3.12'!$BH$14:$BH$93, MATCH(N$10,'TAG - A1.3.12'!$C$14:$C$93,0))","v":1.2494475964674929E-3},{"$f":"INDEX('TAG - A1.3.12'!$BH$14:$BH$93, MATCH(O$10,'TAG - A1.3.12'!$C$14:$C$93,0))","v":1.2437424950369196E-3},{"$f":"INDEX('TAG - A1.3.12'!$BH$14:$BH$93, MATCH(P$10,'TAG - A1.3.12'!$C$14:$C$93,0))","v":1.2279114196453117E-3},{"$f":"INDEX('TAG - A1.3.12'!$BH$14:$BH$93, MATCH(Q$10,'TAG - A1.3.12'!$C$14:$C$93,0))","v":1.2068566006647556E-3},{"$f":"INDEX('TAG - A1.3.12'!$BH$14:$BH$93, MATCH(R$10,'TAG - A1.3.12'!$C$14:$C$93,0))","v":1.1546852820943521E-3},{"$f":"INDEX('TAG - A1.3.12'!$BH$14:$BH$93, MATCH(S$10,'TAG - A1.3.12'!$C$14:$C$93,0))","v":1.1177359429374513E-3},{"$f":"INDEX('TAG - A1.3.12'!$BH$14:$BH$93, MATCH(T$10,'TAG - A1.3.12'!$C$14:$C$93,0))","v":1.0839649052542494E-3},{"$f":"INDEX('TAG - A1.3.12'!$BH$14:$BH$93, MATCH(U$10,'TAG - A1.3.12'!$C$14:$C$93,0))","v":1.0543206864196751E-3},{"$f":"INDEX('TAG - A1.3.12'!$BH$14:$BH$93, MATCH(V$10,'TAG - A1.3.12'!$C$14:$C$93,0))","v":1.0279540197844653E-3},{"$f":"INDEX('TAG - A1.3.12'!$BH$14:$BH$93, MATCH(W$10,'TAG - A1.3.12'!$C$14:$C$93,0))","v":1.0054353726248997E-3},{"$f":"INDEX('TAG - A1.3.12'!$BH$14:$BH$93, MATCH(X$10,'TAG - A1.3.12'!$C$14:$C$93,0))","v":9.869700086014069E-4},{"$f":"INDEX('TAG - A1.3.12'!$BH$14:$BH$93, MATCH(Y$10,'TAG - A1.3.12'!$C$14:$C$93,0))","v":9.7233145982147408E-4},{"$f":"INDEX('TAG - A1.3.12'!$BH$14:$BH$93, MATCH(Z$10,'TAG - A1.3.12'!$C$14:$C$93,0))","v":9.6111920175159977E-4},{"$f":"INDEX('TAG - A1.3.12'!$BH$14:$BH$93, MATCH(AA$10,'TAG - A1.3.12'!$C$14:$C$93,0))","v":9.5286325934242706E-4},{"$f":"INDEX('TAG - A1.3.12'!$BH$14:$BH$93, MATCH(AB$10,'TAG - A1.3.12'!$C$14:$C$93,0))","v":9.4675867865918366E-4},{"$f":"INDEX('TAG - A1.3.12'!$BH$14:$BH$93, MATCH(AC$10,'TAG - A1.3.12'!$C$14:$C$93,0))","v":9.4224746634545119E-4},{"$f":"INDEX('TAG - A1.3.12'!$BH$14:$BH$93, MATCH(AD$10,'TAG - A1.3.12'!$C$14:$C$93,0))","v":9.3886525537567101E-4},{"$f":"INDEX('TAG - A1.3.12'!$BH$14:$BH$93, MATCH(AE$10,'TAG - A1.3.12'!$C$14:$C$93,0))","v":9.3626267082944298E-4},{"$f":"INDEX('TAG - A1.3.12'!$BH$14:$BH$93, MATCH(AF$10,'TAG - A1.3.12'!$C$14:$C$93,0))","v":9.342286182809882E-4},{"$f":"INDEX('TAG - A1.3.12'!$BH$14:$BH$93, MATCH(AG$10,'TAG - A1.3.12'!$C$14:$C$93,0))","v":9.3258169060273584E-4},{"$f":"INDEX('TAG - A1.3.12'!$BH$14:$BH$93, MATCH(AH$10,'TAG - A1.3.12'!$C$14:$C$93,0))","v":9.307616034512227E-4},{"$f":"INDEX('TAG - A1.3.12'!$BH$14:$BH$93, MATCH(AI$10,'TAG - A1.3.12'!$C$14:$C$93,0))","v":9.297661096490051E-4},{"$f":"INDEX('TAG - A1.3.12'!$BH$14:$BH$93, MATCH(AJ$10,'TAG - A1.3.12'!$C$14:$C$93,0))","v":9.2891418816427971E-4},{"$f":"INDEX('TAG - A1.3.12'!$BH$14:$BH$93, MATCH(AK$10,'TAG - A1.3.12'!$C$14:$C$93,0))","v":9.2816938634679024E-4},{"$f":"INDEX('TAG - A1.3.12'!$BH$14:$BH$93, MATCH(AL$10,'TAG - A1.3.12'!$C$14:$C$93,0))","v":9.2750282398989788E-4},{"$f":"INDEX('TAG - A1.3.12'!$BH$14:$BH$93, MATCH(AM$10,'TAG - A1.3.12'!$C$14:$C$93,0))","v":9.2791171947512619E-4},{"$f":"INDEX('TAG - A1.3.12'!$BH$14:$BH$93, MATCH(AN$10,'TAG - A1.3.12'!$C$14:$C$93,0))","v":9.2832098152831224E-4},{"$f":"INDEX('TAG - A1.3.12'!$BH$14:$BH$93, MATCH(AO$10,'TAG - A1.3.12'!$C$14:$C$93,0))","v":9.2873061047807825E-4},{"$f":"INDEX('TAG - A1.3.12'!$BH$14:$BH$93, MATCH(AP$10,'TAG - A1.3.12'!$C$14:$C$93,0))","v":9.2914060665334026E-4},{"$f":"INDEX('TAG - A1.3.12'!$BH$14:$BH$93, MATCH(AQ$10,'TAG - A1.3.12'!$C$14:$C$93,0))","v":9.2955097038330996E-4},{"$f":"INDEX('TAG - A1.3.12'!$BH$14:$BH$93, MATCH(AR$10,'TAG - A1.3.12'!$C$14:$C$93,0))","v":9.2996170199749419E-4},{"$f":"INDEX('TAG - A1.3.12'!$BH$14:$BH$93, MATCH(AS$10,'TAG - A1.3.12'!$C$14:$C$93,0))","v":9.3037280182569509E-4},{"$f":"INDEX('TAG - A1.3.12'!$BH$14:$BH$93, MATCH(AT$10,'TAG - A1.3.12'!$C$14:$C$93,0))","v":9.3078427019801016E-4},{"$f":"INDEX('TAG - A1.3.12'!$BH$14:$BH$93, MATCH(AU$10,'TAG - A1.3.12'!$C$14:$C$93,0))","v":9.3119610744483278E-4},{"$f":"INDEX('TAG - A1.3.12'!$BH$14:$BH$93, MATCH(AV$10,'TAG - A1.3.12'!$C$14:$C$93,0))","v":9.3160831389685296E-4},{"$f":"INDEX('TAG - A1.3.12'!$BH$14:$BH$93, MATCH(AW$10,'TAG - A1.3.12'!$C$14:$C$93,0))","v":9.3202088988505723E-4},{"$f":"INDEX('TAG - A1.3.12'!$BH$14:$BH$93, MATCH(AX$10,'TAG - A1.3.12'!$C$14:$C$93,0))","v":9.3243383574072866E-4},{"$f":"INDEX('TAG - A1.3.12'!$BH$14:$BH$93, MATCH(AY$10,'TAG - A1.3.12'!$C$14:$C$93,0))","v":9.3284715179544665E-4},{"$f":"INDEX('TAG - A1.3.12'!$BH$14:$BH$93, MATCH(AZ$10,'TAG - A1.3.12'!$C$14:$C$93,0))","v":9.3326083838108915E-4},{"$f":"INDEX('TAG - A1.3.12'!$BH$14:$BH$93, MATCH(BA$10,'TAG - A1.3.12'!$C$14:$C$93,0))","v":9.3367489582983024E-4},{"$f":"INDEX('TAG - A1.3.12'!$BH$14:$BH$93, MATCH(BB$10,'TAG - A1.3.12'!$C$14:$C$93,0))","v":9.3408932447414301E-4},{"$f":"INDEX('TAG - A1.3.12'!$BH$14:$BH$93, MATCH(BC$10,'TAG - A1.3.12'!$C$14:$C$93,0))","v":9.345041246467975E-4},{"$f":"INDEX('TAG - A1.3.12'!$BH$14:$BH$93, MATCH(BD$10,'TAG - A1.3.12'!$C$14:$C$93,0))","v":9.3491929668086356E-4},{"$f":"INDEX('TAG - A1.3.12'!$BH$14:$BH$93, MATCH(BE$10,'TAG - A1.3.12'!$C$14:$C$93,0))","v":9.3533484090970787E-4},{"$f":"INDEX('TAG - A1.3.12'!$BH$14:$BH$93, MATCH(BF$10,'TAG - A1.3.12'!$C$14:$C$93,0))","v":9.3575075766699745E-4},{"$f":"INDEX('TAG - A1.3.12'!$BH$14:$BH$93, MATCH(BG$10,'TAG - A1.3.12'!$C$14:$C$93,0))","v":9.361670472866967E-4},{"$f":"INDEX('TAG - A1.3.12'!$BH$14:$BH$93, MATCH(BH$10,'TAG - A1.3.12'!$C$14:$C$93,0))","v":9.365837101030721E-4},{"$f":"INDEX('TAG - A1.3.12'!$BH$14:$BH$93, MATCH(BI$10,'TAG - A1.3.12'!$C$14:$C$93,0))","v":9.3700074645068729E-4},{"$f":"INDEX('TAG - A1.3.12'!$BH$14:$BH$93, MATCH(BJ$10,'TAG - A1.3.12'!$C$14:$C$93,0))","v":9.3741815666440701E-4},{"$f":"INDEX('TAG - A1.3.12'!$BH$14:$BH$93, MATCH(BK$10,'TAG - A1.3.12'!$C$14:$C$93,0))","v":9.3783594107939587E-4},{"$f":"INDEX('TAG - A1.3.12'!$BH$14:$BH$93, MATCH(BL$10,'TAG - A1.3.12'!$C$14:$C$93,0))","v":9.3825410003111893E-4},{"$f":"INDEX('TAG - A1.3.12'!$BH$14:$BH$93, MATCH(BM$10,'TAG - A1.3.12'!$C$14:$C$93,0))","v":9.3867263385534222E-4},{"$f":"INDEX('TAG - A1.3.12'!$BH$14:$BH$93, MATCH(BN$10,'TAG - A1.3.12'!$C$14:$C$93,0))","v":9.3909154288813264E-4},{"$f":"INDEX('TAG - A1.3.12'!$BH$14:$BH$93, MATCH(BO$10,'TAG - A1.3.12'!$C$14:$C$93,0))","v":9.3951082746585859E-4},{"$f":"INDEX('TAG - A1.3.12'!$BH$14:$BH$93, MATCH(BP$10,'TAG - A1.3.12'!$C$14:$C$93,0))","v":9.3993048792518957E-4},{"$f":"INDEX('TAG - A1.3.12'!$BH$14:$BH$93, MATCH(BQ$10,'TAG - A1.3.12'!$C$14:$C$93,0))","v":9.4035052460309757E-4},{"$f":"INDEX('TAG - A1.3.12'!$BH$14:$BH$93, MATCH(BR$10,'TAG - A1.3.12'!$C$14:$C$93,0))","v":9.4077093783685544E-4},{"$f":"INDEX('TAG - A1.3.12'!$BH$14:$BH$93, MATCH(BS$10,'TAG - A1.3.12'!$C$14:$C$93,0))","v":9.4119172796403971E-4},{"$f":"INDEX('TAG - A1.3.12'!$BH$14:$BH$93, MATCH(BT$10,'TAG - A1.3.12'!$C$14:$C$93,0))","v":9.4161289532252931E-4},{"$f":"INDEX('TAG - A1.3.12'!$BH$14:$BH$93, MATCH(BU$10,'TAG - A1.3.12'!$C$14:$C$93,0))","v":9.4203444025050512E-4},{"$f":"INDEX('TAG - A1.3.12'!$BH$14:$BH$93, MATCH(BV$10,'TAG - A1.3.12'!$C$14:$C$93,0))","v":9.4245636308645233E-4},{"$f":"INDEX('TAG - A1.3.12'!$BH$14:$BH$93, MATCH(BW$10,'TAG - A1.3.12'!$C$14:$C$93,0))","v":9.4287866416915855E-4},{"$f":"INDEX('TAG - A1.3.12'!$BH$14:$BH$93, MATCH(BX$10,'TAG - A1.3.12'!$C$14:$C$93,0))","v":9.4330134383771678E-4},{"$f":"INDEX('TAG - A1.3.12'!$BH$14:$BH$93, MATCH(BY$10,'TAG - A1.3.12'!$C$14:$C$93,0))","v":9.4372440243152198E-4},9.4414765076169822E-4,9.4457108891333986E-4,9.4499471697157933E-4,9.4541853502158742E-4,9.4584254314857301E-4,9.4626674143778321E-4]
[]
[null,null,null,"HGV - Artics - Scheme",null,null,null,null,null,"pence per km, 2023 prices",{"$f":"IF($E$146=\"\",0,K204/$E$146+K205+K206*$E$146+K207*($E$146)^2)","v":76.344671010290895},{"$f":"IF($E$146=\"\",0,L204/$E$146+L205+L206*$E$146+L207*($E$146)^2)","v":71.10902816932844},67.181290278409378,65.965821648107209,65.664615175328692,64.82879789196835,63.7171878991753,60.962751534103354,59.011974627788362,57.228999291343676,55.663903437729907,54.271849194213985,53.082954944879845,52.108057787700197,51.335201126296965,50.743238871776654,50.307358226569697,49.985060851533049,49.74688693551947,49.568319762122542,49.430913736863069,49.323523920744648,49.236572745042608,49.140479443682736,49.087921363780424,49.042943326383373,49.00362077776699,48.96842895885726,48.990017000426626,49.011624395313881,49.033251160868964,49.054897314457328,49.076562873460006,49.098247855273677,49.119952277310524,49.141676156998408,49.163419511780766,49.185182359116695,49.206964716480954,49.228766601363972,49.250588031271811,49.272429023726282,49.294289596264861,49.316169766440773,49.338069551822962,49.359988969996181,49.381928038560822,49.403886775133202,49.425865197345296,49.447863322845016,49.469881169295988,49.491918754377728,49.513976095785594,49.536053211230772,49.558150118440395,49.58026683515741,49.602403379140746,49.624559768165184,49.646736020021514,49.668932152516369,49.69114818347245,49.713384130728407,49.735640012138823,49.757915845574388,49.780211648921679,{"$f":"IF($E$146=\"\",0,BX204/$E$146+BX205+BX206*$E$146+BX207*($E$146)^2)","v":49.802527440083487},49.824863236978501,49.847209051192891,{"$f":"IF($E$146=\"\",0,CA204/$E$146+CA205+CA206*$E$146+CA207*($E$146)^2)","v":49.869564887219283},49.891930749552351,49.914306642688757,49.936692571127203,49.959088539368359]
[null,null,null,"HGV - Artics - Diversion",null,null,null,null,null,"pence per km, 2023 prices",{"$f":"IF($E$147=\"\",0,K204/$E$147+K205+K206*$E$147+K207*($E$147)^2)","v":61.430154449087482},{"$f":"IF($E$147=\"\",0,L204/$E$147+L205+L206*$E$147+L207*($E$147)^2)","v":57.217334561275926},54.056910368182379,53.078892849743951,52.836529369765692,52.163995398126467,51.269546936422792,49.053210824322129,47.4835331367401,46.048875696380634,44.789533312127503,43.669427533308131,42.712792886858701,41.928349360611143,41.306476170921108,40.830158279416779,40.479430258690591,40.220096145843769,40.028451329606533,39.884768622010206,39.774205916817763,39.687795524276751,39.617830927112053,39.540510188598901,39.498219732392592,39.462028499297283,39.430387911907623,39.40207108451991,39.419441736725368,39.436827961429749,39.454229772593543,39.471647184189727,39.489080210203838,39.506528864633935,39.523993161490665,39.541473114797164,39.558968738589172,39.576480046915037,39.594007053835682,39.611549773424642,39.629108219768042,39.646682406964665,39.664272349125916,39.681878060375851,39.699499554851194,39.717136846701372,39.734789950088441,39.752458879187188,39.770143648185062,39.787844271282331,39.805560762691897,39.823293136639435,39.841041407363377,39.858805589114915,39.876585696158017,39.894381742769447,39.91219374323876,39.930021711868328,39.947865662973335,39.965725610881783,39.983601569934564,40.001493554485407,40.019401578900869,40.037325657560444,40.055265804856475,{"$f":"IF($E$147=\"\",0,BX204/$E$147+BX205+BX206*$E$147+BX207*($E$147)^2)","v":40.073222035194263},40.091194362991956,40.109174751148913,{"$f":"IF($E$147=\"\",0,CA204/$E$147+CA205+CA206*$E$147+CA207*($E$147)^2)","v":40.127163203280105},40.145159723002116,40.163164313933173,40.181176979693099,40.199197723903332]
[]
[null,null,null,"PSV",null,null,null,null,null,"a",{"$f":"INDEX('TAG - A1.3.12'!$BQ$14:$BQ$93, MATCH(K$10,'TAG - A1.3.12'!$C$14:$C$93,0))","v":412.30470663417793},{"$f":"INDEX('TAG - A1.3.12'!$BQ$14:$BQ$93, MATCH(L$10,'TAG - A1.3.12'!$C$14:$C$93,0))","v":377.03759810540652},{"$f":"INDEX('TAG - A1.3.12'!$BQ$14:$BQ$93, MATCH(M$10,'TAG - A1.3.12'!$C$14:$C$93,0))","v":354.61356060474856},{"$f":"INDEX('TAG - A1.3.12'!$BQ$14:$BQ$93, MATCH(N$10,'TAG - A1.3.12'!$C$14:$C$93,0))","v":346.55465712713959},{"$f":"INDEX('TAG - A1.3.12'!$BQ$14:$BQ$93, MATCH(O$10,'TAG - A1.3.12'!$C$14:$C$93,0))","v":348.400835321138},{"$f":"INDEX('TAG - A1.3.12'!$BQ$14:$BQ$93, MATCH(P$10,'TAG - A1.3.12'!$C$14:$C$93,0))","v":347.1082755418156},{"$f":"INDEX('TAG - A1.3.12'!$BQ$14:$BQ$93, MATCH(Q$10,'TAG - A1.3.12'!$C$14:$C$93,0))","v":344.12640318334928},{"$f":"INDEX('TAG - A1.3.12'!$BQ$14:$BQ$93, MATCH(R$10,'TAG - A1.3.12'!$C$14:$C$93,0))","v":337.93352645463858},{"$f":"INDEX('TAG - A1.3.12'!$BQ$14:$BQ$93, MATCH(S$10,'TAG - A1.3.12'!$C$14:$C$93,0))","v":335.80152488238855},{"$f":"INDEX('TAG - A1.3.12'!$BQ$14:$BQ$93, MATCH(T$10,'TAG - A1.3.12'!$C$14:$C$93,0))","v":334.45795014241617},{"$f":"INDEX('TAG - A1.3.12'!$BQ$14:$BQ$93, MATCH(U$10,'TAG - A1.3.12'!$C$14:$C$93,0))","v":333.08190548849933},{"$f":"INDEX('TAG - A1.3.12'!$BQ$14:$BQ$93, MATCH(V$10,'TAG - A1.3.12'!$C$14:$C$93,0))","v":330.47802841746488},{"$f":"INDEX('TAG - A1.3.12'!$BQ$14:$BQ$93, MATCH(W$10,'TAG - A1.3.12'!$C$14:$C$93,0))","v":329.46893480316254},{"$f":"INDEX('TAG - A1.3.12'!$BQ$14:$BQ$93, MATCH(X$10,'TAG - A1.3.12'!$C$14:$C$93,0))","v":329.52986967835341},{"$f":"INDEX('TAG - A1.3.12'!$BQ$14:$BQ$93, MATCH(Y$10,'TAG - A1.3.12'!$C$14:$C$93,0))","v":328.59431179310633},{"$f":"INDEX('TAG - A1.3.12'!$BQ$14:$BQ$93, MATCH(Z$10,'TAG - A1.3.12'!$C$14:$C$93,0))","v":328.76300363628769},{"$f":"INDEX('TAG - A1.3.12'!$BQ$14:$BQ$93, MATCH(AA$10,'TAG - A1.3.12'!$C$14:$C$93,0))","v":329.95790186077107},{"$f":"INDEX('TAG - A1.3.12'!$BQ$14:$BQ$93, MATCH(AB$10,'TAG - A1.3.12'!$C$14:$C$93,0))","v":330.53773845994778},{"$f":"INDEX('TAG - A1.3.12'!$BQ$14:$BQ$93, MATCH(AC$10,'TAG - A1.3.12'!$C$14:$C$93,0))","v":330.6411122046452},{"$f":"INDEX('TAG - A1.3.12'!$BQ$14:$BQ$93, MATCH(AD$10,'TAG - A1.3.12'!$C$14:$C$93,0))","v":330.69885131734054},{"$f":"INDEX('TAG - A1.3.12'!$BQ$14:$BQ$93, MATCH(AE$10,'TAG - A1.3.12'!$C$14:$C$93,0))","v":330.89155762036182},{"$f":"INDEX('TAG - A1.3.12'!$BQ$14:$BQ$93, MATCH(AF$10,'TAG - A1.3.12'!$C$14:$C$93,0))","v":330.86136819831552},{"$f":"INDEX('TAG - A1.3.12'!$BQ$14:$BQ$93, MATCH(AG$10,'TAG - A1.3.12'!$C$14:$C$93,0))","v":330.45472204488982},{"$f":"INDEX('TAG - A1.3.12'!$BQ$14:$BQ$93, MATCH(AH$10,'TAG - A1.3.12'!$C$14:$C$93,0))","v":330.04075762157856},{"$f":"INDEX('TAG - A1.3.12'!$BQ$14:$BQ$93, MATCH(AI$10,'TAG - A1.3.12'!$C$14:$C$93,0))","v":329.56457079476581},{"$f":"INDEX('TAG - A1.3.12'!$BQ$14:$BQ$93, MATCH(AJ$10,'TAG - A1.3.12'!$C$14:$C$93,0))","v":328.95689999940993},{"$f":"INDEX('TAG - A1.3.12'!$BQ$14:$BQ$93, MATCH(AK$10,'TAG - A1.3.12'!$C$14:$C$93,0))","v":328.42439075492894},{"$f":"INDEX('TAG - A1.3.12'!$BQ$14:$BQ$93, MATCH(AL$10,'TAG - A1.3.12'!$C$14:$C$93,0))","v":327.81499214055032},{"$f":"INDEX('TAG - A1.3.12'!$BQ$14:$BQ$93, MATCH(AM$10,'TAG - A1.3.12'!$C$14:$C$93,0))","v":327.95951145284715},{"$f":"INDEX('TAG - A1.3.12'!$BQ$14:$BQ$93, MATCH(AN$10,'TAG - A1.3.12'!$C$14:$C$93,0))","v":328.10416032428833},{"$f":"INDEX('TAG - A1.3.12'!$BQ$14:$BQ$93, MATCH(AO$10,'TAG - A1.3.12'!$C$14:$C$93,0))","v":328.24893887102144},{"$f":"INDEX('TAG - A1.3.12'!$BQ$14:$BQ$93, MATCH(AP$10,'TAG - A1.3.12'!$C$14:$C$93,0))","v":328.39384720929797},{"$f":"INDEX('TAG - A1.3.12'!$BQ$14:$BQ$93, MATCH(AQ$10,'TAG - A1.3.12'!$C$14:$C$93,0))","v":328.53888545547397},{"$f":"INDEX('TAG - A1.3.12'!$BQ$14:$BQ$93, MATCH(AR$10,'TAG - A1.3.12'!$C$14:$C$93,0))","v":328.68405372600972},{"$f":"INDEX('TAG - A1.3.12'!$BQ$14:$BQ$93, MATCH(AS$10,'TAG - A1.3.12'!$C$14:$C$93,0))","v":328.82935213747004},{"$f":"INDEX('TAG - A1.3.12'!$BQ$14:$BQ$93, MATCH(AT$10,'TAG - A1.3.12'!$C$14:$C$93,0))","v":328.97478080652388},{"$f":"INDEX('TAG - A1.3.12'!$BQ$14:$BQ$93, MATCH(AU$10,'TAG - A1.3.12'!$C$14:$C$93,0))","v":329.12033984994503},{"$f":"INDEX('TAG - A1.3.12'!$BQ$14:$BQ$93, MATCH(AV$10,'TAG - A1.3.12'!$C$14:$C$93,0))","v":329.26602938461184},{"$f":"INDEX('TAG - A1.3.12'!$BQ$14:$BQ$93, MATCH(AW$10,'TAG - A1.3.12'!$C$14:$C$93,0))","v":329.41184952750774},{"$f":"INDEX('TAG - A1.3.12'!$BQ$14:$BQ$93, MATCH(AX$10,'TAG - A1.3.12'!$C$14:$C$93,0))","v":329.55780039572085},{"$f":"INDEX('TAG - A1.3.12'!$BQ$14:$BQ$93, MATCH(AY$10,'TAG - A1.3.12'!$C$14:$C$93,0))","v":329.70388210644393},{"$f":"INDEX('TAG - A1.3.12'!$BQ$14:$BQ$93, MATCH(AZ$10,'TAG - A1.3.12'!$C$14:$C$93,0))","v":329.85009477697537},{"$f":"INDEX('TAG - A1.3.12'!$BQ$14:$BQ$93, MATCH(BA$10,'TAG - A1.3.12'!$C$14:$C$93,0))","v":329.99643852471831},{"$f":"INDEX('TAG - A1.3.12'!$BQ$14:$BQ$93, MATCH(BB$10,'TAG - A1.3.12'!$C$14:$C$93,0))","v":330.1429134671813},{"$f":"INDEX('TAG - A1.3.12'!$BQ$14:$BQ$93, MATCH(BC$10,'TAG - A1.3.12'!$C$14:$C$93,0))","v":330.28951972197814},{"$f":"INDEX('TAG - A1.3.12'!$BQ$14:$BQ$93, MATCH(BD$10,'TAG - A1.3.12'!$C$14:$C$93,0))","v":330.43625740682836},{"$f":"INDEX('TAG - A1.3.12'!$BQ$14:$BQ$93, MATCH(BE$10,'TAG - A1.3.12'!$C$14:$C$93,0))","v":330.58312663955655},{"$f":"INDEX('TAG - A1.3.12'!$BQ$14:$BQ$93, MATCH(BF$10,'TAG - A1.3.12'!$C$14:$C$93,0))","v":330.73012753809348},{"$f":"INDEX('TAG - A1.3.12'!$BQ$14:$BQ$93, MATCH(BG$10,'TAG - A1.3.12'!$C$14:$C$93,0))","v":330.8772602204748},{"$f":"INDEX('TAG - A1.3.12'!$BQ$14:$BQ$93, MATCH(BH$10,'TAG - A1.3.12'!$C$14:$C$93,0))","v":331.02452480484317},{"$f":"INDEX('TAG - A1.3.12'!$BQ$14:$BQ$93, MATCH(BI$10,'TAG - A1.3.12'!$C$14:$C$93,0))","v":331.17192140944616},{"$f":"INDEX('TAG - A1.3.12'!$BQ$14:$BQ$93, MATCH(BJ$10,'TAG - A1.3.12'!$C$14:$C$93,0))","v":331.31945015263778},{"$f":"INDEX('TAG - A1.3.12'!$BQ$14:$BQ$93, MATCH(BK$10,'TAG - A1.3.12'!$C$14:$C$93,0))","v":331.46711115287803},{"$f":"INDEX('TAG - A1.3.12'!$BQ$14:$BQ$93, MATCH(BL$10,'TAG - A1.3.12'!$C$14:$C$93,0))","v":331.61490452873312},{"$f":"INDEX('TAG - A1.3.12'!$BQ$14:$BQ$93, MATCH(BM$10,'TAG - A1.3.12'!$C$14:$C$93,0))","v":331.76283039887562},{"$f":"INDEX('TAG - A1.3.12'!$BQ$14:$BQ$93, MATCH(BN$10,'TAG - A1.3.12'!$C$14:$C$93,0))","v":331.91088888208441},{"$f":"INDEX('TAG - A1.3.12'!$BQ$14:$BQ$93, MATCH(BO$10,'TAG - A1.3.12'!$C$14:$C$93,0))","v":332.05908009724493},{"$f":"INDEX('TAG - A1.3.12'!$BQ$14:$BQ$93, MATCH(BP$10,'TAG - A1.3.12'!$C$14:$C$93,0))","v":332.20740416334911},{"$f":"INDEX('TAG - A1.3.12'!$BQ$14:$BQ$93, MATCH(BQ$10,'TAG - A1.3.12'!$C$14:$C$93,0))","v":332.35586119949568},{"$f":"INDEX('TAG - A1.3.12'!$BQ$14:$BQ$93, MATCH(BR$10,'TAG - A1.3.12'!$C$14:$C$93,0))","v":332.50445132488989},{"$f":"INDEX('TAG - A1.3.12'!$BQ$14:$BQ$93, MATCH(BS$10,'TAG - A1.3.12'!$C$14:$C$93,0))","v":332.65317465884414},{"$f":"INDEX('TAG - A1.3.12'!$BQ$14:$BQ$93, MATCH(BT$10,'TAG - A1.3.12'!$C$14:$C$93,0))","v":332.8020313207777},{"$f":"INDEX('TAG - A1.3.12'!$BQ$14:$BQ$93, MATCH(BU$10,'TAG - A1.3.12'!$C$14:$C$93,0))","v":332.95102143021677},{"$f":"INDEX('TAG - A1.3.12'!$BQ$14:$BQ$93, MATCH(BV$10,'TAG - A1.3.12'!$C$14:$C$93,0))","v":333.10014510679491},{"$f":"INDEX('TAG - A1.3.12'!$BQ$14:$BQ$93, MATCH(BW$10,'TAG - A1.3.12'!$C$14:$C$93,0))","v":333.24940247025256},{"$f":"INDEX('TAG - A1.3.12'!$BQ$14:$BQ$93, MATCH(BX$10,'TAG - A1.3.12'!$C$14:$C$93,0))","v":333.39879364043827},{"$f":"INDEX('TAG - A1.3.12'!$BQ$14:$BQ$93, MATCH(BY$10,'TAG - A1.3.12'!$C$14:$C$93,0))","v":333.54831873730711},{"$f":"IF(BY212=0,0,BY212*BY212/BX212)","v":333.69791089427042},{"$f":"IF(BZ212=0,0,BZ212*BZ212/BY212)","v":333.84757014140376},333.99729650879624,334.14709002655047,334.2969507247825,334.44687863362191]
[null,null,null,"PSV",null,null,null,null,null,"b",{"$f":"INDEX('TAG - A1.3.12'!$BR$14:$BR$93, MATCH(K$10,'TAG - A1.3.12'!$C$14:$C$93,0))","v":38.58390595433999},{"$f":"INDEX('TAG - A1.3.12'!$BR$14:$BR$93, MATCH(L$10,'TAG - A1.3.12'!$C$14:$C$93,0))","v":36.131180897244917},{"$f":"INDEX('TAG - A1.3.12'!$BR$14:$BR$93, MATCH(M$10,'TAG - A1.3.12'!$C$14:$C$93,0))","v":34.601475347338713},{"$f":"INDEX('TAG - A1.3.12'!$BR$14:$BR$93, MATCH(N$10,'TAG - A1.3.12'!$C$14:$C$93,0))","v":34.3600235875872},{"$f":"INDEX('TAG - A1.3.12'!$BR$14:$BR$93, MATCH(O$10,'TAG - A1.3.12'!$C$14:$C$93,0))","v":34.408362430303519},{"$f":"INDEX('TAG - A1.3.12'!$BR$14:$BR$93, MATCH(P$10,'TAG - A1.3.12'!$C$14:$C$93,0))","v":34.267459069222994},{"$f":"INDEX('TAG - A1.3.12'!$BR$14:$BR$93, MATCH(Q$10,'TAG - A1.3.12'!$C$14:$C$93,0))","v":34.001335123232835},{"$f":"INDEX('TAG - A1.3.12'!$BR$14:$BR$93, MATCH(R$10,'TAG - A1.3.12'!$C$14:$C$93,0))","v":33.486057074450656},{"$f":"INDEX('TAG - A1.3.12'!$BR$14:$BR$93, MATCH(S$10,'TAG - A1.3.12'!$C$14:$C$93,0))","v":33.249188315614042},{"$f":"INDEX('TAG - A1.3.12'!$BR$14:$BR$93, MATCH(T$10,'TAG - A1.3.12'!$C$14:$C$93,0))","v":33.135463144389441},{"$f":"INDEX('TAG - A1.3.12'!$BR$14:$BR$93, MATCH(U$10,'TAG - A1.3.12'!$C$14:$C$93,0))","v":32.98145329954032},{"$f":"INDEX('TAG - A1.3.12'!$BR$14:$BR$93, MATCH(V$10,'TAG - A1.3.12'!$C$14:$C$93,0))","v":32.705303692426682},{"$f":"INDEX('TAG - A1.3.12'!$BR$14:$BR$93, MATCH(W$10,'TAG - A1.3.12'!$C$14:$C$93,0))","v":32.665587253719828},{"$f":"INDEX('TAG - A1.3.12'!$BR$14:$BR$93, MATCH(X$10,'TAG - A1.3.12'!$C$14:$C$93,0))","v":32.564808744595695},{"$f":"INDEX('TAG - A1.3.12'!$BR$14:$BR$93, MATCH(Y$10,'TAG - A1.3.12'!$C$14:$C$93,0))","v":32.367361235049664},{"$f":"INDEX('TAG - A1.3.12'!$BR$14:$BR$93, MATCH(Z$10,'TAG - A1.3.12'!$C$14:$C$93,0))","v":32.31849917933981},{"$f":"INDEX('TAG - A1.3.12'!$BR$14:$BR$93, MATCH(AA$10,'TAG - A1.3.12'!$C$14:$C$93,0))","v":32.355164390667213},{"$f":"INDEX('TAG - A1.3.12'!$BR$14:$BR$93, MATCH(AB$10,'TAG - A1.3.12'!$C$14:$C$93,0))","v":32.269967019755384},{"$f":"INDEX('TAG - A1.3.12'!$BR$14:$BR$93, MATCH(AC$10,'TAG - A1.3.12'!$C$14:$C$93,0))","v":32.204916150081225},{"$f":"INDEX('TAG - A1.3.12'!$BR$14:$BR$93, MATCH(AD$10,'TAG - A1.3.12'!$C$14:$C$93,0))","v":32.091750945367345},{"$f":"INDEX('TAG - A1.3.12'!$BR$14:$BR$93, MATCH(AE$10,'TAG - A1.3.12'!$C$14:$C$93,0))","v":32.00811435310645},{"$f":"INDEX('TAG - A1.3.12'!$BR$14:$BR$93, MATCH(AF$10,'TAG - A1.3.12'!$C$14:$C$93,0))","v":31.93212292661466},{"$f":"INDEX('TAG - A1.3.12'!$BR$14:$BR$93, MATCH(AG$10,'TAG - A1.3.12'!$C$14:$C$93,0))","v":31.819577552520407},{"$f":"INDEX('TAG - A1.3.12'!$BR$14:$BR$93, MATCH(AH$10,'TAG - A1.3.12'!$C$14:$C$93,0))","v":31.690848023064415},{"$f":"INDEX('TAG - A1.3.12'!$BR$14:$BR$93, MATCH(AI$10,'TAG - A1.3.12'!$C$14:$C$93,0))","v":31.614291858512061},{"$f":"INDEX('TAG - A1.3.12'!$BR$14:$BR$93, MATCH(AJ$10,'TAG - A1.3.12'!$C$14:$C$93,0))","v":31.526549938357096},{"$f":"INDEX('TAG - A1.3.12'!$BR$14:$BR$93, MATCH(AK$10,'TAG - A1.3.12'!$C$14:$C$93,0))","v":31.447525377553802},{"$f":"INDEX('TAG - A1.3.12'!$BR$14:$BR$93, MATCH(AL$10,'TAG - A1.3.12'!$C$14:$C$93,0))","v":31.400536189162437},{"$f":"INDEX('TAG - A1.3.12'!$BR$14:$BR$93, MATCH(AM$10,'TAG - A1.3.12'!$C$14:$C$93,0))","v":31.413234660459047},{"$f":"INDEX('TAG - A1.3.12'!$BR$14:$BR$93, MATCH(AN$10,'TAG - A1.3.12'!$C$14:$C$93,0))","v":31.425944515722598},{"$f":"INDEX('TAG - A1.3.12'!$BR$14:$BR$93, MATCH(AO$10,'TAG - A1.3.12'!$C$14:$C$93,0))","v":31.438665765158646},{"$f":"INDEX('TAG - A1.3.12'!$BR$14:$BR$93, MATCH(AP$10,'TAG - A1.3.12'!$C$14:$C$93,0))","v":31.451398418981853},{"$f":"INDEX('TAG - A1.3.12'!$BR$14:$BR$93, MATCH(AQ$10,'TAG - A1.3.12'!$C$14:$C$93,0))","v":31.464142487416055},{"$f":"INDEX('TAG - A1.3.12'!$BR$14:$BR$93, MATCH(AR$10,'TAG - A1.3.12'!$C$14:$C$93,0))","v":31.476897980694289},{"$f":"INDEX('TAG - A1.3.12'!$BR$14:$BR$93, MATCH(AS$10,'TAG - A1.3.12'!$C$14:$C$93,0))","v":31.489664909058718},{"$f":"INDEX('TAG - A1.3.12'!$BR$14:$BR$93, MATCH(AT$10,'TAG - A1.3.12'!$C$14:$C$93,0))","v":31.502443282760709},{"$f":"INDEX('TAG - A1.3.12'!$BR$14:$BR$93, MATCH(AU$10,'TAG - A1.3.12'!$C$14:$C$93,0))","v":31.515233112060805},{"$f":"INDEX('TAG - A1.3.12'!$BR$14:$BR$93, MATCH(AV$10,'TAG - A1.3.12'!$C$14:$C$93,0))","v":31.528034407228766},{"$f":"INDEX('TAG - A1.3.12'!$BR$14:$BR$93, MATCH(AW$10,'TAG - A1.3.12'!$C$14:$C$93,0))","v":31.540847178543558},{"$f":"INDEX('TAG - A1.3.12'!$BR$14:$BR$93, MATCH(AX$10,'TAG - A1.3.12'!$C$14:$C$93,0))","v":31.553671436293357},{"$f":"INDEX('TAG - A1.3.12'!$BR$14:$BR$93, MATCH(AY$10,'TAG - A1.3.12'!$C$14:$C$93,0))","v":31.566507190775532},{"$f":"INDEX('TAG - A1.3.12'!$BR$14:$BR$93, MATCH(AZ$10,'TAG - A1.3.12'!$C$14:$C$93,0))","v":31.579354452296748},{"$f":"INDEX('TAG - A1.3.12'!$BR$14:$BR$93, MATCH(BA$10,'TAG - A1.3.12'!$C$14:$C$93,0))","v":31.592213231172849},{"$f":"INDEX('TAG - A1.3.12'!$BR$14:$BR$93, MATCH(BB$10,'TAG - A1.3.12'!$C$14:$C$93,0))","v":31.605083537728952},{"$f":"INDEX('TAG - A1.3.12'!$BR$14:$BR$93, MATCH(BC$10,'TAG - A1.3.12'!$C$14:$C$93,0))","v":31.617965382299431},{"$f":"INDEX('TAG - A1.3.12'!$BR$14:$BR$93, MATCH(BD$10,'TAG - A1.3.12'!$C$14:$C$93,0))","v":31.630858775227942},{"$f":"INDEX('TAG - A1.3.12'!$BR$14:$BR$93, MATCH(BE$10,'TAG - A1.3.12'!$C$14:$C$93,0))","v":31.643763726867363},{"$f":"INDEX('TAG - A1.3.12'!$BR$14:$BR$93, MATCH(BF$10,'TAG - A1.3.12'!$C$14:$C$93,0))","v":31.656680247579907},{"$f":"INDEX('TAG - A1.3.12'!$BR$14:$BR$93, MATCH(BG$10,'TAG - A1.3.12'!$C$14:$C$93,0))","v":31.669608347737032},{"$f":"INDEX('TAG - A1.3.12'!$BR$14:$BR$93, MATCH(BH$10,'TAG - A1.3.12'!$C$14:$C$93,0))","v":31.682548037719549},{"$f":"INDEX('TAG - A1.3.12'!$BR$14:$BR$93, MATCH(BI$10,'TAG - A1.3.12'!$C$14:$C$93,0))","v":31.695499327917524},{"$f":"INDEX('TAG - A1.3.12'!$BR$14:$BR$93, MATCH(BJ$10,'TAG - A1.3.12'!$C$14:$C$93,0))","v":31.708462228730355},{"$f":"INDEX('TAG - A1.3.12'!$BR$14:$BR$93, MATCH(BK$10,'TAG - A1.3.12'!$C$14:$C$93,0))","v":31.721436750566767},{"$f":"INDEX('TAG - A1.3.12'!$BR$14:$BR$93, MATCH(BL$10,'TAG - A1.3.12'!$C$14:$C$93,0))","v":31.734422903844809},{"$f":"INDEX('TAG - A1.3.12'!$BR$14:$BR$93, MATCH(BM$10,'TAG - A1.3.12'!$C$14:$C$93,0))","v":31.747420698991881},{"$f":"INDEX('TAG - A1.3.12'!$BR$14:$BR$93, MATCH(BN$10,'TAG - A1.3.12'!$C$14:$C$93,0))","v":31.760430146444705},{"$f":"INDEX('TAG - A1.3.12'!$BR$14:$BR$93, MATCH(BO$10,'TAG - A1.3.12'!$C$14:$C$93,0))","v":31.773451256649409},{"$f":"INDEX('TAG - A1.3.12'!$BR$14:$BR$93, MATCH(BP$10,'TAG - A1.3.12'!$C$14:$C$93,0))","v":31.786484040061438},{"$f":"INDEX('TAG - A1.3.12'!$BR$14:$BR$93, MATCH(BQ$10,'TAG - A1.3.12'!$C$14:$C$93,0))","v":31.799528507145631},{"$f":"INDEX('TAG - A1.3.12'!$BR$14:$BR$93, MATCH(BR$10,'TAG - A1.3.12'!$C$14:$C$93,0))","v":31.812584668376189},{"$f":"INDEX('TAG - A1.3.12'!$BR$14:$BR$93, MATCH(BS$10,'TAG - A1.3.12'!$C$14:$C$93,0))","v":31.825652534236731},{"$f":"INDEX('TAG - A1.3.12'!$BR$14:$BR$93, MATCH(BT$10,'TAG - A1.3.12'!$C$14:$C$93,0))","v":31.838732115220267},{"$f":"INDEX('TAG - A1.3.12'!$BR$14:$BR$93, MATCH(BU$10,'TAG - A1.3.12'!$C$14:$C$93,0))","v":31.851823421829195},{"$f":"INDEX('TAG - A1.3.12'!$BR$14:$BR$93, MATCH(BV$10,'TAG - A1.3.12'!$C$14:$C$93,0))","v":31.864926464575362},{"$f":"INDEX('TAG - A1.3.12'!$BR$14:$BR$93, MATCH(BW$10,'TAG - A1.3.12'!$C$14:$C$93,0))","v":31.878041253979987},{"$f":"INDEX('TAG - A1.3.12'!$BR$14:$BR$93, MATCH(BX$10,'TAG - A1.3.12'!$C$14:$C$93,0))","v":31.89116780057379},{"$f":"INDEX('TAG - A1.3.12'!$BR$14:$BR$93, MATCH(BY$10,'TAG - A1.3.12'!$C$14:$C$93,0))","v":31.904306114896869},{"$f":"IF(BY213=0,0,BY213*BY213/BX213)","v":31.917449841856584},31.930598983682799,31.943753542606295,31.956913520858773,31.970078920672851,31.983249744282066]
[null,null,null,"PSV",null,null,null,null,null,"c",{"$f":"INDEX('TAG - A1.3.12'!$BS$14:$BS$93, MATCH(K$10,'TAG - A1.3.12'!$C$14:$C$93,0))","v":-0.39376560672013727},{"$f":"INDEX('TAG - A1.3.12'!$BS$14:$BS$93, MATCH(L$10,'TAG - A1.3.12'!$C$14:$C$93,0))","v":-0.36008426822545458},{"$f":"INDEX('TAG - A1.3.12'!$BS$14:$BS$93, MATCH(M$10,'TAG - A1.3.12'!$C$14:$C$93,0))","v":-0.33866851771500489},{"$f":"INDEX('TAG - A1.3.12'!$BS$14:$BS$93, MATCH(N$10,'TAG - A1.3.12'!$C$14:$C$93,0))","v":-0.33097197929014699},{"$f":"INDEX('TAG - A1.3.12'!$BS$14:$BS$93, MATCH(O$10,'TAG - A1.3.12'!$C$14:$C$93,0))","v":-0.33273514489310058},{"$f":"INDEX('TAG - A1.3.12'!$BS$14:$BS$93, MATCH(P$10,'TAG - A1.3.12'!$C$14:$C$93,0))","v":-0.33150070449613822},{"$f":"INDEX('TAG - A1.3.12'!$BS$14:$BS$93, MATCH(Q$10,'TAG - A1.3.12'!$C$14:$C$93,0))","v":-0.32865291071765179},{"$f":"INDEX('TAG - A1.3.12'!$BS$14:$BS$93, MATCH(R$10,'TAG - A1.3.12'!$C$14:$C$93,0))","v":-0.32273849396910032},{"$f":"INDEX('TAG - A1.3.12'!$BS$14:$BS$93, MATCH(S$10,'TAG - A1.3.12'!$C$14:$C$93,0))","v":-0.32070235691047055},{"$f":"INDEX('TAG - A1.3.12'!$BS$14:$BS$93, MATCH(T$10,'TAG - A1.3.12'!$C$14:$C$93,0))","v":-0.3194191954181414},{"$f":"INDEX('TAG - A1.3.12'!$BS$14:$BS$93, MATCH(U$10,'TAG - A1.3.12'!$C$14:$C$93,0))","v":-0.31810502400727669},{"$f":"INDEX('TAG - A1.3.12'!$BS$14:$BS$93, MATCH(V$10,'TAG - A1.3.12'!$C$14:$C$93,0))","v":-0.31561822912426257},{"$f":"INDEX('TAG - A1.3.12'!$BS$14:$BS$93, MATCH(W$10,'TAG - A1.3.12'!$C$14:$C$93,0))","v":-0.31465450896080172},{"$f":"INDEX('TAG - A1.3.12'!$BS$14:$BS$93, MATCH(X$10,'TAG - A1.3.12'!$C$14:$C$93,0))","v":-0.31471270392611217},{"$f":"INDEX('TAG - A1.3.12'!$BS$14:$BS$93, MATCH(Y$10,'TAG - A1.3.12'!$C$14:$C$93,0))","v":-0.31381921298997068},{"$f":"INDEX('TAG - A1.3.12'!$BS$14:$BS$93, MATCH(Z$10,'TAG - A1.3.12'!$C$14:$C$93,0))","v":-0.31398031967856832},{"$f":"INDEX('TAG - A1.3.12'!$BS$14:$BS$93, MATCH(AA$10,'TAG - A1.3.12'!$C$14:$C$93,0))","v":-0.31512148982957994},{"$f":"INDEX('TAG - A1.3.12'!$BS$14:$BS$93, MATCH(AB$10,'TAG - A1.3.12'!$C$14:$C$93,0))","v":-0.31567525433092952},{"$f":"INDEX('TAG - A1.3.12'!$BS$14:$BS$93, MATCH(AC$10,'TAG - A1.3.12'!$C$14:$C$93,0))","v":-0.31577397992063233},{"$f":"INDEX('TAG - A1.3.12'!$BS$14:$BS$93, MATCH(AD$10,'TAG - A1.3.12'!$C$14:$C$93,0))","v":-0.31582912281950332},{"$f":"INDEX('TAG - A1.3.12'!$BS$14:$BS$93, MATCH(AE$10,'TAG - A1.3.12'!$C$14:$C$93,0))","v":-0.31601316416830921},{"$f":"INDEX('TAG - A1.3.12'!$BS$14:$BS$93, MATCH(AF$10,'TAG - A1.3.12'!$C$14:$C$93,0))","v":-0.3159843322003561},{"$f":"INDEX('TAG - A1.3.12'!$BS$14:$BS$93, MATCH(AG$10,'TAG - A1.3.12'!$C$14:$C$93,0))","v":-0.31559597071248652},{"$f":"INDEX('TAG - A1.3.12'!$BS$14:$BS$93, MATCH(AH$10,'TAG - A1.3.12'!$C$14:$C$93,0))","v":-0.31520062001752019},{"$f":"INDEX('TAG - A1.3.12'!$BS$14:$BS$93, MATCH(AI$10,'TAG - A1.3.12'!$C$14:$C$93,0))","v":-0.31474584472207728},{"$f":"INDEX('TAG - A1.3.12'!$BS$14:$BS$93, MATCH(AJ$10,'TAG - A1.3.12'!$C$14:$C$93,0))","v":-0.31416549757694578},{"$f":"INDEX('TAG - A1.3.12'!$BS$14:$BS$93, MATCH(AK$10,'TAG - A1.3.12'!$C$14:$C$93,0))","v":-0.31365693237658981},{"$f":"INDEX('TAG - A1.3.12'!$BS$14:$BS$93, MATCH(AL$10,'TAG - A1.3.12'!$C$14:$C$93,0))","v":-0.3130749351030585},{"$f":"INDEX('TAG - A1.3.12'!$BS$14:$BS$93, MATCH(AM$10,'TAG - A1.3.12'!$C$14:$C$93,0))","v":-0.31321295616799827},{"$f":"INDEX('TAG - A1.3.12'!$BS$14:$BS$93, MATCH(AN$10,'TAG - A1.3.12'!$C$14:$C$93,0))","v":-0.31335110096651242},{"$f":"INDEX('TAG - A1.3.12'!$BS$14:$BS$93, MATCH(AO$10,'TAG - A1.3.12'!$C$14:$C$93,0))","v":-0.313489369609526},{"$f":"INDEX('TAG - A1.3.12'!$BS$14:$BS$93, MATCH(AP$10,'TAG - A1.3.12'!$C$14:$C$93,0))","v":-0.31362776220806332},{"$f":"INDEX('TAG - A1.3.12'!$BS$14:$BS$93, MATCH(AQ$10,'TAG - A1.3.12'!$C$14:$C$93,0))","v":-0.31376627887324848},{"$f":"INDEX('TAG - A1.3.12'!$BS$14:$BS$93, MATCH(AR$10,'TAG - A1.3.12'!$C$14:$C$93,0))","v":-0.31390491971630524},{"$f":"INDEX('TAG - A1.3.12'!$BS$14:$BS$93, MATCH(AS$10,'TAG - A1.3.12'!$C$14:$C$93,0))","v":-0.31404368484855705},{"$f":"INDEX('TAG - A1.3.12'!$BS$14:$BS$93, MATCH(AT$10,'TAG - A1.3.12'!$C$14:$C$93,0))","v":-0.31418257438142699},{"$f":"INDEX('TAG - A1.3.12'!$BS$14:$BS$93, MATCH(AU$10,'TAG - A1.3.12'!$C$14:$C$93,0))","v":-0.31432158842643804},{"$f":"INDEX('TAG - A1.3.12'!$BS$14:$BS$93, MATCH(AV$10,'TAG - A1.3.12'!$C$14:$C$93,0))","v":-0.31446072709521333},{"$f":"INDEX('TAG - A1.3.12'!$BS$14:$BS$93, MATCH(AW$10,'TAG - A1.3.12'!$C$14:$C$93,0))","v":-0.31459999049947607},{"$f":"INDEX('TAG - A1.3.12'!$BS$14:$BS$93, MATCH(AX$10,'TAG - A1.3.12'!$C$14:$C$93,0))","v":-0.31473937875104957},{"$f":"INDEX('TAG - A1.3.12'!$BS$14:$BS$93, MATCH(AY$10,'TAG - A1.3.12'!$C$14:$C$93,0))","v":-0.31487889196185709},{"$f":"INDEX('TAG - A1.3.12'!$BS$14:$BS$93, MATCH(AZ$10,'TAG - A1.3.12'!$C$14:$C$93,0))","v":-0.31501853024392279},{"$f":"INDEX('TAG - A1.3.12'!$BS$14:$BS$93, MATCH(BA$10,'TAG - A1.3.12'!$C$14:$C$93,0))","v":-0.31515829370937076},{"$f":"INDEX('TAG - A1.3.12'!$BS$14:$BS$93, MATCH(BB$10,'TAG - A1.3.12'!$C$14:$C$93,0))","v":-0.31529818247042585},{"$f":"INDEX('TAG - A1.3.12'!$BS$14:$BS$93, MATCH(BC$10,'TAG - A1.3.12'!$C$14:$C$93,0))","v":-0.31543819663941336},{"$f":"INDEX('TAG - A1.3.12'!$BS$14:$BS$93, MATCH(BD$10,'TAG - A1.3.12'!$C$14:$C$93,0))","v":-0.31557833632875976},{"$f":"INDEX('TAG - A1.3.12'!$BS$14:$BS$93, MATCH(BE$10,'TAG - A1.3.12'!$C$14:$C$93,0))","v":-0.31571860165099158},{"$f":"INDEX('TAG - A1.3.12'!$BS$14:$BS$93, MATCH(BF$10,'TAG - A1.3.12'!$C$14:$C$93,0))","v":-0.31585899271873685},{"$f":"INDEX('TAG - A1.3.12'!$BS$14:$BS$93, MATCH(BG$10,'TAG - A1.3.12'!$C$14:$C$93,0))","v":-0.31599950964472401},{"$f":"INDEX('TAG - A1.3.12'!$BS$14:$BS$93, MATCH(BH$10,'TAG - A1.3.12'!$C$14:$C$93,0))","v":-0.31614015254178324},{"$f":"INDEX('TAG - A1.3.12'!$BS$14:$BS$93, MATCH(BI$10,'TAG - A1.3.12'!$C$14:$C$93,0))","v":-0.31628092152284532},{"$f":"INDEX('TAG - A1.3.12'!$BS$14:$BS$93, MATCH(BJ$10,'TAG - A1.3.12'!$C$14:$C$93,0))","v":-0.31642181670094244},{"$f":"INDEX('TAG - A1.3.12'!$BS$14:$BS$93, MATCH(BK$10,'TAG - A1.3.12'!$C$14:$C$93,0))","v":-0.31656283818920811},{"$f":"INDEX('TAG - A1.3.12'!$BS$14:$BS$93, MATCH(BL$10,'TAG - A1.3.12'!$C$14:$C$93,0))","v":-0.3167039861008773},{"$f":"INDEX('TAG - A1.3.12'!$BS$14:$BS$93, MATCH(BM$10,'TAG - A1.3.12'!$C$14:$C$93,0))","v":-0.31684526054928652},{"$f":"INDEX('TAG - A1.3.12'!$BS$14:$BS$93, MATCH(BN$10,'TAG - A1.3.12'!$C$14:$C$93,0))","v":-0.31698666164787376},{"$f":"INDEX('TAG - A1.3.12'!$BS$14:$BS$93, MATCH(BO$10,'TAG - A1.3.12'!$C$14:$C$93,0))","v":-0.3171281895101789},{"$f":"INDEX('TAG - A1.3.12'!$BS$14:$BS$93, MATCH(BP$10,'TAG - A1.3.12'!$C$14:$C$93,0))","v":-0.31726984424984339},{"$f":"INDEX('TAG - A1.3.12'!$BS$14:$BS$93, MATCH(BQ$10,'TAG - A1.3.12'!$C$14:$C$93,0))","v":-0.31741162598061079},{"$f":"INDEX('TAG - A1.3.12'!$BS$14:$BS$93, MATCH(BR$10,'TAG - A1.3.12'!$C$14:$C$93,0))","v":-0.31755353481632631},{"$f":"INDEX('TAG - A1.3.12'!$BS$14:$BS$93, MATCH(BS$10,'TAG - A1.3.12'!$C$14:$C$93,0))","v":-0.31769557087093747},{"$f":"INDEX('TAG - A1.3.12'!$BS$14:$BS$93, MATCH(BT$10,'TAG - A1.3.12'!$C$14:$C$93,0))","v":-0.31783773425849399},{"$f":"INDEX('TAG - A1.3.12'!$BS$14:$BS$93, MATCH(BU$10,'TAG - A1.3.12'!$C$14:$C$93,0))","v":-0.31798002509314749},{"$f":"INDEX('TAG - A1.3.12'!$BS$14:$BS$93, MATCH(BV$10,'TAG - A1.3.12'!$C$14:$C$93,0))","v":-0.31812244348915242},{"$f":"INDEX('TAG - A1.3.12'!$BS$14:$BS$93, MATCH(BW$10,'TAG - A1.3.12'!$C$14:$C$93,0))","v":-0.31826498956086513},{"$f":"INDEX('TAG - A1.3.12'!$BS$14:$BS$93, MATCH(BX$10,'TAG - A1.3.12'!$C$14:$C$93,0))","v":-0.31840766342274512},{"$f":"INDEX('TAG - A1.3.12'!$BS$14:$BS$93, MATCH(BY$10,'TAG - A1.3.12'!$C$14:$C$93,0))","v":-0.31855046518935387},-0.31869333100072939,-0.31883626088559491,-0.31897925487268664,-0.31912231299075355,-0.31926543526855761,-0.31940862173487361]
[null,null,null,"PSV",null,null,null,null,null,"d",{"$f":"INDEX('TAG - A1.3.12'!$BT$14:$BT$93, MATCH(K$10,'TAG - A1.3.12'!$C$14:$C$93,0))","v":2.8884316771187512E-3},{"$f":"INDEX('TAG - A1.3.12'!$BT$14:$BT$93, MATCH(L$10,'TAG - A1.3.12'!$C$14:$C$93,0))","v":2.6413652920016135E-3},{"$f":"INDEX('TAG - A1.3.12'!$BT$14:$BT$93, MATCH(M$10,'TAG - A1.3.12'!$C$14:$C$93,0))","v":2.4842720083121128E-3},{"$f":"INDEX('TAG - A1.3.12'!$BT$14:$BT$93, MATCH(N$10,'TAG - A1.3.12'!$C$14:$C$93,0))","v":2.4278147530030643E-3},{"$f":"INDEX('TAG - A1.3.12'!$BT$14:$BT$93, MATCH(O$10,'TAG - A1.3.12'!$C$14:$C$93,0))","v":2.4407482933952729E-3},{"$f":"INDEX('TAG - A1.3.12'!$BT$14:$BT$93, MATCH(P$10,'TAG - A1.3.12'!$C$14:$C$93,0))","v":2.4316931685056191E-3},{"$f":"INDEX('TAG - A1.3.12'!$BT$14:$BT$93, MATCH(Q$10,'TAG - A1.3.12'!$C$14:$C$93,0))","v":2.410803437103739E-3},{"$f":"INDEX('TAG - A1.3.12'!$BT$14:$BT$93, MATCH(R$10,'TAG - A1.3.12'!$C$14:$C$93,0))","v":2.3674187727332438E-3},{"$f":"INDEX('TAG - A1.3.12'!$BT$14:$BT$93, MATCH(S$10,'TAG - A1.3.12'!$C$14:$C$93,0))","v":2.3524828751364745E-3},{"$f":"INDEX('TAG - A1.3.12'!$BT$14:$BT$93, MATCH(T$10,'TAG - A1.3.12'!$C$14:$C$93,0))","v":2.3430703610975408E-3},{"$f":"INDEX('TAG - A1.3.12'!$BT$14:$BT$93, MATCH(U$10,'TAG - A1.3.12'!$C$14:$C$93,0))","v":2.3334303766308342E-3},{"$f":"INDEX('TAG - A1.3.12'!$BT$14:$BT$93, MATCH(V$10,'TAG - A1.3.12'!$C$14:$C$93,0))","v":2.3151887196856658E-3},{"$f":"INDEX('TAG - A1.3.12'!$BT$14:$BT$93, MATCH(W$10,'TAG - A1.3.12'!$C$14:$C$93,0))","v":2.3081194383657334E-3},{"$f":"INDEX('TAG - A1.3.12'!$BT$14:$BT$93, MATCH(X$10,'TAG - A1.3.12'!$C$14:$C$93,0))","v":2.3085463222234977E-3},{"$f":"INDEX('TAG - A1.3.12'!$BT$14:$BT$93, MATCH(Y$10,'TAG - A1.3.12'!$C$14:$C$93,0))","v":2.301992200992174E-3},{"$f":"INDEX('TAG - A1.3.12'!$BT$14:$BT$93, MATCH(Z$10,'TAG - A1.3.12'!$C$14:$C$93,0))","v":2.3031739844054521E-3},{"$f":"INDEX('TAG - A1.3.12'!$BT$14:$BT$93, MATCH(AA$10,'TAG - A1.3.12'!$C$14:$C$93,0))","v":2.311544933916812E-3},{"$f":"INDEX('TAG - A1.3.12'!$BT$14:$BT$93, MATCH(AB$10,'TAG - A1.3.12'!$C$14:$C$93,0))","v":2.3156070228856403E-3},{"$f":"INDEX('TAG - A1.3.12'!$BT$14:$BT$93, MATCH(AC$10,'TAG - A1.3.12'!$C$14:$C$93,0))","v":2.3163312154402295E-3},{"$f":"INDEX('TAG - A1.3.12'!$BT$14:$BT$93, MATCH(AD$10,'TAG - A1.3.12'!$C$14:$C$93,0))","v":2.3167357111431269E-3},{"$f":"INDEX('TAG - A1.3.12'!$BT$14:$BT$93, MATCH(AE$10,'TAG - A1.3.12'!$C$14:$C$93,0))","v":2.3180857296635827E-3},{"$f":"INDEX('TAG - A1.3.12'!$BT$14:$BT$93, MATCH(AF$10,'TAG - A1.3.12'!$C$14:$C$93,0))","v":2.3178742353935694E-3},{"$f":"INDEX('TAG - A1.3.12'!$BT$14:$BT$93, MATCH(AG$10,'TAG - A1.3.12'!$C$14:$C$93,0))","v":2.3150254451371555E-3},{"$f":"INDEX('TAG - A1.3.12'!$BT$14:$BT$93, MATCH(AH$10,'TAG - A1.3.12'!$C$14:$C$93,0))","v":2.3121253861898448E-3},{"$f":"INDEX('TAG - A1.3.12'!$BT$14:$BT$93, MATCH(AI$10,'TAG - A1.3.12'!$C$14:$C$93,0))","v":2.3087894235082132E-3},{"$f":"INDEX('TAG - A1.3.12'!$BT$14:$BT$93, MATCH(AJ$10,'TAG - A1.3.12'!$C$14:$C$93,0))","v":2.3045323399815795E-3},{"$f":"INDEX('TAG - A1.3.12'!$BT$14:$BT$93, MATCH(AK$10,'TAG - A1.3.12'!$C$14:$C$93,0))","v":2.3008018063607684E-3},{"$f":"INDEX('TAG - A1.3.12'!$BT$14:$BT$93, MATCH(AL$10,'TAG - A1.3.12'!$C$14:$C$93,0))","v":2.2965326184678321E-3},{"$f":"INDEX('TAG - A1.3.12'!$BT$14:$BT$93, MATCH(AM$10,'TAG - A1.3.12'!$C$14:$C$93,0))","v":2.2975450593953231E-3},{"$f":"INDEX('TAG - A1.3.12'!$BT$14:$BT$93, MATCH(AN$10,'TAG - A1.3.12'!$C$14:$C$93,0))","v":2.2985584079591578E-3},{"$f":"INDEX('TAG - A1.3.12'!$BT$14:$BT$93, MATCH(AO$10,'TAG - A1.3.12'!$C$14:$C$93,0))","v":2.2995726649730178E-3},{"$f":"INDEX('TAG - A1.3.12'!$BT$14:$BT$93, MATCH(AP$10,'TAG - A1.3.12'!$C$14:$C$93,0))","v":2.300587831251311E-3},{"$f":"INDEX('TAG - A1.3.12'!$BT$14:$BT$93, MATCH(AQ$10,'TAG - A1.3.12'!$C$14:$C$93,0))","v":2.3016039076091781E-3},{"$f":"INDEX('TAG - A1.3.12'!$BT$14:$BT$93, MATCH(AR$10,'TAG - A1.3.12'!$C$14:$C$93,0))","v":2.3026208948624918E-3},{"$f":"INDEX('TAG - A1.3.12'!$BT$14:$BT$93, MATCH(AS$10,'TAG - A1.3.12'!$C$14:$C$93,0))","v":2.3036387938278539E-3},{"$f":"INDEX('TAG - A1.3.12'!$BT$14:$BT$93, MATCH(AT$10,'TAG - A1.3.12'!$C$14:$C$93,0))","v":2.3046576053225992E-3},{"$f":"INDEX('TAG - A1.3.12'!$BT$14:$BT$93, MATCH(AU$10,'TAG - A1.3.12'!$C$14:$C$93,0))","v":2.3056773301647938E-3},{"$f":"INDEX('TAG - A1.3.12'!$BT$14:$BT$93, MATCH(AV$10,'TAG - A1.3.12'!$C$14:$C$93,0))","v":2.3066979691732394E-3},{"$f":"INDEX('TAG - A1.3.12'!$BT$14:$BT$93, MATCH(AW$10,'TAG - A1.3.12'!$C$14:$C$93,0))","v":2.3077195231674705E-3},{"$f":"INDEX('TAG - A1.3.12'!$BT$14:$BT$93, MATCH(AX$10,'TAG - A1.3.12'!$C$14:$C$93,0))","v":2.3087419929677575E-3},{"$f":"INDEX('TAG - A1.3.12'!$BT$14:$BT$93, MATCH(AY$10,'TAG - A1.3.12'!$C$14:$C$93,0))","v":2.3097653793951035E-3},{"$f":"INDEX('TAG - A1.3.12'!$BT$14:$BT$93, MATCH(AZ$10,'TAG - A1.3.12'!$C$14:$C$93,0))","v":2.3107896832712509E-3},{"$f":"INDEX('TAG - A1.3.12'!$BT$14:$BT$93, MATCH(BA$10,'TAG - A1.3.12'!$C$14:$C$93,0))","v":2.3118149054186755E-3},{"$f":"INDEX('TAG - A1.3.12'!$BT$14:$BT$93, MATCH(BB$10,'TAG - A1.3.12'!$C$14:$C$93,0))","v":2.3128410466605942E-3},{"$f":"INDEX('TAG - A1.3.12'!$BT$14:$BT$93, MATCH(BC$10,'TAG - A1.3.12'!$C$14:$C$93,0))","v":2.3138681078209568E-3},{"$f":"INDEX('TAG - A1.3.12'!$BT$14:$BT$93, MATCH(BD$10,'TAG - A1.3.12'!$C$14:$C$93,0))","v":2.3148960897244591E-3},{"$f":"INDEX('TAG - A1.3.12'!$BT$14:$BT$93, MATCH(BE$10,'TAG - A1.3.12'!$C$14:$C$93,0))","v":2.3159249931965281E-3},{"$f":"INDEX('TAG - A1.3.12'!$BT$14:$BT$93, MATCH(BF$10,'TAG - A1.3.12'!$C$14:$C$93,0))","v":2.3169548190633362E-3},{"$f":"INDEX('TAG - A1.3.12'!$BT$14:$BT$93, MATCH(BG$10,'TAG - A1.3.12'!$C$14:$C$93,0))","v":2.3179855681517937E-3},{"$f":"INDEX('TAG - A1.3.12'!$BT$14:$BT$93, MATCH(BH$10,'TAG - A1.3.12'!$C$14:$C$93,0))","v":2.3190172412895552E-3},{"$f":"INDEX('TAG - A1.3.12'!$BT$14:$BT$93, MATCH(BI$10,'TAG - A1.3.12'!$C$14:$C$93,0))","v":2.3200498393050151E-3},{"$f":"INDEX('TAG - A1.3.12'!$BT$14:$BT$93, MATCH(BJ$10,'TAG - A1.3.12'!$C$14:$C$93,0))","v":2.3210833630273099E-3},{"$f":"INDEX('TAG - A1.3.12'!$BT$14:$BT$93, MATCH(BK$10,'TAG - A1.3.12'!$C$14:$C$93,0))","v":2.3221178132863205E-3},{"$f":"INDEX('TAG - A1.3.12'!$BT$14:$BT$93, MATCH(BL$10,'TAG - A1.3.12'!$C$14:$C$93,0))","v":2.3231531909126712E-3},{"$f":"INDEX('TAG - A1.3.12'!$BT$14:$BT$93, MATCH(BM$10,'TAG - A1.3.12'!$C$14:$C$93,0))","v":2.3241894967377316E-3},{"$f":"INDEX('TAG - A1.3.12'!$BT$14:$BT$93, MATCH(BN$10,'TAG - A1.3.12'!$C$14:$C$93,0))","v":2.3252267315936165E-3},{"$f":"INDEX('TAG - A1.3.12'!$BT$14:$BT$93, MATCH(BO$10,'TAG - A1.3.12'!$C$14:$C$93,0))","v":2.3262648963131871E-3},{"$f":"INDEX('TAG - A1.3.12'!$BT$14:$BT$93, MATCH(BP$10,'TAG - A1.3.12'!$C$14:$C$93,0))","v":2.327303991730049E-3},{"$f":"INDEX('TAG - A1.3.12'!$BT$14:$BT$93, MATCH(BQ$10,'TAG - A1.3.12'!$C$14:$C$93,0))","v":2.3283440186785591E-3},{"$f":"INDEX('TAG - A1.3.12'!$BT$14:$BT$93, MATCH(BR$10,'TAG - A1.3.12'!$C$14:$C$93,0))","v":2.3293849779938173E-3},{"$f":"INDEX('TAG - A1.3.12'!$BT$14:$BT$93, MATCH(BS$10,'TAG - A1.3.12'!$C$14:$C$93,0))","v":2.3304268705116762E-3},{"$f":"INDEX('TAG - A1.3.12'!$BT$14:$BT$93, MATCH(BT$10,'TAG - A1.3.12'!$C$14:$C$93,0))","v":2.3314696970687366E-3},{"$f":"INDEX('TAG - A1.3.12'!$BT$14:$BT$93, MATCH(BU$10,'TAG - A1.3.12'!$C$14:$C$93,0))","v":2.3325134585023481E-3},{"$f":"INDEX('TAG - A1.3.12'!$BT$14:$BT$93, MATCH(BV$10,'TAG - A1.3.12'!$C$14:$C$93,0))","v":2.3335581556506121E-3},{"$f":"INDEX('TAG - A1.3.12'!$BT$14:$BT$93, MATCH(BW$10,'TAG - A1.3.12'!$C$14:$C$93,0))","v":2.3346037893523801E-3},{"$f":"INDEX('TAG - A1.3.12'!$BT$14:$BT$93, MATCH(BX$10,'TAG - A1.3.12'!$C$14:$C$93,0))","v":2.3356503604472605E-3},{"$f":"INDEX('TAG - A1.3.12'!$BT$14:$BT$93, MATCH(BY$10,'TAG - A1.3.12'!$C$14:$C$93,0))","v":2.3366978697756061E-3},2.3377458488984945E-3,2.3387942980266224E-3,2.339843217370781E-3,2.3408926071418566E-3,2.3419424675508293E-3,2.3429927988087742E-3]
[]
[null,null,null,"PSV - Scheme",null,null,null,null,null,"pence per km, 2023 prices",{"$f":"IF($E$146=\"\",0,K212/$E$146+K213+K214*$E$146+K215*($E$146)^2)","v":58.25419027614879},{"$f":"IF($E$146=\"\",0,L212/$E$146+L213+L214*$E$146+L215*($E$146)^2)","v":54.118937610693109},51.519423285423585,50.893496354334211,51.029912896383934,50.827343932284315,50.418960448242323,49.608231864786198,49.269649309269816,49.091824706926403,48.872166352257906,48.471790653367613,48.383932250765447,48.286060830260077,48.043979608543864,48.003165524309367,48.0968370890279,48.039302634843608,47.979183532662987,47.868772952732499,47.794330016789473,47.716898309588764,47.584952610134302,47.43647361438645,47.337199469362389,47.220466715180109,47.116037136984602,47.039974683560693,47.059567900217047,47.079178681864164,47.098807044248758,47.118453003131627,47.138116574287757,47.157797773506289,47.177496616590439,47.197213119357656,47.216947297639557,47.236699167281927,47.256468744144783,47.276256044102389,47.296061083043121,47.315883876869755,47.335724441499224,47.355582792862734,47.375458946905816,47.395352919588298,47.415264726884239,47.435194384782115,47.455141909284642,47.475107316408987,47.495090622186602,47.515091842663324,47.535110993899387,47.555148091969407,47.575203152962423,47.595276192981885,47.615367228145729,47.635476274586267,47.65560334845032,47.675748465899154,47.695911643108552,47.716092896268798,47.73629224158465,47.756509695275447,47.776745273575031,{"$f":"IF($E$146=\"\",0,BX212/$E$146+BX213+BX214*$E$146+BX215*($E$146)^2)","v":47.796998992731844},47.817270869008802,47.837551357233757,{"$f":"IF($E$146=\"\",0,CA212/$E$146+CA213+CA214*$E$146+CA215*($E$146)^2)","v":47.857840461071397},47.87813818418801,47.898444530251432,47.918759502931053,47.939083105897843]
[null,null,null,"PSV - Diversion",null,null,null,null,null,"pence per km, 2023 prices",{"$f":"IF($E$147=\"\",0,K212/$E$147+K213+K214*$E$147+K215*($E$147)^2)","v":48.270887328526818},{"$f":"IF($E$147=\"\",0,L212/$E$147+L213+L214*$E$147+L215*($E$147)^2)","v":44.989571624896271},42.933019715713179,42.502226319478154,42.593940591800141,42.422668907715163,42.08648672195261,41.425708802423422,41.138749275308371,40.993457199143023,40.807117577994816,40.469790622473752,40.406365817383318,40.307018955755595,40.087590780786556,40.042692091772686,40.107431095754826,40.035856820204074,39.973234687149585,39.861426046404631,39.782317033717824,39.705616315373781,39.583516905997527,39.445061400597851,39.357317362495309,39.255298390486381,39.163762677009181,39.10245584214919,39.118549753429633,39.134658092632137,39.150780872691087,39.166918106552465,39.183069807173844,39.199235987524467,39.215416660585149,39.231611839348382,39.247821536818243,39.26404576601054,39.280284539952717,39.29653787168391,39.312805774254905,39.329088260728241,39.34538534417814,39.361697037690519,39.378023354363073,39.394364307305246,39.410719909638161,39.427090174494793,39.443475115019801,39.459874744369735,39.476289075712842,39.492718122229221,39.509161897110793,39.525620413561263,39.542093684796221,39.558581724043066,39.575084544541106,39.591602159541459,39.608134582307166,39.624681826113111,39.641243904246132,39.657820830004951,39.674412616700224,39.691019277654519,39.707640826202351,{"$f":"IF($E$147=\"\",0,BX212/$E$147+BX213+BX214*$E$147+BX215*($E$147)^2)","v":39.724277275690227},39.740928639476564,39.757586991457316,{"$f":"IF($E$147=\"\",0,CA212/$E$147+CA213+CA214*$E$147+CA215*($E$147)^2)","v":39.774252334568963},39.790924671749217,39.80760400593703,39.824290340072594,39.84098367709732]
[]
[null,null,null,"Fuel costs weighted averages"]
[null,null,null,"Car - Scheme",null,null,null,null,null,"pence per km, 2023 prices",{"$f":"K168*(1-$E$151)+K185*$E$151","v":14.18478982894119},13.137114555701208,{"$f":"M168*(1-$E$151)+M185*$E$151","v":12.457984899429169},{"$f":"N168*(1-$E$151)+N185*$E$151","v":12.231916179998061},12.075506434233802,11.712703949879671,11.186974407692292,10.477193323070935,9.8774252878464406,9.3388661090623195,8.8285950081993239,8.355464810155075,7.9949186942850279,7.5886908391608614,7.2174910139960238,6.9281769030522096,6.6787166605431354,6.4035418304204992,6.1996029672053083,5.98917837309628,5.8148563658928607,5.678565870915544,5.5477782249368968,5.4173433824509756,5.3515931692932517,5.29496461508755,5.2484338690010359,5.2483677410240217,5.2494845337446465,5.2506023276512535,5.2517211236413832,5.252840922613391,5.2539617254664304,5.2550835331004651,5.2562063464162661,5.2573301663154073,5.2584549937002771,5.2595808294740651,5.2607076745407824,5.2618355298052348,5.2629643961730519,5.2640942745506738,5.2652251658453428,5.2663570709651299,5.2674899908189063,5.2686239263163683,5.2697588783680196,5.270894847885188,5.2720318357800116,5.2731698429654505,5.2743088703552798,5.2754489188640976,5.2765899894073209,5.2777320829011813,5.2788752002627417,5.2800193424098811,5.281164510261303,5.282310704736533,5.2834579267559221,5.2846061772406481,5.2857554571127121,5.2869057672949431,5.2880571087109933,5.2892094822853526,5.2903628889433278,5.2915173296110654,5.2926728052155374,{"$f":"BZ168*(1-$E$151)+BZ185*$E$151","v":5.2938285522773665},{"$f":"CA168*(1-$E$151)+CA185*$E$151","v":5.2949845708683174},5.296140861060179,5.2972974229247587,5.2984542565338915,5.2996113619594274]
[null,null,null,"LGV - Scheme",null,null,null,null,null,"pence per km, 2023 prices",{"$f":"K176*(1-$E$152)+K193*$E$152","v":14.689103860650199},13.723287410028455,{"$f":"M176*(1-$E$152)+M193*$E$152","v":13.129598130529857},12.987937364323708,12.904776512932438,12.626967757837775,12.203284412285779,11.633233036513397,11.187172332266092,10.832440506038495,10.492922134797054,10.207744898344771,10.055072980776925,9.8050224760042735,9.5736957880090863,9.4064062044336136,9.318312727337501,9.1681652131921023,9.1061120525421728,8.9904645061664521,8.9027547471042396,8.7810745273242325,8.7646826216352789,8.6497479404601698,8.606188631890916,8.5614040291005598,8.5169422008828555,8.5274264902176746,8.5294873946552965,8.5315501466592494,8.5336147478858422,8.5356811999928741,8.5377495046396277,8.5398196634868739,8.5418916781968708,8.5439655504333718,8.5460412818616156,8.5481188741483365,8.5501983289617645,8.5522796479716199,8.5543628328491295,8.5564478852670103,8.5585348068994787,8.5606235994222519,8.5627142645125609,8.564806803849125,8.5669012191121734,8.5689975119834418,8.5710956841461812,8.5731957372851397,8.5752976730865864,8.5774014932382894,8.5795071994295409,8.5816147933511431,8.5837242766954116,8.585835651156188,8.5879489184288289,8.5900640802101993,8.5921811381987006,8.5943000940942476,8.5964209495982828,8.5985437064137766,8.6006683662452161,8.602794930798634,{"$f":"BW176*(1-$E$152)+BW193*$E$152","v":8.604923401781571},8.6070537809031169,8.6091860698738785,8.6113188957220519,{"$f":"CA176*(1-$E$152)+CA193*$E$152","v":8.6134522585865607},8.6155861586063693,8.6177205959204777,8.6198555706679283,8.6219910829877957]
[null,null,null,"HGV - Rigids - Scheme",null,null,null,null,null,"pence per km, 2023 prices",{"$f":"K201","v":37.954234046418705},35.372059296784151,33.722574689216287,33.400977458499831,33.533235776606176,33.366980353264793,33.039331108423447,32.197477508217894,31.759185555539947,31.314933682939134,30.894351526787815,30.500050552934539,30.135714829193187,29.802416389196956,29.500550050736646,29.232000629179819,28.997258153503982,28.793857874482502,28.616568755648039,28.462449433846629,28.326738614852346,28.205260413563273,28.094700747438058,27.980379033173563,27.887777738987875,27.79964151945676,27.715177568573431,27.633362497481695,27.645544840084476,27.657738103953481,27.669942298879437,27.682157434661839,27.694383521108978,27.706620568037962,27.718868585274677,27.731127582653812,27.743397570018871,27.755678557222204,27.767970554124986,27.780273570597231,27.792587616517785,27.80491270177437,27.817248836263566,27.829596029890826,27.84195429257047,27.854323634225743,27.866704064788742,27.8790955942005,27.891498232410925,27.903911989378898,27.91633687507219,27.928772899467507,27.941220072550522,27.953678404315834,27.96614790476702,27.97862858391662,27.991120451786156,28.003623518406126,28.016137793816025,28.02866328806433,28.041200011208552,28.053747973315211,28.066307184459845,28.07887765472703,{"$f":"BW201","v":28.091459394210368},28.10405241301255,28.116656721245281,28.129266682349122,{"$f":"CA201","v":28.141882298859318},28.15450357331224,28.16713050824541,28.17976310619747,28.192401369708225]
[null,null,null,"HGV - Artics - Scheme",null,null,null,null,null,"pence per km, 2023 prices",{"$f":"K209","v":76.344671010290895},71.10902816932844,67.181290278409378,65.965821648107209,65.664615175328692,64.82879789196835,63.7171878991753,60.962751534103354,59.011974627788362,57.228999291343676,55.663903437729907,54.271849194213985,53.082954944879845,52.108057787700197,51.335201126296965,50.743238871776654,50.307358226569697,49.985060851533049,49.74688693551947,49.568319762122542,49.430913736863069,49.323523920744648,49.236572745042608,49.140479443682736,49.087921363780424,49.042943326383373,49.00362077776699,48.96842895885726,48.990017000426626,49.011624395313881,49.033251160868964,49.054897314457328,49.076562873460006,49.098247855273677,49.119952277310524,49.141676156998408,49.163419511780766,49.185182359116695,49.206964716480954,49.228766601363972,49.250588031271811,49.272429023726282,49.294289596264861,49.316169766440773,49.338069551822962,49.359988969996181,49.381928038560822,49.403886775133202,49.425865197345296,49.447863322845016,49.469881169295988,49.491918754377728,49.513976095785594,49.536053211230772,49.558150118440395,49.58026683515741,49.602403379140746,49.624559768165184,49.646736020021514,49.668932152516369,49.69114818347245,49.713384130728407,49.735640012138823,49.757915845574388,{"$f":"BW209","v":49.780211648921679},49.802527440083487,49.824863236978501,49.847209051192891,{"$f":"CA209","v":49.869564887219283},49.891930749552351,49.914306642688757,49.936692571127203,49.959088539368359]
[null,null,null,"PSV - Scheme",null,null,null,null,null,"pence per km, 2023 prices",{"$f":"K217","v":58.25419027614879},54.118937610693109,51.519423285423585,50.893496354334211,51.029912896383934,50.827343932284315,50.418960448242323,49.608231864786198,49.269649309269816,49.091824706926403,48.872166352257906,48.471790653367613,48.383932250765447,48.286060830260077,48.043979608543864,48.003165524309367,48.0968370890279,48.039302634843608,47.979183532662987,47.868772952732499,47.794330016789473,47.716898309588764,47.584952610134302,47.43647361438645,47.337199469362389,47.220466715180109,47.116037136984602,47.039974683560693,47.059567900217047,47.079178681864164,47.098807044248758,47.118453003131627,47.138116574287757,47.157797773506289,47.177496616590439,47.197213119357656,47.216947297639557,47.236699167281927,47.256468744144783,47.276256044102389,47.296061083043121,47.315883876869755,47.335724441499224,47.355582792862734,47.375458946905816,47.395352919588298,47.415264726884239,47.435194384782115,47.455141909284642,47.475107316408987,47.495090622186602,47.515091842663324,47.535110993899387,47.555148091969407,47.575203152962423,47.595276192981885,47.615367228145729,47.635476274586267,47.65560334845032,47.675748465899154,47.695911643108552,47.716092896268798,47.73629224158465,47.756509695275447,{"$f":"BW217","v":47.776745273575031},47.796998992731844,47.817270869008802,47.837551357233757,{"$f":"CA217","v":47.857840461071397},47.87813818418801,47.898444530251432,47.918759502931053,47.939083105897843]
[null,null,null,"Car - Diversion",null,null,null,null,null,"pence per km, 2023 prices",{"$f":"K169*(1-$E$151)+K186*$E$151","v":12.291737756646473},11.405533468341076,{"$f":"M169*(1-$E$151)+M186*$E$151","v":10.835592968939098},{"$f":"N169*(1-$E$151)+N186*$E$151","v":10.659721583055607},10.540382432242101,10.251256354886555,9.8268355886642258,9.2489368081943386,8.7570962856481547,8.3173241582353601,7.896693465961893,7.5050410538192844,7.2175901423515114,6.877251503199532,6.565986601168385,6.3302717185448802,6.1284748007643106,5.8962744659288191,5.7304958427025285,5.551163248521557,5.4019418804513144,5.2857649303833947,5.1706327863640329,5.0514437126494585,4.9941419872482262,4.943791073871763,4.9016046606499977,4.904436280957972,4.9054004369556026,4.9063654573029458,4.9073313427748753,4.9082980941469607,4.9092657121954675,4.9102341976973589,4.9112035514302885,4.9121737741726141,4.9131448667033855,4.9141168298023548,4.9150896642499733,4.9160633708273878,4.9170379503164483,4.9180134034997076,4.9189897311604156,4.9199669340825292,4.9209450130507024,4.9219239688502983,4.9229038022673786,4.9238845140887193,4.9248661051017875,4.9258485760947686,4.926831927856548,4.9278161611767208,4.92880127684559,4.9297872756541627,4.9307741583941631,4.9317619258580203,4.9327505788388724,4.9337401181305722,4.9347305445276826,4.9357218588254783,4.9367140618199477,4.9377071543077919,4.9387011370864258,4.9396960109539823,4.9406917767093068,4.9416884351519608,4.9426859870822275,{"$f":"BZ169*(1-$E$151)+BZ186*$E$151","v":4.9436837391781712},{"$f":"CA169*(1-$E$151)+CA186*$E$151","v":4.9446816914793743},4.9456798440254284,4.9466781968559284,4.9476767500104808,4.9486755035286958]
[null,null,null,"LGV - Diversion",null,null,null,null,null,"pence per km, 2023 prices",{"$f":"K177*(1-$E$152)+K194*$E$152","v":12.628433475441401},11.809368709464366,{"$f":"M177*(1-$E$152)+M194*$E$152","v":11.314171061937653},{"$f":"N177*(1-$E$152)+N194*$E$152","v":11.214468467027253},11.16878292018448,10.96562851211908,10.644853217109221,10.206523195667238,9.8656118114427809,9.6018094243181551,9.3451627925866898,9.1313819931512725,9.0402696608293294,8.8472159715489358,8.6672929433332264,8.5479560870639997,8.4951560666708552,8.3768309097917211,8.3406202501801836,8.247514109954551,8.1769109813409706,8.0776400183087436,8.0634176340727226,7.9583506955979377,7.9229791754621068,7.885086336796995,7.8465476153181912,7.8622388250732689,7.8640064344260452,7.8657756284110141,7.8675464084487761,7.8693187759611982,7.8710927323714275,7.8728682791038818,7.8746454175842588,7.8764241492395346,7.8782044754979621,7.8799863977890787,7.8817699175437008,7.8835550361939255,7.8853417551731377,7.887130075916005,7.8889199998584836,7.8907115284378122,7.8925046630925184,7.89429940526243,7.8960957563886529,7.897893717913588,7.8996932912809319,7.9014944779356755,7.9032972793241036,7.9051016968937979,7.9069077320936367,7.9087153863738013,7.9105246611857636,7.9123355579823098,7.9141480782175222,7.9159622233467823,7.9177779948267819,7.9195953941155164,7.9214144226722913,7.9232350819577153,7.9250573734337095,7.9268812985635098,7.9287068588116547,7.9305340556440047,7.9323628905277248,{"$f":"BZ177*(1-$E$152)+BZ194*$E$152","v":7.934192126174004},{"$f":"CA177*(1-$E$152)+CA194*$E$152","v":7.9360217626607081},7.9378518000657232,7.9396822384669381,7.9415130779422576,7.9433443185695989]
[null,null,null,"HGV - Rigids - Diversion",null,null,null,null,null,"pence per km, 2023 prices",{"$f":"K202","v":30.729352017319776},{"$f":"L202","v":28.6387142045606},{"$f":"M202","v":27.303221750909398},{"$f":"N202","v":27.042843040634423},27.149924964862905,27.015317547350595,26.750038870652109,26.068438615035689,25.713578925765525,25.353893833430167,25.01337274393142,24.694130010393689,24.399148409826008,24.129295905967247,23.884892159987771,23.667463198070788,23.477405768387506,23.312724305791583,23.169183542069629,23.044402025295668,22.934524810428584,22.836170924396331,22.746657145903956,22.654097454235277,22.579123532674618,22.507764724270391,22.439379139771621,22.373138200306862,22.383001539764031,22.392873721539914,22.402754753561506,22.412644643762892,22.422543400085281,22.432451030477011,22.442367542893543,22.452292945297451,22.46222724565845,22.472170451953431,22.482122572166407,22.492083614288561,22.502053586318226,22.512032496260922,22.522020352129328,22.53201716194333,22.542022933729974,22.55203767552354,22.562061395365465,22.572094101304447,22.582135801396337,22.592186503704276,22.602246216298582,22.612314947256831,22.622392704663827,22.632479496611644,22.642575331199584,22.652680216534229,22.662794160729426,22.672917171906285,22.683049258193208,22.69319042772587,22.703340688647256,22.713500049107648,22.723668517264617,22.733846101283078,22.74403280933522,22.754228649600623,22.764433630266144,{"$f":"BZ202","v":22.774643187735037},{"$f":"CA202","v":22.784857324059939},22.795076041294408,22.805299341492915,22.815527226710874,22.8257596990046]
[null,null,null,"HGV - Artics - Diversion",null,null,null,null,null,"pence per km, 2023 prices",{"$f":"K210","v":61.430154449087482},{"$f":"L210","v":57.217334561275926},{"$f":"M210","v":54.056910368182379},{"$f":"N210","v":53.078892849743951},52.836529369765692,52.163995398126467,51.269546936422792,49.053210824322129,47.4835331367401,46.048875696380634,44.789533312127503,43.669427533308131,42.712792886858701,41.928349360611143,41.306476170921108,40.830158279416779,40.479430258690591,40.220096145843769,40.028451329606533,39.884768622010206,39.774205916817763,39.687795524276751,39.617830927112053,39.540510188598901,39.498219732392592,39.462028499297283,39.430387911907623,39.40207108451991,39.419441736725368,39.436827961429749,39.454229772593543,39.471647184189727,39.489080210203838,39.506528864633935,39.523993161490665,39.541473114797164,39.558968738589172,39.576480046915037,39.594007053835682,39.611549773424642,39.629108219768042,39.646682406964665,39.664272349125916,39.681878060375851,39.699499554851194,39.717136846701372,39.734789950088441,39.752458879187188,39.770143648185062,39.787844271282331,39.805560762691897,39.823293136639435,39.841041407363377,39.858805589114915,39.876585696158017,39.894381742769447,39.91219374323876,39.930021711868328,39.947865662973335,39.965725610881783,39.983601569934564,40.001493554485407,40.019401578900869,40.037325657560444,40.055265804856475,40.073222035194263,40.091194362991956,{"$f":"BZ210","v":40.109174751148913},{"$f":"CA210","v":40.127163203280105},40.145159723002116,40.163164313933173,40.181176979693099,40.199197723903332]
[null,null,null,"PSV - Diversion",null,null,null,null,null,"pence per km, 2023 prices",{"$f":"K218","v":48.270887328526818},{"$f":"L218","v":44.989571624896271},{"$f":"M218","v":42.933019715713179},{"$f":"N218","v":42.502226319478154},42.593940591800141,42.422668907715163,42.08648672195261,41.425708802423422,41.138749275308371,40.993457199143023,40.807117577994816,40.469790622473752,40.406365817383318,40.307018955755595,40.087590780786556,40.042692091772686,40.107431095754826,40.035856820204074,39.973234687149585,39.861426046404631,39.782317033717824,39.705616315373781,39.583516905997527,39.445061400597851,39.357317362495309,39.255298390486381,39.163762677009181,39.10245584214919,39.118549753429633,39.134658092632137,39.150780872691087,39.166918106552465,39.183069807173844,39.199235987524467,39.215416660585149,39.231611839348382,39.247821536818243,39.26404576601054,39.280284539952717,39.29653787168391,39.312805774254905,39.329088260728241,39.34538534417814,39.361697037690519,39.378023354363073,39.394364307305246,39.410719909638161,39.427090174494793,39.443475115019801,39.459874744369735,39.476289075712842,39.492718122229221,39.509161897110793,39.525620413561263,39.542093684796221,39.558581724043066,39.575084544541106,39.591602159541459,39.608134582307166,39.624681826113111,39.641243904246132,39.657820830004951,39.674412616700224,39.691019277654519,39.707640826202351,39.724277275690227,39.740928639476564,{"$f":"BZ218","v":39.757586991457316},{"$f":"CA218","v":39.774252334568963},39.790924671749217,39.80760400593703,39.824290340072594,39.84098367709732]
[]
[null,null,"Non-fuel costs"]
[]
[null,null,null,"The non-fuel elements of VOC are combined in a formula of the form:",null,null,null,null,"C = a1 + b1/V"]
[null,null,null,"where:"]
[null,null,null,"C = cost in pence per kilometre travelled,"]
[null,null,null,"V = average link speed in kilometres per hour,"]
[null,null,null,"a1 is a parameter for distance related costs defined for each vehicle category,"]
[null,null,null,"b1 is a parameter for vehicle capital saving defined for each vehicle category (this parameter is only relevant to working vehicles)."]
[]
[null,null,null,"Car - Average",null,null,null,null,null,"a1",{"$f":"INDEX('TAG - A1.3.15'!$I$13:$I$53, MATCH(K$10, 'TAG - A1.3.15'!$C$13:$C$53,0))","v":5.2729294952014465},{"$f":"INDEX('TAG - A1.3.15'!$I$13:$I$53, MATCH(L$10, 'TAG - A1.3.15'!$C$13:$C$53,0))","v":5.1850216308329173},{"$f":"INDEX('TAG - A1.3.15'!$I$13:$I$53, MATCH(M$10, 'TAG - A1.3.15'!$C$13:$C$53,0))","v":5.083739317510978},{"$f":"INDEX('TAG - A1.3.15'!$I$13:$I$53, MATCH(N$10, 'TAG - A1.3.15'!$C$13:$C$53,0))","v":4.9698228063354648},{"$f":"INDEX('TAG - A1.3.15'!$I$13:$I$53, MATCH(O$10, 'TAG - A1.3.15'!$C$13:$C$53,0))","v":4.8400997821137359},{"$f":"INDEX('TAG - A1.3.15'!$I$13:$I$53, MATCH(P$10, 'TAG - A1.3.15'!$C$13:$C$53,0))","v":4.6650626293158428},{"$f":"INDEX('TAG - A1.3.15'!$I$13:$I$53, MATCH(Q$10, 'TAG - A1.3.15'!$C$13:$C$53,0))","v":4.4485967616133673},{"$f":"INDEX('TAG - A1.3.15'!$I$13:$I$53, MATCH(R$10, 'TAG - A1.3.15'!$C$13:$C$53,0))","v":4.1949506936291154},{"$f":"INDEX('TAG - A1.3.15'!$I$13:$I$53, MATCH(S$10, 'TAG - A1.3.15'!$C$13:$C$53,0))","v":3.960867964078215},{"$f":"INDEX('TAG - A1.3.15'!$I$13:$I$53, MATCH(T$10, 'TAG - A1.3.15'!$C$13:$C$53,0))","v":3.7479502648820948},{"$f":"INDEX('TAG - A1.3.15'!$I$13:$I$53, MATCH(U$10, 'TAG - A1.3.15'!$C$13:$C$53,0))","v":3.5551816737053246},{"$f":"INDEX('TAG - A1.3.15'!$I$13:$I$53, MATCH(V$10, 'TAG - A1.3.15'!$C$13:$C$53,0))","v":3.3811997396812239},{"$f":"INDEX('TAG - A1.3.15'!$I$13:$I$53, MATCH(W$10, 'TAG - A1.3.15'!$C$13:$C$53,0))","v":3.2256532080795668},{"$f":"INDEX('TAG - A1.3.15'!$I$13:$I$53, MATCH(X$10, 'TAG - A1.3.15'!$C$13:$C$53,0))","v":3.0861688354031878},{"$f":"INDEX('TAG - A1.3.15'!$I$13:$I$53, MATCH(Y$10, 'TAG - A1.3.15'!$C$13:$C$53,0))","v":2.9591174796468422},{"$f":"INDEX('TAG - A1.3.15'!$I$13:$I$53, MATCH(Z$10, 'TAG - A1.3.15'!$C$13:$C$53,0))","v":2.8453428969210104},{"$f":"INDEX('TAG - A1.3.15'!$I$13:$I$53, MATCH(AA$10, 'TAG - A1.3.15'!$C$13:$C$53,0))","v":2.7433368744978024},{"$f":"INDEX('TAG - A1.3.15'!$I$13:$I$53, MATCH(AB$10, 'TAG - A1.3.15'!$C$13:$C$53,0))","v":2.6518902162327307},{"$f":"INDEX('TAG - A1.3.15'!$I$13:$I$53, MATCH(AC$10, 'TAG - A1.3.15'!$C$13:$C$53,0))","v":2.5741556926806854},{"$f":"INDEX('TAG - A1.3.15'!$I$13:$I$53, MATCH(AD$10, 'TAG - A1.3.15'!$C$13:$C$53,0))","v":2.5091054308956378},{"$f":"INDEX('TAG - A1.3.15'!$I$13:$I$53, MATCH(AE$10, 'TAG - A1.3.15'!$C$13:$C$53,0))","v":2.4557003723389843},{"$f":"INDEX('TAG - A1.3.15'!$I$13:$I$53, MATCH(AF$10, 'TAG - A1.3.15'!$C$13:$C$53,0))","v":2.41396984653989},{"$f":"INDEX('TAG - A1.3.15'!$I$13:$I$53, MATCH(AG$10, 'TAG - A1.3.15'!$C$13:$C$53,0))","v":2.3819936011190919},{"$f":"INDEX('TAG - A1.3.15'!$I$13:$I$53, MATCH(AH$10, 'TAG - A1.3.15'!$C$13:$C$53,0))","v":2.3583492477391879},{"$f":"INDEX('TAG - A1.3.15'!$I$13:$I$53, MATCH(AI$10, 'TAG - A1.3.15'!$C$13:$C$53,0))","v":2.3405196431809783},{"$f":"INDEX('TAG - A1.3.15'!$I$13:$I$53, MATCH(AJ$10, 'TAG - A1.3.15'!$C$13:$C$53,0))","v":2.3272015307367817},{"$f":"INDEX('TAG - A1.3.15'!$I$13:$I$53, MATCH(AK$10, 'TAG - A1.3.15'!$C$13:$C$53,0))","v":2.3178988170763719},{"$f":"INDEX('TAG - A1.3.15'!$I$13:$I$53, MATCH(AL$10, 'TAG - A1.3.15'!$C$13:$C$53,0))","v":2.3115993149665588},{"$f":"AL241*AL241/AK241","v":2.305316933417203},{"$f":"AM241*AM241/AL241","v":2.2990516258986604},2.2928033460077439,2.286572047467379,2.2803576841262614,2.2741602099585148,2.267979579063351,2.261815745664729,2.2556686641110164,2.2495382888746511,2.243424574551804,2.2373274758620432,2.2312469476479979,2.2251829448750251,2.2191354226308748,2.2131043361253582,2.2070896406900151,2.2010912917777841,2.1951092449626719,2.1891434559394249,2.1831938805232007,2.1772604746492408,2.1713431943725441,2.1654419958675422,2.1595568354277739,2.1536876694655618,2.1478344545116896,2.1419971472150801,2.1361757043424734,2.1303700827781085,2.1245802395234024,2.118806131696632,2.1130477165326167,2.1073049513824014,2.101577793712941,2.0958662011067855,2.0901701312617651,2.0844895419906777,2.0788243912209756,2.0731746369944544,{"$f":"BZ241*BZ241/BY241","v":2.0675402374669423},{"$f":"CA241*CA241/BZ241","v":2.06192115090799},{"$f":"CB241*CB241/CA241","v":2.056317335700562},{"$f":"CC241*CC241/CB241","v":2.0507287503407281},{"$f":"CD241*CD241/CC241","v":2.0451553534373557}]
[null,null,null,"Car - Average",null,null,null,null,null,"b1",{"$f":"INDEX('TAG - A1.3.15'!$J$13:$J$53, MATCH(K$10, 'TAG - A1.3.15'!$C$13:$C$53,0))","v":22.730001676734869},{"$f":"INDEX('TAG - A1.3.15'!$J$13:$J$53, MATCH(L$10, 'TAG - A1.3.15'!$C$13:$C$53,0))","v":22.730001676734854},{"$f":"INDEX('TAG - A1.3.15'!$J$13:$J$53, MATCH(M$10, 'TAG - A1.3.15'!$C$13:$C$53,0))","v":22.730001676734858},{"$f":"INDEX('TAG - A1.3.15'!$J$13:$J$53, MATCH(N$10, 'TAG - A1.3.15'!$C$13:$C$53,0))","v":22.730001676734858},{"$f":"INDEX('TAG - A1.3.15'!$J$13:$J$53, MATCH(O$10, 'TAG - A1.3.15'!$C$13:$C$53,0))","v":22.730001676734858},{"$f":"INDEX('TAG - A1.3.15'!$J$13:$J$53, MATCH(P$10, 'TAG - A1.3.15'!$C$13:$C$53,0))","v":22.730001676734858},{"$f":"INDEX('TAG - A1.3.15'!$J$13:$J$53, MATCH(Q$10, 'TAG - A1.3.15'!$C$13:$C$53,0))","v":22.730001676734865},{"$f":"INDEX('TAG - A1.3.15'!$J$13:$J$53, MATCH(R$10, 'TAG - A1.3.15'!$C$13:$C$53,0))","v":22.730001676734854},{"$f":"INDEX('TAG - A1.3.15'!$J$13:$J$53, MATCH(S$10, 'TAG - A1.3.15'!$C$13:$C$53,0))","v":22.730001676734865},{"$f":"INDEX('TAG - A1.3.15'!$J$13:$J$53, MATCH(T$10, 'TAG - A1.3.15'!$C$13:$C$53,0))","v":22.730001676734869},{"$f":"INDEX('TAG - A1.3.15'!$J$13:$J$53, MATCH(U$10, 'TAG - A1.3.15'!$C$13:$C$53,0))","v":22.730001676734865},{"$f":"INDEX('TAG - A1.3.15'!$J$13:$J$53, MATCH(V$10, 'TAG - A1.3.15'!$C$13:$C$53,0))","v":22.730001676734858},{"$f":"INDEX('TAG - A1.3.15'!$J$13:$J$53, MATCH(W$10, 'TAG - A1.3.15'!$C$13:$C$53,0))","v":22.730001676734858},{"$f":"INDEX('TAG - A1.3.15'!$J$13:$J$53, MATCH(X$10, 'TAG - A1.3.15'!$C$13:$C$53,0))","v":22.730001676734858},{"$f":"INDEX('TAG - A1.3.15'!$J$13:$J$53, MATCH(Y$10, 'TAG - A1.3.15'!$C$13:$C$53,0))","v":22.730001676734858},{"$f":"INDEX('TAG - A1.3.15'!$J$13:$J$53, MATCH(Z$10, 'TAG - A1.3.15'!$C$13:$C$53,0))","v":22.730001676734865},{"$f":"INDEX('TAG - A1.3.15'!$J$13:$J$53, MATCH(AA$10, 'TAG - A1.3.15'!$C$13:$C$53,0))","v":22.730001676734858},{"$f":"INDEX('TAG - A1.3.15'!$J$13:$J$53, MATCH(AB$10, 'TAG - A1.3.15'!$C$13:$C$53,0))","v":22.730001676734858},{"$f":"INDEX('TAG - A1.3.15'!$J$13:$J$53, MATCH(AC$10, 'TAG - A1.3.15'!$C$13:$C$53,0))","v":22.730001676734858},{"$f":"INDEX('TAG - A1.3.15'!$J$13:$J$53, MATCH(AD$10, 'TAG - A1.3.15'!$C$13:$C$53,0))","v":22.730001676734854},{"$f":"INDEX('TAG - A1.3.15'!$J$13:$J$53, MATCH(AE$10, 'TAG - A1.3.15'!$C$13:$C$53,0))","v":22.730001676734854},{"$f":"INDEX('TAG - A1.3.15'!$J$13:$J$53, MATCH(AF$10, 'TAG - A1.3.15'!$C$13:$C$53,0))","v":22.730001676734858},{"$f":"INDEX('TAG - A1.3.15'!$J$13:$J$53, MATCH(AG$10, 'TAG - A1.3.15'!$C$13:$C$53,0))","v":22.730001676734858},{"$f":"INDEX('TAG - A1.3.15'!$J$13:$J$53, MATCH(AH$10, 'TAG - A1.3.15'!$C$13:$C$53,0))","v":22.730001676734858},{"$f":"INDEX('TAG - A1.3.15'!$J$13:$J$53, MATCH(AI$10, 'TAG - A1.3.15'!$C$13:$C$53,0))","v":22.730001676734865},{"$f":"INDEX('TAG - A1.3.15'!$J$13:$J$53, MATCH(AJ$10, 'TAG - A1.3.15'!$C$13:$C$53,0))","v":22.730001676734858},{"$f":"INDEX('TAG - A1.3.15'!$J$13:$J$53, MATCH(AK$10, 'TAG - A1.3.15'!$C$13:$C$53,0))","v":22.730001676734858},{"$f":"INDEX('TAG - A1.3.15'!$J$13:$J$53, MATCH(AL$10, 'TAG - A1.3.15'!$C$13:$C$53,0))","v":22.730001676734858},{"$f":"AL242*AL242/AK242","v":22.730001676734858},22.730001676734858,22.730001676734858,22.730001676734858,22.730001676734858,22.730001676734858,22.730001676734858,22.730001676734858,22.730001676734858,22.730001676734858,22.730001676734858,22.730001676734858,22.730001676734858,22.730001676734858,22.730001676734858,22.730001676734858,22.730001676734858,22.730001676734858,22.730001676734858,22.730001676734858,22.730001676734858,22.730001676734858,22.730001676734858,22.730001676734858,22.730001676734858,22.730001676734858,22.730001676734858,22.730001676734858,22.730001676734858,22.730001676734858,22.730001676734858,22.730001676734858,22.730001676734858,22.730001676734858,22.730001676734858,22.730001676734858,22.730001676734858,22.730001676734858,22.730001676734858,22.730001676734858,22.730001676734858,22.730001676734858,22.730001676734858,22.730001676734858,22.730001676734858]
[]
[null,null,null,"LGV - Work",null,null,null,null,null,"a1",{"$f":"'TAG - A1.3.14'!$E$20","v":10.000664103575563},{"$f":"K244","v":10.000664103575563},{"$f":"L244","v":10.000664103575563},10.000664103575563,10.000664103575563,10.000664103575563,10.000664103575563,10.000664103575563,10.000664103575563,10.000664103575563,10.000664103575563,10.000664103575563,10.000664103575563,10.000664103575563,10.000664103575563,10.000664103575563,10.000664103575563,10.000664103575563,10.000664103575563,10.000664103575563,10.000664103575563,10.000664103575563,10.000664103575563,10.000664103575563,10.000664103575563,10.000664103575563,10.000664103575563,10.000664103575563,10.000664103575563,10.000664103575563,10.000664103575563,10.000664103575563,10.000664103575563,10.000664103575563,10.000664103575563,10.000664103575563,10.000664103575563,10.000664103575563,10.000664103575563,10.000664103575563,10.000664103575563,10.000664103575563,10.000664103575563,10.000664103575563,10.000664103575563,10.000664103575563,10.000664103575563,10.000664103575563,10.000664103575563,10.000664103575563,10.000664103575563,10.000664103575563,10.000664103575563,10.000664103575563,10.000664103575563,10.000664103575563,10.000664103575563,10.000664103575563,10.000664103575563,10.000664103575563,10.000664103575563,10.000664103575563,10.000664103575563,10.000664103575563,10.000664103575563,10.000664103575563,{"$f":"BX244","v":10.000664103575563},10.000664103575563,{"$f":"BZ244","v":10.000664103575563},{"$f":"CA244","v":10.000664103575563},{"$f":"CB244","v":10.000664103575563},{"$f":"CC244","v":10.000664103575563},{"$f":"CD244","v":10.000664103575563}]
[null,null,null,"LGV - Work",null,null,null,null,null,"b1",{"$f":"'TAG - A1.3.14'!$F$20","v":65.321126842056771},{"$f":"K245","v":65.321126842056771},65.321126842056771,65.321126842056771,65.321126842056771,65.321126842056771,65.321126842056771,65.321126842056771,65.321126842056771,65.321126842056771,65.321126842056771,65.321126842056771,65.321126842056771,65.321126842056771,65.321126842056771,65.321126842056771,65.321126842056771,65.321126842056771,65.321126842056771,65.321126842056771,65.321126842056771,65.321126842056771,65.321126842056771,65.321126842056771,65.321126842056771,65.321126842056771,65.321126842056771,65.321126842056771,65.321126842056771,65.321126842056771,65.321126842056771,65.321126842056771,65.321126842056771,65.321126842056771,65.321126842056771,65.321126842056771,65.321126842056771,65.321126842056771,65.321126842056771,65.321126842056771,65.321126842056771,65.321126842056771,65.321126842056771,65.321126842056771,65.321126842056771,65.321126842056771,65.321126842056771,65.321126842056771,65.321126842056771,65.321126842056771,65.321126842056771,65.321126842056771,65.321126842056771,65.321126842056771,65.321126842056771,65.321126842056771,65.321126842056771,65.321126842056771,65.321126842056771,65.321126842056771,65.321126842056771,65.321126842056771,65.321126842056771,65.321126842056771,65.321126842056771,65.321126842056771,65.321126842056771,65.321126842056771,65.321126842056771,65.321126842056771,65.321126842056771,65.321126842056771,65.321126842056771]
[]
[null,null,null,"LGV - Non-Work",null,null,null,null,null,"a1",{"$f":"'TAG - A1.3.14'!$E$22","v":10.000664103575563},{"$f":"K247","v":10.000664103575563},{"$f":"L247","v":10.000664103575563},{"$f":"M247","v":10.000664103575563},{"$f":"N247","v":10.000664103575563},{"$f":"O247","v":10.000664103575563},{"$f":"P247","v":10.000664103575563},{"$f":"Q247","v":10.000664103575563},{"$f":"R247","v":10.000664103575563},{"$f":"S247","v":10.000664103575563},{"$f":"T247","v":10.000664103575563},{"$f":"U247","v":10.000664103575563},{"$f":"V247","v":10.000664103575563},{"$f":"W247","v":10.000664103575563},{"$f":"X247","v":10.000664103575563},{"$f":"Y247","v":10.000664103575563},{"$f":"Z247","v":10.000664103575563},{"$f":"AA247","v":10.000664103575563},{"$f":"AB247","v":10.000664103575563},{"$f":"AC247","v":10.000664103575563},{"$f":"AD247","v":10.000664103575563},{"$f":"AE247","v":10.000664103575563},{"$f":"AF247","v":10.000664103575563},{"$f":"AG247","v":10.000664103575563},{"$f":"AH247","v":10.000664103575563},{"$f":"AI247","v":10.000664103575563},{"$f":"AJ247","v":10.000664103575563},{"$f":"AK247","v":10.000664103575563},{"$f":"AL247","v":10.000664103575563},{"$f":"AM247","v":10.000664103575563},{"$f":"AN247","v":10.000664103575563},{"$f":"AO247","v":10.000664103575563},{"$f":"AP247","v":10.000664103575563},{"$f":"AQ247","v":10.000664103575563},{"$f":"AR247","v":10.000664103575563},{"$f":"AS247","v":10.000664103575563},{"$f":"AT247","v":10.000664103575563},{"$f":"AU247","v":10.000664103575563},{"$f":"AV247","v":10.000664103575563},{"$f":"AW247","v":10.000664103575563},{"$f":"AX247","v":10.000664103575563},{"$f":"AY247","v":10.000664103575563},{"$f":"AZ247","v":10.000664103575563},{"$f":"BA247","v":10.000664103575563},{"$f":"BB247","v":10.000664103575563},{"$f":"BC247","v":10.000664103575563},{"$f":"BD247","v":10.000664103575563},{"$f":"BE247","v":10.000664103575563},{"$f":"BF247","v":10.000664103575563},{"$f":"BG247","v":10.000664103575563},{"$f":"BH247","v":10.000664103575563},{"$f":"BI247","v":10.000664103575563},{"$f":"BJ247","v":10.000664103575563},{"$f":"BK247","v":10.000664103575563},{"$f":"BL247","v":10.000664103575563},{"$f":"BM247","v":10.000664103575563},{"$f":"BN247","v":10.000664103575563},{"$f":"BO247","v":10.000664103575563},{"$f":"BP247","v":10.000664103575563},{"$f":"BQ247","v":10.000664103575563},{"$f":"BR247","v":10.000664103575563},{"$f":"BS247","v":10.000664103575563},{"$f":"BT247","v":10.000664103575563},{"$f":"BU247","v":10.000664103575563},{"$f":"BV247","v":10.000664103575563},{"$f":"BW247","v":10.000664103575563},{"$f":"BX247","v":10.000664103575563},{"$f":"BY247","v":10.000664103575563},{"$f":"BZ247","v":10.000664103575563},{"$f":"CA247","v":10.000664103575563},{"$f":"CB247","v":10.000664103575563},{"$f":"CC247","v":10.000664103575563},{"$f":"CD247","v":10.000664103575563}]
[null,null,null,"LGV - Non-Work",null,null,null,null,null,"b1",{"$f":"'TAG - A1.3.14'!$F$22","v":0},{"$f":"K248","v":0},0,0,0,0,0,0,0,0,0,0,0,0,0,0,0,0,0,0,0,0,0,0,0,0,0,0,0,0,0,0,0,0,0,0,0,0,0,0,0,0,0,0,0,0,0,0,0,0,0,0,0,0,0,0,0,0,0,0,0,0,0,0,0,0,0,0,0,0,0,0,0]
[]
[null,null,null,"LGV - Weighted Average",null,null,null,null,null,"a1",{"$f":"K244*$E$152+K247*(1-$E$152)","v":10.000664103575563},{"$f":"L244*$E$152+L247*(1-$E$152)","v":10.000664103575563},10.000664103575563,10.000664103575563,10.000664103575563,10.000664103575563,10.000664103575563,10.000664103575563,10.000664103575563,10.000664103575563,10.000664103575563,10.000664103575563,10.000664103575563,10.000664103575563,10.000664103575563,10.000664103575563,10.000664103575563,10.000664103575563,10.000664103575563,10.000664103575563,10.000664103575563,10.000664103575563,10.000664103575563,10.000664103575563,10.000664103575563,10.000664103575563,10.000664103575563,10.000664103575563,10.000664103575563,10.000664103575563,10.000664103575563,10.000664103575563,10.000664103575563,10.000664103575563,10.000664103575563,10.000664103575563,10.000664103575563,10.000664103575563,10.000664103575563,10.000664103575563,10.000664103575563,10.000664103575563,10.000664103575563,10.000664103575563,10.000664103575563,10.000664103575563,10.000664103575563,10.000664103575563,10.000664103575563,10.000664103575563,10.000664103575563,10.000664103575563,10.000664103575563,10.000664103575563,10.000664103575563,10.000664103575563,10.000664103575563,10.000664103575563,10.000664103575563,10.000664103575563,10.000664103575563,10.000664103575563,10.000664103575563,10.000664103575563,10.000664103575563,{"$f":"BX244*$E$152+BX247*(1-$E$152)","v":10.000664103575563},10.000664103575563,10.000664103575563,{"$f":"CA244*$E$152+CA247*(1-$E$152)","v":10.000664103575563},10.000664103575563,10.000664103575563,10.000664103575563,10.000664103575563]
[null,null,null,"LGV - Weighted Average",null,null,null,null,null,"b1",{"$f":"K245*$E$152+K248*(1-$E$152)","v":57.482591621009959},57.482591621009959,57.482591621009959,57.482591621009959,57.482591621009959,57.482591621009959,57.482591621009959,57.482591621009959,57.482591621009959,57.482591621009959,57.482591621009959,57.482591621009959,57.482591621009959,57.482591621009959,57.482591621009959,57.482591621009959,57.482591621009959,57.482591621009959,57.482591621009959,57.482591621009959,57.482591621009959,57.482591621009959,57.482591621009959,57.482591621009959,57.482591621009959,57.482591621009959,57.482591621009959,57.482591621009959,57.482591621009959,57.482591621009959,57.482591621009959,57.482591621009959,57.482591621009959,57.482591621009959,57.482591621009959,57.482591621009959,57.482591621009959,57.482591621009959,57.482591621009959,57.482591621009959,57.482591621009959,57.482591621009959,57.482591621009959,57.482591621009959,57.482591621009959,57.482591621009959,57.482591621009959,57.482591621009959,57.482591621009959,57.482591621009959,57.482591621009959,57.482591621009959,57.482591621009959,57.482591621009959,57.482591621009959,57.482591621009959,57.482591621009959,57.482591621009959,57.482591621009959,57.482591621009959,57.482591621009959,57.482591621009959,57.482591621009959,57.482591621009959,57.482591621009959,57.482591621009959,57.482591621009959,57.482591621009959,{"$f":"CA245*$E$152+CA248*(1-$E$152)","v":57.482591621009959},57.482591621009959,57.482591621009959,57.482591621009959,57.482591621009959]
[]
[null,null,null,"HGV - Rigids",null,null,null,null,null,"a1",{"$f":"'TAG - A1.3.14'!E24","v":9.3088116999038295},{"$f":"K253","v":9.3088116999038295},{"$f":"L253","v":9.3088116999038295},9.3088116999038295,9.3088116999038295,9.3088116999038295,9.3088116999038295,9.3088116999038295,9.3088116999038295,9.3088116999038295,9.3088116999038295,9.3088116999038295,9.3088116999038295,9.3088116999038295,9.3088116999038295,9.3088116999038295,9.3088116999038295,9.3088116999038295,9.3088116999038295,9.3088116999038295,9.3088116999038295,9.3088116999038295,9.3088116999038295,9.3088116999038295,9.3088116999038295,9.3088116999038295,9.3088116999038295,9.3088116999038295,9.3088116999038295,9.3088116999038295,9.3088116999038295,9.3088116999038295,9.3088116999038295,9.3088116999038295,9.3088116999038295,9.3088116999038295,9.3088116999038295,9.3088116999038295,9.3088116999038295,9.3088116999038295,9.3088116999038295,9.3088116999038295,9.3088116999038295,9.3088116999038295,9.3088116999038295,9.3088116999038295,9.3088116999038295,9.3088116999038295,9.3088116999038295,9.3088116999038295,9.3088116999038295,9.3088116999038295,9.3088116999038295,9.3088116999038295,9.3088116999038295,9.3088116999038295,9.3088116999038295,9.3088116999038295,9.3088116999038295,9.3088116999038295,9.3088116999038295,9.3088116999038295,9.3088116999038295,9.3088116999038295,9.3088116999038295,9.3088116999038295,{"$f":"BX253","v":9.3088116999038295},9.3088116999038295,{"$f":"BZ253","v":9.3088116999038295},{"$f":"CA253","v":9.3088116999038295},{"$f":"CB253","v":9.3088116999038295},{"$f":"CC253","v":9.3088116999038295},{"$f":"CD253","v":9.3088116999038295}]
[null,null,null,"HGV - Rigids",null,null,null,null,null,"b1",{"$f":"'TAG - A1.3.14'!F24","v":365.77640396686456},{"$f":"K254","v":365.77640396686456},365.77640396686456,365.77640396686456,365.77640396686456,365.77640396686456,365.77640396686456,365.77640396686456,365.77640396686456,365.77640396686456,365.77640396686456,365.77640396686456,365.77640396686456,365.77640396686456,365.77640396686456,365.77640396686456,365.77640396686456,365.77640396686456,365.77640396686456,365.77640396686456,365.77640396686456,365.77640396686456,365.77640396686456,365.77640396686456,365.77640396686456,365.77640396686456,365.77640396686456,365.77640396686456,365.77640396686456,365.77640396686456,365.77640396686456,365.77640396686456,365.77640396686456,365.77640396686456,365.77640396686456,365.77640396686456,365.77640396686456,365.77640396686456,365.77640396686456,365.77640396686456,365.77640396686456,365.77640396686456,365.77640396686456,365.77640396686456,365.77640396686456,365.77640396686456,365.77640396686456,365.77640396686456,365.77640396686456,365.77640396686456,365.77640396686456,365.77640396686456,365.77640396686456,365.77640396686456,365.77640396686456,365.77640396686456,365.77640396686456,365.77640396686456,365.77640396686456,365.77640396686456,365.77640396686456,365.77640396686456,365.77640396686456,365.77640396686456,365.77640396686456,365.77640396686456,365.77640396686456,365.77640396686456,365.77640396686456,365.77640396686456,365.77640396686456,365.77640396686456,365.77640396686456]
[]
[null,null,null,"HGV - Artics",null,null,null,null,null,"a1",{"$f":"'TAG - A1.3.14'!E25","v":18.10878606083466},{"$f":"K256","v":18.10878606083466},{"$f":"L256","v":18.10878606083466},18.10878606083466,18.10878606083466,18.10878606083466,18.10878606083466,18.10878606083466,18.10878606083466,18.10878606083466,18.10878606083466,18.10878606083466,18.10878606083466,18.10878606083466,18.10878606083466,18.10878606083466,18.10878606083466,18.10878606083466,18.10878606083466,18.10878606083466,18.10878606083466,18.10878606083466,18.10878606083466,18.10878606083466,18.10878606083466,18.10878606083466,18.10878606083466,18.10878606083466,18.10878606083466,18.10878606083466,18.10878606083466,18.10878606083466,18.10878606083466,18.10878606083466,18.10878606083466,18.10878606083466,18.10878606083466,18.10878606083466,18.10878606083466,18.10878606083466,18.10878606083466,18.10878606083466,18.10878606083466,18.10878606083466,18.10878606083466,18.10878606083466,18.10878606083466,18.10878606083466,18.10878606083466,18.10878606083466,18.10878606083466,18.10878606083466,18.10878606083466,18.10878606083466,18.10878606083466,18.10878606083466,18.10878606083466,18.10878606083466,18.10878606083466,18.10878606083466,18.10878606083466,18.10878606083466,18.10878606083466,18.10878606083466,18.10878606083466,18.10878606083466,{"$f":"BX256","v":18.10878606083466},18.10878606083466,{"$f":"BZ256","v":18.10878606083466},{"$f":"CA256","v":18.10878606083466},{"$f":"CB256","v":18.10878606083466},{"$f":"CC256","v":18.10878606083466},{"$f":"CD256","v":18.10878606083466}]
[null,null,null,"HGV - Artics",null,null,null,null,null,"b1",{"$f":"'TAG - A1.3.14'!F25","v":705.05860436306148},{"$f":"K257","v":705.05860436306148},705.05860436306148,705.05860436306148,705.05860436306148,705.05860436306148,705.05860436306148,705.05860436306148,705.05860436306148,705.05860436306148,705.05860436306148,705.05860436306148,705.05860436306148,705.05860436306148,705.05860436306148,705.05860436306148,705.05860436306148,705.05860436306148,705.05860436306148,705.05860436306148,705.05860436306148,705.05860436306148,705.05860436306148,705.05860436306148,705.05860436306148,705.05860436306148,705.05860436306148,705.05860436306148,705.05860436306148,705.05860436306148,705.05860436306148,705.05860436306148,705.05860436306148,705.05860436306148,705.05860436306148,705.05860436306148,705.05860436306148,705.05860436306148,705.05860436306148,705.05860436306148,705.05860436306148,705.05860436306148,705.05860436306148,705.05860436306148,705.05860436306148,705.05860436306148,705.05860436306148,705.05860436306148,705.05860436306148,705.05860436306148,705.05860436306148,705.05860436306148,705.05860436306148,705.05860436306148,705.05860436306148,705.05860436306148,705.05860436306148,705.05860436306148,705.05860436306148,705.05860436306148,705.05860436306148,705.05860436306148,705.05860436306148,705.05860436306148,705.05860436306148,705.05860436306148,705.05860436306148,705.05860436306148,705.05860436306148,705.05860436306148,705.05860436306148,705.05860436306148,705.05860436306148]
[]
[null,null,null,"PSV",null,null,null,null,null,"a1",{"$f":"'TAG - A1.3.14'!E26","v":42.233499134758794},{"$f":"K259","v":42.233499134758794},{"$f":"L259","v":42.233499134758794},42.233499134758794,42.233499134758794,42.233499134758794,42.233499134758794,42.233499134758794,42.233499134758794,42.233499134758794,42.233499134758794,42.233499134758794,42.233499134758794,42.233499134758794,42.233499134758794,42.233499134758794,42.233499134758794,42.233499134758794,42.233499134758794,42.233499134758794,42.233499134758794,42.233499134758794,42.233499134758794,42.233499134758794,42.233499134758794,42.233499134758794,42.233499134758794,42.233499134758794,42.233499134758794,42.233499134758794,42.233499134758794,42.233499134758794,42.233499134758794,42.233499134758794,42.233499134758794,42.233499134758794,42.233499134758794,42.233499134758794,42.233499134758794,42.233499134758794,42.233499134758794,42.233499134758794,42.233499134758794,42.233499134758794,42.233499134758794,42.233499134758794,42.233499134758794,42.233499134758794,42.233499134758794,42.233499134758794,42.233499134758794,42.233499134758794,42.233499134758794,42.233499134758794,42.233499134758794,42.233499134758794,42.233499134758794,42.233499134758794,42.233499134758794,42.233499134758794,42.233499134758794,42.233499134758794,42.233499134758794,42.233499134758794,42.233499134758794,42.233499134758794,{"$f":"BX259","v":42.233499134758794},42.233499134758794,{"$f":"BZ259","v":42.233499134758794},{"$f":"CA259","v":42.233499134758794},{"$f":"CB259","v":42.233499134758794},{"$f":"CC259","v":42.233499134758794},{"$f":"CD259","v":42.233499134758794}]
[null,null,null,"PSV",null,null,null,null,null,"b1",{"$f":"'TAG - A1.3.14'!F26","v":962.97397076751645},{"$f":"K260","v":962.97397076751645},962.97397076751645,962.97397076751645,962.97397076751645,962.97397076751645,962.97397076751645,962.97397076751645,962.97397076751645,962.97397076751645,962.97397076751645,962.97397076751645,962.97397076751645,962.97397076751645,962.97397076751645,962.97397076751645,962.97397076751645,962.97397076751645,962.97397076751645,962.97397076751645,962.97397076751645,962.97397076751645,962.97397076751645,962.97397076751645,962.97397076751645,962.97397076751645,962.97397076751645,962.97397076751645,962.97397076751645,962.97397076751645,962.97397076751645,962.97397076751645,962.97397076751645,962.97397076751645,962.97397076751645,962.97397076751645,962.97397076751645,962.97397076751645,962.97397076751645,962.97397076751645,962.97397076751645,962.97397076751645,962.97397076751645,962.97397076751645,962.97397076751645,962.97397076751645,962.97397076751645,962.97397076751645,962.97397076751645,962.97397076751645,962.97397076751645,962.97397076751645,962.97397076751645,962.97397076751645,962.97397076751645,962.97397076751645,962.97397076751645,962.97397076751645,962.97397076751645,962.97397076751645,962.97397076751645,962.97397076751645,962.97397076751645,962.97397076751645,962.97397076751645,962.97397076751645,962.97397076751645,962.97397076751645,962.97397076751645,962.97397076751645,962.97397076751645,962.97397076751645,962.97397076751645]
[]
[null,null,null,"Non-Fuel Costs Averages",null,null,null,null,null,null,"Each line has a different formula"]
[null,null,null,"Car - Scheme",null,null,null,null,null,"pence per km, 2023 prices",{"$f":"IF($E$146=\"\",0,K241+K242/$E$146)","v":6.668631352544816},{"$f":"IF($E$146=\"\",0,L241+L242/$E$146)","v":6.5807234881762859},6.4794411748543466,6.3655246636788334,6.2358016394571045,6.0607644866592114,5.8442986189567367,5.590652550972484,5.3565698214215836,5.1436521222254639,4.9508835310486941,4.776901597024592,4.6213550654229358,4.4818706927465559,4.3548193369902108,4.2410447542643794,4.139038731841171,4.0475920735760997,3.969857550024054,3.9048072882390059,3.8514022296823525,3.8096717038832586,3.7776954584624605,3.7540511050825565,3.7362215005243473,3.7229033880801503,3.7136006744197405,3.7073011723099274,3.7010187907605716,3.694753483242029,3.6885052033511125,3.6822739048107476,3.67605954146963,3.6698620673018834,3.6636814364067196,3.6575176030080976,3.651370521454385,3.6452401462180197,3.6391264318951726,3.6330293332054118,3.6269488049913665,3.6208848022183937,3.6148372799742434,3.6088061934687268,3.6027914980333837,3.5967931491211527,3.5908111023060405,3.5848453132827935,3.5788957378665693,3.5729623319926094,3.5670450517159127,3.5611438532109108,3.5552586927711425,3.5493895268089304,3.5435363118550582,3.5376990045584487,3.531877561685842,3.5260719401214771,3.520282096866771,3.5145079890400006,3.5087495738759853,3.50300680872577,3.4972796510563096,3.4915680584501541,3.4858719886051337,{"$f":"IF($E$146=\"\",0,BX241+BX242/$E$146)","v":3.4801913993340463},3.4745262485643442,3.468876494337823,{"$f":"IF($E$146=\"\",0,CA241+CA242/$E$146)","v":3.4632420948103109},3.4576230082513586,3.4520191930439306,3.4464306076840967,3.4408572107807243]
[null,null,null,"LGV - Scheme",null,null,null,null,null,"pence per km, 2023 prices",{"$f":"IF($E$146=\"\",0,K250+K251/$E$146)","v":13.530296922409509},{"$f":"IF($E$146=\"\",0,L250+L251/$E$146)","v":13.530296922409509},13.530296922409509,13.530296922409509,13.530296922409509,13.530296922409509,13.530296922409509,13.530296922409509,13.530296922409509,13.530296922409509,13.530296922409509,13.530296922409509,13.530296922409509,13.530296922409509,13.530296922409509,13.530296922409509,13.530296922409509,13.530296922409509,13.530296922409509,13.530296922409509,13.530296922409509,13.530296922409509,13.530296922409509,13.530296922409509,13.530296922409509,13.530296922409509,13.530296922409509,13.530296922409509,13.530296922409509,13.530296922409509,13.530296922409509,13.530296922409509,13.530296922409509,13.530296922409509,13.530296922409509,13.530296922409509,13.530296922409509,13.530296922409509,13.530296922409509,13.530296922409509,13.530296922409509,13.530296922409509,13.530296922409509,13.530296922409509,13.530296922409509,13.530296922409509,13.530296922409509,13.530296922409509,13.530296922409509,13.530296922409509,13.530296922409509,13.530296922409509,13.530296922409509,13.530296922409509,13.530296922409509,13.530296922409509,13.530296922409509,13.530296922409509,13.530296922409509,13.530296922409509,13.530296922409509,13.530296922409509,13.530296922409509,13.530296922409509,13.530296922409509,{"$f":"IF($E$146=\"\",0,BX250+BX251/$E$146)","v":13.530296922409509},13.530296922409509,13.530296922409509,{"$f":"IF($E$146=\"\",0,CA250+CA251/$E$146)","v":13.530296922409509},13.530296922409509,13.530296922409509,13.530296922409509,13.530296922409509]
[null,null,null,"HGV - Rigids - Scheme",null,null,null,null,null,"pence per km, 2023 prices",{"$f":"IF($E$146=\"\",0,K253+K254/$E$146)","v":31.768766329448148},{"$f":"IF($E$146=\"\",0,L253+L254/$E$146)","v":31.768766329448148},31.768766329448148,31.768766329448148,31.768766329448148,31.768766329448148,31.768766329448148,31.768766329448148,31.768766329448148,31.768766329448148,31.768766329448148,31.768766329448148,31.768766329448148,31.768766329448148,31.768766329448148,31.768766329448148,31.768766329448148,31.768766329448148,31.768766329448148,31.768766329448148,31.768766329448148,31.768766329448148,31.768766329448148,31.768766329448148,31.768766329448148,31.768766329448148,31.768766329448148,31.768766329448148,31.768766329448148,31.768766329448148,31.768766329448148,31.768766329448148,31.768766329448148,31.768766329448148,31.768766329448148,31.768766329448148,31.768766329448148,31.768766329448148,31.768766329448148,31.768766329448148,31.768766329448148,31.768766329448148,31.768766329448148,31.768766329448148,31.768766329448148,31.768766329448148,31.768766329448148,31.768766329448148,31.768766329448148,31.768766329448148,31.768766329448148,31.768766329448148,31.768766329448148,31.768766329448148,31.768766329448148,31.768766329448148,31.768766329448148,31.768766329448148,31.768766329448148,31.768766329448148,31.768766329448148,31.768766329448148,31.768766329448148,31.768766329448148,31.768766329448148,{"$f":"IF($E$146=\"\",0,BX253+BX254/$E$146)","v":31.768766329448148},31.768766329448148,31.768766329448148,{"$f":"IF($E$146=\"\",0,CA253+CA254/$E$146)","v":31.768766329448148},31.768766329448148,31.768766329448148,31.768766329448148,31.768766329448148]
[null,null,null,"HGV - Artics - Scheme",null,null,null,null,null,"pence per km, 2023 prices",{"$f":"IF($E$146=\"\",0,K256+K257/$E$146)","v":61.401858258566506},{"$f":"IF($E$146=\"\",0,L256+L257/$E$146)","v":61.401858258566506},61.401858258566506,61.401858258566506,61.401858258566506,61.401858258566506,61.401858258566506,61.401858258566506,61.401858258566506,61.401858258566506,61.401858258566506,61.401858258566506,61.401858258566506,61.401858258566506,61.401858258566506,61.401858258566506,61.401858258566506,61.401858258566506,61.401858258566506,61.401858258566506,61.401858258566506,61.401858258566506,61.401858258566506,61.401858258566506,61.401858258566506,61.401858258566506,61.401858258566506,61.401858258566506,61.401858258566506,61.401858258566506,61.401858258566506,61.401858258566506,61.401858258566506,61.401858258566506,61.401858258566506,61.401858258566506,61.401858258566506,61.401858258566506,61.401858258566506,61.401858258566506,61.401858258566506,61.401858258566506,61.401858258566506,61.401858258566506,61.401858258566506,61.401858258566506,61.401858258566506,61.401858258566506,61.401858258566506,61.401858258566506,61.401858258566506,61.401858258566506,61.401858258566506,61.401858258566506,61.401858258566506,61.401858258566506,61.401858258566506,61.401858258566506,61.401858258566506,61.401858258566506,61.401858258566506,61.401858258566506,61.401858258566506,61.401858258566506,61.401858258566506,{"$f":"IF($E$146=\"\",0,BX256+BX257/$E$146)","v":61.401858258566506},61.401858258566506,61.401858258566506,{"$f":"IF($E$146=\"\",0,CA256+CA257/$E$146)","v":61.401858258566506},61.401858258566506,61.401858258566506,61.401858258566506,61.401858258566506]
[null,null,null,"PSV - Scheme",null,null,null,null,null,"pence per km, 2023 prices",{"$f":"IF($E$146=\"\",0,K259+K260/$E$146)","v":101.36347979592209},{"$f":"IF($E$146=\"\",0,L259+L260/$E$146)","v":101.36347979592209},101.36347979592209,101.36347979592209,101.36347979592209,101.36347979592209,101.36347979592209,101.36347979592209,101.36347979592209,101.36347979592209,101.36347979592209,101.36347979592209,101.36347979592209,101.36347979592209,101.36347979592209,101.36347979592209,101.36347979592209,101.36347979592209,101.36347979592209,101.36347979592209,101.36347979592209,101.36347979592209,101.36347979592209,101.36347979592209,101.36347979592209,101.36347979592209,101.36347979592209,101.36347979592209,101.36347979592209,101.36347979592209,101.36347979592209,101.36347979592209,101.36347979592209,101.36347979592209,101.36347979592209,101.36347979592209,101.36347979592209,101.36347979592209,101.36347979592209,101.36347979592209,101.36347979592209,101.36347979592209,101.36347979592209,101.36347979592209,101.36347979592209,101.36347979592209,101.36347979592209,101.36347979592209,101.36347979592209,101.36347979592209,101.36347979592209,101.36347979592209,101.36347979592209,101.36347979592209,101.36347979592209,101.36347979592209,101.36347979592209,101.36347979592209,101.36347979592209,101.36347979592209,101.36347979592209,101.36347979592209,101.36347979592209,101.36347979592209,101.36347979592209,{"$f":"IF($E$146=\"\",0,BX259+BX260/$E$146)","v":101.36347979592209},101.36347979592209,101.36347979592209,{"$f":"IF($E$146=\"\",0,CA259+CA260/$E$146)","v":101.36347979592209},101.36347979592209,101.36347979592209,101.36347979592209,101.36347979592209]
[null,null,null,"Car - Diversion",null,null,null,null,null,"pence per km, 2023 prices",{"$f":"IF($E$147=\"\",0,K241+K242/$E$147)","v":6.2320012959075592},{"$f":"IF($E$147=\"\",0,L241+L242/$E$147)","v":6.1440934315390292},6.0428111182170898,5.9288946070415767,5.7991715828198478,5.6241344300219547,5.40766856231948,5.1540224943352273,4.9199397647843277,4.7070220655882071,4.5142534744114373,4.3402715403873362,4.1847250087856791,4.0452406361093001,3.9181892803529546,3.8044146976271227,3.7024086752039147,3.610962016938843,3.5332274933867978,3.4681772316017501,3.4147721730450966,3.3730416472460023,3.3410654018252042,3.3174210484453002,3.299591443887091,3.286273331442894,3.2769706177824842,3.2706711156726711,3.2643887341233153,3.2581234266047727,3.2518751467138562,3.2456438481734913,3.2394294848323737,3.2332320106646271,3.2270513797694633,3.2208875463708413,3.2147404648171287,3.2086100895807634,3.2024963752579163,3.1963992765681555,3.1903187483541102,3.1842547455811374,3.1782072233369871,3.1721761368314705,3.1661614413961274,3.1601630924838964,3.1541810456687842,3.1482152566455373,3.142265681229313,3.1363322753553531,3.1304149950786564,3.1245137965736545,3.1186286361338862,3.1127594701716741,3.1069062552178019,3.1010689479211924,3.0952475050485857,3.0894418834842208,3.0836520402295147,3.0778779324027443,3.072119517238729,3.0663767520885137,3.0606495944190533,3.0549380018128978,3.0492419319678774,{"$f":"IF($E$147=\"\",0,BX241+BX242/$E$147)","v":3.04356134269679},3.0378961919270879,3.0322464377005667,{"$f":"IF($E$147=\"\",0,CA241+CA242/$E$147)","v":3.0266120381730546},3.0209929516141023,3.0153891364066743,3.0098005510468404,3.004227154143468]
[null,null,null,"LGV - Diversion",null,null,null,null,null,"pence per km, 2023 prices",{"$f":"IF($E$147=\"\",0,K250+K251/$E$147)","v":12.426089910369232},{"$f":"IF($E$147=\"\",0,L250+L251/$E$147)","v":12.426089910369232},12.426089910369232,12.426089910369232,12.426089910369232,12.426089910369232,12.426089910369232,12.426089910369232,12.426089910369232,12.426089910369232,12.426089910369232,12.426089910369232,12.426089910369232,12.426089910369232,12.426089910369232,12.426089910369232,12.426089910369232,12.426089910369232,12.426089910369232,12.426089910369232,12.426089910369232,12.426089910369232,12.426089910369232,12.426089910369232,12.426089910369232,12.426089910369232,12.426089910369232,12.426089910369232,12.426089910369232,12.426089910369232,12.426089910369232,12.426089910369232,12.426089910369232,12.426089910369232,12.426089910369232,12.426089910369232,12.426089910369232,12.426089910369232,12.426089910369232,12.426089910369232,12.426089910369232,12.426089910369232,12.426089910369232,12.426089910369232,12.426089910369232,12.426089910369232,12.426089910369232,12.426089910369232,12.426089910369232,12.426089910369232,12.426089910369232,12.426089910369232,12.426089910369232,12.426089910369232,12.426089910369232,12.426089910369232,12.426089910369232,12.426089910369232,12.426089910369232,12.426089910369232,12.426089910369232,12.426089910369232,12.426089910369232,12.426089910369232,12.426089910369232,{"$f":"IF($E$147=\"\",0,BX250+BX251/$E$147)","v":12.426089910369232},12.426089910369232,12.426089910369232,{"$f":"IF($E$147=\"\",0,CA250+CA251/$E$147)","v":12.426089910369232},12.426089910369232,12.426089910369232,12.426089910369232,12.426089910369232]
[null,null,null,"HGV - Rigids - Diversion",null,null,null,null,null,"pence per km, 2023 prices",{"$f":"IF($E$147=\"\",0,K253+K254/$E$147)","v":24.742415242809507},{"$f":"IF($E$147=\"\",0,L253+L254/$E$147)","v":24.742415242809507},24.742415242809507,24.742415242809507,24.742415242809507,24.742415242809507,24.742415242809507,24.742415242809507,24.742415242809507,24.742415242809507,24.742415242809507,24.742415242809507,24.742415242809507,24.742415242809507,24.742415242809507,24.742415242809507,24.742415242809507,24.742415242809507,24.742415242809507,24.742415242809507,24.742415242809507,24.742415242809507,24.742415242809507,24.742415242809507,24.742415242809507,24.742415242809507,24.742415242809507,24.742415242809507,24.742415242809507,24.742415242809507,24.742415242809507,24.742415242809507,24.742415242809507,24.742415242809507,24.742415242809507,24.742415242809507,24.742415242809507,24.742415242809507,24.742415242809507,24.742415242809507,24.742415242809507,24.742415242809507,24.742415242809507,24.742415242809507,24.742415242809507,24.742415242809507,24.742415242809507,24.742415242809507,24.742415242809507,24.742415242809507,24.742415242809507,24.742415242809507,24.742415242809507,24.742415242809507,24.742415242809507,24.742415242809507,24.742415242809507,24.742415242809507,24.742415242809507,24.742415242809507,24.742415242809507,24.742415242809507,24.742415242809507,24.742415242809507,24.742415242809507,{"$f":"IF($E$147=\"\",0,BX253+BX254/$E$147)","v":24.742415242809507},24.742415242809507,24.742415242809507,{"$f":"IF($E$147=\"\",0,CA253+CA254/$E$147)","v":24.742415242809507},24.742415242809507,24.742415242809507,24.742415242809507,24.742415242809507]
[null,null,null,"HGV - Artics - Diversion",null,null,null,null,null,"pence per km, 2023 prices",{"$f":"IF($E$147=\"\",0,K256+K257/$E$147)","v":47.858094261807722},{"$f":"IF($E$147=\"\",0,L256+L257/$E$147)","v":47.858094261807722},47.858094261807722,47.858094261807722,47.858094261807722,47.858094261807722,47.858094261807722,47.858094261807722,47.858094261807722,47.858094261807722,47.858094261807722,47.858094261807722,47.858094261807722,47.858094261807722,47.858094261807722,47.858094261807722,47.858094261807722,47.858094261807722,47.858094261807722,47.858094261807722,47.858094261807722,47.858094261807722,47.858094261807722,47.858094261807722,47.858094261807722,47.858094261807722,47.858094261807722,47.858094261807722,47.858094261807722,47.858094261807722,47.858094261807722,47.858094261807722,47.858094261807722,47.858094261807722,47.858094261807722,47.858094261807722,47.858094261807722,47.858094261807722,47.858094261807722,47.858094261807722,47.858094261807722,47.858094261807722,47.858094261807722,47.858094261807722,47.858094261807722,47.858094261807722,47.858094261807722,47.858094261807722,47.858094261807722,47.858094261807722,47.858094261807722,47.858094261807722,47.858094261807722,47.858094261807722,47.858094261807722,47.858094261807722,47.858094261807722,47.858094261807722,47.858094261807722,47.858094261807722,47.858094261807722,47.858094261807722,47.858094261807722,47.858094261807722,47.858094261807722,{"$f":"IF($E$147=\"\",0,BX256+BX257/$E$147)","v":47.858094261807722},47.858094261807722,47.858094261807722,{"$f":"IF($E$147=\"\",0,CA256+CA257/$E$147)","v":47.858094261807722},47.858094261807722,47.858094261807722,47.858094261807722,47.858094261807722]
[null,null,null,"PSV - Diversion",null,null,null,null,null,"pence per km, 2023 prices",{"$f":"IF($E$147=\"\",0,K259+K260/$E$147)","v":82.865312247312232},{"$f":"IF($E$147=\"\",0,L259+L260/$E$147)","v":82.865312247312232},82.865312247312232,82.865312247312232,82.865312247312232,82.865312247312232,82.865312247312232,82.865312247312232,82.865312247312232,82.865312247312232,82.865312247312232,82.865312247312232,82.865312247312232,82.865312247312232,82.865312247312232,82.865312247312232,82.865312247312232,82.865312247312232,82.865312247312232,82.865312247312232,82.865312247312232,82.865312247312232,82.865312247312232,82.865312247312232,82.865312247312232,82.865312247312232,82.865312247312232,82.865312247312232,82.865312247312232,82.865312247312232,82.865312247312232,82.865312247312232,82.865312247312232,82.865312247312232,82.865312247312232,82.865312247312232,82.865312247312232,82.865312247312232,82.865312247312232,82.865312247312232,82.865312247312232,82.865312247312232,82.865312247312232,82.865312247312232,82.865312247312232,82.865312247312232,82.865312247312232,82.865312247312232,82.865312247312232,82.865312247312232,82.865312247312232,82.865312247312232,82.865312247312232,82.865312247312232,82.865312247312232,82.865312247312232,82.865312247312232,82.865312247312232,82.865312247312232,82.865312247312232,82.865312247312232,82.865312247312232,82.865312247312232,82.865312247312232,82.865312247312232,{"$f":"IF($E$147=\"\",0,BX259+BX260/$E$147)","v":82.865312247312232},82.865312247312232,82.865312247312232,{"$f":"IF($E$147=\"\",0,CA259+CA260/$E$147)","v":82.865312247312232},82.865312247312232,82.865312247312232,82.865312247312232,82.865312247312232]
[]
[null,"END"]

{"sheet":"C-Diversion","index":13,"n_rows":94,"n_cols":83,"rows_kept":94,"cut":false,"hidden":true,"merged":[]}
[null,{"$f":"SUM(A:A)","v":0}]
[null,"File Name",null,null,null,null,{"$f":"IFERROR(MID(CELL(\"filename\",G2),FIND(\"[\",CELL(\"filename\",G2))+1,FIND(\"]\",CELL(\"filename\",G2))-FIND(\"[\",CELL(\"filename\",G2))-1),\"Please save the file to show here\")","v":"structures-fund-economic-tool Final 03082026.xlsm"}]
[null,"Sheet Name",null,null,null,null,{"$f":"IFERROR(MID(CELL(\"filename\",G2),FIND(\"]\",CELL(\"filename\",G2))+1,255),\"Please save the file to show here\")","v":"C-Diversion"}]
[null,"Description and Purpose of Sheet",null,null,null,null,"This sheet calculates the demand in each year and the journey time and distance impacts of diversion route."]
[null,"Version number",null,null,null,null,{"$f":"Version_Number","v":1}]
[]
[]
[null,"C-Diversion"]
[]
[null,null,null,null,"Constant",null,null,null,null,"Unit",2023,2024,2025,2026,2027,2028,2029,2030,2031,2032,2033,2034,2035,2036,2037,2038,2039,2040,2041,2042,2043,2044,2045,2046,2047,2048,2049,2050,2051,2052,2053,2054,2055,2056,2057,2058,2059,2060,2061,2062,2063,2064,2065,2066,2067,2068,2069,2070,2071,2072,2073,2074,2075,2076,2077,2078,2079,2080,2081,2082,2083,2084,2085,2086,2087,2088,2089,2090,2091,2092,2093,2094,2095]
[]
[null,null,null,"Appraisal period",null,null,null,null,null,"flag",{"$f":"'C-Values and Rates'!K15","v":0},{"$f":"'C-Values and Rates'!L15","v":0},{"$f":"'C-Values and Rates'!M15","v":0},{"$f":"'C-Values and Rates'!N15","v":0},{"$f":"'C-Values and Rates'!O15","v":0},{"$f":"'C-Values and Rates'!P15","v":1},{"$f":"'C-Values and Rates'!Q15","v":1},{"$f":"'C-Values and Rates'!R15","v":1},{"$f":"'C-Values and Rates'!S15","v":1},{"$f":"'C-Values and Rates'!T15","v":1},{"$f":"'C-Values and Rates'!U15","v":1},{"$f":"'C-Values and Rates'!V15","v":1},{"$f":"'C-Values and Rates'!W15","v":1},{"$f":"'C-Values and Rates'!X15","v":1},{"$f":"'C-Values and Rates'!Y15","v":1},{"$f":"'C-Values and Rates'!Z15","v":1},{"$f":"'C-Values and Rates'!AA15","v":1},{"$f":"'C-Values and Rates'!AB15","v":1},{"$f":"'C-Values and Rates'!AC15","v":1},{"$f":"'C-Values and Rates'!AD15","v":1},{"$f":"'C-Values and Rates'!AE15","v":1},{"$f":"'C-Values and Rates'!AF15","v":1},{"$f":"'C-Values and Rates'!AG15","v":1},{"$f":"'C-Values and Rates'!AH15","v":1},{"$f":"'C-Values and Rates'!AI15","v":1},{"$f":"'C-Values and Rates'!AJ15","v":1},{"$f":"'C-Values and Rates'!AK15","v":1},{"$f":"'C-Values and Rates'!AL15","v":1},{"$f":"'C-Values and Rates'!AM15","v":1},{"$f":"'C-Values and Rates'!AN15","v":1},{"$f":"'C-Values and Rates'!AO15","v":1},{"$f":"'C-Values and Rates'!AP15","v":1},{"$f":"'C-Values and Rates'!AQ15","v":1},{"$f":"'C-Values and Rates'!AR15","v":1},{"$f":"'C-Values and Rates'!AS15","v":1},{"$f":"'C-Values and Rates'!AT15","v":1},{"$f":"'C-Values and Rates'!AU15","v":1},{"$f":"'C-Values and Rates'!AV15","v":1},{"$f":"'C-Values and Rates'!AW15","v":1},{"$f":"'C-Values and Rates'!AX15","v":1},{"$f":"'C-Values and Rates'!AY15","v":1},{"$f":"'C-Values and Rates'!AZ15","v":1},{"$f":"'C-Values and Rates'!BA15","v":1},{"$f":"'C-Values and Rates'!BB15","v":1},{"$f":"'C-Values and Rates'!BC15","v":1},{"$f":"'C-Values and Rates'!BD15","v":1},{"$f":"'C-Values and Rates'!BE15","v":1},{"$f":"'C-Values and Rates'!BF15","v":1},{"$f":"'C-Values and Rates'!BG15","v":1},{"$f":"'C-Values and Rates'!BH15","v":1},{"$f":"'C-Values and Rates'!BI15","v":1},{"$f":"'C-Values and Rates'!BJ15","v":1},{"$f":"'C-Values and Rates'!BK15","v":1},{"$f":"'C-Values and Rates'!BL15","v":1},{"$f":"'C-Values and Rates'!BM15","v":1},{"$f":"'C-Values and Rates'!BN15","v":1},{"$f":"'C-Values and Rates'!BO15","v":1},{"$f":"'C-Values and Rates'!BP15","v":1},{"$f":"'C-Values and Rates'!BQ15","v":1},{"$f":"'C-Values and Rates'!BR15","v":1},{"$f":"'C-Values and Rates'!BS15","v":1},{"$f":"'C-Values and Rates'!BT15","v":1},{"$f":"'C-Values and Rates'!BU15","v":1},{"$f":"'C-Values and Rates'!BV15","v":1},{"$f":"'C-Values and Rates'!BW15","v":1},{"$f":"'C-Values and Rates'!BX15","v":0},{"$f":"'C-Values and Rates'!BY15","v":0},{"$f":"'C-Values and Rates'!BZ15","v":0},{"$f":"'C-Values and Rates'!CA15","v":0},{"$f":"'C-Values and Rates'!CB15","v":0},{"$f":"'C-Values and Rates'!CC15","v":0},{"$f":"'C-Values and Rates'!CD15","v":0},{"$f":"'C-Values and Rates'!CE15","v":0}]
[]
[null,null,"Demand"]
[]
[null,null,null,"Region-Road Type",{"$f":"'I-Scheme Details'!E18&\"-\"&'I-Scheme Details'!E59","v":"London-A roads"},null,null,null,null,"text"]
[]
[null,null,null,"Demand Year",{"$f":"'I-Scheme Details'!E36","v":2025},null,null,null,null,"yyyy"]
[null,null,null,"AADT all vehicles",{"$f":"'I-Scheme Details'!E38","v":14187},null,null,null,null,"AADT"]
[]
[null,null,null,"Vehicle Type Split"]
[null,null,null,"Cars",{"$f":"IF($E$16=\"-\",0,IF('I-Scheme Details'!E39<>\"\",'I-Scheme Details'!E39/'I-Scheme Details'!$E$38,INDEX('I-NRTP'!$H$17:$H$176,MATCH(($E$16&\"-\"&$D22),'I-NRTP'!$AB$17:$AB$176,0))/SUMIFS('I-NRTP'!$H$17:$H$176,'I-NRTP'!$AC$17:$AC$176,$E$16)))","v":0.84513991682526257},null,null,null,null,"%"]
[null,null,null,"LGV",{"$f":"IF($E$16=\"-\",0,IF('I-Scheme Details'!E40<>\"\",'I-Scheme Details'!E40/'I-Scheme Details'!$E$38,INDEX('I-NRTP'!$H$17:$H$176,MATCH(($E$16&\"-\"&$D23),'I-NRTP'!$AB$17:$AB$176,0))/SUMIFS('I-NRTP'!$H$17:$H$176,'I-NRTP'!$AC$17:$AC$176,$E$16)))","v":0.11383661098188483},null,null,null,null,"%"]
[null,null,null,"HGV",{"$f":"IF($E$16=\"-\",0,IF('I-Scheme Details'!E41<>\"\",'I-Scheme Details'!E41/'I-Scheme Details'!$E$38,INDEX('I-NRTP'!$H$17:$H$176,MATCH(($E$16&\"-\"&$D24),'I-NRTP'!$AB$17:$AB$176,0))/SUMIFS('I-NRTP'!$H$17:$H$176,'I-NRTP'!$AC$17:$AC$176,$E$16)))","v":1.000916331853105E-2},null,null,null,null,"%"]
[null,null,null,"HGVs - Artics",{"$f":"IF('I-Scheme Details'!E46='I-Validation'!$B$11,'I-Scheme Details'!E47,INDEX('C-Values and Rates'!$E$140:$E$141,MATCH((D25),'C-Values and Rates'!$D$140:$D$141,0)))","v":0.58719191502526558},null,null,null,null,"%"]
[null,null,null,"HGV - Rigids",{"$f":"IF('I-Scheme Details'!E46='I-Validation'!$B$11,'I-Scheme Details'!E48,INDEX('C-Values and Rates'!$E$140:$E$141,MATCH((D26),'C-Values and Rates'!$D$140:$D$141,0)))","v":0.41280808497473448},null,null,null,null,"%"]
[{"$f":"IF(SUM('I-Scheme Details'!E39:E42)=0,0,--NOT(SUM(E27,E22:E24)=1))","v":0},null,null,"PSV",{"$f":"IF($E$16=\"-\",0,IF('I-Scheme Details'!E42<>\"\",'I-Scheme Details'!E42/'I-Scheme Details'!$E$38,INDEX('I-NRTP'!$H$17:$H$176,MATCH(($E$16&\"-\"&$D27),'I-NRTP'!$AB$17:$AB$176,0))/SUMIFS('I-NRTP'!$H$17:$H$176,'I-NRTP'!$AC$17:$AC$176,$E$16)))","v":3.101430887432156E-2},null,null,null,null,"%"]
[{"$f":"--NOT(SUM(E25:E26)=1)","v":0}]
[null,null,null,"Daily Demand"]
[null,null,null,"Cars",{"$f":"E22*$E$19","v":11990},null,null,null,null,"AADT"]
[null,null,null,"LGV",{"$f":"E23*$E$19","v":1615},null,null,null,null,"AADT"]
[null,null,null,"HGV",142,null,null,null,null,"AADT"]
[null,null,null,"HGV-Artics",{"$f":"E25*$E$32","v":83.381251933587706},null,null,null,null,"AADT"]
[null,null,null,"HGV-Rigids",{"$f":"E26*$E$32","v":58.618748066412294},null,null,null,null,"AADT"]
[null,null,null,"PSV",{"$f":"E27*$E$19","v":440},null,null,null,null,"AADT"]
[]
[null,null,null,"Demand growth indices to 2025 demand levels"]
[null,null,null,"Cars",null,null,null,null,null,"factor",{"$f":"L38*L38/M38","v":0.9759854334743634},{"$f":"M38*M38/N38","v":0.98791975052347414},1,{"$f":"$M38*($R38/$M38)^((N$10-$M$10)/($R$10-$M$10))","v":1.0122279663607543},{"$f":"$M38*($R38/$M38)^((O$10-$M$10)/($R$10-$M$10))","v":1.0246054558828284},1.0371342969304089,1.0498163402248586,{"$f":"IF($E$16=\"-\",1,1+INDEX('I-NRTP'!$U$17:$U$176, MATCH(('C-Diversion'!$E$16&\"-\"&'C-Diversion'!$D38),'I-NRTP'!$AB$17:$AB$176,0)))","v":1.0626534591180985},{"$f":"$R38*($W38/$R38)^((S$10-$R$10)/($W$10-$R$10))","v":1.071597823099282},{"$f":"$R38*($W38/$R38)^((T$10-$R$10)/($W$10-$R$10))","v":1.0806174718747146},1.089713039117205,1.0988851638331916,{"$f":"IF($E$16=\"-\",1,1+INDEX('I-NRTP'!$V$17:$V$176, MATCH(('C-Diversion'!$E$16&\"-\"&'C-Diversion'!$D38),'I-NRTP'!$AB$17:$AB$176,0)))","v":1.1081344904076362},{"$f":"$W38*($AB38/$W38)^((X$10-$W$10)/($AB$10-$W$10))","v":1.1137750521205498},{"$f":"$W38*($AB38/$W38)^((Y$10-$W$10)/($AB$10-$W$10))","v":1.1194443250925321},1.1251424554679641,1.1308695901351213,{"$f":"IF($E$16=\"-\",1,1+INDEX('I-NRTP'!$W$17:$W$176, MATCH(('C-Diversion'!$E$16&\"-\"&'C-Diversion'!$D38),'I-NRTP'!$AB$17:$AB$176,0)))","v":1.1366258767299622},{"$f":"$AB38*($AG38/$AB38)^((AC$10-$AB$10)/($AG$10-$AB$10))","v":1.1404975464744922},{"$f":"$AB38*($AG38/$AB38)^((AD$10-$AB$10)/($AG$10-$AB$10))","v":1.1443824042230242},1.1482804948976353,1.1521918635734214,{"$f":"IF($E$16=\"-\",1,1+INDEX('I-NRTP'!$X$17:$X$176, MATCH(('C-Diversion'!$E$16&\"-\"&'C-Diversion'!$D38),'I-NRTP'!$AB$17:$AB$176,0)))","v":1.1561165554790156},{"$f":"$AG38*($AL38/$AG38)^((AH$10-$AG$10)/($AL$10-$AG$10))","v":1.1586537632265279},{"$f":"$AG38*($AL38/$AG38)^((AI$10-$AG$10)/($AL$10-$AG$10))","v":1.1611965391177743},1.1637448953725755,1.1662988442375704,{"$f":"IF($E$16=\"-\",1,1+INDEX('I-NRTP'!$Y$17:$Y$176, MATCH(('C-Diversion'!$E$16&\"-\"&'C-Diversion'!$D38),'I-NRTP'!$AB$17:$AB$176,0)))","v":1.1688583979862739},{"$f":"$AL38*($AQ38/$AL38)^((AM$10-$AL$10)/($AQ$10-$AL$10))","v":1.1705029201203525},{"$f":"$AL38*($AQ38/$AL38)^((AN$10-$AL$10)/($AQ$10-$AL$10))","v":1.1721497560103613},1.1737989089116325,1.1754503820840785,{"$f":"IF($E$16=\"-\",1,1+INDEX('I-NRTP'!$Z$17:$Z$176, MATCH(('C-Diversion'!$E$16&\"-\"&'C-Diversion'!$D38),'I-NRTP'!$AB$17:$AB$176,0)))","v":1.1771041787921988},{"$f":"$AQ38*($AV38/$AQ38)^((AR$10-$AQ$10)/($AV$10-$AQ$10))","v":1.1782156884171608},{"$f":"$AQ38*($AV38/$AQ38)^((AS$10-$AQ$10)/($AV$10-$AQ$10))","v":1.179328247612474},1.1804418573692215,1.1815565186794208,{"$f":"IF($E$16=\"-\",1,1+INDEX('I-NRTP'!$AA$17:$AA$176, MATCH(('C-Diversion'!$E$16&\"-\"&'C-Diversion'!$D38),'I-NRTP'!$AB$17:$AB$176,0)))","v":1.1826722325360284},{"$f":"AV38*AV38/AU38","v":1.1837889999329365},1.1849068218649765,1.1860256993279192,1.1871456333184758,1.1882666248342983,1.1893886748739813,1.1905117844370616,1.1916359545240205,1.1927611861362839,1.1938874802762232,1.1950148379471561,1.1961432601533482,1.1972727479000129,1.1984033021933134,1.1995349240403623,1.2006676144492237,{"$f":"BL38*BL38/BK38","v":1.2018013744289133},1.2029362049893999,1.2040721071416056,1.2052090818974075,1.2063471302696378,1.2074862532720854,1.2086264519194962,1.2097677272275746,1.210910080212984,1.2120535118933475,1.2131980232872497,1.2143436154142366,1.2154902892948172,1.2166380459504638,{"$f":"BZ38*BZ38/BY38","v":1.2177868864036134},{"$f":"CA38*CA38/BZ38","v":1.2189368116776687},{"$f":"CB38*CB38/CA38","v":1.2200878227969985},{"$f":"CC38*CC38/CB38","v":1.2212399207869389},{"$f":"CD38*CD38/CC38","v":1.2223931066737943}]
[null,null,null,"LGV",null,null,null,null,null,"factor",{"$f":"L39*L39/M39","v":0.98437569645479472},0.99215709262938534,1,{"$f":"$M39*($R39/$M39)^((N$10-$M$10)/($R$10-$M$10))","v":1.0079049048067878},1.0158722971335798,1.0239026709382737,1.0319965240834565,{"$f":"IF($E$16=\"-\",1,1+INDEX('I-NRTP'!$U$17:$U$176, MATCH(('C-Diversion'!$E$16&\"-\"&'C-Diversion'!$D39),'I-NRTP'!$AB$17:$AB$176,0)))","v":1.0401543583672721},{"$f":"$R39*($W39/$R39)^((S$10-$R$10)/($W$10-$R$10))","v":1.0529802759557594},1.0659643471496836,1.07910852210682,1.0924147750319164,{"$f":"IF($E$16=\"-\",1,1+INDEX('I-NRTP'!$V$17:$V$176, MATCH(('C-Diversion'!$E$16&\"-\"&'C-Diversion'!$D39),'I-NRTP'!$AB$17:$AB$176,0)))","v":1.1058851044732108},{"$f":"$W39*($AB39/$W39)^((X$10-$W$10)/($AB$10-$W$10))","v":1.1217501269331949},1.1378427489300906,1.1541662356057745,1.1707238989438327,{"$f":"IF($E$16=\"-\",1,1+INDEX('I-NRTP'!$W$17:$W$176, MATCH(('C-Diversion'!$E$16&\"-\"&'C-Diversion'!$D39),'I-NRTP'!$AB$17:$AB$176,0)))","v":1.1875190984415522},{"$f":"$AB39*($AG39/$AB39)^((AC$10-$AB$10)/($AG$10-$AB$10))","v":1.2011794057143137},1.2149968506659818,1.228973240887677,1.2431104047636596,{"$f":"IF($E$16=\"-\",1,1+INDEX('I-NRTP'!$X$17:$X$176, MATCH(('C-Diversion'!$E$16&\"-\"&'C-Diversion'!$D39),'I-NRTP'!$AB$17:$AB$176,0)))","v":1.2574101917105174},{"$f":"$AG39*($AL39/$AG39)^((AH$10-$AG$10)/($AL$10-$AG$10))","v":1.2664387968002775},1.2755322301460867,1.2846909572354417,1.2939154468981875,{"$f":"IF($E$16=\"-\",1,1+INDEX('I-NRTP'!$Y$17:$Y$176, MATCH(('C-Diversion'!$E$16&\"-\"&'C-Diversion'!$D39),'I-NRTP'!$AB$17:$AB$176,0)))","v":1.3032061713305165},{"$f":"$AL39*($AQ39/$AL39)^((AM$10-$AL$10)/($AQ$10-$AL$10))","v":1.3122540474241933},1.3213647409473814,1.3305386880277876,1.3397763278210586,{"$f":"IF($E$16=\"-\",1,1+INDEX('I-NRTP'!$Z$17:$Z$176, MATCH(('C-Diversion'!$E$16&\"-\"&'C-Diversion'!$D39),'I-NRTP'!$AB$17:$AB$176,0)))","v":1.3490781025318013},{"$f":"$AQ39*($AV39/$AQ39)^((AR$10-$AQ$10)/($AV$10-$AQ$10))","v":1.3610495919985983},1.3731273144253588,1.3853122125052881,1.3976052372968912,{"$f":"IF($E$16=\"-\",1,1+INDEX('I-NRTP'!$AA$17:$AA$176, MATCH(('C-Diversion'!$E$16&\"-\"&'C-Diversion'!$D39),'I-NRTP'!$AB$17:$AB$176,0)))","v":1.4100073482982045},1.4225195135216859,1.4351427095697717,1.4478779217111017,1.4607261439574224,1.4736883791411708,1.4867656389937485,1.4999589442244894,1.5132693246003281,1.5266978190261757,1.5402454756260091,1.5539133518246784,1.567702514430442,1.5816140397182334,1.5956490135136667,1.6098085312777877,1.6240936981925767,1.6385056292472111,1.6530454493250926,1.6677142932916464,1.6825133060829007,1.6974436427948509,1.7125064687736178,1.7277029597064051,1.7430343017132648,1.7585016914396765,1.7741063361499481,1.7898494538214451,1.8057322732396572,1.8217560340941075,1.8379219870751125,1.8542313939714021,1.8706855277686045,1.8872856727486056,1.9040331245897901,1.9209291904681725]
[null,null,null,"HGV",null,null,null,null,null,"factor",0.9975362965466511,0.99876738860790359,1,1.0012341325979961,1.0024697882792617,1.0037069689234834,1.0049456764126679,{"$f":"IF($E$16=\"-\",1,1+INDEX('I-NRTP'!$U$17:$U$176, MATCH(('C-Diversion'!$E$16&\"-\"&'C-Diversion'!$D40),'I-NRTP'!$AB$17:$AB$176,0)))","v":1.0061859126311441},1.0067681861927678,1.0073507967124986,1.007933744385332,1.0085170294063768,{"$f":"IF($E$16=\"-\",1,1+INDEX('I-NRTP'!$V$17:$V$176, MATCH(('C-Diversion'!$E$16&\"-\"&'C-Diversion'!$D40),'I-NRTP'!$AB$17:$AB$176,0)))","v":1.0091006519708539},1.0109739218921707,1.0128506693062347,1.0147309006685783,1.0166146224467187,{"$f":"IF($E$16=\"-\",1,1+INDEX('I-NRTP'!$W$17:$W$176, MATCH(('C-Diversion'!$E$16&\"-\"&'C-Diversion'!$D40),'I-NRTP'!$AB$17:$AB$176,0)))","v":1.0185018411201794},1.0203208091678759,1.022143025756346,1.0239684966872395,1.0257972277725693,{"$f":"IF($E$16=\"-\",1,1+INDEX('I-NRTP'!$X$17:$X$176, MATCH(('C-Diversion'!$E$16&\"-\"&'C-Diversion'!$D40),'I-NRTP'!$AB$17:$AB$176,0)))","v":1.0276292248347265},1.0296341648921561,1.0316430166567816,1.0336557877604793,1.0356724858500141,{"$f":"IF($E$16=\"-\",1,1+INDEX('I-NRTP'!$Y$17:$Y$176, MATCH(('C-Diversion'!$E$16&\"-\"&'C-Diversion'!$D40),'I-NRTP'!$AB$17:$AB$176,0)))","v":1.0376931185870719},1.0389783656533538,1.0402652045775671,1.0415536373313266,1.0428436658886884,{"$f":"IF($E$16=\"-\",1,1+INDEX('I-NRTP'!$Z$17:$Z$176, MATCH(('C-Diversion'!$E$16&\"-\"&'C-Diversion'!$D40),'I-NRTP'!$AB$17:$AB$176,0)))","v":1.0441352922261542},1.044855339062055,1.045575882449935,1.0462969227322219,1.0470184602515791,{"$f":"IF($E$16=\"-\",1,1+INDEX('I-NRTP'!$AA$17:$AA$176, MATCH(('C-Diversion'!$E$16&\"-\"&'C-Diversion'!$D40),'I-NRTP'!$AB$17:$AB$176,0)))","v":1.0477404953509069},1.0484630283733414,1.049186059662256,1.0499095895612605,1.0506336184142016,1.0513581465651634,1.0520831743584671,1.0528087021386714,1.0535347302505726,1.0542612590392049,1.0549882888498401,1.0557158200279884,1.056443852919398,1.0571723878700559,1.0579014252261874,1.0586309653342567,1.059361008540967,1.0600915551932606,1.0608226056383188,1.0615541602235623,1.0622862192966518,1.0630187832054874,1.0637518522982092,1.0644854269231976,1.0652195074290729,1.0659540941646961,1.0666891874791684,1.0674247877218319,1.0681608952422699,1.0688975103903064,1.069634633516007,1.0703722649696783,1.0711104051018687,1.0718490542633685,1.0725882128052098,1.0733278810786666]
[null,null,null,"PSV",null,null,null,null,null,"factor",1,1,1,1,1,1,1,{"$f":"IF($E$16=\"-\",1,1+INDEX('I-NRTP'!$U$17:$U$176, MATCH(('C-Diversion'!$E$16&\"-\"&'C-Diversion'!$D41),'I-NRTP'!$AB$17:$AB$176,0)))","v":1},1,1,1,1,{"$f":"IF($E$16=\"-\",1,1+INDEX('I-NRTP'!$V$17:$V$176, MATCH(('C-Diversion'!$E$16&\"-\"&'C-Diversion'!$D41),'I-NRTP'!$AB$17:$AB$176,0)))","v":1},1,1,1,1,{"$f":"IF($E$16=\"-\",1,1+INDEX('I-NRTP'!$W$17:$W$176, MATCH(('C-Diversion'!$E$16&\"-\"&'C-Diversion'!$D41),'I-NRTP'!$AB$17:$AB$176,0)))","v":1},1,1,1,1,{"$f":"IF($E$16=\"-\",1,1+INDEX('I-NRTP'!$X$17:$X$176, MATCH(('C-Diversion'!$E$16&\"-\"&'C-Diversion'!$D41),'I-NRTP'!$AB$17:$AB$176,0)))","v":1},1,1,1,1,{"$f":"IF($E$16=\"-\",1,1+INDEX('I-NRTP'!$Y$17:$Y$176, MATCH(('C-Diversion'!$E$16&\"-\"&'C-Diversion'!$D41),'I-NRTP'!$AB$17:$AB$176,0)))","v":1},1,1,1,1,{"$f":"IF($E$16=\"-\",1,1+INDEX('I-NRTP'!$Z$17:$Z$176, MATCH(('C-Diversion'!$E$16&\"-\"&'C-Diversion'!$D41),'I-NRTP'!$AB$17:$AB$176,0)))","v":1},1,1,1,1,{"$f":"IF($E$16=\"-\",1,1+INDEX('I-NRTP'!$AA$17:$AA$176, MATCH(('C-Diversion'!$E$16&\"-\"&'C-Diversion'!$D41),'I-NRTP'!$AB$17:$AB$176,0)))","v":1},1,1,1,1,1,1,1,1,1,1,1,1,1,1,1,1,1,1,1,1,1,1,1,1,1,1,1,1,1,1,1,1,1,1,1]
[]
[null,null,null,"Cars",null,null,null,null,null,"AADT",{"$f":"IF($E$30=0,0,IF(K$10<$E$18,0,$E30*K38/INDEX($K38:$BZ38,MATCH($E$18,$K$10:$BZ$10,0))))","v":0},{"$f":"IF($E$30=0,0,IF(L$10<$E$18,0,$E30*L38/INDEX($K38:$BZ38,MATCH($E$18,$K$10:$BZ$10,0))))","v":0},11990,12136.613316665444,12285.019416035113,12435.240220195603,12587.297919296054,12741.214974826002,12848.457898960391,12956.603487777827,13065.659339015287,13175.633114359967,13286.532539987558,13354.162874925392,13422.13745785946,13490.458041060889,13559.126385720105,13628.144261992247,13674.565582229161,13721.14502663406,13767.883133822646,13814.780444245323,13861.837500193396,13892.25862108607,13922.746504022114,13953.30129551718,13983.923142408468,14014.612191855424,14034.330012243026,14054.075574564233,14073.848917850473,14093.650081188101,14113.479103718462,14126.806104121759,14140.145688873563,14153.497869856965,14166.862658966254,14180.240068106979,14193.630109195909,14207.032794161069,14220.448134941751,14233.876143488525,14247.316831763237,14260.770211739034,14274.236295400369,14287.715094743005,14301.206621774045,14314.710888511916,14328.227906986402,14341.757689238644,14355.300247321155,14368.855593297827,14382.423739243945,14396.004697246191,14409.59847940267,14423.205097822905,14436.824564627852,14450.456891949916,14464.102091932957,14477.760176732303,14491.431158514761,14505.11504945862,14518.811861753678,14532.521607601237,14546.244299214124,{"$f":"IF($E$30=0,0,IF(BX$10<$E$18,0,$E30*BX38/INDEX($K38:$BZ38,MATCH($E$18,$K$10:$BZ$10,0))))","v":14559.979948816697},14573.728568644858,14587.490170946061,{"$f":"IF($E$30=0,0,IF(CA$10<$E$18,0,$E30*CA38/INDEX($K38:$BZ38,MATCH($E$18,$K$10:$BZ$10,0))))","v":14601.264767979324},14615.052372015247,14628.852995336012,14642.666650235396,14656.493349018794]
[null,null,null,"LGV",null,null,null,null,null,"AADT",{"$f":"IF($E$31=0,0,IF(K$10<$E$18,0,$E31*K39/INDEX($K39:$BZ39,MATCH($E$18,$K$10:$BZ$10,0))))","v":0},{"$f":"IF($E$31=0,0,IF(L$10<$E$18,0,$E31*L39/INDEX($K39:$BZ39,MATCH($E$18,$K$10:$BZ$10,0))))","v":0},1615,1627.7664212629625,1640.6337598707314,1653.6028135653121,1666.6743863947822,1679.8492887631444,1700.5631456685514,1721.532420646739,1742.7602632025141,1764.2498616765449,1786.0044437242354,1811.6264549971097,1837.6160395220963,1863.9784705033258,1890.7190967942897,1917.8433439831069,1939.9047402286167,1962.2199138255608,1984.7917840335983,2007.6233036933104,2030.7174596124855,2045.2986568324482,2059.98455168593,2074.7758959352382,2089.6734467405727,2104.6779666987841,2119.2902865900724,2134.0040566300208,2148.8199811648769,2163.7387694310096,2178.7611355888589,2198.0950910777365,2217.6006127969545,2237.2792231960402,2257.1324582344791,2277.1618675016002,2297.3690143375229,2317.7554759551813,2338.3228435634292,2359.0727224912371,2380.0067323129906,2401.1265069749038,2422.4336949225503,2443.9299592295301,2465.6169777272739,2487.4964431360049,2509.5700631968557,2531.8395608051637,2554.306674144947,2576.9731568245716,2599.8407780136272,2622.9113225810115,2646.186591234246,2669.6684006600244,2693.3585836660091,2717.2589893238846,2741.3714831136845,2765.6979470693927,2790.2402799258443,2815.0003972669228,2839.9802316750774,2865.1817328821662,2890.6068679216337,{"$f":"IF($E$31=0,0,IF(BX$10<$E$18,0,$E31*BX39/INDEX($K39:$BZ39,MATCH($E$18,$K$10:$BZ$10,0))))","v":2916.2576212820463},2942.1359950619835,2968.2440091263065,{"$f":"IF($E$31=0,0,IF(CA$10<$E$18,0,$E31*CA39/INDEX($K39:$BZ39,MATCH($E$18,$K$10:$BZ$10,0))))","v":2994.5837012638144},3021.1571273462964,3047.9663614889982,3075.0134962125112,3102.3006426060983]
[null,null,null,"HGV - Artics",null,null,null,null,null,"AADT",{"$f":"IF($E$33=0,0,IF(K$10<$E$18,0,$E33*K40/INDEX($K40:$BZ40,MATCH($E$18,$K$10:$BZ$10,0))))","v":0},{"$f":"IF($E$33=0,0,IF(L$10<$E$18,0,$E33*L40/INDEX($K40:$BZ40,MATCH($E$18,$K$10:$BZ$10,0))))","v":0},83.381251933587706,83.484155454660666,83.587185972323454,83.690343643306662,83.793628624534364,83.897041073124299,83.945591771660304,83.994170566185147,84.042777472957766,84.091412508246577,84.140075688329375,84.296271279578306,84.452756828526077,84.609532873443086,84.766599953598998,84.923958609264602,85.075626442308732,85.227565142749512,85.379775194335792,85.532257081680456,85.68501129026177,85.852185702302052,86.019686277385517,86.18751365186759,86.355668463345083,86.52415135065894,86.631316860089498,86.738615100627271,86.846046236667974,86.953610432810891,87.061307853859191,87.121346260487414,87.181426070241315,87.241547311672946,87.301710013353997,87.361914203875941,87.422159911849889,87.482447165906748,87.542775994697124,87.603146426891385,87.663558491179714,87.72401221627203,87.784507630898062,87.845044763807365,87.905623643769303,87.96624429957312,88.026906760027828,88.087611053962405,88.148357210225626,88.209145257686217,88.269975225232812,88.33084714177393,88.391761036238051,88.452716937573612,88.51371487474897,88.574754876752522,88.6358369725926,88.696961191297561,88.758127561915799,88.819336113515732,88.880586875185799,88.941879876034506,89.003215145190438,{"$f":"IF($E$33=0,0,IF(BX$10<$E$18,0,$E33*BX40/INDEX($K40:$BZ40,MATCH($E$18,$K$10:$BZ$10,0))))","v":89.064592711802291},89.126012605038824,89.187474854088933,{"$f":"IF($E$33=0,0,IF(CA$10<$E$18,0,$E33*CA40/INDEX($K40:$BZ40,MATCH($E$18,$K$10:$BZ$10,0))))","v":89.248979488161638},89.310526536486108,89.372116028311652,89.433747992907783,89.495422459564168]
[null,null,null,"HGV - Rigids",null,null,null,null,null,"AADT",{"$f":"IF($E$34=0,0,IF(K$10<$E$18,0,$E34*K40/INDEX($K40:$BZ40,MATCH($E$18,$K$10:$BZ$10,0))))","v":0},{"$f":"IF($E$34=0,0,IF(L$10<$E$18,0,$E34*L40/INDEX($K40:$BZ40,MATCH($E$18,$K$10:$BZ$10,0))))","v":0},58.618748066412294,58.691091374254775,58.763523963331714,58.83604594382799,58.908657426064472,58.981358520498169,59.015490667712719,59.049642566989661,59.083814229759383,59.118005667458917,59.152216891531879,59.262025629109935,59.372038212959239,59.482255021495028,59.592676433835059,59.703302829800876,59.809928459529658,59.916744514651619,60.023751335252229,60.130949262024387,60.23833863626939,60.355865712384116,60.473622087877466,60.591608210120469,60.709824527356929,60.828271488705269,60.903611062686736,60.979043949387254,61.054570264380388,61.13019012338286,61.205903642254711,61.248111886324395,61.290349237649458,61.332615716302563,61.374911342370225,61.417236135952834,61.459590117164581,61.5019733061336,61.544385723001859,61.586827387925233,61.629298321073485,61.671798542630299,61.714328072793279,61.756886931773955,61.799475139797778,61.84209271710418,61.884739683946513,61.927416060592115,61.970121867322305,62.012857124432379,62.055621852231639,62.098416071043388,62.141239801204947,62.18409306306765,62.226975876996867,62.269888263372032,62.312830242586614,62.355801835048148,62.398803061178256,62.441833941412625,62.484894496201051,62.527984746007405,62.571104711309687,{"$f":"IF($E$34=0,0,IF(BX$10<$E$18,0,$E34*BX40/INDEX($K40:$BZ40,MATCH($E$18,$K$10:$BZ$10,0))))","v":62.614254412600033},62.657433870384693,62.700643105184056,{"$f":"IF($E$34=0,0,IF(CA$10<$E$18,0,$E34*CA40/INDEX($K40:$BZ40,MATCH($E$18,$K$10:$BZ$10,0))))","v":62.74388213753268},62.78715098797926,62.830449677086676,62.873778225432012,62.917136653606491]
[null,null,null,"PSV",null,null,null,null,null,"AADT",{"$f":"IF($E$35=0,0,IF(K$10<$E$18,0,$E35*K41/INDEX($K41:$BZ41,MATCH($E$18,$K$10:$BZ$10,0))))","v":0},{"$f":"IF($E$35=0,0,IF(L$10<$E$18,0,$E35*L41/INDEX($K41:$BZ41,MATCH($E$18,$K$10:$BZ$10,0))))","v":0},440,440,440,440,440,440,440,440,440,440,440,440,440,440,440,440,440,440,440,440,440,440,440,440,440,440,440,440,440,440,440,440,440,440,440,440,440,440,440,440,440,440,440,440,440,440,440,440,440,440,440,440,440,440,440,440,440,440,440,440,440,440,440,{"$f":"IF($E$35=0,0,IF(BX$10<$E$18,0,$E35*BX41/INDEX($K41:$BZ41,MATCH($E$18,$K$10:$BZ$10,0))))","v":440},440,440,{"$f":"IF($E$35=0,0,IF(CA$10<$E$18,0,$E35*CA41/INDEX($K41:$BZ41,MATCH($E$18,$K$10:$BZ$10,0))))","v":440},440,440,440,440]
[]
[null,null,"Daily Impacts"]
[]
[null,null,null,"Changes per vehicle"]
[null,null,null,"Time - Scheme",{"$f":"'I-Scheme Details'!E22","v":7},null,null,null,null,"min"]
[null,null,null,"Time - Diversion",{"$f":"'I-Scheme Details'!E65","v":20},null,null,null,null,"min"]
[null,null,null,"Difference",{"$f":"E53-E52","v":13},null,null,null,null,"min"]
[]
[null,null,null,"Distance - Scheme",{"$f":"'I-Scheme Details'!E20","v":1.9},null,null,null,null,"km"]
[null,null,null,"Distance - Diversion",{"$f":"'I-Scheme Details'!E63","v":7.9},null,null,null,null,"km"]
[null,null,null,"Difference",{"$f":"E57-E56","v":6},null,null,null,null,"km"]
[]
[null,null,null,"Daily change in journey time",null,null,null,null,null,null,"A positive number shows a journey time saving in the with scheme scenario"]
[null,null,null,"Cars",null,null,null,null,null,"min",{"$f":"K43*$E$54*K$12","v":0},{"$f":"L43*$E$54*L$12","v":0},0,0,0,161658.12286254283,163634.87295084869,165635.79467273803,167029.95268648508,168435.84534111177,169853.57140719873,171283.23048667959,172724.92301983826,173604.11737403009,174487.78695217299,175375.95453379155,176268.64301436135,177165.87540589922,177769.35256897908,178374.88534624278,178982.48073969441,179592.14577518922,180203.88750251415,180599.36207411892,180995.70455228747,181392.91684172334,181791.00085131009,182189.95849412051,182446.29015915934,182702.98246933502,182960.03593205614,183217.45105544533,183475.22834834002,183648.47935358286,183821.89395535633,183995.47230814054,184169.21456656131,184343.12088539073,184517.19141954681,184691.42632409389,184865.82575424277,185040.38986535082,185215.1188129221,185390.01275260744,185565.07184020479,185740.29623165907,185915.68608306258,186091.2415506549,186266.96279082322,186442.84996010238,186618.903215175,186795.12271287176,186971.50861017127,187148.06106420048,187324.78023223471,187501.66627169776,187678.71934016206,187855.9395953489,188033.32719512843,188210.88229751994,188388.60506069189,188566.49564296205,188744.55420279782,188922.78089881607,189101.17588978363,{"$f":"BX43*$E$54*BX$12","v":0},0,0,{"$f":"CA43*$E$54*CA$12","v":0},0,0,0,0]
[null,null,null,"LGV",null,null,null,null,null,"min",{"$f":"K44*$E$54*K$12","v":0},0,0,0,0,21496.836576349058,21666.767023132168,21838.040753920875,22107.320893691169,22379.921468407607,22655.883421632683,22935.248201795082,23218.057768415059,23551.143914962428,23889.008513787252,24231.720116543234,24579.348258325765,24931.963471780389,25218.761622972015,25508.858879732288,25802.293192436777,26099.102948013035,26399.32697496231,26588.882538821825,26779.79917191709,26972.086647158096,27165.754807627443,27360.813567084195,27550.773725670941,27742.052736190271,27934.659755143399,28128.604002603126,28323.894762655167,28575.236184010573,28828.807966360408,29084.629901548524,29342.72195704823,29603.104277520804,29865.797186387797,30130.821187417358,30398.19696632458,30667.945392386082,30940.087520068879,31214.64459067375,31491.638033993153,31771.08946998389,32053.020710454563,32337.453760768065,32624.410821559126,32913.914290467132,33205.986763884313,33500.651038719428,33797.93011417715,34097.847193553149,34400.425686045201,34705.689208580319,35013.66158765812,35324.366861210503,35637.829280477898,35954.073311902102,36273.123639035977,36595.00516447,36919.743011776009,37247.362527468162,{"$f":"BW44*$E$54*BW$12","v":37577.889282981239},0,0,0,{"$f":"CA44*$E$54*CA$12","v":0},0,0,0,0]
[null,null,null,"HGV - Artics",null,null,null,null,null,"min",{"$f":"K45*$E$54*K$12","v":0},0,0,0,0,1087.9744673629866,1089.3171721189467,1090.6615339506159,1091.2926930315839,1091.9242173604068,1092.556107148451,1093.1883626072056,1093.820983948282,1095.851526634518,1097.885838770839,1099.9239273547601,1101.9657993967869,1104.0114619204398,1105.9831437500136,1107.9583468557437,1109.9370775263653,1111.919342061846,1113.905146773403,1116.0784141299266,1118.2559216060117,1120.4376774742786,1122.623690023486,1124.8139675585662,1126.2071191811635,1127.6019963081544,1128.9986010766836,1130.3969356265416,1131.7970021001695,1132.5775013863363,1133.3585389131372,1134.1401150517484,1134.922230173602,1135.7048846503872,1136.4880788540486,1137.2718131567876,1138.0560879310626,1138.8409035495879,1139.6262603853363,1140.4121588115363,1141.1985992016748,1141.9855819294958,1142.7731073690009,1143.5611758944506,1144.3497878803619,1145.1389437015114,1145.9286437329331,1146.7188883499209,1147.5096779280266,1148.301012843061,1149.0928934710946,1149.8853201884569,1150.6782933717366,1151.4718133977829,1152.2658806437039,1153.0604954868684,1153.8556583049053,1154.6513694757045,1155.4476293774153,1156.2444383884485,{"$f":"BW45*$E$54*BW$12","v":1157.0417968874758},0,0,0,{"$f":"CA45*$E$54*CA$12","v":0},0,0,0,0]
[null,null,null,"HGV - Rigids",null,null,null,null,null,"min",{"$f":"K46*$E$54*K$12","v":0},0,0,0,0,764.86859726976388,765.81254653883809,766.75766076647619,767.20137868026529,767.64535337086556,768.08958498687196,768.53407367696593,768.97881958991445,770.40633317842912,771.83649676847017,773.26931527943532,774.70479363985578,776.14293678741137,777.5290699738855,778.91767869047101,780.30876735827894,781.70234040631703,783.0984022715021,784.62625426099351,786.15708714240702,787.69090673156609,789.22771885564009,790.76752935316847,791.74694381492759,792.72757134203425,793.70941343694506,794.6924716039772,795.6767473493112,796.22545452221709,796.77454008944301,797.32400431193332,797.87384745081295,798.42406976738687,798.97467152313959,799.52565297973683,800.07701439902416,800.62875604302803,801.18087817395531,801.73338105419384,802.2862649463126,802.83953011306141,803.39317681737111,803.94720532235431,804.50161589130471,805.05640878769748,805.61158427519001,806.16714261762093,806.7230840790113,807.27940892356401,807.83611741566426,808.39320981987942,808.95068640095928,809.50854742383638,810.06679315362601,810.62542385562597,811.1844397953173,811.7438412383641,812.3036284506137,812.86380169809627,{"$f":"BW46*$E$54*BW$12","v":813.4243612470259},0,0,0,{"$f":"CA46*$E$54*CA$12","v":0},0,0,0,0]
[null,null,null,"PSV",null,null,null,null,null,"min",{"$f":"K47*$E$54*K$12","v":0},0,0,0,0,5720,5720,5720,5720,5720,5720,5720,5720,5720,5720,5720,5720,5720,5720,5720,5720,5720,5720,5720,5720,5720,5720,5720,5720,5720,5720,5720,5720,5720,5720,5720,5720,5720,5720,5720,5720,5720,5720,5720,5720,5720,5720,5720,5720,5720,5720,5720,5720,5720,5720,5720,5720,5720,5720,5720,5720,5720,5720,5720,{"$f":"BW47*$E$54*BW$12","v":5720},0,0,0,{"$f":"CA47*$E$54*CA$12","v":0},0,0,0,0]
[]
[null,null,null,"Cars",null,null,null,null,null,"hours",{"$f":"K61/MinutesToHours","v":0},0,0,0,0,2694.3020477090472,2727.2478825141447,2760.5965778789673,2783.8325447747511,2807.2640890185294,2830.8928567866456,2854.7205081113266,2878.7487169973042,2893.4019562338349,2908.1297825362167,2922.9325755631926,2937.8107169060227,2952.7645900983202,2962.8225428163182,2972.9147557707129,2983.0413456615734,2993.2024295864871,3003.3981250419024,3009.989367901982,3016.595075871458,3023.2152806953891,3029.8500141885015,3036.4993082353417,3040.7715026526557,3045.0497078222502,3049.3339322009356,3053.6241842574223,{"$f":"AQ61/MinutesToHours","v":3057.9204724723336},3060.8079892263809,3063.6982325892723,3066.5912051356759,3069.4869094426886,3072.3853480898456,3075.2865236591138,3078.1904387348982,3081.0970959040465,3084.0064977558472,3086.9186468820349,3089.8335458767906,3092.7511973367464,3095.6716038609843,3098.594768051043,3101.5206925109151,3104.4493798470535,3107.3808326683729,3110.3150535862501,3113.2520452145295,3116.191810169521,3119.1343510700081,3122.0796705372454,3125.0277711949625,3127.9786556693675,3130.9323265891485,3133.8887865854736,3136.8480382919993,3139.8100843448647,3142.7749273827008,3145.7425700466306,3148.7130149802679,3151.686264829727,0,0,0,{"$f":"CA61/MinutesToHours","v":0},0,0,0,0]
[null,null,null,"LGV",null,null,null,null,null,"hours",{"$f":"K62/MinutesToHours","v":0},0,0,0,0,358.28060960581763,361.11278371886948,363.96734589868123,368.45534822818615,372.99869114012677,377.59805702721138,382.25413669658468,386.96762947358434,392.5190652493738,398.15014189645422,403.86200194238722,409.6558043054294,415.53272452967315,420.31269371620027,425.14764799553814,430.03821987394628,434.9850491335506,439.98878291603853,443.14804231369709,446.32998619861814,449.53477745263496,452.76258012712407,456.01355945140324,459.17956209451569,462.36754560317121,465.57766258572332,468.81006671005213,{"$f":"AQ62/MinutesToHours","v":472.06491271091943},476.2539364001762,480.48013277267347,484.7438316924754,489.04536595080384,493.38507129201338,497.76328643979662,502.18035312362264,506.63661610540964,511.13242320643468,515.66812533448126,520.2440765112292,524.8606338998859,529.51815783306483,534.21701184090932,538.95756267946774,543.74018035931874,548.56523817445225,553.43311273140523,558.34418397865716,563.29883523628587,568.29745322588576,573.34042810075334,578.42815347633871,583.56102646096872,588.73944768684169,593.96382134129829,599.23455519836841,604.55206065059963,609.91675274116665,615.32905019626685,620.78937545780275,626.29815471635402,0,0,0,{"$f":"CA62/MinutesToHours","v":0},0,0,0,0]
[null,null,null,"HGV - Artics",null,null,null,null,null,"hours",{"$f":"K63/MinutesToHours","v":0},0,0,0,0,18.132907789383111,18.155286201982445,18.177692232510264,18.188211550526397,18.19873695600678,18.209268452474184,18.219806043453428,18.230349732471367,18.264192110575301,18.298097312847315,18.332065455912666,18.366096656613117,18.400191032007331,18.43305239583356,18.465972447595728,18.498951292106089,18.531989034364099,18.565085779556718,18.601306902165444,18.637598693433528,18.673961291237976,18.710394833724767,18.746899459309436,18.770118653019392,18.793366605135908,18.81664335127806,18.839948927109027,{"$f":"AQ63/MinutesToHours","v":18.863283368336159},18.87629168977227,18.88930898188562,18.902335250862471,18.915370502893367,18.928414744173118,18.941467980900811,18.954530219279793,18.96760146551771,18.980681725826464,18.993771006422271,19.006869313525605,19.019976653361248,19.033093032158263,19.046218456150015,19.059352931574175,19.0724964646727,19.085649061691857,19.098810728882217,19.11198147249868,19.125161298800442,19.138350214051016,19.151548224518244,19.164755336474283,19.177971556195608,19.191196889963049,19.204431344061732,19.217674924781139,19.230927638415089,19.244189491261743,19.25746048962359,19.270740639807475,19.284029948124598,0,0,0,{"$f":"CA63/MinutesToHours","v":0},0,0,0,0]
[null,null,null,"HGV - Rigids",null,null,null,null,null,"hours",{"$f":"K64/MinutesToHours","v":0},0,0,0,0,12.747809954496065,12.763542442313968,12.779294346107937,12.786689644671089,12.794089222847759,12.801493083114533,12.808901227949432,12.816313659831907,12.840105552973819,12.863941612807837,12.887821921323923,12.911746560664263,12.935715613123524,12.958817832898092,12.981961311507851,13.005146122637983,13.028372340105284,13.051640037858368,13.077104237683224,13.102618119040118,13.128181778859435,13.153795314260668,13.179458822552808,13.19578239691546,13.212126189033905,13.228490223949084,13.244874526732954,{"$f":"AQ64/MinutesToHours","v":13.261279122488521},13.270424242036951,13.279575668157383,13.288733405198888,13.29789745751355,13.307067829456448,13.31624452538566,13.325427549662281,13.334616906650403,13.343812600717134,13.353014636232588,13.362223017569898,13.37143774910521,13.380658835217691,13.389886280289518,13.399120088705905,13.408360264855078,13.417606813128291,13.426859737919834,13.436119043627015,13.445384734650188,13.454656815392733,13.463935290261071,13.473220163664656,13.482511440015989,13.491809123730606,13.501113219227101,13.5104237309271,13.519740663255288,13.529064020639401,13.538393807510229,13.547730028301604,13.557072687450432,0,0,0,{"$f":"CA64/MinutesToHours","v":0},0,0,0,0]
[null,null,null,"PSV",null,null,null,null,null,"hours",{"$f":"K65/MinutesToHours","v":0},0,0,0,0,95.333333333333329,95.333333333333329,95.333333333333329,95.333333333333329,95.333333333333329,95.333333333333329,95.333333333333329,95.333333333333329,95.333333333333329,95.333333333333329,95.333333333333329,95.333333333333329,95.333333333333329,95.333333333333329,95.333333333333329,95.333333333333329,95.333333333333329,95.333333333333329,95.333333333333329,95.333333333333329,95.333333333333329,95.333333333333329,95.333333333333329,95.333333333333329,95.333333333333329,95.333333333333329,95.333333333333329,{"$f":"AQ65/MinutesToHours","v":95.333333333333329},95.333333333333329,95.333333333333329,95.333333333333329,95.333333333333329,95.333333333333329,95.333333333333329,95.333333333333329,95.333333333333329,95.333333333333329,95.333333333333329,95.333333333333329,95.333333333333329,95.333333333333329,95.333333333333329,95.333333333333329,95.333333333333329,95.333333333333329,95.333333333333329,95.333333333333329,95.333333333333329,95.333333333333329,95.333333333333329,95.333333333333329,95.333333333333329,95.333333333333329,95.333333333333329,95.333333333333329,95.333333333333329,95.333333333333329,95.333333333333329,95.333333333333329,95.333333333333329,0,0,0,{"$f":"CA65/MinutesToHours","v":0},0,0,0,0]
[]
[null,null,null,"Daily distance travelled - Scheme"]
[null,null,null,"Cars",null,null,null,null,null,"km",{"$f":"K43*$E$56*K$12","v":0},{"$f":"L43*$E$56*L$12","v":0},0,0,0,23626.956418371643,23915.866046662501,24208.308452169404,24412.070008024741,24617.546626777872,24824.752744129044,25033.702917283936,25244.41182597636,25372.909462358246,25502.061169932975,25631.870278015689,25762.340132868198,25893.474097785267,25981.674606235403,26070.175550604712,26158.977954263028,26248.082844066113,26337.491250367453,26395.291380063532,26453.218357642014,26511.27246148264,26569.453970576087,26627.763164525302,26665.227023261748,26702.743591672042,26740.312943915898,26777.935154257393,26815.610297065075,26840.931597831339,26866.27680885977,26891.645952728231,26917.039052035881,26942.456129403261,26967.897207472226,26993.362308906027,27018.851456389326,27044.364672628199,27069.901980350151,27095.463402304165,27121.048961260702,27146.658680011707,27172.292581370682,27197.950688172637,27223.63302327416,27249.339609553423,27275.070469910192,27300.825627265869,27326.605104563492,27352.408924767762,27378.237110865073,27404.089685863521,27429.966672792918,27455.868094704838,27481.793974672615,27507.744335791376,27533.719201178043,27559.718593971378,27585.742537331989,27611.791054442347,27637.864168506836,{"$f":"BX43*$E$56*BX$12","v":0},0,0,{"$f":"CA43*$E$56*CA$12","v":0},0,0,0,0]
[null,null,null,"LGV",null,null,null,null,null,"km",{"$f":"K44*$E$56*K$12","v":0},0,0,0,0,3141.8453457740929,3166.6813341500861,3191.7136486499744,3231.0699767702476,3270.9115992288039,3311.2445000847765,3352.0747371854354,3393.4084430760472,3442.0902644945081,3491.4704750919827,3541.559093956319,3592.3662839091503,3643.902353567903,3685.8190064343717,3728.2178362685654,3771.1043896638366,3814.4842770172895,3858.3631732637223,3886.0674479816512,3913.9706482032666,3942.0742022769523,3970.3795488070878,3998.8881367276895,4026.6515445211371,4054.6077075970393,4082.757964213266,4111.1036619189181,4139.6461576188321,4176.380673047699,4213.441164314213,4250.8305240724758,4288.5516706455101,4326.6075482530405,4365.001127241293,4403.7354043148443,4442.8134027705155,4482.2381727333504,4522.0127913946817,4562.140363252317,4602.624020352845,4643.4669225361067,4684.6722576818202,4726.2432419584093,4768.1831200740253,4810.4951655298109,4853.1826808753995,4896.2489979666861,4939.6974782258912,4983.5315129039218,5027.7545233450674,5072.3699612540458,5117.3813089654168,5162.7920797153802,5208.605817916,5254.8260994318462,5301.456531859104,5348.5007548071535,5395.9624401826468,5443.8452924761159,{"$f":"BW44*$E$56*BW$12","v":5492.1530490511041},0,0,0,{"$f":"CA44*$E$56*CA$12","v":0},0,0,0,0]
[null,null,null,"HGV - Artics",null,null,null,null,null,"km",{"$f":"K45*$E$56*K$12","v":0},0,0,0,0,159.01165292228265,159.20789438661529,159.40437803893616,159.49662436615458,159.58892407575178,159.68127719861974,159.77368376566849,159.86614380782581,160.16291543119877,160.46023797419954,160.75811245954185,161.05653991183809,161.35552135760273,161.64369024038658,161.93237377122406,162.221572869238,162.51128845519287,162.80152145149736,163.11915283437389,163.43740392703248,163.75627593854841,164.07577008035565,164.39588756625199,164.59950203417003,164.80336869119182,165.00748784966913,165.21185982234067,165.41648492233244,165.53055789492609,165.6447095334585,165.7589398921786,165.87324902537259,165.98763698736428,166.10210383251479,166.21664961522282,166.33127438992452,166.44597821109363,166.56076113324144,166.67562321091685,166.79056449870632,166.905585051234,167.02068492316167,167.13586416918892,167.25112284405287,167.36646100252855,167.48187869942868,167.59737598960379,167.71295292794233,167.82860956937046,167.9443459688523,168.06016218138984,168.17605826202305,168.29203426582978,168.40809024792594,168.52422626346535,168.64044236764002,168.75673861567989,168.873115062853,168.98957176446555,{"$f":"BW45*$E$56*BW$12","v":169.10610877586183},0,0,0,{"$f":"CA45*$E$56*CA$12","v":0},0,0,0,0]
[null,null,null,"HGV - Rigids",null,null,null,null,null,"km",{"$f":"K46*$E$56*K$12","v":0},0,0,0,0,111.78848729327318,111.92644910952249,112.06458118894652,112.12943226865416,112.19432087728035,112.25924703654282,112.32421076817194,112.38921209391056,112.59784869530887,112.80687260462255,113.01628454084054,113.22608522428661,113.43627537662167,113.63886407310635,113.84181457783806,114.04512753697922,114.24880359784633,114.45284340891183,114.67614485352982,114.89988196696719,115.12405559922888,115.34866660197817,115.57371582854,115.7168610191048,115.86018350383577,116.00368350232273,116.14736123442744,116.29121692028394,116.37141258401634,116.45166355153397,116.53196986097487,116.61233155050343,116.69274865831038,116.7732212226127,116.85374928165383,116.93433287370353,117.01497203705793,117.09566681003962,117.17641723099756,117.25722333830723,117.3380851703705,117.41900276561577,117.49997616249793,117.58100539949837,117.66209051512502,117.74323154791237,117.82442853642152,117.9056815192401,117.98699053498244,118.06835562228939,118.14977681982853,118.23125416629404,118.31278770040686,118.39437746091455,118.47602348659147,118.55772581623869,118.63948448868398,118.72129954278199,118.80317101741406,{"$f":"BW46*$E$56*BW$12","v":118.8850989514884},0,0,0,{"$f":"CA46*$E$56*CA$12","v":0},0,0,0,0]
[null,null,null,"PSV",null,null,null,null,null,"km",{"$f":"K47*$E$56*K$12","v":0},0,0,0,0,836,836,836,836,836,836,836,836,836,836,836,836,836,836,836,836,836,836,836,836,836,836,836,836,836,836,836,836,836,836,836,836,836,836,836,836,836,836,836,836,836,836,836,836,836,836,836,836,836,836,836,836,836,836,836,836,836,836,836,{"$f":"BW47*$E$56*BW$12","v":836},0,0,0,{"$f":"CA47*$E$56*CA$12","v":0},0,0,0,0]
[]
[null,null,null,"Daily distance travelled - Diversion"]
[null,null,null,"Cars",null,null,null,null,null,"km",{"$f":"K43*$E$57*'C-Values and Rates'!K$15","v":0},{"$f":"L43*$E$57*'C-Values and Rates'!L$15","v":0},{"$f":"M43*$E$57*'C-Values and Rates'!M$15","v":0},{"$f":"N43*$E$57*'C-Values and Rates'!N$15","v":0},{"$f":"O43*$E$57*'C-Values and Rates'!O$15","v":0},{"$f":"P43*$E$57*'C-Values and Rates'!P$15","v":98238.397739545268},{"$f":"Q43*$E$57*'C-Values and Rates'!Q$15","v":99439.653562438834},{"$f":"R43*$E$57*'C-Values and Rates'!R$15","v":100655.59830112541},{"$f":"S43*$E$57*'C-Values and Rates'!S$15","v":101502.81740178709},{"$f":"T43*$E$57*'C-Values and Rates'!T$15","v":102357.16755344484},{"$f":"U43*$E$57*'C-Values and Rates'!U$15","v":103218.70877822077},{"$f":"V43*$E$57*'C-Values and Rates'!V$15","v":104087.50160344374},{"$f":"W43*$E$57*'C-Values and Rates'!W$15","v":104963.60706590171},{"$f":"X43*$E$57*'C-Values and Rates'!X$15","v":105497.8867119106},{"$f":"Y43*$E$57*'C-Values and Rates'!Y$15","v":106034.88591708975},{"$f":"Z43*$E$57*'C-Values and Rates'!Z$15","v":106574.61852438103},{"$f":"AA43*$E$57*'C-Values and Rates'!AA$15","v":107117.09844718884},{"$f":"AB43*$E$57*'C-Values and Rates'!AB$15","v":107662.33966973877},{"$f":"AC43*$E$57*'C-Values and Rates'!AC$15","v":108029.06809961038},{"$f":"AD43*$E$57*'C-Values and Rates'!AD$15","v":108397.04571040907},{"$f":"AE43*$E$57*'C-Values and Rates'!AE$15","v":108766.27675719891},{"$f":"AF43*$E$57*'C-Values and Rates'!AF$15","v":109136.76550953806},{"$f":"AG43*$E$57*'C-Values and Rates'!AG$15","v":109508.51625152784},{"$f":"AH43*$E$57*'C-Values and Rates'!AH$15","v":109748.84310657995},{"$f":"AI43*$E$57*'C-Values and Rates'!AI$15","v":109989.69738177471},{"$f":"AJ43*$E$57*'C-Values and Rates'!AJ$15","v":110231.08023458572},{"$f":"AK43*$E$57*'C-Values and Rates'!AK$15","v":110472.9928250269},{"$f":"AL43*$E$57*'C-Values and Rates'!AL$15","v":110715.43631565785},{"$f":"AM43*$E$57*'C-Values and Rates'!AM$15","v":110871.20709671991},{"$f":"AN43*$E$57*'C-Values and Rates'!AN$15","v":111027.19703905744},{"$f":"AO43*$E$57*'C-Values and Rates'!AO$15","v":111183.40645101875},{"$f":"AP43*$E$57*'C-Values and Rates'!AP$15","v":111339.835641386},{"$f":"AQ43*$E$57*'C-Values and Rates'!AQ$15","v":111496.48491937586},{"$f":"AR43*$E$57*'C-Values and Rates'!AR$15","v":111601.76822256191},{"$f":"AS43*$E$57*'C-Values and Rates'!AS$15","v":111707.15094210116},{"$f":"AT43*$E$57*'C-Values and Rates'!AT$15","v":111812.63317187002},{"$f":"AU43*$E$57*'C-Values and Rates'!AU$15","v":111918.21500583341},{"$f":"AV43*$E$57*'C-Values and Rates'!AV$15","v":112023.89653804514},{"$f":"AW43*$E$57*'C-Values and Rates'!AW$15","v":112129.67786264769},{"$f":"AX43*$E$57*'C-Values and Rates'!AX$15","v":112235.55907387244},{"$f":"AY43*$E$57*'C-Values and Rates'!AY$15","v":112341.54026603984},{"$f":"AZ43*$E$57*'C-Values and Rates'!AZ$15","v":112447.62153355936},{"$f":"BA43*$E$57*'C-Values and Rates'!BA$15","v":112553.80297092958},{"$f":"BB43*$E$57*'C-Values and Rates'!BB$15","v":112660.08467273838},{"$f":"BC43*$E$57*'C-Values and Rates'!BC$15","v":112766.46673366292},{"$f":"BD43*$E$57*'C-Values and Rates'!BD$15","v":112872.94924846975},{"$f":"BE43*$E$57*'C-Values and Rates'!BE$15","v":112979.53231201496},{"$f":"BF43*$E$57*'C-Values and Rates'!BF$15","v":113086.21601924414},{"$f":"BG43*$E$57*'C-Values and Rates'!BG$15","v":113193.00046519258},{"$f":"BH43*$E$57*'C-Values and Rates'!BH$15","v":113299.88574498529},{"$f":"BI43*$E$57*'C-Values and Rates'!BI$15","v":113406.87195383712},{"$f":"BJ43*$E$57*'C-Values and Rates'!BJ$15","v":113513.95918705284},{"$f":"BK43*$E$57*'C-Values and Rates'!BK$15","v":113621.14754002717},{"$f":"BL43*$E$57*'C-Values and Rates'!BL$15","v":113728.43710824492},{"$f":"BM43*$E$57*'C-Values and Rates'!BM$15","v":113835.8279872811},{"$f":"BN43*$E$57*'C-Values and Rates'!BN$15","v":113943.32027280096},{"$f":"BO43*$E$57*'C-Values and Rates'!BO$15","v":114050.91406056004},{"$f":"BP43*$E$57*'C-Values and Rates'!BP$15","v":114158.60944640434},{"$f":"BQ43*$E$57*'C-Values and Rates'!BQ$15","v":114266.40652627037},{"$f":"BR43*$E$57*'C-Values and Rates'!BR$15","v":114374.3053961852},{"$f":"BS43*$E$57*'C-Values and Rates'!BS$15","v":114482.30615226661},{"$f":"BT43*$E$57*'C-Values and Rates'!BT$15","v":114590.40889072311},{"$f":"BU43*$E$57*'C-Values and Rates'!BU$15","v":114698.61370785406},{"$f":"BV43*$E$57*'C-Values and Rates'!BV$15","v":114806.92070004977},{"$f":"BW43*$E$57*'C-Values and Rates'!BW$15","v":114915.32996379159},{"$f":"BX43*$E$57*'C-Values and Rates'!BX$15","v":0},{"$f":"BY43*$E$57*'C-Values and Rates'!BY$15","v":0},{"$f":"BZ43*$E$57*'C-Values and Rates'!BZ$15","v":0},{"$f":"CA43*$E$57*'C-Values and Rates'!CA$15","v":0},{"$f":"CB43*$E$57*'C-Values and Rates'!CB$15","v":0},{"$f":"CC43*$E$57*'C-Values and Rates'!CC$15","v":0},{"$f":"CD43*$E$57*'C-Values and Rates'!CD$15","v":0},{"$f":"CE43*$E$57*'C-Values and Rates'!CE$15","v":0}]
[null,null,null,"LGV",null,null,null,null,null,"km",{"$f":"K44*$E$57*'C-Values and Rates'!K$15","v":0},{"$f":"L44*$E$57*'C-Values and Rates'!L$15","v":0},{"$f":"M44*$E$57*'C-Values and Rates'!M$15","v":0},{"$f":"N44*$E$57*'C-Values and Rates'!N$15","v":0},{"$f":"O44*$E$57*'C-Values and Rates'!O$15","v":0},{"$f":"P44*$E$57*'C-Values and Rates'!P$15","v":13063.462227165966},{"$f":"Q44*$E$57*'C-Values and Rates'!Q$15","v":13166.727652518781},{"$f":"R44*$E$57*'C-Values and Rates'!R$15","v":13270.809381228841},{"$f":"S44*$E$57*'C-Values and Rates'!S$15","v":13434.448850781557},{"$f":"T44*$E$57*'C-Values and Rates'!T$15","v":13600.106123109239},{"$f":"U44*$E$57*'C-Values and Rates'!U$15","v":13767.806079299862},{"$f":"V44*$E$57*'C-Values and Rates'!V$15","v":13937.573907244705},{"$f":"W44*$E$57*'C-Values and Rates'!W$15","v":14109.43510542146},{"$f":"X44*$E$57*'C-Values and Rates'!X$15","v":14311.848994477168},{"$f":"Y44*$E$57*'C-Values and Rates'!Y$15","v":14517.166712224562},{"$f":"Z44*$E$57*'C-Values and Rates'!Z$15","v":14725.429916976274},{"$f":"AA44*$E$57*'C-Values and Rates'!AA$15","v":14936.680864674889},{"$f":"AB44*$E$57*'C-Values and Rates'!AB$15","v":15150.962417466546},{"$f":"AC44*$E$57*'C-Values and Rates'!AC$15","v":15325.247447806072},{"$f":"AD44*$E$57*'C-Values and Rates'!AD$15","v":15501.53731922193},{"$f":"AE44*$E$57*'C-Values and Rates'!AE$15","v":15679.855093865428},{"$f":"AF44*$E$57*'C-Values and Rates'!AF$15","v":15860.224099177152},{"$f":"AG44*$E$57*'C-Values and Rates'!AG$15","v":16042.667930938636},{"$f":"AH44*$E$57*'C-Values and Rates'!AH$15","v":16157.859388976342},{"$f":"AI44*$E$57*'C-Values and Rates'!AI$15","v":16273.877958318848},{"$f":"AJ44*$E$57*'C-Values and Rates'!AJ$15","v":16390.729577888382},{"$f":"AK44*$E$57*'C-Values and Rates'!AK$15","v":16508.420229250525},{"$f":"AL44*$E$57*'C-Values and Rates'!AL$15","v":16626.955936920396},{"$f":"AM44*$E$57*'C-Values and Rates'!AM$15","v":16742.393264061571},{"$f":"AN44*$E$57*'C-Values and Rates'!AN$15","v":16858.632047377167},{"$f":"AO44*$E$57*'C-Values and Rates'!AO$15","v":16975.67785120253},{"$f":"AP44*$E$57*'C-Values and Rates'!AP$15","v":17093.536278504977},{"$f":"AQ44*$E$57*'C-Values and Rates'!AQ$15","v":17212.212971151985},{"$f":"AR44*$E$57*'C-Values and Rates'!AR$15","v":17364.951219514118},{"$f":"AS44*$E$57*'C-Values and Rates'!AS$15","v":17519.04484109594},{"$f":"AT44*$E$57*'C-Values and Rates'!AT$15","v":17674.50586324872},{"$f":"AU44*$E$57*'C-Values and Rates'!AU$15","v":17831.346420052385},{"$f":"AV44*$E$57*'C-Values and Rates'!AV$15","v":17989.578753262642},{"$f":"AW44*$E$57*'C-Values and Rates'!AW$15","v":18149.215213266431},{"$f":"AX44*$E$57*'C-Values and Rates'!AX$15","v":18310.268260045934},{"$f":"AY44*$E$57*'C-Values and Rates'!AY$15","v":18472.75046415109},{"$f":"AZ44*$E$57*'C-Values and Rates'!AZ$15","v":18636.674507680775},{"$f":"BA44*$E$57*'C-Values and Rates'!BA$15","v":18802.053185272627},{"$f":"BB44*$E$57*'C-Values and Rates'!BB$15","v":18968.89940510174},{"$f":"BC44*$E$57*'C-Values and Rates'!BC$15","v":19137.226189888148},{"$f":"BD44*$E$57*'C-Values and Rates'!BD$15","v":19307.046677913288},{"$f":"BE44*$E$57*'C-Values and Rates'!BE$15","v":19478.374124045466},{"$f":"BF44*$E$57*'C-Values and Rates'!BF$15","v":19651.221900774439},{"$f":"BG44*$E$57*'C-Values and Rates'!BG$15","v":19825.603499255161},{"$f":"BH44*$E$57*'C-Values and Rates'!BH$15","v":20001.532530360793},{"$f":"BI44*$E$57*'C-Values and Rates'!BI$15","v":20179.022725745082},{"$f":"BJ44*$E$57*'C-Values and Rates'!BJ$15","v":20358.087938914116},{"$f":"BK44*$E$57*'C-Values and Rates'!BK$15","v":20538.742146307657},{"$f":"BL44*$E$57*'C-Values and Rates'!BL$15","v":20720.999448389994},{"$f":"BM44*$E$57*'C-Values and Rates'!BM$15","v":20904.874070750542},{"$f":"BN44*$E$57*'C-Values and Rates'!BN$15","v":21090.380365214194},{"$f":"BO44*$E$57*'C-Values and Rates'!BO$15","v":21277.532810961471},{"$f":"BP44*$E$57*'C-Values and Rates'!BP$15","v":21466.346015658688},{"$f":"BQ44*$E$57*'C-Values and Rates'!BQ$15","v":21656.834716598107},{"$f":"BR44*$E$57*'C-Values and Rates'!BR$15","v":21849.013781848204},{"$f":"BS44*$E$57*'C-Values and Rates'!BS$15","v":22042.898211414173},{"$f":"BT44*$E$57*'C-Values and Rates'!BT$15","v":22238.503138408691},{"$f":"BU44*$E$57*'C-Values and Rates'!BU$15","v":22435.843830233112},{"$f":"BV44*$E$57*'C-Values and Rates'!BV$15","v":22634.935689769114},{"$f":"BW44*$E$57*'C-Values and Rates'!BW$15","v":22835.794256580906},{"$f":"BX44*$E$57*'C-Values and Rates'!BX$15","v":0},{"$f":"BY44*$E$57*'C-Values and Rates'!BY$15","v":0},{"$f":"BZ44*$E$57*'C-Values and Rates'!BZ$15","v":0},{"$f":"CA44*$E$57*'C-Values and Rates'!CA$15","v":0},{"$f":"CB44*$E$57*'C-Values and Rates'!CB$15","v":0},{"$f":"CC44*$E$57*'C-Values and Rates'!CC$15","v":0},{"$f":"CD44*$E$57*'C-Values and Rates'!CD$15","v":0},{"$f":"CE44*$E$57*'C-Values and Rates'!CE$15","v":0}]
[null,null,null,"HGV - Artics",null,null,null,null,null,"km",{"$f":"K45*$E$57*'C-Values and Rates'!K$15","v":0},{"$f":"L45*$E$57*'C-Values and Rates'!L$15","v":0},{"$f":"M45*$E$57*'C-Values and Rates'!M$15","v":0},{"$f":"N45*$E$57*'C-Values and Rates'!N$15","v":0},{"$f":"O45*$E$57*'C-Values and Rates'!O$15","v":0},{"$f":"P45*$E$57*'C-Values and Rates'!P$15","v":661.15371478212262},{"$f":"Q45*$E$57*'C-Values and Rates'!Q$15","v":661.96966613382153},{"$f":"R45*$E$57*'C-Values and Rates'!R$15","v":662.78662447768204},{"$f":"S45*$E$57*'C-Values and Rates'!S$15","v":663.17017499611643},{"$f":"T45*$E$57*'C-Values and Rates'!T$15","v":663.55394747286266},{"$f":"U45*$E$57*'C-Values and Rates'!U$15","v":663.93794203636639},{"$f":"V45*$E$57*'C-Values and Rates'!V$15","v":664.32215881514799},{"$f":"W45*$E$57*'C-Values and Rates'!W$15","v":664.70659793780214},{"$f":"X45*$E$57*'C-Values and Rates'!X$15","v":665.94054310866863},{"$f":"Y45*$E$57*'C-Values and Rates'!Y$15","v":667.17677894535609},{"$f":"Z45*$E$57*'C-Values and Rates'!Z$15","v":668.4153097002004},{"$f":"AA45*$E$57*'C-Values and Rates'!AA$15","v":669.65613963343208},{"$f":"AB45*$E$57*'C-Values and Rates'!AB$15","v":670.8992730131904},{"$f":"AC45*$E$57*'C-Values and Rates'!AC$15","v":672.09744889423905},{"$f":"AD45*$E$57*'C-Values and Rates'!AD$15","v":673.29776462772122},{"$f":"AE45*$E$57*'C-Values and Rates'!AE$15","v":674.50022403525281},{"$f":"AF45*$E$57*'C-Values and Rates'!AF$15","v":675.7048309452756},{"$f":"AG45*$E$57*'C-Values and Rates'!AG$15","v":676.91158919306804},{"$f":"AH45*$E$57*'C-Values and Rates'!AH$15","v":678.23226704818626},{"$f":"AI45*$E$57*'C-Values and Rates'!AI$15","v":679.55552159134561},{"$f":"AJ45*$E$57*'C-Values and Rates'!AJ$15","v":680.88135784975395},{"$f":"AK45*$E$57*'C-Values and Rates'!AK$15","v":682.20978086042624},{"$f":"AL45*$E$57*'C-Values and Rates'!AL$15","v":683.54079567020563},{"$f":"AM45*$E$57*'C-Values and Rates'!AM$15","v":684.38740319470708},{"$f":"AN45*$E$57*'C-Values and Rates'!AN$15","v":685.23505929495548},{"$f":"AO45*$E$57*'C-Values and Rates'!AO$15","v":686.08376526967697},{"$f":"AP45*$E$57*'C-Values and Rates'!AP$15","v":686.93352241920604},{"$f":"AQ45*$E$57*'C-Values and Rates'!AQ$15","v":687.78433204548764},{"$f":"AR45*$E$57*'C-Values and Rates'!AR$15","v":688.25863545785057},{"$f":"AS45*$E$57*'C-Values and Rates'!AS$15","v":688.73326595490641},{"$f":"AT45*$E$57*'C-Values and Rates'!AT$15","v":689.20822376221633},{"$f":"AU45*$E$57*'C-Values and Rates'!AU$15","v":689.68350910549657},{"$f":"AV45*$E$57*'C-Values and Rates'!AV$15","v":690.15912221062001},{"$f":"AW45*$E$57*'C-Values and Rates'!AW$15","v":690.63506330361417},{"$f":"AX45*$E$57*'C-Values and Rates'!AX$15","v":691.11133261066334},{"$f":"AY45*$E$57*'C-Values and Rates'!AY$15","v":691.58793035810731},{"$f":"AZ45*$E$57*'C-Values and Rates'!AZ$15","v":692.064856772442},{"$f":"BA45*$E$57*'C-Values and Rates'!BA$15","v":692.54211208031973},{"$f":"BB45*$E$57*'C-Values and Rates'!BB$15","v":693.01969650854903},{"$f":"BC45*$E$57*'C-Values and Rates'!BC$15","v":693.49761028409478},{"$f":"BD45*$E$57*'C-Values and Rates'!BD$15","v":693.97585363407825},{"$f":"BE45*$E$57*'C-Values and Rates'!BE$15","v":694.45442678577751},{"$f":"BF45*$E$57*'C-Values and Rates'!BF$15","v":694.93332996662764},{"$f":"BG45*$E$57*'C-Values and Rates'!BG$15","v":695.4125634042199},{"$f":"BH45*$E$57*'C-Values and Rates'!BH$15","v":695.89212732630301},{"$f":"BI45*$E$57*'C-Values and Rates'!BI$15","v":696.37202196078249},{"$f":"BJ45*$E$57*'C-Values and Rates'!BJ$15","v":696.85224753572118},{"$f":"BK45*$E$57*'C-Values and Rates'!BK$15","v":697.33280427933926},{"$f":"BL45*$E$57*'C-Values and Rates'!BL$15","v":697.81369242001404},{"$f":"BM45*$E$57*'C-Values and Rates'!BM$15","v":698.29491218628061},{"$f":"BN45*$E$57*'C-Values and Rates'!BN$15","v":698.77646380683154},{"$f":"BO45*$E$57*'C-Values and Rates'!BO$15","v":699.25834751051684},{"$f":"BP45*$E$57*'C-Values and Rates'!BP$15","v":699.740563526345},{"$f":"BQ45*$E$57*'C-Values and Rates'!BQ$15","v":700.22311208348162},{"$f":"BR45*$E$57*'C-Values and Rates'!BR$15","v":700.7059934112508},{"$f":"BS45*$E$57*'C-Values and Rates'!BS$15","v":701.18920773913487},{"$f":"BT45*$E$57*'C-Values and Rates'!BT$15","v":701.67275529677431},{"$f":"BU45*$E$57*'C-Values and Rates'!BU$15","v":702.15663631396785},{"$f":"BV45*$E$57*'C-Values and Rates'!BV$15","v":702.64085102067259},{"$f":"BW45*$E$57*'C-Values and Rates'!BW$15","v":703.12539964700454},{"$f":"BX45*$E$57*'C-Values and Rates'!BX$15","v":0},{"$f":"BY45*$E$57*'C-Values and Rates'!BY$15","v":0},{"$f":"BZ45*$E$57*'C-Values and Rates'!BZ$15","v":0},{"$f":"CA45*$E$57*'C-Values and Rates'!CA$15","v":0},{"$f":"CB45*$E$57*'C-Values and Rates'!CB$15","v":0},{"$f":"CC45*$E$57*'C-Values and Rates'!CC$15","v":0},{"$f":"CD45*$E$57*'C-Values and Rates'!CD$15","v":0},{"$f":"CE45*$E$57*'C-Values and Rates'!CE$15","v":0}]
[null,null,null,"HGV - Rigids",null,null,null,null,null,"km",{"$f":"K46*$E$57*'C-Values and Rates'!K$15","v":0},{"$f":"L46*$E$57*'C-Values and Rates'!L$15","v":0},{"$f":"M46*$E$57*'C-Values and Rates'!M$15","v":0},{"$f":"N46*$E$57*'C-Values and Rates'!N$15","v":0},{"$f":"O46*$E$57*'C-Values and Rates'!O$15","v":0},{"$f":"P46*$E$57*'C-Values and Rates'!P$15","v":464.80476295624112},{"$f":"Q46*$E$57*'C-Values and Rates'!Q$15","v":465.37839366590936},{"$f":"R46*$E$57*'C-Values and Rates'!R$15","v":465.95273231193556},{"$f":"S46*$E$57*'C-Values and Rates'!S$15","v":466.22237627493053},{"$f":"T46*$E$57*'C-Values and Rates'!T$15","v":466.49217627921837},{"$f":"U46*$E$57*'C-Values and Rates'!U$15","v":466.76213241509913},{"$f":"V46*$E$57*'C-Values and Rates'!V$15","v":467.03224477292548},{"$f":"W46*$E$57*'C-Values and Rates'!W$15","v":467.30251344310187},{"$f":"X46*$E$57*'C-Values and Rates'!X$15","v":468.17000246996849},{"$f":"Y46*$E$57*'C-Values and Rates'!Y$15","v":469.03910188237802},{"$f":"Z46*$E$57*'C-Values and Rates'!Z$15","v":469.90981466981077},{"$f":"AA46*$E$57*'C-Values and Rates'!AA$15","v":470.78214382729698},{"$f":"AB46*$E$57*'C-Values and Rates'!AB$15","v":471.65609235542695},{"$f":"AC46*$E$57*'C-Values and Rates'!AC$15","v":472.49843483028434},{"$f":"AD46*$E$57*'C-Values and Rates'!AD$15","v":473.34228166574781},{"$f":"AE46*$E$57*'C-Values and Rates'!AE$15","v":474.18763554849261},{"$f":"AF46*$E$57*'C-Values and Rates'!AF$15","v":475.03449916999267},{"$f":"AG46*$E$57*'C-Values and Rates'!AG$15","v":475.8828752265282},{"$f":"AH46*$E$57*'C-Values and Rates'!AH$15","v":476.81133912783451},{"$f":"AI46*$E$57*'C-Values and Rates'!AI$15","v":477.74161449423201},{"$f":"AJ46*$E$57*'C-Values and Rates'!AJ$15","v":478.67370485995173},{"$f":"AK46*$E$57*'C-Values and Rates'!AK$15","v":479.60761376611975},{"$f":"AL46*$E$57*'C-Values and Rates'!AL$15","v":480.54334476077167},{"$f":"AM46*$E$57*'C-Values and Rates'!AM$15","v":481.13852739522525},{"$f":"AN46*$E$57*'C-Values and Rates'!AN$15","v":481.73444720015931},{"$f":"AO46*$E$57*'C-Values and Rates'!AO$15","v":482.33110508860511},{"$f":"AP46*$E$57*'C-Values and Rates'!AP$15","v":482.92850197472461},{"$f":"AQ46*$E$57*'C-Values and Rates'!AQ$15","v":483.52663877381224},{"$f":"AR46*$E$57*'C-Values and Rates'!AR$15","v":483.86008390196275},{"$f":"AS46*$E$57*'C-Values and Rates'!AS$15","v":484.19375897743072},{"$f":"AT46*$E$57*'C-Values and Rates'!AT$15","v":484.52766415879029},{"$f":"AU46*$E$57*'C-Values and Rates'!AU$15","v":484.86179960472481},{"$f":"AV46*$E$57*'C-Values and Rates'!AV$15","v":485.1961654740274},{"$f":"AW46*$E$57*'C-Values and Rates'!AW$15","v":485.53076192560019},{"$f":"AX46*$E$57*'C-Values and Rates'!AX$15","v":485.86558911845543},{"$f":"AY46*$E$57*'C-Values and Rates'!AY$15","v":486.20064721171474},{"$f":"AZ46*$E$57*'C-Values and Rates'!AZ$15","v":486.53593636460937},{"$f":"BA46*$E$57*'C-Values and Rates'!BA$15","v":486.87145673648052},{"$f":"BB46*$E$57*'C-Values and Rates'!BB$15","v":487.20720848677939},{"$f":"BC46*$E$57*'C-Values and Rates'!BC$15","v":487.54319177506693},{"$f":"BD46*$E$57*'C-Values and Rates'!BD$15","v":487.87940676101425},{"$f":"BE46*$E$57*'C-Values and Rates'!BE$15","v":488.21585360440247},{"$f":"BF46*$E$57*'C-Values and Rates'!BF$15","v":488.55253246512302},{"$f":"BG46*$E$57*'C-Values and Rates'!BG$15","v":488.88944350317746},{"$f":"BH46*$E$57*'C-Values and Rates'!BH$15","v":489.22658687867772},{"$f":"BI46*$E$57*'C-Values and Rates'!BI$15","v":489.56396275184625},{"$f":"BJ46*$E$57*'C-Values and Rates'!BJ$15","v":489.90157128301581},{"$f":"BK46*$E$57*'C-Values and Rates'!BK$15","v":490.23941263262998},{"$f":"BL46*$E$57*'C-Values and Rates'!BL$15","v":490.57748696124281},{"$f":"BM46*$E$57*'C-Values and Rates'!BM$15","v":490.91579442951911},{"$f":"BN46*$E$57*'C-Values and Rates'!BN$15","v":491.25433519823446},{"$f":"BO46*$E$57*'C-Values and Rates'!BO$15","v":491.59310942827528},{"$f":"BP46*$E$57*'C-Values and Rates'!BP$15","v":491.93211728063909},{"$f":"BQ46*$E$57*'C-Values and Rates'!BQ$15","v":492.27135891643428},{"$f":"BR46*$E$57*'C-Values and Rates'!BR$15","v":492.61083449688039},{"$f":"BS46*$E$57*'C-Values and Rates'!BS$15","v":492.95054418330824},{"$f":"BT46*$E$57*'C-Values and Rates'!BT$15","v":493.29048813715974},{"$f":"BU46*$E$57*'C-Values and Rates'!BU$15","v":493.63066651998832},{"$f":"BV46*$E$57*'C-Values and Rates'!BV$15","v":493.97107949345855},{"$f":"BW46*$E$57*'C-Values and Rates'!BW$15","v":494.31172721934655},{"$f":"BX46*$E$57*'C-Values and Rates'!BX$15","v":0},{"$f":"BY46*$E$57*'C-Values and Rates'!BY$15","v":0},{"$f":"BZ46*$E$57*'C-Values and Rates'!BZ$15","v":0},{"$f":"CA46*$E$57*'C-Values and Rates'!CA$15","v":0},{"$f":"CB46*$E$57*'C-Values and Rates'!CB$15","v":0},{"$f":"CC46*$E$57*'C-Values and Rates'!CC$15","v":0},{"$f":"CD46*$E$57*'C-Values and Rates'!CD$15","v":0},{"$f":"CE46*$E$57*'C-Values and Rates'!CE$15","v":0}]
[null,null,null,"PSV",null,null,null,null,null,"km",{"$f":"K47*$E$57*'C-Values and Rates'!K$15","v":0},{"$f":"L47*$E$57*'C-Values and Rates'!L$15","v":0},{"$f":"M47*$E$57*'C-Values and Rates'!M$15","v":0},{"$f":"N47*$E$57*'C-Values and Rates'!N$15","v":0},{"$f":"O47*$E$57*'C-Values and Rates'!O$15","v":0},{"$f":"P47*$E$57*'C-Values and Rates'!P$15","v":3476},{"$f":"Q47*$E$57*'C-Values and Rates'!Q$15","v":3476},{"$f":"R47*$E$57*'C-Values and Rates'!R$15","v":3476},{"$f":"S47*$E$57*'C-Values and Rates'!S$15","v":3476},{"$f":"T47*$E$57*'C-Values and Rates'!T$15","v":3476},{"$f":"U47*$E$57*'C-Values and Rates'!U$15","v":3476},{"$f":"V47*$E$57*'C-Values and Rates'!V$15","v":3476},{"$f":"W47*$E$57*'C-Values and Rates'!W$15","v":3476},{"$f":"X47*$E$57*'C-Values and Rates'!X$15","v":3476},{"$f":"Y47*$E$57*'C-Values and Rates'!Y$15","v":3476},{"$f":"Z47*$E$57*'C-Values and Rates'!Z$15","v":3476},{"$f":"AA47*$E$57*'C-Values and Rates'!AA$15","v":3476},{"$f":"AB47*$E$57*'C-Values and Rates'!AB$15","v":3476},{"$f":"AC47*$E$57*'C-Values and Rates'!AC$15","v":3476},{"$f":"AD47*$E$57*'C-Values and Rates'!AD$15","v":3476},{"$f":"AE47*$E$57*'C-Values and Rates'!AE$15","v":3476},{"$f":"AF47*$E$57*'C-Values and Rates'!AF$15","v":3476},{"$f":"AG47*$E$57*'C-Values and Rates'!AG$15","v":3476},{"$f":"AH47*$E$57*'C-Values and Rates'!AH$15","v":3476},{"$f":"AI47*$E$57*'C-Values and Rates'!AI$15","v":3476},{"$f":"AJ47*$E$57*'C-Values and Rates'!AJ$15","v":3476},{"$f":"AK47*$E$57*'C-Values and Rates'!AK$15","v":3476},{"$f":"AL47*$E$57*'C-Values and Rates'!AL$15","v":3476},{"$f":"AM47*$E$57*'C-Values and Rates'!AM$15","v":3476},{"$f":"AN47*$E$57*'C-Values and Rates'!AN$15","v":3476},{"$f":"AO47*$E$57*'C-Values and Rates'!AO$15","v":3476},{"$f":"AP47*$E$57*'C-Values and Rates'!AP$15","v":3476},{"$f":"AQ47*$E$57*'C-Values and Rates'!AQ$15","v":3476},{"$f":"AR47*$E$57*'C-Values and Rates'!AR$15","v":3476},{"$f":"AS47*$E$57*'C-Values and Rates'!AS$15","v":3476},{"$f":"AT47*$E$57*'C-Values and Rates'!AT$15","v":3476},{"$f":"AU47*$E$57*'C-Values and Rates'!AU$15","v":3476},{"$f":"AV47*$E$57*'C-Values and Rates'!AV$15","v":3476},{"$f":"AW47*$E$57*'C-Values and Rates'!AW$15","v":3476},{"$f":"AX47*$E$57*'C-Values and Rates'!AX$15","v":3476},{"$f":"AY47*$E$57*'C-Values and Rates'!AY$15","v":3476},{"$f":"AZ47*$E$57*'C-Values and Rates'!AZ$15","v":3476},{"$f":"BA47*$E$57*'C-Values and Rates'!BA$15","v":3476},{"$f":"BB47*$E$57*'C-Values and Rates'!BB$15","v":3476},{"$f":"BC47*$E$57*'C-Values and Rates'!BC$15","v":3476},{"$f":"BD47*$E$57*'C-Values and Rates'!BD$15","v":3476},{"$f":"BE47*$E$57*'C-Values and Rates'!BE$15","v":3476},{"$f":"BF47*$E$57*'C-Values and Rates'!BF$15","v":3476},{"$f":"BG47*$E$57*'C-Values and Rates'!BG$15","v":3476},{"$f":"BH47*$E$57*'C-Values and Rates'!BH$15","v":3476},{"$f":"BI47*$E$57*'C-Values and Rates'!BI$15","v":3476},{"$f":"BJ47*$E$57*'C-Values and Rates'!BJ$15","v":3476},{"$f":"BK47*$E$57*'C-Values and Rates'!BK$15","v":3476},{"$f":"BL47*$E$57*'C-Values and Rates'!BL$15","v":3476},{"$f":"BM47*$E$57*'C-Values and Rates'!BM$15","v":3476},{"$f":"BN47*$E$57*'C-Values and Rates'!BN$15","v":3476},{"$f":"BO47*$E$57*'C-Values and Rates'!BO$15","v":3476},{"$f":"BP47*$E$57*'C-Values and Rates'!BP$15","v":3476},{"$f":"BQ47*$E$57*'C-Values and Rates'!BQ$15","v":3476},{"$f":"BR47*$E$57*'C-Values and Rates'!BR$15","v":3476},{"$f":"BS47*$E$57*'C-Values and Rates'!BS$15","v":3476},{"$f":"BT47*$E$57*'C-Values and Rates'!BT$15","v":3476},{"$f":"BU47*$E$57*'C-Values and Rates'!BU$15","v":3476},{"$f":"BV47*$E$57*'C-Values and Rates'!BV$15","v":3476},{"$f":"BW47*$E$57*'C-Values and Rates'!BW$15","v":3476},{"$f":"BX47*$E$57*'C-Values and Rates'!BX$15","v":0},{"$f":"BY47*$E$57*'C-Values and Rates'!BY$15","v":0},{"$f":"BZ47*$E$57*'C-Values and Rates'!BZ$15","v":0},{"$f":"CA47*$E$57*'C-Values and Rates'!CA$15","v":0},{"$f":"CB47*$E$57*'C-Values and Rates'!CB$15","v":0},{"$f":"CC47*$E$57*'C-Values and Rates'!CC$15","v":0},{"$f":"CD47*$E$57*'C-Values and Rates'!CD$15","v":0},{"$f":"CE47*$E$57*'C-Values and Rates'!CE$15","v":0}]
[]
[null,null,null,"Daily Increase in Distance"]
[null,null,null,"Cars",null,null,null,null,null,"km",{"$f":"K81-K74","v":0},{"$f":"L81-L74","v":0},0,0,0,74611.441321173625,75523.787515776334,76447.289848956018,77090.747393762344,77739.620926666976,78393.956034091723,79053.798686159804,79719.19523992535,80124.97724955235,80532.824747156774,80942.748246365343,81354.758314320643,81768.865571953502,82047.39349337497,82326.870159804355,82607.298802935882,82888.682665471948,83171.025001160378,83353.551726516424,83536.479024132685,83719.807773103079,83903.538854450817,84087.673151132549,84205.980073458166,84324.4534473854,84443.093507102851,84561.900487128616,84680.874622310774,84760.836624730568,84840.874133241392,84920.987219141796,85001.17595379753,85081.44040864188,85161.780655175462,85242.196764966415,85322.688809650514,85403.256860931157,85483.900990579423,85564.621270434203,85645.417772402216,85726.290568458047,85807.239730644273,85888.265331071496,85969.367441918424,86050.546135431869,86131.801483926931,86213.133559786977,86294.542435463678,86376.028183477159,86457.590876416027,86539.23058693744,86620.947387767126,86702.7413516995,86784.612551597747,86866.561060393826,86948.586951088568,87030.690296751724,87112.871170522078,87195.12964560742,87277.465795284748,{"$f":"BX81-BX74","v":0},0,0,{"$f":"CA81-CA74","v":0},0,0,0,0]
[null,null,null,"LGV",null,null,null,null,null,"km",{"$f":"K82-K75","v":0},0,0,0,0,9921.6168813918739,10000.046318368695,10079.095732578866,10203.378874011309,10329.194523880435,10456.561579215086,10585.499170059269,10716.026662345414,10869.758729982659,11025.696237132579,11183.870823019955,11344.314580765738,11507.060063898643,11639.4284413717,11773.319482953364,11908.750704201591,12045.739822159863,12184.304757674914,12271.79194099469,12359.907310115581,12448.65537561143,12538.040680443437,12628.067800192706,12715.741719540434,12804.024339780128,12892.919886989264,12982.432616586058,13072.566813533153,13188.570546466419,13305.603676781728,13423.675339176243,13542.794749406876,13662.971205009602,13784.214086025138,13906.53285573109,14029.937061380573,14154.436334947424,14280.040393877945,14406.759041849422,14534.602169535303,14663.579755377181,14793.701866363645,14924.97865881603,15057.420379181136,15191.037364830983,15325.840044869683,15461.838940947429,15599.044668081766,15737.467935486071,15877.119547405475,16018.010403960148,16160.151501996053,16303.553935943308,16448.228898682108,16594.187682416356,16741.441679555068,16890.002383601539,17039.881390050465,17191.090397292999,17343.641207529803,0,0,0,{"$f":"CA82-CA75","v":0},0,0,0,0]
[null,null,null,"HGV - Artics",null,null,null,null,null,"km",0,0,0,0,0,502.14206185983994,502.76177174720624,503.38224643874588,503.67355062996182,503.96502339711088,504.25666483774665,504.54847504947952,504.84045412997637,505.77762767746987,506.71654097115652,507.65719724065855,508.59959972159402,509.5437516555877,510.45375865385245,511.36539085649713,512.27865116601481,513.19354249008279,514.11006774157067,515.11311421381242,516.1181176643131,517.1250819112056,518.13401078007064,519.14490810395364,519.7879011605371,520.43169060376363,521.07627742000784,521.72166259686537,522.36784712315523,522.72807756292445,523.08855642144795,523.44928387003779,523.81026008012395,524.17148522325579,524.53295947109939,524.89468299544046,525.25665596818283,525.61887856134831,525.98135094707823,526.34407329763212,526.70704578538846,527.07026858284428,527.43374186261588,527.79746579743869,528.16144056016697,528.52566632377443,528.89014326135384,529.25487154611733,529.61985135139696,529.98508285064361,530.35056621742831,530.7163016254417,531.08228924849379,531.44852926051522,531.81502183555563,532.18176714778542,532.54876537149482,532.91601668109445,533.28352125111485,533.65127925620709,534.01929087114274,0,0,0,{"$f":"CA83-CA76","v":0},0,0,0,0]
[null,null,null,"HGV - Rigids",null,null,null,null,null,"km",0,0,0,0,0,353.01627566296793,353.45194455638688,353.88815112298903,354.09294400627635,354.29785540193802,354.5028853785563,354.70803400475353,354.91330134919133,355.57215377465963,356.23222927775544,356.89353012897021,357.55605860301034,358.21981697880528,358.85957075717801,359.50046708790973,360.14250801151337,360.78569557214632,361.4300318176164,362.13519427430469,362.84173252726481,363.54964926072284,364.2589471641416,364.96962893223167,365.42166637612047,365.87426369632351,366.32742158628241,366.78114074029719,367.23542185352829,367.4886713179464,367.74209542589676,367.99569429781542,368.24946805422138,368.503416815717,368.75754070298751,369.01183983680158,369.26631433801123,369.52096432755144,369.77578992644089,370.03079125578182,370.28596843675973,370.54132159064375,370.79685083878667,371.05255630262508,371.30843810367912,371.56449636355273,371.82073120393386,372.07714274659429,372.33373111338989,372.59049642626036,372.84743880722971,373.10455837840595,373.36185526198125,373.61932958023226,373.87698145551974,374.1348110102889,374.39281836706954,374.65100364847575,374.90936697720633,375.16790847604449,375.42662826785818,0,0,0,{"$f":"CA84-CA77","v":0},0,0,0,0]
[null,null,null,"PSV",null,null,null,null,null,"km",0,0,0,0,0,2640,2640,2640,2640,2640,2640,2640,2640,2640,2640,2640,2640,2640,2640,2640,2640,2640,2640,2640,2640,2640,2640,2640,2640,2640,{"$f":"AO85-AO78","v":2640},2640,2640,2640,2640,2640,2640,2640,2640,2640,2640,2640,2640,2640,2640,2640,2640,2640,2640,2640,2640,2640,2640,2640,2640,2640,2640,2640,2640,2640,2640,2640,2640,2640,2640,0,0,0,{"$f":"CA85-CA78","v":0},0,0,0,0]
[]
[null,"END"]

{"sheet":"C-Daily Impacts","index":14,"n_rows":130,"n_cols":83,"rows_kept":130,"cut":false,"hidden":true,"merged":[]}
[null,{"$f":"SUM(A:A)","v":0}]
[null,"File Name",null,null,null,null,{"$f":"IFERROR(MID(CELL(\"filename\",G2),FIND(\"[\",CELL(\"filename\",G2))+1,FIND(\"]\",CELL(\"filename\",G2))-FIND(\"[\",CELL(\"filename\",G2))-1),\"Please save the file to show here\")","v":"structures-fund-economic-tool Final 03082026.xlsm"}]
[null,"Sheet Name",null,null,null,null,{"$f":"IFERROR(MID(CELL(\"filename\",G2),FIND(\"]\",CELL(\"filename\",G2))+1,255),\"Please save the file to show here\")","v":"C-Daily Impacts"}]
[null,"Description and Purpose of Sheet",null,null,null,null,"This sheet monetises the daily impact of the diversion route."]
[null,"Version number",null,null,null,null,{"$f":"Version_Number","v":1}]
[]
[]
[null,"C-Daily Impacts"]
[]
[null,null,null,null,"Constant",null,null,"Total",null,"Unit",2023,2024,2025,2026,2027,2028,2029,2030,2031,2032,2033,2034,2035,2036,2037,2038,2039,2040,2041,2042,2043,2044,2045,2046,2047,2048,2049,2050,2051,2052,2053,2054,2055,2056,2057,2058,2059,2060,2061,2062,2063,2064,2065,2066,2067,2068,2069,2070,2071,2072,2073,2074,2075,2076,2077,2078,2079,2080,2081,2082,2083,2084,2085,2086,2087,2088,2089,2090,2091,2092,2093,2094,2095]
[]
[null,null,"Journey Time Impacts"]
[]
[null,null,null,"Daily change in journey time"]
[null,null,null,"Cars",null,null,null,{"$f":"SUM(K15:CE15)","v":5058157.8913040766},null,"£, 2023 prices",{"$f":"'C-Diversion'!K67*'C-Values and Rates'!K132","v":0},{"$f":"'C-Diversion'!L67*'C-Values and Rates'!L132","v":0},{"$f":"'C-Diversion'!M67*'C-Values and Rates'!M132","v":0},{"$f":"'C-Diversion'!N67*'C-Values and Rates'!N132","v":0},{"$f":"'C-Diversion'!O67*'C-Values and Rates'!O132","v":0},{"$f":"'C-Diversion'!P67*'C-Values and Rates'!P132","v":47131.816433315267},{"$f":"'C-Diversion'!Q67*'C-Values and Rates'!Q132","v":48223.399698560643},{"$f":"'C-Diversion'!R67*'C-Values and Rates'!R132","v":49350.890195354768},{"$f":"'C-Diversion'!S67*'C-Values and Rates'!S132","v":50534.315597352601},{"$f":"'C-Diversion'!T67*'C-Values and Rates'!T132","v":51768.116647033559},{"$f":"'C-Diversion'!U67*'C-Values and Rates'!U132","v":53057.60407977648},{"$f":"'C-Diversion'!V67*'C-Values and Rates'!V132","v":54397.455030114485},{"$f":"'C-Diversion'!W67*'C-Values and Rates'!W132","v":55780.152409715978},{"$f":"'C-Diversion'!X67*'C-Values and Rates'!X132","v":57024.633066447837},{"$f":"'C-Diversion'!Y67*'C-Values and Rates'!Y132","v":58338.528545806686},{"$f":"'C-Diversion'!Z67*'C-Values and Rates'!Z132","v":59648.440918016706},{"$f":"'C-Diversion'!AA67*'C-Values and Rates'!AA132","v":60957.849284706965},{"$f":"'C-Diversion'!AB67*'C-Values and Rates'!AB132","v":62257.718940087223},{"$f":"'C-Diversion'!AC67*'C-Values and Rates'!AC132","v":63451.177050467333},{"$f":"'C-Diversion'!AD67*'C-Values and Rates'!AD132","v":64640.301313498494},{"$f":"'C-Diversion'!AE67*'C-Values and Rates'!AE132","v":65834.761162083392},{"$f":"'C-Diversion'!AF67*'C-Values and Rates'!AF132","v":67040.582202207079},{"$f":"'C-Diversion'!AG67*'C-Values and Rates'!AG132","v":68251.883296869826},{"$f":"'C-Diversion'!AH67*'C-Values and Rates'!AH132","v":69397.348190948906},{"$f":"'C-Diversion'!AI67*'C-Values and Rates'!AI132","v":70555.968150856861},{"$f":"'C-Diversion'!AJ67*'C-Values and Rates'!AJ132","v":71729.999428169904},{"$f":"'C-Diversion'!AK67*'C-Values and Rates'!AK132","v":72918.910524637467},{"$f":"'C-Diversion'!AL67*'C-Values and Rates'!AL132","v":74126.986996541367},{"$f":"'C-Diversion'!AM67*'C-Values and Rates'!AM132","v":75300.297171486411},{"$f":"'C-Diversion'!AN67*'C-Values and Rates'!AN132","v":76494.659606294954},{"$f":"'C-Diversion'!AO67*'C-Values and Rates'!AO132","v":77704.464173412867},{"$f":"'C-Diversion'!AP67*'C-Values and Rates'!AP132","v":78929.884765487004},{"$f":"'C-Diversion'!AQ67*'C-Values and Rates'!AQ132","v":80169.446602099677},{"$f":"'C-Diversion'!AR67*'C-Values and Rates'!AR132","v":81380.093864806928},{"$f":"'C-Diversion'!AS67*'C-Values and Rates'!AS132","v":82599.612924875852},{"$f":"'C-Diversion'!AT67*'C-Values and Rates'!AT132","v":83827.673690308715},{"$f":"'C-Diversion'!AU67*'C-Values and Rates'!AU132","v":85070.587300536936},{"$f":"'C-Diversion'!AV67*'C-Values and Rates'!AV132","v":86318.726797542404},{"$f":"'C-Diversion'!AW67*'C-Values and Rates'!AW132","v":87595.5538805424},{"$f":"'C-Diversion'!AX67*'C-Values and Rates'!AX132","v":88871.992256541344},{"$f":"'C-Diversion'!AY67*'C-Values and Rates'!AY132","v":90153.209284434619},{"$f":"'C-Diversion'!AZ67*'C-Values and Rates'!AZ132","v":91441.988111924045},{"$f":"'C-Diversion'!BA67*'C-Values and Rates'!BA132","v":92750.947612897842},{"$f":"'C-Diversion'!BB67*'C-Values and Rates'!BB132","v":94076.15374726271},{"$f":"'C-Diversion'!BC67*'C-Values and Rates'!BC132","v":95418.37734409899},{"$f":"'C-Diversion'!BD67*'C-Values and Rates'!BD132","v":96799.571879437848},{"$f":"'C-Diversion'!BE67*'C-Values and Rates'!BE132","v":98252.859988920463},{"$f":"'C-Diversion'!BF67*'C-Values and Rates'!BF132","v":99764.888080614197},{"$f":"'C-Diversion'!BG67*'C-Values and Rates'!BG132","v":101307.53062604216},{"$f":"'C-Diversion'!BH67*'C-Values and Rates'!BH132","v":102872.42606655588},{"$f":"'C-Diversion'!BI67*'C-Values and Rates'!BI132","v":104466.7150663481},{"$f":"'C-Diversion'!BJ67*'C-Values and Rates'!BJ132","v":105842.92309041602},{"$f":"'C-Diversion'!BK67*'C-Values and Rates'!BK132","v":107207.43113636857},{"$f":"'C-Diversion'!BL67*'C-Values and Rates'!BL132","v":108522.69705292616},{"$f":"'C-Diversion'!BM67*'C-Values and Rates'!BM132","v":109868.52871225208},{"$f":"'C-Diversion'!BN67*'C-Values and Rates'!BN132","v":111221.5662476892},{"$f":"'C-Diversion'!BO67*'C-Values and Rates'!BO132","v":112574.10043569501},{"$f":"'C-Diversion'!BP67*'C-Values and Rates'!BP132","v":113950.90190659869},{"$f":"'C-Diversion'!BQ67*'C-Values and Rates'!BQ132","v":115396.72669981813},{"$f":"'C-Diversion'!BR67*'C-Values and Rates'!BR132","v":116910.63997041764},{"$f":"'C-Diversion'!BS67*'C-Values and Rates'!BS132","v":118460.46613783692},{"$f":"'C-Diversion'!BT67*'C-Values and Rates'!BT132","v":120023.64866639975},{"$f":"'C-Diversion'!BU67*'C-Values and Rates'!BU132","v":121666.54007794912},{"$f":"'C-Diversion'!BV67*'C-Values and Rates'!BV132","v":123380.09583695604},{"$f":"'C-Diversion'!BW67*'C-Values and Rates'!BW132","v":125145.12532771094},{"$f":"'C-Diversion'!BX67*'C-Values and Rates'!BX132","v":0},{"$f":"'C-Diversion'!BY67*'C-Values and Rates'!BY132","v":0},{"$f":"'C-Diversion'!BZ67*'C-Values and Rates'!BZ132","v":0},{"$f":"'C-Diversion'!CA67*'C-Values and Rates'!CA132","v":0},{"$f":"'C-Diversion'!CB67*'C-Values and Rates'!CB132","v":0},{"$f":"'C-Diversion'!CC67*'C-Values and Rates'!CC132","v":0},{"$f":"'C-Diversion'!CD67*'C-Values and Rates'!CD132","v":0},{"$f":"'C-Diversion'!CE67*'C-Values and Rates'!CE132","v":0}]
[null,null,null,"LGV",null,null,null,{"$f":"SUM(K16:CE16)","v":1145600.8770012702},null,"£, 2023 prices",{"$f":"'C-Diversion'!K68*'C-Values and Rates'!K133","v":0},{"$f":"'C-Diversion'!L68*'C-Values and Rates'!L133","v":0},{"$f":"'C-Diversion'!M68*'C-Values and Rates'!M133","v":0},{"$f":"'C-Diversion'!N68*'C-Values and Rates'!N133","v":0},{"$f":"'C-Diversion'!O68*'C-Values and Rates'!O133","v":0},{"$f":"'C-Diversion'!P68*'C-Values and Rates'!P133","v":8563.9125034115405},{"$f":"'C-Diversion'!Q68*'C-Values and Rates'!Q133","v":8724.832437085337},{"$f":"'C-Diversion'!R68*'C-Values and Rates'!R133","v":8890.6904191803569},{"$f":"'C-Diversion'!S68*'C-Values and Rates'!S133","v":9139.2207199793775},{"$f":"'C-Diversion'!T68*'C-Values and Rates'!T133","v":9398.692129757068},{"$f":"'C-Diversion'!U68*'C-Values and Rates'!U133","v":9670.1892539251003},{"$f":"'C-Diversion'!V68*'C-Values and Rates'!V133","v":9952.8670190915582},{"$f":"'C-Diversion'!W68*'C-Values and Rates'!W133","v":10245.463178725733},{"$f":"'C-Diversion'!X68*'C-Values and Rates'!X133","v":10570.49938448578},{"$f":"'C-Diversion'!Y68*'C-Values and Rates'!Y133","v":10913.638952479207},{"$f":"'C-Diversion'!Z68*'C-Values and Rates'!Z133","v":11261.450017129906},{"$f":"'C-Diversion'!AA68*'C-Values and Rates'!AA133","v":11614.645485678981},{"$f":"'C-Diversion'!AB68*'C-Values and Rates'!AB133","v":11971.556860790162},{"$f":"'C-Diversion'!AC68*'C-Values and Rates'!AC133","v":12299.503187020333},{"$f":"'C-Diversion'!AD68*'C-Values and Rates'!AD133","v":12631.115810694253},{"$f":"'C-Diversion'!AE68*'C-Values and Rates'!AE133","v":12968.330427719835},{"$f":"'C-Diversion'!AF68*'C-Values and Rates'!AF133","v":13312.420856123115},{"$f":"'C-Diversion'!AG68*'C-Values and Rates'!AG133","v":13662.317054550145},{"$f":"'C-Diversion'!AH68*'C-Values and Rates'!AH133","v":13960.718484302179},{"$f":"'C-Diversion'!AI68*'C-Values and Rates'!AI133","v":14264.410347855939},{"$f":"'C-Diversion'!AJ68*'C-Values and Rates'!AJ133","v":14573.909547981311},{"$f":"'C-Diversion'!AK68*'C-Values and Rates'!AK133","v":14889.173401085924},{"$f":"'C-Diversion'!AL68*'C-Values and Rates'!AL133","v":15211.146131205935},{"$f":"'C-Diversion'!AM68*'C-Values and Rates'!AM133","v":15537.33300269734},{"$f":"'C-Diversion'!AN68*'C-Values and Rates'!AN133","v":15871.029289757189},{"$f":"'C-Diversion'!AO68*'C-Values and Rates'!AO133","v":16211.161777492734},{"$f":"'C-Diversion'!AP68*'C-Values and Rates'!AP133","v":16557.845716107742},{"$f":"'C-Diversion'!AQ68*'C-Values and Rates'!AQ133","v":16910.850165920736},{"$f":"'C-Diversion'!AR68*'C-Values and Rates'!AR133","v":17302.214792463488},{"$f":"'C-Diversion'!AS68*'C-Values and Rates'!AS133","v":17700.620120917749},{"$f":"'C-Diversion'!AT68*'C-Values and Rates'!AT133","v":18106.096907516148},{"$f":"'C-Diversion'!AU68*'C-Values and Rates'!AU133","v":18520.120759505178},{"$f":"'C-Diversion'!AV68*'C-Values and Rates'!AV133","v":18940.714845818657},{"$f":"'C-Diversion'!AW68*'C-Values and Rates'!AW133","v":19373.155296043482},{"$f":"'C-Diversion'!AX68*'C-Values and Rates'!AX133","v":19811.172042079324},{"$f":"'C-Diversion'!AY68*'C-Values and Rates'!AY133","v":20255.986632532826},{"$f":"'C-Diversion'!AZ68*'C-Values and Rates'!AZ133","v":20708.318072433376},{"$f":"'C-Diversion'!BA68*'C-Values and Rates'!BA133","v":21171.151469672226},{"$f":"'C-Diversion'!BB68*'C-Values and Rates'!BB133","v":21643.756232893917},{"$f":"'C-Diversion'!BC68*'C-Values and Rates'!BC133","v":22126.466491890918},{"$f":"'C-Diversion'!BD68*'C-Values and Rates'!BD133","v":22624.575058859951},{"$f":"'C-Diversion'!BE68*'C-Values and Rates'!BE133","v":23146.170720987458},{"$f":"'C-Diversion'!BF68*'C-Values and Rates'!BF133","v":23688.558167810159},{"$f":"'C-Diversion'!BG68*'C-Values and Rates'!BG133","v":24245.413446258917},{"$f":"'C-Diversion'!BH68*'C-Values and Rates'!BH133","v":24814.972808255898},{"$f":"'C-Diversion'!BI68*'C-Values and Rates'!BI133","v":25399.181238560392},{"$f":"'C-Diversion'!BJ68*'C-Values and Rates'!BJ133","v":25937.6461155297},{"$f":"'C-Diversion'!BK68*'C-Values and Rates'!BK133","v":26480.158590138308},{"$f":"'C-Diversion'!BL68*'C-Values and Rates'!BL133","v":27017.379760654156},{"$f":"'C-Diversion'!BM68*'C-Values and Rates'!BM133","v":27569.120677384544},{"$f":"'C-Diversion'!BN68*'C-Values and Rates'!BN133","v":28129.730351004153},{"$f":"'C-Diversion'!BO68*'C-Values and Rates'!BO133","v":28697.36387690845},{"$f":"'C-Diversion'!BP68*'C-Values and Rates'!BP133","v":29278.460889632574},{"$f":"'C-Diversion'!BQ68*'C-Values and Rates'!BQ133","v":29884.839162662785},{"$f":"'C-Diversion'!BR68*'C-Values and Rates'!BR133","v":30516.76037709547},{"$f":"'C-Diversion'!BS68*'C-Values and Rates'!BS133","v":31166.266771354065},{"$f":"'C-Diversion'!BT68*'C-Values and Rates'!BT133","v":31827.690652064819},{"$f":"'C-Diversion'!BU68*'C-Values and Rates'!BU133","v":32518.942790608897},{"$f":"'C-Diversion'!BV68*'C-Values and Rates'!BV133","v":33238.186488240135},{"$f":"'C-Diversion'!BW68*'C-Values and Rates'!BW133","v":33980.76183125715},{"$f":"'C-Diversion'!BX68*'C-Values and Rates'!BX133","v":0},{"$f":"'C-Diversion'!BY68*'C-Values and Rates'!BY133","v":0},{"$f":"'C-Diversion'!BZ68*'C-Values and Rates'!BZ133","v":0},{"$f":"'C-Diversion'!CA68*'C-Values and Rates'!CA133","v":0},{"$f":"'C-Diversion'!CB68*'C-Values and Rates'!CB133","v":0},{"$f":"'C-Diversion'!CC68*'C-Values and Rates'!CC133","v":0},{"$f":"'C-Diversion'!CD68*'C-Values and Rates'!CD133","v":0},{"$f":"'C-Diversion'!CE68*'C-Values and Rates'!CE133","v":0}]
[null,null,null,"HGV - Artics",null,null,null,44989.592670440776,null,"£, 2023 prices",{"$f":"'C-Diversion'!K69*'C-Values and Rates'!K134","v":0},{"$f":"'C-Diversion'!L69*'C-Values and Rates'!L134","v":0},{"$f":"'C-Diversion'!M69*'C-Values and Rates'!M134","v":0},{"$f":"'C-Diversion'!N69*'C-Values and Rates'!N134","v":0},{"$f":"'C-Diversion'!O69*'C-Values and Rates'!O134","v":0},{"$f":"'C-Diversion'!P69*'C-Values and Rates'!P134","v":455.9872130311511},{"$f":"'C-Diversion'!Q69*'C-Values and Rates'!Q134","v":461.48078798554991},{"$f":"'C-Diversion'!R69*'C-Values and Rates'!R134","v":467.14112949651553},{"$f":"'C-Diversion'!S69*'C-Values and Rates'!S134","v":474.62498045334831},{"$f":"'C-Diversion'!T69*'C-Values and Rates'!T134","v":482.43372256638435},{"$f":"'C-Diversion'!U69*'C-Values and Rates'!U134","v":490.60731068457807},{"$f":"'C-Diversion'!V69*'C-Values and Rates'!V134","v":499.08676250434576},{"$f":"'C-Diversion'!W69*'C-Values and Rates'!W134","v":507.79480579853077},{"$f":"'C-Diversion'!X69*'C-Values and Rates'!X134","v":517.45371592195136},{"$f":"'C-Diversion'!Y69*'C-Values and Rates'!Y134","v":527.67307497552065},{"$f":"'C-Diversion'!Z69*'C-Values and Rates'!Z134","v":537.78540688428427},{"$f":"'C-Diversion'!AA69*'C-Values and Rates'!AA134","v":547.82267646995786},{"$f":"'C-Diversion'!AB69*'C-Values and Rates'!AB134","v":557.70434378564255},{"$f":"'C-Diversion'!AC69*'C-Values and Rates'!AC134","v":567.4774582716974},{"$f":"'C-Diversion'!AD69*'C-Values and Rates'!AD134","v":577.17885672281454},{"$f":"'C-Diversion'!AE69*'C-Values and Rates'!AE134","v":586.8950075454992},{"$f":"'C-Diversion'!AF69*'C-Values and Rates'!AF134","v":596.67939051406313},{"$f":"'C-Diversion'!AG69*'C-Values and Rates'!AG134","v":606.47933744099601},{"$f":"'C-Diversion'!AH69*'C-Values and Rates'!AH134","v":616.5079580534566},{"$f":"'C-Diversion'!AI69*'C-Values and Rates'!AI134","v":626.64850616428316},{"$f":"'C-Diversion'!AJ69*'C-Values and Rates'!AJ134","v":636.9209325933333},{"$f":"'C-Diversion'!AK69*'C-Values and Rates'!AK134","v":647.32042113459818},{"$f":"'C-Diversion'!AL69*'C-Values and Rates'!AL134","v":657.88491208913899},{"$f":"'C-Diversion'!AM69*'C-Values and Rates'!AM134","v":668.1857913835338},{"$f":"'C-Diversion'!AN69*'C-Values and Rates'!AN134","v":678.66996613577476},{"$f":"'C-Diversion'!AO69*'C-Values and Rates'!AO134","v":689.28757763850388},{"$f":"'C-Diversion'!AP69*'C-Values and Rates'!AP134","v":700.04009996554521},{"$f":"'C-Diversion'!AQ69*'C-Values and Rates'!AQ134","v":710.91438632498352},{"$f":"'C-Diversion'!AR69*'C-Values and Rates'!AR134","v":721.46637452346454},{"$f":"'C-Diversion'!AS69*'C-Values and Rates'!AS134","v":732.09157929515993},{"$f":"'C-Diversion'!AT69*'C-Values and Rates'!AT134","v":742.78701778930451},{"$f":"'C-Diversion'!AU69*'C-Values and Rates'!AU134","v":753.60854234906162},{"$f":"'C-Diversion'!AV69*'C-Values and Rates'!AV134","v":764.47079472166274},{"$f":"'C-Diversion'!AW69*'C-Values and Rates'!AW134","v":775.58147438825142},{"$f":"'C-Diversion'!AX69*'C-Values and Rates'!AX134","v":786.6830101460173},{"$f":"'C-Diversion'!AY69*'C-Values and Rates'!AY134","v":797.82113593753093},{"$f":"'C-Diversion'!AZ69*'C-Values and Rates'!AZ134","v":809.02044518352659},{"$f":"'C-Diversion'!BA69*'C-Values and Rates'!BA134","v":820.39250435928329},{"$f":"'C-Diversion'!BB69*'C-Values and Rates'!BB134","v":831.90239125037908},{"$f":"'C-Diversion'!BC69*'C-Values and Rates'!BC134","v":843.55681303568372},{"$f":"'C-Diversion'!BD69*'C-Values and Rates'!BD134","v":855.54968992283773},{"$f":"'C-Diversion'!BE69*'C-Values and Rates'!BE134","v":868.17343667459488},{"$f":"'C-Diversion'!BF69*'C-Values and Rates'!BF134","v":881.30960558789798},{"$f":"'C-Diversion'!BG69*'C-Values and Rates'!BG134","v":894.70940915708752},{"$f":"'C-Diversion'!BH69*'C-Values and Rates'!BH134","v":908.29881628864428},{"$f":"'C-Diversion'!BI69*'C-Values and Rates'!BI134","v":922.14071117955962},{"$f":"'C-Diversion'!BJ69*'C-Values and Rates'!BJ134","v":934.05096568766271},{"$f":"'C-Diversion'!BK69*'C-Values and Rates'!BK134","v":945.85187538251171},{"$f":"'C-Diversion'!BL69*'C-Values and Rates'!BL134","v":957.21238502391111},{"$f":"'C-Diversion'!BM69*'C-Values and Rates'!BM134","v":968.83658581561565},{"$f":"'C-Diversion'!BN69*'C-Values and Rates'!BN134","v":980.51833599225677},{"$f":"'C-Diversion'!BO69*'C-Values and Rates'!BO134","v":992.18964289367273},{"$f":"'C-Diversion'!BP69*'C-Values and Rates'!BP134","v":1004.0687765296815},{"$f":"'C-Diversion'!BQ69*'C-Values and Rates'!BQ134","v":1016.549839726396},{"$f":"'C-Diversion'!BR69*'C-Values and Rates'!BR134","v":1029.6241376086996},{"$f":"'C-Diversion'!BS69*'C-Values and Rates'!BS134","v":1043.00791886052},{"$f":"'C-Diversion'!BT69*'C-Values and Rates'!BT134","v":1056.5023918865481},{"$f":"'C-Diversion'!BU69*'C-Values and Rates'!BU134","v":1070.6913858636276},{"$f":"'C-Diversion'!BV69*'C-Values and Rates'!BV134","v":1085.4947944637049},{"$f":"'C-Diversion'!BW69*'C-Values and Rates'!BW134","v":1100.7433503800255},{"$f":"'C-Diversion'!BX69*'C-Values and Rates'!BX134","v":0},{"$f":"'C-Diversion'!BY69*'C-Values and Rates'!BY134","v":0},{"$f":"'C-Diversion'!BZ69*'C-Values and Rates'!BZ134","v":0},{"$f":"'C-Diversion'!CA69*'C-Values and Rates'!CA134","v":0},{"$f":"'C-Diversion'!CB69*'C-Values and Rates'!CB134","v":0},{"$f":"'C-Diversion'!CC69*'C-Values and Rates'!CC134","v":0},{"$f":"'C-Diversion'!CD69*'C-Values and Rates'!CD134","v":0},{"$f":"'C-Diversion'!CE69*'C-Values and Rates'!CE134","v":0}]
[null,null,null,"HGV - Rigids",null,null,null,31628.615992232935,null,"£, 2023 prices",{"$f":"'C-Diversion'!K70*'C-Values and Rates'!K134","v":0},{"$f":"'C-Diversion'!L70*'C-Values and Rates'!L134","v":0},{"$f":"'C-Diversion'!M70*'C-Values and Rates'!M134","v":0},{"$f":"'C-Diversion'!N70*'C-Values and Rates'!N134","v":0},{"$f":"'C-Diversion'!O70*'C-Values and Rates'!O134","v":0},{"$f":"'C-Diversion'!P70*'C-Values and Rates'!P134","v":320.56846044322054},{"$f":"'C-Diversion'!Q70*'C-Values and Rates'!Q134","v":324.43055748264072},{"$f":"'C-Diversion'!R70*'C-Values and Rates'!R134","v":328.40989486732559},{"$f":"'C-Diversion'!S70*'C-Values and Rates'!S134","v":333.67119718207829},{"$f":"'C-Diversion'!T70*'C-Values and Rates'!T134","v":339.16090471254597},{"$f":"'C-Diversion'!U70*'C-Values and Rates'!U134","v":344.90710654555073},{"$f":"'C-Diversion'!V70*'C-Values and Rates'!V134","v":350.86833689934946},{"$f":"'C-Diversion'!W70*'C-Values and Rates'!W134","v":356.99027179689472},{"$f":"'C-Diversion'!X70*'C-Values and Rates'!X134","v":363.78068578074658},{"$f":"'C-Diversion'!Y70*'C-Values and Rates'!Y134","v":370.96510697699506},{"$f":"'C-Diversion'!Z70*'C-Values and Rates'!Z134","v":378.07428587246051},{"$f":"'C-Diversion'!AA70*'C-Values and Rates'!AA134","v":385.13069439923453},{"$f":"'C-Diversion'!AB70*'C-Values and Rates'!AB134","v":392.077711305572},{"$f":"'C-Diversion'!AC70*'C-Values and Rates'!AC134","v":398.94841332307772},{"$f":"'C-Diversion'!AD70*'C-Values and Rates'!AD134","v":405.76869748181014},{"$f":"'C-Diversion'!AE70*'C-Values and Rates'!AE134","v":412.59935286347616},{"$f":"'C-Diversion'!AF70*'C-Values and Rates'!AF134","v":419.47797685770894},{"$f":"'C-Diversion'!AG70*'C-Values and Rates'!AG134","v":426.36754263721588},{"$f":"'C-Diversion'!AH70*'C-Values and Rates'!AH134","v":433.41787075658362},{"$f":"'C-Diversion'!AI70*'C-Values and Rates'!AI134","v":440.54688622683989},{"$f":"'C-Diversion'!AJ70*'C-Values and Rates'!AJ134","v":447.76861488779656},{"$f":"'C-Diversion'!AK70*'C-Values and Rates'!AK134","v":455.07967084682059},{"$f":"'C-Diversion'!AL70*'C-Values and Rates'!AL134","v":462.50672692181666},{"$f":"'C-Diversion'!AM70*'C-Values and Rates'!AM134","v":469.74845853675549},{"$f":"'C-Diversion'!AN70*'C-Values and Rates'!AN134","v":477.11905065709635},{"$f":"'C-Diversion'!AO70*'C-Values and Rates'!AO134","v":484.58345157831599},{"$f":"'C-Diversion'!AP70*'C-Values and Rates'!AP134","v":492.14269760486081},{"$f":"'C-Diversion'!AQ70*'C-Values and Rates'!AQ134","v":499.78754626956595},{"$f":"'C-Diversion'!AR70*'C-Values and Rates'!AR134","v":507.20581264795027},{"$f":"'C-Diversion'!AS70*'C-Values and Rates'!AS134","v":514.67555179461283},{"$f":"'C-Diversion'!AT70*'C-Values and Rates'!AT134","v":522.19466670365046},{"$f":"'C-Diversion'!AU70*'C-Values and Rates'!AU134","v":529.80242272976704},{"$f":"'C-Diversion'!AV70*'C-Values and Rates'!AV134","v":537.43881125233872},{"$f":"'C-Diversion'!AW70*'C-Values and Rates'!AW134","v":545.24984931088352},{"$f":"'C-Diversion'!AX70*'C-Values and Rates'!AX134","v":553.05445901203166},{"$f":"'C-Diversion'!AY70*'C-Values and Rates'!AY134","v":560.88479226518029},{"$f":"'C-Diversion'!AZ70*'C-Values and Rates'!AZ134","v":568.75813875476956},{"$f":"'C-Diversion'!BA70*'C-Values and Rates'!BA134","v":576.75293202497562},{"$f":"'C-Diversion'!BB70*'C-Values and Rates'!BB134","v":584.84462103534736},{"$f":"'C-Diversion'!BC70*'C-Values and Rates'!BC134","v":593.03792107162656},{"$f":"'C-Diversion'!BD70*'C-Values and Rates'!BD134","v":601.46916205850357},{"$f":"'C-Diversion'!BE70*'C-Values and Rates'!BE134","v":610.34391763407166},{"$f":"'C-Diversion'!BF70*'C-Values and Rates'!BF134","v":619.57891660842211},{"$f":"'C-Diversion'!BG70*'C-Values and Rates'!BG134","v":628.99925620931185},{"$f":"'C-Diversion'!BH70*'C-Values and Rates'!BH134","v":638.5528910438079},{"$f":"'C-Diversion'!BI70*'C-Values and Rates'!BI134","v":648.28403000558103},{"$f":"'C-Diversion'!BJ70*'C-Values and Rates'!BJ134","v":656.65718574775451},{"$f":"'C-Diversion'!BK70*'C-Values and Rates'!BK134","v":664.95346982019578},{"$f":"'C-Diversion'!BL70*'C-Values and Rates'!BL134","v":672.94014352840122},{"$f":"'C-Diversion'!BM70*'C-Values and Rates'!BM134","v":681.11219757989284},{"$f":"'C-Diversion'!BN70*'C-Values and Rates'!BN134","v":689.32471004162346},{"$f":"'C-Diversion'!BO70*'C-Values and Rates'!BO134","v":697.52988066444902},{"$f":"'C-Diversion'!BP70*'C-Values and Rates'!BP134","v":705.88115778860458},{"$f":"'C-Diversion'!BQ70*'C-Values and Rates'!BQ134","v":714.65560386806521},{"$f":"'C-Diversion'!BR70*'C-Values and Rates'!BR134","v":723.84710622543469},{"$f":"'C-Diversion'!BS70*'C-Values and Rates'!BS134","v":733.25618180517426},{"$f":"'C-Diversion'!BT70*'C-Values and Rates'!BT134","v":742.74307599611029},{"$f":"'C-Diversion'!BU70*'C-Values and Rates'!BU134","v":752.71823280858825},{"$f":"'C-Diversion'!BV70*'C-Values and Rates'!BV134","v":763.12533583389734},{"$f":"'C-Diversion'!BW70*'C-Values and Rates'!BW134","v":773.84538664756622},{"$f":"'C-Diversion'!BX70*'C-Values and Rates'!BX134","v":0},{"$f":"'C-Diversion'!BY70*'C-Values and Rates'!BY134","v":0},{"$f":"'C-Diversion'!BZ70*'C-Values and Rates'!BZ134","v":0},{"$f":"'C-Diversion'!CA70*'C-Values and Rates'!CA134","v":0},{"$f":"'C-Diversion'!CB70*'C-Values and Rates'!CB134","v":0},{"$f":"'C-Diversion'!CC70*'C-Values and Rates'!CC134","v":0},{"$f":"'C-Diversion'!CD70*'C-Values and Rates'!CD134","v":0},{"$f":"'C-Diversion'!CE70*'C-Values and Rates'!CE134","v":0}]
[null,null,null,"PSV",null,null,null,1169616.3047500155,null,"£, 2023 prices",{"$f":"'C-Diversion'!K71*'C-Values and Rates'!K135","v":0},{"$f":"'C-Diversion'!L71*'C-Values and Rates'!L135","v":0},{"$f":"'C-Diversion'!M71*'C-Values and Rates'!M135","v":0},{"$f":"'C-Diversion'!N71*'C-Values and Rates'!N135","v":0},{"$f":"'C-Diversion'!O71*'C-Values and Rates'!O135","v":0},{"$f":"'C-Diversion'!P71*'C-Values and Rates'!P135","v":12340.49295344743},{"$f":"'C-Diversion'!Q71*'C-Values and Rates'!Q135","v":12473.772620403361},{"$f":"'C-Diversion'!R71*'C-Values and Rates'!R135","v":12611.207098620058},{"$f":"'C-Diversion'!S71*'C-Values and Rates'!S135","v":12805.834729844713},{"$f":"'C-Diversion'!T71*'C-Values and Rates'!T135","v":13008.993816792754},{"$f":"'C-Diversion'!U71*'C-Values and Rates'!U135","v":13221.746132314382},{"$f":"'C-Diversion'!V71*'C-Values and Rates'!V135","v":13442.486185856726},{"$f":"'C-Diversion'!W71*'C-Values and Rates'!W135","v":13669.119842713517},{"$f":"'C-Diversion'!X71*'C-Values and Rates'!X135","v":13903.314303016747},{"$f":"'C-Diversion'!Y71*'C-Values and Rates'!Y135","v":14151.624575257671},{"$f":"'C-Diversion'!Z71*'C-Values and Rates'!Z135","v":14396.101871815139},{"$f":"'C-Diversion'!AA71*'C-Values and Rates'!AA135","v":14637.618941582705},{"$f":"'C-Diversion'!AB71*'C-Values and Rates'!AB135","v":14874.041621691273},{"$f":"'C-Diversion'!AC71*'C-Values and Rates'!AC135","v":15107.710515068096},{"$f":"'C-Diversion'!AD71*'C-Values and Rates'!AD135","v":15338.593132182263},{"$f":"'C-Diversion'!AE71*'C-Values and Rates'!AE135","v":15568.995873541053},{"$f":"'C-Diversion'!AF71*'C-Values and Rates'!AF135","v":15800.335186848057},{"$f":"'C-Diversion'!AG71*'C-Values and Rates'!AG135","v":16031.211588784057},{"$f":"'C-Diversion'!AH71*'C-Values and Rates'!AH135","v":16264.567753785675},{"$f":"'C-Diversion'!AI71*'C-Values and Rates'!AI135","v":16499.901429096451},{"$f":"'C-Diversion'!AJ71*'C-Values and Rates'!AJ135","v":16737.722579869438},{"$f":"'C-Diversion'!AK71*'C-Values and Rates'!AK135","v":16977.887558744653},{"$f":"'C-Diversion'!AL71*'C-Values and Rates'!AL135","v":17221.373005312245},{"$f":"'C-Diversion'!AM71*'C-Values and Rates'!AM135","v":17469.380956614703},{"$f":"'C-Diversion'!AN71*'C-Values and Rates'!AN135","v":17721.53520802069},{"$f":"'C-Diversion'!AO71*'C-Values and Rates'!AO135","v":17976.518893332614},{"$f":"'C-Diversion'!AP71*'C-Values and Rates'!AP135","v":18234.35871770238},{"$f":"'C-Diversion'!AQ71*'C-Values and Rates'!AQ135","v":18494.700858979992},{"$f":"'C-Diversion'!AR71*'C-Values and Rates'!AR135","v":18756.280206181782},{"$f":"'C-Diversion'!AS71*'C-Values and Rates'!AS135","v":19019.392374798717},{"$f":"'C-Diversion'!AT71*'C-Values and Rates'!AT135","v":19283.956377488776},{"$f":"'C-Diversion'!AU71*'C-Values and Rates'!AU135","v":19551.417849927977},{"$f":"'C-Diversion'!AV71*'C-Values and Rates'!AV135","v":19819.557433202048},{"$f":"'C-Diversion'!AW71*'C-Values and Rates'!AW135","v":20093.754413376344},{"$f":"'C-Diversion'!AX71*'C-Values and Rates'!AX135","v":20367.327326371804},{"$f":"'C-Diversion'!AY71*'C-Values and Rates'!AY135","v":20641.460307101916},{"$f":"'C-Diversion'!AZ71*'C-Values and Rates'!AZ135","v":20916.787650977694},{"$f":"'C-Diversion'!BA71*'C-Values and Rates'!BA135","v":21196.188994829103},{"$f":"'C-Diversion'!BB71*'C-Values and Rates'!BB135","v":21478.753865992228},{"$f":"'C-Diversion'!BC71*'C-Values and Rates'!BC135","v":21764.648371488107},{"$f":"'C-Diversion'!BD71*'C-Values and Rates'!BD135","v":22058.865114365963},{"$f":"'C-Diversion'!BE71*'C-Values and Rates'!BE135","v":22368.920686727353},{"$f":"'C-Diversion'!BF71*'C-Values and Rates'!BF135","v":22691.732156102888},{"$f":"'C-Diversion'!BG71*'C-Values and Rates'!BG135","v":23020.871399859625},{"$f":"'C-Diversion'!BH71*'C-Values and Rates'!BH135","v":23354.421361462351},{"$f":"'C-Diversion'!BI71*'C-Values and Rates'!BI135","v":23693.988226787813},{"$f":"'C-Diversion'!BJ71*'C-Values and Rates'!BJ135","v":23983.477563998589},{"$f":"'C-Diversion'!BK71*'C-Values and Rates'!BK135","v":24269.75095955329},{"$f":"'C-Diversion'!BL71*'C-Values and Rates'!BL135","v":24544.325901239121},{"$f":"'C-Diversion'!BM71*'C-Values and Rates'!BM135","v":24825.267645713047},{"$f":"'C-Diversion'!BN71*'C-Values and Rates'!BN135","v":25107.284137354032},{"$f":"'C-Diversion'!BO71*'C-Values and Rates'!BO135","v":25388.632916547504},{"$f":"'C-Diversion'!BP71*'C-Values and Rates'!BP135","v":25674.896304406408},{"$f":"'C-Diversion'!BQ71*'C-Values and Rates'!BQ135","v":25976.134332494275},{"$f":"'C-Diversion'!BR71*'C-Values and Rates'!BR135","v":26292.093596939281},{"$f":"'C-Diversion'!BS71*'C-Values and Rates'!BS135","v":26615.502452121313},{"$f":"'C-Diversion'!BT71*'C-Values and Rates'!BT135","v":26941.275764921902},{"$f":"'C-Diversion'!BU71*'C-Values and Rates'!BU135","v":27284.285818738761},{"$f":"'C-Diversion'!BV71*'C-Values and Rates'!BV135","v":27642.456573260301},{"$f":"'C-Diversion'!BW71*'C-Values and Rates'!BW135","v":28011.44871444656},{"$f":"'C-Diversion'!BX71*'C-Values and Rates'!BX135","v":0},{"$f":"'C-Diversion'!BY71*'C-Values and Rates'!BY135","v":0},{"$f":"'C-Diversion'!BZ71*'C-Values and Rates'!BZ135","v":0},{"$f":"'C-Diversion'!CA71*'C-Values and Rates'!CA135","v":0},{"$f":"'C-Diversion'!CB71*'C-Values and Rates'!CB135","v":0},{"$f":"'C-Diversion'!CC71*'C-Values and Rates'!CC135","v":0},{"$f":"'C-Diversion'!CD71*'C-Values and Rates'!CD135","v":0},{"$f":"'C-Diversion'!CE71*'C-Values and Rates'!CE135","v":0}]
[]
[null,null,"Vehicle Operating Costs"]
[]
[null,null,"Fuel costs"]
[]
[null,null,null,"Fuel cost - Scheme"]
[null,null,null,"Cars",null,null,null,{"$f":"SUM(K26:CE26)","v":9557679.8785500415},null,"pence, 2023 prices",{"$f":"'C-Diversion'!K74*'C-Values and Rates'!K221","v":0},{"$f":"'C-Diversion'!L74*'C-Values and Rates'!L221","v":0},{"$f":"'C-Diversion'!M74*'C-Values and Rates'!M221","v":0},{"$f":"'C-Diversion'!N74*'C-Values and Rates'!N221","v":0},{"$f":"'C-Diversion'!O74*'C-Values and Rates'!O221","v":0},{"$f":"'C-Diversion'!P74*'C-Values and Rates'!P221","v":276735.54576509638},{"$f":"'C-Diversion'!Q74*'C-Values and Rates'!Q221","v":267546.18140181043},{"$f":"'C-Diversion'!R74*'C-Values and Rates'!R221","v":253635.12767791096},{"$f":"'C-Diversion'!S74*'C-Values and Rates'!S221","v":241128.39762594123},{"$f":"'C-Diversion'!T74*'C-Values and Rates'!T221","v":229899.9718810773},{"$f":"'C-Diversion'!U74*'C-Values and Rates'!U221","v":219167.68815660014},{"$f":"'C-Diversion'!V74*'C-Values and Rates'!V221","v":209168.22379324236},{"$f":"'C-Diversion'!W74*'C-Values and Rates'!W221","v":201827.02003372845},{"$f":"'C-Diversion'!X74*'C-Values and Rates'!X221","v":192547.16559985594},{"$f":"'C-Diversion'!Y74*'C-Values and Rates'!Y221","v":184060.89733236816},{"$f":"'C-Diversion'!Z74*'C-Values and Rates'!Z221","v":177582.13164217872},{"$f":"'C-Diversion'!AA74*'C-Values and Rates'!AA221","v":172059.37025996589},{"$f":"'C-Diversion'!AB74*'C-Values and Rates'!AB221","v":165809.94452007764},{"$f":"'C-Diversion'!AC74*'C-Values and Rates'!AC221","v":161076.06698177982},{"$f":"'C-Diversion'!AD74*'C-Values and Rates'!AD221","v":156138.93159050515},{"$f":"'C-Diversion'!AE74*'C-Values and Rates'!AE221","v":152110.69948259738},{"$f":"'C-Diversion'!AF74*'C-Values and Rates'!AF221","v":149051.46741527764},{"$f":"'C-Diversion'!AG74*'C-Values and Rates'!AG221","v":146114.56045825459},{"$f":"'C-Diversion'!AH74*'C-Values and Rates'!AH221","v":142992.35708565245},{"$f":"'C-Diversion'!AI74*'C-Values and Rates'!AI221","v":141566.86266857985},{"$f":"'C-Diversion'!AJ74*'C-Values and Rates'!AJ221","v":140376.24958449558},{"$f":"'C-Diversion'!AK74*'C-Values and Rates'!AK221","v":139448.0221000356},{"$f":"'C-Diversion'!AL74*'C-Values and Rates'!AL221","v":139752.29320832231},{"$f":"'C-Diversion'!AM74*'C-Values and Rates'!AM221","v":139978.69684740235},{"$f":"'C-Diversion'!AN74*'C-Values and Rates'!AN221","v":140205.48765710782},{"$f":"'C-Diversion'!AO74*'C-Values and Rates'!AO221","v":140432.66634034424},{"$f":"'C-Diversion'!AP74*'C-Values and Rates'!AP221","v":140660.23360137097},{"$f":"'C-Diversion'!AQ74*'C-Values and Rates'!AQ221","v":140888.19014580341},{"$f":"'C-Diversion'!AR74*'C-Values and Rates'!AR221","v":141051.33765283943},{"$f":"'C-Diversion'!AS74*'C-Values and Rates'!AS221","v":141214.69466730487},{"$f":"'C-Diversion'!AT74*'C-Values and Rates'!AT221","v":141378.26148915177},{"$f":"'C-Diversion'!AU74*'C-Values and Rates'!AU221","v":141542.03841880345},{"$f":"'C-Diversion'!AV74*'C-Values and Rates'!AV221","v":141706.02575715541},{"$f":"'C-Diversion'!AW74*'C-Values and Rates'!AW221","v":141870.22380557607},{"$f":"'C-Diversion'!AX74*'C-Values and Rates'!AX221","v":142034.63286590722},{"$f":"'C-Diversion'!AY74*'C-Values and Rates'!AY221","v":142199.25324046542},{"$f":"'C-Diversion'!AZ74*'C-Values and Rates'!AZ221","v":142364.08523204262},{"$f":"'C-Diversion'!BA74*'C-Values and Rates'!BA221","v":142529.12914390629},{"$f":"'C-Diversion'!BB74*'C-Values and Rates'!BB221","v":142694.38527980144},{"$f":"'C-Diversion'!BC74*'C-Values and Rates'!BC221","v":142859.85394395023},{"$f":"'C-Diversion'!BD74*'C-Values and Rates'!BD221","v":143025.53544105359},{"$f":"'C-Diversion'!BE74*'C-Values and Rates'!BE221","v":143191.43007629164},{"$f":"'C-Diversion'!BF74*'C-Values and Rates'!BF221","v":143357.53815532455},{"$f":"'C-Diversion'!BG74*'C-Values and Rates'!BG221","v":143523.85998429341},{"$f":"'C-Diversion'!BH74*'C-Values and Rates'!BH221","v":143690.39586982105},{"$f":"'C-Diversion'!BI74*'C-Values and Rates'!BI221","v":143857.14611901267},{"$f":"'C-Diversion'!BJ74*'C-Values and Rates'!BJ221","v":144024.11103945697},{"$f":"'C-Diversion'!BK74*'C-Values and Rates'!BK221","v":144191.29093922672},{"$f":"'C-Diversion'!BL74*'C-Values and Rates'!BL221","v":144358.68612687942},{"$f":"'C-Diversion'!BM74*'C-Values and Rates'!BM221","v":144526.29691145869},{"$f":"'C-Diversion'!BN74*'C-Values and Rates'!BN221","v":144694.12360249451},{"$f":"'C-Diversion'!BO74*'C-Values and Rates'!BO221","v":144862.16651000426},{"$f":"'C-Diversion'!BP74*'C-Values and Rates'!BP221","v":145030.42594449359},{"$f":"'C-Diversion'!BQ74*'C-Values and Rates'!BQ221","v":145198.90221695715},{"$f":"'C-Diversion'!BR74*'C-Values and Rates'!BR221","v":145367.59563887955},{"$f":"'C-Diversion'!BS74*'C-Values and Rates'!BS221","v":145536.5065222359},{"$f":"'C-Diversion'!BT74*'C-Values and Rates'!BT221","v":145705.63517949297},{"$f":"'C-Diversion'!BU74*'C-Values and Rates'!BU221","v":145874.98192360965},{"$f":"'C-Diversion'!BV74*'C-Values and Rates'!BV221","v":146044.54706803834},{"$f":"'C-Diversion'!BW74*'C-Values and Rates'!BW221","v":146214.33092672512},{"$f":"'C-Diversion'!BX74*'C-Values and Rates'!BX221","v":0},{"$f":"'C-Diversion'!BY74*'C-Values and Rates'!BY221","v":0},{"$f":"'C-Diversion'!BZ74*'C-Values and Rates'!BZ221","v":0},{"$f":"'C-Diversion'!CA74*'C-Values and Rates'!CA221","v":0},{"$f":"'C-Diversion'!CB74*'C-Values and Rates'!CB221","v":0},{"$f":"'C-Diversion'!CC74*'C-Values and Rates'!CC221","v":0},{"$f":"'C-Diversion'!CD74*'C-Values and Rates'!CD221","v":0},{"$f":"'C-Diversion'!CE74*'C-Values and Rates'!CE221","v":0}]
[null,null,null,"LGV",null,null,null,{"$f":"SUM(K27:CE27)","v":2286997.2553756032},null,"pence, 2023 prices",{"$f":"'C-Diversion'!K75*'C-Values and Rates'!K222","v":0},{"$f":"'C-Diversion'!L75*'C-Values and Rates'!L222","v":0},{"$f":"'C-Diversion'!M75*'C-Values and Rates'!M222","v":0},{"$f":"'C-Diversion'!N75*'C-Values and Rates'!N222","v":0},{"$f":"'C-Diversion'!O75*'C-Values and Rates'!O222","v":0},{"$f":"'C-Diversion'!P75*'C-Values and Rates'!P222","v":39671.979881202147},{"$f":"'C-Diversion'!Q75*'C-Values and Rates'!Q222","v":38643.912963710078},{"$f":"'C-Diversion'!R75*'C-Values and Rates'!R222","v":37129.948660565598},{"$f":"'C-Diversion'!S75*'C-Values and Rates'!S222","v":36146.536647739762},{"$f":"'C-Diversion'!T75*'C-Values and Rates'!T222","v":35431.955299157249},{"$f":"'C-Diversion'!U75*'C-Values and Rates'!U222","v":34744.630708664554},{"$f":"'C-Diversion'!V75*'C-Values and Rates'!V222","v":34217.123797375018},{"$f":"'C-Diversion'!W75*'C-Values and Rates'!W222","v":34120.969548714253},{"$f":"'C-Diversion'!X75*'C-Values and Rates'!X222","v":33749.77240780415},{"$f":"'C-Diversion'!Y75*'C-Values and Rates'!Y222","v":33426.276181346198},{"$f":"'C-Diversion'!Z75*'C-Values and Rates'!Z222","v":33313.343434759008},{"$f":"'C-Diversion'!AA75*'C-Values and Rates'!AA222","v":33474.792464608756},{"$f":"'C-Diversion'!AB75*'C-Values and Rates'!AB222","v":33407.898798250077},{"$f":"'C-Diversion'!AC75*'C-Values and Rates'!AC222","v":33563.480877981048},{"$f":"'C-Diversion'!AD75*'C-Values and Rates'!AD222","v":33518.410128229225},{"$f":"'C-Diversion'!AE75*'C-Values and Rates'!AE222","v":33573.217506905356},{"$f":"'C-Diversion'!AF75*'C-Values and Rates'!AF222","v":33495.270719795313},{"$f":"'C-Diversion'!AG75*'C-Values and Rates'!AG222","v":33817.328652662094},{"$f":"'C-Diversion'!AH75*'C-Values and Rates'!AH222","v":33613.503904668592},{"$f":"'C-Diversion'!AI75*'C-Values and Rates'!AI222","v":33684.369698121671},{"$f":"'C-Diversion'!AJ75*'C-Values and Rates'!AJ222","v":33749.689958387273},{"$f":"'C-Diversion'!AK75*'C-Values and Rates'!AK222","v":33815.493132757314},{"$f":"'C-Diversion'!AL75*'C-Values and Rates'!AL222","v":34100.224628548895},{"$f":"'C-Diversion'!AM75*'C-Values and Rates'!AM222","v":34345.273591662321},{"$f":"'C-Diversion'!AN75*'C-Values and Rates'!AN222","v":34592.088982395246},{"$f":"'C-Diversion'!AO75*'C-Values and Rates'!AO222","v":34840.683575458701},{"$f":"'C-Diversion'!AP75*'C-Values and Rates'!AP222","v":35091.070238263172},{"$f":"'C-Diversion'!AQ75*'C-Values and Rates'!AQ222","v":35343.261931593523},{"$f":"'C-Diversion'!AR75*'C-Values and Rates'!AR222","v":35665.537793899282},{"$f":"'C-Diversion'!AS75*'C-Values and Rates'!AS222","v":35990.758018027707},{"$f":"'C-Diversion'!AT75*'C-Values and Rates'!AT222","v":36318.949558405868},{"$f":"'C-Diversion'!AU75*'C-Values and Rates'!AU222","v":36650.139616733126},{"$f":"'C-Diversion'!AV75*'C-Values and Rates'!AV222","v":36984.355644254472},{"$f":"'C-Diversion'!AW75*'C-Values and Rates'!AW222","v":37321.625344054723},{"$f":"'C-Diversion'!AX75*'C-Values and Rates'!AX222","v":37661.976673373916},{"$f":"'C-Diversion'!AY75*'C-Values and Rates'!AY222","v":38005.43784594407},{"$f":"'C-Diversion'!AZ75*'C-Values and Rates'!AZ222","v":38352.037334347347},{"$f":"'C-Diversion'!BA75*'C-Values and Rates'!BA222","v":38701.803872396056},{"$f":"'C-Diversion'!BB75*'C-Values and Rates'!BB222","v":39054.766457534592},{"$f":"'C-Diversion'!BC75*'C-Values and Rates'!BC222","v":39410.954353263456},{"$f":"'C-Diversion'!BD75*'C-Values and Rates'!BD222","v":39770.397091585604},{"$f":"'C-Diversion'!BE75*'C-Values and Rates'!BE222","v":40133.124475475364},{"$f":"'C-Diversion'!BF75*'C-Values and Rates'!BF222","v":40499.166581370162},{"$f":"'C-Diversion'!BG75*'C-Values and Rates'!BG222","v":40868.553761685151},{"$f":"'C-Diversion'!BH75*'C-Values and Rates'!BH222","v":41241.316647350948},{"$f":"'C-Diversion'!BI75*'C-Values and Rates'!BI222","v":41617.486150374934},{"$f":"'C-Diversion'!BJ75*'C-Values and Rates'!BJ222","v":41997.093466425933},{"$f":"'C-Diversion'!BK75*'C-Values and Rates'!BK222","v":42380.170077442985},{"$f":"'C-Diversion'!BL75*'C-Values and Rates'!BL222","v":42766.747754267897},{"$f":"'C-Diversion'!BM75*'C-Values and Rates'!BM222","v":43156.858559302222},{"$f":"'C-Diversion'!BN75*'C-Values and Rates'!BN222","v":43550.53484918872},{"$f":"'C-Diversion'!BO75*'C-Values and Rates'!BO222","v":43947.809277517459},{"$f":"'C-Diversion'!BP75*'C-Values and Rates'!BP222","v":44348.7147975568},{"$f":"'C-Diversion'!BQ75*'C-Values and Rates'!BQ222","v":44753.284665009873},{"$f":"'C-Diversion'!BR75*'C-Values and Rates'!BR222","v":45161.552440796026},{"$f":"'C-Diversion'!BS75*'C-Values and Rates'!BS222","v":45573.551993858258},{"$f":"'C-Diversion'!BT75*'C-Values and Rates'!BT222","v":45989.317503996383},{"$f":"'C-Diversion'!BU75*'C-Values and Rates'!BU222","v":46408.883464726234},{"$f":"'C-Diversion'!BV75*'C-Values and Rates'!BV222","v":46832.284686165534},{"$f":"'C-Diversion'!BW75*'C-Values and Rates'!BW222","v":47259.556297945855},{"$f":"'C-Diversion'!BX75*'C-Values and Rates'!BX222","v":0},{"$f":"'C-Diversion'!BY75*'C-Values and Rates'!BY222","v":0},{"$f":"'C-Diversion'!BZ75*'C-Values and Rates'!BZ222","v":0},{"$f":"'C-Diversion'!CA75*'C-Values and Rates'!CA222","v":0},{"$f":"'C-Diversion'!CB75*'C-Values and Rates'!CB222","v":0},{"$f":"'C-Diversion'!CC75*'C-Values and Rates'!CC222","v":0},{"$f":"'C-Diversion'!CD75*'C-Values and Rates'!CD222","v":0},{"$f":"'C-Diversion'!CE75*'C-Values and Rates'!CE222","v":0}]
[null,null,null,"HGV - Artics",null,null,null,281859.0422404788,null,"pence, 2023 prices",{"$f":"'C-Diversion'!K76*'C-Values and Rates'!K223","v":0},{"$f":"'C-Diversion'!L76*'C-Values and Rates'!L223","v":0},{"$f":"'C-Diversion'!M76*'C-Values and Rates'!M223","v":0},{"$f":"'C-Diversion'!N76*'C-Values and Rates'!N223","v":0},{"$f":"'C-Diversion'!O76*'C-Values and Rates'!O223","v":0},{"$f":"'C-Diversion'!P76*'C-Values and Rates'!P223","v":5305.738698997965},{"$f":"'C-Diversion'!Q76*'C-Values and Rates'!Q223","v":5260.1223377142933},{"$f":"'C-Diversion'!R76*'C-Values and Rates'!R223","v":5132.4188766201096},{"$f":"'C-Diversion'!S76*'C-Values and Rates'!S223","v":5065.4828887269568},{"$f":"'C-Diversion'!T76*'C-Values and Rates'!T223","v":4997.516573963775},{"$f":"'C-Diversion'!U76*'C-Values and Rates'!U223","v":4933.2495100206061},{"$f":"'C-Diversion'!V76*'C-Values and Rates'!V223","v":4873.1054318814658},{"$f":"'C-Diversion'!W76*'C-Values and Rates'!W223","v":4817.6805206354265},{"$f":"'C-Diversion'!X76*'C-Values and Rates'!X223","v":4773.2418957883247},{"$f":"'C-Diversion'!Y76*'C-Values and Rates'!Y223","v":4733.6652815109865},{"$f":"'C-Diversion'!Z76*'C-Values and Rates'!Z223","v":4699.2812445630871},{"$f":"'C-Diversion'!AA76*'C-Values and Rates'!AA223","v":4670.1980651336862},{"$f":"'C-Diversion'!AB76*'C-Values and Rates'!AB223","v":4646.0479492338391},{"$f":"'C-Diversion'!AC76*'C-Values and Rates'!AC223","v":4625.6877756806962},{"$f":"'C-Diversion'!AD76*'C-Values and Rates'!AD223","v":4608.9920001662167},{"$f":"'C-Diversion'!AE76*'C-Values and Rates'!AE223","v":4595.2080923571275},{"$f":"'C-Diversion'!AF76*'C-Values and Rates'!AF223","v":4583.6732110224139},{"$f":"'C-Diversion'!AG76*'C-Values and Rates'!AG223","v":4573.8600264074357},{"$f":"'C-Diversion'!AH76*'C-Values and Rates'!AH223","v":4564.1357238759492},{"$f":"'C-Diversion'!AI76*'C-Values and Rates'!AI223","v":4557.9059949542661},{"$f":"'C-Diversion'!AJ76*'C-Values and Rates'!AJ223","v":4552.3657676528883},{"$f":"'C-Diversion'!AK76*'C-Values and Rates'!AK223","v":4547.3891024774848},{"$f":"'C-Diversion'!AL76*'C-Values and Rates'!AL223","v":4542.8111542134848},{"$f":"'C-Diversion'!AM76*'C-Values and Rates'!AM223","v":4550.4429141412238},{"$f":"'C-Diversion'!AN76*'C-Values and Rates'!AN223","v":4558.0884099102705},{"$f":"'C-Diversion'!AO76*'C-Values and Rates'!AO223","v":4565.7476676833949},{"$f":"'C-Diversion'!AP76*'C-Values and Rates'!AP223","v":4573.4207136753175},{"$f":"'C-Diversion'!AQ76*'C-Values and Rates'!AQ223","v":4581.1075741528157},{"$f":"'C-Diversion'!AR76*'C-Values and Rates'!AR223","v":4586.2923600103577},{"$f":"'C-Diversion'!AS76*'C-Values and Rates'!AS223","v":4591.4839354039314},{"$f":"'C-Diversion'!AT76*'C-Values and Rates'!AT223","v":4596.6823101154496},{"$f":"'C-Diversion'!AU76*'C-Values and Rates'!AU223","v":4601.8874939416573},{"$f":"'C-Diversion'!AV76*'C-Values and Rates'!AV223","v":4607.0994966941698},{"$f":"'C-Diversion'!AW76*'C-Values and Rates'!AW223","v":4612.3183281994816},{"$f":"'C-Diversion'!AX76*'C-Values and Rates'!AX223","v":4617.5439982989947},{"$f":"'C-Diversion'!AY76*'C-Values and Rates'!AY223","v":4622.7765168490378},{"$f":"'C-Diversion'!AZ76*'C-Values and Rates'!AZ223","v":4628.0158937208971},{"$f":"'C-Diversion'!BA76*'C-Values and Rates'!BA223","v":4633.2621388008347},{"$f":"'C-Diversion'!BB76*'C-Values and Rates'!BB223","v":4638.515261990111},{"$f":"'C-Diversion'!BC76*'C-Values and Rates'!BC223","v":4643.7752732050085},{"$f":"'C-Diversion'!BD76*'C-Values and Rates'!BD223","v":4649.042182376862},{"$f":"'C-Diversion'!BE76*'C-Values and Rates'!BE223","v":4654.3159994520693},{"$f":"'C-Diversion'!BF76*'C-Values and Rates'!BF223","v":4659.5967343921284},{"$f":"'C-Diversion'!BG76*'C-Values and Rates'!BG223","v":4664.8843971736433},{"$f":"'C-Diversion'!BH76*'C-Values and Rates'!BH223","v":4670.1789977883718},{"$f":"'C-Diversion'!BI76*'C-Values and Rates'!BI223","v":4675.4805462432287},{"$f":"'C-Diversion'!BJ76*'C-Values and Rates'!BJ223","v":4680.7890525603125},{"$f":"'C-Diversion'!BK76*'C-Values and Rates'!BK223","v":4686.1045267769432},{"$f":"'C-Diversion'!BL76*'C-Values and Rates'!BL223","v":4691.4269789456648},{"$f":"'C-Diversion'!BM76*'C-Values and Rates'!BM223","v":4696.7564191342863},{"$f":"'C-Diversion'!BN76*'C-Values and Rates'!BN223","v":4702.0928574258969},{"$f":"'C-Diversion'!BO76*'C-Values and Rates'!BO223","v":4707.4363039188938},{"$f":"'C-Diversion'!BP76*'C-Values and Rates'!BP223","v":4712.7867687270009},{"$f":"'C-Diversion'!BQ76*'C-Values and Rates'!BQ223","v":4718.1442619792979},{"$f":"'C-Diversion'!BR76*'C-Values and Rates'!BR223","v":4723.5087938202378},{"$f":"'C-Diversion'!BS76*'C-Values and Rates'!BS223","v":4728.8803744096822},{"$f":"'C-Diversion'!BT76*'C-Values and Rates'!BT223","v":4734.2590139229151},{"$f":"'C-Diversion'!BU76*'C-Values and Rates'!BU223","v":4739.6447225506654},{"$f":"'C-Diversion'!BV76*'C-Values and Rates'!BV223","v":4745.0375104991417},{"$f":"'C-Diversion'!BW76*'C-Values and Rates'!BW223","v":4750.437387990044},{"$f":"'C-Diversion'!BX76*'C-Values and Rates'!BX223","v":0},{"$f":"'C-Diversion'!BY76*'C-Values and Rates'!BY223","v":0},{"$f":"'C-Diversion'!BZ76*'C-Values and Rates'!BZ223","v":0},{"$f":"'C-Diversion'!CA76*'C-Values and Rates'!CA223","v":0},{"$f":"'C-Diversion'!CB76*'C-Values and Rates'!CB223","v":0},{"$f":"'C-Diversion'!CC76*'C-Values and Rates'!CC223","v":0},{"$f":"'C-Diversion'!CD76*'C-Values and Rates'!CD223","v":0},{"$f":"'C-Diversion'!CE76*'C-Values and Rates'!CE223","v":0}]
[null,null,null,"HGV - Rigids",null,null,null,352282.57747108612,null,"pence, 2023 prices",{"$f":"'C-Diversion'!K77*'C-Values and Rates'!K224","v":0},{"$f":"'C-Diversion'!L77*'C-Values and Rates'!L224","v":0},{"$f":"'C-Diversion'!M77*'C-Values and Rates'!M224","v":0},{"$f":"'C-Diversion'!N77*'C-Values and Rates'!N224","v":0},{"$f":"'C-Diversion'!O77*'C-Values and Rates'!O224","v":0},{"$f":"'C-Diversion'!P77*'C-Values and Rates'!P224","v":7247.1132493844789},{"$f":"'C-Diversion'!Q77*'C-Values and Rates'!Q224","v":7131.6385887989263},{"$f":"'C-Diversion'!R77*'C-Values and Rates'!R224","v":6831.7652187950989},{"$f":"'C-Diversion'!S77*'C-Values and Rates'!S224","v":6616.9792120661323},{"$f":"'C-Diversion'!T77*'C-Values and Rates'!T224","v":6420.7687099786617},{"$f":"'C-Diversion'!U77*'C-Values and Rates'!U224","v":6248.7878870343866},{"$f":"'C-Diversion'!V77*'C-Values and Rates'!V224","v":6096.0426276693343},{"$f":"'C-Diversion'!W77*'C-Values and Rates'!W224","v":5965.9514818715988},{"$f":"'C-Diversion'!X77*'C-Values and Rates'!X224","v":5867.2552065858781},{"$f":"'C-Diversion'!Y77*'C-Values and Rates'!Y224","v":5790.963493586858},{"$f":"'C-Diversion'!Z77*'C-Values and Rates'!Z224","v":5734.812322856551},{"$f":"'C-Diversion'!AA77*'C-Values and Rates'!AA224","v":5696.105229970296},{"$f":"'C-Diversion'!AB77*'C-Values and Rates'!AB224","v":5670.1191274716939},{"$f":"'C-Diversion'!AC77*'C-Values and Rates'!AC224","v":5653.1797225256869},{"$f":"'C-Diversion'!AD77*'C-Values and Rates'!AD224","v":5642.9474672945407},{"$f":"'C-Diversion'!AE77*'C-Values and Rates'!AE224","v":5637.3548613899666},{"$f":"'C-Diversion'!AF77*'C-Values and Rates'!AF224","v":5635.1535971748308},{"$f":"'C-Diversion'!AG77*'C-Values and Rates'!AG224","v":5635.2657503798582},{"$f":"'C-Diversion'!AH77*'C-Values and Rates'!AH224","v":5635.2407388556658},{"$f":"'C-Diversion'!AI77*'C-Values and Rates'!AI224","v":5640.1963707021378},{"$f":"'C-Diversion'!AJ77*'C-Values and Rates'!AJ224","v":5646.0225342563908},{"$f":"'C-Diversion'!AK77*'C-Values and Rates'!AK224","v":5652.5023153844149},{"$f":"'C-Diversion'!AL77*'C-Values and Rates'!AL224","v":5659.4632930610178},{"$f":"'C-Diversion'!AM77*'C-Values and Rates'!AM224","v":5668.9709885619495},{"$f":"'C-Diversion'!AN77*'C-Values and Rates'!AN224","v":5678.4957962621402},{"$f":"'C-Diversion'!AO77*'C-Values and Rates'!AO224","v":5688.0377487553424},{"$f":"'C-Diversion'!AP77*'C-Values and Rates'!AP224","v":5697.5968787000193},{"$f":"'C-Diversion'!AQ77*'C-Values and Rates'!AQ224","v":5707.173218819491},{"$f":"'C-Diversion'!AR77*'C-Values and Rates'!AR224","v":5713.6324583183487},{"$f":"'C-Diversion'!AS77*'C-Values and Rates'!AS224","v":5720.1001562647698},{"$f":"'C-Diversion'!AT77*'C-Values and Rates'!AT224","v":5726.5763248451258},{"$f":"'C-Diversion'!AU77*'C-Values and Rates'!AU224","v":5733.060976264268},{"$f":"'C-Diversion'!AV77*'C-Values and Rates'!AV224","v":5739.554122745566},{"$f":"'C-Diversion'!AW77*'C-Values and Rates'!AW224","v":5746.0557765309286},{"$f":"'C-Diversion'!AX77*'C-Values and Rates'!AX224","v":5752.5659498808391},{"$f":"'C-Diversion'!AY77*'C-Values and Rates'!AY224","v":5759.0846550743763},{"$f":"'C-Diversion'!AZ77*'C-Values and Rates'!AZ224","v":5765.611904409252},{"$f":"'C-Diversion'!BA77*'C-Values and Rates'!BA224","v":5772.1477102018325},{"$f":"'C-Diversion'!BB77*'C-Values and Rates'!BB224","v":5778.6920847871716},{"$f":"'C-Diversion'!BC77*'C-Values and Rates'!BC224","v":5785.2450405190402},{"$f":"'C-Diversion'!BD77*'C-Values and Rates'!BD224","v":5791.8065897699607},{"$f":"'C-Diversion'!BE77*'C-Values and Rates'!BE224","v":5798.3767449312127},{"$f":"'C-Diversion'!BF77*'C-Values and Rates'!BF224","v":5804.9555184128976},{"$f":"'C-Diversion'!BG77*'C-Values and Rates'!BG224","v":5811.5429226439355},{"$f":"'C-Diversion'!BH77*'C-Values and Rates'!BH224","v":5818.1389700721211},{"$f":"'C-Diversion'!BI77*'C-Values and Rates'!BI224","v":5824.7436731641274},{"$f":"'C-Diversion'!BJ77*'C-Values and Rates'!BJ224","v":5831.3570444055586},{"$f":"'C-Diversion'!BK77*'C-Values and Rates'!BK224","v":5837.9790963009636},{"$f":"'C-Diversion'!BL77*'C-Values and Rates'!BL224","v":5844.6098413738719},{"$f":"'C-Diversion'!BM77*'C-Values and Rates'!BM224","v":5851.2492921668236},{"$f":"'C-Diversion'!BN77*'C-Values and Rates'!BN224","v":5857.897461241394},{"$f":"'C-Diversion'!BO77*'C-Values and Rates'!BO224","v":5864.5543611782314},{"$f":"'C-Diversion'!BP77*'C-Values and Rates'!BP224","v":5871.2200045770787},{"$f":"'C-Diversion'!BQ77*'C-Values and Rates'!BQ224","v":5877.8944040568103},{"$f":"'C-Diversion'!BR77*'C-Values and Rates'!BR224","v":5884.5775722554481},{"$f":"'C-Diversion'!BS77*'C-Values and Rates'!BS224","v":5891.2695218302142},{"$f":"'C-Diversion'!BT77*'C-Values and Rates'!BT224","v":5897.9702654575412},{"$f":"'C-Diversion'!BU77*'C-Values and Rates'!BU224","v":5904.6798158331067},{"$f":"'C-Diversion'!BV77*'C-Values and Rates'!BV224","v":5911.398185671871},{"$f":"'C-Diversion'!BW77*'C-Values and Rates'!BW224","v":5918.125387708089},{"$f":"'C-Diversion'!BX77*'C-Values and Rates'!BX224","v":0},{"$f":"'C-Diversion'!BY77*'C-Values and Rates'!BY224","v":0},{"$f":"'C-Diversion'!BZ77*'C-Values and Rates'!BZ224","v":0},{"$f":"'C-Diversion'!CA77*'C-Values and Rates'!CA224","v":0},{"$f":"'C-Diversion'!CB77*'C-Values and Rates'!CB224","v":0},{"$f":"'C-Diversion'!CC77*'C-Values and Rates'!CC224","v":0},{"$f":"'C-Diversion'!CD77*'C-Values and Rates'!CD224","v":0},{"$f":"'C-Diversion'!CE77*'C-Values and Rates'!CE224","v":0}]
[null,null,null,"PSV",null,null,null,2395064.7404161361,null,"pence, 2023 prices",{"$f":"'C-Diversion'!K78*'C-Values and Rates'!K225","v":0},{"$f":"'C-Diversion'!L78*'C-Values and Rates'!L225","v":0},{"$f":"'C-Diversion'!M78*'C-Values and Rates'!M225","v":0},{"$f":"'C-Diversion'!N78*'C-Values and Rates'!N225","v":0},{"$f":"'C-Diversion'!O78*'C-Values and Rates'!O225","v":0},{"$f":"'C-Diversion'!P78*'C-Values and Rates'!P225","v":42491.659527389689},{"$f":"'C-Diversion'!Q78*'C-Values and Rates'!Q225","v":42150.250934730582},{"$f":"'C-Diversion'!R78*'C-Values and Rates'!R225","v":41472.481838961263},{"$f":"'C-Diversion'!S78*'C-Values and Rates'!S225","v":41189.426822549569},{"$f":"'C-Diversion'!T78*'C-Values and Rates'!T225","v":41040.765454990469},{"$f":"'C-Diversion'!U78*'C-Values and Rates'!U225","v":40857.131070487609},{"$f":"'C-Diversion'!V78*'C-Values and Rates'!V225","v":40522.416986215321},{"$f":"'C-Diversion'!W78*'C-Values and Rates'!W225","v":40448.967361639916},{"$f":"'C-Diversion'!X78*'C-Values and Rates'!X225","v":40367.146854097424},{"$f":"'C-Diversion'!Y78*'C-Values and Rates'!Y225","v":40164.76695274267},{"$f":"'C-Diversion'!Z78*'C-Values and Rates'!Z225","v":40130.646378322628},{"$f":"'C-Diversion'!AA78*'C-Values and Rates'!AA225","v":40208.955806427322},{"$f":"'C-Diversion'!AB78*'C-Values and Rates'!AB225","v":40160.857002729259},{"$f":"'C-Diversion'!AC78*'C-Values and Rates'!AC225","v":40110.597433306255},{"$f":"'C-Diversion'!AD78*'C-Values and Rates'!AD225","v":40018.294188484368},{"$f":"'C-Diversion'!AE78*'C-Values and Rates'!AE225","v":39956.059894036},{"$f":"'C-Diversion'!AF78*'C-Values and Rates'!AF225","v":39891.32698681621},{"$f":"'C-Diversion'!AG78*'C-Values and Rates'!AG225","v":39781.020382072275},{"$f":"'C-Diversion'!AH78*'C-Values and Rates'!AH225","v":39656.891941627073},{"$f":"'C-Diversion'!AI78*'C-Values and Rates'!AI225","v":39573.89875638696},{"$f":"'C-Diversion'!AJ78*'C-Values and Rates'!AJ225","v":39476.310173890568},{"$f":"'C-Diversion'!AK78*'C-Values and Rates'!AK225","v":39389.007046519124},{"$f":"'C-Diversion'!AL78*'C-Values and Rates'!AL225","v":39325.418835456738},{"$f":"'C-Diversion'!AM78*'C-Values and Rates'!AM225","v":39341.79876458145},{"$f":"'C-Diversion'!AN78*'C-Values and Rates'!AN225","v":39358.193378038442},{"$f":"'C-Diversion'!AO78*'C-Values and Rates'!AO225","v":39374.602688991959},{"$f":"'C-Diversion'!AP78*'C-Values and Rates'!AP225","v":39391.02671061804},{"$f":"'C-Diversion'!AQ78*'C-Values and Rates'!AQ225","v":39407.465456104568},{"$f":"'C-Diversion'!AR78*'C-Values and Rates'!AR225","v":39423.918938651259},{"$f":"'C-Diversion'!AS78*'C-Values and Rates'!AS225","v":39440.387171469607},{"$f":"'C-Diversion'!AT78*'C-Values and Rates'!AT225","v":39456.870167783003},{"$f":"'C-Diversion'!AU78*'C-Values and Rates'!AU225","v":39473.367940826669},{"$f":"'C-Diversion'!AV78*'C-Values and Rates'!AV225","v":39489.880503847693},{"$f":"'C-Diversion'!AW78*'C-Values and Rates'!AW225","v":39506.407870105038},{"$f":"'C-Diversion'!AX78*'C-Values and Rates'!AX225","v":39522.950052869601},{"$f":"'C-Diversion'!AY78*'C-Values and Rates'!AY225","v":39539.507065424048},{"$f":"'C-Diversion'!AZ78*'C-Values and Rates'!AZ225","v":39556.078921063112},{"$f":"'C-Diversion'!BA78*'C-Values and Rates'!BA225","v":39572.665633093347},{"$f":"'C-Diversion'!BB78*'C-Values and Rates'!BB225","v":39589.267214833242},{"$f":"'C-Diversion'!BC78*'C-Values and Rates'!BC225","v":39605.88367961326},{"$f":"'C-Diversion'!BD78*'C-Values and Rates'!BD225","v":39622.515040775819},{"$f":"'C-Diversion'!BE78*'C-Values and Rates'!BE225","v":39639.161311675227},{"$f":"'C-Diversion'!BF78*'C-Values and Rates'!BF225","v":39655.822505677846},{"$f":"'C-Diversion'!BG78*'C-Values and Rates'!BG225","v":39672.498636161959},{"$f":"'C-Diversion'!BH78*'C-Values and Rates'!BH225","v":39689.189716517911},{"$f":"'C-Diversion'!BI78*'C-Values and Rates'!BI225","v":39705.895760148},{"$f":"'C-Diversion'!BJ78*'C-Values and Rates'!BJ225","v":39722.616780466538},{"$f":"'C-Diversion'!BK78*'C-Values and Rates'!BK225","v":39739.352790899888},{"$f":"'C-Diversion'!BL78*'C-Values and Rates'!BL225","v":39756.103804886421},{"$f":"'C-Diversion'!BM78*'C-Values and Rates'!BM225","v":39772.869835876583},{"$f":"'C-Diversion'!BN78*'C-Values and Rates'!BN225","v":39789.650897332853},{"$f":"'C-Diversion'!BO78*'C-Values and Rates'!BO225","v":39806.44700272983},{"$f":"'C-Diversion'!BP78*'C-Values and Rates'!BP225","v":39823.258165554122},{"$f":"'C-Diversion'!BQ78*'C-Values and Rates'!BQ225","v":39840.084399304469},{"$f":"'C-Diversion'!BR78*'C-Values and Rates'!BR225","v":39856.925717491693},{"$f":"'C-Diversion'!BS78*'C-Values and Rates'!BS225","v":39873.78213363875},{"$f":"'C-Diversion'!BT78*'C-Values and Rates'!BT225","v":39890.653661280718},{"$f":"'C-Diversion'!BU78*'C-Values and Rates'!BU225","v":39907.540313964768},{"$f":"'C-Diversion'!BV78*'C-Values and Rates'!BV225","v":39924.442105250273},{"$f":"'C-Diversion'!BW78*'C-Values and Rates'!BW225","v":39941.359048708728},{"$f":"'C-Diversion'!BX78*'C-Values and Rates'!BX225","v":0},{"$f":"'C-Diversion'!BY78*'C-Values and Rates'!BY225","v":0},{"$f":"'C-Diversion'!BZ78*'C-Values and Rates'!BZ225","v":0},{"$f":"'C-Diversion'!CA78*'C-Values and Rates'!CA225","v":0},{"$f":"'C-Diversion'!CB78*'C-Values and Rates'!CB225","v":0},{"$f":"'C-Diversion'!CC78*'C-Values and Rates'!CC225","v":0},{"$f":"'C-Diversion'!CD78*'C-Values and Rates'!CD225","v":0},{"$f":"'C-Diversion'!CE78*'C-Values and Rates'!CE225","v":0}]
[]
[null,null,null,"Fuel cost - Diversion"]
[null,null,null,"Cars",null,null,null,{"$f":"SUM(K33:CE33)","v":36659630.111024283},null,"pence, 2023 prices",{"$f":"'C-Diversion'!K81*'C-Values and Rates'!K226","v":0},{"$f":"'C-Diversion'!L81*'C-Values and Rates'!L226","v":0},{"$f":"'C-Diversion'!M81*'C-Values and Rates'!M226","v":0},{"$f":"'C-Diversion'!N81*'C-Values and Rates'!N226","v":0},{"$f":"'C-Diversion'!O81*'C-Values and Rates'!O226","v":0},{"$f":"'C-Diversion'!P81*'C-Values and Rates'!P226","v":1007066.9991213864},{"$f":"'C-Diversion'!Q81*'C-Values and Rates'!Q226","v":977177.12655181531},{"$f":"'C-Diversion'!R81*'C-Values and Rates'!R226","v":930957.26807810238},{"$f":"'C-Diversion'!S81*'C-Values and Rates'!S226","v":888869.94525201258},{"$f":"'C-Diversion'!T81*'C-Values and Rates'!T226","v":851337.74246081139},{"$f":"'C-Diversion'!U81*'C-Values and Rates'!U226","v":815086.50317399937},{"$f":"'C-Diversion'!V81*'C-Values and Rates'!V226","v":781180.97272332583},{"$f":"'C-Diversion'!W81*'C-Values and Rates'!W226","v":757584.29566450964},{"$f":"'C-Diversion'!X81*'C-Values and Rates'!X226","v":725535.49997386115},{"$f":"'C-Diversion'!Y81*'C-Values and Rates'!Y226","v":696223.64018802962},{"$f":"'C-Diversion'!Z81*'C-Values and Rates'!Z226","v":674646.2935595985},{"$f":"'C-Diversion'!AA81*'C-Values and Rates'!AA226","v":656464.43856458669},{"$f":"'C-Diversion'!AB81*'C-Values and Rates'!AB226","v":634806.704336836},{"$f":"'C-Diversion'!AC81*'C-Values and Rates'!AC226","v":619060.12563584559},{"$f":"'C-Diversion'!AD81*'C-Values and Rates'!AD226","v":601729.69639593409},{"$f":"'C-Diversion'!AE81*'C-Values and Rates'!AE226","v":587549.10559547122},{"$f":"'C-Diversion'!AF81*'C-Values and Rates'!AF226","v":576871.2877457923},{"$f":"'C-Diversion'!AG81*'C-Values and Rates'!AG226","v":566228.3245162284},{"$f":"'C-Diversion'!AH81*'C-Values and Rates'!AH226","v":554390.10348128516},{"$f":"'C-Diversion'!AI81*'C-Values and Rates'!AI226","v":549304.16585904732},{"$f":"'C-Diversion'!AJ81*'C-Values and Rates'!AJ226","v":544959.43052698707},{"$f":"'C-Diversion'!AK81*'C-Values and Rates'!AK226","v":541494.93650710559},{"$f":"'C-Diversion'!AL81*'C-Values and Rates'!AL226","v":542996.80272860418},{"$f":"'C-Diversion'!AM81*'C-Values and Rates'!AM226","v":543867.66773804498},{"$f":"'C-Diversion'!AN81*'C-Values and Rates'!AN226","v":544740.00437359931},{"$f":"'C-Diversion'!AO81*'C-Values and Rates'!AO226","v":545613.81527356256},{"$f":"'C-Diversion'!AP81*'C-Values and Rates'!AP226","v":546489.1030812508},{"$f":"'C-Diversion'!AQ81*'C-Values and Rates'!AQ226","v":547365.87044501095},{"$f":"'C-Diversion'!AR81*'C-Values and Rates'!AR226","v":547990.81884991785},{"$f":"'C-Diversion'!AS81*'C-Values and Rates'!AS226","v":548616.55642700649},{"$f":"'C-Diversion'!AT81*'C-Values and Rates'!AT226","v":549243.08428804285},{"$f":"'C-Diversion'!AU81*'C-Values and Rates'!AU226","v":549870.4035465162},{"$f":"'C-Diversion'!AV81*'C-Values and Rates'!AV226","v":550498.51531764539},{"$f":"'C-Diversion'!AW81*'C-Values and Rates'!AW226","v":551127.42071837874},{"$f":"'C-Diversion'!AX81*'C-Values and Rates'!AX226","v":551757.12086739775},{"$f":"'C-Diversion'!AY81*'C-Values and Rates'!AY226","v":552387.61688512133},{"$f":"'C-Diversion'!AZ81*'C-Values and Rates'!AZ226","v":553018.90989370726},{"$f":"'C-Diversion'!BA81*'C-Values and Rates'!BA226","v":553651.00101705524},{"$f":"'C-Diversion'!BB81*'C-Values and Rates'!BB226","v":554283.89138081076},{"$f":"'C-Diversion'!BC81*'C-Values and Rates'!BC226","v":554917.58211236645},{"$f":"'C-Diversion'!BD81*'C-Values and Rates'!BD226","v":555552.07434086653},{"$f":"'C-Diversion'!BE81*'C-Values and Rates'!BE226","v":556187.36919720855},{"$f":"'C-Diversion'!BF81*'C-Values and Rates'!BF226","v":556823.46781404782},{"$f":"'C-Diversion'!BG81*'C-Values and Rates'!BG226","v":557460.37132579787},{"$f":"'C-Diversion'!BH81*'C-Values and Rates'!BH226","v":558098.08086863579},{"$f":"'C-Diversion'!BI81*'C-Values and Rates'!BI226","v":558736.59758050402},{"$f":"'C-Diversion'!BJ81*'C-Values and Rates'!BJ226","v":559375.92260111368},{"$f":"'C-Diversion'!BK81*'C-Values and Rates'!BK226","v":560016.05707194714},{"$f":"'C-Diversion'!BL81*'C-Values and Rates'!BL226","v":560657.0021362605},{"$f":"'C-Diversion'!BM81*'C-Values and Rates'!BM226","v":561298.75893908867},{"$f":"'C-Diversion'!BN81*'C-Values and Rates'!BN226","v":561941.32862724608},{"$f":"'C-Diversion'!BO81*'C-Values and Rates'!BO226","v":562584.71234933008},{"$f":"'C-Diversion'!BP81*'C-Values and Rates'!BP226","v":563228.91125572484},{"$f":"'C-Diversion'!BQ81*'C-Values and Rates'!BQ226","v":563873.92649860366},{"$f":"'C-Diversion'!BR81*'C-Values and Rates'!BR226","v":564519.75923193211},{"$f":"'C-Diversion'!BS81*'C-Values and Rates'!BS226","v":565166.41061147093},{"$f":"'C-Diversion'!BT81*'C-Values and Rates'!BT226","v":565813.88179477863},{"$f":"'C-Diversion'!BU81*'C-Values and Rates'!BU226","v":566462.17394121562},{"$f":"'C-Diversion'!BV81*'C-Values and Rates'!BV226","v":567111.28821194603},{"$f":"'C-Diversion'!BW81*'C-Values and Rates'!BW226","v":567761.2257699417},{"$f":"'C-Diversion'!BX81*'C-Values and Rates'!BX226","v":0},{"$f":"'C-Diversion'!BY81*'C-Values and Rates'!BY226","v":0},{"$f":"'C-Diversion'!BZ81*'C-Values and Rates'!BZ226","v":0},{"$f":"'C-Diversion'!CA81*'C-Values and Rates'!CA226","v":0},{"$f":"'C-Diversion'!CB81*'C-Values and Rates'!CB226","v":0},{"$f":"'C-Diversion'!CC81*'C-Values and Rates'!CC226","v":0},{"$f":"'C-Diversion'!CD81*'C-Values and Rates'!CD226","v":0},{"$f":"'C-Diversion'!CE81*'C-Values and Rates'!CE226","v":0}]
[null,null,null,"LGV",null,null,null,{"$f":"SUM(K34:CE34)","v":8705948.0923255309},null,"pence, 2023 prices",{"$f":"'C-Diversion'!K82*'C-Values and Rates'!K227","v":0},{"$f":"'C-Diversion'!L82*'C-Values and Rates'!L227","v":0},{"$f":"'C-Diversion'!M82*'C-Values and Rates'!M227","v":0},{"$f":"'C-Diversion'!N82*'C-Values and Rates'!N227","v":0},{"$f":"'C-Diversion'!O82*'C-Values and Rates'!O227","v":0},{"$f":"'C-Diversion'!P82*'C-Values and Rates'!P227","v":143249.07386520173},{"$f":"'C-Diversion'!Q82*'C-Values and Rates'!Q227","v":140157.88321071549},{"$f":"'C-Diversion'!R82*'C-Values and Rates'!R227","v":135448.82377479054},{"$f":"'C-Diversion'!S82*'C-Values and Rates'!S227","v":132539.05726249443},{"$f":"'C-Diversion'!T82*'C-Values and Rates'!T227","v":130585.62714459734},{"$f":"'C-Diversion'!U82*'C-Values and Rates'!U227","v":128662.3891078219},{"$f":"'C-Diversion'!V82*'C-Values and Rates'!V227","v":127269.31140482932},{"$f":"'C-Diversion'!W82*'C-Values and Rates'!W227","v":127553.0981149819},{"$f":"'C-Diversion'!X82*'C-Values and Rates'!X227","v":126620.01900633497},{"$f":"'C-Diversion'!Y82*'C-Values and Rates'!Y227","v":125824.53660205596},{"$f":"'C-Diversion'!Z82*'C-Values and Rates'!Z227","v":125872.32829345168},{"$f":"'C-Diversion'!AA82*'C-Values and Rates'!AA227","v":126889.43506346935},{"$f":"'C-Diversion'!AB82*'C-Values and Rates'!AB227","v":126917.05029172645},{"$f":"'C-Diversion'!AC82*'C-Values and Rates'!AC227","v":127822.0692021935},{"$f":"'C-Diversion'!AD82*'C-Values and Rates'!AD227","v":127849.14776626992},{"$f":"'C-Diversion'!AE82*'C-Values and Rates'!AE227","v":128212.77930286338},{"$f":"'C-Diversion'!AF82*'C-Values and Rates'!AF227","v":128113.18088285811},{"$f":"'C-Diversion'!AG82*'C-Values and Rates'!AG227","v":129358.73149190356},{"$f":"'C-Diversion'!AH82*'C-Values and Rates'!AH227","v":128589.91150763353},{"$f":"'C-Diversion'!AI82*'C-Values and Rates'!AI227","v":128937.59616777202},{"$f":"'C-Diversion'!AJ82*'C-Values and Rates'!AJ227","v":129242.31784474205},{"$f":"'C-Diversion'!AK82*'C-Values and Rates'!AK227","v":129534.1053824963},{"$f":"'C-Diversion'!AL82*'C-Values and Rates'!AL227","v":130725.09851003803},{"$f":"'C-Diversion'!AM82*'C-Values and Rates'!AM227","v":131662.28835627149},{"$f":"'C-Diversion'!AN82*'C-Values and Rates'!AN227","v":132606.2170866082},{"$f":"'C-Diversion'!AO82*'C-Values and Rates'!AO227","v":133556.93330921189},{"$f":"'C-Diversion'!AP82*'C-Values and Rates'!AP227","v":134514.48598401312},{"$f":"'C-Diversion'!AQ82*'C-Values and Rates'!AQ227","v":135478.9244252636},{"$f":"'C-Diversion'!AR82*'C-Values and Rates'!AR227","v":136711.97362429896},{"$f":"'C-Diversion'!AS82*'C-Values and Rates'!AS227","v":137956.26617838928},{"$f":"'C-Diversion'!AT82*'C-Values and Rates'!AT227","v":139211.90480716797},{"$f":"'C-Diversion'!AU82*'C-Values and Rates'!AU227","v":140478.99317061127},{"$f":"'C-Diversion'!AV82*'C-Values and Rates'!AV227","v":141757.63587766504},{"$f":"'C-Diversion'!AW82*'C-Values and Rates'!AW227","v":143047.93849494983},{"$f":"'C-Diversion'!AX82*'C-Values and Rates'!AX227","v":144350.00755554691},{"$f":"'C-Diversion'!AY82*'C-Values and Rates'!AY227","v":145663.95056786455},{"$f":"'C-Diversion'!AZ82*'C-Values and Rates'!AZ227","v":146989.87602458615},{"$f":"'C-Diversion'!BA82*'C-Values and Rates'!BA227","v":148327.89341170015},{"$f":"'C-Diversion'!BB82*'C-Values and Rates'!BB227","v":149678.11321761346},{"$f":"'C-Diversion'!BC82*'C-Values and Rates'!BC227","v":151040.64694234848},{"$f":"'C-Diversion'!BD82*'C-Values and Rates'!BD227","v":152415.60710682484},{"$f":"'C-Diversion'!BE82*'C-Values and Rates'!BE227","v":153803.10726222594},{"$f":"'C-Diversion'!BF82*'C-Values and Rates'!BF227","v":155203.26199945237},{"$f":"'C-Diversion'!BG82*'C-Values and Rates'!BG227","v":156616.18695866177},{"$f":"'C-Diversion'!BH82*'C-Values and Rates'!BH227","v":158041.9988388966},{"$f":"'C-Diversion'!BI82*'C-Values and Rates'!BI227","v":159480.81540780037},{"$f":"'C-Diversion'!BJ82*'C-Values and Rates'!BJ227","v":160932.75551142314},{"$f":"'C-Diversion'!BK82*'C-Values and Rates'!BK227","v":162397.93908411748},{"$f":"'C-Diversion'!BL82*'C-Values and Rates'!BL227","v":163876.48715852498},{"$f":"'C-Diversion'!BM82*'C-Values and Rates'!BM227","v":165368.52187565499},{"$f":"'C-Diversion'!BN82*'C-Values and Rates'!BN227","v":166874.16649505621},{"$f":"'C-Diversion'!BO82*'C-Values and Rates'!BO227","v":168393.54540508101},{"$f":"'C-Diversion'!BP82*'C-Values and Rates'!BP227","v":169926.78413324489},{"$f":"'C-Diversion'!BQ82*'C-Values and Rates'!BQ227","v":171474.0093566812},{"$f":"'C-Diversion'!BR82*'C-Values and Rates'!BR227","v":173035.34891269146},{"$f":"'C-Diversion'!BS82*'C-Values and Rates'!BS227","v":174610.93180939349},{"$f":"'C-Diversion'!BT82*'C-Values and Rates'!BT227","v":176200.8882364665},{"$f":"'C-Diversion'!BU82*'C-Values and Rates'!BU227","v":177805.34957599614},{"$f":"'C-Diversion'!BV82*'C-Values and Rates'!BV227","v":179424.44841341852},{"$f":"'C-Diversion'!BW82*'C-Values and Rates'!BW227","v":181058.31854856483},{"$f":"'C-Diversion'!BX82*'C-Values and Rates'!BX227","v":0},{"$f":"'C-Diversion'!BY82*'C-Values and Rates'!BY227","v":0},{"$f":"'C-Diversion'!BZ82*'C-Values and Rates'!BZ227","v":0},{"$f":"'C-Diversion'!CA82*'C-Values and Rates'!CA227","v":0},{"$f":"'C-Diversion'!CB82*'C-Values and Rates'!CB227","v":0},{"$f":"'C-Diversion'!CC82*'C-Values and Rates'!CC227","v":0},{"$f":"'C-Diversion'!CD82*'C-Values and Rates'!CD227","v":0},{"$f":"'C-Diversion'!CE82*'C-Values and Rates'!CE227","v":0}]
[null,null,null,"HGV - Artics",null,null,null,948852.34078255016,null,"pence, 2023 prices",{"$f":"'C-Diversion'!K83*'C-Values and Rates'!K228","v":0},{"$f":"'C-Diversion'!L83*'C-Values and Rates'!L228","v":0},{"$f":"'C-Diversion'!M83*'C-Values and Rates'!M228","v":0},{"$f":"'C-Diversion'!N83*'C-Values and Rates'!N228","v":0},{"$f":"'C-Diversion'!O83*'C-Values and Rates'!O228","v":0},{"$f":"'C-Diversion'!P83*'C-Values and Rates'!P228","v":17861.277552449508},{"$f":"'C-Diversion'!Q83*'C-Values and Rates'!Q228","v":17707.714300272324},{"$f":"'C-Diversion'!R83*'C-Values and Rates'!R228","v":17277.812435063166},{"$f":"'C-Diversion'!S83*'C-Values and Rates'!S228","v":17052.478635976375},{"$f":"'C-Diversion'!T83*'C-Values and Rates'!T228","v":16823.676336980458},{"$f":"'C-Diversion'!U83*'C-Values and Rates'!U228","v":16607.327222994365},{"$f":"'C-Diversion'!V83*'C-Values and Rates'!V228","v":16404.857758566668},{"$f":"'C-Diversion'!W83*'C-Values and Rates'!W228","v":16218.274932074981},{"$f":"'C-Diversion'!X83*'C-Values and Rates'!X228","v":16068.676420449603},{"$f":"'C-Diversion'!Y83*'C-Values and Rates'!Y228","v":15935.44541675783},{"$f":"'C-Diversion'!Z83*'C-Values and Rates'!Z228","v":15819.69474335658},{"$f":"'C-Diversion'!AA83*'C-Values and Rates'!AA228","v":15721.788915466048},{"$f":"'C-Diversion'!AB83*'C-Values and Rates'!AB228","v":15640.489788712506},{"$f":"'C-Diversion'!AC83*'C-Values and Rates'!AC228","v":15571.949151587387},{"$f":"'C-Diversion'!AD83*'C-Values and Rates'!AD228","v":15515.744370814105},{"$f":"'C-Diversion'!AE83*'C-Values and Rates'!AE228","v":15469.342122776145},{"$f":"'C-Diversion'!AF83*'C-Values and Rates'!AF228","v":15430.511013906642},{"$f":"'C-Diversion'!AG83*'C-Values and Rates'!AG228","v":15397.475837463704},{"$f":"'C-Diversion'!AH83*'C-Values and Rates'!AH228","v":15364.739874316538},{"$f":"'C-Diversion'!AI83*'C-Values and Rates'!AI228","v":15343.768069322126},{"$f":"'C-Diversion'!AJ83*'C-Values and Rates'!AJ228","v":15325.117407624017},{"$f":"'C-Diversion'!AK83*'C-Values and Rates'!AK228","v":15308.363925587617},{"$f":"'C-Diversion'!AL83*'C-Values and Rates'!AL228","v":15292.952687077224},{"$f":"'C-Diversion'!AM83*'C-Values and Rates'!AM228","v":15318.644299502235},{"$f":"'C-Diversion'!AN83*'C-Values and Rates'!AN228","v":15344.382152363853},{"$f":"'C-Diversion'!AO83*'C-Values and Rates'!AO228","v":15370.166333736632},{"$f":"'C-Diversion'!AP83*'C-Values and Rates'!AP228","v":15395.996931869995},{"$f":"'C-Diversion'!AQ83*'C-Values and Rates'!AQ228","v":15421.874035188614},{"$f":"'C-Diversion'!AR83*'C-Values and Rates'!AR228","v":15439.328136211161},{"$f":"'C-Diversion'!AS83*'C-Values and Rates'!AS228","v":15456.805093577457},{"$f":"'C-Diversion'!AT83*'C-Values and Rates'!AT228","v":15474.304940217397},{"$f":"'C-Diversion'!AU83*'C-Values and Rates'!AU228","v":15491.827709110814},{"$f":"'C-Diversion'!AV83*'C-Values and Rates'!AV228","v":15509.373433287612},{"$f":"'C-Diversion'!AW83*'C-Values and Rates'!AW228","v":15526.942145827759},{"$f":"'C-Diversion'!AX83*'C-Values and Rates'!AX228","v":15544.533879861432},{"$f":"'C-Diversion'!AY83*'C-Values and Rates'!AY228","v":15562.148668569049},{"$f":"'C-Diversion'!AZ83*'C-Values and Rates'!AZ228","v":15579.786545181374},{"$f":"'C-Diversion'!BA83*'C-Values and Rates'!BA228","v":15597.447542979591},{"$f":"'C-Diversion'!BB83*'C-Values and Rates'!BB228","v":15615.131695295384},{"$f":"'C-Diversion'!BC83*'C-Values and Rates'!BC228","v":15632.839035510997},{"$f":"'C-Diversion'!BD83*'C-Values and Rates'!BD228","v":15650.569597059342},{"$f":"'C-Diversion'!BE83*'C-Values and Rates'!BE228","v":15668.323413424043},{"$f":"'C-Diversion'!BF83*'C-Values and Rates'!BF228","v":15686.100518139572},{"$f":"'C-Diversion'!BG83*'C-Values and Rates'!BG228","v":15703.900944791234},{"$f":"'C-Diversion'!BH83*'C-Values and Rates'!BH228","v":15721.72472701536},{"$f":"'C-Diversion'!BI83*'C-Values and Rates'!BI228","v":15739.571898499289},{"$f":"'C-Diversion'!BJ83*'C-Values and Rates'!BJ228","v":15757.442492981505},{"$f":"'C-Diversion'!BK83*'C-Values and Rates'!BK228","v":15775.336544251693},{"$f":"'C-Diversion'!BL83*'C-Values and Rates'!BL228","v":15793.254086150831},{"$f":"'C-Diversion'!BM83*'C-Values and Rates'!BM228","v":15811.195152571257},{"$f":"'C-Diversion'!BN83*'C-Values and Rates'!BN228","v":15829.15977745676},{"$f":"'C-Diversion'!BO83*'C-Values and Rates'!BO228","v":15847.147994802648},{"$f":"'C-Diversion'!BP83*'C-Values and Rates'!BP228","v":15865.159838655849},{"$f":"'C-Diversion'!BQ83*'C-Values and Rates'!BQ228","v":15883.195343114958},{"$f":"'C-Diversion'!BR83*'C-Values and Rates'!BR228","v":15901.254542330344},{"$f":"'C-Diversion'!BS83*'C-Values and Rates'!BS228","v":15919.337470504233},{"$f":"'C-Diversion'!BT83*'C-Values and Rates'!BT228","v":15937.444161890782},{"$f":"'C-Diversion'!BU83*'C-Values and Rates'!BU228","v":15955.574650796132},{"$f":"'C-Diversion'!BV83*'C-Values and Rates'!BV228","v":15973.728971578541},{"$f":"'C-Diversion'!BW83*'C-Values and Rates'!BW228","v":15991.90715864841},{"$f":"'C-Diversion'!BX83*'C-Values and Rates'!BX228","v":0},{"$f":"'C-Diversion'!BY83*'C-Values and Rates'!BY228","v":0},{"$f":"'C-Diversion'!BZ83*'C-Values and Rates'!BZ228","v":0},{"$f":"'C-Diversion'!CA83*'C-Values and Rates'!CA228","v":0},{"$f":"'C-Diversion'!CB83*'C-Values and Rates'!CB228","v":0},{"$f":"'C-Diversion'!CC83*'C-Values and Rates'!CC228","v":0},{"$f":"'C-Diversion'!CD83*'C-Values and Rates'!CD228","v":0},{"$f":"'C-Diversion'!CE83*'C-Values and Rates'!CE228","v":0}]
[null,null,null,"HGV - Rigids",null,null,null,1178602.9799454161,null,"pence, 2023 prices",{"$f":"'C-Diversion'!K84*'C-Values and Rates'!K229","v":0},{"$f":"'C-Diversion'!L84*'C-Values and Rates'!L229","v":0},{"$f":"'C-Diversion'!M84*'C-Values and Rates'!M229","v":0},{"$f":"'C-Diversion'!N84*'C-Values and Rates'!N229","v":0},{"$f":"'C-Diversion'!O84*'C-Values and Rates'!O229","v":0},{"$f":"'C-Diversion'!P84*'C-Values and Rates'!P229","v":24246.073515876626},{"$f":"'C-Diversion'!Q84*'C-Values and Rates'!Q229","v":23859.739397251382},{"$f":"'C-Diversion'!R84*'C-Values and Rates'!R229","v":22856.47761226631},{"$f":"'C-Diversion'!S84*'C-Values and Rates'!S229","v":22137.885652940375},{"$f":"'C-Diversion'!T84*'C-Values and Rates'!T229","v":21481.440238815809},{"$f":"'C-Diversion'!U84*'C-Values and Rates'!U229","v":20906.05807864575},{"$f":"'C-Diversion'!V84*'C-Values and Rates'!V229","v":20395.030768829496},{"$f":"'C-Diversion'!W84*'C-Values and Rates'!W229","v":19959.795472203714},{"$f":"'C-Diversion'!X84*'C-Values and Rates'!X229","v":19629.59542371902},{"$f":"'C-Diversion'!Y84*'C-Values and Rates'!Y229","v":19374.352485134685},{"$f":"'C-Diversion'!Z84*'C-Values and Rates'!Z229","v":19186.492110019779},{"$f":"'C-Diversion'!AA84*'C-Values and Rates'!AA229","v":19056.99295809391},{"$f":"'C-Diversion'!AB84*'C-Values and Rates'!AB229","v":18970.053382308241},{"$f":"'C-Diversion'!AC84*'C-Values and Rates'!AC229","v":18913.3806019193},{"$f":"'C-Diversion'!AD84*'C-Values and Rates'!AD229","v":18879.147383252734},{"$f":"'C-Diversion'!AE84*'C-Values and Rates'!AE229","v":18860.436659514678},{"$f":"'C-Diversion'!AF84*'C-Values and Rates'!AF229","v":18853.072070035883},{"$f":"'C-Diversion'!AG84*'C-Values and Rates'!AG229","v":18853.447291832555},{"$f":"'C-Diversion'!AH84*'C-Values and Rates'!AH229","v":18853.363612823625},{"$f":"'C-Diversion'!AI84*'C-Values and Rates'!AI229","v":18869.94326460117},{"$f":"'C-Diversion'!AJ84*'C-Values and Rates'!AJ229","v":18889.435383047632},{"$f":"'C-Diversion'!AK84*'C-Values and Rates'!AK229","v":18911.11425630247},{"$f":"'C-Diversion'!AL84*'C-Values and Rates'!AL229","v":18934.403029456884},{"$f":"'C-Diversion'!AM84*'C-Values and Rates'!AM229","v":18966.212147949926},{"$f":"'C-Diversion'!AN84*'C-Values and Rates'!AN229","v":18998.078517327147},{"$f":"'C-Diversion'!AO84*'C-Values and Rates'!AO229","v":19030.002246634787},{"$f":"'C-Diversion'!AP84*'C-Values and Rates'!AP229","v":19061.983445135604},{"$f":"'C-Diversion'!AQ84*'C-Values and Rates'!AQ229","v":19094.02222230933},{"$f":"'C-Diversion'!AR84*'C-Values and Rates'!AR229","v":19115.632371117088},{"$f":"'C-Diversion'!AS84*'C-Values and Rates'!AS229","v":19137.270818660432},{"$f":"'C-Diversion'!AT84*'C-Values and Rates'!AT229","v":19158.937605710275},{"$f":"'C-Diversion'!AU84*'C-Values and Rates'!AU229","v":19180.632773099398},{"$f":"'C-Diversion'!AV84*'C-Values and Rates'!AV229","v":19202.356361722534},{"$f":"'C-Diversion'!AW84*'C-Values and Rates'!AW229","v":19224.108412536429},{"$f":"'C-Diversion'!AX84*'C-Values and Rates'!AX229","v":19245.888966559982},{"$f":"'C-Diversion'!AY84*'C-Values and Rates'!AY229","v":19267.698064874308},{"$f":"'C-Diversion'!AZ84*'C-Values and Rates'!AZ229","v":19289.535748622839},{"$f":"'C-Diversion'!BA84*'C-Values and Rates'!BA229","v":19311.402059011438},{"$f":"'C-Diversion'!BB84*'C-Values and Rates'!BB229","v":19333.297037308494},{"$f":"'C-Diversion'!BC84*'C-Values and Rates'!BC229","v":19355.220724844999},{"$f":"'C-Diversion'!BD84*'C-Values and Rates'!BD229","v":19377.173163014686},{"$f":"'C-Diversion'!BE84*'C-Values and Rates'!BE229","v":19399.154393274061},{"$f":"'C-Diversion'!BF84*'C-Values and Rates'!BF229","v":19421.164457142568},{"$f":"'C-Diversion'!BG84*'C-Values and Rates'!BG229","v":19443.203396202622},{"$f":"'C-Diversion'!BH84*'C-Values and Rates'!BH229","v":19465.271252099807},{"$f":"'C-Diversion'!BI84*'C-Values and Rates'!BI229","v":19487.368066542847},{"$f":"'C-Diversion'!BJ84*'C-Values and Rates'!BJ229","v":19509.493881303799},{"$f":"'C-Diversion'!BK84*'C-Values and Rates'!BK229","v":19531.648738218111},{"$f":"'C-Diversion'!BL84*'C-Values and Rates'!BL229","v":19553.832679184736},{"$f":"'C-Diversion'!BM84*'C-Values and Rates'!BM229","v":19576.045746166212},{"$f":"'C-Diversion'!BN84*'C-Values and Rates'!BN229","v":19598.287981188787},{"$f":"'C-Diversion'!BO84*'C-Values and Rates'!BO229","v":19620.559426342497},{"$f":"'C-Diversion'!BP84*'C-Values and Rates'!BP229","v":19642.860123781276},{"$f":"'C-Diversion'!BQ84*'C-Values and Rates'!BQ229","v":19665.190115723046},{"$f":"'C-Diversion'!BR84*'C-Values and Rates'!BR229","v":19687.549444449822},{"$f":"'C-Diversion'!BS84*'C-Values and Rates'!BS229","v":19709.938152307819},{"$f":"'C-Diversion'!BT84*'C-Values and Rates'!BT229","v":19732.356281707554},{"$f":"'C-Diversion'!BU84*'C-Values and Rates'!BU229","v":19754.803875123907},{"$f":"'C-Diversion'!BV84*'C-Values and Rates'!BV229","v":19777.280975096277},{"$f":"'C-Diversion'!BW84*'C-Values and Rates'!BW229","v":19799.787624228633},{"$f":"'C-Diversion'!BX84*'C-Values and Rates'!BX229","v":0},{"$f":"'C-Diversion'!BY84*'C-Values and Rates'!BY229","v":0},{"$f":"'C-Diversion'!BZ84*'C-Values and Rates'!BZ229","v":0},{"$f":"'C-Diversion'!CA84*'C-Values and Rates'!CA229","v":0},{"$f":"'C-Diversion'!CB84*'C-Values and Rates'!CB229","v":0},{"$f":"'C-Diversion'!CC84*'C-Values and Rates'!CC229","v":0},{"$f":"'C-Diversion'!CD84*'C-Values and Rates'!CD229","v":0},{"$f":"'C-Diversion'!CE84*'C-Values and Rates'!CE229","v":0}]
[null,null,null,"PSV",null,null,null,8286048.8318092981,null,"pence, 2023 prices",{"$f":"'C-Diversion'!K85*'C-Values and Rates'!K230","v":0},{"$f":"'C-Diversion'!L85*'C-Values and Rates'!L230","v":0},{"$f":"'C-Diversion'!M85*'C-Values and Rates'!M230","v":0},{"$f":"'C-Diversion'!N85*'C-Values and Rates'!N230","v":0},{"$f":"'C-Diversion'!O85*'C-Values and Rates'!O230","v":0},{"$f":"'C-Diversion'!P85*'C-Values and Rates'!P230","v":147461.19712321792},{"$f":"'C-Diversion'!Q85*'C-Values and Rates'!Q230","v":146292.62784550726},{"$f":"'C-Diversion'!R85*'C-Values and Rates'!R230","v":143995.7637972238},{"$f":"'C-Diversion'!S85*'C-Values and Rates'!S230","v":142998.2924809719},{"$f":"'C-Diversion'!T85*'C-Values and Rates'!T230","v":142493.25722422116},{"$f":"'C-Diversion'!U85*'C-Values and Rates'!U230","v":141845.54070110997},{"$f":"'C-Diversion'!V85*'C-Values and Rates'!V230","v":140672.99220371875},{"$f":"'C-Diversion'!W85*'C-Values and Rates'!W230","v":140452.52758122442},{"$f":"'C-Diversion'!X85*'C-Values and Rates'!X230","v":140107.19789020644},{"$f":"'C-Diversion'!Y85*'C-Values and Rates'!Y230","v":139344.46555401408},{"$f":"'C-Diversion'!Z85*'C-Values and Rates'!Z230","v":139188.39771100186},{"$f":"'C-Diversion'!AA85*'C-Values and Rates'!AA230","v":139413.43048884376},{"$f":"'C-Diversion'!AB85*'C-Values and Rates'!AB230","v":139164.63830702935},{"$f":"'C-Diversion'!AC85*'C-Values and Rates'!AC230","v":138946.96377253195},{"$f":"'C-Diversion'!AD85*'C-Values and Rates'!AD230","v":138558.3169373025},{"$f":"'C-Diversion'!AE85*'C-Values and Rates'!AE230","v":138283.33400920316},{"$f":"'C-Diversion'!AF85*'C-Values and Rates'!AF230","v":138016.72231223926},{"$f":"'C-Diversion'!AG85*'C-Values and Rates'!AG230","v":137592.30476524739},{"$f":"'C-Diversion'!AH85*'C-Values and Rates'!AH230","v":137111.03342847814},{"$f":"'C-Diversion'!AI85*'C-Values and Rates'!AI230","v":136806.0351520337},{"$f":"'C-Diversion'!AJ85*'C-Values and Rates'!AJ230","v":136451.41720533065},{"$f":"'C-Diversion'!AK85*'C-Values and Rates'!AK230","v":136133.23906528391},{"$f":"'C-Diversion'!AL85*'C-Values and Rates'!AL230","v":135920.13650731058},{"$f":"'C-Diversion'!AM85*'C-Values and Rates'!AM230","v":135976.07894292139},{"$f":"'C-Diversion'!AN85*'C-Values and Rates'!AN230","v":136032.07152998931},{"$f":"'C-Diversion'!AO85*'C-Values and Rates'!AO230","v":136088.11431347422},{"$f":"'C-Diversion'!AP85*'C-Values and Rates'!AP230","v":136144.20733837638},{"$f":"'C-Diversion'!AQ85*'C-Values and Rates'!AQ230","v":136200.35064973627},{"$f":"'C-Diversion'!AR85*'C-Values and Rates'!AR230","v":136256.54429263505},{"$f":"'C-Diversion'!AS85*'C-Values and Rates'!AS230","v":136312.78831219397},{"$f":"'C-Diversion'!AT85*'C-Values and Rates'!AT230","v":136369.08275357497},{"$f":"'C-Diversion'!AU85*'C-Values and Rates'!AU230","v":136425.42766198021},{"$f":"'C-Diversion'!AV85*'C-Values and Rates'!AV230","v":136481.82308265264},{"$f":"'C-Diversion'!AW85*'C-Values and Rates'!AW230","v":136538.26906087564},{"$f":"'C-Diversion'!AX85*'C-Values and Rates'!AX230","v":136594.76564197327},{"$f":"'C-Diversion'!AY85*'C-Values and Rates'!AY230","v":136651.31287131005},{"$f":"'C-Diversion'!AZ85*'C-Values and Rates'!AZ230","v":136707.91079429135},{"$f":"'C-Diversion'!BA85*'C-Values and Rates'!BA230","v":136764.5594563632},{"$f":"'C-Diversion'!BB85*'C-Values and Rates'!BB230","v":136821.25890301223},{"$f":"'C-Diversion'!BC85*'C-Values and Rates'!BC230","v":136878.00917976603},{"$f":"'C-Diversion'!BD85*'C-Values and Rates'!BD230","v":136934.81033219304},{"$f":"'C-Diversion'!BE85*'C-Values and Rates'!BE230","v":136991.66240590226},{"$f":"'C-Diversion'!BF85*'C-Values and Rates'!BF230","v":137048.56544654391},{"$f":"'C-Diversion'!BG85*'C-Values and Rates'!BG230","v":137105.51949980884},{"$f":"'C-Diversion'!BH85*'C-Values and Rates'!BH230","v":137162.52461142919},{"$f":"'C-Diversion'!BI85*'C-Values and Rates'!BI230","v":137219.58082717785},{"$f":"'C-Diversion'!BJ85*'C-Values and Rates'!BJ230","v":137276.68819286878},{"$f":"'C-Diversion'!BK85*'C-Values and Rates'!BK230","v":137333.84675435713},{"$f":"'C-Diversion'!BL85*'C-Values and Rates'!BL230","v":137391.05655753895},{"$f":"'C-Diversion'!BM85*'C-Values and Rates'!BM230","v":137448.31764835166},{"$f":"'C-Diversion'!BN85*'C-Values and Rates'!BN230","v":137505.6300727737},{"$f":"'C-Diversion'!BO85*'C-Values and Rates'!BO230","v":137562.99387682488},{"$f":"'C-Diversion'!BP85*'C-Values and Rates'!BP230","v":137620.40910656611},{"$f":"'C-Diversion'!BQ85*'C-Values and Rates'!BQ230","v":137677.87580809972},{"$f":"'C-Diversion'!BR85*'C-Values and Rates'!BR230","v":137735.39402756919},{"$f":"'C-Diversion'!BS85*'C-Values and Rates'!BS230","v":137792.96381115954},{"$f":"'C-Diversion'!BT85*'C-Values and Rates'!BT230","v":137850.58520509722},{"$f":"'C-Diversion'!BU85*'C-Values and Rates'!BU230","v":137908.25825564997},{"$f":"'C-Diversion'!BV85*'C-Values and Rates'!BV230","v":137965.98300912711},{"$f":"'C-Diversion'!BW85*'C-Values and Rates'!BW230","v":138023.75951187938},{"$f":"'C-Diversion'!BX85*'C-Values and Rates'!BX230","v":0},{"$f":"'C-Diversion'!BY85*'C-Values and Rates'!BY230","v":0},{"$f":"'C-Diversion'!BZ85*'C-Values and Rates'!BZ230","v":0},{"$f":"'C-Diversion'!CA85*'C-Values and Rates'!CA230","v":0},{"$f":"'C-Diversion'!CB85*'C-Values and Rates'!CB230","v":0},{"$f":"'C-Diversion'!CC85*'C-Values and Rates'!CC230","v":0},{"$f":"'C-Diversion'!CD85*'C-Values and Rates'!CD230","v":0},{"$f":"'C-Diversion'!CE85*'C-Values and Rates'!CE230","v":0}]
[]
[null,null,null,"Fuel cost - Difference",null,null,null,null,null,null,"A positive value shows a fuel cost saving in the with scheme scenario"]
[null,null,null,"Cars",null,null,null,{"$f":"SUM(K40:CE40)","v":27101950.232474238},null,"pence, 2023 prices",{"$f":"-(K26-K33)","v":0},{"$f":"-(L26-L33)","v":0},0,0,0,730331.45335629,709630.94515000493,677322.14040019142,647741.54762607138,621437.77057973412,595918.81501739926,572012.74893008347,555757.27563078119,532988.33437400521,512162.74285566143,497064.16191741975,484405.0683046208,468996.75981675833,457984.05865406577,445590.76480542892,435438.40611287381,427819.82033051469,420113.76405797381,411397.74639563274,407737.30319046747,404583.18094249151,402046.91440707003,403244.50952028186,403888.97089064261,404534.51671649149,405181.14893321833,405828.86947987985,406477.68029920757,406939.48119707842,407401.86175970163,407864.82279889111,408328.36512771272,408792.48956049001,409257.19691280264,409722.48800149054,410188.36364465591,410654.82466166466,411121.87187314895,411589.50610100932,412057.72816841619,412526.53889981296,412995.93912091688,413465.9296587233,413936.51134150446,414407.68499881472,414879.45146149135,415351.81156165671,415824.7661327204,416298.31600938109,416772.46202762995,417247.2050247516,417722.54583932582,418198.48531123123,418675.02428164647,419152.16359305254,419629.904089235,420108.24661528564,420587.19201760599,421066.74114390765,421546.89484321658,{"$f":"-(BX26-BX33)","v":0},0,0,{"$f":"-(CA26-CA33)","v":0},0,0,0,0]
[null,null,null,"LGV",null,null,null,{"$f":"SUM(K41:CE41)","v":6418950.8369499268},null,"pence, 2023 prices",{"$f":"-(K27-K34)","v":0},0,0,0,0,103577.09398399958,101513.9702470054,98318.875114224938,96392.520614754671,95153.671845440083,93917.758399157348,93052.187607454311,93432.128566267638,92870.246598530823,92398.260420709761,92558.984858692667,93414.642598860606,93509.151493476384,94258.58832421244,94330.737638040693,94639.561795958027,94617.910163062799,95541.402839241462,94976.40760296493,95253.226469650341,95492.627886354778,95718.612249738988,96624.87388148914,97317.014764609165,98014.128104212956,98716.249733753182,99423.415745749953,100135.66249367007,101046.43583039969,101965.50816036158,102892.9552487621,103828.85355387814,104773.28023341057,105726.31315089512,106688.03088217299,107658.51272192047,108637.8386902388,109626.08953930408,110623.34676007886,111629.69258908503,112645.21001523924,113669.98278675057,114704.0954180822,115747.63319697662,116800.68219154565,117863.32925742544,118935.66204499721,120017.7690066745,121109.73940425708,122211.66331635276,123323.63164586748,124445.73612756355,125578.06933568808,126720.72469167132,127873.79647189545,129037.37981553523,130211.57073247012,131396.4661112699,132592.16372725298,{"$f":"-(BW27-BW34)","v":133798.76225061898},0,0,0,{"$f":"-(CA27-CA34)","v":0},0,0,0,0]
[null,null,null,"HGV - Artics",null,null,null,666993.29854207137,null,"pence, 2023 prices",{"$f":"-(K28-K35)","v":0},0,0,0,0,12555.538853451544,12447.591962558032,12145.393558443056,11986.995747249417,11826.159763016683,11674.077712973758,11531.752326685202,11400.594411439553,11295.434524661279,11201.780135246843,11120.413498793492,11051.590850332363,10994.441839478666,10946.261375906692,10906.75237064789,10874.134030419016,10846.837802884227,10823.615811056268,10800.604150440588,10785.86207436786,10772.751639971128,10760.974823110133,10750.141532863739,10768.201385361011,10786.293742453581,10804.418666053236,10822.576218194677,10840.766461035797,10853.035776200803,10865.321158173527,10877.622630101947,10889.940215169157,10902.273936593443,10914.623817628279,10926.989881562436,10939.37215172001,10951.770651460476,10964.185404178756,10976.616433305273,10989.063762305988,11001.527414682481,11014.007413971973,11026.503783747445,11039.01654761759,11051.545729226989,11064.09135225606,11076.653440421192,11089.232017474751,11101.827107205167,11114.438733436971,11127.066920030862,11139.711690883754,11152.373069928848,11165.05108113566,11177.745748510106,11190.457096094551,11203.185147967866,11215.929928245467,11228.691461079399,{"$f":"-(BW28-BW35)","v":11241.469770658365},0,0,0,{"$f":"-(CA28-CA35)","v":0},0,0,0,0]
[null,null,null,"HGV - Rigids",null,null,null,826320.40247433004,null,"pence, 2023 prices",{"$f":"-(K29-K36)","v":0},0,0,0,0,16998.960266492148,16728.100808452455,16024.712393471211,15520.906440874242,15060.671528837147,14657.270191611364,14298.988141160162,13993.843990332116,13762.340217133142,13583.388991547827,13451.679787163228,13360.887728123613,13299.934254836546,13260.200879393613,13236.199915958194,13223.081798124713,13217.918472861053,13218.181541452697,13218.122873967959,13229.746893899031,13243.412848791242,13258.611940918054,13274.939736395867,13297.241159387977,13319.582721065006,13341.964497879446,13364.386566435584,13386.849003489839,13401.999912798739,13417.170662395663,13432.361280865149,13447.571796835131,13462.802238976969,13478.052636005501,13493.323016679144,13508.613409799931,13523.923844213587,13539.254348809605,13554.604952521322,13569.97568432596,13585.366573244726,13600.777648342848,13616.208938729669,13631.660473558686,13647.132282027686,13662.624393378719,13678.13683689824,13693.669641917148,13709.222837810863,13724.796453999388,13740.390519947392,13756.005065164267,13771.640119204198,13787.295711666236,13802.971872194374,13818.668630477605,13834.386016250013,13850.1240592908,13865.882789424406,{"$f":"-(BW29-BW36)","v":13881.662236520544},0,0,0,{"$f":"-(CA29-CA36)","v":0},0,0,0,0]
[null,null,null,"PSV",null,null,null,5890984.0913931625,null,"pence, 2023 prices",{"$f":"-(K30-K37)","v":0},0,0,0,0,104969.53759582824,104142.37691077669,102523.28195826254,101808.86565842232,101452.49176923069,100988.40963062237,100150.57521750343,100003.5602195845,99740.051036109013,99179.698601271404,99057.75133267924,99204.474682416447,99003.781304300093,98836.3663392257,98540.022748818126,98327.274115167151,98125.395325423044,97811.284383175109,97454.141486851062,97232.136395646739,96975.107031440086,96744.232018764786,96594.717671853839,96634.280178339948,96673.878151950863,96713.511624482257,96753.180627758338,96792.885193631693,96832.625353983793,96872.401140724367,96912.212585791975,96952.05972115355,96991.942578804941,97031.861190770607,97071.815589103673,97111.80580588599,97151.83187322825,97191.893823269857,97231.991688178998,97272.125500152761,97312.29529141722,97352.501094227031,97392.742940866068,97433.020863646874,97473.334894911284,97513.685067029845,97554.071412402234,97594.493963457237,97634.95275265252,97675.447812475075,97715.979175440851,97756.546874095045,97797.150941011991,97837.791408795252,97878.4683100775,97919.181677520799,97959.931543816492,98000.717941685201,98041.540903876841,{"$f":"-(BW30-BW37)","v":98082.400463170663},0,0,0,{"$f":"-(CA30-CA37)","v":0},0,0,0,0]
[]
[null,null,null,"Fuel cost - Difference",null,null,null,null,null,null,"A positive value shows a fuel cost saving in the with scheme scenario"]
[null,null,null,"Cars",null,null,null,{"$f":"SUM(K47:CE47)","v":271019.50232474227},null,"£, 2023 prices",{"$f":"K40/Hundred","v":0},0,0,0,0,7303.3145335628997,7096.3094515000494,6773.2214040019144,6477.4154762607141,6214.3777057973412,5959.1881501739927,5720.1274893008349,5557.5727563078117,5329.8833437400517,5121.6274285566142,4970.6416191741973,4844.0506830462082,4689.9675981675837,4579.8405865406576,4455.907648054289,4354.3840611287378,4278.1982033051472,4201.1376405797382,4113.9774639563275,4077.3730319046749,4045.8318094249153,4020.4691440707002,4032.4450952028187,4038.8897089064262,4045.345167164915,4051.8114893321831,4058.2886947987986,{"$f":"AQ40/Hundred","v":4064.7768029920758},4069.3948119707843,4074.0186175970161,4078.648227988911,4083.2836512771273,4087.9248956049,4092.5719691280265,4097.2248800149055,4101.8836364465587,4106.5482466166468,4111.2187187314894,4115.8950610100928,4120.5772816841618,4125.2653889981293,4129.9593912091686,4134.6592965872333,4139.365113415045,4144.0768499881469,4148.7945146149132,4153.5181156165672,4158.2476613272038,4162.9831600938105,4167.7246202762999,4172.4720502475157,4177.2254583932581,4181.9848531123125,4186.7502428164644,4191.521635930525,4196.2990408923497,4201.0824661528568,4205.8719201760596,4210.6674114390762,4215.4689484321661,0,0,0,{"$f":"CA40/Hundred","v":0},0,0,0,0]
[null,null,null,"LGV",null,null,null,{"$f":"SUM(K48:CE48)","v":64189.508369499221},null,"£, 2023 prices",{"$f":"K41/Hundred","v":0},0,0,0,0,1035.7709398399959,1015.1397024700541,983.18875114224943,963.92520614754676,951.53671845440078,939.17758399157344,930.52187607454312,934.32128566267636,928.70246598530821,923.98260420709767,925.58984858692668,934.1464259886061,935.09151493476384,942.5858832421244,943.30737638040694,946.39561795958025,946.179101630628,955.41402839241459,949.76407602964935,952.53226469650338,954.92627886354774,957.18612249738987,966.24873881489145,973.17014764609166,980.14128104212955,987.16249733753182,994.23415745749958,{"$f":"AQ41/Hundred","v":1001.3566249367007},1010.4643583039968,1019.6550816036158,1028.9295524876209,1038.2885355387814,1047.7328023341056,1057.2631315089511,1066.8803088217298,1076.5851272192047,1086.378386902388,1096.2608953930408,1106.2334676007886,1116.2969258908502,1126.4521001523924,1136.6998278675057,1147.0409541808219,1157.4763319697661,1168.0068219154566,1178.6332925742545,1189.3566204499721,1200.1776900667451,1211.0973940425708,1222.1166331635277,1233.2363164586748,1244.4573612756355,1255.7806933568809,1267.2072469167133,1278.7379647189546,1290.3737981553522,1302.1157073247011,1313.9646611126989,1325.9216372725298,1337.9876225061898,0,0,0,{"$f":"CA41/Hundred","v":0},0,0,0,0]
[null,null,null,"HGV - Artics",null,null,null,6669.9329854207135,null,"£, 2023 prices",{"$f":"K42/Hundred","v":0},0,0,0,0,125.55538853451544,124.47591962558032,121.45393558443057,119.86995747249416,118.26159763016683,116.74077712973758,115.31752326685202,114.00594411439553,112.95434524661279,112.01780135246844,111.20413498793492,110.51590850332363,109.94441839478667,109.46261375906691,109.06752370647889,108.74134030419016,108.46837802884227,108.23615811056268,108.00604150440587,107.8586207436786,107.72751639971128,107.60974823110134,107.50141532863739,107.68201385361012,107.86293742453582,108.04418666053236,108.22576218194678,{"$f":"AQ42/Hundred","v":108.40766461035797},108.53035776200802,108.65321158173526,108.77622630101946,108.89940215169158,109.02273936593443,109.14623817628279,109.26989881562436,109.39372151720011,109.51770651460475,109.64185404178755,109.76616433305273,109.89063762305989,110.01527414682481,110.14007413971973,110.26503783747445,110.39016547617589,110.5154572922699,110.64091352256061,110.76653440421192,110.89232017474751,111.01827107205166,111.14438733436971,111.27066920030862,111.39711690883755,111.52373069928848,111.6505108113566,111.77745748510105,111.90457096094551,112.03185147967866,112.15929928245467,112.28691461079399,112.41469770658365,0,0,0,{"$f":"CA42/Hundred","v":0},0,0,0,0]
[null,null,null,"HGV - Rigids",null,null,null,8263.2040247433015,null,"£, 2023 prices",{"$f":"K43/Hundred","v":0},0,0,0,0,169.98960266492148,167.28100808452456,160.24712393471211,155.20906440874242,150.60671528837148,146.57270191611363,142.98988141160163,139.93843990332115,137.62340217133141,135.83388991547827,134.51679787163229,133.60887728123612,132.99934254836546,132.60200879393614,132.36199915958193,132.23081798124713,132.17918472861052,132.18181541452697,132.1812287396796,132.29746893899031,132.43412848791243,132.58611940918053,132.74939736395868,132.97241159387977,133.19582721065007,133.41964497879445,133.64386566435584,{"$f":"AQ43/Hundred","v":133.8684900348984},134.0199991279874,134.17170662395662,134.32361280865149,134.47571796835132,134.62802238976968,134.78052636005501,134.93323016679145,135.08613409799932,135.23923844213587,135.39254348809607,135.54604952521322,135.69975684325959,135.85366573244727,136.00777648342847,136.1620893872967,136.31660473558685,136.47132282027687,136.62624393378718,136.78136836898241,136.93669641917148,137.09222837810864,137.24796453999389,137.40390519947391,137.56005065164265,137.71640119204199,137.87295711666238,138.02971872194374,138.18668630477606,138.34386016250014,138.501240592908,138.65882789424407,138.81662236520543,0,0,0,{"$f":"CA43/Hundred","v":0},0,0,0,0]
[null,null,null,"PSV",null,null,null,58909.840913931606,null,"£, 2023 prices",{"$f":"K44/Hundred","v":0},0,0,0,0,1049.6953759582823,1041.4237691077669,1025.2328195826253,1018.0886565842233,1014.5249176923069,1009.8840963062237,1001.5057521750343,1000.0356021958449,997.40051036109014,991.796986012714,990.57751332679243,992.04474682416446,990.03781304300094,988.36366339225697,985.40022748818126,983.27274115167154,981.2539532542304,978.11284383175109,974.54141486851063,972.32136395646739,969.75107031440086,967.44232018764785,965.94717671853834,966.34280178339952,966.73878151950862,967.1351162448226,967.53180627758343,{"$f":"AQ44/Hundred","v":967.92885193631696},968.32625353983792,968.72401140724367,969.12212585791974,969.52059721153546,969.91942578804947,970.3186119077061,970.71815589103676,971.1180580588599,971.51831873228252,971.91893823269857,972.31991688178994,972.72125500152765,973.12295291417217,973.52501094227034,973.92742940866071,974.3302086364688,974.73334894911284,975.13685067029849,975.54071412402232,975.94493963457239,976.34952752652521,976.75447812475079,977.1597917544085,977.56546874095045,977.97150941011989,978.37791408795249,978.78468310077506,979.19181677520794,979.59931543816492,980.00717941685207,980.41540903876842,980.82400463170666,0,0,0,{"$f":"CA44/Hundred","v":0},0,0,0,0]
[]
[null,null,"Non-fuel costs"]
[]
[null,null,null,"Non-fuel cost - Scheme"]
[null,null,null,"Cars",null,null,null,{"$f":"SUM(K56:CE56)","v":6189083.2392851906},null,"pence, 2023 prices",{"$f":"'C-Diversion'!K74*'C-Values and Rates'!K263","v":0},{"$f":"'C-Diversion'!L74*'C-Values and Rates'!L263","v":0},{"$f":"'C-Diversion'!M74*'C-Values and Rates'!M263","v":0},{"$f":"'C-Diversion'!N74*'C-Values and Rates'!N263","v":0},{"$f":"'C-Diversion'!O74*'C-Values and Rates'!O263","v":0},{"$f":"'C-Diversion'!P74*'C-Values and Rates'!P263","v":143197.41838831178},{"$f":"'C-Diversion'!Q74*'C-Values and Rates'!Q263","v":139771.46290766395},{"$f":"'C-Diversion'!R74*'C-Values and Rates'!R263","v":135340.24140284961},{"$f":"'C-Diversion'!S74*'C-Values and Rates'!S263","v":130764.95748341628},{"$f":"'C-Diversion'!T74*'C-Values and Rates'!T263","v":126624.09595081031},{"$f":"'C-Diversion'!U74*'C-Values and Rates'!U263","v":122904.45952326436},{"$f":"'C-Diversion'!V74*'C-Values and Rates'!V263","v":119583.53544501282},{"$f":"'C-Diversion'!W74*'C-Values and Rates'!W263","v":116663.39046559851},{"$f":"'C-Diversion'!X74*'C-Values and Rates'!X263","v":113718.09930905519},{"$f":"'C-Diversion'!Y74*'C-Values and Rates'!Y263","v":111056.86911593132},{"$f":"'C-Diversion'!Z74*'C-Values and Rates'!Z263","v":108705.9089845635},{"$f":"'C-Diversion'!AA74*'C-Values and Rates'!AA263","v":106631.32363280769},{"$f":"'C-Diversion'!AB74*'C-Values and Rates'!AB263","v":104806.2205155437},{"$f":"'C-Diversion'!AC74*'C-Values and Rates'!AC263","v":103143.54709783186},{"$f":"'C-Diversion'!AD74*'C-Values and Rates'!AD263","v":101799.01149567161},{"$f":"'C-Diversion'!AE74*'C-Values and Rates'!AE263","v":100748.74601926013},{"$f":"'C-Diversion'!AF74*'C-Values and Rates'!AF263","v":99996.578492222281},{"$f":"'C-Diversion'!AG74*'C-Values and Rates'!AG263","v":99495.021083807922},{"$f":"'C-Diversion'!AH74*'C-Values and Rates'!AH263","v":99089.272774303579},{"$f":"'C-Diversion'!AI74*'C-Values and Rates'!AI263","v":98835.083185887459},{"$f":"'C-Diversion'!AJ74*'C-Values and Rates'!AJ263","v":98698.906069169709},{"$f":"'C-Diversion'!AK74*'C-Values and Rates'!AK263","v":98668.342184095614},{"$f":"'C-Diversion'!AL74*'C-Values and Rates'!AL263","v":98717.137595835753},{"$f":"'C-Diversion'!AM74*'C-Values and Rates'!AM263","v":98688.506272988307},{"$f":"'C-Diversion'!AN74*'C-Values and Rates'!AN263","v":98660.054897449052},{"$f":"'C-Diversion'!AO74*'C-Values and Rates'!AO263","v":98631.7834328709},{"$f":"'C-Diversion'!AP74*'C-Values and Rates'!AP263","v":98603.69184323636},{"$f":"'C-Diversion'!AQ74*'C-Values and Rates'!AQ263","v":98575.780092857327},{"$f":"'C-Diversion'!AR74*'C-Values and Rates'!AR263","v":98502.516721925756},{"$f":"'C-Diversion'!AS74*'C-Values and Rates'!AS263","v":98429.4796099839},{"$f":"'C-Diversion'!AT74*'C-Values and Rates'!AT263","v":98356.66844596497},{"$f":"'C-Diversion'!AU74*'C-Values and Rates'!AU263","v":98284.082919440305},{"$f":"'C-Diversion'!AV74*'C-Values and Rates'!AV263","v":98211.72272061852},{"$f":"'C-Diversion'!AW74*'C-Values and Rates'!AW263","v":98139.58754034419},{"$f":"'C-Diversion'!AX74*'C-Values and Rates'!AX263","v":98067.677070096965},{"$f":"'C-Diversion'!AY74*'C-Values and Rates'!AY263","v":97995.991001990507},{"$f":"'C-Diversion'!AZ74*'C-Values and Rates'!AZ263","v":97924.529028771474},{"$f":"'C-Diversion'!BA74*'C-Values and Rates'!BA263","v":97853.290843818322},{"$f":"'C-Diversion'!BB74*'C-Values and Rates'!BB263","v":97782.276141140494},{"$f":"'C-Diversion'!BC74*'C-Values and Rates'!BC263","v":97711.484615377194},{"$f":"'C-Diversion'!BD74*'C-Values and Rates'!BD263","v":97640.915961796389},{"$f":"'C-Diversion'!BE74*'C-Values and Rates'!BE263","v":97570.569876293914},{"$f":"'C-Diversion'!BF74*'C-Values and Rates'!BF263","v":97500.446055392211},{"$f":"'C-Diversion'!BG74*'C-Values and Rates'!BG263","v":97430.544196239483},{"$f":"'C-Diversion'!BH74*'C-Values and Rates'!BH263","v":97360.863996608576},{"$f":"'C-Diversion'!BI74*'C-Values and Rates'!BI263","v":97291.405154895969},{"$f":"'C-Diversion'!BJ74*'C-Values and Rates'!BJ263","v":97222.167370120762},{"$f":"'C-Diversion'!BK74*'C-Values and Rates'!BK263","v":97153.150341923625},{"$f":"'C-Diversion'!BL74*'C-Values and Rates'!BL263","v":97084.353770565809},{"$f":"'C-Diversion'!BM74*'C-Values and Rates'!BM263","v":97015.777356928113},{"$f":"'C-Diversion'!BN74*'C-Values and Rates'!BN263","v":96947.42080250982},{"$f":"'C-Diversion'!BO74*'C-Values and Rates'!BO263","v":96879.283809427754},{"$f":"'C-Diversion'!BP74*'C-Values and Rates'!BP263","v":96811.366080415246},{"$f":"'C-Diversion'!BQ74*'C-Values and Rates'!BQ263","v":96743.667318821099},{"$f":"'C-Diversion'!BR74*'C-Values and Rates'!BR263","v":96676.187228608615},{"$f":"'C-Diversion'!BS74*'C-Values and Rates'!BS263","v":96608.925514354487},{"$f":"'C-Diversion'!BT74*'C-Values and Rates'!BT263","v":96541.881881247944},{"$f":"'C-Diversion'!BU74*'C-Values and Rates'!BU263","v":96475.056035089612},{"$f":"'C-Diversion'!BV74*'C-Values and Rates'!BV263","v":96408.4476822906},{"$f":"'C-Diversion'!BW74*'C-Values and Rates'!BW263","v":96342.056529871494},{"$f":"'C-Diversion'!BX74*'C-Values and Rates'!BX263","v":0},{"$f":"'C-Diversion'!BY74*'C-Values and Rates'!BY263","v":0},{"$f":"'C-Diversion'!BZ74*'C-Values and Rates'!BZ263","v":0},{"$f":"'C-Diversion'!CA74*'C-Values and Rates'!CA263","v":0},{"$f":"'C-Diversion'!CB74*'C-Values and Rates'!CB263","v":0},{"$f":"'C-Diversion'!CC74*'C-Values and Rates'!CC263","v":0},{"$f":"'C-Diversion'!CD74*'C-Values and Rates'!CD263","v":0},{"$f":"'C-Diversion'!CE74*'C-Values and Rates'!CE263","v":0}]
[null,null,null,"LGV",null,null,null,{"$f":"SUM(K57:CE57)","v":3470821.801868964},null,"pence, 2023 prices",{"$f":"'C-Diversion'!K75*'C-Values and Rates'!K264","v":0},{"$f":"'C-Diversion'!L75*'C-Values and Rates'!L264","v":0},{"$f":"'C-Diversion'!M75*'C-Values and Rates'!M264","v":0},{"$f":"'C-Diversion'!N75*'C-Values and Rates'!N264","v":0},{"$f":"'C-Diversion'!O75*'C-Values and Rates'!O264","v":0},{"$f":"'C-Diversion'!P75*'C-Values and Rates'!P264","v":42510.10041261385},{"$f":"'C-Diversion'!Q75*'C-Values and Rates'!Q264","v":42846.138709702544},{"$f":"'C-Diversion'!R75*'C-Values and Rates'!R264","v":43184.833357541174},{"$f":"'C-Diversion'!S75*'C-Values and Rates'!S264","v":43717.336162784246},{"$f":"'C-Diversion'!T75*'C-Values and Rates'!T264","v":44256.405144519049},{"$f":"'C-Diversion'!U75*'C-Values and Rates'!U264","v":44802.121268842464},{"$f":"'C-Diversion'!V75*'C-Values and Rates'!V264","v":45354.566500226756},{"$f":"'C-Diversion'!W75*'C-Values and Rates'!W264","v":45913.823813830284},{"$f":"'C-Diversion'!X75*'C-Values and Rates'!X264","v":46572.503312345776},{"$f":"'C-Diversion'!Y75*'C-Values and Rates'!Y264","v":47240.632223820721},{"$f":"'C-Diversion'!Z75*'C-Values and Rates'!Z264","v":47918.346109488593},{"$f":"'C-Diversion'!AA75*'C-Values and Rates'!AA264","v":48605.782475343658},{"$f":"'C-Diversion'!AB75*'C-Values and Rates'!AB264","v":49303.08080004056},{"$f":"'C-Diversion'!AC75*'C-Values and Rates'!AC264","v":49870.225559317449},{"$f":"'C-Diversion'!AD75*'C-Values and Rates'!AD264","v":50443.894316136808},{"$f":"'C-Diversion'!AE75*'C-Values and Rates'!AE264","v":51024.162117553598},{"$f":"'C-Diversion'!AF75*'C-Values and Rates'!AF264","v":51611.104873906494},{"$f":"'C-Diversion'!AG75*'C-Values and Rates'!AG264","v":52204.799368748325},{"$f":"'C-Diversion'!AH75*'C-Values and Rates'!AH264","v":52579.646431701905},{"$f":"'C-Diversion'!AI75*'C-Values and Rates'!AI264","v":52957.185015785806},{"$f":"'C-Diversion'!AJ75*'C-Values and Rates'!AJ264","v":53337.434446977764},{"$f":"'C-Diversion'!AK75*'C-Values and Rates'!AK264","v":53720.414190022195},{"$f":"'C-Diversion'!AL75*'C-Values and Rates'!AL264","v":54106.143849426553},{"$f":"'C-Diversion'!AM75*'C-Values and Rates'!AM264","v":54481.791000449834},{"$f":"'C-Diversion'!AN75*'C-Values and Rates'!AN264","v":54860.04618767809},{"$f":"'C-Diversion'!AO75*'C-Values and Rates'!AO264","v":55240.927518137665},{"$f":"'C-Diversion'!AP75*'C-Values and Rates'!AP264","v":55624.453224568002},{"$f":"'C-Diversion'!AQ75*'C-Values and Rates'!AQ264","v":56010.641666294432},{"$f":"'C-Diversion'!AR75*'C-Values and Rates'!AR264","v":56507.670567347835},{"$f":"'C-Diversion'!AS75*'C-Values and Rates'!AS264","v":57009.110018274136},{"$f":"'C-Diversion'!AT75*'C-Values and Rates'!AT264","v":57514.999157542217},{"$f":"'C-Diversion'!AU75*'C-Values and Rates'!AU264","v":58025.377470929103},{"$f":"'C-Diversion'!AV75*'C-Values and Rates'!AV264","v":58540.284794601866},{"$f":"'C-Diversion'!AW75*'C-Values and Rates'!AW264","v":59059.761318226905},{"$f":"'C-Diversion'!AX75*'C-Values and Rates'!AX264","v":59583.847588106932},{"$f":"'C-Diversion'!AY75*'C-Values and Rates'!AY264","v":60112.584510345623},{"$f":"'C-Diversion'!AZ75*'C-Values and Rates'!AZ264","v":60646.013354040471},{"$f":"'C-Diversion'!BA75*'C-Values and Rates'!BA264","v":61184.175754503893},{"$f":"'C-Diversion'!BB75*'C-Values and Rates'!BB264","v":61727.11371651302},{"$f":"'C-Diversion'!BC75*'C-Values and Rates'!BC264","v":62274.869617588178},{"$f":"'C-Diversion'!BD75*'C-Values and Rates'!BD264","v":62827.486211300638},{"$f":"'C-Diversion'!BE75*'C-Values and Rates'!BE264","v":63385.00663060954},{"$f":"'C-Diversion'!BF75*'C-Values and Rates'!BF264","v":63947.474391228607},{"$f":"'C-Diversion'!BG75*'C-Values and Rates'!BG264","v":64514.933395022555},{"$f":"'C-Diversion'!BH75*'C-Values and Rates'!BH264","v":65087.427933433821},{"$f":"'C-Diversion'!BI75*'C-Values and Rates'!BI264","v":65665.002690939553},{"$f":"'C-Diversion'!BJ75*'C-Values and Rates'!BJ264","v":66247.70274853929},{"$f":"'C-Diversion'!BK75*'C-Values and Rates'!BK264","v":66835.573587273786},{"$f":"'C-Diversion'!BL75*'C-Values and Rates'!BL264","v":67428.661091774731},{"$f":"'C-Diversion'!BM75*'C-Values and Rates'!BM264","v":68027.011553846256},{"$f":"'C-Diversion'!BN75*'C-Values and Rates'!BN264","v":68630.671676078055},{"$f":"'C-Diversion'!BO75*'C-Values and Rates'!BO264","v":69239.688575490727},{"$f":"'C-Diversion'!BP75*'C-Values and Rates'!BP264","v":69854.109787213194},{"$f":"'C-Diversion'!BQ75*'C-Values and Rates'!BQ264","v":70473.983268193115},{"$f":"'C-Diversion'!BR75*'C-Values and Rates'!BR264","v":71099.357400939873},{"$f":"'C-Diversion'!BS75*'C-Values and Rates'!BS264","v":71730.280997301015},{"$f":"'C-Diversion'!BT75*'C-Values and Rates'!BT264","v":72366.803302272165},{"$f":"'C-Diversion'!BU75*'C-Values and Rates'!BU264","v":73008.973997840571},{"$f":"'C-Diversion'!BV75*'C-Values and Rates'!BV264","v":73656.843206863079},{"$f":"'C-Diversion'!BW75*'C-Values and Rates'!BW264","v":74310.461496978154},{"$f":"'C-Diversion'!BX75*'C-Values and Rates'!BX264","v":0},{"$f":"'C-Diversion'!BY75*'C-Values and Rates'!BY264","v":0},{"$f":"'C-Diversion'!BZ75*'C-Values and Rates'!BZ264","v":0},{"$f":"'C-Diversion'!CA75*'C-Values and Rates'!CA264","v":0},{"$f":"'C-Diversion'!CB75*'C-Values and Rates'!CB264","v":0},{"$f":"'C-Diversion'!CC75*'C-Values and Rates'!CC264","v":0},{"$f":"'C-Diversion'!CD75*'C-Values and Rates'!CD264","v":0},{"$f":"'C-Diversion'!CE75*'C-Values and Rates'!CE264","v":0}]
[null,null,null,"HGV - Artics",null,null,null,314153.29347511608,null,"pence, 2023 prices",{"$f":"'C-Diversion'!K76*'C-Values and Rates'!K265","v":0},{"$f":"'C-Diversion'!L76*'C-Values and Rates'!L265","v":0},{"$f":"'C-Diversion'!M76*'C-Values and Rates'!M265","v":0},{"$f":"'C-Diversion'!N76*'C-Values and Rates'!N265","v":0},{"$f":"'C-Diversion'!O76*'C-Values and Rates'!O265","v":0},{"$f":"'C-Diversion'!P76*'C-Values and Rates'!P265","v":5051.6040453473079},{"$f":"'C-Diversion'!Q76*'C-Values and Rates'!Q265","v":5057.8383945718406},{"$f":"'C-Diversion'!R76*'C-Values and Rates'!R265","v":5064.0804378099792},{"$f":"'C-Diversion'!S76*'C-Values and Rates'!S265","v":5067.0109898241308},{"$f":"'C-Diversion'!T76*'C-Values and Rates'!T265","v":5069.9432377306002},{"$f":"'C-Diversion'!U76*'C-Values and Rates'!U265","v":5072.877182510787},{"$f":"'C-Diversion'!V76*'C-Values and Rates'!V265","v":5075.8128251466651},{"$f":"'C-Diversion'!W76*'C-Values and Rates'!W265","v":5078.7501666207718},{"$f":"'C-Diversion'!X76*'C-Values and Rates'!X265","v":5088.1782349769182},{"$f":"'C-Diversion'!Y76*'C-Values and Rates'!Y265","v":5097.6238053699872},{"$f":"'C-Diversion'!Z76*'C-Values and Rates'!Z265","v":5107.0869102903316},{"$f":"'C-Diversion'!AA76*'C-Values and Rates'!AA265","v":5116.5675822886233},{"$f":"'C-Diversion'!AB76*'C-Values and Rates'!AB265","v":5126.0658539759606},{"$f":"'C-Diversion'!AC76*'C-Values and Rates'!AC265","v":5135.2206238765393},{"$f":"'C-Diversion'!AD76*'C-Values and Rates'!AD265","v":5144.3917435108751},{"$f":"'C-Diversion'!AE76*'C-Values and Rates'!AE265","v":5153.5792420783673},{"$f":"'C-Diversion'!AF76*'C-Values and Rates'!AF265","v":5162.7831488305665},{"$f":"'C-Diversion'!AG76*'C-Values and Rates'!AG265","v":5172.00349307126},{"$f":"'C-Diversion'!AH76*'C-Values and Rates'!AH265","v":5182.0942502527641},{"$f":"'C-Diversion'!AI76*'C-Values and Rates'!AI265","v":5192.2046948495263},{"$f":"'C-Diversion'!AJ76*'C-Values and Rates'!AJ265","v":5202.3348652723771},{"$f":"'C-Diversion'!AK76*'C-Values and Rates'!AK265","v":5212.4848000070788},{"$f":"'C-Diversion'!AL76*'C-Values and Rates'!AL265","v":5222.6545376144895},{"$f":"'C-Diversion'!AM76*'C-Values and Rates'!AM265","v":5229.1231180670729},{"$f":"'C-Diversion'!AN76*'C-Values and Rates'!AN265","v":5235.5997102563642},{"$f":"'C-Diversion'!AO76*'C-Values and Rates'!AO265","v":5242.0843241053935},{"$f":"'C-Diversion'!AP76*'C-Values and Rates'!AP265","v":5248.5769695494837},{"$f":"'C-Diversion'!AQ76*'C-Values and Rates'!AQ265","v":5255.0776565362621},{"$f":"'C-Diversion'!AR76*'C-Values and Rates'!AR265","v":5258.7016141470949},{"$f":"'C-Diversion'!AS76*'C-Values and Rates'!AS265","v":5262.3280708777547},{"$f":"'C-Diversion'!AT76*'C-Values and Rates'!AT265","v":5265.9570284516631},{"$f":"'C-Diversion'!AU76*'C-Values and Rates'!AU265","v":5269.5884885934247},{"$f":"'C-Diversion'!AV76*'C-Values and Rates'!AV265","v":5273.2224530288404},{"$f":"'C-Diversion'!AW76*'C-Values and Rates'!AW265","v":5276.858923484896},{"$f":"'C-Diversion'!AX76*'C-Values and Rates'!AX265","v":5280.4979016897714},{"$f":"'C-Diversion'!AY76*'C-Values and Rates'!AY265","v":5284.1393893728355},{"$f":"'C-Diversion'!AZ76*'C-Values and Rates'!AZ265","v":5287.7833882646519},{"$f":"'C-Diversion'!BA76*'C-Values and Rates'!BA265","v":5291.4299000969768},{"$f":"'C-Diversion'!BB76*'C-Values and Rates'!BB265","v":5295.0789266027614},{"$f":"'C-Diversion'!BC76*'C-Values and Rates'!BC265","v":5298.7304695161511},{"$f":"'C-Diversion'!BD76*'C-Values and Rates'!BD265","v":5302.3845305724872},{"$f":"'C-Diversion'!BE76*'C-Values and Rates'!BE265","v":5306.0411115083061},{"$f":"'C-Diversion'!BF76*'C-Values and Rates'!BF265","v":5309.7002140613486},{"$f":"'C-Diversion'!BG76*'C-Values and Rates'!BG265","v":5313.3618399705429},{"$f":"'C-Diversion'!BH76*'C-Values and Rates'!BH265","v":5317.0259909760252},{"$f":"'C-Diversion'!BI76*'C-Values and Rates'!BI265","v":5320.6926688191288},{"$f":"'C-Diversion'!BJ76*'C-Values and Rates'!BJ265","v":5324.3618752423863},{"$f":"'C-Diversion'!BK76*'C-Values and Rates'!BK265","v":5328.0336119895364},{"$f":"'C-Diversion'!BL76*'C-Values and Rates'!BL265","v":5331.7078808055157},{"$f":"'C-Diversion'!BM76*'C-Values and Rates'!BM265","v":5335.3846834364658},{"$f":"'C-Diversion'!BN76*'C-Values and Rates'!BN265","v":5339.0640216297325},{"$f":"'C-Diversion'!BO76*'C-Values and Rates'!BO265","v":5342.7458971338674},{"$f":"'C-Diversion'!BP76*'C-Values and Rates'!BP265","v":5346.4303116986275},{"$f":"'C-Diversion'!BQ76*'C-Values and Rates'!BQ265","v":5350.1172670749747},{"$f":"'C-Diversion'!BR76*'C-Values and Rates'!BR265","v":5353.8067650150797},{"$f":"'C-Diversion'!BS76*'C-Values and Rates'!BS265","v":5357.4988072723236},{"$f":"'C-Diversion'!BT76*'C-Values and Rates'!BT265","v":5361.1933956012936},{"$f":"'C-Diversion'!BU76*'C-Values and Rates'!BU265","v":5364.8905317577874},{"$f":"'C-Diversion'!BV76*'C-Values and Rates'!BV265","v":5368.590217498815},{"$f":"'C-Diversion'!BW76*'C-Values and Rates'!BW265","v":5372.2924545825954},{"$f":"'C-Diversion'!BX76*'C-Values and Rates'!BX265","v":0},{"$f":"'C-Diversion'!BY76*'C-Values and Rates'!BY265","v":0},{"$f":"'C-Diversion'!BZ76*'C-Values and Rates'!BZ265","v":0},{"$f":"'C-Diversion'!CA76*'C-Values and Rates'!CA265","v":0},{"$f":"'C-Diversion'!CB76*'C-Values and Rates'!CB265","v":0},{"$f":"'C-Diversion'!CC76*'C-Values and Rates'!CC265","v":0},{"$f":"'C-Diversion'!CD76*'C-Values and Rates'!CD265","v":0},{"$f":"'C-Diversion'!CE76*'C-Values and Rates'!CE265","v":0}]
[null,null,null,"HGV - Rigids",null,null,null,426865.35557673679,null,"pence, 2023 prices",{"$f":"'C-Diversion'!K77*'C-Values and Rates'!K266","v":0},{"$f":"'C-Diversion'!L77*'C-Values and Rates'!L266","v":0},{"$f":"'C-Diversion'!M77*'C-Values and Rates'!M266","v":0},{"$f":"'C-Diversion'!N77*'C-Values and Rates'!N266","v":0},{"$f":"'C-Diversion'!O77*'C-Values and Rates'!O266","v":0},{"$f":"'C-Diversion'!P77*'C-Values and Rates'!P266","v":6864.0208517211222},{"$f":"'C-Diversion'!Q77*'C-Values and Rates'!Q266","v":6872.4919636075574},{"$f":"'C-Diversion'!R77*'C-Values and Rates'!R266","v":6880.9735299693129},{"$f":"'C-Diversion'!S77*'C-Values and Rates'!S266","v":6884.9555067734354},{"$f":"'C-Diversion'!T77*'C-Values and Rates'!T266","v":6888.9397879228973},{"$f":"'C-Diversion'!U77*'C-Values and Rates'!U266","v":6892.9263747512041},{"$f":"'C-Diversion'!V77*'C-Values and Rates'!V266","v":6896.9152685926429},{"$f":"'C-Diversion'!W77*'C-Values and Rates'!W266","v":6900.9064707822645},{"$f":"'C-Diversion'!X77*'C-Values and Rates'!X266","v":6913.7171458088724},{"$f":"'C-Diversion'!Y77*'C-Values and Rates'!Y266","v":6926.5516022612028},{"$f":"'C-Diversion'!Z77*'C-Values and Rates'!Z266","v":6939.4098842865124},{"$f":"'C-Diversion'!AA77*'C-Values and Rates'!AA266","v":6952.2920361140177},{"$f":"'C-Diversion'!AB77*'C-Values and Rates'!AB266","v":6965.1981020550411},{"$f":"'C-Diversion'!AC77*'C-Values and Rates'!AC266","v":6977.6374244813815},{"$f":"'C-Diversion'!AD77*'C-Values and Rates'!AD266","v":6990.0989626064229},{"$f":"'C-Diversion'!AE77*'C-Values and Rates'!AE266","v":7002.5827561057386},{"$f":"'C-Diversion'!AF77*'C-Values and Rates'!AF266","v":7015.0888447257639},{"$f":"'C-Diversion'!AG77*'C-Values and Rates'!AG266","v":7027.6172682839124},{"$f":"'C-Diversion'!AH77*'C-Values and Rates'!AH266","v":7041.3283919352789},{"$f":"'C-Diversion'!AI77*'C-Values and Rates'!AI266","v":7055.0662664617412},{"$f":"'C-Diversion'!AJ77*'C-Values and Rates'!AJ266","v":7068.8309440551811},{"$f":"'C-Diversion'!AK77*'C-Values and Rates'!AK266","v":7082.6224770093077},{"$f":"'C-Diversion'!AL77*'C-Values and Rates'!AL266","v":7096.4409177198577},{"$f":"'C-Diversion'!AM77*'C-Values and Rates'!AM266","v":7105.2302984213129},{"$f":"'C-Diversion'!AN77*'C-Values and Rates'!AN266","v":7114.0305653140294},{"$f":"'C-Diversion'!AO77*'C-Values and Rates'!AO266","v":7122.8417318812299},{"$f":"'C-Diversion'!AP77*'C-Values and Rates'!AP266","v":7131.6638116228351},{"$f":"'C-Diversion'!AQ77*'C-Values and Rates'!AQ266","v":7140.4968180554861},{"$f":"'C-Diversion'!AR77*'C-Values and Rates'!AR266","v":7145.4209808329342},{"$f":"'C-Diversion'!AS77*'C-Values and Rates'!AS266","v":7150.3485393655637},{"$f":"'C-Diversion'!AT77*'C-Values and Rates'!AT266","v":7155.2794959951225},{"$f":"'C-Diversion'!AU77*'C-Values and Rates'!AU266","v":7160.2138530649745},{"$f":"'C-Diversion'!AV77*'C-Values and Rates'!AV266","v":7165.1516129201009},{"$f":"'C-Diversion'!AW77*'C-Values and Rates'!AW266","v":7170.0927779070953},{"$f":"'C-Diversion'!AX77*'C-Values and Rates'!AX266","v":7175.0373503741766},{"$f":"'C-Diversion'!AY77*'C-Values and Rates'!AY266","v":7179.9853326711773},{"$f":"'C-Diversion'!AZ77*'C-Values and Rates'!AZ266","v":7184.9367271495539},{"$f":"'C-Diversion'!BA77*'C-Values and Rates'!BA266","v":7189.8915361623831},{"$f":"'C-Diversion'!BB77*'C-Values and Rates'!BB266","v":7194.849762064362},{"$f":"'C-Diversion'!BC77*'C-Values and Rates'!BC266","v":7199.8114072118169},{"$f":"'C-Diversion'!BD77*'C-Values and Rates'!BD266","v":7204.7764739626946},{"$f":"'C-Diversion'!BE77*'C-Values and Rates'!BE266","v":7209.7449646765681},{"$f":"'C-Diversion'!BF77*'C-Values and Rates'!BF266","v":7214.7168817146412},{"$f":"'C-Diversion'!BG77*'C-Values and Rates'!BG266","v":7219.6922274397421},{"$f":"'C-Diversion'!BH77*'C-Values and Rates'!BH266","v":7224.6710042163286},{"$f":"'C-Diversion'!BI77*'C-Values and Rates'!BI266","v":7229.6532144104913},{"$f":"'C-Diversion'!BJ77*'C-Values and Rates'!BJ266","v":7234.6388603899532},{"$f":"'C-Diversion'!BK77*'C-Values and Rates'!BK266","v":7239.6279445240652},{"$f":"'C-Diversion'!BL77*'C-Values and Rates'!BL266","v":7244.6204691838193},{"$f":"'C-Diversion'!BM77*'C-Values and Rates'!BM266","v":7249.6164367418369},{"$f":"'C-Diversion'!BN77*'C-Values and Rates'!BN266","v":7254.6158495723785},{"$f":"'C-Diversion'!BO77*'C-Values and Rates'!BO266","v":7259.6187100513371},{"$f":"'C-Diversion'!BP77*'C-Values and Rates'!BP266","v":7264.6250205562528},{"$f":"'C-Diversion'!BQ77*'C-Values and Rates'!BQ266","v":7269.6347834662965},{"$f":"'C-Diversion'!BR77*'C-Values and Rates'!BR266","v":7274.6480011622862},{"$f":"'C-Diversion'!BS77*'C-Values and Rates'!BS266","v":7279.6646760266785},{"$f":"'C-Diversion'!BT77*'C-Values and Rates'!BT266","v":7284.684810443573},{"$f":"'C-Diversion'!BU77*'C-Values and Rates'!BU266","v":7289.7084067987162},{"$f":"'C-Diversion'!BV77*'C-Values and Rates'!BV266","v":7294.7354674794942},{"$f":"'C-Diversion'!BW77*'C-Values and Rates'!BW266","v":7299.7659948749442},{"$f":"'C-Diversion'!BX77*'C-Values and Rates'!BX266","v":0},{"$f":"'C-Diversion'!BY77*'C-Values and Rates'!BY266","v":0},{"$f":"'C-Diversion'!BZ77*'C-Values and Rates'!BZ266","v":0},{"$f":"'C-Diversion'!CA77*'C-Values and Rates'!CA266","v":0},{"$f":"'C-Diversion'!CB77*'C-Values and Rates'!CB266","v":0},{"$f":"'C-Diversion'!CC77*'C-Values and Rates'!CC266","v":0},{"$f":"'C-Diversion'!CD77*'C-Values and Rates'!CD266","v":0},{"$f":"'C-Diversion'!CE77*'C-Values and Rates'!CE266","v":0}]
[null,null,null,"PSV",null,null,null,5084392.1465634527,null,"pence, 2023 prices",{"$f":"'C-Diversion'!K78*'C-Values and Rates'!K267","v":0},{"$f":"'C-Diversion'!L78*'C-Values and Rates'!L267","v":0},{"$f":"'C-Diversion'!M78*'C-Values and Rates'!M267","v":0},{"$f":"'C-Diversion'!N78*'C-Values and Rates'!N267","v":0},{"$f":"'C-Diversion'!O78*'C-Values and Rates'!O267","v":0},{"$f":"'C-Diversion'!P78*'C-Values and Rates'!P267","v":84739.869109390871},{"$f":"'C-Diversion'!Q78*'C-Values and Rates'!Q267","v":84739.869109390871},{"$f":"'C-Diversion'!R78*'C-Values and Rates'!R267","v":84739.869109390871},{"$f":"'C-Diversion'!S78*'C-Values and Rates'!S267","v":84739.869109390871},{"$f":"'C-Diversion'!T78*'C-Values and Rates'!T267","v":84739.869109390871},{"$f":"'C-Diversion'!U78*'C-Values and Rates'!U267","v":84739.869109390871},{"$f":"'C-Diversion'!V78*'C-Values and Rates'!V267","v":84739.869109390871},{"$f":"'C-Diversion'!W78*'C-Values and Rates'!W267","v":84739.869109390871},{"$f":"'C-Diversion'!X78*'C-Values and Rates'!X267","v":84739.869109390871},{"$f":"'C-Diversion'!Y78*'C-Values and Rates'!Y267","v":84739.869109390871},{"$f":"'C-Diversion'!Z78*'C-Values and Rates'!Z267","v":84739.869109390871},{"$f":"'C-Diversion'!AA78*'C-Values and Rates'!AA267","v":84739.869109390871},{"$f":"'C-Diversion'!AB78*'C-Values and Rates'!AB267","v":84739.869109390871},{"$f":"'C-Diversion'!AC78*'C-Values and Rates'!AC267","v":84739.869109390871},{"$f":"'C-Diversion'!AD78*'C-Values and Rates'!AD267","v":84739.869109390871},{"$f":"'C-Diversion'!AE78*'C-Values and Rates'!AE267","v":84739.869109390871},{"$f":"'C-Diversion'!AF78*'C-Values and Rates'!AF267","v":84739.869109390871},{"$f":"'C-Diversion'!AG78*'C-Values and Rates'!AG267","v":84739.869109390871},{"$f":"'C-Diversion'!AH78*'C-Values and Rates'!AH267","v":84739.869109390871},{"$f":"'C-Diversion'!AI78*'C-Values and Rates'!AI267","v":84739.869109390871},{"$f":"'C-Diversion'!AJ78*'C-Values and Rates'!AJ267","v":84739.869109390871},{"$f":"'C-Diversion'!AK78*'C-Values and Rates'!AK267","v":84739.869109390871},{"$f":"'C-Diversion'!AL78*'C-Values and Rates'!AL267","v":84739.869109390871},{"$f":"'C-Diversion'!AM78*'C-Values and Rates'!AM267","v":84739.869109390871},{"$f":"'C-Diversion'!AN78*'C-Values and Rates'!AN267","v":84739.869109390871},{"$f":"'C-Diversion'!AO78*'C-Values and Rates'!AO267","v":84739.869109390871},{"$f":"'C-Diversion'!AP78*'C-Values and Rates'!AP267","v":84739.869109390871},{"$f":"'C-Diversion'!AQ78*'C-Values and Rates'!AQ267","v":84739.869109390871},{"$f":"'C-Diversion'!AR78*'C-Values and Rates'!AR267","v":84739.869109390871},{"$f":"'C-Diversion'!AS78*'C-Values and Rates'!AS267","v":84739.869109390871},{"$f":"'C-Diversion'!AT78*'C-Values and Rates'!AT267","v":84739.869109390871},{"$f":"'C-Diversion'!AU78*'C-Values and Rates'!AU267","v":84739.869109390871},{"$f":"'C-Diversion'!AV78*'C-Values and Rates'!AV267","v":84739.869109390871},{"$f":"'C-Diversion'!AW78*'C-Values and Rates'!AW267","v":84739.869109390871},{"$f":"'C-Diversion'!AX78*'C-Values and Rates'!AX267","v":84739.869109390871},{"$f":"'C-Diversion'!AY78*'C-Values and Rates'!AY267","v":84739.869109390871},{"$f":"'C-Diversion'!AZ78*'C-Values and Rates'!AZ267","v":84739.869109390871},{"$f":"'C-Diversion'!BA78*'C-Values and Rates'!BA267","v":84739.869109390871},{"$f":"'C-Diversion'!BB78*'C-Values and Rates'!BB267","v":84739.869109390871},{"$f":"'C-Diversion'!BC78*'C-Values and Rates'!BC267","v":84739.869109390871},{"$f":"'C-Diversion'!BD78*'C-Values and Rates'!BD267","v":84739.869109390871},{"$f":"'C-Diversion'!BE78*'C-Values and Rates'!BE267","v":84739.869109390871},{"$f":"'C-Diversion'!BF78*'C-Values and Rates'!BF267","v":84739.869109390871},{"$f":"'C-Diversion'!BG78*'C-Values and Rates'!BG267","v":84739.869109390871},{"$f":"'C-Diversion'!BH78*'C-Values and Rates'!BH267","v":84739.869109390871},{"$f":"'C-Diversion'!BI78*'C-Values and Rates'!BI267","v":84739.869109390871},{"$f":"'C-Diversion'!BJ78*'C-Values and Rates'!BJ267","v":84739.869109390871},{"$f":"'C-Diversion'!BK78*'C-Values and Rates'!BK267","v":84739.869109390871},{"$f":"'C-Diversion'!BL78*'C-Values and Rates'!BL267","v":84739.869109390871},{"$f":"'C-Diversion'!BM78*'C-Values and Rates'!BM267","v":84739.869109390871},{"$f":"'C-Diversion'!BN78*'C-Values and Rates'!BN267","v":84739.869109390871},{"$f":"'C-Diversion'!BO78*'C-Values and Rates'!BO267","v":84739.869109390871},{"$f":"'C-Diversion'!BP78*'C-Values and Rates'!BP267","v":84739.869109390871},{"$f":"'C-Diversion'!BQ78*'C-Values and Rates'!BQ267","v":84739.869109390871},{"$f":"'C-Diversion'!BR78*'C-Values and Rates'!BR267","v":84739.869109390871},{"$f":"'C-Diversion'!BS78*'C-Values and Rates'!BS267","v":84739.869109390871},{"$f":"'C-Diversion'!BT78*'C-Values and Rates'!BT267","v":84739.869109390871},{"$f":"'C-Diversion'!BU78*'C-Values and Rates'!BU267","v":84739.869109390871},{"$f":"'C-Diversion'!BV78*'C-Values and Rates'!BV267","v":84739.869109390871},{"$f":"'C-Diversion'!BW78*'C-Values and Rates'!BW267","v":84739.869109390871},{"$f":"'C-Diversion'!BX78*'C-Values and Rates'!BX267","v":0},{"$f":"'C-Diversion'!BY78*'C-Values and Rates'!BY267","v":0},{"$f":"'C-Diversion'!BZ78*'C-Values and Rates'!BZ267","v":0},{"$f":"'C-Diversion'!CA78*'C-Values and Rates'!CA267","v":0},{"$f":"'C-Diversion'!CB78*'C-Values and Rates'!CB267","v":0},{"$f":"'C-Diversion'!CC78*'C-Values and Rates'!CC267","v":0},{"$f":"'C-Diversion'!CD78*'C-Values and Rates'!CD267","v":0},{"$f":"'C-Diversion'!CE78*'C-Values and Rates'!CE267","v":0}]
[]
[null,null,null,"Non-fuel cost - Diversion"]
[null,null,null,"Cars",null,null,null,{"$f":"SUM(K63:CE63)","v":22842066.854067728},null,"pence, 2023 prices",{"$f":"'C-Diversion'!K81*'C-Values and Rates'!K268","v":0},{"$f":"'C-Diversion'!L81*'C-Values and Rates'!L268","v":0},{"$f":"'C-Diversion'!M81*'C-Values and Rates'!M268","v":0},{"$f":"'C-Diversion'!N81*'C-Values and Rates'!N268","v":0},{"$f":"'C-Diversion'!O81*'C-Values and Rates'!O268","v":0},{"$f":"'C-Diversion'!P81*'C-Values and Rates'!P268","v":552505.95507716748},{"$f":"'C-Diversion'!Q81*'C-Values and Rates'!Q268","v":537736.68841754075},{"$f":"'C-Diversion'!R81*'C-Values and Rates'!R268","v":518781.21782477107},{"$f":"'C-Diversion'!S81*'C-Values and Rates'!S268","v":499387.74757269496},{"$f":"'C-Diversion'!T81*'C-Values and Rates'!T268","v":481797.44624517416},{"$f":"'C-Diversion'!U81*'C-Values and Rates'!U268","v":465955.41472634545},{"$f":"'C-Diversion'!V81*'C-Values and Rates'!V268","v":451768.02091944811},{"$f":"'C-Diversion'!W81*'C-Values and Rates'!W268","v":439243.83150103211},{"$f":"'C-Diversion'!X81*'C-Values and Rates'!X268","v":426764.33835067612},{"$f":"'C-Diversion'!Y81*'C-Values and Rates'!Y268","v":415464.75334378949},{"$f":"'C-Diversion'!Z81*'C-Values and Rates'!Z268","v":405454.04510815901},{"$f":"'C-Diversion'!AA81*'C-Values and Rates'!AA268","v":396591.27455354371},{"$f":"'C-Diversion'!AB81*'C-Values and Rates'!AB268","v":388764.61920219468},{"$f":"'C-Diversion'!AC81*'C-Values and Rates'!AC268","v":381691.27349449805},{"$f":"'C-Diversion'!AD81*'C-Values and Rates'!AD268","v":375940.16590573487},{"$f":"'C-Diversion'!AE81*'C-Values and Rates'!AE268","v":371412.05523620453},{"$f":"'C-Diversion'!AF81*'C-Values and Rates'!AF268","v":368122.85530939297},{"$f":"'C-Diversion'!AG81*'C-Values and Rates'!AG268","v":365875.11485319276},{"$f":"'C-Diversion'!AH81*'C-Values and Rates'!AH268","v":364083.12216428923},{"$f":"'C-Diversion'!AI81*'C-Values and Rates'!AI268","v":362921.06439663417},{"$f":"'C-Diversion'!AJ81*'C-Values and Rates'!AJ268","v":362249.45927106094},{"$f":"'C-Diversion'!AK81*'C-Values and Rates'!AK268","v":362016.75154610834},{"$f":"'C-Diversion'!AL81*'C-Values and Rates'!AL268","v":362113.77961671923},{"$f":"'C-Diversion'!AM81*'C-Values and Rates'!AM268","v":361926.71938518545},{"$f":"'C-Diversion'!AN81*'C-Values and Rates'!AN268","v":361740.31166321709},{"$f":"'C-Diversion'!AO81*'C-Values and Rates'!AO268","v":361554.55616505287},{"$f":"'C-Diversion'!AP81*'C-Values and Rates'!AP268","v":361369.45260611211},{"$f":"'C-Diversion'!AQ81*'C-Values and Rates'!AQ268","v":361185.00070299424},{"$f":"'C-Diversion'!AR81*'C-Values and Rates'!AR268","v":360834.40946396149},{"$f":"'C-Diversion'!AS81*'C-Values and Rates'!AS268","v":360484.71557782323},{"$f":"'C-Diversion'!AT81*'C-Values and Rates'!AT268","v":360135.9177102074},{"$f":"'C-Diversion'!AU81*'C-Values and Rates'!AU268","v":359788.01452935627},{"$f":"'C-Diversion'!AV81*'C-Values and Rates'!AV268","v":359441.0047061232},{"$f":"'C-Diversion'!AW81*'C-Values and Rates'!AW268","v":359094.88691396703},{"$f":"'C-Diversion'!AX81*'C-Values and Rates'!AX268","v":358749.65982894838},{"$f":"'C-Diversion'!AY81*'C-Values and Rates'!AY268","v":358405.32212972507},{"$f":"'C-Diversion'!AZ81*'C-Values and Rates'!AZ268","v":358061.87249754806},{"$f":"'C-Diversion'!BA81*'C-Values and Rates'!BA268","v":357719.30961625645},{"$f":"'C-Diversion'!BB81*'C-Values and Rates'!BB268","v":357377.63217227359},{"$f":"'C-Diversion'!BC81*'C-Values and Rates'!BC268","v":357036.83885460265},{"$f":"'C-Diversion'!BD81*'C-Values and Rates'!BD268","v":356696.92835482204},{"$f":"'C-Diversion'!BE81*'C-Values and Rates'!BE268","v":356357.89936708153},{"$f":"'C-Diversion'!BF81*'C-Values and Rates'!BF268","v":356019.75058809732},{"$f":"'C-Diversion'!BG81*'C-Values and Rates'!BG268","v":355682.48071714834},{"$f":"'C-Diversion'!BH81*'C-Values and Rates'!BH268","v":355346.08845607127},{"$f":"'C-Diversion'!BI81*'C-Values and Rates'!BI268","v":355010.57250925683},{"$f":"'C-Diversion'!BJ81*'C-Values and Rates'!BJ268","v":354675.93158364535},{"$f":"'C-Diversion'!BK81*'C-Values and Rates'!BK268","v":354342.16438872198},{"$f":"'C-Diversion'!BL81*'C-Values and Rates'!BL268","v":354009.26963651303},{"$f":"'C-Diversion'!BM81*'C-Values and Rates'!BM268","v":353677.24604158138},{"$f":"'C-Diversion'!BN81*'C-Values and Rates'!BN268","v":353346.09232102236},{"$f":"'C-Diversion'!BO81*'C-Values and Rates'!BO268","v":353015.80719445914},{"$f":"'C-Diversion'!BP81*'C-Values and Rates'!BP268","v":352686.38938403898},{"$f":"'C-Diversion'!BQ81*'C-Values and Rates'!BQ268","v":352357.83761442872},{"$f":"'C-Diversion'!BR81*'C-Values and Rates'!BR268","v":352030.15061281057},{"$f":"'C-Diversion'!BS81*'C-Values and Rates'!BS268","v":351703.32710887765},{"$f":"'C-Diversion'!BT81*'C-Values and Rates'!BT268","v":351377.36583483027},{"$f":"'C-Diversion'!BU81*'C-Values and Rates'!BU268","v":351052.26552537119},{"$f":"'C-Diversion'!BV81*'C-Values and Rates'!BV268","v":350728.02491770184},{"$f":"'C-Diversion'!BW81*'C-Values and Rates'!BW268","v":350404.642751518},{"$f":"'C-Diversion'!BX81*'C-Values and Rates'!BX268","v":0},{"$f":"'C-Diversion'!BY81*'C-Values and Rates'!BY268","v":0},{"$f":"'C-Diversion'!BZ81*'C-Values and Rates'!BZ268","v":0},{"$f":"'C-Diversion'!CA81*'C-Values and Rates'!CA268","v":0},{"$f":"'C-Diversion'!CB81*'C-Values and Rates'!CB268","v":0},{"$f":"'C-Diversion'!CC81*'C-Values and Rates'!CC268","v":0},{"$f":"'C-Diversion'!CD81*'C-Values and Rates'!CD268","v":0},{"$f":"'C-Diversion'!CE81*'C-Values and Rates'!CE268","v":0}]
[null,null,null,"LGV",null,null,null,{"$f":"SUM(K64:CE64)","v":13253572.908878263},null,"pence, 2023 prices",{"$f":"'C-Diversion'!K82*'C-Values and Rates'!K269","v":0},{"$f":"'C-Diversion'!L82*'C-Values and Rates'!L269","v":0},{"$f":"'C-Diversion'!M82*'C-Values and Rates'!M269","v":0},{"$f":"'C-Diversion'!N82*'C-Values and Rates'!N269","v":0},{"$f":"'C-Diversion'!O82*'C-Values and Rates'!O269","v":0},{"$f":"'C-Diversion'!P82*'C-Values and Rates'!P269","v":162327.75617547659},{"$f":"'C-Diversion'!Q82*'C-Values and Rates'!Q269","v":163610.94163554319},{"$f":"'C-Diversion'!R82*'C-Values and Rates'!R269","v":164904.27055452103},{"$f":"'C-Diversion'!S82*'C-Values and Rates'!S269","v":166937.66931606823},{"$f":"'C-Diversion'!T82*'C-Values and Rates'!T269","v":168996.14147631853},{"$f":"'C-Diversion'!U82*'C-Values and Rates'!U269","v":171079.99620990819},{"$f":"'C-Diversion'!V82*'C-Values and Rates'!V269","v":173189.54650383891},{"$f":"'C-Diversion'!W82*'C-Values and Rates'!W269","v":175325.10920448703},{"$f":"'C-Diversion'!X82*'C-Values and Rates'!X269","v":177840.32238900076},{"$f":"'C-Diversion'!Y82*'C-Values and Rates'!Y269","v":180391.6188099217},{"$f":"'C-Diversion'!Z82*'C-Values and Rates'!Z269","v":182979.51611718812},{"$f":"'C-Diversion'!AA82*'C-Values and Rates'!AA269","v":185604.53938694182},{"$f":"'C-Diversion'!AB82*'C-Values and Rates'!AB269","v":188267.22122806447},{"$f":"'C-Diversion'!AC82*'C-Values and Rates'!AC269","v":190432.90268509486},{"$f":"'C-Diversion'!AD82*'C-Values and Rates'!AD269","v":192623.49647759573},{"$f":"'C-Diversion'!AE82*'C-Values and Rates'!AE269","v":194839.28917793281},{"$f":"'C-Diversion'!AF82*'C-Values and Rates'!AF269","v":197080.57065498014},{"$f":"'C-Diversion'!AG82*'C-Values and Rates'!AG269","v":199347.63411204063},{"$f":"'C-Diversion'!AH82*'C-Values and Rates'!AH269","v":200779.01352652369},{"$f":"'C-Diversion'!AI82*'C-Values and Rates'!AI269","v":202220.67070044606},{"$f":"'C-Diversion'!AJ82*'C-Values and Rates'!AJ269","v":203672.67943138935},{"$f":"'C-Diversion'!AK82*'C-Values and Rates'!AK269","v":205135.11404682527},{"$f":"'C-Diversion'!AL82*'C-Values and Rates'!AL269","v":206608.04940792033},{"$f":"'C-Diversion'!AM82*'C-Values and Rates'!AM269","v":208042.48401398928},{"$f":"'C-Diversion'!AN82*'C-Values and Rates'!AN269","v":209486.8775865408},{"$f":"'C-Diversion'!AO82*'C-Values and Rates'!AO269","v":210941.29926850621},{"$f":"'C-Diversion'!AP82*'C-Values and Rates'!AP269","v":212405.81868286111},{"$f":"'C-Diversion'!AQ82*'C-Values and Rates'!AQ269","v":213880.50593595809},{"$f":"'C-Diversion'!AR82*'C-Values and Rates'!AR269","v":215778.44514285825},{"$f":"'C-Diversion'!AS82*'C-Values and Rates'!AS269","v":217693.22633924839},{"$f":"'C-Diversion'!AT82*'C-Values and Rates'!AT269","v":219624.99897807674},{"$f":"'C-Diversion'!AU82*'C-Values and Rates'!AU269","v":221573.91383851145},{"$f":"'C-Diversion'!AV82*'C-Values and Rates'!AV269","v":223540.12303770962},{"$f":"'C-Diversion'!AW82*'C-Values and Rates'!AW269","v":225523.78004268976},{"$f":"'C-Diversion'!AX82*'C-Values and Rates'!AX269","v":227525.03968231077},{"$f":"'C-Diversion'!AY82*'C-Values and Rates'!AY269","v":229544.05815935638},{"$f":"'C-Diversion'!AZ82*'C-Values and Rates'!AZ269","v":231580.99306272753},{"$f":"'C-Diversion'!BA82*'C-Values and Rates'!BA269","v":233636.00337974186},{"$f":"'C-Diversion'!BB82*'C-Values and Rates'!BB269","v":235709.24950854364},{"$f":"'C-Diversion'!BC82*'C-Values and Rates'!BC269","v":237800.89327062294},{"$f":"'C-Diversion'!BD82*'C-Values and Rates'!BD269","v":239911.0979234461},{"$f":"'C-Diversion'!BE82*'C-Values and Rates'!BE269","v":242040.02817319849},{"$f":"'C-Diversion'!BF82*'C-Values and Rates'!BF269","v":244187.85018764014},{"$f":"'C-Diversion'!BG82*'C-Values and Rates'!BG269","v":246354.7316090755},{"$f":"'C-Diversion'!BH82*'C-Values and Rates'!BH269","v":248540.84156743821},{"$f":"'C-Diversion'!BI82*'C-Values and Rates'!BI269","v":250746.35069349239},{"$f":"'C-Diversion'!BJ82*'C-Values and Rates'!BJ269","v":252971.43113215023},{"$f":"'C-Diversion'!BK82*'C-Values and Rates'!BK269","v":255216.25655590888},{"$f":"'C-Diversion'!BL82*'C-Values and Rates'!BL269","v":257481.00217840532},{"$f":"'C-Diversion'!BM82*'C-Values and Rates'!BM269","v":259765.84476809268},{"$f":"'C-Diversion'!BN82*'C-Values and Rates'!BN269","v":262070.96266203746},{"$f":"'C-Diversion'!BO82*'C-Values and Rates'!BO269","v":264396.53577983862},{"$f":"'C-Diversion'!BP82*'C-Values and Rates'!BP269","v":266742.74563767121},{"$f":"'C-Diversion'!BQ82*'C-Values and Rates'!BQ269","v":269109.77536245383},{"$f":"'C-Diversion'!BR82*'C-Values and Rates'!BR269","v":271497.80970614223},{"$f":"'C-Diversion'!BS82*'C-Values and Rates'!BS269","v":273907.03506014962},{"$f":"'C-Diversion'!BT82*'C-Values and Rates'!BT269","v":276337.6394698947},{"$f":"'C-Diversion'!BU82*'C-Values and Rates'!BU269","v":278789.81264947943},{"$f":"'C-Diversion'!BV82*'C-Values and Rates'!BV269","v":281263.74599649641},{"$f":"'C-Diversion'!BW82*'C-Values and Rates'!BW269","v":283759.63260696764},{"$f":"'C-Diversion'!BX82*'C-Values and Rates'!BX269","v":0},{"$f":"'C-Diversion'!BY82*'C-Values and Rates'!BY269","v":0},{"$f":"'C-Diversion'!BZ82*'C-Values and Rates'!BZ269","v":0},{"$f":"'C-Diversion'!CA82*'C-Values and Rates'!CA269","v":0},{"$f":"'C-Diversion'!CB82*'C-Values and Rates'!CB269","v":0},{"$f":"'C-Diversion'!CC82*'C-Values and Rates'!CC269","v":0},{"$f":"'C-Diversion'!CD82*'C-Values and Rates'!CD269","v":0},{"$f":"'C-Diversion'!CE82*'C-Values and Rates'!CE269","v":0}]
[null,null,null,"HGV - Artics",null,null,null,1017318.2800788891,null,"pence, 2023 prices",{"$f":"'C-Diversion'!K83*'C-Values and Rates'!K270","v":0},{"$f":"'C-Diversion'!L83*'C-Values and Rates'!L270","v":0},{"$f":"'C-Diversion'!M83*'C-Values and Rates'!M270","v":0},{"$f":"'C-Diversion'!N83*'C-Values and Rates'!N270","v":0},{"$f":"'C-Diversion'!O83*'C-Values and Rates'!O270","v":0},{"$f":"'C-Diversion'!P83*'C-Values and Rates'!P270","v":16358.539750465319},{"$f":"'C-Diversion'!Q83*'C-Values and Rates'!Q270","v":16378.728357626986},{"$f":"'C-Diversion'!R83*'C-Values and Rates'!R270","v":16398.941880206861},{"$f":"'C-Diversion'!S83*'C-Values and Rates'!S270","v":16408.431846400559},{"$f":"'C-Diversion'!T83*'C-Values and Rates'!T270","v":16417.927304378976},{"$f":"'C-Diversion'!U83*'C-Values and Rates'!U270","v":16427.428257320167},{"$f":"'C-Diversion'!V83*'C-Values and Rates'!V270","v":16436.934708404035},{"$f":"'C-Diversion'!W83*'C-Values and Rates'!W270","v":16446.446660812326},{"$f":"'C-Diversion'!X83*'C-Values and Rates'!X270","v":16476.977444616765},{"$f":"'C-Diversion'!Y83*'C-Values and Rates'!Y270","v":16507.564905026127},{"$f":"'C-Diversion'!Z83*'C-Values and Rates'!Z270","v":16538.209147253474},{"$f":"'C-Diversion'!AA83*'C-Values and Rates'!AA270","v":16568.9102767072},{"$f":"'C-Diversion'!AB83*'C-Values and Rates'!AB270","v":16599.66839899138},{"$f":"'C-Diversion'!AC83*'C-Values and Rates'!AC270","v":16629.314164174204},{"$f":"'C-Diversion'!AD83*'C-Values and Rates'!AD270","v":16659.012874474498},{"$f":"'C-Diversion'!AE83*'C-Values and Rates'!AE270","v":16688.764624448268},{"$f":"'C-Diversion'!AF83*'C-Values and Rates'!AF270","v":16718.569508820408},{"$f":"'C-Diversion'!AG83*'C-Values and Rates'!AG270","v":16748.427622484975},{"$f":"'C-Diversion'!AH83*'C-Values and Rates'!AH270","v":16781.104382378293},{"$f":"'C-Diversion'!AI83*'C-Values and Rates'!AI270","v":16813.844895757076},{"$f":"'C-Diversion'!AJ83*'C-Values and Rates'!AJ270","v":16846.649287006589},{"$f":"'C-Diversion'!AK83*'C-Values and Rates'!AK270","v":16879.517680754743},{"$f":"'C-Diversion'!AL83*'C-Values and Rates'!AL270","v":16912.450201872634},{"$f":"'C-Diversion'!AM83*'C-Values and Rates'!AM270","v":16933.397316791536},{"$f":"'C-Diversion'!AN83*'C-Values and Rates'!AN270","v":16954.370376006984},{"$f":"'C-Diversion'!AO83*'C-Values and Rates'!AO270","v":16975.369411652595},{"$f":"'C-Diversion'!AP83*'C-Values and Rates'!AP270","v":16996.394455901791},{"$f":"'C-Diversion'!AQ83*'C-Values and Rates'!AQ270","v":17017.44554096783},{"$f":"'C-Diversion'!AR83*'C-Values and Rates'!AR270","v":17029.180952947594},{"$f":"'C-Diversion'!AS83*'C-Values and Rates'!AS270","v":17040.924457792651},{"$f":"'C-Diversion'!AT83*'C-Values and Rates'!AT270","v":17052.676061083926},{"$f":"'C-Diversion'!AU83*'C-Values and Rates'!AU270","v":17064.435768406187},{"$f":"'C-Diversion'!AV83*'C-Values and Rates'!AV270","v":17076.203585348074},{"$f":"'C-Diversion'!AW83*'C-Values and Rates'!AW270","v":17087.979517502052},{"$f":"'C-Diversion'!AX83*'C-Values and Rates'!AX270","v":17099.763570464467},{"$f":"'C-Diversion'!AY83*'C-Values and Rates'!AY270","v":17111.555749835516},{"$f":"'C-Diversion'!AZ83*'C-Values and Rates'!AZ270","v":17123.356061219249},{"$f":"'C-Diversion'!BA83*'C-Values and Rates'!BA270","v":17135.164510223593},{"$f":"'C-Diversion'!BB83*'C-Values and Rates'!BB270","v":17146.98110246034},{"$f":"'C-Diversion'!BC83*'C-Values and Rates'!BC270","v":17158.805843545153},{"$f":"'C-Diversion'!BD83*'C-Values and Rates'!BD270","v":17170.638739097558},{"$f":"'C-Diversion'!BE83*'C-Values and Rates'!BE270","v":17182.479794740961},{"$f":"'C-Diversion'!BF83*'C-Values and Rates'!BF270","v":17194.329016102656},{"$f":"'C-Diversion'!BG83*'C-Values and Rates'!BG270","v":17206.186408813803},{"$f":"'C-Diversion'!BH83*'C-Values and Rates'!BH270","v":17218.051978509455},{"$f":"'C-Diversion'!BI83*'C-Values and Rates'!BI270","v":17229.925730828541},{"$f":"'C-Diversion'!BJ83*'C-Values and Rates'!BJ270","v":17241.807671413892},{"$f":"'C-Diversion'!BK83*'C-Values and Rates'!BK270","v":17253.697805912223},{"$f":"'C-Diversion'!BL83*'C-Values and Rates'!BL270","v":17265.596139974139},{"$f":"'C-Diversion'!BM83*'C-Values and Rates'!BM270","v":17277.502679254154},{"$f":"'C-Diversion'!BN83*'C-Values and Rates'!BN270","v":17289.417429410674},{"$f":"'C-Diversion'!BO83*'C-Values and Rates'!BO270","v":17301.340396105999},{"$f":"'C-Diversion'!BP83*'C-Values and Rates'!BP270","v":17313.271585006354},{"$f":"'C-Diversion'!BQ83*'C-Values and Rates'!BQ270","v":17325.211001781845},{"$f":"'C-Diversion'!BR83*'C-Values and Rates'!BR270","v":17337.158652106511},{"$f":"'C-Diversion'!BS83*'C-Values and Rates'!BS270","v":17349.114541658291},{"$f":"'C-Diversion'!BT83*'C-Values and Rates'!BT270","v":17361.078676119054},{"$f":"'C-Diversion'!BU83*'C-Values and Rates'!BU270","v":17373.05106117457},{"$f":"'C-Diversion'!BV83*'C-Values and Rates'!BV270","v":17385.031702514534},{"$f":"'C-Diversion'!BW83*'C-Values and Rates'!BW270","v":17397.020605832571},{"$f":"'C-Diversion'!BX83*'C-Values and Rates'!BX270","v":0},{"$f":"'C-Diversion'!BY83*'C-Values and Rates'!BY270","v":0},{"$f":"'C-Diversion'!BZ83*'C-Values and Rates'!BZ270","v":0},{"$f":"'C-Diversion'!CA83*'C-Values and Rates'!CA270","v":0},{"$f":"'C-Diversion'!CB83*'C-Values and Rates'!CB270","v":0},{"$f":"'C-Diversion'!CC83*'C-Values and Rates'!CC270","v":0},{"$f":"'C-Diversion'!CD83*'C-Values and Rates'!CD270","v":0},{"$f":"'C-Diversion'!CE83*'C-Values and Rates'!CE270","v":0}]
[null,null,null,"HGV - Rigids",null,null,null,1383369.7831328467,null,"pence, 2023 prices",{"$f":"'C-Diversion'!K84*'C-Values and Rates'!K271","v":0},{"$f":"'C-Diversion'!L84*'C-Values and Rates'!L271","v":0},{"$f":"'C-Diversion'!M84*'C-Values and Rates'!M271","v":0},{"$f":"'C-Diversion'!N84*'C-Values and Rates'!N271","v":0},{"$f":"'C-Diversion'!O84*'C-Values and Rates'!O271","v":0},{"$f":"'C-Diversion'!P84*'C-Values and Rates'!P271","v":22244.670158896981},{"$f":"'C-Diversion'!Q84*'C-Values and Rates'!Q271","v":22272.12303147175},{"$f":"'C-Diversion'!R84*'C-Values and Rates'!R271","v":22299.609784531473},{"$f":"'C-Diversion'!S84*'C-Values and Rates'!S271","v":22312.514430729614},{"$f":"'C-Diversion'!T84*'C-Values and Rates'!T271","v":22325.426544766658},{"$f":"'C-Diversion'!U84*'C-Values and Rates'!U271","v":22338.346130964193},{"$f":"'C-Diversion'!V84*'C-Values and Rates'!V271","v":22351.273193646324},{"$f":"'C-Diversion'!W84*'C-Values and Rates'!W271","v":22364.207737139641},{"$f":"'C-Diversion'!X84*'C-Values and Rates'!X271","v":22405.724108758506},{"$f":"'C-Diversion'!Y84*'C-Values and Rates'!Y271","v":22447.317550360483},{"$f":"'C-Diversion'!Z84*'C-Values and Rates'!Z271","v":22488.988205016401},{"$f":"'C-Diversion'!AA84*'C-Values and Rates'!AA271","v":22530.736216062698},{"$f":"'C-Diversion'!AB84*'C-Values and Rates'!AB271","v":22572.561727101911},{"$f":"'C-Diversion'!AC84*'C-Values and Rates'!AC271","v":22612.87463266436},{"$f":"'C-Diversion'!AD84*'C-Values and Rates'!AD271","v":22653.259534058499},{"$f":"'C-Diversion'!AE84*'C-Values and Rates'!AE271","v":22693.716559863486},{"$f":"'C-Diversion'!AF84*'C-Values and Rates'!AF271","v":22734.245838888131},{"$f":"'C-Diversion'!AG84*'C-Values and Rates'!AG271","v":22774.847500171269},{"$f":"'C-Diversion'!AH84*'C-Values and Rates'!AH271","v":22819.282013078671},{"$f":"'C-Diversion'!AI84*'C-Values and Rates'!AI271","v":22863.803219253161},{"$f":"'C-Diversion'!AJ84*'C-Values and Rates'!AJ271","v":22908.411287836298},{"$f":"'C-Diversion'!AK84*'C-Values and Rates'!AK271","v":22953.106388299631},{"$f":"'C-Diversion'!AL84*'C-Values and Rates'!AL271","v":22997.888690445376},{"$f":"'C-Diversion'!AM84*'C-Values and Rates'!AM271","v":23026.372997068047},{"$f":"'C-Diversion'!AN84*'C-Values and Rates'!AN271","v":23054.89258326506},{"$f":"'C-Diversion'!AO84*'C-Values and Rates'!AO271","v":23083.44749273235},{"$f":"'C-Diversion'!AP84*'C-Values and Rates'!AP271","v":23112.037769219965},{"$f":"'C-Diversion'!AQ84*'C-Values and Rates'!AQ271","v":23140.663456532158},{"$f":"'C-Diversion'!AR84*'C-Values and Rates'!AR271","v":23156.621504906325},{"$f":"'C-Diversion'!AS84*'C-Values and Rates'!AS271","v":23172.590558120886},{"$f":"'C-Diversion'!AT84*'C-Values and Rates'!AT271","v":23188.570623764899},{"$f":"'C-Diversion'!AU84*'C-Values and Rates'!AU271","v":23204.561709432644},{"$f":"'C-Diversion'!AV84*'C-Values and Rates'!AV271","v":23220.56382272366},{"$f":"'C-Diversion'!AW84*'C-Values and Rates'!AW271","v":23236.576971242699},{"$f":"'C-Diversion'!AX84*'C-Values and Rates'!AX271","v":23252.601162599782},{"$f":"'C-Diversion'!AY84*'C-Values and Rates'!AY271","v":23268.636404410165},{"$f":"'C-Diversion'!AZ84*'C-Values and Rates'!AZ271","v":23284.682704294359},{"$f":"'C-Diversion'!BA84*'C-Values and Rates'!BA271","v":23300.740069878124},{"$f":"'C-Diversion'!BB84*'C-Values and Rates'!BB271","v":23316.808508792496},{"$f":"'C-Diversion'!BC84*'C-Values and Rates'!BC271","v":23332.888028673751},{"$f":"'C-Diversion'!BD84*'C-Values and Rates'!BD271","v":23348.978637163451},{"$f":"'C-Diversion'!BE84*'C-Values and Rates'!BE271","v":23365.080341908411},{"$f":"'C-Diversion'!BF84*'C-Values and Rates'!BF271","v":23381.193150560735},{"$f":"'C-Diversion'!BG84*'C-Values and Rates'!BG271","v":23397.317070777786},{"$f":"'C-Diversion'!BH84*'C-Values and Rates'!BH271","v":23413.452110222224},{"$f":"'C-Diversion'!BI84*'C-Values and Rates'!BI271","v":23429.598276561981},{"$f":"'C-Diversion'!BJ84*'C-Values and Rates'!BJ271","v":23445.755577470285},{"$f":"'C-Diversion'!BK84*'C-Values and Rates'!BK271","v":23461.924020625658},{"$f":"'C-Diversion'!BL84*'C-Values and Rates'!BL271","v":23478.103613711908},{"$f":"'C-Diversion'!BM84*'C-Values and Rates'!BM271","v":23494.294364418147},{"$f":"'C-Diversion'!BN84*'C-Values and Rates'!BN271","v":23510.496280438791},{"$f":"'C-Diversion'!BO84*'C-Values and Rates'!BO271","v":23526.709369473556},{"$f":"'C-Diversion'!BP84*'C-Values and Rates'!BP271","v":23542.933639227478},{"$f":"'C-Diversion'!BQ84*'C-Values and Rates'!BQ271","v":23559.169097410893},{"$f":"'C-Diversion'!BR84*'C-Values and Rates'!BR271","v":23575.415751739463},{"$f":"'C-Diversion'!BS84*'C-Values and Rates'!BS271","v":23591.673609934176},{"$f":"'C-Diversion'!BT84*'C-Values and Rates'!BT271","v":23607.942679721335},{"$f":"'C-Diversion'!BU84*'C-Values and Rates'!BU271","v":23624.222968832575},{"$f":"'C-Diversion'!BV84*'C-Values and Rates'!BV271","v":23640.514485004853},{"$f":"'C-Diversion'!BW84*'C-Values and Rates'!BW271","v":23656.817235980474},{"$f":"'C-Diversion'!BX84*'C-Values and Rates'!BX271","v":0},{"$f":"'C-Diversion'!BY84*'C-Values and Rates'!BY271","v":0},{"$f":"'C-Diversion'!BZ84*'C-Values and Rates'!BZ271","v":0},{"$f":"'C-Diversion'!CA84*'C-Values and Rates'!CA271","v":0},{"$f":"'C-Diversion'!CB84*'C-Values and Rates'!CB271","v":0},{"$f":"'C-Diversion'!CC84*'C-Values and Rates'!CC271","v":0},{"$f":"'C-Diversion'!CD84*'C-Values and Rates'!CD271","v":0},{"$f":"'C-Diversion'!CE84*'C-Values and Rates'!CE271","v":0}]
[null,null,null,"PSV",null,null,null,17282389.52229942,null,"pence, 2023 prices",{"$f":"'C-Diversion'!K85*'C-Values and Rates'!K272","v":0},{"$f":"'C-Diversion'!L85*'C-Values and Rates'!L272","v":0},{"$f":"'C-Diversion'!M85*'C-Values and Rates'!M272","v":0},{"$f":"'C-Diversion'!N85*'C-Values and Rates'!N272","v":0},{"$f":"'C-Diversion'!O85*'C-Values and Rates'!O272","v":0},{"$f":"'C-Diversion'!P85*'C-Values and Rates'!P272","v":288039.82537165732},{"$f":"'C-Diversion'!Q85*'C-Values and Rates'!Q272","v":288039.82537165732},{"$f":"'C-Diversion'!R85*'C-Values and Rates'!R272","v":288039.82537165732},{"$f":"'C-Diversion'!S85*'C-Values and Rates'!S272","v":288039.82537165732},{"$f":"'C-Diversion'!T85*'C-Values and Rates'!T272","v":288039.82537165732},{"$f":"'C-Diversion'!U85*'C-Values and Rates'!U272","v":288039.82537165732},{"$f":"'C-Diversion'!V85*'C-Values and Rates'!V272","v":288039.82537165732},{"$f":"'C-Diversion'!W85*'C-Values and Rates'!W272","v":288039.82537165732},{"$f":"'C-Diversion'!X85*'C-Values and Rates'!X272","v":288039.82537165732},{"$f":"'C-Diversion'!Y85*'C-Values and Rates'!Y272","v":288039.82537165732},{"$f":"'C-Diversion'!Z85*'C-Values and Rates'!Z272","v":288039.82537165732},{"$f":"'C-Diversion'!AA85*'C-Values and Rates'!AA272","v":288039.82537165732},{"$f":"'C-Diversion'!AB85*'C-Values and Rates'!AB272","v":288039.82537165732},{"$f":"'C-Diversion'!AC85*'C-Values and Rates'!AC272","v":288039.82537165732},{"$f":"'C-Diversion'!AD85*'C-Values and Rates'!AD272","v":288039.82537165732},{"$f":"'C-Diversion'!AE85*'C-Values and Rates'!AE272","v":288039.82537165732},{"$f":"'C-Diversion'!AF85*'C-Values and Rates'!AF272","v":288039.82537165732},{"$f":"'C-Diversion'!AG85*'C-Values and Rates'!AG272","v":288039.82537165732},{"$f":"'C-Diversion'!AH85*'C-Values and Rates'!AH272","v":288039.82537165732},{"$f":"'C-Diversion'!AI85*'C-Values and Rates'!AI272","v":288039.82537165732},{"$f":"'C-Diversion'!AJ85*'C-Values and Rates'!AJ272","v":288039.82537165732},{"$f":"'C-Diversion'!AK85*'C-Values and Rates'!AK272","v":288039.82537165732},{"$f":"'C-Diversion'!AL85*'C-Values and Rates'!AL272","v":288039.82537165732},{"$f":"'C-Diversion'!AM85*'C-Values and Rates'!AM272","v":288039.82537165732},{"$f":"'C-Diversion'!AN85*'C-Values and Rates'!AN272","v":288039.82537165732},{"$f":"'C-Diversion'!AO85*'C-Values and Rates'!AO272","v":288039.82537165732},{"$f":"'C-Diversion'!AP85*'C-Values and Rates'!AP272","v":288039.82537165732},{"$f":"'C-Diversion'!AQ85*'C-Values and Rates'!AQ272","v":288039.82537165732},{"$f":"'C-Diversion'!AR85*'C-Values and Rates'!AR272","v":288039.82537165732},{"$f":"'C-Diversion'!AS85*'C-Values and Rates'!AS272","v":288039.82537165732},{"$f":"'C-Diversion'!AT85*'C-Values and Rates'!AT272","v":288039.82537165732},{"$f":"'C-Diversion'!AU85*'C-Values and Rates'!AU272","v":288039.82537165732},{"$f":"'C-Diversion'!AV85*'C-Values and Rates'!AV272","v":288039.82537165732},{"$f":"'C-Diversion'!AW85*'C-Values and Rates'!AW272","v":288039.82537165732},{"$f":"'C-Diversion'!AX85*'C-Values and Rates'!AX272","v":288039.82537165732},{"$f":"'C-Diversion'!AY85*'C-Values and Rates'!AY272","v":288039.82537165732},{"$f":"'C-Diversion'!AZ85*'C-Values and Rates'!AZ272","v":288039.82537165732},{"$f":"'C-Diversion'!BA85*'C-Values and Rates'!BA272","v":288039.82537165732},{"$f":"'C-Diversion'!BB85*'C-Values and Rates'!BB272","v":288039.82537165732},{"$f":"'C-Diversion'!BC85*'C-Values and Rates'!BC272","v":288039.82537165732},{"$f":"'C-Diversion'!BD85*'C-Values and Rates'!BD272","v":288039.82537165732},{"$f":"'C-Diversion'!BE85*'C-Values and Rates'!BE272","v":288039.82537165732},{"$f":"'C-Diversion'!BF85*'C-Values and Rates'!BF272","v":288039.82537165732},{"$f":"'C-Diversion'!BG85*'C-Values and Rates'!BG272","v":288039.82537165732},{"$f":"'C-Diversion'!BH85*'C-Values and Rates'!BH272","v":288039.82537165732},{"$f":"'C-Diversion'!BI85*'C-Values and Rates'!BI272","v":288039.82537165732},{"$f":"'C-Diversion'!BJ85*'C-Values and Rates'!BJ272","v":288039.82537165732},{"$f":"'C-Diversion'!BK85*'C-Values and Rates'!BK272","v":288039.82537165732},{"$f":"'C-Diversion'!BL85*'C-Values and Rates'!BL272","v":288039.82537165732},{"$f":"'C-Diversion'!BM85*'C-Values and Rates'!BM272","v":288039.82537165732},{"$f":"'C-Diversion'!BN85*'C-Values and Rates'!BN272","v":288039.82537165732},{"$f":"'C-Diversion'!BO85*'C-Values and Rates'!BO272","v":288039.82537165732},{"$f":"'C-Diversion'!BP85*'C-Values and Rates'!BP272","v":288039.82537165732},{"$f":"'C-Diversion'!BQ85*'C-Values and Rates'!BQ272","v":288039.82537165732},{"$f":"'C-Diversion'!BR85*'C-Values and Rates'!BR272","v":288039.82537165732},{"$f":"'C-Diversion'!BS85*'C-Values and Rates'!BS272","v":288039.82537165732},{"$f":"'C-Diversion'!BT85*'C-Values and Rates'!BT272","v":288039.82537165732},{"$f":"'C-Diversion'!BU85*'C-Values and Rates'!BU272","v":288039.82537165732},{"$f":"'C-Diversion'!BV85*'C-Values and Rates'!BV272","v":288039.82537165732},{"$f":"'C-Diversion'!BW85*'C-Values and Rates'!BW272","v":288039.82537165732},{"$f":"'C-Diversion'!BX85*'C-Values and Rates'!BX272","v":0},{"$f":"'C-Diversion'!BY85*'C-Values and Rates'!BY272","v":0},{"$f":"'C-Diversion'!BZ85*'C-Values and Rates'!BZ272","v":0},{"$f":"'C-Diversion'!CA85*'C-Values and Rates'!CA272","v":0},{"$f":"'C-Diversion'!CB85*'C-Values and Rates'!CB272","v":0},{"$f":"'C-Diversion'!CC85*'C-Values and Rates'!CC272","v":0},{"$f":"'C-Diversion'!CD85*'C-Values and Rates'!CD272","v":0},{"$f":"'C-Diversion'!CE85*'C-Values and Rates'!CE272","v":0}]
[]
[null,null,null,"Non-fuel cost - Difference",null,null,null,null,null,null,"A positive value shows a fuel cost saving in the with scheme scenario"]
[null,null,null,"Cars",null,null,null,{"$f":"SUM(K70:CE70)","v":16652983.614782529},null,"pence, 2023 prices",{"$f":"-(K56-K63)","v":0},{"$f":"-(L56-L63)","v":0},0,0,0,409308.53668885573,397965.22550987679,383440.97642192146,368622.79008927871,355173.35029436386,343050.95520308107,332184.48547443526,322580.44103543361,313046.23904162092,304407.88422785816,296748.13612359553,289959.95092073601,283958.39868665097,278547.7263966662,274141.15441006329,270663.30921694438,268126.27681717067,266380.09376938484,264993.84938998567,264085.98121074669,263550.55320189125,263348.40936201275,263396.6420208835,263238.21311219712,263080.25676576805,262922.77273218194,262765.76076287578,262609.22061013692,262331.89274203574,262055.23596783931,261779.24926424242,261503.93160991598,261229.28198550467,260955.29937362284,260681.98275885143,260409.33112773456,260137.34346877658,259866.01877243811,259595.35603113309,259325.35423922545,259056.01239302565,258787.32949078761,258519.30453270511,258251.93652090884,257985.22445946268,257719.16735436086,257453.76421352458,257189.01404679834,256924.9158659472,256661.46868465329,256398.67151851254,256136.52338503138,255875.02330362372,255614.17029560762,255353.96338420195,255094.40159452317,254835.48395358233,254577.20949028159,254319.57723541124,254062.58622164652,{"$f":"-(BX56-BX63)","v":0},0,0,{"$f":"-(CA56-CA63)","v":0},0,0,0,0]
[null,null,null,"LGV",null,null,null,{"$f":"SUM(K71:CE71)","v":9782751.1070092972},null,"pence, 2023 prices",{"$f":"-(K57-K64)","v":0},0,0,0,0,119817.65576286273,120764.80292584065,121719.43719697985,123220.33315328398,124739.73633179948,126277.87494106573,127834.98000361215,129411.28539065675,131267.819076655,133150.98658610097,135061.17000769952,136998.75691159815,138964.14042802391,140562.67712577741,142179.60216145893,143815.12706037919,145469.46578107364,147142.8347432923,148199.36709482179,149263.48568466026,150335.24498441158,151414.69985680308,152501.90555849377,153560.69301353945,154626.83139886271,155700.37175036853,156781.36545829312,157869.86426966367,159270.77457551041,160684.11632097425,162109.99982053452,163548.53636758233,164999.83824310775,166464.01872446286,167941.19209420384,169431.47364901076,170934.97970868705,172451.82762523796,173982.1357920306,175526.02365303476,177083.61171214544,178655.02154258895,180240.37579641154,181839.79821405295,183453.41363400439,185081.34800255284,186723.72838361096,188380.68296863511,190052.34108663059,191738.83321424644,193440.29098595941,195156.8472043479,196888.635850458,198635.79209426072,200398.45230520237,202176.7540628486,203970.83616762253,205780.83865163886,207606.90278963331,{"$f":"-(BW57-BW64)","v":209449.17110998949},0,0,0,{"$f":"-(CA57-CA64)","v":0},0,0,0,0]
[null,null,null,"HGV - Artics",null,null,null,703164.98660377285,null,"pence, 2023 prices",{"$f":"-(K58-K65)","v":0},0,0,0,0,11306.935705118012,11320.889963055146,11334.861442396883,11341.420856576427,11347.984066648376,11354.55107480938,11361.121883257369,11367.696494191554,11388.799209639847,11409.94109965614,11431.122236963143,11452.342694418578,11473.602545015419,11494.093540297665,11514.621130963624,11535.1853823699,11555.786359989841,11576.424129413714,11599.010132125528,11621.64020090755,11644.314421734212,11667.032880747665,11689.795664258145,11704.274198724463,11718.770665750621,11733.285087547201,11747.817486352307,11762.367884431569,11770.479338800498,11778.596386914896,11786.719032632263,11794.847279812762,11802.981132319233,11811.120594017157,11819.265668774697,11827.416360462681,11835.572672954597,11843.734610126616,11851.90217585758,11860.075374029002,11868.254208525072,11876.438683232655,11884.628802041309,11892.82456884326,11901.02598753343,11909.233062009413,11917.445796171505,11925.664193922687,11933.888259168623,11942.117995817687,11950.353407780942,11958.594498972132,11966.841273307728,11975.09373470687,11983.35188709143,11991.615734385967,11999.885280517759,12008.160529416782,12016.441485015719,{"$f":"-(BW58-BW65)","v":12024.728151249976},0,0,0,{"$f":"-(CA58-CA65)","v":0},0,0,0,0]
[null,null,null,"HGV - Rigids",null,null,null,956504.4275561102,null,"pence, 2023 prices",{"$f":"-(K59-K66)","v":0},0,0,0,0,15380.64930717586,15399.631067864193,15418.63625456216,15427.558923956178,15436.486756843762,15445.419756212988,15454.357925053682,15463.301266357375,15492.006962949634,15520.765948099281,15549.578320729888,15578.444179948681,15607.36362504687,15635.237208182978,15663.160571452077,15691.133803757748,15719.156994162367,15747.230231887355,15777.953621143392,15808.73695279142,15839.580343781116,15870.483911290325,15901.447772725518,15921.142698646734,15940.862017951031,15960.60576085112,15980.37395759713,16000.166638476672,16011.200524073391,16022.242018755322,16033.291127769777,16044.347856367669,16055.412209803559,16066.484193335604,16077.563812225606,16088.651071738987,16099.745977144805,16110.84853371574,16121.958746728134,16133.076621461934,16144.202163200756,16155.335377231844,16166.476268846094,16177.624843338044,16188.781106005896,16199.94506215149,16211.116717080331,16222.296076101593,16233.483144528089,16244.67792767631,16255.880430866411,16267.090659422218,16278.308618671224,16289.534313944598,16300.767750577177,16312.008933907498,16323.257869277761,16334.514562033859,16345.779017525358,{"$f":"-(BW59-BW66)","v":16357.05124110553},0,0,0,{"$f":"-(CA59-CA66)","v":0},0,0,0,0]
[null,null,null,"PSV",null,null,null,12197997.37573598,null,"pence, 2023 prices",{"$f":"-(K60-K67)","v":0},0,0,0,0,203299.95626226644,203299.95626226644,203299.95626226644,203299.95626226644,203299.95626226644,203299.95626226644,203299.95626226644,203299.95626226644,203299.95626226644,203299.95626226644,203299.95626226644,203299.95626226644,203299.95626226644,203299.95626226644,203299.95626226644,203299.95626226644,203299.95626226644,203299.95626226644,203299.95626226644,203299.95626226644,203299.95626226644,203299.95626226644,203299.95626226644,203299.95626226644,203299.95626226644,203299.95626226644,203299.95626226644,203299.95626226644,203299.95626226644,203299.95626226644,203299.95626226644,203299.95626226644,203299.95626226644,203299.95626226644,203299.95626226644,203299.95626226644,203299.95626226644,203299.95626226644,203299.95626226644,203299.95626226644,203299.95626226644,203299.95626226644,203299.95626226644,203299.95626226644,203299.95626226644,203299.95626226644,203299.95626226644,203299.95626226644,203299.95626226644,203299.95626226644,203299.95626226644,203299.95626226644,203299.95626226644,203299.95626226644,203299.95626226644,203299.95626226644,203299.95626226644,203299.95626226644,203299.95626226644,{"$f":"-(BW60-BW67)","v":203299.95626226644},0,0,0,{"$f":"-(CA60-CA67)","v":0},0,0,0,0]
[]
[null,null,null,"Non-fuel cost - Difference",null,null,null,null,null,null,"A positive value shows a fuel cost saving in the with scheme scenario"]
[null,null,null,"Cars",null,null,null,{"$f":"SUM(K77:CE77)","v":166529.83614782535},null,"£, 2023 prices",{"$f":"K70/Hundred","v":0},0,0,0,0,4093.0853668885575,3979.6522550987679,3834.4097642192146,3686.2279008927871,3551.7335029436385,3430.5095520308109,3321.8448547443527,3225.8044103543361,3130.462390416209,3044.0788422785818,2967.4813612359553,2899.5995092073599,2839.5839868665098,2785.4772639666621,2741.4115441006329,2706.6330921694439,2681.2627681717067,2663.8009376938485,2649.9384938998569,2640.859812107467,2635.5055320189126,2633.4840936201276,2633.9664202088352,2632.3821311219713,2630.8025676576804,2629.2277273218192,2627.6576076287579,{"$f":"AQ70/Hundred","v":2626.0922061013694},2623.3189274203573,2620.5523596783933,2617.7924926424243,2615.0393160991598,2612.2928198550467,2609.5529937362285,2606.8198275885143,2604.0933112773455,2601.3734346877659,2598.6601877243811,2595.9535603113309,2593.2535423922545,2590.5601239302564,2587.8732949078762,2585.1930453270511,2582.5193652090884,2579.8522445946269,2577.1916735436084,2574.5376421352457,2571.8901404679837,2569.249158659472,2566.614686846533,2563.9867151851254,2561.3652338503139,2558.7502330362372,2556.1417029560762,2553.5396338420196,2550.9440159452315,2548.3548395358234,2545.7720949028158,2543.1957723541123,2540.6258622164651,0,0,0,{"$f":"CA70/Hundred","v":0},0,0,0,0]
[null,null,null,"LGV",null,null,null,{"$f":"SUM(K78:CE78)","v":97827.511070092965},null,"£, 2023 prices",{"$f":"K71/Hundred","v":0},0,0,0,0,1198.1765576286273,1207.6480292584065,1217.1943719697986,1232.2033315328399,1247.3973633179949,1262.7787494106574,1278.3498000361215,1294.1128539065676,1312.67819076655,1331.5098658610098,1350.6117000769952,1369.9875691159814,1389.6414042802392,1405.6267712577742,1421.7960216145893,1438.151270603792,1454.6946578107363,1471.4283474329231,1481.9936709482179,1492.6348568466026,1503.3524498441157,1514.1469985680308,1525.0190555849376,1535.6069301353946,1546.2683139886271,1557.0037175036853,1567.8136545829311,{"$f":"AQ71/Hundred","v":1578.6986426966366},1592.707745755104,1606.8411632097425,1621.0999982053452,1635.4853636758232,1649.9983824310775,1664.6401872446286,1679.4119209420385,1694.3147364901076,1709.3497970868705,1724.5182762523796,1739.8213579203061,1755.2602365303476,1770.8361171214544,1786.5502154258895,1802.4037579641154,1818.3979821405294,1834.5341363400439,1850.8134800255284,1867.2372838361096,1883.8068296863512,1900.523410866306,1917.3883321424644,1934.402909859594,1951.568472043479,1968.8863585045799,1986.3579209426071,2003.9845230520236,2021.7675406284861,2039.7083616762254,2057.8083865163885,2076.069027896333,2094.4917110998949,0,0,0,{"$f":"CA71/Hundred","v":0},0,0,0,0]
[null,null,null,"HGV - Artics",null,null,null,7031.6498660377356,null,"£, 2023 prices",{"$f":"K72/Hundred","v":0},0,0,0,0,113.06935705118012,113.20889963055146,113.34861442396883,113.41420856576427,113.47984066648377,113.5455107480938,113.61121883257368,113.67696494191554,113.88799209639846,114.0994109965614,114.31122236963144,114.52342694418577,114.73602545015419,114.94093540297665,115.14621130963624,115.351853823699,115.55786359989841,115.76424129413714,115.99010132125528,116.21640200907549,116.44314421734212,116.67032880747665,116.89795664258145,117.04274198724463,117.18770665750621,117.33285087547202,117.47817486352307,{"$f":"AQ72/Hundred","v":117.62367884431569},117.70479338800499,117.78596386914896,117.86719032632263,117.94847279812763,118.02981132319233,118.11120594017157,118.19265668774696,118.27416360462681,118.35572672954596,118.43734610126616,118.5190217585758,118.60075374029002,118.68254208525072,118.76438683232655,118.84628802041308,118.9282456884326,119.0102598753343,119.09233062009413,119.17445796171505,119.25664193922687,119.33888259168623,119.42117995817688,119.50353407780942,119.58594498972133,119.66841273307728,119.7509373470687,119.8335188709143,119.91615734385967,119.99885280517759,120.08160529416782,120.16441485015719,120.24728151249975,0,0,0,{"$f":"CA72/Hundred","v":0},0,0,0,0]
[null,null,null,"HGV - Rigids",null,null,null,9565.0442755610984,null,"£, 2023 prices",{"$f":"K73/Hundred","v":0},0,0,0,0,153.80649307175861,153.99631067864192,154.18636254562159,154.27558923956178,154.36486756843763,154.45419756212988,154.54357925053682,154.63301266357377,154.92006962949634,155.20765948099282,155.49578320729887,155.78444179948681,156.0736362504687,156.35237208182977,156.63160571452079,156.91133803757748,157.19156994162367,157.47230231887355,157.77953621143391,158.08736952791421,158.39580343781117,158.70483911290324,159.01447772725518,159.21142698646733,159.40862017951031,159.60605760851121,159.80373957597129,{"$f":"AQ73/Hundred","v":160.00166638476674},160.11200524073391,160.22242018755321,160.33291127769778,160.44347856367668,160.55412209803558,160.66484193335603,160.77563812225605,160.88651071738985,160.99745977144804,161.10848533715739,161.21958746728134,161.33076621461933,161.44202163200757,161.55335377231845,161.66476268846094,161.77624843338043,161.88781106005897,161.99945062151491,162.1111671708033,162.22296076101594,162.33483144528088,162.4467792767631,162.55880430866412,162.67090659422217,162.78308618671224,162.89534313944597,163.00767750577177,163.12008933907498,163.23257869277759,163.3451456203386,163.45779017525356,163.57051241105529,0,0,0,{"$f":"CA73/Hundred","v":0},0,0,0,0]
[null,null,null,"PSV",null,null,null,121979.97375735974,null,"£, 2023 prices",{"$f":"K74/Hundred","v":0},0,0,0,0,2032.9995626226644,2032.9995626226644,2032.9995626226644,2032.9995626226644,2032.9995626226644,2032.9995626226644,2032.9995626226644,2032.9995626226644,2032.9995626226644,2032.9995626226644,2032.9995626226644,2032.9995626226644,2032.9995626226644,2032.9995626226644,2032.9995626226644,2032.9995626226644,2032.9995626226644,2032.9995626226644,2032.9995626226644,2032.9995626226644,2032.9995626226644,2032.9995626226644,2032.9995626226644,2032.9995626226644,2032.9995626226644,2032.9995626226644,2032.9995626226644,{"$f":"AQ74/Hundred","v":2032.9995626226644},2032.9995626226644,2032.9995626226644,2032.9995626226644,2032.9995626226644,2032.9995626226644,2032.9995626226644,2032.9995626226644,2032.9995626226644,2032.9995626226644,2032.9995626226644,2032.9995626226644,2032.9995626226644,2032.9995626226644,2032.9995626226644,2032.9995626226644,2032.9995626226644,2032.9995626226644,2032.9995626226644,2032.9995626226644,2032.9995626226644,2032.9995626226644,2032.9995626226644,2032.9995626226644,2032.9995626226644,2032.9995626226644,2032.9995626226644,2032.9995626226644,2032.9995626226644,2032.9995626226644,2032.9995626226644,2032.9995626226644,2032.9995626226644,0,0,0,{"$f":"CA74/Hundred","v":0},0,0,0,0]
[]
[null,null,"External Impacts"]
[]
[null,null,null,"Cars"]
[null,null,null,"Congestion",null,null,null,{"$f":"SUM(K86:CE86)","v":7452235.8699655673},null,"£, 2023 prices",{"$f":"'C-Values and Rates'!K85*INDEX('C-Diversion'!K$88:K$92, MATCH($D$85,'C-Diversion'!$D$88:$D$92,0))","v":0},{"$f":"'C-Values and Rates'!L85*INDEX('C-Diversion'!L$88:L$92, MATCH($D$85,'C-Diversion'!$D$88:$D$92,0))","v":0},{"$f":"'C-Values and Rates'!M85*INDEX('C-Diversion'!M$88:M$92, MATCH($D$85,'C-Diversion'!$D$88:$D$92,0))","v":0},{"$f":"'C-Values and Rates'!N85*INDEX('C-Diversion'!N$88:N$92, MATCH($D$85,'C-Diversion'!$D$88:$D$92,0))","v":0},{"$f":"'C-Values and Rates'!O85*INDEX('C-Diversion'!O$88:O$92, MATCH($D$85,'C-Diversion'!$D$88:$D$92,0))","v":0},{"$f":"'C-Values and Rates'!P85*INDEX('C-Diversion'!P$88:P$92, MATCH($D$85,'C-Diversion'!$D$88:$D$92,0))","v":88825.654043654649},{"$f":"'C-Values and Rates'!Q85*INDEX('C-Diversion'!Q$88:Q$92, MATCH($D$85,'C-Diversion'!$D$88:$D$92,0))","v":90607.563748229062},{"$f":"'C-Values and Rates'!R85*INDEX('C-Diversion'!R$88:R$92, MATCH($D$85,'C-Diversion'!$D$88:$D$92,0))","v":92425.219907242194},{"$f":"'C-Values and Rates'!S85*INDEX('C-Diversion'!S$88:S$92, MATCH($D$85,'C-Diversion'!$D$88:$D$92,0))","v":93075.471548181376},{"$f":"'C-Values and Rates'!T85*INDEX('C-Diversion'!T$88:T$92, MATCH($D$85,'C-Diversion'!$D$88:$D$92,0))","v":93730.297992371954},{"$f":"'C-Values and Rates'!U85*INDEX('C-Diversion'!U$88:U$92, MATCH($D$85,'C-Diversion'!$D$88:$D$92,0))","v":94389.731425545557},{"$f":"'C-Values and Rates'!V85*INDEX('C-Diversion'!V$88:V$92, MATCH($D$85,'C-Diversion'!$D$88:$D$92,0))","v":95053.804259874392},{"$f":"'C-Values and Rates'!W85*INDEX('C-Diversion'!W$88:W$92, MATCH($D$85,'C-Diversion'!$D$88:$D$92,0))","v":95722.549135564463},{"$f":"'C-Values and Rates'!X85*INDEX('C-Diversion'!X$88:X$92, MATCH($D$85,'C-Diversion'!$D$88:$D$92,0))","v":97828.859106551492},{"$f":"'C-Values and Rates'!Y85*INDEX('C-Diversion'!Y$88:Y$92, MATCH($D$85,'C-Diversion'!$D$88:$D$92,0))","v":99981.517004270019},{"$f":"'C-Values and Rates'!Z85*INDEX('C-Diversion'!Z$88:Z$92, MATCH($D$85,'C-Diversion'!$D$88:$D$92,0))","v":102181.54268350951},{"$f":"'C-Values and Rates'!AA85*INDEX('C-Diversion'!AA$88:AA$92, MATCH($D$85,'C-Diversion'!$D$88:$D$92,0))","v":104429.97844027469},{"$f":"'C-Values and Rates'!AB85*INDEX('C-Diversion'!AB$88:AB$92, MATCH($D$85,'C-Diversion'!$D$88:$D$92,0))","v":106727.88950558909},{"$f":"'C-Values and Rates'!AC85*INDEX('C-Diversion'!AC$88:AC$92, MATCH($D$85,'C-Diversion'!$D$88:$D$92,0))","v":107657.45130537143},{"$f":"'C-Values and Rates'!AD85*INDEX('C-Diversion'!AD$88:AD$92, MATCH($D$85,'C-Diversion'!$D$88:$D$92,0))","v":108595.1092564374},{"$f":"'C-Values and Rates'!AE85*INDEX('C-Diversion'!AE$88:AE$92, MATCH($D$85,'C-Diversion'!$D$88:$D$92,0))","v":109540.93387337311},{"$f":"'C-Values and Rates'!AF85*INDEX('C-Diversion'!AF$88:AF$92, MATCH($D$85,'C-Diversion'!$D$88:$D$92,0))","v":110494.99628492152},{"$f":"'C-Values and Rates'!AG85*INDEX('C-Diversion'!AG$88:AG$92, MATCH($D$85,'C-Diversion'!$D$88:$D$92,0))","v":111457.36823933164},{"$f":"'C-Values and Rates'!AH85*INDEX('C-Diversion'!AH$88:AH$92, MATCH($D$85,'C-Diversion'!$D$88:$D$92,0))","v":112623.0798512333},{"$f":"'C-Values and Rates'!AI85*INDEX('C-Diversion'!AI$88:AI$92, MATCH($D$85,'C-Diversion'!$D$88:$D$92,0))","v":113800.98342122254},{"$f":"'C-Values and Rates'!AJ85*INDEX('C-Diversion'!AJ$88:AJ$92, MATCH($D$85,'C-Diversion'!$D$88:$D$92,0))","v":114991.20646269152},{"$f":"'C-Values and Rates'!AK85*INDEX('C-Diversion'!AK$88:AK$92, MATCH($D$85,'C-Diversion'!$D$88:$D$92,0))","v":116193.87782267113},{"$f":"'C-Values and Rates'!AL85*INDEX('C-Diversion'!AL$88:AL$92, MATCH($D$85,'C-Diversion'!$D$88:$D$92,0))","v":117409.12769577891},{"$f":"'C-Values and Rates'!AM85*INDEX('C-Diversion'!AM$88:AM$92, MATCH($D$85,'C-Diversion'!$D$88:$D$92,0))","v":119387.34166938001},{"$f":"'C-Values and Rates'!AN85*INDEX('C-Diversion'!AN$88:AN$92, MATCH($D$85,'C-Diversion'!$D$88:$D$92,0))","v":121398.88636097692},{"$f":"'C-Values and Rates'!AO85*INDEX('C-Diversion'!AO$88:AO$92, MATCH($D$85,'C-Diversion'!$D$88:$D$92,0))","v":123444.32335631146},{"$f":"'C-Values and Rates'!AP85*INDEX('C-Diversion'!AP$88:AP$92, MATCH($D$85,'C-Diversion'!$D$88:$D$92,0))","v":125524.22370322436},{"$f":"'C-Values and Rates'!AQ85*INDEX('C-Diversion'!AQ$88:AQ$92, MATCH($D$85,'C-Diversion'!$D$88:$D$92,0))","v":127639.16807108102},{"$f":"'C-Values and Rates'!AR85*INDEX('C-Diversion'!AR$88:AR$92, MATCH($D$85,'C-Diversion'!$D$88:$D$92,0))","v":129724.45977257629},{"$f":"'C-Values and Rates'!AS85*INDEX('C-Diversion'!AS$88:AS$92, MATCH($D$85,'C-Diversion'!$D$88:$D$92,0))","v":131843.81971147883},{"$f":"'C-Values and Rates'!AT85*INDEX('C-Diversion'!AT$88:AT$92, MATCH($D$85,'C-Diversion'!$D$88:$D$92,0))","v":133997.80447409241},{"$f":"'C-Values and Rates'!AU85*INDEX('C-Diversion'!AU$88:AU$92, MATCH($D$85,'C-Diversion'!$D$88:$D$92,0))","v":136186.97973989166},{"$f":"'C-Values and Rates'!AV85*INDEX('C-Diversion'!AV$88:AV$92, MATCH($D$85,'C-Diversion'!$D$88:$D$92,0))","v":138411.92043008126},{"$f":"'C-Values and Rates'!AW85*INDEX('C-Diversion'!AW$88:AW$92, MATCH($D$85,'C-Diversion'!$D$88:$D$92,0))","v":138542.6192964513},{"$f":"'C-Values and Rates'!AX85*INDEX('C-Diversion'!AX$88:AX$92, MATCH($D$85,'C-Diversion'!$D$88:$D$92,0))","v":138673.44157844631},{"$f":"'C-Values and Rates'!AY85*INDEX('C-Diversion'!AY$88:AY$92, MATCH($D$85,'C-Diversion'!$D$88:$D$92,0))","v":138804.38739260461},{"$f":"'C-Values and Rates'!AZ85*INDEX('C-Diversion'!AZ$88:AZ$92, MATCH($D$85,'C-Diversion'!$D$88:$D$92,0))","v":138935.45685557448},{"$f":"'C-Values and Rates'!BA85*INDEX('C-Diversion'!BA$88:BA$92, MATCH($D$85,'C-Diversion'!$D$88:$D$92,0))","v":139066.65008411431},{"$f":"'C-Values and Rates'!BB85*INDEX('C-Diversion'!BB$88:BB$92, MATCH($D$85,'C-Diversion'!$D$88:$D$92,0))","v":139197.96719509282},{"$f":"'C-Values and Rates'!BC85*INDEX('C-Diversion'!BC$88:BC$92, MATCH($D$85,'C-Diversion'!$D$88:$D$92,0))","v":139329.40830548908},{"$f":"'C-Values and Rates'!BD85*INDEX('C-Diversion'!BD$88:BD$92, MATCH($D$85,'C-Diversion'!$D$88:$D$92,0))","v":139460.97353239256},{"$f":"'C-Values and Rates'!BE85*INDEX('C-Diversion'!BE$88:BE$92, MATCH($D$85,'C-Diversion'!$D$88:$D$92,0))","v":139592.66299300332},{"$f":"'C-Values and Rates'!BF85*INDEX('C-Diversion'!BF$88:BF$92, MATCH($D$85,'C-Diversion'!$D$88:$D$92,0))","v":139724.47680463214},{"$f":"'C-Values and Rates'!BG85*INDEX('C-Diversion'!BG$88:BG$92, MATCH($D$85,'C-Diversion'!$D$88:$D$92,0))","v":139856.41508470054},{"$f":"'C-Values and Rates'!BH85*INDEX('C-Diversion'!BH$88:BH$92, MATCH($D$85,'C-Diversion'!$D$88:$D$92,0))","v":139988.47795074081},{"$f":"'C-Values and Rates'!BI85*INDEX('C-Diversion'!BI$88:BI$92, MATCH($D$85,'C-Diversion'!$D$88:$D$92,0))","v":140120.66552039643},{"$f":"'C-Values and Rates'!BJ85*INDEX('C-Diversion'!BJ$88:BJ$92, MATCH($D$85,'C-Diversion'!$D$88:$D$92,0))","v":140252.97791142183},{"$f":"'C-Values and Rates'!BK85*INDEX('C-Diversion'!BK$88:BK$92, MATCH($D$85,'C-Diversion'!$D$88:$D$92,0))","v":140385.41524168267},{"$f":"'C-Values and Rates'!BL85*INDEX('C-Diversion'!BL$88:BL$92, MATCH($D$85,'C-Diversion'!$D$88:$D$92,0))","v":140517.97762915585},{"$f":"'C-Values and Rates'!BM85*INDEX('C-Diversion'!BM$88:BM$92, MATCH($D$85,'C-Diversion'!$D$88:$D$92,0))","v":140650.66519192979},{"$f":"'C-Values and Rates'!BN85*INDEX('C-Diversion'!BN$88:BN$92, MATCH($D$85,'C-Diversion'!$D$88:$D$92,0))","v":140783.47804820433},{"$f":"'C-Values and Rates'!BO85*INDEX('C-Diversion'!BO$88:BO$92, MATCH($D$85,'C-Diversion'!$D$88:$D$92,0))","v":140916.41631629094},{"$f":"'C-Values and Rates'!BP85*INDEX('C-Diversion'!BP$88:BP$92, MATCH($D$85,'C-Diversion'!$D$88:$D$92,0))","v":141049.48011461282},{"$f":"'C-Values and Rates'!BQ85*INDEX('C-Diversion'!BQ$88:BQ$92, MATCH($D$85,'C-Diversion'!$D$88:$D$92,0))","v":141182.66956170497},{"$f":"'C-Values and Rates'!BR85*INDEX('C-Diversion'!BR$88:BR$92, MATCH($D$85,'C-Diversion'!$D$88:$D$92,0))","v":141315.98477621435},{"$f":"'C-Values and Rates'!BS85*INDEX('C-Diversion'!BS$88:BS$92, MATCH($D$85,'C-Diversion'!$D$88:$D$92,0))","v":141449.42587689997},{"$f":"'C-Values and Rates'!BT85*INDEX('C-Diversion'!BT$88:BT$92, MATCH($D$85,'C-Diversion'!$D$88:$D$92,0))","v":141582.99298263292},{"$f":"'C-Values and Rates'!BU85*INDEX('C-Diversion'!BU$88:BU$92, MATCH($D$85,'C-Diversion'!$D$88:$D$92,0))","v":141716.6862123966},{"$f":"'C-Values and Rates'!BV85*INDEX('C-Diversion'!BV$88:BV$92, MATCH($D$85,'C-Diversion'!$D$88:$D$92,0))","v":141850.50568528665},{"$f":"'C-Values and Rates'!BW85*INDEX('C-Diversion'!BW$88:BW$92, MATCH($D$85,'C-Diversion'!$D$88:$D$92,0))","v":141984.45152051139},{"$f":"'C-Values and Rates'!BX85*INDEX('C-Diversion'!BX$88:BX$92, MATCH($D$85,'C-Diversion'!$D$88:$D$92,0))","v":0},{"$f":"'C-Values and Rates'!BY85*INDEX('C-Diversion'!BY$88:BY$92, MATCH($D$85,'C-Diversion'!$D$88:$D$92,0))","v":0},{"$f":"'C-Values and Rates'!BZ85*INDEX('C-Diversion'!BZ$88:BZ$92, MATCH($D$85,'C-Diversion'!$D$88:$D$92,0))","v":0},{"$f":"'C-Values and Rates'!CA85*INDEX('C-Diversion'!CA$88:CA$92, MATCH($D$85,'C-Diversion'!$D$88:$D$92,0))","v":0},{"$f":"'C-Values and Rates'!CB85*INDEX('C-Diversion'!CB$88:CB$92, MATCH($D$85,'C-Diversion'!$D$88:$D$92,0))","v":0},{"$f":"'C-Values and Rates'!CC85*INDEX('C-Diversion'!CC$88:CC$92, MATCH($D$85,'C-Diversion'!$D$88:$D$92,0))","v":0},{"$f":"'C-Values and Rates'!CD85*INDEX('C-Diversion'!CD$88:CD$92, MATCH($D$85,'C-Diversion'!$D$88:$D$92,0))","v":0},{"$f":"'C-Values and Rates'!CE85*INDEX('C-Diversion'!CE$88:CE$92, MATCH($D$85,'C-Diversion'!$D$88:$D$92,0))","v":0}]
[null,null,null,"Infrastructure",null,null,null,{"$f":"SUM(K87:CE87)","v":11546.245216030282},null,"£, 2023 prices",{"$f":"'C-Values and Rates'!K86*INDEX('C-Diversion'!K$88:K$92, MATCH($D$85,'C-Diversion'!$D$88:$D$92,0))","v":0},{"$f":"'C-Values and Rates'!L86*INDEX('C-Diversion'!L$88:L$92, MATCH($D$85,'C-Diversion'!$D$88:$D$92,0))","v":0},{"$f":"'C-Values and Rates'!M86*INDEX('C-Diversion'!M$88:M$92, MATCH($D$85,'C-Diversion'!$D$88:$D$92,0))","v":0},{"$f":"'C-Values and Rates'!N86*INDEX('C-Diversion'!N$88:N$92, MATCH($D$85,'C-Diversion'!$D$88:$D$92,0))","v":0},{"$f":"'C-Values and Rates'!O86*INDEX('C-Diversion'!O$88:O$92, MATCH($D$85,'C-Diversion'!$D$88:$D$92,0))","v":0},{"$f":"'C-Values and Rates'!P86*INDEX('C-Diversion'!P$88:P$92, MATCH($D$85,'C-Diversion'!$D$88:$D$92,0))","v":121.5056852580968},{"$f":"'C-Values and Rates'!Q86*INDEX('C-Diversion'!Q$88:Q$92, MATCH($D$85,'C-Diversion'!$D$88:$D$92,0))","v":124.73276147725429},{"$f":"'C-Values and Rates'!R86*INDEX('C-Diversion'!R$88:R$92, MATCH($D$85,'C-Diversion'!$D$88:$D$92,0))","v":128.04554579230978},{"$f":"'C-Values and Rates'!S86*INDEX('C-Diversion'!S$88:S$92, MATCH($D$85,'C-Diversion'!$D$88:$D$92,0))","v":131.08147842195172},{"$f":"'C-Values and Rates'!T86*INDEX('C-Diversion'!T$88:T$92, MATCH($D$85,'C-Diversion'!$D$88:$D$92,0))","v":134.18939236788776},{"$f":"'C-Values and Rates'!U86*INDEX('C-Diversion'!U$88:U$92, MATCH($D$85,'C-Diversion'!$D$88:$D$92,0))","v":137.37099429180228},{"$f":"'C-Values and Rates'!V86*INDEX('C-Diversion'!V$88:V$92, MATCH($D$85,'C-Diversion'!$D$88:$D$92,0))","v":140.62803131996486},{"$f":"'C-Values and Rates'!W86*INDEX('C-Diversion'!W$88:W$92, MATCH($D$85,'C-Diversion'!$D$88:$D$92,0))","v":143.96229200263704},{"$f":"'C-Values and Rates'!X86*INDEX('C-Diversion'!X$88:X$92, MATCH($D$85,'C-Diversion'!$D$88:$D$92,0))","v":146.95844370827854},{"$f":"'C-Values and Rates'!Y86*INDEX('C-Diversion'!Y$88:Y$92, MATCH($D$85,'C-Diversion'!$D$88:$D$92,0))","v":150.01695149979739},{"$f":"'C-Values and Rates'!Z86*INDEX('C-Diversion'!Z$88:Z$92, MATCH($D$85,'C-Diversion'!$D$88:$D$92,0))","v":153.13911313572791},{"$f":"'C-Values and Rates'!AA86*INDEX('C-Diversion'!AA$88:AA$92, MATCH($D$85,'C-Diversion'!$D$88:$D$92,0))","v":156.32625338363141},{"$f":"'C-Values and Rates'!AB86*INDEX('C-Diversion'!AB$88:AB$92, MATCH($D$85,'C-Diversion'!$D$88:$D$92,0))","v":159.57972458220982},{"$f":"'C-Values and Rates'!AC86*INDEX('C-Diversion'!AC$88:AC$92, MATCH($D$85,'C-Diversion'!$D$88:$D$92,0))","v":162.36229435283417},{"$f":"'C-Values and Rates'!AD86*INDEX('C-Diversion'!AD$88:AD$92, MATCH($D$85,'C-Diversion'!$D$88:$D$92,0))","v":165.1933834109098},{"$f":"'C-Values and Rates'!AE86*INDEX('C-Diversion'!AE$88:AE$92, MATCH($D$85,'C-Diversion'!$D$88:$D$92,0))","v":168.07383778059736},{"$f":"'C-Values and Rates'!AF86*INDEX('C-Diversion'!AF$88:AF$92, MATCH($D$85,'C-Diversion'!$D$88:$D$92,0))","v":171.00451823806483},{"$f":"'C-Values and Rates'!AG86*INDEX('C-Diversion'!AG$88:AG$92, MATCH($D$85,'C-Diversion'!$D$88:$D$92,0))","v":173.98630056871608},{"$f":"'C-Values and Rates'!AH86*INDEX('C-Diversion'!AH$88:AH$92, MATCH($D$85,'C-Diversion'!$D$88:$D$92,0))","v":176.65647876998867},{"$f":"'C-Values and Rates'!AI86*INDEX('C-Diversion'!AI$88:AI$92, MATCH($D$85,'C-Diversion'!$D$88:$D$92,0))","v":179.3676363564384},{"$f":"'C-Values and Rates'!AJ86*INDEX('C-Diversion'!AJ$88:AJ$92, MATCH($D$85,'C-Diversion'!$D$88:$D$92,0))","v":182.12040224115},{"$f":"'C-Values and Rates'!AK86*INDEX('C-Diversion'!AK$88:AK$92, MATCH($D$85,'C-Diversion'!$D$88:$D$92,0))","v":184.91541498917533},{"$f":"'C-Values and Rates'!AL86*INDEX('C-Diversion'!AL$88:AL$92, MATCH($D$85,'C-Diversion'!$D$88:$D$92,0))","v":187.75332296566205},{"$f":"'C-Values and Rates'!AM86*INDEX('C-Diversion'!AM$88:AM$92, MATCH($D$85,'C-Diversion'!$D$88:$D$92,0))","v":190.47458280734153},{"$f":"'C-Values and Rates'!AN86*INDEX('C-Diversion'!AN$88:AN$92, MATCH($D$85,'C-Diversion'!$D$88:$D$92,0))","v":193.23528405548441},{"$f":"'C-Values and Rates'!AO86*INDEX('C-Diversion'!AO$88:AO$92, MATCH($D$85,'C-Diversion'!$D$88:$D$92,0))","v":196.0359983661009},{"$f":"'C-Values and Rates'!AP86*INDEX('C-Diversion'!AP$88:AP$92, MATCH($D$85,'C-Diversion'!$D$88:$D$92,0))","v":198.87730568067121},{"$f":"'C-Values and Rates'!AQ86*INDEX('C-Diversion'!AQ$88:AQ$92, MATCH($D$85,'C-Diversion'!$D$88:$D$92,0))","v":201.75979434623369},{"$f":"'C-Values and Rates'!AR86*INDEX('C-Diversion'!AR$88:AR$92, MATCH($D$85,'C-Diversion'!$D$88:$D$92,0))","v":204.69307128587243},{"$f":"'C-Values and Rates'!AS86*INDEX('C-Diversion'!AS$88:AS$92, MATCH($D$85,'C-Diversion'!$D$88:$D$92,0))","v":207.66899355845521},{"$f":"'C-Values and Rates'!AT86*INDEX('C-Diversion'!AT$88:AT$92, MATCH($D$85,'C-Diversion'!$D$88:$D$92,0))","v":210.68818116149998},{"$f":"'C-Values and Rates'!AU86*INDEX('C-Diversion'!AU$88:AU$92, MATCH($D$85,'C-Diversion'!$D$88:$D$92,0))","v":213.75126310633431},{"$f":"'C-Values and Rates'!AV86*INDEX('C-Diversion'!AV$88:AV$92, MATCH($D$85,'C-Diversion'!$D$88:$D$92,0))","v":216.85887754914305},{"$f":"'C-Values and Rates'!AW86*INDEX('C-Diversion'!AW$88:AW$92, MATCH($D$85,'C-Diversion'!$D$88:$D$92,0))","v":217.06365188772514},{"$f":"'C-Values and Rates'!AX86*INDEX('C-Diversion'!AX$88:AX$92, MATCH($D$85,'C-Diversion'!$D$88:$D$92,0))","v":217.26861958952213},{"$f":"'C-Values and Rates'!AY86*INDEX('C-Diversion'!AY$88:AY$92, MATCH($D$85,'C-Diversion'!$D$88:$D$92,0))","v":217.47378083712198},{"$f":"'C-Values and Rates'!AZ86*INDEX('C-Diversion'!AZ$88:AZ$92, MATCH($D$85,'C-Diversion'!$D$88:$D$92,0))","v":217.67913581328511},{"$f":"'C-Values and Rates'!BA86*INDEX('C-Diversion'!BA$88:BA$92, MATCH($D$85,'C-Diversion'!$D$88:$D$92,0))","v":217.88468470094443},{"$f":"'C-Values and Rates'!BB86*INDEX('C-Diversion'!BB$88:BB$92, MATCH($D$85,'C-Diversion'!$D$88:$D$92,0))","v":218.09042768320575},{"$f":"'C-Values and Rates'!BC86*INDEX('C-Diversion'!BC$88:BC$92, MATCH($D$85,'C-Diversion'!$D$88:$D$92,0))","v":218.29636494334761},{"$f":"'C-Values and Rates'!BD86*INDEX('C-Diversion'!BD$88:BD$92, MATCH($D$85,'C-Diversion'!$D$88:$D$92,0))","v":218.50249666482171},{"$f":"'C-Values and Rates'!BE86*INDEX('C-Diversion'!BE$88:BE$92, MATCH($D$85,'C-Diversion'!$D$88:$D$92,0))","v":218.7088230312529},{"$f":"'C-Values and Rates'!BF86*INDEX('C-Diversion'!BF$88:BF$92, MATCH($D$85,'C-Diversion'!$D$88:$D$92,0))","v":218.91534422643954},{"$f":"'C-Values and Rates'!BG86*INDEX('C-Diversion'!BG$88:BG$92, MATCH($D$85,'C-Diversion'!$D$88:$D$92,0))","v":219.1220604343535},{"$f":"'C-Values and Rates'!BH86*INDEX('C-Diversion'!BH$88:BH$92, MATCH($D$85,'C-Diversion'!$D$88:$D$92,0))","v":219.32897183914022},{"$f":"'C-Values and Rates'!BI86*INDEX('C-Diversion'!BI$88:BI$92, MATCH($D$85,'C-Diversion'!$D$88:$D$92,0))","v":219.5360786251193},{"$f":"'C-Values and Rates'!BJ86*INDEX('C-Diversion'!BJ$88:BJ$92, MATCH($D$85,'C-Diversion'!$D$88:$D$92,0))","v":219.74338097678424},{"$f":"'C-Values and Rates'!BK86*INDEX('C-Diversion'!BK$88:BK$92, MATCH($D$85,'C-Diversion'!$D$88:$D$92,0))","v":219.95087907880267},{"$f":"'C-Values and Rates'!BL86*INDEX('C-Diversion'!BL$88:BL$92, MATCH($D$85,'C-Diversion'!$D$88:$D$92,0))","v":220.1585731160167},{"$f":"'C-Values and Rates'!BM86*INDEX('C-Diversion'!BM$88:BM$92, MATCH($D$85,'C-Diversion'!$D$88:$D$92,0))","v":220.36646327344297},{"$f":"'C-Values and Rates'!BN86*INDEX('C-Diversion'!BN$88:BN$92, MATCH($D$85,'C-Diversion'!$D$88:$D$92,0))","v":220.57454973627293},{"$f":"'C-Values and Rates'!BO86*INDEX('C-Diversion'!BO$88:BO$92, MATCH($D$85,'C-Diversion'!$D$88:$D$92,0))","v":220.78283268987266},{"$f":"'C-Values and Rates'!BP86*INDEX('C-Diversion'!BP$88:BP$92, MATCH($D$85,'C-Diversion'!$D$88:$D$92,0))","v":220.99131231978345},{"$f":"'C-Values and Rates'!BQ86*INDEX('C-Diversion'!BQ$88:BQ$92, MATCH($D$85,'C-Diversion'!$D$88:$D$92,0))","v":221.19998881172179},{"$f":"'C-Values and Rates'!BR86*INDEX('C-Diversion'!BR$88:BR$92, MATCH($D$85,'C-Diversion'!$D$88:$D$92,0))","v":221.40886235157947},{"$f":"'C-Values and Rates'!BS86*INDEX('C-Diversion'!BS$88:BS$92, MATCH($D$85,'C-Diversion'!$D$88:$D$92,0))","v":221.61793312542386},{"$f":"'C-Values and Rates'!BT86*INDEX('C-Diversion'!BT$88:BT$92, MATCH($D$85,'C-Diversion'!$D$88:$D$92,0))","v":221.82720131949799},{"$f":"'C-Values and Rates'!BU86*INDEX('C-Diversion'!BU$88:BU$92, MATCH($D$85,'C-Diversion'!$D$88:$D$92,0))","v":222.03666712022078},{"$f":"'C-Values and Rates'!BV86*INDEX('C-Diversion'!BV$88:BV$92, MATCH($D$85,'C-Diversion'!$D$88:$D$92,0))","v":222.24633071418717},{"$f":"'C-Values and Rates'!BW86*INDEX('C-Diversion'!BW$88:BW$92, MATCH($D$85,'C-Diversion'!$D$88:$D$92,0))","v":222.45619228816835},{"$f":"'C-Values and Rates'!BX86*INDEX('C-Diversion'!BX$88:BX$92, MATCH($D$85,'C-Diversion'!$D$88:$D$92,0))","v":0},{"$f":"'C-Values and Rates'!BY86*INDEX('C-Diversion'!BY$88:BY$92, MATCH($D$85,'C-Diversion'!$D$88:$D$92,0))","v":0},{"$f":"'C-Values and Rates'!BZ86*INDEX('C-Diversion'!BZ$88:BZ$92, MATCH($D$85,'C-Diversion'!$D$88:$D$92,0))","v":0},{"$f":"'C-Values and Rates'!CA86*INDEX('C-Diversion'!CA$88:CA$92, MATCH($D$85,'C-Diversion'!$D$88:$D$92,0))","v":0},{"$f":"'C-Values and Rates'!CB86*INDEX('C-Diversion'!CB$88:CB$92, MATCH($D$85,'C-Diversion'!$D$88:$D$92,0))","v":0},{"$f":"'C-Values and Rates'!CC86*INDEX('C-Diversion'!CC$88:CC$92, MATCH($D$85,'C-Diversion'!$D$88:$D$92,0))","v":0},{"$f":"'C-Values and Rates'!CD86*INDEX('C-Diversion'!CD$88:CD$92, MATCH($D$85,'C-Diversion'!$D$88:$D$92,0))","v":0},{"$f":"'C-Values and Rates'!CE86*INDEX('C-Diversion'!CE$88:CE$92, MATCH($D$85,'C-Diversion'!$D$88:$D$92,0))","v":0}]
[null,null,null,"Accident",null,null,null,430234.56824451993,null,"£, 2023 prices",{"$f":"'C-Values and Rates'!K87*INDEX('C-Diversion'!K$88:K$92, MATCH($D$85,'C-Diversion'!$D$88:$D$92,0))","v":0},{"$f":"'C-Values and Rates'!L87*INDEX('C-Diversion'!L$88:L$92, MATCH($D$85,'C-Diversion'!$D$88:$D$92,0))","v":0},{"$f":"'C-Values and Rates'!M87*INDEX('C-Diversion'!M$88:M$92, MATCH($D$85,'C-Diversion'!$D$88:$D$92,0))","v":0},{"$f":"'C-Values and Rates'!N87*INDEX('C-Diversion'!N$88:N$92, MATCH($D$85,'C-Diversion'!$D$88:$D$92,0))","v":0},{"$f":"'C-Values and Rates'!O87*INDEX('C-Diversion'!O$88:O$92, MATCH($D$85,'C-Diversion'!$D$88:$D$92,0))","v":0},{"$f":"'C-Values and Rates'!P87*INDEX('C-Diversion'!P$88:P$92, MATCH($D$85,'C-Diversion'!$D$88:$D$92,0))","v":3921.4947624066394},{"$f":"'C-Values and Rates'!Q87*INDEX('C-Diversion'!Q$88:Q$92, MATCH($D$85,'C-Diversion'!$D$88:$D$92,0))","v":4048.8356018141262},{"$f":"'C-Values and Rates'!R87*INDEX('C-Diversion'!R$88:R$92, MATCH($D$85,'C-Diversion'!$D$88:$D$92,0))","v":4180.3115199004014},{"$f":"'C-Values and Rates'!S87*INDEX('C-Diversion'!S$88:S$92, MATCH($D$85,'C-Diversion'!$D$88:$D$92,0))","v":4299.807185388705},{"$f":"'C-Values and Rates'!T87*INDEX('C-Diversion'!T$88:T$92, MATCH($D$85,'C-Diversion'!$D$88:$D$92,0))","v":4422.7186762293832},{"$f":"'C-Values and Rates'!U87*INDEX('C-Diversion'!U$88:U$92, MATCH($D$85,'C-Diversion'!$D$88:$D$92,0))","v":4549.1436349836931},{"$f":"'C-Values and Rates'!V87*INDEX('C-Diversion'!V$88:V$92, MATCH($D$85,'C-Diversion'!$D$88:$D$92,0))","v":4679.1824953596324},{"$f":"'C-Values and Rates'!W87*INDEX('C-Diversion'!W$88:W$92, MATCH($D$85,'C-Diversion'!$D$88:$D$92,0))","v":4812.938561997832},{"$f":"'C-Values and Rates'!X87*INDEX('C-Diversion'!X$88:X$92, MATCH($D$85,'C-Diversion'!$D$88:$D$92,0))","v":4934.1858438912313},{"$f":"'C-Values and Rates'!Y87*INDEX('C-Diversion'!Y$88:Y$92, MATCH($D$85,'C-Diversion'!$D$88:$D$92,0))","v":5058.4875805999518},{"$f":"'C-Values and Rates'!Z87*INDEX('C-Diversion'!Z$88:Z$92, MATCH($D$85,'C-Diversion'!$D$88:$D$92,0))","v":5185.9207197806581},{"$f":"'C-Values and Rates'!AA87*INDEX('C-Diversion'!AA$88:AA$92, MATCH($D$85,'C-Diversion'!$D$88:$D$92,0))","v":5316.5641475511275},{"$f":"'C-Values and Rates'!AB87*INDEX('C-Diversion'!AB$88:AB$92, MATCH($D$85,'C-Diversion'!$D$88:$D$92,0))","v":5450.4987373238455},{"$f":"'C-Values and Rates'!AC87*INDEX('C-Diversion'!AC$88:AC$92, MATCH($D$85,'C-Diversion'!$D$88:$D$92,0))","v":5578.445973763588},{"$f":"'C-Values and Rates'!AD87*INDEX('C-Diversion'!AD$88:AD$92, MATCH($D$85,'C-Diversion'!$D$88:$D$92,0))","v":5709.3966959578502},{"$f":"'C-Values and Rates'!AE87*INDEX('C-Diversion'!AE$88:AE$92, MATCH($D$85,'C-Diversion'!$D$88:$D$92,0))","v":5843.4214089595607},{"$f":"'C-Values and Rates'!AF87*INDEX('C-Diversion'!AF$88:AF$92, MATCH($D$85,'C-Diversion'!$D$88:$D$92,0))","v":5980.5922728860996},{"$f":"'C-Values and Rates'!AG87*INDEX('C-Diversion'!AG$88:AG$92, MATCH($D$85,'C-Diversion'!$D$88:$D$92,0))","v":6120.9831417709465},{"$f":"'C-Values and Rates'!AH87*INDEX('C-Diversion'!AH$88:AH$92, MATCH($D$85,'C-Diversion'!$D$88:$D$92,0))","v":6257.1045459157649},{"$f":"'C-Values and Rates'!AI87*INDEX('C-Diversion'!AI$88:AI$92, MATCH($D$85,'C-Diversion'!$D$88:$D$92,0))","v":6396.2530841397356},{"$f":"'C-Values and Rates'!AJ87*INDEX('C-Diversion'!AJ$88:AJ$92, MATCH($D$85,'C-Diversion'!$D$88:$D$92,0))","v":6538.4960753247788},{"$f":"'C-Values and Rates'!AK87*INDEX('C-Diversion'!AK$88:AK$92, MATCH($D$85,'C-Diversion'!$D$88:$D$92,0))","v":6683.9023354229075},{"$f":"'C-Values and Rates'!AL87*INDEX('C-Diversion'!AL$88:AL$92, MATCH($D$85,'C-Diversion'!$D$88:$D$92,0))","v":6832.5422107487811},{"$f":"'C-Values and Rates'!AM87*INDEX('C-Diversion'!AM$88:AM$92, MATCH($D$85,'C-Diversion'!$D$88:$D$92,0))","v":6978.9983421185561},{"$f":"'C-Values and Rates'!AN87*INDEX('C-Diversion'!AN$88:AN$92, MATCH($D$85,'C-Diversion'!$D$88:$D$92,0))","v":7128.5937732912771},{"$f":"'C-Values and Rates'!AO87*INDEX('C-Diversion'!AO$88:AO$92, MATCH($D$85,'C-Diversion'!$D$88:$D$92,0))","v":7281.395795428878},{"$f":"'C-Values and Rates'!AP87*INDEX('C-Diversion'!AP$88:AP$92, MATCH($D$85,'C-Diversion'!$D$88:$D$92,0))","v":7437.4731420851504},{"$f":"'C-Values and Rates'!AQ87*INDEX('C-Diversion'!AQ$88:AQ$92, MATCH($D$85,'C-Diversion'!$D$88:$D$92,0))","v":7596.8960201235459},{"$f":"'C-Values and Rates'!AR87*INDEX('C-Diversion'!AR$88:AR$92, MATCH($D$85,'C-Diversion'!$D$88:$D$92,0))","v":7756.1509679075425},{"$f":"'C-Values and Rates'!AS87*INDEX('C-Diversion'!AS$88:AS$92, MATCH($D$85,'C-Diversion'!$D$88:$D$92,0))","v":7918.7444026639132},{"$f":"'C-Values and Rates'!AT87*INDEX('C-Diversion'!AT$88:AT$92, MATCH($D$85,'C-Diversion'!$D$88:$D$92,0))","v":8084.7463096296633},{"$f":"'C-Values and Rates'!AU87*INDEX('C-Diversion'!AU$88:AU$92, MATCH($D$85,'C-Diversion'!$D$88:$D$92,0))","v":8254.2281411535278},{"$f":"'C-Values and Rates'!AV87*INDEX('C-Diversion'!AV$88:AV$92, MATCH($D$85,'C-Diversion'!$D$88:$D$92,0))","v":8427.2628474512749},{"$f":"'C-Values and Rates'!AW87*INDEX('C-Diversion'!AW$88:AW$92, MATCH($D$85,'C-Diversion'!$D$88:$D$92,0))","v":8435.2204980448205},{"$f":"'C-Values and Rates'!AX87*INDEX('C-Diversion'!AX$88:AX$92, MATCH($D$85,'C-Diversion'!$D$88:$D$92,0))","v":8443.1856628460155},{"$f":"'C-Values and Rates'!AY87*INDEX('C-Diversion'!AY$88:AY$92, MATCH($D$85,'C-Diversion'!$D$88:$D$92,0))","v":8451.1583489503373},{"$f":"'C-Values and Rates'!AZ87*INDEX('C-Diversion'!AZ$88:AZ$92, MATCH($D$85,'C-Diversion'!$D$88:$D$92,0))","v":8459.1385634599628},{"$f":"'C-Values and Rates'!BA87*INDEX('C-Diversion'!BA$88:BA$92, MATCH($D$85,'C-Diversion'!$D$88:$D$92,0))","v":8467.1263134837736},{"$f":"'C-Values and Rates'!BB87*INDEX('C-Diversion'!BB$88:BB$92, MATCH($D$85,'C-Diversion'!$D$88:$D$92,0))","v":8475.1216061373634},{"$f":"'C-Values and Rates'!BC87*INDEX('C-Diversion'!BC$88:BC$92, MATCH($D$85,'C-Diversion'!$D$88:$D$92,0))","v":8483.1244485430489},{"$f":"'C-Values and Rates'!BD87*INDEX('C-Diversion'!BD$88:BD$92, MATCH($D$85,'C-Diversion'!$D$88:$D$92,0))","v":8491.134847829866},{"$f":"'C-Values and Rates'!BE87*INDEX('C-Diversion'!BE$88:BE$92, MATCH($D$85,'C-Diversion'!$D$88:$D$92,0))","v":8499.1528111335883},{"$f":"'C-Values and Rates'!BF87*INDEX('C-Diversion'!BF$88:BF$92, MATCH($D$85,'C-Diversion'!$D$88:$D$92,0))","v":8507.1783455967234},{"$f":"'C-Values and Rates'!BG87*INDEX('C-Diversion'!BG$88:BG$92, MATCH($D$85,'C-Diversion'!$D$88:$D$92,0))","v":8515.2114583685288},{"$f":"'C-Values and Rates'!BH87*INDEX('C-Diversion'!BH$88:BH$92, MATCH($D$85,'C-Diversion'!$D$88:$D$92,0))","v":8523.2521566050018},{"$f":"'C-Values and Rates'!BI87*INDEX('C-Diversion'!BI$88:BI$92, MATCH($D$85,'C-Diversion'!$D$88:$D$92,0))","v":8531.3004474689114},{"$f":"'C-Values and Rates'!BJ87*INDEX('C-Diversion'!BJ$88:BJ$92, MATCH($D$85,'C-Diversion'!$D$88:$D$92,0))","v":8539.3563381297827},{"$f":"'C-Values and Rates'!BK87*INDEX('C-Diversion'!BK$88:BK$92, MATCH($D$85,'C-Diversion'!$D$88:$D$92,0))","v":8547.4198357639088},{"$f":"'C-Values and Rates'!BL87*INDEX('C-Diversion'!BL$88:BL$92, MATCH($D$85,'C-Diversion'!$D$88:$D$92,0))","v":8555.4909475543609},{"$f":"'C-Values and Rates'!BM87*INDEX('C-Diversion'!BM$88:BM$92, MATCH($D$85,'C-Diversion'!$D$88:$D$92,0))","v":8563.5696806909928},{"$f":"'C-Values and Rates'!BN87*INDEX('C-Diversion'!BN$88:BN$92, MATCH($D$85,'C-Diversion'!$D$88:$D$92,0))","v":8571.6560423704541},{"$f":"'C-Values and Rates'!BO87*INDEX('C-Diversion'!BO$88:BO$92, MATCH($D$85,'C-Diversion'!$D$88:$D$92,0))","v":8579.7500397961794},{"$f":"'C-Values and Rates'!BP87*INDEX('C-Diversion'!BP$88:BP$92, MATCH($D$85,'C-Diversion'!$D$88:$D$92,0))","v":8587.8516801784117},{"$f":"'C-Values and Rates'!BQ87*INDEX('C-Diversion'!BQ$88:BQ$92, MATCH($D$85,'C-Diversion'!$D$88:$D$92,0))","v":8595.9609707342006},{"$f":"'C-Values and Rates'!BR87*INDEX('C-Diversion'!BR$88:BR$92, MATCH($D$85,'C-Diversion'!$D$88:$D$92,0))","v":8604.0779186874133},{"$f":"'C-Values and Rates'!BS87*INDEX('C-Diversion'!BS$88:BS$92, MATCH($D$85,'C-Diversion'!$D$88:$D$92,0))","v":8612.2025312687329},{"$f":"'C-Values and Rates'!BT87*INDEX('C-Diversion'!BT$88:BT$92, MATCH($D$85,'C-Diversion'!$D$88:$D$92,0))","v":8620.3348157156743},{"$f":"'C-Values and Rates'!BU87*INDEX('C-Diversion'!BU$88:BU$92, MATCH($D$85,'C-Diversion'!$D$88:$D$92,0))","v":8628.4747792725866},{"$f":"'C-Values and Rates'!BV87*INDEX('C-Diversion'!BV$88:BV$92, MATCH($D$85,'C-Diversion'!$D$88:$D$92,0))","v":8636.6224291906565},{"$f":"'C-Values and Rates'!BW87*INDEX('C-Diversion'!BW$88:BW$92, MATCH($D$85,'C-Diversion'!$D$88:$D$92,0))","v":8644.7777727279226},{"$f":"'C-Values and Rates'!BX87*INDEX('C-Diversion'!BX$88:BX$92, MATCH($D$85,'C-Diversion'!$D$88:$D$92,0))","v":0},{"$f":"'C-Values and Rates'!BY87*INDEX('C-Diversion'!BY$88:BY$92, MATCH($D$85,'C-Diversion'!$D$88:$D$92,0))","v":0},{"$f":"'C-Values and Rates'!BZ87*INDEX('C-Diversion'!BZ$88:BZ$92, MATCH($D$85,'C-Diversion'!$D$88:$D$92,0))","v":0},{"$f":"'C-Values and Rates'!CA87*INDEX('C-Diversion'!CA$88:CA$92, MATCH($D$85,'C-Diversion'!$D$88:$D$92,0))","v":0},{"$f":"'C-Values and Rates'!CB87*INDEX('C-Diversion'!CB$88:CB$92, MATCH($D$85,'C-Diversion'!$D$88:$D$92,0))","v":0},{"$f":"'C-Values and Rates'!CC87*INDEX('C-Diversion'!CC$88:CC$92, MATCH($D$85,'C-Diversion'!$D$88:$D$92,0))","v":0},{"$f":"'C-Values and Rates'!CD87*INDEX('C-Diversion'!CD$88:CD$92, MATCH($D$85,'C-Diversion'!$D$88:$D$92,0))","v":0},{"$f":"'C-Values and Rates'!CE87*INDEX('C-Diversion'!CE$88:CE$92, MATCH($D$85,'C-Diversion'!$D$88:$D$92,0))","v":0}]
[null,null,null,"Local Air Quality",null,null,null,19045.012070054338,null,"£, 2023 prices",{"$f":"'C-Values and Rates'!K88*INDEX('C-Diversion'!K$88:K$92, MATCH($D$85,'C-Diversion'!$D$88:$D$92,0))","v":0},{"$f":"'C-Values and Rates'!L88*INDEX('C-Diversion'!L$88:L$92, MATCH($D$85,'C-Diversion'!$D$88:$D$92,0))","v":0},{"$f":"'C-Values and Rates'!M88*INDEX('C-Diversion'!M$88:M$92, MATCH($D$85,'C-Diversion'!$D$88:$D$92,0))","v":0},{"$f":"'C-Values and Rates'!N88*INDEX('C-Diversion'!N$88:N$92, MATCH($D$85,'C-Diversion'!$D$88:$D$92,0))","v":0},{"$f":"'C-Values and Rates'!O88*INDEX('C-Diversion'!O$88:O$92, MATCH($D$85,'C-Diversion'!$D$88:$D$92,0))","v":0},{"$f":"'C-Values and Rates'!P88*INDEX('C-Diversion'!P$88:P$92, MATCH($D$85,'C-Diversion'!$D$88:$D$92,0))","v":276.04697170302791},{"$f":"'C-Values and Rates'!Q88*INDEX('C-Diversion'!Q$88:Q$92, MATCH($D$85,'C-Diversion'!$D$88:$D$92,0))","v":263.01360975361757},{"$f":"'C-Values and Rates'!R88*INDEX('C-Diversion'!R$88:R$92, MATCH($D$85,'C-Diversion'!$D$88:$D$92,0))","v":250.59560874316762},{"$f":"'C-Values and Rates'!S88*INDEX('C-Diversion'!S$88:S$92, MATCH($D$85,'C-Diversion'!$D$88:$D$92,0))","v":246.83796629826676},{"$f":"'C-Values and Rates'!T88*INDEX('C-Diversion'!T$88:T$92, MATCH($D$85,'C-Diversion'!$D$88:$D$92,0))","v":243.13666912140374},{"$f":"'C-Values and Rates'!U88*INDEX('C-Diversion'!U$88:U$92, MATCH($D$85,'C-Diversion'!$D$88:$D$92,0))","v":239.4908723239875},{"$f":"'C-Values and Rates'!V88*INDEX('C-Diversion'!V$88:V$92, MATCH($D$85,'C-Diversion'!$D$88:$D$92,0))","v":235.89974368640128},{"$f":"'C-Values and Rates'!W88*INDEX('C-Diversion'!W$88:W$92, MATCH($D$85,'C-Diversion'!$D$88:$D$92,0))","v":232.36246346803267},{"$f":"'C-Values and Rates'!X88*INDEX('C-Diversion'!X$88:X$92, MATCH($D$85,'C-Diversion'!$D$88:$D$92,0))","v":234.37532352045898},{"$f":"'C-Values and Rates'!Y88*INDEX('C-Diversion'!Y$88:Y$92, MATCH($D$85,'C-Diversion'!$D$88:$D$92,0))","v":236.40562014818315},{"$f":"'C-Values and Rates'!Z88*INDEX('C-Diversion'!Z$88:Z$92, MATCH($D$85,'C-Diversion'!$D$88:$D$92,0))","v":238.45350439705555},{"$f":"'C-Values and Rates'!AA88*INDEX('C-Diversion'!AA$88:AA$92, MATCH($D$85,'C-Diversion'!$D$88:$D$92,0))","v":240.51912862137411},{"$f":"'C-Values and Rates'!AB88*INDEX('C-Diversion'!AB$88:AB$92, MATCH($D$85,'C-Diversion'!$D$88:$D$92,0))","v":242.60264649521929},{"$f":"'C-Values and Rates'!AC88*INDEX('C-Diversion'!AC$88:AC$92, MATCH($D$85,'C-Diversion'!$D$88:$D$92,0))","v":246.83142375707234},{"$f":"'C-Values and Rates'!AD88*INDEX('C-Diversion'!AD$88:AD$92, MATCH($D$85,'C-Diversion'!$D$88:$D$92,0))","v":251.13391232170278},{"$f":"'C-Values and Rates'!AE88*INDEX('C-Diversion'!AE$88:AE$92, MATCH($D$85,'C-Diversion'!$D$88:$D$92,0))","v":255.51139704187526},{"$f":"'C-Values and Rates'!AF88*INDEX('C-Diversion'!AF$88:AF$92, MATCH($D$85,'C-Diversion'!$D$88:$D$92,0))","v":259.96518516646745},{"$f":"'C-Values and Rates'!AG88*INDEX('C-Diversion'!AG$88:AG$92, MATCH($D$85,'C-Diversion'!$D$88:$D$92,0))","v":264.49660673085276},{"$f":"'C-Values and Rates'!AH88*INDEX('C-Diversion'!AH$88:AH$92, MATCH($D$85,'C-Diversion'!$D$88:$D$92,0))","v":269.93884718162678},{"$f":"'C-Values and Rates'!AI88*INDEX('C-Diversion'!AI$88:AI$92, MATCH($D$85,'C-Diversion'!$D$88:$D$92,0))","v":275.49306631329995},{"$f":"'C-Values and Rates'!AJ88*INDEX('C-Diversion'!AJ$88:AJ$92, MATCH($D$85,'C-Diversion'!$D$88:$D$92,0))","v":281.16156818154371},{"$f":"'C-Values and Rates'!AK88*INDEX('C-Diversion'!AK$88:AK$92, MATCH($D$85,'C-Diversion'!$D$88:$D$92,0))","v":286.94670424991568},{"$f":"'C-Values and Rates'!AL88*INDEX('C-Diversion'!AL$88:AL$92, MATCH($D$85,'C-Diversion'!$D$88:$D$92,0))","v":292.85087436531626},{"$f":"'C-Values and Rates'!AM88*INDEX('C-Diversion'!AM$88:AM$92, MATCH($D$85,'C-Diversion'!$D$88:$D$92,0))","v":299.13803204089908},{"$f":"'C-Values and Rates'!AN88*INDEX('C-Diversion'!AN$88:AN$92, MATCH($D$85,'C-Diversion'!$D$88:$D$92,0))","v":305.56016746487796},{"$f":"'C-Values and Rates'!AO88*INDEX('C-Diversion'!AO$88:AO$92, MATCH($D$85,'C-Diversion'!$D$88:$D$92,0))","v":312.12017844791751},{"$f":"'C-Values and Rates'!AP88*INDEX('C-Diversion'!AP$88:AP$92, MATCH($D$85,'C-Diversion'!$D$88:$D$92,0))","v":318.82102501320776},{"$f":"'C-Values and Rates'!AQ88*INDEX('C-Diversion'!AQ$88:AQ$92, MATCH($D$85,'C-Diversion'!$D$88:$D$92,0))","v":325.66573073209344},{"$f":"'C-Values and Rates'!AR88*INDEX('C-Diversion'!AR$88:AR$92, MATCH($D$85,'C-Diversion'!$D$88:$D$92,0))","v":332.50432512138013},{"$f":"'C-Values and Rates'!AS88*INDEX('C-Diversion'!AS$88:AS$92, MATCH($D$85,'C-Diversion'!$D$88:$D$92,0))","v":339.4865218882212},{"$f":"'C-Values and Rates'!AT88*INDEX('C-Diversion'!AT$88:AT$92, MATCH($D$85,'C-Diversion'!$D$88:$D$92,0))","v":346.61533651235817},{"$f":"'C-Values and Rates'!AU88*INDEX('C-Diversion'!AU$88:AU$92, MATCH($D$85,'C-Diversion'!$D$88:$D$92,0))","v":353.89384779503303},{"$f":"'C-Values and Rates'!AV88*INDEX('C-Diversion'!AV$88:AV$92, MATCH($D$85,'C-Diversion'!$D$88:$D$92,0))","v":361.32519918866507},{"$f":"'C-Values and Rates'!AW88*INDEX('C-Diversion'!AW$88:AW$92, MATCH($D$85,'C-Diversion'!$D$88:$D$92,0))","v":361.66638941114121},{"$f":"'C-Values and Rates'!AX88*INDEX('C-Diversion'!AX$88:AX$92, MATCH($D$85,'C-Diversion'!$D$88:$D$92,0))","v":362.00790181089178},{"$f":"'C-Values and Rates'!AY88*INDEX('C-Diversion'!AY$88:AY$92, MATCH($D$85,'C-Diversion'!$D$88:$D$92,0))","v":362.34973669214082},{"$f":"'C-Values and Rates'!AZ88*INDEX('C-Diversion'!AZ$88:AZ$92, MATCH($D$85,'C-Diversion'!$D$88:$D$92,0))","v":362.69189435939944},{"$f":"'C-Values and Rates'!BA88*INDEX('C-Diversion'!BA$88:BA$92, MATCH($D$85,'C-Diversion'!$D$88:$D$92,0))","v":363.03437511746608},{"$f":"'C-Values and Rates'!BB88*INDEX('C-Diversion'!BB$88:BB$92, MATCH($D$85,'C-Diversion'!$D$88:$D$92,0))","v":363.37717927142739},{"$f":"'C-Values and Rates'!BC88*INDEX('C-Diversion'!BC$88:BC$92, MATCH($D$85,'C-Diversion'!$D$88:$D$92,0))","v":363.72030712665793},{"$f":"'C-Values and Rates'!BD88*INDEX('C-Diversion'!BD$88:BD$92, MATCH($D$85,'C-Diversion'!$D$88:$D$92,0))","v":364.06375898882044},{"$f":"'C-Values and Rates'!BE88*INDEX('C-Diversion'!BE$88:BE$92, MATCH($D$85,'C-Diversion'!$D$88:$D$92,0))","v":364.4075351638665},{"$f":"'C-Values and Rates'!BF88*INDEX('C-Diversion'!BF$88:BF$92, MATCH($D$85,'C-Diversion'!$D$88:$D$92,0))","v":364.75163595803656},{"$f":"'C-Values and Rates'!BG88*INDEX('C-Diversion'!BG$88:BG$92, MATCH($D$85,'C-Diversion'!$D$88:$D$92,0))","v":365.09606167786029},{"$f":"'C-Values and Rates'!BH88*INDEX('C-Diversion'!BH$88:BH$92, MATCH($D$85,'C-Diversion'!$D$88:$D$92,0))","v":365.44081263015664},{"$f":"'C-Values and Rates'!BI88*INDEX('C-Diversion'!BI$88:BI$92, MATCH($D$85,'C-Diversion'!$D$88:$D$92,0))","v":365.7858891220344},{"$f":"'C-Values and Rates'!BJ88*INDEX('C-Diversion'!BJ$88:BJ$92, MATCH($D$85,'C-Diversion'!$D$88:$D$92,0))","v":366.1312914608925},{"$f":"'C-Values and Rates'!BK88*INDEX('C-Diversion'!BK$88:BK$92, MATCH($D$85,'C-Diversion'!$D$88:$D$92,0))","v":366.47701995441975},{"$f":"'C-Values and Rates'!BL88*INDEX('C-Diversion'!BL$88:BL$92, MATCH($D$85,'C-Diversion'!$D$88:$D$92,0))","v":366.82307491059578},{"$f":"'C-Values and Rates'!BM88*INDEX('C-Diversion'!BM$88:BM$92, MATCH($D$85,'C-Diversion'!$D$88:$D$92,0))","v":367.1694566376911},{"$f":"'C-Values and Rates'!BN88*INDEX('C-Diversion'!BN$88:BN$92, MATCH($D$85,'C-Diversion'!$D$88:$D$92,0))","v":367.51616544426719},{"$f":"'C-Values and Rates'!BO88*INDEX('C-Diversion'!BO$88:BO$92, MATCH($D$85,'C-Diversion'!$D$88:$D$92,0))","v":367.86320163917685},{"$f":"'C-Values and Rates'!BP88*INDEX('C-Diversion'!BP$88:BP$92, MATCH($D$85,'C-Diversion'!$D$88:$D$92,0))","v":368.2105655315645},{"$f":"'C-Values and Rates'!BQ88*INDEX('C-Diversion'!BQ$88:BQ$92, MATCH($D$85,'C-Diversion'!$D$88:$D$92,0))","v":368.55825743086672},{"$f":"'C-Values and Rates'!BR88*INDEX('C-Diversion'!BR$88:BR$92, MATCH($D$85,'C-Diversion'!$D$88:$D$92,0))","v":368.90627764681204},{"$f":"'C-Values and Rates'!BS88*INDEX('C-Diversion'!BS$88:BS$92, MATCH($D$85,'C-Diversion'!$D$88:$D$92,0))","v":369.25462648942164},{"$f":"'C-Values and Rates'!BT88*INDEX('C-Diversion'!BT$88:BT$92, MATCH($D$85,'C-Diversion'!$D$88:$D$92,0))","v":369.60330426900919},{"$f":"'C-Values and Rates'!BU88*INDEX('C-Diversion'!BU$88:BU$92, MATCH($D$85,'C-Diversion'!$D$88:$D$92,0))","v":369.95231129618168},{"$f":"'C-Values and Rates'!BV88*INDEX('C-Diversion'!BV$88:BV$92, MATCH($D$85,'C-Diversion'!$D$88:$D$92,0))","v":370.30164788183902},{"$f":"'C-Values and Rates'!BW88*INDEX('C-Diversion'!BW$88:BW$92, MATCH($D$85,'C-Diversion'!$D$88:$D$92,0))","v":370.65131433717522},{"$f":"'C-Values and Rates'!BX88*INDEX('C-Diversion'!BX$88:BX$92, MATCH($D$85,'C-Diversion'!$D$88:$D$92,0))","v":0},{"$f":"'C-Values and Rates'!BY88*INDEX('C-Diversion'!BY$88:BY$92, MATCH($D$85,'C-Diversion'!$D$88:$D$92,0))","v":0},{"$f":"'C-Values and Rates'!BZ88*INDEX('C-Diversion'!BZ$88:BZ$92, MATCH($D$85,'C-Diversion'!$D$88:$D$92,0))","v":0},{"$f":"'C-Values and Rates'!CA88*INDEX('C-Diversion'!CA$88:CA$92, MATCH($D$85,'C-Diversion'!$D$88:$D$92,0))","v":0},{"$f":"'C-Values and Rates'!CB88*INDEX('C-Diversion'!CB$88:CB$92, MATCH($D$85,'C-Diversion'!$D$88:$D$92,0))","v":0},{"$f":"'C-Values and Rates'!CC88*INDEX('C-Diversion'!CC$88:CC$92, MATCH($D$85,'C-Diversion'!$D$88:$D$92,0))","v":0},{"$f":"'C-Values and Rates'!CD88*INDEX('C-Diversion'!CD$88:CD$92, MATCH($D$85,'C-Diversion'!$D$88:$D$92,0))","v":0},{"$f":"'C-Values and Rates'!CE88*INDEX('C-Diversion'!CE$88:CE$92, MATCH($D$85,'C-Diversion'!$D$88:$D$92,0))","v":0}]
[null,null,null,"Noise",null,null,null,28682.304549634657,null,"£, 2023 prices",{"$f":"'C-Values and Rates'!K89*INDEX('C-Diversion'!K$88:K$92, MATCH($D$85,'C-Diversion'!$D$88:$D$92,0))","v":0},{"$f":"'C-Values and Rates'!L89*INDEX('C-Diversion'!L$88:L$92, MATCH($D$85,'C-Diversion'!$D$88:$D$92,0))","v":0},{"$f":"'C-Values and Rates'!M89*INDEX('C-Diversion'!M$88:M$92, MATCH($D$85,'C-Diversion'!$D$88:$D$92,0))","v":0},{"$f":"'C-Values and Rates'!N89*INDEX('C-Diversion'!N$88:N$92, MATCH($D$85,'C-Diversion'!$D$88:$D$92,0))","v":0},{"$f":"'C-Values and Rates'!O89*INDEX('C-Diversion'!O$88:O$92, MATCH($D$85,'C-Diversion'!$D$88:$D$92,0))","v":0},{"$f":"'C-Values and Rates'!P89*INDEX('C-Diversion'!P$88:P$92, MATCH($D$85,'C-Diversion'!$D$88:$D$92,0))","v":261.43298416044263},{"$f":"'C-Values and Rates'!Q89*INDEX('C-Diversion'!Q$88:Q$92, MATCH($D$85,'C-Diversion'!$D$88:$D$92,0))","v":269.92237345427515},{"$f":"'C-Values and Rates'!R89*INDEX('C-Diversion'!R$88:R$92, MATCH($D$85,'C-Diversion'!$D$88:$D$92,0))","v":278.68743466002678},{"$f":"'C-Values and Rates'!S89*INDEX('C-Diversion'!S$88:S$92, MATCH($D$85,'C-Diversion'!$D$88:$D$92,0))","v":286.65381235924701},{"$f":"'C-Values and Rates'!T89*INDEX('C-Diversion'!T$88:T$92, MATCH($D$85,'C-Diversion'!$D$88:$D$92,0))","v":294.84791174862556},{"$f":"'C-Values and Rates'!U89*INDEX('C-Diversion'!U$88:U$92, MATCH($D$85,'C-Diversion'!$D$88:$D$92,0))","v":303.27624233224628},{"$f":"'C-Values and Rates'!V89*INDEX('C-Diversion'!V$88:V$92, MATCH($D$85,'C-Diversion'!$D$88:$D$92,0))","v":311.94549969064229},{"$f":"'C-Values and Rates'!W89*INDEX('C-Diversion'!W$88:W$92, MATCH($D$85,'C-Diversion'!$D$88:$D$92,0))","v":320.86257079985552},{"$f":"'C-Values and Rates'!X89*INDEX('C-Diversion'!X$88:X$92, MATCH($D$85,'C-Diversion'!$D$88:$D$92,0))","v":328.94572292608211},{"$f":"'C-Values and Rates'!Y89*INDEX('C-Diversion'!Y$88:Y$92, MATCH($D$85,'C-Diversion'!$D$88:$D$92,0))","v":337.23250537333018},{"$f":"'C-Values and Rates'!Z89*INDEX('C-Diversion'!Z$88:Z$92, MATCH($D$85,'C-Diversion'!$D$88:$D$92,0))","v":345.72804798537732},{"$f":"'C-Values and Rates'!AA89*INDEX('C-Diversion'!AA$88:AA$92, MATCH($D$85,'C-Diversion'!$D$88:$D$92,0))","v":354.43760983674196},{"$f":"'C-Values and Rates'!AB89*INDEX('C-Diversion'!AB$88:AB$92, MATCH($D$85,'C-Diversion'!$D$88:$D$92,0))","v":363.36658248825643},{"$f":"'C-Values and Rates'!AC89*INDEX('C-Diversion'!AC$88:AC$92, MATCH($D$85,'C-Diversion'!$D$88:$D$92,0))","v":371.89639825090592},{"$f":"'C-Values and Rates'!AD89*INDEX('C-Diversion'!AD$88:AD$92, MATCH($D$85,'C-Diversion'!$D$88:$D$92,0))","v":380.62644639719008},{"$f":"'C-Values and Rates'!AE89*INDEX('C-Diversion'!AE$88:AE$92, MATCH($D$85,'C-Diversion'!$D$88:$D$92,0))","v":389.5614272639707},{"$f":"'C-Values and Rates'!AF89*INDEX('C-Diversion'!AF$88:AF$92, MATCH($D$85,'C-Diversion'!$D$88:$D$92,0))","v":398.70615152573993},{"$f":"'C-Values and Rates'!AG89*INDEX('C-Diversion'!AG$88:AG$92, MATCH($D$85,'C-Diversion'!$D$88:$D$92,0))","v":408.06554278472976},{"$f":"'C-Values and Rates'!AH89*INDEX('C-Diversion'!AH$88:AH$92, MATCH($D$85,'C-Diversion'!$D$88:$D$92,0))","v":417.14030306105104},{"$f":"'C-Values and Rates'!AI89*INDEX('C-Diversion'!AI$88:AI$92, MATCH($D$85,'C-Diversion'!$D$88:$D$92,0))","v":426.41687227598231},{"$f":"'C-Values and Rates'!AJ89*INDEX('C-Diversion'!AJ$88:AJ$92, MATCH($D$85,'C-Diversion'!$D$88:$D$92,0))","v":435.89973835498523},{"$f":"'C-Values and Rates'!AK89*INDEX('C-Diversion'!AK$88:AK$92, MATCH($D$85,'C-Diversion'!$D$88:$D$92,0))","v":445.5934890281938},{"$f":"'C-Values and Rates'!AL89*INDEX('C-Diversion'!AL$88:AL$92, MATCH($D$85,'C-Diversion'!$D$88:$D$92,0))","v":455.50281404991864},{"$f":"'C-Values and Rates'!AM89*INDEX('C-Diversion'!AM$88:AM$92, MATCH($D$85,'C-Diversion'!$D$88:$D$92,0))","v":465.266556141237},{"$f":"'C-Values and Rates'!AN89*INDEX('C-Diversion'!AN$88:AN$92, MATCH($D$85,'C-Diversion'!$D$88:$D$92,0))","v":475.23958488608503},{"$f":"'C-Values and Rates'!AO89*INDEX('C-Diversion'!AO$88:AO$92, MATCH($D$85,'C-Diversion'!$D$88:$D$92,0))","v":485.42638636192521},{"$f":"'C-Values and Rates'!AP89*INDEX('C-Diversion'!AP$88:AP$92, MATCH($D$85,'C-Diversion'!$D$88:$D$92,0))","v":495.8315428056768},{"$f":"'C-Values and Rates'!AQ89*INDEX('C-Diversion'!AQ$88:AQ$92, MATCH($D$85,'C-Diversion'!$D$88:$D$92,0))","v":506.45973467490325},{"$f":"'C-Values and Rates'!AR89*INDEX('C-Diversion'!AR$88:AR$92, MATCH($D$85,'C-Diversion'!$D$88:$D$92,0))","v":517.07673119383628},{"$f":"'C-Values and Rates'!AS89*INDEX('C-Diversion'!AS$88:AS$92, MATCH($D$85,'C-Diversion'!$D$88:$D$92,0))","v":527.91629351092752},{"$f":"'C-Values and Rates'!AT89*INDEX('C-Diversion'!AT$88:AT$92, MATCH($D$85,'C-Diversion'!$D$88:$D$92,0))","v":538.98308730864437},{"$f":"'C-Values and Rates'!AU89*INDEX('C-Diversion'!AU$88:AU$92, MATCH($D$85,'C-Diversion'!$D$88:$D$92,0))","v":550.28187607690188},{"$f":"'C-Values and Rates'!AV89*INDEX('C-Diversion'!AV$88:AV$92, MATCH($D$85,'C-Diversion'!$D$88:$D$92,0))","v":561.81752316341829},{"$f":"'C-Values and Rates'!AW89*INDEX('C-Diversion'!AW$88:AW$92, MATCH($D$85,'C-Diversion'!$D$88:$D$92,0))","v":562.34803320298795},{"$f":"'C-Values and Rates'!AX89*INDEX('C-Diversion'!AX$88:AX$92, MATCH($D$85,'C-Diversion'!$D$88:$D$92,0))","v":562.87904418973426},{"$f":"'C-Values and Rates'!AY89*INDEX('C-Diversion'!AY$88:AY$92, MATCH($D$85,'C-Diversion'!$D$88:$D$92,0))","v":563.41055659668905},{"$f":"'C-Values and Rates'!AZ89*INDEX('C-Diversion'!AZ$88:AZ$92, MATCH($D$85,'C-Diversion'!$D$88:$D$92,0))","v":563.94257089733082},{"$f":"'C-Values and Rates'!BA89*INDEX('C-Diversion'!BA$88:BA$92, MATCH($D$85,'C-Diversion'!$D$88:$D$92,0))","v":564.47508756558477},{"$f":"'C-Values and Rates'!BB89*INDEX('C-Diversion'!BB$88:BB$92, MATCH($D$85,'C-Diversion'!$D$88:$D$92,0))","v":565.00810707582411},{"$f":"'C-Values and Rates'!BC89*INDEX('C-Diversion'!BC$88:BC$92, MATCH($D$85,'C-Diversion'!$D$88:$D$92,0))","v":565.54162990286977},{"$f":"'C-Values and Rates'!BD89*INDEX('C-Diversion'!BD$88:BD$92, MATCH($D$85,'C-Diversion'!$D$88:$D$92,0))","v":566.07565652199094},{"$f":"'C-Values and Rates'!BE89*INDEX('C-Diversion'!BE$88:BE$92, MATCH($D$85,'C-Diversion'!$D$88:$D$92,0))","v":566.61018740890574},{"$f":"'C-Values and Rates'!BF89*INDEX('C-Diversion'!BF$88:BF$92, MATCH($D$85,'C-Diversion'!$D$88:$D$92,0))","v":567.1452230397814},{"$f":"'C-Values and Rates'!BG89*INDEX('C-Diversion'!BG$88:BG$92, MATCH($D$85,'C-Diversion'!$D$88:$D$92,0))","v":567.68076389123507},{"$f":"'C-Values and Rates'!BH89*INDEX('C-Diversion'!BH$88:BH$92, MATCH($D$85,'C-Diversion'!$D$88:$D$92,0))","v":568.21681044033335},{"$f":"'C-Values and Rates'!BI89*INDEX('C-Diversion'!BI$88:BI$92, MATCH($D$85,'C-Diversion'!$D$88:$D$92,0))","v":568.75336316459402},{"$f":"'C-Values and Rates'!BJ89*INDEX('C-Diversion'!BJ$88:BJ$92, MATCH($D$85,'C-Diversion'!$D$88:$D$92,0))","v":569.29042254198544},{"$f":"'C-Values and Rates'!BK89*INDEX('C-Diversion'!BK$88:BK$92, MATCH($D$85,'C-Diversion'!$D$88:$D$92,0))","v":569.82798905092716},{"$f":"'C-Values and Rates'!BL89*INDEX('C-Diversion'!BL$88:BL$92, MATCH($D$85,'C-Diversion'!$D$88:$D$92,0))","v":570.36606317029054},{"$f":"'C-Values and Rates'!BM89*INDEX('C-Diversion'!BM$88:BM$92, MATCH($D$85,'C-Diversion'!$D$88:$D$92,0))","v":570.90464537939943},{"$f":"'C-Values and Rates'!BN89*INDEX('C-Diversion'!BN$88:BN$92, MATCH($D$85,'C-Diversion'!$D$88:$D$92,0))","v":571.44373615803022},{"$f":"'C-Values and Rates'!BO89*INDEX('C-Diversion'!BO$88:BO$92, MATCH($D$85,'C-Diversion'!$D$88:$D$92,0))","v":571.98333598641193},{"$f":"'C-Values and Rates'!BP89*INDEX('C-Diversion'!BP$88:BP$92, MATCH($D$85,'C-Diversion'!$D$88:$D$92,0))","v":572.52344534522729},{"$f":"'C-Values and Rates'!BQ89*INDEX('C-Diversion'!BQ$88:BQ$92, MATCH($D$85,'C-Diversion'!$D$88:$D$92,0))","v":573.06406471561331},{"$f":"'C-Values and Rates'!BR89*INDEX('C-Diversion'!BR$88:BR$92, MATCH($D$85,'C-Diversion'!$D$88:$D$92,0))","v":573.60519457916075},{"$f":"'C-Values and Rates'!BS89*INDEX('C-Diversion'!BS$88:BS$92, MATCH($D$85,'C-Diversion'!$D$88:$D$92,0))","v":574.14683541791544},{"$f":"'C-Values and Rates'!BT89*INDEX('C-Diversion'!BT$88:BT$92, MATCH($D$85,'C-Diversion'!$D$88:$D$92,0))","v":574.68898771437819},{"$f":"'C-Values and Rates'!BU89*INDEX('C-Diversion'!BU$88:BU$92, MATCH($D$85,'C-Diversion'!$D$88:$D$92,0))","v":575.23165195150568},{"$f":"'C-Values and Rates'!BV89*INDEX('C-Diversion'!BV$88:BV$92, MATCH($D$85,'C-Diversion'!$D$88:$D$92,0))","v":575.77482861271028},{"$f":"'C-Values and Rates'!BW89*INDEX('C-Diversion'!BW$88:BW$92, MATCH($D$85,'C-Diversion'!$D$88:$D$92,0))","v":576.31851818186135},{"$f":"'C-Values and Rates'!BX89*INDEX('C-Diversion'!BX$88:BX$92, MATCH($D$85,'C-Diversion'!$D$88:$D$92,0))","v":0},{"$f":"'C-Values and Rates'!BY89*INDEX('C-Diversion'!BY$88:BY$92, MATCH($D$85,'C-Diversion'!$D$88:$D$92,0))","v":0},{"$f":"'C-Values and Rates'!BZ89*INDEX('C-Diversion'!BZ$88:BZ$92, MATCH($D$85,'C-Diversion'!$D$88:$D$92,0))","v":0},{"$f":"'C-Values and Rates'!CA89*INDEX('C-Diversion'!CA$88:CA$92, MATCH($D$85,'C-Diversion'!$D$88:$D$92,0))","v":0},{"$f":"'C-Values and Rates'!CB89*INDEX('C-Diversion'!CB$88:CB$92, MATCH($D$85,'C-Diversion'!$D$88:$D$92,0))","v":0},{"$f":"'C-Values and Rates'!CC89*INDEX('C-Diversion'!CC$88:CC$92, MATCH($D$85,'C-Diversion'!$D$88:$D$92,0))","v":0},{"$f":"'C-Values and Rates'!CD89*INDEX('C-Diversion'!CD$88:CD$92, MATCH($D$85,'C-Diversion'!$D$88:$D$92,0))","v":0},{"$f":"'C-Values and Rates'!CE89*INDEX('C-Diversion'!CE$88:CE$92, MATCH($D$85,'C-Diversion'!$D$88:$D$92,0))","v":0}]
[null,null,null,"Greenhouse Gases",null,null,null,{"$f":"SUM(K91:CE91)","v":144976.41269138025},null,"£, 2023 prices",{"$f":"'C-Values and Rates'!K90*INDEX('C-Diversion'!K$88:K$92, MATCH($D$85,'C-Diversion'!$D$88:$D$92,0))","v":0},{"$f":"'C-Values and Rates'!L90*INDEX('C-Diversion'!L$88:L$92, MATCH($D$85,'C-Diversion'!$D$88:$D$92,0))","v":0},{"$f":"'C-Values and Rates'!M90*INDEX('C-Diversion'!M$88:M$92, MATCH($D$85,'C-Diversion'!$D$88:$D$92,0))","v":0},{"$f":"'C-Values and Rates'!N90*INDEX('C-Diversion'!N$88:N$92, MATCH($D$85,'C-Diversion'!$D$88:$D$92,0))","v":0},{"$f":"'C-Values and Rates'!O90*INDEX('C-Diversion'!O$88:O$92, MATCH($D$85,'C-Diversion'!$D$88:$D$92,0))","v":0},{"$f":"'C-Values and Rates'!P90*INDEX('C-Diversion'!P$88:P$92, MATCH($D$85,'C-Diversion'!$D$88:$D$92,0))","v":2967.851163449875},{"$f":"'C-Values and Rates'!Q90*INDEX('C-Diversion'!Q$88:Q$92, MATCH($D$85,'C-Diversion'!$D$88:$D$92,0))","v":2889.7679292303433},{"$f":"'C-Values and Rates'!R90*INDEX('C-Diversion'!R$88:R$92, MATCH($D$85,'C-Diversion'!$D$88:$D$92,0))","v":2813.7390404379912},{"$f":"'C-Values and Rates'!S90*INDEX('C-Diversion'!S$88:S$92, MATCH($D$85,'C-Diversion'!$D$88:$D$92,0))","v":2709.1517798221234},{"$f":"'C-Values and Rates'!T90*INDEX('C-Diversion'!T$88:T$92, MATCH($D$85,'C-Diversion'!$D$88:$D$92,0))","v":2608.4520492600136},{"$f":"'C-Values and Rates'!U90*INDEX('C-Diversion'!U$88:U$92, MATCH($D$85,'C-Diversion'!$D$88:$D$92,0))","v":2511.4953484575526},{"$f":"'C-Values and Rates'!V90*INDEX('C-Diversion'!V$88:V$92, MATCH($D$85,'C-Diversion'!$D$88:$D$92,0))","v":2418.1425482263762},{"$f":"'C-Values and Rates'!W90*INDEX('C-Diversion'!W$88:W$92, MATCH($D$85,'C-Diversion'!$D$88:$D$92,0))","v":2328.2596908387559},{"$f":"'C-Values and Rates'!X90*INDEX('C-Diversion'!X$88:X$92, MATCH($D$85,'C-Diversion'!$D$88:$D$92,0))","v":2277.3418077203669},{"$f":"'C-Values and Rates'!Y90*INDEX('C-Diversion'!Y$88:Y$92, MATCH($D$85,'C-Diversion'!$D$88:$D$92,0))","v":2227.537473417628},{"$f":"'C-Values and Rates'!Z90*INDEX('C-Diversion'!Z$88:Z$92, MATCH($D$85,'C-Diversion'!$D$88:$D$92,0))","v":2178.8223351709794},{"$f":"'C-Values and Rates'!AA90*INDEX('C-Diversion'!AA$88:AA$92, MATCH($D$85,'C-Diversion'!$D$88:$D$92,0))","v":2131.172572803619},{"$f":"'C-Values and Rates'!AB90*INDEX('C-Diversion'!AB$88:AB$92, MATCH($D$85,'C-Diversion'!$D$88:$D$92,0))","v":2084.5648870741807},{"$f":"'C-Values and Rates'!AC90*INDEX('C-Diversion'!AC$88:AC$92, MATCH($D$85,'C-Diversion'!$D$88:$D$92,0))","v":2077.1481950879838},{"$f":"'C-Values and Rates'!AD90*INDEX('C-Diversion'!AD$88:AD$92, MATCH($D$85,'C-Diversion'!$D$88:$D$92,0))","v":2069.7578910162915},{"$f":"'C-Values and Rates'!AE90*INDEX('C-Diversion'!AE$88:AE$92, MATCH($D$85,'C-Diversion'!$D$88:$D$92,0))","v":2062.3938809733072},{"$f":"'C-Values and Rates'!AF90*INDEX('C-Diversion'!AF$88:AF$92, MATCH($D$85,'C-Diversion'!$D$88:$D$92,0))","v":2055.0560714072722},{"$f":"'C-Values and Rates'!AG90*INDEX('C-Diversion'!AG$88:AG$92, MATCH($D$85,'C-Diversion'!$D$88:$D$92,0))","v":2047.7443690992748},{"$f":"'C-Values and Rates'!AH90*INDEX('C-Diversion'!AH$88:AH$92, MATCH($D$85,'C-Diversion'!$D$88:$D$92,0))","v":2062.2150943203501},{"$f":"'C-Values and Rates'!AI90*INDEX('C-Diversion'!AI$88:AI$92, MATCH($D$85,'C-Diversion'!$D$88:$D$92,0))","v":2076.7880793213008},{"$f":"'C-Values and Rates'!AJ90*INDEX('C-Diversion'!AJ$88:AJ$92, MATCH($D$85,'C-Diversion'!$D$88:$D$92,0))","v":2091.4640467378204},{"$f":"'C-Values and Rates'!AK90*INDEX('C-Diversion'!AK$88:AK$92, MATCH($D$85,'C-Diversion'!$D$88:$D$92,0))","v":2106.2437243122313},{"$f":"'C-Values and Rates'!AL90*INDEX('C-Diversion'!AL$88:AL$92, MATCH($D$85,'C-Diversion'!$D$88:$D$92,0))","v":2121.1278449295637},{"$f":"'C-Values and Rates'!AM90*INDEX('C-Diversion'!AM$88:AM$92, MATCH($D$85,'C-Diversion'!$D$88:$D$92,0))","v":2158.1082389112366},{"$f":"'C-Values and Rates'!AN90*INDEX('C-Diversion'!AN$88:AN$92, MATCH($D$85,'C-Diversion'!$D$88:$D$92,0))","v":2195.7333604336422},{"$f":"'C-Values and Rates'!AO90*INDEX('C-Diversion'!AO$88:AO$92, MATCH($D$85,'C-Diversion'!$D$88:$D$92,0))","v":2234.0144498746399},{"$f":"'C-Values and Rates'!AP90*INDEX('C-Diversion'!AP$88:AP$92, MATCH($D$85,'C-Diversion'!$D$88:$D$92,0))","v":2272.9629435802876},{"$f":"'C-Values and Rates'!AQ90*INDEX('C-Diversion'!AQ$88:AQ$92, MATCH($D$85,'C-Diversion'!$D$88:$D$92,0))","v":2312.5904772814129},{"$f":"'C-Values and Rates'!AR90*INDEX('C-Diversion'!AR$88:AR$92, MATCH($D$85,'C-Diversion'!$D$88:$D$92,0))","v":2351.1897554572588},{"$f":"'C-Values and Rates'!AS90*INDEX('C-Diversion'!AS$88:AS$92, MATCH($D$85,'C-Diversion'!$D$88:$D$92,0))","v":2390.4332913563517},{"$f":"'C-Values and Rates'!AT90*INDEX('C-Diversion'!AT$88:AT$92, MATCH($D$85,'C-Diversion'!$D$88:$D$92,0))","v":2430.3318382371353},{"$f":"'C-Values and Rates'!AU90*INDEX('C-Diversion'!AU$88:AU$92, MATCH($D$85,'C-Diversion'!$D$88:$D$92,0))","v":2470.8963288399009},{"$f":"'C-Values and Rates'!AV90*INDEX('C-Diversion'!AV$88:AV$92, MATCH($D$85,'C-Diversion'!$D$88:$D$92,0))","v":2512.1378783825107},{"$f":"'C-Values and Rates'!AW90*INDEX('C-Diversion'!AW$88:AW$92, MATCH($D$85,'C-Diversion'!$D$88:$D$92,0))","v":2514.5100264738717},{"$f":"'C-Values and Rates'!AX90*INDEX('C-Diversion'!AX$88:AX$92, MATCH($D$85,'C-Diversion'!$D$88:$D$92,0))","v":2516.8844145245175},{"$f":"'C-Values and Rates'!AY90*INDEX('C-Diversion'!AY$88:AY$92, MATCH($D$85,'C-Diversion'!$D$88:$D$92,0))","v":2519.261044649586},{"$f":"'C-Values and Rates'!AZ90*INDEX('C-Diversion'!AZ$88:AZ$92, MATCH($D$85,'C-Diversion'!$D$88:$D$92,0))","v":2521.6399189662106},{"$f":"'C-Values and Rates'!BA90*INDEX('C-Diversion'!BA$88:BA$92, MATCH($D$85,'C-Diversion'!$D$88:$D$92,0))","v":2524.0210395935246},{"$f":"'C-Values and Rates'!BB90*INDEX('C-Diversion'!BB$88:BB$92, MATCH($D$85,'C-Diversion'!$D$88:$D$92,0))","v":2526.4044086526624},{"$f":"'C-Values and Rates'!BC90*INDEX('C-Diversion'!BC$88:BC$92, MATCH($D$85,'C-Diversion'!$D$88:$D$92,0))","v":2528.7900282667615},{"$f":"'C-Values and Rates'!BD90*INDEX('C-Diversion'!BD$88:BD$92, MATCH($D$85,'C-Diversion'!$D$88:$D$92,0))","v":2531.1779005609633},{"$f":"'C-Values and Rates'!BE90*INDEX('C-Diversion'!BE$88:BE$92, MATCH($D$85,'C-Diversion'!$D$88:$D$92,0))","v":2533.5680276624162},{"$f":"'C-Values and Rates'!BF90*INDEX('C-Diversion'!BF$88:BF$92, MATCH($D$85,'C-Diversion'!$D$88:$D$92,0))","v":2535.9604117002777},{"$f":"'C-Values and Rates'!BG90*INDEX('C-Diversion'!BG$88:BG$92, MATCH($D$85,'C-Diversion'!$D$88:$D$92,0))","v":2538.3550548057165},{"$f":"'C-Values and Rates'!BH90*INDEX('C-Diversion'!BH$88:BH$92, MATCH($D$85,'C-Diversion'!$D$88:$D$92,0))","v":2540.7519591119112},{"$f":"'C-Values and Rates'!BI90*INDEX('C-Diversion'!BI$88:BI$92, MATCH($D$85,'C-Diversion'!$D$88:$D$92,0))","v":2543.1511267540577},{"$f":"'C-Values and Rates'!BJ90*INDEX('C-Diversion'!BJ$88:BJ$92, MATCH($D$85,'C-Diversion'!$D$88:$D$92,0))","v":2545.5525598693666},{"$f":"'C-Values and Rates'!BK90*INDEX('C-Diversion'!BK$88:BK$92, MATCH($D$85,'C-Diversion'!$D$88:$D$92,0))","v":2547.9562605970659},{"$f":"'C-Values and Rates'!BL90*INDEX('C-Diversion'!BL$88:BL$92, MATCH($D$85,'C-Diversion'!$D$88:$D$92,0))","v":2550.3622310784049},{"$f":"'C-Values and Rates'!BM90*INDEX('C-Diversion'!BM$88:BM$92, MATCH($D$85,'C-Diversion'!$D$88:$D$92,0))","v":2552.7704734566546},{"$f":"'C-Values and Rates'!BN90*INDEX('C-Diversion'!BN$88:BN$92, MATCH($D$85,'C-Diversion'!$D$88:$D$92,0))","v":2555.1809898771098},{"$f":"'C-Values and Rates'!BO90*INDEX('C-Diversion'!BO$88:BO$92, MATCH($D$85,'C-Diversion'!$D$88:$D$92,0))","v":2557.5937824870907},{"$f":"'C-Values and Rates'!BP90*INDEX('C-Diversion'!BP$88:BP$92, MATCH($D$85,'C-Diversion'!$D$88:$D$92,0))","v":2560.0088534359447},{"$f":"'C-Values and Rates'!BQ90*INDEX('C-Diversion'!BQ$88:BQ$92, MATCH($D$85,'C-Diversion'!$D$88:$D$92,0))","v":2562.4262048750506},{"$f":"'C-Values and Rates'!BR90*INDEX('C-Diversion'!BR$88:BR$92, MATCH($D$85,'C-Diversion'!$D$88:$D$92,0))","v":2564.8458389578168},{"$f":"'C-Values and Rates'!BS90*INDEX('C-Diversion'!BS$88:BS$92, MATCH($D$85,'C-Diversion'!$D$88:$D$92,0))","v":2567.2677578396861},{"$f":"'C-Values and Rates'!BT90*INDEX('C-Diversion'!BT$88:BT$92, MATCH($D$85,'C-Diversion'!$D$88:$D$92,0))","v":2569.6919636781358},{"$f":"'C-Values and Rates'!BU90*INDEX('C-Diversion'!BU$88:BU$92, MATCH($D$85,'C-Diversion'!$D$88:$D$92,0))","v":2572.1184586326817},{"$f":"'C-Values and Rates'!BV90*INDEX('C-Diversion'!BV$88:BV$92, MATCH($D$85,'C-Diversion'!$D$88:$D$92,0))","v":2574.5472448648775},{"$f":"'C-Values and Rates'!BW90*INDEX('C-Diversion'!BW$88:BW$92, MATCH($D$85,'C-Diversion'!$D$88:$D$92,0))","v":2576.9783245383192},{"$f":"'C-Values and Rates'!BX90*INDEX('C-Diversion'!BX$88:BX$92, MATCH($D$85,'C-Diversion'!$D$88:$D$92,0))","v":0},{"$f":"'C-Values and Rates'!BY90*INDEX('C-Diversion'!BY$88:BY$92, MATCH($D$85,'C-Diversion'!$D$88:$D$92,0))","v":0},{"$f":"'C-Values and Rates'!BZ90*INDEX('C-Diversion'!BZ$88:BZ$92, MATCH($D$85,'C-Diversion'!$D$88:$D$92,0))","v":0},{"$f":"'C-Values and Rates'!CA90*INDEX('C-Diversion'!CA$88:CA$92, MATCH($D$85,'C-Diversion'!$D$88:$D$92,0))","v":0},{"$f":"'C-Values and Rates'!CB90*INDEX('C-Diversion'!CB$88:CB$92, MATCH($D$85,'C-Diversion'!$D$88:$D$92,0))","v":0},{"$f":"'C-Values and Rates'!CC90*INDEX('C-Diversion'!CC$88:CC$92, MATCH($D$85,'C-Diversion'!$D$88:$D$92,0))","v":0},{"$f":"'C-Values and Rates'!CD90*INDEX('C-Diversion'!CD$88:CD$92, MATCH($D$85,'C-Diversion'!$D$88:$D$92,0))","v":0},{"$f":"'C-Values and Rates'!CE90*INDEX('C-Diversion'!CE$88:CE$92, MATCH($D$85,'C-Diversion'!$D$88:$D$92,0))","v":0}]
[null,null,null,"Indirect Taxation",null,null,null,72301.498640276986,null,"£, 2023 prices",{"$f":"'C-Values and Rates'!K91*INDEX('C-Diversion'!K$88:K$92, MATCH($D$85,'C-Diversion'!$D$88:$D$92,0))","v":0},{"$f":"'C-Values and Rates'!L91*INDEX('C-Diversion'!L$88:L$92, MATCH($D$85,'C-Diversion'!$D$88:$D$92,0))","v":0},{"$f":"'C-Values and Rates'!M91*INDEX('C-Diversion'!M$88:M$92, MATCH($D$85,'C-Diversion'!$D$88:$D$92,0))","v":0},{"$f":"'C-Values and Rates'!N91*INDEX('C-Diversion'!N$88:N$92, MATCH($D$85,'C-Diversion'!$D$88:$D$92,0))","v":0},{"$f":"'C-Values and Rates'!O91*INDEX('C-Diversion'!O$88:O$92, MATCH($D$85,'C-Diversion'!$D$88:$D$92,0))","v":0},{"$f":"'C-Values and Rates'!P91*INDEX('C-Diversion'!P$88:P$92, MATCH($D$85,'C-Diversion'!$D$88:$D$92,0))","v":-1449.6135289704289},{"$f":"'C-Values and Rates'!Q91*INDEX('C-Diversion'!Q$88:Q$92, MATCH($D$85,'C-Diversion'!$D$88:$D$92,0))","v":-1151.0796443332647},{"$f":"'C-Values and Rates'!R91*INDEX('C-Diversion'!R$88:R$92, MATCH($D$85,'C-Diversion'!$D$88:$D$92,0))","v":-845.02808430077982},{"$f":"'C-Values and Rates'!S91*INDEX('C-Diversion'!S$88:S$92, MATCH($D$85,'C-Diversion'!$D$88:$D$92,0))","v":-585.09148846847552},{"$f":"'C-Values and Rates'!T91*INDEX('C-Diversion'!T$88:T$92, MATCH($D$85,'C-Diversion'!$D$88:$D$92,0))","v":-320.71924828257283},{"$f":"'C-Values and Rates'!U91*INDEX('C-Diversion'!U$88:U$92, MATCH($D$85,'C-Diversion'!$D$88:$D$92,0))","v":-51.855109503712924},{"$f":"'C-Values and Rates'!V91*INDEX('C-Diversion'!V$88:V$92, MATCH($D$85,'C-Diversion'!$D$88:$D$92,0))","v":221.55781484450944},{"$f":"'C-Values and Rates'!W91*INDEX('C-Diversion'!W$88:W$92, MATCH($D$85,'C-Diversion'!$D$88:$D$92,0))","v":499.57705114166464},{"$f":"'C-Values and Rates'!X91*INDEX('C-Diversion'!X$88:X$92, MATCH($D$85,'C-Diversion'!$D$88:$D$92,0))","v":630.66056686772856},{"$f":"'C-Values and Rates'!Y91*INDEX('C-Diversion'!Y$88:Y$92, MATCH($D$85,'C-Diversion'!$D$88:$D$92,0))","v":763.06560615120679},{"$f":"'C-Values and Rates'!Z91*INDEX('C-Diversion'!Z$88:Z$92, MATCH($D$85,'C-Diversion'!$D$88:$D$92,0))","v":896.80222616266678},{"$f":"'C-Values and Rates'!AA91*INDEX('C-Diversion'!AA$88:AA$92, MATCH($D$85,'C-Diversion'!$D$88:$D$92,0))","v":1031.8805522174525},{"$f":"'C-Values and Rates'!AB91*INDEX('C-Diversion'!AB$88:AB$92, MATCH($D$85,'C-Diversion'!$D$88:$D$92,0))","v":1168.3107782088405},{"$f":"'C-Values and Rates'!AC91*INDEX('C-Diversion'!AC$88:AC$92, MATCH($D$85,'C-Diversion'!$D$88:$D$92,0))","v":1223.0304177249004},{"$f":"'C-Values and Rates'!AD91*INDEX('C-Diversion'!AD$88:AD$92, MATCH($D$85,'C-Diversion'!$D$88:$D$92,0))","v":1278.1092827932143},{"$f":"'C-Values and Rates'!AE91*INDEX('C-Diversion'!AE$88:AE$92, MATCH($D$85,'C-Diversion'!$D$88:$D$92,0))","v":1333.5491857626121},{"$f":"'C-Values and Rates'!AF91*INDEX('C-Diversion'!AF$88:AF$92, MATCH($D$85,'C-Diversion'!$D$88:$D$92,0))","v":1389.3519471606639},{"$f":"'C-Values and Rates'!AG91*INDEX('C-Diversion'!AG$88:AG$92, MATCH($D$85,'C-Diversion'!$D$88:$D$92,0))","v":1445.5193957283632},{"$f":"'C-Values and Rates'!AH91*INDEX('C-Diversion'!AH$88:AH$92, MATCH($D$85,'C-Diversion'!$D$88:$D$92,0))","v":1459.3413745423063},{"$f":"'C-Values and Rates'!AI91*INDEX('C-Diversion'!AI$88:AI$92, MATCH($D$85,'C-Diversion'!$D$88:$D$92,0))","v":1473.2170586711718},{"$f":"'C-Values and Rates'!AJ91*INDEX('C-Diversion'!AJ$88:AJ$92, MATCH($D$85,'C-Diversion'!$D$88:$D$92,0))","v":1487.1466172677303},{"$f":"'C-Values and Rates'!AK91*INDEX('C-Diversion'!AK$88:AK$92, MATCH($D$85,'C-Diversion'!$D$88:$D$92,0))","v":1501.1302199685374},{"$f":"'C-Values and Rates'!AL91*INDEX('C-Diversion'!AL$88:AL$92, MATCH($D$85,'C-Diversion'!$D$88:$D$92,0))","v":1515.1680368952423},{"$f":"'C-Values and Rates'!AM91*INDEX('C-Diversion'!AM$88:AM$92, MATCH($D$85,'C-Diversion'!$D$88:$D$92,0))","v":1517.8690128139572},{"$f":"'C-Values and Rates'!AN91*INDEX('C-Diversion'!AN$88:AN$92, MATCH($D$85,'C-Diversion'!$D$88:$D$92,0))","v":1520.5745897179957},{"$f":"'C-Values and Rates'!AO91*INDEX('C-Diversion'!AO$88:AO$92, MATCH($D$85,'C-Diversion'!$D$88:$D$92,0))","v":1523.2847752074613},{"$f":"'C-Values and Rates'!AP91*INDEX('C-Diversion'!AP$88:AP$92, MATCH($D$85,'C-Diversion'!$D$88:$D$92,0))","v":1525.9995768947351},{"$f":"'C-Values and Rates'!AQ91*INDEX('C-Diversion'!AQ$88:AQ$92, MATCH($D$85,'C-Diversion'!$D$88:$D$92,0))","v":1528.7190024044985},{"$f":"'C-Values and Rates'!AR91*INDEX('C-Diversion'!AR$88:AR$92, MATCH($D$85,'C-Diversion'!$D$88:$D$92,0))","v":1530.7029724902509},{"$f":"'C-Values and Rates'!AS91*INDEX('C-Diversion'!AS$88:AS$92, MATCH($D$85,'C-Diversion'!$D$88:$D$92,0))","v":1532.6893263119557},{"$f":"'C-Values and Rates'!AT91*INDEX('C-Diversion'!AT$88:AT$92, MATCH($D$85,'C-Diversion'!$D$88:$D$92,0))","v":1534.6780666024008},{"$f":"'C-Values and Rates'!AU91*INDEX('C-Diversion'!AU$88:AU$92, MATCH($D$85,'C-Diversion'!$D$88:$D$92,0))","v":1536.6691960974074},{"$f":"'C-Values and Rates'!AV91*INDEX('C-Diversion'!AV$88:AV$92, MATCH($D$85,'C-Diversion'!$D$88:$D$92,0))","v":1538.6627175358383},{"$f":"'C-Values and Rates'!AW91*INDEX('C-Diversion'!AW$88:AW$92, MATCH($D$85,'C-Diversion'!$D$88:$D$92,0))","v":1540.1156377199013},{"$f":"'C-Values and Rates'!AX91*INDEX('C-Diversion'!AX$88:AX$92, MATCH($D$85,'C-Diversion'!$D$88:$D$92,0))","v":1541.5699298596478},{"$f":"'C-Values and Rates'!AY91*INDEX('C-Diversion'!AY$88:AY$92, MATCH($D$85,'C-Diversion'!$D$88:$D$92,0))","v":1543.0255952505815},{"$f":"'C-Values and Rates'!AZ91*INDEX('C-Diversion'!AZ$88:AZ$92, MATCH($D$85,'C-Diversion'!$D$88:$D$92,0))","v":1544.4826351894287},{"$f":"'C-Values and Rates'!BA91*INDEX('C-Diversion'!BA$88:BA$92, MATCH($D$85,'C-Diversion'!$D$88:$D$92,0))","v":1545.9410509741399},{"$f":"'C-Values and Rates'!BB91*INDEX('C-Diversion'!BB$88:BB$92, MATCH($D$85,'C-Diversion'!$D$88:$D$92,0))","v":1547.4008439038914},{"$f":"'C-Values and Rates'!BC91*INDEX('C-Diversion'!BC$88:BC$92, MATCH($D$85,'C-Diversion'!$D$88:$D$92,0))","v":1548.8620152790866},{"$f":"'C-Values and Rates'!BD91*INDEX('C-Diversion'!BD$88:BD$92, MATCH($D$85,'C-Diversion'!$D$88:$D$92,0))","v":1550.3245664013564},{"$f":"'C-Values and Rates'!BE91*INDEX('C-Diversion'!BE$88:BE$92, MATCH($D$85,'C-Diversion'!$D$88:$D$92,0))","v":1551.7884985735609},{"$f":"'C-Values and Rates'!BF91*INDEX('C-Diversion'!BF$88:BF$92, MATCH($D$85,'C-Diversion'!$D$88:$D$92,0))","v":1553.2538130997905},{"$f":"'C-Values and Rates'!BG91*INDEX('C-Diversion'!BG$88:BG$92, MATCH($D$85,'C-Diversion'!$D$88:$D$92,0))","v":1554.7205112853674},{"$f":"'C-Values and Rates'!BH91*INDEX('C-Diversion'!BH$88:BH$92, MATCH($D$85,'C-Diversion'!$D$88:$D$92,0))","v":1556.1885944368455},{"$f":"'C-Values and Rates'!BI91*INDEX('C-Diversion'!BI$88:BI$92, MATCH($D$85,'C-Diversion'!$D$88:$D$92,0))","v":1557.6580638620133},{"$f":"'C-Values and Rates'!BJ91*INDEX('C-Diversion'!BJ$88:BJ$92, MATCH($D$85,'C-Diversion'!$D$88:$D$92,0))","v":1559.128920869894},{"$f":"'C-Values and Rates'!BK91*INDEX('C-Diversion'!BK$88:BK$92, MATCH($D$85,'C-Diversion'!$D$88:$D$92,0))","v":1560.6011667707467},{"$f":"'C-Values and Rates'!BL91*INDEX('C-Diversion'!BL$88:BL$92, MATCH($D$85,'C-Diversion'!$D$88:$D$92,0))","v":1562.0748028760672},{"$f":"'C-Values and Rates'!BM91*INDEX('C-Diversion'!BM$88:BM$92, MATCH($D$85,'C-Diversion'!$D$88:$D$92,0))","v":1563.5498304985911},{"$f":"'C-Values and Rates'!BN91*INDEX('C-Diversion'!BN$88:BN$92, MATCH($D$85,'C-Diversion'!$D$88:$D$92,0))","v":1565.0262509522927},{"$f":"'C-Values and Rates'!BO91*INDEX('C-Diversion'!BO$88:BO$92, MATCH($D$85,'C-Diversion'!$D$88:$D$92,0))","v":1566.5040655523869},{"$f":"'C-Values and Rates'!BP91*INDEX('C-Diversion'!BP$88:BP$92, MATCH($D$85,'C-Diversion'!$D$88:$D$92,0))","v":1567.9832756153307},{"$f":"'C-Values and Rates'!BQ91*INDEX('C-Diversion'!BQ$88:BQ$92, MATCH($D$85,'C-Diversion'!$D$88:$D$92,0))","v":1569.4638824588246},{"$f":"'C-Values and Rates'!BR91*INDEX('C-Diversion'!BR$88:BR$92, MATCH($D$85,'C-Diversion'!$D$88:$D$92,0))","v":1570.945887401813},{"$f":"'C-Values and Rates'!BS91*INDEX('C-Diversion'!BS$88:BS$92, MATCH($D$85,'C-Diversion'!$D$88:$D$92,0))","v":1572.4292917644859},{"$f":"'C-Values and Rates'!BT91*INDEX('C-Diversion'!BT$88:BT$92, MATCH($D$85,'C-Diversion'!$D$88:$D$92,0))","v":1573.9140968682796},{"$f":"'C-Values and Rates'!BU91*INDEX('C-Diversion'!BU$88:BU$92, MATCH($D$85,'C-Diversion'!$D$88:$D$92,0))","v":1575.4003040358784},{"$f":"'C-Values and Rates'!BV91*INDEX('C-Diversion'!BV$88:BV$92, MATCH($D$85,'C-Diversion'!$D$88:$D$92,0))","v":1576.8879145912153},{"$f":"'C-Values and Rates'!BW91*INDEX('C-Diversion'!BW$88:BW$92, MATCH($D$85,'C-Diversion'!$D$88:$D$92,0))","v":1578.3769298594746},{"$f":"'C-Values and Rates'!BX91*INDEX('C-Diversion'!BX$88:BX$92, MATCH($D$85,'C-Diversion'!$D$88:$D$92,0))","v":0},{"$f":"'C-Values and Rates'!BY91*INDEX('C-Diversion'!BY$88:BY$92, MATCH($D$85,'C-Diversion'!$D$88:$D$92,0))","v":0},{"$f":"'C-Values and Rates'!BZ91*INDEX('C-Diversion'!BZ$88:BZ$92, MATCH($D$85,'C-Diversion'!$D$88:$D$92,0))","v":0},{"$f":"'C-Values and Rates'!CA91*INDEX('C-Diversion'!CA$88:CA$92, MATCH($D$85,'C-Diversion'!$D$88:$D$92,0))","v":0},{"$f":"'C-Values and Rates'!CB91*INDEX('C-Diversion'!CB$88:CB$92, MATCH($D$85,'C-Diversion'!$D$88:$D$92,0))","v":0},{"$f":"'C-Values and Rates'!CC91*INDEX('C-Diversion'!CC$88:CC$92, MATCH($D$85,'C-Diversion'!$D$88:$D$92,0))","v":0},{"$f":"'C-Values and Rates'!CD91*INDEX('C-Diversion'!CD$88:CD$92, MATCH($D$85,'C-Diversion'!$D$88:$D$92,0))","v":0},{"$f":"'C-Values and Rates'!CE91*INDEX('C-Diversion'!CE$88:CE$92, MATCH($D$85,'C-Diversion'!$D$88:$D$92,0))","v":0}]
[]
[null,null,null,"LGV"]
[null,null,null,"Congestion",null,null,null,{"$f":"SUM(K95:CE95)","v":1215114.3955033582},null,"£, 2023 prices",{"$f":"'C-Values and Rates'!K94*INDEX('C-Diversion'!K$88:K$92, MATCH($D$94,'C-Diversion'!$D$88:$D$92,0))","v":0},{"$f":"'C-Values and Rates'!L94*INDEX('C-Diversion'!L$88:L$92, MATCH($D$94,'C-Diversion'!$D$88:$D$92,0))","v":0},{"$f":"'C-Values and Rates'!M94*INDEX('C-Diversion'!M$88:M$92, MATCH($D$94,'C-Diversion'!$D$88:$D$92,0))","v":0},{"$f":"'C-Values and Rates'!N94*INDEX('C-Diversion'!N$88:N$92, MATCH($D$94,'C-Diversion'!$D$88:$D$92,0))","v":0},{"$f":"'C-Values and Rates'!O94*INDEX('C-Diversion'!O$88:O$92, MATCH($D$94,'C-Diversion'!$D$88:$D$92,0))","v":0},{"$f":"'C-Values and Rates'!P94*INDEX('C-Diversion'!P$88:P$92, MATCH($D$94,'C-Diversion'!$D$88:$D$92,0))","v":11811.782389601152},{"$f":"'C-Values and Rates'!Q94*INDEX('C-Diversion'!Q$88:Q$92, MATCH($D$94,'C-Diversion'!$D$88:$D$92,0))","v":11997.277468209097},{"$f":"'C-Values and Rates'!R94*INDEX('C-Diversion'!R$88:R$92, MATCH($D$94,'C-Diversion'!$D$88:$D$92,0))","v":12185.685606256578},{"$f":"'C-Values and Rates'!S94*INDEX('C-Diversion'!S$88:S$92, MATCH($D$94,'C-Diversion'!$D$88:$D$92,0))","v":12319.043882563219},{"$f":"'C-Values and Rates'!T94*INDEX('C-Diversion'!T$88:T$92, MATCH($D$94,'C-Diversion'!$D$88:$D$92,0))","v":12453.86161141394},{"$f":"'C-Values and Rates'!U94*INDEX('C-Diversion'!U$88:U$92, MATCH($D$94,'C-Diversion'!$D$88:$D$92,0))","v":12590.154764833789},{"$f":"'C-Values and Rates'!V94*INDEX('C-Diversion'!V$88:V$92, MATCH($D$94,'C-Diversion'!$D$88:$D$92,0))","v":12727.939489643195},{"$f":"'C-Values and Rates'!W94*INDEX('C-Diversion'!W$88:W$92, MATCH($D$94,'C-Diversion'!$D$88:$D$92,0))","v":12867.232109370931},{"$f":"'C-Values and Rates'!X94*INDEX('C-Diversion'!X$88:X$92, MATCH($D$94,'C-Diversion'!$D$88:$D$92,0))","v":13271.468296405947},{"$f":"'C-Values and Rates'!Y94*INDEX('C-Diversion'!Y$88:Y$92, MATCH($D$94,'C-Diversion'!$D$88:$D$92,0))","v":13688.403943085408},{"$f":"'C-Values and Rates'!Z94*INDEX('C-Diversion'!Z$88:Z$92, MATCH($D$94,'C-Diversion'!$D$88:$D$92,0))","v":14118.43801486671},{"$f":"'C-Values and Rates'!AA94*INDEX('C-Diversion'!AA$88:AA$92, MATCH($D$94,'C-Diversion'!$D$88:$D$92,0))","v":14561.982011081987},{"$f":"'C-Values and Rates'!AB94*INDEX('C-Diversion'!AB$88:AB$92, MATCH($D$94,'C-Diversion'!$D$88:$D$92,0))","v":15019.460358701548},{"$f":"'C-Values and Rates'!AC94*INDEX('C-Diversion'!AC$88:AC$92, MATCH($D$94,'C-Diversion'!$D$88:$D$92,0))","v":15272.529050548206},{"$f":"'C-Values and Rates'!AD94*INDEX('C-Diversion'!AD$88:AD$92, MATCH($D$94,'C-Diversion'!$D$88:$D$92,0))","v":15529.861794582061},{"$f":"'C-Values and Rates'!AE94*INDEX('C-Diversion'!AE$88:AE$92, MATCH($D$94,'C-Diversion'!$D$88:$D$92,0))","v":15791.530437466257},{"$f":"'C-Values and Rates'!AF94*INDEX('C-Diversion'!AF$88:AF$92, MATCH($D$94,'C-Diversion'!$D$88:$D$92,0))","v":16057.608036436117},{"$f":"'C-Values and Rates'!AG94*INDEX('C-Diversion'!AG$88:AG$92, MATCH($D$94,'C-Diversion'!$D$88:$D$92,0))","v":16328.168879696583},{"$f":"'C-Values and Rates'!AH94*INDEX('C-Diversion'!AH$88:AH$92, MATCH($D$94,'C-Diversion'!$D$88:$D$92,0))","v":16581.021145001752},{"$f":"'C-Values and Rates'!AI94*INDEX('C-Diversion'!AI$88:AI$92, MATCH($D$94,'C-Diversion'!$D$88:$D$92,0))","v":16837.788991321617},{"$f":"'C-Values and Rates'!AJ94*INDEX('C-Diversion'!AJ$88:AJ$92, MATCH($D$94,'C-Diversion'!$D$88:$D$92,0))","v":17098.533053962965},{"$f":"'C-Values and Rates'!AK94*INDEX('C-Diversion'!AK$88:AK$92, MATCH($D$94,'C-Diversion'!$D$88:$D$92,0))","v":17363.314907209591},{"$f":"'C-Values and Rates'!AL94*INDEX('C-Diversion'!AL$88:AL$92, MATCH($D$94,'C-Diversion'!$D$88:$D$92,0))","v":17632.197078862919},{"$f":"'C-Values and Rates'!AM94*INDEX('C-Diversion'!AM$88:AM$92, MATCH($D$94,'C-Diversion'!$D$88:$D$92,0))","v":18028.394182052518},{"$f":"'C-Values and Rates'!AN94*INDEX('C-Diversion'!AN$88:AN$92, MATCH($D$94,'C-Diversion'!$D$88:$D$92,0))","v":18433.493870885522},{"$f":"'C-Values and Rates'!AO94*INDEX('C-Diversion'!AO$88:AO$92, MATCH($D$94,'C-Diversion'!$D$88:$D$92,0))","v":18847.696187286754},{"$f":"'C-Values and Rates'!AP94*INDEX('C-Diversion'!AP$88:AP$92, MATCH($D$94,'C-Diversion'!$D$88:$D$92,0))","v":19271.205668141669},{"$f":"'C-Values and Rates'!AQ94*INDEX('C-Diversion'!AQ$88:AQ$92, MATCH($D$94,'C-Diversion'!$D$88:$D$92,0))","v":19704.231446298469},{"$f":"'C-Values and Rates'!AR94*INDEX('C-Diversion'!AR$88:AR$92, MATCH($D$94,'C-Diversion'!$D$88:$D$92,0))","v":20184.795920403714},{"$f":"'C-Values and Rates'!AS94*INDEX('C-Diversion'!AS$88:AS$92, MATCH($D$94,'C-Diversion'!$D$88:$D$92,0))","v":20677.080832040429},{"$f":"'C-Values and Rates'!AT94*INDEX('C-Diversion'!AT$88:AT$92, MATCH($D$94,'C-Diversion'!$D$88:$D$92,0))","v":21181.372029754086},{"$f":"'C-Values and Rates'!AU94*INDEX('C-Diversion'!AU$88:AU$92, MATCH($D$94,'C-Diversion'!$D$88:$D$92,0))","v":21697.962333620944},{"$f":"'C-Values and Rates'!AV94*INDEX('C-Diversion'!AV$88:AV$92, MATCH($D$94,'C-Diversion'!$D$88:$D$92,0))","v":22227.151705275974},{"$f":"'C-Values and Rates'!AW94*INDEX('C-Diversion'!AW$88:AW$92, MATCH($D$94,'C-Diversion'!$D$88:$D$92,0))","v":22424.391666414802},{"$f":"'C-Values and Rates'!AX94*INDEX('C-Diversion'!AX$88:AX$92, MATCH($D$94,'C-Diversion'!$D$88:$D$92,0))","v":22623.381901398247},{"$f":"'C-Values and Rates'!AY94*INDEX('C-Diversion'!AY$88:AY$92, MATCH($D$94,'C-Diversion'!$D$88:$D$92,0))","v":22824.137941858498},{"$f":"'C-Values and Rates'!AZ94*INDEX('C-Diversion'!AZ$88:AZ$92, MATCH($D$94,'C-Diversion'!$D$88:$D$92,0))","v":23026.675457252837},{"$f":"'C-Values and Rates'!BA94*INDEX('C-Diversion'!BA$88:BA$92, MATCH($D$94,'C-Diversion'!$D$88:$D$92,0))","v":23231.0102560866},{"$f":"'C-Values and Rates'!BB94*INDEX('C-Diversion'!BB$88:BB$92, MATCH($D$94,'C-Diversion'!$D$88:$D$92,0))","v":23437.158287147133},{"$f":"'C-Values and Rates'!BC94*INDEX('C-Diversion'!BC$88:BC$92, MATCH($D$94,'C-Diversion'!$D$88:$D$92,0))","v":23645.135640748606},{"$f":"'C-Values and Rates'!BD94*INDEX('C-Diversion'!BD$88:BD$92, MATCH($D$94,'C-Diversion'!$D$88:$D$92,0))","v":23854.958549987889},{"$f":"'C-Values and Rates'!BE94*INDEX('C-Diversion'!BE$88:BE$92, MATCH($D$94,'C-Diversion'!$D$88:$D$92,0))","v":24066.643392011592},{"$f":"'C-Values and Rates'!BF94*INDEX('C-Diversion'!BF$88:BF$92, MATCH($D$94,'C-Diversion'!$D$88:$D$92,0))","v":24280.206689294348},{"$f":"'C-Values and Rates'!BG94*INDEX('C-Diversion'!BG$88:BG$92, MATCH($D$94,'C-Diversion'!$D$88:$D$92,0))","v":24495.665110928407},{"$f":"'C-Values and Rates'!BH94*INDEX('C-Diversion'!BH$88:BH$92, MATCH($D$94,'C-Diversion'!$D$88:$D$92,0))","v":24713.035473924701},{"$f":"'C-Values and Rates'!BI94*INDEX('C-Diversion'!BI$88:BI$92, MATCH($D$94,'C-Diversion'!$D$88:$D$92,0))","v":24932.334744525473},{"$f":"'C-Values and Rates'!BJ94*INDEX('C-Diversion'!BJ$88:BJ$92, MATCH($D$94,'C-Diversion'!$D$88:$D$92,0))","v":25153.580039528493},{"$f":"'C-Values and Rates'!BK94*INDEX('C-Diversion'!BK$88:BK$92, MATCH($D$94,'C-Diversion'!$D$88:$D$92,0))","v":25376.788627623111},{"$f":"'C-Values and Rates'!BL94*INDEX('C-Diversion'!BL$88:BL$92, MATCH($D$94,'C-Diversion'!$D$88:$D$92,0))","v":25601.977930738041},{"$f":"'C-Values and Rates'!BM94*INDEX('C-Diversion'!BM$88:BM$92, MATCH($D$94,'C-Diversion'!$D$88:$D$92,0))","v":25829.165525401258},{"$f":"'C-Values and Rates'!BN94*INDEX('C-Diversion'!BN$88:BN$92, MATCH($D$94,'C-Diversion'!$D$88:$D$92,0))","v":26058.369144111864},{"$f":"'C-Values and Rates'!BO94*INDEX('C-Diversion'!BO$88:BO$92, MATCH($D$94,'C-Diversion'!$D$88:$D$92,0))","v":26289.606676724106},{"$f":"'C-Values and Rates'!BP94*INDEX('C-Diversion'!BP$88:BP$92, MATCH($D$94,'C-Diversion'!$D$88:$D$92,0))","v":26522.896171843789},{"$f":"'C-Values and Rates'!BQ94*INDEX('C-Diversion'!BQ$88:BQ$92, MATCH($D$94,'C-Diversion'!$D$88:$D$92,0))","v":26758.255838236953},{"$f":"'C-Values and Rates'!BR94*INDEX('C-Diversion'!BR$88:BR$92, MATCH($D$94,'C-Diversion'!$D$88:$D$92,0))","v":26995.704046251118},{"$f":"'C-Values and Rates'!BS94*INDEX('C-Diversion'!BS$88:BS$92, MATCH($D$94,'C-Diversion'!$D$88:$D$92,0))","v":27235.25932924918},{"$f":"'C-Values and Rates'!BT94*INDEX('C-Diversion'!BT$88:BT$92, MATCH($D$94,'C-Diversion'!$D$88:$D$92,0))","v":27476.940385055899},{"$f":"'C-Values and Rates'!BU94*INDEX('C-Diversion'!BU$88:BU$92, MATCH($D$94,'C-Diversion'!$D$88:$D$92,0))","v":27720.766077417371},{"$f":"'C-Values and Rates'!BV94*INDEX('C-Diversion'!BV$88:BV$92, MATCH($D$94,'C-Diversion'!$D$88:$D$92,0))","v":27966.755437473377},{"$f":"'C-Values and Rates'!BW94*INDEX('C-Diversion'!BW$88:BW$92, MATCH($D$94,'C-Diversion'!$D$88:$D$92,0))","v":28214.927665242765},{"$f":"'C-Values and Rates'!BX94*INDEX('C-Diversion'!BX$88:BX$92, MATCH($D$94,'C-Diversion'!$D$88:$D$92,0))","v":0},{"$f":"'C-Values and Rates'!BY94*INDEX('C-Diversion'!BY$88:BY$92, MATCH($D$94,'C-Diversion'!$D$88:$D$92,0))","v":0},{"$f":"'C-Values and Rates'!BZ94*INDEX('C-Diversion'!BZ$88:BZ$92, MATCH($D$94,'C-Diversion'!$D$88:$D$92,0))","v":0},{"$f":"'C-Values and Rates'!CA94*INDEX('C-Diversion'!CA$88:CA$92, MATCH($D$94,'C-Diversion'!$D$88:$D$92,0))","v":0},{"$f":"'C-Values and Rates'!CB94*INDEX('C-Diversion'!CB$88:CB$92, MATCH($D$94,'C-Diversion'!$D$88:$D$92,0))","v":0},{"$f":"'C-Values and Rates'!CC94*INDEX('C-Diversion'!CC$88:CC$92, MATCH($D$94,'C-Diversion'!$D$88:$D$92,0))","v":0},{"$f":"'C-Values and Rates'!CD94*INDEX('C-Diversion'!CD$88:CD$92, MATCH($D$94,'C-Diversion'!$D$88:$D$92,0))","v":0},{"$f":"'C-Values and Rates'!CE94*INDEX('C-Diversion'!CE$88:CE$92, MATCH($D$94,'C-Diversion'!$D$88:$D$92,0))","v":0}]
[null,null,null,"Infrastructure",null,null,null,{"$f":"SUM(K96:CE96)","v":1886.7141311592577},null,"£, 2023 prices",{"$f":"'C-Values and Rates'!K95*INDEX('C-Diversion'!K$88:K$92, MATCH($D$94,'C-Diversion'!$D$88:$D$92,0))","v":0},{"$f":"'C-Values and Rates'!L95*INDEX('C-Diversion'!L$88:L$92, MATCH($D$94,'C-Diversion'!$D$88:$D$92,0))","v":0},{"$f":"'C-Values and Rates'!M95*INDEX('C-Diversion'!M$88:M$92, MATCH($D$94,'C-Diversion'!$D$88:$D$92,0))","v":0},{"$f":"'C-Values and Rates'!N95*INDEX('C-Diversion'!N$88:N$92, MATCH($D$94,'C-Diversion'!$D$88:$D$92,0))","v":0},{"$f":"'C-Values and Rates'!O95*INDEX('C-Diversion'!O$88:O$92, MATCH($D$94,'C-Diversion'!$D$88:$D$92,0))","v":0},{"$f":"'C-Values and Rates'!P95*INDEX('C-Diversion'!P$88:P$92, MATCH($D$94,'C-Diversion'!$D$88:$D$92,0))","v":16.157479827423042},{"$f":"'C-Values and Rates'!Q95*INDEX('C-Diversion'!Q$88:Q$92, MATCH($D$94,'C-Diversion'!$D$88:$D$92,0))","v":16.515768517700717},{"$f":"'C-Values and Rates'!R95*INDEX('C-Diversion'!R$88:R$92, MATCH($D$94,'C-Diversion'!$D$88:$D$92,0))","v":16.882002183738965},{"$f":"'C-Values and Rates'!S95*INDEX('C-Diversion'!S$88:S$92, MATCH($D$94,'C-Diversion'!$D$88:$D$92,0))","v":17.349345192791976},{"$f":"'C-Values and Rates'!T95*INDEX('C-Diversion'!T$88:T$92, MATCH($D$94,'C-Diversion'!$D$88:$D$92,0))","v":17.829625618019538},{"$f":"'C-Values and Rates'!U95*INDEX('C-Diversion'!U$88:U$92, MATCH($D$94,'C-Diversion'!$D$88:$D$92,0))","v":18.32320160479674},{"$f":"'C-Values and Rates'!V95*INDEX('C-Diversion'!V$88:V$92, MATCH($D$94,'C-Diversion'!$D$88:$D$92,0))","v":18.830441213006175},{"$f":"'C-Values and Rates'!W95*INDEX('C-Diversion'!W$88:W$92, MATCH($D$94,'C-Diversion'!$D$88:$D$92,0))","v":19.351722691500406},{"$f":"'C-Values and Rates'!X95*INDEX('C-Diversion'!X$88:X$92, MATCH($D$94,'C-Diversion'!$D$88:$D$92,0))","v":19.936390390072159},{"$f":"'C-Values and Rates'!Y95*INDEX('C-Diversion'!Y$88:Y$92, MATCH($D$94,'C-Diversion'!$D$88:$D$92,0))","v":20.538722475592945},{"$f":"'C-Values and Rates'!Z95*INDEX('C-Diversion'!Z$88:Z$92, MATCH($D$94,'C-Diversion'!$D$88:$D$92,0))","v":21.159252636800925},{"$f":"'C-Values and Rates'!AA95*INDEX('C-Diversion'!AA$88:AA$92, MATCH($D$94,'C-Diversion'!$D$88:$D$92,0))","v":21.798530686609393},{"$f":"'C-Values and Rates'!AB95*INDEX('C-Diversion'!AB$88:AB$92, MATCH($D$94,'C-Diversion'!$D$88:$D$92,0))","v":22.457123049261611},{"$f":"'C-Values and Rates'!AC95*INDEX('C-Diversion'!AC$88:AC$92, MATCH($D$94,'C-Diversion'!$D$88:$D$92,0))","v":23.033081567049859},{"$f":"'C-Values and Rates'!AD95*INDEX('C-Diversion'!AD$88:AD$92, MATCH($D$94,'C-Diversion'!$D$88:$D$92,0))","v":23.623811710459311},{"$f":"'C-Values and Rates'!AE95*INDEX('C-Diversion'!AE$88:AE$92, MATCH($D$94,'C-Diversion'!$D$88:$D$92,0))","v":24.229692327821489},{"$f":"'C-Values and Rates'!AF95*INDEX('C-Diversion'!AF$88:AF$92, MATCH($D$94,'C-Diversion'!$D$88:$D$92,0))","v":24.851111983802593},{"$f":"'C-Values and Rates'!AG95*INDEX('C-Diversion'!AG$88:AG$92, MATCH($D$94,'C-Diversion'!$D$88:$D$92,0))","v":25.488469208598652},{"$f":"'C-Values and Rates'!AH95*INDEX('C-Diversion'!AH$88:AH$92, MATCH($D$94,'C-Diversion'!$D$88:$D$92,0))","v":26.008388456042205},{"$f":"'C-Values and Rates'!AI95*INDEX('C-Diversion'!AI$88:AI$92, MATCH($D$94,'C-Diversion'!$D$88:$D$92,0))","v":26.538913127516913},{"$f":"'C-Values and Rates'!AJ95*INDEX('C-Diversion'!AJ$88:AJ$92, MATCH($D$94,'C-Diversion'!$D$88:$D$92,0))","v":27.080259554730887},{"$f":"'C-Values and Rates'!AK95*INDEX('C-Diversion'!AK$88:AK$92, MATCH($D$94,'C-Diversion'!$D$88:$D$92,0))","v":27.632648482172723},{"$f":"'C-Values and Rates'!AL95*INDEX('C-Diversion'!AL$88:AL$92, MATCH($D$94,'C-Diversion'!$D$88:$D$92,0))","v":28.196305157124268},{"$f":"'C-Values and Rates'!AM95*INDEX('C-Diversion'!AM$88:AM$92, MATCH($D$94,'C-Diversion'!$D$88:$D$92,0))","v":28.763106812633577},{"$f":"'C-Values and Rates'!AN95*INDEX('C-Diversion'!AN$88:AN$92, MATCH($D$94,'C-Diversion'!$D$88:$D$92,0))","v":29.341302305558731},{"$f":"'C-Values and Rates'!AO95*INDEX('C-Diversion'!AO$88:AO$92, MATCH($D$94,'C-Diversion'!$D$88:$D$92,0))","v":29.931120674629252},{"$f":"'C-Values and Rates'!AP95*INDEX('C-Diversion'!AP$88:AP$92, MATCH($D$94,'C-Diversion'!$D$88:$D$92,0))","v":30.532795562707356},{"$f":"'C-Values and Rates'!AQ95*INDEX('C-Diversion'!AQ$88:AQ$92, MATCH($D$94,'C-Diversion'!$D$88:$D$92,0))","v":31.146565309340161},{"$f":"'C-Values and Rates'!AR95*INDEX('C-Diversion'!AR$88:AR$92, MATCH($D$94,'C-Diversion'!$D$88:$D$92,0))","v":31.84972115104096},{"$f":"'C-Values and Rates'!AS95*INDEX('C-Diversion'!AS$88:AS$92, MATCH($D$94,'C-Diversion'!$D$88:$D$92,0))","v":32.568751235465072},{"$f":"'C-Values and Rates'!AT95*INDEX('C-Diversion'!AT$88:AT$92, MATCH($D$94,'C-Diversion'!$D$88:$D$92,0))","v":33.304013934920732},{"$f":"'C-Values and Rates'!AU95*INDEX('C-Diversion'!AU$88:AU$92, MATCH($D$94,'C-Diversion'!$D$88:$D$92,0))","v":34.055875712225649},{"$f":"'C-Values and Rates'!AV95*INDEX('C-Diversion'!AV$88:AV$92, MATCH($D$94,'C-Diversion'!$D$88:$D$92,0))","v":34.824711303356047},{"$f":"'C-Values and Rates'!AW95*INDEX('C-Diversion'!AW$88:AW$92, MATCH($D$94,'C-Diversion'!$D$88:$D$92,0))","v":35.133739864245136},{"$f":"'C-Values and Rates'!AX95*INDEX('C-Diversion'!AX$88:AX$92, MATCH($D$94,'C-Diversion'!$D$88:$D$92,0))","v":35.445510691986435},{"$f":"'C-Values and Rates'!AY95*INDEX('C-Diversion'!AY$88:AY$92, MATCH($D$94,'C-Diversion'!$D$88:$D$92,0))","v":35.760048120989254},{"$f":"'C-Values and Rates'!AZ95*INDEX('C-Diversion'!AZ$88:AZ$92, MATCH($D$94,'C-Diversion'!$D$88:$D$92,0))","v":36.07737670160234},{"$f":"'C-Values and Rates'!BA95*INDEX('C-Diversion'!BA$88:BA$92, MATCH($D$94,'C-Diversion'!$D$88:$D$92,0))","v":36.397521202029985},{"$f":"'C-Values and Rates'!BB95*INDEX('C-Diversion'!BB$88:BB$92, MATCH($D$94,'C-Diversion'!$D$88:$D$92,0))","v":36.720506610265367},{"$f":"'C-Values and Rates'!BC95*INDEX('C-Diversion'!BC$88:BC$92, MATCH($D$94,'C-Diversion'!$D$88:$D$92,0))","v":37.046358136040851},{"$f":"'C-Values and Rates'!BD95*INDEX('C-Diversion'!BD$88:BD$92, MATCH($D$94,'C-Diversion'!$D$88:$D$92,0))","v":37.375101212795663},{"$f":"'C-Values and Rates'!BE95*INDEX('C-Diversion'!BE$88:BE$92, MATCH($D$94,'C-Diversion'!$D$88:$D$92,0))","v":37.706761499661035},{"$f":"'C-Values and Rates'!BF95*INDEX('C-Diversion'!BF$88:BF$92, MATCH($D$94,'C-Diversion'!$D$88:$D$92,0))","v":38.04136488346299},{"$f":"'C-Values and Rates'!BG95*INDEX('C-Diversion'!BG$88:BG$92, MATCH($D$94,'C-Diversion'!$D$88:$D$92,0))","v":38.37893748074282},{"$f":"'C-Values and Rates'!BH95*INDEX('C-Diversion'!BH$88:BH$92, MATCH($D$94,'C-Diversion'!$D$88:$D$92,0))","v":38.719505639795557},{"$f":"'C-Values and Rates'!BI95*INDEX('C-Diversion'!BI$88:BI$92, MATCH($D$94,'C-Diversion'!$D$88:$D$92,0))","v":39.063095942726527},{"$f":"'C-Values and Rates'!BJ95*INDEX('C-Diversion'!BJ$88:BJ$92, MATCH($D$94,'C-Diversion'!$D$88:$D$92,0))","v":39.409735207526126},{"$f":"'C-Values and Rates'!BK95*INDEX('C-Diversion'!BK$88:BK$92, MATCH($D$94,'C-Diversion'!$D$88:$D$92,0))","v":39.759450490163069},{"$f":"'C-Values and Rates'!BL95*INDEX('C-Diversion'!BL$88:BL$92, MATCH($D$94,'C-Diversion'!$D$88:$D$92,0))","v":40.11226908669606},{"$f":"'C-Values and Rates'!BM95*INDEX('C-Diversion'!BM$88:BM$92, MATCH($D$94,'C-Diversion'!$D$88:$D$92,0))","v":40.468218535404432},{"$f":"'C-Values and Rates'!BN95*INDEX('C-Diversion'!BN$88:BN$92, MATCH($D$94,'C-Diversion'!$D$88:$D$92,0))","v":40.827326618937541},{"$f":"'C-Values and Rates'!BO95*INDEX('C-Diversion'!BO$88:BO$92, MATCH($D$94,'C-Diversion'!$D$88:$D$92,0))","v":41.189621366483195},{"$f":"'C-Values and Rates'!BP95*INDEX('C-Diversion'!BP$88:BP$92, MATCH($D$94,'C-Diversion'!$D$88:$D$92,0))","v":41.555131055955471},{"$f":"'C-Values and Rates'!BQ95*INDEX('C-Diversion'!BQ$88:BQ$92, MATCH($D$94,'C-Diversion'!$D$88:$D$92,0))","v":41.923884216201841},{"$f":"'C-Values and Rates'!BR95*INDEX('C-Diversion'!BR$88:BR$92, MATCH($D$94,'C-Diversion'!$D$88:$D$92,0))","v":42.295909629229904},{"$f":"'C-Values and Rates'!BS95*INDEX('C-Diversion'!BS$88:BS$92, MATCH($D$94,'C-Diversion'!$D$88:$D$92,0))","v":42.671236332453915},{"$f":"'C-Values and Rates'!BT95*INDEX('C-Diversion'!BT$88:BT$92, MATCH($D$94,'C-Diversion'!$D$88:$D$92,0))","v":43.049893620961171},{"$f":"'C-Values and Rates'!BU95*INDEX('C-Diversion'!BU$88:BU$92, MATCH($D$94,'C-Diversion'!$D$88:$D$92,0))","v":43.431911049798607},{"$f":"'C-Values and Rates'!BV95*INDEX('C-Diversion'!BV$88:BV$92, MATCH($D$94,'C-Diversion'!$D$88:$D$92,0))","v":43.817318436279635},{"$f":"'C-Values and Rates'!BW95*INDEX('C-Diversion'!BW$88:BW$92, MATCH($D$94,'C-Diversion'!$D$88:$D$92,0))","v":44.206145862311381},{"$f":"'C-Values and Rates'!BX95*INDEX('C-Diversion'!BX$88:BX$92, MATCH($D$94,'C-Diversion'!$D$88:$D$92,0))","v":0},{"$f":"'C-Values and Rates'!BY95*INDEX('C-Diversion'!BY$88:BY$92, MATCH($D$94,'C-Diversion'!$D$88:$D$92,0))","v":0},{"$f":"'C-Values and Rates'!BZ95*INDEX('C-Diversion'!BZ$88:BZ$92, MATCH($D$94,'C-Diversion'!$D$88:$D$92,0))","v":0},{"$f":"'C-Values and Rates'!CA95*INDEX('C-Diversion'!CA$88:CA$92, MATCH($D$94,'C-Diversion'!$D$88:$D$92,0))","v":0},{"$f":"'C-Values and Rates'!CB95*INDEX('C-Diversion'!CB$88:CB$92, MATCH($D$94,'C-Diversion'!$D$88:$D$92,0))","v":0},{"$f":"'C-Values and Rates'!CC95*INDEX('C-Diversion'!CC$88:CC$92, MATCH($D$94,'C-Diversion'!$D$88:$D$92,0))","v":0},{"$f":"'C-Values and Rates'!CD95*INDEX('C-Diversion'!CD$88:CD$92, MATCH($D$94,'C-Diversion'!$D$88:$D$92,0))","v":0},{"$f":"'C-Values and Rates'!CE95*INDEX('C-Diversion'!CE$88:CE$92, MATCH($D$94,'C-Diversion'!$D$88:$D$92,0))","v":0}]
[null,null,null,"Accident",null,null,null,70719.268228364323,null,"£, 2023 prices",{"$f":"'C-Values and Rates'!K96*INDEX('C-Diversion'!K$88:K$92, MATCH($D$94,'C-Diversion'!$D$88:$D$92,0))","v":0},{"$f":"'C-Values and Rates'!L96*INDEX('C-Diversion'!L$88:L$92, MATCH($D$94,'C-Diversion'!$D$88:$D$92,0))","v":0},{"$f":"'C-Values and Rates'!M96*INDEX('C-Diversion'!M$88:M$92, MATCH($D$94,'C-Diversion'!$D$88:$D$92,0))","v":0},{"$f":"'C-Values and Rates'!N96*INDEX('C-Diversion'!N$88:N$92, MATCH($D$94,'C-Diversion'!$D$88:$D$92,0))","v":0},{"$f":"'C-Values and Rates'!O96*INDEX('C-Diversion'!O$88:O$92, MATCH($D$94,'C-Diversion'!$D$88:$D$92,0))","v":0},{"$f":"'C-Values and Rates'!P96*INDEX('C-Diversion'!P$88:P$92, MATCH($D$94,'C-Diversion'!$D$88:$D$92,0))","v":521.46920024639894},{"$f":"'C-Values and Rates'!Q96*INDEX('C-Diversion'!Q$88:Q$92, MATCH($D$94,'C-Diversion'!$D$88:$D$92,0))","v":536.10319192669874},{"$f":"'C-Values and Rates'!R96*INDEX('C-Diversion'!R$88:R$92, MATCH($D$94,'C-Diversion'!$D$88:$D$92,0))","v":551.1478573580041},{"$f":"'C-Values and Rates'!S96*INDEX('C-Diversion'!S$88:S$92, MATCH($D$94,'C-Diversion'!$D$88:$D$92,0))","v":569.10282077855436},{"$f":"'C-Values and Rates'!T96*INDEX('C-Diversion'!T$88:T$92, MATCH($D$94,'C-Diversion'!$D$88:$D$92,0))","v":587.64271019877867},{"$f":"'C-Values and Rates'!U96*INDEX('C-Diversion'!U$88:U$92, MATCH($D$94,'C-Diversion'!$D$88:$D$92,0))","v":606.78658098610242},{"$f":"'C-Values and Rates'!V96*INDEX('C-Diversion'!V$88:V$92, MATCH($D$94,'C-Diversion'!$D$88:$D$92,0))","v":626.55410928225115},{"$f":"'C-Values and Rates'!W96*INDEX('C-Diversion'!W$88:W$92, MATCH($D$94,'C-Diversion'!$D$88:$D$92,0))","v":646.96561222646199},{"$f":"'C-Values and Rates'!X96*INDEX('C-Diversion'!X$88:X$92, MATCH($D$94,'C-Diversion'!$D$88:$D$92,0))","v":669.37191738538945},{"$f":"'C-Values and Rates'!Y96*INDEX('C-Diversion'!Y$88:Y$92, MATCH($D$94,'C-Diversion'!$D$88:$D$92,0))","v":692.55421820990898},{"$f":"'C-Values and Rates'!Z96*INDEX('C-Diversion'!Z$88:Z$92, MATCH($D$94,'C-Diversion'!$D$88:$D$92,0))","v":716.53938969207081},{"$f":"'C-Values and Rates'!AA96*INDEX('C-Diversion'!AA$88:AA$92, MATCH($D$94,'C-Diversion'!$D$88:$D$92,0))","v":741.35523758324462},{"$f":"'C-Values and Rates'!AB96*INDEX('C-Diversion'!AB$88:AB$92, MATCH($D$94,'C-Diversion'!$D$88:$D$92,0))","v":767.0305306290287},{"$f":"'C-Values and Rates'!AC96*INDEX('C-Diversion'!AC$88:AC$92, MATCH($D$94,'C-Diversion'!$D$88:$D$92,0))","v":791.37093771202137},{"$f":"'C-Values and Rates'!AD96*INDEX('C-Diversion'!AD$88:AD$92, MATCH($D$94,'C-Diversion'!$D$88:$D$92,0))","v":816.48374614451461},{"$f":"'C-Values and Rates'!AE96*INDEX('C-Diversion'!AE$88:AE$92, MATCH($D$94,'C-Diversion'!$D$88:$D$92,0))","v":842.39346676737784},{"$f":"'C-Values and Rates'!AF96*INDEX('C-Diversion'!AF$88:AF$92, MATCH($D$94,'C-Diversion'!$D$88:$D$92,0))","v":869.12538823125556},{"$f":"'C-Values and Rates'!AG96*INDEX('C-Diversion'!AG$88:AG$92, MATCH($D$94,'C-Diversion'!$D$88:$D$92,0))","v":896.70560167903625},{"$f":"'C-Values and Rates'!AH96*INDEX('C-Diversion'!AH$88:AH$92, MATCH($D$94,'C-Diversion'!$D$88:$D$92,0))","v":921.20711775384621},{"$f":"'C-Values and Rates'!AI96*INDEX('C-Diversion'!AI$88:AI$92, MATCH($D$94,'C-Diversion'!$D$88:$D$92,0))","v":946.37811140171948},{"$f":"'C-Values and Rates'!AJ96*INDEX('C-Diversion'!AJ$88:AJ$92, MATCH($D$94,'C-Diversion'!$D$88:$D$92,0))","v":972.23687537725357},{"$f":"'C-Values and Rates'!AK96*INDEX('C-Diversion'!AK$88:AK$92, MATCH($D$94,'C-Diversion'!$D$88:$D$92,0))","v":998.80220226489087},{"$f":"'C-Values and Rates'!AL96*INDEX('C-Diversion'!AL$88:AL$92, MATCH($D$94,'C-Diversion'!$D$88:$D$92,0))","v":1026.0933981362293},{"$f":"'C-Values and Rates'!AM96*INDEX('C-Diversion'!AM$88:AM$92, MATCH($D$94,'C-Diversion'!$D$88:$D$92,0))","v":1053.881687524618},{"$f":"'C-Values and Rates'!AN96*INDEX('C-Diversion'!AN$88:AN$92, MATCH($D$94,'C-Diversion'!$D$88:$D$92,0))","v":1082.422529291314},{"$f":"'C-Values and Rates'!AO96*INDEX('C-Diversion'!AO$88:AO$92, MATCH($D$94,'C-Diversion'!$D$88:$D$92,0))","v":1111.7363037869816},{"$f":"'C-Values and Rates'!AP96*INDEX('C-Diversion'!AP$88:AP$92, MATCH($D$94,'C-Diversion'!$D$88:$D$92,0))","v":1141.8439432955527},{"$f":"'C-Values and Rates'!AQ96*INDEX('C-Diversion'!AQ$88:AQ$92, MATCH($D$94,'C-Diversion'!$D$88:$D$92,0))","v":1172.766946981483},{"$f":"'C-Values and Rates'!AR96*INDEX('C-Diversion'!AR$88:AR$92, MATCH($D$94,'C-Diversion'!$D$88:$D$92,0))","v":1206.8373588875909},{"$f":"'C-Values and Rates'!AS96*INDEX('C-Diversion'!AS$88:AS$92, MATCH($D$94,'C-Diversion'!$D$88:$D$92,0))","v":1241.8975607689699},{"$f":"'C-Values and Rates'!AT96*INDEX('C-Diversion'!AT$88:AT$92, MATCH($D$94,'C-Diversion'!$D$88:$D$92,0))","v":1277.9763073174577},{"$f":"'C-Values and Rates'!AU96*INDEX('C-Diversion'!AU$88:AU$92, MATCH($D$94,'C-Diversion'!$D$88:$D$92,0))","v":1315.1031885862556},{"$f":"'C-Values and Rates'!AV96*INDEX('C-Diversion'!AV$88:AV$92, MATCH($D$94,'C-Diversion'!$D$88:$D$92,0))","v":1353.3086542582662},{"$f":"'C-Values and Rates'!AW96*INDEX('C-Diversion'!AW$88:AW$92, MATCH($D$94,'C-Diversion'!$D$88:$D$92,0))","v":1365.3176849210381},{"$f":"'C-Values and Rates'!AX96*INDEX('C-Diversion'!AX$88:AX$92, MATCH($D$94,'C-Diversion'!$D$88:$D$92,0))","v":1377.4332816779568},{"$f":"'C-Values and Rates'!AY96*INDEX('C-Diversion'!AY$88:AY$92, MATCH($D$94,'C-Diversion'!$D$88:$D$92,0))","v":1389.6563901784036},{"$f":"'C-Values and Rates'!AZ96*INDEX('C-Diversion'!AZ$88:AZ$92, MATCH($D$94,'C-Diversion'!$D$88:$D$92,0))","v":1401.9879644632933},{"$f":"'C-Values and Rates'!BA96*INDEX('C-Diversion'!BA$88:BA$92, MATCH($D$94,'C-Diversion'!$D$88:$D$92,0))","v":1414.4289670395351},{"$f":"'C-Values and Rates'!BB96*INDEX('C-Diversion'!BB$88:BB$92, MATCH($D$94,'C-Diversion'!$D$88:$D$92,0))","v":1426.9803689551613},{"$f":"'C-Values and Rates'!BC96*INDEX('C-Diversion'!BC$88:BC$92, MATCH($D$94,'C-Diversion'!$D$88:$D$92,0))","v":1439.6431498751206},{"$f":"'C-Values and Rates'!BD96*INDEX('C-Diversion'!BD$88:BD$92, MATCH($D$94,'C-Diversion'!$D$88:$D$92,0))","v":1452.4182981577396},{"$f":"'C-Values and Rates'!BE96*INDEX('C-Diversion'!BE$88:BE$92, MATCH($D$94,'C-Diversion'!$D$88:$D$92,0))","v":1465.3068109318697},{"$f":"'C-Values and Rates'!BF96*INDEX('C-Diversion'!BF$88:BF$92, MATCH($D$94,'C-Diversion'!$D$88:$D$92,0))","v":1478.3096941747135},{"$f":"'C-Values and Rates'!BG96*INDEX('C-Diversion'!BG$88:BG$92, MATCH($D$94,'C-Diversion'!$D$88:$D$92,0))","v":1491.4279627903447},{"$f":"'C-Values and Rates'!BH96*INDEX('C-Diversion'!BH$88:BH$92, MATCH($D$94,'C-Diversion'!$D$88:$D$92,0))","v":1504.6626406889222},{"$f":"'C-Values and Rates'!BI96*INDEX('C-Diversion'!BI$88:BI$92, MATCH($D$94,'C-Diversion'!$D$88:$D$92,0))","v":1518.0147608666105},{"$f":"'C-Values and Rates'!BJ96*INDEX('C-Diversion'!BJ$88:BJ$92, MATCH($D$94,'C-Diversion'!$D$88:$D$92,0))","v":1531.4853654862045},{"$f":"'C-Values and Rates'!BK96*INDEX('C-Diversion'!BK$88:BK$92, MATCH($D$94,'C-Diversion'!$D$88:$D$92,0))","v":1545.0755059584772},{"$f":"'C-Values and Rates'!BL96*INDEX('C-Diversion'!BL$88:BL$92, MATCH($D$94,'C-Diversion'!$D$88:$D$92,0))","v":1558.7862430242383},{"$f":"'C-Values and Rates'!BM96*INDEX('C-Diversion'!BM$88:BM$92, MATCH($D$94,'C-Diversion'!$D$88:$D$92,0))","v":1572.6186468371332},{"$f":"'C-Values and Rates'!BN96*INDEX('C-Diversion'!BN$88:BN$92, MATCH($D$94,'C-Diversion'!$D$88:$D$92,0))","v":1586.5737970471687},{"$f":"'C-Values and Rates'!BO96*INDEX('C-Diversion'!BO$88:BO$92, MATCH($D$94,'C-Diversion'!$D$88:$D$92,0))","v":1600.6527828849805},{"$f":"'C-Values and Rates'!BP96*INDEX('C-Diversion'!BP$88:BP$92, MATCH($D$94,'C-Diversion'!$D$88:$D$92,0))","v":1614.8567032468534},{"$f":"'C-Values and Rates'!BQ96*INDEX('C-Diversion'!BQ$88:BQ$92, MATCH($D$94,'C-Diversion'!$D$88:$D$92,0))","v":1629.1866667804898},{"$f":"'C-Values and Rates'!BR96*INDEX('C-Diversion'!BR$88:BR$92, MATCH($D$94,'C-Diversion'!$D$88:$D$92,0))","v":1643.6437919715422},{"$f":"'C-Values and Rates'!BS96*INDEX('C-Diversion'!BS$88:BS$92, MATCH($D$94,'C-Diversion'!$D$88:$D$92,0))","v":1658.2292072309167},{"$f":"'C-Values and Rates'!BT96*INDEX('C-Diversion'!BT$88:BT$92, MATCH($D$94,'C-Diversion'!$D$88:$D$92,0))","v":1672.9440509828435},{"$f":"'C-Values and Rates'!BU96*INDEX('C-Diversion'!BU$88:BU$92, MATCH($D$94,'C-Diversion'!$D$88:$D$92,0))","v":1687.7894717537363},{"$f":"'C-Values and Rates'!BV96*INDEX('C-Diversion'!BV$88:BV$92, MATCH($D$94,'C-Diversion'!$D$88:$D$92,0))","v":1702.7666282618386},{"$f":"'C-Values and Rates'!BW96*INDEX('C-Diversion'!BW$88:BW$92, MATCH($D$94,'C-Diversion'!$D$88:$D$92,0))","v":1717.876689507659},{"$f":"'C-Values and Rates'!BX96*INDEX('C-Diversion'!BX$88:BX$92, MATCH($D$94,'C-Diversion'!$D$88:$D$92,0))","v":0},{"$f":"'C-Values and Rates'!BY96*INDEX('C-Diversion'!BY$88:BY$92, MATCH($D$94,'C-Diversion'!$D$88:$D$92,0))","v":0},{"$f":"'C-Values and Rates'!BZ96*INDEX('C-Diversion'!BZ$88:BZ$92, MATCH($D$94,'C-Diversion'!$D$88:$D$92,0))","v":0},{"$f":"'C-Values and Rates'!CA96*INDEX('C-Diversion'!CA$88:CA$92, MATCH($D$94,'C-Diversion'!$D$88:$D$92,0))","v":0},{"$f":"'C-Values and Rates'!CB96*INDEX('C-Diversion'!CB$88:CB$92, MATCH($D$94,'C-Diversion'!$D$88:$D$92,0))","v":0},{"$f":"'C-Values and Rates'!CC96*INDEX('C-Diversion'!CC$88:CC$92, MATCH($D$94,'C-Diversion'!$D$88:$D$92,0))","v":0},{"$f":"'C-Values and Rates'!CD96*INDEX('C-Diversion'!CD$88:CD$92, MATCH($D$94,'C-Diversion'!$D$88:$D$92,0))","v":0},{"$f":"'C-Values and Rates'!CE96*INDEX('C-Diversion'!CE$88:CE$92, MATCH($D$94,'C-Diversion'!$D$88:$D$92,0))","v":0}]
[null,null,null,"Local Air Quality",null,null,null,5716.2617831123525,null,"£, 2023 prices",{"$f":"'C-Values and Rates'!K97*INDEX('C-Diversion'!K$88:K$92, MATCH($D$94,'C-Diversion'!$D$88:$D$92,0))","v":0},{"$f":"'C-Values and Rates'!L97*INDEX('C-Diversion'!L$88:L$92, MATCH($D$94,'C-Diversion'!$D$88:$D$92,0))","v":0},{"$f":"'C-Values and Rates'!M97*INDEX('C-Diversion'!M$88:M$92, MATCH($D$94,'C-Diversion'!$D$88:$D$92,0))","v":0},{"$f":"'C-Values and Rates'!N97*INDEX('C-Diversion'!N$88:N$92, MATCH($D$94,'C-Diversion'!$D$88:$D$92,0))","v":0},{"$f":"'C-Values and Rates'!O97*INDEX('C-Diversion'!O$88:O$92, MATCH($D$94,'C-Diversion'!$D$88:$D$92,0))","v":0},{"$f":"'C-Values and Rates'!P97*INDEX('C-Diversion'!P$88:P$92, MATCH($D$94,'C-Diversion'!$D$88:$D$92,0))","v":85.901110256856313},{"$f":"'C-Values and Rates'!Q97*INDEX('C-Diversion'!Q$88:Q$92, MATCH($D$94,'C-Diversion'!$D$88:$D$92,0))","v":81.04721436714533},{"$f":"'C-Values and Rates'!R97*INDEX('C-Diversion'!R$88:R$92, MATCH($D$94,'C-Diversion'!$D$88:$D$92,0))","v":76.467590896471805},{"$f":"'C-Values and Rates'!S97*INDEX('C-Diversion'!S$88:S$92, MATCH($D$94,'C-Diversion'!$D$88:$D$92,0))","v":74.14094151032505},{"$f":"'C-Values and Rates'!T97*INDEX('C-Diversion'!T$88:T$92, MATCH($D$94,'C-Diversion'!$D$88:$D$92,0))","v":71.885084172189664},{"$f":"'C-Values and Rates'!U97*INDEX('C-Diversion'!U$88:U$92, MATCH($D$94,'C-Diversion'!$D$88:$D$92,0))","v":69.697864920196054},{"$f":"'C-Values and Rates'!V97*INDEX('C-Diversion'!V$88:V$92, MATCH($D$94,'C-Diversion'!$D$88:$D$92,0))","v":67.57719533022734},{"$f":"'C-Values and Rates'!W97*INDEX('C-Diversion'!W$88:W$92, MATCH($D$94,'C-Diversion'!$D$88:$D$92,0))","v":65.521050521827917},{"$f":"'C-Values and Rates'!X97*INDEX('C-Diversion'!X$88:X$92, MATCH($D$94,'C-Diversion'!$D$88:$D$92,0))","v":65.647756520635966},{"$f":"'C-Values and Rates'!Y97*INDEX('C-Diversion'!Y$88:Y$92, MATCH($D$94,'C-Diversion'!$D$88:$D$92,0))","v":65.774707546195046},{"$f":"'C-Values and Rates'!Z97*INDEX('C-Diversion'!Z$88:Z$92, MATCH($D$94,'C-Diversion'!$D$88:$D$92,0))","v":65.9019040723431},{"$f":"'C-Values and Rates'!AA97*INDEX('C-Diversion'!AA$88:AA$92, MATCH($D$94,'C-Diversion'!$D$88:$D$92,0))","v":66.029346573834374},{"$f":"'C-Values and Rates'!AB97*INDEX('C-Diversion'!AB$88:AB$92, MATCH($D$94,'C-Diversion'!$D$88:$D$92,0))","v":66.157035526341247},{"$f":"'C-Values and Rates'!AC97*INDEX('C-Diversion'!AC$88:AC$92, MATCH($D$94,'C-Diversion'!$D$88:$D$92,0))","v":67.140011109549292},{"$f":"'C-Values and Rates'!AD97*INDEX('C-Diversion'!AD$88:AD$92, MATCH($D$94,'C-Diversion'!$D$88:$D$92,0))","v":68.137591957178515},{"$f":"'C-Values and Rates'!AE97*INDEX('C-Diversion'!AE$88:AE$92, MATCH($D$94,'C-Diversion'!$D$88:$D$92,0))","v":69.149995077415554},{"$f":"'C-Values and Rates'!AF97*INDEX('C-Diversion'!AF$88:AF$92, MATCH($D$94,'C-Diversion'!$D$88:$D$92,0))","v":70.177440702801732},{"$f":"'C-Values and Rates'!AG97*INDEX('C-Diversion'!AG$88:AG$92, MATCH($D$94,'C-Diversion'!$D$88:$D$92,0))","v":71.220152338141261},{"$f":"'C-Values and Rates'!AH97*INDEX('C-Diversion'!AH$88:AH$92, MATCH($D$94,'C-Diversion'!$D$88:$D$92,0))","v":72.56119139576974},{"$f":"'C-Values and Rates'!AI97*INDEX('C-Diversion'!AI$88:AI$92, MATCH($D$94,'C-Diversion'!$D$88:$D$92,0))","v":73.927481533254763},{"$f":"'C-Values and Rates'!AJ97*INDEX('C-Diversion'!AJ$88:AJ$92, MATCH($D$94,'C-Diversion'!$D$88:$D$92,0))","v":75.319498215520539},{"$f":"'C-Values and Rates'!AK97*INDEX('C-Diversion'!AK$88:AK$92, MATCH($D$94,'C-Diversion'!$D$88:$D$92,0))","v":76.737725860252766},{"$f":"'C-Values and Rates'!AL97*INDEX('C-Diversion'!AL$88:AL$92, MATCH($D$94,'C-Diversion'!$D$88:$D$92,0))","v":78.182658006474469},{"$f":"'C-Values and Rates'!AM97*INDEX('C-Diversion'!AM$88:AM$92, MATCH($D$94,'C-Diversion'!$D$88:$D$92,0))","v":80.30589444289042},{"$f":"'C-Values and Rates'!AN97*INDEX('C-Diversion'!AN$88:AN$92, MATCH($D$94,'C-Diversion'!$D$88:$D$92,0))","v":82.486792425739736},{"$f":"'C-Values and Rates'!AO97*INDEX('C-Diversion'!AO$88:AO$92, MATCH($D$94,'C-Diversion'!$D$88:$D$92,0))","v":84.726917891759413},{"$f":"'C-Values and Rates'!AP97*INDEX('C-Diversion'!AP$88:AP$92, MATCH($D$94,'C-Diversion'!$D$88:$D$92,0))","v":87.027879304431124},{"$f":"'C-Values and Rates'!AQ97*INDEX('C-Diversion'!AQ$88:AQ$92, MATCH($D$94,'C-Diversion'!$D$88:$D$92,0))","v":89.391328808896361},{"$f":"'C-Values and Rates'!AR97*INDEX('C-Diversion'!AR$88:AR$92, MATCH($D$94,'C-Diversion'!$D$88:$D$92,0))","v":91.995118087822704},{"$f":"'C-Values and Rates'!AS97*INDEX('C-Diversion'!AS$88:AS$92, MATCH($D$94,'C-Diversion'!$D$88:$D$92,0))","v":94.674750501641327},{"$f":"'C-Values and Rates'!AT97*INDEX('C-Diversion'!AT$88:AT$92, MATCH($D$94,'C-Diversion'!$D$88:$D$92,0))","v":97.432435208042804},{"$f":"'C-Values and Rates'!AU97*INDEX('C-Diversion'!AU$88:AU$92, MATCH($D$94,'C-Diversion'!$D$88:$D$92,0))","v":100.2704457130297},{"$f":"'C-Values and Rates'!AV97*INDEX('C-Diversion'!AV$88:AV$92, MATCH($D$94,'C-Diversion'!$D$88:$D$92,0))","v":103.1911217452532},{"$f":"'C-Values and Rates'!AW97*INDEX('C-Diversion'!AW$88:AW$92, MATCH($D$94,'C-Diversion'!$D$88:$D$92,0))","v":104.10682219634045},{"$f":"'C-Values and Rates'!AX97*INDEX('C-Diversion'!AX$88:AX$92, MATCH($D$94,'C-Diversion'!$D$88:$D$92,0))","v":105.03064841737708},{"$f":"'C-Values and Rates'!AY97*INDEX('C-Diversion'!AY$88:AY$92, MATCH($D$94,'C-Diversion'!$D$88:$D$92,0))","v":105.96267251506259},{"$f":"'C-Values and Rates'!AZ97*INDEX('C-Diversion'!AZ$88:AZ$92, MATCH($D$94,'C-Diversion'!$D$88:$D$92,0))","v":106.90296723595917},{"$f":"'C-Values and Rates'!BA97*INDEX('C-Diversion'!BA$88:BA$92, MATCH($D$94,'C-Diversion'!$D$88:$D$92,0))","v":107.85160597216942},{"$f":"'C-Values and Rates'!BB97*INDEX('C-Diversion'!BB$88:BB$92, MATCH($D$94,'C-Diversion'!$D$88:$D$92,0))","v":108.8086627670651},{"$f":"'C-Values and Rates'!BC97*INDEX('C-Diversion'!BC$88:BC$92, MATCH($D$94,'C-Diversion'!$D$88:$D$92,0))","v":109.77421232106626},{"$f":"'C-Values and Rates'!BD97*INDEX('C-Diversion'!BD$88:BD$92, MATCH($D$94,'C-Diversion'!$D$88:$D$92,0))","v":110.74832999747167},{"$f":"'C-Values and Rates'!BE97*INDEX('C-Diversion'!BE$88:BE$92, MATCH($D$94,'C-Diversion'!$D$88:$D$92,0))","v":111.73109182834125},{"$f":"'C-Values and Rates'!BF97*INDEX('C-Diversion'!BF$88:BF$92, MATCH($D$94,'C-Diversion'!$D$88:$D$92,0))","v":112.72257452043047},{"$f":"'C-Values and Rates'!BG97*INDEX('C-Diversion'!BG$88:BG$92, MATCH($D$94,'C-Diversion'!$D$88:$D$92,0))","v":113.72285546117749},{"$f":"'C-Values and Rates'!BH97*INDEX('C-Diversion'!BH$88:BH$92, MATCH($D$94,'C-Diversion'!$D$88:$D$92,0))","v":114.73201272474338},{"$f":"'C-Values and Rates'!BI97*INDEX('C-Diversion'!BI$88:BI$92, MATCH($D$94,'C-Diversion'!$D$88:$D$92,0))","v":115.75012507810615},{"$f":"'C-Values and Rates'!BJ97*INDEX('C-Diversion'!BJ$88:BJ$92, MATCH($D$94,'C-Diversion'!$D$88:$D$92,0))","v":116.77727198720841},{"$f":"'C-Values and Rates'!BK97*INDEX('C-Diversion'!BK$88:BK$92, MATCH($D$94,'C-Diversion'!$D$88:$D$92,0))","v":117.81353362316018},{"$f":"'C-Values and Rates'!BL97*INDEX('C-Diversion'!BL$88:BL$92, MATCH($D$94,'C-Diversion'!$D$88:$D$92,0))","v":118.85899086849611},{"$f":"'C-Values and Rates'!BM97*INDEX('C-Diversion'!BM$88:BM$92, MATCH($D$94,'C-Diversion'!$D$88:$D$92,0))","v":119.91372532348875},{"$f":"'C-Values and Rates'!BN97*INDEX('C-Diversion'!BN$88:BN$92, MATCH($D$94,'C-Diversion'!$D$88:$D$92,0))","v":120.97781931251771},{"$f":"'C-Values and Rates'!BO97*INDEX('C-Diversion'!BO$88:BO$92, MATCH($D$94,'C-Diversion'!$D$88:$D$92,0))","v":122.0513558904949},{"$f":"'C-Values and Rates'!BP97*INDEX('C-Diversion'!BP$88:BP$92, MATCH($D$94,'C-Diversion'!$D$88:$D$92,0))","v":123.1344188493476},{"$f":"'C-Values and Rates'!BQ97*INDEX('C-Diversion'!BQ$88:BQ$92, MATCH($D$94,'C-Diversion'!$D$88:$D$92,0))","v":124.22709272455825},{"$f":"'C-Values and Rates'!BR97*INDEX('C-Diversion'!BR$88:BR$92, MATCH($D$94,'C-Diversion'!$D$88:$D$92,0))","v":125.32946280176279},{"$f":"'C-Values and Rates'!BS97*INDEX('C-Diversion'!BS$88:BS$92, MATCH($D$94,'C-Diversion'!$D$88:$D$92,0))","v":126.44161512340749},{"$f":"'C-Values and Rates'!BT97*INDEX('C-Diversion'!BT$88:BT$92, MATCH($D$94,'C-Diversion'!$D$88:$D$92,0))","v":127.56363649546446},{"$f":"'C-Values and Rates'!BU97*INDEX('C-Diversion'!BU$88:BU$92, MATCH($D$94,'C-Diversion'!$D$88:$D$92,0))","v":128.69561449420738},{"$f":"'C-Values and Rates'!BV97*INDEX('C-Diversion'!BV$88:BV$92, MATCH($D$94,'C-Diversion'!$D$88:$D$92,0))","v":129.83763747304687},{"$f":"'C-Values and Rates'!BW97*INDEX('C-Diversion'!BW$88:BW$92, MATCH($D$94,'C-Diversion'!$D$88:$D$92,0))","v":130.98979456942655},{"$f":"'C-Values and Rates'!BX97*INDEX('C-Diversion'!BX$88:BX$92, MATCH($D$94,'C-Diversion'!$D$88:$D$92,0))","v":0},{"$f":"'C-Values and Rates'!BY97*INDEX('C-Diversion'!BY$88:BY$92, MATCH($D$94,'C-Diversion'!$D$88:$D$92,0))","v":0},{"$f":"'C-Values and Rates'!BZ97*INDEX('C-Diversion'!BZ$88:BZ$92, MATCH($D$94,'C-Diversion'!$D$88:$D$92,0))","v":0},{"$f":"'C-Values and Rates'!CA97*INDEX('C-Diversion'!CA$88:CA$92, MATCH($D$94,'C-Diversion'!$D$88:$D$92,0))","v":0},{"$f":"'C-Values and Rates'!CB97*INDEX('C-Diversion'!CB$88:CB$92, MATCH($D$94,'C-Diversion'!$D$88:$D$92,0))","v":0},{"$f":"'C-Values and Rates'!CC97*INDEX('C-Diversion'!CC$88:CC$92, MATCH($D$94,'C-Diversion'!$D$88:$D$92,0))","v":0},{"$f":"'C-Values and Rates'!CD97*INDEX('C-Diversion'!CD$88:CD$92, MATCH($D$94,'C-Diversion'!$D$88:$D$92,0))","v":0},{"$f":"'C-Values and Rates'!CE97*INDEX('C-Diversion'!CE$88:CE$92, MATCH($D$94,'C-Diversion'!$D$88:$D$92,0))","v":0}]
[null,null,null,"Noise",null,null,null,4714.6178818909548,null,"£, 2023 prices",{"$f":"'C-Values and Rates'!K98*INDEX('C-Diversion'!K$88:K$92, MATCH($D$94,'C-Diversion'!$D$88:$D$92,0))","v":0},{"$f":"'C-Values and Rates'!L98*INDEX('C-Diversion'!L$88:L$92, MATCH($D$94,'C-Diversion'!$D$88:$D$92,0))","v":0},{"$f":"'C-Values and Rates'!M98*INDEX('C-Diversion'!M$88:M$92, MATCH($D$94,'C-Diversion'!$D$88:$D$92,0))","v":0},{"$f":"'C-Values and Rates'!N98*INDEX('C-Diversion'!N$88:N$92, MATCH($D$94,'C-Diversion'!$D$88:$D$92,0))","v":0},{"$f":"'C-Values and Rates'!O98*INDEX('C-Diversion'!O$88:O$92, MATCH($D$94,'C-Diversion'!$D$88:$D$92,0))","v":0},{"$f":"'C-Values and Rates'!P98*INDEX('C-Diversion'!P$88:P$92, MATCH($D$94,'C-Diversion'!$D$88:$D$92,0))","v":34.764613349759927},{"$f":"'C-Values and Rates'!Q98*INDEX('C-Diversion'!Q$88:Q$92, MATCH($D$94,'C-Diversion'!$D$88:$D$92,0))","v":35.740212795113258},{"$f":"'C-Values and Rates'!R98*INDEX('C-Diversion'!R$88:R$92, MATCH($D$94,'C-Diversion'!$D$88:$D$92,0))","v":36.743190490533607},{"$f":"'C-Values and Rates'!S98*INDEX('C-Diversion'!S$88:S$92, MATCH($D$94,'C-Diversion'!$D$88:$D$92,0))","v":37.940188051903633},{"$f":"'C-Values and Rates'!T98*INDEX('C-Diversion'!T$88:T$92, MATCH($D$94,'C-Diversion'!$D$88:$D$92,0))","v":39.176180679918581},{"$f":"'C-Values and Rates'!U98*INDEX('C-Diversion'!U$88:U$92, MATCH($D$94,'C-Diversion'!$D$88:$D$92,0))","v":40.452438732406833},{"$f":"'C-Values and Rates'!V98*INDEX('C-Diversion'!V$88:V$92, MATCH($D$94,'C-Diversion'!$D$88:$D$92,0))","v":41.770273952150092},{"$f":"'C-Values and Rates'!W98*INDEX('C-Diversion'!W$88:W$92, MATCH($D$94,'C-Diversion'!$D$88:$D$92,0))","v":43.131040815097478},{"$f":"'C-Values and Rates'!X98*INDEX('C-Diversion'!X$88:X$92, MATCH($D$94,'C-Diversion'!$D$88:$D$92,0))","v":44.6247944923593},{"$f":"'C-Values and Rates'!Y98*INDEX('C-Diversion'!Y$88:Y$92, MATCH($D$94,'C-Diversion'!$D$88:$D$92,0))","v":46.170281213993938},{"$f":"'C-Values and Rates'!Z98*INDEX('C-Diversion'!Z$88:Z$92, MATCH($D$94,'C-Diversion'!$D$88:$D$92,0))","v":47.769292646138062},{"$f":"'C-Values and Rates'!AA98*INDEX('C-Diversion'!AA$88:AA$92, MATCH($D$94,'C-Diversion'!$D$88:$D$92,0))","v":49.423682505549657},{"$f":"'C-Values and Rates'!AB98*INDEX('C-Diversion'!AB$88:AB$92, MATCH($D$94,'C-Diversion'!$D$88:$D$92,0))","v":51.135368708601916},{"$f":"'C-Values and Rates'!AC98*INDEX('C-Diversion'!AC$88:AC$92, MATCH($D$94,'C-Diversion'!$D$88:$D$92,0))","v":52.758062514134771},{"$f":"'C-Values and Rates'!AD98*INDEX('C-Diversion'!AD$88:AD$92, MATCH($D$94,'C-Diversion'!$D$88:$D$92,0))","v":54.432249742967656},{"$f":"'C-Values and Rates'!AE98*INDEX('C-Diversion'!AE$88:AE$92, MATCH($D$94,'C-Diversion'!$D$88:$D$92,0))","v":56.159564451158523},{"$f":"'C-Values and Rates'!AF98*INDEX('C-Diversion'!AF$88:AF$92, MATCH($D$94,'C-Diversion'!$D$88:$D$92,0))","v":57.941692548750368},{"$f":"'C-Values and Rates'!AG98*INDEX('C-Diversion'!AG$88:AG$92, MATCH($D$94,'C-Diversion'!$D$88:$D$92,0))","v":59.780373445269085},{"$f":"'C-Values and Rates'!AH98*INDEX('C-Diversion'!AH$88:AH$92, MATCH($D$94,'C-Diversion'!$D$88:$D$92,0))","v":61.413807850256418},{"$f":"'C-Values and Rates'!AI98*INDEX('C-Diversion'!AI$88:AI$92, MATCH($D$94,'C-Diversion'!$D$88:$D$92,0))","v":63.091874093447956},{"$f":"'C-Values and Rates'!AJ98*INDEX('C-Diversion'!AJ$88:AJ$92, MATCH($D$94,'C-Diversion'!$D$88:$D$92,0))","v":64.815791691816898},{"$f":"'C-Values and Rates'!AK98*INDEX('C-Diversion'!AK$88:AK$92, MATCH($D$94,'C-Diversion'!$D$88:$D$92,0))","v":66.586813484326044},{"$f":"'C-Values and Rates'!AL98*INDEX('C-Diversion'!AL$88:AL$92, MATCH($D$94,'C-Diversion'!$D$88:$D$92,0))","v":68.406226542415268},{"$f":"'C-Values and Rates'!AM98*INDEX('C-Diversion'!AM$88:AM$92, MATCH($D$94,'C-Diversion'!$D$88:$D$92,0))","v":70.258779168307854},{"$f":"'C-Values and Rates'!AN98*INDEX('C-Diversion'!AN$88:AN$92, MATCH($D$94,'C-Diversion'!$D$88:$D$92,0))","v":72.161501952754264},{"$f":"'C-Values and Rates'!AO98*INDEX('C-Diversion'!AO$88:AO$92, MATCH($D$94,'C-Diversion'!$D$88:$D$92,0))","v":74.115753585798785},{"$f":"'C-Values and Rates'!AP98*INDEX('C-Diversion'!AP$88:AP$92, MATCH($D$94,'C-Diversion'!$D$88:$D$92,0))","v":76.122929553036855},{"$f":"'C-Values and Rates'!AQ98*INDEX('C-Diversion'!AQ$88:AQ$92, MATCH($D$94,'C-Diversion'!$D$88:$D$92,0))","v":78.184463132098898},{"$f":"'C-Values and Rates'!AR98*INDEX('C-Diversion'!AR$88:AR$92, MATCH($D$94,'C-Diversion'!$D$88:$D$92,0))","v":80.455823925839411},{"$f":"'C-Values and Rates'!AS98*INDEX('C-Diversion'!AS$88:AS$92, MATCH($D$94,'C-Diversion'!$D$88:$D$92,0))","v":82.793170717931332},{"$f":"'C-Values and Rates'!AT98*INDEX('C-Diversion'!AT$88:AT$92, MATCH($D$94,'C-Diversion'!$D$88:$D$92,0))","v":85.198420487830532},{"$f":"'C-Values and Rates'!AU98*INDEX('C-Diversion'!AU$88:AU$92, MATCH($D$94,'C-Diversion'!$D$88:$D$92,0))","v":87.673545905750359},{"$f":"'C-Values and Rates'!AV98*INDEX('C-Diversion'!AV$88:AV$92, MATCH($D$94,'C-Diversion'!$D$88:$D$92,0))","v":90.220576950551049},{"$f":"'C-Values and Rates'!AW98*INDEX('C-Diversion'!AW$88:AW$92, MATCH($D$94,'C-Diversion'!$D$88:$D$92,0))","v":91.021178994735848},{"$f":"'C-Values and Rates'!AX98*INDEX('C-Diversion'!AX$88:AX$92, MATCH($D$94,'C-Diversion'!$D$88:$D$92,0))","v":91.828885445197102},{"$f":"'C-Values and Rates'!AY98*INDEX('C-Diversion'!AY$88:AY$92, MATCH($D$94,'C-Diversion'!$D$88:$D$92,0))","v":92.643759345226883},{"$f":"'C-Values and Rates'!AZ98*INDEX('C-Diversion'!AZ$88:AZ$92, MATCH($D$94,'C-Diversion'!$D$88:$D$92,0))","v":93.465864297552869},{"$f":"'C-Values and Rates'!BA98*INDEX('C-Diversion'!BA$88:BA$92, MATCH($D$94,'C-Diversion'!$D$88:$D$92,0))","v":94.29526446930231},{"$f":"'C-Values and Rates'!BB98*INDEX('C-Diversion'!BB$88:BB$92, MATCH($D$94,'C-Diversion'!$D$88:$D$92,0))","v":95.132024597010741},{"$f":"'C-Values and Rates'!BC98*INDEX('C-Diversion'!BC$88:BC$92, MATCH($D$94,'C-Diversion'!$D$88:$D$92,0))","v":95.976209991674679},{"$f":"'C-Values and Rates'!BD98*INDEX('C-Diversion'!BD$88:BD$92, MATCH($D$94,'C-Diversion'!$D$88:$D$92,0))","v":96.827886543849289},{"$f":"'C-Values and Rates'!BE98*INDEX('C-Diversion'!BE$88:BE$92, MATCH($D$94,'C-Diversion'!$D$88:$D$92,0))","v":97.687120728791285},{"$f":"'C-Values and Rates'!BF98*INDEX('C-Diversion'!BF$88:BF$92, MATCH($D$94,'C-Diversion'!$D$88:$D$92,0))","v":98.553979611647549},{"$f":"'C-Values and Rates'!BG98*INDEX('C-Diversion'!BG$88:BG$92, MATCH($D$94,'C-Diversion'!$D$88:$D$92,0))","v":99.428530852689633},{"$f":"'C-Values and Rates'!BH98*INDEX('C-Diversion'!BH$88:BH$92, MATCH($D$94,'C-Diversion'!$D$88:$D$92,0))","v":100.31084271259481},{"$f":"'C-Values and Rates'!BI98*INDEX('C-Diversion'!BI$88:BI$92, MATCH($D$94,'C-Diversion'!$D$88:$D$92,0))","v":101.20098405777401},{"$f":"'C-Values and Rates'!BJ98*INDEX('C-Diversion'!BJ$88:BJ$92, MATCH($D$94,'C-Diversion'!$D$88:$D$92,0))","v":102.09902436574696},{"$f":"'C-Values and Rates'!BK98*INDEX('C-Diversion'!BK$88:BK$92, MATCH($D$94,'C-Diversion'!$D$88:$D$92,0))","v":103.00503373056513},{"$f":"'C-Values and Rates'!BL98*INDEX('C-Diversion'!BL$88:BL$92, MATCH($D$94,'C-Diversion'!$D$88:$D$92,0))","v":103.91908286828253},{"$f":"'C-Values and Rates'!BM98*INDEX('C-Diversion'!BM$88:BM$92, MATCH($D$94,'C-Diversion'!$D$88:$D$92,0))","v":104.84124312247552},{"$f":"'C-Values and Rates'!BN98*INDEX('C-Diversion'!BN$88:BN$92, MATCH($D$94,'C-Diversion'!$D$88:$D$92,0))","v":105.77158646981123},{"$f":"'C-Values and Rates'!BO98*INDEX('C-Diversion'!BO$88:BO$92, MATCH($D$94,'C-Diversion'!$D$88:$D$92,0))","v":106.71018552566535},{"$f":"'C-Values and Rates'!BP98*INDEX('C-Diversion'!BP$88:BP$92, MATCH($D$94,'C-Diversion'!$D$88:$D$92,0))","v":107.65711354979021},{"$f":"'C-Values and Rates'!BQ98*INDEX('C-Diversion'!BQ$88:BQ$92, MATCH($D$94,'C-Diversion'!$D$88:$D$92,0))","v":108.61244445203263},{"$f":"'C-Values and Rates'!BR98*INDEX('C-Diversion'!BR$88:BR$92, MATCH($D$94,'C-Diversion'!$D$88:$D$92,0))","v":109.57625279810279},{"$f":"'C-Values and Rates'!BS98*INDEX('C-Diversion'!BS$88:BS$92, MATCH($D$94,'C-Diversion'!$D$88:$D$92,0))","v":110.54861381539442},{"$f":"'C-Values and Rates'!BT98*INDEX('C-Diversion'!BT$88:BT$92, MATCH($D$94,'C-Diversion'!$D$88:$D$92,0))","v":111.52960339885621},{"$f":"'C-Values and Rates'!BU98*INDEX('C-Diversion'!BU$88:BU$92, MATCH($D$94,'C-Diversion'!$D$88:$D$92,0))","v":112.51929811691573},{"$f":"'C-Values and Rates'!BV98*INDEX('C-Diversion'!BV$88:BV$92, MATCH($D$94,'C-Diversion'!$D$88:$D$92,0))","v":113.51777521745588},{"$f":"'C-Values and Rates'!BW98*INDEX('C-Diversion'!BW$88:BW$92, MATCH($D$94,'C-Diversion'!$D$88:$D$92,0))","v":114.52511263384392},{"$f":"'C-Values and Rates'!BX98*INDEX('C-Diversion'!BX$88:BX$92, MATCH($D$94,'C-Diversion'!$D$88:$D$92,0))","v":0},{"$f":"'C-Values and Rates'!BY98*INDEX('C-Diversion'!BY$88:BY$92, MATCH($D$94,'C-Diversion'!$D$88:$D$92,0))","v":0},{"$f":"'C-Values and Rates'!BZ98*INDEX('C-Diversion'!BZ$88:BZ$92, MATCH($D$94,'C-Diversion'!$D$88:$D$92,0))","v":0},{"$f":"'C-Values and Rates'!CA98*INDEX('C-Diversion'!CA$88:CA$92, MATCH($D$94,'C-Diversion'!$D$88:$D$92,0))","v":0},{"$f":"'C-Values and Rates'!CB98*INDEX('C-Diversion'!CB$88:CB$92, MATCH($D$94,'C-Diversion'!$D$88:$D$92,0))","v":0},{"$f":"'C-Values and Rates'!CC98*INDEX('C-Diversion'!CC$88:CC$92, MATCH($D$94,'C-Diversion'!$D$88:$D$92,0))","v":0},{"$f":"'C-Values and Rates'!CD98*INDEX('C-Diversion'!CD$88:CD$92, MATCH($D$94,'C-Diversion'!$D$88:$D$92,0))","v":0},{"$f":"'C-Values and Rates'!CE98*INDEX('C-Diversion'!CE$88:CE$92, MATCH($D$94,'C-Diversion'!$D$88:$D$92,0))","v":0}]
[null,null,null,"Greenhouse Gases",null,null,null,{"$f":"SUM(K100:CE100)","v":40418.005191040065},null,"£, 2023 prices",{"$f":"'C-Values and Rates'!K99*INDEX('C-Diversion'!K$88:K$92, MATCH($D$94,'C-Diversion'!$D$88:$D$92,0))","v":0},{"$f":"'C-Values and Rates'!L99*INDEX('C-Diversion'!L$88:L$92, MATCH($D$94,'C-Diversion'!$D$88:$D$92,0))","v":0},{"$f":"'C-Values and Rates'!M99*INDEX('C-Diversion'!M$88:M$92, MATCH($D$94,'C-Diversion'!$D$88:$D$92,0))","v":0},{"$f":"'C-Values and Rates'!N99*INDEX('C-Diversion'!N$88:N$92, MATCH($D$94,'C-Diversion'!$D$88:$D$92,0))","v":0},{"$f":"'C-Values and Rates'!O99*INDEX('C-Diversion'!O$88:O$92, MATCH($D$94,'C-Diversion'!$D$88:$D$92,0))","v":0},{"$f":"'C-Values and Rates'!P99*INDEX('C-Diversion'!P$88:P$92, MATCH($D$94,'C-Diversion'!$D$88:$D$92,0))","v":641.55481050869844},{"$f":"'C-Values and Rates'!Q99*INDEX('C-Diversion'!Q$88:Q$92, MATCH($D$94,'C-Diversion'!$D$88:$D$92,0))","v":645.82047643490296},{"$f":"'C-Values and Rates'!R99*INDEX('C-Diversion'!R$88:R$92, MATCH($D$94,'C-Diversion'!$D$88:$D$92,0))","v":650.11450456102546},{"$f":"'C-Values and Rates'!S99*INDEX('C-Diversion'!S$88:S$92, MATCH($D$94,'C-Diversion'!$D$88:$D$92,0))","v":641.26764207854546},{"$f":"'C-Values and Rates'!T99*INDEX('C-Diversion'!T$88:T$92, MATCH($D$94,'C-Diversion'!$D$88:$D$92,0))","v":632.54116912011841},{"$f":"'C-Values and Rates'!U99*INDEX('C-Diversion'!U$88:U$92, MATCH($D$94,'C-Diversion'!$D$88:$D$92,0))","v":623.93344740578539},{"$f":"'C-Values and Rates'!V99*INDEX('C-Diversion'!V$88:V$92, MATCH($D$94,'C-Diversion'!$D$88:$D$92,0))","v":615.44286094956442},{"$f":"'C-Values and Rates'!W99*INDEX('C-Diversion'!W$88:W$92, MATCH($D$94,'C-Diversion'!$D$88:$D$92,0))","v":607.0678157560701},{"$f":"'C-Values and Rates'!X99*INDEX('C-Diversion'!X$88:X$92, MATCH($D$94,'C-Diversion'!$D$88:$D$92,0))","v":597.63536626738119},{"$f":"'C-Values and Rates'!Y99*INDEX('C-Diversion'!Y$88:Y$92, MATCH($D$94,'C-Diversion'!$D$88:$D$92,0))","v":588.3494755338221},{"$f":"'C-Values and Rates'!Z99*INDEX('C-Diversion'!Z$88:Z$92, MATCH($D$94,'C-Diversion'!$D$88:$D$92,0))","v":579.20786636655328},{"$f":"'C-Values and Rates'!AA99*INDEX('C-Diversion'!AA$88:AA$92, MATCH($D$94,'C-Diversion'!$D$88:$D$92,0))","v":570.20829695905718},{"$f":"'C-Values and Rates'!AB99*INDEX('C-Diversion'!AB$88:AB$92, MATCH($D$94,'C-Diversion'!$D$88:$D$92,0))","v":561.34856033737674},{"$f":"'C-Values and Rates'!AC99*INDEX('C-Diversion'!AC$88:AC$92, MATCH($D$94,'C-Diversion'!$D$88:$D$92,0))","v":557.44432604772283},{"$f":"'C-Values and Rates'!AD99*INDEX('C-Diversion'!AD$88:AD$92, MATCH($D$94,'C-Diversion'!$D$88:$D$92,0))","v":553.5672460904492},{"$f":"'C-Values and Rates'!AE99*INDEX('C-Diversion'!AE$88:AE$92, MATCH($D$94,'C-Diversion'!$D$88:$D$92,0))","v":549.71713160451088},{"$f":"'C-Values and Rates'!AF99*INDEX('C-Diversion'!AF$88:AF$92, MATCH($D$94,'C-Diversion'!$D$88:$D$92,0))","v":545.89379504241037},{"$f":"'C-Values and Rates'!AG99*INDEX('C-Diversion'!AG$88:AG$92, MATCH($D$94,'C-Diversion'!$D$88:$D$92,0))","v":542.09705016106102},{"$f":"'C-Values and Rates'!AH99*INDEX('C-Diversion'!AH$88:AH$92, MATCH($D$94,'C-Diversion'!$D$88:$D$92,0))","v":541.33960679462598},{"$f":"'C-Values and Rates'!AI99*INDEX('C-Diversion'!AI$88:AI$92, MATCH($D$94,'C-Diversion'!$D$88:$D$92,0))","v":540.58322176350782},{"$f":"'C-Values and Rates'!AJ99*INDEX('C-Diversion'!AJ$88:AJ$92, MATCH($D$94,'C-Diversion'!$D$88:$D$92,0))","v":539.82789358895104},{"$f":"'C-Values and Rates'!AK99*INDEX('C-Diversion'!AK$88:AK$92, MATCH($D$94,'C-Diversion'!$D$88:$D$92,0))","v":539.07362079426605},{"$f":"'C-Values and Rates'!AL99*INDEX('C-Diversion'!AL$88:AL$92, MATCH($D$94,'C-Diversion'!$D$88:$D$92,0))","v":538.32040190482678},{"$f":"'C-Values and Rates'!AM99*INDEX('C-Diversion'!AM$88:AM$92, MATCH($D$94,'C-Diversion'!$D$88:$D$92,0))","v":550.73143634326914},{"$f":"'C-Values and Rates'!AN99*INDEX('C-Diversion'!AN$88:AN$92, MATCH($D$94,'C-Diversion'!$D$88:$D$92,0))","v":563.42860850803072},{"$f":"'C-Values and Rates'!AO99*INDEX('C-Diversion'!AO$88:AO$92, MATCH($D$94,'C-Diversion'!$D$88:$D$92,0))","v":576.41851533499357},{"$f":"'C-Values and Rates'!AP99*INDEX('C-Diversion'!AP$88:AP$92, MATCH($D$94,'C-Diversion'!$D$88:$D$92,0))","v":589.70790585310226},{"$f":"'C-Values and Rates'!AQ99*INDEX('C-Diversion'!AQ$88:AQ$92, MATCH($D$94,'C-Diversion'!$D$88:$D$92,0))","v":603.30368469088535},{"$f":"'C-Values and Rates'!AR99*INDEX('C-Diversion'!AR$88:AR$92, MATCH($D$94,'C-Diversion'!$D$88:$D$92,0))","v":618.25658845897226},{"$f":"'C-Values and Rates'!AS99*INDEX('C-Diversion'!AS$88:AS$92, MATCH($D$94,'C-Diversion'!$D$88:$D$92,0))","v":633.58010049080951},{"$f":"'C-Values and Rates'!AT99*INDEX('C-Diversion'!AT$88:AT$92, MATCH($D$94,'C-Diversion'!$D$88:$D$92,0))","v":649.28340632569416},{"$f":"'C-Values and Rates'!AU99*INDEX('C-Diversion'!AU$88:AU$92, MATCH($D$94,'C-Diversion'!$D$88:$D$92,0))","v":665.37591916684812},{"$f":"'C-Values and Rates'!AV99*INDEX('C-Diversion'!AV$88:AV$92, MATCH($D$94,'C-Diversion'!$D$88:$D$92,0))","v":681.86728552407828},{"$f":"'C-Values and Rates'!AW99*INDEX('C-Diversion'!AW$88:AW$92, MATCH($D$94,'C-Diversion'!$D$88:$D$92,0))","v":687.91805976100784},{"$f":"'C-Values and Rates'!AX99*INDEX('C-Diversion'!AX$88:AX$92, MATCH($D$94,'C-Diversion'!$D$88:$D$92,0))","v":694.02252753866526},{"$f":"'C-Values and Rates'!AY99*INDEX('C-Diversion'!AY$88:AY$92, MATCH($D$94,'C-Diversion'!$D$88:$D$92,0))","v":700.18116532439194},{"$f":"'C-Values and Rates'!AZ99*INDEX('C-Diversion'!AZ$88:AZ$92, MATCH($D$94,'C-Diversion'!$D$88:$D$92,0))","v":706.39445381362054},{"$f":"'C-Values and Rates'!BA99*INDEX('C-Diversion'!BA$88:BA$92, MATCH($D$94,'C-Diversion'!$D$88:$D$92,0))","v":712.66287796739164},{"$f":"'C-Values and Rates'!BB99*INDEX('C-Diversion'!BB$88:BB$92, MATCH($D$94,'C-Diversion'!$D$88:$D$92,0))","v":718.98692705020835},{"$f":"'C-Values and Rates'!BC99*INDEX('C-Diversion'!BC$88:BC$92, MATCH($D$94,'C-Diversion'!$D$88:$D$92,0))","v":725.36709466822379},{"$f":"'C-Values and Rates'!BD99*INDEX('C-Diversion'!BD$88:BD$92, MATCH($D$94,'C-Diversion'!$D$88:$D$92,0))","v":731.80387880776766},{"$f":"'C-Values and Rates'!BE99*INDEX('C-Diversion'!BE$88:BE$92, MATCH($D$94,'C-Diversion'!$D$88:$D$92,0))","v":738.29778187421573},{"$f":"'C-Values and Rates'!BF99*INDEX('C-Diversion'!BF$88:BF$92, MATCH($D$94,'C-Diversion'!$D$88:$D$92,0))","v":744.84931073120356},{"$f":"'C-Values and Rates'!BG99*INDEX('C-Diversion'!BG$88:BG$92, MATCH($D$94,'C-Diversion'!$D$88:$D$92,0))","v":751.45897674018875},{"$f":"'C-Values and Rates'!BH99*INDEX('C-Diversion'!BH$88:BH$92, MATCH($D$94,'C-Diversion'!$D$88:$D$92,0))","v":758.1272958003625},{"$f":"'C-Values and Rates'!BI99*INDEX('C-Diversion'!BI$88:BI$92, MATCH($D$94,'C-Diversion'!$D$88:$D$92,0))","v":764.85478838891868},{"$f":"'C-Values and Rates'!BJ99*INDEX('C-Diversion'!BJ$88:BJ$92, MATCH($D$94,'C-Diversion'!$D$88:$D$92,0))","v":771.64197960167655},{"$f":"'C-Values and Rates'!BK99*INDEX('C-Diversion'!BK$88:BK$92, MATCH($D$94,'C-Diversion'!$D$88:$D$92,0))","v":778.48939919406678},{"$f":"'C-Values and Rates'!BL99*INDEX('C-Diversion'!BL$88:BL$92, MATCH($D$94,'C-Diversion'!$D$88:$D$92,0))","v":785.39758162247892},{"$f":"'C-Values and Rates'!BM99*INDEX('C-Diversion'!BM$88:BM$92, MATCH($D$94,'C-Diversion'!$D$88:$D$92,0))","v":792.36706608597763},{"$f":"'C-Values and Rates'!BN99*INDEX('C-Diversion'!BN$88:BN$92, MATCH($D$94,'C-Diversion'!$D$88:$D$92,0))","v":799.39839656838944},{"$f":"'C-Values and Rates'!BO99*INDEX('C-Diversion'!BO$88:BO$92, MATCH($D$94,'C-Diversion'!$D$88:$D$92,0))","v":806.4921218807591},{"$f":"'C-Values and Rates'!BP99*INDEX('C-Diversion'!BP$88:BP$92, MATCH($D$94,'C-Diversion'!$D$88:$D$92,0))","v":813.64879570418839},{"$f":"'C-Values and Rates'!BQ99*INDEX('C-Diversion'!BQ$88:BQ$92, MATCH($D$94,'C-Diversion'!$D$88:$D$92,0))","v":820.86897663305047},{"$f":"'C-Values and Rates'!BR99*INDEX('C-Diversion'!BR$88:BR$92, MATCH($D$94,'C-Diversion'!$D$88:$D$92,0))","v":828.15322821858967},{"$f":"'C-Values and Rates'!BS99*INDEX('C-Diversion'!BS$88:BS$92, MATCH($D$94,'C-Diversion'!$D$88:$D$92,0))","v":835.50211901290891},{"$f":"'C-Values and Rates'!BT99*INDEX('C-Diversion'!BT$88:BT$92, MATCH($D$94,'C-Diversion'!$D$88:$D$92,0))","v":842.91622261334476},{"$f":"'C-Values and Rates'!BU99*INDEX('C-Diversion'!BU$88:BU$92, MATCH($D$94,'C-Diversion'!$D$88:$D$92,0))","v":850.39611770723945},{"$f":"'C-Values and Rates'!BV99*INDEX('C-Diversion'!BV$88:BV$92, MATCH($D$94,'C-Diversion'!$D$88:$D$92,0))","v":857.94238811710852},{"$f":"'C-Values and Rates'!BW99*INDEX('C-Diversion'!BW$88:BW$92, MATCH($D$94,'C-Diversion'!$D$88:$D$92,0))","v":865.55562284620817},{"$f":"'C-Values and Rates'!BX99*INDEX('C-Diversion'!BX$88:BX$92, MATCH($D$94,'C-Diversion'!$D$88:$D$92,0))","v":0},{"$f":"'C-Values and Rates'!BY99*INDEX('C-Diversion'!BY$88:BY$92, MATCH($D$94,'C-Diversion'!$D$88:$D$92,0))","v":0},{"$f":"'C-Values and Rates'!BZ99*INDEX('C-Diversion'!BZ$88:BZ$92, MATCH($D$94,'C-Diversion'!$D$88:$D$92,0))","v":0},{"$f":"'C-Values and Rates'!CA99*INDEX('C-Diversion'!CA$88:CA$92, MATCH($D$94,'C-Diversion'!$D$88:$D$92,0))","v":0},{"$f":"'C-Values and Rates'!CB99*INDEX('C-Diversion'!CB$88:CB$92, MATCH($D$94,'C-Diversion'!$D$88:$D$92,0))","v":0},{"$f":"'C-Values and Rates'!CC99*INDEX('C-Diversion'!CC$88:CC$92, MATCH($D$94,'C-Diversion'!$D$88:$D$92,0))","v":0},{"$f":"'C-Values and Rates'!CD99*INDEX('C-Diversion'!CD$88:CD$92, MATCH($D$94,'C-Diversion'!$D$88:$D$92,0))","v":0},{"$f":"'C-Values and Rates'!CE99*INDEX('C-Diversion'!CE$88:CE$92, MATCH($D$94,'C-Diversion'!$D$88:$D$92,0))","v":0}]
[null,null,null,"Indirect Taxation",null,null,null,-7432.9724181823876,null,"£, 2023 prices",{"$f":"'C-Values and Rates'!K100*INDEX('C-Diversion'!K$88:K$92, MATCH($D$94,'C-Diversion'!$D$88:$D$92,0))","v":0},{"$f":"'C-Values and Rates'!L100*INDEX('C-Diversion'!L$88:L$92, MATCH($D$94,'C-Diversion'!$D$88:$D$92,0))","v":0},{"$f":"'C-Values and Rates'!M100*INDEX('C-Diversion'!M$88:M$92, MATCH($D$94,'C-Diversion'!$D$88:$D$92,0))","v":0},{"$f":"'C-Values and Rates'!N100*INDEX('C-Diversion'!N$88:N$92, MATCH($D$94,'C-Diversion'!$D$88:$D$92,0))","v":0},{"$f":"'C-Values and Rates'!O100*INDEX('C-Diversion'!O$88:O$92, MATCH($D$94,'C-Diversion'!$D$88:$D$92,0))","v":0},{"$f":"'C-Values and Rates'!P100*INDEX('C-Diversion'!P$88:P$92, MATCH($D$94,'C-Diversion'!$D$88:$D$92,0))","v":-418.10824311720307},{"$f":"'C-Values and Rates'!Q100*INDEX('C-Diversion'!Q$88:Q$92, MATCH($D$94,'C-Diversion'!$D$88:$D$92,0))","v":-392.72579022633062},{"$f":"'C-Values and Rates'!R100*INDEX('C-Diversion'!R$88:R$92, MATCH($D$94,'C-Diversion'!$D$88:$D$92,0))","v":-366.91591904052194},{"$f":"'C-Values and Rates'!S100*INDEX('C-Diversion'!S$88:S$92, MATCH($D$94,'C-Diversion'!$D$88:$D$92,0))","v":-337.39267833506756},{"$f":"'C-Values and Rates'!T100*INDEX('C-Diversion'!T$88:T$92, MATCH($D$94,'C-Diversion'!$D$88:$D$92,0))","v":-307.08555937789419},{"$f":"'C-Values and Rates'!U100*INDEX('C-Diversion'!U$88:U$92, MATCH($D$94,'C-Diversion'!$D$88:$D$92,0))","v":-275.97971945971909},{"$f":"'C-Values and Rates'!V100*INDEX('C-Diversion'!V$88:V$92, MATCH($D$94,'C-Diversion'!$D$88:$D$92,0))","v":-244.06006901409083},{"$f":"'C-Values and Rates'!W100*INDEX('C-Diversion'!W$88:W$92, MATCH($D$94,'C-Diversion'!$D$88:$D$92,0))","v":-211.31126778631179},{"$f":"'C-Values and Rates'!X100*INDEX('C-Diversion'!X$88:X$92, MATCH($D$94,'C-Diversion'!$D$88:$D$92,0))","v":-195.83834612078303},{"$f":"'C-Values and Rates'!Y100*INDEX('C-Diversion'!Y$88:Y$92, MATCH($D$94,'C-Diversion'!$D$88:$D$92,0))","v":-179.87798607309108},{"$f":"'C-Values and Rates'!Z100*INDEX('C-Diversion'!Z$88:Z$92, MATCH($D$94,'C-Diversion'!$D$88:$D$92,0))","v":-163.41938651036264},{"$f":"'C-Values and Rates'!AA100*INDEX('C-Diversion'!AA$88:AA$92, MATCH($D$94,'C-Diversion'!$D$88:$D$92,0))","v":-146.45153671223633},{"$f":"'C-Values and Rates'!AB100*INDEX('C-Diversion'!AB$88:AB$92, MATCH($D$94,'C-Diversion'!$D$88:$D$92,0))","v":-128.96321258033541},{"$f":"'C-Values and Rates'!AC100*INDEX('C-Diversion'!AC$88:AC$92, MATCH($D$94,'C-Diversion'!$D$88:$D$92,0))","v":-121.92615699650169},{"$f":"'C-Values and Rates'!AD100*INDEX('C-Diversion'!AD$88:AD$92, MATCH($D$94,'C-Diversion'!$D$88:$D$92,0))","v":-114.71013867993432},{"$f":"'C-Values and Rates'!AE100*INDEX('C-Diversion'!AE$88:AE$92, MATCH($D$94,'C-Diversion'!$D$88:$D$92,0))","v":-107.3119715048158},{"$f":"'C-Values and Rates'!AF100*INDEX('C-Diversion'!AF$88:AF$92, MATCH($D$94,'C-Diversion'!$D$88:$D$92,0))","v":-99.728419724967253},{"$f":"'C-Values and Rates'!AG100*INDEX('C-Diversion'!AG$88:AG$92, MATCH($D$94,'C-Diversion'!$D$88:$D$92,0))","v":-91.956197253861262},{"$f":"'C-Values and Rates'!AH100*INDEX('C-Diversion'!AH$88:AH$92, MATCH($D$94,'C-Diversion'!$D$88:$D$92,0))","v":-88.423350651720312},{"$f":"'C-Values and Rates'!AI100*INDEX('C-Diversion'!AI$88:AI$92, MATCH($D$94,'C-Diversion'!$D$88:$D$92,0))","v":-84.835029142514344},{"$f":"'C-Values and Rates'!AJ100*INDEX('C-Diversion'!AJ$88:AJ$92, MATCH($D$94,'C-Diversion'!$D$88:$D$92,0))","v":-81.190618214147378},{"$f":"'C-Values and Rates'!AK100*INDEX('C-Diversion'!AK$88:AK$92, MATCH($D$94,'C-Diversion'!$D$88:$D$92,0))","v":-77.489497389856766},{"$f":"'C-Values and Rates'!AL100*INDEX('C-Diversion'!AL$88:AL$92, MATCH($D$94,'C-Diversion'!$D$88:$D$92,0))","v":-73.731040174239212},{"$f":"'C-Values and Rates'!AM100*INDEX('C-Diversion'!AM$88:AM$92, MATCH($D$94,'C-Diversion'!$D$88:$D$92,0))","v":-74.009468361543597},{"$f":"'C-Values and Rates'!AN100*INDEX('C-Diversion'!AN$88:AN$92, MATCH($D$94,'C-Diversion'!$D$88:$D$92,0))","v":-74.288208681394181},{"$f":"'C-Values and Rates'!AO100*INDEX('C-Diversion'!AO$88:AO$92, MATCH($D$94,'C-Diversion'!$D$88:$D$92,0))","v":-74.567252047070752},{"$f":"'C-Values and Rates'!AP100*INDEX('C-Diversion'!AP$88:AP$92, MATCH($D$94,'C-Diversion'!$D$88:$D$92,0))","v":-74.846589230633455},{"$f":"'C-Values and Rates'!AQ100*INDEX('C-Diversion'!AQ$88:AQ$92, MATCH($D$94,'C-Diversion'!$D$88:$D$92,0))","v":-75.126210861399727},{"$f":"'C-Values and Rates'!AR100*INDEX('C-Diversion'!AR$88:AR$92, MATCH($D$94,'C-Diversion'!$D$88:$D$92,0))","v":-75.56372689248316},{"$f":"'C-Values and Rates'!AS100*INDEX('C-Diversion'!AS$88:AS$92, MATCH($D$94,'C-Diversion'!$D$88:$D$92,0))","v":-76.003092006551498},{"$f":"'C-Values and Rates'!AT100*INDEX('C-Diversion'!AT$88:AT$92, MATCH($D$94,'C-Diversion'!$D$88:$D$92,0))","v":-76.444304568363563},{"$f":"'C-Values and Rates'!AU100*INDEX('C-Diversion'!AU$88:AU$92, MATCH($D$94,'C-Diversion'!$D$88:$D$92,0))","v":-76.887362768050721},{"$f":"'C-Values and Rates'!AV100*INDEX('C-Diversion'!AV$88:AV$92, MATCH($D$94,'C-Diversion'!$D$88:$D$92,0))","v":-77.332264618146382},{"$f":"'C-Values and Rates'!AW100*INDEX('C-Diversion'!AW$88:AW$92, MATCH($D$94,'C-Diversion'!$D$88:$D$92,0))","v":-78.018497972303066},{"$f":"'C-Values and Rates'!AX100*INDEX('C-Diversion'!AX$88:AX$92, MATCH($D$94,'C-Diversion'!$D$88:$D$92,0))","v":-78.710820844446602},{"$f":"'C-Values and Rates'!AY100*INDEX('C-Diversion'!AY$88:AY$92, MATCH($D$94,'C-Diversion'!$D$88:$D$92,0))","v":-79.409287271923148},{"$f":"'C-Values and Rates'!AZ100*INDEX('C-Diversion'!AZ$88:AZ$92, MATCH($D$94,'C-Diversion'!$D$88:$D$92,0))","v":-80.113951771597172},{"$f":"'C-Values and Rates'!BA100*INDEX('C-Diversion'!BA$88:BA$92, MATCH($D$94,'C-Diversion'!$D$88:$D$92,0))","v":-80.824869344106361},{"$f":"'C-Values and Rates'!BB100*INDEX('C-Diversion'!BB$88:BB$92, MATCH($D$94,'C-Diversion'!$D$88:$D$92,0))","v":-81.542095478154778},{"$f":"'C-Values and Rates'!BC100*INDEX('C-Diversion'!BC$88:BC$92, MATCH($D$94,'C-Diversion'!$D$88:$D$92,0))","v":-82.265686154843848},{"$f":"'C-Values and Rates'!BD100*INDEX('C-Diversion'!BD$88:BD$92, MATCH($D$94,'C-Diversion'!$D$88:$D$92,0))","v":-82.995697852041644},{"$f":"'C-Values and Rates'!BE100*INDEX('C-Diversion'!BE$88:BE$92, MATCH($D$94,'C-Diversion'!$D$88:$D$92,0))","v":-83.732187548791316},{"$f":"'C-Values and Rates'!BF100*INDEX('C-Diversion'!BF$88:BF$92, MATCH($D$94,'C-Diversion'!$D$88:$D$92,0))","v":-84.475212729758326},{"$f":"'C-Values and Rates'!BG100*INDEX('C-Diversion'!BG$88:BG$92, MATCH($D$94,'C-Diversion'!$D$88:$D$92,0))","v":-85.224831389717281},{"$f":"'C-Values and Rates'!BH100*INDEX('C-Diversion'!BH$88:BH$92, MATCH($D$94,'C-Diversion'!$D$88:$D$92,0))","v":-85.981102038078475},{"$f":"'C-Values and Rates'!BI100*INDEX('C-Diversion'!BI$88:BI$92, MATCH($D$94,'C-Diversion'!$D$88:$D$92,0))","v":-86.744083703454876},{"$f":"'C-Values and Rates'!BJ100*INDEX('C-Diversion'!BJ$88:BJ$92, MATCH($D$94,'C-Diversion'!$D$88:$D$92,0))","v":-87.513835938269224},{"$f":"'C-Values and Rates'!BK100*INDEX('C-Diversion'!BK$88:BK$92, MATCH($D$94,'C-Diversion'!$D$88:$D$92,0))","v":-88.290418823402376},{"$f":"'C-Values and Rates'!BL100*INDEX('C-Diversion'!BL$88:BL$92, MATCH($D$94,'C-Diversion'!$D$88:$D$92,0))","v":-89.073892972882646},{"$f":"'C-Values and Rates'!BM100*INDEX('C-Diversion'!BM$88:BM$92, MATCH($D$94,'C-Diversion'!$D$88:$D$92,0))","v":-89.864319538616911},{"$f":"'C-Values and Rates'!BN100*INDEX('C-Diversion'!BN$88:BN$92, MATCH($D$94,'C-Diversion'!$D$88:$D$92,0))","v":-90.661760215163795},{"$f":"'C-Values and Rates'!BO100*INDEX('C-Diversion'!BO$88:BO$92, MATCH($D$94,'C-Diversion'!$D$88:$D$92,0))","v":-91.466277244548749},{"$f":"'C-Values and Rates'!BP100*INDEX('C-Diversion'!BP$88:BP$92, MATCH($D$94,'C-Diversion'!$D$88:$D$92,0))","v":-92.277933421122498},{"$f":"'C-Values and Rates'!BQ100*INDEX('C-Diversion'!BQ$88:BQ$92, MATCH($D$94,'C-Diversion'!$D$88:$D$92,0))","v":-93.096792096462096},{"$f":"'C-Values and Rates'!BR100*INDEX('C-Diversion'!BR$88:BR$92, MATCH($D$94,'C-Diversion'!$D$88:$D$92,0))","v":-93.922917184315693},{"$f":"'C-Values and Rates'!BS100*INDEX('C-Diversion'!BS$88:BS$92, MATCH($D$94,'C-Diversion'!$D$88:$D$92,0))","v":-94.756373165591228},{"$f":"'C-Values and Rates'!BT100*INDEX('C-Diversion'!BT$88:BT$92, MATCH($D$94,'C-Diversion'!$D$88:$D$92,0))","v":-95.597225093389156},{"$f":"'C-Values and Rates'!BU100*INDEX('C-Diversion'!BU$88:BU$92, MATCH($D$94,'C-Diversion'!$D$88:$D$92,0))","v":-96.445538598080091},{"$f":"'C-Values and Rates'!BV100*INDEX('C-Diversion'!BV$88:BV$92, MATCH($D$94,'C-Diversion'!$D$88:$D$92,0))","v":-97.301379892427519},{"$f":"'C-Values and Rates'!BW100*INDEX('C-Diversion'!BW$88:BW$92, MATCH($D$94,'C-Diversion'!$D$88:$D$92,0))","v":-98.164815776755489},{"$f":"'C-Values and Rates'!BX100*INDEX('C-Diversion'!BX$88:BX$92, MATCH($D$94,'C-Diversion'!$D$88:$D$92,0))","v":0},{"$f":"'C-Values and Rates'!BY100*INDEX('C-Diversion'!BY$88:BY$92, MATCH($D$94,'C-Diversion'!$D$88:$D$92,0))","v":0},{"$f":"'C-Values and Rates'!BZ100*INDEX('C-Diversion'!BZ$88:BZ$92, MATCH($D$94,'C-Diversion'!$D$88:$D$92,0))","v":0},{"$f":"'C-Values and Rates'!CA100*INDEX('C-Diversion'!CA$88:CA$92, MATCH($D$94,'C-Diversion'!$D$88:$D$92,0))","v":0},{"$f":"'C-Values and Rates'!CB100*INDEX('C-Diversion'!CB$88:CB$92, MATCH($D$94,'C-Diversion'!$D$88:$D$92,0))","v":0},{"$f":"'C-Values and Rates'!CC100*INDEX('C-Diversion'!CC$88:CC$92, MATCH($D$94,'C-Diversion'!$D$88:$D$92,0))","v":0},{"$f":"'C-Values and Rates'!CD100*INDEX('C-Diversion'!CD$88:CD$92, MATCH($D$94,'C-Diversion'!$D$88:$D$92,0))","v":0},{"$f":"'C-Values and Rates'!CE100*INDEX('C-Diversion'!CE$88:CE$92, MATCH($D$94,'C-Diversion'!$D$88:$D$92,0))","v":0}]
[]
[null,null,null,"HGV - Rigids"]
[null,null,null,"Congestion",null,null,null,{"$f":"SUM(K104:CE104)","v":61693.988513847471},null,"£, 2023 prices",{"$f":"'C-Values and Rates'!K103*INDEX('C-Diversion'!K$88:K$92, MATCH($D$103,'C-Diversion'!$D$88:$D$92,0))","v":0},{"$f":"'C-Values and Rates'!L103*INDEX('C-Diversion'!L$88:L$92, MATCH($D$103,'C-Diversion'!$D$88:$D$92,0))","v":0},{"$f":"'C-Values and Rates'!M103*INDEX('C-Diversion'!M$88:M$92, MATCH($D$103,'C-Diversion'!$D$88:$D$92,0))","v":0},{"$f":"'C-Values and Rates'!N103*INDEX('C-Diversion'!N$88:N$92, MATCH($D$103,'C-Diversion'!$D$88:$D$92,0))","v":0},{"$f":"'C-Values and Rates'!O103*INDEX('C-Diversion'!O$88:O$92, MATCH($D$103,'C-Diversion'!$D$88:$D$92,0))","v":0},{"$f":"'C-Values and Rates'!P103*INDEX('C-Diversion'!P$88:P$92, MATCH($D$103,'C-Diversion'!$D$88:$D$92,0))","v":798.51175550668802},{"$f":"'C-Values and Rates'!Q103*INDEX('C-Diversion'!Q$88:Q$92, MATCH($D$103,'C-Diversion'!$D$88:$D$92,0))","v":805.68386780275193},{"$f":"'C-Values and Rates'!R103*INDEX('C-Diversion'!R$88:R$92, MATCH($D$103,'C-Diversion'!$D$88:$D$92,0))","v":812.92039893101514},{"$f":"'C-Values and Rates'!S103*INDEX('C-Diversion'!S$88:S$92, MATCH($D$103,'C-Diversion'!$D$88:$D$92,0))","v":812.27645098788867},{"$f":"'C-Values and Rates'!T103*INDEX('C-Diversion'!T$88:T$92, MATCH($D$103,'C-Diversion'!$D$88:$D$92,0))","v":811.63301314261923},{"$f":"'C-Values and Rates'!U103*INDEX('C-Diversion'!U$88:U$92, MATCH($D$103,'C-Diversion'!$D$88:$D$92,0))","v":810.99008499113677},{"$f":"'C-Values and Rates'!V103*INDEX('C-Diversion'!V$88:V$92, MATCH($D$103,'C-Diversion'!$D$88:$D$92,0))","v":810.34766612969258},{"$f":"'C-Values and Rates'!W103*INDEX('C-Diversion'!W$88:W$92, MATCH($D$103,'C-Diversion'!$D$88:$D$92,0))","v":809.70575615485654},{"$f":"'C-Values and Rates'!X103*INDEX('C-Diversion'!X$88:X$92, MATCH($D$103,'C-Diversion'!$D$88:$D$92,0))","v":824.86032100126829},{"$f":"'C-Values and Rates'!Y103*INDEX('C-Diversion'!Y$88:Y$92, MATCH($D$103,'C-Diversion'!$D$88:$D$92,0))","v":840.29852077794772},{"$f":"'C-Values and Rates'!Z103*INDEX('C-Diversion'!Z$88:Z$92, MATCH($D$103,'C-Diversion'!$D$88:$D$92,0))","v":856.02566403545222},{"$f":"'C-Values and Rates'!AA103*INDEX('C-Diversion'!AA$88:AA$92, MATCH($D$103,'C-Diversion'!$D$88:$D$92,0))","v":872.04715867990535},{"$f":"'C-Values and Rates'!AB103*INDEX('C-Diversion'!AB$88:AB$92, MATCH($D$103,'C-Diversion'!$D$88:$D$92,0))","v":888.36851383255032},{"$f":"'C-Values and Rates'!AC103*INDEX('C-Diversion'!AC$88:AC$92, MATCH($D$103,'C-Diversion'!$D$88:$D$92,0))","v":894.65880300044125},{"$f":"'C-Values and Rates'!AD103*INDEX('C-Diversion'!AD$88:AD$92, MATCH($D$103,'C-Diversion'!$D$88:$D$92,0))","v":900.99363194793841},{"$f":"'C-Values and Rates'!AE103*INDEX('C-Diversion'!AE$88:AE$92, MATCH($D$103,'C-Diversion'!$D$88:$D$92,0))","v":907.37331604877397},{"$f":"'C-Values and Rates'!AF103*INDEX('C-Diversion'!AF$88:AF$92, MATCH($D$103,'C-Diversion'!$D$88:$D$92,0))","v":913.79817290975279},{"$f":"'C-Values and Rates'!AG103*INDEX('C-Diversion'!AG$88:AG$92, MATCH($D$103,'C-Diversion'!$D$88:$D$92,0))","v":920.26852238656477},{"$f":"'C-Values and Rates'!AH103*INDEX('C-Diversion'!AH$88:AH$92, MATCH($D$103,'C-Diversion'!$D$88:$D$92,0))","v":929.66744797477725},{"$f":"'C-Values and Rates'!AI103*INDEX('C-Diversion'!AI$88:AI$92, MATCH($D$103,'C-Diversion'!$D$88:$D$92,0))","v":939.16236706930215},{"$f":"'C-Values and Rates'!AJ103*INDEX('C-Diversion'!AJ$88:AJ$92, MATCH($D$103,'C-Diversion'!$D$88:$D$92,0))","v":948.75426007509805},{"$f":"'C-Values and Rates'!AK103*INDEX('C-Diversion'!AK$88:AK$92, MATCH($D$103,'C-Diversion'!$D$88:$D$92,0))","v":958.44411741023725},{"$f":"'C-Values and Rates'!AL103*INDEX('C-Diversion'!AL$88:AL$92, MATCH($D$103,'C-Diversion'!$D$88:$D$92,0))","v":968.23293960817296},{"$f":"'C-Values and Rates'!AM103*INDEX('C-Diversion'!AM$88:AM$92, MATCH($D$103,'C-Diversion'!$D$88:$D$92,0))","v":984.38104357986617},{"$f":"'C-Values and Rates'!AN103*INDEX('C-Diversion'!AN$88:AN$92, MATCH($D$103,'C-Diversion'!$D$88:$D$92,0))","v":1000.7984642120588},{"$f":"'C-Values and Rates'!AO103*INDEX('C-Diversion'!AO$88:AO$92, MATCH($D$103,'C-Diversion'!$D$88:$D$92,0))","v":1017.4896931443729},{"$f":"'C-Values and Rates'!AP103*INDEX('C-Diversion'!AP$88:AP$92, MATCH($D$103,'C-Diversion'!$D$88:$D$92,0))","v":1034.4592969276016},{"$f":"'C-Values and Rates'!AQ103*INDEX('C-Diversion'!AQ$88:AQ$92, MATCH($D$103,'C-Diversion'!$D$88:$D$92,0))","v":1051.7119182730721},{"$f":"'C-Values and Rates'!AR103*INDEX('C-Diversion'!AR$88:AR$92, MATCH($D$103,'C-Diversion'!$D$88:$D$92,0))","v":1068.622200882937},{"$f":"'C-Values and Rates'!AS103*INDEX('C-Diversion'!AS$88:AS$92, MATCH($D$103,'C-Diversion'!$D$88:$D$92,0))","v":1085.8043808184643},{"$f":"'C-Values and Rates'!AT103*INDEX('C-Diversion'!AT$88:AT$92, MATCH($D$103,'C-Diversion'!$D$88:$D$92,0))","v":1103.2628298667735},{"$f":"'C-Values and Rates'!AU103*INDEX('C-Diversion'!AU$88:AU$92, MATCH($D$103,'C-Diversion'!$D$88:$D$92,0))","v":1121.001990108145},{"$f":"'C-Values and Rates'!AV103*INDEX('C-Diversion'!AV$88:AV$92, MATCH($D$103,'C-Diversion'!$D$88:$D$92,0))","v":1139.0263750462532},{"$f":"'C-Values and Rates'!AW103*INDEX('C-Diversion'!AW$88:AW$92, MATCH($D$103,'C-Diversion'!$D$88:$D$92,0))","v":1139.8118597851237},{"$f":"'C-Values and Rates'!AX103*INDEX('C-Diversion'!AX$88:AX$92, MATCH($D$103,'C-Diversion'!$D$88:$D$92,0))","v":1140.5978862026493},{"$f":"'C-Values and Rates'!AY103*INDEX('C-Diversion'!AY$88:AY$92, MATCH($D$103,'C-Diversion'!$D$88:$D$92,0))","v":1141.3844546723781},{"$f":"'C-Values and Rates'!AZ103*INDEX('C-Diversion'!AZ$88:AZ$92, MATCH($D$103,'C-Diversion'!$D$88:$D$92,0))","v":1142.1715655681139},{"$f":"'C-Values and Rates'!BA103*INDEX('C-Diversion'!BA$88:BA$92, MATCH($D$103,'C-Diversion'!$D$88:$D$92,0))","v":1142.95921926392},{"$f":"'C-Values and Rates'!BB103*INDEX('C-Diversion'!BB$88:BB$92, MATCH($D$103,'C-Diversion'!$D$88:$D$92,0))","v":1143.7474161341172},{"$f":"'C-Values and Rates'!BC103*INDEX('C-Diversion'!BC$88:BC$92, MATCH($D$103,'C-Diversion'!$D$88:$D$92,0))","v":1144.5361565532846},{"$f":"'C-Values and Rates'!BD103*INDEX('C-Diversion'!BD$88:BD$92, MATCH($D$103,'C-Diversion'!$D$88:$D$92,0))","v":1145.3254408962587},{"$f":"'C-Values and Rates'!BE103*INDEX('C-Diversion'!BE$88:BE$92, MATCH($D$103,'C-Diversion'!$D$88:$D$92,0))","v":1146.1152695381356},{"$f":"'C-Values and Rates'!BF103*INDEX('C-Diversion'!BF$88:BF$92, MATCH($D$103,'C-Diversion'!$D$88:$D$92,0))","v":1146.9056428542697},{"$f":"'C-Values and Rates'!BG103*INDEX('C-Diversion'!BG$88:BG$92, MATCH($D$103,'C-Diversion'!$D$88:$D$92,0))","v":1147.6965612202739},{"$f":"'C-Values and Rates'!BH103*INDEX('C-Diversion'!BH$88:BH$92, MATCH($D$103,'C-Diversion'!$D$88:$D$92,0))","v":1148.4880250120204},{"$f":"'C-Values and Rates'!BI103*INDEX('C-Diversion'!BI$88:BI$92, MATCH($D$103,'C-Diversion'!$D$88:$D$92,0))","v":1149.2800346056406},{"$f":"'C-Values and Rates'!BJ103*INDEX('C-Diversion'!BJ$88:BJ$92, MATCH($D$103,'C-Diversion'!$D$88:$D$92,0))","v":1150.0725903775253},{"$f":"'C-Values and Rates'!BK103*INDEX('C-Diversion'!BK$88:BK$92, MATCH($D$103,'C-Diversion'!$D$88:$D$92,0))","v":1150.8656927043251},{"$f":"'C-Values and Rates'!BL103*INDEX('C-Diversion'!BL$88:BL$92, MATCH($D$103,'C-Diversion'!$D$88:$D$92,0))","v":1151.6593419629498},{"$f":"'C-Values and Rates'!BM103*INDEX('C-Diversion'!BM$88:BM$92, MATCH($D$103,'C-Diversion'!$D$88:$D$92,0))","v":1152.4535385305699},{"$f":"'C-Values and Rates'!BN103*INDEX('C-Diversion'!BN$88:BN$92, MATCH($D$103,'C-Diversion'!$D$88:$D$92,0))","v":1153.248282784615},{"$f":"'C-Values and Rates'!BO103*INDEX('C-Diversion'!BO$88:BO$92, MATCH($D$103,'C-Diversion'!$D$88:$D$92,0))","v":1154.0435751027755},{"$f":"'C-Values and Rates'!BP103*INDEX('C-Diversion'!BP$88:BP$92, MATCH($D$103,'C-Diversion'!$D$88:$D$92,0))","v":1154.8394158630028},{"$f":"'C-Values and Rates'!BQ103*INDEX('C-Diversion'!BQ$88:BQ$92, MATCH($D$103,'C-Diversion'!$D$88:$D$92,0))","v":1155.6358054435079},{"$f":"'C-Values and Rates'!BR103*INDEX('C-Diversion'!BR$88:BR$92, MATCH($D$103,'C-Diversion'!$D$88:$D$92,0))","v":1156.4327442227632},{"$f":"'C-Values and Rates'!BS103*INDEX('C-Diversion'!BS$88:BS$92, MATCH($D$103,'C-Diversion'!$D$88:$D$92,0))","v":1157.2302325795024},{"$f":"'C-Values and Rates'!BT103*INDEX('C-Diversion'!BT$88:BT$92, MATCH($D$103,'C-Diversion'!$D$88:$D$92,0))","v":1158.0282708927195},{"$f":"'C-Values and Rates'!BU103*INDEX('C-Diversion'!BU$88:BU$92, MATCH($D$103,'C-Diversion'!$D$88:$D$92,0))","v":1158.8268595416712},{"$f":"'C-Values and Rates'!BV103*INDEX('C-Diversion'!BV$88:BV$92, MATCH($D$103,'C-Diversion'!$D$88:$D$92,0))","v":1159.6259989058738},{"$f":"'C-Values and Rates'!BW103*INDEX('C-Diversion'!BW$88:BW$92, MATCH($D$103,'C-Diversion'!$D$88:$D$92,0))","v":1160.4256893651068},{"$f":"'C-Values and Rates'!BX103*INDEX('C-Diversion'!BX$88:BX$92, MATCH($D$103,'C-Diversion'!$D$88:$D$92,0))","v":0},{"$f":"'C-Values and Rates'!BY103*INDEX('C-Diversion'!BY$88:BY$92, MATCH($D$103,'C-Diversion'!$D$88:$D$92,0))","v":0},{"$f":"'C-Values and Rates'!BZ103*INDEX('C-Diversion'!BZ$88:BZ$92, MATCH($D$103,'C-Diversion'!$D$88:$D$92,0))","v":0},{"$f":"'C-Values and Rates'!CA103*INDEX('C-Diversion'!CA$88:CA$92, MATCH($D$103,'C-Diversion'!$D$88:$D$92,0))","v":0},{"$f":"'C-Values and Rates'!CB103*INDEX('C-Diversion'!CB$88:CB$92, MATCH($D$103,'C-Diversion'!$D$88:$D$92,0))","v":0},{"$f":"'C-Values and Rates'!CC103*INDEX('C-Diversion'!CC$88:CC$92, MATCH($D$103,'C-Diversion'!$D$88:$D$92,0))","v":0},{"$f":"'C-Values and Rates'!CD103*INDEX('C-Diversion'!CD$88:CD$92, MATCH($D$103,'C-Diversion'!$D$88:$D$92,0))","v":0},{"$f":"'C-Values and Rates'!CE103*INDEX('C-Diversion'!CE$88:CE$92, MATCH($D$103,'C-Diversion'!$D$88:$D$92,0))","v":0}]
[null,null,null,"Infrastructure",null,null,null,{"$f":"SUM(K105:CE105)","v":1810.0875964561017},null,"£, 2023 prices",{"$f":"'C-Values and Rates'!K104*INDEX('C-Diversion'!K$88:K$92, MATCH($D$103,'C-Diversion'!$D$88:$D$92,0))","v":0},{"$f":"'C-Values and Rates'!L104*INDEX('C-Diversion'!L$88:L$92, MATCH($D$103,'C-Diversion'!$D$88:$D$92,0))","v":0},{"$f":"'C-Values and Rates'!M104*INDEX('C-Diversion'!M$88:M$92, MATCH($D$103,'C-Diversion'!$D$88:$D$92,0))","v":0},{"$f":"'C-Values and Rates'!N104*INDEX('C-Diversion'!N$88:N$92, MATCH($D$103,'C-Diversion'!$D$88:$D$92,0))","v":0},{"$f":"'C-Values and Rates'!O104*INDEX('C-Diversion'!O$88:O$92, MATCH($D$103,'C-Diversion'!$D$88:$D$92,0))","v":0},{"$f":"'C-Values and Rates'!P104*INDEX('C-Diversion'!P$88:P$92, MATCH($D$103,'C-Diversion'!$D$88:$D$92,0))","v":20.696094513089548},{"$f":"'C-Values and Rates'!Q104*INDEX('C-Diversion'!Q$88:Q$92, MATCH($D$103,'C-Diversion'!$D$88:$D$92,0))","v":21.015012456218599},{"$f":"'C-Values and Rates'!R104*INDEX('C-Diversion'!R$88:R$92, MATCH($D$103,'C-Diversion'!$D$88:$D$92,0))","v":21.338844788117239},{"$f":"'C-Values and Rates'!S104*INDEX('C-Diversion'!S$88:S$92, MATCH($D$103,'C-Diversion'!$D$88:$D$92,0))","v":21.674987129566567},{"$f":"'C-Values and Rates'!T104*INDEX('C-Diversion'!T$88:T$92, MATCH($D$103,'C-Diversion'!$D$88:$D$92,0))","v":22.016424587730839},{"$f":"'C-Values and Rates'!U104*INDEX('C-Diversion'!U$88:U$92, MATCH($D$103,'C-Diversion'!$D$88:$D$92,0))","v":22.363240574479264},{"$f":"'C-Values and Rates'!V104*INDEX('C-Diversion'!V$88:V$92, MATCH($D$103,'C-Diversion'!$D$88:$D$92,0))","v":22.715519815635098},{"$f":"'C-Values and Rates'!W104*INDEX('C-Diversion'!W$88:W$92, MATCH($D$103,'C-Diversion'!$D$88:$D$92,0))","v":23.07334837167382},{"$f":"'C-Values and Rates'!X104*INDEX('C-Diversion'!X$88:X$92, MATCH($D$103,'C-Diversion'!$D$88:$D$92,0))","v":23.477771314070452},{"$f":"'C-Values and Rates'!Y104*INDEX('C-Diversion'!Y$88:Y$92, MATCH($D$103,'C-Diversion'!$D$88:$D$92,0))","v":23.889282864227969},{"$f":"'C-Values and Rates'!Z104*INDEX('C-Diversion'!Z$88:Z$92, MATCH($D$103,'C-Diversion'!$D$88:$D$92,0))","v":24.308007269202399},{"$f":"'C-Values and Rates'!AA104*INDEX('C-Diversion'!AA$88:AA$92, MATCH($D$103,'C-Diversion'!$D$88:$D$92,0))","v":24.734070953816051},{"$f":"'C-Values and Rates'!AB104*INDEX('C-Diversion'!AB$88:AB$92, MATCH($D$103,'C-Diversion'!$D$88:$D$92,0))","v":25.16760255882879},{"$f":"'C-Values and Rates'!AC104*INDEX('C-Diversion'!AC$88:AC$92, MATCH($D$103,'C-Diversion'!$D$88:$D$92,0))","v":25.565095830610147},{"$f":"'C-Values and Rates'!AD104*INDEX('C-Diversion'!AD$88:AD$92, MATCH($D$103,'C-Diversion'!$D$88:$D$92,0))","v":25.968867050429758},{"$f":"'C-Values and Rates'!AE104*INDEX('C-Diversion'!AE$88:AE$92, MATCH($D$103,'C-Diversion'!$D$88:$D$92,0))","v":26.379015371240278},{"$f":"'C-Values and Rates'!AF104*INDEX('C-Diversion'!AF$88:AF$92, MATCH($D$103,'C-Diversion'!$D$88:$D$92,0))","v":26.795641512001023},{"$f":"'C-Values and Rates'!AG104*INDEX('C-Diversion'!AG$88:AG$92, MATCH($D$103,'C-Diversion'!$D$88:$D$92,0))","v":27.218847782411128},{"$f":"'C-Values and Rates'!AH104*INDEX('C-Diversion'!AH$88:AH$92, MATCH($D$103,'C-Diversion'!$D$88:$D$92,0))","v":27.629860631337603},{"$f":"'C-Values and Rates'!AI104*INDEX('C-Diversion'!AI$88:AI$92, MATCH($D$103,'C-Diversion'!$D$88:$D$92,0))","v":28.047079898821288},{"$f":"'C-Values and Rates'!AJ104*INDEX('C-Diversion'!AJ$88:AJ$92, MATCH($D$103,'C-Diversion'!$D$88:$D$92,0))","v":28.470599303662972},{"$f":"'C-Values and Rates'!AK104*INDEX('C-Diversion'!AK$88:AK$92, MATCH($D$103,'C-Diversion'!$D$88:$D$92,0))","v":28.900513979845705},{"$f":"'C-Values and Rates'!AL104*INDEX('C-Diversion'!AL$88:AL$92, MATCH($D$103,'C-Diversion'!$D$88:$D$92,0))","v":29.336920497904561},{"$f":"'C-Values and Rates'!AM104*INDEX('C-Diversion'!AM$88:AM$92, MATCH($D$103,'C-Diversion'!$D$88:$D$92,0))","v":29.757119602162209},{"$f":"'C-Values and Rates'!AN104*INDEX('C-Diversion'!AN$88:AN$92, MATCH($D$103,'C-Diversion'!$D$88:$D$92,0))","v":30.183337309743653},{"$f":"'C-Values and Rates'!AO104*INDEX('C-Diversion'!AO$88:AO$92, MATCH($D$103,'C-Diversion'!$D$88:$D$92,0))","v":30.615659826415669},{"$f":"'C-Values and Rates'!AP104*INDEX('C-Diversion'!AP$88:AP$92, MATCH($D$103,'C-Diversion'!$D$88:$D$92,0))","v":31.054174592688948},{"$f":"'C-Values and Rates'!AQ104*INDEX('C-Diversion'!AQ$88:AQ$92, MATCH($D$103,'C-Diversion'!$D$88:$D$92,0))","v":31.498970301503739},{"$f":"'C-Values and Rates'!AR104*INDEX('C-Diversion'!AR$88:AR$92, MATCH($D$103,'C-Diversion'!$D$88:$D$92,0))","v":31.948786260846639},{"$f":"'C-Values and Rates'!AS104*INDEX('C-Diversion'!AS$88:AS$92, MATCH($D$103,'C-Diversion'!$D$88:$D$92,0))","v":32.405025744366455},{"$f":"'C-Values and Rates'!AT104*INDEX('C-Diversion'!AT$88:AT$92, MATCH($D$103,'C-Diversion'!$D$88:$D$92,0))","v":32.867780482163013},{"$f":"'C-Values and Rates'!AU104*INDEX('C-Diversion'!AU$88:AU$92, MATCH($D$103,'C-Diversion'!$D$88:$D$92,0))","v":33.337143514272995},{"$f":"'C-Values and Rates'!AV104*INDEX('C-Diversion'!AV$88:AV$92, MATCH($D$103,'C-Diversion'!$D$88:$D$92,0))","v":33.813209209376339},{"$f":"'C-Values and Rates'!AW104*INDEX('C-Diversion'!AW$88:AW$92, MATCH($D$103,'C-Diversion'!$D$88:$D$92,0))","v":33.83652715915175},{"$f":"'C-Values and Rates'!AX104*INDEX('C-Diversion'!AX$88:AX$92, MATCH($D$103,'C-Diversion'!$D$88:$D$92,0))","v":33.859861189234081},{"$f":"'C-Values and Rates'!AY104*INDEX('C-Diversion'!AY$88:AY$92, MATCH($D$103,'C-Diversion'!$D$88:$D$92,0))","v":33.883211310712483},{"$f":"'C-Values and Rates'!AZ104*INDEX('C-Diversion'!AZ$88:AZ$92, MATCH($D$103,'C-Diversion'!$D$88:$D$92,0))","v":33.906577534683734},{"$f":"'C-Values and Rates'!BA104*INDEX('C-Diversion'!BA$88:BA$92, MATCH($D$103,'C-Diversion'!$D$88:$D$92,0))","v":33.929959872252297},{"$f":"'C-Values and Rates'!BB104*INDEX('C-Diversion'!BB$88:BB$92, MATCH($D$103,'C-Diversion'!$D$88:$D$92,0))","v":33.953358334530293},{"$f":"'C-Values and Rates'!BC104*INDEX('C-Diversion'!BC$88:BC$92, MATCH($D$103,'C-Diversion'!$D$88:$D$92,0))","v":33.976772932637481},{"$f":"'C-Values and Rates'!BD104*INDEX('C-Diversion'!BD$88:BD$92, MATCH($D$103,'C-Diversion'!$D$88:$D$92,0))","v":34.000203677701293},{"$f":"'C-Values and Rates'!BE104*INDEX('C-Diversion'!BE$88:BE$92, MATCH($D$103,'C-Diversion'!$D$88:$D$92,0))","v":34.023650580856852},{"$f":"'C-Values and Rates'!BF104*INDEX('C-Diversion'!BF$88:BF$92, MATCH($D$103,'C-Diversion'!$D$88:$D$92,0))","v":34.04711365324696},{"$f":"'C-Values and Rates'!BG104*INDEX('C-Diversion'!BG$88:BG$92, MATCH($D$103,'C-Diversion'!$D$88:$D$92,0))","v":34.070592906022085},{"$f":"'C-Values and Rates'!BH104*INDEX('C-Diversion'!BH$88:BH$92, MATCH($D$103,'C-Diversion'!$D$88:$D$92,0))","v":34.094088350340378},{"$f":"'C-Values and Rates'!BI104*INDEX('C-Diversion'!BI$88:BI$92, MATCH($D$103,'C-Diversion'!$D$88:$D$92,0))","v":34.117599997367712},{"$f":"'C-Values and Rates'!BJ104*INDEX('C-Diversion'!BJ$88:BJ$92, MATCH($D$103,'C-Diversion'!$D$88:$D$92,0))","v":34.141127858277649},{"$f":"'C-Values and Rates'!BK104*INDEX('C-Diversion'!BK$88:BK$92, MATCH($D$103,'C-Diversion'!$D$88:$D$92,0))","v":34.164671944251459},{"$f":"'C-Values and Rates'!BL104*INDEX('C-Diversion'!BL$88:BL$92, MATCH($D$103,'C-Diversion'!$D$88:$D$92,0))","v":34.18823226647811},{"$f":"'C-Values and Rates'!BM104*INDEX('C-Diversion'!BM$88:BM$92, MATCH($D$103,'C-Diversion'!$D$88:$D$92,0))","v":34.211808836154304},{"$f":"'C-Values and Rates'!BN104*INDEX('C-Diversion'!BN$88:BN$92, MATCH($D$103,'C-Diversion'!$D$88:$D$92,0))","v":34.235401664484456},{"$f":"'C-Values and Rates'!BO104*INDEX('C-Diversion'!BO$88:BO$92, MATCH($D$103,'C-Diversion'!$D$88:$D$92,0))","v":34.259010762680695},{"$f":"'C-Values and Rates'!BP104*INDEX('C-Diversion'!BP$88:BP$92, MATCH($D$103,'C-Diversion'!$D$88:$D$92,0))","v":34.282636141962911},{"$f":"'C-Values and Rates'!BQ104*INDEX('C-Diversion'!BQ$88:BQ$92, MATCH($D$103,'C-Diversion'!$D$88:$D$92,0))","v":34.306277813558701},{"$f":"'C-Values and Rates'!BR104*INDEX('C-Diversion'!BR$88:BR$92, MATCH($D$103,'C-Diversion'!$D$88:$D$92,0))","v":34.329935788703416},{"$f":"'C-Values and Rates'!BS104*INDEX('C-Diversion'!BS$88:BS$92, MATCH($D$103,'C-Diversion'!$D$88:$D$92,0))","v":34.35361007864018},{"$f":"'C-Values and Rates'!BT104*INDEX('C-Diversion'!BT$88:BT$92, MATCH($D$103,'C-Diversion'!$D$88:$D$92,0))","v":34.377300694619827},{"$f":"'C-Values and Rates'!BU104*INDEX('C-Diversion'!BU$88:BU$92, MATCH($D$103,'C-Diversion'!$D$88:$D$92,0))","v":34.40100764790099},{"$f":"'C-Values and Rates'!BV104*INDEX('C-Diversion'!BV$88:BV$92, MATCH($D$103,'C-Diversion'!$D$88:$D$92,0))","v":34.424730949750021},{"$f":"'C-Values and Rates'!BW104*INDEX('C-Diversion'!BW$88:BW$92, MATCH($D$103,'C-Diversion'!$D$88:$D$92,0))","v":34.448470611441074},{"$f":"'C-Values and Rates'!BX104*INDEX('C-Diversion'!BX$88:BX$92, MATCH($D$103,'C-Diversion'!$D$88:$D$92,0))","v":0},{"$f":"'C-Values and Rates'!BY104*INDEX('C-Diversion'!BY$88:BY$92, MATCH($D$103,'C-Diversion'!$D$88:$D$92,0))","v":0},{"$f":"'C-Values and Rates'!BZ104*INDEX('C-Diversion'!BZ$88:BZ$92, MATCH($D$103,'C-Diversion'!$D$88:$D$92,0))","v":0},{"$f":"'C-Values and Rates'!CA104*INDEX('C-Diversion'!CA$88:CA$92, MATCH($D$103,'C-Diversion'!$D$88:$D$92,0))","v":0},{"$f":"'C-Values and Rates'!CB104*INDEX('C-Diversion'!CB$88:CB$92, MATCH($D$103,'C-Diversion'!$D$88:$D$92,0))","v":0},{"$f":"'C-Values and Rates'!CC104*INDEX('C-Diversion'!CC$88:CC$92, MATCH($D$103,'C-Diversion'!$D$88:$D$92,0))","v":0},{"$f":"'C-Values and Rates'!CD104*INDEX('C-Diversion'!CD$88:CD$92, MATCH($D$103,'C-Diversion'!$D$88:$D$92,0))","v":0},{"$f":"'C-Values and Rates'!CE104*INDEX('C-Diversion'!CE$88:CE$92, MATCH($D$103,'C-Diversion'!$D$88:$D$92,0))","v":0}]
[null,null,null,"Accident",null,null,null,1996.7296850331456,null,"£, 2023 prices",{"$f":"'C-Values and Rates'!K105*INDEX('C-Diversion'!K$88:K$92, MATCH($D$103,'C-Diversion'!$D$88:$D$92,0))","v":0},{"$f":"'C-Values and Rates'!L105*INDEX('C-Diversion'!L$88:L$92, MATCH($D$103,'C-Diversion'!$D$88:$D$92,0))","v":0},{"$f":"'C-Values and Rates'!M105*INDEX('C-Diversion'!M$88:M$92, MATCH($D$103,'C-Diversion'!$D$88:$D$92,0))","v":0},{"$f":"'C-Values and Rates'!N105*INDEX('C-Diversion'!N$88:N$92, MATCH($D$103,'C-Diversion'!$D$88:$D$92,0))","v":0},{"$f":"'C-Values and Rates'!O105*INDEX('C-Diversion'!O$88:O$92, MATCH($D$103,'C-Diversion'!$D$88:$D$92,0))","v":0},{"$f":"'C-Values and Rates'!P105*INDEX('C-Diversion'!P$88:P$92, MATCH($D$103,'C-Diversion'!$D$88:$D$92,0))","v":19.791087644373828},{"$f":"'C-Values and Rates'!Q105*INDEX('C-Diversion'!Q$88:Q$92, MATCH($D$103,'C-Diversion'!$D$88:$D$92,0))","v":20.211822720201269},{"$f":"'C-Values and Rates'!R105*INDEX('C-Diversion'!R$88:R$92, MATCH($D$103,'C-Diversion'!$D$88:$D$92,0))","v":20.641502125274886},{"$f":"'C-Values and Rates'!S105*INDEX('C-Diversion'!S$88:S$92, MATCH($D$103,'C-Diversion'!$D$88:$D$92,0))","v":21.066516179527166},{"$f":"'C-Values and Rates'!T105*INDEX('C-Diversion'!T$88:T$92, MATCH($D$103,'C-Diversion'!$D$88:$D$92,0))","v":21.500281386927874},{"$f":"'C-Values and Rates'!U105*INDEX('C-Diversion'!U$88:U$92, MATCH($D$103,'C-Diversion'!$D$88:$D$92,0))","v":21.942977936062917},{"$f":"'C-Values and Rates'!V105*INDEX('C-Diversion'!V$88:V$92, MATCH($D$103,'C-Diversion'!$D$88:$D$92,0))","v":22.394789725649442},{"$f":"'C-Values and Rates'!W105*INDEX('C-Diversion'!W$88:W$92, MATCH($D$103,'C-Diversion'!$D$88:$D$92,0))","v":22.85590444092837},{"$f":"'C-Values and Rates'!X105*INDEX('C-Diversion'!X$88:X$92, MATCH($D$103,'C-Diversion'!$D$88:$D$92,0))","v":23.356300258083213},{"$f":"'C-Values and Rates'!Y105*INDEX('C-Diversion'!Y$88:Y$92, MATCH($D$103,'C-Diversion'!$D$88:$D$92,0))","v":23.867651492665242},{"$f":"'C-Values and Rates'!Z105*INDEX('C-Diversion'!Z$88:Z$92, MATCH($D$103,'C-Diversion'!$D$88:$D$92,0))","v":24.390197997141012},{"$f":"'C-Values and Rates'!AA105*INDEX('C-Diversion'!AA$88:AA$92, MATCH($D$103,'C-Diversion'!$D$88:$D$92,0))","v":24.924184875187834},{"$f":"'C-Values and Rates'!AB105*INDEX('C-Diversion'!AB$88:AB$92, MATCH($D$103,'C-Diversion'!$D$88:$D$92,0))","v":25.46986259666118},{"$f":"'C-Values and Rates'!AC105*INDEX('C-Diversion'!AC$88:AC$92, MATCH($D$103,'C-Diversion'!$D$88:$D$92,0))","v":26.025656861991489},{"$f":"'C-Values and Rates'!AD105*INDEX('C-Diversion'!AD$88:AD$92, MATCH($D$103,'C-Diversion'!$D$88:$D$92,0))","v":26.593579471721046},{"$f":"'C-Values and Rates'!AE105*INDEX('C-Diversion'!AE$88:AE$92, MATCH($D$103,'C-Diversion'!$D$88:$D$92,0))","v":27.173895086259364},{"$f":"'C-Values and Rates'!AF105*INDEX('C-Diversion'!AF$88:AF$92, MATCH($D$103,'C-Diversion'!$D$88:$D$92,0))","v":27.766874141341113},{"$f":"'C-Values and Rates'!AG105*INDEX('C-Diversion'!AG$88:AG$92, MATCH($D$103,'C-Diversion'!$D$88:$D$92,0))","v":28.37279297405318},{"$f":"'C-Values and Rates'!AH105*INDEX('C-Diversion'!AH$88:AH$92, MATCH($D$103,'C-Diversion'!$D$88:$D$92,0))","v":28.996712257068797},{"$f":"'C-Values and Rates'!AI105*INDEX('C-Diversion'!AI$88:AI$92, MATCH($D$103,'C-Diversion'!$D$88:$D$92,0))","v":29.63435155954371},{"$f":"'C-Values and Rates'!AJ105*INDEX('C-Diversion'!AJ$88:AJ$92, MATCH($D$103,'C-Diversion'!$D$88:$D$92,0))","v":30.286012585462867},{"$f":"'C-Values and Rates'!AK105*INDEX('C-Diversion'!AK$88:AK$92, MATCH($D$103,'C-Diversion'!$D$88:$D$92,0))","v":30.95200367329846},{"$f":"'C-Values and Rates'!AL105*INDEX('C-Diversion'!AL$88:AL$92, MATCH($D$103,'C-Diversion'!$D$88:$D$92,0))","v":31.632639941902738},{"$f":"'C-Values and Rates'!AM105*INDEX('C-Diversion'!AM$88:AM$92, MATCH($D$103,'C-Diversion'!$D$88:$D$92,0))","v":32.305255300089961},{"$f":"'C-Values and Rates'!AN105*INDEX('C-Diversion'!AN$88:AN$92, MATCH($D$103,'C-Diversion'!$D$88:$D$92,0))","v":32.992172702649711},{"$f":"'C-Values and Rates'!AO105*INDEX('C-Diversion'!AO$88:AO$92, MATCH($D$103,'C-Diversion'!$D$88:$D$92,0))","v":33.693696258714731},{"$f":"'C-Values and Rates'!AP105*INDEX('C-Diversion'!AP$88:AP$92, MATCH($D$103,'C-Diversion'!$D$88:$D$92,0))","v":34.410136543791467},{"$f":"'C-Values and Rates'!AQ105*INDEX('C-Diversion'!AQ$88:AQ$92, MATCH($D$103,'C-Diversion'!$D$88:$D$92,0))","v":35.141810737256897},{"$f":"'C-Values and Rates'!AR105*INDEX('C-Diversion'!AR$88:AR$92, MATCH($D$103,'C-Diversion'!$D$88:$D$92,0))","v":35.869365802915247},{"$f":"'C-Values and Rates'!AS105*INDEX('C-Diversion'!AS$88:AS$92, MATCH($D$103,'C-Diversion'!$D$88:$D$92,0))","v":36.61198373421599},{"$f":"'C-Values and Rates'!AT105*INDEX('C-Diversion'!AT$88:AT$92, MATCH($D$103,'C-Diversion'!$D$88:$D$92,0))","v":37.369976383735043},{"$f":"'C-Values and Rates'!AU105*INDEX('C-Diversion'!AU$88:AU$92, MATCH($D$103,'C-Diversion'!$D$88:$D$92,0))","v":38.143662060457856},{"$f":"'C-Values and Rates'!AV105*INDEX('C-Diversion'!AV$88:AV$92, MATCH($D$103,'C-Diversion'!$D$88:$D$92,0))","v":38.933365663449067},{"$f":"'C-Values and Rates'!AW105*INDEX('C-Diversion'!AW$88:AW$92, MATCH($D$103,'C-Diversion'!$D$88:$D$92,0))","v":38.960214527734813},{"$f":"'C-Values and Rates'!AX105*INDEX('C-Diversion'!AX$88:AX$92, MATCH($D$103,'C-Diversion'!$D$88:$D$92,0))","v":38.987081907283788},{"$f":"'C-Values and Rates'!AY105*INDEX('C-Diversion'!AY$88:AY$92, MATCH($D$103,'C-Diversion'!$D$88:$D$92,0))","v":39.013967814864323},{"$f":"'C-Values and Rates'!AZ105*INDEX('C-Diversion'!AZ$88:AZ$92, MATCH($D$103,'C-Diversion'!$D$88:$D$92,0))","v":39.040872263253526},{"$f":"'C-Values and Rates'!BA105*INDEX('C-Diversion'!BA$88:BA$92, MATCH($D$103,'C-Diversion'!$D$88:$D$92,0))","v":39.067795265237336},{"$f":"'C-Values and Rates'!BB105*INDEX('C-Diversion'!BB$88:BB$92, MATCH($D$103,'C-Diversion'!$D$88:$D$92,0))","v":39.094736833610533},{"$f":"'C-Values and Rates'!BC105*INDEX('C-Diversion'!BC$88:BC$92, MATCH($D$103,'C-Diversion'!$D$88:$D$92,0))","v":39.121696981176676},{"$f":"'C-Values and Rates'!BD105*INDEX('C-Diversion'!BD$88:BD$92, MATCH($D$103,'C-Diversion'!$D$88:$D$92,0))","v":39.14867572074818},{"$f":"'C-Values and Rates'!BE105*INDEX('C-Diversion'!BE$88:BE$92, MATCH($D$103,'C-Diversion'!$D$88:$D$92,0))","v":39.175673065146292},{"$f":"'C-Values and Rates'!BF105*INDEX('C-Diversion'!BF$88:BF$92, MATCH($D$103,'C-Diversion'!$D$88:$D$92,0))","v":39.20268902720111},{"$f":"'C-Values and Rates'!BG105*INDEX('C-Diversion'!BG$88:BG$92, MATCH($D$103,'C-Diversion'!$D$88:$D$92,0))","v":39.229723619751553},{"$f":"'C-Values and Rates'!BH105*INDEX('C-Diversion'!BH$88:BH$92, MATCH($D$103,'C-Diversion'!$D$88:$D$92,0))","v":39.256776855645398},{"$f":"'C-Values and Rates'!BI105*INDEX('C-Diversion'!BI$88:BI$92, MATCH($D$103,'C-Diversion'!$D$88:$D$92,0))","v":39.283848747739313},{"$f":"'C-Values and Rates'!BJ105*INDEX('C-Diversion'!BJ$88:BJ$92, MATCH($D$103,'C-Diversion'!$D$88:$D$92,0))","v":39.31093930889881},{"$f":"'C-Values and Rates'!BK105*INDEX('C-Diversion'!BK$88:BK$92, MATCH($D$103,'C-Diversion'!$D$88:$D$92,0))","v":39.33804855199827},{"$f":"'C-Values and Rates'!BL105*INDEX('C-Diversion'!BL$88:BL$92, MATCH($D$103,'C-Diversion'!$D$88:$D$92,0))","v":39.365176489920962},{"$f":"'C-Values and Rates'!BM105*INDEX('C-Diversion'!BM$88:BM$92, MATCH($D$103,'C-Diversion'!$D$88:$D$92,0))","v":39.392323135559039},{"$f":"'C-Values and Rates'!BN105*INDEX('C-Diversion'!BN$88:BN$92, MATCH($D$103,'C-Diversion'!$D$88:$D$92,0))","v":39.419488501813539},{"$f":"'C-Values and Rates'!BO105*INDEX('C-Diversion'!BO$88:BO$92, MATCH($D$103,'C-Diversion'!$D$88:$D$92,0))","v":39.446672601594386},{"$f":"'C-Values and Rates'!BP105*INDEX('C-Diversion'!BP$88:BP$92, MATCH($D$103,'C-Diversion'!$D$88:$D$92,0))","v":39.473875447820447},{"$f":"'C-Values and Rates'!BQ105*INDEX('C-Diversion'!BQ$88:BQ$92, MATCH($D$103,'C-Diversion'!$D$88:$D$92,0))","v":39.501097053419443},{"$f":"'C-Values and Rates'!BR105*INDEX('C-Diversion'!BR$88:BR$92, MATCH($D$103,'C-Diversion'!$D$88:$D$92,0))","v":39.528337431328048},{"$f":"'C-Values and Rates'!BS105*INDEX('C-Diversion'!BS$88:BS$92, MATCH($D$103,'C-Diversion'!$D$88:$D$92,0))","v":39.555596594491853},{"$f":"'C-Values and Rates'!BT105*INDEX('C-Diversion'!BT$88:BT$92, MATCH($D$103,'C-Diversion'!$D$88:$D$92,0))","v":39.582874555865374},{"$f":"'C-Values and Rates'!BU105*INDEX('C-Diversion'!BU$88:BU$92, MATCH($D$103,'C-Diversion'!$D$88:$D$92,0))","v":39.610171328412058},{"$f":"'C-Values and Rates'!BV105*INDEX('C-Diversion'!BV$88:BV$92, MATCH($D$103,'C-Diversion'!$D$88:$D$92,0))","v":39.63748692510427},{"$f":"'C-Values and Rates'!BW105*INDEX('C-Diversion'!BW$88:BW$92, MATCH($D$103,'C-Diversion'!$D$88:$D$92,0))","v":39.664821358923355},{"$f":"'C-Values and Rates'!BX105*INDEX('C-Diversion'!BX$88:BX$92, MATCH($D$103,'C-Diversion'!$D$88:$D$92,0))","v":0},{"$f":"'C-Values and Rates'!BY105*INDEX('C-Diversion'!BY$88:BY$92, MATCH($D$103,'C-Diversion'!$D$88:$D$92,0))","v":0},{"$f":"'C-Values and Rates'!BZ105*INDEX('C-Diversion'!BZ$88:BZ$92, MATCH($D$103,'C-Diversion'!$D$88:$D$92,0))","v":0},{"$f":"'C-Values and Rates'!CA105*INDEX('C-Diversion'!CA$88:CA$92, MATCH($D$103,'C-Diversion'!$D$88:$D$92,0))","v":0},{"$f":"'C-Values and Rates'!CB105*INDEX('C-Diversion'!CB$88:CB$92, MATCH($D$103,'C-Diversion'!$D$88:$D$92,0))","v":0},{"$f":"'C-Values and Rates'!CC105*INDEX('C-Diversion'!CC$88:CC$92, MATCH($D$103,'C-Diversion'!$D$88:$D$92,0))","v":0},{"$f":"'C-Values and Rates'!CD105*INDEX('C-Diversion'!CD$88:CD$92, MATCH($D$103,'C-Diversion'!$D$88:$D$92,0))","v":0},{"$f":"'C-Values and Rates'!CE105*INDEX('C-Diversion'!CE$88:CE$92, MATCH($D$103,'C-Diversion'!$D$88:$D$92,0))","v":0}]
[null,null,null,"Local Air Quality",null,null,null,549.28742209571476,null,"£, 2023 prices",{"$f":"'C-Values and Rates'!K106*INDEX('C-Diversion'!K$88:K$92, MATCH($D$103,'C-Diversion'!$D$88:$D$92,0))","v":0},{"$f":"'C-Values and Rates'!L106*INDEX('C-Diversion'!L$88:L$92, MATCH($D$103,'C-Diversion'!$D$88:$D$92,0))","v":0},{"$f":"'C-Values and Rates'!M106*INDEX('C-Diversion'!M$88:M$92, MATCH($D$103,'C-Diversion'!$D$88:$D$92,0))","v":0},{"$f":"'C-Values and Rates'!N106*INDEX('C-Diversion'!N$88:N$92, MATCH($D$103,'C-Diversion'!$D$88:$D$92,0))","v":0},{"$f":"'C-Values and Rates'!O106*INDEX('C-Diversion'!O$88:O$92, MATCH($D$103,'C-Diversion'!$D$88:$D$92,0))","v":0},{"$f":"'C-Values and Rates'!P106*INDEX('C-Diversion'!P$88:P$92, MATCH($D$103,'C-Diversion'!$D$88:$D$92,0))","v":5.6422089628145669},{"$f":"'C-Values and Rates'!Q106*INDEX('C-Diversion'!Q$88:Q$92, MATCH($D$103,'C-Diversion'!$D$88:$D$92,0))","v":5.5794914929586534},{"$f":"'C-Values and Rates'!R106*INDEX('C-Diversion'!R$88:R$92, MATCH($D$103,'C-Diversion'!$D$88:$D$92,0))","v":5.5174711757695478},{"$f":"'C-Values and Rates'!S106*INDEX('C-Diversion'!S$88:S$92, MATCH($D$103,'C-Diversion'!$D$88:$D$92,0))","v":5.6215886371056749},{"$f":"'C-Values and Rates'!T106*INDEX('C-Diversion'!T$88:T$92, MATCH($D$103,'C-Diversion'!$D$88:$D$92,0))","v":5.7276708474019209},{"$f":"'C-Values and Rates'!U106*INDEX('C-Diversion'!U$88:U$92, MATCH($D$103,'C-Diversion'!$D$88:$D$92,0))","v":5.8357548824611971},{"$f":"'C-Values and Rates'!V106*INDEX('C-Diversion'!V$88:V$92, MATCH($D$103,'C-Diversion'!$D$88:$D$92,0))","v":5.9458785177255038},{"$f":"'C-Values and Rates'!W106*INDEX('C-Diversion'!W$88:W$92, MATCH($D$103,'C-Diversion'!$D$88:$D$92,0))","v":6.0580802414784589},{"$f":"'C-Values and Rates'!X106*INDEX('C-Diversion'!X$88:X$92, MATCH($D$103,'C-Diversion'!$D$88:$D$92,0))","v":6.2092594876529965},{"$f":"'C-Values and Rates'!Y106*INDEX('C-Diversion'!Y$88:Y$92, MATCH($D$103,'C-Diversion'!$D$88:$D$92,0))","v":6.3642114082661188},{"$f":"'C-Values and Rates'!Z106*INDEX('C-Diversion'!Z$88:Z$92, MATCH($D$103,'C-Diversion'!$D$88:$D$92,0))","v":6.5230301503173571},{"$f":"'C-Values and Rates'!AA106*INDEX('C-Diversion'!AA$88:AA$92, MATCH($D$103,'C-Diversion'!$D$88:$D$92,0))","v":6.6858122102423501},{"$f":"'C-Values and Rates'!AB106*INDEX('C-Diversion'!AB$88:AB$92, MATCH($D$103,'C-Diversion'!$D$88:$D$92,0))","v":6.8526564925429598},{"$f":"'C-Values and Rates'!AC106*INDEX('C-Diversion'!AC$88:AC$92, MATCH($D$103,'C-Diversion'!$D$88:$D$92,0))","v":7.017983384856703},{"$f":"'C-Values and Rates'!AD106*INDEX('C-Diversion'!AD$88:AD$92, MATCH($D$103,'C-Diversion'!$D$88:$D$92,0))","v":7.1872989465794337},{"$f":"'C-Values and Rates'!AE106*INDEX('C-Diversion'!AE$88:AE$92, MATCH($D$103,'C-Diversion'!$D$88:$D$92,0))","v":7.3606994081757291},{"$f":"'C-Values and Rates'!AF106*INDEX('C-Diversion'!AF$88:AF$92, MATCH($D$103,'C-Diversion'!$D$88:$D$92,0))","v":7.5382833217621661},{"$f":"'C-Values and Rates'!AG106*INDEX('C-Diversion'!AG$88:AG$92, MATCH($D$103,'C-Diversion'!$D$88:$D$92,0))","v":7.7201516171193969},{"$f":"'C-Values and Rates'!AH106*INDEX('C-Diversion'!AH$88:AH$92, MATCH($D$103,'C-Diversion'!$D$88:$D$92,0))","v":7.9015418263536796},{"$f":"'C-Values and Rates'!AI106*INDEX('C-Diversion'!AI$88:AI$92, MATCH($D$103,'C-Diversion'!$D$88:$D$92,0))","v":8.0871939218355156},{"$f":"'C-Values and Rates'!AJ106*INDEX('C-Diversion'!AJ$88:AJ$92, MATCH($D$103,'C-Diversion'!$D$88:$D$92,0))","v":8.2772080394788823},{"$f":"'C-Values and Rates'!AK106*INDEX('C-Diversion'!AK$88:AK$92, MATCH($D$103,'C-Diversion'!$D$88:$D$92,0))","v":8.4716866679591014},{"$f":"'C-Values and Rates'!AL106*INDEX('C-Diversion'!AL$88:AL$92, MATCH($D$103,'C-Diversion'!$D$88:$D$92,0))","v":8.6707347039925917},{"$f":"'C-Values and Rates'!AM106*INDEX('C-Diversion'!AM$88:AM$92, MATCH($D$103,'C-Diversion'!$D$88:$D$92,0))","v":8.8649451965363113},{"$f":"'C-Values and Rates'!AN106*INDEX('C-Diversion'!AN$88:AN$92, MATCH($D$103,'C-Diversion'!$D$88:$D$92,0))","v":9.0635056913234049},{"$f":"'C-Values and Rates'!AO106*INDEX('C-Diversion'!AO$88:AO$92, MATCH($D$103,'C-Diversion'!$D$88:$D$92,0))","v":9.2665136213981434},{"$f":"'C-Values and Rates'!AP106*INDEX('C-Diversion'!AP$88:AP$92, MATCH($D$103,'C-Diversion'!$D$88:$D$92,0))","v":9.4740686021480585},{"$f":"'C-Values and Rates'!AQ106*INDEX('C-Diversion'!AQ$88:AQ$92, MATCH($D$103,'C-Diversion'!$D$88:$D$92,0))","v":9.6862724801849378},{"$f":"'C-Values and Rates'!AR106*INDEX('C-Diversion'!AR$88:AR$92, MATCH($D$103,'C-Diversion'!$D$88:$D$92,0))","v":9.8993063061281674},{"$f":"'C-Values and Rates'!AS106*INDEX('C-Diversion'!AS$88:AS$92, MATCH($D$103,'C-Diversion'!$D$88:$D$92,0))","v":10.117025464957592},{"$f":"'C-Values and Rates'!AT106*INDEX('C-Diversion'!AT$88:AT$92, MATCH($D$103,'C-Diversion'!$D$88:$D$92,0))","v":10.33953300295779},{"$f":"'C-Values and Rates'!AU106*INDEX('C-Diversion'!AU$88:AU$92, MATCH($D$103,'C-Diversion'!$D$88:$D$92,0))","v":10.566934232748956},{"$f":"'C-Values and Rates'!AV106*INDEX('C-Diversion'!AV$88:AV$92, MATCH($D$103,'C-Diversion'!$D$88:$D$92,0))","v":10.799336783131276},{"$f":"'C-Values and Rates'!AW106*INDEX('C-Diversion'!AW$88:AW$92, MATCH($D$103,'C-Diversion'!$D$88:$D$92,0))","v":10.806784120979557},{"$f":"'C-Values and Rates'!AX106*INDEX('C-Diversion'!AX$88:AX$92, MATCH($D$103,'C-Diversion'!$D$88:$D$92,0))","v":10.814236594591463},{"$f":"'C-Values and Rates'!AY106*INDEX('C-Diversion'!AY$88:AY$92, MATCH($D$103,'C-Diversion'!$D$88:$D$92,0))","v":10.821694207508678},{"$f":"'C-Values and Rates'!AZ106*INDEX('C-Diversion'!AZ$88:AZ$92, MATCH($D$103,'C-Diversion'!$D$88:$D$92,0))","v":10.829156963275311},{"$f":"'C-Values and Rates'!BA106*INDEX('C-Diversion'!BA$88:BA$92, MATCH($D$103,'C-Diversion'!$D$88:$D$92,0))","v":10.83662486543793},{"$f":"'C-Values and Rates'!BB106*INDEX('C-Diversion'!BB$88:BB$92, MATCH($D$103,'C-Diversion'!$D$88:$D$92,0))","v":10.844097917545547},{"$f":"'C-Values and Rates'!BC106*INDEX('C-Diversion'!BC$88:BC$92, MATCH($D$103,'C-Diversion'!$D$88:$D$92,0))","v":10.851576123149616},{"$f":"'C-Values and Rates'!BD106*INDEX('C-Diversion'!BD$88:BD$92, MATCH($D$103,'C-Diversion'!$D$88:$D$92,0))","v":10.859059485804046},{"$f":"'C-Values and Rates'!BE106*INDEX('C-Diversion'!BE$88:BE$92, MATCH($D$103,'C-Diversion'!$D$88:$D$92,0))","v":10.866548009065191},{"$f":"'C-Values and Rates'!BF106*INDEX('C-Diversion'!BF$88:BF$92, MATCH($D$103,'C-Diversion'!$D$88:$D$92,0))","v":10.874041696491863},{"$f":"'C-Values and Rates'!BG106*INDEX('C-Diversion'!BG$88:BG$92, MATCH($D$103,'C-Diversion'!$D$88:$D$92,0))","v":10.881540551645324},{"$f":"'C-Values and Rates'!BH106*INDEX('C-Diversion'!BH$88:BH$92, MATCH($D$103,'C-Diversion'!$D$88:$D$92,0))","v":10.889044578089292},{"$f":"'C-Values and Rates'!BI106*INDEX('C-Diversion'!BI$88:BI$92, MATCH($D$103,'C-Diversion'!$D$88:$D$92,0))","v":10.896553779389945},{"$f":"'C-Values and Rates'!BJ106*INDEX('C-Diversion'!BJ$88:BJ$92, MATCH($D$103,'C-Diversion'!$D$88:$D$92,0))","v":10.904068159115921},{"$f":"'C-Values and Rates'!BK106*INDEX('C-Diversion'!BK$88:BK$92, MATCH($D$103,'C-Diversion'!$D$88:$D$92,0))","v":10.911587720838316},{"$f":"'C-Values and Rates'!BL106*INDEX('C-Diversion'!BL$88:BL$92, MATCH($D$103,'C-Diversion'!$D$88:$D$92,0))","v":10.919112468130688},{"$f":"'C-Values and Rates'!BM106*INDEX('C-Diversion'!BM$88:BM$92, MATCH($D$103,'C-Diversion'!$D$88:$D$92,0))","v":10.926642404569067},{"$f":"'C-Values and Rates'!BN106*INDEX('C-Diversion'!BN$88:BN$92, MATCH($D$103,'C-Diversion'!$D$88:$D$92,0))","v":10.93417753373194},{"$f":"'C-Values and Rates'!BO106*INDEX('C-Diversion'!BO$88:BO$92, MATCH($D$103,'C-Diversion'!$D$88:$D$92,0))","v":10.941717859200264},{"$f":"'C-Values and Rates'!BP106*INDEX('C-Diversion'!BP$88:BP$92, MATCH($D$103,'C-Diversion'!$D$88:$D$92,0))","v":10.949263384557469},{"$f":"'C-Values and Rates'!BQ106*INDEX('C-Diversion'!BQ$88:BQ$92, MATCH($D$103,'C-Diversion'!$D$88:$D$92,0))","v":10.956814113389452},{"$f":"'C-Values and Rates'!BR106*INDEX('C-Diversion'!BR$88:BR$92, MATCH($D$103,'C-Diversion'!$D$88:$D$92,0))","v":10.964370049284584},{"$f":"'C-Values and Rates'!BS106*INDEX('C-Diversion'!BS$88:BS$92, MATCH($D$103,'C-Diversion'!$D$88:$D$92,0))","v":10.971931195833717},{"$f":"'C-Values and Rates'!BT106*INDEX('C-Diversion'!BT$88:BT$92, MATCH($D$103,'C-Diversion'!$D$88:$D$92,0))","v":10.97949755663017},{"$f":"'C-Values and Rates'!BU106*INDEX('C-Diversion'!BU$88:BU$92, MATCH($D$103,'C-Diversion'!$D$88:$D$92,0))","v":10.987069135269746},{"$f":"'C-Values and Rates'!BV106*INDEX('C-Diversion'!BV$88:BV$92, MATCH($D$103,'C-Diversion'!$D$88:$D$92,0))","v":10.99464593535072},{"$f":"'C-Values and Rates'!BW106*INDEX('C-Diversion'!BW$88:BW$92, MATCH($D$103,'C-Diversion'!$D$88:$D$92,0))","v":11.002227960473855},{"$f":"'C-Values and Rates'!BX106*INDEX('C-Diversion'!BX$88:BX$92, MATCH($D$103,'C-Diversion'!$D$88:$D$92,0))","v":0},{"$f":"'C-Values and Rates'!BY106*INDEX('C-Diversion'!BY$88:BY$92, MATCH($D$103,'C-Diversion'!$D$88:$D$92,0))","v":0},{"$f":"'C-Values and Rates'!BZ106*INDEX('C-Diversion'!BZ$88:BZ$92, MATCH($D$103,'C-Diversion'!$D$88:$D$92,0))","v":0},{"$f":"'C-Values and Rates'!CA106*INDEX('C-Diversion'!CA$88:CA$92, MATCH($D$103,'C-Diversion'!$D$88:$D$92,0))","v":0},{"$f":"'C-Values and Rates'!CB106*INDEX('C-Diversion'!CB$88:CB$92, MATCH($D$103,'C-Diversion'!$D$88:$D$92,0))","v":0},{"$f":"'C-Values and Rates'!CC106*INDEX('C-Diversion'!CC$88:CC$92, MATCH($D$103,'C-Diversion'!$D$88:$D$92,0))","v":0},{"$f":"'C-Values and Rates'!CD106*INDEX('C-Diversion'!CD$88:CD$92, MATCH($D$103,'C-Diversion'!$D$88:$D$92,0))","v":0},{"$f":"'C-Values and Rates'!CE106*INDEX('C-Diversion'!CE$88:CE$92, MATCH($D$103,'C-Diversion'!$D$88:$D$92,0))","v":0}]
[null,null,null,"Noise",null,null,null,3119.8901328642892,null,"£, 2023 prices",{"$f":"'C-Values and Rates'!K107*INDEX('C-Diversion'!K$88:K$92, MATCH($D$103,'C-Diversion'!$D$88:$D$92,0))","v":0},{"$f":"'C-Values and Rates'!L107*INDEX('C-Diversion'!L$88:L$92, MATCH($D$103,'C-Diversion'!$D$88:$D$92,0))","v":0},{"$f":"'C-Values and Rates'!M107*INDEX('C-Diversion'!M$88:M$92, MATCH($D$103,'C-Diversion'!$D$88:$D$92,0))","v":0},{"$f":"'C-Values and Rates'!N107*INDEX('C-Diversion'!N$88:N$92, MATCH($D$103,'C-Diversion'!$D$88:$D$92,0))","v":0},{"$f":"'C-Values and Rates'!O107*INDEX('C-Diversion'!O$88:O$92, MATCH($D$103,'C-Diversion'!$D$88:$D$92,0))","v":0},{"$f":"'C-Values and Rates'!P107*INDEX('C-Diversion'!P$88:P$92, MATCH($D$103,'C-Diversion'!$D$88:$D$92,0))","v":30.923574444334108},{"$f":"'C-Values and Rates'!Q107*INDEX('C-Diversion'!Q$88:Q$92, MATCH($D$103,'C-Diversion'!$D$88:$D$92,0))","v":31.580973000314476},{"$f":"'C-Values and Rates'!R107*INDEX('C-Diversion'!R$88:R$92, MATCH($D$103,'C-Diversion'!$D$88:$D$92,0))","v":32.252347070742012},{"$f":"'C-Values and Rates'!S107*INDEX('C-Diversion'!S$88:S$92, MATCH($D$103,'C-Diversion'!$D$88:$D$92,0))","v":32.916431530511197},{"$f":"'C-Values and Rates'!T107*INDEX('C-Diversion'!T$88:T$92, MATCH($D$103,'C-Diversion'!$D$88:$D$92,0))","v":33.594189667074801},{"$f":"'C-Values and Rates'!U107*INDEX('C-Diversion'!U$88:U$92, MATCH($D$103,'C-Diversion'!$D$88:$D$92,0))","v":34.285903025098307},{"$f":"'C-Values and Rates'!V107*INDEX('C-Diversion'!V$88:V$92, MATCH($D$103,'C-Diversion'!$D$88:$D$92,0))","v":34.991858946327248},{"$f":"'C-Values and Rates'!W107*INDEX('C-Diversion'!W$88:W$92, MATCH($D$103,'C-Diversion'!$D$88:$D$92,0))","v":35.712350688950572},{"$f":"'C-Values and Rates'!X107*INDEX('C-Diversion'!X$88:X$92, MATCH($D$103,'C-Diversion'!$D$88:$D$92,0))","v":36.494219153255017},{"$f":"'C-Values and Rates'!Y107*INDEX('C-Diversion'!Y$88:Y$92, MATCH($D$103,'C-Diversion'!$D$88:$D$92,0))","v":37.293205457289439},{"$f":"'C-Values and Rates'!Z107*INDEX('C-Diversion'!Z$88:Z$92, MATCH($D$103,'C-Diversion'!$D$88:$D$92,0))","v":38.109684370532825},{"$f":"'C-Values and Rates'!AA107*INDEX('C-Diversion'!AA$88:AA$92, MATCH($D$103,'C-Diversion'!$D$88:$D$92,0))","v":38.944038867480984},{"$f":"'C-Values and Rates'!AB107*INDEX('C-Diversion'!AB$88:AB$92, MATCH($D$103,'C-Diversion'!$D$88:$D$92,0))","v":39.796660307283091},{"$f":"'C-Values and Rates'!AC107*INDEX('C-Diversion'!AC$88:AC$92, MATCH($D$103,'C-Diversion'!$D$88:$D$92,0))","v":40.665088846861693},{"$f":"'C-Values and Rates'!AD107*INDEX('C-Diversion'!AD$88:AD$92, MATCH($D$103,'C-Diversion'!$D$88:$D$92,0))","v":41.552467924564127},{"$f":"'C-Values and Rates'!AE107*INDEX('C-Diversion'!AE$88:AE$92, MATCH($D$103,'C-Diversion'!$D$88:$D$92,0))","v":42.459211072280247},{"$f":"'C-Values and Rates'!AF107*INDEX('C-Diversion'!AF$88:AF$92, MATCH($D$103,'C-Diversion'!$D$88:$D$92,0))","v":43.385740845845483},{"$f":"'C-Values and Rates'!AG107*INDEX('C-Diversion'!AG$88:AG$92, MATCH($D$103,'C-Diversion'!$D$88:$D$92,0))","v":44.332489021958089},{"$f":"'C-Values and Rates'!AH107*INDEX('C-Diversion'!AH$88:AH$92, MATCH($D$103,'C-Diversion'!$D$88:$D$92,0))","v":45.30736290166999},{"$f":"'C-Values and Rates'!AI107*INDEX('C-Diversion'!AI$88:AI$92, MATCH($D$103,'C-Diversion'!$D$88:$D$92,0))","v":46.303674311787042},{"$f":"'C-Values and Rates'!AJ107*INDEX('C-Diversion'!AJ$88:AJ$92, MATCH($D$103,'C-Diversion'!$D$88:$D$92,0))","v":47.321894664785731},{"$f":"'C-Values and Rates'!AK107*INDEX('C-Diversion'!AK$88:AK$92, MATCH($D$103,'C-Diversion'!$D$88:$D$92,0))","v":48.362505739528842},{"$f":"'C-Values and Rates'!AL107*INDEX('C-Diversion'!AL$88:AL$92, MATCH($D$103,'C-Diversion'!$D$88:$D$92,0))","v":49.42599990922303},{"$f":"'C-Values and Rates'!AM107*INDEX('C-Diversion'!AM$88:AM$92, MATCH($D$103,'C-Diversion'!$D$88:$D$92,0))","v":50.476961406390579},{"$f":"'C-Values and Rates'!AN107*INDEX('C-Diversion'!AN$88:AN$92, MATCH($D$103,'C-Diversion'!$D$88:$D$92,0))","v":51.550269847890171},{"$f":"'C-Values and Rates'!AO107*INDEX('C-Diversion'!AO$88:AO$92, MATCH($D$103,'C-Diversion'!$D$88:$D$92,0))","v":52.646400404241753},{"$f":"'C-Values and Rates'!AP107*INDEX('C-Diversion'!AP$88:AP$92, MATCH($D$103,'C-Diversion'!$D$88:$D$92,0))","v":53.765838349674162},{"$f":"'C-Values and Rates'!AQ107*INDEX('C-Diversion'!AQ$88:AQ$92, MATCH($D$103,'C-Diversion'!$D$88:$D$92,0))","v":54.909079276963887},{"$f":"'C-Values and Rates'!AR107*INDEX('C-Diversion'!AR$88:AR$92, MATCH($D$103,'C-Diversion'!$D$88:$D$92,0))","v":56.04588406705507},{"$f":"'C-Values and Rates'!AS107*INDEX('C-Diversion'!AS$88:AS$92, MATCH($D$103,'C-Diversion'!$D$88:$D$92,0))","v":57.206224584712473},{"$f":"'C-Values and Rates'!AT107*INDEX('C-Diversion'!AT$88:AT$92, MATCH($D$103,'C-Diversion'!$D$88:$D$92,0))","v":58.39058809958599},{"$f":"'C-Values and Rates'!AU107*INDEX('C-Diversion'!AU$88:AU$92, MATCH($D$103,'C-Diversion'!$D$88:$D$92,0))","v":59.599471969465384},{"$f":"'C-Values and Rates'!AV107*INDEX('C-Diversion'!AV$88:AV$92, MATCH($D$103,'C-Diversion'!$D$88:$D$92,0))","v":60.833383849139167},{"$f":"'C-Values and Rates'!AW107*INDEX('C-Diversion'!AW$88:AW$92, MATCH($D$103,'C-Diversion'!$D$88:$D$92,0))","v":60.875335199585649},{"$f":"'C-Values and Rates'!AX107*INDEX('C-Diversion'!AX$88:AX$92, MATCH($D$103,'C-Diversion'!$D$88:$D$92,0))","v":60.917315480130924},{"$f":"'C-Values and Rates'!AY107*INDEX('C-Diversion'!AY$88:AY$92, MATCH($D$103,'C-Diversion'!$D$88:$D$92,0))","v":60.959324710725511},{"$f":"'C-Values and Rates'!AZ107*INDEX('C-Diversion'!AZ$88:AZ$92, MATCH($D$103,'C-Diversion'!$D$88:$D$92,0))","v":61.001362911333636},{"$f":"'C-Values and Rates'!BA107*INDEX('C-Diversion'!BA$88:BA$92, MATCH($D$103,'C-Diversion'!$D$88:$D$92,0))","v":61.043430101933339},{"$f":"'C-Values and Rates'!BB107*INDEX('C-Diversion'!BB$88:BB$92, MATCH($D$103,'C-Diversion'!$D$88:$D$92,0))","v":61.085526302516449},{"$f":"'C-Values and Rates'!BC107*INDEX('C-Diversion'!BC$88:BC$92, MATCH($D$103,'C-Diversion'!$D$88:$D$92,0))","v":61.12765153308856},{"$f":"'C-Values and Rates'!BD107*INDEX('C-Diversion'!BD$88:BD$92, MATCH($D$103,'C-Diversion'!$D$88:$D$92,0))","v":61.169805813669036},{"$f":"'C-Values and Rates'!BE107*INDEX('C-Diversion'!BE$88:BE$92, MATCH($D$103,'C-Diversion'!$D$88:$D$92,0))","v":61.211989164291083},{"$f":"'C-Values and Rates'!BF107*INDEX('C-Diversion'!BF$88:BF$92, MATCH($D$103,'C-Diversion'!$D$88:$D$92,0))","v":61.254201605001732},{"$f":"'C-Values and Rates'!BG107*INDEX('C-Diversion'!BG$88:BG$92, MATCH($D$103,'C-Diversion'!$D$88:$D$92,0))","v":61.296443155861795},{"$f":"'C-Values and Rates'!BH107*INDEX('C-Diversion'!BH$88:BH$92, MATCH($D$103,'C-Diversion'!$D$88:$D$92,0))","v":61.338713836945942},{"$f":"'C-Values and Rates'!BI107*INDEX('C-Diversion'!BI$88:BI$92, MATCH($D$103,'C-Diversion'!$D$88:$D$92,0))","v":61.381013668342682},{"$f":"'C-Values and Rates'!BJ107*INDEX('C-Diversion'!BJ$88:BJ$92, MATCH($D$103,'C-Diversion'!$D$88:$D$92,0))","v":61.423342670154383},{"$f":"'C-Values and Rates'!BK107*INDEX('C-Diversion'!BK$88:BK$92, MATCH($D$103,'C-Diversion'!$D$88:$D$92,0))","v":61.4657008624973},{"$f":"'C-Values and Rates'!BL107*INDEX('C-Diversion'!BL$88:BL$92, MATCH($D$103,'C-Diversion'!$D$88:$D$92,0))","v":61.508088265501499},{"$f":"'C-Values and Rates'!BM107*INDEX('C-Diversion'!BM$88:BM$92, MATCH($D$103,'C-Diversion'!$D$88:$D$92,0))","v":61.550504899310994},{"$f":"'C-Values and Rates'!BN107*INDEX('C-Diversion'!BN$88:BN$92, MATCH($D$103,'C-Diversion'!$D$88:$D$92,0))","v":61.592950784083655},{"$f":"'C-Values and Rates'!BO107*INDEX('C-Diversion'!BO$88:BO$92, MATCH($D$103,'C-Diversion'!$D$88:$D$92,0))","v":61.635425939991237},{"$f":"'C-Values and Rates'!BP107*INDEX('C-Diversion'!BP$88:BP$92, MATCH($D$103,'C-Diversion'!$D$88:$D$92,0))","v":61.677930387219448},{"$f":"'C-Values and Rates'!BQ107*INDEX('C-Diversion'!BQ$88:BQ$92, MATCH($D$103,'C-Diversion'!$D$88:$D$92,0))","v":61.720464145967881},{"$f":"'C-Values and Rates'!BR107*INDEX('C-Diversion'!BR$88:BR$92, MATCH($D$103,'C-Diversion'!$D$88:$D$92,0))","v":61.763027236450071},{"$f":"'C-Values and Rates'!BS107*INDEX('C-Diversion'!BS$88:BS$92, MATCH($D$103,'C-Diversion'!$D$88:$D$92,0))","v":61.805619678893528},{"$f":"'C-Values and Rates'!BT107*INDEX('C-Diversion'!BT$88:BT$92, MATCH($D$103,'C-Diversion'!$D$88:$D$92,0))","v":61.848241493539646},{"$f":"'C-Values and Rates'!BU107*INDEX('C-Diversion'!BU$88:BU$92, MATCH($D$103,'C-Diversion'!$D$88:$D$92,0))","v":61.890892700643839},{"$f":"'C-Values and Rates'!BV107*INDEX('C-Diversion'!BV$88:BV$92, MATCH($D$103,'C-Diversion'!$D$88:$D$92,0))","v":61.933573320475425},{"$f":"'C-Values and Rates'!BW107*INDEX('C-Diversion'!BW$88:BW$92, MATCH($D$103,'C-Diversion'!$D$88:$D$92,0))","v":61.976283373317735},{"$f":"'C-Values and Rates'!BX107*INDEX('C-Diversion'!BX$88:BX$92, MATCH($D$103,'C-Diversion'!$D$88:$D$92,0))","v":0},{"$f":"'C-Values and Rates'!BY107*INDEX('C-Diversion'!BY$88:BY$92, MATCH($D$103,'C-Diversion'!$D$88:$D$92,0))","v":0},{"$f":"'C-Values and Rates'!BZ107*INDEX('C-Diversion'!BZ$88:BZ$92, MATCH($D$103,'C-Diversion'!$D$88:$D$92,0))","v":0},{"$f":"'C-Values and Rates'!CA107*INDEX('C-Diversion'!CA$88:CA$92, MATCH($D$103,'C-Diversion'!$D$88:$D$92,0))","v":0},{"$f":"'C-Values and Rates'!CB107*INDEX('C-Diversion'!CB$88:CB$92, MATCH($D$103,'C-Diversion'!$D$88:$D$92,0))","v":0},{"$f":"'C-Values and Rates'!CC107*INDEX('C-Diversion'!CC$88:CC$92, MATCH($D$103,'C-Diversion'!$D$88:$D$92,0))","v":0},{"$f":"'C-Values and Rates'!CD107*INDEX('C-Diversion'!CD$88:CD$92, MATCH($D$103,'C-Diversion'!$D$88:$D$92,0))","v":0},{"$f":"'C-Values and Rates'!CE107*INDEX('C-Diversion'!CE$88:CE$92, MATCH($D$103,'C-Diversion'!$D$88:$D$92,0))","v":0}]
[null,null,null,"Greenhouse Gases",null,null,null,{"$f":"SUM(K109:CE109)","v":6009.4044986603139},null,"£, 2023 prices",{"$f":"'C-Values and Rates'!K108*INDEX('C-Diversion'!K$88:K$92, MATCH($D$103,'C-Diversion'!$D$88:$D$92,0))","v":0},{"$f":"'C-Values and Rates'!L108*INDEX('C-Diversion'!L$88:L$92, MATCH($D$103,'C-Diversion'!$D$88:$D$92,0))","v":0},{"$f":"'C-Values and Rates'!M108*INDEX('C-Diversion'!M$88:M$92, MATCH($D$103,'C-Diversion'!$D$88:$D$92,0))","v":0},{"$f":"'C-Values and Rates'!N108*INDEX('C-Diversion'!N$88:N$92, MATCH($D$103,'C-Diversion'!$D$88:$D$92,0))","v":0},{"$f":"'C-Values and Rates'!O108*INDEX('C-Diversion'!O$88:O$92, MATCH($D$103,'C-Diversion'!$D$88:$D$92,0))","v":0},{"$f":"'C-Values and Rates'!P108*INDEX('C-Diversion'!P$88:P$92, MATCH($D$103,'C-Diversion'!$D$88:$D$92,0))","v":77.656237686237276},{"$f":"'C-Values and Rates'!Q108*INDEX('C-Diversion'!Q$88:Q$92, MATCH($D$103,'C-Diversion'!$D$88:$D$92,0))","v":78.071904594604817},{"$f":"'C-Values and Rates'!R108*INDEX('C-Diversion'!R$88:R$92, MATCH($D$103,'C-Diversion'!$D$88:$D$92,0))","v":78.489796423775346},{"$f":"'C-Values and Rates'!S108*INDEX('C-Diversion'!S$88:S$92, MATCH($D$103,'C-Diversion'!$D$88:$D$92,0))","v":78.552866952153323},{"$f":"'C-Values and Rates'!T108*INDEX('C-Diversion'!T$88:T$92, MATCH($D$103,'C-Diversion'!$D$88:$D$92,0))","v":78.615988160896521},{"$f":"'C-Values and Rates'!U108*INDEX('C-Diversion'!U$88:U$92, MATCH($D$103,'C-Diversion'!$D$88:$D$92,0))","v":78.679160090729184},{"$f":"'C-Values and Rates'!V108*INDEX('C-Diversion'!V$88:V$92, MATCH($D$103,'C-Diversion'!$D$88:$D$92,0))","v":78.742382782408313},{"$f":"'C-Values and Rates'!W108*INDEX('C-Diversion'!W$88:W$92, MATCH($D$103,'C-Diversion'!$D$88:$D$92,0))","v":78.805656276723596},{"$f":"'C-Values and Rates'!X108*INDEX('C-Diversion'!X$88:X$92, MATCH($D$103,'C-Diversion'!$D$88:$D$92,0))","v":79.474329231573037},{"$f":"'C-Values and Rates'!Y108*INDEX('C-Diversion'!Y$88:Y$92, MATCH($D$103,'C-Diversion'!$D$88:$D$92,0))","v":80.148675935512017},{"$f":"'C-Values and Rates'!Z108*INDEX('C-Diversion'!Z$88:Z$92, MATCH($D$103,'C-Diversion'!$D$88:$D$92,0))","v":80.82874453080268},{"$f":"'C-Values and Rates'!AA108*INDEX('C-Diversion'!AA$88:AA$92, MATCH($D$103,'C-Diversion'!$D$88:$D$92,0))","v":81.514583568198631},{"$f":"'C-Values and Rates'!AB108*INDEX('C-Diversion'!AB$88:AB$92, MATCH($D$103,'C-Diversion'!$D$88:$D$92,0))","v":82.206242010410904},{"$f":"'C-Values and Rates'!AC108*INDEX('C-Diversion'!AC$88:AC$92, MATCH($D$103,'C-Diversion'!$D$88:$D$92,0))","v":83.311448009567911},{"$f":"'C-Values and Rates'!AD108*INDEX('C-Diversion'!AD$88:AD$92, MATCH($D$103,'C-Diversion'!$D$88:$D$92,0))","v":84.431512738070765},{"$f":"'C-Values and Rates'!AE108*INDEX('C-Diversion'!AE$88:AE$92, MATCH($D$103,'C-Diversion'!$D$88:$D$92,0))","v":85.566635961246419},{"$f":"'C-Values and Rates'!AF108*INDEX('C-Diversion'!AF$88:AF$92, MATCH($D$103,'C-Diversion'!$D$88:$D$92,0))","v":86.717020130128347},{"$f":"'C-Values and Rates'!AG108*INDEX('C-Diversion'!AG$88:AG$92, MATCH($D$103,'C-Diversion'!$D$88:$D$92,0))","v":87.882870417563922},{"$f":"'C-Values and Rates'!AH108*INDEX('C-Diversion'!AH$88:AH$92, MATCH($D$103,'C-Diversion'!$D$88:$D$92,0))","v":89.202739851810705},{"$f":"'C-Values and Rates'!AI108*INDEX('C-Diversion'!AI$88:AI$92, MATCH($D$103,'C-Diversion'!$D$88:$D$92,0))","v":90.542431753339002},{"$f":"'C-Values and Rates'!AJ108*INDEX('C-Diversion'!AJ$88:AJ$92, MATCH($D$103,'C-Diversion'!$D$88:$D$92,0))","v":91.902243825996621},{"$f":"'C-Values and Rates'!AK108*INDEX('C-Diversion'!AK$88:AK$92, MATCH($D$103,'C-Diversion'!$D$88:$D$92,0))","v":93.282478244698339},{"$f":"'C-Values and Rates'!AL108*INDEX('C-Diversion'!AL$88:AL$92, MATCH($D$103,'C-Diversion'!$D$88:$D$92,0))","v":94.683441722574941},{"$f":"'C-Values and Rates'!AM108*INDEX('C-Diversion'!AM$88:AM$92, MATCH($D$103,'C-Diversion'!$D$88:$D$92,0))","v":96.301535042161149},{"$f":"'C-Values and Rates'!AN108*INDEX('C-Diversion'!AN$88:AN$92, MATCH($D$103,'C-Diversion'!$D$88:$D$92,0))","v":97.947280778508485},{"$f":"'C-Values and Rates'!AO108*INDEX('C-Diversion'!AO$88:AO$92, MATCH($D$103,'C-Diversion'!$D$88:$D$92,0))","v":99.621151497780787},{"$f":"'C-Values and Rates'!AP108*INDEX('C-Diversion'!AP$88:AP$92, MATCH($D$103,'C-Diversion'!$D$88:$D$92,0))","v":101.32362784206445},{"$f":"'C-Values and Rates'!AQ108*INDEX('C-Diversion'!AQ$88:AQ$92, MATCH($D$103,'C-Diversion'!$D$88:$D$92,0))","v":103.05519866738223},{"$f":"'C-Values and Rates'!AR108*INDEX('C-Diversion'!AR$88:AR$92, MATCH($D$103,'C-Diversion'!$D$88:$D$92,0))","v":104.76441393618958},{"$f":"'C-Values and Rates'!AS108*INDEX('C-Diversion'!AS$88:AS$92, MATCH($D$103,'C-Diversion'!$D$88:$D$92,0))","v":106.5019772832395},{"$f":"'C-Values and Rates'!AT108*INDEX('C-Diversion'!AT$88:AT$92, MATCH($D$103,'C-Diversion'!$D$88:$D$92,0))","v":108.26835887373277},{"$f":"'C-Values and Rates'!AU108*INDEX('C-Diversion'!AU$88:AU$92, MATCH($D$103,'C-Diversion'!$D$88:$D$92,0))","v":110.06403667076441},{"$f":"'C-Values and Rates'!AV108*INDEX('C-Diversion'!AV$88:AV$92, MATCH($D$103,'C-Diversion'!$D$88:$D$92,0))","v":111.88949656465512},{"$f":"'C-Values and Rates'!AW108*INDEX('C-Diversion'!AW$88:AW$92, MATCH($D$103,'C-Diversion'!$D$88:$D$92,0))","v":111.96665675507465},{"$f":"'C-Values and Rates'!AX108*INDEX('C-Diversion'!AX$88:AX$92, MATCH($D$103,'C-Diversion'!$D$88:$D$92,0))","v":112.04387015598462},{"$f":"'C-Values and Rates'!AY108*INDEX('C-Diversion'!AY$88:AY$92, MATCH($D$103,'C-Diversion'!$D$88:$D$92,0))","v":112.12113680407957},{"$f":"'C-Values and Rates'!AZ108*INDEX('C-Diversion'!AZ$88:AZ$92, MATCH($D$103,'C-Diversion'!$D$88:$D$92,0))","v":112.19845673607928},{"$f":"'C-Values and Rates'!BA108*INDEX('C-Diversion'!BA$88:BA$92, MATCH($D$103,'C-Diversion'!$D$88:$D$92,0))","v":112.27582998872889},{"$f":"'C-Values and Rates'!BB108*INDEX('C-Diversion'!BB$88:BB$92, MATCH($D$103,'C-Diversion'!$D$88:$D$92,0))","v":112.35325659879894},{"$f":"'C-Values and Rates'!BC108*INDEX('C-Diversion'!BC$88:BC$92, MATCH($D$103,'C-Diversion'!$D$88:$D$92,0))","v":112.43073660308526},{"$f":"'C-Values and Rates'!BD108*INDEX('C-Diversion'!BD$88:BD$92, MATCH($D$103,'C-Diversion'!$D$88:$D$92,0))","v":112.50827003840907},{"$f":"'C-Values and Rates'!BE108*INDEX('C-Diversion'!BE$88:BE$92, MATCH($D$103,'C-Diversion'!$D$88:$D$92,0))","v":112.58585694161695},{"$f":"'C-Values and Rates'!BF108*INDEX('C-Diversion'!BF$88:BF$92, MATCH($D$103,'C-Diversion'!$D$88:$D$92,0))","v":112.66349734958098},{"$f":"'C-Values and Rates'!BG108*INDEX('C-Diversion'!BG$88:BG$92, MATCH($D$103,'C-Diversion'!$D$88:$D$92,0))","v":112.74119129919858},{"$f":"'C-Values and Rates'!BH108*INDEX('C-Diversion'!BH$88:BH$92, MATCH($D$103,'C-Diversion'!$D$88:$D$92,0))","v":112.81893882739261},{"$f":"'C-Values and Rates'!BI108*INDEX('C-Diversion'!BI$88:BI$92, MATCH($D$103,'C-Diversion'!$D$88:$D$92,0))","v":112.89673997111147},{"$f":"'C-Values and Rates'!BJ108*INDEX('C-Diversion'!BJ$88:BJ$92, MATCH($D$103,'C-Diversion'!$D$88:$D$92,0))","v":112.97459476732898},{"$f":"'C-Values and Rates'!BK108*INDEX('C-Diversion'!BK$88:BK$92, MATCH($D$103,'C-Diversion'!$D$88:$D$92,0))","v":113.05250325304449},{"$f":"'C-Values and Rates'!BL108*INDEX('C-Diversion'!BL$88:BL$92, MATCH($D$103,'C-Diversion'!$D$88:$D$92,0))","v":113.13046546528284},{"$f":"'C-Values and Rates'!BM108*INDEX('C-Diversion'!BM$88:BM$92, MATCH($D$103,'C-Diversion'!$D$88:$D$92,0))","v":113.20848144109443},{"$f":"'C-Values and Rates'!BN108*INDEX('C-Diversion'!BN$88:BN$92, MATCH($D$103,'C-Diversion'!$D$88:$D$92,0))","v":113.2865512175552},{"$f":"'C-Values and Rates'!BO108*INDEX('C-Diversion'!BO$88:BO$92, MATCH($D$103,'C-Diversion'!$D$88:$D$92,0))","v":113.36467483176661},{"$f":"'C-Values and Rates'!BP108*INDEX('C-Diversion'!BP$88:BP$92, MATCH($D$103,'C-Diversion'!$D$88:$D$92,0))","v":113.44285232085578},{"$f":"'C-Values and Rates'!BQ108*INDEX('C-Diversion'!BQ$88:BQ$92, MATCH($D$103,'C-Diversion'!$D$88:$D$92,0))","v":113.52108372197537},{"$f":"'C-Values and Rates'!BR108*INDEX('C-Diversion'!BR$88:BR$92, MATCH($D$103,'C-Diversion'!$D$88:$D$92,0))","v":113.59936907230373},{"$f":"'C-Values and Rates'!BS108*INDEX('C-Diversion'!BS$88:BS$92, MATCH($D$103,'C-Diversion'!$D$88:$D$92,0))","v":113.6777084090448},{"$f":"'C-Values and Rates'!BT108*INDEX('C-Diversion'!BT$88:BT$92, MATCH($D$103,'C-Diversion'!$D$88:$D$92,0))","v":113.75610176942818},{"$f":"'C-Values and Rates'!BU108*INDEX('C-Diversion'!BU$88:BU$92, MATCH($D$103,'C-Diversion'!$D$88:$D$92,0))","v":113.8345491907092},{"$f":"'C-Values and Rates'!BV108*INDEX('C-Diversion'!BV$88:BV$92, MATCH($D$103,'C-Diversion'!$D$88:$D$92,0))","v":113.91305071016875},{"$f":"'C-Values and Rates'!BW108*INDEX('C-Diversion'!BW$88:BW$92, MATCH($D$103,'C-Diversion'!$D$88:$D$92,0))","v":113.99160636511353},{"$f":"'C-Values and Rates'!BX108*INDEX('C-Diversion'!BX$88:BX$92, MATCH($D$103,'C-Diversion'!$D$88:$D$92,0))","v":0},{"$f":"'C-Values and Rates'!BY108*INDEX('C-Diversion'!BY$88:BY$92, MATCH($D$103,'C-Diversion'!$D$88:$D$92,0))","v":0},{"$f":"'C-Values and Rates'!BZ108*INDEX('C-Diversion'!BZ$88:BZ$92, MATCH($D$103,'C-Diversion'!$D$88:$D$92,0))","v":0},{"$f":"'C-Values and Rates'!CA108*INDEX('C-Diversion'!CA$88:CA$92, MATCH($D$103,'C-Diversion'!$D$88:$D$92,0))","v":0},{"$f":"'C-Values and Rates'!CB108*INDEX('C-Diversion'!CB$88:CB$92, MATCH($D$103,'C-Diversion'!$D$88:$D$92,0))","v":0},{"$f":"'C-Values and Rates'!CC108*INDEX('C-Diversion'!CC$88:CC$92, MATCH($D$103,'C-Diversion'!$D$88:$D$92,0))","v":0},{"$f":"'C-Values and Rates'!CD108*INDEX('C-Diversion'!CD$88:CD$92, MATCH($D$103,'C-Diversion'!$D$88:$D$92,0))","v":0},{"$f":"'C-Values and Rates'!CE108*INDEX('C-Diversion'!CE$88:CE$92, MATCH($D$103,'C-Diversion'!$D$88:$D$92,0))","v":0}]
[null,null,null,"Indirect Taxation",null,null,null,-3242.2455978186217,null,"£, 2023 prices",{"$f":"'C-Values and Rates'!K109*INDEX('C-Diversion'!K$88:K$92, MATCH($D$103,'C-Diversion'!$D$88:$D$92,0))","v":0},{"$f":"'C-Values and Rates'!L109*INDEX('C-Diversion'!L$88:L$92, MATCH($D$103,'C-Diversion'!$D$88:$D$92,0))","v":0},{"$f":"'C-Values and Rates'!M109*INDEX('C-Diversion'!M$88:M$92, MATCH($D$103,'C-Diversion'!$D$88:$D$92,0))","v":0},{"$f":"'C-Values and Rates'!N109*INDEX('C-Diversion'!N$88:N$92, MATCH($D$103,'C-Diversion'!$D$88:$D$92,0))","v":0},{"$f":"'C-Values and Rates'!O109*INDEX('C-Diversion'!O$88:O$92, MATCH($D$103,'C-Diversion'!$D$88:$D$92,0))","v":0},{"$f":"'C-Values and Rates'!P109*INDEX('C-Diversion'!P$88:P$92, MATCH($D$103,'C-Diversion'!$D$88:$D$92,0))","v":-62.780468574868607},{"$f":"'C-Values and Rates'!Q109*INDEX('C-Diversion'!Q$88:Q$92, MATCH($D$103,'C-Diversion'!$D$88:$D$92,0))","v":-62.631724096469576},{"$f":"'C-Values and Rates'!R109*INDEX('C-Diversion'!R$88:R$92, MATCH($D$103,'C-Diversion'!$D$88:$D$92,0))","v":-62.482516857370072},{"$f":"'C-Values and Rates'!S109*INDEX('C-Diversion'!S$88:S$92, MATCH($D$103,'C-Diversion'!$D$88:$D$92,0))","v":-61.458676788079053},{"$f":"'C-Values and Rates'!T109*INDEX('C-Diversion'!T$88:T$92, MATCH($D$103,'C-Diversion'!$D$88:$D$92,0))","v":-60.433630814409192},{"$f":"'C-Values and Rates'!U109*INDEX('C-Diversion'!U$88:U$92, MATCH($D$103,'C-Diversion'!$D$88:$D$92,0))","v":-59.407377883531908},{"$f":"'C-Values and Rates'!V109*INDEX('C-Diversion'!V$88:V$92, MATCH($D$103,'C-Diversion'!$D$88:$D$92,0))","v":-58.379916941804012},{"$f":"'C-Values and Rates'!W109*INDEX('C-Diversion'!W$88:W$92, MATCH($D$103,'C-Diversion'!$D$88:$D$92,0))","v":-57.351246934766941},{"$f":"'C-Values and Rates'!X109*INDEX('C-Diversion'!X$88:X$92, MATCH($D$103,'C-Diversion'!$D$88:$D$92,0))","v":-56.817981460073021},{"$f":"'C-Values and Rates'!Y109*INDEX('C-Diversion'!Y$88:Y$92, MATCH($D$103,'C-Diversion'!$D$88:$D$92,0))","v":-56.282538463356325},{"$f":"'C-Values and Rates'!Z109*INDEX('C-Diversion'!Z$88:Z$92, MATCH($D$103,'C-Diversion'!$D$88:$D$92,0))","v":-55.744911697721449},{"$f":"'C-Values and Rates'!AA109*INDEX('C-Diversion'!AA$88:AA$92, MATCH($D$103,'C-Diversion'!$D$88:$D$92,0))","v":-55.205094900583873},{"$f":"'C-Values and Rates'!AB109*INDEX('C-Diversion'!AB$88:AB$92, MATCH($D$103,'C-Diversion'!$D$88:$D$92,0))","v":-54.663081793633268},{"$f":"'C-Values and Rates'!AC109*INDEX('C-Diversion'!AC$88:AC$92, MATCH($D$103,'C-Diversion'!$D$88:$D$92,0))","v":-54.42347493185914},{"$f":"'C-Values and Rates'!AD109*INDEX('C-Diversion'!AD$88:AD$92, MATCH($D$103,'C-Diversion'!$D$88:$D$92,0))","v":-54.182837880782657},{"$f":"'C-Values and Rates'!AE109*INDEX('C-Diversion'!AE$88:AE$92, MATCH($D$103,'C-Diversion'!$D$88:$D$92,0))","v":-53.941167724954781},{"$f":"'C-Values and Rates'!AF109*INDEX('C-Diversion'!AF$88:AF$92, MATCH($D$103,'C-Diversion'!$D$88:$D$92,0))","v":-53.698461541798821},{"$f":"'C-Values and Rates'!AG109*INDEX('C-Diversion'!AG$88:AG$92, MATCH($D$103,'C-Diversion'!$D$88:$D$92,0))","v":-53.454716401594105},{"$f":"'C-Values and Rates'!AH109*INDEX('C-Diversion'!AH$88:AH$92, MATCH($D$103,'C-Diversion'!$D$88:$D$92,0))","v":-53.301443084458292},{"$f":"'C-Values and Rates'!AI109*INDEX('C-Diversion'!AI$88:AI$92, MATCH($D$103,'C-Diversion'!$D$88:$D$92,0))","v":-53.147368206987842},{"$f":"'C-Values and Rates'!AJ109*INDEX('C-Diversion'!AJ$88:AJ$92, MATCH($D$103,'C-Diversion'!$D$88:$D$92,0))","v":-52.992489224879378},{"$f":"'C-Values and Rates'!AK109*INDEX('C-Diversion'!AK$88:AK$92, MATCH($D$103,'C-Diversion'!$D$88:$D$92,0))","v":-52.836803586952612},{"$f":"'C-Values and Rates'!AL109*INDEX('C-Diversion'!AL$88:AL$92, MATCH($D$103,'C-Diversion'!$D$88:$D$92,0))","v":-52.680308735133316},{"$f":"'C-Values and Rates'!AM109*INDEX('C-Diversion'!AM$88:AM$92, MATCH($D$103,'C-Diversion'!$D$88:$D$92,0))","v":-52.634423409030681},{"$f":"'C-Values and Rates'!AN109*INDEX('C-Diversion'!AN$88:AN$92, MATCH($D$103,'C-Diversion'!$D$88:$D$92,0))","v":-52.588343605846902},{"$f":"'C-Values and Rates'!AO109*INDEX('C-Diversion'!AO$88:AO$92, MATCH($D$103,'C-Diversion'!$D$88:$D$92,0))","v":-52.54206891422794},{"$f":"'C-Values and Rates'!AP109*INDEX('C-Diversion'!AP$88:AP$92, MATCH($D$103,'C-Diversion'!$D$88:$D$92,0))","v":-52.495598922099077},{"$f":"'C-Values and Rates'!AQ109*INDEX('C-Diversion'!AQ$88:AQ$92, MATCH($D$103,'C-Diversion'!$D$88:$D$92,0))","v":-52.448933216663839},{"$f":"'C-Values and Rates'!AR109*INDEX('C-Diversion'!AR$88:AR$92, MATCH($D$103,'C-Diversion'!$D$88:$D$92,0))","v":-52.377255219954066},{"$f":"'C-Values and Rates'!AS109*INDEX('C-Diversion'!AS$88:AS$92, MATCH($D$103,'C-Diversion'!$D$88:$D$92,0))","v":-52.305453420656619},{"$f":"'C-Values and Rates'!AT109*INDEX('C-Diversion'!AT$88:AT$92, MATCH($D$103,'C-Diversion'!$D$88:$D$92,0))","v":-52.233527682107727},{"$f":"'C-Values and Rates'!AU109*INDEX('C-Diversion'!AU$88:AU$92, MATCH($D$103,'C-Diversion'!$D$88:$D$92,0))","v":-52.16147786751398},{"$f":"'C-Values and Rates'!AV109*INDEX('C-Diversion'!AV$88:AV$92, MATCH($D$103,'C-Diversion'!$D$88:$D$92,0))","v":-52.089303839952294},{"$f":"'C-Values and Rates'!AW109*INDEX('C-Diversion'!AW$88:AW$92, MATCH($D$103,'C-Diversion'!$D$88:$D$92,0))","v":-52.125225179546391},{"$f":"'C-Values and Rates'!AX109*INDEX('C-Diversion'!AX$88:AX$92, MATCH($D$103,'C-Diversion'!$D$88:$D$92,0))","v":-52.161171290879473},{"$f":"'C-Values and Rates'!AY109*INDEX('C-Diversion'!AY$88:AY$92, MATCH($D$103,'C-Diversion'!$D$88:$D$92,0))","v":-52.197142191034402},{"$f":"'C-Values and Rates'!AZ109*INDEX('C-Diversion'!AZ$88:AZ$92, MATCH($D$103,'C-Diversion'!$D$88:$D$92,0))","v":-52.233137897105792},{"$f":"'C-Values and Rates'!BA109*INDEX('C-Diversion'!BA$88:BA$92, MATCH($D$103,'C-Diversion'!$D$88:$D$92,0))","v":-52.269158426200065},{"$f":"'C-Values and Rates'!BB109*INDEX('C-Diversion'!BB$88:BB$92, MATCH($D$103,'C-Diversion'!$D$88:$D$92,0))","v":-52.305203795435474},{"$f":"'C-Values and Rates'!BC109*INDEX('C-Diversion'!BC$88:BC$92, MATCH($D$103,'C-Diversion'!$D$88:$D$92,0))","v":-52.34127402194202},{"$f":"'C-Values and Rates'!BD109*INDEX('C-Diversion'!BD$88:BD$92, MATCH($D$103,'C-Diversion'!$D$88:$D$92,0))","v":-52.377369122861552},{"$f":"'C-Values and Rates'!BE109*INDEX('C-Diversion'!BE$88:BE$92, MATCH($D$103,'C-Diversion'!$D$88:$D$92,0))","v":-52.413489115347723},{"$f":"'C-Values and Rates'!BF109*INDEX('C-Diversion'!BF$88:BF$92, MATCH($D$103,'C-Diversion'!$D$88:$D$92,0))","v":-52.449634016566037},{"$f":"'C-Values and Rates'!BG109*INDEX('C-Diversion'!BG$88:BG$92, MATCH($D$103,'C-Diversion'!$D$88:$D$92,0))","v":-52.485803843693809},{"$f":"'C-Values and Rates'!BH109*INDEX('C-Diversion'!BH$88:BH$92, MATCH($D$103,'C-Diversion'!$D$88:$D$92,0))","v":-52.521998613920204},{"$f":"'C-Values and Rates'!BI109*INDEX('C-Diversion'!BI$88:BI$92, MATCH($D$103,'C-Diversion'!$D$88:$D$92,0))","v":-52.558218344446253},{"$f":"'C-Values and Rates'!BJ109*INDEX('C-Diversion'!BJ$88:BJ$92, MATCH($D$103,'C-Diversion'!$D$88:$D$92,0))","v":-52.594463052484848},{"$f":"'C-Values and Rates'!BK109*INDEX('C-Diversion'!BK$88:BK$92, MATCH($D$103,'C-Diversion'!$D$88:$D$92,0))","v":-52.630732755260752},{"$f":"'C-Values and Rates'!BL109*INDEX('C-Diversion'!BL$88:BL$92, MATCH($D$103,'C-Diversion'!$D$88:$D$92,0))","v":-52.667027470010602},{"$f":"'C-Values and Rates'!BM109*INDEX('C-Diversion'!BM$88:BM$92, MATCH($D$103,'C-Diversion'!$D$88:$D$92,0))","v":-52.703347213982923},{"$f":"'C-Values and Rates'!BN109*INDEX('C-Diversion'!BN$88:BN$92, MATCH($D$103,'C-Diversion'!$D$88:$D$92,0))","v":-52.73969200443814},{"$f":"'C-Values and Rates'!BO109*INDEX('C-Diversion'!BO$88:BO$92, MATCH($D$103,'C-Diversion'!$D$88:$D$92,0))","v":-52.776061858648553},{"$f":"'C-Values and Rates'!BP109*INDEX('C-Diversion'!BP$88:BP$92, MATCH($D$103,'C-Diversion'!$D$88:$D$92,0))","v":-52.812456793898413},{"$f":"'C-Values and Rates'!BQ109*INDEX('C-Diversion'!BQ$88:BQ$92, MATCH($D$103,'C-Diversion'!$D$88:$D$92,0))","v":-52.84887682748387},{"$f":"'C-Values and Rates'!BR109*INDEX('C-Diversion'!BR$88:BR$92, MATCH($D$103,'C-Diversion'!$D$88:$D$92,0))","v":-52.885321976712994},{"$f":"'C-Values and Rates'!BS109*INDEX('C-Diversion'!BS$88:BS$92, MATCH($D$103,'C-Diversion'!$D$88:$D$92,0))","v":-52.921792258905818},{"$f":"'C-Values and Rates'!BT109*INDEX('C-Diversion'!BT$88:BT$92, MATCH($D$103,'C-Diversion'!$D$88:$D$92,0))","v":-52.958287691394297},{"$f":"'C-Values and Rates'!BU109*INDEX('C-Diversion'!BU$88:BU$92, MATCH($D$103,'C-Diversion'!$D$88:$D$92,0))","v":-52.994808291522354},{"$f":"'C-Values and Rates'!BV109*INDEX('C-Diversion'!BV$88:BV$92, MATCH($D$103,'C-Diversion'!$D$88:$D$92,0))","v":-53.03135407664584},{"$f":"'C-Values and Rates'!BW109*INDEX('C-Diversion'!BW$88:BW$92, MATCH($D$103,'C-Diversion'!$D$88:$D$92,0))","v":-53.067925064132588},{"$f":"'C-Values and Rates'!BX109*INDEX('C-Diversion'!BX$88:BX$92, MATCH($D$103,'C-Diversion'!$D$88:$D$92,0))","v":0},{"$f":"'C-Values and Rates'!BY109*INDEX('C-Diversion'!BY$88:BY$92, MATCH($D$103,'C-Diversion'!$D$88:$D$92,0))","v":0},{"$f":"'C-Values and Rates'!BZ109*INDEX('C-Diversion'!BZ$88:BZ$92, MATCH($D$103,'C-Diversion'!$D$88:$D$92,0))","v":0},{"$f":"'C-Values and Rates'!CA109*INDEX('C-Diversion'!CA$88:CA$92, MATCH($D$103,'C-Diversion'!$D$88:$D$92,0))","v":0},{"$f":"'C-Values and Rates'!CB109*INDEX('C-Diversion'!CB$88:CB$92, MATCH($D$103,'C-Diversion'!$D$88:$D$92,0))","v":0},{"$f":"'C-Values and Rates'!CC109*INDEX('C-Diversion'!CC$88:CC$92, MATCH($D$103,'C-Diversion'!$D$88:$D$92,0))","v":0},{"$f":"'C-Values and Rates'!CD109*INDEX('C-Diversion'!CD$88:CD$92, MATCH($D$103,'C-Diversion'!$D$88:$D$92,0))","v":0},{"$f":"'C-Values and Rates'!CE109*INDEX('C-Diversion'!CE$88:CE$92, MATCH($D$103,'C-Diversion'!$D$88:$D$92,0))","v":0}]
[]
[null,null,null,"HGV - Artics"]
[null,null,null,"Congestion",null,null,null,{"$f":"SUM(K113:CE113)","v":133942.72121353156},null,"£, 2023 prices",{"$f":"'C-Values and Rates'!K112*INDEX('C-Diversion'!K$88:K$92, MATCH($D$112,'C-Diversion'!$D$88:$D$92,0))","v":0},{"$f":"'C-Values and Rates'!L112*INDEX('C-Diversion'!L$88:L$92, MATCH($D$112,'C-Diversion'!$D$88:$D$92,0))","v":0},{"$f":"'C-Values and Rates'!M112*INDEX('C-Diversion'!M$88:M$92, MATCH($D$112,'C-Diversion'!$D$88:$D$92,0))","v":0},{"$f":"'C-Values and Rates'!N112*INDEX('C-Diversion'!N$88:N$92, MATCH($D$112,'C-Diversion'!$D$88:$D$92,0))","v":0},{"$f":"'C-Values and Rates'!O112*INDEX('C-Diversion'!O$88:O$92, MATCH($D$112,'C-Diversion'!$D$88:$D$92,0))","v":0},{"$f":"'C-Values and Rates'!P112*INDEX('C-Diversion'!P$88:P$92, MATCH($D$112,'C-Diversion'!$D$88:$D$92,0))","v":1733.6346705733511},{"$f":"'C-Values and Rates'!Q112*INDEX('C-Diversion'!Q$88:Q$92, MATCH($D$112,'C-Diversion'!$D$88:$D$92,0))","v":1749.2059160208421},{"$f":"'C-Values and Rates'!R112*INDEX('C-Diversion'!R$88:R$92, MATCH($D$112,'C-Diversion'!$D$88:$D$92,0))","v":1764.9170200492108},{"$f":"'C-Values and Rates'!S112*INDEX('C-Diversion'!S$88:S$92, MATCH($D$112,'C-Diversion'!$D$88:$D$92,0))","v":1763.5189561227246},{"$f":"'C-Values and Rates'!T112*INDEX('C-Diversion'!T$88:T$92, MATCH($D$112,'C-Diversion'!$D$88:$D$92,0))","v":1762.1219996606244},{"$f":"'C-Values and Rates'!U112*INDEX('C-Diversion'!U$88:U$92, MATCH($D$112,'C-Diversion'!$D$88:$D$92,0))","v":1760.7261497856407},{"$f":"'C-Values and Rates'!V112*INDEX('C-Diversion'!V$88:V$92, MATCH($D$112,'C-Diversion'!$D$88:$D$92,0))","v":1759.3314056211998},{"$f":"'C-Values and Rates'!W112*INDEX('C-Diversion'!W$88:W$92, MATCH($D$112,'C-Diversion'!$D$88:$D$92,0))","v":1757.9377662914237},{"$f":"'C-Values and Rates'!X112*INDEX('C-Diversion'!X$88:X$92, MATCH($D$112,'C-Diversion'!$D$88:$D$92,0))","v":1790.8395725003015},{"$f":"'C-Values and Rates'!Y112*INDEX('C-Diversion'!Y$88:Y$92, MATCH($D$112,'C-Diversion'!$D$88:$D$92,0))","v":1824.3571734617378},{"$f":"'C-Values and Rates'!Z112*INDEX('C-Diversion'!Z$88:Z$92, MATCH($D$112,'C-Diversion'!$D$88:$D$92,0))","v":1858.502094475434},{"$f":"'C-Values and Rates'!AA112*INDEX('C-Diversion'!AA$88:AA$92, MATCH($D$112,'C-Diversion'!$D$88:$D$92,0))","v":1893.2860765501939},{"$f":"'C-Values and Rates'!AB112*INDEX('C-Diversion'!AB$88:AB$92, MATCH($D$112,'C-Diversion'!$D$88:$D$92,0))","v":1928.7210804411657},{"$f":"'C-Values and Rates'!AC112*INDEX('C-Diversion'!AC$88:AC$92, MATCH($D$112,'C-Diversion'!$D$88:$D$92,0))","v":1942.3778153786086},{"$f":"'C-Values and Rates'!AD112*INDEX('C-Diversion'!AD$88:AD$92, MATCH($D$112,'C-Diversion'!$D$88:$D$92,0))","v":1956.1312498394011},{"$f":"'C-Values and Rates'!AE112*INDEX('C-Diversion'!AE$88:AE$92, MATCH($D$112,'C-Diversion'!$D$88:$D$92,0))","v":1969.982068525841},{"$f":"'C-Values and Rates'!AF112*INDEX('C-Diversion'!AF$88:AF$92, MATCH($D$112,'C-Diversion'!$D$88:$D$92,0))","v":1983.9309609884156},{"$f":"'C-Values and Rates'!AG112*INDEX('C-Diversion'!AG$88:AG$92, MATCH($D$112,'C-Diversion'!$D$88:$D$92,0))","v":1997.9786216601217},{"$f":"'C-Values and Rates'!AH112*INDEX('C-Diversion'!AH$88:AH$92, MATCH($D$112,'C-Diversion'!$D$88:$D$92,0))","v":2018.3844618415544},{"$f":"'C-Values and Rates'!AI112*INDEX('C-Diversion'!AI$88:AI$92, MATCH($D$112,'C-Diversion'!$D$88:$D$92,0))","v":2038.9987118172623},{"$f":"'C-Values and Rates'!AJ112*INDEX('C-Diversion'!AJ$88:AJ$92, MATCH($D$112,'C-Diversion'!$D$88:$D$92,0))","v":2059.8235001270191},{"$f":"'C-Values and Rates'!AK112*INDEX('C-Diversion'!AK$88:AK$92, MATCH($D$112,'C-Diversion'!$D$88:$D$92,0))","v":2080.8609770498824},{"$f":"'C-Values and Rates'!AL112*INDEX('C-Diversion'!AL$88:AL$92, MATCH($D$112,'C-Diversion'!$D$88:$D$92,0))","v":2102.113314826237},{"$f":"'C-Values and Rates'!AM112*INDEX('C-Diversion'!AM$88:AM$92, MATCH($D$112,'C-Diversion'!$D$88:$D$92,0))","v":2137.1721761595772},{"$f":"'C-Values and Rates'!AN112*INDEX('C-Diversion'!AN$88:AN$92, MATCH($D$112,'C-Diversion'!$D$88:$D$92,0))","v":2172.8157461046371},{"$f":"'C-Values and Rates'!AO112*INDEX('C-Diversion'!AO$88:AO$92, MATCH($D$112,'C-Diversion'!$D$88:$D$92,0))","v":2209.0537763803159},{"$f":"'C-Values and Rates'!AP112*INDEX('C-Diversion'!AP$88:AP$92, MATCH($D$112,'C-Diversion'!$D$88:$D$92,0))","v":2245.8961813438227},{"$f":"'C-Values and Rates'!AQ112*INDEX('C-Diversion'!AQ$88:AQ$92, MATCH($D$112,'C-Diversion'!$D$88:$D$92,0))","v":2283.3530407031485},{"$f":"'C-Values and Rates'!AR112*INDEX('C-Diversion'!AR$88:AR$92, MATCH($D$112,'C-Diversion'!$D$88:$D$92,0))","v":2320.0666545222116},{"$f":"'C-Values and Rates'!AS112*INDEX('C-Diversion'!AS$88:AS$92, MATCH($D$112,'C-Diversion'!$D$88:$D$92,0))","v":2357.370579789233},{"$f":"'C-Values and Rates'!AT112*INDEX('C-Diversion'!AT$88:AT$92, MATCH($D$112,'C-Diversion'!$D$88:$D$92,0))","v":2395.2743080134742},{"$f":"'C-Values and Rates'!AU112*INDEX('C-Diversion'!AU$88:AU$92, MATCH($D$112,'C-Diversion'!$D$88:$D$92,0))","v":2433.7874833164274},{"$f":"'C-Values and Rates'!AV112*INDEX('C-Diversion'!AV$88:AV$92, MATCH($D$112,'C-Diversion'!$D$88:$D$92,0))","v":2472.9199048856462},{"$f":"'C-Values and Rates'!AW112*INDEX('C-Diversion'!AW$88:AW$92, MATCH($D$112,'C-Diversion'!$D$88:$D$92,0))","v":2474.6252568320901},{"$f":"'C-Values and Rates'!AX112*INDEX('C-Diversion'!AX$88:AX$92, MATCH($D$112,'C-Diversion'!$D$88:$D$92,0))","v":2476.3317848074294},{"$f":"'C-Values and Rates'!AY112*INDEX('C-Diversion'!AY$88:AY$92, MATCH($D$112,'C-Diversion'!$D$88:$D$92,0))","v":2478.0394896226653},{"$f":"'C-Values and Rates'!AZ112*INDEX('C-Diversion'!AZ$88:AZ$92, MATCH($D$112,'C-Diversion'!$D$88:$D$92,0))","v":2479.7483720893579},{"$f":"'C-Values and Rates'!BA112*INDEX('C-Diversion'!BA$88:BA$92, MATCH($D$112,'C-Diversion'!$D$88:$D$92,0))","v":2481.4584330196299},{"$f":"'C-Values and Rates'!BB112*INDEX('C-Diversion'!BB$88:BB$92, MATCH($D$112,'C-Diversion'!$D$88:$D$92,0))","v":2483.1696732261621},{"$f":"'C-Values and Rates'!BC112*INDEX('C-Diversion'!BC$88:BC$92, MATCH($D$112,'C-Diversion'!$D$88:$D$92,0))","v":2484.8820935221956},{"$f":"'C-Values and Rates'!BD112*INDEX('C-Diversion'!BD$88:BD$92, MATCH($D$112,'C-Diversion'!$D$88:$D$92,0))","v":2486.5956947215327},{"$f":"'C-Values and Rates'!BE112*INDEX('C-Diversion'!BE$88:BE$92, MATCH($D$112,'C-Diversion'!$D$88:$D$92,0))","v":2488.3104776385362},{"$f":"'C-Values and Rates'!BF112*INDEX('C-Diversion'!BF$88:BF$92, MATCH($D$112,'C-Diversion'!$D$88:$D$92,0))","v":2490.0264430881325},{"$f":"'C-Values and Rates'!BG112*INDEX('C-Diversion'!BG$88:BG$92, MATCH($D$112,'C-Diversion'!$D$88:$D$92,0))","v":2491.7435918858077},{"$f":"'C-Values and Rates'!BH112*INDEX('C-Diversion'!BH$88:BH$92, MATCH($D$112,'C-Diversion'!$D$88:$D$92,0))","v":2493.461924847612},{"$f":"'C-Values and Rates'!BI112*INDEX('C-Diversion'!BI$88:BI$92, MATCH($D$112,'C-Diversion'!$D$88:$D$92,0))","v":2495.1814427901572},{"$f":"'C-Values and Rates'!BJ112*INDEX('C-Diversion'!BJ$88:BJ$92, MATCH($D$112,'C-Diversion'!$D$88:$D$92,0))","v":2496.9021465306178},{"$f":"'C-Values and Rates'!BK112*INDEX('C-Diversion'!BK$88:BK$92, MATCH($D$112,'C-Diversion'!$D$88:$D$92,0))","v":2498.6240368867343},{"$f":"'C-Values and Rates'!BL112*INDEX('C-Diversion'!BL$88:BL$92, MATCH($D$112,'C-Diversion'!$D$88:$D$92,0))","v":2500.3471146768084},{"$f":"'C-Values and Rates'!BM112*INDEX('C-Diversion'!BM$88:BM$92, MATCH($D$112,'C-Diversion'!$D$88:$D$92,0))","v":2502.0713807197076},{"$f":"'C-Values and Rates'!BN112*INDEX('C-Diversion'!BN$88:BN$92, MATCH($D$112,'C-Diversion'!$D$88:$D$92,0))","v":2503.7968358348644},{"$f":"'C-Values and Rates'!BO112*INDEX('C-Diversion'!BO$88:BO$92, MATCH($D$112,'C-Diversion'!$D$88:$D$92,0))","v":2505.5234808422742},{"$f":"'C-Values and Rates'!BP112*INDEX('C-Diversion'!BP$88:BP$92, MATCH($D$112,'C-Diversion'!$D$88:$D$92,0))","v":2507.2513165625014},{"$f":"'C-Values and Rates'!BQ112*INDEX('C-Diversion'!BQ$88:BQ$92, MATCH($D$112,'C-Diversion'!$D$88:$D$92,0))","v":2508.9803438166723},{"$f":"'C-Values and Rates'!BR112*INDEX('C-Diversion'!BR$88:BR$92, MATCH($D$112,'C-Diversion'!$D$88:$D$92,0))","v":2510.7105634264826},{"$f":"'C-Values and Rates'!BS112*INDEX('C-Diversion'!BS$88:BS$92, MATCH($D$112,'C-Diversion'!$D$88:$D$92,0))","v":2512.4419762141929},{"$f":"'C-Values and Rates'!BT112*INDEX('C-Diversion'!BT$88:BT$92, MATCH($D$112,'C-Diversion'!$D$88:$D$92,0))","v":2514.1745830026321},{"$f":"'C-Values and Rates'!BU112*INDEX('C-Diversion'!BU$88:BU$92, MATCH($D$112,'C-Diversion'!$D$88:$D$92,0))","v":2515.9083846151957},{"$f":"'C-Values and Rates'!BV112*INDEX('C-Diversion'!BV$88:BV$92, MATCH($D$112,'C-Diversion'!$D$88:$D$92,0))","v":2517.6433818758464},{"$f":"'C-Values and Rates'!BW112*INDEX('C-Diversion'!BW$88:BW$92, MATCH($D$112,'C-Diversion'!$D$88:$D$92,0))","v":2519.3795756091167},{"$f":"'C-Values and Rates'!BX112*INDEX('C-Diversion'!BX$88:BX$92, MATCH($D$112,'C-Diversion'!$D$88:$D$92,0))","v":0},{"$f":"'C-Values and Rates'!BY112*INDEX('C-Diversion'!BY$88:BY$92, MATCH($D$112,'C-Diversion'!$D$88:$D$92,0))","v":0},{"$f":"'C-Values and Rates'!BZ112*INDEX('C-Diversion'!BZ$88:BZ$92, MATCH($D$112,'C-Diversion'!$D$88:$D$92,0))","v":0},{"$f":"'C-Values and Rates'!CA112*INDEX('C-Diversion'!CA$88:CA$92, MATCH($D$112,'C-Diversion'!$D$88:$D$92,0))","v":0},{"$f":"'C-Values and Rates'!CB112*INDEX('C-Diversion'!CB$88:CB$92, MATCH($D$112,'C-Diversion'!$D$88:$D$92,0))","v":0},{"$f":"'C-Values and Rates'!CC112*INDEX('C-Diversion'!CC$88:CC$92, MATCH($D$112,'C-Diversion'!$D$88:$D$92,0))","v":0},{"$f":"'C-Values and Rates'!CD112*INDEX('C-Diversion'!CD$88:CD$92, MATCH($D$112,'C-Diversion'!$D$88:$D$92,0))","v":0},{"$f":"'C-Values and Rates'!CE112*INDEX('C-Diversion'!CE$88:CE$92, MATCH($D$112,'C-Diversion'!$D$88:$D$92,0))","v":0}]
[null,null,null,"Infrastructure",null,null,null,{"$f":"SUM(K114:CE114)","v":9083.0705049412409},null,"£, 2023 prices",{"$f":"'C-Values and Rates'!K113*INDEX('C-Diversion'!K$88:K$92, MATCH($D$112,'C-Diversion'!$D$88:$D$92,0))","v":0},{"$f":"'C-Values and Rates'!L113*INDEX('C-Diversion'!L$88:L$92, MATCH($D$112,'C-Diversion'!$D$88:$D$92,0))","v":0},{"$f":"'C-Values and Rates'!M113*INDEX('C-Diversion'!M$88:M$92, MATCH($D$112,'C-Diversion'!$D$88:$D$92,0))","v":0},{"$f":"'C-Values and Rates'!N113*INDEX('C-Diversion'!N$88:N$92, MATCH($D$112,'C-Diversion'!$D$88:$D$92,0))","v":0},{"$f":"'C-Values and Rates'!O113*INDEX('C-Diversion'!O$88:O$92, MATCH($D$112,'C-Diversion'!$D$88:$D$92,0))","v":0},{"$f":"'C-Values and Rates'!P113*INDEX('C-Diversion'!P$88:P$92, MATCH($D$112,'C-Diversion'!$D$88:$D$92,0))","v":103.85358476980146},{"$f":"'C-Values and Rates'!Q113*INDEX('C-Diversion'!Q$88:Q$92, MATCH($D$112,'C-Diversion'!$D$88:$D$92,0))","v":105.45392398454632},{"$f":"'C-Values and Rates'!R113*INDEX('C-Diversion'!R$88:R$92, MATCH($D$112,'C-Diversion'!$D$88:$D$92,0))","v":107.07892374045524},{"$f":"'C-Values and Rates'!S113*INDEX('C-Diversion'!S$88:S$92, MATCH($D$112,'C-Diversion'!$D$88:$D$92,0))","v":108.76569547076156},{"$f":"'C-Values and Rates'!T113*INDEX('C-Diversion'!T$88:T$92, MATCH($D$112,'C-Diversion'!$D$88:$D$92,0))","v":110.47903824577747},{"$f":"'C-Values and Rates'!U113*INDEX('C-Diversion'!U$88:U$92, MATCH($D$112,'C-Diversion'!$D$88:$D$92,0))","v":112.21937062861038},{"$f":"'C-Values and Rates'!V113*INDEX('C-Diversion'!V$88:V$92, MATCH($D$112,'C-Diversion'!$D$88:$D$92,0))","v":113.98711777582599},{"$f":"'C-Values and Rates'!W113*INDEX('C-Diversion'!W$88:W$92, MATCH($D$112,'C-Diversion'!$D$88:$D$92,0))","v":115.78271154131251},{"$f":"'C-Values and Rates'!X113*INDEX('C-Diversion'!X$88:X$92, MATCH($D$112,'C-Diversion'!$D$88:$D$92,0))","v":117.81211724896801},{"$f":"'C-Values and Rates'!Y113*INDEX('C-Diversion'!Y$88:Y$92, MATCH($D$112,'C-Diversion'!$D$88:$D$92,0))","v":119.87709378988043},{"$f":"'C-Values and Rates'!Z113*INDEX('C-Diversion'!Z$88:Z$92, MATCH($D$112,'C-Diversion'!$D$88:$D$92,0))","v":121.9782646392739},{"$f":"'C-Values and Rates'!AA113*INDEX('C-Diversion'!AA$88:AA$92, MATCH($D$112,'C-Diversion'!$D$88:$D$92,0))","v":124.11626420046512},{"$f":"'C-Values and Rates'!AB113*INDEX('C-Diversion'!AB$88:AB$92, MATCH($D$112,'C-Diversion'!$D$88:$D$92,0))","v":126.29173799640779},{"$f":"'C-Values and Rates'!AC113*INDEX('C-Diversion'!AC$88:AC$92, MATCH($D$112,'C-Diversion'!$D$88:$D$92,0))","v":128.28637042187634},{"$f":"'C-Values and Rates'!AD113*INDEX('C-Diversion'!AD$88:AD$92, MATCH($D$112,'C-Diversion'!$D$88:$D$92,0))","v":130.31250576729724},{"$f":"'C-Values and Rates'!AE113*INDEX('C-Diversion'!AE$88:AE$92, MATCH($D$112,'C-Diversion'!$D$88:$D$92,0))","v":132.37064158497762},{"$f":"'C-Values and Rates'!AF113*INDEX('C-Diversion'!AF$88:AF$92, MATCH($D$112,'C-Diversion'!$D$88:$D$92,0))","v":134.46128328549003},{"$f":"'C-Values and Rates'!AG113*INDEX('C-Diversion'!AG$88:AG$92, MATCH($D$112,'C-Diversion'!$D$88:$D$92,0))","v":136.58494426178433},{"$f":"'C-Values and Rates'!AH113*INDEX('C-Diversion'!AH$88:AH$92, MATCH($D$112,'C-Diversion'!$D$88:$D$92,0))","v":138.64741830588321},{"$f":"'C-Values and Rates'!AI113*INDEX('C-Diversion'!AI$88:AI$92, MATCH($D$112,'C-Diversion'!$D$88:$D$92,0))","v":140.74103633298517},{"$f":"'C-Values and Rates'!AJ113*INDEX('C-Diversion'!AJ$88:AJ$92, MATCH($D$112,'C-Diversion'!$D$88:$D$92,0))","v":142.86626862667055},{"$f":"'C-Values and Rates'!AK113*INDEX('C-Diversion'!AK$88:AK$92, MATCH($D$112,'C-Diversion'!$D$88:$D$92,0))","v":145.02359257194379},{"$f":"'C-Values and Rates'!AL113*INDEX('C-Diversion'!AL$88:AL$92, MATCH($D$112,'C-Diversion'!$D$88:$D$92,0))","v":147.21349276246778},{"$f":"'C-Values and Rates'!AM113*INDEX('C-Diversion'!AM$88:AM$92, MATCH($D$112,'C-Diversion'!$D$88:$D$92,0))","v":149.32206369437074},{"$f":"'C-Values and Rates'!AN113*INDEX('C-Diversion'!AN$88:AN$92, MATCH($D$112,'C-Diversion'!$D$88:$D$92,0))","v":151.46083614714939},{"$f":"'C-Values and Rates'!AO113*INDEX('C-Diversion'!AO$88:AO$92, MATCH($D$112,'C-Diversion'!$D$88:$D$92,0))","v":153.63024270376778},{"$f":"'C-Values and Rates'!AP113*INDEX('C-Diversion'!AP$88:AP$92, MATCH($D$112,'C-Diversion'!$D$88:$D$92,0))","v":155.83072214316971},{"$f":"'C-Values and Rates'!AQ113*INDEX('C-Diversion'!AQ$88:AQ$92, MATCH($D$112,'C-Diversion'!$D$88:$D$92,0))","v":158.06271952902551},{"$f":"'C-Values and Rates'!AR113*INDEX('C-Diversion'!AR$88:AR$92, MATCH($D$112,'C-Diversion'!$D$88:$D$92,0))","v":160.31990867332911},{"$f":"'C-Values and Rates'!AS113*INDEX('C-Diversion'!AS$88:AS$92, MATCH($D$112,'C-Diversion'!$D$88:$D$92,0))","v":162.60933124274618},{"$f":"'C-Values and Rates'!AT113*INDEX('C-Diversion'!AT$88:AT$92, MATCH($D$112,'C-Diversion'!$D$88:$D$92,0))","v":164.93144754149941},{"$f":"'C-Values and Rates'!AU113*INDEX('C-Diversion'!AU$88:AU$92, MATCH($D$112,'C-Diversion'!$D$88:$D$92,0))","v":167.28672444711148},{"$f":"'C-Values and Rates'!AV113*INDEX('C-Diversion'!AV$88:AV$92, MATCH($D$112,'C-Diversion'!$D$88:$D$92,0))","v":169.67563550427448},{"$f":"'C-Values and Rates'!AW113*INDEX('C-Diversion'!AW$88:AW$92, MATCH($D$112,'C-Diversion'!$D$88:$D$92,0))","v":169.79264563254418},{"$f":"'C-Values and Rates'!AX113*INDEX('C-Diversion'!AX$88:AX$92, MATCH($D$112,'C-Diversion'!$D$88:$D$92,0))","v":169.90973645224659},{"$f":"'C-Values and Rates'!AY113*INDEX('C-Diversion'!AY$88:AY$92, MATCH($D$112,'C-Diversion'!$D$88:$D$92,0))","v":170.02690801902739},{"$f":"'C-Values and Rates'!AZ113*INDEX('C-Diversion'!AZ$88:AZ$92, MATCH($D$112,'C-Diversion'!$D$88:$D$92,0))","v":170.14416038857053},{"$f":"'C-Values and Rates'!BA113*INDEX('C-Diversion'!BA$88:BA$92, MATCH($D$112,'C-Diversion'!$D$88:$D$92,0))","v":170.2614936165985},{"$f":"'C-Values and Rates'!BB113*INDEX('C-Diversion'!BB$88:BB$92, MATCH($D$112,'C-Diversion'!$D$88:$D$92,0))","v":170.37890775887223},{"$f":"'C-Values and Rates'!BC113*INDEX('C-Diversion'!BC$88:BC$92, MATCH($D$112,'C-Diversion'!$D$88:$D$92,0))","v":170.49640287119107},{"$f":"'C-Values and Rates'!BD113*INDEX('C-Diversion'!BD$88:BD$92, MATCH($D$112,'C-Diversion'!$D$88:$D$92,0))","v":170.61397900939266},{"$f":"'C-Values and Rates'!BE113*INDEX('C-Diversion'!BE$88:BE$92, MATCH($D$112,'C-Diversion'!$D$88:$D$92,0))","v":170.73163622935343},{"$f":"'C-Values and Rates'!BF113*INDEX('C-Diversion'!BF$88:BF$92, MATCH($D$112,'C-Diversion'!$D$88:$D$92,0))","v":170.84937458698823},{"$f":"'C-Values and Rates'!BG113*INDEX('C-Diversion'!BG$88:BG$92, MATCH($D$112,'C-Diversion'!$D$88:$D$92,0))","v":170.96719413825039},{"$f":"'C-Values and Rates'!BH113*INDEX('C-Diversion'!BH$88:BH$92, MATCH($D$112,'C-Diversion'!$D$88:$D$92,0))","v":171.08509493913201},{"$f":"'C-Values and Rates'!BI113*INDEX('C-Diversion'!BI$88:BI$92, MATCH($D$112,'C-Diversion'!$D$88:$D$92,0))","v":171.20307704566363},{"$f":"'C-Values and Rates'!BJ113*INDEX('C-Diversion'!BJ$88:BJ$92, MATCH($D$112,'C-Diversion'!$D$88:$D$92,0))","v":171.32114051391443},{"$f":"'C-Values and Rates'!BK113*INDEX('C-Diversion'!BK$88:BK$92, MATCH($D$112,'C-Diversion'!$D$88:$D$92,0))","v":171.43928539999243},{"$f":"'C-Values and Rates'!BL113*INDEX('C-Diversion'!BL$88:BL$92, MATCH($D$112,'C-Diversion'!$D$88:$D$92,0))","v":171.55751176004418},{"$f":"'C-Values and Rates'!BM113*INDEX('C-Diversion'!BM$88:BM$92, MATCH($D$112,'C-Diversion'!$D$88:$D$92,0))","v":171.67581965025499},{"$f":"'C-Values and Rates'!BN113*INDEX('C-Diversion'!BN$88:BN$92, MATCH($D$112,'C-Diversion'!$D$88:$D$92,0))","v":171.79420912684901},{"$f":"'C-Values and Rates'!BO113*INDEX('C-Diversion'!BO$88:BO$92, MATCH($D$112,'C-Diversion'!$D$88:$D$92,0))","v":171.91268024608894},{"$f":"'C-Values and Rates'!BP113*INDEX('C-Diversion'!BP$88:BP$92, MATCH($D$112,'C-Diversion'!$D$88:$D$92,0))","v":172.03123306427659},{"$f":"'C-Values and Rates'!BQ113*INDEX('C-Diversion'!BQ$88:BQ$92, MATCH($D$112,'C-Diversion'!$D$88:$D$92,0))","v":172.14986763775229},{"$f":"'C-Values and Rates'!BR113*INDEX('C-Diversion'!BR$88:BR$92, MATCH($D$112,'C-Diversion'!$D$88:$D$92,0))","v":172.2685840228954},{"$f":"'C-Values and Rates'!BS113*INDEX('C-Diversion'!BS$88:BS$92, MATCH($D$112,'C-Diversion'!$D$88:$D$92,0))","v":172.38738227612413},{"$f":"'C-Values and Rates'!BT113*INDEX('C-Diversion'!BT$88:BT$92, MATCH($D$112,'C-Diversion'!$D$88:$D$92,0))","v":172.50626245389563},{"$f":"'C-Values and Rates'!BU113*INDEX('C-Diversion'!BU$88:BU$92, MATCH($D$112,'C-Diversion'!$D$88:$D$92,0))","v":172.62522461270589},{"$f":"'C-Values and Rates'!BV113*INDEX('C-Diversion'!BV$88:BV$92, MATCH($D$112,'C-Diversion'!$D$88:$D$92,0))","v":172.7442688090899},{"$f":"'C-Values and Rates'!BW113*INDEX('C-Diversion'!BW$88:BW$92, MATCH($D$112,'C-Diversion'!$D$88:$D$92,0))","v":172.86339509962164},{"$f":"'C-Values and Rates'!BX113*INDEX('C-Diversion'!BX$88:BX$92, MATCH($D$112,'C-Diversion'!$D$88:$D$92,0))","v":0},{"$f":"'C-Values and Rates'!BY113*INDEX('C-Diversion'!BY$88:BY$92, MATCH($D$112,'C-Diversion'!$D$88:$D$92,0))","v":0},{"$f":"'C-Values and Rates'!BZ113*INDEX('C-Diversion'!BZ$88:BZ$92, MATCH($D$112,'C-Diversion'!$D$88:$D$92,0))","v":0},{"$f":"'C-Values and Rates'!CA113*INDEX('C-Diversion'!CA$88:CA$92, MATCH($D$112,'C-Diversion'!$D$88:$D$92,0))","v":0},{"$f":"'C-Values and Rates'!CB113*INDEX('C-Diversion'!CB$88:CB$92, MATCH($D$112,'C-Diversion'!$D$88:$D$92,0))","v":0},{"$f":"'C-Values and Rates'!CC113*INDEX('C-Diversion'!CC$88:CC$92, MATCH($D$112,'C-Diversion'!$D$88:$D$92,0))","v":0},{"$f":"'C-Values and Rates'!CD113*INDEX('C-Diversion'!CD$88:CD$92, MATCH($D$112,'C-Diversion'!$D$88:$D$92,0))","v":0},{"$f":"'C-Values and Rates'!CE113*INDEX('C-Diversion'!CE$88:CE$92, MATCH($D$112,'C-Diversion'!$D$88:$D$92,0))","v":0}]
[null,null,null,"Accident",null,null,null,2840.2145457353827,null,"£, 2023 prices",{"$f":"'C-Values and Rates'!K114*INDEX('C-Diversion'!K$88:K$92, MATCH($D$112,'C-Diversion'!$D$88:$D$92,0))","v":0},{"$f":"'C-Values and Rates'!L114*INDEX('C-Diversion'!L$88:L$92, MATCH($D$112,'C-Diversion'!$D$88:$D$92,0))","v":0},{"$f":"'C-Values and Rates'!M114*INDEX('C-Diversion'!M$88:M$92, MATCH($D$112,'C-Diversion'!$D$88:$D$92,0))","v":0},{"$f":"'C-Values and Rates'!N114*INDEX('C-Diversion'!N$88:N$92, MATCH($D$112,'C-Diversion'!$D$88:$D$92,0))","v":0},{"$f":"'C-Values and Rates'!O114*INDEX('C-Diversion'!O$88:O$92, MATCH($D$112,'C-Diversion'!$D$88:$D$92,0))","v":0},{"$f":"'C-Values and Rates'!P114*INDEX('C-Diversion'!P$88:P$92, MATCH($D$112,'C-Diversion'!$D$88:$D$92,0))","v":28.151499637038366},{"$f":"'C-Values and Rates'!Q114*INDEX('C-Diversion'!Q$88:Q$92, MATCH($D$112,'C-Diversion'!$D$88:$D$92,0))","v":28.749967166831375},{"$f":"'C-Values and Rates'!R114*INDEX('C-Diversion'!R$88:R$92, MATCH($D$112,'C-Diversion'!$D$88:$D$92,0))","v":29.36115740727335},{"$f":"'C-Values and Rates'!S114*INDEX('C-Diversion'!S$88:S$92, MATCH($D$112,'C-Diversion'!$D$88:$D$92,0))","v":29.965711497933466},{"$f":"'C-Values and Rates'!T114*INDEX('C-Diversion'!T$88:T$92, MATCH($D$112,'C-Diversion'!$D$88:$D$92,0))","v":30.582713519152463},{"$f":"'C-Values and Rates'!U114*INDEX('C-Diversion'!U$88:U$92, MATCH($D$112,'C-Diversion'!$D$88:$D$92,0))","v":31.212419777152704},{"$f":"'C-Values and Rates'!V114*INDEX('C-Diversion'!V$88:V$92, MATCH($D$112,'C-Diversion'!$D$88:$D$92,0))","v":31.855091855570301},{"$f":"'C-Values and Rates'!W114*INDEX('C-Diversion'!W$88:W$92, MATCH($D$112,'C-Diversion'!$D$88:$D$92,0))","v":32.510996724118449},{"$f":"'C-Values and Rates'!X114*INDEX('C-Diversion'!X$88:X$92, MATCH($D$112,'C-Diversion'!$D$88:$D$92,0))","v":33.222776335130106},{"$f":"'C-Values and Rates'!Y114*INDEX('C-Diversion'!Y$88:Y$92, MATCH($D$112,'C-Diversion'!$D$88:$D$92,0))","v":33.950139295337472},{"$f":"'C-Values and Rates'!Z114*INDEX('C-Diversion'!Z$88:Z$92, MATCH($D$112,'C-Diversion'!$D$88:$D$92,0))","v":34.693426778846096},{"$f":"'C-Values and Rates'!AA114*INDEX('C-Diversion'!AA$88:AA$92, MATCH($D$112,'C-Diversion'!$D$88:$D$92,0))","v":35.452987429257938},{"$f":"'C-Values and Rates'!AB114*INDEX('C-Diversion'!AB$88:AB$92, MATCH($D$112,'C-Diversion'!$D$88:$D$92,0))","v":36.22917752320479},{"$f":"'C-Values and Rates'!AC114*INDEX('C-Diversion'!AC$88:AC$92, MATCH($D$112,'C-Diversion'!$D$88:$D$92,0))","v":37.019757724751315},{"$f":"'C-Values and Rates'!AD114*INDEX('C-Diversion'!AD$88:AD$92, MATCH($D$112,'C-Diversion'!$D$88:$D$92,0))","v":37.827589685730608},{"$f":"'C-Values and Rates'!AE114*INDEX('C-Diversion'!AE$88:AE$92, MATCH($D$112,'C-Diversion'!$D$88:$D$92,0))","v":38.653049867889287},{"$f":"'C-Values and Rates'!AF114*INDEX('C-Diversion'!AF$88:AF$92, MATCH($D$112,'C-Diversion'!$D$88:$D$92,0))","v":39.49652294798809},{"$f":"'C-Values and Rates'!AG114*INDEX('C-Diversion'!AG$88:AG$92, MATCH($D$112,'C-Diversion'!$D$88:$D$92,0))","v":40.358401997066892},{"$f":"'C-Values and Rates'!AH114*INDEX('C-Diversion'!AH$88:AH$92, MATCH($D$112,'C-Diversion'!$D$88:$D$92,0))","v":41.245885483824573},{"$f":"'C-Values and Rates'!AI114*INDEX('C-Diversion'!AI$88:AI$92, MATCH($D$112,'C-Diversion'!$D$88:$D$92,0))","v":42.152884781424397},{"$f":"'C-Values and Rates'!AJ114*INDEX('C-Diversion'!AJ$88:AJ$92, MATCH($D$112,'C-Diversion'!$D$88:$D$92,0))","v":43.079829043623675},{"$f":"'C-Values and Rates'!AK114*INDEX('C-Diversion'!AK$88:AK$92, MATCH($D$112,'C-Diversion'!$D$88:$D$92,0))","v":44.027156861294394},{"$f":"'C-Values and Rates'!AL114*INDEX('C-Diversion'!AL$88:AL$92, MATCH($D$112,'C-Diversion'!$D$88:$D$92,0))","v":44.995316469946076},{"$f":"'C-Values and Rates'!AM114*INDEX('C-Diversion'!AM$88:AM$92, MATCH($D$112,'C-Diversion'!$D$88:$D$92,0))","v":45.952066869525922},{"$f":"'C-Values and Rates'!AN114*INDEX('C-Diversion'!AN$88:AN$92, MATCH($D$112,'C-Diversion'!$D$88:$D$92,0))","v":46.929160971493239},{"$f":"'C-Values and Rates'!AO114*INDEX('C-Diversion'!AO$88:AO$92, MATCH($D$112,'C-Diversion'!$D$88:$D$92,0))","v":47.927031350767329},{"$f":"'C-Values and Rates'!AP114*INDEX('C-Diversion'!AP$88:AP$92, MATCH($D$112,'C-Diversion'!$D$88:$D$92,0))","v":48.946119780251962},{"$f":"'C-Values and Rates'!AQ114*INDEX('C-Diversion'!AQ$88:AQ$92, MATCH($D$112,'C-Diversion'!$D$88:$D$92,0))","v":49.986877426415383},{"$f":"'C-Values and Rates'!AR114*INDEX('C-Diversion'!AR$88:AR$92, MATCH($D$112,'C-Diversion'!$D$88:$D$92,0))","v":51.021775888533455},{"$f":"'C-Values and Rates'!AS114*INDEX('C-Diversion'!AS$88:AS$92, MATCH($D$112,'C-Diversion'!$D$88:$D$92,0))","v":52.078100270453618},{"$f":"'C-Values and Rates'!AT114*INDEX('C-Diversion'!AT$88:AT$92, MATCH($D$112,'C-Diversion'!$D$88:$D$92,0))","v":53.156294161625624},{"$f":"'C-Values and Rates'!AU114*INDEX('C-Diversion'!AU$88:AU$92, MATCH($D$112,'C-Diversion'!$D$88:$D$92,0))","v":54.256810335310263},{"$f":"'C-Values and Rates'!AV114*INDEX('C-Diversion'!AV$88:AV$92, MATCH($D$112,'C-Diversion'!$D$88:$D$92,0))","v":55.380110938715717},{"$f":"'C-Values and Rates'!AW114*INDEX('C-Diversion'!AW$88:AW$92, MATCH($D$112,'C-Diversion'!$D$88:$D$92,0))","v":55.418301653990014},{"$f":"'C-Values and Rates'!AX114*INDEX('C-Diversion'!AX$88:AX$92, MATCH($D$112,'C-Diversion'!$D$88:$D$92,0))","v":55.456518705988984},{"$f":"'C-Values and Rates'!AY114*INDEX('C-Diversion'!AY$88:AY$92, MATCH($D$112,'C-Diversion'!$D$88:$D$92,0))","v":55.49476211287471},{"$f":"'C-Values and Rates'!AZ114*INDEX('C-Diversion'!AZ$88:AZ$92, MATCH($D$112,'C-Diversion'!$D$88:$D$92,0))","v":55.533031892821761},{"$f":"'C-Values and Rates'!BA114*INDEX('C-Diversion'!BA$88:BA$92, MATCH($D$112,'C-Diversion'!$D$88:$D$92,0))","v":55.571328064017329},{"$f":"'C-Values and Rates'!BB114*INDEX('C-Diversion'!BB$88:BB$92, MATCH($D$112,'C-Diversion'!$D$88:$D$92,0))","v":55.609650644661087},{"$f":"'C-Values and Rates'!BC114*INDEX('C-Diversion'!BC$88:BC$92, MATCH($D$112,'C-Diversion'!$D$88:$D$92,0))","v":55.647999652965275},{"$f":"'C-Values and Rates'!BD114*INDEX('C-Diversion'!BD$88:BD$92, MATCH($D$112,'C-Diversion'!$D$88:$D$92,0))","v":55.686375107154674},{"$f":"'C-Values and Rates'!BE114*INDEX('C-Diversion'!BE$88:BE$92, MATCH($D$112,'C-Diversion'!$D$88:$D$92,0))","v":55.724777025466651},{"$f":"'C-Values and Rates'!BF114*INDEX('C-Diversion'!BF$88:BF$92, MATCH($D$112,'C-Diversion'!$D$88:$D$92,0))","v":55.76320542615116},{"$f":"'C-Values and Rates'!BG114*INDEX('C-Diversion'!BG$88:BG$92, MATCH($D$112,'C-Diversion'!$D$88:$D$92,0))","v":55.801660327470714},{"$f":"'C-Values and Rates'!BH114*INDEX('C-Diversion'!BH$88:BH$92, MATCH($D$112,'C-Diversion'!$D$88:$D$92,0))","v":55.84014174770045},{"$f":"'C-Values and Rates'!BI114*INDEX('C-Diversion'!BI$88:BI$92, MATCH($D$112,'C-Diversion'!$D$88:$D$92,0))","v":55.878649705128069},{"$f":"'C-Values and Rates'!BJ114*INDEX('C-Diversion'!BJ$88:BJ$92, MATCH($D$112,'C-Diversion'!$D$88:$D$92,0))","v":55.917184218053904},{"$f":"'C-Values and Rates'!BK114*INDEX('C-Diversion'!BK$88:BK$92, MATCH($D$112,'C-Diversion'!$D$88:$D$92,0))","v":55.955745304790945},{"$f":"'C-Values and Rates'!BL114*INDEX('C-Diversion'!BL$88:BL$92, MATCH($D$112,'C-Diversion'!$D$88:$D$92,0))","v":55.994332983664734},{"$f":"'C-Values and Rates'!BM114*INDEX('C-Diversion'!BM$88:BM$92, MATCH($D$112,'C-Diversion'!$D$88:$D$92,0))","v":56.032947273013519},{"$f":"'C-Values and Rates'!BN114*INDEX('C-Diversion'!BN$88:BN$92, MATCH($D$112,'C-Diversion'!$D$88:$D$92,0))","v":56.07158819118817},{"$f":"'C-Values and Rates'!BO114*INDEX('C-Diversion'!BO$88:BO$92, MATCH($D$112,'C-Diversion'!$D$88:$D$92,0))","v":56.110255756552185},{"$f":"'C-Values and Rates'!BP114*INDEX('C-Diversion'!BP$88:BP$92, MATCH($D$112,'C-Diversion'!$D$88:$D$92,0))","v":56.148949987481792},{"$f":"'C-Values and Rates'!BQ114*INDEX('C-Diversion'!BQ$88:BQ$92, MATCH($D$112,'C-Diversion'!$D$88:$D$92,0))","v":56.187670902365795},{"$f":"'C-Values and Rates'!BR114*INDEX('C-Diversion'!BR$88:BR$92, MATCH($D$112,'C-Diversion'!$D$88:$D$92,0))","v":56.226418519605772},{"$f":"'C-Values and Rates'!BS114*INDEX('C-Diversion'!BS$88:BS$92, MATCH($D$112,'C-Diversion'!$D$88:$D$92,0))","v":56.265192857615943},{"$f":"'C-Values and Rates'!BT114*INDEX('C-Diversion'!BT$88:BT$92, MATCH($D$112,'C-Diversion'!$D$88:$D$92,0))","v":56.303993934823247},{"$f":"'C-Values and Rates'!BU114*INDEX('C-Diversion'!BU$88:BU$92, MATCH($D$112,'C-Diversion'!$D$88:$D$92,0))","v":56.34282176966731},{"$f":"'C-Values and Rates'!BV114*INDEX('C-Diversion'!BV$88:BV$92, MATCH($D$112,'C-Diversion'!$D$88:$D$92,0))","v":56.381676380600474},{"$f":"'C-Values and Rates'!BW114*INDEX('C-Diversion'!BW$88:BW$92, MATCH($D$112,'C-Diversion'!$D$88:$D$92,0))","v":56.420557786087826},{"$f":"'C-Values and Rates'!BX114*INDEX('C-Diversion'!BX$88:BX$92, MATCH($D$112,'C-Diversion'!$D$88:$D$92,0))","v":0},{"$f":"'C-Values and Rates'!BY114*INDEX('C-Diversion'!BY$88:BY$92, MATCH($D$112,'C-Diversion'!$D$88:$D$92,0))","v":0},{"$f":"'C-Values and Rates'!BZ114*INDEX('C-Diversion'!BZ$88:BZ$92, MATCH($D$112,'C-Diversion'!$D$88:$D$92,0))","v":0},{"$f":"'C-Values and Rates'!CA114*INDEX('C-Diversion'!CA$88:CA$92, MATCH($D$112,'C-Diversion'!$D$88:$D$92,0))","v":0},{"$f":"'C-Values and Rates'!CB114*INDEX('C-Diversion'!CB$88:CB$92, MATCH($D$112,'C-Diversion'!$D$88:$D$92,0))","v":0},{"$f":"'C-Values and Rates'!CC114*INDEX('C-Diversion'!CC$88:CC$92, MATCH($D$112,'C-Diversion'!$D$88:$D$92,0))","v":0},{"$f":"'C-Values and Rates'!CD114*INDEX('C-Diversion'!CD$88:CD$92, MATCH($D$112,'C-Diversion'!$D$88:$D$92,0))","v":0},{"$f":"'C-Values and Rates'!CE114*INDEX('C-Diversion'!CE$88:CE$92, MATCH($D$112,'C-Diversion'!$D$88:$D$92,0))","v":0}]
[null,null,null,"Local Air Quality",null,null,null,875.60224287921153,null,"£, 2023 prices",{"$f":"'C-Values and Rates'!K115*INDEX('C-Diversion'!K$88:K$92, MATCH($D$112,'C-Diversion'!$D$88:$D$92,0))","v":0},{"$f":"'C-Values and Rates'!L115*INDEX('C-Diversion'!L$88:L$92, MATCH($D$112,'C-Diversion'!$D$88:$D$92,0))","v":0},{"$f":"'C-Values and Rates'!M115*INDEX('C-Diversion'!M$88:M$92, MATCH($D$112,'C-Diversion'!$D$88:$D$92,0))","v":0},{"$f":"'C-Values and Rates'!N115*INDEX('C-Diversion'!N$88:N$92, MATCH($D$112,'C-Diversion'!$D$88:$D$92,0))","v":0},{"$f":"'C-Values and Rates'!O115*INDEX('C-Diversion'!O$88:O$92, MATCH($D$112,'C-Diversion'!$D$88:$D$92,0))","v":0},{"$f":"'C-Values and Rates'!P115*INDEX('C-Diversion'!P$88:P$92, MATCH($D$112,'C-Diversion'!$D$88:$D$92,0))","v":8.5089454347034827},{"$f":"'C-Values and Rates'!Q115*INDEX('C-Diversion'!Q$88:Q$92, MATCH($D$112,'C-Diversion'!$D$88:$D$92,0))","v":8.6377894870688543},{"$f":"'C-Values and Rates'!R115*INDEX('C-Diversion'!R$88:R$92, MATCH($D$112,'C-Diversion'!$D$88:$D$92,0))","v":8.7685845203116237},{"$f":"'C-Values and Rates'!S115*INDEX('C-Diversion'!S$88:S$92, MATCH($D$112,'C-Diversion'!$D$88:$D$92,0))","v":8.9620658906761417},{"$f":"'C-Values and Rates'!T115*INDEX('C-Diversion'!T$88:T$92, MATCH($D$112,'C-Diversion'!$D$88:$D$92,0))","v":9.1598164838087595},{"$f":"'C-Values and Rates'!U115*INDEX('C-Diversion'!U$88:U$92, MATCH($D$112,'C-Diversion'!$D$88:$D$92,0))","v":9.361930501352818},{"$f":"'C-Values and Rates'!V115*INDEX('C-Diversion'!V$88:V$92, MATCH($D$112,'C-Diversion'!$D$88:$D$92,0))","v":9.5685042235383388},{"$f":"'C-Values and Rates'!W115*INDEX('C-Diversion'!W$88:W$92, MATCH($D$112,'C-Diversion'!$D$88:$D$92,0))","v":9.7796360550466588},{"$f":"'C-Values and Rates'!X115*INDEX('C-Diversion'!X$88:X$92, MATCH($D$112,'C-Diversion'!$D$88:$D$92,0))","v":10.014602185280818},{"$f":"'C-Values and Rates'!Y115*INDEX('C-Diversion'!Y$88:Y$92, MATCH($D$112,'C-Diversion'!$D$88:$D$92,0))","v":10.255213626040488},{"$f":"'C-Values and Rates'!Z115*INDEX('C-Diversion'!Z$88:Z$92, MATCH($D$112,'C-Diversion'!$D$88:$D$92,0))","v":10.501606011899458},{"$f":"'C-Values and Rates'!AA115*INDEX('C-Diversion'!AA$88:AA$92, MATCH($D$112,'C-Diversion'!$D$88:$D$92,0))","v":10.753918236196034},{"$f":"'C-Values and Rates'!AB115*INDEX('C-Diversion'!AB$88:AB$92, MATCH($D$112,'C-Diversion'!$D$88:$D$92,0))","v":11.012292529328311},{"$f":"'C-Values and Rates'!AC115*INDEX('C-Diversion'!AC$88:AC$92, MATCH($D$112,'C-Diversion'!$D$88:$D$92,0))","v":11.268446451845538},{"$f":"'C-Values and Rates'!AD115*INDEX('C-Diversion'!AD$88:AD$92, MATCH($D$112,'C-Diversion'!$D$88:$D$92,0))","v":11.53055870064644},{"$f":"'C-Values and Rates'!AE115*INDEX('C-Diversion'!AE$88:AE$92, MATCH($D$112,'C-Diversion'!$D$88:$D$92,0))","v":11.79876787072793},{"$f":"'C-Values and Rates'!AF115*INDEX('C-Diversion'!AF$88:AF$92, MATCH($D$112,'C-Diversion'!$D$88:$D$92,0))","v":12.073215780907224},{"$f":"'C-Values and Rates'!AG115*INDEX('C-Diversion'!AG$88:AG$92, MATCH($D$112,'C-Diversion'!$D$88:$D$92,0))","v":12.354047548810223},{"$f":"'C-Values and Rates'!AH115*INDEX('C-Diversion'!AH$88:AH$92, MATCH($D$112,'C-Diversion'!$D$88:$D$92,0))","v":12.639147420531071},{"$f":"'C-Values and Rates'!AI115*INDEX('C-Diversion'!AI$88:AI$92, MATCH($D$112,'C-Diversion'!$D$88:$D$92,0))","v":12.930826669296888},{"$f":"'C-Values and Rates'!AJ115*INDEX('C-Diversion'!AJ$88:AJ$92, MATCH($D$112,'C-Diversion'!$D$88:$D$92,0))","v":13.229237130329647},{"$f":"'C-Values and Rates'!AK115*INDEX('C-Diversion'!AK$88:AK$92, MATCH($D$112,'C-Diversion'!$D$88:$D$92,0))","v":13.534534142820487},{"$f":"'C-Values and Rates'!AL115*INDEX('C-Diversion'!AL$88:AL$92, MATCH($D$112,'C-Diversion'!$D$88:$D$92,0))","v":13.846876630792464},{"$f":"'C-Values and Rates'!AM115*INDEX('C-Diversion'!AM$88:AM$92, MATCH($D$112,'C-Diversion'!$D$88:$D$92,0))","v":14.153123793590108},{"$f":"'C-Values and Rates'!AN115*INDEX('C-Diversion'!AN$88:AN$92, MATCH($D$112,'C-Diversion'!$D$88:$D$92,0))","v":14.466144131828118},{"$f":"'C-Values and Rates'!AO115*INDEX('C-Diversion'!AO$88:AO$92, MATCH($D$112,'C-Diversion'!$D$88:$D$92,0))","v":14.786087445769567},{"$f":"'C-Values and Rates'!AP115*INDEX('C-Diversion'!AP$88:AP$92, MATCH($D$112,'C-Diversion'!$D$88:$D$92,0))","v":15.113106848764392},{"$f":"'C-Values and Rates'!AQ115*INDEX('C-Diversion'!AQ$88:AQ$92, MATCH($D$112,'C-Diversion'!$D$88:$D$92,0))","v":15.447358840523986},{"$f":"'C-Values and Rates'!AR115*INDEX('C-Diversion'!AR$88:AR$92, MATCH($D$112,'C-Diversion'!$D$88:$D$92,0))","v":15.781863393681535},{"$f":"'C-Values and Rates'!AS115*INDEX('C-Diversion'!AS$88:AS$92, MATCH($D$112,'C-Diversion'!$D$88:$D$92,0))","v":16.123611469646992},{"$f":"'C-Values and Rates'!AT115*INDEX('C-Diversion'!AT$88:AT$92, MATCH($D$112,'C-Diversion'!$D$88:$D$92,0))","v":16.472759923154236},{"$f":"'C-Values and Rates'!AU115*INDEX('C-Diversion'!AU$88:AU$92, MATCH($D$112,'C-Diversion'!$D$88:$D$92,0))","v":16.829469005545135},{"$f":"'C-Values and Rates'!AV115*INDEX('C-Diversion'!AV$88:AV$92, MATCH($D$112,'C-Diversion'!$D$88:$D$92,0))","v":17.193902438321402},{"$f":"'C-Values and Rates'!AW115*INDEX('C-Diversion'!AW$88:AW$92, MATCH($D$112,'C-Diversion'!$D$88:$D$92,0))","v":17.205759536859947},{"$f":"'C-Values and Rates'!AX115*INDEX('C-Diversion'!AX$88:AX$92, MATCH($D$112,'C-Diversion'!$D$88:$D$92,0))","v":17.217624812180137},{"$f":"'C-Values and Rates'!AY115*INDEX('C-Diversion'!AY$88:AY$92, MATCH($D$112,'C-Diversion'!$D$88:$D$92,0))","v":17.229498269920768},{"$f":"'C-Values and Rates'!AZ115*INDEX('C-Diversion'!AZ$88:AZ$92, MATCH($D$112,'C-Diversion'!$D$88:$D$92,0))","v":17.241379915724508},{"$f":"'C-Values and Rates'!BA115*INDEX('C-Diversion'!BA$88:BA$92, MATCH($D$112,'C-Diversion'!$D$88:$D$92,0))","v":17.253269755237948},{"$f":"'C-Values and Rates'!BB115*INDEX('C-Diversion'!BB$88:BB$92, MATCH($D$112,'C-Diversion'!$D$88:$D$92,0))","v":17.265167794111552},{"$f":"'C-Values and Rates'!BC115*INDEX('C-Diversion'!BC$88:BC$92, MATCH($D$112,'C-Diversion'!$D$88:$D$92,0))","v":17.277074037999693},{"$f":"'C-Values and Rates'!BD115*INDEX('C-Diversion'!BD$88:BD$92, MATCH($D$112,'C-Diversion'!$D$88:$D$92,0))","v":17.288988492560627},{"$f":"'C-Values and Rates'!BE115*INDEX('C-Diversion'!BE$88:BE$92, MATCH($D$112,'C-Diversion'!$D$88:$D$92,0))","v":17.300911163456522},{"$f":"'C-Values and Rates'!BF115*INDEX('C-Diversion'!BF$88:BF$92, MATCH($D$112,'C-Diversion'!$D$88:$D$92,0))","v":17.312842056353457},{"$f":"'C-Values and Rates'!BG115*INDEX('C-Diversion'!BG$88:BG$92, MATCH($D$112,'C-Diversion'!$D$88:$D$92,0))","v":17.324781176921405},{"$f":"'C-Values and Rates'!BH115*INDEX('C-Diversion'!BH$88:BH$92, MATCH($D$112,'C-Diversion'!$D$88:$D$92,0))","v":17.336728530834264},{"$f":"'C-Values and Rates'!BI115*INDEX('C-Diversion'!BI$88:BI$92, MATCH($D$112,'C-Diversion'!$D$88:$D$92,0))","v":17.348684123769825},{"$f":"'C-Values and Rates'!BJ115*INDEX('C-Diversion'!BJ$88:BJ$92, MATCH($D$112,'C-Diversion'!$D$88:$D$92,0))","v":17.360647961409807},{"$f":"'C-Values and Rates'!BK115*INDEX('C-Diversion'!BK$88:BK$92, MATCH($D$112,'C-Diversion'!$D$88:$D$92,0))","v":17.37262004943986},{"$f":"'C-Values and Rates'!BL115*INDEX('C-Diversion'!BL$88:BL$92, MATCH($D$112,'C-Diversion'!$D$88:$D$92,0))","v":17.384600393549526},{"$f":"'C-Values and Rates'!BM115*INDEX('C-Diversion'!BM$88:BM$92, MATCH($D$112,'C-Diversion'!$D$88:$D$92,0))","v":17.396588999432289},{"$f":"'C-Values and Rates'!BN115*INDEX('C-Diversion'!BN$88:BN$92, MATCH($D$112,'C-Diversion'!$D$88:$D$92,0))","v":17.408585872785565},{"$f":"'C-Values and Rates'!BO115*INDEX('C-Diversion'!BO$88:BO$92, MATCH($D$112,'C-Diversion'!$D$88:$D$92,0))","v":17.420591019310677},{"$f":"'C-Values and Rates'!BP115*INDEX('C-Diversion'!BP$88:BP$92, MATCH($D$112,'C-Diversion'!$D$88:$D$92,0))","v":17.432604444712908},{"$f":"'C-Values and Rates'!BQ115*INDEX('C-Diversion'!BQ$88:BQ$92, MATCH($D$112,'C-Diversion'!$D$88:$D$92,0))","v":17.444626154701446},{"$f":"'C-Values and Rates'!BR115*INDEX('C-Diversion'!BR$88:BR$92, MATCH($D$112,'C-Diversion'!$D$88:$D$92,0))","v":17.456656154989432},{"$f":"'C-Values and Rates'!BS115*INDEX('C-Diversion'!BS$88:BS$92, MATCH($D$112,'C-Diversion'!$D$88:$D$92,0))","v":17.468694451293949},{"$f":"'C-Values and Rates'!BT115*INDEX('C-Diversion'!BT$88:BT$92, MATCH($D$112,'C-Diversion'!$D$88:$D$92,0))","v":17.480741049336025},{"$f":"'C-Values and Rates'!BU115*INDEX('C-Diversion'!BU$88:BU$92, MATCH($D$112,'C-Diversion'!$D$88:$D$92,0))","v":17.492795954840616},{"$f":"'C-Values and Rates'!BV115*INDEX('C-Diversion'!BV$88:BV$92, MATCH($D$112,'C-Diversion'!$D$88:$D$92,0))","v":17.504859173536641},{"$f":"'C-Values and Rates'!BW115*INDEX('C-Diversion'!BW$88:BW$92, MATCH($D$112,'C-Diversion'!$D$88:$D$92,0))","v":17.516930711156963},{"$f":"'C-Values and Rates'!BX115*INDEX('C-Diversion'!BX$88:BX$92, MATCH($D$112,'C-Diversion'!$D$88:$D$92,0))","v":0},{"$f":"'C-Values and Rates'!BY115*INDEX('C-Diversion'!BY$88:BY$92, MATCH($D$112,'C-Diversion'!$D$88:$D$92,0))","v":0},{"$f":"'C-Values and Rates'!BZ115*INDEX('C-Diversion'!BZ$88:BZ$92, MATCH($D$112,'C-Diversion'!$D$88:$D$92,0))","v":0},{"$f":"'C-Values and Rates'!CA115*INDEX('C-Diversion'!CA$88:CA$92, MATCH($D$112,'C-Diversion'!$D$88:$D$92,0))","v":0},{"$f":"'C-Values and Rates'!CB115*INDEX('C-Diversion'!CB$88:CB$92, MATCH($D$112,'C-Diversion'!$D$88:$D$92,0))","v":0},{"$f":"'C-Values and Rates'!CC115*INDEX('C-Diversion'!CC$88:CC$92, MATCH($D$112,'C-Diversion'!$D$88:$D$92,0))","v":0},{"$f":"'C-Values and Rates'!CD115*INDEX('C-Diversion'!CD$88:CD$92, MATCH($D$112,'C-Diversion'!$D$88:$D$92,0))","v":0},{"$f":"'C-Values and Rates'!CE115*INDEX('C-Diversion'!CE$88:CE$92, MATCH($D$112,'C-Diversion'!$D$88:$D$92,0))","v":0}]
[null,null,null,"Noise",null,null,null,8875.6704554230637,null,"£, 2023 prices",{"$f":"'C-Values and Rates'!K116*INDEX('C-Diversion'!K$88:K$92, MATCH($D$112,'C-Diversion'!$D$88:$D$92,0))","v":0},{"$f":"'C-Values and Rates'!L116*INDEX('C-Diversion'!L$88:L$92, MATCH($D$112,'C-Diversion'!$D$88:$D$92,0))","v":0},{"$f":"'C-Values and Rates'!M116*INDEX('C-Diversion'!M$88:M$92, MATCH($D$112,'C-Diversion'!$D$88:$D$92,0))","v":0},{"$f":"'C-Values and Rates'!N116*INDEX('C-Diversion'!N$88:N$92, MATCH($D$112,'C-Diversion'!$D$88:$D$92,0))","v":0},{"$f":"'C-Values and Rates'!O116*INDEX('C-Diversion'!O$88:O$92, MATCH($D$112,'C-Diversion'!$D$88:$D$92,0))","v":0},{"$f":"'C-Values and Rates'!P116*INDEX('C-Diversion'!P$88:P$92, MATCH($D$112,'C-Diversion'!$D$88:$D$92,0))","v":87.973436365744902},{"$f":"'C-Values and Rates'!Q116*INDEX('C-Diversion'!Q$88:Q$92, MATCH($D$112,'C-Diversion'!$D$88:$D$92,0))","v":89.843647396348032},{"$f":"'C-Values and Rates'!R116*INDEX('C-Diversion'!R$88:R$92, MATCH($D$112,'C-Diversion'!$D$88:$D$92,0))","v":91.753616897729216},{"$f":"'C-Values and Rates'!S116*INDEX('C-Diversion'!S$88:S$92, MATCH($D$112,'C-Diversion'!$D$88:$D$92,0))","v":93.642848431042083},{"$f":"'C-Values and Rates'!T116*INDEX('C-Diversion'!T$88:T$92, MATCH($D$112,'C-Diversion'!$D$88:$D$92,0))","v":95.570979747351444},{"$f":"'C-Values and Rates'!U116*INDEX('C-Diversion'!U$88:U$92, MATCH($D$112,'C-Diversion'!$D$88:$D$92,0))","v":97.538811803602187},{"$f":"'C-Values and Rates'!V116*INDEX('C-Diversion'!V$88:V$92, MATCH($D$112,'C-Diversion'!$D$88:$D$92,0))","v":99.547162048657171},{"$f":"'C-Values and Rates'!W116*INDEX('C-Diversion'!W$88:W$92, MATCH($D$112,'C-Diversion'!$D$88:$D$92,0))","v":101.59686476287013},{"$f":"'C-Values and Rates'!X116*INDEX('C-Diversion'!X$88:X$92, MATCH($D$112,'C-Diversion'!$D$88:$D$92,0))","v":103.82117604728157},{"$f":"'C-Values and Rates'!Y116*INDEX('C-Diversion'!Y$88:Y$92, MATCH($D$112,'C-Diversion'!$D$88:$D$92,0))","v":106.09418529792958},{"$f":"'C-Values and Rates'!Z116*INDEX('C-Diversion'!Z$88:Z$92, MATCH($D$112,'C-Diversion'!$D$88:$D$92,0))","v":108.41695868389401},{"$f":"'C-Values and Rates'!AA116*INDEX('C-Diversion'!AA$88:AA$92, MATCH($D$112,'C-Diversion'!$D$88:$D$92,0))","v":110.79058571643102},{"$f":"'C-Values and Rates'!AB116*INDEX('C-Diversion'!AB$88:AB$92, MATCH($D$112,'C-Diversion'!$D$88:$D$92,0))","v":113.21617976001497},{"$f":"'C-Values and Rates'!AC116*INDEX('C-Diversion'!AC$88:AC$92, MATCH($D$112,'C-Diversion'!$D$88:$D$92,0))","v":115.68674288984784},{"$f":"'C-Values and Rates'!AD116*INDEX('C-Diversion'!AD$88:AD$92, MATCH($D$112,'C-Diversion'!$D$88:$D$92,0))","v":118.21121776790814},{"$f":"'C-Values and Rates'!AE116*INDEX('C-Diversion'!AE$88:AE$92, MATCH($D$112,'C-Diversion'!$D$88:$D$92,0))","v":120.790780837154},{"$f":"'C-Values and Rates'!AF116*INDEX('C-Diversion'!AF$88:AF$92, MATCH($D$112,'C-Diversion'!$D$88:$D$92,0))","v":123.42663421246277},{"$f":"'C-Values and Rates'!AG116*INDEX('C-Diversion'!AG$88:AG$92, MATCH($D$112,'C-Diversion'!$D$88:$D$92,0))","v":126.12000624083403},{"$f":"'C-Values and Rates'!AH116*INDEX('C-Diversion'!AH$88:AH$92, MATCH($D$112,'C-Diversion'!$D$88:$D$92,0))","v":128.89339213695175},{"$f":"'C-Values and Rates'!AI116*INDEX('C-Diversion'!AI$88:AI$92, MATCH($D$112,'C-Diversion'!$D$88:$D$92,0))","v":131.72776494195122},{"$f":"'C-Values and Rates'!AJ116*INDEX('C-Diversion'!AJ$88:AJ$92, MATCH($D$112,'C-Diversion'!$D$88:$D$92,0))","v":134.62446576132399},{"$f":"'C-Values and Rates'!AK116*INDEX('C-Diversion'!AK$88:AK$92, MATCH($D$112,'C-Diversion'!$D$88:$D$92,0))","v":137.58486519154499},{"$f":"'C-Values and Rates'!AL116*INDEX('C-Diversion'!AL$88:AL$92, MATCH($D$112,'C-Diversion'!$D$88:$D$92,0))","v":140.61036396858148},{"$f":"'C-Values and Rates'!AM116*INDEX('C-Diversion'!AM$88:AM$92, MATCH($D$112,'C-Diversion'!$D$88:$D$92,0))","v":143.60020896726854},{"$f":"'C-Values and Rates'!AN116*INDEX('C-Diversion'!AN$88:AN$92, MATCH($D$112,'C-Diversion'!$D$88:$D$92,0))","v":146.65362803591637},{"$f":"'C-Values and Rates'!AO116*INDEX('C-Diversion'!AO$88:AO$92, MATCH($D$112,'C-Diversion'!$D$88:$D$92,0))","v":149.77197297114787},{"$f":"'C-Values and Rates'!AP116*INDEX('C-Diversion'!AP$88:AP$92, MATCH($D$112,'C-Diversion'!$D$88:$D$92,0))","v":152.95662431328736},{"$f":"'C-Values and Rates'!AQ116*INDEX('C-Diversion'!AQ$88:AQ$92, MATCH($D$112,'C-Diversion'!$D$88:$D$92,0))","v":156.20899195754805},{"$f":"'C-Values and Rates'!AR116*INDEX('C-Diversion'!AR$88:AR$92, MATCH($D$112,'C-Diversion'!$D$88:$D$92,0))","v":159.44304965166702},{"$f":"'C-Values and Rates'!AS116*INDEX('C-Diversion'!AS$88:AS$92, MATCH($D$112,'C-Diversion'!$D$88:$D$92,0))","v":162.74406334516755},{"$f":"'C-Values and Rates'!AT116*INDEX('C-Diversion'!AT$88:AT$92, MATCH($D$112,'C-Diversion'!$D$88:$D$92,0))","v":166.11341925508003},{"$f":"'C-Values and Rates'!AU116*INDEX('C-Diversion'!AU$88:AU$92, MATCH($D$112,'C-Diversion'!$D$88:$D$92,0))","v":169.55253229784455},{"$f":"'C-Values and Rates'!AV116*INDEX('C-Diversion'!AV$88:AV$92, MATCH($D$112,'C-Diversion'!$D$88:$D$92,0))","v":173.06284668348661},{"$f":"'C-Values and Rates'!AW116*INDEX('C-Diversion'!AW$88:AW$92, MATCH($D$112,'C-Diversion'!$D$88:$D$92,0))","v":173.18219266871881},{"$f":"'C-Values and Rates'!AX116*INDEX('C-Diversion'!AX$88:AX$92, MATCH($D$112,'C-Diversion'!$D$88:$D$92,0))","v":173.30162095621557},{"$f":"'C-Values and Rates'!AY116*INDEX('C-Diversion'!AY$88:AY$92, MATCH($D$112,'C-Diversion'!$D$88:$D$92,0))","v":173.42113160273345},{"$f":"'C-Values and Rates'!AZ116*INDEX('C-Diversion'!AZ$88:AZ$92, MATCH($D$112,'C-Diversion'!$D$88:$D$92,0))","v":173.54072466506801},{"$f":"'C-Values and Rates'!BA116*INDEX('C-Diversion'!BA$88:BA$92, MATCH($D$112,'C-Diversion'!$D$88:$D$92,0))","v":173.66040020005414},{"$f":"'C-Values and Rates'!BB116*INDEX('C-Diversion'!BB$88:BB$92, MATCH($D$112,'C-Diversion'!$D$88:$D$92,0))","v":173.7801582645659},{"$f":"'C-Values and Rates'!BC116*INDEX('C-Diversion'!BC$88:BC$92, MATCH($D$112,'C-Diversion'!$D$88:$D$92,0))","v":173.89999891551651},{"$f":"'C-Values and Rates'!BD116*INDEX('C-Diversion'!BD$88:BD$92, MATCH($D$112,'C-Diversion'!$D$88:$D$92,0))","v":174.01992220985835},{"$f":"'C-Values and Rates'!BE116*INDEX('C-Diversion'!BE$88:BE$92, MATCH($D$112,'C-Diversion'!$D$88:$D$92,0))","v":174.13992820458327},{"$f":"'C-Values and Rates'!BF116*INDEX('C-Diversion'!BF$88:BF$92, MATCH($D$112,'C-Diversion'!$D$88:$D$92,0))","v":174.26001695672238},{"$f":"'C-Values and Rates'!BG116*INDEX('C-Diversion'!BG$88:BG$92, MATCH($D$112,'C-Diversion'!$D$88:$D$92,0))","v":174.38018852334599},{"$f":"'C-Values and Rates'!BH116*INDEX('C-Diversion'!BH$88:BH$92, MATCH($D$112,'C-Diversion'!$D$88:$D$92,0))","v":174.50044296156389},{"$f":"'C-Values and Rates'!BI116*INDEX('C-Diversion'!BI$88:BI$92, MATCH($D$112,'C-Diversion'!$D$88:$D$92,0))","v":174.62078032852523},{"$f":"'C-Values and Rates'!BJ116*INDEX('C-Diversion'!BJ$88:BJ$92, MATCH($D$112,'C-Diversion'!$D$88:$D$92,0))","v":174.74120068141846},{"$f":"'C-Values and Rates'!BK116*INDEX('C-Diversion'!BK$88:BK$92, MATCH($D$112,'C-Diversion'!$D$88:$D$92,0))","v":174.8617040774717},{"$f":"'C-Values and Rates'!BL116*INDEX('C-Diversion'!BL$88:BL$92, MATCH($D$112,'C-Diversion'!$D$88:$D$92,0))","v":174.9822905739523},{"$f":"'C-Values and Rates'!BM116*INDEX('C-Diversion'!BM$88:BM$92, MATCH($D$112,'C-Diversion'!$D$88:$D$92,0))","v":175.10296022816723},{"$f":"'C-Values and Rates'!BN116*INDEX('C-Diversion'!BN$88:BN$92, MATCH($D$112,'C-Diversion'!$D$88:$D$92,0))","v":175.22371309746305},{"$f":"'C-Values and Rates'!BO116*INDEX('C-Diversion'!BO$88:BO$92, MATCH($D$112,'C-Diversion'!$D$88:$D$92,0))","v":175.34454923922559},{"$f":"'C-Values and Rates'!BP116*INDEX('C-Diversion'!BP$88:BP$92, MATCH($D$112,'C-Diversion'!$D$88:$D$92,0))","v":175.4654687108806},{"$f":"'C-Values and Rates'!BQ116*INDEX('C-Diversion'!BQ$88:BQ$92, MATCH($D$112,'C-Diversion'!$D$88:$D$92,0))","v":175.58647156989312},{"$f":"'C-Values and Rates'!BR116*INDEX('C-Diversion'!BR$88:BR$92, MATCH($D$112,'C-Diversion'!$D$88:$D$92,0))","v":175.70755787376805},{"$f":"'C-Values and Rates'!BS116*INDEX('C-Diversion'!BS$88:BS$92, MATCH($D$112,'C-Diversion'!$D$88:$D$92,0))","v":175.82872768004981},{"$f":"'C-Values and Rates'!BT116*INDEX('C-Diversion'!BT$88:BT$92, MATCH($D$112,'C-Diversion'!$D$88:$D$92,0))","v":175.94998104632265},{"$f":"'C-Values and Rates'!BU116*INDEX('C-Diversion'!BU$88:BU$92, MATCH($D$112,'C-Diversion'!$D$88:$D$92,0))","v":176.07131803021034},{"$f":"'C-Values and Rates'!BV116*INDEX('C-Diversion'!BV$88:BV$92, MATCH($D$112,'C-Diversion'!$D$88:$D$92,0))","v":176.19273868937648},{"$f":"'C-Values and Rates'!BW116*INDEX('C-Diversion'!BW$88:BW$92, MATCH($D$112,'C-Diversion'!$D$88:$D$92,0))","v":176.31424308152444},{"$f":"'C-Values and Rates'!BX116*INDEX('C-Diversion'!BX$88:BX$92, MATCH($D$112,'C-Diversion'!$D$88:$D$92,0))","v":0},{"$f":"'C-Values and Rates'!BY116*INDEX('C-Diversion'!BY$88:BY$92, MATCH($D$112,'C-Diversion'!$D$88:$D$92,0))","v":0},{"$f":"'C-Values and Rates'!BZ116*INDEX('C-Diversion'!BZ$88:BZ$92, MATCH($D$112,'C-Diversion'!$D$88:$D$92,0))","v":0},{"$f":"'C-Values and Rates'!CA116*INDEX('C-Diversion'!CA$88:CA$92, MATCH($D$112,'C-Diversion'!$D$88:$D$92,0))","v":0},{"$f":"'C-Values and Rates'!CB116*INDEX('C-Diversion'!CB$88:CB$92, MATCH($D$112,'C-Diversion'!$D$88:$D$92,0))","v":0},{"$f":"'C-Values and Rates'!CC116*INDEX('C-Diversion'!CC$88:CC$92, MATCH($D$112,'C-Diversion'!$D$88:$D$92,0))","v":0},{"$f":"'C-Values and Rates'!CD116*INDEX('C-Diversion'!CD$88:CD$92, MATCH($D$112,'C-Diversion'!$D$88:$D$92,0))","v":0},{"$f":"'C-Values and Rates'!CE116*INDEX('C-Diversion'!CE$88:CE$92, MATCH($D$112,'C-Diversion'!$D$88:$D$92,0))","v":0}]
[null,null,null,"Greenhouse Gases",null,null,null,{"$f":"SUM(K118:CE118)","v":11441.725675537535},null,"£, 2023 prices",{"$f":"'C-Values and Rates'!K117*INDEX('C-Diversion'!K$88:K$92, MATCH($D$112,'C-Diversion'!$D$88:$D$92,0))","v":0},{"$f":"'C-Values and Rates'!L117*INDEX('C-Diversion'!L$88:L$92, MATCH($D$112,'C-Diversion'!$D$88:$D$92,0))","v":0},{"$f":"'C-Values and Rates'!M117*INDEX('C-Diversion'!M$88:M$92, MATCH($D$112,'C-Diversion'!$D$88:$D$92,0))","v":0},{"$f":"'C-Values and Rates'!N117*INDEX('C-Diversion'!N$88:N$92, MATCH($D$112,'C-Diversion'!$D$88:$D$92,0))","v":0},{"$f":"'C-Values and Rates'!O117*INDEX('C-Diversion'!O$88:O$92, MATCH($D$112,'C-Diversion'!$D$88:$D$92,0))","v":0},{"$f":"'C-Values and Rates'!P117*INDEX('C-Diversion'!P$88:P$92, MATCH($D$112,'C-Diversion'!$D$88:$D$92,0))","v":158.81478819258183},{"$f":"'C-Values and Rates'!Q117*INDEX('C-Diversion'!Q$88:Q$92, MATCH($D$112,'C-Diversion'!$D$88:$D$92,0))","v":158.08500153152178},{"$f":"'C-Values and Rates'!R117*INDEX('C-Diversion'!R$88:R$92, MATCH($D$112,'C-Diversion'!$D$88:$D$92,0))","v":157.35856839047537},{"$f":"'C-Values and Rates'!S117*INDEX('C-Diversion'!S$88:S$92, MATCH($D$112,'C-Diversion'!$D$88:$D$92,0))","v":155.33804655273113},{"$f":"'C-Values and Rates'!T117*INDEX('C-Diversion'!T$88:T$92, MATCH($D$112,'C-Diversion'!$D$88:$D$92,0))","v":153.34346870099645},{"$f":"'C-Values and Rates'!U117*INDEX('C-Diversion'!U$88:U$92, MATCH($D$112,'C-Diversion'!$D$88:$D$92,0))","v":151.37450170825554},{"$f":"'C-Values and Rates'!V117*INDEX('C-Diversion'!V$88:V$92, MATCH($D$112,'C-Diversion'!$D$88:$D$92,0))","v":149.43081672492357},{"$f":"'C-Values and Rates'!W117*INDEX('C-Diversion'!W$88:W$92, MATCH($D$112,'C-Diversion'!$D$88:$D$92,0))","v":147.51208912392354},{"$f":"'C-Values and Rates'!X117*INDEX('C-Diversion'!X$88:X$92, MATCH($D$112,'C-Diversion'!$D$88:$D$92,0))","v":148.50857652027406},{"$f":"'C-Values and Rates'!Y117*INDEX('C-Diversion'!Y$88:Y$92, MATCH($D$112,'C-Diversion'!$D$88:$D$92,0))","v":149.51179548104756},{"$f":"'C-Values and Rates'!Z117*INDEX('C-Diversion'!Z$88:Z$92, MATCH($D$112,'C-Diversion'!$D$88:$D$92,0))","v":150.52179147993442},{"$f":"'C-Values and Rates'!AA117*INDEX('C-Diversion'!AA$88:AA$92, MATCH($D$112,'C-Diversion'!$D$88:$D$92,0))","v":151.53861029781353},{"$f":"'C-Values and Rates'!AB117*INDEX('C-Diversion'!AB$88:AB$92, MATCH($D$112,'C-Diversion'!$D$88:$D$92,0))","v":152.56229802482693},{"$f":"'C-Values and Rates'!AC117*INDEX('C-Diversion'!AC$88:AC$92, MATCH($D$112,'C-Diversion'!$D$88:$D$92,0))","v":155.02811057891367},{"$f":"'C-Values and Rates'!AD117*INDEX('C-Diversion'!AD$88:AD$92, MATCH($D$112,'C-Diversion'!$D$88:$D$92,0))","v":157.53377722297293},{"$f":"'C-Values and Rates'!AE117*INDEX('C-Diversion'!AE$88:AE$92, MATCH($D$112,'C-Diversion'!$D$88:$D$92,0))","v":160.07994210511106},{"$f":"'C-Values and Rates'!AF117*INDEX('C-Diversion'!AF$88:AF$92, MATCH($D$112,'C-Diversion'!$D$88:$D$92,0))","v":162.66725978458146},{"$f":"'C-Values and Rates'!AG117*INDEX('C-Diversion'!AG$88:AG$92, MATCH($D$112,'C-Diversion'!$D$88:$D$92,0))","v":165.29639540005593},{"$f":"'C-Values and Rates'!AH117*INDEX('C-Diversion'!AH$88:AH$92, MATCH($D$112,'C-Diversion'!$D$88:$D$92,0))","v":168.17840843584722},{"$f":"'C-Values and Rates'!AI117*INDEX('C-Diversion'!AI$88:AI$92, MATCH($D$112,'C-Diversion'!$D$88:$D$92,0))","v":171.11067059605745},{"$f":"'C-Values and Rates'!AJ117*INDEX('C-Diversion'!AJ$88:AJ$92, MATCH($D$112,'C-Diversion'!$D$88:$D$92,0))","v":174.09405799556674},{"$f":"'C-Values and Rates'!AK117*INDEX('C-Diversion'!AK$88:AK$92, MATCH($D$112,'C-Diversion'!$D$88:$D$92,0))","v":177.12946202469081},{"$f":"'C-Values and Rates'!AL117*INDEX('C-Diversion'!AL$88:AL$92, MATCH($D$112,'C-Diversion'!$D$88:$D$92,0))","v":180.21778961551541},{"$f":"'C-Values and Rates'!AM117*INDEX('C-Diversion'!AM$88:AM$92, MATCH($D$112,'C-Diversion'!$D$88:$D$92,0))","v":183.30047243930571},{"$f":"'C-Values and Rates'!AN117*INDEX('C-Diversion'!AN$88:AN$92, MATCH($D$112,'C-Diversion'!$D$88:$D$92,0))","v":186.43588553690716},{"$f":"'C-Values and Rates'!AO117*INDEX('C-Diversion'!AO$88:AO$92, MATCH($D$112,'C-Diversion'!$D$88:$D$92,0))","v":189.62493087648704},{"$f":"'C-Values and Rates'!AP117*INDEX('C-Diversion'!AP$88:AP$92, MATCH($D$112,'C-Diversion'!$D$88:$D$92,0))","v":192.86852585466582},{"$f":"'C-Values and Rates'!AQ117*INDEX('C-Diversion'!AQ$88:AQ$92, MATCH($D$112,'C-Diversion'!$D$88:$D$92,0))","v":196.16760356042599},{"$f":"'C-Values and Rates'!AR117*INDEX('C-Diversion'!AR$88:AR$92, MATCH($D$112,'C-Diversion'!$D$88:$D$92,0))","v":199.42696804558838},{"$f":"'C-Values and Rates'!AS117*INDEX('C-Diversion'!AS$88:AS$92, MATCH($D$112,'C-Diversion'!$D$88:$D$92,0))","v":202.74048753215945},{"$f":"'C-Values and Rates'!AT117*INDEX('C-Diversion'!AT$88:AT$92, MATCH($D$112,'C-Diversion'!$D$88:$D$92,0))","v":206.10906181646175},{"$f":"'C-Values and Rates'!AU117*INDEX('C-Diversion'!AU$88:AU$92, MATCH($D$112,'C-Diversion'!$D$88:$D$92,0))","v":209.53360564511584},{"$f":"'C-Values and Rates'!AV117*INDEX('C-Diversion'!AV$88:AV$92, MATCH($D$112,'C-Diversion'!$D$88:$D$92,0))","v":213.01504896344323},{"$f":"'C-Values and Rates'!AW117*INDEX('C-Diversion'!AW$88:AW$92, MATCH($D$112,'C-Diversion'!$D$88:$D$92,0))","v":213.16194641356043},{"$f":"'C-Values and Rates'!AX117*INDEX('C-Diversion'!AX$88:AX$92, MATCH($D$112,'C-Diversion'!$D$88:$D$92,0))","v":213.30894516572627},{"$f":"'C-Values and Rates'!AY117*INDEX('C-Diversion'!AY$88:AY$92, MATCH($D$112,'C-Diversion'!$D$88:$D$92,0))","v":213.45604528979985},{"$f":"'C-Values and Rates'!AZ117*INDEX('C-Diversion'!AZ$88:AZ$92, MATCH($D$112,'C-Diversion'!$D$88:$D$92,0))","v":213.60324685568804},{"$f":"'C-Values and Rates'!BA117*INDEX('C-Diversion'!BA$88:BA$92, MATCH($D$112,'C-Diversion'!$D$88:$D$92,0))","v":213.75054993334643},{"$f":"'C-Values and Rates'!BB117*INDEX('C-Diversion'!BB$88:BB$92, MATCH($D$112,'C-Diversion'!$D$88:$D$92,0))","v":213.89795459277858},{"$f":"'C-Values and Rates'!BC117*INDEX('C-Diversion'!BC$88:BC$92, MATCH($D$112,'C-Diversion'!$D$88:$D$92,0))","v":214.04546090403636},{"$f":"'C-Values and Rates'!BD117*INDEX('C-Diversion'!BD$88:BD$92, MATCH($D$112,'C-Diversion'!$D$88:$D$92,0))","v":214.19306893721989},{"$f":"'C-Values and Rates'!BE117*INDEX('C-Diversion'!BE$88:BE$92, MATCH($D$112,'C-Diversion'!$D$88:$D$92,0))","v":214.34077876247767},{"$f":"'C-Values and Rates'!BF117*INDEX('C-Diversion'!BF$88:BF$92, MATCH($D$112,'C-Diversion'!$D$88:$D$92,0))","v":214.48859045000674},{"$f":"'C-Values and Rates'!BG117*INDEX('C-Diversion'!BG$88:BG$92, MATCH($D$112,'C-Diversion'!$D$88:$D$92,0))","v":214.63650407005227},{"$f":"'C-Values and Rates'!BH117*INDEX('C-Diversion'!BH$88:BH$92, MATCH($D$112,'C-Diversion'!$D$88:$D$92,0))","v":214.78451969290811},{"$f":"'C-Values and Rates'!BI117*INDEX('C-Diversion'!BI$88:BI$92, MATCH($D$112,'C-Diversion'!$D$88:$D$92,0))","v":214.93263738891642},{"$f":"'C-Values and Rates'!BJ117*INDEX('C-Diversion'!BJ$88:BJ$92, MATCH($D$112,'C-Diversion'!$D$88:$D$92,0))","v":215.08085722846789},{"$f":"'C-Values and Rates'!BK117*INDEX('C-Diversion'!BK$88:BK$92, MATCH($D$112,'C-Diversion'!$D$88:$D$92,0))","v":215.22917928200195},{"$f":"'C-Values and Rates'!BL117*INDEX('C-Diversion'!BL$88:BL$92, MATCH($D$112,'C-Diversion'!$D$88:$D$92,0))","v":215.37760362000631},{"$f":"'C-Values and Rates'!BM117*INDEX('C-Diversion'!BM$88:BM$92, MATCH($D$112,'C-Diversion'!$D$88:$D$92,0))","v":215.52613031301749},{"$f":"'C-Values and Rates'!BN117*INDEX('C-Diversion'!BN$88:BN$92, MATCH($D$112,'C-Diversion'!$D$88:$D$92,0))","v":215.67475943162063},{"$f":"'C-Values and Rates'!BO117*INDEX('C-Diversion'!BO$88:BO$92, MATCH($D$112,'C-Diversion'!$D$88:$D$92,0))","v":215.82349104644942},{"$f":"'C-Values and Rates'!BP117*INDEX('C-Diversion'!BP$88:BP$92, MATCH($D$112,'C-Diversion'!$D$88:$D$92,0))","v":215.97232522818649},{"$f":"'C-Values and Rates'!BQ117*INDEX('C-Diversion'!BQ$88:BQ$92, MATCH($D$112,'C-Diversion'!$D$88:$D$92,0))","v":216.12126204756294},{"$f":"'C-Values and Rates'!BR117*INDEX('C-Diversion'!BR$88:BR$92, MATCH($D$112,'C-Diversion'!$D$88:$D$92,0))","v":216.27030157535881},{"$f":"'C-Values and Rates'!BS117*INDEX('C-Diversion'!BS$88:BS$92, MATCH($D$112,'C-Diversion'!$D$88:$D$92,0))","v":216.41944388240296},{"$f":"'C-Values and Rates'!BT117*INDEX('C-Diversion'!BT$88:BT$92, MATCH($D$112,'C-Diversion'!$D$88:$D$92,0))","v":216.56868903957312},{"$f":"'C-Values and Rates'!BU117*INDEX('C-Diversion'!BU$88:BU$92, MATCH($D$112,'C-Diversion'!$D$88:$D$92,0))","v":216.71803711779572},{"$f":"'C-Values and Rates'!BV117*INDEX('C-Diversion'!BV$88:BV$92, MATCH($D$112,'C-Diversion'!$D$88:$D$92,0))","v":216.86748818804625},{"$f":"'C-Values and Rates'!BW117*INDEX('C-Diversion'!BW$88:BW$92, MATCH($D$112,'C-Diversion'!$D$88:$D$92,0))","v":217.01704232134909},{"$f":"'C-Values and Rates'!BX117*INDEX('C-Diversion'!BX$88:BX$92, MATCH($D$112,'C-Diversion'!$D$88:$D$92,0))","v":0},{"$f":"'C-Values and Rates'!BY117*INDEX('C-Diversion'!BY$88:BY$92, MATCH($D$112,'C-Diversion'!$D$88:$D$92,0))","v":0},{"$f":"'C-Values and Rates'!BZ117*INDEX('C-Diversion'!BZ$88:BZ$92, MATCH($D$112,'C-Diversion'!$D$88:$D$92,0))","v":0},{"$f":"'C-Values and Rates'!CA117*INDEX('C-Diversion'!CA$88:CA$92, MATCH($D$112,'C-Diversion'!$D$88:$D$92,0))","v":0},{"$f":"'C-Values and Rates'!CB117*INDEX('C-Diversion'!CB$88:CB$92, MATCH($D$112,'C-Diversion'!$D$88:$D$92,0))","v":0},{"$f":"'C-Values and Rates'!CC117*INDEX('C-Diversion'!CC$88:CC$92, MATCH($D$112,'C-Diversion'!$D$88:$D$92,0))","v":0},{"$f":"'C-Values and Rates'!CD117*INDEX('C-Diversion'!CD$88:CD$92, MATCH($D$112,'C-Diversion'!$D$88:$D$92,0))","v":0},{"$f":"'C-Values and Rates'!CE117*INDEX('C-Diversion'!CE$88:CE$92, MATCH($D$112,'C-Diversion'!$D$88:$D$92,0))","v":0}]
[null,null,null,"Indirect Taxation",null,null,null,-6179.5071367638675,null,"£, 2023 prices",{"$f":"'C-Values and Rates'!K118*INDEX('C-Diversion'!K$88:K$92, MATCH($D$112,'C-Diversion'!$D$88:$D$92,0))","v":0},{"$f":"'C-Values and Rates'!L118*INDEX('C-Diversion'!L$88:L$92, MATCH($D$112,'C-Diversion'!$D$88:$D$92,0))","v":0},{"$f":"'C-Values and Rates'!M118*INDEX('C-Diversion'!M$88:M$92, MATCH($D$112,'C-Diversion'!$D$88:$D$92,0))","v":0},{"$f":"'C-Values and Rates'!N118*INDEX('C-Diversion'!N$88:N$92, MATCH($D$112,'C-Diversion'!$D$88:$D$92,0))","v":0},{"$f":"'C-Values and Rates'!O118*INDEX('C-Diversion'!O$88:O$92, MATCH($D$112,'C-Diversion'!$D$88:$D$92,0))","v":0},{"$f":"'C-Values and Rates'!P118*INDEX('C-Diversion'!P$88:P$92, MATCH($D$112,'C-Diversion'!$D$88:$D$92,0))","v":-128.45827725606276},{"$f":"'C-Values and Rates'!Q118*INDEX('C-Diversion'!Q$88:Q$92, MATCH($D$112,'C-Diversion'!$D$88:$D$92,0))","v":-126.86456363085517},{"$f":"'C-Values and Rates'!R118*INDEX('C-Diversion'!R$88:R$92, MATCH($D$112,'C-Diversion'!$D$88:$D$92,0))","v":-125.26672064512123},{"$f":"'C-Values and Rates'!S118*INDEX('C-Diversion'!S$88:S$92, MATCH($D$112,'C-Diversion'!$D$88:$D$92,0))","v":-121.69228747558283},{"$f":"'C-Values and Rates'!T118*INDEX('C-Diversion'!T$88:T$92, MATCH($D$112,'C-Diversion'!$D$88:$D$92,0))","v":-118.1136753511922},{"$f":"'C-Values and Rates'!U118*INDEX('C-Diversion'!U$88:U$92, MATCH($D$112,'C-Diversion'!$D$88:$D$92,0))","v":-114.53088063230813},{"$f":"'C-Values and Rates'!V118*INDEX('C-Diversion'!V$88:V$92, MATCH($D$112,'C-Diversion'!$D$88:$D$92,0))","v":-110.94389967647652},{"$f":"'C-Values and Rates'!W118*INDEX('C-Diversion'!W$88:W$92, MATCH($D$112,'C-Diversion'!$D$88:$D$92,0))","v":-107.35272883842826},{"$f":"'C-Values and Rates'!X118*INDEX('C-Diversion'!X$88:X$92, MATCH($D$112,'C-Diversion'!$D$88:$D$92,0))","v":-106.18092650026048},{"$f":"'C-Values and Rates'!Y118*INDEX('C-Diversion'!Y$88:Y$92, MATCH($D$112,'C-Diversion'!$D$88:$D$92,0))","v":-105.00440359980374},{"$f":"'C-Values and Rates'!Z118*INDEX('C-Diversion'!Z$88:Z$92, MATCH($D$112,'C-Diversion'!$D$88:$D$92,0))","v":-103.82314664896776},{"$f":"'C-Values and Rates'!AA118*INDEX('C-Diversion'!AA$88:AA$92, MATCH($D$112,'C-Diversion'!$D$88:$D$92,0))","v":-102.63714212585225},{"$f":"'C-Values and Rates'!AB118*INDEX('C-Diversion'!AB$88:AB$92, MATCH($D$112,'C-Diversion'!$D$88:$D$92,0))","v":-101.44637647466747},{"$f":"'C-Values and Rates'!AC118*INDEX('C-Diversion'!AC$88:AC$92, MATCH($D$112,'C-Diversion'!$D$88:$D$92,0))","v":-101.26732477914651},{"$f":"'C-Values and Rates'!AD118*INDEX('C-Diversion'!AD$88:AD$92, MATCH($D$112,'C-Diversion'!$D$88:$D$92,0))","v":-101.08730997165392},{"$f":"'C-Values and Rates'!AE118*INDEX('C-Diversion'!AE$88:AE$92, MATCH($D$112,'C-Diversion'!$D$88:$D$92,0))","v":-100.90632918318835},{"$f":"'C-Values and Rates'!AF118*INDEX('C-Diversion'!AF$88:AF$92, MATCH($D$112,'C-Diversion'!$D$88:$D$92,0))","v":-100.72437953757283},{"$f":"'C-Values and Rates'!AG118*INDEX('C-Diversion'!AG$88:AG$92, MATCH($D$112,'C-Diversion'!$D$88:$D$92,0))","v":-100.54145815143799},{"$f":"'C-Values and Rates'!AH118*INDEX('C-Diversion'!AH$88:AH$92, MATCH($D$112,'C-Diversion'!$D$88:$D$92,0))","v":-100.48839273163458},{"$f":"'C-Values and Rates'!AI118*INDEX('C-Diversion'!AI$88:AI$92, MATCH($D$112,'C-Diversion'!$D$88:$D$92,0))","v":-100.43473753226623},{"$f":"'C-Values and Rates'!AJ118*INDEX('C-Diversion'!AJ$88:AJ$92, MATCH($D$112,'C-Diversion'!$D$88:$D$92,0))","v":-100.38049045396801},{"$f":"'C-Values and Rates'!AK118*INDEX('C-Diversion'!AK$88:AK$92, MATCH($D$112,'C-Diversion'!$D$88:$D$92,0))","v":-100.32564939142777},{"$f":"'C-Values and Rates'!AL118*INDEX('C-Diversion'!AL$88:AL$92, MATCH($D$112,'C-Diversion'!$D$88:$D$92,0))","v":-100.27021223337155},{"$f":"'C-Values and Rates'!AM118*INDEX('C-Diversion'!AM$88:AM$92, MATCH($D$112,'C-Diversion'!$D$88:$D$92,0))","v":-100.18441981291588},{"$f":"'C-Values and Rates'!AN118*INDEX('C-Diversion'!AN$88:AN$92, MATCH($D$112,'C-Diversion'!$D$88:$D$92,0))","v":-100.09826105597854},{"$f":"'C-Values and Rates'!AO118*INDEX('C-Diversion'!AO$88:AO$92, MATCH($D$112,'C-Diversion'!$D$88:$D$92,0))","v":-100.0117351867075},{"$f":"'C-Values and Rates'!AP118*INDEX('C-Diversion'!AP$88:AP$92, MATCH($D$112,'C-Diversion'!$D$88:$D$92,0))","v":-99.924841427890641},{"$f":"'C-Values and Rates'!AQ118*INDEX('C-Diversion'!AQ$88:AQ$92, MATCH($D$112,'C-Diversion'!$D$88:$D$92,0))","v":-99.83757900095388},{"$f":"'C-Values and Rates'!AR118*INDEX('C-Diversion'!AR$88:AR$92, MATCH($D$112,'C-Diversion'!$D$88:$D$92,0))","v":-99.704034120716031},{"$f":"'C-Values and Rates'!AS118*INDEX('C-Diversion'!AS$88:AS$92, MATCH($D$112,'C-Diversion'!$D$88:$D$92,0))","v":-99.570257573484298},{"$f":"'C-Values and Rates'!AT118*INDEX('C-Diversion'!AT$88:AT$92, MATCH($D$112,'C-Diversion'!$D$88:$D$92,0))","v":-99.436249103247619},{"$f":"'C-Values and Rates'!AU118*INDEX('C-Diversion'!AU$88:AU$92, MATCH($D$112,'C-Diversion'!$D$88:$D$92,0))","v":-99.302008453751881},{"$f":"'C-Values and Rates'!AV118*INDEX('C-Diversion'!AV$88:AV$92, MATCH($D$112,'C-Diversion'!$D$88:$D$92,0))","v":-99.16753536850014},{"$f":"'C-Values and Rates'!AW118*INDEX('C-Diversion'!AW$88:AW$92, MATCH($D$112,'C-Diversion'!$D$88:$D$92,0))","v":-99.235922358766445},{"$f":"'C-Values and Rates'!AX118*INDEX('C-Diversion'!AX$88:AX$92, MATCH($D$112,'C-Diversion'!$D$88:$D$92,0))","v":-99.304356509430761},{"$f":"'C-Values and Rates'!AY118*INDEX('C-Diversion'!AY$88:AY$92, MATCH($D$112,'C-Diversion'!$D$88:$D$92,0))","v":-99.372837853015454},{"$f":"'C-Values and Rates'!AZ118*INDEX('C-Diversion'!AZ$88:AZ$92, MATCH($D$112,'C-Diversion'!$D$88:$D$92,0))","v":-99.441366422065158},{"$f":"'C-Values and Rates'!BA118*INDEX('C-Diversion'!BA$88:BA$92, MATCH($D$112,'C-Diversion'!$D$88:$D$92,0))","v":-99.509942249147144},{"$f":"'C-Values and Rates'!BB118*INDEX('C-Diversion'!BB$88:BB$92, MATCH($D$112,'C-Diversion'!$D$88:$D$92,0))","v":-99.578565366851038},{"$f":"'C-Values and Rates'!BC118*INDEX('C-Diversion'!BC$88:BC$92, MATCH($D$112,'C-Diversion'!$D$88:$D$92,0))","v":-99.64723580778896},{"$f":"'C-Values and Rates'!BD118*INDEX('C-Diversion'!BD$88:BD$92, MATCH($D$112,'C-Diversion'!$D$88:$D$92,0))","v":-99.715953604595484},{"$f":"'C-Values and Rates'!BE118*INDEX('C-Diversion'!BE$88:BE$92, MATCH($D$112,'C-Diversion'!$D$88:$D$92,0))","v":-99.784718789927723},{"$f":"'C-Values and Rates'!BF118*INDEX('C-Diversion'!BF$88:BF$92, MATCH($D$112,'C-Diversion'!$D$88:$D$92,0))","v":-99.853531396465357},{"$f":"'C-Values and Rates'!BG118*INDEX('C-Diversion'!BG$88:BG$92, MATCH($D$112,'C-Diversion'!$D$88:$D$92,0))","v":-99.922391456910503},{"$f":"'C-Values and Rates'!BH118*INDEX('C-Diversion'!BH$88:BH$92, MATCH($D$112,'C-Diversion'!$D$88:$D$92,0))","v":-99.991299003987919},{"$f":"'C-Values and Rates'!BI118*INDEX('C-Diversion'!BI$88:BI$92, MATCH($D$112,'C-Diversion'!$D$88:$D$92,0))","v":-100.06025407044487},{"$f":"'C-Values and Rates'!BJ118*INDEX('C-Diversion'!BJ$88:BJ$92, MATCH($D$112,'C-Diversion'!$D$88:$D$92,0))","v":-100.1292566890512},{"$f":"'C-Values and Rates'!BK118*INDEX('C-Diversion'!BK$88:BK$92, MATCH($D$112,'C-Diversion'!$D$88:$D$92,0))","v":-100.19830689259946},{"$f":"'C-Values and Rates'!BL118*INDEX('C-Diversion'!BL$88:BL$92, MATCH($D$112,'C-Diversion'!$D$88:$D$92,0))","v":-100.26740471390465},{"$f":"'C-Values and Rates'!BM118*INDEX('C-Diversion'!BM$88:BM$92, MATCH($D$112,'C-Diversion'!$D$88:$D$92,0))","v":-100.33655018580453},{"$f":"'C-Values and Rates'!BN118*INDEX('C-Diversion'!BN$88:BN$92, MATCH($D$112,'C-Diversion'!$D$88:$D$92,0))","v":-100.40574334115946},{"$f":"'C-Values and Rates'!BO118*INDEX('C-Diversion'!BO$88:BO$92, MATCH($D$112,'C-Diversion'!$D$88:$D$92,0))","v":-100.47498421285242},{"$f":"'C-Values and Rates'!BP118*INDEX('C-Diversion'!BP$88:BP$92, MATCH($D$112,'C-Diversion'!$D$88:$D$92,0))","v":-100.54427283378919},{"$f":"'C-Values and Rates'!BQ118*INDEX('C-Diversion'!BQ$88:BQ$92, MATCH($D$112,'C-Diversion'!$D$88:$D$92,0))","v":-100.61360923689806},{"$f":"'C-Values and Rates'!BR118*INDEX('C-Diversion'!BR$88:BR$92, MATCH($D$112,'C-Diversion'!$D$88:$D$92,0))","v":-100.68299345513016},{"$f":"'C-Values and Rates'!BS118*INDEX('C-Diversion'!BS$88:BS$92, MATCH($D$112,'C-Diversion'!$D$88:$D$92,0))","v":-100.75242552145933},{"$f":"'C-Values and Rates'!BT118*INDEX('C-Diversion'!BT$88:BT$92, MATCH($D$112,'C-Diversion'!$D$88:$D$92,0))","v":-100.82190546888214},{"$f":"'C-Values and Rates'!BU118*INDEX('C-Diversion'!BU$88:BU$92, MATCH($D$112,'C-Diversion'!$D$88:$D$92,0))","v":-100.89143333041788},{"$f":"'C-Values and Rates'!BV118*INDEX('C-Diversion'!BV$88:BV$92, MATCH($D$112,'C-Diversion'!$D$88:$D$92,0))","v":-100.96100913910861},{"$f":"'C-Values and Rates'!BW118*INDEX('C-Diversion'!BW$88:BW$92, MATCH($D$112,'C-Diversion'!$D$88:$D$92,0))","v":-101.03063292801923},{"$f":"'C-Values and Rates'!BX118*INDEX('C-Diversion'!BX$88:BX$92, MATCH($D$112,'C-Diversion'!$D$88:$D$92,0))","v":0},{"$f":"'C-Values and Rates'!BY118*INDEX('C-Diversion'!BY$88:BY$92, MATCH($D$112,'C-Diversion'!$D$88:$D$92,0))","v":0},{"$f":"'C-Values and Rates'!BZ118*INDEX('C-Diversion'!BZ$88:BZ$92, MATCH($D$112,'C-Diversion'!$D$88:$D$92,0))","v":0},{"$f":"'C-Values and Rates'!CA118*INDEX('C-Diversion'!CA$88:CA$92, MATCH($D$112,'C-Diversion'!$D$88:$D$92,0))","v":0},{"$f":"'C-Values and Rates'!CB118*INDEX('C-Diversion'!CB$88:CB$92, MATCH($D$112,'C-Diversion'!$D$88:$D$92,0))","v":0},{"$f":"'C-Values and Rates'!CC118*INDEX('C-Diversion'!CC$88:CC$92, MATCH($D$112,'C-Diversion'!$D$88:$D$92,0))","v":0},{"$f":"'C-Values and Rates'!CD118*INDEX('C-Diversion'!CD$88:CD$92, MATCH($D$112,'C-Diversion'!$D$88:$D$92,0))","v":0},{"$f":"'C-Values and Rates'!CE118*INDEX('C-Diversion'!CE$88:CE$92, MATCH($D$112,'C-Diversion'!$D$88:$D$92,0))","v":0}]
[]
[null,null,null,"PSV"]
[null,null,null,"Congestion",null,null,null,{"$f":"SUM(K122:CE122)","v":584483.86877003417},null,"£, 2023 prices",{"$f":"'C-Values and Rates'!K121*INDEX('C-Diversion'!K$88:K$92, MATCH($D$121,'C-Diversion'!$D$88:$D$92,0))","v":0},{"$f":"'C-Values and Rates'!L121*INDEX('C-Diversion'!L$88:L$92, MATCH($D$121,'C-Diversion'!$D$88:$D$92,0))","v":0},{"$f":"'C-Values and Rates'!M121*INDEX('C-Diversion'!M$88:M$92, MATCH($D$121,'C-Diversion'!$D$88:$D$92,0))","v":0},{"$f":"'C-Values and Rates'!N121*INDEX('C-Diversion'!N$88:N$92, MATCH($D$121,'C-Diversion'!$D$88:$D$92,0))","v":0},{"$f":"'C-Values and Rates'!O121*INDEX('C-Diversion'!O$88:O$92, MATCH($D$121,'C-Diversion'!$D$88:$D$92,0))","v":0},{"$f":"'C-Values and Rates'!P121*INDEX('C-Diversion'!P$88:P$92, MATCH($D$121,'C-Diversion'!$D$88:$D$92,0))","v":7857.3648532608067},{"$f":"'C-Values and Rates'!Q121*INDEX('C-Diversion'!Q$88:Q$92, MATCH($D$121,'C-Diversion'!$D$88:$D$92,0))","v":7918.1664533626881},{"$f":"'C-Values and Rates'!R121*INDEX('C-Diversion'!R$88:R$92, MATCH($D$121,'C-Diversion'!$D$88:$D$92,0))","v":7979.4385463898689},{"$f":"'C-Values and Rates'!S121*INDEX('C-Diversion'!S$88:S$92, MATCH($D$121,'C-Diversion'!$D$88:$D$92,0))","v":7968.5063770402849},{"$f":"'C-Values and Rates'!T121*INDEX('C-Diversion'!T$88:T$92, MATCH($D$121,'C-Diversion'!$D$88:$D$92,0))","v":7957.5891852265286},{"$f":"'C-Values and Rates'!U121*INDEX('C-Diversion'!U$88:U$92, MATCH($D$121,'C-Diversion'!$D$88:$D$92,0))","v":7946.6869504287351},{"$f":"'C-Values and Rates'!V121*INDEX('C-Diversion'!V$88:V$92, MATCH($D$121,'C-Diversion'!$D$88:$D$92,0))","v":7935.7996521551604},{"$f":"'C-Values and Rates'!W121*INDEX('C-Diversion'!W$88:W$92, MATCH($D$121,'C-Diversion'!$D$88:$D$92,0))","v":7924.9272699421335},{"$f":"'C-Values and Rates'!X121*INDEX('C-Diversion'!X$88:X$92, MATCH($D$121,'C-Diversion'!$D$88:$D$92,0))","v":8058.2920865272035},{"$f":"'C-Values and Rates'!Y121*INDEX('C-Diversion'!Y$88:Y$92, MATCH($D$121,'C-Diversion'!$D$88:$D$92,0))","v":8193.9012359240405},{"$f":"'C-Values and Rates'!Z121*INDEX('C-Diversion'!Z$88:Z$92, MATCH($D$121,'C-Diversion'!$D$88:$D$92,0))","v":8331.7924869377784},{"$f":"'C-Values and Rates'!AA121*INDEX('C-Diversion'!AA$88:AA$92, MATCH($D$121,'C-Diversion'!$D$88:$D$92,0))","v":8472.0042439667413},{"$f":"'C-Values and Rates'!AB121*INDEX('C-Diversion'!AB$88:AB$92, MATCH($D$121,'C-Diversion'!$D$88:$D$92,0))","v":8614.5755576985375},{"$f":"'C-Values and Rates'!AC121*INDEX('C-Diversion'!AC$88:AC$92, MATCH($D$121,'C-Diversion'!$D$88:$D$92,0))","v":8660.1066574141078},{"$f":"'C-Values and Rates'!AD121*INDEX('C-Diversion'!AD$88:AD$92, MATCH($D$121,'C-Diversion'!$D$88:$D$92,0))","v":8705.8784052065821},{"$f":"'C-Values and Rates'!AE121*INDEX('C-Diversion'!AE$88:AE$92, MATCH($D$121,'C-Diversion'!$D$88:$D$92,0))","v":8751.8920729867514},{"$f":"'C-Values and Rates'!AF121*INDEX('C-Diversion'!AF$88:AF$92, MATCH($D$121,'C-Diversion'!$D$88:$D$92,0))","v":8798.1489393879001},{"$f":"'C-Values and Rates'!AG121*INDEX('C-Diversion'!AG$88:AG$92, MATCH($D$121,'C-Diversion'!$D$88:$D$92,0))","v":8844.6502898013532},{"$f":"'C-Values and Rates'!AH121*INDEX('C-Diversion'!AH$88:AH$92, MATCH($D$121,'C-Diversion'!$D$88:$D$92,0))","v":8917.5843335021018},{"$f":"'C-Values and Rates'!AI121*INDEX('C-Diversion'!AI$88:AI$92, MATCH($D$121,'C-Diversion'!$D$88:$D$92,0))","v":8991.1198000467411},{"$f":"'C-Values and Rates'!AJ121*INDEX('C-Diversion'!AJ$88:AJ$92, MATCH($D$121,'C-Diversion'!$D$88:$D$92,0))","v":9065.2616488399508},{"$f":"'C-Values and Rates'!AK121*INDEX('C-Diversion'!AK$88:AK$92, MATCH($D$121,'C-Diversion'!$D$88:$D$92,0))","v":9140.0148801822415},{"$f":"'C-Values and Rates'!AL121*INDEX('C-Diversion'!AL$88:AL$92, MATCH($D$121,'C-Diversion'!$D$88:$D$92,0))","v":9215.3845356072125},{"$f":"'C-Values and Rates'!AM121*INDEX('C-Diversion'!AM$88:AM$92, MATCH($D$121,'C-Diversion'!$D$88:$D$92,0))","v":9357.4880825628334},{"$f":"'C-Values and Rates'!AN121*INDEX('C-Diversion'!AN$88:AN$92, MATCH($D$121,'C-Diversion'!$D$88:$D$92,0))","v":9501.7829019476558},{"$f":"'C-Values and Rates'!AO121*INDEX('C-Diversion'!AO$88:AO$92, MATCH($D$121,'C-Diversion'!$D$88:$D$92,0))","v":9648.3027837335831},{"$f":"'C-Values and Rates'!AP121*INDEX('C-Diversion'!AP$88:AP$92, MATCH($D$121,'C-Diversion'!$D$88:$D$92,0))","v":9797.0820389423825},{"$f":"'C-Values and Rates'!AQ121*INDEX('C-Diversion'!AQ$88:AQ$92, MATCH($D$121,'C-Diversion'!$D$88:$D$92,0))","v":9948.1555076804052},{"$f":"'C-Values and Rates'!AR121*INDEX('C-Diversion'!AR$88:AR$92, MATCH($D$121,'C-Diversion'!$D$88:$D$92,0))","v":10101.144214628912},{"$f":"'C-Values and Rates'!AS121*INDEX('C-Diversion'!AS$88:AS$92, MATCH($D$121,'C-Diversion'!$D$88:$D$92,0))","v":10256.485673746973},{"$f":"'C-Values and Rates'!AT121*INDEX('C-Diversion'!AT$88:AT$92, MATCH($D$121,'C-Diversion'!$D$88:$D$92,0))","v":10414.216067069734},{"$f":"'C-Values and Rates'!AU121*INDEX('C-Diversion'!AU$88:AU$92, MATCH($D$121,'C-Diversion'!$D$88:$D$92,0))","v":10574.372133061393},{"$f":"'C-Values and Rates'!AV121*INDEX('C-Diversion'!AV$88:AV$92, MATCH($D$121,'C-Diversion'!$D$88:$D$92,0))","v":10736.991175172307},{"$f":"'C-Values and Rates'!AW121*INDEX('C-Diversion'!AW$88:AW$92, MATCH($D$121,'C-Diversion'!$D$88:$D$92,0))","v":10736.991175172307},{"$f":"'C-Values and Rates'!AX121*INDEX('C-Diversion'!AX$88:AX$92, MATCH($D$121,'C-Diversion'!$D$88:$D$92,0))","v":10736.991175172307},{"$f":"'C-Values and Rates'!AY121*INDEX('C-Diversion'!AY$88:AY$92, MATCH($D$121,'C-Diversion'!$D$88:$D$92,0))","v":10736.991175172307},{"$f":"'C-Values and Rates'!AZ121*INDEX('C-Diversion'!AZ$88:AZ$92, MATCH($D$121,'C-Diversion'!$D$88:$D$92,0))","v":10736.991175172307},{"$f":"'C-Values and Rates'!BA121*INDEX('C-Diversion'!BA$88:BA$92, MATCH($D$121,'C-Diversion'!$D$88:$D$92,0))","v":10736.991175172307},{"$f":"'C-Values and Rates'!BB121*INDEX('C-Diversion'!BB$88:BB$92, MATCH($D$121,'C-Diversion'!$D$88:$D$92,0))","v":10736.991175172307},{"$f":"'C-Values and Rates'!BC121*INDEX('C-Diversion'!BC$88:BC$92, MATCH($D$121,'C-Diversion'!$D$88:$D$92,0))","v":10736.991175172307},{"$f":"'C-Values and Rates'!BD121*INDEX('C-Diversion'!BD$88:BD$92, MATCH($D$121,'C-Diversion'!$D$88:$D$92,0))","v":10736.991175172307},{"$f":"'C-Values and Rates'!BE121*INDEX('C-Diversion'!BE$88:BE$92, MATCH($D$121,'C-Diversion'!$D$88:$D$92,0))","v":10736.991175172307},{"$f":"'C-Values and Rates'!BF121*INDEX('C-Diversion'!BF$88:BF$92, MATCH($D$121,'C-Diversion'!$D$88:$D$92,0))","v":10736.991175172307},{"$f":"'C-Values and Rates'!BG121*INDEX('C-Diversion'!BG$88:BG$92, MATCH($D$121,'C-Diversion'!$D$88:$D$92,0))","v":10736.991175172307},{"$f":"'C-Values and Rates'!BH121*INDEX('C-Diversion'!BH$88:BH$92, MATCH($D$121,'C-Diversion'!$D$88:$D$92,0))","v":10736.991175172307},{"$f":"'C-Values and Rates'!BI121*INDEX('C-Diversion'!BI$88:BI$92, MATCH($D$121,'C-Diversion'!$D$88:$D$92,0))","v":10736.991175172307},{"$f":"'C-Values and Rates'!BJ121*INDEX('C-Diversion'!BJ$88:BJ$92, MATCH($D$121,'C-Diversion'!$D$88:$D$92,0))","v":10736.991175172307},{"$f":"'C-Values and Rates'!BK121*INDEX('C-Diversion'!BK$88:BK$92, MATCH($D$121,'C-Diversion'!$D$88:$D$92,0))","v":10736.991175172307},{"$f":"'C-Values and Rates'!BL121*INDEX('C-Diversion'!BL$88:BL$92, MATCH($D$121,'C-Diversion'!$D$88:$D$92,0))","v":10736.991175172307},{"$f":"'C-Values and Rates'!BM121*INDEX('C-Diversion'!BM$88:BM$92, MATCH($D$121,'C-Diversion'!$D$88:$D$92,0))","v":10736.991175172307},{"$f":"'C-Values and Rates'!BN121*INDEX('C-Diversion'!BN$88:BN$92, MATCH($D$121,'C-Diversion'!$D$88:$D$92,0))","v":10736.991175172307},{"$f":"'C-Values and Rates'!BO121*INDEX('C-Diversion'!BO$88:BO$92, MATCH($D$121,'C-Diversion'!$D$88:$D$92,0))","v":10736.991175172307},{"$f":"'C-Values and Rates'!BP121*INDEX('C-Diversion'!BP$88:BP$92, MATCH($D$121,'C-Diversion'!$D$88:$D$92,0))","v":10736.991175172307},{"$f":"'C-Values and Rates'!BQ121*INDEX('C-Diversion'!BQ$88:BQ$92, MATCH($D$121,'C-Diversion'!$D$88:$D$92,0))","v":10736.991175172307},{"$f":"'C-Values and Rates'!BR121*INDEX('C-Diversion'!BR$88:BR$92, MATCH($D$121,'C-Diversion'!$D$88:$D$92,0))","v":10736.991175172307},{"$f":"'C-Values and Rates'!BS121*INDEX('C-Diversion'!BS$88:BS$92, MATCH($D$121,'C-Diversion'!$D$88:$D$92,0))","v":10736.991175172307},{"$f":"'C-Values and Rates'!BT121*INDEX('C-Diversion'!BT$88:BT$92, MATCH($D$121,'C-Diversion'!$D$88:$D$92,0))","v":10736.991175172307},{"$f":"'C-Values and Rates'!BU121*INDEX('C-Diversion'!BU$88:BU$92, MATCH($D$121,'C-Diversion'!$D$88:$D$92,0))","v":10736.991175172307},{"$f":"'C-Values and Rates'!BV121*INDEX('C-Diversion'!BV$88:BV$92, MATCH($D$121,'C-Diversion'!$D$88:$D$92,0))","v":10736.991175172307},{"$f":"'C-Values and Rates'!BW121*INDEX('C-Diversion'!BW$88:BW$92, MATCH($D$121,'C-Diversion'!$D$88:$D$92,0))","v":10736.991175172307},{"$f":"'C-Values and Rates'!BX121*INDEX('C-Diversion'!BX$88:BX$92, MATCH($D$121,'C-Diversion'!$D$88:$D$92,0))","v":0},{"$f":"'C-Values and Rates'!BY121*INDEX('C-Diversion'!BY$88:BY$92, MATCH($D$121,'C-Diversion'!$D$88:$D$92,0))","v":0},{"$f":"'C-Values and Rates'!BZ121*INDEX('C-Diversion'!BZ$88:BZ$92, MATCH($D$121,'C-Diversion'!$D$88:$D$92,0))","v":0},{"$f":"'C-Values and Rates'!CA121*INDEX('C-Diversion'!CA$88:CA$92, MATCH($D$121,'C-Diversion'!$D$88:$D$92,0))","v":0},{"$f":"'C-Values and Rates'!CB121*INDEX('C-Diversion'!CB$88:CB$92, MATCH($D$121,'C-Diversion'!$D$88:$D$92,0))","v":0},{"$f":"'C-Values and Rates'!CC121*INDEX('C-Diversion'!CC$88:CC$92, MATCH($D$121,'C-Diversion'!$D$88:$D$92,0))","v":0},{"$f":"'C-Values and Rates'!CD121*INDEX('C-Diversion'!CD$88:CD$92, MATCH($D$121,'C-Diversion'!$D$88:$D$92,0))","v":0},{"$f":"'C-Values and Rates'!CE121*INDEX('C-Diversion'!CE$88:CE$92, MATCH($D$121,'C-Diversion'!$D$88:$D$92,0))","v":0}]
[null,null,null,"Infrastructure",null,null,null,{"$f":"SUM(K123:CE123)","v":0},null,"£, 2023 prices",{"$f":"'C-Values and Rates'!K122*INDEX('C-Diversion'!K$88:K$92, MATCH($D$121,'C-Diversion'!$D$88:$D$92,0))","v":0},{"$f":"'C-Values and Rates'!L122*INDEX('C-Diversion'!L$88:L$92, MATCH($D$121,'C-Diversion'!$D$88:$D$92,0))","v":0},{"$f":"'C-Values and Rates'!M122*INDEX('C-Diversion'!M$88:M$92, MATCH($D$121,'C-Diversion'!$D$88:$D$92,0))","v":0},{"$f":"'C-Values and Rates'!N122*INDEX('C-Diversion'!N$88:N$92, MATCH($D$121,'C-Diversion'!$D$88:$D$92,0))","v":0},{"$f":"'C-Values and Rates'!O122*INDEX('C-Diversion'!O$88:O$92, MATCH($D$121,'C-Diversion'!$D$88:$D$92,0))","v":0},{"$f":"'C-Values and Rates'!P122*INDEX('C-Diversion'!P$88:P$92, MATCH($D$121,'C-Diversion'!$D$88:$D$92,0))","v":0},{"$f":"'C-Values and Rates'!Q122*INDEX('C-Diversion'!Q$88:Q$92, MATCH($D$121,'C-Diversion'!$D$88:$D$92,0))","v":0},{"$f":"'C-Values and Rates'!R122*INDEX('C-Diversion'!R$88:R$92, MATCH($D$121,'C-Diversion'!$D$88:$D$92,0))","v":0},{"$f":"'C-Values and Rates'!S122*INDEX('C-Diversion'!S$88:S$92, MATCH($D$121,'C-Diversion'!$D$88:$D$92,0))","v":0},{"$f":"'C-Values and Rates'!T122*INDEX('C-Diversion'!T$88:T$92, MATCH($D$121,'C-Diversion'!$D$88:$D$92,0))","v":0},{"$f":"'C-Values and Rates'!U122*INDEX('C-Diversion'!U$88:U$92, MATCH($D$121,'C-Diversion'!$D$88:$D$92,0))","v":0},{"$f":"'C-Values and Rates'!V122*INDEX('C-Diversion'!V$88:V$92, MATCH($D$121,'C-Diversion'!$D$88:$D$92,0))","v":0},{"$f":"'C-Values and Rates'!W122*INDEX('C-Diversion'!W$88:W$92, MATCH($D$121,'C-Diversion'!$D$88:$D$92,0))","v":0},{"$f":"'C-Values and Rates'!X122*INDEX('C-Diversion'!X$88:X$92, MATCH($D$121,'C-Diversion'!$D$88:$D$92,0))","v":0},{"$f":"'C-Values and Rates'!Y122*INDEX('C-Diversion'!Y$88:Y$92, MATCH($D$121,'C-Diversion'!$D$88:$D$92,0))","v":0},{"$f":"'C-Values and Rates'!Z122*INDEX('C-Diversion'!Z$88:Z$92, MATCH($D$121,'C-Diversion'!$D$88:$D$92,0))","v":0},{"$f":"'C-Values and Rates'!AA122*INDEX('C-Diversion'!AA$88:AA$92, MATCH($D$121,'C-Diversion'!$D$88:$D$92,0))","v":0},{"$f":"'C-Values and Rates'!AB122*INDEX('C-Diversion'!AB$88:AB$92, MATCH($D$121,'C-Diversion'!$D$88:$D$92,0))","v":0},{"$f":"'C-Values and Rates'!AC122*INDEX('C-Diversion'!AC$88:AC$92, MATCH($D$121,'C-Diversion'!$D$88:$D$92,0))","v":0},{"$f":"'C-Values and Rates'!AD122*INDEX('C-Diversion'!AD$88:AD$92, MATCH($D$121,'C-Diversion'!$D$88:$D$92,0))","v":0},{"$f":"'C-Values and Rates'!AE122*INDEX('C-Diversion'!AE$88:AE$92, MATCH($D$121,'C-Diversion'!$D$88:$D$92,0))","v":0},{"$f":"'C-Values and Rates'!AF122*INDEX('C-Diversion'!AF$88:AF$92, MATCH($D$121,'C-Diversion'!$D$88:$D$92,0))","v":0},{"$f":"'C-Values and Rates'!AG122*INDEX('C-Diversion'!AG$88:AG$92, MATCH($D$121,'C-Diversion'!$D$88:$D$92,0))","v":0},{"$f":"'C-Values and Rates'!AH122*INDEX('C-Diversion'!AH$88:AH$92, MATCH($D$121,'C-Diversion'!$D$88:$D$92,0))","v":0},{"$f":"'C-Values and Rates'!AI122*INDEX('C-Diversion'!AI$88:AI$92, MATCH($D$121,'C-Diversion'!$D$88:$D$92,0))","v":0},{"$f":"'C-Values and Rates'!AJ122*INDEX('C-Diversion'!AJ$88:AJ$92, MATCH($D$121,'C-Diversion'!$D$88:$D$92,0))","v":0},{"$f":"'C-Values and Rates'!AK122*INDEX('C-Diversion'!AK$88:AK$92, MATCH($D$121,'C-Diversion'!$D$88:$D$92,0))","v":0},{"$f":"'C-Values and Rates'!AL122*INDEX('C-Diversion'!AL$88:AL$92, MATCH($D$121,'C-Diversion'!$D$88:$D$92,0))","v":0},{"$f":"'C-Values and Rates'!AM122*INDEX('C-Diversion'!AM$88:AM$92, MATCH($D$121,'C-Diversion'!$D$88:$D$92,0))","v":0},{"$f":"'C-Values and Rates'!AN122*INDEX('C-Diversion'!AN$88:AN$92, MATCH($D$121,'C-Diversion'!$D$88:$D$92,0))","v":0},{"$f":"'C-Values and Rates'!AO122*INDEX('C-Diversion'!AO$88:AO$92, MATCH($D$121,'C-Diversion'!$D$88:$D$92,0))","v":0},{"$f":"'C-Values and Rates'!AP122*INDEX('C-Diversion'!AP$88:AP$92, MATCH($D$121,'C-Diversion'!$D$88:$D$92,0))","v":0},{"$f":"'C-Values and Rates'!AQ122*INDEX('C-Diversion'!AQ$88:AQ$92, MATCH($D$121,'C-Diversion'!$D$88:$D$92,0))","v":0},{"$f":"'C-Values and Rates'!AR122*INDEX('C-Diversion'!AR$88:AR$92, MATCH($D$121,'C-Diversion'!$D$88:$D$92,0))","v":0},{"$f":"'C-Values and Rates'!AS122*INDEX('C-Diversion'!AS$88:AS$92, MATCH($D$121,'C-Diversion'!$D$88:$D$92,0))","v":0},{"$f":"'C-Values and Rates'!AT122*INDEX('C-Diversion'!AT$88:AT$92, MATCH($D$121,'C-Diversion'!$D$88:$D$92,0))","v":0},{"$f":"'C-Values and Rates'!AU122*INDEX('C-Diversion'!AU$88:AU$92, MATCH($D$121,'C-Diversion'!$D$88:$D$92,0))","v":0},{"$f":"'C-Values and Rates'!AV122*INDEX('C-Diversion'!AV$88:AV$92, MATCH($D$121,'C-Diversion'!$D$88:$D$92,0))","v":0},{"$f":"'C-Values and Rates'!AW122*INDEX('C-Diversion'!AW$88:AW$92, MATCH($D$121,'C-Diversion'!$D$88:$D$92,0))","v":0},{"$f":"'C-Values and Rates'!AX122*INDEX('C-Diversion'!AX$88:AX$92, MATCH($D$121,'C-Diversion'!$D$88:$D$92,0))","v":0},{"$f":"'C-Values and Rates'!AY122*INDEX('C-Diversion'!AY$88:AY$92, MATCH($D$121,'C-Diversion'!$D$88:$D$92,0))","v":0},{"$f":"'C-Values and Rates'!AZ122*INDEX('C-Diversion'!AZ$88:AZ$92, MATCH($D$121,'C-Diversion'!$D$88:$D$92,0))","v":0},{"$f":"'C-Values and Rates'!BA122*INDEX('C-Diversion'!BA$88:BA$92, MATCH($D$121,'C-Diversion'!$D$88:$D$92,0))","v":0},{"$f":"'C-Values and Rates'!BB122*INDEX('C-Diversion'!BB$88:BB$92, MATCH($D$121,'C-Diversion'!$D$88:$D$92,0))","v":0},{"$f":"'C-Values and Rates'!BC122*INDEX('C-Diversion'!BC$88:BC$92, MATCH($D$121,'C-Diversion'!$D$88:$D$92,0))","v":0},{"$f":"'C-Values and Rates'!BD122*INDEX('C-Diversion'!BD$88:BD$92, MATCH($D$121,'C-Diversion'!$D$88:$D$92,0))","v":0},{"$f":"'C-Values and Rates'!BE122*INDEX('C-Diversion'!BE$88:BE$92, MATCH($D$121,'C-Diversion'!$D$88:$D$92,0))","v":0},{"$f":"'C-Values and Rates'!BF122*INDEX('C-Diversion'!BF$88:BF$92, MATCH($D$121,'C-Diversion'!$D$88:$D$92,0))","v":0},{"$f":"'C-Values and Rates'!BG122*INDEX('C-Diversion'!BG$88:BG$92, MATCH($D$121,'C-Diversion'!$D$88:$D$92,0))","v":0},{"$f":"'C-Values and Rates'!BH122*INDEX('C-Diversion'!BH$88:BH$92, MATCH($D$121,'C-Diversion'!$D$88:$D$92,0))","v":0},{"$f":"'C-Values and Rates'!BI122*INDEX('C-Diversion'!BI$88:BI$92, MATCH($D$121,'C-Diversion'!$D$88:$D$92,0))","v":0},{"$f":"'C-Values and Rates'!BJ122*INDEX('C-Diversion'!BJ$88:BJ$92, MATCH($D$121,'C-Diversion'!$D$88:$D$92,0))","v":0},{"$f":"'C-Values and Rates'!BK122*INDEX('C-Diversion'!BK$88:BK$92, MATCH($D$121,'C-Diversion'!$D$88:$D$92,0))","v":0},{"$f":"'C-Values and Rates'!BL122*INDEX('C-Diversion'!BL$88:BL$92, MATCH($D$121,'C-Diversion'!$D$88:$D$92,0))","v":0},{"$f":"'C-Values and Rates'!BM122*INDEX('C-Diversion'!BM$88:BM$92, MATCH($D$121,'C-Diversion'!$D$88:$D$92,0))","v":0},{"$f":"'C-Values and Rates'!BN122*INDEX('C-Diversion'!BN$88:BN$92, MATCH($D$121,'C-Diversion'!$D$88:$D$92,0))","v":0},{"$f":"'C-Values and Rates'!BO122*INDEX('C-Diversion'!BO$88:BO$92, MATCH($D$121,'C-Diversion'!$D$88:$D$92,0))","v":0},{"$f":"'C-Values and Rates'!BP122*INDEX('C-Diversion'!BP$88:BP$92, MATCH($D$121,'C-Diversion'!$D$88:$D$92,0))","v":0},{"$f":"'C-Values and Rates'!BQ122*INDEX('C-Diversion'!BQ$88:BQ$92, MATCH($D$121,'C-Diversion'!$D$88:$D$92,0))","v":0},{"$f":"'C-Values and Rates'!BR122*INDEX('C-Diversion'!BR$88:BR$92, MATCH($D$121,'C-Diversion'!$D$88:$D$92,0))","v":0},{"$f":"'C-Values and Rates'!BS122*INDEX('C-Diversion'!BS$88:BS$92, MATCH($D$121,'C-Diversion'!$D$88:$D$92,0))","v":0},{"$f":"'C-Values and Rates'!BT122*INDEX('C-Diversion'!BT$88:BT$92, MATCH($D$121,'C-Diversion'!$D$88:$D$92,0))","v":0},{"$f":"'C-Values and Rates'!BU122*INDEX('C-Diversion'!BU$88:BU$92, MATCH($D$121,'C-Diversion'!$D$88:$D$92,0))","v":0},{"$f":"'C-Values and Rates'!BV122*INDEX('C-Diversion'!BV$88:BV$92, MATCH($D$121,'C-Diversion'!$D$88:$D$92,0))","v":0},{"$f":"'C-Values and Rates'!BW122*INDEX('C-Diversion'!BW$88:BW$92, MATCH($D$121,'C-Diversion'!$D$88:$D$92,0))","v":0},{"$f":"'C-Values and Rates'!BX122*INDEX('C-Diversion'!BX$88:BX$92, MATCH($D$121,'C-Diversion'!$D$88:$D$92,0))","v":0},{"$f":"'C-Values and Rates'!BY122*INDEX('C-Diversion'!BY$88:BY$92, MATCH($D$121,'C-Diversion'!$D$88:$D$92,0))","v":0},{"$f":"'C-Values and Rates'!BZ122*INDEX('C-Diversion'!BZ$88:BZ$92, MATCH($D$121,'C-Diversion'!$D$88:$D$92,0))","v":0},{"$f":"'C-Values and Rates'!CA122*INDEX('C-Diversion'!CA$88:CA$92, MATCH($D$121,'C-Diversion'!$D$88:$D$92,0))","v":0},{"$f":"'C-Values and Rates'!CB122*INDEX('C-Diversion'!CB$88:CB$92, MATCH($D$121,'C-Diversion'!$D$88:$D$92,0))","v":0},{"$f":"'C-Values and Rates'!CC122*INDEX('C-Diversion'!CC$88:CC$92, MATCH($D$121,'C-Diversion'!$D$88:$D$92,0))","v":0},{"$f":"'C-Values and Rates'!CD122*INDEX('C-Diversion'!CD$88:CD$92, MATCH($D$121,'C-Diversion'!$D$88:$D$92,0))","v":0},{"$f":"'C-Values and Rates'!CE122*INDEX('C-Diversion'!CE$88:CE$92, MATCH($D$121,'C-Diversion'!$D$88:$D$92,0))","v":0}]
[null,null,null,"Accident",null,null,null,0,null,"£, 2023 prices",{"$f":"'C-Values and Rates'!K123*INDEX('C-Diversion'!K$88:K$92, MATCH($D$121,'C-Diversion'!$D$88:$D$92,0))","v":0},{"$f":"'C-Values and Rates'!L123*INDEX('C-Diversion'!L$88:L$92, MATCH($D$121,'C-Diversion'!$D$88:$D$92,0))","v":0},{"$f":"'C-Values and Rates'!M123*INDEX('C-Diversion'!M$88:M$92, MATCH($D$121,'C-Diversion'!$D$88:$D$92,0))","v":0},{"$f":"'C-Values and Rates'!N123*INDEX('C-Diversion'!N$88:N$92, MATCH($D$121,'C-Diversion'!$D$88:$D$92,0))","v":0},{"$f":"'C-Values and Rates'!O123*INDEX('C-Diversion'!O$88:O$92, MATCH($D$121,'C-Diversion'!$D$88:$D$92,0))","v":0},{"$f":"'C-Values and Rates'!P123*INDEX('C-Diversion'!P$88:P$92, MATCH($D$121,'C-Diversion'!$D$88:$D$92,0))","v":0},{"$f":"'C-Values and Rates'!Q123*INDEX('C-Diversion'!Q$88:Q$92, MATCH($D$121,'C-Diversion'!$D$88:$D$92,0))","v":0},{"$f":"'C-Values and Rates'!R123*INDEX('C-Diversion'!R$88:R$92, MATCH($D$121,'C-Diversion'!$D$88:$D$92,0))","v":0},{"$f":"'C-Values and Rates'!S123*INDEX('C-Diversion'!S$88:S$92, MATCH($D$121,'C-Diversion'!$D$88:$D$92,0))","v":0},{"$f":"'C-Values and Rates'!T123*INDEX('C-Diversion'!T$88:T$92, MATCH($D$121,'C-Diversion'!$D$88:$D$92,0))","v":0},{"$f":"'C-Values and Rates'!U123*INDEX('C-Diversion'!U$88:U$92, MATCH($D$121,'C-Diversion'!$D$88:$D$92,0))","v":0},{"$f":"'C-Values and Rates'!V123*INDEX('C-Diversion'!V$88:V$92, MATCH($D$121,'C-Diversion'!$D$88:$D$92,0))","v":0},{"$f":"'C-Values and Rates'!W123*INDEX('C-Diversion'!W$88:W$92, MATCH($D$121,'C-Diversion'!$D$88:$D$92,0))","v":0},{"$f":"'C-Values and Rates'!X123*INDEX('C-Diversion'!X$88:X$92, MATCH($D$121,'C-Diversion'!$D$88:$D$92,0))","v":0},{"$f":"'C-Values and Rates'!Y123*INDEX('C-Diversion'!Y$88:Y$92, MATCH($D$121,'C-Diversion'!$D$88:$D$92,0))","v":0},{"$f":"'C-Values and Rates'!Z123*INDEX('C-Diversion'!Z$88:Z$92, MATCH($D$121,'C-Diversion'!$D$88:$D$92,0))","v":0},{"$f":"'C-Values and Rates'!AA123*INDEX('C-Diversion'!AA$88:AA$92, MATCH($D$121,'C-Diversion'!$D$88:$D$92,0))","v":0},{"$f":"'C-Values and Rates'!AB123*INDEX('C-Diversion'!AB$88:AB$92, MATCH($D$121,'C-Diversion'!$D$88:$D$92,0))","v":0},{"$f":"'C-Values and Rates'!AC123*INDEX('C-Diversion'!AC$88:AC$92, MATCH($D$121,'C-Diversion'!$D$88:$D$92,0))","v":0},{"$f":"'C-Values and Rates'!AD123*INDEX('C-Diversion'!AD$88:AD$92, MATCH($D$121,'C-Diversion'!$D$88:$D$92,0))","v":0},{"$f":"'C-Values and Rates'!AE123*INDEX('C-Diversion'!AE$88:AE$92, MATCH($D$121,'C-Diversion'!$D$88:$D$92,0))","v":0},{"$f":"'C-Values and Rates'!AF123*INDEX('C-Diversion'!AF$88:AF$92, MATCH($D$121,'C-Diversion'!$D$88:$D$92,0))","v":0},{"$f":"'C-Values and Rates'!AG123*INDEX('C-Diversion'!AG$88:AG$92, MATCH($D$121,'C-Diversion'!$D$88:$D$92,0))","v":0},{"$f":"'C-Values and Rates'!AH123*INDEX('C-Diversion'!AH$88:AH$92, MATCH($D$121,'C-Diversion'!$D$88:$D$92,0))","v":0},{"$f":"'C-Values and Rates'!AI123*INDEX('C-Diversion'!AI$88:AI$92, MATCH($D$121,'C-Diversion'!$D$88:$D$92,0))","v":0},{"$f":"'C-Values and Rates'!AJ123*INDEX('C-Diversion'!AJ$88:AJ$92, MATCH($D$121,'C-Diversion'!$D$88:$D$92,0))","v":0},{"$f":"'C-Values and Rates'!AK123*INDEX('C-Diversion'!AK$88:AK$92, MATCH($D$121,'C-Diversion'!$D$88:$D$92,0))","v":0},{"$f":"'C-Values and Rates'!AL123*INDEX('C-Diversion'!AL$88:AL$92, MATCH($D$121,'C-Diversion'!$D$88:$D$92,0))","v":0},{"$f":"'C-Values and Rates'!AM123*INDEX('C-Diversion'!AM$88:AM$92, MATCH($D$121,'C-Diversion'!$D$88:$D$92,0))","v":0},{"$f":"'C-Values and Rates'!AN123*INDEX('C-Diversion'!AN$88:AN$92, MATCH($D$121,'C-Diversion'!$D$88:$D$92,0))","v":0},{"$f":"'C-Values and Rates'!AO123*INDEX('C-Diversion'!AO$88:AO$92, MATCH($D$121,'C-Diversion'!$D$88:$D$92,0))","v":0},{"$f":"'C-Values and Rates'!AP123*INDEX('C-Diversion'!AP$88:AP$92, MATCH($D$121,'C-Diversion'!$D$88:$D$92,0))","v":0},{"$f":"'C-Values and Rates'!AQ123*INDEX('C-Diversion'!AQ$88:AQ$92, MATCH($D$121,'C-Diversion'!$D$88:$D$92,0))","v":0},{"$f":"'C-Values and Rates'!AR123*INDEX('C-Diversion'!AR$88:AR$92, MATCH($D$121,'C-Diversion'!$D$88:$D$92,0))","v":0},{"$f":"'C-Values and Rates'!AS123*INDEX('C-Diversion'!AS$88:AS$92, MATCH($D$121,'C-Diversion'!$D$88:$D$92,0))","v":0},{"$f":"'C-Values and Rates'!AT123*INDEX('C-Diversion'!AT$88:AT$92, MATCH($D$121,'C-Diversion'!$D$88:$D$92,0))","v":0},{"$f":"'C-Values and Rates'!AU123*INDEX('C-Diversion'!AU$88:AU$92, MATCH($D$121,'C-Diversion'!$D$88:$D$92,0))","v":0},{"$f":"'C-Values and Rates'!AV123*INDEX('C-Diversion'!AV$88:AV$92, MATCH($D$121,'C-Diversion'!$D$88:$D$92,0))","v":0},{"$f":"'C-Values and Rates'!AW123*INDEX('C-Diversion'!AW$88:AW$92, MATCH($D$121,'C-Diversion'!$D$88:$D$92,0))","v":0},{"$f":"'C-Values and Rates'!AX123*INDEX('C-Diversion'!AX$88:AX$92, MATCH($D$121,'C-Diversion'!$D$88:$D$92,0))","v":0},{"$f":"'C-Values and Rates'!AY123*INDEX('C-Diversion'!AY$88:AY$92, MATCH($D$121,'C-Diversion'!$D$88:$D$92,0))","v":0},{"$f":"'C-Values and Rates'!AZ123*INDEX('C-Diversion'!AZ$88:AZ$92, MATCH($D$121,'C-Diversion'!$D$88:$D$92,0))","v":0},{"$f":"'C-Values and Rates'!BA123*INDEX('C-Diversion'!BA$88:BA$92, MATCH($D$121,'C-Diversion'!$D$88:$D$92,0))","v":0},{"$f":"'C-Values and Rates'!BB123*INDEX('C-Diversion'!BB$88:BB$92, MATCH($D$121,'C-Diversion'!$D$88:$D$92,0))","v":0},{"$f":"'C-Values and Rates'!BC123*INDEX('C-Diversion'!BC$88:BC$92, MATCH($D$121,'C-Diversion'!$D$88:$D$92,0))","v":0},{"$f":"'C-Values and Rates'!BD123*INDEX('C-Diversion'!BD$88:BD$92, MATCH($D$121,'C-Diversion'!$D$88:$D$92,0))","v":0},{"$f":"'C-Values and Rates'!BE123*INDEX('C-Diversion'!BE$88:BE$92, MATCH($D$121,'C-Diversion'!$D$88:$D$92,0))","v":0},{"$f":"'C-Values and Rates'!BF123*INDEX('C-Diversion'!BF$88:BF$92, MATCH($D$121,'C-Diversion'!$D$88:$D$92,0))","v":0},{"$f":"'C-Values and Rates'!BG123*INDEX('C-Diversion'!BG$88:BG$92, MATCH($D$121,'C-Diversion'!$D$88:$D$92,0))","v":0},{"$f":"'C-Values and Rates'!BH123*INDEX('C-Diversion'!BH$88:BH$92, MATCH($D$121,'C-Diversion'!$D$88:$D$92,0))","v":0},{"$f":"'C-Values and Rates'!BI123*INDEX('C-Diversion'!BI$88:BI$92, MATCH($D$121,'C-Diversion'!$D$88:$D$92,0))","v":0},{"$f":"'C-Values and Rates'!BJ123*INDEX('C-Diversion'!BJ$88:BJ$92, MATCH($D$121,'C-Diversion'!$D$88:$D$92,0))","v":0},{"$f":"'C-Values and Rates'!BK123*INDEX('C-Diversion'!BK$88:BK$92, MATCH($D$121,'C-Diversion'!$D$88:$D$92,0))","v":0},{"$f":"'C-Values and Rates'!BL123*INDEX('C-Diversion'!BL$88:BL$92, MATCH($D$121,'C-Diversion'!$D$88:$D$92,0))","v":0},{"$f":"'C-Values and Rates'!BM123*INDEX('C-Diversion'!BM$88:BM$92, MATCH($D$121,'C-Diversion'!$D$88:$D$92,0))","v":0},{"$f":"'C-Values and Rates'!BN123*INDEX('C-Diversion'!BN$88:BN$92, MATCH($D$121,'C-Diversion'!$D$88:$D$92,0))","v":0},{"$f":"'C-Values and Rates'!BO123*INDEX('C-Diversion'!BO$88:BO$92, MATCH($D$121,'C-Diversion'!$D$88:$D$92,0))","v":0},{"$f":"'C-Values and Rates'!BP123*INDEX('C-Diversion'!BP$88:BP$92, MATCH($D$121,'C-Diversion'!$D$88:$D$92,0))","v":0},{"$f":"'C-Values and Rates'!BQ123*INDEX('C-Diversion'!BQ$88:BQ$92, MATCH($D$121,'C-Diversion'!$D$88:$D$92,0))","v":0},{"$f":"'C-Values and Rates'!BR123*INDEX('C-Diversion'!BR$88:BR$92, MATCH($D$121,'C-Diversion'!$D$88:$D$92,0))","v":0},{"$f":"'C-Values and Rates'!BS123*INDEX('C-Diversion'!BS$88:BS$92, MATCH($D$121,'C-Diversion'!$D$88:$D$92,0))","v":0},{"$f":"'C-Values and Rates'!BT123*INDEX('C-Diversion'!BT$88:BT$92, MATCH($D$121,'C-Diversion'!$D$88:$D$92,0))","v":0},{"$f":"'C-Values and Rates'!BU123*INDEX('C-Diversion'!BU$88:BU$92, MATCH($D$121,'C-Diversion'!$D$88:$D$92,0))","v":0},{"$f":"'C-Values and Rates'!BV123*INDEX('C-Diversion'!BV$88:BV$92, MATCH($D$121,'C-Diversion'!$D$88:$D$92,0))","v":0},{"$f":"'C-Values and Rates'!BW123*INDEX('C-Diversion'!BW$88:BW$92, MATCH($D$121,'C-Diversion'!$D$88:$D$92,0))","v":0},{"$f":"'C-Values and Rates'!BX123*INDEX('C-Diversion'!BX$88:BX$92, MATCH($D$121,'C-Diversion'!$D$88:$D$92,0))","v":0},{"$f":"'C-Values and Rates'!BY123*INDEX('C-Diversion'!BY$88:BY$92, MATCH($D$121,'C-Diversion'!$D$88:$D$92,0))","v":0},{"$f":"'C-Values and Rates'!BZ123*INDEX('C-Diversion'!BZ$88:BZ$92, MATCH($D$121,'C-Diversion'!$D$88:$D$92,0))","v":0},{"$f":"'C-Values and Rates'!CA123*INDEX('C-Diversion'!CA$88:CA$92, MATCH($D$121,'C-Diversion'!$D$88:$D$92,0))","v":0},{"$f":"'C-Values and Rates'!CB123*INDEX('C-Diversion'!CB$88:CB$92, MATCH($D$121,'C-Diversion'!$D$88:$D$92,0))","v":0},{"$f":"'C-Values and Rates'!CC123*INDEX('C-Diversion'!CC$88:CC$92, MATCH($D$121,'C-Diversion'!$D$88:$D$92,0))","v":0},{"$f":"'C-Values and Rates'!CD123*INDEX('C-Diversion'!CD$88:CD$92, MATCH($D$121,'C-Diversion'!$D$88:$D$92,0))","v":0},{"$f":"'C-Values and Rates'!CE123*INDEX('C-Diversion'!CE$88:CE$92, MATCH($D$121,'C-Diversion'!$D$88:$D$92,0))","v":0}]
[null,null,null,"Local Air Quality",null,null,null,4385.8489971133531,null,"£, 2023 prices",{"$f":"'C-Values and Rates'!K124*INDEX('C-Diversion'!K$88:K$92, MATCH($D$121,'C-Diversion'!$D$88:$D$92,0))","v":0},{"$f":"'C-Values and Rates'!L124*INDEX('C-Diversion'!L$88:L$92, MATCH($D$121,'C-Diversion'!$D$88:$D$92,0))","v":0},{"$f":"'C-Values and Rates'!M124*INDEX('C-Diversion'!M$88:M$92, MATCH($D$121,'C-Diversion'!$D$88:$D$92,0))","v":0},{"$f":"'C-Values and Rates'!N124*INDEX('C-Diversion'!N$88:N$92, MATCH($D$121,'C-Diversion'!$D$88:$D$92,0))","v":0},{"$f":"'C-Values and Rates'!O124*INDEX('C-Diversion'!O$88:O$92, MATCH($D$121,'C-Diversion'!$D$88:$D$92,0))","v":0},{"$f":"'C-Values and Rates'!P124*INDEX('C-Diversion'!P$88:P$92, MATCH($D$121,'C-Diversion'!$D$88:$D$92,0))","v":53.274700500882936},{"$f":"'C-Values and Rates'!Q124*INDEX('C-Diversion'!Q$88:Q$92, MATCH($D$121,'C-Diversion'!$D$88:$D$92,0))","v":50.788285349987554},{"$f":"'C-Values and Rates'!R124*INDEX('C-Diversion'!R$88:R$92, MATCH($D$121,'C-Diversion'!$D$88:$D$92,0))","v":48.417915155600198},{"$f":"'C-Values and Rates'!S124*INDEX('C-Diversion'!S$88:S$92, MATCH($D$121,'C-Diversion'!$D$88:$D$92,0))","v":48.573436778597333},{"$f":"'C-Values and Rates'!T124*INDEX('C-Diversion'!T$88:T$92, MATCH($D$121,'C-Diversion'!$D$88:$D$92,0))","v":48.729457947581558},{"$f":"'C-Values and Rates'!U124*INDEX('C-Diversion'!U$88:U$92, MATCH($D$121,'C-Diversion'!$D$88:$D$92,0))","v":48.885980267128446},{"$f":"'C-Values and Rates'!V124*INDEX('C-Diversion'!V$88:V$92, MATCH($D$121,'C-Diversion'!$D$88:$D$92,0))","v":49.043005346967519},{"$f":"'C-Values and Rates'!W124*INDEX('C-Diversion'!W$88:W$92, MATCH($D$121,'C-Diversion'!$D$88:$D$92,0))","v":49.200534801998899},{"$f":"'C-Values and Rates'!X124*INDEX('C-Diversion'!X$88:X$92, MATCH($D$121,'C-Diversion'!$D$88:$D$92,0))","v":50.393537160294201},{"$f":"'C-Values and Rates'!Y124*INDEX('C-Diversion'!Y$88:Y$92, MATCH($D$121,'C-Diversion'!$D$88:$D$92,0))","v":51.615467143718497},{"$f":"'C-Values and Rates'!Z124*INDEX('C-Diversion'!Z$88:Z$92, MATCH($D$121,'C-Diversion'!$D$88:$D$92,0))","v":52.867026182147249},{"$f":"'C-Values and Rates'!AA124*INDEX('C-Diversion'!AA$88:AA$92, MATCH($D$121,'C-Diversion'!$D$88:$D$92,0))","v":54.148932713553464},{"$f":"'C-Values and Rates'!AB124*INDEX('C-Diversion'!AB$88:AB$92, MATCH($D$121,'C-Diversion'!$D$88:$D$92,0))","v":55.461922596415846},{"$f":"'C-Values and Rates'!AC124*INDEX('C-Diversion'!AC$88:AC$92, MATCH($D$121,'C-Diversion'!$D$88:$D$92,0))","v":56.773985531309762},{"$f":"'C-Values and Rates'!AD124*INDEX('C-Diversion'!AD$88:AD$92, MATCH($D$121,'C-Diversion'!$D$88:$D$92,0))","v":58.117087944543613},{"$f":"'C-Values and Rates'!AE124*INDEX('C-Diversion'!AE$88:AE$92, MATCH($D$121,'C-Diversion'!$D$88:$D$92,0))","v":59.491964137186329},{"$f":"'C-Values and Rates'!AF124*INDEX('C-Diversion'!AF$88:AF$92, MATCH($D$121,'C-Diversion'!$D$88:$D$92,0))","v":60.899365781670326},{"$f":"'C-Values and Rates'!AG124*INDEX('C-Diversion'!AG$88:AG$92, MATCH($D$121,'C-Diversion'!$D$88:$D$92,0))","v":62.340062332745894},{"$f":"'C-Values and Rates'!AH124*INDEX('C-Diversion'!AH$88:AH$92, MATCH($D$121,'C-Diversion'!$D$88:$D$92,0))","v":63.697936586816091},{"$f":"'C-Values and Rates'!AI124*INDEX('C-Diversion'!AI$88:AI$92, MATCH($D$121,'C-Diversion'!$D$88:$D$92,0))","v":65.08538768795492},{"$f":"'C-Values and Rates'!AJ124*INDEX('C-Diversion'!AJ$88:AJ$92, MATCH($D$121,'C-Diversion'!$D$88:$D$92,0))","v":66.503059870987499},{"$f":"'C-Values and Rates'!AK124*INDEX('C-Diversion'!AK$88:AK$92, MATCH($D$121,'C-Diversion'!$D$88:$D$92,0))","v":67.951611403286321},{"$f":"'C-Values and Rates'!AL124*INDEX('C-Diversion'!AL$88:AL$92, MATCH($D$121,'C-Diversion'!$D$88:$D$92,0))","v":69.431714890424445},{"$f":"'C-Values and Rates'!AM124*INDEX('C-Diversion'!AM$88:AM$92, MATCH($D$121,'C-Diversion'!$D$88:$D$92,0))","v":70.903400607096515},{"$f":"'C-Values and Rates'!AN124*INDEX('C-Diversion'!AN$88:AN$92, MATCH($D$121,'C-Diversion'!$D$88:$D$92,0))","v":72.406280409239102},{"$f":"'C-Values and Rates'!AO124*INDEX('C-Diversion'!AO$88:AO$92, MATCH($D$121,'C-Diversion'!$D$88:$D$92,0))","v":73.941015491669361},{"$f":"'C-Values and Rates'!AP124*INDEX('C-Diversion'!AP$88:AP$92, MATCH($D$121,'C-Diversion'!$D$88:$D$92,0))","v":75.508281063995383},{"$f":"'C-Values and Rates'!AQ124*INDEX('C-Diversion'!AQ$88:AQ$92, MATCH($D$121,'C-Diversion'!$D$88:$D$92,0))","v":77.108766647675935},{"$f":"'C-Values and Rates'!AR124*INDEX('C-Diversion'!AR$88:AR$92, MATCH($D$121,'C-Diversion'!$D$88:$D$92,0))","v":78.751711857645162},{"$f":"'C-Values and Rates'!AS124*INDEX('C-Diversion'!AS$88:AS$92, MATCH($D$121,'C-Diversion'!$D$88:$D$92,0))","v":80.429663060840753},{"$f":"'C-Values and Rates'!AT124*INDEX('C-Diversion'!AT$88:AT$92, MATCH($D$121,'C-Diversion'!$D$88:$D$92,0))","v":82.143366124839005},{"$f":"'C-Values and Rates'!AU124*INDEX('C-Diversion'!AU$88:AU$92, MATCH($D$121,'C-Diversion'!$D$88:$D$92,0))","v":83.893582809307546},{"$f":"'C-Values and Rates'!AV124*INDEX('C-Diversion'!AV$88:AV$92, MATCH($D$121,'C-Diversion'!$D$88:$D$92,0))","v":85.681091104615803},{"$f":"'C-Values and Rates'!AW124*INDEX('C-Diversion'!AW$88:AW$92, MATCH($D$121,'C-Diversion'!$D$88:$D$92,0))","v":85.681091104615803},{"$f":"'C-Values and Rates'!AX124*INDEX('C-Diversion'!AX$88:AX$92, MATCH($D$121,'C-Diversion'!$D$88:$D$92,0))","v":85.681091104615803},{"$f":"'C-Values and Rates'!AY124*INDEX('C-Diversion'!AY$88:AY$92, MATCH($D$121,'C-Diversion'!$D$88:$D$92,0))","v":85.681091104615803},{"$f":"'C-Values and Rates'!AZ124*INDEX('C-Diversion'!AZ$88:AZ$92, MATCH($D$121,'C-Diversion'!$D$88:$D$92,0))","v":85.681091104615803},{"$f":"'C-Values and Rates'!BA124*INDEX('C-Diversion'!BA$88:BA$92, MATCH($D$121,'C-Diversion'!$D$88:$D$92,0))","v":85.681091104615803},{"$f":"'C-Values and Rates'!BB124*INDEX('C-Diversion'!BB$88:BB$92, MATCH($D$121,'C-Diversion'!$D$88:$D$92,0))","v":85.681091104615803},{"$f":"'C-Values and Rates'!BC124*INDEX('C-Diversion'!BC$88:BC$92, MATCH($D$121,'C-Diversion'!$D$88:$D$92,0))","v":85.681091104615803},{"$f":"'C-Values and Rates'!BD124*INDEX('C-Diversion'!BD$88:BD$92, MATCH($D$121,'C-Diversion'!$D$88:$D$92,0))","v":85.681091104615803},{"$f":"'C-Values and Rates'!BE124*INDEX('C-Diversion'!BE$88:BE$92, MATCH($D$121,'C-Diversion'!$D$88:$D$92,0))","v":85.681091104615803},{"$f":"'C-Values and Rates'!BF124*INDEX('C-Diversion'!BF$88:BF$92, MATCH($D$121,'C-Diversion'!$D$88:$D$92,0))","v":85.681091104615803},{"$f":"'C-Values and Rates'!BG124*INDEX('C-Diversion'!BG$88:BG$92, MATCH($D$121,'C-Diversion'!$D$88:$D$92,0))","v":85.681091104615803},{"$f":"'C-Values and Rates'!BH124*INDEX('C-Diversion'!BH$88:BH$92, MATCH($D$121,'C-Diversion'!$D$88:$D$92,0))","v":85.681091104615803},{"$f":"'C-Values and Rates'!BI124*INDEX('C-Diversion'!BI$88:BI$92, MATCH($D$121,'C-Diversion'!$D$88:$D$92,0))","v":85.681091104615803},{"$f":"'C-Values and Rates'!BJ124*INDEX('C-Diversion'!BJ$88:BJ$92, MATCH($D$121,'C-Diversion'!$D$88:$D$92,0))","v":85.681091104615803},{"$f":"'C-Values and Rates'!BK124*INDEX('C-Diversion'!BK$88:BK$92, MATCH($D$121,'C-Diversion'!$D$88:$D$92,0))","v":85.681091104615803},{"$f":"'C-Values and Rates'!BL124*INDEX('C-Diversion'!BL$88:BL$92, MATCH($D$121,'C-Diversion'!$D$88:$D$92,0))","v":85.681091104615803},{"$f":"'C-Values and Rates'!BM124*INDEX('C-Diversion'!BM$88:BM$92, MATCH($D$121,'C-Diversion'!$D$88:$D$92,0))","v":85.681091104615803},{"$f":"'C-Values and Rates'!BN124*INDEX('C-Diversion'!BN$88:BN$92, MATCH($D$121,'C-Diversion'!$D$88:$D$92,0))","v":85.681091104615803},{"$f":"'C-Values and Rates'!BO124*INDEX('C-Diversion'!BO$88:BO$92, MATCH($D$121,'C-Diversion'!$D$88:$D$92,0))","v":85.681091104615803},{"$f":"'C-Values and Rates'!BP124*INDEX('C-Diversion'!BP$88:BP$92, MATCH($D$121,'C-Diversion'!$D$88:$D$92,0))","v":85.681091104615803},{"$f":"'C-Values and Rates'!BQ124*INDEX('C-Diversion'!BQ$88:BQ$92, MATCH($D$121,'C-Diversion'!$D$88:$D$92,0))","v":85.681091104615803},{"$f":"'C-Values and Rates'!BR124*INDEX('C-Diversion'!BR$88:BR$92, MATCH($D$121,'C-Diversion'!$D$88:$D$92,0))","v":85.681091104615803},{"$f":"'C-Values and Rates'!BS124*INDEX('C-Diversion'!BS$88:BS$92, MATCH($D$121,'C-Diversion'!$D$88:$D$92,0))","v":85.681091104615803},{"$f":"'C-Values and Rates'!BT124*INDEX('C-Diversion'!BT$88:BT$92, MATCH($D$121,'C-Diversion'!$D$88:$D$92,0))","v":85.681091104615803},{"$f":"'C-Values and Rates'!BU124*INDEX('C-Diversion'!BU$88:BU$92, MATCH($D$121,'C-Diversion'!$D$88:$D$92,0))","v":85.681091104615803},{"$f":"'C-Values and Rates'!BV124*INDEX('C-Diversion'!BV$88:BV$92, MATCH($D$121,'C-Diversion'!$D$88:$D$92,0))","v":85.681091104615803},{"$f":"'C-Values and Rates'!BW124*INDEX('C-Diversion'!BW$88:BW$92, MATCH($D$121,'C-Diversion'!$D$88:$D$92,0))","v":85.681091104615803},{"$f":"'C-Values and Rates'!BX124*INDEX('C-Diversion'!BX$88:BX$92, MATCH($D$121,'C-Diversion'!$D$88:$D$92,0))","v":0},{"$f":"'C-Values and Rates'!BY124*INDEX('C-Diversion'!BY$88:BY$92, MATCH($D$121,'C-Diversion'!$D$88:$D$92,0))","v":0},{"$f":"'C-Values and Rates'!BZ124*INDEX('C-Diversion'!BZ$88:BZ$92, MATCH($D$121,'C-Diversion'!$D$88:$D$92,0))","v":0},{"$f":"'C-Values and Rates'!CA124*INDEX('C-Diversion'!CA$88:CA$92, MATCH($D$121,'C-Diversion'!$D$88:$D$92,0))","v":0},{"$f":"'C-Values and Rates'!CB124*INDEX('C-Diversion'!CB$88:CB$92, MATCH($D$121,'C-Diversion'!$D$88:$D$92,0))","v":0},{"$f":"'C-Values and Rates'!CC124*INDEX('C-Diversion'!CC$88:CC$92, MATCH($D$121,'C-Diversion'!$D$88:$D$92,0))","v":0},{"$f":"'C-Values and Rates'!CD124*INDEX('C-Diversion'!CD$88:CD$92, MATCH($D$121,'C-Diversion'!$D$88:$D$92,0))","v":0},{"$f":"'C-Values and Rates'!CE124*INDEX('C-Diversion'!CE$88:CE$92, MATCH($D$121,'C-Diversion'!$D$88:$D$92,0))","v":0}]
[null,null,null,"Noise",null,null,null,0,null,"£, 2023 prices",{"$f":"'C-Values and Rates'!K125*INDEX('C-Diversion'!K$88:K$92, MATCH($D$121,'C-Diversion'!$D$88:$D$92,0))","v":0},{"$f":"'C-Values and Rates'!L125*INDEX('C-Diversion'!L$88:L$92, MATCH($D$121,'C-Diversion'!$D$88:$D$92,0))","v":0},{"$f":"'C-Values and Rates'!M125*INDEX('C-Diversion'!M$88:M$92, MATCH($D$121,'C-Diversion'!$D$88:$D$92,0))","v":0},{"$f":"'C-Values and Rates'!N125*INDEX('C-Diversion'!N$88:N$92, MATCH($D$121,'C-Diversion'!$D$88:$D$92,0))","v":0},{"$f":"'C-Values and Rates'!O125*INDEX('C-Diversion'!O$88:O$92, MATCH($D$121,'C-Diversion'!$D$88:$D$92,0))","v":0},{"$f":"'C-Values and Rates'!P125*INDEX('C-Diversion'!P$88:P$92, MATCH($D$121,'C-Diversion'!$D$88:$D$92,0))","v":0},{"$f":"'C-Values and Rates'!Q125*INDEX('C-Diversion'!Q$88:Q$92, MATCH($D$121,'C-Diversion'!$D$88:$D$92,0))","v":0},{"$f":"'C-Values and Rates'!R125*INDEX('C-Diversion'!R$88:R$92, MATCH($D$121,'C-Diversion'!$D$88:$D$92,0))","v":0},{"$f":"'C-Values and Rates'!S125*INDEX('C-Diversion'!S$88:S$92, MATCH($D$121,'C-Diversion'!$D$88:$D$92,0))","v":0},{"$f":"'C-Values and Rates'!T125*INDEX('C-Diversion'!T$88:T$92, MATCH($D$121,'C-Diversion'!$D$88:$D$92,0))","v":0},{"$f":"'C-Values and Rates'!U125*INDEX('C-Diversion'!U$88:U$92, MATCH($D$121,'C-Diversion'!$D$88:$D$92,0))","v":0},{"$f":"'C-Values and Rates'!V125*INDEX('C-Diversion'!V$88:V$92, MATCH($D$121,'C-Diversion'!$D$88:$D$92,0))","v":0},{"$f":"'C-Values and Rates'!W125*INDEX('C-Diversion'!W$88:W$92, MATCH($D$121,'C-Diversion'!$D$88:$D$92,0))","v":0},{"$f":"'C-Values and Rates'!X125*INDEX('C-Diversion'!X$88:X$92, MATCH($D$121,'C-Diversion'!$D$88:$D$92,0))","v":0},{"$f":"'C-Values and Rates'!Y125*INDEX('C-Diversion'!Y$88:Y$92, MATCH($D$121,'C-Diversion'!$D$88:$D$92,0))","v":0},{"$f":"'C-Values and Rates'!Z125*INDEX('C-Diversion'!Z$88:Z$92, MATCH($D$121,'C-Diversion'!$D$88:$D$92,0))","v":0},{"$f":"'C-Values and Rates'!AA125*INDEX('C-Diversion'!AA$88:AA$92, MATCH($D$121,'C-Diversion'!$D$88:$D$92,0))","v":0},{"$f":"'C-Values and Rates'!AB125*INDEX('C-Diversion'!AB$88:AB$92, MATCH($D$121,'C-Diversion'!$D$88:$D$92,0))","v":0},{"$f":"'C-Values and Rates'!AC125*INDEX('C-Diversion'!AC$88:AC$92, MATCH($D$121,'C-Diversion'!$D$88:$D$92,0))","v":0},{"$f":"'C-Values and Rates'!AD125*INDEX('C-Diversion'!AD$88:AD$92, MATCH($D$121,'C-Diversion'!$D$88:$D$92,0))","v":0},{"$f":"'C-Values and Rates'!AE125*INDEX('C-Diversion'!AE$88:AE$92, MATCH($D$121,'C-Diversion'!$D$88:$D$92,0))","v":0},{"$f":"'C-Values and Rates'!AF125*INDEX('C-Diversion'!AF$88:AF$92, MATCH($D$121,'C-Diversion'!$D$88:$D$92,0))","v":0},{"$f":"'C-Values and Rates'!AG125*INDEX('C-Diversion'!AG$88:AG$92, MATCH($D$121,'C-Diversion'!$D$88:$D$92,0))","v":0},{"$f":"'C-Values and Rates'!AH125*INDEX('C-Diversion'!AH$88:AH$92, MATCH($D$121,'C-Diversion'!$D$88:$D$92,0))","v":0},{"$f":"'C-Values and Rates'!AI125*INDEX('C-Diversion'!AI$88:AI$92, MATCH($D$121,'C-Diversion'!$D$88:$D$92,0))","v":0},{"$f":"'C-Values and Rates'!AJ125*INDEX('C-Diversion'!AJ$88:AJ$92, MATCH($D$121,'C-Diversion'!$D$88:$D$92,0))","v":0},{"$f":"'C-Values and Rates'!AK125*INDEX('C-Diversion'!AK$88:AK$92, MATCH($D$121,'C-Diversion'!$D$88:$D$92,0))","v":0},{"$f":"'C-Values and Rates'!AL125*INDEX('C-Diversion'!AL$88:AL$92, MATCH($D$121,'C-Diversion'!$D$88:$D$92,0))","v":0},{"$f":"'C-Values and Rates'!AM125*INDEX('C-Diversion'!AM$88:AM$92, MATCH($D$121,'C-Diversion'!$D$88:$D$92,0))","v":0},{"$f":"'C-Values and Rates'!AN125*INDEX('C-Diversion'!AN$88:AN$92, MATCH($D$121,'C-Diversion'!$D$88:$D$92,0))","v":0},{"$f":"'C-Values and Rates'!AO125*INDEX('C-Diversion'!AO$88:AO$92, MATCH($D$121,'C-Diversion'!$D$88:$D$92,0))","v":0},{"$f":"'C-Values and Rates'!AP125*INDEX('C-Diversion'!AP$88:AP$92, MATCH($D$121,'C-Diversion'!$D$88:$D$92,0))","v":0},{"$f":"'C-Values and Rates'!AQ125*INDEX('C-Diversion'!AQ$88:AQ$92, MATCH($D$121,'C-Diversion'!$D$88:$D$92,0))","v":0},{"$f":"'C-Values and Rates'!AR125*INDEX('C-Diversion'!AR$88:AR$92, MATCH($D$121,'C-Diversion'!$D$88:$D$92,0))","v":0},{"$f":"'C-Values and Rates'!AS125*INDEX('C-Diversion'!AS$88:AS$92, MATCH($D$121,'C-Diversion'!$D$88:$D$92,0))","v":0},{"$f":"'C-Values and Rates'!AT125*INDEX('C-Diversion'!AT$88:AT$92, MATCH($D$121,'C-Diversion'!$D$88:$D$92,0))","v":0},{"$f":"'C-Values and Rates'!AU125*INDEX('C-Diversion'!AU$88:AU$92, MATCH($D$121,'C-Diversion'!$D$88:$D$92,0))","v":0},{"$f":"'C-Values and Rates'!AV125*INDEX('C-Diversion'!AV$88:AV$92, MATCH($D$121,'C-Diversion'!$D$88:$D$92,0))","v":0},{"$f":"'C-Values and Rates'!AW125*INDEX('C-Diversion'!AW$88:AW$92, MATCH($D$121,'C-Diversion'!$D$88:$D$92,0))","v":0},{"$f":"'C-Values and Rates'!AX125*INDEX('C-Diversion'!AX$88:AX$92, MATCH($D$121,'C-Diversion'!$D$88:$D$92,0))","v":0},{"$f":"'C-Values and Rates'!AY125*INDEX('C-Diversion'!AY$88:AY$92, MATCH($D$121,'C-Diversion'!$D$88:$D$92,0))","v":0},{"$f":"'C-Values and Rates'!AZ125*INDEX('C-Diversion'!AZ$88:AZ$92, MATCH($D$121,'C-Diversion'!$D$88:$D$92,0))","v":0},{"$f":"'C-Values and Rates'!BA125*INDEX('C-Diversion'!BA$88:BA$92, MATCH($D$121,'C-Diversion'!$D$88:$D$92,0))","v":0},{"$f":"'C-Values and Rates'!BB125*INDEX('C-Diversion'!BB$88:BB$92, MATCH($D$121,'C-Diversion'!$D$88:$D$92,0))","v":0},{"$f":"'C-Values and Rates'!BC125*INDEX('C-Diversion'!BC$88:BC$92, MATCH($D$121,'C-Diversion'!$D$88:$D$92,0))","v":0},{"$f":"'C-Values and Rates'!BD125*INDEX('C-Diversion'!BD$88:BD$92, MATCH($D$121,'C-Diversion'!$D$88:$D$92,0))","v":0},{"$f":"'C-Values and Rates'!BE125*INDEX('C-Diversion'!BE$88:BE$92, MATCH($D$121,'C-Diversion'!$D$88:$D$92,0))","v":0},{"$f":"'C-Values and Rates'!BF125*INDEX('C-Diversion'!BF$88:BF$92, MATCH($D$121,'C-Diversion'!$D$88:$D$92,0))","v":0},{"$f":"'C-Values and Rates'!BG125*INDEX('C-Diversion'!BG$88:BG$92, MATCH($D$121,'C-Diversion'!$D$88:$D$92,0))","v":0},{"$f":"'C-Values and Rates'!BH125*INDEX('C-Diversion'!BH$88:BH$92, MATCH($D$121,'C-Diversion'!$D$88:$D$92,0))","v":0},{"$f":"'C-Values and Rates'!BI125*INDEX('C-Diversion'!BI$88:BI$92, MATCH($D$121,'C-Diversion'!$D$88:$D$92,0))","v":0},{"$f":"'C-Values and Rates'!BJ125*INDEX('C-Diversion'!BJ$88:BJ$92, MATCH($D$121,'C-Diversion'!$D$88:$D$92,0))","v":0},{"$f":"'C-Values and Rates'!BK125*INDEX('C-Diversion'!BK$88:BK$92, MATCH($D$121,'C-Diversion'!$D$88:$D$92,0))","v":0},{"$f":"'C-Values and Rates'!BL125*INDEX('C-Diversion'!BL$88:BL$92, MATCH($D$121,'C-Diversion'!$D$88:$D$92,0))","v":0},{"$f":"'C-Values and Rates'!BM125*INDEX('C-Diversion'!BM$88:BM$92, MATCH($D$121,'C-Diversion'!$D$88:$D$92,0))","v":0},{"$f":"'C-Values and Rates'!BN125*INDEX('C-Diversion'!BN$88:BN$92, MATCH($D$121,'C-Diversion'!$D$88:$D$92,0))","v":0},{"$f":"'C-Values and Rates'!BO125*INDEX('C-Diversion'!BO$88:BO$92, MATCH($D$121,'C-Diversion'!$D$88:$D$92,0))","v":0},{"$f":"'C-Values and Rates'!BP125*INDEX('C-Diversion'!BP$88:BP$92, MATCH($D$121,'C-Diversion'!$D$88:$D$92,0))","v":0},{"$f":"'C-Values and Rates'!BQ125*INDEX('C-Diversion'!BQ$88:BQ$92, MATCH($D$121,'C-Diversion'!$D$88:$D$92,0))","v":0},{"$f":"'C-Values and Rates'!BR125*INDEX('C-Diversion'!BR$88:BR$92, MATCH($D$121,'C-Diversion'!$D$88:$D$92,0))","v":0},{"$f":"'C-Values and Rates'!BS125*INDEX('C-Diversion'!BS$88:BS$92, MATCH($D$121,'C-Diversion'!$D$88:$D$92,0))","v":0},{"$f":"'C-Values and Rates'!BT125*INDEX('C-Diversion'!BT$88:BT$92, MATCH($D$121,'C-Diversion'!$D$88:$D$92,0))","v":0},{"$f":"'C-Values and Rates'!BU125*INDEX('C-Diversion'!BU$88:BU$92, MATCH($D$121,'C-Diversion'!$D$88:$D$92,0))","v":0},{"$f":"'C-Values and Rates'!BV125*INDEX('C-Diversion'!BV$88:BV$92, MATCH($D$121,'C-Diversion'!$D$88:$D$92,0))","v":0},{"$f":"'C-Values and Rates'!BW125*INDEX('C-Diversion'!BW$88:BW$92, MATCH($D$121,'C-Diversion'!$D$88:$D$92,0))","v":0},{"$f":"'C-Values and Rates'!BX125*INDEX('C-Diversion'!BX$88:BX$92, MATCH($D$121,'C-Diversion'!$D$88:$D$92,0))","v":0},{"$f":"'C-Values and Rates'!BY125*INDEX('C-Diversion'!BY$88:BY$92, MATCH($D$121,'C-Diversion'!$D$88:$D$92,0))","v":0},{"$f":"'C-Values and Rates'!BZ125*INDEX('C-Diversion'!BZ$88:BZ$92, MATCH($D$121,'C-Diversion'!$D$88:$D$92,0))","v":0},{"$f":"'C-Values and Rates'!CA125*INDEX('C-Diversion'!CA$88:CA$92, MATCH($D$121,'C-Diversion'!$D$88:$D$92,0))","v":0},{"$f":"'C-Values and Rates'!CB125*INDEX('C-Diversion'!CB$88:CB$92, MATCH($D$121,'C-Diversion'!$D$88:$D$92,0))","v":0},{"$f":"'C-Values and Rates'!CC125*INDEX('C-Diversion'!CC$88:CC$92, MATCH($D$121,'C-Diversion'!$D$88:$D$92,0))","v":0},{"$f":"'C-Values and Rates'!CD125*INDEX('C-Diversion'!CD$88:CD$92, MATCH($D$121,'C-Diversion'!$D$88:$D$92,0))","v":0},{"$f":"'C-Values and Rates'!CE125*INDEX('C-Diversion'!CE$88:CE$92, MATCH($D$121,'C-Diversion'!$D$88:$D$92,0))","v":0}]
[null,null,null,"Greenhouse Gases",null,null,null,{"$f":"SUM(K127:CE127)","v":66562.631761459357},null,"£, 2023 prices",{"$f":"'C-Values and Rates'!K126*INDEX('C-Diversion'!K$88:K$92, MATCH($D$121,'C-Diversion'!$D$88:$D$92,0))","v":0},{"$f":"'C-Values and Rates'!L126*INDEX('C-Diversion'!L$88:L$92, MATCH($D$121,'C-Diversion'!$D$88:$D$92,0))","v":0},{"$f":"'C-Values and Rates'!M126*INDEX('C-Diversion'!M$88:M$92, MATCH($D$121,'C-Diversion'!$D$88:$D$92,0))","v":0},{"$f":"'C-Values and Rates'!N126*INDEX('C-Diversion'!N$88:N$92, MATCH($D$121,'C-Diversion'!$D$88:$D$92,0))","v":0},{"$f":"'C-Values and Rates'!O126*INDEX('C-Diversion'!O$88:O$92, MATCH($D$121,'C-Diversion'!$D$88:$D$92,0))","v":0},{"$f":"'C-Values and Rates'!P126*INDEX('C-Diversion'!P$88:P$92, MATCH($D$121,'C-Diversion'!$D$88:$D$92,0))","v":783.83736180564892},{"$f":"'C-Values and Rates'!Q126*INDEX('C-Diversion'!Q$88:Q$92, MATCH($D$121,'C-Diversion'!$D$88:$D$92,0))","v":794.29710788221041},{"$f":"'C-Values and Rates'!R126*INDEX('C-Diversion'!R$88:R$92, MATCH($D$121,'C-Diversion'!$D$88:$D$92,0))","v":804.89643175043773},{"$f":"'C-Values and Rates'!S126*INDEX('C-Diversion'!S$88:S$92, MATCH($D$121,'C-Diversion'!$D$88:$D$92,0))","v":816.13402078930415},{"$f":"'C-Values and Rates'!T126*INDEX('C-Diversion'!T$88:T$92, MATCH($D$121,'C-Diversion'!$D$88:$D$92,0))","v":827.528503811576},{"$f":"'C-Values and Rates'!U126*INDEX('C-Diversion'!U$88:U$92, MATCH($D$121,'C-Diversion'!$D$88:$D$92,0))","v":839.08207129796529},{"$f":"'C-Values and Rates'!V126*INDEX('C-Diversion'!V$88:V$92, MATCH($D$121,'C-Diversion'!$D$88:$D$92,0))","v":850.79694431165342},{"$f":"'C-Values and Rates'!W126*INDEX('C-Diversion'!W$88:W$92, MATCH($D$121,'C-Diversion'!$D$88:$D$92,0))","v":862.67537492527322},{"$f":"'C-Values and Rates'!X126*INDEX('C-Diversion'!X$88:X$92, MATCH($D$121,'C-Diversion'!$D$88:$D$92,0))","v":875.55655662006791},{"$f":"'C-Values and Rates'!Y126*INDEX('C-Diversion'!Y$88:Y$92, MATCH($D$121,'C-Diversion'!$D$88:$D$92,0))","v":888.63007583448689},{"$f":"'C-Values and Rates'!Z126*INDEX('C-Diversion'!Z$88:Z$92, MATCH($D$121,'C-Diversion'!$D$88:$D$92,0))","v":901.89880448838483},{"$f":"'C-Values and Rates'!AA126*INDEX('C-Diversion'!AA$88:AA$92, MATCH($D$121,'C-Diversion'!$D$88:$D$92,0))","v":915.36565738416755},{"$f":"'C-Values and Rates'!AB126*INDEX('C-Diversion'!AB$88:AB$92, MATCH($D$121,'C-Diversion'!$D$88:$D$92,0))","v":929.0335928471012},{"$f":"'C-Values and Rates'!AC126*INDEX('C-Diversion'!AC$88:AC$92, MATCH($D$121,'C-Diversion'!$D$88:$D$92,0))","v":941.98678087106373},{"$f":"'C-Values and Rates'!AD126*INDEX('C-Diversion'!AD$88:AD$92, MATCH($D$121,'C-Diversion'!$D$88:$D$92,0))","v":955.12057063136365},{"$f":"'C-Values and Rates'!AE126*INDEX('C-Diversion'!AE$88:AE$92, MATCH($D$121,'C-Diversion'!$D$88:$D$92,0))","v":968.4374801943726},{"$f":"'C-Values and Rates'!AF126*INDEX('C-Diversion'!AF$88:AF$92, MATCH($D$121,'C-Diversion'!$D$88:$D$92,0))","v":981.94006273497473},{"$f":"'C-Values and Rates'!AG126*INDEX('C-Diversion'!AG$88:AG$92, MATCH($D$121,'C-Diversion'!$D$88:$D$92,0))","v":995.63090702607121},{"$f":"'C-Values and Rates'!AH126*INDEX('C-Diversion'!AH$88:AH$92, MATCH($D$121,'C-Diversion'!$D$88:$D$92,0))","v":1009.3506292428892},{"$f":"'C-Values and Rates'!AI126*INDEX('C-Diversion'!AI$88:AI$92, MATCH($D$121,'C-Diversion'!$D$88:$D$92,0))","v":1023.2594082440824},{"$f":"'C-Values and Rates'!AJ126*INDEX('C-Diversion'!AJ$88:AJ$92, MATCH($D$121,'C-Diversion'!$D$88:$D$92,0))","v":1037.3598492185276},{"$f":"'C-Values and Rates'!AK126*INDEX('C-Diversion'!AK$88:AK$92, MATCH($D$121,'C-Diversion'!$D$88:$D$92,0))","v":1051.6545932544175},{"$f":"'C-Values and Rates'!AL126*INDEX('C-Diversion'!AL$88:AL$92, MATCH($D$121,'C-Diversion'!$D$88:$D$92,0))","v":1066.1463178339495},{"$f":"'C-Values and Rates'!AM126*INDEX('C-Diversion'!AM$88:AM$92, MATCH($D$121,'C-Diversion'!$D$88:$D$92,0))","v":1083.3263933099342},{"$f":"'C-Values and Rates'!AN126*INDEX('C-Diversion'!AN$88:AN$92, MATCH($D$121,'C-Diversion'!$D$88:$D$92,0))","v":1100.7833116436236},{"$f":"'C-Values and Rates'!AO126*INDEX('C-Diversion'!AO$88:AO$92, MATCH($D$121,'C-Diversion'!$D$88:$D$92,0))","v":1118.5215339311271},{"$f":"'C-Values and Rates'!AP126*INDEX('C-Diversion'!AP$88:AP$92, MATCH($D$121,'C-Diversion'!$D$88:$D$92,0))","v":1136.545593155467},{"$f":"'C-Values and Rates'!AQ126*INDEX('C-Diversion'!AQ$88:AQ$92, MATCH($D$121,'C-Diversion'!$D$88:$D$92,0))","v":1154.8600953449777},{"$f":"'C-Values and Rates'!AR126*INDEX('C-Diversion'!AR$88:AR$92, MATCH($D$121,'C-Diversion'!$D$88:$D$92,0))","v":1173.5490217956258},{"$f":"'C-Values and Rates'!AS126*INDEX('C-Diversion'!AS$88:AS$92, MATCH($D$121,'C-Diversion'!$D$88:$D$92,0))","v":1192.5403883195654},{"$f":"'C-Values and Rates'!AT126*INDEX('C-Diversion'!AT$88:AT$92, MATCH($D$121,'C-Diversion'!$D$88:$D$92,0))","v":1211.8390892588111},{"$f":"'C-Values and Rates'!AU126*INDEX('C-Diversion'!AU$88:AU$92, MATCH($D$121,'C-Diversion'!$D$88:$D$92,0))","v":1231.4500981597748},{"$f":"'C-Values and Rates'!AV126*INDEX('C-Diversion'!AV$88:AV$92, MATCH($D$121,'C-Diversion'!$D$88:$D$92,0))","v":1251.3784690550185},{"$f":"'C-Values and Rates'!AW126*INDEX('C-Diversion'!AW$88:AW$92, MATCH($D$121,'C-Diversion'!$D$88:$D$92,0))","v":1251.3784690550185},{"$f":"'C-Values and Rates'!AX126*INDEX('C-Diversion'!AX$88:AX$92, MATCH($D$121,'C-Diversion'!$D$88:$D$92,0))","v":1251.3784690550185},{"$f":"'C-Values and Rates'!AY126*INDEX('C-Diversion'!AY$88:AY$92, MATCH($D$121,'C-Diversion'!$D$88:$D$92,0))","v":1251.3784690550185},{"$f":"'C-Values and Rates'!AZ126*INDEX('C-Diversion'!AZ$88:AZ$92, MATCH($D$121,'C-Diversion'!$D$88:$D$92,0))","v":1251.3784690550185},{"$f":"'C-Values and Rates'!BA126*INDEX('C-Diversion'!BA$88:BA$92, MATCH($D$121,'C-Diversion'!$D$88:$D$92,0))","v":1251.3784690550185},{"$f":"'C-Values and Rates'!BB126*INDEX('C-Diversion'!BB$88:BB$92, MATCH($D$121,'C-Diversion'!$D$88:$D$92,0))","v":1251.3784690550185},{"$f":"'C-Values and Rates'!BC126*INDEX('C-Diversion'!BC$88:BC$92, MATCH($D$121,'C-Diversion'!$D$88:$D$92,0))","v":1251.3784690550185},{"$f":"'C-Values and Rates'!BD126*INDEX('C-Diversion'!BD$88:BD$92, MATCH($D$121,'C-Diversion'!$D$88:$D$92,0))","v":1251.3784690550185},{"$f":"'C-Values and Rates'!BE126*INDEX('C-Diversion'!BE$88:BE$92, MATCH($D$121,'C-Diversion'!$D$88:$D$92,0))","v":1251.3784690550185},{"$f":"'C-Values and Rates'!BF126*INDEX('C-Diversion'!BF$88:BF$92, MATCH($D$121,'C-Diversion'!$D$88:$D$92,0))","v":1251.3784690550185},{"$f":"'C-Values and Rates'!BG126*INDEX('C-Diversion'!BG$88:BG$92, MATCH($D$121,'C-Diversion'!$D$88:$D$92,0))","v":1251.3784690550185},{"$f":"'C-Values and Rates'!BH126*INDEX('C-Diversion'!BH$88:BH$92, MATCH($D$121,'C-Diversion'!$D$88:$D$92,0))","v":1251.3784690550185},{"$f":"'C-Values and Rates'!BI126*INDEX('C-Diversion'!BI$88:BI$92, MATCH($D$121,'C-Diversion'!$D$88:$D$92,0))","v":1251.3784690550185},{"$f":"'C-Values and Rates'!BJ126*INDEX('C-Diversion'!BJ$88:BJ$92, MATCH($D$121,'C-Diversion'!$D$88:$D$92,0))","v":1251.3784690550185},{"$f":"'C-Values and Rates'!BK126*INDEX('C-Diversion'!BK$88:BK$92, MATCH($D$121,'C-Diversion'!$D$88:$D$92,0))","v":1251.3784690550185},{"$f":"'C-Values and Rates'!BL126*INDEX('C-Diversion'!BL$88:BL$92, MATCH($D$121,'C-Diversion'!$D$88:$D$92,0))","v":1251.3784690550185},{"$f":"'C-Values and Rates'!BM126*INDEX('C-Diversion'!BM$88:BM$92, MATCH($D$121,'C-Diversion'!$D$88:$D$92,0))","v":1251.3784690550185},{"$f":"'C-Values and Rates'!BN126*INDEX('C-Diversion'!BN$88:BN$92, MATCH($D$121,'C-Diversion'!$D$88:$D$92,0))","v":1251.3784690550185},{"$f":"'C-Values and Rates'!BO126*INDEX('C-Diversion'!BO$88:BO$92, MATCH($D$121,'C-Diversion'!$D$88:$D$92,0))","v":1251.3784690550185},{"$f":"'C-Values and Rates'!BP126*INDEX('C-Diversion'!BP$88:BP$92, MATCH($D$121,'C-Diversion'!$D$88:$D$92,0))","v":1251.3784690550185},{"$f":"'C-Values and Rates'!BQ126*INDEX('C-Diversion'!BQ$88:BQ$92, MATCH($D$121,'C-Diversion'!$D$88:$D$92,0))","v":1251.3784690550185},{"$f":"'C-Values and Rates'!BR126*INDEX('C-Diversion'!BR$88:BR$92, MATCH($D$121,'C-Diversion'!$D$88:$D$92,0))","v":1251.3784690550185},{"$f":"'C-Values and Rates'!BS126*INDEX('C-Diversion'!BS$88:BS$92, MATCH($D$121,'C-Diversion'!$D$88:$D$92,0))","v":1251.3784690550185},{"$f":"'C-Values and Rates'!BT126*INDEX('C-Diversion'!BT$88:BT$92, MATCH($D$121,'C-Diversion'!$D$88:$D$92,0))","v":1251.3784690550185},{"$f":"'C-Values and Rates'!BU126*INDEX('C-Diversion'!BU$88:BU$92, MATCH($D$121,'C-Diversion'!$D$88:$D$92,0))","v":1251.3784690550185},{"$f":"'C-Values and Rates'!BV126*INDEX('C-Diversion'!BV$88:BV$92, MATCH($D$121,'C-Diversion'!$D$88:$D$92,0))","v":1251.3784690550185},{"$f":"'C-Values and Rates'!BW126*INDEX('C-Diversion'!BW$88:BW$92, MATCH($D$121,'C-Diversion'!$D$88:$D$92,0))","v":1251.3784690550185},{"$f":"'C-Values and Rates'!BX126*INDEX('C-Diversion'!BX$88:BX$92, MATCH($D$121,'C-Diversion'!$D$88:$D$92,0))","v":0},{"$f":"'C-Values and Rates'!BY126*INDEX('C-Diversion'!BY$88:BY$92, MATCH($D$121,'C-Diversion'!$D$88:$D$92,0))","v":0},{"$f":"'C-Values and Rates'!BZ126*INDEX('C-Diversion'!BZ$88:BZ$92, MATCH($D$121,'C-Diversion'!$D$88:$D$92,0))","v":0},{"$f":"'C-Values and Rates'!CA126*INDEX('C-Diversion'!CA$88:CA$92, MATCH($D$121,'C-Diversion'!$D$88:$D$92,0))","v":0},{"$f":"'C-Values and Rates'!CB126*INDEX('C-Diversion'!CB$88:CB$92, MATCH($D$121,'C-Diversion'!$D$88:$D$92,0))","v":0},{"$f":"'C-Values and Rates'!CC126*INDEX('C-Diversion'!CC$88:CC$92, MATCH($D$121,'C-Diversion'!$D$88:$D$92,0))","v":0},{"$f":"'C-Values and Rates'!CD126*INDEX('C-Diversion'!CD$88:CD$92, MATCH($D$121,'C-Diversion'!$D$88:$D$92,0))","v":0},{"$f":"'C-Values and Rates'!CE126*INDEX('C-Diversion'!CE$88:CE$92, MATCH($D$121,'C-Diversion'!$D$88:$D$92,0))","v":0}]
[null,null,null,"Indirect Taxation",null,null,null,-30607.777965784684,null,"£, 2023 prices",{"$f":"'C-Values and Rates'!K127*INDEX('C-Diversion'!K$88:K$92, MATCH($D$121,'C-Diversion'!$D$88:$D$92,0))","v":0},{"$f":"'C-Values and Rates'!L127*INDEX('C-Diversion'!L$88:L$92, MATCH($D$121,'C-Diversion'!$D$88:$D$92,0))","v":0},{"$f":"'C-Values and Rates'!M127*INDEX('C-Diversion'!M$88:M$92, MATCH($D$121,'C-Diversion'!$D$88:$D$92,0))","v":0},{"$f":"'C-Values and Rates'!N127*INDEX('C-Diversion'!N$88:N$92, MATCH($D$121,'C-Diversion'!$D$88:$D$92,0))","v":0},{"$f":"'C-Values and Rates'!O127*INDEX('C-Diversion'!O$88:O$92, MATCH($D$121,'C-Diversion'!$D$88:$D$92,0))","v":0},{"$f":"'C-Values and Rates'!P127*INDEX('C-Diversion'!P$88:P$92, MATCH($D$121,'C-Diversion'!$D$88:$D$92,0))","v":-540.917417791969},{"$f":"'C-Values and Rates'!Q127*INDEX('C-Diversion'!Q$88:Q$92, MATCH($D$121,'C-Diversion'!$D$88:$D$92,0))","v":-540.17599456814457},{"$f":"'C-Values and Rates'!R127*INDEX('C-Diversion'!R$88:R$92, MATCH($D$121,'C-Diversion'!$D$88:$D$92,0))","v":-539.43457134432037},{"$f":"'C-Values and Rates'!S127*INDEX('C-Diversion'!S$88:S$92, MATCH($D$121,'C-Diversion'!$D$88:$D$92,0))","v":-536.24987116852606},{"$f":"'C-Values and Rates'!T127*INDEX('C-Diversion'!T$88:T$92, MATCH($D$121,'C-Diversion'!$D$88:$D$92,0))","v":-533.06517099273185},{"$f":"'C-Values and Rates'!U127*INDEX('C-Diversion'!U$88:U$92, MATCH($D$121,'C-Diversion'!$D$88:$D$92,0))","v":-529.88047081693753},{"$f":"'C-Values and Rates'!V127*INDEX('C-Diversion'!V$88:V$92, MATCH($D$121,'C-Diversion'!$D$88:$D$92,0))","v":-526.69577064114321},{"$f":"'C-Values and Rates'!W127*INDEX('C-Diversion'!W$88:W$92, MATCH($D$121,'C-Diversion'!$D$88:$D$92,0))","v":-523.51107046534901},{"$f":"'C-Values and Rates'!X127*INDEX('C-Diversion'!X$88:X$92, MATCH($D$121,'C-Diversion'!$D$88:$D$92,0))","v":-523.21770251598639},{"$f":"'C-Values and Rates'!Y127*INDEX('C-Diversion'!Y$88:Y$92, MATCH($D$121,'C-Diversion'!$D$88:$D$92,0))","v":-522.92433456662388},{"$f":"'C-Values and Rates'!Z127*INDEX('C-Diversion'!Z$88:Z$92, MATCH($D$121,'C-Diversion'!$D$88:$D$92,0))","v":-522.63096661726127},{"$f":"'C-Values and Rates'!AA127*INDEX('C-Diversion'!AA$88:AA$92, MATCH($D$121,'C-Diversion'!$D$88:$D$92,0))","v":-522.33759866789876},{"$f":"'C-Values and Rates'!AB127*INDEX('C-Diversion'!AB$88:AB$92, MATCH($D$121,'C-Diversion'!$D$88:$D$92,0))","v":-522.04423071853614},{"$f":"'C-Values and Rates'!AC127*INDEX('C-Diversion'!AC$88:AC$92, MATCH($D$121,'C-Diversion'!$D$88:$D$92,0))","v":-521.41076418978264},{"$f":"'C-Values and Rates'!AD127*INDEX('C-Diversion'!AD$88:AD$92, MATCH($D$121,'C-Diversion'!$D$88:$D$92,0))","v":-520.77729766102925},{"$f":"'C-Values and Rates'!AE127*INDEX('C-Diversion'!AE$88:AE$92, MATCH($D$121,'C-Diversion'!$D$88:$D$92,0))","v":-520.14383113227586},{"$f":"'C-Values and Rates'!AF127*INDEX('C-Diversion'!AF$88:AF$92, MATCH($D$121,'C-Diversion'!$D$88:$D$92,0))","v":-519.51036460352236},{"$f":"'C-Values and Rates'!AG127*INDEX('C-Diversion'!AG$88:AG$92, MATCH($D$121,'C-Diversion'!$D$88:$D$92,0))","v":-518.87689807476897},{"$f":"'C-Values and Rates'!AH127*INDEX('C-Diversion'!AH$88:AH$92, MATCH($D$121,'C-Diversion'!$D$88:$D$92,0))","v":-517.0273716135107},{"$f":"'C-Values and Rates'!AI127*INDEX('C-Diversion'!AI$88:AI$92, MATCH($D$121,'C-Diversion'!$D$88:$D$92,0))","v":-515.1778451522523},{"$f":"'C-Values and Rates'!AJ127*INDEX('C-Diversion'!AJ$88:AJ$92, MATCH($D$121,'C-Diversion'!$D$88:$D$92,0))","v":-513.32831869099402},{"$f":"'C-Values and Rates'!AK127*INDEX('C-Diversion'!AK$88:AK$92, MATCH($D$121,'C-Diversion'!$D$88:$D$92,0))","v":-511.47879222973569},{"$f":"'C-Values and Rates'!AL127*INDEX('C-Diversion'!AL$88:AL$92, MATCH($D$121,'C-Diversion'!$D$88:$D$92,0))","v":-509.6292657684773},{"$f":"'C-Values and Rates'!AM127*INDEX('C-Diversion'!AM$88:AM$92, MATCH($D$121,'C-Diversion'!$D$88:$D$92,0))","v":-508.68440786863812},{"$f":"'C-Values and Rates'!AN127*INDEX('C-Diversion'!AN$88:AN$92, MATCH($D$121,'C-Diversion'!$D$88:$D$92,0))","v":-507.73954996879888},{"$f":"'C-Values and Rates'!AO127*INDEX('C-Diversion'!AO$88:AO$92, MATCH($D$121,'C-Diversion'!$D$88:$D$92,0))","v":-506.79469206895976},{"$f":"'C-Values and Rates'!AP127*INDEX('C-Diversion'!AP$88:AP$92, MATCH($D$121,'C-Diversion'!$D$88:$D$92,0))","v":-505.84983416912053},{"$f":"'C-Values and Rates'!AQ127*INDEX('C-Diversion'!AQ$88:AQ$92, MATCH($D$121,'C-Diversion'!$D$88:$D$92,0))","v":-504.90497626928129},{"$f":"'C-Values and Rates'!AR127*INDEX('C-Diversion'!AR$88:AR$92, MATCH($D$121,'C-Diversion'!$D$88:$D$92,0))","v":-504.01430523482162},{"$f":"'C-Values and Rates'!AS127*INDEX('C-Diversion'!AS$88:AS$92, MATCH($D$121,'C-Diversion'!$D$88:$D$92,0))","v":-503.12363420036212},{"$f":"'C-Values and Rates'!AT127*INDEX('C-Diversion'!AT$88:AT$92, MATCH($D$121,'C-Diversion'!$D$88:$D$92,0))","v":-502.23296316590245},{"$f":"'C-Values and Rates'!AU127*INDEX('C-Diversion'!AU$88:AU$92, MATCH($D$121,'C-Diversion'!$D$88:$D$92,0))","v":-501.34229213144295},{"$f":"'C-Values and Rates'!AV127*INDEX('C-Diversion'!AV$88:AV$92, MATCH($D$121,'C-Diversion'!$D$88:$D$92,0))","v":-500.45162109698327},{"$f":"'C-Values and Rates'!AW127*INDEX('C-Diversion'!AW$88:AW$92, MATCH($D$121,'C-Diversion'!$D$88:$D$92,0))","v":-500.45162109698327},{"$f":"'C-Values and Rates'!AX127*INDEX('C-Diversion'!AX$88:AX$92, MATCH($D$121,'C-Diversion'!$D$88:$D$92,0))","v":-500.45162109698327},{"$f":"'C-Values and Rates'!AY127*INDEX('C-Diversion'!AY$88:AY$92, MATCH($D$121,'C-Diversion'!$D$88:$D$92,0))","v":-500.45162109698327},{"$f":"'C-Values and Rates'!AZ127*INDEX('C-Diversion'!AZ$88:AZ$92, MATCH($D$121,'C-Diversion'!$D$88:$D$92,0))","v":-500.45162109698327},{"$f":"'C-Values and Rates'!BA127*INDEX('C-Diversion'!BA$88:BA$92, MATCH($D$121,'C-Diversion'!$D$88:$D$92,0))","v":-500.45162109698327},{"$f":"'C-Values and Rates'!BB127*INDEX('C-Diversion'!BB$88:BB$92, MATCH($D$121,'C-Diversion'!$D$88:$D$92,0))","v":-500.45162109698327},{"$f":"'C-Values and Rates'!BC127*INDEX('C-Diversion'!BC$88:BC$92, MATCH($D$121,'C-Diversion'!$D$88:$D$92,0))","v":-500.45162109698327},{"$f":"'C-Values and Rates'!BD127*INDEX('C-Diversion'!BD$88:BD$92, MATCH($D$121,'C-Diversion'!$D$88:$D$92,0))","v":-500.45162109698327},{"$f":"'C-Values and Rates'!BE127*INDEX('C-Diversion'!BE$88:BE$92, MATCH($D$121,'C-Diversion'!$D$88:$D$92,0))","v":-500.45162109698327},{"$f":"'C-Values and Rates'!BF127*INDEX('C-Diversion'!BF$88:BF$92, MATCH($D$121,'C-Diversion'!$D$88:$D$92,0))","v":-500.45162109698327},{"$f":"'C-Values and Rates'!BG127*INDEX('C-Diversion'!BG$88:BG$92, MATCH($D$121,'C-Diversion'!$D$88:$D$92,0))","v":-500.45162109698327},{"$f":"'C-Values and Rates'!BH127*INDEX('C-Diversion'!BH$88:BH$92, MATCH($D$121,'C-Diversion'!$D$88:$D$92,0))","v":-500.45162109698327},{"$f":"'C-Values and Rates'!BI127*INDEX('C-Diversion'!BI$88:BI$92, MATCH($D$121,'C-Diversion'!$D$88:$D$92,0))","v":-500.45162109698327},{"$f":"'C-Values and Rates'!BJ127*INDEX('C-Diversion'!BJ$88:BJ$92, MATCH($D$121,'C-Diversion'!$D$88:$D$92,0))","v":-500.45162109698327},{"$f":"'C-Values and Rates'!BK127*INDEX('C-Diversion'!BK$88:BK$92, MATCH($D$121,'C-Diversion'!$D$88:$D$92,0))","v":-500.45162109698327},{"$f":"'C-Values and Rates'!BL127*INDEX('C-Diversion'!BL$88:BL$92, MATCH($D$121,'C-Diversion'!$D$88:$D$92,0))","v":-500.45162109698327},{"$f":"'C-Values and Rates'!BM127*INDEX('C-Diversion'!BM$88:BM$92, MATCH($D$121,'C-Diversion'!$D$88:$D$92,0))","v":-500.45162109698327},{"$f":"'C-Values and Rates'!BN127*INDEX('C-Diversion'!BN$88:BN$92, MATCH($D$121,'C-Diversion'!$D$88:$D$92,0))","v":-500.45162109698327},{"$f":"'C-Values and Rates'!BO127*INDEX('C-Diversion'!BO$88:BO$92, MATCH($D$121,'C-Diversion'!$D$88:$D$92,0))","v":-500.45162109698327},{"$f":"'C-Values and Rates'!BP127*INDEX('C-Diversion'!BP$88:BP$92, MATCH($D$121,'C-Diversion'!$D$88:$D$92,0))","v":-500.45162109698327},{"$f":"'C-Values and Rates'!BQ127*INDEX('C-Diversion'!BQ$88:BQ$92, MATCH($D$121,'C-Diversion'!$D$88:$D$92,0))","v":-500.45162109698327},{"$f":"'C-Values and Rates'!BR127*INDEX('C-Diversion'!BR$88:BR$92, MATCH($D$121,'C-Diversion'!$D$88:$D$92,0))","v":-500.45162109698327},{"$f":"'C-Values and Rates'!BS127*INDEX('C-Diversion'!BS$88:BS$92, MATCH($D$121,'C-Diversion'!$D$88:$D$92,0))","v":-500.45162109698327},{"$f":"'C-Values and Rates'!BT127*INDEX('C-Diversion'!BT$88:BT$92, MATCH($D$121,'C-Diversion'!$D$88:$D$92,0))","v":-500.45162109698327},{"$f":"'C-Values and Rates'!BU127*INDEX('C-Diversion'!BU$88:BU$92, MATCH($D$121,'C-Diversion'!$D$88:$D$92,0))","v":-500.45162109698327},{"$f":"'C-Values and Rates'!BV127*INDEX('C-Diversion'!BV$88:BV$92, MATCH($D$121,'C-Diversion'!$D$88:$D$92,0))","v":-500.45162109698327},{"$f":"'C-Values and Rates'!BW127*INDEX('C-Diversion'!BW$88:BW$92, MATCH($D$121,'C-Diversion'!$D$88:$D$92,0))","v":-500.45162109698327},{"$f":"'C-Values and Rates'!BX127*INDEX('C-Diversion'!BX$88:BX$92, MATCH($D$121,'C-Diversion'!$D$88:$D$92,0))","v":0},{"$f":"'C-Values and Rates'!BY127*INDEX('C-Diversion'!BY$88:BY$92, MATCH($D$121,'C-Diversion'!$D$88:$D$92,0))","v":0},{"$f":"'C-Values and Rates'!BZ127*INDEX('C-Diversion'!BZ$88:BZ$92, MATCH($D$121,'C-Diversion'!$D$88:$D$92,0))","v":0},{"$f":"'C-Values and Rates'!CA127*INDEX('C-Diversion'!CA$88:CA$92, MATCH($D$121,'C-Diversion'!$D$88:$D$92,0))","v":0},{"$f":"'C-Values and Rates'!CB127*INDEX('C-Diversion'!CB$88:CB$92, MATCH($D$121,'C-Diversion'!$D$88:$D$92,0))","v":0},{"$f":"'C-Values and Rates'!CC127*INDEX('C-Diversion'!CC$88:CC$92, MATCH($D$121,'C-Diversion'!$D$88:$D$92,0))","v":0},{"$f":"'C-Values and Rates'!CD127*INDEX('C-Diversion'!CD$88:CD$92, MATCH($D$121,'C-Diversion'!$D$88:$D$92,0))","v":0},{"$f":"'C-Values and Rates'!CE127*INDEX('C-Diversion'!CE$88:CE$92, MATCH($D$121,'C-Diversion'!$D$88:$D$92,0))","v":0}]
[]
[null,"END"]

{"sheet":"C-Annual Impacts","index":15,"n_rows":75,"n_cols":83,"rows_kept":75,"cut":false,"hidden":true,"merged":[]}
[null,{"$f":"SUM(A:A)","v":0}]
[null,"File Name",null,null,null,null,{"$f":"IFERROR(MID(CELL(\"filename\",G2),FIND(\"[\",CELL(\"filename\",G2))+1,FIND(\"]\",CELL(\"filename\",G2))-FIND(\"[\",CELL(\"filename\",G2))-1),\"Please save the file to show here\")","v":"structures-fund-economic-tool Final 03082026.xlsm"}]
[null,"Sheet Name",null,null,null,null,{"$f":"IFERROR(MID(CELL(\"filename\",G2),FIND(\"]\",CELL(\"filename\",G2))+1,255),\"Please save the file to show here\")","v":"C-Annual Impacts"}]
[null,"Description and Purpose of Sheet",null,null,null,null,"This sheet calculates the annual impacts of diversion route based on the number of days the diversion is in place."]
[null,"Version number",null,null,null,null,{"$f":"Version_Number","v":1}]
[]
[]
[null,"C-Annual Impacts"]
[]
[null,null,null,null,"Constant",null,null,"Total",null,"Unit",2023,2024,2025,2026,2027,2028,2029,2030,2031,2032,2033,2034,2035,2036,2037,2038,2039,2040,2041,2042,2043,2044,2045,2046,2047,2048,2049,2050,2051,2052,2053,2054,2055,2056,2057,2058,2059,2060,2061,2062,2063,2064,2065,2066,2067,2068,2069,2070,2071,2072,2073,2074,2075,2076,2077,2078,2079,2080,2081,2082,2083,2084,2085,2086,2087,2088,2089,2090,2091,2092,2093,2094,2095]
[]
[null,null,null,"Appraisal period",null,null,null,null,null,"flag",{"$f":"'C-Values and Rates'!K15","v":0},{"$f":"'C-Values and Rates'!L15","v":0},{"$f":"'C-Values and Rates'!M15","v":0},{"$f":"'C-Values and Rates'!N15","v":0},{"$f":"'C-Values and Rates'!O15","v":0},{"$f":"'C-Values and Rates'!P15","v":1},{"$f":"'C-Values and Rates'!Q15","v":1},{"$f":"'C-Values and Rates'!R15","v":1},{"$f":"'C-Values and Rates'!S15","v":1},{"$f":"'C-Values and Rates'!T15","v":1},{"$f":"'C-Values and Rates'!U15","v":1},{"$f":"'C-Values and Rates'!V15","v":1},{"$f":"'C-Values and Rates'!W15","v":1},{"$f":"'C-Values and Rates'!X15","v":1},{"$f":"'C-Values and Rates'!Y15","v":1},{"$f":"'C-Values and Rates'!Z15","v":1},{"$f":"'C-Values and Rates'!AA15","v":1},{"$f":"'C-Values and Rates'!AB15","v":1},{"$f":"'C-Values and Rates'!AC15","v":1},{"$f":"'C-Values and Rates'!AD15","v":1},{"$f":"'C-Values and Rates'!AE15","v":1},{"$f":"'C-Values and Rates'!AF15","v":1},{"$f":"'C-Values and Rates'!AG15","v":1},{"$f":"'C-Values and Rates'!AH15","v":1},{"$f":"'C-Values and Rates'!AI15","v":1},{"$f":"'C-Values and Rates'!AJ15","v":1},{"$f":"'C-Values and Rates'!AK15","v":1},{"$f":"'C-Values and Rates'!AL15","v":1},{"$f":"'C-Values and Rates'!AM15","v":1},{"$f":"'C-Values and Rates'!AN15","v":1},{"$f":"'C-Values and Rates'!AO15","v":1},{"$f":"'C-Values and Rates'!AP15","v":1},{"$f":"'C-Values and Rates'!AQ15","v":1},{"$f":"'C-Values and Rates'!AR15","v":1},{"$f":"'C-Values and Rates'!AS15","v":1},{"$f":"'C-Values and Rates'!AT15","v":1},{"$f":"'C-Values and Rates'!AU15","v":1},{"$f":"'C-Values and Rates'!AV15","v":1},{"$f":"'C-Values and Rates'!AW15","v":1},{"$f":"'C-Values and Rates'!AX15","v":1},{"$f":"'C-Values and Rates'!AY15","v":1},{"$f":"'C-Values and Rates'!AZ15","v":1},{"$f":"'C-Values and Rates'!BA15","v":1},{"$f":"'C-Values and Rates'!BB15","v":1},{"$f":"'C-Values and Rates'!BC15","v":1},{"$f":"'C-Values and Rates'!BD15","v":1},{"$f":"'C-Values and Rates'!BE15","v":1},{"$f":"'C-Values and Rates'!BF15","v":1},{"$f":"'C-Values and Rates'!BG15","v":1},{"$f":"'C-Values and Rates'!BH15","v":1},{"$f":"'C-Values and Rates'!BI15","v":1},{"$f":"'C-Values and Rates'!BJ15","v":1},{"$f":"'C-Values and Rates'!BK15","v":1},{"$f":"'C-Values and Rates'!BL15","v":1},{"$f":"'C-Values and Rates'!BM15","v":1},{"$f":"'C-Values and Rates'!BN15","v":1},{"$f":"'C-Values and Rates'!BO15","v":1},{"$f":"'C-Values and Rates'!BP15","v":1},{"$f":"'C-Values and Rates'!BQ15","v":1},{"$f":"'C-Values and Rates'!BR15","v":1},{"$f":"'C-Values and Rates'!BS15","v":1},{"$f":"'C-Values and Rates'!BT15","v":1},{"$f":"'C-Values and Rates'!BU15","v":1},{"$f":"'C-Values and Rates'!BV15","v":1},{"$f":"'C-Values and Rates'!BW15","v":1},{"$f":"'C-Values and Rates'!BX15","v":0},{"$f":"'C-Values and Rates'!BY15","v":0},{"$f":"'C-Values and Rates'!BZ15","v":0},{"$f":"'C-Values and Rates'!CA15","v":0},{"$f":"'C-Values and Rates'!CB15","v":0},{"$f":"'C-Values and Rates'!CC15","v":0},{"$f":"'C-Values and Rates'!CD15","v":0},{"$f":"'C-Values and Rates'!CE15","v":0}]
[null,null,null,"Diversion scenario",null,null,null,null,null,"flag",{"$f":"MAX('C-Values and Rates'!K16:K18)","v":0},{"$f":"MAX('C-Values and Rates'!L16:L18)","v":0},{"$f":"MAX('C-Values and Rates'!M16:M18)","v":0},{"$f":"MAX('C-Values and Rates'!N16:N18)","v":0},{"$f":"MAX('C-Values and Rates'!O16:O18)","v":0},{"$f":"MAX('C-Values and Rates'!P16:P18)","v":1},{"$f":"MAX('C-Values and Rates'!Q16:Q18)","v":1},{"$f":"MAX('C-Values and Rates'!R16:R18)","v":1},{"$f":"MAX('C-Values and Rates'!S16:S18)","v":1},{"$f":"MAX('C-Values and Rates'!T16:T18)","v":1},{"$f":"MAX('C-Values and Rates'!U16:U18)","v":1},{"$f":"MAX('C-Values and Rates'!V16:V18)","v":1},{"$f":"MAX('C-Values and Rates'!W16:W18)","v":1},{"$f":"MAX('C-Values and Rates'!X16:X18)","v":1},{"$f":"MAX('C-Values and Rates'!Y16:Y18)","v":1},{"$f":"MAX('C-Values and Rates'!Z16:Z18)","v":2},{"$f":"MAX('C-Values and Rates'!AA16:AA18)","v":2},{"$f":"MAX('C-Values and Rates'!AB16:AB18)","v":2},{"$f":"MAX('C-Values and Rates'!AC16:AC18)","v":2},{"$f":"MAX('C-Values and Rates'!AD16:AD18)","v":2},{"$f":"MAX('C-Values and Rates'!AE16:AE18)","v":2},{"$f":"MAX('C-Values and Rates'!AF16:AF18)","v":2},{"$f":"MAX('C-Values and Rates'!AG16:AG18)","v":2},{"$f":"MAX('C-Values and Rates'!AH16:AH18)","v":2},{"$f":"MAX('C-Values and Rates'!AI16:AI18)","v":2},{"$f":"MAX('C-Values and Rates'!AJ16:AJ18)","v":2},{"$f":"MAX('C-Values and Rates'!AK16:AK18)","v":2},{"$f":"MAX('C-Values and Rates'!AL16:AL18)","v":2},{"$f":"MAX('C-Values and Rates'!AM16:AM18)","v":2},{"$f":"MAX('C-Values and Rates'!AN16:AN18)","v":2},{"$f":"MAX('C-Values and Rates'!AO16:AO18)","v":2},{"$f":"MAX('C-Values and Rates'!AP16:AP18)","v":2},{"$f":"MAX('C-Values and Rates'!AQ16:AQ18)","v":2},{"$f":"MAX('C-Values and Rates'!AR16:AR18)","v":2},{"$f":"MAX('C-Values and Rates'!AS16:AS18)","v":2},{"$f":"MAX('C-Values and Rates'!AT16:AT18)","v":2},{"$f":"MAX('C-Values and Rates'!AU16:AU18)","v":2},{"$f":"MAX('C-Values and Rates'!AV16:AV18)","v":2},{"$f":"MAX('C-Values and Rates'!AW16:AW18)","v":2},{"$f":"MAX('C-Values and Rates'!AX16:AX18)","v":2},{"$f":"MAX('C-Values and Rates'!AY16:AY18)","v":2},{"$f":"MAX('C-Values and Rates'!AZ16:AZ18)","v":2},{"$f":"MAX('C-Values and Rates'!BA16:BA18)","v":2},{"$f":"MAX('C-Values and Rates'!BB16:BB18)","v":2},{"$f":"MAX('C-Values and Rates'!BC16:BC18)","v":2},{"$f":"MAX('C-Values and Rates'!BD16:BD18)","v":2},{"$f":"MAX('C-Values and Rates'!BE16:BE18)","v":2},{"$f":"MAX('C-Values and Rates'!BF16:BF18)","v":2},{"$f":"MAX('C-Values and Rates'!BG16:BG18)","v":2},{"$f":"MAX('C-Values and Rates'!BH16:BH18)","v":2},{"$f":"MAX('C-Values and Rates'!BI16:BI18)","v":2},{"$f":"MAX('C-Values and Rates'!BJ16:BJ18)","v":2},{"$f":"MAX('C-Values and Rates'!BK16:BK18)","v":2},{"$f":"MAX('C-Values and Rates'!BL16:BL18)","v":2},{"$f":"MAX('C-Values and Rates'!BM16:BM18)","v":2},{"$f":"MAX('C-Values and Rates'!BN16:BN18)","v":2},{"$f":"MAX('C-Values and Rates'!BO16:BO18)","v":2},{"$f":"MAX('C-Values and Rates'!BP16:BP18)","v":2},{"$f":"MAX('C-Values and Rates'!BQ16:BQ18)","v":2},{"$f":"MAX('C-Values and Rates'!BR16:BR18)","v":2},{"$f":"MAX('C-Values and Rates'!BS16:BS18)","v":2},{"$f":"MAX('C-Values and Rates'!BT16:BT18)","v":2},{"$f":"MAX('C-Values and Rates'!BU16:BU18)","v":2},{"$f":"MAX('C-Values and Rates'!BV16:BV18)","v":2},{"$f":"MAX('C-Values and Rates'!BW16:BW18)","v":2},{"$f":"MAX('C-Values and Rates'!BX16:BX18)","v":0},{"$f":"MAX('C-Values and Rates'!BY16:BY18)","v":0},{"$f":"MAX('C-Values and Rates'!BZ16:BZ18)","v":0},{"$f":"MAX('C-Values and Rates'!CA16:CA18)","v":0},{"$f":"MAX('C-Values and Rates'!CB16:CB18)","v":0},{"$f":"MAX('C-Values and Rates'!CC16:CC18)","v":0},{"$f":"MAX('C-Values and Rates'!CD16:CD18)","v":0},{"$f":"MAX('C-Values and Rates'!CE16:CE18)","v":0}]
[null,null,null,"Diversion flag",null,null,null,null,null,"flag",{"$f":"IF(K13=0,0,1)","v":0},{"$f":"IF(L13=0,0,1)","v":0},0,0,0,1,1,1,1,1,1,1,1,1,1,1,1,1,1,1,1,1,1,1,1,1,1,1,1,1,1,1,1,1,1,1,1,1,1,1,1,1,1,1,1,1,1,1,1,1,1,1,1,1,1,1,1,1,1,1,1,1,1,1,1,{"$f":"IF(BX13=0,0,1)","v":0},0,0,0,0,0,0,0]
[]
[null,null,"Diversion"]
[]
[null,null,null,"Days per annum"]
[null,null,null,"Cars",null,null,null,null,null,"days per annum",{"$f":"_xlfn.IFS(K$13=0,0,K$13=1, 'I-Scheme Details'!$E$80*'I-Scheme Details'!$E83,K$13=2,'I-Scheme Details'!$E$92*'I-Scheme Details'!$E95,K$13=3,'I-Scheme Details'!$E$104*'I-Scheme Details'!$E107)","v":0},{"$f":"_xlfn.IFS(L$13=0,0,L$13=1, 'I-Scheme Details'!$E$80*'I-Scheme Details'!$E83,L$13=2,'I-Scheme Details'!$E$92*'I-Scheme Details'!$E95,L$13=3,'I-Scheme Details'!$E$104*'I-Scheme Details'!$E107)","v":0},{"$f":"_xlfn.IFS(M$13=0,0,M$13=1, 'I-Scheme Details'!$E$80*'I-Scheme Details'!$E83,M$13=2,'I-Scheme Details'!$E$92*'I-Scheme Details'!$E95,M$13=3,'I-Scheme Details'!$E$104*'I-Scheme Details'!$E107)","v":0},{"$f":"_xlfn.IFS(N$13=0,0,N$13=1, 'I-Scheme Details'!$E$80*'I-Scheme Details'!$E83,N$13=2,'I-Scheme Details'!$E$92*'I-Scheme Details'!$E95,N$13=3,'I-Scheme Details'!$E$104*'I-Scheme Details'!$E107)","v":0},{"$f":"_xlfn.IFS(O$13=0,0,O$13=1, 'I-Scheme Details'!$E$80*'I-Scheme Details'!$E83,O$13=2,'I-Scheme Details'!$E$92*'I-Scheme Details'!$E95,O$13=3,'I-Scheme Details'!$E$104*'I-Scheme Details'!$E107)","v":0},{"$f":"_xlfn.IFS(P$13=0,0,P$13=1, 'I-Scheme Details'!$E$80*'I-Scheme Details'!$E83,P$13=2,'I-Scheme Details'!$E$92*'I-Scheme Details'!$E95,P$13=3,'I-Scheme Details'!$E$104*'I-Scheme Details'!$E107)","v":0},{"$f":"_xlfn.IFS(Q$13=0,0,Q$13=1, 'I-Scheme Details'!$E$80*'I-Scheme Details'!$E83,Q$13=2,'I-Scheme Details'!$E$92*'I-Scheme Details'!$E95,Q$13=3,'I-Scheme Details'!$E$104*'I-Scheme Details'!$E107)","v":0},{"$f":"_xlfn.IFS(R$13=0,0,R$13=1, 'I-Scheme Details'!$E$80*'I-Scheme Details'!$E83,R$13=2,'I-Scheme Details'!$E$92*'I-Scheme Details'!$E95,R$13=3,'I-Scheme Details'!$E$104*'I-Scheme Details'!$E107)","v":0},{"$f":"_xlfn.IFS(S$13=0,0,S$13=1, 'I-Scheme Details'!$E$80*'I-Scheme Details'!$E83,S$13=2,'I-Scheme Details'!$E$92*'I-Scheme Details'!$E95,S$13=3,'I-Scheme Details'!$E$104*'I-Scheme Details'!$E107)","v":0},{"$f":"_xlfn.IFS(T$13=0,0,T$13=1, 'I-Scheme Details'!$E$80*'I-Scheme Details'!$E83,T$13=2,'I-Scheme Details'!$E$92*'I-Scheme Details'!$E95,T$13=3,'I-Scheme Details'!$E$104*'I-Scheme Details'!$E107)","v":0},{"$f":"_xlfn.IFS(U$13=0,0,U$13=1, 'I-Scheme Details'!$E$80*'I-Scheme Details'!$E83,U$13=2,'I-Scheme Details'!$E$92*'I-Scheme Details'!$E95,U$13=3,'I-Scheme Details'!$E$104*'I-Scheme Details'!$E107)","v":0},{"$f":"_xlfn.IFS(V$13=0,0,V$13=1, 'I-Scheme Details'!$E$80*'I-Scheme Details'!$E83,V$13=2,'I-Scheme Details'!$E$92*'I-Scheme Details'!$E95,V$13=3,'I-Scheme Details'!$E$104*'I-Scheme Details'!$E107)","v":0},{"$f":"_xlfn.IFS(W$13=0,0,W$13=1, 'I-Scheme Details'!$E$80*'I-Scheme Details'!$E83,W$13=2,'I-Scheme Details'!$E$92*'I-Scheme Details'!$E95,W$13=3,'I-Scheme Details'!$E$104*'I-Scheme Details'!$E107)","v":0},{"$f":"_xlfn.IFS(X$13=0,0,X$13=1, 'I-Scheme Details'!$E$80*'I-Scheme Details'!$E83,X$13=2,'I-Scheme Details'!$E$92*'I-Scheme Details'!$E95,X$13=3,'I-Scheme Details'!$E$104*'I-Scheme Details'!$E107)","v":0},{"$f":"_xlfn.IFS(Y$13=0,0,Y$13=1, 'I-Scheme Details'!$E$80*'I-Scheme Details'!$E83,Y$13=2,'I-Scheme Details'!$E$92*'I-Scheme Details'!$E95,Y$13=3,'I-Scheme Details'!$E$104*'I-Scheme Details'!$E107)","v":0},{"$f":"_xlfn.IFS(Z$13=0,0,Z$13=1, 'I-Scheme Details'!$E$80*'I-Scheme Details'!$E83,Z$13=2,'I-Scheme Details'!$E$92*'I-Scheme Details'!$E95,Z$13=3,'I-Scheme Details'!$E$104*'I-Scheme Details'!$E107)","v":0},{"$f":"_xlfn.IFS(AA$13=0,0,AA$13=1, 'I-Scheme Details'!$E$80*'I-Scheme Details'!$E83,AA$13=2,'I-Scheme Details'!$E$92*'I-Scheme Details'!$E95,AA$13=3,'I-Scheme Details'!$E$104*'I-Scheme Details'!$E107)","v":0},{"$f":"_xlfn.IFS(AB$13=0,0,AB$13=1, 'I-Scheme Details'!$E$80*'I-Scheme Details'!$E83,AB$13=2,'I-Scheme Details'!$E$92*'I-Scheme Details'!$E95,AB$13=3,'I-Scheme Details'!$E$104*'I-Scheme Details'!$E107)","v":0},{"$f":"_xlfn.IFS(AC$13=0,0,AC$13=1, 'I-Scheme Details'!$E$80*'I-Scheme Details'!$E83,AC$13=2,'I-Scheme Details'!$E$92*'I-Scheme Details'!$E95,AC$13=3,'I-Scheme Details'!$E$104*'I-Scheme Details'!$E107)","v":0},{"$f":"_xlfn.IFS(AD$13=0,0,AD$13=1, 'I-Scheme Details'!$E$80*'I-Scheme Details'!$E83,AD$13=2,'I-Scheme Details'!$E$92*'I-Scheme Details'!$E95,AD$13=3,'I-Scheme Details'!$E$104*'I-Scheme Details'!$E107)","v":0},{"$f":"_xlfn.IFS(AE$13=0,0,AE$13=1, 'I-Scheme Details'!$E$80*'I-Scheme Details'!$E83,AE$13=2,'I-Scheme Details'!$E$92*'I-Scheme Details'!$E95,AE$13=3,'I-Scheme Details'!$E$104*'I-Scheme Details'!$E107)","v":0},{"$f":"_xlfn.IFS(AF$13=0,0,AF$13=1, 'I-Scheme Details'!$E$80*'I-Scheme Details'!$E83,AF$13=2,'I-Scheme Details'!$E$92*'I-Scheme Details'!$E95,AF$13=3,'I-Scheme Details'!$E$104*'I-Scheme Details'!$E107)","v":0},{"$f":"_xlfn.IFS(AG$13=0,0,AG$13=1, 'I-Scheme Details'!$E$80*'I-Scheme Details'!$E83,AG$13=2,'I-Scheme Details'!$E$92*'I-Scheme Details'!$E95,AG$13=3,'I-Scheme Details'!$E$104*'I-Scheme Details'!$E107)","v":0},{"$f":"_xlfn.IFS(AH$13=0,0,AH$13=1, 'I-Scheme Details'!$E$80*'I-Scheme Details'!$E83,AH$13=2,'I-Scheme Details'!$E$92*'I-Scheme Details'!$E95,AH$13=3,'I-Scheme Details'!$E$104*'I-Scheme Details'!$E107)","v":0},{"$f":"_xlfn.IFS(AI$13=0,0,AI$13=1, 'I-Scheme Details'!$E$80*'I-Scheme Details'!$E83,AI$13=2,'I-Scheme Details'!$E$92*'I-Scheme Details'!$E95,AI$13=3,'I-Scheme Details'!$E$104*'I-Scheme Details'!$E107)","v":0},{"$f":"_xlfn.IFS(AJ$13=0,0,AJ$13=1, 'I-Scheme Details'!$E$80*'I-Scheme Details'!$E83,AJ$13=2,'I-Scheme Details'!$E$92*'I-Scheme Details'!$E95,AJ$13=3,'I-Scheme Details'!$E$104*'I-Scheme Details'!$E107)","v":0},{"$f":"_xlfn.IFS(AK$13=0,0,AK$13=1, 'I-Scheme Details'!$E$80*'I-Scheme Details'!$E83,AK$13=2,'I-Scheme Details'!$E$92*'I-Scheme Details'!$E95,AK$13=3,'I-Scheme Details'!$E$104*'I-Scheme Details'!$E107)","v":0},{"$f":"_xlfn.IFS(AL$13=0,0,AL$13=1, 'I-Scheme Details'!$E$80*'I-Scheme Details'!$E83,AL$13=2,'I-Scheme Details'!$E$92*'I-Scheme Details'!$E95,AL$13=3,'I-Scheme Details'!$E$104*'I-Scheme Details'!$E107)","v":0},{"$f":"_xlfn.IFS(AM$13=0,0,AM$13=1, 'I-Scheme Details'!$E$80*'I-Scheme Details'!$E83,AM$13=2,'I-Scheme Details'!$E$92*'I-Scheme Details'!$E95,AM$13=3,'I-Scheme Details'!$E$104*'I-Scheme Details'!$E107)","v":0},{"$f":"_xlfn.IFS(AN$13=0,0,AN$13=1, 'I-Scheme Details'!$E$80*'I-Scheme Details'!$E83,AN$13=2,'I-Scheme Details'!$E$92*'I-Scheme Details'!$E95,AN$13=3,'I-Scheme Details'!$E$104*'I-Scheme Details'!$E107)","v":0},{"$f":"_xlfn.IFS(AO$13=0,0,AO$13=1, 'I-Scheme Details'!$E$80*'I-Scheme Details'!$E83,AO$13=2,'I-Scheme Details'!$E$92*'I-Scheme Details'!$E95,AO$13=3,'I-Scheme Details'!$E$104*'I-Scheme Details'!$E107)","v":0},{"$f":"_xlfn.IFS(AP$13=0,0,AP$13=1, 'I-Scheme Details'!$E$80*'I-Scheme Details'!$E83,AP$13=2,'I-Scheme Details'!$E$92*'I-Scheme Details'!$E95,AP$13=3,'I-Scheme Details'!$E$104*'I-Scheme Details'!$E107)","v":0},{"$f":"_xlfn.IFS(AQ$13=0,0,AQ$13=1, 'I-Scheme Details'!$E$80*'I-Scheme Details'!$E83,AQ$13=2,'I-Scheme Details'!$E$92*'I-Scheme Details'!$E95,AQ$13=3,'I-Scheme Details'!$E$104*'I-Scheme Details'!$E107)","v":0},{"$f":"_xlfn.IFS(AR$13=0,0,AR$13=1, 'I-Scheme Details'!$E$80*'I-Scheme Details'!$E83,AR$13=2,'I-Scheme Details'!$E$92*'I-Scheme Details'!$E95,AR$13=3,'I-Scheme Details'!$E$104*'I-Scheme Details'!$E107)","v":0},{"$f":"_xlfn.IFS(AS$13=0,0,AS$13=1, 'I-Scheme Details'!$E$80*'I-Scheme Details'!$E83,AS$13=2,'I-Scheme Details'!$E$92*'I-Scheme Details'!$E95,AS$13=3,'I-Scheme Details'!$E$104*'I-Scheme Details'!$E107)","v":0},{"$f":"_xlfn.IFS(AT$13=0,0,AT$13=1, 'I-Scheme Details'!$E$80*'I-Scheme Details'!$E83,AT$13=2,'I-Scheme Details'!$E$92*'I-Scheme Details'!$E95,AT$13=3,'I-Scheme Details'!$E$104*'I-Scheme Details'!$E107)","v":0},{"$f":"_xlfn.IFS(AU$13=0,0,AU$13=1, 'I-Scheme Details'!$E$80*'I-Scheme Details'!$E83,AU$13=2,'I-Scheme Details'!$E$92*'I-Scheme Details'!$E95,AU$13=3,'I-Scheme Details'!$E$104*'I-Scheme Details'!$E107)","v":0},{"$f":"_xlfn.IFS(AV$13=0,0,AV$13=1, 'I-Scheme Details'!$E$80*'I-Scheme Details'!$E83,AV$13=2,'I-Scheme Details'!$E$92*'I-Scheme Details'!$E95,AV$13=3,'I-Scheme Details'!$E$104*'I-Scheme Details'!$E107)","v":0},{"$f":"_xlfn.IFS(AW$13=0,0,AW$13=1, 'I-Scheme Details'!$E$80*'I-Scheme Details'!$E83,AW$13=2,'I-Scheme Details'!$E$92*'I-Scheme Details'!$E95,AW$13=3,'I-Scheme Details'!$E$104*'I-Scheme Details'!$E107)","v":0},{"$f":"_xlfn.IFS(AX$13=0,0,AX$13=1, 'I-Scheme Details'!$E$80*'I-Scheme Details'!$E83,AX$13=2,'I-Scheme Details'!$E$92*'I-Scheme Details'!$E95,AX$13=3,'I-Scheme Details'!$E$104*'I-Scheme Details'!$E107)","v":0},{"$f":"_xlfn.IFS(AY$13=0,0,AY$13=1, 'I-Scheme Details'!$E$80*'I-Scheme Details'!$E83,AY$13=2,'I-Scheme Details'!$E$92*'I-Scheme Details'!$E95,AY$13=3,'I-Scheme Details'!$E$104*'I-Scheme Details'!$E107)","v":0},{"$f":"_xlfn.IFS(AZ$13=0,0,AZ$13=1, 'I-Scheme Details'!$E$80*'I-Scheme Details'!$E83,AZ$13=2,'I-Scheme Details'!$E$92*'I-Scheme Details'!$E95,AZ$13=3,'I-Scheme Details'!$E$104*'I-Scheme Details'!$E107)","v":0},{"$f":"_xlfn.IFS(BA$13=0,0,BA$13=1, 'I-Scheme Details'!$E$80*'I-Scheme Details'!$E83,BA$13=2,'I-Scheme Details'!$E$92*'I-Scheme Details'!$E95,BA$13=3,'I-Scheme Details'!$E$104*'I-Scheme Details'!$E107)","v":0},{"$f":"_xlfn.IFS(BB$13=0,0,BB$13=1, 'I-Scheme Details'!$E$80*'I-Scheme Details'!$E83,BB$13=2,'I-Scheme Details'!$E$92*'I-Scheme Details'!$E95,BB$13=3,'I-Scheme Details'!$E$104*'I-Scheme Details'!$E107)","v":0},{"$f":"_xlfn.IFS(BC$13=0,0,BC$13=1, 'I-Scheme Details'!$E$80*'I-Scheme Details'!$E83,BC$13=2,'I-Scheme Details'!$E$92*'I-Scheme Details'!$E95,BC$13=3,'I-Scheme Details'!$E$104*'I-Scheme Details'!$E107)","v":0},{"$f":"_xlfn.IFS(BD$13=0,0,BD$13=1, 'I-Scheme Details'!$E$80*'I-Scheme Details'!$E83,BD$13=2,'I-Scheme Details'!$E$92*'I-Scheme Details'!$E95,BD$13=3,'I-Scheme Details'!$E$104*'I-Scheme Details'!$E107)","v":0},{"$f":"_xlfn.IFS(BE$13=0,0,BE$13=1, 'I-Scheme Details'!$E$80*'I-Scheme Details'!$E83,BE$13=2,'I-Scheme Details'!$E$92*'I-Scheme Details'!$E95,BE$13=3,'I-Scheme Details'!$E$104*'I-Scheme Details'!$E107)","v":0},{"$f":"_xlfn.IFS(BF$13=0,0,BF$13=1, 'I-Scheme Details'!$E$80*'I-Scheme Details'!$E83,BF$13=2,'I-Scheme Details'!$E$92*'I-Scheme Details'!$E95,BF$13=3,'I-Scheme Details'!$E$104*'I-Scheme Details'!$E107)","v":0},{"$f":"_xlfn.IFS(BG$13=0,0,BG$13=1, 'I-Scheme Details'!$E$80*'I-Scheme Details'!$E83,BG$13=2,'I-Scheme Details'!$E$92*'I-Scheme Details'!$E95,BG$13=3,'I-Scheme Details'!$E$104*'I-Scheme Details'!$E107)","v":0},{"$f":"_xlfn.IFS(BH$13=0,0,BH$13=1, 'I-Scheme Details'!$E$80*'I-Scheme Details'!$E83,BH$13=2,'I-Scheme Details'!$E$92*'I-Scheme Details'!$E95,BH$13=3,'I-Scheme Details'!$E$104*'I-Scheme Details'!$E107)","v":0},{"$f":"_xlfn.IFS(BI$13=0,0,BI$13=1, 'I-Scheme Details'!$E$80*'I-Scheme Details'!$E83,BI$13=2,'I-Scheme Details'!$E$92*'I-Scheme Details'!$E95,BI$13=3,'I-Scheme Details'!$E$104*'I-Scheme Details'!$E107)","v":0},{"$f":"_xlfn.IFS(BJ$13=0,0,BJ$13=1, 'I-Scheme Details'!$E$80*'I-Scheme Details'!$E83,BJ$13=2,'I-Scheme Details'!$E$92*'I-Scheme Details'!$E95,BJ$13=3,'I-Scheme Details'!$E$104*'I-Scheme Details'!$E107)","v":0},{"$f":"_xlfn.IFS(BK$13=0,0,BK$13=1, 'I-Scheme Details'!$E$80*'I-Scheme Details'!$E83,BK$13=2,'I-Scheme Details'!$E$92*'I-Scheme Details'!$E95,BK$13=3,'I-Scheme Details'!$E$104*'I-Scheme Details'!$E107)","v":0},{"$f":"_xlfn.IFS(BL$13=0,0,BL$13=1, 'I-Scheme Details'!$E$80*'I-Scheme Details'!$E83,BL$13=2,'I-Scheme Details'!$E$92*'I-Scheme Details'!$E95,BL$13=3,'I-Scheme Details'!$E$104*'I-Scheme Details'!$E107)","v":0},{"$f":"_xlfn.IFS(BM$13=0,0,BM$13=1, 'I-Scheme Details'!$E$80*'I-Scheme Details'!$E83,BM$13=2,'I-Scheme Details'!$E$92*'I-Scheme Details'!$E95,BM$13=3,'I-Scheme Details'!$E$104*'I-Scheme Details'!$E107)","v":0},{"$f":"_xlfn.IFS(BN$13=0,0,BN$13=1, 'I-Scheme Details'!$E$80*'I-Scheme Details'!$E83,BN$13=2,'I-Scheme Details'!$E$92*'I-Scheme Details'!$E95,BN$13=3,'I-Scheme Details'!$E$104*'I-Scheme Details'!$E107)","v":0},{"$f":"_xlfn.IFS(BO$13=0,0,BO$13=1, 'I-Scheme Details'!$E$80*'I-Scheme Details'!$E83,BO$13=2,'I-Scheme Details'!$E$92*'I-Scheme Details'!$E95,BO$13=3,'I-Scheme Details'!$E$104*'I-Scheme Details'!$E107)","v":0},{"$f":"_xlfn.IFS(BP$13=0,0,BP$13=1, 'I-Scheme Details'!$E$80*'I-Scheme Details'!$E83,BP$13=2,'I-Scheme Details'!$E$92*'I-Scheme Details'!$E95,BP$13=3,'I-Scheme Details'!$E$104*'I-Scheme Details'!$E107)","v":0},{"$f":"_xlfn.IFS(BQ$13=0,0,BQ$13=1, 'I-Scheme Details'!$E$80*'I-Scheme Details'!$E83,BQ$13=2,'I-Scheme Details'!$E$92*'I-Scheme Details'!$E95,BQ$13=3,'I-Scheme Details'!$E$104*'I-Scheme Details'!$E107)","v":0},{"$f":"_xlfn.IFS(BR$13=0,0,BR$13=1, 'I-Scheme Details'!$E$80*'I-Scheme Details'!$E83,BR$13=2,'I-Scheme Details'!$E$92*'I-Scheme Details'!$E95,BR$13=3,'I-Scheme Details'!$E$104*'I-Scheme Details'!$E107)","v":0},{"$f":"_xlfn.IFS(BS$13=0,0,BS$13=1, 'I-Scheme Details'!$E$80*'I-Scheme Details'!$E83,BS$13=2,'I-Scheme Details'!$E$92*'I-Scheme Details'!$E95,BS$13=3,'I-Scheme Details'!$E$104*'I-Scheme Details'!$E107)","v":0},{"$f":"_xlfn.IFS(BT$13=0,0,BT$13=1, 'I-Scheme Details'!$E$80*'I-Scheme Details'!$E83,BT$13=2,'I-Scheme Details'!$E$92*'I-Scheme Details'!$E95,BT$13=3,'I-Scheme Details'!$E$104*'I-Scheme Details'!$E107)","v":0},{"$f":"_xlfn.IFS(BU$13=0,0,BU$13=1, 'I-Scheme Details'!$E$80*'I-Scheme Details'!$E83,BU$13=2,'I-Scheme Details'!$E$92*'I-Scheme Details'!$E95,BU$13=3,'I-Scheme Details'!$E$104*'I-Scheme Details'!$E107)","v":0},{"$f":"_xlfn.IFS(BV$13=0,0,BV$13=1, 'I-Scheme Details'!$E$80*'I-Scheme Details'!$E83,BV$13=2,'I-Scheme Details'!$E$92*'I-Scheme Details'!$E95,BV$13=3,'I-Scheme Details'!$E$104*'I-Scheme Details'!$E107)","v":0},{"$f":"_xlfn.IFS(BW$13=0,0,BW$13=1, 'I-Scheme Details'!$E$80*'I-Scheme Details'!$E83,BW$13=2,'I-Scheme Details'!$E$92*'I-Scheme Details'!$E95,BW$13=3,'I-Scheme Details'!$E$104*'I-Scheme Details'!$E107)","v":0},{"$f":"_xlfn.IFS(BX$13=0,0,BX$13=1, 'I-Scheme Details'!$E$80*'I-Scheme Details'!$E83,BX$13=2,'I-Scheme Details'!$E$92*'I-Scheme Details'!$E95,BX$13=3,'I-Scheme Details'!$E$104*'I-Scheme Details'!$E107)","v":0},{"$f":"_xlfn.IFS(BY$13=0,0,BY$13=1, 'I-Scheme Details'!$E$80*'I-Scheme Details'!$E83,BY$13=2,'I-Scheme Details'!$E$92*'I-Scheme Details'!$E95,BY$13=3,'I-Scheme Details'!$E$104*'I-Scheme Details'!$E107)","v":0},{"$f":"_xlfn.IFS(BZ$13=0,0,BZ$13=1, 'I-Scheme Details'!$E$80*'I-Scheme Details'!$E83,BZ$13=2,'I-Scheme Details'!$E$92*'I-Scheme Details'!$E95,BZ$13=3,'I-Scheme Details'!$E$104*'I-Scheme Details'!$E107)","v":0},{"$f":"_xlfn.IFS(CA$13=0,0,CA$13=1, 'I-Scheme Details'!$E$80*'I-Scheme Details'!$E83,CA$13=2,'I-Scheme Details'!$E$92*'I-Scheme Details'!$E95,CA$13=3,'I-Scheme Details'!$E$104*'I-Scheme Details'!$E107)","v":0},{"$f":"_xlfn.IFS(CB$13=0,0,CB$13=1, 'I-Scheme Details'!$E$80*'I-Scheme Details'!$E83,CB$13=2,'I-Scheme Details'!$E$92*'I-Scheme Details'!$E95,CB$13=3,'I-Scheme Details'!$E$104*'I-Scheme Details'!$E107)","v":0},{"$f":"_xlfn.IFS(CC$13=0,0,CC$13=1, 'I-Scheme Details'!$E$80*'I-Scheme Details'!$E83,CC$13=2,'I-Scheme Details'!$E$92*'I-Scheme Details'!$E95,CC$13=3,'I-Scheme Details'!$E$104*'I-Scheme Details'!$E107)","v":0},{"$f":"_xlfn.IFS(CD$13=0,0,CD$13=1, 'I-Scheme Details'!$E$80*'I-Scheme Details'!$E83,CD$13=2,'I-Scheme Details'!$E$92*'I-Scheme Details'!$E95,CD$13=3,'I-Scheme Details'!$E$104*'I-Scheme Details'!$E107)","v":0},{"$f":"_xlfn.IFS(CE$13=0,0,CE$13=1, 'I-Scheme Details'!$E$80*'I-Scheme Details'!$E83,CE$13=2,'I-Scheme Details'!$E$92*'I-Scheme Details'!$E95,CE$13=3,'I-Scheme Details'!$E$104*'I-Scheme Details'!$E107)","v":0}]
[null,null,null,"LGV",null,null,null,null,null,"days per annum",{"$f":"_xlfn.IFS(K$13=0,0,K$13=1, 'I-Scheme Details'!$E$80*'I-Scheme Details'!$E84,K$13=2,'I-Scheme Details'!$E$92*'I-Scheme Details'!$E96,K$13=3,'I-Scheme Details'!$E$104*'I-Scheme Details'!$E108)","v":0},{"$f":"_xlfn.IFS(L$13=0,0,L$13=1, 'I-Scheme Details'!$E$80*'I-Scheme Details'!$E84,L$13=2,'I-Scheme Details'!$E$92*'I-Scheme Details'!$E96,L$13=3,'I-Scheme Details'!$E$104*'I-Scheme Details'!$E108)","v":0},{"$f":"_xlfn.IFS(M$13=0,0,M$13=1, 'I-Scheme Details'!$E$80*'I-Scheme Details'!$E84,M$13=2,'I-Scheme Details'!$E$92*'I-Scheme Details'!$E96,M$13=3,'I-Scheme Details'!$E$104*'I-Scheme Details'!$E108)","v":0},{"$f":"_xlfn.IFS(N$13=0,0,N$13=1, 'I-Scheme Details'!$E$80*'I-Scheme Details'!$E84,N$13=2,'I-Scheme Details'!$E$92*'I-Scheme Details'!$E96,N$13=3,'I-Scheme Details'!$E$104*'I-Scheme Details'!$E108)","v":0},{"$f":"_xlfn.IFS(O$13=0,0,O$13=1, 'I-Scheme Details'!$E$80*'I-Scheme Details'!$E84,O$13=2,'I-Scheme Details'!$E$92*'I-Scheme Details'!$E96,O$13=3,'I-Scheme Details'!$E$104*'I-Scheme Details'!$E108)","v":0},{"$f":"_xlfn.IFS(P$13=0,0,P$13=1, 'I-Scheme Details'!$E$80*'I-Scheme Details'!$E84,P$13=2,'I-Scheme Details'!$E$92*'I-Scheme Details'!$E96,P$13=3,'I-Scheme Details'!$E$104*'I-Scheme Details'!$E108)","v":0},{"$f":"_xlfn.IFS(Q$13=0,0,Q$13=1, 'I-Scheme Details'!$E$80*'I-Scheme Details'!$E84,Q$13=2,'I-Scheme Details'!$E$92*'I-Scheme Details'!$E96,Q$13=3,'I-Scheme Details'!$E$104*'I-Scheme Details'!$E108)","v":0},{"$f":"_xlfn.IFS(R$13=0,0,R$13=1, 'I-Scheme Details'!$E$80*'I-Scheme Details'!$E84,R$13=2,'I-Scheme Details'!$E$92*'I-Scheme Details'!$E96,R$13=3,'I-Scheme Details'!$E$104*'I-Scheme Details'!$E108)","v":0},{"$f":"_xlfn.IFS(S$13=0,0,S$13=1, 'I-Scheme Details'!$E$80*'I-Scheme Details'!$E84,S$13=2,'I-Scheme Details'!$E$92*'I-Scheme Details'!$E96,S$13=3,'I-Scheme Details'!$E$104*'I-Scheme Details'!$E108)","v":0},{"$f":"_xlfn.IFS(T$13=0,0,T$13=1, 'I-Scheme Details'!$E$80*'I-Scheme Details'!$E84,T$13=2,'I-Scheme Details'!$E$92*'I-Scheme Details'!$E96,T$13=3,'I-Scheme Details'!$E$104*'I-Scheme Details'!$E108)","v":0},{"$f":"_xlfn.IFS(U$13=0,0,U$13=1, 'I-Scheme Details'!$E$80*'I-Scheme Details'!$E84,U$13=2,'I-Scheme Details'!$E$92*'I-Scheme Details'!$E96,U$13=3,'I-Scheme Details'!$E$104*'I-Scheme Details'!$E108)","v":0},{"$f":"_xlfn.IFS(V$13=0,0,V$13=1, 'I-Scheme Details'!$E$80*'I-Scheme Details'!$E84,V$13=2,'I-Scheme Details'!$E$92*'I-Scheme Details'!$E96,V$13=3,'I-Scheme Details'!$E$104*'I-Scheme Details'!$E108)","v":0},{"$f":"_xlfn.IFS(W$13=0,0,W$13=1, 'I-Scheme Details'!$E$80*'I-Scheme Details'!$E84,W$13=2,'I-Scheme Details'!$E$92*'I-Scheme Details'!$E96,W$13=3,'I-Scheme Details'!$E$104*'I-Scheme Details'!$E108)","v":0},{"$f":"_xlfn.IFS(X$13=0,0,X$13=1, 'I-Scheme Details'!$E$80*'I-Scheme Details'!$E84,X$13=2,'I-Scheme Details'!$E$92*'I-Scheme Details'!$E96,X$13=3,'I-Scheme Details'!$E$104*'I-Scheme Details'!$E108)","v":0},{"$f":"_xlfn.IFS(Y$13=0,0,Y$13=1, 'I-Scheme Details'!$E$80*'I-Scheme Details'!$E84,Y$13=2,'I-Scheme Details'!$E$92*'I-Scheme Details'!$E96,Y$13=3,'I-Scheme Details'!$E$104*'I-Scheme Details'!$E108)","v":0},{"$f":"_xlfn.IFS(Z$13=0,0,Z$13=1, 'I-Scheme Details'!$E$80*'I-Scheme Details'!$E84,Z$13=2,'I-Scheme Details'!$E$92*'I-Scheme Details'!$E96,Z$13=3,'I-Scheme Details'!$E$104*'I-Scheme Details'!$E108)","v":0},{"$f":"_xlfn.IFS(AA$13=0,0,AA$13=1, 'I-Scheme Details'!$E$80*'I-Scheme Details'!$E84,AA$13=2,'I-Scheme Details'!$E$92*'I-Scheme Details'!$E96,AA$13=3,'I-Scheme Details'!$E$104*'I-Scheme Details'!$E108)","v":0},{"$f":"_xlfn.IFS(AB$13=0,0,AB$13=1, 'I-Scheme Details'!$E$80*'I-Scheme Details'!$E84,AB$13=2,'I-Scheme Details'!$E$92*'I-Scheme Details'!$E96,AB$13=3,'I-Scheme Details'!$E$104*'I-Scheme Details'!$E108)","v":0},{"$f":"_xlfn.IFS(AC$13=0,0,AC$13=1, 'I-Scheme Details'!$E$80*'I-Scheme Details'!$E84,AC$13=2,'I-Scheme Details'!$E$92*'I-Scheme Details'!$E96,AC$13=3,'I-Scheme Details'!$E$104*'I-Scheme Details'!$E108)","v":0},{"$f":"_xlfn.IFS(AD$13=0,0,AD$13=1, 'I-Scheme Details'!$E$80*'I-Scheme Details'!$E84,AD$13=2,'I-Scheme Details'!$E$92*'I-Scheme Details'!$E96,AD$13=3,'I-Scheme Details'!$E$104*'I-Scheme Details'!$E108)","v":0},{"$f":"_xlfn.IFS(AE$13=0,0,AE$13=1, 'I-Scheme Details'!$E$80*'I-Scheme Details'!$E84,AE$13=2,'I-Scheme Details'!$E$92*'I-Scheme Details'!$E96,AE$13=3,'I-Scheme Details'!$E$104*'I-Scheme Details'!$E108)","v":0},{"$f":"_xlfn.IFS(AF$13=0,0,AF$13=1, 'I-Scheme Details'!$E$80*'I-Scheme Details'!$E84,AF$13=2,'I-Scheme Details'!$E$92*'I-Scheme Details'!$E96,AF$13=3,'I-Scheme Details'!$E$104*'I-Scheme Details'!$E108)","v":0},{"$f":"_xlfn.IFS(AG$13=0,0,AG$13=1, 'I-Scheme Details'!$E$80*'I-Scheme Details'!$E84,AG$13=2,'I-Scheme Details'!$E$92*'I-Scheme Details'!$E96,AG$13=3,'I-Scheme Details'!$E$104*'I-Scheme Details'!$E108)","v":0},{"$f":"_xlfn.IFS(AH$13=0,0,AH$13=1, 'I-Scheme Details'!$E$80*'I-Scheme Details'!$E84,AH$13=2,'I-Scheme Details'!$E$92*'I-Scheme Details'!$E96,AH$13=3,'I-Scheme Details'!$E$104*'I-Scheme Details'!$E108)","v":0},{"$f":"_xlfn.IFS(AI$13=0,0,AI$13=1, 'I-Scheme Details'!$E$80*'I-Scheme Details'!$E84,AI$13=2,'I-Scheme Details'!$E$92*'I-Scheme Details'!$E96,AI$13=3,'I-Scheme Details'!$E$104*'I-Scheme Details'!$E108)","v":0},{"$f":"_xlfn.IFS(AJ$13=0,0,AJ$13=1, 'I-Scheme Details'!$E$80*'I-Scheme Details'!$E84,AJ$13=2,'I-Scheme Details'!$E$92*'I-Scheme Details'!$E96,AJ$13=3,'I-Scheme Details'!$E$104*'I-Scheme Details'!$E108)","v":0},{"$f":"_xlfn.IFS(AK$13=0,0,AK$13=1, 'I-Scheme Details'!$E$80*'I-Scheme Details'!$E84,AK$13=2,'I-Scheme Details'!$E$92*'I-Scheme Details'!$E96,AK$13=3,'I-Scheme Details'!$E$104*'I-Scheme Details'!$E108)","v":0},{"$f":"_xlfn.IFS(AL$13=0,0,AL$13=1, 'I-Scheme Details'!$E$80*'I-Scheme Details'!$E84,AL$13=2,'I-Scheme Details'!$E$92*'I-Scheme Details'!$E96,AL$13=3,'I-Scheme Details'!$E$104*'I-Scheme Details'!$E108)","v":0},{"$f":"_xlfn.IFS(AM$13=0,0,AM$13=1, 'I-Scheme Details'!$E$80*'I-Scheme Details'!$E84,AM$13=2,'I-Scheme Details'!$E$92*'I-Scheme Details'!$E96,AM$13=3,'I-Scheme Details'!$E$104*'I-Scheme Details'!$E108)","v":0},{"$f":"_xlfn.IFS(AN$13=0,0,AN$13=1, 'I-Scheme Details'!$E$80*'I-Scheme Details'!$E84,AN$13=2,'I-Scheme Details'!$E$92*'I-Scheme Details'!$E96,AN$13=3,'I-Scheme Details'!$E$104*'I-Scheme Details'!$E108)","v":0},{"$f":"_xlfn.IFS(AO$13=0,0,AO$13=1, 'I-Scheme Details'!$E$80*'I-Scheme Details'!$E84,AO$13=2,'I-Scheme Details'!$E$92*'I-Scheme Details'!$E96,AO$13=3,'I-Scheme Details'!$E$104*'I-Scheme Details'!$E108)","v":0},{"$f":"_xlfn.IFS(AP$13=0,0,AP$13=1, 'I-Scheme Details'!$E$80*'I-Scheme Details'!$E84,AP$13=2,'I-Scheme Details'!$E$92*'I-Scheme Details'!$E96,AP$13=3,'I-Scheme Details'!$E$104*'I-Scheme Details'!$E108)","v":0},{"$f":"_xlfn.IFS(AQ$13=0,0,AQ$13=1, 'I-Scheme Details'!$E$80*'I-Scheme Details'!$E84,AQ$13=2,'I-Scheme Details'!$E$92*'I-Scheme Details'!$E96,AQ$13=3,'I-Scheme Details'!$E$104*'I-Scheme Details'!$E108)","v":0},{"$f":"_xlfn.IFS(AR$13=0,0,AR$13=1, 'I-Scheme Details'!$E$80*'I-Scheme Details'!$E84,AR$13=2,'I-Scheme Details'!$E$92*'I-Scheme Details'!$E96,AR$13=3,'I-Scheme Details'!$E$104*'I-Scheme Details'!$E108)","v":0},{"$f":"_xlfn.IFS(AS$13=0,0,AS$13=1, 'I-Scheme Details'!$E$80*'I-Scheme Details'!$E84,AS$13=2,'I-Scheme Details'!$E$92*'I-Scheme Details'!$E96,AS$13=3,'I-Scheme Details'!$E$104*'I-Scheme Details'!$E108)","v":0},{"$f":"_xlfn.IFS(AT$13=0,0,AT$13=1, 'I-Scheme Details'!$E$80*'I-Scheme Details'!$E84,AT$13=2,'I-Scheme Details'!$E$92*'I-Scheme Details'!$E96,AT$13=3,'I-Scheme Details'!$E$104*'I-Scheme Details'!$E108)","v":0},{"$f":"_xlfn.IFS(AU$13=0,0,AU$13=1, 'I-Scheme Details'!$E$80*'I-Scheme Details'!$E84,AU$13=2,'I-Scheme Details'!$E$92*'I-Scheme Details'!$E96,AU$13=3,'I-Scheme Details'!$E$104*'I-Scheme Details'!$E108)","v":0},{"$f":"_xlfn.IFS(AV$13=0,0,AV$13=1, 'I-Scheme Details'!$E$80*'I-Scheme Details'!$E84,AV$13=2,'I-Scheme Details'!$E$92*'I-Scheme Details'!$E96,AV$13=3,'I-Scheme Details'!$E$104*'I-Scheme Details'!$E108)","v":0},{"$f":"_xlfn.IFS(AW$13=0,0,AW$13=1, 'I-Scheme Details'!$E$80*'I-Scheme Details'!$E84,AW$13=2,'I-Scheme Details'!$E$92*'I-Scheme Details'!$E96,AW$13=3,'I-Scheme Details'!$E$104*'I-Scheme Details'!$E108)","v":0},{"$f":"_xlfn.IFS(AX$13=0,0,AX$13=1, 'I-Scheme Details'!$E$80*'I-Scheme Details'!$E84,AX$13=2,'I-Scheme Details'!$E$92*'I-Scheme Details'!$E96,AX$13=3,'I-Scheme Details'!$E$104*'I-Scheme Details'!$E108)","v":0},{"$f":"_xlfn.IFS(AY$13=0,0,AY$13=1, 'I-Scheme Details'!$E$80*'I-Scheme Details'!$E84,AY$13=2,'I-Scheme Details'!$E$92*'I-Scheme Details'!$E96,AY$13=3,'I-Scheme Details'!$E$104*'I-Scheme Details'!$E108)","v":0},{"$f":"_xlfn.IFS(AZ$13=0,0,AZ$13=1, 'I-Scheme Details'!$E$80*'I-Scheme Details'!$E84,AZ$13=2,'I-Scheme Details'!$E$92*'I-Scheme Details'!$E96,AZ$13=3,'I-Scheme Details'!$E$104*'I-Scheme Details'!$E108)","v":0},{"$f":"_xlfn.IFS(BA$13=0,0,BA$13=1, 'I-Scheme Details'!$E$80*'I-Scheme Details'!$E84,BA$13=2,'I-Scheme Details'!$E$92*'I-Scheme Details'!$E96,BA$13=3,'I-Scheme Details'!$E$104*'I-Scheme Details'!$E108)","v":0},{"$f":"_xlfn.IFS(BB$13=0,0,BB$13=1, 'I-Scheme Details'!$E$80*'I-Scheme Details'!$E84,BB$13=2,'I-Scheme Details'!$E$92*'I-Scheme Details'!$E96,BB$13=3,'I-Scheme Details'!$E$104*'I-Scheme Details'!$E108)","v":0},{"$f":"_xlfn.IFS(BC$13=0,0,BC$13=1, 'I-Scheme Details'!$E$80*'I-Scheme Details'!$E84,BC$13=2,'I-Scheme Details'!$E$92*'I-Scheme Details'!$E96,BC$13=3,'I-Scheme Details'!$E$104*'I-Scheme Details'!$E108)","v":0},{"$f":"_xlfn.IFS(BD$13=0,0,BD$13=1, 'I-Scheme Details'!$E$80*'I-Scheme Details'!$E84,BD$13=2,'I-Scheme Details'!$E$92*'I-Scheme Details'!$E96,BD$13=3,'I-Scheme Details'!$E$104*'I-Scheme Details'!$E108)","v":0},{"$f":"_xlfn.IFS(BE$13=0,0,BE$13=1, 'I-Scheme Details'!$E$80*'I-Scheme Details'!$E84,BE$13=2,'I-Scheme Details'!$E$92*'I-Scheme Details'!$E96,BE$13=3,'I-Scheme Details'!$E$104*'I-Scheme Details'!$E108)","v":0},{"$f":"_xlfn.IFS(BF$13=0,0,BF$13=1, 'I-Scheme Details'!$E$80*'I-Scheme Details'!$E84,BF$13=2,'I-Scheme Details'!$E$92*'I-Scheme Details'!$E96,BF$13=3,'I-Scheme Details'!$E$104*'I-Scheme Details'!$E108)","v":0},{"$f":"_xlfn.IFS(BG$13=0,0,BG$13=1, 'I-Scheme Details'!$E$80*'I-Scheme Details'!$E84,BG$13=2,'I-Scheme Details'!$E$92*'I-Scheme Details'!$E96,BG$13=3,'I-Scheme Details'!$E$104*'I-Scheme Details'!$E108)","v":0},{"$f":"_xlfn.IFS(BH$13=0,0,BH$13=1, 'I-Scheme Details'!$E$80*'I-Scheme Details'!$E84,BH$13=2,'I-Scheme Details'!$E$92*'I-Scheme Details'!$E96,BH$13=3,'I-Scheme Details'!$E$104*'I-Scheme Details'!$E108)","v":0},{"$f":"_xlfn.IFS(BI$13=0,0,BI$13=1, 'I-Scheme Details'!$E$80*'I-Scheme Details'!$E84,BI$13=2,'I-Scheme Details'!$E$92*'I-Scheme Details'!$E96,BI$13=3,'I-Scheme Details'!$E$104*'I-Scheme Details'!$E108)","v":0},{"$f":"_xlfn.IFS(BJ$13=0,0,BJ$13=1, 'I-Scheme Details'!$E$80*'I-Scheme Details'!$E84,BJ$13=2,'I-Scheme Details'!$E$92*'I-Scheme Details'!$E96,BJ$13=3,'I-Scheme Details'!$E$104*'I-Scheme Details'!$E108)","v":0},{"$f":"_xlfn.IFS(BK$13=0,0,BK$13=1, 'I-Scheme Details'!$E$80*'I-Scheme Details'!$E84,BK$13=2,'I-Scheme Details'!$E$92*'I-Scheme Details'!$E96,BK$13=3,'I-Scheme Details'!$E$104*'I-Scheme Details'!$E108)","v":0},{"$f":"_xlfn.IFS(BL$13=0,0,BL$13=1, 'I-Scheme Details'!$E$80*'I-Scheme Details'!$E84,BL$13=2,'I-Scheme Details'!$E$92*'I-Scheme Details'!$E96,BL$13=3,'I-Scheme Details'!$E$104*'I-Scheme Details'!$E108)","v":0},{"$f":"_xlfn.IFS(BM$13=0,0,BM$13=1, 'I-Scheme Details'!$E$80*'I-Scheme Details'!$E84,BM$13=2,'I-Scheme Details'!$E$92*'I-Scheme Details'!$E96,BM$13=3,'I-Scheme Details'!$E$104*'I-Scheme Details'!$E108)","v":0},{"$f":"_xlfn.IFS(BN$13=0,0,BN$13=1, 'I-Scheme Details'!$E$80*'I-Scheme Details'!$E84,BN$13=2,'I-Scheme Details'!$E$92*'I-Scheme Details'!$E96,BN$13=3,'I-Scheme Details'!$E$104*'I-Scheme Details'!$E108)","v":0},{"$f":"_xlfn.IFS(BO$13=0,0,BO$13=1, 'I-Scheme Details'!$E$80*'I-Scheme Details'!$E84,BO$13=2,'I-Scheme Details'!$E$92*'I-Scheme Details'!$E96,BO$13=3,'I-Scheme Details'!$E$104*'I-Scheme Details'!$E108)","v":0},{"$f":"_xlfn.IFS(BP$13=0,0,BP$13=1, 'I-Scheme Details'!$E$80*'I-Scheme Details'!$E84,BP$13=2,'I-Scheme Details'!$E$92*'I-Scheme Details'!$E96,BP$13=3,'I-Scheme Details'!$E$104*'I-Scheme Details'!$E108)","v":0},{"$f":"_xlfn.IFS(BQ$13=0,0,BQ$13=1, 'I-Scheme Details'!$E$80*'I-Scheme Details'!$E84,BQ$13=2,'I-Scheme Details'!$E$92*'I-Scheme Details'!$E96,BQ$13=3,'I-Scheme Details'!$E$104*'I-Scheme Details'!$E108)","v":0},{"$f":"_xlfn.IFS(BR$13=0,0,BR$13=1, 'I-Scheme Details'!$E$80*'I-Scheme Details'!$E84,BR$13=2,'I-Scheme Details'!$E$92*'I-Scheme Details'!$E96,BR$13=3,'I-Scheme Details'!$E$104*'I-Scheme Details'!$E108)","v":0},{"$f":"_xlfn.IFS(BS$13=0,0,BS$13=1, 'I-Scheme Details'!$E$80*'I-Scheme Details'!$E84,BS$13=2,'I-Scheme Details'!$E$92*'I-Scheme Details'!$E96,BS$13=3,'I-Scheme Details'!$E$104*'I-Scheme Details'!$E108)","v":0},{"$f":"_xlfn.IFS(BT$13=0,0,BT$13=1, 'I-Scheme Details'!$E$80*'I-Scheme Details'!$E84,BT$13=2,'I-Scheme Details'!$E$92*'I-Scheme Details'!$E96,BT$13=3,'I-Scheme Details'!$E$104*'I-Scheme Details'!$E108)","v":0},{"$f":"_xlfn.IFS(BU$13=0,0,BU$13=1, 'I-Scheme Details'!$E$80*'I-Scheme Details'!$E84,BU$13=2,'I-Scheme Details'!$E$92*'I-Scheme Details'!$E96,BU$13=3,'I-Scheme Details'!$E$104*'I-Scheme Details'!$E108)","v":0},{"$f":"_xlfn.IFS(BV$13=0,0,BV$13=1, 'I-Scheme Details'!$E$80*'I-Scheme Details'!$E84,BV$13=2,'I-Scheme Details'!$E$92*'I-Scheme Details'!$E96,BV$13=3,'I-Scheme Details'!$E$104*'I-Scheme Details'!$E108)","v":0},{"$f":"_xlfn.IFS(BW$13=0,0,BW$13=1, 'I-Scheme Details'!$E$80*'I-Scheme Details'!$E84,BW$13=2,'I-Scheme Details'!$E$92*'I-Scheme Details'!$E96,BW$13=3,'I-Scheme Details'!$E$104*'I-Scheme Details'!$E108)","v":0},{"$f":"_xlfn.IFS(BX$13=0,0,BX$13=1, 'I-Scheme Details'!$E$80*'I-Scheme Details'!$E84,BX$13=2,'I-Scheme Details'!$E$92*'I-Scheme Details'!$E96,BX$13=3,'I-Scheme Details'!$E$104*'I-Scheme Details'!$E108)","v":0},{"$f":"_xlfn.IFS(BY$13=0,0,BY$13=1, 'I-Scheme Details'!$E$80*'I-Scheme Details'!$E84,BY$13=2,'I-Scheme Details'!$E$92*'I-Scheme Details'!$E96,BY$13=3,'I-Scheme Details'!$E$104*'I-Scheme Details'!$E108)","v":0},{"$f":"_xlfn.IFS(BZ$13=0,0,BZ$13=1, 'I-Scheme Details'!$E$80*'I-Scheme Details'!$E84,BZ$13=2,'I-Scheme Details'!$E$92*'I-Scheme Details'!$E96,BZ$13=3,'I-Scheme Details'!$E$104*'I-Scheme Details'!$E108)","v":0},{"$f":"_xlfn.IFS(CA$13=0,0,CA$13=1, 'I-Scheme Details'!$E$80*'I-Scheme Details'!$E84,CA$13=2,'I-Scheme Details'!$E$92*'I-Scheme Details'!$E96,CA$13=3,'I-Scheme Details'!$E$104*'I-Scheme Details'!$E108)","v":0},{"$f":"_xlfn.IFS(CB$13=0,0,CB$13=1, 'I-Scheme Details'!$E$80*'I-Scheme Details'!$E84,CB$13=2,'I-Scheme Details'!$E$92*'I-Scheme Details'!$E96,CB$13=3,'I-Scheme Details'!$E$104*'I-Scheme Details'!$E108)","v":0},{"$f":"_xlfn.IFS(CC$13=0,0,CC$13=1, 'I-Scheme Details'!$E$80*'I-Scheme Details'!$E84,CC$13=2,'I-Scheme Details'!$E$92*'I-Scheme Details'!$E96,CC$13=3,'I-Scheme Details'!$E$104*'I-Scheme Details'!$E108)","v":0},{"$f":"_xlfn.IFS(CD$13=0,0,CD$13=1, 'I-Scheme Details'!$E$80*'I-Scheme Details'!$E84,CD$13=2,'I-Scheme Details'!$E$92*'I-Scheme Details'!$E96,CD$13=3,'I-Scheme Details'!$E$104*'I-Scheme Details'!$E108)","v":0},{"$f":"_xlfn.IFS(CE$13=0,0,CE$13=1, 'I-Scheme Details'!$E$80*'I-Scheme Details'!$E84,CE$13=2,'I-Scheme Details'!$E$92*'I-Scheme Details'!$E96,CE$13=3,'I-Scheme Details'!$E$104*'I-Scheme Details'!$E108)","v":0}]
[null,null,null,"HGV",null,null,null,null,null,"days per annum",{"$f":"_xlfn.IFS(K$13=0,0,K$13=1, 'I-Scheme Details'!$E$80*'I-Scheme Details'!$E85,K$13=2,'I-Scheme Details'!$E$92*'I-Scheme Details'!$E97,K$13=3,'I-Scheme Details'!$E$104*'I-Scheme Details'!$E109)","v":0},{"$f":"_xlfn.IFS(L$13=0,0,L$13=1, 'I-Scheme Details'!$E$80*'I-Scheme Details'!$E85,L$13=2,'I-Scheme Details'!$E$92*'I-Scheme Details'!$E97,L$13=3,'I-Scheme Details'!$E$104*'I-Scheme Details'!$E109)","v":0},{"$f":"_xlfn.IFS(M$13=0,0,M$13=1, 'I-Scheme Details'!$E$80*'I-Scheme Details'!$E85,M$13=2,'I-Scheme Details'!$E$92*'I-Scheme Details'!$E97,M$13=3,'I-Scheme Details'!$E$104*'I-Scheme Details'!$E109)","v":0},{"$f":"_xlfn.IFS(N$13=0,0,N$13=1, 'I-Scheme Details'!$E$80*'I-Scheme Details'!$E85,N$13=2,'I-Scheme Details'!$E$92*'I-Scheme Details'!$E97,N$13=3,'I-Scheme Details'!$E$104*'I-Scheme Details'!$E109)","v":0},{"$f":"_xlfn.IFS(O$13=0,0,O$13=1, 'I-Scheme Details'!$E$80*'I-Scheme Details'!$E85,O$13=2,'I-Scheme Details'!$E$92*'I-Scheme Details'!$E97,O$13=3,'I-Scheme Details'!$E$104*'I-Scheme Details'!$E109)","v":0},{"$f":"_xlfn.IFS(P$13=0,0,P$13=1, 'I-Scheme Details'!$E$80*'I-Scheme Details'!$E85,P$13=2,'I-Scheme Details'!$E$92*'I-Scheme Details'!$E97,P$13=3,'I-Scheme Details'!$E$104*'I-Scheme Details'!$E109)","v":365},{"$f":"_xlfn.IFS(Q$13=0,0,Q$13=1, 'I-Scheme Details'!$E$80*'I-Scheme Details'!$E85,Q$13=2,'I-Scheme Details'!$E$92*'I-Scheme Details'!$E97,Q$13=3,'I-Scheme Details'!$E$104*'I-Scheme Details'!$E109)","v":365},{"$f":"_xlfn.IFS(R$13=0,0,R$13=1, 'I-Scheme Details'!$E$80*'I-Scheme Details'!$E85,R$13=2,'I-Scheme Details'!$E$92*'I-Scheme Details'!$E97,R$13=3,'I-Scheme Details'!$E$104*'I-Scheme Details'!$E109)","v":365},{"$f":"_xlfn.IFS(S$13=0,0,S$13=1, 'I-Scheme Details'!$E$80*'I-Scheme Details'!$E85,S$13=2,'I-Scheme Details'!$E$92*'I-Scheme Details'!$E97,S$13=3,'I-Scheme Details'!$E$104*'I-Scheme Details'!$E109)","v":365},{"$f":"_xlfn.IFS(T$13=0,0,T$13=1, 'I-Scheme Details'!$E$80*'I-Scheme Details'!$E85,T$13=2,'I-Scheme Details'!$E$92*'I-Scheme Details'!$E97,T$13=3,'I-Scheme Details'!$E$104*'I-Scheme Details'!$E109)","v":365},{"$f":"_xlfn.IFS(U$13=0,0,U$13=1, 'I-Scheme Details'!$E$80*'I-Scheme Details'!$E85,U$13=2,'I-Scheme Details'!$E$92*'I-Scheme Details'!$E97,U$13=3,'I-Scheme Details'!$E$104*'I-Scheme Details'!$E109)","v":365},{"$f":"_xlfn.IFS(V$13=0,0,V$13=1, 'I-Scheme Details'!$E$80*'I-Scheme Details'!$E85,V$13=2,'I-Scheme Details'!$E$92*'I-Scheme Details'!$E97,V$13=3,'I-Scheme Details'!$E$104*'I-Scheme Details'!$E109)","v":365},{"$f":"_xlfn.IFS(W$13=0,0,W$13=1, 'I-Scheme Details'!$E$80*'I-Scheme Details'!$E85,W$13=2,'I-Scheme Details'!$E$92*'I-Scheme Details'!$E97,W$13=3,'I-Scheme Details'!$E$104*'I-Scheme Details'!$E109)","v":365},{"$f":"_xlfn.IFS(X$13=0,0,X$13=1, 'I-Scheme Details'!$E$80*'I-Scheme Details'!$E85,X$13=2,'I-Scheme Details'!$E$92*'I-Scheme Details'!$E97,X$13=3,'I-Scheme Details'!$E$104*'I-Scheme Details'!$E109)","v":365},{"$f":"_xlfn.IFS(Y$13=0,0,Y$13=1, 'I-Scheme Details'!$E$80*'I-Scheme Details'!$E85,Y$13=2,'I-Scheme Details'!$E$92*'I-Scheme Details'!$E97,Y$13=3,'I-Scheme Details'!$E$104*'I-Scheme Details'!$E109)","v":365},{"$f":"_xlfn.IFS(Z$13=0,0,Z$13=1, 'I-Scheme Details'!$E$80*'I-Scheme Details'!$E85,Z$13=2,'I-Scheme Details'!$E$92*'I-Scheme Details'!$E97,Z$13=3,'I-Scheme Details'!$E$104*'I-Scheme Details'!$E109)","v":365},{"$f":"_xlfn.IFS(AA$13=0,0,AA$13=1, 'I-Scheme Details'!$E$80*'I-Scheme Details'!$E85,AA$13=2,'I-Scheme Details'!$E$92*'I-Scheme Details'!$E97,AA$13=3,'I-Scheme Details'!$E$104*'I-Scheme Details'!$E109)","v":365},{"$f":"_xlfn.IFS(AB$13=0,0,AB$13=1, 'I-Scheme Details'!$E$80*'I-Scheme Details'!$E85,AB$13=2,'I-Scheme Details'!$E$92*'I-Scheme Details'!$E97,AB$13=3,'I-Scheme Details'!$E$104*'I-Scheme Details'!$E109)","v":365},{"$f":"_xlfn.IFS(AC$13=0,0,AC$13=1, 'I-Scheme Details'!$E$80*'I-Scheme Details'!$E85,AC$13=2,'I-Scheme Details'!$E$92*'I-Scheme Details'!$E97,AC$13=3,'I-Scheme Details'!$E$104*'I-Scheme Details'!$E109)","v":365},{"$f":"_xlfn.IFS(AD$13=0,0,AD$13=1, 'I-Scheme Details'!$E$80*'I-Scheme Details'!$E85,AD$13=2,'I-Scheme Details'!$E$92*'I-Scheme Details'!$E97,AD$13=3,'I-Scheme Details'!$E$104*'I-Scheme Details'!$E109)","v":365},{"$f":"_xlfn.IFS(AE$13=0,0,AE$13=1, 'I-Scheme Details'!$E$80*'I-Scheme Details'!$E85,AE$13=2,'I-Scheme Details'!$E$92*'I-Scheme Details'!$E97,AE$13=3,'I-Scheme Details'!$E$104*'I-Scheme Details'!$E109)","v":365},{"$f":"_xlfn.IFS(AF$13=0,0,AF$13=1, 'I-Scheme Details'!$E$80*'I-Scheme Details'!$E85,AF$13=2,'I-Scheme Details'!$E$92*'I-Scheme Details'!$E97,AF$13=3,'I-Scheme Details'!$E$104*'I-Scheme Details'!$E109)","v":365},{"$f":"_xlfn.IFS(AG$13=0,0,AG$13=1, 'I-Scheme Details'!$E$80*'I-Scheme Details'!$E85,AG$13=2,'I-Scheme Details'!$E$92*'I-Scheme Details'!$E97,AG$13=3,'I-Scheme Details'!$E$104*'I-Scheme Details'!$E109)","v":365},{"$f":"_xlfn.IFS(AH$13=0,0,AH$13=1, 'I-Scheme Details'!$E$80*'I-Scheme Details'!$E85,AH$13=2,'I-Scheme Details'!$E$92*'I-Scheme Details'!$E97,AH$13=3,'I-Scheme Details'!$E$104*'I-Scheme Details'!$E109)","v":365},{"$f":"_xlfn.IFS(AI$13=0,0,AI$13=1, 'I-Scheme Details'!$E$80*'I-Scheme Details'!$E85,AI$13=2,'I-Scheme Details'!$E$92*'I-Scheme Details'!$E97,AI$13=3,'I-Scheme Details'!$E$104*'I-Scheme Details'!$E109)","v":365},{"$f":"_xlfn.IFS(AJ$13=0,0,AJ$13=1, 'I-Scheme Details'!$E$80*'I-Scheme Details'!$E85,AJ$13=2,'I-Scheme Details'!$E$92*'I-Scheme Details'!$E97,AJ$13=3,'I-Scheme Details'!$E$104*'I-Scheme Details'!$E109)","v":365},{"$f":"_xlfn.IFS(AK$13=0,0,AK$13=1, 'I-Scheme Details'!$E$80*'I-Scheme Details'!$E85,AK$13=2,'I-Scheme Details'!$E$92*'I-Scheme Details'!$E97,AK$13=3,'I-Scheme Details'!$E$104*'I-Scheme Details'!$E109)","v":365},{"$f":"_xlfn.IFS(AL$13=0,0,AL$13=1, 'I-Scheme Details'!$E$80*'I-Scheme Details'!$E85,AL$13=2,'I-Scheme Details'!$E$92*'I-Scheme Details'!$E97,AL$13=3,'I-Scheme Details'!$E$104*'I-Scheme Details'!$E109)","v":365},{"$f":"_xlfn.IFS(AM$13=0,0,AM$13=1, 'I-Scheme Details'!$E$80*'I-Scheme Details'!$E85,AM$13=2,'I-Scheme Details'!$E$92*'I-Scheme Details'!$E97,AM$13=3,'I-Scheme Details'!$E$104*'I-Scheme Details'!$E109)","v":365},{"$f":"_xlfn.IFS(AN$13=0,0,AN$13=1, 'I-Scheme Details'!$E$80*'I-Scheme Details'!$E85,AN$13=2,'I-Scheme Details'!$E$92*'I-Scheme Details'!$E97,AN$13=3,'I-Scheme Details'!$E$104*'I-Scheme Details'!$E109)","v":365},{"$f":"_xlfn.IFS(AO$13=0,0,AO$13=1, 'I-Scheme Details'!$E$80*'I-Scheme Details'!$E85,AO$13=2,'I-Scheme Details'!$E$92*'I-Scheme Details'!$E97,AO$13=3,'I-Scheme Details'!$E$104*'I-Scheme Details'!$E109)","v":365},{"$f":"_xlfn.IFS(AP$13=0,0,AP$13=1, 'I-Scheme Details'!$E$80*'I-Scheme Details'!$E85,AP$13=2,'I-Scheme Details'!$E$92*'I-Scheme Details'!$E97,AP$13=3,'I-Scheme Details'!$E$104*'I-Scheme Details'!$E109)","v":365},{"$f":"_xlfn.IFS(AQ$13=0,0,AQ$13=1, 'I-Scheme Details'!$E$80*'I-Scheme Details'!$E85,AQ$13=2,'I-Scheme Details'!$E$92*'I-Scheme Details'!$E97,AQ$13=3,'I-Scheme Details'!$E$104*'I-Scheme Details'!$E109)","v":365},{"$f":"_xlfn.IFS(AR$13=0,0,AR$13=1, 'I-Scheme Details'!$E$80*'I-Scheme Details'!$E85,AR$13=2,'I-Scheme Details'!$E$92*'I-Scheme Details'!$E97,AR$13=3,'I-Scheme Details'!$E$104*'I-Scheme Details'!$E109)","v":365},{"$f":"_xlfn.IFS(AS$13=0,0,AS$13=1, 'I-Scheme Details'!$E$80*'I-Scheme Details'!$E85,AS$13=2,'I-Scheme Details'!$E$92*'I-Scheme Details'!$E97,AS$13=3,'I-Scheme Details'!$E$104*'I-Scheme Details'!$E109)","v":365},{"$f":"_xlfn.IFS(AT$13=0,0,AT$13=1, 'I-Scheme Details'!$E$80*'I-Scheme Details'!$E85,AT$13=2,'I-Scheme Details'!$E$92*'I-Scheme Details'!$E97,AT$13=3,'I-Scheme Details'!$E$104*'I-Scheme Details'!$E109)","v":365},{"$f":"_xlfn.IFS(AU$13=0,0,AU$13=1, 'I-Scheme Details'!$E$80*'I-Scheme Details'!$E85,AU$13=2,'I-Scheme Details'!$E$92*'I-Scheme Details'!$E97,AU$13=3,'I-Scheme Details'!$E$104*'I-Scheme Details'!$E109)","v":365},{"$f":"_xlfn.IFS(AV$13=0,0,AV$13=1, 'I-Scheme Details'!$E$80*'I-Scheme Details'!$E85,AV$13=2,'I-Scheme Details'!$E$92*'I-Scheme Details'!$E97,AV$13=3,'I-Scheme Details'!$E$104*'I-Scheme Details'!$E109)","v":365},{"$f":"_xlfn.IFS(AW$13=0,0,AW$13=1, 'I-Scheme Details'!$E$80*'I-Scheme Details'!$E85,AW$13=2,'I-Scheme Details'!$E$92*'I-Scheme Details'!$E97,AW$13=3,'I-Scheme Details'!$E$104*'I-Scheme Details'!$E109)","v":365},{"$f":"_xlfn.IFS(AX$13=0,0,AX$13=1, 'I-Scheme Details'!$E$80*'I-Scheme Details'!$E85,AX$13=2,'I-Scheme Details'!$E$92*'I-Scheme Details'!$E97,AX$13=3,'I-Scheme Details'!$E$104*'I-Scheme Details'!$E109)","v":365},{"$f":"_xlfn.IFS(AY$13=0,0,AY$13=1, 'I-Scheme Details'!$E$80*'I-Scheme Details'!$E85,AY$13=2,'I-Scheme Details'!$E$92*'I-Scheme Details'!$E97,AY$13=3,'I-Scheme Details'!$E$104*'I-Scheme Details'!$E109)","v":365},{"$f":"_xlfn.IFS(AZ$13=0,0,AZ$13=1, 'I-Scheme Details'!$E$80*'I-Scheme Details'!$E85,AZ$13=2,'I-Scheme Details'!$E$92*'I-Scheme Details'!$E97,AZ$13=3,'I-Scheme Details'!$E$104*'I-Scheme Details'!$E109)","v":365},{"$f":"_xlfn.IFS(BA$13=0,0,BA$13=1, 'I-Scheme Details'!$E$80*'I-Scheme Details'!$E85,BA$13=2,'I-Scheme Details'!$E$92*'I-Scheme Details'!$E97,BA$13=3,'I-Scheme Details'!$E$104*'I-Scheme Details'!$E109)","v":365},{"$f":"_xlfn.IFS(BB$13=0,0,BB$13=1, 'I-Scheme Details'!$E$80*'I-Scheme Details'!$E85,BB$13=2,'I-Scheme Details'!$E$92*'I-Scheme Details'!$E97,BB$13=3,'I-Scheme Details'!$E$104*'I-Scheme Details'!$E109)","v":365},{"$f":"_xlfn.IFS(BC$13=0,0,BC$13=1, 'I-Scheme Details'!$E$80*'I-Scheme Details'!$E85,BC$13=2,'I-Scheme Details'!$E$92*'I-Scheme Details'!$E97,BC$13=3,'I-Scheme Details'!$E$104*'I-Scheme Details'!$E109)","v":365},{"$f":"_xlfn.IFS(BD$13=0,0,BD$13=1, 'I-Scheme Details'!$E$80*'I-Scheme Details'!$E85,BD$13=2,'I-Scheme Details'!$E$92*'I-Scheme Details'!$E97,BD$13=3,'I-Scheme Details'!$E$104*'I-Scheme Details'!$E109)","v":365},{"$f":"_xlfn.IFS(BE$13=0,0,BE$13=1, 'I-Scheme Details'!$E$80*'I-Scheme Details'!$E85,BE$13=2,'I-Scheme Details'!$E$92*'I-Scheme Details'!$E97,BE$13=3,'I-Scheme Details'!$E$104*'I-Scheme Details'!$E109)","v":365},{"$f":"_xlfn.IFS(BF$13=0,0,BF$13=1, 'I-Scheme Details'!$E$80*'I-Scheme Details'!$E85,BF$13=2,'I-Scheme Details'!$E$92*'I-Scheme Details'!$E97,BF$13=3,'I-Scheme Details'!$E$104*'I-Scheme Details'!$E109)","v":365},{"$f":"_xlfn.IFS(BG$13=0,0,BG$13=1, 'I-Scheme Details'!$E$80*'I-Scheme Details'!$E85,BG$13=2,'I-Scheme Details'!$E$92*'I-Scheme Details'!$E97,BG$13=3,'I-Scheme Details'!$E$104*'I-Scheme Details'!$E109)","v":365},{"$f":"_xlfn.IFS(BH$13=0,0,BH$13=1, 'I-Scheme Details'!$E$80*'I-Scheme Details'!$E85,BH$13=2,'I-Scheme Details'!$E$92*'I-Scheme Details'!$E97,BH$13=3,'I-Scheme Details'!$E$104*'I-Scheme Details'!$E109)","v":365},{"$f":"_xlfn.IFS(BI$13=0,0,BI$13=1, 'I-Scheme Details'!$E$80*'I-Scheme Details'!$E85,BI$13=2,'I-Scheme Details'!$E$92*'I-Scheme Details'!$E97,BI$13=3,'I-Scheme Details'!$E$104*'I-Scheme Details'!$E109)","v":365},{"$f":"_xlfn.IFS(BJ$13=0,0,BJ$13=1, 'I-Scheme Details'!$E$80*'I-Scheme Details'!$E85,BJ$13=2,'I-Scheme Details'!$E$92*'I-Scheme Details'!$E97,BJ$13=3,'I-Scheme Details'!$E$104*'I-Scheme Details'!$E109)","v":365},{"$f":"_xlfn.IFS(BK$13=0,0,BK$13=1, 'I-Scheme Details'!$E$80*'I-Scheme Details'!$E85,BK$13=2,'I-Scheme Details'!$E$92*'I-Scheme Details'!$E97,BK$13=3,'I-Scheme Details'!$E$104*'I-Scheme Details'!$E109)","v":365},{"$f":"_xlfn.IFS(BL$13=0,0,BL$13=1, 'I-Scheme Details'!$E$80*'I-Scheme Details'!$E85,BL$13=2,'I-Scheme Details'!$E$92*'I-Scheme Details'!$E97,BL$13=3,'I-Scheme Details'!$E$104*'I-Scheme Details'!$E109)","v":365},{"$f":"_xlfn.IFS(BM$13=0,0,BM$13=1, 'I-Scheme Details'!$E$80*'I-Scheme Details'!$E85,BM$13=2,'I-Scheme Details'!$E$92*'I-Scheme Details'!$E97,BM$13=3,'I-Scheme Details'!$E$104*'I-Scheme Details'!$E109)","v":365},{"$f":"_xlfn.IFS(BN$13=0,0,BN$13=1, 'I-Scheme Details'!$E$80*'I-Scheme Details'!$E85,BN$13=2,'I-Scheme Details'!$E$92*'I-Scheme Details'!$E97,BN$13=3,'I-Scheme Details'!$E$104*'I-Scheme Details'!$E109)","v":365},{"$f":"_xlfn.IFS(BO$13=0,0,BO$13=1, 'I-Scheme Details'!$E$80*'I-Scheme Details'!$E85,BO$13=2,'I-Scheme Details'!$E$92*'I-Scheme Details'!$E97,BO$13=3,'I-Scheme Details'!$E$104*'I-Scheme Details'!$E109)","v":365},{"$f":"_xlfn.IFS(BP$13=0,0,BP$13=1, 'I-Scheme Details'!$E$80*'I-Scheme Details'!$E85,BP$13=2,'I-Scheme Details'!$E$92*'I-Scheme Details'!$E97,BP$13=3,'I-Scheme Details'!$E$104*'I-Scheme Details'!$E109)","v":365},{"$f":"_xlfn.IFS(BQ$13=0,0,BQ$13=1, 'I-Scheme Details'!$E$80*'I-Scheme Details'!$E85,BQ$13=2,'I-Scheme Details'!$E$92*'I-Scheme Details'!$E97,BQ$13=3,'I-Scheme Details'!$E$104*'I-Scheme Details'!$E109)","v":365},{"$f":"_xlfn.IFS(BR$13=0,0,BR$13=1, 'I-Scheme Details'!$E$80*'I-Scheme Details'!$E85,BR$13=2,'I-Scheme Details'!$E$92*'I-Scheme Details'!$E97,BR$13=3,'I-Scheme Details'!$E$104*'I-Scheme Details'!$E109)","v":365},{"$f":"_xlfn.IFS(BS$13=0,0,BS$13=1, 'I-Scheme Details'!$E$80*'I-Scheme Details'!$E85,BS$13=2,'I-Scheme Details'!$E$92*'I-Scheme Details'!$E97,BS$13=3,'I-Scheme Details'!$E$104*'I-Scheme Details'!$E109)","v":365},{"$f":"_xlfn.IFS(BT$13=0,0,BT$13=1, 'I-Scheme Details'!$E$80*'I-Scheme Details'!$E85,BT$13=2,'I-Scheme Details'!$E$92*'I-Scheme Details'!$E97,BT$13=3,'I-Scheme Details'!$E$104*'I-Scheme Details'!$E109)","v":365},{"$f":"_xlfn.IFS(BU$13=0,0,BU$13=1, 'I-Scheme Details'!$E$80*'I-Scheme Details'!$E85,BU$13=2,'I-Scheme Details'!$E$92*'I-Scheme Details'!$E97,BU$13=3,'I-Scheme Details'!$E$104*'I-Scheme Details'!$E109)","v":365},{"$f":"_xlfn.IFS(BV$13=0,0,BV$13=1, 'I-Scheme Details'!$E$80*'I-Scheme Details'!$E85,BV$13=2,'I-Scheme Details'!$E$92*'I-Scheme Details'!$E97,BV$13=3,'I-Scheme Details'!$E$104*'I-Scheme Details'!$E109)","v":365},{"$f":"_xlfn.IFS(BW$13=0,0,BW$13=1, 'I-Scheme Details'!$E$80*'I-Scheme Details'!$E85,BW$13=2,'I-Scheme Details'!$E$92*'I-Scheme Details'!$E97,BW$13=3,'I-Scheme Details'!$E$104*'I-Scheme Details'!$E109)","v":365},{"$f":"_xlfn.IFS(BX$13=0,0,BX$13=1, 'I-Scheme Details'!$E$80*'I-Scheme Details'!$E85,BX$13=2,'I-Scheme Details'!$E$92*'I-Scheme Details'!$E97,BX$13=3,'I-Scheme Details'!$E$104*'I-Scheme Details'!$E109)","v":0},{"$f":"_xlfn.IFS(BY$13=0,0,BY$13=1, 'I-Scheme Details'!$E$80*'I-Scheme Details'!$E85,BY$13=2,'I-Scheme Details'!$E$92*'I-Scheme Details'!$E97,BY$13=3,'I-Scheme Details'!$E$104*'I-Scheme Details'!$E109)","v":0},{"$f":"_xlfn.IFS(BZ$13=0,0,BZ$13=1, 'I-Scheme Details'!$E$80*'I-Scheme Details'!$E85,BZ$13=2,'I-Scheme Details'!$E$92*'I-Scheme Details'!$E97,BZ$13=3,'I-Scheme Details'!$E$104*'I-Scheme Details'!$E109)","v":0},{"$f":"_xlfn.IFS(CA$13=0,0,CA$13=1, 'I-Scheme Details'!$E$80*'I-Scheme Details'!$E85,CA$13=2,'I-Scheme Details'!$E$92*'I-Scheme Details'!$E97,CA$13=3,'I-Scheme Details'!$E$104*'I-Scheme Details'!$E109)","v":0},{"$f":"_xlfn.IFS(CB$13=0,0,CB$13=1, 'I-Scheme Details'!$E$80*'I-Scheme Details'!$E85,CB$13=2,'I-Scheme Details'!$E$92*'I-Scheme Details'!$E97,CB$13=3,'I-Scheme Details'!$E$104*'I-Scheme Details'!$E109)","v":0},{"$f":"_xlfn.IFS(CC$13=0,0,CC$13=1, 'I-Scheme Details'!$E$80*'I-Scheme Details'!$E85,CC$13=2,'I-Scheme Details'!$E$92*'I-Scheme Details'!$E97,CC$13=3,'I-Scheme Details'!$E$104*'I-Scheme Details'!$E109)","v":0},{"$f":"_xlfn.IFS(CD$13=0,0,CD$13=1, 'I-Scheme Details'!$E$80*'I-Scheme Details'!$E85,CD$13=2,'I-Scheme Details'!$E$92*'I-Scheme Details'!$E97,CD$13=3,'I-Scheme Details'!$E$104*'I-Scheme Details'!$E109)","v":0},{"$f":"_xlfn.IFS(CE$13=0,0,CE$13=1, 'I-Scheme Details'!$E$80*'I-Scheme Details'!$E85,CE$13=2,'I-Scheme Details'!$E$92*'I-Scheme Details'!$E97,CE$13=3,'I-Scheme Details'!$E$104*'I-Scheme Details'!$E109)","v":0}]
[null,null,null,"PSV",null,null,null,null,null,"days per annum",{"$f":"_xlfn.IFS(K$13=0,0,K$13=1, 'I-Scheme Details'!$E$80*'I-Scheme Details'!$E86,K$13=2,'I-Scheme Details'!$E$92*'I-Scheme Details'!$E98,K$13=3,'I-Scheme Details'!$E$104*'I-Scheme Details'!$E110)","v":0},{"$f":"_xlfn.IFS(L$13=0,0,L$13=1, 'I-Scheme Details'!$E$80*'I-Scheme Details'!$E86,L$13=2,'I-Scheme Details'!$E$92*'I-Scheme Details'!$E98,L$13=3,'I-Scheme Details'!$E$104*'I-Scheme Details'!$E110)","v":0},{"$f":"_xlfn.IFS(M$13=0,0,M$13=1, 'I-Scheme Details'!$E$80*'I-Scheme Details'!$E86,M$13=2,'I-Scheme Details'!$E$92*'I-Scheme Details'!$E98,M$13=3,'I-Scheme Details'!$E$104*'I-Scheme Details'!$E110)","v":0},{"$f":"_xlfn.IFS(N$13=0,0,N$13=1, 'I-Scheme Details'!$E$80*'I-Scheme Details'!$E86,N$13=2,'I-Scheme Details'!$E$92*'I-Scheme Details'!$E98,N$13=3,'I-Scheme Details'!$E$104*'I-Scheme Details'!$E110)","v":0},{"$f":"_xlfn.IFS(O$13=0,0,O$13=1, 'I-Scheme Details'!$E$80*'I-Scheme Details'!$E86,O$13=2,'I-Scheme Details'!$E$92*'I-Scheme Details'!$E98,O$13=3,'I-Scheme Details'!$E$104*'I-Scheme Details'!$E110)","v":0},{"$f":"_xlfn.IFS(P$13=0,0,P$13=1, 'I-Scheme Details'!$E$80*'I-Scheme Details'!$E86,P$13=2,'I-Scheme Details'!$E$92*'I-Scheme Details'!$E98,P$13=3,'I-Scheme Details'!$E$104*'I-Scheme Details'!$E110)","v":365},{"$f":"_xlfn.IFS(Q$13=0,0,Q$13=1, 'I-Scheme Details'!$E$80*'I-Scheme Details'!$E86,Q$13=2,'I-Scheme Details'!$E$92*'I-Scheme Details'!$E98,Q$13=3,'I-Scheme Details'!$E$104*'I-Scheme Details'!$E110)","v":365},{"$f":"_xlfn.IFS(R$13=0,0,R$13=1, 'I-Scheme Details'!$E$80*'I-Scheme Details'!$E86,R$13=2,'I-Scheme Details'!$E$92*'I-Scheme Details'!$E98,R$13=3,'I-Scheme Details'!$E$104*'I-Scheme Details'!$E110)","v":365},{"$f":"_xlfn.IFS(S$13=0,0,S$13=1, 'I-Scheme Details'!$E$80*'I-Scheme Details'!$E86,S$13=2,'I-Scheme Details'!$E$92*'I-Scheme Details'!$E98,S$13=3,'I-Scheme Details'!$E$104*'I-Scheme Details'!$E110)","v":365},{"$f":"_xlfn.IFS(T$13=0,0,T$13=1, 'I-Scheme Details'!$E$80*'I-Scheme Details'!$E86,T$13=2,'I-Scheme Details'!$E$92*'I-Scheme Details'!$E98,T$13=3,'I-Scheme Details'!$E$104*'I-Scheme Details'!$E110)","v":365},{"$f":"_xlfn.IFS(U$13=0,0,U$13=1, 'I-Scheme Details'!$E$80*'I-Scheme Details'!$E86,U$13=2,'I-Scheme Details'!$E$92*'I-Scheme Details'!$E98,U$13=3,'I-Scheme Details'!$E$104*'I-Scheme Details'!$E110)","v":365},{"$f":"_xlfn.IFS(V$13=0,0,V$13=1, 'I-Scheme Details'!$E$80*'I-Scheme Details'!$E86,V$13=2,'I-Scheme Details'!$E$92*'I-Scheme Details'!$E98,V$13=3,'I-Scheme Details'!$E$104*'I-Scheme Details'!$E110)","v":365},{"$f":"_xlfn.IFS(W$13=0,0,W$13=1, 'I-Scheme Details'!$E$80*'I-Scheme Details'!$E86,W$13=2,'I-Scheme Details'!$E$92*'I-Scheme Details'!$E98,W$13=3,'I-Scheme Details'!$E$104*'I-Scheme Details'!$E110)","v":365},{"$f":"_xlfn.IFS(X$13=0,0,X$13=1, 'I-Scheme Details'!$E$80*'I-Scheme Details'!$E86,X$13=2,'I-Scheme Details'!$E$92*'I-Scheme Details'!$E98,X$13=3,'I-Scheme Details'!$E$104*'I-Scheme Details'!$E110)","v":365},{"$f":"_xlfn.IFS(Y$13=0,0,Y$13=1, 'I-Scheme Details'!$E$80*'I-Scheme Details'!$E86,Y$13=2,'I-Scheme Details'!$E$92*'I-Scheme Details'!$E98,Y$13=3,'I-Scheme Details'!$E$104*'I-Scheme Details'!$E110)","v":365},{"$f":"_xlfn.IFS(Z$13=0,0,Z$13=1, 'I-Scheme Details'!$E$80*'I-Scheme Details'!$E86,Z$13=2,'I-Scheme Details'!$E$92*'I-Scheme Details'!$E98,Z$13=3,'I-Scheme Details'!$E$104*'I-Scheme Details'!$E110)","v":365},{"$f":"_xlfn.IFS(AA$13=0,0,AA$13=1, 'I-Scheme Details'!$E$80*'I-Scheme Details'!$E86,AA$13=2,'I-Scheme Details'!$E$92*'I-Scheme Details'!$E98,AA$13=3,'I-Scheme Details'!$E$104*'I-Scheme Details'!$E110)","v":365},{"$f":"_xlfn.IFS(AB$13=0,0,AB$13=1, 'I-Scheme Details'!$E$80*'I-Scheme Details'!$E86,AB$13=2,'I-Scheme Details'!$E$92*'I-Scheme Details'!$E98,AB$13=3,'I-Scheme Details'!$E$104*'I-Scheme Details'!$E110)","v":365},{"$f":"_xlfn.IFS(AC$13=0,0,AC$13=1, 'I-Scheme Details'!$E$80*'I-Scheme Details'!$E86,AC$13=2,'I-Scheme Details'!$E$92*'I-Scheme Details'!$E98,AC$13=3,'I-Scheme Details'!$E$104*'I-Scheme Details'!$E110)","v":365},{"$f":"_xlfn.IFS(AD$13=0,0,AD$13=1, 'I-Scheme Details'!$E$80*'I-Scheme Details'!$E86,AD$13=2,'I-Scheme Details'!$E$92*'I-Scheme Details'!$E98,AD$13=3,'I-Scheme Details'!$E$104*'I-Scheme Details'!$E110)","v":365},{"$f":"_xlfn.IFS(AE$13=0,0,AE$13=1, 'I-Scheme Details'!$E$80*'I-Scheme Details'!$E86,AE$13=2,'I-Scheme Details'!$E$92*'I-Scheme Details'!$E98,AE$13=3,'I-Scheme Details'!$E$104*'I-Scheme Details'!$E110)","v":365},{"$f":"_xlfn.IFS(AF$13=0,0,AF$13=1, 'I-Scheme Details'!$E$80*'I-Scheme Details'!$E86,AF$13=2,'I-Scheme Details'!$E$92*'I-Scheme Details'!$E98,AF$13=3,'I-Scheme Details'!$E$104*'I-Scheme Details'!$E110)","v":365},{"$f":"_xlfn.IFS(AG$13=0,0,AG$13=1, 'I-Scheme Details'!$E$80*'I-Scheme Details'!$E86,AG$13=2,'I-Scheme Details'!$E$92*'I-Scheme Details'!$E98,AG$13=3,'I-Scheme Details'!$E$104*'I-Scheme Details'!$E110)","v":365},{"$f":"_xlfn.IFS(AH$13=0,0,AH$13=1, 'I-Scheme Details'!$E$80*'I-Scheme Details'!$E86,AH$13=2,'I-Scheme Details'!$E$92*'I-Scheme Details'!$E98,AH$13=3,'I-Scheme Details'!$E$104*'I-Scheme Details'!$E110)","v":365},{"$f":"_xlfn.IFS(AI$13=0,0,AI$13=1, 'I-Scheme Details'!$E$80*'I-Scheme Details'!$E86,AI$13=2,'I-Scheme Details'!$E$92*'I-Scheme Details'!$E98,AI$13=3,'I-Scheme Details'!$E$104*'I-Scheme Details'!$E110)","v":365},{"$f":"_xlfn.IFS(AJ$13=0,0,AJ$13=1, 'I-Scheme Details'!$E$80*'I-Scheme Details'!$E86,AJ$13=2,'I-Scheme Details'!$E$92*'I-Scheme Details'!$E98,AJ$13=3,'I-Scheme Details'!$E$104*'I-Scheme Details'!$E110)","v":365},{"$f":"_xlfn.IFS(AK$13=0,0,AK$13=1, 'I-Scheme Details'!$E$80*'I-Scheme Details'!$E86,AK$13=2,'I-Scheme Details'!$E$92*'I-Scheme Details'!$E98,AK$13=3,'I-Scheme Details'!$E$104*'I-Scheme Details'!$E110)","v":365},{"$f":"_xlfn.IFS(AL$13=0,0,AL$13=1, 'I-Scheme Details'!$E$80*'I-Scheme Details'!$E86,AL$13=2,'I-Scheme Details'!$E$92*'I-Scheme Details'!$E98,AL$13=3,'I-Scheme Details'!$E$104*'I-Scheme Details'!$E110)","v":365},{"$f":"_xlfn.IFS(AM$13=0,0,AM$13=1, 'I-Scheme Details'!$E$80*'I-Scheme Details'!$E86,AM$13=2,'I-Scheme Details'!$E$92*'I-Scheme Details'!$E98,AM$13=3,'I-Scheme Details'!$E$104*'I-Scheme Details'!$E110)","v":365},{"$f":"_xlfn.IFS(AN$13=0,0,AN$13=1, 'I-Scheme Details'!$E$80*'I-Scheme Details'!$E86,AN$13=2,'I-Scheme Details'!$E$92*'I-Scheme Details'!$E98,AN$13=3,'I-Scheme Details'!$E$104*'I-Scheme Details'!$E110)","v":365},{"$f":"_xlfn.IFS(AO$13=0,0,AO$13=1, 'I-Scheme Details'!$E$80*'I-Scheme Details'!$E86,AO$13=2,'I-Scheme Details'!$E$92*'I-Scheme Details'!$E98,AO$13=3,'I-Scheme Details'!$E$104*'I-Scheme Details'!$E110)","v":365},{"$f":"_xlfn.IFS(AP$13=0,0,AP$13=1, 'I-Scheme Details'!$E$80*'I-Scheme Details'!$E86,AP$13=2,'I-Scheme Details'!$E$92*'I-Scheme Details'!$E98,AP$13=3,'I-Scheme Details'!$E$104*'I-Scheme Details'!$E110)","v":365},{"$f":"_xlfn.IFS(AQ$13=0,0,AQ$13=1, 'I-Scheme Details'!$E$80*'I-Scheme Details'!$E86,AQ$13=2,'I-Scheme Details'!$E$92*'I-Scheme Details'!$E98,AQ$13=3,'I-Scheme Details'!$E$104*'I-Scheme Details'!$E110)","v":365},{"$f":"_xlfn.IFS(AR$13=0,0,AR$13=1, 'I-Scheme Details'!$E$80*'I-Scheme Details'!$E86,AR$13=2,'I-Scheme Details'!$E$92*'I-Scheme Details'!$E98,AR$13=3,'I-Scheme Details'!$E$104*'I-Scheme Details'!$E110)","v":365},{"$f":"_xlfn.IFS(AS$13=0,0,AS$13=1, 'I-Scheme Details'!$E$80*'I-Scheme Details'!$E86,AS$13=2,'I-Scheme Details'!$E$92*'I-Scheme Details'!$E98,AS$13=3,'I-Scheme Details'!$E$104*'I-Scheme Details'!$E110)","v":365},{"$f":"_xlfn.IFS(AT$13=0,0,AT$13=1, 'I-Scheme Details'!$E$80*'I-Scheme Details'!$E86,AT$13=2,'I-Scheme Details'!$E$92*'I-Scheme Details'!$E98,AT$13=3,'I-Scheme Details'!$E$104*'I-Scheme Details'!$E110)","v":365},{"$f":"_xlfn.IFS(AU$13=0,0,AU$13=1, 'I-Scheme Details'!$E$80*'I-Scheme Details'!$E86,AU$13=2,'I-Scheme Details'!$E$92*'I-Scheme Details'!$E98,AU$13=3,'I-Scheme Details'!$E$104*'I-Scheme Details'!$E110)","v":365},{"$f":"_xlfn.IFS(AV$13=0,0,AV$13=1, 'I-Scheme Details'!$E$80*'I-Scheme Details'!$E86,AV$13=2,'I-Scheme Details'!$E$92*'I-Scheme Details'!$E98,AV$13=3,'I-Scheme Details'!$E$104*'I-Scheme Details'!$E110)","v":365},{"$f":"_xlfn.IFS(AW$13=0,0,AW$13=1, 'I-Scheme Details'!$E$80*'I-Scheme Details'!$E86,AW$13=2,'I-Scheme Details'!$E$92*'I-Scheme Details'!$E98,AW$13=3,'I-Scheme Details'!$E$104*'I-Scheme Details'!$E110)","v":365},{"$f":"_xlfn.IFS(AX$13=0,0,AX$13=1, 'I-Scheme Details'!$E$80*'I-Scheme Details'!$E86,AX$13=2,'I-Scheme Details'!$E$92*'I-Scheme Details'!$E98,AX$13=3,'I-Scheme Details'!$E$104*'I-Scheme Details'!$E110)","v":365},{"$f":"_xlfn.IFS(AY$13=0,0,AY$13=1, 'I-Scheme Details'!$E$80*'I-Scheme Details'!$E86,AY$13=2,'I-Scheme Details'!$E$92*'I-Scheme Details'!$E98,AY$13=3,'I-Scheme Details'!$E$104*'I-Scheme Details'!$E110)","v":365},{"$f":"_xlfn.IFS(AZ$13=0,0,AZ$13=1, 'I-Scheme Details'!$E$80*'I-Scheme Details'!$E86,AZ$13=2,'I-Scheme Details'!$E$92*'I-Scheme Details'!$E98,AZ$13=3,'I-Scheme Details'!$E$104*'I-Scheme Details'!$E110)","v":365},{"$f":"_xlfn.IFS(BA$13=0,0,BA$13=1, 'I-Scheme Details'!$E$80*'I-Scheme Details'!$E86,BA$13=2,'I-Scheme Details'!$E$92*'I-Scheme Details'!$E98,BA$13=3,'I-Scheme Details'!$E$104*'I-Scheme Details'!$E110)","v":365},{"$f":"_xlfn.IFS(BB$13=0,0,BB$13=1, 'I-Scheme Details'!$E$80*'I-Scheme Details'!$E86,BB$13=2,'I-Scheme Details'!$E$92*'I-Scheme Details'!$E98,BB$13=3,'I-Scheme Details'!$E$104*'I-Scheme Details'!$E110)","v":365},{"$f":"_xlfn.IFS(BC$13=0,0,BC$13=1, 'I-Scheme Details'!$E$80*'I-Scheme Details'!$E86,BC$13=2,'I-Scheme Details'!$E$92*'I-Scheme Details'!$E98,BC$13=3,'I-Scheme Details'!$E$104*'I-Scheme Details'!$E110)","v":365},{"$f":"_xlfn.IFS(BD$13=0,0,BD$13=1, 'I-Scheme Details'!$E$80*'I-Scheme Details'!$E86,BD$13=2,'I-Scheme Details'!$E$92*'I-Scheme Details'!$E98,BD$13=3,'I-Scheme Details'!$E$104*'I-Scheme Details'!$E110)","v":365},{"$f":"_xlfn.IFS(BE$13=0,0,BE$13=1, 'I-Scheme Details'!$E$80*'I-Scheme Details'!$E86,BE$13=2,'I-Scheme Details'!$E$92*'I-Scheme Details'!$E98,BE$13=3,'I-Scheme Details'!$E$104*'I-Scheme Details'!$E110)","v":365},{"$f":"_xlfn.IFS(BF$13=0,0,BF$13=1, 'I-Scheme Details'!$E$80*'I-Scheme Details'!$E86,BF$13=2,'I-Scheme Details'!$E$92*'I-Scheme Details'!$E98,BF$13=3,'I-Scheme Details'!$E$104*'I-Scheme Details'!$E110)","v":365},{"$f":"_xlfn.IFS(BG$13=0,0,BG$13=1, 'I-Scheme Details'!$E$80*'I-Scheme Details'!$E86,BG$13=2,'I-Scheme Details'!$E$92*'I-Scheme Details'!$E98,BG$13=3,'I-Scheme Details'!$E$104*'I-Scheme Details'!$E110)","v":365},{"$f":"_xlfn.IFS(BH$13=0,0,BH$13=1, 'I-Scheme Details'!$E$80*'I-Scheme Details'!$E86,BH$13=2,'I-Scheme Details'!$E$92*'I-Scheme Details'!$E98,BH$13=3,'I-Scheme Details'!$E$104*'I-Scheme Details'!$E110)","v":365},{"$f":"_xlfn.IFS(BI$13=0,0,BI$13=1, 'I-Scheme Details'!$E$80*'I-Scheme Details'!$E86,BI$13=2,'I-Scheme Details'!$E$92*'I-Scheme Details'!$E98,BI$13=3,'I-Scheme Details'!$E$104*'I-Scheme Details'!$E110)","v":365},{"$f":"_xlfn.IFS(BJ$13=0,0,BJ$13=1, 'I-Scheme Details'!$E$80*'I-Scheme Details'!$E86,BJ$13=2,'I-Scheme Details'!$E$92*'I-Scheme Details'!$E98,BJ$13=3,'I-Scheme Details'!$E$104*'I-Scheme Details'!$E110)","v":365},{"$f":"_xlfn.IFS(BK$13=0,0,BK$13=1, 'I-Scheme Details'!$E$80*'I-Scheme Details'!$E86,BK$13=2,'I-Scheme Details'!$E$92*'I-Scheme Details'!$E98,BK$13=3,'I-Scheme Details'!$E$104*'I-Scheme Details'!$E110)","v":365},{"$f":"_xlfn.IFS(BL$13=0,0,BL$13=1, 'I-Scheme Details'!$E$80*'I-Scheme Details'!$E86,BL$13=2,'I-Scheme Details'!$E$92*'I-Scheme Details'!$E98,BL$13=3,'I-Scheme Details'!$E$104*'I-Scheme Details'!$E110)","v":365},{"$f":"_xlfn.IFS(BM$13=0,0,BM$13=1, 'I-Scheme Details'!$E$80*'I-Scheme Details'!$E86,BM$13=2,'I-Scheme Details'!$E$92*'I-Scheme Details'!$E98,BM$13=3,'I-Scheme Details'!$E$104*'I-Scheme Details'!$E110)","v":365},{"$f":"_xlfn.IFS(BN$13=0,0,BN$13=1, 'I-Scheme Details'!$E$80*'I-Scheme Details'!$E86,BN$13=2,'I-Scheme Details'!$E$92*'I-Scheme Details'!$E98,BN$13=3,'I-Scheme Details'!$E$104*'I-Scheme Details'!$E110)","v":365},{"$f":"_xlfn.IFS(BO$13=0,0,BO$13=1, 'I-Scheme Details'!$E$80*'I-Scheme Details'!$E86,BO$13=2,'I-Scheme Details'!$E$92*'I-Scheme Details'!$E98,BO$13=3,'I-Scheme Details'!$E$104*'I-Scheme Details'!$E110)","v":365},{"$f":"_xlfn.IFS(BP$13=0,0,BP$13=1, 'I-Scheme Details'!$E$80*'I-Scheme Details'!$E86,BP$13=2,'I-Scheme Details'!$E$92*'I-Scheme Details'!$E98,BP$13=3,'I-Scheme Details'!$E$104*'I-Scheme Details'!$E110)","v":365},{"$f":"_xlfn.IFS(BQ$13=0,0,BQ$13=1, 'I-Scheme Details'!$E$80*'I-Scheme Details'!$E86,BQ$13=2,'I-Scheme Details'!$E$92*'I-Scheme Details'!$E98,BQ$13=3,'I-Scheme Details'!$E$104*'I-Scheme Details'!$E110)","v":365},{"$f":"_xlfn.IFS(BR$13=0,0,BR$13=1, 'I-Scheme Details'!$E$80*'I-Scheme Details'!$E86,BR$13=2,'I-Scheme Details'!$E$92*'I-Scheme Details'!$E98,BR$13=3,'I-Scheme Details'!$E$104*'I-Scheme Details'!$E110)","v":365},{"$f":"_xlfn.IFS(BS$13=0,0,BS$13=1, 'I-Scheme Details'!$E$80*'I-Scheme Details'!$E86,BS$13=2,'I-Scheme Details'!$E$92*'I-Scheme Details'!$E98,BS$13=3,'I-Scheme Details'!$E$104*'I-Scheme Details'!$E110)","v":365},{"$f":"_xlfn.IFS(BT$13=0,0,BT$13=1, 'I-Scheme Details'!$E$80*'I-Scheme Details'!$E86,BT$13=2,'I-Scheme Details'!$E$92*'I-Scheme Details'!$E98,BT$13=3,'I-Scheme Details'!$E$104*'I-Scheme Details'!$E110)","v":365},{"$f":"_xlfn.IFS(BU$13=0,0,BU$13=1, 'I-Scheme Details'!$E$80*'I-Scheme Details'!$E86,BU$13=2,'I-Scheme Details'!$E$92*'I-Scheme Details'!$E98,BU$13=3,'I-Scheme Details'!$E$104*'I-Scheme Details'!$E110)","v":365},{"$f":"_xlfn.IFS(BV$13=0,0,BV$13=1, 'I-Scheme Details'!$E$80*'I-Scheme Details'!$E86,BV$13=2,'I-Scheme Details'!$E$92*'I-Scheme Details'!$E98,BV$13=3,'I-Scheme Details'!$E$104*'I-Scheme Details'!$E110)","v":365},{"$f":"_xlfn.IFS(BW$13=0,0,BW$13=1, 'I-Scheme Details'!$E$80*'I-Scheme Details'!$E86,BW$13=2,'I-Scheme Details'!$E$92*'I-Scheme Details'!$E98,BW$13=3,'I-Scheme Details'!$E$104*'I-Scheme Details'!$E110)","v":365},{"$f":"_xlfn.IFS(BX$13=0,0,BX$13=1, 'I-Scheme Details'!$E$80*'I-Scheme Details'!$E86,BX$13=2,'I-Scheme Details'!$E$92*'I-Scheme Details'!$E98,BX$13=3,'I-Scheme Details'!$E$104*'I-Scheme Details'!$E110)","v":0},{"$f":"_xlfn.IFS(BY$13=0,0,BY$13=1, 'I-Scheme Details'!$E$80*'I-Scheme Details'!$E86,BY$13=2,'I-Scheme Details'!$E$92*'I-Scheme Details'!$E98,BY$13=3,'I-Scheme Details'!$E$104*'I-Scheme Details'!$E110)","v":0},{"$f":"_xlfn.IFS(BZ$13=0,0,BZ$13=1, 'I-Scheme Details'!$E$80*'I-Scheme Details'!$E86,BZ$13=2,'I-Scheme Details'!$E$92*'I-Scheme Details'!$E98,BZ$13=3,'I-Scheme Details'!$E$104*'I-Scheme Details'!$E110)","v":0},{"$f":"_xlfn.IFS(CA$13=0,0,CA$13=1, 'I-Scheme Details'!$E$80*'I-Scheme Details'!$E86,CA$13=2,'I-Scheme Details'!$E$92*'I-Scheme Details'!$E98,CA$13=3,'I-Scheme Details'!$E$104*'I-Scheme Details'!$E110)","v":0},{"$f":"_xlfn.IFS(CB$13=0,0,CB$13=1, 'I-Scheme Details'!$E$80*'I-Scheme Details'!$E86,CB$13=2,'I-Scheme Details'!$E$92*'I-Scheme Details'!$E98,CB$13=3,'I-Scheme Details'!$E$104*'I-Scheme Details'!$E110)","v":0},{"$f":"_xlfn.IFS(CC$13=0,0,CC$13=1, 'I-Scheme Details'!$E$80*'I-Scheme Details'!$E86,CC$13=2,'I-Scheme Details'!$E$92*'I-Scheme Details'!$E98,CC$13=3,'I-Scheme Details'!$E$104*'I-Scheme Details'!$E110)","v":0},{"$f":"_xlfn.IFS(CD$13=0,0,CD$13=1, 'I-Scheme Details'!$E$80*'I-Scheme Details'!$E86,CD$13=2,'I-Scheme Details'!$E$92*'I-Scheme Details'!$E98,CD$13=3,'I-Scheme Details'!$E$104*'I-Scheme Details'!$E110)","v":0},{"$f":"_xlfn.IFS(CE$13=0,0,CE$13=1, 'I-Scheme Details'!$E$80*'I-Scheme Details'!$E86,CE$13=2,'I-Scheme Details'!$E$92*'I-Scheme Details'!$E98,CE$13=3,'I-Scheme Details'!$E$104*'I-Scheme Details'!$E110)","v":0}]
[]
[null,null,"Journey Time Impacts"]
[]
[null,null,null,"Change in journey times"]
[null,null,null,"Cars",null,null,null,{"$f":"SUM(K27:CE27)","v":0},null,"£, 2023 prices",{"$f":"'C-Daily Impacts'!K15*K19*K$14","v":0},{"$f":"'C-Daily Impacts'!L15*L19*L$14","v":0},{"$f":"'C-Daily Impacts'!M15*M19*M$14","v":0},{"$f":"'C-Daily Impacts'!N15*N19*N$14","v":0},{"$f":"'C-Daily Impacts'!O15*O19*O$14","v":0},{"$f":"'C-Daily Impacts'!P15*P19*P$14","v":0},{"$f":"'C-Daily Impacts'!Q15*Q19*Q$14","v":0},{"$f":"'C-Daily Impacts'!R15*R19*R$14","v":0},{"$f":"'C-Daily Impacts'!S15*S19*S$14","v":0},{"$f":"'C-Daily Impacts'!T15*T19*T$14","v":0},{"$f":"'C-Daily Impacts'!U15*U19*U$14","v":0},{"$f":"'C-Daily Impacts'!V15*V19*V$14","v":0},{"$f":"'C-Daily Impacts'!W15*W19*W$14","v":0},{"$f":"'C-Daily Impacts'!X15*X19*X$14","v":0},{"$f":"'C-Daily Impacts'!Y15*Y19*Y$14","v":0},{"$f":"'C-Daily Impacts'!Z15*Z19*Z$14","v":0},{"$f":"'C-Daily Impacts'!AA15*AA19*AA$14","v":0},{"$f":"'C-Daily Impacts'!AB15*AB19*AB$14","v":0},{"$f":"'C-Daily Impacts'!AC15*AC19*AC$14","v":0},{"$f":"'C-Daily Impacts'!AD15*AD19*AD$14","v":0},{"$f":"'C-Daily Impacts'!AE15*AE19*AE$14","v":0},{"$f":"'C-Daily Impacts'!AF15*AF19*AF$14","v":0},{"$f":"'C-Daily Impacts'!AG15*AG19*AG$14","v":0},{"$f":"'C-Daily Impacts'!AH15*AH19*AH$14","v":0},{"$f":"'C-Daily Impacts'!AI15*AI19*AI$14","v":0},{"$f":"'C-Daily Impacts'!AJ15*AJ19*AJ$14","v":0},{"$f":"'C-Daily Impacts'!AK15*AK19*AK$14","v":0},{"$f":"'C-Daily Impacts'!AL15*AL19*AL$14","v":0},{"$f":"'C-Daily Impacts'!AM15*AM19*AM$14","v":0},{"$f":"'C-Daily Impacts'!AN15*AN19*AN$14","v":0},{"$f":"'C-Daily Impacts'!AO15*AO19*AO$14","v":0},{"$f":"'C-Daily Impacts'!AP15*AP19*AP$14","v":0},{"$f":"'C-Daily Impacts'!AQ15*AQ19*AQ$14","v":0},{"$f":"'C-Daily Impacts'!AR15*AR19*AR$14","v":0},{"$f":"'C-Daily Impacts'!AS15*AS19*AS$14","v":0},{"$f":"'C-Daily Impacts'!AT15*AT19*AT$14","v":0},{"$f":"'C-Daily Impacts'!AU15*AU19*AU$14","v":0},{"$f":"'C-Daily Impacts'!AV15*AV19*AV$14","v":0},{"$f":"'C-Daily Impacts'!AW15*AW19*AW$14","v":0},{"$f":"'C-Daily Impacts'!AX15*AX19*AX$14","v":0},{"$f":"'C-Daily Impacts'!AY15*AY19*AY$14","v":0},{"$f":"'C-Daily Impacts'!AZ15*AZ19*AZ$14","v":0},{"$f":"'C-Daily Impacts'!BA15*BA19*BA$14","v":0},{"$f":"'C-Daily Impacts'!BB15*BB19*BB$14","v":0},{"$f":"'C-Daily Impacts'!BC15*BC19*BC$14","v":0},{"$f":"'C-Daily Impacts'!BD15*BD19*BD$14","v":0},{"$f":"'C-Daily Impacts'!BE15*BE19*BE$14","v":0},{"$f":"'C-Daily Impacts'!BF15*BF19*BF$14","v":0},{"$f":"'C-Daily Impacts'!BG15*BG19*BG$14","v":0},{"$f":"'C-Daily Impacts'!BH15*BH19*BH$14","v":0},{"$f":"'C-Daily Impacts'!BI15*BI19*BI$14","v":0},{"$f":"'C-Daily Impacts'!BJ15*BJ19*BJ$14","v":0},{"$f":"'C-Daily Impacts'!BK15*BK19*BK$14","v":0},{"$f":"'C-Daily Impacts'!BL15*BL19*BL$14","v":0},{"$f":"'C-Daily Impacts'!BM15*BM19*BM$14","v":0},{"$f":"'C-Daily Impacts'!BN15*BN19*BN$14","v":0},{"$f":"'C-Daily Impacts'!BO15*BO19*BO$14","v":0},{"$f":"'C-Daily Impacts'!BP15*BP19*BP$14","v":0},{"$f":"'C-Daily Impacts'!BQ15*BQ19*BQ$14","v":0},{"$f":"'C-Daily Impacts'!BR15*BR19*BR$14","v":0},{"$f":"'C-Daily Impacts'!BS15*BS19*BS$14","v":0},{"$f":"'C-Daily Impacts'!BT15*BT19*BT$14","v":0},{"$f":"'C-Daily Impacts'!BU15*BU19*BU$14","v":0},{"$f":"'C-Daily Impacts'!BV15*BV19*BV$14","v":0},{"$f":"'C-Daily Impacts'!BW15*BW19*BW$14","v":0},{"$f":"'C-Daily Impacts'!BX15*BX19*BX$14","v":0},{"$f":"'C-Daily Impacts'!BY15*BY19*BY$14","v":0},{"$f":"'C-Daily Impacts'!BZ15*BZ19*BZ$14","v":0},{"$f":"'C-Daily Impacts'!CA15*CA19*CA$14","v":0},{"$f":"'C-Daily Impacts'!CB15*CB19*CB$14","v":0},{"$f":"'C-Daily Impacts'!CC15*CC19*CC$14","v":0},{"$f":"'C-Daily Impacts'!CD15*CD19*CD$14","v":0},{"$f":"'C-Daily Impacts'!CE15*CE19*CE$14","v":0}]
[null,null,null,"LGV",null,null,null,{"$f":"SUM(K28:CE28)","v":0},null,"£, 2023 prices",{"$f":"'C-Daily Impacts'!K16*K20*K$14","v":0},{"$f":"'C-Daily Impacts'!L16*L20*L$14","v":0},{"$f":"'C-Daily Impacts'!M16*M20*M$14","v":0},{"$f":"'C-Daily Impacts'!N16*N20*N$14","v":0},{"$f":"'C-Daily Impacts'!O16*O20*O$14","v":0},{"$f":"'C-Daily Impacts'!P16*P20*P$14","v":0},{"$f":"'C-Daily Impacts'!Q16*Q20*Q$14","v":0},{"$f":"'C-Daily Impacts'!R16*R20*R$14","v":0},{"$f":"'C-Daily Impacts'!S16*S20*S$14","v":0},{"$f":"'C-Daily Impacts'!T16*T20*T$14","v":0},{"$f":"'C-Daily Impacts'!U16*U20*U$14","v":0},{"$f":"'C-Daily Impacts'!V16*V20*V$14","v":0},{"$f":"'C-Daily Impacts'!W16*W20*W$14","v":0},{"$f":"'C-Daily Impacts'!X16*X20*X$14","v":0},{"$f":"'C-Daily Impacts'!Y16*Y20*Y$14","v":0},{"$f":"'C-Daily Impacts'!Z16*Z20*Z$14","v":0},{"$f":"'C-Daily Impacts'!AA16*AA20*AA$14","v":0},{"$f":"'C-Daily Impacts'!AB16*AB20*AB$14","v":0},{"$f":"'C-Daily Impacts'!AC16*AC20*AC$14","v":0},{"$f":"'C-Daily Impacts'!AD16*AD20*AD$14","v":0},{"$f":"'C-Daily Impacts'!AE16*AE20*AE$14","v":0},{"$f":"'C-Daily Impacts'!AF16*AF20*AF$14","v":0},{"$f":"'C-Daily Impacts'!AG16*AG20*AG$14","v":0},{"$f":"'C-Daily Impacts'!AH16*AH20*AH$14","v":0},{"$f":"'C-Daily Impacts'!AI16*AI20*AI$14","v":0},{"$f":"'C-Daily Impacts'!AJ16*AJ20*AJ$14","v":0},{"$f":"'C-Daily Impacts'!AK16*AK20*AK$14","v":0},{"$f":"'C-Daily Impacts'!AL16*AL20*AL$14","v":0},{"$f":"'C-Daily Impacts'!AM16*AM20*AM$14","v":0},{"$f":"'C-Daily Impacts'!AN16*AN20*AN$14","v":0},{"$f":"'C-Daily Impacts'!AO16*AO20*AO$14","v":0},{"$f":"'C-Daily Impacts'!AP16*AP20*AP$14","v":0},{"$f":"'C-Daily Impacts'!AQ16*AQ20*AQ$14","v":0},{"$f":"'C-Daily Impacts'!AR16*AR20*AR$14","v":0},{"$f":"'C-Daily Impacts'!AS16*AS20*AS$14","v":0},{"$f":"'C-Daily Impacts'!AT16*AT20*AT$14","v":0},{"$f":"'C-Daily Impacts'!AU16*AU20*AU$14","v":0},{"$f":"'C-Daily Impacts'!AV16*AV20*AV$14","v":0},{"$f":"'C-Daily Impacts'!AW16*AW20*AW$14","v":0},{"$f":"'C-Daily Impacts'!AX16*AX20*AX$14","v":0},{"$f":"'C-Daily Impacts'!AY16*AY20*AY$14","v":0},{"$f":"'C-Daily Impacts'!AZ16*AZ20*AZ$14","v":0},{"$f":"'C-Daily Impacts'!BA16*BA20*BA$14","v":0},{"$f":"'C-Daily Impacts'!BB16*BB20*BB$14","v":0},{"$f":"'C-Daily Impacts'!BC16*BC20*BC$14","v":0},{"$f":"'C-Daily Impacts'!BD16*BD20*BD$14","v":0},{"$f":"'C-Daily Impacts'!BE16*BE20*BE$14","v":0},{"$f":"'C-Daily Impacts'!BF16*BF20*BF$14","v":0},{"$f":"'C-Daily Impacts'!BG16*BG20*BG$14","v":0},{"$f":"'C-Daily Impacts'!BH16*BH20*BH$14","v":0},{"$f":"'C-Daily Impacts'!BI16*BI20*BI$14","v":0},{"$f":"'C-Daily Impacts'!BJ16*BJ20*BJ$14","v":0},{"$f":"'C-Daily Impacts'!BK16*BK20*BK$14","v":0},{"$f":"'C-Daily Impacts'!BL16*BL20*BL$14","v":0},{"$f":"'C-Daily Impacts'!BM16*BM20*BM$14","v":0},{"$f":"'C-Daily Impacts'!BN16*BN20*BN$14","v":0},{"$f":"'C-Daily Impacts'!BO16*BO20*BO$14","v":0},{"$f":"'C-Daily Impacts'!BP16*BP20*BP$14","v":0},{"$f":"'C-Daily Impacts'!BQ16*BQ20*BQ$14","v":0},{"$f":"'C-Daily Impacts'!BR16*BR20*BR$14","v":0},{"$f":"'C-Daily Impacts'!BS16*BS20*BS$14","v":0},{"$f":"'C-Daily Impacts'!BT16*BT20*BT$14","v":0},{"$f":"'C-Daily Impacts'!BU16*BU20*BU$14","v":0},{"$f":"'C-Daily Impacts'!BV16*BV20*BV$14","v":0},{"$f":"'C-Daily Impacts'!BW16*BW20*BW$14","v":0},{"$f":"'C-Daily Impacts'!BX16*BX20*BX$14","v":0},{"$f":"'C-Daily Impacts'!BY16*BY20*BY$14","v":0},{"$f":"'C-Daily Impacts'!BZ16*BZ20*BZ$14","v":0},{"$f":"'C-Daily Impacts'!CA16*CA20*CA$14","v":0},{"$f":"'C-Daily Impacts'!CB16*CB20*CB$14","v":0},{"$f":"'C-Daily Impacts'!CC16*CC20*CC$14","v":0},{"$f":"'C-Daily Impacts'!CD16*CD20*CD$14","v":0},{"$f":"'C-Daily Impacts'!CE16*CE20*CE$14","v":0}]
[null,null,null,"HGV - Artics",null,null,null,16421201.324710878,null,"£, 2023 prices",{"$f":"'C-Daily Impacts'!K17*K21*K$14","v":0},{"$f":"'C-Daily Impacts'!L17*L21*L$14","v":0},{"$f":"'C-Daily Impacts'!M17*M21*M$14","v":0},{"$f":"'C-Daily Impacts'!N17*N21*N$14","v":0},{"$f":"'C-Daily Impacts'!O17*O21*O$14","v":0},{"$f":"'C-Daily Impacts'!P17*P21*P$14","v":166435.33275637016},{"$f":"'C-Daily Impacts'!Q17*Q21*Q$14","v":168440.48761472572},{"$f":"'C-Daily Impacts'!R17*R21*R$14","v":170506.51226622818},{"$f":"'C-Daily Impacts'!S17*S21*S$14","v":173238.11786547213},{"$f":"'C-Daily Impacts'!T17*T21*T$14","v":176088.30873673028},{"$f":"'C-Daily Impacts'!U17*U21*U$14","v":179071.66839987101},{"$f":"'C-Daily Impacts'!V17*V21*V$14","v":182166.66831408622},{"$f":"'C-Daily Impacts'!W17*W21*W$14","v":185345.10411646374},{"$f":"'C-Daily Impacts'!X17*X21*X$14","v":188870.60631151224},{"$f":"'C-Daily Impacts'!Y17*Y21*Y$14","v":192600.67236606503},{"$f":"'C-Daily Impacts'!Z17*Z21*Z$14","v":196291.67351276375},{"$f":"'C-Daily Impacts'!AA17*AA21*AA$14","v":199955.27691153463},{"$f":"'C-Daily Impacts'!AB17*AB21*AB$14","v":203562.08548175954},{"$f":"'C-Daily Impacts'!AC17*AC21*AC$14","v":207129.27226916954},{"$f":"'C-Daily Impacts'!AD17*AD21*AD$14","v":210670.28270382731},{"$f":"'C-Daily Impacts'!AE17*AE21*AE$14","v":214216.67775410719},{"$f":"'C-Daily Impacts'!AF17*AF21*AF$14","v":217787.97753763304},{"$f":"'C-Daily Impacts'!AG17*AG21*AG$14","v":221364.95816596353},{"$f":"'C-Daily Impacts'!AH17*AH21*AH$14","v":225025.40468951166},{"$f":"'C-Daily Impacts'!AI17*AI21*AI$14","v":228726.70474996336},{"$f":"'C-Daily Impacts'!AJ17*AJ21*AJ$14","v":232476.14039656665},{"$f":"'C-Daily Impacts'!AK17*AK21*AK$14","v":236271.95371412832},{"$f":"'C-Daily Impacts'!AL17*AL21*AL$14","v":240127.99291253573},{"$f":"'C-Daily Impacts'!AM17*AM21*AM$14","v":243887.81385498983},{"$f":"'C-Daily Impacts'!AN17*AN21*AN$14","v":247714.53763955779},{"$f":"'C-Daily Impacts'!AO17*AO21*AO$14","v":251589.9658380539},{"$f":"'C-Daily Impacts'!AP17*AP21*AP$14","v":255514.636487424},{"$f":"'C-Daily Impacts'!AQ17*AQ21*AQ$14","v":259483.75100861897},{"$f":"'C-Daily Impacts'!AR17*AR21*AR$14","v":263335.22670106456},{"$f":"'C-Daily Impacts'!AS17*AS21*AS$14","v":267213.42644273338},{"$f":"'C-Daily Impacts'!AT17*AT21*AT$14","v":271117.26149309613},{"$f":"'C-Daily Impacts'!AU17*AU21*AU$14","v":275067.11795740749},{"$f":"'C-Daily Impacts'!AV17*AV21*AV$14","v":279031.84007340693},{"$f":"'C-Daily Impacts'!AW17*AW21*AW$14","v":283087.23815171176},{"$f":"'C-Daily Impacts'!AX17*AX21*AX$14","v":287139.29870329628},{"$f":"'C-Daily Impacts'!AY17*AY21*AY$14","v":291204.7146171988},{"$f":"'C-Daily Impacts'!AZ17*AZ21*AZ$14","v":295292.46249198721},{"$f":"'C-Daily Impacts'!BA17*BA21*BA$14","v":299443.26409113838},{"$f":"'C-Daily Impacts'!BB17*BB21*BB$14","v":303644.37280638836},{"$f":"'C-Daily Impacts'!BC17*BC21*BC$14","v":307898.23675802455},{"$f":"'C-Daily Impacts'!BD17*BD21*BD$14","v":312275.63682183577},{"$f":"'C-Daily Impacts'!BE17*BE21*BE$14","v":316883.30438622716},{"$f":"'C-Daily Impacts'!BF17*BF21*BF$14","v":321678.00603958277},{"$f":"'C-Daily Impacts'!BG17*BG21*BG$14","v":326568.93434233696},{"$f":"'C-Daily Impacts'!BH17*BH21*BH$14","v":331529.06794535514},{"$f":"'C-Daily Impacts'!BI17*BI21*BI$14","v":336581.35958053928},{"$f":"'C-Daily Impacts'!BJ17*BJ21*BJ$14","v":340928.60247599689},{"$f":"'C-Daily Impacts'!BK17*BK21*BK$14","v":345235.93451461679},{"$f":"'C-Daily Impacts'!BL17*BL21*BL$14","v":349382.52053372754},{"$f":"'C-Daily Impacts'!BM17*BM21*BM$14","v":353625.35382269969},{"$f":"'C-Daily Impacts'!BN17*BN21*BN$14","v":357889.19263717369},{"$f":"'C-Daily Impacts'!BO17*BO21*BO$14","v":362149.21965619054},{"$f":"'C-Daily Impacts'!BP17*BP21*BP$14","v":366485.10343333374},{"$f":"'C-Daily Impacts'!BQ17*BQ21*BQ$14","v":371040.69150013453},{"$f":"'C-Daily Impacts'!BR17*BR21*BR$14","v":375812.81022717536},{"$f":"'C-Daily Impacts'!BS17*BS21*BS$14","v":380697.89038408978},{"$f":"'C-Daily Impacts'!BT17*BT21*BT$14","v":385623.37303859007},{"$f":"'C-Daily Impacts'!BU17*BU21*BU$14","v":390802.35584022407},{"$f":"'C-Daily Impacts'!BV17*BV21*BV$14","v":396205.59997925232},{"$f":"'C-Daily Impacts'!BW17*BW21*BW$14","v":401771.32288870931},{"$f":"'C-Daily Impacts'!BX17*BX21*BX$14","v":0},{"$f":"'C-Daily Impacts'!BY17*BY21*BY$14","v":0},{"$f":"'C-Daily Impacts'!BZ17*BZ21*BZ$14","v":0},{"$f":"'C-Daily Impacts'!CA17*CA21*CA$14","v":0},{"$f":"'C-Daily Impacts'!CB17*CB21*CB$14","v":0},{"$f":"'C-Daily Impacts'!CC17*CC21*CC$14","v":0},{"$f":"'C-Daily Impacts'!CD17*CD21*CD$14","v":0},{"$f":"'C-Daily Impacts'!CE17*CE21*CE$14","v":0}]
[null,null,null,"HGV - Rigids",null,null,null,11544444.837165026,null,"£, 2023 prices",{"$f":"'C-Daily Impacts'!K18*K21*K$14","v":0},{"$f":"'C-Daily Impacts'!L18*L21*L$14","v":0},{"$f":"'C-Daily Impacts'!M18*M21*M$14","v":0},{"$f":"'C-Daily Impacts'!N18*N21*N$14","v":0},{"$f":"'C-Daily Impacts'!O18*O21*O$14","v":0},{"$f":"'C-Daily Impacts'!P18*P21*P$14","v":117007.4880617755},{"$f":"'C-Daily Impacts'!Q18*Q21*Q$14","v":118417.15348116387},{"$f":"'C-Daily Impacts'!R18*R21*R$14","v":119869.61162657384},{"$f":"'C-Daily Impacts'!S18*S21*S$14","v":121789.98697145858},{"$f":"'C-Daily Impacts'!T18*T21*T$14","v":123793.73022007928},{"$f":"'C-Daily Impacts'!U18*U21*U$14","v":125891.09388912602},{"$f":"'C-Daily Impacts'!V18*V21*V$14","v":128066.94296826255},{"$f":"'C-Daily Impacts'!W18*W21*W$14","v":130301.44920586658},{"$f":"'C-Daily Impacts'!X18*X21*X$14","v":132779.95030997251},{"$f":"'C-Daily Impacts'!Y18*Y21*Y$14","v":135402.2640466032},{"$f":"'C-Daily Impacts'!Z18*Z21*Z$14","v":137997.11434344808},{"$f":"'C-Daily Impacts'!AA18*AA21*AA$14","v":140572.70345572059},{"$f":"'C-Daily Impacts'!AB18*AB21*AB$14","v":143108.36462653379},{"$f":"'C-Daily Impacts'!AC18*AC21*AC$14","v":145616.17086292338},{"$f":"'C-Daily Impacts'!AD18*AD21*AD$14","v":148105.5745808607},{"$f":"'C-Daily Impacts'!AE18*AE21*AE$14","v":150598.76379516881},{"$f":"'C-Daily Impacts'!AF18*AF21*AF$14","v":153109.46155306377},{"$f":"'C-Daily Impacts'!AG18*AG21*AG$14","v":155624.15306258379},{"$f":"'C-Daily Impacts'!AH18*AH21*AH$14","v":158197.52282615303},{"$f":"'C-Daily Impacts'!AI18*AI21*AI$14","v":160799.61347279657},{"$f":"'C-Daily Impacts'!AJ18*AJ21*AJ$14","v":163435.54443404573},{"$f":"'C-Daily Impacts'!AK18*AK21*AK$14","v":166104.07985908951},{"$f":"'C-Daily Impacts'!AL18*AL21*AL$14","v":168814.9553264631},{"$f":"'C-Daily Impacts'!AM18*AM21*AM$14","v":171458.18736591574},{"$f":"'C-Daily Impacts'!AN18*AN21*AN$14","v":174148.45348984018},{"$f":"'C-Daily Impacts'!AO18*AO21*AO$14","v":176872.95982608534},{"$f":"'C-Daily Impacts'!AP18*AP21*AP$14","v":179632.08462577421},{"$f":"'C-Daily Impacts'!AQ18*AQ21*AQ$14","v":182422.45438839158},{"$f":"'C-Daily Impacts'!AR18*AR21*AR$14","v":185130.12161650186},{"$f":"'C-Daily Impacts'!AS18*AS21*AS$14","v":187856.57640503367},{"$f":"'C-Daily Impacts'!AT18*AT21*AT$14","v":190601.05334683243},{"$f":"'C-Daily Impacts'!AU18*AU21*AU$14","v":193377.88429636497},{"$f":"'C-Daily Impacts'!AV18*AV21*AV$14","v":196165.16610710364},{"$f":"'C-Daily Impacts'!AW18*AW21*AW$14","v":199016.19499847249},{"$f":"'C-Daily Impacts'!AX18*AX21*AX$14","v":201864.87753939154},{"$f":"'C-Daily Impacts'!AY18*AY21*AY$14","v":204722.9491767908},{"$f":"'C-Daily Impacts'!AZ18*AZ21*AZ$14","v":207596.72064549089},{"$f":"'C-Daily Impacts'!BA18*BA21*BA$14","v":210514.82018911612},{"$f":"'C-Daily Impacts'!BB18*BB21*BB$14","v":213468.28667790178},{"$f":"'C-Daily Impacts'!BC18*BC21*BC$14","v":216458.8411911437},{"$f":"'C-Daily Impacts'!BD18*BD21*BD$14","v":219536.24415135381},{"$f":"'C-Daily Impacts'!BE18*BE21*BE$14","v":222775.52993643616},{"$f":"'C-Daily Impacts'!BF18*BF21*BF$14","v":226146.30456207407},{"$f":"'C-Daily Impacts'!BG18*BG21*BG$14","v":229584.72851639881},{"$f":"'C-Daily Impacts'!BH18*BH21*BH$14","v":233071.80523098988},{"$f":"'C-Daily Impacts'!BI18*BI21*BI$14","v":236623.67095203706},{"$f":"'C-Daily Impacts'!BJ18*BJ21*BJ$14","v":239679.87279793041},{"$f":"'C-Daily Impacts'!BK18*BK21*BK$14","v":242708.01648437144},{"$f":"'C-Daily Impacts'!BL18*BL21*BL$14","v":245623.15238786646},{"$f":"'C-Daily Impacts'!BM18*BM21*BM$14","v":248605.95211666089},{"$f":"'C-Daily Impacts'!BN18*BN21*BN$14","v":251603.51916519256},{"$f":"'C-Daily Impacts'!BO18*BO21*BO$14","v":254598.4064425239},{"$f":"'C-Daily Impacts'!BP18*BP21*BP$14","v":257646.62259284066},{"$f":"'C-Daily Impacts'!BQ18*BQ21*BQ$14","v":260849.29541184381},{"$f":"'C-Daily Impacts'!BR18*BR21*BR$14","v":264204.19377228367},{"$f":"'C-Daily Impacts'!BS18*BS21*BS$14","v":267638.50635888858},{"$f":"'C-Daily Impacts'!BT18*BT21*BT$14","v":271101.22273858025},{"$f":"'C-Daily Impacts'!BU18*BU21*BU$14","v":274742.1549751347},{"$f":"'C-Daily Impacts'!BV18*BV21*BV$14","v":278540.74757937255},{"$f":"'C-Daily Impacts'!BW18*BW21*BW$14","v":282453.56612636166},{"$f":"'C-Daily Impacts'!BX18*BX21*BX$14","v":0},{"$f":"'C-Daily Impacts'!BY18*BY21*BY$14","v":0},{"$f":"'C-Daily Impacts'!BZ18*BZ21*BZ$14","v":0},{"$f":"'C-Daily Impacts'!CA18*CA21*CA$14","v":0},{"$f":"'C-Daily Impacts'!CB18*CB21*CB$14","v":0},{"$f":"'C-Daily Impacts'!CC18*CC21*CC$14","v":0},{"$f":"'C-Daily Impacts'!CD18*CD21*CD$14","v":0},{"$f":"'C-Daily Impacts'!CE18*CE21*CE$14","v":0}]
[null,null,null,"PSV",null,null,null,426909951.23375577,null,"£, 2023 prices",{"$f":"'C-Daily Impacts'!K19*K22*K$14","v":0},{"$f":"'C-Daily Impacts'!L19*L22*L$14","v":0},{"$f":"'C-Daily Impacts'!M19*M22*M$14","v":0},{"$f":"'C-Daily Impacts'!N19*N22*N$14","v":0},{"$f":"'C-Daily Impacts'!O19*O22*O$14","v":0},{"$f":"'C-Daily Impacts'!P19*P22*P$14","v":4504279.9280083124},{"$f":"'C-Daily Impacts'!Q19*Q22*Q$14","v":4552927.0064472267},{"$f":"'C-Daily Impacts'!R19*R22*R$14","v":4603090.5909963213},{"$f":"'C-Daily Impacts'!S19*S22*S$14","v":4674129.6763933208},{"$f":"'C-Daily Impacts'!T19*T22*T$14","v":4748282.7431293549},{"$f":"'C-Daily Impacts'!U19*U22*U$14","v":4825937.3382947491},{"$f":"'C-Daily Impacts'!V19*V22*V$14","v":4906507.4578377046},{"$f":"'C-Daily Impacts'!W19*W22*W$14","v":4989228.7425904339},{"$f":"'C-Daily Impacts'!X19*X22*X$14","v":5074709.7206011126},{"$f":"'C-Daily Impacts'!Y19*Y22*Y$14","v":5165342.96996905},{"$f":"'C-Daily Impacts'!Z19*Z22*Z$14","v":5254577.1832125261},{"$f":"'C-Daily Impacts'!AA19*AA22*AA$14","v":5342730.9136776868},{"$f":"'C-Daily Impacts'!AB19*AB22*AB$14","v":5429025.1919173142},{"$f":"'C-Daily Impacts'!AC19*AC22*AC$14","v":5514314.3379998552},{"$f":"'C-Daily Impacts'!AD19*AD22*AD$14","v":5598586.4932465255},{"$f":"'C-Daily Impacts'!AE19*AE22*AE$14","v":5682683.4938424844},{"$f":"'C-Daily Impacts'!AF19*AF22*AF$14","v":5767122.3431995409},{"$f":"'C-Daily Impacts'!AG19*AG22*AG$14","v":5851392.2299061809},{"$f":"'C-Daily Impacts'!AH19*AH22*AH$14","v":5936567.2301317714},{"$f":"'C-Daily Impacts'!AI19*AI22*AI$14","v":6022464.0216202047},{"$f":"'C-Daily Impacts'!AJ19*AJ22*AJ$14","v":6109268.7416523453},{"$f":"'C-Daily Impacts'!AK19*AK22*AK$14","v":6196928.9589417987},{"$f":"'C-Daily Impacts'!AL19*AL22*AL$14","v":6285801.1469389694},{"$f":"'C-Daily Impacts'!AM19*AM22*AM$14","v":6376324.0491643669},{"$f":"'C-Daily Impacts'!AN19*AN22*AN$14","v":6468360.3509275522},{"$f":"'C-Daily Impacts'!AO19*AO22*AO$14","v":6561429.3960664039},{"$f":"'C-Daily Impacts'!AP19*AP22*AP$14","v":6655540.9319613688},{"$f":"'C-Daily Impacts'!AQ19*AQ22*AQ$14","v":6750565.8135276968},{"$f":"'C-Daily Impacts'!AR19*AR22*AR$14","v":6846042.2752563506},{"$f":"'C-Daily Impacts'!AS19*AS22*AS$14","v":6942078.2168015316},{"$f":"'C-Daily Impacts'!AT19*AT22*AT$14","v":7038644.077783403},{"$f":"'C-Daily Impacts'!AU19*AU22*AU$14","v":7136267.5152237117},{"$f":"'C-Daily Impacts'!AV19*AV22*AV$14","v":7234138.4631187478},{"$f":"'C-Daily Impacts'!AW19*AW22*AW$14","v":7334220.3608823651},{"$f":"'C-Daily Impacts'!AX19*AX22*AX$14","v":7434074.4741257085},{"$f":"'C-Daily Impacts'!AY19*AY22*AY$14","v":7534133.0120921992},{"$f":"'C-Daily Impacts'!AZ19*AZ22*AZ$14","v":7634627.4926068587},{"$f":"'C-Daily Impacts'!BA19*BA22*BA$14","v":7736608.9831126221},{"$f":"'C-Daily Impacts'!BB19*BB22*BB$14","v":7839745.1610871637},{"$f":"'C-Daily Impacts'!BC19*BC22*BC$14","v":7944096.6555931587},{"$f":"'C-Daily Impacts'!BD19*BD22*BD$14","v":8051485.7667435762},{"$f":"'C-Daily Impacts'!BE19*BE22*BE$14","v":8164656.0506554842},{"$f":"'C-Daily Impacts'!BF19*BF22*BF$14","v":8282482.2369775539},{"$f":"'C-Daily Impacts'!BG19*BG22*BG$14","v":8402618.060948763},{"$f":"'C-Daily Impacts'!BH19*BH22*BH$14","v":8524363.796933759},{"$f":"'C-Daily Impacts'!BI19*BI22*BI$14","v":8648305.7027775515},{"$f":"'C-Daily Impacts'!BJ19*BJ22*BJ$14","v":8753969.3108594846},{"$f":"'C-Daily Impacts'!BK19*BK22*BK$14","v":8858459.1002369504},{"$f":"'C-Daily Impacts'!BL19*BL22*BL$14","v":8958678.9539522789},{"$f":"'C-Daily Impacts'!BM19*BM22*BM$14","v":9061222.6906852629},{"$f":"'C-Daily Impacts'!BN19*BN22*BN$14","v":9164158.7101342212},{"$f":"'C-Daily Impacts'!BO19*BO22*BO$14","v":9266851.0145398397},{"$f":"'C-Daily Impacts'!BP19*BP22*BP$14","v":9371337.1511083394},{"$f":"'C-Daily Impacts'!BQ19*BQ22*BQ$14","v":9481289.0313604102},{"$f":"'C-Daily Impacts'!BR19*BR22*BR$14","v":9596614.1628828384},{"$f":"'C-Daily Impacts'!BS19*BS22*BS$14","v":9714658.3950242791},{"$f":"'C-Daily Impacts'!BT19*BT22*BT$14","v":9833565.6541964933},{"$f":"'C-Daily Impacts'!BU19*BU22*BU$14","v":9958764.3238396477},{"$f":"'C-Daily Impacts'!BV19*BV22*BV$14","v":10089496.649240009},{"$f":"'C-Daily Impacts'!BW19*BW22*BW$14","v":10224178.780772995},{"$f":"'C-Daily Impacts'!BX19*BX22*BX$14","v":0},{"$f":"'C-Daily Impacts'!BY19*BY22*BY$14","v":0},{"$f":"'C-Daily Impacts'!BZ19*BZ22*BZ$14","v":0},{"$f":"'C-Daily Impacts'!CA19*CA22*CA$14","v":0},{"$f":"'C-Daily Impacts'!CB19*CB22*CB$14","v":0},{"$f":"'C-Daily Impacts'!CC19*CC22*CC$14","v":0},{"$f":"'C-Daily Impacts'!CD19*CD22*CD$14","v":0},{"$f":"'C-Daily Impacts'!CE19*CE22*CE$14","v":0}]
[]
[null,null,null,"Journey Times",null,null,null,142228648.25924504,null,"£, 2023 Present Values",{"$f":"SUM(K27:K31)*'C-Values and Rates'!K33","v":0},{"$f":"SUM(L27:L31)*'C-Values and Rates'!L33","v":0},{"$f":"SUM(M27:M31)*'C-Values and Rates'!M33","v":0},{"$f":"SUM(N27:N31)*'C-Values and Rates'!N33","v":0},{"$f":"SUM(O27:O31)*'C-Values and Rates'!O33","v":0},{"$f":"SUM(P27:P31)*'C-Values and Rates'!P33","v":4006503.8067484661},{"$f":"SUM(Q27:Q31)*'C-Values and Rates'!Q33","v":3908318.2233793726},{"$f":"SUM(R27:R31)*'C-Values and Rates'!R33","v":3813360.221898505},{"$f":"SUM(S27:S31)*'C-Values and Rates'!S33","v":3736812.383329018},{"$f":"SUM(T27:T31)*'C-Values and Rates'!T33","v":3663357.8382372647},{"$f":"SUM(U27:U31)*'C-Values and Rates'!U33","v":3593078.3908892293},{"$f":"SUM(V27:V31)*'C-Values and Rates'!V33","v":3525329.6040670434},{"$f":"SUM(W27:W31)*'C-Values and Rates'!W33","v":3459417.1916950261},{"$f":"SUM(X27:X31)*'C-Values and Rates'!X33","v":3395908.7363349958},{"$f":"SUM(Y27:Y31)*'C-Values and Rates'!Y33","v":3335948.4695164422},{"$f":"SUM(Z27:Z31)*'C-Values and Rates'!Z33","v":3275166.5884957137},{"$f":"SUM(AA27:AA31)*'C-Values and Rates'!AA33","v":3213915.4971698336},{"$f":"SUM(AB27:AB31)*'C-Values and Rates'!AB33","v":3151872.392973769},{"$f":"SUM(AC27:AC31)*'C-Values and Rates'!AC33","v":3089670.4097266751},{"$f":"SUM(AD27:AD31)*'C-Values and Rates'!AD33","v":3027422.0514117884},{"$f":"SUM(AE27:AE31)*'C-Values and Rates'!AE33","v":2965664.8338954276},{"$f":"SUM(AF27:AF31)*'C-Values and Rates'!AF33","v":2904703.8744656574},{"$f":"SUM(AG27:AG31)*'C-Values and Rates'!AG33","v":2844304.5009649661},{"$f":"SUM(AH27:AH31)*'C-Values and Rates'!AH33","v":2785036.332043401},{"$f":"SUM(AI27:AI31)*'C-Values and Rates'!AI33","v":2726769.1988665299},{"$f":"SUM(AJ27:AJ31)*'C-Values and Rates'!AJ33","v":2669575.3293543281},{"$f":"SUM(AK27:AK31)*'C-Values and Rates'!AK33","v":2613414.8050268334},{"$f":"SUM(AL27:AL31)*'C-Values and Rates'!AL33","v":2558417.6419572434},{"$f":"SUM(AM27:AM31)*'C-Values and Rates'!AM33","v":2504617.1653822619},{"$f":"SUM(AN27:AN31)*'C-Values and Rates'!AN33","v":2452027.7817286644},{"$f":"SUM(AO27:AO31)*'C-Values and Rates'!AO33","v":2400434.6430215221},{"$f":"SUM(AP27:AP31)*'C-Values and Rates'!AP33","v":2349822.5579580478},{"$f":"SUM(AQ27:AQ31)*'C-Values and Rates'!AQ33","v":2300129.0764182997},{"$f":"SUM(AR27:AR31)*'C-Values and Rates'!AR33","v":2251113.1392135909},{"$f":"SUM(AS27:AS31)*'C-Values and Rates'!AS33","v":2214304.7696960703},{"$f":"SUM(AT27:AT31)*'C-Values and Rates'!AT33","v":2177845.4473885885},{"$f":"SUM(AU27:AU31)*'C-Values and Rates'!AU33","v":2141900.7559742476},{"$f":"SUM(AV27:AV31)*'C-Values and Rates'!AV33","v":2106227.2227710215},{"$f":"SUM(AW27:AW31)*'C-Values and Rates'!AW33","v":2071393.2351067108},{"$f":"SUM(AX27:AX31)*'C-Values and Rates'!AX33","v":2036693.6671965439},{"$f":"SUM(AY27:AY31)*'C-Values and Rates'!AY33","v":2002268.4633163812},{"$f":"SUM(AZ27:AZ31)*'C-Values and Rates'!AZ33","v":1968190.3857498851},{"$f":"SUM(BA27:BA31)*'C-Values and Rates'!BA33","v":1934729.011848036},{"$f":"SUM(BB27:BB31)*'C-Values and Rates'!BB33","v":1901786.2204941078},{"$f":"SUM(BC27:BC31)*'C-Values and Rates'!BC33","v":1869366.8477052229},{"$f":"SUM(BD27:BD31)*'C-Values and Rates'!BD33","v":1837876.4995765935},{"$f":"SUM(BE27:BE31)*'C-Values and Rates'!BE33","v":1807875.3336700837},{"$f":"SUM(BF27:BF31)*'C-Values and Rates'!BF33","v":1779022.335342519},{"$f":"SUM(BG27:BG31)*'C-Values and Rates'!BG33","v":1750756.8124359283},{"$f":"SUM(BH27:BH31)*'C-Values and Rates'!BH33","v":1722913.6186985243},{"$f":"SUM(BI27:BI31)*'C-Values and Rates'!BI33","v":1695598.0129677523},{"$f":"SUM(BJ27:BJ31)*'C-Values and Rates'!BJ33","v":1664896.4842844023},{"$f":"SUM(BK27:BK31)*'C-Values and Rates'!BK33","v":1634296.1708374415},{"$f":"SUM(BL27:BL31)*'C-Values and Rates'!BL33","v":1603270.9608991649},{"$f":"SUM(BM27:BM31)*'C-Values and Rates'!BM33","v":1573041.366391384},{"$f":"SUM(BN27:BN31)*'C-Values and Rates'!BN33","v":1543250.193252163},{"$f":"SUM(BO27:BO31)*'C-Values and Rates'!BO33","v":1513792.4311091201},{"$f":"SUM(BP27:BP31)*'C-Values and Rates'!BP33","v":1484998.9069059324},{"$f":"SUM(BQ27:BQ31)*'C-Values and Rates'!BQ33","v":1457412.170746546},{"$f":"SUM(BR27:BR31)*'C-Values and Rates'!BR33","v":1430946.7970861716},{"$f":"SUM(BS27:BS31)*'C-Values and Rates'!BS33","v":1405152.4515087008},{"$f":"SUM(BT27:BT31)*'C-Values and Rates'!BT33","v":1379740.4743746193},{"$f":"SUM(BU27:BU31)*'C-Values and Rates'!BU33","v":1355446.3132344857},{"$f":"SUM(BV27:BV31)*'C-Values and Rates'!BV33","v":1332100.101802743},{"$f":"SUM(BW27:BW31)*'C-Values and Rates'!BW33","v":1309442.1107040409},{"$f":"SUM(BX27:BX31)*'C-Values and Rates'!BX33","v":0},{"$f":"SUM(BY27:BY31)*'C-Values and Rates'!BY33","v":0},{"$f":"SUM(BZ27:BZ31)*'C-Values and Rates'!BZ33","v":0},{"$f":"SUM(CA27:CA31)*'C-Values and Rates'!CA33","v":0},{"$f":"SUM(CB27:CB31)*'C-Values and Rates'!CB33","v":0},{"$f":"SUM(CC27:CC31)*'C-Values and Rates'!CC33","v":0},{"$f":"SUM(CD27:CD31)*'C-Values and Rates'!CD33","v":0},{"$f":"SUM(CE27:CE31)*'C-Values and Rates'!CE33","v":0}]
[]
[null,null,"Vehicle Operating Costs"]
[]
[null,null,null,"Fuel"]
[null,null,null,"Cars",null,null,null,{"$f":"SUM(K38:CE38)","v":0},null,"£, 2023 prices",{"$f":"'C-Daily Impacts'!K47*K19*K$14","v":0},{"$f":"'C-Daily Impacts'!L47*L19*L$14","v":0},{"$f":"'C-Daily Impacts'!M47*M19*M$14","v":0},{"$f":"'C-Daily Impacts'!N47*N19*N$14","v":0},{"$f":"'C-Daily Impacts'!O47*O19*O$14","v":0},{"$f":"'C-Daily Impacts'!P47*P19*P$14","v":0},{"$f":"'C-Daily Impacts'!Q47*Q19*Q$14","v":0},{"$f":"'C-Daily Impacts'!R47*R19*R$14","v":0},{"$f":"'C-Daily Impacts'!S47*S19*S$14","v":0},{"$f":"'C-Daily Impacts'!T47*T19*T$14","v":0},{"$f":"'C-Daily Impacts'!U47*U19*U$14","v":0},{"$f":"'C-Daily Impacts'!V47*V19*V$14","v":0},{"$f":"'C-Daily Impacts'!W47*W19*W$14","v":0},{"$f":"'C-Daily Impacts'!X47*X19*X$14","v":0},{"$f":"'C-Daily Impacts'!Y47*Y19*Y$14","v":0},{"$f":"'C-Daily Impacts'!Z47*Z19*Z$14","v":0},{"$f":"'C-Daily Impacts'!AA47*AA19*AA$14","v":0},{"$f":"'C-Daily Impacts'!AB47*AB19*AB$14","v":0},{"$f":"'C-Daily Impacts'!AC47*AC19*AC$14","v":0},{"$f":"'C-Daily Impacts'!AD47*AD19*AD$14","v":0},{"$f":"'C-Daily Impacts'!AE47*AE19*AE$14","v":0},{"$f":"'C-Daily Impacts'!AF47*AF19*AF$14","v":0},{"$f":"'C-Daily Impacts'!AG47*AG19*AG$14","v":0},{"$f":"'C-Daily Impacts'!AH47*AH19*AH$14","v":0},{"$f":"'C-Daily Impacts'!AI47*AI19*AI$14","v":0},{"$f":"'C-Daily Impacts'!AJ47*AJ19*AJ$14","v":0},{"$f":"'C-Daily Impacts'!AK47*AK19*AK$14","v":0},{"$f":"'C-Daily Impacts'!AL47*AL19*AL$14","v":0},{"$f":"'C-Daily Impacts'!AM47*AM19*AM$14","v":0},{"$f":"'C-Daily Impacts'!AN47*AN19*AN$14","v":0},{"$f":"'C-Daily Impacts'!AO47*AO19*AO$14","v":0},{"$f":"'C-Daily Impacts'!AP47*AP19*AP$14","v":0},{"$f":"'C-Daily Impacts'!AQ47*AQ19*AQ$14","v":0},{"$f":"'C-Daily Impacts'!AR47*AR19*AR$14","v":0},{"$f":"'C-Daily Impacts'!AS47*AS19*AS$14","v":0},{"$f":"'C-Daily Impacts'!AT47*AT19*AT$14","v":0},{"$f":"'C-Daily Impacts'!AU47*AU19*AU$14","v":0},{"$f":"'C-Daily Impacts'!AV47*AV19*AV$14","v":0},{"$f":"'C-Daily Impacts'!AW47*AW19*AW$14","v":0},{"$f":"'C-Daily Impacts'!AX47*AX19*AX$14","v":0},{"$f":"'C-Daily Impacts'!AY47*AY19*AY$14","v":0},{"$f":"'C-Daily Impacts'!AZ47*AZ19*AZ$14","v":0},{"$f":"'C-Daily Impacts'!BA47*BA19*BA$14","v":0},{"$f":"'C-Daily Impacts'!BB47*BB19*BB$14","v":0},{"$f":"'C-Daily Impacts'!BC47*BC19*BC$14","v":0},{"$f":"'C-Daily Impacts'!BD47*BD19*BD$14","v":0},{"$f":"'C-Daily Impacts'!BE47*BE19*BE$14","v":0},{"$f":"'C-Daily Impacts'!BF47*BF19*BF$14","v":0},{"$f":"'C-Daily Impacts'!BG47*BG19*BG$14","v":0},{"$f":"'C-Daily Impacts'!BH47*BH19*BH$14","v":0},{"$f":"'C-Daily Impacts'!BI47*BI19*BI$14","v":0},{"$f":"'C-Daily Impacts'!BJ47*BJ19*BJ$14","v":0},{"$f":"'C-Daily Impacts'!BK47*BK19*BK$14","v":0},{"$f":"'C-Daily Impacts'!BL47*BL19*BL$14","v":0},{"$f":"'C-Daily Impacts'!BM47*BM19*BM$14","v":0},{"$f":"'C-Daily Impacts'!BN47*BN19*BN$14","v":0},{"$f":"'C-Daily Impacts'!BO47*BO19*BO$14","v":0},{"$f":"'C-Daily Impacts'!BP47*BP19*BP$14","v":0},{"$f":"'C-Daily Impacts'!BQ47*BQ19*BQ$14","v":0},{"$f":"'C-Daily Impacts'!BR47*BR19*BR$14","v":0},{"$f":"'C-Daily Impacts'!BS47*BS19*BS$14","v":0},{"$f":"'C-Daily Impacts'!BT47*BT19*BT$14","v":0},{"$f":"'C-Daily Impacts'!BU47*BU19*BU$14","v":0},{"$f":"'C-Daily Impacts'!BV47*BV19*BV$14","v":0},{"$f":"'C-Daily Impacts'!BW47*BW19*BW$14","v":0},{"$f":"'C-Daily Impacts'!BX47*BX19*BX$14","v":0},{"$f":"'C-Daily Impacts'!BY47*BY19*BY$14","v":0},{"$f":"'C-Daily Impacts'!BZ47*BZ19*BZ$14","v":0},{"$f":"'C-Daily Impacts'!CA47*CA19*CA$14","v":0},{"$f":"'C-Daily Impacts'!CB47*CB19*CB$14","v":0},{"$f":"'C-Daily Impacts'!CC47*CC19*CC$14","v":0},{"$f":"'C-Daily Impacts'!CD47*CD19*CD$14","v":0},{"$f":"'C-Daily Impacts'!CE47*CE19*CE$14","v":0}]
[null,null,null,"LGV",null,null,null,0,null,"£, 2023 prices",{"$f":"'C-Daily Impacts'!K48*K20*K$14","v":0},{"$f":"'C-Daily Impacts'!L48*L20*L$14","v":0},{"$f":"'C-Daily Impacts'!M48*M20*M$14","v":0},{"$f":"'C-Daily Impacts'!N48*N20*N$14","v":0},{"$f":"'C-Daily Impacts'!O48*O20*O$14","v":0},{"$f":"'C-Daily Impacts'!P48*P20*P$14","v":0},{"$f":"'C-Daily Impacts'!Q48*Q20*Q$14","v":0},{"$f":"'C-Daily Impacts'!R48*R20*R$14","v":0},{"$f":"'C-Daily Impacts'!S48*S20*S$14","v":0},{"$f":"'C-Daily Impacts'!T48*T20*T$14","v":0},{"$f":"'C-Daily Impacts'!U48*U20*U$14","v":0},{"$f":"'C-Daily Impacts'!V48*V20*V$14","v":0},{"$f":"'C-Daily Impacts'!W48*W20*W$14","v":0},{"$f":"'C-Daily Impacts'!X48*X20*X$14","v":0},{"$f":"'C-Daily Impacts'!Y48*Y20*Y$14","v":0},{"$f":"'C-Daily Impacts'!Z48*Z20*Z$14","v":0},{"$f":"'C-Daily Impacts'!AA48*AA20*AA$14","v":0},{"$f":"'C-Daily Impacts'!AB48*AB20*AB$14","v":0},{"$f":"'C-Daily Impacts'!AC48*AC20*AC$14","v":0},{"$f":"'C-Daily Impacts'!AD48*AD20*AD$14","v":0},{"$f":"'C-Daily Impacts'!AE48*AE20*AE$14","v":0},{"$f":"'C-Daily Impacts'!AF48*AF20*AF$14","v":0},{"$f":"'C-Daily Impacts'!AG48*AG20*AG$14","v":0},{"$f":"'C-Daily Impacts'!AH48*AH20*AH$14","v":0},{"$f":"'C-Daily Impacts'!AI48*AI20*AI$14","v":0},{"$f":"'C-Daily Impacts'!AJ48*AJ20*AJ$14","v":0},{"$f":"'C-Daily Impacts'!AK48*AK20*AK$14","v":0},{"$f":"'C-Daily Impacts'!AL48*AL20*AL$14","v":0},{"$f":"'C-Daily Impacts'!AM48*AM20*AM$14","v":0},{"$f":"'C-Daily Impacts'!AN48*AN20*AN$14","v":0},{"$f":"'C-Daily Impacts'!AO48*AO20*AO$14","v":0},{"$f":"'C-Daily Impacts'!AP48*AP20*AP$14","v":0},{"$f":"'C-Daily Impacts'!AQ48*AQ20*AQ$14","v":0},{"$f":"'C-Daily Impacts'!AR48*AR20*AR$14","v":0},{"$f":"'C-Daily Impacts'!AS48*AS20*AS$14","v":0},{"$f":"'C-Daily Impacts'!AT48*AT20*AT$14","v":0},{"$f":"'C-Daily Impacts'!AU48*AU20*AU$14","v":0},{"$f":"'C-Daily Impacts'!AV48*AV20*AV$14","v":0},{"$f":"'C-Daily Impacts'!AW48*AW20*AW$14","v":0},{"$f":"'C-Daily Impacts'!AX48*AX20*AX$14","v":0},{"$f":"'C-Daily Impacts'!AY48*AY20*AY$14","v":0},{"$f":"'C-Daily Impacts'!AZ48*AZ20*AZ$14","v":0},{"$f":"'C-Daily Impacts'!BA48*BA20*BA$14","v":0},{"$f":"'C-Daily Impacts'!BB48*BB20*BB$14","v":0},{"$f":"'C-Daily Impacts'!BC48*BC20*BC$14","v":0},{"$f":"'C-Daily Impacts'!BD48*BD20*BD$14","v":0},{"$f":"'C-Daily Impacts'!BE48*BE20*BE$14","v":0},{"$f":"'C-Daily Impacts'!BF48*BF20*BF$14","v":0},{"$f":"'C-Daily Impacts'!BG48*BG20*BG$14","v":0},{"$f":"'C-Daily Impacts'!BH48*BH20*BH$14","v":0},{"$f":"'C-Daily Impacts'!BI48*BI20*BI$14","v":0},{"$f":"'C-Daily Impacts'!BJ48*BJ20*BJ$14","v":0},{"$f":"'C-Daily Impacts'!BK48*BK20*BK$14","v":0},{"$f":"'C-Daily Impacts'!BL48*BL20*BL$14","v":0},{"$f":"'C-Daily Impacts'!BM48*BM20*BM$14","v":0},{"$f":"'C-Daily Impacts'!BN48*BN20*BN$14","v":0},{"$f":"'C-Daily Impacts'!BO48*BO20*BO$14","v":0},{"$f":"'C-Daily Impacts'!BP48*BP20*BP$14","v":0},{"$f":"'C-Daily Impacts'!BQ48*BQ20*BQ$14","v":0},{"$f":"'C-Daily Impacts'!BR48*BR20*BR$14","v":0},{"$f":"'C-Daily Impacts'!BS48*BS20*BS$14","v":0},{"$f":"'C-Daily Impacts'!BT48*BT20*BT$14","v":0},{"$f":"'C-Daily Impacts'!BU48*BU20*BU$14","v":0},{"$f":"'C-Daily Impacts'!BV48*BV20*BV$14","v":0},{"$f":"'C-Daily Impacts'!BW48*BW20*BW$14","v":0},{"$f":"'C-Daily Impacts'!BX48*BX20*BX$14","v":0},{"$f":"'C-Daily Impacts'!BY48*BY20*BY$14","v":0},{"$f":"'C-Daily Impacts'!BZ48*BZ20*BZ$14","v":0},{"$f":"'C-Daily Impacts'!CA48*CA20*CA$14","v":0},{"$f":"'C-Daily Impacts'!CB48*CB20*CB$14","v":0},{"$f":"'C-Daily Impacts'!CC48*CC20*CC$14","v":0},{"$f":"'C-Daily Impacts'!CD48*CD20*CD$14","v":0},{"$f":"'C-Daily Impacts'!CE48*CE20*CE$14","v":0}]
[null,null,null,"HGV - Artics",null,null,null,2434525.5396785596,null,"£, 2023 prices",{"$f":"'C-Daily Impacts'!K49*K21*K$14","v":0},{"$f":"'C-Daily Impacts'!L49*L21*L$14","v":0},{"$f":"'C-Daily Impacts'!M49*M21*M$14","v":0},{"$f":"'C-Daily Impacts'!N49*N21*N$14","v":0},{"$f":"'C-Daily Impacts'!O49*O21*O$14","v":0},{"$f":"'C-Daily Impacts'!P49*P21*P$14","v":45827.716815098138},{"$f":"'C-Daily Impacts'!Q49*Q21*Q$14","v":45433.710663336817},{"$f":"'C-Daily Impacts'!R49*R21*R$14","v":44330.686488317158},{"$f":"'C-Daily Impacts'!S49*S21*S$14","v":43752.534477460373},{"$f":"'C-Daily Impacts'!T49*T21*T$14","v":43165.483135010894},{"$f":"'C-Daily Impacts'!U49*U21*U$14","v":42610.38365235422},{"$f":"'C-Daily Impacts'!V49*V21*V$14","v":42090.895992400991},{"$f":"'C-Daily Impacts'!W49*W21*W$14","v":41612.169601754373},{"$f":"'C-Daily Impacts'!X49*X21*X$14","v":41228.336015013665},{"$f":"'C-Daily Impacts'!Y49*Y21*Y$14","v":40886.497493650983},{"$f":"'C-Daily Impacts'!Z49*Z21*Z$14","v":40589.509270596245},{"$f":"'C-Daily Impacts'!AA49*AA21*AA$14","v":40338.306603713121},{"$f":"'C-Daily Impacts'!AB49*AB21*AB$14","v":40129.712714097135},{"$f":"'C-Daily Impacts'!AC49*AC21*AC$14","v":39953.854022059422},{"$f":"'C-Daily Impacts'!AD49*AD21*AD$14","v":39809.6461528648},{"$f":"'C-Daily Impacts'!AE49*AE21*AE$14","v":39690.589211029408},{"$f":"'C-Daily Impacts'!AF49*AF21*AF$14","v":39590.957980527426},{"$f":"'C-Daily Impacts'!AG49*AG21*AG$14","v":39506.19771035538},{"$f":"'C-Daily Impacts'!AH49*AH21*AH$14","v":39422.205149108144},{"$f":"'C-Daily Impacts'!AI49*AI21*AI$14","v":39368.396571442689},{"$f":"'C-Daily Impacts'!AJ49*AJ21*AJ$14","v":39320.543485894617},{"$f":"'C-Daily Impacts'!AK49*AK21*AK$14","v":39277.558104351985},{"$f":"'C-Daily Impacts'!AL49*AL21*AL$14","v":39238.016594952649},{"$f":"'C-Daily Impacts'!AM49*AM21*AM$14","v":39303.935056567694},{"$f":"'C-Daily Impacts'!AN49*AN21*AN$14","v":39369.972159955571},{"$f":"'C-Daily Impacts'!AO49*AO21*AO$14","v":39436.128131094309},{"$f":"'C-Daily Impacts'!AP49*AP21*AP$14","v":39502.403196410574},{"$f":"'C-Daily Impacts'!AQ49*AQ21*AQ$14","v":39568.797582780659},{"$f":"'C-Daily Impacts'!AR49*AR21*AR$14","v":39613.580583132927},{"$f":"'C-Daily Impacts'!AS49*AS21*AS$14","v":39658.422227333373},{"$f":"'C-Daily Impacts'!AT49*AT21*AT$14","v":39703.322599872103},{"$f":"'C-Daily Impacts'!AU49*AU21*AU$14","v":39748.281785367428},{"$f":"'C-Daily Impacts'!AV49*AV21*AV$14","v":39793.299868566064},{"$f":"'C-Daily Impacts'!AW49*AW21*AW$14","v":39838.376934343221},{"$f":"'C-Daily Impacts'!AX49*AX21*AX$14","v":39883.513067702894},{"$f":"'C-Daily Impacts'!AY49*AY21*AY$14","v":39928.708353778042},{"$f":"'C-Daily Impacts'!AZ49*AZ21*AZ$14","v":39973.962877830738},{"$f":"'C-Daily Impacts'!BA49*BA21*BA$14","v":40019.276725252457},{"$f":"'C-Daily Impacts'!BB49*BB21*BB$14","v":40064.649981564246},{"$f":"'C-Daily Impacts'!BC49*BC21*BC$14","v":40110.082732416857},{"$f":"'C-Daily Impacts'!BD49*BD21*BD$14","v":40155.575063591052},{"$f":"'C-Daily Impacts'!BE49*BE21*BE$14","v":40201.1270609977},{"$f":"'C-Daily Impacts'!BF49*BF21*BF$14","v":40246.738810678173},{"$f":"'C-Daily Impacts'!BG49*BG21*BG$14","v":40292.410398804204},{"$f":"'C-Daily Impacts'!BH49*BH21*BH$14","v":40338.141911678511},{"$f":"'C-Daily Impacts'!BI49*BI21*BI$14","v":40383.933435734623},{"$f":"'C-Daily Impacts'!BJ49*BJ21*BJ$14","v":40429.785057537352},{"$f":"'C-Daily Impacts'!BK49*BK21*BK$14","v":40475.69686378284},{"$f":"'C-Daily Impacts'!BL49*BL21*BL$14","v":40521.668941298856},{"$f":"'C-Daily Impacts'!BM49*BM21*BM$14","v":40567.701377044941},{"$f":"'C-Daily Impacts'!BN49*BN21*BN$14","v":40613.794258112648},{"$f":"'C-Daily Impacts'!BO49*BO21*BO$14","v":40659.947671725706},{"$f":"'C-Daily Impacts'!BP49*BP21*BP$14","v":40706.161705240294},{"$f":"'C-Daily Impacts'!BQ49*BQ21*BQ$14","v":40752.436446145155},{"$f":"'C-Daily Impacts'!BR49*BR21*BR$14","v":40798.771982061888},{"$f":"'C-Daily Impacts'!BS49*BS21*BS$14","v":40845.168400745111},{"$f":"'C-Daily Impacts'!BT49*BT21*BT$14","v":40891.625790082711},{"$f":"'C-Daily Impacts'!BU49*BU21*BU$14","v":40938.144238095956},{"$f":"'C-Daily Impacts'!BV49*BV21*BV$14","v":40984.723832939802},{"$f":"'C-Daily Impacts'!BW49*BW21*BW$14","v":41031.364662903034},{"$f":"'C-Daily Impacts'!BX49*BX21*BX$14","v":0},{"$f":"'C-Daily Impacts'!BY49*BY21*BY$14","v":0},{"$f":"'C-Daily Impacts'!BZ49*BZ21*BZ$14","v":0},{"$f":"'C-Daily Impacts'!CA49*CA21*CA$14","v":0},{"$f":"'C-Daily Impacts'!CB49*CB21*CB$14","v":0},{"$f":"'C-Daily Impacts'!CC49*CC21*CC$14","v":0},{"$f":"'C-Daily Impacts'!CD49*CD21*CD$14","v":0},{"$f":"'C-Daily Impacts'!CE49*CE21*CE$14","v":0}]
[null,null,null,"HGV - Rigids",null,null,null,3016069.4690313051,null,"£, 2023 prices",{"$f":"'C-Daily Impacts'!K50*K21*K$14","v":0},{"$f":"'C-Daily Impacts'!L50*L21*L$14","v":0},{"$f":"'C-Daily Impacts'!M50*M21*M$14","v":0},{"$f":"'C-Daily Impacts'!N50*N21*N$14","v":0},{"$f":"'C-Daily Impacts'!O50*O21*O$14","v":0},{"$f":"'C-Daily Impacts'!P50*P21*P$14","v":62046.204972696338},{"$f":"'C-Daily Impacts'!Q50*Q21*Q$14","v":61057.567950851466},{"$f":"'C-Daily Impacts'!R50*R21*R$14","v":58490.20023616992},{"$f":"'C-Daily Impacts'!S50*S21*S$14","v":56651.308509190982},{"$f":"'C-Daily Impacts'!T50*T21*T$14","v":54971.451080255589},{"$f":"'C-Daily Impacts'!U50*U21*U$14","v":53499.036199381473},{"$f":"'C-Daily Impacts'!V50*V21*V$14","v":52191.306715234598},{"$f":"'C-Daily Impacts'!W50*W21*W$14","v":51077.530564712222},{"$f":"'C-Daily Impacts'!X50*X21*X$14","v":50232.541792535965},{"$f":"'C-Daily Impacts'!Y50*Y21*Y$14","v":49579.369819149564},{"$f":"'C-Daily Impacts'!Z50*Z21*Z$14","v":49098.631223145785},{"$f":"'C-Daily Impacts'!AA50*AA21*AA$14","v":48767.240207651186},{"$f":"'C-Daily Impacts'!AB50*AB21*AB$14","v":48544.760030153397},{"$f":"'C-Daily Impacts'!AC50*AC21*AC$14","v":48399.733209786689},{"$f":"'C-Daily Impacts'!AD50*AD21*AD$14","v":48312.129693247407},{"$f":"'C-Daily Impacts'!AE50*AE21*AE$14","v":48264.248563155204},{"$f":"'C-Daily Impacts'!AF50*AF21*AF$14","v":48245.402425942841},{"$f":"'C-Daily Impacts'!AG50*AG21*AG$14","v":48246.36262630234},{"$f":"'C-Daily Impacts'!AH50*AH21*AH$14","v":48246.148489983054},{"$f":"'C-Daily Impacts'!AI50*AI21*AI$14","v":48288.576162731464},{"$f":"'C-Daily Impacts'!AJ50*AJ21*AJ$14","v":48338.456898088036},{"$f":"'C-Daily Impacts'!AK50*AK21*AK$14","v":48393.933584350889},{"$f":"'C-Daily Impacts'!AL50*AL21*AL$14","v":48453.530037844917},{"$f":"'C-Daily Impacts'!AM50*AM21*AM$14","v":48534.930231766113},{"$f":"'C-Daily Impacts'!AN50*AN21*AN$14","v":48616.476931887271},{"$f":"'C-Daily Impacts'!AO50*AO21*AO$14","v":48698.170417259978},{"$f":"'C-Daily Impacts'!AP50*AP21*AP$14","v":48780.010967489885},{"$f":"'C-Daily Impacts'!AQ50*AQ21*AQ$14","v":48861.998862737913},{"$f":"'C-Daily Impacts'!AR50*AR21*AR$14","v":48917.299681715405},{"$f":"'C-Daily Impacts'!AS50*AS21*AS$14","v":48972.672917744167},{"$f":"'C-Daily Impacts'!AT50*AT21*AT$14","v":49028.118675157792},{"$f":"'C-Daily Impacts'!AU50*AU21*AU$14","v":49083.637058448228},{"$f":"'C-Daily Impacts'!AV50*AV21*AV$14","v":49139.228172265932},{"$f":"'C-Daily Impacts'!AW50*AW21*AW$14","v":49194.892121420075},{"$f":"'C-Daily Impacts'!AX50*AX21*AX$14","v":49250.629010878874},{"$f":"'C-Daily Impacts'!AY50*AY21*AY$14","v":49306.438945769754},{"$f":"'C-Daily Impacts'!AZ50*AZ21*AZ$14","v":49362.32203137959},{"$f":"'C-Daily Impacts'!BA50*BA21*BA$14","v":49418.278373155066},{"$f":"'C-Daily Impacts'!BB50*BB21*BB$14","v":49474.308076702822},{"$f":"'C-Daily Impacts'!BC50*BC21*BC$14","v":49530.411247789751},{"$f":"'C-Daily Impacts'!BD50*BD21*BD$14","v":49586.587992343251},{"$f":"'C-Daily Impacts'!BE50*BE21*BE$14","v":49642.838416451392},{"$f":"'C-Daily Impacts'!BF50*BF21*BF$14","v":49699.162626363293},{"$f":"'C-Daily Impacts'!BG50*BG21*BG$14","v":49755.560728489203},{"$f":"'C-Daily Impacts'!BH50*BH21*BH$14","v":49812.032829401054},{"$f":"'C-Daily Impacts'!BI50*BI21*BI$14","v":49868.579035832321},{"$f":"'C-Daily Impacts'!BJ50*BJ21*BJ$14","v":49925.199454678579},{"$f":"'C-Daily Impacts'!BK50*BK21*BK$14","v":49981.894192997592},{"$f":"'C-Daily Impacts'!BL50*BL21*BL$14","v":50038.663358009653},{"$f":"'C-Daily Impacts'!BM50*BM21*BM$14","v":50095.50705709777},{"$f":"'C-Daily Impacts'!BN50*BN21*BN$14","v":50152.42539780798},{"$f":"'C-Daily Impacts'!BO50*BO21*BO$14","v":50209.418487849573},{"$f":"'C-Daily Impacts'!BP50*BP21*BP$14","v":50266.486435095321},{"$f":"'C-Daily Impacts'!BQ50*BQ21*BQ$14","v":50323.629347581766},{"$f":"'C-Daily Impacts'!BR50*BR21*BR$14","v":50380.847333509468},{"$f":"'C-Daily Impacts'!BS50*BS21*BS$14","v":50438.140501243259},{"$f":"'C-Daily Impacts'!BT50*BT21*BT$14","v":50495.508959312552},{"$f":"'C-Daily Impacts'!BU50*BU21*BU$14","v":50552.952816411424},{"$f":"'C-Daily Impacts'!BV50*BV21*BV$14","v":50610.472181399084},{"$f":"'C-Daily Impacts'!BW50*BW21*BW$14","v":50668.06716329998},{"$f":"'C-Daily Impacts'!BX50*BX21*BX$14","v":0},{"$f":"'C-Daily Impacts'!BY50*BY21*BY$14","v":0},{"$f":"'C-Daily Impacts'!BZ50*BZ21*BZ$14","v":0},{"$f":"'C-Daily Impacts'!CA50*CA21*CA$14","v":0},{"$f":"'C-Daily Impacts'!CB50*CB21*CB$14","v":0},{"$f":"'C-Daily Impacts'!CC50*CC21*CC$14","v":0},{"$f":"'C-Daily Impacts'!CD50*CD21*CD$14","v":0},{"$f":"'C-Daily Impacts'!CE50*CE21*CE$14","v":0}]
[null,null,null,"PSV",null,null,null,21502091.933585033,null,"£, 2023 prices",{"$f":"'C-Daily Impacts'!K51*K22*K$14","v":0},{"$f":"'C-Daily Impacts'!L51*L22*L$14","v":0},{"$f":"'C-Daily Impacts'!M51*M22*M$14","v":0},{"$f":"'C-Daily Impacts'!N51*N22*N$14","v":0},{"$f":"'C-Daily Impacts'!O51*O22*O$14","v":0},{"$f":"'C-Daily Impacts'!P51*P22*P$14","v":383138.81222477305},{"$f":"'C-Daily Impacts'!Q51*Q22*Q$14","v":380119.67572433496},{"$f":"'C-Daily Impacts'!R51*R22*R$14","v":374209.97914765822},{"$f":"'C-Daily Impacts'!S51*S22*S$14","v":371602.35965324147},{"$f":"'C-Daily Impacts'!T51*T22*T$14","v":370301.59495769202},{"$f":"'C-Daily Impacts'!U51*U22*U$14","v":368607.69515177165},{"$f":"'C-Daily Impacts'!V51*V22*V$14","v":365549.59954388754},{"$f":"'C-Daily Impacts'!W51*W22*W$14","v":365012.99480148341},{"$f":"'C-Daily Impacts'!X51*X22*X$14","v":364051.18628179788},{"$f":"'C-Daily Impacts'!Y51*Y22*Y$14","v":362005.89989464061},{"$f":"'C-Daily Impacts'!Z51*Z22*Z$14","v":361560.79236427922},{"$f":"'C-Daily Impacts'!AA51*AA22*AA$14","v":362096.33259082003},{"$f":"'C-Daily Impacts'!AB51*AB22*AB$14","v":361363.80176069535},{"$f":"'C-Daily Impacts'!AC51*AC22*AC$14","v":360752.73713817378},{"$f":"'C-Daily Impacts'!AD51*AD22*AD$14","v":359671.08303318615},{"$f":"'C-Daily Impacts'!AE51*AE22*AE$14","v":358894.55052036012},{"$f":"'C-Daily Impacts'!AF51*AF22*AF$14","v":358157.69293779408},{"$f":"'C-Daily Impacts'!AG51*AG22*AG$14","v":357011.18799858913},{"$f":"'C-Daily Impacts'!AH51*AH22*AH$14","v":355707.61642700637},{"$f":"'C-Daily Impacts'!AI51*AI22*AI$14","v":354897.29784411058},{"$f":"'C-Daily Impacts'!AJ51*AJ22*AJ$14","v":353959.1406647563},{"$f":"'C-Daily Impacts'!AK51*AK22*AK$14","v":353116.44686849148},{"$f":"'C-Daily Impacts'!AL51*AL22*AL$14","v":352570.7195022665},{"$f":"'C-Daily Impacts'!AM51*AM22*AM$14","v":352715.12265094084},{"$f":"'C-Daily Impacts'!AN51*AN22*AN$14","v":352859.65525462065},{"$f":"'C-Daily Impacts'!AO51*AO22*AO$14","v":353004.31742936024},{"$f":"'C-Daily Impacts'!AP51*AP22*AP$14","v":353149.10929131793},{"$f":"'C-Daily Impacts'!AQ51*AQ22*AQ$14","v":353294.03095675568},{"$f":"'C-Daily Impacts'!AR51*AR22*AR$14","v":353439.08254204085},{"$f":"'C-Daily Impacts'!AS51*AS22*AS$14","v":353584.26416364394},{"$f":"'C-Daily Impacts'!AT51*AT22*AT$14","v":353729.57593814068},{"$f":"'C-Daily Impacts'!AU51*AU22*AU$14","v":353875.01798221044},{"$f":"'C-Daily Impacts'!AV51*AV22*AV$14","v":354020.59041263803},{"$f":"'C-Daily Impacts'!AW51*AW22*AW$14","v":354166.29334631271},{"$f":"'C-Daily Impacts'!AX51*AX22*AX$14","v":354312.12690022844},{"$f":"'C-Daily Impacts'!AY51*AY22*AY$14","v":354458.09119148384},{"$f":"'C-Daily Impacts'!AZ51*AZ22*AZ$14","v":354604.18633728311},{"$f":"'C-Daily Impacts'!BA51*BA22*BA$14","v":354750.41245493497},{"$f":"'C-Daily Impacts'!BB51*BB22*BB$14","v":354896.76966185332},{"$f":"'C-Daily Impacts'!BC51*BC22*BC$14","v":355043.25807555759},{"$f":"'C-Daily Impacts'!BD51*BD22*BD$14","v":355189.87781367282},{"$f":"'C-Daily Impacts'!BE51*BE22*BE$14","v":355336.62899392867},{"$f":"'C-Daily Impacts'!BF51*BF22*BF$14","v":355483.51173416118},{"$f":"'C-Daily Impacts'!BG51*BG22*BG$14","v":355630.52615231113},{"$f":"'C-Daily Impacts'!BH51*BH22*BH$14","v":355777.67236642621},{"$f":"'C-Daily Impacts'!BI51*BI22*BI$14","v":355924.95049465896},{"$f":"'C-Daily Impacts'!BJ51*BJ22*BJ$14","v":356072.36065526813},{"$f":"'C-Daily Impacts'!BK51*BK22*BK$14","v":356219.90296661895},{"$f":"'C-Daily Impacts'!BL51*BL22*BL$14","v":356367.57754718169},{"$f":"'C-Daily Impacts'!BM51*BM22*BM$14","v":356515.38451553404},{"$f":"'C-Daily Impacts'!BN51*BN22*BN$14","v":356663.32399035909},{"$f":"'C-Daily Impacts'!BO51*BO22*BO$14","v":356811.39609044691},{"$f":"'C-Daily Impacts'!BP51*BP22*BP$14","v":356959.60093469376},{"$f":"'C-Daily Impacts'!BQ51*BQ22*BQ$14","v":357107.93864210264},{"$f":"'C-Daily Impacts'!BR51*BR22*BR$14","v":357256.4093317829},{"$f":"'C-Daily Impacts'!BS51*BS22*BS$14","v":357405.01312295091},{"$f":"'C-Daily Impacts'!BT51*BT22*BT$14","v":357553.75013493019},{"$f":"'C-Daily Impacts'!BU51*BU22*BU$14","v":357702.62048715103},{"$f":"'C-Daily Impacts'!BV51*BV22*BV$14","v":357851.62429915048},{"$f":"'C-Daily Impacts'!BW51*BW22*BW$14","v":358000.76169057295},{"$f":"'C-Daily Impacts'!BX51*BX22*BX$14","v":0},{"$f":"'C-Daily Impacts'!BY51*BY22*BY$14","v":0},{"$f":"'C-Daily Impacts'!BZ51*BZ22*BZ$14","v":0},{"$f":"'C-Daily Impacts'!CA51*CA22*CA$14","v":0},{"$f":"'C-Daily Impacts'!CB51*CB22*CB$14","v":0},{"$f":"'C-Daily Impacts'!CC51*CC22*CC$14","v":0},{"$f":"'C-Daily Impacts'!CD51*CD22*CD$14","v":0},{"$f":"'C-Daily Impacts'!CE51*CE22*CE$14","v":0}]
[]
[null,null,null,"Change in Fuel Costs",null,null,null,9746715.7961445823,null,"£, 2023 Present Values",{"$f":"SUM(K38:K42)*'C-Values and Rates'!K33","v":0},{"$f":"SUM(L38:L42)*'C-Values and Rates'!L33","v":0},{"$f":"SUM(M38:M42)*'C-Values and Rates'!M33","v":0},{"$f":"SUM(N38:N42)*'C-Values and Rates'!N33","v":0},{"$f":"SUM(O38:O42)*'C-Values and Rates'!O33","v":0},{"$f":"SUM(P38:P42)*'C-Values and Rates'!P33","v":410893.54818332469},{"$f":"SUM(Q38:Q42)*'C-Values and Rates'!Q33","v":392957.66217671055},{"$f":"SUM(R38:R42)*'C-Values and Rates'!R33","v":371738.61283244821},{"$f":"SUM(S38:S42)*'C-Values and Rates'!S33","v":354949.20883679012},{"$f":"SUM(T38:T42)*'C-Values and Rates'!T33","v":339936.99327479734},{"$f":"SUM(U38:U42)*'C-Values and Rates'!U33","v":325433.15813253052},{"$f":"SUM(V38:V42)*'C-Values and Rates'!V33","v":310741.63810132002},{"$f":"SUM(W38:W42)*'C-Values and Rates'!W33","v":298477.24655793846},{"$f":"SUM(X38:X42)*'C-Values and Rates'!X33","v":286651.98735454882},{"$f":"SUM(Y38:Y42)*'C-Values and Rates'!Y33","v":274772.88432930107},{"$f":"SUM(Z38:Z42)*'C-Values and Rates'!Z33","v":264439.23251004721},{"$f":"SUM(AA38:AA42)*'C-Values and Rates'!AA33","v":255157.25037307569},{"$f":"SUM(AB38:AB42)*'C-Values and Rates'!AB33","v":245591.75225102704},{"$f":"SUM(AC38:AC42)*'C-Values and Rates'!AC33","v":236505.26379321274},{"$f":"SUM(AD38:AD42)*'C-Values and Rates'!AD33","v":227560.10053929852},{"$f":"SUM(AE38:AE42)*'C-Values and Rates'!AE33","v":219132.82351441489},{"$f":"SUM(AF38:AF42)*'C-Values and Rates'!AF33","v":211058.4033103839},{"$f":"SUM(AG38:AG42)*'C-Values and Rates'!AG33","v":203109.51786158903},{"$f":"SUM(AH38:AH42)*'C-Values and Rates'!AH33","v":195389.11175632046},{"$f":"SUM(AI38:AI42)*'C-Values and Rates'!AI33","v":188201.05612780215},{"$f":"SUM(AJ38:AJ42)*'C-Values and Rates'!AJ33","v":181229.85329346606},{"$f":"SUM(AK38:AK42)*'C-Values and Rates'!AK33","v":174558.03691588645},{"$f":"SUM(AL38:AL42)*'C-Values and Rates'!AL33","v":168247.61824418628},{"$f":"SUM(AM38:AM42)*'C-Values and Rates'!AM33","v":162466.53213191996},{"$f":"SUM(AN38:AN42)*'C-Values and Rates'!AN33","v":156884.15914275419},{"$f":"SUM(AO38:AO42)*'C-Values and Rates'!AO33","v":151493.66648688336},{"$f":"SUM(AP38:AP42)*'C-Values and Rates'!AP33","v":146288.45640367275},{"$f":"SUM(AQ38:AQ42)*'C-Values and Rates'!AQ33","v":141262.15807450912},{"$f":"SUM(AR38:AR42)*'C-Values and Rates'!AR33","v":136393.63227162836},{"$f":"SUM(AS38:AS42)*'C-Values and Rates'!AS33","v":132375.2816996531},{"$f":"SUM(AT38:AT42)*'C-Values and Rates'!AT33","v":128475.35379521761},{"$f":"SUM(AU38:AU42)*'C-Values and Rates'!AU33","v":124690.35752284322},{"$f":"SUM(AV38:AV42)*'C-Values and Rates'!AV33","v":121016.90479203094},{"$f":"SUM(AW38:AW42)*'C-Values and Rates'!AW33","v":117451.70742066775},{"$f":"SUM(AX38:AX42)*'C-Values and Rates'!AX33","v":113991.57418803155},{"$f":"SUM(AY38:AY42)*'C-Values and Rates'!AY33","v":110633.40797474915},{"$f":"SUM(AZ38:AZ42)*'C-Values and Rates'!AZ33","v":107374.20298714154},{"$f":"SUM(BA38:BA42)*'C-Values and Rates'!BA33","v":104211.04206346517},{"$f":"SUM(BB38:BB42)*'C-Values and Rates'!BB33","v":101141.09405963289},{"$f":"SUM(BC38:BC42)*'C-Values and Rates'!BC33","v":98161.611312068213},{"$f":"SUM(BD38:BD42)*'C-Values and Rates'!BD33","v":95269.927175416888},{"$f":"SUM(BE38:BE42)*'C-Values and Rates'!BE33","v":92463.453632905759},{"$f":"SUM(BF38:BF42)*'C-Values and Rates'!BF33","v":89739.678977206248},{"$f":"SUM(BG38:BG42)*'C-Values and Rates'!BG33","v":87096.165559719884},{"$f":"SUM(BH38:BH42)*'C-Values and Rates'!BH33","v":84530.547606268534},{"$f":"SUM(BI38:BI42)*'C-Values and Rates'!BI33","v":82040.529097227525},{"$f":"SUM(BJ38:BJ42)*'C-Values and Rates'!BJ33","v":79623.881710201735},{"$f":"SUM(BK38:BK42)*'C-Values and Rates'!BK33","v":77278.44282339768},{"$f":"SUM(BL38:BL42)*'C-Values and Rates'!BL33","v":75002.113577900658},{"$f":"SUM(BM38:BM42)*'C-Values and Rates'!BM33","v":72792.85699711919},{"$f":"SUM(BN38:BN42)*'C-Values and Rates'!BN33","v":70648.696161708503},{"$f":"SUM(BO38:BO42)*'C-Values and Rates'!BO33","v":68567.712438337228},{"$f":"SUM(BP38:BP42)*'C-Values and Rates'!BP33","v":66548.043760707209},{"$f":"SUM(BQ38:BQ42)*'C-Values and Rates'!BQ33","v":64587.882961285184},{"$f":"SUM(BR38:BR42)*'C-Values and Rates'!BR33","v":62685.476152249495},{"$f":"SUM(BS38:BS42)*'C-Values and Rates'!BS33","v":60839.121154199711},{"$f":"SUM(BT38:BT42)*'C-Values and Rates'!BT33","v":59047.165971219489},{"$f":"SUM(BU38:BU42)*'C-Values and Rates'!BU33","v":57308.007310924972},{"$f":"SUM(BV38:BV42)*'C-Values and Rates'!BV33","v":55620.089148171268},{"$f":"SUM(BW38:BW42)*'C-Values and Rates'!BW33","v":53981.901331128807},{"$f":"SUM(BX38:BX42)*'C-Values and Rates'!BX33","v":0},{"$f":"SUM(BY38:BY42)*'C-Values and Rates'!BY33","v":0},{"$f":"SUM(BZ38:BZ42)*'C-Values and Rates'!BZ33","v":0},{"$f":"SUM(CA38:CA42)*'C-Values and Rates'!CA33","v":0},{"$f":"SUM(CB38:CB42)*'C-Values and Rates'!CB33","v":0},{"$f":"SUM(CC38:CC42)*'C-Values and Rates'!CC33","v":0},{"$f":"SUM(CD38:CD42)*'C-Values and Rates'!CD33","v":0},{"$f":"SUM(CE38:CE42)*'C-Values and Rates'!CE33","v":0}]
[]
[null,null,null,"Non-Fuel"]
[null,null,null,"Cars",null,null,null,{"$f":"SUM(K47:CE47)","v":0},null,"£, 2023 prices",{"$f":"'C-Daily Impacts'!K77*K19*K$14","v":0},{"$f":"'C-Daily Impacts'!L77*L19*L$14","v":0},{"$f":"'C-Daily Impacts'!M77*M19*M$14","v":0},{"$f":"'C-Daily Impacts'!N77*N19*N$14","v":0},{"$f":"'C-Daily Impacts'!O77*O19*O$14","v":0},{"$f":"'C-Daily Impacts'!P77*P19*P$14","v":0},{"$f":"'C-Daily Impacts'!Q77*Q19*Q$14","v":0},{"$f":"'C-Daily Impacts'!R77*R19*R$14","v":0},{"$f":"'C-Daily Impacts'!S77*S19*S$14","v":0},{"$f":"'C-Daily Impacts'!T77*T19*T$14","v":0},{"$f":"'C-Daily Impacts'!U77*U19*U$14","v":0},{"$f":"'C-Daily Impacts'!V77*V19*V$14","v":0},{"$f":"'C-Daily Impacts'!W77*W19*W$14","v":0},{"$f":"'C-Daily Impacts'!X77*X19*X$14","v":0},{"$f":"'C-Daily Impacts'!Y77*Y19*Y$14","v":0},{"$f":"'C-Daily Impacts'!Z77*Z19*Z$14","v":0},{"$f":"'C-Daily Impacts'!AA77*AA19*AA$14","v":0},{"$f":"'C-Daily Impacts'!AB77*AB19*AB$14","v":0},{"$f":"'C-Daily Impacts'!AC77*AC19*AC$14","v":0},{"$f":"'C-Daily Impacts'!AD77*AD19*AD$14","v":0},{"$f":"'C-Daily Impacts'!AE77*AE19*AE$14","v":0},{"$f":"'C-Daily Impacts'!AF77*AF19*AF$14","v":0},{"$f":"'C-Daily Impacts'!AG77*AG19*AG$14","v":0},{"$f":"'C-Daily Impacts'!AH77*AH19*AH$14","v":0},{"$f":"'C-Daily Impacts'!AI77*AI19*AI$14","v":0},{"$f":"'C-Daily Impacts'!AJ77*AJ19*AJ$14","v":0},{"$f":"'C-Daily Impacts'!AK77*AK19*AK$14","v":0},{"$f":"'C-Daily Impacts'!AL77*AL19*AL$14","v":0},{"$f":"'C-Daily Impacts'!AM77*AM19*AM$14","v":0},{"$f":"'C-Daily Impacts'!AN77*AN19*AN$14","v":0},{"$f":"'C-Daily Impacts'!AO77*AO19*AO$14","v":0},{"$f":"'C-Daily Impacts'!AP77*AP19*AP$14","v":0},{"$f":"'C-Daily Impacts'!AQ77*AQ19*AQ$14","v":0},{"$f":"'C-Daily Impacts'!AR77*AR19*AR$14","v":0},{"$f":"'C-Daily Impacts'!AS77*AS19*AS$14","v":0},{"$f":"'C-Daily Impacts'!AT77*AT19*AT$14","v":0},{"$f":"'C-Daily Impacts'!AU77*AU19*AU$14","v":0},{"$f":"'C-Daily Impacts'!AV77*AV19*AV$14","v":0},{"$f":"'C-Daily Impacts'!AW77*AW19*AW$14","v":0},{"$f":"'C-Daily Impacts'!AX77*AX19*AX$14","v":0},{"$f":"'C-Daily Impacts'!AY77*AY19*AY$14","v":0},{"$f":"'C-Daily Impacts'!AZ77*AZ19*AZ$14","v":0},{"$f":"'C-Daily Impacts'!BA77*BA19*BA$14","v":0},{"$f":"'C-Daily Impacts'!BB77*BB19*BB$14","v":0},{"$f":"'C-Daily Impacts'!BC77*BC19*BC$14","v":0},{"$f":"'C-Daily Impacts'!BD77*BD19*BD$14","v":0},{"$f":"'C-Daily Impacts'!BE77*BE19*BE$14","v":0},{"$f":"'C-Daily Impacts'!BF77*BF19*BF$14","v":0},{"$f":"'C-Daily Impacts'!BG77*BG19*BG$14","v":0},{"$f":"'C-Daily Impacts'!BH77*BH19*BH$14","v":0},{"$f":"'C-Daily Impacts'!BI77*BI19*BI$14","v":0},{"$f":"'C-Daily Impacts'!BJ77*BJ19*BJ$14","v":0},{"$f":"'C-Daily Impacts'!BK77*BK19*BK$14","v":0},{"$f":"'C-Daily Impacts'!BL77*BL19*BL$14","v":0},{"$f":"'C-Daily Impacts'!BM77*BM19*BM$14","v":0},{"$f":"'C-Daily Impacts'!BN77*BN19*BN$14","v":0},{"$f":"'C-Daily Impacts'!BO77*BO19*BO$14","v":0},{"$f":"'C-Daily Impacts'!BP77*BP19*BP$14","v":0},{"$f":"'C-Daily Impacts'!BQ77*BQ19*BQ$14","v":0},{"$f":"'C-Daily Impacts'!BR77*BR19*BR$14","v":0},{"$f":"'C-Daily Impacts'!BS77*BS19*BS$14","v":0},{"$f":"'C-Daily Impacts'!BT77*BT19*BT$14","v":0},{"$f":"'C-Daily Impacts'!BU77*BU19*BU$14","v":0},{"$f":"'C-Daily Impacts'!BV77*BV19*BV$14","v":0},{"$f":"'C-Daily Impacts'!BW77*BW19*BW$14","v":0},{"$f":"'C-Daily Impacts'!BX77*BX19*BX$14","v":0},{"$f":"'C-Daily Impacts'!BY77*BY19*BY$14","v":0},{"$f":"'C-Daily Impacts'!BZ77*BZ19*BZ$14","v":0},{"$f":"'C-Daily Impacts'!CA77*CA19*CA$14","v":0},{"$f":"'C-Daily Impacts'!CB77*CB19*CB$14","v":0},{"$f":"'C-Daily Impacts'!CC77*CC19*CC$14","v":0},{"$f":"'C-Daily Impacts'!CD77*CD19*CD$14","v":0},{"$f":"'C-Daily Impacts'!CE77*CE19*CE$14","v":0}]
[null,null,null,"LGV",null,null,null,0,null,"£, 2023 prices",{"$f":"'C-Daily Impacts'!K78*K20*K$14","v":0},{"$f":"'C-Daily Impacts'!L78*L20*L$14","v":0},{"$f":"'C-Daily Impacts'!M78*M20*M$14","v":0},{"$f":"'C-Daily Impacts'!N78*N20*N$14","v":0},{"$f":"'C-Daily Impacts'!O78*O20*O$14","v":0},{"$f":"'C-Daily Impacts'!P78*P20*P$14","v":0},{"$f":"'C-Daily Impacts'!Q78*Q20*Q$14","v":0},{"$f":"'C-Daily Impacts'!R78*R20*R$14","v":0},{"$f":"'C-Daily Impacts'!S78*S20*S$14","v":0},{"$f":"'C-Daily Impacts'!T78*T20*T$14","v":0},{"$f":"'C-Daily Impacts'!U78*U20*U$14","v":0},{"$f":"'C-Daily Impacts'!V78*V20*V$14","v":0},{"$f":"'C-Daily Impacts'!W78*W20*W$14","v":0},{"$f":"'C-Daily Impacts'!X78*X20*X$14","v":0},{"$f":"'C-Daily Impacts'!Y78*Y20*Y$14","v":0},{"$f":"'C-Daily Impacts'!Z78*Z20*Z$14","v":0},{"$f":"'C-Daily Impacts'!AA78*AA20*AA$14","v":0},{"$f":"'C-Daily Impacts'!AB78*AB20*AB$14","v":0},{"$f":"'C-Daily Impacts'!AC78*AC20*AC$14","v":0},{"$f":"'C-Daily Impacts'!AD78*AD20*AD$14","v":0},{"$f":"'C-Daily Impacts'!AE78*AE20*AE$14","v":0},{"$f":"'C-Daily Impacts'!AF78*AF20*AF$14","v":0},{"$f":"'C-Daily Impacts'!AG78*AG20*AG$14","v":0},{"$f":"'C-Daily Impacts'!AH78*AH20*AH$14","v":0},{"$f":"'C-Daily Impacts'!AI78*AI20*AI$14","v":0},{"$f":"'C-Daily Impacts'!AJ78*AJ20*AJ$14","v":0},{"$f":"'C-Daily Impacts'!AK78*AK20*AK$14","v":0},{"$f":"'C-Daily Impacts'!AL78*AL20*AL$14","v":0},{"$f":"'C-Daily Impacts'!AM78*AM20*AM$14","v":0},{"$f":"'C-Daily Impacts'!AN78*AN20*AN$14","v":0},{"$f":"'C-Daily Impacts'!AO78*AO20*AO$14","v":0},{"$f":"'C-Daily Impacts'!AP78*AP20*AP$14","v":0},{"$f":"'C-Daily Impacts'!AQ78*AQ20*AQ$14","v":0},{"$f":"'C-Daily Impacts'!AR78*AR20*AR$14","v":0},{"$f":"'C-Daily Impacts'!AS78*AS20*AS$14","v":0},{"$f":"'C-Daily Impacts'!AT78*AT20*AT$14","v":0},{"$f":"'C-Daily Impacts'!AU78*AU20*AU$14","v":0},{"$f":"'C-Daily Impacts'!AV78*AV20*AV$14","v":0},{"$f":"'C-Daily Impacts'!AW78*AW20*AW$14","v":0},{"$f":"'C-Daily Impacts'!AX78*AX20*AX$14","v":0},{"$f":"'C-Daily Impacts'!AY78*AY20*AY$14","v":0},{"$f":"'C-Daily Impacts'!AZ78*AZ20*AZ$14","v":0},{"$f":"'C-Daily Impacts'!BA78*BA20*BA$14","v":0},{"$f":"'C-Daily Impacts'!BB78*BB20*BB$14","v":0},{"$f":"'C-Daily Impacts'!BC78*BC20*BC$14","v":0},{"$f":"'C-Daily Impacts'!BD78*BD20*BD$14","v":0},{"$f":"'C-Daily Impacts'!BE78*BE20*BE$14","v":0},{"$f":"'C-Daily Impacts'!BF78*BF20*BF$14","v":0},{"$f":"'C-Daily Impacts'!BG78*BG20*BG$14","v":0},{"$f":"'C-Daily Impacts'!BH78*BH20*BH$14","v":0},{"$f":"'C-Daily Impacts'!BI78*BI20*BI$14","v":0},{"$f":"'C-Daily Impacts'!BJ78*BJ20*BJ$14","v":0},{"$f":"'C-Daily Impacts'!BK78*BK20*BK$14","v":0},{"$f":"'C-Daily Impacts'!BL78*BL20*BL$14","v":0},{"$f":"'C-Daily Impacts'!BM78*BM20*BM$14","v":0},{"$f":"'C-Daily Impacts'!BN78*BN20*BN$14","v":0},{"$f":"'C-Daily Impacts'!BO78*BO20*BO$14","v":0},{"$f":"'C-Daily Impacts'!BP78*BP20*BP$14","v":0},{"$f":"'C-Daily Impacts'!BQ78*BQ20*BQ$14","v":0},{"$f":"'C-Daily Impacts'!BR78*BR20*BR$14","v":0},{"$f":"'C-Daily Impacts'!BS78*BS20*BS$14","v":0},{"$f":"'C-Daily Impacts'!BT78*BT20*BT$14","v":0},{"$f":"'C-Daily Impacts'!BU78*BU20*BU$14","v":0},{"$f":"'C-Daily Impacts'!BV78*BV20*BV$14","v":0},{"$f":"'C-Daily Impacts'!BW78*BW20*BW$14","v":0},{"$f":"'C-Daily Impacts'!BX78*BX20*BX$14","v":0},{"$f":"'C-Daily Impacts'!BY78*BY20*BY$14","v":0},{"$f":"'C-Daily Impacts'!BZ78*BZ20*BZ$14","v":0},{"$f":"'C-Daily Impacts'!CA78*CA20*CA$14","v":0},{"$f":"'C-Daily Impacts'!CB78*CB20*CB$14","v":0},{"$f":"'C-Daily Impacts'!CC78*CC20*CC$14","v":0},{"$f":"'C-Daily Impacts'!CD78*CD20*CD$14","v":0},{"$f":"'C-Daily Impacts'!CE78*CE20*CE$14","v":0}]
[null,null,null,"HGV - Artics",null,null,null,2566552.201103772,null,"£, 2023 prices",{"$f":"'C-Daily Impacts'!K79*K21*K$14","v":0},{"$f":"'C-Daily Impacts'!L79*L21*L$14","v":0},{"$f":"'C-Daily Impacts'!M79*M21*M$14","v":0},{"$f":"'C-Daily Impacts'!N79*N21*N$14","v":0},{"$f":"'C-Daily Impacts'!O79*O21*O$14","v":0},{"$f":"'C-Daily Impacts'!P79*P21*P$14","v":41270.315323680741},{"$f":"'C-Daily Impacts'!Q79*Q21*Q$14","v":41321.248365151281},{"$f":"'C-Daily Impacts'!R79*R21*R$14","v":41372.244264748624},{"$f":"'C-Daily Impacts'!S79*S21*S$14","v":41396.186126503955},{"$f":"'C-Daily Impacts'!T79*T21*T$14","v":41420.141843266574},{"$f":"'C-Daily Impacts'!U79*U21*U$14","v":41444.111423054237},{"$f":"'C-Daily Impacts'!V79*V21*V$14","v":41468.094873889393},{"$f":"'C-Daily Impacts'!W79*W21*W$14","v":41492.09220379917},{"$f":"'C-Daily Impacts'!X79*X21*X$14","v":41569.117115185436},{"$f":"'C-Daily Impacts'!Y79*Y21*Y$14","v":41646.285013744913},{"$f":"'C-Daily Impacts'!Z79*Z21*Z$14","v":41723.596164915478},{"$f":"'C-Daily Impacts'!AA79*AA21*AA$14","v":41801.050834627807},{"$f":"'C-Daily Impacts'!AB79*AB21*AB$14","v":41878.649289306275},{"$f":"'C-Daily Impacts'!AC79*AC21*AC$14","v":41953.441422086478},{"$f":"'C-Daily Impacts'!AD79*AD21*AD$14","v":42028.367128017228},{"$f":"'C-Daily Impacts'!AE79*AE21*AE$14","v":42103.426645650135},{"$f":"'C-Daily Impacts'!AF79*AF21*AF$14","v":42178.620213962917},{"$f":"'C-Daily Impacts'!AG79*AG21*AG$14","v":42253.948072360057},{"$f":"'C-Daily Impacts'!AH79*AH21*AH$14","v":42336.386982258176},{"$f":"'C-Daily Impacts'!AI79*AI21*AI$14","v":42418.986733312558},{"$f":"'C-Daily Impacts'!AJ79*AJ21*AJ$14","v":42501.747639329878},{"$f":"'C-Daily Impacts'!AK79*AK21*AK$14","v":42584.670014728974},{"$f":"'C-Daily Impacts'!AL79*AL21*AL$14","v":42667.754174542228},{"$f":"'C-Daily Impacts'!AM79*AM21*AM$14","v":42720.600825344285},{"$f":"'C-Daily Impacts'!AN79*AN21*AN$14","v":42773.512929989767},{"$f":"'C-Daily Impacts'!AO79*AO21*AO$14","v":42826.490569547284},{"$f":"'C-Daily Impacts'!AP79*AP21*AP$14","v":42879.533825185921},{"$f":"'C-Daily Impacts'!AQ79*AQ21*AQ$14","v":42932.642778175228},{"$f":"'C-Daily Impacts'!AR79*AR21*AR$14","v":42962.249586621823},{"$f":"'C-Daily Impacts'!AS79*AS21*AS$14","v":42991.876812239367},{"$f":"'C-Daily Impacts'!AT79*AT21*AT$14","v":43021.524469107761},{"$f":"'C-Daily Impacts'!AU79*AU21*AU$14","v":43051.192571316584},{"$f":"'C-Daily Impacts'!AV79*AV21*AV$14","v":43080.881132965202},{"$f":"'C-Daily Impacts'!AW79*AW21*AW$14","v":43110.590168162627},{"$f":"'C-Daily Impacts'!AX79*AX21*AX$14","v":43140.319691027638},{"$f":"'C-Daily Impacts'!AY79*AY21*AY$14","v":43170.069715688784},{"$f":"'C-Daily Impacts'!AZ79*AZ21*AZ$14","v":43199.840256284275},{"$f":"'C-Daily Impacts'!BA79*BA21*BA$14","v":43229.631326962146},{"$f":"'C-Daily Impacts'!BB79*BB21*BB$14","v":43259.442941880166},{"$f":"'C-Daily Impacts'!BC79*BC21*BC$14","v":43289.275115205855},{"$f":"'C-Daily Impacts'!BD79*BD21*BD$14","v":43319.127861116511},{"$f":"'C-Daily Impacts'!BE79*BE21*BE$14","v":43349.001193799188},{"$f":"'C-Daily Impacts'!BF79*BF21*BF$14","v":43378.895127450778},{"$f":"'C-Daily Impacts'!BG79*BG21*BG$14","v":43408.809676277895},{"$f":"'C-Daily Impacts'!BH79*BH21*BH$14","v":43438.744854497018},{"$f":"'C-Daily Impacts'!BI79*BI21*BI$14","v":43468.70067633436},{"$f":"'C-Daily Impacts'!BJ79*BJ21*BJ$14","v":43498.677156025995},{"$f":"'C-Daily Impacts'!BK79*BK21*BK$14","v":43528.674307817804},{"$f":"'C-Daily Impacts'!BL79*BL21*BL$14","v":43558.692145965477},{"$f":"'C-Daily Impacts'!BM79*BM21*BM$14","v":43588.730684734561},{"$f":"'C-Daily Impacts'!BN79*BN21*BN$14","v":43618.789938400441},{"$f":"'C-Daily Impacts'!BO79*BO21*BO$14","v":43648.869921248282},{"$f":"'C-Daily Impacts'!BP79*BP21*BP$14","v":43678.970647573209},{"$f":"'C-Daily Impacts'!BQ79*BQ21*BQ$14","v":43709.092131680074},{"$f":"'C-Daily Impacts'!BR79*BR21*BR$14","v":43739.23438788372},{"$f":"'C-Daily Impacts'!BS79*BS21*BS$14","v":43769.397430508776},{"$f":"'C-Daily Impacts'!BT79*BT21*BT$14","v":43799.581273889824},{"$f":"'C-Daily Impacts'!BU79*BU21*BU$14","v":43829.785932371255},{"$f":"'C-Daily Impacts'!BV79*BV21*BV$14","v":43860.011420307375},{"$f":"'C-Daily Impacts'!BW79*BW21*BW$14","v":43890.257752062411},{"$f":"'C-Daily Impacts'!BX79*BX21*BX$14","v":0},{"$f":"'C-Daily Impacts'!BY79*BY21*BY$14","v":0},{"$f":"'C-Daily Impacts'!BZ79*BZ21*BZ$14","v":0},{"$f":"'C-Daily Impacts'!CA79*CA21*CA$14","v":0},{"$f":"'C-Daily Impacts'!CB79*CB21*CB$14","v":0},{"$f":"'C-Daily Impacts'!CC79*CC21*CC$14","v":0},{"$f":"'C-Daily Impacts'!CD79*CD21*CD$14","v":0},{"$f":"'C-Daily Impacts'!CE79*CE21*CE$14","v":0}]
[null,null,null,"HGV - Rigids",null,null,null,3491241.1605798025,null,"£, 2023 prices",{"$f":"'C-Daily Impacts'!K80*K21*K$14","v":0},{"$f":"'C-Daily Impacts'!L80*L21*L$14","v":0},{"$f":"'C-Daily Impacts'!M80*M21*M$14","v":0},{"$f":"'C-Daily Impacts'!N80*N21*N$14","v":0},{"$f":"'C-Daily Impacts'!O80*O21*O$14","v":0},{"$f":"'C-Daily Impacts'!P80*P21*P$14","v":56139.369971191889},{"$f":"'C-Daily Impacts'!Q80*Q21*Q$14","v":56208.6533977043},{"$f":"'C-Daily Impacts'!R80*R21*R$14","v":56278.022329151878},{"$f":"'C-Daily Impacts'!S80*S21*S$14","v":56310.590072440049},{"$f":"'C-Daily Impacts'!T80*T21*T$14","v":56343.176662479738},{"$f":"'C-Daily Impacts'!U80*U21*U$14","v":56375.782110177403},{"$f":"'C-Daily Impacts'!V80*V21*V$14","v":56408.406426445938},{"$f":"'C-Daily Impacts'!W80*W21*W$14","v":56441.049622204424},{"$f":"'C-Daily Impacts'!X80*X21*X$14","v":56545.825414766165},{"$f":"'C-Daily Impacts'!Y80*Y21*Y$14","v":56650.795710562379},{"$f":"'C-Daily Impacts'!Z80*Z21*Z$14","v":56755.960870664087},{"$f":"'C-Daily Impacts'!AA80*AA21*AA$14","v":56861.321256812684},{"$f":"'C-Daily Impacts'!AB80*AB21*AB$14","v":56966.877231421073},{"$f":"'C-Daily Impacts'!AC80*AC21*AC$14","v":57068.615809867864},{"$f":"'C-Daily Impacts'!AD80*AD21*AD$14","v":57170.536085800086},{"$f":"'C-Daily Impacts'!AE80*AE21*AE$14","v":57272.638383715777},{"$f":"'C-Daily Impacts'!AF80*AF21*AF$14","v":57374.923028692639},{"$f":"'C-Daily Impacts'!AG80*AG21*AG$14","v":57477.390346388842},{"$f":"'C-Daily Impacts'!AH80*AH21*AH$14","v":57589.530717173373},{"$f":"'C-Daily Impacts'!AI80*AI21*AI$14","v":57701.889877688685},{"$f":"'C-Daily Impacts'!AJ80*AJ21*AJ$14","v":57814.468254801075},{"$f":"'C-Daily Impacts'!AK80*AK21*AK$14","v":57927.266276209681},{"$f":"'C-Daily Impacts'!AL80*AL21*AL$14","v":58040.284370448142},{"$f":"'C-Daily Impacts'!AM80*AM21*AM$14","v":58112.170850060575},{"$f":"'C-Daily Impacts'!AN80*AN21*AN$14","v":58184.146365521265},{"$f":"'C-Daily Impacts'!AO80*AO21*AO$14","v":58256.21102710659},{"$f":"'C-Daily Impacts'!AP80*AP21*AP$14","v":58328.364945229521},{"$f":"'C-Daily Impacts'!AQ80*AQ21*AQ$14","v":58400.608230439859},{"$f":"'C-Daily Impacts'!AR80*AR21*AR$14","v":58440.881912867873},{"$f":"'C-Daily Impacts'!AS80*AS21*AS$14","v":58481.183368456921},{"$f":"'C-Daily Impacts'!AT80*AT21*AT$14","v":58521.512616359687},{"$f":"'C-Daily Impacts'!AU80*AU21*AU$14","v":58561.869675741989},{"$f":"'C-Daily Impacts'!AV80*AV21*AV$14","v":58602.254565782983},{"$f":"'C-Daily Impacts'!AW80*AW21*AW$14","v":58642.66730567495},{"$f":"'C-Daily Impacts'!AX80*AX21*AX$14","v":58683.107914623462},{"$f":"'C-Daily Impacts'!AY80*AY21*AY$14","v":58723.576411847294},{"$f":"'C-Daily Impacts'!AZ80*AZ21*AZ$14","v":58764.072816578533},{"$f":"'C-Daily Impacts'!BA80*BA21*BA$14","v":58804.59714806245},{"$f":"'C-Daily Impacts'!BB80*BB21*BB$14","v":58845.149425557691},{"$f":"'C-Daily Impacts'!BC80*BC21*BC$14","v":58885.729668336055},{"$f":"'C-Daily Impacts'!BD80*BD21*BD$14","v":58926.337895682758},{"$f":"'C-Daily Impacts'!BE80*BE21*BE$14","v":58966.974126896232},{"$f":"'C-Daily Impacts'!BF80*BF21*BF$14","v":59007.638381288241},{"$f":"'C-Daily Impacts'!BG80*BG21*BG$14","v":59048.330678183855},{"$f":"'C-Daily Impacts'!BH80*BH21*BH$14","v":59089.051036921519},{"$f":"'C-Daily Impacts'!BI80*BI21*BI$14","v":59129.799476852939},{"$f":"'C-Daily Impacts'!BJ80*BJ21*BJ$14","v":59170.576017343206},{"$f":"'C-Daily Impacts'!BK80*BK21*BK$14","v":59211.380677770816},{"$f":"'C-Daily Impacts'!BL80*BL21*BL$14","v":59252.213477527519},{"$f":"'C-Daily Impacts'!BM80*BM21*BM$14","v":59293.074436018527},{"$f":"'C-Daily Impacts'!BN80*BN21*BN$14","v":59333.963572662404},{"$f":"'C-Daily Impacts'!BO80*BO21*BO$14","v":59374.880906891092},{"$f":"'C-Daily Impacts'!BP80*BP21*BP$14","v":59415.826458149968},{"$f":"'C-Daily Impacts'!BQ80*BQ21*BQ$14","v":59456.800245897779},{"$f":"'C-Daily Impacts'!BR80*BR21*BR$14","v":59497.802289606698},{"$f":"'C-Daily Impacts'!BS80*BS21*BS$14","v":59538.832608762365},{"$f":"'C-Daily Impacts'!BT80*BT21*BT$14","v":59579.891222863822},{"$f":"'C-Daily Impacts'!BU80*BU21*BU$14","v":59620.978151423587},{"$f":"'C-Daily Impacts'!BV80*BV21*BV$14","v":59662.093413967552},{"$f":"'C-Daily Impacts'!BW80*BW21*BW$14","v":59703.237030035183},{"$f":"'C-Daily Impacts'!BX80*BX21*BX$14","v":0},{"$f":"'C-Daily Impacts'!BY80*BY21*BY$14","v":0},{"$f":"'C-Daily Impacts'!BZ80*BZ21*BZ$14","v":0},{"$f":"'C-Daily Impacts'!CA80*CA21*CA$14","v":0},{"$f":"'C-Daily Impacts'!CB80*CB21*CB$14","v":0},{"$f":"'C-Daily Impacts'!CC80*CC21*CC$14","v":0},{"$f":"'C-Daily Impacts'!CD80*CD21*CD$14","v":0},{"$f":"'C-Daily Impacts'!CE80*CE21*CE$14","v":0}]
[null,null,null,"PSV",null,null,null,44522690.421436392,null,"£, 2023 prices",{"$f":"'C-Daily Impacts'!K81*K22*K$14","v":0},{"$f":"'C-Daily Impacts'!L81*L22*L$14","v":0},{"$f":"'C-Daily Impacts'!M81*M22*M$14","v":0},{"$f":"'C-Daily Impacts'!N81*N22*N$14","v":0},{"$f":"'C-Daily Impacts'!O81*O22*O$14","v":0},{"$f":"'C-Daily Impacts'!P81*P22*P$14","v":742044.84035727254},{"$f":"'C-Daily Impacts'!Q81*Q22*Q$14","v":742044.84035727254},{"$f":"'C-Daily Impacts'!R81*R22*R$14","v":742044.84035727254},{"$f":"'C-Daily Impacts'!S81*S22*S$14","v":742044.84035727254},{"$f":"'C-Daily Impacts'!T81*T22*T$14","v":742044.84035727254},{"$f":"'C-Daily Impacts'!U81*U22*U$14","v":742044.84035727254},{"$f":"'C-Daily Impacts'!V81*V22*V$14","v":742044.84035727254},{"$f":"'C-Daily Impacts'!W81*W22*W$14","v":742044.84035727254},{"$f":"'C-Daily Impacts'!X81*X22*X$14","v":742044.84035727254},{"$f":"'C-Daily Impacts'!Y81*Y22*Y$14","v":742044.84035727254},{"$f":"'C-Daily Impacts'!Z81*Z22*Z$14","v":742044.84035727254},{"$f":"'C-Daily Impacts'!AA81*AA22*AA$14","v":742044.84035727254},{"$f":"'C-Daily Impacts'!AB81*AB22*AB$14","v":742044.84035727254},{"$f":"'C-Daily Impacts'!AC81*AC22*AC$14","v":742044.84035727254},{"$f":"'C-Daily Impacts'!AD81*AD22*AD$14","v":742044.84035727254},{"$f":"'C-Daily Impacts'!AE81*AE22*AE$14","v":742044.84035727254},{"$f":"'C-Daily Impacts'!AF81*AF22*AF$14","v":742044.84035727254},{"$f":"'C-Daily Impacts'!AG81*AG22*AG$14","v":742044.84035727254},{"$f":"'C-Daily Impacts'!AH81*AH22*AH$14","v":742044.84035727254},{"$f":"'C-Daily Impacts'!AI81*AI22*AI$14","v":742044.84035727254},{"$f":"'C-Daily Impacts'!AJ81*AJ22*AJ$14","v":742044.84035727254},{"$f":"'C-Daily Impacts'!AK81*AK22*AK$14","v":742044.84035727254},{"$f":"'C-Daily Impacts'!AL81*AL22*AL$14","v":742044.84035727254},{"$f":"'C-Daily Impacts'!AM81*AM22*AM$14","v":742044.84035727254},{"$f":"'C-Daily Impacts'!AN81*AN22*AN$14","v":742044.84035727254},{"$f":"'C-Daily Impacts'!AO81*AO22*AO$14","v":742044.84035727254},{"$f":"'C-Daily Impacts'!AP81*AP22*AP$14","v":742044.84035727254},{"$f":"'C-Daily Impacts'!AQ81*AQ22*AQ$14","v":742044.84035727254},{"$f":"'C-Daily Impacts'!AR81*AR22*AR$14","v":742044.84035727254},{"$f":"'C-Daily Impacts'!AS81*AS22*AS$14","v":742044.84035727254},{"$f":"'C-Daily Impacts'!AT81*AT22*AT$14","v":742044.84035727254},{"$f":"'C-Daily Impacts'!AU81*AU22*AU$14","v":742044.84035727254},{"$f":"'C-Daily Impacts'!AV81*AV22*AV$14","v":742044.84035727254},{"$f":"'C-Daily Impacts'!AW81*AW22*AW$14","v":742044.84035727254},{"$f":"'C-Daily Impacts'!AX81*AX22*AX$14","v":742044.84035727254},{"$f":"'C-Daily Impacts'!AY81*AY22*AY$14","v":742044.84035727254},{"$f":"'C-Daily Impacts'!AZ81*AZ22*AZ$14","v":742044.84035727254},{"$f":"'C-Daily Impacts'!BA81*BA22*BA$14","v":742044.84035727254},{"$f":"'C-Daily Impacts'!BB81*BB22*BB$14","v":742044.84035727254},{"$f":"'C-Daily Impacts'!BC81*BC22*BC$14","v":742044.84035727254},{"$f":"'C-Daily Impacts'!BD81*BD22*BD$14","v":742044.84035727254},{"$f":"'C-Daily Impacts'!BE81*BE22*BE$14","v":742044.84035727254},{"$f":"'C-Daily Impacts'!BF81*BF22*BF$14","v":742044.84035727254},{"$f":"'C-Daily Impacts'!BG81*BG22*BG$14","v":742044.84035727254},{"$f":"'C-Daily Impacts'!BH81*BH22*BH$14","v":742044.84035727254},{"$f":"'C-Daily Impacts'!BI81*BI22*BI$14","v":742044.84035727254},{"$f":"'C-Daily Impacts'!BJ81*BJ22*BJ$14","v":742044.84035727254},{"$f":"'C-Daily Impacts'!BK81*BK22*BK$14","v":742044.84035727254},{"$f":"'C-Daily Impacts'!BL81*BL22*BL$14","v":742044.84035727254},{"$f":"'C-Daily Impacts'!BM81*BM22*BM$14","v":742044.84035727254},{"$f":"'C-Daily Impacts'!BN81*BN22*BN$14","v":742044.84035727254},{"$f":"'C-Daily Impacts'!BO81*BO22*BO$14","v":742044.84035727254},{"$f":"'C-Daily Impacts'!BP81*BP22*BP$14","v":742044.84035727254},{"$f":"'C-Daily Impacts'!BQ81*BQ22*BQ$14","v":742044.84035727254},{"$f":"'C-Daily Impacts'!BR81*BR22*BR$14","v":742044.84035727254},{"$f":"'C-Daily Impacts'!BS81*BS22*BS$14","v":742044.84035727254},{"$f":"'C-Daily Impacts'!BT81*BT22*BT$14","v":742044.84035727254},{"$f":"'C-Daily Impacts'!BU81*BU22*BU$14","v":742044.84035727254},{"$f":"'C-Daily Impacts'!BV81*BV22*BV$14","v":742044.84035727254},{"$f":"'C-Daily Impacts'!BW81*BW22*BW$14","v":742044.84035727254},{"$f":"'C-Daily Impacts'!BX81*BX22*BX$14","v":0},{"$f":"'C-Daily Impacts'!BY81*BY22*BY$14","v":0},{"$f":"'C-Daily Impacts'!BZ81*BZ22*BZ$14","v":0},{"$f":"'C-Daily Impacts'!CA81*CA22*CA$14","v":0},{"$f":"'C-Daily Impacts'!CB81*CB22*CB$14","v":0},{"$f":"'C-Daily Impacts'!CC81*CC22*CC$14","v":0},{"$f":"'C-Daily Impacts'!CD81*CD22*CD$14","v":0},{"$f":"'C-Daily Impacts'!CE81*CE22*CE$14","v":0}]
[]
[null,null,null,"Change in Non-Fuel Costs",null,null,null,18099563.649380103,null,"£, 2023 Present Values",{"$f":"SUM(K47:K51)*'C-Values and Rates'!K33","v":0},{"$f":"SUM(L47:L51)*'C-Values and Rates'!L33","v":0},{"$f":"SUM(M47:M51)*'C-Values and Rates'!M33","v":0},{"$f":"SUM(N47:N51)*'C-Values and Rates'!N33","v":0},{"$f":"SUM(O47:O51)*'C-Values and Rates'!O33","v":0},{"$f":"SUM(P47:P51)*'C-Values and Rates'!P33","v":702479.63991689717},{"$f":"SUM(Q47:Q51)*'C-Values and Rates'!Q33","v":677989.93208982481},{"$f":"SUM(R47:R51)*'C-Values and Rates'!R33","v":654354.08186749404},{"$f":"SUM(S47:S51)*'C-Values and Rates'!S33","v":631494.18429030734},{"$f":"SUM(T47:T51)*'C-Values and Rates'!T33","v":609432.91952428478},{"$f":"SUM(U47:U51)*'C-Values and Rates'!U33","v":588142.38582984242},{"$f":"SUM(V47:V51)*'C-Values and Rates'!V33","v":567595.65629212419},{"$f":"SUM(W47:W51)*'C-Values and Rates'!W33","v":547766.74476193171},{"$f":"SUM(X47:X51)*'C-Values and Rates'!X33","v":528709.31517798442},{"$f":"SUM(Y47:Y51)*'C-Values and Rates'!Y33","v":510315.09635064425},{"$f":"SUM(Z47:Z51)*'C-Values and Rates'!Z33","v":492561.00207215105},{"$f":"SUM(AA47:AA51)*'C-Values and Rates'!AA33","v":475424.74996213039},{"$f":"SUM(AB47:AB51)*'C-Values and Rates'!AB33","v":458884.83347277477},{"$f":"SUM(AC47:AC51)*'C-Values and Rates'!AC33","v":442916.82768241561},{"$f":"SUM(AD47:AD51)*'C-Values and Rates'!AD33","v":427504.60859111999},{"$f":"SUM(AE47:AE51)*'C-Values and Rates'!AE33","v":412628.82660564769},{"$f":"SUM(AF47:AF51)*'C-Values and Rates'!AF33","v":398270.80594298948},{"$f":"SUM(AG47:AG51)*'C-Values and Rates'!AG33","v":384412.52116099943},{"$f":"SUM(AH47:AH51)*'C-Values and Rates'!AH33","v":371043.83107855415},{"$f":"SUM(AI47:AI51)*'C-Values and Rates'!AI33","v":358140.2054056552},{"$f":"SUM(AJ47:AJ51)*'C-Values and Rates'!AJ33","v":345685.46093246341},{"$f":"SUM(AK47:AK51)*'C-Values and Rates'!AK33","v":333663.97774698876},{"$f":"SUM(AL47:AL51)*'C-Values and Rates'!AL33","v":322060.67962280929},{"$f":"SUM(AM47:AM51)*'C-Values and Rates'!AM33","v":310834.55464590754},{"$f":"SUM(AN47:AN51)*'C-Values and Rates'!AN33","v":299999.78906318726},{"$f":"SUM(AO47:AO51)*'C-Values and Rates'!AO33","v":289542.73786162143},{"$f":"SUM(AP47:AP51)*'C-Values and Rates'!AP33","v":279450.23182666436},{"$f":"SUM(AQ47:AQ51)*'C-Values and Rates'!AQ33","v":269709.56094937498},{"$f":"SUM(AR47:AR51)*'C-Values and Rates'!AR33","v":260291.29170469672},{"$f":"SUM(AS47:AS51)*'C-Values and Rates'!AS33","v":252503.48580601957},{"$f":"SUM(AT47:AT51)*'C-Values and Rates'!AT33","v":244948.70010118166},{"$f":"SUM(AU47:AU51)*'C-Values and Rates'!AU33","v":237619.96199315434},{"$f":"SUM(AV47:AV51)*'C-Values and Rates'!AV33","v":230510.5075346028},{"$f":"SUM(AW47:AW51)*'C-Values and Rates'!AW33","v":223613.77518388839},{"$f":"SUM(AX47:AX51)*'C-Values and Rates'!AX33","v":216923.39974793623},{"$f":"SUM(AY47:AY51)*'C-Values and Rates'!AY33","v":210433.20650637636},{"$f":"SUM(AZ47:AZ51)*'C-Values and Rates'!AZ33","v":204137.20551153165},{"$f":"SUM(BA47:BA51)*'C-Values and Rates'!BA33","v":198029.5860589912},{"$f":"SUM(BB47:BB51)*'C-Values and Rates'!BB33","v":192104.71132366269},{"$f":"SUM(BC47:BC51)*'C-Values and Rates'!BC33","v":186357.11315635161},{"$f":"SUM(BD47:BD51)*'C-Values and Rates'!BD33","v":180781.48703606325},{"$f":"SUM(BE47:BE51)*'C-Values and Rates'!BE33","v":175372.68717336652},{"$f":"SUM(BF47:BF51)*'C-Values and Rates'!BF33","v":170125.72176029862},{"$f":"SUM(BG47:BG51)*'C-Values and Rates'!BG33","v":165035.7483624251},{"$f":"SUM(BH47:BH51)*'C-Values and Rates'!BH33","v":160098.06944880084},{"$f":"SUM(BI47:BI51)*'C-Values and Rates'!BI33","v":155308.12805570423},{"$f":"SUM(BJ47:BJ51)*'C-Values and Rates'!BJ33","v":150661.50358014178},{"$f":"SUM(BK47:BK51)*'C-Values and Rates'!BK33","v":146153.90769923897},{"$f":"SUM(BL47:BL51)*'C-Values and Rates'!BL33","v":141781.18041174955},{"$f":"SUM(BM47:BM51)*'C-Values and Rates'!BM33","v":137539.28619802909},{"$f":"SUM(BN47:BN51)*'C-Values and Rates'!BN33","v":133424.31029492695},{"$f":"SUM(BO47:BO51)*'C-Values and Rates'!BO33","v":129432.45508215763},{"$f":"SUM(BP47:BP51)*'C-Values and Rates'!BP33","v":125560.03657681492},{"$f":"SUM(BQ47:BQ51)*'C-Values and Rates'!BQ33","v":121803.48103279261},{"$f":"SUM(BR47:BR51)*'C-Values and Rates'!BR33","v":118159.32164197207},{"$f":"SUM(BS47:BS51)*'C-Values and Rates'!BS33","v":114624.19533413084},{"$f":"SUM(BT47:BT51)*'C-Values and Rates'!BT33","v":111194.83967261812},{"$f":"SUM(BU47:BU51)*'C-Values and Rates'!BU33","v":107868.08984293064},{"$f":"SUM(BV47:BV51)*'C-Values and Rates'!BV33","v":104640.87573140895},{"$f":"SUM(BW47:BW51)*'C-Values and Rates'!BW33","v":101510.21909135688},{"$f":"SUM(BX47:BX51)*'C-Values and Rates'!BX33","v":0},{"$f":"SUM(BY47:BY51)*'C-Values and Rates'!BY33","v":0},{"$f":"SUM(BZ47:BZ51)*'C-Values and Rates'!BZ33","v":0},{"$f":"SUM(CA47:CA51)*'C-Values and Rates'!CA33","v":0},{"$f":"SUM(CB47:CB51)*'C-Values and Rates'!CB33","v":0},{"$f":"SUM(CC47:CC51)*'C-Values and Rates'!CC33","v":0},{"$f":"SUM(CD47:CD51)*'C-Values and Rates'!CD33","v":0},{"$f":"SUM(CE47:CE51)*'C-Values and Rates'!CE33","v":0}]
[]
[null,null,null,"Change in Vehicle Operating Costs",null,null,null,27846279.4455247,null,"£, 2023 Present Values",{"$f":"SUM(K44,K53)","v":0},{"$f":"SUM(L44,L53)","v":0},0,0,0,1113373.1881002218,1070947.5942665352,1026092.6946999423,986443.39312709752,949369.91279908211,913575.54396237293,878337.2943934442,846243.99131987011,815361.30253253318,785087.98067994532,757000.23458219832,730582.00033520604,704476.58572380175,679422.09147562832,655064.70913041849,631761.65012006252,609329.20925337332,587522.0390225884,566432.94283487462,546341.26153345732,526915.31422592944,508222.01466287521,490308.29786699556,473301.08677782747,456883.94820594147,441036.40434850479,425738.68823033711,410971.7190238841,396684.92397632508,384878.76750567264,373424.05389639927,362310.31951599754,351527.41232663376,341065.48260455613,330914.97393596778,321066.61448112549,311511.40849867318,302240.62812245637,293245.80538329558,284518.72446841979,276051.41421148012,267836.14080627228,259865.40073750488,252131.91392214497,244628.61705506936,237348.65715293176,230285.38529034352,223432.35052263667,216783.29398965021,210332.14319514827,204073.00645663546,198000.16752049484,192108.08033752214,186391.36399407778,180844.79779422155,175463.31648833054,170242.00564383762,165176.0971538556,160260.96487958022,155492.12042248569,{"$f":"SUM(BX44,BX53)","v":0},0,0,{"$f":"SUM(CA44,CA53)","v":0},0,0,0,0]
[]
[null,null,"External Impacts"]
[]
[null,null,null,"Congestion",null,null,null,{"$f":"SUM(K59:CE59)","v":284744011.15155584},null,"£, 2023 prices",{"$f":"('C-Daily Impacts'!K86*K$19+'C-Daily Impacts'!K95*K$20+'C-Daily Impacts'!K104*K$21+'C-Daily Impacts'!K113*K$21+'C-Daily Impacts'!K122*K$22)*K$14","v":0},{"$f":"('C-Daily Impacts'!L86*L$19+'C-Daily Impacts'!L95*L$20+'C-Daily Impacts'!L104*L$21+'C-Daily Impacts'!L113*L$21+'C-Daily Impacts'!L122*L$22)*L$14","v":0},{"$f":"('C-Daily Impacts'!M86*M$19+'C-Daily Impacts'!M95*M$20+'C-Daily Impacts'!M104*M$21+'C-Daily Impacts'!M113*M$21+'C-Daily Impacts'!M122*M$22)*M$14","v":0},{"$f":"('C-Daily Impacts'!N86*N$19+'C-Daily Impacts'!N95*N$20+'C-Daily Impacts'!N104*N$21+'C-Daily Impacts'!N113*N$21+'C-Daily Impacts'!N122*N$22)*N$14","v":0},{"$f":"('C-Daily Impacts'!O86*O$19+'C-Daily Impacts'!O95*O$20+'C-Daily Impacts'!O104*O$21+'C-Daily Impacts'!O113*O$21+'C-Daily Impacts'!O122*O$22)*O$14","v":0},{"$f":"('C-Daily Impacts'!P86*P$19+'C-Daily Impacts'!P95*P$20+'C-Daily Impacts'!P104*P$21+'C-Daily Impacts'!P113*P$21+'C-Daily Impacts'!P122*P$22)*P$14","v":3792171.6169594089},{"$f":"('C-Daily Impacts'!Q86*Q$19+'C-Daily Impacts'!Q95*Q$20+'C-Daily Impacts'!Q104*Q$21+'C-Daily Impacts'!Q113*Q$21+'C-Daily Impacts'!Q122*Q$22)*Q$14","v":3822665.526572993},{"$f":"('C-Daily Impacts'!R86*R$19+'C-Daily Impacts'!R95*R$20+'C-Daily Impacts'!R104*R$21+'C-Daily Impacts'!R113*R$21+'C-Daily Impacts'!R122*R$22)*R$14","v":3853405.7273600847},{"$f":"('C-Daily Impacts'!S86*S$19+'C-Daily Impacts'!S95*S$20+'C-Daily Impacts'!S104*S$21+'C-Daily Impacts'!S113*S$21+'C-Daily Impacts'!S122*S$22)*S$14","v":3848670.1512150778},{"$f":"('C-Daily Impacts'!T86*T$19+'C-Daily Impacts'!T95*T$20+'C-Daily Impacts'!T104*T$21+'C-Daily Impacts'!T113*T$21+'C-Daily Impacts'!T122*T$22)*T$14","v":3843940.6322808671},{"$f":"('C-Daily Impacts'!U86*U$19+'C-Daily Impacts'!U95*U$20+'C-Daily Impacts'!U104*U$21+'C-Daily Impacts'!U113*U$21+'C-Daily Impacts'!U122*U$22)*U$14","v":3839217.1626000125},{"$f":"('C-Daily Impacts'!V86*V$19+'C-Daily Impacts'!V95*V$20+'C-Daily Impacts'!V104*V$21+'C-Daily Impacts'!V113*V$21+'C-Daily Impacts'!V122*V$22)*V$14","v":3834499.7342257095},{"$f":"('C-Daily Impacts'!W86*W$19+'C-Daily Impacts'!W95*W$20+'C-Daily Impacts'!W104*W$21+'C-Daily Impacts'!W113*W$21+'C-Daily Impacts'!W122*W$22)*W$14","v":3829788.3392217709},{"$f":"('C-Daily Impacts'!X86*X$19+'C-Daily Impacts'!X95*X$20+'C-Daily Impacts'!X104*X$21+'C-Daily Impacts'!X113*X$21+'C-Daily Impacts'!X122*X$22)*X$14","v":3896007.072710502},{"$f":"('C-Daily Impacts'!Y86*Y$19+'C-Daily Impacts'!Y95*Y$20+'C-Daily Impacts'!Y104*Y$21+'C-Daily Impacts'!Y113*Y$21+'C-Daily Impacts'!Y122*Y$22)*Y$14","v":3963373.2795097604},{"$f":"('C-Daily Impacts'!Z86*Z$19+'C-Daily Impacts'!Z95*Z$20+'C-Daily Impacts'!Z104*Z$21+'C-Daily Impacts'!Z113*Z$21+'C-Daily Impacts'!Z122*Z$22)*Z$14","v":4031906.8895887625},{"$f":"('C-Daily Impacts'!AA86*AA$19+'C-Daily Impacts'!AA95*AA$20+'C-Daily Impacts'!AA104*AA$21+'C-Daily Impacts'!AA113*AA$21+'C-Daily Impacts'!AA122*AA$22)*AA$14","v":4101628.179906847},{"$f":"('C-Daily Impacts'!AB86*AB$19+'C-Daily Impacts'!AB95*AB$20+'C-Daily Impacts'!AB104*AB$21+'C-Daily Impacts'!AB113*AB$21+'C-Daily Impacts'!AB122*AB$22)*AB$14","v":4172557.7804698725},{"$f":"('C-Daily Impacts'!AC86*AC$19+'C-Daily Impacts'!AC95*AC$20+'C-Daily Impacts'!AC104*AC$21+'C-Daily Impacts'!AC113*AC$21+'C-Daily Impacts'!AC122*AC$22)*AC$14","v":4196457.2956645023},{"$f":"('C-Daily Impacts'!AD86*AD$19+'C-Daily Impacts'!AD95*AD$20+'C-Daily Impacts'!AD104*AD$21+'C-Daily Impacts'!AD113*AD$21+'C-Daily Impacts'!AD122*AD$22)*AD$14","v":4220496.1997527815},{"$f":"('C-Daily Impacts'!AE86*AE$19+'C-Daily Impacts'!AE95*AE$20+'C-Daily Impacts'!AE104*AE$21+'C-Daily Impacts'!AE113*AE$21+'C-Daily Impacts'!AE122*AE$22)*AE$14","v":4244675.3220098987},{"$f":"('C-Daily Impacts'!AF86*AF$19+'C-Daily Impacts'!AF95*AF$20+'C-Daily Impacts'!AF104*AF$21+'C-Daily Impacts'!AF113*AF$21+'C-Daily Impacts'!AF122*AF$22)*AF$14","v":4268995.4967494151},{"$f":"('C-Daily Impacts'!AG86*AG$19+'C-Daily Impacts'!AG95*AG$20+'C-Daily Impacts'!AG104*AG$21+'C-Daily Impacts'!AG113*AG$21+'C-Daily Impacts'!AG122*AG$22)*AG$14","v":4293457.563354535},{"$f":"('C-Daily Impacts'!AH86*AH$19+'C-Daily Impacts'!AH95*AH$20+'C-Daily Impacts'!AH104*AH$21+'C-Daily Impacts'!AH113*AH$21+'C-Daily Impacts'!AH122*AH$22)*AH$14","v":4330957.2288112286},{"$f":"('C-Daily Impacts'!AI86*AI$19+'C-Daily Impacts'!AI95*AI$20+'C-Daily Impacts'!AI104*AI$21+'C-Daily Impacts'!AI113*AI$21+'C-Daily Impacts'!AI122*AI$22)*AI$14","v":4368787.5208106562},{"$f":"('C-Daily Impacts'!AJ86*AJ$19+'C-Daily Impacts'!AJ95*AJ$20+'C-Daily Impacts'!AJ104*AJ$21+'C-Daily Impacts'!AJ113*AJ$21+'C-Daily Impacts'!AJ122*AJ$22)*AJ$14","v":4406951.3843003549},{"$f":"('C-Daily Impacts'!AK86*AK$19+'C-Daily Impacts'!AK95*AK$20+'C-Daily Impacts'!AK104*AK$21+'C-Daily Impacts'!AK113*AK$21+'C-Daily Impacts'!AK122*AK$22)*AK$14","v":4445451.7907444621},{"$f":"('C-Daily Impacts'!AL86*AL$19+'C-Daily Impacts'!AL95*AL$20+'C-Daily Impacts'!AL104*AL$21+'C-Daily Impacts'!AL113*AL$21+'C-Daily Impacts'!AL122*AL$22)*AL$14","v":4484291.738365192},{"$f":"('C-Daily Impacts'!AM86*AM$19+'C-Daily Impacts'!AM95*AM$20+'C-Daily Impacts'!AM104*AM$21+'C-Daily Impacts'!AM113*AM$21+'C-Daily Impacts'!AM122*AM$22)*AM$14","v":4554850.0753403306},{"$f":"('C-Daily Impacts'!AN86*AN$19+'C-Daily Impacts'!AN95*AN$20+'C-Daily Impacts'!AN104*AN$21+'C-Daily Impacts'!AN113*AN$21+'C-Daily Impacts'!AN122*AN$22)*AN$14","v":4626519.9459764883},{"$f":"('C-Daily Impacts'!AO86*AO$19+'C-Daily Impacts'!AO95*AO$20+'C-Daily Impacts'!AO104*AO$21+'C-Daily Impacts'!AO113*AO$21+'C-Daily Impacts'!AO122*AO$22)*AO$14","v":4699318.8824392688},{"$f":"('C-Daily Impacts'!AP86*AP$19+'C-Daily Impacts'!AP95*AP$20+'C-Daily Impacts'!AP104*AP$21+'C-Daily Impacts'!AP113*AP$21+'C-Daily Impacts'!AP122*AP$22)*AP$14","v":4773264.6937830392},{"$f":"('C-Daily Impacts'!AQ86*AQ$19+'C-Daily Impacts'!AQ95*AQ$20+'C-Daily Impacts'!AQ104*AQ$21+'C-Daily Impacts'!AQ113*AQ$21+'C-Daily Impacts'!AQ122*AQ$22)*AQ$14","v":4848375.4703296684},{"$f":"('C-Daily Impacts'!AR86*AR$19+'C-Daily Impacts'!AR95*AR$20+'C-Daily Impacts'!AR104*AR$21+'C-Daily Impacts'!AR113*AR$21+'C-Daily Impacts'!AR122*AR$22)*AR$14","v":4923789.0705624325},{"$f":"('C-Daily Impacts'!AS86*AS$19+'C-Daily Impacts'!AS95*AS$20+'C-Daily Impacts'!AS104*AS$21+'C-Daily Impacts'!AS113*AS$21+'C-Daily Impacts'!AS122*AS$22)*AS$14","v":5000376.1315394547},{"$f":"('C-Daily Impacts'!AT86*AT$19+'C-Daily Impacts'!AT95*AT$20+'C-Daily Impacts'!AT104*AT$21+'C-Daily Impacts'!AT113*AT$21+'C-Daily Impacts'!AT122*AT$22)*AT$14","v":5078154.919806743},{"$f":"('C-Daily Impacts'!AU86*AU$19+'C-Daily Impacts'!AU95*AU$20+'C-Daily Impacts'!AU104*AU$21+'C-Daily Impacts'!AU113*AU$21+'C-Daily Impacts'!AU122*AU$22)*AU$14","v":5157143.9863673775},{"$f":"('C-Daily Impacts'!AV86*AV$19+'C-Daily Impacts'!AV95*AV$20+'C-Daily Impacts'!AV104*AV$21+'C-Daily Impacts'!AV113*AV$21+'C-Daily Impacts'!AV122*AV$22)*AV$14","v":5237362.1711130347},{"$f":"('C-Daily Impacts'!AW86*AW$19+'C-Daily Impacts'!AW95*AW$20+'C-Daily Impacts'!AW104*AW$21+'C-Daily Impacts'!AW113*AW$21+'C-Daily Impacts'!AW122*AW$22)*AW$14","v":5238271.3265031753},{"$f":"('C-Daily Impacts'!AX86*AX$19+'C-Daily Impacts'!AX95*AX$20+'C-Daily Impacts'!AX104*AX$21+'C-Daily Impacts'!AX113*AX$21+'C-Daily Impacts'!AX122*AX$22)*AX$14","v":5239181.1088565709},{"$f":"('C-Daily Impacts'!AY86*AY$19+'C-Daily Impacts'!AY95*AY$20+'C-Daily Impacts'!AY104*AY$21+'C-Daily Impacts'!AY113*AY$21+'C-Daily Impacts'!AY122*AY$22)*AY$14","v":5240091.5186055824},{"$f":"('C-Daily Impacts'!AZ86*AZ$19+'C-Daily Impacts'!AZ95*AZ$20+'C-Daily Impacts'!AZ104*AZ$21+'C-Daily Impacts'!AZ113*AZ$21+'C-Daily Impacts'!AZ122*AZ$22)*AZ$14","v":5241002.5561828688},{"$f":"('C-Daily Impacts'!BA86*BA$19+'C-Daily Impacts'!BA95*BA$20+'C-Daily Impacts'!BA104*BA$21+'C-Daily Impacts'!BA113*BA$21+'C-Daily Impacts'!BA122*BA$22)*BA$14","v":5241914.2220213879},{"$f":"('C-Daily Impacts'!BB86*BB$19+'C-Daily Impacts'!BB95*BB$20+'C-Daily Impacts'!BB104*BB$21+'C-Daily Impacts'!BB113*BB$21+'C-Daily Impacts'!BB122*BB$22)*BB$14","v":5242826.5165543938},{"$f":"('C-Daily Impacts'!BC86*BC$19+'C-Daily Impacts'!BC95*BC$20+'C-Daily Impacts'!BC104*BC$21+'C-Daily Impacts'!BC113*BC$21+'C-Daily Impacts'!BC122*BC$22)*BC$14","v":5243739.4402154423},{"$f":"('C-Daily Impacts'!BD86*BD$19+'C-Daily Impacts'!BD95*BD$20+'C-Daily Impacts'!BD104*BD$21+'C-Daily Impacts'!BD113*BD$21+'C-Daily Impacts'!BD122*BD$22)*BD$14","v":5244652.9934383854},{"$f":"('C-Daily Impacts'!BE86*BE$19+'C-Daily Impacts'!BE95*BE$20+'C-Daily Impacts'!BE104*BE$21+'C-Daily Impacts'!BE113*BE$21+'C-Daily Impacts'!BE122*BE$22)*BE$14","v":5245567.1766573768},{"$f":"('C-Daily Impacts'!BF86*BF$19+'C-Daily Impacts'!BF95*BF$20+'C-Daily Impacts'!BF104*BF$21+'C-Daily Impacts'!BF113*BF$21+'C-Daily Impacts'!BF122*BF$22)*BF$14","v":5246481.9903068691},{"$f":"('C-Daily Impacts'!BG86*BG$19+'C-Daily Impacts'!BG95*BG$20+'C-Daily Impacts'!BG104*BG$21+'C-Daily Impacts'!BG113*BG$21+'C-Daily Impacts'!BG122*BG$22)*BG$14","v":5247397.4348216113},{"$f":"('C-Daily Impacts'!BH86*BH$19+'C-Daily Impacts'!BH95*BH$20+'C-Daily Impacts'!BH104*BH$21+'C-Daily Impacts'!BH113*BH$21+'C-Daily Impacts'!BH122*BH$22)*BH$14","v":5248313.5106366575},{"$f":"('C-Daily Impacts'!BI86*BI$19+'C-Daily Impacts'!BI95*BI$20+'C-Daily Impacts'!BI104*BI$21+'C-Daily Impacts'!BI113*BI$21+'C-Daily Impacts'!BI122*BI$22)*BI$14","v":5249230.2181873582},{"$f":"('C-Daily Impacts'!BJ86*BJ$19+'C-Daily Impacts'!BJ95*BJ$20+'C-Daily Impacts'!BJ104*BJ$21+'C-Daily Impacts'!BJ113*BJ$21+'C-Daily Impacts'!BJ122*BJ$22)*BJ$14","v":5250147.5579093639},{"$f":"('C-Daily Impacts'!BK86*BK$19+'C-Daily Impacts'!BK95*BK$20+'C-Daily Impacts'!BK104*BK$21+'C-Daily Impacts'!BK113*BK$21+'C-Daily Impacts'!BK122*BK$22)*BK$14","v":5251065.5302386284},{"$f":"('C-Daily Impacts'!BL86*BL$19+'C-Daily Impacts'!BL95*BL$20+'C-Daily Impacts'!BL104*BL$21+'C-Daily Impacts'!BL113*BL$21+'C-Daily Impacts'!BL122*BL$22)*BL$14","v":5251984.1356114037},{"$f":"('C-Daily Impacts'!BM86*BM$19+'C-Daily Impacts'!BM95*BM$20+'C-Daily Impacts'!BM104*BM$21+'C-Daily Impacts'!BM113*BM$21+'C-Daily Impacts'!BM122*BM$22)*BM$14","v":5252903.3744642437},{"$f":"('C-Daily Impacts'!BN86*BN$19+'C-Daily Impacts'!BN95*BN$20+'C-Daily Impacts'!BN104*BN$21+'C-Daily Impacts'!BN113*BN$21+'C-Daily Impacts'!BN122*BN$22)*BN$14","v":5253823.2472340018},{"$f":"('C-Daily Impacts'!BO86*BO$19+'C-Daily Impacts'!BO95*BO$20+'C-Daily Impacts'!BO104*BO$21+'C-Daily Impacts'!BO113*BO$21+'C-Daily Impacts'!BO122*BO$22)*BO$14","v":5254743.7543578353},{"$f":"('C-Daily Impacts'!BP86*BP$19+'C-Daily Impacts'!BP95*BP$20+'C-Daily Impacts'!BP104*BP$21+'C-Daily Impacts'!BP113*BP$21+'C-Daily Impacts'!BP122*BP$22)*BP$14","v":5255664.8962732013},{"$f":"('C-Daily Impacts'!BQ86*BQ$19+'C-Daily Impacts'!BQ95*BQ$20+'C-Daily Impacts'!BQ104*BQ$21+'C-Daily Impacts'!BQ113*BQ$21+'C-Daily Impacts'!BQ122*BQ$22)*BQ$14","v":5256586.6734178578},{"$f":"('C-Daily Impacts'!BR86*BR$19+'C-Daily Impacts'!BR95*BR$20+'C-Daily Impacts'!BR104*BR$21+'C-Daily Impacts'!BR113*BR$21+'C-Daily Impacts'!BR122*BR$22)*BR$14","v":5257509.0862298664},{"$f":"('C-Daily Impacts'!BS86*BS$19+'C-Daily Impacts'!BS95*BS$20+'C-Daily Impacts'!BS104*BS$21+'C-Daily Impacts'!BS113*BS$21+'C-Daily Impacts'!BS122*BS$22)*BS$14","v":5258432.1351475911},{"$f":"('C-Daily Impacts'!BT86*BT$19+'C-Daily Impacts'!BT95*BT$20+'C-Daily Impacts'!BT104*BT$21+'C-Daily Impacts'!BT113*BT$21+'C-Daily Impacts'!BT122*BT$22)*BT$14","v":5259355.8206096953},{"$f":"('C-Daily Impacts'!BU86*BU$19+'C-Daily Impacts'!BU95*BU$20+'C-Daily Impacts'!BU104*BU$21+'C-Daily Impacts'!BU113*BU$21+'C-Daily Impacts'!BU122*BU$22)*BU$14","v":5260280.1430551484},{"$f":"('C-Daily Impacts'!BV86*BV$19+'C-Daily Impacts'!BV95*BV$20+'C-Daily Impacts'!BV104*BV$21+'C-Daily Impacts'!BV113*BV$21+'C-Daily Impacts'!BV122*BV$22)*BV$14","v":5261205.10292322},{"$f":"('C-Daily Impacts'!BW86*BW$19+'C-Daily Impacts'!BW95*BW$20+'C-Daily Impacts'!BW104*BW$21+'C-Daily Impacts'!BW113*BW$21+'C-Daily Impacts'!BW122*BW$22)*BW$14","v":5262130.7006534841},{"$f":"('C-Daily Impacts'!BX86*BX$19+'C-Daily Impacts'!BX95*BX$20+'C-Daily Impacts'!BX104*BX$21+'C-Daily Impacts'!BX113*BX$21+'C-Daily Impacts'!BX122*BX$22)*BX$14","v":0},{"$f":"('C-Daily Impacts'!BY86*BY$19+'C-Daily Impacts'!BY95*BY$20+'C-Daily Impacts'!BY104*BY$21+'C-Daily Impacts'!BY113*BY$21+'C-Daily Impacts'!BY122*BY$22)*BY$14","v":0},{"$f":"('C-Daily Impacts'!BZ86*BZ$19+'C-Daily Impacts'!BZ95*BZ$20+'C-Daily Impacts'!BZ104*BZ$21+'C-Daily Impacts'!BZ113*BZ$21+'C-Daily Impacts'!BZ122*BZ$22)*BZ$14","v":0},{"$f":"('C-Daily Impacts'!CA86*CA$19+'C-Daily Impacts'!CA95*CA$20+'C-Daily Impacts'!CA104*CA$21+'C-Daily Impacts'!CA113*CA$21+'C-Daily Impacts'!CA122*CA$22)*CA$14","v":0},{"$f":"('C-Daily Impacts'!CB86*CB$19+'C-Daily Impacts'!CB95*CB$20+'C-Daily Impacts'!CB104*CB$21+'C-Daily Impacts'!CB113*CB$21+'C-Daily Impacts'!CB122*CB$22)*CB$14","v":0},{"$f":"('C-Daily Impacts'!CC86*CC$19+'C-Daily Impacts'!CC95*CC$20+'C-Daily Impacts'!CC104*CC$21+'C-Daily Impacts'!CC113*CC$21+'C-Daily Impacts'!CC122*CC$22)*CC$14","v":0},{"$f":"('C-Daily Impacts'!CD86*CD$19+'C-Daily Impacts'!CD95*CD$20+'C-Daily Impacts'!CD104*CD$21+'C-Daily Impacts'!CD113*CD$21+'C-Daily Impacts'!CD122*CD$22)*CD$14","v":0},{"$f":"('C-Daily Impacts'!CE86*CE$19+'C-Daily Impacts'!CE95*CE$20+'C-Daily Impacts'!CE104*CE$21+'C-Daily Impacts'!CE113*CE$21+'C-Daily Impacts'!CE122*CE$22)*CE$14","v":0}]
[null,null,null,"Infrastructure",null,null,null,3976002.7070100317,null,"£, 2023 prices",{"$f":"('C-Daily Impacts'!K87*K$19+'C-Daily Impacts'!K96*K$20+'C-Daily Impacts'!K105*K$21+'C-Daily Impacts'!K114*K$21+'C-Daily Impacts'!K123*K$22)*K$14","v":0},{"$f":"('C-Daily Impacts'!L87*L$19+'C-Daily Impacts'!L96*L$20+'C-Daily Impacts'!L105*L$21+'C-Daily Impacts'!L114*L$21+'C-Daily Impacts'!L123*L$22)*L$14","v":0},{"$f":"('C-Daily Impacts'!M87*M$19+'C-Daily Impacts'!M96*M$20+'C-Daily Impacts'!M105*M$21+'C-Daily Impacts'!M114*M$21+'C-Daily Impacts'!M123*M$22)*M$14","v":0},{"$f":"('C-Daily Impacts'!N87*N$19+'C-Daily Impacts'!N96*N$20+'C-Daily Impacts'!N105*N$21+'C-Daily Impacts'!N114*N$21+'C-Daily Impacts'!N123*N$22)*N$14","v":0},{"$f":"('C-Daily Impacts'!O87*O$19+'C-Daily Impacts'!O96*O$20+'C-Daily Impacts'!O105*O$21+'C-Daily Impacts'!O114*O$21+'C-Daily Impacts'!O123*O$22)*O$14","v":0},{"$f":"('C-Daily Impacts'!P87*P$19+'C-Daily Impacts'!P96*P$20+'C-Daily Impacts'!P105*P$21+'C-Daily Impacts'!P114*P$21+'C-Daily Impacts'!P123*P$22)*P$14","v":45460.632938255221},{"$f":"('C-Daily Impacts'!Q87*Q$19+'C-Daily Impacts'!Q96*Q$20+'C-Daily Impacts'!Q105*Q$21+'C-Daily Impacts'!Q114*Q$21+'C-Daily Impacts'!Q123*Q$22)*Q$14","v":46161.161800879199},{"$f":"('C-Daily Impacts'!R87*R$19+'C-Daily Impacts'!R96*R$20+'C-Daily Impacts'!R105*R$21+'C-Daily Impacts'!R114*R$21+'C-Daily Impacts'!R123*R$22)*R$14","v":46872.48551292895},{"$f":"('C-Daily Impacts'!S87*S$19+'C-Daily Impacts'!S96*S$20+'C-Daily Impacts'!S105*S$21+'C-Daily Impacts'!S114*S$21+'C-Daily Impacts'!S123*S$22)*S$14","v":47610.849149119764},{"$f":"('C-Daily Impacts'!T87*T$19+'C-Daily Impacts'!T96*T$20+'C-Daily Impacts'!T105*T$21+'C-Daily Impacts'!T114*T$21+'C-Daily Impacts'!T123*T$22)*T$14","v":48360.843934230536},{"$f":"('C-Daily Impacts'!U87*U$19+'C-Daily Impacts'!U96*U$20+'C-Daily Impacts'!U105*U$21+'C-Daily Impacts'!U114*U$21+'C-Daily Impacts'!U123*U$22)*U$14","v":49122.653089127714},{"$f":"('C-Daily Impacts'!V87*V$19+'C-Daily Impacts'!V96*V$20+'C-Daily Impacts'!V105*V$21+'C-Daily Impacts'!V114*V$21+'C-Daily Impacts'!V123*V$22)*V$14","v":49896.462720883297},{"$f":"('C-Daily Impacts'!W87*W$19+'C-Daily Impacts'!W96*W$20+'C-Daily Impacts'!W105*W$21+'C-Daily Impacts'!W114*W$21+'C-Daily Impacts'!W123*W$22)*W$14","v":50682.461868240011},{"$f":"('C-Daily Impacts'!X87*X$19+'C-Daily Impacts'!X96*X$20+'C-Daily Impacts'!X105*X$21+'C-Daily Impacts'!X114*X$21+'C-Daily Impacts'!X123*X$22)*X$14","v":51570.809325509035},{"$f":"('C-Daily Impacts'!Y87*Y$19+'C-Daily Impacts'!Y96*Y$20+'C-Daily Impacts'!Y105*Y$21+'C-Daily Impacts'!Y114*Y$21+'C-Daily Impacts'!Y123*Y$22)*Y$14","v":52474.727478749563},{"$f":"('C-Daily Impacts'!Z87*Z$19+'C-Daily Impacts'!Z96*Z$20+'C-Daily Impacts'!Z105*Z$21+'C-Daily Impacts'!Z114*Z$21+'C-Daily Impacts'!Z123*Z$22)*Z$14","v":53394.489246593846},{"$f":"('C-Daily Impacts'!AA87*AA$19+'C-Daily Impacts'!AA96*AA$20+'C-Daily Impacts'!AA105*AA$21+'C-Daily Impacts'!AA114*AA$21+'C-Daily Impacts'!AA123*AA$22)*AA$14","v":54330.372331312632},{"$f":"('C-Daily Impacts'!AB87*AB$19+'C-Daily Impacts'!AB96*AB$20+'C-Daily Impacts'!AB105*AB$21+'C-Daily Impacts'!AB114*AB$21+'C-Daily Impacts'!AB123*AB$22)*AB$14","v":55282.659302661348},{"$f":"('C-Daily Impacts'!AC87*AC$19+'C-Daily Impacts'!AC96*AC$20+'C-Daily Impacts'!AC105*AC$21+'C-Daily Impacts'!AC114*AC$21+'C-Daily Impacts'!AC123*AC$22)*AC$14","v":56155.785182157568},{"$f":"('C-Daily Impacts'!AD87*AD$19+'C-Daily Impacts'!AD96*AD$20+'C-Daily Impacts'!AD105*AD$21+'C-Daily Impacts'!AD114*AD$21+'C-Daily Impacts'!AD123*AD$22)*AD$14","v":57042.701078470353},{"$f":"('C-Daily Impacts'!AE87*AE$19+'C-Daily Impacts'!AE96*AE$20+'C-Daily Impacts'!AE105*AE$21+'C-Daily Impacts'!AE114*AE$21+'C-Daily Impacts'!AE123*AE$22)*AE$14","v":57943.62478901953},{"$f":"('C-Daily Impacts'!AF87*AF$19+'C-Daily Impacts'!AF96*AF$20+'C-Daily Impacts'!AF105*AF$21+'C-Daily Impacts'!AF114*AF$21+'C-Daily Impacts'!AF123*AF$22)*AF$14","v":58858.777551084233},{"$f":"('C-Daily Impacts'!AG87*AG$19+'C-Daily Impacts'!AG96*AG$20+'C-Daily Impacts'!AG105*AG$21+'C-Daily Impacts'!AG114*AG$21+'C-Daily Impacts'!AG123*AG$22)*AG$14","v":59788.38409613134},{"$f":"('C-Daily Impacts'!AH87*AH$19+'C-Daily Impacts'!AH96*AH$20+'C-Daily Impacts'!AH105*AH$21+'C-Daily Impacts'!AH114*AH$21+'C-Daily Impacts'!AH123*AH$22)*AH$14","v":60691.206812085598},{"$f":"('C-Daily Impacts'!AI87*AI$19+'C-Daily Impacts'!AI96*AI$20+'C-Daily Impacts'!AI105*AI$21+'C-Daily Impacts'!AI114*AI$21+'C-Daily Impacts'!AI123*AI$22)*AI$14","v":61607.662424609356},{"$f":"('C-Daily Impacts'!AJ87*AJ$19+'C-Daily Impacts'!AJ96*AJ$20+'C-Daily Impacts'!AJ105*AJ$21+'C-Daily Impacts'!AJ114*AJ$21+'C-Daily Impacts'!AJ123*AJ$22)*AJ$14","v":62537.956794571735},{"$f":"('C-Daily Impacts'!AK87*AK$19+'C-Daily Impacts'!AK96*AK$20+'C-Daily Impacts'!AK105*AK$21+'C-Daily Impacts'!AK114*AK$21+'C-Daily Impacts'!AK123*AK$22)*AK$14","v":63482.298891403167},{"$f":"('C-Daily Impacts'!AL87*AL$19+'C-Daily Impacts'!AL96*AL$20+'C-Daily Impacts'!AL105*AL$21+'C-Daily Impacts'!AL114*AL$21+'C-Daily Impacts'!AL123*AL$22)*AL$14","v":64440.900840035909},{"$f":"('C-Daily Impacts'!AM87*AM$19+'C-Daily Impacts'!AM96*AM$20+'C-Daily Impacts'!AM105*AM$21+'C-Daily Impacts'!AM114*AM$21+'C-Daily Impacts'!AM123*AM$22)*AM$14","v":65363.901903234524},{"$f":"('C-Daily Impacts'!AN87*AN$19+'C-Daily Impacts'!AN96*AN$20+'C-Daily Impacts'!AN105*AN$21+'C-Daily Impacts'!AN114*AN$21+'C-Daily Impacts'!AN123*AN$22)*AN$14","v":66300.123311765958},{"$f":"('C-Daily Impacts'!AO87*AO$19+'C-Daily Impacts'!AO96*AO$20+'C-Daily Impacts'!AO105*AO$21+'C-Daily Impacts'!AO114*AO$21+'C-Daily Impacts'!AO123*AO$22)*AO$14","v":67249.754423516963},{"$f":"('C-Daily Impacts'!AP87*AP$19+'C-Daily Impacts'!AP96*AP$20+'C-Daily Impacts'!AP105*AP$21+'C-Daily Impacts'!AP114*AP$21+'C-Daily Impacts'!AP123*AP$22)*AP$14","v":68212.987308588417},{"$f":"('C-Daily Impacts'!AQ87*AQ$19+'C-Daily Impacts'!AQ96*AQ$20+'C-Daily Impacts'!AQ105*AQ$21+'C-Daily Impacts'!AQ114*AQ$21+'C-Daily Impacts'!AQ123*AQ$22)*AQ$14","v":69190.01678814317},{"$f":"('C-Daily Impacts'!AR87*AR$19+'C-Daily Impacts'!AR96*AR$20+'C-Daily Impacts'!AR105*AR$21+'C-Daily Impacts'!AR114*AR$21+'C-Daily Impacts'!AR123*AR$22)*AR$14","v":70178.073650974155},{"$f":"('C-Daily Impacts'!AS87*AS$19+'C-Daily Impacts'!AS96*AS$20+'C-Daily Impacts'!AS105*AS$21+'C-Daily Impacts'!AS114*AS$21+'C-Daily Impacts'!AS123*AS$22)*AS$14","v":71180.240300296107},{"$f":"('C-Daily Impacts'!AT87*AT$19+'C-Daily Impacts'!AT96*AT$20+'C-Daily Impacts'!AT105*AT$21+'C-Daily Impacts'!AT114*AT$21+'C-Daily Impacts'!AT123*AT$22)*AT$14","v":72196.718228636775},{"$f":"('C-Daily Impacts'!AU87*AU$19+'C-Daily Impacts'!AU96*AU$20+'C-Daily Impacts'!AU105*AU$21+'C-Daily Impacts'!AU114*AU$21+'C-Daily Impacts'!AU123*AU$22)*AU$14","v":73227.711805905332},{"$f":"('C-Daily Impacts'!AV87*AV$19+'C-Daily Impacts'!AV96*AV$20+'C-Daily Impacts'!AV105*AV$21+'C-Daily Impacts'!AV114*AV$21+'C-Daily Impacts'!AV123*AV$22)*AV$14","v":74273.428320482548},{"$f":"('C-Daily Impacts'!AW87*AW$19+'C-Daily Impacts'!AW96*AW$20+'C-Daily Impacts'!AW105*AW$21+'C-Daily Impacts'!AW114*AW$21+'C-Daily Impacts'!AW123*AW$22)*AW$14","v":74324.648068969022},{"$f":"('C-Daily Impacts'!AX87*AX$19+'C-Daily Impacts'!AX96*AX$20+'C-Daily Impacts'!AX105*AX$21+'C-Daily Impacts'!AX114*AX$21+'C-Daily Impacts'!AX123*AX$22)*AX$14","v":74375.903139140442},{"$f":"('C-Daily Impacts'!AY87*AY$19+'C-Daily Impacts'!AY96*AY$20+'C-Daily Impacts'!AY105*AY$21+'C-Daily Impacts'!AY114*AY$21+'C-Daily Impacts'!AY123*AY$22)*AY$14","v":74427.193555355057},{"$f":"('C-Daily Impacts'!AZ87*AZ$19+'C-Daily Impacts'!AZ96*AZ$20+'C-Daily Impacts'!AZ105*AZ$21+'C-Daily Impacts'!AZ114*AZ$21+'C-Daily Impacts'!AZ123*AZ$22)*AZ$14","v":74478.519341987805},{"$f":"('C-Daily Impacts'!BA87*BA$19+'C-Daily Impacts'!BA96*BA$20+'C-Daily Impacts'!BA105*BA$21+'C-Daily Impacts'!BA114*BA$21+'C-Daily Impacts'!BA123*BA$22)*BA$14","v":74529.880523430547},{"$f":"('C-Daily Impacts'!BB87*BB$19+'C-Daily Impacts'!BB96*BB$20+'C-Daily Impacts'!BB105*BB$21+'C-Daily Impacts'!BB114*BB$21+'C-Daily Impacts'!BB123*BB$22)*BB$14","v":74581.277124091925},{"$f":"('C-Daily Impacts'!BC87*BC$19+'C-Daily Impacts'!BC96*BC$20+'C-Daily Impacts'!BC105*BC$21+'C-Daily Impacts'!BC114*BC$21+'C-Daily Impacts'!BC123*BC$22)*BC$14","v":74632.709168397429},{"$f":"('C-Daily Impacts'!BD87*BD$19+'C-Daily Impacts'!BD96*BD$20+'C-Daily Impacts'!BD105*BD$21+'C-Daily Impacts'!BD114*BD$21+'C-Daily Impacts'!BD123*BD$22)*BD$14","v":74684.1766807893},{"$f":"('C-Daily Impacts'!BE87*BE$19+'C-Daily Impacts'!BE96*BE$20+'C-Daily Impacts'!BE105*BE$21+'C-Daily Impacts'!BE114*BE$21+'C-Daily Impacts'!BE123*BE$22)*BE$14","v":74735.679685726747},{"$f":"('C-Daily Impacts'!BF87*BF$19+'C-Daily Impacts'!BF96*BF$20+'C-Daily Impacts'!BF105*BF$21+'C-Daily Impacts'!BF114*BF$21+'C-Daily Impacts'!BF123*BF$22)*BF$14","v":74787.218207685844},{"$f":"('C-Daily Impacts'!BG87*BG$19+'C-Daily Impacts'!BG96*BG$20+'C-Daily Impacts'!BG105*BG$21+'C-Daily Impacts'!BG114*BG$21+'C-Daily Impacts'!BG123*BG$22)*BG$14","v":74838.792271159458},{"$f":"('C-Daily Impacts'!BH87*BH$19+'C-Daily Impacts'!BH96*BH$20+'C-Daily Impacts'!BH105*BH$21+'C-Daily Impacts'!BH114*BH$21+'C-Daily Impacts'!BH123*BH$22)*BH$14","v":74890.401900657424},{"$f":"('C-Daily Impacts'!BI87*BI$19+'C-Daily Impacts'!BI96*BI$20+'C-Daily Impacts'!BI105*BI$21+'C-Daily Impacts'!BI114*BI$21+'C-Daily Impacts'!BI123*BI$22)*BI$14","v":74942.04712070644},{"$f":"('C-Daily Impacts'!BJ87*BJ$19+'C-Daily Impacts'!BJ96*BJ$20+'C-Daily Impacts'!BJ105*BJ$21+'C-Daily Impacts'!BJ114*BJ$21+'C-Daily Impacts'!BJ123*BJ$22)*BJ$14","v":74993.727955850103},{"$f":"('C-Daily Impacts'!BK87*BK$19+'C-Daily Impacts'!BK96*BK$20+'C-Daily Impacts'!BK105*BK$21+'C-Daily Impacts'!BK114*BK$21+'C-Daily Impacts'!BK123*BK$22)*BK$14","v":75045.444430649019},{"$f":"('C-Daily Impacts'!BL87*BL$19+'C-Daily Impacts'!BL96*BL$20+'C-Daily Impacts'!BL105*BL$21+'C-Daily Impacts'!BL114*BL$21+'C-Daily Impacts'!BL123*BL$22)*BL$14","v":75097.196569680644},{"$f":"('C-Daily Impacts'!BM87*BM$19+'C-Daily Impacts'!BM96*BM$20+'C-Daily Impacts'!BM105*BM$21+'C-Daily Impacts'!BM114*BM$21+'C-Daily Impacts'!BM123*BM$22)*BM$14","v":75148.984397539403},{"$f":"('C-Daily Impacts'!BN87*BN$19+'C-Daily Impacts'!BN96*BN$20+'C-Daily Impacts'!BN105*BN$21+'C-Daily Impacts'!BN114*BN$21+'C-Daily Impacts'!BN123*BN$22)*BN$14","v":75200.807938836719},{"$f":"('C-Daily Impacts'!BO87*BO$19+'C-Daily Impacts'!BO96*BO$20+'C-Daily Impacts'!BO105*BO$21+'C-Daily Impacts'!BO114*BO$21+'C-Daily Impacts'!BO123*BO$22)*BO$14","v":75252.667218200921},{"$f":"('C-Daily Impacts'!BP87*BP$19+'C-Daily Impacts'!BP96*BP$20+'C-Daily Impacts'!BP105*BP$21+'C-Daily Impacts'!BP114*BP$21+'C-Daily Impacts'!BP123*BP$22)*BP$14","v":75304.562260277424},{"$f":"('C-Daily Impacts'!BQ87*BQ$19+'C-Daily Impacts'!BQ96*BQ$20+'C-Daily Impacts'!BQ105*BQ$21+'C-Daily Impacts'!BQ114*BQ$21+'C-Daily Impacts'!BQ123*BQ$22)*BQ$14","v":75356.493089728523},{"$f":"('C-Daily Impacts'!BR87*BR$19+'C-Daily Impacts'!BR96*BR$20+'C-Daily Impacts'!BR105*BR$21+'C-Daily Impacts'!BR114*BR$21+'C-Daily Impacts'!BR123*BR$22)*BR$14","v":75408.459731233568},{"$f":"('C-Daily Impacts'!BS87*BS$19+'C-Daily Impacts'!BS96*BS$20+'C-Daily Impacts'!BS105*BS$21+'C-Daily Impacts'!BS114*BS$21+'C-Daily Impacts'!BS123*BS$22)*BS$14","v":75460.462209488978},{"$f":"('C-Daily Impacts'!BT87*BT$19+'C-Daily Impacts'!BT96*BT$20+'C-Daily Impacts'!BT105*BT$21+'C-Daily Impacts'!BT114*BT$21+'C-Daily Impacts'!BT123*BT$22)*BT$14","v":75512.50054920814},{"$f":"('C-Daily Impacts'!BU87*BU$19+'C-Daily Impacts'!BU96*BU$20+'C-Daily Impacts'!BU105*BU$21+'C-Daily Impacts'!BU114*BU$21+'C-Daily Impacts'!BU123*BU$22)*BU$14","v":75564.574775121509},{"$f":"('C-Daily Impacts'!BV87*BV$19+'C-Daily Impacts'!BV96*BV$20+'C-Daily Impacts'!BV105*BV$21+'C-Daily Impacts'!BV114*BV$21+'C-Daily Impacts'!BV123*BV$22)*BV$14","v":75616.684911976568},{"$f":"('C-Daily Impacts'!BW87*BW$19+'C-Daily Impacts'!BW96*BW$20+'C-Daily Impacts'!BW105*BW$21+'C-Daily Impacts'!BW114*BW$21+'C-Daily Impacts'!BW123*BW$22)*BW$14","v":75668.830984537897},{"$f":"('C-Daily Impacts'!BX87*BX$19+'C-Daily Impacts'!BX96*BX$20+'C-Daily Impacts'!BX105*BX$21+'C-Daily Impacts'!BX114*BX$21+'C-Daily Impacts'!BX123*BX$22)*BX$14","v":0},{"$f":"('C-Daily Impacts'!BY87*BY$19+'C-Daily Impacts'!BY96*BY$20+'C-Daily Impacts'!BY105*BY$21+'C-Daily Impacts'!BY114*BY$21+'C-Daily Impacts'!BY123*BY$22)*BY$14","v":0},{"$f":"('C-Daily Impacts'!BZ87*BZ$19+'C-Daily Impacts'!BZ96*BZ$20+'C-Daily Impacts'!BZ105*BZ$21+'C-Daily Impacts'!BZ114*BZ$21+'C-Daily Impacts'!BZ123*BZ$22)*BZ$14","v":0},{"$f":"('C-Daily Impacts'!CA87*CA$19+'C-Daily Impacts'!CA96*CA$20+'C-Daily Impacts'!CA105*CA$21+'C-Daily Impacts'!CA114*CA$21+'C-Daily Impacts'!CA123*CA$22)*CA$14","v":0},{"$f":"('C-Daily Impacts'!CB87*CB$19+'C-Daily Impacts'!CB96*CB$20+'C-Daily Impacts'!CB105*CB$21+'C-Daily Impacts'!CB114*CB$21+'C-Daily Impacts'!CB123*CB$22)*CB$14","v":0},{"$f":"('C-Daily Impacts'!CC87*CC$19+'C-Daily Impacts'!CC96*CC$20+'C-Daily Impacts'!CC105*CC$21+'C-Daily Impacts'!CC114*CC$21+'C-Daily Impacts'!CC123*CC$22)*CC$14","v":0},{"$f":"('C-Daily Impacts'!CD87*CD$19+'C-Daily Impacts'!CD96*CD$20+'C-Daily Impacts'!CD105*CD$21+'C-Daily Impacts'!CD114*CD$21+'C-Daily Impacts'!CD123*CD$22)*CD$14","v":0},{"$f":"('C-Daily Impacts'!CE87*CE$19+'C-Daily Impacts'!CE96*CE$20+'C-Daily Impacts'!CE105*CE$21+'C-Daily Impacts'!CE114*CE$21+'C-Daily Impacts'!CE123*CE$22)*CE$14","v":0}]
[null,null,null,"Accident",null,null,null,1765484.6442305129,null,"£, 2023 prices",{"$f":"('C-Daily Impacts'!K88*K$19+'C-Daily Impacts'!K97*K$20+'C-Daily Impacts'!K106*K$21+'C-Daily Impacts'!K115*K$21+'C-Daily Impacts'!K124*K$22)*K$14","v":0},{"$f":"('C-Daily Impacts'!L88*L$19+'C-Daily Impacts'!L97*L$20+'C-Daily Impacts'!L106*L$21+'C-Daily Impacts'!L115*L$21+'C-Daily Impacts'!L124*L$22)*L$14","v":0},{"$f":"('C-Daily Impacts'!M88*M$19+'C-Daily Impacts'!M97*M$20+'C-Daily Impacts'!M106*M$21+'C-Daily Impacts'!M115*M$21+'C-Daily Impacts'!M124*M$22)*M$14","v":0},{"$f":"('C-Daily Impacts'!N88*N$19+'C-Daily Impacts'!N97*N$20+'C-Daily Impacts'!N106*N$21+'C-Daily Impacts'!N115*N$21+'C-Daily Impacts'!N124*N$22)*N$14","v":0},{"$f":"('C-Daily Impacts'!O88*O$19+'C-Daily Impacts'!O97*O$20+'C-Daily Impacts'!O106*O$21+'C-Daily Impacts'!O115*O$21+'C-Daily Impacts'!O124*O$22)*O$14","v":0},{"$f":"('C-Daily Impacts'!P88*P$19+'C-Daily Impacts'!P97*P$20+'C-Daily Impacts'!P106*P$21+'C-Daily Impacts'!P115*P$21+'C-Daily Impacts'!P124*P$22)*P$14","v":17499.044357715451},{"$f":"('C-Daily Impacts'!Q88*Q$19+'C-Daily Impacts'!Q97*Q$20+'C-Daily Impacts'!Q106*Q$21+'C-Daily Impacts'!Q115*Q$21+'C-Daily Impacts'!Q124*Q$22)*Q$14","v":17871.053308766917},{"$f":"('C-Daily Impacts'!R88*R$19+'C-Daily Impacts'!R97*R$20+'C-Daily Impacts'!R106*R$21+'C-Daily Impacts'!R115*R$21+'C-Daily Impacts'!R124*R$22)*R$14","v":18250.970729380108},{"$f":"('C-Daily Impacts'!S88*S$19+'C-Daily Impacts'!S97*S$20+'C-Daily Impacts'!S106*S$21+'C-Daily Impacts'!S115*S$21+'C-Daily Impacts'!S124*S$22)*S$14","v":18626.763102273129},{"$f":"('C-Daily Impacts'!T88*T$19+'C-Daily Impacts'!T97*T$20+'C-Daily Impacts'!T106*T$21+'C-Daily Impacts'!T115*T$21+'C-Daily Impacts'!T124*T$22)*T$14","v":19010.293140719325},{"$f":"('C-Daily Impacts'!U88*U$19+'C-Daily Impacts'!U97*U$20+'C-Daily Impacts'!U106*U$21+'C-Daily Impacts'!U115*U$21+'C-Daily Impacts'!U124*U$22)*U$14","v":19401.720165323703},{"$f":"('C-Daily Impacts'!V88*V$19+'C-Daily Impacts'!V97*V$20+'C-Daily Impacts'!V106*V$21+'C-Daily Impacts'!V115*V$21+'C-Daily Impacts'!V124*V$22)*V$14","v":19801.206777145206},{"$f":"('C-Daily Impacts'!W88*W$19+'C-Daily Impacts'!W97*W$20+'C-Daily Impacts'!W106*W$21+'C-Daily Impacts'!W115*W$21+'C-Daily Impacts'!W124*W$22)*W$14","v":20208.918925242091},{"$f":"('C-Daily Impacts'!X88*X$19+'C-Daily Impacts'!X97*X$20+'C-Daily Impacts'!X106*X$21+'C-Daily Impacts'!X115*X$21+'C-Daily Impacts'!X124*X$22)*X$14","v":20651.362956522862},{"$f":"('C-Daily Impacts'!Y88*Y$19+'C-Daily Impacts'!Y97*Y$20+'C-Daily Impacts'!Y106*Y$21+'C-Daily Impacts'!Y115*Y$21+'C-Daily Impacts'!Y124*Y$22)*Y$14","v":21103.493637620988},{"$f":"('C-Daily Impacts'!Z88*Z$19+'C-Daily Impacts'!Z97*Z$20+'C-Daily Impacts'!Z106*Z$21+'C-Daily Impacts'!Z115*Z$21+'C-Daily Impacts'!Z124*Z$22)*Z$14","v":21565.523043235291},{"$f":"('C-Daily Impacts'!AA88*AA$19+'C-Daily Impacts'!AA97*AA$20+'C-Daily Impacts'!AA106*AA$21+'C-Daily Impacts'!AA115*AA$21+'C-Daily Impacts'!AA124*AA$22)*AA$14","v":22037.667891122706},{"$f":"('C-Daily Impacts'!AB88*AB$19+'C-Daily Impacts'!AB97*AB$20+'C-Daily Impacts'!AB106*AB$21+'C-Daily Impacts'!AB115*AB$21+'C-Daily Impacts'!AB124*AB$22)*AB$14","v":22520.14964375108},{"$f":"('C-Daily Impacts'!AC88*AC$19+'C-Daily Impacts'!AC97*AC$20+'C-Daily Impacts'!AC106*AC$21+'C-Daily Impacts'!AC115*AC$21+'C-Daily Impacts'!AC124*AC$22)*AC$14","v":23011.576324161124},{"$f":"('C-Daily Impacts'!AD88*AD$19+'C-Daily Impacts'!AD97*AD$20+'C-Daily Impacts'!AD106*AD$21+'C-Daily Impacts'!AD115*AD$21+'C-Daily Impacts'!AD124*AD$22)*AD$14","v":23513.726742469855},{"$f":"('C-Daily Impacts'!AE88*AE$19+'C-Daily Impacts'!AE97*AE$20+'C-Daily Impacts'!AE106*AE$21+'C-Daily Impacts'!AE115*AE$21+'C-Daily Impacts'!AE124*AE$22)*AE$14","v":24026.83490826426},{"$f":"('C-Daily Impacts'!AF88*AF$19+'C-Daily Impacts'!AF97*AF$20+'C-Daily Impacts'!AF106*AF$21+'C-Daily Impacts'!AF115*AF$21+'C-Daily Impacts'!AF124*AF$22)*AF$14","v":24551.13993760516},{"$f":"('C-Daily Impacts'!AG88*AG$19+'C-Daily Impacts'!AG97*AG$20+'C-Daily Impacts'!AG106*AG$21+'C-Daily Impacts'!AG115*AG$21+'C-Daily Impacts'!AG124*AG$22)*AG$14","v":25086.886164458825},{"$f":"('C-Daily Impacts'!AH88*AH$19+'C-Daily Impacts'!AH97*AH$20+'C-Daily Impacts'!AH106*AH$21+'C-Daily Impacts'!AH115*AH$21+'C-Daily Impacts'!AH124*AH$22)*AH$14","v":25638.54817542608},{"$f":"('C-Daily Impacts'!AI88*AI$19+'C-Daily Impacts'!AI97*AI$20+'C-Daily Impacts'!AI106*AI$21+'C-Daily Impacts'!AI115*AI$21+'C-Daily Impacts'!AI124*AI$22)*AI$14","v":26202.34126445336},{"$f":"('C-Daily Impacts'!AJ88*AJ$19+'C-Daily Impacts'!AJ97*AJ$20+'C-Daily Impacts'!AJ106*AJ$21+'C-Daily Impacts'!AJ115*AJ$21+'C-Daily Impacts'!AJ124*AJ$22)*AJ$14","v":26778.53219461659},{"$f":"('C-Daily Impacts'!AK88*AK$19+'C-Daily Impacts'!AK97*AK$20+'C-Daily Impacts'!AK106*AK$21+'C-Daily Impacts'!AK115*AK$21+'C-Daily Impacts'!AK124*AK$22)*AK$14","v":27367.393595126392},{"$f":"('C-Daily Impacts'!AL88*AL$19+'C-Daily Impacts'!AL97*AL$20+'C-Daily Impacts'!AL106*AL$21+'C-Daily Impacts'!AL115*AL$21+'C-Daily Impacts'!AL124*AL$22)*AL$14","v":27969.20409032482},{"$f":"('C-Daily Impacts'!AM88*AM$19+'C-Daily Impacts'!AM97*AM$20+'C-Daily Impacts'!AM106*AM$21+'C-Daily Impacts'!AM115*AM$21+'C-Daily Impacts'!AM124*AM$22)*AM$14","v":28563.922591909795},{"$f":"('C-Daily Impacts'!AN88*AN$19+'C-Daily Impacts'!AN97*AN$20+'C-Daily Impacts'!AN106*AN$21+'C-Daily Impacts'!AN115*AN$21+'C-Daily Impacts'!AN124*AN$22)*AN$14","v":29171.286791062179},{"$f":"('C-Daily Impacts'!AO88*AO$19+'C-Daily Impacts'!AO97*AO$20+'C-Daily Impacts'!AO106*AO$21+'C-Daily Impacts'!AO115*AO$21+'C-Daily Impacts'!AO124*AO$22)*AO$14","v":29791.565577460951},{"$f":"('C-Daily Impacts'!AP88*AP$19+'C-Daily Impacts'!AP97*AP$20+'C-Daily Impacts'!AP106*AP$21+'C-Daily Impacts'!AP115*AP$21+'C-Daily Impacts'!AP124*AP$22)*AP$14","v":30425.033558275849},{"$f":"('C-Daily Impacts'!AQ88*AQ$19+'C-Daily Impacts'!AQ97*AQ$20+'C-Daily Impacts'!AQ106*AQ$21+'C-Daily Impacts'!AQ115*AQ$21+'C-Daily Impacts'!AQ124*AQ$22)*AQ$14","v":31071.971179740383},{"$f":"('C-Daily Impacts'!AR88*AR$19+'C-Daily Impacts'!AR97*AR$20+'C-Daily Impacts'!AR106*AR$21+'C-Daily Impacts'!AR115*AR$21+'C-Daily Impacts'!AR124*AR$22)*AR$14","v":31715.266717378774},{"$f":"('C-Daily Impacts'!AS88*AS$19+'C-Daily Impacts'!AS97*AS$20+'C-Daily Impacts'!AS106*AS$21+'C-Daily Impacts'!AS115*AS$21+'C-Daily Impacts'!AS124*AS$22)*AS$14","v":32371.88066170441},{"$f":"('C-Daily Impacts'!AT88*AT$19+'C-Daily Impacts'!AT97*AT$20+'C-Daily Impacts'!AT106*AT$21+'C-Daily Impacts'!AT115*AT$21+'C-Daily Impacts'!AT124*AT$22)*AT$14","v":33042.088749056646},{"$f":"('C-Daily Impacts'!AU88*AU$19+'C-Daily Impacts'!AU97*AU$20+'C-Daily Impacts'!AU106*AU$21+'C-Daily Impacts'!AU115*AU$21+'C-Daily Impacts'!AU124*AU$22)*AU$14","v":33726.172424455362},{"$f":"('C-Daily Impacts'!AV88*AV$19+'C-Daily Impacts'!AV97*AV$20+'C-Daily Impacts'!AV106*AV$21+'C-Daily Impacts'!AV115*AV$21+'C-Daily Impacts'!AV124*AV$22)*AV$14","v":34424.418959790142},{"$f":"('C-Daily Impacts'!AW88*AW$19+'C-Daily Impacts'!AW97*AW$20+'C-Daily Impacts'!AW106*AW$21+'C-Daily Impacts'!AW115*AW$21+'C-Daily Impacts'!AW124*AW$22)*AW$14","v":34448.15840632956},{"$f":"('C-Daily Impacts'!AX88*AX$19+'C-Daily Impacts'!AX97*AX$20+'C-Daily Impacts'!AX106*AX$21+'C-Daily Impacts'!AX115*AX$21+'C-Daily Impacts'!AX124*AX$22)*AX$14","v":34471.914223844564},{"$f":"('C-Daily Impacts'!AY88*AY$19+'C-Daily Impacts'!AY97*AY$20+'C-Daily Impacts'!AY106*AY$21+'C-Daily Impacts'!AY115*AY$21+'C-Daily Impacts'!AY124*AY$22)*AY$14","v":34495.686423624749},{"$f":"('C-Daily Impacts'!AZ88*AZ$19+'C-Daily Impacts'!AZ97*AZ$20+'C-Daily Impacts'!AZ106*AZ$21+'C-Daily Impacts'!AZ115*AZ$21+'C-Daily Impacts'!AZ124*AZ$22)*AZ$14","v":34519.475016967481},{"$f":"('C-Daily Impacts'!BA88*BA$19+'C-Daily Impacts'!BA97*BA$20+'C-Daily Impacts'!BA106*BA$21+'C-Daily Impacts'!BA115*BA$21+'C-Daily Impacts'!BA124*BA$22)*BA$14","v":34543.280015177952},{"$f":"('C-Daily Impacts'!BB88*BB$19+'C-Daily Impacts'!BB97*BB$20+'C-Daily Impacts'!BB106*BB$21+'C-Daily Impacts'!BB115*BB$21+'C-Daily Impacts'!BB124*BB$22)*BB$14","v":34567.101429569142},{"$f":"('C-Daily Impacts'!BC88*BC$19+'C-Daily Impacts'!BC97*BC$20+'C-Daily Impacts'!BC106*BC$21+'C-Daily Impacts'!BC115*BC$21+'C-Daily Impacts'!BC124*BC$22)*BC$14","v":34590.939271461815},{"$f":"('C-Daily Impacts'!BD88*BD$19+'C-Daily Impacts'!BD97*BD$20+'C-Daily Impacts'!BD106*BD$21+'C-Daily Impacts'!BD115*BD$21+'C-Daily Impacts'!BD124*BD$22)*BD$14","v":34614.793552184543},{"$f":"('C-Daily Impacts'!BE88*BE$19+'C-Daily Impacts'!BE97*BE$20+'C-Daily Impacts'!BE106*BE$21+'C-Daily Impacts'!BE115*BE$21+'C-Daily Impacts'!BE124*BE$22)*BE$14","v":34638.664283073726},{"$f":"('C-Daily Impacts'!BF88*BF$19+'C-Daily Impacts'!BF97*BF$20+'C-Daily Impacts'!BF106*BF$21+'C-Daily Impacts'!BF115*BF$21+'C-Daily Impacts'!BF124*BF$22)*BF$14","v":34662.551475473578},{"$f":"('C-Daily Impacts'!BG88*BG$19+'C-Daily Impacts'!BG97*BG$20+'C-Daily Impacts'!BG106*BG$21+'C-Daily Impacts'!BG115*BG$21+'C-Daily Impacts'!BG124*BG$22)*BG$14","v":34686.455140736129},{"$f":"('C-Daily Impacts'!BH88*BH$19+'C-Daily Impacts'!BH97*BH$20+'C-Daily Impacts'!BH106*BH$21+'C-Daily Impacts'!BH115*BH$21+'C-Daily Impacts'!BH124*BH$22)*BH$14","v":34710.375290221229},{"$f":"('C-Daily Impacts'!BI88*BI$19+'C-Daily Impacts'!BI97*BI$20+'C-Daily Impacts'!BI106*BI$21+'C-Daily Impacts'!BI115*BI$21+'C-Daily Impacts'!BI124*BI$22)*BI$14","v":34734.311935296595},{"$f":"('C-Daily Impacts'!BJ88*BJ$19+'C-Daily Impacts'!BJ97*BJ$20+'C-Daily Impacts'!BJ106*BJ$21+'C-Daily Impacts'!BJ115*BJ$21+'C-Daily Impacts'!BJ124*BJ$22)*BJ$14","v":34758.265087337742},{"$f":"('C-Daily Impacts'!BK88*BK$19+'C-Daily Impacts'!BK97*BK$20+'C-Daily Impacts'!BK106*BK$21+'C-Daily Impacts'!BK115*BK$21+'C-Daily Impacts'!BK124*BK$22)*BK$14","v":34782.23475772806},{"$f":"('C-Daily Impacts'!BL88*BL$19+'C-Daily Impacts'!BL97*BL$20+'C-Daily Impacts'!BL106*BL$21+'C-Daily Impacts'!BL115*BL$21+'C-Daily Impacts'!BL124*BL$22)*BL$14","v":34806.220957858779},{"$f":"('C-Daily Impacts'!BM88*BM$19+'C-Daily Impacts'!BM97*BM$20+'C-Daily Impacts'!BM106*BM$21+'C-Daily Impacts'!BM115*BM$21+'C-Daily Impacts'!BM124*BM$22)*BM$14","v":34830.223699128983},{"$f":"('C-Daily Impacts'!BN88*BN$19+'C-Daily Impacts'!BN97*BN$20+'C-Daily Impacts'!BN106*BN$21+'C-Daily Impacts'!BN115*BN$21+'C-Daily Impacts'!BN124*BN$22)*BN$14","v":34854.242992945619},{"$f":"('C-Daily Impacts'!BO88*BO$19+'C-Daily Impacts'!BO97*BO$20+'C-Daily Impacts'!BO106*BO$21+'C-Daily Impacts'!BO115*BO$21+'C-Daily Impacts'!BO124*BO$22)*BO$14","v":34878.278850723495},{"$f":"('C-Daily Impacts'!BP88*BP$19+'C-Daily Impacts'!BP97*BP$20+'C-Daily Impacts'!BP106*BP$21+'C-Daily Impacts'!BP115*BP$21+'C-Daily Impacts'!BP124*BP$22)*BP$14","v":34902.331283885316},{"$f":"('C-Daily Impacts'!BQ88*BQ$19+'C-Daily Impacts'!BQ97*BQ$20+'C-Daily Impacts'!BQ106*BQ$21+'C-Daily Impacts'!BQ115*BQ$21+'C-Daily Impacts'!BQ124*BQ$22)*BQ$14","v":34926.400303861614},{"$f":"('C-Daily Impacts'!BR88*BR$19+'C-Daily Impacts'!BR97*BR$20+'C-Daily Impacts'!BR106*BR$21+'C-Daily Impacts'!BR115*BR$21+'C-Daily Impacts'!BR124*BR$22)*BR$14","v":34950.485922090847},{"$f":"('C-Daily Impacts'!BS88*BS$19+'C-Daily Impacts'!BS97*BS$20+'C-Daily Impacts'!BS106*BS$21+'C-Daily Impacts'!BS115*BS$21+'C-Daily Impacts'!BS124*BS$22)*BS$14","v":34974.58815001935},{"$f":"('C-Daily Impacts'!BT88*BT$19+'C-Daily Impacts'!BT97*BT$20+'C-Daily Impacts'!BT106*BT$21+'C-Daily Impacts'!BT115*BT$21+'C-Daily Impacts'!BT124*BT$22)*BT$14","v":34998.706999101349},{"$f":"('C-Daily Impacts'!BU88*BU$19+'C-Daily Impacts'!BU97*BU$20+'C-Daily Impacts'!BU106*BU$21+'C-Daily Impacts'!BU115*BU$21+'C-Daily Impacts'!BU124*BU$22)*BU$14","v":35022.842480798972},{"$f":"('C-Daily Impacts'!BV88*BV$19+'C-Daily Impacts'!BV97*BV$20+'C-Daily Impacts'!BV106*BV$21+'C-Daily Impacts'!BV115*BV$21+'C-Daily Impacts'!BV124*BV$22)*BV$14","v":35046.99460658223},{"$f":"('C-Daily Impacts'!BW88*BW$19+'C-Daily Impacts'!BW97*BW$20+'C-Daily Impacts'!BW106*BW$21+'C-Daily Impacts'!BW115*BW$21+'C-Daily Impacts'!BW124*BW$22)*BW$14","v":35071.163387929082},{"$f":"('C-Daily Impacts'!BX88*BX$19+'C-Daily Impacts'!BX97*BX$20+'C-Daily Impacts'!BX106*BX$21+'C-Daily Impacts'!BX115*BX$21+'C-Daily Impacts'!BX124*BX$22)*BX$14","v":0},{"$f":"('C-Daily Impacts'!BY88*BY$19+'C-Daily Impacts'!BY97*BY$20+'C-Daily Impacts'!BY106*BY$21+'C-Daily Impacts'!BY115*BY$21+'C-Daily Impacts'!BY124*BY$22)*BY$14","v":0},{"$f":"('C-Daily Impacts'!BZ88*BZ$19+'C-Daily Impacts'!BZ97*BZ$20+'C-Daily Impacts'!BZ106*BZ$21+'C-Daily Impacts'!BZ115*BZ$21+'C-Daily Impacts'!BZ124*BZ$22)*BZ$14","v":0},{"$f":"('C-Daily Impacts'!CA88*CA$19+'C-Daily Impacts'!CA97*CA$20+'C-Daily Impacts'!CA106*CA$21+'C-Daily Impacts'!CA115*CA$21+'C-Daily Impacts'!CA124*CA$22)*CA$14","v":0},{"$f":"('C-Daily Impacts'!CB88*CB$19+'C-Daily Impacts'!CB97*CB$20+'C-Daily Impacts'!CB106*CB$21+'C-Daily Impacts'!CB115*CB$21+'C-Daily Impacts'!CB124*CB$22)*CB$14","v":0},{"$f":"('C-Daily Impacts'!CC88*CC$19+'C-Daily Impacts'!CC97*CC$20+'C-Daily Impacts'!CC106*CC$21+'C-Daily Impacts'!CC115*CC$21+'C-Daily Impacts'!CC124*CC$22)*CC$14","v":0},{"$f":"('C-Daily Impacts'!CD88*CD$19+'C-Daily Impacts'!CD97*CD$20+'C-Daily Impacts'!CD106*CD$21+'C-Daily Impacts'!CD115*CD$21+'C-Daily Impacts'!CD124*CD$22)*CD$14","v":0},{"$f":"('C-Daily Impacts'!CE88*CE$19+'C-Daily Impacts'!CE97*CE$20+'C-Daily Impacts'!CE106*CE$21+'C-Daily Impacts'!CE115*CE$21+'C-Daily Impacts'!CE124*CE$22)*CE$14","v":0}]
[null,null,null,"Local Air Quality",null,null,null,2120919.6116622207,null,"£, 2023 prices",{"$f":"('C-Daily Impacts'!K89*K$19+'C-Daily Impacts'!K98*K$20+'C-Daily Impacts'!K107*K$21+'C-Daily Impacts'!K116*K$21+'C-Daily Impacts'!K125*K$22)*K$14","v":0},{"$f":"('C-Daily Impacts'!L89*L$19+'C-Daily Impacts'!L98*L$20+'C-Daily Impacts'!L107*L$21+'C-Daily Impacts'!L116*L$21+'C-Daily Impacts'!L125*L$22)*L$14","v":0},{"$f":"('C-Daily Impacts'!M89*M$19+'C-Daily Impacts'!M98*M$20+'C-Daily Impacts'!M107*M$21+'C-Daily Impacts'!M116*M$21+'C-Daily Impacts'!M125*M$22)*M$14","v":0},{"$f":"('C-Daily Impacts'!N89*N$19+'C-Daily Impacts'!N98*N$20+'C-Daily Impacts'!N107*N$21+'C-Daily Impacts'!N116*N$21+'C-Daily Impacts'!N125*N$22)*N$14","v":0},{"$f":"('C-Daily Impacts'!O89*O$19+'C-Daily Impacts'!O98*O$20+'C-Daily Impacts'!O107*O$21+'C-Daily Impacts'!O116*O$21+'C-Daily Impacts'!O125*O$22)*O$14","v":0},{"$f":"('C-Daily Impacts'!P89*P$19+'C-Daily Impacts'!P98*P$20+'C-Daily Impacts'!P107*P$21+'C-Daily Impacts'!P116*P$21+'C-Daily Impacts'!P125*P$22)*P$14","v":24610.437037916359},{"$f":"('C-Daily Impacts'!Q89*Q$19+'C-Daily Impacts'!Q98*Q$20+'C-Daily Impacts'!Q107*Q$21+'C-Daily Impacts'!Q116*Q$21+'C-Daily Impacts'!Q125*Q$22)*Q$14","v":23727.0317104555},{"$f":"('C-Daily Impacts'!R89*R$19+'C-Daily Impacts'!R98*R$20+'C-Daily Impacts'!R107*R$21+'C-Daily Impacts'!R116*R$21+'C-Daily Impacts'!R125*R$22)*R$14","v":22886.949360863699},{"$f":"('C-Daily Impacts'!S89*S$19+'C-Daily Impacts'!S98*S$20+'C-Daily Impacts'!S107*S$21+'C-Daily Impacts'!S116*S$21+'C-Daily Impacts'!S125*S$22)*S$14","v":23052.338326828391},{"$f":"('C-Daily Impacts'!T89*T$19+'C-Daily Impacts'!T98*T$20+'C-Daily Impacts'!T107*T$21+'C-Daily Impacts'!T116*T$21+'C-Daily Impacts'!T125*T$22)*T$14","v":23220.185026759165},{"$f":"('C-Daily Impacts'!U89*U$19+'C-Daily Impacts'!U98*U$20+'C-Daily Impacts'!U107*U$21+'C-Daily Impacts'!U116*U$21+'C-Daily Impacts'!U125*U$22)*U$14","v":23390.537962593997},{"$f":"('C-Daily Impacts'!V89*V$19+'C-Daily Impacts'!V98*V$20+'C-Daily Impacts'!V107*V$21+'C-Daily Impacts'!V116*V$21+'C-Daily Impacts'!V125*V$22)*V$14","v":23563.446652204446},{"$f":"('C-Daily Impacts'!W89*W$19+'C-Daily Impacts'!W98*W$20+'C-Daily Impacts'!W107*W$21+'C-Daily Impacts'!W116*W$21+'C-Daily Impacts'!W125*W$22)*W$14","v":23738.961650961268},{"$f":"('C-Daily Impacts'!X89*X$19+'C-Daily Impacts'!X98*X$20+'C-Daily Impacts'!X107*X$21+'C-Daily Impacts'!X116*X$21+'C-Daily Impacts'!X125*X$22)*X$14","v":24315.350574128228},{"$f":"('C-Daily Impacts'!Y89*Y$19+'C-Daily Impacts'!Y98*Y$20+'C-Daily Impacts'!Y107*Y$21+'C-Daily Impacts'!Y116*Y$21+'C-Daily Impacts'!Y125*Y$22)*Y$14","v":24905.735644979162},{"$f":"('C-Daily Impacts'!Z89*Z$19+'C-Daily Impacts'!Z98*Z$20+'C-Daily Impacts'!Z107*Z$21+'C-Daily Impacts'!Z116*Z$21+'C-Daily Impacts'!Z125*Z$22)*Z$14","v":25510.456755692881},{"$f":"('C-Daily Impacts'!AA89*AA$19+'C-Daily Impacts'!AA98*AA$20+'C-Daily Impacts'!AA107*AA$21+'C-Daily Impacts'!AA116*AA$21+'C-Daily Impacts'!AA125*AA$22)*AA$14","v":26129.862053397024},{"$f":"('C-Daily Impacts'!AB89*AB$19+'C-Daily Impacts'!AB98*AB$20+'C-Daily Impacts'!AB107*AB$21+'C-Daily Impacts'!AB116*AB$21+'C-Daily Impacts'!AB125*AB$22)*AB$14","v":26764.308140674799},{"$f":"('C-Daily Impacts'!AC89*AC$19+'C-Daily Impacts'!AC98*AC$20+'C-Daily Impacts'!AC107*AC$21+'C-Daily Impacts'!AC116*AC$21+'C-Daily Impacts'!AC125*AC$22)*AC$14","v":27397.051609324379},{"$f":"('C-Daily Impacts'!AD89*AD$19+'C-Daily Impacts'!AD98*AD$20+'C-Daily Impacts'!AD107*AD$21+'C-Daily Impacts'!AD116*AD$21+'C-Daily Impacts'!AD125*AD$22)*AD$14","v":28044.755140995861},{"$f":"('C-Daily Impacts'!AE89*AE$19+'C-Daily Impacts'!AE98*AE$20+'C-Daily Impacts'!AE107*AE$21+'C-Daily Impacts'!AE116*AE$21+'C-Daily Impacts'!AE125*AE$22)*AE$14","v":28707.772466872848},{"$f":"('C-Daily Impacts'!AF89*AF$19+'C-Daily Impacts'!AF98*AF$20+'C-Daily Impacts'!AF107*AF$21+'C-Daily Impacts'!AF116*AF$21+'C-Daily Impacts'!AF125*AF$22)*AF$14","v":29386.465682783997},{"$f":"('C-Daily Impacts'!AG89*AG$19+'C-Daily Impacts'!AG98*AG$20+'C-Daily Impacts'!AG107*AG$21+'C-Daily Impacts'!AG116*AG$21+'C-Daily Impacts'!AG125*AG$22)*AG$14","v":30081.20544701656},{"$f":"('C-Daily Impacts'!AH89*AH$19+'C-Daily Impacts'!AH98*AH$20+'C-Daily Impacts'!AH107*AH$21+'C-Daily Impacts'!AH116*AH$21+'C-Daily Impacts'!AH125*AH$22)*AH$14","v":30747.098429300808},{"$f":"('C-Daily Impacts'!AI89*AI$19+'C-Daily Impacts'!AI98*AI$20+'C-Daily Impacts'!AI107*AI$21+'C-Daily Impacts'!AI116*AI$21+'C-Daily Impacts'!AI125*AI$22)*AI$14","v":31427.744021866871},{"$f":"('C-Daily Impacts'!AJ89*AJ$19+'C-Daily Impacts'!AJ98*AJ$20+'C-Daily Impacts'!AJ107*AJ$21+'C-Daily Impacts'!AJ116*AJ$21+'C-Daily Impacts'!AJ125*AJ$22)*AJ$14","v":32123.469339890551},{"$f":"('C-Daily Impacts'!AK89*AK$19+'C-Daily Impacts'!AK98*AK$20+'C-Daily Impacts'!AK107*AK$21+'C-Daily Impacts'!AK116*AK$21+'C-Daily Impacts'!AK125*AK$22)*AK$14","v":32834.608758134054},{"$f":"('C-Daily Impacts'!AL89*AL$19+'C-Daily Impacts'!AL98*AL$20+'C-Daily Impacts'!AL107*AL$21+'C-Daily Impacts'!AL116*AL$21+'C-Daily Impacts'!AL125*AL$22)*AL$14","v":33561.504072201467},{"$f":"('C-Daily Impacts'!AM89*AM$19+'C-Daily Impacts'!AM98*AM$20+'C-Daily Impacts'!AM107*AM$21+'C-Daily Impacts'!AM116*AM$21+'C-Daily Impacts'!AM125*AM$22)*AM$14","v":34281.336402986373},{"$f":"('C-Daily Impacts'!AN89*AN$19+'C-Daily Impacts'!AN98*AN$20+'C-Daily Impacts'!AN107*AN$21+'C-Daily Impacts'!AN116*AN$21+'C-Daily Impacts'!AN125*AN$22)*AN$14","v":35016.614534822584},{"$f":"('C-Daily Impacts'!AO89*AO$19+'C-Daily Impacts'!AO98*AO$20+'C-Daily Impacts'!AO107*AO$21+'C-Daily Impacts'!AO116*AO$21+'C-Daily Impacts'!AO125*AO$22)*AO$14","v":35767.67004397553},{"$f":"('C-Daily Impacts'!AP89*AP$19+'C-Daily Impacts'!AP98*AP$20+'C-Daily Impacts'!AP107*AP$21+'C-Daily Impacts'!AP116*AP$21+'C-Daily Impacts'!AP125*AP$22)*AP$14","v":36534.841627941358},{"$f":"('C-Daily Impacts'!AQ89*AQ$19+'C-Daily Impacts'!AQ98*AQ$20+'C-Daily Impacts'!AQ107*AQ$21+'C-Daily Impacts'!AQ116*AQ$21+'C-Daily Impacts'!AQ125*AQ$22)*AQ$14","v":37318.475258460472},{"$f":"('C-Daily Impacts'!AR89*AR$19+'C-Daily Impacts'!AR98*AR$20+'C-Daily Impacts'!AR107*AR$21+'C-Daily Impacts'!AR116*AR$21+'C-Daily Impacts'!AR125*AR$22)*AR$14","v":38118.001768471026},{"$f":"('C-Daily Impacts'!AS89*AS$19+'C-Daily Impacts'!AS98*AS$20+'C-Daily Impacts'!AS107*AS$21+'C-Daily Impacts'!AS116*AS$21+'C-Daily Impacts'!AS125*AS$22)*AS$14","v":38934.659498337547},{"$f":"('C-Daily Impacts'!AT89*AT$19+'C-Daily Impacts'!AT98*AT$20+'C-Daily Impacts'!AT107*AT$21+'C-Daily Impacts'!AT116*AT$21+'C-Daily Impacts'!AT125*AT$22)*AT$14","v":39768.815553597131},{"$f":"('C-Daily Impacts'!AU89*AU$19+'C-Daily Impacts'!AU98*AU$20+'C-Daily Impacts'!AU107*AU$21+'C-Daily Impacts'!AU116*AU$21+'C-Daily Impacts'!AU125*AU$22)*AU$14","v":40620.844907374601},{"$f":"('C-Daily Impacts'!AV89*AV$19+'C-Daily Impacts'!AV98*AV$20+'C-Daily Impacts'!AV107*AV$21+'C-Daily Impacts'!AV116*AV$21+'C-Daily Impacts'!AV125*AV$22)*AV$14","v":41491.130569014997},{"$f":"('C-Daily Impacts'!AW89*AW$19+'C-Daily Impacts'!AW98*AW$20+'C-Daily Impacts'!AW107*AW$21+'C-Daily Impacts'!AW116*AW$21+'C-Daily Impacts'!AW125*AW$22)*AW$14","v":41498.176688296189},{"$f":"('C-Daily Impacts'!AX89*AX$19+'C-Daily Impacts'!AX98*AX$20+'C-Daily Impacts'!AX107*AX$21+'C-Daily Impacts'!AX116*AX$21+'C-Daily Impacts'!AX125*AX$22)*AX$14","v":41505.227666656399},{"$f":"('C-Daily Impacts'!AY89*AY$19+'C-Daily Impacts'!AY98*AY$20+'C-Daily Impacts'!AY107*AY$21+'C-Daily Impacts'!AY116*AY$21+'C-Daily Impacts'!AY125*AY$22)*AY$14","v":41512.283507446518},{"$f":"('C-Daily Impacts'!AZ89*AZ$19+'C-Daily Impacts'!AZ98*AZ$20+'C-Daily Impacts'!AZ107*AZ$21+'C-Daily Impacts'!AZ116*AZ$21+'C-Daily Impacts'!AZ125*AZ$22)*AZ$14","v":41519.3442140197},{"$f":"('C-Daily Impacts'!BA89*BA$19+'C-Daily Impacts'!BA98*BA$20+'C-Daily Impacts'!BA107*BA$21+'C-Daily Impacts'!BA116*BA$21+'C-Daily Impacts'!BA125*BA$22)*BA$14","v":41526.409789731464},{"$f":"('C-Daily Impacts'!BB89*BB$19+'C-Daily Impacts'!BB98*BB$20+'C-Daily Impacts'!BB107*BB$21+'C-Daily Impacts'!BB116*BB$21+'C-Daily Impacts'!BB125*BB$22)*BB$14","v":41533.480237939613},{"$f":"('C-Daily Impacts'!BC89*BC$19+'C-Daily Impacts'!BC98*BC$20+'C-Daily Impacts'!BC107*BC$21+'C-Daily Impacts'!BC116*BC$21+'C-Daily Impacts'!BC125*BC$22)*BC$14","v":41540.555562004265},{"$f":"('C-Daily Impacts'!BD89*BD$19+'C-Daily Impacts'!BD98*BD$20+'C-Daily Impacts'!BD107*BD$21+'C-Daily Impacts'!BD116*BD$21+'C-Daily Impacts'!BD125*BD$22)*BD$14","v":41547.63576528788},{"$f":"('C-Daily Impacts'!BE89*BE$19+'C-Daily Impacts'!BE98*BE$20+'C-Daily Impacts'!BE107*BE$21+'C-Daily Impacts'!BE116*BE$21+'C-Daily Impacts'!BE125*BE$22)*BE$14","v":41554.720851155194},{"$f":"('C-Daily Impacts'!BF89*BF$19+'C-Daily Impacts'!BF98*BF$20+'C-Daily Impacts'!BF107*BF$21+'C-Daily Impacts'!BF116*BF$21+'C-Daily Impacts'!BF125*BF$22)*BF$14","v":41561.810822973312},{"$f":"('C-Daily Impacts'!BG89*BG$19+'C-Daily Impacts'!BG98*BG$20+'C-Daily Impacts'!BG107*BG$21+'C-Daily Impacts'!BG116*BG$21+'C-Daily Impacts'!BG125*BG$22)*BG$14","v":41568.905684111625},{"$f":"('C-Daily Impacts'!BH89*BH$19+'C-Daily Impacts'!BH98*BH$20+'C-Daily Impacts'!BH107*BH$21+'C-Daily Impacts'!BH116*BH$21+'C-Daily Impacts'!BH125*BH$22)*BH$14","v":41576.005437941865},{"$f":"('C-Daily Impacts'!BI89*BI$19+'C-Daily Impacts'!BI98*BI$20+'C-Daily Impacts'!BI107*BI$21+'C-Daily Impacts'!BI116*BI$21+'C-Daily Impacts'!BI125*BI$22)*BI$14","v":41583.110087838082},{"$f":"('C-Daily Impacts'!BJ89*BJ$19+'C-Daily Impacts'!BJ98*BJ$20+'C-Daily Impacts'!BJ107*BJ$21+'C-Daily Impacts'!BJ116*BJ$21+'C-Daily Impacts'!BJ125*BJ$22)*BJ$14","v":41590.219637176662},{"$f":"('C-Daily Impacts'!BK89*BK$19+'C-Daily Impacts'!BK98*BK$20+'C-Daily Impacts'!BK107*BK$21+'C-Daily Impacts'!BK116*BK$21+'C-Daily Impacts'!BK125*BK$22)*BK$14","v":41597.334089336306},{"$f":"('C-Daily Impacts'!BL89*BL$19+'C-Daily Impacts'!BL98*BL$20+'C-Daily Impacts'!BL107*BL$21+'C-Daily Impacts'!BL116*BL$21+'C-Daily Impacts'!BL125*BL$22)*BL$14","v":41604.453447698048},{"$f":"('C-Daily Impacts'!BM89*BM$19+'C-Daily Impacts'!BM98*BM$20+'C-Daily Impacts'!BM107*BM$21+'C-Daily Impacts'!BM116*BM$21+'C-Daily Impacts'!BM125*BM$22)*BM$14","v":41611.577715645268},{"$f":"('C-Daily Impacts'!BN89*BN$19+'C-Daily Impacts'!BN98*BN$20+'C-Daily Impacts'!BN107*BN$21+'C-Daily Impacts'!BN116*BN$21+'C-Daily Impacts'!BN125*BN$22)*BN$14","v":41618.706896563657},{"$f":"('C-Daily Impacts'!BO89*BO$19+'C-Daily Impacts'!BO98*BO$20+'C-Daily Impacts'!BO107*BO$21+'C-Daily Impacts'!BO116*BO$21+'C-Daily Impacts'!BO125*BO$22)*BO$14","v":41625.840993841266},{"$f":"('C-Daily Impacts'!BP89*BP$19+'C-Daily Impacts'!BP98*BP$20+'C-Daily Impacts'!BP107*BP$21+'C-Daily Impacts'!BP116*BP$21+'C-Daily Impacts'!BP125*BP$22)*BP$14","v":41632.980010868458},{"$f":"('C-Daily Impacts'!BQ89*BQ$19+'C-Daily Impacts'!BQ98*BQ$20+'C-Daily Impacts'!BQ107*BQ$21+'C-Daily Impacts'!BQ116*BQ$21+'C-Daily Impacts'!BQ125*BQ$22)*BQ$14","v":41640.123951037946},{"$f":"('C-Daily Impacts'!BR89*BR$19+'C-Daily Impacts'!BR98*BR$20+'C-Daily Impacts'!BR107*BR$21+'C-Daily Impacts'!BR116*BR$21+'C-Daily Impacts'!BR125*BR$22)*BR$14","v":41647.272817744786},{"$f":"('C-Daily Impacts'!BS89*BS$19+'C-Daily Impacts'!BS98*BS$20+'C-Daily Impacts'!BS107*BS$21+'C-Daily Impacts'!BS116*BS$21+'C-Daily Impacts'!BS125*BS$22)*BS$14","v":41654.426614386364},{"$f":"('C-Daily Impacts'!BT89*BT$19+'C-Daily Impacts'!BT98*BT$20+'C-Daily Impacts'!BT107*BT$21+'C-Daily Impacts'!BT116*BT$21+'C-Daily Impacts'!BT125*BT$22)*BT$14","v":41661.585344362429},{"$f":"('C-Daily Impacts'!BU89*BU$19+'C-Daily Impacts'!BU98*BU$20+'C-Daily Impacts'!BU107*BU$21+'C-Daily Impacts'!BU116*BU$21+'C-Daily Impacts'!BU125*BU$22)*BU$14","v":41668.749011075051},{"$f":"('C-Daily Impacts'!BV89*BV$19+'C-Daily Impacts'!BV98*BV$20+'C-Daily Impacts'!BV107*BV$21+'C-Daily Impacts'!BV116*BV$21+'C-Daily Impacts'!BV125*BV$22)*BV$14","v":41675.917617928659},{"$f":"('C-Daily Impacts'!BW89*BW$19+'C-Daily Impacts'!BW98*BW$20+'C-Daily Impacts'!BW107*BW$21+'C-Daily Impacts'!BW116*BW$21+'C-Daily Impacts'!BW125*BW$22)*BW$14","v":41683.091168330022},{"$f":"('C-Daily Impacts'!BX89*BX$19+'C-Daily Impacts'!BX98*BX$20+'C-Daily Impacts'!BX107*BX$21+'C-Daily Impacts'!BX116*BX$21+'C-Daily Impacts'!BX125*BX$22)*BX$14","v":0},{"$f":"('C-Daily Impacts'!BY89*BY$19+'C-Daily Impacts'!BY98*BY$20+'C-Daily Impacts'!BY107*BY$21+'C-Daily Impacts'!BY116*BY$21+'C-Daily Impacts'!BY125*BY$22)*BY$14","v":0},{"$f":"('C-Daily Impacts'!BZ89*BZ$19+'C-Daily Impacts'!BZ98*BZ$20+'C-Daily Impacts'!BZ107*BZ$21+'C-Daily Impacts'!BZ116*BZ$21+'C-Daily Impacts'!BZ125*BZ$22)*BZ$14","v":0},{"$f":"('C-Daily Impacts'!CA89*CA$19+'C-Daily Impacts'!CA98*CA$20+'C-Daily Impacts'!CA107*CA$21+'C-Daily Impacts'!CA116*CA$21+'C-Daily Impacts'!CA125*CA$22)*CA$14","v":0},{"$f":"('C-Daily Impacts'!CB89*CB$19+'C-Daily Impacts'!CB98*CB$20+'C-Daily Impacts'!CB107*CB$21+'C-Daily Impacts'!CB116*CB$21+'C-Daily Impacts'!CB125*CB$22)*CB$14","v":0},{"$f":"('C-Daily Impacts'!CC89*CC$19+'C-Daily Impacts'!CC98*CC$20+'C-Daily Impacts'!CC107*CC$21+'C-Daily Impacts'!CC116*CC$21+'C-Daily Impacts'!CC125*CC$22)*CC$14","v":0},{"$f":"('C-Daily Impacts'!CD89*CD$19+'C-Daily Impacts'!CD98*CD$20+'C-Daily Impacts'!CD107*CD$21+'C-Daily Impacts'!CD116*CD$21+'C-Daily Impacts'!CD125*CD$22)*CD$14","v":0},{"$f":"('C-Daily Impacts'!CE89*CE$19+'C-Daily Impacts'!CE98*CE$20+'C-Daily Impacts'!CE107*CE$21+'C-Daily Impacts'!CE116*CE$21+'C-Daily Impacts'!CE125*CE$22)*CE$14","v":0}]
[null,null,null,"Noise",null,null,null,4378379.6147248847,null,"£, 2023 prices",{"$f":"('C-Daily Impacts'!K90*K$19+'C-Daily Impacts'!K99*K$20+'C-Daily Impacts'!K108*K$21+'C-Daily Impacts'!K117*K$21+'C-Daily Impacts'!K126*K$22)*K$14","v":0},{"$f":"('C-Daily Impacts'!L90*L$19+'C-Daily Impacts'!L99*L$20+'C-Daily Impacts'!L108*L$21+'C-Daily Impacts'!L117*L$21+'C-Daily Impacts'!L126*L$22)*L$14","v":0},{"$f":"('C-Daily Impacts'!M90*M$19+'C-Daily Impacts'!M99*M$20+'C-Daily Impacts'!M108*M$21+'C-Daily Impacts'!M117*M$21+'C-Daily Impacts'!M126*M$22)*M$14","v":0},{"$f":"('C-Daily Impacts'!N90*N$19+'C-Daily Impacts'!N99*N$20+'C-Daily Impacts'!N108*N$21+'C-Daily Impacts'!N117*N$21+'C-Daily Impacts'!N126*N$22)*N$14","v":0},{"$f":"('C-Daily Impacts'!O90*O$19+'C-Daily Impacts'!O99*O$20+'C-Daily Impacts'!O108*O$21+'C-Daily Impacts'!O117*O$21+'C-Daily Impacts'!O126*O$22)*O$14","v":0},{"$f":"('C-Daily Impacts'!P90*P$19+'C-Daily Impacts'!P99*P$20+'C-Daily Impacts'!P108*P$21+'C-Daily Impacts'!P117*P$21+'C-Daily Impacts'!P126*P$22)*P$14","v":43397.408945678835},{"$f":"('C-Daily Impacts'!Q90*Q$19+'C-Daily Impacts'!Q99*Q$20+'C-Daily Impacts'!Q108*Q$21+'C-Daily Impacts'!Q117*Q$21+'C-Daily Impacts'!Q126*Q$22)*Q$14","v":44319.986444781818},{"$f":"('C-Daily Impacts'!R90*R$19+'C-Daily Impacts'!R99*R$20+'C-Daily Impacts'!R108*R$21+'C-Daily Impacts'!R117*R$21+'C-Daily Impacts'!R126*R$22)*R$14","v":45262.176848491996},{"$f":"('C-Daily Impacts'!S90*S$19+'C-Daily Impacts'!S99*S$20+'C-Daily Impacts'!S108*S$21+'C-Daily Impacts'!S117*S$21+'C-Daily Impacts'!S126*S$22)*S$14","v":46194.137185966945},{"$f":"('C-Daily Impacts'!T90*T$19+'C-Daily Impacts'!T99*T$20+'C-Daily Impacts'!T108*T$21+'C-Daily Impacts'!T117*T$21+'C-Daily Impacts'!T126*T$22)*T$14","v":47145.286836265586},{"$f":"('C-Daily Impacts'!U90*U$19+'C-Daily Impacts'!U99*U$20+'C-Daily Impacts'!U108*U$21+'C-Daily Impacts'!U117*U$21+'C-Daily Impacts'!U126*U$22)*U$14","v":48116.02091247568},{"$f":"('C-Daily Impacts'!V90*V$19+'C-Daily Impacts'!V99*V$20+'C-Daily Impacts'!V108*V$21+'C-Daily Impacts'!V117*V$21+'C-Daily Impacts'!V126*V$22)*V$14","v":49106.742663169316},{"$f":"('C-Daily Impacts'!W90*W$19+'C-Daily Impacts'!W99*W$20+'C-Daily Impacts'!W108*W$21+'C-Daily Impacts'!W117*W$21+'C-Daily Impacts'!W126*W$22)*W$14","v":50117.863639914554},{"$f":"('C-Daily Impacts'!X90*X$19+'C-Daily Impacts'!X99*X$20+'C-Daily Impacts'!X108*X$21+'C-Daily Impacts'!X117*X$21+'C-Daily Impacts'!X126*X$22)*X$14","v":51215.119248195857},{"$f":"('C-Daily Impacts'!Y90*Y$19+'C-Daily Impacts'!Y99*Y$20+'C-Daily Impacts'!Y108*Y$21+'C-Daily Impacts'!Y117*Y$21+'C-Daily Impacts'!Y126*Y$22)*Y$14","v":52336.397625654943},{"$f":"('C-Daily Impacts'!Z90*Z$19+'C-Daily Impacts'!Z99*Z$20+'C-Daily Impacts'!Z108*Z$21+'C-Daily Impacts'!Z117*Z$21+'C-Daily Impacts'!Z126*Z$22)*Z$14","v":53482.224714865792},{"$f":"('C-Daily Impacts'!AA90*AA$19+'C-Daily Impacts'!AA99*AA$20+'C-Daily Impacts'!AA108*AA$21+'C-Daily Impacts'!AA117*AA$21+'C-Daily Impacts'!AA126*AA$22)*AA$14","v":54653.137973127887},{"$f":"('C-Daily Impacts'!AB90*AB$19+'C-Daily Impacts'!AB99*AB$20+'C-Daily Impacts'!AB108*AB$21+'C-Daily Impacts'!AB117*AB$21+'C-Daily Impacts'!AB126*AB$22)*AB$14","v":55849.686624563794},{"$f":"('C-Daily Impacts'!AC90*AC$19+'C-Daily Impacts'!AC99*AC$20+'C-Daily Impacts'!AC108*AC$21+'C-Daily Impacts'!AC117*AC$21+'C-Daily Impacts'!AC126*AC$22)*AC$14","v":57068.41858389898},{"$f":"('C-Daily Impacts'!AD90*AD$19+'C-Daily Impacts'!AD99*AD$20+'C-Daily Impacts'!AD108*AD$21+'C-Daily Impacts'!AD117*AD$21+'C-Daily Impacts'!AD126*AD$22)*AD$14","v":58313.745277752372},{"$f":"('C-Daily Impacts'!AE90*AE$19+'C-Daily Impacts'!AE99*AE$20+'C-Daily Impacts'!AE108*AE$21+'C-Daily Impacts'!AE117*AE$21+'C-Daily Impacts'!AE126*AE$22)*AE$14","v":59586.247046943507},{"$f":"('C-Daily Impacts'!AF90*AF$19+'C-Daily Impacts'!AF99*AF$20+'C-Daily Impacts'!AF108*AF$21+'C-Daily Impacts'!AF117*AF$21+'C-Daily Impacts'!AF126*AF$22)*AF$14","v":60886.516896282519},{"$f":"('C-Daily Impacts'!AG90*AG$19+'C-Daily Impacts'!AG99*AG$20+'C-Daily Impacts'!AG108*AG$21+'C-Daily Impacts'!AG117*AG$21+'C-Daily Impacts'!AG126*AG$22)*AG$14","v":62215.160770919123},{"$f":"('C-Daily Impacts'!AH90*AH$19+'C-Daily Impacts'!AH99*AH$20+'C-Daily Impacts'!AH108*AH$21+'C-Daily Impacts'!AH117*AH$21+'C-Daily Impacts'!AH126*AH$22)*AH$14","v":63583.275589096935},{"$f":"('C-Daily Impacts'!AI90*AI$19+'C-Daily Impacts'!AI99*AI$20+'C-Daily Impacts'!AI108*AI$21+'C-Daily Impacts'!AI117*AI$21+'C-Daily Impacts'!AI126*AI$22)*AI$14","v":64981.475327614462},{"$f":"('C-Daily Impacts'!AJ90*AJ$19+'C-Daily Impacts'!AJ99*AJ$20+'C-Daily Impacts'!AJ108*AJ$21+'C-Daily Impacts'!AJ117*AJ$21+'C-Daily Impacts'!AJ126*AJ$22)*AJ$14","v":66410.421555530047},{"$f":"('C-Daily Impacts'!AK90*AK$19+'C-Daily Impacts'!AK99*AK$20+'C-Daily Impacts'!AK108*AK$21+'C-Daily Impacts'!AK117*AK$21+'C-Daily Impacts'!AK126*AK$22)*AK$14","v":67870.790389841946},{"$f":"('C-Daily Impacts'!AL90*AL$19+'C-Daily Impacts'!AL99*AL$20+'C-Daily Impacts'!AL108*AL$21+'C-Daily Impacts'!AL117*AL$21+'C-Daily Impacts'!AL126*AL$22)*AL$14","v":69363.272815398639},{"$f":"('C-Daily Impacts'!AM90*AM$19+'C-Daily Impacts'!AM99*AM$20+'C-Daily Impacts'!AM108*AM$21+'C-Daily Impacts'!AM117*AM$21+'C-Daily Impacts'!AM126*AM$22)*AM$14","v":70838.167186385574},{"$f":"('C-Daily Impacts'!AN90*AN$19+'C-Daily Impacts'!AN99*AN$20+'C-Daily Impacts'!AN108*AN$21+'C-Daily Impacts'!AN117*AN$21+'C-Daily Impacts'!AN126*AN$22)*AN$14","v":72344.422727589379},{"$f":"('C-Daily Impacts'!AO90*AO$19+'C-Daily Impacts'!AO99*AO$20+'C-Daily Impacts'!AO108*AO$21+'C-Daily Impacts'!AO117*AO$21+'C-Daily Impacts'!AO126*AO$22)*AO$14","v":73882.706282017214},{"$f":"('C-Daily Impacts'!AP90*AP$19+'C-Daily Impacts'!AP99*AP$20+'C-Daily Impacts'!AP108*AP$21+'C-Daily Impacts'!AP117*AP$21+'C-Daily Impacts'!AP126*AP$22)*AP$14","v":75453.69887198096},{"$f":"('C-Daily Impacts'!AQ90*AQ$19+'C-Daily Impacts'!AQ99*AQ$20+'C-Daily Impacts'!AQ108*AQ$21+'C-Daily Impacts'!AQ117*AQ$21+'C-Daily Impacts'!AQ126*AQ$22)*AQ$14","v":77058.096000596852},{"$f":"('C-Daily Impacts'!AR90*AR$19+'C-Daily Impacts'!AR99*AR$20+'C-Daily Impacts'!AR108*AR$21+'C-Daily Impacts'!AR117*AR$21+'C-Daily Impacts'!AR126*AR$22)*AR$14","v":78653.460807333555},{"$f":"('C-Daily Impacts'!AS90*AS$19+'C-Daily Impacts'!AS99*AS$20+'C-Daily Impacts'!AS108*AS$21+'C-Daily Impacts'!AS117*AS$21+'C-Daily Impacts'!AS126*AS$22)*AS$14","v":80281.855094406201},{"$f":"('C-Daily Impacts'!AT90*AT$19+'C-Daily Impacts'!AT99*AT$20+'C-Daily Impacts'!AT108*AT$21+'C-Daily Impacts'!AT117*AT$21+'C-Daily Impacts'!AT126*AT$22)*AT$14","v":81943.962684453101},{"$f":"('C-Daily Impacts'!AU90*AU$19+'C-Daily Impacts'!AU99*AU$20+'C-Daily Impacts'!AU108*AU$21+'C-Daily Impacts'!AU117*AU$21+'C-Daily Impacts'!AU126*AU$22)*AU$14","v":83640.481557568128},{"$f":"('C-Daily Impacts'!AV90*AV$19+'C-Daily Impacts'!AV99*AV$20+'C-Daily Impacts'!AV108*AV$21+'C-Daily Impacts'!AV117*AV$21+'C-Daily Impacts'!AV126*AV$22)*AV$14","v":85372.124144408415},{"$f":"('C-Daily Impacts'!AW90*AW$19+'C-Daily Impacts'!AW99*AW$20+'C-Daily Impacts'!AW108*AW$21+'C-Daily Impacts'!AW117*AW$21+'C-Daily Impacts'!AW126*AW$22)*AW$14","v":85430.997671931123},{"$f":"('C-Daily Impacts'!AX90*AX$19+'C-Daily Impacts'!AX99*AX$20+'C-Daily Impacts'!AX108*AX$21+'C-Daily Impacts'!AX117*AX$21+'C-Daily Impacts'!AX126*AX$22)*AX$14","v":85489.911799266469},{"$f":"('C-Daily Impacts'!AY90*AY$19+'C-Daily Impacts'!AY99*AY$20+'C-Daily Impacts'!AY108*AY$21+'C-Daily Impacts'!AY117*AY$21+'C-Daily Impacts'!AY126*AY$22)*AY$14","v":85548.866554412525},{"$f":"('C-Daily Impacts'!AZ90*AZ$19+'C-Daily Impacts'!AZ99*AZ$20+'C-Daily Impacts'!AZ108*AZ$21+'C-Daily Impacts'!AZ117*AZ$21+'C-Daily Impacts'!AZ126*AZ$22)*AZ$14","v":85607.861965386604},{"$f":"('C-Daily Impacts'!BA90*BA$19+'C-Daily Impacts'!BA99*BA$20+'C-Daily Impacts'!BA108*BA$21+'C-Daily Impacts'!BA117*BA$21+'C-Daily Impacts'!BA126*BA$22)*BA$14","v":85666.898060225431},{"$f":"('C-Daily Impacts'!BB90*BB$19+'C-Daily Impacts'!BB99*BB$20+'C-Daily Impacts'!BB108*BB$21+'C-Daily Impacts'!BB117*BB$21+'C-Daily Impacts'!BB126*BB$22)*BB$14","v":85725.974866985052},{"$f":"('C-Daily Impacts'!BC90*BC$19+'C-Daily Impacts'!BC99*BC$20+'C-Daily Impacts'!BC108*BC$21+'C-Daily Impacts'!BC117*BC$21+'C-Daily Impacts'!BC126*BC$22)*BC$14","v":85785.092413740844},{"$f":"('C-Daily Impacts'!BD90*BD$19+'C-Daily Impacts'!BD99*BD$20+'C-Daily Impacts'!BD108*BD$21+'C-Daily Impacts'!BD117*BD$21+'C-Daily Impacts'!BD126*BD$22)*BD$14","v":85844.250728587504},{"$f":"('C-Daily Impacts'!BE90*BE$19+'C-Daily Impacts'!BE99*BE$20+'C-Daily Impacts'!BE108*BE$21+'C-Daily Impacts'!BE117*BE$21+'C-Daily Impacts'!BE126*BE$22)*BE$14","v":85903.449839639128},{"$f":"('C-Daily Impacts'!BF90*BF$19+'C-Daily Impacts'!BF99*BF$20+'C-Daily Impacts'!BF108*BF$21+'C-Daily Impacts'!BF117*BF$21+'C-Daily Impacts'!BF126*BF$22)*BF$14","v":85962.689775029299},{"$f":"('C-Daily Impacts'!BG90*BG$19+'C-Daily Impacts'!BG99*BG$20+'C-Daily Impacts'!BG108*BG$21+'C-Daily Impacts'!BG117*BG$21+'C-Daily Impacts'!BG126*BG$22)*BG$14","v":86021.970562910836},{"$f":"('C-Daily Impacts'!BH90*BH$19+'C-Daily Impacts'!BH99*BH$20+'C-Daily Impacts'!BH108*BH$21+'C-Daily Impacts'!BH117*BH$21+'C-Daily Impacts'!BH126*BH$22)*BH$14","v":86081.292231456086},{"$f":"('C-Daily Impacts'!BI90*BI$19+'C-Daily Impacts'!BI99*BI$20+'C-Daily Impacts'!BI108*BI$21+'C-Daily Impacts'!BI117*BI$21+'C-Daily Impacts'!BI126*BI$22)*BI$14","v":86140.654808856794},{"$f":"('C-Daily Impacts'!BJ90*BJ$19+'C-Daily Impacts'!BJ99*BJ$20+'C-Daily Impacts'!BJ108*BJ$21+'C-Daily Impacts'!BJ117*BJ$21+'C-Daily Impacts'!BJ126*BJ$22)*BJ$14","v":86200.05832332409},{"$f":"('C-Daily Impacts'!BK90*BK$19+'C-Daily Impacts'!BK99*BK$20+'C-Daily Impacts'!BK108*BK$21+'C-Daily Impacts'!BK117*BK$21+'C-Daily Impacts'!BK126*BK$22)*BK$14","v":86259.50280308869},{"$f":"('C-Daily Impacts'!BL90*BL$19+'C-Daily Impacts'!BL99*BL$20+'C-Daily Impacts'!BL108*BL$21+'C-Daily Impacts'!BL117*BL$21+'C-Daily Impacts'!BL126*BL$22)*BL$14","v":86318.988276400632},{"$f":"('C-Daily Impacts'!BM90*BM$19+'C-Daily Impacts'!BM99*BM$20+'C-Daily Impacts'!BM108*BM$21+'C-Daily Impacts'!BM117*BM$21+'C-Daily Impacts'!BM126*BM$22)*BM$14","v":86378.514771529561},{"$f":"('C-Daily Impacts'!BN90*BN$19+'C-Daily Impacts'!BN99*BN$20+'C-Daily Impacts'!BN108*BN$21+'C-Daily Impacts'!BN117*BN$21+'C-Daily Impacts'!BN126*BN$22)*BN$14","v":86438.082316764543},{"$f":"('C-Daily Impacts'!BO90*BO$19+'C-Daily Impacts'!BO99*BO$20+'C-Daily Impacts'!BO108*BO$21+'C-Daily Impacts'!BO117*BO$21+'C-Daily Impacts'!BO126*BO$22)*BO$14","v":86497.690940414133},{"$f":"('C-Daily Impacts'!BP90*BP$19+'C-Daily Impacts'!BP99*BP$20+'C-Daily Impacts'!BP108*BP$21+'C-Daily Impacts'!BP117*BP$21+'C-Daily Impacts'!BP126*BP$22)*BP$14","v":86557.340670806516},{"$f":"('C-Daily Impacts'!BQ90*BQ$19+'C-Daily Impacts'!BQ99*BQ$20+'C-Daily Impacts'!BQ108*BQ$21+'C-Daily Impacts'!BQ117*BQ$21+'C-Daily Impacts'!BQ126*BQ$22)*BQ$14","v":86617.031536289258},{"$f":"('C-Daily Impacts'!BR90*BR$19+'C-Daily Impacts'!BR99*BR$20+'C-Daily Impacts'!BR108*BR$21+'C-Daily Impacts'!BR117*BR$21+'C-Daily Impacts'!BR126*BR$22)*BR$14","v":86676.763565229616},{"$f":"('C-Daily Impacts'!BS90*BS$19+'C-Daily Impacts'!BS99*BS$20+'C-Daily Impacts'!BS108*BS$21+'C-Daily Impacts'!BS117*BS$21+'C-Daily Impacts'!BS126*BS$22)*BS$14","v":86736.536786014316},{"$f":"('C-Daily Impacts'!BT90*BT$19+'C-Daily Impacts'!BT99*BT$20+'C-Daily Impacts'!BT108*BT$21+'C-Daily Impacts'!BT117*BT$21+'C-Daily Impacts'!BT126*BT$22)*BT$14","v":86796.35122704973},{"$f":"('C-Daily Impacts'!BU90*BU$19+'C-Daily Impacts'!BU99*BU$20+'C-Daily Impacts'!BU108*BU$21+'C-Daily Impacts'!BU117*BU$21+'C-Daily Impacts'!BU126*BU$22)*BU$14","v":86856.206916761774},{"$f":"('C-Daily Impacts'!BV90*BV$19+'C-Daily Impacts'!BV99*BV$20+'C-Daily Impacts'!BV108*BV$21+'C-Daily Impacts'!BV117*BV$21+'C-Daily Impacts'!BV126*BV$22)*BV$14","v":86916.103883595948},{"$f":"('C-Daily Impacts'!BW90*BW$19+'C-Daily Impacts'!BW99*BW$20+'C-Daily Impacts'!BW108*BW$21+'C-Daily Impacts'!BW117*BW$21+'C-Daily Impacts'!BW126*BW$22)*BW$14","v":86976.042156017385},{"$f":"('C-Daily Impacts'!BX90*BX$19+'C-Daily Impacts'!BX99*BX$20+'C-Daily Impacts'!BX108*BX$21+'C-Daily Impacts'!BX117*BX$21+'C-Daily Impacts'!BX126*BX$22)*BX$14","v":0},{"$f":"('C-Daily Impacts'!BY90*BY$19+'C-Daily Impacts'!BY99*BY$20+'C-Daily Impacts'!BY108*BY$21+'C-Daily Impacts'!BY117*BY$21+'C-Daily Impacts'!BY126*BY$22)*BY$14","v":0},{"$f":"('C-Daily Impacts'!BZ90*BZ$19+'C-Daily Impacts'!BZ99*BZ$20+'C-Daily Impacts'!BZ108*BZ$21+'C-Daily Impacts'!BZ117*BZ$21+'C-Daily Impacts'!BZ126*BZ$22)*BZ$14","v":0},{"$f":"('C-Daily Impacts'!CA90*CA$19+'C-Daily Impacts'!CA99*CA$20+'C-Daily Impacts'!CA108*CA$21+'C-Daily Impacts'!CA117*CA$21+'C-Daily Impacts'!CA126*CA$22)*CA$14","v":0},{"$f":"('C-Daily Impacts'!CB90*CB$19+'C-Daily Impacts'!CB99*CB$20+'C-Daily Impacts'!CB108*CB$21+'C-Daily Impacts'!CB117*CB$21+'C-Daily Impacts'!CB126*CB$22)*CB$14","v":0},{"$f":"('C-Daily Impacts'!CC90*CC$19+'C-Daily Impacts'!CC99*CC$20+'C-Daily Impacts'!CC108*CC$21+'C-Daily Impacts'!CC117*CC$21+'C-Daily Impacts'!CC126*CC$22)*CC$14","v":0},{"$f":"('C-Daily Impacts'!CD90*CD$19+'C-Daily Impacts'!CD99*CD$20+'C-Daily Impacts'!CD108*CD$21+'C-Daily Impacts'!CD117*CD$21+'C-Daily Impacts'!CD126*CD$22)*CD$14","v":0},{"$f":"('C-Daily Impacts'!CE90*CE$19+'C-Daily Impacts'!CE99*CE$20+'C-Daily Impacts'!CE108*CE$21+'C-Daily Impacts'!CE117*CE$21+'C-Daily Impacts'!CE126*CE$22)*CE$14","v":0}]
[null,null,null,"Greenhouse Gases",null,null,null,30665023.106514901,null,"£, 2023 prices",{"$f":"('C-Daily Impacts'!K91*K$19+'C-Daily Impacts'!K100*K$20+'C-Daily Impacts'!K109*K$21+'C-Daily Impacts'!K118*K$21+'C-Daily Impacts'!K127*K$22)*K$14","v":0},{"$f":"('C-Daily Impacts'!L91*L$19+'C-Daily Impacts'!L100*L$20+'C-Daily Impacts'!L109*L$21+'C-Daily Impacts'!L118*L$21+'C-Daily Impacts'!L127*L$22)*L$14","v":0},{"$f":"('C-Daily Impacts'!M91*M$19+'C-Daily Impacts'!M100*M$20+'C-Daily Impacts'!M109*M$21+'C-Daily Impacts'!M118*M$21+'C-Daily Impacts'!M127*M$22)*M$14","v":0},{"$f":"('C-Daily Impacts'!N91*N$19+'C-Daily Impacts'!N100*N$20+'C-Daily Impacts'!N109*N$21+'C-Daily Impacts'!N118*N$21+'C-Daily Impacts'!N127*N$22)*N$14","v":0},{"$f":"('C-Daily Impacts'!O91*O$19+'C-Daily Impacts'!O100*O$20+'C-Daily Impacts'!O109*O$21+'C-Daily Impacts'!O118*O$21+'C-Daily Impacts'!O127*O$22)*O$14","v":0},{"$f":"('C-Daily Impacts'!P91*P$19+'C-Daily Impacts'!P100*P$20+'C-Daily Impacts'!P109*P$21+'C-Daily Impacts'!P118*P$21+'C-Daily Impacts'!P127*P$22)*P$14","v":372412.56150483084},{"$f":"('C-Daily Impacts'!Q91*Q$19+'C-Daily Impacts'!Q100*Q$20+'C-Daily Impacts'!Q109*Q$21+'C-Daily Impacts'!Q118*Q$21+'C-Daily Impacts'!Q127*Q$22)*Q$14","v":376115.71511304297},{"$f":"('C-Daily Impacts'!R91*R$19+'C-Daily Impacts'!R100*R$20+'C-Daily Impacts'!R109*R$21+'C-Daily Impacts'!R118*R$21+'C-Daily Impacts'!R127*R$22)*R$14","v":379871.85074611125},{"$f":"('C-Daily Impacts'!S91*S$19+'C-Daily Impacts'!S100*S$20+'C-Daily Impacts'!S109*S$21+'C-Daily Impacts'!S118*S$21+'C-Daily Impacts'!S127*S$22)*S$14","v":383259.10101737885},{"$f":"('C-Daily Impacts'!T91*T$19+'C-Daily Impacts'!T100*T$20+'C-Daily Impacts'!T109*T$21+'C-Daily Impacts'!T118*T$21+'C-Daily Impacts'!T127*T$22)*T$14","v":386713.10564581619},{"$f":"('C-Daily Impacts'!U91*U$19+'C-Daily Impacts'!U100*U$20+'C-Daily Impacts'!U109*U$21+'C-Daily Impacts'!U118*U$21+'C-Daily Impacts'!U127*U$22)*U$14","v":390234.54258038674},{"$f":"('C-Daily Impacts'!V91*V$19+'C-Daily Impacts'!V100*V$20+'C-Daily Impacts'!V109*V$21+'C-Daily Impacts'!V118*V$21+'C-Daily Impacts'!V127*V$22)*V$14","v":393824.10249392968},{"$f":"('C-Daily Impacts'!W91*W$19+'C-Daily Impacts'!W100*W$20+'C-Daily Impacts'!W109*W$21+'C-Daily Impacts'!W118*W$21+'C-Daily Impacts'!W127*W$22)*W$14","v":397482.48891896091},{"$f":"('C-Daily Impacts'!X91*X$19+'C-Daily Impacts'!X100*X$20+'C-Daily Impacts'!X109*X$21+'C-Daily Impacts'!X118*X$21+'C-Daily Impacts'!X127*X$22)*X$14","v":402791.90376574895},{"$f":"('C-Daily Impacts'!Y91*Y$19+'C-Daily Impacts'!Y100*Y$20+'C-Daily Impacts'!Y109*Y$21+'C-Daily Impacts'!Y118*Y$21+'C-Daily Impacts'!Y127*Y$22)*Y$14","v":408176.04974663199},{"$f":"('C-Daily Impacts'!Z91*Z$19+'C-Daily Impacts'!Z100*Z$20+'C-Daily Impacts'!Z109*Z$21+'C-Daily Impacts'!Z118*Z$21+'C-Daily Impacts'!Z127*Z$22)*Z$14","v":413636.00928217953},{"$f":"('C-Daily Impacts'!AA91*AA$19+'C-Daily Impacts'!AA100*AA$20+'C-Daily Impacts'!AA109*AA$21+'C-Daily Impacts'!AA118*AA$21+'C-Daily Impacts'!AA127*AA$22)*AA$14","v":419172.88070631557},{"$f":"('C-Daily Impacts'!AB91*AB$19+'C-Daily Impacts'!AB100*AB$20+'C-Daily Impacts'!AB109*AB$21+'C-Daily Impacts'!AB118*AB$21+'C-Daily Impacts'!AB127*AB$22)*AB$14","v":424787.77850205376},{"$f":"('C-Daily Impacts'!AC91*AC$19+'C-Daily Impacts'!AC100*AC$20+'C-Daily Impacts'!AC109*AC$21+'C-Daily Impacts'!AC118*AC$21+'C-Daily Impacts'!AC127*AC$22)*AC$14","v":430819.11390273401},{"$f":"('C-Daily Impacts'!AD91*AD$19+'C-Daily Impacts'!AD100*AD$20+'C-Daily Impacts'!AD109*AD$21+'C-Daily Impacts'!AD118*AD$21+'C-Daily Impacts'!AD127*AD$22)*AD$14","v":436936.33911622869},{"$f":"('C-Daily Impacts'!AE91*AE$19+'C-Daily Impacts'!AE100*AE$20+'C-Daily Impacts'!AE109*AE$21+'C-Daily Impacts'!AE118*AE$21+'C-Daily Impacts'!AE127*AE$22)*AE$14","v":443140.68126516649},{"$f":"('C-Daily Impacts'!AF91*AF$19+'C-Daily Impacts'!AF100*AF$20+'C-Daily Impacts'!AF109*AF$21+'C-Daily Impacts'!AF118*AF$21+'C-Daily Impacts'!AF127*AF$22)*AF$14","v":449433.38506713486},{"$f":"('C-Daily Impacts'!AG91*AG$19+'C-Daily Impacts'!AG100*AG$20+'C-Daily Impacts'!AG109*AG$21+'C-Daily Impacts'!AG118*AG$21+'C-Daily Impacts'!AG127*AG$22)*AG$14","v":455815.71308794722},{"$f":"('C-Daily Impacts'!AH91*AH$19+'C-Daily Impacts'!AH100*AH$20+'C-Daily Impacts'!AH109*AH$21+'C-Daily Impacts'!AH118*AH$21+'C-Daily Impacts'!AH127*AH$22)*AH$14","v":462357.09879864968},{"$f":"('C-Daily Impacts'!AI91*AI$19+'C-Daily Impacts'!AI100*AI$20+'C-Daily Impacts'!AI109*AI$21+'C-Daily Impacts'!AI118*AI$21+'C-Daily Impacts'!AI127*AI$22)*AI$14","v":468993.06636661978},{"$f":"('C-Daily Impacts'!AJ91*AJ$19+'C-Daily Impacts'!AJ100*AJ$20+'C-Daily Impacts'!AJ109*AJ$21+'C-Daily Impacts'!AJ118*AJ$21+'C-Daily Impacts'!AJ127*AJ$22)*AJ$14","v":475724.99512963323},{"$f":"('C-Daily Impacts'!AK91*AK$19+'C-Daily Impacts'!AK100*AK$20+'C-Daily Impacts'!AK109*AK$21+'C-Daily Impacts'!AK118*AK$21+'C-Daily Impacts'!AK127*AK$22)*AK$14","v":482554.28473618941},{"$f":"('C-Daily Impacts'!AL91*AL$19+'C-Daily Impacts'!AL100*AL$20+'C-Daily Impacts'!AL109*AL$21+'C-Daily Impacts'!AL118*AL$21+'C-Daily Impacts'!AL127*AL$22)*AL$14","v":489482.35544779454},{"$f":"('C-Daily Impacts'!AM91*AM$19+'C-Daily Impacts'!AM100*AM$20+'C-Daily Impacts'!AM109*AM$21+'C-Daily Impacts'!AM118*AM$21+'C-Daily Impacts'!AM127*AM$22)*AM$14","v":497468.86628886138},{"$f":"('C-Daily Impacts'!AN91*AN$19+'C-Daily Impacts'!AN100*AN$20+'C-Daily Impacts'!AN109*AN$21+'C-Daily Impacts'!AN118*AN$21+'C-Daily Impacts'!AN127*AN$22)*AN$14","v":505585.76445504936},{"$f":"('C-Daily Impacts'!AO91*AO$19+'C-Daily Impacts'!AO100*AO$20+'C-Daily Impacts'!AO109*AO$21+'C-Daily Impacts'!AO118*AO$21+'C-Daily Impacts'!AO127*AO$22)*AO$14","v":513835.17995146918},{"$f":"('C-Daily Impacts'!AP91*AP$19+'C-Daily Impacts'!AP100*AP$20+'C-Daily Impacts'!AP109*AP$21+'C-Daily Impacts'!AP118*AP$21+'C-Daily Impacts'!AP127*AP$22)*AP$14","v":522219.27760105196},{"$f":"('C-Daily Impacts'!AQ91*AQ$19+'C-Daily Impacts'!AQ100*AQ$20+'C-Daily Impacts'!AQ109*AQ$21+'C-Daily Impacts'!AQ118*AQ$21+'C-Daily Impacts'!AQ127*AQ$22)*AQ$14","v":530740.25761406682},{"$f":"('C-Daily Impacts'!AR91*AR$19+'C-Daily Impacts'!AR100*AR$20+'C-Daily Impacts'!AR109*AR$21+'C-Daily Impacts'!AR118*AR$21+'C-Daily Impacts'!AR127*AR$22)*AR$14","v":539375.24737875233},{"$f":"('C-Daily Impacts'!AS91*AS$19+'C-Daily Impacts'!AS100*AS$20+'C-Daily Impacts'!AS109*AS$21+'C-Daily Impacts'!AS118*AS$21+'C-Daily Impacts'!AS127*AS$22)*AS$14","v":548150.74139426206},{"$f":"('C-Daily Impacts'!AT91*AT$19+'C-Daily Impacts'!AT100*AT$20+'C-Daily Impacts'!AT109*AT$21+'C-Daily Impacts'!AT118*AT$21+'C-Daily Impacts'!AT127*AT$22)*AT$14","v":557069.0261313871},{"$f":"('C-Daily Impacts'!AU91*AU$19+'C-Daily Impacts'!AU100*AU$20+'C-Daily Impacts'!AU109*AU$21+'C-Daily Impacts'!AU118*AU$21+'C-Daily Impacts'!AU127*AU$22)*AU$14","v":566132.42527361412},{"$f":"('C-Daily Impacts'!AV91*AV$19+'C-Daily Impacts'!AV100*AV$20+'C-Daily Impacts'!AV109*AV$21+'C-Daily Impacts'!AV118*AV$21+'C-Daily Impacts'!AV127*AV$22)*AV$14","v":575343.30032283766},{"$f":"('C-Daily Impacts'!AW91*AW$19+'C-Daily Impacts'!AW100*AW$20+'C-Daily Impacts'!AW109*AW$21+'C-Daily Impacts'!AW118*AW$21+'C-Daily Impacts'!AW127*AW$22)*AW$14","v":575425.08136163361},{"$f":"('C-Daily Impacts'!AX91*AX$19+'C-Daily Impacts'!AX100*AX$20+'C-Daily Impacts'!AX109*AX$21+'C-Daily Impacts'!AX118*AX$21+'C-Daily Impacts'!AX127*AX$22)*AX$14","v":575506.91879750625},{"$f":"('C-Daily Impacts'!AY91*AY$19+'C-Daily Impacts'!AY100*AY$20+'C-Daily Impacts'!AY109*AY$21+'C-Daily Impacts'!AY118*AY$21+'C-Daily Impacts'!AY127*AY$22)*AY$14","v":575588.81266934774},{"$f":"('C-Daily Impacts'!AZ91*AZ$19+'C-Daily Impacts'!AZ100*AZ$20+'C-Daily Impacts'!AZ109*AZ$21+'C-Daily Impacts'!AZ118*AZ$21+'C-Daily Impacts'!AZ127*AZ$22)*AZ$14","v":575670.76301607687},{"$f":"('C-Daily Impacts'!BA91*BA$19+'C-Daily Impacts'!BA100*BA$20+'C-Daily Impacts'!BA109*BA$21+'C-Daily Impacts'!BA118*BA$21+'C-Daily Impacts'!BA127*BA$22)*BA$14","v":575752.76987663924},{"$f":"('C-Daily Impacts'!BB91*BB$19+'C-Daily Impacts'!BB100*BB$20+'C-Daily Impacts'!BB109*BB$21+'C-Daily Impacts'!BB118*BB$21+'C-Daily Impacts'!BB127*BB$22)*BB$14","v":575834.83329000755},{"$f":"('C-Daily Impacts'!BC91*BC$19+'C-Daily Impacts'!BC100*BC$20+'C-Daily Impacts'!BC109*BC$21+'C-Daily Impacts'!BC118*BC$21+'C-Daily Impacts'!BC127*BC$22)*BC$14","v":575916.95329518116},{"$f":"('C-Daily Impacts'!BD91*BD$19+'C-Daily Impacts'!BD100*BD$20+'C-Daily Impacts'!BD109*BD$21+'C-Daily Impacts'!BD118*BD$21+'C-Daily Impacts'!BD127*BD$22)*BD$14","v":575999.12993118633},{"$f":"('C-Daily Impacts'!BE91*BE$19+'C-Daily Impacts'!BE100*BE$20+'C-Daily Impacts'!BE109*BE$21+'C-Daily Impacts'!BE118*BE$21+'C-Daily Impacts'!BE127*BE$22)*BE$14","v":576081.36323707632},{"$f":"('C-Daily Impacts'!BF91*BF$19+'C-Daily Impacts'!BF100*BF$20+'C-Daily Impacts'!BF109*BF$21+'C-Daily Impacts'!BF118*BF$21+'C-Daily Impacts'!BF127*BF$22)*BF$14","v":576163.6532519313},{"$f":"('C-Daily Impacts'!BG91*BG$19+'C-Daily Impacts'!BG100*BG$20+'C-Daily Impacts'!BG109*BG$21+'C-Daily Impacts'!BG118*BG$21+'C-Daily Impacts'!BG127*BG$22)*BG$14","v":576246.00001485832},{"$f":"('C-Daily Impacts'!BH91*BH$19+'C-Daily Impacts'!BH100*BH$20+'C-Daily Impacts'!BH109*BH$21+'C-Daily Impacts'!BH118*BH$21+'C-Daily Impacts'!BH127*BH$22)*BH$14","v":576328.40356499155},{"$f":"('C-Daily Impacts'!BI91*BI$19+'C-Daily Impacts'!BI100*BI$20+'C-Daily Impacts'!BI109*BI$21+'C-Daily Impacts'!BI118*BI$21+'C-Daily Impacts'!BI127*BI$22)*BI$14","v":576410.86394149193},{"$f":"('C-Daily Impacts'!BJ91*BJ$19+'C-Daily Impacts'!BJ100*BJ$20+'C-Daily Impacts'!BJ109*BJ$21+'C-Daily Impacts'!BJ118*BJ$21+'C-Daily Impacts'!BJ127*BJ$22)*BJ$14","v":576493.38118354767},{"$f":"('C-Daily Impacts'!BK91*BK$19+'C-Daily Impacts'!BK100*BK$20+'C-Daily Impacts'!BK109*BK$21+'C-Daily Impacts'!BK118*BK$21+'C-Daily Impacts'!BK127*BK$22)*BK$14","v":576575.95533037372},{"$f":"('C-Daily Impacts'!BL91*BL$19+'C-Daily Impacts'!BL100*BL$20+'C-Daily Impacts'!BL109*BL$21+'C-Daily Impacts'!BL118*BL$21+'C-Daily Impacts'!BL127*BL$22)*BL$14","v":576658.5864212123},{"$f":"('C-Daily Impacts'!BM91*BM$19+'C-Daily Impacts'!BM100*BM$20+'C-Daily Impacts'!BM109*BM$21+'C-Daily Impacts'!BM118*BM$21+'C-Daily Impacts'!BM127*BM$22)*BM$14","v":576741.27449533262},{"$f":"('C-Daily Impacts'!BN91*BN$19+'C-Daily Impacts'!BN100*BN$20+'C-Daily Impacts'!BN109*BN$21+'C-Daily Impacts'!BN118*BN$21+'C-Daily Impacts'!BN127*BN$22)*BN$14","v":576824.01959203091},{"$f":"('C-Daily Impacts'!BO91*BO$19+'C-Daily Impacts'!BO100*BO$20+'C-Daily Impacts'!BO109*BO$21+'C-Daily Impacts'!BO118*BO$21+'C-Daily Impacts'!BO127*BO$22)*BO$14","v":576906.82175063062},{"$f":"('C-Daily Impacts'!BP91*BP$19+'C-Daily Impacts'!BP100*BP$20+'C-Daily Impacts'!BP109*BP$21+'C-Daily Impacts'!BP118*BP$21+'C-Daily Impacts'!BP127*BP$22)*BP$14","v":576989.68101048213},{"$f":"('C-Daily Impacts'!BQ91*BQ$19+'C-Daily Impacts'!BQ100*BQ$20+'C-Daily Impacts'!BQ109*BQ$21+'C-Daily Impacts'!BQ118*BQ$21+'C-Daily Impacts'!BQ127*BQ$22)*BQ$14","v":577072.59741096327},{"$f":"('C-Daily Impacts'!BR91*BR$19+'C-Daily Impacts'!BR100*BR$20+'C-Daily Impacts'!BR109*BR$21+'C-Daily Impacts'!BR118*BR$21+'C-Daily Impacts'!BR127*BR$22)*BR$14","v":577155.57099147863},{"$f":"('C-Daily Impacts'!BS91*BS$19+'C-Daily Impacts'!BS100*BS$20+'C-Daily Impacts'!BS109*BS$21+'C-Daily Impacts'!BS118*BS$21+'C-Daily Impacts'!BS127*BS$22)*BS$14","v":577238.60179146018},{"$f":"('C-Daily Impacts'!BT91*BT$19+'C-Daily Impacts'!BT100*BT$20+'C-Daily Impacts'!BT109*BT$21+'C-Daily Impacts'!BT118*BT$21+'C-Daily Impacts'!BT127*BT$22)*BT$14","v":577321.68985036726},{"$f":"('C-Daily Impacts'!BU91*BU$19+'C-Daily Impacts'!BU100*BU$20+'C-Daily Impacts'!BU109*BU$21+'C-Daily Impacts'!BU118*BU$21+'C-Daily Impacts'!BU127*BU$22)*BU$14","v":577404.83520768606},{"$f":"('C-Daily Impacts'!BV91*BV$19+'C-Daily Impacts'!BV100*BV$20+'C-Daily Impacts'!BV109*BV$21+'C-Daily Impacts'!BV118*BV$21+'C-Daily Impacts'!BV127*BV$22)*BV$14","v":577488.03790293029},{"$f":"('C-Daily Impacts'!BW91*BW$19+'C-Daily Impacts'!BW100*BW$20+'C-Daily Impacts'!BW109*BW$21+'C-Daily Impacts'!BW118*BW$21+'C-Daily Impacts'!BW127*BW$22)*BW$14","v":577571.29797564063},{"$f":"('C-Daily Impacts'!BX91*BX$19+'C-Daily Impacts'!BX100*BX$20+'C-Daily Impacts'!BX109*BX$21+'C-Daily Impacts'!BX118*BX$21+'C-Daily Impacts'!BX127*BX$22)*BX$14","v":0},{"$f":"('C-Daily Impacts'!BY91*BY$19+'C-Daily Impacts'!BY100*BY$20+'C-Daily Impacts'!BY109*BY$21+'C-Daily Impacts'!BY118*BY$21+'C-Daily Impacts'!BY127*BY$22)*BY$14","v":0},{"$f":"('C-Daily Impacts'!BZ91*BZ$19+'C-Daily Impacts'!BZ100*BZ$20+'C-Daily Impacts'!BZ109*BZ$21+'C-Daily Impacts'!BZ118*BZ$21+'C-Daily Impacts'!BZ127*BZ$22)*BZ$14","v":0},{"$f":"('C-Daily Impacts'!CA91*CA$19+'C-Daily Impacts'!CA100*CA$20+'C-Daily Impacts'!CA109*CA$21+'C-Daily Impacts'!CA118*CA$21+'C-Daily Impacts'!CA127*CA$22)*CA$14","v":0},{"$f":"('C-Daily Impacts'!CB91*CB$19+'C-Daily Impacts'!CB100*CB$20+'C-Daily Impacts'!CB109*CB$21+'C-Daily Impacts'!CB118*CB$21+'C-Daily Impacts'!CB127*CB$22)*CB$14","v":0},{"$f":"('C-Daily Impacts'!CC91*CC$19+'C-Daily Impacts'!CC100*CC$20+'C-Daily Impacts'!CC109*CC$21+'C-Daily Impacts'!CC118*CC$21+'C-Daily Impacts'!CC127*CC$22)*CC$14","v":0},{"$f":"('C-Daily Impacts'!CD91*CD$19+'C-Daily Impacts'!CD100*CD$20+'C-Daily Impacts'!CD109*CD$21+'C-Daily Impacts'!CD118*CD$21+'C-Daily Impacts'!CD127*CD$22)*CD$14","v":0},{"$f":"('C-Daily Impacts'!CE91*CE$19+'C-Daily Impacts'!CE100*CE$20+'C-Daily Impacts'!CE109*CE$21+'C-Daily Impacts'!CE118*CE$21+'C-Daily Impacts'!CE127*CE$22)*CE$14","v":0}]
[null,null,null,"Indirect Taxation",null,null,null,-14610778.705634002,null,"£, 2023 prices",{"$f":"('C-Daily Impacts'!K92*K$19+'C-Daily Impacts'!K101*K$20+'C-Daily Impacts'!K110*K$21+'C-Daily Impacts'!K119*K$21+'C-Daily Impacts'!K128*K$22)*K$14","v":0},{"$f":"('C-Daily Impacts'!L92*L$19+'C-Daily Impacts'!L101*L$20+'C-Daily Impacts'!L110*L$21+'C-Daily Impacts'!L119*L$21+'C-Daily Impacts'!L128*L$22)*L$14","v":0},{"$f":"('C-Daily Impacts'!M92*M$19+'C-Daily Impacts'!M101*M$20+'C-Daily Impacts'!M110*M$21+'C-Daily Impacts'!M119*M$21+'C-Daily Impacts'!M128*M$22)*M$14","v":0},{"$f":"('C-Daily Impacts'!N92*N$19+'C-Daily Impacts'!N101*N$20+'C-Daily Impacts'!N110*N$21+'C-Daily Impacts'!N119*N$21+'C-Daily Impacts'!N128*N$22)*N$14","v":0},{"$f":"('C-Daily Impacts'!O92*O$19+'C-Daily Impacts'!O101*O$20+'C-Daily Impacts'!O110*O$21+'C-Daily Impacts'!O119*O$21+'C-Daily Impacts'!O128*O$22)*O$14","v":0},{"$f":"('C-Daily Impacts'!P92*P$19+'C-Daily Impacts'!P101*P$20+'C-Daily Impacts'!P110*P$21+'C-Daily Impacts'!P119*P$21+'C-Daily Impacts'!P128*P$22)*P$14","v":-267236.99972235865},{"$f":"('C-Daily Impacts'!Q92*Q$19+'C-Daily Impacts'!Q101*Q$20+'C-Daily Impacts'!Q110*Q$21+'C-Daily Impacts'!Q119*Q$21+'C-Daily Impacts'!Q128*Q$22)*Q$14","v":-266330.3830378463},{"$f":"('C-Daily Impacts'!R92*R$19+'C-Daily Impacts'!R101*R$20+'C-Daily Impacts'!R110*R$21+'C-Daily Impacts'!R119*R$21+'C-Daily Impacts'!R128*R$22)*R$14","v":-265422.09022908629},{"$f":"('C-Daily Impacts'!S92*S$19+'C-Daily Impacts'!S101*S$20+'C-Daily Impacts'!S110*S$21+'C-Daily Impacts'!S119*S$21+'C-Daily Impacts'!S128*S$22)*S$14","v":-262581.30493274861},{"$f":"('C-Daily Impacts'!T92*T$19+'C-Daily Impacts'!T101*T$20+'C-Daily Impacts'!T110*T$21+'C-Daily Impacts'!T119*T$21+'C-Daily Impacts'!T128*T$22)*T$14","v":-259738.55416279164},{"$f":"('C-Daily Impacts'!U92*U$19+'C-Daily Impacts'!U101*U$20+'C-Daily Impacts'!U110*U$21+'C-Daily Impacts'!U119*U$21+'C-Daily Impacts'!U128*U$22)*U$14","v":-256893.83620646381},{"$f":"('C-Daily Impacts'!V92*V$19+'C-Daily Impacts'!V101*V$20+'C-Daily Impacts'!V110*V$21+'C-Daily Impacts'!V119*V$21+'C-Daily Impacts'!V128*V$22)*V$14","v":-254047.14934968966},{"$f":"('C-Daily Impacts'!W92*W$19+'C-Daily Impacts'!W101*W$20+'C-Daily Impacts'!W110*W$21+'C-Daily Impacts'!W119*W$21+'C-Daily Impacts'!W128*W$22)*W$14","v":-251198.49187706862},{"$f":"('C-Daily Impacts'!X92*X$19+'C-Daily Impacts'!X101*X$20+'C-Daily Impacts'!X110*X$21+'C-Daily Impacts'!X119*X$21+'C-Daily Impacts'!X128*X$22)*X$14","v":-250469.06282385677},{"$f":"('C-Daily Impacts'!Y92*Y$19+'C-Daily Impacts'!Y101*Y$20+'C-Daily Impacts'!Y110*Y$21+'C-Daily Impacts'!Y119*Y$21+'C-Daily Impacts'!Y128*Y$22)*Y$14","v":-249737.11596987114},{"$f":"('C-Daily Impacts'!Z92*Z$19+'C-Daily Impacts'!Z101*Z$20+'C-Daily Impacts'!Z110*Z$21+'C-Daily Impacts'!Z119*Z$21+'C-Daily Impacts'!Z128*Z$22)*Z$14","v":-249002.64411184192},{"$f":"('C-Daily Impacts'!AA92*AA$19+'C-Daily Impacts'!AA101*AA$20+'C-Daily Impacts'!AA110*AA$21+'C-Daily Impacts'!AA119*AA$21+'C-Daily Impacts'!AA128*AA$22)*AA$14","v":-248265.64002843224},{"$f":"('C-Daily Impacts'!AB92*AB$19+'C-Daily Impacts'!AB101*AB$20+'C-Daily Impacts'!AB110*AB$21+'C-Daily Impacts'!AB119*AB$21+'C-Daily Impacts'!AB128*AB$22)*AB$14","v":-247526.09648019547},{"$f":"('C-Daily Impacts'!AC92*AC$19+'C-Daily Impacts'!AC101*AC$20+'C-Daily Impacts'!AC110*AC$21+'C-Daily Impacts'!AC119*AC$21+'C-Daily Impacts'!AC128*AC$22)*AC$14","v":-247142.07082378771},{"$f":"('C-Daily Impacts'!AD92*AD$19+'C-Daily Impacts'!AD101*AD$20+'C-Daily Impacts'!AD110*AD$21+'C-Daily Impacts'!AD119*AD$21+'C-Daily Impacts'!AD128*AD$22)*AD$14","v":-246757.31761241506},{"$f":"('C-Daily Impacts'!AE92*AE$19+'C-Daily Impacts'!AE101*AE$20+'C-Daily Impacts'!AE110*AE$21+'C-Daily Impacts'!AE119*AE$21+'C-Daily Impacts'!AE128*AE$22)*AE$14","v":-246371.83473475295},{"$f":"('C-Daily Impacts'!AF92*AF$19+'C-Daily Impacts'!AF101*AF$20+'C-Daily Impacts'!AF110*AF$21+'C-Daily Impacts'!AF119*AF$21+'C-Daily Impacts'!AF128*AF$22)*AF$14","v":-245985.62007425629},{"$f":"('C-Daily Impacts'!AG92*AG$19+'C-Daily Impacts'!AG101*AG$20+'C-Daily Impacts'!AG110*AG$21+'C-Daily Impacts'!AG119*AG$21+'C-Daily Impacts'!AG128*AG$22)*AG$14","v":-245598.67150914739},{"$f":"('C-Daily Impacts'!AH92*AH$19+'C-Daily Impacts'!AH101*AH$20+'C-Daily Impacts'!AH110*AH$21+'C-Daily Impacts'!AH119*AH$21+'C-Daily Impacts'!AH128*AH$22)*AH$14","v":-244848.28071180527},{"$f":"('C-Daily Impacts'!AI92*AI$19+'C-Daily Impacts'!AI101*AI$20+'C-Daily Impacts'!AI110*AI$21+'C-Daily Impacts'!AI119*AI$21+'C-Daily Impacts'!AI128*AI$22)*AI$14","v":-244097.3820753998},{"$f":"('C-Daily Impacts'!AJ92*AJ$19+'C-Daily Impacts'!AJ101*AJ$20+'C-Daily Impacts'!AJ110*AJ$21+'C-Daily Impacts'!AJ119*AJ$21+'C-Daily Impacts'!AJ128*AJ$22)*AJ$14","v":-243345.9739049921},{"$f":"('C-Daily Impacts'!AK92*AK$19+'C-Daily Impacts'!AK101*AK$20+'C-Daily Impacts'!AK110*AK$21+'C-Daily Impacts'!AK119*AK$21+'C-Daily Impacts'!AK128*AK$22)*AK$14","v":-242594.05450096237},{"$f":"('C-Daily Impacts'!AL92*AL$19+'C-Daily Impacts'!AL101*AL$20+'C-Daily Impacts'!AL110*AL$21+'C-Daily Impacts'!AL119*AL$21+'C-Daily Impacts'!AL128*AL$22)*AL$14","v":-241841.62215899851},{"$f":"('C-Daily Impacts'!AM92*AM$19+'C-Daily Impacts'!AM101*AM$20+'C-Daily Impacts'!AM110*AM$21+'C-Daily Impacts'!AM119*AM$21+'C-Daily Impacts'!AM128*AM$22)*AM$14","v":-241448.68664806339},{"$f":"('C-Daily Impacts'!AN92*AN$19+'C-Daily Impacts'!AN101*AN$20+'C-Daily Impacts'!AN110*AN$21+'C-Daily Impacts'!AN119*AN$21+'C-Daily Impacts'!AN128*AN$22)*AN$14","v":-241055.54644017789},{"$f":"('C-Daily Impacts'!AO92*AO$19+'C-Daily Impacts'!AO101*AO$20+'C-Daily Impacts'!AO110*AO$21+'C-Daily Impacts'!AO119*AO$21+'C-Daily Impacts'!AO128*AO$22)*AO$14","v":-240662.20110201172},{"$f":"('C-Daily Impacts'!AP92*AP$19+'C-Daily Impacts'!AP101*AP$20+'C-Daily Impacts'!AP110*AP$21+'C-Daily Impacts'!AP119*AP$21+'C-Daily Impacts'!AP128*AP$22)*AP$14","v":-240268.65019947523},{"$f":"('C-Daily Impacts'!AQ92*AQ$19+'C-Daily Impacts'!AQ101*AQ$20+'C-Daily Impacts'!AQ110*AQ$21+'C-Daily Impacts'!AQ119*AQ$21+'C-Daily Impacts'!AQ128*AQ$22)*AQ$14","v":-239874.89329771814},{"$f":"('C-Daily Impacts'!AR92*AR$19+'C-Daily Impacts'!AR101*AR$20+'C-Daily Impacts'!AR110*AR$21+'C-Daily Impacts'!AR119*AR$21+'C-Daily Impacts'!AR128*AR$22)*AR$14","v":-239474.89202005448},{"$f":"('C-Daily Impacts'!AS92*AS$19+'C-Daily Impacts'!AS101*AS$20+'C-Daily Impacts'!AS110*AS$21+'C-Daily Impacts'!AS119*AS$21+'C-Daily Impacts'!AS128*AS$22)*AS$14","v":-239074.76099599359},{"$f":"('C-Daily Impacts'!AT92*AT$19+'C-Daily Impacts'!AT101*AT$20+'C-Daily Impacts'!AT110*AT$21+'C-Daily Impacts'!AT119*AT$21+'C-Daily Impacts'!AT128*AT$22)*AT$14","v":-238674.5000822091},{"$f":"('C-Daily Impacts'!AU92*AU$19+'C-Daily Impacts'!AU101*AU$20+'C-Daily Impacts'!AU110*AU$21+'C-Daily Impacts'!AU119*AU$21+'C-Daily Impacts'!AU128*AU$22)*AU$14","v":-238274.10913523874},{"$f":"('C-Daily Impacts'!AV92*AV$19+'C-Daily Impacts'!AV101*AV$20+'C-Daily Impacts'!AV110*AV$21+'C-Daily Impacts'!AV119*AV$21+'C-Daily Impacts'!AV128*AV$22)*AV$14","v":-237873.58801148401},{"$f":"('C-Daily Impacts'!AW92*AW$19+'C-Daily Impacts'!AW101*AW$20+'C-Daily Impacts'!AW110*AW$21+'C-Daily Impacts'!AW119*AW$21+'C-Daily Impacts'!AW128*AW$22)*AW$14","v":-237911.66055188308},{"$f":"('C-Daily Impacts'!AX92*AX$19+'C-Daily Impacts'!AX101*AX$20+'C-Daily Impacts'!AX110*AX$21+'C-Daily Impacts'!AX119*AX$21+'C-Daily Impacts'!AX128*AX$22)*AX$14","v":-237949.75934751212},{"$f":"('C-Daily Impacts'!AY92*AY$19+'C-Daily Impacts'!AY101*AY$20+'C-Daily Impacts'!AY110*AY$21+'C-Daily Impacts'!AY119*AY$21+'C-Daily Impacts'!AY128*AY$22)*AY$14","v":-237987.88441647709},{"$f":"('C-Daily Impacts'!AZ92*AZ$19+'C-Daily Impacts'!AZ101*AZ$20+'C-Daily Impacts'!AZ110*AZ$21+'C-Daily Impacts'!AZ119*AZ$21+'C-Daily Impacts'!AZ128*AZ$22)*AZ$14","v":-238026.03577689629},{"$f":"('C-Daily Impacts'!BA92*BA$19+'C-Daily Impacts'!BA101*BA$20+'C-Daily Impacts'!BA110*BA$21+'C-Daily Impacts'!BA119*BA$21+'C-Daily Impacts'!BA128*BA$22)*BA$14","v":-238064.21344690063},{"$f":"('C-Daily Impacts'!BB92*BB$19+'C-Daily Impacts'!BB101*BB$20+'C-Daily Impacts'!BB110*BB$21+'C-Daily Impacts'!BB119*BB$21+'C-Daily Impacts'!BB128*BB$22)*BB$14","v":-238102.41744463347},{"$f":"('C-Daily Impacts'!BC92*BC$19+'C-Daily Impacts'!BC101*BC$20+'C-Daily Impacts'!BC110*BC$21+'C-Daily Impacts'!BC119*BC$21+'C-Daily Impacts'!BC128*BC$22)*BC$14","v":-238140.6477882507},{"$f":"('C-Daily Impacts'!BD92*BD$19+'C-Daily Impacts'!BD101*BD$20+'C-Daily Impacts'!BD110*BD$21+'C-Daily Impacts'!BD119*BD$21+'C-Daily Impacts'!BD128*BD$22)*BD$14","v":-238178.90449592069},{"$f":"('C-Daily Impacts'!BE92*BE$19+'C-Daily Impacts'!BE101*BE$20+'C-Daily Impacts'!BE110*BE$21+'C-Daily Impacts'!BE119*BE$21+'C-Daily Impacts'!BE128*BE$22)*BE$14","v":-238217.1875858244},{"$f":"('C-Daily Impacts'!BF92*BF$19+'C-Daily Impacts'!BF101*BF$20+'C-Daily Impacts'!BF110*BF$21+'C-Daily Impacts'!BF119*BF$21+'C-Daily Impacts'!BF128*BF$22)*BF$14","v":-238255.49707615533},{"$f":"('C-Daily Impacts'!BG92*BG$19+'C-Daily Impacts'!BG101*BG$20+'C-Daily Impacts'!BG110*BG$21+'C-Daily Impacts'!BG119*BG$21+'C-Daily Impacts'!BG128*BG$22)*BG$14","v":-238293.83298511946},{"$f":"('C-Daily Impacts'!BH92*BH$19+'C-Daily Impacts'!BH101*BH$20+'C-Daily Impacts'!BH110*BH$21+'C-Daily Impacts'!BH119*BH$21+'C-Daily Impacts'!BH128*BH$22)*BH$14","v":-238332.19533093536},{"$f":"('C-Daily Impacts'!BI92*BI$19+'C-Daily Impacts'!BI101*BI$20+'C-Daily Impacts'!BI110*BI$21+'C-Daily Impacts'!BI119*BI$21+'C-Daily Impacts'!BI128*BI$22)*BI$14","v":-238370.58413183416},{"$f":"('C-Daily Impacts'!BJ92*BJ$19+'C-Daily Impacts'!BJ101*BJ$20+'C-Daily Impacts'!BJ110*BJ$21+'C-Daily Impacts'!BJ119*BJ$21+'C-Daily Impacts'!BJ128*BJ$22)*BJ$14","v":-238408.99940605953},{"$f":"('C-Daily Impacts'!BK92*BK$19+'C-Daily Impacts'!BK101*BK$20+'C-Daily Impacts'!BK110*BK$21+'C-Daily Impacts'!BK119*BK$21+'C-Daily Impacts'!BK128*BK$22)*BK$14","v":-238447.44117186786},{"$f":"('C-Daily Impacts'!BL92*BL$19+'C-Daily Impacts'!BL101*BL$20+'C-Daily Impacts'!BL110*BL$21+'C-Daily Impacts'!BL119*BL$21+'C-Daily Impacts'!BL128*BL$22)*BL$14","v":-238485.90944752796},{"$f":"('C-Daily Impacts'!BM92*BM$19+'C-Daily Impacts'!BM101*BM$20+'C-Daily Impacts'!BM110*BM$21+'C-Daily Impacts'!BM119*BM$21+'C-Daily Impacts'!BM128*BM$22)*BM$14","v":-238524.40425132131},{"$f":"('C-Daily Impacts'!BN92*BN$19+'C-Daily Impacts'!BN101*BN$20+'C-Daily Impacts'!BN110*BN$21+'C-Daily Impacts'!BN119*BN$21+'C-Daily Impacts'!BN128*BN$22)*BN$14","v":-238562.925601542},{"$f":"('C-Daily Impacts'!BO92*BO$19+'C-Daily Impacts'!BO101*BO$20+'C-Daily Impacts'!BO110*BO$21+'C-Daily Impacts'!BO119*BO$21+'C-Daily Impacts'!BO128*BO$22)*BO$14","v":-238601.47351649674},{"$f":"('C-Daily Impacts'!BP92*BP$19+'C-Daily Impacts'!BP101*BP$20+'C-Daily Impacts'!BP110*BP$21+'C-Daily Impacts'!BP119*BP$21+'C-Daily Impacts'!BP128*BP$22)*BP$14","v":-238640.04801450486},{"$f":"('C-Daily Impacts'!BQ92*BQ$19+'C-Daily Impacts'!BQ101*BQ$20+'C-Daily Impacts'!BQ110*BQ$21+'C-Daily Impacts'!BQ119*BQ$21+'C-Daily Impacts'!BQ128*BQ$22)*BQ$14","v":-238678.64911389828},{"$f":"('C-Daily Impacts'!BR92*BR$19+'C-Daily Impacts'!BR101*BR$20+'C-Daily Impacts'!BR110*BR$21+'C-Daily Impacts'!BR119*BR$21+'C-Daily Impacts'!BR128*BR$22)*BR$14","v":-238717.27683302163},{"$f":"('C-Daily Impacts'!BS92*BS$19+'C-Daily Impacts'!BS101*BS$20+'C-Daily Impacts'!BS110*BS$21+'C-Daily Impacts'!BS119*BS$21+'C-Daily Impacts'!BS128*BS$22)*BS$14","v":-238755.93119023216},{"$f":"('C-Daily Impacts'!BT92*BT$19+'C-Daily Impacts'!BT101*BT$20+'C-Daily Impacts'!BT110*BT$21+'C-Daily Impacts'!BT119*BT$21+'C-Daily Impacts'!BT128*BT$22)*BT$14","v":-238794.61220389977},{"$f":"('C-Daily Impacts'!BU92*BU$19+'C-Daily Impacts'!BU101*BU$20+'C-Daily Impacts'!BU110*BU$21+'C-Daily Impacts'!BU119*BU$21+'C-Daily Impacts'!BU128*BU$22)*BU$14","v":-238833.31989240707},{"$f":"('C-Daily Impacts'!BV92*BV$19+'C-Daily Impacts'!BV101*BV$20+'C-Daily Impacts'!BV110*BV$21+'C-Daily Impacts'!BV119*BV$21+'C-Daily Impacts'!BV128*BV$22)*BV$14","v":-238872.05427414927},{"$f":"('C-Daily Impacts'!BW92*BW$19+'C-Daily Impacts'!BW101*BW$20+'C-Daily Impacts'!BW110*BW$21+'C-Daily Impacts'!BW119*BW$21+'C-Daily Impacts'!BW128*BW$22)*BW$14","v":-238910.81536753429},{"$f":"('C-Daily Impacts'!BX92*BX$19+'C-Daily Impacts'!BX101*BX$20+'C-Daily Impacts'!BX110*BX$21+'C-Daily Impacts'!BX119*BX$21+'C-Daily Impacts'!BX128*BX$22)*BX$14","v":0},{"$f":"('C-Daily Impacts'!BY92*BY$19+'C-Daily Impacts'!BY101*BY$20+'C-Daily Impacts'!BY110*BY$21+'C-Daily Impacts'!BY119*BY$21+'C-Daily Impacts'!BY128*BY$22)*BY$14","v":0},{"$f":"('C-Daily Impacts'!BZ92*BZ$19+'C-Daily Impacts'!BZ101*BZ$20+'C-Daily Impacts'!BZ110*BZ$21+'C-Daily Impacts'!BZ119*BZ$21+'C-Daily Impacts'!BZ128*BZ$22)*BZ$14","v":0},{"$f":"('C-Daily Impacts'!CA92*CA$19+'C-Daily Impacts'!CA101*CA$20+'C-Daily Impacts'!CA110*CA$21+'C-Daily Impacts'!CA119*CA$21+'C-Daily Impacts'!CA128*CA$22)*CA$14","v":0},{"$f":"('C-Daily Impacts'!CB92*CB$19+'C-Daily Impacts'!CB101*CB$20+'C-Daily Impacts'!CB110*CB$21+'C-Daily Impacts'!CB119*CB$21+'C-Daily Impacts'!CB128*CB$22)*CB$14","v":0},{"$f":"('C-Daily Impacts'!CC92*CC$19+'C-Daily Impacts'!CC101*CC$20+'C-Daily Impacts'!CC110*CC$21+'C-Daily Impacts'!CC119*CC$21+'C-Daily Impacts'!CC128*CC$22)*CC$14","v":0},{"$f":"('C-Daily Impacts'!CD92*CD$19+'C-Daily Impacts'!CD101*CD$20+'C-Daily Impacts'!CD110*CD$21+'C-Daily Impacts'!CD119*CD$21+'C-Daily Impacts'!CD128*CD$22)*CD$14","v":0},{"$f":"('C-Daily Impacts'!CE92*CE$19+'C-Daily Impacts'!CE101*CE$20+'C-Daily Impacts'!CE110*CE$21+'C-Daily Impacts'!CE119*CE$21+'C-Daily Impacts'!CE128*CE$22)*CE$14","v":0}]
[]
[null,null,null,"Congestion",null,null,null,95447181.050383404,null,"£, 2023 Present Values",{"$f":"K59*'C-Values and Rates'!K$33","v":0},{"$f":"L59*'C-Values and Rates'!L$33","v":0},{"$f":"M59*'C-Values and Rates'!M$33","v":0},{"$f":"N59*'C-Values and Rates'!N$33","v":0},{"$f":"O59*'C-Values and Rates'!O$33","v":0},{"$f":"P59*'C-Values and Rates'!P$33","v":3173398.046684193},{"$f":"Q59*'C-Values and Rates'!Q$33","v":3086954.1575519526},{"$f":"R59*'C-Values and Rates'!R$33","v":3002865.8568047034},{"$f":"S59*'C-Values and Rates'!S$33","v":2894204.3930930821},{"$f":"T59*'C-Values and Rates'!T$33","v":2789475.1167701618},{"$f":"U59*'C-Values and Rates'!U$33","v":2688535.7255932037},{"$f":"V59*'C-Values and Rates'!V$33","v":2591249.0673287841},{"$f":"W59*'C-Values and Rates'!W$33","v":2497482.953362681},{"$f":"X59*'C-Values and Rates'!X$33","v":2451742.243912966},{"$f":"Y59*'C-Values and Rates'!Y$33","v":2406840.7945225458},{"$f":"Z59*'C-Values and Rates'!Z$33","v":2362763.1796977264},{"$f":"AA59*'C-Values and Rates'!AA$33","v":2319494.257923713},{"$f":"AB59*'C-Values and Rates'!AB$33","v":2277019.1664286777},{"$f":"AC59*'C-Values and Rates'!AC$33","v":2209909.2928612935},{"$f":"AD59*'C-Values and Rates'!AD$33","v":2144778.5968385637},{"$f":"AE59*'C-Values and Rates'!AE$33","v":2081568.6729795234},{"$f":"AF59*'C-Values and Rates'!AF$33","v":2020222.8404773371},{"$f":"AG59*'C-Values and Rates'!AG$33","v":1960686.0921471026},{"$f":"AH59*'C-Values and Rates'!AH$33","v":1908587.6166583591},{"$f":"AI59*'C-Values and Rates'!AI$33","v":1857874.7965535328},{"$f":"AJ59*'C-Values and Rates'!AJ$33","v":1808510.7440367707},{"$f":"AK59*'C-Values and Rates'!AK$33","v":1760459.5541714828},{"$f":"AL59*'C-Values and Rates'!AL$33","v":1713686.2786704681},{"$f":"AM59*'C-Values and Rates'!AM$33","v":1679727.6074671692},{"$f":"AN59*'C-Values and Rates'!AN$33","v":1646442.3396861181},{"$f":"AO59*'C-Values and Rates'!AO$33","v":1613817.1125960385},{"$f":"AP59*'C-Values and Rates'!AP$33","v":1581838.8288042317},{"$f":"AQ59*'C-Values and Rates'!AQ$33","v":1550494.6509845101},{"$f":"AR59*'C-Values and Rates'!AR$33","v":1519500.2656024094},{"$f":"AS59*'C-Values and Rates'!AS$33","v":1496841.2676834455},{"$f":"AT59*'C-Values and Rates'!AT$33","v":1474520.2957275936},{"$f":"AU59*'C-Values and Rates'!AU$33","v":1452532.3051570614},{"$f":"AV59*'C-Values and Rates'!AV$33","v":1430872.326705493},{"$f":"AW59*'C-Values and Rates'!AW$33","v":1388187.0909257969},{"$f":"AX59*'C-Values and Rates'!AX$33","v":1346775.3453649988},{"$f":"AY59*'C-Values and Rates'!AY$33","v":1306599.0925949896},{"$f":"AZ59*'C-Values and Rates'!AZ$33","v":1267621.4690308031},{"$f":"BA59*'C-Values and Rates'!BA$33","v":1229806.7110936458},{"$f":"BB59*'C-Values and Rates'!BB$33","v":1193120.1223838048},{"$f":"BC59*'C-Values and Rates'!BC$33","v":1157528.0418332932},{"$f":"BD59*'C-Values and Rates'!BD$33","v":1122997.8128089861},{"$f":"BE59*'C-Values and Rates'!BE$33","v":1089497.7531378798},{"$f":"BF59*'C-Values and Rates'!BF$33","v":1056997.126026951},{"$f":"BG59*'C-Values and Rates'!BG$33","v":1025466.1118509101},{"$f":"BH59*'C-Values and Rates'!BH$33","v":994875.78078195115},{"$f":"BI59*'C-Values and Rates'!BI$33","v":965198.06623635907},{"$f":"BJ59*'C-Values and Rates'!BJ$33","v":936405.73911359895},{"$f":"BK59*'C-Values and Rates'!BK$33","v":908472.3828042309},{"$f":"BL59*'C-Values and Rates'!BL$33","v":881372.36894370324},{"$f":"BM59*'C-Values and Rates'!BM$33","v":855080.8338897631},{"$f":"BN59*'C-Values and Rates'!BN$33","v":829573.65590188385},{"$f":"BO59*'C-Values and Rates'!BO$33","v":804827.43300176004},{"$f":"BP59*'C-Values and Rates'!BP$33","v":780819.461494538},{"$f":"BQ59*'C-Values and Rates'!BQ$33","v":757527.71513106267},{"$f":"BR59*'C-Values and Rates'!BR$33","v":734930.82489201066},{"$f":"BS59*'C-Values and Rates'!BS$33","v":713008.05937534396},{"$f":"BT59*'C-Values and Rates'!BT$33","v":691739.30576908053},{"$f":"BU59*'C-Values and Rates'!BU$33","v":671105.0513919103},{"$f":"BV59*'C-Values and Rates'!BV$33","v":651086.36578470946},{"$f":"BW59*'C-Values and Rates'!BW$33","v":631664.88333650958},{"$f":"BX59*'C-Values and Rates'!BX$33","v":0},{"$f":"BY59*'C-Values and Rates'!BY$33","v":0},{"$f":"BZ59*'C-Values and Rates'!BZ$33","v":0},{"$f":"CA59*'C-Values and Rates'!CA$33","v":0},{"$f":"CB59*'C-Values and Rates'!CB$33","v":0},{"$f":"CC59*'C-Values and Rates'!CC$33","v":0},{"$f":"CD59*'C-Values and Rates'!CD$33","v":0},{"$f":"CE59*'C-Values and Rates'!CE$33","v":0}]
[null,null,null,"Infrastructure",null,null,null,1302226.8153849114,null,"£, 2023 Present Values",{"$f":"K60*'C-Values and Rates'!K$33","v":0},{"$f":"L60*'C-Values and Rates'!L$33","v":0},{"$f":"M60*'C-Values and Rates'!M$33","v":0},{"$f":"N60*'C-Values and Rates'!N$33","v":0},{"$f":"O60*'C-Values and Rates'!O$33","v":0},{"$f":"P60*'C-Values and Rates'!P$33","v":38042.762390315736},{"$f":"Q60*'C-Values and Rates'!Q$33","v":37276.970571474732},{"$f":"R60*'C-Values and Rates'!R$33","v":36526.593961019142},{"$f":"S60*'C-Values and Rates'!S$33","v":35803.41347848958},{"$f":"T60*'C-Values and Rates'!T$33","v":35094.551057229852},{"$f":"U60*'C-Values and Rates'!U$33","v":34399.723217688865},{"$f":"V60*'C-Values and Rates'!V$33","v":33718.652092853081},{"$f":"W60*'C-Values and Rates'!W$33","v":33051.065317125285},{"$f":"X60*'C-Values and Rates'!X$33","v":32453.311664079316},{"$f":"Y60*'C-Values and Rates'!Y$33","v":31866.368840466577},{"$f":"Z60*'C-Values and Rates'!Z$33","v":31290.04132421465},{"$f":"AA60*'C-Values and Rates'!AA$33","v":30724.137129416507},{"$f":"AB60*'C-Values and Rates'!AB$33","v":30168.467742376281},{"$f":"AC60*'C-Values and Rates'!AC$33","v":29572.370878212791},{"$f":"AD60*'C-Values and Rates'!AD$33","v":28988.052254644761},{"$f":"AE60*'C-Values and Rates'!AE$33","v":28415.279146154098},{"$f":"AF60*'C-Values and Rates'!AF$33","v":27853.823425631705},{"$f":"AG60*'C-Values and Rates'!AG$33","v":27303.461473517702},{"$f":"AH60*'C-Values and Rates'!AH$33","v":26745.700694299521},{"$f":"AI60*'C-Values and Rates'!AI$33","v":26199.333968071118},{"$f":"AJ60*'C-Values and Rates'!AJ$33","v":25664.128534752632},{"$f":"AK60*'C-Values and Rates'!AK$33","v":25139.85638913537},{"$f":"AL60*'C-Values and Rates'!AL$33","v":24626.29418374841},{"$f":"AM60*'C-Values and Rates'!AM$33","v":24104.756192317767},{"$f":"AN60*'C-Values and Rates'!AN$33","v":23594.263381882505},{"$f":"AO60*'C-Values and Rates'!AO$33","v":23094.581836553072},{"$f":"AP60*'C-Values and Rates'!AP$33","v":22605.482594332727},{"$f":"AQ60*'C-Values and Rates'!AQ$33","v":22126.74154220361},{"$f":"AR60*'C-Values and Rates'!AR$33","v":21657.223740484063},{"$f":"AS60*'C-Values and Rates'!AS$33","v":21307.501340365281},{"$f":"AT60*'C-Values and Rates'!AT$33","v":20963.426282611832},{"$f":"AU60*'C-Values and Rates'!AU$33","v":20624.907373534694},{"$f":"AV60*'C-Values and Rates'!AV$33","v":20291.854892047111},{"$f":"AW60*'C-Values and Rates'!AW$33","v":19696.672920496003},{"$f":"AX60*'C-Values and Rates'!AX$33","v":19118.948277569798},{"$f":"AY60*'C-Values and Rates'!AY$33","v":18558.168921007014},{"$f":"AZ60*'C-Values and Rates'!AZ$33","v":18013.837827297466},{"$f":"BA60*'C-Values and Rates'!BA$33","v":17485.47255116616},{"$f":"BB60*'C-Values and Rates'!BB$33","v":16972.604797977929},{"$f":"BC60*'C-Values and Rates'!BC$33","v":16474.780008683912},{"$f":"BD60*'C-Values and Rates'!BD$33","v":15991.556956941993},{"$f":"BE60*'C-Values and Rates'!BE$33","v":15522.507358054172},{"$f":"BF60*'C-Values and Rates'!BF$33","v":15067.215489374194},{"$f":"BG60*'C-Values and Rates'!BG$33","v":14625.277821848998},{"$f":"BH60*'C-Values and Rates'!BH$33","v":14196.302662367532},{"$f":"BI60*'C-Values and Rates'!BI$33","v":13779.909806599795},{"$f":"BJ60*'C-Values and Rates'!BJ$33","v":13375.730202018507},{"$f":"BK60*'C-Values and Rates'!BK$33","v":12983.405620804737},{"$f":"BL60*'C-Values and Rates'!BL$33","v":12602.588342347517},{"$f":"BM60*'C-Values and Rates'!BM$33","v":12232.940845056122},{"$f":"BN60*'C-Values and Rates'!BN$33","v":11874.135507211824},{"$f":"BO60*'C-Values and Rates'!BO$33","v":11525.854316593948},{"$f":"BP60*'C-Values and Rates'!BP$33","v":11187.788588622985},{"$f":"BQ60*'C-Values and Rates'!BQ$33","v":10859.63869277077},{"$f":"BR60*'C-Values and Rates'!BR$33","v":10541.113786995442},{"$f":"BS60*'C-Values and Rates'!BS$33","v":10231.931559965655},{"$f":"BT60*'C-Values and Rates'!BT$33","v":9931.8179808456407},{"$f":"BU60*'C-Values and Rates'!BU$33","v":9640.5070564193538},{"$f":"BV60*'C-Values and Rates'!BV$33","v":9357.7405953384259},{"$f":"BW60*'C-Values and Rates'!BW$33","v":9083.267979284974},{"$f":"BX60*'C-Values and Rates'!BX$33","v":0},{"$f":"BY60*'C-Values and Rates'!BY$33","v":0},{"$f":"BZ60*'C-Values and Rates'!BZ$33","v":0},{"$f":"CA60*'C-Values and Rates'!CA$33","v":0},{"$f":"CB60*'C-Values and Rates'!CB$33","v":0},{"$f":"CC60*'C-Values and Rates'!CC$33","v":0},{"$f":"CD60*'C-Values and Rates'!CD$33","v":0},{"$f":"CE60*'C-Values and Rates'!CE$33","v":0}]
[null,null,null,"Accident",null,null,null,559391.65833750111,null,"£, 2023 Present Values",{"$f":"K61*'C-Values and Rates'!K$33","v":0},{"$f":"L61*'C-Values and Rates'!L$33","v":0},{"$f":"M61*'C-Values and Rates'!M$33","v":0},{"$f":"N61*'C-Values and Rates'!N$33","v":0},{"$f":"O61*'C-Values and Rates'!O$33","v":0},{"$f":"P61*'C-Values and Rates'!P$33","v":14643.702551663464},{"$f":"Q61*'C-Values and Rates'!Q$33","v":14431.584957627134},{"$f":"R61*'C-Values and Rates'!R$33","v":14222.539938545184},{"$f":"S61*'C-Values and Rates'!S$33","v":14007.347338582134},{"$f":"T61*'C-Values and Rates'!T$33","v":13795.410686943296},{"$f":"U61*'C-Values and Rates'!U$33","v":13586.680719855221},{"$f":"V61*'C-Values and Rates'!V$33","v":13381.10891892467},{"$f":"W61*'C-Values and Rates'!W$33","v":13178.647499860685},{"$f":"X61*'C-Values and Rates'!X$33","v":12995.823162010141},{"$f":"Y61*'C-Values and Rates'!Y$33","v":12815.535104040433},{"$f":"Z61*'C-Values and Rates'!Z$33","v":12637.74814072562},{"$f":"AA61*'C-Values and Rates'!AA$33","v":12462.427574956297},{"$f":"AB61*'C-Values and Rates'!AB$33","v":12289.539190968051},{"$f":"AC61*'C-Values and Rates'!AC$33","v":12118.197036030608},{"$f":"AD61*'C-Values and Rates'!AD$33","v":11949.243752929804},{"$f":"AE61*'C-Values and Rates'!AE$33","v":11782.646035742446},{"$f":"AF61*'C-Values and Rates'!AF$33","v":11618.371042900324},{"$f":"AG61*'C-Values and Rates'!AG$33","v":11456.386390716098},{"$f":"AH61*'C-Values and Rates'!AH$33","v":11298.522005988118},{"$f":"AI61*'C-Values and Rates'!AI$33","v":11142.832928823582},{"$f":"AJ61*'C-Values and Rates'!AJ$33","v":10989.289184361463},{"$f":"AK61*'C-Values and Rates'!AK$33","v":10837.861210782206},{"$f":"AL61*'C-Values and Rates'!AL$33","v":10688.519853616226},{"$f":"AM61*'C-Values and Rates'!AM$33","v":10533.740641639255},{"$f":"AN61*'C-Values and Rates'!AN$33","v":10381.202769416364},{"$f":"AO61*'C-Values and Rates'!AO$33","v":10230.873780367447},{"$f":"AP61*'C-Values and Rates'!AP$33","v":10082.721687912343},{"$f":"AQ61*'C-Values and Rates'!AQ$33","v":9936.7149686648554},{"$f":"AR61*'C-Values and Rates'!AR$33","v":9787.4534246048679},{"$f":"AS61*'C-Values and Rates'!AS$33","v":9690.3844055516947},{"$f":"AT61*'C-Values and Rates'!AT$33","v":9594.2780878316644},{"$f":"AU61*'C-Values and Rates'!AU$33","v":9499.1249236625245},{"$f":"AV61*'C-Values and Rates'!AV$33","v":9404.9154599540725},{"$f":"AW61*'C-Values and Rates'!AW$33","v":9129.0591542833245},{"$f":"AX61*'C-Values and Rates'!AX$33","v":8861.2940113351287},{"$f":"AY61*'C-Values and Rates'!AY$33","v":8601.3827085873709},{"$f":"AZ61*'C-Values and Rates'!AZ$33","v":8349.0948844432569},{"$f":"BA61*'C-Values and Rates'!BA$33","v":8104.2069340598855},{"$f":"BB61*'C-Values and Rates'!BB$33","v":7866.5018111653626},{"$f":"BC61*'C-Values and Rates'!BC$33","v":7635.7688356888475},{"$f":"BD61*'C-Values and Rates'!BD$33","v":7411.8035070330161},{"$f":"BE61*'C-Values and Rates'!BE$33","v":7194.4073228234483},{"$f":"BF61*'C-Values and Rates'!BF$33","v":6983.3876029742814},{"$f":"BG61*'C-Values and Rates'!BG$33","v":6778.5573189142115},{"$f":"BH61*'C-Values and Rates'!BH$33","v":6579.7349278214806},{"$f":"BI61*'C-Values and Rates'!BI$33","v":6386.7442117209412},{"$f":"BJ61*'C-Values and Rates'!BJ$33","v":6199.4141213005487},{"$f":"BK61*'C-Values and Rates'!BK$33","v":6017.5786243089196},{"$f":"BL61*'C-Values and Rates'!BL$33","v":5841.0765583995253},{"$f":"BM61*'C-Values and Rates'!BM$33","v":5669.75148829114},{"$f":"BN61*'C-Values and Rates'!BN$33","v":5503.4515671179179},{"$f":"BO61*'C-Values and Rates'!BO$33","v":5342.0294018462237},{"$f":"BP61*'C-Values and Rates'!BP$33","v":5185.341922638946},{"$f":"BQ61*'C-Values and Rates'!BQ$33","v":5033.2502560514631},{"$f":"BR61*'C-Values and Rates'!BR$33","v":4885.6196019469498},{"$f":"BS61*'C-Values and Rates'!BS$33","v":4742.3191140218596},{"$f":"BT61*'C-Values and Rates'!BT$33","v":4603.2217838357365},{"$f":"BU61*'C-Values and Rates'!BU$33","v":4468.2043282425539},{"$f":"BV61*'C-Values and Rates'!BV$33","v":4337.1470801238102},{"$f":"BW61*'C-Values and Rates'!BW$33","v":4209.9338823265571},{"$f":"BX61*'C-Values and Rates'!BX$33","v":0},{"$f":"BY61*'C-Values and Rates'!BY$33","v":0},{"$f":"BZ61*'C-Values and Rates'!BZ$33","v":0},{"$f":"CA61*'C-Values and Rates'!CA$33","v":0},{"$f":"CB61*'C-Values and Rates'!CB$33","v":0},{"$f":"CC61*'C-Values and Rates'!CC$33","v":0},{"$f":"CD61*'C-Values and Rates'!CD$33","v":0},{"$f":"CE61*'C-Values and Rates'!CE$33","v":0}]
[null,null,null,"Local Air Quality",null,null,null,675721.83368433884,null,"£, 2023 Present Values",{"$f":"K62*'C-Values and Rates'!K$33","v":0},{"$f":"L62*'C-Values and Rates'!L$33","v":0},{"$f":"M62*'C-Values and Rates'!M$33","v":0},{"$f":"N62*'C-Values and Rates'!N$33","v":0},{"$f":"O62*'C-Values and Rates'!O$33","v":0},{"$f":"P62*'C-Values and Rates'!P$33","v":20594.720047714563},{"$f":"Q62*'C-Values and Rates'!Q$33","v":19160.51997638958},{"$f":"R62*'C-Values and Rates'!R$33","v":17835.245926527277},{"$f":"S62*'C-Values and Rates'!S$33","v":17335.385012277791},{"$f":"T62*'C-Values and Rates'!T$33","v":16850.449716886014},{"$f":"U62*'C-Values and Rates'!U$33","v":16379.979118110079},{"$f":"V62*'C-Values and Rates'!V$33","v":15923.526768194124},{"$f":"W62*'C-Values and Rates'!W$33","v":15480.660235613354},{"$f":"X62*'C-Values and Rates'!X$33","v":15301.556456536069},{"$f":"Y62*'C-Values and Rates'!Y$33","v":15124.525584767725},{"$f":"Z62*'C-Values and Rates'!Z$33","v":14949.543620480299},{"$f":"AA62*'C-Values and Rates'!AA$33","v":14776.58684180622},{"$f":"AB62*'C-Values and Rates'!AB$33","v":14605.63180161805},{"$f":"AC62*'C-Values and Rates'!AC$33","v":14427.645674125512},{"$f":"AD62*'C-Values and Rates'!AD$33","v":14251.829105665232},{"$f":"AE62*'C-Values and Rates'!AE$33","v":14078.155643190856},{"$f":"AF62*'C-Values and Rates'!AF$33","v":13906.599156281203},{"$f":"AG62*'C-Values and Rates'!AG$33","v":13737.133833204431},{"$f":"AH62*'C-Values and Rates'!AH$33","v":13549.783156470192},{"$f":"AI62*'C-Values and Rates'!AI$33","v":13364.992747444949},{"$f":"AJ62*'C-Values and Rates'!AJ$33","v":13182.727552632416},{"$f":"AK62*'C-Values and Rates'!AK$33","v":13002.952999307981},{"$f":"AL62*'C-Values and Rates'!AL$33","v":12825.634988914024},{"$f":"AM62*'C-Values and Rates'!AM$33","v":12642.195950360221},{"$f":"AN62*'C-Values and Rates'!AN$33","v":12461.382947832904},{"$f":"AO62*'C-Values and Rates'!AO$33","v":12283.158355215615},{"$f":"AP62*'C-Values and Rates'!AP$33","v":12107.4850859544},{"$f":"AQ62*'C-Values and Rates'!AQ$33","v":11934.326585314229},{"$f":"AR62*'C-Values and Rates'!AR$33","v":11763.362114293157},{"$f":"AS62*'C-Values and Rates'!AS$33","v":11654.924259142212},{"$f":"AT62*'C-Values and Rates'!AT$33","v":11547.486556998896},{"$f":"AU62*'C-Values and Rates'!AU$33","v":11441.039778355555},{"$f":"AV62*'C-Values and Rates'!AV$33","v":11335.574778917953},{"$f":"AW62*'C-Values and Rates'!AW$33","v":10997.374817945236},{"$f":"AX62*'C-Values and Rates'!AX$33","v":10669.266086396778},{"$f":"AY62*'C-Values and Rates'!AY$33","v":10350.947453835523},{"$f":"AZ62*'C-Values and Rates'!AZ$33","v":10042.126776618736},{"$f":"BA62*'C-Values and Rates'!BA$33","v":9742.5206296762353},{"$f":"BB62*'C-Values and Rates'!BB$33","v":9451.8540462947094},{"$f":"BC62*'C-Values and Rates'!BC$33","v":9169.8602656691764},{"$f":"BD62*'C-Values and Rates'!BD$33","v":8896.2804879897012},{"$f":"BE62*'C-Values and Rates'!BE$33","v":8630.8636368384305},{"$f":"BF62*'C-Values and Rates'!BF$33","v":8373.3661286787519},{"$f":"BG62*'C-Values and Rates'!BG$33","v":8123.5516492248116},{"$f":"BH62*'C-Values and Rates'!BH$33","v":7881.1909364860794},{"$f":"BI62*'C-Values and Rates'!BI$33","v":7646.0615702876385},{"$f":"BJ62*'C-Values and Rates'!BJ$33","v":7417.9477680729333},{"$f":"BK62*'C-Values and Rates'!BK$33","v":7196.6401868014191},{"$f":"BL62*'C-Values and Rates'!BL$33","v":6981.9357307591854},{"$f":"BM62*'C-Values and Rates'!BM$33","v":6773.6373651060458},{"$f":"BN62*'C-Values and Rates'!BN$33","v":6571.5539349878518},{"$f":"BO62*'C-Values and Rates'!BO$33","v":6375.4999900479106},{"$f":"BP62*'C-Values and Rates'!BP$33","v":6185.2956141763379},{"$f":"BQ62*'C-Values and Rates'!BQ$33","v":6000.766260340999},{"$f":"BR62*'C-Values and Rates'!BR$33","v":5821.7425903483381},{"$f":"BS62*'C-Values and Rates'!BS$33","v":5648.0603193869492},{"$f":"BT62*'C-Values and Rates'!BT$33","v":5479.5600652111234},{"$f":"BU62*'C-Values and Rates'!BU$33","v":5316.0872018258515},{"$f":"BV62*'C-Values and Rates'!BV$33","v":5157.4917175389401},{"$f":"BW62*'C-Values and Rates'!BW$33","v":5003.6280772498649},{"$f":"BX62*'C-Values and Rates'!BX$33","v":0},{"$f":"BY62*'C-Values and Rates'!BY$33","v":0},{"$f":"BZ62*'C-Values and Rates'!BZ$33","v":0},{"$f":"CA62*'C-Values and Rates'!CA$33","v":0},{"$f":"CB62*'C-Values and Rates'!CB$33","v":0},{"$f":"CC62*'C-Values and Rates'!CC$33","v":0},{"$f":"CD62*'C-Values and Rates'!CD$33","v":0},{"$f":"CE62*'C-Values and Rates'!CE$33","v":0}]
[null,null,null,"Noise",null,null,null,1387284.2460091519,null,"£, 2023 Present Values",{"$f":"K63*'C-Values and Rates'!K$33","v":0},{"$f":"L63*'C-Values and Rates'!L$33","v":0},{"$f":"M63*'C-Values and Rates'!M$33","v":0},{"$f":"N63*'C-Values and Rates'!N$33","v":0},{"$f":"O63*'C-Values and Rates'!O$33","v":0},{"$f":"P63*'C-Values and Rates'!P$33","v":36316.197337554848},{"$f":"Q63*'C-Values and Rates'!Q$33","v":35790.148383978158},{"$f":"R63*'C-Values and Rates'!R$33","v":35271.7193774732},{"$f":"S63*'C-Values and Rates'!S$33","v":34738.044448044115},{"$f":"T63*'C-Values and Rates'!T$33","v":34212.444229327411},{"$f":"U63*'C-Values and Rates'!U$33","v":33694.796547787279},{"$f":"V63*'C-Values and Rates'!V$33","v":33184.981078421413},{"$f":"W63*'C-Values and Rates'!W$33","v":32682.879316791877},{"$f":"X63*'C-Values and Rates'!X$33","v":32229.477268500901},{"$f":"Y63*'C-Values and Rates'!Y$33","v":31782.365162274142},{"$f":"Z63*'C-Values and Rates'!Z$33","v":31341.455739195753},{"$f":"AA63*'C-Values and Rates'!AA$33","v":30906.662950872746},{"$f":"AB63*'C-Values and Rates'!AB$33","v":30477.901942641616},{"$f":"AC63*'C-Values and Rates'!AC$33","v":30052.9755629233},{"$f":"AD63*'C-Values and Rates'!AD$33","v":29633.973555181783},{"$f":"AE63*'C-Values and Rates'!AE$33","v":29220.813321148289},{"$f":"AF63*'C-Values and Rates'!AF$33","v":28813.413414148526},{"$f":"AG63*'C-Values and Rates'!AG$33","v":28411.693523046986},{"$f":"AH63*'C-Values and Rates'!AH$33","v":28020.191843186531},{"$f":"AI63*'C-Values and Rates'!AI$33","v":27634.084898603258},{"$f":"AJ63*'C-Values and Rates'!AJ$33","v":27253.298352020483},{"$f":"AK63*'C-Values and Rates'!AK$33","v":26877.758890499146},{"$f":"AL63*'C-Values and Rates'!AL$33","v":26507.394211322975},{"$f":"AM63*'C-Values and Rates'!AM$33","v":26123.543720910755},{"$f":"AN63*'C-Values and Rates'!AN$33","v":25745.251724774287},{"$f":"AO63*'C-Values and Rates'!AO$33","v":25372.437731004971},{"$f":"AP63*'C-Values and Rates'!AP$33","v":25005.022413288076},{"$f":"AQ63*'C-Values and Rates'!AQ$33","v":24642.927594024044},{"$f":"AR63*'C-Values and Rates'!AR$33","v":24272.760850342489},{"$f":"AS63*'C-Values and Rates'!AS$33","v":24032.030909341498},{"$f":"AT63*'C-Values and Rates'!AT$33","v":23793.688455485124},{"$f":"AU63*'C-Values and Rates'!AU$33","v":23557.709810393982},{"$f":"AV63*'C-Values and Rates'!AV$33","v":23324.071530523801},{"$f":"AW63*'C-Values and Rates'!AW$33","v":22639.951377290443},{"$f":"AX63*'C-Values and Rates'!AX$33","v":21975.897205395187},{"$f":"AY63*'C-Values and Rates'!AY$33","v":21331.320457981241},{"$f":"AZ63*'C-Values and Rates'!AZ$33","v":20705.649841198658},{"$f":"BA63*'C-Values and Rates'!BA$33","v":20098.330817861788},{"$f":"BB63*'C-Values and Rates'!BB$33","v":19508.825115958236},{"$f":"BC63*'C-Values and Rates'!BC$33","v":18936.610251573788},{"$f":"BD63*'C-Values and Rates'!BD$33","v":18381.179065810491},{"$f":"BE63*'C-Values and Rates'!BE$33","v":17842.039275287407},{"$f":"BF63*'C-Values and Rates'!BF$33","v":17318.713035825702},{"$f":"BG63*'C-Values and Rates'!BG$33","v":16810.736518931211},{"$f":"BH63*'C-Values and Rates'!BH$33","v":16317.659500699381},{"$f":"BI63*'C-Values and Rates'!BI$33","v":15839.044962777956},{"$f":"BJ63*'C-Values and Rates'!BJ$33","v":15374.468705033893},{"$f":"BK63*'C-Values and Rates'!BK$33","v":14923.518969581215},{"$f":"BL63*'C-Values and Rates'!BL$33","v":14485.796075836453},{"$f":"BM63*'C-Values and Rates'!BM$33","v":14060.912066278383},{"$f":"BN63*'C-Values and Rates'!BN$33","v":13648.49036259795},{"$f":"BO63*'C-Values and Rates'!BO$33","v":13248.165431933723},{"$f":"BP63*'C-Values and Rates'!BP$33","v":12859.582462897033},{"$f":"BQ63*'C-Values and Rates'!BQ$33","v":12482.397051099575},{"$f":"BR63*'C-Values and Rates'!BR$33","v":12116.274893904929},{"$f":"BS63*'C-Values and Rates'!BS$33","v":11760.891494133242},{"$f":"BT63*'C-Values and Rates'!BT$33","v":11415.931872456658},{"$f":"BU63*'C-Values and Rates'!BU$33","v":11081.090288230434},{"$f":"BV63*'C-Values and Rates'!BV$33","v":10756.069968512422},{"$f":"BW63*'C-Values and Rates'!BW$33","v":10440.582845030684},{"$f":"BX63*'C-Values and Rates'!BX$33","v":0},{"$f":"BY63*'C-Values and Rates'!BY$33","v":0},{"$f":"BZ63*'C-Values and Rates'!BZ$33","v":0},{"$f":"CA63*'C-Values and Rates'!CA$33","v":0},{"$f":"CB63*'C-Values and Rates'!CB$33","v":0},{"$f":"CC63*'C-Values and Rates'!CC$33","v":0},{"$f":"CD63*'C-Values and Rates'!CD$33","v":0},{"$f":"CE63*'C-Values and Rates'!CE$33","v":0}]
[null,null,null,"Greenhouse Gases",null,null,null,10100926.110516302,null,"£, 2023 Present Values",{"$f":"K64*'C-Values and Rates'!K$33","v":0},{"$f":"L64*'C-Values and Rates'!L$33","v":0},{"$f":"M64*'C-Values and Rates'!M$33","v":0},{"$f":"N64*'C-Values and Rates'!N$33","v":0},{"$f":"O64*'C-Values and Rates'!O$33","v":0},{"$f":"P64*'C-Values and Rates'!P$33","v":311645.51993236889},{"$f":"Q64*'C-Values and Rates'!Q$33","v":303728.37027405662},{"$f":"R64*'C-Values and Rates'!R$33","v":296024.94294007041},{"$f":"S64*'C-Values and Rates'!S$33","v":288211.2860483001},{"$f":"T64*'C-Values and Rates'!T$33","v":280630.39696006814},{"$f":"U64*'C-Values and Rates'!U$33","v":273274.33293129358},{"$f":"V64*'C-Values and Rates'!V$33","v":266135.45677688177},{"$f":"W64*'C-Values and Rates'!W$33","v":259206.42406493871},{"$f":"X64*'C-Values and Rates'!X$33","v":253475.39353453158},{"$f":"Y64*'C-Values and Rates'!Y$33","v":247873.38930608507},{"$f":"Z64*'C-Values and Rates'!Z$33","v":242397.44599576396},{"$f":"AA64*'C-Values and Rates'!AA$33","v":237044.66792933966},{"$f":"AB64*'C-Values and Rates'!AB$33","v":231812.22746420879},{"$f":"AC64*'C-Values and Rates'!AC$33","v":226874.97960232693},{"$f":"AD64*'C-Values and Rates'!AD$33","v":222043.01673636783},{"$f":"AE64*'C-Values and Rates'!AE$33","v":217314.09115352438},{"$f":"AF64*'C-Values and Rates'!AF$33","v":212686.00317733432},{"$f":"AG64*'C-Values and Rates'!AG$33","v":208156.60014009397},{"$f":"AH64*'C-Values and Rates'!AH$33","v":203753.80928973175},{"$f":"AI64*'C-Values and Rates'!AI$33","v":199444.44393560718},{"$f":"AJ64*'C-Values and Rates'!AJ$33","v":195226.51599102482},{"$f":"AK64*'C-Values and Rates'!AK$33","v":191098.07978098566},{"$f":"AL64*'C-Values and Rates'!AL$33","v":187057.23113545441},{"$f":"AM64*'C-Values and Rates'!AM$33","v":183455.47597378574},{"$f":"AN64*'C-Values and Rates'!AN$33","v":179923.09957839668},{"$f":"AO64*'C-Values and Rates'!AO$33","v":176458.76502620216},{"$f":"AP64*'C-Values and Rates'!AP$33","v":173061.1611661416},{"$f":"AQ64*'C-Values and Rates'!AQ$33","v":169729.00212218863},{"$f":"AR64*'C-Values and Rates'!AR$33","v":166453.27813722953},{"$f":"AS64*'C-Values and Rates'!AS$33","v":164086.58649796486},{"$f":"AT64*'C-Values and Rates'!AT$33","v":161753.54988642124},{"$f":"AU64*'C-Values and Rates'!AU$33","v":159453.68965470276},{"$f":"AV64*'C-Values and Rates'!AV$33","v":157186.53396322252},{"$f":"AW64*'C-Values and Rates'!AW$33","v":152492.61062511362},{"$f":"AX64*'C-Values and Rates'!AX$33","v":147938.86930406484},{"$f":"AY64*'C-Values and Rates'!AY$33","v":143521.12318483429},{"$f":"AZ64*'C-Values and Rates'!AZ$33","v":139235.31050975143},{"$f":"BA64*'C-Values and Rates'!BA$33","v":135077.49084303071},{"$f":"BB64*'C-Values and Rates'!BB$33","v":131043.84144668534},{"$f":"BC64*'C-Values and Rates'!BC$33","v":127130.65376470688},{"$f":"BD64*'C-Values and Rates'!BD$33","v":123334.33001227603},{"$f":"BE64*'C-Values and Rates'!BE$33","v":119651.37986686712},{"$f":"BF64*'C-Values and Rates'!BF$33","v":116078.41725820149},{"$f":"BG64*'C-Values and Rates'!BG$33","v":112612.15725409695},{"$f":"BH64*'C-Values and Rates'!BH$33","v":109249.41303934832},{"$f":"BI64*'C-Values and Rates'!BI$33","v":105987.09298485935},{"$f":"BJ64*'C-Values and Rates'!BJ$33","v":102822.19780433019},{"$f":"BK64*'C-Values and Rates'!BK$33","v":99751.817795883951},{"$f":"BL64*'C-Values and Rates'!BL$33","v":96773.130166095536},{"$f":"BM64*'C-Values and Rates'!BM$33","v":93883.396433960181},{"$f":"BN64*'C-Values and Rates'!BN$33","v":91079.959912413862},{"$f":"BO64*'C-Values and Rates'!BO$33","v":88360.243265088735},{"$f":"BP64*'C-Values and Rates'!BP$33","v":85721.746136055517},{"$f":"BQ64*'C-Values and Rates'!BQ$33","v":83162.042850372818},{"$f":"BR64*'C-Values and Rates'!BR$33","v":80678.780183327573},{"$f":"BS64*'C-Values and Rates'!BS$33","v":78269.675196314784},{"$f":"BT64*'C-Values and Rates'!BT$33","v":75932.513137365517},{"$f":"BU64*'C-Values and Rates'!BU$33","v":73665.14540439166},{"$f":"BV64*'C-Values and Rates'!BV$33","v":71465.487569274206},{"$f":"BW64*'C-Values and Rates'!BW$33","v":69331.517460976858},{"$f":"BX64*'C-Values and Rates'!BX$33","v":0},{"$f":"BY64*'C-Values and Rates'!BY$33","v":0},{"$f":"BZ64*'C-Values and Rates'!BZ$33","v":0},{"$f":"CA64*'C-Values and Rates'!CA$33","v":0},{"$f":"CB64*'C-Values and Rates'!CB$33","v":0},{"$f":"CC64*'C-Values and Rates'!CC$33","v":0},{"$f":"CD64*'C-Values and Rates'!CD$33","v":0},{"$f":"CE64*'C-Values and Rates'!CE$33","v":0}]
[null,null,null,"Indirect Taxation",null,null,null,-5323555.9108457258,null,"£, 2023 Present Values",{"$f":"K65*'C-Values and Rates'!K$33","v":0},{"$f":"L65*'C-Values and Rates'!L$33","v":0},{"$f":"M65*'C-Values and Rates'!M$33","v":0},{"$f":"N65*'C-Values and Rates'!N$33","v":0},{"$f":"O65*'C-Values and Rates'!O$33","v":0},{"$f":"P65*'C-Values and Rates'!P$33","v":-223631.59123073902},{"$f":"Q65*'C-Values and Rates'!Q$33","v":-215072.35657578916},{"$f":"R65*'C-Values and Rates'!R$33","v":-206837.01348435288},{"$f":"S65*'C-Values and Rates'!S$33","v":-197461.44419275428},{"$f":"T65*'C-Values and Rates'!T$33","v":-188487.36310296541},{"$f":"U65*'C-Values and Rates'!U$33","v":-179898.19983458015},{"$f":"V65*'C-Values and Rates'!V$33","v":-171678.05044661148},{"$f":"W65*'C-Values and Rates'!W$33","v":-163811.65114228631},{"$f":"X65*'C-Values and Rates'!X$33","v":-157619.21645879178},{"$f":"Y65*'C-Values and Rates'!Y$33","v":-151658.05394364535},{"$f":"Z65*'C-Values and Rates'!Z$33","v":-145919.60957085606},{"$f":"AA65*'C-Values and Rates'!AA$33","v":-140395.64320010654},{"$f":"AB65*'C-Values and Rates'!AB$33","v":-135078.21713452932},{"$f":"AC65*'C-Values and Rates'!AC$33","v":-130148.24660189675},{"$f":"AD65*'C-Values and Rates'!AD$33","v":-125397.53346049783},{"$f":"AE65*'C-Values and Rates'!AE$33","v":-120819.58081201722},{"$f":"AF65*'C-Values and Rates'!AF$33","v":-116408.12656780444},{"$f":"AG65*'C-Values and Rates'!AG$33","v":-112157.13498319875},{"$f":"AH65*'C-Values and Rates'!AH$33","v":-107900.94933699237},{"$f":"AI65*'C-Values and Rates'!AI$33","v":-103805.08823153595},{"$f":"AJ65*'C-Values and Rates'!AJ$33","v":-99863.549639574456},{"$f":"AK65*'C-Values and Rates'!AK$33","v":-96070.555060478058},{"$f":"AL65*'C-Values and Rates'!AL$33","v":-92420.54123275516},{"$f":"AM65*'C-Values and Rates'!AM$33","v":-89040.916394847183},{"$f":"AN65*'C-Values and Rates'!AN$33","v":-85784.577286960019},{"$f":"AO65*'C-Values and Rates'!AO$33","v":-82647.036349203307},{"$f":"AP65*'C-Values and Rates'!AP$33","v":-79623.969046789018},{"$f":"AQ65*'C-Values and Rates'!AQ$33","v":-76711.207958137544},{"$f":"AR65*'C-Values and Rates'!AR$33","v":-73902.873745161414},{"$f":"AS65*'C-Values and Rates'!AS$33","v":-71566.010017367866},{"$f":"AT65*'C-Values and Rates'!AT$33","v":-69302.807811394567},{"$f":"AU65*'C-Values and Rates'!AU$33","v":-67110.951704344843},{"$f":"AV65*'C-Values and Rates'!AV$33","v":-64988.198871769426},{"$f":"AW65*'C-Values and Rates'!AW$33","v":-63048.642457265443},{"$f":"AX65*'C-Values and Rates'!AX$33","v":-61166.976797773663},{"$f":"AY65*'C-Values and Rates'!AY$33","v":-59341.473850807284},{"$f":"AZ65*'C-Values and Rates'!AZ$33","v":-57570.45716055551},{"$f":"BA65*'C-Values and Rates'!BA$33","v":-55852.300317750982},{"$f":"BB65*'C-Values and Rates'!BB$33","v":-54185.425465522079},{"$f":"BC65*'C-Values and Rates'!BC$33","v":-52568.301849857053},{"$f":"BD65*'C-Values and Rates'!BD$33","v":-50999.444413347839},{"$f":"BE65*'C-Values and Rates'!BE$33","v":-49477.412430921315},{"$f":"BF65*'C-Values and Rates'!BF$33","v":-48000.808186304064},{"$f":"BG65*'C-Values and Rates'!BG$33","v":-46568.275688004534},{"$f":"BH65*'C-Values and Rates'!BH$33","v":-45178.499423632486},{"$f":"BI65*'C-Values and Rates'!BI$33","v":-43830.203151411049},{"$f":"BJ65*'C-Values and Rates'!BJ$33","v":-42522.148727770822},{"$f":"BK65*'C-Values and Rates'!BK$33","v":-41253.134969948529},{"$f":"BL65*'C-Values and Rates'!BL$33","v":-40021.996552545112},{"$f":"BM65*'C-Values and Rates'!BM$33","v":-38827.60293702926},{"$f":"BN65*'C-Values and Rates'!BN$33","v":-37668.857333202504},{"$f":"BO65*'C-Values and Rates'!BO$33","v":-36544.695691671688},{"$f":"BP65*'C-Values and Rates'!BP$33","v":-35454.085726402875},{"$f":"BQ65*'C-Values and Rates'!BQ$33","v":-34396.02596645843},{"$f":"BR65*'C-Values and Rates'!BR$33","v":-33369.54483604605},{"$f":"BS65*'C-Values and Rates'!BS$33","v":-32373.699762034208},{"$f":"BT65*'C-Values and Rates'!BT$33","v":-31407.576308113981},{"$f":"BU65*'C-Values and Rates'!BU$33","v":-30470.28733481163},{"$f":"BV65*'C-Values and Rates'!BV$33","v":-29560.972184580009},{"$f":"BW65*'C-Values and Rates'!BW$33","v":-28678.795891220034},{"$f":"BX65*'C-Values and Rates'!BX$33","v":0},{"$f":"BY65*'C-Values and Rates'!BY$33","v":0},{"$f":"BZ65*'C-Values and Rates'!BZ$33","v":0},{"$f":"CA65*'C-Values and Rates'!CA$33","v":0},{"$f":"CB65*'C-Values and Rates'!CB$33","v":0},{"$f":"CC65*'C-Values and Rates'!CC$33","v":0},{"$f":"CD65*'C-Values and Rates'!CD$33","v":0},{"$f":"CE65*'C-Values and Rates'!CE$33","v":0}]
[]
[null,"END"]

{"sheet":"C-Scheme Costs","index":16,"n_rows":54,"n_cols":83,"rows_kept":54,"cut":false,"hidden":true,"merged":[]}
[null,{"$f":"SUM(A:A)","v":0}]
[null,"File Name",null,null,null,null,{"$f":"IFERROR(MID(CELL(\"filename\",G2),FIND(\"[\",CELL(\"filename\",G2))+1,FIND(\"]\",CELL(\"filename\",G2))-FIND(\"[\",CELL(\"filename\",G2))-1),\"Please save the file to show here\")","v":"structures-fund-economic-tool Final 03082026.xlsm"}]
[null,"Sheet Name",null,null,null,null,{"$f":"IFERROR(MID(CELL(\"filename\",G2),FIND(\"]\",CELL(\"filename\",G2))+1,255),\"Please save the file to show here\")","v":"C-Scheme Costs"}]
[null,"Description and Purpose of Sheet",null,null,null,null,"This sheet calculates the capex and OMR costs in 2023 present values over the appraisal period."]
[null,"Version number",null,null,null,null,{"$f":"Version_Number","v":1}]
[]
[]
[null,"C-Scheme Costs"]
[]
[null,null,null,null,"Constant",null,null,"Total",null,"Unit",2023,2024,2025,2026,2027,2028,2029,2030,2031,2032,2033,2034,2035,2036,2037,2038,2039,2040,2041,2042,2043,2044,2045,2046,2047,2048,2049,2050,2051,2052,2053,2054,2055,2056,2057,2058,2059,2060,2061,2062,2063,2064,2065,2066,2067,2068,2069,2070,2071,2072,2073,2074,2075,2076,2077,2078,2079,2080,2081,2082,2083,2084,2085,2086,2087,2088,2089,2090,2091,2092,2093,2094,2095]
[]
[null,null,null,"Appraisal period flag",null,null,null,null,null,null,{"$f":"'C-Values and Rates'!K15","v":0},{"$f":"'C-Values and Rates'!L15","v":0},{"$f":"'C-Values and Rates'!M15","v":0},{"$f":"'C-Values and Rates'!N15","v":0},{"$f":"'C-Values and Rates'!O15","v":0},{"$f":"'C-Values and Rates'!P15","v":1},{"$f":"'C-Values and Rates'!Q15","v":1},{"$f":"'C-Values and Rates'!R15","v":1},{"$f":"'C-Values and Rates'!S15","v":1},{"$f":"'C-Values and Rates'!T15","v":1},{"$f":"'C-Values and Rates'!U15","v":1},{"$f":"'C-Values and Rates'!V15","v":1},{"$f":"'C-Values and Rates'!W15","v":1},{"$f":"'C-Values and Rates'!X15","v":1},{"$f":"'C-Values and Rates'!Y15","v":1},{"$f":"'C-Values and Rates'!Z15","v":1},{"$f":"'C-Values and Rates'!AA15","v":1},{"$f":"'C-Values and Rates'!AB15","v":1},{"$f":"'C-Values and Rates'!AC15","v":1},{"$f":"'C-Values and Rates'!AD15","v":1},{"$f":"'C-Values and Rates'!AE15","v":1},{"$f":"'C-Values and Rates'!AF15","v":1},{"$f":"'C-Values and Rates'!AG15","v":1},{"$f":"'C-Values and Rates'!AH15","v":1},{"$f":"'C-Values and Rates'!AI15","v":1},{"$f":"'C-Values and Rates'!AJ15","v":1},{"$f":"'C-Values and Rates'!AK15","v":1},{"$f":"'C-Values and Rates'!AL15","v":1},{"$f":"'C-Values and Rates'!AM15","v":1},{"$f":"'C-Values and Rates'!AN15","v":1},{"$f":"'C-Values and Rates'!AO15","v":1},{"$f":"'C-Values and Rates'!AP15","v":1},{"$f":"'C-Values and Rates'!AQ15","v":1},{"$f":"'C-Values and Rates'!AR15","v":1},{"$f":"'C-Values and Rates'!AS15","v":1},{"$f":"'C-Values and Rates'!AT15","v":1},{"$f":"'C-Values and Rates'!AU15","v":1},{"$f":"'C-Values and Rates'!AV15","v":1},{"$f":"'C-Values and Rates'!AW15","v":1},{"$f":"'C-Values and Rates'!AX15","v":1},{"$f":"'C-Values and Rates'!AY15","v":1},{"$f":"'C-Values and Rates'!AZ15","v":1},{"$f":"'C-Values and Rates'!BA15","v":1},{"$f":"'C-Values and Rates'!BB15","v":1},{"$f":"'C-Values and Rates'!BC15","v":1},{"$f":"'C-Values and Rates'!BD15","v":1},{"$f":"'C-Values and Rates'!BE15","v":1},{"$f":"'C-Values and Rates'!BF15","v":1},{"$f":"'C-Values and Rates'!BG15","v":1},{"$f":"'C-Values and Rates'!BH15","v":1},{"$f":"'C-Values and Rates'!BI15","v":1},{"$f":"'C-Values and Rates'!BJ15","v":1},{"$f":"'C-Values and Rates'!BK15","v":1},{"$f":"'C-Values and Rates'!BL15","v":1},{"$f":"'C-Values and Rates'!BM15","v":1},{"$f":"'C-Values and Rates'!BN15","v":1},{"$f":"'C-Values and Rates'!BO15","v":1},{"$f":"'C-Values and Rates'!BP15","v":1},{"$f":"'C-Values and Rates'!BQ15","v":1},{"$f":"'C-Values and Rates'!BR15","v":1},{"$f":"'C-Values and Rates'!BS15","v":1},{"$f":"'C-Values and Rates'!BT15","v":1},{"$f":"'C-Values and Rates'!BU15","v":1},{"$f":"'C-Values and Rates'!BV15","v":1},{"$f":"'C-Values and Rates'!BW15","v":1},{"$f":"'C-Values and Rates'!BX15","v":0},{"$f":"'C-Values and Rates'!BY15","v":0},{"$f":"'C-Values and Rates'!BZ15","v":0},{"$f":"'C-Values and Rates'!CA15","v":0},{"$f":"'C-Values and Rates'!CB15","v":0},{"$f":"'C-Values and Rates'!CC15","v":0},{"$f":"'C-Values and Rates'!CD15","v":0},{"$f":"'C-Values and Rates'!CE15","v":0}]
[]
[null,null,"Capital Costs"]
[]
[null,null,null,null,"Funding Source"]
[null,null,null,"Capital Costs (exclusive of risk or optimism bias)","Central Government",null,null,{"$f":"SUM(N17:CE17)","v":600000},null,"£, nominal prices - with inflation",null,null,null,{"$f":"'I-Costs'!N23","v":0},{"$f":"'I-Costs'!O23","v":100000},{"$f":"'I-Costs'!P23","v":500000},{"$f":"'I-Costs'!Q23","v":0},{"$f":"'I-Costs'!R23","v":0},{"$f":"'I-Costs'!S23","v":0},{"$f":"'I-Costs'!T23","v":0},{"$f":"'I-Costs'!U23","v":0},{"$f":"'I-Costs'!V23","v":0},{"$f":"'I-Costs'!W23","v":0},{"$f":"'I-Costs'!X23","v":0},{"$f":"'I-Costs'!Y23","v":0},{"$f":"'I-Costs'!Z23","v":0},{"$f":"'I-Costs'!AA23","v":0},{"$f":"'I-Costs'!AB23","v":0},{"$f":"'I-Costs'!AC23","v":0},{"$f":"'I-Costs'!AD23","v":0},{"$f":"'I-Costs'!AE23","v":0},{"$f":"'I-Costs'!AF23","v":0},{"$f":"'I-Costs'!AG23","v":0},{"$f":"'I-Costs'!AH23","v":0},{"$f":"'I-Costs'!AI23","v":0},{"$f":"'I-Costs'!AJ23","v":0},{"$f":"'I-Costs'!AK23","v":0},{"$f":"'I-Costs'!AL23","v":0},{"$f":"'I-Costs'!AM23","v":0},{"$f":"'I-Costs'!AN23","v":0},{"$f":"'I-Costs'!AO23","v":0},{"$f":"'I-Costs'!AP23","v":0},{"$f":"'I-Costs'!AQ23","v":0},{"$f":"'I-Costs'!AR23","v":0},{"$f":"'I-Costs'!AS23","v":0},{"$f":"'I-Costs'!AT23","v":0},{"$f":"'I-Costs'!AU23","v":0},{"$f":"'I-Costs'!AV23","v":0},{"$f":"'I-Costs'!AW23","v":0},{"$f":"'I-Costs'!AX23","v":0},{"$f":"'I-Costs'!AY23","v":0},{"$f":"'I-Costs'!AZ23","v":0},{"$f":"'I-Costs'!BA23","v":0},{"$f":"'I-Costs'!BB23","v":0},{"$f":"'I-Costs'!BC23","v":0},{"$f":"'I-Costs'!BD23","v":0},{"$f":"'I-Costs'!BE23","v":0},{"$f":"'I-Costs'!BF23","v":0},{"$f":"'I-Costs'!BG23","v":0},{"$f":"'I-Costs'!BH23","v":0},{"$f":"'I-Costs'!BI23","v":0},{"$f":"'I-Costs'!BJ23","v":0},{"$f":"'I-Costs'!BK23","v":0},{"$f":"'I-Costs'!BL23","v":0},{"$f":"'I-Costs'!BM23","v":0},{"$f":"'I-Costs'!BN23","v":0},{"$f":"'I-Costs'!BO23","v":0},{"$f":"'I-Costs'!BP23","v":0},{"$f":"'I-Costs'!BQ23","v":0},{"$f":"'I-Costs'!BR23","v":0},{"$f":"'I-Costs'!BS23","v":0},{"$f":"'I-Costs'!BT23","v":0},{"$f":"'I-Costs'!BU23","v":0},{"$f":"'I-Costs'!BV23","v":0},{"$f":"'I-Costs'!BW23","v":0},{"$f":"'I-Costs'!BX23","v":0},{"$f":"'I-Costs'!BY23","v":0},{"$f":"'I-Costs'!BZ23","v":0},{"$f":"'I-Costs'!CA23","v":0},{"$f":"'I-Costs'!CB23","v":0},{"$f":"'I-Costs'!CC23","v":0},{"$f":"'I-Costs'!CD23","v":0},{"$f":"'I-Costs'!CE23","v":0}]
[null,null,null,"Capital Costs (exclusive of risk or optimism bias)","Local Authority",null,null,{"$f":"SUM(N18:CE18)","v":50000},null,"£, nominal prices - with inflation",null,null,null,{"$f":"'I-Costs'!N24","v":0},{"$f":"'I-Costs'!O24","v":0},{"$f":"'I-Costs'!P24","v":50000},{"$f":"'I-Costs'!Q24","v":0},{"$f":"'I-Costs'!R24","v":0},{"$f":"'I-Costs'!S24","v":0},{"$f":"'I-Costs'!T24","v":0},{"$f":"'I-Costs'!U24","v":0},{"$f":"'I-Costs'!V24","v":0},{"$f":"'I-Costs'!W24","v":0},{"$f":"'I-Costs'!X24","v":0},{"$f":"'I-Costs'!Y24","v":0},{"$f":"'I-Costs'!Z24","v":0},{"$f":"'I-Costs'!AA24","v":0},{"$f":"'I-Costs'!AB24","v":0},{"$f":"'I-Costs'!AC24","v":0},{"$f":"'I-Costs'!AD24","v":0},{"$f":"'I-Costs'!AE24","v":0},{"$f":"'I-Costs'!AF24","v":0},{"$f":"'I-Costs'!AG24","v":0},{"$f":"'I-Costs'!AH24","v":0},{"$f":"'I-Costs'!AI24","v":0},{"$f":"'I-Costs'!AJ24","v":0},{"$f":"'I-Costs'!AK24","v":0},{"$f":"'I-Costs'!AL24","v":0},{"$f":"'I-Costs'!AM24","v":0},{"$f":"'I-Costs'!AN24","v":0},{"$f":"'I-Costs'!AO24","v":0},{"$f":"'I-Costs'!AP24","v":0},{"$f":"'I-Costs'!AQ24","v":0},{"$f":"'I-Costs'!AR24","v":0},{"$f":"'I-Costs'!AS24","v":0},{"$f":"'I-Costs'!AT24","v":0},{"$f":"'I-Costs'!AU24","v":0},{"$f":"'I-Costs'!AV24","v":0},{"$f":"'I-Costs'!AW24","v":0},{"$f":"'I-Costs'!AX24","v":0},{"$f":"'I-Costs'!AY24","v":0},{"$f":"'I-Costs'!AZ24","v":0},{"$f":"'I-Costs'!BA24","v":0},{"$f":"'I-Costs'!BB24","v":0},{"$f":"'I-Costs'!BC24","v":0},{"$f":"'I-Costs'!BD24","v":0},{"$f":"'I-Costs'!BE24","v":0},{"$f":"'I-Costs'!BF24","v":0},{"$f":"'I-Costs'!BG24","v":0},{"$f":"'I-Costs'!BH24","v":0},{"$f":"'I-Costs'!BI24","v":0},{"$f":"'I-Costs'!BJ24","v":0},{"$f":"'I-Costs'!BK24","v":0},{"$f":"'I-Costs'!BL24","v":0},{"$f":"'I-Costs'!BM24","v":0},{"$f":"'I-Costs'!BN24","v":0},{"$f":"'I-Costs'!BO24","v":0},{"$f":"'I-Costs'!BP24","v":0},{"$f":"'I-Costs'!BQ24","v":0},{"$f":"'I-Costs'!BR24","v":0},{"$f":"'I-Costs'!BS24","v":0},{"$f":"'I-Costs'!BT24","v":0},{"$f":"'I-Costs'!BU24","v":0},{"$f":"'I-Costs'!BV24","v":0},{"$f":"'I-Costs'!BW24","v":0},{"$f":"'I-Costs'!BX24","v":0},{"$f":"'I-Costs'!BY24","v":0},{"$f":"'I-Costs'!BZ24","v":0},{"$f":"'I-Costs'!CA24","v":0},{"$f":"'I-Costs'!CB24","v":0},{"$f":"'I-Costs'!CC24","v":0},{"$f":"'I-Costs'!CD24","v":0},{"$f":"'I-Costs'!CE24","v":0}]
[null,null,null,"Capital Costs (exclusive of risk or optimism bias)","Private",null,null,0,null,"£, nominal prices - with inflation",null,null,null,{"$f":"'I-Costs'!N25","v":0},{"$f":"'I-Costs'!O25","v":0},{"$f":"'I-Costs'!P25","v":0},{"$f":"'I-Costs'!Q25","v":0},{"$f":"'I-Costs'!R25","v":0},{"$f":"'I-Costs'!S25","v":0},{"$f":"'I-Costs'!T25","v":0},{"$f":"'I-Costs'!U25","v":0},{"$f":"'I-Costs'!V25","v":0},{"$f":"'I-Costs'!W25","v":0},{"$f":"'I-Costs'!X25","v":0},{"$f":"'I-Costs'!Y25","v":0},{"$f":"'I-Costs'!Z25","v":0},{"$f":"'I-Costs'!AA25","v":0},{"$f":"'I-Costs'!AB25","v":0},{"$f":"'I-Costs'!AC25","v":0},{"$f":"'I-Costs'!AD25","v":0},{"$f":"'I-Costs'!AE25","v":0},{"$f":"'I-Costs'!AF25","v":0},{"$f":"'I-Costs'!AG25","v":0},{"$f":"'I-Costs'!AH25","v":0},{"$f":"'I-Costs'!AI25","v":0},{"$f":"'I-Costs'!AJ25","v":0},{"$f":"'I-Costs'!AK25","v":0},{"$f":"'I-Costs'!AL25","v":0},{"$f":"'I-Costs'!AM25","v":0},{"$f":"'I-Costs'!AN25","v":0},{"$f":"'I-Costs'!AO25","v":0},{"$f":"'I-Costs'!AP25","v":0},{"$f":"'I-Costs'!AQ25","v":0},{"$f":"'I-Costs'!AR25","v":0},{"$f":"'I-Costs'!AS25","v":0},{"$f":"'I-Costs'!AT25","v":0},{"$f":"'I-Costs'!AU25","v":0},{"$f":"'I-Costs'!AV25","v":0},{"$f":"'I-Costs'!AW25","v":0},{"$f":"'I-Costs'!AX25","v":0},{"$f":"'I-Costs'!AY25","v":0},{"$f":"'I-Costs'!AZ25","v":0},{"$f":"'I-Costs'!BA25","v":0},{"$f":"'I-Costs'!BB25","v":0},{"$f":"'I-Costs'!BC25","v":0},{"$f":"'I-Costs'!BD25","v":0},{"$f":"'I-Costs'!BE25","v":0},{"$f":"'I-Costs'!BF25","v":0},{"$f":"'I-Costs'!BG25","v":0},{"$f":"'I-Costs'!BH25","v":0},{"$f":"'I-Costs'!BI25","v":0},{"$f":"'I-Costs'!BJ25","v":0},{"$f":"'I-Costs'!BK25","v":0},{"$f":"'I-Costs'!BL25","v":0},{"$f":"'I-Costs'!BM25","v":0},{"$f":"'I-Costs'!BN25","v":0},{"$f":"'I-Costs'!BO25","v":0},{"$f":"'I-Costs'!BP25","v":0},{"$f":"'I-Costs'!BQ25","v":0},{"$f":"'I-Costs'!BR25","v":0},{"$f":"'I-Costs'!BS25","v":0},{"$f":"'I-Costs'!BT25","v":0},{"$f":"'I-Costs'!BU25","v":0},{"$f":"'I-Costs'!BV25","v":0},{"$f":"'I-Costs'!BW25","v":0},{"$f":"'I-Costs'!BX25","v":0},{"$f":"'I-Costs'!BY25","v":0},{"$f":"'I-Costs'!BZ25","v":0},{"$f":"'I-Costs'!CA25","v":0},{"$f":"'I-Costs'!CB25","v":0},{"$f":"'I-Costs'!CC25","v":0},{"$f":"'I-Costs'!CD25","v":0},{"$f":"'I-Costs'!CE25","v":0}]
[]
[{"$f":"--NOT(H21=H17*(1+MAX('I-Costs'!$E$40,'I-Costs'!$E$41)))","v":0},null,null,"Capital Costs (inclusive of risk or optimism bias)","Central Government",null,null,{"$f":"SUM(N21:CE21)","v":996000.00000000012},null,"£, nominal prices - with inflation",null,null,null,{"$f":"N17*(1+MAX('I-Costs'!$E$40:$E$41))","v":0},{"$f":"O17*(1+MAX('I-Costs'!$E$40:$E$41))","v":166000},{"$f":"P17*(1+MAX('I-Costs'!$E$40:$E$41))","v":830000.00000000012},{"$f":"Q17*(1+MAX('I-Costs'!$E$40:$E$41))","v":0},{"$f":"R17*(1+MAX('I-Costs'!$E$40:$E$41))","v":0},{"$f":"S17*(1+MAX('I-Costs'!$E$40:$E$41))","v":0},{"$f":"T17*(1+MAX('I-Costs'!$E$40:$E$41))","v":0},{"$f":"U17*(1+MAX('I-Costs'!$E$40:$E$41))","v":0},{"$f":"V17*(1+MAX('I-Costs'!$E$40:$E$41))","v":0},{"$f":"W17*(1+MAX('I-Costs'!$E$40:$E$41))","v":0},{"$f":"X17*(1+MAX('I-Costs'!$E$40:$E$41))","v":0},{"$f":"Y17*(1+MAX('I-Costs'!$E$40:$E$41))","v":0},{"$f":"Z17*(1+MAX('I-Costs'!$E$40:$E$41))","v":0},{"$f":"AA17*(1+MAX('I-Costs'!$E$40:$E$41))","v":0},{"$f":"AB17*(1+MAX('I-Costs'!$E$40:$E$41))","v":0},{"$f":"AC17*(1+MAX('I-Costs'!$E$40:$E$41))","v":0},{"$f":"AD17*(1+MAX('I-Costs'!$E$40:$E$41))","v":0},{"$f":"AE17*(1+MAX('I-Costs'!$E$40:$E$41))","v":0},{"$f":"AF17*(1+MAX('I-Costs'!$E$40:$E$41))","v":0},{"$f":"AG17*(1+MAX('I-Costs'!$E$40:$E$41))","v":0},{"$f":"AH17*(1+MAX('I-Costs'!$E$40:$E$41))","v":0},{"$f":"AI17*(1+MAX('I-Costs'!$E$40:$E$41))","v":0},{"$f":"AJ17*(1+MAX('I-Costs'!$E$40:$E$41))","v":0},{"$f":"AK17*(1+MAX('I-Costs'!$E$40:$E$41))","v":0},{"$f":"AL17*(1+MAX('I-Costs'!$E$40:$E$41))","v":0},{"$f":"AM17*(1+MAX('I-Costs'!$E$40:$E$41))","v":0},{"$f":"AN17*(1+MAX('I-Costs'!$E$40:$E$41))","v":0},{"$f":"AO17*(1+MAX('I-Costs'!$E$40:$E$41))","v":0},{"$f":"AP17*(1+MAX('I-Costs'!$E$40:$E$41))","v":0},{"$f":"AQ17*(1+MAX('I-Costs'!$E$40:$E$41))","v":0},{"$f":"AR17*(1+MAX('I-Costs'!$E$40:$E$41))","v":0},{"$f":"AS17*(1+MAX('I-Costs'!$E$40:$E$41))","v":0},{"$f":"AT17*(1+MAX('I-Costs'!$E$40:$E$41))","v":0},{"$f":"AU17*(1+MAX('I-Costs'!$E$40:$E$41))","v":0},{"$f":"AV17*(1+MAX('I-Costs'!$E$40:$E$41))","v":0},{"$f":"AW17*(1+MAX('I-Costs'!$E$40:$E$41))","v":0},{"$f":"AX17*(1+MAX('I-Costs'!$E$40:$E$41))","v":0},{"$f":"AY17*(1+MAX('I-Costs'!$E$40:$E$41))","v":0},{"$f":"AZ17*(1+MAX('I-Costs'!$E$40:$E$41))","v":0},{"$f":"BA17*(1+MAX('I-Costs'!$E$40:$E$41))","v":0},{"$f":"BB17*(1+MAX('I-Costs'!$E$40:$E$41))","v":0},{"$f":"BC17*(1+MAX('I-Costs'!$E$40:$E$41))","v":0},{"$f":"BD17*(1+MAX('I-Costs'!$E$40:$E$41))","v":0},{"$f":"BE17*(1+MAX('I-Costs'!$E$40:$E$41))","v":0},{"$f":"BF17*(1+MAX('I-Costs'!$E$40:$E$41))","v":0},{"$f":"BG17*(1+MAX('I-Costs'!$E$40:$E$41))","v":0},{"$f":"BH17*(1+MAX('I-Costs'!$E$40:$E$41))","v":0},{"$f":"BI17*(1+MAX('I-Costs'!$E$40:$E$41))","v":0},{"$f":"BJ17*(1+MAX('I-Costs'!$E$40:$E$41))","v":0},{"$f":"BK17*(1+MAX('I-Costs'!$E$40:$E$41))","v":0},{"$f":"BL17*(1+MAX('I-Costs'!$E$40:$E$41))","v":0},{"$f":"BM17*(1+MAX('I-Costs'!$E$40:$E$41))","v":0},{"$f":"BN17*(1+MAX('I-Costs'!$E$40:$E$41))","v":0},{"$f":"BO17*(1+MAX('I-Costs'!$E$40:$E$41))","v":0},{"$f":"BP17*(1+MAX('I-Costs'!$E$40:$E$41))","v":0},{"$f":"BQ17*(1+MAX('I-Costs'!$E$40:$E$41))","v":0},{"$f":"BR17*(1+MAX('I-Costs'!$E$40:$E$41))","v":0},{"$f":"BS17*(1+MAX('I-Costs'!$E$40:$E$41))","v":0},{"$f":"BT17*(1+MAX('I-Costs'!$E$40:$E$41))","v":0},{"$f":"BU17*(1+MAX('I-Costs'!$E$40:$E$41))","v":0},{"$f":"BV17*(1+MAX('I-Costs'!$E$40:$E$41))","v":0},{"$f":"BW17*(1+MAX('I-Costs'!$E$40:$E$41))","v":0},{"$f":"BX17*(1+MAX('I-Costs'!$E$40:$E$41))","v":0},{"$f":"BY17*(1+MAX('I-Costs'!$E$40:$E$41))","v":0},{"$f":"BZ17*(1+MAX('I-Costs'!$E$40:$E$41))","v":0},{"$f":"CA17*(1+MAX('I-Costs'!$E$40:$E$41))","v":0},{"$f":"CB17*(1+MAX('I-Costs'!$E$40:$E$41))","v":0},{"$f":"CC17*(1+MAX('I-Costs'!$E$40:$E$41))","v":0},{"$f":"CD17*(1+MAX('I-Costs'!$E$40:$E$41))","v":0},{"$f":"CE17*(1+MAX('I-Costs'!$E$40:$E$41))","v":0}]
[{"$f":"--NOT(H22=H18*(1+MAX('I-Costs'!$E$40,'I-Costs'!$E$41)))","v":0},null,null,"Capital Costs (inclusive of risk or optimism bias)","Local Authority",null,null,{"$f":"SUM(N22:CE22)","v":83000},null,"£, nominal prices - with inflation",null,null,null,{"$f":"N18*(1+MAX('I-Costs'!$E$40:$E$41))","v":0},{"$f":"O18*(1+MAX('I-Costs'!$E$40:$E$41))","v":0},{"$f":"P18*(1+MAX('I-Costs'!$E$40:$E$41))","v":83000},{"$f":"Q18*(1+MAX('I-Costs'!$E$40:$E$41))","v":0},{"$f":"R18*(1+MAX('I-Costs'!$E$40:$E$41))","v":0},{"$f":"S18*(1+MAX('I-Costs'!$E$40:$E$41))","v":0},{"$f":"T18*(1+MAX('I-Costs'!$E$40:$E$41))","v":0},{"$f":"U18*(1+MAX('I-Costs'!$E$40:$E$41))","v":0},{"$f":"V18*(1+MAX('I-Costs'!$E$40:$E$41))","v":0},{"$f":"W18*(1+MAX('I-Costs'!$E$40:$E$41))","v":0},{"$f":"X18*(1+MAX('I-Costs'!$E$40:$E$41))","v":0},{"$f":"Y18*(1+MAX('I-Costs'!$E$40:$E$41))","v":0},{"$f":"Z18*(1+MAX('I-Costs'!$E$40:$E$41))","v":0},{"$f":"AA18*(1+MAX('I-Costs'!$E$40:$E$41))","v":0},{"$f":"AB18*(1+MAX('I-Costs'!$E$40:$E$41))","v":0},{"$f":"AC18*(1+MAX('I-Costs'!$E$40:$E$41))","v":0},{"$f":"AD18*(1+MAX('I-Costs'!$E$40:$E$41))","v":0},{"$f":"AE18*(1+MAX('I-Costs'!$E$40:$E$41))","v":0},{"$f":"AF18*(1+MAX('I-Costs'!$E$40:$E$41))","v":0},{"$f":"AG18*(1+MAX('I-Costs'!$E$40:$E$41))","v":0},{"$f":"AH18*(1+MAX('I-Costs'!$E$40:$E$41))","v":0},{"$f":"AI18*(1+MAX('I-Costs'!$E$40:$E$41))","v":0},{"$f":"AJ18*(1+MAX('I-Costs'!$E$40:$E$41))","v":0},{"$f":"AK18*(1+MAX('I-Costs'!$E$40:$E$41))","v":0},{"$f":"AL18*(1+MAX('I-Costs'!$E$40:$E$41))","v":0},{"$f":"AM18*(1+MAX('I-Costs'!$E$40:$E$41))","v":0},{"$f":"AN18*(1+MAX('I-Costs'!$E$40:$E$41))","v":0},{"$f":"AO18*(1+MAX('I-Costs'!$E$40:$E$41))","v":0},{"$f":"AP18*(1+MAX('I-Costs'!$E$40:$E$41))","v":0},{"$f":"AQ18*(1+MAX('I-Costs'!$E$40:$E$41))","v":0},{"$f":"AR18*(1+MAX('I-Costs'!$E$40:$E$41))","v":0},{"$f":"AS18*(1+MAX('I-Costs'!$E$40:$E$41))","v":0},{"$f":"AT18*(1+MAX('I-Costs'!$E$40:$E$41))","v":0},{"$f":"AU18*(1+MAX('I-Costs'!$E$40:$E$41))","v":0},{"$f":"AV18*(1+MAX('I-Costs'!$E$40:$E$41))","v":0},{"$f":"AW18*(1+MAX('I-Costs'!$E$40:$E$41))","v":0},{"$f":"AX18*(1+MAX('I-Costs'!$E$40:$E$41))","v":0},{"$f":"AY18*(1+MAX('I-Costs'!$E$40:$E$41))","v":0},{"$f":"AZ18*(1+MAX('I-Costs'!$E$40:$E$41))","v":0},{"$f":"BA18*(1+MAX('I-Costs'!$E$40:$E$41))","v":0},{"$f":"BB18*(1+MAX('I-Costs'!$E$40:$E$41))","v":0},{"$f":"BC18*(1+MAX('I-Costs'!$E$40:$E$41))","v":0},{"$f":"BD18*(1+MAX('I-Costs'!$E$40:$E$41))","v":0},{"$f":"BE18*(1+MAX('I-Costs'!$E$40:$E$41))","v":0},{"$f":"BF18*(1+MAX('I-Costs'!$E$40:$E$41))","v":0},{"$f":"BG18*(1+MAX('I-Costs'!$E$40:$E$41))","v":0},{"$f":"BH18*(1+MAX('I-Costs'!$E$40:$E$41))","v":0},{"$f":"BI18*(1+MAX('I-Costs'!$E$40:$E$41))","v":0},{"$f":"BJ18*(1+MAX('I-Costs'!$E$40:$E$41))","v":0},{"$f":"BK18*(1+MAX('I-Costs'!$E$40:$E$41))","v":0},{"$f":"BL18*(1+MAX('I-Costs'!$E$40:$E$41))","v":0},{"$f":"BM18*(1+MAX('I-Costs'!$E$40:$E$41))","v":0},{"$f":"BN18*(1+MAX('I-Costs'!$E$40:$E$41))","v":0},{"$f":"BO18*(1+MAX('I-Costs'!$E$40:$E$41))","v":0},{"$f":"BP18*(1+MAX('I-Costs'!$E$40:$E$41))","v":0},{"$f":"BQ18*(1+MAX('I-Costs'!$E$40:$E$41))","v":0},{"$f":"BR18*(1+MAX('I-Costs'!$E$40:$E$41))","v":0},{"$f":"BS18*(1+MAX('I-Costs'!$E$40:$E$41))","v":0},{"$f":"BT18*(1+MAX('I-Costs'!$E$40:$E$41))","v":0},{"$f":"BU18*(1+MAX('I-Costs'!$E$40:$E$41))","v":0},{"$f":"BV18*(1+MAX('I-Costs'!$E$40:$E$41))","v":0},{"$f":"BW18*(1+MAX('I-Costs'!$E$40:$E$41))","v":0},{"$f":"BX18*(1+MAX('I-Costs'!$E$40:$E$41))","v":0},{"$f":"BY18*(1+MAX('I-Costs'!$E$40:$E$41))","v":0},{"$f":"BZ18*(1+MAX('I-Costs'!$E$40:$E$41))","v":0},{"$f":"CA18*(1+MAX('I-Costs'!$E$40:$E$41))","v":0},{"$f":"CB18*(1+MAX('I-Costs'!$E$40:$E$41))","v":0},{"$f":"CC18*(1+MAX('I-Costs'!$E$40:$E$41))","v":0},{"$f":"CD18*(1+MAX('I-Costs'!$E$40:$E$41))","v":0},{"$f":"CE18*(1+MAX('I-Costs'!$E$40:$E$41))","v":0}]
[{"$f":"--NOT(H23=H19*(1+MAX('I-Costs'!$E$40,'I-Costs'!$E$41)))","v":0},null,null,"Capital Costs (inclusive of risk or optimism bias)","Private",null,null,0,null,"£, nominal prices - with inflation",null,null,null,{"$f":"N19*(1+MAX('I-Costs'!$E$40:$E$41))","v":0},{"$f":"O19*(1+MAX('I-Costs'!$E$40:$E$41))","v":0},{"$f":"P19*(1+MAX('I-Costs'!$E$40:$E$41))","v":0},{"$f":"Q19*(1+MAX('I-Costs'!$E$40:$E$41))","v":0},{"$f":"R19*(1+MAX('I-Costs'!$E$40:$E$41))","v":0},{"$f":"S19*(1+MAX('I-Costs'!$E$40:$E$41))","v":0},{"$f":"T19*(1+MAX('I-Costs'!$E$40:$E$41))","v":0},{"$f":"U19*(1+MAX('I-Costs'!$E$40:$E$41))","v":0},{"$f":"V19*(1+MAX('I-Costs'!$E$40:$E$41))","v":0},{"$f":"W19*(1+MAX('I-Costs'!$E$40:$E$41))","v":0},{"$f":"X19*(1+MAX('I-Costs'!$E$40:$E$41))","v":0},{"$f":"Y19*(1+MAX('I-Costs'!$E$40:$E$41))","v":0},{"$f":"Z19*(1+MAX('I-Costs'!$E$40:$E$41))","v":0},{"$f":"AA19*(1+MAX('I-Costs'!$E$40:$E$41))","v":0},{"$f":"AB19*(1+MAX('I-Costs'!$E$40:$E$41))","v":0},{"$f":"AC19*(1+MAX('I-Costs'!$E$40:$E$41))","v":0},{"$f":"AD19*(1+MAX('I-Costs'!$E$40:$E$41))","v":0},{"$f":"AE19*(1+MAX('I-Costs'!$E$40:$E$41))","v":0},{"$f":"AF19*(1+MAX('I-Costs'!$E$40:$E$41))","v":0},{"$f":"AG19*(1+MAX('I-Costs'!$E$40:$E$41))","v":0},{"$f":"AH19*(1+MAX('I-Costs'!$E$40:$E$41))","v":0},{"$f":"AI19*(1+MAX('I-Costs'!$E$40:$E$41))","v":0},{"$f":"AJ19*(1+MAX('I-Costs'!$E$40:$E$41))","v":0},{"$f":"AK19*(1+MAX('I-Costs'!$E$40:$E$41))","v":0},{"$f":"AL19*(1+MAX('I-Costs'!$E$40:$E$41))","v":0},{"$f":"AM19*(1+MAX('I-Costs'!$E$40:$E$41))","v":0},{"$f":"AN19*(1+MAX('I-Costs'!$E$40:$E$41))","v":0},{"$f":"AO19*(1+MAX('I-Costs'!$E$40:$E$41))","v":0},{"$f":"AP19*(1+MAX('I-Costs'!$E$40:$E$41))","v":0},{"$f":"AQ19*(1+MAX('I-Costs'!$E$40:$E$41))","v":0},{"$f":"AR19*(1+MAX('I-Costs'!$E$40:$E$41))","v":0},{"$f":"AS19*(1+MAX('I-Costs'!$E$40:$E$41))","v":0},{"$f":"AT19*(1+MAX('I-Costs'!$E$40:$E$41))","v":0},{"$f":"AU19*(1+MAX('I-Costs'!$E$40:$E$41))","v":0},{"$f":"AV19*(1+MAX('I-Costs'!$E$40:$E$41))","v":0},{"$f":"AW19*(1+MAX('I-Costs'!$E$40:$E$41))","v":0},{"$f":"AX19*(1+MAX('I-Costs'!$E$40:$E$41))","v":0},{"$f":"AY19*(1+MAX('I-Costs'!$E$40:$E$41))","v":0},{"$f":"AZ19*(1+MAX('I-Costs'!$E$40:$E$41))","v":0},{"$f":"BA19*(1+MAX('I-Costs'!$E$40:$E$41))","v":0},{"$f":"BB19*(1+MAX('I-Costs'!$E$40:$E$41))","v":0},{"$f":"BC19*(1+MAX('I-Costs'!$E$40:$E$41))","v":0},{"$f":"BD19*(1+MAX('I-Costs'!$E$40:$E$41))","v":0},{"$f":"BE19*(1+MAX('I-Costs'!$E$40:$E$41))","v":0},{"$f":"BF19*(1+MAX('I-Costs'!$E$40:$E$41))","v":0},{"$f":"BG19*(1+MAX('I-Costs'!$E$40:$E$41))","v":0},{"$f":"BH19*(1+MAX('I-Costs'!$E$40:$E$41))","v":0},{"$f":"BI19*(1+MAX('I-Costs'!$E$40:$E$41))","v":0},{"$f":"BJ19*(1+MAX('I-Costs'!$E$40:$E$41))","v":0},{"$f":"BK19*(1+MAX('I-Costs'!$E$40:$E$41))","v":0},{"$f":"BL19*(1+MAX('I-Costs'!$E$40:$E$41))","v":0},{"$f":"BM19*(1+MAX('I-Costs'!$E$40:$E$41))","v":0},{"$f":"BN19*(1+MAX('I-Costs'!$E$40:$E$41))","v":0},{"$f":"BO19*(1+MAX('I-Costs'!$E$40:$E$41))","v":0},{"$f":"BP19*(1+MAX('I-Costs'!$E$40:$E$41))","v":0},{"$f":"BQ19*(1+MAX('I-Costs'!$E$40:$E$41))","v":0},{"$f":"BR19*(1+MAX('I-Costs'!$E$40:$E$41))","v":0},{"$f":"BS19*(1+MAX('I-Costs'!$E$40:$E$41))","v":0},{"$f":"BT19*(1+MAX('I-Costs'!$E$40:$E$41))","v":0},{"$f":"BU19*(1+MAX('I-Costs'!$E$40:$E$41))","v":0},{"$f":"BV19*(1+MAX('I-Costs'!$E$40:$E$41))","v":0},{"$f":"BW19*(1+MAX('I-Costs'!$E$40:$E$41))","v":0},{"$f":"BX19*(1+MAX('I-Costs'!$E$40:$E$41))","v":0},{"$f":"BY19*(1+MAX('I-Costs'!$E$40:$E$41))","v":0},{"$f":"BZ19*(1+MAX('I-Costs'!$E$40:$E$41))","v":0},{"$f":"CA19*(1+MAX('I-Costs'!$E$40:$E$41))","v":0},{"$f":"CB19*(1+MAX('I-Costs'!$E$40:$E$41))","v":0},{"$f":"CC19*(1+MAX('I-Costs'!$E$40:$E$41))","v":0},{"$f":"CD19*(1+MAX('I-Costs'!$E$40:$E$41))","v":0},{"$f":"CE19*(1+MAX('I-Costs'!$E$40:$E$41))","v":0}]
[]
[{"$f":"--NOT(H25=SUMPRODUCT(K21:BZ21,'C-Values and Rates'!$K$23:$BZ$23))","v":0},null,null,"Capital Costs (inclusive of risk or optimism bias)","Central Government",null,null,{"$f":"SUM(N25:CE25)","v":875086.11897421721},null,"£, 2023 prices",null,null,null,{"$f":"N21*'C-Values and Rates'!N$23","v":0},{"$f":"O21*'C-Values and Rates'!O$23","v":148182.80696120282},{"$f":"P21*'C-Values and Rates'!P$23","v":726903.31201301445},{"$f":"Q21*'C-Values and Rates'!Q$23","v":0},{"$f":"R21*'C-Values and Rates'!R$23","v":0},{"$f":"S21*'C-Values and Rates'!S$23","v":0},{"$f":"T21*'C-Values and Rates'!T$23","v":0},{"$f":"U21*'C-Values and Rates'!U$23","v":0},{"$f":"V21*'C-Values and Rates'!V$23","v":0},{"$f":"W21*'C-Values and Rates'!W$23","v":0},{"$f":"X21*'C-Values and Rates'!X$23","v":0},{"$f":"Y21*'C-Values and Rates'!Y$23","v":0},{"$f":"Z21*'C-Values and Rates'!Z$23","v":0},{"$f":"AA21*'C-Values and Rates'!AA$23","v":0},{"$f":"AB21*'C-Values and Rates'!AB$23","v":0},{"$f":"AC21*'C-Values and Rates'!AC$23","v":0},{"$f":"AD21*'C-Values and Rates'!AD$23","v":0},{"$f":"AE21*'C-Values and Rates'!AE$23","v":0},{"$f":"AF21*'C-Values and Rates'!AF$23","v":0},{"$f":"AG21*'C-Values and Rates'!AG$23","v":0},{"$f":"AH21*'C-Values and Rates'!AH$23","v":0},{"$f":"AI21*'C-Values and Rates'!AI$23","v":0},{"$f":"AJ21*'C-Values and Rates'!AJ$23","v":0},{"$f":"AK21*'C-Values and Rates'!AK$23","v":0},{"$f":"AL21*'C-Values and Rates'!AL$23","v":0},{"$f":"AM21*'C-Values and Rates'!AM$23","v":0},{"$f":"AN21*'C-Values and Rates'!AN$23","v":0},{"$f":"AO21*'C-Values and Rates'!AO$23","v":0},{"$f":"AP21*'C-Values and Rates'!AP$23","v":0},{"$f":"AQ21*'C-Values and Rates'!AQ$23","v":0},{"$f":"AR21*'C-Values and Rates'!AR$23","v":0},{"$f":"AS21*'C-Values and Rates'!AS$23","v":0},{"$f":"AT21*'C-Values and Rates'!AT$23","v":0},{"$f":"AU21*'C-Values and Rates'!AU$23","v":0},{"$f":"AV21*'C-Values and Rates'!AV$23","v":0},{"$f":"AW21*'C-Values and Rates'!AW$23","v":0},{"$f":"AX21*'C-Values and Rates'!AX$23","v":0},{"$f":"AY21*'C-Values and Rates'!AY$23","v":0},{"$f":"AZ21*'C-Values and Rates'!AZ$23","v":0},{"$f":"BA21*'C-Values and Rates'!BA$23","v":0},{"$f":"BB21*'C-Values and Rates'!BB$23","v":0},{"$f":"BC21*'C-Values and Rates'!BC$23","v":0},{"$f":"BD21*'C-Values and Rates'!BD$23","v":0},{"$f":"BE21*'C-Values and Rates'!BE$23","v":0},{"$f":"BF21*'C-Values and Rates'!BF$23","v":0},{"$f":"BG21*'C-Values and Rates'!BG$23","v":0},{"$f":"BH21*'C-Values and Rates'!BH$23","v":0},{"$f":"BI21*'C-Values and Rates'!BI$23","v":0},{"$f":"BJ21*'C-Values and Rates'!BJ$23","v":0},{"$f":"BK21*'C-Values and Rates'!BK$23","v":0},{"$f":"BL21*'C-Values and Rates'!BL$23","v":0},{"$f":"BM21*'C-Values and Rates'!BM$23","v":0},{"$f":"BN21*'C-Values and Rates'!BN$23","v":0},{"$f":"BO21*'C-Values and Rates'!BO$23","v":0},{"$f":"BP21*'C-Values and Rates'!BP$23","v":0},{"$f":"BQ21*'C-Values and Rates'!BQ$23","v":0},{"$f":"BR21*'C-Values and Rates'!BR$23","v":0},{"$f":"BS21*'C-Values and Rates'!BS$23","v":0},{"$f":"BT21*'C-Values and Rates'!BT$23","v":0},{"$f":"BU21*'C-Values and Rates'!BU$23","v":0},{"$f":"BV21*'C-Values and Rates'!BV$23","v":0},{"$f":"BW21*'C-Values and Rates'!BW$23","v":0},{"$f":"BX21*'C-Values and Rates'!BX$23","v":0},{"$f":"BY21*'C-Values and Rates'!BY$23","v":0},{"$f":"BZ21*'C-Values and Rates'!BZ$23","v":0},{"$f":"CA21*'C-Values and Rates'!CA$23","v":0},{"$f":"CB21*'C-Values and Rates'!CB$23","v":0},{"$f":"CC21*'C-Values and Rates'!CC$23","v":0},{"$f":"CD21*'C-Values and Rates'!CD$23","v":0},{"$f":"CE21*'C-Values and Rates'!CE$23","v":0}]
[{"$f":"--NOT(H26=SUMPRODUCT(K22:BZ22,'C-Values and Rates'!$K$23:$BZ$23))","v":0},null,null,"Capital Costs (inclusive of risk or optimism bias)","Local Authority",null,null,{"$f":"SUM(N26:CE26)","v":72690.331201301437},null,"£, 2023 prices",null,null,null,{"$f":"N22*'C-Values and Rates'!N$23","v":0},{"$f":"O22*'C-Values and Rates'!O$23","v":0},{"$f":"P22*'C-Values and Rates'!P$23","v":72690.331201301437},{"$f":"Q22*'C-Values and Rates'!Q$23","v":0},{"$f":"R22*'C-Values and Rates'!R$23","v":0},{"$f":"S22*'C-Values and Rates'!S$23","v":0},{"$f":"T22*'C-Values and Rates'!T$23","v":0},{"$f":"U22*'C-Values and Rates'!U$23","v":0},{"$f":"V22*'C-Values and Rates'!V$23","v":0},{"$f":"W22*'C-Values and Rates'!W$23","v":0},{"$f":"X22*'C-Values and Rates'!X$23","v":0},{"$f":"Y22*'C-Values and Rates'!Y$23","v":0},{"$f":"Z22*'C-Values and Rates'!Z$23","v":0},{"$f":"AA22*'C-Values and Rates'!AA$23","v":0},{"$f":"AB22*'C-Values and Rates'!AB$23","v":0},{"$f":"AC22*'C-Values and Rates'!AC$23","v":0},{"$f":"AD22*'C-Values and Rates'!AD$23","v":0},{"$f":"AE22*'C-Values and Rates'!AE$23","v":0},{"$f":"AF22*'C-Values and Rates'!AF$23","v":0},{"$f":"AG22*'C-Values and Rates'!AG$23","v":0},{"$f":"AH22*'C-Values and Rates'!AH$23","v":0},{"$f":"AI22*'C-Values and Rates'!AI$23","v":0},{"$f":"AJ22*'C-Values and Rates'!AJ$23","v":0},{"$f":"AK22*'C-Values and Rates'!AK$23","v":0},{"$f":"AL22*'C-Values and Rates'!AL$23","v":0},{"$f":"AM22*'C-Values and Rates'!AM$23","v":0},{"$f":"AN22*'C-Values and Rates'!AN$23","v":0},{"$f":"AO22*'C-Values and Rates'!AO$23","v":0},{"$f":"AP22*'C-Values and Rates'!AP$23","v":0},{"$f":"AQ22*'C-Values and Rates'!AQ$23","v":0},{"$f":"AR22*'C-Values and Rates'!AR$23","v":0},{"$f":"AS22*'C-Values and Rates'!AS$23","v":0},{"$f":"AT22*'C-Values and Rates'!AT$23","v":0},{"$f":"AU22*'C-Values and Rates'!AU$23","v":0},{"$f":"AV22*'C-Values and Rates'!AV$23","v":0},{"$f":"AW22*'C-Values and Rates'!AW$23","v":0},{"$f":"AX22*'C-Values and Rates'!AX$23","v":0},{"$f":"AY22*'C-Values and Rates'!AY$23","v":0},{"$f":"AZ22*'C-Values and Rates'!AZ$23","v":0},{"$f":"BA22*'C-Values and Rates'!BA$23","v":0},{"$f":"BB22*'C-Values and Rates'!BB$23","v":0},{"$f":"BC22*'C-Values and Rates'!BC$23","v":0},{"$f":"BD22*'C-Values and Rates'!BD$23","v":0},{"$f":"BE22*'C-Values and Rates'!BE$23","v":0},{"$f":"BF22*'C-Values and Rates'!BF$23","v":0},{"$f":"BG22*'C-Values and Rates'!BG$23","v":0},{"$f":"BH22*'C-Values and Rates'!BH$23","v":0},{"$f":"BI22*'C-Values and Rates'!BI$23","v":0},{"$f":"BJ22*'C-Values and Rates'!BJ$23","v":0},{"$f":"BK22*'C-Values and Rates'!BK$23","v":0},{"$f":"BL22*'C-Values and Rates'!BL$23","v":0},{"$f":"BM22*'C-Values and Rates'!BM$23","v":0},{"$f":"BN22*'C-Values and Rates'!BN$23","v":0},{"$f":"BO22*'C-Values and Rates'!BO$23","v":0},{"$f":"BP22*'C-Values and Rates'!BP$23","v":0},{"$f":"BQ22*'C-Values and Rates'!BQ$23","v":0},{"$f":"BR22*'C-Values and Rates'!BR$23","v":0},{"$f":"BS22*'C-Values and Rates'!BS$23","v":0},{"$f":"BT22*'C-Values and Rates'!BT$23","v":0},{"$f":"BU22*'C-Values and Rates'!BU$23","v":0},{"$f":"BV22*'C-Values and Rates'!BV$23","v":0},{"$f":"BW22*'C-Values and Rates'!BW$23","v":0},{"$f":"BX22*'C-Values and Rates'!BX$23","v":0},{"$f":"BY22*'C-Values and Rates'!BY$23","v":0},{"$f":"BZ22*'C-Values and Rates'!BZ$23","v":0},{"$f":"CA22*'C-Values and Rates'!CA$23","v":0},{"$f":"CB22*'C-Values and Rates'!CB$23","v":0},{"$f":"CC22*'C-Values and Rates'!CC$23","v":0},{"$f":"CD22*'C-Values and Rates'!CD$23","v":0},{"$f":"CE22*'C-Values and Rates'!CE$23","v":0}]
[{"$f":"--NOT(H27=SUMPRODUCT(K23:BZ23,'C-Values and Rates'!$K$23:$BZ$23))","v":0},null,null,"Capital Costs (inclusive of risk or optimism bias)","Private",null,null,0,null,"£, 2023 prices",null,null,null,{"$f":"N23*'C-Values and Rates'!N$23","v":0},{"$f":"O23*'C-Values and Rates'!O$23","v":0},{"$f":"P23*'C-Values and Rates'!P$23","v":0},{"$f":"Q23*'C-Values and Rates'!Q$23","v":0},{"$f":"R23*'C-Values and Rates'!R$23","v":0},{"$f":"S23*'C-Values and Rates'!S$23","v":0},{"$f":"T23*'C-Values and Rates'!T$23","v":0},{"$f":"U23*'C-Values and Rates'!U$23","v":0},{"$f":"V23*'C-Values and Rates'!V$23","v":0},{"$f":"W23*'C-Values and Rates'!W$23","v":0},{"$f":"X23*'C-Values and Rates'!X$23","v":0},{"$f":"Y23*'C-Values and Rates'!Y$23","v":0},{"$f":"Z23*'C-Values and Rates'!Z$23","v":0},{"$f":"AA23*'C-Values and Rates'!AA$23","v":0},{"$f":"AB23*'C-Values and Rates'!AB$23","v":0},{"$f":"AC23*'C-Values and Rates'!AC$23","v":0},{"$f":"AD23*'C-Values and Rates'!AD$23","v":0},{"$f":"AE23*'C-Values and Rates'!AE$23","v":0},{"$f":"AF23*'C-Values and Rates'!AF$23","v":0},{"$f":"AG23*'C-Values and Rates'!AG$23","v":0},{"$f":"AH23*'C-Values and Rates'!AH$23","v":0},{"$f":"AI23*'C-Values and Rates'!AI$23","v":0},{"$f":"AJ23*'C-Values and Rates'!AJ$23","v":0},{"$f":"AK23*'C-Values and Rates'!AK$23","v":0},{"$f":"AL23*'C-Values and Rates'!AL$23","v":0},{"$f":"AM23*'C-Values and Rates'!AM$23","v":0},{"$f":"AN23*'C-Values and Rates'!AN$23","v":0},{"$f":"AO23*'C-Values and Rates'!AO$23","v":0},{"$f":"AP23*'C-Values and Rates'!AP$23","v":0},{"$f":"AQ23*'C-Values and Rates'!AQ$23","v":0},{"$f":"AR23*'C-Values and Rates'!AR$23","v":0},{"$f":"AS23*'C-Values and Rates'!AS$23","v":0},{"$f":"AT23*'C-Values and Rates'!AT$23","v":0},{"$f":"AU23*'C-Values and Rates'!AU$23","v":0},{"$f":"AV23*'C-Values and Rates'!AV$23","v":0},{"$f":"AW23*'C-Values and Rates'!AW$23","v":0},{"$f":"AX23*'C-Values and Rates'!AX$23","v":0},{"$f":"AY23*'C-Values and Rates'!AY$23","v":0},{"$f":"AZ23*'C-Values and Rates'!AZ$23","v":0},{"$f":"BA23*'C-Values and Rates'!BA$23","v":0},{"$f":"BB23*'C-Values and Rates'!BB$23","v":0},{"$f":"BC23*'C-Values and Rates'!BC$23","v":0},{"$f":"BD23*'C-Values and Rates'!BD$23","v":0},{"$f":"BE23*'C-Values and Rates'!BE$23","v":0},{"$f":"BF23*'C-Values and Rates'!BF$23","v":0},{"$f":"BG23*'C-Values and Rates'!BG$23","v":0},{"$f":"BH23*'C-Values and Rates'!BH$23","v":0},{"$f":"BI23*'C-Values and Rates'!BI$23","v":0},{"$f":"BJ23*'C-Values and Rates'!BJ$23","v":0},{"$f":"BK23*'C-Values and Rates'!BK$23","v":0},{"$f":"BL23*'C-Values and Rates'!BL$23","v":0},{"$f":"BM23*'C-Values and Rates'!BM$23","v":0},{"$f":"BN23*'C-Values and Rates'!BN$23","v":0},{"$f":"BO23*'C-Values and Rates'!BO$23","v":0},{"$f":"BP23*'C-Values and Rates'!BP$23","v":0},{"$f":"BQ23*'C-Values and Rates'!BQ$23","v":0},{"$f":"BR23*'C-Values and Rates'!BR$23","v":0},{"$f":"BS23*'C-Values and Rates'!BS$23","v":0},{"$f":"BT23*'C-Values and Rates'!BT$23","v":0},{"$f":"BU23*'C-Values and Rates'!BU$23","v":0},{"$f":"BV23*'C-Values and Rates'!BV$23","v":0},{"$f":"BW23*'C-Values and Rates'!BW$23","v":0},{"$f":"BX23*'C-Values and Rates'!BX$23","v":0},{"$f":"BY23*'C-Values and Rates'!BY$23","v":0},{"$f":"BZ23*'C-Values and Rates'!BZ$23","v":0},{"$f":"CA23*'C-Values and Rates'!CA$23","v":0},{"$f":"CB23*'C-Values and Rates'!CB$23","v":0},{"$f":"CC23*'C-Values and Rates'!CC$23","v":0},{"$f":"CD23*'C-Values and Rates'!CD$23","v":0},{"$f":"CE23*'C-Values and Rates'!CE$23","v":0}]
[]
[{"$f":"--NOT(H29=SUMPRODUCT(K25:BZ25,'C-Values and Rates'!$K$33:$BZ$33))","v":0},null,null,"Capital Costs (inclusive of risk or optimism bias)","Central Government",null,null,{"$f":"SUM(N29:CE29)","v":736794.72068918881},null,"£, 2023 Present Values",null,null,null,{"$f":"N25*'C-Values and Rates'!N$33","v":0},{"$f":"O25*'C-Values and Rates'!O$33","v":128501.1666332301},{"$f":"P25*'C-Values and Rates'!P$33","v":608293.55405595875},{"$f":"Q25*'C-Values and Rates'!Q$33","v":0},{"$f":"R25*'C-Values and Rates'!R$33","v":0},{"$f":"S25*'C-Values and Rates'!S$33","v":0},{"$f":"T25*'C-Values and Rates'!T$33","v":0},{"$f":"U25*'C-Values and Rates'!U$33","v":0},{"$f":"V25*'C-Values and Rates'!V$33","v":0},{"$f":"W25*'C-Values and Rates'!W$33","v":0},{"$f":"X25*'C-Values and Rates'!X$33","v":0},{"$f":"Y25*'C-Values and Rates'!Y$33","v":0},{"$f":"Z25*'C-Values and Rates'!Z$33","v":0},{"$f":"AA25*'C-Values and Rates'!AA$33","v":0},{"$f":"AB25*'C-Values and Rates'!AB$33","v":0},{"$f":"AC25*'C-Values and Rates'!AC$33","v":0},{"$f":"AD25*'C-Values and Rates'!AD$33","v":0},{"$f":"AE25*'C-Values and Rates'!AE$33","v":0},{"$f":"AF25*'C-Values and Rates'!AF$33","v":0},{"$f":"AG25*'C-Values and Rates'!AG$33","v":0},{"$f":"AH25*'C-Values and Rates'!AH$33","v":0},{"$f":"AI25*'C-Values and Rates'!AI$33","v":0},{"$f":"AJ25*'C-Values and Rates'!AJ$33","v":0},{"$f":"AK25*'C-Values and Rates'!AK$33","v":0},{"$f":"AL25*'C-Values and Rates'!AL$33","v":0},{"$f":"AM25*'C-Values and Rates'!AM$33","v":0},{"$f":"AN25*'C-Values and Rates'!AN$33","v":0},{"$f":"AO25*'C-Values and Rates'!AO$33","v":0},{"$f":"AP25*'C-Values and Rates'!AP$33","v":0},{"$f":"AQ25*'C-Values and Rates'!AQ$33","v":0},{"$f":"AR25*'C-Values and Rates'!AR$33","v":0},{"$f":"AS25*'C-Values and Rates'!AS$33","v":0},{"$f":"AT25*'C-Values and Rates'!AT$33","v":0},{"$f":"AU25*'C-Values and Rates'!AU$33","v":0},{"$f":"AV25*'C-Values and Rates'!AV$33","v":0},{"$f":"AW25*'C-Values and Rates'!AW$33","v":0},{"$f":"AX25*'C-Values and Rates'!AX$33","v":0},{"$f":"AY25*'C-Values and Rates'!AY$33","v":0},{"$f":"AZ25*'C-Values and Rates'!AZ$33","v":0},{"$f":"BA25*'C-Values and Rates'!BA$33","v":0},{"$f":"BB25*'C-Values and Rates'!BB$33","v":0},{"$f":"BC25*'C-Values and Rates'!BC$33","v":0},{"$f":"BD25*'C-Values and Rates'!BD$33","v":0},{"$f":"BE25*'C-Values and Rates'!BE$33","v":0},{"$f":"BF25*'C-Values and Rates'!BF$33","v":0},{"$f":"BG25*'C-Values and Rates'!BG$33","v":0},{"$f":"BH25*'C-Values and Rates'!BH$33","v":0},{"$f":"BI25*'C-Values and Rates'!BI$33","v":0},{"$f":"BJ25*'C-Values and Rates'!BJ$33","v":0},{"$f":"BK25*'C-Values and Rates'!BK$33","v":0},{"$f":"BL25*'C-Values and Rates'!BL$33","v":0},{"$f":"BM25*'C-Values and Rates'!BM$33","v":0},{"$f":"BN25*'C-Values and Rates'!BN$33","v":0},{"$f":"BO25*'C-Values and Rates'!BO$33","v":0},{"$f":"BP25*'C-Values and Rates'!BP$33","v":0},{"$f":"BQ25*'C-Values and Rates'!BQ$33","v":0},{"$f":"BR25*'C-Values and Rates'!BR$33","v":0},{"$f":"BS25*'C-Values and Rates'!BS$33","v":0},{"$f":"BT25*'C-Values and Rates'!BT$33","v":0},{"$f":"BU25*'C-Values and Rates'!BU$33","v":0},{"$f":"BV25*'C-Values and Rates'!BV$33","v":0},{"$f":"BW25*'C-Values and Rates'!BW$33","v":0},{"$f":"BX25*'C-Values and Rates'!BX$33","v":0},{"$f":"BY25*'C-Values and Rates'!BY$33","v":0},{"$f":"BZ25*'C-Values and Rates'!BZ$33","v":0},{"$f":"CA25*'C-Values and Rates'!CA$33","v":0},{"$f":"CB25*'C-Values and Rates'!CB$33","v":0},{"$f":"CC25*'C-Values and Rates'!CC$33","v":0},{"$f":"CD25*'C-Values and Rates'!CD$33","v":0},{"$f":"CE25*'C-Values and Rates'!CE$33","v":0}]
[{"$f":"--NOT(H30=SUMPRODUCT(K26:BZ26,'C-Values and Rates'!$K$33:$BZ$33))","v":0},null,null,"Capital Costs (inclusive of risk or optimism bias)","Local Authority",null,null,{"$f":"SUM(N30:CE30)","v":60829.355405595867},null,"£, 2023 Present Values",null,null,null,{"$f":"N26*'C-Values and Rates'!N$33","v":0},{"$f":"O26*'C-Values and Rates'!O$33","v":0},{"$f":"P26*'C-Values and Rates'!P$33","v":60829.355405595867},{"$f":"Q26*'C-Values and Rates'!Q$33","v":0},{"$f":"R26*'C-Values and Rates'!R$33","v":0},{"$f":"S26*'C-Values and Rates'!S$33","v":0},{"$f":"T26*'C-Values and Rates'!T$33","v":0},{"$f":"U26*'C-Values and Rates'!U$33","v":0},{"$f":"V26*'C-Values and Rates'!V$33","v":0},{"$f":"W26*'C-Values and Rates'!W$33","v":0},{"$f":"X26*'C-Values and Rates'!X$33","v":0},{"$f":"Y26*'C-Values and Rates'!Y$33","v":0},{"$f":"Z26*'C-Values and Rates'!Z$33","v":0},{"$f":"AA26*'C-Values and Rates'!AA$33","v":0},{"$f":"AB26*'C-Values and Rates'!AB$33","v":0},{"$f":"AC26*'C-Values and Rates'!AC$33","v":0},{"$f":"AD26*'C-Values and Rates'!AD$33","v":0},{"$f":"AE26*'C-Values and Rates'!AE$33","v":0},{"$f":"AF26*'C-Values and Rates'!AF$33","v":0},{"$f":"AG26*'C-Values and Rates'!AG$33","v":0},{"$f":"AH26*'C-Values and Rates'!AH$33","v":0},{"$f":"AI26*'C-Values and Rates'!AI$33","v":0},{"$f":"AJ26*'C-Values and Rates'!AJ$33","v":0},{"$f":"AK26*'C-Values and Rates'!AK$33","v":0},{"$f":"AL26*'C-Values and Rates'!AL$33","v":0},{"$f":"AM26*'C-Values and Rates'!AM$33","v":0},{"$f":"AN26*'C-Values and Rates'!AN$33","v":0},{"$f":"AO26*'C-Values and Rates'!AO$33","v":0},{"$f":"AP26*'C-Values and Rates'!AP$33","v":0},{"$f":"AQ26*'C-Values and Rates'!AQ$33","v":0},{"$f":"AR26*'C-Values and Rates'!AR$33","v":0},{"$f":"AS26*'C-Values and Rates'!AS$33","v":0},{"$f":"AT26*'C-Values and Rates'!AT$33","v":0},{"$f":"AU26*'C-Values and Rates'!AU$33","v":0},{"$f":"AV26*'C-Values and Rates'!AV$33","v":0},{"$f":"AW26*'C-Values and Rates'!AW$33","v":0},{"$f":"AX26*'C-Values and Rates'!AX$33","v":0},{"$f":"AY26*'C-Values and Rates'!AY$33","v":0},{"$f":"AZ26*'C-Values and Rates'!AZ$33","v":0},{"$f":"BA26*'C-Values and Rates'!BA$33","v":0},{"$f":"BB26*'C-Values and Rates'!BB$33","v":0},{"$f":"BC26*'C-Values and Rates'!BC$33","v":0},{"$f":"BD26*'C-Values and Rates'!BD$33","v":0},{"$f":"BE26*'C-Values and Rates'!BE$33","v":0},{"$f":"BF26*'C-Values and Rates'!BF$33","v":0},{"$f":"BG26*'C-Values and Rates'!BG$33","v":0},{"$f":"BH26*'C-Values and Rates'!BH$33","v":0},{"$f":"BI26*'C-Values and Rates'!BI$33","v":0},{"$f":"BJ26*'C-Values and Rates'!BJ$33","v":0},{"$f":"BK26*'C-Values and Rates'!BK$33","v":0},{"$f":"BL26*'C-Values and Rates'!BL$33","v":0},{"$f":"BM26*'C-Values and Rates'!BM$33","v":0},{"$f":"BN26*'C-Values and Rates'!BN$33","v":0},{"$f":"BO26*'C-Values and Rates'!BO$33","v":0},{"$f":"BP26*'C-Values and Rates'!BP$33","v":0},{"$f":"BQ26*'C-Values and Rates'!BQ$33","v":0},{"$f":"BR26*'C-Values and Rates'!BR$33","v":0},{"$f":"BS26*'C-Values and Rates'!BS$33","v":0},{"$f":"BT26*'C-Values and Rates'!BT$33","v":0},{"$f":"BU26*'C-Values and Rates'!BU$33","v":0},{"$f":"BV26*'C-Values and Rates'!BV$33","v":0},{"$f":"BW26*'C-Values and Rates'!BW$33","v":0},{"$f":"BX26*'C-Values and Rates'!BX$33","v":0},{"$f":"BY26*'C-Values and Rates'!BY$33","v":0},{"$f":"BZ26*'C-Values and Rates'!BZ$33","v":0},{"$f":"CA26*'C-Values and Rates'!CA$33","v":0},{"$f":"CB26*'C-Values and Rates'!CB$33","v":0},{"$f":"CC26*'C-Values and Rates'!CC$33","v":0},{"$f":"CD26*'C-Values and Rates'!CD$33","v":0},{"$f":"CE26*'C-Values and Rates'!CE$33","v":0}]
[{"$f":"--NOT(H31=SUMPRODUCT(K27:BZ27,'C-Values and Rates'!$K$33:$BZ$33))","v":0},null,null,"Capital Costs (inclusive of risk or optimism bias)","Private",null,null,0,null,"£, 2023 Present Values",null,null,null,{"$f":"N27*'C-Values and Rates'!N$33","v":0},{"$f":"O27*'C-Values and Rates'!O$33","v":0},{"$f":"P27*'C-Values and Rates'!P$33","v":0},{"$f":"Q27*'C-Values and Rates'!Q$33","v":0},{"$f":"R27*'C-Values and Rates'!R$33","v":0},{"$f":"S27*'C-Values and Rates'!S$33","v":0},{"$f":"T27*'C-Values and Rates'!T$33","v":0},{"$f":"U27*'C-Values and Rates'!U$33","v":0},{"$f":"V27*'C-Values and Rates'!V$33","v":0},{"$f":"W27*'C-Values and Rates'!W$33","v":0},{"$f":"X27*'C-Values and Rates'!X$33","v":0},{"$f":"Y27*'C-Values and Rates'!Y$33","v":0},{"$f":"Z27*'C-Values and Rates'!Z$33","v":0},{"$f":"AA27*'C-Values and Rates'!AA$33","v":0},{"$f":"AB27*'C-Values and Rates'!AB$33","v":0},{"$f":"AC27*'C-Values and Rates'!AC$33","v":0},{"$f":"AD27*'C-Values and Rates'!AD$33","v":0},{"$f":"AE27*'C-Values and Rates'!AE$33","v":0},{"$f":"AF27*'C-Values and Rates'!AF$33","v":0},{"$f":"AG27*'C-Values and Rates'!AG$33","v":0},{"$f":"AH27*'C-Values and Rates'!AH$33","v":0},{"$f":"AI27*'C-Values and Rates'!AI$33","v":0},{"$f":"AJ27*'C-Values and Rates'!AJ$33","v":0},{"$f":"AK27*'C-Values and Rates'!AK$33","v":0},{"$f":"AL27*'C-Values and Rates'!AL$33","v":0},{"$f":"AM27*'C-Values and Rates'!AM$33","v":0},{"$f":"AN27*'C-Values and Rates'!AN$33","v":0},{"$f":"AO27*'C-Values and Rates'!AO$33","v":0},{"$f":"AP27*'C-Values and Rates'!AP$33","v":0},{"$f":"AQ27*'C-Values and Rates'!AQ$33","v":0},{"$f":"AR27*'C-Values and Rates'!AR$33","v":0},{"$f":"AS27*'C-Values and Rates'!AS$33","v":0},{"$f":"AT27*'C-Values and Rates'!AT$33","v":0},{"$f":"AU27*'C-Values and Rates'!AU$33","v":0},{"$f":"AV27*'C-Values and Rates'!AV$33","v":0},{"$f":"AW27*'C-Values and Rates'!AW$33","v":0},{"$f":"AX27*'C-Values and Rates'!AX$33","v":0},{"$f":"AY27*'C-Values and Rates'!AY$33","v":0},{"$f":"AZ27*'C-Values and Rates'!AZ$33","v":0},{"$f":"BA27*'C-Values and Rates'!BA$33","v":0},{"$f":"BB27*'C-Values and Rates'!BB$33","v":0},{"$f":"BC27*'C-Values and Rates'!BC$33","v":0},{"$f":"BD27*'C-Values and Rates'!BD$33","v":0},{"$f":"BE27*'C-Values and Rates'!BE$33","v":0},{"$f":"BF27*'C-Values and Rates'!BF$33","v":0},{"$f":"BG27*'C-Values and Rates'!BG$33","v":0},{"$f":"BH27*'C-Values and Rates'!BH$33","v":0},{"$f":"BI27*'C-Values and Rates'!BI$33","v":0},{"$f":"BJ27*'C-Values and Rates'!BJ$33","v":0},{"$f":"BK27*'C-Values and Rates'!BK$33","v":0},{"$f":"BL27*'C-Values and Rates'!BL$33","v":0},{"$f":"BM27*'C-Values and Rates'!BM$33","v":0},{"$f":"BN27*'C-Values and Rates'!BN$33","v":0},{"$f":"BO27*'C-Values and Rates'!BO$33","v":0},{"$f":"BP27*'C-Values and Rates'!BP$33","v":0},{"$f":"BQ27*'C-Values and Rates'!BQ$33","v":0},{"$f":"BR27*'C-Values and Rates'!BR$33","v":0},{"$f":"BS27*'C-Values and Rates'!BS$33","v":0},{"$f":"BT27*'C-Values and Rates'!BT$33","v":0},{"$f":"BU27*'C-Values and Rates'!BU$33","v":0},{"$f":"BV27*'C-Values and Rates'!BV$33","v":0},{"$f":"BW27*'C-Values and Rates'!BW$33","v":0},{"$f":"BX27*'C-Values and Rates'!BX$33","v":0},{"$f":"BY27*'C-Values and Rates'!BY$33","v":0},{"$f":"BZ27*'C-Values and Rates'!BZ$33","v":0},{"$f":"CA27*'C-Values and Rates'!CA$33","v":0},{"$f":"CB27*'C-Values and Rates'!CB$33","v":0},{"$f":"CC27*'C-Values and Rates'!CC$33","v":0},{"$f":"CD27*'C-Values and Rates'!CD$33","v":0},{"$f":"CE27*'C-Values and Rates'!CE$33","v":0}]
[]
[{"$f":"--NOT(H33=H29*'I-TAG Values'!$E$14)","v":0},null,null,"Capital Costs (inclusive of risk or optimism bias)","Central Government",null,null,{"$f":"SUM(N33:CE33)","v":876785.7176201347},null,"£, 2023 Present Values, Market Prices",null,null,null,{"$f":"N29*'I-TAG Values'!$E$14","v":0},{"$f":"O29*'I-TAG Values'!$E$14","v":152916.3882935438},{"$f":"P29*'I-TAG Values'!$E$14","v":723869.32932659087},{"$f":"Q29*'I-TAG Values'!$E$14","v":0},{"$f":"R29*'I-TAG Values'!$E$14","v":0},{"$f":"S29*'I-TAG Values'!$E$14","v":0},{"$f":"T29*'I-TAG Values'!$E$14","v":0},{"$f":"U29*'I-TAG Values'!$E$14","v":0},{"$f":"V29*'I-TAG Values'!$E$14","v":0},{"$f":"W29*'I-TAG Values'!$E$14","v":0},{"$f":"X29*'I-TAG Values'!$E$14","v":0},{"$f":"Y29*'I-TAG Values'!$E$14","v":0},{"$f":"Z29*'I-TAG Values'!$E$14","v":0},{"$f":"AA29*'I-TAG Values'!$E$14","v":0},{"$f":"AB29*'I-TAG Values'!$E$14","v":0},{"$f":"AC29*'I-TAG Values'!$E$14","v":0},{"$f":"AD29*'I-TAG Values'!$E$14","v":0},{"$f":"AE29*'I-TAG Values'!$E$14","v":0},{"$f":"AF29*'I-TAG Values'!$E$14","v":0},{"$f":"AG29*'I-TAG Values'!$E$14","v":0},{"$f":"AH29*'I-TAG Values'!$E$14","v":0},{"$f":"AI29*'I-TAG Values'!$E$14","v":0},{"$f":"AJ29*'I-TAG Values'!$E$14","v":0},{"$f":"AK29*'I-TAG Values'!$E$14","v":0},{"$f":"AL29*'I-TAG Values'!$E$14","v":0},{"$f":"AM29*'I-TAG Values'!$E$14","v":0},{"$f":"AN29*'I-TAG Values'!$E$14","v":0},{"$f":"AO29*'I-TAG Values'!$E$14","v":0},{"$f":"AP29*'I-TAG Values'!$E$14","v":0},{"$f":"AQ29*'I-TAG Values'!$E$14","v":0},{"$f":"AR29*'I-TAG Values'!$E$14","v":0},{"$f":"AS29*'I-TAG Values'!$E$14","v":0},{"$f":"AT29*'I-TAG Values'!$E$14","v":0},{"$f":"AU29*'I-TAG Values'!$E$14","v":0},{"$f":"AV29*'I-TAG Values'!$E$14","v":0},{"$f":"AW29*'I-TAG Values'!$E$14","v":0},{"$f":"AX29*'I-TAG Values'!$E$14","v":0},{"$f":"AY29*'I-TAG Values'!$E$14","v":0},{"$f":"AZ29*'I-TAG Values'!$E$14","v":0},{"$f":"BA29*'I-TAG Values'!$E$14","v":0},{"$f":"BB29*'I-TAG Values'!$E$14","v":0},{"$f":"BC29*'I-TAG Values'!$E$14","v":0},{"$f":"BD29*'I-TAG Values'!$E$14","v":0},{"$f":"BE29*'I-TAG Values'!$E$14","v":0},{"$f":"BF29*'I-TAG Values'!$E$14","v":0},{"$f":"BG29*'I-TAG Values'!$E$14","v":0},{"$f":"BH29*'I-TAG Values'!$E$14","v":0},{"$f":"BI29*'I-TAG Values'!$E$14","v":0},{"$f":"BJ29*'I-TAG Values'!$E$14","v":0},{"$f":"BK29*'I-TAG Values'!$E$14","v":0},{"$f":"BL29*'I-TAG Values'!$E$14","v":0},{"$f":"BM29*'I-TAG Values'!$E$14","v":0},{"$f":"BN29*'I-TAG Values'!$E$14","v":0},{"$f":"BO29*'I-TAG Values'!$E$14","v":0},{"$f":"BP29*'I-TAG Values'!$E$14","v":0},{"$f":"BQ29*'I-TAG Values'!$E$14","v":0},{"$f":"BR29*'I-TAG Values'!$E$14","v":0},{"$f":"BS29*'I-TAG Values'!$E$14","v":0},{"$f":"BT29*'I-TAG Values'!$E$14","v":0},{"$f":"BU29*'I-TAG Values'!$E$14","v":0},{"$f":"BV29*'I-TAG Values'!$E$14","v":0},{"$f":"BW29*'I-TAG Values'!$E$14","v":0},{"$f":"BX29*'I-TAG Values'!$E$14","v":0},{"$f":"BY29*'I-TAG Values'!$E$14","v":0},{"$f":"BZ29*'I-TAG Values'!$E$14","v":0},{"$f":"CA29*'I-TAG Values'!$E$14","v":0},{"$f":"CB29*'I-TAG Values'!$E$14","v":0},{"$f":"CC29*'I-TAG Values'!$E$14","v":0},{"$f":"CD29*'I-TAG Values'!$E$14","v":0},{"$f":"CE29*'I-TAG Values'!$E$14","v":0}]
[{"$f":"--NOT(H34=H30*'I-TAG Values'!$E$14)","v":0},null,null,"Capital Costs (inclusive of risk or optimism bias)","Local Authority",null,null,{"$f":"SUM(N34:CE34)","v":72386.932932659081},null,"£, 2023 Present Values, Market Prices",null,null,null,{"$f":"N30*'I-TAG Values'!$E$14","v":0},{"$f":"O30*'I-TAG Values'!$E$14","v":0},{"$f":"P30*'I-TAG Values'!$E$14","v":72386.932932659081},{"$f":"Q30*'I-TAG Values'!$E$14","v":0},{"$f":"R30*'I-TAG Values'!$E$14","v":0},{"$f":"S30*'I-TAG Values'!$E$14","v":0},{"$f":"T30*'I-TAG Values'!$E$14","v":0},{"$f":"U30*'I-TAG Values'!$E$14","v":0},{"$f":"V30*'I-TAG Values'!$E$14","v":0},{"$f":"W30*'I-TAG Values'!$E$14","v":0},{"$f":"X30*'I-TAG Values'!$E$14","v":0},{"$f":"Y30*'I-TAG Values'!$E$14","v":0},{"$f":"Z30*'I-TAG Values'!$E$14","v":0},{"$f":"AA30*'I-TAG Values'!$E$14","v":0},{"$f":"AB30*'I-TAG Values'!$E$14","v":0},{"$f":"AC30*'I-TAG Values'!$E$14","v":0},{"$f":"AD30*'I-TAG Values'!$E$14","v":0},{"$f":"AE30*'I-TAG Values'!$E$14","v":0},{"$f":"AF30*'I-TAG Values'!$E$14","v":0},{"$f":"AG30*'I-TAG Values'!$E$14","v":0},{"$f":"AH30*'I-TAG Values'!$E$14","v":0},{"$f":"AI30*'I-TAG Values'!$E$14","v":0},{"$f":"AJ30*'I-TAG Values'!$E$14","v":0},{"$f":"AK30*'I-TAG Values'!$E$14","v":0},{"$f":"AL30*'I-TAG Values'!$E$14","v":0},{"$f":"AM30*'I-TAG Values'!$E$14","v":0},{"$f":"AN30*'I-TAG Values'!$E$14","v":0},{"$f":"AO30*'I-TAG Values'!$E$14","v":0},{"$f":"AP30*'I-TAG Values'!$E$14","v":0},{"$f":"AQ30*'I-TAG Values'!$E$14","v":0},{"$f":"AR30*'I-TAG Values'!$E$14","v":0},{"$f":"AS30*'I-TAG Values'!$E$14","v":0},{"$f":"AT30*'I-TAG Values'!$E$14","v":0},{"$f":"AU30*'I-TAG Values'!$E$14","v":0},{"$f":"AV30*'I-TAG Values'!$E$14","v":0},{"$f":"AW30*'I-TAG Values'!$E$14","v":0},{"$f":"AX30*'I-TAG Values'!$E$14","v":0},{"$f":"AY30*'I-TAG Values'!$E$14","v":0},{"$f":"AZ30*'I-TAG Values'!$E$14","v":0},{"$f":"BA30*'I-TAG Values'!$E$14","v":0},{"$f":"BB30*'I-TAG Values'!$E$14","v":0},{"$f":"BC30*'I-TAG Values'!$E$14","v":0},{"$f":"BD30*'I-TAG Values'!$E$14","v":0},{"$f":"BE30*'I-TAG Values'!$E$14","v":0},{"$f":"BF30*'I-TAG Values'!$E$14","v":0},{"$f":"BG30*'I-TAG Values'!$E$14","v":0},{"$f":"BH30*'I-TAG Values'!$E$14","v":0},{"$f":"BI30*'I-TAG Values'!$E$14","v":0},{"$f":"BJ30*'I-TAG Values'!$E$14","v":0},{"$f":"BK30*'I-TAG Values'!$E$14","v":0},{"$f":"BL30*'I-TAG Values'!$E$14","v":0},{"$f":"BM30*'I-TAG Values'!$E$14","v":0},{"$f":"BN30*'I-TAG Values'!$E$14","v":0},{"$f":"BO30*'I-TAG Values'!$E$14","v":0},{"$f":"BP30*'I-TAG Values'!$E$14","v":0},{"$f":"BQ30*'I-TAG Values'!$E$14","v":0},{"$f":"BR30*'I-TAG Values'!$E$14","v":0},{"$f":"BS30*'I-TAG Values'!$E$14","v":0},{"$f":"BT30*'I-TAG Values'!$E$14","v":0},{"$f":"BU30*'I-TAG Values'!$E$14","v":0},{"$f":"BV30*'I-TAG Values'!$E$14","v":0},{"$f":"BW30*'I-TAG Values'!$E$14","v":0},{"$f":"BX30*'I-TAG Values'!$E$14","v":0},{"$f":"BY30*'I-TAG Values'!$E$14","v":0},{"$f":"BZ30*'I-TAG Values'!$E$14","v":0},{"$f":"CA30*'I-TAG Values'!$E$14","v":0},{"$f":"CB30*'I-TAG Values'!$E$14","v":0},{"$f":"CC30*'I-TAG Values'!$E$14","v":0},{"$f":"CD30*'I-TAG Values'!$E$14","v":0},{"$f":"CE30*'I-TAG Values'!$E$14","v":0}]
[{"$f":"--NOT(H35=H31*'I-TAG Values'!$E$14)","v":0},null,null,"Capital Costs (inclusive of risk or optimism bias)","Private",null,null,0,null,"£, 2023 Present Values, Market Prices",null,null,null,{"$f":"N31*'I-TAG Values'!$E$14","v":0},{"$f":"O31*'I-TAG Values'!$E$14","v":0},{"$f":"P31*'I-TAG Values'!$E$14","v":0},{"$f":"Q31*'I-TAG Values'!$E$14","v":0},{"$f":"R31*'I-TAG Values'!$E$14","v":0},{"$f":"S31*'I-TAG Values'!$E$14","v":0},{"$f":"T31*'I-TAG Values'!$E$14","v":0},{"$f":"U31*'I-TAG Values'!$E$14","v":0},{"$f":"V31*'I-TAG Values'!$E$14","v":0},{"$f":"W31*'I-TAG Values'!$E$14","v":0},{"$f":"X31*'I-TAG Values'!$E$14","v":0},{"$f":"Y31*'I-TAG Values'!$E$14","v":0},{"$f":"Z31*'I-TAG Values'!$E$14","v":0},{"$f":"AA31*'I-TAG Values'!$E$14","v":0},{"$f":"AB31*'I-TAG Values'!$E$14","v":0},{"$f":"AC31*'I-TAG Values'!$E$14","v":0},{"$f":"AD31*'I-TAG Values'!$E$14","v":0},{"$f":"AE31*'I-TAG Values'!$E$14","v":0},{"$f":"AF31*'I-TAG Values'!$E$14","v":0},{"$f":"AG31*'I-TAG Values'!$E$14","v":0},{"$f":"AH31*'I-TAG Values'!$E$14","v":0},{"$f":"AI31*'I-TAG Values'!$E$14","v":0},{"$f":"AJ31*'I-TAG Values'!$E$14","v":0},{"$f":"AK31*'I-TAG Values'!$E$14","v":0},{"$f":"AL31*'I-TAG Values'!$E$14","v":0},{"$f":"AM31*'I-TAG Values'!$E$14","v":0},{"$f":"AN31*'I-TAG Values'!$E$14","v":0},{"$f":"AO31*'I-TAG Values'!$E$14","v":0},{"$f":"AP31*'I-TAG Values'!$E$14","v":0},{"$f":"AQ31*'I-TAG Values'!$E$14","v":0},{"$f":"AR31*'I-TAG Values'!$E$14","v":0},{"$f":"AS31*'I-TAG Values'!$E$14","v":0},{"$f":"AT31*'I-TAG Values'!$E$14","v":0},{"$f":"AU31*'I-TAG Values'!$E$14","v":0},{"$f":"AV31*'I-TAG Values'!$E$14","v":0},{"$f":"AW31*'I-TAG Values'!$E$14","v":0},{"$f":"AX31*'I-TAG Values'!$E$14","v":0},{"$f":"AY31*'I-TAG Values'!$E$14","v":0},{"$f":"AZ31*'I-TAG Values'!$E$14","v":0},{"$f":"BA31*'I-TAG Values'!$E$14","v":0},{"$f":"BB31*'I-TAG Values'!$E$14","v":0},{"$f":"BC31*'I-TAG Values'!$E$14","v":0},{"$f":"BD31*'I-TAG Values'!$E$14","v":0},{"$f":"BE31*'I-TAG Values'!$E$14","v":0},{"$f":"BF31*'I-TAG Values'!$E$14","v":0},{"$f":"BG31*'I-TAG Values'!$E$14","v":0},{"$f":"BH31*'I-TAG Values'!$E$14","v":0},{"$f":"BI31*'I-TAG Values'!$E$14","v":0},{"$f":"BJ31*'I-TAG Values'!$E$14","v":0},{"$f":"BK31*'I-TAG Values'!$E$14","v":0},{"$f":"BL31*'I-TAG Values'!$E$14","v":0},{"$f":"BM31*'I-TAG Values'!$E$14","v":0},{"$f":"BN31*'I-TAG Values'!$E$14","v":0},{"$f":"BO31*'I-TAG Values'!$E$14","v":0},{"$f":"BP31*'I-TAG Values'!$E$14","v":0},{"$f":"BQ31*'I-TAG Values'!$E$14","v":0},{"$f":"BR31*'I-TAG Values'!$E$14","v":0},{"$f":"BS31*'I-TAG Values'!$E$14","v":0},{"$f":"BT31*'I-TAG Values'!$E$14","v":0},{"$f":"BU31*'I-TAG Values'!$E$14","v":0},{"$f":"BV31*'I-TAG Values'!$E$14","v":0},{"$f":"BW31*'I-TAG Values'!$E$14","v":0},{"$f":"BX31*'I-TAG Values'!$E$14","v":0},{"$f":"BY31*'I-TAG Values'!$E$14","v":0},{"$f":"BZ31*'I-TAG Values'!$E$14","v":0},{"$f":"CA31*'I-TAG Values'!$E$14","v":0},{"$f":"CB31*'I-TAG Values'!$E$14","v":0},{"$f":"CC31*'I-TAG Values'!$E$14","v":0},{"$f":"CD31*'I-TAG Values'!$E$14","v":0},{"$f":"CE31*'I-TAG Values'!$E$14","v":0}]
[]
[null,null,"Operating, Maintenance and Renewal Costs (OMR)"]
[]
[null,null,null,"OMR Costs (exclusive of optimism bias) without scheme",null,null,null,{"$f":"SUM(N39:CE39)","v":3193211},null,"£, nominal prices - with inflation",null,null,null,{"$f":"'I-Costs'!N32","v":0},{"$f":"'I-Costs'!O32","v":0},{"$f":"'I-Costs'!P32","v":30000},{"$f":"'I-Costs'!Q32","v":30000},{"$f":"'I-Costs'!R32","v":30000},{"$f":"'I-Costs'!S32","v":30000},{"$f":"'I-Costs'!T32","v":30000},{"$f":"'I-Costs'!U32","v":30000},{"$f":"'I-Costs'!V32","v":30000},{"$f":"'I-Costs'!W32","v":30000},{"$f":"'I-Costs'!X32","v":30000},{"$f":"'I-Costs'!Y32","v":36570},{"$f":"'I-Costs'!Z32","v":36570},{"$f":"'I-Costs'!AA32","v":36570},{"$f":"'I-Costs'!AB32","v":36570},{"$f":"'I-Costs'!AC32","v":36570},{"$f":"'I-Costs'!AD32","v":36570},{"$f":"'I-Costs'!AE32","v":36570},{"$f":"'I-Costs'!AF32","v":36570},{"$f":"'I-Costs'!AG32","v":36570},{"$f":"'I-Costs'!AH32","v":36570},{"$f":"'I-Costs'!AI32","v":44577},{"$f":"'I-Costs'!AJ32","v":44577},{"$f":"'I-Costs'!AK32","v":44577},{"$f":"'I-Costs'!AL32","v":44577},{"$f":"'I-Costs'!AM32","v":44577},{"$f":"'I-Costs'!AN32","v":44577},{"$f":"'I-Costs'!AO32","v":44577},{"$f":"'I-Costs'!AP32","v":44577},{"$f":"'I-Costs'!AQ32","v":44577},{"$f":"'I-Costs'!AR32","v":44577},{"$f":"'I-Costs'!AS32","v":54342},{"$f":"'I-Costs'!AT32","v":54342},{"$f":"'I-Costs'!AU32","v":54342},{"$f":"'I-Costs'!AV32","v":54342},{"$f":"'I-Costs'!AW32","v":54342},{"$f":"'I-Costs'!AX32","v":54342},{"$f":"'I-Costs'!AY32","v":54342},{"$f":"'I-Costs'!AZ32","v":54342},{"$f":"'I-Costs'!BA32","v":54342},{"$f":"'I-Costs'!BB32","v":54342},{"$f":"'I-Costs'!BC32","v":66241},{"$f":"'I-Costs'!BD32","v":66241},{"$f":"'I-Costs'!BE32","v":66241},{"$f":"'I-Costs'!BF32","v":66241},{"$f":"'I-Costs'!BG32","v":66241},{"$f":"'I-Costs'!BH32","v":66241},{"$f":"'I-Costs'!BI32","v":66241},{"$f":"'I-Costs'!BJ32","v":66241},{"$f":"'I-Costs'!BK32","v":66241},{"$f":"'I-Costs'!BL32","v":66241},{"$f":"'I-Costs'!BM32","v":80748},{"$f":"'I-Costs'!BN32","v":80748},{"$f":"'I-Costs'!BO32","v":80748},{"$f":"'I-Costs'!BP32","v":80748},{"$f":"'I-Costs'!BQ32","v":80748},{"$f":"'I-Costs'!BR32","v":80748},{"$f":"'I-Costs'!BS32","v":80748},{"$f":"'I-Costs'!BT32","v":80748},{"$f":"'I-Costs'!BU32","v":80748},{"$f":"'I-Costs'!BV32","v":80748},{"$f":"'I-Costs'!BW32","v":98431},{"$f":"'I-Costs'!BX32","v":0},{"$f":"'I-Costs'!BY32","v":0},{"$f":"'I-Costs'!BZ32","v":0},{"$f":"'I-Costs'!CA32","v":0},{"$f":"'I-Costs'!CB32","v":0},{"$f":"'I-Costs'!CC32","v":0},{"$f":"'I-Costs'!CD32","v":0},{"$f":"'I-Costs'!CE32","v":0}]
[null,null,null,"OMR Costs (exclusive of optimism bias) with scheme",null,null,null,{"$f":"SUM(N40:CE40)","v":1064400},null,"£, nominal prices - with inflation",null,null,null,{"$f":"'I-Costs'!N33","v":0},{"$f":"'I-Costs'!O33","v":0},{"$f":"'I-Costs'!P33","v":10000},{"$f":"'I-Costs'!Q33","v":10000},{"$f":"'I-Costs'!R33","v":10000},{"$f":"'I-Costs'!S33","v":10000},{"$f":"'I-Costs'!T33","v":10000},{"$f":"'I-Costs'!U33","v":10000},{"$f":"'I-Costs'!V33","v":10000},{"$f":"'I-Costs'!W33","v":10000},{"$f":"'I-Costs'!X33","v":10000},{"$f":"'I-Costs'!Y33","v":12190},{"$f":"'I-Costs'!Z33","v":12190},{"$f":"'I-Costs'!AA33","v":12190},{"$f":"'I-Costs'!AB33","v":12190},{"$f":"'I-Costs'!AC33","v":12190},{"$f":"'I-Costs'!AD33","v":12190},{"$f":"'I-Costs'!AE33","v":12190},{"$f":"'I-Costs'!AF33","v":12190},{"$f":"'I-Costs'!AG33","v":12190},{"$f":"'I-Costs'!AH33","v":12190},{"$f":"'I-Costs'!AI33","v":14859},{"$f":"'I-Costs'!AJ33","v":14859},{"$f":"'I-Costs'!AK33","v":14859},{"$f":"'I-Costs'!AL33","v":14859},{"$f":"'I-Costs'!AM33","v":14859},{"$f":"'I-Costs'!AN33","v":14859},{"$f":"'I-Costs'!AO33","v":14859},{"$f":"'I-Costs'!AP33","v":14859},{"$f":"'I-Costs'!AQ33","v":14859},{"$f":"'I-Costs'!AR33","v":14859},{"$f":"'I-Costs'!AS33","v":18114},{"$f":"'I-Costs'!AT33","v":18114},{"$f":"'I-Costs'!AU33","v":18114},{"$f":"'I-Costs'!AV33","v":18114},{"$f":"'I-Costs'!AW33","v":18114},{"$f":"'I-Costs'!AX33","v":18114},{"$f":"'I-Costs'!AY33","v":18114},{"$f":"'I-Costs'!AZ33","v":18114},{"$f":"'I-Costs'!BA33","v":18114},{"$f":"'I-Costs'!BB33","v":18114},{"$f":"'I-Costs'!BC33","v":22080},{"$f":"'I-Costs'!BD33","v":22080},{"$f":"'I-Costs'!BE33","v":22080},{"$f":"'I-Costs'!BF33","v":22080},{"$f":"'I-Costs'!BG33","v":22080},{"$f":"'I-Costs'!BH33","v":22080},{"$f":"'I-Costs'!BI33","v":22080},{"$f":"'I-Costs'!BJ33","v":22080},{"$f":"'I-Costs'!BK33","v":22080},{"$f":"'I-Costs'!BL33","v":22080},{"$f":"'I-Costs'!BM33","v":26916},{"$f":"'I-Costs'!BN33","v":26916},{"$f":"'I-Costs'!BO33","v":26916},{"$f":"'I-Costs'!BP33","v":26916},{"$f":"'I-Costs'!BQ33","v":26916},{"$f":"'I-Costs'!BR33","v":26916},{"$f":"'I-Costs'!BS33","v":26916},{"$f":"'I-Costs'!BT33","v":26916},{"$f":"'I-Costs'!BU33","v":26916},{"$f":"'I-Costs'!BV33","v":26916},{"$f":"'I-Costs'!BW33","v":32810},{"$f":"'I-Costs'!BX33","v":0},{"$f":"'I-Costs'!BY33","v":0},{"$f":"'I-Costs'!BZ33","v":0},{"$f":"'I-Costs'!CA33","v":0},{"$f":"'I-Costs'!CB33","v":0},{"$f":"'I-Costs'!CC33","v":0},{"$f":"'I-Costs'!CD33","v":0},{"$f":"'I-Costs'!CE33","v":0}]
[]
[{"$f":"--NOT(H42=H39*(1+'I-Costs'!E43))","v":0},null,null,"OMR Costs (inclusive of optimism bias) without scheme",null,null,null,{"$f":"SUM(N42:CE42)","v":5300730.2600000007},null,"£, nominal prices - with inflation",null,null,null,{"$f":"N39*(1+'I-Costs'!$E$43)","v":0},{"$f":"O39*(1+'I-Costs'!$E$43)","v":0},{"$f":"P39*(1+'I-Costs'!$E$43)","v":49800.000000000007},{"$f":"Q39*(1+'I-Costs'!$E$43)","v":49800.000000000007},{"$f":"R39*(1+'I-Costs'!$E$43)","v":49800.000000000007},{"$f":"S39*(1+'I-Costs'!$E$43)","v":49800.000000000007},{"$f":"T39*(1+'I-Costs'!$E$43)","v":49800.000000000007},{"$f":"U39*(1+'I-Costs'!$E$43)","v":49800.000000000007},{"$f":"V39*(1+'I-Costs'!$E$43)","v":49800.000000000007},{"$f":"W39*(1+'I-Costs'!$E$43)","v":49800.000000000007},{"$f":"X39*(1+'I-Costs'!$E$43)","v":49800.000000000007},{"$f":"Y39*(1+'I-Costs'!$E$43)","v":60706.200000000004},{"$f":"Z39*(1+'I-Costs'!$E$43)","v":60706.200000000004},{"$f":"AA39*(1+'I-Costs'!$E$43)","v":60706.200000000004},{"$f":"AB39*(1+'I-Costs'!$E$43)","v":60706.200000000004},{"$f":"AC39*(1+'I-Costs'!$E$43)","v":60706.200000000004},{"$f":"AD39*(1+'I-Costs'!$E$43)","v":60706.200000000004},{"$f":"AE39*(1+'I-Costs'!$E$43)","v":60706.200000000004},{"$f":"AF39*(1+'I-Costs'!$E$43)","v":60706.200000000004},{"$f":"AG39*(1+'I-Costs'!$E$43)","v":60706.200000000004},{"$f":"AH39*(1+'I-Costs'!$E$43)","v":60706.200000000004},{"$f":"AI39*(1+'I-Costs'!$E$43)","v":73997.820000000007},{"$f":"AJ39*(1+'I-Costs'!$E$43)","v":73997.820000000007},{"$f":"AK39*(1+'I-Costs'!$E$43)","v":73997.820000000007},{"$f":"AL39*(1+'I-Costs'!$E$43)","v":73997.820000000007},{"$f":"AM39*(1+'I-Costs'!$E$43)","v":73997.820000000007},{"$f":"AN39*(1+'I-Costs'!$E$43)","v":73997.820000000007},{"$f":"AO39*(1+'I-Costs'!$E$43)","v":73997.820000000007},{"$f":"AP39*(1+'I-Costs'!$E$43)","v":73997.820000000007},{"$f":"AQ39*(1+'I-Costs'!$E$43)","v":73997.820000000007},{"$f":"AR39*(1+'I-Costs'!$E$43)","v":73997.820000000007},{"$f":"AS39*(1+'I-Costs'!$E$43)","v":90207.72},{"$f":"AT39*(1+'I-Costs'!$E$43)","v":90207.72},{"$f":"AU39*(1+'I-Costs'!$E$43)","v":90207.72},{"$f":"AV39*(1+'I-Costs'!$E$43)","v":90207.72},{"$f":"AW39*(1+'I-Costs'!$E$43)","v":90207.72},{"$f":"AX39*(1+'I-Costs'!$E$43)","v":90207.72},{"$f":"AY39*(1+'I-Costs'!$E$43)","v":90207.72},{"$f":"AZ39*(1+'I-Costs'!$E$43)","v":90207.72},{"$f":"BA39*(1+'I-Costs'!$E$43)","v":90207.72},{"$f":"BB39*(1+'I-Costs'!$E$43)","v":90207.72},{"$f":"BC39*(1+'I-Costs'!$E$43)","v":109960.06000000001},{"$f":"BD39*(1+'I-Costs'!$E$43)","v":109960.06000000001},{"$f":"BE39*(1+'I-Costs'!$E$43)","v":109960.06000000001},{"$f":"BF39*(1+'I-Costs'!$E$43)","v":109960.06000000001},{"$f":"BG39*(1+'I-Costs'!$E$43)","v":109960.06000000001},{"$f":"BH39*(1+'I-Costs'!$E$43)","v":109960.06000000001},{"$f":"BI39*(1+'I-Costs'!$E$43)","v":109960.06000000001},{"$f":"BJ39*(1+'I-Costs'!$E$43)","v":109960.06000000001},{"$f":"BK39*(1+'I-Costs'!$E$43)","v":109960.06000000001},{"$f":"BL39*(1+'I-Costs'!$E$43)","v":109960.06000000001},{"$f":"BM39*(1+'I-Costs'!$E$43)","v":134041.68000000002},{"$f":"BN39*(1+'I-Costs'!$E$43)","v":134041.68000000002},{"$f":"BO39*(1+'I-Costs'!$E$43)","v":134041.68000000002},{"$f":"BP39*(1+'I-Costs'!$E$43)","v":134041.68000000002},{"$f":"BQ39*(1+'I-Costs'!$E$43)","v":134041.68000000002},{"$f":"BR39*(1+'I-Costs'!$E$43)","v":134041.68000000002},{"$f":"BS39*(1+'I-Costs'!$E$43)","v":134041.68000000002},{"$f":"BT39*(1+'I-Costs'!$E$43)","v":134041.68000000002},{"$f":"BU39*(1+'I-Costs'!$E$43)","v":134041.68000000002},{"$f":"BV39*(1+'I-Costs'!$E$43)","v":134041.68000000002},{"$f":"BW39*(1+'I-Costs'!$E$43)","v":163395.46000000002},{"$f":"BX39*(1+'I-Costs'!$E$43)","v":0},{"$f":"BY39*(1+'I-Costs'!$E$43)","v":0},{"$f":"BZ39*(1+'I-Costs'!$E$43)","v":0},{"$f":"CA39*(1+'I-Costs'!$E$43)","v":0},{"$f":"CB39*(1+'I-Costs'!$E$43)","v":0},{"$f":"CC39*(1+'I-Costs'!$E$43)","v":0},{"$f":"CD39*(1+'I-Costs'!$E$43)","v":0},{"$f":"CE39*(1+'I-Costs'!$E$43)","v":0}]
[{"$f":"--NOT(H43=H40*(1+'I-Costs'!E44))","v":0},null,null,"OMR Costs (inclusive of optimism bias) with scheme",null,null,null,{"$f":"SUM(N43:CE43)","v":1766904.0000000009},null,"£, nominal prices - with inflation",null,null,null,{"$f":"N40*(1+'I-Costs'!$E$44)","v":0},{"$f":"O40*(1+'I-Costs'!$E$44)","v":0},{"$f":"P40*(1+'I-Costs'!$E$44)","v":16600},{"$f":"Q40*(1+'I-Costs'!$E$44)","v":16600},{"$f":"R40*(1+'I-Costs'!$E$44)","v":16600},{"$f":"S40*(1+'I-Costs'!$E$44)","v":16600},{"$f":"T40*(1+'I-Costs'!$E$44)","v":16600},{"$f":"U40*(1+'I-Costs'!$E$44)","v":16600},{"$f":"V40*(1+'I-Costs'!$E$44)","v":16600},{"$f":"W40*(1+'I-Costs'!$E$44)","v":16600},{"$f":"X40*(1+'I-Costs'!$E$44)","v":16600},{"$f":"Y40*(1+'I-Costs'!$E$44)","v":20235.400000000001},{"$f":"Z40*(1+'I-Costs'!$E$44)","v":20235.400000000001},{"$f":"AA40*(1+'I-Costs'!$E$44)","v":20235.400000000001},{"$f":"AB40*(1+'I-Costs'!$E$44)","v":20235.400000000001},{"$f":"AC40*(1+'I-Costs'!$E$44)","v":20235.400000000001},{"$f":"AD40*(1+'I-Costs'!$E$44)","v":20235.400000000001},{"$f":"AE40*(1+'I-Costs'!$E$44)","v":20235.400000000001},{"$f":"AF40*(1+'I-Costs'!$E$44)","v":20235.400000000001},{"$f":"AG40*(1+'I-Costs'!$E$44)","v":20235.400000000001},{"$f":"AH40*(1+'I-Costs'!$E$44)","v":20235.400000000001},{"$f":"AI40*(1+'I-Costs'!$E$44)","v":24665.940000000002},{"$f":"AJ40*(1+'I-Costs'!$E$44)","v":24665.940000000002},{"$f":"AK40*(1+'I-Costs'!$E$44)","v":24665.940000000002},{"$f":"AL40*(1+'I-Costs'!$E$44)","v":24665.940000000002},{"$f":"AM40*(1+'I-Costs'!$E$44)","v":24665.940000000002},{"$f":"AN40*(1+'I-Costs'!$E$44)","v":24665.940000000002},{"$f":"AO40*(1+'I-Costs'!$E$44)","v":24665.940000000002},{"$f":"AP40*(1+'I-Costs'!$E$44)","v":24665.940000000002},{"$f":"AQ40*(1+'I-Costs'!$E$44)","v":24665.940000000002},{"$f":"AR40*(1+'I-Costs'!$E$44)","v":24665.940000000002},{"$f":"AS40*(1+'I-Costs'!$E$44)","v":30069.24},{"$f":"AT40*(1+'I-Costs'!$E$44)","v":30069.24},{"$f":"AU40*(1+'I-Costs'!$E$44)","v":30069.24},{"$f":"AV40*(1+'I-Costs'!$E$44)","v":30069.24},{"$f":"AW40*(1+'I-Costs'!$E$44)","v":30069.24},{"$f":"AX40*(1+'I-Costs'!$E$44)","v":30069.24},{"$f":"AY40*(1+'I-Costs'!$E$44)","v":30069.24},{"$f":"AZ40*(1+'I-Costs'!$E$44)","v":30069.24},{"$f":"BA40*(1+'I-Costs'!$E$44)","v":30069.24},{"$f":"BB40*(1+'I-Costs'!$E$44)","v":30069.24},{"$f":"BC40*(1+'I-Costs'!$E$44)","v":36652.800000000003},{"$f":"BD40*(1+'I-Costs'!$E$44)","v":36652.800000000003},{"$f":"BE40*(1+'I-Costs'!$E$44)","v":36652.800000000003},{"$f":"BF40*(1+'I-Costs'!$E$44)","v":36652.800000000003},{"$f":"BG40*(1+'I-Costs'!$E$44)","v":36652.800000000003},{"$f":"BH40*(1+'I-Costs'!$E$44)","v":36652.800000000003},{"$f":"BI40*(1+'I-Costs'!$E$44)","v":36652.800000000003},{"$f":"BJ40*(1+'I-Costs'!$E$44)","v":36652.800000000003},{"$f":"BK40*(1+'I-Costs'!$E$44)","v":36652.800000000003},{"$f":"BL40*(1+'I-Costs'!$E$44)","v":36652.800000000003},{"$f":"BM40*(1+'I-Costs'!$E$44)","v":44680.560000000005},{"$f":"BN40*(1+'I-Costs'!$E$44)","v":44680.560000000005},{"$f":"BO40*(1+'I-Costs'!$E$44)","v":44680.560000000005},{"$f":"BP40*(1+'I-Costs'!$E$44)","v":44680.560000000005},{"$f":"BQ40*(1+'I-Costs'!$E$44)","v":44680.560000000005},{"$f":"BR40*(1+'I-Costs'!$E$44)","v":44680.560000000005},{"$f":"BS40*(1+'I-Costs'!$E$44)","v":44680.560000000005},{"$f":"BT40*(1+'I-Costs'!$E$44)","v":44680.560000000005},{"$f":"BU40*(1+'I-Costs'!$E$44)","v":44680.560000000005},{"$f":"BV40*(1+'I-Costs'!$E$44)","v":44680.560000000005},{"$f":"BW40*(1+'I-Costs'!$E$44)","v":54464.600000000006},{"$f":"BX40*(1+'I-Costs'!$E$44)","v":0},{"$f":"BY40*(1+'I-Costs'!$E$44)","v":0},{"$f":"BZ40*(1+'I-Costs'!$E$44)","v":0},{"$f":"CA40*(1+'I-Costs'!$E$44)","v":0},{"$f":"CB40*(1+'I-Costs'!$E$44)","v":0},{"$f":"CC40*(1+'I-Costs'!$E$44)","v":0},{"$f":"CD40*(1+'I-Costs'!$E$44)","v":0},{"$f":"CE40*(1+'I-Costs'!$E$44)","v":0}]
[]
[null,null,null,null,null,null,null,null,null,null,"A negative value shows a cost saving in the with scheme scenario"]
[null,null,null,"Change in OMR Costs (inclusive of optimism bias)",null,null,null,{"$f":"SUM(N46:CE46)","v":-3533826.2599999993},null,"£, nominal prices - with inflation",null,null,null,{"$f":"(N43-N42)*N12","v":0},0,-33200.000000000007,-33200.000000000007,-33200.000000000007,-33200.000000000007,-33200.000000000007,-33200.000000000007,-33200.000000000007,-33200.000000000007,-33200.000000000007,-40470.800000000003,-40470.800000000003,-40470.800000000003,-40470.800000000003,-40470.800000000003,-40470.800000000003,-40470.800000000003,-40470.800000000003,-40470.800000000003,-40470.800000000003,-49331.880000000005,-49331.880000000005,-49331.880000000005,-49331.880000000005,-49331.880000000005,-49331.880000000005,-49331.880000000005,-49331.880000000005,{"$f":"(AQ43-AQ42)*AQ12","v":-49331.880000000005},-49331.880000000005,-60138.479999999996,-60138.479999999996,-60138.479999999996,-60138.479999999996,-60138.479999999996,-60138.479999999996,-60138.479999999996,-60138.479999999996,-60138.479999999996,-60138.479999999996,-73307.260000000009,-73307.260000000009,-73307.260000000009,-73307.260000000009,-73307.260000000009,-73307.260000000009,-73307.260000000009,-73307.260000000009,-73307.260000000009,-73307.260000000009,-89361.120000000024,-89361.120000000024,-89361.120000000024,-89361.120000000024,-89361.120000000024,-89361.120000000024,-89361.120000000024,-89361.120000000024,-89361.120000000024,-89361.120000000024,-108930.86000000002,0,0,0,{"$f":"(CA43-CA42)*CA12","v":0},0,0,0,0]
[]
[{"$f":"--NOT(H48=SUMPRODUCT(K46:CE46,'C-Values and Rates'!$K$23:$CE$23))","v":0},null,null,"Change in OMR Costs (inclusive of optimism bias)",null,null,null,{"$f":"SUM(N48:CE48)","v":-1511337.8874033771},null,"£, 2023 prices",null,null,null,{"$f":"N46*'C-Values and Rates'!N23","v":0},{"$f":"O46*'C-Values and Rates'!O23","v":0},{"$f":"P46*'C-Values and Rates'!P23","v":-29076.13248052058},{"$f":"Q46*'C-Values and Rates'!Q23","v":-28554.473267555859},{"$f":"R46*'C-Values and Rates'!R23","v":-28013.618779692777},{"$f":"S46*'C-Values and Rates'!S23","v":-27421.219333051617},{"$f":"T46*'C-Values and Rates'!T23","v":-26804.710980500116},{"$f":"U46*'C-Values and Rates'!U23","v":-26202.063519550458},{"$f":"V46*'C-Values and Rates'!V23","v":-25612.965317253627},{"$f":"W46*'C-Values and Rates'!W23","v":-25037.111747071001},{"$f":"X46*'C-Values and Rates'!X23","v":-24474.205031349949},{"$f":"Y46*'C-Values and Rates'!Y23","v":-29163.300032468807},{"$f":"Z46*'C-Values and Rates'!Z23","v":-28507.624665169893},{"$f":"AA46*'C-Values and Rates'!AA23","v":-27866.690777292184},{"$f":"AB46*'C-Values and Rates'!AB23","v":-27240.166937724523},{"$f":"AC46*'C-Values and Rates'!AC23","v":-26627.729166886147},{"$f":"AD46*'C-Values and Rates'!AD23","v":-26029.060769194672},{"$f":"AE46*'C-Values and Rates'!AE23","v":-25443.852169300753},{"$f":"AF46*'C-Values and Rates'!AF23","v":-24871.800752004656},{"$f":"AG46*'C-Values and Rates'!AG23","v":-24312.610705771905},{"$f":"AH46*'C-Values and Rates'!AH23","v":-23765.992869767255},{"$f":"AI46*'C-Values and Rates'!AI23","v":-28318.23659216781},{"$f":"AJ46*'C-Values and Rates'!AJ23","v":-27681.560696156223},{"$f":"AK46*'C-Values and Rates'!AK23","v":-27059.199116477244},{"$f":"AL46*'C-Values and Rates'!AL23","v":-26450.830025881965},{"$f":"AM46*'C-Values and Rates'!AM23","v":-25856.138832729197},{"$f":"AN46*'C-Values and Rates'!AN23","v":-25274.818018308109},{"$f":"AO46*'C-Values and Rates'!AO23","v":-24706.566977818293},{"$f":"AP46*'C-Values and Rates'!AP23","v":-24151.091864925023},{"$f":"AQ46*'C-Values and Rates'!AQ23","v":-23608.105439809402},{"$f":"AR46*'C-Values and Rates'!AR23","v":-23077.326920634805},{"$f":"AS46*'C-Values and Rates'!AS23","v":-27500.123832015655},{"$f":"AT46*'C-Values and Rates'!AT23","v":-26881.841478021171},{"$f":"AU46*'C-Values and Rates'!AU23","v":-26277.459900313959},{"$f":"AV46*'C-Values and Rates'!AV23","v":-25686.666569221856},{"$f":"AW46*'C-Values and Rates'!AW23","v":-25109.155981644046},{"$f":"AX46*'C-Values and Rates'!AX23","v":-24544.62950307336},{"$f":"AY46*'C-Values and Rates'!AY23","v":-23992.795213170441},{"$f":"AZ46*'C-Values and Rates'!AZ23","v":-23453.367754809817},{"$f":"BA46*'C-Values and Rates'!BA23","v":-22926.06818651986},{"$f":"BB46*'C-Values and Rates'!BB23","v":-22410.623838240335},{"$f":"BC46*'C-Values and Rates'!BC23","v":-26703.786827029653},{"$f":"BD46*'C-Values and Rates'!BD23","v":-26103.408433069071},{"$f":"BE46*'C-Values and Rates'!BE23","v":-25516.528282569969},{"$f":"BF46*'C-Values and Rates'!BF23","v":-24942.842895962822},{"$f":"BG46*'C-Values and Rates'!BG23","v":-24382.055616776954},{"$f":"BH46*'C-Values and Rates'!BH23","v":-23833.876458237493},{"$f":"BI46*'C-Values and Rates'!BI23","v":-23298.021953311338},{"$f":"BJ46*'C-Values and Rates'!BJ23","v":-22774.215008124473},{"$f":"BK46*'C-Values and Rates'!BK23","v":-22262.184758674954},{"$f":"BL46*'C-Values and Rates'!BL23","v":-21761.666430767309},{"$f":"BM46*'C-Values and Rates'!BM23","v":-25930.932305995553},{"$f":"BN46*'C-Values and Rates'!BN23","v":-25347.929917884216},{"$f":"BO46*'C-Values and Rates'!BO23","v":-24778.035110346256},{"$f":"BP46*'C-Values and Rates'!BP23","v":-24220.953187044241},{"$f":"BQ46*'C-Values and Rates'!BQ23","v":-23676.396077267098},{"$f":"BR46*'C-Values and Rates'!BR23","v":-23144.082186966865},{"$f":"BS46*'C-Values and Rates'!BS23","v":-22623.73625314454},{"$f":"BT46*'C-Values and Rates'!BT23","v":-22115.089201509814},{"$f":"BU46*'C-Values and Rates'!BU23","v":-21617.878007340976},{"$f":"BV46*'C-Values and Rates'!BV23","v":-21131.845559473095},{"$f":"BW46*'C-Values and Rates'!BW23","v":-25180.48688781491},{"$f":"BX46*'C-Values and Rates'!BX23","v":0},{"$f":"BY46*'C-Values and Rates'!BY23","v":0},{"$f":"BZ46*'C-Values and Rates'!BZ23","v":0},{"$f":"CA46*'C-Values and Rates'!CA23","v":0},{"$f":"CB46*'C-Values and Rates'!CB23","v":0},{"$f":"CC46*'C-Values and Rates'!CC23","v":0},{"$f":"CD46*'C-Values and Rates'!CD23","v":0},{"$f":"CE46*'C-Values and Rates'!CE23","v":0}]
[]
[{"$f":"--NOT(H50=SUMPRODUCT(K48:CE48,'C-Values and Rates'!$K$33:$CE$33))","v":0},null,null,"Change in OMR Costs (inclusive of optimism bias)",null,null,null,{"$f":"SUM(N50:CE50)","v":-557840.74133688642},null,"£, 2023 Present Values",null,null,null,{"$f":"N48*'C-Values and Rates'!N33","v":0},{"$f":"O48*'C-Values and Rates'!O33","v":0},{"$f":"P48*'C-Values and Rates'!P33","v":-24331.742162238352},{"$f":"Q48*'C-Values and Rates'!Q33","v":-23058.870664264094},{"$f":"R48*'C-Values and Rates'!R33","v":-21830.335373667676},{"$f":"S48*'C-Values and Rates'!S33","v":-20620.788568391887},{"$f":"T48*'C-Values and Rates'!T33","v":-19451.672500975728},{"$f":"U48*'C-Values and Rates'!U33","v":-18348.840628975151},{"$f":"V48*'C-Values and Rates'!V33","v":-17308.534904165223},{"$f":"W48*'C-Values and Rates'!W33","v":-16327.210344593788},{"$f":"X48*'C-Values and Rates'!X33","v":-15401.522954577717},{"$f":"Y48*'C-Values and Rates'!Y33","v":-17710.020043766548},{"$f":"Z48*'C-Values and Rates'!Z33","v":-16705.932885859933},{"$f":"AA48*'C-Values and Rates'!AA33","v":-15758.773445605906},{"$f":"AB48*'C-Values and Rates'!AB33","v":-14865.3141495696},{"$f":"AC48*'C-Values and Rates'!AC33","v":-14022.510414794395},{"$f":"AD48*'C-Values and Rates'!AD33","v":-13227.490273975161},{"$f":"AE48*'C-Values and Rates'!AE33","v":-12477.544588842649},{"$f":"AF48*'C-Values and Rates'!AF33","v":-11770.117818409735},{"$f":"AG48*'C-Values and Rates'!AG33","v":-11102.799310621111},{"$f":"AH48*'C-Values and Rates'!AH33","v":-10473.315087731544},{"$f":"AI48*'C-Values and Rates'!AI33","v":-12042.640617519923},{"$f":"AJ48*'C-Values and Rates'!AJ33","v":-11359.871159244112},{"$f":"AK48*'C-Values and Rates'!AK33","v":-10715.811992835355},{"$f":"AL48*'C-Values and Rates'!AL33","v":-10108.268399888681},{"$f":"AM48*'C-Values and Rates'!AM33","v":-9535.170093736635},{"$f":"AN48*'C-Values and Rates'!AN33","v":-8994.5641646684762},{"$f":"AO48*'C-Values and Rates'!AO33","v":-8484.6084251271568},{"$f":"AP48*'C-Values and Rates'!AP33","v":-8003.565132206948},{"$f":"AQ48*'C-Values and Rates'!AQ33","v":-7549.7950660603155},{"$f":"AR48*'C-Values and Rates'!AR33","v":-7121.7519440353917},{"$f":"AS48*'C-Values and Rates'!AS33","v":-8232.0447772982188},{"$f":"AT48*'C-Values and Rates'!AT33","v":-7805.5556539386844},{"$f":"AU48*'C-Values and Rates'!AU33","v":-7401.1622525127341},{"$f":"AV48*'C-Values and Rates'!AV33","v":-7017.7198288732652},{"$f":"AW48*'C-Values and Rates'!AW33","v":-6654.1429462434689},{"$f":"AX48*'C-Values and Rates'!AX33","v":-6309.4024025964463},{"$f":"AY48*'C-Values and Rates'!AY33","v":-5982.5223172224369},{"$f":"AZ48*'C-Values and Rates'!AZ33","v":-5672.5773682363288},{"$f":"BA48*'C-Values and Rates'!BA33","v":-5378.6901732055121},{"$f":"BB48*'C-Values and Rates'!BB33","v":-5100.0288054832326},{"$f":"BC48*'C-Values and Rates'!BC33","v":-5894.7212057041788},{"$f":"BD48*'C-Values and Rates'!BD33","v":-5589.3250924076774},{"$f":"BE48*'C-Values and Rates'!BE33","v":-5299.7510651372904},{"$f":"BF48*'C-Values and Rates'!BF33","v":-5025.1794068261697},{"$f":"BG48*'C-Values and Rates'!BG33","v":-4764.8328686426057},{"$f":"BH48*'C-Values and Rates'!BH33","v":-4517.9744697784236},{"$f":"BI48*'C-Values and Rates'!BI33","v":-4283.9054112268541},{"$f":"BJ48*'C-Values and Rates'!BJ33","v":-4061.9630976442309},{"$f":"BK48*'C-Values and Rates'!BK33","v":-3851.5192616958989},{"$f":"BL48*'C-Values and Rates'!BL33","v":-3651.9781855767574},{"$f":"BM48*'C-Values and Rates'!BM33","v":-4221.1024340441363},{"$f":"BN48*'C-Values and Rates'!BN33","v":-4002.4138426420445},{"$f":"BO48*'C-Values and Rates'!BO33","v":-3795.0551587123987},{"$f":"BP48*'C-Values and Rates'!BP33","v":-3598.4393978015905},{"$f":"BQ48*'C-Values and Rates'!BQ33","v":-3412.0099861852814},{"$f":"BR48*'C-Values and Rates'!BR33","v":-3235.2391853369732},{"$f":"BS48*'C-Values and Rates'!BS33","v":-3067.6265980223493},{"$f":"BT48*'C-Values and Rates'!BT33","v":-2908.6977517904975},{"$f":"BU48*'C-Values and Rates'!BU33","v":-2758.0027558521829},{"$f":"BV48*'C-Values and Rates'!BV33","v":-2615.1150275431251},{"$f":"BW48*'C-Values and Rates'!BW33","v":-3022.6594923559869},{"$f":"BX48*'C-Values and Rates'!BX33","v":0},{"$f":"BY48*'C-Values and Rates'!BY33","v":0},{"$f":"BZ48*'C-Values and Rates'!BZ33","v":0},{"$f":"CA48*'C-Values and Rates'!CA33","v":0},{"$f":"CB48*'C-Values and Rates'!CB33","v":0},{"$f":"CC48*'C-Values and Rates'!CC33","v":0},{"$f":"CD48*'C-Values and Rates'!CD33","v":0},{"$f":"CE48*'C-Values and Rates'!CE33","v":0}]
[]
[{"$f":"--NOT(H52=H50*'I-TAG Values'!$E$14)","v":0},null,null,"Change in OMR Costs (inclusive of optimism bias)",{"$f":"'I-Costs'!E30","v":"Public"},null,null,{"$f":"SUM(N52:CE52)","v":-663830.48219089466},null,"£, 2023 Present Values, Market Prices",null,null,null,{"$f":"N50*'I-TAG Values'!$E$14","v":0},{"$f":"O50*'I-TAG Values'!$E$14","v":0},{"$f":"P50*'I-TAG Values'!$E$14","v":-28954.773173063637},{"$f":"Q50*'I-TAG Values'!$E$14","v":-27440.056090474271},{"$f":"R50*'I-TAG Values'!$E$14","v":-25978.099094664532},{"$f":"S50*'I-TAG Values'!$E$14","v":-24538.738396386343},{"$f":"T50*'I-TAG Values'!$E$14","v":-23147.490276161116},{"$f":"U50*'I-TAG Values'!$E$14","v":-21835.120348480428},{"$f":"V50*'I-TAG Values'!$E$14","v":-20597.156535956616},{"$f":"W50*'I-TAG Values'!$E$14","v":-19429.380310066608},{"$f":"X50*'I-TAG Values'!$E$14","v":-18327.812315947482},{"$f":"Y50*'I-TAG Values'!$E$14","v":-21074.923852082193},{"$f":"Z50*'I-TAG Values'!$E$14","v":-19880.06013417332},{"$f":"AA50*'I-TAG Values'!$E$14","v":-18752.940400271029},{"$f":"AB50*'I-TAG Values'!$E$14","v":-17689.723837987822},{"$f":"AC50*'I-TAG Values'!$E$14","v":-16686.787393605329},{"$f":"AD50*'I-TAG Values'!$E$14","v":-15740.713426030441},{"$f":"AE50*'I-TAG Values'!$E$14","v":-14848.278060722752},{"$f":"AF50*'I-TAG Values'!$E$14","v":-14006.440203907585},{"$f":"AG50*'I-TAG Values'!$E$14","v":-13212.331179639121},{"$f":"AH50*'I-TAG Values'!$E$14","v":-12463.244954400536},{"$f":"AI50*'I-TAG Values'!$E$14","v":-14330.742334848708},{"$f":"AJ50*'I-TAG Values'!$E$14","v":-13518.246679500493},{"$f":"AK50*'I-TAG Values'!$E$14","v":-12751.816271474072},{"$f":"AL50*'I-TAG Values'!$E$14","v":-12028.83939586753},{"$f":"AM50*'I-TAG Values'!$E$14","v":-11346.852411546595},{"$f":"AN50*'I-TAG Values'!$E$14","v":-10703.531355955487},{"$f":"AO50*'I-TAG Values'!$E$14","v":-10096.684025901317},{"$f":"AP50*'I-TAG Values'!$E$14","v":-9524.2425073262675},{"$f":"AQ50*'I-TAG Values'!$E$14","v":-8984.2561286117743},{"$f":"AR50*'I-TAG Values'!$E$14","v":-8474.8848134021155},{"$f":"AS50*'I-TAG Values'!$E$14","v":-9796.1332849848804},{"$f":"AT50*'I-TAG Values'!$E$14","v":-9288.6112281870337},{"$f":"AU50*'I-TAG Values'!$E$14","v":-8807.3830804901536},{"$f":"AV50*'I-TAG Values'!$E$14","v":-8351.0865963591859},{"$f":"AW50*'I-TAG Values'!$E$14","v":-7918.4301060297275},{"$f":"AX50*'I-TAG Values'!$E$14","v":-7508.1888590897706},{"$f":"AY50*'I-TAG Values'!$E$14","v":-7119.2015574947},{"$f":"AZ50*'I-TAG Values'!$E$14","v":-6750.3670682012307},{"$f":"BA50*'I-TAG Values'!$E$14","v":-6400.6413061145595},{"$f":"BB50*'I-TAG Values'!$E$14","v":-6069.0342785250468},{"$f":"BC50*'I-TAG Values'!$E$14","v":-7014.7182347879725},{"$f":"BD50*'I-TAG Values'!$E$14","v":-6651.2968599651358},{"$f":"BE50*'I-TAG Values'!$E$14","v":-6306.7037675133752},{"$f":"BF50*'I-TAG Values'!$E$14","v":-5979.9634941231416},{"$f":"BG50*'I-TAG Values'!$E$14","v":-5670.1511136847002},{"$f":"BH50*'I-TAG Values'!$E$14","v":-5376.3896190363239},{"$f":"BI50*'I-TAG Values'!$E$14","v":-5097.8474393599563},{"$f":"BJ50*'I-TAG Values'!$E$14","v":-4833.7360861966345},{"$f":"BK50*'I-TAG Values'!$E$14","v":-4583.3079214181198},{"$f":"BL50*'I-TAG Values'!$E$14","v":-4345.8540408363415},{"$f":"BM50*'I-TAG Values'!$E$14","v":-5023.1118965125224},{"$f":"BN50*'I-TAG Values'!$E$14","v":-4762.8724727440331},{"$f":"BO50*'I-TAG Values'!$E$14","v":-4516.1156388677546},{"$f":"BP50*'I-TAG Values'!$E$14","v":-4282.1428833838927},{"$f":"BQ50*'I-TAG Values'!$E$14","v":-4060.2918835604846},{"$f":"BR50*'I-TAG Values'!$E$14","v":-3849.934630550998},{"$f":"BS50*'I-TAG Values'!$E$14","v":-3650.4756516465955},{"$f":"BT50*'I-TAG Values'!$E$14","v":-3461.3503246306918},{"$f":"BU50*'I-TAG Values'!$E$14","v":-3282.0232794640974},{"$f":"BV50*'I-TAG Values'!$E$14","v":-3111.9868827763185},{"$f":"BW50*'I-TAG Values'!$E$14","v":-3596.9647959036242},{"$f":"BX50*'I-TAG Values'!$E$14","v":0},{"$f":"BY50*'I-TAG Values'!$E$14","v":0},{"$f":"BZ50*'I-TAG Values'!$E$14","v":0},{"$f":"CA50*'I-TAG Values'!$E$14","v":0},{"$f":"CB50*'I-TAG Values'!$E$14","v":0},{"$f":"CC50*'I-TAG Values'!$E$14","v":0},{"$f":"CD50*'I-TAG Values'!$E$14","v":0},{"$f":"CE50*'I-TAG Values'!$E$14","v":0}]
[]
[null,"END"]

{"sheet":"C-Carbon","index":17,"n_rows":24,"n_cols":83,"rows_kept":24,"cut":false,"hidden":true,"merged":[]}
[null,{"$f":"SUM(A:A)","v":0}]
[null,"File Name",null,null,null,null,{"$f":"IFERROR(MID(CELL(\"filename\",G2),FIND(\"[\",CELL(\"filename\",G2))+1,FIND(\"]\",CELL(\"filename\",G2))-FIND(\"[\",CELL(\"filename\",G2))-1),\"Please save the file to show here\")","v":"structures-fund-economic-tool Final 03082026.xlsm"}]
[null,"Sheet Name",null,null,null,null,{"$f":"IFERROR(MID(CELL(\"filename\",G2),FIND(\"]\",CELL(\"filename\",G2))+1,255),\"Please save the file to show here\")","v":"C-Carbon"}]
[null,"Description and Purpose of Sheet",null,null,null,null,"This sheet monetises the infrastructure emissions associated with the scheme."]
[null,"Version number",null,null,null,null,{"$f":"Version_Number","v":1}]
[]
[]
[null,"C-Carbon"]
[]
[null,null,null,null,"Constant",null,null,"Total",null,"Unit",2023,2024,2025,2026,2027,2028,2029,2030,2031,2032,2033,2034,2035,2036,2037,2038,2039,2040,2041,2042,2043,2044,2045,2046,2047,2048,2049,2050,2051,2052,2053,2054,2055,2056,2057,2058,2059,2060,2061,2062,2063,2064,2065,2066,2067,2068,2069,2070,2071,2072,2073,2074,2075,2076,2077,2078,2079,2080,2081,2082,2083,2084,2085,2086,2087,2088,2089,2090,2091,2092,2093,2094,2095]
[]
[null,null,"Embodied Carbon"]
[]
[null,null,null,"Infrastructure carbon (total)",{"$f":"'I-Scheme Details'!E50","v":160},null,null,null,null,"tCO2e"]
[]
[{"$f":"--NOT(SUM(K16:BZ16)=E14)","v":0},null,null,"Infrastructure carbon (annual profile)",null,null,null,null,null,"tCO2e",{"$f":"IF(SUM('C-Scheme Costs'!$K$17:$BZ$19)=0,0,$E$14*(SUM('C-Scheme Costs'!K17:K19)/SUM('C-Scheme Costs'!$K$17:$BZ$19)))","v":0},{"$f":"IF(SUM('C-Scheme Costs'!$K$17:$BZ$19)=0,0,$E$14*(SUM('C-Scheme Costs'!L17:L19)/SUM('C-Scheme Costs'!$K$17:$BZ$19)))","v":0},{"$f":"IF(SUM('C-Scheme Costs'!$K$17:$BZ$19)=0,0,$E$14*(SUM('C-Scheme Costs'!M17:M19)/SUM('C-Scheme Costs'!$K$17:$BZ$19)))","v":0},{"$f":"IF(SUM('C-Scheme Costs'!$K$17:$BZ$19)=0,0,$E$14*(SUM('C-Scheme Costs'!N17:N19)/SUM('C-Scheme Costs'!$K$17:$BZ$19)))","v":0},{"$f":"IF(SUM('C-Scheme Costs'!$K$17:$BZ$19)=0,0,$E$14*(SUM('C-Scheme Costs'!O17:O19)/SUM('C-Scheme Costs'!$K$17:$BZ$19)))","v":24.615384615384617},{"$f":"IF(SUM('C-Scheme Costs'!$K$17:$BZ$19)=0,0,$E$14*(SUM('C-Scheme Costs'!P17:P19)/SUM('C-Scheme Costs'!$K$17:$BZ$19)))","v":135.38461538461539},{"$f":"IF(SUM('C-Scheme Costs'!$K$17:$BZ$19)=0,0,$E$14*(SUM('C-Scheme Costs'!Q17:Q19)/SUM('C-Scheme Costs'!$K$17:$BZ$19)))","v":0},{"$f":"IF(SUM('C-Scheme Costs'!$K$17:$BZ$19)=0,0,$E$14*(SUM('C-Scheme Costs'!R17:R19)/SUM('C-Scheme Costs'!$K$17:$BZ$19)))","v":0},{"$f":"IF(SUM('C-Scheme Costs'!$K$17:$BZ$19)=0,0,$E$14*(SUM('C-Scheme Costs'!S17:S19)/SUM('C-Scheme Costs'!$K$17:$BZ$19)))","v":0},{"$f":"IF(SUM('C-Scheme Costs'!$K$17:$BZ$19)=0,0,$E$14*(SUM('C-Scheme Costs'!T17:T19)/SUM('C-Scheme Costs'!$K$17:$BZ$19)))","v":0},{"$f":"IF(SUM('C-Scheme Costs'!$K$17:$BZ$19)=0,0,$E$14*(SUM('C-Scheme Costs'!U17:U19)/SUM('C-Scheme Costs'!$K$17:$BZ$19)))","v":0},{"$f":"IF(SUM('C-Scheme Costs'!$K$17:$BZ$19)=0,0,$E$14*(SUM('C-Scheme Costs'!V17:V19)/SUM('C-Scheme Costs'!$K$17:$BZ$19)))","v":0},{"$f":"IF(SUM('C-Scheme Costs'!$K$17:$BZ$19)=0,0,$E$14*(SUM('C-Scheme Costs'!W17:W19)/SUM('C-Scheme Costs'!$K$17:$BZ$19)))","v":0},{"$f":"IF(SUM('C-Scheme Costs'!$K$17:$BZ$19)=0,0,$E$14*(SUM('C-Scheme Costs'!X17:X19)/SUM('C-Scheme Costs'!$K$17:$BZ$19)))","v":0},{"$f":"IF(SUM('C-Scheme Costs'!$K$17:$BZ$19)=0,0,$E$14*(SUM('C-Scheme Costs'!Y17:Y19)/SUM('C-Scheme Costs'!$K$17:$BZ$19)))","v":0},{"$f":"IF(SUM('C-Scheme Costs'!$K$17:$BZ$19)=0,0,$E$14*(SUM('C-Scheme Costs'!Z17:Z19)/SUM('C-Scheme Costs'!$K$17:$BZ$19)))","v":0},{"$f":"IF(SUM('C-Scheme Costs'!$K$17:$BZ$19)=0,0,$E$14*(SUM('C-Scheme Costs'!AA17:AA19)/SUM('C-Scheme Costs'!$K$17:$BZ$19)))","v":0},{"$f":"IF(SUM('C-Scheme Costs'!$K$17:$BZ$19)=0,0,$E$14*(SUM('C-Scheme Costs'!AB17:AB19)/SUM('C-Scheme Costs'!$K$17:$BZ$19)))","v":0},{"$f":"IF(SUM('C-Scheme Costs'!$K$17:$BZ$19)=0,0,$E$14*(SUM('C-Scheme Costs'!AC17:AC19)/SUM('C-Scheme Costs'!$K$17:$BZ$19)))","v":0},{"$f":"IF(SUM('C-Scheme Costs'!$K$17:$BZ$19)=0,0,$E$14*(SUM('C-Scheme Costs'!AD17:AD19)/SUM('C-Scheme Costs'!$K$17:$BZ$19)))","v":0},{"$f":"IF(SUM('C-Scheme Costs'!$K$17:$BZ$19)=0,0,$E$14*(SUM('C-Scheme Costs'!AE17:AE19)/SUM('C-Scheme Costs'!$K$17:$BZ$19)))","v":0},{"$f":"IF(SUM('C-Scheme Costs'!$K$17:$BZ$19)=0,0,$E$14*(SUM('C-Scheme Costs'!AF17:AF19)/SUM('C-Scheme Costs'!$K$17:$BZ$19)))","v":0},{"$f":"IF(SUM('C-Scheme Costs'!$K$17:$BZ$19)=0,0,$E$14*(SUM('C-Scheme Costs'!AG17:AG19)/SUM('C-Scheme Costs'!$K$17:$BZ$19)))","v":0},{"$f":"IF(SUM('C-Scheme Costs'!$K$17:$BZ$19)=0,0,$E$14*(SUM('C-Scheme Costs'!AH17:AH19)/SUM('C-Scheme Costs'!$K$17:$BZ$19)))","v":0},{"$f":"IF(SUM('C-Scheme Costs'!$K$17:$BZ$19)=0,0,$E$14*(SUM('C-Scheme Costs'!AI17:AI19)/SUM('C-Scheme Costs'!$K$17:$BZ$19)))","v":0},{"$f":"IF(SUM('C-Scheme Costs'!$K$17:$BZ$19)=0,0,$E$14*(SUM('C-Scheme Costs'!AJ17:AJ19)/SUM('C-Scheme Costs'!$K$17:$BZ$19)))","v":0},{"$f":"IF(SUM('C-Scheme Costs'!$K$17:$BZ$19)=0,0,$E$14*(SUM('C-Scheme Costs'!AK17:AK19)/SUM('C-Scheme Costs'!$K$17:$BZ$19)))","v":0},{"$f":"IF(SUM('C-Scheme Costs'!$K$17:$BZ$19)=0,0,$E$14*(SUM('C-Scheme Costs'!AL17:AL19)/SUM('C-Scheme Costs'!$K$17:$BZ$19)))","v":0},{"$f":"IF(SUM('C-Scheme Costs'!$K$17:$BZ$19)=0,0,$E$14*(SUM('C-Scheme Costs'!AM17:AM19)/SUM('C-Scheme Costs'!$K$17:$BZ$19)))","v":0},{"$f":"IF(SUM('C-Scheme Costs'!$K$17:$BZ$19)=0,0,$E$14*(SUM('C-Scheme Costs'!AN17:AN19)/SUM('C-Scheme Costs'!$K$17:$BZ$19)))","v":0},{"$f":"IF(SUM('C-Scheme Costs'!$K$17:$BZ$19)=0,0,$E$14*(SUM('C-Scheme Costs'!AO17:AO19)/SUM('C-Scheme Costs'!$K$17:$BZ$19)))","v":0},{"$f":"IF(SUM('C-Scheme Costs'!$K$17:$BZ$19)=0,0,$E$14*(SUM('C-Scheme Costs'!AP17:AP19)/SUM('C-Scheme Costs'!$K$17:$BZ$19)))","v":0},{"$f":"IF(SUM('C-Scheme Costs'!$K$17:$BZ$19)=0,0,$E$14*(SUM('C-Scheme Costs'!AQ17:AQ19)/SUM('C-Scheme Costs'!$K$17:$BZ$19)))","v":0},{"$f":"IF(SUM('C-Scheme Costs'!$K$17:$BZ$19)=0,0,$E$14*(SUM('C-Scheme Costs'!AR17:AR19)/SUM('C-Scheme Costs'!$K$17:$BZ$19)))","v":0},{"$f":"IF(SUM('C-Scheme Costs'!$K$17:$BZ$19)=0,0,$E$14*(SUM('C-Scheme Costs'!AS17:AS19)/SUM('C-Scheme Costs'!$K$17:$BZ$19)))","v":0},{"$f":"IF(SUM('C-Scheme Costs'!$K$17:$BZ$19)=0,0,$E$14*(SUM('C-Scheme Costs'!AT17:AT19)/SUM('C-Scheme Costs'!$K$17:$BZ$19)))","v":0},{"$f":"IF(SUM('C-Scheme Costs'!$K$17:$BZ$19)=0,0,$E$14*(SUM('C-Scheme Costs'!AU17:AU19)/SUM('C-Scheme Costs'!$K$17:$BZ$19)))","v":0},{"$f":"IF(SUM('C-Scheme Costs'!$K$17:$BZ$19)=0,0,$E$14*(SUM('C-Scheme Costs'!AV17:AV19)/SUM('C-Scheme Costs'!$K$17:$BZ$19)))","v":0},{"$f":"IF(SUM('C-Scheme Costs'!$K$17:$BZ$19)=0,0,$E$14*(SUM('C-Scheme Costs'!AW17:AW19)/SUM('C-Scheme Costs'!$K$17:$BZ$19)))","v":0},{"$f":"IF(SUM('C-Scheme Costs'!$K$17:$BZ$19)=0,0,$E$14*(SUM('C-Scheme Costs'!AX17:AX19)/SUM('C-Scheme Costs'!$K$17:$BZ$19)))","v":0},{"$f":"IF(SUM('C-Scheme Costs'!$K$17:$BZ$19)=0,0,$E$14*(SUM('C-Scheme Costs'!AY17:AY19)/SUM('C-Scheme Costs'!$K$17:$BZ$19)))","v":0},{"$f":"IF(SUM('C-Scheme Costs'!$K$17:$BZ$19)=0,0,$E$14*(SUM('C-Scheme Costs'!AZ17:AZ19)/SUM('C-Scheme Costs'!$K$17:$BZ$19)))","v":0},{"$f":"IF(SUM('C-Scheme Costs'!$K$17:$BZ$19)=0,0,$E$14*(SUM('C-Scheme Costs'!BA17:BA19)/SUM('C-Scheme Costs'!$K$17:$BZ$19)))","v":0},{"$f":"IF(SUM('C-Scheme Costs'!$K$17:$BZ$19)=0,0,$E$14*(SUM('C-Scheme Costs'!BB17:BB19)/SUM('C-Scheme Costs'!$K$17:$BZ$19)))","v":0},{"$f":"IF(SUM('C-Scheme Costs'!$K$17:$BZ$19)=0,0,$E$14*(SUM('C-Scheme Costs'!BC17:BC19)/SUM('C-Scheme Costs'!$K$17:$BZ$19)))","v":0},{"$f":"IF(SUM('C-Scheme Costs'!$K$17:$BZ$19)=0,0,$E$14*(SUM('C-Scheme Costs'!BD17:BD19)/SUM('C-Scheme Costs'!$K$17:$BZ$19)))","v":0},{"$f":"IF(SUM('C-Scheme Costs'!$K$17:$BZ$19)=0,0,$E$14*(SUM('C-Scheme Costs'!BE17:BE19)/SUM('C-Scheme Costs'!$K$17:$BZ$19)))","v":0},{"$f":"IF(SUM('C-Scheme Costs'!$K$17:$BZ$19)=0,0,$E$14*(SUM('C-Scheme Costs'!BF17:BF19)/SUM('C-Scheme Costs'!$K$17:$BZ$19)))","v":0},{"$f":"IF(SUM('C-Scheme Costs'!$K$17:$BZ$19)=0,0,$E$14*(SUM('C-Scheme Costs'!BG17:BG19)/SUM('C-Scheme Costs'!$K$17:$BZ$19)))","v":0},{"$f":"IF(SUM('C-Scheme Costs'!$K$17:$BZ$19)=0,0,$E$14*(SUM('C-Scheme Costs'!BH17:BH19)/SUM('C-Scheme Costs'!$K$17:$BZ$19)))","v":0},{"$f":"IF(SUM('C-Scheme Costs'!$K$17:$BZ$19)=0,0,$E$14*(SUM('C-Scheme Costs'!BI17:BI19)/SUM('C-Scheme Costs'!$K$17:$BZ$19)))","v":0},{"$f":"IF(SUM('C-Scheme Costs'!$K$17:$BZ$19)=0,0,$E$14*(SUM('C-Scheme Costs'!BJ17:BJ19)/SUM('C-Scheme Costs'!$K$17:$BZ$19)))","v":0},{"$f":"IF(SUM('C-Scheme Costs'!$K$17:$BZ$19)=0,0,$E$14*(SUM('C-Scheme Costs'!BK17:BK19)/SUM('C-Scheme Costs'!$K$17:$BZ$19)))","v":0},{"$f":"IF(SUM('C-Scheme Costs'!$K$17:$BZ$19)=0,0,$E$14*(SUM('C-Scheme Costs'!BL17:BL19)/SUM('C-Scheme Costs'!$K$17:$BZ$19)))","v":0},{"$f":"IF(SUM('C-Scheme Costs'!$K$17:$BZ$19)=0,0,$E$14*(SUM('C-Scheme Costs'!BM17:BM19)/SUM('C-Scheme Costs'!$K$17:$BZ$19)))","v":0},{"$f":"IF(SUM('C-Scheme Costs'!$K$17:$BZ$19)=0,0,$E$14*(SUM('C-Scheme Costs'!BN17:BN19)/SUM('C-Scheme Costs'!$K$17:$BZ$19)))","v":0},{"$f":"IF(SUM('C-Scheme Costs'!$K$17:$BZ$19)=0,0,$E$14*(SUM('C-Scheme Costs'!BO17:BO19)/SUM('C-Scheme Costs'!$K$17:$BZ$19)))","v":0},{"$f":"IF(SUM('C-Scheme Costs'!$K$17:$BZ$19)=0,0,$E$14*(SUM('C-Scheme Costs'!BP17:BP19)/SUM('C-Scheme Costs'!$K$17:$BZ$19)))","v":0},{"$f":"IF(SUM('C-Scheme Costs'!$K$17:$BZ$19)=0,0,$E$14*(SUM('C-Scheme Costs'!BQ17:BQ19)/SUM('C-Scheme Costs'!$K$17:$BZ$19)))","v":0},{"$f":"IF(SUM('C-Scheme Costs'!$K$17:$BZ$19)=0,0,$E$14*(SUM('C-Scheme Costs'!BR17:BR19)/SUM('C-Scheme Costs'!$K$17:$BZ$19)))","v":0},{"$f":"IF(SUM('C-Scheme Costs'!$K$17:$BZ$19)=0,0,$E$14*(SUM('C-Scheme Costs'!BS17:BS19)/SUM('C-Scheme Costs'!$K$17:$BZ$19)))","v":0},{"$f":"IF(SUM('C-Scheme Costs'!$K$17:$BZ$19)=0,0,$E$14*(SUM('C-Scheme Costs'!BT17:BT19)/SUM('C-Scheme Costs'!$K$17:$BZ$19)))","v":0},{"$f":"IF(SUM('C-Scheme Costs'!$K$17:$BZ$19)=0,0,$E$14*(SUM('C-Scheme Costs'!BU17:BU19)/SUM('C-Scheme Costs'!$K$17:$BZ$19)))","v":0},{"$f":"IF(SUM('C-Scheme Costs'!$K$17:$BZ$19)=0,0,$E$14*(SUM('C-Scheme Costs'!BV17:BV19)/SUM('C-Scheme Costs'!$K$17:$BZ$19)))","v":0},{"$f":"IF(SUM('C-Scheme Costs'!$K$17:$BZ$19)=0,0,$E$14*(SUM('C-Scheme Costs'!BW17:BW19)/SUM('C-Scheme Costs'!$K$17:$BZ$19)))","v":0},{"$f":"IF(SUM('C-Scheme Costs'!$K$17:$BZ$19)=0,0,$E$14*(SUM('C-Scheme Costs'!BX17:BX19)/SUM('C-Scheme Costs'!$K$17:$BZ$19)))","v":0},{"$f":"IF(SUM('C-Scheme Costs'!$K$17:$BZ$19)=0,0,$E$14*(SUM('C-Scheme Costs'!BY17:BY19)/SUM('C-Scheme Costs'!$K$17:$BZ$19)))","v":0},{"$f":"IF(SUM('C-Scheme Costs'!$K$17:$BZ$19)=0,0,$E$14*(SUM('C-Scheme Costs'!BZ17:BZ19)/SUM('C-Scheme Costs'!$K$17:$BZ$19)))","v":0},{"$f":"IF(SUM('C-Scheme Costs'!$K$17:$BZ$19)=0,0,$E$14*(SUM('C-Scheme Costs'!CA17:CA19)/SUM('C-Scheme Costs'!$K$17:$BZ$19)))","v":0},{"$f":"IF(SUM('C-Scheme Costs'!$K$17:$BZ$19)=0,0,$E$14*(SUM('C-Scheme Costs'!CB17:CB19)/SUM('C-Scheme Costs'!$K$17:$BZ$19)))","v":0},{"$f":"IF(SUM('C-Scheme Costs'!$K$17:$BZ$19)=0,0,$E$14*(SUM('C-Scheme Costs'!CC17:CC19)/SUM('C-Scheme Costs'!$K$17:$BZ$19)))","v":0},{"$f":"IF(SUM('C-Scheme Costs'!$K$17:$BZ$19)=0,0,$E$14*(SUM('C-Scheme Costs'!CD17:CD19)/SUM('C-Scheme Costs'!$K$17:$BZ$19)))","v":0},{"$f":"IF(SUM('C-Scheme Costs'!$K$17:$BZ$19)=0,0,$E$14*(SUM('C-Scheme Costs'!CE17:CE19)/SUM('C-Scheme Costs'!$K$17:$BZ$19)))","v":0}]
[]
[null,null,null,"Carbon appraisal values",null,null,null,null,null,"£ per tonne of CO2e (2023 prices, central scenario)",{"$f":"TRANSPOSE('TAG - A3.4'!I26:I98)","v":338.49586473891736},343.65062410042367,348.8838823354555,354.19683485833053,359.59069528764519,365.06669572349762,370.62608702893164,376.27013911566667,382.00014123417935,387.81740226820239,393.72325103370798,399.71903658244469,405.80612851009613,411.98591726913315,418.25981448642955,424.62925328571527,431.09568861493938,437.66059757861865,444.22550654229792,450.88888914043241,457.65222247753877,464.51700581470192,471.48476090192236,478.55703231545118,485.73538780018288,493.02141861718553,500.41673989644323,507.92299099488986,515.54183585981309,523.27496339771028,531.1240878486758,539.09094916640595,547.17731340390196,555.38497310496041,563.71574770153484,572.1714839170578,580.7540561758135,589.46536701845071,598.30734752372746,607.28195773658331,616.39118710263199,625.63705490917141,635.02161073280899,644.54693489380099,654.21513891720792,664.028366000966,673.98879149098036,684.09862336334515,694.36010271379507,704.77550425450204,715.34713681831954,726.07734387059418,736.96850402865311,748.02303158908273,759.24337706291897,770.63202771886279,782.19150813464557,793.92438075666507,805.83324646801509,817.92074516503533,830.18955634251063,842.64239968764832,855.28203568296283,868.11126621820711,881.13293521148023,894.34992923965228,907.76517817824697,921.38165585092065,935.20238068868446,949.23041639901442,963.46887264499969,977.92090573467453,992.58971932069471]
[]
[null,null,null,"Value of infrastructure carbon",null,null,null,null,null,"£, 2023 prices",{"$f":"K16*K18","v":0},{"$f":"L16*L18","v":0},{"$f":"M16*M18","v":0},{"$f":"N16*N18","v":0},8851.4632686189598,49424.41419025814,0,0,0,0,0,0,0,0,0,0,0,0,0,0,0,0,0,0,0,0,0,0,0,0,0,0,0,0,0,0,0,0,0,0,0,0,0,0,0,0,0,0,0,0,0,0,0,0,0,0,0,0,0,0,0,0,0,0,0,0,0,{"$f":"BZ16*BZ18","v":0},0,0,0,0,0]
[]
[{"$f":"--NOT(SUM(K22:BZ22)=SUMPRODUCT(K20:BZ20,'C-Values and Rates'!K33:BZ33))","v":0},null,null,"Value of infrastructure carbon",null,null,null,{"$f":"SUM(K22:CE22)","v":49035.580227717517},null,"£, 2023 Present Values",{"$f":"K20*'C-Values and Rates'!K33","v":0},{"$f":"L20*'C-Values and Rates'!L33","v":0},{"$f":"M20*'C-Values and Rates'!M33","v":0},{"$f":"N20*'C-Values and Rates'!N33","v":0},{"$f":"O20*'C-Values and Rates'!O33","v":7675.8119228131527},{"$f":"P20*'C-Values and Rates'!P33","v":41359.768304904363},{"$f":"Q20*'C-Values and Rates'!Q33","v":0},{"$f":"R20*'C-Values and Rates'!R33","v":0},{"$f":"S20*'C-Values and Rates'!S33","v":0},{"$f":"T20*'C-Values and Rates'!T33","v":0},{"$f":"U20*'C-Values and Rates'!U33","v":0},{"$f":"V20*'C-Values and Rates'!V33","v":0},{"$f":"W20*'C-Values and Rates'!W33","v":0},{"$f":"X20*'C-Values and Rates'!X33","v":0},{"$f":"Y20*'C-Values and Rates'!Y33","v":0},{"$f":"Z20*'C-Values and Rates'!Z33","v":0},{"$f":"AA20*'C-Values and Rates'!AA33","v":0},{"$f":"AB20*'C-Values and Rates'!AB33","v":0},{"$f":"AC20*'C-Values and Rates'!AC33","v":0},{"$f":"AD20*'C-Values and Rates'!AD33","v":0},{"$f":"AE20*'C-Values and Rates'!AE33","v":0},{"$f":"AF20*'C-Values and Rates'!AF33","v":0},{"$f":"AG20*'C-Values and Rates'!AG33","v":0},{"$f":"AH20*'C-Values and Rates'!AH33","v":0},{"$f":"AI20*'C-Values and Rates'!AI33","v":0},{"$f":"AJ20*'C-Values and Rates'!AJ33","v":0},{"$f":"AK20*'C-Values and Rates'!AK33","v":0},{"$f":"AL20*'C-Values and Rates'!AL33","v":0},{"$f":"AM20*'C-Values and Rates'!AM33","v":0},{"$f":"AN20*'C-Values and Rates'!AN33","v":0},{"$f":"AO20*'C-Values and Rates'!AO33","v":0},{"$f":"AP20*'C-Values and Rates'!AP33","v":0},{"$f":"AQ20*'C-Values and Rates'!AQ33","v":0},{"$f":"AR20*'C-Values and Rates'!AR33","v":0},{"$f":"AS20*'C-Values and Rates'!AS33","v":0},{"$f":"AT20*'C-Values and Rates'!AT33","v":0},{"$f":"AU20*'C-Values and Rates'!AU33","v":0},{"$f":"AV20*'C-Values and Rates'!AV33","v":0},{"$f":"AW20*'C-Values and Rates'!AW33","v":0},{"$f":"AX20*'C-Values and Rates'!AX33","v":0},{"$f":"AY20*'C-Values and Rates'!AY33","v":0},{"$f":"AZ20*'C-Values and Rates'!AZ33","v":0},{"$f":"BA20*'C-Values and Rates'!BA33","v":0},{"$f":"BB20*'C-Values and Rates'!BB33","v":0},{"$f":"BC20*'C-Values and Rates'!BC33","v":0},{"$f":"BD20*'C-Values and Rates'!BD33","v":0},{"$f":"BE20*'C-Values and Rates'!BE33","v":0},{"$f":"BF20*'C-Values and Rates'!BF33","v":0},{"$f":"BG20*'C-Values and Rates'!BG33","v":0},{"$f":"BH20*'C-Values and Rates'!BH33","v":0},{"$f":"BI20*'C-Values and Rates'!BI33","v":0},{"$f":"BJ20*'C-Values and Rates'!BJ33","v":0},{"$f":"BK20*'C-Values and Rates'!BK33","v":0},{"$f":"BL20*'C-Values and Rates'!BL33","v":0},{"$f":"BM20*'C-Values and Rates'!BM33","v":0},{"$f":"BN20*'C-Values and Rates'!BN33","v":0},{"$f":"BO20*'C-Values and Rates'!BO33","v":0},{"$f":"BP20*'C-Values and Rates'!BP33","v":0},{"$f":"BQ20*'C-Values and Rates'!BQ33","v":0},{"$f":"BR20*'C-Values and Rates'!BR33","v":0},{"$f":"BS20*'C-Values and Rates'!BS33","v":0},{"$f":"BT20*'C-Values and Rates'!BT33","v":0},{"$f":"BU20*'C-Values and Rates'!BU33","v":0},{"$f":"BV20*'C-Values and Rates'!BV33","v":0},{"$f":"BW20*'C-Values and Rates'!BW33","v":0},{"$f":"BX20*'C-Values and Rates'!BX33","v":0},{"$f":"BY20*'C-Values and Rates'!BY33","v":0},{"$f":"BZ20*'C-Values and Rates'!BZ33","v":0},{"$f":"CA20*'C-Values and Rates'!CA33","v":0},{"$f":"CB20*'C-Values and Rates'!CB33","v":0},{"$f":"CC20*'C-Values and Rates'!CC33","v":0},{"$f":"CD20*'C-Values and Rates'!CD33","v":0},{"$f":"CE20*'C-Values and Rates'!CE33","v":0}]
[]
[null,"END"]

{"sheet":"Outputs>>","index":18,"n_rows":11,"n_cols":3,"rows_kept":11,"cut":false,"hidden":false,"merged":[]}
[]
[]
[]
[]
[]
[]
[]
[]
[]
[]
[null,null,"Outputs"]

{"sheet":"O-Results","index":19,"n_rows":40,"n_cols":10,"rows_kept":40,"cut":false,"hidden":false,"merged":[[37,7,37,12]]}
[]
[null,"File Name",null,null,null,null,{"$f":"IFERROR(MID(CELL(\"filename\",G2),FIND(\"[\",CELL(\"filename\",G2))+1,FIND(\"]\",CELL(\"filename\",G2))-FIND(\"[\",CELL(\"filename\",G2))-1),\"Please save the file to show here\")","v":"structures-fund-economic-tool Final 03082026.xlsm"}]
[null,"Sheet Name",null,null,null,null,{"$f":"IFERROR(MID(CELL(\"filename\",G2),FIND(\"]\",CELL(\"filename\",G2))+1,255),\"Please save the file to show here\")","v":"O-Results"}]
[null,"Description and Purpose of Sheet",null,null,null,null,"This sheet provides a summary of the benefits and costs of the scheme over the appraisal period."]
[null,"Version number",null,null,null,null,{"$f":"Version_Number","v":1}]
[]
[]
[null,"O-Results"]
[]
[null,null,null,null,"Constant",null,null,"Total",null,"Unit"]
[]
[null,null,"Economic Appraisal Results"]
[]
[null,null,"Benefits"]
[null,null,"Journey Times",null,null,null,null,{"$f":"'C-Annual Impacts'!H33","v":142228648.25924504},null,"£, 2023 PV"]
[null,null,"Vehicle Operating Costs",null,null,null,null,{"$f":"'C-Annual Impacts'!H55","v":27846279.4455247},null,"£, 2023 PV"]
[null,null,"External Impacts"]
[null,null,"Decongestion",null,null,null,null,{"$f":"'C-Annual Impacts'!H67","v":95447181.050383404},null,"£, 2023 PV"]
[null,null,"Accidents",null,null,null,null,{"$f":"'C-Annual Impacts'!H69","v":559391.65833750111},null,"£, 2023 PV"]
[null,null,"Local Air Quality",null,null,null,null,{"$f":"'C-Annual Impacts'!H70","v":675721.83368433884},null,"£, 2023 PV"]
[null,null,"Noise",null,null,null,null,{"$f":"'C-Annual Impacts'!H71","v":1387284.2460091519},null,"£, 2023 PV"]
[null,null,"Greenhouse Gases",null,null,null,null,{"$f":"'C-Annual Impacts'!H72","v":10100926.110516302},null,"£, 2023 PV"]
[null,null,"Indirect Taxation",null,null,null,null,{"$f":"'C-Annual Impacts'!H73","v":-5323555.9108457258},null,"£, 2023 PV"]
[null,null,"Infrastructure Carbon",null,null,null,null,{"$f":"-'C-Carbon'!H22","v":-49035.580227717517},null,"£, 2023 PV"]
[null,null,"Private sector capital costs",null,null,null,null,{"$f":"-'C-Scheme Costs'!H35","v":0},null,"£, 2023 PV"]
[null,null,"Private sector operating, maintenance and renewal (OMR) costs",null,null,null,null,{"$f":"IF('C-Scheme Costs'!$E$52='I-Validation'!$B$46,-'C-Scheme Costs'!$H$52,0)","v":0},null,"£, 2023 PV"]
[null,null,"Present Value Benefits",null,null,null,null,{"$f":"H15+H16+SUM(H18:H23)+H24+H25+H26","v":272872841.11262697},null,"£, 2023 PV"]
[null,null,"Costs"]
[null,null,"Local Authority capital costs",null,null,null,null,{"$f":"'C-Scheme Costs'!H34","v":72386.932932659081},null,"£, 2023 PV"]
[null,null,"Central Government capital costs",null,null,null,null,{"$f":"'C-Scheme Costs'!H33","v":876785.7176201347},null,"£, 2023 PV"]
[null,null,"Infrastructure maintenance (external impacts)",null,null,null,null,{"$f":"-'C-Annual Impacts'!H68","v":-1302226.8153849114},null,"£, 2023 PV"]
[null,null,"Public sector operating, maintenance and renewal (OMR) costs",null,null,null,null,{"$f":"IF('C-Scheme Costs'!$E$52='I-Validation'!$B$47,'C-Scheme Costs'!$H$52,0)","v":-663830.48219089466},null,"£, 2023 PV"]
[null,null,"Present Value Costs",null,null,null,null,{"$f":"H32+H31+H29+H30","v":-1016884.6470230123},null,"£, 2023 PV"]
[null,null,"Benefit Cost Ratio"]
[null,null,"Net Present Value",null,null,null,null,{"$f":"H27-H33","v":273889725.75964999},null,"£, 2023 PV"]
[null,null,"Benefit Cost Ratio",null,null,null,null,{"$f":"IF(OR(H27=0,H33=0),0,H27/H33)","v":-268.34198147398308}]
[]
[null,null,{"$f":"'Input Checklist'!D48","v":"Inputs check"},null,null,null,null,{"$f":"IF('Input Checklist'!E48=0, \"Inputs check not passed, please review your inputs and confirm their validity before reviewing results\", \"Inputs check passed\")","v":"Inputs check passed"}]
[]
[null,"END"]

{"sheet":"O-Summary","index":20,"n_rows":50,"n_cols":10,"rows_kept":50,"cut":false,"hidden":false,"merged":[]}
[]
[null,"File Name",null,null,null,null,{"$f":"IFERROR(MID(CELL(\"filename\",G2),FIND(\"[\",CELL(\"filename\",G2))+1,FIND(\"]\",CELL(\"filename\",G2))-FIND(\"[\",CELL(\"filename\",G2))-1),\"Please save the file to show here\")","v":"structures-fund-economic-tool Final 03082026.xlsm"}]
[null,"Sheet Name",null,null,null,null,{"$f":"IFERROR(MID(CELL(\"filename\",G2),FIND(\"]\",CELL(\"filename\",G2))+1,255),\"Please save the file to show here\")","v":"O-Summary"}]
[null,"Description and Purpose of Sheet",null,null,null,null,"This sheet provides a description of the appraised scheme and headline results of the economic appraisal."]
[null,"Version number",null,null,null,null,{"$f":"Version_Number","v":1}]
[]
[]
[null,"O-Summary"]
[]
[null,null,null,null,"Constant",null,null,null,null,"Unit"]
[]
[null,null,null,"Scheme Details"]
[]
[null,null,null,"Scheme name",{"$f":"IF('I-Scheme Details'!E14=\"\",\"\",'I-Scheme Details'!E14)","v":"Upminster Bridge"},null,null,null,null,"text"]
[]
[null,null,null,"Scheme promoter",{"$f":"IF('I-Scheme Details'!E16=\"\",\"\",'I-Scheme Details'!E16)","v":"LB Havering"},null,null,null,null,"text"]
[]
[null,null,null,"Scheme description",{"$f":"IF('I-Scheme Details'!E28=\"\",\"\",'I-Scheme Details'!E28)","v":"Replacement of the whole structure deck at Upminster Bridge. "},null,null,null,null,"text"]
[]
[null,null,null,"Route length (without diversion)",{"$f":"IF('I-Scheme Details'!E20=\"\",\"\",'I-Scheme Details'!E20)","v":1.9},null,null,null,null,"km"]
[]
[null,null,null,"Journey time (without diversion)",{"$f":"IF('I-Scheme Details'!E22=\"\",\"\",'I-Scheme Details'!E22)","v":7},null,null,null,null,"min"]
[]
[null,null,null,"Daily number of vehicles on affected section",{"$f":"IF('I-Scheme Details'!E38=\"\",\"\",'I-Scheme Details'!E38)","v":14187},null,null,null,null,"Average Annual Daily Traffic (AADT)"]
[null,null,null,"Cars",{"$f":"IF('I-Scheme Details'!E39=\"\",\"\",'I-Scheme Details'!E39)","v":11990},null,null,null,null,"AADT"]
[null,null,null,"LGV",{"$f":"IF('I-Scheme Details'!E40=\"\",\"\",'I-Scheme Details'!E40)","v":1615},null,null,null,null,"AADT"]
[null,null,null,"HGV",{"$f":"IF('I-Scheme Details'!E41=\"\",\"\",'I-Scheme Details'!E41)","v":142},null,null,null,null,"AADT"]
[null,null,null,"PSV",{"$f":"IF('I-Scheme Details'!E42=\"\",\"\",'I-Scheme Details'!E42)","v":440},null,null,null,null,"AADT"]
[]
[null,null,null,"Diversion description",{"$f":"IF('I-Scheme Details'!E55=\"\",\"\",'I-Scheme Details'!E55)","v":"The proposed diversion route would be significant given the need to avoid quiter residential roads and roads that already have height, weight or width restrictions in the area.  The diversion would be approximately 7km in length. The diversion westbound would start at the Bell Corner Junction (Station Road/Upminster Road, Corbets Tey Road). Vehicles would travel north along Station Road, then Hall Lane up to the junction with the A127. The diversion route would then continue westbound along the A127 untill the junction with Adleigh Green Road. Traffic would then continue southbound down Ardleigh Green Road into Butts Green Road then into North Street heading southbound, untill the road meets the A124 at Hornchurch Town Centre. At this point vehicles will then have the opportunity  to continue there journey east or westbound along the A124. This diversion is proposed to avoid larger vehicles having to use quieter residential roads. It is also a route that avoids any weight restrictions. The diversion roads would be the same in the eastbound direction.   "},null,null,null,null,"text"]
[]
[null,null,null,"Route length (with diversion)",{"$f":"IF('I-Scheme Details'!E63=\"\",\"\",'I-Scheme Details'!E63)","v":7.9},null,null,null,null,"km"]
[]
[null,null,null,"Journey time (with diversion)",{"$f":"IF('I-Scheme Details'!E65=\"\",\"\",'I-Scheme Details'!E65)","v":20},null,null,null,null,"min"]
[]
[null,null,null,"Capital Cost",{"$f":"SUM('I-Costs'!K23:CE25)","v":650000},null,null,null,null,"£, nominal prices excluding risk"]
[]
[null,null,null,"Change in Operating, Maintenance and Renewal Costs",{"$f":"SUM('I-Costs'!K33:CE33)-SUM('I-Costs'!K32:CE32)","v":-2128811},null,null,null,null,"£, nominal prices excluding risk"]
[]
[null,null,null,"Economic Appraisal Results"]
[]
[null,null,null,"Present Value Benefits",{"$f":"'O-Results'!H27","v":272872841.11262697},null,null,null,null,"£, 2023 PV"]
[]
[null,null,null,"Present Value Costs",{"$f":"'O-Results'!H33","v":-1016884.6470230123},null,null,null,null,"£, 2023 PV"]
[]
[null,null,null,"Net Present Value",{"$f":"'O-Results'!H35","v":273889725.75964999},null,null,null,null,"£, 2023 PV"]
[]
[null,null,null,"Benefit Cost Ratio",{"$f":"'O-Results'!H36","v":-268.34198147398308}]
[]
[null,"END"]

{"sheet":"Data Book Inputs>>","index":21,"n_rows":11,"n_cols":3,"rows_kept":11,"cut":false,"hidden":true,"merged":[]}
[]
[]
[]
[]
[]
[]
[]
[]
[]
[]
[null,null,"Inputs"]

{"sheet":"TAG - Annual Parameters","index":22,"n_rows":126,"n_cols":30,"rows_kept":126,"cut":false,"hidden":true,"merged":[[10,20,11,23],[10,24,10,27],[11,24,11,25]]}
[]
[null,"File Name",null,null,null,null,{"$f":"IFERROR(MID(CELL(\"filename\",G2),FIND(\"[\",CELL(\"filename\",G2))+1,FIND(\"]\",CELL(\"filename\",G2))-FIND(\"[\",CELL(\"filename\",G2))-1),\"Please save the file to show here\")","v":"structures-fund-economic-tool Final 03082026.xlsm"}]
[null,"Sheet Name",null,null,null,null,{"$f":"IFERROR(MID(CELL(\"filename\",G2),FIND(\"]\",CELL(\"filename\",G2))+1,255),\"Please save the file to show here\")","v":"TAG - Annual Parameters"}]
[null,"Description and Purpose of Sheet",null,null,null,null,"TAG - Annual Parameters table"]
[null,"Version number",null,null,null,null,{"$f":"Version_Number","v":1}]
[]
[]
[null,"TAG Data Book v2.02 - Annual Parameters"]
[]
[null,"Annual Parameters"]
[null,null,null,null,"GDP deflator1\n","Real GDP2",null,null,"Population3",null,null,"Households4",null,null,"Average GDP per person",null,null,"Average GDP per household",null,null,"Work & Non-Work VoT\nFor modelling purposes only ",null,null,null,"Work & Non-Work VoT\nFor appraisal purposes only ",null,null,null,"Population Scenarios3"]
[null,null,null,null,null,null,null,null,null,null,null,null,null,null,null,null,null,null,null,null,null,null,null,null,"Appraisal start year",null,2025]
[null,null,null,null,"(2023=100)","Historic Value","Annual","Index","Historic","Annual","Index","Historic","Annual","Index","Historic Value","Annual","Index","Historic Value","Annual","Index","Work","Non-Work","Work","Non-work","Work","Non-Work","Work","Non-work","High","Low"]
[null,null,null,null,null,"Base Year =","Growth","1990 = 100","Value","Growth","1990 = 100","Value","Growth","1996 = 100","Base Year =","Growth","1990 = 100","Base Year =","Growth","1996 = 100","VoT Growth","VoT Growth","Index","Index","VoT Growth","VoT Growth","Index","Index","Growth","Growth"]
[null,null,"Year",null,null,2022,"(%pa)",null,null,"(%pa)",null,null,"(%pa)",null,2022,"(%pa)",null,2022,"(%pa)",null,"(% pa)","(% pa)","2002 = 100","2002 = 100","(% pa)","(% pa)","2002 = 100","2002 = 100","(%pa)","(%pa)"]
[null,null,1990,null,44.634926634359687,1402748,"-",100,57237.5,"-",100,"-","-","-",24507.499454029265,"-",100,"-","-","-","-","-","-","-","-","-","-","-","-","-"]
[null,null,1991,null,47.634346188631369,1383043,-1.4047426907755349,98.595257309224465,57438.7,0.35151779864598748,100.35151779864599,"-","-","-",24078.591611578955,-1.7501085463853538,98.249891453614651,"-","-","-","-","-","-","-","-","-","-","-","-","-"]
[null,null,1992,null,49.198849907533649,1386437,0.24540090221345251,98.837210960200977,57584.5,0.25383582845712549,100.60624590521948,"-","-","-",24076.56574251752,-8.4135695895937168E-3,98.241625130625508,"-","-","-","-","-","-","-","-","-","-","-","-","-"]
[null,null,1993,null,50.675404157403591,1417763,2.2594607616501867,101.07039895975613,57713.9,0.22471324748847599,100.83232146756934,"-","-","-",24565.364669516355,2.0301854185775792,100.23611227900111,"-","-","-","-","-","-","-","-","-","-","-","-","-"]
[null,null,1994,null,51.611905056108021,1466101,3.4094556001249861,104.5163493371582,57862.1,0.25678389434780374,101.09124262939507,"-","-","-",25337.846362299329,3.1445968874280972,103.38813394580551,"-","-","-","-","-","-","-","-","-","-","-","-","-"]
[null,null,1995,null,52.959494441115908,1501088,2.3863976629168113,107.01052505510611,58024.800000000003,0.2811857848228882,101.37549683336974,"-","-","-",25869.766031076368,2.0993089198318327,105.55857026377747,"-","-","-","-","-","-","-","-","-","-","-","-","-"]
[null,null,1996,null,55.150443433538967,1539846,2.5819938604532178,109.77353024206772,58164.4,0.24058678358218991,101.6193928805416,23738,"-",100,26474.028787368217,2.3357874808993984,108.02419413301517,64868.396663577383,"-",100,"-","-","-","-","-","-","-","-","-","-"]
[null,null,1997,null,55.071943081014233,1615678,4.9246483089867423,115.17949054284877,58314.2,0.2575458527896714,101.88110941253548,23865,0.53500716151318561,100.53500716151319,27706.424850208012,4.6551134046806553,113.05284287439943,67700.733291430966,4.3662812302001752,104.36628123020017,"-","-","-","-","-","-","-","-","-","-"]
[null,null,1998,null,55.778238580846526,1670654,3.402658202934,119.09865492590261,58474.9,0.27557610324758697,102.16186940379995,24036,0.71653048397234442,101.25537113488922,28570.446465064499,3.1184882911733824,116.57838254227622,69506.323847561987,2.6670177239565662,107.14974844844397,"-","-","-","-","-","-","-","-","-","-"]
[null,null,1999,null,56.548705003774458,1721748,3.0583232674150365,122.74107680067982,58684.4,0.35827337883433746,102.52788818519328,24209,0.71975370277916462,101.98416041789537,29339.108860276327,2.6904108626784495,119.71482000972844,71120.161923251682,2.3218579063814193,109.63761335446198,"-","-","-","-","-","-","-","-","-","-"]
[null,null,2000,null,57.184391720912551,1796500,4.3416341996622041,128.0700453680918,58886.1,0.34370292616095088,102.88027953701682,24396,0.77244000165227811,102.77192686831242,30508.048588716185,3.9842373332018344,124.48454256193141,73639.12116740449,3.5418356427128428,113.52079742207,"-","-","-","-","-","-","-","-","-","-"]
[null,null,2001,null,58.04831094446515,1842720,2.5727804063456721,131.36500640172008,59113,0.38532013497243228,103.27669796898887,24535,0.56976553533366125,103.35748588760639,31172.838461928848,2.1790638994148681,127.1971402892502,75105.76727124516,1.9916670386471935,115.78175372633483,"-","-","-","-","-","-","-","-","-","-"]
[null,null,2002,null,59.27586539889289,1875809,1.7956607623513068,133.72387627713604,59365.7,0.427486339722222,103.71819174492248,24792,1.0474831872834724,104.44013817507795,31597.521801309511,1.362350560085579,128.93001124239362,75661.866731203612,0.74042178139275272,116.63902704980313,"-","-",100,100,"-","-",100,100,"-","-"]
[null,null,2003,null,60.690636963905419,1934941,3.1523465342153707,137.9393162563768,59636.7,0.45649255378105541,104.19165756715442,24917,0.50419490158115521,104.96672002696101,32445.474011808168,2.6836035301462058,132.38998157551239,77655.456114299479,2.6348667687228433,119.71231001290005,2.6836035301462058,2.6836035301462058,102.6836035301462,102.6836035301462,2.6836035301462058,2.6836035301462058,102.6836035301462,102.6836035301462,"-","-"]
[null,null,2004,null,62.261474705961149,1982500,2.4579044012194688,141.32973278165434,59950.400000000001,0.52601837459149203,104.7397248307491,24993,0.30501264197134487,105.28688179290592,33069.003709733377,1.9217771258274174,134.93422195831772,79322.210218861277,2.1463451352452756,122.28174935515166,1.9217771258274174,1.9217771258274174,104.65695353476386,104.65695353476386,1.9217771258274174,1.9217771258274174,104.65695353476386,104.65695353476386,"-","-"]
[null,null,2005,null,64.092734252424322,2036675,2.7326607818411097,145.19179496245945,60413.3,0.77213830099549197,105.54846036252461,25217,0.89625095026607449,106.23051647148036,33712.361350894585,1.9455005261372449,137.55936795645596,80765.951540627357,1.8200971931853438,124.50739604294272,1.9455005261372449,1.9455005261372449,106.6930551164219,106.6930551164219,1.9455005261372449,1.9455005261372449,106.6930551164219,106.6930551164219,"-","-"]
[null,null,2006,null,65.88453594973484,2085162,2.3806940233468765,148.64836734752078,60827.1,0.68494851299299264,106.27141297226471,25379,0.64242376174802707,106.91296655152078,34280.148157646836,1.6842095421393033,139.87615595768509,82160.920446038057,1.7271744823176061,126.65785601599455,1.6842095421393033,1.6842095421393033,108.48998973149263,108.48998973149263,1.6842095421393033,1.6842095421393033,108.48998973149263,108.48998973149263,"-","-"]
[null,null,2007,null,67.364309129404091,2139895,2.6248799853440645,152.55020859056657,61319.1,0.80885000271260676,107.1309892989736,25609,0.90626108199692668,107.8818771589856,34897.690931536832,1.8014588824122102,142.39596739356156,83560.271779452538,1.7031836131065958,128.81507186437113,1.8014588824122102,1.8014588824122102,110.4443922880387,110.4443922880387,1.8014588824122102,1.8014588824122102,110.4443922880387,110.4443922880387,"-","-"]
[null,null,2008,null,69.691283864958621,2134571,-0.2487972540708773,152.17066786051384,61823.8,0.82307144103550833,108.01275387639225,25875,1.038697332968878,109.00244333979275,34526.687133434047,-1.063118470590585,140.88212956282447,82495.497584541066,-1.2742588938937649,127.17363435446376,-1.063118470590585,-1.063118470590585,109.27023755389304,109.27023755389304,-1.063118470590585,-1.063118470590585,109.27023755389304,109.27023755389304,"-","-"]
[null,null,2009,null,70.998584709252754,2035942,-4.6205537318739927,145.1395403878673,62260.5,0.70636227472267488,108.77571522166414,26042,0.6454106280193237,109.7059566939085,32700.379855606683,-5.2895526025109163,133.43009521206127,78179.172106597034,-5.2321952158912328,120.51966154189449,-5.2895526025109163,-5.2895526025109163,103.49033085959121,103.49033085959121,-5.2895526025109163,-5.2895526025109163,103.49033085959123,103.49033085959123,"-","-"]
[null,null,2010,null,72.125210139005858,2081411,2.2333150944378573,148.38096365134726,62759.5,0.80147123778318508,109.64752129285873,26240,0.76031026802856916,110.54006234729128,33164.875437184812,1.4204592840486141,135.32541538721591,79322.065548780491,1.4618899271856112,122.28152633425363,1.4204592840486141,1.4204592840486141,104.96036887237891,104.96036887237891,1.4204592840486141,1.4204592840486141,104.96036887237892,104.96036887237892,"-","-"]
[null,null,2011,null,73.710065801155281,2105105,1.138362389744265,150.07007673509429,63285.1,0.83748277153259443,110.56580039309894,26409,0.64405487804878048,111.25200101103718,33263.833034948198,0.29838073099599516,135.72920035087168,79711.651330985653,0.49114427304666197,122.88210504783837,0.29838073099599516,0.29838073099599516,105.2735503882764,105.2735503882764,0.29838073099599516,0.29838073099599516,105.27355038827642,105.27355038827642,"-","-"]
[null,null,2012,null,74.846244183861117,2136871,1.5089983635020581,152.33463173713315,63710.8,0.67267018618917307,111.30954356846476,26620,0.79897004808966632,112.14087117701578,33540.169013730796,0.8307400367608464,136.85675715976171,80273.140495867774,0.70440036745775814,123.74768704733519,0.8307400367608464,0.8307400367608464,106.14809991947142,106.14809991947142,0.8307400367608464,0.8307400367608464,106.14809991947143,106.14809991947143,"-","-"]
[null,null,2013,null,76.423935131295991,2175333,1.7999214739682461,155.07653548606027,64138.7,0.67162867206187049,112.05713037781177,26663,0.16153268219383921,112.32201533406355,33916.075629845946,1.1207654199991035,138.39060036894045,81586.205603270457,1.635746526536197,125.77188553988086,1.1207654199991035,1.1207654199991035,107.33777111735495,107.33777111735495,1.1207654199991035,1.1207654199991035,107.33777111735496,107.33777111735496,"-","-"]
[null,null,2014,null,77.431667831365459,2244827,3.194637326790887,160.03066837379205,64619.5,0.74962542115758968,112.89713911334354,26734,0.26628661440948131,112.62111382593314,34739.15768459985,2.4268198471334879,141.7490909252611,83968.990798234459,2.9205736157785989,129.44514604502587,2.4268198471334879,2.4268198471334879,109.94266545030163,109.94266545030163,2.4268198471334879,2.4268198471334879,109.94266545030165,109.94266545030165,"-","-"]
[null,null,2015,null,77.943269996563018,2294727,2.2228884453011299,163.58797161001124,65088.1,0.72516809941271376,113.71583315134311,27046,1.1670531906934989,113.93546212823325,35255.707264461555,1.48693754912399,143.85681138377072,84845.337573023731,1.0436552427967261,130.79610709827065,1.48693754912399,1.48693754912399,111.57744422538994,111.57744422538994,1.48693754912399,1.48693754912399,111.57744422538995,111.57744422538995,"-","-"]
[null,null,2016,null,79.471638632557088,2338825,1.9217100770592754,166.7316581452977,65607.100000000006,0.79738078081862462,114.62258134963969,27109,0.23293647859202843,114.2008593815823,35648.961773954339,1.115435031675549,145.46144065339672,86274.853369729608,1.6848489706055236,132.99982396230797,1.115435031675549,1.115435031675549,112.82201812572819,112.82201812572819,1.115435031675549,1.115435031675549,112.82201812572821,112.82201812572821,"-","-"]
[null,null,2017,null,80.947362190865917,2400956,2.6565048688978443,171.16089276192164,65966,0.54704445098166832,115.24961782048486,27226,0.4315909845438784,114.69373999494485,36396.871115423099,2.0979835155120696,148.51319769973136,88186.145596121351,2.2153526221608599,135.94623904992631,2.0979835155120696,2.0979835155120696,115.18900546787401,115.18900546787401,2.0979835155120696,2.0979835155120696,115.18900546787403,115.18900546787403,"-","-"]
[null,null,2018,null,82.502935975486295,2434694,1.4051902658774256,173.56602896600106,66288.899999999994,0.48949458812114455,115.81375846254643,27576,1.2855358848159848,116.1681691802174,36728.532227869226,0.91123523061735767,149.86650227928774,88290.324920220475,0.11813570419128006,136.10684009674949,0.91123523061735767,0.91123523061735767,116.23864826749504,116.23864826749504,0.91123523061735767,0.91123523061735767,116.23864826749505,116.23864826749505,"-","-"]
[null,null,2019,null,84.261510010352509,2474245,1.6244751907221195,176.38556604607533,66630.7,0.51562177076403881,116.41091941471942,27824,0.89933275311865402,117.21290757435339,37133.708635809024,1.1031652597115027,151.51977746837758,88924.84905117884,0.71867912087957286,137.08501153861377,1.1031652597115027,1.1031652597115027,117.52095265354029,117.52095265354029,1.1031652597115027,1.1031652597115027,117.52095265354031,117.52095265354031,"-","-"]
[null,null,2020,null,88.639462210283355,2219474,-10.296918858075898,158.22328743295307,66744.100000000006,0.17019181848608636,116.6090412753877,27893,0.24798734905117883,117.50358075659284,33253.48607592281,-10.449326777300161,135.68698078846879,79571.003477575025,-10.518820862119661,122.66528474605092,0.21358733178860767,0.21358733178860767,117.77196252060554,117.77196252060554,0.21358733178860767,0.21358733178860767,117.77196252060554,117.77196252060554,"-","-"]
[null,null,2021,null,88.514027784555992,2409815,8.5759508784513816,171.79243884147408,66983.5,0.35868338924338505,117.02729853679847,28119,0.8102391280966551,118.45564074479741,35976.247881941075,8.1878988560831765,146.79689353630164,85700.593904477399,7.7032966269299896,132.1145554883075,0.2131321086046542,0.2131321086046542,118.02297238767079,118.02297238767079,0.2131321086046542,0.2131321086046542,118.02297238767079,118.02297238767079,"-","-"]
[null,null,2022,null,93.323524250482578,2526428,4.8390851579893059,180.10562125199968,67602.8,0.92455604738480801,118.10928150251151,28243,0.44098296525480996,118.97800994186538,37371.647328217172,3.8786686450883234,152.49065861785786,89453.245051871258,4.3787924638849063,137.89957768772456,0.21267882174730862,0.21267882174730862,118.27398225473604,118.27398225473604,0.21267882174730862,0.21267882174730862,118.27398225473604,118.27398225473604,"-","-"]
[null,null,2023,null,100,2536090,0.38243718008191802,180.79441211108485,68265.2,0.97984107167157897,119.26656475212931,28358,0.40718054031087353,119.4624652455978,37150.554015808935,-0.5916070824132591,151.58851308145597,89431.201072007898,-2.4643018652459325E-2,137.86559506907332,-0.5916070824132591,-0.5916070824132591,117.57426499906482,117.57426499906482,-0.5916070824132591,-0.5916070824132591,117.57426499906482,117.57426499906482,"-","-"]
[null,null,2024,null,103.83644513853338,2559803,0.93502202208912144,182.48487967903006,"-",0.98925483423148997,120.44641500956159,28609,0.88511178503420562,120.51984160417898,"-",-5.3701566796782174E-2,151.5071076748473,89475.444790101013,4.947235144194817E-2,137.93380042078343,-5.3701566796782174E-2,-5.3701566796782174E-2,117.51112577661054,117.51112577661054,-5.3701566796782174E-2,-5.3701566796782174E-2,117.51112577661053,117.51112577661053,1.0796847158218021,1.055839767554098]
[null,null,2025,null,107.35218079199443,"-",1.4833428018599548,185.19175600623174,"-",0.46775600366568693,121.00981034696889,"-",1.6725293934735523,122.53557137997664,"-",1.0108584471193005,153.03863007076464,"-",-0.18607444187942468,137.67714087148738,1.0108584471193005,1.0108584471193005,118.6989969178284,118.6989969178284,1.0108584471193005,1.0108584471193005,118.69899691782838,118.69899691782838,1.019946008202719,0.80052108434526326]
[null,null,2026,null,109.76846895421627,"-",1.3714665245198043,187.73159894602759,"-",0.38242558152143946,121.47258281788629,"-",0.62199535258982941,123.29773693922951,"-",0.98527300697186515,154.54647838309143,"-",0.74483831224350094,138.7026129638997,0.98527300697186515,0.98527300697186515,119.86850609400612,119.86850609400612,1.5,1.5,120.47948187159579,120.47948187159579,0.95882750763401237,0.54780616104240809]
[null,null,2027,null,112.02379237117708,"-",1.5426381121970589,190.62761814000595,"-",0.37396491243701924,121.92684765585618,"-",0.63747532424112285,124.08372958756483,"-",1.1643190550254312,156.34589247977652,"-",0.89942914907157334,139.95014469542096,1.1643190550254312,1.1643190550254312,121.26415795143295,121.26415795143295,1.5,1.5,122.28667409966972,122.28667409966972,0.89723487808083691,0.30002157459475653]
[null,null,2028,null,114.18299879546288,"-",1.4674361505844447,193.42495672159046,"-",0.4055775685072982,122.42135559993639,"-",0.61952534602880049,124.85245974265763,"-",1.0575693181513079,157.99935866883249,"-",0.84269012563884527,141.12949074558654,1.0575693181513079,1.0575693181513079,122.54661047984185,122.54661047984185,1.5,1.5,124.12097421116476,124.12097421116476,0.83386346125364563,5.4183748581949118E-2]
[null,null,2029,null,116.26899816682132,"-",1.5230852346862944,196.37098367761536,"-",0.43833217719631001,122.95796779329083,"-",0.58827118403522116,125.58693078588286,"-",1.0800189867512078,159.70578174140101,"-",0.92934697022553081,142.44107339192539,1.0800189867512078,1.0800189867512078,123.87013714064419,123.87013714064419,1.5,1.5,125.98278882433222,125.98278882433222,0.83728975915269532,2.4479922039241906E-2]
[null,null,2030,null,118.51378524529244,"-",1.5493637419621731,199.41348449845077,"-",0.4426985583699139,123.50230094411266,"-",0.56509856901184186,126.29662073461978,"-",1.1017875858334802,161.46540021848608,"-",0.97873435909268114,143.83519311867258,1.1017875858334802,1.1017875858334802,125.23492293421471,125.23492293421471,1.5,1.5,127.87253065669719,127.87253065669719,0.83828217816725947,-3.0972289173777012E-3]
[null,null,2031,null,121.07411999722073,"-",1.9823941419430753,203.3666457333926,"-",0.43242944091446134,124.0363612536018,"-",0.57378023768149211,127.02128578525456,"-",1.5432910561428592,163.95728129882326,"-",1.400577666398406,145.84971670991371,1.5432910561428592,1.5432910561428592,127.16766229902585,127.16766229902585,1.5,1.5,129.79061861654765,129.79061861654765,0.83881975625084804,-2.5028543389346933E-2]
[null,null,2032,null,123.8588247571568,"-",2.0124631398150399,207.45932451745534,"-",0.41935308375116165,124.5565115594915,"-",0.56775082311104019,127.74245018082658,"-",1.5864571988779996,166.55839339107308,"-",1.4365562567319579,147.94492994073582,1.5864571988779996,1.5864571988779996,129.18512283221361,129.18512283221361,1.5,1.5,131.73747789579585,131.73747789579585,0.83742739339681127,-4.4430252118016961E-2]
[null,null,2033,null,126.7075777265714,"-",2.0491176415077064,211.71041013509523,"-",0.40703603913092579,125.06350145062292,"-",0.55373552030048012,128.44980550197997,"-",1.6354248339098598,169.28233071955196,"-",1.487147258597199,150.14508891058301,1.6354248339098598,1.6354248339098598,131.2978484127286,131.2978484127286,1.5,1.5,133.71354006423277,133.71354006423277,0.83427354984363589,-6.3778745805083789E-2]
[null,null,2034,null,129.62185201428252,"-",2.0719125779840653,216.09686475158594,"-",0.39578220030589417,125.55848052844378,"-",0.53318130123061369,129.13467584638363,"-",1.6695227039857263,172.10853766475108,"-",1.5305705607215447,152.44316543981759,1.6695227039857263,1.6695227039857263,133.48989580182388,133.48989580182388,1.5,1.5,135.71924316519625,135.71924316519625,0.83134461712475305,-8.2576073148733845E-2]
[null,null,2035,null,132.603154610611,"-",2.0777282399865555,220.58677033625517,"-",0.38528212049526722,126.04223490468539,"-",0.51757799486126099,129.80304851229991,"-",1.6859504538322634,175.01020233659401,"-",1.552116829958905,154.8092614667311,1.6859504538322634,1.6859504538322634,135.74046930591496,135.74046930591496,1.5,1.5,137.75503181267419,137.75503181267419,0.82690958961062155,-0.1010677567839538]
[null,null,2036,null,135.65302716665505,"-",2.0954413233509115,225.20903667572622,"-",0.37569405597066563,126.51576808923488,"-",0.52316568431420873,130.48213351931,"-",1.7133104618148876,178.00867044247028,"-",1.5640928420164624,157.23062204411079,1.7133104618148876,1.7133104618148876,138.06612496744984,138.06612496744984,1.5,1.5,139.8213572898643,139.8213572898643,0.82060855884816364,-0.1189197059410961]
[null,null,2037,null,138.7730467914881,"-",2.1596475894250773,230.07275820746096,"-",0.3671120561324237,126.980222726799,"-",0.50478428067530645,131.14078681840525,"-",1.7859789891036648,181.18786789535559,"-",1.6465517742203284,159.81950564099577,1.7859789891036648,1.7859789891036648,140.53195695043811,140.53195695043811,1.5,1.5,141.91867764921224,141.91867764921224,0.81377046037718426,-0.1358194202772208]
[null,null,2038,null,141.96482686769235,"-",2.0933983294956278,234.88909748440048,"-",0.35962912987459461,127.43688059690422,"-",0.48874806874505927,131.78173488131725,"-",1.7275564035588165,184.3179905096535,"-",1.5968457081909637,162.37157655767604,1.7275564035588165,1.7275564035588165,142.95972577178193,142.95972577178193,1.5,1.5,144.04745781395042,144.04745781395042,0.80687865572271178,-0.15154673608701241]
[null,null,2039,null,145.23001788564923,"-",2.0364853737305282,239.67257959915796,"-",0.35290875821714085,127.88661650972941,"-",0.46427042650833511,132.39355850391084,"-",1.6776560204843527,187.41021237427449,"-",1.5649493501993739,164.91260948992385,1.6776560204843527,1.6776560204843527,145.35809821806015,145.35809821806015,1.5,1.5,146.20816968115966,146.20816968115966,0.80024462903536819,-0.16621430747044899]
[null,null,2040,null,148.57030829701912,"-",1.9675735881790928,244.38831397345851,"-",0.34680045569517315,128.3301278785583,"-",0.34680045569517293,132.85269996811346,"-",1.6151717096346552,190.43720910551002,"-",1.6151717096346552,167.57623130402538,1.6151717096346552,1.6151717096346552,147.70588109814122,147.70588109814122,1.5,1.5,148.40129222637705,148.40129222637705,0.79373005822945697,-0.1799639796936523]
[null,null,2041,null,151.98742538785055,"-",1.9173878860535183,249.07418590051603,"-",0.34104557929313106,128.76779210658935,"-",0.34104557929312429,133.30578822832626,"-",1.5709845334576533,193.42894820650599,"-",1.5709845334576533,170.20882797956284,1.5709845334576533,1.5709845334576533,150.02631764520038,150.02631764520038,1.5,1.5,150.6273116097727,150.6273116097727,0.78716797818645012,-0.1928512076109723]
[null,null,2042,null,155.48313617177109,"-",1.8688840934342466,253.72909374166159,"-",0.33551304960333095,129.19982485279306,"-",0.33551304960332173,133.75304654370885,"-",1.5282435871662337,196.385013703195,"-",1.5282435871662559,172.81003347795138,1.5282435871662337,1.5282435871662337,152.31908522367479,152.31908522367479,1.5,1.5,152.88672128391929,152.88672128391929,0.78062323155676894,-0.2049393463065167]
[null,null,2043,null,159.05924830372183,"-",1.8367581923391043,258.38948365730931,"-",0.3296945095435877,129.62578958167265,"-",0.32969450954359941,134.19402299451076,"-",1.5021113042980039,199.33493519397788,"-",1.5021113042980039,175.40583252578483,1.5021113042980039,1.5021113042980039,154.60708742142293,154.60708742142293,1.5,1.5,155.18002210317806,155.18002210317806,0.7735470370884141,-0.21696430576161851]
[null,null,2044,null,162.71761101470739,"-",1.8138563359163129,263.07629767796885,"-",0.32315709875747611,130.04468452252627,"-",0.32315709875747733,134.62768050592575,"-",1.4858974540558068,202.29684792106897,"-",1.4858974540558068,178.01218332555086,1.4858974540558068,1.4858974540558068,156.9043901972077,156.9043901972077,1.5,1.5,157.50772243472571,157.50772243472571,0.76552624800697633,-0.2293629127645708]
[null,null,2045,null,166.46011606804564,"-",1.7819003874423061,267.76405524556145,"-",0.3160698846434995,130.45571660688162,"-",0.31606988464349844,135.05319806039904,"-",1.4612120515530735,205.25283384280362,"-",1.4612120515530735,180.61331880153656,1.4612120515530735,1.4612120515530735,159.19709605618516,159.19709605618516,1.5,1.5,159.87033827124657,159.87033827124657,0.7570745478346973,-0.2420369932016263]
[null,null,2046,null,170.2886987376107,"-",1.7686530379165077,272.4998723431105,"-",0.30852554176579172,130.85820581330745,"-",0.30852554176579244,135.46987167138693,"-",1.455636485796763,208.24056898035127,"-",1.455636485796763,183.24239216822014,1.455636485796763,1.455636485796763,161.51442707070791,161.51442707070791,1.5,1.5,162.26839334531525,162.26839334531525,0.74829279317925146,-0.25510088214895799]
[null,null,2047,null,174.20533880857573,"-",1.7516279703404507,277.27305632621443,"-",0.30037175029491436,131.25126689651341,"-",0.3003717502949223,135.87678489604855,"-",1.4469101108204763,211.25362282775808,"-",1.4469101108204541,185.89374486781136,1.4469101108204763,1.4469101108204763,163.85139564642776,163.85139564642776,1.5,1.5,164.70241924549495,164.70241924549495,0.73919600482814929,-0.26866485473459534]
[null,null,2048,null,178.21206160117296,"-",1.7358304775698059,282.08604654401415,"-",0.29029736136674256,131.63228586107442,"-",0.29029736136676942,136.27123161731177,"-",1.4413489183250805,214.2985246353085,"-",1.4413489183250583,188.5731223486975,1.4413489183250805,1.4413489183250805,166.21306596523809,166.21306596523809,1.5,1.5,167.17295553417736,167.17295553417736,0.72840263357620916,-0.2840883397176534]
[null,null,2049,null,182.31093901799991,"-",1.7169303646954717,286.92926753169735,"-",0.27806794157225756,131.99831304881283,"-",0.27806794157223391,136.65015822602516,"-",1.4348725026907871,217.37343523897255,"-",1.4348725026908316,191.27890622874449,1.4348725026907871,1.4348725026907871,168.59801154465259,168.59801154465259,1.5,1.5,169.68054986719,169.68054986719,0.71570651613094938,-0.30166542469160657]
[null,null,2050,null,186.50409061541387,"-",1.7029932269453383,291.81565352388606,"-",0.26505917165922099,132.34818668398415,"-",0.26505917165924686,137.0123620034901,"-",1.4341327548855309,220.4908588741545,"-",1.4341327548855087,194.02209967615767,1.4341327548855309,1.4341327548855309,171.01593085230016,171.01593085230016,1.5,1.5,172.22575811519783,172.22575811519783,0.70266802402497586,-0.32021395686200249]
[null,null,2051,null,190.79368469956839,"-",1.6952617500353853,296.7626926786923,"-",0.25152235329140016,132.68107195767021,"-",0.25152235329139588,137.35697872070139,"-",1.44011718012238,223.66618561340059,"-",1.4401171801224022,196.81624526682822,1.44011718012238,1.44011718012238,173.47876065325033,173.47876065325033,1.5,1.5,174.80914448692579,174.80914448692579,0.68962331051105075,-0.3394649658006027]
[null,null,2052,null,195.18193944765844,"-",1.6847048229383006,301.7622680749318,"-",0.23786456203007678,132.99667320837915,"-",0.23786456203004694,137.68370229655309,"-",1.4434069073896438,226.89459878603935,"-",1.4434069073896882,199.65710454587463,1.4434069073896438,1.4434069073896438,175.98276506737329,175.98276506737329,1.5,1.5,177.43128165422965,177.43128165422965,0.67700944829298282,-0.35911984243883582]
[null,null,2053,null,199.67112405495456,"-",1.6663588809453955,306.79071042834067,"-",0.22429643195129856,133.29498000099949,"-",0.22429643195131982,137.99252192818275,"-",1.4388351929945475,230.15923812437669,"-",1.4388351929945253,202.52984123139456,1.4388351929945475,1.4388351929945475,178.51486702476757,178.51486702476757,1.5,1.5,180.09275087904308,180.09275087904308,0.66493112102564134,-0.37900906703261361]
[null,null,2054,null,204.2635599082185,"-",1.6483408942182791,311.84766716799379,"-",0.21099995070601452,133.57623234309517,"-",0.21099995070601149,138.28368608142921,"-",1.4343145405387725,233.46044554318789,"-",1.4343145405387725,205.43475619310655,1.4343145405387725,1.4343145405387725,181.07533171952727,181.07533171952727,1.5,1.5,182.79414214222871,182.79414214222871,0.653634342974724,-0.39898720395567366]
[null,null,2055,null,208.96162178610754,"-",1.6292884424305925,316.92856516715131,"-",0.19869560552208121,133.84164244678286,"-",0.19869560552207086,138.55844968882695,"-",1.4277559485811109,236.79369094201473,"-",1.4277559485811109,208.36786314510672,1.4277559485811109,1.4277559485811109,183.66064553956579,183.66064553956579,1.5,1.5,185.53605427436213,185.53605427436213,0.64384190249791928,-0.41847135732482843]
[null,null,2056,null,213.76773908718798,"-",1.6048862584470953,322.01490815861246,"-",0.18788141911667555,134.09310602398094,"-",0.18788141911666764,138.81877527040837,"-",1.4143475430952179,240.14277669205759,"-",1.4143475430952179,211.31490889809956,1.4143475430952179,1.4143475430952179,186.25824536738745,186.25824536738745,1.5,1.5,188.31909508847755,188.31909508847755,0.63604897505075553,-0.43697272385308794]
[null,null,2057,null,218.68439708619331,"-",1.5839641207692807,327.11550876737306,"-",0.17866280673068946,134.33268053083575,"-",0.17866280673069473,139.06679279057565,"-",1.4027950410455903,243.51148765492297,"-",1.4027950410455681,214.27922396111205,1.4027950410455903,1.4027950410455903,188.87106679693969,188.87106679693969,1.5,1.5,191.14388151480469,191.14388151480469,0.63031492877666084,-0.45427536760698151]
[null,null,2058,null,223.71413821917571,"-",1.5642901677733931,332.23254450828296,"-",0.17089066970528144,134.56224254822794,"-",0.17089066970526454,139.30444496411309,"-",1.3910223706232072,246.89878692324032,"-",1.3910223706232294,217.25989590200896,1.3910223706232072,1.3910223706232072,191.49830558771981,191.49830558771981,1.5,1.5,194.01103973752674,194.01103973752674,0.62633888548315875,-0.47033062253893948]
[null,null,2059,null,228.85956339821672,"-",1.5538473886302313,337.39493122530467,"-",0.16460074867212793,134.78373300689233,"-",0.16460074867216268,139.53374112345762,"-",1.386963687344922,250.32318344236074,"-",1.3869636873448998,220.27321176533317,1.386963687344922,1.386963687344922,194.15431754810228,194.15431754810228,1.5,1.5,196.92120533358963,196.92120533358963,0.62404074629973549,-0.48512771420790873]
[null,null,2060,null,234.1233333563757,"-",1.5335493390445549,342.56904896308015,"-",0.1598978990532407,134.99924936423588,"-",0.1598978990532326,139.75685264398442,"-",1.3714585066527896,253.75626203580504,"-",1.3714585066527896,223.29416746596613,1.3714585066527896,1.3714585066527896,196.8170634521494,196.8170634521494,1.5,1.5,199.87502341359345,199.87502341359345,0.62339143381201456,-0.49832360539026516]
[null,null,2061,null,239.50817002357229,"-",1.5422668655575791,347.85237789689347,"-",0.15663318248373415,135.21070298484423,"-",0.1566331824837239,139.97575825001979,"-",1.3834667151293445,257.26689545862678,"-",1.3834667151293445,226.38336794968293,1.3834667151293445,1.3834667151293445,199.53996201470488,199.53996201470488,1.5,1.5,202.87314876479735,202.87314876479735,0.62408802911325445,-0.50999651880295327]
[null,null,2062,null,245.01685793411446,"-",1.5182565733131668,353.13366948973919,"-",0.15466847321810029,135.41983131477835,"-",0.15466847321810326,140.19225661818055,"-",1.3614823161834932,260.76953874569028,"-",1.361482316183471,229.46553747109843,1.3614823161834932,1.3614823161834932,202.25666331125436,202.25666331125436,1.5,1.5,205.91624599626928,205.91624599626928,0.62585389120213741,-0.52017547792299235]
[null,null,2063,null,250.65224566659907,"-",1.5015522538562607,358.43615606308771,"-",0.15354088963559498,135.62775612852209,"-",0.15354088963559206,140.40750905619231,"-",1.3459447886182252,264.27935276274167,"-",1.3459447886182252,232.55401691436549,1.3459447886182252,1.3459447886182252,204.9789263307253,204.9789263307253,1.5,1.5,209.00498968621329,209.00498968621329,0.62808752986065375,-0.52923023022666382]
[null,null,2064,null,256.41724731693085,"-",1.4889334353358521,363.77303183504358,"-",0.15303621527538169,135.83531571336411,"-",0.15303621527538,140.62238339401435,"-",1.333855937416617,267.80445860093369,"-",1.333855937416617,235.65595247667861,1.333855937416617,1.333855937416617,207.71304991004052,207.71304991004052,1.5,1.5,212.14006453150648,212.14006453150648,0.6305482161515209,-0.53747369763756581]
[null,null,2065,null,262.31484400522021,"-",1.4909667808965992,369.19676689756454,"-",0.15314550961620377,136.04334139985212,"-",0.15314550961621903,140.8377402596976,"-",1.3357755909443103,271.38172519038551,"-",1.3357755909442881,238.80378716846934,1.3357755909443103,1.3357755909443103,210.48763012994482,210.48763012994482,1.5,1.5,215.32216549947907,215.32216549947907,0.63318875280635356,-0.54498497311473593]
[null,null,2066,null,268.34808541734026,"-",1.4887628601077267,374.69323124385397,"-",0.15362212610658954,136.25233407333701,"-",0.15362212610659068,141.05409819064505,"-",1.3330928084857696,274.99949545244317,"-",1.3330928084857696,241.98726328160387,1.3330928084857696,1.3330928084857696,213.29362558995925,213.29362558995925,1.5,1.5,218.55199798197123,218.55199798197123,0.63574305717843649,-0.55212558374180842]
[null,null,2067,null,274.52009138193904,"-",1.4870894129334999,380.26525461665972,"-",0.15398259003913672,136.46213894633192,"-",0.15398259003913806,141.27129694439535,"-",1.3310572265020859,278.65989610950714,"-",1.3310572265020859,245.2082522367283,1.3310572265020859,1.3310572265020859,216.13268580704269,216.13268580704269,1.5,1.5,221.83027795170077,221.83027795170077,0.63778630323085261,-0.55922868718622842]
[null,null,2068,null,280.83405348372361,"-",1.5080103165244054,385.99969388643672,"-",0.15411672242970909,136.67244992223348,"-",0.15411672242971561,141.48901963698,"-",1.3518102284771016,282.42684908777915,"-",1.3518102284770794,248.52300247153428,1.3518102284771016,1.3518102284771016,219.05438956086456,219.05438956086456,1.5,1.5,225.15773212097625,225.15773212097625,0.63901642411831472,-0.56647716207626486]
[null,null,2069,null,287.29323671384918,"-",1.5613308715183081,392.02642627105183,"-",0.15358943355801014,136.88236436389892,"-",0.15358943355799412,141.7063318207872,"-",1.4055826115889625,286.39659176901557,"-",1.4055826115889847,252.01619858007302,1.4055826115889625,1.4055826115889625,222.13337997045443,222.13337997045443,1.5,1.5,228.53509810279087,228.53509810279087,0.63915271897712633,-0.57417454539843682]
[null,null,2070,null,293.90098115826771,"-",1.5976118067006126,398.28948674254463,"-",0.15228916113319002,137.09082136832797,"-",0.15228916113317814,141.9221352047897,"-",1.4431249227285115,290.52965236267926,"-",1.4431249227285115,255.65310715109501,1.4431249227285115,1.4431249227285115,225.33904213850727,225.33904213850727,1.5,1.5,231.96312457433271,231.96312457433271,0.63802440559404672,-0.58267351828115799]
[null,null,2071,null,300.66070372490782,"-",1.6026513485168863,404.67267857282502,"-",0.14999478970676439,137.29645045754668,"-",0.14999478970678728,142.13501101303748,"-",1.4504809130148955,294.74372951684848,"-",1.4504809130148955,259.36130667385117,1.4504809130148955,1.4504809130148955,228.6075419342969,228.6075419342969,1.5,1.5,235.44257144294767,235.44257144294767,0.63550673090223875,-0.59198031333018963]
[null,null,2072,null,307.57589991058069,"-",1.5975810192415878,411.137652475761,"-",0.1465551632202855,137.4976654946104,"-",0.1465551632202749,142.34331721042079,"-",1.4489024147225082,299.01427853106128,"-",1.4489024147225082,263.11919890910445,1.4489024147225082,1.4489024147225082,231.91984212962069,231.91984212962069,1.5,1.5,238.97421001459185,238.97421001459185,0.63150378728698697,-0.6022535371187534]
[null,null,2073,null,314.65014560852399,"-",1.5979982555183625,417.70762499010277,"-",0.14196166679565358,137.69285947235167,"-",0.14196166679566297,142.54539015610496,"-",1.4539725051196939,303.36186392728496,"-",1.4539725051196717,266.944879716934,1.4539725051196939,1.4539725051196939,235.29189286810237,235.29189286810237,1.5,1.5,242.55882316481069,242.55882316481069,0.62603783047158756,-0.61327442013686373]
[null,null,2074,null,321.88709895752004,"-",1.3597096559370137,423.38723590067838,"-",0.13626092587378699,137.88048103753079,"-",0.13626092587375707,142.73962382452203,"-",1.2217839159871291,307.0682903879873,"-",1.2217839159871513,270.20636932186676,1.2217839159871291,1.2217839159871291,238.1666513707865,238.1666513707865,1.5,1.5,246.19720551228284,246.19720551228284,0.61917891604128106,-0.62507577990471364]
[null,null,2075,null,329.29050223354295,"-",1.3248238933885048,428.99637116344769,"-",0.1296488197635938,138.0592414538803,"-",0.12964881976356882,142.92468406214547,"-",1.1936275495944892,310.73354209812715,"-",1.1936275495945114,273.43162698685165,1.1936275495944892,1.1936275495944892,241.00947413549486,241.00947413549486,1.5,1.5,249.89016359496705,249.89016359496705,0.61107306632730185,-0.63748743356637938]
[null,null,2076,null,336.86418378491442,"-",1.2548813754025723,434.37976672633073,"-",0.1221530511077492,138.22788502965241,"-",0.12215305110774867,143.09927092451349,"-",1.1313463502094612,314.24901468553088,"-",1.1313463502094612,276.52508571908572,1.1313463502094612,1.1313463502094612,243.73612602478579,243.73612602478579,1.5,1.5,253.63851604889152,253.63851604889152,0.60188837747138835,-0.65028070601360577]
[null,null,2077,null,344.61206001196734,"-",1.2600030428905118,439.85296500478324,"-",0.11406728476315869,138.38555782489126,"-",0.11406728476316384,143.26250037737296,"-",1.1446301096407208,317.84600352687073,"-",1.1446301096406986,279.69027511093611,1.1446301096407208,1.1446301096407208,246.52600311133733,246.52600311133733,1.5,1.5,257.44309378962487,257.44309378962487,0.59179924536349171,-0.66315918139691599]
[null,null,2078,null,352.53813739224262,"-",1.2427888647134955,445.31940867497485,"-",0.10558358343433451,138.53167025579839,"-",0.10558358343432882,143.41376205898899,"-",1.1360058455993416,321.45675270693988,"-",1.1360058455993638,282.86757298576924,1.1360058455993416,1.1360058455993416,249.32655291760454,249.32655291760454,1.5,1.5,261.3047401964692,261.3047401964692,0.58116974260200294,-0.67592523623040224]
[null,null,2079,null,360.64651455226414,"-",1.2185480613696287,450.74583969628651,"-",9.6876208363264937E-2,138.66587448532451,"-",9.6876208363281521E-2,143.55269587394289,"-",1.1205862715150783,325.05895294663202,"-",1.1205862715150561,286.03734817521558,1.1205862715150783,1.1205862715150783,252.12047204084101,252.12047204084101,1.5,1.5,265.22431129941623,265.22431129941623,0.57011627465789783,-0.68840346093737093]
[null,null,2080,null,368.94138438696615,"-",1.2165868739989039,456.22955441712764,"-",8.8068077952470972E-2,138.78799485575971,"-",8.8068077952496618E-2,143.67911997404809,"-",1.1275258057408921,328.7240765249764,"-",1.1275258057408699,289.26249308994801,1.1275258057408921,1.1275258057408921,254.96319542465724,254.96319542465724,1.5,1.5,269.20267596890744,269.20267596890744,0.55887347804310561,-0.70052557166124874]
[null,null,2081,null,377.42703622786632,"-",1.253535670203898,461.94855461975862,"-",7.9326489122597987E-2,138.89809049940243,"-",7.9326489122581903E-2,143.79309557552574,"-",1.1732784604709945,332.58092530922613,"-",1.1732784604709945,292.65634761559375,1.1732784604709945,1.1732784604709945,257.95462367870334,257.95462367870334,1.5,1.5,273.24071610844101,273.24071610844101,0.54764967737250225,-0.71213742478627773]
[null,null,2082,null,386.10785806110727,"-",1.2879908669656492,467.89840981334089,"-",7.0785436996968695E-2,138.99641011974288,"-",7.0785436996989554E-2,143.89488014660037,"-",1.2163444352447872,336.62625488691054,"-",1.2163444352447872,296.21605681420669,1.2163444352447872,1.2163444352447872,261.0922403892759,261.0922403892759,1.5,1.5,277.33932685006761,277.33932685006761,0.5365507952962183,-0.72313300133225877]
[null,null,2083,null,394.98833879651272,"-",1.2932853760344587,473.94967152215463,"-",6.2455880329044824E-2,139.08322155130892,"-",6.2455880329047815E-2,143.98475096074438,"-",1.2300612501230601,340.76696400601492,"-",1.2300612501230601,299.85969574572073,1.2300612501230601,1.2300612501230601,264.30383486538256,264.30383486538256,1.5,1.5,281.4994167528186,281.4994167528186,0.52576627115514873,-0.73345640792201161]
[null,null,2084,null,404.07307058883248,"-",1.2791972946285091,480.01242289816668,"-",5.4531472996774973E-2,139.15906568071222,"-",5.4531472996769415E-2,144.063267966334,"-",1.2239983572980506,344.93794604766299,"-",1.2239983572980506,303.52997349584729,1.2239983572980506,1.2239983572980506,267.53890946241057,267.53890946241057,1.5,1.5,285.72190800411084,285.72190800411084,0.51538513115071261,-0.74303330642887033]
[null,null,2085,null,413.36675121237556,"-",1.3208503657543114,486.3526687416832,"-",4.7074296715365435E-2,139.22457383219708,"-",4.7074296715339477E-2,144.13108473655427,"-",1.2731767300473207,349.32961570984503,"-",1.2731767300473651,307.39444648711537,1.2731767300473207,1.2731767300473207,270.94515260150837,270.94515260150837,1.5,1.5,290.00773662417248,290.00773662417248,0.50551424961223945,-0.75181110952634278]
[null,null,2086,null,422.87418649026023,"-",1.3533973764203511,492.9349530005835,"-",4.0134109987319769E-2,139.28045037578829,"-",4.0134109987321143E-2,144.18893046462836,"-",1.312736411357851,353.9153927709246,"-",1.312736411357851,311.42972531264365,1.312736411357851,1.312736411357851,274.50194827451747,274.50194827451747,1.5,1.5,294.35785267353504,294.35785267353504,0.49624198677538273,-0.75977258006414472]
[null,null,2087,null,432.60029277953612,"-",1.3691267049390499,499.68385708009322,"-",3.3800871050785962E-2,139.32752838121877,"-",3.3800871050784984E-2,144.23766757908422,"-",1.334874634634331,358.63971957709015,"-",1.334874634634331,315.58692172055351,1.334874634634331,1.334874634634331,278.16620515361103,278.16620515361103,1.5,1.5,298.77322046363804,298.77322046363804,0.48767176097698856,-0.76687237579346734]
[null,null,2088,null,442.5500995134654,"-",1.3949954668033282,506.65442423470847,"-",2.8083602805924049E-2,139.36665657088867,"-",2.8083602805899822E-2,144.27817471274361,"-",1.3665280936753454,363.54063210018955,"-",1.3665280936753676,319.89950566583019,1.3665280936753454,1.3665280936753454,281.96742449414575,281.96742449414575,1.5,1.5,303.25481877059258,303.25481877059258,0.47981309438802172,-0.77323825753496844]
[null,null,2089,null,452.72875180227504,"-",1.435913849323156,513.92954528050313,"-",2.2906830920307968E-2,139.39858105526864,"-",2.2906830920310449E-2,144.31122427027995,"-",1.412683417400995,368.67631032538367,"-",1.412683417400995,324.41867293471915,1.412683417400995,1.412683417400995,285.95073154244722,285.95073154244722,1.5,1.5,307.80364105215142,307.80364105215142,0.47268217713004618,-0.77886133022645887]
[null,null,2090,null,463.14151309372738,"-",1.4238239586065404,521.24699727656457,"-",1.8299060014455699E-2,139.42408968527525,"-",1.8299060014445919E-2,144.33763186781675,"-",1.4052677478035402,373.85719960817835,"-",1.4052677478035625,328.9776239133231,1.4052677478035402,1.4052677478035402,289.9691049474215,289.9691049474215,1.5,1.5,312.42069566793367,312.42069566793367,0.46625992750098411,-0.78385826409944159]
[null,null,2091,null,473.7937678948831,"-",1.4933928624980108,529.03126272987799,"-",1.4224177046915532E-2,139.44392161463813,"-",1.4224177046908093E-2,144.35816270811895,"-",1.4789583158018038,379.38639175100724,"-",1.4789583158018038,333.84306583931641,1.4789583158018038,1.4789583158018038,294.25762713829744,294.25762713829744,1.5,1.5,317.10700610295265,317.10700610295265,0.46051232683937376,-0.78819355000350666]
[null,null,2092,null,484.69102455646532,"-",1.4953891780065343,536.94233898101197,"-",1.0699978926813569E-2,139.45884208486561,"-",1.0699978926828595E-2,144.37360900110787,"-",1.4845303546446198,385.01849789794193,"-",1.4845303546445976,338.79906748857718,1.4845303546446198,1.4845303546446198,298.62597093402246,298.62597093402246,1.5,1.5,321.86361119449691,321.86361119449691,0.45537699979961277,-0.79195077115259782]
[null,null,2093,null,495.83891812126399,"-",1.4895155448151787,544.94017858682832,"-",7.5885774363026876E-3,139.46942502708899,"-",7.5885774363022634E-3,144.3845649042245,"-",1.4818145187366571,390.72375789961546,"-",1.4818145187366571,343.81944125996728,1.4818145187366571,1.4818145187366571,303.05105392804114,303.05105392804114,1.5,1.5,326.69156536241434,326.69156536241434,0.45085721308758236,-0.79523594762760352]
[null,null,2094,null,507.24321323805299,"-",1.4900765291433915,553.06020428582281,"-",4.840858220063804E-3,139.47617654421489,"-",4.8408582200566725E-3,144.39155435630317,"-",1.4851637762505865,396.52664561714562,"-",1.4851637762505865,348.92572305726748,1.4851637762505865,1.4851637762505865,307.55185840452606,307.55185840452606,1.5,1.5,331.59193884285054,331.59193884285054,0.44675147868959969,-0.79800463374181829]
[null,null,2095,null,518.90980714252817,"-",1.4923240484123301,561.31365471657841,"-",2.3916323094893038E-3,139.47951230151716,"-",2.3916323094960567E-3,144.39500767136934,"-",1.4898967832499999,402.43448335492462,"-",1.4898967832499777,354.12435618102944,1.4898967832499999,1.4898967832499999,312.1340636497207,312.1340636497207,1.5,1.5,336.56581792549326,336.56581792549326,0.44302696970897554,-0.80036879044908471]
[null,null,2096,null,530.84473270680621,"-",1.4930027504666876,569.69408302024203,"-",1.8204899183751699E-4,139.47976622256311,"-",1.8204899183080672E-4,144.39527054102507,"-",1.4928179838147759,408.44209769551907,"-",1.4928179838147759,359.41078825516814,1.4928179838147759,1.4928179838147759,316.79365708549557,316.79365708549557,1.5,1.5,341.61430519437562,341.61430519437562,0.43959300241566579,-0.80236349136533791]
[null,null,2097,null,543.05416155906278,"-",1.4908386357787018,578.18730251565296,"-",-1.820486604106936E-3,139.47722701210358,"-",-1.8204866040881034E-3,144.39264184446793,"-",1.4926862965368715,414.53885691710786,"-",1.4926862965368493,364.77566383972805,1.4926862965368715,1.4926862965368715,321.52239259310875,321.52239259310875,1.5,1.5,346.73851977229123,346.73851977229123,0.43642292332060462,-0.80394901485965165]
[null,null,2098,null,555.54440727492101,"-",1.4873876112792228,586.78718882326029,"-",-3.6422864241698982E-3,139.47214685199933,"-",-3.6422864241645084E-3,144.38738265087653,"-",1.4910842072610286,420.71998034555924,"-",1.4910842072610286,370.21477615517381,1.4910842072610286,1.4910842072610286,326.31656221187239,326.31656221187239,1.5,1.5,351.93959756887557,351.93959756887557,0.43340750291716285,-0.80513751367101094]
[null,null,2099,null,568.3219286422443,"-",1.4829769102672863,595.48910734591573,"-",-5.3408014272145346E-3,139.4646979215897,"-",-5.3408014272197145E-3,144.3796712074832,"-",1.488397204033598,426.98196476983327,"-",1.4883972040336202,375.72504253238674,1.488397204033598,1.488397204033598,331.17344880013246,331.17344880013246,1.5,1.5,357.21869153240868,357.21869153240868,0.43053430325327513,-0.80608118071544421]
[null,null,2100,null,581.39333300101578,"-",1.4779591554712423,604.2901931277687,"-",-6.9846898242722751E-3,139.45495674502553,"-",-6.9846898242763257E-3,144.36958673528005,"-",1.4850475712621103,433.32285006737499,"-",1.4850475712621103,381.30473815113749,1.4850475712621103,1.4850475712621103,336.09153205820382,336.09153205820382,1.5,1.5,362.57697190539477,362.57697190539477,0.42772021837848689,-0.8065914515276863]

{"sheet":"TAG - A1.1.1","index":23,"n_rows":17,"n_cols":7,"rows_kept":17,"cut":false,"hidden":true,"merged":[[10,4,10,5],[10,6,10,7]]}
[]
[null,"File Name",null,null,null,null,{"$f":"IFERROR(MID(CELL(\"filename\",G2),FIND(\"[\",CELL(\"filename\",G2))+1,FIND(\"]\",CELL(\"filename\",G2))-FIND(\"[\",CELL(\"filename\",G2))-1),\"Please save the file to show here\")","v":"structures-fund-economic-tool Final 03082026.xlsm"}]
[null,"Sheet Name",null,null,null,null,{"$f":"IFERROR(MID(CELL(\"filename\",G2),FIND(\"]\",CELL(\"filename\",G2))+1,255),\"Please save the file to show here\")","v":"TAG - A1.1.1"}]
[null,"Description and Purpose of Sheet",null,null,null,null,"TAG - A1.1.1 table"]
[null,"Version number",null,null,null,null,{"$f":"Version_Number","v":1}]
[]
[]
[null,"TAG Data Book v2.02 - A1.1.1"]
[]
[null,"Table A 1.1.1:  Green Book Discount Rates"]
[null,"Years from current year",null,null,"Discount rate (standard)",null,"Discount rate (health)"]
[30,null,"0-30",null,3.5000000000000003E-2,null,1.4999999999999999E-2]
[null,null,"31-75",null,0.03,null,1.29E-2]
[null,null,"76-125",null,2.5000000000000001E-2,null,1.0699999999999999E-2]
[null,null,"126-200",null,0.02,null,8.6E-3]
[null,null,"201-300",null,1.4999999999999999E-2,null,6.4000000000000003E-3]
[null,null,"301 and over",null,0.01,null,4.3E-3]

{"sheet":"TAG - A1.3.4","index":24,"n_rows":33,"n_cols":19,"rows_kept":33,"cut":false,"hidden":true,"merged":[]}
[]
[null,"File Name",null,null,null,null,{"$f":"IFERROR(MID(CELL(\"filename\",G2),FIND(\"[\",CELL(\"filename\",G2))+1,FIND(\"]\",CELL(\"filename\",G2))-FIND(\"[\",CELL(\"filename\",G2))-1),\"Please save the file to show here\")","v":"structures-fund-economic-tool Final 03082026.xlsm"}]
[null,"Sheet Name",null,null,null,null,{"$f":"IFERROR(MID(CELL(\"filename\",G2),FIND(\"]\",CELL(\"filename\",G2))+1,255),\"Please save the file to show here\")","v":"TAG - A1.3.4"}]
[null,"Description and Purpose of Sheet",null,null,null,null,"TAG - A1.3.4 table"]
[null,"Version number",null,null,null,null,{"$f":"Version_Number","v":1}]
[]
[]
[null,"TAG Data Book v2.02 - A1.3.4"]
[]
[null,"Table A 1.3.4:",null,null," Proportion of travel in work and non-work time",null,null,null,null,null,null,"Proportion of trips made in work and non-work time"]
[null,null,null,null,"Weekday",null,null,null,null,"Weekend","All Week","Weekday",null,null,null,null,"Weekend","All Week"]
[null,"Mode / Vehicle Type ",null,null,"7am – 10am","10am – 4pm","4pm – 7pm","7pm – 7am","Average","Average","Average","7am – 10am","10am – 4pm","4pm – 7pm","7pm – 7am","Average","Average","Average"]
[null,"& Journey Purpose",null,null,"Percentage of Distance Travelled by Vehicles",null,null,null,null,null,null,"Percentage of Vehicle Trips"]
[null,"Car","Work ",null,16.459385289942354,16.469988489431714,11.806951255862748,12.87839002123401,14.849800189287379,3.4734156577865827,12.059245195845831,6.9515649524418661,7.1900684892442879,5.1143393605159027,4.3088671199828381,6.2432133338518145,2.0480225695361778,5.2842550876349348]
[null,null,"Commuting ",null,44.0642044603279,11.805618519478546,41.265765973847898,38.544312764290439,31.208976947723109,7.8885077503504997,25.488591248387817,38.301883054042669,11.281736317334822,32.577420727763638,28.755829192894218,25.157566816563381,8.3873910932897324,21.324153938862427]
[null,null,"Other ",null,39.476410249729753,71.724392991089715,46.927282770289352,48.577297214475557,53.941222862989513,88.638076591862927,62.452163555766383,54.746551993515482,81.528195193420871,62.308239911720442,66.935303687122939,68.599219849584813,89.564586337174106,73.391590973502645]
[null,"LGV","Work (freight)",null,88,88,88,88,88,88,88,88,88,88,88,88,88,88]
[null,null,"Non – Work",null,12,12,12,12,12,12,12,12,12,12,12,12,12,12]
[null,"OGV1","Work ",null,100,100,100,100,100,100,100,100,100,100,100,100,100,100]
[null,"OGV2","Work ",null,100,100,100,100,100,100,100,100,100,100,100,100,100,100]
[null,null,null,null,"Percentage of Distance Travelled  by Occupants",null,null,null,null,null,null,"Percentage of Person Trips"]
[null,"Car","Work ",null,13.707109449031424,11.710206944296946,9.4299458510915066,10.398251832525704,11.485345199364792,2.2040849409950423,8.6480052616501482,5.3489439523393312,5.096653185807388,3.9052898141362329,3.4216248543363461,4.6540517356340283,1.3414680228859601,3.7834758750926478]
[null,null,"Commuting ",null,36.073485614974651,8.1261077675954354,32.060324375697427,30.113600843965006,23.504141644346408,4.4335642053449007,17.674138095978513,31.006276852149849,8.4039563677917908,25.792590539002507,23.742440586135078,19.747044079467098,5.9648569465853427,16.124965223866759]
[null,null,"Other ",null,50.219404935993929,80.163685288107629,58.509729773211063,59.488147323509295,65.010513156288823,93.362350853660061,73.677856642371339,63.644779195510814,86.499390446400824,70.302119646861257,72.835934559528567,75.598904184898871,92.693675030528695,80.091558901040614]
[null,"PSV","Work",null,1.3835381428658444,1.6564763011460604,2.2880691135519755,2.2765239177919931,1.7657061929367741,0.53791427908036671,1.4625141523936813,2.0620311603752706,1.6971566002284895,2.5522125273356004,3.0542035378127141,2.0425526970517467,1.0351145668376249,1.8634978515394973,{"$f":"\"Bus\"&C25","v":"BusWork"}]
[null,null,"Commuting",null,18.435993097170936,6.4612289194085237,25.92796645541091,35.442886105889464,16.000106181879431,6.0614576256284254,13.545374398079296,25.623264775499742,7.1975731902045395,33.495222288334006,46.344935501346981,19.606410626116272,10.564070540514182,17.999289793045776,{"$f":"\"Bus\"&C26","v":"BusCommuting"}]
[null,null,"Other",null,80.180468759963233,91.882294779445417,71.783964431037106,62.280589976318538,82.234187625183793,93.400628095291225,84.992111449527002,72.314704064124996,91.105270209566996,63.952565184330403,50.600860960840315,78.351036676831981,88.400814892648171,80.137212355414718,"BusOther"]
[null,"Heavy Rail","Work",null,17.095763351895148,15.761291414217771,15.721088702465865,17.717640128986556,16.44148885167294,1.8492375471835516,12.179493858306254,9.0268728217372605,11.135963461038441,7.7729247010364686,8.1026517319291074,8.9517958945516174,2.2603582152230248,7.8384787304505457,{"$f":"$B$28&C28","v":"Heavy RailWork"}]
[null,null,"Commuting",null,31.240592139668948,5.4870791527197555,38.148455568347032,38.550056446297575,27.236732211776136,2.7903948162008922,20.096601909304603,60.518630692255329,13.697403581896934,60.74338277824728,59.55748319014279,49.968167233959306,10.686962187466062,43.432585210990496,{"$f":"$B$28&C29","v":"Heavy RailCommuting"}]
[null,null,"Other",null,51.663644508435894,78.751629433062462,46.130455729187105,43.732303424715866,56.321778936550935,95.36036763661555,67.723904232389145,30.454496486007411,75.166632957064621,31.483692520716247,32.339865077928096,41.080036871489071,87.052679597310913,48.728936058558951,"Heavy RailOther"]
[null,"Light Rail","Work",null,4.5008390781006646,3.2169908590276095,5.2139820322458004,2.4938726123871469,3.9317225935534537,0.70816836393730676,3.0634255554530738,3.7863186661884214,3.5032089256733219,4.4548951366615386,0.59299205326845184,3.4648699159114247,0.98220081224650002,2.9611340750221973,{"$f":"$B$31&C31","v":"Light RailWork"}]
[null,null,"Commuting",null,50.081493196827211,10.74492752850948,45.856382354256567,54.706195642057139,34.473255631310224,7.5870535223892785,27.209783429130745,55.027631543558641,15.010141939553231,50.164851544861698,60.077717233172343,40.548040409691566,12.769996064470817,34.911849704356776,{"$f":"$B$31&C32","v":"Light RailCommuting"}]
[null,null,"Other",null,45.417667725072128,86.038081612462918,48.929635613497602,42.799931745555703,61.595021775136296,91.704778113673413,69.726791015416183,41.186049790252952,81.486649134773444,45.380253318476761,39.329290713559203,55.987089674397019,86.247803123282665,62.12701622062103,"Light RailOther"]

{"sheet":"TAG - A1.3.6","index":25,"n_rows":95,"n_cols":95,"rows_kept":95,"cut":false,"hidden":true,"merged":[[10,69,10,81],[10,82,10,94],[11,4,11,16],[11,17,11,29],[11,30,11,42],[11,43,11,55],[11,56,11,68]]}
[]
[null,"File Name",null,null,null,null,{"$f":"IFERROR(MID(CELL(\"filename\",G2),FIND(\"[\",CELL(\"filename\",G2))+1,FIND(\"]\",CELL(\"filename\",G2))-FIND(\"[\",CELL(\"filename\",G2))-1),\"Please save the file to show here\")","v":"structures-fund-economic-tool Final 03082026.xlsm"}]
[null,"Sheet Name",null,null,null,null,{"$f":"IFERROR(MID(CELL(\"filename\",G2),FIND(\"]\",CELL(\"filename\",G2))+1,255),\"Please save the file to show here\")","v":"TAG - A1.3.6"}]
[null,"Description and Purpose of Sheet",null,null,null,null,"TAG - A1.3.6 table"]
[null,"Version number",null,null,null,null,{"$f":"Version_Number","v":1}]
[]
[]
[null,"TAG Data Book v2.02 - A1.3.6"]
[]
[null,"Table A 1.3.6:  Market Price Values of Time per Vehicle based on distance travelled (£ per hour, 2023 prices)"]
[null,null,null,null,"Weekdays",null,null,null,null,null,null,null,null,null,null,null,null,null,null,null,null,null,null,null,null,null,null,null,null,null,null,null,null,null,null,null,null,null,null,null,null,null,null,null,null,null,null,null,null,null,null,null,null,null,null,null,null,null,null,null,null,null,null,null,null,null,null,null,null,"Weekend average",null,null,null,null,null,null,null,null,null,null,null,null,"All Week"]
[null,null,null,null,"AM peak 7am - 10am",null,null,null,null,null,null,null,null,null,null,null,null,"IP 10am - 4pm",null,null,null,null,null,null,null,null,null,null,null,null,"PM peak 4pm - 7pm",null,null,null,null,null,null,null,null,null,null,null,null,"Night 7pm - 7am",null,null,null,null,null,null,null,null,null,null,null,null,"Average Weekday"]
[null,null,null,null,"Car",null,null,null,"LGV",null,null,"OGV1","OGV2","PSV (occupants)",null,null,null,"Car",null,null,null,"LGV",null,null,"OGV1","OGV2","PSV (occupants)",null,null,null,"Car",null,null,null,"LGV",null,null,"OGV1","OGV2","PSV (occupants)",null,null,null,"Car",null,null,null,"LGV",null,null,"OGV1","OGV2","PSV (occupants)",null,null,null,"Car",null,null,null,"LGV",null,null,"OGV1","OGV2","PSV (occupants)",null,null,null,"Car",null,null,null,"LGV",null,null,"OGV1","OGV2","PSV (occupants)",null,null,null,"Car",null,null,null,"LGV",null,null,"OGV1","OGV2","PSV (occupants)"]
[null,null,"Year",null,"Work","Commuting","Other","Average","Work","Non-work","Average","Work","Work","Work","Commuting","Other","Total","Work","Commuting","Other","Average","Work","Non-work","Average","Work","Work","Work","Commuting","Other","Total","Work","Commuting","Other","Average","Work","Non-work","Average","Work","Work","Work","Commuting","Other","Total","Work","Commuting","Other","Average","Work","Non-work","Average","Work","Work","Work","Commuting","Other","Total","Work","Commuting","Other","Average","Work","Non-work","Average","Work","Work","Work","Commuting","Other","Total","Work","Commuting","Other","Average","Work","Non-work","Average","Work","Work","Work","Commuting","Other","Total","Work","Commuting","Other","Average","Work","Non-work","Average","Work","Work","Work","Commuting","Other","Total"]
[null,null,1,2,3,4,5,6,7,8,9,10,11,12,13,14,15,16,17,18,19,20,21,22,23,24,25,26,27,28,29,30,31,32,33,34,35,36,37,38,39,40,41,42,43,44,45,46,47,48,49,50,51,52,53,54,55,56,57,58,59,60,61,62,63,64,65,66,67,68,69,70,71,72,73,74,75,76,77,78,79,80,81,82,83,84,85,86,87,88,89,90,91,92,93]
[null,null,2010,null,27.766216712835202,15.647676975903655,10.795684839106833,15.726921801513445,21.424846448087781,12.386533399011782,20.340248882198658,21.538192582140741,21.538192582140741,22.503722479876586,31.079278576492293,61.694603117063167,115.27760417343205,28.452670066422282,15.902109662682644,11.499954511444503,14.81176645578619,21.424846448087781,12.386533399011782,20.340248882198658,21.538192582140741,21.538192582140741,22.967119395012677,10.892298151467672,70.698535411075454,104.55795295755581,28.166925580932116,15.701651400129737,11.305324052000344,15.110343280402477,21.424846448087781,12.386533399011782,20.340248882198658,21.538192582140741,21.538192582140741,24.039443480201765,43.709199072835368,55.233939938669963,122.98258249170709,28.699861337255239,15.931460022450564,11.264961566099529,15.308965718596927,21.424846448087781,12.386533399011782,20.340248882198658,21.538192582140741,21.538192582140741,24.019841940667945,59.749389416340236,47.921599111480127,131.69083046848831,28.217042704566957,15.755037145664485,11.292951050003719,15.198716265540547,21.424846448087781,12.386533399011782,20.340248882198658,21.538192582140741,21.538192582140741,23.152570909800502,26.972876083165559,63.274830474964006,113.40027746793007,32.248547489293564,16.680676019254303,13.371126273839643,14.287891666292289,22.496088770492172,17.222371780817749,21.863242731731237,21.538192582140741,21.538192582140741,21.068014507371903,10.218366275881159,71.86681208455002,103.15319286780309,28.503210191966971,15.829921940692531,12.02627346574455,14.982764078629115,21.424846448087781,13.489443907142968,20.472598143174402,21.538192582140741,21.538192582140741,22.637808675136192,22.834705031723722,65.396906067703725,110.86941977456364]
[null,null,2011,null,27.849065753232907,15.694366628848254,10.827897082445784,15.773847905747973,21.488774061534354,12.423492427912818,20.40094026549977,21.602458398610654,21.602458398610654,22.570869251513351,31.172013155097119,61.878687924828938,115.62157033143941,28.537567351354365,15.949558493737946,11.534268159779961,14.855961912810388,21.488774061534354,12.423492427912818,20.40094026549977,21.602458398610654,21.602458398610654,23.035648853752239,10.924798670314289,70.909486217838491,104.86993374190502,28.25097025937961,15.748502102355893,11.33905696054817,15.155429633138546,21.488774061534354,12.423492427912818,20.40094026549977,21.602458398610654,21.602458398610654,24.111172547385358,43.839618900541396,55.398747372416864,123.34953882034361,28.785496193308191,15.978996429323891,11.298574040766876,15.354644722416005,21.488774061534354,12.423492427912818,20.40094026549977,21.602458398610654,21.602458398610654,24.091512520634591,59.927670081246369,48.064587929213936,132.0837705310949,28.301236922854308,15.802047140668414,11.326647039897741,15.244066306235677,21.488774061534354,12.423492427912818,20.40094026549977,21.602458398610654,21.602458398610654,23.221653720125531,27.05335794799316,63.463630376671688,113.73864204479038,32.344770941027726,16.730447942295633,13.411023138157924,14.330523981890087,22.56321276461107,17.273760019632203,21.928478435213606,21.602458398610654,21.602458398610654,21.130877403065341,10.248855911870985,72.081248803791425,103.46098211872774,28.588258278895097,15.877155377495269,12.062157548423217,15.027469759610337,21.488774061534354,13.529693808480397,20.533684431167881,21.602458398610654,21.602458398610654,22.705355534142537,22.902839391518167,65.592037834077303,111.20023275973801]
[null,null,2012,null,28.080419092308865,15.824746015950128,10.917848758648921,15.904887575638783,21.667289911072601,12.526699353475438,20.570419044160939,21.781918669452519,21.781918669452519,22.758374499030619,31.430971548640869,62.392738959642791,116.58208500731428,28.774640348859656,16.082057861832016,11.63008794333061,14.979376336266046,21.667289911072601,12.526699353475438,20.570419044160939,21.781918669452519,21.781918669452519,23.227015211508,11.015555346804105,71.498559709711486,105.7411302680236,28.485662380097676,15.879331214510286,11.433255046510562,15.281331854844147,21.667289911072601,12.526699353475438,20.570419044160939,21.781918669452519,21.781918669452519,24.311473711068981,44.203812166711572,55.858966946703525,124.37425282448407,29.024628834966272,16.11174035013487,11.392435818906593,15.482201903627502,21.667289911072601,12.526699353475438,20.570419044160939,21.781918669452519,21.781918669452519,24.291650360604756,60.425513229709232,48.46387970464604,133.18104329496003,28.536346628871001,15.933321072893769,11.420742031680758,15.370704868271947,21.667289911072601,12.526699353475438,20.570419044160939,21.781918669452519,21.781918669452519,23.41456529477658,27.278101023755358,63.990848162992613,114.68351448152455,32.613471903033428,16.869434471681711,13.522433876705861,14.449573382085262,22.750654406626232,17.417260059969273,22.110647085027395,21.781918669452519,21.781918669452519,21.306420061771458,10.333997261240826,72.680056596601716,104.320473919614,28.825752386230477,16.009053263914851,12.162362720475139,15.15230896741555,21.667289911072601,13.642090391798595,20.704265968759717,21.781918669452519,21.781918669452519,22.893978013053555,23.093102447898541,66.136937153292308,112.12401761424441]
[null,null,2013,null,28.395134719286279,16.002104297099585,11.040212232143659,16.083144055676275,21.910129403846856,12.667094268096445,20.800965187556809,22.026042881712073,22.026042881712073,23.013442490569645,31.783239008927794,63.092015202492775,117.88869670199021,29.097136567618776,16.262300005171678,11.760433947314944,15.14726000637444,21.910129403846856,12.667094268096445,20.800965187556809,22.026042881712073,22.026042881712073,23.487335566096512,11.139013881951948,72.299890842735351,106.92624029078381,28.804919833711494,16.057301267689642,11.561395015452154,15.452599737988548,21.910129403846856,12.667094268096445,20.800965187556809,22.026042881712073,22.026042881712073,24.583948301514816,44.699233207797434,56.485014932210909,125.76819644152314,29.349926838231653,16.292315164539225,11.52011830006049,15.655721068817803,21.910129403846856,12.667094268096445,20.800965187556809,22.026042881712073,22.026042881712073,24.563902777793501,61.102741486844799,49.007046109565671,134.67369037420397,28.856172134018458,16.111896225736192,11.548741759079139,15.542974413245656,21.910129403846856,12.667094268096445,20.800965187556809,22.026042881712073,22.026042881712073,23.676987645843546,27.583824547262033,64.708035461167569,115.96884765427315,32.97899241838374,17.058501259789729,13.673988639538225,14.611519203889067,23.0056358740392,17.612466687832725,22.358455571694421,22.026042881712073,22.026042881712073,21.545215050063543,10.449817129048469,73.494629538172205,105.48966171728422,29.148821451029903,16.188477196966048,12.298674276101087,15.322130806653767,21.910129403846856,13.794986223474895,20.936312222202222,22.026042881712073,22.026042881712073,23.150565801886057,23.351921954539556,66.878177074752941,113.38066483117855]
[null,null,2014,null,29.084233484274211,16.390446540140594,11.308138293758983,16.473452987662498,22.441848772752039,12.974501825849716,21.305767139123759,22.560575261903594,22.560575261903594,23.571937280439442,32.554560961258318,64.623144749383357,120.74964299108112,29.803271652789284,16.656956729297569,12.04583849245741,15.514856718506053,22.441848772752039,12.974501825849716,21.305767139123759,22.560575261903594,22.560575261903594,24.057330887177386,11.40933768161411,74.054478943162707,109.52114751195421,29.503963345186897,16.446983041767947,11.841969244292651,15.827606495328149,22.441848772752039,12.974501825849716,21.305767139123759,22.560575261903594,22.560575261903594,25.180556438105015,45.784003070800729,57.855804485242125,128.82036399414787,30.062196687861018,16.687700302509796,11.799690817379616,16.035657214927731,22.441848772752039,12.974501825849716,21.305767139123759,22.560575261903594,22.560575261903594,25.160024445635571,62.585594944390202,50.196358831046481,137.94197822107225,29.556459446489825,16.502902921091906,11.829008916182667,15.920174401141185,22.441848772752039,12.974501825849716,21.305767139123759,22.560575261903594,22.560575261903594,24.251585481236223,28.253234275973462,66.278382908429364,118.78320266563905,33.779333151777728,17.472480353985819,14.00583170973732,14.966114451896772,23.563941211389643,18.039889524982826,22.901055009020823,22.560575261903594,22.560575261903594,22.068078605006079,10.70341536512537,75.278211794381818,108.04970576451326,29.856210835209005,16.581342374530692,12.597140944367812,15.693971318073395,22.441848772752039,14.129765687055514,21.444398802468456,22.560575261903594,22.560575261903594,23.712388327489929,23.918631031219437,68.501189949404136,116.1322093081135]
[null,null,2015,null,29.516697872826779,16.634162244215041,11.476283248155752,16.718402945773338,22.775545048871713,13.167424565310055,21.622570590844312,22.896036926771213,22.896036926771213,23.922437266918255,33.038626952143737,65.584050554086673,122.54511477314867,30.246427689862035,16.904635273446832,12.224952588108589,15.745552948746303,22.775545048871713,13.167424565310055,21.622570590844312,22.896036926771213,22.896036926771213,24.415048373455832,11.578987407708384,75.155622797376708,111.14965857854092,29.942668854646261,16.691539408314053,12.01805193154175,16.062953119434773,22.775545048871713,13.167424565310055,21.622570590844312,22.896036926771213,22.896036926771213,25.554975586861556,46.464782603952557,58.716084166480947,130.73584235729507,30.509202778504331,16.935835984393098,11.975144850823769,16.274097423305303,22.775545048871713,13.167424565310055,21.622570590844312,22.896036926771213,22.896036926771213,25.534138296486503,63.516203655960993,50.94274733879832,139.99308929124581,29.995945540191286,16.748290781321103,12.00489889144661,16.156897452197779,22.775545048871713,13.167424565310055,21.622570590844312,22.896036926771213,22.896036926771213,24.612191412014628,28.673342225264882,67.26390107084697,120.54943470812648,34.281610740255203,17.73228522513255,14.214089680496517,15.188651227326895,23.914322301315302,18.308131416150282,23.241579395095499,22.896036926771213,22.896036926771213,22.396217152154112,10.862568467228128,76.397551791861545,109.65633741124378,30.300154044863351,16.827896580446399,12.784452563185686,15.927330870550577,22.775545048871713,14.339866478659582,21.763263620446256,22.896036926771213,22.896036926771213,24.064976733325473,24.274286137259068,69.519759864358562,117.8590227349431]
[null,null,2016,null,29.84593746109412,16.819705517112766,11.604293731839993,16.90488586896717,23.029591457001874,13.314298631680975,21.863756317963364,23.151427343517796,23.151427343517796,24.189276512624069,33.407151371152551,66.315598029158764,123.91202591293538,30.58380694014517,17.093195497263842,12.36131399188208,15.921184362267644,23.029591457001874,13.314298631680975,21.863756317963364,23.151427343517796,23.151427343517796,24.68738237601389,11.708143489567265,75.993934942332572,112.38946080791374,30.27665987246959,16.877722686200318,12.152105492911128,16.242124925650568,23.029591457001874,13.314298631680975,21.863756317963364,23.151427343517796,23.151427343517796,25.840024736893543,46.983067066508937,59.37102393850197,132.19411574190445,30.849513114180699,17.124744231870132,12.108719811583748,16.455624407053858,23.029591457001874,13.314298631680975,21.863756317963364,23.151427343517796,23.151427343517796,25.818955020081994,64.224685642329973,51.510980588713238,141.55462125112521,30.330530824828898,16.935107083902849,12.138805739199036,16.337117146411487,23.029591457001874,13.314298631680975,21.863756317963364,23.151427343517796,23.151427343517796,24.886724417087279,28.993174729197708,68.014186187062791,121.89408533334777,34.663999835874655,17.930077346450307,14.372638616226554,15.358070763955517,24.181071029851967,18.512346727611217,23.500824113583075,23.151427343517796,23.151427343517796,22.646032404039367,10.983733361251334,77.24971684789044,110.87948261318114,30.638132577731412,17.015600833998832,12.927054825683403,16.104989898691571,23.029591457001874,14.49981837285805,22.006018686904618,23.151427343517796,23.151427343517796,24.333405914173554,24.545050028523217,70.295207619822349,119.17366356251912]
[null,null,2017,null,30.472100309077923,17.172580166219465,11.847749901425598,17.259547587814232,23.51274848945955,13.593630422179691,22.322454321385965,23.637140472790552,23.637140472790552,24.696763546380552,34.108027899921488,67.706888344023767,126.51167979032581,31.225450168165459,17.451807921070689,12.620652321732452,16.255208185662305,23.51274848945955,13.593630422179691,22.322454321385965,23.637140472790552,23.637140472790552,25.205319588674094,11.953778409950885,77.588275170211688,114.74737316883667,30.911859205641665,17.231814525950639,12.407054662940041,16.582882029159595,23.51274848945955,13.593630422179691,22.322454321385965,23.637140472790552,23.637140472790552,26.38214419627781,47.968764068646266,60.616618233722477,134.96752649864655,31.496730813931951,17.484018542928371,12.362758757170321,16.800860694488428,23.51274848945955,13.593630422179691,22.322454321385965,23.637140472790552,23.637140472790552,26.360632440280789,65.572108959995504,52.591672470143074,144.52441387041935,30.966860361701123,17.290402838857446,12.393475882587465,16.679867171053097,23.51274848945955,13.593630422179691,22.322454321385965,23.637140472790552,23.637140472790552,25.408843792908687,29.601446755639884,69.441112601477059,124.45140315002563,35.391244838248447,18.306247413497399,14.67417420513911,15.680280556883986,24.688385913932528,18.900732710290939,23.993867529495539,23.637140472790552,23.637140472790552,23.121142430793633,11.214170276558185,78.870403173138939,113.20571588049076,31.280915548672958,17.37258533456146,13.198262304967448,16.442869931941004,23.51274848945955,14.804022172099803,22.467701331376382,23.637140472790552,23.637140472790552,24.843916759015553,25.060001131995826,71.769989487881205,121.67390737889258]
[null,null,2018,null,30.749772822603298,17.329062766700066,11.955710772562821,17.416822666079565,23.727004937381956,13.717500371706512,22.525864389500903,23.852530424289128,23.852530424289128,24.92180915663744,34.418832266614373,68.323857364169271,127.66449878742108,31.509987471016647,17.610834943227157,12.735656152021805,16.403331369460258,23.727004937381956,13.717500371706512,22.525864389500903,23.852530424289128,23.852530424289128,25.434999340755795,12.06270545021229,78.295286868390988,115.79299165935907,31.193538957162303,17.388836890785743,12.520112116110704,16.733991092461011,23.727004937381956,13.717500371706512,22.525864389500903,23.852530424289128,23.852530424289128,26.622547588786571,48.405872346531496,61.168978214676976,136.19739814999505,31.783740121601209,17.643339079619206,12.475412570441888,16.95395605618355,23.727004937381956,13.717500371706512,22.525864389500903,23.852530424289128,23.852530424289128,26.600839810090179,66.169625118297787,53.070906318061901,145.84137124644985,31.249041303133023,17.447959081040779,12.506409601127666,16.831859997135908,23.727004937381956,13.717500371706512,22.525864389500903,23.852530424289128,23.852530424289128,25.640378129242208,29.871185567249718,70.07388448403438,125.5854481805263,35.713742329768607,18.473060389333167,14.807890450298501,15.823164797577954,24.913355184251053,19.072962845591928,24.21250810361196,23.852530424289128,23.852530424289128,23.331830426344247,11.316357746939604,79.58909807338253,114.23728624666637,31.565958271612125,17.530890452599049,13.318529520919602,16.592703155685442,23.727004937381956,14.938921637680378,22.672434941417762,23.852530424289128,23.852530424289128,25.070303281188956,25.288356691103679,72.42398291710515,122.78264288939778]
[null,null,2019,null,31.088993633822462,17.520230966975905,12.087602020357322,17.608959003077317,23.988753013021185,13.868827070307978,22.774361899895599,24.115663253492009,24.115663253492009,25.196737897345059,34.798528866978046,69.077582422705632,129.07284918702874,31.857594706136346,17.805111556265974,12.876151486287222,16.5842872225635,23.988753013021185,13.868827070307978,22.774361899895599,24.115663253492009,24.115663253492009,25.715589417290857,12.195777026120359,79.159013273114553,117.07037971652576,31.537655242212288,17.580664498432792,12.65822964345257,16.91859466875626,23.988753013021185,13.868827070307978,22.774361899895599,24.115663253492009,24.115663253492009,26.916238285036222,48.939869113918739,61.843773132061798,137.69988053101676,32.134367300859694,17.837974266998671,12.613036987924685,17.14098620954212,23.988753013021185,13.868827070307978,22.774361899895599,24.115663253492009,24.115663253492009,26.894291033666597,66.899585435084191,53.656366119576802,147.4502425883276,31.593769870782079,17.640438904151502,12.644375967084533,17.017543229187591,23.988753013021185,13.868827070307978,22.774361899895599,24.115663253492009,24.115663253492009,25.923233873222671,30.200714109091578,70.846915233792629,126.97086321610688,36.107723928093492,18.676848773953818,14.971245953442335,15.997720454611736,25.188190663672245,19.283369145702185,24.479612081515839,24.115663253492009,24.115663253492009,23.58921907406247,11.441195874268514,80.467097353845816,115.4975123021768,31.914182957159575,17.724285145790208,13.46545491169881,16.775748092546017,23.988753013021185,15.103722631362798,22.922549367222178,24.115663253492009,24.115663253492009,25.346870157491342,25.56732905687187,73.222939136346056,124.13713835070926]
[null,null,2020,null,31.155395785804878,17.557651960821463,12.113419606989828,17.646569508767737,24.039989950511064,13.89844912799782,22.823005051809474,24.167171255178268,24.167171255178268,25.250554937517773,34.872854116286696,69.225123387866361,129.34853244167084,31.925638492641212,17.843141018960981,12.903653314683842,16.619709159138335,24.039989950511064,13.89844912799782,22.823005051809474,24.167171255178268,24.167171255178268,25.770514658580964,12.221825660861334,79.328086897434787,117.32042721687708,31.605015678552824,17.618214570645694,12.685266018399693,16.954730643685384,24.039989950511064,13.89844912799782,22.823005051809474,24.167171255178268,24.167171255178268,26.9737279602071,49.044398474539975,61.975863596971962,137.99399003171902,32.203002238564757,17.876073920280685,12.639976837084705,17.177597184629334,24.039989950511064,13.89844912799782,22.823005051809474,24.167171255178268,24.167171255178268,26.951733832288873,67.042474474592609,53.770969320306335,147.76517762718782,31.661250160860519,17.678116646922675,12.671382752333948,17.053890545706782,24.039989950511064,13.89844912799782,22.823005051809474,24.167171255178268,24.167171255178268,25.978602616765809,30.265219008538281,70.998235269695016,127.24205689499911,36.18484545220111,18.716740156912294,15.003222638209801,16.031889558877744,25.241989448036616,19.324555979339433,24.531897431792956,24.167171255178268,24.167171255178268,23.639602657672533,11.465632819261069,80.638964880051631,115.74420035698523,31.982347608999913,17.762141973511699,13.494215417557905,16.811578965284465,24.039989950511064,15.135982269531874,22.971509028793562,24.167171255178268,24.167171255178268,25.401007861152653,25.621937632814046,73.379334058304565,124.40227955227127]
[null,null,2021,null,31.221797937787294,17.595072954667032,12.139237193622339,17.68418001445816,24.091226888000929,13.928071185687671,22.871648203723339,24.218679256864522,24.218679256864522,25.304371977690479,34.947179365595368,69.372664353027119,129.62421569631297,31.993682279146086,17.881170481656,12.931155143080465,16.65513109571317,24.091226888000929,13.928071185687671,22.871648203723339,24.218679256864522,24.218679256864522,25.825439899871071,12.247874295602314,79.497160521755049,117.57047471722844,31.672376114893357,17.655764642858607,12.712302393346823,16.990866618614515,24.091226888000929,13.928071185687671,22.871648203723339,24.218679256864522,24.218679256864522,27.031217635377971,49.148927835161238,62.107954061882154,138.28809953242137,32.27163717626982,17.91417357356271,12.666916686244726,17.214208159716549,24.091226888000929,13.928071185687671,22.871648203723339,24.218679256864522,24.218679256864522,27.009176630911142,67.185363514101056,53.885572521035876,148.08011266604808,31.728730450938961,17.715794389693851,12.698389537583369,17.090237862225983,24.091226888000929,13.928071185687671,22.871648203723339,24.218679256864522,24.218679256864522,26.033971360308946,30.329723907984999,71.149555305597431,127.51325057389138,36.261966976308727,18.756631539870778,15.035199322977272,16.06605866314375,25.295788232400977,19.365742812976691,24.584182782070062,24.218679256864522,24.218679256864522,23.689986241282593,11.490069764253629,80.810832406257475,115.99088841179369,32.05051226084025,17.799998801233198,13.522975923417004,16.847409838022912,24.091226888000929,15.168241907700956,23.020468690364932,24.218679256864522,24.218679256864522,25.455145564813961,25.676546208756236,73.535728980263116,124.66742075383331]
[null,null,2022,null,31.288200089769699,17.632493948512597,12.165054780254843,17.721790520148581,24.142463825490804,13.957693243377518,22.920291355637211,24.270187258550788,24.270187258550788,25.358189017863189,35.021504614904039,69.520205318187834,129.89989895095505,32.061726065650944,17.919199944351014,12.958656971477083,16.690553032287998,24.142463825490804,13.957693243377518,22.920291355637211,24.270187258550788,24.270187258550788,25.880365141161175,12.273922930343293,79.666234146075269,117.82052221757974,31.739736551233886,17.693314715071519,12.739338768293944,17.027002593543639,24.142463825490804,13.957693243377518,22.920291355637211,24.270187258550788,24.270187258550788,27.088707310548841,49.253457195782502,62.24004452679231,138.58220903312366,32.340272113974869,17.952273226844731,12.693856535404741,17.250819134803763,24.142463825490804,13.957693243377518,22.920291355637211,24.270187258550788,24.270187258550788,27.066619429533414,67.328252553609502,54.000175721765402,148.39504770490834,31.796210741017394,17.753472132465031,12.725396322832781,17.126585178745177,24.142463825490804,13.957693243377518,22.920291355637211,24.270187258550788,24.270187258550788,26.089340103852081,30.394228807431716,71.300875341499818,127.78444425278362,36.339088500416331,18.796522922829261,15.067176007744736,16.100227767409752,25.349587016765344,19.406929646613943,24.636468132347172,24.270187258550788,24.270187258550788,23.74036982489265,11.514506709246188,80.982699932463277,116.23757646660212,32.118676912680577,17.837855628954699,13.551736429276097,16.88324071076136,24.142463825490804,15.200501545870038,23.069428351936313,24.270187258550788,24.270187258550788,25.509283268475269,25.731154784698425,73.69212390222161,124.9325619553953]
[null,null,2023,null,31.103096882078997,17.528178865507105,12.093085454595405,17.616947152300941,23.999635299630135,13.875118541608177,22.784693288667505,24.126603111814237,24.126603111814237,25.208168175661765,34.814314913234575,69.108918859817209,129.13140194871355,31.872046623502623,17.813188688368438,12.881992639048187,16.591810538455046,23.999635299630135,13.875118541608177,22.784693288667505,24.126603111814237,24.126603111814237,25.727255068031649,12.201309532997437,79.194923062575157,117.12348766360424,31.551962021857481,17.588639812103487,12.663971937888101,16.926269640277546,23.999635299630135,13.875118541608177,22.784693288667505,24.126603111814237,24.126603111814237,26.928448599565435,48.962070254678864,61.871828015274652,137.76234686951895,32.148944773676881,17.846066306980539,12.618758781109911,17.148762067027963,23.999635299630135,13.875118541608177,22.784693288667505,24.126603111814237,24.126603111814237,26.906491392018449,66.929933843037247,53.680706857679837,147.51713209273555,31.608102106334496,17.648441333955102,12.650111976921748,17.025263087852181,23.999635299630135,13.875118541608177,22.784693288667505,24.126603111814237,24.126603111814237,25.934993720042808,30.214414397162056,70.879054313156857,127.02846243036171,36.124103879163449,18.68532136197037,14.97803752736325,16.004977679653095,25.199617064611644,19.292116876345613,24.490717042019725,24.126603111814237,24.126603111814237,23.599920115617483,11.446386072049338,80.503600544133363,115.54990673180018,31.92866054528773,17.73232561170315,13.471563396770524,16.783358262975618,23.999635299630135,15.110574302162332,22.932947979934003,24.126603111814237,24.126603111814237,25.358368541986106,25.578927450605427,73.256156078035332,124.19345207062686]
[null,null,2024,null,31.086394031731,17.518765958825387,12.086591278232214,17.607486575658395,23.986747119448729,13.867667385556425,22.772457551381653,24.113646747928357,24.113646747928357,25.194630994390675,34.795619080656607,69.071806287593176,129.06205636264048,31.854930835095601,17.803622726946319,12.875074807166374,16.582900476235942,23.986747119448729,13.867667385556425,22.772457551381653,24.113646747928357,24.113646747928357,25.713439128966321,12.194757238608494,79.15239414806706,117.06059051564188,31.53501812389662,17.579194436946146,12.657171186538752,16.917179968280472,23.986747119448729,13.867667385556425,22.772457551381653,24.113646747928357,24.113646747928357,26.913987600753412,48.935776855815966,61.838601874224643,137.68836633079403,32.131680286624785,17.8364826897621,12.611982309934151,17.139552913111721,23.986747119448729,13.867667385556425,22.772457551381653,24.113646747928357,24.113646747928357,26.892042184570901,66.893991419907493,53.651879477029681,147.43791308150807,31.591128060268666,17.638963844443559,12.643318668588595,17.016120254822731,23.986747119448729,13.867667385556425,22.772457551381653,24.113646747928357,24.113646747928357,25.921066222066507,30.198188783232311,70.840991150459956,126.96024615575877,36.104704669389044,18.67528705163798,14.969994086535648,15.996382755873647,25.186084475421168,19.281756707314752,24.477565143248398,24.113646747928357,24.113646747928357,23.587246588752617,11.440239183387039,80.460368849313355,115.48785462145301,31.911514354317685,17.72280307502016,13.464328956154437,16.774345336627285,23.986747119448729,15.10245968701008,22.920632627556092,24.113646747928357,24.113646747928357,25.344750700764966,25.565191165794644,73.216816374446339,124.12675824100594]
[null,null,2025,null,31.400633471705543,17.695855884351236,12.208769607137009,17.785473341033835,24.229219178894823,14.007849872741732,23.002654862156451,24.357401582988295,24.357401582988295,25.449313050018006,35.147353535360885,69.770024476029192,130.36669106140809,32.176939094266174,17.983592151174911,13.005223588427544,16.750530126477361,24.229219178894823,14.007849872741732,23.002654862156451,24.357401582988295,24.357401582988295,25.97336560044635,12.31802897226066,79.952512810409957,118.24390738311696,31.853792518402631,17.756895208847546,12.785117270644228,17.088188711004207,24.229219178894823,14.007849872741732,23.002654862156451,24.357401582988295,24.357401582988295,27.186049917872261,49.430448289826437,62.463702604850717,139.08020081254941,32.456486091003498,18.016784281700531,12.739471598463311,17.312809531532395,24.229219178894823,14.007849872741732,23.002654862156451,24.357401582988295,24.357401582988295,27.163882664596517,67.570194982790895,54.194224032761504,148.92830168014891,31.91046964680617,17.817268800449437,12.771124723346233,17.188129143790583,24.229219178894823,14.007849872741732,23.002654862156451,24.357401582988295,24.357401582988295,26.183091509555648,30.503449725424648,71.557093293527416,128.2436345285077,36.469672126347042,18.864067768323238,15.121319536292653,16.15808354219493,25.440680137839564,19.476667973743638,24.724998678148054,24.357401582988295,24.357401582988295,23.825680263337876,11.55588380754296,81.273709284409975,116.6552733552908,32.234094592771996,17.901955526970319,13.600434262755655,16.943910223411546,24.229219178894823,15.25512417647901,23.152327778604928,24.357401582988295,24.357401582988295,25.600950254124971,25.823619060216277,73.956934747479252,125.38150406182049]
[null,null,2026,null,31.710015437320429,17.870208375732393,12.329059318559512,17.960708809025217,24.467943135264523,14.145865436394997,23.229293811400179,24.597388485985221,24.597388485985221,25.700058261959605,35.49365092240977,70.457449694149162,131.65115887851854,32.493969789631755,18.160779630324349,13.133360545940656,16.915568578338231,24.467943135264523,14.145865436394997,23.229293811400179,24.597388485985221,24.597388485985221,26.229274160709668,12.439395186715318,80.740263337526642,119.40893268495162,32.167639337783271,17.931849104216599,12.911085580021583,17.256554021754145,24.467943135264523,14.145865436394997,23.229293811400179,24.597388485985221,24.597388485985221,27.453906729374957,49.917473154051279,63.079140605771485,140.45052048919774,32.776271087469731,18.194298793952477,12.864990173353815,17.483387970595032,24.467943135264523,14.145865436394997,23.229293811400179,24.597388485985221,24.597388485985221,27.431521068136298,68.235945874714602,54.728185093494147,150.39565203634504,32.224874890634098,17.992817540519887,12.896955167932072,17.357479140647815,24.467943135264523,14.145865436394997,23.229293811400179,24.597388485985221,24.597388485985221,26.441066442590042,30.803991981764494,72.262126018322206,129.50718444267676,36.828997961539073,19.049930336061408,15.270305815981704,16.317284777780138,25.69134029202775,19.668566325946468,24.968607416097999,24.597388485985221,24.597388485985221,24.060428259699968,11.669740811415714,82.074477203754043,117.80464627486973,32.551688425836353,18.078338662497668,13.734435670377536,17.110853997168366,24.467943135264523,15.405428797169895,23.38044141469317,24.597388485985221,24.597388485985221,25.853189506507164,26.078052208239832,74.685612462329942,126.61685417707693]
[null,null,2027,null,32.079221189408649,18.078274617023791,12.47260890551089,18.169828764106327,24.752828059561196,14.310568443169201,23.499756905594158,24.883780567166177,24.883780567166177,25.999288937456235,35.90691026342359,71.277799206623101,133.18399840750294,32.872303271626642,18.372229048101389,13.286274765342236,17.112519766561714,24.752828059561196,14.310568443169201,23.499756905594158,24.883780567166177,24.883780567166177,26.534666597757671,12.584229435204159,81.680337608643185,120.79923364160501,32.542173292144938,18.140633040255398,13.061411809640415,17.457475368470185,24.752828059561196,14.310568443169201,23.499756905594158,24.883780567166177,24.883780567166177,27.773557796773979,50.498671805771096,63.813583059590769,142.08581266213585,33.15789145726793,18.406138481738726,13.014779705369323,17.686950388200692,24.752828059561196,14.310568443169201,23.499756905594158,24.883780567166177,24.883780567166177,27.750911495015924,69.030429994910719,55.365395781007294,152.14673727093395,32.600075249443854,18.202311343680112,13.047116874470394,17.559575577754444,24.752828059561196,14.310568443169201,23.499756905594158,24.883780567166177,24.883780567166177,26.748924817533052,31.162648730116679,73.103487721120032,131.01506126876976,37.257805002580199,19.271732304933238,15.448100896357838,16.507270033710597,25.990469462539256,19.897571191529781,25.259321670018117,24.883780567166177,24.883780567166177,24.340568410648377,11.805613827355105,83.030085981149853,119.17626821915334,32.93069393691087,18.288828204377154,13.894348321987954,17.310078930734974,24.752828059561196,15.584797140163719,23.6526643492335,24.883780567166177,24.883780567166177,26.154203118263258,26.381683939279842,75.555191279591313,128.09107833713441]
[null,null,2028,null,32.418481190209739,18.26946490262457,12.604515390468581,18.361987298276148,25.014606374493862,14.4619126242772,23.748283124467861,25.14694379564062,25.14694379564062,26.274249440196286,36.286650729465677,72.031611341685831,134.59251151134779,33.219950665197025,18.566528105574591,13.426786330785774,17.293496525175453,25.014606374493862,14.4619126242772,23.748283124467861,25.14694379564062,25.14694379564062,26.815289090369305,12.717316384636643,82.544163798154585,122.07676927316054,32.886329332342299,18.332482809407558,13.199545293456563,17.642100271690946,25.014606374493862,14.4619126242772,23.748283124467861,25.14694379564062,25.14694379564062,28.067282422591685,51.032730264862856,64.488455934841994,143.58846862229655,33.508559143865916,18.600796154978035,13.152420022358292,17.874002148822946,25.014606374493862,14.4619126242772,23.748283124467861,25.14694379564062,25.14694379564062,28.044396620494542,69.760474642724816,55.950923219660261,153.75579448287962,32.944843642976217,18.394813403645248,13.185099179438133,17.745280261462366,25.014606374493862,14.4619126242772,23.748283124467861,25.14694379564062,25.14694379564062,27.03181323933865,31.492215341809658,73.876607777757101,132.40063635890542,37.651832116904146,19.475544232866465,15.611475271674774,16.681845856851503,26.265336693218558,20.108001799508706,25.526456505973375,25.14694379564062,25.14694379564062,24.597986794023029,11.930466377012639,83.908186695321149,120.43663986635681,33.278958852241963,18.48224524011605,14.041290686798368,17.493145014454203,25.014606374493862,15.749617173014212,23.902807670316307,25.14694379564062,25.14694379564062,26.430801945848991,26.660688534233316,76.35423980083479,129.4457302809171]
[null,null,2029,null,32.768606942280364,18.466778592350767,12.74064654987362,18.560300247442377,25.284768872799475,14.618104026466765,24.004769091239549,25.418535563221198,25.418535563221198,26.55801632277678,36.678553447000013,72.809566420638888,136.04613619041567,33.578732439770526,18.7670501342953,13.571798172468776,17.480269571120505,25.284768872799475,14.618104026466765,24.004769091239549,25.418535563221198,25.418535563221198,27.104899303897518,12.854665816195945,83.435656439629682,123.39522155972315,33.241507933177118,18.530477104492064,13.34210288879072,17.832638304286899,25.284768872799475,14.618104026466765,24.004769091239549,25.418535563221198,25.418535563221198,28.37041440182076,51.583893441180919,65.184943503200984,145.13925134620268,33.870457944806418,18.801688285138692,13.294468655817029,18.067044765722557,25.284768872799475,14.618104026466765,24.004769091239549,25.418535563221198,25.418535563221198,28.347281428715696,70.513901014114026,56.555203813695186,155.4163862565249,33.300654209475852,18.593480880982078,13.327500753998043,17.936932657538375,25.284768872799475,14.618104026466765,24.004769091239549,25.418535563221198,25.418535563221198,27.323761954786633,31.832337246849789,74.674489168524602,133.83058837016102,38.058479052626389,19.685883808354561,15.780082168720833,16.862012959446073,26.54900731643945,20.325172036799682,25.802147082882676,25.418535563221198,25.418535563221198,24.863649721757035,12.059317679092349,84.814411043069271,121.73737844391866,33.63837792643929,18.68185699788723,14.19293929220072,17.682074301990234,25.284768872799475,15.919716028823398,24.160962531522344,25.418535563221198,25.418535563221198,26.716259625214768,26.948629032401648,77.178880087873367,130.8437687454898]
[null,null,2030,null,33.129647385620977,18.670243266384642,12.881021411915048,18.764795331462118,25.563353317346667,14.7791644819146,24.269250657094815,25.698593832557439,25.698593832557439,26.85062924966476,37.082673195542348,73.611773184760651,137.54507562996776,33.948698745272154,18.973823162902107,13.721330559907411,17.672865011225337,25.563353317346667,14.7791644819146,24.269250657094815,25.698593832557439,25.698593832557439,27.403537719580523,12.99629692835917,84.354940144440178,124.75477479237986,33.607758740928716,18.734643600825073,13.489104522108544,18.029116099350116,25.563353317346667,14.7791644819146,24.269250657094815,25.698593832557439,25.698593832557439,28.682996105749531,52.15223837540541,65.90314311855181,146.73837759970675,34.243638445707248,19.008842952591454,13.440945461069342,18.266105222078263,25.563353317346667,14.7791644819146,24.269250657094815,25.698593832557439,25.698593832557439,28.659608256418565,71.290814421774428,57.178322028457295,157.12874470665028,33.667556683557194,18.79834154510306,13.474341502807455,18.134559554838443,25.563353317346667,14.7791644819146,24.269250657094815,25.698593832557439,25.698593832557439,27.624811771987162,32.183061986916222,75.497243419967958,135.30511717887134,38.477802650185261,19.902780432316611,15.953945155090119,17.04779652495488,26.841520983214,20.549112259100433,26.086431936320373,25.698593832557439,25.698593832557439,25.137594327776473,12.192185744216808,85.748885694939574,123.07866576693286,34.009001398508545,18.887691379093113,14.349315335387068,17.876893201567409,25.563353317346667,16.095117483728917,24.427165017312536,25.698593832557439,25.698593832557439,27.010616057164423,27.245545681632962,78.02922740756685,132.28538914636425]
[null,null,2031,null,33.640934270654938,18.95837946087487,13.079813063304979,19.054390739516084,25.957870262743469,15.007250005536628,24.643795831878649,26.095197932729779,26.095197932729779,27.265012609392912,37.654966774347841,74.74781709658923,139.66779648032997,34.472625976684832,19.266644478783537,13.933090627222258,17.945608756307777,25.957870262743469,15.007250005536628,24.643795831878649,26.095197932729779,26.095197932729779,27.826454066273545,13.196867616484305,85.656782391103988,126.68010407386184,34.126424275747546,19.023773679916843,13.697280665752007,18.307357835612997,25.957870262743469,15.007250005536628,24.643795831878649,26.095197932729779,26.095197932729779,29.125658219283366,52.957099205831341,66.920220432017445,149.00297785713215,34.772117455137746,19.30220472575504,13.648378370231065,18.54800439027624,25.957870262743469,15.007250005536628,24.643795831878649,26.095197932729779,26.095197932729779,29.101909427365449,72.391039184597076,58.060749958375034,159.55369857033756,34.187145074676359,19.088454668871819,13.682289810094428,18.414428590519165,25.957870262743469,15.007250005536628,24.643795831878649,26.095197932729779,26.095197932729779,28.051143021340536,32.679740304153206,76.662385625302733,137.39326895079648,39.071627137085869,20.209938262652301,16.200160963770561,17.310893643993939,27.255763775880645,20.866244870711885,26.489021507260397,26.095197932729779,26.095197932729779,25.52554057276652,12.380346656355631,87.072240578611741,124.9781278077339,34.533859275375228,19.179183430858519,14.570767035575832,18.152785695463407,25.957870262743469,16.343511992330985,24.804147270293971,26.095197932729779,26.095197932729779,27.427468478983727,27.666023751334919,79.233445495325199,134.32693772564386]
[null,null,2032,null,34.174633294161559,19.259146036622528,13.287318699247567,19.356680493105483,26.369680764202176,15.245333603603084,25.034759104930284,26.509187078895028,26.509187078895028,27.697560364709624,38.252346705474601,75.933659221922241,141.88356629210648,35.019519433134235,19.572301547099432,14.154133146504025,18.230308158304705,26.369680764202176,15.245333603603084,25.034759104930284,26.509187078895028,26.509187078895028,28.267908850000421,13.406230272812422,87.015690581674932,128.68982970448778,34.667825390389794,19.325577706960146,13.914582160924356,18.597796231920437,26.369680764202176,15.245333603603084,25.034759104930284,26.509187078895028,26.509187078895028,29.587724320823789,53.797240918499227,67.981881086566219,151.36684632588924,35.323762215707092,19.60842594216895,13.864904051415705,18.842260541173985,26.369680764202176,15.245333603603084,25.034759104930284,26.509187078895028,26.509187078895028,29.563598764486844,73.539492037083718,58.981858905812238,162.0849497073828,34.729509498804433,19.391284832120704,13.899353481758023,18.706565618525705,26.369680764202176,15.245333603603084,25.034759104930284,26.509187078895028,26.509187078895028,28.49616239917016,33.19819039678309,77.878601560886963,139.57295435684023,39.691481778520945,20.530560283108951,16.457169583610124,17.585523562399196,27.688164802412285,21.197278914598808,26.909258495874671,26.509187078895028,26.509187078895028,25.930492348735697,12.576755557131436,88.453604407495504,126.96085231336264,35.081724171899822,19.483452967083394,14.801926018143469,18.440771870925985,26.369680764202176,16.602794814882813,25.197654450283853,26.509187078895028,26.509187078895028,27.862593527138557,28.104933376781272,80.490450195304874,136.45797709922471]
[null,null,2033,null,34.733533733951909,19.574114893704422,13.504622809015812,19.673244452910318,26.800937072042696,15.494659575368818,25.444183772441828,26.942724907650906,26.942724907650906,28.15053314530126,38.877935083049245,77.175497142134049,144.20396537048455,35.592237350659602,19.892391827168421,14.385613355006619,18.528451145223915,26.800937072042696,15.494659575368818,25.444183772441828,26.942724907650906,26.942724907650906,28.730209251360332,13.62547909198514,88.438766794845804,130.79445513819127,35.234791616200738,19.641633004076322,14.142144693118906,18.901949210057218,26.800937072042696,15.494659575368818,25.444183772441828,26.942724907650906,26.942724907650906,30.071609312155331,54.677054356438688,69.093673652415006,153.84233732100904,35.901455795254037,19.92910700956601,14.091654135470334,19.150411549334351,26.800937072042696,15.494659575368818,25.444183772441828,26.942724907650906,26.942724907650906,30.047089200478734,74.742175152589354,59.946462873859574,164.73572722692768,35.297484521842968,19.708414719879404,14.126666960351612,19.012497438222724,26.800937072042696,15.494659575368818,25.444183772441828,26.942724907650906,26.942724907650906,28.962195715757474,33.741121846940764,79.152247551115423,141.85556511381367,40.340606128473688,20.866322164519755,16.726314221939145,17.873121581911747,28.140983925644832,21.543944478081301,27.349339191937204,26.942724907650906,26.942724907650906,26.354566060162018,12.782438940812906,89.900196620464087,129.03720162143901,35.65545940117083,19.802090195410226,15.044000392141154,18.742356833667777,26.800937072042696,16.874321044408507,25.609743148726594,26.942724907650906,26.942724907650906,28.318265301052744,28.564568436778977,81.806811006724743,138.68964474455646]
[null,null,2034,null,35.313417965536779,19.900909185959073,13.730085552899965,20.001693735662272,27.248384801341384,15.753346434884898,25.868980197366604,27.392539817056559,27.392539817056559,28.620512687455093,39.527011036101584,78.46395958883582,146.61148331239249,36.18645783408536,20.224499825088799,14.625784436076056,18.837787843790334,27.248384801341384,15.753346434884898,25.868980197366604,27.392539817056559,27.392539817056559,29.209866617714404,13.85295955895266,89.915272085610752,132.97809826227783,35.823044461935268,19.96955452651293,14.378251009601037,19.217521543614975,27.248384801341384,15.753346434884898,25.868980197366604,27.392539817056559,27.392539817056559,30.573661657075654,55.589900192790047,70.247208221059864,156.41077007092557,36.500838750817209,20.261827975792325,14.326917500629154,19.470132018057189,27.248384801341384,15.753346434884898,25.868980197366604,27.392539817056559,27.392539817056559,30.548732176567572,75.990012736214624,60.947282681775029,167.48602759455721,35.886784039870989,20.037451178223456,14.362514872571131,19.329915399548554,27.248384801341384,15.753346434884898,25.868980197366604,27.392539817056559,27.392539817056559,29.44572614880483,34.304437536754925,80.473712294696284,144.22387598025603,41.014101706714015,21.214690150543216,17.005563835414414,18.171517404632738,28.610804041408453,21.903625522476947,27.805942619136676,27.392539817056559,27.392539817056559,26.794561524073345,12.995844661052889,91.40110081397053,131.19150699909676,36.250735391083794,20.13269058708633,15.295163394275651,19.05526473626788,27.248384801341384,17.156041665388351,26.037303625027022,27.392539817056559,27.392539817056559,28.791045169628738,29.041460392126545,83.172594289888693,141.00509985164399]
[null,null,2035,null,35.908784695990427,20.236428654696496,13.961567992590645,20.338912381972808,27.70777906856156,16.01894005059761,26.305118386405887,27.854364466418406,27.854364466418406,29.103040350998366,40.193416858051066,79.786823071618585,149.08328028066802,36.796543584164937,20.565474871675193,14.872367915152614,19.15538361343468,27.70777906856156,16.01894005059761,26.305118386405887,27.854364466418406,27.854364466418406,29.702330496519561,14.086513593506023,91.431199023402641,135.22004311342823,36.427003242617793,20.306231321680958,14.620661197750552,19.541519435294866,27.70777906856156,16.01894005059761,26.305118386405887,27.854364466418406,27.854364466418406,31.089118444536268,56.527118367375301,71.431541346867348,159.0477781587789,37.116224807389187,20.603432356504911,14.568462231251189,19.798388797177367,27.70777906856156,16.01894005059761,26.305118386405887,27.854364466418406,27.854364466418406,31.063768665338422,77.271166700808024,61.974823670746865,170.30975903689333,36.491817438256987,20.375272677299133,14.604659757246974,19.655808195952638,27.70777906856156,16.01894005059761,26.305118386405887,27.854364466418406,27.854364466418406,29.942166502444813,34.882793357090456,81.830459212344408,146.65541907187969,41.705579140573576,21.572359315415408,17.29226921607432,18.47788018478435,29.093168021989641,22.272909796378869,28.274737034916349,27.854364466418406,27.854364466418406,27.246304555690827,13.214948163095247,92.942078087951373,133.40333080673744,36.861904828927301,20.472117775407959,15.553032270935832,19.37652705856793,27.70777906856156,17.445284027705618,26.476279663658847,27.854364466418406,27.854364466418406,29.276447926329148,29.531085025407119,84.574843020783163,143.38237597251941]
[null,null,2036,null,36.524013660897424,20.583141503935117,14.200772997641099,20.687381095632514,28.182499346079783,16.293394226356355,26.755806731712973,28.331596206893607,28.331596206893607,29.601665786038232,40.882054874040932,81.153819058454374,151.63753971853356,37.426982614978719,20.917825304173515,15.127177750562526,19.48357480488443,28.182499346079783,16.293394226356355,26.755806731712973,28.331596206893607,28.331596206893607,30.211223632319268,14.327859304608541,92.997699321633405,137.53678225856123,37.051110900099232,20.654140107315651,14.871158515638124,19.876326332177367,28.182499346079783,16.293394226356355,26.755806731712973,28.331596206893607,28.331596206893607,31.62177156333253,57.495603400126029,72.655385417798854,161.7727603812574,37.752140970044934,20.956433118561865,14.818065218784767,20.137596663710198,28.182499346079783,16.293394226356355,26.755806731712973,28.331596206893607,28.331596206893607,31.595987463715641,78.595061683859399,63.036644808389106,173.22769395596416,37.117035564133047,20.724364355702612,14.854882920780357,19.992573214128164,28.182499346079783,16.293394226356355,26.755806731712973,28.331596206893607,28.331596206893607,30.455168773625235,35.480443905050755,83.232469030980681,149.16808170965669,42.420125191149531,21.941960804426724,17.588539473638519,18.794463639111886,29.591624313383772,22.654513890070824,28.759171062586219,28.331596206893607,28.331596206893607,27.713118342101428,13.441361252496975,94.534464435260418,135.68894402985882,37.493463700785568,20.822868711009093,15.819503999963223,19.708507123798771,28.182499346079783,17.744175904045623,26.929900533035685,28.331596206893607,28.331596206893607,29.778044371498737,30.037044194634873,86.023872654321778,145.83896122045539]
[null,null,2037,null,37.176324870858409,20.95075208649288,14.454395819669276,21.056853375396319,28.685832863005047,16.58439082385091,27.233659818306549,28.837592562426423,28.837592562426423,30.13034531740157,41.612199784405135,82.603209215693582,154.34575431750028,38.095420660737723,21.291413269083467,15.397345966831937,19.831547357225965,28.685832863005047,16.58439082385091,27.233659818306549,28.837592562426423,28.837592562426423,30.75078973874362,14.583751861377186,94.658618691867574,139.99316029198837,37.712835956004497,21.023018710012344,15.136754282163722,20.231313344275733,28.685832863005047,16.58439082385091,27.233659818306549,28.837592562426423,28.837592562426423,32.186529759436013,58.522462796510666,73.952995335813029,164.66198789175971,38.426386275706733,21.330710610924942,15.082712750183942,20.497249909034505,28.685832863005047,16.58439082385091,27.233659818306549,28.837592562426423,28.837592562426423,32.160285161217438,79.998752972006216,64.162466040102842,176.3215041733265,37.7799380206866,21.094497148720752,15.120188008601444,20.349636371113661,28.685832863005047,16.58439082385091,27.233659818306549,28.837592562426423,28.837592562426423,30.99909168901825,36.114117178435684,84.718983439986218,151.83219230744015,43.17773971421493,22.333839614191149,17.90266709312791,19.130128810821152,30.1201245061553,23.059118748231061,29.272803815204394,28.837592562426423,28.837592562426423,28.2080688129168,13.681421140316093,96.222830107535856,138.11232006076875,38.163089084768814,21.194760771116361,16.10203701758298,20.060496920095815,28.685832863005047,18.061083157481473,27.41086289834222,28.837592562426423,28.837592562426423,30.309873987339675,30.57349949289884,87.560240945541253,148.44361442577977]
[null,null,2038,null,37.818566851772751,21.312688145756816,14.704103660247712,21.420622394270964,29.181396805544072,16.870895529519572,27.704136652421134,29.335778239370818,29.335778239370818,30.650864027346724,42.331074006442314,84.030226246044393,157.01216427983343,38.753540539824968,21.659234442421692,15.66334380306005,20.174148523520525,29.181396805544072,16.870895529519572,27.704136652421134,29.335778239370818,29.335778239370818,31.282026976020187,14.835694400537534,96.293899720599271,142.411621097157,38.364346468526087,21.386203215958531,15.398250250056206,20.580820693478817,29.181396805544072,16.870895529519572,27.704136652421134,29.335778239370818,29.335778239370818,32.742570215378514,59.533471350072105,75.230575042360428,167.50661660781105,39.090223772468953,21.699210668008575,15.343275120130128,20.851351462391484,29.181396805544072,16.870895529519572,27.704136652421134,29.335778239370818,29.335778239370818,32.715872226922826,81.380776551741292,65.270908830859895,179.367557609524,38.432607759223522,21.458916485012008,15.381397784774171,20.701187817343772,29.181396805544072,16.870895529519572,27.704136652421134,29.335778239370818,29.335778239370818,31.534618482536949,36.738008922340477,86.182551663433628,154.45517906831105,43.923659521559813,22.719669290606664,18.21194576490306,19.460612576101546,30.640466645821277,23.457478030770361,29.778508012015166,29.335778239370818,29.335778239370818,28.695379112014617,13.917775407323473,97.885133770744119,140.4982882900822,38.822377974048592,21.560912218036751,16.380208789183648,20.407053319224651,29.181396805544072,18.373098556120631,27.88440101561326,29.335778239370818,29.335778239370818,30.833494156318569,31.101673941180433,89.072893494967488,151.0080615924665]
[null,null,2039,null,38.453032315422419,21.67024174156116,14.950787940562119,21.779986755493674,29.67096026591371,17.153931124080181,28.168916768893688,29.827931689159563,29.827931689159563,31.165080093031982,43.041243818047079,85.439964395687767,159.64628830676685,39.40369164584218,22.022601893035798,15.926120833381249,20.512601340806825,29.67096026591371,17.153931124080181,28.168916768893688,29.827931689159563,29.827931689159563,31.806831784912934,15.08458632082881,97.909380126621059,144.80079823236281,39.007968236774786,21.744990141764077,15.656579922425522,20.926096070908056,29.67096026591371,17.153931124080181,28.168916768893688,29.827931689159563,29.827931689159563,33.29187791585813,60.532238216379916,76.492685313803591,170.31680144604164,39.746023265008581,22.063248782178004,15.600682498922469,21.201165415552644,29.67096026591371,17.153931124080181,28.168916768893688,29.827931689159563,29.827931689159563,33.264732026991766,82.746066049078493,66.365930162485668,182.37672823855593,39.077374717125274,21.818923289353521,15.639444730745081,21.048482541073209,29.67096026591371,17.153931124080181,28.168916768893688,29.827931689159563,29.827931689159563,32.063660908046003,37.354346340832201,87.628398430022273,157.0464056789005,44.660547439940302,23.100827190294659,18.517479569475302,19.787094714607647,31.154508279209399,23.851013823207374,30.278088944489156,29.827931689159563,29.827931689159563,29.176788867288142,14.151267804361925,99.527309610608171,142.85536628225825,39.473683935425406,21.922630159933988,16.655012348103295,20.749413477838075,29.67096026591371,18.68133595019691,28.352205348027692,29.827931689159563,29.827931689159563,31.350774127357738,31.623453046526059,90.567230255305432,153.54145742918922]
[null,null,2040,null,39.074114814877795,22.020253355580302,15.192268837745548,22.131770939930583,30.150197222105689,17.430996566686538,28.62389314345539,30.309704003372019,30.309704003372019,31.66844964997961,43.736433811671063,86.819966529328838,162.22484999097952,40.040128925857502,22.378304728537582,16.183355031524254,20.843915074573673,30.150197222105689,17.430996566686538,28.62389314345539,30.309704003372019,30.309704003372019,32.320566733633925,15.328228291598261,99.490784735504903,147.13957976073709,39.638013904238456,22.0962090707967,15.909460572028877,21.264088454576335,30.150197222105689,17.430996566686538,28.62389314345539,30.309704003372019,30.309704003372019,33.82959890956117,61.509937803259554,77.728173526932011,173.06771023975273,40.387989788489811,22.419608134734062,15.85266030915499,21.543600641457502,30.150197222105689,17.430996566686538,28.62389314345539,30.309704003372019,30.309704003372019,33.802014567977508,84.082557098738846,67.437853891306034,185.32242555802239,39.708541418424211,22.171336365670051,15.892048617580024,21.388451676384015,30.150197222105689,17.430996566686538,28.62389314345539,30.309704003372019,30.309704003372019,32.581544088105943,37.957683175248278,89.043747531069926,159.58297479442416,45.38189196755819,23.473945215763894,18.816568660818842,20.106690270596602,31.657707083210973,24.236248650940869,30.767132071338562,30.309704003372019,30.309704003372019,29.64804410685241,14.379835078492619,101.13484655879921,145.16272574414424,40.111251711101005,22.276718280285081,16.924019395786019,21.084552134247243,30.150197222105689,18.983071603446302,28.810142147866564,30.309704003372019,30.309704003372019,31.857142961814279,32.134226113743154,92.030046536588799,156.02141561214623]
[null,null,2041,null,39.687963115205015,22.366188130024661,15.430937031467836,22.47945763837717,30.623852157271951,17.704834826776718,29.073570077612526,30.785864765401787,30.785864765401787,32.165956095966621,44.423526422338355,88.183894775457716,164.77337729376268,40.669153158459231,22.72986443467293,16.43759303606404,21.171369756562271,30.623852157271951,17.704834826776718,29.073570077612526,30.785864765401787,30.785864765401787,32.828317838145182,15.569032387312349,101.05376957591534,149.45111980137287,40.260720972043835,22.443337097779384,16.159395736971994,21.598143995378486,30.623852157271951,17.704834826776718,29.073570077612526,30.785864765401787,30.785864765401787,34.361056676161148,62.476249412688183,78.949271111179243,175.78657720002857,41.022478861441442,22.771816710992546,16.101703150753394,21.88204727548468,30.623852157271951,17.704834826776718,29.073570077612526,30.785864765401787,30.785864765401787,34.333038988837544,85.403481066095736,68.497292145634219,188.23381220056751,40.33235646256928,22.5196446308356,16.141710243411776,21.724460944166072,30.623852157271951,17.704834826776718,29.073570077612526,30.785864765401787,30.785864765401787,33.093395106491784,38.553992507190287,90.442611032794119,162.0899986464762,46.094834471358993,23.842717264495867,19.112174044207748,20.422563264937914,32.15504476513555,24.616996368737492,31.250478957567783,30.785864765401787,30.785864765401787,30.113810294243773,14.605740063512457,102.72365935617407,147.44320971393029,40.741393271658673,22.626682079030296,17.189893122933189,21.415787187225078,30.623852157271951,19.281292722311633,29.262745025076715,30.785864765401787,30.785864765401787,32.35761375054588,32.639049835936369,93.475824333812497,158.47248792029472]
[null,null,2042,null,40.294491866390032,22.707997965815295,15.6667593370909,22.822998508165416,31.091859214008725,17.975407829635305,29.517885047883912,31.256347769432708,31.256347769432708,32.657530257253939,45.102426116080835,89.53155949227704,167.29151586561181,41.290676883558199,23.077232130267397,16.688799497522169,21.494919857182186,31.091859214008725,17.975407829635305,29.517885047883912,31.256347769432708,31.256347769432708,33.33001450028118,15.806965126355284,102.59811732904899,151.73509695568544,40.876002858445986,22.786325957722294,16.406350666047079,21.928216245934781,31.091859214008725,17.975407829635305,29.517885047883912,31.256347769432708,31.256347769432708,34.886177321297133,63.431038687839568,80.155808284050295,178.473024293187,41.649402263938043,23.119825539559535,16.347776396579324,22.216458259712955,31.091859214008725,17.975407829635305,29.517885047883912,31.256347769432708,31.256347769432708,34.857731455463735,86.708654288705063,69.544097620232378,191.11048336440118,40.94873311376152,22.863799655758967,16.388394895065669,22.056463625391721,31.091859214008725,17.975407829635305,29.517885047883912,31.256347769432708,31.256347769432708,33.599142794982328,39.143191425277969,91.824794435968471,164.56712865622876,46.799275823182427,24.207092062096699,19.404254618406398,20.734669778369287,32.646452174709161,24.993204037095666,31.728062398195544,31.256347769432708,31.256347769432708,30.574022668916953,14.828951349391254,104.29352709278727,149.69650111109547,41.364021001654969,22.972472896891563,17.452596562225143,21.743072581555008,31.091859214008725,19.575957841863108,29.709951049351247,31.256347769432708,31.256347769432708,32.852116907648615,33.137854021966056,94.904362624744735,160.89433355435941]
[null,null,2043,null,40.899759983724522,23.049097370239572,15.90209150011051,23.165825348736337,31.558893545978769,18.245418462637932,29.961276535977873,31.725852902588063,31.725852902588063,33.148082710952686,45.779914757283152,90.876423168324848,169.80442063656068,41.910908808647292,23.423877842815237,16.939483841326084,21.817797478206721,31.558893545978769,18.245418462637932,29.961276535977873,31.725852902588063,31.725852902588063,33.830668415814067,16.044403336384711,104.13925524744558,154.01432699964437,41.490005918127885,23.128601935767435,16.652792314024548,22.257602460995887,31.558893545978769,18.245418462637932,29.961276535977873,31.725852902588063,31.725852902588063,35.41020653447778,64.383843490403251,81.359837741336477,181.15388776621751,42.275022643517218,23.467111052523244,16.593338193833706,22.550174190646757,31.558893545978769,18.245418462637932,29.961276535977873,31.725852902588063,31.725852902588063,35.381333380078097,88.011114786580393,70.588727372057946,193.98117553871643,41.563828662830161,23.207239374980176,16.634566827377451,22.387776258837118,31.558893545978769,18.245418462637932,29.961276535977873,31.725852902588063,31.725852902588063,34.10383931705298,39.731165728540084,93.204105053339575,167.03911009893264,47.50225303565206,24.570709528403285,19.695728120544253,21.046127597019044,33.136838223277707,25.36862978024315,32.204653210113555,31.725852902588063,31.725852902588063,31.033278519605389,15.051698703919314,105.86013195289915,151.94510917642384,41.985354637033033,23.317545009152571,17.714753988079853,22.069677732704267,31.558893545978769,19.870010517530353,30.156227582564963,31.725852902588063,31.725852902588063,33.345592269419598,33.635621473231787,96.329931784003023,163.3111455266544]
[null,null,2044,null,41.507488476037622,23.391583321246809,16.138380272852277,23.510045757804228,32.027826341706657,18.516526671056095,30.406470381228591,32.197266543145105,32.197266543145105,33.640629228023052,46.460157345130547,92.226753626519979,172.32754019967359,42.533661935606638,23.771932647322775,17.191187200454543,22.141987575466445,32.027826341706657,18.516526671056095,30.406470381228591,32.197266543145105,32.197266543145105,34.333357456494717,16.2828067170785,105.68665778984005,156.30282196341327,42.106504859752953,23.472269243089709,16.900235731047839,22.588327609297686,32.027826341706657,18.516526671056095,30.406470381228591,32.197266543145105,32.197266543145105,35.936365891849491,65.340521381650447,82.568761498958935,183.84564877245887,42.903186128678755,23.815808258193137,16.839898183598752,22.885246654830727,32.027826341706657,18.516526671056095,30.406470381228591,32.197266543145105,32.197266543145105,35.907063711983682,89.318869700480334,71.637603474929762,196.86353688739376,42.181424534739271,23.552075154009646,16.881739432358668,22.720435656286885,32.027826341706657,18.516526671056095,30.406470381228591,32.197266543145105,32.197266543145105,34.610587397200362,40.32153010856716,94.589022477402665,169.5211399831702,48.208087804127963,24.935805075729281,19.988386443245176,21.358851471160488,33.629217658791994,25.745581604276627,32.68318133225015,32.197266543145105,32.197266543145105,31.494401215038256,15.275351511753005,107.4331049584474,154.20285768523865,42.609213952661015,23.664019816791892,17.977977066580983,22.39761051225285,32.027826341706657,20.165258497930957,30.604318200453573,32.197266543145105,32.197266543145105,33.841073575990741,34.135412316358391,97.761295787875227,165.73778168022437]
[null,null,2045,null,42.114000899946483,23.733383955785939,16.37419623032466,23.853577379742902,32.495820800062162,18.787092390302607,30.850773390891014,32.667736882144212,32.667736882144212,34.132190156521204,47.139038763428104,93.57438206526686,174.84561098521618,43.155168929776558,24.11929099205253,17.442386899632634,22.465528966372545,32.495820800062162,18.787092390302607,30.850773390891014,32.667736882144212,32.667736882144212,34.835040613351808,16.520733051159542,107.23096397034887,158.58673763486021,42.721770183251436,23.815248870042716,17.14718401229079,22.918390974569032,32.495820800062162,18.787092390302607,30.850773390891014,32.667736882144212,32.667736882144212,36.461472401151404,66.295284954626723,83.775266192799847,186.53202354857797,43.530092654891249,24.163807718636622,17.085964805326768,23.219648636978764,32.495820800062162,18.787092390302607,30.850773390891014,32.667736882144212,32.667736882144212,36.431742054302021,90.624007788854726,72.684380770349236,199.74013061350598,42.797784593557637,23.89622091455087,17.12841744345608,23.052429400261907,32.495820800062162,18.787092390302607,30.850773390891014,32.667736882144212,32.667736882144212,35.116321471361559,40.91071316588414,95.971168673288716,171.99820331053439,48.912510192945163,25.300170064647613,20.280459154864875,21.670949582930401,34.120611840065273,26.121779145420746,33.16075191670793,32.667736882144212,32.667736882144212,31.954601201156873,15.498556788959831,109.00293043545791,156.45608842557462,43.231824922009324,24.009801326236758,18.240673434103314,22.724887096317808,32.495820800062162,20.459915685329555,31.05151218629425,32.667736882144212,32.667736882144212,34.335563421458062,34.634203074972341,99.189795623682102,168.1595621201125]
[null,null,2046,null,42.727027662674885,24.078855751960596,16.612545004909222,24.200798755250204,32.968841823986999,19.060564161756194,31.299848504519304,33.14326037928479,33.14326037928479,34.629030769841066,47.825211810722443,94.936484911967739,177.39072749253125,43.783351314225619,24.470380191848339,17.696284647337521,22.792545402734305,32.968841823986999,19.060564161756194,31.299848504519304,33.14326037928479,33.14326037928479,35.342112174361887,16.761214869173305,108.79185700597284,160.89518404950803,43.343643857417092,24.16191232177836,17.396784679060403,23.25199943555241,32.968841823986999,19.060564161756194,31.299848504519304,33.14326037928479,33.14326037928479,36.992218896681287,67.260303310789197,84.994729533575594,189.24725174104609,44.163732565876991,24.515544920146873,17.334674342983494,23.557642314412433,32.968841823986999,19.060564161756194,31.299848504519304,33.14326037928479,33.14326037928479,36.962055784055813,91.943163911120593,73.742401136317895,202.64762083149429,43.42076476121418,24.244063024909668,17.377744937202603,23.387988973474666,32.968841823986999,19.060564161756194,31.299848504519304,33.14326037928479,33.14326037928479,35.627487459168393,41.506224433326409,97.368160020342657,174.50187191283746,49.624498537432743,25.668448571077253,20.575668917810198,21.98639983187816,34.617283915186349,26.502017293400733,33.643451920572076,33.14326037928479,33.14326037928479,32.419744035131771,15.72415943635186,110.58961686146409,158.73352033294773,43.86112313904988,24.359296754508772,18.506191331865157,23.055678844247922,32.968841823986999,20.757737683008461,31.503509327069573,33.14326037928479,33.14326037928479,34.835364410224699,35.138351171496581,100.63363847896765,170.60735406068892]
[null,null,2047,null,43.345249345979191,24.4272551504056,16.852913598249859,24.55096255933924,33.445871329758674,19.336353391792077,31.752729177202681,33.622813564768215,33.622813564768215,35.130081717329034,48.51719963593311,96.310130511016567,179.9574118642787,44.416857051247199,24.824444597000412,17.952333979139421,23.122333046679813,33.445871329758674,19.336353391792077,31.752729177202681,33.622813564768215,33.622813564768215,35.853480768790249,17.003734581811724,110.36597738474163,163.22319273534362,43.970787422788078,24.511513474129757,17.6485005155394,23.588434966353343,33.445871329758674,19.336353391792077,31.752729177202681,33.622813564768215,33.622813564768215,37.527463052114214,68.233499439961548,86.224526868861432,191.98548936093721,44.802742077688379,24.870262818319219,17.58549149872993,23.898500222930597,33.445871329758674,19.336353391792077,31.752729177202681,33.622813564768215,33.622813564768215,37.496863506362423,93.273498845958869,74.809387394321078,205.57974974664236,44.049024196739758,24.594852824090783,17.629185285731584,23.726392150649453,33.445871329758674,19.336353391792077,31.752729177202681,33.622813564768215,33.622813564768215,36.142985177446398,42.10678219127206,98.776989772396874,177.02675714111535,50.342520424214811,26.039847948742935,20.873380351750942,22.304523274051025,35.118164896246611,26.88547766119035,34.130242428039857,33.622813564768215,33.622813564768215,32.888828589478216,15.951673889077973,112.18974920935027,161.03025168790646,44.495754164468202,24.711753882174534,18.773959285373699,23.389273792563653,33.445871329758674,21.058083488321508,31.959336788786214,33.622813564768215,33.622813564768215,35.339400820017396,35.646771527372586,102.08971676900639,173.07588911639635]
[null,null,2048,null,43.970005628572771,24.779337128292475,17.095822886104493,24.90482759262667,33.927943034394559,19.615057712248184,32.21039679573699,34.107435624394462,34.107435624394462,35.636428770168465,49.216501768087241,97.698295535374584,182.55122607363029,45.057058939909346,25.182251460679481,18.211089750761854,23.455606543939655,33.927943034394559,19.615057712248184,32.21039679573699,34.107435624394462,34.107435624394462,36.370254526033087,17.248817726281533,111.9567362059755,165.57580845829011,44.604559891685454,24.86480990845423,17.902876986820722,23.928426618590692,33.927943034394559,19.615057712248184,32.21039679573699,34.107435624394462,34.107435624394462,38.0683647348907,69.216982246074778,87.467323154216686,194.75267013518214,45.448505916005118,25.228730082435664,17.838959790229023,24.242960997389719,33.927943034394559,19.615057712248184,32.21039679573699,34.107435624394462,34.107435624394462,38.037324142917207,94.617895412659038,75.887651690334735,208.54287124591099,44.683924330532221,24.949350469234457,17.883283357156998,24.068372247270403,33.927943034394559,19.615057712248184,32.21039679573699,34.107435624394462,34.107435624394462,36.663931703351906,42.713687840927449,100.20071084603539,179.57833039031476,51.068131797806814,26.415173015485632,21.174238593668782,22.626009278999121,35.624340186114289,27.272991202646448,34.62217830809815,34.107435624394462,34.107435624394462,33.362871364602441,16.181593168132942,113.80679494605084,163.35125947878623,45.137093235818355,25.06793647945441,19.044557544460226,23.726394837376855,33.927943034394559,21.36160394690042,32.419982343895263,34.107435624394462,34.107435624394462,35.848764891479277,36.160565883200178,103.56118579737759,175.57051657205704]
[null,null,2049,null,44.600919148768746,25.13488902309539,17.341126147805927,25.262180115595815,34.414765759723686,19.896508781748164,32.672574922366628,34.596833839541858,34.596833839541858,36.147766087532602,49.922695818743847,99.100141513609245,185.17060341988571,45.703570289159281,25.54358466244722,18.472395670035876,23.792164592577993,34.414765759723686,19.896508781748164,32.672574922366628,34.596833839541858,34.596833839541858,36.892121307385786,17.496316268875198,113.5631726287051,167.95161020496607,45.244578456517488,25.221588228676971,18.15976044589517,24.27176903246739,34.414765759723686,19.896508781748164,32.672574922366628,34.596833839541858,34.596833839541858,38.614597232695679,70.210157691516059,88.722367722996225,197.54712264720797,46.100634030277661,25.59073019316661,18.094926119025082,24.590816578579314,34.414765759723686,19.896508781748164,32.672574922366628,34.596833839541858,34.596833839541858,38.583111247803288,95.975541576560005,76.976542737377116,211.53519556174041,45.32508167387418,25.307341838717456,18.139885672627123,24.413722702491746,34.414765759723686,19.896508781748164,32.672574922366628,34.596833839541858,34.596833839541858,37.190012377768632,43.326574802642092,101.63846329346585,182.15505047387657,51.800894378611432,26.794197069623028,21.478061920903475,22.950663664599748,36.135504047709873,27.664323854074496,35.118962424473622,34.596833839541858,34.596833839541858,33.841586031921217,16.413778398999771,115.43977735292542,165.6951417838464,45.784752975173006,25.427629406990089,19.317822663924808,24.066838352778223,34.414765759723686,21.668115728068205,32.885167755925032,34.596833839541858,34.596833839541858,36.363148961461377,36.679423899875601,105.04715677584468,178.08972963718168]
[null,null,2050,null,45.240555539261265,25.495356699479728,17.589820917957631,25.624473315231757,34.908319188001009,20.181851131265887,33.141143021192789,35.092998365788056,35.092998365788056,36.666173041153321,50.638653551602324,100.52136910319383,187.82619569594948,46.359020160828258,25.909913576863293,18.737314346951919,24.133375818096429,34.908319188001009,20.181851131265887,33.141143021192789,35.092998365788056,35.092998365788056,37.42120330302712,17.747236671385505,115.19181928486057,170.36025925927319,45.893445775972296,25.583299286766781,18.420195518658502,24.619858422352173,34.908319188001009,20.181851131265887,33.141143021192789,35.092998365788056,35.092998365788056,39.168381819776904,71.217064560226873,89.994764259421714,200.38021063942548,46.761778323115792,25.957735237081195,18.354431381470359,24.943481533826542,34.908319188001009,20.181851131265887,33.141143021192789,35.092998365788056,35.092998365788056,39.136444284061966,97.351958254988233,78.0804885503523,214.56889108940248,45.975103516337839,25.670282717417351,18.400035714757056,24.763847896455104,34.908319188001009,20.181851131265887,33.141143021192789,35.092998365788056,35.092998365788056,37.723366526824208,43.947935403456768,103.09609378711976,184.76739571740075,52.543787972218766,27.178461426207072,21.786085842025752,23.279806649677383,36.653735147401065,28.061066983883389,35.622614967778944,35.092998365788056,35.092998365788056,34.326919301977775,16.649173771334151,117.09533701211066,168.07143008542261,46.441367114333403,25.79229536910664,19.594865886278857,24.411988764660773,34.908319188001009,21.978865273090936,33.356784718211799,35.092998365788056,35.092998365788056,36.884644791425522,37.205455532327029,106.55367245924303,180.6437727829956]
[null,null,2051,null,45.892072551964965,25.862519711442417,17.843134950949896,25.993495757760282,35.411039889919365,20.472493436673972,33.618414315529918,35.598378664273831,35.598378664273831,37.194208898412363,51.3679095011816,101.96899460934316,190.53111300893713,47.026644374700737,26.28304669363856,19.007153629955905,24.48092470939633,35.411039889919365,20.472493436673972,33.618414315529918,35.598378664273831,35.598378664273831,37.960112480802536,18.002817675687105,116.85071646447736,172.81364662096701,46.554365173142216,25.951728775037637,18.685467918934833,24.974413233214271,35.411039889919365,20.472493436673972,33.618414315529918,35.598378664273831,35.598378664273831,39.732452415539434,72.242673742137555,91.29079432073226,203.26592047840924,47.435202726477719,26.331557041801084,18.618756701108687,25.302696896715833,35.411039889919365,20.472493436673972,33.618414315529918,35.598378664273831,35.598378664273831,39.70005494188576,98.753940531003892,79.204939080289407,217.65893455317905,46.63719888065566,26.039964869016867,18.665017790233925,25.12047632447133,35.411039889919365,20.472493436673972,33.618414315529918,35.598378664273831,35.598378664273831,38.266627209097528,44.580837171511035,104.58079834578314,187.42826272639169,53.300480089893753,27.569863118498816,22.099831007112972,23.615063144738659,37.181591884415333,28.465179230443944,36.135622365938765,35.598378664273831,35.598378664273831,34.821267164252298,16.888941383163566,118.78164707754425,170.49185562496012,47.110177220830622,26.163734645865055,19.877054916329094,24.763550008870194,35.411039889919365,22.295386687884669,33.837161505675198,35.598378664273831,35.598378664273831,37.41582689789395,37.741257689390864,108.0881702023799,183.24525478966473]
[null,null,2052,null,46.55448189712429,26.235821107382385,18.100683993326761,26.368687670999826,35.92216528566896,20.767994821053811,34.103664829915139,36.112208120832683,36.112208120832683,37.731072678800984,52.109357455103314,103.44082212093018,193.2812522548345,47.705430207918731,26.662418005086987,19.281504198348848,24.834284067644621,35.92216528566896,20.767994821053811,34.103664829915139,36.112208120832683,36.112208120832683,38.508031366403316,18.262671589542737,118.53734777725991,175.30805073320596,47.22633409574275,26.326317820763556,18.955175253554813,25.334895638902516,35.92216528566896,20.767994821053811,34.103664829915139,36.112208120832683,36.112208120832683,40.305953378180639,73.285429485014532,92.608491951768585,206.19987481496378,48.119885719165978,26.711628554965685,18.887501121402561,25.667917771478898,35.92216528566896,20.767994821053811,34.103664829915139,36.112208120832683,36.112208120832683,40.273088277154422,100.17936172994786,80.348188641968051,220.80063864907032,47.310363430712094,26.415827520618091,18.934429946283664,25.483067014907924,35.92216528566896,20.767994821053811,34.103664829915139,36.112208120832683,36.112208120832683,38.818970349458688,45.224320054616754,106.0903248129094,190.13361521698482,54.069822901183123,27.967808427109098,22.418821494391075,23.95592459735424,37.718273549952414,28.87604759365701,36.657206435196969,36.112208120832683,36.112208120832683,35.32387973974172,17.132717529673133,120.49614957617271,172.95274684558757,47.790168772919586,26.541383798974568,20.163961699977019,25.120988800213112,35.92216528566896,22.617199839366826,34.325569432112701,36.112208120832683,36.112208120832683,37.955889527795108,38.286017609815254,109.64832231715212,185.89022945476248]
[null,null,2053,null,47.224324166576395,26.613311334646493,18.361123004795481,26.748089629140985,36.439026041884837,21.066812039418426,34.594360361588869,36.631803280242657,36.631803280242657,38.273960631197923,52.859125229010665,104.92916507352902,196.0622509337376,48.39183272671972,27.04604625864749,19.558933266493415,25.191608486738129,36.439026041884837,21.066812039418426,34.594360361588869,36.631803280242657,36.631803280242657,39.062098473832506,18.525441335554092,120.24290485392149,177.83044466330807,47.905843211073481,26.705110146588293,19.227908985996756,25.699423033463486,36.439026041884837,21.066812039418426,34.594360361588869,36.631803280242657,36.631803280242657,40.885889620257878,74.339886035782115,93.940975525672172,209.16675118171216,48.8122515697221,27.095964867236507,19.159261134614542,26.037236805683833,36.439026041884837,21.066812039418426,34.594360361588869,36.631803280242657,36.631803280242657,40.852551644591884,101.62077764263564,81.504266657082354,223.97759594430988,47.9910815896868,26.795907743505481,19.206865187943698,25.849726351372809,36.439026041884837,21.066812039418426,34.594360361588869,36.631803280242657,36.631803280242657,39.377511356404824,45.875023487355065,107.61678974267979,192.86932458643969,54.847798541875179,28.370219097467636,22.741391387907004,24.300610871268219,38.260977343979086,29.291526328780407,37.184643222155245,36.631803280242657,36.631803280242657,35.832132152968192,17.379229099006416,122.22989058247805,175.44125183445266,48.477790540015846,26.923270569781966,20.454087877218235,25.482438427898799,36.439026041884837,22.942624070325547,34.819457805297723,36.631803280242657,36.631803280242657,38.502012224135157,38.836890305181363,111.22598096717942,188.56488349649595]
[null,null,2054,null,47.90166951476877,26.995029928838182,18.62447926185947,27.1317413680081,36.961676290834291,21.368976387727777,35.090552302461511,37.157218561152739,37.157218561152739,38.822929613771279,53.617291348171968,106.43417934544458,198.87440030738782,49.085923819952257,27.433971632776114,19.839469890309005,25.552935390259009,36.961676290834291,21.368976387727777,35.090552302461511,37.157218561152739,37.157218561152739,39.622371832082258,18.791154434328927,121.96756632220746,180.38109258861863,48.592963686017612,27.088145424487706,19.503697680424466,26.068033594867025,36.961676290834291,21.368976387727777,35.090552302461511,37.157218561152739,37.157218561152739,41.472321880109867,75.406153830613292,95.288384597160842,212.16686030788401,49.512372791550987,27.484606231226561,19.43406520292811,26.410692679142272,36.961676290834291,21.368976387727777,35.090552302461511,37.157218561152739,37.157218561152739,41.438505733011375,103.07833923257255,82.673294204904366,227.19013917048829,48.679424651089505,27.180245344539937,19.482352048116052,26.220492735120033,36.961676290834291,21.368976387727777,35.090552302461511,37.157218561152739,37.157218561152739,39.942308727492041,46.533015619709779,109.16035300602006,195.63567735322187,55.634488491526703,28.777137275165323,23.067574471304585,24.649158066434556,38.809760105376007,29.711658950059849,37.717987966738072,37.157218561152739,37.157218561152739,36.346077634623285,17.628501909007014,123.98305167598714,177.95763121961744,49.173114538663228,27.309434954352945,20.74746383377575,25.847936747553991,36.961676290834291,23.271693463347372,35.318878351535858,37.157218561152739,37.157218561152739,39.054252183865941,39.39393346992167,112.82131138504855,191.26949703883616]
[null,null,2055,null,48.585588450735536,27.38045307446842,18.890391372412925,27.519116419343476,37.489398822771982,21.674073219254446,35.59155975034988,37.687732959486887,37.687732959486887,39.377226300745342,54.382815414863558,107.95379967237264,201.71384138798155,49.786751017207614,27.825661794695129,20.12272910183485,25.917768945330518,37.489398822771982,21.674073219254446,35.59155975034988,37.687732959486887,37.687732959486887,40.188082602883725,19.05944625957212,123.70896550571238,182.95649436816822,49.286752615636587,27.474898032146129,19.782162884250003,26.440221495195861,37.489398822771982,21.674073219254446,35.59155975034988,37.687732959486887,37.687732959486887,42.064445422767825,76.482769677526093,96.648870176553643,215.19608527684755,50.219288639366006,27.877019331636991,19.711536224914049,26.787772914930201,37.489398822771982,21.674073219254446,35.59155975034988,37.687732959486887,37.687732959486887,42.030146463617555,104.55004635266421,83.85366708080285,230.43385989708463,49.37444803228049,27.568312914285546,19.76051248840654,26.594857379892982,37.489398822771982,21.674073219254446,35.59155975034988,37.687732959486887,37.687732959486887,40.512587416349426,47.19739351827436,110.71889643955565,198.42887737417942,56.428813210427144,29.188004564442846,23.396923138012014,25.001087887003237,39.363868763910581,30.135868928141456,38.256508783618287,37.687732959486887,37.687732959486887,36.86501092012751,17.880193893658593,125.75322707152344,180.49843188530954,49.875186606591591,27.699347036437608,21.0436869828422,26.216982202052677,37.489398822771982,23.603956451105869,35.823145738172052,37.687732959486887,37.687732959486887,39.611851592594945,39.956382698418565,114.43212436961579,194.0003586606293]
[null,null,2056,null,49.272757527286878,27.7677078398155,19.157567158669714,27.908332366301973,38.019629213943027,21.980619941319631,36.094948101228219,38.220768484647664,38.220768484647664,39.934157133468986,55.151977428549685,109.48064158571675,204.56677614773542,50.490908707006433,28.219213358638381,20.407334426490355,26.284336273633897,38.019629213943027,21.980619941319631,36.094948101228219,38.220768484647664,38.220768484647664,40.756481761794696,19.32901306947193,125.45864021993093,185.54413505119754,49.983838590327267,27.863488577431703,20.061951418974481,26.814178118302092,38.019629213943027,21.980619941319631,36.094948101228219,38.220768484647664,38.220768484647664,42.659382873121373,77.564501851351352,98.015821097325002,218.23970582179771,50.92956391439678,28.271297269642176,19.990325853217442,27.166645123002439,38.019629213943027,21.980619941319631,36.094948101228219,38.220768484647664,38.220768484647664,42.624598807485057,106.02874736455803,85.039649360955423,233.69299553299851,50.072774324941882,27.958224670661544,20.03999481128934,26.971001091835173,38.019629213943027,21.980619941319631,36.094948101228219,38.220768484647664,38.220768484647664,41.085576201116872,47.86492869390505,112.28484643109063,201.23535132611255,57.226912743666617,29.600824389878561,23.727836945574357,25.354690159280139,39.92061067464018,30.562094849917017,38.797588775673397,38.220768484647664,38.220768484647664,37.386410296338127,18.133081976694214,127.53181474897247,183.05130702200481,50.580595082976082,28.091112070700881,21.341317852660673,26.587781445701122,38.019629213943027,23.937798429245355,36.329809519779303,38.220768484647664,38.220768484647664,40.172100842369339,40.521504815423363,116.0505923091491,196.74419796694178]
[null,null,2057,null,49.963953326466068,28.157231868404462,19.42630856075651,28.299829068774979,38.552966687180138,22.288962987847537,36.601286243260226,38.756927529599821,38.756927529599821,40.494351509420632,55.925646632955967,111.01643059678609,207.43642873916269,51.199192670527168,28.61507108425544,20.693607501834752,26.65305163945218,38.552966687180138,22.288962987847537,36.601286243260226,38.756927529599821,38.756927529599821,41.328211666853797,19.60015950629354,127.21856780349934,188.14693897664668,50.685009399396598,28.254356213458223,20.343379478616832,27.190326079242769,38.552966687180138,22.288962987847537,36.601286243260226,38.756927529599821,38.756927529599821,43.257806580606172,78.652572836933828,99.390782175118403,221.30116159265839,51.644001311414073,28.667885625779977,20.270749152975231,27.547737473606372,38.552966687180138,22.288962987847537,36.601286243260226,38.756927529599821,38.756927529599821,43.222534565822031,107.51611337467081,86.232581345113459,236.97122928560631,50.77519272008611,28.350421259905971,20.3211148647279,27.34934895767179,38.552966687180138,22.288962987847537,36.601286243260226,38.756927529599821,38.756927529599821,41.66192262665114,48.536375540023165,113.85997268867163,204.05827085534594,58.029689037778247,30.016063286528393,24.060689865594259,25.710364495506997,40.480615021539144,30.990818400911301,39.341839427063803,38.756927529599821,38.756927529599821,37.910865006000108,18.387451951452014,129.32082472202649,185.61914167947862,51.290137162531408,28.485172797803234,21.640692801191573,26.960753525345453,38.552966687180138,24.273596678546291,36.839442286144077,38.756927529599821,38.756927529599821,40.735633080869924,41.089938475531177,117.67854426316588,199.50411581956698]
[null,null,2058,null,50.658963094484946,28.548905262642212,19.69653285862293,28.693486021969772,39.089247078337721,22.599007449188431,37.110418322839806,39.296045061702777,39.296045061702777,41.05763699775548,56.703584888536064,112.5606939814548,210.32191586774633,51.911384894152675,29.013113124407163,20.981460211474239,27.02380155021072,39.089247078337721,22.599007449188431,37.110418322839806,39.296045061702777,39.296045061702777,41.903096336518253,19.872802109703912,128.98820654123253,190.76410498745469,51.390049218694678,28.64738062906299,20.62636043810517,27.568549597650431,39.089247078337721,22.599007449188431,37.110418322839806,39.296045061702777,39.296045061702777,43.859532347183332,79.74664772016628,100.77333018951171,224.37951025686132,52.362380922740783,29.066662328019248,20.552719808386037,27.930932664464791,39.089247078337721,22.599007449188431,37.110418322839806,39.296045061702777,39.296045061702777,43.823769690782974,109.01168656373709,87.43209584238987,240.26755209690992,51.481487009549546,28.744781961797177,20.603786118456309,27.72978451989281,39.089247078337721,22.599007449188431,37.110418322839806,39.296045061702777,39.296045061702777,42.241449290419602,49.211527381674571,115.44379037995657,206.89676705205073,58.83689499389682,30.433593441624421,24.395379444150954,26.068001417208269,41.043709432254609,31.421907617707198,39.889093214508918,39.296045061702777,39.296045061702777,38.438213619130352,18.643225521484304,131.11970632378436,188.20114546439902,52.003594444385541,28.881407923731349,21.941719679214,27.335783638171591,39.089247078337721,24.611247838499732,37.351887169557159,39.296045061702777,39.296045061702777,41.302274849839826,41.661508711801126,119.31547913929029,202.27926270093124]
[null,null,2059,null,51.361584516990909,28.944868211769567,19.969716617037989,29.091454253727878,39.631400740970797,22.912447476209042,37.625126349199384,39.841066937271293,39.841066937271293,41.627091513796231,57.490043020362869,114.121869933201,213.2390044673601,52.631376952232422,29.415514468010997,21.272465445682109,27.398611864652295,39.631400740970797,22.912447476209042,37.625126349199384,39.841066937271293,39.841066937271293,42.484277066578905,20.148430658623422,130.77722612691684,193.40993385211917,52.102810540266653,29.044709395763583,20.912440567402562,27.950915369697512,39.631400740970797,22.912447476209042,37.625126349199384,39.841066937271293,39.841066937271293,44.46784813427805,80.852704765919881,102.17101968576841,227.49157258596634,53.08862813196842,29.469806379632043,20.837778568890091,28.318324558057675,39.631400740970797,22.912447476209042,37.625126349199384,39.841066937271293,39.841066937271293,44.431589462819794,110.52363907133839,88.644747262808409,243.59997579696659,52.195516540077193,29.14346164961378,20.889553150137509,28.114386561762718,39.631400740970797,22.912447476209042,37.625126349199384,39.841066937271293,39.841066937271293,42.827322853085924,49.894073396446203,117.04495383182112,209.76635008135324,59.65294136222343,30.855696331413938,24.733734498431328,26.429555130881504,41.612970778019339,31.857718066235858,40.442340452605322,39.841066937271293,39.841066937271293,38.971337684091743,18.901800289617114,132.93828903744853,190.81142701115738,52.72486541544329,29.281982564027466,22.246043363543709,27.714921030884206,39.631400740970797,24.95259690902218,37.869944281136966,39.841066937271293,39.841066937271293,41.87512240405448,42.239338709233856,120.97034150833382,205.08480262162215]
[null,null,2060,null,52.065987337000855,29.341835069099314,20.243592994336812,29.490431477799635,40.174928957738508,23.22668218620386,38.14113934515435,40.387470638923723,40.387470638923723,42.197989801434332,58.278495105843966,115.68700402635112,216.16348893362942,53.353194448612321,29.818936043458208,21.564208482611686,27.774372457774845,40.174928957738508,23.22668218620386,38.14113934515435,40.387470638923723,40.387470638923723,43.066931298398444,20.424758024848146,132.57078151939899,196.06247084264558,52.81737896762634,29.443045533504357,21.199246012512912,28.334250576222551,40.174928957738508,23.22668218620386,38.14113934515435,40.387470638923723,40.387470638923723,45.077706220241055,81.961566063290931,103.57225282658277,230.61152511011477,53.816716638549579,29.873972546119607,21.123560055670605,28.706698629150701,40.174928957738508,23.22668218620386,38.14113934515435,40.387470638923723,40.387470638923723,45.040950276148678,112.03942492124446,89.860473189845052,246.94084838723819,52.911356391757451,29.543152133540495,21.176044703816824,28.499963707857258,40.174928957738508,23.22668218620386,38.14113934515435,40.387470638923723,40.387470638923723,43.41468181552623,50.578349910357346,118.65017680775546,212.64320853363904,60.471056701004258,31.278869403538064,25.07294740422298,26.792025512994471,42.183675405625429,32.294633450680706,40.996990371032062,40.387470638923723,40.387470638923723,39.505813409916605,19.161030637599584,134.76148251105127,193.42832655856745,53.447965067304629,29.6835728048184,22.551138617646696,28.095019672974367,40.174928957738508,25.294811421961743,38.389314853445299,40.387470638923723,40.387470638923723,42.449422332436157,42.818633713115517,122.62939954747679,207.89745559302847]
[null,null,2061,null,52.786302941711718,29.747769590888449,20.52365636535972,29.89842178144302,40.730735727695681,23.54801560327887,38.66880931276566,40.946217852295874,40.946217852295874,42.781784944790857,59.084758687711599,117.28749522078604,219.15403885328851,54.091318135267109,30.231471098425157,21.862542129349723,28.158621656064216,40.730735727695681,23.54801560327887,38.66880931276566,40.946217852295874,40.946217852295874,43.66274795813942,20.707327753767629,134.40485415570674,198.77492986761379,53.548089825447171,29.850380268380764,21.492530524954418,28.726245501925938,40.730735727695681,23.54801560327887,38.66880931276566,40.946217852295874,40.946217852295874,45.701341281741882,83.095477048975312,105.00514047054817,233.80195880126536,54.561253000419384,30.287269012782048,21.415797478091172,29.103846249697494,40.730735727695681,23.54801560327887,38.66880931276566,40.946217852295874,40.946217852295874,45.664076831397161,113.58945307285221,91.103662926484304,250.35719283073368,53.64336739596088,29.951871809908052,21.469008233875041,28.894251219579406,40.730735727695681,23.54801560327887,38.66880931276566,40.946217852295874,40.946217852295874,44.015309487923354,51.278084546428786,120.29166251133289,215.58505654568501,61.307653642749642,31.711602150604786,25.419823286062297,27.162684268275711,42.76727251408046,32.741418955243908,41.564170087020074,40.946217852295874,40.946217852295874,40.052363188983911,19.426117118746511,136.62586276640653,196.10434307413695,54.187399873924747,30.094235154434248,22.863126114304521,28.483704918759013,40.730735727695681,25.644756718639321,38.920418246608918,40.946217852295874,40.946217852295874,43.036695961170103,43.41101525840962,124.32593647317913,210.77364769275886]
[null,null,2062,null,53.504979121630164,30.152780213327411,20.803082317408361,30.305483506815321,41.28527749187969,23.868617671529641,39.195278313437683,41.503693367500858,41.503693367500858,43.364251381361832,59.889187228804488,118.8843437273116,222.13778233747792,54.827761866269313,30.643067231352344,22.160196774308986,28.541996310392541,41.28527749187969,23.868617671529641,39.195278313437683,41.503693367500858,41.503693367500858,44.257208550349247,20.989254359289333,136.23475247712892,201.4812153867675,54.277137599074678,30.2567879170483,21.785147527352009,29.117348254538115,41.28527749187969,23.868617671529641,39.195278313437683,41.503693367500858,41.503693367500858,46.323556961551461,84.226807274545422,106.43476688913833,236.9851311252352,55.304094811508222,30.699624824446001,21.707369773625054,29.500089969716356,41.28527749187969,23.868617671529641,39.195278313437683,41.503693367500858,41.503693367500858,46.285785162305075,115.13595338948865,92.344023186623801,253.76576173841755,54.373712356862221,30.359661247965899,21.761304984439231,29.287641340327617,41.28527749187969,23.868617671529641,39.195278313437683,41.503693367500858,41.503693367500858,44.614570143014859,51.976226599606044,121.92941222426782,218.52020896688873,62.142346505562692,32.143350006063734,25.765909684907129,27.532499411189043,43.349541366473673,33.187187584387104,42.130058912623291,41.503693367500858,41.503693367500858,40.597669031015513,19.69060026803934,138.48599972730429,198.77426902635915,54.925151740807863,30.503962844252548,23.174403533277509,28.871505524221803,41.28527749187969,25.993905546391876,39.45031285842115,41.503693367500858,41.503693367500858,43.62263296615108,44.00204855442859,126.01861211269099,213.64329363327067]
[null,null,2063,null,54.22512659976902,30.558619987232198,21.083080319731472,30.713378582740852,41.840954532748214,24.189876087194804,39.722825119281801,42.062310165464815,42.062310165464815,43.947910262952576,60.695262623256397,120.48446135619231,225.12763424240129,55.565713269824386,31.055505997825509,22.458460787940336,28.926155822299879,41.840954532748214,24.189876087194804,39.722825119281801,42.062310165464815,42.062310165464815,44.852886142420573,21.271758134508012,138.06839702838175,204.19304130531035,55.007677904000573,30.664027577221077,22.078363585189194,29.509251685953892,41.840954532748214,24.189876087194804,39.722825119281801,42.062310165464815,42.062310165464815,46.947046462378054,85.360453597676681,107.86732008736062,240.17482014741535,56.048457393516209,31.112824824895981,21.999538985839241,29.897144893301444,41.840954532748214,24.189876087194804,39.722825119281801,42.062310165464815,42.062310165464815,46.908766275568148,116.68561975396038,93.586922754304553,257.18130878383306,55.105552504707674,30.768285526375045,22.054200134812604,29.681836822656951,41.840954532748214,24.189876087194804,39.722825119281801,42.062310165464815,42.062310165464815,45.215057624819195,52.675797912843834,123.57051479389315,221.46137033155617,62.978748179879403,32.57598175035767,26.112704603551208,27.903071652190278,43.933002259385624,33.63386880616811,42.697106244999524,42.062310165464815,42.062310165464815,41.144091241638939,19.955624876194662,140.34994482359977,201.44966094143336,55.664413958303925,30.914529342476804,23.48631820992701,29.260100048220689,41.840954532748214,26.343769163451878,39.981292288432648,42.062310165464815,42.062310165464815,44.209769521217048,44.59429183383218,127.71475305511075,216.51881441015996]
[null,null,2064,null,54.948411670491716,30.966227954324481,21.364298238366526,31.12305080654799,42.39905258905506,24.51253418563758,40.252670380644965,42.623360787021461,42.623360787021461,44.534112073365506,61.504849987487326,122.09155049765633,228.13051255850917,56.306879835441833,31.469741708472284,22.758024300612664,29.31198906920201,42.39905258905506,24.51253418563758,40.252670380644965,42.623360787021461,42.623360787021461,45.451159027333972,21.555492743378053,139.91003053984076,206.9166823105528,55.741401081758099,31.073041529710917,22.372857148754669,29.902862591654202,42.39905258905506,24.51253418563758,40.252670380644965,42.623360787021461,42.623360787021461,47.573252429058229,86.499039076195075,109.30611474087807,243.37840624613136,56.796063070290046,31.527825086120892,22.292981142806145,30.295929735578792,42.39905258905506,24.51253418563758,40.252670380644965,42.623360787021461,42.623360787021461,47.5344616397037,118.24203782115998,94.835237480108361,260.61173694097204,55.840581188637955,31.178690129709903,22.348371392760548,30.077749765450275,42.39905258905506,24.51253418563758,40.252670380644965,42.623360787021461,42.623360787021461,45.818161355554196,53.378417170885896,125.21876744236779,224.41534596880788,63.818793951787384,33.010498417106575,26.461010464325742,28.275258430144635,44.519005218507814,34.082496162222114,43.266624131753531,42.623360787021461,42.623360787021461,41.692894145561652,20.221804163454376,142.22201089579031,204.13670920480632,56.406897048914928,31.326884627635842,23.799591859850683,29.650387630007927,42.39905258905506,26.695157092577915,40.514585129477808,42.623360787021461,42.623360787021461,44.799464156894011,45.189115443206653,129.41828387169332,219.406863471794]
[null,null,2065,null,55.682399141197735,31.379867268774518,21.649677319411172,31.538784922379055,42.965408784331309,24.839966634011201,40.790355726292894,43.192713236454622,43.192713236454622,45.128987872085304,62.32641676086709,123.72241962780944,231.17782426076184,57.059013392306007,31.890106836747275,23.062020434201422,29.70353146440867,42.965408784331309,24.839966634011201,40.790355726292894,43.192713236454622,43.192713236454622,46.058284515422386,21.84342575395187,141.77891457707469,209.68062484644895,56.485981111458585,31.488107633828783,22.671708313544571,30.302297731147135,42.965408784331309,24.839966634011201,40.790355726292894,43.192713236454622,43.192713236454622,48.208724322823912,87.654472126576266,110.76619914099629,246.62939559039646,57.554731017400314,31.948966077976909,22.590765343405565,30.700615370036292,42.965408784331309,24.839966634011201,40.790355726292894,43.192713236454622,43.192713236454622,48.169415375573649,119.82148610061017,96.102023433981699,264.09292491016549,56.586486041997219,31.595167462038727,22.64689548279862,30.479521005122468,42.965408784331309,24.839966634011201,40.790355726292894,43.192713236454622,43.192713236454622,46.430189171161167,54.091433038287008,126.89140917314425,227.41303138259241,64.6712698238304,33.451444597411339,26.814470183225421,28.652952430530927,45.113679223547877,34.537761826741594,43.844569135931124,43.192713236454622,43.192713236454622,42.249817648716316,20.491922087518358,144.12177780228643,206.86351753852111,57.160366611303417,31.745341505895084,24.117500998658937,30.04645027058994,42.965408784331309,27.051744484984802,41.055769068409724,43.192713236454622,43.192713236454622,45.397884463975643,45.792740617060652,131.14702171787039,222.33764679890669]
[null,null,2066,null,56.424697199741402,31.798190022646931,21.938287610816619,31.959226196063085,43.538177558971732,25.171106442839474,41.334129025035864,43.768512190399683,43.768512190399683,45.730599163950487,63.15728574049308,125.37175430635239,234.25963921079597,57.819662996431788,32.315231557606381,23.369458570101283,30.099507106227019,43.538177558971732,25.171106442839474,41.334129025035864,43.768512190399683,43.768512190399683,46.672284194009393,22.134618891804731,143.66895909125085,212.47586217706498,57.238991663458087,31.907873332223613,22.97394322663331,30.706255483007009,43.538177558971732,25.171106442839474,41.334129025035864,43.768512190399683,43.768512190399683,48.85139135983421,88.82298759081182,112.24281537597797,249.91719432662399,58.321988997536621,32.374875447147978,22.891921211580403,31.109883065695129,43.538177558971732,25.171106442839474,41.334129025035864,43.768512190399683,43.768512190399683,48.811558387835063,121.41881771483818,97.383152597189437,267.61352869986268,57.340836417997899,32.016360367304202,22.948799617825102,30.885841307702666,43.538177558971732,25.171106442839474,41.334129025035864,43.768512190399683,43.768512190399683,47.049146683968253,54.812522042127313,128.5829894234177,230.44465814951326,65.533397871008333,33.897383399674034,27.171931956871568,29.03492287880119,45.715086436920323,34.998182245865841,44.429057933993789,43.768512190399683,43.768512190399683,42.813046929389706,20.765098427187571,146.04305485763058,209.62120021420787,57.922367347902821,32.168536370539421,24.439009670058546,30.446997338352435,43.538177558971732,27.412369345284084,41.603080573329215,43.768512190399683,43.768512190399683,46.003080396969587,46.403200349035231,132.89533323293463,225.30161397893946]
[null,null,2067,null,57.17574220935046,32.221442128840238,22.230298773431201,32.384621785879929,44.117695617657745,25.506148274137413,41.884309936435301,44.35109613484245,44.35109613484245,46.339299608844954,63.997945356404472,127.04052410203951,237.37776906728894,58.589275799084923,32.745365782514781,23.680519437193023,30.500148770705955,44.117695617657745,25.506148274137413,41.884309936435301,44.35109613484245,44.35109613484245,47.293519005547338,22.429243336122791,145.58127515347527,215.30403749514539,58.000875398371456,32.332585386035305,23.279739558163893,31.114973315601755,44.117695617657745,25.506148274137413,41.884309936435301,44.35109613484245,44.35109613484245,49.501631334776093,90.005272385934347,113.73683148126929,253.24373520197975,59.098288046728065,32.805803566358286,23.196625783152307,31.52397341239741,44.117695617657745,25.506148274137413,41.884309936435301,44.35109613484245,44.35109613484245,49.461268163124622,123.03497166236491,98.679378087229864,271.17561791271942,58.104075764876384,32.442516445636151,23.254261273533643,31.296949530394805,44.117695617657745,25.506148274137413,41.884309936435301,44.35109613484245,44.35109613484245,47.675397750912772,55.542108077797089,130.29450259619051,233.51200842490039,66.405684899142727,34.348576971010509,27.53360592076373,29.421394317988774,46.323580398540635,35.464028079793806,45.020434120291014,44.35109613484245,44.35109613484245,43.38291308442907,21.041493770392922,147.98697149311744,212.41137834793943,58.693347204248141,32.596717998559434,24.764306874357402,30.852264296677468,44.117695617657745,27.777243668409927,42.156841383748002,44.35109613484245,44.35109613484245,46.615407723007003,47.020853500609299,134.66424616961561,228.3005073932319]
[null,null,2068,null,57.948649740744166,32.657014879300725,22.530810226071466,32.822400415635073,44.714083139585632,25.850942995397737,42.450506322283083,44.950638788834965,44.950638788834965,46.965719000761965,64.863076127747533,128.75787090116179,240.58666602967128,59.38129162212762,33.188020986515056,24.000635121101507,30.91245290148909,44.714083139585632,25.850942995397737,42.450506322283083,44.950638788834965,44.950638788834965,47.932837632871092,22.732444141710516,147.54925772174735,218.21453949632897,58.784937164612906,32.769660582414822,23.594437458673983,31.535588707469987,44.714083139585632,25.850942995397737,42.450506322283083,44.950638788834965,44.950638788834965,50.170799450422621,91.221972864216085,115.27433760277887,256.66710991741758,59.897184749398605,33.249275774502422,23.510200143150517,31.950117709408595,44.714083139585632,25.850942995397737,42.450506322283083,44.950638788834965,44.950638788834965,50.129890645288228,124.69817099390066,100.01333601361064,274.84139765279951,58.889532604228073,32.881077701323626,23.568614755986061,31.720024895348001,44.714083139585632,25.850942995397737,42.450506322283083,44.950638788834965,44.950638788834965,48.319878654176762,56.292931975904551,132.05583700942918,236.66864763951048,67.303363739899623,34.812904547840958,27.905808021869195,29.819115735739935,46.949787296564914,35.943434438806449,45.629024953633895,44.950638788834965,44.950638788834965,43.969367740915715,21.325934835405462,149.98747451057491,215.28277708689609,59.48676987519076,33.03736376661179,25.099073307696422,31.269328361156742,44.714083139585632,28.152739289508499,42.726721877576374,44.950638788834965,44.950638788834965,47.245559572652922,47.656486207747768,136.48465122343808,231.38669700383878]
[null,null,2069,null,58.763165885150663,33.116036201908202,22.847499376859233,33.283746368583344,45.342576517127078,26.214299355072828,43.047183257680572,45.582457151448985,45.582457151448985,47.625860980444415,65.774780247140868,130.56766914560069,243.96831037318597,60.215944731705179,33.654506038632007,24.337983875034624,31.346952964288047,45.342576517127078,26.214299355072828,43.047183257680572,45.582457151448985,45.582457151448985,48.606573263879902,23.051967423755574,149.6231844318128,221.28172511944828,59.611208019632201,33.230265233437962,23.926076768895339,31.978847458804395,45.342576517127078,26.214299355072828,43.047183257680572,45.582457151448985,45.582457151448985,50.875991483592934,92.504173052743909,116.89461364774787,260.27477818408471,60.739089163067469,33.716621813268091,23.840655428312402,32.399203008314252,45.342576517127078,26.214299355072828,43.047183257680572,45.582457151448985,45.582457151448985,50.834507671406961,126.45090680236039,101.41910607388799,278.70452054765536,59.71727363455912,33.343248411996484,23.899891106788591,32.165876049668704,45.342576517127078,26.214299355072828,43.047183257680572,45.582457151448985,45.582457151448985,48.999054466480757,57.084175639311475,133.91199089202198,239.99522099781422,68.249368117642121,35.302228680754475,28.298047207047983,30.238248041451079,47.609705342983432,36.448649103286193,46.270378594219757,45.582457151448985,45.582457151448985,44.587393528307636,21.625688467210715,152.09567237185698,218.30875436737534,60.322905568752375,33.501731207042681,25.451861517779371,31.708844603361811,45.342576517127078,28.548449297647803,43.327281250789568,45.582457151448985,45.582457151448985,47.909634942754039,48.326337491178158,138.40305574852255,234.63902818245475]
[null,null,2070,null,59.611191777423571,33.59394197375773,23.177217334586931,33.764072407646118,45.996926539452986,26.592604442384545,43.668407887804769,46.240268950993588,46.240268950993588,48.313161649917234,66.723992493757265,132.45192372006656,247.48907786374104,61.084936037584846,34.140182602896679,24.689211386024894,31.799328655031676,45.996926539452986,26.592604442384545,43.668407887804769,46.240268950993588,46.240268950993588,49.308026836735237,23.384636110827046,151.78243389652835,224.47509684409061,60.471472219303052,33.709819472910496,24.271359945778425,32.440342176483739,45.996926539452986,26.592604442384545,43.668407887804769,46.240268950993588,46.240268950993588,51.610195596377892,93.839123828631969,118.58154895062573,264.03086837563558,61.615630096617991,34.203194785757482,24.184705868540206,32.866763981692635,45.996926539452986,26.592604442384545,43.668407887804769,46.240268950993588,46.240268950993588,51.568113120959367,128.27575135344148,102.88271047004874,282.72657494444957,60.579068493553422,33.824433139877286,24.244796391855633,32.630069823555431,45.996926539452986,26.592604442384545,43.668407887804769,46.240268950993588,46.240268950993588,49.706172033387851,57.907971604896495,135.84450820710668,243.45865184539105,69.234291758552544,35.811683941125054,28.706423378938371,30.674623735133729,48.296772866425641,36.974648642493577,46.938117959553793,46.240268950993588,46.240268950993588,45.230845316709676,21.937774167192661,154.29060292624675,221.4592224101491,61.193440453129035,33.985203039637028,25.819163674640791,32.166442842542182,45.996926539452986,28.960439084514675,43.952548044860386,46.240268950993588,46.240268950993588,48.60103082500116,49.023746911755246,140.40038473984731,238.02516247660373]
[null,null,2071,null,60.475840736175797,34.081215690016386,23.513398448193094,34.253813833375553,46.664103179481238,26.978325094094878,44.301809809234875,46.9109752262545,46.9109752262545,49.013934838123319,67.691811269280691,134.37311359254718,251.07885969995118,61.970961375537364,34.635379435220123,25.047323684753085,32.260571847639788,46.664103179481238,26.978325094094878,44.301809809234875,46.9109752262545,46.9109752262545,50.023230354586353,23.723825794192578,153.98400912950694,227.73106527828588,61.348599381663142,34.198773970176838,24.623411389121081,32.910883147870351,46.664103179481238,26.978325094094878,44.301809809234875,46.9109752262545,46.9109752262545,52.358791632673018,95.200242408706671,120.30155168451198,267.86058572589167,62.509353050603288,34.699305597766198,24.535500411032174,33.343490119972749,46.664103179481238,26.978325094094878,44.301809809234875,46.9109752262545,46.9109752262545,52.316098758980822,130.13636664284957,104.37500454820918,286.82746995003959,61.457756319334628,34.315050086506687,24.596462535918821,33.103362758249531,46.664103179481238,26.978325094094878,44.301809809234875,46.9109752262545,46.9109752262545,50.427150571322493,58.747915680139592,137.81490687002972,246.9899731214918,70.238521945771396,36.331125581320286,29.12280457085912,31.119553297550979,48.997308338455298,37.510958863707259,47.618946401485537,46.9109752262545,46.9109752262545,45.886910094823847,22.255977394228097,156.52855867226756,224.67144616131952,62.081039626918795,34.478151922976316,26.193665715641533,32.633010956369105,46.664103179481238,29.380504725760868,44.590071365034802,46.9109752262545,46.9109752262545,49.305979500646295,49.734827003554976,142.43686552229829,241.47767202649956]
[null,null,2072,null,61.352076652925994,34.575019247115819,23.854084646092286,34.750118169141885,47.340220497257327,27.369214697834909,44.94369980132663,47.590669479077576,47.590669479077576,49.724098923543394,68.672599557330713,136.32004888012739,254.7167473610015,62.86886013133428,35.137212284205333,25.410234962444832,32.727996052143524,47.340220497257327,27.369214697834909,44.94369980132663,47.590669479077576,47.590669479077576,50.748018147116142,24.067560878989198,156.21508715607087,231.03066618217622,62.2374807195025,34.694280832036227,24.980180591325112,33.387729728506351,47.340220497257327,27.369214697834909,44.94369980132663,47.590669479077576,47.590669479077576,53.117419428958328,96.579601019788115,122.04460377181749,271.74162422056395,63.415052576380901,35.202064674464175,24.890995868951869,33.826604753473788,47.340220497257327,27.369214697834909,44.94369980132663,47.590669479077576,47.590669479077576,53.074107977188291,132.02191560156996,105.88729650947489,290.98332008823314,62.348219234679746,34.812241675823323,24.952841275538063,33.582998180608165,47.340220497257327,27.369214697834909,44.94369980132663,47.590669479077576,47.590669479077576,51.157790773626132,59.599115649028285,139.81171038351712,250.56861680617155,71.256209586309069,36.857528137163911,29.544765589521209,31.570445256730046,49.707231522120196,38.054456052469085,48.30889846576207,47.590669479077576,47.590669479077576,46.551766643229286,22.578444788113167,158.79650473860036,227.92671616994281,62.980533309158062,34.977706698740022,26.573186370699801,33.105831440112595,47.340220497257327,29.806199568190078,45.236137985769254,47.590669479077576,47.590669479077576,50.02037502823373,50.455436112967554,144.5006367063059,244.97644784750719]
[null,null,2073,null,62.244118978779483,35.077730520608725,24.200916478194447,35.255375332817806,48.028534287150492,27.767155554408607,45.597168839221467,48.282624728305748,48.282624728305748,50.44707365031023,69.671080273445256,138.3021049098102,258.4202588335657,63.782956071926023,35.648097689883222,25.779692792285093,33.20385211621835,48.028534287150492,27.767155554408607,45.597168839221467,48.282624728305748,48.282624728305748,51.485880377868362,24.417496596822648,158.48641157216892,234.38978854685993,63.142396577043229,35.198726136183048,25.343385548852225,33.873178138842505,48.028534287150492,27.767155554408607,45.597168839221467,48.282624728305748,48.282624728305748,53.889732102884487,97.983841864170145,123.81909875464201,275.69267272169662,64.337090004948664,35.713893016065335,25.25290410513691,34.318434286004816,48.028534287150492,27.767155554408607,45.597168839221467,48.282624728305748,48.282624728305748,53.845790914514147,133.94147795514911,107.42686868713723,295.21413755680049,63.254745199783727,35.318402098205617,25.315648726930547,34.071285740549051,48.028534287150492,27.767155554408607,45.597168839221467,48.282624728305748,48.282624728305748,51.901610985701311,60.465670403859647,141.84453421143107,254.21181560099203,72.292255281884451,37.393426462345026,29.974338357894915,32.029470850506769,50.429961001508019,38.607757380444845,49.011296566980434,48.282624728305748,48.282624728305748,47.228616530869324,22.906729167415964,161.10536225659072,231.24070795487603,63.896252947050961,35.486272937061109,26.959553194263993,33.587181126843106,48.028534287150492,30.239573514732662,45.893858994460352,48.282624728305748,48.282624728305748,50.74765752810201,51.189044281388334,146.60163623373847,248.5383380432288]
[null,null,2074,null,63.004607613110103,35.506304590202831,24.496599383246501,35.686119838155065,48.615339194155261,28.106410194899496,46.154267714244568,48.872534071452606,48.872534071452606,51.063427882255901,70.522310326320678,139.99185778306986,261.57759599164643,64.562245970353956,36.083640413813583,26.094664932412122,33.609531440862455,48.615339194155261,28.106410194899496,46.154267714244568,48.872534071452606,48.872534071452606,52.114926583329535,24.715825642929328,160.42277305778282,237.2535252840417,63.913860222590344,35.628778510747281,25.653026957254706,34.287035181176542,48.615339194155261,28.106410194899496,46.154267714244568,48.872534071452606,48.872534071452606,54.548148182086081,99.180992684332821,125.33190058814642,279.06104145456533,65.123150222643289,36.150239616708468,25.56144002581312,34.737731396329821,48.615339194155261,28.106410194899496,46.154267714244568,48.872534071452606,48.872534071452606,54.503670127343739,135.57795338964056,108.73939289020527,298.82101640718952,64.027581502733327,35.749916654425149,25.62495125130398,34.487563229697088,48.615339194155261,28.106410194899496,46.154267714244568,48.872534071452606,48.872534071452606,52.53573652086282,61.20443023954779,143.57756791613315,257.31773467654375,73.175510429422872,37.850293332498431,30.340560002875232,32.420801773734041,51.046106153863029,39.079460750442443,49.610108705452561,48.872534071452606,48.872534071452606,47.805648171386721,23.186599900062181,163.0737216604345,234.0659697318834,64.676927088476475,35.919838512189415,27.2889406790135,33.997543903684338,48.615339194155261,30.609035760198765,46.454582782080479,48.872534071452606,48.872534071452606,51.367684245520586,51.814463791165863,148.39279144581624,251.57493948250269]
[null,null,2075,null,63.756647967094082,35.930117623634423,24.788997542198725,36.112079195924586,49.195625276105496,28.441896050187847,46.705177768995384,49.455890102314427,49.455890102314427,51.672935025225826,71.364084050986165,141.66283916475771,264.69985824096972,65.33287872489305,36.514344686689483,26.406138042019762,34.010704067430204,49.195625276105496,28.441896050187847,46.705177768995384,49.455890102314427,49.455890102314427,52.736984704479099,25.010840546913073,162.33762347282396,240.08544872421612,64.676753666216499,36.054053426635569,25.959228554321395,34.696294679038232,49.195625276105496,28.441896050187847,46.705177768995384,49.455890102314427,49.455890102314427,55.199249906581088,100.36484433697433,126.8278966819969,282.39199092555231,65.900478084864559,36.581738836017927,25.866548416034298,35.152370528380551,49.195625276105496,28.441896050187847,46.705177768995384,49.455890102314427,49.455890102314427,55.154240949523818,137.1962491924757,110.03733624100454,302.38782638300404,64.79183235488901,36.176637508569435,25.9308177290097,34.899216285590576,49.195625276105496,28.441896050187847,46.705177768995384,49.455890102314427,49.455890102314427,53.162817545358209,61.934983180459376,145.29134932181785,260.38915004763544,74.048953481464849,38.302084861317461,30.702713285770795,32.807785395504752,51.655406539910778,39.545923960192688,50.202268630344612,49.455890102314427,49.455890102314427,48.37626955822261,23.463361544283575,165.02021452832247,236.85984563082866,65.448928708435673,36.348587600440759,27.614668992950698,34.403347953904188,49.195625276105496,30.974393643697727,47.009077480216568,49.455890102314427,49.455890102314427,51.980823076263832,52.432935505651884,150.1640486861258,254.57780726804151]
[null,null,2076,null,64.477956476885709,36.336611697995373,25.069446961145907,36.520631885892428,49.752198187129444,28.763672403082019,47.233575093043754,50.015407509950563,50.015407509950563,52.257534889679825,72.171459011257397,143.26553652525132,267.69453042618852,66.072019863833901,36.927448392605235,26.70488292098943,34.395482926577621,49.752198187129444,28.763672403082019,47.233575093043754,50.015407509950563,50.015407509950563,53.333622656143746,25.293799778597275,164.17422425100054,242.80164668574156,65.408471758253199,36.461949644180365,26.25291733911325,35.088829942547441,49.752198187129444,28.763672403082019,47.233575093043754,50.015407509950563,50.015407509950563,55.823744605742192,101.50031834027406,128.26275946215614,285.5868224081724,66.646040738448264,36.995605003182362,26.159188667464271,35.550065589365488,49.752198187129444,28.763672403082019,47.233575093043754,50.015407509950563,50.015407509950563,55.778226441491988,138.748413950339,111.28223962843488,305.80888002026586,65.524852385469885,36.585920576651134,26.224185088966326,35.29404729528931,49.752198187129444,28.763672403082019,47.233575093043754,50.015407509950563,50.015407509950563,53.764273141326136,62.635682352174328,146.93509769954034,263.33505319304084,74.8867036140457,38.735414100450093,31.050067311944641,33.178955078161344,52.239808096485916,39.99332532757294,50.770230164216358,50.015407509950563,50.015407509950563,48.923572718237054,23.72881342875127,166.88716470249651,239.53955084948484,66.189382774629763,36.759816019611023,27.927086542724876,34.792568975330553,49.752198187129444,31.324821315685213,47.540912962556142,50.015407509950563,50.015407509950563,52.568906220945983,53.026133607802741,151.86292417026306,257.45796399901178]
[null,null,2077,null,65.215990580801176,36.752531496313864,25.356399399383587,36.938658034689404,50.321676827787449,29.092910058046108,47.774224815418492,50.587898923768954,50.587898923768954,52.855690368583097,72.997555261667259,144.90539699305765,270.75864262330799,66.828300097243158,37.350131085629037,27.010555051647373,34.789183980511559,50.321676827787449,29.092910058046108,47.774224815418492,50.587898923768954,50.587898923768954,53.944095359628122,25.583320226735339,166.05341185404654,245.58082744041002,66.157156820254016,36.879304098369694,26.553416135635821,35.490467255190467,50.321676827787449,29.092910058046108,47.774224815418492,50.587898923768954,50.587898923768954,56.462719994828447,102.66212154537803,129.73089362641599,288.85573516662248,67.408891387623967,37.419067837292538,26.458614617389781,35.956982344098385,50.321676827787449,29.092910058046108,47.774224815418492,50.587898923768954,50.587898923768954,56.416680815964881,140.33657007306354,112.55600964990445,309.3092605389329,66.274869575171607,37.004694039460723,26.524355007502539,35.698033587542028,50.321676827787449,29.092910058046108,47.774224815418492,50.587898923768954,50.587898923768954,54.379675199931228,63.352629231756239,148.61696106943924,266.34926550112669,75.743879371729491,39.178791313337868,31.405475731460864,33.558731388050148,52.837760669176824,40.451100971118905,51.351361505409869,50.587898923768954,50.587898923768954,49.483566662281959,24.000420571917228,168.79740543880695,242.28139267300614,66.947006379253523,37.180579942020032,28.24674838403832,35.190815195739695,50.321676827787449,31.683374652255697,48.085080566723633,50.587898923768954,50.587898923768954,53.170625749859717,53.633086699055973,153.60119292569669,260.40490537461238]
[null,null,2078,null,65.956848046064579,37.170042402517723,25.644449578794106,37.358283349249426,50.893334018154725,29.423407216960474,48.316942802011418,51.162580412708863,51.162580412708863,53.456134100902091,73.826811756584419,146.55153077348774,273.83447663097422,67.587473492862486,37.774430758100799,27.317396535962917,35.184391144166483,50.893334018154725,29.423407216960474,48.316942802011418,51.162580412708863,51.162580412708863,54.556903436269181,25.873948240009451,167.93978831952566,248.37063999580431,66.908705989014408,37.298255148743536,26.855064495142965,35.893641037839949,50.893334018154725,29.423407216960474,48.316942802011418,51.162580412708863,51.162580412708863,57.104139794554087,103.82836924734983,131.20464416156034,292.13715320346427,68.174660334241068,37.844150635292969,26.759186026107933,36.365455765428472,50.893334018154725,29.423407216960474,48.316942802011418,51.162580412708863,51.162580412708863,57.057577607927364,141.93080171260718,113.83465249910073,312.82303181963528,67.027755967708885,37.42506952689515,26.825673230895294,36.103565335860523,50.893334018154725,29.423407216960474,48.316942802011418,51.162580412708863,51.162580412708863,54.997431489020386,64.072318803169878,150.30525843474021,269.37500872693045,76.60433426907602,39.623864672892552,31.762243771608546,33.939960538327377,53.438000719062458,40.910627842760107,51.934715973906179,51.162580412708863,51.162580412708863,50.045702872176527,24.273066752582636,170.71495383181181,245.03372345657098,67.707528285175584,37.602953503589113,28.567633096872733,35.590584913477358,50.893334018154725,32.043299640388469,48.631329892822777,51.162580412708863,51.162580412708863,53.77464716651987,54.242361699132616,155.34611145624297,263.36312032189545]
[null,null,2079,null,66.695951430392853,37.586564794796672,25.93181776017968,37.776915143734826,51.463637732278478,29.753121878845711,48.858375829866546,51.735901264966543,51.735901264966543,54.055156200919498,74.654104873825972,148.19376710803064,276.9030281827761,68.344849442087423,38.197725843319041,27.623511531280254,35.578662601044179,51.463637732278478,29.753121878845711,48.858375829866546,51.735901264966543,51.735901264966543,55.168260606339764,26.163888151885914,169.82169853184578,251.15384729007147,67.658475762775709,37.716214275455016,27.155998661082059,36.295860251656883,51.463637732278478,29.753121878845711,48.858375829866546,51.735901264966543,51.735901264966543,57.744040945558652,104.99185569907361,132.674905391625,295.41080203625722,68.938616218598625,38.268226991883544,27.059045791085683,36.772962070309759,51.463637732278478,29.753121878845711,48.858375829866546,51.735901264966543,51.735901264966543,57.696956989460865,143.52125879164993,115.11026798723256,316.32848376834335,67.778859799187671,37.844449718118511,27.126278042362202,36.508136932541653,51.463637732278478,29.753121878845711,48.858375829866546,51.735901264966543,51.735901264966543,55.613725155972261,64.790304411519571,151.98955852612517,272.39358809361698,77.46275192228083,40.067884260660698,32.118167114838343,34.320287076677502,54.036819618892402,41.369066721956706,52.51668927126012,51.735901264966543,51.735901264966543,50.606508148045378,24.545067406287767,172.62796216787441,247.77953772220758,68.466249551921464,38.024327038234532,28.887758071453089,35.989408121969703,51.463637732278478,32.402372457099098,49.176285899256953,51.735901264966543,51.735901264966543,54.377238480223575,54.850194157678644,157.08689865455412,266.31433129245636]
[null,null,2080,null,67.447965494154943,38.010363012349529,26.224205697323406,38.202859610593265,52.043903528282932,30.088596006043236,49.409266625614173,52.31923690256167,52.31923690256167,54.664642036418407,75.495849171323243,149.86469007467326,280.02518128241491,69.115455256441692,38.628415059408624,27.934973752247252,35.979821203208438,52.043903528282932,30.088596006043236,49.409266625614173,52.31923690256167,52.31923690256167,55.79029698125462,26.458892742583615,171.73648200653986,253.9856717303781,68.421342536771945,38.141474324359308,27.462189553792413,36.705105442409973,52.043903528282932,30.088596006043236,49.409266625614173,52.31923690256167,52.31923690256167,58.395119908497406,106.1756659660069,134.17084918765789,298.74163506216223,69.715916906583999,38.699711126616535,27.36414351516742,37.187586707187812,52.043903528282932,30.088596006043236,49.409266625614173,52.31923690256167,52.31923690256167,58.347505068644253,145.13949802124995,116.40816596384612,319.89516905374029,68.543083934260451,38.271155654730933,27.432133827426863,36.919775597651281,52.043903528282932,30.088596006043236,49.409266625614173,52.31923690256167,52.31923690256167,56.240784258639657,65.520831813377526,153.7032800205389,275.46489609255605,78.336164440041586,40.519659995514047,32.480307737389133,34.707257170071408,54.646098704697074,41.835513624840935,53.108828495114338,52.31923690256167,52.31923690256167,51.177109586798949,24.821819375330161,174.57438698924184,250.57331595137094,69.238224183842334,38.453061138049939,29.213474998408724,36.395197985878319,52.043903528282932,32.767717568225173,49.730761213076001,52.31923690256167,52.31923690256167,54.99035587653735,55.468644251305456,158.85809397432229,269.31709410216513]
[null,null,2081,null,68.239317945323776,38.45633041432027,26.531888654199708,38.651085533688338,52.654523438368578,30.441619022040285,49.988974908409183,52.933087239822228,52.933087239822228,55.306010506925297,76.381625708200062,151.623020203171,283.31065641829639,69.926372005822003,39.08163393292201,28.262728782220595,36.401964695501661,52.654523438368578,30.441619022040285,49.988974908409183,52.933087239822228,52.933087239822228,56.444872518768499,26.769329232011476,173.75142915869321,256.96563090947319,69.224115411120977,38.588980027113102,27.784397508600776,37.135758538458937,52.654523438368578,30.441619022040285,49.988974908409183,52.933087239822228,52.933087239822228,59.080257272350032,107.42140218504773,135.74504686140773,302.24670631880548,70.533878743168813,39.153766501529631,27.685201116923249,37.623900651992223,52.654523438368578,30.441619022040285,49.988974908409183,52.933087239822228,52.933087239822228,59.032083777836903,146.84238848916905,117.77395790132924,323.64843016833521,69.347285174203691,38.720182880601229,27.753989144871639,37.352947372392755,52.654523438368578,30.441619022040285,49.988974908409183,52.933087239822228,52.933087239822228,56.90064526634626,66.289573620165328,155.5066474980573,278.69686638456892,79.255265784175748,40.995068438497505,32.861392191966615,35.114469942668137,55.287249610287006,42.326360695028605,53.731942940455994,52.933087239822228,52.933087239822228,51.77755959027251,25.113048435557932,176.62263066928588,253.51323869511634,70.050581354603978,38.90422262177443,29.556230408120133,36.822215004492406,52.654523438368578,33.152174140441133,50.314241522617287,52.933087239822228,52.933087239822228,55.635545877373133,56.119445906621323,160.72194177363778,272.47693355763226]
[null,null,2082,null,69.069343091800746,38.924091849314202,26.854607805410417,39.121215861739074,53.294983804115837,30.811893961013293,50.597013022943536,53.576935900867078,53.576935900867078,55.978722088082165,77.310689362051264,153.46727837196238,286.75668982209584,70.77691754048341,39.557001212467846,28.606500911011469,36.844737967395176,53.294983804115837,30.811893961013293,50.597013022943536,53.576935900867078,53.576935900867078,57.131436584631537,27.094936478477408,175.86484499842331,260.09121806153223,70.066119086771593,39.058354938290613,28.122351481562937,37.58745727092743,53.294983804115837,30.811893961013293,50.597013022943536,53.576935900867078,53.576935900867078,59.798876694010545,108.72801643278748,137.39617418502692,305.92306731182498,71.391813652223675,39.630011161559729,28.021948520095279,38.081536873894763,53.294983804115837,30.811893961013293,50.597013022943536,53.576935900867078,53.576935900867078,59.750117243877639,148.62849771013759,119.20649488442963,327.58510983844485,70.190787018413474,39.191153670386029,28.091573247393736,37.807287869156781,53.294983804115837,30.811893961013293,50.597013022943536,53.576935900867078,53.576935900867078,57.592753098661824,67.095883160041708,157.39814395133567,282.08678021003919,80.219282799180064,41.493709672173964,33.261099907237572,35.541582843781491,55.959732994321634,42.841195027984234,54.385508438361143,53.576935900867078,53.576935900867078,52.40735305505433,25.418509602724171,178.77097020881476,256.59683286659327,70.90263770276735,39.377431968709629,29.915735971957435,37.270099967633435,53.294983804115837,33.555418765761054,50.926235999513267,53.576935900867078,53.576935900867078,56.312265743670601,56.802051663996721,162.67687416861884,275.79119157628617]
[null,null,2083,null,69.918938316887534,39.402882020114923,27.184935929897289,39.602430778631316,53.950544748149632,31.190899129056721,51.21938727385848,54.235965028386914,54.235965028386914,56.667294656801751,78.261658194096867,155.35501989483436,290.28397274573297,71.647516977180459,40.043576556093122,28.958378393733916,37.297950811841481,53.950544748149632,31.190899129056721,51.21938727385848,54.235965028386914,54.235965028386914,57.834188247697739,27.428220792844613,178.02809030933787,263.29049934988024,70.92797526712306,39.53879662732205,28.468273629761047,38.049806017723675,53.950544748149632,31.190899129056721,51.21938727385848,54.235965028386914,54.235965028386914,60.534439504232459,110.06543763095463,139.08623128282849,309.68610841801558,72.269976687719748,40.117484572277519,28.366635650370398,38.549963102431867,53.950544748149632,31.190899129056721,51.21938727385848,54.235965028386914,54.235965028386914,60.485080282997693,150.45671926711003,120.6728077856329,331.61460733574063,71.054176690683377,39.673228865161633,28.437116804459855,38.272340666957746,53.950544748149632,31.190899129056721,51.21938727385848,54.235965028386914,54.235965028386914,58.301179237407524,67.921203619221231,159.33423752849393,285.5566203851227,81.206029112019408,42.004107716089933,33.670231808561212,35.97876608202322,56.648071985557117,43.368167967113102,55.054483503343839,54.235965028386914,54.235965028386914,53.051995597199749,25.731172839706087,180.9699626398224,259.75313107672821,71.774783574464237,39.861798500650295,30.283717847837604,37.728545025217414,53.950544748149632,33.968170969315196,51.552659894689505,54.235965028386914,54.235965028386914,57.004941103649834,57.500751690790423,164.67789936067842,279.18359215511867]
[null,null,2084,null,70.774744973326477,39.885172648769213,27.517679099111756,40.087163880811858,54.610898529620329,31.572675222022866,51.846311732708635,54.89981234939912,54.89981234939912,57.360901412526246,79.219579604786801,157.25656278632718,293.8370438036402,72.524481408025977,40.533709275343085,29.312828469573372,37.754477117084249,54.610898529620329,31.572675222022866,51.846311732708635,54.89981234939912,54.89981234939912,58.542077761806212,27.763941764785109,180.20715121025324,266.51317073684459,71.796132519257412,40.022750848535885,28.816724831340437,38.515535018335704,54.610898529620329,31.572675222022866,51.846311732708635,54.89981234939912,54.89981234939912,61.275380049363839,111.41263677951041,140.78864446895807,313.47666129783232,73.154560015197106,40.608521924431486,28.713842804751657,39.021814017544642,54.610898529620329,31.572675222022866,51.846311732708635,54.89981234939912,54.89981234939912,61.225416672071987,152.29830703938396,122.14984097063449,335.67356468209044,71.923878646169001,40.158828534758293,28.785186647009372,38.74079348802082,54.610898529620329,31.572675222022866,51.846311732708635,54.89981234939912,54.89981234939912,59.014784713558782,68.752558035777554,161.28448597845608,289.05182872779244,82.199989574377497,42.518237304532569,34.082354892796445,36.419145587843296,57.341443456101345,43.898993630620829,55.728349477043686,54.89981234939912,54.89981234939912,53.701351151823303,26.046121972577609,183.18503200973672,262.93250513413761,72.653305746369909,40.349706259487704,30.65439005682391,38.190341796558528,54.610898529620329,34.383940823983806,52.183663604943952,54.89981234939912,54.89981234939912,57.702680646337221,58.204559946919716,166.69355414368607,282.60079473694304]
[null,null,2085,null,71.6758325570772,40.392981385672542,27.868027786050742,40.597544323078289,55.306191781769222,31.974651176003075,52.506406909077285,55.598783985071307,55.598783985071307,58.091207061455933,80.228184857956265,159.25871675019496,297.57810866960716,73.44784622890046,41.049775029661788,29.686032580566668,38.235158334290006,55.306191781769222,31.974651176003075,52.506406909077285,55.598783985071307,55.598783985071307,59.287421873155751,28.117425810678242,182.50150672534338,269.90635440917737,72.710224171566523,40.53231119906426,29.183612666254831,39.005905847642381,55.306191781769222,31.974651176003075,52.506406909077285,55.598783985071307,55.598783985071307,62.055523929400408,112.83111654531928,142.5811327288859,317.46777320360559,74.0859468502791,41.125540175989514,29.07942076964412,39.51863067325835,55.306191781769222,31.974651176003075,52.506406909077285,55.598783985071307,55.598783985071307,62.004924430015336,154.23733364486543,123.70502432166241,339.94728239654319,72.839596732439489,40.670121394722443,29.151672945099783,39.234032255745987,55.306191781769222,31.974651176003075,52.506406909077285,55.598783985071307,55.598783985071307,59.766147219819345,69.62789960600135,163.33792252311022,292.73196934893087,83.24654071373979,43.059569607920182,34.516283504343676,36.882825674749768,58.071501370857682,44.457905402250852,56.437869854624857,55.598783985071307,55.598783985071307,54.385064258409329,26.377735136612209,185.51730121021441,266.28010060523593,73.578310728742821,40.863429330225955,31.044674617765335,38.676572341437847,55.306191781769222,34.821709157428003,52.848053866848275,55.598783985071307,55.598783985071307,58.437337748939918,58.945606859990349,168.81585768553231,286.19880229446255]
[null,null,2086,null,72.616747309197834,40.923234759955278,28.233861533925563,41.130483069524487,56.032216299023922,32.394394064395144,53.195677630868474,56.328649466715547,56.328649466715547,58.853791488348946,81.28136945275817,161.34936391323609,301.48452485434325,74.412022849705366,41.588650373256648,30.075731939339327,38.73708517968457,56.032216299023922,32.394394064395144,53.195677630868474,56.328649466715547,56.328649466715547,60.065709447440007,28.486533497231555,184.89727045540371,273.44951340007526,73.664717759046596,41.064393606539262,29.566716575874409,39.517950576284349,56.032216299023922,32.394394064395144,53.195677630868474,56.328649466715547,56.328649466715547,62.870149387280534,114.31229169555132,144.45284717394449,321.63528825677633,75.05850005028195,41.665410116247344,29.461156914299206,40.037406127376265,56.032216299023922,32.394394064395144,53.195677630868474,56.328649466715547,56.328649466715547,62.818885649843068,156.2620632835291,125.32894521861199,344.40989415198413,73.795788640632452,41.204012886814418,29.534357570370073,39.749071682811056,56.032216299023922,32.394394064395144,53.195677630868474,56.328649466715547,56.328649466715547,60.550719196039651,70.541930396593031,165.48211890562661,296.57476849825929,84.339348364884899,43.624828256737338,34.96939132575271,37.366999956919862,58.833827113975119,45.041520514193238,57.178750322001285,56.328649466715547,56.328649466715547,55.098996799269834,26.724005270242056,187.95265437256936,269.77565644208124,74.544200004541054,41.399858445973322,31.452209365260316,39.184293789229066,56.032216299023922,35.278826412594711,53.541809512652414,56.328649466715547,56.328649466715547,59.204465959398419,59.719407304137306,171.03196491751638,289.95583818105212]
[null,null,2087,null,73.586089849524825,41.469508640437766,28.610748189919715,41.679523455122123,56.780176141623016,32.826818613804235,53.905773238284766,57.080566320478802,57.080566320478802,59.639415822447489,82.366373836266433,163.5031756452577,305.50896530397165,75.405330067844375,42.143806717975998,30.477205256178184,39.254176703944864,56.780176141623016,32.826818613804235,53.905773238284766,57.080566320478802,57.080566320478802,60.86751136696703,28.866793007172703,187.36541721884413,277.09972159298388,74.648049391087085,41.612551780659352,29.961395175739977,40.045465674654494,56.780176141623016,32.826818613804235,53.905773238284766,57.080566320478802,57.080566320478802,63.709387064208045,115.83821748166443,146.38111158987655,325.92871613574903,76.06043692859015,42.221591107305485,29.854426425018001,40.571855306136129,56.780176141623016,32.826818613804235,53.905773238284766,57.080566320478802,57.080566320478802,63.65743902014276,158.34796592985717,127.00192951819,349.00733446818992,74.780869904624609,41.754034803291951,29.928604218079144,40.279671958207516,56.780176141623016,32.826818613804235,53.905773238284766,57.080566320478802,57.080566320478802,61.358995387676238,71.483576732238546,167.69109773575323,300.53366985566799,85.465172933223627,44.207165023539311,35.436188860446201,37.865802561068605,59.619184948704174,45.642768346590813,57.942014956450564,57.080566320478802,57.080566320478802,55.834499331481261,27.080737237952857,190.46158668091073,273.37682325034484,75.539271621992754,41.952494655143134,31.87205693010926,39.707354987782082,56.780176141623016,35.749754517773106,54.256525546761026,57.080566320478802,57.080566320478802,59.994771358061143,60.516586524194182,173.315027234317,293.82638511657234]
[null,null,2088,null,74.591664440355757,42.036201126318474,29.001722101745674,42.249085852446377,57.556093200236653,33.275406312421715,54.642410773698856,57.860588295277132,57.860588295277132,60.454405194565091,83.491933474480675,165.73749247450147,309.6838311435472,76.435765087350092,42.71971367652138,30.893684828170954,39.79059605654524,57.556093200236653,33.275406312421715,54.642410773698856,57.860588295277132,57.860588295277132,61.699283009717675,29.261265843358828,189.92581828297165,280.88636713604814,75.668135957396927,42.18119899123726,30.370826058073551,40.592698213341762,57.556093200236653,33.275406312421715,54.642410773698856,57.860588295277132,57.860588295277132,64.579993736748818,117.42117926676411,148.38145060358647,330.38262360709939,77.099824167391546,42.798561011383548,30.262395549321504,41.126281107019793,57.556093200236653,33.275406312421715,54.642410773698856,57.860588295277132,57.860588295277132,64.527335808067264,160.51183537005213,128.7374465645658,353.77661774268518,75.802771500566109,42.324615419121919,30.337587002764099,40.830104991556688,57.556093200236653,33.275406312421715,54.642410773698856,57.860588295277132,57.860588295277132,62.197483297645796,72.460419890648552,169.98264369690486,304.64054688519923,86.633078531664324,44.811268353003392,35.920434336552049,38.38324939096124,60.433897860248486,46.266489598778136,58.733808868872046,57.860588295277132,57.860588295277132,56.597493450808926,27.450803120283883,193.06429777056516,277.112594341658,76.571536990465006,42.525787280603311,32.307597542091401,40.249967148945522,57.556093200236653,36.238284956678449,54.997956211009665,57.860588295277132,57.860588295277132,60.81461676340534,61.343562680380643,175.68342577203498,297.84160521582095]
[null,null,2089,null,75.645408514668048,42.630039568935317,29.411424620637757,42.8459316822874,58.36917858458024,33.745482459470104,55.414335049567029,58.677975231335182,58.677975231335182,61.308434551837124,84.671410173542142,168.07883854710499,314.05868327248425,77.515560465702649,43.323207987590784,31.330114790762657,40.352711208721068,58.36917858458024,33.745482459470104,55.414335049567029,58.677975231335182,58.677975231335182,62.570898549451272,29.674634893649586,192.60886882321836,284.8544022663192,76.737087166323505,42.777085794647391,30.79986968152366,41.166144529677275,58.36917858458024,33.745482459470104,55.414335049567029,58.677975231335182,58.677975231335182,65.492304599226472,119.0799687947824,150.47761075076241,335.04988414477128,78.189000598249606,43.403169185677612,30.689907392955071,41.707265260412377,58.36917858458024,33.745482459470104,55.414335049567029,58.677975231335182,58.677975231335182,65.438902780718493,162.77935945129084,130.55609912416892,358.77436135617825,76.873624683484977,42.922528242626605,30.766161063591749,41.406905114079834,58.36917858458024,33.745482459470104,55.414335049567029,58.677975231335182,58.677975231335182,63.0761368302324,73.484056226622897,172.38396031687088,308.94415337372618,87.856929666065128,45.444309710153341,36.427876355882937,38.925483190167022,61.287637513809258,46.920088625153625,59.563531647170585,58.677975231335182,58.677975231335182,57.397036855453123,27.838596063907531,195.79168509009165,281.0273180094523,77.653250395978361,43.126542025635622,32.764001615129182,40.818571760368023,58.36917858458024,36.750217199011963,55.774903218312048,58.677975231335182,58.677975231335182,61.673734769777937,62.210153018009379,178.16527639503855,302.04916418282585]

{"sheet":"TAG - A1.3.12","index":26,"n_rows":93,"n_cols":72,"rows_kept":93,"cut":false,"hidden":true,"merged":[]}
[]
[null,"File Name",null,null,null,null,{"$f":"IFERROR(MID(CELL(\"filename\",G2),FIND(\"[\",CELL(\"filename\",G2))+1,FIND(\"]\",CELL(\"filename\",G2))-FIND(\"[\",CELL(\"filename\",G2))-1),\"Please save the file to show here\")","v":"structures-fund-economic-tool Final 03082026.xlsm"}]
[null,"Sheet Name",null,null,null,null,{"$f":"IFERROR(MID(CELL(\"filename\",G2),FIND(\"]\",CELL(\"filename\",G2))+1,255),\"Please save the file to show here\")","v":"TAG - A1.3.12"}]
[null,"Description and Purpose of Sheet",null,null,null,null,"TAG - A1.3.12 table"]
[null,"Version number",null,null,null,null,{"$f":"Version_Number","v":1}]
[]
[]
[null,"TAG Data Book v2.02 - A1.3.12"]
[]
[null,"Table A 1.3.12:",null,null,"Average Vehicle Fuel / Energy Cost Formulae Parameter Values (p, 2023 prices): Work (Excluding VAT)"]
[null,null,null,null,"Cars",null,null,null,null,null,null,null,null,null,null,null,null,null,null,null,"LGV",null,null,null,null,null,null,null,null,null,null,null,null,null,null,null,"OGV",null,null,null,null,null,null,null,null,null,null,null,null,null,null,null,null,null,null,null,null,null,null,null,"PSV"]
[null,null,null,null,"Petrol Car",null,null,null,"Diesel Car",null,null,null,"Electric Car1",null,null,null,"Average Car",null,null,null,"Petrol LGV",null,null,null,"Diesel LGV",null,null,null,"Electric LGV",null,null,null,"Average LGV",null,null,null,"OGV1 Diesel",null,null,null,"OGV1 Electric",null,null,null,"Average OGV1",null,null,null,"OGV2 Diesel",null,null,null,"OGV2 Electric",null,null,null,"Average OGV2",null,null,null,"PSV Diesel",null,null,null,"PSV Electric",null,null,null,"Average PSV"]
[null,null,"Year",null,"a","b","c","d","a","b","c","d","a","b","c","d","a","b","c","d","a","b","c","d","a","b","c","d","a","b","c","d","a","b","c","d","a","b","c","d","a","b","c","d","a","b","c","d","a","b","c","d","a","b","c","d","a","b","c","d","a","b","c","d","a","b","c","d","a","b","c","d"]
[null,null,2010,null,64.559637499918836,13.719970184686655,-0.15628673071992877,1.0350744425157913E-3,70.887340474352996,10.163491582085365,-9.7775620371992653E-2,7.7047679400737556E-4,"",3.6305729353271188,null,"",67.092389457575976,12.293266229693376,-0.13281529162397393,9.2890995309450686E-4,48.699873796957135,27.308070164298734,-0.42864706571842764,2.7682187699539619E-3,65.837536223134634,16.090962162734307,-0.23214137360382092,1.9653169630370658E-3,"",4.2132639884937326,null,"",65.187127794892447,16.46797111373515,-0.23872464455974921,1.9913146476274691E-3,366.11359540398485,19.424964187401237,-0.14040376448059125,1.5334343864639186E-3,"","","","",366.11359540398485,19.424964187401237,-0.14040376448059125,1.5334343864639186E-3,804.88533805988459,41.79912178310277,-0.27694117079678587,1.6506845390224054E-3,"","","","",804.88533805988459,41.79912178310277,-0.27694117079678587,1.6506845390224054E-3,468.98861081569902,41.208599170778974,-0.44790074406434077,3.2855350372944054E-3,"",19.337166734913975,"","",468.62316514493347,41.191556496153623,-0.44755173049753733,3.2829748801224872E-3]
[null,null,2011,null,70.03996852840055,14.884629424185587,-0.1695535806105507,1.122939721872647E-3,78.403727459990989,11.241155595787029,-0.10814304840016957,8.5217264701103524E-4,"",3.868386951129593,null,null,73.561762735935446,13.345515715761486,-0.14361382484856444,1.0085234065277751E-3,53.236794032694235,29.852112406459053,-0.46858017836991822,3.0261083038511955E-3,73.316546772479214,17.918862820443099,-0.25851216269650634,2.1885729829698884E-3,"",4.489806782059512,null,"",72.628563446246773,18.278390749680447,-0.2648220053914207,2.2127279628592869E-3,409.0997205146694,21.705687851620308,-0.15688884960646332,1.7134779664157334E-3,"","","","",409.0997205146694,21.705687851620308,-0.15688884960646332,1.7134779664157334E-3,898.0218839725751,46.63586764114752,-0.30898715654079512,1.8416919398114482E-3,"","","","",898.0218839725751,46.63586764114752,-0.30898715654079512,1.8416919398114482E-3,523.63897726861069,46.010560228590741,-0.50009378081010369,3.668392295746213E-3,"",20.606385593054462,"","",523.22546381573397,45.990498757945794,-0.49969886080788456,3.6654953961062497E-3]
[null,null,2012,null,69.491899468403673,14.768155858758336,-0.1682268085759995,1.1141526174416915E-3,78.301333500604827,11.226474834210791,-0.1080018153840297,8.5105972375808692E-4,"",4.0291190370948575,null,null,73.37821752506548,13.197974348232464,-0.14152932943564994,9.9744863841968469E-4,53.300089810321353,29.887605014586786,-0.46913729581677954,3.0297061891438096E-3,73.580293715240344,17.983323648110204,-0.25944212728948368,2.1964460956392456E-3,"",4.6643843729978949,null,"",72.931258090753488,18.310682268398594,-0.26518502633185714,2.2181606169951137E-3,425.08914919351554,22.554042251354826,-0.16302076059416301,1.7804482730742449E-3,"","","","",425.08914919351554,22.554042251354826,-0.16302076059416301,1.7804482730742449E-3,901.07685853260739,46.794517883164431,-0.31003829785422626,1.8479571791379678E-3,"","","","",901.07685853260739,46.794517883164431,-0.31003829785422626,1.8479571791379678E-3,528.87551794775061,46.470679090566591,-0.50509486273921611,3.7050772758902037E-3,"",21.407625675179478,"","",528.35089537016518,46.445817581121105,-0.50459382958524501,3.7014019929083528E-3]
[null,null,2013,null,66.764705953792486,14.188582999347791,-0.16162478640015146,1.0704279557787074E-3,75.19626644887191,10.781285007213176,-0.10371896522703077,8.1731064964713656E-4,"",4.2091812070182195,null,null,70.64836386967238,12.607881158965755,-0.13476374935543792,9.5290232849338206E-4,51.652889704019294,28.96395054547915,-0.45463895245019825,2.9360753458453938E-3,71.230446352001962,17.409011376127228,-0.25115662898631669,2.1263007781129563E-3,"",4.8740577451051754,null,"",70.650761266337682,17.700463250912751,-0.25626084429387258,2.1455669333341307E-3,409.93251845909782,21.749873783115184,-0.15720822579985608,1.716966066887812E-3,"","","","",409.93251845909782,21.749873783115184,-0.15720822579985608,1.716966066887812E-3,871.8945033805187,45.279026471853427,-0.29999737000988558,1.7881090738439567E-3,"","","","",871.8945033805187,45.279026471853427,-0.29999737000988558,1.7881090738439567E-3,513.02910693295632,45.078303274300353,-0.489960978630749,3.5940640499742874E-3,"",22.36994110743883,"","",512.35238672741673,45.048349403642021,-0.48931468685181345,3.5893232356038096E-3]
[null,null,2014,null,62.993504190133521,13.387141452252614,-0.15249541676067307,1.0099648752179037E-3,70.031957728266278,10.040850849887789,-9.659578236291419E-2,7.6117961130248092E-4,"",4.3876985351853923,null,null,66.338505605099726,11.770196828105561,-0.12548295234963286,8.8951748762806536E-4,48.663263682911513,27.287541331570154,-0.42832483042831782,2.7661377624077456E-3,66.774996347511035,16.320081237592884,-0.23544683266951236,1.9933010947391322E-3,"",5.061495083839894,null,"",66.263238112236479,16.571086745110588,-0.23981845276048563,2.009621612074651E-3,388.56125663982027,20.615974357662374,-0.14901239355326631,1.6274544285132734E-3,"","","","",388.56125663982027,20.615974357662374,-0.14901239355326631,1.6274544285132734E-3,816.6896936601421,42.412142885581233,-0.2810027580886067,1.6748932882206893E-3,"","","","",816.6896936601421,42.412142885581233,-0.2810027580886067,1.6748932882206893E-3,481.75234300503627,42.330109398498053,-0.46009056064581155,3.3749523245111936E-3,"",23.224276765029845,"","",480.76897948428905,42.29111015102567,-0.45915141363355821,3.3680632972996525E-3]
[null,null,2015,null,53.886304302938193,11.451713749170192,-0.13044860002654177,8.6395058190452451E-4,59.214807480929387,8.4899390122411607,-8.1675578430689136E-2,6.4360765575874627E-4,"",4.3219379010487016,null,null,56.466285230335799,9.9690580013418177,-0.10601587607126471,7.5321035135337503E-4,41.057091388445144,23.022440202868442,-0.36137674245246104,2.3337845082528818E-3,56.950467968524244,13.918926463556307,-0.20080581109212367,1.7000289982314102E-3,"",4.9794128507245601,null,"",56.523063814630603,14.109157312920745,-0.20410452951463426,1.7118568934148045E-3,331.3046123596622,17.578096828406501,-0.12705459548354511,1.3876400422273842E-3,"","","","",331.3046123596622,17.578096828406501,-0.12705459548354511,1.3876400422273842E-3,696.15732084318017,36.152683193686961,-0.23953054475781721,1.4277016512848943E-3,"","","","",696.15732084318017,36.152683193686961,-0.23953054475781721,1.4277016512848943E-3,412.88124620192735,36.278616127318102,-0.39431622243962855,2.8924706684855836E-3,"",22.783191425163409,"","",411.90964532642408,36.246858408660451,-0.39338830917044576,2.8856640453712615E-3]
[null,null,2016,null,51.138599022680609,10.867781806840322,-0.12379692272686856,8.198970583517647E-4,55.027298085116563,7.8895537218712226,-7.5899704681591712E-2,5.9809348083594859E-4,"",4.193192381453219,null,null,53.016442265402986,9.3351682290743305,-9.9114839430006416E-2,7.0509062940324839E-4,39.499703843712993,22.149147419362134,-0.34766891224289748,2.2452588284658137E-3,53.150975137198749,12.990314931386674,-0.18740890204205751,1.5866102991015691E-3,"",4.8210112030153542,null,"",52.792715654296742,13.164309237459449,-0.19038610300429534,1.597610032712183E-3,308.71207947444088,16.379400173304543,-0.11839040844963718,1.2930132180984208E-3,"","","","",308.71207947444088,16.379400173304543,-0.11839040844963718,1.2930132180984208E-3,653.19887229176891,33.921774842266601,-0.22474960333065933,1.3396010939867216E-3,"","","","",653.19887229176891,33.921774842266601,-0.22474960333065933,1.3396010939867216E-3,388.53428902389953,34.139323239944041,-0.37106401548992352,2.7219062261619464E-3,"",22.060185711751132,"","",387.25759292060019,34.09963205116324,-0.36984472546576441,2.7129622354495246E-3]
[null,null,2017,null,53.583183615763737,11.387295686252781,-0.12971480189745327,8.590906959379639E-4,58.587738951092106,8.400032892449607,-8.0810656512186968E-2,6.3679202764716902E-4,"",4.4058915946349657,null,null,55.990164542276361,9.8332940743511443,-0.10422800494886773,7.4242707580274726E-4,41.20068477530095,23.102959062111005,-0.36264062424790333,2.3419467041220698E-3,56.209265867911434,13.737773649522099,-0.19819235251476833,1.6779033667916783E-3,"",5.0608087196630525,null,"",55.809523264972654,13.909088356745579,-0.20111872800323874,1.688153077266732E-3,333.38833636799558,17.688653400864951,-0.12785369909122668,1.396367535787827E-3,"","","","",333.38833636799558,17.688653400864951,-0.12785369909122668,1.396367535787827E-3,697.76186852922854,36.236010198124134,-0.240082629997492,1.43099230888821E-3,"","","","",697.76186852922854,36.236010198124134,-0.240082629997492,1.43099230888821E-3,416.50994246955963,36.597458603567752,-0.39778175597450299,2.9178917735019063E-3,"",23.175159825868494,"","",414.88529206919145,36.545103207310568,-0.3962301572653068,2.9065101627534489E-3]
[null,null,2018,null,55.55225915398411,11.805756178318171,-0.13448156314838861,8.9066057216283408E-4,62.218595940339959,8.920607993716489,-8.5818734008536776E-2,6.7625592957740286E-4,"",4.6961437125778982,null,null,58.69568031061965,10.316286177915744,-0.10929884537849122,7.7847270511777384E-4,41.704006382066737,23.385192683702577,-0.3670707657047857,2.3705567232153741E-3,59.141790778816365,14.454494688759075,-0.20853235610538995,1.765442197716294E-3,"",5.3988585541509613,null,"",58.653271437059956,14.620561001850904,-0.21137822300659162,1.7742313936409621E-3,352.76188158153019,18.716559566274213,-0.13528341138124342,1.4775119149944126E-3,"","","","",352.76188158153019,18.716559566274213,-0.13528341138124342,1.4775119149944126E-3,737.38931800885234,38.293933865543835,-0.25371745689225272,1.512261546981897E-3,"","","","",737.38931800885234,38.293933865543835,-0.25371745689225272,1.512261546981897E-3,443.28001028248298,38.949662833769928,-0.42334811945443224,3.1054314998870116E-3,"",24.727186081494789,"","",440.97761989893564,38.875791481701071,-0.42114925504251438,3.0893019306390134E-3]
[null,null,2019,null,54.044431370372159,11.485318315964557,-0.13083139589350454,8.6648580813114442E-4,61.872886554502962,8.8710418171708554,-8.5341893581988917E-2,6.7249840309276457E-4,"",5.0121090762405878,null,null,57.579531653691745,10.15994793960188,-0.10766192570778113,7.6585831309611014E-4,40.250778005365625,22.570306332227396,-0.3542797247651559,2.287951702796099E-3,58.088565878698219,14.197082230929347,-0.20481871356872922,1.7340023705168083E-3,"",5.7761971190660288,null,"",57.523973658741689,14.349412765326001,-0.20736567549373405,1.7403637843567432E-3,352.75911928730039,18.716413006662219,-0.13528235204743735,1.4775003453695458E-3,"","","","",352.75911928730039,18.716413006662219,-0.13528235204743735,1.4775003453695458E-3,726.45798395840586,37.726250319055389,-0.24995625475928981,1.4898432182402462E-3,"","","","",726.45798395840586,37.726250319055389,-0.24995625475928981,1.4898432182402462E-3,439.85095527498839,38.64836222629328,-0.42007325039818139,3.0814089967555638E-3,"",26.524187897488218,"","",436.20066376576267,38.54774457370425,-0.41658709264226002,3.0558366046477044E-3]
[null,null,2020,null,46.476095813355634,9.876924244822181,-0.11250988005167553,7.4514388288472147E-4,53.233384734792956,7.6323509108615344,-7.3425341987946147E-2,5.7859537866939272E-4,"",4.7219656486331605,null,null,49.180954272061591,8.7501923437912925,-9.2638072508358621E-2,6.5752016804585867E-4,34.16696483135911,19.158856074369947,-0.30073115344257584,1.9421330279594041E-3,49.603877112047833,12.123389718438668,-0.17490193025813178,1.4807258398964449E-3,"",5.4726908774151424,null,"",49.024859380791248,12.242237945708712,-0.17675014313174633,1.4833420297418146E-3,304.79714136665615,16.171684498458607,-0.11688903823301092,1.2766158463790485E-3,"","","","",304.79714136665615,16.171684498458607,-0.11688903823301092,1.2766158463790485E-3,621.09742490686051,32.254689798960946,-0.21370428792650856,1.273766421179491E-3,"","","","",621.09742490686051,32.254689798960946,-0.21370428792650856,1.273766421179491E-3,377.84090958105639,33.199728595044782,-0.36085145915368033,2.6469929510497042E-3,"",25.178768683943673,"","",373.58622543762573,33.109408436259713,-0.35678808501270309,2.617186440820065E-3]
[null,null,2021,null,53.68775227092771,11.409518221673681,-0.12996794292928415,8.6076722862370896E-4,60.966596823420858,8.7411022822532516,-8.4091839057438389E-2,6.6264791072313508E-4,"",4.9160714065176245,null,null,55.912975355549968,10.061018434611029,-0.10641110075119335,7.5293985652287313E-4,39.146955872153654,21.951346776226618,-0.34456409140542565,2.2252077794629975E-3,56.435139092270632,13.792977986063804,-0.19898877540011686,1.6846459107080322E-3,"",5.9885810369510306,null,"",55.540485246288618,13.897789981012707,-0.20030851573685399,1.6808301245493389E-3,347.48389579142298,18.436524390739923,-0.13325931535446675,1.4554055387127895E-3,"","","","",347.48389579142298,18.436524390739923,-0.13325931535446675,1.4554055387127895E-3,707.28273108117958,36.730445460478947,-0.24335852371483588,1.450517997665875E-3,"","","","",707.28273108117958,36.730445460478947,-0.24335852371483588,1.450517997665875E-3,432.58112840675091,38.009584706870996,-0.41313030809977652,3.030479677066723E-3,"",27.19465519609804,"","",424.53322934176452,37.808379764301698,-0.40544427927896437,2.9740995139991545E-3]
[null,null,2022,null,63.707966726345106,13.538976330428795,-0.15422499608190948,1.0214197398981547E-3,76.40809701739677,10.955031542203754,-0.10539045529606685,8.3048207525104922E-4,"",6.7760285587155673,null,null,66.997877130776018,12.187460689008045,-0.1277690322450768,9.035094691547986E-4,44.882923008037274,25.167745111464374,-0.39505098778024689,2.5512540430651064E-3,70.35619772634216,17.195341449162811,-0.2480740519569441,2.1002035735016257E-3,"",8.6097434162770714,null,"",68.681840265865404,17.227256627865383,-0.24721862385886317,2.0760496879221944E-3,433.16053444684019,22.982287395640018,-0.16611611921609409,1.8142545557395706E-3,"","","","",433.16053444684019,22.982287395640018,-0.16611611921609409,1.8142545557395706E-3,880.11220414087927,45.705786233296436,-0.30282487793209178,1.8049621968293217E-3,"","","","",880.11220414087927,45.705786233296436,-0.30282487793209178,1.8049621968293217E-3,542.41380096476303,47.660246737717543,-0.51802440281083284,3.7999207372694426E-3,"",38.52952494115393,"","",524.19713588004799,47.353596536978067,-0.50062684206490426,3.6723025179391461E-3]
[null,null,2023,null,55.413130081136224,11.776188993538076,-0.13414475785044189,8.8842993777434422E-4,61.605693094846352,8.8327328827428424,-8.4973350960662691E-2,6.6959426874665451E-4,"",7.1196252530103834,null,null,54.408971174034491,10.300368588057569,-0.10593958539169643,7.4454039240383937E-4,37.86346062214907,21.231636936960896,-0.33326700930061787,2.1522508010317428E-3,56.057846316128604,13.700766093981473,-0.1976584512669724,1.6733833402122257E-3,"",9.3240125636396112,null,"",54.454911429313235,13.76290858923301,-0.19618620801834938,1.6469174439499583E-3,347.16551930077787,18.419632223919219,-0.13313721866543402,1.4540720469639837E-3,"","","","",347.16551930077787,18.419632223919219,-0.13313721866543402,1.4540720469639837E-3,705.09515488979218,36.616840752690365,-0.24260583276246958,1.4460316465965903E-3,"","","","",705.09515488979218,36.616840752690365,-0.24260583276246958,1.4460316465965903E-3,437.52625605033143,38.444097994002256,-0.4178530802523891,3.0651231412408705E-3,"",40.869391240000112,"","",412.30470663417793,38.58390595433999,-0.39376560672013727,2.8884316771187512E-3]
[null,null,2024,null,51.709554207974733,10.989119045126973,-0.12517909776304842,8.290510924047062E-4,57.813487499387946,8.2890243814918616,-7.9742723711947711E-2,6.2837666360229566E-4,"",6.5124309070445765,null,null,49.571645527463971,9.5973398546552176,-9.7498556673113412E-2,6.8319327698816343E-4,35.058869314650316,19.658984479447874,-0.3085815277835412,1.9928310388402258E-3,52.590682149643932,12.853377041848489,-0.18543332410866184,1.5698849874346773E-3,"",8.6245847917765683,null,"",50.591191107627367,12.86108566937992,-0.18217658457305377,1.5296054177809967E-3,323.54649337640086,17.166472716919575,-0.12407937379221107,1.3551458476043074E-3,"","","","",323.54649337640086,17.166472716919575,-0.12407937379221107,1.3551458476043074E-3,656.74041904452997,34.105693640409996,-0.22596816212128823,1.3468642110949283E-3,"","","","",656.74041904452997,34.105693640409996,-0.22596816212128823,1.3468642110949283E-3,410.1351760580319,36.037327317217127,-0.39169362813277664,2.873232867258504E-3,"",37.200332496129846,"","",377.03759810540652,36.131180897244917,-0.36008426822545458,2.6413652920016135E-3]
[null,null,2025,null,49.670993024006009,10.555891726219777,-0.12024412484261619,7.9636716382729719E-4,55.80659130103755,8.0012850971349732,-7.6974591637830769E-2,6.0656364397899563E-4,"",5.8903099192096589,null,null,46.260131779875849,9.1541792509745754,-9.1913157223288161E-2,6.4215405531335115E-4,33.414616324346746,18.736982582394226,-0.29410912437381387,1.8993677167526099E-3,50.683429090761635,12.387236621568752,-0.17870840136248764,1.5129515569867048E-3,"",7.9566315549050968,null,"",47.998436916381742,12.30998261084334,-0.17277313521108476,1.4508714038026845E-3,308.45873848548183,16.365958608447325,-0.11829325273350529,1.2919521217915713E-3,"","","","",308.45873848548183,16.365958608447325,-0.11829325273350529,1.2919521217915713E-3,620.46507827856124,32.221850918097338,-0.21348671306545727,1.2724695845329787E-3,"","","","",620.46507827856124,32.221850918097338,-0.21348671306545727,1.2724695845329787E-3,395.16880024673003,34.72227751083804,-0.37740020883167774,2.7683847942449112E-3,"",33.545185563196782,"","",354.61356060474856,34.601475347338713,-0.33866851771500489,2.4842720083121128E-3]
[null,null,2026,null,49.583138655210298,10.537221247773035,-0.12003144595205455,7.9495860864753939E-4,55.983684997253668,8.026675953650237,-7.7218858750909516E-2,6.0848848108512011E-4,"",5.5521102532558553,null,null,44.647065381263239,9.0422659786534556,-8.9620168497584488E-2,6.2428409035412665E-4,33.112152974580951,18.567378644364119,-0.29144689925378542,1.882174967433881E-3,50.72255543712857,12.396799260073671,-0.17884635980247143,1.5141195179498245E-3,"",7.5694634226341728,null,"",46.897183910311789,12.185459596754789,-0.1687584604576304,1.4173241757848732E-3,305.51710437238592,16.209883723448115,-0.1171651424737717,1.2796313476983855E-3,"","","","",305.51710437238592,16.209883723448115,-0.1171651424737717,1.2796313476983855E-3,609.23939571545122,31.638881331789655,-0.20962423287726747,1.2494475964674929E-3,"","","","",609.23939571545122,31.638881331789655,-0.20962423287726747,1.2494475964674929E-3,395.39126153874827,34.741824506228504,-0.37761266724947851,2.769943263581931E-3,"",31.650685212310798,"","",346.55465712713959,34.3600235875872,-0.33097197929014699,2.4278147530030643E-3]
[null,null,2027,null,50.175375843607085,10.663081256932424,-0.12146514071196414,8.0445385368539592E-4,56.952666957483999,8.1656040038506337,-7.8555385296507144E-2,6.1902037731896683E-4,"",5.0666434965847289,null,null,43.415365674888704,8.9738661064344889,-8.8049400404654241E-2,6.1153196884835713E-4,32.535670652917254,18.244120728869198,-0.28637281104053974,1.8494063161221847E-3,51.42572262117335,12.568656185493749,-0.18132570829182038,1.5351097687084578E-3,"",6.9859421910134385,null,"",45.923744616215252,12.11629183366899,-0.16514567367849881,1.3873427570409197E-3,306.72686472826831,16.274070226990609,-0.11762908292891334,1.2846983218626306E-3,"","","","",306.72686472826831,16.274070226990609,-0.11762908292891334,1.2846983218626306E-3,606.45754831514023,31.494415067131531,-0.20866706787550821,1.2437424950369196E-3,"","","","",606.45754831514023,31.494415067131531,-0.20866706787550821,1.2437424950369196E-3,400.57653442355826,35.19743862344469,-0.3825647866180994,2.8062690833312522E-3,"",29.139342377831372,"","",348.400835321138,34.408362430303519,-0.33273514489310058,2.4407482933952729E-3]
[null,null,2028,null,50.335346597858795,10.697077637081833,-0.12185239979768675,8.0701863945074545E-4,57.427356054873179,8.2336626813682106,-7.9210128734058458E-2,6.2417978845583967E-4,"",4.7517969258346922,null,null,41.168481243011627,8.7675390247901124,-8.4318206865730577E-2,5.8397681224030458E-4,32.492823547512415,18.220094552423429,-0.28599567893373212,1.8469707828821114E-3,51.657607413157649,12.625329773662163,-0.18214332780216522,1.5420317639910962E-3,"",6.6280181783029724,null,"",43.951768029814481,11.870434630732879,-0.15803600356855985,1.3276764294863602E-3,305.20613451644812,16.193384531965513,-0.1170458862129779,1.2783288779834256E-3,"","","","",305.20613451644812,16.193384531965513,-0.1170458862129779,1.2783288779834256E-3,598.73820511709209,31.09353589693999,-0.20601103248517211,1.2279114196453117E-3,"","","","",598.73820511709209,31.09353589693999,-0.20601103248517211,1.2279114196453117E-3,401.99498659747246,35.322073690757065,-0.38391945871346406,2.8162061568734347E-3,"",27.597985610143397,"","",347.1082755418156,34.267459069222994,-0.33150070449613822,2.4316931685056191E-3]
[null,null,2029,null,50.263299356528236,10.6817664296274,-0.12167798698743888,8.0586351744196534E-4,57.630538092223482,8.262793960838172,-7.9490379757970964E-2,6.2638818058467381E-4,"",4.5060918553220795,null,null,38.169987346436045,8.4487574818423834,-7.8911591935598491E-2,5.4508559292174529E-4,32.325548485607129,18.126296380660357,-0.28452335551966096,1.8374624632498673E-3,51.619927795057315,12.616120721441499,-0.18201047048695476,1.5409069893281692E-3,"",6.3727421939938793,null,"",41.230389453869329,11.491358934667501,-0.14824382838020198,1.2454343686968098E-3,302.20914292666293,16.034372533961779,-0.11589654648179913,1.2657762439992966E-3,"","","","",302.20914292666293,16.034372533961779,-0.11589654648179913,1.2657762439992966E-3,588.47172797240944,30.560379547628894,-0.20247859119700029,1.2068566006647556E-3,"","","","",588.47172797240944,30.560379547628894,-0.20247859119700029,1.2068566006647556E-3,401.24506312468674,35.256180201904456,-0.38320325522001925,2.8109525115005934E-3,"",26.441190611455216,"","",344.12640318334928,34.001335123232835,-0.32865291071765179,2.410803437103739E-3]
[null,null,2030,null,49.693497165904475,10.560674221410819,-0.12029860313433482,7.967279691699523E-4,57.292420729477769,8.2143162926533115,-7.9024011085091134E-2,6.2271317204431532E-4,"",4.33508362292753,null,null,34.349705770689177,8.0009208611524159,-7.1621459080042638E-2,4.9354371640973399E-4,31.879712477756204,17.876297355305084,-0.28059919141702505,1.8121200648198452E-3,51.076094896655327,12.483205744772587,-0.18009293038311314,1.5246730279498957E-3,"",6.2563053093873924,null,"",37.74476441779202,10.978807854781101,-0.13571602202208283,1.1401694367030855E-3,294.5087492911822,15.625811168101945,-0.11294346233530389,1.2335238268856284E-3,"","","","",294.5087492911822,15.625811168101945,-0.11294346233530389,1.2335238268856284E-3,563.03262777374994,29.239281998729069,-0.19372562495460946,1.1546852820943521E-3,"","","","",563.03262777374994,29.239281998729069,-0.19372562495460946,1.1546852820943521E-3,396.50027367597107,34.839270021075563,-0.37867181314339377,2.7777125316400461E-3,"",25.677939929599866,"","",337.93352645463858,33.486057074450656,-0.32273849396910032,2.3674187727332438E-3]
[null,null,2031,null,49.70297605308091,10.562688638691972,-0.12032154973603577,7.9687994266670306E-4,57.602205787525925,8.2587318090016399,-7.9451300725666529E-2,6.2608023584949043E-4,"",4.1197329783982992,null,null,31.223573160979285,7.616289940961539,-6.5654755399243356E-2,4.5136112420952429E-4,32.786460233143288,18.384749008150603,-0.28858021342775836,1.8636618032346376E-3,51.075544522242303,12.483071231023086,-0.18009098977780549,1.5246565987176977E-3,"",6.0776708263311194,null,"",34.951042085479976,10.579763092413517,-0.12574540085681724,1.0561599155542783E-3,290.49971427362141,15.41310297419774,-0.11140600615922568,1.2167323385889911E-3,"","","","",290.49971427362141,15.41310297419774,-0.11140600615922568,1.2167323385889911E-3,545.01587130978942,28.303639911635219,-0.18752650392065351,1.1177359429374513E-3,"","","","",545.01587130978942,28.303639911635219,-0.18752650392065351,1.1177359429374513E-3,396.26178871759259,34.818315074982124,-0.3784440515563478,2.776041807301437E-3,"",24.534122831186615,"","",335.80152488238855,33.249188315614042,-0.32070235691047055,2.3524828751364745E-3]
[null,null,2032,null,49.70628275423794,10.563391366325536,-0.12032955463713672,7.9693295848260945E-4,57.902422581839986,8.3017754729533948,-7.9865392764015303E-2,6.2934330188698642E-4,"",3.9988619105034586,null,null,28.375227018826891,7.2728721361365487,-6.0153882769990522E-2,4.1260772005885906E-4,32.621987170567735,18.292522035413953,-0.28713255268110688,1.854312756030291E-3,51.167305285722577,12.505497935573214,-0.18041453575019809,1.527395750201098E-3,"",6.044412025106598,"","",32.548608153594252,10.264103648787239,-0.11708725775630313,9.8348697969961808E-4,286.43616416052521,15.197502361678819,-0.10984764356303561,1.1997125186403077E-3,"","","","",286.43616416052521,15.197502361678819,-0.10984764356303561,1.1997125186403077E-3,528.5488768964442,27.44847971385575,-0.18186061774197318,1.0839649052542494E-3,"","","","",528.5488768964442,27.44847971385575,-0.18186061774197318,1.0839649052542494E-3,396.69045671816832,34.855980825078575,-0.37885344468868959,2.7790448732667472E-3,"",23.888835484187116,"","",334.45795014241617,33.135463144389441,-0.3194191954181414,2.3430703610975408E-3]
[null,null,2033,null,49.712137943865855,10.564635689097964,-0.12034372894913922,7.9702683381051764E-4,58.251507613928979,8.351825633691929,-8.0346889253327489E-2,6.3313751837980586E-4,"",3.8729800679788444,"","",25.806229131052106,6.9389805040832737,-5.5114992524861198E-2,3.7727071665895822E-4,32.143439933432958,18.024180446212046,-0.28292047053361069,1.8271109721063898E-3,51.148214628274367,12.500832101092112,-0.18034722260791999,1.5268258747915544E-3,"",6.0030053747405585,"","",30.362313271911887,9.9599545864913637,-0.10918770486131343,9.1724805426665113E-4,282.5891197841234,14.993388938476139,-0.1083723104441584,1.1835995138049702E-3,"","","","",282.5891197841234,14.993388938476139,-0.1083723104441584,1.1835995138049702E-3,514.09414824652413,26.697820042707949,-0.17688710252611906,1.0543206864196751E-3,"","","","",514.09414824652413,26.697820042707949,-0.17688710252611906,1.0543206864196751E-3,396.65543728461859,34.852903774235429,-0.37881999988857734,2.7787995419873502E-3,"",23.176330435863644,"","",333.08190548849933,32.98145329954032,-0.31810502400727669,2.3334303766308342E-3]
[null,null,2034,null,49.705464005470155,10.563217368931534,-0.12032757260047801,7.9691983161329623E-4,58.59815413534956,8.4015261723049104,-8.0825022280393913E-2,6.3690523062138115E-4,"",3.765431406798724,"","",23.487125538887469,6.6249238186165567,-5.048656789358346E-2,3.4497598178365039E-4,30.810282957453481,17.276623185758801,-0.27118627532238282,1.751331100897934E-3,51.263679144108565,12.529052099318195,-0.1807543473705692,1.530272607227421E-3,"",5.9763756796092808,"","",28.488676593515951,9.7041746293008835,-0.10235558562503874,8.601632780279114E-4,278.98246809458703,14.802030079408455,-0.10698916739583096,1.1684933724593295E-3,"","","","",278.98246809458703,14.802030079408455,-0.10698916739583096,1.1684933724593295E-3,501.23757699593159,26.030155517084957,-0.17246347381006646,1.0279540197844653E-3,"","","","",501.23757699593159,26.030155517084957,-0.17246347381006646,1.0279540197844653E-3,394.66293390863433,34.677828578220421,-0.37691708855113171,2.7648409095115262E-3,"",22.54908190985843,"","",330.47802841746488,32.705303692426682,-0.31561822912426257,2.3151887196856658E-3]
[null,null,2035,null,49.702671837545211,10.56262398795598,-0.12032081328748447,7.9687506522720336E-4,58.936549827539885,8.4500437460490492,-8.1291774855870913E-2,6.4058326433346605E-4,"",3.7889817338623506,"","",21.4167481828696,6.4033542123808669,-4.6303616752384882E-2,3.1589237825718796E-4,32.582181705724274,18.27020143492534,-0.28678219251845338,1.8520501170060954E-3,51.340968865836999,12.547942022289877,-0.18102686884079378,1.5325797834963885E-3,"",6.1405397829113477,"","",26.845416492381773,9.5791788730160974,-9.6538741986564425E-2,8.1099389909198595E-4,275.64990707971322,14.625213705531866,-0.10571113752279868,1.1545352356423732E-3,"","","","",275.64990707971322,14.625213705531866,-0.10571113752279868,1.1545352356423732E-3,490.25732698255683,25.459931677967369,-0.16868544090208079,1.0054353726248997E-3,"","","","",490.25732698255683,25.459931677967369,-0.16868544090208079,1.0054353726248997E-3,394.0013553677386,34.619697689147571,-0.37628525759854464,2.7602061712131815E-3,"",22.68891695349657,"","",329.46893480316254,32.665587253719828,-0.31465450896080172,2.3081194383657334E-3]
[null,null,2036,null,49.706577971086233,10.563454104694484,-0.12033026930155956,7.9693769164757911E-4,59.193835501183578,8.4869321489820795,-8.1646651568482803E-2,6.4337971063327805E-4,"",3.6841952601413461,"","",19.558627671536232,6.1249868587973912,-4.2508332519963825E-2,2.8958631402029419E-4,32.116794658689599,18.009239318535361,-0.28268594387176299,1.8255963901593667E-3,51.357912591886901,12.552083137987779,-0.18108661196097772,1.5330855708349375E-3,"",6.0773527542310468,"","",25.34397629474973,9.3533212222026698,-9.1099713133343335E-2,7.6543261083178882E-4,272.60124257862185,14.463460087265505,-0.10454198134295442,1.1417661742432552E-3,"","","","",272.60124257862185,14.463460087265505,-0.10454198134295442,1.1417661742432552E-3,481.25348620432442,24.992346272433487,-0.16558744161089975,9.869700086014069E-4,"","","","",481.25348620432442,24.992346272433487,-0.16558744161089975,9.869700086014069E-4,394.05746178454154,34.624627588909782,-0.37633884121497635,2.7605992289420297E-3,"",22.045714304951421,"","",329.52986967835341,32.564808744595695,-0.31471270392611217,2.3085463222234977E-3]
[null,null,2037,null,49.7198253868739,10.56626939543448,-0.12036233880170114,7.9715008536666116E-4,59.524539768328545,8.5343469625834416,-8.2102795284178604E-2,6.469741459980327E-4,"",3.5968271172330653,"","",17.878742793946245,5.8691050316435955,-3.9024744955870001E-2,2.6554400786696895E-4,31.820229531418107,17.842942762253109,-0.28007563378904404,1.8087389100917694E-3,51.293550632067657,12.536352812711618,-0.1808596734298997,1.5311643013181323E-3,"",6.0230500328586274,"","",23.988354543298399,9.1440058562286879,-8.619846854839551E-2,7.243450546967359E-4,269.84008597030169,14.316960834285721,-0.10348308381225541,1.1302013142031951E-3,"","","","",269.84008597030169,14.316960834285721,-0.10348308381225541,1.1302013142031951E-3,474.11562733128972,24.621664613572928,-0.16313148061893371,9.7233145982147408E-4,"","","","",474.11562733128972,24.621664613572928,-0.16313148061893371,9.7233145982147408E-4,392.38877721416395,34.478005363940284,-0.37474518831287101,2.748909133498918E-3,"",21.495796587624262,"","",328.59431179310633,32.367361235049664,-0.31381921298997068,2.301992200992174E-3]
[null,null,2038,null,49.735186968481102,10.569533980704815,-0.12039952629935521,7.973963751714677E-4,59.965203539776354,8.5975272498063777,-8.2710607248070223E-2,6.5176373476787998E-4,"",3.5860140906550533,"","",16.386381031655972,5.6801023981243937,-3.5879272927676925E-2,2.4393387750116569E-4,29.550004639275553,16.569932057916542,-0.26009354425437581,1.6796938290994158E-3,51.121946673066937,12.494412105788784,-0.18025460250769407,1.5260417497936431E-3,"",6.0817095163305614,"","",22.738200000136402,8.9954583441540947,-8.1587754099936335E-2,6.8598963987946129E-4,267.38367756857571,14.186630669462133,-0.10254105655341103,1.1199128650505514E-3,"","","","",267.38367756857571,14.186630669462133,-0.10254105655341103,1.1199128650505514E-3,468.64845179675041,24.337744500766991,-0.16125036051164435,9.6111920175159977E-4,"","","","",468.64845179675041,24.337744500766991,-0.16125036051164435,9.6111920175159977E-4,391.57499373809543,34.406500691324062,-0.37396799625312266,2.7432081120631435E-3,"",21.389731478070956,"","",328.76300363628769,32.31849917933981,-0.31398031967856832,2.3031739844054521E-3]
[null,null,2039,null,49.770133919012089,10.576960774563926,-0.12048412628873904,7.9795667409412704E-4,60.619273552221586,8.6913047144580062,-8.3612772582608172E-2,6.5887284286634911E-4,"",3.5872760847777525,"","",15.069127026222413,5.5185064785610916,-3.3052345801004163E-2,2.2460885259126609E-4,30.109632365716774,16.88373889206277,-0.26501928151262499,1.711504424399522E-3,51.254411098468388,12.526786951193376,-0.18072166849209109,1.5299959467028063E-3,"",6.1502838260014219,"","",21.802351139265408,8.922584340243553,-7.8236135936342419E-2,6.5778838846615201E-4,265.2364996444926,14.072707409569887,-0.10171761850758201,1.1109196003808465E-3,"","","","",265.2364996444926,14.072707409569887,-0.10171761850758201,1.1109196003808465E-3,464.62279647623387,24.128685086907296,-0.15986523191633975,9.5286325934242706E-4,"","","","",464.62279647623387,24.128685086907296,-0.15986523191633975,9.5286325934242706E-4,391.66650489181319,34.414541497361235,-0.37405539264803533,2.743849200343134E-3,"",21.343608207438688,"","",329.95790186077107,32.355164390667213,-0.31512148982957994,2.311544933916812E-3]
[null,null,2040,null,49.819885542714012,10.587533801617106,-0.12060456560527628,7.9875433399684238E-4,61.119548330540653,8.7630317458877585,-8.4302806606727121E-2,6.6431034559593012E-4,"",3.5234939191150358,"","",13.884996248351937,5.3243059157040182,-3.0492787409440305E-2,2.0714598698830353E-4,30.001997440443752,16.823383456569459,-0.26407189928573332,1.705386194572364E-3,51.299863952082809,12.537895813852195,-0.18088193402566913,1.5313527602980796E-3,"",6.0978923122660227,"","",20.962821366997346,8.7861367063267135,-7.5202752445580709E-2,6.3235295855013638E-4,263.37600725763389,13.973994883077163,-0.10100412373934159,1.1031270927067862E-3,"","","","",263.37600725763389,13.973994883077163,-0.10100412373934159,1.1031270927067862E-3,461.64616019547225,23.974103090540627,-0.15884104487049625,9.4675867865918366E-4,"","","","",461.64616019547225,23.974103090540627,-0.15884104487049625,9.4675867865918366E-4,390.87446024252102,34.344946949166825,-0.37329896193827222,2.7383004718957099E-3,"",20.902773825385786,"","",330.53773845994778,32.269967019755384,-0.31567525433092952,2.3156070228856403E-3]
[null,null,2041,null,49.748638859135447,10.572392725670747,-0.12043209079466191,7.9761204720370054E-4,61.132782900149138,8.7649292558790801,-8.4321061181453244E-2,6.6445419256061771E-4,"",3.5257867693734992,"","",12.834712804487165,5.1904456307422402,-2.8216347193689352E-2,1.9162628548617856E-4,28.473645375918927,15.966372089603606,-0.2506196338738218,1.6185109617995873E-3,51.430416116764391,12.569803294943753,-0.18134225743044269,1.5352498742930557E-3,"",6.1538658314205659,"","",20.290877915900516,8.7338308825238649,-7.2713209424113981E-2,6.1167936627215015E-4,261.75435237372113,13.887954407006964,-0.10038222263201325,1.0963349347722382E-3,"","","","",261.75435237372113,13.887954407006964,-0.10038222263201325,1.0963349347722382E-3,459.4464614872328,23.859868838971995,-0.15808418285940729,9.4224746634545119E-4,"","","","",459.4464614872328,23.859868838971995,-0.15808418285940729,9.4224746634545119E-4,389.5377796245823,34.22749689913644,-0.37202238457680953,2.7289362551479479E-3,"",20.850311930743953,"","",330.6411122046452,32.204916150081225,-0.31577397992063233,2.3163312154402295E-3]
[null,null,2042,null,49.765492486959388,10.575974394964485,-0.12047289025536796,7.9788225874917679E-4,61.321704993011792,8.7920160119575428,-8.4581643320774794E-2,6.6650759289207245E-4,"",3.4705374045874193,"","",11.980920299005708,5.0387832141428177,-2.6355645868119705E-2,1.7895976313137422E-4,28.371792493972716,15.909258889306216,-0.24972314409721094,1.6127213973183127E-3,51.452674425257172,12.575243316249379,-0.18142073962470492,1.5359143072861301E-3,"",6.1043662511192753,"","",19.696149662446885,8.6279478834734604,-7.056463179108291E-2,5.93662232008253E-4,260.34463048809346,13.813158503532536,-9.9841597366801815E-2,1.0904304394409822E-3,"","","","",260.34463048809346,13.813158503532536,-9.9841597366801815E-2,1.0904304394409822E-3,457.79727173870975,23.77422349312917,-0.15751673738832575,9.3886525537567101E-4,"","","","",457.79727173870975,23.77422349312917,-0.15751673738832575,9.3886525537567101E-4,388.29844444504374,34.118600295948092,-0.37083877555889549,2.720253999200957E-3,"",20.454919578446223,"","",330.69885131734054,32.091750945367345,-0.31582912281950332,2.3167357111431269E-3]
[null,null,2043,null,49.83806367105975,10.591396948756326,-0.12064857143244294,7.9904578104939851E-4,61.53334866987624,8.822360481277725,-8.4873565569017664E-2,6.68807954854184E-4,"",3.4212611116560159,"","",11.292525612988371,4.911997637273454,-2.4850849402460486E-2,1.6872444397598107E-4,29.134517235967468,16.336950773217023,-0.25643650282109581,1.6560765188510936E-3,51.557990517980151,12.600982998508888,-0.18179208132170344,1.5390580990405445E-3,"",6.0597576016932972,"","",19.240418343211207,8.5481045298286595,-6.8945781088461694E-2,5.7999703261270633E-4,259.10329027574033,13.747296461062536,-9.9365546105653735E-2,1.0852311958433158E-3,"","","","",259.10329027574033,13.747296461062536,-9.9365546105653735E-2,1.0852311958433158E-3,456.52823329265954,23.708320078014474,-0.15708009259382316,9.3626267082944298E-4,"","","","",456.52823329265954,23.708320078014474,-0.15708009259382316,9.3626267082944298E-4,387.44379632987176,34.043504972100187,-0.37002255632057984,2.7142666974580188E-3,"",20.098885158056849,"","",330.89155762036182,32.00811435310645,-0.31601316416830921,2.3180857296635827E-3]
[null,null,2044,null,49.85666268253464,10.5953495403876,-0.12069359613844501,7.9934397605450132E-4,61.533800663541356,8.8224252859915122,-8.487418900841763E-2,6.6881286758793419E-4,"",3.3881939631273323,"","",10.739809545716007,4.8137680645011853,-2.3648348314461408E-2,1.6053475102075334E-4,28.477712073467373,15.968652458182236,-0.25065542817543685,1.6187421227371341E-3,51.07371902754506,12.482625072679586,-0.18008455313283314,1.5246021058569342E-3,"",6.0389203720410016,"","",18.650580141369261,8.4360258227717964,-6.6806061586334162E-2,5.6208297812393514E-4,257.99213512022675,13.688341673877753,-9.893942052956313E-2,1.0805772208324152E-3,"","","","",257.99213512022675,13.688341673877753,-9.893942052956313E-2,1.0805772208324152E-3,455.53641502915031,23.656813198186029,-0.15673883241908082,9.342286182809882E-4,"","","","",455.53641502915031,23.656813198186029,-0.15673883241908082,9.342286182809882E-4,386.59191019201728,33.968652334777225,-0.36920897486848558,2.70829874495521E-3,"",19.84164466719059,"","",330.86136819831552,31.93212292661466,-0.3159843322003561,2.3178742353935694E-3]
[null,null,2045,null,49.852729579793277,10.594513692256559,-0.12068407483701211,7.992809172412082E-4,61.420888156238654,8.8062364247674356,-8.4718447653538156E-2,6.6758561789782356E-4,"",3.3339831867881253,"","",10.308031157818142,4.7138068218616116,-2.2717127280176729E-2,1.5417749776575819E-4,28.663121654420983,16.072619418485342,-0.25228736819161024,1.629281252351001E-3,51.854635515246024,12.673484244767437,-0.18283804356586472,1.547913251869332E-3,"",5.974801043491035,"","",18.596346061048639,8.4202927644030385,-6.6591262820592578E-2,5.6034344648897485E-4,256.98085127091662,13.63468577908786,-9.8551595381346821E-2,1.0763415479470731E-3,"","","","",256.98085127091662,13.63468577908786,-9.8551595381346821E-2,1.0763415479470731E-3,454.73336156270454,23.615109208741742,-0.15646252155007434,9.3258169060273584E-4,"","","","",454.73336156270454,23.615109208741742,-0.15646252155007434,9.3258169060273584E-4,385.6236806659889,33.883576958695024,-0.36828428135753033,2.7015157400835646E-3,"",19.456495719625327,"","",330.45472204488982,31.819577552520407,-0.31559597071248652,2.3150254451371555E-3]
[null,null,2046,null,49.883815656993299,10.601119987905969,-0.12075932837877039,7.9977931539327121E-4,61.448253980380329,8.8101600071932893,-8.4756193609509103E-2,6.6788305792461744E-4,"",3.2516916237651095,"","",9.9972513007444217,4.6071159647243753,-2.2050090528745507E-2,1.4961774833436954E-4,28.673320186569903,16.078338164958005,-0.25237713374004878,1.6298609616175656E-3,51.87788124815075,12.679165596623426,-0.18292000739192046,1.5486071604785645E-3,"",5.8557378309245207,"","",18.336379621687271,8.309976455980987,-6.5649681813499075E-2,5.5245555898140476E-4,255.93515615159342,13.579204118480911,-9.8150573586212569E-2,1.0719617465033209E-3,"","","","",255.93515615159342,13.579204118480911,-9.8150573586212569E-2,1.0719617465033209E-3,453.8458743247665,23.569020423935527,-0.15615715910511516,9.307616034512227E-4,"","","","",453.8458743247665,23.569020423935527,-0.15615715910511516,9.307616034512227E-4,384.80313420870772,33.811478043541641,-0.36750063041104708,2.6957673400735166E-3,"",18.91027891317913,"","",330.04075762157856,31.690848023064415,-0.31520062001752019,2.3121253861898448E-3]
[null,null,2047,null,49.912895865602259,10.607300003942768,-0.12082972609022212,8.0024555377192067E-4,61.475792956560859,8.8141084153394722,-8.4794178395825578E-2,6.6818237994651644E-4,"",3.2286257729896586,"","",9.7634743804475868,4.5578765830542105,-2.1549884214718242E-2,1.4619550040241547E-4,28.683547128245266,16.084072841848574,-0.25246714934375847,1.6304422857504166E-3,51.901091415434848,12.684838256096791,-0.18300184581455897,1.5493000074180943E-3,"",5.8376891889942186,"","",18.120860885618029,8.2699206061285135,-6.4867898352262587E-2,5.4591021800720911E-4,255.08813665056542,13.534263630938121,-9.7825743456914652E-2,1.0684140803002983E-3,"","","","",255.08813665056542,13.534263630938121,-9.7825743456914652E-2,1.0684140803002983E-3,453.3604645771178,23.543812235641798,-0.1559901415965666,9.297661096490051E-4,"","","","",453.3604645771178,23.543812235641798,-0.1559901415965666,9.297661096490051E-4,384.0001415982498,33.740921531382618,-0.36673374401038,2.690141914859545E-3,"",18.739221660219201,"","",329.56457079476581,31.614291858512061,-0.31474584472207728,2.3087894235082132E-3]
[null,null,2048,null,49.940275714710701,10.613118666004333,-0.12089600755137142,8.006845305560163E-4,61.502685933796457,8.817964203212485,-8.4831272149311951E-2,6.684746805850104E-4,"",3.2024342326980202,"","",9.5894665322444865,4.513874560913278,-2.1179115930203544E-2,1.4365590224556498E-4,28.693843332273154,16.089846357057088,-0.25255777458157713,1.6310275469231272E-3,51.924277501401832,12.690505029998112,-0.18308359932712404,1.5499921355059819E-3,"",5.810114429427256,"","",17.939602050315326,8.2281181715550744,-6.4209472598116338E-2,5.40400657656595E-4,254.28195896864185,13.491490096175591,-9.751657607607099E-2,1.0650374764413313E-3,"","","","",254.28195896864185,13.491490096175591,-9.751657607607099E-2,1.0650374764413313E-3,452.94506169666215,23.522239628006691,-0.15584721172242696,9.2891418816427971E-4,"","","","",452.94506169666215,23.522239628006691,-0.15584721172242696,9.2891418816427971E-4,383.10265697811673,33.662062294462821,-0.36587661439172098,2.6838545187546558E-3,"",18.552467318157777,"","",328.95689999940993,31.526549938357096,-0.31416549757694578,2.3045323399815795E-3]
[null,null,2049,null,49.965798484185044,10.618542668520131,-0.12095779337227335,8.0109373307647887E-4,61.529273665999249,8.8217762264964961,-8.4867944875260143E-2,6.6876366350538037E-4,"",3.1757240631967698,"","",9.4685892445970961,4.4764380233065495,-2.0923920612809812E-2,1.4190345474286061E-4,28.70423647232964,16.095674228379163,-0.25264925303196062,1.6316183181744673E-3,51.947450552808149,12.696168618199687,-0.18316530688018043,1.5506838744990664E-3,"",5.7774376581471749,"","",17.783920987584636,8.186244449760153,-6.3643320635551115E-2,5.3566529814974074E-4,253.50937134812122,13.450498756196305,-9.7220290410436228E-2,1.061801561581203E-3,"","","","",253.50937134812122,13.450498756196305,-9.7220290410436228E-2,1.061801561581203E-3,452.5818911159206,23.503379536246236,-0.15572225369291193,9.2816938634679024E-4,"","","","",452.5818911159206,23.503379536246236,-0.15572225369291193,9.2816938634679024E-4,382.33241130503535,33.594383155837619,-0.3651410024767846,2.6784585046769754E-3,"",18.368201546418405,"","",328.42439075492894,31.447525377553802,-0.31365693237658981,2.3008018063607684E-3]
[null,null,2050,null,49.989803964894548,10.6236442225616,-0.12101590612266563,8.0147860914649616E-4,61.555635392743966,8.8255558461869263,-8.4904305869611091E-2,6.6905018996512406E-4,"",3.1940816726461194,"","",9.3874763257917948,4.4811832770728746,-2.0755172324932451E-2,1.4073987977257754E-4,28.714743443002977,16.101565929321918,-0.2527417333978747,1.6322155598337484E-3,51.970619218985981,12.701831134633549,-0.18324699897103969,1.5513754825886511E-3,"",5.8237546073187989,"","",17.647125228942482,8.1987018930281099,-6.3145461112465162E-2,5.3150239854891966E-4,252.76101290127556,13.410792948458475,-9.6933296580004907E-2,1.0586671284702788E-3,"","","","",252.76101290127556,13.410792948458475,-9.6933296580004907E-2,1.0586671284702788E-3,452.25687064393941,23.486500647231942,-0.15561042217382826,9.2750282398989788E-4,"","","","",452.25687064393941,23.486500647231942,-0.15561042217382826,9.2750282398989788E-4,381.50515615109043,33.52169476796486,-0.36435094448723437,2.6726631063871513E-3,"",18.449419431492057,"","",327.81499214055032,31.400536189162437,-0.3130749351030585,2.2965326184678321E-3]
[null,null,2051,null,50.012019470089463,10.628365377771191,-0.12106968567925329,8.018347868226001E-4,61.582772583867737,8.8294466482921017,-8.4941736469765147E-2,6.6934514497225925E-4,"",3.1940816726461194,"","",9.3916414223747005,4.4820107683121408,-2.0764386690709083E-2,1.4080235180361452E-4,28.727504295847623,16.108721476917189,-0.25285405200778999,1.6329409176141906E-3,51.993530795116548,12.707430817212133,-0.1833277845693396,1.5520594162806215E-3,"",5.8237546073187989,"","",17.654905695228599,8.2006280431109175,-6.3173304641326589E-2,5.3173674995817249E-4,252.87244419220409,13.416705181335963,-9.6976030236781655E-2,1.0591338485685842E-3,"","","","",252.87244419220409,13.416705181335963,-9.6976030236781655E-2,1.0591338485685842E-3,452.45625094531061,23.496854819564433,-0.15567902401248104,9.2791171947512619E-4,"","","","",452.45625094531061,23.496854819564433,-0.15567902401248104,9.2791171947512619E-4,381.6733451117131,33.536473019085285,-0.36451157090516656,2.6738413668187873E-3,"",18.449419431492057,"","",327.95951145284715,31.413234660459047,-0.31321295616799827,2.2975450593953231E-3]
[null,null,2052,null,50.03425489111293,10.6330907654174,-0.12112351344831322,8.0219128380602876E-4,61.609934103029083,8.8333409384362334,-8.497920062582566E-2,6.6964036440162096E-4,"",3.1940816726461194,"","",9.3958102528969754,4.4828390013834518,-2.0773609317010396E-2,1.4086487983978164E-4,28.740276588583246,16.115883439341108,-0.25296647130945893,1.6336669256657413E-3,52.016462911091587,12.713035519812413,-0.18340864259057607,1.5527439631076979E-3,"",5.8237546073187989,"","",17.6626931365725,8.2025559199550315,-6.3201173131445534E-2,5.3197131145954089E-4,252.98397537941963,13.422622714431258,-9.7018802203566373E-2,1.059600987073645E-3,"","","","",252.98397537941963,13.422622714431258,-9.7018802203566373E-2,1.059600987073645E-3,452.65580998778449,23.507218274239097,-0.1557476873515338,9.2832098152831224E-4,"","","","",452.65580998778449,23.507218274239097,-0.1557476873515338,9.2832098152831224E-4,381.84168485092363,33.551264518660446,-0.36467234132199361,2.6750206835411765E-3,"",18.449419431492057,"","",328.10416032428833,31.425944515722598,-0.31335110096651242,2.2985584079591578E-3]
[null,null,2053,null,50.056510245819133,10.637820389294534,-0.12117738947306705,8.0254810038303548E-4,61.637119972037695,8.837238719746292,-8.5016698367874968E-2,6.6993584849025936E-4,"",3.1940816726461194,"","",9.3999828207060272,4.483667976951847,-2.0782840211241806E-2,1.4092746393128648E-4,28.753060331465502,16.123051822344451,-0.25307899139314999,1.6343935845713571E-3,52.039415585324733,12.718645246934756,-0.18348957309967509,1.5534291236195459E-3,"",5.8237546073187989,"","",17.670487559227212,8.2044855251084634,-6.3229066605199377E-2,5.3220608324136868E-4,253.09560655247756,13.428545552495917,-9.7061612514703341E-2,1.0600685443605561E-3,"","","","",253.09560655247756,13.428545552495917,-9.7061612514703341E-2,1.0600685443605561E-3,452.85554793159952,23.517591019577402,-0.15581641224612064,9.2873061047807825E-4,"","","","",452.85554793159952,23.517591019577402,-0.15581641224612064,9.2873061047807825E-4,382.01017550389247,33.56606927856739,-0.3648332558668082,2.6762010575012668E-3,"",18.449419431492057,"","",328.24893887102144,31.438665765158646,-0.313489369609526,2.2995726649730178E-3]
[null,null,2054,null,50.078785552078259,10.642554253200297,-0.12123131379677518,8.0290523684013011E-4,61.664330212722774,8.8411399953520444,-8.5054229726022307E-2,6.7023159747543661E-4,"",3.1940816726461194,"","",9.4041591291522693,4.4844976956829621,-2.0792079380815363E-2,1.4099010412838166E-4,28.765855534759243,16.130226631683151,-0.25319161234921245,1.6351208949145172E-3,52.062388836246086,12.724260003083552,-0.1835705761616207,1.5541148983663231E-3,"",5.8237546073187989,"","",17.678288969451355,8.2064168601206138,-6.3256985084985506E-2,5.3244106549216891E-4,253.20733780101338,13.43447370028575,-9.7104461204567574E-2,1.0605365208047478E-3,"","","","",253.20733780101338,13.43447370028575,-9.7104461204567574E-2,1.0605365208047478E-3,453.0554649371374,23.527973063908256,-0.15588519875142501,9.2914060665334026E-4,"","","","",453.0554649371374,23.527973063908256,-0.15588519875142501,9.2914060665334026E-4,382.17881720591106,33.580887310693747,-0.36499431466881838,2.677382489646852E-3,"",18.449419431492057,"","",328.39384720929797,31.451398418981853,-0.31362776220806332,2.300587831251311E-3]
[null,null,2055,null,50.101080827776549,10.647292360935802,-0.12128528646273677,8.0326269346407979E-4,61.691564846933105,8.8450447683860691,-8.5091794730403916E-2,6.705276115946281E-4,"",3.1940816726461194,"","",9.4083391815891204,4.4853281582430302,-2.0801326833149773E-2,1.4105280048136489E-4,28.778662208738542,16.137407873118313,-0.25330433426807664,1.6358488572792242E-3,52.08538268230231,12.729879792767244,-0.18365165184145532,1.5548012878986803E-3,"",5.8237546073187989,"","",17.686097373509156,8.2083499265422724,-6.3284928593221379E-2,5.326762584006231E-4,253.31916921474308,13.440407162560836,-9.7147348307564968E-2,1.0610049167819873E-3,"","","","",253.31916921474308,13.440407162560836,-9.7147348307564968E-2,1.0610049167819873E-3,453.25556116492407,23.538364415568051,-0.15595404692267983,9.2955097038330996E-4,"","","","",453.25556116492407,23.538364415568051,-0.15595404692267983,9.2955097038330996E-4,382.34761009239236,33.595718626937838,-0.3651555178573484,2.6785649809265778E-3,"",18.449419431492057,"","",328.53888545547397,31.464142487416055,-0.31376627887324848,2.3016039076091781E-3]
[null,null,2056,null,50.123396090816279,10.652034716305579,-0.12133930751428991,8.0362047054190915E-4,61.718823896537117,8.8489530419837532,-8.5129393411183127E-2,6.7082389108552229E-4,"",3.1940816726461194,"","",9.4125229813730069,4.4861593652988798,-2.0810582575670398E-2,1.4111555304057905E-4,28.791480363686677,16.144595552416209,-0.25341715724025415,1.6365774722500053E-3,52.108397141956608,12.735504620498313,-0.18373280020427971,1.5554882927677636E-3,"",5.8237546073187989,"","",17.693912777670491,8.210284725925618,-6.331289715234463E-2,5.3291166215558271E-4,253.43110088346316,13.446345944085529,-9.7190273858132281E-2,1.0614737326683798E-3,"","","","",253.43110088346316,13.446345944085529,-9.7190273858132281E-2,1.0614737326683798E-3,453.45583677562939,23.548765082900662,-0.1560229568151677,9.2996170199749419E-4,"","","","",453.45583677562939,23.548765082900662,-0.1560229568151677,9.2996170199749419E-4,382.51655429887086,33.61056323920868,-0.3653168655618384,2.6797485322899418E-3,"",18.449419431492057,"","",328.68405372600972,31.476897980694289,-0.31390491971630524,2.3026208948624918E-3]
[null,null,2057,null,50.145731359115786,10.656781323117562,-0.12139337699481149,8.0397856836089991E-4,61.746107383422789,8.8528648192832957,-8.5167025798550275E-2,6.7112043618602045E-4,"",3.1940816726461194,"","",9.4167105318633677,4.4869913175179432,-2.0819846615809264E-2,1.4117836185641213E-4,28.80431000989616,16.151789675348283,-0.2535300813563377,1.6373067404119113E-3,52.131432233688749,12.741134490793288,-0.18381402131525301,1.5561759135252118E-3,"",5.8237546073187989,"","",17.701735188210833,8.2122212598242239,-6.3340890784812948E-2,5.3314727694606806E-4,253.54313289705058,13.452290049628445,-9.7233237890737123E-2,1.0619429688403668E-3,"","","","",253.54313289705058,13.452290049628445,-9.7233237890737123E-2,1.0619429688403668E-3,453.6562919300672,23.559175074257436,-0.15609192848422068,9.3037280182569509E-4,"","","","",453.6562919300672,23.559175074257436,-0.15609192848422068,9.3037280182569509E-4,382.68564996100241,33.625421159425926,-0.36547835791184463,2.6809331446872907E-3,"",18.449419431492057,"","",328.82935213747004,31.489664909058718,-0.31404368484855705,2.3036387938278539E-3]
[null,null,2058,null,50.168086650609418,10.66153218518309,-0.12144749494771721,8.043369872085906E-4,61.77341532949773,8.8567801034257041,-8.5204691922722745E-2,6.7141724713423712E-4,"",3.1940816726461194,"","",9.4209018364226402,4.4878240155682425,-2.0829118961005026E-2,1.4124122697929713E-4,28.817151157668693,16.158990247691129,-0.25364310670700085,1.6380366623505158E-3,52.154487975995011,12.746769408172735,-0.18389531523959263,1.5568641507231584E-3,"",5.8237546073187989,"","",17.70956461141127,8.2141595297930508,-6.3368909513104157E-2,5.3338310296126897E-4,253.65526534546277,13.458239483962476,-9.7276240439877981E-2,1.0624126256747269E-3,"","","","",253.65526534546277,13.458239483962476,-9.7276240439877981E-2,1.0624126256747269E-3,453.85692678919531,23.569594397997196,-0.15616096198522039,9.3078427019801016E-4,"","","","",453.85692678919531,23.569594397997196,-0.15616096198522039,9.3078427019801016E-4,382.8548972145644,33.640292399519929,-0.36563999503703926,2.6821188190698235E-3,"",18.449419431492057,"","",328.97478080652388,31.502443282760709,-0.31418257438142699,2.3046576053225992E-3]
[null,null,2059,null,50.190461983247651,10.666287306316931,-0.12150166141646179,8.0469572737277835E-4,61.800747756689177,8.8606988975548013,-8.5242391813944968E-2,6.717143241685E-4,"",3.1940816726461194,"","",9.4250968984162888,4.4886574601184055,-2.0838399618703041E-2,1.4130414845971243E-4,28.830003817315248,16.166197275226544,-0.25375623338299891,1.6387672386519198E-3,52.177564387388287,12.752409377161284,-0.18397668204257456,1.5575530049142313E-3,"",5.8237546073187989,"","",17.717401053558543,8.2160995373884589,-6.3396953359716249E-2,5.3361914039054461E-4,253.76749831873778,13.464194251864791,-9.7319281540084263E-2,1.0628827035485766E-3,"","","","",253.76749831873778,13.464194251864791,-9.7319281540084263E-2,1.0628827035485766E-3,454.05774151411595,23.580023062486266,-0.15623005737359807,9.3119610744483278E-4,"","","","",454.05774151411595,23.580023062486266,-0.15623005737359807,9.3119610744483278E-4,383.02429619545597,33.655176971431722,-0.36580177706721073,2.6833055563895915E-3,"",18.449419431492057,"","",329.12033984994503,31.515233112060805,-0.31432158842643804,2.3056773301647938E-3]
[null,null,2060,null,50.212857374997029,10.671046690337267,-0.12155587644453883,8.0505478914151801E-4,61.828104686944052,8.8646212048172348,-8.5280125502488577E-2,6.7201166752735102E-4,"",3.1940816726461194,"","",9.429295721212787,4.4894916518376551,-2.0847688596355319E-2,1.4136712634818166E-4,28.842867999156017,16.173410763741497,-0.25386946147516815,1.6394984699027481E-3,52.200661486398069,12.758054402287616,-0.18405812178953324,1.5582424766515549E-3,"",5.8237546073187989,"","",17.725244520945012,8.2180412841681996,-6.3425022347167362E-2,5.3385538942342424E-4,253.87983190699453,13.470154358116847,-9.736236122591635E-2,1.0633532028393711E-3,"","","","",253.87983190699453,13.470154358116847,-9.736236122591635E-2,1.0633532028393711E-3,454.2587362660758,23.590461076098471,-0.15629921470483477,9.3160831389685296E-4,"","","","",454.2587362660758,23.590461076098471,-0.15629921470483477,9.3160831389685296E-4,383.19384703969808,33.67007488711306,-0.36596370413226398,2.6844933575995004E-3,"",18.449419431492057,"","",329.26602938461184,31.528034407228766,-0.31446072709521333,2.3066979691732394E-3]
[null,null,2061,null,50.235272843840228,10.675810341065709,-0.12161014007548103,8.054141728031229E-4,61.855486142228962,8.868547028362471,-8.5317893018652308E-2,6.7230927744954582E-4,"",3.1940816726461194,"","",9.4334983081836388,4.4903265913958172,-2.0856985901420572E-2,1.4143016069527366E-4,28.855743713520472,16.180630719028159,-0.25398279107442673,1.6402303566901524E-3,52.22377929157048,12.763704488084478,-0.1841396345458618,1.5589325664887499E-3,"",5.8237546073187989,"","",17.733095019868699,8.2199847716914238,-6.3453116497995843E-2,5.3409185024960726E-4,253.99226620043277,13.476119807504388,-9.7405479531965655E-2,1.0638241239249039E-3,"","","","",253.99226620043277,13.476119807504388,-9.7405479531965655E-2,1.0638241239249039E-3,454.45991120646619,23.600908447215151,-0.15636843403446124,9.3202088988505723E-4,"","","","",454.45991120646619,23.600908447215151,-0.15636843403446124,9.3202088988505723E-4,383.36354988343385,33.684986158526421,-0.36612577636222043,2.6856822236533107E-3,"",18.449419431492057,"","",329.41184952750774,31.540847178543558,-0.31459999049947607,2.3077195231674705E-3]
[null,null,2062,null,50.257708407775993,10.680578262327284,-0.12166445235285997,8.0577387864616404E-4,61.882892144530182,8.872476371342799,-8.5355694392762083E-2,6.7260715417405414E-4,"",3.1940816726461194,"","",9.4377046627033554,4.4911622794633157,-2.0866291541364178E-2,1.4149325155160262E-4,28.868630970747308,16.187857146883868,-0.25409622227177386,1.6409628996018094E-3,52.246917821468251,12.769359639088679,-0.18422122037701194,1.5596232749799318E-3,"",5.8237546073187989,"","",17.74095255663326,8.2219300015186789,-6.3481235834760286E-2,5.3432852305896272E-4,254.10480128933295,13.482090604817447,-9.7448636492854568E-2,1.0642954671833068E-3,"","","","",254.10480128933295,13.482090604817447,-9.7448636492854568E-2,1.0642954671833068E-3,454.66126649682309,23.611365184225154,-0.15643771541805804,9.3243383574072866E-4,"","","","",454.66126649682309,23.611365184225154,-0.15643771541805804,9.3243383574072866E-4,383.53340486292836,33.699910797645003,-0.36628799388721811,2.6868721555056373E-3,"",18.449419431492057,"","",329.55780039572085,31.553671436293357,-0.31473937875104957,2.3087419929677575E-3]
[null,null,2063,null,50.280164084819255,10.685350457950452,-0.12171881332028639,8.0613390695947204E-4,61.910322715853667,8.8764092369133287,-8.5393529655170927E-2,6.7290529794005924E-4,"",3.1940816726461194,"","",9.441914788149484,4.4919987167111781,-2.0875605523658216E-2,1.4155639896782813E-4,28.881529781184515,16.195090053111176,-0.25420975515829053,1.6416960992259237E-3,52.270077094670718,12.775019859841082,-0.18430287934849388,1.5603146026797134E-3,"",5.8237546073187989,"","",17.748817137547992,8.2238769752119119,-6.3509380380039379E-2,5.3456540804152958E-4,254.21743726405646,13.488066754850342,-9.7491832143236423E-2,1.0647672329930503E-3,"","","","",254.21743726405646,13.488066754850342,-9.7491832143236423E-2,1.0647672329930503E-3,454.86280229882698,23.621831295524835,-0.15650705891125544,9.3284715179544665E-4,"","","","",454.86280229882698,23.621831295524835,-0.15650705891125544,9.3284715179544665E-4,383.70341211456844,33.714848816452701,-0.36645035683751126,2.6880631541119494E-3,"",18.449419431492057,"","",329.70388210644393,31.566507190775532,-0.31487889196185709,2.3097653793951035E-3]
[null,null,2064,null,50.3026398930011,10.690126931767116,-0.12177322302141014,8.0649425803213629E-4,61.93777787822517,8.8803456282320106,-8.5431398836259179E-2,6.7320370898695978E-4,"",3.1940816726461194,"","",9.4461286879026023,4.4928359038110308,-2.0884927855781464E-2,1.4161960299465524E-4,28.894440155189361,16.202329443517847,-0.25432338982513952,1.642429956151228E-3,52.293257129773941,12.780685154886642,-0.18438461152587685,1.5610065501432055E-3,"",5.8237546073187989,"","",17.756688768927859,8.2258256943344676,-6.3537550156432213E-2,5.348025053875181E-4,254.33017421504582,13.494048262401703,-9.7535066517795796E-2,1.0652394217329454E-3,"","","","",254.33017421504582,13.494048262401703,-9.7535066517795796E-2,1.0652394217329454E-3,455.06451877430379,23.6323067895181,-0.15657646456973368,9.3326083838108915E-4,"","","","",455.06451877430379,23.6323067895181,-0.15657646456973368,9.3326083838108915E-4,383.87357177486382,33.729800226944214,-0.36661286534347154,2.6892552204285753E-3,"",18.449419431492057,"","",329.85009477697537,31.579354452296748,-0.31501853024392279,2.3107896832712509E-3]
[null,null,2065,null,50.32513585036871,10.694907687612593,-0.12182768149992007,8.0685493215350464E-4,61.965257653690138,8.8842855484596104,-8.5469301966434333E-2,6.7350238755436846E-4,"",3.1940816726461194,"","",9.450346365346304,4.4936738414351041,-2.0894258545219403E-2,1.4168286368283431E-4,28.907362103128371,16.20957532391682,-0.25443712636356497,1.6431644709669804E-3,52.316457945390596,12.786355528774372,-0.18446641697478863,1.561699117926015E-3,"",5.8237546073187989,"","",17.764567457093491,8.2277761604510964,-6.3565745186557998E-2,5.3503981528730811E-4,254.44301223282449,13.500035132274453,-9.757833965124818E-2,1.0657120337821408E-3,"","","","",254.44301223282449,13.500035132274453,-9.757833965124818E-2,1.0657120337821408E-3,455.26641608522402,23.642791674616365,-0.1566459324492229,9.3367489582983024E-4,"","","","",455.26641608522402,23.642791674616365,-0.1566459324492229,9.3367489582983024E-4,384.04388398044614,33.744765041124936,-0.36677551953558696,2.6904483554126982E-3,"",18.449419431492057,"","",329.99643852471831,31.592213231172849,-0.31515829370937076,2.3118149054186755E-3]
[null,null,2066,null,50.347651974985546,10.699692729325662,-0.12188218879954443,8.0721592961318549E-4,61.992762064313794,8.8882290007597433,-8.5507239076131197E-2,6.7380133388211295E-4,"",3.1940816726461194,"","",9.454567823867233,4.4945125302562303,-2.0903597599464238E-2,1.4174618108316143E-4,28.920295635377411,16.216827700126284,-0.25455096486489331,1.6438996442629703E-3,52.339679560150067,12.792030986057371,-0.18454829576091594,1.5623923065842483E-3,"",5.8237546073187989,"","",17.772453208371175,8.2297283751279462,-6.359396549305632E-2,5.3527733793145085E-4,254.55595140799721,13.506027369275824,-9.7621651578340338E-2,1.0661850695201272E-3,"","","","",254.55595140799721,13.506027369275824,-9.7621651578340338E-2,1.0661850695201272E-3,455.46849439370379,23.653285959238605,-0.1567154626055032,9.3408932447414301E-4,"","","","",455.46849439370379,23.653285959238605,-0.1567154626055032,9.3408932447414301E-4,384.21434886806969,33.759743271011061,-0.36693831954446277,2.691642560022362E-3,"",18.449419431492057,"","",330.1429134671813,31.605083537728952,-0.31529818247042585,2.3128410466605942E-3]
[null,null,2067,null,50.370188284931153,10.704482060748518,-0.12193674496405037,8.0757725070104529E-4,62.020291132181136,8.8921759882988454,-8.5545210195811808E-2,6.7410054821023563E-4,"",3.1940816726461194,"","",9.4587930668550548,4.4953519709478451,-2.0912945026014852E-2,1.4180955524647788E-4,28.933240762321585,16.224086577969604,-0.25466490542053233,1.6446354766295121E-3,52.362921992698425,12.797711531292812,-0.18463024795000429,1.5630861166745092E-3,"",5.8237546073187989,"","",17.780346029092861,8.2316823399325738,-6.362221109858697E-2,5.3551507351066779E-4,254.66899183124977,13.512024978217353,-9.7665002333850046E-2,1.0666585293267335E-3,"","","","",254.66899183124977,13.512024978217353,-9.7665002333850046E-2,1.0666585293267335E-3,455.67075386200418,23.663789651811328,-0.1567850550944046,9.345041246467975E-4,"","","","",455.67075386200418,23.663789651811328,-0.1567850550944046,9.345041246467975E-4,384.38496657461138,33.774734928629535,-0.36710126550082112,2.6928378352164659E-3,"",18.449419431492057,"","",330.28951972197814,31.617965382299431,-0.31543819663941336,2.3138681078209568E-3]
[null,null,2068,null,50.392744798301379,10.709275685726825,-0.12199135003724457,8.0793889570721219E-4,62.047844879397019,8.8961265142462089,-8.5583215355965636E-2,6.7440003077899504E-4,"",3.1940816726461194,"","",9.4630220977024884,4.4961921641839879,-2.0922300832376901E-2,1.4187298622367095E-4,28.946197494355374,16.231351963275408,-0.25477894812197216,1.6453719686574531E-3,52.386185261698522,12.803397169041974,-0.18471227360785841,1.5637805487539026E-3,"",5.8237546073187989,"","",17.788245925596215,8.2336380564339411,-6.3650482025830207E-2,5.3575302221585202E-4,254.78213359334964,13.518027963914905,-9.7708391952586446E-2,1.0671324135821314E-3,"","","","",254.78213359334964,13.518027963914905,-9.7708391952586446E-2,1.0671324135821314E-3,455.87319465253233,23.674302760768626,-0.15685470997180742,9.3491929668086356E-4,"","","","",455.87319465253233,23.674302760768626,-0.15685470997180742,9.3491929668086356E-4,384.55573723707101,33.789740026018123,-0.36726435753550191,2.6940341819547747E-3,"",18.449419431492057,"","",330.43625740682836,31.630858775227942,-0.31557833632875976,2.3148960897244591E-3]
[null,null,2069,null,50.415321533208242,10.714073608109677,-0.12204600406297278,8.0830086492207317E-4,62.075423328086003,8.900080581773949,-8.5621254587109286E-2,6.7469978182886376E-4,"",3.1940816726461194,"","",9.4672549198052796,4.4970331106393013,-2.0931665026062737E-2,1.4193647406567322E-4,28.959165841882534,16.23862386187751,-0.25489309306078473,1.6461091209381683E-3,52.409469385829816,12.809087903870193,-0.18479437280034158,1.5644756033800298E-3,"",5.8237546073187989,"","",17.796152904224527,8.2355955262024132,-6.367877829748643E-2,5.3599118423806695E-4,254.89537678514515,13.524036331188638,-9.7751820469389655E-2,1.0676067226668309E-3,"","","","",254.89537678514515,13.524036331188638,-9.7751820469389655E-2,1.0676067226668309E-3,456.07581692784009,23.684825294552102,-0.15692442729364176,9.3533484090970787E-4,"","","","",456.07581692784009,23.684825294552102,-0.15692442729364176,9.3533484090970787E-4,384.72666099257066,33.804758575225321,-0.36742759577946144,2.6952316011979059E-3,"",18.449419431492057,"","",330.58312663955655,31.643763726867363,-0.31571860165099158,2.3159249931965281E-3]
[null,null,2070,null,50.43791850778004,10.718875831749633,-0.12210070708512018,8.0866315863627604E-4,62.103026500392602,8.9040381940570388,-8.5659327919786921E-2,6.7499980160053109E-4,"",3.1940816726461194,"","",9.471491536562235,4.4978748109890354,-2.0941037614591464E-2,1.4200001882346309E-4,28.972145815316171,16.245902279614981,-0.25500734032862421,1.6468469340635639E-3,52.432774383788647,12.814783740346927,-0.18487654559337657,1.5651712811109947E-3,"",5.8237546073187989,"","",17.804066971326826,8.237554750809764,-6.3707099936276532E-2,5.3622955976854818E-4,255.00872149756648,13.53005008486306,-9.7795287919131224E-2,1.0680814569616855E-3,"","","","",255.00872149756648,13.53005008486306,-9.7795287919131224E-2,1.0680814569616855E-3,456.278620850626,23.69535726161098,-0.1569942071158881,9.3575075766699745E-4,"","","","",456.278620850626,23.69535726161098,-0.1569942071158881,9.3575075766699745E-4,384.89773797835608,33.819790588310482,-0.36759098036377419,2.6964300939073447E-3,"",18.449419431492057,"","",330.73012753809348,31.656680247579907,-0.31585899271873685,2.3169548190633362E-3]
[null,null,2071,null,50.460535740161227,10.723682360502686,-0.12215545914761114,8.090257771407284E-4,62.130654418481051,8.9079993542732847,-8.5697435384569878E-2,6.753000903349009E-4,"",3.1940816726461194,"","",9.4757319513751845,4.4987172659090415,-2.0950418605488894E-2,1.4206362054806451E-4,28.985137425078687,16.253187222332105,-0.25512169001722668,1.6475854086260742E-3,52.456100274287977,12.820484683045706,-0.18495879205294477,1.5658675825053986E-3,"",5.8237546073187989,"","",17.811988133257785,8.2395157318291758,-6.3735446964941656E-2,5.3646814899870185E-4,255.12216782162494,13.536069229766968,-9.7838794336713761E-2,1.0685566168478875E-3,"","","","",255.12216782162494,13.536069229766968,-9.7838794336713761E-2,1.0685566168478875E-3,456.48160658373342,23.705898670402,-0.15706404949457686,9.361670472866967E-4,"","","","",456.48160658373342,23.705898670402,-0.15706404949457686,9.361670472866967E-4,385.06896833179508,33.834836077343716,-0.3677545114196315,2.6976296610454332E-3,"",18.449419431492057,"","",330.8772602204748,31.669608347737032,-0.31599950964472401,2.3179855681517937E-3]
[null,null,2072,null,50.483173248512664,10.72849319822831,-0.12221026029440964,8.0938872072660033E-4,62.158307104535616,8.9119640656033621,-8.5735577012057168E-2,6.7560064827309476E-4,"",3.1940816726461194,"","",9.4799761676490348,4.4995604760757821,-2.0959808006287637E-2,1.4212727929054743E-4,28.998140681601893,16.260478695878437,-0.2552361422184109,1.6483245452186687E-3,52.479447076057703,12.82619073654419,-0.18504111224508735,1.5665645081223477E-3,"",5.8237546073187989,"","",17.819916396377828,8.2414784708352471,-6.3763819406243497E-2,5.3670695212010657E-4,255.235715848414,13.542093770733533,-9.7882339757071446E-2,1.069032202706974E-3,"","","","",255.235715848414,13.542093770733533,-9.7882339757071446E-2,1.069032202706974E-3,456.68477429015292,23.716449529389557,-0.15713395448578907,9.365837101030721E-4,"","","","",456.68477429015292,23.716449529389557,-0.15713395448578907,9.365837101030721E-4,385.24035219037984,33.849895054406034,-0.36791818907834312,2.6988303035753816E-3,"",18.449419431492057,"","",331.02452480484317,31.682548037719549,-0.31614015254178324,2.3190172412895552E-3]
[null,null,2073,null,50.50583105101137,10.733308348789421,-0.12226511056951885,8.0975198968532105E-4,62.185984580760319,8.9159323312307741,-8.5773752832875E-2,6.7590147565644871E-4,"",3.1940816726461194,"","",9.4842241887917229,4.5004044421663219,-2.0969205824527017E-2,1.4219099510202727E-4,29.01115559532689,16.267776706108737,-0.25535069702407753,1.649064344434845E-3,52.502814807844388,12.831901905424113,-0.1851235062359041,1.5672620585214455E-3,"",5.8237546073187989,"","",17.827851767053041,8.243442969403981,-6.3792217282964012E-2,5.3694596932451209E-4,255.34936566910827,13.548123712600223,-9.7925924215169519E-2,1.0695082149208219E-3,"","","","",255.34936566910827,13.548123712600223,-9.7925924215169519E-2,1.0695082149208219E-3,456.88812413302009,23.727009847045569,-0.15720392214565565,9.3700074645068729E-4,"","","","",456.88812413302009,23.727009847045569,-0.15720392214565565,9.3700074645068729E-4,385.41188969172475,33.864967531589194,-0.36808201347133579,2.7000320224612596E-3,"",18.449419431492057,"","",331.17192140944616,31.695499327917524,-0.31628092152284532,2.3200498393050151E-3]
[null,null,2074,null,50.528509165850728,10.738127816052405,-0.12232001001698148,8.1011558430858213E-4,62.213686869379131,8.9199041543418947,-8.5811962877677117E-2,6.7620257272651605E-4,"",3.1940816726461194,"","",9.4884760182142553,4.5012491648583337,-2.0978612067753123E-2,1.4225476803366553E-4,29.024182176704176,16.275081258883038,-0.25546535452620978,1.6498048068686343E-3,52.52620348841144,12.837618194271334,-0.18520597409155432,1.5679602342627992E-3,"",5.8237546073187989,"","",17.835794251655223,8.2454092291127967,-6.3820640617905613E-2,5.3718520080384016E-4,255.46311737496427,13.554159060208853,-9.7969547746004665E-2,1.069984653871651E-3,"","","","",255.46311737496427,13.554159060208853,-9.7969547746004665E-2,1.069984653871651E-3,457.09165627561737,23.737579631849584,-0.15727395253035806,9.3741815666440701E-4,"","","","",457.09165627561737,23.737579631849584,-0.15727395253035806,9.3741815666440701E-4,385.58358097356813,33.88005352099583,-0.3682459847301543,2.7012348186680017E-3,"",18.449419431492057,"","",331.31945015263778,31.708462228730355,-0.31642181670094244,2.3210833630273099E-3]
[null,null,2075,null,50.551207611240422,10.742951603887112,-0.1223749586808798,8.1047950488833667E-4,62.241413992635962,8.923879538125945,-8.5850207177144783E-2,6.7650393972506638E-4,"",3.1940816726461194,"","",9.4927316593306905,4.5020946448300982,-2.098802674351883E-2,1.4231859813666948E-4,29.037220436193603,16.28239236006663,-0.25558011481687337,1.6505459331146006E-3,52.549613136539101,12.843339607675814,-0.18528851587825665,1.5686590359070176E-3,"",5.8237546073187989,"","",17.843743856561897,8.2473772515405237,-6.3849089433891185E-2,5.3742464675018476E-4,255.57697105732041,13.560199818405584,-9.8013210384604948E-2,1.0704615199420239E-3,"","","","",255.57697105732041,13.560199818405584,-9.8013210384604948E-2,1.0704615199420239E-3,457.29537088137334,23.748158892288735,-0.15734404569612806,9.3783594107939587E-4,"","","","",457.29537088137334,23.748158892288735,-0.15734404569612806,9.3783594107939587E-4,385.75542617377158,33.895153034739437,-0.36841010298646149,2.7024386931614086E-3,"",18.449419431492057,"","",331.46711115287803,31.721436750566767,-0.31656283818920811,2.3221178132863205E-3]
[null,null,2076,null,50.573926405406425,10.747779716166864,-0.12242995660533543,8.1084375171679873E-4,62.269165972794632,8.9278584857750083,-8.5888485761986696E-2,6.7680557689408583E-4,"",3.1940816726461194,"","",9.4969911155581457,4.5029408827605044,-2.0997449859383756E-2,1.4238248546229223E-4,29.050270384264401,16.289710015530041,-0.25569497798821644,1.6512877237678395E-3,52.573043771024416,12.849066150231636,-0.18537113166228897,1.5693584640152118E-3,"",5.8237546073187989,"","",17.851700588156287,8.2493470382674161,-6.3877563753764063E-2,5.3766430735581179E-4,255.69092680759681,13.566245992040916,-9.8056912166029825E-2,1.070938813514846E-3,"","","","",255.69092680759681,13.566245992040916,-9.8056912166029825E-2,1.070938813514846E-3,457.49926811386314,23.758747636857773,-0.1574142016992478,9.3825410003111893E-4,"","","","",457.49926811386314,23.758747636857773,-0.1574142016992478,9.3825410003111893E-4,385.92742543032028,33.910266084944347,-0.36857436837203811,2.7036436469081455E-3,"",18.449419431492057,"","",331.61490452873312,31.734422903844809,-0.3167039861008773,2.3231531909126712E-3]
[null,null,2077,null,50.596665566591085,10.752612156768452,-0.12248500383450968,8.1120832508644507E-4,62.296942832138946,8.9318410004840327,-8.5926798662939133E-2,6.77107484475778E-4,"",3.1940816726461194,"","",9.5012543903168076,4.5037878793290487,-2.1006881422914309E-2,1.4244643006183289E-4,29.063332031395188,16.29703423114908,-0.25580994413246982,1.6520301794239818E-3,52.596495410681328,12.854797826536995,-0.18545382150998871,1.5700585191489968E-3,"",5.8237546073187989,"","",17.859664452827356,8.2513185908751314,-6.390606360038803E-2,5.3790418281315997E-4,255.80498471729572,13.572297585969697,-9.8100653125370169E-2,1.0714165349733663E-3,"","","","",255.80498471729572,13.572297585969697,-9.8100653125370169E-2,1.0714165349733663E-3,457.70334813680864,23.769345874059063,-0.15748442059604992,9.3867263385534222E-4,"","","","",457.70334813680864,23.769345874059063,-0.15748442059604992,9.3867263385534222E-4,386.09957888132323,33.92539268374577,-0.3687387810187831,2.7048496808757456E-3,"",18.449419431492057,"","",331.76283039887562,31.747420698991881,-0.31684526054928652,2.3241894967377316E-3]
[null,null,2078,null,50.61942511305309,10.75744892957214,-0.12254010041260338,8.115732252900143E-4,62.324744592972671,8.9358270854508248,-8.5965145910765914E-2,6.7740966271256323E-4,"",3.1940816726461194,"","",9.5055214870299203,4.5046356352158377,-2.1016321441683684E-2,1.4251043198663664E-4,29.076405388073972,16.304365012804812,-0.25592501334194689,1.6527733006791907E-3,52.619968074340605,12.860534641194214,-0.18553658548775268,1.5707592018704901E-3,"",5.8237546073187989,"","",17.86763545696979,8.2532919109467571,-6.3934588996647418E-2,5.3814427331484E-4,255.91914487800133,13.578354605051132,-9.8144433297748343E-2,1.0718946847011772E-3,"","","","",255.91914487800133,13.578354605051132,-9.8144433297748343E-2,1.0718946847011772E-3,457.90761111407841,23.779953612402583,-0.15755470244291753,9.3909154288813264E-4,"","","","",457.90761111407841,23.779953612402583,-0.15755470244291753,9.3909154288813264E-4,386.27188666501314,33.940532843289795,-0.36890334105871359,2.7060567960326084E-3,"",18.449419431492057,"","",331.91088888208441,31.760430146444705,-0.31698666164787376,2.3252267315936165E-3]
[null,null,2079,null,50.642205063067514,10.762290038461684,-0.12259524638385703,8.1193845262050759E-4,62.352571277619596,8.9398167438760652,-8.6003527536258451E-2,6.7771211184707936E-4,"",3.1940816726461194,"","",9.5097924091238077,4.5054841511015882,-2.1025769923271861E-2,1.4257449128809459E-4,29.089490464798178,16.311702366383582,-0.25604018570904413,1.6535170881301655E-3,52.643461780849933,12.866276598809739,-0.18561942366203724,1.5714605127423141E-3,"",5.8237546073187989,"","",17.875613606984007,8.2552670000667945,-6.396313996544703E-2,5.3838457905363581E-4,256.03340738138002,13.58441705414878,-9.8188252718318186E-2,1.0723732630822148E-3,"","","","",256.03340738138002,13.58441705414878,-9.8188252718318186E-2,1.0723732630822148E-3,458.11205720968798,23.790570860405964,-0.15762504729628438,9.3951082746585859E-4,"","","","",458.11205720968798,23.790570860405964,-0.15762504729628438,9.3951082746585859E-4,386.44434891974674,33.955686575733417,-0.36906804862396519,2.7072649933480028E-3,"",18.449419431492057,"","",332.05908009724493,31.773451256649409,-0.3171281895101789,2.3262648963131871E-3]
[null,null,2080,null,50.665005434925781,10.767135487324305,-0.12265044179255079,8.1230400737118886E-4,62.380422908423483,8.9438099789632961,-8.6041943570235743E-2,6.7801483212218149E-4,"",3.1940816726461194,"","",9.5140671600278548,4.5063334276676263,-2.1035226875265618E-2,1.4263860801764394E-4,29.102587272074619,16.31904629777701,-0.25615546132624045,1.6542615423741388E-3,52.666976549073851,12.872023703994147,-0.18570233609935835,1.5721624523275946E-3,"",5.8237546073187989,"","",17.883598909276152,8.2572438598211644,-6.399171652971225E-2,5.3862510022250384E-4,256.14777231918026,13.59048493813056,-9.8232111422265025E-2,1.0728522705007598E-3,"","","","",256.14777231918026,13.59048493813056,-9.8232111422265025E-2,1.0728522705007598E-3,458.31668658779984,23.801197626594444,-0.1576954552126347,9.3993048792518957E-4,"","","","",458.31668658779984,23.801197626594444,-0.1576954552126347,9.3993048792518957E-4,386.61696578400466,33.970853893244495,-0.36923290384679186,2.7084742737920648E-3,"",18.449419431492057,"","",332.20740416334911,31.786484040061438,-0.31726984424984339,2.327303991730049E-3]
[null,null,2081,null,50.687826246935757,10.771985280050721,-0.12270568668300447,8.126698898355849E-4,62.408299507748175,8.9478067939189394,-8.6080394043544423E-2,6.7831782378094299E-4,"",3.1940816726461194,"","",9.5183457431745317,4.5071834655958893,-2.1044692305258524E-2,1.4270278222676806E-4,29.11569582041955,16.326396812881995,-0.25627084028609787,1.6550066640088803E-3,52.690512397893869,12.877775961362151,-0.18578532286629162,1.5728650211899633E-3,"",5.8237546073187989,"","",17.891591370258137,8.2592224917972139,-6.4020318712388974E-2,5.3886583701457345E-4,256.26223978323281,13.596558261868756,-9.8276009444805787E-2,1.073331707341437E-3,"","","","",256.26223978323281,13.596558261868756,-9.8276009444805787E-2,1.073331707341437E-3,458.52149941272381,23.811833919500927,-0.15776592624850344,9.4035052460309757E-4,"","","","",458.52149941272381,23.811833919500927,-0.15776592624850344,9.4035052460309757E-4,386.7897373963919,33.986034808001833,-0.36939790685956619,2.7096846383358026E-3,"",18.449419431492057,"","",332.35586119949568,31.799528507145631,-0.31741162598061079,2.3283440186785591E-3]
[null,null,2082,null,50.710667517421669,10.776839420535129,-0.12276098109957763,8.1303610030748514E-4,62.436201097977474,8.9518071919522786,-8.6118878987058736E-2,6.7862108706665415E-4,"",3.1940816726461194,"","",9.5226281619993749,4.5080342655689245,-2.1054166220850969E-2,1.4276701396699634E-4,29.128816120358628,16.33375391760072,-0.25638632268126138,1.6557524536326934E-3,52.714069346208333,12.883533375532584,-0.18586838402947217,1.5735682198935556E-3,"",5.8237546073187989,"","",17.899590996347587,8.2612028975837042,-6.4048946536443635E-2,5.3910678962314706E-4,256.37680986545058,13.602637030240011,-9.8319946821188872E-2,1.0738115739892158E-3,"","","","",256.37680986545058,13.602637030240011,-9.8319946821188872E-2,1.0738115739892158E-3,458.72649584891656,23.822479747665938,-0.15783646046047609,9.4077093783685544E-4,"","","","",458.72649584891656,23.822479747665938,-0.15783646046047609,9.4077093783685544E-4,386.96266389563732,34.001229332195109,-0.36956305779477922,2.7108960879510913E-3,"",18.449419431492057,"","",332.50445132488989,31.812584668376189,-0.31755353481632631,2.3293849779938173E-3]
[null,null,2083,null,50.733529264724204,10.781697912675222,-0.12281632508666961,8.1340263908094308E-4,62.464127701515345,8.9558111762754891,-8.6157398431680673E-2,6.7892462222282439E-4,"",3.1940816726461194,"","",9.5269144199410061,4.5088858282698938,-2.1063648629650145E-2,1.4283130328990448E-4,29.141948182426965,16.34111761784067,-0.25650190860445893,1.6564989118444196E-3,52.737647412932631,12.889295951128446,-0.18595151965559509,1.5742720490030141E-3,"",5.8237546073187989,"","",17.90759779396792,8.2631850787708316,-6.4077600024863332E-2,5.3934795824170064E-4,256.49148265782918,13.608721248125352,-9.8363923586694366E-2,1.0742918708294114E-3,"","","","",256.49148265782918,13.608721248125352,-9.8363923586694366E-2,1.0742918708294114E-3,458.93167606098274,23.833135119637689,-0.15790705790518902,9.4119172796403971E-4,"","","","",458.93167606098274,23.833135119637689,-0.15790705790518902,9.4119172796403971E-4,387.1357454205945,34.016437478024969,-0.36972835678504101,2.7121086236106804E-3,"",18.449419431492057,"","",332.65317465884414,31.825652534236731,-0.31769557087093747,2.3304268705116762E-3]
[null,null,2084,null,50.75641150720049,10.786560760372188,-0.12287171868871956,8.1376950645027559E-4,62.492079340785814,8.9598187501036222,-8.619595240833991E-2,6.7922842949318107E-4,"",3.1940816726461194,"","",9.5312045204411291,4.5097381543825685,-2.1073139539270078E-2,1.4289565024711443E-4,29.155092017169117,16.348487919514618,-0.25661759814850171,1.6572460392434373E-3,52.76124661699906,12.895063692776866,-0.18603472981141517,1.5749765090834877E-3,"",5.8237546073187989,"","",17.915611769548285,8.265169036950212,-6.4106279200655758E-2,5.3958934306388377E-4,256.60625825244659,13.614810920410182,-9.8407939776634007E-2,1.0747725982476843E-3,"","","","",256.60625825244659,13.614810920410182,-9.8407939776634007E-2,1.0747725982476843E-3,459.13704021367448,23.843800043972049,-0.15797771863932941,9.4161289532252931E-4,"","","","",459.13704021367448,23.843800043972049,-0.15797771863932941,9.4161289532252931E-4,387.30898211024157,34.031659257702991,-0.36989380396308058,2.7133222462881914E-3,"",18.449419431492057,"","",332.8020313207777,31.838732115220267,-0.31783773425849399,2.3314696970687366E-3]
[null,null,2085,null,50.779314263224116,10.791427967530712,-0.12292716195020648,8.1413670271006334E-4,62.520056038232966,8.9638299166546016,-8.6234540947993821E-2,6.7953250912166979E-4,"",3.1940816726461194,"","",9.5354984669445351,4.5105912445913363,-2.1082638957331607E-2,1.4296005489029435E-4,29.168247635139092,16.355864828540636,-0.25673339140628409,1.6579938364296612E-3,52.784866977356863,12.900836605109118,-0.18611801456374696,1.5756816007006301E-3,"",5.8237546073187989,"","",17.923632929523599,8.2671547737148856,-6.4134984086849173E-2,5.3983094428351915E-4,256.72113674146317,13.620906051984271,-9.8451995426351052E-2,1.0752537566300403E-3,"","","","",256.72113674146317,13.620906051984271,-9.8451995426351052E-2,1.0752537566300403E-3,459.34258847189113,23.854474529232537,-0.15804844271963503,9.4203444025050512E-4,"","","","",459.34258847189113,23.854474529232537,-0.15804844271963503,9.4203444025050512E-4,387.4823741036808,34.046894683451669,-0.37005939946174554,2.7145369569581161E-3,"",18.449419431492057,"","",332.95102143021677,31.851823421829195,-0.31798002509314749,2.3325134585023481E-3]
[null,null,2086,null,50.802237551185122,10.796299538058975,-0.12298265491564918,8.145042281551512E-4,62.548057816321048,8.9678446791492483,-8.6273164081627565E-2,6.7983686135245525E-4,"",3.1940816726461194,"","",9.5397962628991024,4.511445099581195,-2.1092146891462406E-2,1.4302451727115875E-4,29.181415046900351,16.363248350842106,-0.25684928847078375,1.6587423040035443E-3,52.808508512972338,12.906614692760639,-0.18620137397946504,1.5763873244206044E-3,"",5.8237546073187989,"","",17.931661280334563,8.2691422906593299,-6.4163714706492542E-2,5.4007276209460352E-4,256.83611821712213,13.627006647741783,-9.8496090571220607E-2,1.0757353463628312E-3,"","","","",256.83611821712213,13.627006647741783,-9.8496090571220607E-2,1.0757353463628312E-3,459.54832100068052,23.865158583990375,-0.15811923020289473,9.4245636308645233E-4,"","","","",459.54832100068052,23.865158583990375,-0.15811923020289473,9.4245636308645233E-4,387.65592154013962,34.062143767504502,-0.37022514341400309,2.7157527565958221E-3,"",18.449419431492057,"","",333.10014510679491,31.864926464575362,-0.31812244348915242,2.3335581556506121E-3]
[null,null,2087,null,50.825181389490027,10.801175475868664,-0.12303819762960642,8.1487208308064784E-4,62.576084697534412,8.971863040811261,-8.6311821840254016E-2,6.8014148642992042E-4,"",3.1940816726461194,"","",9.5440979117557916,4.5122997200377579,-2.1101663349296987E-2,1.4308903744146841E-4,29.19459426302582,16.370638492347716,-0.25696528943506147,1.6594914425660777E-3,52.832171242828707,12.91239796037101,-0.1862848081255038,1.577093680810079E-3,"",5.8237546073187989,"","",17.939696828427625,8.2711315893794435,-6.4192471082655467E-2,5.4031479669130718E-4,256.95120277174908,13.633112712581264,-9.8540225246649335E-2,1.0762173678327555E-3,"","","","",256.95120277174908,13.633112712581264,-9.8540225246649335E-2,1.0762173678327555E-3,459.75423796523773,23.875852216824441,-0.15819008114594815,9.4287866416915855E-4,"","","","",459.75423796523773,23.875852216824441,-0.15819008114594815,9.4287866416915855E-4,387.82962455896984,34.077406522105896,-0.3703910359529391,2.7169696461775495E-3,"",18.449419431492057,"","",333.24940247025256,31.878041253979987,-0.31826498956086513,2.3346037893523801E-3]
[null,null,2088,null,50.848145796561923,10.80605578487498,-0.123093790136677,8.1524026778192777E-4,62.604136704377666,8.9758850048672425,-8.6350514254914024E-2,6.8044638459866858E-4,"",3.1940816726461194,"","",9.5484034169686769,4.5131551066472548,-2.1111188338476718E-2,1.431536154530308E-4,29.207785294097938,16.378035258991478,-0.25708139439226196,1.6602412527187925E-3,52.855855185926316,12.91818641258399,-0.18636831706885795,1.5778006704362337E-3,"",5.8237546073187989,"","",17.94773958025505,8.2731226714725601,-6.4221253238428269E-2,5.4055704826797577E-4,257.06639049775293,13.639224251405667,-9.8584399488075833E-2,1.0766998214268592E-3,"","","","",257.06639049775293,13.639224251405667,-9.8584399488075833E-2,1.0766998214268592E-3,459.96033953090699,23.886555436321348,-0.15826099560568607,9.4330134383771678E-4,"","","","",459.96033953090699,23.886555436321348,-0.15826099560568607,9.4330134383771678E-4,388.00348329964896,34.092682959511315,-0.37055707721175946,2.7181876266804189E-3,"",18.449419431492057,"","",333.39879364043827,31.89116780057379,-0.31840766342274512,2.3356503604472605E-3]
[null,null,2089,null,50.871130790840333,10.810940468996625,-0.12314943248149954,8.1560878255462895E-4,62.63221385937544,8.9799105745466701,-8.6389241356676028E-2,6.8075155610352093E-4,"",3.1940816726461194,"","",9.5527127819949129,4.5140112600965274,-2.1120721866649803E-2,1.4321825135769949E-4,29.2209881507086,16.385438656712719,-0.25719760343561299,1.6609917350637574E-3,52.879560361282429,12.923980054047476,-0.18645190087658181,1.5785082938667527E-3,"",5.8237546073187989,"","",17.955789542274847,8.2751155385374418,-6.4250061196921879E-2,5.4079951701912717E-4,257.18168148762487,13.645341269122316,-9.8628613330970283E-2,1.0771827075325337E-3,"","","","",257.18168148762487,13.645341269122316,-9.8628613330970283E-2,1.0771827075325337E-3,460.1666258631796,23.897268251075356,-0.15833197363904999,9.4372440243152198E-4,"","","","",460.1666258631796,23.897268251075356,-0.15833197363904999,9.4372440243152198E-4,388.17749790177857,34.107973091987134,-0.37072326732378874,2.7194066990824189E-3,"",18.449419431492057,"","",333.54831873730711,31.904306114896869,-0.31855046518935387,2.3366978697756061E-3]

{"sheet":"TAG - A1.3.13","index":27,"n_rows":93,"n_cols":36,"rows_kept":93,"cut":false,"hidden":true,"merged":[]}
[]
[null,"File Name",null,null,null,null,{"$f":"IFERROR(MID(CELL(\"filename\",G2),FIND(\"[\",CELL(\"filename\",G2))+1,FIND(\"]\",CELL(\"filename\",G2))-FIND(\"[\",CELL(\"filename\",G2))-1),\"Please save the file to show here\")","v":"structures-fund-economic-tool Final 03082026.xlsm"}]
[null,"Sheet Name",null,null,null,null,{"$f":"IFERROR(MID(CELL(\"filename\",G2),FIND(\"]\",CELL(\"filename\",G2))+1,255),\"Please save the file to show here\")","v":"TAG - A1.3.13"}]
[null,"Description and Purpose of Sheet",null,null,null,null,"TAG - A1.3.13 table"]
[null,"Version number",null,null,null,null,{"$f":"Version_Number","v":1}]
[]
[]
[null,"TAG Data Book v2.02 - A1.3.13"]
[]
[null,"Table A 1.3.13:",null,null,"Average Vehicle Fuel / Energy Cost Formulae Parameter Values (p, 2023 prices): Non-Work (Including VAT)"]
[null,null,null,null,"Cars",null,null,null,null,null,null,null,null,null,null,null,null,null,null,null,"LGV"]
[null,null,null,null,"Petrol Car",null,null,null,"Diesel Car",null,null,null,"Electric Car1",null,null,null,"Average Car",null,null,null,"Petrol LGV",null,null,null,"Diesel LGV",null,null,null,"Electric LGV",null,null,null,"Average LGV"]
[null,null,"Year",null,"a","b","c","d","a","b","c","d","a","b","c","d","a","b","c","d","a","b","c","d","a","b","c","d","a","b","c","d","a","b","c","d"]
[null,null,2010,null,75.857574062404638,16.12096496700682,-0.1836369085959163,1.2162124699560549E-3,83.292625057364774,11.942102608950306,-0.11488635393709137,9.0531023295866635E-4,"",3.8121015820934749,"","",78.833557612651759,14.444556764734326,-0.15605796765816937,1.0914691948860455E-3,57.222351711424636,32.086982443051014,-0.50366030221915248,3.2526570546959053E-3,77.359105062183204,18.906880541212811,-0.27276611398448958,2.3092474315685525E-3,"",4.4239271879184194,"","",76.594875158998647,19.34939944978948,-0.28050145735770532,2.3397947109622765E-3]
[null,null,2011,null,84.047962234080657,17.861555309022702,-0.20346429673266084,1.3475276662471764E-3,94.084472951989184,13.489386714944436,-0.12977165808020347,1.0226071764132423E-3,"",4.061806298686073,"","",88.274115283122541,16.014550010005856,-0.17233658981827732,1.2102280878333301E-3,63.884152839233082,35.822534887750862,-0.56229621404390184,3.6313299646214344E-3,87.979856126975051,21.502635384531718,-0.31021459523580758,2.6262875795638658E-3,"",4.7142971211624882,"","",87.154276135496133,21.933485992250876,-0.3177864064697048,2.6552735554311443E-3]
[null,null,2012,null,83.390279362084399,17.721787030510001,-0.20187217029119939,1.3369831409300297E-3,93.961600200725783,13.471769801052949,-0.12960217846083563,1.0212716685097042E-3,"",4.2305749889496003,"","",88.053861030078565,15.83744804822252,-0.16983519532277994,1.1969383661036216E-3,63.960107772385619,35.865126017504139,-0.56296475498013543,3.6356474269725715E-3,88.296352458288411,21.579988377732246,-0.31133055274738042,2.6357353147670945E-3,"",4.8976035916477896,"","",87.517509708904186,21.972154857222993,-0.31822203159822854,2.6617927403941367E-3]
[null,null,2013,null,80.117647144550986,17.026299599217349,-0.19394974368018175,1.2845135469344488E-3,90.235519738646289,12.937542008655811,-0.12446275827243691,9.8077277957656387E-4,"",4.4196402673691306,"","",84.778036643606868,15.129264908905634,-0.16171649922652551,1.1434827941920586E-3,61.983467644823151,34.756740654574976,-0.54556674294023788,3.5232904150144725E-3,85.476535622402352,20.890813651352673,-0.30138795478357999,2.5515609337355472E-3,"",5.1177606323604348,"","",84.780913519605207,21.239876903519537,-0.30751301315264712,2.5746803200009565E-3]
[null,null,2014,null,75.592205028160222,16.064569742703135,-0.18299450011280768,1.2119578502614843E-3,84.038349273919536,12.049021019865346,-0.11591493883549703,9.1341553356297711E-4,"",4.6070834619446623,"","",79.606206726119666,14.123786176024849,-0.15057954281955943,1.0674209851536782E-3,58.395916419493815,32.745049597884183,-0.51398979651398136,3.3193653148892947E-3,80.129995617013236,19.58409748511146,-0.28253619920341483,2.3919613136869585E-3,"",5.3145698380318889,"","",79.515885734683764,19.884439225806553,-0.28778214331258278,2.4115459344895814E-3]
[null,null,2015,null,64.663565163525831,13.74205649900423,-0.15653832003185011,1.0367406982854294E-3,71.057768977115259,10.187926814689392,-9.801069411682696E-2,7.7232918691049553E-4,"",4.5380347961011367,"","",67.759542276402954,11.962019781522603,-0.12721905128551764,9.0385242162405004E-4,49.268509666134172,27.62692824344213,-0.43365209094295326,2.8005414099034581E-3,68.340561562229084,16.702711756267568,-0.24096697331054839,2.0400347978776923E-3,"",5.2283834932607887,"","",67.827676577556716,16.930007859369983,-0.24492543541756112,2.0542282720977657E-3]
[null,null,2016,null,61.36631882721673,13.041338168208386,-0.14855630727224226,9.8387647002211765E-4,66.032757702139875,9.4674644662454668,-9.1079645617910057E-2,7.1771217700313829E-4,"",4.40285200052588,"","",63.619730718483581,11.200906121061646,-0.1189378073160077,8.4610875528389807E-4,47.399644612455589,26.578976903234558,-0.41720269469147697,2.6943105941589765E-3,63.781170164638496,15.588377917664008,-0.224890682450469,1.9039323589218828E-3,"",5.0620617631661222,"","",63.351258785156084,15.796076069882163,-0.22846332360515439,1.9171320392546195E-3]
[null,null,2017,null,64.299820338916476,13.664754823503337,-0.15565776227694392,1.0309088351255567E-3,70.305286741310525,10.080039470939528,-9.6972787814624359E-2,7.6415043317660278E-4,"",4.6261861743667145,"","",67.188197450731636,11.797964189001444,-0.12507360593864128,8.9091249096329671E-4,49.440821730361137,27.723550874533206,-0.43516874909748399,2.8103360449464837E-3,67.451119041493712,16.48532837942652,-0.23783082301772199,2.0134840401500138E-3,"",5.3138491556462055,"","",66.971427917967162,16.689550566416525,-0.2413424736038865,2.0257836927200781E-3]
[null,null,2018,null,66.662710984780929,14.166907413981805,-0.16137787577806631,1.0687926865954008E-3,74.662315128407954,10.704729592459787,-0.10298248081024412,8.1150711549288343E-4,"",4.9309508982067936,"","",70.434816372743569,12.376626048222182,-0.13115861445418944,9.3416724614132853E-4,50.044807658480082,28.062231220443092,-0.44048491884574281,2.8446680678584487E-3,70.97014893457964,17.345393626510891,-0.25023882732646791,2.1185306372595528E-3,"",5.6688014818585097,"","",70.383925724471951,17.542941629366474,-0.25365386760790992,2.1290776723691543E-3]
[null,null,2019,null,64.853317644446591,13.782381979157469,-0.15699767507220544,1.0397829697573733E-3,74.247463865403546,10.645250180605027,-0.1024102722983867,8.0699808371131746E-4,"",5.2627145300526177,"","",69.095437984430077,12.187496737809456,-0.12919431084933736,9.1902997571533212E-4,48.300933606438747,27.084367598672873,-0.42513566971818706,2.7455420433553186E-3,69.706279054437857,17.036498677115215,-0.24578245628247505,2.0808028446201699E-3,"",6.0650069750193305,"","",69.028768390490029,17.21655935263108,-0.24883881059248084,2.0884365412280914E-3]
[null,null,2020,null,55.771314976026758,11.852309093786618,-0.13501185606201063,8.9417265946166577E-4,63.880061681751542,9.1588210930338416,-8.8110410385535368E-2,6.9431445440327122E-4,"",4.9580639310648191,"","",59.017145126473906,10.492379904692925,-0.11116568701003034,7.8902420165503039E-4,41.000357797630933,22.990627289243935,-0.36087738413109099,2.3305596335512846E-3,59.524652534457395,14.548067662126401,-0.20988231630975812,1.7768710078757339E-3,"",5.7463254212859001,"","",58.829831256949497,14.68661601045851,-0.21210017175809562,1.7800104356901776E-3]
[null,null,2021,null,64.425302725113255,13.691421866008417,-0.15596153151514097,1.0329206743484507E-3,73.159916188105029,10.489322738703901,-0.10091020686892606,7.9517749286776211E-4,"",5.1618749768435057,"","",67.095570426659961,12.058213899314058,-0.12769332090143201,9.0352782782744776E-4,46.976347046584387,26.341616131471941,-0.4134769096865108,2.670249335355597E-3,67.722166910724752,16.551573583276564,-0.23878653048014023,2.0215750928496384E-3,"",6.2880100887985826,"","",66.648582295546333,16.669069015206823,-0.24037021888422475,2.0169961494592064E-3]
[null,null,2022,null,76.44956007161413,16.246771596514552,-0.18506999529829138,1.2257036878777856E-3,91.689716420876124,13.146037850644504,-0.12646854635528021,9.9657849030125893E-4,"",7.1148299866513458,"","",80.397452556931228,14.589801895543408,-0.15332283869409213,1.0842113629857585E-3,53.85950760964473,30.201294133757248,-0.47406118533629626,3.0615048516781274E-3,84.427437271610586,20.634409738995373,-0.29768886234833292,2.5202442882019506E-3,"",9.0402305870909245,"","",82.418208319038484,20.651942048058256,-0.29666234863063579,2.4912596255066335E-3]
[null,null,2023,null,66.495756097363468,14.131426792245691,-0.16097370942053027,1.0661159253292131E-3,73.926831713815616,10.599279459291411,-0.10196802115279523,8.0351312249598542E-4,"",7.4756065156609033,"","",65.290765408841395,12.293148209160528,-0.12712750247003571,8.9344847088460738E-4,45.436152746578884,25.477964324353074,-0.39992041116074145,2.5827009612380911E-3,67.269415579354316,16.440919312777766,-0.23719014152036688,2.0080600082546707E-3,"",9.7902131918215929,"","",65.345893715175876,16.484996097676927,-0.23542344962201925,1.9763009327399498E-3]
[null,null,2024,null,62.051465049569678,13.186942854152367,-0.15021491731565809,9.948613108856474E-4,69.376184999265533,9.9468292577902329,-9.5691268454337244E-2,7.5405199632275482E-4,"",6.8380524523968056,"","",59.485974632956768,11.433321055160803,-0.11699826800773608,8.1983193238579621E-4,42.070643177580379,23.590781375337446,-0.3702978333402494,2.3913972466082707E-3,63.108818579572713,15.424052450218186,-0.22251998893039421,1.8838619849216127E-3,"",9.0558140313653972,"","",60.709429329152826,15.392961763472652,-0.21861190148766452,1.8355265013371958E-3]
[null,null,2025,null,59.605191628807205,12.667070071463732,-0.14429294981113944,9.5564059659275654E-4,66.967909561245051,9.6015421165619674,-9.2369509965396918E-2,7.2787637277479478E-4,"",6.1848254151701418,"","",55.51215813585101,10.886648967774001,-0.11029578866794582,7.7058486637602143E-4,40.09753958921609,22.48437909887307,-0.35293094924857665,2.2792412601031317E-3,60.820114908913958,14.864683945882501,-0.21445008163498516,1.8155418683840456E-3,"",8.354463132650352,"","",57.598124299658096,14.7168999627081,-0.20732776225330174,1.7410456845632211E-3]
[null,null,2026,null,59.499766386252354,12.644665497327642,-0.14403773514246546,9.5395033037704718E-4,67.180421996704396,9.6320111443802841,-9.2662630501091414E-2,7.3018617730214407E-4,"",5.8297157659186487,"","",53.57647845751589,10.733771124331689,-0.10754420219710137,7.4914090842495183E-4,39.73458356949714,22.280854373236942,-0.34973627910454247,2.2586099609206572E-3,60.867066524554282,14.876159112088404,-0.21461563176296572,1.8169434215397893E-3,"",7.9479365937658821,"","",56.276620692374145,14.544593806358224,-0.2025101525491565,1.7007890109418475E-3]
[null,null,2027,null,60.210451012328498,12.795697508318908,-0.14575816885435697,9.6534462442247502E-4,68.343200348980801,9.7987248046207593,-9.4266462355808572E-2,7.4282445278276018E-4,"",5.3199756714139657,"","",52.098438809866444,10.636737846016695,-0.10565928048558509,7.3383836261802849E-4,39.042804783500706,21.892944874643039,-0.34364737324864769,2.2192875793466214E-3,61.710867145408017,15.082387422592499,-0.21759084995018443,1.8421317224501493E-3,"",7.335239300564111,"","",55.108493539458294,14.434657669216016,-0.19817480841419854,1.6648113084491035E-3]
[null,null,2028,null,60.402415917430552,12.836493164498199,-0.14622287975722409,9.684223673408945E-4,68.91282726584781,9.880395217641853,-9.5052154480870149E-2,7.4901574614700758E-4,"",4.9893867721264273,"","",49.402177491613948,10.365478453837673,-0.1011818482388767,7.0077217468836545E-4,38.991388257014897,21.864113462908115,-0.34319481472047852,2.2163649394585337E-3,61.989128895789179,15.150395728394594,-0.21857199336259825,1.8504381167893155E-3,"",6.9594190872181212,"","",52.74212163577738,14.102805877896095,-0.1896432042822718,1.5932117153836321E-3]
[null,null,2029,null,60.315959227833879,12.81811971555288,-0.14601358438492665,9.6703622093035832E-4,69.156645710668172,9.9153527530058057,-9.5388455709565154E-2,7.5166581670160857E-4,"",4.7313964480881836,"","",45.803984815723254,9.9536172636261924,-9.4693910322718178E-2,6.5410271150609422E-4,38.790658182728556,21.751555656792426,-0.34142802662359312,2.2049549558998405E-3,61.943913354068776,15.139344865729798,-0.21841256458434571,1.8490883871938029E-3,"",6.6913793036935738,"","",49.476467344643197,13.603240170672805,-0.17789259405624239,1.4945212424361716E-3]
[null,null,2030,null,59.632196599085368,12.672809065692983,-0.14435832376120178,9.5607356300394272E-4,68.750904875373323,9.8571795511839735,-9.4828813302109363E-2,7.4725580645317838E-4,"",4.5518378040739069,"","",41.219646924827011,9.381106053498204,-8.5945750896051165E-2,5.9225245969168081E-4,38.255654973307443,21.451556826366101,-0.33671902970043005,2.1745440777838142E-3,61.29131387598639,14.979846893727103,-0.21611151645973575,1.8296076335398747E-3,"",6.569120574856762,"","",45.293717301350426,12.935139545686724,-0.16285922642649941,1.3682033240437026E-3]
[null,null,2031,null,59.643571263697091,12.675226366430365,-0.14438585968324291,9.5625593120004365E-4,69.122646945031107,9.9104781708019676,-9.5341560870799827E-2,7.5129628301938845E-4,"",4.3257196273182146,"","",37.468287793175143,8.8935338060497759,-7.8785706479092027E-2,5.4163334905142917E-4,39.343752279771941,22.061698809780722,-0.34629625611331,2.2363941638815651E-3,61.29065342669076,14.979685477227703,-0.2161091877333666,1.8295879184612371E-3,"",6.3815543676476754,"","",41.941250502575969,12.412643415490873,-0.15089448102818068,1.2673918986651337E-3]
[null,null,2032,null,59.647539305085523,12.676069639590644,-0.14439546556456406,9.5631955017913127E-4,69.482907098207974,9.9621305675440741,-9.5838471316818358E-2,7.5521196226438372E-4,"",4.1988050060286319,"","",34.050272422592265,8.4560327771836068,-7.2184659323988626E-2,4.9512926407063089E-4,39.14638460468128,21.951026442496744,-0.34455906321732827,2.225175307236349E-3,61.400766342867087,15.006597522687855,-0.2164974429002377,1.8328749002413177E-3,"",6.3466326263619282,"","",39.058329784313102,11.991442399006111,-0.14050470930756376,1.1801843756395417E-3]
[null,null,2033,null,59.654565532639026,12.677562826917557,-0.14441247473896707,9.5643220057262113E-4,69.901809136714775,10.022190760430314,-9.6416267103992981E-2,7.5976502205576696E-4,"",4.0666290713777871,"","",30.967474957262528,8.035305489739045,-6.6137991029833434E-2,4.5272485999074978E-4,38.572127920119549,21.629016535454454,-0.3395045646403328,2.1925331665276675E-3,61.377857553929239,15.000998521310533,-0.216416667129504,1.8321910497498652E-3,"",6.3031556434775871,"","",36.434775926294265,11.590219501601146,-0.13102524583357611,1.1006976651199813E-3]
[null,null,2034,null,59.646556806564185,12.675860842717841,-0.14439308712057361,9.5630379793595541E-4,70.317784962419466,10.081831406765891,-9.6990026736472695E-2,7.642862767456574E-4,"",3.9537029771386605,"","",28.18455064666496,7.6414342633186294,-6.058388147230015E-2,4.1397117814038039E-4,36.972339548944177,20.731947822910559,-0.32542353038685939,2.1015973210775207E-3,61.516414972930278,15.034862519181832,-0.21690521684468303,1.836327128672905E-3,"",6.2751944635897452,"","",34.186411912219143,11.250931700087021,-0.12282670275004648,1.0321959336334937E-3]
[null,null,2035,null,59.643206205054248,12.675148785547176,-0.14438497594498134,9.5625007827264397E-4,70.723859793047865,10.140052495258859,-9.7550129827045098E-2,7.6869991720015921E-4,"",3.9784308205554684,"","",25.700097819443521,7.3510433638696835,-5.5564340102861855E-2,3.7907085390862552E-4,39.098618046869127,21.924241721910409,-0.34413863102214404,2.2224601404073146E-3,61.609162639004396,15.057530426747853,-0.21723224260895252,1.8390957401956661E-3,"",6.4475667720569154,"","",32.214499790858127,11.05923859709344,-0.1158464903838773,9.731926789103831E-4]
[null,null,2036,null,59.647893565303477,12.67614492563338,-0.14439632316187145,9.5632522997709493E-4,71.032602601420294,10.184318578778495,-9.7975981882179361E-2,7.7205565275993368E-4,"",3.8684050231484135,"","",23.470353205843477,7.0065246784377706,-5.100999902395658E-2,3.4750357682435302E-4,38.540153590427515,21.611087182242432,-0.33922313264611559,2.1907156681912399E-3,61.62949511026428,15.062499765585335,-0.21730393435317327,1.8397026850019249E-3,"",6.3812203919425992,"","",30.412771553699674,10.765740301494626,-0.109319655760012,9.1851913299814659E-4]
[null,null,2037,null,59.663790464248677,12.679523274521376,-0.14443480656204136,9.565801024399934E-4,71.429447721994251,10.24121635510013,-9.8523354341014321E-2,7.7636897519763927E-4,"",3.7766684730947189,"","",21.454491352735488,6.6901047535552092,-4.6829693947043997E-2,3.1865280944036272E-4,38.184275437701729,21.41153131470373,-0.33609076054685283,2.1704866921101232E-3,61.552260758481182,15.04362337525394,-0.21703160811587963,1.8373971615817588E-3,"",6.3242025345015591,"","",28.786025451958078,10.495169747069165,-0.10343816225807459,8.6921406563608315E-4]
[null,null,2038,null,59.682224362177323,12.683440776845778,-0.14447943155922624,9.5687565020576124E-4,71.958244247731628,10.317032699767653,-9.925272869768427E-2,7.8211648172145593E-4,"",3.7653147951878063,"","",19.663657237987167,6.4487321912942992,-4.3055127513212305E-2,2.9272065300139883E-4,35.460005567130665,19.88391846949985,-0.31211225310525098,2.015632594919299E-3,61.346336007680321,14.99329452694654,-0.21630552300923286,1.8312500997523717E-3,"",6.3857949921470896,"","",27.285840000163677,10.291540322866062,-9.7905304919923594E-2,8.2318756785535352E-4]
[null,null,2039,null,59.724160702814501,12.69235292947671,-0.14458095154648684,9.5754800891295242E-4,72.743128262665905,10.429565657349608,-0.1003353270991298,7.9064741143961893E-4,"",3.7666398890166404,"","",18.082952431466893,6.2406695226700961,-3.9662814961204995E-2,2.6953062310951931E-4,36.13155883886013,20.260486670475323,-0.31802313781514996,2.0538053092794264E-3,61.50529331816206,15.032144341432051,-0.2168660021905093,1.8359951360433675E-3,"",6.4577980173014931,"","",26.162821367118482,10.180247576901206,-9.3883363123610897E-2,7.8934606615938246E-4]
[null,null,2040,null,59.783862651256811,12.705040561940526,-0.14472547872633154,9.5850520079621083E-4,73.34345799664878,10.515638095065309,-0.10116336792807254,7.9717241471511616E-4,"",3.6996686150707876,"","",16.661995498022325,6.0020689425912206,-3.659134489132837E-2,2.4857518438596419E-4,36.002396928532498,20.188060147883352,-0.31688627914287998,2.0464634334868368E-3,61.559836742499371,15.045474976622634,-0.21705832083080295,1.8376233123576955E-3,"",6.4027869278793244,"","",25.155385640396815,10.005541310644922,-9.0243302934696859E-2,7.5882355026016366E-4]
[null,null,2041,null,59.698366630962532,12.686871270804897,-0.14451850895359428,9.5713445664444058E-4,73.35933948017896,10.517915107054895,-0.10118527341774389,7.9734503107274125E-4,"",3.7020761078421742,"","",15.401655365384599,5.8306850764908678,-3.3859616632427224E-2,2.2995154258341425E-4,34.168374451102714,19.159646507524325,-0.30074356064858615,1.9422131541595047E-3,61.716499340117267,15.083763953932504,-0.21761070891653123,1.8422998491516669E-3,"",6.4615591229915941,"","",24.349053499080615,9.9249044666267352,-8.725585130893676E-2,7.3401523952658029E-4]
[null,null,2042,null,59.718590984351266,12.691169273957382,-0.14456746830644154,9.5745871049901206E-4,73.586045991614142,10.55041921434905,-0.10149797198492976,7.9980911147048688E-4,"",3.6440642748167904,"","",14.37710435880685,5.6462758366285248,-3.1626775041743639E-2,2.1475171575764904E-4,34.046150992767259,19.09111066716746,-0.29966777291665314,1.9352656767819751E-3,61.7432093103086,15.090291979499254,-0.2177048875496459,1.843097168743356E-3,"",6.4095845636752395,"","",23.635379594936261,9.7914602905820427,-8.4677558149299503E-2,7.1239467840990354E-4]
[null,null,2043,null,59.805676405271697,12.709676338507592,-0.14477828571893153,9.588549372592782E-4,73.840018403851488,10.58683257753327,-0.10184827868282119,8.0256954582502075E-4,"",3.5923241672388166,"","",13.551030735586044,5.4928166894156956,-2.9821019282952582E-2,2.0246933277117727E-4,34.961420683160959,19.604340927860427,-0.30772380338531496,1.9872918226213122E-3,61.869588621576177,15.121179598210665,-0.21815049758604413,1.8468697188486532E-3,"",6.3627454817779627,"","",23.08850201185345,9.6908098631573267,-8.2734937306154027E-2,6.9599643913524753E-4]
[null,null,2044,null,59.827995219041568,12.714419448465121,-0.144832315366134,9.5921277126540156E-4,73.840560796249619,10.586910343189814,-0.10184902681010115,8.0257544110552096E-4,"",3.5576036612836992,"","",12.887771454859207,5.3734059642998062,-2.8378017977353693E-2,1.9264170122490398E-4,34.173254488160843,19.162382949818682,-0.30078651381052418,1.9424905472845608E-3,61.288462833054069,14.979150087215501,-0.21610146375939976,1.829522527028321E-3,"",6.3408663906430522,"","",22.380696169643112,9.5509640600438619,-8.0167273903600983E-2,6.744995737487221E-4]
[null,null,2045,null,59.823275495751929,12.71341643070787,-0.14482088980441454,9.5913710068944982E-4,73.705065787486376,10.567483709720923,-0.10166213718424578,8.0110274147738821E-4,"",3.5006823461275318,"","",12.369637389381769,5.255818200747429,-2.7260552736212078E-2,1.8501299731890983E-4,34.395745985305176,19.287143302182411,-0.30274484182993228,1.9551375028212009E-3,62.225562618295228,15.208181093720924,-0.21940565227903766,1.8574959022431984E-3,"",6.2735410956655873,"","",22.31561527325837,9.5322440986619981,-7.9909515384711097E-2,6.7241213578676979E-4]
[null,null,2046,null,59.860578788391955,12.721343985487163,-0.14491119405452446,9.5973517847192536E-4,73.737904776456389,10.572192008631946,-0.10170743233141093,8.0145966950954093E-4,"",3.414276204953365,"","",11.996701560893307,5.134735371002078,-2.6460108634494609E-2,1.7954129800124347E-4,34.407984223883879,19.294005797949605,-0.30285256048805853,1.9558331539410788E-3,62.2534574977809,15.214998715948109,-0.21950400887030455,1.8583285925742772E-3,"",6.1485247224707473,"","",22.003655546024724,9.4066570794513265,-7.8779618176198885E-2,6.6294667077768565E-4]
[null,null,2047,null,59.895475038722708,12.728760004731322,-0.14499567130826654,9.6029466452630474E-4,73.770951547873025,10.576930098407367,-0.1017530140749907,8.0181885593581966E-4,"",3.3900570616391414,"","",11.716169256537103,5.0762362794788078,-2.585986105766189E-2,1.7543460048289857E-4,34.420256553894319,19.300887410218287,-0.30296057921251013,1.9565307429005E-3,62.281309698521817,15.221805907316149,-0.21960221497747076,1.859160008901713E-3,"",6.1295736484439294,"","",21.74503306274163,9.3565006884580555,-7.7841478022715099E-2,6.5509226160865089E-4]
[null,null,2048,null,59.928330857652838,12.735742399205199,-0.1450752090616457,9.6082143666721947E-4,73.803223120555742,10.581557043854982,-0.10179752657917433,8.0216961670201241E-4,"",3.3625559443329212,"","",11.507359838693382,5.0249898261170518,-2.5414939116244251E-2,1.7238708269467796E-4,34.432611998727786,19.307815628468504,-0.30306932949789256,1.9572330563077524E-3,62.309133001682198,15.228606035997734,-0.21970031919254884,1.8599905626071782E-3,"",6.1006201508986191,"","",21.527522460378389,9.3057893809824321,-7.7051367117739605E-2,6.4848078918791402E-4]
[null,null,2049,null,59.958958181022048,12.742251202224157,-0.14514935204672802,9.6131247969177456E-4,73.835128399199093,10.586131471795795,-0.10184153385031217,8.025163962064564E-4,"",3.3345102663566086,"","",11.362307093516515,4.9822008857986582,-2.5108704735371776E-2,1.7028414569143273E-4,34.44508376679557,19.314809074054995,-0.30317910363835271,1.9579419818093607E-3,62.336940663369774,15.235402341839624,-0.21979836825621651,1.8608206493988797E-3,"",6.066309541054534,"","",21.340705185101559,9.2559596914186031,-7.6371984762661341E-2,6.4279835777968899E-4]
[null,null,2050,null,59.987764757873457,12.748373067073919,-0.14521908734719877,9.6177433097579537E-4,73.866762471292759,10.590667015424311,-0.1018851670435333,8.0286022795814885E-4,"",3.3537857562784255,"","",11.264971590950154,4.9848726756742305,-2.4906206789918943E-2,1.6888785572709302E-4,34.457692131603572,19.321879115186302,-0.30329008007744962,1.9586586718004979E-3,62.364743062783177,15.242197361560258,-0.21989639876524761,1.8616505791063812E-3,"",6.1149423376847389,"","",21.176550274730978,9.2638853919940001,-7.5774553334958195E-2,6.3780287825870364E-4]
[null,null,2051,null,60.014423364107351,12.754038453325428,-0.14528362281510393,9.6220174418712012E-4,73.899327100641287,10.595335977950521,-0.10193008376371818,8.0321417396671106E-4,"",3.3537857562784255,"","",11.26996970684964,4.9858656651613504,-2.4917264028850895E-2,1.6896282216433744E-4,34.473005155017148,19.330465772300627,-0.30342486240934796,1.9595291011370287E-3,62.392236954139854,15.24891698065456,-0.21999334148320751,1.8624712995367458E-3,"",6.1149423376847389,"","",21.185886834274317,9.2661967720933696,-7.5807965569591906E-2,6.3808409994980703E-4]
[null,null,2052,null,60.04110586933551,12.759708918500879,-0.14534821613797586,9.6262954056723442E-4,73.931920923634891,10.60000912612348,-0.10197504075099079,8.0356843728194508E-4,"",3.3537857562784255,"","",11.274972303476369,4.986859544846924,-2.4928331180412475E-2,1.6903785580773794E-4,34.488331906299891,19.339060127209329,-0.30355976557135073,1.9604003107988894E-3,62.4197554933099,15.255642623774895,-0.22009037110869129,1.8632927557292373E-3,"",6.1149423376847389,"","",21.195231763887001,9.2685102243063042,-7.5841407757734638E-2,6.3836557375144902E-4]
[null,null,2053,null,60.067812294982957,12.76538446715344,-0.14541286736768047,9.6305772045964248E-4,73.964543966445234,10.60468646369555,-0.10202003804144996,8.0392301818831122E-4,"",3.3537857562784255,"","",11.279979384847232,4.9878543155289989,-2.4939408253490163E-2,1.6911295671754375E-4,34.503672397758599,19.347662186813341,-0.30369478967177999,1.9612723014856286E-3,62.447298702389674,15.262374296321706,-0.22018748771961011,1.864114948343455E-3,"",6.1149423376847389,"","",21.204585071072653,9.2708257504904239,-7.5874879926239272E-2,6.3864729988964242E-4]
[null,null,2054,null,60.094542662493907,12.771065103840355,-0.14547757655613022,9.6348628420815608E-4,73.997196255267326,10.609367994422453,-0.10206507567122676,8.0427791697052387E-4,"",3.3537857562784255,"","",11.284990954982723,4.9888499780063364,-2.4950495256978435E-2,1.6918812495405797E-4,34.519026641711093,19.356271958019779,-0.3038299348190549,1.9621450738974205E-3,62.4748666034953,15.269112003700261,-0.22028469139394483,1.8649378780395875E-3,"",6.1149423376847389,"","",21.213946763341625,9.2731433525050058,-7.5908382101982599E-2,6.3892927859060251E-4]
[null,null,2055,null,60.121296993331853,12.776750833122962,-0.14554234375528413,9.6391523215689568E-4,74.029877816319726,10.614053722063282,-0.1021101536764847,8.0463313391355366E-4,"",3.3537857562784255,"","",11.290007017906944,4.989846533078417,-2.4961592199779725E-2,1.6926336057763783E-4,34.534394650486249,19.364889447741977,-0.30396520112169195,1.9630186287350692E-3,62.502459218762766,15.275855751320693,-0.22038198220974639,1.8657615454784164E-3,"",6.1149423376847389,"","",21.223316848210988,9.2754630322109968,-7.5941914311865658E-2,6.392115100807477E-4]
[null,null,2056,null,60.148075308979529,12.782441659566695,-0.14560716901714787,9.6434456465029094E-4,74.062588675844538,10.618743650380503,-0.10215527209341975,8.0498866930262675E-4,"",3.3537857562784255,"","",11.295027577647607,4.9908439815454386,-2.4972699090804476E-2,1.6933866364869483E-4,34.549776436424011,19.373514662899449,-0.30410058868830497,1.9638929667000061E-3,62.53007657034793,15.282605544597974,-0.22047936024513565,1.8665859513213162E-3,"",6.1149423376847389,"","",21.232695333204589,9.2777847914710101,-7.5975476582813548E-2,6.3949399458669922E-4]
[null,null,2057,null,60.174877630938937,12.788137587741074,-0.14567205239377379,9.6477428203307989E-4,74.095328860107344,10.623437783139954,-0.10220043095826033,8.0534452342322451E-4,"",3.3537857562784255,"","",11.300052638236039,4.9918423242083136,-2.4983815938971116E-2,1.6941403422769455E-4,34.56517201187539,19.382147610417938,-0.30423609762760523,1.9647680884942935E-3,62.557718680426497,15.289361388951944,-0.2205768255783036,1.867411096230254E-3,"",6.1149423376847389,"","",21.242082225852997,9.2801086321493358,-7.6009068941775546E-2,6.397767323352816E-4]
[null,null,2058,null,60.201703980731295,12.793838622219708,-0.14573699393726064,9.6520438465030867E-4,74.128098395397274,10.628136124110844,-0.10224563030726729,8.0570069656108454E-4,"",3.3537857562784255,"","",11.305082203707167,4.9928415618686728,-2.4994942753206031E-2,1.6948947237515656E-4,34.580581389202429,19.390788297229353,-0.30437172804840101,1.9656439948206191E-3,62.58538557119401,15.296123289807282,-0.22067437828751116,1.8682369808677899E-3,"",6.1149423376847389,"","",21.251477533693524,9.2824345561119301,-7.6042691415724992E-2,6.4005972355352277E-4]
[null,null,2059,null,60.228554379897176,12.799544767580317,-0.14580199369975413,9.6563487284733395E-4,74.160897308027003,10.632838677065761,-0.10229087017673395,8.0605718900219996E-4,"",3.3537857562784255,"","",11.310116278099542,4.993841695328868,-2.5006079542443646E-2,1.6956497815165495E-4,34.596004580778299,19.399436730271852,-0.30450748005959866,1.9665206863823037E-3,62.613077264865943,15.30289125259354,-0.22077201845108946,1.8690636058970775E-3,"",6.1149423376847389,"","",21.26088126427025,9.2847625652264192,-7.6076344031659485E-2,6.403429684686536E-4]
[null,null,2060,null,60.255428849996434,12.80525602840472,-0.14586705173344658,9.6606574696982161E-4,74.193725624332856,10.637545445780681,-0.10233615060298629,8.0641400103282116E-4,"",3.3537857562784255,"","",11.315154865455344,4.9948427253919672,-2.5017226315626379E-2,1.69640551617818E-4,34.61144159898722,19.408092916489796,-0.30464335377020174,1.9673981638832975E-3,62.64079378367768,15.309665282745138,-0.22086974614743987,1.8698909719818658E-3,"",6.1149423376847389,"","",21.270293425134017,9.2870926613621076,-7.6110026816600812E-2,6.4062646730810914E-4]
[null,null,2061,null,60.282327412608268,12.81097240927885,-0.14593216809057724,9.6649700736374739E-4,74.226583370674746,10.642256434034964,-0.10238147162238277,8.0677113293945498E-4,"",3.3537857562784255,"","",11.320197969820365,4.9958446528617628,-2.5028383081704686E-2,1.6971619283432841E-4,34.626892456224567,19.41675686283379,-0.30477934928931205,1.9682764280281829E-3,62.668535149884576,15.316445385701373,-0.22096756145503416,1.8707190797864997E-3,"",6.1149423376847389,"","",21.279714023842441,9.2894248463899771,-7.6143739797595006E-2,6.409102202995288E-4]
[null,null,2062,null,60.309250089331186,12.81669391479274,-0.14599734282343196,9.6692865437539679E-4,74.259470573436218,10.646971645611359,-0.10242683327131449,8.0712858500886497E-4,"",3.3537857562784255,"","",11.325245595244025,4.9968474785427617,-2.5039549849637011E-2,1.6979190186192314E-4,34.642357164896765,19.425428576260639,-0.30491546672612863,1.9691554795221713E-3,62.696301385761899,15.323231566906413,-0.22106546445241432,1.8715479299759182E-3,"",6.1149423376847389,"","",21.289143067959913,9.2917591221826843,-7.6177483001712343E-2,6.4119422767075517E-4]
[null,null,2063,null,60.336196901783104,12.822420549540542,-0.14606257598434366,9.6736068835136637E-4,74.292387259024395,10.651691084295994,-0.10247223558620511,8.0748635752807111E-4,"",3.3537857562784255,"","",11.330297745779379,4.9978512032401952,-2.5050726628389856E-2,1.6986767876139372E-4,34.657835737421415,19.434108063733412,-0.30505170618994865,1.9700353190711083E-3,62.724092513604859,15.330023831809298,-0.22116345521819264,1.8723775232156559E-3,"",6.1149423376847389,"","",21.298580565057588,9.2940954906145627,-7.6211256456047247E-2,6.4147848964983545E-4]
[null,null,2064,null,60.36316787160132,12.828152318120539,-0.14612786762569216,9.6779310963856352E-4,74.325333453870201,10.656414753878412,-0.10251767860351101,8.0784445078435174E-4,"",3.3537857562784255,"","",11.335354425483121,4.9988558277600195,-2.5061913426937758E-2,1.6994352359358628E-4,34.673328186227231,19.442795332221415,-0.30518806779016744,1.9709159473814734E-3,62.751908555728726,15.336822185863969,-0.22126153383105221,1.8732078601718465E-3,"",6.1149423376847389,"","",21.308026522713433,9.29643395356163,-7.6245060187718636E-2,6.4176300646502172E-4]
[null,null,2065,null,60.390163020442451,12.833889225135112,-0.14619321779990407,9.6822591858420552E-4,74.358309184428165,10.661142658151531,-0.1025631623597212,8.0820286506524215E-4,"",3.3537857562784255,"","",11.340415638415564,4.9998613529089067,-2.5073110254263283E-2,1.7001943641940115E-4,34.688834523754046,19.451490388700183,-0.30532455163627797,1.9717973651603763E-3,62.779749534468714,15.343626634529246,-0.22135970036974636,1.8740389415112179E-3,"",6.1149423376847389,"","",21.317480948512191,9.2987745129015842,-7.6278894223869603E-2,6.4204777834476979E-4]
[null,null,2066,null,60.417182369982655,12.839631275190794,-0.14625862655945332,9.6865911553582252E-4,74.39131447717655,10.665874800911691,-0.10260868689135744,8.0856160065853556E-4,"",3.3537857562784255,"","",11.34548138864068,5.0008677794942589,-2.5084317119357085E-2,1.700954172997937E-4,34.704354762452894,19.46019324015154,-0.30546115783787198,1.9726795731155643E-3,62.807615472180075,15.350437183268845,-0.22145795491309914,1.874870767901098E-3,"",6.1149423376847389,"","",21.326943850045406,9.3011171705138054,-7.6312758591667584E-2,6.4233280551774107E-4]
[null,null,2067,null,60.444225941917381,12.84537847289822,-0.14632409395686044,9.6909270084125435E-4,74.424349358617363,10.670611185958615,-0.10265425223497417,8.0892065785228271E-4,"",3.3537857562784255,"","",11.350551680226067,5.0018751083241959,-2.5095534031217823E-2,1.7017146629577344E-4,34.719888914785898,19.468903893563525,-0.30559788650463876,1.9735625719554143E-3,62.835506391238106,15.357253837551374,-0.22155629754000514,1.8757033400094111E-3,"",6.1149423376847389,"","",21.336415234911431,9.3034619282793578,-7.6346653318304369E-2,6.4261808821280129E-4]
[null,null,2068,null,60.471293757961654,12.851130822872189,-0.14638962004469347,9.6952667484865457E-4,74.457413855276414,10.67535181709545,-0.10269985842715876,8.0928003693479399E-4,"",3.3537857562784255,"","",11.355626517242985,5.0028833402075676,-2.5106760998852284E-2,1.7024758346840515E-4,34.73543699322645,19.477622355930489,-0.30573473774636656,1.9744463623889439E-3,62.863422314038225,15.364076602850368,-0.22165472832943009,1.8765366585046831E-3,"",6.1149423376847389,"","",21.345895110715453,9.3058087880809985,-7.6380578430996257E-2,6.4290362665902232E-4]
[null,null,2069,null,60.498385839849888,12.856888329731612,-0.14645520487556732,9.6996103790648771E-4,74.490507993703204,10.680096698128738,-0.10274550550453114,8.0963973819463651E-4,"",3.3537857562784255,"","",11.360705903766336,5.0038924759539434,-2.5117998031275287E-2,1.7032376887880785E-4,34.750999010259036,19.486348634253012,-0.30587171167294164,1.9753309451258018E-3,62.891363262995775,15.370905484644231,-0.22175324736040988,1.8773707240560358E-3,"",6.1149423376847389,"","",21.355383485069428,9.3081577518031633,-7.6414533956983693E-2,6.4318942108568039E-4]
[null,null,2070,null,60.525502209336047,12.862650998099559,-0.1465208485021442,9.7039579036353122E-4,74.523631800471122,10.684845832868445,-0.1027911935037443,8.0999976192063731E-4,"",3.3537857562784255,"","",11.365789843874682,5.0049025163736243,-2.5129245137509752E-2,1.7040002258815573E-4,34.766574978379403,19.495082735537977,-0.30600880839434902,1.9762163208762768E-3,62.919329260546377,15.377740488416311,-0.22185185471205188,1.8782055373331935E-3,"",6.1149423376847389,"","",21.364880365592192,9.3105088213319842,-7.6448519923531841E-2,6.4347547172225784E-4]
[null,null,2071,null,60.552642888193468,12.868418832603222,-0.14658655097713336,9.7083093256887401E-4,74.556785302177261,10.689599225127941,-0.10283692246148385,8.103601084018811E-4,"",3.3537857562784255,"","",11.37087834165022,5.0059134622776327,-2.5140502326586673E-2,1.704763446576774E-4,34.782164910094423,19.503824666798526,-0.30614602802067198,1.9771024903512888E-3,62.947320329145569,15.384581619654845,-0.22195055046353371,1.8790410990064783E-3,"",6.1149423376847389,"","",21.374385759909341,9.3128619985552774,-7.6482536357929981E-2,6.4376177879844215E-4]
[null,null,2072,null,60.579807898215194,12.874191837873973,-0.14665231235329157,9.712664648719204E-4,74.589968525442742,10.694356878724035,-0.1028826924144686,8.1072077792771369E-4,"",3.3537857562784255,"","",11.375971401178841,5.006925314477721,-2.5151769607545164E-2,1.705527351486569E-4,34.797768817922268,19.512574435054123,-0.30628337066209305,1.9779894542624023E-3,62.975336491269239,15.391428883853028,-0.22204933469410482,1.8798774097468171E-3,"",6.1149423376847389,"","",21.383899675653392,9.3152172853625643,-7.6516583287492196E-2,6.4404834254412787E-4]
[null,null,2073,null,60.606997261213643,12.879970018547306,-0.1467181326834226,9.7170238762238521E-4,74.62318149691238,10.699118797476929,-0.10292850339944999,8.1108177078773839E-4,"",3.3537857562784255,"","",11.381069026550067,5.0079380737863683,-2.5163046989432416E-2,1.7062919412243272E-4,34.813386714392266,19.521332047330485,-0.30642083642889301,1.9788772133218138E-3,63.003377769413262,15.398282286508934,-0.22214820748308492,1.8807144702257346E-3,"",6.1149423376847389,"","",21.393422120463647,9.317574683645045,-7.6550660739556825E-2,6.4433516318941435E-4]
[null,null,2074,null,60.634210999020873,12.885753379262885,-0.14678401202037777,9.7213870117029847E-4,74.656424243254961,10.703884985210273,-0.10297435545321254,8.1144308727181924E-4,"",3.3537857562784255,"","",11.386171221857106,5.0089517410167828,-2.5174334481303746E-2,1.7070572164039861E-4,34.829018612045012,19.530097510659644,-0.30655842543145173,1.9797657682423613E-3,63.031444186093722,15.405141833125601,-0.22224716890986518,1.8815522811153589E-3,"",6.1149423376847389,"","",21.402953101986263,9.3199341952956232,-7.6584768741486731E-2,6.4462224096460815E-4]
[null,null,2075,null,60.661449133488503,12.891541924664535,-0.14684995041705576,9.7257540586600394E-4,74.689696791163158,10.708655445751134,-0.10302024861257374,8.1180472767007964E-4,"",3.3537857562784255,"","",11.39127799119683,5.0099663169829007,-2.5185632092222594E-2,1.7078231776400333E-4,34.844664523432321,19.538870832079954,-0.30669613778024801,1.9806551197375207E-3,63.059535763846917,15.412007529210976,-0.22234621905390797,1.882390843088421E-3,"",6.1149423376847389,"","",21.412492627874272,9.3222958222088987,-7.6618907320669422E-2,6.4490957610022161E-4]
[null,null,2076,null,60.688711686487707,12.897335659400236,-0.1469159479264025,9.7301250206015841E-4,74.722999167353549,10.71343018293001,-0.10306618291438403,8.1216669227290297E-4,"",3.3537857562784255,"","",11.396389338669774,5.0109818024993871,-2.5196939831260503E-2,1.7085898255475064E-4,34.86032446111728,19.547652018636047,-0.30683397358585973,1.9815452685214073E-3,63.087652525229295,15.418879380277962,-0.22244535799474677,1.883230156818254E-3,"",6.1149423376847389,"","",21.422040705787541,9.3246595662811664,-7.6653076504516873E-2,6.4519716882697402E-4]
[null,null,2077,null,60.715998679909298,12.903134588122141,-0.14698200460141161,9.7344999010373406E-4,74.756331398566729,10.718209200580839,-0.10311215839552695,8.125289813709336E-4,"",3.3537857562784255,"","",11.401505268380168,5.0119981983816402,-2.520825770749717E-2,1.7093571607419949E-4,34.875998437674227,19.556441077378896,-0.3069719329589638,1.9824362153087779E-3,63.115794492817592,15.425757391844392,-0.22254458581198644,1.8840702229787961E-3,"",6.1149423376847389,"","",21.431597343392831,9.3270254294104262,-7.6687276320465639E-2,6.4548501937579188E-4]
[null,null,2078,null,60.743310135663705,12.908938715486569,-0.14704812049512406,9.7388787034801707E-4,74.789693511567208,10.72299250254099,-0.10315817509291909,8.1289159525507586E-4,"",3.3537857562784255,"","",11.406625784435903,5.0130155054457877,-2.5219585730020418E-2,1.7101251838396396E-4,34.891686465688764,19.565238015365775,-0.30711001601033627,1.9833279608150287E-3,63.143961689208723,15.432641569433056,-0.2226439025853032,1.884911042244588E-3,"",6.1149423376847389,"","",21.441162548363749,9.3293934134963781,-7.6721506795976904E-2,6.4577312797780802E-4]
[null,null,2079,null,60.770646075681015,12.91474804615402,-0.14711429566062845,9.7432614314460909E-4,74.823085533143512,10.727780092651278,-0.10320423304351013,8.1325453421649517E-4,"",3.3537857562784255,"","",11.411750890948568,5.0140337245086881,-2.5230923907926233E-2,1.710893895457135E-4,34.907388557757812,19.574042839660297,-0.30724822285085296,1.9842205057561983E-3,63.172154137019916,15.439531918571685,-0.22274330839444467,1.8857526152907767E-3,"",6.1149423376847389,"","",21.450736328380806,9.3317635204404219,-7.6755767958536447E-2,6.46061494864363E-4]
[null,null,2080,null,60.798006521910935,12.920562584789165,-0.14718053015106095,9.7476480884542654E-4,74.856507490108172,10.732571974755954,-0.10325033228428289,8.1361779854661781E-4,"",3.3537857562784255,"","",11.416880592033426,5.0150528563879337,-2.5242272250318738E-2,1.7116632962117272E-4,34.923104726489541,19.582855557332412,-0.30738655359148853,1.9851138508489665E-3,63.200371858888616,15.446428444792975,-0.22284280331923001,1.8865949427931134E-3,"",6.1149423376847389,"","",21.460318691131381,9.3341357521456665,-7.6790059835654706E-2,6.4635012026700454E-4]
[null,null,2081,null,60.825391496322908,12.926382336060865,-0.14724682401960534,9.7520386780270188E-4,74.889959409297802,10.737368152702727,-0.10329647285225331,8.1398138853713158E-4,"",3.3537857562784255,"","",11.42201489180944,5.0160729019018486,-2.5253630766310226E-2,1.7124333867212169E-4,34.938834984503458,19.591676175458392,-0.30752500834331742,1.9860079968106563E-3,63.228614877472637,15.453331153634579,-0.22294238743954994,1.8874380254279559E-3,"",6.1149423376847389,"","",21.469909644309762,9.3365101105169241,-7.6824382454866766E-2,6.4663900441748804E-4]
[null,null,2082,null,60.852801020906,12.932207304642155,-0.14731317731949314,9.756433203689821E-4,74.923441317572966,10.742168630342734,-0.10334265478447048,8.1434530447998491E-4,"",3.3537857562784255,"","",11.427153794399249,5.0170938618694922,-2.526499946502116E-2,1.713204167603956E-4,34.95457934443035,19.600504701120865,-0.30766358721751363,1.9869029443592319E-3,63.256883215449996,15.460240050639101,-0.2230420608353666,1.8882818638722666E-3,"",6.1149423376847389,"","",21.479509195617105,9.3388865974607143,-7.6858735843732345E-2,6.4692814754777636E-4]
[null,null,2083,null,60.880235117669045,12.938037495210265,-0.14737959010400353,9.7608316689713163E-4,74.956953241818411,10.746973411530586,-0.10338887811801681,8.1470954666738925E-4,"",3.3537857562784255,"","",11.432297303929207,5.0181157371106542,-2.5276378355580179E-2,1.7139756394788538E-4,34.970337818912355,19.609341141408802,-0.30780229032535072,1.9877986942133034E-3,63.285176895519157,15.467155141354134,-0.22314182358671411,1.8891264588036169E-3,"",6.1149423376847389,"","",21.489117352761504,9.3412652148852651,-7.6893120029836004E-2,6.4721754989004079E-4]
[null,null,2084,null,60.907693808640587,12.943872912446626,-0.14744606242646346,9.7652340774033062E-4,74.990495208942974,10.751782500124346,-0.10343514289000789,8.1507411539181725E-4,"",3.3537857562784255,"","",11.437445424529354,5.0191385284458647,-2.528776744712409E-2,1.7147478029653731E-4,34.986110420602941,19.618185503417539,-0.30794111777820204,1.9886952470921245E-3,63.313495940398866,15.474076431332238,-0.22324167577369819,1.8899718109001852E-3,"",6.1149423376847389,"","",21.49873412345794,9.3436459647005208,-7.6927535040786907E-2,6.4750721167666054E-4]
[null,null,2085,null,60.935177115868939,12.949713561036853,-0.14751259434024777,9.7696404325207605E-4,75.02406724587955,10.756595899985522,-0.10348144913759258,8.154390109460037E-4,"",3.3537857562784255,"","",11.442598160333441,5.0201622366963852,-2.5299166748797931E-2,1.7155206586835323E-4,35.001897162166912,19.627037794248761,-0.30808006968754093,1.9895926037155932E-3,63.34184037282823,15.481003926130942,-0.22334161747649636,1.890817920840756E-3,"",6.1149423376847389,"","",21.508359515428321,9.3460288488181327,-7.6961980904219005E-2,6.4779713314022289E-4]
[null,null,2086,null,60.962685061422142,12.955559445670769,-0.147579185898779,9.7740507378618136E-4,75.057669379585249,10.761413614979098,-0.10352779689795308,8.1580423362294624E-4,"",3.3537857562784255,"","",11.447755515478921,5.0211868626842158,-2.5310576269754886E-2,1.7162942072539047E-4,35.017698056280423,19.635898021010526,-0.30821914616494051,1.9904907648042531E-3,63.3702102155668,15.487937631312766,-0.22344164877535805,1.8916647893047252E-3,"",6.1149423376847389,"","",21.517993536401473,9.3484138691514644,-7.6996457647791061E-2,6.4808731451352426E-4]
[null,null,2087,null,60.990217667388031,12.961410571042396,-0.1476458371555277,9.7784649969677733E-4,75.091301637041298,10.766235648973513,-0.10357418620830482,8.1616978371590451E-4,"",3.3537857562784255,"","",11.452917494106948,5.0222124072320913,-2.5321996019156381E-2,1.717068449297621E-4,35.033513115630981,19.644766190817258,-0.30835834732207373,1.9913897310792931E-3,63.398605491394449,15.49487755244521,-0.22354176975060455,1.8925124169720947E-3,"",6.1149423376847389,"","",21.52763619411315,9.3508010276155993,-7.7030965299186543E-2,6.483777560295687E-4]
[null,null,2088,null,61.017774955874302,12.967266941849976,-0.14771254816401239,9.7828832133831328E-4,75.124964045253193,10.77106200584069,-0.10362061710589683,8.165356615184023E-4,"",3.3537857562784255,"","",11.458084100362411,5.0232388711634872,-2.5333426006172062E-2,1.7178433854363694E-4,35.049342352917527,19.653642310789774,-0.30849767327071437,1.9922895032625509E-3,63.427026223111575,15.501823695100788,-0.22364198048262954,1.8933608045234804E-3,"",6.1149423376847389,"","",21.53728749630606,9.3531903261273417,-7.7065503886113912E-2,6.4866845792157081E-4]
[null,null,2089,null,61.045356949008394,12.973128562795949,-0.14777931897779945,9.787305390655547E-4,75.158656631250523,10.775892689456004,-0.10366708962801123,8.1690186732422511E-4,"",3.3537857562784255,"","",11.463255338393893,5.0242662553026154,-2.5344866239979766E-2,1.7186190162923938E-4,35.065185780850321,19.662526388055262,-0.30863712412273558,1.9931900820765089E-3,63.455472433538915,15.508776064856971,-0.22374228105189817,1.8942099526401031E-3,"",6.1149423376847389,"","",21.546947450729817,9.3555817666051979,-7.710007343630626E-2,6.4895942042295248E-4]

{"sheet":"TAG - A1.3.14","index":28,"n_rows":26,"n_cols":7,"rows_kept":26,"cut":false,"hidden":true,"merged":[[11,1,11,3],[11,4,11,5]]}
[]
[null,"File Name",null,null,null,null,{"$f":"IFERROR(MID(CELL(\"filename\",G2),FIND(\"[\",CELL(\"filename\",G2))+1,FIND(\"]\",CELL(\"filename\",G2))-FIND(\"[\",CELL(\"filename\",G2))-1),\"Please save the file to show here\")","v":"structures-fund-economic-tool Final 03082026.xlsm"}]
[null,"Sheet Name",null,null,null,null,{"$f":"IFERROR(MID(CELL(\"filename\",G2),FIND(\"]\",CELL(\"filename\",G2))+1,255),\"Please save the file to show here\")","v":"TAG - A1.3.14"}]
[null,"Description and Purpose of Sheet",null,null,null,null,"TAG - A1.3.14 table"]
[null,"Version number",null,null,null,null,{"$f":"Version_Number","v":1}]
[]
[]
[null,"TAG Data Book v2.02 - A1.3.14"]
[]
[null,"Table A 1.3.14:  Non-Fuel Resource Vehicle Operating Costs"]
[null,{"$f":"CONCATENATE(\"(\",C1,\" prices and constant values)\")","v":"( prices and constant values)"}]
[null,"Vehicle Category",null,null,"Parameter Values"]
[null,null,null,null,"a1 p / km","b1 p / hr"]
[null,"Car","Work Petrol",null,6.8852485704084625,188.48610595101667]
[null,null,"Work Diesel",null,6.8852485704084625,188.48610595101667]
[null,null,"Work Electric",null,1.604154771639668,188.48610595101667]
[null,null,"Non-Work Petrol",null,5.3323934759949552,0]
[null,null,"Non-Work Diesel",null,5.3323934759949552,0]
[null,null,"Non-Work Electric",null,1.604154771639668,0]
[null,"LGV","Work",null,10.000664103575563,65.321126842056771]
[null,null,"Work Electric",null,3.0085201164422579,65.321126842056771]
[null,null,"Non-Work",null,10.000664103575563,0]
[null,null,"Non-Work Electric",null,3.0085201164422579,0]
[null,"OGV1","Work",null,9.3088116999038295,365.77640396686456]
[null,"OGV2","Work",null,18.10878606083466,705.05860436306148]
[null,"PSV","Work",null,42.233499134758794,962.97397076751645]

{"sheet":"TAG - A1.3.15","index":29,"n_rows":53,"n_cols":10,"rows_kept":53,"cut":false,"hidden":true,"merged":[]}
[]
[null,"File Name",null,null,null,null,{"$f":"IFERROR(MID(CELL(\"filename\",G2),FIND(\"[\",CELL(\"filename\",G2))+1,FIND(\"]\",CELL(\"filename\",G2))-FIND(\"[\",CELL(\"filename\",G2))-1),\"Please save the file to show here\")","v":"structures-fund-economic-tool Final 03082026.xlsm"}]
[null,"Sheet Name",null,null,null,null,{"$f":"IFERROR(MID(CELL(\"filename\",G2),FIND(\"]\",CELL(\"filename\",G2))+1,255),\"Please save the file to show here\")","v":"TAG - A1.3.15"}]
[null,"Description and Purpose of Sheet",null,null,null,null,"TAG - A1.3.15 table"]
[null,"Version number",null,null,null,null,{"$f":"Version_Number","v":1}]
[]
[]
[null,"TAG Data Book v2.02 - A1.3.15"]
[]
[null,"Table A 1.3.15: ",null,null,"Forecast Non-Fuel Resource Vehicle Operating Costs (2023 prices)"]
[null,null,null,null,"Work Car",null,"Non-work Car",null,"Average Car"]
[null,null,"Year",null,"a1 p/km","b1 p/hr","a1 p/km","b1 p/hr","a1 p/km","b1 p/hr"]
[null,null,2010,null,6.8848871835056498,188.4861059510167,5.3321383514526444,0,5.5193881403855487,22.730001676734865]
[null,null,2011,null,6.8846219568780072,188.48610595101667,5.3319511121767889,0,5.5191914964237192,22.730001676734858]
[null,null,2012,null,6.8841897643927208,188.4861059510167,5.3316460017559608,0,5.5188710608651386,22.730001676734865]
[null,null,2013,null,6.8836385744311093,188.48610595101667,5.3312568839279821,0,5.5184623983611711,22.730001676734858]
[null,null,2014,null,6.8816375874518059,188.48610595101667,5.329844268021616,0,5.5169788293444579,22.730001676734858]
[null,null,2015,null,6.8783257814538485,188.48610595101667,5.3275062668852273,0,5.514523394692084,22.730001676734858]
[null,null,2016,null,6.8743690353893152,188.48610595101667,5.324712964137122,0,5.5115897894617358,22.730001676734858]
[null,null,2017,null,6.8693569516921906,188.48610595101667,5.3211746356882985,0,5.5078737372539335,22.730001676734858]
[null,null,2018,null,6.8633768949593552,188.48610595101667,5.3169529574119547,0,5.50344001180805,22.730001676734858]
[null,null,2019,null,6.8540544807119836,188.48610595101664,5.3103717098637313,0,5.4965282002463489,22.730001676734854]
[null,null,2020,null,6.826711675844459,188.48610595101661,5.2910687951121496,0,5.4762557354322094,22.730001676734854]
[null,null,2021,null,6.7777646023668776,188.48610595101664,5.2565141401945299,0,5.4399654634708314,22.730001676734854]
[null,null,2022,null,6.7026092721601902,188.48610595101667,5.2034575156406353,0,5.3842439018171584,22.730001676734858]
[null,null,2023,null,6.5524722204034225,188.48610595101673,5.0974668272253174,0,5.2729294952014465,22.730001676734869]
[null,null,2024,null,6.43390510960627,188.48610595101664,5.0137632407371191,0,5.1850216308329173,22.730001676734854]
[null,null,2025,null,6.2972990010209076,188.48610595101667,4.9173248511372138,0,5.083739317510978,22.730001676734858]
[null,null,2026,null,6.1436523199281998,188.48610595101667,4.8088565063069986,0,4.9698228063354648,22.730001676734858]
[null,null,2027,null,5.968686356458087,188.48610595101667,4.6853376100688431,0,4.8400997821137359,22.730001676734858]
[null,null,2028,null,5.7326022513727617,188.48610595101667,4.518671776890991,0,4.6650626293158428,22.730001676734858]
[null,null,2029,null,5.4406405172998547,188.4861059510167,4.3125585968116926,0,4.4485967616133673,22.730001676734865]
[null,null,2030,null,5.0985314049697648,188.48610595101664,4.0710433951693688,0,4.1949506936291154,22.730001676734854]
[null,null,2031,null,4.782808652179309,188.4861059510167,3.8481558965467553,0,3.960867964078215,22.730001676734865]
[null,null,2032,null,4.495632566028144,188.48610595101673,3.6454211904137854,0,3.7479502648820948,22.730001676734869]
[null,null,2033,null,4.2356329053328263,188.4861059510167,3.4618719418945654,0,3.5551816737053246,22.730001676734865]
[null,null,2034,null,4.0009720431185034,188.48610595101667,3.2962108606411356,0,3.3811997396812239,22.730001676734858]
[null,null,2035,null,3.7911762190587703,188.48610595101667,3.1481034910174488,0,3.2256532080795668,22.730001676734858]
[null,null,2036,null,3.6030444837653293,188.48610595101667,3.0152900921715409,0,3.0861688354031878,22.730001676734858]
[null,null,2037,null,3.431681975039838,188.48610595101667,2.8943150892933982,0,2.9591174796468422,22.730001676734858]
[null,null,2038,null,3.2782267221696175,188.4861059510167,2.7859818850487081,0,2.8453428969210104,22.730001676734865]
[null,null,2039,null,3.140644499583404,188.48610595101667,2.688854398429037,0,2.7433368744978024,22.730001676734858]
[null,null,2040,null,3.017304385016522,188.48610595101667,2.6017812642546225,0,2.6518902162327307,22.730001676734858]
[null,null,2041,null,2.9124587272023277,188.48610595101667,2.5277644688063767,0,2.5741556926806854,22.730001676734858]
[null,null,2042,null,2.8247211663839038,188.48610595101664,2.465825298147216,0,2.5091054308956378,22.730001676734854]
[null,null,2043,null,2.7526902560609114,188.48610595101664,2.4149743877091674,0,2.4557003723389843,22.730001676734854]
[null,null,2044,null,2.6964055548958124,188.48610595101667,2.37523966430855,0,2.41396984653989,22.730001676734858]
[null,null,2045,null,2.6532770923752045,188.48610595101667,2.344792713476858,0,2.3819936011190919,22.730001676734858]
[null,null,2046,null,2.6213863999205507,188.48610595101667,2.3222791739624018,0,2.3583492477391879,22.730001676734858]
[null,null,2047,null,2.5973384411365643,188.4861059510167,2.3053022873333289,0,2.3405196431809783,22.730001676734865]
[null,null,2048,null,2.57937542809873,188.48610595101667,2.2926211263832799,0,2.3272015307367817,22.730001676734858]
[null,null,2049,null,2.5668282471472734,188.48610595101667,2.2837633239210939,0,2.3178988170763719,22.730001676734858]
[null,null,2050,null,2.5583316948764789,188.48610595101667,2.2777651015382725,0,2.3115993149665588,22.730001676734858]

{"sheet":"TAG - A3.4","index":30,"n_rows":103,"n_cols":20,"rows_kept":103,"cut":false,"hidden":true,"merged":[[9,1,9,9],[9,11,9,14],[9,16,9,18],[10,1,11,3],[10,4,10,6],[10,7,10,9],[10,11,11,11],[10,12,10,14],[10,16,11,16]]}
[]
[null,"File Name",null,null,null,null,{"$f":"IFERROR(MID(CELL(\"filename\",G2),FIND(\"[\",CELL(\"filename\",G2))+1,FIND(\"]\",CELL(\"filename\",G2))-FIND(\"[\",CELL(\"filename\",G2))-1),\"Please save the file to show here\")","v":"structures-fund-economic-tool Final 03082026.xlsm"}]
[null,"Sheet Name",null,null,null,null,{"$f":"IFERROR(MID(CELL(\"filename\",G2),FIND(\"]\",CELL(\"filename\",G2))+1,255),\"Please save the file to show here\")","v":"TAG - A3.4"}]
[null,"Description and Purpose of Sheet",null,null,null,null,"TAG - A3.4 table"]
[null,"Version number",null,null,null,null,{"$f":"Version_Number","v":1}]
[]
[]
[null,"TAG Data Book v2.02 - A3.4"]
[]
[null,"Table A 3.4.1:  Carbon Appraisal Values, £ per Tonne of CO2e (2023 prices)",null,null,null,null,null,null,null,null,null,{"$f":"\"Table A 3.4.2: DESNZ traded carbon values, £/tCO2e, \"&$B$14&\" prices\"","v":"Table A 3.4.2: DESNZ traded carbon values, £/tCO2e,  prices"},null,null,null,null,{"$f":"\"Table A 3.4.3: Adjusted (central) appraisal values for UK ETS traded emissions, £/tCO2e, \"&$B$14&\" prices\"","v":"Table A 3.4.3: Adjusted (central) appraisal values for UK ETS traded emissions, £/tCO2e,  prices"},null,null,"Adjusted = Appraisal - Traded"]
[null,"Year",null,null,"Factor cost unit of account",null,null,"Market price unit of account",null,null,null,"Year","Factor cost unit of account",null,null,null,"\nYear","Factor cost units","Market price units"]
[null,null,null,null,"Low","Central","High ","Low","Central","High ",null,null,"Low\nDESNZ Low Sensitivity","Central\nDESNZ Market Carbon Values","High \nDESNZ High Sensitivity",null,null,"Central","Central"]
[null,null,2010,null,116.45164195550693,232.90328391101386,349.35492586652083,138.57745392705323,277.15490785410645,415.7323617811598,null,{"$f":"C13","v":2010},16.969093080711396,16.969093080711396,16.969093080711396,null,{"$f":"C13","v":2010},215.93419083030247,256.96168708805993]
[null,null,2011,null,118.22501721371265,236.45003442742529,354.67505164113794,140.68777048431804,281.37554096863607,422.06331145295411,null,{"$f":"L13+1","v":2011},15.757015003517727,15.757015003517727,15.757015003517727,null,{"$f":"Q13+1","v":2011},220.69301942390757,262.62469311445]
[null,null,2012,null,120.02539818651029,240.05079637302057,360.07619455953085,142.83022384194723,285.66044768389446,428.49067152584166,null,{"$f":"L14+1","v":2012},8.4845465403556979,8.4845465403556979,8.4845465403556979,null,{"$f":"Q14+1","v":2012},231.56624983266488,275.56383730087117]
[null,null,2013,null,121.85319612843684,243.70639225687367,365.55958838531052,145.00530339283983,290.01060678567967,435.0159101785195,null,2013,4.8483123087746849,4.8483123087746849,4.8483123087746849,null,2013,238.85807994809898,284.24111513823777]
[null,null,2014,null,123.70882855678867,247.41765711357735,371.12648567036598,147.21350598257851,294.42701196515702,441.64051794773547,null,2014,6.0603903859683559,6.0603903859683559,6.0603903859683559,null,2014,241.35726672760899,287.21514740585468]
[null,null,2015,null,125.59271934699358,251.18543869398715,376.77815804098066,149.45533602292235,298.91067204584471,448.36600806876697,null,2015,7.2724684631620278,7.2724684631620278,7.2724684631620278,null,2015,243.91297023082512,290.25643457468186]
[null,null,2016,null,127.50529882943508,255.01059765887015,382.5158964883052,151.73130560702774,303.46261121405547,455.19391682108318,null,2016,6.0603903859683559,6.0603903859683559,6.0603903859683559,null,2016,248.95020727290179,296.25074665475313]
[null,null,2017,null,129.44700388775138,258.89400777550276,388.34101166325411,154.04193462642414,308.08386925284827,462.12580387927238,null,2017,6.0603903859683559,6.0603903859683559,6.0603903859683559,null,2017,252.8336173895344,300.87200469354593]
[null,null,2018,null,131.41827805863082,262.83655611726164,394.25483417589248,156.38775088977067,312.77550177954134,469.16325266931204,null,2018,2.4241561543873424,15.757015003517727,31.514030007035455,null,2018,247.07954111374391,294.02465392535527]
[null,null,2019,null,133.41957163312773,266.83914326625546,400.25871489938328,158.76929024342201,317.53858048684401,476.30787073026607,null,2019,0,15.757015003517727,31.514030007035455,null,2019,251.08212826273774,298.78773263265788]
[null,null,2020,null,135.45134175952055,270.90268351904109,406.35402527856161,161.18709669382943,322.37419338765886,483.56129008148827,null,2020,0,16.969093080711396,33.938186161422792,null,2020,253.9335904383297,302.18097262161234]
[null,null,2021,null,137.99039931357817,275.98079862715633,413.97119794073456,164.20857518315802,328.41715036631604,492.62572554947411,null,2021,4.8483123087746849,25.453639621067097,44.846888856165833,null,2021,250.52715900608922,298.12731921724617]
[null,null,2022,null,140.09177595287125,280.18355190574249,420.27532785861376,166.70921338391676,333.41842676783352,500.12764015175037,null,2022,9.6966246175493698,32.726108084229125,55.755591550908875,null,2022,247.45744382151338,294.47435814760092]
[null,null,2023,null,142.22515325164596,284.45030650329193,426.67545975493789,169.24793236945868,338.49586473891736,507.74379710837604,null,2023,14.544936926324056,41.210654624584819,67.876372322845583,null,2023,243.23965187870709,289.45518573566142]
[null,null,2024,null,144.39101852958979,288.78203705917957,433.17305558876933,171.82531205021183,343.65062410042367,515.47593615063545,null,2024,27.232735668520853,35.986114990545417,44.739494312569974,null,2024,252.79592206863416,300.82714726167461]
[null,null,2025,null,146.58986652750232,293.17973305500465,439.769599582507,174.44194116772775,348.8838823354555,523.3258235031833,null,2025,47.657287419911498,42.794298907675632,71.972229981090834,null,2025,250.38543414732902,297.95866663532155]
[null,null,2026,null,148.82219952030695,297.64439904061391,446.46659856092089,177.09841742916527,354.19683485833053,531.29525228749583,null,2026,60.301057551724753,60.301057551724753,100.17756335205885,null,2026,237.34334148888917,282.43857637177808]
[null,null,2027,null,151.08852743178369,302.17705486356738,453.26558229535107,179.79534764382259,359.59069528764519,539.38604293146773,null,2027,64.191448361513451,72.944827683538009,101.15016105450604,null,2027,229.23222718002938,272.78635034423496]
[null,null,2028,null,153.38936795104942,306.77873590209884,460.1681038531483,182.53334786174881,365.06669572349762,547.60004358524645,null,2028,60.301057551724753,85.588597815351264,106.98574726918906,null,2028,221.1901380867476,263.21626432322961]
[null,null,2029,null,155.72524665081161,311.45049330162323,467.17573995243487,185.31304351446582,370.62608702893164,555.93913054339748,null,2029,51.547678229700196,77.807816195773881,102.12275875695323,null,2029,233.64267710584934,278.03478575596068]
[null,null,2030,null,158.09669710742298,316.19339421484597,474.29009132226889,188.13506955783333,376.27013911566667,564.40520867349994,null,2030,48.629885122358672,75.862620790879532,104.06795416184758,null,2030,240.33077342396643,285.99362037452005]
[null,null,2031,null,160.50426102276444,321.00852204552888,481.51278306829334,191.00007061708968,382.00014123417935,573.000211851269,null,2031,52.520275932147371,82.67080470800974,110.87613807897779,null,2031,238.33771733751914,283.62188363164773]
[null,null,2032,null,162.94848834798421,325.89697669596842,488.84546504395263,193.90870113410119,387.81740226820239,581.72610340230358,null,2032,58.355862146830411,88.506390922692788,114.76652888876647,null,2032,237.39058577327563,282.49479707019799]
[null,null,2033,null,165.42993740912101,330.85987481824202,496.28981222736303,196.86162551685399,393.72325103370798,590.58487655056194,null,2033,61.273655254171928,94.341977137375821,119.62951740100235,null,2033,236.51789768086621,281.45629824023081]
[null,null,2034,null,167.94917503464063,335.89835006928126,503.84752510392184,199.85951829122234,399.71903658244469,599.57855487366692,null,2034,63.218850659066277,97.259770244717345,121.5747128058967,null,2034,238.63857982456392,283.97990999123107]
[null,null,2035,null,170.50677668491434,341.01355336982868,511.52033005474311,202.90306425504806,405.80612851009613,608.70919276514428,null,2035,70.027034576196485,106.0131495667419,130.32809212792125,null,2035,235.00040380308678,279.65048052567323]
[null,null,2036,null,173.1033265836694,346.2066531673388,519.3099797510082,205.99295863456658,411.98591726913315,617.97887590369976,null,2036,74.890023088432358,111.84873578142495,136.1636783426043,null,2036,234.35791738591385,278.88592168923748]
[null,null,2037,null,175.739417851441,351.47883570288201,527.21825355432304,209.12990724321477,418.25981448642955,627.38972172964441,null,2037,81.698207005562566,118.65691969855516,141.99926455728732,null,2037,232.82191600432685,277.05808004514893]
[null,null,2038,null,178.41565264105685,356.8313052821137,535.24695792317061,212.31462664285763,424.62925328571527,636.94387992857298,null,2038,91.424184030034297,126.43770131813255,148.80744847441755,null,2038,230.39360396398115,274.16838871713753]
[null,null,2039,null,181.13264227518462,362.26528455036924,543.3979268255539,215.54784430746969,431.09568861493938,646.64353292240912,null,2039,93.369379434928646,128.3828967230269,148.80744847441755,null,2039,233.88238782734234,278.32004151453737]
[null,null,2040,null,183.89100738597423,367.78201477194847,551.67302215792267,218.83029878930932,437.66059757861865,656.49089636792792,null,2040,91.424184030034297,124.4925059132382,146.86225306952321,null,2040,243.28950885871026,289.51451554186519]
[null,null,2041,null,186.64937249676385,373.29874499352769,559.94811749029157,222.11275327114896,444.22550654229792,666.33825981344694,null,2041,87.533793220245613,121.5747128058967,144.91705766462886,null,2041,251.724032187631,299.55159830328085]
[null,null,2042,null,189.4491130842153,378.8982261684306,568.34733925264584,225.44444457021621,450.88888914043241,676.3333337106485,null,2042,84.616000112904089,118.65691969855516,143.94445996218167,null,2042,260.24130646987544,309.68715469915173]
[null,null,2043,null,192.29084978047848,384.58169956095696,576.8725493414355,228.82611123876939,457.65222247753877,686.47833371630827,null,2043,82.67080470800974,114.76652888876647,141.02666685484016,null,2043,269.8151706721905,321.08005309990671]
[null,null,2044,null,195.17521252718569,390.35042505437139,585.52563758155702,232.25850290735096,464.51700581470192,696.77550872205279,null,2044,82.67080470800974,115.73912659121365,142.97186225973451,null,2044,274.61129846315771,326.78744517115769]
[null,null,2045,null,198.10284071509344,396.20568143018687,594.30852214528034,235.74238045096118,471.48476090192236,707.22714135288356,null,2045,82.67080470800974,116.71172429366082,143.94445996218167,null,2045,279.49395713652603,332.59780899246596]
[null,null,2046,null,201.07438332581984,402.14876665163968,603.22314997745946,239.27851615772559,478.55703231545118,717.83554847317669,null,2046,79.753011600668231,115.73912659121365,143.94445996218167,null,2046,286.409640060426,340.82747167190695]
[null,null,2047,null,204.0904990757071,408.1809981514142,612.27149722712124,242.86769390009144,485.73538780018288,728.60308170027429,null,2047,80.725609303115405,115.73912659121365,145.88965536707602,null,2047,292.44187156020052,348.00582715663859]
[null,null,2048,null,207.15185656184266,414.30371312368533,621.45556968552796,246.51070930859277,493.02141861718553,739.53212792577824,null,2048,81.698207005562566,117.684321996108,146.86225306952321,null,2048,296.61939112757733,352.97707544181702]
[null,null,2049,null,210.25913441027026,420.51826882054053,630.77740323081071,250.20836994822162,500.41673989644323,750.62510984466473,null,2049,81.698207005562566,118.65691969855516,147.83485077197037,null,2049,301.86134912198537,359.21500545516255]
[null,null,2050,null,213.41302142642431,426.82604285284862,640.23906427927295,253.96149549744493,507.92299099488986,761.88448649233476,null,2050,82.67080470800974,120.60211510344951,149.78004617686472,null,2050,306.22392774939908,364.4064740217849]
[null,null,2051,null,216.61421674782065,433.2284334956413,649.842650243462,257.77091792990655,515.54183585981309,773.31275378971975,null,2051,83.910866778629881,122.41114683000123,152.02674686951767,null,2051,310.81728666564004,369.87257113211166]
[null,null,2052,null,219.86342999903795,439.72685999807589,659.59028999711381,261.63748169885514,523.27496339771028,784.91244509656542,null,2052,85.169529780309318,124.24731403245124,154.30714807256041,null,2052,315.47954596562465,375.42065969909333]
[null,null,2053,null,223.16138144902345,446.3227628980469,669.48414434707047,265.5620439243379,531.1240878486758,796.68613177301381,null,2053,86.447072727013946,126.11102374293802,156.62175529364879,null,2053,320.21173915510889,381.05196959457953]
[null,null,2054,null,226.5088021707588,453.0176043415176,679.52640651227637,269.54547458320297,539.09094916640595,808.63642374960887,null,2054,87.74377881791915,128.00268909908206,158.97108162305349,null,2054,325.01491524243556,386.76774913849829]
[null,null,2055,null,229.90643420332017,459.81286840664035,689.71930260996055,273.58865670195098,547.17731340390196,820.76597010585306,null,2055,89.059935500187933,129.92272943556827,161.35564784739927,null,2055,329.89013897107208,392.56926537557575]
[null,null,2056,null,233.35503071636992,466.71006143273985,700.06509214910989,277.6924865524802,555.38497310496041,833.07745965744073,null,2056,90.395834532690756,131.87157037710179,163.77598256511024,null,2056,334.83849105563809,398.45780435620929]
[null,null,2057,null,236.85535617711548,473.71071235423096,710.56606853134645,281.85787385076742,563.71574770153484,845.57362155230226,null,2057,91.751772050681097,133.84964393275831,166.23262230358688,null,2057,339.86106842147262,404.43467142155242]
[null,null,2058,null,240.40818651977219,480.81637303954437,721.22455955931662,286.0857419585289,572.1714839170578,858.25722587558676,null,2058,93.128048631441303,135.85738859174967,168.72611163814068,null,2058,344.95898444779471,410.50119149287571]
[null,null,2059,null,244.01430931756872,488.02861863513743,732.04292795270612,290.37702808790675,580.7540561758135,871.13108426372025,null,2059,94.524969360912934,137.8952494206259,171.25700331271275,null,2059,350.1333692145115,416.65870936526869]
[null,null,2060,null,247.67452395733224,495.34904791466448,743.02357187199664,294.73268350922535,589.46536701845071,884.19805052767595,null,2060,95.942843901326597,139.96367816193526,173.82585836240344,null,2060,355.38536975272922,422.90859000574773]
[null,null,2061,null,251.3896418166922,502.77928363338441,754.16892545007659,299.15367376186373,598.30734752372746,897.46102128559107,null,2061,97.381986559846482,142.06313333436427,176.43324623783951,null,2061,360.71615029902011,429.25221885583392]
[null,null,2062,null,255.16048644394257,510.32097288788515,765.48145933182775,303.64097886829165,607.28195773658331,910.92293660487496,null,2062,98.842716358244175,144.19408033437972,179.07974493140708,null,2062,366.1268925535054,435.69100213867142]
[null,null,2063,null,258.98789374060169,517.97578748120338,776.96368122180502,308.19559355131599,616.39118710263199,924.58678065394793,null,2063,100.32535710361782,146.35699153939541,181.76594110537818,null,2063,371.618795941808,442.22636717075153]
[null,null,2064,null,262.87271214671068,525.74542429342137,788.61813644013205,312.81852745458571,625.63705490917141,938.45558236375712,null,2064,101.83023746017209,148.55234641248632,184.49243022195887,null,2064,377.19307788093505,448.85976267831268]
[null,null,2065,null,266.81580282891133,533.63160565782266,800.44740848673393,317.5108053664045,635.02161073280899,952.53241609921338,null,2065,103.35769102207468,150.78063160867359,187.25981667528819,null,2065,382.85097404914904,455.59265911848735]
[null,null,2066,null,270.81803987134498,541.63607974268996,812.45411961403477,322.2734674469005,644.54693489380099,966.82040234070132,null,2066,104.90805638740576,153.04234108280369,190.06871392541746,null,2066,388.5937386598863,462.42654900526469]
[null,null,2067,null,274.88031046941512,549.76062093883024,824.64093140824536,327.10756945860396,654.21513891720792,981.32270837581189,null,2067,106.48167723321686,155.33797619904573,192.91974463429872,null,2067,394.42264473978452,469.36294724034354]
[null,null,2068,null,279.00351512645631,558.00703025291261,837.01054537936886,332.014183000483,664.028366000966,996.04254900144895,null,2068,108.07890239171509,157.6680458420314,195.8135408038132,null,2068,400.33898441088121,476.40339144894864]
[null,null,2069,null,283.18856785335311,566.37713570670621,849.56570356005932,336.99439574549018,673.98879149098036,1010.9831872364706,null,2069,109.70008592759081,160.03306652966185,198.75074391587037,null,2069,406.34406917704439,483.54944232068283]
[null,null,2070,null,287.43639637115342,574.87279274230684,862.30918911346021,342.04931168167258,684.09862336334515,1026.1479350450177,null,2070,111.34558721650464,162.43356252760677,201.73200507460842,null,2070,412.43923021470005,490.80268395549302]
[null,null,2071,null,291.74794231672064,583.49588463344128,875.24382695016186,347.18005135689754,694.36010271379507,1041.5401540706926,null,2071,113.01577102475221,164.87006596552089,204.75798515072754,null,2071,418.62581866792038,498.16472421482524]
[null,null,2072,null,296.12416145147148,592.24832290294296,888.37248435441438,352.38775212725102,704.77550425450204,1057.1632563817532,null,2072,114.71100759012349,167.34311695500367,207.82935492798842,null,2072,424.90520594793929,505.63719507804774]
[null,null,2073,null,300.56602387324352,601.13204774648705,901.6980716197304,357.67356840915977,715.34713681831954,1073.0207052274791,null,2073,116.43167270397532,169.8532637093287,210.94679525190821,null,2073,431.27878403715835,513.22175300421839]
[null,null,2074,null,305.07451423134211,610.14902846268421,915.22354269402626,363.03867193529709,726.07734387059418,1089.1160158058913,null,2074,118.17814779453494,172.40106266496861,214.11099718068684,null,2074,437.74796579771561,520.9200792992815]
[null,null,2075,null,309.65063194481223,619.30126388962447,928.95189583443664,368.48425201432656,736.96850402865311,1105.4527560429794,null,2075,119.95082001145295,174.98707860494312,217.32266213839705,null,2075,444.31418528468134,528.73388048877075]
[null,null,2076,null,314.29539142398437,628.59078284796874,942.886174271953,374.01151579454137,748.02303158908273,1122.0345473836239,null,{"$f":"L78+1","v":2076},121.75008231162472,177.61188478401726,220.58250207047303,null,{"$f":"Q78+1","v":2076},450.97889806395148,536.66488869610225]
[null,null,2077,null,319.00982229534412,638.01964459068824,957.02946688603242,379.62168853145948,759.24337706291897,1138.8650655943786,null,2077,123.57633354629908,180.27606305577751,223.89123960153012,null,2077,457.74358153491073,544.71486202654376]
[null,null,2078,null,323.7949696297743,647.5899392595486,971.38490888932279,385.31601385943139,770.63202771886279,1155.9480415782941,null,2078,125.42997854949355,182.9802040016142,227.24960819555301,null,2078,464.6097352579344,552.8855849569419]
[null,null,2079,null,328.65189417422084,657.30378834844169,985.95568252266241,391.09575406732279,782.19150813464557,1173.2872622019681,null,2079,127.31142822773595,185.72490706163836,230.65835231848629,null,2079,471.57888128680332,561.17886873129589]
[null,null,2080,null,333.58167258683409,667.16334517366818,1000.7450177605023,396.96219037833254,793.92438075666507,1190.8865711349977,null,2080,129.22109965115197,188.51078066756293,234.11822760326356,null,2080,478.65256450610525,569.59655176226522]
[null,null,2081,null,338.58539767563661,677.17079535127323,1015.7561930269097,402.91662323400755,805.83324646801509,1208.7498697020226,null,2081,131.15941614591924,191.33844237757637,237.63000101731251,null,2081,485.83235297369686,578.1405000386992]
[null,null,2082,null,343.66417864077118,687.32835728154237,1030.9925359223134,408.96037258251766,817.92074516503533,1226.8811177475529,null,2082,133.12680738810801,194.20851901323996,241.19445103257215,null,2082,493.11983826830237,586.81260753927984]
[null,null,2083,null,348.81914132038264,697.63828264076528,1046.4574239611479,415.09477817125531,830.18955634251063,1245.284334513766,null,2083,135.1237094989296,197.12164679843855,244.81236779806071,null,2083,500.51663584232676,595.6147966523688]
[null,null,2084,null,354.05142844018837,708.10285688037675,1062.1542853205651,421.32119984382416,842.64239968764832,1263.9635995314725,null,2084,137.15056514141352,200.07847150041511,248.48455331503158,null,2084,508.02438537996164,604.54901860215432]
[null,null,2085,null,359.36219986679112,718.72439973358223,1078.0865996003733,427.64101784148141,855.28203568296283,1282.9230535244442,null,2085,139.20782361853472,203.07964857292131,252.21182161475701,null,2085,515.64475116066092,613.61725388118646]
[null,null,2086,null,364.75263286479293,729.50526572958586,1094.257898594379,434.05563310910355,868.11126621820711,1302.1668993273108,null,2086,141.29594097281273,206.12584330151512,255.9949989389784,null,2086,523.37942242807071,622.82151268940413]
[null,null,2087,null,370.22392235776482,740.44784471552964,1110.6717670732944,440.56646760574012,881.13293521148023,1321.6994028172203,null,2087,143.41538008740491,209.21773095103782,259.834923923063,null,2087,531.23011376449176,632.16383537974514]
[null,null,2088,null,375.77728119313122,751.55456238626243,1127.3318435793935,447.17496461982614,894.34992923965228,1341.5248938594782,null,2088,145.56661078871596,212.35599691530336,263.73244778190895,null,2088,539.19856547095901,641.64629291044116]
[null,null,2089,null,381.41394041102814,762.82788082205627,1144.2418212330845,453.88258908912348,907.76517817824697,1361.6477672673705,null,2089,147.75010995054669,215.5413368690329,267.68843449863755,null,2089,547.2865439530234,651.27098730409784]
[null,null,2090,null,387.13514951719355,774.27029903438711,1161.4054485515805,460.69082792546033,921.38165585092065,1382.0724837763807,null,2090,149.96636159980488,218.7744569220684,271.70376101611708,null,2090,555.49584211231877,661.04005211365927]
[null,null,2091,null,392.94217675995145,785.8843535199029,1178.8265302798543,467.60119034434223,935.20238068868446,1402.8035710330266,null,2091,152.21585702380193,222.05607377589934,275.77931743135883,null,2091,563.82827974400357,670.95565289536421]
[null,null,2092,null,398.83630941135061,797.67261882270122,1196.5089282340518,474.61520819950721,949.23041639901442,1423.8456245985217,null,2092,154.49909487915895,225.38691488253781,279.91600719282917,null,2092,572.28570394016344,681.01998768879446]
[null,null,2093,null,404.81885405252092,809.63770810504184,1214.4565621575628,481.73443632249985,963.46887264499969,1445.2033089674997,null,2093,156.81658130234632,228.76771860577588,284.1147473007216,null,2093,580.86998949926601,691.23528750412652]
[null,null,2094,null,410.89113686330865,821.78227372661729,1232.6734105899261,488.96045286733727,977.92090573467453,1466.8813586020119,null,2094,159.16883002188149,232.19923438486251,288.37646851023243,null,2094,589.58303934175478,701.60381681668821]
[null,null,2095,null,417.05450391625828,834.10900783251657,1251.1635117487747,496.29485966034736,992.58971932069471,1488.8845789810418,null,2095,161.55636247220968,235.68222290063542,292.7021155378859,null,2095,598.42678493188112,712.12787406893847]
[null,null,2096,null,423.31032147500213,846.62064295000425,1269.9309644250063,503.73928255525249,1007.478565110505,1511.2178476657575,null,2096,163.97970790929281,239.21745624414493,297.09264727095416,null,2096,607.4031867058593,722.80979217997253]
[null,null,2097,null,429.65997629712712,859.31995259425423,1288.9799288913812,511.29537179358124,1022.5907435871625,1533.8861153807436,null,2097,166.4394035279322,242.80571808780707,301.54903698001846,null,2097,616.51423450644711,733.651939062672]
[null,null,2098,null,436.10487594158394,872.20975188316788,1308.3146278247518,518.9648023704849,1037.9296047409698,1556.8944071114547,null,2098,168.93599458085117,246.44780385912415,306.07227253471871,null,2098,625.7619480240437,744.65671814861196]
[null,null,2099,null,442.64644908070773,885.29289816141545,1327.9393472421232,526.74927440604222,1053.4985488120844,1580.2478232181265,null,2099,171.47003449956392,250.14452091701099,310.66335662273946,null,2099,635.1483772444044,755.82656892084117]
[null,null,2100,null,449.28614581691829,898.57229163383658,1347.8584374507548,534.65051352213277,1069.3010270442655,1603.9515405663981,null,2100,174.04208501705736,253.89668873076616,315.3233069720805,null,2100,644.6756029030704,767.16396745465374]

{"sheet":"TAG - A5.4.2","index":31,"n_rows":165,"n_cols":80,"rows_kept":165,"cut":false,"hidden":true,"merged":[[163,1,163,3],[163,17,163,19],[163,33,163,35],[163,49,163,51],[163,65,163,67],[164,1,164,3],[164,17,164,19],[164,33,164,35],[164,49,164,51],[164,65,164,67],[161,1,161,3],[161,17,161,19],[161,33,161,35],[161,49,161,51],[161,65,161,67],[162,1,162,3],[162,17,162,19],[162,33,162,35],[162,49,162,51],[162,65,162,67],[159,1,159,3],[159,17,159,19],[159,33,159,35],[159,49,159,51],[159,65,159,67],[160,1,160,3],[160,17,160,19],[160,33,160,35],[160,49,160,51],[160,65,160,67],[157,1,157,3],[157,17,157,19],[157,33,157,35],[157,49,157,51],[157,65,157,67],[158,1,158,3],[158,17,158,19],[158,33,158,35],[158,49,158,51],[158,65,158,67],[12,1,17,1],[12,17,17,17],[12,33,17,33],[12,49,17,49],[12,65,17,65],[156,1,156,3],[156,17,156,19],[156,33,156,35],[156,49,156,51],[156,65,156,67],[10,79,11,79],[10,51,11,51],[10,52,10,54],[10,55,10,57],[10,58,10,59],[10,60,10,62],[10,63,11,63],[10,67,11,67],[10,68,10,70],[10,71,10,73],[10,74,10,75],[10,76,10,78],[10,47,11,47],[10,19,11,19],[10,20,10,22],[10,23,10,25],[10,26,10,27],[10,28,10,30],[10,31,11,31],[10,35,11,35],[10,36,10,38],[10,39,10,41],[10,42,10,43],[10,44,10,46],[10,15,11,15],[10,3,11,3],[10,4,10,6],[10,7,10,9],[10,10,10,11],[10,12,10,14]]}
[]
[null,"File Name",null,null,null,null,{"$f":"IFERROR(MID(CELL(\"filename\",G2),FIND(\"[\",CELL(\"filename\",G2))+1,FIND(\"]\",CELL(\"filename\",G2))-FIND(\"[\",CELL(\"filename\",G2))-1),\"Please save the file to show here\")","v":"structures-fund-economic-tool Final 03082026.xlsm"}]
[null,"Sheet Name",null,null,null,null,{"$f":"IFERROR(MID(CELL(\"filename\",G2),FIND(\"]\",CELL(\"filename\",G2))+1,255),\"Please save the file to show here\")","v":"TAG - A5.4.2"}]
[null,"Description and Purpose of Sheet",null,null,null,null,"TAG - A5.4.2 table"]
[null,"Version number",null,null,null,null,{"$f":"Version_Number","v":1}]
[]
[]
[null,"TAG Data Book v2.02 - A5.4.2"]
[null,null,null,null,{"$f":"E11&\"-\"&E12","v":"London-Motorways"},{"$f":"E11&\"-\"&F12","v":"London-A roads"},{"$f":"E11&\"-\"&G12","v":"London-Other Rds"},{"$f":"H11&\"-\"&H12","v":"Inner and Outer Conurbations-Motorways"},{"$f":"H11&\"-\"&I12","v":"Inner and Outer Conurbations-A roads"},{"$f":"H11&\"-\"&J12","v":"Inner and Outer Conurbations-Other Rds"},"Other Urban-A roads",{"$f":"K11&\"-\"&L12","v":"Other Urban-Other Rds"},"Rural-Motorways",{"$f":"M11&\"-\"&N12","v":"Rural-A roads"},{"$f":"M11&\"-\"&O12","v":"Rural-Other Rds"},"-",null,null,null,null,{"$f":"U11&\"-\"&U12","v":"London-Motorways"},{"$f":"U11&\"-\"&V12","v":"London-A roads"},{"$f":"U11&\"-\"&W12","v":"London-Other Rds"},{"$f":"X11&\"-\"&X12","v":"Inner and Outer Conurbations-Motorways"},{"$f":"X11&\"-\"&Y12","v":"Inner and Outer Conurbations-A roads"},{"$f":"X11&\"-\"&Z12","v":"Inner and Outer Conurbations-Other Rds"},"Other Urban-A roads",{"$f":"AA11&\"-\"&AB12","v":"Other Urban-Other Rds"},"Rural-Motorways",{"$f":"AC11&\"-\"&AD12","v":"Rural-A roads"},{"$f":"AC11&\"-\"&AE12","v":"Rural-Other Rds"},"-",null,null,null,null,{"$f":"AK11&\"-\"&AK12","v":"London-Motorways"},{"$f":"AK11&\"-\"&AL12","v":"London-A roads"},{"$f":"AK11&\"-\"&AM12","v":"London-Other Rds"},{"$f":"AN11&\"-\"&AN12","v":"Inner and Outer Conurbations-Motorways"},{"$f":"AN11&\"-\"&AO12","v":"Inner and Outer Conurbations-A roads"},{"$f":"AN11&\"-\"&AP12","v":"Inner and Outer Conurbations-Other Rds"},"Other Urban-A roads",{"$f":"AQ11&\"-\"&AR12","v":"Other Urban-Other Rds"},"Rural-Motorways",{"$f":"AS11&\"-\"&AT12","v":"Rural-A roads"},{"$f":"AS11&\"-\"&AU12","v":"Rural-Other Rds"},"-",null,null,null,null,{"$f":"BA11&\"-\"&BA12","v":"London-Motorways"},{"$f":"BA11&\"-\"&BB12","v":"London-A roads"},{"$f":"BA11&\"-\"&BC12","v":"London-Other Rds"},{"$f":"BD11&\"-\"&BD12","v":"Inner and Outer Conurbations-Motorways"},{"$f":"BD11&\"-\"&BE12","v":"Inner and Outer Conurbations-A roads"},{"$f":"BD11&\"-\"&BF12","v":"Inner and Outer Conurbations-Other Rds"},"Other Urban-A roads",{"$f":"BG11&\"-\"&BH12","v":"Other Urban-Other Rds"},"Rural-Motorways",{"$f":"BI11&\"-\"&BJ12","v":"Rural-A roads"},{"$f":"BI11&\"-\"&BK12","v":"Rural-Other Rds"},"-",null,null,null,null,{"$f":"BQ11&\"-\"&BQ12","v":"London-Motorways"},{"$f":"BQ11&\"-\"&BR12","v":"London-A roads"},{"$f":"BQ11&\"-\"&BS12","v":"London-Other Rds"},{"$f":"BT11&\"-\"&BT12","v":"Inner and Outer Conurbations-Motorways"},{"$f":"BT11&\"-\"&BU12","v":"Inner and Outer Conurbations-A roads"},{"$f":"BT11&\"-\"&BV12","v":"Inner and Outer Conurbations-Other Rds"},"Other Urban-A roads",{"$f":"BW11&\"-\"&BX12","v":"Other Urban-Other Rds"},"Rural-Motorways",{"$f":"BY11&\"-\"&BZ12","v":"Rural-A roads"},{"$f":"BY11&\"-\"&CA12","v":"Rural-Other Rds"},"-"]
[null,"Table A 5.4.2a:",null,null,2025,"Marginal External Costs & Indirect Tax - Cars (pence per vehicle km, 2023 prices, 1 d.p.)",null,null,null,null,null,null,null,null,null,null,null,"Table A 5.4.2b:",null,null,2025,"Marginal External Costs & Indirect Tax - LGVs (pence per vehicle km, 2023 prices, 1 d.p.)",null,null,null,null,null,null,null,null,null,null,null,"Table A 5.4.2c:",null,null,2025,"Marginal External Costs & Indirect Tax - Rigids (pence per vehicle km, 2023 prices, 1 d.p.)",null,null,null,null,null,null,null,null,null,null,null,"Table A 5.4.2d:",null,null,2025,"Marginal External Costs & Indirect Tax - Artics (pence per vehicle km, 2023 prices, 1 d.p.)",null,null,null,null,null,null,null,null,null,null,null,"Table A 5.4.2e:",null,null,2025,"Marginal External Costs & Indirect Tax - PSVs (pence per vehicle km, 2023 prices, 1 d.p.)"]
[null,null,null,"Congestion band","London",null,null,"Inner and Outer Conurbations",null,null,"Other Urban",null,"Rural",null,null,"Weighted Average",null,null,null,"Congestion band","London",null,null,"Inner and Outer Conurbations",null,null,"Other Urban",null,"Rural",null,null,"Weighted Average",null,null,null,"Congestion band","London",null,null,"Inner and Outer Conurbations",null,null,"Other Urban",null,"Rural",null,null,"Weighted Average",null,null,null,"Congestion band","London",null,null,"Inner and Outer Conurbations",null,null,"Other Urban",null,"Rural",null,null,"Weighted Average",null,null,null,"Congestion band","London",null,null,"Inner and Outer Conurbations",null,null,"Other Urban",null,"Rural",null,null,"Weighted Average"]
[null,"Cost type",null,null,"Motorways","A roads","Other Rds","Motorways","A roads","Other Rds","A roads","Other Rds","Motorways","A roads","Other Rds",null,null,"Cost type",null,null,"Motorways","A roads","Other Rds","Motorways","A roads","Other Rds","A roads","Other Rds","Motorways","A roads","Other Rds",null,null,"Cost type",null,null,"Motorways","A roads","Other Rds","Motorways","A roads","Other Rds","A roads","Other Rds","Motorways","A roads","Other Rds",null,null,"Cost type",null,null,"Motorways","A roads","Other Rds","Motorways","A roads","Other Rds","A roads","Other Rds","Motorways","A roads","Other Rds",null,null,"Cost type",null,null,"Motorways","A roads","Other Rds","Motorways","A roads","Other Rds","A roads","Other Rds","Motorways","A roads","Other Rds"]
[null,"Congestion*",null,1,4.079130593523498E-2,1.517387146872293,11.409221665147298,6.1372660438374436E-2,1.3422225475942797,3.2906307441069234,0.89456612315168005,3.5217888777010082,4.0993443111606957E-2,0.886052977932831,0.87285418031488227,1.8528726456757236,null,"Congestion*",null,1,4.079130593523498E-2,1.517387146872293,11.409221665147298,6.1372660438374436E-2,1.3422225475942797,3.2906307441069234,0.89456612315168005,3.5217888777010082,4.0993443111606957E-2,0.886052977932831,0.87285418031488227,1.8528726456757236,null,"Congestion*",null,1,7.7503481276946465E-2,2.8830355790573563,21.677521163779861,0.11660805483291142,2.5502228404291309,6.2521984138031534,1.6996756339881922,6.691398867631916,7.7887541912053215E-2,1.6835006580723788,1.6584229425982764,3.5204580267838752,null,"Congestion*",null,1,0.11829478721218144,4.4004227259296496,33.086742828927157,0.17798071527128584,3.8924453880234116,9.5428291579100772,2.5942417571398719,10.213187745332924,0.11888098502366019,2.5695536360052098,2.5312771229131585,5.3733306724595984,null,"Congestion*",null,1,0.10197826483808743,3.7934678671807323,28.523054162868242,0.15343165109593607,3.3555563689856998,8.2265768602673095,2.2364153078792,8.8044721942525221,0.10248360777901741,2.2151324448320775,2.1821354507872059,4.6321816141893093]
[null,null,null,2,0.14454183550680172,5.1167586562872787,31.39569484534444,0.20381254769030713,4.5553445977270428,13.066228428489017,2.7640852440377199,13.582517235929611,0.15329598930195243,2.3668058780113341,4.6499521709705913,4.6075691633765397,null,null,null,2,0.14454183550680172,5.1167586562872787,31.39569484534444,0.20381254769030713,4.5553445977270428,13.066228428489017,2.7640852440377199,13.582517235929611,0.15329598930195243,2.3668058780113341,4.6499521709705913,4.6075691633765397,null,null,null,2,0.27462948746292326,9.721841446945831,59.651820206154433,0.38724384061158351,8.655154735681382,24.825834014129132,5.2517619636716679,25.806782748266262,0.29126237967370966,4.4969311682215345,8.8349091248441241,8.7543814104154247,null,null,null,2,0.41917132296972498,14.838600103233105,91.047515051498863,0.59105638830189067,13.210499333408423,37.892062442618155,8.0158472077093865,39.389299984195866,0.44455836897566209,6.8637370462328695,13.484861295814714,13.361950573791965,null,null,null,2,0.36135458876700427,12.791896640718198,78.489237113361099,0.50953136922576781,11.388361494317607,32.665571071222544,6.9102131100943005,33.95629308982403,0.38323997325488113,5.9170146950283353,11.624880427426479,11.518922908441347]
[null,null,null,3,6.0205694883071432,41.897747984713625,63.303468122008312,6.2603996637012429,31.185564238856561,29.059715798325911,16.291435100323412,30.224273152193057,4.7646099341023271,7.4286577988061815,13.66528007318418,15.31774015913326,null,null,null,3,6.0205694883071432,41.897747984713625,63.303468122008312,6.2603996637012429,31.185564238856561,29.059715798325911,16.291435100323412,30.224273152193057,4.7646099341023271,7.4286577988061815,13.66528007318418,15.31774015913326,null,null,null,3,11.439082027783572,79.605721170955889,120.27658943181581,11.894759361032362,59.252572053827457,55.213460016819219,30.953726690614481,57.426118989166795,9.0527588747944208,14.114449817731744,25.964032139049941,29.103706302353192,null,null,null,3,17.459651516090716,121.50346915566949,183.5800575538241,18.155159024733603,90.438136292684021,84.273175815145137,47.245161790937885,87.650392141359845,13.817368808896749,21.543107616537924,39.629312212234119,44.421446461486454,null,null,null,3,15.051423720767858,104.74436996178405,158.25867030502079,15.650999159253107,77.963910597141393,72.64928949581477,40.728587750808529,75.560682880482631,11.911524835255818,18.571644497015452,34.163200182960445,38.294350397833142]
[null,null,null,4,39.458385664522233,145.28911300200008,160.90195354132726,36.651777210604955,116.32950031877868,119.15219357817136,61.770060849610999,165.3627123447871,34.539219405864998,74.802096374042932,64.170910247571399,85.870045794082642,null,null,null,4,39.458385664522233,145.28911300200008,160.90195354132726,36.651777210604955,116.32950031877868,119.15219357817136,61.770060849610999,165.3627123447871,34.539219405864998,74.802096374042932,64.170910247571399,85.870045794082642,null,null,null,4,74.970932762592227,276.04931470380018,305.71371172852179,69.638376700149408,221.02605060567947,226.38916779852556,117.36311561426089,314.18915345509544,65.624516871143499,142.12398311068154,121.92472947038564,163.15308700875701,null,null,null,4,114.42931842711447,421.33842770580026,466.61566526984905,106.29015391075436,337.35555092445816,345.5413613766969,179.13317646387188,479.55186579988253,100.1637362770085,216.92607948472448,186.09563971795706,249.02313280283965,null,null,null,4,98.645964161305571,363.22278250500023,402.25488385331818,91.629443026512391,290.82375079694674,297.88048394542835,154.42515212402748,413.40678086196772,86.348048514662494,187.00524093510731,160.42727561892849,214.67511448520662]
[null,null,null,5,116.15366271797853,346.74088317413032,313.4042884480595,93.691151448499653,313.86257552316226,329.84700763352765,119.94674102567403,620.89150500514438,118.48016788395506,186.67419174654779,150.67703727830769,280.07232164527909,null,null,null,5,116.15366271797853,346.74088317413032,313.4042884480595,93.691151448499653,313.86257552316226,329.84700763352765,119.94674102567403,620.89150500514438,118.48016788395506,186.67419174654779,150.67703727830769,280.07232164527909,null,null,null,5,220.69195916415921,658.80767803084757,595.46814805131305,178.01318775214935,596.33889349400829,626.70931450370244,227.8988079487807,1179.6938595097745,225.11231897951461,354.68096431844072,286.28637082878458,532.1374111260302,null,null,null,5,336.84562188213772,1005.5485612049779,908.8724364993725,271.70433920064897,910.20146901717067,956.55632213723015,347.84554897445474,1800.5853645149186,343.59248686346962,541.35515606498859,436.96340810709222,812.20973277130918,null,null,null,5,290.38415679494631,866.85220793532585,783.51072112014879,234.22787862124912,784.65643880790572,824.61751908381916,299.86685256418514,1552.2287625128613,296.20041970988768,466.68547936636946,376.69259319576918,700.18080411319761]
[null,null,null,"Average",6.2480229512807419,122.47387776295409,56.745918378697134,8.0493915610176803,51.014576870445097,36.756195241172129,24.109641713245406,28.903349022630227,5.9682210284001442,4.8921821453834271,2.1078358469057172,19.618434411990961,null,null,null,"Average",6.2480229512807419,122.47387776295409,56.745918378697134,8.0493915610176803,51.014576870445097,36.756195241172129,24.109641713245406,28.903349022630227,5.9682210284001442,4.8921821453834271,2.1078358469057172,19.618434411990961,null,null,null,"Average",11.87124360743341,232.70036774961272,107.81724491952454,15.293843965933592,96.927696053845679,69.836770958227049,45.808319255166268,54.916363142997419,11.339619953960273,9.2951460762285105,4.0048881091208637,37.275025382782822,null,null,null,"Average",18.119266558714152,355.17424551256681,164.56316329822167,23.343235526951272,147.94227292429079,106.59296619939919,69.917960968411677,83.819712165627649,17.307840982360418,14.18732822161194,6.1127239560265805,56.893459794773776,null,null,null,"Average",15.620057378201857,306.18469440738522,141.86479594674284,20.123478902544203,127.53644217611274,91.890488102930334,60.274104283113509,72.258372556575566,14.920552571000361,12.230455363458569,5.2695896172642946,49.046086029977396]
[null,"Infrastructure",null,"All",0,0.15612568280054256,0.15612568280054256,0,0.15612568280054256,0.15612568280054256,0.15612568280054256,0.15612568280054256,0,0.15612568280054256,0.15612568280054256,0.12578923052363139,null,"Infrastructure",null,"All",0,0.15612568280054256,0.15612568280054256,0,0.15612568280054256,0.15612568280054256,0.15612568280054256,0.15612568280054256,0,0.15612568280054256,0.15612568280054256,0.12627431953785737,null,"Infrastructure",null,"All",1.4051311452048829,7.4940327744260422,31.381262242909056,1.4051311452048829,5.6205245808195317,31.381262242909056,5.4643988980189899,31.381262242909056,1.4051311452048829,4.6837704840162768,31.381262242909056,8.9389063103193429,null,"Infrastructure",null,"All",5.6205245808195317,26.22911471049115,129.27206535884926,5.6205245808195317,19.827961715668906,129.27206535884926,19.51571035006782,129.27206535884926,5.6205245808195317,17.017699425259138,129.27206535884926,13.119349874112999,null,"Infrastructure",null,"All",0,0,0,0,0,0,0,0,0,0,0,0]
[null,"Accident",null,"All",0,4.9527418771045202,4.9527418771045202,0,4.9527418771045202,4.9527418771045202,4.9527418771045202,4.9527418771045202,0,1.155639771324388,1.155639771324388,2.5873080244285211,null,"Accident",null,"All",0,4.9527418771045202,4.9527418771045202,0,4.9527418771045202,4.9527418771045202,4.9527418771045202,4.9527418771045202,0,1.155639771324388,1.155639771324388,2.4905322048569074,null,"Accident",null,"All",0.4952741877104519,5.2829246689114884,5.2829246689114884,0.4952741877104519,5.2829246689114884,5.2829246689114884,5.2829246689114884,5.2829246689114884,0.4952741877104519,5.6131074607184566,5.6131074607184566,3.9595551909525586,null,"Accident",null,"All",0.4952741877104519,5.2829246689114884,5.2829246689114884,0.4952741877104519,5.2829246689114884,5.2829246689114884,5.2829246689114884,5.2829246689114884,0.4952741877104519,5.6131074607184566,5.6131074607184566,2.5776588375252985,null,"Accident",null,"All",0,0,0,0,0,0,0,0,0,0,0,0]
[null,"Local Air Quality",null,"All",0.90613433500983132,1.1736968502879912,1.2782645120580076,0.42562874616671786,0.4436360704302133,0.48724533020109667,0.25491227043960685,0.28798157769483584,0.1272602949657424,0.10288646375641698,0.10164602376750217,0.27510213080493162,null,"Local Air Quality",null,"All",3.398350180194559,2.8100490149568107,3.1326791864721102,1.4750221729122612,1.0554971222475487,1.1295701444683444,0.63260089861757673,0.67821632957413713,0.49836974572665432,0.33550667703710146,0.27979282621637658,0.72852927512646382,null,"Local Air Quality",null,"All",2.2195479846721722,5.2472435422635497,7.4185171736405184,1.090601165607374,1.6589183743005187,2.1198942184817455,0.8586660645108174,1.1778958962672561,0.29956691559971588,0.27395805098593989,0.31357215192323978,0.88422222632498404,null,"Local Air Quality",null,"All",2.6232314387091749,6.3289220641971005,8.4301600414509981,1.2193113224179659,1.6258311717987548,2.0276229762726121,0.95649171222585638,1.2388969928961906,0.3499337486562995,0.30433440427991038,0.33942502013634579,0.60852288836965762,null,"Local Air Quality",null,"All",2.693391943641025,10.127859990471245,12.007027964158452,1.5095521363508628,2.3291072525887198,2.742720768049304,1.0648367381714534,1.5156970382384571,0.36849216607060414,0.34898562348523432,0.40096885319426057,2.5230519302439398]
[null,"Noise",null,"All",0.33018279180696802,0.33018279180696802,0.33018279180696802,0.33018279180696802,0.33018279180696802,0.33018279180696802,0.33018279180696802,0.33018279180696802,0,0,0.16509139590348401,0.18259615202115331,null,"Noise",null,"All",0.33018279180696802,0.33018279180696802,0.33018279180696802,0.33018279180696802,0.33018279180696802,0.33018279180696802,0.33018279180696802,0.33018279180696802,0,0,0.16509139590348401,0.17740039439002872,null,"Noise",null,"All",8.0894783992707158,9.7403923583055558,11.721489109147361,8.4196611910776831,8.2545697951741985,8.2545697951741985,7.2640214197532957,7.2640214197532957,1.4858225631313562,1.4858225631313562,1.8160053549383239,3.9975383250948013,null,"Noise",null,"All",16.013865402637947,19.315693320707627,23.442978218294723,16.674230986251882,16.509139590348397,16.509139590348397,14.362951443603107,14.528042839506591,2.9716451262627124,2.9716451262627124,3.797102105780132,6.1565727978366072,null,"Noise",null,"All",0,0,0,0,0,0,0,0,0,0,0,0]
[null,"Greenhouse Gases",null,"All",4.3600029136871186,4.8859592392064135,6.0038778183949164,4.2807522470595947,4.4689874547784694,5.0451423685919563,4.1283622366590382,4.8053880135212452,4.3838965688140163,4.0530289649309701,4.0032990475365313,4.389544016854134,null,"Greenhouse Gases",null,"All",8.2851941879022473,7.2738243392771924,8.8730614661484104,7.8534645540444128,6.4904656220361963,7.3464790172406662,6.0404362825070104,7.0191871659099654,8.3447593073158011,6.6117931712111648,5.8982885409431276,6.9242438201384502,null,"Greenhouse Gases",null,"All",18.815557776221489,20.832124636360593,26.270966694576209,18.788707242486076,21.728676365949898,24.87281896265538,20.013800198693826,23.678515985012126,18.840374923554254,18.57434485549971,19.010451427458261,19.650068397847516,null,"Greenhouse Gases",null,"All",24.283267047638006,36.797886389268356,47.755374763605893,24.505078444098153,32.186376979626608,38.397441876974071,30.422057968117091,37.066488392196852,24.327214774933147,25.16600437614149,27.366025453427682,25.458799323295821,null,"Greenhouse Gases",null,"All",22.824881448280813,30.530455653272217,36.829768346860277,23.57177941015,28.533232221548051,32.24053066132204,24.674873350873593,30.356617536796431,22.839928968780008,22.706929571243688,23.754079654822092,27.358765358280206]
[null,"Indirect Taxation",null,"All",-3.1084631688354274,-3.5461103825205531,-4.476328211587683,-3.0425188465611783,-3.1991489889865394,-3.6785663482748916,-2.9157154216201393,-3.479067225677646,-3.1283450318032622,-2.853030755860066,-2.8116505903815359,-3.1330442620991401,null,"Indirect Taxation",null,"All",-6.4986371964197893,-5.6962373185776727,-6.9650389117698923,-6.1561118522647282,-5.0747367469764288,-5.7538800343475787,-4.7176927955925665,-5.4942134624367194,-6.5458949277097478,-5.1709955100483453,-4.6049157233657709,-5.4188873795477024,null,"Indirect Taxation",null,"All",-15.566018995628593,-17.234314903951333,-21.733842358800423,-15.543805680289282,-17.976027768344196,-20.577161573005235,-16.557319095865001,-19.589120556223644,-15.586550100334261,-15.366464725135934,-15.727253560841051,-16.256405554601663,null,"Indirect Taxation",null,"All",-20.089428154883166,-30.442711576598398,-39.507788158854801,-20.272931639170462,-26.627632378695463,-31.766016014463929,-25.168019882795221,-30.66492470094876,-20.12578589489954,-20.819712432769457,-22.639779118387388,-21.061940261645638,null,"Indirect Taxation",null,"All",-16.335716124412365,-22.056271009195143,-26.732828919277537,-16.890207025484653,-20.573548767554616,-23.32581662388893,-17.709134890314385,-21.927215021943372,-16.346887279813057,-16.248149621462201,-17.025545227079093,-19.701634232317218]
[null,"Total",null,null,8.7358798229492312,130.42647382163997,64.99078284927441,10.043436499489779,58.167101758379282,44.049066943402323,31.016251150435941,35.956701739880693,7.3510328603766419,7.5068322723356795,4.8779871778566299,24.045729704524192,null,"Total",null,null,11.763112914764722,132.30056415032246,67.225670471259789,11.551949227516593,58.924853219464467,44.917414720245603,31.504036450489451,36.545589407389642,8.2654551537328516,7.9802519377082755,5.1578583407278655,24.646527046492967,null,"Total",null,null,27.330214104884529,264.06277082592868,168.15856244990874,29.949413217730775,121.49728207065711,121.17107927335367,68.134811409189695,104.11186279962698,18.279239588826673,24.559684765444317,46.412033186227141,58.448910278720362,null,"Total",null,null,47.066001061346093,418.68607508954409,339.23887819047923,51.584723409078798,196.74687467194948,266.3161446562911,115.29007722854182,240.54320571703929,30.946647505843021,44.440406581504192,149.86067023655107,83.752423254268535,null,"Total",null,null,24.802614645711326,324.78673904193352,163.96876333848402,28.31460342356042,137.82523288269491,103.54792290841273,68.304679481844175,82.203472109667075,21.78208642603791,19.038220936725288,12.399092898201555,59.22626908618431]
[]
[]
[null,"Table A 5.4.2a:",null,null,2030,"Marginal External Costs & Indirect Tax - Cars (pence per vehicle km, 2023 prices, 1 d.p.)",null,null,null,null,null,null,null,null,null,null,null,"Table A 5.4.2b:",null,null,2030,"Marginal External Costs & Indirect Tax - LGVs (pence per vehicle km, 2023 prices, 1 d.p.)",null,null,null,null,null,null,null,null,null,null,null,"Table A 5.4.2c:",null,null,2030,"Marginal External Costs & Indirect Tax - Rigids (pence per vehicle km, 2023 prices, 1 d.p.)",null,null,null,null,null,null,null,null,null,null,null,"Table A 5.4.2d:",null,null,2030,"Marginal External Costs & Indirect Tax - Artics (pence per vehicle km, 2023 prices, 1 d.p.)",null,null,null,null,null,null,null,null,null,null,null,"Table A 5.4.2e:",null,null,2030,"Marginal External Costs & Indirect Tax - PSVs (pence per vehicle km, 2023 prices, 1 d.p.)"]
[null,null,null,"Congestion band","London",null,null,"Inner and Outer Conurbations",null,null,"Other Urban",null,"Rural",null,null,"Weighted Average",null,null,null,"Congestion band","London",null,null,"Inner and Outer Conurbations",null,null,"Other Urban",null,"Rural",null,null,"Weighted Average",null,null,null,"Congestion band","London",null,null,"Inner and Outer Conurbations",null,null,"Other Urban",null,"Rural",null,null,"Weighted Average",null,null,null,"Congestion band","London",null,null,"Inner and Outer Conurbations",null,null,"Other Urban",null,"Rural",null,null,"Weighted Average",null,null,null,"Congestion band","London",null,null,"Inner and Outer Conurbations",null,null,"Other Urban",null,"Rural",null,null,"Weighted Average"]
[null,"Cost type",null,null,"Motorways","A roads","Other Rds","Motorways","A roads","Other Rds","A roads","Other Rds","Motorways","A roads","Other Rds",null,null,"Cost type",null,null,"Motorways","A roads","Other Rds","Motorways","A roads","Other Rds","A roads","Other Rds","Motorways","A roads","Other Rds",null,null,"Cost type",null,null,"Motorways","A roads","Other Rds","Motorways","A roads","Other Rds","A roads","Other Rds","Motorways","A roads","Other Rds",null,null,"Cost type",null,null,"Motorways","A roads","Other Rds","Motorways","A roads","Other Rds","A roads","Other Rds","Motorways","A roads","Other Rds",null,null,"Cost type",null,null,"Motorways","A roads","Other Rds","Motorways","A roads","Other Rds","A roads","Other Rds","Motorways","A roads","Other Rds"]
[null,"Congestion*",null,1,5.8676017954694813E-2,1.7318212429182107,11.787548035088053,7.8141118924662273E-2,1.396583505563334,3.288123986369083,0.91107359765642626,3.7371347730826523,5.965899910340678E-2,0.91495727759767354,0.92385230918138539,1.9418517440457546,null,"Congestion*",null,1,5.8676017954694813E-2,1.7318212429182107,11.787548035088053,7.8141118924662273E-2,1.396583505563334,3.288123986369083,0.91107359765642626,3.7371347730826523,5.965899910340678E-2,0.91495727759767354,0.92385230918138539,1.9418517440457546,null,"Congestion*",null,1,0.11148443411392016,3.2904603615446004,22.396341266667299,0.14846812595685829,2.6535086605703344,6.2474355741012575,1.7310398355472099,7.1005560688570393,0.11335209829647287,1.7384188274355794,1.7553193874446322,3.6895183136869338,null,"Congestion*",null,1,0.17016045206861496,5.0222816044628109,34.18388930175535,0.22660924488152062,4.050092166133668,9.5355595604703414,2.6421134332036362,10.837690841939692,0.17301109739987966,2.6533761050332529,2.6791716966260175,5.6313700577326884,null,"Congestion*",null,1,0.14669004488673706,4.3295531072955269,29.468870087720138,0.19535279731165567,3.491458763908335,8.2203099659227075,2.2776839941410656,9.3428369327066303,0.14914749775851693,2.2873931939941836,2.3096307729534638,4.8546293601143864]
[null,null,null,2,0.19854756196654211,5.3640843085627754,32.031515838000971,0.250786615365506,4.8423666931718996,13.457439447318258,2.9714364674970124,14.312931627381039,0.20937675816814255,2.6449768504073017,4.9140947949950409,5.0600292162328877,null,null,null,2,0.19854756196654211,5.3640843085627754,32.031515838000971,0.250786615365506,4.8423666931718996,13.457439447318258,2.9714364674970124,14.312931627381039,0.20937675816814255,2.6449768504073017,4.9140947949950409,5.0600292162328877,null,null,null,2,0.37724036773643005,10.191760186269272,60.859880092201841,0.47649456919446137,9.2004967170266099,25.569134949904694,5.6457292882443237,27.194570092023973,0.39781584051947089,5.025456015773873,9.3367801104905777,9.6140555108424852,null,null,null,2,0.5757879297029721,15.555844494832048,92.891395930202819,0.72728118455996738,14.042863410198507,39.026574397222944,8.6171657557413361,41.507501719405013,0.60719259868761344,7.6704328661811729,14.250874905485619,14.674084727075375,null,null,null,2,0.49636890491635527,13.410210771406938,80.078789595002434,0.62696653841376504,12.105916732929749,33.643598618295648,7.428591168742531,35.782329068452604,0.52344189542035635,6.6124421260182533,12.285236987487602,12.650073040582219]
[null,null,null,3,6.0852335719962198,44.229154167969831,68.514694454234814,7.4184059594972007,31.636691481641066,31.214537516760327,17.398078844805131,31.85179090680656,6.5780066046892136,7.8649077536835428,14.665315662310118,16.322260229938792,null,null,null,3,6.0852335719962198,44.229154167969831,68.514694454234814,7.4184059594972007,31.636691481641066,31.214537516760327,17.398078844805131,31.85179090680656,6.5780066046892136,7.8649077536835428,14.665315662310118,16.322260229938792,null,null,null,3,11.561943786792819,84.03539291914268,130.17791946304615,14.094971323044682,60.109713815118027,59.307621281844604,33.056349805129749,60.518402722932471,12.498212548909505,14.943324731998732,27.864099758389223,31.012294436883703,null,null,null,3,17.64717735878904,128.2645470871125,198.69261391728097,21.513377282541882,91.746405296759093,90.52215879860492,50.454428649934876,92.37019362973902,19.076219153598718,22.808232485682272,42.529415420699337,47.334554666822505,null,null,null,3,15.21308392999055,110.57288541992457,171.28673613558703,18.546014898743003,79.091728704102664,78.036343791900805,43.495197112012825,79.629477267016398,16.445016511723036,19.662269384208859,36.663289155775288,40.805650574846979]
[null,null,null,4,31.117345157169773,152.25141101788719,168.81388087041566,39.598739325341654,120.90058403621011,127.88751804081417,65.891634815343025,173.55915714795404,38.720275731077308,70.065137037915349,68.464089054415055,88.27632588812034,null,null,null,4,31.117345157169773,152.25141101788719,168.81388087041566,39.598739325341654,120.90058403621011,127.88751804081417,65.891634815343025,173.55915714795404,38.720275731077308,70.065137037915349,68.464089054415055,88.27632588812034,null,null,null,4,59.12295579862257,289.27768093398566,320.74637365378976,75.237604718149143,229.7111096687992,242.98628427754696,125.19410614915176,329.76239858111262,73.568523889046872,133.12376037203916,130.0817692033886,167.72501918742864,null,null,null,4,90.24030095579235,441.52909195187289,489.56025452420533,114.8363440434908,350.61169370500932,370.87380231836113,191.08574096449476,503.32155572906669,112.28879962012418,203.18889740995448,198.54585825780367,256.00134507554895,null,null,null,4,77.793362892924435,380.628527544718,422.03470217603916,98.99684831335415,302.25146009052531,319.71879510203547,164.72908703835756,433.89789286988508,96.800689327693263,175.16284259478837,171.16022263603764,220.69081472030086]
[null,null,null,5,91.600139062825079,400.78570353205265,337.89060276438875,103.17228342517687,357.48943324641493,360.76741963684418,133.90695586303127,661.46407103969636,138.87690295736635,198.63496974752945,166.73540787563448,309.68399954236145,null,null,null,5,91.600139062825079,400.78570353205265,337.89060276438875,103.17228342517687,357.48943324641493,360.76741963684418,133.90695586303127,661.46407103969636,138.87690295736635,198.63496974752945,166.73540787563448,309.68399954236145,null,null,null,5,174.04026421936771,761.49283671090006,641.99214525233856,196.02733850783602,679.22992316818829,685.45809731000384,254.42321613975935,1256.781734975423,263.86611561899605,377.40644252030597,316.79727496370549,588.39959913048676,null,null,null,5,265.64040328219278,1162.2785402429527,979.88274801672719,299.19962193301291,1036.7193564146032,1046.2255169468481,388.33017200279068,1918.2458060151196,402.74301857636243,576.04141226783543,483.53268283933994,898.08359867284821,null,null,null,5,229.00034765706272,1001.9642588301316,844.72650691097192,257.93070856294219,893.72358311603728,901.91854909211054,334.76738965757812,1653.660177599241,347.1922573934159,496.58742436882375,416.83851968908613,774.20999885590356]
[null,null,null,"Average",6.4221327219641893,145.51075402453941,62.547189669917515,10.039918680976671,59.265572091393956,41.092185140868217,27.512006330995789,31.188447568816535,8.2753899402567583,5.4780437201109455,2.3574290200152435,22.448265978220075,null,null,null,"Average",6.4221327219641893,145.51075402453941,62.547189669917515,10.039918680976671,59.265572091393956,41.092185140868217,27.512006330995789,31.188447568816535,8.2753899402567583,5.4780437201109455,2.3574290200152435,22.448265978220075,null,null,null,"Average",12.20205217173196,276.47043264662489,118.83966037284328,19.07584549385567,112.60458697364852,78.075151767649601,52.272812028891998,59.258050380751428,15.72324088648784,10.408283068210796,4.4791151380289618,42.651705358618138,null,null,null,"Average",18.62418489369615,421.98118667116432,181.38685004276081,29.115764174832339,171.87015906504246,119.16733690851781,79.784818359887794,90.446497949567956,23.998630826744598,15.886326788321741,6.8365441580442061,65.099971336838223,null,null,null,"Average",16.055331804910473,363.77688506134854,156.36797417479377,25.099796702441676,148.16393022848487,102.73046285217053,68.780015827489478,77.971118922041342,20.688474850641896,13.695109300277364,5.8935725500381082,56.120664945550189]
[null,"Infrastructure",null,"All",0,0.16749520623334221,0.16749520623334221,0,0.16749520623334221,0.16749520623334221,0.16749520623334221,0.16749520623334221,0,0.16749520623334221,0.16749520623334221,0.13420951261011252,null,"Infrastructure",null,"All",0,0.16749520623334221,0.16749520623334221,0,0.16749520623334221,0.16749520623334221,0.16749520623334221,0.16749520623334221,0,0.16749520623334221,0.16749520623334221,0.13555586416094118,null,"Infrastructure",null,"All",1.5074568561000798,8.0397698992004258,33.666536452901788,1.5074568561000798,6.0298274244003194,33.666536452901788,5.8623322181669772,33.666536452901788,1.5074568561000798,5.0248561870002657,33.666536452901788,9.5253570329401924,null,"Infrastructure",null,"All",6.0298274244003194,28.139194647201492,138.68603076120732,6.0298274244003194,21.271891191634456,138.68603076120732,20.936900779167775,138.68603076120732,6.0298274244003194,18.256977479434301,138.68603076120732,14.01081808886101,null,"Infrastructure",null,"All",0,0,0,0,0,0,0,0,0,0,0,0]
[null,"Accident",null,"All",0,5.4682272297158336,5.4682272297158336,0,5.4682272297158336,5.4682272297158336,5.4682272297158336,5.4682272297158336,0,1.2759196869336944,1.2759196869336944,2.8343563257573003,null,"Accident",null,"All",0,5.4682272297158336,5.4682272297158336,0,5.4682272297158336,5.4682272297158336,5.4682272297158336,5.4682272297158336,0,1.2759196869336944,1.2759196869336944,2.7527245340796291,null,"Accident",null,"All",0.5468227229715833,5.8327757116968897,5.8327757116968897,0.5468227229715833,5.8327757116968897,5.8327757116968897,5.8327757116968897,5.8327757116968897,0.5468227229715833,6.1973241936779448,6.1973241936779448,4.3389452369780201,null,"Accident",null,"All",0.5468227229715833,5.8327757116968897,5.8327757116968897,0.5468227229715833,5.8327757116968897,5.8327757116968897,5.8327757116968897,5.8327757116968897,0.5468227229715833,6.1973241936779448,6.1973241936779448,2.8245465410739068,null,"Accident",null,"All",0,0,0,0,0,0,0,0,0,0,0,0]
[null,"Local Air Quality",null,"All",0.66344273099274387,0.85403767400803099,0.88655858575579227,0.3142229611696255,0.32780182167123589,0.34816902620395207,0.19169044059992843,0.20695735992959785,8.9775900720465013E-2,7.1068754759524219E-2,7.0816992601247394E-2,0.19742404787767281,null,"Local Air Quality",null,"All",2.262189176402837,1.9476525238394538,2.1193248883013043,0.98349501359902103,0.75867511258280906,0.80445808038164879,0.45451543946370504,0.4827924927920822,0.32061141580701058,0.22120666012604559,0.18971129639758405,0.4987855965379101,null,"Local Air Quality",null,"All",2.1498192230576878,5.0265131684002986,6.9384408154490913,1.0561179849326479,1.5591002858561449,1.9411691475332944,0.80844612338716493,1.0756136076872762,0.28802488265536758,0.25452477029326054,0.2874920297086217,0.83309429443664273,null,"Local Air Quality",null,"All",2.8198919674138447,5.5305822187514577,7.0052687083728236,1.3141858084684575,1.7419336065875002,2.1366934062653491,1.0213927965759766,1.3037893462347125,0.37667922912512231,0.32457801186750906,0.3599082549632438,0.63874898204017294,null,"Local Air Quality",null,"All",2.1970400580053489,5.2351710423706805,5.5637247692302125,1.2300041727474409,1.8340119377121287,2.0880063912749351,0.85899979739477217,1.1632960747768191,0.29522043151087518,0.26656241388417412,0.30511848956385001,1.5561781158092829]
[null,"Noise",null,"All",0.36454848198105561,0.36454848198105561,0.36454848198105561,0.36454848198105561,0.36454848198105561,0.36454848198105561,0.36454848198105561,0.36454848198105561,0,0,0.1822742409905278,0.20016455942025721,null,"Noise",null,"All",0.36454848198105561,0.36454848198105561,0.36454848198105561,0.36454848198105561,0.36454848198105561,0.36454848198105561,0.36454848198105561,0.36454848198105561,0,0,0.1822742409905278,0.19590711372282943,null,"Noise",null,"All",8.931437808535863,10.754180218441139,12.941471110327472,9.2959862905169164,9.1137120495263897,9.1137120495263897,8.0200666035832242,8.0200666035832242,1.64046816891475,1.64046816891475,2.0050166508958061,4.4119716698886835,null,"Noise",null,"All",17.680601376081192,21.326086195891747,25.882942220654943,18.409698340043306,18.227424099052779,18.227424099052779,15.857858966175913,16.040133207166448,3.2809363378295,3.2809363378295,4.1923075427821379,6.7607894782737104,null,"Noise",null,"All",0,0,0,0,0,0,0,0,0,0,0,0]
[null,"Greenhouse Gases",null,"All",3.5427573693485312,4.0494162052058655,4.9262567658409777,3.4761463999858822,3.6806262798816749,4.1339906153185106,3.3842119659290355,3.929161768361368,3.5469923906194762,3.3067463294930866,3.2720235525142858,3.5853706215038743,null,"Greenhouse Gases",null,"All",8.1292984649955518,7.2756696846531179,8.7372564185242396,7.6416272108612757,6.4501272912772034,7.2448924843112534,5.9781504520122049,6.9109903794815031,8.0713105506197156,6.5010768305416411,5.8208088703731748,6.7960443819942711,null,"Greenhouse Gases",null,"All",18.982839813083778,21.46916811429513,26.671863910154368,18.97838530105517,22.179266577506091,25.218749117432633,20.304464432101689,23.936958072241111,19.023645864633991,18.765049044263534,19.206993443610067,19.892129226465702,null,"Greenhouse Gases",null,"All",23.251531593218377,36.064303579155442,46.089309566690403,23.556217869288467,31.260253913150983,37.008135496721778,29.356509970526545,35.625289277031378,23.398779784288202,24.164390980777942,26.284235106928222,24.476399781466405,null,"Greenhouse Gases",null,"All",23.897102734840956,32.952517183061701,39.172255336370952,24.821689347031626,30.488501202668093,34.191156917207074,26.04873265782631,32.045211223766465,24.013003694700558,23.831927965669578,24.953552398140175,28.965758378041304]
[null,"Indirect Taxation",null,"All",-1.0220379572053655,-1.3282903928907193,-1.8583010004187979,-0.9817746277873467,-1.1053735011017134,-1.3794118127902093,-0.9262044050641568,-1.2556020046120866,-1.0245978367290522,-0.87937991852326514,-0.85839156448514298,-1.0477957479344362,null,"Indirect Taxation",null,"All",-4.6411154837292878,-4.1323710261144786,-5.003445393923375,-4.350473868319658,-3.6403654531679086,-4.1140284743456128,-3.3590773726485263,-3.9150299762514997,-4.6065559295920497,-3.6707302865893077,-3.2653051622280986,-3.8465246253386867,null,"Indirect Taxation",null,"All",-15.111462415036698,-17.090726689779252,-21.232380033016547,-15.107916360191346,-17.656007034735424,-20.075614776017769,-16.163553722434816,-19.05523334762939,-15.143946443789979,-14.938088091185499,-15.289901952863771,-15.835310528912737,null,"Indirect Taxation",null,"All",-18.509593360250687,-28.709317121522279,-36.689814385516321,-18.752141643571139,-24.885009658433457,-29.460663110260246,-23.369516965027557,-28.359835790407697,-18.626811623005036,-19.236283384564743,-20.923804596010527,-19.484660830257276,null,"Indirect Taxation",null,"All",-15.961036333450854,-22.104898063877318,-26.324827635504864,-16.58834415415685,-20.433127702436376,-22.945282709319653,-17.420860929824528,-21.489314713940516,-16.039672101683536,-15.916816958137774,-16.677809783587239,-19.399986544844825]
[null,"Total",null,null,9.9708433470811553,155.08618842879284,72.5019749390257,13.213061896325886,68.168897609775371,50.195203887530703,36.161975250390832,40.06923561042565,10.887560394867648,9.4198937790073263,6.4675671348031969,28.351995297454852,null,"Total",null,null,12.537053361614348,156.60197612484777,74.400596500749899,14.679115519098362,68.834279960016275,51.027778149145739,36.585865767753397,40.667471382768866,12.060755977091432,9.9730118173563618,6.7283331587154676,28.980758843376965,null,"Total",null,null,29.208966180444254,310.50211306887957,183.65836834035636,35.35269828924072,139.66326198789895,133.7724794707228,76.937343395393128,112.73476748123232,23.585712937973639,27.352417341175055,50.552575955959412,65.817892290414648,null,"Total",null,null,50.443266617530782,490.16481190233907,368.19336262586683,60.220374696433339,225.31942792873164,291.5977332732017,129.42073961900334,259.57468046249704,39.00486470235429,48.874250407344199,161.63254542159257,94.32661337829613,null,"Total",null,null,26.188438264305923,379.8596752229036,174.77912664489006,34.563146068063887,160.05331566642874,116.06434345133286,78.26688735288603,89.690311506644122,28.957026875169799,21.876782721693342,14.474433654154893,67.242614894555956]
[]
[]
[null,"Table A 5.4.2a:",null,null,2035,"Marginal External Costs & Indirect Tax - Cars (pence per vehicle km, 2023 prices, 1 d.p.)",null,null,null,null,null,null,null,null,null,null,null,"Table A 5.4.2b:",null,null,2035,"Marginal External Costs & Indirect Tax - LGVs (pence per vehicle km, 2023 prices, 1 d.p.)",null,null,null,null,null,null,null,null,null,null,null,"Table A 5.4.2c:",null,null,2035,"Marginal External Costs & Indirect Tax - Rigids (pence per vehicle km, 2023 prices, 1 d.p.)",null,null,null,null,null,null,null,null,null,null,null,"Table A 5.4.2d:",null,null,2035,"Marginal External Costs & Indirect Tax - Artics (pence per vehicle km, 2023 prices, 1 d.p.)",null,null,null,null,null,null,null,null,null,null,null,"Table A 5.4.2e:",null,null,2035,"Marginal External Costs & Indirect Tax - PSVs (pence per vehicle km, 2023 prices, 1 d.p.)"]
[null,null,null,"Congestion band","London",null,null,"Inner and Outer Conurbations",null,null,"Other Urban",null,"Rural",null,null,"Weighted Average",null,null,null,"Congestion band","London",null,null,"Inner and Outer Conurbations",null,null,"Other Urban",null,"Rural",null,null,"Weighted Average",null,null,null,"Congestion band","London",null,null,"Inner and Outer Conurbations",null,null,"Other Urban",null,"Rural",null,null,"Weighted Average",null,null,null,"Congestion band","London",null,null,"Inner and Outer Conurbations",null,null,"Other Urban",null,"Rural",null,null,"Weighted Average",null,null,null,"Congestion band","London",null,null,"Inner and Outer Conurbations",null,null,"Other Urban",null,"Rural",null,null,"Weighted Average"]
[null,"Cost type",null,null,"Motorways","A roads","Other Rds","Motorways","A roads","Other Rds","A roads","Other Rds","Motorways","A roads","Other Rds",null,null,"Cost type",null,null,"Motorways","A roads","Other Rds","Motorways","A roads","Other Rds","A roads","Other Rds","Motorways","A roads","Other Rds",null,null,"Cost type",null,null,"Motorways","A roads","Other Rds","Motorways","A roads","Other Rds","A roads","Other Rds","Motorways","A roads","Other Rds",null,null,"Cost type",null,null,"Motorways","A roads","Other Rds","Motorways","A roads","Other Rds","A roads","Other Rds","Motorways","A roads","Other Rds",null,null,"Cost type",null,null,"Motorways","A roads","Other Rds","Motorways","A roads","Other Rds","A roads","Other Rds","Motorways","A roads","Other Rds"]
[null,"Congestion*",null,1,7.7850664471590711E-2,1.8989017397739927,12.121541330818419,9.7918870109860806E-2,1.5429002534811158,3.4462030891807398,0.99139538534842853,3.9274403032205463,8.08999607177356E-2,1.0320529404776377,1.0047741993108135,2.0562977720202005,null,"Congestion*",null,1,7.7850664471590711E-2,1.8989017397739927,12.121541330818419,9.7918870109860806E-2,1.5429002534811158,3.4462030891807398,0.99139538534842853,3.9274403032205463,8.08999607177356E-2,1.0320529404776377,1.0047741993108135,2.0562977720202005,null,"Congestion*",null,1,0.14791626249602233,3.607913305570587,23.030928528554995,0.18604585320873554,2.93151048161412,6.5477858694434055,1.8836512321620138,7.4621365761190388,0.15370992536369762,1.9609005869075113,1.9090709786905455,3.9069657668383813,null,"Congestion*",null,1,0.22576692696761308,5.5068150453445792,35.152469859373412,0.28396472331859629,4.4744107350952351,9.9939889586241453,2.8750466175104421,11.389576879339584,0.23460988608143321,2.9929535273851489,2.9138451780013592,5.9632635388585822,null,"Congestion*",null,1,0.19462666117897681,4.7472543494349821,30.303853327046046,0.244797175274652,3.8572506337027894,8.6155077229518504,2.4784884633710713,9.8186007580513657,0.20224990179433899,2.5801323511940941,2.5119354982770341,5.1407444300505007]
[null,null,null,2,0.25518464748896091,5.7153803983030587,35.117052518442151,0.31038682798032119,5.1115989300672267,14.208166035079328,3.1025691563458704,15.053039279068262,0.26689855086631514,2.8413473260412356,5.2740374678122031,5.5849621319618743,null,null,null,2,0.25518464748896091,5.7153803983030587,35.117052518442151,0.31038682798032119,5.1115989300672267,14.208166035079328,3.1025691563458704,15.053039279068262,0.26689855086631514,2.8413473260412356,5.2740374678122031,5.5849621319618743,null,null,null,2,0.4848508302290257,10.859222756775811,66.722399785040068,0.58973497316261025,9.7120379671277295,26.995515466650719,5.8948813970571532,28.600774630229694,0.50710724664599871,5.3985599194783473,10.020671188843187,10.611428050727561,null,null,null,2,0.74003547771798661,16.574603155078869,101.83945230348222,0.9001218011429315,14.823636897194959,41.203681501730046,8.9974505534030236,43.653813909297959,0.77400579751231391,8.2399072455195839,15.294708656655388,16.196390182689434,null,null,null,2,0.6379616187224022,14.288450995757648,87.79263129610537,0.775967069950803,12.778997325168067,35.520415087698311,7.7564228908646768,37.63259819767066,0.66724637716578783,7.1033683151030891,13.185093669530508,13.962405329904685]
[null,null,null,3,7.0667141790434531,45.945208326471231,71.392688328731069,8.7765616229761445,32.891463262317892,32.867830525652188,18.618736028497519,33.695318683865075,8.9166469773452377,8.3262134290669536,15.226650438702475,17.633610621272368,null,null,null,3,7.0667141790434531,45.945208326471231,71.392688328731069,8.7765616229761445,32.891463262317892,32.867830525652188,18.618736028497519,33.695318683865075,8.9166469773452377,8.3262134290669536,15.226650438702475,17.633610621272368,null,null,null,3,13.42675694018256,87.295895820295328,135.64610782458902,16.675467083654674,62.493780198403996,62.448877998739164,35.375598454145283,64.021105499343633,16.941629256955949,15.819805515227211,28.930635833534701,33.503860180417497,null,null,null,3,20.493471119226012,133.24110414676656,207.03879615332011,25.45202870663082,95.385243460721895,95.316708524391359,53.994334482642806,97.71642418320873,25.858276234301186,24.146018944294166,44.157286272237172,51.137470801689858,null,null,null,3,17.666785447608632,114.86302081617805,178.48172082182768,21.941404057440362,82.228658155794747,82.169576314130481,46.5468400712438,84.238296709662691,22.291617443363094,20.815533572667384,38.066626096756181,44.084026553180919]
[null,null,null,4,36.139041048336047,157.96542976705504,175.76353420982676,40.697440257726328,120.07465560518382,131.86776064803044,67.383578802590606,182.12199015910755,41.957684923904587,72.826746740017882,70.840120503206478,88.004251912845092,null,null,null,4,36.139041048336047,157.96542976705504,175.76353420982676,40.697440257726328,120.07465560518382,131.86776064803044,67.383578802590606,182.12199015910755,41.957684923904587,72.826746740017882,70.840120503206478,88.004251912845092,null,null,null,4,68.664177991838486,300.13431655740459,333.95071499867083,77.32513648968002,228.14184564984927,250.54874523125784,128.02879972492212,346.0317813023043,79.719601355418703,138.37081880603398,134.59622895609232,167.20807863440564,null,null,null,4,104.80321904017454,458.09974632445966,509.71424920849762,118.02257674740635,348.21650125503305,382.41650587928825,195.41237852751271,528.15377146141191,121.67728627932331,211.19756554605183,205.43634945929875,255.21233054725073,null,null,null,4,90.347602620840121,394.91357441763762,439.40883552456694,101.74360064431582,300.18663901295957,329.66940162007609,168.45894700647651,455.30497539776889,104.89421230976149,182.0668668500447,177.10030125801617,220.01062978211272]
[null,null,null,5,106.38250689140129,468.4685396943334,370.04305765007746,111.09326791255377,401.11415092318845,391.87219643291348,147.03926359398511,705.78081528202654,158.51453119686184,212.42802571009807,179.23519709543865,339.24537083555509,null,null,null,5,106.38250689140129,468.4685396943334,370.04305765007746,111.09326791255377,401.11415092318845,391.87219643291348,147.03926359398511,705.78081528202654,158.51453119686184,212.42802571009807,179.23519709543865,339.24537083555509,null,null,null,5,202.1267630936625,890.09022541923355,703.08180953514704,211.07720903385217,762.11688675405787,744.55717322253554,279.37460082857172,1340.9835490358505,301.17760927403754,403.61324884918633,340.54687448133348,644.56620458755458,null,null,null,5,308.50926998506378,1358.558765113567,1073.1248671852245,322.17047694640598,1163.2310376772464,1136.4293696554489,426.4138644225568,2046.7643643178769,459.6921404708994,616.04127455928437,519.78207157677218,983.81157542310973,null,null,null,5,265.95626722850324,1171.1713492358335,925.10764412519347,277.73316978138445,1002.7853773079711,979.68049108228354,367.59815898496282,1764.4520382050664,396.28632799215461,531.07006427524516,448.08799273859665,848.11342708888787]
[null,null,null,"Average",9.2295280818043395,173.49930141356813,69.748012838792405,12.543172250073377,68.466888353942139,45.641756377707509,31.952771288211562,33.398749907078205,11.273232532399227,6.3264753157361273,2.6464861176337888,25.810978390864115,null,null,null,"Average",9.2295280818043395,173.49930141356813,69.748012838792405,12.543172250073377,68.466888353942139,45.641756377707509,31.952771288211562,33.398749907078205,11.273232532399227,6.3264753157361273,2.6464861176337888,25.810978390864115,null,null,null,"Average",17.536103355428242,329.64867268577939,132.52122439370558,23.832027275139417,130.08708787249003,86.719337117644258,60.710265447601969,63.457624823448583,21.419141811558532,12.020303099898641,5.0283236235041988,49.040858942641819,null,null,null,"Average",26.765631437232582,503.14797409934755,202.26923723249797,36.375199525212786,198.55397622643218,132.36109349535175,92.663036735813535,96.856374730526781,32.692374343957752,18.34677841563477,7.674809741137989,74.851837333505927,null,null,null,"Average",23.073820204510849,433.74825353392026,174.37003209698102,31.357930625183439,171.16722088485534,114.10439094426874,79.881928220528906,83.496874767695516,28.183081330998068,15.816188289340317,6.6162152940844727,64.527445977160298]
[null,"Infrastructure",null,"All",0,0.18058673518888854,0.18058673518888854,0,0.18058673518888854,0.18058673518888854,0.18058673518888854,0.18058673518888854,0,0.18058673518888854,0.18058673518888854,0.14404946636633056,null,"Infrastructure",null,"All",0,0.18058673518888854,0.18058673518888854,0,0.18058673518888854,0.18058673518888854,0.18058673518888854,0.18058673518888854,0,0.18058673518888854,0.18058673518888854,0.14619924610526755,null,"Infrastructure",null,"All",1.6252806166999967,8.668163289066646,36.297933772966594,1.6252806166999967,6.5011224667999867,36.297933772966594,6.3205357316110984,36.297933772966594,1.6252806166999967,5.4176020556666558,36.297933772966594,10.18938702063406,null,"Infrastructure",null,"All",6.5011224667999867,30.338571511733271,149.52581673639969,6.5011224667999867,22.934515368988844,149.52581673639969,22.573341898611062,149.52581673639969,6.5011224667999867,19.683954135588849,149.52581673639969,14.962346283202505,null,"Infrastructure",null,"All",0,0,0,0,0,0,0,0,0,0,0,0]
[null,"Accident",null,"All",0,6.0373647118647691,6.0373647118647691,0,6.0373647118647691,6.0373647118647691,6.0373647118647691,6.0373647118647691,0,1.4087184327684463,1.4087184327684463,3.1073672406469619,null,"Accident",null,"All",0,6.0373647118647691,6.0373647118647691,0,6.0373647118647691,6.0373647118647691,6.0373647118647691,6.0373647118647691,0,1.4087184327684463,1.4087184327684463,3.0400428430643229,null,"Accident",null,"All",0.60373647118647689,6.4398556926557546,6.4398556926557546,0.60373647118647689,6.4398556926557546,6.4398556926557546,6.4398556926557546,6.4398556926557546,0.60373647118647689,6.8423466734467384,6.8423466734467384,4.7572488860786786,null,"Accident",null,"All",0.60373647118647689,6.4398556926557546,6.4398556926557546,0.60373647118647689,6.4398556926557546,6.4398556926557546,6.4398556926557546,6.4398556926557546,0.60373647118647689,6.8423466734467384,6.8423466734467384,3.0831505095078815,null,"Accident",null,"All",0,0,0,0,0,0,0,0,0,0,0,0]
[null,"Local Air Quality",null,"All",0.5912907328855217,0.75042581835312361,0.75469431251042007,0.28137227217531674,0.29147617806314707,0.30303267662454164,0.17254312452203599,0.18084986758151381,7.8152587350961991E-2,6.0230947576008928E-2,6.0192942983621142E-2,0.17210773316902825,null,"Local Air Quality",null,"All",1.6450380880213156,1.6037165678905843,1.7090409562308109,0.73030796035832368,0.61143045446181576,0.64316399233157973,0.36625125831591621,0.38588672816102937,0.22824969731149336,0.16154677903802048,0.14322537683732869,0.38844442943684332,null,"Local Air Quality",null,"All",2.3479340873828578,5.3724163489747863,7.2229207933670452,1.153776357446386,1.7069183427188739,2.0948313727087515,0.88106184246692909,1.1565873413753087,0.31442416532876843,0.27622236804672512,0.31060089435452187,0.89338840970554201,null,"Local Air Quality",null,"All",3.111306612962613,5.618911103342997,6.8583599730116012,1.4520132723265275,1.9371736109976618,2.3620835344951079,1.1347217890264569,1.4340076921619336,0.41606684613355893,0.35773886833645319,0.39657034511948114,0.70007268966061276,null,"Local Air Quality",null,"All",2.3141126977661703,5.8637261611396667,6.1099861578461798,1.2833081143556437,1.8636566212878372,2.0763424254872191,0.88204671656522982,1.1600397848261754,0.30901336582776312,0.27047784766926608,0.30786787948962901,1.644650628639621]
[null,"Noise",null,"All",0.40249098079098466,0.40249098079098466,0.40249098079098466,0.40249098079098466,0.40249098079098466,0.40249098079098466,0.40249098079098466,0.40249098079098466,0,0,0.20124549039549233,0.21956933293044847,null,"Noise",null,"All",0.40249098079098466,0.40249098079098466,0.40249098079098466,0.40249098079098466,0.40249098079098466,0.40249098079098466,0.40249098079098466,0.40249098079098466,0,0,0.20124549039549233,0.21630234603345705,null,"Noise",null,"All",9.8610290293791252,11.873483933334047,14.288429818079953,10.263520010170106,10.062274519774615,10.062274519774615,8.8548015774016626,8.8548015774016626,1.8112094135594308,1.8112094135594308,2.2137003943504157,4.8507491238244436,null,"Noise",null,"All",19.520812568362754,23.5457223762726,28.576859636159906,20.325794529944723,20.12454903954923,20.12454903954923,17.508357664407828,17.709603154803325,3.6224188271188615,3.6224188271188615,4.6286462790963228,7.4475954204333439,null,"Noise",null,"All",0,0,0,0,0,0,0,0,0,0,0,0]
[null,"Greenhouse Gases",null,"All",2.7595687976058372,3.2455273803071063,3.9264911809932967,2.7133646426237559,2.9205760091174451,3.2764893265113053,2.6667160514294546,3.1016669834468233,2.7592932004316246,2.5902499657952287,2.5660534811558602,2.8185996406087357,null,"Greenhouse Gases",null,"All",6.9745832985618197,6.4490044423148989,7.6637744287894041,6.5742917108940295,5.665045775681202,6.3383945821728824,5.2241731116461718,6.0275822378935207,6.9076306180499003,5.6518243703549773,5.0644134630948114,5.9045424232348562,null,"Greenhouse Gases",null,"All",18.784544178617359,21.69644484776601,26.576243156704304,18.80795630487718,22.204199159948772,25.098064825464121,20.233442695392171,23.741933596279782,18.837885206867057,18.603069187639544,19.042396411888934,19.751484743337787,null,"Greenhouse Gases",null,"All",21.551534202302502,34.063167893693453,42.894933475858664,21.851729173889904,29.21954607978881,34.417004944644709,27.437777467777902,33.008160662975392,21.70664767276649,22.375642912599588,24.345194518580513,22.70034372454165,null,"Greenhouse Gases",null,"All",25.261173587008571,35.627757539533036,41.730471061203538,26.287908494956138,32.677097535048226,36.365413575524038,27.625228393298009,33.91850659735298,25.395385724757485,25.143584722322693,26.339370828264894,30.778938273806677]
[null,"Indirect Taxation",null,"All",0.6830073550188841,0.51297055134882008,0.27470146380627791,0.69917417891930467,0.62667096630632324,0.50213697302471239,0.71549651095488553,0.56330727329918961,0.68310378641092395,0.742251977888161,0.75071832266441774,0.66235247573602885,null,"Indirect Taxation",null,"All",-2.4766248579053967,-2.2740623473838815,-2.7422449145510415,-2.322349114170879,-1.9719180853555485,-2.2314323772233728,-1.8020020535635681,-2.1116426862759758,-2.4508207318652357,-1.9668224445707827,-1.740429341674651,-2.0642221071276174,null,"Indirect Taxation",null,"All",-13.670554661228353,-15.789706283282461,-19.341006164918497,-13.687592964033421,-16.159227258248155,-18.265253807868238,-14.724998473322,-17.278321896181691,-13.709373885982483,-13.538485244998808,-13.858208032848168,-14.374250940386224,null,"Indirect Taxation",null,"All",-15.684246769281705,-24.789656549420204,-31.2170222069579,-15.902715300063671,-21.264684309706528,-25.047163396549522,-19.967992467064803,-24.021869272902755,-15.797131444922892,-16.283996385976423,-17.71734832849101,-16.520299175971825,null,"Indirect Taxation",null,"All",-15.316942297249438,-21.625613594609252,-25.339470908309671,-15.941770405855923,-19.829964790354129,-22.074520339868126,-16.755607605910914,-20.585434649616417,-15.398618215281015,-15.245382610960275,-15.973088238859248,-18.674824109098552]
[null,"Total",null,null,13.665885948105567,184.62866759142184,81.324342223947042,16.639574324582739,78.926053935273686,56.343857781712707,42.127969402962584,43.86501645925037,14.793782106592738,11.308513374952859,7.814001522790516,32.935024280321649,null,"Total",null,null,15.775015591273064,185.89840250423441,82.999025737106237,17.927913787945837,79.391888926574254,57.012325002833244,42.361636032454733,44.321018614701423,15.958292115895384,11.762329188515679,7.9042462742441062,33.442287571611239,null,"Total",null,null,37.088073077465708,367.90933051429425,204.00560146256066,42.598704071486139,160.84223079613989,148.44704349334583,88.714964513807601,122.670414907946,30.902303799217762,31.432267553258932,55.877093737663245,75.108866185836106,null,"Total",null,null,62.369896989565191,578.36454612762543,405.34804053962563,71.206880139296743,257.94493170870589,320.18324004654664,147.78909878122772,280.95194939662008,49.745235183040229,54.944883446748825,175.69603596528972,107.22504678488009,null,"Total",null,null,35.332164192036153,453.61412363998363,196.87101840772104,42.987376828639306,185.87801025083732,130.4716266054119,91.633595724481225,97.98998650025824,38.488862206302301,25.984868248372003,17.29036576297975,78.27621077050803]
[]
[]
[null,"Table A 5.4.2a:",null,null,2040,"Marginal External Costs & Indirect Tax - Cars (pence per vehicle km, 2023 prices, 1 d.p.)",null,null,null,null,null,null,null,null,null,null,null,"Table A 5.4.2b:",null,null,2040,"Marginal External Costs & Indirect Tax - LGVs (pence per vehicle km, 2023 prices, 1 d.p.)",null,null,null,null,null,null,null,null,null,null,null,"Table A 5.4.2c:",null,null,2040,"Marginal External Costs & Indirect Tax - Rigids (pence per vehicle km, 2023 prices, 1 d.p.)",null,null,null,null,null,null,null,null,null,null,null,"Table A 5.4.2d:",null,null,2040,"Marginal External Costs & Indirect Tax - Artics (pence per vehicle km, 2023 prices, 1 d.p.)",null,null,null,null,null,null,null,null,null,null,null,"Table A 5.4.2e:",null,null,2040,"Marginal External Costs & Indirect Tax - PSVs (pence per vehicle km, 2023 prices, 1 d.p.)"]
[null,null,null,"Congestion band","London",null,null,"Inner and Outer Conurbations",null,null,"Other Urban",null,"Rural",null,null,"Weighted Average",null,null,null,"Congestion band","London",null,null,"Inner and Outer Conurbations",null,null,"Other Urban",null,"Rural",null,null,"Weighted Average",null,null,null,"Congestion band","London",null,null,"Inner and Outer Conurbations",null,null,"Other Urban",null,"Rural",null,null,"Weighted Average",null,null,null,"Congestion band","London",null,null,"Inner and Outer Conurbations",null,null,"Other Urban",null,"Rural",null,null,"Weighted Average",null,null,null,"Congestion band","London",null,null,"Inner and Outer Conurbations",null,null,"Other Urban",null,"Rural",null,null,"Weighted Average"]
[null,"Cost type",null,null,"Motorways","A roads","Other Rds","Motorways","A roads","Other Rds","A roads","Other Rds","Motorways","A roads","Other Rds",null,null,"Cost type",null,null,"Motorways","A roads","Other Rds","Motorways","A roads","Other Rds","A roads","Other Rds","Motorways","A roads","Other Rds",null,null,"Cost type",null,null,"Motorways","A roads","Other Rds","Motorways","A roads","Other Rds","A roads","Other Rds","Motorways","A roads","Other Rds",null,null,"Cost type",null,null,"Motorways","A roads","Other Rds","Motorways","A roads","Other Rds","A roads","Other Rds","Motorways","A roads","Other Rds",null,null,"Cost type",null,null,"Motorways","A roads","Other Rds","Motorways","A roads","Other Rds","A roads","Other Rds","Motorways","A roads","Other Rds"]
[null,"Congestion*",null,1,9.5621134901863081E-2,1.8926222347066808,13.150941276612524,0.11581587543936356,1.6883346629172213,3.7366522788655039,1.0783734905591924,4.1259088054309876,0.10066497479848718,1.1643730340416654,1.1091340501926974,2.2237723430501273,null,"Congestion*",null,1,9.5621134901863081E-2,1.8926222347066808,13.150941276612524,0.11581587543936356,1.6883346629172213,3.7366522788655039,1.0783734905591924,4.1259088054309876,0.10066497479848718,1.1643730340416654,1.1091340501926974,2.2237723430501273,null,"Congestion*",null,1,0.18168015631353984,3.5959822459426936,24.986788425563795,0.22005016333479074,3.2078358595427208,7.0996393298444573,2.0489096320624656,7.8392267303188756,0.19126345211712562,2.2123087646791642,2.1073546953661246,4.225167451795242,null,"Congestion*",null,1,0.27730129121540292,5.4886044806493741,38.137729702176323,0.33586603877415427,4.8961705224599417,10.836291608709962,3.127283122621658,11.965135535749864,0.29192842691561283,3.37668179872083,3.2164887455588222,6.4489397948453702,null,"Congestion*",null,1,0.23905283725465767,4.7315555867667021,32.877353191531306,0.2895396885984089,4.2208366572930531,9.3416306971637599,2.6959337263979806,10.314772013577469,0.25166243699621793,2.9109325851041632,2.7728351254817438,5.5594308576253191]
[null,null,null,2,0.30367309396264291,5.8362071944994458,37.749402630886181,0.35915769005898412,5.5747754914149006,15.215130882031101,3.3593502423465904,15.874246165986067,0.31810021741592831,3.090323986286764,5.8454834697324722,6.0918114776579104,null,null,null,2,0.30367309396264291,5.8362071944994458,37.749402630886181,0.35915769005898412,5.5747754914149006,15.215130882031101,3.3593502423465904,15.874246165986067,0.31810021741592831,3.090323986286764,5.8454834697324722,6.0918114776579104,null,null,null,2,0.57697887852902141,11.088793669548947,71.723864998683737,0.68239961111206981,10.592073433688309,28.908748675859091,6.3827654604585211,30.161067715373523,0.60439041309026387,5.871615573944851,11.106418592491696,11.574441807550031,null,null,null,2,0.88065197249166427,16.925000864048393,109.47326762956992,1.0415573011710539,16.166848925103213,44.123879557890184,9.742115702805112,46.035313881359592,0.92249063050619218,8.961939560231615,16.951902062224168,17.66625328520794,null,null,null,2,0.75918273490660726,14.590517986248615,94.373506577215451,0.89789422514746042,13.936938728537251,38.037827205077747,8.3983756058664767,39.68561541496517,0.79525054353982094,7.7258099657169117,14.613708674331178,15.229528694144777]
[null,null,null,3,10.168145074450225,48.707975951583293,74.784650824306894,10.295209887098064,36.462495575358751,34.358620333090407,20.457723423423232,35.783831775448753,10.748938785441917,8.8605700698776477,16.352436501837435,19.333620481576023,null,null,null,3,10.168145074450225,48.707975951583293,74.784650824306894,10.295209887098064,36.462495575358751,34.358620333090407,20.457723423423232,35.783831775448753,10.748938785441917,8.8605700698776477,16.352436501837435,19.333620481576023,null,null,null,3,19.319475641455426,92.54515430800825,142.09083656618307,19.560898785486319,69.278741593181621,65.281378632871764,38.869674504504133,67.989280373352614,20.422983692339642,16.835083132767529,31.069629353491123,36.733878914994442,null,null,null,3,29.487620715905649,141.25313025959156,216.87548739048998,29.85610867258438,105.74123716854037,99.639998965962178,59.327397927927372,103.77311214880136,31.171922477781564,25.695653202645172,47.422065855328555,56.067499396570469,null,null,null,3,25.420362686125564,121.76993987895823,186.96162706076726,25.738024717745159,91.156238938396882,85.896550832726021,51.14430855855808,89.459579438621873,26.872346963604794,22.151425174694118,40.881091254593578,48.334051203940049]
[null,null,null,4,44.217615927991041,164.16657022814985,188.65140271965194,42.388507705960471,130.52387208634147,139.16612998774463,72.101673577404938,191.72981508096333,43.380927955697828,74.517649141445787,73.293474457101226,89.246102274844077,null,null,null,4,44.217615927991041,164.16657022814985,188.65140271965194,42.388507705960471,130.52387208634147,139.16612998774463,72.101673577404938,191.72981508096333,43.380927955697828,74.517649141445787,73.293474457101226,89.246102274844077,null,null,null,4,84.013470263182981,311.9164834334847,358.43766516733865,80.538164641324883,247.99535696404877,264.41564697671481,136.99317979706939,364.28664865383035,82.423763115825878,141.583533368747,139.25760146849234,169.56759432220375,null,null,null,4,128.23108619117403,476.08305366163455,547.08906788699062,122.92667234728536,378.51922905039027,403.58177696445944,209.0948533744743,556.01646373479377,125.80469107152371,216.10118251019279,212.55107592559352,258.81369659704785,null,null,null,4,110.54403981997761,410.41642557037471,471.62850679912992,105.97126926490117,326.30968021585369,347.91532496936162,180.25418394351234,479.32453770240846,108.45231988924458,186.29412285361448,183.23368614275304,223.11525568711022]
[null,null,null,5,121.68937689712746,536.68325576404573,402.66569027940386,118.89891519556517,458.82549928289609,425.41304005729359,161.89655126108727,753.6455761466749,173.27148158347882,234.47792824819814,192.54925971366526,373.12927960352852,null,null,null,5,121.68937689712746,536.68325576404573,402.66569027940386,118.89891519556517,458.82549928289609,425.41304005729359,161.89655126108727,753.6455761466749,173.27148158347882,234.47792824819814,192.54925971366526,373.12927960352852,null,null,null,5,231.20981610454214,1019.6981859516868,765.06481153086725,225.90793887157378,871.7684486375025,808.28477610885784,307.60344739606575,1431.926594678682,329.21581500860981,445.50806367157645,365.84359345596403,708.94563124670424,null,null,null,5,352.89919300166963,1556.3814417157325,1167.7305018102711,344.80685406713894,1330.5939479203987,1233.6978161661514,469.49999865715301,2185.5721708253573,502.48729659208857,679.98599191977462,558.39285316962935,1082.0749108502325,null,null,null,5,304.22344224281869,1341.7081394101142,1006.6642256985095,297.24728798891289,1147.0637482072402,1063.532600143234,404.74137815271814,1884.1139403666871,433.17870395869704,586.19482062049531,481.37314928416322,932.82319900882123]
[null,null,null,"Average",12.472458513558209,203.24608601676925,77.233191099901987,15.393663591970711,79.893124367900299,50.515894896038361,36.162204322064191,35.762291196621703,14.346760071863718,7.2559641115187397,2.9833900900026249,29.427500237539096,null,null,null,"Average",12.472458513558209,203.24608601676925,77.233191099901987,15.393663591970711,79.893124367900299,50.515894896038361,36.162204322064191,35.762291196621703,14.346760071863718,7.2559641115187397,2.9833900900026249,29.427500237539096,null,null,null,"Average",23.6976711757606,386.16756343186154,146.74306308981375,29.247960824744347,151.79693629901055,95.98020030247288,68.70818821192195,67.948353273581219,27.258844136541065,13.786331811885605,5.6684411710049867,55.91225045132429,null,null,null,"Average",36.170129689318806,589.41364944863074,223.97625418971575,44.641624416715061,231.69006066691088,146.49609519851123,104.87039253398613,103.71064447020292,41.605604208404785,21.042295923404346,8.6518312610076116,85.33975068886339,null,null,null,"Average",31.181146283895522,508.11521504192314,193.08297774975495,38.484158979926775,199.73281091975076,126.28973724009592,90.405510805160475,89.405727991554258,35.866900179659297,18.139910278796847,7.4584752250065609,73.568750593847739]
[null,"Infrastructure",null,"All",0,0.19515951880460627,0.19515951880460627,0,0.19515951880460627,0.19515951880460627,0.19515951880460627,0.19515951880460627,0,0.19515951880460627,0.19515951880460627,0.15523140887666234,null,"Infrastructure",null,"All",0,0.19515951880460627,0.19515951880460627,0,0.19515951880460627,0.19515951880460627,0.19515951880460627,0.19515951880460627,0,0.19515951880460627,0.19515951880460627,0.15803803615029907,null,"Infrastructure",null,"All",1.756435669241456,9.3676569026210981,39.227063279725854,1.756435669241456,7.025742676965824,39.227063279725854,6.8305831581612182,39.227063279725854,1.756435669241456,5.8547855641381865,39.227063279725854,10.970242957544837,null,"Infrastructure",null,"All",7.025742676965824,32.786799159173853,161.59208157021396,7.025742676965824,24.785258888184988,161.59208157021396,24.394939850575781,161.59208157021396,7.025742676965824,21.272387549702081,161.59208157021396,16.074703979966287,null,"Infrastructure",null,"All",0,0,0,0,0,0,0,0,0,0,0,0]
[null,"Accident",null,"All",0,6.6657384802869908,6.6657384802869908,0,6.6657384802869908,6.6657384802869908,6.6657384802869908,6.6657384802869908,0,1.5553389787336311,1.5553389787336311,3.4148466335871599,null,"Accident",null,"All",0,6.6657384802869908,6.6657384802869908,0,6.6657384802869908,6.6657384802869908,6.6657384802869908,6.6657384802869908,0,1.5553389787336311,1.5553389787336311,3.3566011264185356,null,"Accident",null,"All",0.66657384802869912,7.1101210456394579,7.1101210456394579,0.66657384802869912,7.1101210456394579,7.1101210456394579,7.1101210456394579,7.1101210456394579,0.66657384802869912,7.5545036109919241,7.5545036109919241,5.2360454447796432,null,"Accident",null,"All",0.66657384802869912,7.1101210456394579,7.1101210456394579,0.66657384802869912,7.1101210456394579,7.1101210456394579,7.1101210456394579,7.1101210456394579,0.66657384802869912,7.5545036109919241,7.5545036109919241,3.3795983839892321,null,"Accident",null,"All",0,0,0,0,0,0,0,0,0,0,0,0]
[null,"Local Air Quality",null,"All",0.60393261793538866,0.75935128409871344,0.75411769400729611,0.2877067962914015,0.29669317875241663,0.30585416070691007,0.17649890019596554,0.18281137069393905,7.9056591727547351E-2,6.0030080597301846E-2,6.0022937887951482E-2,0.17356836848515775,null,"Local Air Quality",null,"All",1.4448399447835445,1.5102018305662612,1.5871281237288124,0.65125736969269676,0.57492561226735217,0.60163721361271916,0.34447468370736578,0.36097797285573791,0.19750626526540205,0.14197692171907725,0.12891692549336189,0.35647764996785924,null,"Local Air Quality",null,"All",2.5983826097464338,6.0808358861486713,8.0235573348334004,1.2787417942907111,1.9129752648353371,2.3256742668778543,0.98081010830430637,1.2781411252376431,0.34823190196443871,0.30555622363994345,0.34340586725581412,0.99349986894107123,null,"Local Air Quality",null,"All",3.4408950208446529,6.3186176057219656,7.6115166864032409,1.6076268268655154,2.1612064702094065,2.6228017480385724,1.2632467122309157,1.5841967450466752,0.46053019019958474,0.39522834900251913,0.4383792646231216,0.77642267909315699,null,"Local Air Quality",null,"All",2.5774847749904062,6.640898901920413,6.8256061933688388,1.4327829443457072,2.1008304013793881,2.3187279442701612,0.98342820476306114,1.2886716762787216,0.34468504106019993,0.30038446720227346,0.34187067741663552,1.8454181200352615]
[null,"Noise",null,"All",0.44438256535246612,0.44438256535246612,0.44438256535246612,0.44438256535246612,0.44438256535246612,0.44438256535246612,0.44438256535246612,0.44438256535246612,0,0,0.22219128267623306,0.24138266859160787,null,"Noise",null,"All",0.44438256535246612,0.44438256535246612,0.44438256535246612,0.44438256535246612,0.44438256535246612,0.44438256535246612,0.44438256535246612,0.44438256535246612,0,0,0.22219128267623306,0.2388076622134952,null,"Noise",null,"All",10.887372851135419,13.109285677897752,15.775581070012542,11.331755416487882,11.109564133811652,11.109564133811652,9.7764164377542535,9.7764164377542535,1.9997215440860974,1.9997215440860974,2.4441041094385634,5.341772161574549,null,"Noise",null,"All",21.5525544195946,25.996380073119266,31.551162140025085,22.441319550299532,22.219128267623304,22.219128267623304,19.330641592832276,19.552832875508507,3.9994430881721947,3.9994430881721947,5.1103995015533599,8.2139312904007848,null,"Noise",null,"All",0,0,0,0,0,0,0,0,0,0,0,0]
[null,"Greenhouse Gases",null,"All",2.3709721945508737,2.8534060826000838,3.4280285114230229,2.335915430908527,2.5493381527224965,2.8519705378000406,2.3135068008546118,2.6905156596697797,2.3688242966834396,2.2364870731858195,2.2173412479387973,2.4394048480836212,null,"Greenhouse Gases",null,"All",5.8726043973906199,5.5906726128944753,6.5823765244695682,5.5517317063842864,4.8782969517862176,5.4355655442527233,4.4767129257524374,5.1532259971312104,5.8054392289404841,4.8201532617974987,4.3228422393850146,5.0331154707981689,null,"Greenhouse Gases",null,"All",19.204736631340584,22.5759970959942,27.318454151731046,19.250473240606272,22.948546706246233,25.790243088475389,20.812380675261043,24.310940263422886,19.265297225262461,19.046021298636113,19.496760679598175,20.252187051183803,null,"Greenhouse Gases",null,"All",21.907924270209257,35.159191395245998,43.72207731580184,22.218643492476922,29.940961405007531,35.079627245274942,28.074059279872703,33.509610705128438,22.074180874495845,22.707069311676513,24.717945819372602,23.082636373094306,null,"Greenhouse Gases",null,"All",26.90644876231622,38.544347660620609,44.57095934234156,28.038452596515754,35.190666395723532,38.847035564793309,29.483764017634776,36.07249663288669,27.065235750700552,26.727549387184997,28.000223362388677,32.874347700780042]
[null,"Indirect Taxation",null,"All",1.4658378899691362,1.3656507827597097,1.2463188695016754,1.473118132556682,1.4287966086318897,1.3659489025318663,1.4777717356248792,1.3994782577148741,1.4662839441938706,1.4937664323166813,1.4977424482934876,1.451626472061007,null,"Indirect Taxation",null,"All",-1.3944335678457751,-1.3168263883591318,-1.5898120809824716,-1.3061071502770907,-1.1207312020985671,-1.2741301661604167,-1.0101874276778491,-1.1964107421203212,-1.375945055482843,-1.1047260262613185,-0.96783154362600043,-1.1633479954278105,null,"Indirect Taxation",null,"All",-12.770199240724397,-15.011920575019966,-18.16541976925032,-12.800611821960468,-15.259647624929556,-17.149235057411776,-13.839202952835967,-16.165571903059615,-12.810469037981438,-12.664661400758066,-12.964380777858659,-13.466701921961354,null,"Indirect Taxation",null,"All",-14.567685214944012,-23.379121925959602,-29.073017207118617,-14.774298117398795,-19.909257280665745,-23.326215704590695,-18.667859777614471,-22.282232419957435,-14.678237627225531,-15.09907711047876,-16.436210451316391,-15.34881061605217,null,"Indirect Taxation",null,"All",-15.116133573040239,-21.660199324586994,-25.049002015592311,-15.752666643720556,-19.774402678732429,-21.830402688992631,-16.565374595036612,-20.270261519243459,-15.205420522648348,-15.015537298403418,-15.731170098343682,-18.471921709125827]
[null,"Total",null,null,17.357583781366074,215.52977473067182,89.966936739278026,19.93478651707979,91.473232872451149,62.344949061521241,47.435262323183707,47.340377049144358,18.260924904468574,12.79674619515678,8.731186504337332,37.303560637224315,null,"Total",null,null,18.839851853239068,216.33541463631491,91.11816423156192,20.734928083123069,91.530896294299353,62.584248052187448,47.278485068290202,47.38536498893238,18.973760510586764,12.863866766312235,8.4400074914694727,37.407192187659653,null,"Total",null,null,46.040973544528796,429.39953946514277,226.03242020250576,50.731328971438906,186.64423850157948,164.39363105959131,100.37929668420627,133.4854635223017,38.484635287142773,35.882258652619804,61.76989794015666,85.239296013386834,null,"Total",null,null,76.19613471001783,673.40563680157175,446.49019574068075,83.82723269395278,297.99747946290984,351.79363937071082,166.37554123752275,304.77725499178263,61.153837259041396,61.871850722470818,191.62893057644618,121.51823277935499,null,"Total",null,null,45.548946248161926,531.64026227987722,219.43054126987303,52.202727877067687,217.24990503812128,145.62509806016675,104.3073284325217,106.49663478147622,48.071400448771705,30.152306834780703,20.069399166468195,89.816594705537227]
[]
[]
[null,"Table A 5.4.2a:",null,null,2045,"Marginal External Costs & Indirect Tax - Cars (pence per vehicle km, 2023 prices, 1 d.p.)",null,null,null,null,null,null,null,null,null,null,null,"Table A 5.4.2b:",null,null,2045,"Marginal External Costs & Indirect Tax - LGVs (pence per vehicle km, 2023 prices, 1 d.p.)",null,null,null,null,null,null,null,null,null,null,null,"Table A 5.4.2c:",null,null,2045,"Marginal External Costs & Indirect Tax - Rigids (pence per vehicle km, 2023 prices, 1 d.p.)",null,null,null,null,null,null,null,null,null,null,null,"Table A 5.4.2d:",null,null,2045,"Marginal External Costs & Indirect Tax - Artics (pence per vehicle km, 2023 prices, 1 d.p.)",null,null,null,null,null,null,null,null,null,null,null,"Table A 5.4.2e:",null,null,2045,"Marginal External Costs & Indirect Tax - PSVs (pence per vehicle km, 2023 prices, 1 d.p.)"]
[null,null,null,"Congestion band","London",null,null,"Inner and Outer Conurbations",null,null,"Other Urban",null,"Rural",null,null,"Weighted Average",null,null,null,"Congestion band","London",null,null,"Inner and Outer Conurbations",null,null,"Other Urban",null,"Rural",null,null,"Weighted Average",null,null,null,"Congestion band","London",null,null,"Inner and Outer Conurbations",null,null,"Other Urban",null,"Rural",null,null,"Weighted Average",null,null,null,"Congestion band","London",null,null,"Inner and Outer Conurbations",null,null,"Other Urban",null,"Rural",null,null,"Weighted Average",null,null,null,"Congestion band","London",null,null,"Inner and Outer Conurbations",null,null,"Other Urban",null,"Rural",null,null,"Weighted Average"]
[null,"Cost type",null,null,"Motorways","A roads","Other Rds","Motorways","A roads","Other Rds","A roads","Other Rds","Motorways","A roads","Other Rds",null,null,"Cost type",null,null,"Motorways","A roads","Other Rds","Motorways","A roads","Other Rds","A roads","Other Rds","Motorways","A roads","Other Rds",null,null,"Cost type",null,null,"Motorways","A roads","Other Rds","Motorways","A roads","Other Rds","A roads","Other Rds","Motorways","A roads","Other Rds",null,null,"Cost type",null,null,"Motorways","A roads","Other Rds","Motorways","A roads","Other Rds","A roads","Other Rds","Motorways","A roads","Other Rds",null,null,"Cost type",null,null,"Motorways","A roads","Other Rds","Motorways","A roads","Other Rds","A roads","Other Rds","Motorways","A roads","Other Rds"]
[null,"Congestion*",null,1,0.11419508780458523,1.9213340828465408,14.408387887342995,0.13043371605811874,1.8471948763941859,4.03773871650505,1.1720607702078434,4.4040431940684384,0.11200674802738161,1.2860551295933216,1.217471350061941,2.4251515561020001,null,"Congestion*",null,1,0.11419508780458523,1.9213340828465408,14.408387887342995,0.13043371605811874,1.8471948763941859,4.03773871650505,1.1720607702078434,4.4040431940684384,0.11200674802738161,1.2860551295933216,1.217471350061941,2.4251515561020001,null,"Congestion*",null,1,0.21697066682871197,3.6505347574084279,27.375936985951689,0.2478240605104256,3.5096702651489533,7.6717035613595943,2.2269154633949024,8.3676820687300317,0.21281282125202505,2.443504746227311,2.3131955651176881,4.6077879565937998,null,"Congestion*",null,1,0.33116575463329723,5.571868840254969,41.784324873294679,0.37825777656854431,5.356865141543139,11.709442277864644,3.3989762336027458,12.771725262798469,0.32481956927940669,3.7295598758206325,3.5306669151796295,7.0329395126957994,null,"Congestion*",null,1,0.28548771951146307,4.8033352071163522,36.020969718357485,0.32608429014529683,4.6179871909854651,10.094346791262625,2.9301519255196085,11.010107985171096,0.28001687006845405,3.2151378239833037,3.0436783751548528,6.062878890254999]
[null,null,null,2,0.34300568038387613,6.2052534260872179,41.06183990937663,0.40116568842795119,5.976014250231156,16.291774927455243,3.6460889968220682,16.992798894045187,0.35347773141919986,3.3926925088568818,6.4448419365943312,6.6387114311649569,null,null,null,2,0.34300568038387613,6.2052534260872179,41.06183990937663,0.40116568842795119,5.976014250231156,16.291774927455243,3.6460889968220682,16.992798894045187,0.35347773141919986,3.3926925088568818,6.4448419365943312,6.6387114311649569,null,null,null,2,0.65171079272936461,11.789981509565711,78.017495827815594,0.76221480801310737,11.354427075439197,30.95437236216496,6.927569093961929,32.286317898685851,0.67160768969647966,6.4461157668280755,12.245199679529229,12.613551719213419,null,null,null,2,0.99471647311324074,17.995234935652931,119.07933573719222,1.1633804964410586,17.330441325670353,47.246147289620211,10.573658090783997,49.279116792731038,1.0250854211156792,9.838808275684956,18.690041616123558,19.252263150378376,null,null,null,2,0.85751420095969033,15.513133565218045,102.65459977344159,1.0029142210698783,14.940035625577892,40.729437318638112,9.115222492055171,42.481997235112964,0.88369432854799956,8.4817312721422056,16.112104841485827,16.596778577912392]
[null,null,null,3,11.36695739040578,54.765299578496794,80.63675822612187,11.73879609812424,38.4659013648875,36.552485166164175,22.510041530479867,38.277432393945958,11.978104805576141,9.4125432216610712,17.526588729386855,21.040837622457943,null,null,null,3,11.36695739040578,54.765299578496794,80.63675822612187,11.73879609812424,38.4659013648875,36.552485166164175,22.510041530479867,38.277432393945958,11.978104805576141,9.4125432216610712,17.526588729386855,21.040837622457943,null,null,null,3,21.59721904177098,104.05406919914391,153.20984062963154,22.303712586436056,73.085212593286244,69.449721815711925,42.769078907911748,72.727121548497308,22.758399130594665,17.883832121156036,33.300518585835022,39.977591482670086,null,null,null,3,32.964176432176764,158.8193687776407,233.8465988557534,34.042508684560296,111.55111395817373,106.00220698187609,65.279120438391629,111.00455394244328,34.736503936170806,27.296375342817107,50.827107315221866,61.018429105128021,null,null,null,3,28.417393476014453,136.91324894624199,201.59189556530464,29.3469902453106,96.164753412218758,91.381212915410416,56.275103826199675,95.693580984864894,29.945262013940358,23.531358054152676,43.816471823467126,52.60209405614485]
[null,null,null,4,49.089080170570064,174.25979002030454,204.44787114551559,46.060234147799768,134.00985287577808,151.5012225557723,76.591267975306977,204.51559151537694,45.740413786918964,77.06461996817545,76.292317606299733,91.647729175773563,null,null,null,4,49.089080170570064,174.25979002030454,204.44787114551559,46.060234147799768,134.00985287577808,151.5012225557723,76.591267975306977,204.51559151537694,45.740413786918964,77.06461996817545,76.292317606299733,91.647729175773563,null,null,null,4,93.269252324083112,331.09360103857858,388.45095517647962,87.514444880819553,254.61872046397835,287.85232285596737,145.52340915308324,388.57962387921623,86.906786195146026,146.42277793953338,144.95540345196949,174.13068543396977,null,null,null,4,142.35833249465318,505.35339105888318,592.89882632199522,133.57467902861933,388.62857333975649,439.35354541173973,222.11467712839024,593.09521539459308,132.64719998206499,223.48739790770884,221.24772105826924,265.77841460974332,null,null,null,4,122.72270042642516,435.64947505076128,511.11967786378898,115.15058536949942,335.02463218944524,378.75305638943075,191.47816993826743,511.28897878844248,114.35103446729741,192.66154992043863,190.73079401574935,229.11932293943391]
[null,null,null,5,131.50125100573337,570.11294168704489,433.99949190704916,130.05821715493778,516.24803891170052,462.95687746347568,178.47871313446353,805.50068744320743,183.5125353637103,257.70611402847715,209.5660801519827,400.33384238321963,null,null,null,5,131.50125100573337,570.11294168704489,433.99949190704916,130.05821715493778,516.24803891170052,462.95687746347568,178.47871313446353,805.50068744320743,183.5125353637103,257.70611402847715,209.5660801519827,400.33384238321963,null,null,null,5,249.85237691089338,1083.2145892053852,824.59903462339344,247.11061259438176,980.87127393223113,879.61806718060382,339.10955495548075,1530.4513061420937,348.67381719104952,489.64161665410654,398.17555228876711,760.63430052811736,null,null,null,5,381.35362791662681,1653.3275308924301,1258.5985265304425,377.16882974931951,1497.1193128439315,1342.5749446440796,517.58826808994422,2335.9519935853014,532.18635255475999,747.34773068258369,607.74163244074975,1160.9681429113368,null,null,null,5,328.75312751433347,1425.2823542176122,1084.998729767623,325.14554288734445,1290.6200972792515,1157.3921936586894,446.19678283615883,2013.7517186080181,458.7813384092758,644.26528507119269,523.91520037995679,1000.8346059580491]
[null,null,null,"Average",15.007296555479103,223.65176674375763,85.409956503163073,17.876151752036289,91.269948446056773,55.753711160534124,40.660034831151457,38.136476739299354,17.275206617339197,8.2233350911837899,3.324507519109019,32.83894584398454,null,null,null,"Average",15.007296555479103,223.65176674375763,85.409956503163073,17.876151752036289,91.269948446056773,55.753711160534124,40.660034831151457,38.136476739299354,17.275206617339197,8.2233350911837899,3.324507519109019,32.83894584398454,null,null,null,"Average",28.513863455410291,424.93835681313954,162.27891735600986,33.964688328868938,173.41290204750788,105.93205120501482,77.25406617918776,72.459305804668773,32.822892572944475,15.624336673249202,6.3165642863071367,62.393997103570626,null,null,null,"Average",43.521160010889396,648.5901235568972,247.68887385917296,51.840840080905238,264.68285049356467,161.68576236554892,117.91410101033922,110.59578254396813,50.098099190283669,23.847671764432992,9.6410718054161553,95.232942947555159,null,null,null,"Average",37.518241388697753,559.12941685939415,213.52489125790771,44.690379380090718,228.17487111514191,139.38427790133528,101.65008707787864,95.341191848248386,43.188016543347999,20.558337727959472,8.3112687977725486,82.097364609961346]
[null,"Infrastructure",null,"All",0,0.20919100199413035,0.20919100199413035,0,0.20919100199413035,0.20919100199413035,0.20919100199413035,0.20919100199413035,0,0.20919100199413035,0.20919100199413035,0.16615565035605351,null,"Infrastructure",null,"All",0,0.20919100199413035,0.20919100199413035,0,0.20919100199413035,0.20919100199413035,0.20919100199413035,0.20919100199413035,0,0.20919100199413035,0.20919100199413035,0.16943765809055233,null,"Infrastructure",null,"All",1.8827190179471729,10.041168095718254,42.047391400820196,1.8827190179471729,7.5308760717886916,42.047391400820196,7.3216850697945617,42.047391400820196,1.8827190179471729,6.2757300598239096,42.047391400820196,11.748716105551869,null,"Infrastructure",null,"All",7.5308760717886916,35.14408833501389,173.21014965113991,7.5308760717886916,26.567257253254549,173.21014965113991,26.148875249266286,173.21014965113991,7.5308760717886916,22.801819217360205,173.21014965113991,17.134479092311725,null,"Infrastructure",null,"All",0,0,0,0,0,0,0,0,0,0,0,0]
[null,"Accident",null,"All",0,7.3595138952364092,7.3595138952364092,0,7.3595138952364092,7.3595138952364092,7.3595138952364092,7.3595138952364092,0,1.7172199088884952,1.7172199088884952,3.7615420873325611,null,"Accident",null,"All",0,7.3595138952364092,7.3595138952364092,0,7.3595138952364092,7.3595138952364092,7.3595138952364092,7.3595138952364092,0,1.7172199088884952,1.7172199088884952,3.7060402294123298,null,"Accident",null,"All",0.73595138952364103,7.8501481549188368,7.8501481549188368,0.73595138952364103,7.8501481549188368,7.8501481549188368,7.8501481549188368,7.8501481549188368,0.73595138952364103,8.3407824146012643,8.3407824146012643,5.7782274573767962,null,"Accident",null,"All",0.73595138952364103,7.8501481549188368,7.8501481549188368,0.73595138952364103,7.8501481549188368,7.8501481549188368,7.8501481549188368,7.8501481549188368,0.73595138952364103,8.3407824146012643,8.3407824146012643,3.7060584188907058,null,"Accident",null,"All",0,0,0,0,0,0,0,0,0,0,0,0]
[null,"Local Air Quality",null,"All",0.64836607240751098,0.8118392089596651,0.80248619382422315,0.30895293256213352,0.31801532652406606,0.32679008996050263,0.18951406544733684,0.1954289484963998,8.4567267017733136E-2,6.3814653775701558E-2,6.3813743613837182E-2,0.18534092890200696,null,"Local Air Quality",null,"All",1.4115593116963845,1.5360131897046005,1.6019030081749572,0.64227139846905079,0.58452372748867409,0.60986342876974997,0.35032219142166154,0.36594055941294135,0.19131290108256541,0.13857641048689262,0.12770901694157591,0.35740723165115729,null,"Local Air Quality",null,"All",2.8751235219728937,6.8236070684584149,8.8969889663593325,1.4163193584658269,2.1360016981143155,2.5786759834817605,1.0897362424896679,1.411134731708052,0.38549869591307312,0.33786281068264534,0.37953291214256452,1.1028848319811435,null,"Local Air Quality",null,"All",3.8054984096424476,7.0612976786004351,8.4348668643292743,1.7785935905603498,2.4029966195916379,2.9099361406327917,1.4040612647429875,1.7483857507962424,0.50951137441737682,0.43669167377441387,0.48441711571777268,0.86091243388563954,null,"Local Air Quality",null,"All",2.8694470687137046,7.4896444363756967,7.6246244928742275,1.5976556085316771,2.3613659974524959,2.5889679503533052,1.0956963228591241,1.4319374223485053,0.38424132704360481,0.33361234966119396,0.37980149276195041,2.0670788789052508]
[null,"Noise",null,"All",0.4906342596824273,0.4906342596824273,0.4906342596824273,0.4906342596824273,0.4906342596824273,0.4906342596824273,0.4906342596824273,0.4906342596824273,0,0,0.24531712984121365,0.26593029296787574,null,"Noise",null,"All",0.4906342596824273,0.4906342596824273,0.4906342596824273,0.4906342596824273,0.4906342596824273,0.4906342596824273,0.4906342596824273,0.4906342596824273,0,0,0.24531712984121365,0.26366172500573865,null,"Noise",null,"All",12.02053936221947,14.473710660631605,17.417516218726167,12.511173621901895,12.265856492060681,12.265856492060681,10.7939537130134,10.7939537130134,2.2078541685709223,2.2078541685709223,2.6984884282533499,5.8907664752134545,null,"Noise",null,"All",23.795761594597717,28.702104191421995,34.835032437452334,24.777030113962574,24.531712984121363,24.531712984121363,21.342590296185584,21.587907426026799,4.4157083371418446,4.4157083371418446,5.642293986347914,9.0678252648668103,null,"Noise",null,"All",0,0,0,0,0,0,0,0,0,0,0,0]
[null,"Greenhouse Gases",null,"All",2.2646968747633323,2.7670952246979832,3.305297480347468,2.234767082769241,2.462088652954205,2.7462158169492268,2.2254056835207736,2.5840566703608703,2.2622825077935644,2.1443656083142515,2.1269854435830262,2.3417402738715265,null,"Greenhouse Gases",null,"All",5.2609809273504293,5.1189078451573486,5.9871657744517943,4.9871779575590036,4.4491422444074464,4.9401215516683257,4.0687365947623215,4.6713985838378278,5.1989448442041439,4.364285418432039,3.9172600567829958,4.5550627373531158,null,"Greenhouse Gases",null,"All",20.187903129204471,24.004023643802551,28.823747287540979,20.249293404614555,24.315320444071752,27.209351823428552,21.976851630855652,25.566511210279145,20.252679323142466,20.03890461845662,20.513236650234461,21.331104970587436,null,"Greenhouse Gases",null,"All",23.408740276316887,37.926838581768493,46.795024568840326,23.739906406278703,32.151946785672749,37.555003955406235,30.144386190433831,35.733306433431906,23.589684213916069,24.227991868226187,26.376186351760349,24.6644699837457,null,"Greenhouse Gases",null,"All",28.61585224278943,41.412346604593466,47.447628539618741,29.839541167774104,37.713291932805724,41.368891638655811,31.386839532406018,38.267197316092911,28.795296678115211,28.371778753745069,29.721218380526658,35.006493285034395]
[null,"Indirect Taxation",null,"All",1.7658814733180632,1.6949393637398362,1.618941495911447,1.770107766226021,1.7380083937984363,1.6978876800164195,1.7714296603193767,1.7207856691278078,1.7662223985741945,1.7828730774728698,1.7853272765183295,1.755002414375048,null,"Indirect Taxation",null,"All",-0.93408916220620897,-0.90269756304076976,-1.0945425238728579,-0.87359133288257718,-0.75471025292549332,-0.86319403728594302,-0.67065814756116093,-0.80381865412069309,-0.92038204875543295,-0.7359608077360712,-0.63718881832711805,-0.77811379712000472,null,"Indirect Taxation",null,"All",-12.279282997779811,-14.600436584285523,-17.532031322668185,-12.316623605184521,-14.789782723027356,-16.550076007780085,-13.367410119236563,-15.550818943784916,-12.318683088606138,-12.188654720637256,-12.477166965610641,-12.974635003586547,null,"Indirect Taxation",null,"All",-14.238355743772013,-23.068982507793578,-28.463052645502401,-14.439787393362101,-19.556407170376108,-22.842814263560683,-18.33530934132677,-21.734767565222956,-14.348414812427771,-14.736665156049852,-16.043303484397377,-15.002152773485879,null,"Indirect Taxation",null,"All",-14.912562273026213,-21.582489149356626,-24.72826392536188,-15.550386619152238,-19.654427957377614,-21.559839083094513,-16.356886169432631,-19.943140498365317,-15.006094237964973,-14.785343655305722,-15.488713139179499,-18.243561157523878]
[null,"Total",null,null,20.176875235650432,236.98497969806803,99.196020830159171,22.680613793276112,103.84739997624645,68.583943904373243,52.90572339735192,50.69608718419741,21.388278790724694,14.140799341629238,9.472362023548051,41.31465749178961,null,"Total",null,null,21.236381892002132,237.46332937249181,99.963821918829922,23.122644034864187,103.60824332194038,68.49984126059924,52.467774626687245,50.429336385342403,21.74508231387048,13.916647023249276,8.904015815230311,41.112441628377432,null,"Total",null,null,53.936816878498135,473.5305778523836,249.78267806170714,58.443521516137508,212.72132218543479,181.33339905194475,112.91903087102332,144.57762607162348,45.968912079435619,40.636816024747304,67.818829126748355,95.271061940694793,null,"Total",null,null,88.559632008986753,742.20561799082725,490.35104289035121,95.963410259657081,338.63050512074761,384.89989898820733,186.46885282456,328.9909123950589,72.531415764643512,69.334000119487044,207.65159784058602,135.66453536776984,null,"Total",null,null,54.090978427174676,586.44891875100666,243.86888036503885,60.577189537244259,248.59510108802249,161.7822984072499,117.77573676371115,115.09718608832449,57.361460310541844,34.478385176060009,22.923575531881657,100.92737561637711]
[]
[]
[null,"Table A 5.4.2a:",null,null,2050,"Marginal External Costs & Indirect Tax - Cars (pence per vehicle km, 2023 prices, 1 d.p.)",null,null,null,null,null,null,null,null,null,null,null,"Table A 5.4.2b:",null,null,2050,"Marginal External Costs & Indirect Tax - LGVs (pence per vehicle km, 2023 prices, 1 d.p.)",null,null,null,null,null,null,null,null,null,null,null,"Table A 5.4.2c:",null,null,2050,"Marginal External Costs & Indirect Tax - Rigids (pence per vehicle km, 2023 prices, 1 d.p.)",null,null,null,null,null,null,null,null,null,null,null,"Table A 5.4.2d:",null,null,2050,"Marginal External Costs & Indirect Tax - Artics (pence per vehicle km, 2023 prices, 1 d.p.)",null,null,null,null,null,null,null,null,null,null,null,"Table A 5.4.2e:",null,null,2050,"Marginal External Costs & Indirect Tax - PSVs (pence per vehicle km, 2023 prices, 1 d.p.)"]
[null,null,null,"Congestion band","London",null,null,"Inner and Outer Conurbations",null,null,"Other Urban",null,"Rural",null,null,"Weighted Average",null,null,null,"Congestion band","London",null,null,"Inner and Outer Conurbations",null,null,"Other Urban",null,"Rural",null,null,"Weighted Average",null,null,null,"Congestion band","London",null,null,"Inner and Outer Conurbations",null,null,"Other Urban",null,"Rural",null,null,"Weighted Average",null,null,null,"Congestion band","London",null,null,"Inner and Outer Conurbations",null,null,"Other Urban",null,"Rural",null,null,"Weighted Average",null,null,null,"Congestion band","London",null,null,"Inner and Outer Conurbations",null,null,"Other Urban",null,"Rural",null,null,"Weighted Average"]
[null,"Cost type",null,null,"Motorways","A roads","Other Rds","Motorways","A roads","Other Rds","A roads","Other Rds","Motorways","A roads","Other Rds",null,null,"Cost type",null,null,"Motorways","A roads","Other Rds","Motorways","A roads","Other Rds","A roads","Other Rds","Motorways","A roads","Other Rds",null,null,"Cost type",null,null,"Motorways","A roads","Other Rds","Motorways","A roads","Other Rds","A roads","Other Rds","Motorways","A roads","Other Rds",null,null,"Cost type",null,null,"Motorways","A roads","Other Rds","Motorways","A roads","Other Rds","A roads","Other Rds","Motorways","A roads","Other Rds",null,null,"Cost type",null,null,"Motorways","A roads","Other Rds","Motorways","A roads","Other Rds","A roads","Other Rds","Motorways","A roads","Other Rds"]
[null,"Congestion*",null,1,0.129127629309499,2.0233230734241845,15.672239535055411,0.14469966033683959,1.9725232241050747,4.3518258909987066,1.2641560459176155,4.761748309843008,0.12456865329421453,1.4105954532985701,1.3290225789612438,2.6463605399061909,null,"Congestion*",null,1,0.129127629309499,2.0233230734241845,15.672239535055411,0.14469966033683959,1.9725232241050747,4.3518258909987066,1.2641560459176155,4.761748309843008,0.12456865329421453,1.4105954532985701,1.3290225789612438,2.6463605399061909,null,"Congestion*",null,1,0.24534249568804811,3.8443138395059502,29.777255116605282,0.27492935463999518,3.7477941257996426,8.2684691928975429,2.4018964872434689,9.0473217887017139,0.23668044125900758,2.680131361267283,2.5251429000263634,5.0280850258217615,null,"Congestion*",null,1,0.37447012499754717,5.8676369129301351,45.449494651660686,0.4196290149768348,5.7203173499047173,12.62029508389625,3.6660525331610847,13.809070098544725,0.36124909455322213,4.0907268145658531,3.8541654789876065,7.6744455657279529,null,"Congestion*",null,1,0.32281907327374748,5.0583076835604617,39.180598837638527,0.36174915084209897,4.9313080602626869,10.879564727496767,3.1603901147940388,11.90437077460752,0.31142163323553634,3.5264886332464251,3.3225564474031093,6.6159013497654762]
[null,null,null,2,0.37903413453831125,6.7156783809257456,44.091705683929888,0.44517441300519411,6.3742015564523546,17.404219260587549,3.9152486167290834,18.348808593602374,0.39448064725552057,3.6878282453801923,7.0055170317033069,7.1539921693246562,null,null,null,2,0.37903413453831125,6.7156783809257456,44.091705683929888,0.44517441300519411,6.3742015564523546,17.404219260587549,3.9152486167290834,18.348808593602374,0.39448064725552057,3.6878282453801923,7.0055170317033069,7.1539921693246562,null,null,null,2,0.72016485562279131,12.759788923758915,83.774240799466796,0.84583138470986863,12.11098295725947,33.068016595116347,7.4389723717852583,34.862736327844516,0.74951322978548895,7.006873666222365,13.310482360236282,13.592585121716846,null,null,null,2,1.0991989901611026,19.475467304684663,127.86594648339668,1.2910057977150629,18.485184513711825,50.472235855703893,11.35422098851434,53.211544921446894,1.1439938770410096,10.694701911602557,20.315999391939588,20.746577291041504,null,null,null,2,0.94758533634577802,16.789195952314365,110.22926420982473,1.1129360325129853,15.935503891130885,43.510548151468868,9.7881215418227097,45.872021484005941,0.98620161813880136,9.2195706134504807,17.513792579258265,17.884980423311639]
[null,null,null,3,12.728860656140153,58.94232078436626,86.903261625090849,12.996496501004255,40.223096552859403,38.794691666579716,24.487094116990875,41.113749499065818,13.354940205864757,10.274284627903237,74.301589471954273,23.995473820125348,null,null,null,3,12.728860656140153,58.94232078436626,86.903261625090849,12.996496501004255,40.223096552859403,38.794691666579716,24.487094116990875,41.113749499065818,13.354940205864757,10.274284627903237,74.301589471954273,23.995473820125348,null,null,null,3,24.184835246666285,111.99040949029587,165.11619708767259,24.693343351908084,76.423883450432854,73.709914166501449,46.525478822282658,78.116124048225046,25.374386391143037,19.521140793016148,141.17301999671312,45.591400258238153,null,null,null,3,36.913695902806438,170.93273027466213,252.01945871276345,37.689839852912343,116.64698000329226,112.50460583308117,71.012572939273539,119.22987354729085,38.729326597007798,29.795425420919383,215.47460946866735,69.586874078363508,null,null,null,3,31.822151640350384,147.35580196091561,217.25815406272713,32.491241252510633,100.55774138214851,96.98672916644928,61.217735292477187,102.78437374766455,33.38735051466189,25.685711569758094,185.75397367988569,59.988684550313366]
[null,null,null,4,52.255889383464854,186.5609243012392,219.81063731664315,48.162453030756659,139.62703841829111,159.59797409085721,82.165533061647508,215.52780218555824,49.050038917693819,84.996359072757983,80.882950937178336,96.543477944172679,null,null,null,4,52.255889383464854,186.5609243012392,219.81063731664315,48.162453030756659,139.62703841829111,159.59797409085721,82.165533061647508,215.52780218555824,49.050038917693819,84.996359072757983,80.882950937178336,96.543477944172679,null,null,null,4,99.286189828583218,354.46575617235447,417.64021090162197,91.508660758437642,265.29137299475309,303.23615077262872,156.11451281713025,409.50282415256066,93.195073943618269,161.49308223824016,153.67760678063883,183.43260809392805,null,null,null,4,151.54207921204807,541.02668047359373,637.45084821826515,139.67111378919432,404.91841141304417,462.83412486348595,238.28004587877777,625.03062633811885,142.24511286131209,246.48944131099813,234.56055771781718,279.97608603810079,null,null,null,4,130.63972345866216,466.40231075309799,549.52659329160792,120.40613257689165,349.06759604572778,398.994935227143,205.41383265411878,538.81950546389555,122.62509729423456,212.49089768189495,202.20737734294582,241.35869486043168]
[null,null,null,5,143.12508443597443,644.74309490405756,471.83631763452189,135.58089472043679,562.29326950348241,498.81980787343485,194.457080360535,850.72738299455364,189.02119506140212,280.00652506967373,226.34856948224004,432.27208285924939,null,null,null,5,143.12508443597443,644.74309490405756,471.83631763452189,135.58089472043679,562.29326950348241,498.81980787343485,194.457080360535,850.72738299455364,189.02119506140212,280.00652506967373,226.34856948224004,432.27208285924939,null,null,null,5,271.93766042835142,1225.0118803177095,896.48900350559154,257.60369996882986,1068.3572120566166,947.75763495952617,369.46845268501647,1616.3820276896517,359.14027061666405,532.01239763238004,430.06228201625601,821.31695743257387,null,null,null,5,415.06274486432585,1869.7549752217672,1368.3253211401136,393.1845946892667,1630.650481560099,1446.5774428329607,563.92553304555145,2467.1094106842056,548.16146567806629,812.01892270205394,656.41085149849607,1253.5890402918233,null,null,null,5,357.8127110899361,1611.8577372601439,1179.5907940863049,338.95223680109194,1405.733173758706,1247.0495196835871,486.14270090133749,2126.818457486384,472.55298765350534,700.01631267418441,565.87142370560002,1080.6802071481236]
[null,null,null,"Average",17.50605466121392,251.90943549227907,93.223153137258876,19.989275532947339,100.5220023540848,60.674420634802331,44.92778582787232,40.185040768946592,19.823337050721552,9.188200570042758,5.8095801545515462,36.504775150410765,null,null,null,"Average",17.50605466121392,251.90943549227907,93.223153137258876,19.989275532947339,100.5220023540848,60.674420634802331,44.92778582787232,40.185040768946592,19.823337050721552,9.188200570042758,5.8095801545515462,36.504775150410765,null,null,null,"Average",33.261503856306447,478.62792743533021,177.12399096079184,37.979623512599943,190.99180447276112,115.28139920612443,85.362793072957388,76.351577460998527,37.664340396370953,17.457581083081237,11.038202293647938,69.359072785780441,null,null,null,"Average",50.767558517520357,730.53736292760937,270.34714409805076,57.968899045547275,291.51380682684589,175.95581984092675,130.2905789008297,116.53661822994512,57.487677447092508,26.645781653123993,16.847782448199485,105.86384793619121,null,null,null,"Average",43.765136653034801,629.77358873069761,233.05788284314718,49.973188832368344,251.30500588521195,151.68605158700584,112.31946456968079,100.46260192236647,49.558342626803885,22.970501425106896,14.523950386378866,91.261937876026906]
[null,"Infrastructure",null,"All",0,0.22328281415066514,0.22328281415066514,0,0.22328281415066514,0.22328281415066514,0.22328281415066514,0.22328281415066514,0,0.22328281415066514,0.22328281415066514,0.17722874660252885,null,"Infrastructure",null,"All",0,0.22328281415066514,0.22328281415066514,0,0.22328281415066514,0.22328281415066514,0.22328281415066514,0.22328281415066514,0,0.22328281415066514,0.22328281415066514,0.18088464496023637,null,"Infrastructure",null,"All",2.0095453273559856,10.717575079231926,44.879845644283691,2.0095453273559856,8.0381813094239423,44.879845644283691,7.8148984952732778,44.879845644283691,2.0095453273559856,6.6984844245199531,44.879845644283691,12.536053933088194,null,"Infrastructure",null,"All",8.0381813094239423,37.511512777311736,184.87817011675068,8.0381813094239423,28.35691739713447,184.87817011675068,27.910351768833134,184.87817011675068,8.0381813094239423,24.337826742422497,184.87817011675068,18.21602148202474,null,"Infrastructure",null,"All",0,0,0,0,0,0,0,0,0,0,0,0]
[null,"Accident",null,"All",0,8.1254980126141785,8.1254980126141785,0,8.1254980126141785,8.1254980126141785,8.1254980126141785,8.1254980126141785,0,1.8959495362766412,1.8959495362766412,4.1487870105786087,null,"Accident",null,"All",0,8.1254980126141785,8.1254980126141785,0,8.1254980126141785,8.1254980126141785,8.1254980126141785,8.1254980126141785,0,1.8959495362766412,1.8959495362766412,4.092066577833406,null,"Accident",null,"All",0.81254980126141774,8.6671978801217886,8.6671978801217886,0.81254980126141774,8.6671978801217886,8.6671978801217886,8.6671978801217886,8.6671978801217886,0.81254980126141774,9.2088977476294005,9.2088977476294005,6.3766372167754941,null,"Accident",null,"All",0.81254980126141774,8.6671978801217886,8.6671978801217886,0.81254980126141774,8.6671978801217886,8.6671978801217886,8.6671978801217886,8.6671978801217886,0.81254980126141774,9.2088977476294005,9.2088977476294005,4.0694257143057904,null,"Accident",null,"All",0,0,0,0,0,0,0,0,0,0,0,0]
[null,"Local Air Quality",null,"All",0.71030613116383179,0.88842169564963891,0.87688678219842486,0.33848187437421712,0.3482684957151439,0.35753959216453868,0.20761345895174557,0.21384263225234335,9.2550611834921678E-2,6.9717924818519503E-2,6.9718889231349057E-2,0.20274129576657279,null,"Local Air Quality",null,"All",1.4637573746325052,1.6273772987634489,1.6899543486727377,0.66932322021937229,0.61911813623048007,0.64493530636709673,0.37112019964928844,0.3869995175154291,0.19740844993469814,0.1435325089006948,0.13337438516848063,0.37575861159543106,null,"Local Air Quality",null,"All",3.1794975989620942,7.6248085980399676,9.8479718292528577,1.5671207860487462,2.3757414361737461,2.8536518191539035,1.2078732485308916,1.5563204673120528,0.4264539770410205,0.37339943886378701,0.41920476166309062,1.2233586534868479,null,"Local Air Quality",null,"All",4.2069048953056196,7.8650229835696779,9.3311039284536381,1.9663573802426262,2.6672469313750375,3.2198361994086695,1.5565490926298267,1.9275767533559249,0.56336516605586828,0.4823633287338599,0.53513047797998869,0.95400150920433224,null,"Local Air Quality",null,"All",3.1830494354320371,8.3628896549202434,8.451069019349374,1.7728255103717274,2.6299892003948653,2.8697767534535958,1.2139345929591712,1.5814888408918275,0.42660703733024208,0.36908589596856789,0.41998511880852446,2.2969665628403537]
[null,"Noise",null,"All",0.54169986750761179,0.54169986750761179,0.54169986750761179,0.54169986750761179,0.54169986750761179,0.54169986750761179,0.54169986750761179,0.54169986750761179,0,0,0.27084993375380589,0.29331928491668352,null,"Noise",null,"All",0.54169986750761179,0.54169986750761179,0.54169986750761179,0.54169986750761179,0.54169986750761179,0.54169986750761179,0.54169986750761179,0.54169986750761179,0,0,0.27084993375380589,0.29111767097694491,null,"Noise",null,"All",13.271646753936491,15.980146091474548,19.230345296520216,13.813346621444099,13.542496687690296,13.542496687690296,11.91739708516746,11.91739708516746,2.4376494037842531,2.4376494037842531,2.979349271291865,6.50216849751288,null,"Noise",null,"All",26.272443574119169,31.689442249195281,38.460690593040432,27.355843309134389,27.084993375380591,27.084993375380591,23.563944236581111,23.83479417033492,4.8752988075685062,4.8752988075685062,6.2295484763375351,10.017209251465768,null,"Noise",null,"All",0,0,0,0,0,0,0,0,0,0,0,0]
[null,"Greenhouse Gases",null,"All",2.3054371334479424,2.8421420358781937,3.3785371259644306,2.2771109519015931,2.5225193722713866,2.8066022557836425,2.2751037042561615,2.6360687374880554,2.3025099566696361,2.1884661313803737,2.1712678009500253,2.3905379819962023,null,"Greenhouse Gases",null,"All",4.979639163291969,4.9177624052035558,5.7211325370287218,4.7285221657357113,4.2628881189298964,4.7204183463053591,3.8900960014030352,4.4545482368289848,4.9190079350274356,4.1616793629208884,3.738685147257327,4.3414968299537158,null,"Greenhouse Gases",null,"All",21.425556524693071,25.690162366513135,30.655640968808239,21.49833942734659,25.94282762639298,28.937422157405013,23.388616548240638,27.117423145823075,21.494163289901028,21.277995088466117,21.779068351175702,22.667179897959638,null,"Greenhouse Gases",null,"All",25.179643407499601,41.079442580781475,50.367549802391139,25.534877833652203,34.714351773903672,40.414521859779477,32.521528105991784,38.338092719769023,25.376524710564976,26.032897134284283,28.343675657660018,26.531075293828533,null,"Greenhouse Gases",null,"All",30.501838878399163,44.441028004098811,50.575599193921072,31.814962629805745,40.384330220982939,44.108927542645915,33.458715129870676,40.670955942675953,30.699609528267022,30.197538091240894,31.628372589849352,37.325951062507507]
[null,"Indirect Taxation",null,"All",1.8274228041194325,1.7642985340321344,1.7012107023637726,1.8307543733418805,1.801890788643894,1.7684785269246406,1.8309904547376876,1.7885357386607061,1.8277670825053953,1.841180288154814,1.8432030609117238,1.8174137117409317,null,"Indirect Taxation",null,"All",-0.72096153182162459,-0.7091261746681562,-0.86278924187335837,-0.67292961409997676,-0.58386636293728222,-0.67137957172173224,-0.51256127212072911,-0.62052578106921452,-0.70936441097474912,-0.56450785400064218,-0.48360045401895241,-0.59890209200717504,null,"Indirect Taxation",null,"All",-11.920827042282825,-14.293583548525978,-17.056294124183434,-11.961322251504949,-14.434162340920457,-16.100305454860965,-13.013041332602894,-15.087687957192271,-11.958998717358426,-11.838726287637545,-12.117515204667036,-12.611645853327856,null,"Indirect Taxation",null,"All",-14.009539201524179,-22.855925792849369,-28.023675793246284,-14.20718579001532,-19.314494020481355,-22.485974846522272,-18.09444301973955,-21.330683845558401,-14.119080718403637,-14.484275532805038,-15.769954673901625,-14.761453662079081,null,"Indirect Taxation",null,"All",-14.579494556735549,-21.243574305485254,-24.176404276059738,-15.207275794255105,-19.304138854866565,-21.084802949435687,-15.99312478797048,-19.441169542245909,-14.674045206044951,-14.434013733213954,-15.118070396769015,-17.841981879292057]
[null,"Total",null,null,22.890920597452734,266.29477845211153,108.07026844205795,24.977322600072643,114.0851617049877,74.497521703947612,58.131974140090364,53.71396857162015,24.046164701731506,15.406797264823769,12.283852189825756,45.53480318201229,null,"Total",null,null,23.770189534824382,266.63592971585041,108.66193147535942,25.255891172310058,113.71062294058035,74.258875410025524,57.566921451076382,53.296543436494247,24.230389024708938,15.048136938291005,11.588121517139513,45.187197393723331,null,"Total",null,null,62.039472820232682,533.01423390218554,273.34869845559524,65.719203224551833,235.12408707164343,198.06170793991816,125.34573499768855,155.40207372651435,52.885703478356234,45.615280898707205,78.18705286502464,106.05282513127565,null,"Total",null,null,101.26774230360594,834.49405560573996,534.02818062556196,107.46952288924652,373.6900201642801,417.73456442584563,206.41570696524786,352.8517660247191,83.034516523563582,77.098789880957511,230.27325025065554,150.89012752494131,null,"Total",null,null,62.870530410130449,661.33393208423161,267.90814678035787,68.353701178290706,275.0151864517232,177.57995293366966,130.99898950454016,123.27387716368835,66.010513986356202,39.103111679102405,31.454237698267722,113.04287362208271]
[]
[]
[null,"Table A 5.4.2a:",null,null,2055,"Marginal External Costs & Indirect Tax - Cars (pence per vehicle km, 2023 prices, 1 d.p.)",null,null,null,null,null,null,null,null,null,null,null,"Table A 5.4.2b:",null,null,2055,"Marginal External Costs & Indirect Tax - LGVs (pence per vehicle km, 2023 prices, 1 d.p.)",null,null,null,null,null,null,null,null,null,null,null,"Table A 5.4.2c:",null,null,2055,"Marginal External Costs & Indirect Tax - Rigids (pence per vehicle km, 2023 prices, 1 d.p.)",null,null,null,null,null,null,null,null,null,null,null,"Table A 5.4.2d:",null,null,2055,"Marginal External Costs & Indirect Tax - Artics (pence per vehicle km, 2023 prices, 1 d.p.)",null,null,null,null,null,null,null,null,null,null,null,"Table A 5.4.2e:",null,null,2055,"Marginal External Costs & Indirect Tax - PSVs (pence per vehicle km, 2023 prices, 1 d.p.)"]
[null,null,null,"Congestion band","London",null,null,"Inner and Outer Conurbations",null,null,"Other Urban",null,"Rural",null,null,"Weighted Average",null,null,null,"Congestion band","London",null,null,"Inner and Outer Conurbations",null,null,"Other Urban",null,"Rural",null,null,"Weighted Average",null,null,null,"Congestion band","London",null,null,"Inner and Outer Conurbations",null,null,"Other Urban",null,"Rural",null,null,"Weighted Average",null,null,null,"Congestion band","London",null,null,"Inner and Outer Conurbations",null,null,"Other Urban",null,"Rural",null,null,"Weighted Average",null,null,null,"Congestion band","London",null,null,"Inner and Outer Conurbations",null,null,"Other Urban",null,"Rural",null,null,"Weighted Average"]
[null,"Cost type",null,null,"Motorways","A roads","Other Rds","Motorways","A roads","Other Rds","A roads","Other Rds","Motorways","A roads","Other Rds",null,null,"Cost type",null,null,"Motorways","A roads","Other Rds","Motorways","A roads","Other Rds","A roads","Other Rds","Motorways","A roads","Other Rds",null,null,"Cost type",null,null,"Motorways","A roads","Other Rds","Motorways","A roads","Other Rds","A roads","Other Rds","Motorways","A roads","Other Rds",null,null,"Cost type",null,null,"Motorways","A roads","Other Rds","Motorways","A roads","Other Rds","A roads","Other Rds","Motorways","A roads","Other Rds",null,null,"Cost type",null,null,"Motorways","A roads","Other Rds","Motorways","A roads","Other Rds","A roads","Other Rds","Motorways","A roads","Other Rds"]
[null,"Congestion*",null,1,0.13115105580008515,2.2097780720453164,16.955379101031596,0.1559294622038461,2.0955929718869664,4.7114613892070416,1.3587444910907955,5.1218130202172185,0.13416290327123118,1.5314236331168636,1.4457688588341797,2.8765062791464122,null,"Congestion*",null,1,0.13115105580008515,2.2097780720453164,16.955379101031596,0.1559294622038461,2.0955929718869664,4.7114613892070416,1.3587444910907955,5.1218130202172185,0.13416290327123118,1.5314236331168636,1.4457688588341797,2.8765062791464122,null,"Congestion*",null,1,0.24918700602016175,4.1985783368861016,32.21522029196003,0.29626597818730754,3.9816266465852359,8.951776639493378,2.5816145330725115,9.7314447384127156,0.25490951621533925,2.9097049029220408,2.746960831784941,5.4653619303781831,null,"Congestion*",null,1,0.38033806182024693,6.4083564089314171,49.170599392991626,0.45219544039115372,6.0772196184722027,13.663238028700418,3.9403590241633069,14.853257758629935,0.3890724194865704,4.4411285360389039,4.19272969061912,8.3418682095245948,null,"Congestion*",null,1,0.32787763950021287,5.5244451801132923,42.38844775257899,0.38982365550961529,5.2389824297174172,11.778653473017602,3.3968612277269892,12.804532550543044,0.33540725817807793,3.8285590827921587,3.6144221470854494,7.1912656978660303]
[null,null,null,2,0.41060763226837083,7.2403072500807362,47.954905058263421,0.4825982677504399,6.7740444720164197,18.675646893880501,4.2064431133497289,19.852202901481203,0.42809784928687733,4.005009081923701,7.5287008225629233,7.7557680672104139,null,null,null,2,0.41060763226837083,7.2403072500807362,47.954905058263421,0.4825982677504399,6.7740444720164197,18.675646893880501,4.2064431133497289,19.852202901481203,0.42809784928687733,4.005009081923701,7.5287008225629233,7.7557680672104139,null,null,null,2,0.7801545013099046,13.756583775153397,91.114319610700491,0.91693670872583577,12.870684496831197,35.483729098372947,7.9922419153644837,37.719185512814278,0.81338591364506685,7.6095172556550299,14.304531562869554,14.735959327699785,null,null,null,2,1.1907621335782754,20.996891025234131,139.06922466896393,1.3995349764762759,19.64472896884762,54.159375992253445,12.198685028714213,57.571388414295477,1.2414837629319442,11.614526337578731,21.833232385432474,22.4917273949102,null,null,null,2,1.0265190806709272,18.100768125201839,119.88726264565854,1.2064956693760998,16.935111180041048,46.68911723470125,10.516107783374324,49.630507253703001,1.0702446232171934,10.012522704809252,18.821752056407309,19.389420168026032]
[null,null,null,3,13.952768437785222,63.444643756522353,93.612558724276994,14.068610725493484,42.667175436390366,41.557313011152459,26.302677875208968,44.425142286345753,14.57228181058594,11.176208983145647,19.984379342899047,24.515553378209219,null,null,null,3,13.952768437785222,63.444643756522353,93.612558724276994,14.068610725493484,42.667175436390366,41.557313011152459,26.302677875208968,44.425142286345753,14.57228181058594,11.176208983145647,19.984379342899047,24.515553378209219,null,null,null,3,26.510260031791923,120.54482313739247,177.86386157612628,26.730360378437624,81.067633329141685,78.958894721189665,49.975087962897035,84.407770344056928,27.687335440113284,21.234797067976729,37.97032075150819,46.579551418597518,null,null,null,3,40.463028469577146,183.98946689391479,271.47642030040328,40.798971103931109,123.73480876553205,120.51620773234211,76.277765838106006,128.83291263040269,42.259617250699229,32.411006051122378,57.954700094407237,71.095104796806751,null,null,null,3,34.881921094463053,158.61160939130588,234.03139681069248,35.171526813733713,106.66793859097591,103.89328252788114,65.756694688022421,111.06285571586437,36.430704526464844,27.94052245786412,49.960948357247624,61.288883445523055]
[null,null,null,4,57.671329320911504,195.22557590206335,236.1463171624419,49.918772730564527,150.72962890424856,170.58503094898469,88.685140968019965,229.44803682490749,52.732508430522451,90.385445501116536,86.667565873700184,101.68778924549152,null,null,null,4,57.671329320911504,195.22557590206335,236.1463171624419,49.918772730564527,150.72962890424856,170.58503094898469,88.685140968019965,229.44803682490749,52.732508430522451,90.385445501116536,86.667565873700184,101.68778924549152,null,null,null,4,109.57552570973183,370.92859421392035,448.67800260863964,94.84566818807258,286.38629491807222,324.11155880307092,168.50176783923791,435.95126996732427,100.19176601799265,171.73234645212142,164.66837516003034,193.20679956643386,null,null,null,4,167.24685503064333,566.15417011598367,684.8243197710816,144.76444091863712,437.11592382232078,494.69658975205556,257.18690880725791,665.39930679223176,152.92427444851512,262.11779195323794,251.33594103373051,294.89458881192536,null,null,null,4,144.17832330227873,488.06393975515846,590.36579290610484,124.7969318264113,376.82407226062139,426.46257737246168,221.71285242004996,573.62009206226878,131.83127107630611,225.96361375279133,216.66891468425044,254.21947311372881]
[null,null,null,5,149.84504138737424,679.2277028265795,507.4926523373631,145.6615767843565,613.85916743161908,538.9943282108087,211.79613662194581,905.19837972580331,202.65327091150405,302.28766998670909,246.25746990415584,461.99252131549395,null,null,null,5,149.84504138737424,679.2277028265795,507.4926523373631,145.6615767843565,613.85916743161908,538.9943282108087,211.79613662194581,905.19837972580331,202.65327091150405,302.28766998670909,246.25746990415584,461.99252131549395,null,null,null,5,284.70557863601107,1290.5326353705009,964.23603944098977,276.75699589027732,1166.332418120076,1024.0892236005363,402.41265958169703,1719.8769214790259,385.04121473185774,574.34657297474723,467.88919281789623,877.78579049943835,null,null,null,5,434.55062002338525,1969.7603381970805,1471.7286917783531,422.41857267463382,1780.1915855516952,1563.0835518113452,614.20879620364281,2625.0753012048294,587.69448564336187,876.63424296145627,714.14666272205204,1339.7783118149323,null,null,null,5,374.61260346843557,1698.0692570664485,1268.7316308434079,364.1539419608913,1534.6479185790477,1347.4858205270216,529.49034155486459,2262.9959493145079,506.63317727876017,755.7191749667727,615.64367476038967,1154.9813032887346]
[null,null,null,"Average",19.620009529175658,272.36115123628713,101.73723767595,22.262660146194452,110.60771475010426,65.90506066775697,49.283979671041465,42.354994909314172,22.316084710035948,10.119769290159843,3.9932253477159709,39.466933824277604,null,null,null,"Average",19.620009529175658,272.36115123628713,101.73723767595,22.262660146194452,110.60771475010426,65.90506066775697,49.283979671041465,42.354994909314172,22.316084710035948,10.119769290159843,3.9932253477159709,39.466933824277604,null,null,null,"Average",37.278018105433745,517.48618734894546,193.300751584305,42.299054277769457,210.15465802519807,125.21961526873825,93.639561374978783,80.474490327696913,42.4005609490683,19.227561651303702,7.5871281606603453,74.987174266127454,null,null,null,"Average",56.898027634609392,789.84733858523282,295.03798926025502,64.56171442396392,320.76237277530231,191.12467593649524,142.92354104602023,122.82948523701107,64.716645659104245,29.347330941463543,11.580353508376316,114.45410809040506,null,null,null,"Average",49.050023822939139,680.90287809071788,254.34309418987502,55.656650365486144,276.51928687526066,164.76265166939243,123.20994917760368,105.88748727328542,55.79021177508988,25.299423225399607,9.9830633692899298,98.66733456069403]
[null,"Infrastructure",null,"All",0,0.23825898734054438,0.23825898734054438,0,0.23825898734054438,0.23825898734054438,0.23825898734054438,0.23825898734054438,0,0.23825898734054438,0.23825898734054438,0.18912633928316136,null,"Infrastructure",null,"All",0,0.23825898734054438,0.23825898734054438,0,0.23825898734054438,0.23825898734054438,0.23825898734054438,0.23825898734054438,0,0.23825898734054438,0.23825898734054438,0.19304280347761116,null,"Infrastructure",null,"All",2.1443308860648993,11.43643139234613,47.890056455449418,2.1443308860648993,8.5773235442595972,47.890056455449418,8.3390645569190518,47.890056455449418,2.1443308860648993,7.1477696202163301,47.890056455449418,13.381412093826937,null,"Infrastructure",null,"All",8.5773235442595972,40.02750987321145,197.27844151797075,8.5773235442595972,30.258891392249133,197.27844151797075,29.782373417568046,197.27844151797075,8.5773235442595972,25.970229620119337,197.27844151797075,19.389653341974913,null,"Infrastructure",null,"All",0,0,0,0,0,0,0,0,0,0,0,0]
[null,"Accident",null,"All",0,8.9712063721670638,8.9712063721670638,0,8.9712063721670638,8.9712063721670638,8.9712063721670638,8.9712063721670638,0,2.0932814868389813,2.0932814868389813,4.5818744458088085,null,"Accident",null,"All",0,8.9712063721670638,8.9712063721670638,0,8.9712063721670638,8.9712063721670638,8.9712063721670638,8.9712063721670638,0,2.0932814868389813,2.0932814868389813,4.5181206758740613,null,"Accident",null,"All",0.89712063721670643,9.5692867969782043,9.5692867969782043,0.89712063721670643,9.5692867969782043,9.5692867969782043,9.5692867969782043,9.5692867969782043,0.89712063721670643,10.167367221789338,10.167367221789338,7.0403322290532584,null,"Accident",null,"All",0.89712063721670643,9.5692867969782043,9.5692867969782043,0.89712063721670643,9.5692867969782043,9.5692867969782043,9.5692867969782043,9.5692867969782043,0.89712063721670643,10.167367221789338,10.167367221789338,4.4793656080346338,null,"Accident",null,"All",0,0,0,0,0,0,0,0,0,0,0,0]
[null,"Local Air Quality",null,"All",0.78415284505977534,0.98144588414317591,0.96853509191476628,0.3736952934185746,0.38458002729023616,0.39476298369627755,0.22922505283015868,0.23611235348622461,0.10217016373980946,7.6973908781372405E-2,7.6976373704245288E-2,0.22396812809645683,null,"Local Air Quality",null,"All",1.6111140325616016,1.7982217453789731,1.8660242879983959,0.73702869203171162,0.68380854413653103,0.71215213370044217,0.40977196476953809,0.42723945902677402,0.21716846008271026,0.15839558364979636,0.14725504864693673,0.41460351137700485,null,"Local Air Quality",null,"All",3.5144701037228998,8.4896407137258194,10.893469038463527,1.7329233923328113,2.6376193318432946,3.1568568478990175,1.3374047416671095,1.7158850239913237,0.47157032413616901,0.4125645678147209,0.46318782270048309,1.3552302308196766,null,"Local Air Quality",null,"All",4.6488566927010293,8.7389191264618553,10.31418652447026,2.1719965496968512,2.9571802563265468,3.5610703583407224,1.723724071978959,2.1247502027589991,0.62270720691284487,0.53266595671744787,0.59117856223854615,1.0559860090223201,null,"Local Air Quality",null,"All",3.5243417718179053,9.3024447610744456,9.3475892555122559,1.9628160393171965,2.9207866154422701,3.1745516675825312,1.3424799482462764,1.7439591422357943,0.47279327517070124,0.40786432443845821,0.46404819154774946,2.5457572248516476]
[null,"Noise",null,"All",0.59808042481113777,0.59808042481113777,0.59808042481113777,0.59808042481113777,0.59808042481113777,0.59808042481113777,0.59808042481113777,0.59808042481113777,0,0,0.29904021240556888,0.32393482322174388,null,"Noise",null,"All",0.59808042481113777,0.59808042481113777,0.59808042481113777,0.59808042481113777,0.59808042481113777,0.59808042481113777,0.59808042481113777,0.59808042481113777,0,0,0.29904021240556888,0.32141853876248694,null,"Noise",null,"All",14.652970407872873,17.643372531928559,21.231855080795388,15.251050832684008,14.952010620278442,14.952010620278442,13.157769345845031,13.157769345845031,2.6913619116501195,2.6913619116501195,3.2894423364612577,7.1780145112979552,null,"Noise",null,"All",29.006900603340178,34.987704851451547,42.463710161590775,30.203061452962451,29.904021240556883,29.904021240556883,26.016498479284479,26.315538691690062,5.382723823300239,5.382723823300239,6.877924885328083,11.060127138220434,null,"Noise",null,"All",0,0,0,0,0,0,0,0,0,0,0,0]
[null,"Greenhouse Gases",null,"All",2.4848067320034803,3.0812593647368458,3.648811851076637,2.455221849221354,2.7309477938152011,3.0311975573074195,2.4586040550991592,2.8428941889469681,2.4813423865889863,2.3625491433115644,2.344565805767421,2.5810327587522495,null,"Greenhouse Gases",null,"All",5.3432519307341817,5.3322112571354952,6.1773336015746754,5.0769320362985129,4.6150361539275169,5.0979432467024424,4.2036110755680971,4.8022550758470395,5.2761885549854908,4.4879497106330737,4.0357445081818817,4.680637772656044,null,"Greenhouse Gases",null,"All",23.077949675966718,27.835510171015105,33.06921130916097,23.160892052519973,28.062434213790453,31.220206325381692,25.243102192750566,29.182377751752636,23.151996297882594,22.926876265207088,23.470391621237059,24.438252766052575,null,"Greenhouse Gases",null,"All",27.151596837443329,44.523205159207144,54.333321279395825,27.532590186956618,37.553537156006627,43.605682500872661,35.15104194687045,41.24985915247192,27.370158418084063,28.048765154033667,30.54898255234361,28.613130097086177,null,"Greenhouse Gases",null,"All",32.907371917360557,48.198601082266997,54.566138308716788,34.327493844471476,43.744700581249155,47.603459041217633,36.097265411022114,43.766126683208917,33.130830868023857,32.546994370308326,34.09285127705386,40.282229527256405]
[null,"Indirect Taxation",null,"All",1.8317547200793818,1.767578209209288,1.7065112672427214,1.8349379645606019,1.8052706815119841,1.7729647092469318,1.8345740493720859,1.7932255858082093,1.8321274732352058,1.8449092692238498,1.8468442223015038,1.8214010887720171,null,"Indirect Taxation",null,"All",-0.70209876109518132,-0.70016702219178517,-0.84803442324207523,-0.65550192112602579,-0.57468599650702568,-0.65917816172691945,-0.50270073015569061,-0.60744288146437175,-0.69036497232144034,-0.55245023123312953,-0.47332984296289626,-0.58616402797774314,null,"Indirect Taxation",null,"All",-11.745296277958779,-14.166610058396031,-16.830250952016197,-11.787508987505962,-14.282100825661386,-15.889217989433476,-12.847229428592069,-14.852085111641946,-11.782981580379285,-11.668408946371372,-11.945025759295628,-12.437609201992922,null,"Indirect Taxation",null,"All",-13.818539070980181,-22.659648850166988,-27.652411290965102,-14.012441901725396,-19.112504636491501,-22.192684686747327,-17.889778249014057,-20.993711485314503,-13.929773845110827,-14.275144091682032,-15.547605229468418,-14.562372097554153,null,"Indirect Taxation",null,"All",-14.385853598272384,-21.072949490945891,-23.857574034482298,-15.006895334254837,-19.125188495048533,-20.812684481812937,-15.780844376939502,-19.134558467656095,-14.483575724796465,-14.228254808226426,-14.90428243558573,-17.61099524649045]
[null,"Total",null,null,25.318804251129432,287.99898047869522,117.86864167050287,27.524595678206122,125.33605903704043,80.911531702326357,63.61392861266161,57.03477282187432,26.73172473359995,16.73574208565616,10.892192436074236,49.188271408212032,null,"Total",null,null,26.470357156187401,288.59896300092856,118.74010692659974,28.019199378209791,125.13941923598001,80.86352367075169,63.202207765542155,56.784592347042356,27.119076752782711,16.545204827389114,10.333475748166988,49.008593098447079,null,"Total",null,null,69.819563538319073,578.29381889654337,299.12437931313627,73.697863091081885,259.67123170668663,216.11881432529154,138.43895958054668,167.13778059007151,59.973959425639492,50.905092291609932,80.922547859002265,115.94280689518493,null,"Total",null,null,113.36128687859005,905.03431554237625,581.34452424969584,119.93136489333074,411.89278498092824,452.85049366446725,227.2766875096863,378.3736501135665,93.636905443766878,85.173938625741542,241.49664301857823,164.4899981871894,null,"Total",null,null,71.095883913845213,717.33097444311352,294.39924771962177,76.940064915019974,304.05958557690354,194.72797789637968,144.86885015993252,132.26301463107404,74.910260193487986,44.026027111919959,29.635680402305809,123.88432606631164]
[]
[]
[null,"Table A 5.4.2a:",null,null,2060,"Marginal External Costs & Indirect Tax - Cars (pence per vehicle km, 2023 prices, 1 d.p.)",null,null,null,null,null,null,null,null,null,null,null,"Table A 5.4.2b:",null,null,2060,"Marginal External Costs & Indirect Tax - LGVs (pence per vehicle km, 2023 prices, 1 d.p.)",null,null,null,null,null,null,null,null,null,null,null,"Table A 5.4.2c:",null,null,2060,"Marginal External Costs & Indirect Tax - Rigids (pence per vehicle km, 2023 prices, 1 d.p.)",null,null,null,null,null,null,null,null,null,null,null,"Table A 5.4.2d:",null,null,2060,"Marginal External Costs & Indirect Tax - Artics (pence per vehicle km, 2023 prices, 1 d.p.)",null,null,null,null,null,null,null,null,null,null,null,"Table A 5.4.2e:",null,null,2060,"Marginal External Costs & Indirect Tax - PSVs (pence per vehicle km, 2023 prices, 1 d.p.)"]
[null,null,null,"Congestion band","London",null,null,"Inner and Outer Conurbations",null,null,"Other Urban",null,"Rural",null,null,"Weighted Average",null,null,null,"Congestion band","London",null,null,"Inner and Outer Conurbations",null,null,"Other Urban",null,"Rural",null,null,"Weighted Average",null,null,null,"Congestion band","London",null,null,"Inner and Outer Conurbations",null,null,"Other Urban",null,"Rural",null,null,"Weighted Average",null,null,null,"Congestion band","London",null,null,"Inner and Outer Conurbations",null,null,"Other Urban",null,"Rural",null,null,"Weighted Average",null,null,null,"Congestion band","London",null,null,"Inner and Outer Conurbations",null,null,"Other Urban",null,"Rural",null,null,"Weighted Average"]
[null,"Cost type",null,null,"Motorways","A roads","Other Rds","Motorways","A roads","Other Rds","A roads","Other Rds","Motorways","A roads","Other Rds",null,null,"Cost type",null,null,"Motorways","A roads","Other Rds","Motorways","A roads","Other Rds","A roads","Other Rds","Motorways","A roads","Other Rds",null,null,"Cost type",null,null,"Motorways","A roads","Other Rds","Motorways","A roads","Other Rds","A roads","Other Rds","Motorways","A roads","Other Rds",null,null,"Cost type",null,null,"Motorways","A roads","Other Rds","Motorways","A roads","Other Rds","A roads","Other Rds","Motorways","A roads","Other Rds",null,null,"Cost type",null,null,"Motorways","A roads","Other Rds","Motorways","A roads","Other Rds","A roads","Other Rds","Motorways","A roads","Other Rds"]
[null,"Congestion*",null,1,0.14544887714103721,2.3731811291981209,18.542298046429298,0.16875326194902965,2.1334060157776902,5.0694015145364419,1.4662380433850741,5.4898405139505648,0.1447057712442274,1.6717754801672668,1.5787332322645744,3.125280796940876,null,"Congestion*",null,1,0.14544887714103721,2.3731811291981209,18.542298046429298,0.16875326194902965,2.1334060157776902,5.0694015145364419,1.4662380433850741,5.4898405139505648,0.1447057712442274,1.6717754801672668,1.5787332322645744,3.125280796940876,null,"Congestion*",null,1,0.27635286656797065,4.5090441454764294,35.23036628821567,0.32063119770315623,4.0534714299776109,9.6318628776192394,2.785852282431641,10.430696976506072,0.27494096536403206,3.1763734123178065,2.9995931413026908,5.9380335141876639,null,"Congestion*",null,1,0.42180174370900786,6.8822252746745507,53.772664334644965,0.48938445965218591,6.1868774457553011,14.701264392155682,4.2520903258167149,15.920537490456635,0.41964673660825941,4.8481488924850735,4.5783263735672648,9.0633143111285399,null,"Congestion*",null,1,0.36362219285259301,5.9329528229953024,46.355745116073251,0.42188315487257411,5.3335150394442241,12.673503786341104,3.6655951084626852,13.72460128487641,0.36176442811056853,4.1794387004181672,3.946833080661436,7.8132019923521883]
[null,null,null,2,0.45008293388266385,7.7767984397925876,51.562217896281496,0.52511472845530494,7.2129983519864087,20.084937304919841,4.5234477454809978,21.37640258304382,0.4672484767098804,4.3408165144863426,8.1550302403825654,8.3821343472759686,null,null,null,2,0.45008293388266385,7.7767984397925876,51.562217896281496,0.52511472845530494,7.2129983519864087,20.084937304919841,4.5234477454809978,21.37640258304382,0.4672484767098804,4.3408165144863426,8.1550302403825654,8.3821343472759686,null,null,null,2,0.85515757437706119,14.775917035605916,97.968214002934843,0.99771798406507939,13.704696868774176,38.161380879347696,8.5945507164138952,40.615164907783253,0.88777210574877252,8.2475513775240525,15.494557456726875,15.92605525982434,null,null,null,2,1.3052405082597252,22.552715475398504,149.53043189921632,1.5228327125203842,20.917695220760585,58.246318184267544,13.117998461894894,61.991567490827066,1.355020582458653,12.588367892010396,23.649587697109439,24.30818960710031,null,null,null,2,1.1252073347066596,19.441996099481468,128.90554474070373,1.3127868211382623,18.032495879966021,50.212343262299605,11.308619363702494,53.441006457609554,1.168121191774701,10.852041286215856,20.387575600956414,20.955335868189923]
[null,null,null,3,15.33996492877592,66.972975371755382,100.45029437645438,15.53323827630677,45.883322410520549,44.609455879438848,28.368119376270247,48.095020709318916,15.739925056139288,11.96052607480601,289.42001104210709,32.900045877937522,null,null,null,3,15.33996492877592,66.972975371755382,100.45029437645438,15.53323827630677,45.883322410520549,44.609455879438848,28.368119376270247,48.095020709318916,15.739925056139288,11.96052607480601,289.42001104210709,32.900045877937522,null,null,null,3,29.145933364674253,127.24865320633521,190.85555931526332,29.513152724982866,87.178312579989026,84.757966170933798,53.899426814913468,91.38053934770592,29.905857606664647,22.724999542131421,549.89802098000348,62.510087168081292,null,null,null,3,44.485898293450177,194.22162857809059,291.30585369171763,45.046391001289642,133.06163499050956,129.36742205037265,82.267546191183712,139.47556005702486,45.645782662803931,34.685525616937433,839.31803202211051,95.410133046018814,null,null,null,3,38.349912321939811,167.43243842938847,251.12573594113593,38.833095690766925,114.70830602630136,111.52363969859711,70.920298440675623,120.23755177329728,39.349812640348219,29.901315187015026,723.55002760526759,82.250114694843802]
[null,null,null,4,61.279901485893191,210.83655671614673,254.01361057117413,53.06255190891288,162.68168447230767,183.87182600349993,95.105556541142278,287.59071119995588,55.880565668998322,96.900917683869437,91.640636281533929,110.36534245241276,null,null,null,4,61.279901485893191,210.83655671614673,254.01361057117413,53.06255190891288,162.68168447230767,183.87182600349993,95.105556541142278,287.59071119995588,55.880565668998322,96.900917683869437,91.640636281533929,110.36534245241276,null,null,null,4,116.43181282319706,400.58945776067873,482.62586008523078,100.81884862693447,309.09520049738455,349.35646940664986,180.7005574281703,546.42235127991614,106.17307477109681,184.11174359935194,174.11720893491446,209.69415065958424,null,null,null,4,177.7117143090903,611.42601447682546,736.6394706564048,153.88140053584738,471.77688496969216,533.22829541014983,275.80611396931261,834.01306247987202,162.05364044009514,281.01266128322135,265.75784521644835,320.05949311199697,null,null,null,4,153.19975371473299,527.09139179036674,635.03402642793526,132.65637977228221,406.70421118076916,459.67956500874988,237.76389135285572,718.97677799988958,139.70141417249579,242.25229420967361,229.10159070383483,275.91335613103189]
[null,null,null,5,163.76817272698082,758.4932800155824,548.66583578321456,155.629296687037,654.12348225507776,585.14197648819072,230.35985848631009,970.41397997163983,217.91933071285922,327.62504621767243,263.49965163847122,494.33104016246136,null,null,null,5,163.76817272698082,758.4932800155824,548.66583578321456,155.629296687037,654.12348225507776,585.14197648819072,230.35985848631009,970.41397997163983,217.91933071285922,327.62504621767243,263.49965163847122,494.33104016246136,null,null,null,5,311.15952818126357,1441.1372320296064,1042.4650879881076,295.69566370537024,1242.8346162846476,1111.7697553275625,437.68373112398916,1843.7865619461159,414.04672835443245,622.48758781357765,500.64933811309538,939.22897630867635,null,null,null,5,474.92770090824433,2199.6305120451889,1591.1309237713222,451.32496039240726,1896.9580985397254,1696.9117318157532,668.04358961029925,2814.2005419177558,631.96605906729167,950.11263403124997,764.14898975156655,1433.5600164711377,null,null,null,5,409.42043181745203,1896.2332000389558,1371.6645894580365,389.07324171759245,1635.3087056376944,1462.8549412204768,575.89964621577519,2426.0349499290996,544.79832678214814,819.0626155441812,658.74912909617808,1235.8276004061534]
[null,null,null,"Average",22.196177580786195,304.79294240216092,111.19507436720006,24.655079445230669,120.94679676083084,71.981409931677533,54.212322481502262,44.755797178389038,25.196740537737874,11.184644888142506,15.515708455190854,44.936588092170666,null,null,null,"Average",22.196177580786195,304.79294240216092,111.19507436720006,24.655079445230669,120.94679676083084,71.981409931677533,54.212322481502262,44.755797178389038,25.196740537737874,11.184644888142506,15.515708455190854,44.936588092170666,null,null,null,"Average",42.172737403493763,579.10659056410577,211.27064129768013,46.84465094593827,229.79891384557857,136.76467887018728,103.00341271485428,85.036014638939179,47.873807021701964,21.250825287470761,29.47984606486262,85.379517375124266,null,null,null,"Average",64.368914984279968,883.89953296626675,322.46571566488012,71.499730391168939,350.74571060640943,208.74608880186486,157.21573519635655,129.79181181732821,73.070547559439831,32.435470175613261,44.995554520053481,130.31610546729493,null,null,null,"Average",55.490443951965489,761.98235600540238,277.98768591800012,61.637698613076672,302.36699190207713,179.95352482919384,135.53080620375565,111.88949294597261,62.991851344344681,27.961612220356262,38.789271137977138,112.34147023042667]
[null,"Infrastructure",null,"All",0,0.25488388126432832,0.25488388126432832,0,0.25488388126432832,0.25488388126432832,0.25488388126432832,0.25488388126432832,0,0.25488388126432832,0.25488388126432832,0.20241446319247186,null,"Infrastructure",null,"All",0,0.25488388126432832,0.25488388126432832,0,0.25488388126432832,0.25488388126432832,0.25488388126432832,0.25488388126432832,0,0.25488388126432832,0.25488388126432832,0.20654354550976403,null,"Infrastructure",null,"All",2.2939549313789547,12.23442630068776,51.231660134129996,2.2939549313789547,9.1758197255158187,51.231660134129996,8.9209358442514883,51.231660134129996,2.2939549313789547,7.6465164379298489,51.231660134129996,14.318445702052697,null,"Infrastructure",null,"All",9.1758197255158187,42.820492052407161,211.0438536868638,9.1758197255158187,32.370252920569691,211.0438536868638,31.86048515804104,211.0438536868638,9.1758197255158187,27.782343057811786,211.0438536868638,20.677629000196422,null,"Infrastructure",null,"All",0,0,0,0,0,0,0,0,0,0,0,0]
[null,"Accident",null,"All",0,9.9049367370551735,9.9049367370551735,0,9.9049367370551735,9.9049367370551735,9.9049367370551735,9.9049367370551735,0,2.3111519053128733,2.3111519053128733,5.0636283418553933,null,"Accident",null,"All",0,9.9049367370551735,9.9049367370551735,0,9.9049367370551735,9.9049367370551735,9.9049367370551735,9.9049367370551735,0,2.3111519053128733,2.3111519053128733,4.98853179961778,null,"Accident",null,"All",0.99049367370551711,10.56526585285885,10.56526585285885,0.99049367370551711,10.56526585285885,10.56526585285885,10.56526585285885,10.56526585285885,0.99049367370551711,11.225594968662529,11.225594968662529,7.7684724342440763,null,"Accident",null,"All",0.99049367370551711,10.56526585285885,10.56526585285885,0.99049367370551711,10.56526585285885,10.56526585285885,10.56526585285885,10.56526585285885,0.99049367370551711,11.225594968662529,11.225594968662529,4.9265816028113036,null,"Accident",null,"All",0,0,0,0,0,0,0,0,0,0,0,0]
[null,"Local Air Quality",null,"All",0.86569377278095772,1.0839307520493107,1.0695116517472367,0.41259683012953063,0.42468157268287693,0.43587421319655251,0.25309666443237461,0.26071647175524548,0.11279156556639014,8.498519292105923E-2,8.4989867147930387E-2,0.247448578205268,null,"Local Air Quality",null,"All",1.774040187604226,1.9872195526520902,2.0604545041089923,0.8113780692535969,0.7552612107344383,0.78640047607380115,0.45244473623947978,0.47167054389663426,0.23897333262032319,0.17479738197046246,0.16258033289897486,0.45747200996118936,null,"Local Air Quality",null,"All",3.8846132699772347,9.46556976722683,12.051533441325562,1.9166483330389235,2.9305933921724967,3.4936045678589438,1.4811219910732281,1.8922874469090165,0.52146027056158228,0.45590061253891795,0.51181135311195747,1.4999139820171588,null,"Local Air Quality",null,"All",5.1370887518787649,9.7175392331287718,11.402898297872769,2.3996345542725783,3.2802056050412878,3.9408047451151722,1.9090054882867453,2.3438113250600803,0.68839287261558979,0.5882586315681646,0.65317174599168237,1.1703072559784757,null,"Local Air Quality",null,"All",3.9016470708947959,10.353840841154053,10.339473915212572,2.174250193972143,3.2454958751748415,3.5129165297774878,1.4850848892932393,1.9235344243175065,0.5240544155824487,0.45075977968202796,0.51280813332561614,2.8225974889873853]
[null,"Noise",null,"All",0.66032911580367815,0.66032911580367815,0.66032911580367815,0.66032911580367815,0.66032911580367815,0.66032911580367815,0.66032911580367815,0.66032911580367815,0,0,0.33016455790183907,0.35798153675331368,null,"Noise",null,"All",0.66032911580367815,0.66032911580367815,0.66032911580367815,0.66032911580367815,0.66032911580367815,0.66032911580367815,0.66032911580367815,0.66032911580367815,0,0,0.33016455790183907,0.35487087601757272,null,"Noise",null,"All",16.178063337190117,19.479708916208509,23.44168361103057,16.838392452993791,16.508227895091952,16.508227895091952,14.52724054768092,14.52724054768092,2.9714810211165519,2.9714810211165519,3.63181013692023,7.9151784675636163,null,"Noise",null,"All",32.025962116478389,38.629253274515172,46.883367222061139,33.346620348085743,33.016455790183905,33.016455790183905,28.724316537459995,29.05448109536184,5.9429620422331038,5.9429620422331038,7.5937848317422985,12.230981707070704,null,"Noise",null,"All",0,0,0,0,0,0,0,0,0,0,0,0]
[null,"Greenhouse Gases",null,"All",2.6733927807491198,3.3357501138886305,3.9350437310411328,2.6414992411945155,2.9526273489457147,3.2690465042076626,2.6518384785492786,3.0608344102839866,2.6691866280334007,2.545024448030663,2.526442609413706,2.7817250312512378,null,"Greenhouse Gases",null,"All",5.7294986651479558,5.7760516850595813,6.6621285438240649,5.4405905783203758,4.9906222833439626,5.4990133631294684,4.5350575342968567,5.169836873317128,5.6537973896091724,4.8318213644608177,4.348538944740663,5.0390866680290012,null,"Greenhouse Gases",null,"All",24.858119623988657,30.187583726508567,35.676749152566778,24.953164755513939,30.363218211517797,33.695004109288249,27.24771404020877,31.410253780843242,24.938264764091123,24.704400832182728,25.293383096700346,26.348113751851361,null,"Greenhouse Gases",null,"All",29.27687154738118,48.290520512180869,58.616557830340398,29.690074940899674,40.638427493383318,47.071004551127068,37.995433701519275,44.396846944684945,29.525284630178874,30.222589652739121,32.928945213387863,30.86275917047719,null,"Greenhouse Gases",null,"All",35.497035330052505,52.297796690727012,58.868768017499789,37.042532824392154,47.400699585417371,51.391247846032925,38.947325896906214,47.100892002538117,35.752783338881855,35.07547698278848,36.74705878217042,43.478544400278324]
[null,"Indirect Taxation",null,"All",1.8359445685081379,1.7707468327317524,1.7117566397518051,1.8390839412618127,1.8084587074992133,1.7773126607247747,1.8380662204161928,1.7978075754873846,1.8363585922075434,1.8485802324011658,1.8504092961765231,1.8252811137671445,null,"Indirect Taxation",null,"All",-0.68425504544728966,-0.69170579302566582,-0.83352119022712423,-0.6380156987327209,-0.56599888456027847,-0.64736618605372998,-0.49308636551855228,-0.59468193616009046,-0.6721391591638366,-0.54058301327934744,-0.46323431871050202,-0.57375554347338498,null,"Indirect Taxation",null,"All",-11.572508463612612,-14.053599928528296,-16.609039129566121,-11.616756001464994,-14.135365226749407,-15.68645280232311,-12.68496596339962,-14.622804669917473,-11.609819423821291,-11.500945849621742,-11.775142061730651,-12.266163893558501,null,"Indirect Taxation",null,"All",-13.629624802481501,-22.481284417031119,-27.288492527199775,-13.821988498570235,-18.918910731334915,-21.913548039771648,-17.688485080148244,-20.668614311810945,-13.745271623183669,-14.069896671150323,-15.329819911721133,-14.367922719549465,null,"Indirect Taxation",null,"All",-14.194732032695057,-20.91546432010816,-23.544020146088563,-14.812970378407002,-18.956500799128154,-20.552821701725772,-15.574936102963433,-18.836570132951074,-14.29703774750655,-14.026097961020337,-14.694773238823776,-17.387538867991577]
[null,"Total",null,null,28.231537818628091,321.80351983495387,128.73153612386341,30.208588573620208,136.95271412408181,88.283793043929705,69.775473579023298,60.695305370038852,29.815077323545207,18.229270548072591,22.873750572408053,55.415067157195516,null,"Total",null,null,29.67579050389476,322.68465758097011,129.90428595902921,30.929361509875598,136.94683110447215,88.439607318950252,69.526888120643235,60.622772393565889,30.417372100803529,18.21671640787164,22.459793758599034,55.409337447832591,null,"Total",null,null,78.80547377612163,646.98554519906793,327.62849436002574,82.220549091104388,285.20667369598613,236.57198862709217,153.06072502752789,180.03991773144369,67.979642258734387,56.753773310279584,109.59896369265704,130.96347781929467,null,"Total",null,null,127.3455259967581,1011.4413194743266,633.6891660276774,133.28038513507803,451.69740753711159,492.46992538824196,250.58175685437422,406.52745641034687,105.64822888050506,94.127321857477668,293.11108505498055,185.81644148427952,null,"Total",null,null,80.694394320217725,803.71852921717527,323.65190770462391,86.04151125303396,334.05668656354118,214.30486750327844,160.38828088699168,142.07734923987715,84.971651351302441,49.461751021806435,61.354364814649401,141.25507325170079]
[]
[]
[]
[null,"Table A 5.4.2f:",null,null,"Marginal External CO2 emissions - Cars (tonnes per vehicle km, 5 d.p.)",null,null,null,null,null,null,null,null,null,null,null,null,"Table A 5.4.2f:",null,null,"Marginal External CO2 emissions - LGVs (tonnes per vehicle km, 5 d.p.)",null,null,null,null,null,null,null,null,null,null,null,null,"Table A 5.4.2f:",null,null,"Marginal External CO2 emissions - Rigids (tonnes per vehicle km, 5 d.p.)",null,null,null,null,null,null,null,null,null,null,null,null,"Table A 5.4.2f:",null,null,"Marginal External CO2 emissions - Artics (tonnes per vehicle km, 5 d.p.)",null,null,null,null,null,null,null,null,null,null,null,null,"Table A 5.4.2f:",null,null,"Marginal External CO2 emissions - PSVs (tonnes per vehicle km, 5 d.p.)"]
[null,null,null,null,"London",null,null,"Inner and Outer Conurbations",null,null,"Other Urban",null,"Rural",null,null,"Weighted Average",null,null,null,null,"London",null,null,"Inner and Outer Conurbations",null,null,"Other Urban",null,"Rural",null,null,"Weighted Average",null,null,null,null,"London",null,null,"Inner and Outer Conurbations",null,null,"Other Urban",null,"Rural",null,null,"Weighted Average",null,null,null,null,"London",null,null,"Inner and Outer Conurbations",null,null,"Other Urban",null,"Rural",null,null,"Weighted Average",null,null,null,null,"London",null,null,"Inner and Outer Conurbations",null,null,"Other Urban",null,"Rural",null,null,"Weighted Average"]
[null,"Year",null,null,"Motorways","A roads","Other Rds","Motorways","A roads","Other Rds","A roads","Other Rds","Motorways","A roads","Other Rds",null,null,"Year",null,null,"Motorways","A roads","Other Rds","Motorways","A roads","Other Rds","A roads","Other Rds","Motorways","A roads","Other Rds",null,null,"Year",null,null,"Motorways","A roads","Other Rds","Motorways","A roads","Other Rds","A roads","Other Rds","Motorways","A roads","Other Rds",null,null,"Year",null,null,"Motorways","A roads","Other Rds","Motorways","A roads","Other Rds","A roads","Other Rds","Motorways","A roads","Other Rds",null,null,"Year",null,null,"Motorways","A roads","Other Rds","Motorways","A roads","Other Rds","A roads","Other Rds","Motorways","A roads","Other Rds"]
[null,2025,null,null,1.4871433534149241E-4,1.6665405852899588E-4,2.0478488590712049E-4,1.4601119260370106E-4,1.5243166395611748E-4,1.7208359923178646E-4,1.4081335683201879E-4,1.6390587314641175E-4,1.495293185218753E-4,1.3824383161473733E-4,1.3654760531436378E-4,1.4972194602655544E-4,null,2025,null,null,2.8259778060265266E-4,2.481011993387865E-4,3.0264921021957883E-4,2.678720139420753E-4,2.2138179724785046E-4,2.5057936101819029E-4,2.0603185014066915E-4,2.3941583863141955E-4,2.8462947354380074E-4,2.2552013068279517E-4,2.0118336555810035E-4,2.3617743791448791E-4,null,2025,null,null,6.4177552725622493E-4,7.1055814190444709E-4,8.9607035318663749E-4,6.4085968858430776E-4,7.4113841838696582E-4,8.4838125417042011E-4,6.8264610210757486E-4,8.0764504893555186E-4,6.4262200961959172E-4,6.3354805129094323E-4,6.4842310992525647E-4,6.7023965787433497E-4,null,2025,null,null,8.2827236366581059E-4,1.2551306328655587E-3,1.6288770804851749E-3,8.3583807750792422E-4,1.0978377203716191E-3,1.3096895026427414E-3,1.0376589695035123E-3,1.2642923167285461E-3,8.2977136657563636E-4,8.5838144792293655E-4,9.3342146021715045E-4,8.6836832334926078E-4,null,2025,null,null,7.785286251010586E-4,1.0413562811841524E-3,1.2562180872151382E-3,8.0400439568336745E-4,9.7323344708124193E-4,1.0996848358298104E-3,8.4162957288197806E-4,1.0354268769015183E-3,7.7904187751255346E-4,7.7450543168969819E-4,8.1022243274795171E-4,9.3317382730365313E-4]
[null,2030,null,null,1.1204400326406916E-4,1.2806770411068051E-4,1.5579885146157425E-4,1.0993735048189915E-4,1.1640427495397882E-4,1.3074247251697996E-4,1.0702981238215063E-4,1.2426451153788479E-4,1.1217794095373727E-4,1.0457986757453352E-4,1.0348171759372756E-4,1.133916991025973E-4,null,2030,null,null,2.5709893418810278E-4,2.301018875716762E-4,2.763263426239537E-4,2.416757386673603E-4,2.0399310704430763E-4,2.29128521242557E-4,1.8906626644926656E-4,2.1856846176823187E-4,2.5526499598962053E-4,2.0560444808420989E-4,1.8409014789278209E-4,2.1493315503538061E-4,null,2030,null,null,6.0035535720855018E-4,6.7898850852359471E-4,8.4353007994947119E-4,6.0021447785717512E-4,7.014462345926115E-4,7.9757356032229723E-4,6.4215334044282033E-4,7.5703536222444009E-4,6.0164589813371848E-4,5.9346745971274549E-4,6.0744448793131228E-4,6.2911273892551564E-4,null,2030,null,null,7.3535791761100201E-4,1.1405773883641161E-3,1.4576303746362837E-3,7.4499399102824298E-4,9.886434848132967E-4,1.1704272187158856E-3,9.2843527118657908E-4,1.1266930280278036E-3,7.4001482043578939E-4,7.6422820409583912E-4,8.3127084840579251E-4,7.7409586124481996E-4,null,2030,null,null,7.5577488878858219E-4,1.0421633653950164E-3,1.2388701362228438E-3,7.8501606299105273E-4,9.6423586831646064E-4,1.0813368508886365E-3,8.2382279751634559E-4,1.0134687128217643E-3,7.5944039736593248E-4,7.5371365758123158E-4,7.8918639208461205E-4,9.1607727764102991E-4]
[null,2035,null,null,8.0922554846759678E-5,9.5172973280253662E-5,1.1514179252385969E-4,7.9567648142158046E-5,8.5643986294881494E-5,9.6080912155358151E-5,7.8199708635551065E-5,9.095436098644062E-5,8.0914473139405562E-5,7.5957390555269418E-5,7.5247844427255923E-5,8.2653595810368527E-5,null,2035,null,null,2.0452510551678557E-4,1.891128484069653E-4,2.2473518583227843E-4,1.9278681582969874E-4,1.6612377190584765E-4,1.8586928641217094E-4,1.531954686264497E-4,1.7675491716766508E-4,2.0256176183585834E-4,1.6573606281934439E-4,1.485106211483173E-4,1.7314685486507304E-4,null,2035,null,null,5.5084450436037507E-4,6.3623409196983589E-4,7.793309941520832E-4,5.5153104969056694E-4,6.5112365595241747E-4,7.3598437884506336E-4,5.9333250820823051E-4,6.9621671519113184E-4,5.5240869521796978E-4,5.455228686311053E-4,5.5840585289692235E-4,5.7919940565873444E-4,null,2035,null,null,6.3198468182083941E-4,9.9888017813626307E-4,1.2578659426283614E-3,6.4078770353715928E-4,8.5684412807194947E-4,1.0092562188377162E-3,8.0459492582166299E-4,9.6794277930584453E-4,6.3653328315739E-4,6.5615113216140237E-4,7.1390694821382022E-4,6.6567277166028533E-4,null,2035,null,null,7.4076743687699902E-4,1.0447607488754205E-3,1.2237188419296316E-3,7.7087576828499082E-4,9.5823456904101296E-4,1.0663920309374273E-3,8.100918019331182E-4,9.9463807998764232E-4,7.4470312026619749E-4,7.3731922012655355E-4,7.7238486763896706E-4,9.0257228692687671E-4]
[null,2040,null,null,6.4466779214884893E-5,7.7584165837184894E-5,9.3208160642348144E-5,6.3513585142464457E-5,6.9316553021312675E-5,7.7545133346677359E-5,6.2904294063676654E-5,7.3155172129286817E-5,6.440837783088123E-5,6.0810126198601735E-5,6.0289550844777166E-5,6.6327464370334398E-5,null,2040,null,null,1.5967622563142628E-4,1.5201049503089752E-4,1.7897494331121981E-4,1.5095169103977971E-4,1.3264098721116408E-4,1.477931308746342E-4,1.2172190987991418E-4,1.401163132005404E-4,1.578500034195603E-4,1.3106005917082005E-4,1.1753816298128365E-4,1.3685050569748675E-4,null,2040,null,null,5.221771554883921E-4,6.1384179185578055E-4,7.4278928970114187E-4,5.2342073476711372E-4,6.2397142286786363E-4,7.0123720172850788E-4,5.6588902772111433E-4,6.6101492968592907E-4,5.2382379919280024E-4,5.1786168256340726E-4,5.301172949331843E-4,5.5065735239233024E-4,null,2040,null,null,5.9567687897391498E-4,9.5597908497638869E-4,1.1888041165610749E-3,6.041253405567994E-4,8.1409531196279677E-4,9.5381573422036029E-4,7.6333420755445751E-4,9.1112695453329404E-4,6.0019739921712693E-4,6.1740564790142176E-4,6.7208141851905182E-4,6.2761732346828375E-4,null,2040,null,null,7.3158685530069138E-4,1.0480215484305535E-3,1.2118852350618283E-3,7.623660611545029E-4,9.568348908400075E-4,1.0562516383211748E-3,8.016641062754754E-4,9.8081187181635983E-4,7.3590427654497898E-4,7.2672257787695285E-4,7.613266075490627E-4,8.9385414132239511E-4]
[null,2045,null,null,5.7159626449283553E-5,6.9839867381749223E-5,8.3423777983604585E-5,5.6404215979497928E-5,6.2141679646459975E-5,6.9312883324544697E-5,5.6167939729882431E-5,6.5220081171809036E-5,5.709868923704942E-5,5.4122535562178652E-5,5.3683870355044621E-5,5.9104156846477506E-5,null,2045,null,null,1.3278408599189754E-4,1.2919824437346747E-4,1.5111256741296271E-4,1.258734589457866E-4,1.1229375177931173E-4,1.2468578274384983E-4,1.0269253535374278E-4,1.1790337198031695E-4,1.3121833148473466E-4,1.1015201505132997E-4,9.8869356003246351E-5,1.1496712315963439E-4,null,2045,null,null,5.0953088447222745E-4,6.058475375000942E-4,7.2749454736478454E-4,5.1108033916930507E-4,6.1370448692963059E-4,6.867481487193908E-4,5.5468289983943769E-4,6.4528381112536042E-4,5.1116579777544342E-4,5.0577024908179068E-4,5.177421125357835E-4,5.3838463127505831E-4,null,2045,null,null,5.9082293297304991E-4,9.572512550770013E-4,1.1810790900303081E-3,5.9918137267957823E-4,8.1149635890160905E-4,9.4786636627328601E-4,7.6082670197008279E-4,9.0188778475980193E-4,5.9538985227986115E-4,6.115003646785228E-4,6.6571953881504201E-4,6.2251681739429281E-4,null,2045,null,null,7.2224739785392664E-4,1.045223441902877E-3,1.1975504331070328E-3,7.5313259163932401E-4,9.5186146237660567E-4,1.0441266639419754E-3,7.9218549868110633E-4,9.6584171074880849E-4,7.2677647059912406E-4,7.1608712553871594E-4,7.5014619359423953E-4,8.8354344538097416E-4]
[null,2050,null,null,5.4013506721349674E-5,6.6587830884959446E-5,7.9154896533087279E-5,5.3349859738681499E-5,5.9099471892839567E-5,6.5755178316315594E-5,5.3302832438472367E-5,6.17597914098428E-5,5.3944926632872854E-5,5.1273022535198569E-5,5.0870087177379321E-5,5.6007313096880488E-5,null,2050,null,null,1.1666671344627244E-4,1.1521701844465451E-4,1.3403897519442422E-4,1.1078335647307031E-4,9.9874133509692084E-5,1.1059349412596077E-4,9.1140080755198303E-5,1.0436449020437871E-4,1.1524619964961462E-4,9.7502939021826688E-5,8.7592713937238969E-5,1.017158372281065E-4,null,2050,null,null,5.0197397472486675E-4,6.0188835233209999E-4,7.1822330155653119E-4,5.0367918704431768E-4,6.0780798315385263E-4,6.7796758520148213E-4,5.4796601425522752E-4,6.3532728613684901E-4,5.0358134537051421E-4,4.9851679495109579E-4,5.1025631438998654E-4,5.3106365643612596E-4,null,2050,null,null,5.8992753205034559E-4,9.6243992766261246E-4,1.1800486555539377E-3,5.9825023006985394E-4,8.1331381613637145E-4,9.4686166733534292E-4,7.6193870197381131E-4,8.9821353129069398E-4,5.9454021457902735E-4,6.0991819899938282E-4,6.6405684780185053E-4,6.2158988979440772E-4,null,2050,null,null,7.1461991106561639E-4,1.0411976670181809E-3,1.1849229924181871E-3,7.453847571520884E-4,9.461543150239718E-4,1.03341696883882E-3,7.8389582102903236E-4,9.5286959696359386E-4,7.1925342987683941E-4,7.074905244629535E-4,7.4101318603826292E-4,8.7450031898301725E-4]
[null,2055,null,null,5.4039521351673342E-5,6.7011159896723492E-5,7.9354278702999941E-5,5.3396109981203325E-5,5.9392591670576272E-5,6.5922416826028198E-5,5.3469666119149734E-5,6.1827199373481323E-5,5.3964178844916213E-5,5.1380666041347488E-5,5.0989564817789737E-5,5.6132242833832263E-5,null,2055,null,null,1.1620492373886371E-4,1.1596481141584532E-4,1.3434451330126076E-4,1.1041300461840652E-4,1.0036770327719844E-4,1.1086995595334281E-4,9.1420039855226259E-5,1.0443933621275067E-4,1.147464309398022E-4,9.7603830144747222E-5,8.7769281494158366E-5,1.0179440581720893E-4,null,2055,null,null,5.0189873449904164E-4,6.0536605396607735E-4,7.1918846951268584E-4,5.037025634532132E-4,6.1030119298386277E-4,6.7897635039156361E-4,5.4898642311216402E-4,6.3465770005255472E-4,5.0350909877989504E-4,4.9861319333349902E-4,5.1043355316625827E-4,5.3148257574297262E-4,null,2055,null,null,5.9049232205114213E-4,9.6828967213315523E-4,1.1816398585727615E-3,5.9877815691334419E-4,8.1671348794866178E-4,9.4833540983697557E-4,7.6446407575927729E-4,8.9710101623324237E-4,5.9524559442905751E-4,6.1000391857733845E-4,6.6437859075590933E-4,6.2227771476334277E-4,null,2055,null,null,7.1566879003174351E-4,1.0482221006403425E-3,1.1867031581304212E-3,7.4655357000825821E-4,9.5135877194639691E-4,1.0352789648139865E-3,7.8504252253982414E-4,9.5182474633362987E-4,7.2052857030361001E-4,7.0783130718136077E-4,7.4145056868881462E-4,8.7605702873962176E-4]
[null,2060,null,null,5.3969878250572003E-5,6.7341405579188511E-5,7.943981617824845E-5,5.3326018336257626E-5,5.9607005633215113E-5,6.5994807458897805E-5,5.3534744635385273E-5,6.1791466505680797E-5,5.3884965344542883E-5,5.1378405969382285E-5,5.1003279809451555E-5,5.615686641494172E-5,null,2060,null,null,1.1566588629307302E-4,1.1660568864270113E-4,1.3449361761914142E-4,1.0983347199766185E-4,1.0074960887385645E-4,1.1101289860714143E-4,9.1552765739404983E-5,1.0436755445642349E-4,1.1413764523038252E-4,9.7543770091049263E-5,8.7787368584784294E-5,1.0172799744428099E-4,null,2060,null,null,5.0183037049605981E-4,6.0942044511023443E-4,7.2023453568266342E-4,5.0374912116138166E-4,6.1296611630408491E-4,6.802274931412204E-4,5.5007098842557636E-4,6.341034450974537E-4,5.0344832334042007E-4,4.9872712860121705E-4,5.1061737583187451E-4,5.3191005136221528E-4,null,2060,null,null,5.9103518358684338E-4,9.7487863791150442E-4,1.1833384575403176E-3,5.9937684479035246E-4,8.2039983047235503E-4,9.5025931208080473E-4,7.6704364046874848E-4,8.9627399369370236E-4,5.9605009345380425E-4,6.1012713721710174E-4,6.6476246097601555E-4,6.2305074170232433E-4,null,2060,null,null,7.1660651170097137E-4,1.0557766671984508E-3,1.1884300225331475E-3,7.4780668258745905E-4,9.569151244958737E-4,1.037475454174816E-3,7.8626023530009494E-4,9.5086267351930697E-4,7.2176949747647671E-4,7.0809618248889928E-4,7.4184171619728163E-4,8.7773549950919706E-4]